{"text_format":"1","workbook":"xlsx","n_sheets":8,"sheets":["Info","1. Order","2. Content (NL)","2.1. Content (ENG)","Article Onboarding","Input MCC","Data order","Data content"],"not_rendered":{"charts":0,"images":1,"macros":1,"external_links":1,"defined_names":130,"comments":3,"pivot_tables":0},"unopened":[],"bounds":{"document_bytes":16777216,"sheet_cells":100000,"rows_first":2000,"rows_last":500,"rows_between":2000,"halvings":0,"cell_chars":16384,"cell_head_chars":4096},"cells_cut":0,"cells_raw":0,"read":"whole","date_system":"1900"}

{"sheet":"Info","index":0,"n_rows":105,"n_cols":6,"rows_kept":105,"cut":false,"hidden":false,"merged":[[36,0,36,1],[33,0,33,1],[34,0,34,1],[35,0,35,1],[0,1,0,6],[2,1,2,5],[4,1,4,5],[6,0,6,2],[6,3,6,5]]}
[null,"Wehkamp Retail Group B.V. - Order sheet Fashion "]
[null,"Important notes "]
[null,"Please make sure Tab 1. Order is sent to your contact at WRG's Buying & Sales department no later than 3 months before the confirmed delivery date of this order.\nPlease make sure Tab 2. Content (NL or ENG) is sent to your contact at WRG's Buying & Sales department no later than 1 month before the confirmed delivery date of this order.\n\n"]
[]
[null,"All information about the ordersheet and the most up to date version can always be found on https://www.wehkamplogistiek.nl/wrg-ordersheets/\nWhen first receiving the new order format, please click ‘accept’ in the pop-ups when opening the sheet so macro's are activated\nPlease always save this file as an Excel file with macro's\nPlease only use thumbnail images in this file\nThe content sheet contains dropdown menu's. For properties with 'Multi' in the name multiple values can be selected from the menu."]
[]
["Definities (Nederlands)",null,null,"Definitions (English)"]
["Wehkamp","grijze kolommen worden automatisch gevuld of door Wehkamp",null,"Wehkamp","grey columns will be filled by Wehkamp or automatically"]
["Leverancier","witte kolommen zijn verplicht en dienen gevuld te worden door de leverancier",null,"Supplier","white columns are mandatory and need to be filled by the supplier"]
["Kolom header ","Definitie","Voorbeeld ","Column header","Definition","Example"]
["Leverdatum van","Datum begin leverblok","2024-09-01","Delivery date from","Date start of delivery","2024-09-01"]
["Leverdatum tot","Datum eind leverblok","2024-09-30","Delivery date to","Date end of delivery ","2024-09-30"]
["Merk","Merk van het artikel","Sofie Schnoor","Brand","Brand of the item","Sofie Schnoor"]
["Merklijn","Merklijn van het artikel","Petit by Sofie Schnoor","Brand line","Brand line of the item","Petit by Sofie Schnoor"]
["Leveranciers artikelnummer","Stijlnummer van het artikel","CLTTOP34AW243329","Style number","Style number of the item","CLTTOP34AW243329"]
["AX Inkooptekst","Stijlnaam van het artikel","Tanja Jersey Tank","Style name","Style name of the item","Tanja Jersey Tank"]
["Inkoopkleur","Kleurcode + naam van het artikel","3329 Pink","Colour number + name","Colour code + name of the item","3329 Pink"]
["DarwinMoverClass","Seizoen van het artikel","winter 2024","DarwinMoverClass","Season ","winter 2024"]
["EAN/UPC","Barcode/EAN/UPC per maat",8719561323412,"EAN/UPC","Barcode/EAN/UPC per size",8719561323412]
["SizeSupplier","Bestelmaat",36,"SizeSupplier","Size on order",36]
["SizeDescription","Maat die op de website wordt getoond","S","SizeDescription","Size on website","S"]
["Aantallen per maat","Besteld aantal van een artikel per maat",25,"QTY per size","Ordered amount per size",25]
["QTYlowest","Minimaal orderaantal per maat",10,"QTYlowest","Lowest order quantity per size",10]
["QTYmultiples","Veelvoud orderaantal per maat",5,"QTYmultiples","Multiple order quantity per size",5]
["CurrencyCodePurchasePrice","Valuta inkoopprijs","EUR","CurrencyCodePurchasePrice","Currency of the purchase price","EUR"]
["Netto inkoopprijs","Netto inkoopprijs van een artikel incl. eventuele kortingen",null,"Currency purchase price","Net purchase price including any discounts"]
["CVP","Consumenten verkoopprijs/RRP, kan afwijken per maat",null,"RRP CVP","Customer selling price/RRP, can vary per size"]
["OVP","Originele verkoopprijs/RRP, kan afwijken per maat",null,"RRP OVP","Original selling price/RRP, can vary per size"]
["Materiaalsamenstelling","Materiaalcompositie in %","60% viscose/35% katoen/5% elastaan ","Material composition in %","Material composition in %","60% viscose/35% katoen/5% elastaan "]
["Filtermateriaal","Hoofdcomponent of look and feel van de materiaalsamenstelling","Viscose/Teddy","Filtermaterial","Most prominent component of the material composition or look and feel","Viscose/Teddy"]
["Customs code","Customs code is de HS-code (Harmonised System code)","Zie sheet (comment in header)","Customs code","Customs code is the HS-code (Harmonised System code)","Please see sheet (comment in header)"]
["Gewicht excl. verpakking","Gewicht van 1 stuk exclusief verpakking (op maatniveau) (gram)",150,"Weight excl. packaging","Weight of 1 piece in grams excluding packaging per size",150]
[]
["Gebruik deze lijst voor de juiste schrijfwijze van de materiaalsoort voor de kolom 'Materiaalsamentelling in %'. Voorbeeld van een correct geschreven materiaalsamenstelling: 80% katoen/10% elastaan/10% polyester. "]
["Use this list for the correct way of writing of an material. Example of an correctly written material composition: 80% cotton/10% elastane/10% polyester."]
["MATERIAL LIST "]
["Ways of writing and translations"]
["Material ENG","Material NL"]
["acetate","acetaat"]
["acrylic","acryl"]
["alpaca","alpaca"]
["angora","angora"]
["bamboo","bamboe"]
["canvas","canvas"]
["down","dons"]
["gemstone","edelsteen"]
["duck feathers","eendenveren"]
["elastane","elastaan"]
["glass","glas"]
["gold","goud"]
["semi-precious stone","halfedelsteen"]
["resin","hars"]
["hemp","hennep"]
["iron","ijzer"]
["faux fur","imitatiebont"]
["faux suede","imitatiesuede"]
["jute","jute"]
["kapok","kapok"]
["cashmere","kasjmier"]
["cotton","katoen"]
["coconut fiber","kokosvezel"]
["crystal","kristal"]
["cork","kurk"]
["leather","leer"]
["linen","linnen"]
["lyocell","lyocell"]
["merino wool","merinowol"]
["brass","messing"]
["metal","metaal"]
["metal thread","metaaldraad"]
["micro leather","microleer"]
["modacrylic","modacryl"]
["mohair","mohair"]
["neoprene","neopreen"]
["palm leaves","palmbladeren"]
["paper","papier"]
["pearl","parel"]
["polyacrylic","polyacryl"]
["polyamide","polyamide"]
["polycarbonate","polycarbonaat"]
["polyester","polyester"]
["polyethylene","polyethyleen"]
["polylactide","polylactide"]
["polyolefins","polyolefins"]
["polypropylene","polypropyleen"]
["polyurethane","polyurethaan"]
["PVC","PVC"]
["raffia","raffia"]
["ramie","ramie"]
["reed","riet"]
["rattan","rotan"]
["rubber","rubber"]
["stainless steel","RVS"]
["silicone","siliconen"]
["steel","staal"]
["Sterling silver","Sterling zilver"]
["straw","stro"]
["suède","suède"]
["Swarovski crystal","Swarovski kristal"]
["viscose","viscose"]
["wool","wol"]
["silk","zijde"]
["silver","zilver"]
["zinc","zink"]
["zirconia","zirkonia"]

{"sheet":"1. Order","index":1,"n_rows":1499,"n_cols":63,"rows_kept":1499,"cut":false,"hidden":false,"merged":[[0,53,0,62],[0,18,0,20],[0,21,0,24],[0,25,0,33],[0,34,0,49],[5,0,10,0],[11,0,16,0],[17,0,22,0],[59,0,64,0],[23,0,28,0],[0,14,0,17],[0,0,0,12],[1,14,1,17],[29,0,34,0],[77,0,82,0],[83,0,88,0],[89,0,94,0],[65,0,70,0],[71,0,76,0],[41,0,46,0],[47,0,52,0],[53,0,58,0],[35,0,40,0],[131,0,136,0],[137,0,142,0],[143,0,148,0],[113,0,118,0],[119,0,124,0],[125,0,130,0],[95,0,100,0],[101,0,106,0],[107,0,112,0],[185,0,190,0],[191,0,196,0],[197,0,202,0],[167,0,172,0],[173,0,178,0],[179,0,184,0],[149,0,154,0],[155,0,160,0],[161,0,166,0],[239,0,244,0],[245,0,250,0],[251,0,256,0],[221,0,226,0],[227,0,232,0],[233,0,238,0],[203,0,208,0],[209,0,214,0],[215,0,220,0],[293,0,298,0],[299,0,304,0],[305,0,310,0],[275,0,280,0],[281,0,286,0],[287,0,292,0],[257,0,262,0],[263,0,268,0],[269,0,274,0],[347,0,352,0],[353,0,358,0],[359,0,364,0],[329,0,334,0],[335,0,340,0],[341,0,346,0],[311,0,316,0],[317,0,322,0],[323,0,328,0],[401,0,406,0],[407,0,412,0],[413,0,418,0],[383,0,388,0],[389,0,394,0],[395,0,400,0],[365,0,370,0],[371,0,376,0],[377,0,382,0],[455,0,460,0],[461,0,466,0],[467,0,472,0],[437,0,442,0],[443,0,448,0],[449,0,454,0],[419,0,424,0],[425,0,430,0],[431,0,436,0],[503,0,508,0],[509,0,514,0],[515,0,520,0],[521,0,526,0],[527,0,532,0],[491,0,496,0],[497,0,502,0],[473,0,478,0],[479,0,484,0],[485,0,490,0],[563,0,568,0],[569,0,574,0],[575,0,580,0],[581,0,586,0],[587,0,592,0],[533,0,538,0],[539,0,544,0],[545,0,550,0],[551,0,556,0],[557,0,562,0],[623,0,628,0],[629,0,634,0],[635,0,640,0],[641,0,646,0],[647,0,652,0],[593,0,598,0],[599,0,604,0],[605,0,610,0],[611,0,616,0],[617,0,622,0],[683,0,688,0],[689,0,694,0],[695,0,700,0],[701,0,706,0],[707,0,712,0],[653,0,658,0],[659,0,664,0],[665,0,670,0],[671,0,676,0],[677,0,682,0],[743,0,748,0],[749,0,754,0],[755,0,760,0],[761,0,766,0],[767,0,772,0],[713,0,718,0],[719,0,724,0],[725,0,730,0],[731,0,736,0],[737,0,742,0],[803,0,808,0],[809,0,814,0],[815,0,820,0],[821,0,826,0],[827,0,832,0],[773,0,778,0],[779,0,784,0],[785,0,790,0],[791,0,796,0],[797,0,802,0],[863,0,868,0],[869,0,874,0],[875,0,880,0],[881,0,886,0],[887,0,892,0],[833,0,838,0],[839,0,844,0],[845,0,850,0],[851,0,856,0],[857,0,862,0],[923,0,928,0],[929,0,934,0],[935,0,940,0],[941,0,946,0],[947,0,952,0],[893,0,898,0],[899,0,904,0],[905,0,910,0],[911,0,916,0],[917,0,922,0],[983,0,988,0],[989,0,994,0],[995,0,1000,0],[1001,0,1006,0],[1007,0,1012,0],[953,0,958,0],[959,0,964,0],[965,0,970,0],[971,0,976,0],[977,0,982,0],[1043,0,1048,0],[1049,0,1054,0],[1055,0,1060,0],[1061,0,1066,0],[1067,0,1072,0],[1013,0,1018,0],[1019,0,1024,0],[1025,0,1030,0],[1031,0,1036,0],[1037,0,1042,0],[1103,0,1108,0],[1109,0,1114,0],[1115,0,1120,0],[1121,0,1126,0],[1127,0,1132,0],[1073,0,1078,0],[1079,0,1084,0],[1085,0,1090,0],[1091,0,1096,0],[1097,0,1102,0],[1163,0,1168,0],[1169,0,1174,0],[1175,0,1180,0],[1181,0,1186,0],[1187,0,1192,0],[1133,0,1138,0],[1139,0,1144,0],[1145,0,1150,0],[1151,0,1156,0],[1157,0,1162,0],[1223,0,1228,0],[1229,0,1234,0],[1235,0,1240,0],[1241,0,1246,0],[1247,0,1252,0],[1193,0,1198,0],[1199,0,1204,0],[1205,0,1210,0],[1211,0,1216,0],[1217,0,1222,0],[1283,0,1288,0],[1289,0,1294,0],[1295,0,1300,0],[1301,0,1306,0],[1307,0,1312,0],[1253,0,1258,0],[1259,0,1264,0],[1265,0,1270,0],[1271,0,1276,0],[1277,0,1282,0],[1343,0,1348,0],[1349,0,1354,0],[1355,0,1360,0],[1361,0,1366,0],[1367,0,1372,0],[1313,0,1318,0],[1319,0,1324,0],[1325,0,1330,0],[1331,0,1336,0],[1337,0,1342,0],[1403,0,1408,0],[1409,0,1414,0],[1415,0,1420,0],[1421,0,1426,0],[1427,0,1432,0],[1373,0,1378,0],[1379,0,1384,0],[1385,0,1390,0],[1391,0,1396,0],[1397,0,1402,0],[1493,0,1498,0],[1463,0,1468,0],[1469,0,1474,0],[1475,0,1480,0],[1481,0,1486,0],[1487,0,1492,0],[1433,0,1438,0],[1439,0,1444,0],[1445,0,1450,0],[1451,0,1456,0],[1457,0,1462,0]]}
["PRODUCT INFORMATION",null,null,null,null,null,null,null,null,null,null,null,null,null,"PRODUCT CATEGORY",null,null,null,"SIZE INFORMATION",null,null,"QTY's",null,null,null,"PRICING",null,null,null,null,null,null,null,null,"MATERIAL & SUSTAINABILITY",null,null,null,null,null,null,null,null,null,null,null,null,null,null,null,null,null,null,"LOGISTICAL INFORMATION"]
[null,null,null,null,null,null,null,null,null,null,null,null,null,null,null,null,null,null,null,null,null,{"$f":"SUM(V6:V1048576)","v":0},{"$f":"SUM(W6:W1048576)","v":0},null,null,null,null,null,null,null,null,null,{"$f":"SUM(AG6:AG501)","v":0},{"$f":"SUM(AH6:AH501)","v":0}]
["Image","Wehkamp article number","Wehkamp PO#","Sales order number","Delivery date from","Delivery date to","AX supplier number","Brand","Brandline","Stylenumber","Stylename","Colour number + name","Season","EAN13","Gender","Description (ds t-shirt)","MCC3","Articletype","Supplier size","Website size","Barcode size","QTY per size","Total QTY","MOQ","Multiples","Currency purchase price","Gross purchase price","Discount %","Purchase price","RRP CVP","RRP OVP","Mark-up","Total WHL Value","Total retail value","Full material composition in %","Percentage 1","Material 1","Percentage 2","Material 2","Percentage 3","Material 3","Percentage 4","Material 4","Percentage 5","Material 5","Percentage 6","Material 6","Filter material","Customs code (HS/GN)","Weight of 1 piece excluding packaging (on size level) (grams)","Certificates: Recycled material","Certificates: Organic material","Certificates: Animal welfare","Wehkamp buyer","Wehkamp planner","SalesSegment","OMID","Hanging/laying","Storezone","LogisticItemGroup","ShippingCosts","WKShippingMethod","PreferredWarehouseIdentificationCode"]
["Afbeelding","Wehkamp artikelnummer","Wehkamp PO nummer","Sales order nummer","Leverdatum van","Leverdatum tot","AX leveranciersnummer","Merk","Merklijn","Stijlnummer","Stijlnaam","Kleurnummer + naam","Seizoen","EAN13","Geslacht","Omschrijving (bijv. ds t-shirt)","MCC3","Artikeltype","Leveranciersmaat","Presentatiemaat","Barcodemaat","Aantallen per maat","Totaal aantal","MOQ","Veelvoud","Valuta inkoopprijs","Bruto inkoopprijs","Kortingspercentage","Inkoopprijs","Verkoopprijs CVP","Verkoopprijs OVP","Mark-up","Totaal inkoopwaarde","Totaal verkoopwaarde","Volledige materiaalsamenstelling","Percentage 1","Materiaal 1","Percentage 2","Materiaal 2","Percentage 3","Materiaal 3","Percentage 4","Materiaal 4","Percentage 5","Materiaal 5","Percentage 6","Materiaal 6","Filtermateriaal","Customs code","Gewicht van 1 stuk exclusief verpakking (op maatniveau) (gram)","Certificaten: Gerecycled materiaal","Certificaten: Biologisch materiaal","Certificaten: Dierenwelzijn","Wehkamp buyer","Wehkamp planner","SalesSegment","OMID","Hanggoed/liggoed","Opslaglocatie","LogisticItemGroup","ShippingCosts","WKShippingMethod","PreferredWarehouseIdentificationCode"]
["Afbeelding","Wehkamp artikelnummer","Wehkamp PO nummer","Sales order nummer","Leverdatum van","Leverdatum tot","AX leveranciersnummer","Merk","Merklijn","Leveranciers artikelnummer","AX Inkooptekst","Inkoopkleur","DarwinMoverClass","EAN","Geslacht","AX Naam","Artikelgroepcode","Taxon","SizeSupplier","SizeDescription","SizeWehkamp","Aantallen per maat","Totaal aantal","QTYlowest","QTYmultiples","CurrencyCodePurchasePrice","Bruto inkoopprijs","Kortingspercentage","Netto inkoopprijs","CVP","OVP","Mark-up","Total WHL Value","Total retail value","Materiaalsamenstelling in %","Percentage 1","Materiaal 1","Percentage 2","Materiaal 2","Percentage 3","Materiaal 3","Percentage 4","Materiaal 4","Percentage 5","Materiaal 5","Percentage 6","Materiaal 6","Filtermateriaal","Customs code","Gewicht excl. verpakking","Certificaten: Gerecycled materiaal","Certificaten: Biologisch materiaal","Certificaten: Dierenwelzijn","BuyerGroup","SupplyChainPlanner","SalesSegment","OMID","Hanggoed/liggoed","StoreZone (VAS)","LogisticItemGroup","ShippingCosts","WKShippingMethod","PreferredWarehouseIdentificationCode"]
[null,null,null,null,null,null,null,null,null,null,null,null,null,null,null,null,{"$f":"VLOOKUP(P6,'Input MCC'!B:C,2,0)","v":{"$error":"#N/A"}},{"$f":"VLOOKUP(P6,'Input MCC'!B:E,4,0)","v":{"$error":"#N/A"}},null,null,null,null,{"$f":"SUM(V6:V11)","v":0},null,null,null,null,null,null,null,null,{"$f":"AE6/AC6","v":{"$error":"#DIV/0!"}},{"$f":"V6*AC6","v":0},{"$f":"V6*AE6","v":0},null,{"$f":"IF(AI6 <> \"\",\n    IF(ISNUMBER(VALUE(LEFT(AI6, FIND(\"%\", AI6)-1))),\n        VALUE(LEFT(AI6, FIND(\"%\", AI6)-1)),\n        \"Invalid format\"),\n    \"\")","v":""},{"$f":"IF(AI6 <> \"\",\n    IF(ISNUMBER(VALUE(LEFT(AI6, FIND(\"%\", AI6)-1))) * ISNUMBER(FIND(\"%\", AI6 & \"wol\")) > 0,\n        TRIM(MID(AI6, FIND(\"%\", AI6)+1, FIND(\"/\", AI6 & \"/\")-FIND(\"%\", AI6)-1)),\n        \"Invalid format\"),\n    \"\")","v":""},{"$f":"IF(AI6 <> \"\",\n    IF(ISNUMBER(VALUE(MID(AI6, FIND(\"/\", AI6) + 1, FIND(\"%\", AI6, FIND(\"/\", AI6)) - FIND(\"/\", AI6) - 1))),\n        VALUE(MID(AI6, FIND(\"/\", AI6) + 1, FIND(\"%\", AI6, FIND(\"/\", AI6)) - FIND(\"/\", AI6) - 1)),\n        \"\"),\n    \"\")","v":""},{"$f":"IF(AI6 <> \"\",\n    IFERROR(TRIM(MID(AI6, FIND(\"%\", AI6, FIND(\"/\", AI6)+1)+2,\n        IFERROR(FIND(\"/\", AI6 & \"/\", FIND(\"/\", AI6)+1)-FIND(\"%\", AI6, FIND(\"/\", AI6)+1)-2, LEN(AI6)-FIND(\"%\", AI6, FIND(\"/\", AI6)+1)-1))),\n        \"\"),\n    \"\")","v":""},{"$f":"IF(AI6 <> \"\",\n    IF(ISNUMBER(VALUE(MID(AI6, FIND(\"/\", AI6, FIND(\"/\", AI6)+1) + 1, FIND(\"%\", AI6, FIND(\"/\", AI6, FIND(\"/\", AI6)+1)) - FIND(\"/\", AI6, FIND(\"/\", AI6)+1) - 1))),\n        VALUE(MID(AI6, FIND(\"/\", AI6, FIND(\"/\", AI6)+1) + 1, FIND(\"%\", AI6, FIND(\"/\", AI6, FIND(\"/\", AI6)+1)) - FIND(\"/\", AI6, FIND(\"/\", AI6)+1) - 1)),\n        \"\"),\n    \"\")","v":""},{"$f":"IF(AI6 <> \"\",\n    IFERROR(\n        TRIM(MID(AI6,\n            FIND(\"%\", AI6, FIND(\"%\", AI6, FIND(\"%\", AI6)+1)+1)+1,\n            FIND(\"/\", AI6 & \"/\", FIND(\"%\", AI6, FIND(\"%\", AI6, FIND(\"%\", AI6)+1)+1))-FIND(\"%\", AI6, FIND(\"%\", AI6, FIND(\"%\", AI6)+1)+1)-1)\n        ),\n        \"\"\n    ),\n    \"\"\n)","v":""},{"$f":"IF(AI6 <> \"\",\n    IF(ISNUMBER(VALUE(MID(AI6, FIND(\"/\", AI6, FIND(\"/\", AI6, FIND(\"/\", AI6)+1)+1) + 1, FIND(\"%\", AI6, FIND(\"/\", AI6, FIND(\"/\", AI6, FIND(\"/\", AI6)+1)+1)) - FIND(\"/\", AI6, FIND(\"/\", AI6, FIND(\"/\", AI6)+1)+1) - 1))),\n        VALUE(MID(AI6, FIND(\"/\", AI6, FIND(\"/\", AI6, FIND(\"/\", AI6)+1)+1) + 1, FIND(\"%\", AI6, FIND(\"/\", AI6, FIND(\"/\", AI6, FIND(\"/\", AI6)+1)+1)) - FIND(\"/\", AI6, FIND(\"/\", AI6, FIND(\"/\", AI6)+1)+1) - 1)),\n        \"\"),\n    \"\")","v":""},{"$f":"IF(AI6 <> \"\",\n    IFERROR(TRIM(MID(AI6, FIND(\"%\", AI6, FIND(\"/\", AI6, FIND(\"/\", AI6, FIND(\"/\", AI6)+1)+1)+1)+2,\n        IFERROR(FIND(\"/\", AI6, FIND(\"/\", AI6, FIND(\"/\", AI6, FIND(\"/\", AI6)+1)+1)+1)-FIND(\"%\", AI6, FIND(\"/\", AI6, FIND(\"/\", AI6, FIND(\"/\", AI6)+1)+1)+1)-2, LEN(AI6)-FIND(\"%\", AI6, FIND(\"/\", AI6, FIND(\"/\", AI6, FIND(\"/\", AI6)+1)+1)+1)-1))),\n        \"\"),\n    \"\")","v":""},{"$f":"IF(AI6 <> \"\",\n    IF(ISNUMBER(VALUE(MID(AI6, FIND(\"/\", AI6, FIND(\"/\", AI6, FIND(\"/\", AI6, FIND(\"/\", AI6)+1)+1)+1) + 1, FIND(\"%\", AI6, FIND(\"/\", AI6, FIND(\"/\", AI6, FIND(\"/\", AI6, FIND(\"/\", AI6)+1)+1)+1)) - FIND(\"/\", AI6, FIND(\"/\", AI6, FIND(\"/\", AI6, FIND(\"/\", AI6)+1)+1)+1) - 1))),\n        VALUE(MID(AI6, FIND(\"/\", AI6, FIND(\"/\", AI6, FIND(\"/\", AI6, FIND(\"/\", AI6)+1)+1)+1) + 1, FIND(\"%\", AI6, FIND(\"/\", AI6, FIND(\"/\", AI6, FIND(\"/\", AI6, FIND(\"/\", AI6)+1)+1)+1)) - FIND(\"/\", AI6, FIND(\"/\", AI6, FIND(\"/\", AI6, FIND(\"/\", AI6)+1)+1)+1) - 1)),\n        \"\"),\n    \"\")","v":""},{"$f":"IF(AI6 = \"\", \"\",\n    IFERROR(TRIM(\n        MID(\n            AI6,\n            FIND(\"%\", AI6, FIND(\"/\", AI6, FIND(\"/\", AI6, FIND(\"/\", AI6, FIND(\"/\", AI6)+1)+1)+1)+1) + 1,\n            FIND(\"/\", AI6 & \"/\", FIND(\"%\", AI6, FIND(\"/\", AI6, FIND(\"/\", AI6, FIND(\"/\", AI6, FIND(\"/\", AI6)+1)+1)+1)+1)) -\n            FIND(\"%\", AI6, FIND(\"/\", AI6, FIND(\"/\", AI6, FIND(\"/\", AI6, FIND(\"/\", AI6)+1)+1)+1)+1) - 1\n        )\n    ),\n    \"\")\n)","v":""},null,null,null,null,null,null,null,null,null,null,null,null,null,null,null,null,null,"ZWO"]
[null,null,null,null,null,null,null,null,null,null,null,null,null,null,null,null,{"$f":"VLOOKUP(P7,'Input MCC'!B:C,2,0)","v":{"$error":"#N/A"}},{"$f":"VLOOKUP(P7,'Input MCC'!B:E,4,0)","v":{"$error":"#N/A"}},null,null,null,null,null,null,null,null,null,null,null,null,null,{"$f":"AE7/AC7","v":{"$error":"#DIV/0!"}},{"$f":"V7*AC7","v":0},{"$f":"V7*AE7","v":0},null,"","","","","","","","","","",null,null,null,null,null,null,null,null,null,null,null,null,null,null,null,null,null,"ZWO"]
[null,null,null,null,null,null,null,null,null,null,null,null,null,null,null,null,{"$f":"VLOOKUP(P8,'Input MCC'!B:C,2,0)","v":{"$error":"#N/A"}},{"$f":"VLOOKUP(P8,'Input MCC'!B:E,4,0)","v":{"$error":"#N/A"}},null,null,null,null,null,null,null,null,null,null,null,null,null,{"$error":"#DIV/0!"},{"$f":"V8*AC8","v":0},{"$f":"V8*AE8","v":0},null,"","","","","","","","","","",null,null,null,null,null,null,null,null,null,null,null,null,null,null,null,null,null,"ZWO"]
[null,null,null,null,null,null,null,null,null,null,null,null,null,null,null,null,{"$f":"VLOOKUP(P9,'Input MCC'!B:C,2,0)","v":{"$error":"#N/A"}},{"$f":"VLOOKUP(P9,'Input MCC'!B:E,4,0)","v":{"$error":"#N/A"}},null,null,null,null,null,null,null,null,null,null,null,null,null,{"$error":"#DIV/0!"},0,0,null,"","","","","","","","","","",null,null,null,null,null,null,null,null,null,null,null,null,null,null,null,null,null,"ZWO"]
[null,null,null,null,null,null,null,null,null,null,null,null,null,null,null,null,{"$f":"VLOOKUP(P10,'Input MCC'!B:C,2,0)","v":{"$error":"#N/A"}},{"$f":"VLOOKUP(P10,'Input MCC'!B:E,4,0)","v":{"$error":"#N/A"}},null,null,null,null,null,null,null,null,null,null,null,null,null,{"$error":"#DIV/0!"},0,0,null,"","","","","","","","","","",null,null,null,null,null,null,null,null,null,null,null,null,null,null,null,null,null,"ZWO"]
[null,null,null,null,null,null,null,null,null,null,null,null,null,null,null,null,{"$f":"VLOOKUP(P11,'Input MCC'!B:C,2,0)","v":{"$error":"#N/A"}},{"$f":"VLOOKUP(P11,'Input MCC'!B:E,4,0)","v":{"$error":"#N/A"}},null,null,null,null,null,null,null,null,null,null,null,null,null,{"$error":"#DIV/0!"},0,0,null,"","","","","","","","","","",null,null,null,null,null,null,null,null,null,null,null,null,null,null,null,null,null,"ZWO"]
[null,null,null,null,null,null,null,null,null,null,null,null,null,null,null,null,{"$f":"VLOOKUP(P12,'Input MCC'!B:C,2,0)","v":{"$error":"#N/A"}},{"$f":"VLOOKUP(P12,'Input MCC'!B:E,4,0)","v":{"$error":"#N/A"}},null,null,null,null,{"$f":"SUM(V12:V17)","v":0},null,null,null,null,null,null,null,null,{"$error":"#DIV/0!"},0,0,null,"","","","","","","","","","",null,null,null,null,null,null,null,null,null,null,null,null,null,null,null,null,null,"ZWO"]
[null,null,null,null,null,null,null,null,null,null,null,null,null,null,null,null,{"$f":"VLOOKUP(P13,'Input MCC'!B:C,2,0)","v":{"$error":"#N/A"}},{"$f":"VLOOKUP(P13,'Input MCC'!B:E,4,0)","v":{"$error":"#N/A"}},null,null,null,null,null,null,null,null,null,null,null,null,null,{"$error":"#DIV/0!"},0,0,null,"","","","","","","","","","",null,null,null,null,null,null,null,null,null,null,null,null,null,null,null,null,null,"ZWO"]
[null,null,null,null,null,null,null,null,null,null,null,null,null,null,null,null,{"$f":"VLOOKUP(P14,'Input MCC'!B:C,2,0)","v":{"$error":"#N/A"}},{"$f":"VLOOKUP(P14,'Input MCC'!B:E,4,0)","v":{"$error":"#N/A"}},null,null,null,null,null,null,null,null,null,null,null,null,null,{"$error":"#DIV/0!"},0,0,null,"","","","","","","","","","",null,null,null,null,null,null,null,null,null,null,null,null,null,null,null,null,null,"ZWO"]
[null,null,null,null,null,null,null,null,null,null,null,null,null,null,null,null,{"$f":"VLOOKUP(P15,'Input MCC'!B:C,2,0)","v":{"$error":"#N/A"}},{"$f":"VLOOKUP(P15,'Input MCC'!B:E,4,0)","v":{"$error":"#N/A"}},null,null,null,null,null,null,null,null,null,null,null,null,null,{"$error":"#DIV/0!"},0,0,null,"","","","","","","","","","",null,null,null,null,null,null,null,null,null,null,null,null,null,null,null,null,null,"ZWO"]
[null,null,null,null,null,null,null,null,null,null,null,null,null,null,null,null,{"$f":"VLOOKUP(P16,'Input MCC'!B:C,2,0)","v":{"$error":"#N/A"}},{"$f":"VLOOKUP(P16,'Input MCC'!B:E,4,0)","v":{"$error":"#N/A"}},null,null,null,null,null,null,null,null,null,null,null,null,null,{"$error":"#DIV/0!"},0,0,null,"","","","","","","","","","",null,null,null,null,null,null,null,null,null,null,null,null,null,null,null,null,null,"ZWO"]
[null,null,null,null,null,null,null,null,null,null,null,null,null,null,null,null,{"$f":"VLOOKUP(P17,'Input MCC'!B:C,2,0)","v":{"$error":"#N/A"}},{"$f":"VLOOKUP(P17,'Input MCC'!B:E,4,0)","v":{"$error":"#N/A"}},null,null,null,null,null,null,null,null,null,null,null,null,null,{"$error":"#DIV/0!"},0,0,null,"","","","","","","","","","",null,null,null,null,null,null,null,null,null,null,null,null,null,null,null,null,null,"ZWO"]
[null,null,null,null,null,null,null,null,null,null,null,null,null,null,null,null,{"$f":"VLOOKUP(P18,'Input MCC'!B:C,2,0)","v":{"$error":"#N/A"}},{"$f":"VLOOKUP(P18,'Input MCC'!B:E,4,0)","v":{"$error":"#N/A"}},null,null,null,null,{"$f":"SUM(V18:V23)","v":0},null,null,null,null,null,null,null,null,{"$error":"#DIV/0!"},0,0,null,"","","","","","","","","","",null,null,null,null,null,null,null,null,null,null,null,null,null,null,null,null,null,"ZWO"]
[null,null,null,null,null,null,null,null,null,null,null,null,null,null,null,null,{"$f":"VLOOKUP(P19,'Input MCC'!B:C,2,0)","v":{"$error":"#N/A"}},{"$f":"VLOOKUP(P19,'Input MCC'!B:E,4,0)","v":{"$error":"#N/A"}},null,null,null,null,null,null,null,null,null,null,null,null,null,{"$error":"#DIV/0!"},0,0,null,"","","","","","","","","","",null,null,null,null,null,null,null,null,null,null,null,null,null,null,null,null,null,"ZWO"]
[null,null,null,null,null,null,null,null,null,null,null,null,null,null,null,null,{"$f":"VLOOKUP(P20,'Input MCC'!B:C,2,0)","v":{"$error":"#N/A"}},{"$f":"VLOOKUP(P20,'Input MCC'!B:E,4,0)","v":{"$error":"#N/A"}},null,null,null,null,null,null,null,null,null,null,null,null,null,{"$error":"#DIV/0!"},0,0,null,"","","","","","","","","","",null,null,null,null,null,null,null,null,null,null,null,null,null,null,null,null,null,"ZWO"]
[null,null,null,null,null,null,null,null,null,null,null,null,null,null,null,null,{"$f":"VLOOKUP(P21,'Input MCC'!B:C,2,0)","v":{"$error":"#N/A"}},{"$f":"VLOOKUP(P21,'Input MCC'!B:E,4,0)","v":{"$error":"#N/A"}},null,null,null,null,null,null,null,null,null,null,null,null,null,{"$error":"#DIV/0!"},0,0,null,"","","","","","","","","","",null,null,null,null,null,null,null,null,null,null,null,null,null,null,null,null,null,"ZWO"]
[null,null,null,null,null,null,null,null,null,null,null,null,null,null,null,null,{"$f":"VLOOKUP(P22,'Input MCC'!B:C,2,0)","v":{"$error":"#N/A"}},{"$f":"VLOOKUP(P22,'Input MCC'!B:E,4,0)","v":{"$error":"#N/A"}},null,null,null,null,null,null,null,null,null,null,null,null,null,{"$error":"#DIV/0!"},0,0,null,"","","","","","","","","","",null,null,null,null,null,null,null,null,null,null,null,null,null,null,null,null,null,"ZWO"]
[null,null,null,null,null,null,null,null,null,null,null,null,null,null,null,null,{"$f":"VLOOKUP(P23,'Input MCC'!B:C,2,0)","v":{"$error":"#N/A"}},{"$f":"VLOOKUP(P23,'Input MCC'!B:E,4,0)","v":{"$error":"#N/A"}},null,null,null,null,null,null,null,null,null,null,null,null,null,{"$error":"#DIV/0!"},0,0,null,"","","","","","","","","","",null,null,null,null,null,null,null,null,null,null,null,null,null,null,null,null,null,"ZWO"]
[null,null,null,null,null,null,null,null,null,null,null,null,null,null,null,null,{"$f":"VLOOKUP(P24,'Input MCC'!B:C,2,0)","v":{"$error":"#N/A"}},{"$f":"VLOOKUP(P24,'Input MCC'!B:E,4,0)","v":{"$error":"#N/A"}},null,null,null,null,{"$f":"SUM(V24:V29)","v":0},null,null,null,null,null,null,null,null,{"$error":"#DIV/0!"},0,0,null,"","","","","","","","","","",null,null,null,null,null,null,null,null,null,null,null,null,null,null,null,null,null,"ZWO"]
[null,null,null,null,null,null,null,null,null,null,null,null,null,null,null,null,{"$f":"VLOOKUP(P25,'Input MCC'!B:C,2,0)","v":{"$error":"#N/A"}},{"$f":"VLOOKUP(P25,'Input MCC'!B:E,4,0)","v":{"$error":"#N/A"}},null,null,null,null,null,null,null,null,null,null,null,null,null,{"$error":"#DIV/0!"},0,0,null,"","","","","","","","","","",null,null,null,null,null,null,null,null,null,null,null,null,null,null,null,null,null,"ZWO"]
[null,null,null,null,null,null,null,null,null,null,null,null,null,null,null,null,{"$f":"VLOOKUP(P26,'Input MCC'!B:C,2,0)","v":{"$error":"#N/A"}},{"$f":"VLOOKUP(P26,'Input MCC'!B:E,4,0)","v":{"$error":"#N/A"}},null,null,null,null,null,null,null,null,null,null,null,null,null,{"$error":"#DIV/0!"},0,0,null,"","","","","","","","","","",null,null,null,null,null,null,null,null,null,null,null,null,null,null,null,null,null,"ZWO"]
[null,null,null,null,null,null,null,null,null,null,null,null,null,null,null,null,{"$f":"VLOOKUP(P27,'Input MCC'!B:C,2,0)","v":{"$error":"#N/A"}},{"$f":"VLOOKUP(P27,'Input MCC'!B:E,4,0)","v":{"$error":"#N/A"}},null,null,null,null,null,null,null,null,null,null,null,null,null,{"$error":"#DIV/0!"},0,0,null,"","","","","","","","","","",null,null,null,null,null,null,null,null,null,null,null,null,null,null,null,null,null,"ZWO"]
[null,null,null,null,null,null,null,null,null,null,null,null,null,null,null,null,{"$f":"VLOOKUP(P28,'Input MCC'!B:C,2,0)","v":{"$error":"#N/A"}},{"$f":"VLOOKUP(P28,'Input MCC'!B:E,4,0)","v":{"$error":"#N/A"}},null,null,null,null,null,null,null,null,null,null,null,null,null,{"$error":"#DIV/0!"},0,0,null,"","","","","","","","","","",null,null,null,null,null,null,null,null,null,null,null,null,null,null,null,null,null,"ZWO"]
[null,null,null,null,null,null,null,null,null,null,null,null,null,null,null,null,{"$f":"VLOOKUP(P29,'Input MCC'!B:C,2,0)","v":{"$error":"#N/A"}},{"$f":"VLOOKUP(P29,'Input MCC'!B:E,4,0)","v":{"$error":"#N/A"}},null,null,null,null,null,null,null,null,null,null,null,null,null,{"$error":"#DIV/0!"},0,0,null,"","","","","","","","","","",null,null,null,null,null,null,null,null,null,null,null,null,null,null,null,null,null,"ZWO"]
[null,null,null,null,null,null,null,null,null,null,null,null,null,null,null,null,{"$f":"VLOOKUP(P30,'Input MCC'!B:C,2,0)","v":{"$error":"#N/A"}},{"$f":"VLOOKUP(P30,'Input MCC'!B:E,4,0)","v":{"$error":"#N/A"}},null,null,null,null,{"$f":"SUM(V30:V35)","v":0},null,null,null,null,null,null,null,null,{"$error":"#DIV/0!"},0,0,null,"","","","","","","","","","",null,null,null,null,null,null,null,null,null,null,null,null,null,null,null,null,null,"ZWO"]
[null,null,null,null,null,null,null,null,null,null,null,null,null,null,null,null,{"$f":"VLOOKUP(P31,'Input MCC'!B:C,2,0)","v":{"$error":"#N/A"}},{"$f":"VLOOKUP(P31,'Input MCC'!B:E,4,0)","v":{"$error":"#N/A"}},null,null,null,null,null,null,null,null,null,null,null,null,null,{"$error":"#DIV/0!"},0,0,null,"","","","","","","","","","",null,null,null,null,null,null,null,null,null,null,null,null,null,null,null,null,null,"ZWO"]
[null,null,null,null,null,null,null,null,null,null,null,null,null,null,null,null,{"$f":"VLOOKUP(P32,'Input MCC'!B:C,2,0)","v":{"$error":"#N/A"}},{"$f":"VLOOKUP(P32,'Input MCC'!B:E,4,0)","v":{"$error":"#N/A"}},null,null,null,null,null,null,null,null,null,null,null,null,null,{"$error":"#DIV/0!"},0,0,null,"","","","","","","","","","",null,null,null,null,null,null,null,null,null,null,null,null,null,null,null,null,null,"ZWO"]
[null,null,null,null,null,null,null,null,null,null,null,null,null,null,null,null,{"$f":"VLOOKUP(P33,'Input MCC'!B:C,2,0)","v":{"$error":"#N/A"}},{"$f":"VLOOKUP(P33,'Input MCC'!B:E,4,0)","v":{"$error":"#N/A"}},null,null,null,null,null,null,null,null,null,null,null,null,null,{"$error":"#DIV/0!"},0,0,null,"","","","","","","","","","",null,null,null,null,null,null,null,null,null,null,null,null,null,null,null,null,null,"ZWO"]
[null,null,null,null,null,null,null,null,null,null,null,null,null,null,null,null,{"$f":"VLOOKUP(P34,'Input MCC'!B:C,2,0)","v":{"$error":"#N/A"}},{"$f":"VLOOKUP(P34,'Input MCC'!B:E,4,0)","v":{"$error":"#N/A"}},null,null,null,null,null,null,null,null,null,null,null,null,null,{"$error":"#DIV/0!"},0,0,null,"","","","","","","","","","",null,null,null,null,null,null,null,null,null,null,null,null,null,null,null,null,null,"ZWO"]
[null,null,null,null,null,null,null,null,null,null,null,null,null,null,null,null,{"$f":"VLOOKUP(P35,'Input MCC'!B:C,2,0)","v":{"$error":"#N/A"}},{"$f":"VLOOKUP(P35,'Input MCC'!B:E,4,0)","v":{"$error":"#N/A"}},null,null,null,null,null,null,null,null,null,null,null,null,null,{"$error":"#DIV/0!"},0,0,null,"","","","","","","","","","",null,null,null,null,null,null,null,null,null,null,null,null,null,null,null,null,null,"ZWO"]
[null,null,null,null,null,null,null,null,null,null,null,null,null,null,null,null,{"$f":"VLOOKUP(P36,'Input MCC'!B:C,2,0)","v":{"$error":"#N/A"}},{"$f":"VLOOKUP(P36,'Input MCC'!B:E,4,0)","v":{"$error":"#N/A"}},null,null,null,null,{"$f":"SUM(V36:V41)","v":0},null,null,null,null,null,null,null,null,{"$error":"#DIV/0!"},0,0,null,"","","","","","","","","","",null,null,null,null,null,null,null,null,null,null,null,null,null,null,null,null,null,"ZWO"]
[null,null,null,null,null,null,null,null,null,null,null,null,null,null,null,null,{"$f":"VLOOKUP(P37,'Input MCC'!B:C,2,0)","v":{"$error":"#N/A"}},{"$f":"VLOOKUP(P37,'Input MCC'!B:E,4,0)","v":{"$error":"#N/A"}},null,null,null,null,null,null,null,null,null,null,null,null,null,{"$error":"#DIV/0!"},0,0,null,"","","","","","","","","","",null,null,null,null,null,null,null,null,null,null,null,null,null,null,null,null,null,"ZWO"]
[null,null,null,null,null,null,null,null,null,null,null,null,null,null,null,null,{"$f":"VLOOKUP(P38,'Input MCC'!B:C,2,0)","v":{"$error":"#N/A"}},{"$f":"VLOOKUP(P38,'Input MCC'!B:E,4,0)","v":{"$error":"#N/A"}},null,null,null,null,null,null,null,null,null,null,null,null,null,{"$error":"#DIV/0!"},0,0,null,"","","","","","","","","","",null,null,null,null,null,null,null,null,null,null,null,null,null,null,null,null,null,"ZWO"]
[null,null,null,null,null,null,null,null,null,null,null,null,null,null,null,null,{"$f":"VLOOKUP(P39,'Input MCC'!B:C,2,0)","v":{"$error":"#N/A"}},{"$f":"VLOOKUP(P39,'Input MCC'!B:E,4,0)","v":{"$error":"#N/A"}},null,null,null,null,null,null,null,null,null,null,null,null,null,{"$error":"#DIV/0!"},0,0,null,"","","","","","","","","","",null,null,null,null,null,null,null,null,null,null,null,null,null,null,null,null,null,"ZWO"]
[null,null,null,null,null,null,null,null,null,null,null,null,null,null,null,null,{"$f":"VLOOKUP(P40,'Input MCC'!B:C,2,0)","v":{"$error":"#N/A"}},{"$f":"VLOOKUP(P40,'Input MCC'!B:E,4,0)","v":{"$error":"#N/A"}},null,null,null,null,null,null,null,null,null,null,null,null,null,{"$error":"#DIV/0!"},0,0,null,"","","","","","","","","","",null,null,null,null,null,null,null,null,null,null,null,null,null,null,null,null,null,"ZWO"]
[null,null,null,null,null,null,null,null,null,null,null,null,null,null,null,null,{"$f":"VLOOKUP(P41,'Input MCC'!B:C,2,0)","v":{"$error":"#N/A"}},{"$f":"VLOOKUP(P41,'Input MCC'!B:E,4,0)","v":{"$error":"#N/A"}},null,null,null,null,null,null,null,null,null,null,null,null,null,{"$error":"#DIV/0!"},0,0,null,"","","","","","","","","","",null,null,null,null,null,null,null,null,null,null,null,null,null,null,null,null,null,"ZWO"]
[null,null,null,null,null,null,null,null,null,null,null,null,null,null,null,null,{"$f":"VLOOKUP(P42,'Input MCC'!B:C,2,0)","v":{"$error":"#N/A"}},{"$f":"VLOOKUP(P42,'Input MCC'!B:E,4,0)","v":{"$error":"#N/A"}},null,null,null,null,{"$f":"SUM(V42:V47)","v":0},null,null,null,null,null,null,null,null,{"$error":"#DIV/0!"},0,0,null,"","","","","","","","","","",null,null,null,null,null,null,null,null,null,null,null,null,null,null,null,null,null,"ZWO"]
[null,null,null,null,null,null,null,null,null,null,null,null,null,null,null,null,{"$f":"VLOOKUP(P43,'Input MCC'!B:C,2,0)","v":{"$error":"#N/A"}},{"$f":"VLOOKUP(P43,'Input MCC'!B:E,4,0)","v":{"$error":"#N/A"}},null,null,null,null,null,null,null,null,null,null,null,null,null,{"$error":"#DIV/0!"},0,0,null,"","","","","","","","","","",null,null,null,null,null,null,null,null,null,null,null,null,null,null,null,null,null,"ZWO"]
[null,null,null,null,null,null,null,null,null,null,null,null,null,null,null,null,{"$f":"VLOOKUP(P44,'Input MCC'!B:C,2,0)","v":{"$error":"#N/A"}},{"$f":"VLOOKUP(P44,'Input MCC'!B:E,4,0)","v":{"$error":"#N/A"}},null,null,null,null,null,null,null,null,null,null,null,null,null,{"$error":"#DIV/0!"},0,0,null,"","","","","","","","","","",null,null,null,null,null,null,null,null,null,null,null,null,null,null,null,null,null,"ZWO"]
[null,null,null,null,null,null,null,null,null,null,null,null,null,null,null,null,{"$f":"VLOOKUP(P45,'Input MCC'!B:C,2,0)","v":{"$error":"#N/A"}},{"$f":"VLOOKUP(P45,'Input MCC'!B:E,4,0)","v":{"$error":"#N/A"}},null,null,null,null,null,null,null,null,null,null,null,null,null,{"$error":"#DIV/0!"},0,0,null,"","","","","","","","","","",null,null,null,null,null,null,null,null,null,null,null,null,null,null,null,null,null,"ZWO"]
[null,null,null,null,null,null,null,null,null,null,null,null,null,null,null,null,{"$f":"VLOOKUP(P46,'Input MCC'!B:C,2,0)","v":{"$error":"#N/A"}},{"$f":"VLOOKUP(P46,'Input MCC'!B:E,4,0)","v":{"$error":"#N/A"}},null,null,null,null,null,null,null,null,null,null,null,null,null,{"$error":"#DIV/0!"},0,0,null,"","","","","","","","","","",null,null,null,null,null,null,null,null,null,null,null,null,null,null,null,null,null,"ZWO"]
[null,null,null,null,null,null,null,null,null,null,null,null,null,null,null,null,{"$f":"VLOOKUP(P47,'Input MCC'!B:C,2,0)","v":{"$error":"#N/A"}},{"$f":"VLOOKUP(P47,'Input MCC'!B:E,4,0)","v":{"$error":"#N/A"}},null,null,null,null,null,null,null,null,null,null,null,null,null,{"$error":"#DIV/0!"},0,0,null,"","","","","","","","","","",null,null,null,null,null,null,null,null,null,null,null,null,null,null,null,null,null,"ZWO"]
[null,null,null,null,null,null,null,null,null,null,null,null,null,null,null,null,{"$f":"VLOOKUP(P48,'Input MCC'!B:C,2,0)","v":{"$error":"#N/A"}},{"$f":"VLOOKUP(P48,'Input MCC'!B:E,4,0)","v":{"$error":"#N/A"}},null,null,null,null,{"$f":"SUM(V48:V53)","v":0},null,null,null,null,null,null,null,null,{"$error":"#DIV/0!"},0,0,null,"","","","","","","","","","",null,null,null,null,null,null,null,null,null,null,null,null,null,null,null,null,null,"ZWO"]
[null,null,null,null,null,null,null,null,null,null,null,null,null,null,null,null,{"$f":"VLOOKUP(P49,'Input MCC'!B:C,2,0)","v":{"$error":"#N/A"}},{"$f":"VLOOKUP(P49,'Input MCC'!B:E,4,0)","v":{"$error":"#N/A"}},null,null,null,null,null,null,null,null,null,null,null,null,null,{"$error":"#DIV/0!"},0,0,null,"","","","","","","","","","",null,null,null,null,null,null,null,null,null,null,null,null,null,null,null,null,null,"ZWO"]
[null,null,null,null,null,null,null,null,null,null,null,null,null,null,null,null,{"$f":"VLOOKUP(P50,'Input MCC'!B:C,2,0)","v":{"$error":"#N/A"}},{"$f":"VLOOKUP(P50,'Input MCC'!B:E,4,0)","v":{"$error":"#N/A"}},null,null,null,null,null,null,null,null,null,null,null,null,null,{"$error":"#DIV/0!"},0,0,null,"","","","","","","","","","",null,null,null,null,null,null,null,null,null,null,null,null,null,null,null,null,null,"ZWO"]
[null,null,null,null,null,null,null,null,null,null,null,null,null,null,null,null,{"$f":"VLOOKUP(P51,'Input MCC'!B:C,2,0)","v":{"$error":"#N/A"}},{"$f":"VLOOKUP(P51,'Input MCC'!B:E,4,0)","v":{"$error":"#N/A"}},null,null,null,null,null,null,null,null,null,null,null,null,null,{"$error":"#DIV/0!"},0,0,null,"","","","","","","","","","",null,null,null,null,null,null,null,null,null,null,null,null,null,null,null,null,null,"ZWO"]
[null,null,null,null,null,null,null,null,null,null,null,null,null,null,null,null,{"$f":"VLOOKUP(P52,'Input MCC'!B:C,2,0)","v":{"$error":"#N/A"}},{"$f":"VLOOKUP(P52,'Input MCC'!B:E,4,0)","v":{"$error":"#N/A"}},null,null,null,null,null,null,null,null,null,null,null,null,null,{"$error":"#DIV/0!"},0,0,null,"","","","","","","","","","",null,null,null,null,null,null,null,null,null,null,null,null,null,null,null,null,null,"ZWO"]
[null,null,null,null,null,null,null,null,null,null,null,null,null,null,null,null,{"$f":"VLOOKUP(P53,'Input MCC'!B:C,2,0)","v":{"$error":"#N/A"}},{"$f":"VLOOKUP(P53,'Input MCC'!B:E,4,0)","v":{"$error":"#N/A"}},null,null,null,null,null,null,null,null,null,null,null,null,null,{"$error":"#DIV/0!"},0,0,null,"","","","","","","","","","",null,null,null,null,null,null,null,null,null,null,null,null,null,null,null,null,null,"ZWO"]
[null,null,null,null,null,null,null,null,null,null,null,null,null,null,null,null,{"$f":"VLOOKUP(P54,'Input MCC'!B:C,2,0)","v":{"$error":"#N/A"}},{"$f":"VLOOKUP(P54,'Input MCC'!B:E,4,0)","v":{"$error":"#N/A"}},null,null,null,null,{"$f":"SUM(V54:V59)","v":0},null,null,null,null,null,null,null,null,{"$error":"#DIV/0!"},0,0,null,"","","","","","","","","","",null,null,null,null,null,null,null,null,null,null,null,null,null,null,null,null,null,"ZWO"]
[null,null,null,null,null,null,null,null,null,null,null,null,null,null,null,null,{"$f":"VLOOKUP(P55,'Input MCC'!B:C,2,0)","v":{"$error":"#N/A"}},{"$f":"VLOOKUP(P55,'Input MCC'!B:E,4,0)","v":{"$error":"#N/A"}},null,null,null,null,null,null,null,null,null,null,null,null,null,{"$error":"#DIV/0!"},0,0,null,"","","","","","","","","","",null,null,null,null,null,null,null,null,null,null,null,null,null,null,null,null,null,"ZWO"]
[null,null,null,null,null,null,null,null,null,null,null,null,null,null,null,null,{"$f":"VLOOKUP(P56,'Input MCC'!B:C,2,0)","v":{"$error":"#N/A"}},{"$f":"VLOOKUP(P56,'Input MCC'!B:E,4,0)","v":{"$error":"#N/A"}},null,null,null,null,null,null,null,null,null,null,null,null,null,{"$error":"#DIV/0!"},0,0,null,"","","","","","","","","","",null,null,null,null,null,null,null,null,null,null,null,null,null,null,null,null,null,"ZWO"]
[null,null,null,null,null,null,null,null,null,null,null,null,null,null,null,null,{"$f":"VLOOKUP(P57,'Input MCC'!B:C,2,0)","v":{"$error":"#N/A"}},{"$f":"VLOOKUP(P57,'Input MCC'!B:E,4,0)","v":{"$error":"#N/A"}},null,null,null,null,null,null,null,null,null,null,null,null,null,{"$error":"#DIV/0!"},0,0,null,"","","","","","","","","","",null,null,null,null,null,null,null,null,null,null,null,null,null,null,null,null,null,"ZWO"]
[null,null,null,null,null,null,null,null,null,null,null,null,null,null,null,null,{"$f":"VLOOKUP(P58,'Input MCC'!B:C,2,0)","v":{"$error":"#N/A"}},{"$f":"VLOOKUP(P58,'Input MCC'!B:E,4,0)","v":{"$error":"#N/A"}},null,null,null,null,null,null,null,null,null,null,null,null,null,{"$error":"#DIV/0!"},0,0,null,"","","","","","","","","","",null,null,null,null,null,null,null,null,null,null,null,null,null,null,null,null,null,"ZWO"]
[null,null,null,null,null,null,null,null,null,null,null,null,null,null,null,null,{"$f":"VLOOKUP(P59,'Input MCC'!B:C,2,0)","v":{"$error":"#N/A"}},{"$f":"VLOOKUP(P59,'Input MCC'!B:E,4,0)","v":{"$error":"#N/A"}},null,null,null,null,null,null,null,null,null,null,null,null,null,{"$error":"#DIV/0!"},0,0,null,"","","","","","","","","","",null,null,null,null,null,null,null,null,null,null,null,null,null,null,null,null,null,"ZWO"]
[null,null,null,null,null,null,null,null,null,null,null,null,null,null,null,null,{"$f":"VLOOKUP(P60,'Input MCC'!B:C,2,0)","v":{"$error":"#N/A"}},{"$f":"VLOOKUP(P60,'Input MCC'!B:E,4,0)","v":{"$error":"#N/A"}},null,null,null,null,{"$f":"SUM(V60:V65)","v":0},null,null,null,null,null,null,null,null,{"$error":"#DIV/0!"},0,0,null,"","","","","","","","","","",null,null,null,null,null,null,null,null,null,null,null,null,null,null,null,null,null,"ZWO"]
[null,null,null,null,null,null,null,null,null,null,null,null,null,null,null,null,{"$f":"VLOOKUP(P61,'Input MCC'!B:C,2,0)","v":{"$error":"#N/A"}},{"$f":"VLOOKUP(P61,'Input MCC'!B:E,4,0)","v":{"$error":"#N/A"}},null,null,null,null,null,null,null,null,null,null,null,null,null,{"$error":"#DIV/0!"},0,0,null,"","","","","","","","","","",null,null,null,null,null,null,null,null,null,null,null,null,null,null,null,null,null,"ZWO"]
[null,null,null,null,null,null,null,null,null,null,null,null,null,null,null,null,{"$f":"VLOOKUP(P62,'Input MCC'!B:C,2,0)","v":{"$error":"#N/A"}},{"$f":"VLOOKUP(P62,'Input MCC'!B:E,4,0)","v":{"$error":"#N/A"}},null,null,null,null,null,null,null,null,null,null,null,null,null,{"$error":"#DIV/0!"},0,0,null,"","","","","","","","","","",null,null,null,null,null,null,null,null,null,null,null,null,null,null,null,null,null,"ZWO"]
[null,null,null,null,null,null,null,null,null,null,null,null,null,null,null,null,{"$f":"VLOOKUP(P63,'Input MCC'!B:C,2,0)","v":{"$error":"#N/A"}},{"$f":"VLOOKUP(P63,'Input MCC'!B:E,4,0)","v":{"$error":"#N/A"}},null,null,null,null,null,null,null,null,null,null,null,null,null,{"$error":"#DIV/0!"},0,0,null,"","","","","","","","","","",null,null,null,null,null,null,null,null,null,null,null,null,null,null,null,null,null,"ZWO"]
[null,null,null,null,null,null,null,null,null,null,null,null,null,null,null,null,{"$f":"VLOOKUP(P64,'Input MCC'!B:C,2,0)","v":{"$error":"#N/A"}},{"$f":"VLOOKUP(P64,'Input MCC'!B:E,4,0)","v":{"$error":"#N/A"}},null,null,null,null,null,null,null,null,null,null,null,null,null,{"$error":"#DIV/0!"},0,0,null,"","","","","","","","","","",null,null,null,null,null,null,null,null,null,null,null,null,null,null,null,null,null,"ZWO"]
[null,null,null,null,null,null,null,null,null,null,null,null,null,null,null,null,{"$f":"VLOOKUP(P65,'Input MCC'!B:C,2,0)","v":{"$error":"#N/A"}},{"$f":"VLOOKUP(P65,'Input MCC'!B:E,4,0)","v":{"$error":"#N/A"}},null,null,null,null,null,null,null,null,null,null,null,null,null,{"$error":"#DIV/0!"},0,0,null,"","","","","","","","","","",null,null,null,null,null,null,null,null,null,null,null,null,null,null,null,null,null,"ZWO"]
[null,null,null,null,null,null,null,null,null,null,null,null,null,null,null,null,{"$f":"VLOOKUP(P66,'Input MCC'!B:C,2,0)","v":{"$error":"#N/A"}},{"$f":"VLOOKUP(P66,'Input MCC'!B:E,4,0)","v":{"$error":"#N/A"}},null,null,null,null,{"$f":"SUM(V66:V71)","v":0},null,null,null,null,null,null,null,null,{"$error":"#DIV/0!"},0,0,null,"","","","","","","","","","",null,null,null,null,null,null,null,null,null,null,null,null,null,null,null,null,null,"ZWO"]
[null,null,null,null,null,null,null,null,null,null,null,null,null,null,null,null,{"$f":"VLOOKUP(P67,'Input MCC'!B:C,2,0)","v":{"$error":"#N/A"}},{"$f":"VLOOKUP(P67,'Input MCC'!B:E,4,0)","v":{"$error":"#N/A"}},null,null,null,null,null,null,null,null,null,null,null,null,null,{"$error":"#DIV/0!"},0,0,null,"","","","","","","","","","",null,null,null,null,null,null,null,null,null,null,null,null,null,null,null,null,null,"ZWO"]
[null,null,null,null,null,null,null,null,null,null,null,null,null,null,null,null,{"$f":"VLOOKUP(P68,'Input MCC'!B:C,2,0)","v":{"$error":"#N/A"}},{"$f":"VLOOKUP(P68,'Input MCC'!B:E,4,0)","v":{"$error":"#N/A"}},null,null,null,null,null,null,null,null,null,null,null,null,null,{"$error":"#DIV/0!"},0,0,null,"","","","","","","","","","",null,null,null,null,null,null,null,null,null,null,null,null,null,null,null,null,null,"ZWO"]
[null,null,null,null,null,null,null,null,null,null,null,null,null,null,null,null,{"$f":"VLOOKUP(P69,'Input MCC'!B:C,2,0)","v":{"$error":"#N/A"}},{"$f":"VLOOKUP(P69,'Input MCC'!B:E,4,0)","v":{"$error":"#N/A"}},null,null,null,null,null,null,null,null,null,null,null,null,null,{"$error":"#DIV/0!"},0,0,null,"","","","","","","","","","",null,null,null,null,null,null,null,null,null,null,null,null,null,null,null,null,null,"ZWO"]
[null,null,null,null,null,null,null,null,null,null,null,null,null,null,null,null,{"$f":"VLOOKUP(P70,'Input MCC'!B:C,2,0)","v":{"$error":"#N/A"}},{"$f":"VLOOKUP(P70,'Input MCC'!B:E,4,0)","v":{"$error":"#N/A"}},null,null,null,null,null,null,null,null,null,null,null,null,null,{"$error":"#DIV/0!"},0,0,null,{"$f":"IF(AI70 <> \"\",\n    IF(ISNUMBER(VALUE(LEFT(AI70, FIND(\"%\", AI70)-1))),\n        VALUE(LEFT(AI70, FIND(\"%\", AI70)-1)),\n        \"Invalid format\"),\n    \"\")","v":""},{"$f":"IF(AI70 <> \"\",\n    IF(ISNUMBER(VALUE(LEFT(AI70, FIND(\"%\", AI70)-1))) * ISNUMBER(FIND(\"%\", AI70 & \"wol\")) > 0,\n        TRIM(MID(AI70, FIND(\"%\", AI70)+1, FIND(\"/\", AI70 & \"/\")-FIND(\"%\", AI70)-1)),\n        \"Invalid format\"),\n    \"\")","v":""},{"$f":"IF(AI70 <> \"\",\n    IF(ISNUMBER(VALUE(MID(AI70, FIND(\"/\", AI70) + 1, FIND(\"%\", AI70, FIND(\"/\", AI70)) - FIND(\"/\", AI70) - 1))),\n        VALUE(MID(AI70, FIND(\"/\", AI70) + 1, FIND(\"%\", AI70, FIND(\"/\", AI70)) - FIND(\"/\", AI70) - 1)),\n        \"\"),\n    \"\")","v":""},{"$f":"IF(AI70 <> \"\",\n    IFERROR(TRIM(MID(AI70, FIND(\"%\", AI70, FIND(\"/\", AI70)+1)+2,\n        IFERROR(FIND(\"/\", AI70 & \"/\", FIND(\"/\", AI70)+1)-FIND(\"%\", AI70, FIND(\"/\", AI70)+1)-2, LEN(AI70)-FIND(\"%\", AI70, FIND(\"/\", AI70)+1)-1))),\n        \"\"),\n    \"\")","v":""},{"$f":"IF(AI70 <> \"\",\n    IF(ISNUMBER(VALUE(MID(AI70, FIND(\"/\", AI70, FIND(\"/\", AI70)+1) + 1, FIND(\"%\", AI70, FIND(\"/\", AI70, FIND(\"/\", AI70)+1)) - FIND(\"/\", AI70, FIND(\"/\", AI70)+1) - 1))),\n        VALUE(MID(AI70, FIND(\"/\", AI70, FIND(\"/\", AI70)+1) + 1, FIND(\"%\", AI70, FIND(\"/\", AI70, FIND(\"/\", AI70)+1)) - FIND(\"/\", AI70, FIND(\"/\", AI70)+1) - 1)),\n        \"\"),\n    \"\")","v":""},{"$f":"IF(AI70 <> \"\",\n    IFERROR(\n        TRIM(MID(AI70,\n            FIND(\"%\", AI70, FIND(\"%\", AI70, FIND(\"%\", AI70)+1)+1)+1,\n            FIND(\"/\", AI70 & \"/\", FIND(\"%\", AI70, FIND(\"%\", AI70, FIND(\"%\", AI70)+1)+1))-FIND(\"%\", AI70, FIND(\"%\", AI70, FIND(\"%\", AI70)+1)+1)-1)\n        ),\n        \"\"\n    ),\n    \"\"\n)","v":""},{"$f":"IF(AI70 <> \"\",\n    IF(ISNUMBER(VALUE(MID(AI70, FIND(\"/\", AI70, FIND(\"/\", AI70, FIND(\"/\", AI70)+1)+1) + 1, FIND(\"%\", AI70, FIND(\"/\", AI70, FIND(\"/\", AI70, FIND(\"/\", AI70)+1)+1)) - FIND(\"/\", AI70, FIND(\"/\", AI70, FIND(\"/\", AI70)+1)+1) - 1))),\n        VALUE(MID(AI70, FIND(\"/\", AI70, FIND(\"/\", AI70, FIND(\"/\", AI70)+1)+1) + 1, FIND(\"%\", AI70, FIND(\"/\", AI70, FIND(\"/\", AI70, FIND(\"/\", AI70)+1)+1)) - FIND(\"/\", AI70, FIND(\"/\", AI70, FIND(\"/\", AI70)+1)+1) - 1)),\n        \"\"),\n    \"\")","v":""},{"$f":"IF(AI70 <> \"\",\n    IFERROR(TRIM(MID(AI70, FIND(\"%\", AI70, FIND(\"/\", AI70, FIND(\"/\", AI70, FIND(\"/\", AI70)+1)+1)+1)+2,\n        IFERROR(FIND(\"/\", AI70, FIND(\"/\", AI70, FIND(\"/\", AI70, FIND(\"/\", AI70)+1)+1)+1)-FIND(\"%\", AI70, FIND(\"/\", AI70, FIND(\"/\", AI70, FIND(\"/\", AI70)+1)+1)+1)-2, LEN(AI70)-FIND(\"%\", AI70, FIND(\"/\", AI70, FIND(\"/\", AI70, FIND(\"/\", AI70)+1)+1)+1)-1))),\n        \"\"),\n    \"\")","v":""},{"$f":"IF(AI70 <> \"\",\n    IF(ISNUMBER(VALUE(MID(AI70, FIND(\"/\", AI70, FIND(\"/\", AI70, FIND(\"/\", AI70, FIND(\"/\", AI70)+1)+1)+1) + 1, FIND(\"%\", AI70, FIND(\"/\", AI70, FIND(\"/\", AI70, FIND(\"/\", AI70, FIND(\"/\", AI70)+1)+1)+1)) - FIND(\"/\", AI70, FIND(\"/\", AI70, FIND(\"/\", AI70, FIND(\"/\", AI70)+1)+1)+1) - 1))),\n        VALUE(MID(AI70, FIND(\"/\", AI70, FIND(\"/\", AI70, FIND(\"/\", AI70, FIND(\"/\", AI70)+1)+1)+1) + 1, FIND(\"%\", AI70, FIND(\"/\", AI70, FIND(\"/\", AI70, FIND(\"/\", AI70, FIND(\"/\", AI70)+1)+1)+1)) - FIND(\"/\", AI70, FIND(\"/\", AI70, FIND(\"/\", AI70, FIND(\"/\", AI70)+1)+1)+1) - 1)),\n        \"\"),\n    \"\")","v":""},{"$f":"IF(AI70 = \"\", \"\",\n    IFERROR(TRIM(\n        MID(\n            AI70,\n            FIND(\"%\", AI70, FIND(\"/\", AI70, FIND(\"/\", AI70, FIND(\"/\", AI70, FIND(\"/\", AI70)+1)+1)+1)+1) + 1,\n            FIND(\"/\", AI70 & \"/\", FIND(\"%\", AI70, FIND(\"/\", AI70, FIND(\"/\", AI70, FIND(\"/\", AI70, FIND(\"/\", AI70)+1)+1)+1)+1)) -\n            FIND(\"%\", AI70, FIND(\"/\", AI70, FIND(\"/\", AI70, FIND(\"/\", AI70, FIND(\"/\", AI70)+1)+1)+1)+1) - 1\n        )\n    ),\n    \"\")\n)","v":""},null,null,null,null,null,null,null,null,null,null,null,null,null,null,null,null,null,"ZWO"]
[null,null,null,null,null,null,null,null,null,null,null,null,null,null,null,null,{"$f":"VLOOKUP(P71,'Input MCC'!B:C,2,0)","v":{"$error":"#N/A"}},{"$f":"VLOOKUP(P71,'Input MCC'!B:E,4,0)","v":{"$error":"#N/A"}},null,null,null,null,null,null,null,null,null,null,null,null,null,{"$f":"AE71/AC71","v":{"$error":"#DIV/0!"}},0,0,null,"","","","","","","","","","",null,null,null,null,null,null,null,null,null,null,null,null,null,null,null,null,null,"ZWO"]
[null,null,null,null,null,null,null,null,null,null,null,null,null,null,null,null,{"$f":"VLOOKUP(P72,'Input MCC'!B:C,2,0)","v":{"$error":"#N/A"}},{"$f":"VLOOKUP(P72,'Input MCC'!B:E,4,0)","v":{"$error":"#N/A"}},null,null,null,null,{"$f":"SUM(V72:V77)","v":0},null,null,null,null,null,null,null,null,{"$error":"#DIV/0!"},{"$f":"V72*AC72","v":0},{"$f":"V72*AE72","v":0},null,"","","","","","","","","","",null,null,null,null,null,null,null,null,null,null,null,null,null,null,null,null,null,"ZWO"]
[null,null,null,null,null,null,null,null,null,null,null,null,null,null,null,null,{"$f":"VLOOKUP(P73,'Input MCC'!B:C,2,0)","v":{"$error":"#N/A"}},{"$f":"VLOOKUP(P73,'Input MCC'!B:E,4,0)","v":{"$error":"#N/A"}},null,null,null,null,null,null,null,null,null,null,null,null,null,{"$error":"#DIV/0!"},0,0,null,"","","","","","","","","","",null,null,null,null,null,null,null,null,null,null,null,null,null,null,null,null,null,"ZWO"]
[null,null,null,null,null,null,null,null,null,null,null,null,null,null,null,null,{"$f":"VLOOKUP(P74,'Input MCC'!B:C,2,0)","v":{"$error":"#N/A"}},{"$f":"VLOOKUP(P74,'Input MCC'!B:E,4,0)","v":{"$error":"#N/A"}},null,null,null,null,null,null,null,null,null,null,null,null,null,{"$error":"#DIV/0!"},0,0,null,"","","","","","","","","","",null,null,null,null,null,null,null,null,null,null,null,null,null,null,null,null,null,"ZWO"]
[null,null,null,null,null,null,null,null,null,null,null,null,null,null,null,null,{"$f":"VLOOKUP(P75,'Input MCC'!B:C,2,0)","v":{"$error":"#N/A"}},{"$f":"VLOOKUP(P75,'Input MCC'!B:E,4,0)","v":{"$error":"#N/A"}},null,null,null,null,null,null,null,null,null,null,null,null,null,{"$error":"#DIV/0!"},0,0,null,"","","","","","","","","","",null,null,null,null,null,null,null,null,null,null,null,null,null,null,null,null,null,"ZWO"]
[null,null,null,null,null,null,null,null,null,null,null,null,null,null,null,null,{"$f":"VLOOKUP(P76,'Input MCC'!B:C,2,0)","v":{"$error":"#N/A"}},{"$f":"VLOOKUP(P76,'Input MCC'!B:E,4,0)","v":{"$error":"#N/A"}},null,null,null,null,null,null,null,null,null,null,null,null,null,{"$error":"#DIV/0!"},0,0,null,"","","","","","","","","","",null,null,null,null,null,null,null,null,null,null,null,null,null,null,null,null,null,"ZWO"]
[null,null,null,null,null,null,null,null,null,null,null,null,null,null,null,null,{"$f":"VLOOKUP(P77,'Input MCC'!B:C,2,0)","v":{"$error":"#N/A"}},{"$f":"VLOOKUP(P77,'Input MCC'!B:E,4,0)","v":{"$error":"#N/A"}},null,null,null,null,null,null,null,null,null,null,null,null,null,{"$error":"#DIV/0!"},0,0,null,"","","","","","","","","","",null,null,null,null,null,null,null,null,null,null,null,null,null,null,null,null,null,"ZWO"]
[null,null,null,null,null,null,null,null,null,null,null,null,null,null,null,null,{"$f":"VLOOKUP(P78,'Input MCC'!B:C,2,0)","v":{"$error":"#N/A"}},{"$f":"VLOOKUP(P78,'Input MCC'!B:E,4,0)","v":{"$error":"#N/A"}},null,null,null,null,{"$f":"SUM(V78:V83)","v":0},null,null,null,null,null,null,null,null,{"$error":"#DIV/0!"},0,0,null,"","","","","","","","","","",null,null,null,null,null,null,null,null,null,null,null,null,null,null,null,null,null,"ZWO"]
[null,null,null,null,null,null,null,null,null,null,null,null,null,null,null,null,{"$f":"VLOOKUP(P79,'Input MCC'!B:C,2,0)","v":{"$error":"#N/A"}},{"$f":"VLOOKUP(P79,'Input MCC'!B:E,4,0)","v":{"$error":"#N/A"}},null,null,null,null,null,null,null,null,null,null,null,null,null,{"$error":"#DIV/0!"},0,0,null,"","","","","","","","","","",null,null,null,null,null,null,null,null,null,null,null,null,null,null,null,null,null,"ZWO"]
[null,null,null,null,null,null,null,null,null,null,null,null,null,null,null,null,{"$f":"VLOOKUP(P80,'Input MCC'!B:C,2,0)","v":{"$error":"#N/A"}},{"$f":"VLOOKUP(P80,'Input MCC'!B:E,4,0)","v":{"$error":"#N/A"}},null,null,null,null,null,null,null,null,null,null,null,null,null,{"$error":"#DIV/0!"},0,0,null,"","","","","","","","","","",null,null,null,null,null,null,null,null,null,null,null,null,null,null,null,null,null,"ZWO"]
[null,null,null,null,null,null,null,null,null,null,null,null,null,null,null,null,{"$f":"VLOOKUP(P81,'Input MCC'!B:C,2,0)","v":{"$error":"#N/A"}},{"$f":"VLOOKUP(P81,'Input MCC'!B:E,4,0)","v":{"$error":"#N/A"}},null,null,null,null,null,null,null,null,null,null,null,null,null,{"$error":"#DIV/0!"},0,0,null,"","","","","","","","","","",null,null,null,null,null,null,null,null,null,null,null,null,null,null,null,null,null,"ZWO"]
[null,null,null,null,null,null,null,null,null,null,null,null,null,null,null,null,{"$f":"VLOOKUP(P82,'Input MCC'!B:C,2,0)","v":{"$error":"#N/A"}},{"$f":"VLOOKUP(P82,'Input MCC'!B:E,4,0)","v":{"$error":"#N/A"}},null,null,null,null,null,null,null,null,null,null,null,null,null,{"$error":"#DIV/0!"},0,0,null,"","","","","","","","","","",null,null,null,null,null,null,null,null,null,null,null,null,null,null,null,null,null,"ZWO"]
[null,null,null,null,null,null,null,null,null,null,null,null,null,null,null,null,{"$f":"VLOOKUP(P83,'Input MCC'!B:C,2,0)","v":{"$error":"#N/A"}},{"$f":"VLOOKUP(P83,'Input MCC'!B:E,4,0)","v":{"$error":"#N/A"}},null,null,null,null,null,null,null,null,null,null,null,null,null,{"$error":"#DIV/0!"},0,0,null,"","","","","","","","","","",null,null,null,null,null,null,null,null,null,null,null,null,null,null,null,null,null,"ZWO"]
[null,null,null,null,null,null,null,null,null,null,null,null,null,null,null,null,{"$f":"VLOOKUP(P84,'Input MCC'!B:C,2,0)","v":{"$error":"#N/A"}},{"$f":"VLOOKUP(P84,'Input MCC'!B:E,4,0)","v":{"$error":"#N/A"}},null,null,null,null,{"$f":"SUM(V84:V89)","v":0},null,null,null,null,null,null,null,null,{"$error":"#DIV/0!"},0,0,null,"","","","","","","","","","",null,null,null,null,null,null,null,null,null,null,null,null,null,null,null,null,null,"ZWO"]
[null,null,null,null,null,null,null,null,null,null,null,null,null,null,null,null,{"$f":"VLOOKUP(P85,'Input MCC'!B:C,2,0)","v":{"$error":"#N/A"}},{"$f":"VLOOKUP(P85,'Input MCC'!B:E,4,0)","v":{"$error":"#N/A"}},null,null,null,null,null,null,null,null,null,null,null,null,null,{"$error":"#DIV/0!"},0,0,null,"","","","","","","","","","",null,null,null,null,null,null,null,null,null,null,null,null,null,null,null,null,null,"ZWO"]
[null,null,null,null,null,null,null,null,null,null,null,null,null,null,null,null,{"$f":"VLOOKUP(P86,'Input MCC'!B:C,2,0)","v":{"$error":"#N/A"}},{"$f":"VLOOKUP(P86,'Input MCC'!B:E,4,0)","v":{"$error":"#N/A"}},null,null,null,null,null,null,null,null,null,null,null,null,null,{"$error":"#DIV/0!"},0,0,null,"","","","","","","","","","",null,null,null,null,null,null,null,null,null,null,null,null,null,null,null,null,null,"ZWO"]
[null,null,null,null,null,null,null,null,null,null,null,null,null,null,null,null,{"$f":"VLOOKUP(P87,'Input MCC'!B:C,2,0)","v":{"$error":"#N/A"}},{"$f":"VLOOKUP(P87,'Input MCC'!B:E,4,0)","v":{"$error":"#N/A"}},null,null,null,null,null,null,null,null,null,null,null,null,null,{"$error":"#DIV/0!"},0,0,null,"","","","","","","","","","",null,null,null,null,null,null,null,null,null,null,null,null,null,null,null,null,null,"ZWO"]
[null,null,null,null,null,null,null,null,null,null,null,null,null,null,null,null,{"$f":"VLOOKUP(P88,'Input MCC'!B:C,2,0)","v":{"$error":"#N/A"}},{"$f":"VLOOKUP(P88,'Input MCC'!B:E,4,0)","v":{"$error":"#N/A"}},null,null,null,null,null,null,null,null,null,null,null,null,null,{"$error":"#DIV/0!"},0,0,null,"","","","","","","","","","",null,null,null,null,null,null,null,null,null,null,null,null,null,null,null,null,null,"ZWO"]
[null,null,null,null,null,null,null,null,null,null,null,null,null,null,null,null,{"$f":"VLOOKUP(P89,'Input MCC'!B:C,2,0)","v":{"$error":"#N/A"}},{"$f":"VLOOKUP(P89,'Input MCC'!B:E,4,0)","v":{"$error":"#N/A"}},null,null,null,null,null,null,null,null,null,null,null,null,null,{"$error":"#DIV/0!"},0,0,null,"","","","","","","","","","",null,null,null,null,null,null,null,null,null,null,null,null,null,null,null,null,null,"ZWO"]
[null,null,null,null,null,null,null,null,null,null,null,null,null,null,null,null,{"$f":"VLOOKUP(P90,'Input MCC'!B:C,2,0)","v":{"$error":"#N/A"}},{"$f":"VLOOKUP(P90,'Input MCC'!B:E,4,0)","v":{"$error":"#N/A"}},null,null,null,null,{"$f":"SUM(V90:V95)","v":0},null,null,null,null,null,null,null,null,{"$error":"#DIV/0!"},0,0,null,"","","","","","","","","","",null,null,null,null,null,null,null,null,null,null,null,null,null,null,null,null,null,"ZWO"]
[null,null,null,null,null,null,null,null,null,null,null,null,null,null,null,null,{"$f":"VLOOKUP(P91,'Input MCC'!B:C,2,0)","v":{"$error":"#N/A"}},{"$f":"VLOOKUP(P91,'Input MCC'!B:E,4,0)","v":{"$error":"#N/A"}},null,null,null,null,null,null,null,null,null,null,null,null,null,{"$error":"#DIV/0!"},0,0,null,"","","","","","","","","","",null,null,null,null,null,null,null,null,null,null,null,null,null,null,null,null,null,"ZWO"]
[null,null,null,null,null,null,null,null,null,null,null,null,null,null,null,null,{"$f":"VLOOKUP(P92,'Input MCC'!B:C,2,0)","v":{"$error":"#N/A"}},{"$f":"VLOOKUP(P92,'Input MCC'!B:E,4,0)","v":{"$error":"#N/A"}},null,null,null,null,null,null,null,null,null,null,null,null,null,{"$error":"#DIV/0!"},0,0,null,"","","","","","","","","","",null,null,null,null,null,null,null,null,null,null,null,null,null,null,null,null,null,"ZWO"]
[null,null,null,null,null,null,null,null,null,null,null,null,null,null,null,null,{"$f":"VLOOKUP(P93,'Input MCC'!B:C,2,0)","v":{"$error":"#N/A"}},{"$f":"VLOOKUP(P93,'Input MCC'!B:E,4,0)","v":{"$error":"#N/A"}},null,null,null,null,null,null,null,null,null,null,null,null,null,{"$error":"#DIV/0!"},0,0,null,"","","","","","","","","","",null,null,null,null,null,null,null,null,null,null,null,null,null,null,null,null,null,"ZWO"]
[null,null,null,null,null,null,null,null,null,null,null,null,null,null,null,null,{"$f":"VLOOKUP(P94,'Input MCC'!B:C,2,0)","v":{"$error":"#N/A"}},{"$f":"VLOOKUP(P94,'Input MCC'!B:E,4,0)","v":{"$error":"#N/A"}},null,null,null,null,null,null,null,null,null,null,null,null,null,{"$error":"#DIV/0!"},0,0,null,"","","","","","","","","","",null,null,null,null,null,null,null,null,null,null,null,null,null,null,null,null,null,"ZWO"]
[null,null,null,null,null,null,null,null,null,null,null,null,null,null,null,null,{"$f":"VLOOKUP(P95,'Input MCC'!B:C,2,0)","v":{"$error":"#N/A"}},{"$f":"VLOOKUP(P95,'Input MCC'!B:E,4,0)","v":{"$error":"#N/A"}},null,null,null,null,null,null,null,null,null,null,null,null,null,{"$error":"#DIV/0!"},0,0,null,"","","","","","","","","","",null,null,null,null,null,null,null,null,null,null,null,null,null,null,null,null,null,"ZWO"]
[null,null,null,null,null,null,null,null,null,null,null,null,null,null,null,null,{"$f":"VLOOKUP(P96,'Input MCC'!B:C,2,0)","v":{"$error":"#N/A"}},{"$f":"VLOOKUP(P96,'Input MCC'!B:E,4,0)","v":{"$error":"#N/A"}},null,null,null,null,{"$f":"SUM(V96:V101)","v":0},null,null,null,null,null,null,null,null,{"$error":"#DIV/0!"},0,0,null,"","","","","","","","","","",null,null,null,null,null,null,null,null,null,null,null,null,null,null,null,null,null,"ZWO"]
[null,null,null,null,null,null,null,null,null,null,null,null,null,null,null,null,{"$f":"VLOOKUP(P97,'Input MCC'!B:C,2,0)","v":{"$error":"#N/A"}},{"$f":"VLOOKUP(P97,'Input MCC'!B:E,4,0)","v":{"$error":"#N/A"}},null,null,null,null,null,null,null,null,null,null,null,null,null,{"$error":"#DIV/0!"},0,0,null,"","","","","","","","","","",null,null,null,null,null,null,null,null,null,null,null,null,null,null,null,null,null,"ZWO"]
[null,null,null,null,null,null,null,null,null,null,null,null,null,null,null,null,{"$f":"VLOOKUP(P98,'Input MCC'!B:C,2,0)","v":{"$error":"#N/A"}},{"$f":"VLOOKUP(P98,'Input MCC'!B:E,4,0)","v":{"$error":"#N/A"}},null,null,null,null,null,null,null,null,null,null,null,null,null,{"$error":"#DIV/0!"},0,0,null,"","","","","","","","","","",null,null,null,null,null,null,null,null,null,null,null,null,null,null,null,null,null,"ZWO"]
[null,null,null,null,null,null,null,null,null,null,null,null,null,null,null,null,{"$f":"VLOOKUP(P99,'Input MCC'!B:C,2,0)","v":{"$error":"#N/A"}},{"$f":"VLOOKUP(P99,'Input MCC'!B:E,4,0)","v":{"$error":"#N/A"}},null,null,null,null,null,null,null,null,null,null,null,null,null,{"$error":"#DIV/0!"},0,0,null,"","","","","","","","","","",null,null,null,null,null,null,null,null,null,null,null,null,null,null,null,null,null,"ZWO"]
[null,null,null,null,null,null,null,null,null,null,null,null,null,null,null,null,{"$f":"VLOOKUP(P100,'Input MCC'!B:C,2,0)","v":{"$error":"#N/A"}},{"$f":"VLOOKUP(P100,'Input MCC'!B:E,4,0)","v":{"$error":"#N/A"}},null,null,null,null,null,null,null,null,null,null,null,null,null,{"$error":"#DIV/0!"},0,0,null,"","","","","","","","","","",null,null,null,null,null,null,null,null,null,null,null,null,null,null,null,null,null,"ZWO"]
[null,null,null,null,null,null,null,null,null,null,null,null,null,null,null,null,{"$f":"VLOOKUP(P101,'Input MCC'!B:C,2,0)","v":{"$error":"#N/A"}},{"$f":"VLOOKUP(P101,'Input MCC'!B:E,4,0)","v":{"$error":"#N/A"}},null,null,null,null,null,null,null,null,null,null,null,null,null,{"$error":"#DIV/0!"},0,0,null,"","","","","","","","","","",null,null,null,null,null,null,null,null,null,null,null,null,null,null,null,null,null,"ZWO"]
[null,null,null,null,null,null,null,null,null,null,null,null,null,null,null,null,{"$f":"VLOOKUP(P102,'Input MCC'!B:C,2,0)","v":{"$error":"#N/A"}},{"$f":"VLOOKUP(P102,'Input MCC'!B:E,4,0)","v":{"$error":"#N/A"}},null,null,null,null,{"$f":"SUM(V102:V107)","v":0},null,null,null,null,null,null,null,null,{"$error":"#DIV/0!"},0,0,null,"","","","","","","","","","",null,null,null,null,null,null,null,null,null,null,null,null,null,null,null,null,null,"ZWO"]
[null,null,null,null,null,null,null,null,null,null,null,null,null,null,null,null,{"$f":"VLOOKUP(P103,'Input MCC'!B:C,2,0)","v":{"$error":"#N/A"}},{"$f":"VLOOKUP(P103,'Input MCC'!B:E,4,0)","v":{"$error":"#N/A"}},null,null,null,null,null,null,null,null,null,null,null,null,null,{"$error":"#DIV/0!"},0,0,null,"","","","","","","","","","",null,null,null,null,null,null,null,null,null,null,null,null,null,null,null,null,null,"ZWO"]
[null,null,null,null,null,null,null,null,null,null,null,null,null,null,null,null,{"$f":"VLOOKUP(P104,'Input MCC'!B:C,2,0)","v":{"$error":"#N/A"}},{"$f":"VLOOKUP(P104,'Input MCC'!B:E,4,0)","v":{"$error":"#N/A"}},null,null,null,null,null,null,null,null,null,null,null,null,null,{"$error":"#DIV/0!"},0,0,null,"","","","","","","","","","",null,null,null,null,null,null,null,null,null,null,null,null,null,null,null,null,null,"ZWO"]
[null,null,null,null,null,null,null,null,null,null,null,null,null,null,null,null,{"$f":"VLOOKUP(P105,'Input MCC'!B:C,2,0)","v":{"$error":"#N/A"}},{"$f":"VLOOKUP(P105,'Input MCC'!B:E,4,0)","v":{"$error":"#N/A"}},null,null,null,null,null,null,null,null,null,null,null,null,null,{"$error":"#DIV/0!"},0,0,null,"","","","","","","","","","",null,null,null,null,null,null,null,null,null,null,null,null,null,null,null,null,null,"ZWO"]
[null,null,null,null,null,null,null,null,null,null,null,null,null,null,null,null,{"$f":"VLOOKUP(P106,'Input MCC'!B:C,2,0)","v":{"$error":"#N/A"}},{"$f":"VLOOKUP(P106,'Input MCC'!B:E,4,0)","v":{"$error":"#N/A"}},null,null,null,null,null,null,null,null,null,null,null,null,null,{"$error":"#DIV/0!"},0,0,null,"","","","","","","","","","",null,null,null,null,null,null,null,null,null,null,null,null,null,null,null,null,null,"ZWO"]
[null,null,null,null,null,null,null,null,null,null,null,null,null,null,null,null,{"$f":"VLOOKUP(P107,'Input MCC'!B:C,2,0)","v":{"$error":"#N/A"}},{"$f":"VLOOKUP(P107,'Input MCC'!B:E,4,0)","v":{"$error":"#N/A"}},null,null,null,null,null,null,null,null,null,null,null,null,null,{"$error":"#DIV/0!"},0,0,null,"","","","","","","","","","",null,null,null,null,null,null,null,null,null,null,null,null,null,null,null,null,null,"ZWO"]
[null,null,null,null,null,null,null,null,null,null,null,null,null,null,null,null,{"$f":"VLOOKUP(P108,'Input MCC'!B:C,2,0)","v":{"$error":"#N/A"}},{"$f":"VLOOKUP(P108,'Input MCC'!B:E,4,0)","v":{"$error":"#N/A"}},null,null,null,null,{"$f":"SUM(V108:V113)","v":0},null,null,null,null,null,null,null,null,{"$error":"#DIV/0!"},0,0,null,"","","","","","","","","","",null,null,null,null,null,null,null,null,null,null,null,null,null,null,null,null,null,"ZWO"]
[null,null,null,null,null,null,null,null,null,null,null,null,null,null,null,null,{"$f":"VLOOKUP(P109,'Input MCC'!B:C,2,0)","v":{"$error":"#N/A"}},{"$f":"VLOOKUP(P109,'Input MCC'!B:E,4,0)","v":{"$error":"#N/A"}},null,null,null,null,null,null,null,null,null,null,null,null,null,{"$error":"#DIV/0!"},0,0,null,"","","","","","","","","","",null,null,null,null,null,null,null,null,null,null,null,null,null,null,null,null,null,"ZWO"]
[null,null,null,null,null,null,null,null,null,null,null,null,null,null,null,null,{"$f":"VLOOKUP(P110,'Input MCC'!B:C,2,0)","v":{"$error":"#N/A"}},{"$f":"VLOOKUP(P110,'Input MCC'!B:E,4,0)","v":{"$error":"#N/A"}},null,null,null,null,null,null,null,null,null,null,null,null,null,{"$error":"#DIV/0!"},0,0,null,"","","","","","","","","","",null,null,null,null,null,null,null,null,null,null,null,null,null,null,null,null,null,"ZWO"]
[null,null,null,null,null,null,null,null,null,null,null,null,null,null,null,null,{"$f":"VLOOKUP(P111,'Input MCC'!B:C,2,0)","v":{"$error":"#N/A"}},{"$f":"VLOOKUP(P111,'Input MCC'!B:E,4,0)","v":{"$error":"#N/A"}},null,null,null,null,null,null,null,null,null,null,null,null,null,{"$error":"#DIV/0!"},0,0,null,"","","","","","","","","","",null,null,null,null,null,null,null,null,null,null,null,null,null,null,null,null,null,"ZWO"]
[null,null,null,null,null,null,null,null,null,null,null,null,null,null,null,null,{"$f":"VLOOKUP(P112,'Input MCC'!B:C,2,0)","v":{"$error":"#N/A"}},{"$f":"VLOOKUP(P112,'Input MCC'!B:E,4,0)","v":{"$error":"#N/A"}},null,null,null,null,null,null,null,null,null,null,null,null,null,{"$error":"#DIV/0!"},0,0,null,"","","","","","","","","","",null,null,null,null,null,null,null,null,null,null,null,null,null,null,null,null,null,"ZWO"]
[null,null,null,null,null,null,null,null,null,null,null,null,null,null,null,null,{"$f":"VLOOKUP(P113,'Input MCC'!B:C,2,0)","v":{"$error":"#N/A"}},{"$f":"VLOOKUP(P113,'Input MCC'!B:E,4,0)","v":{"$error":"#N/A"}},null,null,null,null,null,null,null,null,null,null,null,null,null,{"$error":"#DIV/0!"},0,0,null,"","","","","","","","","","",null,null,null,null,null,null,null,null,null,null,null,null,null,null,null,null,null,"ZWO"]
[null,null,null,null,null,null,null,null,null,null,null,null,null,null,null,null,{"$f":"VLOOKUP(P114,'Input MCC'!B:C,2,0)","v":{"$error":"#N/A"}},{"$f":"VLOOKUP(P114,'Input MCC'!B:E,4,0)","v":{"$error":"#N/A"}},null,null,null,null,{"$f":"SUM(V114:V119)","v":0},null,null,null,null,null,null,null,null,{"$error":"#DIV/0!"},0,0,null,"","","","","","","","","","",null,null,null,null,null,null,null,null,null,null,null,null,null,null,null,null,null,"ZWO"]
[null,null,null,null,null,null,null,null,null,null,null,null,null,null,null,null,{"$f":"VLOOKUP(P115,'Input MCC'!B:C,2,0)","v":{"$error":"#N/A"}},{"$f":"VLOOKUP(P115,'Input MCC'!B:E,4,0)","v":{"$error":"#N/A"}},null,null,null,null,null,null,null,null,null,null,null,null,null,{"$error":"#DIV/0!"},0,0,null,"","","","","","","","","","",null,null,null,null,null,null,null,null,null,null,null,null,null,null,null,null,null,"ZWO"]
[null,null,null,null,null,null,null,null,null,null,null,null,null,null,null,null,{"$f":"VLOOKUP(P116,'Input MCC'!B:C,2,0)","v":{"$error":"#N/A"}},{"$f":"VLOOKUP(P116,'Input MCC'!B:E,4,0)","v":{"$error":"#N/A"}},null,null,null,null,null,null,null,null,null,null,null,null,null,{"$error":"#DIV/0!"},0,0,null,"","","","","","","","","","",null,null,null,null,null,null,null,null,null,null,null,null,null,null,null,null,null,"ZWO"]
[null,null,null,null,null,null,null,null,null,null,null,null,null,null,null,null,{"$f":"VLOOKUP(P117,'Input MCC'!B:C,2,0)","v":{"$error":"#N/A"}},{"$f":"VLOOKUP(P117,'Input MCC'!B:E,4,0)","v":{"$error":"#N/A"}},null,null,null,null,null,null,null,null,null,null,null,null,null,{"$error":"#DIV/0!"},0,0,null,"","","","","","","","","","",null,null,null,null,null,null,null,null,null,null,null,null,null,null,null,null,null,"ZWO"]
[null,null,null,null,null,null,null,null,null,null,null,null,null,null,null,null,{"$f":"VLOOKUP(P118,'Input MCC'!B:C,2,0)","v":{"$error":"#N/A"}},{"$f":"VLOOKUP(P118,'Input MCC'!B:E,4,0)","v":{"$error":"#N/A"}},null,null,null,null,null,null,null,null,null,null,null,null,null,{"$error":"#DIV/0!"},0,0,null,"","","","","","","","","","",null,null,null,null,null,null,null,null,null,null,null,null,null,null,null,null,null,"ZWO"]
[null,null,null,null,null,null,null,null,null,null,null,null,null,null,null,null,{"$f":"VLOOKUP(P119,'Input MCC'!B:C,2,0)","v":{"$error":"#N/A"}},{"$f":"VLOOKUP(P119,'Input MCC'!B:E,4,0)","v":{"$error":"#N/A"}},null,null,null,null,null,null,null,null,null,null,null,null,null,{"$error":"#DIV/0!"},0,0,null,"","","","","","","","","","",null,null,null,null,null,null,null,null,null,null,null,null,null,null,null,null,null,"ZWO"]
[null,null,null,null,null,null,null,null,null,null,null,null,null,null,null,null,{"$f":"VLOOKUP(P120,'Input MCC'!B:C,2,0)","v":{"$error":"#N/A"}},{"$f":"VLOOKUP(P120,'Input MCC'!B:E,4,0)","v":{"$error":"#N/A"}},null,null,null,null,{"$f":"SUM(V120:V125)","v":0},null,null,null,null,null,null,null,null,{"$error":"#DIV/0!"},0,0,null,"","","","","","","","","","",null,null,null,null,null,null,null,null,null,null,null,null,null,null,null,null,null,"ZWO"]
[null,null,null,null,null,null,null,null,null,null,null,null,null,null,null,null,{"$f":"VLOOKUP(P121,'Input MCC'!B:C,2,0)","v":{"$error":"#N/A"}},{"$f":"VLOOKUP(P121,'Input MCC'!B:E,4,0)","v":{"$error":"#N/A"}},null,null,null,null,null,null,null,null,null,null,null,null,null,{"$error":"#DIV/0!"},0,0,null,"","","","","","","","","","",null,null,null,null,null,null,null,null,null,null,null,null,null,null,null,null,null,"ZWO"]
[null,null,null,null,null,null,null,null,null,null,null,null,null,null,null,null,{"$f":"VLOOKUP(P122,'Input MCC'!B:C,2,0)","v":{"$error":"#N/A"}},{"$f":"VLOOKUP(P122,'Input MCC'!B:E,4,0)","v":{"$error":"#N/A"}},null,null,null,null,null,null,null,null,null,null,null,null,null,{"$error":"#DIV/0!"},0,0,null,"","","","","","","","","","",null,null,null,null,null,null,null,null,null,null,null,null,null,null,null,null,null,"ZWO"]
[null,null,null,null,null,null,null,null,null,null,null,null,null,null,null,null,{"$f":"VLOOKUP(P123,'Input MCC'!B:C,2,0)","v":{"$error":"#N/A"}},{"$f":"VLOOKUP(P123,'Input MCC'!B:E,4,0)","v":{"$error":"#N/A"}},null,null,null,null,null,null,null,null,null,null,null,null,null,{"$error":"#DIV/0!"},0,0,null,"","","","","","","","","","",null,null,null,null,null,null,null,null,null,null,null,null,null,null,null,null,null,"ZWO"]
[null,null,null,null,null,null,null,null,null,null,null,null,null,null,null,null,{"$f":"VLOOKUP(P124,'Input MCC'!B:C,2,0)","v":{"$error":"#N/A"}},{"$f":"VLOOKUP(P124,'Input MCC'!B:E,4,0)","v":{"$error":"#N/A"}},null,null,null,null,null,null,null,null,null,null,null,null,null,{"$error":"#DIV/0!"},0,0,null,"","","","","","","","","","",null,null,null,null,null,null,null,null,null,null,null,null,null,null,null,null,null,"ZWO"]
[null,null,null,null,null,null,null,null,null,null,null,null,null,null,null,null,{"$f":"VLOOKUP(P125,'Input MCC'!B:C,2,0)","v":{"$error":"#N/A"}},{"$f":"VLOOKUP(P125,'Input MCC'!B:E,4,0)","v":{"$error":"#N/A"}},null,null,null,null,null,null,null,null,null,null,null,null,null,{"$error":"#DIV/0!"},0,0,null,"","","","","","","","","","",null,null,null,null,null,null,null,null,null,null,null,null,null,null,null,null,null,"ZWO"]
[null,null,null,null,null,null,null,null,null,null,null,null,null,null,null,null,{"$f":"VLOOKUP(P126,'Input MCC'!B:C,2,0)","v":{"$error":"#N/A"}},{"$f":"VLOOKUP(P126,'Input MCC'!B:E,4,0)","v":{"$error":"#N/A"}},null,null,null,null,{"$f":"SUM(V126:V131)","v":0},null,null,null,null,null,null,null,null,{"$error":"#DIV/0!"},0,0,null,"","","","","","","","","","",null,null,null,null,null,null,null,null,null,null,null,null,null,null,null,null,null,"ZWO"]
[null,null,null,null,null,null,null,null,null,null,null,null,null,null,null,null,{"$f":"VLOOKUP(P127,'Input MCC'!B:C,2,0)","v":{"$error":"#N/A"}},{"$f":"VLOOKUP(P127,'Input MCC'!B:E,4,0)","v":{"$error":"#N/A"}},null,null,null,null,null,null,null,null,null,null,null,null,null,{"$error":"#DIV/0!"},0,0,null,"","","","","","","","","","",null,null,null,null,null,null,null,null,null,null,null,null,null,null,null,null,null,"ZWO"]
[null,null,null,null,null,null,null,null,null,null,null,null,null,null,null,null,{"$f":"VLOOKUP(P128,'Input MCC'!B:C,2,0)","v":{"$error":"#N/A"}},{"$f":"VLOOKUP(P128,'Input MCC'!B:E,4,0)","v":{"$error":"#N/A"}},null,null,null,null,null,null,null,null,null,null,null,null,null,{"$error":"#DIV/0!"},0,0,null,"","","","","","","","","","",null,null,null,null,null,null,null,null,null,null,null,null,null,null,null,null,null,"ZWO"]
[null,null,null,null,null,null,null,null,null,null,null,null,null,null,null,null,{"$f":"VLOOKUP(P129,'Input MCC'!B:C,2,0)","v":{"$error":"#N/A"}},{"$f":"VLOOKUP(P129,'Input MCC'!B:E,4,0)","v":{"$error":"#N/A"}},null,null,null,null,null,null,null,null,null,null,null,null,null,{"$error":"#DIV/0!"},0,0,null,"","","","","","","","","","",null,null,null,null,null,null,null,null,null,null,null,null,null,null,null,null,null,"ZWO"]
[null,null,null,null,null,null,null,null,null,null,null,null,null,null,null,null,{"$f":"VLOOKUP(P130,'Input MCC'!B:C,2,0)","v":{"$error":"#N/A"}},{"$f":"VLOOKUP(P130,'Input MCC'!B:E,4,0)","v":{"$error":"#N/A"}},null,null,null,null,null,null,null,null,null,null,null,null,null,{"$error":"#DIV/0!"},0,0,null,"","","","","","","","","","",null,null,null,null,null,null,null,null,null,null,null,null,null,null,null,null,null,"ZWO"]
[null,null,null,null,null,null,null,null,null,null,null,null,null,null,null,null,{"$f":"VLOOKUP(P131,'Input MCC'!B:C,2,0)","v":{"$error":"#N/A"}},{"$f":"VLOOKUP(P131,'Input MCC'!B:E,4,0)","v":{"$error":"#N/A"}},null,null,null,null,null,null,null,null,null,null,null,null,null,{"$error":"#DIV/0!"},0,0,null,"","","","","","","","","","",null,null,null,null,null,null,null,null,null,null,null,null,null,null,null,null,null,"ZWO"]
[null,null,null,null,null,null,null,null,null,null,null,null,null,null,null,null,{"$f":"VLOOKUP(P132,'Input MCC'!B:C,2,0)","v":{"$error":"#N/A"}},{"$f":"VLOOKUP(P132,'Input MCC'!B:E,4,0)","v":{"$error":"#N/A"}},null,null,null,null,{"$f":"SUM(V132:V137)","v":0},null,null,null,null,null,null,null,null,{"$error":"#DIV/0!"},0,0,null,"","","","","","","","","","",null,null,null,null,null,null,null,null,null,null,null,null,null,null,null,null,null,"ZWO"]
[null,null,null,null,null,null,null,null,null,null,null,null,null,null,null,null,{"$f":"VLOOKUP(P133,'Input MCC'!B:C,2,0)","v":{"$error":"#N/A"}},{"$f":"VLOOKUP(P133,'Input MCC'!B:E,4,0)","v":{"$error":"#N/A"}},null,null,null,null,null,null,null,null,null,null,null,null,null,{"$error":"#DIV/0!"},0,0,null,"","","","","","","","","","",null,null,null,null,null,null,null,null,null,null,null,null,null,null,null,null,null,"ZWO"]
[null,null,null,null,null,null,null,null,null,null,null,null,null,null,null,null,{"$f":"VLOOKUP(P134,'Input MCC'!B:C,2,0)","v":{"$error":"#N/A"}},{"$f":"VLOOKUP(P134,'Input MCC'!B:E,4,0)","v":{"$error":"#N/A"}},null,null,null,null,null,null,null,null,null,null,null,null,null,{"$error":"#DIV/0!"},0,0,null,{"$f":"IF(AI134 <> \"\",\n    IF(ISNUMBER(VALUE(LEFT(AI134, FIND(\"%\", AI134)-1))),\n        VALUE(LEFT(AI134, FIND(\"%\", AI134)-1)),\n        \"Invalid format\"),\n    \"\")","v":""},{"$f":"IF(AI134 <> \"\",\n    IF(ISNUMBER(VALUE(LEFT(AI134, FIND(\"%\", AI134)-1))) * ISNUMBER(FIND(\"%\", AI134 & \"wol\")) > 0,\n        TRIM(MID(AI134, FIND(\"%\", AI134)+1, FIND(\"/\", AI134 & \"/\")-FIND(\"%\", AI134)-1)),\n        \"Invalid format\"),\n    \"\")","v":""},{"$f":"IF(AI134 <> \"\",\n    IF(ISNUMBER(VALUE(MID(AI134, FIND(\"/\", AI134) + 1, FIND(\"%\", AI134, FIND(\"/\", AI134)) - FIND(\"/\", AI134) - 1))),\n        VALUE(MID(AI134, FIND(\"/\", AI134) + 1, FIND(\"%\", AI134, FIND(\"/\", AI134)) - FIND(\"/\", AI134) - 1)),\n        \"\"),\n    \"\")","v":""},{"$f":"IF(AI134 <> \"\",\n    IFERROR(TRIM(MID(AI134, FIND(\"%\", AI134, FIND(\"/\", AI134)+1)+2,\n        IFERROR(FIND(\"/\", AI134 & \"/\", FIND(\"/\", AI134)+1)-FIND(\"%\", AI134, FIND(\"/\", AI134)+1)-2, LEN(AI134)-FIND(\"%\", AI134, FIND(\"/\", AI134)+1)-1))),\n        \"\"),\n    \"\")","v":""},{"$f":"IF(AI134 <> \"\",\n    IF(ISNUMBER(VALUE(MID(AI134, FIND(\"/\", AI134, FIND(\"/\", AI134)+1) + 1, FIND(\"%\", AI134, FIND(\"/\", AI134, FIND(\"/\", AI134)+1)) - FIND(\"/\", AI134, FIND(\"/\", AI134)+1) - 1))),\n        VALUE(MID(AI134, FIND(\"/\", AI134, FIND(\"/\", AI134)+1) + 1, FIND(\"%\", AI134, FIND(\"/\", AI134, FIND(\"/\", AI134)+1)) - FIND(\"/\", AI134, FIND(\"/\", AI134)+1) - 1)),\n        \"\"),\n    \"\")","v":""},{"$f":"IF(AI134 <> \"\",\n    IFERROR(\n        TRIM(MID(AI134,\n            FIND(\"%\", AI134, FIND(\"%\", AI134, FIND(\"%\", AI134)+1)+1)+1,\n            FIND(\"/\", AI134 & \"/\", FIND(\"%\", AI134, FIND(\"%\", AI134, FIND(\"%\", AI134)+1)+1))-FIND(\"%\", AI134, FIND(\"%\", AI134, FIND(\"%\", AI134)+1)+1)-1)\n        ),\n        \"\"\n    ),\n    \"\"\n)","v":""},{"$f":"IF(AI134 <> \"\",\n    IF(ISNUMBER(VALUE(MID(AI134, FIND(\"/\", AI134, FIND(\"/\", AI134, FIND(\"/\", AI134)+1)+1) + 1, FIND(\"%\", AI134, FIND(\"/\", AI134, FIND(\"/\", AI134, FIND(\"/\", AI134)+1)+1)) - FIND(\"/\", AI134, FIND(\"/\", AI134, FIND(\"/\", AI134)+1)+1) - 1))),\n        VALUE(MID(AI134, FIND(\"/\", AI134, FIND(\"/\", AI134, FIND(\"/\", AI134)+1)+1) + 1, FIND(\"%\", AI134, FIND(\"/\", AI134, FIND(\"/\", AI134, FIND(\"/\", AI134)+1)+1)) - FIND(\"/\", AI134, FIND(\"/\", AI134, FIND(\"/\", AI134)+1)+1) - 1)),\n        \"\"),\n    \"\")","v":""},{"$f":"IF(AI134 <> \"\",\n    IFERROR(TRIM(MID(AI134, FIND(\"%\", AI134, FIND(\"/\", AI134, FIND(\"/\", AI134, FIND(\"/\", AI134)+1)+1)+1)+2,\n        IFERROR(FIND(\"/\", AI134, FIND(\"/\", AI134, FIND(\"/\", AI134, FIND(\"/\", AI134)+1)+1)+1)-FIND(\"%\", AI134, FIND(\"/\", AI134, FIND(\"/\", AI134, FIND(\"/\", AI134)+1)+1)+1)-2, LEN(AI134)-FIND(\"%\", AI134, FIND(\"/\", AI134, FIND(\"/\", AI134, FIND(\"/\", AI134)+1)+1)+1)-1))),\n        \"\"),\n    \"\")","v":""},{"$f":"IF(AI134 <> \"\",\n    IF(ISNUMBER(VALUE(MID(AI134, FIND(\"/\", AI134, FIND(\"/\", AI134, FIND(\"/\", AI134, FIND(\"/\", AI134)+1)+1)+1) + 1, FIND(\"%\", AI134, FIND(\"/\", AI134, FIND(\"/\", AI134, FIND(\"/\", AI134, FIND(\"/\", AI134)+1)+1)+1)) - FIND(\"/\", AI134, FIND(\"/\", AI134, FIND(\"/\", AI134, FIND(\"/\", AI134)+1)+1)+1) - 1))),\n        VALUE(MID(AI134, FIND(\"/\", AI134, FIND(\"/\", AI134, FIND(\"/\", AI134, FIND(\"/\", AI134)+1)+1)+1) + 1, FIND(\"%\", AI134, FIND(\"/\", AI134, FIND(\"/\", AI134, FIND(\"/\", AI134, FIND(\"/\", AI134)+1)+1)+1)) - FIND(\"/\", AI134, FIND(\"/\", AI134, FIND(\"/\", AI134, FIND(\"/\", AI134)+1)+1)+1) - 1)),\n        \"\"),\n    \"\")","v":""},{"$f":"IF(AI134 = \"\", \"\",\n    IFERROR(TRIM(\n        MID(\n            AI134,\n            FIND(\"%\", AI134, FIND(\"/\", AI134, FIND(\"/\", AI134, FIND(\"/\", AI134, FIND(\"/\", AI134)+1)+1)+1)+1) + 1,\n            FIND(\"/\", AI134 & \"/\", FIND(\"%\", AI134, FIND(\"/\", AI134, FIND(\"/\", AI134, FIND(\"/\", AI134, FIND(\"/\", AI134)+1)+1)+1)+1)) -\n            FIND(\"%\", AI134, FIND(\"/\", AI134, FIND(\"/\", AI134, FIND(\"/\", AI134, FIND(\"/\", AI134)+1)+1)+1)+1) - 1\n        )\n    ),\n    \"\")\n)","v":""},null,null,null,null,null,null,null,null,null,null,null,null,null,null,null,null,null,"ZWO"]
[null,null,null,null,null,null,null,null,null,null,null,null,null,null,null,null,{"$f":"VLOOKUP(P135,'Input MCC'!B:C,2,0)","v":{"$error":"#N/A"}},{"$f":"VLOOKUP(P135,'Input MCC'!B:E,4,0)","v":{"$error":"#N/A"}},null,null,null,null,null,null,null,null,null,null,null,null,null,{"$f":"AE135/AC135","v":{"$error":"#DIV/0!"}},0,0,null,"","","","","","","","","","",null,null,null,null,null,null,null,null,null,null,null,null,null,null,null,null,null,"ZWO"]
[null,null,null,null,null,null,null,null,null,null,null,null,null,null,null,null,{"$f":"VLOOKUP(P136,'Input MCC'!B:C,2,0)","v":{"$error":"#N/A"}},{"$f":"VLOOKUP(P136,'Input MCC'!B:E,4,0)","v":{"$error":"#N/A"}},null,null,null,null,null,null,null,null,null,null,null,null,null,{"$error":"#DIV/0!"},{"$f":"V136*AC136","v":0},{"$f":"V136*AE136","v":0},null,"","","","","","","","","","",null,null,null,null,null,null,null,null,null,null,null,null,null,null,null,null,null,"ZWO"]
[null,null,null,null,null,null,null,null,null,null,null,null,null,null,null,null,{"$f":"VLOOKUP(P137,'Input MCC'!B:C,2,0)","v":{"$error":"#N/A"}},{"$f":"VLOOKUP(P137,'Input MCC'!B:E,4,0)","v":{"$error":"#N/A"}},null,null,null,null,null,null,null,null,null,null,null,null,null,{"$error":"#DIV/0!"},0,0,null,"","","","","","","","","","",null,null,null,null,null,null,null,null,null,null,null,null,null,null,null,null,null,"ZWO"]
[null,null,null,null,null,null,null,null,null,null,null,null,null,null,null,null,{"$f":"VLOOKUP(P138,'Input MCC'!B:C,2,0)","v":{"$error":"#N/A"}},{"$f":"VLOOKUP(P138,'Input MCC'!B:E,4,0)","v":{"$error":"#N/A"}},null,null,null,null,{"$f":"SUM(V138:V143)","v":0},null,null,null,null,null,null,null,null,{"$error":"#DIV/0!"},0,0,null,"","","","","","","","","","",null,null,null,null,null,null,null,null,null,null,null,null,null,null,null,null,null,"ZWO"]
[null,null,null,null,null,null,null,null,null,null,null,null,null,null,null,null,{"$f":"VLOOKUP(P139,'Input MCC'!B:C,2,0)","v":{"$error":"#N/A"}},{"$f":"VLOOKUP(P139,'Input MCC'!B:E,4,0)","v":{"$error":"#N/A"}},null,null,null,null,null,null,null,null,null,null,null,null,null,{"$error":"#DIV/0!"},0,0,null,"","","","","","","","","","",null,null,null,null,null,null,null,null,null,null,null,null,null,null,null,null,null,"ZWO"]
[null,null,null,null,null,null,null,null,null,null,null,null,null,null,null,null,{"$f":"VLOOKUP(P140,'Input MCC'!B:C,2,0)","v":{"$error":"#N/A"}},{"$f":"VLOOKUP(P140,'Input MCC'!B:E,4,0)","v":{"$error":"#N/A"}},null,null,null,null,null,null,null,null,null,null,null,null,null,{"$error":"#DIV/0!"},0,0,null,"","","","","","","","","","",null,null,null,null,null,null,null,null,null,null,null,null,null,null,null,null,null,"ZWO"]
[null,null,null,null,null,null,null,null,null,null,null,null,null,null,null,null,{"$f":"VLOOKUP(P141,'Input MCC'!B:C,2,0)","v":{"$error":"#N/A"}},{"$f":"VLOOKUP(P141,'Input MCC'!B:E,4,0)","v":{"$error":"#N/A"}},null,null,null,null,null,null,null,null,null,null,null,null,null,{"$error":"#DIV/0!"},0,0,null,"","","","","","","","","","",null,null,null,null,null,null,null,null,null,null,null,null,null,null,null,null,null,"ZWO"]
[null,null,null,null,null,null,null,null,null,null,null,null,null,null,null,null,{"$f":"VLOOKUP(P142,'Input MCC'!B:C,2,0)","v":{"$error":"#N/A"}},{"$f":"VLOOKUP(P142,'Input MCC'!B:E,4,0)","v":{"$error":"#N/A"}},null,null,null,null,null,null,null,null,null,null,null,null,null,{"$error":"#DIV/0!"},0,0,null,"","","","","","","","","","",null,null,null,null,null,null,null,null,null,null,null,null,null,null,null,null,null,"ZWO"]
[null,null,null,null,null,null,null,null,null,null,null,null,null,null,null,null,{"$f":"VLOOKUP(P143,'Input MCC'!B:C,2,0)","v":{"$error":"#N/A"}},{"$f":"VLOOKUP(P143,'Input MCC'!B:E,4,0)","v":{"$error":"#N/A"}},null,null,null,null,null,null,null,null,null,null,null,null,null,{"$error":"#DIV/0!"},0,0,null,"","","","","","","","","","",null,null,null,null,null,null,null,null,null,null,null,null,null,null,null,null,null,"ZWO"]
[null,null,null,null,null,null,null,null,null,null,null,null,null,null,null,null,{"$f":"VLOOKUP(P144,'Input MCC'!B:C,2,0)","v":{"$error":"#N/A"}},{"$f":"VLOOKUP(P144,'Input MCC'!B:E,4,0)","v":{"$error":"#N/A"}},null,null,null,null,{"$f":"SUM(V144:V149)","v":0},null,null,null,null,null,null,null,null,{"$error":"#DIV/0!"},0,0,null,"","","","","","","","","","",null,null,null,null,null,null,null,null,null,null,null,null,null,null,null,null,null,"ZWO"]
[null,null,null,null,null,null,null,null,null,null,null,null,null,null,null,null,{"$f":"VLOOKUP(P145,'Input MCC'!B:C,2,0)","v":{"$error":"#N/A"}},{"$f":"VLOOKUP(P145,'Input MCC'!B:E,4,0)","v":{"$error":"#N/A"}},null,null,null,null,null,null,null,null,null,null,null,null,null,{"$error":"#DIV/0!"},0,0,null,"","","","","","","","","","",null,null,null,null,null,null,null,null,null,null,null,null,null,null,null,null,null,"ZWO"]
[null,null,null,null,null,null,null,null,null,null,null,null,null,null,null,null,{"$f":"VLOOKUP(P146,'Input MCC'!B:C,2,0)","v":{"$error":"#N/A"}},{"$f":"VLOOKUP(P146,'Input MCC'!B:E,4,0)","v":{"$error":"#N/A"}},null,null,null,null,null,null,null,null,null,null,null,null,null,{"$error":"#DIV/0!"},0,0,null,"","","","","","","","","","",null,null,null,null,null,null,null,null,null,null,null,null,null,null,null,null,null,"ZWO"]
[null,null,null,null,null,null,null,null,null,null,null,null,null,null,null,null,{"$f":"VLOOKUP(P147,'Input MCC'!B:C,2,0)","v":{"$error":"#N/A"}},{"$f":"VLOOKUP(P147,'Input MCC'!B:E,4,0)","v":{"$error":"#N/A"}},null,null,null,null,null,null,null,null,null,null,null,null,null,{"$error":"#DIV/0!"},0,0,null,"","","","","","","","","","",null,null,null,null,null,null,null,null,null,null,null,null,null,null,null,null,null,"ZWO"]
[null,null,null,null,null,null,null,null,null,null,null,null,null,null,null,null,{"$f":"VLOOKUP(P148,'Input MCC'!B:C,2,0)","v":{"$error":"#N/A"}},{"$f":"VLOOKUP(P148,'Input MCC'!B:E,4,0)","v":{"$error":"#N/A"}},null,null,null,null,null,null,null,null,null,null,null,null,null,{"$error":"#DIV/0!"},0,0,null,"","","","","","","","","","",null,null,null,null,null,null,null,null,null,null,null,null,null,null,null,null,null,"ZWO"]
[null,null,null,null,null,null,null,null,null,null,null,null,null,null,null,null,{"$f":"VLOOKUP(P149,'Input MCC'!B:C,2,0)","v":{"$error":"#N/A"}},{"$f":"VLOOKUP(P149,'Input MCC'!B:E,4,0)","v":{"$error":"#N/A"}},null,null,null,null,null,null,null,null,null,null,null,null,null,{"$error":"#DIV/0!"},0,0,null,"","","","","","","","","","",null,null,null,null,null,null,null,null,null,null,null,null,null,null,null,null,null,"ZWO"]
[null,null,null,null,null,null,null,null,null,null,null,null,null,null,null,null,{"$f":"VLOOKUP(P150,'Input MCC'!B:C,2,0)","v":{"$error":"#N/A"}},{"$f":"VLOOKUP(P150,'Input MCC'!B:E,4,0)","v":{"$error":"#N/A"}},null,null,null,null,{"$f":"SUM(V150:V155)","v":0},null,null,null,null,null,null,null,null,{"$error":"#DIV/0!"},0,0,null,"","","","","","","","","","",null,null,null,null,null,null,null,null,null,null,null,null,null,null,null,null,null,"ZWO"]
[null,null,null,null,null,null,null,null,null,null,null,null,null,null,null,null,{"$f":"VLOOKUP(P151,'Input MCC'!B:C,2,0)","v":{"$error":"#N/A"}},{"$f":"VLOOKUP(P151,'Input MCC'!B:E,4,0)","v":{"$error":"#N/A"}},null,null,null,null,null,null,null,null,null,null,null,null,null,{"$error":"#DIV/0!"},0,0,null,"","","","","","","","","","",null,null,null,null,null,null,null,null,null,null,null,null,null,null,null,null,null,"ZWO"]
[null,null,null,null,null,null,null,null,null,null,null,null,null,null,null,null,{"$f":"VLOOKUP(P152,'Input MCC'!B:C,2,0)","v":{"$error":"#N/A"}},{"$f":"VLOOKUP(P152,'Input MCC'!B:E,4,0)","v":{"$error":"#N/A"}},null,null,null,null,null,null,null,null,null,null,null,null,null,{"$error":"#DIV/0!"},0,0,null,"","","","","","","","","","",null,null,null,null,null,null,null,null,null,null,null,null,null,null,null,null,null,"ZWO"]
[null,null,null,null,null,null,null,null,null,null,null,null,null,null,null,null,{"$f":"VLOOKUP(P153,'Input MCC'!B:C,2,0)","v":{"$error":"#N/A"}},{"$f":"VLOOKUP(P153,'Input MCC'!B:E,4,0)","v":{"$error":"#N/A"}},null,null,null,null,null,null,null,null,null,null,null,null,null,{"$error":"#DIV/0!"},0,0,null,"","","","","","","","","","",null,null,null,null,null,null,null,null,null,null,null,null,null,null,null,null,null,"ZWO"]
[null,null,null,null,null,null,null,null,null,null,null,null,null,null,null,null,{"$f":"VLOOKUP(P154,'Input MCC'!B:C,2,0)","v":{"$error":"#N/A"}},{"$f":"VLOOKUP(P154,'Input MCC'!B:E,4,0)","v":{"$error":"#N/A"}},null,null,null,null,null,null,null,null,null,null,null,null,null,{"$error":"#DIV/0!"},0,0,null,"","","","","","","","","","",null,null,null,null,null,null,null,null,null,null,null,null,null,null,null,null,null,"ZWO"]
[null,null,null,null,null,null,null,null,null,null,null,null,null,null,null,null,{"$f":"VLOOKUP(P155,'Input MCC'!B:C,2,0)","v":{"$error":"#N/A"}},{"$f":"VLOOKUP(P155,'Input MCC'!B:E,4,0)","v":{"$error":"#N/A"}},null,null,null,null,null,null,null,null,null,null,null,null,null,{"$error":"#DIV/0!"},0,0,null,"","","","","","","","","","",null,null,null,null,null,null,null,null,null,null,null,null,null,null,null,null,null,"ZWO"]
[null,null,null,null,null,null,null,null,null,null,null,null,null,null,null,null,{"$f":"VLOOKUP(P156,'Input MCC'!B:C,2,0)","v":{"$error":"#N/A"}},{"$f":"VLOOKUP(P156,'Input MCC'!B:E,4,0)","v":{"$error":"#N/A"}},null,null,null,null,{"$f":"SUM(V156:V161)","v":0},null,null,null,null,null,null,null,null,{"$error":"#DIV/0!"},0,0,null,"","","","","","","","","","",null,null,null,null,null,null,null,null,null,null,null,null,null,null,null,null,null,"ZWO"]
[null,null,null,null,null,null,null,null,null,null,null,null,null,null,null,null,{"$f":"VLOOKUP(P157,'Input MCC'!B:C,2,0)","v":{"$error":"#N/A"}},{"$f":"VLOOKUP(P157,'Input MCC'!B:E,4,0)","v":{"$error":"#N/A"}},null,null,null,null,null,null,null,null,null,null,null,null,null,{"$error":"#DIV/0!"},0,0,null,"","","","","","","","","","",null,null,null,null,null,null,null,null,null,null,null,null,null,null,null,null,null,"ZWO"]
[null,null,null,null,null,null,null,null,null,null,null,null,null,null,null,null,{"$f":"VLOOKUP(P158,'Input MCC'!B:C,2,0)","v":{"$error":"#N/A"}},{"$f":"VLOOKUP(P158,'Input MCC'!B:E,4,0)","v":{"$error":"#N/A"}},null,null,null,null,null,null,null,null,null,null,null,null,null,{"$error":"#DIV/0!"},0,0,null,"","","","","","","","","","",null,null,null,null,null,null,null,null,null,null,null,null,null,null,null,null,null,"ZWO"]
[null,null,null,null,null,null,null,null,null,null,null,null,null,null,null,null,{"$f":"VLOOKUP(P159,'Input MCC'!B:C,2,0)","v":{"$error":"#N/A"}},{"$f":"VLOOKUP(P159,'Input MCC'!B:E,4,0)","v":{"$error":"#N/A"}},null,null,null,null,null,null,null,null,null,null,null,null,null,{"$error":"#DIV/0!"},0,0,null,"","","","","","","","","","",null,null,null,null,null,null,null,null,null,null,null,null,null,null,null,null,null,"ZWO"]
[null,null,null,null,null,null,null,null,null,null,null,null,null,null,null,null,{"$f":"VLOOKUP(P160,'Input MCC'!B:C,2,0)","v":{"$error":"#N/A"}},{"$f":"VLOOKUP(P160,'Input MCC'!B:E,4,0)","v":{"$error":"#N/A"}},null,null,null,null,null,null,null,null,null,null,null,null,null,{"$error":"#DIV/0!"},0,0,null,"","","","","","","","","","",null,null,null,null,null,null,null,null,null,null,null,null,null,null,null,null,null,"ZWO"]
[null,null,null,null,null,null,null,null,null,null,null,null,null,null,null,null,{"$f":"VLOOKUP(P161,'Input MCC'!B:C,2,0)","v":{"$error":"#N/A"}},{"$f":"VLOOKUP(P161,'Input MCC'!B:E,4,0)","v":{"$error":"#N/A"}},null,null,null,null,null,null,null,null,null,null,null,null,null,{"$error":"#DIV/0!"},0,0,null,"","","","","","","","","","",null,null,null,null,null,null,null,null,null,null,null,null,null,null,null,null,null,"ZWO"]
[null,null,null,null,null,null,null,null,null,null,null,null,null,null,null,null,{"$f":"VLOOKUP(P162,'Input MCC'!B:C,2,0)","v":{"$error":"#N/A"}},{"$f":"VLOOKUP(P162,'Input MCC'!B:E,4,0)","v":{"$error":"#N/A"}},null,null,null,null,{"$f":"SUM(V162:V167)","v":0},null,null,null,null,null,null,null,null,{"$error":"#DIV/0!"},0,0,null,"","","","","","","","","","",null,null,null,null,null,null,null,null,null,null,null,null,null,null,null,null,null,"ZWO"]
[null,null,null,null,null,null,null,null,null,null,null,null,null,null,null,null,{"$f":"VLOOKUP(P163,'Input MCC'!B:C,2,0)","v":{"$error":"#N/A"}},{"$f":"VLOOKUP(P163,'Input MCC'!B:E,4,0)","v":{"$error":"#N/A"}},null,null,null,null,null,null,null,null,null,null,null,null,null,{"$error":"#DIV/0!"},0,0,null,"","","","","","","","","","",null,null,null,null,null,null,null,null,null,null,null,null,null,null,null,null,null,"ZWO"]
[null,null,null,null,null,null,null,null,null,null,null,null,null,null,null,null,{"$f":"VLOOKUP(P164,'Input MCC'!B:C,2,0)","v":{"$error":"#N/A"}},{"$f":"VLOOKUP(P164,'Input MCC'!B:E,4,0)","v":{"$error":"#N/A"}},null,null,null,null,null,null,null,null,null,null,null,null,null,{"$error":"#DIV/0!"},0,0,null,"","","","","","","","","","",null,null,null,null,null,null,null,null,null,null,null,null,null,null,null,null,null,"ZWO"]
[null,null,null,null,null,null,null,null,null,null,null,null,null,null,null,null,{"$f":"VLOOKUP(P165,'Input MCC'!B:C,2,0)","v":{"$error":"#N/A"}},{"$f":"VLOOKUP(P165,'Input MCC'!B:E,4,0)","v":{"$error":"#N/A"}},null,null,null,null,null,null,null,null,null,null,null,null,null,{"$error":"#DIV/0!"},0,0,null,"","","","","","","","","","",null,null,null,null,null,null,null,null,null,null,null,null,null,null,null,null,null,"ZWO"]
[null,null,null,null,null,null,null,null,null,null,null,null,null,null,null,null,{"$f":"VLOOKUP(P166,'Input MCC'!B:C,2,0)","v":{"$error":"#N/A"}},{"$f":"VLOOKUP(P166,'Input MCC'!B:E,4,0)","v":{"$error":"#N/A"}},null,null,null,null,null,null,null,null,null,null,null,null,null,{"$error":"#DIV/0!"},0,0,null,"","","","","","","","","","",null,null,null,null,null,null,null,null,null,null,null,null,null,null,null,null,null,"ZWO"]
[null,null,null,null,null,null,null,null,null,null,null,null,null,null,null,null,{"$f":"VLOOKUP(P167,'Input MCC'!B:C,2,0)","v":{"$error":"#N/A"}},{"$f":"VLOOKUP(P167,'Input MCC'!B:E,4,0)","v":{"$error":"#N/A"}},null,null,null,null,null,null,null,null,null,null,null,null,null,{"$error":"#DIV/0!"},0,0,null,"","","","","","","","","","",null,null,null,null,null,null,null,null,null,null,null,null,null,null,null,null,null,"ZWO"]
[null,null,null,null,null,null,null,null,null,null,null,null,null,null,null,null,{"$f":"VLOOKUP(P168,'Input MCC'!B:C,2,0)","v":{"$error":"#N/A"}},{"$f":"VLOOKUP(P168,'Input MCC'!B:E,4,0)","v":{"$error":"#N/A"}},null,null,null,null,{"$f":"SUM(V168:V173)","v":0},null,null,null,null,null,null,null,null,{"$error":"#DIV/0!"},0,0,null,"","","","","","","","","","",null,null,null,null,null,null,null,null,null,null,null,null,null,null,null,null,null,"ZWO"]
[null,null,null,null,null,null,null,null,null,null,null,null,null,null,null,null,{"$f":"VLOOKUP(P169,'Input MCC'!B:C,2,0)","v":{"$error":"#N/A"}},{"$f":"VLOOKUP(P169,'Input MCC'!B:E,4,0)","v":{"$error":"#N/A"}},null,null,null,null,null,null,null,null,null,null,null,null,null,{"$error":"#DIV/0!"},0,0,null,"","","","","","","","","","",null,null,null,null,null,null,null,null,null,null,null,null,null,null,null,null,null,"ZWO"]
[null,null,null,null,null,null,null,null,null,null,null,null,null,null,null,null,{"$f":"VLOOKUP(P170,'Input MCC'!B:C,2,0)","v":{"$error":"#N/A"}},{"$f":"VLOOKUP(P170,'Input MCC'!B:E,4,0)","v":{"$error":"#N/A"}},null,null,null,null,null,null,null,null,null,null,null,null,null,{"$error":"#DIV/0!"},0,0,null,"","","","","","","","","","",null,null,null,null,null,null,null,null,null,null,null,null,null,null,null,null,null,"ZWO"]
[null,null,null,null,null,null,null,null,null,null,null,null,null,null,null,null,{"$f":"VLOOKUP(P171,'Input MCC'!B:C,2,0)","v":{"$error":"#N/A"}},{"$f":"VLOOKUP(P171,'Input MCC'!B:E,4,0)","v":{"$error":"#N/A"}},null,null,null,null,null,null,null,null,null,null,null,null,null,{"$error":"#DIV/0!"},0,0,null,"","","","","","","","","","",null,null,null,null,null,null,null,null,null,null,null,null,null,null,null,null,null,"ZWO"]
[null,null,null,null,null,null,null,null,null,null,null,null,null,null,null,null,{"$f":"VLOOKUP(P172,'Input MCC'!B:C,2,0)","v":{"$error":"#N/A"}},{"$f":"VLOOKUP(P172,'Input MCC'!B:E,4,0)","v":{"$error":"#N/A"}},null,null,null,null,null,null,null,null,null,null,null,null,null,{"$error":"#DIV/0!"},0,0,null,"","","","","","","","","","",null,null,null,null,null,null,null,null,null,null,null,null,null,null,null,null,null,"ZWO"]
[null,null,null,null,null,null,null,null,null,null,null,null,null,null,null,null,{"$f":"VLOOKUP(P173,'Input MCC'!B:C,2,0)","v":{"$error":"#N/A"}},{"$f":"VLOOKUP(P173,'Input MCC'!B:E,4,0)","v":{"$error":"#N/A"}},null,null,null,null,null,null,null,null,null,null,null,null,null,{"$error":"#DIV/0!"},0,0,null,"","","","","","","","","","",null,null,null,null,null,null,null,null,null,null,null,null,null,null,null,null,null,"ZWO"]
[null,null,null,null,null,null,null,null,null,null,null,null,null,null,null,null,{"$f":"VLOOKUP(P174,'Input MCC'!B:C,2,0)","v":{"$error":"#N/A"}},{"$f":"VLOOKUP(P174,'Input MCC'!B:E,4,0)","v":{"$error":"#N/A"}},null,null,null,null,{"$f":"SUM(V174:V179)","v":0},null,null,null,null,null,null,null,null,{"$error":"#DIV/0!"},0,0,null,"","","","","","","","","","",null,null,null,null,null,null,null,null,null,null,null,null,null,null,null,null,null,"ZWO"]
[null,null,null,null,null,null,null,null,null,null,null,null,null,null,null,null,{"$f":"VLOOKUP(P175,'Input MCC'!B:C,2,0)","v":{"$error":"#N/A"}},{"$f":"VLOOKUP(P175,'Input MCC'!B:E,4,0)","v":{"$error":"#N/A"}},null,null,null,null,null,null,null,null,null,null,null,null,null,{"$error":"#DIV/0!"},0,0,null,"","","","","","","","","","",null,null,null,null,null,null,null,null,null,null,null,null,null,null,null,null,null,"ZWO"]
[null,null,null,null,null,null,null,null,null,null,null,null,null,null,null,null,{"$f":"VLOOKUP(P176,'Input MCC'!B:C,2,0)","v":{"$error":"#N/A"}},{"$f":"VLOOKUP(P176,'Input MCC'!B:E,4,0)","v":{"$error":"#N/A"}},null,null,null,null,null,null,null,null,null,null,null,null,null,{"$error":"#DIV/0!"},0,0,null,"","","","","","","","","","",null,null,null,null,null,null,null,null,null,null,null,null,null,null,null,null,null,"ZWO"]
[null,null,null,null,null,null,null,null,null,null,null,null,null,null,null,null,{"$f":"VLOOKUP(P177,'Input MCC'!B:C,2,0)","v":{"$error":"#N/A"}},{"$f":"VLOOKUP(P177,'Input MCC'!B:E,4,0)","v":{"$error":"#N/A"}},null,null,null,null,null,null,null,null,null,null,null,null,null,{"$error":"#DIV/0!"},0,0,null,"","","","","","","","","","",null,null,null,null,null,null,null,null,null,null,null,null,null,null,null,null,null,"ZWO"]
[null,null,null,null,null,null,null,null,null,null,null,null,null,null,null,null,{"$f":"VLOOKUP(P178,'Input MCC'!B:C,2,0)","v":{"$error":"#N/A"}},{"$f":"VLOOKUP(P178,'Input MCC'!B:E,4,0)","v":{"$error":"#N/A"}},null,null,null,null,null,null,null,null,null,null,null,null,null,{"$error":"#DIV/0!"},0,0,null,"","","","","","","","","","",null,null,null,null,null,null,null,null,null,null,null,null,null,null,null,null,null,"ZWO"]
[null,null,null,null,null,null,null,null,null,null,null,null,null,null,null,null,{"$f":"VLOOKUP(P179,'Input MCC'!B:C,2,0)","v":{"$error":"#N/A"}},{"$f":"VLOOKUP(P179,'Input MCC'!B:E,4,0)","v":{"$error":"#N/A"}},null,null,null,null,null,null,null,null,null,null,null,null,null,{"$error":"#DIV/0!"},0,0,null,"","","","","","","","","","",null,null,null,null,null,null,null,null,null,null,null,null,null,null,null,null,null,"ZWO"]
[null,null,null,null,null,null,null,null,null,null,null,null,null,null,null,null,{"$f":"VLOOKUP(P180,'Input MCC'!B:C,2,0)","v":{"$error":"#N/A"}},{"$f":"VLOOKUP(P180,'Input MCC'!B:E,4,0)","v":{"$error":"#N/A"}},null,null,null,null,{"$f":"SUM(V180:V185)","v":0},null,null,null,null,null,null,null,null,{"$error":"#DIV/0!"},0,0,null,"","","","","","","","","","",null,null,null,null,null,null,null,null,null,null,null,null,null,null,null,null,null,"ZWO"]
[null,null,null,null,null,null,null,null,null,null,null,null,null,null,null,null,{"$f":"VLOOKUP(P181,'Input MCC'!B:C,2,0)","v":{"$error":"#N/A"}},{"$f":"VLOOKUP(P181,'Input MCC'!B:E,4,0)","v":{"$error":"#N/A"}},null,null,null,null,null,null,null,null,null,null,null,null,null,{"$error":"#DIV/0!"},0,0,null,"","","","","","","","","","",null,null,null,null,null,null,null,null,null,null,null,null,null,null,null,null,null,"ZWO"]
[null,null,null,null,null,null,null,null,null,null,null,null,null,null,null,null,{"$f":"VLOOKUP(P182,'Input MCC'!B:C,2,0)","v":{"$error":"#N/A"}},{"$f":"VLOOKUP(P182,'Input MCC'!B:E,4,0)","v":{"$error":"#N/A"}},null,null,null,null,null,null,null,null,null,null,null,null,null,{"$error":"#DIV/0!"},0,0,null,"","","","","","","","","","",null,null,null,null,null,null,null,null,null,null,null,null,null,null,null,null,null,"ZWO"]
[null,null,null,null,null,null,null,null,null,null,null,null,null,null,null,null,{"$f":"VLOOKUP(P183,'Input MCC'!B:C,2,0)","v":{"$error":"#N/A"}},{"$f":"VLOOKUP(P183,'Input MCC'!B:E,4,0)","v":{"$error":"#N/A"}},null,null,null,null,null,null,null,null,null,null,null,null,null,{"$error":"#DIV/0!"},0,0,null,"","","","","","","","","","",null,null,null,null,null,null,null,null,null,null,null,null,null,null,null,null,null,"ZWO"]
[null,null,null,null,null,null,null,null,null,null,null,null,null,null,null,null,{"$f":"VLOOKUP(P184,'Input MCC'!B:C,2,0)","v":{"$error":"#N/A"}},{"$f":"VLOOKUP(P184,'Input MCC'!B:E,4,0)","v":{"$error":"#N/A"}},null,null,null,null,null,null,null,null,null,null,null,null,null,{"$error":"#DIV/0!"},0,0,null,"","","","","","","","","","",null,null,null,null,null,null,null,null,null,null,null,null,null,null,null,null,null,"ZWO"]
[null,null,null,null,null,null,null,null,null,null,null,null,null,null,null,null,{"$f":"VLOOKUP(P185,'Input MCC'!B:C,2,0)","v":{"$error":"#N/A"}},{"$f":"VLOOKUP(P185,'Input MCC'!B:E,4,0)","v":{"$error":"#N/A"}},null,null,null,null,null,null,null,null,null,null,null,null,null,{"$error":"#DIV/0!"},0,0,null,"","","","","","","","","","",null,null,null,null,null,null,null,null,null,null,null,null,null,null,null,null,null,"ZWO"]
[null,null,null,null,null,null,null,null,null,null,null,null,null,null,null,null,{"$f":"VLOOKUP(P186,'Input MCC'!B:C,2,0)","v":{"$error":"#N/A"}},{"$f":"VLOOKUP(P186,'Input MCC'!B:E,4,0)","v":{"$error":"#N/A"}},null,null,null,null,{"$f":"SUM(V186:V191)","v":0},null,null,null,null,null,null,null,null,{"$error":"#DIV/0!"},0,0,null,"","","","","","","","","","",null,null,null,null,null,null,null,null,null,null,null,null,null,null,null,null,null,"ZWO"]
[null,null,null,null,null,null,null,null,null,null,null,null,null,null,null,null,{"$f":"VLOOKUP(P187,'Input MCC'!B:C,2,0)","v":{"$error":"#N/A"}},{"$f":"VLOOKUP(P187,'Input MCC'!B:E,4,0)","v":{"$error":"#N/A"}},null,null,null,null,null,null,null,null,null,null,null,null,null,{"$error":"#DIV/0!"},0,0,null,"","","","","","","","","","",null,null,null,null,null,null,null,null,null,null,null,null,null,null,null,null,null,"ZWO"]
[null,null,null,null,null,null,null,null,null,null,null,null,null,null,null,null,{"$f":"VLOOKUP(P188,'Input MCC'!B:C,2,0)","v":{"$error":"#N/A"}},{"$f":"VLOOKUP(P188,'Input MCC'!B:E,4,0)","v":{"$error":"#N/A"}},null,null,null,null,null,null,null,null,null,null,null,null,null,{"$error":"#DIV/0!"},0,0,null,"","","","","","","","","","",null,null,null,null,null,null,null,null,null,null,null,null,null,null,null,null,null,"ZWO"]
[null,null,null,null,null,null,null,null,null,null,null,null,null,null,null,null,{"$f":"VLOOKUP(P189,'Input MCC'!B:C,2,0)","v":{"$error":"#N/A"}},{"$f":"VLOOKUP(P189,'Input MCC'!B:E,4,0)","v":{"$error":"#N/A"}},null,null,null,null,null,null,null,null,null,null,null,null,null,{"$error":"#DIV/0!"},0,0,null,"","","","","","","","","","",null,null,null,null,null,null,null,null,null,null,null,null,null,null,null,null,null,"ZWO"]
[null,null,null,null,null,null,null,null,null,null,null,null,null,null,null,null,{"$f":"VLOOKUP(P190,'Input MCC'!B:C,2,0)","v":{"$error":"#N/A"}},{"$f":"VLOOKUP(P190,'Input MCC'!B:E,4,0)","v":{"$error":"#N/A"}},null,null,null,null,null,null,null,null,null,null,null,null,null,{"$error":"#DIV/0!"},0,0,null,"","","","","","","","","","",null,null,null,null,null,null,null,null,null,null,null,null,null,null,null,null,null,"ZWO"]
[null,null,null,null,null,null,null,null,null,null,null,null,null,null,null,null,{"$f":"VLOOKUP(P191,'Input MCC'!B:C,2,0)","v":{"$error":"#N/A"}},{"$f":"VLOOKUP(P191,'Input MCC'!B:E,4,0)","v":{"$error":"#N/A"}},null,null,null,null,null,null,null,null,null,null,null,null,null,{"$error":"#DIV/0!"},0,0,null,"","","","","","","","","","",null,null,null,null,null,null,null,null,null,null,null,null,null,null,null,null,null,"ZWO"]
[null,null,null,null,null,null,null,null,null,null,null,null,null,null,null,null,{"$f":"VLOOKUP(P192,'Input MCC'!B:C,2,0)","v":{"$error":"#N/A"}},{"$f":"VLOOKUP(P192,'Input MCC'!B:E,4,0)","v":{"$error":"#N/A"}},null,null,null,null,{"$f":"SUM(V192:V197)","v":0},null,null,null,null,null,null,null,null,{"$error":"#DIV/0!"},0,0,null,"","","","","","","","","","",null,null,null,null,null,null,null,null,null,null,null,null,null,null,null,null,null,"ZWO"]
[null,null,null,null,null,null,null,null,null,null,null,null,null,null,null,null,{"$f":"VLOOKUP(P193,'Input MCC'!B:C,2,0)","v":{"$error":"#N/A"}},{"$f":"VLOOKUP(P193,'Input MCC'!B:E,4,0)","v":{"$error":"#N/A"}},null,null,null,null,null,null,null,null,null,null,null,null,null,{"$error":"#DIV/0!"},0,0,null,"","","","","","","","","","",null,null,null,null,null,null,null,null,null,null,null,null,null,null,null,null,null,"ZWO"]
[null,null,null,null,null,null,null,null,null,null,null,null,null,null,null,null,{"$f":"VLOOKUP(P194,'Input MCC'!B:C,2,0)","v":{"$error":"#N/A"}},{"$f":"VLOOKUP(P194,'Input MCC'!B:E,4,0)","v":{"$error":"#N/A"}},null,null,null,null,null,null,null,null,null,null,null,null,null,{"$error":"#DIV/0!"},0,0,null,"","","","","","","","","","",null,null,null,null,null,null,null,null,null,null,null,null,null,null,null,null,null,"ZWO"]
[null,null,null,null,null,null,null,null,null,null,null,null,null,null,null,null,{"$f":"VLOOKUP(P195,'Input MCC'!B:C,2,0)","v":{"$error":"#N/A"}},{"$f":"VLOOKUP(P195,'Input MCC'!B:E,4,0)","v":{"$error":"#N/A"}},null,null,null,null,null,null,null,null,null,null,null,null,null,{"$error":"#DIV/0!"},0,0,null,"","","","","","","","","","",null,null,null,null,null,null,null,null,null,null,null,null,null,null,null,null,null,"ZWO"]
[null,null,null,null,null,null,null,null,null,null,null,null,null,null,null,null,{"$f":"VLOOKUP(P196,'Input MCC'!B:C,2,0)","v":{"$error":"#N/A"}},{"$f":"VLOOKUP(P196,'Input MCC'!B:E,4,0)","v":{"$error":"#N/A"}},null,null,null,null,null,null,null,null,null,null,null,null,null,{"$error":"#DIV/0!"},0,0,null,"","","","","","","","","","",null,null,null,null,null,null,null,null,null,null,null,null,null,null,null,null,null,"ZWO"]
[null,null,null,null,null,null,null,null,null,null,null,null,null,null,null,null,{"$f":"VLOOKUP(P197,'Input MCC'!B:C,2,0)","v":{"$error":"#N/A"}},{"$f":"VLOOKUP(P197,'Input MCC'!B:E,4,0)","v":{"$error":"#N/A"}},null,null,null,null,null,null,null,null,null,null,null,null,null,{"$error":"#DIV/0!"},0,0,null,"","","","","","","","","","",null,null,null,null,null,null,null,null,null,null,null,null,null,null,null,null,null,"ZWO"]
[null,null,null,null,null,null,null,null,null,null,null,null,null,null,null,null,{"$f":"VLOOKUP(P198,'Input MCC'!B:C,2,0)","v":{"$error":"#N/A"}},{"$f":"VLOOKUP(P198,'Input MCC'!B:E,4,0)","v":{"$error":"#N/A"}},null,null,null,null,{"$f":"SUM(V198:V203)","v":0},null,null,null,null,null,null,null,null,{"$error":"#DIV/0!"},0,0,null,{"$f":"IF(AI198 <> \"\",\n    IF(ISNUMBER(VALUE(LEFT(AI198, FIND(\"%\", AI198)-1))),\n        VALUE(LEFT(AI198, FIND(\"%\", AI198)-1)),\n        \"Invalid format\"),\n    \"\")","v":""},{"$f":"IF(AI198 <> \"\",\n    IF(ISNUMBER(VALUE(LEFT(AI198, FIND(\"%\", AI198)-1))) * ISNUMBER(FIND(\"%\", AI198 & \"wol\")) > 0,\n        TRIM(MID(AI198, FIND(\"%\", AI198)+1, FIND(\"/\", AI198 & \"/\")-FIND(\"%\", AI198)-1)),\n        \"Invalid format\"),\n    \"\")","v":""},{"$f":"IF(AI198 <> \"\",\n    IF(ISNUMBER(VALUE(MID(AI198, FIND(\"/\", AI198) + 1, FIND(\"%\", AI198, FIND(\"/\", AI198)) - FIND(\"/\", AI198) - 1))),\n        VALUE(MID(AI198, FIND(\"/\", AI198) + 1, FIND(\"%\", AI198, FIND(\"/\", AI198)) - FIND(\"/\", AI198) - 1)),\n        \"\"),\n    \"\")","v":""},{"$f":"IF(AI198 <> \"\",\n    IFERROR(TRIM(MID(AI198, FIND(\"%\", AI198, FIND(\"/\", AI198)+1)+2,\n        IFERROR(FIND(\"/\", AI198 & \"/\", FIND(\"/\", AI198)+1)-FIND(\"%\", AI198, FIND(\"/\", AI198)+1)-2, LEN(AI198)-FIND(\"%\", AI198, FIND(\"/\", AI198)+1)-1))),\n        \"\"),\n    \"\")","v":""},{"$f":"IF(AI198 <> \"\",\n    IF(ISNUMBER(VALUE(MID(AI198, FIND(\"/\", AI198, FIND(\"/\", AI198)+1) + 1, FIND(\"%\", AI198, FIND(\"/\", AI198, FIND(\"/\", AI198)+1)) - FIND(\"/\", AI198, FIND(\"/\", AI198)+1) - 1))),\n        VALUE(MID(AI198, FIND(\"/\", AI198, FIND(\"/\", AI198)+1) + 1, FIND(\"%\", AI198, FIND(\"/\", AI198, FIND(\"/\", AI198)+1)) - FIND(\"/\", AI198, FIND(\"/\", AI198)+1) - 1)),\n        \"\"),\n    \"\")","v":""},{"$f":"IF(AI198 <> \"\",\n    IFERROR(\n        TRIM(MID(AI198,\n            FIND(\"%\", AI198, FIND(\"%\", AI198, FIND(\"%\", AI198)+1)+1)+1,\n            FIND(\"/\", AI198 & \"/\", FIND(\"%\", AI198, FIND(\"%\", AI198, FIND(\"%\", AI198)+1)+1))-FIND(\"%\", AI198, FIND(\"%\", AI198, FIND(\"%\", AI198)+1)+1)-1)\n        ),\n        \"\"\n    ),\n    \"\"\n)","v":""},{"$f":"IF(AI198 <> \"\",\n    IF(ISNUMBER(VALUE(MID(AI198, FIND(\"/\", AI198, FIND(\"/\", AI198, FIND(\"/\", AI198)+1)+1) + 1, FIND(\"%\", AI198, FIND(\"/\", AI198, FIND(\"/\", AI198, FIND(\"/\", AI198)+1)+1)) - FIND(\"/\", AI198, FIND(\"/\", AI198, FIND(\"/\", AI198)+1)+1) - 1))),\n        VALUE(MID(AI198, FIND(\"/\", AI198, FIND(\"/\", AI198, FIND(\"/\", AI198)+1)+1) + 1, FIND(\"%\", AI198, FIND(\"/\", AI198, FIND(\"/\", AI198, FIND(\"/\", AI198)+1)+1)) - FIND(\"/\", AI198, FIND(\"/\", AI198, FIND(\"/\", AI198)+1)+1) - 1)),\n        \"\"),\n    \"\")","v":""},{"$f":"IF(AI198 <> \"\",\n    IFERROR(TRIM(MID(AI198, FIND(\"%\", AI198, FIND(\"/\", AI198, FIND(\"/\", AI198, FIND(\"/\", AI198)+1)+1)+1)+2,\n        IFERROR(FIND(\"/\", AI198, FIND(\"/\", AI198, FIND(\"/\", AI198, FIND(\"/\", AI198)+1)+1)+1)-FIND(\"%\", AI198, FIND(\"/\", AI198, FIND(\"/\", AI198, FIND(\"/\", AI198)+1)+1)+1)-2, LEN(AI198)-FIND(\"%\", AI198, FIND(\"/\", AI198, FIND(\"/\", AI198, FIND(\"/\", AI198)+1)+1)+1)-1))),\n        \"\"),\n    \"\")","v":""},{"$f":"IF(AI198 <> \"\",\n    IF(ISNUMBER(VALUE(MID(AI198, FIND(\"/\", AI198, FIND(\"/\", AI198, FIND(\"/\", AI198, FIND(\"/\", AI198)+1)+1)+1) + 1, FIND(\"%\", AI198, FIND(\"/\", AI198, FIND(\"/\", AI198, FIND(\"/\", AI198, FIND(\"/\", AI198)+1)+1)+1)) - FIND(\"/\", AI198, FIND(\"/\", AI198, FIND(\"/\", AI198, FIND(\"/\", AI198)+1)+1)+1) - 1))),\n        VALUE(MID(AI198, FIND(\"/\", AI198, FIND(\"/\", AI198, FIND(\"/\", AI198, FIND(\"/\", AI198)+1)+1)+1) + 1, FIND(\"%\", AI198, FIND(\"/\", AI198, FIND(\"/\", AI198, FIND(\"/\", AI198, FIND(\"/\", AI198)+1)+1)+1)) - FIND(\"/\", AI198, FIND(\"/\", AI198, FIND(\"/\", AI198, FIND(\"/\", AI198)+1)+1)+1) - 1)),\n        \"\"),\n    \"\")","v":""},{"$f":"IF(AI198 = \"\", \"\",\n    IFERROR(TRIM(\n        MID(\n            AI198,\n            FIND(\"%\", AI198, FIND(\"/\", AI198, FIND(\"/\", AI198, FIND(\"/\", AI198, FIND(\"/\", AI198)+1)+1)+1)+1) + 1,\n            FIND(\"/\", AI198 & \"/\", FIND(\"%\", AI198, FIND(\"/\", AI198, FIND(\"/\", AI198, FIND(\"/\", AI198, FIND(\"/\", AI198)+1)+1)+1)+1)) -\n            FIND(\"%\", AI198, FIND(\"/\", AI198, FIND(\"/\", AI198, FIND(\"/\", AI198, FIND(\"/\", AI198)+1)+1)+1)+1) - 1\n        )\n    ),\n    \"\")\n)","v":""},null,null,null,null,null,null,null,null,null,null,null,null,null,null,null,null,null,"ZWO"]
[null,null,null,null,null,null,null,null,null,null,null,null,null,null,null,null,{"$f":"VLOOKUP(P199,'Input MCC'!B:C,2,0)","v":{"$error":"#N/A"}},{"$f":"VLOOKUP(P199,'Input MCC'!B:E,4,0)","v":{"$error":"#N/A"}},null,null,null,null,null,null,null,null,null,null,null,null,null,{"$f":"AE199/AC199","v":{"$error":"#DIV/0!"}},0,0,null,"","","","","","","","","","",null,null,null,null,null,null,null,null,null,null,null,null,null,null,null,null,null,"ZWO"]
[null,null,null,null,null,null,null,null,null,null,null,null,null,null,null,null,{"$f":"VLOOKUP(P200,'Input MCC'!B:C,2,0)","v":{"$error":"#N/A"}},{"$f":"VLOOKUP(P200,'Input MCC'!B:E,4,0)","v":{"$error":"#N/A"}},null,null,null,null,null,null,null,null,null,null,null,null,null,{"$error":"#DIV/0!"},{"$f":"V200*AC200","v":0},{"$f":"V200*AE200","v":0},null,"","","","","","","","","","",null,null,null,null,null,null,null,null,null,null,null,null,null,null,null,null,null,"ZWO"]
[null,null,null,null,null,null,null,null,null,null,null,null,null,null,null,null,{"$f":"VLOOKUP(P201,'Input MCC'!B:C,2,0)","v":{"$error":"#N/A"}},{"$f":"VLOOKUP(P201,'Input MCC'!B:E,4,0)","v":{"$error":"#N/A"}},null,null,null,null,null,null,null,null,null,null,null,null,null,{"$error":"#DIV/0!"},0,0,null,"","","","","","","","","","",null,null,null,null,null,null,null,null,null,null,null,null,null,null,null,null,null,"ZWO"]
[null,null,null,null,null,null,null,null,null,null,null,null,null,null,null,null,{"$f":"VLOOKUP(P202,'Input MCC'!B:C,2,0)","v":{"$error":"#N/A"}},{"$f":"VLOOKUP(P202,'Input MCC'!B:E,4,0)","v":{"$error":"#N/A"}},null,null,null,null,null,null,null,null,null,null,null,null,null,{"$error":"#DIV/0!"},0,0,null,"","","","","","","","","","",null,null,null,null,null,null,null,null,null,null,null,null,null,null,null,null,null,"ZWO"]
[null,null,null,null,null,null,null,null,null,null,null,null,null,null,null,null,{"$f":"VLOOKUP(P203,'Input MCC'!B:C,2,0)","v":{"$error":"#N/A"}},{"$f":"VLOOKUP(P203,'Input MCC'!B:E,4,0)","v":{"$error":"#N/A"}},null,null,null,null,null,null,null,null,null,null,null,null,null,{"$error":"#DIV/0!"},0,0,null,"","","","","","","","","","",null,null,null,null,null,null,null,null,null,null,null,null,null,null,null,null,null,"ZWO"]
[null,null,null,null,null,null,null,null,null,null,null,null,null,null,null,null,{"$f":"VLOOKUP(P204,'Input MCC'!B:C,2,0)","v":{"$error":"#N/A"}},{"$f":"VLOOKUP(P204,'Input MCC'!B:E,4,0)","v":{"$error":"#N/A"}},null,null,null,null,{"$f":"SUM(V204:V209)","v":0},null,null,null,null,null,null,null,null,{"$error":"#DIV/0!"},0,0,null,"","","","","","","","","","",null,null,null,null,null,null,null,null,null,null,null,null,null,null,null,null,null,"ZWO"]
[null,null,null,null,null,null,null,null,null,null,null,null,null,null,null,null,{"$f":"VLOOKUP(P205,'Input MCC'!B:C,2,0)","v":{"$error":"#N/A"}},{"$f":"VLOOKUP(P205,'Input MCC'!B:E,4,0)","v":{"$error":"#N/A"}},null,null,null,null,null,null,null,null,null,null,null,null,null,{"$error":"#DIV/0!"},0,0,null,"","","","","","","","","","",null,null,null,null,null,null,null,null,null,null,null,null,null,null,null,null,null,"ZWO"]
[null,null,null,null,null,null,null,null,null,null,null,null,null,null,null,null,{"$f":"VLOOKUP(P206,'Input MCC'!B:C,2,0)","v":{"$error":"#N/A"}},{"$f":"VLOOKUP(P206,'Input MCC'!B:E,4,0)","v":{"$error":"#N/A"}},null,null,null,null,null,null,null,null,null,null,null,null,null,{"$error":"#DIV/0!"},0,0,null,"","","","","","","","","","",null,null,null,null,null,null,null,null,null,null,null,null,null,null,null,null,null,"ZWO"]
[null,null,null,null,null,null,null,null,null,null,null,null,null,null,null,null,{"$f":"VLOOKUP(P207,'Input MCC'!B:C,2,0)","v":{"$error":"#N/A"}},{"$f":"VLOOKUP(P207,'Input MCC'!B:E,4,0)","v":{"$error":"#N/A"}},null,null,null,null,null,null,null,null,null,null,null,null,null,{"$error":"#DIV/0!"},0,0,null,"","","","","","","","","","",null,null,null,null,null,null,null,null,null,null,null,null,null,null,null,null,null,"ZWO"]
[null,null,null,null,null,null,null,null,null,null,null,null,null,null,null,null,{"$f":"VLOOKUP(P208,'Input MCC'!B:C,2,0)","v":{"$error":"#N/A"}},{"$f":"VLOOKUP(P208,'Input MCC'!B:E,4,0)","v":{"$error":"#N/A"}},null,null,null,null,null,null,null,null,null,null,null,null,null,{"$error":"#DIV/0!"},0,0,null,"","","","","","","","","","",null,null,null,null,null,null,null,null,null,null,null,null,null,null,null,null,null,"ZWO"]
[null,null,null,null,null,null,null,null,null,null,null,null,null,null,null,null,{"$f":"VLOOKUP(P209,'Input MCC'!B:C,2,0)","v":{"$error":"#N/A"}},{"$f":"VLOOKUP(P209,'Input MCC'!B:E,4,0)","v":{"$error":"#N/A"}},null,null,null,null,null,null,null,null,null,null,null,null,null,{"$error":"#DIV/0!"},0,0,null,"","","","","","","","","","",null,null,null,null,null,null,null,null,null,null,null,null,null,null,null,null,null,"ZWO"]
[null,null,null,null,null,null,null,null,null,null,null,null,null,null,null,null,{"$f":"VLOOKUP(P210,'Input MCC'!B:C,2,0)","v":{"$error":"#N/A"}},{"$f":"VLOOKUP(P210,'Input MCC'!B:E,4,0)","v":{"$error":"#N/A"}},null,null,null,null,{"$f":"SUM(V210:V215)","v":0},null,null,null,null,null,null,null,null,{"$error":"#DIV/0!"},0,0,null,"","","","","","","","","","",null,null,null,null,null,null,null,null,null,null,null,null,null,null,null,null,null,"ZWO"]
[null,null,null,null,null,null,null,null,null,null,null,null,null,null,null,null,{"$f":"VLOOKUP(P211,'Input MCC'!B:C,2,0)","v":{"$error":"#N/A"}},{"$f":"VLOOKUP(P211,'Input MCC'!B:E,4,0)","v":{"$error":"#N/A"}},null,null,null,null,null,null,null,null,null,null,null,null,null,{"$error":"#DIV/0!"},0,0,null,"","","","","","","","","","",null,null,null,null,null,null,null,null,null,null,null,null,null,null,null,null,null,"ZWO"]
[null,null,null,null,null,null,null,null,null,null,null,null,null,null,null,null,{"$f":"VLOOKUP(P212,'Input MCC'!B:C,2,0)","v":{"$error":"#N/A"}},{"$f":"VLOOKUP(P212,'Input MCC'!B:E,4,0)","v":{"$error":"#N/A"}},null,null,null,null,null,null,null,null,null,null,null,null,null,{"$error":"#DIV/0!"},0,0,null,"","","","","","","","","","",null,null,null,null,null,null,null,null,null,null,null,null,null,null,null,null,null,"ZWO"]
[null,null,null,null,null,null,null,null,null,null,null,null,null,null,null,null,{"$f":"VLOOKUP(P213,'Input MCC'!B:C,2,0)","v":{"$error":"#N/A"}},{"$f":"VLOOKUP(P213,'Input MCC'!B:E,4,0)","v":{"$error":"#N/A"}},null,null,null,null,null,null,null,null,null,null,null,null,null,{"$error":"#DIV/0!"},0,0,null,"","","","","","","","","","",null,null,null,null,null,null,null,null,null,null,null,null,null,null,null,null,null,"ZWO"]
[null,null,null,null,null,null,null,null,null,null,null,null,null,null,null,null,{"$f":"VLOOKUP(P214,'Input MCC'!B:C,2,0)","v":{"$error":"#N/A"}},{"$f":"VLOOKUP(P214,'Input MCC'!B:E,4,0)","v":{"$error":"#N/A"}},null,null,null,null,null,null,null,null,null,null,null,null,null,{"$error":"#DIV/0!"},0,0,null,"","","","","","","","","","",null,null,null,null,null,null,null,null,null,null,null,null,null,null,null,null,null,"ZWO"]
[null,null,null,null,null,null,null,null,null,null,null,null,null,null,null,null,{"$f":"VLOOKUP(P215,'Input MCC'!B:C,2,0)","v":{"$error":"#N/A"}},{"$f":"VLOOKUP(P215,'Input MCC'!B:E,4,0)","v":{"$error":"#N/A"}},null,null,null,null,null,null,null,null,null,null,null,null,null,{"$error":"#DIV/0!"},0,0,null,"","","","","","","","","","",null,null,null,null,null,null,null,null,null,null,null,null,null,null,null,null,null,"ZWO"]
[null,null,null,null,null,null,null,null,null,null,null,null,null,null,null,null,{"$f":"VLOOKUP(P216,'Input MCC'!B:C,2,0)","v":{"$error":"#N/A"}},{"$f":"VLOOKUP(P216,'Input MCC'!B:E,4,0)","v":{"$error":"#N/A"}},null,null,null,null,{"$f":"SUM(V216:V221)","v":0},null,null,null,null,null,null,null,null,{"$error":"#DIV/0!"},0,0,null,"","","","","","","","","","",null,null,null,null,null,null,null,null,null,null,null,null,null,null,null,null,null,"ZWO"]
[null,null,null,null,null,null,null,null,null,null,null,null,null,null,null,null,{"$f":"VLOOKUP(P217,'Input MCC'!B:C,2,0)","v":{"$error":"#N/A"}},{"$f":"VLOOKUP(P217,'Input MCC'!B:E,4,0)","v":{"$error":"#N/A"}},null,null,null,null,null,null,null,null,null,null,null,null,null,{"$error":"#DIV/0!"},0,0,null,"","","","","","","","","","",null,null,null,null,null,null,null,null,null,null,null,null,null,null,null,null,null,"ZWO"]
[null,null,null,null,null,null,null,null,null,null,null,null,null,null,null,null,{"$f":"VLOOKUP(P218,'Input MCC'!B:C,2,0)","v":{"$error":"#N/A"}},{"$f":"VLOOKUP(P218,'Input MCC'!B:E,4,0)","v":{"$error":"#N/A"}},null,null,null,null,null,null,null,null,null,null,null,null,null,{"$error":"#DIV/0!"},0,0,null,"","","","","","","","","","",null,null,null,null,null,null,null,null,null,null,null,null,null,null,null,null,null,"ZWO"]
[null,null,null,null,null,null,null,null,null,null,null,null,null,null,null,null,{"$f":"VLOOKUP(P219,'Input MCC'!B:C,2,0)","v":{"$error":"#N/A"}},{"$f":"VLOOKUP(P219,'Input MCC'!B:E,4,0)","v":{"$error":"#N/A"}},null,null,null,null,null,null,null,null,null,null,null,null,null,{"$error":"#DIV/0!"},0,0,null,"","","","","","","","","","",null,null,null,null,null,null,null,null,null,null,null,null,null,null,null,null,null,"ZWO"]
[null,null,null,null,null,null,null,null,null,null,null,null,null,null,null,null,{"$f":"VLOOKUP(P220,'Input MCC'!B:C,2,0)","v":{"$error":"#N/A"}},{"$f":"VLOOKUP(P220,'Input MCC'!B:E,4,0)","v":{"$error":"#N/A"}},null,null,null,null,null,null,null,null,null,null,null,null,null,{"$error":"#DIV/0!"},0,0,null,"","","","","","","","","","",null,null,null,null,null,null,null,null,null,null,null,null,null,null,null,null,null,"ZWO"]
[null,null,null,null,null,null,null,null,null,null,null,null,null,null,null,null,{"$f":"VLOOKUP(P221,'Input MCC'!B:C,2,0)","v":{"$error":"#N/A"}},{"$f":"VLOOKUP(P221,'Input MCC'!B:E,4,0)","v":{"$error":"#N/A"}},null,null,null,null,null,null,null,null,null,null,null,null,null,{"$error":"#DIV/0!"},0,0,null,"","","","","","","","","","",null,null,null,null,null,null,null,null,null,null,null,null,null,null,null,null,null,"ZWO"]
[null,null,null,null,null,null,null,null,null,null,null,null,null,null,null,null,{"$f":"VLOOKUP(P222,'Input MCC'!B:C,2,0)","v":{"$error":"#N/A"}},{"$f":"VLOOKUP(P222,'Input MCC'!B:E,4,0)","v":{"$error":"#N/A"}},null,null,null,null,{"$f":"SUM(V222:V227)","v":0},null,null,null,null,null,null,null,null,{"$error":"#DIV/0!"},0,0,null,"","","","","","","","","","",null,null,null,null,null,null,null,null,null,null,null,null,null,null,null,null,null,"ZWO"]
[null,null,null,null,null,null,null,null,null,null,null,null,null,null,null,null,{"$f":"VLOOKUP(P223,'Input MCC'!B:C,2,0)","v":{"$error":"#N/A"}},{"$f":"VLOOKUP(P223,'Input MCC'!B:E,4,0)","v":{"$error":"#N/A"}},null,null,null,null,null,null,null,null,null,null,null,null,null,{"$error":"#DIV/0!"},0,0,null,"","","","","","","","","","",null,null,null,null,null,null,null,null,null,null,null,null,null,null,null,null,null,"ZWO"]
[null,null,null,null,null,null,null,null,null,null,null,null,null,null,null,null,{"$f":"VLOOKUP(P224,'Input MCC'!B:C,2,0)","v":{"$error":"#N/A"}},{"$f":"VLOOKUP(P224,'Input MCC'!B:E,4,0)","v":{"$error":"#N/A"}},null,null,null,null,null,null,null,null,null,null,null,null,null,{"$error":"#DIV/0!"},0,0,null,"","","","","","","","","","",null,null,null,null,null,null,null,null,null,null,null,null,null,null,null,null,null,"ZWO"]
[null,null,null,null,null,null,null,null,null,null,null,null,null,null,null,null,{"$f":"VLOOKUP(P225,'Input MCC'!B:C,2,0)","v":{"$error":"#N/A"}},{"$f":"VLOOKUP(P225,'Input MCC'!B:E,4,0)","v":{"$error":"#N/A"}},null,null,null,null,null,null,null,null,null,null,null,null,null,{"$error":"#DIV/0!"},0,0,null,"","","","","","","","","","",null,null,null,null,null,null,null,null,null,null,null,null,null,null,null,null,null,"ZWO"]
[null,null,null,null,null,null,null,null,null,null,null,null,null,null,null,null,{"$f":"VLOOKUP(P226,'Input MCC'!B:C,2,0)","v":{"$error":"#N/A"}},{"$f":"VLOOKUP(P226,'Input MCC'!B:E,4,0)","v":{"$error":"#N/A"}},null,null,null,null,null,null,null,null,null,null,null,null,null,{"$error":"#DIV/0!"},0,0,null,"","","","","","","","","","",null,null,null,null,null,null,null,null,null,null,null,null,null,null,null,null,null,"ZWO"]
[null,null,null,null,null,null,null,null,null,null,null,null,null,null,null,null,{"$f":"VLOOKUP(P227,'Input MCC'!B:C,2,0)","v":{"$error":"#N/A"}},{"$f":"VLOOKUP(P227,'Input MCC'!B:E,4,0)","v":{"$error":"#N/A"}},null,null,null,null,null,null,null,null,null,null,null,null,null,{"$error":"#DIV/0!"},0,0,null,"","","","","","","","","","",null,null,null,null,null,null,null,null,null,null,null,null,null,null,null,null,null,"ZWO"]
[null,null,null,null,null,null,null,null,null,null,null,null,null,null,null,null,{"$f":"VLOOKUP(P228,'Input MCC'!B:C,2,0)","v":{"$error":"#N/A"}},{"$f":"VLOOKUP(P228,'Input MCC'!B:E,4,0)","v":{"$error":"#N/A"}},null,null,null,null,{"$f":"SUM(V228:V233)","v":0},null,null,null,null,null,null,null,null,{"$error":"#DIV/0!"},0,0,null,"","","","","","","","","","",null,null,null,null,null,null,null,null,null,null,null,null,null,null,null,null,null,"ZWO"]
[null,null,null,null,null,null,null,null,null,null,null,null,null,null,null,null,{"$f":"VLOOKUP(P229,'Input MCC'!B:C,2,0)","v":{"$error":"#N/A"}},{"$f":"VLOOKUP(P229,'Input MCC'!B:E,4,0)","v":{"$error":"#N/A"}},null,null,null,null,null,null,null,null,null,null,null,null,null,{"$error":"#DIV/0!"},0,0,null,"","","","","","","","","","",null,null,null,null,null,null,null,null,null,null,null,null,null,null,null,null,null,"ZWO"]
[null,null,null,null,null,null,null,null,null,null,null,null,null,null,null,null,{"$f":"VLOOKUP(P230,'Input MCC'!B:C,2,0)","v":{"$error":"#N/A"}},{"$f":"VLOOKUP(P230,'Input MCC'!B:E,4,0)","v":{"$error":"#N/A"}},null,null,null,null,null,null,null,null,null,null,null,null,null,{"$error":"#DIV/0!"},0,0,null,"","","","","","","","","","",null,null,null,null,null,null,null,null,null,null,null,null,null,null,null,null,null,"ZWO"]
[null,null,null,null,null,null,null,null,null,null,null,null,null,null,null,null,{"$f":"VLOOKUP(P231,'Input MCC'!B:C,2,0)","v":{"$error":"#N/A"}},{"$f":"VLOOKUP(P231,'Input MCC'!B:E,4,0)","v":{"$error":"#N/A"}},null,null,null,null,null,null,null,null,null,null,null,null,null,{"$error":"#DIV/0!"},0,0,null,"","","","","","","","","","",null,null,null,null,null,null,null,null,null,null,null,null,null,null,null,null,null,"ZWO"]
[null,null,null,null,null,null,null,null,null,null,null,null,null,null,null,null,{"$f":"VLOOKUP(P232,'Input MCC'!B:C,2,0)","v":{"$error":"#N/A"}},{"$f":"VLOOKUP(P232,'Input MCC'!B:E,4,0)","v":{"$error":"#N/A"}},null,null,null,null,null,null,null,null,null,null,null,null,null,{"$error":"#DIV/0!"},0,0,null,"","","","","","","","","","",null,null,null,null,null,null,null,null,null,null,null,null,null,null,null,null,null,"ZWO"]
[null,null,null,null,null,null,null,null,null,null,null,null,null,null,null,null,{"$f":"VLOOKUP(P233,'Input MCC'!B:C,2,0)","v":{"$error":"#N/A"}},{"$f":"VLOOKUP(P233,'Input MCC'!B:E,4,0)","v":{"$error":"#N/A"}},null,null,null,null,null,null,null,null,null,null,null,null,null,{"$error":"#DIV/0!"},0,0,null,"","","","","","","","","","",null,null,null,null,null,null,null,null,null,null,null,null,null,null,null,null,null,"ZWO"]
[null,null,null,null,null,null,null,null,null,null,null,null,null,null,null,null,{"$f":"VLOOKUP(P234,'Input MCC'!B:C,2,0)","v":{"$error":"#N/A"}},{"$f":"VLOOKUP(P234,'Input MCC'!B:E,4,0)","v":{"$error":"#N/A"}},null,null,null,null,{"$f":"SUM(V234:V239)","v":0},null,null,null,null,null,null,null,null,{"$error":"#DIV/0!"},0,0,null,"","","","","","","","","","",null,null,null,null,null,null,null,null,null,null,null,null,null,null,null,null,null,"ZWO"]
[null,null,null,null,null,null,null,null,null,null,null,null,null,null,null,null,{"$f":"VLOOKUP(P235,'Input MCC'!B:C,2,0)","v":{"$error":"#N/A"}},{"$f":"VLOOKUP(P235,'Input MCC'!B:E,4,0)","v":{"$error":"#N/A"}},null,null,null,null,null,null,null,null,null,null,null,null,null,{"$error":"#DIV/0!"},0,0,null,"","","","","","","","","","",null,null,null,null,null,null,null,null,null,null,null,null,null,null,null,null,null,"ZWO"]
[null,null,null,null,null,null,null,null,null,null,null,null,null,null,null,null,{"$f":"VLOOKUP(P236,'Input MCC'!B:C,2,0)","v":{"$error":"#N/A"}},{"$f":"VLOOKUP(P236,'Input MCC'!B:E,4,0)","v":{"$error":"#N/A"}},null,null,null,null,null,null,null,null,null,null,null,null,null,{"$error":"#DIV/0!"},0,0,null,"","","","","","","","","","",null,null,null,null,null,null,null,null,null,null,null,null,null,null,null,null,null,"ZWO"]
[null,null,null,null,null,null,null,null,null,null,null,null,null,null,null,null,{"$f":"VLOOKUP(P237,'Input MCC'!B:C,2,0)","v":{"$error":"#N/A"}},{"$f":"VLOOKUP(P237,'Input MCC'!B:E,4,0)","v":{"$error":"#N/A"}},null,null,null,null,null,null,null,null,null,null,null,null,null,{"$error":"#DIV/0!"},0,0,null,"","","","","","","","","","",null,null,null,null,null,null,null,null,null,null,null,null,null,null,null,null,null,"ZWO"]
[null,null,null,null,null,null,null,null,null,null,null,null,null,null,null,null,{"$f":"VLOOKUP(P238,'Input MCC'!B:C,2,0)","v":{"$error":"#N/A"}},{"$f":"VLOOKUP(P238,'Input MCC'!B:E,4,0)","v":{"$error":"#N/A"}},null,null,null,null,null,null,null,null,null,null,null,null,null,{"$error":"#DIV/0!"},0,0,null,"","","","","","","","","","",null,null,null,null,null,null,null,null,null,null,null,null,null,null,null,null,null,"ZWO"]
[null,null,null,null,null,null,null,null,null,null,null,null,null,null,null,null,{"$f":"VLOOKUP(P239,'Input MCC'!B:C,2,0)","v":{"$error":"#N/A"}},{"$f":"VLOOKUP(P239,'Input MCC'!B:E,4,0)","v":{"$error":"#N/A"}},null,null,null,null,null,null,null,null,null,null,null,null,null,{"$error":"#DIV/0!"},0,0,null,"","","","","","","","","","",null,null,null,null,null,null,null,null,null,null,null,null,null,null,null,null,null,"ZWO"]
[null,null,null,null,null,null,null,null,null,null,null,null,null,null,null,null,{"$f":"VLOOKUP(P240,'Input MCC'!B:C,2,0)","v":{"$error":"#N/A"}},{"$f":"VLOOKUP(P240,'Input MCC'!B:E,4,0)","v":{"$error":"#N/A"}},null,null,null,null,{"$f":"SUM(V240:V245)","v":0},null,null,null,null,null,null,null,null,{"$error":"#DIV/0!"},0,0,null,"","","","","","","","","","",null,null,null,null,null,null,null,null,null,null,null,null,null,null,null,null,null,"ZWO"]
[null,null,null,null,null,null,null,null,null,null,null,null,null,null,null,null,{"$f":"VLOOKUP(P241,'Input MCC'!B:C,2,0)","v":{"$error":"#N/A"}},{"$f":"VLOOKUP(P241,'Input MCC'!B:E,4,0)","v":{"$error":"#N/A"}},null,null,null,null,null,null,null,null,null,null,null,null,null,{"$error":"#DIV/0!"},0,0,null,"","","","","","","","","","",null,null,null,null,null,null,null,null,null,null,null,null,null,null,null,null,null,"ZWO"]
[null,null,null,null,null,null,null,null,null,null,null,null,null,null,null,null,{"$f":"VLOOKUP(P242,'Input MCC'!B:C,2,0)","v":{"$error":"#N/A"}},{"$f":"VLOOKUP(P242,'Input MCC'!B:E,4,0)","v":{"$error":"#N/A"}},null,null,null,null,null,null,null,null,null,null,null,null,null,{"$error":"#DIV/0!"},0,0,null,"","","","","","","","","","",null,null,null,null,null,null,null,null,null,null,null,null,null,null,null,null,null,"ZWO"]
[null,null,null,null,null,null,null,null,null,null,null,null,null,null,null,null,{"$f":"VLOOKUP(P243,'Input MCC'!B:C,2,0)","v":{"$error":"#N/A"}},{"$f":"VLOOKUP(P243,'Input MCC'!B:E,4,0)","v":{"$error":"#N/A"}},null,null,null,null,null,null,null,null,null,null,null,null,null,{"$error":"#DIV/0!"},0,0,null,"","","","","","","","","","",null,null,null,null,null,null,null,null,null,null,null,null,null,null,null,null,null,"ZWO"]
[null,null,null,null,null,null,null,null,null,null,null,null,null,null,null,null,{"$f":"VLOOKUP(P244,'Input MCC'!B:C,2,0)","v":{"$error":"#N/A"}},{"$f":"VLOOKUP(P244,'Input MCC'!B:E,4,0)","v":{"$error":"#N/A"}},null,null,null,null,null,null,null,null,null,null,null,null,null,{"$error":"#DIV/0!"},0,0,null,"","","","","","","","","","",null,null,null,null,null,null,null,null,null,null,null,null,null,null,null,null,null,"ZWO"]
[null,null,null,null,null,null,null,null,null,null,null,null,null,null,null,null,{"$f":"VLOOKUP(P245,'Input MCC'!B:C,2,0)","v":{"$error":"#N/A"}},{"$f":"VLOOKUP(P245,'Input MCC'!B:E,4,0)","v":{"$error":"#N/A"}},null,null,null,null,null,null,null,null,null,null,null,null,null,{"$error":"#DIV/0!"},0,0,null,"","","","","","","","","","",null,null,null,null,null,null,null,null,null,null,null,null,null,null,null,null,null,"ZWO"]
[null,null,null,null,null,null,null,null,null,null,null,null,null,null,null,null,{"$f":"VLOOKUP(P246,'Input MCC'!B:C,2,0)","v":{"$error":"#N/A"}},{"$f":"VLOOKUP(P246,'Input MCC'!B:E,4,0)","v":{"$error":"#N/A"}},null,null,null,null,{"$f":"SUM(V246:V251)","v":0},null,null,null,null,null,null,null,null,{"$error":"#DIV/0!"},0,0,null,"","","","","","","","","","",null,null,null,null,null,null,null,null,null,null,null,null,null,null,null,null,null,"ZWO"]
[null,null,null,null,null,null,null,null,null,null,null,null,null,null,null,null,{"$f":"VLOOKUP(P247,'Input MCC'!B:C,2,0)","v":{"$error":"#N/A"}},{"$f":"VLOOKUP(P247,'Input MCC'!B:E,4,0)","v":{"$error":"#N/A"}},null,null,null,null,null,null,null,null,null,null,null,null,null,{"$error":"#DIV/0!"},0,0,null,"","","","","","","","","","",null,null,null,null,null,null,null,null,null,null,null,null,null,null,null,null,null,"ZWO"]
[null,null,null,null,null,null,null,null,null,null,null,null,null,null,null,null,{"$f":"VLOOKUP(P248,'Input MCC'!B:C,2,0)","v":{"$error":"#N/A"}},{"$f":"VLOOKUP(P248,'Input MCC'!B:E,4,0)","v":{"$error":"#N/A"}},null,null,null,null,null,null,null,null,null,null,null,null,null,{"$error":"#DIV/0!"},0,0,null,"","","","","","","","","","",null,null,null,null,null,null,null,null,null,null,null,null,null,null,null,null,null,"ZWO"]
[null,null,null,null,null,null,null,null,null,null,null,null,null,null,null,null,{"$f":"VLOOKUP(P249,'Input MCC'!B:C,2,0)","v":{"$error":"#N/A"}},{"$f":"VLOOKUP(P249,'Input MCC'!B:E,4,0)","v":{"$error":"#N/A"}},null,null,null,null,null,null,null,null,null,null,null,null,null,{"$error":"#DIV/0!"},0,0,null,"","","","","","","","","","",null,null,null,null,null,null,null,null,null,null,null,null,null,null,null,null,null,"ZWO"]
[null,null,null,null,null,null,null,null,null,null,null,null,null,null,null,null,{"$f":"VLOOKUP(P250,'Input MCC'!B:C,2,0)","v":{"$error":"#N/A"}},{"$f":"VLOOKUP(P250,'Input MCC'!B:E,4,0)","v":{"$error":"#N/A"}},null,null,null,null,null,null,null,null,null,null,null,null,null,{"$error":"#DIV/0!"},0,0,null,"","","","","","","","","","",null,null,null,null,null,null,null,null,null,null,null,null,null,null,null,null,null,"ZWO"]
[null,null,null,null,null,null,null,null,null,null,null,null,null,null,null,null,{"$f":"VLOOKUP(P251,'Input MCC'!B:C,2,0)","v":{"$error":"#N/A"}},{"$f":"VLOOKUP(P251,'Input MCC'!B:E,4,0)","v":{"$error":"#N/A"}},null,null,null,null,null,null,null,null,null,null,null,null,null,{"$error":"#DIV/0!"},0,0,null,"","","","","","","","","","",null,null,null,null,null,null,null,null,null,null,null,null,null,null,null,null,null,"ZWO"]
[null,null,null,null,null,null,null,null,null,null,null,null,null,null,null,null,{"$f":"VLOOKUP(P252,'Input MCC'!B:C,2,0)","v":{"$error":"#N/A"}},{"$f":"VLOOKUP(P252,'Input MCC'!B:E,4,0)","v":{"$error":"#N/A"}},null,null,null,null,{"$f":"SUM(V252:V257)","v":0},null,null,null,null,null,null,null,null,{"$error":"#DIV/0!"},0,0,null,"","","","","","","","","","",null,null,null,null,null,null,null,null,null,null,null,null,null,null,null,null,null,"ZWO"]
[null,null,null,null,null,null,null,null,null,null,null,null,null,null,null,null,{"$f":"VLOOKUP(P253,'Input MCC'!B:C,2,0)","v":{"$error":"#N/A"}},{"$f":"VLOOKUP(P253,'Input MCC'!B:E,4,0)","v":{"$error":"#N/A"}},null,null,null,null,null,null,null,null,null,null,null,null,null,{"$error":"#DIV/0!"},0,0,null,"","","","","","","","","","",null,null,null,null,null,null,null,null,null,null,null,null,null,null,null,null,null,"ZWO"]
[null,null,null,null,null,null,null,null,null,null,null,null,null,null,null,null,{"$f":"VLOOKUP(P254,'Input MCC'!B:C,2,0)","v":{"$error":"#N/A"}},{"$f":"VLOOKUP(P254,'Input MCC'!B:E,4,0)","v":{"$error":"#N/A"}},null,null,null,null,null,null,null,null,null,null,null,null,null,{"$error":"#DIV/0!"},0,0,null,"","","","","","","","","","",null,null,null,null,null,null,null,null,null,null,null,null,null,null,null,null,null,"ZWO"]
[null,null,null,null,null,null,null,null,null,null,null,null,null,null,null,null,{"$f":"VLOOKUP(P255,'Input MCC'!B:C,2,0)","v":{"$error":"#N/A"}},{"$f":"VLOOKUP(P255,'Input MCC'!B:E,4,0)","v":{"$error":"#N/A"}},null,null,null,null,null,null,null,null,null,null,null,null,null,{"$error":"#DIV/0!"},0,0,null,"","","","","","","","","","",null,null,null,null,null,null,null,null,null,null,null,null,null,null,null,null,null,"ZWO"]
[null,null,null,null,null,null,null,null,null,null,null,null,null,null,null,null,{"$f":"VLOOKUP(P256,'Input MCC'!B:C,2,0)","v":{"$error":"#N/A"}},{"$f":"VLOOKUP(P256,'Input MCC'!B:E,4,0)","v":{"$error":"#N/A"}},null,null,null,null,null,null,null,null,null,null,null,null,null,{"$error":"#DIV/0!"},0,0,null,"","","","","","","","","","",null,null,null,null,null,null,null,null,null,null,null,null,null,null,null,null,null,"ZWO"]
[null,null,null,null,null,null,null,null,null,null,null,null,null,null,null,null,{"$f":"VLOOKUP(P257,'Input MCC'!B:C,2,0)","v":{"$error":"#N/A"}},{"$f":"VLOOKUP(P257,'Input MCC'!B:E,4,0)","v":{"$error":"#N/A"}},null,null,null,null,null,null,null,null,null,null,null,null,null,{"$error":"#DIV/0!"},0,0,null,"","","","","","","","","","",null,null,null,null,null,null,null,null,null,null,null,null,null,null,null,null,null,"ZWO"]
[null,null,null,null,null,null,null,null,null,null,null,null,null,null,null,null,{"$f":"VLOOKUP(P258,'Input MCC'!B:C,2,0)","v":{"$error":"#N/A"}},{"$f":"VLOOKUP(P258,'Input MCC'!B:E,4,0)","v":{"$error":"#N/A"}},null,null,null,null,{"$f":"SUM(V258:V263)","v":0},null,null,null,null,null,null,null,null,{"$error":"#DIV/0!"},0,0,null,"","","","","","","","","","",null,null,null,null,null,null,null,null,null,null,null,null,null,null,null,null,null,"ZWO"]
[null,null,null,null,null,null,null,null,null,null,null,null,null,null,null,null,{"$f":"VLOOKUP(P259,'Input MCC'!B:C,2,0)","v":{"$error":"#N/A"}},{"$f":"VLOOKUP(P259,'Input MCC'!B:E,4,0)","v":{"$error":"#N/A"}},null,null,null,null,null,null,null,null,null,null,null,null,null,{"$error":"#DIV/0!"},0,0,null,"","","","","","","","","","",null,null,null,null,null,null,null,null,null,null,null,null,null,null,null,null,null,"ZWO"]
[null,null,null,null,null,null,null,null,null,null,null,null,null,null,null,null,{"$f":"VLOOKUP(P260,'Input MCC'!B:C,2,0)","v":{"$error":"#N/A"}},{"$f":"VLOOKUP(P260,'Input MCC'!B:E,4,0)","v":{"$error":"#N/A"}},null,null,null,null,null,null,null,null,null,null,null,null,null,{"$error":"#DIV/0!"},0,0,null,"","","","","","","","","","",null,null,null,null,null,null,null,null,null,null,null,null,null,null,null,null,null,"ZWO"]
[null,null,null,null,null,null,null,null,null,null,null,null,null,null,null,null,{"$f":"VLOOKUP(P261,'Input MCC'!B:C,2,0)","v":{"$error":"#N/A"}},{"$f":"VLOOKUP(P261,'Input MCC'!B:E,4,0)","v":{"$error":"#N/A"}},null,null,null,null,null,null,null,null,null,null,null,null,null,{"$error":"#DIV/0!"},0,0,null,"","","","","","","","","","",null,null,null,null,null,null,null,null,null,null,null,null,null,null,null,null,null,"ZWO"]
[null,null,null,null,null,null,null,null,null,null,null,null,null,null,null,null,{"$f":"VLOOKUP(P262,'Input MCC'!B:C,2,0)","v":{"$error":"#N/A"}},{"$f":"VLOOKUP(P262,'Input MCC'!B:E,4,0)","v":{"$error":"#N/A"}},null,null,null,null,null,null,null,null,null,null,null,null,null,{"$error":"#DIV/0!"},0,0,null,{"$f":"IF(AI262 <> \"\",\n    IF(ISNUMBER(VALUE(LEFT(AI262, FIND(\"%\", AI262)-1))),\n        VALUE(LEFT(AI262, FIND(\"%\", AI262)-1)),\n        \"Invalid format\"),\n    \"\")","v":""},{"$f":"IF(AI262 <> \"\",\n    IF(ISNUMBER(VALUE(LEFT(AI262, FIND(\"%\", AI262)-1))) * ISNUMBER(FIND(\"%\", AI262 & \"wol\")) > 0,\n        TRIM(MID(AI262, FIND(\"%\", AI262)+1, FIND(\"/\", AI262 & \"/\")-FIND(\"%\", AI262)-1)),\n        \"Invalid format\"),\n    \"\")","v":""},{"$f":"IF(AI262 <> \"\",\n    IF(ISNUMBER(VALUE(MID(AI262, FIND(\"/\", AI262) + 1, FIND(\"%\", AI262, FIND(\"/\", AI262)) - FIND(\"/\", AI262) - 1))),\n        VALUE(MID(AI262, FIND(\"/\", AI262) + 1, FIND(\"%\", AI262, FIND(\"/\", AI262)) - FIND(\"/\", AI262) - 1)),\n        \"\"),\n    \"\")","v":""},{"$f":"IF(AI262 <> \"\",\n    IFERROR(TRIM(MID(AI262, FIND(\"%\", AI262, FIND(\"/\", AI262)+1)+2,\n        IFERROR(FIND(\"/\", AI262 & \"/\", FIND(\"/\", AI262)+1)-FIND(\"%\", AI262, FIND(\"/\", AI262)+1)-2, LEN(AI262)-FIND(\"%\", AI262, FIND(\"/\", AI262)+1)-1))),\n        \"\"),\n    \"\")","v":""},{"$f":"IF(AI262 <> \"\",\n    IF(ISNUMBER(VALUE(MID(AI262, FIND(\"/\", AI262, FIND(\"/\", AI262)+1) + 1, FIND(\"%\", AI262, FIND(\"/\", AI262, FIND(\"/\", AI262)+1)) - FIND(\"/\", AI262, FIND(\"/\", AI262)+1) - 1))),\n        VALUE(MID(AI262, FIND(\"/\", AI262, FIND(\"/\", AI262)+1) + 1, FIND(\"%\", AI262, FIND(\"/\", AI262, FIND(\"/\", AI262)+1)) - FIND(\"/\", AI262, FIND(\"/\", AI262)+1) - 1)),\n        \"\"),\n    \"\")","v":""},{"$f":"IF(AI262 <> \"\",\n    IFERROR(\n        TRIM(MID(AI262,\n            FIND(\"%\", AI262, FIND(\"%\", AI262, FIND(\"%\", AI262)+1)+1)+1,\n            FIND(\"/\", AI262 & \"/\", FIND(\"%\", AI262, FIND(\"%\", AI262, FIND(\"%\", AI262)+1)+1))-FIND(\"%\", AI262, FIND(\"%\", AI262, FIND(\"%\", AI262)+1)+1)-1)\n        ),\n        \"\"\n    ),\n    \"\"\n)","v":""},{"$f":"IF(AI262 <> \"\",\n    IF(ISNUMBER(VALUE(MID(AI262, FIND(\"/\", AI262, FIND(\"/\", AI262, FIND(\"/\", AI262)+1)+1) + 1, FIND(\"%\", AI262, FIND(\"/\", AI262, FIND(\"/\", AI262, FIND(\"/\", AI262)+1)+1)) - FIND(\"/\", AI262, FIND(\"/\", AI262, FIND(\"/\", AI262)+1)+1) - 1))),\n        VALUE(MID(AI262, FIND(\"/\", AI262, FIND(\"/\", AI262, FIND(\"/\", AI262)+1)+1) + 1, FIND(\"%\", AI262, FIND(\"/\", AI262, FIND(\"/\", AI262, FIND(\"/\", AI262)+1)+1)) - FIND(\"/\", AI262, FIND(\"/\", AI262, FIND(\"/\", AI262)+1)+1) - 1)),\n        \"\"),\n    \"\")","v":""},{"$f":"IF(AI262 <> \"\",\n    IFERROR(TRIM(MID(AI262, FIND(\"%\", AI262, FIND(\"/\", AI262, FIND(\"/\", AI262, FIND(\"/\", AI262)+1)+1)+1)+2,\n        IFERROR(FIND(\"/\", AI262, FIND(\"/\", AI262, FIND(\"/\", AI262, FIND(\"/\", AI262)+1)+1)+1)-FIND(\"%\", AI262, FIND(\"/\", AI262, FIND(\"/\", AI262, FIND(\"/\", AI262)+1)+1)+1)-2, LEN(AI262)-FIND(\"%\", AI262, FIND(\"/\", AI262, FIND(\"/\", AI262, FIND(\"/\", AI262)+1)+1)+1)-1))),\n        \"\"),\n    \"\")","v":""},{"$f":"IF(AI262 <> \"\",\n    IF(ISNUMBER(VALUE(MID(AI262, FIND(\"/\", AI262, FIND(\"/\", AI262, FIND(\"/\", AI262, FIND(\"/\", AI262)+1)+1)+1) + 1, FIND(\"%\", AI262, FIND(\"/\", AI262, FIND(\"/\", AI262, FIND(\"/\", AI262, FIND(\"/\", AI262)+1)+1)+1)) - FIND(\"/\", AI262, FIND(\"/\", AI262, FIND(\"/\", AI262, FIND(\"/\", AI262)+1)+1)+1) - 1))),\n        VALUE(MID(AI262, FIND(\"/\", AI262, FIND(\"/\", AI262, FIND(\"/\", AI262, FIND(\"/\", AI262)+1)+1)+1) + 1, FIND(\"%\", AI262, FIND(\"/\", AI262, FIND(\"/\", AI262, FIND(\"/\", AI262, FIND(\"/\", AI262)+1)+1)+1)) - FIND(\"/\", AI262, FIND(\"/\", AI262, FIND(\"/\", AI262, FIND(\"/\", AI262)+1)+1)+1) - 1)),\n        \"\"),\n    \"\")","v":""},{"$f":"IF(AI262 = \"\", \"\",\n    IFERROR(TRIM(\n        MID(\n            AI262,\n            FIND(\"%\", AI262, FIND(\"/\", AI262, FIND(\"/\", AI262, FIND(\"/\", AI262, FIND(\"/\", AI262)+1)+1)+1)+1) + 1,\n            FIND(\"/\", AI262 & \"/\", FIND(\"%\", AI262, FIND(\"/\", AI262, FIND(\"/\", AI262, FIND(\"/\", AI262, FIND(\"/\", AI262)+1)+1)+1)+1)) -\n            FIND(\"%\", AI262, FIND(\"/\", AI262, FIND(\"/\", AI262, FIND(\"/\", AI262, FIND(\"/\", AI262)+1)+1)+1)+1) - 1\n        )\n    ),\n    \"\")\n)","v":""},null,null,null,null,null,null,null,null,null,null,null,null,null,null,null,null,null,"ZWO"]
[null,null,null,null,null,null,null,null,null,null,null,null,null,null,null,null,{"$f":"VLOOKUP(P263,'Input MCC'!B:C,2,0)","v":{"$error":"#N/A"}},{"$f":"VLOOKUP(P263,'Input MCC'!B:E,4,0)","v":{"$error":"#N/A"}},null,null,null,null,null,null,null,null,null,null,null,null,null,{"$f":"AE263/AC263","v":{"$error":"#DIV/0!"}},0,0,null,"","","","","","","","","","",null,null,null,null,null,null,null,null,null,null,null,null,null,null,null,null,null,"ZWO"]
[null,null,null,null,null,null,null,null,null,null,null,null,null,null,null,null,{"$f":"VLOOKUP(P264,'Input MCC'!B:C,2,0)","v":{"$error":"#N/A"}},{"$f":"VLOOKUP(P264,'Input MCC'!B:E,4,0)","v":{"$error":"#N/A"}},null,null,null,null,{"$f":"SUM(V264:V269)","v":0},null,null,null,null,null,null,null,null,{"$error":"#DIV/0!"},{"$f":"V264*AC264","v":0},{"$f":"V264*AE264","v":0},null,"","","","","","","","","","",null,null,null,null,null,null,null,null,null,null,null,null,null,null,null,null,null,"ZWO"]
[null,null,null,null,null,null,null,null,null,null,null,null,null,null,null,null,{"$f":"VLOOKUP(P265,'Input MCC'!B:C,2,0)","v":{"$error":"#N/A"}},{"$f":"VLOOKUP(P265,'Input MCC'!B:E,4,0)","v":{"$error":"#N/A"}},null,null,null,null,null,null,null,null,null,null,null,null,null,{"$error":"#DIV/0!"},0,0,null,"","","","","","","","","","",null,null,null,null,null,null,null,null,null,null,null,null,null,null,null,null,null,"ZWO"]
[null,null,null,null,null,null,null,null,null,null,null,null,null,null,null,null,{"$f":"VLOOKUP(P266,'Input MCC'!B:C,2,0)","v":{"$error":"#N/A"}},{"$f":"VLOOKUP(P266,'Input MCC'!B:E,4,0)","v":{"$error":"#N/A"}},null,null,null,null,null,null,null,null,null,null,null,null,null,{"$error":"#DIV/0!"},0,0,null,"","","","","","","","","","",null,null,null,null,null,null,null,null,null,null,null,null,null,null,null,null,null,"ZWO"]
[null,null,null,null,null,null,null,null,null,null,null,null,null,null,null,null,{"$f":"VLOOKUP(P267,'Input MCC'!B:C,2,0)","v":{"$error":"#N/A"}},{"$f":"VLOOKUP(P267,'Input MCC'!B:E,4,0)","v":{"$error":"#N/A"}},null,null,null,null,null,null,null,null,null,null,null,null,null,{"$error":"#DIV/0!"},0,0,null,"","","","","","","","","","",null,null,null,null,null,null,null,null,null,null,null,null,null,null,null,null,null,"ZWO"]
[null,null,null,null,null,null,null,null,null,null,null,null,null,null,null,null,{"$f":"VLOOKUP(P268,'Input MCC'!B:C,2,0)","v":{"$error":"#N/A"}},{"$f":"VLOOKUP(P268,'Input MCC'!B:E,4,0)","v":{"$error":"#N/A"}},null,null,null,null,null,null,null,null,null,null,null,null,null,{"$error":"#DIV/0!"},0,0,null,"","","","","","","","","","",null,null,null,null,null,null,null,null,null,null,null,null,null,null,null,null,null,"ZWO"]
[null,null,null,null,null,null,null,null,null,null,null,null,null,null,null,null,{"$f":"VLOOKUP(P269,'Input MCC'!B:C,2,0)","v":{"$error":"#N/A"}},{"$f":"VLOOKUP(P269,'Input MCC'!B:E,4,0)","v":{"$error":"#N/A"}},null,null,null,null,null,null,null,null,null,null,null,null,null,{"$error":"#DIV/0!"},0,0,null,"","","","","","","","","","",null,null,null,null,null,null,null,null,null,null,null,null,null,null,null,null,null,"ZWO"]
[null,null,null,null,null,null,null,null,null,null,null,null,null,null,null,null,{"$f":"VLOOKUP(P270,'Input MCC'!B:C,2,0)","v":{"$error":"#N/A"}},{"$f":"VLOOKUP(P270,'Input MCC'!B:E,4,0)","v":{"$error":"#N/A"}},null,null,null,null,{"$f":"SUM(V270:V275)","v":0},null,null,null,null,null,null,null,null,{"$error":"#DIV/0!"},0,0,null,"","","","","","","","","","",null,null,null,null,null,null,null,null,null,null,null,null,null,null,null,null,null,"ZWO"]
[null,null,null,null,null,null,null,null,null,null,null,null,null,null,null,null,{"$f":"VLOOKUP(P271,'Input MCC'!B:C,2,0)","v":{"$error":"#N/A"}},{"$f":"VLOOKUP(P271,'Input MCC'!B:E,4,0)","v":{"$error":"#N/A"}},null,null,null,null,null,null,null,null,null,null,null,null,null,{"$error":"#DIV/0!"},0,0,null,"","","","","","","","","","",null,null,null,null,null,null,null,null,null,null,null,null,null,null,null,null,null,"ZWO"]
[null,null,null,null,null,null,null,null,null,null,null,null,null,null,null,null,{"$f":"VLOOKUP(P272,'Input MCC'!B:C,2,0)","v":{"$error":"#N/A"}},{"$f":"VLOOKUP(P272,'Input MCC'!B:E,4,0)","v":{"$error":"#N/A"}},null,null,null,null,null,null,null,null,null,null,null,null,null,{"$error":"#DIV/0!"},0,0,null,"","","","","","","","","","",null,null,null,null,null,null,null,null,null,null,null,null,null,null,null,null,null,"ZWO"]
[null,null,null,null,null,null,null,null,null,null,null,null,null,null,null,null,{"$f":"VLOOKUP(P273,'Input MCC'!B:C,2,0)","v":{"$error":"#N/A"}},{"$f":"VLOOKUP(P273,'Input MCC'!B:E,4,0)","v":{"$error":"#N/A"}},null,null,null,null,null,null,null,null,null,null,null,null,null,{"$error":"#DIV/0!"},0,0,null,"","","","","","","","","","",null,null,null,null,null,null,null,null,null,null,null,null,null,null,null,null,null,"ZWO"]
[null,null,null,null,null,null,null,null,null,null,null,null,null,null,null,null,{"$f":"VLOOKUP(P274,'Input MCC'!B:C,2,0)","v":{"$error":"#N/A"}},{"$f":"VLOOKUP(P274,'Input MCC'!B:E,4,0)","v":{"$error":"#N/A"}},null,null,null,null,null,null,null,null,null,null,null,null,null,{"$error":"#DIV/0!"},0,0,null,"","","","","","","","","","",null,null,null,null,null,null,null,null,null,null,null,null,null,null,null,null,null,"ZWO"]
[null,null,null,null,null,null,null,null,null,null,null,null,null,null,null,null,{"$f":"VLOOKUP(P275,'Input MCC'!B:C,2,0)","v":{"$error":"#N/A"}},{"$f":"VLOOKUP(P275,'Input MCC'!B:E,4,0)","v":{"$error":"#N/A"}},null,null,null,null,null,null,null,null,null,null,null,null,null,{"$error":"#DIV/0!"},0,0,null,"","","","","","","","","","",null,null,null,null,null,null,null,null,null,null,null,null,null,null,null,null,null,"ZWO"]
[null,null,null,null,null,null,null,null,null,null,null,null,null,null,null,null,{"$f":"VLOOKUP(P276,'Input MCC'!B:C,2,0)","v":{"$error":"#N/A"}},{"$f":"VLOOKUP(P276,'Input MCC'!B:E,4,0)","v":{"$error":"#N/A"}},null,null,null,null,{"$f":"SUM(V276:V281)","v":0},null,null,null,null,null,null,null,null,{"$error":"#DIV/0!"},0,0,null,"","","","","","","","","","",null,null,null,null,null,null,null,null,null,null,null,null,null,null,null,null,null,"ZWO"]
[null,null,null,null,null,null,null,null,null,null,null,null,null,null,null,null,{"$f":"VLOOKUP(P277,'Input MCC'!B:C,2,0)","v":{"$error":"#N/A"}},{"$f":"VLOOKUP(P277,'Input MCC'!B:E,4,0)","v":{"$error":"#N/A"}},null,null,null,null,null,null,null,null,null,null,null,null,null,{"$error":"#DIV/0!"},0,0,null,"","","","","","","","","","",null,null,null,null,null,null,null,null,null,null,null,null,null,null,null,null,null,"ZWO"]
[null,null,null,null,null,null,null,null,null,null,null,null,null,null,null,null,{"$f":"VLOOKUP(P278,'Input MCC'!B:C,2,0)","v":{"$error":"#N/A"}},{"$f":"VLOOKUP(P278,'Input MCC'!B:E,4,0)","v":{"$error":"#N/A"}},null,null,null,null,null,null,null,null,null,null,null,null,null,{"$error":"#DIV/0!"},0,0,null,"","","","","","","","","","",null,null,null,null,null,null,null,null,null,null,null,null,null,null,null,null,null,"ZWO"]
[null,null,null,null,null,null,null,null,null,null,null,null,null,null,null,null,{"$f":"VLOOKUP(P279,'Input MCC'!B:C,2,0)","v":{"$error":"#N/A"}},{"$f":"VLOOKUP(P279,'Input MCC'!B:E,4,0)","v":{"$error":"#N/A"}},null,null,null,null,null,null,null,null,null,null,null,null,null,{"$error":"#DIV/0!"},0,0,null,"","","","","","","","","","",null,null,null,null,null,null,null,null,null,null,null,null,null,null,null,null,null,"ZWO"]
[null,null,null,null,null,null,null,null,null,null,null,null,null,null,null,null,{"$f":"VLOOKUP(P280,'Input MCC'!B:C,2,0)","v":{"$error":"#N/A"}},{"$f":"VLOOKUP(P280,'Input MCC'!B:E,4,0)","v":{"$error":"#N/A"}},null,null,null,null,null,null,null,null,null,null,null,null,null,{"$error":"#DIV/0!"},0,0,null,"","","","","","","","","","",null,null,null,null,null,null,null,null,null,null,null,null,null,null,null,null,null,"ZWO"]
[null,null,null,null,null,null,null,null,null,null,null,null,null,null,null,null,{"$f":"VLOOKUP(P281,'Input MCC'!B:C,2,0)","v":{"$error":"#N/A"}},{"$f":"VLOOKUP(P281,'Input MCC'!B:E,4,0)","v":{"$error":"#N/A"}},null,null,null,null,null,null,null,null,null,null,null,null,null,{"$error":"#DIV/0!"},0,0,null,"","","","","","","","","","",null,null,null,null,null,null,null,null,null,null,null,null,null,null,null,null,null,"ZWO"]
[null,null,null,null,null,null,null,null,null,null,null,null,null,null,null,null,{"$f":"VLOOKUP(P282,'Input MCC'!B:C,2,0)","v":{"$error":"#N/A"}},{"$f":"VLOOKUP(P282,'Input MCC'!B:E,4,0)","v":{"$error":"#N/A"}},null,null,null,null,{"$f":"SUM(V282:V287)","v":0},null,null,null,null,null,null,null,null,{"$error":"#DIV/0!"},0,0,null,"","","","","","","","","","",null,null,null,null,null,null,null,null,null,null,null,null,null,null,null,null,null,"ZWO"]
[null,null,null,null,null,null,null,null,null,null,null,null,null,null,null,null,{"$f":"VLOOKUP(P283,'Input MCC'!B:C,2,0)","v":{"$error":"#N/A"}},{"$f":"VLOOKUP(P283,'Input MCC'!B:E,4,0)","v":{"$error":"#N/A"}},null,null,null,null,null,null,null,null,null,null,null,null,null,{"$error":"#DIV/0!"},0,0,null,"","","","","","","","","","",null,null,null,null,null,null,null,null,null,null,null,null,null,null,null,null,null,"ZWO"]
[null,null,null,null,null,null,null,null,null,null,null,null,null,null,null,null,{"$f":"VLOOKUP(P284,'Input MCC'!B:C,2,0)","v":{"$error":"#N/A"}},{"$f":"VLOOKUP(P284,'Input MCC'!B:E,4,0)","v":{"$error":"#N/A"}},null,null,null,null,null,null,null,null,null,null,null,null,null,{"$error":"#DIV/0!"},0,0,null,"","","","","","","","","","",null,null,null,null,null,null,null,null,null,null,null,null,null,null,null,null,null,"ZWO"]
[null,null,null,null,null,null,null,null,null,null,null,null,null,null,null,null,{"$f":"VLOOKUP(P285,'Input MCC'!B:C,2,0)","v":{"$error":"#N/A"}},{"$f":"VLOOKUP(P285,'Input MCC'!B:E,4,0)","v":{"$error":"#N/A"}},null,null,null,null,null,null,null,null,null,null,null,null,null,{"$error":"#DIV/0!"},0,0,null,"","","","","","","","","","",null,null,null,null,null,null,null,null,null,null,null,null,null,null,null,null,null,"ZWO"]
[null,null,null,null,null,null,null,null,null,null,null,null,null,null,null,null,{"$f":"VLOOKUP(P286,'Input MCC'!B:C,2,0)","v":{"$error":"#N/A"}},{"$f":"VLOOKUP(P286,'Input MCC'!B:E,4,0)","v":{"$error":"#N/A"}},null,null,null,null,null,null,null,null,null,null,null,null,null,{"$error":"#DIV/0!"},0,0,null,"","","","","","","","","","",null,null,null,null,null,null,null,null,null,null,null,null,null,null,null,null,null,"ZWO"]
[null,null,null,null,null,null,null,null,null,null,null,null,null,null,null,null,{"$f":"VLOOKUP(P287,'Input MCC'!B:C,2,0)","v":{"$error":"#N/A"}},{"$f":"VLOOKUP(P287,'Input MCC'!B:E,4,0)","v":{"$error":"#N/A"}},null,null,null,null,null,null,null,null,null,null,null,null,null,{"$error":"#DIV/0!"},0,0,null,"","","","","","","","","","",null,null,null,null,null,null,null,null,null,null,null,null,null,null,null,null,null,"ZWO"]
[null,null,null,null,null,null,null,null,null,null,null,null,null,null,null,null,{"$f":"VLOOKUP(P288,'Input MCC'!B:C,2,0)","v":{"$error":"#N/A"}},{"$f":"VLOOKUP(P288,'Input MCC'!B:E,4,0)","v":{"$error":"#N/A"}},null,null,null,null,{"$f":"SUM(V288:V293)","v":0},null,null,null,null,null,null,null,null,{"$error":"#DIV/0!"},0,0,null,"","","","","","","","","","",null,null,null,null,null,null,null,null,null,null,null,null,null,null,null,null,null,"ZWO"]
[null,null,null,null,null,null,null,null,null,null,null,null,null,null,null,null,{"$f":"VLOOKUP(P289,'Input MCC'!B:C,2,0)","v":{"$error":"#N/A"}},{"$f":"VLOOKUP(P289,'Input MCC'!B:E,4,0)","v":{"$error":"#N/A"}},null,null,null,null,null,null,null,null,null,null,null,null,null,{"$error":"#DIV/0!"},0,0,null,"","","","","","","","","","",null,null,null,null,null,null,null,null,null,null,null,null,null,null,null,null,null,"ZWO"]
[null,null,null,null,null,null,null,null,null,null,null,null,null,null,null,null,{"$f":"VLOOKUP(P290,'Input MCC'!B:C,2,0)","v":{"$error":"#N/A"}},{"$f":"VLOOKUP(P290,'Input MCC'!B:E,4,0)","v":{"$error":"#N/A"}},null,null,null,null,null,null,null,null,null,null,null,null,null,{"$error":"#DIV/0!"},0,0,null,"","","","","","","","","","",null,null,null,null,null,null,null,null,null,null,null,null,null,null,null,null,null,"ZWO"]
[null,null,null,null,null,null,null,null,null,null,null,null,null,null,null,null,{"$f":"VLOOKUP(P291,'Input MCC'!B:C,2,0)","v":{"$error":"#N/A"}},{"$f":"VLOOKUP(P291,'Input MCC'!B:E,4,0)","v":{"$error":"#N/A"}},null,null,null,null,null,null,null,null,null,null,null,null,null,{"$error":"#DIV/0!"},0,0,null,"","","","","","","","","","",null,null,null,null,null,null,null,null,null,null,null,null,null,null,null,null,null,"ZWO"]
[null,null,null,null,null,null,null,null,null,null,null,null,null,null,null,null,{"$f":"VLOOKUP(P292,'Input MCC'!B:C,2,0)","v":{"$error":"#N/A"}},{"$f":"VLOOKUP(P292,'Input MCC'!B:E,4,0)","v":{"$error":"#N/A"}},null,null,null,null,null,null,null,null,null,null,null,null,null,{"$error":"#DIV/0!"},0,0,null,"","","","","","","","","","",null,null,null,null,null,null,null,null,null,null,null,null,null,null,null,null,null,"ZWO"]
[null,null,null,null,null,null,null,null,null,null,null,null,null,null,null,null,{"$f":"VLOOKUP(P293,'Input MCC'!B:C,2,0)","v":{"$error":"#N/A"}},{"$f":"VLOOKUP(P293,'Input MCC'!B:E,4,0)","v":{"$error":"#N/A"}},null,null,null,null,null,null,null,null,null,null,null,null,null,{"$error":"#DIV/0!"},0,0,null,"","","","","","","","","","",null,null,null,null,null,null,null,null,null,null,null,null,null,null,null,null,null,"ZWO"]
[null,null,null,null,null,null,null,null,null,null,null,null,null,null,null,null,{"$f":"VLOOKUP(P294,'Input MCC'!B:C,2,0)","v":{"$error":"#N/A"}},{"$f":"VLOOKUP(P294,'Input MCC'!B:E,4,0)","v":{"$error":"#N/A"}},null,null,null,null,{"$f":"SUM(V294:V299)","v":0},null,null,null,null,null,null,null,null,{"$error":"#DIV/0!"},0,0,null,"","","","","","","","","","",null,null,null,null,null,null,null,null,null,null,null,null,null,null,null,null,null,"ZWO"]
[null,null,null,null,null,null,null,null,null,null,null,null,null,null,null,null,{"$f":"VLOOKUP(P295,'Input MCC'!B:C,2,0)","v":{"$error":"#N/A"}},{"$f":"VLOOKUP(P295,'Input MCC'!B:E,4,0)","v":{"$error":"#N/A"}},null,null,null,null,null,null,null,null,null,null,null,null,null,{"$error":"#DIV/0!"},0,0,null,"","","","","","","","","","",null,null,null,null,null,null,null,null,null,null,null,null,null,null,null,null,null,"ZWO"]
[null,null,null,null,null,null,null,null,null,null,null,null,null,null,null,null,{"$f":"VLOOKUP(P296,'Input MCC'!B:C,2,0)","v":{"$error":"#N/A"}},{"$f":"VLOOKUP(P296,'Input MCC'!B:E,4,0)","v":{"$error":"#N/A"}},null,null,null,null,null,null,null,null,null,null,null,null,null,{"$error":"#DIV/0!"},0,0,null,"","","","","","","","","","",null,null,null,null,null,null,null,null,null,null,null,null,null,null,null,null,null,"ZWO"]
[null,null,null,null,null,null,null,null,null,null,null,null,null,null,null,null,{"$f":"VLOOKUP(P297,'Input MCC'!B:C,2,0)","v":{"$error":"#N/A"}},{"$f":"VLOOKUP(P297,'Input MCC'!B:E,4,0)","v":{"$error":"#N/A"}},null,null,null,null,null,null,null,null,null,null,null,null,null,{"$error":"#DIV/0!"},0,0,null,"","","","","","","","","","",null,null,null,null,null,null,null,null,null,null,null,null,null,null,null,null,null,"ZWO"]
[null,null,null,null,null,null,null,null,null,null,null,null,null,null,null,null,{"$f":"VLOOKUP(P298,'Input MCC'!B:C,2,0)","v":{"$error":"#N/A"}},{"$f":"VLOOKUP(P298,'Input MCC'!B:E,4,0)","v":{"$error":"#N/A"}},null,null,null,null,null,null,null,null,null,null,null,null,null,{"$error":"#DIV/0!"},0,0,null,"","","","","","","","","","",null,null,null,null,null,null,null,null,null,null,null,null,null,null,null,null,null,"ZWO"]
[null,null,null,null,null,null,null,null,null,null,null,null,null,null,null,null,{"$f":"VLOOKUP(P299,'Input MCC'!B:C,2,0)","v":{"$error":"#N/A"}},{"$f":"VLOOKUP(P299,'Input MCC'!B:E,4,0)","v":{"$error":"#N/A"}},null,null,null,null,null,null,null,null,null,null,null,null,null,{"$error":"#DIV/0!"},0,0,null,"","","","","","","","","","",null,null,null,null,null,null,null,null,null,null,null,null,null,null,null,null,null,"ZWO"]
[null,null,null,null,null,null,null,null,null,null,null,null,null,null,null,null,{"$f":"VLOOKUP(P300,'Input MCC'!B:C,2,0)","v":{"$error":"#N/A"}},{"$f":"VLOOKUP(P300,'Input MCC'!B:E,4,0)","v":{"$error":"#N/A"}},null,null,null,null,{"$f":"SUM(V300:V305)","v":0},null,null,null,null,null,null,null,null,{"$error":"#DIV/0!"},0,0,null,"","","","","","","","","","",null,null,null,null,null,null,null,null,null,null,null,null,null,null,null,null,null,"ZWO"]
[null,null,null,null,null,null,null,null,null,null,null,null,null,null,null,null,{"$f":"VLOOKUP(P301,'Input MCC'!B:C,2,0)","v":{"$error":"#N/A"}},{"$f":"VLOOKUP(P301,'Input MCC'!B:E,4,0)","v":{"$error":"#N/A"}},null,null,null,null,null,null,null,null,null,null,null,null,null,{"$error":"#DIV/0!"},0,0,null,"","","","","","","","","","",null,null,null,null,null,null,null,null,null,null,null,null,null,null,null,null,null,"ZWO"]
[null,null,null,null,null,null,null,null,null,null,null,null,null,null,null,null,{"$f":"VLOOKUP(P302,'Input MCC'!B:C,2,0)","v":{"$error":"#N/A"}},{"$f":"VLOOKUP(P302,'Input MCC'!B:E,4,0)","v":{"$error":"#N/A"}},null,null,null,null,null,null,null,null,null,null,null,null,null,{"$error":"#DIV/0!"},0,0,null,"","","","","","","","","","",null,null,null,null,null,null,null,null,null,null,null,null,null,null,null,null,null,"ZWO"]
[null,null,null,null,null,null,null,null,null,null,null,null,null,null,null,null,{"$f":"VLOOKUP(P303,'Input MCC'!B:C,2,0)","v":{"$error":"#N/A"}},{"$f":"VLOOKUP(P303,'Input MCC'!B:E,4,0)","v":{"$error":"#N/A"}},null,null,null,null,null,null,null,null,null,null,null,null,null,{"$error":"#DIV/0!"},0,0,null,"","","","","","","","","","",null,null,null,null,null,null,null,null,null,null,null,null,null,null,null,null,null,"ZWO"]
[null,null,null,null,null,null,null,null,null,null,null,null,null,null,null,null,{"$f":"VLOOKUP(P304,'Input MCC'!B:C,2,0)","v":{"$error":"#N/A"}},{"$f":"VLOOKUP(P304,'Input MCC'!B:E,4,0)","v":{"$error":"#N/A"}},null,null,null,null,null,null,null,null,null,null,null,null,null,{"$error":"#DIV/0!"},0,0,null,"","","","","","","","","","",null,null,null,null,null,null,null,null,null,null,null,null,null,null,null,null,null,"ZWO"]
[null,null,null,null,null,null,null,null,null,null,null,null,null,null,null,null,{"$f":"VLOOKUP(P305,'Input MCC'!B:C,2,0)","v":{"$error":"#N/A"}},{"$f":"VLOOKUP(P305,'Input MCC'!B:E,4,0)","v":{"$error":"#N/A"}},null,null,null,null,null,null,null,null,null,null,null,null,null,{"$error":"#DIV/0!"},0,0,null,"","","","","","","","","","",null,null,null,null,null,null,null,null,null,null,null,null,null,null,null,null,null,"ZWO"]
[null,null,null,null,null,null,null,null,null,null,null,null,null,null,null,null,{"$f":"VLOOKUP(P306,'Input MCC'!B:C,2,0)","v":{"$error":"#N/A"}},{"$f":"VLOOKUP(P306,'Input MCC'!B:E,4,0)","v":{"$error":"#N/A"}},null,null,null,null,{"$f":"SUM(V306:V311)","v":0},null,null,null,null,null,null,null,null,{"$error":"#DIV/0!"},0,0,null,"","","","","","","","","","",null,null,null,null,null,null,null,null,null,null,null,null,null,null,null,null,null,"ZWO"]
[null,null,null,null,null,null,null,null,null,null,null,null,null,null,null,null,{"$f":"VLOOKUP(P307,'Input MCC'!B:C,2,0)","v":{"$error":"#N/A"}},{"$f":"VLOOKUP(P307,'Input MCC'!B:E,4,0)","v":{"$error":"#N/A"}},null,null,null,null,null,null,null,null,null,null,null,null,null,{"$error":"#DIV/0!"},0,0,null,"","","","","","","","","","",null,null,null,null,null,null,null,null,null,null,null,null,null,null,null,null,null,"ZWO"]
[null,null,null,null,null,null,null,null,null,null,null,null,null,null,null,null,{"$f":"VLOOKUP(P308,'Input MCC'!B:C,2,0)","v":{"$error":"#N/A"}},{"$f":"VLOOKUP(P308,'Input MCC'!B:E,4,0)","v":{"$error":"#N/A"}},null,null,null,null,null,null,null,null,null,null,null,null,null,{"$error":"#DIV/0!"},0,0,null,"","","","","","","","","","",null,null,null,null,null,null,null,null,null,null,null,null,null,null,null,null,null,"ZWO"]
[null,null,null,null,null,null,null,null,null,null,null,null,null,null,null,null,{"$f":"VLOOKUP(P309,'Input MCC'!B:C,2,0)","v":{"$error":"#N/A"}},{"$f":"VLOOKUP(P309,'Input MCC'!B:E,4,0)","v":{"$error":"#N/A"}},null,null,null,null,null,null,null,null,null,null,null,null,null,{"$error":"#DIV/0!"},0,0,null,"","","","","","","","","","",null,null,null,null,null,null,null,null,null,null,null,null,null,null,null,null,null,"ZWO"]
[null,null,null,null,null,null,null,null,null,null,null,null,null,null,null,null,{"$f":"VLOOKUP(P310,'Input MCC'!B:C,2,0)","v":{"$error":"#N/A"}},{"$f":"VLOOKUP(P310,'Input MCC'!B:E,4,0)","v":{"$error":"#N/A"}},null,null,null,null,null,null,null,null,null,null,null,null,null,{"$error":"#DIV/0!"},0,0,null,"","","","","","","","","","",null,null,null,null,null,null,null,null,null,null,null,null,null,null,null,null,null,"ZWO"]
[null,null,null,null,null,null,null,null,null,null,null,null,null,null,null,null,{"$f":"VLOOKUP(P311,'Input MCC'!B:C,2,0)","v":{"$error":"#N/A"}},{"$f":"VLOOKUP(P311,'Input MCC'!B:E,4,0)","v":{"$error":"#N/A"}},null,null,null,null,null,null,null,null,null,null,null,null,null,{"$error":"#DIV/0!"},0,0,null,"","","","","","","","","","",null,null,null,null,null,null,null,null,null,null,null,null,null,null,null,null,null,"ZWO"]
[null,null,null,null,null,null,null,null,null,null,null,null,null,null,null,null,{"$f":"VLOOKUP(P312,'Input MCC'!B:C,2,0)","v":{"$error":"#N/A"}},{"$f":"VLOOKUP(P312,'Input MCC'!B:E,4,0)","v":{"$error":"#N/A"}},null,null,null,null,{"$f":"SUM(V312:V317)","v":0},null,null,null,null,null,null,null,null,{"$error":"#DIV/0!"},0,0,null,"","","","","","","","","","",null,null,null,null,null,null,null,null,null,null,null,null,null,null,null,null,null,"ZWO"]
[null,null,null,null,null,null,null,null,null,null,null,null,null,null,null,null,{"$f":"VLOOKUP(P313,'Input MCC'!B:C,2,0)","v":{"$error":"#N/A"}},{"$f":"VLOOKUP(P313,'Input MCC'!B:E,4,0)","v":{"$error":"#N/A"}},null,null,null,null,null,null,null,null,null,null,null,null,null,{"$error":"#DIV/0!"},0,0,null,"","","","","","","","","","",null,null,null,null,null,null,null,null,null,null,null,null,null,null,null,null,null,"ZWO"]
[null,null,null,null,null,null,null,null,null,null,null,null,null,null,null,null,{"$f":"VLOOKUP(P314,'Input MCC'!B:C,2,0)","v":{"$error":"#N/A"}},{"$f":"VLOOKUP(P314,'Input MCC'!B:E,4,0)","v":{"$error":"#N/A"}},null,null,null,null,null,null,null,null,null,null,null,null,null,{"$error":"#DIV/0!"},0,0,null,"","","","","","","","","","",null,null,null,null,null,null,null,null,null,null,null,null,null,null,null,null,null,"ZWO"]
[null,null,null,null,null,null,null,null,null,null,null,null,null,null,null,null,{"$f":"VLOOKUP(P315,'Input MCC'!B:C,2,0)","v":{"$error":"#N/A"}},{"$f":"VLOOKUP(P315,'Input MCC'!B:E,4,0)","v":{"$error":"#N/A"}},null,null,null,null,null,null,null,null,null,null,null,null,null,{"$error":"#DIV/0!"},0,0,null,"","","","","","","","","","",null,null,null,null,null,null,null,null,null,null,null,null,null,null,null,null,null,"ZWO"]
[null,null,null,null,null,null,null,null,null,null,null,null,null,null,null,null,{"$f":"VLOOKUP(P316,'Input MCC'!B:C,2,0)","v":{"$error":"#N/A"}},{"$f":"VLOOKUP(P316,'Input MCC'!B:E,4,0)","v":{"$error":"#N/A"}},null,null,null,null,null,null,null,null,null,null,null,null,null,{"$error":"#DIV/0!"},0,0,null,"","","","","","","","","","",null,null,null,null,null,null,null,null,null,null,null,null,null,null,null,null,null,"ZWO"]
[null,null,null,null,null,null,null,null,null,null,null,null,null,null,null,null,{"$f":"VLOOKUP(P317,'Input MCC'!B:C,2,0)","v":{"$error":"#N/A"}},{"$f":"VLOOKUP(P317,'Input MCC'!B:E,4,0)","v":{"$error":"#N/A"}},null,null,null,null,null,null,null,null,null,null,null,null,null,{"$error":"#DIV/0!"},0,0,null,"","","","","","","","","","",null,null,null,null,null,null,null,null,null,null,null,null,null,null,null,null,null,"ZWO"]
[null,null,null,null,null,null,null,null,null,null,null,null,null,null,null,null,{"$f":"VLOOKUP(P318,'Input MCC'!B:C,2,0)","v":{"$error":"#N/A"}},{"$f":"VLOOKUP(P318,'Input MCC'!B:E,4,0)","v":{"$error":"#N/A"}},null,null,null,null,{"$f":"SUM(V318:V323)","v":0},null,null,null,null,null,null,null,null,{"$error":"#DIV/0!"},0,0,null,"","","","","","","","","","",null,null,null,null,null,null,null,null,null,null,null,null,null,null,null,null,null,"ZWO"]
[null,null,null,null,null,null,null,null,null,null,null,null,null,null,null,null,{"$f":"VLOOKUP(P319,'Input MCC'!B:C,2,0)","v":{"$error":"#N/A"}},{"$f":"VLOOKUP(P319,'Input MCC'!B:E,4,0)","v":{"$error":"#N/A"}},null,null,null,null,null,null,null,null,null,null,null,null,null,{"$error":"#DIV/0!"},0,0,null,"","","","","","","","","","",null,null,null,null,null,null,null,null,null,null,null,null,null,null,null,null,null,"ZWO"]
[null,null,null,null,null,null,null,null,null,null,null,null,null,null,null,null,{"$f":"VLOOKUP(P320,'Input MCC'!B:C,2,0)","v":{"$error":"#N/A"}},{"$f":"VLOOKUP(P320,'Input MCC'!B:E,4,0)","v":{"$error":"#N/A"}},null,null,null,null,null,null,null,null,null,null,null,null,null,{"$error":"#DIV/0!"},0,0,null,"","","","","","","","","","",null,null,null,null,null,null,null,null,null,null,null,null,null,null,null,null,null,"ZWO"]
[null,null,null,null,null,null,null,null,null,null,null,null,null,null,null,null,{"$f":"VLOOKUP(P321,'Input MCC'!B:C,2,0)","v":{"$error":"#N/A"}},{"$f":"VLOOKUP(P321,'Input MCC'!B:E,4,0)","v":{"$error":"#N/A"}},null,null,null,null,null,null,null,null,null,null,null,null,null,{"$error":"#DIV/0!"},0,0,null,"","","","","","","","","","",null,null,null,null,null,null,null,null,null,null,null,null,null,null,null,null,null,"ZWO"]
[null,null,null,null,null,null,null,null,null,null,null,null,null,null,null,null,{"$f":"VLOOKUP(P322,'Input MCC'!B:C,2,0)","v":{"$error":"#N/A"}},{"$f":"VLOOKUP(P322,'Input MCC'!B:E,4,0)","v":{"$error":"#N/A"}},null,null,null,null,null,null,null,null,null,null,null,null,null,{"$error":"#DIV/0!"},0,0,null,"","","","","","","","","","",null,null,null,null,null,null,null,null,null,null,null,null,null,null,null,null,null,"ZWO"]
[null,null,null,null,null,null,null,null,null,null,null,null,null,null,null,null,{"$f":"VLOOKUP(P323,'Input MCC'!B:C,2,0)","v":{"$error":"#N/A"}},{"$f":"VLOOKUP(P323,'Input MCC'!B:E,4,0)","v":{"$error":"#N/A"}},null,null,null,null,null,null,null,null,null,null,null,null,null,{"$error":"#DIV/0!"},0,0,null,"","","","","","","","","","",null,null,null,null,null,null,null,null,null,null,null,null,null,null,null,null,null,"ZWO"]
[null,null,null,null,null,null,null,null,null,null,null,null,null,null,null,null,{"$f":"VLOOKUP(P324,'Input MCC'!B:C,2,0)","v":{"$error":"#N/A"}},{"$f":"VLOOKUP(P324,'Input MCC'!B:E,4,0)","v":{"$error":"#N/A"}},null,null,null,null,{"$f":"SUM(V324:V329)","v":0},null,null,null,null,null,null,null,null,{"$error":"#DIV/0!"},0,0,null,"","","","","","","","","","",null,null,null,null,null,null,null,null,null,null,null,null,null,null,null,null,null,"ZWO"]
[null,null,null,null,null,null,null,null,null,null,null,null,null,null,null,null,{"$f":"VLOOKUP(P325,'Input MCC'!B:C,2,0)","v":{"$error":"#N/A"}},{"$f":"VLOOKUP(P325,'Input MCC'!B:E,4,0)","v":{"$error":"#N/A"}},null,null,null,null,null,null,null,null,null,null,null,null,null,{"$error":"#DIV/0!"},0,0,null,"","","","","","","","","","",null,null,null,null,null,null,null,null,null,null,null,null,null,null,null,null,null,"ZWO"]
[null,null,null,null,null,null,null,null,null,null,null,null,null,null,null,null,{"$f":"VLOOKUP(P326,'Input MCC'!B:C,2,0)","v":{"$error":"#N/A"}},{"$f":"VLOOKUP(P326,'Input MCC'!B:E,4,0)","v":{"$error":"#N/A"}},null,null,null,null,null,null,null,null,null,null,null,null,null,{"$error":"#DIV/0!"},0,0,null,{"$f":"IF(AI326 <> \"\",\n    IF(ISNUMBER(VALUE(LEFT(AI326, FIND(\"%\", AI326)-1))),\n        VALUE(LEFT(AI326, FIND(\"%\", AI326)-1)),\n        \"Invalid format\"),\n    \"\")","v":""},{"$f":"IF(AI326 <> \"\",\n    IF(ISNUMBER(VALUE(LEFT(AI326, FIND(\"%\", AI326)-1))) * ISNUMBER(FIND(\"%\", AI326 & \"wol\")) > 0,\n        TRIM(MID(AI326, FIND(\"%\", AI326)+1, FIND(\"/\", AI326 & \"/\")-FIND(\"%\", AI326)-1)),\n        \"Invalid format\"),\n    \"\")","v":""},{"$f":"IF(AI326 <> \"\",\n    IF(ISNUMBER(VALUE(MID(AI326, FIND(\"/\", AI326) + 1, FIND(\"%\", AI326, FIND(\"/\", AI326)) - FIND(\"/\", AI326) - 1))),\n        VALUE(MID(AI326, FIND(\"/\", AI326) + 1, FIND(\"%\", AI326, FIND(\"/\", AI326)) - FIND(\"/\", AI326) - 1)),\n        \"\"),\n    \"\")","v":""},{"$f":"IF(AI326 <> \"\",\n    IFERROR(TRIM(MID(AI326, FIND(\"%\", AI326, FIND(\"/\", AI326)+1)+2,\n        IFERROR(FIND(\"/\", AI326 & \"/\", FIND(\"/\", AI326)+1)-FIND(\"%\", AI326, FIND(\"/\", AI326)+1)-2, LEN(AI326)-FIND(\"%\", AI326, FIND(\"/\", AI326)+1)-1))),\n        \"\"),\n    \"\")","v":""},{"$f":"IF(AI326 <> \"\",\n    IF(ISNUMBER(VALUE(MID(AI326, FIND(\"/\", AI326, FIND(\"/\", AI326)+1) + 1, FIND(\"%\", AI326, FIND(\"/\", AI326, FIND(\"/\", AI326)+1)) - FIND(\"/\", AI326, FIND(\"/\", AI326)+1) - 1))),\n        VALUE(MID(AI326, FIND(\"/\", AI326, FIND(\"/\", AI326)+1) + 1, FIND(\"%\", AI326, FIND(\"/\", AI326, FIND(\"/\", AI326)+1)) - FIND(\"/\", AI326, FIND(\"/\", AI326)+1) - 1)),\n        \"\"),\n    \"\")","v":""},{"$f":"IF(AI326 <> \"\",\n    IFERROR(\n        TRIM(MID(AI326,\n            FIND(\"%\", AI326, FIND(\"%\", AI326, FIND(\"%\", AI326)+1)+1)+1,\n            FIND(\"/\", AI326 & \"/\", FIND(\"%\", AI326, FIND(\"%\", AI326, FIND(\"%\", AI326)+1)+1))-FIND(\"%\", AI326, FIND(\"%\", AI326, FIND(\"%\", AI326)+1)+1)-1)\n        ),\n        \"\"\n    ),\n    \"\"\n)","v":""},{"$f":"IF(AI326 <> \"\",\n    IF(ISNUMBER(VALUE(MID(AI326, FIND(\"/\", AI326, FIND(\"/\", AI326, FIND(\"/\", AI326)+1)+1) + 1, FIND(\"%\", AI326, FIND(\"/\", AI326, FIND(\"/\", AI326, FIND(\"/\", AI326)+1)+1)) - FIND(\"/\", AI326, FIND(\"/\", AI326, FIND(\"/\", AI326)+1)+1) - 1))),\n        VALUE(MID(AI326, FIND(\"/\", AI326, FIND(\"/\", AI326, FIND(\"/\", AI326)+1)+1) + 1, FIND(\"%\", AI326, FIND(\"/\", AI326, FIND(\"/\", AI326, FIND(\"/\", AI326)+1)+1)) - FIND(\"/\", AI326, FIND(\"/\", AI326, FIND(\"/\", AI326)+1)+1) - 1)),\n        \"\"),\n    \"\")","v":""},{"$f":"IF(AI326 <> \"\",\n    IFERROR(TRIM(MID(AI326, FIND(\"%\", AI326, FIND(\"/\", AI326, FIND(\"/\", AI326, FIND(\"/\", AI326)+1)+1)+1)+2,\n        IFERROR(FIND(\"/\", AI326, FIND(\"/\", AI326, FIND(\"/\", AI326, FIND(\"/\", AI326)+1)+1)+1)-FIND(\"%\", AI326, FIND(\"/\", AI326, FIND(\"/\", AI326, FIND(\"/\", AI326)+1)+1)+1)-2, LEN(AI326)-FIND(\"%\", AI326, FIND(\"/\", AI326, FIND(\"/\", AI326, FIND(\"/\", AI326)+1)+1)+1)-1))),\n        \"\"),\n    \"\")","v":""},{"$f":"IF(AI326 <> \"\",\n    IF(ISNUMBER(VALUE(MID(AI326, FIND(\"/\", AI326, FIND(\"/\", AI326, FIND(\"/\", AI326, FIND(\"/\", AI326)+1)+1)+1) + 1, FIND(\"%\", AI326, FIND(\"/\", AI326, FIND(\"/\", AI326, FIND(\"/\", AI326, FIND(\"/\", AI326)+1)+1)+1)) - FIND(\"/\", AI326, FIND(\"/\", AI326, FIND(\"/\", AI326, FIND(\"/\", AI326)+1)+1)+1) - 1))),\n        VALUE(MID(AI326, FIND(\"/\", AI326, FIND(\"/\", AI326, FIND(\"/\", AI326, FIND(\"/\", AI326)+1)+1)+1) + 1, FIND(\"%\", AI326, FIND(\"/\", AI326, FIND(\"/\", AI326, FIND(\"/\", AI326, FIND(\"/\", AI326)+1)+1)+1)) - FIND(\"/\", AI326, FIND(\"/\", AI326, FIND(\"/\", AI326, FIND(\"/\", AI326)+1)+1)+1) - 1)),\n        \"\"),\n    \"\")","v":""},{"$f":"IF(AI326 = \"\", \"\",\n    IFERROR(TRIM(\n        MID(\n            AI326,\n            FIND(\"%\", AI326, FIND(\"/\", AI326, FIND(\"/\", AI326, FIND(\"/\", AI326, FIND(\"/\", AI326)+1)+1)+1)+1) + 1,\n            FIND(\"/\", AI326 & \"/\", FIND(\"%\", AI326, FIND(\"/\", AI326, FIND(\"/\", AI326, FIND(\"/\", AI326, FIND(\"/\", AI326)+1)+1)+1)+1)) -\n            FIND(\"%\", AI326, FIND(\"/\", AI326, FIND(\"/\", AI326, FIND(\"/\", AI326, FIND(\"/\", AI326)+1)+1)+1)+1) - 1\n        )\n    ),\n    \"\")\n)","v":""},null,null,null,null,null,null,null,null,null,null,null,null,null,null,null,null,null,"ZWO"]
[null,null,null,null,null,null,null,null,null,null,null,null,null,null,null,null,{"$f":"VLOOKUP(P327,'Input MCC'!B:C,2,0)","v":{"$error":"#N/A"}},{"$f":"VLOOKUP(P327,'Input MCC'!B:E,4,0)","v":{"$error":"#N/A"}},null,null,null,null,null,null,null,null,null,null,null,null,null,{"$f":"AE327/AC327","v":{"$error":"#DIV/0!"}},0,0,null,"","","","","","","","","","",null,null,null,null,null,null,null,null,null,null,null,null,null,null,null,null,null,"ZWO"]
[null,null,null,null,null,null,null,null,null,null,null,null,null,null,null,null,{"$f":"VLOOKUP(P328,'Input MCC'!B:C,2,0)","v":{"$error":"#N/A"}},{"$f":"VLOOKUP(P328,'Input MCC'!B:E,4,0)","v":{"$error":"#N/A"}},null,null,null,null,null,null,null,null,null,null,null,null,null,{"$error":"#DIV/0!"},{"$f":"V328*AC328","v":0},{"$f":"V328*AE328","v":0},null,"","","","","","","","","","",null,null,null,null,null,null,null,null,null,null,null,null,null,null,null,null,null,"ZWO"]
[null,null,null,null,null,null,null,null,null,null,null,null,null,null,null,null,{"$f":"VLOOKUP(P329,'Input MCC'!B:C,2,0)","v":{"$error":"#N/A"}},{"$f":"VLOOKUP(P329,'Input MCC'!B:E,4,0)","v":{"$error":"#N/A"}},null,null,null,null,null,null,null,null,null,null,null,null,null,{"$error":"#DIV/0!"},0,0,null,"","","","","","","","","","",null,null,null,null,null,null,null,null,null,null,null,null,null,null,null,null,null,"ZWO"]
[null,null,null,null,null,null,null,null,null,null,null,null,null,null,null,null,{"$f":"VLOOKUP(P330,'Input MCC'!B:C,2,0)","v":{"$error":"#N/A"}},{"$f":"VLOOKUP(P330,'Input MCC'!B:E,4,0)","v":{"$error":"#N/A"}},null,null,null,null,{"$f":"SUM(V330:V335)","v":0},null,null,null,null,null,null,null,null,{"$error":"#DIV/0!"},0,0,null,"","","","","","","","","","",null,null,null,null,null,null,null,null,null,null,null,null,null,null,null,null,null,"ZWO"]
[null,null,null,null,null,null,null,null,null,null,null,null,null,null,null,null,{"$f":"VLOOKUP(P331,'Input MCC'!B:C,2,0)","v":{"$error":"#N/A"}},{"$f":"VLOOKUP(P331,'Input MCC'!B:E,4,0)","v":{"$error":"#N/A"}},null,null,null,null,null,null,null,null,null,null,null,null,null,{"$error":"#DIV/0!"},0,0,null,"","","","","","","","","","",null,null,null,null,null,null,null,null,null,null,null,null,null,null,null,null,null,"ZWO"]
[null,null,null,null,null,null,null,null,null,null,null,null,null,null,null,null,{"$f":"VLOOKUP(P332,'Input MCC'!B:C,2,0)","v":{"$error":"#N/A"}},{"$f":"VLOOKUP(P332,'Input MCC'!B:E,4,0)","v":{"$error":"#N/A"}},null,null,null,null,null,null,null,null,null,null,null,null,null,{"$error":"#DIV/0!"},0,0,null,"","","","","","","","","","",null,null,null,null,null,null,null,null,null,null,null,null,null,null,null,null,null,"ZWO"]
[null,null,null,null,null,null,null,null,null,null,null,null,null,null,null,null,{"$f":"VLOOKUP(P333,'Input MCC'!B:C,2,0)","v":{"$error":"#N/A"}},{"$f":"VLOOKUP(P333,'Input MCC'!B:E,4,0)","v":{"$error":"#N/A"}},null,null,null,null,null,null,null,null,null,null,null,null,null,{"$error":"#DIV/0!"},0,0,null,"","","","","","","","","","",null,null,null,null,null,null,null,null,null,null,null,null,null,null,null,null,null,"ZWO"]
[null,null,null,null,null,null,null,null,null,null,null,null,null,null,null,null,{"$f":"VLOOKUP(P334,'Input MCC'!B:C,2,0)","v":{"$error":"#N/A"}},{"$f":"VLOOKUP(P334,'Input MCC'!B:E,4,0)","v":{"$error":"#N/A"}},null,null,null,null,null,null,null,null,null,null,null,null,null,{"$error":"#DIV/0!"},0,0,null,"","","","","","","","","","",null,null,null,null,null,null,null,null,null,null,null,null,null,null,null,null,null,"ZWO"]
[null,null,null,null,null,null,null,null,null,null,null,null,null,null,null,null,{"$f":"VLOOKUP(P335,'Input MCC'!B:C,2,0)","v":{"$error":"#N/A"}},{"$f":"VLOOKUP(P335,'Input MCC'!B:E,4,0)","v":{"$error":"#N/A"}},null,null,null,null,null,null,null,null,null,null,null,null,null,{"$error":"#DIV/0!"},0,0,null,"","","","","","","","","","",null,null,null,null,null,null,null,null,null,null,null,null,null,null,null,null,null,"ZWO"]
[null,null,null,null,null,null,null,null,null,null,null,null,null,null,null,null,{"$f":"VLOOKUP(P336,'Input MCC'!B:C,2,0)","v":{"$error":"#N/A"}},{"$f":"VLOOKUP(P336,'Input MCC'!B:E,4,0)","v":{"$error":"#N/A"}},null,null,null,null,{"$f":"SUM(V336:V341)","v":0},null,null,null,null,null,null,null,null,{"$error":"#DIV/0!"},0,0,null,"","","","","","","","","","",null,null,null,null,null,null,null,null,null,null,null,null,null,null,null,null,null,"ZWO"]
[null,null,null,null,null,null,null,null,null,null,null,null,null,null,null,null,{"$f":"VLOOKUP(P337,'Input MCC'!B:C,2,0)","v":{"$error":"#N/A"}},{"$f":"VLOOKUP(P337,'Input MCC'!B:E,4,0)","v":{"$error":"#N/A"}},null,null,null,null,null,null,null,null,null,null,null,null,null,{"$error":"#DIV/0!"},0,0,null,"","","","","","","","","","",null,null,null,null,null,null,null,null,null,null,null,null,null,null,null,null,null,"ZWO"]
[null,null,null,null,null,null,null,null,null,null,null,null,null,null,null,null,{"$f":"VLOOKUP(P338,'Input MCC'!B:C,2,0)","v":{"$error":"#N/A"}},{"$f":"VLOOKUP(P338,'Input MCC'!B:E,4,0)","v":{"$error":"#N/A"}},null,null,null,null,null,null,null,null,null,null,null,null,null,{"$error":"#DIV/0!"},0,0,null,"","","","","","","","","","",null,null,null,null,null,null,null,null,null,null,null,null,null,null,null,null,null,"ZWO"]
[null,null,null,null,null,null,null,null,null,null,null,null,null,null,null,null,{"$f":"VLOOKUP(P339,'Input MCC'!B:C,2,0)","v":{"$error":"#N/A"}},{"$f":"VLOOKUP(P339,'Input MCC'!B:E,4,0)","v":{"$error":"#N/A"}},null,null,null,null,null,null,null,null,null,null,null,null,null,{"$error":"#DIV/0!"},0,0,null,"","","","","","","","","","",null,null,null,null,null,null,null,null,null,null,null,null,null,null,null,null,null,"ZWO"]
[null,null,null,null,null,null,null,null,null,null,null,null,null,null,null,null,{"$f":"VLOOKUP(P340,'Input MCC'!B:C,2,0)","v":{"$error":"#N/A"}},{"$f":"VLOOKUP(P340,'Input MCC'!B:E,4,0)","v":{"$error":"#N/A"}},null,null,null,null,null,null,null,null,null,null,null,null,null,{"$error":"#DIV/0!"},0,0,null,"","","","","","","","","","",null,null,null,null,null,null,null,null,null,null,null,null,null,null,null,null,null,"ZWO"]
[null,null,null,null,null,null,null,null,null,null,null,null,null,null,null,null,{"$f":"VLOOKUP(P341,'Input MCC'!B:C,2,0)","v":{"$error":"#N/A"}},{"$f":"VLOOKUP(P341,'Input MCC'!B:E,4,0)","v":{"$error":"#N/A"}},null,null,null,null,null,null,null,null,null,null,null,null,null,{"$error":"#DIV/0!"},0,0,null,"","","","","","","","","","",null,null,null,null,null,null,null,null,null,null,null,null,null,null,null,null,null,"ZWO"]
[null,null,null,null,null,null,null,null,null,null,null,null,null,null,null,null,{"$f":"VLOOKUP(P342,'Input MCC'!B:C,2,0)","v":{"$error":"#N/A"}},{"$f":"VLOOKUP(P342,'Input MCC'!B:E,4,0)","v":{"$error":"#N/A"}},null,null,null,null,{"$f":"SUM(V342:V347)","v":0},null,null,null,null,null,null,null,null,{"$error":"#DIV/0!"},0,0,null,"","","","","","","","","","",null,null,null,null,null,null,null,null,null,null,null,null,null,null,null,null,null,"ZWO"]
[null,null,null,null,null,null,null,null,null,null,null,null,null,null,null,null,{"$f":"VLOOKUP(P343,'Input MCC'!B:C,2,0)","v":{"$error":"#N/A"}},{"$f":"VLOOKUP(P343,'Input MCC'!B:E,4,0)","v":{"$error":"#N/A"}},null,null,null,null,null,null,null,null,null,null,null,null,null,{"$error":"#DIV/0!"},0,0,null,"","","","","","","","","","",null,null,null,null,null,null,null,null,null,null,null,null,null,null,null,null,null,"ZWO"]
[null,null,null,null,null,null,null,null,null,null,null,null,null,null,null,null,{"$f":"VLOOKUP(P344,'Input MCC'!B:C,2,0)","v":{"$error":"#N/A"}},{"$f":"VLOOKUP(P344,'Input MCC'!B:E,4,0)","v":{"$error":"#N/A"}},null,null,null,null,null,null,null,null,null,null,null,null,null,{"$error":"#DIV/0!"},0,0,null,"","","","","","","","","","",null,null,null,null,null,null,null,null,null,null,null,null,null,null,null,null,null,"ZWO"]
[null,null,null,null,null,null,null,null,null,null,null,null,null,null,null,null,{"$f":"VLOOKUP(P345,'Input MCC'!B:C,2,0)","v":{"$error":"#N/A"}},{"$f":"VLOOKUP(P345,'Input MCC'!B:E,4,0)","v":{"$error":"#N/A"}},null,null,null,null,null,null,null,null,null,null,null,null,null,{"$error":"#DIV/0!"},0,0,null,"","","","","","","","","","",null,null,null,null,null,null,null,null,null,null,null,null,null,null,null,null,null,"ZWO"]
[null,null,null,null,null,null,null,null,null,null,null,null,null,null,null,null,{"$f":"VLOOKUP(P346,'Input MCC'!B:C,2,0)","v":{"$error":"#N/A"}},{"$f":"VLOOKUP(P346,'Input MCC'!B:E,4,0)","v":{"$error":"#N/A"}},null,null,null,null,null,null,null,null,null,null,null,null,null,{"$error":"#DIV/0!"},0,0,null,"","","","","","","","","","",null,null,null,null,null,null,null,null,null,null,null,null,null,null,null,null,null,"ZWO"]
[null,null,null,null,null,null,null,null,null,null,null,null,null,null,null,null,{"$f":"VLOOKUP(P347,'Input MCC'!B:C,2,0)","v":{"$error":"#N/A"}},{"$f":"VLOOKUP(P347,'Input MCC'!B:E,4,0)","v":{"$error":"#N/A"}},null,null,null,null,null,null,null,null,null,null,null,null,null,{"$error":"#DIV/0!"},0,0,null,"","","","","","","","","","",null,null,null,null,null,null,null,null,null,null,null,null,null,null,null,null,null,"ZWO"]
[null,null,null,null,null,null,null,null,null,null,null,null,null,null,null,null,{"$f":"VLOOKUP(P348,'Input MCC'!B:C,2,0)","v":{"$error":"#N/A"}},{"$f":"VLOOKUP(P348,'Input MCC'!B:E,4,0)","v":{"$error":"#N/A"}},null,null,null,null,{"$f":"SUM(V348:V353)","v":0},null,null,null,null,null,null,null,null,{"$error":"#DIV/0!"},0,0,null,"","","","","","","","","","",null,null,null,null,null,null,null,null,null,null,null,null,null,null,null,null,null,"ZWO"]
[null,null,null,null,null,null,null,null,null,null,null,null,null,null,null,null,{"$f":"VLOOKUP(P349,'Input MCC'!B:C,2,0)","v":{"$error":"#N/A"}},{"$f":"VLOOKUP(P349,'Input MCC'!B:E,4,0)","v":{"$error":"#N/A"}},null,null,null,null,null,null,null,null,null,null,null,null,null,{"$error":"#DIV/0!"},0,0,null,"","","","","","","","","","",null,null,null,null,null,null,null,null,null,null,null,null,null,null,null,null,null,"ZWO"]
[null,null,null,null,null,null,null,null,null,null,null,null,null,null,null,null,{"$f":"VLOOKUP(P350,'Input MCC'!B:C,2,0)","v":{"$error":"#N/A"}},{"$f":"VLOOKUP(P350,'Input MCC'!B:E,4,0)","v":{"$error":"#N/A"}},null,null,null,null,null,null,null,null,null,null,null,null,null,{"$error":"#DIV/0!"},0,0,null,"","","","","","","","","","",null,null,null,null,null,null,null,null,null,null,null,null,null,null,null,null,null,"ZWO"]
[null,null,null,null,null,null,null,null,null,null,null,null,null,null,null,null,{"$f":"VLOOKUP(P351,'Input MCC'!B:C,2,0)","v":{"$error":"#N/A"}},{"$f":"VLOOKUP(P351,'Input MCC'!B:E,4,0)","v":{"$error":"#N/A"}},null,null,null,null,null,null,null,null,null,null,null,null,null,{"$error":"#DIV/0!"},0,0,null,"","","","","","","","","","",null,null,null,null,null,null,null,null,null,null,null,null,null,null,null,null,null,"ZWO"]
[null,null,null,null,null,null,null,null,null,null,null,null,null,null,null,null,{"$f":"VLOOKUP(P352,'Input MCC'!B:C,2,0)","v":{"$error":"#N/A"}},{"$f":"VLOOKUP(P352,'Input MCC'!B:E,4,0)","v":{"$error":"#N/A"}},null,null,null,null,null,null,null,null,null,null,null,null,null,{"$error":"#DIV/0!"},0,0,null,"","","","","","","","","","",null,null,null,null,null,null,null,null,null,null,null,null,null,null,null,null,null,"ZWO"]
[null,null,null,null,null,null,null,null,null,null,null,null,null,null,null,null,{"$f":"VLOOKUP(P353,'Input MCC'!B:C,2,0)","v":{"$error":"#N/A"}},{"$f":"VLOOKUP(P353,'Input MCC'!B:E,4,0)","v":{"$error":"#N/A"}},null,null,null,null,null,null,null,null,null,null,null,null,null,{"$error":"#DIV/0!"},0,0,null,"","","","","","","","","","",null,null,null,null,null,null,null,null,null,null,null,null,null,null,null,null,null,"ZWO"]
[null,null,null,null,null,null,null,null,null,null,null,null,null,null,null,null,{"$f":"VLOOKUP(P354,'Input MCC'!B:C,2,0)","v":{"$error":"#N/A"}},{"$f":"VLOOKUP(P354,'Input MCC'!B:E,4,0)","v":{"$error":"#N/A"}},null,null,null,null,{"$f":"SUM(V354:V359)","v":0},null,null,null,null,null,null,null,null,{"$error":"#DIV/0!"},0,0,null,"","","","","","","","","","",null,null,null,null,null,null,null,null,null,null,null,null,null,null,null,null,null,"ZWO"]
[null,null,null,null,null,null,null,null,null,null,null,null,null,null,null,null,{"$f":"VLOOKUP(P355,'Input MCC'!B:C,2,0)","v":{"$error":"#N/A"}},{"$f":"VLOOKUP(P355,'Input MCC'!B:E,4,0)","v":{"$error":"#N/A"}},null,null,null,null,null,null,null,null,null,null,null,null,null,{"$error":"#DIV/0!"},0,0,null,"","","","","","","","","","",null,null,null,null,null,null,null,null,null,null,null,null,null,null,null,null,null,"ZWO"]
[null,null,null,null,null,null,null,null,null,null,null,null,null,null,null,null,{"$f":"VLOOKUP(P356,'Input MCC'!B:C,2,0)","v":{"$error":"#N/A"}},{"$f":"VLOOKUP(P356,'Input MCC'!B:E,4,0)","v":{"$error":"#N/A"}},null,null,null,null,null,null,null,null,null,null,null,null,null,{"$error":"#DIV/0!"},0,0,null,"","","","","","","","","","",null,null,null,null,null,null,null,null,null,null,null,null,null,null,null,null,null,"ZWO"]
[null,null,null,null,null,null,null,null,null,null,null,null,null,null,null,null,{"$f":"VLOOKUP(P357,'Input MCC'!B:C,2,0)","v":{"$error":"#N/A"}},{"$f":"VLOOKUP(P357,'Input MCC'!B:E,4,0)","v":{"$error":"#N/A"}},null,null,null,null,null,null,null,null,null,null,null,null,null,{"$error":"#DIV/0!"},0,0,null,"","","","","","","","","","",null,null,null,null,null,null,null,null,null,null,null,null,null,null,null,null,null,"ZWO"]
[null,null,null,null,null,null,null,null,null,null,null,null,null,null,null,null,{"$f":"VLOOKUP(P358,'Input MCC'!B:C,2,0)","v":{"$error":"#N/A"}},{"$f":"VLOOKUP(P358,'Input MCC'!B:E,4,0)","v":{"$error":"#N/A"}},null,null,null,null,null,null,null,null,null,null,null,null,null,{"$error":"#DIV/0!"},0,0,null,"","","","","","","","","","",null,null,null,null,null,null,null,null,null,null,null,null,null,null,null,null,null,"ZWO"]
[null,null,null,null,null,null,null,null,null,null,null,null,null,null,null,null,{"$f":"VLOOKUP(P359,'Input MCC'!B:C,2,0)","v":{"$error":"#N/A"}},{"$f":"VLOOKUP(P359,'Input MCC'!B:E,4,0)","v":{"$error":"#N/A"}},null,null,null,null,null,null,null,null,null,null,null,null,null,{"$error":"#DIV/0!"},0,0,null,"","","","","","","","","","",null,null,null,null,null,null,null,null,null,null,null,null,null,null,null,null,null,"ZWO"]
[null,null,null,null,null,null,null,null,null,null,null,null,null,null,null,null,{"$f":"VLOOKUP(P360,'Input MCC'!B:C,2,0)","v":{"$error":"#N/A"}},{"$f":"VLOOKUP(P360,'Input MCC'!B:E,4,0)","v":{"$error":"#N/A"}},null,null,null,null,{"$f":"SUM(V360:V365)","v":0},null,null,null,null,null,null,null,null,{"$error":"#DIV/0!"},0,0,null,"","","","","","","","","","",null,null,null,null,null,null,null,null,null,null,null,null,null,null,null,null,null,"ZWO"]
[null,null,null,null,null,null,null,null,null,null,null,null,null,null,null,null,{"$f":"VLOOKUP(P361,'Input MCC'!B:C,2,0)","v":{"$error":"#N/A"}},{"$f":"VLOOKUP(P361,'Input MCC'!B:E,4,0)","v":{"$error":"#N/A"}},null,null,null,null,null,null,null,null,null,null,null,null,null,{"$error":"#DIV/0!"},0,0,null,"","","","","","","","","","",null,null,null,null,null,null,null,null,null,null,null,null,null,null,null,null,null,"ZWO"]
[null,null,null,null,null,null,null,null,null,null,null,null,null,null,null,null,{"$f":"VLOOKUP(P362,'Input MCC'!B:C,2,0)","v":{"$error":"#N/A"}},{"$f":"VLOOKUP(P362,'Input MCC'!B:E,4,0)","v":{"$error":"#N/A"}},null,null,null,null,null,null,null,null,null,null,null,null,null,{"$error":"#DIV/0!"},0,0,null,"","","","","","","","","","",null,null,null,null,null,null,null,null,null,null,null,null,null,null,null,null,null,"ZWO"]
[null,null,null,null,null,null,null,null,null,null,null,null,null,null,null,null,{"$f":"VLOOKUP(P363,'Input MCC'!B:C,2,0)","v":{"$error":"#N/A"}},{"$f":"VLOOKUP(P363,'Input MCC'!B:E,4,0)","v":{"$error":"#N/A"}},null,null,null,null,null,null,null,null,null,null,null,null,null,{"$error":"#DIV/0!"},0,0,null,"","","","","","","","","","",null,null,null,null,null,null,null,null,null,null,null,null,null,null,null,null,null,"ZWO"]
[null,null,null,null,null,null,null,null,null,null,null,null,null,null,null,null,{"$f":"VLOOKUP(P364,'Input MCC'!B:C,2,0)","v":{"$error":"#N/A"}},{"$f":"VLOOKUP(P364,'Input MCC'!B:E,4,0)","v":{"$error":"#N/A"}},null,null,null,null,null,null,null,null,null,null,null,null,null,{"$error":"#DIV/0!"},0,0,null,"","","","","","","","","","",null,null,null,null,null,null,null,null,null,null,null,null,null,null,null,null,null,"ZWO"]
[null,null,null,null,null,null,null,null,null,null,null,null,null,null,null,null,{"$f":"VLOOKUP(P365,'Input MCC'!B:C,2,0)","v":{"$error":"#N/A"}},{"$f":"VLOOKUP(P365,'Input MCC'!B:E,4,0)","v":{"$error":"#N/A"}},null,null,null,null,null,null,null,null,null,null,null,null,null,{"$error":"#DIV/0!"},0,0,null,"","","","","","","","","","",null,null,null,null,null,null,null,null,null,null,null,null,null,null,null,null,null,"ZWO"]
[null,null,null,null,null,null,null,null,null,null,null,null,null,null,null,null,{"$f":"VLOOKUP(P366,'Input MCC'!B:C,2,0)","v":{"$error":"#N/A"}},{"$f":"VLOOKUP(P366,'Input MCC'!B:E,4,0)","v":{"$error":"#N/A"}},null,null,null,null,{"$f":"SUM(V366:V371)","v":0},null,null,null,null,null,null,null,null,{"$error":"#DIV/0!"},0,0,null,"","","","","","","","","","",null,null,null,null,null,null,null,null,null,null,null,null,null,null,null,null,null,"ZWO"]
[null,null,null,null,null,null,null,null,null,null,null,null,null,null,null,null,{"$f":"VLOOKUP(P367,'Input MCC'!B:C,2,0)","v":{"$error":"#N/A"}},{"$f":"VLOOKUP(P367,'Input MCC'!B:E,4,0)","v":{"$error":"#N/A"}},null,null,null,null,null,null,null,null,null,null,null,null,null,{"$error":"#DIV/0!"},0,0,null,"","","","","","","","","","",null,null,null,null,null,null,null,null,null,null,null,null,null,null,null,null,null,"ZWO"]
[null,null,null,null,null,null,null,null,null,null,null,null,null,null,null,null,{"$f":"VLOOKUP(P368,'Input MCC'!B:C,2,0)","v":{"$error":"#N/A"}},{"$f":"VLOOKUP(P368,'Input MCC'!B:E,4,0)","v":{"$error":"#N/A"}},null,null,null,null,null,null,null,null,null,null,null,null,null,{"$error":"#DIV/0!"},0,0,null,"","","","","","","","","","",null,null,null,null,null,null,null,null,null,null,null,null,null,null,null,null,null,"ZWO"]
[null,null,null,null,null,null,null,null,null,null,null,null,null,null,null,null,{"$f":"VLOOKUP(P369,'Input MCC'!B:C,2,0)","v":{"$error":"#N/A"}},{"$f":"VLOOKUP(P369,'Input MCC'!B:E,4,0)","v":{"$error":"#N/A"}},null,null,null,null,null,null,null,null,null,null,null,null,null,{"$error":"#DIV/0!"},0,0,null,"","","","","","","","","","",null,null,null,null,null,null,null,null,null,null,null,null,null,null,null,null,null,"ZWO"]
[null,null,null,null,null,null,null,null,null,null,null,null,null,null,null,null,{"$f":"VLOOKUP(P370,'Input MCC'!B:C,2,0)","v":{"$error":"#N/A"}},{"$f":"VLOOKUP(P370,'Input MCC'!B:E,4,0)","v":{"$error":"#N/A"}},null,null,null,null,null,null,null,null,null,null,null,null,null,{"$error":"#DIV/0!"},0,0,null,"","","","","","","","","","",null,null,null,null,null,null,null,null,null,null,null,null,null,null,null,null,null,"ZWO"]
[null,null,null,null,null,null,null,null,null,null,null,null,null,null,null,null,{"$f":"VLOOKUP(P371,'Input MCC'!B:C,2,0)","v":{"$error":"#N/A"}},{"$f":"VLOOKUP(P371,'Input MCC'!B:E,4,0)","v":{"$error":"#N/A"}},null,null,null,null,null,null,null,null,null,null,null,null,null,{"$error":"#DIV/0!"},0,0,null,"","","","","","","","","","",null,null,null,null,null,null,null,null,null,null,null,null,null,null,null,null,null,"ZWO"]
[null,null,null,null,null,null,null,null,null,null,null,null,null,null,null,null,{"$f":"VLOOKUP(P372,'Input MCC'!B:C,2,0)","v":{"$error":"#N/A"}},{"$f":"VLOOKUP(P372,'Input MCC'!B:E,4,0)","v":{"$error":"#N/A"}},null,null,null,null,{"$f":"SUM(V372:V377)","v":0},null,null,null,null,null,null,null,null,{"$error":"#DIV/0!"},0,0,null,"","","","","","","","","","",null,null,null,null,null,null,null,null,null,null,null,null,null,null,null,null,null,"ZWO"]
[null,null,null,null,null,null,null,null,null,null,null,null,null,null,null,null,{"$f":"VLOOKUP(P373,'Input MCC'!B:C,2,0)","v":{"$error":"#N/A"}},{"$f":"VLOOKUP(P373,'Input MCC'!B:E,4,0)","v":{"$error":"#N/A"}},null,null,null,null,null,null,null,null,null,null,null,null,null,{"$error":"#DIV/0!"},0,0,null,"","","","","","","","","","",null,null,null,null,null,null,null,null,null,null,null,null,null,null,null,null,null,"ZWO"]
[null,null,null,null,null,null,null,null,null,null,null,null,null,null,null,null,{"$f":"VLOOKUP(P374,'Input MCC'!B:C,2,0)","v":{"$error":"#N/A"}},{"$f":"VLOOKUP(P374,'Input MCC'!B:E,4,0)","v":{"$error":"#N/A"}},null,null,null,null,null,null,null,null,null,null,null,null,null,{"$error":"#DIV/0!"},0,0,null,"","","","","","","","","","",null,null,null,null,null,null,null,null,null,null,null,null,null,null,null,null,null,"ZWO"]
[null,null,null,null,null,null,null,null,null,null,null,null,null,null,null,null,{"$f":"VLOOKUP(P375,'Input MCC'!B:C,2,0)","v":{"$error":"#N/A"}},{"$f":"VLOOKUP(P375,'Input MCC'!B:E,4,0)","v":{"$error":"#N/A"}},null,null,null,null,null,null,null,null,null,null,null,null,null,{"$error":"#DIV/0!"},0,0,null,"","","","","","","","","","",null,null,null,null,null,null,null,null,null,null,null,null,null,null,null,null,null,"ZWO"]
[null,null,null,null,null,null,null,null,null,null,null,null,null,null,null,null,{"$f":"VLOOKUP(P376,'Input MCC'!B:C,2,0)","v":{"$error":"#N/A"}},{"$f":"VLOOKUP(P376,'Input MCC'!B:E,4,0)","v":{"$error":"#N/A"}},null,null,null,null,null,null,null,null,null,null,null,null,null,{"$error":"#DIV/0!"},0,0,null,"","","","","","","","","","",null,null,null,null,null,null,null,null,null,null,null,null,null,null,null,null,null,"ZWO"]
[null,null,null,null,null,null,null,null,null,null,null,null,null,null,null,null,{"$f":"VLOOKUP(P377,'Input MCC'!B:C,2,0)","v":{"$error":"#N/A"}},{"$f":"VLOOKUP(P377,'Input MCC'!B:E,4,0)","v":{"$error":"#N/A"}},null,null,null,null,null,null,null,null,null,null,null,null,null,{"$error":"#DIV/0!"},0,0,null,"","","","","","","","","","",null,null,null,null,null,null,null,null,null,null,null,null,null,null,null,null,null,"ZWO"]
[null,null,null,null,null,null,null,null,null,null,null,null,null,null,null,null,{"$f":"VLOOKUP(P378,'Input MCC'!B:C,2,0)","v":{"$error":"#N/A"}},{"$f":"VLOOKUP(P378,'Input MCC'!B:E,4,0)","v":{"$error":"#N/A"}},null,null,null,null,{"$f":"SUM(V378:V383)","v":0},null,null,null,null,null,null,null,null,{"$error":"#DIV/0!"},0,0,null,"","","","","","","","","","",null,null,null,null,null,null,null,null,null,null,null,null,null,null,null,null,null,"ZWO"]
[null,null,null,null,null,null,null,null,null,null,null,null,null,null,null,null,{"$f":"VLOOKUP(P379,'Input MCC'!B:C,2,0)","v":{"$error":"#N/A"}},{"$f":"VLOOKUP(P379,'Input MCC'!B:E,4,0)","v":{"$error":"#N/A"}},null,null,null,null,null,null,null,null,null,null,null,null,null,{"$error":"#DIV/0!"},0,0,null,"","","","","","","","","","",null,null,null,null,null,null,null,null,null,null,null,null,null,null,null,null,null,"ZWO"]
[null,null,null,null,null,null,null,null,null,null,null,null,null,null,null,null,{"$f":"VLOOKUP(P380,'Input MCC'!B:C,2,0)","v":{"$error":"#N/A"}},{"$f":"VLOOKUP(P380,'Input MCC'!B:E,4,0)","v":{"$error":"#N/A"}},null,null,null,null,null,null,null,null,null,null,null,null,null,{"$error":"#DIV/0!"},0,0,null,"","","","","","","","","","",null,null,null,null,null,null,null,null,null,null,null,null,null,null,null,null,null,"ZWO"]
[null,null,null,null,null,null,null,null,null,null,null,null,null,null,null,null,{"$f":"VLOOKUP(P381,'Input MCC'!B:C,2,0)","v":{"$error":"#N/A"}},{"$f":"VLOOKUP(P381,'Input MCC'!B:E,4,0)","v":{"$error":"#N/A"}},null,null,null,null,null,null,null,null,null,null,null,null,null,{"$error":"#DIV/0!"},0,0,null,"","","","","","","","","","",null,null,null,null,null,null,null,null,null,null,null,null,null,null,null,null,null,"ZWO"]
[null,null,null,null,null,null,null,null,null,null,null,null,null,null,null,null,{"$f":"VLOOKUP(P382,'Input MCC'!B:C,2,0)","v":{"$error":"#N/A"}},{"$f":"VLOOKUP(P382,'Input MCC'!B:E,4,0)","v":{"$error":"#N/A"}},null,null,null,null,null,null,null,null,null,null,null,null,null,{"$error":"#DIV/0!"},0,0,null,"","","","","","","","","","",null,null,null,null,null,null,null,null,null,null,null,null,null,null,null,null,null,"ZWO"]
[null,null,null,null,null,null,null,null,null,null,null,null,null,null,null,null,{"$f":"VLOOKUP(P383,'Input MCC'!B:C,2,0)","v":{"$error":"#N/A"}},{"$f":"VLOOKUP(P383,'Input MCC'!B:E,4,0)","v":{"$error":"#N/A"}},null,null,null,null,null,null,null,null,null,null,null,null,null,{"$error":"#DIV/0!"},0,0,null,"","","","","","","","","","",null,null,null,null,null,null,null,null,null,null,null,null,null,null,null,null,null,"ZWO"]
[null,null,null,null,null,null,null,null,null,null,null,null,null,null,null,null,{"$f":"VLOOKUP(P384,'Input MCC'!B:C,2,0)","v":{"$error":"#N/A"}},{"$f":"VLOOKUP(P384,'Input MCC'!B:E,4,0)","v":{"$error":"#N/A"}},null,null,null,null,{"$f":"SUM(V384:V389)","v":0},null,null,null,null,null,null,null,null,{"$error":"#DIV/0!"},0,0,null,"","","","","","","","","","",null,null,null,null,null,null,null,null,null,null,null,null,null,null,null,null,null,"ZWO"]
[null,null,null,null,null,null,null,null,null,null,null,null,null,null,null,null,{"$f":"VLOOKUP(P385,'Input MCC'!B:C,2,0)","v":{"$error":"#N/A"}},{"$f":"VLOOKUP(P385,'Input MCC'!B:E,4,0)","v":{"$error":"#N/A"}},null,null,null,null,null,null,null,null,null,null,null,null,null,{"$error":"#DIV/0!"},0,0,null,"","","","","","","","","","",null,null,null,null,null,null,null,null,null,null,null,null,null,null,null,null,null,"ZWO"]
[null,null,null,null,null,null,null,null,null,null,null,null,null,null,null,null,{"$f":"VLOOKUP(P386,'Input MCC'!B:C,2,0)","v":{"$error":"#N/A"}},{"$f":"VLOOKUP(P386,'Input MCC'!B:E,4,0)","v":{"$error":"#N/A"}},null,null,null,null,null,null,null,null,null,null,null,null,null,{"$error":"#DIV/0!"},0,0,null,"","","","","","","","","","",null,null,null,null,null,null,null,null,null,null,null,null,null,null,null,null,null,"ZWO"]
[null,null,null,null,null,null,null,null,null,null,null,null,null,null,null,null,{"$f":"VLOOKUP(P387,'Input MCC'!B:C,2,0)","v":{"$error":"#N/A"}},{"$f":"VLOOKUP(P387,'Input MCC'!B:E,4,0)","v":{"$error":"#N/A"}},null,null,null,null,null,null,null,null,null,null,null,null,null,{"$error":"#DIV/0!"},0,0,null,"","","","","","","","","","",null,null,null,null,null,null,null,null,null,null,null,null,null,null,null,null,null,"ZWO"]
[null,null,null,null,null,null,null,null,null,null,null,null,null,null,null,null,{"$f":"VLOOKUP(P388,'Input MCC'!B:C,2,0)","v":{"$error":"#N/A"}},{"$f":"VLOOKUP(P388,'Input MCC'!B:E,4,0)","v":{"$error":"#N/A"}},null,null,null,null,null,null,null,null,null,null,null,null,null,{"$error":"#DIV/0!"},0,0,null,"","","","","","","","","","",null,null,null,null,null,null,null,null,null,null,null,null,null,null,null,null,null,"ZWO"]
[null,null,null,null,null,null,null,null,null,null,null,null,null,null,null,null,{"$f":"VLOOKUP(P389,'Input MCC'!B:C,2,0)","v":{"$error":"#N/A"}},{"$f":"VLOOKUP(P389,'Input MCC'!B:E,4,0)","v":{"$error":"#N/A"}},null,null,null,null,null,null,null,null,null,null,null,null,null,{"$error":"#DIV/0!"},0,0,null,"","","","","","","","","","",null,null,null,null,null,null,null,null,null,null,null,null,null,null,null,null,null,"ZWO"]
[null,null,null,null,null,null,null,null,null,null,null,null,null,null,null,null,{"$f":"VLOOKUP(P390,'Input MCC'!B:C,2,0)","v":{"$error":"#N/A"}},{"$f":"VLOOKUP(P390,'Input MCC'!B:E,4,0)","v":{"$error":"#N/A"}},null,null,null,null,{"$f":"SUM(V390:V395)","v":0},null,null,null,null,null,null,null,null,{"$error":"#DIV/0!"},0,0,null,{"$f":"IF(AI390 <> \"\",\n    IF(ISNUMBER(VALUE(LEFT(AI390, FIND(\"%\", AI390)-1))),\n        VALUE(LEFT(AI390, FIND(\"%\", AI390)-1)),\n        \"Invalid format\"),\n    \"\")","v":""},{"$f":"IF(AI390 <> \"\",\n    IF(ISNUMBER(VALUE(LEFT(AI390, FIND(\"%\", AI390)-1))) * ISNUMBER(FIND(\"%\", AI390 & \"wol\")) > 0,\n        TRIM(MID(AI390, FIND(\"%\", AI390)+1, FIND(\"/\", AI390 & \"/\")-FIND(\"%\", AI390)-1)),\n        \"Invalid format\"),\n    \"\")","v":""},{"$f":"IF(AI390 <> \"\",\n    IF(ISNUMBER(VALUE(MID(AI390, FIND(\"/\", AI390) + 1, FIND(\"%\", AI390, FIND(\"/\", AI390)) - FIND(\"/\", AI390) - 1))),\n        VALUE(MID(AI390, FIND(\"/\", AI390) + 1, FIND(\"%\", AI390, FIND(\"/\", AI390)) - FIND(\"/\", AI390) - 1)),\n        \"\"),\n    \"\")","v":""},{"$f":"IF(AI390 <> \"\",\n    IFERROR(TRIM(MID(AI390, FIND(\"%\", AI390, FIND(\"/\", AI390)+1)+2,\n        IFERROR(FIND(\"/\", AI390 & \"/\", FIND(\"/\", AI390)+1)-FIND(\"%\", AI390, FIND(\"/\", AI390)+1)-2, LEN(AI390)-FIND(\"%\", AI390, FIND(\"/\", AI390)+1)-1))),\n        \"\"),\n    \"\")","v":""},{"$f":"IF(AI390 <> \"\",\n    IF(ISNUMBER(VALUE(MID(AI390, FIND(\"/\", AI390, FIND(\"/\", AI390)+1) + 1, FIND(\"%\", AI390, FIND(\"/\", AI390, FIND(\"/\", AI390)+1)) - FIND(\"/\", AI390, FIND(\"/\", AI390)+1) - 1))),\n        VALUE(MID(AI390, FIND(\"/\", AI390, FIND(\"/\", AI390)+1) + 1, FIND(\"%\", AI390, FIND(\"/\", AI390, FIND(\"/\", AI390)+1)) - FIND(\"/\", AI390, FIND(\"/\", AI390)+1) - 1)),\n        \"\"),\n    \"\")","v":""},{"$f":"IF(AI390 <> \"\",\n    IFERROR(\n        TRIM(MID(AI390,\n            FIND(\"%\", AI390, FIND(\"%\", AI390, FIND(\"%\", AI390)+1)+1)+1,\n            FIND(\"/\", AI390 & \"/\", FIND(\"%\", AI390, FIND(\"%\", AI390, FIND(\"%\", AI390)+1)+1))-FIND(\"%\", AI390, FIND(\"%\", AI390, FIND(\"%\", AI390)+1)+1)-1)\n        ),\n        \"\"\n    ),\n    \"\"\n)","v":""},{"$f":"IF(AI390 <> \"\",\n    IF(ISNUMBER(VALUE(MID(AI390, FIND(\"/\", AI390, FIND(\"/\", AI390, FIND(\"/\", AI390)+1)+1) + 1, FIND(\"%\", AI390, FIND(\"/\", AI390, FIND(\"/\", AI390, FIND(\"/\", AI390)+1)+1)) - FIND(\"/\", AI390, FIND(\"/\", AI390, FIND(\"/\", AI390)+1)+1) - 1))),\n        VALUE(MID(AI390, FIND(\"/\", AI390, FIND(\"/\", AI390, FIND(\"/\", AI390)+1)+1) + 1, FIND(\"%\", AI390, FIND(\"/\", AI390, FIND(\"/\", AI390, FIND(\"/\", AI390)+1)+1)) - FIND(\"/\", AI390, FIND(\"/\", AI390, FIND(\"/\", AI390)+1)+1) - 1)),\n        \"\"),\n    \"\")","v":""},{"$f":"IF(AI390 <> \"\",\n    IFERROR(TRIM(MID(AI390, FIND(\"%\", AI390, FIND(\"/\", AI390, FIND(\"/\", AI390, FIND(\"/\", AI390)+1)+1)+1)+2,\n        IFERROR(FIND(\"/\", AI390, FIND(\"/\", AI390, FIND(\"/\", AI390, FIND(\"/\", AI390)+1)+1)+1)-FIND(\"%\", AI390, FIND(\"/\", AI390, FIND(\"/\", AI390, FIND(\"/\", AI390)+1)+1)+1)-2, LEN(AI390)-FIND(\"%\", AI390, FIND(\"/\", AI390, FIND(\"/\", AI390, FIND(\"/\", AI390)+1)+1)+1)-1))),\n        \"\"),\n    \"\")","v":""},{"$f":"IF(AI390 <> \"\",\n    IF(ISNUMBER(VALUE(MID(AI390, FIND(\"/\", AI390, FIND(\"/\", AI390, FIND(\"/\", AI390, FIND(\"/\", AI390)+1)+1)+1) + 1, FIND(\"%\", AI390, FIND(\"/\", AI390, FIND(\"/\", AI390, FIND(\"/\", AI390, FIND(\"/\", AI390)+1)+1)+1)) - FIND(\"/\", AI390, FIND(\"/\", AI390, FIND(\"/\", AI390, FIND(\"/\", AI390)+1)+1)+1) - 1))),\n        VALUE(MID(AI390, FIND(\"/\", AI390, FIND(\"/\", AI390, FIND(\"/\", AI390, FIND(\"/\", AI390)+1)+1)+1) + 1, FIND(\"%\", AI390, FIND(\"/\", AI390, FIND(\"/\", AI390, FIND(\"/\", AI390, FIND(\"/\", AI390)+1)+1)+1)) - FIND(\"/\", AI390, FIND(\"/\", AI390, FIND(\"/\", AI390, FIND(\"/\", AI390)+1)+1)+1) - 1)),\n        \"\"),\n    \"\")","v":""},{"$f":"IF(AI390 = \"\", \"\",\n    IFERROR(TRIM(\n        MID(\n            AI390,\n            FIND(\"%\", AI390, FIND(\"/\", AI390, FIND(\"/\", AI390, FIND(\"/\", AI390, FIND(\"/\", AI390)+1)+1)+1)+1) + 1,\n            FIND(\"/\", AI390 & \"/\", FIND(\"%\", AI390, FIND(\"/\", AI390, FIND(\"/\", AI390, FIND(\"/\", AI390, FIND(\"/\", AI390)+1)+1)+1)+1)) -\n            FIND(\"%\", AI390, FIND(\"/\", AI390, FIND(\"/\", AI390, FIND(\"/\", AI390, FIND(\"/\", AI390)+1)+1)+1)+1) - 1\n        )\n    ),\n    \"\")\n)","v":""},null,null,null,null,null,null,null,null,null,null,null,null,null,null,null,null,null,"ZWO"]
[null,null,null,null,null,null,null,null,null,null,null,null,null,null,null,null,{"$f":"VLOOKUP(P391,'Input MCC'!B:C,2,0)","v":{"$error":"#N/A"}},{"$f":"VLOOKUP(P391,'Input MCC'!B:E,4,0)","v":{"$error":"#N/A"}},null,null,null,null,null,null,null,null,null,null,null,null,null,{"$f":"AE391/AC391","v":{"$error":"#DIV/0!"}},0,0,null,"","","","","","","","","","",null,null,null,null,null,null,null,null,null,null,null,null,null,null,null,null,null,"ZWO"]
[null,null,null,null,null,null,null,null,null,null,null,null,null,null,null,null,{"$f":"VLOOKUP(P392,'Input MCC'!B:C,2,0)","v":{"$error":"#N/A"}},{"$f":"VLOOKUP(P392,'Input MCC'!B:E,4,0)","v":{"$error":"#N/A"}},null,null,null,null,null,null,null,null,null,null,null,null,null,{"$error":"#DIV/0!"},{"$f":"V392*AC392","v":0},{"$f":"V392*AE392","v":0},null,"","","","","","","","","","",null,null,null,null,null,null,null,null,null,null,null,null,null,null,null,null,null,"ZWO"]
[null,null,null,null,null,null,null,null,null,null,null,null,null,null,null,null,{"$f":"VLOOKUP(P393,'Input MCC'!B:C,2,0)","v":{"$error":"#N/A"}},{"$f":"VLOOKUP(P393,'Input MCC'!B:E,4,0)","v":{"$error":"#N/A"}},null,null,null,null,null,null,null,null,null,null,null,null,null,{"$error":"#DIV/0!"},0,0,null,"","","","","","","","","","",null,null,null,null,null,null,null,null,null,null,null,null,null,null,null,null,null,"ZWO"]
[null,null,null,null,null,null,null,null,null,null,null,null,null,null,null,null,{"$f":"VLOOKUP(P394,'Input MCC'!B:C,2,0)","v":{"$error":"#N/A"}},{"$f":"VLOOKUP(P394,'Input MCC'!B:E,4,0)","v":{"$error":"#N/A"}},null,null,null,null,null,null,null,null,null,null,null,null,null,{"$error":"#DIV/0!"},0,0,null,"","","","","","","","","","",null,null,null,null,null,null,null,null,null,null,null,null,null,null,null,null,null,"ZWO"]
[null,null,null,null,null,null,null,null,null,null,null,null,null,null,null,null,{"$f":"VLOOKUP(P395,'Input MCC'!B:C,2,0)","v":{"$error":"#N/A"}},{"$f":"VLOOKUP(P395,'Input MCC'!B:E,4,0)","v":{"$error":"#N/A"}},null,null,null,null,null,null,null,null,null,null,null,null,null,{"$error":"#DIV/0!"},0,0,null,"","","","","","","","","","",null,null,null,null,null,null,null,null,null,null,null,null,null,null,null,null,null,"ZWO"]
[null,null,null,null,null,null,null,null,null,null,null,null,null,null,null,null,{"$f":"VLOOKUP(P396,'Input MCC'!B:C,2,0)","v":{"$error":"#N/A"}},{"$f":"VLOOKUP(P396,'Input MCC'!B:E,4,0)","v":{"$error":"#N/A"}},null,null,null,null,{"$f":"SUM(V396:V401)","v":0},null,null,null,null,null,null,null,null,{"$error":"#DIV/0!"},0,0,null,"","","","","","","","","","",null,null,null,null,null,null,null,null,null,null,null,null,null,null,null,null,null,"ZWO"]
[null,null,null,null,null,null,null,null,null,null,null,null,null,null,null,null,{"$f":"VLOOKUP(P397,'Input MCC'!B:C,2,0)","v":{"$error":"#N/A"}},{"$f":"VLOOKUP(P397,'Input MCC'!B:E,4,0)","v":{"$error":"#N/A"}},null,null,null,null,null,null,null,null,null,null,null,null,null,{"$error":"#DIV/0!"},0,0,null,"","","","","","","","","","",null,null,null,null,null,null,null,null,null,null,null,null,null,null,null,null,null,"ZWO"]
[null,null,null,null,null,null,null,null,null,null,null,null,null,null,null,null,{"$f":"VLOOKUP(P398,'Input MCC'!B:C,2,0)","v":{"$error":"#N/A"}},{"$f":"VLOOKUP(P398,'Input MCC'!B:E,4,0)","v":{"$error":"#N/A"}},null,null,null,null,null,null,null,null,null,null,null,null,null,{"$error":"#DIV/0!"},0,0,null,"","","","","","","","","","",null,null,null,null,null,null,null,null,null,null,null,null,null,null,null,null,null,"ZWO"]
[null,null,null,null,null,null,null,null,null,null,null,null,null,null,null,null,{"$f":"VLOOKUP(P399,'Input MCC'!B:C,2,0)","v":{"$error":"#N/A"}},{"$f":"VLOOKUP(P399,'Input MCC'!B:E,4,0)","v":{"$error":"#N/A"}},null,null,null,null,null,null,null,null,null,null,null,null,null,{"$error":"#DIV/0!"},0,0,null,"","","","","","","","","","",null,null,null,null,null,null,null,null,null,null,null,null,null,null,null,null,null,"ZWO"]
[null,null,null,null,null,null,null,null,null,null,null,null,null,null,null,null,{"$f":"VLOOKUP(P400,'Input MCC'!B:C,2,0)","v":{"$error":"#N/A"}},{"$f":"VLOOKUP(P400,'Input MCC'!B:E,4,0)","v":{"$error":"#N/A"}},null,null,null,null,null,null,null,null,null,null,null,null,null,{"$error":"#DIV/0!"},0,0,null,"","","","","","","","","","",null,null,null,null,null,null,null,null,null,null,null,null,null,null,null,null,null,"ZWO"]
[null,null,null,null,null,null,null,null,null,null,null,null,null,null,null,null,{"$f":"VLOOKUP(P401,'Input MCC'!B:C,2,0)","v":{"$error":"#N/A"}},{"$f":"VLOOKUP(P401,'Input MCC'!B:E,4,0)","v":{"$error":"#N/A"}},null,null,null,null,null,null,null,null,null,null,null,null,null,{"$error":"#DIV/0!"},0,0,null,"","","","","","","","","","",null,null,null,null,null,null,null,null,null,null,null,null,null,null,null,null,null,"ZWO"]
[null,null,null,null,null,null,null,null,null,null,null,null,null,null,null,null,{"$f":"VLOOKUP(P402,'Input MCC'!B:C,2,0)","v":{"$error":"#N/A"}},{"$f":"VLOOKUP(P402,'Input MCC'!B:E,4,0)","v":{"$error":"#N/A"}},null,null,null,null,{"$f":"SUM(V402:V407)","v":0},null,null,null,null,null,null,null,null,{"$error":"#DIV/0!"},0,0,null,"","","","","","","","","","",null,null,null,null,null,null,null,null,null,null,null,null,null,null,null,null,null,"ZWO"]
[null,null,null,null,null,null,null,null,null,null,null,null,null,null,null,null,{"$f":"VLOOKUP(P403,'Input MCC'!B:C,2,0)","v":{"$error":"#N/A"}},{"$f":"VLOOKUP(P403,'Input MCC'!B:E,4,0)","v":{"$error":"#N/A"}},null,null,null,null,null,null,null,null,null,null,null,null,null,{"$error":"#DIV/0!"},0,0,null,"","","","","","","","","","",null,null,null,null,null,null,null,null,null,null,null,null,null,null,null,null,null,"ZWO"]
[null,null,null,null,null,null,null,null,null,null,null,null,null,null,null,null,{"$f":"VLOOKUP(P404,'Input MCC'!B:C,2,0)","v":{"$error":"#N/A"}},{"$f":"VLOOKUP(P404,'Input MCC'!B:E,4,0)","v":{"$error":"#N/A"}},null,null,null,null,null,null,null,null,null,null,null,null,null,{"$error":"#DIV/0!"},0,0,null,"","","","","","","","","","",null,null,null,null,null,null,null,null,null,null,null,null,null,null,null,null,null,"ZWO"]
[null,null,null,null,null,null,null,null,null,null,null,null,null,null,null,null,{"$f":"VLOOKUP(P405,'Input MCC'!B:C,2,0)","v":{"$error":"#N/A"}},{"$f":"VLOOKUP(P405,'Input MCC'!B:E,4,0)","v":{"$error":"#N/A"}},null,null,null,null,null,null,null,null,null,null,null,null,null,{"$error":"#DIV/0!"},0,0,null,"","","","","","","","","","",null,null,null,null,null,null,null,null,null,null,null,null,null,null,null,null,null,"ZWO"]
[null,null,null,null,null,null,null,null,null,null,null,null,null,null,null,null,{"$f":"VLOOKUP(P406,'Input MCC'!B:C,2,0)","v":{"$error":"#N/A"}},{"$f":"VLOOKUP(P406,'Input MCC'!B:E,4,0)","v":{"$error":"#N/A"}},null,null,null,null,null,null,null,null,null,null,null,null,null,{"$error":"#DIV/0!"},0,0,null,"","","","","","","","","","",null,null,null,null,null,null,null,null,null,null,null,null,null,null,null,null,null,"ZWO"]
[null,null,null,null,null,null,null,null,null,null,null,null,null,null,null,null,{"$f":"VLOOKUP(P407,'Input MCC'!B:C,2,0)","v":{"$error":"#N/A"}},{"$f":"VLOOKUP(P407,'Input MCC'!B:E,4,0)","v":{"$error":"#N/A"}},null,null,null,null,null,null,null,null,null,null,null,null,null,{"$error":"#DIV/0!"},0,0,null,"","","","","","","","","","",null,null,null,null,null,null,null,null,null,null,null,null,null,null,null,null,null,"ZWO"]
[null,null,null,null,null,null,null,null,null,null,null,null,null,null,null,null,{"$f":"VLOOKUP(P408,'Input MCC'!B:C,2,0)","v":{"$error":"#N/A"}},{"$f":"VLOOKUP(P408,'Input MCC'!B:E,4,0)","v":{"$error":"#N/A"}},null,null,null,null,{"$f":"SUM(V408:V413)","v":0},null,null,null,null,null,null,null,null,{"$error":"#DIV/0!"},0,0,null,"","","","","","","","","","",null,null,null,null,null,null,null,null,null,null,null,null,null,null,null,null,null,"ZWO"]
[null,null,null,null,null,null,null,null,null,null,null,null,null,null,null,null,{"$f":"VLOOKUP(P409,'Input MCC'!B:C,2,0)","v":{"$error":"#N/A"}},{"$f":"VLOOKUP(P409,'Input MCC'!B:E,4,0)","v":{"$error":"#N/A"}},null,null,null,null,null,null,null,null,null,null,null,null,null,{"$error":"#DIV/0!"},0,0,null,"","","","","","","","","","",null,null,null,null,null,null,null,null,null,null,null,null,null,null,null,null,null,"ZWO"]
[null,null,null,null,null,null,null,null,null,null,null,null,null,null,null,null,{"$f":"VLOOKUP(P410,'Input MCC'!B:C,2,0)","v":{"$error":"#N/A"}},{"$f":"VLOOKUP(P410,'Input MCC'!B:E,4,0)","v":{"$error":"#N/A"}},null,null,null,null,null,null,null,null,null,null,null,null,null,{"$error":"#DIV/0!"},0,0,null,"","","","","","","","","","",null,null,null,null,null,null,null,null,null,null,null,null,null,null,null,null,null,"ZWO"]
[null,null,null,null,null,null,null,null,null,null,null,null,null,null,null,null,{"$f":"VLOOKUP(P411,'Input MCC'!B:C,2,0)","v":{"$error":"#N/A"}},{"$f":"VLOOKUP(P411,'Input MCC'!B:E,4,0)","v":{"$error":"#N/A"}},null,null,null,null,null,null,null,null,null,null,null,null,null,{"$error":"#DIV/0!"},0,0,null,"","","","","","","","","","",null,null,null,null,null,null,null,null,null,null,null,null,null,null,null,null,null,"ZWO"]
[null,null,null,null,null,null,null,null,null,null,null,null,null,null,null,null,{"$f":"VLOOKUP(P412,'Input MCC'!B:C,2,0)","v":{"$error":"#N/A"}},{"$f":"VLOOKUP(P412,'Input MCC'!B:E,4,0)","v":{"$error":"#N/A"}},null,null,null,null,null,null,null,null,null,null,null,null,null,{"$error":"#DIV/0!"},0,0,null,"","","","","","","","","","",null,null,null,null,null,null,null,null,null,null,null,null,null,null,null,null,null,"ZWO"]
[null,null,null,null,null,null,null,null,null,null,null,null,null,null,null,null,{"$f":"VLOOKUP(P413,'Input MCC'!B:C,2,0)","v":{"$error":"#N/A"}},{"$f":"VLOOKUP(P413,'Input MCC'!B:E,4,0)","v":{"$error":"#N/A"}},null,null,null,null,null,null,null,null,null,null,null,null,null,{"$error":"#DIV/0!"},0,0,null,"","","","","","","","","","",null,null,null,null,null,null,null,null,null,null,null,null,null,null,null,null,null,"ZWO"]
[null,null,null,null,null,null,null,null,null,null,null,null,null,null,null,null,{"$f":"VLOOKUP(P414,'Input MCC'!B:C,2,0)","v":{"$error":"#N/A"}},{"$f":"VLOOKUP(P414,'Input MCC'!B:E,4,0)","v":{"$error":"#N/A"}},null,null,null,null,{"$f":"SUM(V414:V419)","v":0},null,null,null,null,null,null,null,null,{"$error":"#DIV/0!"},0,0,null,"","","","","","","","","","",null,null,null,null,null,null,null,null,null,null,null,null,null,null,null,null,null,"ZWO"]
[null,null,null,null,null,null,null,null,null,null,null,null,null,null,null,null,{"$f":"VLOOKUP(P415,'Input MCC'!B:C,2,0)","v":{"$error":"#N/A"}},{"$f":"VLOOKUP(P415,'Input MCC'!B:E,4,0)","v":{"$error":"#N/A"}},null,null,null,null,null,null,null,null,null,null,null,null,null,{"$error":"#DIV/0!"},0,0,null,"","","","","","","","","","",null,null,null,null,null,null,null,null,null,null,null,null,null,null,null,null,null,"ZWO"]
[null,null,null,null,null,null,null,null,null,null,null,null,null,null,null,null,{"$f":"VLOOKUP(P416,'Input MCC'!B:C,2,0)","v":{"$error":"#N/A"}},{"$f":"VLOOKUP(P416,'Input MCC'!B:E,4,0)","v":{"$error":"#N/A"}},null,null,null,null,null,null,null,null,null,null,null,null,null,{"$error":"#DIV/0!"},0,0,null,"","","","","","","","","","",null,null,null,null,null,null,null,null,null,null,null,null,null,null,null,null,null,"ZWO"]
[null,null,null,null,null,null,null,null,null,null,null,null,null,null,null,null,{"$f":"VLOOKUP(P417,'Input MCC'!B:C,2,0)","v":{"$error":"#N/A"}},{"$f":"VLOOKUP(P417,'Input MCC'!B:E,4,0)","v":{"$error":"#N/A"}},null,null,null,null,null,null,null,null,null,null,null,null,null,{"$error":"#DIV/0!"},0,0,null,"","","","","","","","","","",null,null,null,null,null,null,null,null,null,null,null,null,null,null,null,null,null,"ZWO"]
[null,null,null,null,null,null,null,null,null,null,null,null,null,null,null,null,{"$f":"VLOOKUP(P418,'Input MCC'!B:C,2,0)","v":{"$error":"#N/A"}},{"$f":"VLOOKUP(P418,'Input MCC'!B:E,4,0)","v":{"$error":"#N/A"}},null,null,null,null,null,null,null,null,null,null,null,null,null,{"$error":"#DIV/0!"},0,0,null,"","","","","","","","","","",null,null,null,null,null,null,null,null,null,null,null,null,null,null,null,null,null,"ZWO"]
[null,null,null,null,null,null,null,null,null,null,null,null,null,null,null,null,{"$f":"VLOOKUP(P419,'Input MCC'!B:C,2,0)","v":{"$error":"#N/A"}},{"$f":"VLOOKUP(P419,'Input MCC'!B:E,4,0)","v":{"$error":"#N/A"}},null,null,null,null,null,null,null,null,null,null,null,null,null,{"$error":"#DIV/0!"},0,0,null,"","","","","","","","","","",null,null,null,null,null,null,null,null,null,null,null,null,null,null,null,null,null,"ZWO"]
[null,null,null,null,null,null,null,null,null,null,null,null,null,null,null,null,{"$f":"VLOOKUP(P420,'Input MCC'!B:C,2,0)","v":{"$error":"#N/A"}},{"$f":"VLOOKUP(P420,'Input MCC'!B:E,4,0)","v":{"$error":"#N/A"}},null,null,null,null,{"$f":"SUM(V420:V425)","v":0},null,null,null,null,null,null,null,null,{"$error":"#DIV/0!"},0,0,null,"","","","","","","","","","",null,null,null,null,null,null,null,null,null,null,null,null,null,null,null,null,null,"ZWO"]
[null,null,null,null,null,null,null,null,null,null,null,null,null,null,null,null,{"$f":"VLOOKUP(P421,'Input MCC'!B:C,2,0)","v":{"$error":"#N/A"}},{"$f":"VLOOKUP(P421,'Input MCC'!B:E,4,0)","v":{"$error":"#N/A"}},null,null,null,null,null,null,null,null,null,null,null,null,null,{"$error":"#DIV/0!"},0,0,null,"","","","","","","","","","",null,null,null,null,null,null,null,null,null,null,null,null,null,null,null,null,null,"ZWO"]
[null,null,null,null,null,null,null,null,null,null,null,null,null,null,null,null,{"$f":"VLOOKUP(P422,'Input MCC'!B:C,2,0)","v":{"$error":"#N/A"}},{"$f":"VLOOKUP(P422,'Input MCC'!B:E,4,0)","v":{"$error":"#N/A"}},null,null,null,null,null,null,null,null,null,null,null,null,null,{"$error":"#DIV/0!"},0,0,null,"","","","","","","","","","",null,null,null,null,null,null,null,null,null,null,null,null,null,null,null,null,null,"ZWO"]
[null,null,null,null,null,null,null,null,null,null,null,null,null,null,null,null,{"$f":"VLOOKUP(P423,'Input MCC'!B:C,2,0)","v":{"$error":"#N/A"}},{"$f":"VLOOKUP(P423,'Input MCC'!B:E,4,0)","v":{"$error":"#N/A"}},null,null,null,null,null,null,null,null,null,null,null,null,null,{"$error":"#DIV/0!"},0,0,null,"","","","","","","","","","",null,null,null,null,null,null,null,null,null,null,null,null,null,null,null,null,null,"ZWO"]
[null,null,null,null,null,null,null,null,null,null,null,null,null,null,null,null,{"$f":"VLOOKUP(P424,'Input MCC'!B:C,2,0)","v":{"$error":"#N/A"}},{"$f":"VLOOKUP(P424,'Input MCC'!B:E,4,0)","v":{"$error":"#N/A"}},null,null,null,null,null,null,null,null,null,null,null,null,null,{"$error":"#DIV/0!"},0,0,null,"","","","","","","","","","",null,null,null,null,null,null,null,null,null,null,null,null,null,null,null,null,null,"ZWO"]
[null,null,null,null,null,null,null,null,null,null,null,null,null,null,null,null,{"$f":"VLOOKUP(P425,'Input MCC'!B:C,2,0)","v":{"$error":"#N/A"}},{"$f":"VLOOKUP(P425,'Input MCC'!B:E,4,0)","v":{"$error":"#N/A"}},null,null,null,null,null,null,null,null,null,null,null,null,null,{"$error":"#DIV/0!"},0,0,null,"","","","","","","","","","",null,null,null,null,null,null,null,null,null,null,null,null,null,null,null,null,null,"ZWO"]
[null,null,null,null,null,null,null,null,null,null,null,null,null,null,null,null,{"$f":"VLOOKUP(P426,'Input MCC'!B:C,2,0)","v":{"$error":"#N/A"}},{"$f":"VLOOKUP(P426,'Input MCC'!B:E,4,0)","v":{"$error":"#N/A"}},null,null,null,null,{"$f":"SUM(V426:V431)","v":0},null,null,null,null,null,null,null,null,{"$error":"#DIV/0!"},0,0,null,"","","","","","","","","","",null,null,null,null,null,null,null,null,null,null,null,null,null,null,null,null,null,"ZWO"]
[null,null,null,null,null,null,null,null,null,null,null,null,null,null,null,null,{"$f":"VLOOKUP(P427,'Input MCC'!B:C,2,0)","v":{"$error":"#N/A"}},{"$f":"VLOOKUP(P427,'Input MCC'!B:E,4,0)","v":{"$error":"#N/A"}},null,null,null,null,null,null,null,null,null,null,null,null,null,{"$error":"#DIV/0!"},0,0,null,"","","","","","","","","","",null,null,null,null,null,null,null,null,null,null,null,null,null,null,null,null,null,"ZWO"]
[null,null,null,null,null,null,null,null,null,null,null,null,null,null,null,null,{"$f":"VLOOKUP(P428,'Input MCC'!B:C,2,0)","v":{"$error":"#N/A"}},{"$f":"VLOOKUP(P428,'Input MCC'!B:E,4,0)","v":{"$error":"#N/A"}},null,null,null,null,null,null,null,null,null,null,null,null,null,{"$error":"#DIV/0!"},0,0,null,"","","","","","","","","","",null,null,null,null,null,null,null,null,null,null,null,null,null,null,null,null,null,"ZWO"]
[null,null,null,null,null,null,null,null,null,null,null,null,null,null,null,null,{"$f":"VLOOKUP(P429,'Input MCC'!B:C,2,0)","v":{"$error":"#N/A"}},{"$f":"VLOOKUP(P429,'Input MCC'!B:E,4,0)","v":{"$error":"#N/A"}},null,null,null,null,null,null,null,null,null,null,null,null,null,{"$error":"#DIV/0!"},0,0,null,"","","","","","","","","","",null,null,null,null,null,null,null,null,null,null,null,null,null,null,null,null,null,"ZWO"]
[null,null,null,null,null,null,null,null,null,null,null,null,null,null,null,null,{"$f":"VLOOKUP(P430,'Input MCC'!B:C,2,0)","v":{"$error":"#N/A"}},{"$f":"VLOOKUP(P430,'Input MCC'!B:E,4,0)","v":{"$error":"#N/A"}},null,null,null,null,null,null,null,null,null,null,null,null,null,{"$error":"#DIV/0!"},0,0,null,"","","","","","","","","","",null,null,null,null,null,null,null,null,null,null,null,null,null,null,null,null,null,"ZWO"]
[null,null,null,null,null,null,null,null,null,null,null,null,null,null,null,null,{"$f":"VLOOKUP(P431,'Input MCC'!B:C,2,0)","v":{"$error":"#N/A"}},{"$f":"VLOOKUP(P431,'Input MCC'!B:E,4,0)","v":{"$error":"#N/A"}},null,null,null,null,null,null,null,null,null,null,null,null,null,{"$error":"#DIV/0!"},0,0,null,"","","","","","","","","","",null,null,null,null,null,null,null,null,null,null,null,null,null,null,null,null,null,"ZWO"]
[null,null,null,null,null,null,null,null,null,null,null,null,null,null,null,null,{"$f":"VLOOKUP(P432,'Input MCC'!B:C,2,0)","v":{"$error":"#N/A"}},{"$f":"VLOOKUP(P432,'Input MCC'!B:E,4,0)","v":{"$error":"#N/A"}},null,null,null,null,{"$f":"SUM(V432:V437)","v":0},null,null,null,null,null,null,null,null,{"$error":"#DIV/0!"},0,0,null,"","","","","","","","","","",null,null,null,null,null,null,null,null,null,null,null,null,null,null,null,null,null,"ZWO"]
[null,null,null,null,null,null,null,null,null,null,null,null,null,null,null,null,{"$f":"VLOOKUP(P433,'Input MCC'!B:C,2,0)","v":{"$error":"#N/A"}},{"$f":"VLOOKUP(P433,'Input MCC'!B:E,4,0)","v":{"$error":"#N/A"}},null,null,null,null,null,null,null,null,null,null,null,null,null,{"$error":"#DIV/0!"},0,0,null,"","","","","","","","","","",null,null,null,null,null,null,null,null,null,null,null,null,null,null,null,null,null,"ZWO"]
[null,null,null,null,null,null,null,null,null,null,null,null,null,null,null,null,{"$f":"VLOOKUP(P434,'Input MCC'!B:C,2,0)","v":{"$error":"#N/A"}},{"$f":"VLOOKUP(P434,'Input MCC'!B:E,4,0)","v":{"$error":"#N/A"}},null,null,null,null,null,null,null,null,null,null,null,null,null,{"$error":"#DIV/0!"},0,0,null,"","","","","","","","","","",null,null,null,null,null,null,null,null,null,null,null,null,null,null,null,null,null,"ZWO"]
[null,null,null,null,null,null,null,null,null,null,null,null,null,null,null,null,{"$f":"VLOOKUP(P435,'Input MCC'!B:C,2,0)","v":{"$error":"#N/A"}},{"$f":"VLOOKUP(P435,'Input MCC'!B:E,4,0)","v":{"$error":"#N/A"}},null,null,null,null,null,null,null,null,null,null,null,null,null,{"$error":"#DIV/0!"},0,0,null,"","","","","","","","","","",null,null,null,null,null,null,null,null,null,null,null,null,null,null,null,null,null,"ZWO"]
[null,null,null,null,null,null,null,null,null,null,null,null,null,null,null,null,{"$f":"VLOOKUP(P436,'Input MCC'!B:C,2,0)","v":{"$error":"#N/A"}},{"$f":"VLOOKUP(P436,'Input MCC'!B:E,4,0)","v":{"$error":"#N/A"}},null,null,null,null,null,null,null,null,null,null,null,null,null,{"$error":"#DIV/0!"},0,0,null,"","","","","","","","","","",null,null,null,null,null,null,null,null,null,null,null,null,null,null,null,null,null,"ZWO"]
[null,null,null,null,null,null,null,null,null,null,null,null,null,null,null,null,{"$f":"VLOOKUP(P437,'Input MCC'!B:C,2,0)","v":{"$error":"#N/A"}},{"$f":"VLOOKUP(P437,'Input MCC'!B:E,4,0)","v":{"$error":"#N/A"}},null,null,null,null,null,null,null,null,null,null,null,null,null,{"$error":"#DIV/0!"},0,0,null,"","","","","","","","","","",null,null,null,null,null,null,null,null,null,null,null,null,null,null,null,null,null,"ZWO"]
[null,null,null,null,null,null,null,null,null,null,null,null,null,null,null,null,{"$f":"VLOOKUP(P438,'Input MCC'!B:C,2,0)","v":{"$error":"#N/A"}},{"$f":"VLOOKUP(P438,'Input MCC'!B:E,4,0)","v":{"$error":"#N/A"}},null,null,null,null,{"$f":"SUM(V438:V443)","v":0},null,null,null,null,null,null,null,null,{"$error":"#DIV/0!"},0,0,null,"","","","","","","","","","",null,null,null,null,null,null,null,null,null,null,null,null,null,null,null,null,null,"ZWO"]
[null,null,null,null,null,null,null,null,null,null,null,null,null,null,null,null,{"$f":"VLOOKUP(P439,'Input MCC'!B:C,2,0)","v":{"$error":"#N/A"}},{"$f":"VLOOKUP(P439,'Input MCC'!B:E,4,0)","v":{"$error":"#N/A"}},null,null,null,null,null,null,null,null,null,null,null,null,null,{"$error":"#DIV/0!"},0,0,null,"","","","","","","","","","",null,null,null,null,null,null,null,null,null,null,null,null,null,null,null,null,null,"ZWO"]
[null,null,null,null,null,null,null,null,null,null,null,null,null,null,null,null,{"$f":"VLOOKUP(P440,'Input MCC'!B:C,2,0)","v":{"$error":"#N/A"}},{"$f":"VLOOKUP(P440,'Input MCC'!B:E,4,0)","v":{"$error":"#N/A"}},null,null,null,null,null,null,null,null,null,null,null,null,null,{"$error":"#DIV/0!"},0,0,null,"","","","","","","","","","",null,null,null,null,null,null,null,null,null,null,null,null,null,null,null,null,null,"ZWO"]
[null,null,null,null,null,null,null,null,null,null,null,null,null,null,null,null,{"$f":"VLOOKUP(P441,'Input MCC'!B:C,2,0)","v":{"$error":"#N/A"}},{"$f":"VLOOKUP(P441,'Input MCC'!B:E,4,0)","v":{"$error":"#N/A"}},null,null,null,null,null,null,null,null,null,null,null,null,null,{"$error":"#DIV/0!"},0,0,null,"","","","","","","","","","",null,null,null,null,null,null,null,null,null,null,null,null,null,null,null,null,null,"ZWO"]
[null,null,null,null,null,null,null,null,null,null,null,null,null,null,null,null,{"$f":"VLOOKUP(P442,'Input MCC'!B:C,2,0)","v":{"$error":"#N/A"}},{"$f":"VLOOKUP(P442,'Input MCC'!B:E,4,0)","v":{"$error":"#N/A"}},null,null,null,null,null,null,null,null,null,null,null,null,null,{"$error":"#DIV/0!"},0,0,null,"","","","","","","","","","",null,null,null,null,null,null,null,null,null,null,null,null,null,null,null,null,null,"ZWO"]
[null,null,null,null,null,null,null,null,null,null,null,null,null,null,null,null,{"$f":"VLOOKUP(P443,'Input MCC'!B:C,2,0)","v":{"$error":"#N/A"}},{"$f":"VLOOKUP(P443,'Input MCC'!B:E,4,0)","v":{"$error":"#N/A"}},null,null,null,null,null,null,null,null,null,null,null,null,null,{"$error":"#DIV/0!"},0,0,null,"","","","","","","","","","",null,null,null,null,null,null,null,null,null,null,null,null,null,null,null,null,null,"ZWO"]
[null,null,null,null,null,null,null,null,null,null,null,null,null,null,null,null,{"$f":"VLOOKUP(P444,'Input MCC'!B:C,2,0)","v":{"$error":"#N/A"}},{"$f":"VLOOKUP(P444,'Input MCC'!B:E,4,0)","v":{"$error":"#N/A"}},null,null,null,null,{"$f":"SUM(V444:V449)","v":0},null,null,null,null,null,null,null,null,{"$error":"#DIV/0!"},0,0,null,"","","","","","","","","","",null,null,null,null,null,null,null,null,null,null,null,null,null,null,null,null,null,"ZWO"]
[null,null,null,null,null,null,null,null,null,null,null,null,null,null,null,null,{"$f":"VLOOKUP(P445,'Input MCC'!B:C,2,0)","v":{"$error":"#N/A"}},{"$f":"VLOOKUP(P445,'Input MCC'!B:E,4,0)","v":{"$error":"#N/A"}},null,null,null,null,null,null,null,null,null,null,null,null,null,{"$error":"#DIV/0!"},0,0,null,"","","","","","","","","","",null,null,null,null,null,null,null,null,null,null,null,null,null,null,null,null,null,"ZWO"]
[null,null,null,null,null,null,null,null,null,null,null,null,null,null,null,null,{"$f":"VLOOKUP(P446,'Input MCC'!B:C,2,0)","v":{"$error":"#N/A"}},{"$f":"VLOOKUP(P446,'Input MCC'!B:E,4,0)","v":{"$error":"#N/A"}},null,null,null,null,null,null,null,null,null,null,null,null,null,{"$error":"#DIV/0!"},0,0,null,"","","","","","","","","","",null,null,null,null,null,null,null,null,null,null,null,null,null,null,null,null,null,"ZWO"]
[null,null,null,null,null,null,null,null,null,null,null,null,null,null,null,null,{"$f":"VLOOKUP(P447,'Input MCC'!B:C,2,0)","v":{"$error":"#N/A"}},{"$f":"VLOOKUP(P447,'Input MCC'!B:E,4,0)","v":{"$error":"#N/A"}},null,null,null,null,null,null,null,null,null,null,null,null,null,{"$error":"#DIV/0!"},0,0,null,"","","","","","","","","","",null,null,null,null,null,null,null,null,null,null,null,null,null,null,null,null,null,"ZWO"]
[null,null,null,null,null,null,null,null,null,null,null,null,null,null,null,null,{"$f":"VLOOKUP(P448,'Input MCC'!B:C,2,0)","v":{"$error":"#N/A"}},{"$f":"VLOOKUP(P448,'Input MCC'!B:E,4,0)","v":{"$error":"#N/A"}},null,null,null,null,null,null,null,null,null,null,null,null,null,{"$error":"#DIV/0!"},0,0,null,"","","","","","","","","","",null,null,null,null,null,null,null,null,null,null,null,null,null,null,null,null,null,"ZWO"]
[null,null,null,null,null,null,null,null,null,null,null,null,null,null,null,null,{"$f":"VLOOKUP(P449,'Input MCC'!B:C,2,0)","v":{"$error":"#N/A"}},{"$f":"VLOOKUP(P449,'Input MCC'!B:E,4,0)","v":{"$error":"#N/A"}},null,null,null,null,null,null,null,null,null,null,null,null,null,{"$error":"#DIV/0!"},0,0,null,"","","","","","","","","","",null,null,null,null,null,null,null,null,null,null,null,null,null,null,null,null,null,"ZWO"]
[null,null,null,null,null,null,null,null,null,null,null,null,null,null,null,null,{"$f":"VLOOKUP(P450,'Input MCC'!B:C,2,0)","v":{"$error":"#N/A"}},{"$f":"VLOOKUP(P450,'Input MCC'!B:E,4,0)","v":{"$error":"#N/A"}},null,null,null,null,{"$f":"SUM(V450:V455)","v":0},null,null,null,null,null,null,null,null,{"$error":"#DIV/0!"},0,0,null,"","","","","","","","","","",null,null,null,null,null,null,null,null,null,null,null,null,null,null,null,null,null,"ZWO"]
[null,null,null,null,null,null,null,null,null,null,null,null,null,null,null,null,{"$f":"VLOOKUP(P451,'Input MCC'!B:C,2,0)","v":{"$error":"#N/A"}},{"$f":"VLOOKUP(P451,'Input MCC'!B:E,4,0)","v":{"$error":"#N/A"}},null,null,null,null,null,null,null,null,null,null,null,null,null,{"$error":"#DIV/0!"},0,0,null,"","","","","","","","","","",null,null,null,null,null,null,null,null,null,null,null,null,null,null,null,null,null,"ZWO"]
[null,null,null,null,null,null,null,null,null,null,null,null,null,null,null,null,{"$f":"VLOOKUP(P452,'Input MCC'!B:C,2,0)","v":{"$error":"#N/A"}},{"$f":"VLOOKUP(P452,'Input MCC'!B:E,4,0)","v":{"$error":"#N/A"}},null,null,null,null,null,null,null,null,null,null,null,null,null,{"$error":"#DIV/0!"},0,0,null,"","","","","","","","","","",null,null,null,null,null,null,null,null,null,null,null,null,null,null,null,null,null,"ZWO"]
[null,null,null,null,null,null,null,null,null,null,null,null,null,null,null,null,{"$f":"VLOOKUP(P453,'Input MCC'!B:C,2,0)","v":{"$error":"#N/A"}},{"$f":"VLOOKUP(P453,'Input MCC'!B:E,4,0)","v":{"$error":"#N/A"}},null,null,null,null,null,null,null,null,null,null,null,null,null,{"$error":"#DIV/0!"},0,0,null,"","","","","","","","","","",null,null,null,null,null,null,null,null,null,null,null,null,null,null,null,null,null,"ZWO"]
[null,null,null,null,null,null,null,null,null,null,null,null,null,null,null,null,{"$f":"VLOOKUP(P454,'Input MCC'!B:C,2,0)","v":{"$error":"#N/A"}},{"$f":"VLOOKUP(P454,'Input MCC'!B:E,4,0)","v":{"$error":"#N/A"}},null,null,null,null,null,null,null,null,null,null,null,null,null,{"$error":"#DIV/0!"},0,0,null,{"$f":"IF(AI454 <> \"\",\n    IF(ISNUMBER(VALUE(LEFT(AI454, FIND(\"%\", AI454)-1))),\n        VALUE(LEFT(AI454, FIND(\"%\", AI454)-1)),\n        \"Invalid format\"),\n    \"\")","v":""},{"$f":"IF(AI454 <> \"\",\n    IF(ISNUMBER(VALUE(LEFT(AI454, FIND(\"%\", AI454)-1))) * ISNUMBER(FIND(\"%\", AI454 & \"wol\")) > 0,\n        TRIM(MID(AI454, FIND(\"%\", AI454)+1, FIND(\"/\", AI454 & \"/\")-FIND(\"%\", AI454)-1)),\n        \"Invalid format\"),\n    \"\")","v":""},{"$f":"IF(AI454 <> \"\",\n    IF(ISNUMBER(VALUE(MID(AI454, FIND(\"/\", AI454) + 1, FIND(\"%\", AI454, FIND(\"/\", AI454)) - FIND(\"/\", AI454) - 1))),\n        VALUE(MID(AI454, FIND(\"/\", AI454) + 1, FIND(\"%\", AI454, FIND(\"/\", AI454)) - FIND(\"/\", AI454) - 1)),\n        \"\"),\n    \"\")","v":""},{"$f":"IF(AI454 <> \"\",\n    IFERROR(TRIM(MID(AI454, FIND(\"%\", AI454, FIND(\"/\", AI454)+1)+2,\n        IFERROR(FIND(\"/\", AI454 & \"/\", FIND(\"/\", AI454)+1)-FIND(\"%\", AI454, FIND(\"/\", AI454)+1)-2, LEN(AI454)-FIND(\"%\", AI454, FIND(\"/\", AI454)+1)-1))),\n        \"\"),\n    \"\")","v":""},{"$f":"IF(AI454 <> \"\",\n    IF(ISNUMBER(VALUE(MID(AI454, FIND(\"/\", AI454, FIND(\"/\", AI454)+1) + 1, FIND(\"%\", AI454, FIND(\"/\", AI454, FIND(\"/\", AI454)+1)) - FIND(\"/\", AI454, FIND(\"/\", AI454)+1) - 1))),\n        VALUE(MID(AI454, FIND(\"/\", AI454, FIND(\"/\", AI454)+1) + 1, FIND(\"%\", AI454, FIND(\"/\", AI454, FIND(\"/\", AI454)+1)) - FIND(\"/\", AI454, FIND(\"/\", AI454)+1) - 1)),\n        \"\"),\n    \"\")","v":""},{"$f":"IF(AI454 <> \"\",\n    IFERROR(\n        TRIM(MID(AI454,\n            FIND(\"%\", AI454, FIND(\"%\", AI454, FIND(\"%\", AI454)+1)+1)+1,\n            FIND(\"/\", AI454 & \"/\", FIND(\"%\", AI454, FIND(\"%\", AI454, FIND(\"%\", AI454)+1)+1))-FIND(\"%\", AI454, FIND(\"%\", AI454, FIND(\"%\", AI454)+1)+1)-1)\n        ),\n        \"\"\n    ),\n    \"\"\n)","v":""},{"$f":"IF(AI454 <> \"\",\n    IF(ISNUMBER(VALUE(MID(AI454, FIND(\"/\", AI454, FIND(\"/\", AI454, FIND(\"/\", AI454)+1)+1) + 1, FIND(\"%\", AI454, FIND(\"/\", AI454, FIND(\"/\", AI454, FIND(\"/\", AI454)+1)+1)) - FIND(\"/\", AI454, FIND(\"/\", AI454, FIND(\"/\", AI454)+1)+1) - 1))),\n        VALUE(MID(AI454, FIND(\"/\", AI454, FIND(\"/\", AI454, FIND(\"/\", AI454)+1)+1) + 1, FIND(\"%\", AI454, FIND(\"/\", AI454, FIND(\"/\", AI454, FIND(\"/\", AI454)+1)+1)) - FIND(\"/\", AI454, FIND(\"/\", AI454, FIND(\"/\", AI454)+1)+1) - 1)),\n        \"\"),\n    \"\")","v":""},{"$f":"IF(AI454 <> \"\",\n    IFERROR(TRIM(MID(AI454, FIND(\"%\", AI454, FIND(\"/\", AI454, FIND(\"/\", AI454, FIND(\"/\", AI454)+1)+1)+1)+2,\n        IFERROR(FIND(\"/\", AI454, FIND(\"/\", AI454, FIND(\"/\", AI454, FIND(\"/\", AI454)+1)+1)+1)-FIND(\"%\", AI454, FIND(\"/\", AI454, FIND(\"/\", AI454, FIND(\"/\", AI454)+1)+1)+1)-2, LEN(AI454)-FIND(\"%\", AI454, FIND(\"/\", AI454, FIND(\"/\", AI454, FIND(\"/\", AI454)+1)+1)+1)-1))),\n        \"\"),\n    \"\")","v":""},{"$f":"IF(AI454 <> \"\",\n    IF(ISNUMBER(VALUE(MID(AI454, FIND(\"/\", AI454, FIND(\"/\", AI454, FIND(\"/\", AI454, FIND(\"/\", AI454)+1)+1)+1) + 1, FIND(\"%\", AI454, FIND(\"/\", AI454, FIND(\"/\", AI454, FIND(\"/\", AI454, FIND(\"/\", AI454)+1)+1)+1)) - FIND(\"/\", AI454, FIND(\"/\", AI454, FIND(\"/\", AI454, FIND(\"/\", AI454)+1)+1)+1) - 1))),\n        VALUE(MID(AI454, FIND(\"/\", AI454, FIND(\"/\", AI454, FIND(\"/\", AI454, FIND(\"/\", AI454)+1)+1)+1) + 1, FIND(\"%\", AI454, FIND(\"/\", AI454, FIND(\"/\", AI454, FIND(\"/\", AI454, FIND(\"/\", AI454)+1)+1)+1)) - FIND(\"/\", AI454, FIND(\"/\", AI454, FIND(\"/\", AI454, FIND(\"/\", AI454)+1)+1)+1) - 1)),\n        \"\"),\n    \"\")","v":""},{"$f":"IF(AI454 = \"\", \"\",\n    IFERROR(TRIM(\n        MID(\n            AI454,\n            FIND(\"%\", AI454, FIND(\"/\", AI454, FIND(\"/\", AI454, FIND(\"/\", AI454, FIND(\"/\", AI454)+1)+1)+1)+1) + 1,\n            FIND(\"/\", AI454 & \"/\", FIND(\"%\", AI454, FIND(\"/\", AI454, FIND(\"/\", AI454, FIND(\"/\", AI454, FIND(\"/\", AI454)+1)+1)+1)+1)) -\n            FIND(\"%\", AI454, FIND(\"/\", AI454, FIND(\"/\", AI454, FIND(\"/\", AI454, FIND(\"/\", AI454)+1)+1)+1)+1) - 1\n        )\n    ),\n    \"\")\n)","v":""},null,null,null,null,null,null,null,null,null,null,null,null,null,null,null,null,null,"ZWO"]
[null,null,null,null,null,null,null,null,null,null,null,null,null,null,null,null,{"$f":"VLOOKUP(P455,'Input MCC'!B:C,2,0)","v":{"$error":"#N/A"}},{"$f":"VLOOKUP(P455,'Input MCC'!B:E,4,0)","v":{"$error":"#N/A"}},null,null,null,null,null,null,null,null,null,null,null,null,null,{"$f":"AE455/AC455","v":{"$error":"#DIV/0!"}},0,0,null,"","","","","","","","","","",null,null,null,null,null,null,null,null,null,null,null,null,null,null,null,null,null,"ZWO"]
[null,null,null,null,null,null,null,null,null,null,null,null,null,null,null,null,{"$f":"VLOOKUP(P456,'Input MCC'!B:C,2,0)","v":{"$error":"#N/A"}},{"$f":"VLOOKUP(P456,'Input MCC'!B:E,4,0)","v":{"$error":"#N/A"}},null,null,null,null,{"$f":"SUM(V456:V461)","v":0},null,null,null,null,null,null,null,null,{"$error":"#DIV/0!"},{"$f":"V456*AC456","v":0},{"$f":"V456*AE456","v":0},null,"","","","","","","","","","",null,null,null,null,null,null,null,null,null,null,null,null,null,null,null,null,null,"ZWO"]
[null,null,null,null,null,null,null,null,null,null,null,null,null,null,null,null,{"$f":"VLOOKUP(P457,'Input MCC'!B:C,2,0)","v":{"$error":"#N/A"}},{"$f":"VLOOKUP(P457,'Input MCC'!B:E,4,0)","v":{"$error":"#N/A"}},null,null,null,null,null,null,null,null,null,null,null,null,null,{"$error":"#DIV/0!"},0,0,null,"","","","","","","","","","",null,null,null,null,null,null,null,null,null,null,null,null,null,null,null,null,null,"ZWO"]
[null,null,null,null,null,null,null,null,null,null,null,null,null,null,null,null,{"$f":"VLOOKUP(P458,'Input MCC'!B:C,2,0)","v":{"$error":"#N/A"}},{"$f":"VLOOKUP(P458,'Input MCC'!B:E,4,0)","v":{"$error":"#N/A"}},null,null,null,null,null,null,null,null,null,null,null,null,null,{"$error":"#DIV/0!"},0,0,null,"","","","","","","","","","",null,null,null,null,null,null,null,null,null,null,null,null,null,null,null,null,null,"ZWO"]
[null,null,null,null,null,null,null,null,null,null,null,null,null,null,null,null,{"$f":"VLOOKUP(P459,'Input MCC'!B:C,2,0)","v":{"$error":"#N/A"}},{"$f":"VLOOKUP(P459,'Input MCC'!B:E,4,0)","v":{"$error":"#N/A"}},null,null,null,null,null,null,null,null,null,null,null,null,null,{"$error":"#DIV/0!"},0,0,null,"","","","","","","","","","",null,null,null,null,null,null,null,null,null,null,null,null,null,null,null,null,null,"ZWO"]
[null,null,null,null,null,null,null,null,null,null,null,null,null,null,null,null,{"$f":"VLOOKUP(P460,'Input MCC'!B:C,2,0)","v":{"$error":"#N/A"}},{"$f":"VLOOKUP(P460,'Input MCC'!B:E,4,0)","v":{"$error":"#N/A"}},null,null,null,null,null,null,null,null,null,null,null,null,null,{"$error":"#DIV/0!"},0,0,null,"","","","","","","","","","",null,null,null,null,null,null,null,null,null,null,null,null,null,null,null,null,null,"ZWO"]
[null,null,null,null,null,null,null,null,null,null,null,null,null,null,null,null,{"$f":"VLOOKUP(P461,'Input MCC'!B:C,2,0)","v":{"$error":"#N/A"}},{"$f":"VLOOKUP(P461,'Input MCC'!B:E,4,0)","v":{"$error":"#N/A"}},null,null,null,null,null,null,null,null,null,null,null,null,null,{"$error":"#DIV/0!"},0,0,null,"","","","","","","","","","",null,null,null,null,null,null,null,null,null,null,null,null,null,null,null,null,null,"ZWO"]
[null,null,null,null,null,null,null,null,null,null,null,null,null,null,null,null,{"$f":"VLOOKUP(P462,'Input MCC'!B:C,2,0)","v":{"$error":"#N/A"}},{"$f":"VLOOKUP(P462,'Input MCC'!B:E,4,0)","v":{"$error":"#N/A"}},null,null,null,null,{"$f":"SUM(V462:V467)","v":0},null,null,null,null,null,null,null,null,{"$error":"#DIV/0!"},0,0,null,"","","","","","","","","","",null,null,null,null,null,null,null,null,null,null,null,null,null,null,null,null,null,"ZWO"]
[null,null,null,null,null,null,null,null,null,null,null,null,null,null,null,null,{"$f":"VLOOKUP(P463,'Input MCC'!B:C,2,0)","v":{"$error":"#N/A"}},{"$f":"VLOOKUP(P463,'Input MCC'!B:E,4,0)","v":{"$error":"#N/A"}},null,null,null,null,null,null,null,null,null,null,null,null,null,{"$error":"#DIV/0!"},0,0,null,"","","","","","","","","","",null,null,null,null,null,null,null,null,null,null,null,null,null,null,null,null,null,"ZWO"]
[null,null,null,null,null,null,null,null,null,null,null,null,null,null,null,null,{"$f":"VLOOKUP(P464,'Input MCC'!B:C,2,0)","v":{"$error":"#N/A"}},{"$f":"VLOOKUP(P464,'Input MCC'!B:E,4,0)","v":{"$error":"#N/A"}},null,null,null,null,null,null,null,null,null,null,null,null,null,{"$error":"#DIV/0!"},0,0,null,"","","","","","","","","","",null,null,null,null,null,null,null,null,null,null,null,null,null,null,null,null,null,"ZWO"]
[null,null,null,null,null,null,null,null,null,null,null,null,null,null,null,null,{"$f":"VLOOKUP(P465,'Input MCC'!B:C,2,0)","v":{"$error":"#N/A"}},{"$f":"VLOOKUP(P465,'Input MCC'!B:E,4,0)","v":{"$error":"#N/A"}},null,null,null,null,null,null,null,null,null,null,null,null,null,{"$error":"#DIV/0!"},0,0,null,"","","","","","","","","","",null,null,null,null,null,null,null,null,null,null,null,null,null,null,null,null,null,"ZWO"]
[null,null,null,null,null,null,null,null,null,null,null,null,null,null,null,null,{"$f":"VLOOKUP(P466,'Input MCC'!B:C,2,0)","v":{"$error":"#N/A"}},{"$f":"VLOOKUP(P466,'Input MCC'!B:E,4,0)","v":{"$error":"#N/A"}},null,null,null,null,null,null,null,null,null,null,null,null,null,{"$error":"#DIV/0!"},0,0,null,"","","","","","","","","","",null,null,null,null,null,null,null,null,null,null,null,null,null,null,null,null,null,"ZWO"]
[null,null,null,null,null,null,null,null,null,null,null,null,null,null,null,null,{"$f":"VLOOKUP(P467,'Input MCC'!B:C,2,0)","v":{"$error":"#N/A"}},{"$f":"VLOOKUP(P467,'Input MCC'!B:E,4,0)","v":{"$error":"#N/A"}},null,null,null,null,null,null,null,null,null,null,null,null,null,{"$error":"#DIV/0!"},0,0,null,"","","","","","","","","","",null,null,null,null,null,null,null,null,null,null,null,null,null,null,null,null,null,"ZWO"]
[null,null,null,null,null,null,null,null,null,null,null,null,null,null,null,null,{"$f":"VLOOKUP(P468,'Input MCC'!B:C,2,0)","v":{"$error":"#N/A"}},{"$f":"VLOOKUP(P468,'Input MCC'!B:E,4,0)","v":{"$error":"#N/A"}},null,null,null,null,{"$f":"SUM(V468:V473)","v":0},null,null,null,null,null,null,null,null,{"$error":"#DIV/0!"},0,0,null,"","","","","","","","","","",null,null,null,null,null,null,null,null,null,null,null,null,null,null,null,null,null,"ZWO"]
[null,null,null,null,null,null,null,null,null,null,null,null,null,null,null,null,{"$f":"VLOOKUP(P469,'Input MCC'!B:C,2,0)","v":{"$error":"#N/A"}},{"$f":"VLOOKUP(P469,'Input MCC'!B:E,4,0)","v":{"$error":"#N/A"}},null,null,null,null,null,null,null,null,null,null,null,null,null,{"$error":"#DIV/0!"},0,0,null,"","","","","","","","","","",null,null,null,null,null,null,null,null,null,null,null,null,null,null,null,null,null,"ZWO"]
[null,null,null,null,null,null,null,null,null,null,null,null,null,null,null,null,{"$f":"VLOOKUP(P470,'Input MCC'!B:C,2,0)","v":{"$error":"#N/A"}},{"$f":"VLOOKUP(P470,'Input MCC'!B:E,4,0)","v":{"$error":"#N/A"}},null,null,null,null,null,null,null,null,null,null,null,null,null,{"$error":"#DIV/0!"},0,0,null,"","","","","","","","","","",null,null,null,null,null,null,null,null,null,null,null,null,null,null,null,null,null,"ZWO"]
[null,null,null,null,null,null,null,null,null,null,null,null,null,null,null,null,{"$f":"VLOOKUP(P471,'Input MCC'!B:C,2,0)","v":{"$error":"#N/A"}},{"$f":"VLOOKUP(P471,'Input MCC'!B:E,4,0)","v":{"$error":"#N/A"}},null,null,null,null,null,null,null,null,null,null,null,null,null,{"$error":"#DIV/0!"},0,0,null,"","","","","","","","","","",null,null,null,null,null,null,null,null,null,null,null,null,null,null,null,null,null,"ZWO"]
[null,null,null,null,null,null,null,null,null,null,null,null,null,null,null,null,{"$f":"VLOOKUP(P472,'Input MCC'!B:C,2,0)","v":{"$error":"#N/A"}},{"$f":"VLOOKUP(P472,'Input MCC'!B:E,4,0)","v":{"$error":"#N/A"}},null,null,null,null,null,null,null,null,null,null,null,null,null,{"$error":"#DIV/0!"},0,0,null,"","","","","","","","","","",null,null,null,null,null,null,null,null,null,null,null,null,null,null,null,null,null,"ZWO"]
[null,null,null,null,null,null,null,null,null,null,null,null,null,null,null,null,{"$f":"VLOOKUP(P473,'Input MCC'!B:C,2,0)","v":{"$error":"#N/A"}},{"$f":"VLOOKUP(P473,'Input MCC'!B:E,4,0)","v":{"$error":"#N/A"}},null,null,null,null,null,null,null,null,null,null,null,null,null,{"$error":"#DIV/0!"},0,0,null,"","","","","","","","","","",null,null,null,null,null,null,null,null,null,null,null,null,null,null,null,null,null,"ZWO"]
[null,null,null,null,null,null,null,null,null,null,null,null,null,null,null,null,{"$f":"VLOOKUP(P474,'Input MCC'!B:C,2,0)","v":{"$error":"#N/A"}},{"$f":"VLOOKUP(P474,'Input MCC'!B:E,4,0)","v":{"$error":"#N/A"}},null,null,null,null,{"$f":"SUM(V474:V479)","v":0},null,null,null,null,null,null,null,null,{"$error":"#DIV/0!"},0,0,null,"","","","","","","","","","",null,null,null,null,null,null,null,null,null,null,null,null,null,null,null,null,null,"ZWO"]
[null,null,null,null,null,null,null,null,null,null,null,null,null,null,null,null,{"$f":"VLOOKUP(P475,'Input MCC'!B:C,2,0)","v":{"$error":"#N/A"}},{"$f":"VLOOKUP(P475,'Input MCC'!B:E,4,0)","v":{"$error":"#N/A"}},null,null,null,null,null,null,null,null,null,null,null,null,null,{"$error":"#DIV/0!"},0,0,null,"","","","","","","","","","",null,null,null,null,null,null,null,null,null,null,null,null,null,null,null,null,null,"ZWO"]
[null,null,null,null,null,null,null,null,null,null,null,null,null,null,null,null,{"$f":"VLOOKUP(P476,'Input MCC'!B:C,2,0)","v":{"$error":"#N/A"}},{"$f":"VLOOKUP(P476,'Input MCC'!B:E,4,0)","v":{"$error":"#N/A"}},null,null,null,null,null,null,null,null,null,null,null,null,null,{"$error":"#DIV/0!"},0,0,null,"","","","","","","","","","",null,null,null,null,null,null,null,null,null,null,null,null,null,null,null,null,null,"ZWO"]
[null,null,null,null,null,null,null,null,null,null,null,null,null,null,null,null,{"$f":"VLOOKUP(P477,'Input MCC'!B:C,2,0)","v":{"$error":"#N/A"}},{"$f":"VLOOKUP(P477,'Input MCC'!B:E,4,0)","v":{"$error":"#N/A"}},null,null,null,null,null,null,null,null,null,null,null,null,null,{"$error":"#DIV/0!"},0,0,null,"","","","","","","","","","",null,null,null,null,null,null,null,null,null,null,null,null,null,null,null,null,null,"ZWO"]
[null,null,null,null,null,null,null,null,null,null,null,null,null,null,null,null,{"$f":"VLOOKUP(P478,'Input MCC'!B:C,2,0)","v":{"$error":"#N/A"}},{"$f":"VLOOKUP(P478,'Input MCC'!B:E,4,0)","v":{"$error":"#N/A"}},null,null,null,null,null,null,null,null,null,null,null,null,null,{"$error":"#DIV/0!"},0,0,null,"","","","","","","","","","",null,null,null,null,null,null,null,null,null,null,null,null,null,null,null,null,null,"ZWO"]
[null,null,null,null,null,null,null,null,null,null,null,null,null,null,null,null,{"$f":"VLOOKUP(P479,'Input MCC'!B:C,2,0)","v":{"$error":"#N/A"}},{"$f":"VLOOKUP(P479,'Input MCC'!B:E,4,0)","v":{"$error":"#N/A"}},null,null,null,null,null,null,null,null,null,null,null,null,null,{"$error":"#DIV/0!"},0,0,null,"","","","","","","","","","",null,null,null,null,null,null,null,null,null,null,null,null,null,null,null,null,null,"ZWO"]
[null,null,null,null,null,null,null,null,null,null,null,null,null,null,null,null,{"$f":"VLOOKUP(P480,'Input MCC'!B:C,2,0)","v":{"$error":"#N/A"}},{"$f":"VLOOKUP(P480,'Input MCC'!B:E,4,0)","v":{"$error":"#N/A"}},null,null,null,null,{"$f":"SUM(V480:V485)","v":0},null,null,null,null,null,null,null,null,{"$error":"#DIV/0!"},0,0,null,"","","","","","","","","","",null,null,null,null,null,null,null,null,null,null,null,null,null,null,null,null,null,"ZWO"]
[null,null,null,null,null,null,null,null,null,null,null,null,null,null,null,null,{"$f":"VLOOKUP(P481,'Input MCC'!B:C,2,0)","v":{"$error":"#N/A"}},{"$f":"VLOOKUP(P481,'Input MCC'!B:E,4,0)","v":{"$error":"#N/A"}},null,null,null,null,null,null,null,null,null,null,null,null,null,{"$error":"#DIV/0!"},0,0,null,"","","","","","","","","","",null,null,null,null,null,null,null,null,null,null,null,null,null,null,null,null,null,"ZWO"]
[null,null,null,null,null,null,null,null,null,null,null,null,null,null,null,null,{"$f":"VLOOKUP(P482,'Input MCC'!B:C,2,0)","v":{"$error":"#N/A"}},{"$f":"VLOOKUP(P482,'Input MCC'!B:E,4,0)","v":{"$error":"#N/A"}},null,null,null,null,null,null,null,null,null,null,null,null,null,{"$error":"#DIV/0!"},0,0,null,"","","","","","","","","","",null,null,null,null,null,null,null,null,null,null,null,null,null,null,null,null,null,"ZWO"]
[null,null,null,null,null,null,null,null,null,null,null,null,null,null,null,null,{"$f":"VLOOKUP(P483,'Input MCC'!B:C,2,0)","v":{"$error":"#N/A"}},{"$f":"VLOOKUP(P483,'Input MCC'!B:E,4,0)","v":{"$error":"#N/A"}},null,null,null,null,null,null,null,null,null,null,null,null,null,{"$error":"#DIV/0!"},0,0,null,"","","","","","","","","","",null,null,null,null,null,null,null,null,null,null,null,null,null,null,null,null,null,"ZWO"]
[null,null,null,null,null,null,null,null,null,null,null,null,null,null,null,null,{"$f":"VLOOKUP(P484,'Input MCC'!B:C,2,0)","v":{"$error":"#N/A"}},{"$f":"VLOOKUP(P484,'Input MCC'!B:E,4,0)","v":{"$error":"#N/A"}},null,null,null,null,null,null,null,null,null,null,null,null,null,{"$error":"#DIV/0!"},0,0,null,"","","","","","","","","","",null,null,null,null,null,null,null,null,null,null,null,null,null,null,null,null,null,"ZWO"]
[null,null,null,null,null,null,null,null,null,null,null,null,null,null,null,null,{"$f":"VLOOKUP(P485,'Input MCC'!B:C,2,0)","v":{"$error":"#N/A"}},{"$f":"VLOOKUP(P485,'Input MCC'!B:E,4,0)","v":{"$error":"#N/A"}},null,null,null,null,null,null,null,null,null,null,null,null,null,{"$error":"#DIV/0!"},0,0,null,"","","","","","","","","","",null,null,null,null,null,null,null,null,null,null,null,null,null,null,null,null,null,"ZWO"]
[null,null,null,null,null,null,null,null,null,null,null,null,null,null,null,null,{"$f":"VLOOKUP(P486,'Input MCC'!B:C,2,0)","v":{"$error":"#N/A"}},{"$f":"VLOOKUP(P486,'Input MCC'!B:E,4,0)","v":{"$error":"#N/A"}},null,null,null,null,{"$f":"SUM(V486:V491)","v":0},null,null,null,null,null,null,null,null,{"$error":"#DIV/0!"},0,0,null,"","","","","","","","","","",null,null,null,null,null,null,null,null,null,null,null,null,null,null,null,null,null,"ZWO"]
[null,null,null,null,null,null,null,null,null,null,null,null,null,null,null,null,{"$f":"VLOOKUP(P487,'Input MCC'!B:C,2,0)","v":{"$error":"#N/A"}},{"$f":"VLOOKUP(P487,'Input MCC'!B:E,4,0)","v":{"$error":"#N/A"}},null,null,null,null,null,null,null,null,null,null,null,null,null,{"$error":"#DIV/0!"},0,0,null,"","","","","","","","","","",null,null,null,null,null,null,null,null,null,null,null,null,null,null,null,null,null,"ZWO"]
[null,null,null,null,null,null,null,null,null,null,null,null,null,null,null,null,{"$f":"VLOOKUP(P488,'Input MCC'!B:C,2,0)","v":{"$error":"#N/A"}},{"$f":"VLOOKUP(P488,'Input MCC'!B:E,4,0)","v":{"$error":"#N/A"}},null,null,null,null,null,null,null,null,null,null,null,null,null,{"$error":"#DIV/0!"},0,0,null,"","","","","","","","","","",null,null,null,null,null,null,null,null,null,null,null,null,null,null,null,null,null,"ZWO"]
[null,null,null,null,null,null,null,null,null,null,null,null,null,null,null,null,{"$f":"VLOOKUP(P489,'Input MCC'!B:C,2,0)","v":{"$error":"#N/A"}},{"$f":"VLOOKUP(P489,'Input MCC'!B:E,4,0)","v":{"$error":"#N/A"}},null,null,null,null,null,null,null,null,null,null,null,null,null,{"$error":"#DIV/0!"},0,0,null,"","","","","","","","","","",null,null,null,null,null,null,null,null,null,null,null,null,null,null,null,null,null,"ZWO"]
[null,null,null,null,null,null,null,null,null,null,null,null,null,null,null,null,{"$f":"VLOOKUP(P490,'Input MCC'!B:C,2,0)","v":{"$error":"#N/A"}},{"$f":"VLOOKUP(P490,'Input MCC'!B:E,4,0)","v":{"$error":"#N/A"}},null,null,null,null,null,null,null,null,null,null,null,null,null,{"$error":"#DIV/0!"},0,0,null,"","","","","","","","","","",null,null,null,null,null,null,null,null,null,null,null,null,null,null,null,null,null,"ZWO"]
[null,null,null,null,null,null,null,null,null,null,null,null,null,null,null,null,{"$f":"VLOOKUP(P491,'Input MCC'!B:C,2,0)","v":{"$error":"#N/A"}},{"$f":"VLOOKUP(P491,'Input MCC'!B:E,4,0)","v":{"$error":"#N/A"}},null,null,null,null,null,null,null,null,null,null,null,null,null,{"$error":"#DIV/0!"},0,0,null,"","","","","","","","","","",null,null,null,null,null,null,null,null,null,null,null,null,null,null,null,null,null,"ZWO"]
[null,null,null,null,null,null,null,null,null,null,null,null,null,null,null,null,{"$f":"VLOOKUP(P492,'Input MCC'!B:C,2,0)","v":{"$error":"#N/A"}},{"$f":"VLOOKUP(P492,'Input MCC'!B:E,4,0)","v":{"$error":"#N/A"}},null,null,null,null,{"$f":"SUM(V492:V497)","v":0},null,null,null,null,null,null,null,null,{"$error":"#DIV/0!"},0,0,null,"","","","","","","","","","",null,null,null,null,null,null,null,null,null,null,null,null,null,null,null,null,null,"ZWO"]
[null,null,null,null,null,null,null,null,null,null,null,null,null,null,null,null,{"$f":"VLOOKUP(P493,'Input MCC'!B:C,2,0)","v":{"$error":"#N/A"}},{"$f":"VLOOKUP(P493,'Input MCC'!B:E,4,0)","v":{"$error":"#N/A"}},null,null,null,null,null,null,null,null,null,null,null,null,null,{"$error":"#DIV/0!"},0,0,null,"","","","","","","","","","",null,null,null,null,null,null,null,null,null,null,null,null,null,null,null,null,null,"ZWO"]
[null,null,null,null,null,null,null,null,null,null,null,null,null,null,null,null,{"$f":"VLOOKUP(P494,'Input MCC'!B:C,2,0)","v":{"$error":"#N/A"}},{"$f":"VLOOKUP(P494,'Input MCC'!B:E,4,0)","v":{"$error":"#N/A"}},null,null,null,null,null,null,null,null,null,null,null,null,null,{"$error":"#DIV/0!"},0,0,null,"","","","","","","","","","",null,null,null,null,null,null,null,null,null,null,null,null,null,null,null,null,null,"ZWO"]
[null,null,null,null,null,null,null,null,null,null,null,null,null,null,null,null,{"$f":"VLOOKUP(P495,'Input MCC'!B:C,2,0)","v":{"$error":"#N/A"}},{"$f":"VLOOKUP(P495,'Input MCC'!B:E,4,0)","v":{"$error":"#N/A"}},null,null,null,null,null,null,null,null,null,null,null,null,null,{"$error":"#DIV/0!"},0,0,null,"","","","","","","","","","",null,null,null,null,null,null,null,null,null,null,null,null,null,null,null,null,null,"ZWO"]
[null,null,null,null,null,null,null,null,null,null,null,null,null,null,null,null,{"$f":"VLOOKUP(P496,'Input MCC'!B:C,2,0)","v":{"$error":"#N/A"}},{"$f":"VLOOKUP(P496,'Input MCC'!B:E,4,0)","v":{"$error":"#N/A"}},null,null,null,null,null,null,null,null,null,null,null,null,null,{"$error":"#DIV/0!"},0,0,null,"","","","","","","","","","",null,null,null,null,null,null,null,null,null,null,null,null,null,null,null,null,null,"ZWO"]
[null,null,null,null,null,null,null,null,null,null,null,null,null,null,null,null,{"$f":"VLOOKUP(P497,'Input MCC'!B:C,2,0)","v":{"$error":"#N/A"}},{"$f":"VLOOKUP(P497,'Input MCC'!B:E,4,0)","v":{"$error":"#N/A"}},null,null,null,null,null,null,null,null,null,null,null,null,null,{"$error":"#DIV/0!"},0,0,null,"","","","","","","","","","",null,null,null,null,null,null,null,null,null,null,null,null,null,null,null,null,null,"ZWO"]
[null,null,null,null,null,null,null,null,null,null,null,null,null,null,null,null,{"$f":"VLOOKUP(P498,'Input MCC'!B:C,2,0)","v":{"$error":"#N/A"}},{"$f":"VLOOKUP(P498,'Input MCC'!B:E,4,0)","v":{"$error":"#N/A"}},null,null,null,null,{"$f":"SUM(V498:V503)","v":0},null,null,null,null,null,null,null,null,{"$error":"#DIV/0!"},0,0,null,"","","","","","","","","","",null,null,null,null,null,null,null,null,null,null,null,null,null,null,null,null,null,"ZWO"]
[null,null,null,null,null,null,null,null,null,null,null,null,null,null,null,null,{"$f":"VLOOKUP(P499,'Input MCC'!B:C,2,0)","v":{"$error":"#N/A"}},{"$f":"VLOOKUP(P499,'Input MCC'!B:E,4,0)","v":{"$error":"#N/A"}},null,null,null,null,null,null,null,null,null,null,null,null,null,{"$error":"#DIV/0!"},0,0,null,"","","","","","","","","","",null,null,null,null,null,null,null,null,null,null,null,null,null,null,null,null,null,"ZWO"]
[null,null,null,null,null,null,null,null,null,null,null,null,null,null,null,null,{"$f":"VLOOKUP(P500,'Input MCC'!B:C,2,0)","v":{"$error":"#N/A"}},{"$f":"VLOOKUP(P500,'Input MCC'!B:E,4,0)","v":{"$error":"#N/A"}},null,null,null,null,null,null,null,null,null,null,null,null,null,{"$error":"#DIV/0!"},0,0,null,"","","","","","","","","","",null,null,null,null,null,null,null,null,null,null,null,null,null,null,null,null,null,"ZWO"]
[null,null,null,null,null,null,null,null,null,null,null,null,null,null,null,null,{"$f":"VLOOKUP(P501,'Input MCC'!B:C,2,0)","v":{"$error":"#N/A"}},{"$f":"VLOOKUP(P501,'Input MCC'!B:E,4,0)","v":{"$error":"#N/A"}},null,null,null,null,null,null,null,null,null,null,null,null,null,{"$error":"#DIV/0!"},0,0,null,"","","","","","","","","","",null,null,null,null,null,null,null,null,null,null,null,null,null,null,null,null,null,"ZWO"]
[null,null,null,null,null,null,null,null,null,null,null,null,null,null,null,null,{"$f":"VLOOKUP(P502,'Input MCC'!B:C,2,0)","v":{"$error":"#N/A"}},{"$f":"VLOOKUP(P502,'Input MCC'!B:E,4,0)","v":{"$error":"#N/A"}},null,null,null,null,null,null,null,null,null,null,null,null,null,{"$error":"#DIV/0!"},0,0,null,"","","","","","","","","","",null,null,null,null,null,null,null,null,null,null,null,null,null,null,null,null,null,"ZWO"]
[null,null,null,null,null,null,null,null,null,null,null,null,null,null,null,null,{"$f":"VLOOKUP(P503,'Input MCC'!B:C,2,0)","v":{"$error":"#N/A"}},{"$f":"VLOOKUP(P503,'Input MCC'!B:E,4,0)","v":{"$error":"#N/A"}},null,null,null,null,null,null,null,null,null,null,null,null,null,{"$error":"#DIV/0!"},0,0,null,"","","","","","","","","","",null,null,null,null,null,null,null,null,null,null,null,null,null,null,null,null,null,"ZWO"]
[null,null,null,null,null,null,null,null,null,null,null,null,null,null,null,null,{"$f":"VLOOKUP(P504,'Input MCC'!B:C,2,0)","v":{"$error":"#N/A"}},{"$f":"VLOOKUP(P504,'Input MCC'!B:E,4,0)","v":{"$error":"#N/A"}},null,null,null,null,{"$f":"SUM(V504:V509)","v":0},null,null,null,null,null,null,null,null,{"$f":"AE504/AC504","v":{"$error":"#DIV/0!"}},{"$f":"V504*AC504","v":0},{"$f":"V504*AE504","v":0},null,{"$f":"IF(AI504 <> \"\",\n    IF(ISNUMBER(VALUE(LEFT(AI504, FIND(\"%\", AI504)-1))),\n        VALUE(LEFT(AI504, FIND(\"%\", AI504)-1)),\n        \"Invalid format\"),\n    \"\")","v":""},{"$f":"IF(AI504 <> \"\",\n    IF(ISNUMBER(VALUE(LEFT(AI504, FIND(\"%\", AI504)-1))) * ISNUMBER(FIND(\"%\", AI504 & \"wol\")) > 0,\n        TRIM(MID(AI504, FIND(\"%\", AI504)+1, FIND(\"/\", AI504 & \"/\")-FIND(\"%\", AI504)-1)),\n        \"Invalid format\"),\n    \"\")","v":""},{"$f":"IF(AI504 <> \"\",\n    IF(ISNUMBER(VALUE(MID(AI504, FIND(\"/\", AI504) + 1, FIND(\"%\", AI504, FIND(\"/\", AI504)) - FIND(\"/\", AI504) - 1))),\n        VALUE(MID(AI504, FIND(\"/\", AI504) + 1, FIND(\"%\", AI504, FIND(\"/\", AI504)) - FIND(\"/\", AI504) - 1)),\n        \"\"),\n    \"\")","v":""},{"$f":"IF(AI504 <> \"\",\n    IFERROR(TRIM(MID(AI504, FIND(\"%\", AI504, FIND(\"/\", AI504)+1)+2,\n        IFERROR(FIND(\"/\", AI504 & \"/\", FIND(\"/\", AI504)+1)-FIND(\"%\", AI504, FIND(\"/\", AI504)+1)-2, LEN(AI504)-FIND(\"%\", AI504, FIND(\"/\", AI504)+1)-1))),\n        \"\"),\n    \"\")","v":""},{"$f":"IF(AI504 <> \"\",\n    IF(ISNUMBER(VALUE(MID(AI504, FIND(\"/\", AI504, FIND(\"/\", AI504)+1) + 1, FIND(\"%\", AI504, FIND(\"/\", AI504, FIND(\"/\", AI504)+1)) - FIND(\"/\", AI504, FIND(\"/\", AI504)+1) - 1))),\n        VALUE(MID(AI504, FIND(\"/\", AI504, FIND(\"/\", AI504)+1) + 1, FIND(\"%\", AI504, FIND(\"/\", AI504, FIND(\"/\", AI504)+1)) - FIND(\"/\", AI504, FIND(\"/\", AI504)+1) - 1)),\n        \"\"),\n    \"\")","v":""},{"$f":"IF(AI504 <> \"\",\n    IFERROR(\n        TRIM(MID(AI504,\n            FIND(\"%\", AI504, FIND(\"%\", AI504, FIND(\"%\", AI504)+1)+1)+1,\n            FIND(\"/\", AI504 & \"/\", FIND(\"%\", AI504, FIND(\"%\", AI504, FIND(\"%\", AI504)+1)+1))-FIND(\"%\", AI504, FIND(\"%\", AI504, FIND(\"%\", AI504)+1)+1)-1)\n        ),\n        \"\"\n    ),\n    \"\"\n)","v":""},{"$f":"IF(AI504 <> \"\",\n    IF(ISNUMBER(VALUE(MID(AI504, FIND(\"/\", AI504, FIND(\"/\", AI504, FIND(\"/\", AI504)+1)+1) + 1, FIND(\"%\", AI504, FIND(\"/\", AI504, FIND(\"/\", AI504, FIND(\"/\", AI504)+1)+1)) - FIND(\"/\", AI504, FIND(\"/\", AI504, FIND(\"/\", AI504)+1)+1) - 1))),\n        VALUE(MID(AI504, FIND(\"/\", AI504, FIND(\"/\", AI504, FIND(\"/\", AI504)+1)+1) + 1, FIND(\"%\", AI504, FIND(\"/\", AI504, FIND(\"/\", AI504, FIND(\"/\", AI504)+1)+1)) - FIND(\"/\", AI504, FIND(\"/\", AI504, FIND(\"/\", AI504)+1)+1) - 1)),\n        \"\"),\n    \"\")","v":""},{"$f":"IF(AI504 <> \"\",\n    IFERROR(TRIM(MID(AI504, FIND(\"%\", AI504, FIND(\"/\", AI504, FIND(\"/\", AI504, FIND(\"/\", AI504)+1)+1)+1)+2,\n        IFERROR(FIND(\"/\", AI504, FIND(\"/\", AI504, FIND(\"/\", AI504, FIND(\"/\", AI504)+1)+1)+1)-FIND(\"%\", AI504, FIND(\"/\", AI504, FIND(\"/\", AI504, FIND(\"/\", AI504)+1)+1)+1)-2, LEN(AI504)-FIND(\"%\", AI504, FIND(\"/\", AI504, FIND(\"/\", AI504, FIND(\"/\", AI504)+1)+1)+1)-1))),\n        \"\"),\n    \"\")","v":""},{"$f":"IF(AI504 <> \"\",\n    IF(ISNUMBER(VALUE(MID(AI504, FIND(\"/\", AI504, FIND(\"/\", AI504, FIND(\"/\", AI504, FIND(\"/\", AI504)+1)+1)+1) + 1, FIND(\"%\", AI504, FIND(\"/\", AI504, FIND(\"/\", AI504, FIND(\"/\", AI504, FIND(\"/\", AI504)+1)+1)+1)) - FIND(\"/\", AI504, FIND(\"/\", AI504, FIND(\"/\", AI504, FIND(\"/\", AI504)+1)+1)+1) - 1))),\n        VALUE(MID(AI504, FIND(\"/\", AI504, FIND(\"/\", AI504, FIND(\"/\", AI504, FIND(\"/\", AI504)+1)+1)+1) + 1, FIND(\"%\", AI504, FIND(\"/\", AI504, FIND(\"/\", AI504, FIND(\"/\", AI504, FIND(\"/\", AI504)+1)+1)+1)) - FIND(\"/\", AI504, FIND(\"/\", AI504, FIND(\"/\", AI504, FIND(\"/\", AI504)+1)+1)+1) - 1)),\n        \"\"),\n    \"\")","v":""},{"$f":"IF(AI504 = \"\", \"\",\n    IFERROR(TRIM(\n        MID(\n            AI504,\n            FIND(\"%\", AI504, FIND(\"/\", AI504, FIND(\"/\", AI504, FIND(\"/\", AI504, FIND(\"/\", AI504)+1)+1)+1)+1) + 1,\n            FIND(\"/\", AI504 & \"/\", FIND(\"%\", AI504, FIND(\"/\", AI504, FIND(\"/\", AI504, FIND(\"/\", AI504, FIND(\"/\", AI504)+1)+1)+1)+1)) -\n            FIND(\"%\", AI504, FIND(\"/\", AI504, FIND(\"/\", AI504, FIND(\"/\", AI504, FIND(\"/\", AI504)+1)+1)+1)+1) - 1\n        )\n    ),\n    \"\")\n)","v":""},null,null,null,null,null,null,null,null,null,null,null,null,null,null,null,null,null,"ZWO"]
[null,null,null,null,null,null,null,null,null,null,null,null,null,null,null,null,{"$f":"VLOOKUP(P505,'Input MCC'!B:C,2,0)","v":{"$error":"#N/A"}},{"$f":"VLOOKUP(P505,'Input MCC'!B:E,4,0)","v":{"$error":"#N/A"}},null,null,null,null,null,null,null,null,null,null,null,null,null,{"$error":"#DIV/0!"},0,0,null,"","","","","","","","","","",null,null,null,null,null,null,null,null,null,null,null,null,null,null,null,null,null,"ZWO"]
[null,null,null,null,null,null,null,null,null,null,null,null,null,null,null,null,{"$f":"VLOOKUP(P506,'Input MCC'!B:C,2,0)","v":{"$error":"#N/A"}},{"$f":"VLOOKUP(P506,'Input MCC'!B:E,4,0)","v":{"$error":"#N/A"}},null,null,null,null,null,null,null,null,null,null,null,null,null,{"$error":"#DIV/0!"},0,0,null,"","","","","","","","","","",null,null,null,null,null,null,null,null,null,null,null,null,null,null,null,null,null,"ZWO"]
[null,null,null,null,null,null,null,null,null,null,null,null,null,null,null,null,{"$f":"VLOOKUP(P507,'Input MCC'!B:C,2,0)","v":{"$error":"#N/A"}},{"$f":"VLOOKUP(P507,'Input MCC'!B:E,4,0)","v":{"$error":"#N/A"}},null,null,null,null,null,null,null,null,null,null,null,null,null,{"$error":"#DIV/0!"},0,0,null,"","","","","","","","","","",null,null,null,null,null,null,null,null,null,null,null,null,null,null,null,null,null,"ZWO"]
[null,null,null,null,null,null,null,null,null,null,null,null,null,null,null,null,{"$f":"VLOOKUP(P508,'Input MCC'!B:C,2,0)","v":{"$error":"#N/A"}},{"$f":"VLOOKUP(P508,'Input MCC'!B:E,4,0)","v":{"$error":"#N/A"}},null,null,null,null,null,null,null,null,null,null,null,null,null,{"$error":"#DIV/0!"},0,0,null,"","","","","","","","","","",null,null,null,null,null,null,null,null,null,null,null,null,null,null,null,null,null,"ZWO"]
[null,null,null,null,null,null,null,null,null,null,null,null,null,null,null,null,{"$f":"VLOOKUP(P509,'Input MCC'!B:C,2,0)","v":{"$error":"#N/A"}},{"$f":"VLOOKUP(P509,'Input MCC'!B:E,4,0)","v":{"$error":"#N/A"}},null,null,null,null,null,null,null,null,null,null,null,null,null,{"$error":"#DIV/0!"},0,0,null,"","","","","","","","","","",null,null,null,null,null,null,null,null,null,null,null,null,null,null,null,null,null,"ZWO"]
[null,null,null,null,null,null,null,null,null,null,null,null,null,null,null,null,{"$f":"VLOOKUP(P510,'Input MCC'!B:C,2,0)","v":{"$error":"#N/A"}},{"$f":"VLOOKUP(P510,'Input MCC'!B:E,4,0)","v":{"$error":"#N/A"}},null,null,null,null,{"$f":"SUM(V510:V515)","v":0},null,null,null,null,null,null,null,null,{"$error":"#DIV/0!"},0,0,null,"","","","","","","","","","",null,null,null,null,null,null,null,null,null,null,null,null,null,null,null,null,null,"ZWO"]
[null,null,null,null,null,null,null,null,null,null,null,null,null,null,null,null,{"$f":"VLOOKUP(P511,'Input MCC'!B:C,2,0)","v":{"$error":"#N/A"}},{"$f":"VLOOKUP(P511,'Input MCC'!B:E,4,0)","v":{"$error":"#N/A"}},null,null,null,null,null,null,null,null,null,null,null,null,null,{"$error":"#DIV/0!"},0,0,null,"","","","","","","","","","",null,null,null,null,null,null,null,null,null,null,null,null,null,null,null,null,null,"ZWO"]
[null,null,null,null,null,null,null,null,null,null,null,null,null,null,null,null,{"$f":"VLOOKUP(P512,'Input MCC'!B:C,2,0)","v":{"$error":"#N/A"}},{"$f":"VLOOKUP(P512,'Input MCC'!B:E,4,0)","v":{"$error":"#N/A"}},null,null,null,null,null,null,null,null,null,null,null,null,null,{"$error":"#DIV/0!"},0,0,null,"","","","","","","","","","",null,null,null,null,null,null,null,null,null,null,null,null,null,null,null,null,null,"ZWO"]
[null,null,null,null,null,null,null,null,null,null,null,null,null,null,null,null,{"$f":"VLOOKUP(P513,'Input MCC'!B:C,2,0)","v":{"$error":"#N/A"}},{"$f":"VLOOKUP(P513,'Input MCC'!B:E,4,0)","v":{"$error":"#N/A"}},null,null,null,null,null,null,null,null,null,null,null,null,null,{"$error":"#DIV/0!"},0,0,null,"","","","","","","","","","",null,null,null,null,null,null,null,null,null,null,null,null,null,null,null,null,null,"ZWO"]
[null,null,null,null,null,null,null,null,null,null,null,null,null,null,null,null,{"$f":"VLOOKUP(P514,'Input MCC'!B:C,2,0)","v":{"$error":"#N/A"}},{"$f":"VLOOKUP(P514,'Input MCC'!B:E,4,0)","v":{"$error":"#N/A"}},null,null,null,null,null,null,null,null,null,null,null,null,null,{"$error":"#DIV/0!"},0,0,null,"","","","","","","","","","",null,null,null,null,null,null,null,null,null,null,null,null,null,null,null,null,null,"ZWO"]
[null,null,null,null,null,null,null,null,null,null,null,null,null,null,null,null,{"$f":"VLOOKUP(P515,'Input MCC'!B:C,2,0)","v":{"$error":"#N/A"}},{"$f":"VLOOKUP(P515,'Input MCC'!B:E,4,0)","v":{"$error":"#N/A"}},null,null,null,null,null,null,null,null,null,null,null,null,null,{"$error":"#DIV/0!"},0,0,null,"","","","","","","","","","",null,null,null,null,null,null,null,null,null,null,null,null,null,null,null,null,null,"ZWO"]
[null,null,null,null,null,null,null,null,null,null,null,null,null,null,null,null,{"$f":"VLOOKUP(P516,'Input MCC'!B:C,2,0)","v":{"$error":"#N/A"}},{"$f":"VLOOKUP(P516,'Input MCC'!B:E,4,0)","v":{"$error":"#N/A"}},null,null,null,null,{"$f":"SUM(V516:V521)","v":0},null,null,null,null,null,null,null,null,{"$error":"#DIV/0!"},0,0,null,"","","","","","","","","","",null,null,null,null,null,null,null,null,null,null,null,null,null,null,null,null,null,"ZWO"]
[null,null,null,null,null,null,null,null,null,null,null,null,null,null,null,null,{"$f":"VLOOKUP(P517,'Input MCC'!B:C,2,0)","v":{"$error":"#N/A"}},{"$f":"VLOOKUP(P517,'Input MCC'!B:E,4,0)","v":{"$error":"#N/A"}},null,null,null,null,null,null,null,null,null,null,null,null,null,{"$error":"#DIV/0!"},0,0,null,"","","","","","","","","","",null,null,null,null,null,null,null,null,null,null,null,null,null,null,null,null,null,"ZWO"]
[null,null,null,null,null,null,null,null,null,null,null,null,null,null,null,null,{"$f":"VLOOKUP(P518,'Input MCC'!B:C,2,0)","v":{"$error":"#N/A"}},{"$f":"VLOOKUP(P518,'Input MCC'!B:E,4,0)","v":{"$error":"#N/A"}},null,null,null,null,null,null,null,null,null,null,null,null,null,{"$error":"#DIV/0!"},0,0,null,"","","","","","","","","","",null,null,null,null,null,null,null,null,null,null,null,null,null,null,null,null,null,"ZWO"]
[null,null,null,null,null,null,null,null,null,null,null,null,null,null,null,null,{"$f":"VLOOKUP(P519,'Input MCC'!B:C,2,0)","v":{"$error":"#N/A"}},{"$f":"VLOOKUP(P519,'Input MCC'!B:E,4,0)","v":{"$error":"#N/A"}},null,null,null,null,null,null,null,null,null,null,null,null,null,{"$error":"#DIV/0!"},0,0,null,"","","","","","","","","","",null,null,null,null,null,null,null,null,null,null,null,null,null,null,null,null,null,"ZWO"]
[null,null,null,null,null,null,null,null,null,null,null,null,null,null,null,null,{"$f":"VLOOKUP(P520,'Input MCC'!B:C,2,0)","v":{"$error":"#N/A"}},{"$f":"VLOOKUP(P520,'Input MCC'!B:E,4,0)","v":{"$error":"#N/A"}},null,null,null,null,null,null,null,null,null,null,null,null,null,{"$error":"#DIV/0!"},0,0,null,"","","","","","","","","","",null,null,null,null,null,null,null,null,null,null,null,null,null,null,null,null,null,"ZWO"]
[null,null,null,null,null,null,null,null,null,null,null,null,null,null,null,null,{"$f":"VLOOKUP(P521,'Input MCC'!B:C,2,0)","v":{"$error":"#N/A"}},{"$f":"VLOOKUP(P521,'Input MCC'!B:E,4,0)","v":{"$error":"#N/A"}},null,null,null,null,null,null,null,null,null,null,null,null,null,{"$error":"#DIV/0!"},0,0,null,"","","","","","","","","","",null,null,null,null,null,null,null,null,null,null,null,null,null,null,null,null,null,"ZWO"]
[null,null,null,null,null,null,null,null,null,null,null,null,null,null,null,null,{"$f":"VLOOKUP(P522,'Input MCC'!B:C,2,0)","v":{"$error":"#N/A"}},{"$f":"VLOOKUP(P522,'Input MCC'!B:E,4,0)","v":{"$error":"#N/A"}},null,null,null,null,{"$f":"SUM(V522:V527)","v":0},null,null,null,null,null,null,null,null,{"$error":"#DIV/0!"},0,0,null,"","","","","","","","","","",null,null,null,null,null,null,null,null,null,null,null,null,null,null,null,null,null,"ZWO"]
[null,null,null,null,null,null,null,null,null,null,null,null,null,null,null,null,{"$f":"VLOOKUP(P523,'Input MCC'!B:C,2,0)","v":{"$error":"#N/A"}},{"$f":"VLOOKUP(P523,'Input MCC'!B:E,4,0)","v":{"$error":"#N/A"}},null,null,null,null,null,null,null,null,null,null,null,null,null,{"$error":"#DIV/0!"},0,0,null,"","","","","","","","","","",null,null,null,null,null,null,null,null,null,null,null,null,null,null,null,null,null,"ZWO"]
[null,null,null,null,null,null,null,null,null,null,null,null,null,null,null,null,{"$f":"VLOOKUP(P524,'Input MCC'!B:C,2,0)","v":{"$error":"#N/A"}},{"$f":"VLOOKUP(P524,'Input MCC'!B:E,4,0)","v":{"$error":"#N/A"}},null,null,null,null,null,null,null,null,null,null,null,null,null,{"$error":"#DIV/0!"},0,0,null,"","","","","","","","","","",null,null,null,null,null,null,null,null,null,null,null,null,null,null,null,null,null,"ZWO"]
[null,null,null,null,null,null,null,null,null,null,null,null,null,null,null,null,{"$f":"VLOOKUP(P525,'Input MCC'!B:C,2,0)","v":{"$error":"#N/A"}},{"$f":"VLOOKUP(P525,'Input MCC'!B:E,4,0)","v":{"$error":"#N/A"}},null,null,null,null,null,null,null,null,null,null,null,null,null,{"$error":"#DIV/0!"},0,0,null,"","","","","","","","","","",null,null,null,null,null,null,null,null,null,null,null,null,null,null,null,null,null,"ZWO"]
[null,null,null,null,null,null,null,null,null,null,null,null,null,null,null,null,{"$f":"VLOOKUP(P526,'Input MCC'!B:C,2,0)","v":{"$error":"#N/A"}},{"$f":"VLOOKUP(P526,'Input MCC'!B:E,4,0)","v":{"$error":"#N/A"}},null,null,null,null,null,null,null,null,null,null,null,null,null,{"$error":"#DIV/0!"},0,0,null,"","","","","","","","","","",null,null,null,null,null,null,null,null,null,null,null,null,null,null,null,null,null,"ZWO"]
[null,null,null,null,null,null,null,null,null,null,null,null,null,null,null,null,{"$f":"VLOOKUP(P527,'Input MCC'!B:C,2,0)","v":{"$error":"#N/A"}},{"$f":"VLOOKUP(P527,'Input MCC'!B:E,4,0)","v":{"$error":"#N/A"}},null,null,null,null,null,null,null,null,null,null,null,null,null,{"$error":"#DIV/0!"},0,0,null,"","","","","","","","","","",null,null,null,null,null,null,null,null,null,null,null,null,null,null,null,null,null,"ZWO"]
[null,null,null,null,null,null,null,null,null,null,null,null,null,null,null,null,{"$f":"VLOOKUP(P528,'Input MCC'!B:C,2,0)","v":{"$error":"#N/A"}},{"$f":"VLOOKUP(P528,'Input MCC'!B:E,4,0)","v":{"$error":"#N/A"}},null,null,null,null,{"$f":"SUM(V528:V533)","v":0},null,null,null,null,null,null,null,null,{"$error":"#DIV/0!"},0,0,null,"","","","","","","","","","",null,null,null,null,null,null,null,null,null,null,null,null,null,null,null,null,null,"ZWO"]
[null,null,null,null,null,null,null,null,null,null,null,null,null,null,null,null,{"$f":"VLOOKUP(P529,'Input MCC'!B:C,2,0)","v":{"$error":"#N/A"}},{"$f":"VLOOKUP(P529,'Input MCC'!B:E,4,0)","v":{"$error":"#N/A"}},null,null,null,null,null,null,null,null,null,null,null,null,null,{"$error":"#DIV/0!"},0,0,null,"","","","","","","","","","",null,null,null,null,null,null,null,null,null,null,null,null,null,null,null,null,null,"ZWO"]
[null,null,null,null,null,null,null,null,null,null,null,null,null,null,null,null,{"$f":"VLOOKUP(P530,'Input MCC'!B:C,2,0)","v":{"$error":"#N/A"}},{"$f":"VLOOKUP(P530,'Input MCC'!B:E,4,0)","v":{"$error":"#N/A"}},null,null,null,null,null,null,null,null,null,null,null,null,null,{"$error":"#DIV/0!"},0,0,null,"","","","","","","","","","",null,null,null,null,null,null,null,null,null,null,null,null,null,null,null,null,null,"ZWO"]
[null,null,null,null,null,null,null,null,null,null,null,null,null,null,null,null,{"$f":"VLOOKUP(P531,'Input MCC'!B:C,2,0)","v":{"$error":"#N/A"}},{"$f":"VLOOKUP(P531,'Input MCC'!B:E,4,0)","v":{"$error":"#N/A"}},null,null,null,null,null,null,null,null,null,null,null,null,null,{"$error":"#DIV/0!"},0,0,null,"","","","","","","","","","",null,null,null,null,null,null,null,null,null,null,null,null,null,null,null,null,null,"ZWO"]
[null,null,null,null,null,null,null,null,null,null,null,null,null,null,null,null,{"$f":"VLOOKUP(P532,'Input MCC'!B:C,2,0)","v":{"$error":"#N/A"}},{"$f":"VLOOKUP(P532,'Input MCC'!B:E,4,0)","v":{"$error":"#N/A"}},null,null,null,null,null,null,null,null,null,null,null,null,null,{"$error":"#DIV/0!"},0,0,null,"","","","","","","","","","",null,null,null,null,null,null,null,null,null,null,null,null,null,null,null,null,null,"ZWO"]
[null,null,null,null,null,null,null,null,null,null,null,null,null,null,null,null,{"$f":"VLOOKUP(P533,'Input MCC'!B:C,2,0)","v":{"$error":"#N/A"}},{"$f":"VLOOKUP(P533,'Input MCC'!B:E,4,0)","v":{"$error":"#N/A"}},null,null,null,null,null,null,null,null,null,null,null,null,null,{"$error":"#DIV/0!"},0,0,null,"","","","","","","","","","",null,null,null,null,null,null,null,null,null,null,null,null,null,null,null,null,null,"ZWO"]
[null,null,null,null,null,null,null,null,null,null,null,null,null,null,null,null,{"$f":"VLOOKUP(P534,'Input MCC'!B:C,2,0)","v":{"$error":"#N/A"}},{"$f":"VLOOKUP(P534,'Input MCC'!B:E,4,0)","v":{"$error":"#N/A"}},null,null,null,null,{"$f":"SUM(V534:V539)","v":0},null,null,null,null,null,null,null,null,{"$error":"#DIV/0!"},0,0,null,"","","","","","","","","","",null,null,null,null,null,null,null,null,null,null,null,null,null,null,null,null,null,"ZWO"]
[null,null,null,null,null,null,null,null,null,null,null,null,null,null,null,null,{"$f":"VLOOKUP(P535,'Input MCC'!B:C,2,0)","v":{"$error":"#N/A"}},{"$f":"VLOOKUP(P535,'Input MCC'!B:E,4,0)","v":{"$error":"#N/A"}},null,null,null,null,null,null,null,null,null,null,null,null,null,{"$error":"#DIV/0!"},0,0,null,"","","","","","","","","","",null,null,null,null,null,null,null,null,null,null,null,null,null,null,null,null,null,"ZWO"]
[null,null,null,null,null,null,null,null,null,null,null,null,null,null,null,null,{"$f":"VLOOKUP(P536,'Input MCC'!B:C,2,0)","v":{"$error":"#N/A"}},{"$f":"VLOOKUP(P536,'Input MCC'!B:E,4,0)","v":{"$error":"#N/A"}},null,null,null,null,null,null,null,null,null,null,null,null,null,{"$error":"#DIV/0!"},0,0,null,"","","","","","","","","","",null,null,null,null,null,null,null,null,null,null,null,null,null,null,null,null,null,"ZWO"]
[null,null,null,null,null,null,null,null,null,null,null,null,null,null,null,null,{"$f":"VLOOKUP(P537,'Input MCC'!B:C,2,0)","v":{"$error":"#N/A"}},{"$f":"VLOOKUP(P537,'Input MCC'!B:E,4,0)","v":{"$error":"#N/A"}},null,null,null,null,null,null,null,null,null,null,null,null,null,{"$error":"#DIV/0!"},0,0,null,"","","","","","","","","","",null,null,null,null,null,null,null,null,null,null,null,null,null,null,null,null,null,"ZWO"]
[null,null,null,null,null,null,null,null,null,null,null,null,null,null,null,null,{"$f":"VLOOKUP(P538,'Input MCC'!B:C,2,0)","v":{"$error":"#N/A"}},{"$f":"VLOOKUP(P538,'Input MCC'!B:E,4,0)","v":{"$error":"#N/A"}},null,null,null,null,null,null,null,null,null,null,null,null,null,{"$error":"#DIV/0!"},0,0,null,"","","","","","","","","","",null,null,null,null,null,null,null,null,null,null,null,null,null,null,null,null,null,"ZWO"]
[null,null,null,null,null,null,null,null,null,null,null,null,null,null,null,null,{"$f":"VLOOKUP(P539,'Input MCC'!B:C,2,0)","v":{"$error":"#N/A"}},{"$f":"VLOOKUP(P539,'Input MCC'!B:E,4,0)","v":{"$error":"#N/A"}},null,null,null,null,null,null,null,null,null,null,null,null,null,{"$error":"#DIV/0!"},0,0,null,"","","","","","","","","","",null,null,null,null,null,null,null,null,null,null,null,null,null,null,null,null,null,"ZWO"]
[null,null,null,null,null,null,null,null,null,null,null,null,null,null,null,null,{"$f":"VLOOKUP(P540,'Input MCC'!B:C,2,0)","v":{"$error":"#N/A"}},{"$f":"VLOOKUP(P540,'Input MCC'!B:E,4,0)","v":{"$error":"#N/A"}},null,null,null,null,{"$f":"SUM(V540:V545)","v":0},null,null,null,null,null,null,null,null,{"$error":"#DIV/0!"},0,0,null,"","","","","","","","","","",null,null,null,null,null,null,null,null,null,null,null,null,null,null,null,null,null,"ZWO"]
[null,null,null,null,null,null,null,null,null,null,null,null,null,null,null,null,{"$f":"VLOOKUP(P541,'Input MCC'!B:C,2,0)","v":{"$error":"#N/A"}},{"$f":"VLOOKUP(P541,'Input MCC'!B:E,4,0)","v":{"$error":"#N/A"}},null,null,null,null,null,null,null,null,null,null,null,null,null,{"$error":"#DIV/0!"},0,0,null,"","","","","","","","","","",null,null,null,null,null,null,null,null,null,null,null,null,null,null,null,null,null,"ZWO"]
[null,null,null,null,null,null,null,null,null,null,null,null,null,null,null,null,{"$f":"VLOOKUP(P542,'Input MCC'!B:C,2,0)","v":{"$error":"#N/A"}},{"$f":"VLOOKUP(P542,'Input MCC'!B:E,4,0)","v":{"$error":"#N/A"}},null,null,null,null,null,null,null,null,null,null,null,null,null,{"$error":"#DIV/0!"},0,0,null,"","","","","","","","","","",null,null,null,null,null,null,null,null,null,null,null,null,null,null,null,null,null,"ZWO"]
[null,null,null,null,null,null,null,null,null,null,null,null,null,null,null,null,{"$f":"VLOOKUP(P543,'Input MCC'!B:C,2,0)","v":{"$error":"#N/A"}},{"$f":"VLOOKUP(P543,'Input MCC'!B:E,4,0)","v":{"$error":"#N/A"}},null,null,null,null,null,null,null,null,null,null,null,null,null,{"$error":"#DIV/0!"},0,0,null,"","","","","","","","","","",null,null,null,null,null,null,null,null,null,null,null,null,null,null,null,null,null,"ZWO"]
[null,null,null,null,null,null,null,null,null,null,null,null,null,null,null,null,{"$f":"VLOOKUP(P544,'Input MCC'!B:C,2,0)","v":{"$error":"#N/A"}},{"$f":"VLOOKUP(P544,'Input MCC'!B:E,4,0)","v":{"$error":"#N/A"}},null,null,null,null,null,null,null,null,null,null,null,null,null,{"$error":"#DIV/0!"},0,0,null,"","","","","","","","","","",null,null,null,null,null,null,null,null,null,null,null,null,null,null,null,null,null,"ZWO"]
[null,null,null,null,null,null,null,null,null,null,null,null,null,null,null,null,{"$f":"VLOOKUP(P545,'Input MCC'!B:C,2,0)","v":{"$error":"#N/A"}},{"$f":"VLOOKUP(P545,'Input MCC'!B:E,4,0)","v":{"$error":"#N/A"}},null,null,null,null,null,null,null,null,null,null,null,null,null,{"$error":"#DIV/0!"},0,0,null,"","","","","","","","","","",null,null,null,null,null,null,null,null,null,null,null,null,null,null,null,null,null,"ZWO"]
[null,null,null,null,null,null,null,null,null,null,null,null,null,null,null,null,{"$f":"VLOOKUP(P546,'Input MCC'!B:C,2,0)","v":{"$error":"#N/A"}},{"$f":"VLOOKUP(P546,'Input MCC'!B:E,4,0)","v":{"$error":"#N/A"}},null,null,null,null,{"$f":"SUM(V546:V551)","v":0},null,null,null,null,null,null,null,null,{"$error":"#DIV/0!"},0,0,null,"","","","","","","","","","",null,null,null,null,null,null,null,null,null,null,null,null,null,null,null,null,null,"ZWO"]
[null,null,null,null,null,null,null,null,null,null,null,null,null,null,null,null,{"$f":"VLOOKUP(P547,'Input MCC'!B:C,2,0)","v":{"$error":"#N/A"}},{"$f":"VLOOKUP(P547,'Input MCC'!B:E,4,0)","v":{"$error":"#N/A"}},null,null,null,null,null,null,null,null,null,null,null,null,null,{"$error":"#DIV/0!"},0,0,null,"","","","","","","","","","",null,null,null,null,null,null,null,null,null,null,null,null,null,null,null,null,null,"ZWO"]
[null,null,null,null,null,null,null,null,null,null,null,null,null,null,null,null,{"$f":"VLOOKUP(P548,'Input MCC'!B:C,2,0)","v":{"$error":"#N/A"}},{"$f":"VLOOKUP(P548,'Input MCC'!B:E,4,0)","v":{"$error":"#N/A"}},null,null,null,null,null,null,null,null,null,null,null,null,null,{"$error":"#DIV/0!"},0,0,null,"","","","","","","","","","",null,null,null,null,null,null,null,null,null,null,null,null,null,null,null,null,null,"ZWO"]
[null,null,null,null,null,null,null,null,null,null,null,null,null,null,null,null,{"$f":"VLOOKUP(P549,'Input MCC'!B:C,2,0)","v":{"$error":"#N/A"}},{"$f":"VLOOKUP(P549,'Input MCC'!B:E,4,0)","v":{"$error":"#N/A"}},null,null,null,null,null,null,null,null,null,null,null,null,null,{"$error":"#DIV/0!"},0,0,null,"","","","","","","","","","",null,null,null,null,null,null,null,null,null,null,null,null,null,null,null,null,null,"ZWO"]
[null,null,null,null,null,null,null,null,null,null,null,null,null,null,null,null,{"$f":"VLOOKUP(P550,'Input MCC'!B:C,2,0)","v":{"$error":"#N/A"}},{"$f":"VLOOKUP(P550,'Input MCC'!B:E,4,0)","v":{"$error":"#N/A"}},null,null,null,null,null,null,null,null,null,null,null,null,null,{"$error":"#DIV/0!"},0,0,null,"","","","","","","","","","",null,null,null,null,null,null,null,null,null,null,null,null,null,null,null,null,null,"ZWO"]
[null,null,null,null,null,null,null,null,null,null,null,null,null,null,null,null,{"$f":"VLOOKUP(P551,'Input MCC'!B:C,2,0)","v":{"$error":"#N/A"}},{"$f":"VLOOKUP(P551,'Input MCC'!B:E,4,0)","v":{"$error":"#N/A"}},null,null,null,null,null,null,null,null,null,null,null,null,null,{"$error":"#DIV/0!"},0,0,null,"","","","","","","","","","",null,null,null,null,null,null,null,null,null,null,null,null,null,null,null,null,null,"ZWO"]
[null,null,null,null,null,null,null,null,null,null,null,null,null,null,null,null,{"$f":"VLOOKUP(P552,'Input MCC'!B:C,2,0)","v":{"$error":"#N/A"}},{"$f":"VLOOKUP(P552,'Input MCC'!B:E,4,0)","v":{"$error":"#N/A"}},null,null,null,null,{"$f":"SUM(V552:V557)","v":0},null,null,null,null,null,null,null,null,{"$error":"#DIV/0!"},0,0,null,"","","","","","","","","","",null,null,null,null,null,null,null,null,null,null,null,null,null,null,null,null,null,"ZWO"]
[null,null,null,null,null,null,null,null,null,null,null,null,null,null,null,null,{"$f":"VLOOKUP(P553,'Input MCC'!B:C,2,0)","v":{"$error":"#N/A"}},{"$f":"VLOOKUP(P553,'Input MCC'!B:E,4,0)","v":{"$error":"#N/A"}},null,null,null,null,null,null,null,null,null,null,null,null,null,{"$error":"#DIV/0!"},0,0,null,"","","","","","","","","","",null,null,null,null,null,null,null,null,null,null,null,null,null,null,null,null,null,"ZWO"]
[null,null,null,null,null,null,null,null,null,null,null,null,null,null,null,null,{"$f":"VLOOKUP(P554,'Input MCC'!B:C,2,0)","v":{"$error":"#N/A"}},{"$f":"VLOOKUP(P554,'Input MCC'!B:E,4,0)","v":{"$error":"#N/A"}},null,null,null,null,null,null,null,null,null,null,null,null,null,{"$error":"#DIV/0!"},0,0,null,"","","","","","","","","","",null,null,null,null,null,null,null,null,null,null,null,null,null,null,null,null,null,"ZWO"]
[null,null,null,null,null,null,null,null,null,null,null,null,null,null,null,null,{"$f":"VLOOKUP(P555,'Input MCC'!B:C,2,0)","v":{"$error":"#N/A"}},{"$f":"VLOOKUP(P555,'Input MCC'!B:E,4,0)","v":{"$error":"#N/A"}},null,null,null,null,null,null,null,null,null,null,null,null,null,{"$error":"#DIV/0!"},0,0,null,"","","","","","","","","","",null,null,null,null,null,null,null,null,null,null,null,null,null,null,null,null,null,"ZWO"]
[null,null,null,null,null,null,null,null,null,null,null,null,null,null,null,null,{"$f":"VLOOKUP(P556,'Input MCC'!B:C,2,0)","v":{"$error":"#N/A"}},{"$f":"VLOOKUP(P556,'Input MCC'!B:E,4,0)","v":{"$error":"#N/A"}},null,null,null,null,null,null,null,null,null,null,null,null,null,{"$error":"#DIV/0!"},0,0,null,"","","","","","","","","","",null,null,null,null,null,null,null,null,null,null,null,null,null,null,null,null,null,"ZWO"]
[null,null,null,null,null,null,null,null,null,null,null,null,null,null,null,null,{"$f":"VLOOKUP(P557,'Input MCC'!B:C,2,0)","v":{"$error":"#N/A"}},{"$f":"VLOOKUP(P557,'Input MCC'!B:E,4,0)","v":{"$error":"#N/A"}},null,null,null,null,null,null,null,null,null,null,null,null,null,{"$error":"#DIV/0!"},0,0,null,"","","","","","","","","","",null,null,null,null,null,null,null,null,null,null,null,null,null,null,null,null,null,"ZWO"]
[null,null,null,null,null,null,null,null,null,null,null,null,null,null,null,null,{"$f":"VLOOKUP(P558,'Input MCC'!B:C,2,0)","v":{"$error":"#N/A"}},{"$f":"VLOOKUP(P558,'Input MCC'!B:E,4,0)","v":{"$error":"#N/A"}},null,null,null,null,{"$f":"SUM(V558:V563)","v":0},null,null,null,null,null,null,null,null,{"$error":"#DIV/0!"},0,0,null,"","","","","","","","","","",null,null,null,null,null,null,null,null,null,null,null,null,null,null,null,null,null,"ZWO"]
[null,null,null,null,null,null,null,null,null,null,null,null,null,null,null,null,{"$f":"VLOOKUP(P559,'Input MCC'!B:C,2,0)","v":{"$error":"#N/A"}},{"$f":"VLOOKUP(P559,'Input MCC'!B:E,4,0)","v":{"$error":"#N/A"}},null,null,null,null,null,null,null,null,null,null,null,null,null,{"$error":"#DIV/0!"},0,0,null,"","","","","","","","","","",null,null,null,null,null,null,null,null,null,null,null,null,null,null,null,null,null,"ZWO"]
[null,null,null,null,null,null,null,null,null,null,null,null,null,null,null,null,{"$f":"VLOOKUP(P560,'Input MCC'!B:C,2,0)","v":{"$error":"#N/A"}},{"$f":"VLOOKUP(P560,'Input MCC'!B:E,4,0)","v":{"$error":"#N/A"}},null,null,null,null,null,null,null,null,null,null,null,null,null,{"$error":"#DIV/0!"},0,0,null,"","","","","","","","","","",null,null,null,null,null,null,null,null,null,null,null,null,null,null,null,null,null,"ZWO"]
[null,null,null,null,null,null,null,null,null,null,null,null,null,null,null,null,{"$f":"VLOOKUP(P561,'Input MCC'!B:C,2,0)","v":{"$error":"#N/A"}},{"$f":"VLOOKUP(P561,'Input MCC'!B:E,4,0)","v":{"$error":"#N/A"}},null,null,null,null,null,null,null,null,null,null,null,null,null,{"$error":"#DIV/0!"},0,0,null,"","","","","","","","","","",null,null,null,null,null,null,null,null,null,null,null,null,null,null,null,null,null,"ZWO"]
[null,null,null,null,null,null,null,null,null,null,null,null,null,null,null,null,{"$f":"VLOOKUP(P562,'Input MCC'!B:C,2,0)","v":{"$error":"#N/A"}},{"$f":"VLOOKUP(P562,'Input MCC'!B:E,4,0)","v":{"$error":"#N/A"}},null,null,null,null,null,null,null,null,null,null,null,null,null,{"$error":"#DIV/0!"},0,0,null,"","","","","","","","","","",null,null,null,null,null,null,null,null,null,null,null,null,null,null,null,null,null,"ZWO"]
[null,null,null,null,null,null,null,null,null,null,null,null,null,null,null,null,{"$f":"VLOOKUP(P563,'Input MCC'!B:C,2,0)","v":{"$error":"#N/A"}},{"$f":"VLOOKUP(P563,'Input MCC'!B:E,4,0)","v":{"$error":"#N/A"}},null,null,null,null,null,null,null,null,null,null,null,null,null,{"$error":"#DIV/0!"},0,0,null,"","","","","","","","","","",null,null,null,null,null,null,null,null,null,null,null,null,null,null,null,null,null,"ZWO"]
[null,null,null,null,null,null,null,null,null,null,null,null,null,null,null,null,{"$f":"VLOOKUP(P564,'Input MCC'!B:C,2,0)","v":{"$error":"#N/A"}},{"$f":"VLOOKUP(P564,'Input MCC'!B:E,4,0)","v":{"$error":"#N/A"}},null,null,null,null,{"$f":"SUM(V564:V569)","v":0},null,null,null,null,null,null,null,null,{"$error":"#DIV/0!"},0,0,null,"","","","","","","","","","",null,null,null,null,null,null,null,null,null,null,null,null,null,null,null,null,null,"ZWO"]
[null,null,null,null,null,null,null,null,null,null,null,null,null,null,null,null,{"$f":"VLOOKUP(P565,'Input MCC'!B:C,2,0)","v":{"$error":"#N/A"}},{"$f":"VLOOKUP(P565,'Input MCC'!B:E,4,0)","v":{"$error":"#N/A"}},null,null,null,null,null,null,null,null,null,null,null,null,null,{"$error":"#DIV/0!"},0,0,null,"","","","","","","","","","",null,null,null,null,null,null,null,null,null,null,null,null,null,null,null,null,null,"ZWO"]
[null,null,null,null,null,null,null,null,null,null,null,null,null,null,null,null,{"$f":"VLOOKUP(P566,'Input MCC'!B:C,2,0)","v":{"$error":"#N/A"}},{"$f":"VLOOKUP(P566,'Input MCC'!B:E,4,0)","v":{"$error":"#N/A"}},null,null,null,null,null,null,null,null,null,null,null,null,null,{"$error":"#DIV/0!"},0,0,null,"","","","","","","","","","",null,null,null,null,null,null,null,null,null,null,null,null,null,null,null,null,null,"ZWO"]
[null,null,null,null,null,null,null,null,null,null,null,null,null,null,null,null,{"$f":"VLOOKUP(P567,'Input MCC'!B:C,2,0)","v":{"$error":"#N/A"}},{"$f":"VLOOKUP(P567,'Input MCC'!B:E,4,0)","v":{"$error":"#N/A"}},null,null,null,null,null,null,null,null,null,null,null,null,null,{"$error":"#DIV/0!"},0,0,null,"","","","","","","","","","",null,null,null,null,null,null,null,null,null,null,null,null,null,null,null,null,null,"ZWO"]
[null,null,null,null,null,null,null,null,null,null,null,null,null,null,null,null,{"$f":"VLOOKUP(P568,'Input MCC'!B:C,2,0)","v":{"$error":"#N/A"}},{"$f":"VLOOKUP(P568,'Input MCC'!B:E,4,0)","v":{"$error":"#N/A"}},null,null,null,null,null,null,null,null,null,null,null,null,null,{"$f":"AE568/AC568","v":{"$error":"#DIV/0!"}},{"$f":"V568*AC568","v":0},{"$f":"V568*AE568","v":0},null,{"$f":"IF(AI568 <> \"\",\n    IF(ISNUMBER(VALUE(LEFT(AI568, FIND(\"%\", AI568)-1))),\n        VALUE(LEFT(AI568, FIND(\"%\", AI568)-1)),\n        \"Invalid format\"),\n    \"\")","v":""},{"$f":"IF(AI568 <> \"\",\n    IF(ISNUMBER(VALUE(LEFT(AI568, FIND(\"%\", AI568)-1))) * ISNUMBER(FIND(\"%\", AI568 & \"wol\")) > 0,\n        TRIM(MID(AI568, FIND(\"%\", AI568)+1, FIND(\"/\", AI568 & \"/\")-FIND(\"%\", AI568)-1)),\n        \"Invalid format\"),\n    \"\")","v":""},{"$f":"IF(AI568 <> \"\",\n    IF(ISNUMBER(VALUE(MID(AI568, FIND(\"/\", AI568) + 1, FIND(\"%\", AI568, FIND(\"/\", AI568)) - FIND(\"/\", AI568) - 1))),\n        VALUE(MID(AI568, FIND(\"/\", AI568) + 1, FIND(\"%\", AI568, FIND(\"/\", AI568)) - FIND(\"/\", AI568) - 1)),\n        \"\"),\n    \"\")","v":""},{"$f":"IF(AI568 <> \"\",\n    IFERROR(TRIM(MID(AI568, FIND(\"%\", AI568, FIND(\"/\", AI568)+1)+2,\n        IFERROR(FIND(\"/\", AI568 & \"/\", FIND(\"/\", AI568)+1)-FIND(\"%\", AI568, FIND(\"/\", AI568)+1)-2, LEN(AI568)-FIND(\"%\", AI568, FIND(\"/\", AI568)+1)-1))),\n        \"\"),\n    \"\")","v":""},{"$f":"IF(AI568 <> \"\",\n    IF(ISNUMBER(VALUE(MID(AI568, FIND(\"/\", AI568, FIND(\"/\", AI568)+1) + 1, FIND(\"%\", AI568, FIND(\"/\", AI568, FIND(\"/\", AI568)+1)) - FIND(\"/\", AI568, FIND(\"/\", AI568)+1) - 1))),\n        VALUE(MID(AI568, FIND(\"/\", AI568, FIND(\"/\", AI568)+1) + 1, FIND(\"%\", AI568, FIND(\"/\", AI568, FIND(\"/\", AI568)+1)) - FIND(\"/\", AI568, FIND(\"/\", AI568)+1) - 1)),\n        \"\"),\n    \"\")","v":""},{"$f":"IF(AI568 <> \"\",\n    IFERROR(\n        TRIM(MID(AI568,\n            FIND(\"%\", AI568, FIND(\"%\", AI568, FIND(\"%\", AI568)+1)+1)+1,\n            FIND(\"/\", AI568 & \"/\", FIND(\"%\", AI568, FIND(\"%\", AI568, FIND(\"%\", AI568)+1)+1))-FIND(\"%\", AI568, FIND(\"%\", AI568, FIND(\"%\", AI568)+1)+1)-1)\n        ),\n        \"\"\n    ),\n    \"\"\n)","v":""},{"$f":"IF(AI568 <> \"\",\n    IF(ISNUMBER(VALUE(MID(AI568, FIND(\"/\", AI568, FIND(\"/\", AI568, FIND(\"/\", AI568)+1)+1) + 1, FIND(\"%\", AI568, FIND(\"/\", AI568, FIND(\"/\", AI568, FIND(\"/\", AI568)+1)+1)) - FIND(\"/\", AI568, FIND(\"/\", AI568, FIND(\"/\", AI568)+1)+1) - 1))),\n        VALUE(MID(AI568, FIND(\"/\", AI568, FIND(\"/\", AI568, FIND(\"/\", AI568)+1)+1) + 1, FIND(\"%\", AI568, FIND(\"/\", AI568, FIND(\"/\", AI568, FIND(\"/\", AI568)+1)+1)) - FIND(\"/\", AI568, FIND(\"/\", AI568, FIND(\"/\", AI568)+1)+1) - 1)),\n        \"\"),\n    \"\")","v":""},{"$f":"IF(AI568 <> \"\",\n    IFERROR(TRIM(MID(AI568, FIND(\"%\", AI568, FIND(\"/\", AI568, FIND(\"/\", AI568, FIND(\"/\", AI568)+1)+1)+1)+2,\n        IFERROR(FIND(\"/\", AI568, FIND(\"/\", AI568, FIND(\"/\", AI568, FIND(\"/\", AI568)+1)+1)+1)-FIND(\"%\", AI568, FIND(\"/\", AI568, FIND(\"/\", AI568, FIND(\"/\", AI568)+1)+1)+1)-2, LEN(AI568)-FIND(\"%\", AI568, FIND(\"/\", AI568, FIND(\"/\", AI568, FIND(\"/\", AI568)+1)+1)+1)-1))),\n        \"\"),\n    \"\")","v":""},{"$f":"IF(AI568 <> \"\",\n    IF(ISNUMBER(VALUE(MID(AI568, FIND(\"/\", AI568, FIND(\"/\", AI568, FIND(\"/\", AI568, FIND(\"/\", AI568)+1)+1)+1) + 1, FIND(\"%\", AI568, FIND(\"/\", AI568, FIND(\"/\", AI568, FIND(\"/\", AI568, FIND(\"/\", AI568)+1)+1)+1)) - FIND(\"/\", AI568, FIND(\"/\", AI568, FIND(\"/\", AI568, FIND(\"/\", AI568)+1)+1)+1) - 1))),\n        VALUE(MID(AI568, FIND(\"/\", AI568, FIND(\"/\", AI568, FIND(\"/\", AI568, FIND(\"/\", AI568)+1)+1)+1) + 1, FIND(\"%\", AI568, FIND(\"/\", AI568, FIND(\"/\", AI568, FIND(\"/\", AI568, FIND(\"/\", AI568)+1)+1)+1)) - FIND(\"/\", AI568, FIND(\"/\", AI568, FIND(\"/\", AI568, FIND(\"/\", AI568)+1)+1)+1) - 1)),\n        \"\"),\n    \"\")","v":""},{"$f":"IF(AI568 = \"\", \"\",\n    IFERROR(TRIM(\n        MID(\n            AI568,\n            FIND(\"%\", AI568, FIND(\"/\", AI568, FIND(\"/\", AI568, FIND(\"/\", AI568, FIND(\"/\", AI568)+1)+1)+1)+1) + 1,\n            FIND(\"/\", AI568 & \"/\", FIND(\"%\", AI568, FIND(\"/\", AI568, FIND(\"/\", AI568, FIND(\"/\", AI568, FIND(\"/\", AI568)+1)+1)+1)+1)) -\n            FIND(\"%\", AI568, FIND(\"/\", AI568, FIND(\"/\", AI568, FIND(\"/\", AI568, FIND(\"/\", AI568)+1)+1)+1)+1) - 1\n        )\n    ),\n    \"\")\n)","v":""},null,null,null,null,null,null,null,null,null,null,null,null,null,null,null,null,null,"ZWO"]
[null,null,null,null,null,null,null,null,null,null,null,null,null,null,null,null,{"$f":"VLOOKUP(P569,'Input MCC'!B:C,2,0)","v":{"$error":"#N/A"}},{"$f":"VLOOKUP(P569,'Input MCC'!B:E,4,0)","v":{"$error":"#N/A"}},null,null,null,null,null,null,null,null,null,null,null,null,null,{"$error":"#DIV/0!"},0,0,null,"","","","","","","","","","",null,null,null,null,null,null,null,null,null,null,null,null,null,null,null,null,null,"ZWO"]
[null,null,null,null,null,null,null,null,null,null,null,null,null,null,null,null,{"$f":"VLOOKUP(P570,'Input MCC'!B:C,2,0)","v":{"$error":"#N/A"}},{"$f":"VLOOKUP(P570,'Input MCC'!B:E,4,0)","v":{"$error":"#N/A"}},null,null,null,null,{"$f":"SUM(V570:V575)","v":0},null,null,null,null,null,null,null,null,{"$error":"#DIV/0!"},0,0,null,"","","","","","","","","","",null,null,null,null,null,null,null,null,null,null,null,null,null,null,null,null,null,"ZWO"]
[null,null,null,null,null,null,null,null,null,null,null,null,null,null,null,null,{"$f":"VLOOKUP(P571,'Input MCC'!B:C,2,0)","v":{"$error":"#N/A"}},{"$f":"VLOOKUP(P571,'Input MCC'!B:E,4,0)","v":{"$error":"#N/A"}},null,null,null,null,null,null,null,null,null,null,null,null,null,{"$error":"#DIV/0!"},0,0,null,"","","","","","","","","","",null,null,null,null,null,null,null,null,null,null,null,null,null,null,null,null,null,"ZWO"]
[null,null,null,null,null,null,null,null,null,null,null,null,null,null,null,null,{"$f":"VLOOKUP(P572,'Input MCC'!B:C,2,0)","v":{"$error":"#N/A"}},{"$f":"VLOOKUP(P572,'Input MCC'!B:E,4,0)","v":{"$error":"#N/A"}},null,null,null,null,null,null,null,null,null,null,null,null,null,{"$error":"#DIV/0!"},0,0,null,"","","","","","","","","","",null,null,null,null,null,null,null,null,null,null,null,null,null,null,null,null,null,"ZWO"]
[null,null,null,null,null,null,null,null,null,null,null,null,null,null,null,null,{"$f":"VLOOKUP(P573,'Input MCC'!B:C,2,0)","v":{"$error":"#N/A"}},{"$f":"VLOOKUP(P573,'Input MCC'!B:E,4,0)","v":{"$error":"#N/A"}},null,null,null,null,null,null,null,null,null,null,null,null,null,{"$error":"#DIV/0!"},0,0,null,"","","","","","","","","","",null,null,null,null,null,null,null,null,null,null,null,null,null,null,null,null,null,"ZWO"]
[null,null,null,null,null,null,null,null,null,null,null,null,null,null,null,null,{"$f":"VLOOKUP(P574,'Input MCC'!B:C,2,0)","v":{"$error":"#N/A"}},{"$f":"VLOOKUP(P574,'Input MCC'!B:E,4,0)","v":{"$error":"#N/A"}},null,null,null,null,null,null,null,null,null,null,null,null,null,{"$error":"#DIV/0!"},0,0,null,"","","","","","","","","","",null,null,null,null,null,null,null,null,null,null,null,null,null,null,null,null,null,"ZWO"]
[null,null,null,null,null,null,null,null,null,null,null,null,null,null,null,null,{"$f":"VLOOKUP(P575,'Input MCC'!B:C,2,0)","v":{"$error":"#N/A"}},{"$f":"VLOOKUP(P575,'Input MCC'!B:E,4,0)","v":{"$error":"#N/A"}},null,null,null,null,null,null,null,null,null,null,null,null,null,{"$error":"#DIV/0!"},0,0,null,"","","","","","","","","","",null,null,null,null,null,null,null,null,null,null,null,null,null,null,null,null,null,"ZWO"]
[null,null,null,null,null,null,null,null,null,null,null,null,null,null,null,null,{"$f":"VLOOKUP(P576,'Input MCC'!B:C,2,0)","v":{"$error":"#N/A"}},{"$f":"VLOOKUP(P576,'Input MCC'!B:E,4,0)","v":{"$error":"#N/A"}},null,null,null,null,{"$f":"SUM(V576:V581)","v":0},null,null,null,null,null,null,null,null,{"$error":"#DIV/0!"},0,0,null,"","","","","","","","","","",null,null,null,null,null,null,null,null,null,null,null,null,null,null,null,null,null,"ZWO"]
[null,null,null,null,null,null,null,null,null,null,null,null,null,null,null,null,{"$f":"VLOOKUP(P577,'Input MCC'!B:C,2,0)","v":{"$error":"#N/A"}},{"$f":"VLOOKUP(P577,'Input MCC'!B:E,4,0)","v":{"$error":"#N/A"}},null,null,null,null,null,null,null,null,null,null,null,null,null,{"$error":"#DIV/0!"},0,0,null,"","","","","","","","","","",null,null,null,null,null,null,null,null,null,null,null,null,null,null,null,null,null,"ZWO"]
[null,null,null,null,null,null,null,null,null,null,null,null,null,null,null,null,{"$f":"VLOOKUP(P578,'Input MCC'!B:C,2,0)","v":{"$error":"#N/A"}},{"$f":"VLOOKUP(P578,'Input MCC'!B:E,4,0)","v":{"$error":"#N/A"}},null,null,null,null,null,null,null,null,null,null,null,null,null,{"$error":"#DIV/0!"},0,0,null,"","","","","","","","","","",null,null,null,null,null,null,null,null,null,null,null,null,null,null,null,null,null,"ZWO"]
[null,null,null,null,null,null,null,null,null,null,null,null,null,null,null,null,{"$f":"VLOOKUP(P579,'Input MCC'!B:C,2,0)","v":{"$error":"#N/A"}},{"$f":"VLOOKUP(P579,'Input MCC'!B:E,4,0)","v":{"$error":"#N/A"}},null,null,null,null,null,null,null,null,null,null,null,null,null,{"$error":"#DIV/0!"},0,0,null,"","","","","","","","","","",null,null,null,null,null,null,null,null,null,null,null,null,null,null,null,null,null,"ZWO"]
[null,null,null,null,null,null,null,null,null,null,null,null,null,null,null,null,{"$f":"VLOOKUP(P580,'Input MCC'!B:C,2,0)","v":{"$error":"#N/A"}},{"$f":"VLOOKUP(P580,'Input MCC'!B:E,4,0)","v":{"$error":"#N/A"}},null,null,null,null,null,null,null,null,null,null,null,null,null,{"$error":"#DIV/0!"},0,0,null,"","","","","","","","","","",null,null,null,null,null,null,null,null,null,null,null,null,null,null,null,null,null,"ZWO"]
[null,null,null,null,null,null,null,null,null,null,null,null,null,null,null,null,{"$f":"VLOOKUP(P581,'Input MCC'!B:C,2,0)","v":{"$error":"#N/A"}},{"$f":"VLOOKUP(P581,'Input MCC'!B:E,4,0)","v":{"$error":"#N/A"}},null,null,null,null,null,null,null,null,null,null,null,null,null,{"$error":"#DIV/0!"},0,0,null,"","","","","","","","","","",null,null,null,null,null,null,null,null,null,null,null,null,null,null,null,null,null,"ZWO"]
[null,null,null,null,null,null,null,null,null,null,null,null,null,null,null,null,{"$f":"VLOOKUP(P582,'Input MCC'!B:C,2,0)","v":{"$error":"#N/A"}},{"$f":"VLOOKUP(P582,'Input MCC'!B:E,4,0)","v":{"$error":"#N/A"}},null,null,null,null,{"$f":"SUM(V582:V587)","v":0},null,null,null,null,null,null,null,null,{"$error":"#DIV/0!"},0,0,null,"","","","","","","","","","",null,null,null,null,null,null,null,null,null,null,null,null,null,null,null,null,null,"ZWO"]
[null,null,null,null,null,null,null,null,null,null,null,null,null,null,null,null,{"$f":"VLOOKUP(P583,'Input MCC'!B:C,2,0)","v":{"$error":"#N/A"}},{"$f":"VLOOKUP(P583,'Input MCC'!B:E,4,0)","v":{"$error":"#N/A"}},null,null,null,null,null,null,null,null,null,null,null,null,null,{"$error":"#DIV/0!"},0,0,null,"","","","","","","","","","",null,null,null,null,null,null,null,null,null,null,null,null,null,null,null,null,null,"ZWO"]
[null,null,null,null,null,null,null,null,null,null,null,null,null,null,null,null,{"$f":"VLOOKUP(P584,'Input MCC'!B:C,2,0)","v":{"$error":"#N/A"}},{"$f":"VLOOKUP(P584,'Input MCC'!B:E,4,0)","v":{"$error":"#N/A"}},null,null,null,null,null,null,null,null,null,null,null,null,null,{"$error":"#DIV/0!"},0,0,null,"","","","","","","","","","",null,null,null,null,null,null,null,null,null,null,null,null,null,null,null,null,null,"ZWO"]
[null,null,null,null,null,null,null,null,null,null,null,null,null,null,null,null,{"$f":"VLOOKUP(P585,'Input MCC'!B:C,2,0)","v":{"$error":"#N/A"}},{"$f":"VLOOKUP(P585,'Input MCC'!B:E,4,0)","v":{"$error":"#N/A"}},null,null,null,null,null,null,null,null,null,null,null,null,null,{"$error":"#DIV/0!"},0,0,null,"","","","","","","","","","",null,null,null,null,null,null,null,null,null,null,null,null,null,null,null,null,null,"ZWO"]
[null,null,null,null,null,null,null,null,null,null,null,null,null,null,null,null,{"$f":"VLOOKUP(P586,'Input MCC'!B:C,2,0)","v":{"$error":"#N/A"}},{"$f":"VLOOKUP(P586,'Input MCC'!B:E,4,0)","v":{"$error":"#N/A"}},null,null,null,null,null,null,null,null,null,null,null,null,null,{"$error":"#DIV/0!"},0,0,null,"","","","","","","","","","",null,null,null,null,null,null,null,null,null,null,null,null,null,null,null,null,null,"ZWO"]
[null,null,null,null,null,null,null,null,null,null,null,null,null,null,null,null,{"$f":"VLOOKUP(P587,'Input MCC'!B:C,2,0)","v":{"$error":"#N/A"}},{"$f":"VLOOKUP(P587,'Input MCC'!B:E,4,0)","v":{"$error":"#N/A"}},null,null,null,null,null,null,null,null,null,null,null,null,null,{"$error":"#DIV/0!"},0,0,null,"","","","","","","","","","",null,null,null,null,null,null,null,null,null,null,null,null,null,null,null,null,null,"ZWO"]
[null,null,null,null,null,null,null,null,null,null,null,null,null,null,null,null,{"$f":"VLOOKUP(P588,'Input MCC'!B:C,2,0)","v":{"$error":"#N/A"}},{"$f":"VLOOKUP(P588,'Input MCC'!B:E,4,0)","v":{"$error":"#N/A"}},null,null,null,null,{"$f":"SUM(V588:V593)","v":0},null,null,null,null,null,null,null,null,{"$error":"#DIV/0!"},0,0,null,"","","","","","","","","","",null,null,null,null,null,null,null,null,null,null,null,null,null,null,null,null,null,"ZWO"]
[null,null,null,null,null,null,null,null,null,null,null,null,null,null,null,null,{"$f":"VLOOKUP(P589,'Input MCC'!B:C,2,0)","v":{"$error":"#N/A"}},{"$f":"VLOOKUP(P589,'Input MCC'!B:E,4,0)","v":{"$error":"#N/A"}},null,null,null,null,null,null,null,null,null,null,null,null,null,{"$error":"#DIV/0!"},0,0,null,"","","","","","","","","","",null,null,null,null,null,null,null,null,null,null,null,null,null,null,null,null,null,"ZWO"]
[null,null,null,null,null,null,null,null,null,null,null,null,null,null,null,null,{"$f":"VLOOKUP(P590,'Input MCC'!B:C,2,0)","v":{"$error":"#N/A"}},{"$f":"VLOOKUP(P590,'Input MCC'!B:E,4,0)","v":{"$error":"#N/A"}},null,null,null,null,null,null,null,null,null,null,null,null,null,{"$error":"#DIV/0!"},0,0,null,"","","","","","","","","","",null,null,null,null,null,null,null,null,null,null,null,null,null,null,null,null,null,"ZWO"]
[null,null,null,null,null,null,null,null,null,null,null,null,null,null,null,null,{"$f":"VLOOKUP(P591,'Input MCC'!B:C,2,0)","v":{"$error":"#N/A"}},{"$f":"VLOOKUP(P591,'Input MCC'!B:E,4,0)","v":{"$error":"#N/A"}},null,null,null,null,null,null,null,null,null,null,null,null,null,{"$error":"#DIV/0!"},0,0,null,"","","","","","","","","","",null,null,null,null,null,null,null,null,null,null,null,null,null,null,null,null,null,"ZWO"]
[null,null,null,null,null,null,null,null,null,null,null,null,null,null,null,null,{"$f":"VLOOKUP(P592,'Input MCC'!B:C,2,0)","v":{"$error":"#N/A"}},{"$f":"VLOOKUP(P592,'Input MCC'!B:E,4,0)","v":{"$error":"#N/A"}},null,null,null,null,null,null,null,null,null,null,null,null,null,{"$error":"#DIV/0!"},0,0,null,"","","","","","","","","","",null,null,null,null,null,null,null,null,null,null,null,null,null,null,null,null,null,"ZWO"]
[null,null,null,null,null,null,null,null,null,null,null,null,null,null,null,null,{"$f":"VLOOKUP(P593,'Input MCC'!B:C,2,0)","v":{"$error":"#N/A"}},{"$f":"VLOOKUP(P593,'Input MCC'!B:E,4,0)","v":{"$error":"#N/A"}},null,null,null,null,null,null,null,null,null,null,null,null,null,{"$error":"#DIV/0!"},0,0,null,"","","","","","","","","","",null,null,null,null,null,null,null,null,null,null,null,null,null,null,null,null,null,"ZWO"]
[null,null,null,null,null,null,null,null,null,null,null,null,null,null,null,null,{"$f":"VLOOKUP(P594,'Input MCC'!B:C,2,0)","v":{"$error":"#N/A"}},{"$f":"VLOOKUP(P594,'Input MCC'!B:E,4,0)","v":{"$error":"#N/A"}},null,null,null,null,{"$f":"SUM(V594:V599)","v":0},null,null,null,null,null,null,null,null,{"$error":"#DIV/0!"},0,0,null,"","","","","","","","","","",null,null,null,null,null,null,null,null,null,null,null,null,null,null,null,null,null,"ZWO"]
[null,null,null,null,null,null,null,null,null,null,null,null,null,null,null,null,{"$f":"VLOOKUP(P595,'Input MCC'!B:C,2,0)","v":{"$error":"#N/A"}},{"$f":"VLOOKUP(P595,'Input MCC'!B:E,4,0)","v":{"$error":"#N/A"}},null,null,null,null,null,null,null,null,null,null,null,null,null,{"$error":"#DIV/0!"},0,0,null,"","","","","","","","","","",null,null,null,null,null,null,null,null,null,null,null,null,null,null,null,null,null,"ZWO"]
[null,null,null,null,null,null,null,null,null,null,null,null,null,null,null,null,{"$f":"VLOOKUP(P596,'Input MCC'!B:C,2,0)","v":{"$error":"#N/A"}},{"$f":"VLOOKUP(P596,'Input MCC'!B:E,4,0)","v":{"$error":"#N/A"}},null,null,null,null,null,null,null,null,null,null,null,null,null,{"$error":"#DIV/0!"},0,0,null,"","","","","","","","","","",null,null,null,null,null,null,null,null,null,null,null,null,null,null,null,null,null,"ZWO"]
[null,null,null,null,null,null,null,null,null,null,null,null,null,null,null,null,{"$f":"VLOOKUP(P597,'Input MCC'!B:C,2,0)","v":{"$error":"#N/A"}},{"$f":"VLOOKUP(P597,'Input MCC'!B:E,4,0)","v":{"$error":"#N/A"}},null,null,null,null,null,null,null,null,null,null,null,null,null,{"$error":"#DIV/0!"},0,0,null,"","","","","","","","","","",null,null,null,null,null,null,null,null,null,null,null,null,null,null,null,null,null,"ZWO"]
[null,null,null,null,null,null,null,null,null,null,null,null,null,null,null,null,{"$f":"VLOOKUP(P598,'Input MCC'!B:C,2,0)","v":{"$error":"#N/A"}},{"$f":"VLOOKUP(P598,'Input MCC'!B:E,4,0)","v":{"$error":"#N/A"}},null,null,null,null,null,null,null,null,null,null,null,null,null,{"$error":"#DIV/0!"},0,0,null,"","","","","","","","","","",null,null,null,null,null,null,null,null,null,null,null,null,null,null,null,null,null,"ZWO"]
[null,null,null,null,null,null,null,null,null,null,null,null,null,null,null,null,{"$f":"VLOOKUP(P599,'Input MCC'!B:C,2,0)","v":{"$error":"#N/A"}},{"$f":"VLOOKUP(P599,'Input MCC'!B:E,4,0)","v":{"$error":"#N/A"}},null,null,null,null,null,null,null,null,null,null,null,null,null,{"$error":"#DIV/0!"},0,0,null,"","","","","","","","","","",null,null,null,null,null,null,null,null,null,null,null,null,null,null,null,null,null,"ZWO"]
[null,null,null,null,null,null,null,null,null,null,null,null,null,null,null,null,{"$f":"VLOOKUP(P600,'Input MCC'!B:C,2,0)","v":{"$error":"#N/A"}},{"$f":"VLOOKUP(P600,'Input MCC'!B:E,4,0)","v":{"$error":"#N/A"}},null,null,null,null,{"$f":"SUM(V600:V605)","v":0},null,null,null,null,null,null,null,null,{"$error":"#DIV/0!"},0,0,null,"","","","","","","","","","",null,null,null,null,null,null,null,null,null,null,null,null,null,null,null,null,null,"ZWO"]
[null,null,null,null,null,null,null,null,null,null,null,null,null,null,null,null,{"$f":"VLOOKUP(P601,'Input MCC'!B:C,2,0)","v":{"$error":"#N/A"}},{"$f":"VLOOKUP(P601,'Input MCC'!B:E,4,0)","v":{"$error":"#N/A"}},null,null,null,null,null,null,null,null,null,null,null,null,null,{"$error":"#DIV/0!"},0,0,null,"","","","","","","","","","",null,null,null,null,null,null,null,null,null,null,null,null,null,null,null,null,null,"ZWO"]
[null,null,null,null,null,null,null,null,null,null,null,null,null,null,null,null,{"$f":"VLOOKUP(P602,'Input MCC'!B:C,2,0)","v":{"$error":"#N/A"}},{"$f":"VLOOKUP(P602,'Input MCC'!B:E,4,0)","v":{"$error":"#N/A"}},null,null,null,null,null,null,null,null,null,null,null,null,null,{"$error":"#DIV/0!"},0,0,null,"","","","","","","","","","",null,null,null,null,null,null,null,null,null,null,null,null,null,null,null,null,null,"ZWO"]
[null,null,null,null,null,null,null,null,null,null,null,null,null,null,null,null,{"$f":"VLOOKUP(P603,'Input MCC'!B:C,2,0)","v":{"$error":"#N/A"}},{"$f":"VLOOKUP(P603,'Input MCC'!B:E,4,0)","v":{"$error":"#N/A"}},null,null,null,null,null,null,null,null,null,null,null,null,null,{"$error":"#DIV/0!"},0,0,null,"","","","","","","","","","",null,null,null,null,null,null,null,null,null,null,null,null,null,null,null,null,null,"ZWO"]
[null,null,null,null,null,null,null,null,null,null,null,null,null,null,null,null,{"$f":"VLOOKUP(P604,'Input MCC'!B:C,2,0)","v":{"$error":"#N/A"}},{"$f":"VLOOKUP(P604,'Input MCC'!B:E,4,0)","v":{"$error":"#N/A"}},null,null,null,null,null,null,null,null,null,null,null,null,null,{"$error":"#DIV/0!"},0,0,null,"","","","","","","","","","",null,null,null,null,null,null,null,null,null,null,null,null,null,null,null,null,null,"ZWO"]
[null,null,null,null,null,null,null,null,null,null,null,null,null,null,null,null,{"$f":"VLOOKUP(P605,'Input MCC'!B:C,2,0)","v":{"$error":"#N/A"}},{"$f":"VLOOKUP(P605,'Input MCC'!B:E,4,0)","v":{"$error":"#N/A"}},null,null,null,null,null,null,null,null,null,null,null,null,null,{"$error":"#DIV/0!"},0,0,null,"","","","","","","","","","",null,null,null,null,null,null,null,null,null,null,null,null,null,null,null,null,null,"ZWO"]
[null,null,null,null,null,null,null,null,null,null,null,null,null,null,null,null,{"$f":"VLOOKUP(P606,'Input MCC'!B:C,2,0)","v":{"$error":"#N/A"}},{"$f":"VLOOKUP(P606,'Input MCC'!B:E,4,0)","v":{"$error":"#N/A"}},null,null,null,null,{"$f":"SUM(V606:V611)","v":0},null,null,null,null,null,null,null,null,{"$error":"#DIV/0!"},0,0,null,"","","","","","","","","","",null,null,null,null,null,null,null,null,null,null,null,null,null,null,null,null,null,"ZWO"]
[null,null,null,null,null,null,null,null,null,null,null,null,null,null,null,null,{"$f":"VLOOKUP(P607,'Input MCC'!B:C,2,0)","v":{"$error":"#N/A"}},{"$f":"VLOOKUP(P607,'Input MCC'!B:E,4,0)","v":{"$error":"#N/A"}},null,null,null,null,null,null,null,null,null,null,null,null,null,{"$error":"#DIV/0!"},0,0,null,"","","","","","","","","","",null,null,null,null,null,null,null,null,null,null,null,null,null,null,null,null,null,"ZWO"]
[null,null,null,null,null,null,null,null,null,null,null,null,null,null,null,null,{"$f":"VLOOKUP(P608,'Input MCC'!B:C,2,0)","v":{"$error":"#N/A"}},{"$f":"VLOOKUP(P608,'Input MCC'!B:E,4,0)","v":{"$error":"#N/A"}},null,null,null,null,null,null,null,null,null,null,null,null,null,{"$error":"#DIV/0!"},0,0,null,"","","","","","","","","","",null,null,null,null,null,null,null,null,null,null,null,null,null,null,null,null,null,"ZWO"]
[null,null,null,null,null,null,null,null,null,null,null,null,null,null,null,null,{"$f":"VLOOKUP(P609,'Input MCC'!B:C,2,0)","v":{"$error":"#N/A"}},{"$f":"VLOOKUP(P609,'Input MCC'!B:E,4,0)","v":{"$error":"#N/A"}},null,null,null,null,null,null,null,null,null,null,null,null,null,{"$error":"#DIV/0!"},0,0,null,"","","","","","","","","","",null,null,null,null,null,null,null,null,null,null,null,null,null,null,null,null,null,"ZWO"]
[null,null,null,null,null,null,null,null,null,null,null,null,null,null,null,null,{"$f":"VLOOKUP(P610,'Input MCC'!B:C,2,0)","v":{"$error":"#N/A"}},{"$f":"VLOOKUP(P610,'Input MCC'!B:E,4,0)","v":{"$error":"#N/A"}},null,null,null,null,null,null,null,null,null,null,null,null,null,{"$error":"#DIV/0!"},0,0,null,"","","","","","","","","","",null,null,null,null,null,null,null,null,null,null,null,null,null,null,null,null,null,"ZWO"]
[null,null,null,null,null,null,null,null,null,null,null,null,null,null,null,null,{"$f":"VLOOKUP(P611,'Input MCC'!B:C,2,0)","v":{"$error":"#N/A"}},{"$f":"VLOOKUP(P611,'Input MCC'!B:E,4,0)","v":{"$error":"#N/A"}},null,null,null,null,null,null,null,null,null,null,null,null,null,{"$error":"#DIV/0!"},0,0,null,"","","","","","","","","","",null,null,null,null,null,null,null,null,null,null,null,null,null,null,null,null,null,"ZWO"]
[null,null,null,null,null,null,null,null,null,null,null,null,null,null,null,null,{"$f":"VLOOKUP(P612,'Input MCC'!B:C,2,0)","v":{"$error":"#N/A"}},{"$f":"VLOOKUP(P612,'Input MCC'!B:E,4,0)","v":{"$error":"#N/A"}},null,null,null,null,{"$f":"SUM(V612:V617)","v":0},null,null,null,null,null,null,null,null,{"$error":"#DIV/0!"},0,0,null,"","","","","","","","","","",null,null,null,null,null,null,null,null,null,null,null,null,null,null,null,null,null,"ZWO"]
[null,null,null,null,null,null,null,null,null,null,null,null,null,null,null,null,{"$f":"VLOOKUP(P613,'Input MCC'!B:C,2,0)","v":{"$error":"#N/A"}},{"$f":"VLOOKUP(P613,'Input MCC'!B:E,4,0)","v":{"$error":"#N/A"}},null,null,null,null,null,null,null,null,null,null,null,null,null,{"$error":"#DIV/0!"},0,0,null,"","","","","","","","","","",null,null,null,null,null,null,null,null,null,null,null,null,null,null,null,null,null,"ZWO"]
[null,null,null,null,null,null,null,null,null,null,null,null,null,null,null,null,{"$f":"VLOOKUP(P614,'Input MCC'!B:C,2,0)","v":{"$error":"#N/A"}},{"$f":"VLOOKUP(P614,'Input MCC'!B:E,4,0)","v":{"$error":"#N/A"}},null,null,null,null,null,null,null,null,null,null,null,null,null,{"$error":"#DIV/0!"},0,0,null,"","","","","","","","","","",null,null,null,null,null,null,null,null,null,null,null,null,null,null,null,null,null,"ZWO"]
[null,null,null,null,null,null,null,null,null,null,null,null,null,null,null,null,{"$f":"VLOOKUP(P615,'Input MCC'!B:C,2,0)","v":{"$error":"#N/A"}},{"$f":"VLOOKUP(P615,'Input MCC'!B:E,4,0)","v":{"$error":"#N/A"}},null,null,null,null,null,null,null,null,null,null,null,null,null,{"$error":"#DIV/0!"},0,0,null,"","","","","","","","","","",null,null,null,null,null,null,null,null,null,null,null,null,null,null,null,null,null,"ZWO"]
[null,null,null,null,null,null,null,null,null,null,null,null,null,null,null,null,{"$f":"VLOOKUP(P616,'Input MCC'!B:C,2,0)","v":{"$error":"#N/A"}},{"$f":"VLOOKUP(P616,'Input MCC'!B:E,4,0)","v":{"$error":"#N/A"}},null,null,null,null,null,null,null,null,null,null,null,null,null,{"$error":"#DIV/0!"},0,0,null,"","","","","","","","","","",null,null,null,null,null,null,null,null,null,null,null,null,null,null,null,null,null,"ZWO"]
[null,null,null,null,null,null,null,null,null,null,null,null,null,null,null,null,{"$f":"VLOOKUP(P617,'Input MCC'!B:C,2,0)","v":{"$error":"#N/A"}},{"$f":"VLOOKUP(P617,'Input MCC'!B:E,4,0)","v":{"$error":"#N/A"}},null,null,null,null,null,null,null,null,null,null,null,null,null,{"$error":"#DIV/0!"},0,0,null,"","","","","","","","","","",null,null,null,null,null,null,null,null,null,null,null,null,null,null,null,null,null,"ZWO"]
[null,null,null,null,null,null,null,null,null,null,null,null,null,null,null,null,{"$f":"VLOOKUP(P618,'Input MCC'!B:C,2,0)","v":{"$error":"#N/A"}},{"$f":"VLOOKUP(P618,'Input MCC'!B:E,4,0)","v":{"$error":"#N/A"}},null,null,null,null,{"$f":"SUM(V618:V623)","v":0},null,null,null,null,null,null,null,null,{"$error":"#DIV/0!"},0,0,null,"","","","","","","","","","",null,null,null,null,null,null,null,null,null,null,null,null,null,null,null,null,null,"ZWO"]
[null,null,null,null,null,null,null,null,null,null,null,null,null,null,null,null,{"$f":"VLOOKUP(P619,'Input MCC'!B:C,2,0)","v":{"$error":"#N/A"}},{"$f":"VLOOKUP(P619,'Input MCC'!B:E,4,0)","v":{"$error":"#N/A"}},null,null,null,null,null,null,null,null,null,null,null,null,null,{"$error":"#DIV/0!"},0,0,null,"","","","","","","","","","",null,null,null,null,null,null,null,null,null,null,null,null,null,null,null,null,null,"ZWO"]
[null,null,null,null,null,null,null,null,null,null,null,null,null,null,null,null,{"$f":"VLOOKUP(P620,'Input MCC'!B:C,2,0)","v":{"$error":"#N/A"}},{"$f":"VLOOKUP(P620,'Input MCC'!B:E,4,0)","v":{"$error":"#N/A"}},null,null,null,null,null,null,null,null,null,null,null,null,null,{"$error":"#DIV/0!"},0,0,null,"","","","","","","","","","",null,null,null,null,null,null,null,null,null,null,null,null,null,null,null,null,null,"ZWO"]
[null,null,null,null,null,null,null,null,null,null,null,null,null,null,null,null,{"$f":"VLOOKUP(P621,'Input MCC'!B:C,2,0)","v":{"$error":"#N/A"}},{"$f":"VLOOKUP(P621,'Input MCC'!B:E,4,0)","v":{"$error":"#N/A"}},null,null,null,null,null,null,null,null,null,null,null,null,null,{"$error":"#DIV/0!"},0,0,null,"","","","","","","","","","",null,null,null,null,null,null,null,null,null,null,null,null,null,null,null,null,null,"ZWO"]
[null,null,null,null,null,null,null,null,null,null,null,null,null,null,null,null,{"$f":"VLOOKUP(P622,'Input MCC'!B:C,2,0)","v":{"$error":"#N/A"}},{"$f":"VLOOKUP(P622,'Input MCC'!B:E,4,0)","v":{"$error":"#N/A"}},null,null,null,null,null,null,null,null,null,null,null,null,null,{"$error":"#DIV/0!"},0,0,null,"","","","","","","","","","",null,null,null,null,null,null,null,null,null,null,null,null,null,null,null,null,null,"ZWO"]
[null,null,null,null,null,null,null,null,null,null,null,null,null,null,null,null,{"$f":"VLOOKUP(P623,'Input MCC'!B:C,2,0)","v":{"$error":"#N/A"}},{"$f":"VLOOKUP(P623,'Input MCC'!B:E,4,0)","v":{"$error":"#N/A"}},null,null,null,null,null,null,null,null,null,null,null,null,null,{"$error":"#DIV/0!"},0,0,null,"","","","","","","","","","",null,null,null,null,null,null,null,null,null,null,null,null,null,null,null,null,null,"ZWO"]
[null,null,null,null,null,null,null,null,null,null,null,null,null,null,null,null,{"$f":"VLOOKUP(P624,'Input MCC'!B:C,2,0)","v":{"$error":"#N/A"}},{"$f":"VLOOKUP(P624,'Input MCC'!B:E,4,0)","v":{"$error":"#N/A"}},null,null,null,null,{"$f":"SUM(V624:V629)","v":0},null,null,null,null,null,null,null,null,{"$error":"#DIV/0!"},0,0,null,"","","","","","","","","","",null,null,null,null,null,null,null,null,null,null,null,null,null,null,null,null,null,"ZWO"]
[null,null,null,null,null,null,null,null,null,null,null,null,null,null,null,null,{"$f":"VLOOKUP(P625,'Input MCC'!B:C,2,0)","v":{"$error":"#N/A"}},{"$f":"VLOOKUP(P625,'Input MCC'!B:E,4,0)","v":{"$error":"#N/A"}},null,null,null,null,null,null,null,null,null,null,null,null,null,{"$error":"#DIV/0!"},0,0,null,"","","","","","","","","","",null,null,null,null,null,null,null,null,null,null,null,null,null,null,null,null,null,"ZWO"]
[null,null,null,null,null,null,null,null,null,null,null,null,null,null,null,null,{"$f":"VLOOKUP(P626,'Input MCC'!B:C,2,0)","v":{"$error":"#N/A"}},{"$f":"VLOOKUP(P626,'Input MCC'!B:E,4,0)","v":{"$error":"#N/A"}},null,null,null,null,null,null,null,null,null,null,null,null,null,{"$error":"#DIV/0!"},0,0,null,"","","","","","","","","","",null,null,null,null,null,null,null,null,null,null,null,null,null,null,null,null,null,"ZWO"]
[null,null,null,null,null,null,null,null,null,null,null,null,null,null,null,null,{"$f":"VLOOKUP(P627,'Input MCC'!B:C,2,0)","v":{"$error":"#N/A"}},{"$f":"VLOOKUP(P627,'Input MCC'!B:E,4,0)","v":{"$error":"#N/A"}},null,null,null,null,null,null,null,null,null,null,null,null,null,{"$error":"#DIV/0!"},0,0,null,"","","","","","","","","","",null,null,null,null,null,null,null,null,null,null,null,null,null,null,null,null,null,"ZWO"]
[null,null,null,null,null,null,null,null,null,null,null,null,null,null,null,null,{"$f":"VLOOKUP(P628,'Input MCC'!B:C,2,0)","v":{"$error":"#N/A"}},{"$f":"VLOOKUP(P628,'Input MCC'!B:E,4,0)","v":{"$error":"#N/A"}},null,null,null,null,null,null,null,null,null,null,null,null,null,{"$error":"#DIV/0!"},0,0,null,"","","","","","","","","","",null,null,null,null,null,null,null,null,null,null,null,null,null,null,null,null,null,"ZWO"]
[null,null,null,null,null,null,null,null,null,null,null,null,null,null,null,null,{"$f":"VLOOKUP(P629,'Input MCC'!B:C,2,0)","v":{"$error":"#N/A"}},{"$f":"VLOOKUP(P629,'Input MCC'!B:E,4,0)","v":{"$error":"#N/A"}},null,null,null,null,null,null,null,null,null,null,null,null,null,{"$error":"#DIV/0!"},0,0,null,"","","","","","","","","","",null,null,null,null,null,null,null,null,null,null,null,null,null,null,null,null,null,"ZWO"]
[null,null,null,null,null,null,null,null,null,null,null,null,null,null,null,null,{"$f":"VLOOKUP(P630,'Input MCC'!B:C,2,0)","v":{"$error":"#N/A"}},{"$f":"VLOOKUP(P630,'Input MCC'!B:E,4,0)","v":{"$error":"#N/A"}},null,null,null,null,{"$f":"SUM(V630:V635)","v":0},null,null,null,null,null,null,null,null,{"$error":"#DIV/0!"},0,0,null,"","","","","","","","","","",null,null,null,null,null,null,null,null,null,null,null,null,null,null,null,null,null,"ZWO"]
[null,null,null,null,null,null,null,null,null,null,null,null,null,null,null,null,{"$f":"VLOOKUP(P631,'Input MCC'!B:C,2,0)","v":{"$error":"#N/A"}},{"$f":"VLOOKUP(P631,'Input MCC'!B:E,4,0)","v":{"$error":"#N/A"}},null,null,null,null,null,null,null,null,null,null,null,null,null,{"$error":"#DIV/0!"},0,0,null,"","","","","","","","","","",null,null,null,null,null,null,null,null,null,null,null,null,null,null,null,null,null,"ZWO"]
[null,null,null,null,null,null,null,null,null,null,null,null,null,null,null,null,{"$f":"VLOOKUP(P632,'Input MCC'!B:C,2,0)","v":{"$error":"#N/A"}},{"$f":"VLOOKUP(P632,'Input MCC'!B:E,4,0)","v":{"$error":"#N/A"}},null,null,null,null,null,null,null,null,null,null,null,null,null,{"$f":"AE632/AC632","v":{"$error":"#DIV/0!"}},{"$f":"V632*AC632","v":0},{"$f":"V632*AE632","v":0},null,{"$f":"IF(AI632 <> \"\",\n    IF(ISNUMBER(VALUE(LEFT(AI632, FIND(\"%\", AI632)-1))),\n        VALUE(LEFT(AI632, FIND(\"%\", AI632)-1)),\n        \"Invalid format\"),\n    \"\")","v":""},{"$f":"IF(AI632 <> \"\",\n    IF(ISNUMBER(VALUE(LEFT(AI632, FIND(\"%\", AI632)-1))) * ISNUMBER(FIND(\"%\", AI632 & \"wol\")) > 0,\n        TRIM(MID(AI632, FIND(\"%\", AI632)+1, FIND(\"/\", AI632 & \"/\")-FIND(\"%\", AI632)-1)),\n        \"Invalid format\"),\n    \"\")","v":""},{"$f":"IF(AI632 <> \"\",\n    IF(ISNUMBER(VALUE(MID(AI632, FIND(\"/\", AI632) + 1, FIND(\"%\", AI632, FIND(\"/\", AI632)) - FIND(\"/\", AI632) - 1))),\n        VALUE(MID(AI632, FIND(\"/\", AI632) + 1, FIND(\"%\", AI632, FIND(\"/\", AI632)) - FIND(\"/\", AI632) - 1)),\n        \"\"),\n    \"\")","v":""},{"$f":"IF(AI632 <> \"\",\n    IFERROR(TRIM(MID(AI632, FIND(\"%\", AI632, FIND(\"/\", AI632)+1)+2,\n        IFERROR(FIND(\"/\", AI632 & \"/\", FIND(\"/\", AI632)+1)-FIND(\"%\", AI632, FIND(\"/\", AI632)+1)-2, LEN(AI632)-FIND(\"%\", AI632, FIND(\"/\", AI632)+1)-1))),\n        \"\"),\n    \"\")","v":""},{"$f":"IF(AI632 <> \"\",\n    IF(ISNUMBER(VALUE(MID(AI632, FIND(\"/\", AI632, FIND(\"/\", AI632)+1) + 1, FIND(\"%\", AI632, FIND(\"/\", AI632, FIND(\"/\", AI632)+1)) - FIND(\"/\", AI632, FIND(\"/\", AI632)+1) - 1))),\n        VALUE(MID(AI632, FIND(\"/\", AI632, FIND(\"/\", AI632)+1) + 1, FIND(\"%\", AI632, FIND(\"/\", AI632, FIND(\"/\", AI632)+1)) - FIND(\"/\", AI632, FIND(\"/\", AI632)+1) - 1)),\n        \"\"),\n    \"\")","v":""},{"$f":"IF(AI632 <> \"\",\n    IFERROR(\n        TRIM(MID(AI632,\n            FIND(\"%\", AI632, FIND(\"%\", AI632, FIND(\"%\", AI632)+1)+1)+1,\n            FIND(\"/\", AI632 & \"/\", FIND(\"%\", AI632, FIND(\"%\", AI632, FIND(\"%\", AI632)+1)+1))-FIND(\"%\", AI632, FIND(\"%\", AI632, FIND(\"%\", AI632)+1)+1)-1)\n        ),\n        \"\"\n    ),\n    \"\"\n)","v":""},{"$f":"IF(AI632 <> \"\",\n    IF(ISNUMBER(VALUE(MID(AI632, FIND(\"/\", AI632, FIND(\"/\", AI632, FIND(\"/\", AI632)+1)+1) + 1, FIND(\"%\", AI632, FIND(\"/\", AI632, FIND(\"/\", AI632, FIND(\"/\", AI632)+1)+1)) - FIND(\"/\", AI632, FIND(\"/\", AI632, FIND(\"/\", AI632)+1)+1) - 1))),\n        VALUE(MID(AI632, FIND(\"/\", AI632, FIND(\"/\", AI632, FIND(\"/\", AI632)+1)+1) + 1, FIND(\"%\", AI632, FIND(\"/\", AI632, FIND(\"/\", AI632, FIND(\"/\", AI632)+1)+1)) - FIND(\"/\", AI632, FIND(\"/\", AI632, FIND(\"/\", AI632)+1)+1) - 1)),\n        \"\"),\n    \"\")","v":""},{"$f":"IF(AI632 <> \"\",\n    IFERROR(TRIM(MID(AI632, FIND(\"%\", AI632, FIND(\"/\", AI632, FIND(\"/\", AI632, FIND(\"/\", AI632)+1)+1)+1)+2,\n        IFERROR(FIND(\"/\", AI632, FIND(\"/\", AI632, FIND(\"/\", AI632, FIND(\"/\", AI632)+1)+1)+1)-FIND(\"%\", AI632, FIND(\"/\", AI632, FIND(\"/\", AI632, FIND(\"/\", AI632)+1)+1)+1)-2, LEN(AI632)-FIND(\"%\", AI632, FIND(\"/\", AI632, FIND(\"/\", AI632, FIND(\"/\", AI632)+1)+1)+1)-1))),\n        \"\"),\n    \"\")","v":""},{"$f":"IF(AI632 <> \"\",\n    IF(ISNUMBER(VALUE(MID(AI632, FIND(\"/\", AI632, FIND(\"/\", AI632, FIND(\"/\", AI632, FIND(\"/\", AI632)+1)+1)+1) + 1, FIND(\"%\", AI632, FIND(\"/\", AI632, FIND(\"/\", AI632, FIND(\"/\", AI632, FIND(\"/\", AI632)+1)+1)+1)) - FIND(\"/\", AI632, FIND(\"/\", AI632, FIND(\"/\", AI632, FIND(\"/\", AI632)+1)+1)+1) - 1))),\n        VALUE(MID(AI632, FIND(\"/\", AI632, FIND(\"/\", AI632, FIND(\"/\", AI632, FIND(\"/\", AI632)+1)+1)+1) + 1, FIND(\"%\", AI632, FIND(\"/\", AI632, FIND(\"/\", AI632, FIND(\"/\", AI632, FIND(\"/\", AI632)+1)+1)+1)) - FIND(\"/\", AI632, FIND(\"/\", AI632, FIND(\"/\", AI632, FIND(\"/\", AI632)+1)+1)+1) - 1)),\n        \"\"),\n    \"\")","v":""},{"$f":"IF(AI632 = \"\", \"\",\n    IFERROR(TRIM(\n        MID(\n            AI632,\n            FIND(\"%\", AI632, FIND(\"/\", AI632, FIND(\"/\", AI632, FIND(\"/\", AI632, FIND(\"/\", AI632)+1)+1)+1)+1) + 1,\n            FIND(\"/\", AI632 & \"/\", FIND(\"%\", AI632, FIND(\"/\", AI632, FIND(\"/\", AI632, FIND(\"/\", AI632, FIND(\"/\", AI632)+1)+1)+1)+1)) -\n            FIND(\"%\", AI632, FIND(\"/\", AI632, FIND(\"/\", AI632, FIND(\"/\", AI632, FIND(\"/\", AI632)+1)+1)+1)+1) - 1\n        )\n    ),\n    \"\")\n)","v":""},null,null,null,null,null,null,null,null,null,null,null,null,null,null,null,null,null,"ZWO"]
[null,null,null,null,null,null,null,null,null,null,null,null,null,null,null,null,{"$f":"VLOOKUP(P633,'Input MCC'!B:C,2,0)","v":{"$error":"#N/A"}},{"$f":"VLOOKUP(P633,'Input MCC'!B:E,4,0)","v":{"$error":"#N/A"}},null,null,null,null,null,null,null,null,null,null,null,null,null,{"$error":"#DIV/0!"},0,0,null,"","","","","","","","","","",null,null,null,null,null,null,null,null,null,null,null,null,null,null,null,null,null,"ZWO"]
[null,null,null,null,null,null,null,null,null,null,null,null,null,null,null,null,{"$f":"VLOOKUP(P634,'Input MCC'!B:C,2,0)","v":{"$error":"#N/A"}},{"$f":"VLOOKUP(P634,'Input MCC'!B:E,4,0)","v":{"$error":"#N/A"}},null,null,null,null,null,null,null,null,null,null,null,null,null,{"$error":"#DIV/0!"},0,0,null,"","","","","","","","","","",null,null,null,null,null,null,null,null,null,null,null,null,null,null,null,null,null,"ZWO"]
[null,null,null,null,null,null,null,null,null,null,null,null,null,null,null,null,{"$f":"VLOOKUP(P635,'Input MCC'!B:C,2,0)","v":{"$error":"#N/A"}},{"$f":"VLOOKUP(P635,'Input MCC'!B:E,4,0)","v":{"$error":"#N/A"}},null,null,null,null,null,null,null,null,null,null,null,null,null,{"$error":"#DIV/0!"},0,0,null,"","","","","","","","","","",null,null,null,null,null,null,null,null,null,null,null,null,null,null,null,null,null,"ZWO"]
[null,null,null,null,null,null,null,null,null,null,null,null,null,null,null,null,{"$f":"VLOOKUP(P636,'Input MCC'!B:C,2,0)","v":{"$error":"#N/A"}},{"$f":"VLOOKUP(P636,'Input MCC'!B:E,4,0)","v":{"$error":"#N/A"}},null,null,null,null,{"$f":"SUM(V636:V641)","v":0},null,null,null,null,null,null,null,null,{"$error":"#DIV/0!"},0,0,null,"","","","","","","","","","",null,null,null,null,null,null,null,null,null,null,null,null,null,null,null,null,null,"ZWO"]
[null,null,null,null,null,null,null,null,null,null,null,null,null,null,null,null,{"$f":"VLOOKUP(P637,'Input MCC'!B:C,2,0)","v":{"$error":"#N/A"}},{"$f":"VLOOKUP(P637,'Input MCC'!B:E,4,0)","v":{"$error":"#N/A"}},null,null,null,null,null,null,null,null,null,null,null,null,null,{"$error":"#DIV/0!"},0,0,null,"","","","","","","","","","",null,null,null,null,null,null,null,null,null,null,null,null,null,null,null,null,null,"ZWO"]
[null,null,null,null,null,null,null,null,null,null,null,null,null,null,null,null,{"$f":"VLOOKUP(P638,'Input MCC'!B:C,2,0)","v":{"$error":"#N/A"}},{"$f":"VLOOKUP(P638,'Input MCC'!B:E,4,0)","v":{"$error":"#N/A"}},null,null,null,null,null,null,null,null,null,null,null,null,null,{"$error":"#DIV/0!"},0,0,null,"","","","","","","","","","",null,null,null,null,null,null,null,null,null,null,null,null,null,null,null,null,null,"ZWO"]
[null,null,null,null,null,null,null,null,null,null,null,null,null,null,null,null,{"$f":"VLOOKUP(P639,'Input MCC'!B:C,2,0)","v":{"$error":"#N/A"}},{"$f":"VLOOKUP(P639,'Input MCC'!B:E,4,0)","v":{"$error":"#N/A"}},null,null,null,null,null,null,null,null,null,null,null,null,null,{"$error":"#DIV/0!"},0,0,null,"","","","","","","","","","",null,null,null,null,null,null,null,null,null,null,null,null,null,null,null,null,null,"ZWO"]
[null,null,null,null,null,null,null,null,null,null,null,null,null,null,null,null,{"$f":"VLOOKUP(P640,'Input MCC'!B:C,2,0)","v":{"$error":"#N/A"}},{"$f":"VLOOKUP(P640,'Input MCC'!B:E,4,0)","v":{"$error":"#N/A"}},null,null,null,null,null,null,null,null,null,null,null,null,null,{"$error":"#DIV/0!"},0,0,null,"","","","","","","","","","",null,null,null,null,null,null,null,null,null,null,null,null,null,null,null,null,null,"ZWO"]
[null,null,null,null,null,null,null,null,null,null,null,null,null,null,null,null,{"$f":"VLOOKUP(P641,'Input MCC'!B:C,2,0)","v":{"$error":"#N/A"}},{"$f":"VLOOKUP(P641,'Input MCC'!B:E,4,0)","v":{"$error":"#N/A"}},null,null,null,null,null,null,null,null,null,null,null,null,null,{"$error":"#DIV/0!"},0,0,null,"","","","","","","","","","",null,null,null,null,null,null,null,null,null,null,null,null,null,null,null,null,null,"ZWO"]
[null,null,null,null,null,null,null,null,null,null,null,null,null,null,null,null,{"$f":"VLOOKUP(P642,'Input MCC'!B:C,2,0)","v":{"$error":"#N/A"}},{"$f":"VLOOKUP(P642,'Input MCC'!B:E,4,0)","v":{"$error":"#N/A"}},null,null,null,null,{"$f":"SUM(V642:V647)","v":0},null,null,null,null,null,null,null,null,{"$error":"#DIV/0!"},0,0,null,"","","","","","","","","","",null,null,null,null,null,null,null,null,null,null,null,null,null,null,null,null,null,"ZWO"]
[null,null,null,null,null,null,null,null,null,null,null,null,null,null,null,null,{"$f":"VLOOKUP(P643,'Input MCC'!B:C,2,0)","v":{"$error":"#N/A"}},{"$f":"VLOOKUP(P643,'Input MCC'!B:E,4,0)","v":{"$error":"#N/A"}},null,null,null,null,null,null,null,null,null,null,null,null,null,{"$error":"#DIV/0!"},0,0,null,"","","","","","","","","","",null,null,null,null,null,null,null,null,null,null,null,null,null,null,null,null,null,"ZWO"]
[null,null,null,null,null,null,null,null,null,null,null,null,null,null,null,null,{"$f":"VLOOKUP(P644,'Input MCC'!B:C,2,0)","v":{"$error":"#N/A"}},{"$f":"VLOOKUP(P644,'Input MCC'!B:E,4,0)","v":{"$error":"#N/A"}},null,null,null,null,null,null,null,null,null,null,null,null,null,{"$error":"#DIV/0!"},0,0,null,"","","","","","","","","","",null,null,null,null,null,null,null,null,null,null,null,null,null,null,null,null,null,"ZWO"]
[null,null,null,null,null,null,null,null,null,null,null,null,null,null,null,null,{"$f":"VLOOKUP(P645,'Input MCC'!B:C,2,0)","v":{"$error":"#N/A"}},{"$f":"VLOOKUP(P645,'Input MCC'!B:E,4,0)","v":{"$error":"#N/A"}},null,null,null,null,null,null,null,null,null,null,null,null,null,{"$error":"#DIV/0!"},0,0,null,"","","","","","","","","","",null,null,null,null,null,null,null,null,null,null,null,null,null,null,null,null,null,"ZWO"]
[null,null,null,null,null,null,null,null,null,null,null,null,null,null,null,null,{"$f":"VLOOKUP(P646,'Input MCC'!B:C,2,0)","v":{"$error":"#N/A"}},{"$f":"VLOOKUP(P646,'Input MCC'!B:E,4,0)","v":{"$error":"#N/A"}},null,null,null,null,null,null,null,null,null,null,null,null,null,{"$error":"#DIV/0!"},0,0,null,"","","","","","","","","","",null,null,null,null,null,null,null,null,null,null,null,null,null,null,null,null,null,"ZWO"]
[null,null,null,null,null,null,null,null,null,null,null,null,null,null,null,null,{"$f":"VLOOKUP(P647,'Input MCC'!B:C,2,0)","v":{"$error":"#N/A"}},{"$f":"VLOOKUP(P647,'Input MCC'!B:E,4,0)","v":{"$error":"#N/A"}},null,null,null,null,null,null,null,null,null,null,null,null,null,{"$error":"#DIV/0!"},0,0,null,"","","","","","","","","","",null,null,null,null,null,null,null,null,null,null,null,null,null,null,null,null,null,"ZWO"]
[null,null,null,null,null,null,null,null,null,null,null,null,null,null,null,null,{"$f":"VLOOKUP(P648,'Input MCC'!B:C,2,0)","v":{"$error":"#N/A"}},{"$f":"VLOOKUP(P648,'Input MCC'!B:E,4,0)","v":{"$error":"#N/A"}},null,null,null,null,{"$f":"SUM(V648:V653)","v":0},null,null,null,null,null,null,null,null,{"$error":"#DIV/0!"},0,0,null,"","","","","","","","","","",null,null,null,null,null,null,null,null,null,null,null,null,null,null,null,null,null,"ZWO"]
[null,null,null,null,null,null,null,null,null,null,null,null,null,null,null,null,{"$f":"VLOOKUP(P649,'Input MCC'!B:C,2,0)","v":{"$error":"#N/A"}},{"$f":"VLOOKUP(P649,'Input MCC'!B:E,4,0)","v":{"$error":"#N/A"}},null,null,null,null,null,null,null,null,null,null,null,null,null,{"$error":"#DIV/0!"},0,0,null,"","","","","","","","","","",null,null,null,null,null,null,null,null,null,null,null,null,null,null,null,null,null,"ZWO"]
[null,null,null,null,null,null,null,null,null,null,null,null,null,null,null,null,{"$f":"VLOOKUP(P650,'Input MCC'!B:C,2,0)","v":{"$error":"#N/A"}},{"$f":"VLOOKUP(P650,'Input MCC'!B:E,4,0)","v":{"$error":"#N/A"}},null,null,null,null,null,null,null,null,null,null,null,null,null,{"$error":"#DIV/0!"},0,0,null,"","","","","","","","","","",null,null,null,null,null,null,null,null,null,null,null,null,null,null,null,null,null,"ZWO"]
[null,null,null,null,null,null,null,null,null,null,null,null,null,null,null,null,{"$f":"VLOOKUP(P651,'Input MCC'!B:C,2,0)","v":{"$error":"#N/A"}},{"$f":"VLOOKUP(P651,'Input MCC'!B:E,4,0)","v":{"$error":"#N/A"}},null,null,null,null,null,null,null,null,null,null,null,null,null,{"$error":"#DIV/0!"},0,0,null,"","","","","","","","","","",null,null,null,null,null,null,null,null,null,null,null,null,null,null,null,null,null,"ZWO"]
[null,null,null,null,null,null,null,null,null,null,null,null,null,null,null,null,{"$f":"VLOOKUP(P652,'Input MCC'!B:C,2,0)","v":{"$error":"#N/A"}},{"$f":"VLOOKUP(P652,'Input MCC'!B:E,4,0)","v":{"$error":"#N/A"}},null,null,null,null,null,null,null,null,null,null,null,null,null,{"$error":"#DIV/0!"},0,0,null,"","","","","","","","","","",null,null,null,null,null,null,null,null,null,null,null,null,null,null,null,null,null,"ZWO"]
[null,null,null,null,null,null,null,null,null,null,null,null,null,null,null,null,{"$f":"VLOOKUP(P653,'Input MCC'!B:C,2,0)","v":{"$error":"#N/A"}},{"$f":"VLOOKUP(P653,'Input MCC'!B:E,4,0)","v":{"$error":"#N/A"}},null,null,null,null,null,null,null,null,null,null,null,null,null,{"$error":"#DIV/0!"},0,0,null,"","","","","","","","","","",null,null,null,null,null,null,null,null,null,null,null,null,null,null,null,null,null,"ZWO"]
[null,null,null,null,null,null,null,null,null,null,null,null,null,null,null,null,{"$f":"VLOOKUP(P654,'Input MCC'!B:C,2,0)","v":{"$error":"#N/A"}},{"$f":"VLOOKUP(P654,'Input MCC'!B:E,4,0)","v":{"$error":"#N/A"}},null,null,null,null,{"$f":"SUM(V654:V659)","v":0},null,null,null,null,null,null,null,null,{"$error":"#DIV/0!"},0,0,null,"","","","","","","","","","",null,null,null,null,null,null,null,null,null,null,null,null,null,null,null,null,null,"ZWO"]
[null,null,null,null,null,null,null,null,null,null,null,null,null,null,null,null,{"$f":"VLOOKUP(P655,'Input MCC'!B:C,2,0)","v":{"$error":"#N/A"}},{"$f":"VLOOKUP(P655,'Input MCC'!B:E,4,0)","v":{"$error":"#N/A"}},null,null,null,null,null,null,null,null,null,null,null,null,null,{"$error":"#DIV/0!"},0,0,null,"","","","","","","","","","",null,null,null,null,null,null,null,null,null,null,null,null,null,null,null,null,null,"ZWO"]
[null,null,null,null,null,null,null,null,null,null,null,null,null,null,null,null,{"$f":"VLOOKUP(P656,'Input MCC'!B:C,2,0)","v":{"$error":"#N/A"}},{"$f":"VLOOKUP(P656,'Input MCC'!B:E,4,0)","v":{"$error":"#N/A"}},null,null,null,null,null,null,null,null,null,null,null,null,null,{"$error":"#DIV/0!"},0,0,null,"","","","","","","","","","",null,null,null,null,null,null,null,null,null,null,null,null,null,null,null,null,null,"ZWO"]
[null,null,null,null,null,null,null,null,null,null,null,null,null,null,null,null,{"$f":"VLOOKUP(P657,'Input MCC'!B:C,2,0)","v":{"$error":"#N/A"}},{"$f":"VLOOKUP(P657,'Input MCC'!B:E,4,0)","v":{"$error":"#N/A"}},null,null,null,null,null,null,null,null,null,null,null,null,null,{"$error":"#DIV/0!"},0,0,null,"","","","","","","","","","",null,null,null,null,null,null,null,null,null,null,null,null,null,null,null,null,null,"ZWO"]
[null,null,null,null,null,null,null,null,null,null,null,null,null,null,null,null,{"$f":"VLOOKUP(P658,'Input MCC'!B:C,2,0)","v":{"$error":"#N/A"}},{"$f":"VLOOKUP(P658,'Input MCC'!B:E,4,0)","v":{"$error":"#N/A"}},null,null,null,null,null,null,null,null,null,null,null,null,null,{"$error":"#DIV/0!"},0,0,null,"","","","","","","","","","",null,null,null,null,null,null,null,null,null,null,null,null,null,null,null,null,null,"ZWO"]
[null,null,null,null,null,null,null,null,null,null,null,null,null,null,null,null,{"$f":"VLOOKUP(P659,'Input MCC'!B:C,2,0)","v":{"$error":"#N/A"}},{"$f":"VLOOKUP(P659,'Input MCC'!B:E,4,0)","v":{"$error":"#N/A"}},null,null,null,null,null,null,null,null,null,null,null,null,null,{"$error":"#DIV/0!"},0,0,null,"","","","","","","","","","",null,null,null,null,null,null,null,null,null,null,null,null,null,null,null,null,null,"ZWO"]
[null,null,null,null,null,null,null,null,null,null,null,null,null,null,null,null,{"$f":"VLOOKUP(P660,'Input MCC'!B:C,2,0)","v":{"$error":"#N/A"}},{"$f":"VLOOKUP(P660,'Input MCC'!B:E,4,0)","v":{"$error":"#N/A"}},null,null,null,null,{"$f":"SUM(V660:V665)","v":0},null,null,null,null,null,null,null,null,{"$error":"#DIV/0!"},0,0,null,"","","","","","","","","","",null,null,null,null,null,null,null,null,null,null,null,null,null,null,null,null,null,"ZWO"]
[null,null,null,null,null,null,null,null,null,null,null,null,null,null,null,null,{"$f":"VLOOKUP(P661,'Input MCC'!B:C,2,0)","v":{"$error":"#N/A"}},{"$f":"VLOOKUP(P661,'Input MCC'!B:E,4,0)","v":{"$error":"#N/A"}},null,null,null,null,null,null,null,null,null,null,null,null,null,{"$error":"#DIV/0!"},0,0,null,"","","","","","","","","","",null,null,null,null,null,null,null,null,null,null,null,null,null,null,null,null,null,"ZWO"]
[null,null,null,null,null,null,null,null,null,null,null,null,null,null,null,null,{"$f":"VLOOKUP(P662,'Input MCC'!B:C,2,0)","v":{"$error":"#N/A"}},{"$f":"VLOOKUP(P662,'Input MCC'!B:E,4,0)","v":{"$error":"#N/A"}},null,null,null,null,null,null,null,null,null,null,null,null,null,{"$error":"#DIV/0!"},0,0,null,"","","","","","","","","","",null,null,null,null,null,null,null,null,null,null,null,null,null,null,null,null,null,"ZWO"]
[null,null,null,null,null,null,null,null,null,null,null,null,null,null,null,null,{"$f":"VLOOKUP(P663,'Input MCC'!B:C,2,0)","v":{"$error":"#N/A"}},{"$f":"VLOOKUP(P663,'Input MCC'!B:E,4,0)","v":{"$error":"#N/A"}},null,null,null,null,null,null,null,null,null,null,null,null,null,{"$error":"#DIV/0!"},0,0,null,"","","","","","","","","","",null,null,null,null,null,null,null,null,null,null,null,null,null,null,null,null,null,"ZWO"]
[null,null,null,null,null,null,null,null,null,null,null,null,null,null,null,null,{"$f":"VLOOKUP(P664,'Input MCC'!B:C,2,0)","v":{"$error":"#N/A"}},{"$f":"VLOOKUP(P664,'Input MCC'!B:E,4,0)","v":{"$error":"#N/A"}},null,null,null,null,null,null,null,null,null,null,null,null,null,{"$error":"#DIV/0!"},0,0,null,"","","","","","","","","","",null,null,null,null,null,null,null,null,null,null,null,null,null,null,null,null,null,"ZWO"]
[null,null,null,null,null,null,null,null,null,null,null,null,null,null,null,null,{"$f":"VLOOKUP(P665,'Input MCC'!B:C,2,0)","v":{"$error":"#N/A"}},{"$f":"VLOOKUP(P665,'Input MCC'!B:E,4,0)","v":{"$error":"#N/A"}},null,null,null,null,null,null,null,null,null,null,null,null,null,{"$error":"#DIV/0!"},0,0,null,"","","","","","","","","","",null,null,null,null,null,null,null,null,null,null,null,null,null,null,null,null,null,"ZWO"]
[null,null,null,null,null,null,null,null,null,null,null,null,null,null,null,null,{"$f":"VLOOKUP(P666,'Input MCC'!B:C,2,0)","v":{"$error":"#N/A"}},{"$f":"VLOOKUP(P666,'Input MCC'!B:E,4,0)","v":{"$error":"#N/A"}},null,null,null,null,{"$f":"SUM(V666:V671)","v":0},null,null,null,null,null,null,null,null,{"$error":"#DIV/0!"},0,0,null,"","","","","","","","","","",null,null,null,null,null,null,null,null,null,null,null,null,null,null,null,null,null,"ZWO"]
[null,null,null,null,null,null,null,null,null,null,null,null,null,null,null,null,{"$f":"VLOOKUP(P667,'Input MCC'!B:C,2,0)","v":{"$error":"#N/A"}},{"$f":"VLOOKUP(P667,'Input MCC'!B:E,4,0)","v":{"$error":"#N/A"}},null,null,null,null,null,null,null,null,null,null,null,null,null,{"$error":"#DIV/0!"},0,0,null,"","","","","","","","","","",null,null,null,null,null,null,null,null,null,null,null,null,null,null,null,null,null,"ZWO"]
[null,null,null,null,null,null,null,null,null,null,null,null,null,null,null,null,{"$f":"VLOOKUP(P668,'Input MCC'!B:C,2,0)","v":{"$error":"#N/A"}},{"$f":"VLOOKUP(P668,'Input MCC'!B:E,4,0)","v":{"$error":"#N/A"}},null,null,null,null,null,null,null,null,null,null,null,null,null,{"$error":"#DIV/0!"},0,0,null,"","","","","","","","","","",null,null,null,null,null,null,null,null,null,null,null,null,null,null,null,null,null,"ZWO"]
[null,null,null,null,null,null,null,null,null,null,null,null,null,null,null,null,{"$f":"VLOOKUP(P669,'Input MCC'!B:C,2,0)","v":{"$error":"#N/A"}},{"$f":"VLOOKUP(P669,'Input MCC'!B:E,4,0)","v":{"$error":"#N/A"}},null,null,null,null,null,null,null,null,null,null,null,null,null,{"$error":"#DIV/0!"},0,0,null,"","","","","","","","","","",null,null,null,null,null,null,null,null,null,null,null,null,null,null,null,null,null,"ZWO"]
[null,null,null,null,null,null,null,null,null,null,null,null,null,null,null,null,{"$f":"VLOOKUP(P670,'Input MCC'!B:C,2,0)","v":{"$error":"#N/A"}},{"$f":"VLOOKUP(P670,'Input MCC'!B:E,4,0)","v":{"$error":"#N/A"}},null,null,null,null,null,null,null,null,null,null,null,null,null,{"$error":"#DIV/0!"},0,0,null,"","","","","","","","","","",null,null,null,null,null,null,null,null,null,null,null,null,null,null,null,null,null,"ZWO"]
[null,null,null,null,null,null,null,null,null,null,null,null,null,null,null,null,{"$f":"VLOOKUP(P671,'Input MCC'!B:C,2,0)","v":{"$error":"#N/A"}},{"$f":"VLOOKUP(P671,'Input MCC'!B:E,4,0)","v":{"$error":"#N/A"}},null,null,null,null,null,null,null,null,null,null,null,null,null,{"$error":"#DIV/0!"},0,0,null,"","","","","","","","","","",null,null,null,null,null,null,null,null,null,null,null,null,null,null,null,null,null,"ZWO"]
[null,null,null,null,null,null,null,null,null,null,null,null,null,null,null,null,{"$f":"VLOOKUP(P672,'Input MCC'!B:C,2,0)","v":{"$error":"#N/A"}},{"$f":"VLOOKUP(P672,'Input MCC'!B:E,4,0)","v":{"$error":"#N/A"}},null,null,null,null,{"$f":"SUM(V672:V677)","v":0},null,null,null,null,null,null,null,null,{"$error":"#DIV/0!"},0,0,null,"","","","","","","","","","",null,null,null,null,null,null,null,null,null,null,null,null,null,null,null,null,null,"ZWO"]
[null,null,null,null,null,null,null,null,null,null,null,null,null,null,null,null,{"$f":"VLOOKUP(P673,'Input MCC'!B:C,2,0)","v":{"$error":"#N/A"}},{"$f":"VLOOKUP(P673,'Input MCC'!B:E,4,0)","v":{"$error":"#N/A"}},null,null,null,null,null,null,null,null,null,null,null,null,null,{"$error":"#DIV/0!"},0,0,null,"","","","","","","","","","",null,null,null,null,null,null,null,null,null,null,null,null,null,null,null,null,null,"ZWO"]
[null,null,null,null,null,null,null,null,null,null,null,null,null,null,null,null,{"$f":"VLOOKUP(P674,'Input MCC'!B:C,2,0)","v":{"$error":"#N/A"}},{"$f":"VLOOKUP(P674,'Input MCC'!B:E,4,0)","v":{"$error":"#N/A"}},null,null,null,null,null,null,null,null,null,null,null,null,null,{"$error":"#DIV/0!"},0,0,null,"","","","","","","","","","",null,null,null,null,null,null,null,null,null,null,null,null,null,null,null,null,null,"ZWO"]
[null,null,null,null,null,null,null,null,null,null,null,null,null,null,null,null,{"$f":"VLOOKUP(P675,'Input MCC'!B:C,2,0)","v":{"$error":"#N/A"}},{"$f":"VLOOKUP(P675,'Input MCC'!B:E,4,0)","v":{"$error":"#N/A"}},null,null,null,null,null,null,null,null,null,null,null,null,null,{"$error":"#DIV/0!"},0,0,null,"","","","","","","","","","",null,null,null,null,null,null,null,null,null,null,null,null,null,null,null,null,null,"ZWO"]
[null,null,null,null,null,null,null,null,null,null,null,null,null,null,null,null,{"$f":"VLOOKUP(P676,'Input MCC'!B:C,2,0)","v":{"$error":"#N/A"}},{"$f":"VLOOKUP(P676,'Input MCC'!B:E,4,0)","v":{"$error":"#N/A"}},null,null,null,null,null,null,null,null,null,null,null,null,null,{"$error":"#DIV/0!"},0,0,null,"","","","","","","","","","",null,null,null,null,null,null,null,null,null,null,null,null,null,null,null,null,null,"ZWO"]
[null,null,null,null,null,null,null,null,null,null,null,null,null,null,null,null,{"$f":"VLOOKUP(P677,'Input MCC'!B:C,2,0)","v":{"$error":"#N/A"}},{"$f":"VLOOKUP(P677,'Input MCC'!B:E,4,0)","v":{"$error":"#N/A"}},null,null,null,null,null,null,null,null,null,null,null,null,null,{"$error":"#DIV/0!"},0,0,null,"","","","","","","","","","",null,null,null,null,null,null,null,null,null,null,null,null,null,null,null,null,null,"ZWO"]
[null,null,null,null,null,null,null,null,null,null,null,null,null,null,null,null,{"$f":"VLOOKUP(P678,'Input MCC'!B:C,2,0)","v":{"$error":"#N/A"}},{"$f":"VLOOKUP(P678,'Input MCC'!B:E,4,0)","v":{"$error":"#N/A"}},null,null,null,null,{"$f":"SUM(V678:V683)","v":0},null,null,null,null,null,null,null,null,{"$error":"#DIV/0!"},0,0,null,"","","","","","","","","","",null,null,null,null,null,null,null,null,null,null,null,null,null,null,null,null,null,"ZWO"]
[null,null,null,null,null,null,null,null,null,null,null,null,null,null,null,null,{"$f":"VLOOKUP(P679,'Input MCC'!B:C,2,0)","v":{"$error":"#N/A"}},{"$f":"VLOOKUP(P679,'Input MCC'!B:E,4,0)","v":{"$error":"#N/A"}},null,null,null,null,null,null,null,null,null,null,null,null,null,{"$error":"#DIV/0!"},0,0,null,"","","","","","","","","","",null,null,null,null,null,null,null,null,null,null,null,null,null,null,null,null,null,"ZWO"]
[null,null,null,null,null,null,null,null,null,null,null,null,null,null,null,null,{"$f":"VLOOKUP(P680,'Input MCC'!B:C,2,0)","v":{"$error":"#N/A"}},{"$f":"VLOOKUP(P680,'Input MCC'!B:E,4,0)","v":{"$error":"#N/A"}},null,null,null,null,null,null,null,null,null,null,null,null,null,{"$error":"#DIV/0!"},0,0,null,"","","","","","","","","","",null,null,null,null,null,null,null,null,null,null,null,null,null,null,null,null,null,"ZWO"]
[null,null,null,null,null,null,null,null,null,null,null,null,null,null,null,null,{"$f":"VLOOKUP(P681,'Input MCC'!B:C,2,0)","v":{"$error":"#N/A"}},{"$f":"VLOOKUP(P681,'Input MCC'!B:E,4,0)","v":{"$error":"#N/A"}},null,null,null,null,null,null,null,null,null,null,null,null,null,{"$error":"#DIV/0!"},0,0,null,"","","","","","","","","","",null,null,null,null,null,null,null,null,null,null,null,null,null,null,null,null,null,"ZWO"]
[null,null,null,null,null,null,null,null,null,null,null,null,null,null,null,null,{"$f":"VLOOKUP(P682,'Input MCC'!B:C,2,0)","v":{"$error":"#N/A"}},{"$f":"VLOOKUP(P682,'Input MCC'!B:E,4,0)","v":{"$error":"#N/A"}},null,null,null,null,null,null,null,null,null,null,null,null,null,{"$error":"#DIV/0!"},0,0,null,"","","","","","","","","","",null,null,null,null,null,null,null,null,null,null,null,null,null,null,null,null,null,"ZWO"]
[null,null,null,null,null,null,null,null,null,null,null,null,null,null,null,null,{"$f":"VLOOKUP(P683,'Input MCC'!B:C,2,0)","v":{"$error":"#N/A"}},{"$f":"VLOOKUP(P683,'Input MCC'!B:E,4,0)","v":{"$error":"#N/A"}},null,null,null,null,null,null,null,null,null,null,null,null,null,{"$error":"#DIV/0!"},0,0,null,"","","","","","","","","","",null,null,null,null,null,null,null,null,null,null,null,null,null,null,null,null,null,"ZWO"]
[null,null,null,null,null,null,null,null,null,null,null,null,null,null,null,null,{"$f":"VLOOKUP(P684,'Input MCC'!B:C,2,0)","v":{"$error":"#N/A"}},{"$f":"VLOOKUP(P684,'Input MCC'!B:E,4,0)","v":{"$error":"#N/A"}},null,null,null,null,{"$f":"SUM(V684:V689)","v":0},null,null,null,null,null,null,null,null,{"$error":"#DIV/0!"},0,0,null,"","","","","","","","","","",null,null,null,null,null,null,null,null,null,null,null,null,null,null,null,null,null,"ZWO"]
[null,null,null,null,null,null,null,null,null,null,null,null,null,null,null,null,{"$f":"VLOOKUP(P685,'Input MCC'!B:C,2,0)","v":{"$error":"#N/A"}},{"$f":"VLOOKUP(P685,'Input MCC'!B:E,4,0)","v":{"$error":"#N/A"}},null,null,null,null,null,null,null,null,null,null,null,null,null,{"$error":"#DIV/0!"},0,0,null,"","","","","","","","","","",null,null,null,null,null,null,null,null,null,null,null,null,null,null,null,null,null,"ZWO"]
[null,null,null,null,null,null,null,null,null,null,null,null,null,null,null,null,{"$f":"VLOOKUP(P686,'Input MCC'!B:C,2,0)","v":{"$error":"#N/A"}},{"$f":"VLOOKUP(P686,'Input MCC'!B:E,4,0)","v":{"$error":"#N/A"}},null,null,null,null,null,null,null,null,null,null,null,null,null,{"$error":"#DIV/0!"},0,0,null,"","","","","","","","","","",null,null,null,null,null,null,null,null,null,null,null,null,null,null,null,null,null,"ZWO"]
[null,null,null,null,null,null,null,null,null,null,null,null,null,null,null,null,{"$f":"VLOOKUP(P687,'Input MCC'!B:C,2,0)","v":{"$error":"#N/A"}},{"$f":"VLOOKUP(P687,'Input MCC'!B:E,4,0)","v":{"$error":"#N/A"}},null,null,null,null,null,null,null,null,null,null,null,null,null,{"$error":"#DIV/0!"},0,0,null,"","","","","","","","","","",null,null,null,null,null,null,null,null,null,null,null,null,null,null,null,null,null,"ZWO"]
[null,null,null,null,null,null,null,null,null,null,null,null,null,null,null,null,{"$f":"VLOOKUP(P688,'Input MCC'!B:C,2,0)","v":{"$error":"#N/A"}},{"$f":"VLOOKUP(P688,'Input MCC'!B:E,4,0)","v":{"$error":"#N/A"}},null,null,null,null,null,null,null,null,null,null,null,null,null,{"$error":"#DIV/0!"},0,0,null,"","","","","","","","","","",null,null,null,null,null,null,null,null,null,null,null,null,null,null,null,null,null,"ZWO"]
[null,null,null,null,null,null,null,null,null,null,null,null,null,null,null,null,{"$f":"VLOOKUP(P689,'Input MCC'!B:C,2,0)","v":{"$error":"#N/A"}},{"$f":"VLOOKUP(P689,'Input MCC'!B:E,4,0)","v":{"$error":"#N/A"}},null,null,null,null,null,null,null,null,null,null,null,null,null,{"$error":"#DIV/0!"},0,0,null,"","","","","","","","","","",null,null,null,null,null,null,null,null,null,null,null,null,null,null,null,null,null,"ZWO"]
[null,null,null,null,null,null,null,null,null,null,null,null,null,null,null,null,{"$f":"VLOOKUP(P690,'Input MCC'!B:C,2,0)","v":{"$error":"#N/A"}},{"$f":"VLOOKUP(P690,'Input MCC'!B:E,4,0)","v":{"$error":"#N/A"}},null,null,null,null,{"$f":"SUM(V690:V695)","v":0},null,null,null,null,null,null,null,null,{"$error":"#DIV/0!"},0,0,null,"","","","","","","","","","",null,null,null,null,null,null,null,null,null,null,null,null,null,null,null,null,null,"ZWO"]
[null,null,null,null,null,null,null,null,null,null,null,null,null,null,null,null,{"$f":"VLOOKUP(P691,'Input MCC'!B:C,2,0)","v":{"$error":"#N/A"}},{"$f":"VLOOKUP(P691,'Input MCC'!B:E,4,0)","v":{"$error":"#N/A"}},null,null,null,null,null,null,null,null,null,null,null,null,null,{"$error":"#DIV/0!"},0,0,null,"","","","","","","","","","",null,null,null,null,null,null,null,null,null,null,null,null,null,null,null,null,null,"ZWO"]
[null,null,null,null,null,null,null,null,null,null,null,null,null,null,null,null,{"$f":"VLOOKUP(P692,'Input MCC'!B:C,2,0)","v":{"$error":"#N/A"}},{"$f":"VLOOKUP(P692,'Input MCC'!B:E,4,0)","v":{"$error":"#N/A"}},null,null,null,null,null,null,null,null,null,null,null,null,null,{"$error":"#DIV/0!"},0,0,null,"","","","","","","","","","",null,null,null,null,null,null,null,null,null,null,null,null,null,null,null,null,null,"ZWO"]
[null,null,null,null,null,null,null,null,null,null,null,null,null,null,null,null,{"$f":"VLOOKUP(P693,'Input MCC'!B:C,2,0)","v":{"$error":"#N/A"}},{"$f":"VLOOKUP(P693,'Input MCC'!B:E,4,0)","v":{"$error":"#N/A"}},null,null,null,null,null,null,null,null,null,null,null,null,null,{"$error":"#DIV/0!"},0,0,null,"","","","","","","","","","",null,null,null,null,null,null,null,null,null,null,null,null,null,null,null,null,null,"ZWO"]
[null,null,null,null,null,null,null,null,null,null,null,null,null,null,null,null,{"$f":"VLOOKUP(P694,'Input MCC'!B:C,2,0)","v":{"$error":"#N/A"}},{"$f":"VLOOKUP(P694,'Input MCC'!B:E,4,0)","v":{"$error":"#N/A"}},null,null,null,null,null,null,null,null,null,null,null,null,null,{"$error":"#DIV/0!"},0,0,null,"","","","","","","","","","",null,null,null,null,null,null,null,null,null,null,null,null,null,null,null,null,null,"ZWO"]
[null,null,null,null,null,null,null,null,null,null,null,null,null,null,null,null,{"$f":"VLOOKUP(P695,'Input MCC'!B:C,2,0)","v":{"$error":"#N/A"}},{"$f":"VLOOKUP(P695,'Input MCC'!B:E,4,0)","v":{"$error":"#N/A"}},null,null,null,null,null,null,null,null,null,null,null,null,null,{"$error":"#DIV/0!"},0,0,null,"","","","","","","","","","",null,null,null,null,null,null,null,null,null,null,null,null,null,null,null,null,null,"ZWO"]
[null,null,null,null,null,null,null,null,null,null,null,null,null,null,null,null,{"$f":"VLOOKUP(P696,'Input MCC'!B:C,2,0)","v":{"$error":"#N/A"}},{"$f":"VLOOKUP(P696,'Input MCC'!B:E,4,0)","v":{"$error":"#N/A"}},null,null,null,null,{"$f":"SUM(V696:V701)","v":0},null,null,null,null,null,null,null,null,{"$f":"AE696/AC696","v":{"$error":"#DIV/0!"}},{"$f":"V696*AC696","v":0},{"$f":"V696*AE696","v":0},null,{"$f":"IF(AI696 <> \"\",\n    IF(ISNUMBER(VALUE(LEFT(AI696, FIND(\"%\", AI696)-1))),\n        VALUE(LEFT(AI696, FIND(\"%\", AI696)-1)),\n        \"Invalid format\"),\n    \"\")","v":""},{"$f":"IF(AI696 <> \"\",\n    IF(ISNUMBER(VALUE(LEFT(AI696, FIND(\"%\", AI696)-1))) * ISNUMBER(FIND(\"%\", AI696 & \"wol\")) > 0,\n        TRIM(MID(AI696, FIND(\"%\", AI696)+1, FIND(\"/\", AI696 & \"/\")-FIND(\"%\", AI696)-1)),\n        \"Invalid format\"),\n    \"\")","v":""},{"$f":"IF(AI696 <> \"\",\n    IF(ISNUMBER(VALUE(MID(AI696, FIND(\"/\", AI696) + 1, FIND(\"%\", AI696, FIND(\"/\", AI696)) - FIND(\"/\", AI696) - 1))),\n        VALUE(MID(AI696, FIND(\"/\", AI696) + 1, FIND(\"%\", AI696, FIND(\"/\", AI696)) - FIND(\"/\", AI696) - 1)),\n        \"\"),\n    \"\")","v":""},{"$f":"IF(AI696 <> \"\",\n    IFERROR(TRIM(MID(AI696, FIND(\"%\", AI696, FIND(\"/\", AI696)+1)+2,\n        IFERROR(FIND(\"/\", AI696 & \"/\", FIND(\"/\", AI696)+1)-FIND(\"%\", AI696, FIND(\"/\", AI696)+1)-2, LEN(AI696)-FIND(\"%\", AI696, FIND(\"/\", AI696)+1)-1))),\n        \"\"),\n    \"\")","v":""},{"$f":"IF(AI696 <> \"\",\n    IF(ISNUMBER(VALUE(MID(AI696, FIND(\"/\", AI696, FIND(\"/\", AI696)+1) + 1, FIND(\"%\", AI696, FIND(\"/\", AI696, FIND(\"/\", AI696)+1)) - FIND(\"/\", AI696, FIND(\"/\", AI696)+1) - 1))),\n        VALUE(MID(AI696, FIND(\"/\", AI696, FIND(\"/\", AI696)+1) + 1, FIND(\"%\", AI696, FIND(\"/\", AI696, FIND(\"/\", AI696)+1)) - FIND(\"/\", AI696, FIND(\"/\", AI696)+1) - 1)),\n        \"\"),\n    \"\")","v":""},{"$f":"IF(AI696 <> \"\",\n    IFERROR(\n        TRIM(MID(AI696,\n            FIND(\"%\", AI696, FIND(\"%\", AI696, FIND(\"%\", AI696)+1)+1)+1,\n            FIND(\"/\", AI696 & \"/\", FIND(\"%\", AI696, FIND(\"%\", AI696, FIND(\"%\", AI696)+1)+1))-FIND(\"%\", AI696, FIND(\"%\", AI696, FIND(\"%\", AI696)+1)+1)-1)\n        ),\n        \"\"\n    ),\n    \"\"\n)","v":""},{"$f":"IF(AI696 <> \"\",\n    IF(ISNUMBER(VALUE(MID(AI696, FIND(\"/\", AI696, FIND(\"/\", AI696, FIND(\"/\", AI696)+1)+1) + 1, FIND(\"%\", AI696, FIND(\"/\", AI696, FIND(\"/\", AI696, FIND(\"/\", AI696)+1)+1)) - FIND(\"/\", AI696, FIND(\"/\", AI696, FIND(\"/\", AI696)+1)+1) - 1))),\n        VALUE(MID(AI696, FIND(\"/\", AI696, FIND(\"/\", AI696, FIND(\"/\", AI696)+1)+1) + 1, FIND(\"%\", AI696, FIND(\"/\", AI696, FIND(\"/\", AI696, FIND(\"/\", AI696)+1)+1)) - FIND(\"/\", AI696, FIND(\"/\", AI696, FIND(\"/\", AI696)+1)+1) - 1)),\n        \"\"),\n    \"\")","v":""},{"$f":"IF(AI696 <> \"\",\n    IFERROR(TRIM(MID(AI696, FIND(\"%\", AI696, FIND(\"/\", AI696, FIND(\"/\", AI696, FIND(\"/\", AI696)+1)+1)+1)+2,\n        IFERROR(FIND(\"/\", AI696, FIND(\"/\", AI696, FIND(\"/\", AI696, FIND(\"/\", AI696)+1)+1)+1)-FIND(\"%\", AI696, FIND(\"/\", AI696, FIND(\"/\", AI696, FIND(\"/\", AI696)+1)+1)+1)-2, LEN(AI696)-FIND(\"%\", AI696, FIND(\"/\", AI696, FIND(\"/\", AI696, FIND(\"/\", AI696)+1)+1)+1)-1))),\n        \"\"),\n    \"\")","v":""},{"$f":"IF(AI696 <> \"\",\n    IF(ISNUMBER(VALUE(MID(AI696, FIND(\"/\", AI696, FIND(\"/\", AI696, FIND(\"/\", AI696, FIND(\"/\", AI696)+1)+1)+1) + 1, FIND(\"%\", AI696, FIND(\"/\", AI696, FIND(\"/\", AI696, FIND(\"/\", AI696, FIND(\"/\", AI696)+1)+1)+1)) - FIND(\"/\", AI696, FIND(\"/\", AI696, FIND(\"/\", AI696, FIND(\"/\", AI696)+1)+1)+1) - 1))),\n        VALUE(MID(AI696, FIND(\"/\", AI696, FIND(\"/\", AI696, FIND(\"/\", AI696, FIND(\"/\", AI696)+1)+1)+1) + 1, FIND(\"%\", AI696, FIND(\"/\", AI696, FIND(\"/\", AI696, FIND(\"/\", AI696, FIND(\"/\", AI696)+1)+1)+1)) - FIND(\"/\", AI696, FIND(\"/\", AI696, FIND(\"/\", AI696, FIND(\"/\", AI696)+1)+1)+1) - 1)),\n        \"\"),\n    \"\")","v":""},{"$f":"IF(AI696 = \"\", \"\",\n    IFERROR(TRIM(\n        MID(\n            AI696,\n            FIND(\"%\", AI696, FIND(\"/\", AI696, FIND(\"/\", AI696, FIND(\"/\", AI696, FIND(\"/\", AI696)+1)+1)+1)+1) + 1,\n            FIND(\"/\", AI696 & \"/\", FIND(\"%\", AI696, FIND(\"/\", AI696, FIND(\"/\", AI696, FIND(\"/\", AI696, FIND(\"/\", AI696)+1)+1)+1)+1)) -\n            FIND(\"%\", AI696, FIND(\"/\", AI696, FIND(\"/\", AI696, FIND(\"/\", AI696, FIND(\"/\", AI696)+1)+1)+1)+1) - 1\n        )\n    ),\n    \"\")\n)","v":""},null,null,null,null,null,null,null,null,null,null,null,null,null,null,null,null,null,"ZWO"]
[null,null,null,null,null,null,null,null,null,null,null,null,null,null,null,null,{"$f":"VLOOKUP(P697,'Input MCC'!B:C,2,0)","v":{"$error":"#N/A"}},{"$f":"VLOOKUP(P697,'Input MCC'!B:E,4,0)","v":{"$error":"#N/A"}},null,null,null,null,null,null,null,null,null,null,null,null,null,{"$error":"#DIV/0!"},0,0,null,"","","","","","","","","","",null,null,null,null,null,null,null,null,null,null,null,null,null,null,null,null,null,"ZWO"]
[null,null,null,null,null,null,null,null,null,null,null,null,null,null,null,null,{"$f":"VLOOKUP(P698,'Input MCC'!B:C,2,0)","v":{"$error":"#N/A"}},{"$f":"VLOOKUP(P698,'Input MCC'!B:E,4,0)","v":{"$error":"#N/A"}},null,null,null,null,null,null,null,null,null,null,null,null,null,{"$error":"#DIV/0!"},0,0,null,"","","","","","","","","","",null,null,null,null,null,null,null,null,null,null,null,null,null,null,null,null,null,"ZWO"]
[null,null,null,null,null,null,null,null,null,null,null,null,null,null,null,null,{"$f":"VLOOKUP(P699,'Input MCC'!B:C,2,0)","v":{"$error":"#N/A"}},{"$f":"VLOOKUP(P699,'Input MCC'!B:E,4,0)","v":{"$error":"#N/A"}},null,null,null,null,null,null,null,null,null,null,null,null,null,{"$error":"#DIV/0!"},0,0,null,"","","","","","","","","","",null,null,null,null,null,null,null,null,null,null,null,null,null,null,null,null,null,"ZWO"]
[null,null,null,null,null,null,null,null,null,null,null,null,null,null,null,null,{"$f":"VLOOKUP(P700,'Input MCC'!B:C,2,0)","v":{"$error":"#N/A"}},{"$f":"VLOOKUP(P700,'Input MCC'!B:E,4,0)","v":{"$error":"#N/A"}},null,null,null,null,null,null,null,null,null,null,null,null,null,{"$error":"#DIV/0!"},0,0,null,"","","","","","","","","","",null,null,null,null,null,null,null,null,null,null,null,null,null,null,null,null,null,"ZWO"]
[null,null,null,null,null,null,null,null,null,null,null,null,null,null,null,null,{"$f":"VLOOKUP(P701,'Input MCC'!B:C,2,0)","v":{"$error":"#N/A"}},{"$f":"VLOOKUP(P701,'Input MCC'!B:E,4,0)","v":{"$error":"#N/A"}},null,null,null,null,null,null,null,null,null,null,null,null,null,{"$error":"#DIV/0!"},0,0,null,"","","","","","","","","","",null,null,null,null,null,null,null,null,null,null,null,null,null,null,null,null,null,"ZWO"]
[null,null,null,null,null,null,null,null,null,null,null,null,null,null,null,null,{"$f":"VLOOKUP(P702,'Input MCC'!B:C,2,0)","v":{"$error":"#N/A"}},{"$f":"VLOOKUP(P702,'Input MCC'!B:E,4,0)","v":{"$error":"#N/A"}},null,null,null,null,{"$f":"SUM(V702:V707)","v":0},null,null,null,null,null,null,null,null,{"$error":"#DIV/0!"},0,0,null,"","","","","","","","","","",null,null,null,null,null,null,null,null,null,null,null,null,null,null,null,null,null,"ZWO"]
[null,null,null,null,null,null,null,null,null,null,null,null,null,null,null,null,{"$f":"VLOOKUP(P703,'Input MCC'!B:C,2,0)","v":{"$error":"#N/A"}},{"$f":"VLOOKUP(P703,'Input MCC'!B:E,4,0)","v":{"$error":"#N/A"}},null,null,null,null,null,null,null,null,null,null,null,null,null,{"$error":"#DIV/0!"},0,0,null,"","","","","","","","","","",null,null,null,null,null,null,null,null,null,null,null,null,null,null,null,null,null,"ZWO"]
[null,null,null,null,null,null,null,null,null,null,null,null,null,null,null,null,{"$f":"VLOOKUP(P704,'Input MCC'!B:C,2,0)","v":{"$error":"#N/A"}},{"$f":"VLOOKUP(P704,'Input MCC'!B:E,4,0)","v":{"$error":"#N/A"}},null,null,null,null,null,null,null,null,null,null,null,null,null,{"$error":"#DIV/0!"},0,0,null,"","","","","","","","","","",null,null,null,null,null,null,null,null,null,null,null,null,null,null,null,null,null,"ZWO"]
[null,null,null,null,null,null,null,null,null,null,null,null,null,null,null,null,{"$f":"VLOOKUP(P705,'Input MCC'!B:C,2,0)","v":{"$error":"#N/A"}},{"$f":"VLOOKUP(P705,'Input MCC'!B:E,4,0)","v":{"$error":"#N/A"}},null,null,null,null,null,null,null,null,null,null,null,null,null,{"$error":"#DIV/0!"},0,0,null,"","","","","","","","","","",null,null,null,null,null,null,null,null,null,null,null,null,null,null,null,null,null,"ZWO"]
[null,null,null,null,null,null,null,null,null,null,null,null,null,null,null,null,{"$f":"VLOOKUP(P706,'Input MCC'!B:C,2,0)","v":{"$error":"#N/A"}},{"$f":"VLOOKUP(P706,'Input MCC'!B:E,4,0)","v":{"$error":"#N/A"}},null,null,null,null,null,null,null,null,null,null,null,null,null,{"$error":"#DIV/0!"},0,0,null,"","","","","","","","","","",null,null,null,null,null,null,null,null,null,null,null,null,null,null,null,null,null,"ZWO"]
[null,null,null,null,null,null,null,null,null,null,null,null,null,null,null,null,{"$f":"VLOOKUP(P707,'Input MCC'!B:C,2,0)","v":{"$error":"#N/A"}},{"$f":"VLOOKUP(P707,'Input MCC'!B:E,4,0)","v":{"$error":"#N/A"}},null,null,null,null,null,null,null,null,null,null,null,null,null,{"$error":"#DIV/0!"},0,0,null,"","","","","","","","","","",null,null,null,null,null,null,null,null,null,null,null,null,null,null,null,null,null,"ZWO"]
[null,null,null,null,null,null,null,null,null,null,null,null,null,null,null,null,{"$f":"VLOOKUP(P708,'Input MCC'!B:C,2,0)","v":{"$error":"#N/A"}},{"$f":"VLOOKUP(P708,'Input MCC'!B:E,4,0)","v":{"$error":"#N/A"}},null,null,null,null,{"$f":"SUM(V708:V713)","v":0},null,null,null,null,null,null,null,null,{"$error":"#DIV/0!"},0,0,null,"","","","","","","","","","",null,null,null,null,null,null,null,null,null,null,null,null,null,null,null,null,null,"ZWO"]
[null,null,null,null,null,null,null,null,null,null,null,null,null,null,null,null,{"$f":"VLOOKUP(P709,'Input MCC'!B:C,2,0)","v":{"$error":"#N/A"}},{"$f":"VLOOKUP(P709,'Input MCC'!B:E,4,0)","v":{"$error":"#N/A"}},null,null,null,null,null,null,null,null,null,null,null,null,null,{"$error":"#DIV/0!"},0,0,null,"","","","","","","","","","",null,null,null,null,null,null,null,null,null,null,null,null,null,null,null,null,null,"ZWO"]
[null,null,null,null,null,null,null,null,null,null,null,null,null,null,null,null,{"$f":"VLOOKUP(P710,'Input MCC'!B:C,2,0)","v":{"$error":"#N/A"}},{"$f":"VLOOKUP(P710,'Input MCC'!B:E,4,0)","v":{"$error":"#N/A"}},null,null,null,null,null,null,null,null,null,null,null,null,null,{"$error":"#DIV/0!"},0,0,null,"","","","","","","","","","",null,null,null,null,null,null,null,null,null,null,null,null,null,null,null,null,null,"ZWO"]
[null,null,null,null,null,null,null,null,null,null,null,null,null,null,null,null,{"$f":"VLOOKUP(P711,'Input MCC'!B:C,2,0)","v":{"$error":"#N/A"}},{"$f":"VLOOKUP(P711,'Input MCC'!B:E,4,0)","v":{"$error":"#N/A"}},null,null,null,null,null,null,null,null,null,null,null,null,null,{"$error":"#DIV/0!"},0,0,null,"","","","","","","","","","",null,null,null,null,null,null,null,null,null,null,null,null,null,null,null,null,null,"ZWO"]
[null,null,null,null,null,null,null,null,null,null,null,null,null,null,null,null,{"$f":"VLOOKUP(P712,'Input MCC'!B:C,2,0)","v":{"$error":"#N/A"}},{"$f":"VLOOKUP(P712,'Input MCC'!B:E,4,0)","v":{"$error":"#N/A"}},null,null,null,null,null,null,null,null,null,null,null,null,null,{"$error":"#DIV/0!"},0,0,null,"","","","","","","","","","",null,null,null,null,null,null,null,null,null,null,null,null,null,null,null,null,null,"ZWO"]
[null,null,null,null,null,null,null,null,null,null,null,null,null,null,null,null,{"$f":"VLOOKUP(P713,'Input MCC'!B:C,2,0)","v":{"$error":"#N/A"}},{"$f":"VLOOKUP(P713,'Input MCC'!B:E,4,0)","v":{"$error":"#N/A"}},null,null,null,null,null,null,null,null,null,null,null,null,null,{"$error":"#DIV/0!"},0,0,null,"","","","","","","","","","",null,null,null,null,null,null,null,null,null,null,null,null,null,null,null,null,null,"ZWO"]
[null,null,null,null,null,null,null,null,null,null,null,null,null,null,null,null,{"$f":"VLOOKUP(P714,'Input MCC'!B:C,2,0)","v":{"$error":"#N/A"}},{"$f":"VLOOKUP(P714,'Input MCC'!B:E,4,0)","v":{"$error":"#N/A"}},null,null,null,null,{"$f":"SUM(V714:V719)","v":0},null,null,null,null,null,null,null,null,{"$error":"#DIV/0!"},0,0,null,"","","","","","","","","","",null,null,null,null,null,null,null,null,null,null,null,null,null,null,null,null,null,"ZWO"]
[null,null,null,null,null,null,null,null,null,null,null,null,null,null,null,null,{"$f":"VLOOKUP(P715,'Input MCC'!B:C,2,0)","v":{"$error":"#N/A"}},{"$f":"VLOOKUP(P715,'Input MCC'!B:E,4,0)","v":{"$error":"#N/A"}},null,null,null,null,null,null,null,null,null,null,null,null,null,{"$error":"#DIV/0!"},0,0,null,"","","","","","","","","","",null,null,null,null,null,null,null,null,null,null,null,null,null,null,null,null,null,"ZWO"]
[null,null,null,null,null,null,null,null,null,null,null,null,null,null,null,null,{"$f":"VLOOKUP(P716,'Input MCC'!B:C,2,0)","v":{"$error":"#N/A"}},{"$f":"VLOOKUP(P716,'Input MCC'!B:E,4,0)","v":{"$error":"#N/A"}},null,null,null,null,null,null,null,null,null,null,null,null,null,{"$error":"#DIV/0!"},0,0,null,"","","","","","","","","","",null,null,null,null,null,null,null,null,null,null,null,null,null,null,null,null,null,"ZWO"]
[null,null,null,null,null,null,null,null,null,null,null,null,null,null,null,null,{"$f":"VLOOKUP(P717,'Input MCC'!B:C,2,0)","v":{"$error":"#N/A"}},{"$f":"VLOOKUP(P717,'Input MCC'!B:E,4,0)","v":{"$error":"#N/A"}},null,null,null,null,null,null,null,null,null,null,null,null,null,{"$error":"#DIV/0!"},0,0,null,"","","","","","","","","","",null,null,null,null,null,null,null,null,null,null,null,null,null,null,null,null,null,"ZWO"]
[null,null,null,null,null,null,null,null,null,null,null,null,null,null,null,null,{"$f":"VLOOKUP(P718,'Input MCC'!B:C,2,0)","v":{"$error":"#N/A"}},{"$f":"VLOOKUP(P718,'Input MCC'!B:E,4,0)","v":{"$error":"#N/A"}},null,null,null,null,null,null,null,null,null,null,null,null,null,{"$error":"#DIV/0!"},0,0,null,"","","","","","","","","","",null,null,null,null,null,null,null,null,null,null,null,null,null,null,null,null,null,"ZWO"]
[null,null,null,null,null,null,null,null,null,null,null,null,null,null,null,null,{"$f":"VLOOKUP(P719,'Input MCC'!B:C,2,0)","v":{"$error":"#N/A"}},{"$f":"VLOOKUP(P719,'Input MCC'!B:E,4,0)","v":{"$error":"#N/A"}},null,null,null,null,null,null,null,null,null,null,null,null,null,{"$error":"#DIV/0!"},0,0,null,"","","","","","","","","","",null,null,null,null,null,null,null,null,null,null,null,null,null,null,null,null,null,"ZWO"]
[null,null,null,null,null,null,null,null,null,null,null,null,null,null,null,null,{"$f":"VLOOKUP(P720,'Input MCC'!B:C,2,0)","v":{"$error":"#N/A"}},{"$f":"VLOOKUP(P720,'Input MCC'!B:E,4,0)","v":{"$error":"#N/A"}},null,null,null,null,{"$f":"SUM(V720:V725)","v":0},null,null,null,null,null,null,null,null,{"$error":"#DIV/0!"},0,0,null,"","","","","","","","","","",null,null,null,null,null,null,null,null,null,null,null,null,null,null,null,null,null,"ZWO"]
[null,null,null,null,null,null,null,null,null,null,null,null,null,null,null,null,{"$f":"VLOOKUP(P721,'Input MCC'!B:C,2,0)","v":{"$error":"#N/A"}},{"$f":"VLOOKUP(P721,'Input MCC'!B:E,4,0)","v":{"$error":"#N/A"}},null,null,null,null,null,null,null,null,null,null,null,null,null,{"$error":"#DIV/0!"},0,0,null,"","","","","","","","","","",null,null,null,null,null,null,null,null,null,null,null,null,null,null,null,null,null,"ZWO"]
[null,null,null,null,null,null,null,null,null,null,null,null,null,null,null,null,{"$f":"VLOOKUP(P722,'Input MCC'!B:C,2,0)","v":{"$error":"#N/A"}},{"$f":"VLOOKUP(P722,'Input MCC'!B:E,4,0)","v":{"$error":"#N/A"}},null,null,null,null,null,null,null,null,null,null,null,null,null,{"$error":"#DIV/0!"},0,0,null,"","","","","","","","","","",null,null,null,null,null,null,null,null,null,null,null,null,null,null,null,null,null,"ZWO"]
[null,null,null,null,null,null,null,null,null,null,null,null,null,null,null,null,{"$f":"VLOOKUP(P723,'Input MCC'!B:C,2,0)","v":{"$error":"#N/A"}},{"$f":"VLOOKUP(P723,'Input MCC'!B:E,4,0)","v":{"$error":"#N/A"}},null,null,null,null,null,null,null,null,null,null,null,null,null,{"$error":"#DIV/0!"},0,0,null,"","","","","","","","","","",null,null,null,null,null,null,null,null,null,null,null,null,null,null,null,null,null,"ZWO"]
[null,null,null,null,null,null,null,null,null,null,null,null,null,null,null,null,{"$f":"VLOOKUP(P724,'Input MCC'!B:C,2,0)","v":{"$error":"#N/A"}},{"$f":"VLOOKUP(P724,'Input MCC'!B:E,4,0)","v":{"$error":"#N/A"}},null,null,null,null,null,null,null,null,null,null,null,null,null,{"$error":"#DIV/0!"},0,0,null,"","","","","","","","","","",null,null,null,null,null,null,null,null,null,null,null,null,null,null,null,null,null,"ZWO"]
[null,null,null,null,null,null,null,null,null,null,null,null,null,null,null,null,{"$f":"VLOOKUP(P725,'Input MCC'!B:C,2,0)","v":{"$error":"#N/A"}},{"$f":"VLOOKUP(P725,'Input MCC'!B:E,4,0)","v":{"$error":"#N/A"}},null,null,null,null,null,null,null,null,null,null,null,null,null,{"$error":"#DIV/0!"},0,0,null,"","","","","","","","","","",null,null,null,null,null,null,null,null,null,null,null,null,null,null,null,null,null,"ZWO"]
[null,null,null,null,null,null,null,null,null,null,null,null,null,null,null,null,{"$f":"VLOOKUP(P726,'Input MCC'!B:C,2,0)","v":{"$error":"#N/A"}},{"$f":"VLOOKUP(P726,'Input MCC'!B:E,4,0)","v":{"$error":"#N/A"}},null,null,null,null,{"$f":"SUM(V726:V731)","v":0},null,null,null,null,null,null,null,null,{"$error":"#DIV/0!"},0,0,null,"","","","","","","","","","",null,null,null,null,null,null,null,null,null,null,null,null,null,null,null,null,null,"ZWO"]
[null,null,null,null,null,null,null,null,null,null,null,null,null,null,null,null,{"$f":"VLOOKUP(P727,'Input MCC'!B:C,2,0)","v":{"$error":"#N/A"}},{"$f":"VLOOKUP(P727,'Input MCC'!B:E,4,0)","v":{"$error":"#N/A"}},null,null,null,null,null,null,null,null,null,null,null,null,null,{"$error":"#DIV/0!"},0,0,null,"","","","","","","","","","",null,null,null,null,null,null,null,null,null,null,null,null,null,null,null,null,null,"ZWO"]
[null,null,null,null,null,null,null,null,null,null,null,null,null,null,null,null,{"$f":"VLOOKUP(P728,'Input MCC'!B:C,2,0)","v":{"$error":"#N/A"}},{"$f":"VLOOKUP(P728,'Input MCC'!B:E,4,0)","v":{"$error":"#N/A"}},null,null,null,null,null,null,null,null,null,null,null,null,null,{"$error":"#DIV/0!"},0,0,null,"","","","","","","","","","",null,null,null,null,null,null,null,null,null,null,null,null,null,null,null,null,null,"ZWO"]
[null,null,null,null,null,null,null,null,null,null,null,null,null,null,null,null,{"$f":"VLOOKUP(P729,'Input MCC'!B:C,2,0)","v":{"$error":"#N/A"}},{"$f":"VLOOKUP(P729,'Input MCC'!B:E,4,0)","v":{"$error":"#N/A"}},null,null,null,null,null,null,null,null,null,null,null,null,null,{"$error":"#DIV/0!"},0,0,null,"","","","","","","","","","",null,null,null,null,null,null,null,null,null,null,null,null,null,null,null,null,null,"ZWO"]
[null,null,null,null,null,null,null,null,null,null,null,null,null,null,null,null,{"$f":"VLOOKUP(P730,'Input MCC'!B:C,2,0)","v":{"$error":"#N/A"}},{"$f":"VLOOKUP(P730,'Input MCC'!B:E,4,0)","v":{"$error":"#N/A"}},null,null,null,null,null,null,null,null,null,null,null,null,null,{"$error":"#DIV/0!"},0,0,null,"","","","","","","","","","",null,null,null,null,null,null,null,null,null,null,null,null,null,null,null,null,null,"ZWO"]
[null,null,null,null,null,null,null,null,null,null,null,null,null,null,null,null,{"$f":"VLOOKUP(P731,'Input MCC'!B:C,2,0)","v":{"$error":"#N/A"}},{"$f":"VLOOKUP(P731,'Input MCC'!B:E,4,0)","v":{"$error":"#N/A"}},null,null,null,null,null,null,null,null,null,null,null,null,null,{"$error":"#DIV/0!"},0,0,null,"","","","","","","","","","",null,null,null,null,null,null,null,null,null,null,null,null,null,null,null,null,null,"ZWO"]
[null,null,null,null,null,null,null,null,null,null,null,null,null,null,null,null,{"$f":"VLOOKUP(P732,'Input MCC'!B:C,2,0)","v":{"$error":"#N/A"}},{"$f":"VLOOKUP(P732,'Input MCC'!B:E,4,0)","v":{"$error":"#N/A"}},null,null,null,null,{"$f":"SUM(V732:V737)","v":0},null,null,null,null,null,null,null,null,{"$error":"#DIV/0!"},0,0,null,"","","","","","","","","","",null,null,null,null,null,null,null,null,null,null,null,null,null,null,null,null,null,"ZWO"]
[null,null,null,null,null,null,null,null,null,null,null,null,null,null,null,null,{"$f":"VLOOKUP(P733,'Input MCC'!B:C,2,0)","v":{"$error":"#N/A"}},{"$f":"VLOOKUP(P733,'Input MCC'!B:E,4,0)","v":{"$error":"#N/A"}},null,null,null,null,null,null,null,null,null,null,null,null,null,{"$error":"#DIV/0!"},0,0,null,"","","","","","","","","","",null,null,null,null,null,null,null,null,null,null,null,null,null,null,null,null,null,"ZWO"]
[null,null,null,null,null,null,null,null,null,null,null,null,null,null,null,null,{"$f":"VLOOKUP(P734,'Input MCC'!B:C,2,0)","v":{"$error":"#N/A"}},{"$f":"VLOOKUP(P734,'Input MCC'!B:E,4,0)","v":{"$error":"#N/A"}},null,null,null,null,null,null,null,null,null,null,null,null,null,{"$error":"#DIV/0!"},0,0,null,"","","","","","","","","","",null,null,null,null,null,null,null,null,null,null,null,null,null,null,null,null,null,"ZWO"]
[null,null,null,null,null,null,null,null,null,null,null,null,null,null,null,null,{"$f":"VLOOKUP(P735,'Input MCC'!B:C,2,0)","v":{"$error":"#N/A"}},{"$f":"VLOOKUP(P735,'Input MCC'!B:E,4,0)","v":{"$error":"#N/A"}},null,null,null,null,null,null,null,null,null,null,null,null,null,{"$error":"#DIV/0!"},0,0,null,"","","","","","","","","","",null,null,null,null,null,null,null,null,null,null,null,null,null,null,null,null,null,"ZWO"]
[null,null,null,null,null,null,null,null,null,null,null,null,null,null,null,null,{"$f":"VLOOKUP(P736,'Input MCC'!B:C,2,0)","v":{"$error":"#N/A"}},{"$f":"VLOOKUP(P736,'Input MCC'!B:E,4,0)","v":{"$error":"#N/A"}},null,null,null,null,null,null,null,null,null,null,null,null,null,{"$error":"#DIV/0!"},0,0,null,"","","","","","","","","","",null,null,null,null,null,null,null,null,null,null,null,null,null,null,null,null,null,"ZWO"]
[null,null,null,null,null,null,null,null,null,null,null,null,null,null,null,null,{"$f":"VLOOKUP(P737,'Input MCC'!B:C,2,0)","v":{"$error":"#N/A"}},{"$f":"VLOOKUP(P737,'Input MCC'!B:E,4,0)","v":{"$error":"#N/A"}},null,null,null,null,null,null,null,null,null,null,null,null,null,{"$error":"#DIV/0!"},0,0,null,"","","","","","","","","","",null,null,null,null,null,null,null,null,null,null,null,null,null,null,null,null,null,"ZWO"]
[null,null,null,null,null,null,null,null,null,null,null,null,null,null,null,null,{"$f":"VLOOKUP(P738,'Input MCC'!B:C,2,0)","v":{"$error":"#N/A"}},{"$f":"VLOOKUP(P738,'Input MCC'!B:E,4,0)","v":{"$error":"#N/A"}},null,null,null,null,{"$f":"SUM(V738:V743)","v":0},null,null,null,null,null,null,null,null,{"$error":"#DIV/0!"},0,0,null,"","","","","","","","","","",null,null,null,null,null,null,null,null,null,null,null,null,null,null,null,null,null,"ZWO"]
[null,null,null,null,null,null,null,null,null,null,null,null,null,null,null,null,{"$f":"VLOOKUP(P739,'Input MCC'!B:C,2,0)","v":{"$error":"#N/A"}},{"$f":"VLOOKUP(P739,'Input MCC'!B:E,4,0)","v":{"$error":"#N/A"}},null,null,null,null,null,null,null,null,null,null,null,null,null,{"$error":"#DIV/0!"},0,0,null,"","","","","","","","","","",null,null,null,null,null,null,null,null,null,null,null,null,null,null,null,null,null,"ZWO"]
[null,null,null,null,null,null,null,null,null,null,null,null,null,null,null,null,{"$f":"VLOOKUP(P740,'Input MCC'!B:C,2,0)","v":{"$error":"#N/A"}},{"$f":"VLOOKUP(P740,'Input MCC'!B:E,4,0)","v":{"$error":"#N/A"}},null,null,null,null,null,null,null,null,null,null,null,null,null,{"$error":"#DIV/0!"},0,0,null,"","","","","","","","","","",null,null,null,null,null,null,null,null,null,null,null,null,null,null,null,null,null,"ZWO"]
[null,null,null,null,null,null,null,null,null,null,null,null,null,null,null,null,{"$f":"VLOOKUP(P741,'Input MCC'!B:C,2,0)","v":{"$error":"#N/A"}},{"$f":"VLOOKUP(P741,'Input MCC'!B:E,4,0)","v":{"$error":"#N/A"}},null,null,null,null,null,null,null,null,null,null,null,null,null,{"$error":"#DIV/0!"},0,0,null,"","","","","","","","","","",null,null,null,null,null,null,null,null,null,null,null,null,null,null,null,null,null,"ZWO"]
[null,null,null,null,null,null,null,null,null,null,null,null,null,null,null,null,{"$f":"VLOOKUP(P742,'Input MCC'!B:C,2,0)","v":{"$error":"#N/A"}},{"$f":"VLOOKUP(P742,'Input MCC'!B:E,4,0)","v":{"$error":"#N/A"}},null,null,null,null,null,null,null,null,null,null,null,null,null,{"$error":"#DIV/0!"},0,0,null,"","","","","","","","","","",null,null,null,null,null,null,null,null,null,null,null,null,null,null,null,null,null,"ZWO"]
[null,null,null,null,null,null,null,null,null,null,null,null,null,null,null,null,{"$f":"VLOOKUP(P743,'Input MCC'!B:C,2,0)","v":{"$error":"#N/A"}},{"$f":"VLOOKUP(P743,'Input MCC'!B:E,4,0)","v":{"$error":"#N/A"}},null,null,null,null,null,null,null,null,null,null,null,null,null,{"$error":"#DIV/0!"},0,0,null,"","","","","","","","","","",null,null,null,null,null,null,null,null,null,null,null,null,null,null,null,null,null,"ZWO"]
[null,null,null,null,null,null,null,null,null,null,null,null,null,null,null,null,{"$f":"VLOOKUP(P744,'Input MCC'!B:C,2,0)","v":{"$error":"#N/A"}},{"$f":"VLOOKUP(P744,'Input MCC'!B:E,4,0)","v":{"$error":"#N/A"}},null,null,null,null,{"$f":"SUM(V744:V749)","v":0},null,null,null,null,null,null,null,null,{"$error":"#DIV/0!"},0,0,null,"","","","","","","","","","",null,null,null,null,null,null,null,null,null,null,null,null,null,null,null,null,null,"ZWO"]
[null,null,null,null,null,null,null,null,null,null,null,null,null,null,null,null,{"$f":"VLOOKUP(P745,'Input MCC'!B:C,2,0)","v":{"$error":"#N/A"}},{"$f":"VLOOKUP(P745,'Input MCC'!B:E,4,0)","v":{"$error":"#N/A"}},null,null,null,null,null,null,null,null,null,null,null,null,null,{"$error":"#DIV/0!"},0,0,null,"","","","","","","","","","",null,null,null,null,null,null,null,null,null,null,null,null,null,null,null,null,null,"ZWO"]
[null,null,null,null,null,null,null,null,null,null,null,null,null,null,null,null,{"$f":"VLOOKUP(P746,'Input MCC'!B:C,2,0)","v":{"$error":"#N/A"}},{"$f":"VLOOKUP(P746,'Input MCC'!B:E,4,0)","v":{"$error":"#N/A"}},null,null,null,null,null,null,null,null,null,null,null,null,null,{"$error":"#DIV/0!"},0,0,null,"","","","","","","","","","",null,null,null,null,null,null,null,null,null,null,null,null,null,null,null,null,null,"ZWO"]
[null,null,null,null,null,null,null,null,null,null,null,null,null,null,null,null,{"$f":"VLOOKUP(P747,'Input MCC'!B:C,2,0)","v":{"$error":"#N/A"}},{"$f":"VLOOKUP(P747,'Input MCC'!B:E,4,0)","v":{"$error":"#N/A"}},null,null,null,null,null,null,null,null,null,null,null,null,null,{"$error":"#DIV/0!"},0,0,null,"","","","","","","","","","",null,null,null,null,null,null,null,null,null,null,null,null,null,null,null,null,null,"ZWO"]
[null,null,null,null,null,null,null,null,null,null,null,null,null,null,null,null,{"$f":"VLOOKUP(P748,'Input MCC'!B:C,2,0)","v":{"$error":"#N/A"}},{"$f":"VLOOKUP(P748,'Input MCC'!B:E,4,0)","v":{"$error":"#N/A"}},null,null,null,null,null,null,null,null,null,null,null,null,null,{"$error":"#DIV/0!"},0,0,null,"","","","","","","","","","",null,null,null,null,null,null,null,null,null,null,null,null,null,null,null,null,null,"ZWO"]
[null,null,null,null,null,null,null,null,null,null,null,null,null,null,null,null,{"$f":"VLOOKUP(P749,'Input MCC'!B:C,2,0)","v":{"$error":"#N/A"}},{"$f":"VLOOKUP(P749,'Input MCC'!B:E,4,0)","v":{"$error":"#N/A"}},null,null,null,null,null,null,null,null,null,null,null,null,null,{"$error":"#DIV/0!"},0,0,null,"","","","","","","","","","",null,null,null,null,null,null,null,null,null,null,null,null,null,null,null,null,null,"ZWO"]
[null,null,null,null,null,null,null,null,null,null,null,null,null,null,null,null,{"$f":"VLOOKUP(P750,'Input MCC'!B:C,2,0)","v":{"$error":"#N/A"}},{"$f":"VLOOKUP(P750,'Input MCC'!B:E,4,0)","v":{"$error":"#N/A"}},null,null,null,null,{"$f":"SUM(V750:V755)","v":0},null,null,null,null,null,null,null,null,{"$error":"#DIV/0!"},0,0,null,"","","","","","","","","","",null,null,null,null,null,null,null,null,null,null,null,null,null,null,null,null,null,"ZWO"]
[null,null,null,null,null,null,null,null,null,null,null,null,null,null,null,null,{"$f":"VLOOKUP(P751,'Input MCC'!B:C,2,0)","v":{"$error":"#N/A"}},{"$f":"VLOOKUP(P751,'Input MCC'!B:E,4,0)","v":{"$error":"#N/A"}},null,null,null,null,null,null,null,null,null,null,null,null,null,{"$error":"#DIV/0!"},0,0,null,"","","","","","","","","","",null,null,null,null,null,null,null,null,null,null,null,null,null,null,null,null,null,"ZWO"]
[null,null,null,null,null,null,null,null,null,null,null,null,null,null,null,null,{"$f":"VLOOKUP(P752,'Input MCC'!B:C,2,0)","v":{"$error":"#N/A"}},{"$f":"VLOOKUP(P752,'Input MCC'!B:E,4,0)","v":{"$error":"#N/A"}},null,null,null,null,null,null,null,null,null,null,null,null,null,{"$error":"#DIV/0!"},0,0,null,"","","","","","","","","","",null,null,null,null,null,null,null,null,null,null,null,null,null,null,null,null,null,"ZWO"]
[null,null,null,null,null,null,null,null,null,null,null,null,null,null,null,null,{"$f":"VLOOKUP(P753,'Input MCC'!B:C,2,0)","v":{"$error":"#N/A"}},{"$f":"VLOOKUP(P753,'Input MCC'!B:E,4,0)","v":{"$error":"#N/A"}},null,null,null,null,null,null,null,null,null,null,null,null,null,{"$error":"#DIV/0!"},0,0,null,"","","","","","","","","","",null,null,null,null,null,null,null,null,null,null,null,null,null,null,null,null,null,"ZWO"]
[null,null,null,null,null,null,null,null,null,null,null,null,null,null,null,null,{"$f":"VLOOKUP(P754,'Input MCC'!B:C,2,0)","v":{"$error":"#N/A"}},{"$f":"VLOOKUP(P754,'Input MCC'!B:E,4,0)","v":{"$error":"#N/A"}},null,null,null,null,null,null,null,null,null,null,null,null,null,{"$error":"#DIV/0!"},0,0,null,"","","","","","","","","","",null,null,null,null,null,null,null,null,null,null,null,null,null,null,null,null,null,"ZWO"]
[null,null,null,null,null,null,null,null,null,null,null,null,null,null,null,null,{"$f":"VLOOKUP(P755,'Input MCC'!B:C,2,0)","v":{"$error":"#N/A"}},{"$f":"VLOOKUP(P755,'Input MCC'!B:E,4,0)","v":{"$error":"#N/A"}},null,null,null,null,null,null,null,null,null,null,null,null,null,{"$error":"#DIV/0!"},0,0,null,"","","","","","","","","","",null,null,null,null,null,null,null,null,null,null,null,null,null,null,null,null,null,"ZWO"]
[null,null,null,null,null,null,null,null,null,null,null,null,null,null,null,null,{"$f":"VLOOKUP(P756,'Input MCC'!B:C,2,0)","v":{"$error":"#N/A"}},{"$f":"VLOOKUP(P756,'Input MCC'!B:E,4,0)","v":{"$error":"#N/A"}},null,null,null,null,{"$f":"SUM(V756:V761)","v":0},null,null,null,null,null,null,null,null,{"$error":"#DIV/0!"},0,0,null,"","","","","","","","","","",null,null,null,null,null,null,null,null,null,null,null,null,null,null,null,null,null,"ZWO"]
[null,null,null,null,null,null,null,null,null,null,null,null,null,null,null,null,{"$f":"VLOOKUP(P757,'Input MCC'!B:C,2,0)","v":{"$error":"#N/A"}},{"$f":"VLOOKUP(P757,'Input MCC'!B:E,4,0)","v":{"$error":"#N/A"}},null,null,null,null,null,null,null,null,null,null,null,null,null,{"$error":"#DIV/0!"},0,0,null,"","","","","","","","","","",null,null,null,null,null,null,null,null,null,null,null,null,null,null,null,null,null,"ZWO"]
[null,null,null,null,null,null,null,null,null,null,null,null,null,null,null,null,{"$f":"VLOOKUP(P758,'Input MCC'!B:C,2,0)","v":{"$error":"#N/A"}},{"$f":"VLOOKUP(P758,'Input MCC'!B:E,4,0)","v":{"$error":"#N/A"}},null,null,null,null,null,null,null,null,null,null,null,null,null,{"$error":"#DIV/0!"},0,0,null,"","","","","","","","","","",null,null,null,null,null,null,null,null,null,null,null,null,null,null,null,null,null,"ZWO"]
[null,null,null,null,null,null,null,null,null,null,null,null,null,null,null,null,{"$f":"VLOOKUP(P759,'Input MCC'!B:C,2,0)","v":{"$error":"#N/A"}},{"$f":"VLOOKUP(P759,'Input MCC'!B:E,4,0)","v":{"$error":"#N/A"}},null,null,null,null,null,null,null,null,null,null,null,null,null,{"$error":"#DIV/0!"},0,0,null,"","","","","","","","","","",null,null,null,null,null,null,null,null,null,null,null,null,null,null,null,null,null,"ZWO"]
[null,null,null,null,null,null,null,null,null,null,null,null,null,null,null,null,{"$f":"VLOOKUP(P760,'Input MCC'!B:C,2,0)","v":{"$error":"#N/A"}},{"$f":"VLOOKUP(P760,'Input MCC'!B:E,4,0)","v":{"$error":"#N/A"}},null,null,null,null,null,null,null,null,null,null,null,null,null,{"$f":"AE760/AC760","v":{"$error":"#DIV/0!"}},{"$f":"V760*AC760","v":0},{"$f":"V760*AE760","v":0},null,{"$f":"IF(AI760 <> \"\",\n    IF(ISNUMBER(VALUE(LEFT(AI760, FIND(\"%\", AI760)-1))),\n        VALUE(LEFT(AI760, FIND(\"%\", AI760)-1)),\n        \"Invalid format\"),\n    \"\")","v":""},{"$f":"IF(AI760 <> \"\",\n    IF(ISNUMBER(VALUE(LEFT(AI760, FIND(\"%\", AI760)-1))) * ISNUMBER(FIND(\"%\", AI760 & \"wol\")) > 0,\n        TRIM(MID(AI760, FIND(\"%\", AI760)+1, FIND(\"/\", AI760 & \"/\")-FIND(\"%\", AI760)-1)),\n        \"Invalid format\"),\n    \"\")","v":""},{"$f":"IF(AI760 <> \"\",\n    IF(ISNUMBER(VALUE(MID(AI760, FIND(\"/\", AI760) + 1, FIND(\"%\", AI760, FIND(\"/\", AI760)) - FIND(\"/\", AI760) - 1))),\n        VALUE(MID(AI760, FIND(\"/\", AI760) + 1, FIND(\"%\", AI760, FIND(\"/\", AI760)) - FIND(\"/\", AI760) - 1)),\n        \"\"),\n    \"\")","v":""},{"$f":"IF(AI760 <> \"\",\n    IFERROR(TRIM(MID(AI760, FIND(\"%\", AI760, FIND(\"/\", AI760)+1)+2,\n        IFERROR(FIND(\"/\", AI760 & \"/\", FIND(\"/\", AI760)+1)-FIND(\"%\", AI760, FIND(\"/\", AI760)+1)-2, LEN(AI760)-FIND(\"%\", AI760, FIND(\"/\", AI760)+1)-1))),\n        \"\"),\n    \"\")","v":""},{"$f":"IF(AI760 <> \"\",\n    IF(ISNUMBER(VALUE(MID(AI760, FIND(\"/\", AI760, FIND(\"/\", AI760)+1) + 1, FIND(\"%\", AI760, FIND(\"/\", AI760, FIND(\"/\", AI760)+1)) - FIND(\"/\", AI760, FIND(\"/\", AI760)+1) - 1))),\n        VALUE(MID(AI760, FIND(\"/\", AI760, FIND(\"/\", AI760)+1) + 1, FIND(\"%\", AI760, FIND(\"/\", AI760, FIND(\"/\", AI760)+1)) - FIND(\"/\", AI760, FIND(\"/\", AI760)+1) - 1)),\n        \"\"),\n    \"\")","v":""},{"$f":"IF(AI760 <> \"\",\n    IFERROR(\n        TRIM(MID(AI760,\n            FIND(\"%\", AI760, FIND(\"%\", AI760, FIND(\"%\", AI760)+1)+1)+1,\n            FIND(\"/\", AI760 & \"/\", FIND(\"%\", AI760, FIND(\"%\", AI760, FIND(\"%\", AI760)+1)+1))-FIND(\"%\", AI760, FIND(\"%\", AI760, FIND(\"%\", AI760)+1)+1)-1)\n        ),\n        \"\"\n    ),\n    \"\"\n)","v":""},{"$f":"IF(AI760 <> \"\",\n    IF(ISNUMBER(VALUE(MID(AI760, FIND(\"/\", AI760, FIND(\"/\", AI760, FIND(\"/\", AI760)+1)+1) + 1, FIND(\"%\", AI760, FIND(\"/\", AI760, FIND(\"/\", AI760, FIND(\"/\", AI760)+1)+1)) - FIND(\"/\", AI760, FIND(\"/\", AI760, FIND(\"/\", AI760)+1)+1) - 1))),\n        VALUE(MID(AI760, FIND(\"/\", AI760, FIND(\"/\", AI760, FIND(\"/\", AI760)+1)+1) + 1, FIND(\"%\", AI760, FIND(\"/\", AI760, FIND(\"/\", AI760, FIND(\"/\", AI760)+1)+1)) - FIND(\"/\", AI760, FIND(\"/\", AI760, FIND(\"/\", AI760)+1)+1) - 1)),\n        \"\"),\n    \"\")","v":""},{"$f":"IF(AI760 <> \"\",\n    IFERROR(TRIM(MID(AI760, FIND(\"%\", AI760, FIND(\"/\", AI760, FIND(\"/\", AI760, FIND(\"/\", AI760)+1)+1)+1)+2,\n        IFERROR(FIND(\"/\", AI760, FIND(\"/\", AI760, FIND(\"/\", AI760, FIND(\"/\", AI760)+1)+1)+1)-FIND(\"%\", AI760, FIND(\"/\", AI760, FIND(\"/\", AI760, FIND(\"/\", AI760)+1)+1)+1)-2, LEN(AI760)-FIND(\"%\", AI760, FIND(\"/\", AI760, FIND(\"/\", AI760, FIND(\"/\", AI760)+1)+1)+1)-1))),\n        \"\"),\n    \"\")","v":""},{"$f":"IF(AI760 <> \"\",\n    IF(ISNUMBER(VALUE(MID(AI760, FIND(\"/\", AI760, FIND(\"/\", AI760, FIND(\"/\", AI760, FIND(\"/\", AI760)+1)+1)+1) + 1, FIND(\"%\", AI760, FIND(\"/\", AI760, FIND(\"/\", AI760, FIND(\"/\", AI760, FIND(\"/\", AI760)+1)+1)+1)) - FIND(\"/\", AI760, FIND(\"/\", AI760, FIND(\"/\", AI760, FIND(\"/\", AI760)+1)+1)+1) - 1))),\n        VALUE(MID(AI760, FIND(\"/\", AI760, FIND(\"/\", AI760, FIND(\"/\", AI760, FIND(\"/\", AI760)+1)+1)+1) + 1, FIND(\"%\", AI760, FIND(\"/\", AI760, FIND(\"/\", AI760, FIND(\"/\", AI760, FIND(\"/\", AI760)+1)+1)+1)) - FIND(\"/\", AI760, FIND(\"/\", AI760, FIND(\"/\", AI760, FIND(\"/\", AI760)+1)+1)+1) - 1)),\n        \"\"),\n    \"\")","v":""},{"$f":"IF(AI760 = \"\", \"\",\n    IFERROR(TRIM(\n        MID(\n            AI760,\n            FIND(\"%\", AI760, FIND(\"/\", AI760, FIND(\"/\", AI760, FIND(\"/\", AI760, FIND(\"/\", AI760)+1)+1)+1)+1) + 1,\n            FIND(\"/\", AI760 & \"/\", FIND(\"%\", AI760, FIND(\"/\", AI760, FIND(\"/\", AI760, FIND(\"/\", AI760, FIND(\"/\", AI760)+1)+1)+1)+1)) -\n            FIND(\"%\", AI760, FIND(\"/\", AI760, FIND(\"/\", AI760, FIND(\"/\", AI760, FIND(\"/\", AI760)+1)+1)+1)+1) - 1\n        )\n    ),\n    \"\")\n)","v":""},null,null,null,null,null,null,null,null,null,null,null,null,null,null,null,null,null,"ZWO"]
[null,null,null,null,null,null,null,null,null,null,null,null,null,null,null,null,{"$f":"VLOOKUP(P761,'Input MCC'!B:C,2,0)","v":{"$error":"#N/A"}},{"$f":"VLOOKUP(P761,'Input MCC'!B:E,4,0)","v":{"$error":"#N/A"}},null,null,null,null,null,null,null,null,null,null,null,null,null,{"$error":"#DIV/0!"},0,0,null,"","","","","","","","","","",null,null,null,null,null,null,null,null,null,null,null,null,null,null,null,null,null,"ZWO"]
[null,null,null,null,null,null,null,null,null,null,null,null,null,null,null,null,{"$f":"VLOOKUP(P762,'Input MCC'!B:C,2,0)","v":{"$error":"#N/A"}},{"$f":"VLOOKUP(P762,'Input MCC'!B:E,4,0)","v":{"$error":"#N/A"}},null,null,null,null,{"$f":"SUM(V762:V767)","v":0},null,null,null,null,null,null,null,null,{"$error":"#DIV/0!"},0,0,null,"","","","","","","","","","",null,null,null,null,null,null,null,null,null,null,null,null,null,null,null,null,null,"ZWO"]
[null,null,null,null,null,null,null,null,null,null,null,null,null,null,null,null,{"$f":"VLOOKUP(P763,'Input MCC'!B:C,2,0)","v":{"$error":"#N/A"}},{"$f":"VLOOKUP(P763,'Input MCC'!B:E,4,0)","v":{"$error":"#N/A"}},null,null,null,null,null,null,null,null,null,null,null,null,null,{"$error":"#DIV/0!"},0,0,null,"","","","","","","","","","",null,null,null,null,null,null,null,null,null,null,null,null,null,null,null,null,null,"ZWO"]
[null,null,null,null,null,null,null,null,null,null,null,null,null,null,null,null,{"$f":"VLOOKUP(P764,'Input MCC'!B:C,2,0)","v":{"$error":"#N/A"}},{"$f":"VLOOKUP(P764,'Input MCC'!B:E,4,0)","v":{"$error":"#N/A"}},null,null,null,null,null,null,null,null,null,null,null,null,null,{"$error":"#DIV/0!"},0,0,null,"","","","","","","","","","",null,null,null,null,null,null,null,null,null,null,null,null,null,null,null,null,null,"ZWO"]
[null,null,null,null,null,null,null,null,null,null,null,null,null,null,null,null,{"$f":"VLOOKUP(P765,'Input MCC'!B:C,2,0)","v":{"$error":"#N/A"}},{"$f":"VLOOKUP(P765,'Input MCC'!B:E,4,0)","v":{"$error":"#N/A"}},null,null,null,null,null,null,null,null,null,null,null,null,null,{"$error":"#DIV/0!"},0,0,null,"","","","","","","","","","",null,null,null,null,null,null,null,null,null,null,null,null,null,null,null,null,null,"ZWO"]
[null,null,null,null,null,null,null,null,null,null,null,null,null,null,null,null,{"$f":"VLOOKUP(P766,'Input MCC'!B:C,2,0)","v":{"$error":"#N/A"}},{"$f":"VLOOKUP(P766,'Input MCC'!B:E,4,0)","v":{"$error":"#N/A"}},null,null,null,null,null,null,null,null,null,null,null,null,null,{"$error":"#DIV/0!"},0,0,null,"","","","","","","","","","",null,null,null,null,null,null,null,null,null,null,null,null,null,null,null,null,null,"ZWO"]
[null,null,null,null,null,null,null,null,null,null,null,null,null,null,null,null,{"$f":"VLOOKUP(P767,'Input MCC'!B:C,2,0)","v":{"$error":"#N/A"}},{"$f":"VLOOKUP(P767,'Input MCC'!B:E,4,0)","v":{"$error":"#N/A"}},null,null,null,null,null,null,null,null,null,null,null,null,null,{"$error":"#DIV/0!"},0,0,null,"","","","","","","","","","",null,null,null,null,null,null,null,null,null,null,null,null,null,null,null,null,null,"ZWO"]
[null,null,null,null,null,null,null,null,null,null,null,null,null,null,null,null,{"$f":"VLOOKUP(P768,'Input MCC'!B:C,2,0)","v":{"$error":"#N/A"}},{"$f":"VLOOKUP(P768,'Input MCC'!B:E,4,0)","v":{"$error":"#N/A"}},null,null,null,null,{"$f":"SUM(V768:V773)","v":0},null,null,null,null,null,null,null,null,{"$error":"#DIV/0!"},0,0,null,"","","","","","","","","","",null,null,null,null,null,null,null,null,null,null,null,null,null,null,null,null,null,"ZWO"]
[null,null,null,null,null,null,null,null,null,null,null,null,null,null,null,null,{"$f":"VLOOKUP(P769,'Input MCC'!B:C,2,0)","v":{"$error":"#N/A"}},{"$f":"VLOOKUP(P769,'Input MCC'!B:E,4,0)","v":{"$error":"#N/A"}},null,null,null,null,null,null,null,null,null,null,null,null,null,{"$error":"#DIV/0!"},0,0,null,"","","","","","","","","","",null,null,null,null,null,null,null,null,null,null,null,null,null,null,null,null,null,"ZWO"]
[null,null,null,null,null,null,null,null,null,null,null,null,null,null,null,null,{"$f":"VLOOKUP(P770,'Input MCC'!B:C,2,0)","v":{"$error":"#N/A"}},{"$f":"VLOOKUP(P770,'Input MCC'!B:E,4,0)","v":{"$error":"#N/A"}},null,null,null,null,null,null,null,null,null,null,null,null,null,{"$error":"#DIV/0!"},0,0,null,"","","","","","","","","","",null,null,null,null,null,null,null,null,null,null,null,null,null,null,null,null,null,"ZWO"]
[null,null,null,null,null,null,null,null,null,null,null,null,null,null,null,null,{"$f":"VLOOKUP(P771,'Input MCC'!B:C,2,0)","v":{"$error":"#N/A"}},{"$f":"VLOOKUP(P771,'Input MCC'!B:E,4,0)","v":{"$error":"#N/A"}},null,null,null,null,null,null,null,null,null,null,null,null,null,{"$error":"#DIV/0!"},0,0,null,"","","","","","","","","","",null,null,null,null,null,null,null,null,null,null,null,null,null,null,null,null,null,"ZWO"]
[null,null,null,null,null,null,null,null,null,null,null,null,null,null,null,null,{"$f":"VLOOKUP(P772,'Input MCC'!B:C,2,0)","v":{"$error":"#N/A"}},{"$f":"VLOOKUP(P772,'Input MCC'!B:E,4,0)","v":{"$error":"#N/A"}},null,null,null,null,null,null,null,null,null,null,null,null,null,{"$error":"#DIV/0!"},0,0,null,"","","","","","","","","","",null,null,null,null,null,null,null,null,null,null,null,null,null,null,null,null,null,"ZWO"]
[null,null,null,null,null,null,null,null,null,null,null,null,null,null,null,null,{"$f":"VLOOKUP(P773,'Input MCC'!B:C,2,0)","v":{"$error":"#N/A"}},{"$f":"VLOOKUP(P773,'Input MCC'!B:E,4,0)","v":{"$error":"#N/A"}},null,null,null,null,null,null,null,null,null,null,null,null,null,{"$error":"#DIV/0!"},0,0,null,"","","","","","","","","","",null,null,null,null,null,null,null,null,null,null,null,null,null,null,null,null,null,"ZWO"]
[null,null,null,null,null,null,null,null,null,null,null,null,null,null,null,null,{"$f":"VLOOKUP(P774,'Input MCC'!B:C,2,0)","v":{"$error":"#N/A"}},{"$f":"VLOOKUP(P774,'Input MCC'!B:E,4,0)","v":{"$error":"#N/A"}},null,null,null,null,{"$f":"SUM(V774:V779)","v":0},null,null,null,null,null,null,null,null,{"$error":"#DIV/0!"},0,0,null,"","","","","","","","","","",null,null,null,null,null,null,null,null,null,null,null,null,null,null,null,null,null,"ZWO"]
[null,null,null,null,null,null,null,null,null,null,null,null,null,null,null,null,{"$f":"VLOOKUP(P775,'Input MCC'!B:C,2,0)","v":{"$error":"#N/A"}},{"$f":"VLOOKUP(P775,'Input MCC'!B:E,4,0)","v":{"$error":"#N/A"}},null,null,null,null,null,null,null,null,null,null,null,null,null,{"$error":"#DIV/0!"},0,0,null,"","","","","","","","","","",null,null,null,null,null,null,null,null,null,null,null,null,null,null,null,null,null,"ZWO"]
[null,null,null,null,null,null,null,null,null,null,null,null,null,null,null,null,{"$f":"VLOOKUP(P776,'Input MCC'!B:C,2,0)","v":{"$error":"#N/A"}},{"$f":"VLOOKUP(P776,'Input MCC'!B:E,4,0)","v":{"$error":"#N/A"}},null,null,null,null,null,null,null,null,null,null,null,null,null,{"$error":"#DIV/0!"},0,0,null,"","","","","","","","","","",null,null,null,null,null,null,null,null,null,null,null,null,null,null,null,null,null,"ZWO"]
[null,null,null,null,null,null,null,null,null,null,null,null,null,null,null,null,{"$f":"VLOOKUP(P777,'Input MCC'!B:C,2,0)","v":{"$error":"#N/A"}},{"$f":"VLOOKUP(P777,'Input MCC'!B:E,4,0)","v":{"$error":"#N/A"}},null,null,null,null,null,null,null,null,null,null,null,null,null,{"$error":"#DIV/0!"},0,0,null,"","","","","","","","","","",null,null,null,null,null,null,null,null,null,null,null,null,null,null,null,null,null,"ZWO"]
[null,null,null,null,null,null,null,null,null,null,null,null,null,null,null,null,{"$f":"VLOOKUP(P778,'Input MCC'!B:C,2,0)","v":{"$error":"#N/A"}},{"$f":"VLOOKUP(P778,'Input MCC'!B:E,4,0)","v":{"$error":"#N/A"}},null,null,null,null,null,null,null,null,null,null,null,null,null,{"$error":"#DIV/0!"},0,0,null,"","","","","","","","","","",null,null,null,null,null,null,null,null,null,null,null,null,null,null,null,null,null,"ZWO"]
[null,null,null,null,null,null,null,null,null,null,null,null,null,null,null,null,{"$f":"VLOOKUP(P779,'Input MCC'!B:C,2,0)","v":{"$error":"#N/A"}},{"$f":"VLOOKUP(P779,'Input MCC'!B:E,4,0)","v":{"$error":"#N/A"}},null,null,null,null,null,null,null,null,null,null,null,null,null,{"$error":"#DIV/0!"},0,0,null,"","","","","","","","","","",null,null,null,null,null,null,null,null,null,null,null,null,null,null,null,null,null,"ZWO"]
[null,null,null,null,null,null,null,null,null,null,null,null,null,null,null,null,{"$f":"VLOOKUP(P780,'Input MCC'!B:C,2,0)","v":{"$error":"#N/A"}},{"$f":"VLOOKUP(P780,'Input MCC'!B:E,4,0)","v":{"$error":"#N/A"}},null,null,null,null,{"$f":"SUM(V780:V785)","v":0},null,null,null,null,null,null,null,null,{"$error":"#DIV/0!"},0,0,null,"","","","","","","","","","",null,null,null,null,null,null,null,null,null,null,null,null,null,null,null,null,null,"ZWO"]
[null,null,null,null,null,null,null,null,null,null,null,null,null,null,null,null,{"$f":"VLOOKUP(P781,'Input MCC'!B:C,2,0)","v":{"$error":"#N/A"}},{"$f":"VLOOKUP(P781,'Input MCC'!B:E,4,0)","v":{"$error":"#N/A"}},null,null,null,null,null,null,null,null,null,null,null,null,null,{"$error":"#DIV/0!"},0,0,null,"","","","","","","","","","",null,null,null,null,null,null,null,null,null,null,null,null,null,null,null,null,null,"ZWO"]
[null,null,null,null,null,null,null,null,null,null,null,null,null,null,null,null,{"$f":"VLOOKUP(P782,'Input MCC'!B:C,2,0)","v":{"$error":"#N/A"}},{"$f":"VLOOKUP(P782,'Input MCC'!B:E,4,0)","v":{"$error":"#N/A"}},null,null,null,null,null,null,null,null,null,null,null,null,null,{"$error":"#DIV/0!"},0,0,null,"","","","","","","","","","",null,null,null,null,null,null,null,null,null,null,null,null,null,null,null,null,null,"ZWO"]
[null,null,null,null,null,null,null,null,null,null,null,null,null,null,null,null,{"$f":"VLOOKUP(P783,'Input MCC'!B:C,2,0)","v":{"$error":"#N/A"}},{"$f":"VLOOKUP(P783,'Input MCC'!B:E,4,0)","v":{"$error":"#N/A"}},null,null,null,null,null,null,null,null,null,null,null,null,null,{"$error":"#DIV/0!"},0,0,null,"","","","","","","","","","",null,null,null,null,null,null,null,null,null,null,null,null,null,null,null,null,null,"ZWO"]
[null,null,null,null,null,null,null,null,null,null,null,null,null,null,null,null,{"$f":"VLOOKUP(P784,'Input MCC'!B:C,2,0)","v":{"$error":"#N/A"}},{"$f":"VLOOKUP(P784,'Input MCC'!B:E,4,0)","v":{"$error":"#N/A"}},null,null,null,null,null,null,null,null,null,null,null,null,null,{"$error":"#DIV/0!"},0,0,null,"","","","","","","","","","",null,null,null,null,null,null,null,null,null,null,null,null,null,null,null,null,null,"ZWO"]
[null,null,null,null,null,null,null,null,null,null,null,null,null,null,null,null,{"$f":"VLOOKUP(P785,'Input MCC'!B:C,2,0)","v":{"$error":"#N/A"}},{"$f":"VLOOKUP(P785,'Input MCC'!B:E,4,0)","v":{"$error":"#N/A"}},null,null,null,null,null,null,null,null,null,null,null,null,null,{"$error":"#DIV/0!"},0,0,null,"","","","","","","","","","",null,null,null,null,null,null,null,null,null,null,null,null,null,null,null,null,null,"ZWO"]
[null,null,null,null,null,null,null,null,null,null,null,null,null,null,null,null,{"$f":"VLOOKUP(P786,'Input MCC'!B:C,2,0)","v":{"$error":"#N/A"}},{"$f":"VLOOKUP(P786,'Input MCC'!B:E,4,0)","v":{"$error":"#N/A"}},null,null,null,null,{"$f":"SUM(V786:V791)","v":0},null,null,null,null,null,null,null,null,{"$error":"#DIV/0!"},0,0,null,"","","","","","","","","","",null,null,null,null,null,null,null,null,null,null,null,null,null,null,null,null,null,"ZWO"]
[null,null,null,null,null,null,null,null,null,null,null,null,null,null,null,null,{"$f":"VLOOKUP(P787,'Input MCC'!B:C,2,0)","v":{"$error":"#N/A"}},{"$f":"VLOOKUP(P787,'Input MCC'!B:E,4,0)","v":{"$error":"#N/A"}},null,null,null,null,null,null,null,null,null,null,null,null,null,{"$error":"#DIV/0!"},0,0,null,"","","","","","","","","","",null,null,null,null,null,null,null,null,null,null,null,null,null,null,null,null,null,"ZWO"]
[null,null,null,null,null,null,null,null,null,null,null,null,null,null,null,null,{"$f":"VLOOKUP(P788,'Input MCC'!B:C,2,0)","v":{"$error":"#N/A"}},{"$f":"VLOOKUP(P788,'Input MCC'!B:E,4,0)","v":{"$error":"#N/A"}},null,null,null,null,null,null,null,null,null,null,null,null,null,{"$error":"#DIV/0!"},0,0,null,"","","","","","","","","","",null,null,null,null,null,null,null,null,null,null,null,null,null,null,null,null,null,"ZWO"]
[null,null,null,null,null,null,null,null,null,null,null,null,null,null,null,null,{"$f":"VLOOKUP(P789,'Input MCC'!B:C,2,0)","v":{"$error":"#N/A"}},{"$f":"VLOOKUP(P789,'Input MCC'!B:E,4,0)","v":{"$error":"#N/A"}},null,null,null,null,null,null,null,null,null,null,null,null,null,{"$error":"#DIV/0!"},0,0,null,"","","","","","","","","","",null,null,null,null,null,null,null,null,null,null,null,null,null,null,null,null,null,"ZWO"]
[null,null,null,null,null,null,null,null,null,null,null,null,null,null,null,null,{"$f":"VLOOKUP(P790,'Input MCC'!B:C,2,0)","v":{"$error":"#N/A"}},{"$f":"VLOOKUP(P790,'Input MCC'!B:E,4,0)","v":{"$error":"#N/A"}},null,null,null,null,null,null,null,null,null,null,null,null,null,{"$error":"#DIV/0!"},0,0,null,"","","","","","","","","","",null,null,null,null,null,null,null,null,null,null,null,null,null,null,null,null,null,"ZWO"]
[null,null,null,null,null,null,null,null,null,null,null,null,null,null,null,null,{"$f":"VLOOKUP(P791,'Input MCC'!B:C,2,0)","v":{"$error":"#N/A"}},{"$f":"VLOOKUP(P791,'Input MCC'!B:E,4,0)","v":{"$error":"#N/A"}},null,null,null,null,null,null,null,null,null,null,null,null,null,{"$error":"#DIV/0!"},0,0,null,"","","","","","","","","","",null,null,null,null,null,null,null,null,null,null,null,null,null,null,null,null,null,"ZWO"]
[null,null,null,null,null,null,null,null,null,null,null,null,null,null,null,null,{"$f":"VLOOKUP(P792,'Input MCC'!B:C,2,0)","v":{"$error":"#N/A"}},{"$f":"VLOOKUP(P792,'Input MCC'!B:E,4,0)","v":{"$error":"#N/A"}},null,null,null,null,{"$f":"SUM(V792:V797)","v":0},null,null,null,null,null,null,null,null,{"$error":"#DIV/0!"},0,0,null,"","","","","","","","","","",null,null,null,null,null,null,null,null,null,null,null,null,null,null,null,null,null,"ZWO"]
[null,null,null,null,null,null,null,null,null,null,null,null,null,null,null,null,{"$f":"VLOOKUP(P793,'Input MCC'!B:C,2,0)","v":{"$error":"#N/A"}},{"$f":"VLOOKUP(P793,'Input MCC'!B:E,4,0)","v":{"$error":"#N/A"}},null,null,null,null,null,null,null,null,null,null,null,null,null,{"$error":"#DIV/0!"},0,0,null,"","","","","","","","","","",null,null,null,null,null,null,null,null,null,null,null,null,null,null,null,null,null,"ZWO"]
[null,null,null,null,null,null,null,null,null,null,null,null,null,null,null,null,{"$f":"VLOOKUP(P794,'Input MCC'!B:C,2,0)","v":{"$error":"#N/A"}},{"$f":"VLOOKUP(P794,'Input MCC'!B:E,4,0)","v":{"$error":"#N/A"}},null,null,null,null,null,null,null,null,null,null,null,null,null,{"$error":"#DIV/0!"},0,0,null,"","","","","","","","","","",null,null,null,null,null,null,null,null,null,null,null,null,null,null,null,null,null,"ZWO"]
[null,null,null,null,null,null,null,null,null,null,null,null,null,null,null,null,{"$f":"VLOOKUP(P795,'Input MCC'!B:C,2,0)","v":{"$error":"#N/A"}},{"$f":"VLOOKUP(P795,'Input MCC'!B:E,4,0)","v":{"$error":"#N/A"}},null,null,null,null,null,null,null,null,null,null,null,null,null,{"$error":"#DIV/0!"},0,0,null,"","","","","","","","","","",null,null,null,null,null,null,null,null,null,null,null,null,null,null,null,null,null,"ZWO"]
[null,null,null,null,null,null,null,null,null,null,null,null,null,null,null,null,{"$f":"VLOOKUP(P796,'Input MCC'!B:C,2,0)","v":{"$error":"#N/A"}},{"$f":"VLOOKUP(P796,'Input MCC'!B:E,4,0)","v":{"$error":"#N/A"}},null,null,null,null,null,null,null,null,null,null,null,null,null,{"$error":"#DIV/0!"},0,0,null,"","","","","","","","","","",null,null,null,null,null,null,null,null,null,null,null,null,null,null,null,null,null,"ZWO"]
[null,null,null,null,null,null,null,null,null,null,null,null,null,null,null,null,{"$f":"VLOOKUP(P797,'Input MCC'!B:C,2,0)","v":{"$error":"#N/A"}},{"$f":"VLOOKUP(P797,'Input MCC'!B:E,4,0)","v":{"$error":"#N/A"}},null,null,null,null,null,null,null,null,null,null,null,null,null,{"$error":"#DIV/0!"},0,0,null,"","","","","","","","","","",null,null,null,null,null,null,null,null,null,null,null,null,null,null,null,null,null,"ZWO"]
[null,null,null,null,null,null,null,null,null,null,null,null,null,null,null,null,{"$f":"VLOOKUP(P798,'Input MCC'!B:C,2,0)","v":{"$error":"#N/A"}},{"$f":"VLOOKUP(P798,'Input MCC'!B:E,4,0)","v":{"$error":"#N/A"}},null,null,null,null,{"$f":"SUM(V798:V803)","v":0},null,null,null,null,null,null,null,null,{"$error":"#DIV/0!"},0,0,null,"","","","","","","","","","",null,null,null,null,null,null,null,null,null,null,null,null,null,null,null,null,null,"ZWO"]
[null,null,null,null,null,null,null,null,null,null,null,null,null,null,null,null,{"$f":"VLOOKUP(P799,'Input MCC'!B:C,2,0)","v":{"$error":"#N/A"}},{"$f":"VLOOKUP(P799,'Input MCC'!B:E,4,0)","v":{"$error":"#N/A"}},null,null,null,null,null,null,null,null,null,null,null,null,null,{"$error":"#DIV/0!"},0,0,null,"","","","","","","","","","",null,null,null,null,null,null,null,null,null,null,null,null,null,null,null,null,null,"ZWO"]
[null,null,null,null,null,null,null,null,null,null,null,null,null,null,null,null,{"$f":"VLOOKUP(P800,'Input MCC'!B:C,2,0)","v":{"$error":"#N/A"}},{"$f":"VLOOKUP(P800,'Input MCC'!B:E,4,0)","v":{"$error":"#N/A"}},null,null,null,null,null,null,null,null,null,null,null,null,null,{"$error":"#DIV/0!"},0,0,null,"","","","","","","","","","",null,null,null,null,null,null,null,null,null,null,null,null,null,null,null,null,null,"ZWO"]
[null,null,null,null,null,null,null,null,null,null,null,null,null,null,null,null,{"$f":"VLOOKUP(P801,'Input MCC'!B:C,2,0)","v":{"$error":"#N/A"}},{"$f":"VLOOKUP(P801,'Input MCC'!B:E,4,0)","v":{"$error":"#N/A"}},null,null,null,null,null,null,null,null,null,null,null,null,null,{"$error":"#DIV/0!"},0,0,null,"","","","","","","","","","",null,null,null,null,null,null,null,null,null,null,null,null,null,null,null,null,null,"ZWO"]
[null,null,null,null,null,null,null,null,null,null,null,null,null,null,null,null,{"$f":"VLOOKUP(P802,'Input MCC'!B:C,2,0)","v":{"$error":"#N/A"}},{"$f":"VLOOKUP(P802,'Input MCC'!B:E,4,0)","v":{"$error":"#N/A"}},null,null,null,null,null,null,null,null,null,null,null,null,null,{"$error":"#DIV/0!"},0,0,null,"","","","","","","","","","",null,null,null,null,null,null,null,null,null,null,null,null,null,null,null,null,null,"ZWO"]
[null,null,null,null,null,null,null,null,null,null,null,null,null,null,null,null,{"$f":"VLOOKUP(P803,'Input MCC'!B:C,2,0)","v":{"$error":"#N/A"}},{"$f":"VLOOKUP(P803,'Input MCC'!B:E,4,0)","v":{"$error":"#N/A"}},null,null,null,null,null,null,null,null,null,null,null,null,null,{"$error":"#DIV/0!"},0,0,null,"","","","","","","","","","",null,null,null,null,null,null,null,null,null,null,null,null,null,null,null,null,null,"ZWO"]
[null,null,null,null,null,null,null,null,null,null,null,null,null,null,null,null,{"$f":"VLOOKUP(P804,'Input MCC'!B:C,2,0)","v":{"$error":"#N/A"}},{"$f":"VLOOKUP(P804,'Input MCC'!B:E,4,0)","v":{"$error":"#N/A"}},null,null,null,null,{"$f":"SUM(V804:V809)","v":0},null,null,null,null,null,null,null,null,{"$error":"#DIV/0!"},0,0,null,"","","","","","","","","","",null,null,null,null,null,null,null,null,null,null,null,null,null,null,null,null,null,"ZWO"]
[null,null,null,null,null,null,null,null,null,null,null,null,null,null,null,null,{"$f":"VLOOKUP(P805,'Input MCC'!B:C,2,0)","v":{"$error":"#N/A"}},{"$f":"VLOOKUP(P805,'Input MCC'!B:E,4,0)","v":{"$error":"#N/A"}},null,null,null,null,null,null,null,null,null,null,null,null,null,{"$error":"#DIV/0!"},0,0,null,"","","","","","","","","","",null,null,null,null,null,null,null,null,null,null,null,null,null,null,null,null,null,"ZWO"]
[null,null,null,null,null,null,null,null,null,null,null,null,null,null,null,null,{"$f":"VLOOKUP(P806,'Input MCC'!B:C,2,0)","v":{"$error":"#N/A"}},{"$f":"VLOOKUP(P806,'Input MCC'!B:E,4,0)","v":{"$error":"#N/A"}},null,null,null,null,null,null,null,null,null,null,null,null,null,{"$error":"#DIV/0!"},0,0,null,"","","","","","","","","","",null,null,null,null,null,null,null,null,null,null,null,null,null,null,null,null,null,"ZWO"]
[null,null,null,null,null,null,null,null,null,null,null,null,null,null,null,null,{"$f":"VLOOKUP(P807,'Input MCC'!B:C,2,0)","v":{"$error":"#N/A"}},{"$f":"VLOOKUP(P807,'Input MCC'!B:E,4,0)","v":{"$error":"#N/A"}},null,null,null,null,null,null,null,null,null,null,null,null,null,{"$error":"#DIV/0!"},0,0,null,"","","","","","","","","","",null,null,null,null,null,null,null,null,null,null,null,null,null,null,null,null,null,"ZWO"]
[null,null,null,null,null,null,null,null,null,null,null,null,null,null,null,null,{"$f":"VLOOKUP(P808,'Input MCC'!B:C,2,0)","v":{"$error":"#N/A"}},{"$f":"VLOOKUP(P808,'Input MCC'!B:E,4,0)","v":{"$error":"#N/A"}},null,null,null,null,null,null,null,null,null,null,null,null,null,{"$error":"#DIV/0!"},0,0,null,"","","","","","","","","","",null,null,null,null,null,null,null,null,null,null,null,null,null,null,null,null,null,"ZWO"]
[null,null,null,null,null,null,null,null,null,null,null,null,null,null,null,null,{"$f":"VLOOKUP(P809,'Input MCC'!B:C,2,0)","v":{"$error":"#N/A"}},{"$f":"VLOOKUP(P809,'Input MCC'!B:E,4,0)","v":{"$error":"#N/A"}},null,null,null,null,null,null,null,null,null,null,null,null,null,{"$error":"#DIV/0!"},0,0,null,"","","","","","","","","","",null,null,null,null,null,null,null,null,null,null,null,null,null,null,null,null,null,"ZWO"]
[null,null,null,null,null,null,null,null,null,null,null,null,null,null,null,null,{"$f":"VLOOKUP(P810,'Input MCC'!B:C,2,0)","v":{"$error":"#N/A"}},{"$f":"VLOOKUP(P810,'Input MCC'!B:E,4,0)","v":{"$error":"#N/A"}},null,null,null,null,{"$f":"SUM(V810:V815)","v":0},null,null,null,null,null,null,null,null,{"$error":"#DIV/0!"},0,0,null,"","","","","","","","","","",null,null,null,null,null,null,null,null,null,null,null,null,null,null,null,null,null,"ZWO"]
[null,null,null,null,null,null,null,null,null,null,null,null,null,null,null,null,{"$f":"VLOOKUP(P811,'Input MCC'!B:C,2,0)","v":{"$error":"#N/A"}},{"$f":"VLOOKUP(P811,'Input MCC'!B:E,4,0)","v":{"$error":"#N/A"}},null,null,null,null,null,null,null,null,null,null,null,null,null,{"$error":"#DIV/0!"},0,0,null,"","","","","","","","","","",null,null,null,null,null,null,null,null,null,null,null,null,null,null,null,null,null,"ZWO"]
[null,null,null,null,null,null,null,null,null,null,null,null,null,null,null,null,{"$f":"VLOOKUP(P812,'Input MCC'!B:C,2,0)","v":{"$error":"#N/A"}},{"$f":"VLOOKUP(P812,'Input MCC'!B:E,4,0)","v":{"$error":"#N/A"}},null,null,null,null,null,null,null,null,null,null,null,null,null,{"$error":"#DIV/0!"},0,0,null,"","","","","","","","","","",null,null,null,null,null,null,null,null,null,null,null,null,null,null,null,null,null,"ZWO"]
[null,null,null,null,null,null,null,null,null,null,null,null,null,null,null,null,{"$f":"VLOOKUP(P813,'Input MCC'!B:C,2,0)","v":{"$error":"#N/A"}},{"$f":"VLOOKUP(P813,'Input MCC'!B:E,4,0)","v":{"$error":"#N/A"}},null,null,null,null,null,null,null,null,null,null,null,null,null,{"$error":"#DIV/0!"},0,0,null,"","","","","","","","","","",null,null,null,null,null,null,null,null,null,null,null,null,null,null,null,null,null,"ZWO"]
[null,null,null,null,null,null,null,null,null,null,null,null,null,null,null,null,{"$f":"VLOOKUP(P814,'Input MCC'!B:C,2,0)","v":{"$error":"#N/A"}},{"$f":"VLOOKUP(P814,'Input MCC'!B:E,4,0)","v":{"$error":"#N/A"}},null,null,null,null,null,null,null,null,null,null,null,null,null,{"$error":"#DIV/0!"},0,0,null,"","","","","","","","","","",null,null,null,null,null,null,null,null,null,null,null,null,null,null,null,null,null,"ZWO"]
[null,null,null,null,null,null,null,null,null,null,null,null,null,null,null,null,{"$f":"VLOOKUP(P815,'Input MCC'!B:C,2,0)","v":{"$error":"#N/A"}},{"$f":"VLOOKUP(P815,'Input MCC'!B:E,4,0)","v":{"$error":"#N/A"}},null,null,null,null,null,null,null,null,null,null,null,null,null,{"$error":"#DIV/0!"},0,0,null,"","","","","","","","","","",null,null,null,null,null,null,null,null,null,null,null,null,null,null,null,null,null,"ZWO"]
[null,null,null,null,null,null,null,null,null,null,null,null,null,null,null,null,{"$f":"VLOOKUP(P816,'Input MCC'!B:C,2,0)","v":{"$error":"#N/A"}},{"$f":"VLOOKUP(P816,'Input MCC'!B:E,4,0)","v":{"$error":"#N/A"}},null,null,null,null,{"$f":"SUM(V816:V821)","v":0},null,null,null,null,null,null,null,null,{"$error":"#DIV/0!"},0,0,null,"","","","","","","","","","",null,null,null,null,null,null,null,null,null,null,null,null,null,null,null,null,null,"ZWO"]
[null,null,null,null,null,null,null,null,null,null,null,null,null,null,null,null,{"$f":"VLOOKUP(P817,'Input MCC'!B:C,2,0)","v":{"$error":"#N/A"}},{"$f":"VLOOKUP(P817,'Input MCC'!B:E,4,0)","v":{"$error":"#N/A"}},null,null,null,null,null,null,null,null,null,null,null,null,null,{"$error":"#DIV/0!"},0,0,null,"","","","","","","","","","",null,null,null,null,null,null,null,null,null,null,null,null,null,null,null,null,null,"ZWO"]
[null,null,null,null,null,null,null,null,null,null,null,null,null,null,null,null,{"$f":"VLOOKUP(P818,'Input MCC'!B:C,2,0)","v":{"$error":"#N/A"}},{"$f":"VLOOKUP(P818,'Input MCC'!B:E,4,0)","v":{"$error":"#N/A"}},null,null,null,null,null,null,null,null,null,null,null,null,null,{"$error":"#DIV/0!"},0,0,null,"","","","","","","","","","",null,null,null,null,null,null,null,null,null,null,null,null,null,null,null,null,null,"ZWO"]
[null,null,null,null,null,null,null,null,null,null,null,null,null,null,null,null,{"$f":"VLOOKUP(P819,'Input MCC'!B:C,2,0)","v":{"$error":"#N/A"}},{"$f":"VLOOKUP(P819,'Input MCC'!B:E,4,0)","v":{"$error":"#N/A"}},null,null,null,null,null,null,null,null,null,null,null,null,null,{"$error":"#DIV/0!"},0,0,null,"","","","","","","","","","",null,null,null,null,null,null,null,null,null,null,null,null,null,null,null,null,null,"ZWO"]
[null,null,null,null,null,null,null,null,null,null,null,null,null,null,null,null,{"$f":"VLOOKUP(P820,'Input MCC'!B:C,2,0)","v":{"$error":"#N/A"}},{"$f":"VLOOKUP(P820,'Input MCC'!B:E,4,0)","v":{"$error":"#N/A"}},null,null,null,null,null,null,null,null,null,null,null,null,null,{"$error":"#DIV/0!"},0,0,null,"","","","","","","","","","",null,null,null,null,null,null,null,null,null,null,null,null,null,null,null,null,null,"ZWO"]
[null,null,null,null,null,null,null,null,null,null,null,null,null,null,null,null,{"$f":"VLOOKUP(P821,'Input MCC'!B:C,2,0)","v":{"$error":"#N/A"}},{"$f":"VLOOKUP(P821,'Input MCC'!B:E,4,0)","v":{"$error":"#N/A"}},null,null,null,null,null,null,null,null,null,null,null,null,null,{"$error":"#DIV/0!"},0,0,null,"","","","","","","","","","",null,null,null,null,null,null,null,null,null,null,null,null,null,null,null,null,null,"ZWO"]
[null,null,null,null,null,null,null,null,null,null,null,null,null,null,null,null,{"$f":"VLOOKUP(P822,'Input MCC'!B:C,2,0)","v":{"$error":"#N/A"}},{"$f":"VLOOKUP(P822,'Input MCC'!B:E,4,0)","v":{"$error":"#N/A"}},null,null,null,null,{"$f":"SUM(V822:V827)","v":0},null,null,null,null,null,null,null,null,{"$error":"#DIV/0!"},0,0,null,"","","","","","","","","","",null,null,null,null,null,null,null,null,null,null,null,null,null,null,null,null,null,"ZWO"]
[null,null,null,null,null,null,null,null,null,null,null,null,null,null,null,null,{"$f":"VLOOKUP(P823,'Input MCC'!B:C,2,0)","v":{"$error":"#N/A"}},{"$f":"VLOOKUP(P823,'Input MCC'!B:E,4,0)","v":{"$error":"#N/A"}},null,null,null,null,null,null,null,null,null,null,null,null,null,{"$error":"#DIV/0!"},0,0,null,"","","","","","","","","","",null,null,null,null,null,null,null,null,null,null,null,null,null,null,null,null,null,"ZWO"]
[null,null,null,null,null,null,null,null,null,null,null,null,null,null,null,null,{"$f":"VLOOKUP(P824,'Input MCC'!B:C,2,0)","v":{"$error":"#N/A"}},{"$f":"VLOOKUP(P824,'Input MCC'!B:E,4,0)","v":{"$error":"#N/A"}},null,null,null,null,null,null,null,null,null,null,null,null,null,{"$f":"AE824/AC824","v":{"$error":"#DIV/0!"}},{"$f":"V824*AC824","v":0},{"$f":"V824*AE824","v":0},null,{"$f":"IF(AI824 <> \"\",\n    IF(ISNUMBER(VALUE(LEFT(AI824, FIND(\"%\", AI824)-1))),\n        VALUE(LEFT(AI824, FIND(\"%\", AI824)-1)),\n        \"Invalid format\"),\n    \"\")","v":""},{"$f":"IF(AI824 <> \"\",\n    IF(ISNUMBER(VALUE(LEFT(AI824, FIND(\"%\", AI824)-1))) * ISNUMBER(FIND(\"%\", AI824 & \"wol\")) > 0,\n        TRIM(MID(AI824, FIND(\"%\", AI824)+1, FIND(\"/\", AI824 & \"/\")-FIND(\"%\", AI824)-1)),\n        \"Invalid format\"),\n    \"\")","v":""},{"$f":"IF(AI824 <> \"\",\n    IF(ISNUMBER(VALUE(MID(AI824, FIND(\"/\", AI824) + 1, FIND(\"%\", AI824, FIND(\"/\", AI824)) - FIND(\"/\", AI824) - 1))),\n        VALUE(MID(AI824, FIND(\"/\", AI824) + 1, FIND(\"%\", AI824, FIND(\"/\", AI824)) - FIND(\"/\", AI824) - 1)),\n        \"\"),\n    \"\")","v":""},{"$f":"IF(AI824 <> \"\",\n    IFERROR(TRIM(MID(AI824, FIND(\"%\", AI824, FIND(\"/\", AI824)+1)+2,\n        IFERROR(FIND(\"/\", AI824 & \"/\", FIND(\"/\", AI824)+1)-FIND(\"%\", AI824, FIND(\"/\", AI824)+1)-2, LEN(AI824)-FIND(\"%\", AI824, FIND(\"/\", AI824)+1)-1))),\n        \"\"),\n    \"\")","v":""},{"$f":"IF(AI824 <> \"\",\n    IF(ISNUMBER(VALUE(MID(AI824, FIND(\"/\", AI824, FIND(\"/\", AI824)+1) + 1, FIND(\"%\", AI824, FIND(\"/\", AI824, FIND(\"/\", AI824)+1)) - FIND(\"/\", AI824, FIND(\"/\", AI824)+1) - 1))),\n        VALUE(MID(AI824, FIND(\"/\", AI824, FIND(\"/\", AI824)+1) + 1, FIND(\"%\", AI824, FIND(\"/\", AI824, FIND(\"/\", AI824)+1)) - FIND(\"/\", AI824, FIND(\"/\", AI824)+1) - 1)),\n        \"\"),\n    \"\")","v":""},{"$f":"IF(AI824 <> \"\",\n    IFERROR(\n        TRIM(MID(AI824,\n            FIND(\"%\", AI824, FIND(\"%\", AI824, FIND(\"%\", AI824)+1)+1)+1,\n            FIND(\"/\", AI824 & \"/\", FIND(\"%\", AI824, FIND(\"%\", AI824, FIND(\"%\", AI824)+1)+1))-FIND(\"%\", AI824, FIND(\"%\", AI824, FIND(\"%\", AI824)+1)+1)-1)\n        ),\n        \"\"\n    ),\n    \"\"\n)","v":""},{"$f":"IF(AI824 <> \"\",\n    IF(ISNUMBER(VALUE(MID(AI824, FIND(\"/\", AI824, FIND(\"/\", AI824, FIND(\"/\", AI824)+1)+1) + 1, FIND(\"%\", AI824, FIND(\"/\", AI824, FIND(\"/\", AI824, FIND(\"/\", AI824)+1)+1)) - FIND(\"/\", AI824, FIND(\"/\", AI824, FIND(\"/\", AI824)+1)+1) - 1))),\n        VALUE(MID(AI824, FIND(\"/\", AI824, FIND(\"/\", AI824, FIND(\"/\", AI824)+1)+1) + 1, FIND(\"%\", AI824, FIND(\"/\", AI824, FIND(\"/\", AI824, FIND(\"/\", AI824)+1)+1)) - FIND(\"/\", AI824, FIND(\"/\", AI824, FIND(\"/\", AI824)+1)+1) - 1)),\n        \"\"),\n    \"\")","v":""},{"$f":"IF(AI824 <> \"\",\n    IFERROR(TRIM(MID(AI824, FIND(\"%\", AI824, FIND(\"/\", AI824, FIND(\"/\", AI824, FIND(\"/\", AI824)+1)+1)+1)+2,\n        IFERROR(FIND(\"/\", AI824, FIND(\"/\", AI824, FIND(\"/\", AI824, FIND(\"/\", AI824)+1)+1)+1)-FIND(\"%\", AI824, FIND(\"/\", AI824, FIND(\"/\", AI824, FIND(\"/\", AI824)+1)+1)+1)-2, LEN(AI824)-FIND(\"%\", AI824, FIND(\"/\", AI824, FIND(\"/\", AI824, FIND(\"/\", AI824)+1)+1)+1)-1))),\n        \"\"),\n    \"\")","v":""},{"$f":"IF(AI824 <> \"\",\n    IF(ISNUMBER(VALUE(MID(AI824, FIND(\"/\", AI824, FIND(\"/\", AI824, FIND(\"/\", AI824, FIND(\"/\", AI824)+1)+1)+1) + 1, FIND(\"%\", AI824, FIND(\"/\", AI824, FIND(\"/\", AI824, FIND(\"/\", AI824, FIND(\"/\", AI824)+1)+1)+1)) - FIND(\"/\", AI824, FIND(\"/\", AI824, FIND(\"/\", AI824, FIND(\"/\", AI824)+1)+1)+1) - 1))),\n        VALUE(MID(AI824, FIND(\"/\", AI824, FIND(\"/\", AI824, FIND(\"/\", AI824, FIND(\"/\", AI824)+1)+1)+1) + 1, FIND(\"%\", AI824, FIND(\"/\", AI824, FIND(\"/\", AI824, FIND(\"/\", AI824, FIND(\"/\", AI824)+1)+1)+1)) - FIND(\"/\", AI824, FIND(\"/\", AI824, FIND(\"/\", AI824, FIND(\"/\", AI824)+1)+1)+1) - 1)),\n        \"\"),\n    \"\")","v":""},{"$f":"IF(AI824 = \"\", \"\",\n    IFERROR(TRIM(\n        MID(\n            AI824,\n            FIND(\"%\", AI824, FIND(\"/\", AI824, FIND(\"/\", AI824, FIND(\"/\", AI824, FIND(\"/\", AI824)+1)+1)+1)+1) + 1,\n            FIND(\"/\", AI824 & \"/\", FIND(\"%\", AI824, FIND(\"/\", AI824, FIND(\"/\", AI824, FIND(\"/\", AI824, FIND(\"/\", AI824)+1)+1)+1)+1)) -\n            FIND(\"%\", AI824, FIND(\"/\", AI824, FIND(\"/\", AI824, FIND(\"/\", AI824, FIND(\"/\", AI824)+1)+1)+1)+1) - 1\n        )\n    ),\n    \"\")\n)","v":""},null,null,null,null,null,null,null,null,null,null,null,null,null,null,null,null,null,"ZWO"]
[null,null,null,null,null,null,null,null,null,null,null,null,null,null,null,null,{"$f":"VLOOKUP(P825,'Input MCC'!B:C,2,0)","v":{"$error":"#N/A"}},{"$f":"VLOOKUP(P825,'Input MCC'!B:E,4,0)","v":{"$error":"#N/A"}},null,null,null,null,null,null,null,null,null,null,null,null,null,{"$error":"#DIV/0!"},0,0,null,"","","","","","","","","","",null,null,null,null,null,null,null,null,null,null,null,null,null,null,null,null,null,"ZWO"]
[null,null,null,null,null,null,null,null,null,null,null,null,null,null,null,null,{"$f":"VLOOKUP(P826,'Input MCC'!B:C,2,0)","v":{"$error":"#N/A"}},{"$f":"VLOOKUP(P826,'Input MCC'!B:E,4,0)","v":{"$error":"#N/A"}},null,null,null,null,null,null,null,null,null,null,null,null,null,{"$error":"#DIV/0!"},0,0,null,"","","","","","","","","","",null,null,null,null,null,null,null,null,null,null,null,null,null,null,null,null,null,"ZWO"]
[null,null,null,null,null,null,null,null,null,null,null,null,null,null,null,null,{"$f":"VLOOKUP(P827,'Input MCC'!B:C,2,0)","v":{"$error":"#N/A"}},{"$f":"VLOOKUP(P827,'Input MCC'!B:E,4,0)","v":{"$error":"#N/A"}},null,null,null,null,null,null,null,null,null,null,null,null,null,{"$error":"#DIV/0!"},0,0,null,"","","","","","","","","","",null,null,null,null,null,null,null,null,null,null,null,null,null,null,null,null,null,"ZWO"]
[null,null,null,null,null,null,null,null,null,null,null,null,null,null,null,null,{"$f":"VLOOKUP(P828,'Input MCC'!B:C,2,0)","v":{"$error":"#N/A"}},{"$f":"VLOOKUP(P828,'Input MCC'!B:E,4,0)","v":{"$error":"#N/A"}},null,null,null,null,{"$f":"SUM(V828:V833)","v":0},null,null,null,null,null,null,null,null,{"$error":"#DIV/0!"},0,0,null,"","","","","","","","","","",null,null,null,null,null,null,null,null,null,null,null,null,null,null,null,null,null,"ZWO"]
[null,null,null,null,null,null,null,null,null,null,null,null,null,null,null,null,{"$f":"VLOOKUP(P829,'Input MCC'!B:C,2,0)","v":{"$error":"#N/A"}},{"$f":"VLOOKUP(P829,'Input MCC'!B:E,4,0)","v":{"$error":"#N/A"}},null,null,null,null,null,null,null,null,null,null,null,null,null,{"$error":"#DIV/0!"},0,0,null,"","","","","","","","","","",null,null,null,null,null,null,null,null,null,null,null,null,null,null,null,null,null,"ZWO"]
[null,null,null,null,null,null,null,null,null,null,null,null,null,null,null,null,{"$f":"VLOOKUP(P830,'Input MCC'!B:C,2,0)","v":{"$error":"#N/A"}},{"$f":"VLOOKUP(P830,'Input MCC'!B:E,4,0)","v":{"$error":"#N/A"}},null,null,null,null,null,null,null,null,null,null,null,null,null,{"$error":"#DIV/0!"},0,0,null,"","","","","","","","","","",null,null,null,null,null,null,null,null,null,null,null,null,null,null,null,null,null,"ZWO"]
[null,null,null,null,null,null,null,null,null,null,null,null,null,null,null,null,{"$f":"VLOOKUP(P831,'Input MCC'!B:C,2,0)","v":{"$error":"#N/A"}},{"$f":"VLOOKUP(P831,'Input MCC'!B:E,4,0)","v":{"$error":"#N/A"}},null,null,null,null,null,null,null,null,null,null,null,null,null,{"$error":"#DIV/0!"},0,0,null,"","","","","","","","","","",null,null,null,null,null,null,null,null,null,null,null,null,null,null,null,null,null,"ZWO"]
[null,null,null,null,null,null,null,null,null,null,null,null,null,null,null,null,{"$f":"VLOOKUP(P832,'Input MCC'!B:C,2,0)","v":{"$error":"#N/A"}},{"$f":"VLOOKUP(P832,'Input MCC'!B:E,4,0)","v":{"$error":"#N/A"}},null,null,null,null,null,null,null,null,null,null,null,null,null,{"$error":"#DIV/0!"},0,0,null,"","","","","","","","","","",null,null,null,null,null,null,null,null,null,null,null,null,null,null,null,null,null,"ZWO"]
[null,null,null,null,null,null,null,null,null,null,null,null,null,null,null,null,{"$f":"VLOOKUP(P833,'Input MCC'!B:C,2,0)","v":{"$error":"#N/A"}},{"$f":"VLOOKUP(P833,'Input MCC'!B:E,4,0)","v":{"$error":"#N/A"}},null,null,null,null,null,null,null,null,null,null,null,null,null,{"$error":"#DIV/0!"},0,0,null,"","","","","","","","","","",null,null,null,null,null,null,null,null,null,null,null,null,null,null,null,null,null,"ZWO"]
[null,null,null,null,null,null,null,null,null,null,null,null,null,null,null,null,{"$f":"VLOOKUP(P834,'Input MCC'!B:C,2,0)","v":{"$error":"#N/A"}},{"$f":"VLOOKUP(P834,'Input MCC'!B:E,4,0)","v":{"$error":"#N/A"}},null,null,null,null,{"$f":"SUM(V834:V839)","v":0},null,null,null,null,null,null,null,null,{"$error":"#DIV/0!"},0,0,null,"","","","","","","","","","",null,null,null,null,null,null,null,null,null,null,null,null,null,null,null,null,null,"ZWO"]
[null,null,null,null,null,null,null,null,null,null,null,null,null,null,null,null,{"$f":"VLOOKUP(P835,'Input MCC'!B:C,2,0)","v":{"$error":"#N/A"}},{"$f":"VLOOKUP(P835,'Input MCC'!B:E,4,0)","v":{"$error":"#N/A"}},null,null,null,null,null,null,null,null,null,null,null,null,null,{"$error":"#DIV/0!"},0,0,null,"","","","","","","","","","",null,null,null,null,null,null,null,null,null,null,null,null,null,null,null,null,null,"ZWO"]
[null,null,null,null,null,null,null,null,null,null,null,null,null,null,null,null,{"$f":"VLOOKUP(P836,'Input MCC'!B:C,2,0)","v":{"$error":"#N/A"}},{"$f":"VLOOKUP(P836,'Input MCC'!B:E,4,0)","v":{"$error":"#N/A"}},null,null,null,null,null,null,null,null,null,null,null,null,null,{"$error":"#DIV/0!"},0,0,null,"","","","","","","","","","",null,null,null,null,null,null,null,null,null,null,null,null,null,null,null,null,null,"ZWO"]
[null,null,null,null,null,null,null,null,null,null,null,null,null,null,null,null,{"$f":"VLOOKUP(P837,'Input MCC'!B:C,2,0)","v":{"$error":"#N/A"}},{"$f":"VLOOKUP(P837,'Input MCC'!B:E,4,0)","v":{"$error":"#N/A"}},null,null,null,null,null,null,null,null,null,null,null,null,null,{"$error":"#DIV/0!"},0,0,null,"","","","","","","","","","",null,null,null,null,null,null,null,null,null,null,null,null,null,null,null,null,null,"ZWO"]
[null,null,null,null,null,null,null,null,null,null,null,null,null,null,null,null,{"$f":"VLOOKUP(P838,'Input MCC'!B:C,2,0)","v":{"$error":"#N/A"}},{"$f":"VLOOKUP(P838,'Input MCC'!B:E,4,0)","v":{"$error":"#N/A"}},null,null,null,null,null,null,null,null,null,null,null,null,null,{"$error":"#DIV/0!"},0,0,null,"","","","","","","","","","",null,null,null,null,null,null,null,null,null,null,null,null,null,null,null,null,null,"ZWO"]
[null,null,null,null,null,null,null,null,null,null,null,null,null,null,null,null,{"$f":"VLOOKUP(P839,'Input MCC'!B:C,2,0)","v":{"$error":"#N/A"}},{"$f":"VLOOKUP(P839,'Input MCC'!B:E,4,0)","v":{"$error":"#N/A"}},null,null,null,null,null,null,null,null,null,null,null,null,null,{"$error":"#DIV/0!"},0,0,null,"","","","","","","","","","",null,null,null,null,null,null,null,null,null,null,null,null,null,null,null,null,null,"ZWO"]
[null,null,null,null,null,null,null,null,null,null,null,null,null,null,null,null,{"$f":"VLOOKUP(P840,'Input MCC'!B:C,2,0)","v":{"$error":"#N/A"}},{"$f":"VLOOKUP(P840,'Input MCC'!B:E,4,0)","v":{"$error":"#N/A"}},null,null,null,null,{"$f":"SUM(V840:V845)","v":0},null,null,null,null,null,null,null,null,{"$error":"#DIV/0!"},0,0,null,"","","","","","","","","","",null,null,null,null,null,null,null,null,null,null,null,null,null,null,null,null,null,"ZWO"]
[null,null,null,null,null,null,null,null,null,null,null,null,null,null,null,null,{"$f":"VLOOKUP(P841,'Input MCC'!B:C,2,0)","v":{"$error":"#N/A"}},{"$f":"VLOOKUP(P841,'Input MCC'!B:E,4,0)","v":{"$error":"#N/A"}},null,null,null,null,null,null,null,null,null,null,null,null,null,{"$error":"#DIV/0!"},0,0,null,"","","","","","","","","","",null,null,null,null,null,null,null,null,null,null,null,null,null,null,null,null,null,"ZWO"]
[null,null,null,null,null,null,null,null,null,null,null,null,null,null,null,null,{"$f":"VLOOKUP(P842,'Input MCC'!B:C,2,0)","v":{"$error":"#N/A"}},{"$f":"VLOOKUP(P842,'Input MCC'!B:E,4,0)","v":{"$error":"#N/A"}},null,null,null,null,null,null,null,null,null,null,null,null,null,{"$error":"#DIV/0!"},0,0,null,"","","","","","","","","","",null,null,null,null,null,null,null,null,null,null,null,null,null,null,null,null,null,"ZWO"]
[null,null,null,null,null,null,null,null,null,null,null,null,null,null,null,null,{"$f":"VLOOKUP(P843,'Input MCC'!B:C,2,0)","v":{"$error":"#N/A"}},{"$f":"VLOOKUP(P843,'Input MCC'!B:E,4,0)","v":{"$error":"#N/A"}},null,null,null,null,null,null,null,null,null,null,null,null,null,{"$error":"#DIV/0!"},0,0,null,"","","","","","","","","","",null,null,null,null,null,null,null,null,null,null,null,null,null,null,null,null,null,"ZWO"]
[null,null,null,null,null,null,null,null,null,null,null,null,null,null,null,null,{"$f":"VLOOKUP(P844,'Input MCC'!B:C,2,0)","v":{"$error":"#N/A"}},{"$f":"VLOOKUP(P844,'Input MCC'!B:E,4,0)","v":{"$error":"#N/A"}},null,null,null,null,null,null,null,null,null,null,null,null,null,{"$error":"#DIV/0!"},0,0,null,"","","","","","","","","","",null,null,null,null,null,null,null,null,null,null,null,null,null,null,null,null,null,"ZWO"]
[null,null,null,null,null,null,null,null,null,null,null,null,null,null,null,null,{"$f":"VLOOKUP(P845,'Input MCC'!B:C,2,0)","v":{"$error":"#N/A"}},{"$f":"VLOOKUP(P845,'Input MCC'!B:E,4,0)","v":{"$error":"#N/A"}},null,null,null,null,null,null,null,null,null,null,null,null,null,{"$error":"#DIV/0!"},0,0,null,"","","","","","","","","","",null,null,null,null,null,null,null,null,null,null,null,null,null,null,null,null,null,"ZWO"]
[null,null,null,null,null,null,null,null,null,null,null,null,null,null,null,null,{"$f":"VLOOKUP(P846,'Input MCC'!B:C,2,0)","v":{"$error":"#N/A"}},{"$f":"VLOOKUP(P846,'Input MCC'!B:E,4,0)","v":{"$error":"#N/A"}},null,null,null,null,{"$f":"SUM(V846:V851)","v":0},null,null,null,null,null,null,null,null,{"$error":"#DIV/0!"},0,0,null,"","","","","","","","","","",null,null,null,null,null,null,null,null,null,null,null,null,null,null,null,null,null,"ZWO"]
[null,null,null,null,null,null,null,null,null,null,null,null,null,null,null,null,{"$f":"VLOOKUP(P847,'Input MCC'!B:C,2,0)","v":{"$error":"#N/A"}},{"$f":"VLOOKUP(P847,'Input MCC'!B:E,4,0)","v":{"$error":"#N/A"}},null,null,null,null,null,null,null,null,null,null,null,null,null,{"$error":"#DIV/0!"},0,0,null,"","","","","","","","","","",null,null,null,null,null,null,null,null,null,null,null,null,null,null,null,null,null,"ZWO"]
[null,null,null,null,null,null,null,null,null,null,null,null,null,null,null,null,{"$f":"VLOOKUP(P848,'Input MCC'!B:C,2,0)","v":{"$error":"#N/A"}},{"$f":"VLOOKUP(P848,'Input MCC'!B:E,4,0)","v":{"$error":"#N/A"}},null,null,null,null,null,null,null,null,null,null,null,null,null,{"$error":"#DIV/0!"},0,0,null,"","","","","","","","","","",null,null,null,null,null,null,null,null,null,null,null,null,null,null,null,null,null,"ZWO"]
[null,null,null,null,null,null,null,null,null,null,null,null,null,null,null,null,{"$f":"VLOOKUP(P849,'Input MCC'!B:C,2,0)","v":{"$error":"#N/A"}},{"$f":"VLOOKUP(P849,'Input MCC'!B:E,4,0)","v":{"$error":"#N/A"}},null,null,null,null,null,null,null,null,null,null,null,null,null,{"$error":"#DIV/0!"},0,0,null,"","","","","","","","","","",null,null,null,null,null,null,null,null,null,null,null,null,null,null,null,null,null,"ZWO"]
[null,null,null,null,null,null,null,null,null,null,null,null,null,null,null,null,{"$f":"VLOOKUP(P850,'Input MCC'!B:C,2,0)","v":{"$error":"#N/A"}},{"$f":"VLOOKUP(P850,'Input MCC'!B:E,4,0)","v":{"$error":"#N/A"}},null,null,null,null,null,null,null,null,null,null,null,null,null,{"$error":"#DIV/0!"},0,0,null,"","","","","","","","","","",null,null,null,null,null,null,null,null,null,null,null,null,null,null,null,null,null,"ZWO"]
[null,null,null,null,null,null,null,null,null,null,null,null,null,null,null,null,{"$f":"VLOOKUP(P851,'Input MCC'!B:C,2,0)","v":{"$error":"#N/A"}},{"$f":"VLOOKUP(P851,'Input MCC'!B:E,4,0)","v":{"$error":"#N/A"}},null,null,null,null,null,null,null,null,null,null,null,null,null,{"$error":"#DIV/0!"},0,0,null,"","","","","","","","","","",null,null,null,null,null,null,null,null,null,null,null,null,null,null,null,null,null,"ZWO"]
[null,null,null,null,null,null,null,null,null,null,null,null,null,null,null,null,{"$f":"VLOOKUP(P852,'Input MCC'!B:C,2,0)","v":{"$error":"#N/A"}},{"$f":"VLOOKUP(P852,'Input MCC'!B:E,4,0)","v":{"$error":"#N/A"}},null,null,null,null,{"$f":"SUM(V852:V857)","v":0},null,null,null,null,null,null,null,null,{"$error":"#DIV/0!"},0,0,null,"","","","","","","","","","",null,null,null,null,null,null,null,null,null,null,null,null,null,null,null,null,null,"ZWO"]
[null,null,null,null,null,null,null,null,null,null,null,null,null,null,null,null,{"$f":"VLOOKUP(P853,'Input MCC'!B:C,2,0)","v":{"$error":"#N/A"}},{"$f":"VLOOKUP(P853,'Input MCC'!B:E,4,0)","v":{"$error":"#N/A"}},null,null,null,null,null,null,null,null,null,null,null,null,null,{"$error":"#DIV/0!"},0,0,null,"","","","","","","","","","",null,null,null,null,null,null,null,null,null,null,null,null,null,null,null,null,null,"ZWO"]
[null,null,null,null,null,null,null,null,null,null,null,null,null,null,null,null,{"$f":"VLOOKUP(P854,'Input MCC'!B:C,2,0)","v":{"$error":"#N/A"}},{"$f":"VLOOKUP(P854,'Input MCC'!B:E,4,0)","v":{"$error":"#N/A"}},null,null,null,null,null,null,null,null,null,null,null,null,null,{"$error":"#DIV/0!"},0,0,null,"","","","","","","","","","",null,null,null,null,null,null,null,null,null,null,null,null,null,null,null,null,null,"ZWO"]
[null,null,null,null,null,null,null,null,null,null,null,null,null,null,null,null,{"$f":"VLOOKUP(P855,'Input MCC'!B:C,2,0)","v":{"$error":"#N/A"}},{"$f":"VLOOKUP(P855,'Input MCC'!B:E,4,0)","v":{"$error":"#N/A"}},null,null,null,null,null,null,null,null,null,null,null,null,null,{"$error":"#DIV/0!"},0,0,null,"","","","","","","","","","",null,null,null,null,null,null,null,null,null,null,null,null,null,null,null,null,null,"ZWO"]
[null,null,null,null,null,null,null,null,null,null,null,null,null,null,null,null,{"$f":"VLOOKUP(P856,'Input MCC'!B:C,2,0)","v":{"$error":"#N/A"}},{"$f":"VLOOKUP(P856,'Input MCC'!B:E,4,0)","v":{"$error":"#N/A"}},null,null,null,null,null,null,null,null,null,null,null,null,null,{"$error":"#DIV/0!"},0,0,null,"","","","","","","","","","",null,null,null,null,null,null,null,null,null,null,null,null,null,null,null,null,null,"ZWO"]
[null,null,null,null,null,null,null,null,null,null,null,null,null,null,null,null,{"$f":"VLOOKUP(P857,'Input MCC'!B:C,2,0)","v":{"$error":"#N/A"}},{"$f":"VLOOKUP(P857,'Input MCC'!B:E,4,0)","v":{"$error":"#N/A"}},null,null,null,null,null,null,null,null,null,null,null,null,null,{"$error":"#DIV/0!"},0,0,null,"","","","","","","","","","",null,null,null,null,null,null,null,null,null,null,null,null,null,null,null,null,null,"ZWO"]
[null,null,null,null,null,null,null,null,null,null,null,null,null,null,null,null,{"$f":"VLOOKUP(P858,'Input MCC'!B:C,2,0)","v":{"$error":"#N/A"}},{"$f":"VLOOKUP(P858,'Input MCC'!B:E,4,0)","v":{"$error":"#N/A"}},null,null,null,null,{"$f":"SUM(V858:V863)","v":0},null,null,null,null,null,null,null,null,{"$error":"#DIV/0!"},0,0,null,"","","","","","","","","","",null,null,null,null,null,null,null,null,null,null,null,null,null,null,null,null,null,"ZWO"]
[null,null,null,null,null,null,null,null,null,null,null,null,null,null,null,null,{"$f":"VLOOKUP(P859,'Input MCC'!B:C,2,0)","v":{"$error":"#N/A"}},{"$f":"VLOOKUP(P859,'Input MCC'!B:E,4,0)","v":{"$error":"#N/A"}},null,null,null,null,null,null,null,null,null,null,null,null,null,{"$error":"#DIV/0!"},0,0,null,"","","","","","","","","","",null,null,null,null,null,null,null,null,null,null,null,null,null,null,null,null,null,"ZWO"]
[null,null,null,null,null,null,null,null,null,null,null,null,null,null,null,null,{"$f":"VLOOKUP(P860,'Input MCC'!B:C,2,0)","v":{"$error":"#N/A"}},{"$f":"VLOOKUP(P860,'Input MCC'!B:E,4,0)","v":{"$error":"#N/A"}},null,null,null,null,null,null,null,null,null,null,null,null,null,{"$error":"#DIV/0!"},0,0,null,"","","","","","","","","","",null,null,null,null,null,null,null,null,null,null,null,null,null,null,null,null,null,"ZWO"]
[null,null,null,null,null,null,null,null,null,null,null,null,null,null,null,null,{"$f":"VLOOKUP(P861,'Input MCC'!B:C,2,0)","v":{"$error":"#N/A"}},{"$f":"VLOOKUP(P861,'Input MCC'!B:E,4,0)","v":{"$error":"#N/A"}},null,null,null,null,null,null,null,null,null,null,null,null,null,{"$error":"#DIV/0!"},0,0,null,"","","","","","","","","","",null,null,null,null,null,null,null,null,null,null,null,null,null,null,null,null,null,"ZWO"]
[null,null,null,null,null,null,null,null,null,null,null,null,null,null,null,null,{"$f":"VLOOKUP(P862,'Input MCC'!B:C,2,0)","v":{"$error":"#N/A"}},{"$f":"VLOOKUP(P862,'Input MCC'!B:E,4,0)","v":{"$error":"#N/A"}},null,null,null,null,null,null,null,null,null,null,null,null,null,{"$error":"#DIV/0!"},0,0,null,"","","","","","","","","","",null,null,null,null,null,null,null,null,null,null,null,null,null,null,null,null,null,"ZWO"]
[null,null,null,null,null,null,null,null,null,null,null,null,null,null,null,null,{"$f":"VLOOKUP(P863,'Input MCC'!B:C,2,0)","v":{"$error":"#N/A"}},{"$f":"VLOOKUP(P863,'Input MCC'!B:E,4,0)","v":{"$error":"#N/A"}},null,null,null,null,null,null,null,null,null,null,null,null,null,{"$error":"#DIV/0!"},0,0,null,"","","","","","","","","","",null,null,null,null,null,null,null,null,null,null,null,null,null,null,null,null,null,"ZWO"]
[null,null,null,null,null,null,null,null,null,null,null,null,null,null,null,null,{"$f":"VLOOKUP(P864,'Input MCC'!B:C,2,0)","v":{"$error":"#N/A"}},{"$f":"VLOOKUP(P864,'Input MCC'!B:E,4,0)","v":{"$error":"#N/A"}},null,null,null,null,{"$f":"SUM(V864:V869)","v":0},null,null,null,null,null,null,null,null,{"$error":"#DIV/0!"},0,0,null,"","","","","","","","","","",null,null,null,null,null,null,null,null,null,null,null,null,null,null,null,null,null,"ZWO"]
[null,null,null,null,null,null,null,null,null,null,null,null,null,null,null,null,{"$f":"VLOOKUP(P865,'Input MCC'!B:C,2,0)","v":{"$error":"#N/A"}},{"$f":"VLOOKUP(P865,'Input MCC'!B:E,4,0)","v":{"$error":"#N/A"}},null,null,null,null,null,null,null,null,null,null,null,null,null,{"$error":"#DIV/0!"},0,0,null,"","","","","","","","","","",null,null,null,null,null,null,null,null,null,null,null,null,null,null,null,null,null,"ZWO"]
[null,null,null,null,null,null,null,null,null,null,null,null,null,null,null,null,{"$f":"VLOOKUP(P866,'Input MCC'!B:C,2,0)","v":{"$error":"#N/A"}},{"$f":"VLOOKUP(P866,'Input MCC'!B:E,4,0)","v":{"$error":"#N/A"}},null,null,null,null,null,null,null,null,null,null,null,null,null,{"$error":"#DIV/0!"},0,0,null,"","","","","","","","","","",null,null,null,null,null,null,null,null,null,null,null,null,null,null,null,null,null,"ZWO"]
[null,null,null,null,null,null,null,null,null,null,null,null,null,null,null,null,{"$f":"VLOOKUP(P867,'Input MCC'!B:C,2,0)","v":{"$error":"#N/A"}},{"$f":"VLOOKUP(P867,'Input MCC'!B:E,4,0)","v":{"$error":"#N/A"}},null,null,null,null,null,null,null,null,null,null,null,null,null,{"$error":"#DIV/0!"},0,0,null,"","","","","","","","","","",null,null,null,null,null,null,null,null,null,null,null,null,null,null,null,null,null,"ZWO"]
[null,null,null,null,null,null,null,null,null,null,null,null,null,null,null,null,{"$f":"VLOOKUP(P868,'Input MCC'!B:C,2,0)","v":{"$error":"#N/A"}},{"$f":"VLOOKUP(P868,'Input MCC'!B:E,4,0)","v":{"$error":"#N/A"}},null,null,null,null,null,null,null,null,null,null,null,null,null,{"$error":"#DIV/0!"},0,0,null,"","","","","","","","","","",null,null,null,null,null,null,null,null,null,null,null,null,null,null,null,null,null,"ZWO"]
[null,null,null,null,null,null,null,null,null,null,null,null,null,null,null,null,{"$f":"VLOOKUP(P869,'Input MCC'!B:C,2,0)","v":{"$error":"#N/A"}},{"$f":"VLOOKUP(P869,'Input MCC'!B:E,4,0)","v":{"$error":"#N/A"}},null,null,null,null,null,null,null,null,null,null,null,null,null,{"$error":"#DIV/0!"},0,0,null,"","","","","","","","","","",null,null,null,null,null,null,null,null,null,null,null,null,null,null,null,null,null,"ZWO"]
[null,null,null,null,null,null,null,null,null,null,null,null,null,null,null,null,{"$f":"VLOOKUP(P870,'Input MCC'!B:C,2,0)","v":{"$error":"#N/A"}},{"$f":"VLOOKUP(P870,'Input MCC'!B:E,4,0)","v":{"$error":"#N/A"}},null,null,null,null,{"$f":"SUM(V870:V875)","v":0},null,null,null,null,null,null,null,null,{"$error":"#DIV/0!"},0,0,null,"","","","","","","","","","",null,null,null,null,null,null,null,null,null,null,null,null,null,null,null,null,null,"ZWO"]
[null,null,null,null,null,null,null,null,null,null,null,null,null,null,null,null,{"$f":"VLOOKUP(P871,'Input MCC'!B:C,2,0)","v":{"$error":"#N/A"}},{"$f":"VLOOKUP(P871,'Input MCC'!B:E,4,0)","v":{"$error":"#N/A"}},null,null,null,null,null,null,null,null,null,null,null,null,null,{"$error":"#DIV/0!"},0,0,null,"","","","","","","","","","",null,null,null,null,null,null,null,null,null,null,null,null,null,null,null,null,null,"ZWO"]
[null,null,null,null,null,null,null,null,null,null,null,null,null,null,null,null,{"$f":"VLOOKUP(P872,'Input MCC'!B:C,2,0)","v":{"$error":"#N/A"}},{"$f":"VLOOKUP(P872,'Input MCC'!B:E,4,0)","v":{"$error":"#N/A"}},null,null,null,null,null,null,null,null,null,null,null,null,null,{"$error":"#DIV/0!"},0,0,null,"","","","","","","","","","",null,null,null,null,null,null,null,null,null,null,null,null,null,null,null,null,null,"ZWO"]
[null,null,null,null,null,null,null,null,null,null,null,null,null,null,null,null,{"$f":"VLOOKUP(P873,'Input MCC'!B:C,2,0)","v":{"$error":"#N/A"}},{"$f":"VLOOKUP(P873,'Input MCC'!B:E,4,0)","v":{"$error":"#N/A"}},null,null,null,null,null,null,null,null,null,null,null,null,null,{"$error":"#DIV/0!"},0,0,null,"","","","","","","","","","",null,null,null,null,null,null,null,null,null,null,null,null,null,null,null,null,null,"ZWO"]
[null,null,null,null,null,null,null,null,null,null,null,null,null,null,null,null,{"$f":"VLOOKUP(P874,'Input MCC'!B:C,2,0)","v":{"$error":"#N/A"}},{"$f":"VLOOKUP(P874,'Input MCC'!B:E,4,0)","v":{"$error":"#N/A"}},null,null,null,null,null,null,null,null,null,null,null,null,null,{"$error":"#DIV/0!"},0,0,null,"","","","","","","","","","",null,null,null,null,null,null,null,null,null,null,null,null,null,null,null,null,null,"ZWO"]
[null,null,null,null,null,null,null,null,null,null,null,null,null,null,null,null,{"$f":"VLOOKUP(P875,'Input MCC'!B:C,2,0)","v":{"$error":"#N/A"}},{"$f":"VLOOKUP(P875,'Input MCC'!B:E,4,0)","v":{"$error":"#N/A"}},null,null,null,null,null,null,null,null,null,null,null,null,null,{"$error":"#DIV/0!"},0,0,null,"","","","","","","","","","",null,null,null,null,null,null,null,null,null,null,null,null,null,null,null,null,null,"ZWO"]
[null,null,null,null,null,null,null,null,null,null,null,null,null,null,null,null,{"$f":"VLOOKUP(P876,'Input MCC'!B:C,2,0)","v":{"$error":"#N/A"}},{"$f":"VLOOKUP(P876,'Input MCC'!B:E,4,0)","v":{"$error":"#N/A"}},null,null,null,null,{"$f":"SUM(V876:V881)","v":0},null,null,null,null,null,null,null,null,{"$error":"#DIV/0!"},0,0,null,"","","","","","","","","","",null,null,null,null,null,null,null,null,null,null,null,null,null,null,null,null,null,"ZWO"]
[null,null,null,null,null,null,null,null,null,null,null,null,null,null,null,null,{"$f":"VLOOKUP(P877,'Input MCC'!B:C,2,0)","v":{"$error":"#N/A"}},{"$f":"VLOOKUP(P877,'Input MCC'!B:E,4,0)","v":{"$error":"#N/A"}},null,null,null,null,null,null,null,null,null,null,null,null,null,{"$error":"#DIV/0!"},0,0,null,"","","","","","","","","","",null,null,null,null,null,null,null,null,null,null,null,null,null,null,null,null,null,"ZWO"]
[null,null,null,null,null,null,null,null,null,null,null,null,null,null,null,null,{"$f":"VLOOKUP(P878,'Input MCC'!B:C,2,0)","v":{"$error":"#N/A"}},{"$f":"VLOOKUP(P878,'Input MCC'!B:E,4,0)","v":{"$error":"#N/A"}},null,null,null,null,null,null,null,null,null,null,null,null,null,{"$error":"#DIV/0!"},0,0,null,"","","","","","","","","","",null,null,null,null,null,null,null,null,null,null,null,null,null,null,null,null,null,"ZWO"]
[null,null,null,null,null,null,null,null,null,null,null,null,null,null,null,null,{"$f":"VLOOKUP(P879,'Input MCC'!B:C,2,0)","v":{"$error":"#N/A"}},{"$f":"VLOOKUP(P879,'Input MCC'!B:E,4,0)","v":{"$error":"#N/A"}},null,null,null,null,null,null,null,null,null,null,null,null,null,{"$error":"#DIV/0!"},0,0,null,"","","","","","","","","","",null,null,null,null,null,null,null,null,null,null,null,null,null,null,null,null,null,"ZWO"]
[null,null,null,null,null,null,null,null,null,null,null,null,null,null,null,null,{"$f":"VLOOKUP(P880,'Input MCC'!B:C,2,0)","v":{"$error":"#N/A"}},{"$f":"VLOOKUP(P880,'Input MCC'!B:E,4,0)","v":{"$error":"#N/A"}},null,null,null,null,null,null,null,null,null,null,null,null,null,{"$error":"#DIV/0!"},0,0,null,"","","","","","","","","","",null,null,null,null,null,null,null,null,null,null,null,null,null,null,null,null,null,"ZWO"]
[null,null,null,null,null,null,null,null,null,null,null,null,null,null,null,null,{"$f":"VLOOKUP(P881,'Input MCC'!B:C,2,0)","v":{"$error":"#N/A"}},{"$f":"VLOOKUP(P881,'Input MCC'!B:E,4,0)","v":{"$error":"#N/A"}},null,null,null,null,null,null,null,null,null,null,null,null,null,{"$error":"#DIV/0!"},0,0,null,"","","","","","","","","","",null,null,null,null,null,null,null,null,null,null,null,null,null,null,null,null,null,"ZWO"]
[null,null,null,null,null,null,null,null,null,null,null,null,null,null,null,null,{"$f":"VLOOKUP(P882,'Input MCC'!B:C,2,0)","v":{"$error":"#N/A"}},{"$f":"VLOOKUP(P882,'Input MCC'!B:E,4,0)","v":{"$error":"#N/A"}},null,null,null,null,{"$f":"SUM(V882:V887)","v":0},null,null,null,null,null,null,null,null,{"$error":"#DIV/0!"},0,0,null,"","","","","","","","","","",null,null,null,null,null,null,null,null,null,null,null,null,null,null,null,null,null,"ZWO"]
[null,null,null,null,null,null,null,null,null,null,null,null,null,null,null,null,{"$f":"VLOOKUP(P883,'Input MCC'!B:C,2,0)","v":{"$error":"#N/A"}},{"$f":"VLOOKUP(P883,'Input MCC'!B:E,4,0)","v":{"$error":"#N/A"}},null,null,null,null,null,null,null,null,null,null,null,null,null,{"$error":"#DIV/0!"},0,0,null,"","","","","","","","","","",null,null,null,null,null,null,null,null,null,null,null,null,null,null,null,null,null,"ZWO"]
[null,null,null,null,null,null,null,null,null,null,null,null,null,null,null,null,{"$f":"VLOOKUP(P884,'Input MCC'!B:C,2,0)","v":{"$error":"#N/A"}},{"$f":"VLOOKUP(P884,'Input MCC'!B:E,4,0)","v":{"$error":"#N/A"}},null,null,null,null,null,null,null,null,null,null,null,null,null,{"$error":"#DIV/0!"},0,0,null,"","","","","","","","","","",null,null,null,null,null,null,null,null,null,null,null,null,null,null,null,null,null,"ZWO"]
[null,null,null,null,null,null,null,null,null,null,null,null,null,null,null,null,{"$f":"VLOOKUP(P885,'Input MCC'!B:C,2,0)","v":{"$error":"#N/A"}},{"$f":"VLOOKUP(P885,'Input MCC'!B:E,4,0)","v":{"$error":"#N/A"}},null,null,null,null,null,null,null,null,null,null,null,null,null,{"$error":"#DIV/0!"},0,0,null,"","","","","","","","","","",null,null,null,null,null,null,null,null,null,null,null,null,null,null,null,null,null,"ZWO"]
[null,null,null,null,null,null,null,null,null,null,null,null,null,null,null,null,{"$f":"VLOOKUP(P886,'Input MCC'!B:C,2,0)","v":{"$error":"#N/A"}},{"$f":"VLOOKUP(P886,'Input MCC'!B:E,4,0)","v":{"$error":"#N/A"}},null,null,null,null,null,null,null,null,null,null,null,null,null,{"$error":"#DIV/0!"},0,0,null,"","","","","","","","","","",null,null,null,null,null,null,null,null,null,null,null,null,null,null,null,null,null,"ZWO"]
[null,null,null,null,null,null,null,null,null,null,null,null,null,null,null,null,{"$f":"VLOOKUP(P887,'Input MCC'!B:C,2,0)","v":{"$error":"#N/A"}},{"$f":"VLOOKUP(P887,'Input MCC'!B:E,4,0)","v":{"$error":"#N/A"}},null,null,null,null,null,null,null,null,null,null,null,null,null,{"$error":"#DIV/0!"},0,0,null,"","","","","","","","","","",null,null,null,null,null,null,null,null,null,null,null,null,null,null,null,null,null,"ZWO"]
[null,null,null,null,null,null,null,null,null,null,null,null,null,null,null,null,{"$f":"VLOOKUP(P888,'Input MCC'!B:C,2,0)","v":{"$error":"#N/A"}},{"$f":"VLOOKUP(P888,'Input MCC'!B:E,4,0)","v":{"$error":"#N/A"}},null,null,null,null,{"$f":"SUM(V888:V893)","v":0},null,null,null,null,null,null,null,null,{"$f":"AE888/AC888","v":{"$error":"#DIV/0!"}},{"$f":"V888*AC888","v":0},{"$f":"V888*AE888","v":0},null,{"$f":"IF(AI888 <> \"\",\n    IF(ISNUMBER(VALUE(LEFT(AI888, FIND(\"%\", AI888)-1))),\n        VALUE(LEFT(AI888, FIND(\"%\", AI888)-1)),\n        \"Invalid format\"),\n    \"\")","v":""},{"$f":"IF(AI888 <> \"\",\n    IF(ISNUMBER(VALUE(LEFT(AI888, FIND(\"%\", AI888)-1))) * ISNUMBER(FIND(\"%\", AI888 & \"wol\")) > 0,\n        TRIM(MID(AI888, FIND(\"%\", AI888)+1, FIND(\"/\", AI888 & \"/\")-FIND(\"%\", AI888)-1)),\n        \"Invalid format\"),\n    \"\")","v":""},{"$f":"IF(AI888 <> \"\",\n    IF(ISNUMBER(VALUE(MID(AI888, FIND(\"/\", AI888) + 1, FIND(\"%\", AI888, FIND(\"/\", AI888)) - FIND(\"/\", AI888) - 1))),\n        VALUE(MID(AI888, FIND(\"/\", AI888) + 1, FIND(\"%\", AI888, FIND(\"/\", AI888)) - FIND(\"/\", AI888) - 1)),\n        \"\"),\n    \"\")","v":""},{"$f":"IF(AI888 <> \"\",\n    IFERROR(TRIM(MID(AI888, FIND(\"%\", AI888, FIND(\"/\", AI888)+1)+2,\n        IFERROR(FIND(\"/\", AI888 & \"/\", FIND(\"/\", AI888)+1)-FIND(\"%\", AI888, FIND(\"/\", AI888)+1)-2, LEN(AI888)-FIND(\"%\", AI888, FIND(\"/\", AI888)+1)-1))),\n        \"\"),\n    \"\")","v":""},{"$f":"IF(AI888 <> \"\",\n    IF(ISNUMBER(VALUE(MID(AI888, FIND(\"/\", AI888, FIND(\"/\", AI888)+1) + 1, FIND(\"%\", AI888, FIND(\"/\", AI888, FIND(\"/\", AI888)+1)) - FIND(\"/\", AI888, FIND(\"/\", AI888)+1) - 1))),\n        VALUE(MID(AI888, FIND(\"/\", AI888, FIND(\"/\", AI888)+1) + 1, FIND(\"%\", AI888, FIND(\"/\", AI888, FIND(\"/\", AI888)+1)) - FIND(\"/\", AI888, FIND(\"/\", AI888)+1) - 1)),\n        \"\"),\n    \"\")","v":""},{"$f":"IF(AI888 <> \"\",\n    IFERROR(\n        TRIM(MID(AI888,\n            FIND(\"%\", AI888, FIND(\"%\", AI888, FIND(\"%\", AI888)+1)+1)+1,\n            FIND(\"/\", AI888 & \"/\", FIND(\"%\", AI888, FIND(\"%\", AI888, FIND(\"%\", AI888)+1)+1))-FIND(\"%\", AI888, FIND(\"%\", AI888, FIND(\"%\", AI888)+1)+1)-1)\n        ),\n        \"\"\n    ),\n    \"\"\n)","v":""},{"$f":"IF(AI888 <> \"\",\n    IF(ISNUMBER(VALUE(MID(AI888, FIND(\"/\", AI888, FIND(\"/\", AI888, FIND(\"/\", AI888)+1)+1) + 1, FIND(\"%\", AI888, FIND(\"/\", AI888, FIND(\"/\", AI888, FIND(\"/\", AI888)+1)+1)) - FIND(\"/\", AI888, FIND(\"/\", AI888, FIND(\"/\", AI888)+1)+1) - 1))),\n        VALUE(MID(AI888, FIND(\"/\", AI888, FIND(\"/\", AI888, FIND(\"/\", AI888)+1)+1) + 1, FIND(\"%\", AI888, FIND(\"/\", AI888, FIND(\"/\", AI888, FIND(\"/\", AI888)+1)+1)) - FIND(\"/\", AI888, FIND(\"/\", AI888, FIND(\"/\", AI888)+1)+1) - 1)),\n        \"\"),\n    \"\")","v":""},{"$f":"IF(AI888 <> \"\",\n    IFERROR(TRIM(MID(AI888, FIND(\"%\", AI888, FIND(\"/\", AI888, FIND(\"/\", AI888, FIND(\"/\", AI888)+1)+1)+1)+2,\n        IFERROR(FIND(\"/\", AI888, FIND(\"/\", AI888, FIND(\"/\", AI888, FIND(\"/\", AI888)+1)+1)+1)-FIND(\"%\", AI888, FIND(\"/\", AI888, FIND(\"/\", AI888, FIND(\"/\", AI888)+1)+1)+1)-2, LEN(AI888)-FIND(\"%\", AI888, FIND(\"/\", AI888, FIND(\"/\", AI888, FIND(\"/\", AI888)+1)+1)+1)-1))),\n        \"\"),\n    \"\")","v":""},{"$f":"IF(AI888 <> \"\",\n    IF(ISNUMBER(VALUE(MID(AI888, FIND(\"/\", AI888, FIND(\"/\", AI888, FIND(\"/\", AI888, FIND(\"/\", AI888)+1)+1)+1) + 1, FIND(\"%\", AI888, FIND(\"/\", AI888, FIND(\"/\", AI888, FIND(\"/\", AI888, FIND(\"/\", AI888)+1)+1)+1)) - FIND(\"/\", AI888, FIND(\"/\", AI888, FIND(\"/\", AI888, FIND(\"/\", AI888)+1)+1)+1) - 1))),\n        VALUE(MID(AI888, FIND(\"/\", AI888, FIND(\"/\", AI888, FIND(\"/\", AI888, FIND(\"/\", AI888)+1)+1)+1) + 1, FIND(\"%\", AI888, FIND(\"/\", AI888, FIND(\"/\", AI888, FIND(\"/\", AI888, FIND(\"/\", AI888)+1)+1)+1)) - FIND(\"/\", AI888, FIND(\"/\", AI888, FIND(\"/\", AI888, FIND(\"/\", AI888)+1)+1)+1) - 1)),\n        \"\"),\n    \"\")","v":""},{"$f":"IF(AI888 = \"\", \"\",\n    IFERROR(TRIM(\n        MID(\n            AI888,\n            FIND(\"%\", AI888, FIND(\"/\", AI888, FIND(\"/\", AI888, FIND(\"/\", AI888, FIND(\"/\", AI888)+1)+1)+1)+1) + 1,\n            FIND(\"/\", AI888 & \"/\", FIND(\"%\", AI888, FIND(\"/\", AI888, FIND(\"/\", AI888, FIND(\"/\", AI888, FIND(\"/\", AI888)+1)+1)+1)+1)) -\n            FIND(\"%\", AI888, FIND(\"/\", AI888, FIND(\"/\", AI888, FIND(\"/\", AI888, FIND(\"/\", AI888)+1)+1)+1)+1) - 1\n        )\n    ),\n    \"\")\n)","v":""},null,null,null,null,null,null,null,null,null,null,null,null,null,null,null,null,null,"ZWO"]
[null,null,null,null,null,null,null,null,null,null,null,null,null,null,null,null,{"$f":"VLOOKUP(P889,'Input MCC'!B:C,2,0)","v":{"$error":"#N/A"}},{"$f":"VLOOKUP(P889,'Input MCC'!B:E,4,0)","v":{"$error":"#N/A"}},null,null,null,null,null,null,null,null,null,null,null,null,null,{"$error":"#DIV/0!"},0,0,null,"","","","","","","","","","",null,null,null,null,null,null,null,null,null,null,null,null,null,null,null,null,null,"ZWO"]
[null,null,null,null,null,null,null,null,null,null,null,null,null,null,null,null,{"$f":"VLOOKUP(P890,'Input MCC'!B:C,2,0)","v":{"$error":"#N/A"}},{"$f":"VLOOKUP(P890,'Input MCC'!B:E,4,0)","v":{"$error":"#N/A"}},null,null,null,null,null,null,null,null,null,null,null,null,null,{"$error":"#DIV/0!"},0,0,null,"","","","","","","","","","",null,null,null,null,null,null,null,null,null,null,null,null,null,null,null,null,null,"ZWO"]
[null,null,null,null,null,null,null,null,null,null,null,null,null,null,null,null,{"$f":"VLOOKUP(P891,'Input MCC'!B:C,2,0)","v":{"$error":"#N/A"}},{"$f":"VLOOKUP(P891,'Input MCC'!B:E,4,0)","v":{"$error":"#N/A"}},null,null,null,null,null,null,null,null,null,null,null,null,null,{"$error":"#DIV/0!"},0,0,null,"","","","","","","","","","",null,null,null,null,null,null,null,null,null,null,null,null,null,null,null,null,null,"ZWO"]
[null,null,null,null,null,null,null,null,null,null,null,null,null,null,null,null,{"$f":"VLOOKUP(P892,'Input MCC'!B:C,2,0)","v":{"$error":"#N/A"}},{"$f":"VLOOKUP(P892,'Input MCC'!B:E,4,0)","v":{"$error":"#N/A"}},null,null,null,null,null,null,null,null,null,null,null,null,null,{"$error":"#DIV/0!"},0,0,null,"","","","","","","","","","",null,null,null,null,null,null,null,null,null,null,null,null,null,null,null,null,null,"ZWO"]
[null,null,null,null,null,null,null,null,null,null,null,null,null,null,null,null,{"$f":"VLOOKUP(P893,'Input MCC'!B:C,2,0)","v":{"$error":"#N/A"}},{"$f":"VLOOKUP(P893,'Input MCC'!B:E,4,0)","v":{"$error":"#N/A"}},null,null,null,null,null,null,null,null,null,null,null,null,null,{"$error":"#DIV/0!"},0,0,null,"","","","","","","","","","",null,null,null,null,null,null,null,null,null,null,null,null,null,null,null,null,null,"ZWO"]
[null,null,null,null,null,null,null,null,null,null,null,null,null,null,null,null,{"$f":"VLOOKUP(P894,'Input MCC'!B:C,2,0)","v":{"$error":"#N/A"}},{"$f":"VLOOKUP(P894,'Input MCC'!B:E,4,0)","v":{"$error":"#N/A"}},null,null,null,null,{"$f":"SUM(V894:V899)","v":0},null,null,null,null,null,null,null,null,{"$error":"#DIV/0!"},0,0,null,"","","","","","","","","","",null,null,null,null,null,null,null,null,null,null,null,null,null,null,null,null,null,"ZWO"]
[null,null,null,null,null,null,null,null,null,null,null,null,null,null,null,null,{"$f":"VLOOKUP(P895,'Input MCC'!B:C,2,0)","v":{"$error":"#N/A"}},{"$f":"VLOOKUP(P895,'Input MCC'!B:E,4,0)","v":{"$error":"#N/A"}},null,null,null,null,null,null,null,null,null,null,null,null,null,{"$error":"#DIV/0!"},0,0,null,"","","","","","","","","","",null,null,null,null,null,null,null,null,null,null,null,null,null,null,null,null,null,"ZWO"]
[null,null,null,null,null,null,null,null,null,null,null,null,null,null,null,null,{"$f":"VLOOKUP(P896,'Input MCC'!B:C,2,0)","v":{"$error":"#N/A"}},{"$f":"VLOOKUP(P896,'Input MCC'!B:E,4,0)","v":{"$error":"#N/A"}},null,null,null,null,null,null,null,null,null,null,null,null,null,{"$error":"#DIV/0!"},0,0,null,"","","","","","","","","","",null,null,null,null,null,null,null,null,null,null,null,null,null,null,null,null,null,"ZWO"]
[null,null,null,null,null,null,null,null,null,null,null,null,null,null,null,null,{"$f":"VLOOKUP(P897,'Input MCC'!B:C,2,0)","v":{"$error":"#N/A"}},{"$f":"VLOOKUP(P897,'Input MCC'!B:E,4,0)","v":{"$error":"#N/A"}},null,null,null,null,null,null,null,null,null,null,null,null,null,{"$error":"#DIV/0!"},0,0,null,"","","","","","","","","","",null,null,null,null,null,null,null,null,null,null,null,null,null,null,null,null,null,"ZWO"]
[null,null,null,null,null,null,null,null,null,null,null,null,null,null,null,null,{"$f":"VLOOKUP(P898,'Input MCC'!B:C,2,0)","v":{"$error":"#N/A"}},{"$f":"VLOOKUP(P898,'Input MCC'!B:E,4,0)","v":{"$error":"#N/A"}},null,null,null,null,null,null,null,null,null,null,null,null,null,{"$error":"#DIV/0!"},0,0,null,"","","","","","","","","","",null,null,null,null,null,null,null,null,null,null,null,null,null,null,null,null,null,"ZWO"]
[null,null,null,null,null,null,null,null,null,null,null,null,null,null,null,null,{"$f":"VLOOKUP(P899,'Input MCC'!B:C,2,0)","v":{"$error":"#N/A"}},{"$f":"VLOOKUP(P899,'Input MCC'!B:E,4,0)","v":{"$error":"#N/A"}},null,null,null,null,null,null,null,null,null,null,null,null,null,{"$error":"#DIV/0!"},0,0,null,"","","","","","","","","","",null,null,null,null,null,null,null,null,null,null,null,null,null,null,null,null,null,"ZWO"]
[null,null,null,null,null,null,null,null,null,null,null,null,null,null,null,null,{"$f":"VLOOKUP(P900,'Input MCC'!B:C,2,0)","v":{"$error":"#N/A"}},{"$f":"VLOOKUP(P900,'Input MCC'!B:E,4,0)","v":{"$error":"#N/A"}},null,null,null,null,{"$f":"SUM(V900:V905)","v":0},null,null,null,null,null,null,null,null,{"$error":"#DIV/0!"},0,0,null,"","","","","","","","","","",null,null,null,null,null,null,null,null,null,null,null,null,null,null,null,null,null,"ZWO"]
[null,null,null,null,null,null,null,null,null,null,null,null,null,null,null,null,{"$f":"VLOOKUP(P901,'Input MCC'!B:C,2,0)","v":{"$error":"#N/A"}},{"$f":"VLOOKUP(P901,'Input MCC'!B:E,4,0)","v":{"$error":"#N/A"}},null,null,null,null,null,null,null,null,null,null,null,null,null,{"$error":"#DIV/0!"},0,0,null,"","","","","","","","","","",null,null,null,null,null,null,null,null,null,null,null,null,null,null,null,null,null,"ZWO"]
[null,null,null,null,null,null,null,null,null,null,null,null,null,null,null,null,{"$f":"VLOOKUP(P902,'Input MCC'!B:C,2,0)","v":{"$error":"#N/A"}},{"$f":"VLOOKUP(P902,'Input MCC'!B:E,4,0)","v":{"$error":"#N/A"}},null,null,null,null,null,null,null,null,null,null,null,null,null,{"$error":"#DIV/0!"},0,0,null,"","","","","","","","","","",null,null,null,null,null,null,null,null,null,null,null,null,null,null,null,null,null,"ZWO"]
[null,null,null,null,null,null,null,null,null,null,null,null,null,null,null,null,{"$f":"VLOOKUP(P903,'Input MCC'!B:C,2,0)","v":{"$error":"#N/A"}},{"$f":"VLOOKUP(P903,'Input MCC'!B:E,4,0)","v":{"$error":"#N/A"}},null,null,null,null,null,null,null,null,null,null,null,null,null,{"$error":"#DIV/0!"},0,0,null,"","","","","","","","","","",null,null,null,null,null,null,null,null,null,null,null,null,null,null,null,null,null,"ZWO"]
[null,null,null,null,null,null,null,null,null,null,null,null,null,null,null,null,{"$f":"VLOOKUP(P904,'Input MCC'!B:C,2,0)","v":{"$error":"#N/A"}},{"$f":"VLOOKUP(P904,'Input MCC'!B:E,4,0)","v":{"$error":"#N/A"}},null,null,null,null,null,null,null,null,null,null,null,null,null,{"$error":"#DIV/0!"},0,0,null,"","","","","","","","","","",null,null,null,null,null,null,null,null,null,null,null,null,null,null,null,null,null,"ZWO"]
[null,null,null,null,null,null,null,null,null,null,null,null,null,null,null,null,{"$f":"VLOOKUP(P905,'Input MCC'!B:C,2,0)","v":{"$error":"#N/A"}},{"$f":"VLOOKUP(P905,'Input MCC'!B:E,4,0)","v":{"$error":"#N/A"}},null,null,null,null,null,null,null,null,null,null,null,null,null,{"$error":"#DIV/0!"},0,0,null,"","","","","","","","","","",null,null,null,null,null,null,null,null,null,null,null,null,null,null,null,null,null,"ZWO"]
[null,null,null,null,null,null,null,null,null,null,null,null,null,null,null,null,{"$f":"VLOOKUP(P906,'Input MCC'!B:C,2,0)","v":{"$error":"#N/A"}},{"$f":"VLOOKUP(P906,'Input MCC'!B:E,4,0)","v":{"$error":"#N/A"}},null,null,null,null,{"$f":"SUM(V906:V911)","v":0},null,null,null,null,null,null,null,null,{"$error":"#DIV/0!"},0,0,null,"","","","","","","","","","",null,null,null,null,null,null,null,null,null,null,null,null,null,null,null,null,null,"ZWO"]
[null,null,null,null,null,null,null,null,null,null,null,null,null,null,null,null,{"$f":"VLOOKUP(P907,'Input MCC'!B:C,2,0)","v":{"$error":"#N/A"}},{"$f":"VLOOKUP(P907,'Input MCC'!B:E,4,0)","v":{"$error":"#N/A"}},null,null,null,null,null,null,null,null,null,null,null,null,null,{"$error":"#DIV/0!"},0,0,null,"","","","","","","","","","",null,null,null,null,null,null,null,null,null,null,null,null,null,null,null,null,null,"ZWO"]
[null,null,null,null,null,null,null,null,null,null,null,null,null,null,null,null,{"$f":"VLOOKUP(P908,'Input MCC'!B:C,2,0)","v":{"$error":"#N/A"}},{"$f":"VLOOKUP(P908,'Input MCC'!B:E,4,0)","v":{"$error":"#N/A"}},null,null,null,null,null,null,null,null,null,null,null,null,null,{"$error":"#DIV/0!"},0,0,null,"","","","","","","","","","",null,null,null,null,null,null,null,null,null,null,null,null,null,null,null,null,null,"ZWO"]
[null,null,null,null,null,null,null,null,null,null,null,null,null,null,null,null,{"$f":"VLOOKUP(P909,'Input MCC'!B:C,2,0)","v":{"$error":"#N/A"}},{"$f":"VLOOKUP(P909,'Input MCC'!B:E,4,0)","v":{"$error":"#N/A"}},null,null,null,null,null,null,null,null,null,null,null,null,null,{"$error":"#DIV/0!"},0,0,null,"","","","","","","","","","",null,null,null,null,null,null,null,null,null,null,null,null,null,null,null,null,null,"ZWO"]
[null,null,null,null,null,null,null,null,null,null,null,null,null,null,null,null,{"$f":"VLOOKUP(P910,'Input MCC'!B:C,2,0)","v":{"$error":"#N/A"}},{"$f":"VLOOKUP(P910,'Input MCC'!B:E,4,0)","v":{"$error":"#N/A"}},null,null,null,null,null,null,null,null,null,null,null,null,null,{"$error":"#DIV/0!"},0,0,null,"","","","","","","","","","",null,null,null,null,null,null,null,null,null,null,null,null,null,null,null,null,null,"ZWO"]
[null,null,null,null,null,null,null,null,null,null,null,null,null,null,null,null,{"$f":"VLOOKUP(P911,'Input MCC'!B:C,2,0)","v":{"$error":"#N/A"}},{"$f":"VLOOKUP(P911,'Input MCC'!B:E,4,0)","v":{"$error":"#N/A"}},null,null,null,null,null,null,null,null,null,null,null,null,null,{"$error":"#DIV/0!"},0,0,null,"","","","","","","","","","",null,null,null,null,null,null,null,null,null,null,null,null,null,null,null,null,null,"ZWO"]
[null,null,null,null,null,null,null,null,null,null,null,null,null,null,null,null,{"$f":"VLOOKUP(P912,'Input MCC'!B:C,2,0)","v":{"$error":"#N/A"}},{"$f":"VLOOKUP(P912,'Input MCC'!B:E,4,0)","v":{"$error":"#N/A"}},null,null,null,null,{"$f":"SUM(V912:V917)","v":0},null,null,null,null,null,null,null,null,{"$error":"#DIV/0!"},0,0,null,"","","","","","","","","","",null,null,null,null,null,null,null,null,null,null,null,null,null,null,null,null,null,"ZWO"]
[null,null,null,null,null,null,null,null,null,null,null,null,null,null,null,null,{"$f":"VLOOKUP(P913,'Input MCC'!B:C,2,0)","v":{"$error":"#N/A"}},{"$f":"VLOOKUP(P913,'Input MCC'!B:E,4,0)","v":{"$error":"#N/A"}},null,null,null,null,null,null,null,null,null,null,null,null,null,{"$error":"#DIV/0!"},0,0,null,"","","","","","","","","","",null,null,null,null,null,null,null,null,null,null,null,null,null,null,null,null,null,"ZWO"]
[null,null,null,null,null,null,null,null,null,null,null,null,null,null,null,null,{"$f":"VLOOKUP(P914,'Input MCC'!B:C,2,0)","v":{"$error":"#N/A"}},{"$f":"VLOOKUP(P914,'Input MCC'!B:E,4,0)","v":{"$error":"#N/A"}},null,null,null,null,null,null,null,null,null,null,null,null,null,{"$error":"#DIV/0!"},0,0,null,"","","","","","","","","","",null,null,null,null,null,null,null,null,null,null,null,null,null,null,null,null,null,"ZWO"]
[null,null,null,null,null,null,null,null,null,null,null,null,null,null,null,null,{"$f":"VLOOKUP(P915,'Input MCC'!B:C,2,0)","v":{"$error":"#N/A"}},{"$f":"VLOOKUP(P915,'Input MCC'!B:E,4,0)","v":{"$error":"#N/A"}},null,null,null,null,null,null,null,null,null,null,null,null,null,{"$error":"#DIV/0!"},0,0,null,"","","","","","","","","","",null,null,null,null,null,null,null,null,null,null,null,null,null,null,null,null,null,"ZWO"]
[null,null,null,null,null,null,null,null,null,null,null,null,null,null,null,null,{"$f":"VLOOKUP(P916,'Input MCC'!B:C,2,0)","v":{"$error":"#N/A"}},{"$f":"VLOOKUP(P916,'Input MCC'!B:E,4,0)","v":{"$error":"#N/A"}},null,null,null,null,null,null,null,null,null,null,null,null,null,{"$error":"#DIV/0!"},0,0,null,"","","","","","","","","","",null,null,null,null,null,null,null,null,null,null,null,null,null,null,null,null,null,"ZWO"]
[null,null,null,null,null,null,null,null,null,null,null,null,null,null,null,null,{"$f":"VLOOKUP(P917,'Input MCC'!B:C,2,0)","v":{"$error":"#N/A"}},{"$f":"VLOOKUP(P917,'Input MCC'!B:E,4,0)","v":{"$error":"#N/A"}},null,null,null,null,null,null,null,null,null,null,null,null,null,{"$error":"#DIV/0!"},0,0,null,"","","","","","","","","","",null,null,null,null,null,null,null,null,null,null,null,null,null,null,null,null,null,"ZWO"]
[null,null,null,null,null,null,null,null,null,null,null,null,null,null,null,null,{"$f":"VLOOKUP(P918,'Input MCC'!B:C,2,0)","v":{"$error":"#N/A"}},{"$f":"VLOOKUP(P918,'Input MCC'!B:E,4,0)","v":{"$error":"#N/A"}},null,null,null,null,{"$f":"SUM(V918:V923)","v":0},null,null,null,null,null,null,null,null,{"$error":"#DIV/0!"},0,0,null,"","","","","","","","","","",null,null,null,null,null,null,null,null,null,null,null,null,null,null,null,null,null,"ZWO"]
[null,null,null,null,null,null,null,null,null,null,null,null,null,null,null,null,{"$f":"VLOOKUP(P919,'Input MCC'!B:C,2,0)","v":{"$error":"#N/A"}},{"$f":"VLOOKUP(P919,'Input MCC'!B:E,4,0)","v":{"$error":"#N/A"}},null,null,null,null,null,null,null,null,null,null,null,null,null,{"$error":"#DIV/0!"},0,0,null,"","","","","","","","","","",null,null,null,null,null,null,null,null,null,null,null,null,null,null,null,null,null,"ZWO"]
[null,null,null,null,null,null,null,null,null,null,null,null,null,null,null,null,{"$f":"VLOOKUP(P920,'Input MCC'!B:C,2,0)","v":{"$error":"#N/A"}},{"$f":"VLOOKUP(P920,'Input MCC'!B:E,4,0)","v":{"$error":"#N/A"}},null,null,null,null,null,null,null,null,null,null,null,null,null,{"$error":"#DIV/0!"},0,0,null,"","","","","","","","","","",null,null,null,null,null,null,null,null,null,null,null,null,null,null,null,null,null,"ZWO"]
[null,null,null,null,null,null,null,null,null,null,null,null,null,null,null,null,{"$f":"VLOOKUP(P921,'Input MCC'!B:C,2,0)","v":{"$error":"#N/A"}},{"$f":"VLOOKUP(P921,'Input MCC'!B:E,4,0)","v":{"$error":"#N/A"}},null,null,null,null,null,null,null,null,null,null,null,null,null,{"$error":"#DIV/0!"},0,0,null,"","","","","","","","","","",null,null,null,null,null,null,null,null,null,null,null,null,null,null,null,null,null,"ZWO"]
[null,null,null,null,null,null,null,null,null,null,null,null,null,null,null,null,{"$f":"VLOOKUP(P922,'Input MCC'!B:C,2,0)","v":{"$error":"#N/A"}},{"$f":"VLOOKUP(P922,'Input MCC'!B:E,4,0)","v":{"$error":"#N/A"}},null,null,null,null,null,null,null,null,null,null,null,null,null,{"$error":"#DIV/0!"},0,0,null,"","","","","","","","","","",null,null,null,null,null,null,null,null,null,null,null,null,null,null,null,null,null,"ZWO"]
[null,null,null,null,null,null,null,null,null,null,null,null,null,null,null,null,{"$f":"VLOOKUP(P923,'Input MCC'!B:C,2,0)","v":{"$error":"#N/A"}},{"$f":"VLOOKUP(P923,'Input MCC'!B:E,4,0)","v":{"$error":"#N/A"}},null,null,null,null,null,null,null,null,null,null,null,null,null,{"$error":"#DIV/0!"},0,0,null,"","","","","","","","","","",null,null,null,null,null,null,null,null,null,null,null,null,null,null,null,null,null,"ZWO"]
[null,null,null,null,null,null,null,null,null,null,null,null,null,null,null,null,{"$f":"VLOOKUP(P924,'Input MCC'!B:C,2,0)","v":{"$error":"#N/A"}},{"$f":"VLOOKUP(P924,'Input MCC'!B:E,4,0)","v":{"$error":"#N/A"}},null,null,null,null,{"$f":"SUM(V924:V929)","v":0},null,null,null,null,null,null,null,null,{"$error":"#DIV/0!"},0,0,null,"","","","","","","","","","",null,null,null,null,null,null,null,null,null,null,null,null,null,null,null,null,null,"ZWO"]
[null,null,null,null,null,null,null,null,null,null,null,null,null,null,null,null,{"$f":"VLOOKUP(P925,'Input MCC'!B:C,2,0)","v":{"$error":"#N/A"}},{"$f":"VLOOKUP(P925,'Input MCC'!B:E,4,0)","v":{"$error":"#N/A"}},null,null,null,null,null,null,null,null,null,null,null,null,null,{"$error":"#DIV/0!"},0,0,null,"","","","","","","","","","",null,null,null,null,null,null,null,null,null,null,null,null,null,null,null,null,null,"ZWO"]
[null,null,null,null,null,null,null,null,null,null,null,null,null,null,null,null,{"$f":"VLOOKUP(P926,'Input MCC'!B:C,2,0)","v":{"$error":"#N/A"}},{"$f":"VLOOKUP(P926,'Input MCC'!B:E,4,0)","v":{"$error":"#N/A"}},null,null,null,null,null,null,null,null,null,null,null,null,null,{"$error":"#DIV/0!"},0,0,null,"","","","","","","","","","",null,null,null,null,null,null,null,null,null,null,null,null,null,null,null,null,null,"ZWO"]
[null,null,null,null,null,null,null,null,null,null,null,null,null,null,null,null,{"$f":"VLOOKUP(P927,'Input MCC'!B:C,2,0)","v":{"$error":"#N/A"}},{"$f":"VLOOKUP(P927,'Input MCC'!B:E,4,0)","v":{"$error":"#N/A"}},null,null,null,null,null,null,null,null,null,null,null,null,null,{"$error":"#DIV/0!"},0,0,null,"","","","","","","","","","",null,null,null,null,null,null,null,null,null,null,null,null,null,null,null,null,null,"ZWO"]
[null,null,null,null,null,null,null,null,null,null,null,null,null,null,null,null,{"$f":"VLOOKUP(P928,'Input MCC'!B:C,2,0)","v":{"$error":"#N/A"}},{"$f":"VLOOKUP(P928,'Input MCC'!B:E,4,0)","v":{"$error":"#N/A"}},null,null,null,null,null,null,null,null,null,null,null,null,null,{"$error":"#DIV/0!"},0,0,null,"","","","","","","","","","",null,null,null,null,null,null,null,null,null,null,null,null,null,null,null,null,null,"ZWO"]
[null,null,null,null,null,null,null,null,null,null,null,null,null,null,null,null,{"$f":"VLOOKUP(P929,'Input MCC'!B:C,2,0)","v":{"$error":"#N/A"}},{"$f":"VLOOKUP(P929,'Input MCC'!B:E,4,0)","v":{"$error":"#N/A"}},null,null,null,null,null,null,null,null,null,null,null,null,null,{"$error":"#DIV/0!"},0,0,null,"","","","","","","","","","",null,null,null,null,null,null,null,null,null,null,null,null,null,null,null,null,null,"ZWO"]
[null,null,null,null,null,null,null,null,null,null,null,null,null,null,null,null,{"$f":"VLOOKUP(P930,'Input MCC'!B:C,2,0)","v":{"$error":"#N/A"}},{"$f":"VLOOKUP(P930,'Input MCC'!B:E,4,0)","v":{"$error":"#N/A"}},null,null,null,null,{"$f":"SUM(V930:V935)","v":0},null,null,null,null,null,null,null,null,{"$error":"#DIV/0!"},0,0,null,"","","","","","","","","","",null,null,null,null,null,null,null,null,null,null,null,null,null,null,null,null,null,"ZWO"]
[null,null,null,null,null,null,null,null,null,null,null,null,null,null,null,null,{"$f":"VLOOKUP(P931,'Input MCC'!B:C,2,0)","v":{"$error":"#N/A"}},{"$f":"VLOOKUP(P931,'Input MCC'!B:E,4,0)","v":{"$error":"#N/A"}},null,null,null,null,null,null,null,null,null,null,null,null,null,{"$error":"#DIV/0!"},0,0,null,"","","","","","","","","","",null,null,null,null,null,null,null,null,null,null,null,null,null,null,null,null,null,"ZWO"]
[null,null,null,null,null,null,null,null,null,null,null,null,null,null,null,null,{"$f":"VLOOKUP(P932,'Input MCC'!B:C,2,0)","v":{"$error":"#N/A"}},{"$f":"VLOOKUP(P932,'Input MCC'!B:E,4,0)","v":{"$error":"#N/A"}},null,null,null,null,null,null,null,null,null,null,null,null,null,{"$error":"#DIV/0!"},0,0,null,"","","","","","","","","","",null,null,null,null,null,null,null,null,null,null,null,null,null,null,null,null,null,"ZWO"]
[null,null,null,null,null,null,null,null,null,null,null,null,null,null,null,null,{"$f":"VLOOKUP(P933,'Input MCC'!B:C,2,0)","v":{"$error":"#N/A"}},{"$f":"VLOOKUP(P933,'Input MCC'!B:E,4,0)","v":{"$error":"#N/A"}},null,null,null,null,null,null,null,null,null,null,null,null,null,{"$error":"#DIV/0!"},0,0,null,"","","","","","","","","","",null,null,null,null,null,null,null,null,null,null,null,null,null,null,null,null,null,"ZWO"]
[null,null,null,null,null,null,null,null,null,null,null,null,null,null,null,null,{"$f":"VLOOKUP(P934,'Input MCC'!B:C,2,0)","v":{"$error":"#N/A"}},{"$f":"VLOOKUP(P934,'Input MCC'!B:E,4,0)","v":{"$error":"#N/A"}},null,null,null,null,null,null,null,null,null,null,null,null,null,{"$error":"#DIV/0!"},0,0,null,"","","","","","","","","","",null,null,null,null,null,null,null,null,null,null,null,null,null,null,null,null,null,"ZWO"]
[null,null,null,null,null,null,null,null,null,null,null,null,null,null,null,null,{"$f":"VLOOKUP(P935,'Input MCC'!B:C,2,0)","v":{"$error":"#N/A"}},{"$f":"VLOOKUP(P935,'Input MCC'!B:E,4,0)","v":{"$error":"#N/A"}},null,null,null,null,null,null,null,null,null,null,null,null,null,{"$error":"#DIV/0!"},0,0,null,"","","","","","","","","","",null,null,null,null,null,null,null,null,null,null,null,null,null,null,null,null,null,"ZWO"]
[null,null,null,null,null,null,null,null,null,null,null,null,null,null,null,null,{"$f":"VLOOKUP(P936,'Input MCC'!B:C,2,0)","v":{"$error":"#N/A"}},{"$f":"VLOOKUP(P936,'Input MCC'!B:E,4,0)","v":{"$error":"#N/A"}},null,null,null,null,{"$f":"SUM(V936:V941)","v":0},null,null,null,null,null,null,null,null,{"$error":"#DIV/0!"},0,0,null,"","","","","","","","","","",null,null,null,null,null,null,null,null,null,null,null,null,null,null,null,null,null,"ZWO"]
[null,null,null,null,null,null,null,null,null,null,null,null,null,null,null,null,{"$f":"VLOOKUP(P937,'Input MCC'!B:C,2,0)","v":{"$error":"#N/A"}},{"$f":"VLOOKUP(P937,'Input MCC'!B:E,4,0)","v":{"$error":"#N/A"}},null,null,null,null,null,null,null,null,null,null,null,null,null,{"$error":"#DIV/0!"},0,0,null,"","","","","","","","","","",null,null,null,null,null,null,null,null,null,null,null,null,null,null,null,null,null,"ZWO"]
[null,null,null,null,null,null,null,null,null,null,null,null,null,null,null,null,{"$f":"VLOOKUP(P938,'Input MCC'!B:C,2,0)","v":{"$error":"#N/A"}},{"$f":"VLOOKUP(P938,'Input MCC'!B:E,4,0)","v":{"$error":"#N/A"}},null,null,null,null,null,null,null,null,null,null,null,null,null,{"$error":"#DIV/0!"},0,0,null,"","","","","","","","","","",null,null,null,null,null,null,null,null,null,null,null,null,null,null,null,null,null,"ZWO"]
[null,null,null,null,null,null,null,null,null,null,null,null,null,null,null,null,{"$f":"VLOOKUP(P939,'Input MCC'!B:C,2,0)","v":{"$error":"#N/A"}},{"$f":"VLOOKUP(P939,'Input MCC'!B:E,4,0)","v":{"$error":"#N/A"}},null,null,null,null,null,null,null,null,null,null,null,null,null,{"$error":"#DIV/0!"},0,0,null,"","","","","","","","","","",null,null,null,null,null,null,null,null,null,null,null,null,null,null,null,null,null,"ZWO"]
[null,null,null,null,null,null,null,null,null,null,null,null,null,null,null,null,{"$f":"VLOOKUP(P940,'Input MCC'!B:C,2,0)","v":{"$error":"#N/A"}},{"$f":"VLOOKUP(P940,'Input MCC'!B:E,4,0)","v":{"$error":"#N/A"}},null,null,null,null,null,null,null,null,null,null,null,null,null,{"$error":"#DIV/0!"},0,0,null,"","","","","","","","","","",null,null,null,null,null,null,null,null,null,null,null,null,null,null,null,null,null,"ZWO"]
[null,null,null,null,null,null,null,null,null,null,null,null,null,null,null,null,{"$f":"VLOOKUP(P941,'Input MCC'!B:C,2,0)","v":{"$error":"#N/A"}},{"$f":"VLOOKUP(P941,'Input MCC'!B:E,4,0)","v":{"$error":"#N/A"}},null,null,null,null,null,null,null,null,null,null,null,null,null,{"$error":"#DIV/0!"},0,0,null,"","","","","","","","","","",null,null,null,null,null,null,null,null,null,null,null,null,null,null,null,null,null,"ZWO"]
[null,null,null,null,null,null,null,null,null,null,null,null,null,null,null,null,{"$f":"VLOOKUP(P942,'Input MCC'!B:C,2,0)","v":{"$error":"#N/A"}},{"$f":"VLOOKUP(P942,'Input MCC'!B:E,4,0)","v":{"$error":"#N/A"}},null,null,null,null,{"$f":"SUM(V942:V947)","v":0},null,null,null,null,null,null,null,null,{"$error":"#DIV/0!"},0,0,null,"","","","","","","","","","",null,null,null,null,null,null,null,null,null,null,null,null,null,null,null,null,null,"ZWO"]
[null,null,null,null,null,null,null,null,null,null,null,null,null,null,null,null,{"$f":"VLOOKUP(P943,'Input MCC'!B:C,2,0)","v":{"$error":"#N/A"}},{"$f":"VLOOKUP(P943,'Input MCC'!B:E,4,0)","v":{"$error":"#N/A"}},null,null,null,null,null,null,null,null,null,null,null,null,null,{"$error":"#DIV/0!"},0,0,null,"","","","","","","","","","",null,null,null,null,null,null,null,null,null,null,null,null,null,null,null,null,null,"ZWO"]
[null,null,null,null,null,null,null,null,null,null,null,null,null,null,null,null,{"$f":"VLOOKUP(P944,'Input MCC'!B:C,2,0)","v":{"$error":"#N/A"}},{"$f":"VLOOKUP(P944,'Input MCC'!B:E,4,0)","v":{"$error":"#N/A"}},null,null,null,null,null,null,null,null,null,null,null,null,null,{"$error":"#DIV/0!"},0,0,null,"","","","","","","","","","",null,null,null,null,null,null,null,null,null,null,null,null,null,null,null,null,null,"ZWO"]
[null,null,null,null,null,null,null,null,null,null,null,null,null,null,null,null,{"$f":"VLOOKUP(P945,'Input MCC'!B:C,2,0)","v":{"$error":"#N/A"}},{"$f":"VLOOKUP(P945,'Input MCC'!B:E,4,0)","v":{"$error":"#N/A"}},null,null,null,null,null,null,null,null,null,null,null,null,null,{"$error":"#DIV/0!"},0,0,null,"","","","","","","","","","",null,null,null,null,null,null,null,null,null,null,null,null,null,null,null,null,null,"ZWO"]
[null,null,null,null,null,null,null,null,null,null,null,null,null,null,null,null,{"$f":"VLOOKUP(P946,'Input MCC'!B:C,2,0)","v":{"$error":"#N/A"}},{"$f":"VLOOKUP(P946,'Input MCC'!B:E,4,0)","v":{"$error":"#N/A"}},null,null,null,null,null,null,null,null,null,null,null,null,null,{"$error":"#DIV/0!"},0,0,null,"","","","","","","","","","",null,null,null,null,null,null,null,null,null,null,null,null,null,null,null,null,null,"ZWO"]
[null,null,null,null,null,null,null,null,null,null,null,null,null,null,null,null,{"$f":"VLOOKUP(P947,'Input MCC'!B:C,2,0)","v":{"$error":"#N/A"}},{"$f":"VLOOKUP(P947,'Input MCC'!B:E,4,0)","v":{"$error":"#N/A"}},null,null,null,null,null,null,null,null,null,null,null,null,null,{"$error":"#DIV/0!"},0,0,null,"","","","","","","","","","",null,null,null,null,null,null,null,null,null,null,null,null,null,null,null,null,null,"ZWO"]
[null,null,null,null,null,null,null,null,null,null,null,null,null,null,null,null,{"$f":"VLOOKUP(P948,'Input MCC'!B:C,2,0)","v":{"$error":"#N/A"}},{"$f":"VLOOKUP(P948,'Input MCC'!B:E,4,0)","v":{"$error":"#N/A"}},null,null,null,null,{"$f":"SUM(V948:V953)","v":0},null,null,null,null,null,null,null,null,{"$error":"#DIV/0!"},0,0,null,"","","","","","","","","","",null,null,null,null,null,null,null,null,null,null,null,null,null,null,null,null,null,"ZWO"]
[null,null,null,null,null,null,null,null,null,null,null,null,null,null,null,null,{"$f":"VLOOKUP(P949,'Input MCC'!B:C,2,0)","v":{"$error":"#N/A"}},{"$f":"VLOOKUP(P949,'Input MCC'!B:E,4,0)","v":{"$error":"#N/A"}},null,null,null,null,null,null,null,null,null,null,null,null,null,{"$error":"#DIV/0!"},0,0,null,"","","","","","","","","","",null,null,null,null,null,null,null,null,null,null,null,null,null,null,null,null,null,"ZWO"]
[null,null,null,null,null,null,null,null,null,null,null,null,null,null,null,null,{"$f":"VLOOKUP(P950,'Input MCC'!B:C,2,0)","v":{"$error":"#N/A"}},{"$f":"VLOOKUP(P950,'Input MCC'!B:E,4,0)","v":{"$error":"#N/A"}},null,null,null,null,null,null,null,null,null,null,null,null,null,{"$error":"#DIV/0!"},0,0,null,"","","","","","","","","","",null,null,null,null,null,null,null,null,null,null,null,null,null,null,null,null,null,"ZWO"]
[null,null,null,null,null,null,null,null,null,null,null,null,null,null,null,null,{"$f":"VLOOKUP(P951,'Input MCC'!B:C,2,0)","v":{"$error":"#N/A"}},{"$f":"VLOOKUP(P951,'Input MCC'!B:E,4,0)","v":{"$error":"#N/A"}},null,null,null,null,null,null,null,null,null,null,null,null,null,{"$error":"#DIV/0!"},0,0,null,"","","","","","","","","","",null,null,null,null,null,null,null,null,null,null,null,null,null,null,null,null,null,"ZWO"]
[null,null,null,null,null,null,null,null,null,null,null,null,null,null,null,null,{"$f":"VLOOKUP(P952,'Input MCC'!B:C,2,0)","v":{"$error":"#N/A"}},{"$f":"VLOOKUP(P952,'Input MCC'!B:E,4,0)","v":{"$error":"#N/A"}},null,null,null,null,null,null,null,null,null,null,null,null,null,{"$f":"AE952/AC952","v":{"$error":"#DIV/0!"}},{"$f":"V952*AC952","v":0},{"$f":"V952*AE952","v":0},null,{"$f":"IF(AI952 <> \"\",\n    IF(ISNUMBER(VALUE(LEFT(AI952, FIND(\"%\", AI952)-1))),\n        VALUE(LEFT(AI952, FIND(\"%\", AI952)-1)),\n        \"Invalid format\"),\n    \"\")","v":""},{"$f":"IF(AI952 <> \"\",\n    IF(ISNUMBER(VALUE(LEFT(AI952, FIND(\"%\", AI952)-1))) * ISNUMBER(FIND(\"%\", AI952 & \"wol\")) > 0,\n        TRIM(MID(AI952, FIND(\"%\", AI952)+1, FIND(\"/\", AI952 & \"/\")-FIND(\"%\", AI952)-1)),\n        \"Invalid format\"),\n    \"\")","v":""},{"$f":"IF(AI952 <> \"\",\n    IF(ISNUMBER(VALUE(MID(AI952, FIND(\"/\", AI952) + 1, FIND(\"%\", AI952, FIND(\"/\", AI952)) - FIND(\"/\", AI952) - 1))),\n        VALUE(MID(AI952, FIND(\"/\", AI952) + 1, FIND(\"%\", AI952, FIND(\"/\", AI952)) - FIND(\"/\", AI952) - 1)),\n        \"\"),\n    \"\")","v":""},{"$f":"IF(AI952 <> \"\",\n    IFERROR(TRIM(MID(AI952, FIND(\"%\", AI952, FIND(\"/\", AI952)+1)+2,\n        IFERROR(FIND(\"/\", AI952 & \"/\", FIND(\"/\", AI952)+1)-FIND(\"%\", AI952, FIND(\"/\", AI952)+1)-2, LEN(AI952)-FIND(\"%\", AI952, FIND(\"/\", AI952)+1)-1))),\n        \"\"),\n    \"\")","v":""},{"$f":"IF(AI952 <> \"\",\n    IF(ISNUMBER(VALUE(MID(AI952, FIND(\"/\", AI952, FIND(\"/\", AI952)+1) + 1, FIND(\"%\", AI952, FIND(\"/\", AI952, FIND(\"/\", AI952)+1)) - FIND(\"/\", AI952, FIND(\"/\", AI952)+1) - 1))),\n        VALUE(MID(AI952, FIND(\"/\", AI952, FIND(\"/\", AI952)+1) + 1, FIND(\"%\", AI952, FIND(\"/\", AI952, FIND(\"/\", AI952)+1)) - FIND(\"/\", AI952, FIND(\"/\", AI952)+1) - 1)),\n        \"\"),\n    \"\")","v":""},{"$f":"IF(AI952 <> \"\",\n    IFERROR(\n        TRIM(MID(AI952,\n            FIND(\"%\", AI952, FIND(\"%\", AI952, FIND(\"%\", AI952)+1)+1)+1,\n            FIND(\"/\", AI952 & \"/\", FIND(\"%\", AI952, FIND(\"%\", AI952, FIND(\"%\", AI952)+1)+1))-FIND(\"%\", AI952, FIND(\"%\", AI952, FIND(\"%\", AI952)+1)+1)-1)\n        ),\n        \"\"\n    ),\n    \"\"\n)","v":""},{"$f":"IF(AI952 <> \"\",\n    IF(ISNUMBER(VALUE(MID(AI952, FIND(\"/\", AI952, FIND(\"/\", AI952, FIND(\"/\", AI952)+1)+1) + 1, FIND(\"%\", AI952, FIND(\"/\", AI952, FIND(\"/\", AI952, FIND(\"/\", AI952)+1)+1)) - FIND(\"/\", AI952, FIND(\"/\", AI952, FIND(\"/\", AI952)+1)+1) - 1))),\n        VALUE(MID(AI952, FIND(\"/\", AI952, FIND(\"/\", AI952, FIND(\"/\", AI952)+1)+1) + 1, FIND(\"%\", AI952, FIND(\"/\", AI952, FIND(\"/\", AI952, FIND(\"/\", AI952)+1)+1)) - FIND(\"/\", AI952, FIND(\"/\", AI952, FIND(\"/\", AI952)+1)+1) - 1)),\n        \"\"),\n    \"\")","v":""},{"$f":"IF(AI952 <> \"\",\n    IFERROR(TRIM(MID(AI952, FIND(\"%\", AI952, FIND(\"/\", AI952, FIND(\"/\", AI952, FIND(\"/\", AI952)+1)+1)+1)+2,\n        IFERROR(FIND(\"/\", AI952, FIND(\"/\", AI952, FIND(\"/\", AI952, FIND(\"/\", AI952)+1)+1)+1)-FIND(\"%\", AI952, FIND(\"/\", AI952, FIND(\"/\", AI952, FIND(\"/\", AI952)+1)+1)+1)-2, LEN(AI952)-FIND(\"%\", AI952, FIND(\"/\", AI952, FIND(\"/\", AI952, FIND(\"/\", AI952)+1)+1)+1)-1))),\n        \"\"),\n    \"\")","v":""},{"$f":"IF(AI952 <> \"\",\n    IF(ISNUMBER(VALUE(MID(AI952, FIND(\"/\", AI952, FIND(\"/\", AI952, FIND(\"/\", AI952, FIND(\"/\", AI952)+1)+1)+1) + 1, FIND(\"%\", AI952, FIND(\"/\", AI952, FIND(\"/\", AI952, FIND(\"/\", AI952, FIND(\"/\", AI952)+1)+1)+1)) - FIND(\"/\", AI952, FIND(\"/\", AI952, FIND(\"/\", AI952, FIND(\"/\", AI952)+1)+1)+1) - 1))),\n        VALUE(MID(AI952, FIND(\"/\", AI952, FIND(\"/\", AI952, FIND(\"/\", AI952, FIND(\"/\", AI952)+1)+1)+1) + 1, FIND(\"%\", AI952, FIND(\"/\", AI952, FIND(\"/\", AI952, FIND(\"/\", AI952, FIND(\"/\", AI952)+1)+1)+1)) - FIND(\"/\", AI952, FIND(\"/\", AI952, FIND(\"/\", AI952, FIND(\"/\", AI952)+1)+1)+1) - 1)),\n        \"\"),\n    \"\")","v":""},{"$f":"IF(AI952 = \"\", \"\",\n    IFERROR(TRIM(\n        MID(\n            AI952,\n            FIND(\"%\", AI952, FIND(\"/\", AI952, FIND(\"/\", AI952, FIND(\"/\", AI952, FIND(\"/\", AI952)+1)+1)+1)+1) + 1,\n            FIND(\"/\", AI952 & \"/\", FIND(\"%\", AI952, FIND(\"/\", AI952, FIND(\"/\", AI952, FIND(\"/\", AI952, FIND(\"/\", AI952)+1)+1)+1)+1)) -\n            FIND(\"%\", AI952, FIND(\"/\", AI952, FIND(\"/\", AI952, FIND(\"/\", AI952, FIND(\"/\", AI952)+1)+1)+1)+1) - 1\n        )\n    ),\n    \"\")\n)","v":""},null,null,null,null,null,null,null,null,null,null,null,null,null,null,null,null,null,"ZWO"]
[null,null,null,null,null,null,null,null,null,null,null,null,null,null,null,null,{"$f":"VLOOKUP(P953,'Input MCC'!B:C,2,0)","v":{"$error":"#N/A"}},{"$f":"VLOOKUP(P953,'Input MCC'!B:E,4,0)","v":{"$error":"#N/A"}},null,null,null,null,null,null,null,null,null,null,null,null,null,{"$error":"#DIV/0!"},0,0,null,"","","","","","","","","","",null,null,null,null,null,null,null,null,null,null,null,null,null,null,null,null,null,"ZWO"]
[null,null,null,null,null,null,null,null,null,null,null,null,null,null,null,null,{"$f":"VLOOKUP(P954,'Input MCC'!B:C,2,0)","v":{"$error":"#N/A"}},{"$f":"VLOOKUP(P954,'Input MCC'!B:E,4,0)","v":{"$error":"#N/A"}},null,null,null,null,{"$f":"SUM(V954:V959)","v":0},null,null,null,null,null,null,null,null,{"$error":"#DIV/0!"},0,0,null,"","","","","","","","","","",null,null,null,null,null,null,null,null,null,null,null,null,null,null,null,null,null,"ZWO"]
[null,null,null,null,null,null,null,null,null,null,null,null,null,null,null,null,{"$f":"VLOOKUP(P955,'Input MCC'!B:C,2,0)","v":{"$error":"#N/A"}},{"$f":"VLOOKUP(P955,'Input MCC'!B:E,4,0)","v":{"$error":"#N/A"}},null,null,null,null,null,null,null,null,null,null,null,null,null,{"$error":"#DIV/0!"},0,0,null,"","","","","","","","","","",null,null,null,null,null,null,null,null,null,null,null,null,null,null,null,null,null,"ZWO"]
[null,null,null,null,null,null,null,null,null,null,null,null,null,null,null,null,{"$f":"VLOOKUP(P956,'Input MCC'!B:C,2,0)","v":{"$error":"#N/A"}},{"$f":"VLOOKUP(P956,'Input MCC'!B:E,4,0)","v":{"$error":"#N/A"}},null,null,null,null,null,null,null,null,null,null,null,null,null,{"$error":"#DIV/0!"},0,0,null,"","","","","","","","","","",null,null,null,null,null,null,null,null,null,null,null,null,null,null,null,null,null,"ZWO"]
[null,null,null,null,null,null,null,null,null,null,null,null,null,null,null,null,{"$f":"VLOOKUP(P957,'Input MCC'!B:C,2,0)","v":{"$error":"#N/A"}},{"$f":"VLOOKUP(P957,'Input MCC'!B:E,4,0)","v":{"$error":"#N/A"}},null,null,null,null,null,null,null,null,null,null,null,null,null,{"$error":"#DIV/0!"},0,0,null,"","","","","","","","","","",null,null,null,null,null,null,null,null,null,null,null,null,null,null,null,null,null,"ZWO"]
[null,null,null,null,null,null,null,null,null,null,null,null,null,null,null,null,{"$f":"VLOOKUP(P958,'Input MCC'!B:C,2,0)","v":{"$error":"#N/A"}},{"$f":"VLOOKUP(P958,'Input MCC'!B:E,4,0)","v":{"$error":"#N/A"}},null,null,null,null,null,null,null,null,null,null,null,null,null,{"$error":"#DIV/0!"},0,0,null,"","","","","","","","","","",null,null,null,null,null,null,null,null,null,null,null,null,null,null,null,null,null,"ZWO"]
[null,null,null,null,null,null,null,null,null,null,null,null,null,null,null,null,{"$f":"VLOOKUP(P959,'Input MCC'!B:C,2,0)","v":{"$error":"#N/A"}},{"$f":"VLOOKUP(P959,'Input MCC'!B:E,4,0)","v":{"$error":"#N/A"}},null,null,null,null,null,null,null,null,null,null,null,null,null,{"$error":"#DIV/0!"},0,0,null,"","","","","","","","","","",null,null,null,null,null,null,null,null,null,null,null,null,null,null,null,null,null,"ZWO"]
[null,null,null,null,null,null,null,null,null,null,null,null,null,null,null,null,{"$f":"VLOOKUP(P960,'Input MCC'!B:C,2,0)","v":{"$error":"#N/A"}},{"$f":"VLOOKUP(P960,'Input MCC'!B:E,4,0)","v":{"$error":"#N/A"}},null,null,null,null,{"$f":"SUM(V960:V965)","v":0},null,null,null,null,null,null,null,null,{"$error":"#DIV/0!"},0,0,null,"","","","","","","","","","",null,null,null,null,null,null,null,null,null,null,null,null,null,null,null,null,null,"ZWO"]
[null,null,null,null,null,null,null,null,null,null,null,null,null,null,null,null,{"$f":"VLOOKUP(P961,'Input MCC'!B:C,2,0)","v":{"$error":"#N/A"}},{"$f":"VLOOKUP(P961,'Input MCC'!B:E,4,0)","v":{"$error":"#N/A"}},null,null,null,null,null,null,null,null,null,null,null,null,null,{"$error":"#DIV/0!"},0,0,null,"","","","","","","","","","",null,null,null,null,null,null,null,null,null,null,null,null,null,null,null,null,null,"ZWO"]
[null,null,null,null,null,null,null,null,null,null,null,null,null,null,null,null,{"$f":"VLOOKUP(P962,'Input MCC'!B:C,2,0)","v":{"$error":"#N/A"}},{"$f":"VLOOKUP(P962,'Input MCC'!B:E,4,0)","v":{"$error":"#N/A"}},null,null,null,null,null,null,null,null,null,null,null,null,null,{"$error":"#DIV/0!"},0,0,null,"","","","","","","","","","",null,null,null,null,null,null,null,null,null,null,null,null,null,null,null,null,null,"ZWO"]
[null,null,null,null,null,null,null,null,null,null,null,null,null,null,null,null,{"$f":"VLOOKUP(P963,'Input MCC'!B:C,2,0)","v":{"$error":"#N/A"}},{"$f":"VLOOKUP(P963,'Input MCC'!B:E,4,0)","v":{"$error":"#N/A"}},null,null,null,null,null,null,null,null,null,null,null,null,null,{"$error":"#DIV/0!"},0,0,null,"","","","","","","","","","",null,null,null,null,null,null,null,null,null,null,null,null,null,null,null,null,null,"ZWO"]
[null,null,null,null,null,null,null,null,null,null,null,null,null,null,null,null,{"$f":"VLOOKUP(P964,'Input MCC'!B:C,2,0)","v":{"$error":"#N/A"}},{"$f":"VLOOKUP(P964,'Input MCC'!B:E,4,0)","v":{"$error":"#N/A"}},null,null,null,null,null,null,null,null,null,null,null,null,null,{"$error":"#DIV/0!"},0,0,null,"","","","","","","","","","",null,null,null,null,null,null,null,null,null,null,null,null,null,null,null,null,null,"ZWO"]
[null,null,null,null,null,null,null,null,null,null,null,null,null,null,null,null,{"$f":"VLOOKUP(P965,'Input MCC'!B:C,2,0)","v":{"$error":"#N/A"}},{"$f":"VLOOKUP(P965,'Input MCC'!B:E,4,0)","v":{"$error":"#N/A"}},null,null,null,null,null,null,null,null,null,null,null,null,null,{"$error":"#DIV/0!"},0,0,null,"","","","","","","","","","",null,null,null,null,null,null,null,null,null,null,null,null,null,null,null,null,null,"ZWO"]
[null,null,null,null,null,null,null,null,null,null,null,null,null,null,null,null,{"$f":"VLOOKUP(P966,'Input MCC'!B:C,2,0)","v":{"$error":"#N/A"}},{"$f":"VLOOKUP(P966,'Input MCC'!B:E,4,0)","v":{"$error":"#N/A"}},null,null,null,null,{"$f":"SUM(V966:V971)","v":0},null,null,null,null,null,null,null,null,{"$error":"#DIV/0!"},0,0,null,"","","","","","","","","","",null,null,null,null,null,null,null,null,null,null,null,null,null,null,null,null,null,"ZWO"]
[null,null,null,null,null,null,null,null,null,null,null,null,null,null,null,null,{"$f":"VLOOKUP(P967,'Input MCC'!B:C,2,0)","v":{"$error":"#N/A"}},{"$f":"VLOOKUP(P967,'Input MCC'!B:E,4,0)","v":{"$error":"#N/A"}},null,null,null,null,null,null,null,null,null,null,null,null,null,{"$error":"#DIV/0!"},0,0,null,"","","","","","","","","","",null,null,null,null,null,null,null,null,null,null,null,null,null,null,null,null,null,"ZWO"]
[null,null,null,null,null,null,null,null,null,null,null,null,null,null,null,null,{"$f":"VLOOKUP(P968,'Input MCC'!B:C,2,0)","v":{"$error":"#N/A"}},{"$f":"VLOOKUP(P968,'Input MCC'!B:E,4,0)","v":{"$error":"#N/A"}},null,null,null,null,null,null,null,null,null,null,null,null,null,{"$error":"#DIV/0!"},0,0,null,"","","","","","","","","","",null,null,null,null,null,null,null,null,null,null,null,null,null,null,null,null,null,"ZWO"]
[null,null,null,null,null,null,null,null,null,null,null,null,null,null,null,null,{"$f":"VLOOKUP(P969,'Input MCC'!B:C,2,0)","v":{"$error":"#N/A"}},{"$f":"VLOOKUP(P969,'Input MCC'!B:E,4,0)","v":{"$error":"#N/A"}},null,null,null,null,null,null,null,null,null,null,null,null,null,{"$error":"#DIV/0!"},0,0,null,"","","","","","","","","","",null,null,null,null,null,null,null,null,null,null,null,null,null,null,null,null,null,"ZWO"]
[null,null,null,null,null,null,null,null,null,null,null,null,null,null,null,null,{"$f":"VLOOKUP(P970,'Input MCC'!B:C,2,0)","v":{"$error":"#N/A"}},{"$f":"VLOOKUP(P970,'Input MCC'!B:E,4,0)","v":{"$error":"#N/A"}},null,null,null,null,null,null,null,null,null,null,null,null,null,{"$error":"#DIV/0!"},0,0,null,"","","","","","","","","","",null,null,null,null,null,null,null,null,null,null,null,null,null,null,null,null,null,"ZWO"]
[null,null,null,null,null,null,null,null,null,null,null,null,null,null,null,null,{"$f":"VLOOKUP(P971,'Input MCC'!B:C,2,0)","v":{"$error":"#N/A"}},{"$f":"VLOOKUP(P971,'Input MCC'!B:E,4,0)","v":{"$error":"#N/A"}},null,null,null,null,null,null,null,null,null,null,null,null,null,{"$error":"#DIV/0!"},0,0,null,"","","","","","","","","","",null,null,null,null,null,null,null,null,null,null,null,null,null,null,null,null,null,"ZWO"]
[null,null,null,null,null,null,null,null,null,null,null,null,null,null,null,null,{"$f":"VLOOKUP(P972,'Input MCC'!B:C,2,0)","v":{"$error":"#N/A"}},{"$f":"VLOOKUP(P972,'Input MCC'!B:E,4,0)","v":{"$error":"#N/A"}},null,null,null,null,{"$f":"SUM(V972:V977)","v":0},null,null,null,null,null,null,null,null,{"$error":"#DIV/0!"},0,0,null,"","","","","","","","","","",null,null,null,null,null,null,null,null,null,null,null,null,null,null,null,null,null,"ZWO"]
[null,null,null,null,null,null,null,null,null,null,null,null,null,null,null,null,{"$f":"VLOOKUP(P973,'Input MCC'!B:C,2,0)","v":{"$error":"#N/A"}},{"$f":"VLOOKUP(P973,'Input MCC'!B:E,4,0)","v":{"$error":"#N/A"}},null,null,null,null,null,null,null,null,null,null,null,null,null,{"$error":"#DIV/0!"},0,0,null,"","","","","","","","","","",null,null,null,null,null,null,null,null,null,null,null,null,null,null,null,null,null,"ZWO"]
[null,null,null,null,null,null,null,null,null,null,null,null,null,null,null,null,{"$f":"VLOOKUP(P974,'Input MCC'!B:C,2,0)","v":{"$error":"#N/A"}},{"$f":"VLOOKUP(P974,'Input MCC'!B:E,4,0)","v":{"$error":"#N/A"}},null,null,null,null,null,null,null,null,null,null,null,null,null,{"$error":"#DIV/0!"},0,0,null,"","","","","","","","","","",null,null,null,null,null,null,null,null,null,null,null,null,null,null,null,null,null,"ZWO"]
[null,null,null,null,null,null,null,null,null,null,null,null,null,null,null,null,{"$f":"VLOOKUP(P975,'Input MCC'!B:C,2,0)","v":{"$error":"#N/A"}},{"$f":"VLOOKUP(P975,'Input MCC'!B:E,4,0)","v":{"$error":"#N/A"}},null,null,null,null,null,null,null,null,null,null,null,null,null,{"$error":"#DIV/0!"},0,0,null,"","","","","","","","","","",null,null,null,null,null,null,null,null,null,null,null,null,null,null,null,null,null,"ZWO"]
[null,null,null,null,null,null,null,null,null,null,null,null,null,null,null,null,{"$f":"VLOOKUP(P976,'Input MCC'!B:C,2,0)","v":{"$error":"#N/A"}},{"$f":"VLOOKUP(P976,'Input MCC'!B:E,4,0)","v":{"$error":"#N/A"}},null,null,null,null,null,null,null,null,null,null,null,null,null,{"$error":"#DIV/0!"},0,0,null,"","","","","","","","","","",null,null,null,null,null,null,null,null,null,null,null,null,null,null,null,null,null,"ZWO"]
[null,null,null,null,null,null,null,null,null,null,null,null,null,null,null,null,{"$f":"VLOOKUP(P977,'Input MCC'!B:C,2,0)","v":{"$error":"#N/A"}},{"$f":"VLOOKUP(P977,'Input MCC'!B:E,4,0)","v":{"$error":"#N/A"}},null,null,null,null,null,null,null,null,null,null,null,null,null,{"$error":"#DIV/0!"},0,0,null,"","","","","","","","","","",null,null,null,null,null,null,null,null,null,null,null,null,null,null,null,null,null,"ZWO"]
[null,null,null,null,null,null,null,null,null,null,null,null,null,null,null,null,{"$f":"VLOOKUP(P978,'Input MCC'!B:C,2,0)","v":{"$error":"#N/A"}},{"$f":"VLOOKUP(P978,'Input MCC'!B:E,4,0)","v":{"$error":"#N/A"}},null,null,null,null,{"$f":"SUM(V978:V983)","v":0},null,null,null,null,null,null,null,null,{"$error":"#DIV/0!"},0,0,null,"","","","","","","","","","",null,null,null,null,null,null,null,null,null,null,null,null,null,null,null,null,null,"ZWO"]
[null,null,null,null,null,null,null,null,null,null,null,null,null,null,null,null,{"$f":"VLOOKUP(P979,'Input MCC'!B:C,2,0)","v":{"$error":"#N/A"}},{"$f":"VLOOKUP(P979,'Input MCC'!B:E,4,0)","v":{"$error":"#N/A"}},null,null,null,null,null,null,null,null,null,null,null,null,null,{"$error":"#DIV/0!"},0,0,null,"","","","","","","","","","",null,null,null,null,null,null,null,null,null,null,null,null,null,null,null,null,null,"ZWO"]
[null,null,null,null,null,null,null,null,null,null,null,null,null,null,null,null,{"$f":"VLOOKUP(P980,'Input MCC'!B:C,2,0)","v":{"$error":"#N/A"}},{"$f":"VLOOKUP(P980,'Input MCC'!B:E,4,0)","v":{"$error":"#N/A"}},null,null,null,null,null,null,null,null,null,null,null,null,null,{"$error":"#DIV/0!"},0,0,null,"","","","","","","","","","",null,null,null,null,null,null,null,null,null,null,null,null,null,null,null,null,null,"ZWO"]
[null,null,null,null,null,null,null,null,null,null,null,null,null,null,null,null,{"$f":"VLOOKUP(P981,'Input MCC'!B:C,2,0)","v":{"$error":"#N/A"}},{"$f":"VLOOKUP(P981,'Input MCC'!B:E,4,0)","v":{"$error":"#N/A"}},null,null,null,null,null,null,null,null,null,null,null,null,null,{"$error":"#DIV/0!"},0,0,null,"","","","","","","","","","",null,null,null,null,null,null,null,null,null,null,null,null,null,null,null,null,null,"ZWO"]
[null,null,null,null,null,null,null,null,null,null,null,null,null,null,null,null,{"$f":"VLOOKUP(P982,'Input MCC'!B:C,2,0)","v":{"$error":"#N/A"}},{"$f":"VLOOKUP(P982,'Input MCC'!B:E,4,0)","v":{"$error":"#N/A"}},null,null,null,null,null,null,null,null,null,null,null,null,null,{"$error":"#DIV/0!"},0,0,null,"","","","","","","","","","",null,null,null,null,null,null,null,null,null,null,null,null,null,null,null,null,null,"ZWO"]
[null,null,null,null,null,null,null,null,null,null,null,null,null,null,null,null,{"$f":"VLOOKUP(P983,'Input MCC'!B:C,2,0)","v":{"$error":"#N/A"}},{"$f":"VLOOKUP(P983,'Input MCC'!B:E,4,0)","v":{"$error":"#N/A"}},null,null,null,null,null,null,null,null,null,null,null,null,null,{"$error":"#DIV/0!"},0,0,null,"","","","","","","","","","",null,null,null,null,null,null,null,null,null,null,null,null,null,null,null,null,null,"ZWO"]
[null,null,null,null,null,null,null,null,null,null,null,null,null,null,null,null,{"$f":"VLOOKUP(P984,'Input MCC'!B:C,2,0)","v":{"$error":"#N/A"}},{"$f":"VLOOKUP(P984,'Input MCC'!B:E,4,0)","v":{"$error":"#N/A"}},null,null,null,null,{"$f":"SUM(V984:V989)","v":0},null,null,null,null,null,null,null,null,{"$error":"#DIV/0!"},0,0,null,"","","","","","","","","","",null,null,null,null,null,null,null,null,null,null,null,null,null,null,null,null,null,"ZWO"]
[null,null,null,null,null,null,null,null,null,null,null,null,null,null,null,null,{"$f":"VLOOKUP(P985,'Input MCC'!B:C,2,0)","v":{"$error":"#N/A"}},{"$f":"VLOOKUP(P985,'Input MCC'!B:E,4,0)","v":{"$error":"#N/A"}},null,null,null,null,null,null,null,null,null,null,null,null,null,{"$error":"#DIV/0!"},0,0,null,"","","","","","","","","","",null,null,null,null,null,null,null,null,null,null,null,null,null,null,null,null,null,"ZWO"]
[null,null,null,null,null,null,null,null,null,null,null,null,null,null,null,null,{"$f":"VLOOKUP(P986,'Input MCC'!B:C,2,0)","v":{"$error":"#N/A"}},{"$f":"VLOOKUP(P986,'Input MCC'!B:E,4,0)","v":{"$error":"#N/A"}},null,null,null,null,null,null,null,null,null,null,null,null,null,{"$error":"#DIV/0!"},0,0,null,"","","","","","","","","","",null,null,null,null,null,null,null,null,null,null,null,null,null,null,null,null,null,"ZWO"]
[null,null,null,null,null,null,null,null,null,null,null,null,null,null,null,null,{"$f":"VLOOKUP(P987,'Input MCC'!B:C,2,0)","v":{"$error":"#N/A"}},{"$f":"VLOOKUP(P987,'Input MCC'!B:E,4,0)","v":{"$error":"#N/A"}},null,null,null,null,null,null,null,null,null,null,null,null,null,{"$error":"#DIV/0!"},0,0,null,"","","","","","","","","","",null,null,null,null,null,null,null,null,null,null,null,null,null,null,null,null,null,"ZWO"]
[null,null,null,null,null,null,null,null,null,null,null,null,null,null,null,null,{"$f":"VLOOKUP(P988,'Input MCC'!B:C,2,0)","v":{"$error":"#N/A"}},{"$f":"VLOOKUP(P988,'Input MCC'!B:E,4,0)","v":{"$error":"#N/A"}},null,null,null,null,null,null,null,null,null,null,null,null,null,{"$error":"#DIV/0!"},0,0,null,"","","","","","","","","","",null,null,null,null,null,null,null,null,null,null,null,null,null,null,null,null,null,"ZWO"]
[null,null,null,null,null,null,null,null,null,null,null,null,null,null,null,null,{"$f":"VLOOKUP(P989,'Input MCC'!B:C,2,0)","v":{"$error":"#N/A"}},{"$f":"VLOOKUP(P989,'Input MCC'!B:E,4,0)","v":{"$error":"#N/A"}},null,null,null,null,null,null,null,null,null,null,null,null,null,{"$error":"#DIV/0!"},0,0,null,"","","","","","","","","","",null,null,null,null,null,null,null,null,null,null,null,null,null,null,null,null,null,"ZWO"]
[null,null,null,null,null,null,null,null,null,null,null,null,null,null,null,null,{"$f":"VLOOKUP(P990,'Input MCC'!B:C,2,0)","v":{"$error":"#N/A"}},{"$f":"VLOOKUP(P990,'Input MCC'!B:E,4,0)","v":{"$error":"#N/A"}},null,null,null,null,{"$f":"SUM(V990:V995)","v":0},null,null,null,null,null,null,null,null,{"$error":"#DIV/0!"},0,0,null,"","","","","","","","","","",null,null,null,null,null,null,null,null,null,null,null,null,null,null,null,null,null,"ZWO"]
[null,null,null,null,null,null,null,null,null,null,null,null,null,null,null,null,{"$f":"VLOOKUP(P991,'Input MCC'!B:C,2,0)","v":{"$error":"#N/A"}},{"$f":"VLOOKUP(P991,'Input MCC'!B:E,4,0)","v":{"$error":"#N/A"}},null,null,null,null,null,null,null,null,null,null,null,null,null,{"$error":"#DIV/0!"},0,0,null,"","","","","","","","","","",null,null,null,null,null,null,null,null,null,null,null,null,null,null,null,null,null,"ZWO"]
[null,null,null,null,null,null,null,null,null,null,null,null,null,null,null,null,{"$f":"VLOOKUP(P992,'Input MCC'!B:C,2,0)","v":{"$error":"#N/A"}},{"$f":"VLOOKUP(P992,'Input MCC'!B:E,4,0)","v":{"$error":"#N/A"}},null,null,null,null,null,null,null,null,null,null,null,null,null,{"$error":"#DIV/0!"},0,0,null,"","","","","","","","","","",null,null,null,null,null,null,null,null,null,null,null,null,null,null,null,null,null,"ZWO"]
[null,null,null,null,null,null,null,null,null,null,null,null,null,null,null,null,{"$f":"VLOOKUP(P993,'Input MCC'!B:C,2,0)","v":{"$error":"#N/A"}},{"$f":"VLOOKUP(P993,'Input MCC'!B:E,4,0)","v":{"$error":"#N/A"}},null,null,null,null,null,null,null,null,null,null,null,null,null,{"$error":"#DIV/0!"},0,0,null,"","","","","","","","","","",null,null,null,null,null,null,null,null,null,null,null,null,null,null,null,null,null,"ZWO"]
[null,null,null,null,null,null,null,null,null,null,null,null,null,null,null,null,{"$f":"VLOOKUP(P994,'Input MCC'!B:C,2,0)","v":{"$error":"#N/A"}},{"$f":"VLOOKUP(P994,'Input MCC'!B:E,4,0)","v":{"$error":"#N/A"}},null,null,null,null,null,null,null,null,null,null,null,null,null,{"$error":"#DIV/0!"},0,0,null,"","","","","","","","","","",null,null,null,null,null,null,null,null,null,null,null,null,null,null,null,null,null,"ZWO"]
[null,null,null,null,null,null,null,null,null,null,null,null,null,null,null,null,{"$f":"VLOOKUP(P995,'Input MCC'!B:C,2,0)","v":{"$error":"#N/A"}},{"$f":"VLOOKUP(P995,'Input MCC'!B:E,4,0)","v":{"$error":"#N/A"}},null,null,null,null,null,null,null,null,null,null,null,null,null,{"$error":"#DIV/0!"},0,0,null,"","","","","","","","","","",null,null,null,null,null,null,null,null,null,null,null,null,null,null,null,null,null,"ZWO"]
[null,null,null,null,null,null,null,null,null,null,null,null,null,null,null,null,{"$f":"VLOOKUP(P996,'Input MCC'!B:C,2,0)","v":{"$error":"#N/A"}},{"$f":"VLOOKUP(P996,'Input MCC'!B:E,4,0)","v":{"$error":"#N/A"}},null,null,null,null,{"$f":"SUM(V996:V1001)","v":0},null,null,null,null,null,null,null,null,{"$error":"#DIV/0!"},0,0,null,"","","","","","","","","","",null,null,null,null,null,null,null,null,null,null,null,null,null,null,null,null,null,"ZWO"]
[null,null,null,null,null,null,null,null,null,null,null,null,null,null,null,null,{"$f":"VLOOKUP(P997,'Input MCC'!B:C,2,0)","v":{"$error":"#N/A"}},{"$f":"VLOOKUP(P997,'Input MCC'!B:E,4,0)","v":{"$error":"#N/A"}},null,null,null,null,null,null,null,null,null,null,null,null,null,{"$error":"#DIV/0!"},0,0,null,"","","","","","","","","","",null,null,null,null,null,null,null,null,null,null,null,null,null,null,null,null,null,"ZWO"]
[null,null,null,null,null,null,null,null,null,null,null,null,null,null,null,null,{"$f":"VLOOKUP(P998,'Input MCC'!B:C,2,0)","v":{"$error":"#N/A"}},{"$f":"VLOOKUP(P998,'Input MCC'!B:E,4,0)","v":{"$error":"#N/A"}},null,null,null,null,null,null,null,null,null,null,null,null,null,{"$error":"#DIV/0!"},0,0,null,"","","","","","","","","","",null,null,null,null,null,null,null,null,null,null,null,null,null,null,null,null,null,"ZWO"]
[null,null,null,null,null,null,null,null,null,null,null,null,null,null,null,null,{"$f":"VLOOKUP(P999,'Input MCC'!B:C,2,0)","v":{"$error":"#N/A"}},{"$f":"VLOOKUP(P999,'Input MCC'!B:E,4,0)","v":{"$error":"#N/A"}},null,null,null,null,null,null,null,null,null,null,null,null,null,{"$error":"#DIV/0!"},0,0,null,"","","","","","","","","","",null,null,null,null,null,null,null,null,null,null,null,null,null,null,null,null,null,"ZWO"]
[null,null,null,null,null,null,null,null,null,null,null,null,null,null,null,null,{"$f":"VLOOKUP(P1000,'Input MCC'!B:C,2,0)","v":{"$error":"#N/A"}},{"$f":"VLOOKUP(P1000,'Input MCC'!B:E,4,0)","v":{"$error":"#N/A"}},null,null,null,null,null,null,null,null,null,null,null,null,null,{"$error":"#DIV/0!"},0,0,null,"","","","","","","","","","",null,null,null,null,null,null,null,null,null,null,null,null,null,null,null,null,null,"ZWO"]
[null,null,null,null,null,null,null,null,null,null,null,null,null,null,null,null,{"$f":"VLOOKUP(P1001,'Input MCC'!B:C,2,0)","v":{"$error":"#N/A"}},{"$f":"VLOOKUP(P1001,'Input MCC'!B:E,4,0)","v":{"$error":"#N/A"}},null,null,null,null,null,null,null,null,null,null,null,null,null,{"$error":"#DIV/0!"},0,0,null,"","","","","","","","","","",null,null,null,null,null,null,null,null,null,null,null,null,null,null,null,null,null,"ZWO"]
[null,null,null,null,null,null,null,null,null,null,null,null,null,null,null,null,{"$f":"VLOOKUP(P1002,'Input MCC'!B:C,2,0)","v":{"$error":"#N/A"}},{"$f":"VLOOKUP(P1002,'Input MCC'!B:E,4,0)","v":{"$error":"#N/A"}},null,null,null,null,{"$f":"SUM(V1002:V1007)","v":0},null,null,null,null,null,null,null,null,{"$error":"#DIV/0!"},0,0,null,"","","","","","","","","","",null,null,null,null,null,null,null,null,null,null,null,null,null,null,null,null,null,"ZWO"]
[null,null,null,null,null,null,null,null,null,null,null,null,null,null,null,null,{"$f":"VLOOKUP(P1003,'Input MCC'!B:C,2,0)","v":{"$error":"#N/A"}},{"$f":"VLOOKUP(P1003,'Input MCC'!B:E,4,0)","v":{"$error":"#N/A"}},null,null,null,null,null,null,null,null,null,null,null,null,null,{"$error":"#DIV/0!"},0,0,null,"","","","","","","","","","",null,null,null,null,null,null,null,null,null,null,null,null,null,null,null,null,null,"ZWO"]
[null,null,null,null,null,null,null,null,null,null,null,null,null,null,null,null,{"$f":"VLOOKUP(P1004,'Input MCC'!B:C,2,0)","v":{"$error":"#N/A"}},{"$f":"VLOOKUP(P1004,'Input MCC'!B:E,4,0)","v":{"$error":"#N/A"}},null,null,null,null,null,null,null,null,null,null,null,null,null,{"$error":"#DIV/0!"},0,0,null,"","","","","","","","","","",null,null,null,null,null,null,null,null,null,null,null,null,null,null,null,null,null,"ZWO"]
[null,null,null,null,null,null,null,null,null,null,null,null,null,null,null,null,{"$f":"VLOOKUP(P1005,'Input MCC'!B:C,2,0)","v":{"$error":"#N/A"}},{"$f":"VLOOKUP(P1005,'Input MCC'!B:E,4,0)","v":{"$error":"#N/A"}},null,null,null,null,null,null,null,null,null,null,null,null,null,{"$error":"#DIV/0!"},0,0,null,"","","","","","","","","","",null,null,null,null,null,null,null,null,null,null,null,null,null,null,null,null,null,"ZWO"]
[null,null,null,null,null,null,null,null,null,null,null,null,null,null,null,null,{"$f":"VLOOKUP(P1006,'Input MCC'!B:C,2,0)","v":{"$error":"#N/A"}},{"$f":"VLOOKUP(P1006,'Input MCC'!B:E,4,0)","v":{"$error":"#N/A"}},null,null,null,null,null,null,null,null,null,null,null,null,null,{"$error":"#DIV/0!"},0,0,null,"","","","","","","","","","",null,null,null,null,null,null,null,null,null,null,null,null,null,null,null,null,null,"ZWO"]
[null,null,null,null,null,null,null,null,null,null,null,null,null,null,null,null,{"$f":"VLOOKUP(P1007,'Input MCC'!B:C,2,0)","v":{"$error":"#N/A"}},{"$f":"VLOOKUP(P1007,'Input MCC'!B:E,4,0)","v":{"$error":"#N/A"}},null,null,null,null,null,null,null,null,null,null,null,null,null,{"$error":"#DIV/0!"},0,0,null,"","","","","","","","","","",null,null,null,null,null,null,null,null,null,null,null,null,null,null,null,null,null,"ZWO"]
[null,null,null,null,null,null,null,null,null,null,null,null,null,null,null,null,{"$f":"VLOOKUP(P1008,'Input MCC'!B:C,2,0)","v":{"$error":"#N/A"}},{"$f":"VLOOKUP(P1008,'Input MCC'!B:E,4,0)","v":{"$error":"#N/A"}},null,null,null,null,{"$f":"SUM(V1008:V1013)","v":0},null,null,null,null,null,null,null,null,{"$error":"#DIV/0!"},0,0,null,"","","","","","","","","","",null,null,null,null,null,null,null,null,null,null,null,null,null,null,null,null,null,"ZWO"]
[null,null,null,null,null,null,null,null,null,null,null,null,null,null,null,null,{"$f":"VLOOKUP(P1009,'Input MCC'!B:C,2,0)","v":{"$error":"#N/A"}},{"$f":"VLOOKUP(P1009,'Input MCC'!B:E,4,0)","v":{"$error":"#N/A"}},null,null,null,null,null,null,null,null,null,null,null,null,null,{"$error":"#DIV/0!"},0,0,null,"","","","","","","","","","",null,null,null,null,null,null,null,null,null,null,null,null,null,null,null,null,null,"ZWO"]
[null,null,null,null,null,null,null,null,null,null,null,null,null,null,null,null,{"$f":"VLOOKUP(P1010,'Input MCC'!B:C,2,0)","v":{"$error":"#N/A"}},{"$f":"VLOOKUP(P1010,'Input MCC'!B:E,4,0)","v":{"$error":"#N/A"}},null,null,null,null,null,null,null,null,null,null,null,null,null,{"$error":"#DIV/0!"},0,0,null,"","","","","","","","","","",null,null,null,null,null,null,null,null,null,null,null,null,null,null,null,null,null,"ZWO"]
[null,null,null,null,null,null,null,null,null,null,null,null,null,null,null,null,{"$f":"VLOOKUP(P1011,'Input MCC'!B:C,2,0)","v":{"$error":"#N/A"}},{"$f":"VLOOKUP(P1011,'Input MCC'!B:E,4,0)","v":{"$error":"#N/A"}},null,null,null,null,null,null,null,null,null,null,null,null,null,{"$error":"#DIV/0!"},0,0,null,"","","","","","","","","","",null,null,null,null,null,null,null,null,null,null,null,null,null,null,null,null,null,"ZWO"]
[null,null,null,null,null,null,null,null,null,null,null,null,null,null,null,null,{"$f":"VLOOKUP(P1012,'Input MCC'!B:C,2,0)","v":{"$error":"#N/A"}},{"$f":"VLOOKUP(P1012,'Input MCC'!B:E,4,0)","v":{"$error":"#N/A"}},null,null,null,null,null,null,null,null,null,null,null,null,null,{"$error":"#DIV/0!"},0,0,null,"","","","","","","","","","",null,null,null,null,null,null,null,null,null,null,null,null,null,null,null,null,null,"ZWO"]
[null,null,null,null,null,null,null,null,null,null,null,null,null,null,null,null,{"$f":"VLOOKUP(P1013,'Input MCC'!B:C,2,0)","v":{"$error":"#N/A"}},{"$f":"VLOOKUP(P1013,'Input MCC'!B:E,4,0)","v":{"$error":"#N/A"}},null,null,null,null,null,null,null,null,null,null,null,null,null,{"$error":"#DIV/0!"},0,0,null,"","","","","","","","","","",null,null,null,null,null,null,null,null,null,null,null,null,null,null,null,null,null,"ZWO"]
[null,null,null,null,null,null,null,null,null,null,null,null,null,null,null,null,{"$f":"VLOOKUP(P1014,'Input MCC'!B:C,2,0)","v":{"$error":"#N/A"}},{"$f":"VLOOKUP(P1014,'Input MCC'!B:E,4,0)","v":{"$error":"#N/A"}},null,null,null,null,{"$f":"SUM(V1014:V1019)","v":0},null,null,null,null,null,null,null,null,{"$error":"#DIV/0!"},0,0,null,"","","","","","","","","","",null,null,null,null,null,null,null,null,null,null,null,null,null,null,null,null,null,"ZWO"]
[null,null,null,null,null,null,null,null,null,null,null,null,null,null,null,null,{"$f":"VLOOKUP(P1015,'Input MCC'!B:C,2,0)","v":{"$error":"#N/A"}},{"$f":"VLOOKUP(P1015,'Input MCC'!B:E,4,0)","v":{"$error":"#N/A"}},null,null,null,null,null,null,null,null,null,null,null,null,null,{"$error":"#DIV/0!"},0,0,null,"","","","","","","","","","",null,null,null,null,null,null,null,null,null,null,null,null,null,null,null,null,null,"ZWO"]
[null,null,null,null,null,null,null,null,null,null,null,null,null,null,null,null,{"$f":"VLOOKUP(P1016,'Input MCC'!B:C,2,0)","v":{"$error":"#N/A"}},{"$f":"VLOOKUP(P1016,'Input MCC'!B:E,4,0)","v":{"$error":"#N/A"}},null,null,null,null,null,null,null,null,null,null,null,null,null,{"$f":"AE1016/AC1016","v":{"$error":"#DIV/0!"}},{"$f":"V1016*AC1016","v":0},{"$f":"V1016*AE1016","v":0},null,{"$f":"IF(AI1016 <> \"\",\n    IF(ISNUMBER(VALUE(LEFT(AI1016, FIND(\"%\", AI1016)-1))),\n        VALUE(LEFT(AI1016, FIND(\"%\", AI1016)-1)),\n        \"Invalid format\"),\n    \"\")","v":""},{"$f":"IF(AI1016 <> \"\",\n    IF(ISNUMBER(VALUE(LEFT(AI1016, FIND(\"%\", AI1016)-1))) * ISNUMBER(FIND(\"%\", AI1016 & \"wol\")) > 0,\n        TRIM(MID(AI1016, FIND(\"%\", AI1016)+1, FIND(\"/\", AI1016 & \"/\")-FIND(\"%\", AI1016)-1)),\n        \"Invalid format\"),\n    \"\")","v":""},{"$f":"IF(AI1016 <> \"\",\n    IF(ISNUMBER(VALUE(MID(AI1016, FIND(\"/\", AI1016) + 1, FIND(\"%\", AI1016, FIND(\"/\", AI1016)) - FIND(\"/\", AI1016) - 1))),\n        VALUE(MID(AI1016, FIND(\"/\", AI1016) + 1, FIND(\"%\", AI1016, FIND(\"/\", AI1016)) - FIND(\"/\", AI1016) - 1)),\n        \"\"),\n    \"\")","v":""},{"$f":"IF(AI1016 <> \"\",\n    IFERROR(TRIM(MID(AI1016, FIND(\"%\", AI1016, FIND(\"/\", AI1016)+1)+2,\n        IFERROR(FIND(\"/\", AI1016 & \"/\", FIND(\"/\", AI1016)+1)-FIND(\"%\", AI1016, FIND(\"/\", AI1016)+1)-2, LEN(AI1016)-FIND(\"%\", AI1016, FIND(\"/\", AI1016)+1)-1))),\n        \"\"),\n    \"\")","v":""},{"$f":"IF(AI1016 <> \"\",\n    IF(ISNUMBER(VALUE(MID(AI1016, FIND(\"/\", AI1016, FIND(\"/\", AI1016)+1) + 1, FIND(\"%\", AI1016, FIND(\"/\", AI1016, FIND(\"/\", AI1016)+1)) - FIND(\"/\", AI1016, FIND(\"/\", AI1016)+1) - 1))),\n        VALUE(MID(AI1016, FIND(\"/\", AI1016, FIND(\"/\", AI1016)+1) + 1, FIND(\"%\", AI1016, FIND(\"/\", AI1016, FIND(\"/\", AI1016)+1)) - FIND(\"/\", AI1016, FIND(\"/\", AI1016)+1) - 1)),\n        \"\"),\n    \"\")","v":""},{"$f":"IF(AI1016 <> \"\",\n    IFERROR(\n        TRIM(MID(AI1016,\n            FIND(\"%\", AI1016, FIND(\"%\", AI1016, FIND(\"%\", AI1016)+1)+1)+1,\n            FIND(\"/\", AI1016 & \"/\", FIND(\"%\", AI1016, FIND(\"%\", AI1016, FIND(\"%\", AI1016)+1)+1))-FIND(\"%\", AI1016, FIND(\"%\", AI1016, FIND(\"%\", AI1016)+1)+1)-1)\n        ),\n        \"\"\n    ),\n    \"\"\n)","v":""},{"$f":"IF(AI1016 <> \"\",\n    IF(ISNUMBER(VALUE(MID(AI1016, FIND(\"/\", AI1016, FIND(\"/\", AI1016, FIND(\"/\", AI1016)+1)+1) + 1, FIND(\"%\", AI1016, FIND(\"/\", AI1016, FIND(\"/\", AI1016, FIND(\"/\", AI1016)+1)+1)) - FIND(\"/\", AI1016, FIND(\"/\", AI1016, FIND(\"/\", AI1016)+1)+1) - 1))),\n        VALUE(MID(AI1016, FIND(\"/\", AI1016, FIND(\"/\", AI1016, FIND(\"/\", AI1016)+1)+1) + 1, FIND(\"%\", AI1016, FIND(\"/\", AI1016, FIND(\"/\", AI1016, FIND(\"/\", AI1016)+1)+1)) - FIND(\"/\", AI1016, FIND(\"/\", AI1016, FIND(\"/\", AI1016)+1)+1) - 1)),\n        \"\"),\n    \"\")","v":""},{"$f":"IF(AI1016 <> \"\",\n    IFERROR(TRIM(MID(AI1016, FIND(\"%\", AI1016, FIND(\"/\", AI1016, FIND(\"/\", AI1016, FIND(\"/\", AI1016)+1)+1)+1)+2,\n        IFERROR(FIND(\"/\", AI1016, FIND(\"/\", AI1016, FIND(\"/\", AI1016, FIND(\"/\", AI1016)+1)+1)+1)-FIND(\"%\", AI1016, FIND(\"/\", AI1016, FIND(\"/\", AI1016, FIND(\"/\", AI1016)+1)+1)+1)-2, LEN(AI1016)-FIND(\"%\", AI1016, FIND(\"/\", AI1016, FIND(\"/\", AI1016, FIND(\"/\", AI1016)+1)+1)+1)-1))),\n        \"\"),\n    \"\")","v":""},{"$f":"IF(AI1016 <> \"\",\n    IF(ISNUMBER(VALUE(MID(AI1016, FIND(\"/\", AI1016, FIND(\"/\", AI1016, FIND(\"/\", AI1016, FIND(\"/\", AI1016)+1)+1)+1) + 1, FIND(\"%\", AI1016, FIND(\"/\", AI1016, FIND(\"/\", AI1016, FIND(\"/\", AI1016, FIND(\"/\", AI1016)+1)+1)+1)) - FIND(\"/\", AI1016, FIND(\"/\", AI1016, FIND(\"/\", AI1016, FIND(\"/\", AI1016)+1)+1)+1) - 1))),\n        VALUE(MID(AI1016, FIND(\"/\", AI1016, FIND(\"/\", AI1016, FIND(\"/\", AI1016, FIND(\"/\", AI1016)+1)+1)+1) + 1, FIND(\"%\", AI1016, FIND(\"/\", AI1016, FIND(\"/\", AI1016, FIND(\"/\", AI1016, FIND(\"/\", AI1016)+1)+1)+1)) - FIND(\"/\", AI1016, FIND(\"/\", AI1016, FIND(\"/\", AI1016, FIND(\"/\", AI1016)+1)+1)+1) - 1)),\n        \"\"),\n    \"\")","v":""},{"$f":"IF(AI1016 = \"\", \"\",\n    IFERROR(TRIM(\n        MID(\n            AI1016,\n            FIND(\"%\", AI1016, FIND(\"/\", AI1016, FIND(\"/\", AI1016, FIND(\"/\", AI1016, FIND(\"/\", AI1016)+1)+1)+1)+1) + 1,\n            FIND(\"/\", AI1016 & \"/\", FIND(\"%\", AI1016, FIND(\"/\", AI1016, FIND(\"/\", AI1016, FIND(\"/\", AI1016, FIND(\"/\", AI1016)+1)+1)+1)+1)) -\n            FIND(\"%\", AI1016, FIND(\"/\", AI1016, FIND(\"/\", AI1016, FIND(\"/\", AI1016, FIND(\"/\", AI1016)+1)+1)+1)+1) - 1\n        )\n    ),\n    \"\")\n)","v":""},null,null,null,null,null,null,null,null,null,null,null,null,null,null,null,null,null,"ZWO"]
[null,null,null,null,null,null,null,null,null,null,null,null,null,null,null,null,{"$f":"VLOOKUP(P1017,'Input MCC'!B:C,2,0)","v":{"$error":"#N/A"}},{"$f":"VLOOKUP(P1017,'Input MCC'!B:E,4,0)","v":{"$error":"#N/A"}},null,null,null,null,null,null,null,null,null,null,null,null,null,{"$error":"#DIV/0!"},0,0,null,"","","","","","","","","","",null,null,null,null,null,null,null,null,null,null,null,null,null,null,null,null,null,"ZWO"]
[null,null,null,null,null,null,null,null,null,null,null,null,null,null,null,null,{"$f":"VLOOKUP(P1018,'Input MCC'!B:C,2,0)","v":{"$error":"#N/A"}},{"$f":"VLOOKUP(P1018,'Input MCC'!B:E,4,0)","v":{"$error":"#N/A"}},null,null,null,null,null,null,null,null,null,null,null,null,null,{"$error":"#DIV/0!"},0,0,null,"","","","","","","","","","",null,null,null,null,null,null,null,null,null,null,null,null,null,null,null,null,null,"ZWO"]
[null,null,null,null,null,null,null,null,null,null,null,null,null,null,null,null,{"$f":"VLOOKUP(P1019,'Input MCC'!B:C,2,0)","v":{"$error":"#N/A"}},{"$f":"VLOOKUP(P1019,'Input MCC'!B:E,4,0)","v":{"$error":"#N/A"}},null,null,null,null,null,null,null,null,null,null,null,null,null,{"$error":"#DIV/0!"},0,0,null,"","","","","","","","","","",null,null,null,null,null,null,null,null,null,null,null,null,null,null,null,null,null,"ZWO"]
[null,null,null,null,null,null,null,null,null,null,null,null,null,null,null,null,{"$f":"VLOOKUP(P1020,'Input MCC'!B:C,2,0)","v":{"$error":"#N/A"}},{"$f":"VLOOKUP(P1020,'Input MCC'!B:E,4,0)","v":{"$error":"#N/A"}},null,null,null,null,{"$f":"SUM(V1020:V1025)","v":0},null,null,null,null,null,null,null,null,{"$error":"#DIV/0!"},0,0,null,"","","","","","","","","","",null,null,null,null,null,null,null,null,null,null,null,null,null,null,null,null,null,"ZWO"]
[null,null,null,null,null,null,null,null,null,null,null,null,null,null,null,null,{"$f":"VLOOKUP(P1021,'Input MCC'!B:C,2,0)","v":{"$error":"#N/A"}},{"$f":"VLOOKUP(P1021,'Input MCC'!B:E,4,0)","v":{"$error":"#N/A"}},null,null,null,null,null,null,null,null,null,null,null,null,null,{"$error":"#DIV/0!"},0,0,null,"","","","","","","","","","",null,null,null,null,null,null,null,null,null,null,null,null,null,null,null,null,null,"ZWO"]
[null,null,null,null,null,null,null,null,null,null,null,null,null,null,null,null,{"$f":"VLOOKUP(P1022,'Input MCC'!B:C,2,0)","v":{"$error":"#N/A"}},{"$f":"VLOOKUP(P1022,'Input MCC'!B:E,4,0)","v":{"$error":"#N/A"}},null,null,null,null,null,null,null,null,null,null,null,null,null,{"$error":"#DIV/0!"},0,0,null,"","","","","","","","","","",null,null,null,null,null,null,null,null,null,null,null,null,null,null,null,null,null,"ZWO"]
[null,null,null,null,null,null,null,null,null,null,null,null,null,null,null,null,{"$f":"VLOOKUP(P1023,'Input MCC'!B:C,2,0)","v":{"$error":"#N/A"}},{"$f":"VLOOKUP(P1023,'Input MCC'!B:E,4,0)","v":{"$error":"#N/A"}},null,null,null,null,null,null,null,null,null,null,null,null,null,{"$error":"#DIV/0!"},0,0,null,"","","","","","","","","","",null,null,null,null,null,null,null,null,null,null,null,null,null,null,null,null,null,"ZWO"]
[null,null,null,null,null,null,null,null,null,null,null,null,null,null,null,null,{"$f":"VLOOKUP(P1024,'Input MCC'!B:C,2,0)","v":{"$error":"#N/A"}},{"$f":"VLOOKUP(P1024,'Input MCC'!B:E,4,0)","v":{"$error":"#N/A"}},null,null,null,null,null,null,null,null,null,null,null,null,null,{"$error":"#DIV/0!"},0,0,null,"","","","","","","","","","",null,null,null,null,null,null,null,null,null,null,null,null,null,null,null,null,null,"ZWO"]
[null,null,null,null,null,null,null,null,null,null,null,null,null,null,null,null,{"$f":"VLOOKUP(P1025,'Input MCC'!B:C,2,0)","v":{"$error":"#N/A"}},{"$f":"VLOOKUP(P1025,'Input MCC'!B:E,4,0)","v":{"$error":"#N/A"}},null,null,null,null,null,null,null,null,null,null,null,null,null,{"$error":"#DIV/0!"},0,0,null,"","","","","","","","","","",null,null,null,null,null,null,null,null,null,null,null,null,null,null,null,null,null,"ZWO"]
[null,null,null,null,null,null,null,null,null,null,null,null,null,null,null,null,{"$f":"VLOOKUP(P1026,'Input MCC'!B:C,2,0)","v":{"$error":"#N/A"}},{"$f":"VLOOKUP(P1026,'Input MCC'!B:E,4,0)","v":{"$error":"#N/A"}},null,null,null,null,{"$f":"SUM(V1026:V1031)","v":0},null,null,null,null,null,null,null,null,{"$error":"#DIV/0!"},0,0,null,"","","","","","","","","","",null,null,null,null,null,null,null,null,null,null,null,null,null,null,null,null,null,"ZWO"]
[null,null,null,null,null,null,null,null,null,null,null,null,null,null,null,null,{"$f":"VLOOKUP(P1027,'Input MCC'!B:C,2,0)","v":{"$error":"#N/A"}},{"$f":"VLOOKUP(P1027,'Input MCC'!B:E,4,0)","v":{"$error":"#N/A"}},null,null,null,null,null,null,null,null,null,null,null,null,null,{"$error":"#DIV/0!"},0,0,null,"","","","","","","","","","",null,null,null,null,null,null,null,null,null,null,null,null,null,null,null,null,null,"ZWO"]
[null,null,null,null,null,null,null,null,null,null,null,null,null,null,null,null,{"$f":"VLOOKUP(P1028,'Input MCC'!B:C,2,0)","v":{"$error":"#N/A"}},{"$f":"VLOOKUP(P1028,'Input MCC'!B:E,4,0)","v":{"$error":"#N/A"}},null,null,null,null,null,null,null,null,null,null,null,null,null,{"$error":"#DIV/0!"},0,0,null,"","","","","","","","","","",null,null,null,null,null,null,null,null,null,null,null,null,null,null,null,null,null,"ZWO"]
[null,null,null,null,null,null,null,null,null,null,null,null,null,null,null,null,{"$f":"VLOOKUP(P1029,'Input MCC'!B:C,2,0)","v":{"$error":"#N/A"}},{"$f":"VLOOKUP(P1029,'Input MCC'!B:E,4,0)","v":{"$error":"#N/A"}},null,null,null,null,null,null,null,null,null,null,null,null,null,{"$error":"#DIV/0!"},0,0,null,"","","","","","","","","","",null,null,null,null,null,null,null,null,null,null,null,null,null,null,null,null,null,"ZWO"]
[null,null,null,null,null,null,null,null,null,null,null,null,null,null,null,null,{"$f":"VLOOKUP(P1030,'Input MCC'!B:C,2,0)","v":{"$error":"#N/A"}},{"$f":"VLOOKUP(P1030,'Input MCC'!B:E,4,0)","v":{"$error":"#N/A"}},null,null,null,null,null,null,null,null,null,null,null,null,null,{"$error":"#DIV/0!"},0,0,null,"","","","","","","","","","",null,null,null,null,null,null,null,null,null,null,null,null,null,null,null,null,null,"ZWO"]
[null,null,null,null,null,null,null,null,null,null,null,null,null,null,null,null,{"$f":"VLOOKUP(P1031,'Input MCC'!B:C,2,0)","v":{"$error":"#N/A"}},{"$f":"VLOOKUP(P1031,'Input MCC'!B:E,4,0)","v":{"$error":"#N/A"}},null,null,null,null,null,null,null,null,null,null,null,null,null,{"$error":"#DIV/0!"},0,0,null,"","","","","","","","","","",null,null,null,null,null,null,null,null,null,null,null,null,null,null,null,null,null,"ZWO"]
[null,null,null,null,null,null,null,null,null,null,null,null,null,null,null,null,{"$f":"VLOOKUP(P1032,'Input MCC'!B:C,2,0)","v":{"$error":"#N/A"}},{"$f":"VLOOKUP(P1032,'Input MCC'!B:E,4,0)","v":{"$error":"#N/A"}},null,null,null,null,{"$f":"SUM(V1032:V1037)","v":0},null,null,null,null,null,null,null,null,{"$error":"#DIV/0!"},0,0,null,"","","","","","","","","","",null,null,null,null,null,null,null,null,null,null,null,null,null,null,null,null,null,"ZWO"]
[null,null,null,null,null,null,null,null,null,null,null,null,null,null,null,null,{"$f":"VLOOKUP(P1033,'Input MCC'!B:C,2,0)","v":{"$error":"#N/A"}},{"$f":"VLOOKUP(P1033,'Input MCC'!B:E,4,0)","v":{"$error":"#N/A"}},null,null,null,null,null,null,null,null,null,null,null,null,null,{"$error":"#DIV/0!"},0,0,null,"","","","","","","","","","",null,null,null,null,null,null,null,null,null,null,null,null,null,null,null,null,null,"ZWO"]
[null,null,null,null,null,null,null,null,null,null,null,null,null,null,null,null,{"$f":"VLOOKUP(P1034,'Input MCC'!B:C,2,0)","v":{"$error":"#N/A"}},{"$f":"VLOOKUP(P1034,'Input MCC'!B:E,4,0)","v":{"$error":"#N/A"}},null,null,null,null,null,null,null,null,null,null,null,null,null,{"$error":"#DIV/0!"},0,0,null,"","","","","","","","","","",null,null,null,null,null,null,null,null,null,null,null,null,null,null,null,null,null,"ZWO"]
[null,null,null,null,null,null,null,null,null,null,null,null,null,null,null,null,{"$f":"VLOOKUP(P1035,'Input MCC'!B:C,2,0)","v":{"$error":"#N/A"}},{"$f":"VLOOKUP(P1035,'Input MCC'!B:E,4,0)","v":{"$error":"#N/A"}},null,null,null,null,null,null,null,null,null,null,null,null,null,{"$error":"#DIV/0!"},0,0,null,"","","","","","","","","","",null,null,null,null,null,null,null,null,null,null,null,null,null,null,null,null,null,"ZWO"]
[null,null,null,null,null,null,null,null,null,null,null,null,null,null,null,null,{"$f":"VLOOKUP(P1036,'Input MCC'!B:C,2,0)","v":{"$error":"#N/A"}},{"$f":"VLOOKUP(P1036,'Input MCC'!B:E,4,0)","v":{"$error":"#N/A"}},null,null,null,null,null,null,null,null,null,null,null,null,null,{"$error":"#DIV/0!"},0,0,null,"","","","","","","","","","",null,null,null,null,null,null,null,null,null,null,null,null,null,null,null,null,null,"ZWO"]
[null,null,null,null,null,null,null,null,null,null,null,null,null,null,null,null,{"$f":"VLOOKUP(P1037,'Input MCC'!B:C,2,0)","v":{"$error":"#N/A"}},{"$f":"VLOOKUP(P1037,'Input MCC'!B:E,4,0)","v":{"$error":"#N/A"}},null,null,null,null,null,null,null,null,null,null,null,null,null,{"$error":"#DIV/0!"},0,0,null,"","","","","","","","","","",null,null,null,null,null,null,null,null,null,null,null,null,null,null,null,null,null,"ZWO"]
[null,null,null,null,null,null,null,null,null,null,null,null,null,null,null,null,{"$f":"VLOOKUP(P1038,'Input MCC'!B:C,2,0)","v":{"$error":"#N/A"}},{"$f":"VLOOKUP(P1038,'Input MCC'!B:E,4,0)","v":{"$error":"#N/A"}},null,null,null,null,{"$f":"SUM(V1038:V1043)","v":0},null,null,null,null,null,null,null,null,{"$error":"#DIV/0!"},0,0,null,"","","","","","","","","","",null,null,null,null,null,null,null,null,null,null,null,null,null,null,null,null,null,"ZWO"]
[null,null,null,null,null,null,null,null,null,null,null,null,null,null,null,null,{"$f":"VLOOKUP(P1039,'Input MCC'!B:C,2,0)","v":{"$error":"#N/A"}},{"$f":"VLOOKUP(P1039,'Input MCC'!B:E,4,0)","v":{"$error":"#N/A"}},null,null,null,null,null,null,null,null,null,null,null,null,null,{"$error":"#DIV/0!"},0,0,null,"","","","","","","","","","",null,null,null,null,null,null,null,null,null,null,null,null,null,null,null,null,null,"ZWO"]
[null,null,null,null,null,null,null,null,null,null,null,null,null,null,null,null,{"$f":"VLOOKUP(P1040,'Input MCC'!B:C,2,0)","v":{"$error":"#N/A"}},{"$f":"VLOOKUP(P1040,'Input MCC'!B:E,4,0)","v":{"$error":"#N/A"}},null,null,null,null,null,null,null,null,null,null,null,null,null,{"$error":"#DIV/0!"},0,0,null,"","","","","","","","","","",null,null,null,null,null,null,null,null,null,null,null,null,null,null,null,null,null,"ZWO"]
[null,null,null,null,null,null,null,null,null,null,null,null,null,null,null,null,{"$f":"VLOOKUP(P1041,'Input MCC'!B:C,2,0)","v":{"$error":"#N/A"}},{"$f":"VLOOKUP(P1041,'Input MCC'!B:E,4,0)","v":{"$error":"#N/A"}},null,null,null,null,null,null,null,null,null,null,null,null,null,{"$error":"#DIV/0!"},0,0,null,"","","","","","","","","","",null,null,null,null,null,null,null,null,null,null,null,null,null,null,null,null,null,"ZWO"]
[null,null,null,null,null,null,null,null,null,null,null,null,null,null,null,null,{"$f":"VLOOKUP(P1042,'Input MCC'!B:C,2,0)","v":{"$error":"#N/A"}},{"$f":"VLOOKUP(P1042,'Input MCC'!B:E,4,0)","v":{"$error":"#N/A"}},null,null,null,null,null,null,null,null,null,null,null,null,null,{"$error":"#DIV/0!"},0,0,null,"","","","","","","","","","",null,null,null,null,null,null,null,null,null,null,null,null,null,null,null,null,null,"ZWO"]
[null,null,null,null,null,null,null,null,null,null,null,null,null,null,null,null,{"$f":"VLOOKUP(P1043,'Input MCC'!B:C,2,0)","v":{"$error":"#N/A"}},{"$f":"VLOOKUP(P1043,'Input MCC'!B:E,4,0)","v":{"$error":"#N/A"}},null,null,null,null,null,null,null,null,null,null,null,null,null,{"$error":"#DIV/0!"},0,0,null,"","","","","","","","","","",null,null,null,null,null,null,null,null,null,null,null,null,null,null,null,null,null,"ZWO"]
[null,null,null,null,null,null,null,null,null,null,null,null,null,null,null,null,{"$f":"VLOOKUP(P1044,'Input MCC'!B:C,2,0)","v":{"$error":"#N/A"}},{"$f":"VLOOKUP(P1044,'Input MCC'!B:E,4,0)","v":{"$error":"#N/A"}},null,null,null,null,{"$f":"SUM(V1044:V1049)","v":0},null,null,null,null,null,null,null,null,{"$error":"#DIV/0!"},0,0,null,"","","","","","","","","","",null,null,null,null,null,null,null,null,null,null,null,null,null,null,null,null,null,"ZWO"]
[null,null,null,null,null,null,null,null,null,null,null,null,null,null,null,null,{"$f":"VLOOKUP(P1045,'Input MCC'!B:C,2,0)","v":{"$error":"#N/A"}},{"$f":"VLOOKUP(P1045,'Input MCC'!B:E,4,0)","v":{"$error":"#N/A"}},null,null,null,null,null,null,null,null,null,null,null,null,null,{"$error":"#DIV/0!"},0,0,null,"","","","","","","","","","",null,null,null,null,null,null,null,null,null,null,null,null,null,null,null,null,null,"ZWO"]
[null,null,null,null,null,null,null,null,null,null,null,null,null,null,null,null,{"$f":"VLOOKUP(P1046,'Input MCC'!B:C,2,0)","v":{"$error":"#N/A"}},{"$f":"VLOOKUP(P1046,'Input MCC'!B:E,4,0)","v":{"$error":"#N/A"}},null,null,null,null,null,null,null,null,null,null,null,null,null,{"$error":"#DIV/0!"},0,0,null,"","","","","","","","","","",null,null,null,null,null,null,null,null,null,null,null,null,null,null,null,null,null,"ZWO"]
[null,null,null,null,null,null,null,null,null,null,null,null,null,null,null,null,{"$f":"VLOOKUP(P1047,'Input MCC'!B:C,2,0)","v":{"$error":"#N/A"}},{"$f":"VLOOKUP(P1047,'Input MCC'!B:E,4,0)","v":{"$error":"#N/A"}},null,null,null,null,null,null,null,null,null,null,null,null,null,{"$error":"#DIV/0!"},0,0,null,"","","","","","","","","","",null,null,null,null,null,null,null,null,null,null,null,null,null,null,null,null,null,"ZWO"]
[null,null,null,null,null,null,null,null,null,null,null,null,null,null,null,null,{"$f":"VLOOKUP(P1048,'Input MCC'!B:C,2,0)","v":{"$error":"#N/A"}},{"$f":"VLOOKUP(P1048,'Input MCC'!B:E,4,0)","v":{"$error":"#N/A"}},null,null,null,null,null,null,null,null,null,null,null,null,null,{"$error":"#DIV/0!"},0,0,null,"","","","","","","","","","",null,null,null,null,null,null,null,null,null,null,null,null,null,null,null,null,null,"ZWO"]
[null,null,null,null,null,null,null,null,null,null,null,null,null,null,null,null,{"$f":"VLOOKUP(P1049,'Input MCC'!B:C,2,0)","v":{"$error":"#N/A"}},{"$f":"VLOOKUP(P1049,'Input MCC'!B:E,4,0)","v":{"$error":"#N/A"}},null,null,null,null,null,null,null,null,null,null,null,null,null,{"$error":"#DIV/0!"},0,0,null,"","","","","","","","","","",null,null,null,null,null,null,null,null,null,null,null,null,null,null,null,null,null,"ZWO"]
[null,null,null,null,null,null,null,null,null,null,null,null,null,null,null,null,{"$f":"VLOOKUP(P1050,'Input MCC'!B:C,2,0)","v":{"$error":"#N/A"}},{"$f":"VLOOKUP(P1050,'Input MCC'!B:E,4,0)","v":{"$error":"#N/A"}},null,null,null,null,{"$f":"SUM(V1050:V1055)","v":0},null,null,null,null,null,null,null,null,{"$error":"#DIV/0!"},0,0,null,"","","","","","","","","","",null,null,null,null,null,null,null,null,null,null,null,null,null,null,null,null,null,"ZWO"]
[null,null,null,null,null,null,null,null,null,null,null,null,null,null,null,null,{"$f":"VLOOKUP(P1051,'Input MCC'!B:C,2,0)","v":{"$error":"#N/A"}},{"$f":"VLOOKUP(P1051,'Input MCC'!B:E,4,0)","v":{"$error":"#N/A"}},null,null,null,null,null,null,null,null,null,null,null,null,null,{"$error":"#DIV/0!"},0,0,null,"","","","","","","","","","",null,null,null,null,null,null,null,null,null,null,null,null,null,null,null,null,null,"ZWO"]
[null,null,null,null,null,null,null,null,null,null,null,null,null,null,null,null,{"$f":"VLOOKUP(P1052,'Input MCC'!B:C,2,0)","v":{"$error":"#N/A"}},{"$f":"VLOOKUP(P1052,'Input MCC'!B:E,4,0)","v":{"$error":"#N/A"}},null,null,null,null,null,null,null,null,null,null,null,null,null,{"$error":"#DIV/0!"},0,0,null,"","","","","","","","","","",null,null,null,null,null,null,null,null,null,null,null,null,null,null,null,null,null,"ZWO"]
[null,null,null,null,null,null,null,null,null,null,null,null,null,null,null,null,{"$f":"VLOOKUP(P1053,'Input MCC'!B:C,2,0)","v":{"$error":"#N/A"}},{"$f":"VLOOKUP(P1053,'Input MCC'!B:E,4,0)","v":{"$error":"#N/A"}},null,null,null,null,null,null,null,null,null,null,null,null,null,{"$error":"#DIV/0!"},0,0,null,"","","","","","","","","","",null,null,null,null,null,null,null,null,null,null,null,null,null,null,null,null,null,"ZWO"]
[null,null,null,null,null,null,null,null,null,null,null,null,null,null,null,null,{"$f":"VLOOKUP(P1054,'Input MCC'!B:C,2,0)","v":{"$error":"#N/A"}},{"$f":"VLOOKUP(P1054,'Input MCC'!B:E,4,0)","v":{"$error":"#N/A"}},null,null,null,null,null,null,null,null,null,null,null,null,null,{"$error":"#DIV/0!"},0,0,null,"","","","","","","","","","",null,null,null,null,null,null,null,null,null,null,null,null,null,null,null,null,null,"ZWO"]
[null,null,null,null,null,null,null,null,null,null,null,null,null,null,null,null,{"$f":"VLOOKUP(P1055,'Input MCC'!B:C,2,0)","v":{"$error":"#N/A"}},{"$f":"VLOOKUP(P1055,'Input MCC'!B:E,4,0)","v":{"$error":"#N/A"}},null,null,null,null,null,null,null,null,null,null,null,null,null,{"$error":"#DIV/0!"},0,0,null,"","","","","","","","","","",null,null,null,null,null,null,null,null,null,null,null,null,null,null,null,null,null,"ZWO"]
[null,null,null,null,null,null,null,null,null,null,null,null,null,null,null,null,{"$f":"VLOOKUP(P1056,'Input MCC'!B:C,2,0)","v":{"$error":"#N/A"}},{"$f":"VLOOKUP(P1056,'Input MCC'!B:E,4,0)","v":{"$error":"#N/A"}},null,null,null,null,{"$f":"SUM(V1056:V1061)","v":0},null,null,null,null,null,null,null,null,{"$error":"#DIV/0!"},0,0,null,"","","","","","","","","","",null,null,null,null,null,null,null,null,null,null,null,null,null,null,null,null,null,"ZWO"]
[null,null,null,null,null,null,null,null,null,null,null,null,null,null,null,null,{"$f":"VLOOKUP(P1057,'Input MCC'!B:C,2,0)","v":{"$error":"#N/A"}},{"$f":"VLOOKUP(P1057,'Input MCC'!B:E,4,0)","v":{"$error":"#N/A"}},null,null,null,null,null,null,null,null,null,null,null,null,null,{"$error":"#DIV/0!"},0,0,null,"","","","","","","","","","",null,null,null,null,null,null,null,null,null,null,null,null,null,null,null,null,null,"ZWO"]
[null,null,null,null,null,null,null,null,null,null,null,null,null,null,null,null,{"$f":"VLOOKUP(P1058,'Input MCC'!B:C,2,0)","v":{"$error":"#N/A"}},{"$f":"VLOOKUP(P1058,'Input MCC'!B:E,4,0)","v":{"$error":"#N/A"}},null,null,null,null,null,null,null,null,null,null,null,null,null,{"$error":"#DIV/0!"},0,0,null,"","","","","","","","","","",null,null,null,null,null,null,null,null,null,null,null,null,null,null,null,null,null,"ZWO"]
[null,null,null,null,null,null,null,null,null,null,null,null,null,null,null,null,{"$f":"VLOOKUP(P1059,'Input MCC'!B:C,2,0)","v":{"$error":"#N/A"}},{"$f":"VLOOKUP(P1059,'Input MCC'!B:E,4,0)","v":{"$error":"#N/A"}},null,null,null,null,null,null,null,null,null,null,null,null,null,{"$error":"#DIV/0!"},0,0,null,"","","","","","","","","","",null,null,null,null,null,null,null,null,null,null,null,null,null,null,null,null,null,"ZWO"]
[null,null,null,null,null,null,null,null,null,null,null,null,null,null,null,null,{"$f":"VLOOKUP(P1060,'Input MCC'!B:C,2,0)","v":{"$error":"#N/A"}},{"$f":"VLOOKUP(P1060,'Input MCC'!B:E,4,0)","v":{"$error":"#N/A"}},null,null,null,null,null,null,null,null,null,null,null,null,null,{"$error":"#DIV/0!"},0,0,null,"","","","","","","","","","",null,null,null,null,null,null,null,null,null,null,null,null,null,null,null,null,null,"ZWO"]
[null,null,null,null,null,null,null,null,null,null,null,null,null,null,null,null,{"$f":"VLOOKUP(P1061,'Input MCC'!B:C,2,0)","v":{"$error":"#N/A"}},{"$f":"VLOOKUP(P1061,'Input MCC'!B:E,4,0)","v":{"$error":"#N/A"}},null,null,null,null,null,null,null,null,null,null,null,null,null,{"$error":"#DIV/0!"},0,0,null,"","","","","","","","","","",null,null,null,null,null,null,null,null,null,null,null,null,null,null,null,null,null,"ZWO"]
[null,null,null,null,null,null,null,null,null,null,null,null,null,null,null,null,{"$f":"VLOOKUP(P1062,'Input MCC'!B:C,2,0)","v":{"$error":"#N/A"}},{"$f":"VLOOKUP(P1062,'Input MCC'!B:E,4,0)","v":{"$error":"#N/A"}},null,null,null,null,{"$f":"SUM(V1062:V1067)","v":0},null,null,null,null,null,null,null,null,{"$error":"#DIV/0!"},0,0,null,"","","","","","","","","","",null,null,null,null,null,null,null,null,null,null,null,null,null,null,null,null,null,"ZWO"]
[null,null,null,null,null,null,null,null,null,null,null,null,null,null,null,null,{"$f":"VLOOKUP(P1063,'Input MCC'!B:C,2,0)","v":{"$error":"#N/A"}},{"$f":"VLOOKUP(P1063,'Input MCC'!B:E,4,0)","v":{"$error":"#N/A"}},null,null,null,null,null,null,null,null,null,null,null,null,null,{"$error":"#DIV/0!"},0,0,null,"","","","","","","","","","",null,null,null,null,null,null,null,null,null,null,null,null,null,null,null,null,null,"ZWO"]
[null,null,null,null,null,null,null,null,null,null,null,null,null,null,null,null,{"$f":"VLOOKUP(P1064,'Input MCC'!B:C,2,0)","v":{"$error":"#N/A"}},{"$f":"VLOOKUP(P1064,'Input MCC'!B:E,4,0)","v":{"$error":"#N/A"}},null,null,null,null,null,null,null,null,null,null,null,null,null,{"$error":"#DIV/0!"},0,0,null,"","","","","","","","","","",null,null,null,null,null,null,null,null,null,null,null,null,null,null,null,null,null,"ZWO"]
[null,null,null,null,null,null,null,null,null,null,null,null,null,null,null,null,{"$f":"VLOOKUP(P1065,'Input MCC'!B:C,2,0)","v":{"$error":"#N/A"}},{"$f":"VLOOKUP(P1065,'Input MCC'!B:E,4,0)","v":{"$error":"#N/A"}},null,null,null,null,null,null,null,null,null,null,null,null,null,{"$error":"#DIV/0!"},0,0,null,"","","","","","","","","","",null,null,null,null,null,null,null,null,null,null,null,null,null,null,null,null,null,"ZWO"]
[null,null,null,null,null,null,null,null,null,null,null,null,null,null,null,null,{"$f":"VLOOKUP(P1066,'Input MCC'!B:C,2,0)","v":{"$error":"#N/A"}},{"$f":"VLOOKUP(P1066,'Input MCC'!B:E,4,0)","v":{"$error":"#N/A"}},null,null,null,null,null,null,null,null,null,null,null,null,null,{"$error":"#DIV/0!"},0,0,null,"","","","","","","","","","",null,null,null,null,null,null,null,null,null,null,null,null,null,null,null,null,null,"ZWO"]
[null,null,null,null,null,null,null,null,null,null,null,null,null,null,null,null,{"$f":"VLOOKUP(P1067,'Input MCC'!B:C,2,0)","v":{"$error":"#N/A"}},{"$f":"VLOOKUP(P1067,'Input MCC'!B:E,4,0)","v":{"$error":"#N/A"}},null,null,null,null,null,null,null,null,null,null,null,null,null,{"$error":"#DIV/0!"},0,0,null,"","","","","","","","","","",null,null,null,null,null,null,null,null,null,null,null,null,null,null,null,null,null,"ZWO"]
[null,null,null,null,null,null,null,null,null,null,null,null,null,null,null,null,{"$f":"VLOOKUP(P1068,'Input MCC'!B:C,2,0)","v":{"$error":"#N/A"}},{"$f":"VLOOKUP(P1068,'Input MCC'!B:E,4,0)","v":{"$error":"#N/A"}},null,null,null,null,{"$f":"SUM(V1068:V1073)","v":0},null,null,null,null,null,null,null,null,{"$error":"#DIV/0!"},0,0,null,"","","","","","","","","","",null,null,null,null,null,null,null,null,null,null,null,null,null,null,null,null,null,"ZWO"]
[null,null,null,null,null,null,null,null,null,null,null,null,null,null,null,null,{"$f":"VLOOKUP(P1069,'Input MCC'!B:C,2,0)","v":{"$error":"#N/A"}},{"$f":"VLOOKUP(P1069,'Input MCC'!B:E,4,0)","v":{"$error":"#N/A"}},null,null,null,null,null,null,null,null,null,null,null,null,null,{"$error":"#DIV/0!"},0,0,null,"","","","","","","","","","",null,null,null,null,null,null,null,null,null,null,null,null,null,null,null,null,null,"ZWO"]
[null,null,null,null,null,null,null,null,null,null,null,null,null,null,null,null,{"$f":"VLOOKUP(P1070,'Input MCC'!B:C,2,0)","v":{"$error":"#N/A"}},{"$f":"VLOOKUP(P1070,'Input MCC'!B:E,4,0)","v":{"$error":"#N/A"}},null,null,null,null,null,null,null,null,null,null,null,null,null,{"$error":"#DIV/0!"},0,0,null,"","","","","","","","","","",null,null,null,null,null,null,null,null,null,null,null,null,null,null,null,null,null,"ZWO"]
[null,null,null,null,null,null,null,null,null,null,null,null,null,null,null,null,{"$f":"VLOOKUP(P1071,'Input MCC'!B:C,2,0)","v":{"$error":"#N/A"}},{"$f":"VLOOKUP(P1071,'Input MCC'!B:E,4,0)","v":{"$error":"#N/A"}},null,null,null,null,null,null,null,null,null,null,null,null,null,{"$error":"#DIV/0!"},0,0,null,"","","","","","","","","","",null,null,null,null,null,null,null,null,null,null,null,null,null,null,null,null,null,"ZWO"]
[null,null,null,null,null,null,null,null,null,null,null,null,null,null,null,null,{"$f":"VLOOKUP(P1072,'Input MCC'!B:C,2,0)","v":{"$error":"#N/A"}},{"$f":"VLOOKUP(P1072,'Input MCC'!B:E,4,0)","v":{"$error":"#N/A"}},null,null,null,null,null,null,null,null,null,null,null,null,null,{"$error":"#DIV/0!"},0,0,null,"","","","","","","","","","",null,null,null,null,null,null,null,null,null,null,null,null,null,null,null,null,null,"ZWO"]
[null,null,null,null,null,null,null,null,null,null,null,null,null,null,null,null,{"$f":"VLOOKUP(P1073,'Input MCC'!B:C,2,0)","v":{"$error":"#N/A"}},{"$f":"VLOOKUP(P1073,'Input MCC'!B:E,4,0)","v":{"$error":"#N/A"}},null,null,null,null,null,null,null,null,null,null,null,null,null,{"$error":"#DIV/0!"},0,0,null,"","","","","","","","","","",null,null,null,null,null,null,null,null,null,null,null,null,null,null,null,null,null,"ZWO"]
[null,null,null,null,null,null,null,null,null,null,null,null,null,null,null,null,{"$f":"VLOOKUP(P1074,'Input MCC'!B:C,2,0)","v":{"$error":"#N/A"}},{"$f":"VLOOKUP(P1074,'Input MCC'!B:E,4,0)","v":{"$error":"#N/A"}},null,null,null,null,{"$f":"SUM(V1074:V1079)","v":0},null,null,null,null,null,null,null,null,{"$error":"#DIV/0!"},0,0,null,"","","","","","","","","","",null,null,null,null,null,null,null,null,null,null,null,null,null,null,null,null,null,"ZWO"]
[null,null,null,null,null,null,null,null,null,null,null,null,null,null,null,null,{"$f":"VLOOKUP(P1075,'Input MCC'!B:C,2,0)","v":{"$error":"#N/A"}},{"$f":"VLOOKUP(P1075,'Input MCC'!B:E,4,0)","v":{"$error":"#N/A"}},null,null,null,null,null,null,null,null,null,null,null,null,null,{"$error":"#DIV/0!"},0,0,null,"","","","","","","","","","",null,null,null,null,null,null,null,null,null,null,null,null,null,null,null,null,null,"ZWO"]
[null,null,null,null,null,null,null,null,null,null,null,null,null,null,null,null,{"$f":"VLOOKUP(P1076,'Input MCC'!B:C,2,0)","v":{"$error":"#N/A"}},{"$f":"VLOOKUP(P1076,'Input MCC'!B:E,4,0)","v":{"$error":"#N/A"}},null,null,null,null,null,null,null,null,null,null,null,null,null,{"$error":"#DIV/0!"},0,0,null,"","","","","","","","","","",null,null,null,null,null,null,null,null,null,null,null,null,null,null,null,null,null,"ZWO"]
[null,null,null,null,null,null,null,null,null,null,null,null,null,null,null,null,{"$f":"VLOOKUP(P1077,'Input MCC'!B:C,2,0)","v":{"$error":"#N/A"}},{"$f":"VLOOKUP(P1077,'Input MCC'!B:E,4,0)","v":{"$error":"#N/A"}},null,null,null,null,null,null,null,null,null,null,null,null,null,{"$error":"#DIV/0!"},0,0,null,"","","","","","","","","","",null,null,null,null,null,null,null,null,null,null,null,null,null,null,null,null,null,"ZWO"]
[null,null,null,null,null,null,null,null,null,null,null,null,null,null,null,null,{"$f":"VLOOKUP(P1078,'Input MCC'!B:C,2,0)","v":{"$error":"#N/A"}},{"$f":"VLOOKUP(P1078,'Input MCC'!B:E,4,0)","v":{"$error":"#N/A"}},null,null,null,null,null,null,null,null,null,null,null,null,null,{"$error":"#DIV/0!"},0,0,null,"","","","","","","","","","",null,null,null,null,null,null,null,null,null,null,null,null,null,null,null,null,null,"ZWO"]
[null,null,null,null,null,null,null,null,null,null,null,null,null,null,null,null,{"$f":"VLOOKUP(P1079,'Input MCC'!B:C,2,0)","v":{"$error":"#N/A"}},{"$f":"VLOOKUP(P1079,'Input MCC'!B:E,4,0)","v":{"$error":"#N/A"}},null,null,null,null,null,null,null,null,null,null,null,null,null,{"$error":"#DIV/0!"},0,0,null,"","","","","","","","","","",null,null,null,null,null,null,null,null,null,null,null,null,null,null,null,null,null,"ZWO"]
[null,null,null,null,null,null,null,null,null,null,null,null,null,null,null,null,{"$f":"VLOOKUP(P1080,'Input MCC'!B:C,2,0)","v":{"$error":"#N/A"}},{"$f":"VLOOKUP(P1080,'Input MCC'!B:E,4,0)","v":{"$error":"#N/A"}},null,null,null,null,{"$f":"SUM(V1080:V1085)","v":0},null,null,null,null,null,null,null,null,{"$f":"AE1080/AC1080","v":{"$error":"#DIV/0!"}},{"$f":"V1080*AC1080","v":0},{"$f":"V1080*AE1080","v":0},null,{"$f":"IF(AI1080 <> \"\",\n    IF(ISNUMBER(VALUE(LEFT(AI1080, FIND(\"%\", AI1080)-1))),\n        VALUE(LEFT(AI1080, FIND(\"%\", AI1080)-1)),\n        \"Invalid format\"),\n    \"\")","v":""},{"$f":"IF(AI1080 <> \"\",\n    IF(ISNUMBER(VALUE(LEFT(AI1080, FIND(\"%\", AI1080)-1))) * ISNUMBER(FIND(\"%\", AI1080 & \"wol\")) > 0,\n        TRIM(MID(AI1080, FIND(\"%\", AI1080)+1, FIND(\"/\", AI1080 & \"/\")-FIND(\"%\", AI1080)-1)),\n        \"Invalid format\"),\n    \"\")","v":""},{"$f":"IF(AI1080 <> \"\",\n    IF(ISNUMBER(VALUE(MID(AI1080, FIND(\"/\", AI1080) + 1, FIND(\"%\", AI1080, FIND(\"/\", AI1080)) - FIND(\"/\", AI1080) - 1))),\n        VALUE(MID(AI1080, FIND(\"/\", AI1080) + 1, FIND(\"%\", AI1080, FIND(\"/\", AI1080)) - FIND(\"/\", AI1080) - 1)),\n        \"\"),\n    \"\")","v":""},{"$f":"IF(AI1080 <> \"\",\n    IFERROR(TRIM(MID(AI1080, FIND(\"%\", AI1080, FIND(\"/\", AI1080)+1)+2,\n        IFERROR(FIND(\"/\", AI1080 & \"/\", FIND(\"/\", AI1080)+1)-FIND(\"%\", AI1080, FIND(\"/\", AI1080)+1)-2, LEN(AI1080)-FIND(\"%\", AI1080, FIND(\"/\", AI1080)+1)-1))),\n        \"\"),\n    \"\")","v":""},{"$f":"IF(AI1080 <> \"\",\n    IF(ISNUMBER(VALUE(MID(AI1080, FIND(\"/\", AI1080, FIND(\"/\", AI1080)+1) + 1, FIND(\"%\", AI1080, FIND(\"/\", AI1080, FIND(\"/\", AI1080)+1)) - FIND(\"/\", AI1080, FIND(\"/\", AI1080)+1) - 1))),\n        VALUE(MID(AI1080, FIND(\"/\", AI1080, FIND(\"/\", AI1080)+1) + 1, FIND(\"%\", AI1080, FIND(\"/\", AI1080, FIND(\"/\", AI1080)+1)) - FIND(\"/\", AI1080, FIND(\"/\", AI1080)+1) - 1)),\n        \"\"),\n    \"\")","v":""},{"$f":"IF(AI1080 <> \"\",\n    IFERROR(\n        TRIM(MID(AI1080,\n            FIND(\"%\", AI1080, FIND(\"%\", AI1080, FIND(\"%\", AI1080)+1)+1)+1,\n            FIND(\"/\", AI1080 & \"/\", FIND(\"%\", AI1080, FIND(\"%\", AI1080, FIND(\"%\", AI1080)+1)+1))-FIND(\"%\", AI1080, FIND(\"%\", AI1080, FIND(\"%\", AI1080)+1)+1)-1)\n        ),\n        \"\"\n    ),\n    \"\"\n)","v":""},{"$f":"IF(AI1080 <> \"\",\n    IF(ISNUMBER(VALUE(MID(AI1080, FIND(\"/\", AI1080, FIND(\"/\", AI1080, FIND(\"/\", AI1080)+1)+1) + 1, FIND(\"%\", AI1080, FIND(\"/\", AI1080, FIND(\"/\", AI1080, FIND(\"/\", AI1080)+1)+1)) - FIND(\"/\", AI1080, FIND(\"/\", AI1080, FIND(\"/\", AI1080)+1)+1) - 1))),\n        VALUE(MID(AI1080, FIND(\"/\", AI1080, FIND(\"/\", AI1080, FIND(\"/\", AI1080)+1)+1) + 1, FIND(\"%\", AI1080, FIND(\"/\", AI1080, FIND(\"/\", AI1080, FIND(\"/\", AI1080)+1)+1)) - FIND(\"/\", AI1080, FIND(\"/\", AI1080, FIND(\"/\", AI1080)+1)+1) - 1)),\n        \"\"),\n    \"\")","v":""},{"$f":"IF(AI1080 <> \"\",\n    IFERROR(TRIM(MID(AI1080, FIND(\"%\", AI1080, FIND(\"/\", AI1080, FIND(\"/\", AI1080, FIND(\"/\", AI1080)+1)+1)+1)+2,\n        IFERROR(FIND(\"/\", AI1080, FIND(\"/\", AI1080, FIND(\"/\", AI1080, FIND(\"/\", AI1080)+1)+1)+1)-FIND(\"%\", AI1080, FIND(\"/\", AI1080, FIND(\"/\", AI1080, FIND(\"/\", AI1080)+1)+1)+1)-2, LEN(AI1080)-FIND(\"%\", AI1080, FIND(\"/\", AI1080, FIND(\"/\", AI1080, FIND(\"/\", AI1080)+1)+1)+1)-1))),\n        \"\"),\n    \"\")","v":""},{"$f":"IF(AI1080 <> \"\",\n    IF(ISNUMBER(VALUE(MID(AI1080, FIND(\"/\", AI1080, FIND(\"/\", AI1080, FIND(\"/\", AI1080, FIND(\"/\", AI1080)+1)+1)+1) + 1, FIND(\"%\", AI1080, FIND(\"/\", AI1080, FIND(\"/\", AI1080, FIND(\"/\", AI1080, FIND(\"/\", AI1080)+1)+1)+1)) - FIND(\"/\", AI1080, FIND(\"/\", AI1080, FIND(\"/\", AI1080, FIND(\"/\", AI1080)+1)+1)+1) - 1))),\n        VALUE(MID(AI1080, FIND(\"/\", AI1080, FIND(\"/\", AI1080, FIND(\"/\", AI1080, FIND(\"/\", AI1080)+1)+1)+1) + 1, FIND(\"%\", AI1080, FIND(\"/\", AI1080, FIND(\"/\", AI1080, FIND(\"/\", AI1080, FIND(\"/\", AI1080)+1)+1)+1)) - FIND(\"/\", AI1080, FIND(\"/\", AI1080, FIND(\"/\", AI1080, FIND(\"/\", AI1080)+1)+1)+1) - 1)),\n        \"\"),\n    \"\")","v":""},{"$f":"IF(AI1080 = \"\", \"\",\n    IFERROR(TRIM(\n        MID(\n            AI1080,\n            FIND(\"%\", AI1080, FIND(\"/\", AI1080, FIND(\"/\", AI1080, FIND(\"/\", AI1080, FIND(\"/\", AI1080)+1)+1)+1)+1) + 1,\n            FIND(\"/\", AI1080 & \"/\", FIND(\"%\", AI1080, FIND(\"/\", AI1080, FIND(\"/\", AI1080, FIND(\"/\", AI1080, FIND(\"/\", AI1080)+1)+1)+1)+1)) -\n            FIND(\"%\", AI1080, FIND(\"/\", AI1080, FIND(\"/\", AI1080, FIND(\"/\", AI1080, FIND(\"/\", AI1080)+1)+1)+1)+1) - 1\n        )\n    ),\n    \"\")\n)","v":""},null,null,null,null,null,null,null,null,null,null,null,null,null,null,null,null,null,"ZWO"]
[null,null,null,null,null,null,null,null,null,null,null,null,null,null,null,null,{"$f":"VLOOKUP(P1081,'Input MCC'!B:C,2,0)","v":{"$error":"#N/A"}},{"$f":"VLOOKUP(P1081,'Input MCC'!B:E,4,0)","v":{"$error":"#N/A"}},null,null,null,null,null,null,null,null,null,null,null,null,null,{"$error":"#DIV/0!"},0,0,null,"","","","","","","","","","",null,null,null,null,null,null,null,null,null,null,null,null,null,null,null,null,null,"ZWO"]
[null,null,null,null,null,null,null,null,null,null,null,null,null,null,null,null,{"$f":"VLOOKUP(P1082,'Input MCC'!B:C,2,0)","v":{"$error":"#N/A"}},{"$f":"VLOOKUP(P1082,'Input MCC'!B:E,4,0)","v":{"$error":"#N/A"}},null,null,null,null,null,null,null,null,null,null,null,null,null,{"$error":"#DIV/0!"},0,0,null,"","","","","","","","","","",null,null,null,null,null,null,null,null,null,null,null,null,null,null,null,null,null,"ZWO"]
[null,null,null,null,null,null,null,null,null,null,null,null,null,null,null,null,{"$f":"VLOOKUP(P1083,'Input MCC'!B:C,2,0)","v":{"$error":"#N/A"}},{"$f":"VLOOKUP(P1083,'Input MCC'!B:E,4,0)","v":{"$error":"#N/A"}},null,null,null,null,null,null,null,null,null,null,null,null,null,{"$error":"#DIV/0!"},0,0,null,"","","","","","","","","","",null,null,null,null,null,null,null,null,null,null,null,null,null,null,null,null,null,"ZWO"]
[null,null,null,null,null,null,null,null,null,null,null,null,null,null,null,null,{"$f":"VLOOKUP(P1084,'Input MCC'!B:C,2,0)","v":{"$error":"#N/A"}},{"$f":"VLOOKUP(P1084,'Input MCC'!B:E,4,0)","v":{"$error":"#N/A"}},null,null,null,null,null,null,null,null,null,null,null,null,null,{"$error":"#DIV/0!"},0,0,null,"","","","","","","","","","",null,null,null,null,null,null,null,null,null,null,null,null,null,null,null,null,null,"ZWO"]
[null,null,null,null,null,null,null,null,null,null,null,null,null,null,null,null,{"$f":"VLOOKUP(P1085,'Input MCC'!B:C,2,0)","v":{"$error":"#N/A"}},{"$f":"VLOOKUP(P1085,'Input MCC'!B:E,4,0)","v":{"$error":"#N/A"}},null,null,null,null,null,null,null,null,null,null,null,null,null,{"$error":"#DIV/0!"},0,0,null,"","","","","","","","","","",null,null,null,null,null,null,null,null,null,null,null,null,null,null,null,null,null,"ZWO"]
[null,null,null,null,null,null,null,null,null,null,null,null,null,null,null,null,{"$f":"VLOOKUP(P1086,'Input MCC'!B:C,2,0)","v":{"$error":"#N/A"}},{"$f":"VLOOKUP(P1086,'Input MCC'!B:E,4,0)","v":{"$error":"#N/A"}},null,null,null,null,{"$f":"SUM(V1086:V1091)","v":0},null,null,null,null,null,null,null,null,{"$error":"#DIV/0!"},0,0,null,"","","","","","","","","","",null,null,null,null,null,null,null,null,null,null,null,null,null,null,null,null,null,"ZWO"]
[null,null,null,null,null,null,null,null,null,null,null,null,null,null,null,null,{"$f":"VLOOKUP(P1087,'Input MCC'!B:C,2,0)","v":{"$error":"#N/A"}},{"$f":"VLOOKUP(P1087,'Input MCC'!B:E,4,0)","v":{"$error":"#N/A"}},null,null,null,null,null,null,null,null,null,null,null,null,null,{"$error":"#DIV/0!"},0,0,null,"","","","","","","","","","",null,null,null,null,null,null,null,null,null,null,null,null,null,null,null,null,null,"ZWO"]
[null,null,null,null,null,null,null,null,null,null,null,null,null,null,null,null,{"$f":"VLOOKUP(P1088,'Input MCC'!B:C,2,0)","v":{"$error":"#N/A"}},{"$f":"VLOOKUP(P1088,'Input MCC'!B:E,4,0)","v":{"$error":"#N/A"}},null,null,null,null,null,null,null,null,null,null,null,null,null,{"$error":"#DIV/0!"},0,0,null,"","","","","","","","","","",null,null,null,null,null,null,null,null,null,null,null,null,null,null,null,null,null,"ZWO"]
[null,null,null,null,null,null,null,null,null,null,null,null,null,null,null,null,{"$f":"VLOOKUP(P1089,'Input MCC'!B:C,2,0)","v":{"$error":"#N/A"}},{"$f":"VLOOKUP(P1089,'Input MCC'!B:E,4,0)","v":{"$error":"#N/A"}},null,null,null,null,null,null,null,null,null,null,null,null,null,{"$error":"#DIV/0!"},0,0,null,"","","","","","","","","","",null,null,null,null,null,null,null,null,null,null,null,null,null,null,null,null,null,"ZWO"]
[null,null,null,null,null,null,null,null,null,null,null,null,null,null,null,null,{"$f":"VLOOKUP(P1090,'Input MCC'!B:C,2,0)","v":{"$error":"#N/A"}},{"$f":"VLOOKUP(P1090,'Input MCC'!B:E,4,0)","v":{"$error":"#N/A"}},null,null,null,null,null,null,null,null,null,null,null,null,null,{"$error":"#DIV/0!"},0,0,null,"","","","","","","","","","",null,null,null,null,null,null,null,null,null,null,null,null,null,null,null,null,null,"ZWO"]
[null,null,null,null,null,null,null,null,null,null,null,null,null,null,null,null,{"$f":"VLOOKUP(P1091,'Input MCC'!B:C,2,0)","v":{"$error":"#N/A"}},{"$f":"VLOOKUP(P1091,'Input MCC'!B:E,4,0)","v":{"$error":"#N/A"}},null,null,null,null,null,null,null,null,null,null,null,null,null,{"$error":"#DIV/0!"},0,0,null,"","","","","","","","","","",null,null,null,null,null,null,null,null,null,null,null,null,null,null,null,null,null,"ZWO"]
[null,null,null,null,null,null,null,null,null,null,null,null,null,null,null,null,{"$f":"VLOOKUP(P1092,'Input MCC'!B:C,2,0)","v":{"$error":"#N/A"}},{"$f":"VLOOKUP(P1092,'Input MCC'!B:E,4,0)","v":{"$error":"#N/A"}},null,null,null,null,{"$f":"SUM(V1092:V1097)","v":0},null,null,null,null,null,null,null,null,{"$error":"#DIV/0!"},0,0,null,"","","","","","","","","","",null,null,null,null,null,null,null,null,null,null,null,null,null,null,null,null,null,"ZWO"]
[null,null,null,null,null,null,null,null,null,null,null,null,null,null,null,null,{"$f":"VLOOKUP(P1093,'Input MCC'!B:C,2,0)","v":{"$error":"#N/A"}},{"$f":"VLOOKUP(P1093,'Input MCC'!B:E,4,0)","v":{"$error":"#N/A"}},null,null,null,null,null,null,null,null,null,null,null,null,null,{"$error":"#DIV/0!"},0,0,null,"","","","","","","","","","",null,null,null,null,null,null,null,null,null,null,null,null,null,null,null,null,null,"ZWO"]
[null,null,null,null,null,null,null,null,null,null,null,null,null,null,null,null,{"$f":"VLOOKUP(P1094,'Input MCC'!B:C,2,0)","v":{"$error":"#N/A"}},{"$f":"VLOOKUP(P1094,'Input MCC'!B:E,4,0)","v":{"$error":"#N/A"}},null,null,null,null,null,null,null,null,null,null,null,null,null,{"$error":"#DIV/0!"},0,0,null,"","","","","","","","","","",null,null,null,null,null,null,null,null,null,null,null,null,null,null,null,null,null,"ZWO"]
[null,null,null,null,null,null,null,null,null,null,null,null,null,null,null,null,{"$f":"VLOOKUP(P1095,'Input MCC'!B:C,2,0)","v":{"$error":"#N/A"}},{"$f":"VLOOKUP(P1095,'Input MCC'!B:E,4,0)","v":{"$error":"#N/A"}},null,null,null,null,null,null,null,null,null,null,null,null,null,{"$error":"#DIV/0!"},0,0,null,"","","","","","","","","","",null,null,null,null,null,null,null,null,null,null,null,null,null,null,null,null,null,"ZWO"]
[null,null,null,null,null,null,null,null,null,null,null,null,null,null,null,null,{"$f":"VLOOKUP(P1096,'Input MCC'!B:C,2,0)","v":{"$error":"#N/A"}},{"$f":"VLOOKUP(P1096,'Input MCC'!B:E,4,0)","v":{"$error":"#N/A"}},null,null,null,null,null,null,null,null,null,null,null,null,null,{"$error":"#DIV/0!"},0,0,null,"","","","","","","","","","",null,null,null,null,null,null,null,null,null,null,null,null,null,null,null,null,null,"ZWO"]
[null,null,null,null,null,null,null,null,null,null,null,null,null,null,null,null,{"$f":"VLOOKUP(P1097,'Input MCC'!B:C,2,0)","v":{"$error":"#N/A"}},{"$f":"VLOOKUP(P1097,'Input MCC'!B:E,4,0)","v":{"$error":"#N/A"}},null,null,null,null,null,null,null,null,null,null,null,null,null,{"$error":"#DIV/0!"},0,0,null,"","","","","","","","","","",null,null,null,null,null,null,null,null,null,null,null,null,null,null,null,null,null,"ZWO"]
[null,null,null,null,null,null,null,null,null,null,null,null,null,null,null,null,{"$f":"VLOOKUP(P1098,'Input MCC'!B:C,2,0)","v":{"$error":"#N/A"}},{"$f":"VLOOKUP(P1098,'Input MCC'!B:E,4,0)","v":{"$error":"#N/A"}},null,null,null,null,{"$f":"SUM(V1098:V1103)","v":0},null,null,null,null,null,null,null,null,{"$error":"#DIV/0!"},0,0,null,"","","","","","","","","","",null,null,null,null,null,null,null,null,null,null,null,null,null,null,null,null,null,"ZWO"]
[null,null,null,null,null,null,null,null,null,null,null,null,null,null,null,null,{"$f":"VLOOKUP(P1099,'Input MCC'!B:C,2,0)","v":{"$error":"#N/A"}},{"$f":"VLOOKUP(P1099,'Input MCC'!B:E,4,0)","v":{"$error":"#N/A"}},null,null,null,null,null,null,null,null,null,null,null,null,null,{"$error":"#DIV/0!"},0,0,null,"","","","","","","","","","",null,null,null,null,null,null,null,null,null,null,null,null,null,null,null,null,null,"ZWO"]
[null,null,null,null,null,null,null,null,null,null,null,null,null,null,null,null,{"$f":"VLOOKUP(P1100,'Input MCC'!B:C,2,0)","v":{"$error":"#N/A"}},{"$f":"VLOOKUP(P1100,'Input MCC'!B:E,4,0)","v":{"$error":"#N/A"}},null,null,null,null,null,null,null,null,null,null,null,null,null,{"$error":"#DIV/0!"},0,0,null,"","","","","","","","","","",null,null,null,null,null,null,null,null,null,null,null,null,null,null,null,null,null,"ZWO"]
[null,null,null,null,null,null,null,null,null,null,null,null,null,null,null,null,{"$f":"VLOOKUP(P1101,'Input MCC'!B:C,2,0)","v":{"$error":"#N/A"}},{"$f":"VLOOKUP(P1101,'Input MCC'!B:E,4,0)","v":{"$error":"#N/A"}},null,null,null,null,null,null,null,null,null,null,null,null,null,{"$error":"#DIV/0!"},0,0,null,"","","","","","","","","","",null,null,null,null,null,null,null,null,null,null,null,null,null,null,null,null,null,"ZWO"]
[null,null,null,null,null,null,null,null,null,null,null,null,null,null,null,null,{"$f":"VLOOKUP(P1102,'Input MCC'!B:C,2,0)","v":{"$error":"#N/A"}},{"$f":"VLOOKUP(P1102,'Input MCC'!B:E,4,0)","v":{"$error":"#N/A"}},null,null,null,null,null,null,null,null,null,null,null,null,null,{"$error":"#DIV/0!"},0,0,null,"","","","","","","","","","",null,null,null,null,null,null,null,null,null,null,null,null,null,null,null,null,null,"ZWO"]
[null,null,null,null,null,null,null,null,null,null,null,null,null,null,null,null,{"$f":"VLOOKUP(P1103,'Input MCC'!B:C,2,0)","v":{"$error":"#N/A"}},{"$f":"VLOOKUP(P1103,'Input MCC'!B:E,4,0)","v":{"$error":"#N/A"}},null,null,null,null,null,null,null,null,null,null,null,null,null,{"$error":"#DIV/0!"},0,0,null,"","","","","","","","","","",null,null,null,null,null,null,null,null,null,null,null,null,null,null,null,null,null,"ZWO"]
[null,null,null,null,null,null,null,null,null,null,null,null,null,null,null,null,{"$f":"VLOOKUP(P1104,'Input MCC'!B:C,2,0)","v":{"$error":"#N/A"}},{"$f":"VLOOKUP(P1104,'Input MCC'!B:E,4,0)","v":{"$error":"#N/A"}},null,null,null,null,{"$f":"SUM(V1104:V1109)","v":0},null,null,null,null,null,null,null,null,{"$error":"#DIV/0!"},0,0,null,"","","","","","","","","","",null,null,null,null,null,null,null,null,null,null,null,null,null,null,null,null,null,"ZWO"]
[null,null,null,null,null,null,null,null,null,null,null,null,null,null,null,null,{"$f":"VLOOKUP(P1105,'Input MCC'!B:C,2,0)","v":{"$error":"#N/A"}},{"$f":"VLOOKUP(P1105,'Input MCC'!B:E,4,0)","v":{"$error":"#N/A"}},null,null,null,null,null,null,null,null,null,null,null,null,null,{"$error":"#DIV/0!"},0,0,null,"","","","","","","","","","",null,null,null,null,null,null,null,null,null,null,null,null,null,null,null,null,null,"ZWO"]
[null,null,null,null,null,null,null,null,null,null,null,null,null,null,null,null,{"$f":"VLOOKUP(P1106,'Input MCC'!B:C,2,0)","v":{"$error":"#N/A"}},{"$f":"VLOOKUP(P1106,'Input MCC'!B:E,4,0)","v":{"$error":"#N/A"}},null,null,null,null,null,null,null,null,null,null,null,null,null,{"$error":"#DIV/0!"},0,0,null,"","","","","","","","","","",null,null,null,null,null,null,null,null,null,null,null,null,null,null,null,null,null,"ZWO"]
[null,null,null,null,null,null,null,null,null,null,null,null,null,null,null,null,{"$f":"VLOOKUP(P1107,'Input MCC'!B:C,2,0)","v":{"$error":"#N/A"}},{"$f":"VLOOKUP(P1107,'Input MCC'!B:E,4,0)","v":{"$error":"#N/A"}},null,null,null,null,null,null,null,null,null,null,null,null,null,{"$error":"#DIV/0!"},0,0,null,"","","","","","","","","","",null,null,null,null,null,null,null,null,null,null,null,null,null,null,null,null,null,"ZWO"]
[null,null,null,null,null,null,null,null,null,null,null,null,null,null,null,null,{"$f":"VLOOKUP(P1108,'Input MCC'!B:C,2,0)","v":{"$error":"#N/A"}},{"$f":"VLOOKUP(P1108,'Input MCC'!B:E,4,0)","v":{"$error":"#N/A"}},null,null,null,null,null,null,null,null,null,null,null,null,null,{"$error":"#DIV/0!"},0,0,null,"","","","","","","","","","",null,null,null,null,null,null,null,null,null,null,null,null,null,null,null,null,null,"ZWO"]
[null,null,null,null,null,null,null,null,null,null,null,null,null,null,null,null,{"$f":"VLOOKUP(P1109,'Input MCC'!B:C,2,0)","v":{"$error":"#N/A"}},{"$f":"VLOOKUP(P1109,'Input MCC'!B:E,4,0)","v":{"$error":"#N/A"}},null,null,null,null,null,null,null,null,null,null,null,null,null,{"$error":"#DIV/0!"},0,0,null,"","","","","","","","","","",null,null,null,null,null,null,null,null,null,null,null,null,null,null,null,null,null,"ZWO"]
[null,null,null,null,null,null,null,null,null,null,null,null,null,null,null,null,{"$f":"VLOOKUP(P1110,'Input MCC'!B:C,2,0)","v":{"$error":"#N/A"}},{"$f":"VLOOKUP(P1110,'Input MCC'!B:E,4,0)","v":{"$error":"#N/A"}},null,null,null,null,{"$f":"SUM(V1110:V1115)","v":0},null,null,null,null,null,null,null,null,{"$error":"#DIV/0!"},0,0,null,"","","","","","","","","","",null,null,null,null,null,null,null,null,null,null,null,null,null,null,null,null,null,"ZWO"]
[null,null,null,null,null,null,null,null,null,null,null,null,null,null,null,null,{"$f":"VLOOKUP(P1111,'Input MCC'!B:C,2,0)","v":{"$error":"#N/A"}},{"$f":"VLOOKUP(P1111,'Input MCC'!B:E,4,0)","v":{"$error":"#N/A"}},null,null,null,null,null,null,null,null,null,null,null,null,null,{"$error":"#DIV/0!"},0,0,null,"","","","","","","","","","",null,null,null,null,null,null,null,null,null,null,null,null,null,null,null,null,null,"ZWO"]
[null,null,null,null,null,null,null,null,null,null,null,null,null,null,null,null,{"$f":"VLOOKUP(P1112,'Input MCC'!B:C,2,0)","v":{"$error":"#N/A"}},{"$f":"VLOOKUP(P1112,'Input MCC'!B:E,4,0)","v":{"$error":"#N/A"}},null,null,null,null,null,null,null,null,null,null,null,null,null,{"$error":"#DIV/0!"},0,0,null,"","","","","","","","","","",null,null,null,null,null,null,null,null,null,null,null,null,null,null,null,null,null,"ZWO"]
[null,null,null,null,null,null,null,null,null,null,null,null,null,null,null,null,{"$f":"VLOOKUP(P1113,'Input MCC'!B:C,2,0)","v":{"$error":"#N/A"}},{"$f":"VLOOKUP(P1113,'Input MCC'!B:E,4,0)","v":{"$error":"#N/A"}},null,null,null,null,null,null,null,null,null,null,null,null,null,{"$error":"#DIV/0!"},0,0,null,"","","","","","","","","","",null,null,null,null,null,null,null,null,null,null,null,null,null,null,null,null,null,"ZWO"]
[null,null,null,null,null,null,null,null,null,null,null,null,null,null,null,null,{"$f":"VLOOKUP(P1114,'Input MCC'!B:C,2,0)","v":{"$error":"#N/A"}},{"$f":"VLOOKUP(P1114,'Input MCC'!B:E,4,0)","v":{"$error":"#N/A"}},null,null,null,null,null,null,null,null,null,null,null,null,null,{"$error":"#DIV/0!"},0,0,null,"","","","","","","","","","",null,null,null,null,null,null,null,null,null,null,null,null,null,null,null,null,null,"ZWO"]
[null,null,null,null,null,null,null,null,null,null,null,null,null,null,null,null,{"$f":"VLOOKUP(P1115,'Input MCC'!B:C,2,0)","v":{"$error":"#N/A"}},{"$f":"VLOOKUP(P1115,'Input MCC'!B:E,4,0)","v":{"$error":"#N/A"}},null,null,null,null,null,null,null,null,null,null,null,null,null,{"$error":"#DIV/0!"},0,0,null,"","","","","","","","","","",null,null,null,null,null,null,null,null,null,null,null,null,null,null,null,null,null,"ZWO"]
[null,null,null,null,null,null,null,null,null,null,null,null,null,null,null,null,{"$f":"VLOOKUP(P1116,'Input MCC'!B:C,2,0)","v":{"$error":"#N/A"}},{"$f":"VLOOKUP(P1116,'Input MCC'!B:E,4,0)","v":{"$error":"#N/A"}},null,null,null,null,{"$f":"SUM(V1116:V1121)","v":0},null,null,null,null,null,null,null,null,{"$error":"#DIV/0!"},0,0,null,"","","","","","","","","","",null,null,null,null,null,null,null,null,null,null,null,null,null,null,null,null,null,"ZWO"]
[null,null,null,null,null,null,null,null,null,null,null,null,null,null,null,null,{"$f":"VLOOKUP(P1117,'Input MCC'!B:C,2,0)","v":{"$error":"#N/A"}},{"$f":"VLOOKUP(P1117,'Input MCC'!B:E,4,0)","v":{"$error":"#N/A"}},null,null,null,null,null,null,null,null,null,null,null,null,null,{"$error":"#DIV/0!"},0,0,null,"","","","","","","","","","",null,null,null,null,null,null,null,null,null,null,null,null,null,null,null,null,null,"ZWO"]
[null,null,null,null,null,null,null,null,null,null,null,null,null,null,null,null,{"$f":"VLOOKUP(P1118,'Input MCC'!B:C,2,0)","v":{"$error":"#N/A"}},{"$f":"VLOOKUP(P1118,'Input MCC'!B:E,4,0)","v":{"$error":"#N/A"}},null,null,null,null,null,null,null,null,null,null,null,null,null,{"$error":"#DIV/0!"},0,0,null,"","","","","","","","","","",null,null,null,null,null,null,null,null,null,null,null,null,null,null,null,null,null,"ZWO"]
[null,null,null,null,null,null,null,null,null,null,null,null,null,null,null,null,{"$f":"VLOOKUP(P1119,'Input MCC'!B:C,2,0)","v":{"$error":"#N/A"}},{"$f":"VLOOKUP(P1119,'Input MCC'!B:E,4,0)","v":{"$error":"#N/A"}},null,null,null,null,null,null,null,null,null,null,null,null,null,{"$error":"#DIV/0!"},0,0,null,"","","","","","","","","","",null,null,null,null,null,null,null,null,null,null,null,null,null,null,null,null,null,"ZWO"]
[null,null,null,null,null,null,null,null,null,null,null,null,null,null,null,null,{"$f":"VLOOKUP(P1120,'Input MCC'!B:C,2,0)","v":{"$error":"#N/A"}},{"$f":"VLOOKUP(P1120,'Input MCC'!B:E,4,0)","v":{"$error":"#N/A"}},null,null,null,null,null,null,null,null,null,null,null,null,null,{"$error":"#DIV/0!"},0,0,null,"","","","","","","","","","",null,null,null,null,null,null,null,null,null,null,null,null,null,null,null,null,null,"ZWO"]
[null,null,null,null,null,null,null,null,null,null,null,null,null,null,null,null,{"$f":"VLOOKUP(P1121,'Input MCC'!B:C,2,0)","v":{"$error":"#N/A"}},{"$f":"VLOOKUP(P1121,'Input MCC'!B:E,4,0)","v":{"$error":"#N/A"}},null,null,null,null,null,null,null,null,null,null,null,null,null,{"$error":"#DIV/0!"},0,0,null,"","","","","","","","","","",null,null,null,null,null,null,null,null,null,null,null,null,null,null,null,null,null,"ZWO"]
[null,null,null,null,null,null,null,null,null,null,null,null,null,null,null,null,{"$f":"VLOOKUP(P1122,'Input MCC'!B:C,2,0)","v":{"$error":"#N/A"}},{"$f":"VLOOKUP(P1122,'Input MCC'!B:E,4,0)","v":{"$error":"#N/A"}},null,null,null,null,{"$f":"SUM(V1122:V1127)","v":0},null,null,null,null,null,null,null,null,{"$error":"#DIV/0!"},0,0,null,"","","","","","","","","","",null,null,null,null,null,null,null,null,null,null,null,null,null,null,null,null,null,"ZWO"]
[null,null,null,null,null,null,null,null,null,null,null,null,null,null,null,null,{"$f":"VLOOKUP(P1123,'Input MCC'!B:C,2,0)","v":{"$error":"#N/A"}},{"$f":"VLOOKUP(P1123,'Input MCC'!B:E,4,0)","v":{"$error":"#N/A"}},null,null,null,null,null,null,null,null,null,null,null,null,null,{"$error":"#DIV/0!"},0,0,null,"","","","","","","","","","",null,null,null,null,null,null,null,null,null,null,null,null,null,null,null,null,null,"ZWO"]
[null,null,null,null,null,null,null,null,null,null,null,null,null,null,null,null,{"$f":"VLOOKUP(P1124,'Input MCC'!B:C,2,0)","v":{"$error":"#N/A"}},{"$f":"VLOOKUP(P1124,'Input MCC'!B:E,4,0)","v":{"$error":"#N/A"}},null,null,null,null,null,null,null,null,null,null,null,null,null,{"$error":"#DIV/0!"},0,0,null,"","","","","","","","","","",null,null,null,null,null,null,null,null,null,null,null,null,null,null,null,null,null,"ZWO"]
[null,null,null,null,null,null,null,null,null,null,null,null,null,null,null,null,{"$f":"VLOOKUP(P1125,'Input MCC'!B:C,2,0)","v":{"$error":"#N/A"}},{"$f":"VLOOKUP(P1125,'Input MCC'!B:E,4,0)","v":{"$error":"#N/A"}},null,null,null,null,null,null,null,null,null,null,null,null,null,{"$error":"#DIV/0!"},0,0,null,"","","","","","","","","","",null,null,null,null,null,null,null,null,null,null,null,null,null,null,null,null,null,"ZWO"]
[null,null,null,null,null,null,null,null,null,null,null,null,null,null,null,null,{"$f":"VLOOKUP(P1126,'Input MCC'!B:C,2,0)","v":{"$error":"#N/A"}},{"$f":"VLOOKUP(P1126,'Input MCC'!B:E,4,0)","v":{"$error":"#N/A"}},null,null,null,null,null,null,null,null,null,null,null,null,null,{"$error":"#DIV/0!"},0,0,null,"","","","","","","","","","",null,null,null,null,null,null,null,null,null,null,null,null,null,null,null,null,null,"ZWO"]
[null,null,null,null,null,null,null,null,null,null,null,null,null,null,null,null,{"$f":"VLOOKUP(P1127,'Input MCC'!B:C,2,0)","v":{"$error":"#N/A"}},{"$f":"VLOOKUP(P1127,'Input MCC'!B:E,4,0)","v":{"$error":"#N/A"}},null,null,null,null,null,null,null,null,null,null,null,null,null,{"$error":"#DIV/0!"},0,0,null,"","","","","","","","","","",null,null,null,null,null,null,null,null,null,null,null,null,null,null,null,null,null,"ZWO"]
[null,null,null,null,null,null,null,null,null,null,null,null,null,null,null,null,{"$f":"VLOOKUP(P1128,'Input MCC'!B:C,2,0)","v":{"$error":"#N/A"}},{"$f":"VLOOKUP(P1128,'Input MCC'!B:E,4,0)","v":{"$error":"#N/A"}},null,null,null,null,{"$f":"SUM(V1128:V1133)","v":0},null,null,null,null,null,null,null,null,{"$error":"#DIV/0!"},0,0,null,"","","","","","","","","","",null,null,null,null,null,null,null,null,null,null,null,null,null,null,null,null,null,"ZWO"]
[null,null,null,null,null,null,null,null,null,null,null,null,null,null,null,null,{"$f":"VLOOKUP(P1129,'Input MCC'!B:C,2,0)","v":{"$error":"#N/A"}},{"$f":"VLOOKUP(P1129,'Input MCC'!B:E,4,0)","v":{"$error":"#N/A"}},null,null,null,null,null,null,null,null,null,null,null,null,null,{"$error":"#DIV/0!"},0,0,null,"","","","","","","","","","",null,null,null,null,null,null,null,null,null,null,null,null,null,null,null,null,null,"ZWO"]
[null,null,null,null,null,null,null,null,null,null,null,null,null,null,null,null,{"$f":"VLOOKUP(P1130,'Input MCC'!B:C,2,0)","v":{"$error":"#N/A"}},{"$f":"VLOOKUP(P1130,'Input MCC'!B:E,4,0)","v":{"$error":"#N/A"}},null,null,null,null,null,null,null,null,null,null,null,null,null,{"$error":"#DIV/0!"},0,0,null,"","","","","","","","","","",null,null,null,null,null,null,null,null,null,null,null,null,null,null,null,null,null,"ZWO"]
[null,null,null,null,null,null,null,null,null,null,null,null,null,null,null,null,{"$f":"VLOOKUP(P1131,'Input MCC'!B:C,2,0)","v":{"$error":"#N/A"}},{"$f":"VLOOKUP(P1131,'Input MCC'!B:E,4,0)","v":{"$error":"#N/A"}},null,null,null,null,null,null,null,null,null,null,null,null,null,{"$error":"#DIV/0!"},0,0,null,"","","","","","","","","","",null,null,null,null,null,null,null,null,null,null,null,null,null,null,null,null,null,"ZWO"]
[null,null,null,null,null,null,null,null,null,null,null,null,null,null,null,null,{"$f":"VLOOKUP(P1132,'Input MCC'!B:C,2,0)","v":{"$error":"#N/A"}},{"$f":"VLOOKUP(P1132,'Input MCC'!B:E,4,0)","v":{"$error":"#N/A"}},null,null,null,null,null,null,null,null,null,null,null,null,null,{"$error":"#DIV/0!"},0,0,null,"","","","","","","","","","",null,null,null,null,null,null,null,null,null,null,null,null,null,null,null,null,null,"ZWO"]
[null,null,null,null,null,null,null,null,null,null,null,null,null,null,null,null,{"$f":"VLOOKUP(P1133,'Input MCC'!B:C,2,0)","v":{"$error":"#N/A"}},{"$f":"VLOOKUP(P1133,'Input MCC'!B:E,4,0)","v":{"$error":"#N/A"}},null,null,null,null,null,null,null,null,null,null,null,null,null,{"$error":"#DIV/0!"},0,0,null,"","","","","","","","","","",null,null,null,null,null,null,null,null,null,null,null,null,null,null,null,null,null,"ZWO"]
[null,null,null,null,null,null,null,null,null,null,null,null,null,null,null,null,{"$f":"VLOOKUP(P1134,'Input MCC'!B:C,2,0)","v":{"$error":"#N/A"}},{"$f":"VLOOKUP(P1134,'Input MCC'!B:E,4,0)","v":{"$error":"#N/A"}},null,null,null,null,{"$f":"SUM(V1134:V1139)","v":0},null,null,null,null,null,null,null,null,{"$error":"#DIV/0!"},0,0,null,"","","","","","","","","","",null,null,null,null,null,null,null,null,null,null,null,null,null,null,null,null,null,"ZWO"]
[null,null,null,null,null,null,null,null,null,null,null,null,null,null,null,null,{"$f":"VLOOKUP(P1135,'Input MCC'!B:C,2,0)","v":{"$error":"#N/A"}},{"$f":"VLOOKUP(P1135,'Input MCC'!B:E,4,0)","v":{"$error":"#N/A"}},null,null,null,null,null,null,null,null,null,null,null,null,null,{"$error":"#DIV/0!"},0,0,null,"","","","","","","","","","",null,null,null,null,null,null,null,null,null,null,null,null,null,null,null,null,null,"ZWO"]
[null,null,null,null,null,null,null,null,null,null,null,null,null,null,null,null,{"$f":"VLOOKUP(P1136,'Input MCC'!B:C,2,0)","v":{"$error":"#N/A"}},{"$f":"VLOOKUP(P1136,'Input MCC'!B:E,4,0)","v":{"$error":"#N/A"}},null,null,null,null,null,null,null,null,null,null,null,null,null,{"$error":"#DIV/0!"},0,0,null,"","","","","","","","","","",null,null,null,null,null,null,null,null,null,null,null,null,null,null,null,null,null,"ZWO"]
[null,null,null,null,null,null,null,null,null,null,null,null,null,null,null,null,{"$f":"VLOOKUP(P1137,'Input MCC'!B:C,2,0)","v":{"$error":"#N/A"}},{"$f":"VLOOKUP(P1137,'Input MCC'!B:E,4,0)","v":{"$error":"#N/A"}},null,null,null,null,null,null,null,null,null,null,null,null,null,{"$error":"#DIV/0!"},0,0,null,"","","","","","","","","","",null,null,null,null,null,null,null,null,null,null,null,null,null,null,null,null,null,"ZWO"]
[null,null,null,null,null,null,null,null,null,null,null,null,null,null,null,null,{"$f":"VLOOKUP(P1138,'Input MCC'!B:C,2,0)","v":{"$error":"#N/A"}},{"$f":"VLOOKUP(P1138,'Input MCC'!B:E,4,0)","v":{"$error":"#N/A"}},null,null,null,null,null,null,null,null,null,null,null,null,null,{"$error":"#DIV/0!"},0,0,null,"","","","","","","","","","",null,null,null,null,null,null,null,null,null,null,null,null,null,null,null,null,null,"ZWO"]
[null,null,null,null,null,null,null,null,null,null,null,null,null,null,null,null,{"$f":"VLOOKUP(P1139,'Input MCC'!B:C,2,0)","v":{"$error":"#N/A"}},{"$f":"VLOOKUP(P1139,'Input MCC'!B:E,4,0)","v":{"$error":"#N/A"}},null,null,null,null,null,null,null,null,null,null,null,null,null,{"$error":"#DIV/0!"},0,0,null,"","","","","","","","","","",null,null,null,null,null,null,null,null,null,null,null,null,null,null,null,null,null,"ZWO"]
[null,null,null,null,null,null,null,null,null,null,null,null,null,null,null,null,{"$f":"VLOOKUP(P1140,'Input MCC'!B:C,2,0)","v":{"$error":"#N/A"}},{"$f":"VLOOKUP(P1140,'Input MCC'!B:E,4,0)","v":{"$error":"#N/A"}},null,null,null,null,{"$f":"SUM(V1140:V1145)","v":0},null,null,null,null,null,null,null,null,{"$error":"#DIV/0!"},0,0,null,"","","","","","","","","","",null,null,null,null,null,null,null,null,null,null,null,null,null,null,null,null,null,"ZWO"]
[null,null,null,null,null,null,null,null,null,null,null,null,null,null,null,null,{"$f":"VLOOKUP(P1141,'Input MCC'!B:C,2,0)","v":{"$error":"#N/A"}},{"$f":"VLOOKUP(P1141,'Input MCC'!B:E,4,0)","v":{"$error":"#N/A"}},null,null,null,null,null,null,null,null,null,null,null,null,null,{"$error":"#DIV/0!"},0,0,null,"","","","","","","","","","",null,null,null,null,null,null,null,null,null,null,null,null,null,null,null,null,null,"ZWO"]
[null,null,null,null,null,null,null,null,null,null,null,null,null,null,null,null,{"$f":"VLOOKUP(P1142,'Input MCC'!B:C,2,0)","v":{"$error":"#N/A"}},{"$f":"VLOOKUP(P1142,'Input MCC'!B:E,4,0)","v":{"$error":"#N/A"}},null,null,null,null,null,null,null,null,null,null,null,null,null,{"$error":"#DIV/0!"},0,0,null,"","","","","","","","","","",null,null,null,null,null,null,null,null,null,null,null,null,null,null,null,null,null,"ZWO"]
[null,null,null,null,null,null,null,null,null,null,null,null,null,null,null,null,{"$f":"VLOOKUP(P1143,'Input MCC'!B:C,2,0)","v":{"$error":"#N/A"}},{"$f":"VLOOKUP(P1143,'Input MCC'!B:E,4,0)","v":{"$error":"#N/A"}},null,null,null,null,null,null,null,null,null,null,null,null,null,{"$error":"#DIV/0!"},0,0,null,"","","","","","","","","","",null,null,null,null,null,null,null,null,null,null,null,null,null,null,null,null,null,"ZWO"]
[null,null,null,null,null,null,null,null,null,null,null,null,null,null,null,null,{"$f":"VLOOKUP(P1144,'Input MCC'!B:C,2,0)","v":{"$error":"#N/A"}},{"$f":"VLOOKUP(P1144,'Input MCC'!B:E,4,0)","v":{"$error":"#N/A"}},null,null,null,null,null,null,null,null,null,null,null,null,null,{"$f":"AE1144/AC1144","v":{"$error":"#DIV/0!"}},{"$f":"V1144*AC1144","v":0},{"$f":"V1144*AE1144","v":0},null,{"$f":"IF(AI1144 <> \"\",\n    IF(ISNUMBER(VALUE(LEFT(AI1144, FIND(\"%\", AI1144)-1))),\n        VALUE(LEFT(AI1144, FIND(\"%\", AI1144)-1)),\n        \"Invalid format\"),\n    \"\")","v":""},{"$f":"IF(AI1144 <> \"\",\n    IF(ISNUMBER(VALUE(LEFT(AI1144, FIND(\"%\", AI1144)-1))) * ISNUMBER(FIND(\"%\", AI1144 & \"wol\")) > 0,\n        TRIM(MID(AI1144, FIND(\"%\", AI1144)+1, FIND(\"/\", AI1144 & \"/\")-FIND(\"%\", AI1144)-1)),\n        \"Invalid format\"),\n    \"\")","v":""},{"$f":"IF(AI1144 <> \"\",\n    IF(ISNUMBER(VALUE(MID(AI1144, FIND(\"/\", AI1144) + 1, FIND(\"%\", AI1144, FIND(\"/\", AI1144)) - FIND(\"/\", AI1144) - 1))),\n        VALUE(MID(AI1144, FIND(\"/\", AI1144) + 1, FIND(\"%\", AI1144, FIND(\"/\", AI1144)) - FIND(\"/\", AI1144) - 1)),\n        \"\"),\n    \"\")","v":""},{"$f":"IF(AI1144 <> \"\",\n    IFERROR(TRIM(MID(AI1144, FIND(\"%\", AI1144, FIND(\"/\", AI1144)+1)+2,\n        IFERROR(FIND(\"/\", AI1144 & \"/\", FIND(\"/\", AI1144)+1)-FIND(\"%\", AI1144, FIND(\"/\", AI1144)+1)-2, LEN(AI1144)-FIND(\"%\", AI1144, FIND(\"/\", AI1144)+1)-1))),\n        \"\"),\n    \"\")","v":""},{"$f":"IF(AI1144 <> \"\",\n    IF(ISNUMBER(VALUE(MID(AI1144, FIND(\"/\", AI1144, FIND(\"/\", AI1144)+1) + 1, FIND(\"%\", AI1144, FIND(\"/\", AI1144, FIND(\"/\", AI1144)+1)) - FIND(\"/\", AI1144, FIND(\"/\", AI1144)+1) - 1))),\n        VALUE(MID(AI1144, FIND(\"/\", AI1144, FIND(\"/\", AI1144)+1) + 1, FIND(\"%\", AI1144, FIND(\"/\", AI1144, FIND(\"/\", AI1144)+1)) - FIND(\"/\", AI1144, FIND(\"/\", AI1144)+1) - 1)),\n        \"\"),\n    \"\")","v":""},{"$f":"IF(AI1144 <> \"\",\n    IFERROR(\n        TRIM(MID(AI1144,\n            FIND(\"%\", AI1144, FIND(\"%\", AI1144, FIND(\"%\", AI1144)+1)+1)+1,\n            FIND(\"/\", AI1144 & \"/\", FIND(\"%\", AI1144, FIND(\"%\", AI1144, FIND(\"%\", AI1144)+1)+1))-FIND(\"%\", AI1144, FIND(\"%\", AI1144, FIND(\"%\", AI1144)+1)+1)-1)\n        ),\n        \"\"\n    ),\n    \"\"\n)","v":""},{"$f":"IF(AI1144 <> \"\",\n    IF(ISNUMBER(VALUE(MID(AI1144, FIND(\"/\", AI1144, FIND(\"/\", AI1144, FIND(\"/\", AI1144)+1)+1) + 1, FIND(\"%\", AI1144, FIND(\"/\", AI1144, FIND(\"/\", AI1144, FIND(\"/\", AI1144)+1)+1)) - FIND(\"/\", AI1144, FIND(\"/\", AI1144, FIND(\"/\", AI1144)+1)+1) - 1))),\n        VALUE(MID(AI1144, FIND(\"/\", AI1144, FIND(\"/\", AI1144, FIND(\"/\", AI1144)+1)+1) + 1, FIND(\"%\", AI1144, FIND(\"/\", AI1144, FIND(\"/\", AI1144, FIND(\"/\", AI1144)+1)+1)) - FIND(\"/\", AI1144, FIND(\"/\", AI1144, FIND(\"/\", AI1144)+1)+1) - 1)),\n        \"\"),\n    \"\")","v":""},{"$f":"IF(AI1144 <> \"\",\n    IFERROR(TRIM(MID(AI1144, FIND(\"%\", AI1144, FIND(\"/\", AI1144, FIND(\"/\", AI1144, FIND(\"/\", AI1144)+1)+1)+1)+2,\n        IFERROR(FIND(\"/\", AI1144, FIND(\"/\", AI1144, FIND(\"/\", AI1144, FIND(\"/\", AI1144)+1)+1)+1)-FIND(\"%\", AI1144, FIND(\"/\", AI1144, FIND(\"/\", AI1144, FIND(\"/\", AI1144)+1)+1)+1)-2, LEN(AI1144)-FIND(\"%\", AI1144, FIND(\"/\", AI1144, FIND(\"/\", AI1144, FIND(\"/\", AI1144)+1)+1)+1)-1))),\n        \"\"),\n    \"\")","v":""},{"$f":"IF(AI1144 <> \"\",\n    IF(ISNUMBER(VALUE(MID(AI1144, FIND(\"/\", AI1144, FIND(\"/\", AI1144, FIND(\"/\", AI1144, FIND(\"/\", AI1144)+1)+1)+1) + 1, FIND(\"%\", AI1144, FIND(\"/\", AI1144, FIND(\"/\", AI1144, FIND(\"/\", AI1144, FIND(\"/\", AI1144)+1)+1)+1)) - FIND(\"/\", AI1144, FIND(\"/\", AI1144, FIND(\"/\", AI1144, FIND(\"/\", AI1144)+1)+1)+1) - 1))),\n        VALUE(MID(AI1144, FIND(\"/\", AI1144, FIND(\"/\", AI1144, FIND(\"/\", AI1144, FIND(\"/\", AI1144)+1)+1)+1) + 1, FIND(\"%\", AI1144, FIND(\"/\", AI1144, FIND(\"/\", AI1144, FIND(\"/\", AI1144, FIND(\"/\", AI1144)+1)+1)+1)) - FIND(\"/\", AI1144, FIND(\"/\", AI1144, FIND(\"/\", AI1144, FIND(\"/\", AI1144)+1)+1)+1) - 1)),\n        \"\"),\n    \"\")","v":""},{"$f":"IF(AI1144 = \"\", \"\",\n    IFERROR(TRIM(\n        MID(\n            AI1144,\n            FIND(\"%\", AI1144, FIND(\"/\", AI1144, FIND(\"/\", AI1144, FIND(\"/\", AI1144, FIND(\"/\", AI1144)+1)+1)+1)+1) + 1,\n            FIND(\"/\", AI1144 & \"/\", FIND(\"%\", AI1144, FIND(\"/\", AI1144, FIND(\"/\", AI1144, FIND(\"/\", AI1144, FIND(\"/\", AI1144)+1)+1)+1)+1)) -\n            FIND(\"%\", AI1144, FIND(\"/\", AI1144, FIND(\"/\", AI1144, FIND(\"/\", AI1144, FIND(\"/\", AI1144)+1)+1)+1)+1) - 1\n        )\n    ),\n    \"\")\n)","v":""},null,null,null,null,null,null,null,null,null,null,null,null,null,null,null,null,null,"ZWO"]
[null,null,null,null,null,null,null,null,null,null,null,null,null,null,null,null,{"$f":"VLOOKUP(P1145,'Input MCC'!B:C,2,0)","v":{"$error":"#N/A"}},{"$f":"VLOOKUP(P1145,'Input MCC'!B:E,4,0)","v":{"$error":"#N/A"}},null,null,null,null,null,null,null,null,null,null,null,null,null,{"$error":"#DIV/0!"},0,0,null,"","","","","","","","","","",null,null,null,null,null,null,null,null,null,null,null,null,null,null,null,null,null,"ZWO"]
[null,null,null,null,null,null,null,null,null,null,null,null,null,null,null,null,{"$f":"VLOOKUP(P1146,'Input MCC'!B:C,2,0)","v":{"$error":"#N/A"}},{"$f":"VLOOKUP(P1146,'Input MCC'!B:E,4,0)","v":{"$error":"#N/A"}},null,null,null,null,{"$f":"SUM(V1146:V1151)","v":0},null,null,null,null,null,null,null,null,{"$error":"#DIV/0!"},0,0,null,"","","","","","","","","","",null,null,null,null,null,null,null,null,null,null,null,null,null,null,null,null,null,"ZWO"]
[null,null,null,null,null,null,null,null,null,null,null,null,null,null,null,null,{"$f":"VLOOKUP(P1147,'Input MCC'!B:C,2,0)","v":{"$error":"#N/A"}},{"$f":"VLOOKUP(P1147,'Input MCC'!B:E,4,0)","v":{"$error":"#N/A"}},null,null,null,null,null,null,null,null,null,null,null,null,null,{"$error":"#DIV/0!"},0,0,null,"","","","","","","","","","",null,null,null,null,null,null,null,null,null,null,null,null,null,null,null,null,null,"ZWO"]
[null,null,null,null,null,null,null,null,null,null,null,null,null,null,null,null,{"$f":"VLOOKUP(P1148,'Input MCC'!B:C,2,0)","v":{"$error":"#N/A"}},{"$f":"VLOOKUP(P1148,'Input MCC'!B:E,4,0)","v":{"$error":"#N/A"}},null,null,null,null,null,null,null,null,null,null,null,null,null,{"$error":"#DIV/0!"},0,0,null,"","","","","","","","","","",null,null,null,null,null,null,null,null,null,null,null,null,null,null,null,null,null,"ZWO"]
[null,null,null,null,null,null,null,null,null,null,null,null,null,null,null,null,{"$f":"VLOOKUP(P1149,'Input MCC'!B:C,2,0)","v":{"$error":"#N/A"}},{"$f":"VLOOKUP(P1149,'Input MCC'!B:E,4,0)","v":{"$error":"#N/A"}},null,null,null,null,null,null,null,null,null,null,null,null,null,{"$error":"#DIV/0!"},0,0,null,"","","","","","","","","","",null,null,null,null,null,null,null,null,null,null,null,null,null,null,null,null,null,"ZWO"]
[null,null,null,null,null,null,null,null,null,null,null,null,null,null,null,null,{"$f":"VLOOKUP(P1150,'Input MCC'!B:C,2,0)","v":{"$error":"#N/A"}},{"$f":"VLOOKUP(P1150,'Input MCC'!B:E,4,0)","v":{"$error":"#N/A"}},null,null,null,null,null,null,null,null,null,null,null,null,null,{"$error":"#DIV/0!"},0,0,null,"","","","","","","","","","",null,null,null,null,null,null,null,null,null,null,null,null,null,null,null,null,null,"ZWO"]
[null,null,null,null,null,null,null,null,null,null,null,null,null,null,null,null,{"$f":"VLOOKUP(P1151,'Input MCC'!B:C,2,0)","v":{"$error":"#N/A"}},{"$f":"VLOOKUP(P1151,'Input MCC'!B:E,4,0)","v":{"$error":"#N/A"}},null,null,null,null,null,null,null,null,null,null,null,null,null,{"$error":"#DIV/0!"},0,0,null,"","","","","","","","","","",null,null,null,null,null,null,null,null,null,null,null,null,null,null,null,null,null,"ZWO"]
[null,null,null,null,null,null,null,null,null,null,null,null,null,null,null,null,{"$f":"VLOOKUP(P1152,'Input MCC'!B:C,2,0)","v":{"$error":"#N/A"}},{"$f":"VLOOKUP(P1152,'Input MCC'!B:E,4,0)","v":{"$error":"#N/A"}},null,null,null,null,{"$f":"SUM(V1152:V1157)","v":0},null,null,null,null,null,null,null,null,{"$error":"#DIV/0!"},0,0,null,"","","","","","","","","","",null,null,null,null,null,null,null,null,null,null,null,null,null,null,null,null,null,"ZWO"]
[null,null,null,null,null,null,null,null,null,null,null,null,null,null,null,null,{"$f":"VLOOKUP(P1153,'Input MCC'!B:C,2,0)","v":{"$error":"#N/A"}},{"$f":"VLOOKUP(P1153,'Input MCC'!B:E,4,0)","v":{"$error":"#N/A"}},null,null,null,null,null,null,null,null,null,null,null,null,null,{"$error":"#DIV/0!"},0,0,null,"","","","","","","","","","",null,null,null,null,null,null,null,null,null,null,null,null,null,null,null,null,null,"ZWO"]
[null,null,null,null,null,null,null,null,null,null,null,null,null,null,null,null,{"$f":"VLOOKUP(P1154,'Input MCC'!B:C,2,0)","v":{"$error":"#N/A"}},{"$f":"VLOOKUP(P1154,'Input MCC'!B:E,4,0)","v":{"$error":"#N/A"}},null,null,null,null,null,null,null,null,null,null,null,null,null,{"$error":"#DIV/0!"},0,0,null,"","","","","","","","","","",null,null,null,null,null,null,null,null,null,null,null,null,null,null,null,null,null,"ZWO"]
[null,null,null,null,null,null,null,null,null,null,null,null,null,null,null,null,{"$f":"VLOOKUP(P1155,'Input MCC'!B:C,2,0)","v":{"$error":"#N/A"}},{"$f":"VLOOKUP(P1155,'Input MCC'!B:E,4,0)","v":{"$error":"#N/A"}},null,null,null,null,null,null,null,null,null,null,null,null,null,{"$error":"#DIV/0!"},0,0,null,"","","","","","","","","","",null,null,null,null,null,null,null,null,null,null,null,null,null,null,null,null,null,"ZWO"]
[null,null,null,null,null,null,null,null,null,null,null,null,null,null,null,null,{"$f":"VLOOKUP(P1156,'Input MCC'!B:C,2,0)","v":{"$error":"#N/A"}},{"$f":"VLOOKUP(P1156,'Input MCC'!B:E,4,0)","v":{"$error":"#N/A"}},null,null,null,null,null,null,null,null,null,null,null,null,null,{"$error":"#DIV/0!"},0,0,null,"","","","","","","","","","",null,null,null,null,null,null,null,null,null,null,null,null,null,null,null,null,null,"ZWO"]
[null,null,null,null,null,null,null,null,null,null,null,null,null,null,null,null,{"$f":"VLOOKUP(P1157,'Input MCC'!B:C,2,0)","v":{"$error":"#N/A"}},{"$f":"VLOOKUP(P1157,'Input MCC'!B:E,4,0)","v":{"$error":"#N/A"}},null,null,null,null,null,null,null,null,null,null,null,null,null,{"$error":"#DIV/0!"},0,0,null,"","","","","","","","","","",null,null,null,null,null,null,null,null,null,null,null,null,null,null,null,null,null,"ZWO"]
[null,null,null,null,null,null,null,null,null,null,null,null,null,null,null,null,{"$f":"VLOOKUP(P1158,'Input MCC'!B:C,2,0)","v":{"$error":"#N/A"}},{"$f":"VLOOKUP(P1158,'Input MCC'!B:E,4,0)","v":{"$error":"#N/A"}},null,null,null,null,{"$f":"SUM(V1158:V1163)","v":0},null,null,null,null,null,null,null,null,{"$error":"#DIV/0!"},0,0,null,"","","","","","","","","","",null,null,null,null,null,null,null,null,null,null,null,null,null,null,null,null,null,"ZWO"]
[null,null,null,null,null,null,null,null,null,null,null,null,null,null,null,null,{"$f":"VLOOKUP(P1159,'Input MCC'!B:C,2,0)","v":{"$error":"#N/A"}},{"$f":"VLOOKUP(P1159,'Input MCC'!B:E,4,0)","v":{"$error":"#N/A"}},null,null,null,null,null,null,null,null,null,null,null,null,null,{"$error":"#DIV/0!"},0,0,null,"","","","","","","","","","",null,null,null,null,null,null,null,null,null,null,null,null,null,null,null,null,null,"ZWO"]
[null,null,null,null,null,null,null,null,null,null,null,null,null,null,null,null,{"$f":"VLOOKUP(P1160,'Input MCC'!B:C,2,0)","v":{"$error":"#N/A"}},{"$f":"VLOOKUP(P1160,'Input MCC'!B:E,4,0)","v":{"$error":"#N/A"}},null,null,null,null,null,null,null,null,null,null,null,null,null,{"$error":"#DIV/0!"},0,0,null,"","","","","","","","","","",null,null,null,null,null,null,null,null,null,null,null,null,null,null,null,null,null,"ZWO"]
[null,null,null,null,null,null,null,null,null,null,null,null,null,null,null,null,{"$f":"VLOOKUP(P1161,'Input MCC'!B:C,2,0)","v":{"$error":"#N/A"}},{"$f":"VLOOKUP(P1161,'Input MCC'!B:E,4,0)","v":{"$error":"#N/A"}},null,null,null,null,null,null,null,null,null,null,null,null,null,{"$error":"#DIV/0!"},0,0,null,"","","","","","","","","","",null,null,null,null,null,null,null,null,null,null,null,null,null,null,null,null,null,"ZWO"]
[null,null,null,null,null,null,null,null,null,null,null,null,null,null,null,null,{"$f":"VLOOKUP(P1162,'Input MCC'!B:C,2,0)","v":{"$error":"#N/A"}},{"$f":"VLOOKUP(P1162,'Input MCC'!B:E,4,0)","v":{"$error":"#N/A"}},null,null,null,null,null,null,null,null,null,null,null,null,null,{"$error":"#DIV/0!"},0,0,null,"","","","","","","","","","",null,null,null,null,null,null,null,null,null,null,null,null,null,null,null,null,null,"ZWO"]
[null,null,null,null,null,null,null,null,null,null,null,null,null,null,null,null,{"$f":"VLOOKUP(P1163,'Input MCC'!B:C,2,0)","v":{"$error":"#N/A"}},{"$f":"VLOOKUP(P1163,'Input MCC'!B:E,4,0)","v":{"$error":"#N/A"}},null,null,null,null,null,null,null,null,null,null,null,null,null,{"$error":"#DIV/0!"},0,0,null,"","","","","","","","","","",null,null,null,null,null,null,null,null,null,null,null,null,null,null,null,null,null,"ZWO"]
[null,null,null,null,null,null,null,null,null,null,null,null,null,null,null,null,{"$f":"VLOOKUP(P1164,'Input MCC'!B:C,2,0)","v":{"$error":"#N/A"}},{"$f":"VLOOKUP(P1164,'Input MCC'!B:E,4,0)","v":{"$error":"#N/A"}},null,null,null,null,{"$f":"SUM(V1164:V1169)","v":0},null,null,null,null,null,null,null,null,{"$error":"#DIV/0!"},0,0,null,"","","","","","","","","","",null,null,null,null,null,null,null,null,null,null,null,null,null,null,null,null,null,"ZWO"]
[null,null,null,null,null,null,null,null,null,null,null,null,null,null,null,null,{"$f":"VLOOKUP(P1165,'Input MCC'!B:C,2,0)","v":{"$error":"#N/A"}},{"$f":"VLOOKUP(P1165,'Input MCC'!B:E,4,0)","v":{"$error":"#N/A"}},null,null,null,null,null,null,null,null,null,null,null,null,null,{"$error":"#DIV/0!"},0,0,null,"","","","","","","","","","",null,null,null,null,null,null,null,null,null,null,null,null,null,null,null,null,null,"ZWO"]
[null,null,null,null,null,null,null,null,null,null,null,null,null,null,null,null,{"$f":"VLOOKUP(P1166,'Input MCC'!B:C,2,0)","v":{"$error":"#N/A"}},{"$f":"VLOOKUP(P1166,'Input MCC'!B:E,4,0)","v":{"$error":"#N/A"}},null,null,null,null,null,null,null,null,null,null,null,null,null,{"$error":"#DIV/0!"},0,0,null,"","","","","","","","","","",null,null,null,null,null,null,null,null,null,null,null,null,null,null,null,null,null,"ZWO"]
[null,null,null,null,null,null,null,null,null,null,null,null,null,null,null,null,{"$f":"VLOOKUP(P1167,'Input MCC'!B:C,2,0)","v":{"$error":"#N/A"}},{"$f":"VLOOKUP(P1167,'Input MCC'!B:E,4,0)","v":{"$error":"#N/A"}},null,null,null,null,null,null,null,null,null,null,null,null,null,{"$error":"#DIV/0!"},0,0,null,"","","","","","","","","","",null,null,null,null,null,null,null,null,null,null,null,null,null,null,null,null,null,"ZWO"]
[null,null,null,null,null,null,null,null,null,null,null,null,null,null,null,null,{"$f":"VLOOKUP(P1168,'Input MCC'!B:C,2,0)","v":{"$error":"#N/A"}},{"$f":"VLOOKUP(P1168,'Input MCC'!B:E,4,0)","v":{"$error":"#N/A"}},null,null,null,null,null,null,null,null,null,null,null,null,null,{"$error":"#DIV/0!"},0,0,null,"","","","","","","","","","",null,null,null,null,null,null,null,null,null,null,null,null,null,null,null,null,null,"ZWO"]
[null,null,null,null,null,null,null,null,null,null,null,null,null,null,null,null,{"$f":"VLOOKUP(P1169,'Input MCC'!B:C,2,0)","v":{"$error":"#N/A"}},{"$f":"VLOOKUP(P1169,'Input MCC'!B:E,4,0)","v":{"$error":"#N/A"}},null,null,null,null,null,null,null,null,null,null,null,null,null,{"$error":"#DIV/0!"},0,0,null,"","","","","","","","","","",null,null,null,null,null,null,null,null,null,null,null,null,null,null,null,null,null,"ZWO"]
[null,null,null,null,null,null,null,null,null,null,null,null,null,null,null,null,{"$f":"VLOOKUP(P1170,'Input MCC'!B:C,2,0)","v":{"$error":"#N/A"}},{"$f":"VLOOKUP(P1170,'Input MCC'!B:E,4,0)","v":{"$error":"#N/A"}},null,null,null,null,{"$f":"SUM(V1170:V1175)","v":0},null,null,null,null,null,null,null,null,{"$error":"#DIV/0!"},0,0,null,"","","","","","","","","","",null,null,null,null,null,null,null,null,null,null,null,null,null,null,null,null,null,"ZWO"]
[null,null,null,null,null,null,null,null,null,null,null,null,null,null,null,null,{"$f":"VLOOKUP(P1171,'Input MCC'!B:C,2,0)","v":{"$error":"#N/A"}},{"$f":"VLOOKUP(P1171,'Input MCC'!B:E,4,0)","v":{"$error":"#N/A"}},null,null,null,null,null,null,null,null,null,null,null,null,null,{"$error":"#DIV/0!"},0,0,null,"","","","","","","","","","",null,null,null,null,null,null,null,null,null,null,null,null,null,null,null,null,null,"ZWO"]
[null,null,null,null,null,null,null,null,null,null,null,null,null,null,null,null,{"$f":"VLOOKUP(P1172,'Input MCC'!B:C,2,0)","v":{"$error":"#N/A"}},{"$f":"VLOOKUP(P1172,'Input MCC'!B:E,4,0)","v":{"$error":"#N/A"}},null,null,null,null,null,null,null,null,null,null,null,null,null,{"$error":"#DIV/0!"},0,0,null,"","","","","","","","","","",null,null,null,null,null,null,null,null,null,null,null,null,null,null,null,null,null,"ZWO"]
[null,null,null,null,null,null,null,null,null,null,null,null,null,null,null,null,{"$f":"VLOOKUP(P1173,'Input MCC'!B:C,2,0)","v":{"$error":"#N/A"}},{"$f":"VLOOKUP(P1173,'Input MCC'!B:E,4,0)","v":{"$error":"#N/A"}},null,null,null,null,null,null,null,null,null,null,null,null,null,{"$error":"#DIV/0!"},0,0,null,"","","","","","","","","","",null,null,null,null,null,null,null,null,null,null,null,null,null,null,null,null,null,"ZWO"]
[null,null,null,null,null,null,null,null,null,null,null,null,null,null,null,null,{"$f":"VLOOKUP(P1174,'Input MCC'!B:C,2,0)","v":{"$error":"#N/A"}},{"$f":"VLOOKUP(P1174,'Input MCC'!B:E,4,0)","v":{"$error":"#N/A"}},null,null,null,null,null,null,null,null,null,null,null,null,null,{"$error":"#DIV/0!"},0,0,null,"","","","","","","","","","",null,null,null,null,null,null,null,null,null,null,null,null,null,null,null,null,null,"ZWO"]
[null,null,null,null,null,null,null,null,null,null,null,null,null,null,null,null,{"$f":"VLOOKUP(P1175,'Input MCC'!B:C,2,0)","v":{"$error":"#N/A"}},{"$f":"VLOOKUP(P1175,'Input MCC'!B:E,4,0)","v":{"$error":"#N/A"}},null,null,null,null,null,null,null,null,null,null,null,null,null,{"$error":"#DIV/0!"},0,0,null,"","","","","","","","","","",null,null,null,null,null,null,null,null,null,null,null,null,null,null,null,null,null,"ZWO"]
[null,null,null,null,null,null,null,null,null,null,null,null,null,null,null,null,{"$f":"VLOOKUP(P1176,'Input MCC'!B:C,2,0)","v":{"$error":"#N/A"}},{"$f":"VLOOKUP(P1176,'Input MCC'!B:E,4,0)","v":{"$error":"#N/A"}},null,null,null,null,{"$f":"SUM(V1176:V1181)","v":0},null,null,null,null,null,null,null,null,{"$error":"#DIV/0!"},0,0,null,"","","","","","","","","","",null,null,null,null,null,null,null,null,null,null,null,null,null,null,null,null,null,"ZWO"]
[null,null,null,null,null,null,null,null,null,null,null,null,null,null,null,null,{"$f":"VLOOKUP(P1177,'Input MCC'!B:C,2,0)","v":{"$error":"#N/A"}},{"$f":"VLOOKUP(P1177,'Input MCC'!B:E,4,0)","v":{"$error":"#N/A"}},null,null,null,null,null,null,null,null,null,null,null,null,null,{"$error":"#DIV/0!"},0,0,null,"","","","","","","","","","",null,null,null,null,null,null,null,null,null,null,null,null,null,null,null,null,null,"ZWO"]
[null,null,null,null,null,null,null,null,null,null,null,null,null,null,null,null,{"$f":"VLOOKUP(P1178,'Input MCC'!B:C,2,0)","v":{"$error":"#N/A"}},{"$f":"VLOOKUP(P1178,'Input MCC'!B:E,4,0)","v":{"$error":"#N/A"}},null,null,null,null,null,null,null,null,null,null,null,null,null,{"$error":"#DIV/0!"},0,0,null,"","","","","","","","","","",null,null,null,null,null,null,null,null,null,null,null,null,null,null,null,null,null,"ZWO"]
[null,null,null,null,null,null,null,null,null,null,null,null,null,null,null,null,{"$f":"VLOOKUP(P1179,'Input MCC'!B:C,2,0)","v":{"$error":"#N/A"}},{"$f":"VLOOKUP(P1179,'Input MCC'!B:E,4,0)","v":{"$error":"#N/A"}},null,null,null,null,null,null,null,null,null,null,null,null,null,{"$error":"#DIV/0!"},0,0,null,"","","","","","","","","","",null,null,null,null,null,null,null,null,null,null,null,null,null,null,null,null,null,"ZWO"]
[null,null,null,null,null,null,null,null,null,null,null,null,null,null,null,null,{"$f":"VLOOKUP(P1180,'Input MCC'!B:C,2,0)","v":{"$error":"#N/A"}},{"$f":"VLOOKUP(P1180,'Input MCC'!B:E,4,0)","v":{"$error":"#N/A"}},null,null,null,null,null,null,null,null,null,null,null,null,null,{"$error":"#DIV/0!"},0,0,null,"","","","","","","","","","",null,null,null,null,null,null,null,null,null,null,null,null,null,null,null,null,null,"ZWO"]
[null,null,null,null,null,null,null,null,null,null,null,null,null,null,null,null,{"$f":"VLOOKUP(P1181,'Input MCC'!B:C,2,0)","v":{"$error":"#N/A"}},{"$f":"VLOOKUP(P1181,'Input MCC'!B:E,4,0)","v":{"$error":"#N/A"}},null,null,null,null,null,null,null,null,null,null,null,null,null,{"$error":"#DIV/0!"},0,0,null,"","","","","","","","","","",null,null,null,null,null,null,null,null,null,null,null,null,null,null,null,null,null,"ZWO"]
[null,null,null,null,null,null,null,null,null,null,null,null,null,null,null,null,{"$f":"VLOOKUP(P1182,'Input MCC'!B:C,2,0)","v":{"$error":"#N/A"}},{"$f":"VLOOKUP(P1182,'Input MCC'!B:E,4,0)","v":{"$error":"#N/A"}},null,null,null,null,{"$f":"SUM(V1182:V1187)","v":0},null,null,null,null,null,null,null,null,{"$error":"#DIV/0!"},0,0,null,"","","","","","","","","","",null,null,null,null,null,null,null,null,null,null,null,null,null,null,null,null,null,"ZWO"]
[null,null,null,null,null,null,null,null,null,null,null,null,null,null,null,null,{"$f":"VLOOKUP(P1183,'Input MCC'!B:C,2,0)","v":{"$error":"#N/A"}},{"$f":"VLOOKUP(P1183,'Input MCC'!B:E,4,0)","v":{"$error":"#N/A"}},null,null,null,null,null,null,null,null,null,null,null,null,null,{"$error":"#DIV/0!"},0,0,null,"","","","","","","","","","",null,null,null,null,null,null,null,null,null,null,null,null,null,null,null,null,null,"ZWO"]
[null,null,null,null,null,null,null,null,null,null,null,null,null,null,null,null,{"$f":"VLOOKUP(P1184,'Input MCC'!B:C,2,0)","v":{"$error":"#N/A"}},{"$f":"VLOOKUP(P1184,'Input MCC'!B:E,4,0)","v":{"$error":"#N/A"}},null,null,null,null,null,null,null,null,null,null,null,null,null,{"$error":"#DIV/0!"},0,0,null,"","","","","","","","","","",null,null,null,null,null,null,null,null,null,null,null,null,null,null,null,null,null,"ZWO"]
[null,null,null,null,null,null,null,null,null,null,null,null,null,null,null,null,{"$f":"VLOOKUP(P1185,'Input MCC'!B:C,2,0)","v":{"$error":"#N/A"}},{"$f":"VLOOKUP(P1185,'Input MCC'!B:E,4,0)","v":{"$error":"#N/A"}},null,null,null,null,null,null,null,null,null,null,null,null,null,{"$error":"#DIV/0!"},0,0,null,"","","","","","","","","","",null,null,null,null,null,null,null,null,null,null,null,null,null,null,null,null,null,"ZWO"]
[null,null,null,null,null,null,null,null,null,null,null,null,null,null,null,null,{"$f":"VLOOKUP(P1186,'Input MCC'!B:C,2,0)","v":{"$error":"#N/A"}},{"$f":"VLOOKUP(P1186,'Input MCC'!B:E,4,0)","v":{"$error":"#N/A"}},null,null,null,null,null,null,null,null,null,null,null,null,null,{"$error":"#DIV/0!"},0,0,null,"","","","","","","","","","",null,null,null,null,null,null,null,null,null,null,null,null,null,null,null,null,null,"ZWO"]
[null,null,null,null,null,null,null,null,null,null,null,null,null,null,null,null,{"$f":"VLOOKUP(P1187,'Input MCC'!B:C,2,0)","v":{"$error":"#N/A"}},{"$f":"VLOOKUP(P1187,'Input MCC'!B:E,4,0)","v":{"$error":"#N/A"}},null,null,null,null,null,null,null,null,null,null,null,null,null,{"$error":"#DIV/0!"},0,0,null,"","","","","","","","","","",null,null,null,null,null,null,null,null,null,null,null,null,null,null,null,null,null,"ZWO"]
[null,null,null,null,null,null,null,null,null,null,null,null,null,null,null,null,{"$f":"VLOOKUP(P1188,'Input MCC'!B:C,2,0)","v":{"$error":"#N/A"}},{"$f":"VLOOKUP(P1188,'Input MCC'!B:E,4,0)","v":{"$error":"#N/A"}},null,null,null,null,{"$f":"SUM(V1188:V1193)","v":0},null,null,null,null,null,null,null,null,{"$error":"#DIV/0!"},0,0,null,"","","","","","","","","","",null,null,null,null,null,null,null,null,null,null,null,null,null,null,null,null,null,"ZWO"]
[null,null,null,null,null,null,null,null,null,null,null,null,null,null,null,null,{"$f":"VLOOKUP(P1189,'Input MCC'!B:C,2,0)","v":{"$error":"#N/A"}},{"$f":"VLOOKUP(P1189,'Input MCC'!B:E,4,0)","v":{"$error":"#N/A"}},null,null,null,null,null,null,null,null,null,null,null,null,null,{"$error":"#DIV/0!"},0,0,null,"","","","","","","","","","",null,null,null,null,null,null,null,null,null,null,null,null,null,null,null,null,null,"ZWO"]
[null,null,null,null,null,null,null,null,null,null,null,null,null,null,null,null,{"$f":"VLOOKUP(P1190,'Input MCC'!B:C,2,0)","v":{"$error":"#N/A"}},{"$f":"VLOOKUP(P1190,'Input MCC'!B:E,4,0)","v":{"$error":"#N/A"}},null,null,null,null,null,null,null,null,null,null,null,null,null,{"$error":"#DIV/0!"},0,0,null,"","","","","","","","","","",null,null,null,null,null,null,null,null,null,null,null,null,null,null,null,null,null,"ZWO"]
[null,null,null,null,null,null,null,null,null,null,null,null,null,null,null,null,{"$f":"VLOOKUP(P1191,'Input MCC'!B:C,2,0)","v":{"$error":"#N/A"}},{"$f":"VLOOKUP(P1191,'Input MCC'!B:E,4,0)","v":{"$error":"#N/A"}},null,null,null,null,null,null,null,null,null,null,null,null,null,{"$error":"#DIV/0!"},0,0,null,"","","","","","","","","","",null,null,null,null,null,null,null,null,null,null,null,null,null,null,null,null,null,"ZWO"]
[null,null,null,null,null,null,null,null,null,null,null,null,null,null,null,null,{"$f":"VLOOKUP(P1192,'Input MCC'!B:C,2,0)","v":{"$error":"#N/A"}},{"$f":"VLOOKUP(P1192,'Input MCC'!B:E,4,0)","v":{"$error":"#N/A"}},null,null,null,null,null,null,null,null,null,null,null,null,null,{"$error":"#DIV/0!"},0,0,null,"","","","","","","","","","",null,null,null,null,null,null,null,null,null,null,null,null,null,null,null,null,null,"ZWO"]
[null,null,null,null,null,null,null,null,null,null,null,null,null,null,null,null,{"$f":"VLOOKUP(P1193,'Input MCC'!B:C,2,0)","v":{"$error":"#N/A"}},{"$f":"VLOOKUP(P1193,'Input MCC'!B:E,4,0)","v":{"$error":"#N/A"}},null,null,null,null,null,null,null,null,null,null,null,null,null,{"$error":"#DIV/0!"},0,0,null,"","","","","","","","","","",null,null,null,null,null,null,null,null,null,null,null,null,null,null,null,null,null,"ZWO"]
[null,null,null,null,null,null,null,null,null,null,null,null,null,null,null,null,{"$f":"VLOOKUP(P1194,'Input MCC'!B:C,2,0)","v":{"$error":"#N/A"}},{"$f":"VLOOKUP(P1194,'Input MCC'!B:E,4,0)","v":{"$error":"#N/A"}},null,null,null,null,{"$f":"SUM(V1194:V1199)","v":0},null,null,null,null,null,null,null,null,{"$error":"#DIV/0!"},0,0,null,"","","","","","","","","","",null,null,null,null,null,null,null,null,null,null,null,null,null,null,null,null,null,"ZWO"]
[null,null,null,null,null,null,null,null,null,null,null,null,null,null,null,null,{"$f":"VLOOKUP(P1195,'Input MCC'!B:C,2,0)","v":{"$error":"#N/A"}},{"$f":"VLOOKUP(P1195,'Input MCC'!B:E,4,0)","v":{"$error":"#N/A"}},null,null,null,null,null,null,null,null,null,null,null,null,null,{"$error":"#DIV/0!"},0,0,null,"","","","","","","","","","",null,null,null,null,null,null,null,null,null,null,null,null,null,null,null,null,null,"ZWO"]
[null,null,null,null,null,null,null,null,null,null,null,null,null,null,null,null,{"$f":"VLOOKUP(P1196,'Input MCC'!B:C,2,0)","v":{"$error":"#N/A"}},{"$f":"VLOOKUP(P1196,'Input MCC'!B:E,4,0)","v":{"$error":"#N/A"}},null,null,null,null,null,null,null,null,null,null,null,null,null,{"$error":"#DIV/0!"},0,0,null,"","","","","","","","","","",null,null,null,null,null,null,null,null,null,null,null,null,null,null,null,null,null,"ZWO"]
[null,null,null,null,null,null,null,null,null,null,null,null,null,null,null,null,{"$f":"VLOOKUP(P1197,'Input MCC'!B:C,2,0)","v":{"$error":"#N/A"}},{"$f":"VLOOKUP(P1197,'Input MCC'!B:E,4,0)","v":{"$error":"#N/A"}},null,null,null,null,null,null,null,null,null,null,null,null,null,{"$error":"#DIV/0!"},0,0,null,"","","","","","","","","","",null,null,null,null,null,null,null,null,null,null,null,null,null,null,null,null,null,"ZWO"]
[null,null,null,null,null,null,null,null,null,null,null,null,null,null,null,null,{"$f":"VLOOKUP(P1198,'Input MCC'!B:C,2,0)","v":{"$error":"#N/A"}},{"$f":"VLOOKUP(P1198,'Input MCC'!B:E,4,0)","v":{"$error":"#N/A"}},null,null,null,null,null,null,null,null,null,null,null,null,null,{"$error":"#DIV/0!"},0,0,null,"","","","","","","","","","",null,null,null,null,null,null,null,null,null,null,null,null,null,null,null,null,null,"ZWO"]
[null,null,null,null,null,null,null,null,null,null,null,null,null,null,null,null,{"$f":"VLOOKUP(P1199,'Input MCC'!B:C,2,0)","v":{"$error":"#N/A"}},{"$f":"VLOOKUP(P1199,'Input MCC'!B:E,4,0)","v":{"$error":"#N/A"}},null,null,null,null,null,null,null,null,null,null,null,null,null,{"$error":"#DIV/0!"},0,0,null,"","","","","","","","","","",null,null,null,null,null,null,null,null,null,null,null,null,null,null,null,null,null,"ZWO"]
[null,null,null,null,null,null,null,null,null,null,null,null,null,null,null,null,{"$f":"VLOOKUP(P1200,'Input MCC'!B:C,2,0)","v":{"$error":"#N/A"}},{"$f":"VLOOKUP(P1200,'Input MCC'!B:E,4,0)","v":{"$error":"#N/A"}},null,null,null,null,{"$f":"SUM(V1200:V1205)","v":0},null,null,null,null,null,null,null,null,{"$error":"#DIV/0!"},0,0,null,"","","","","","","","","","",null,null,null,null,null,null,null,null,null,null,null,null,null,null,null,null,null,"ZWO"]
[null,null,null,null,null,null,null,null,null,null,null,null,null,null,null,null,{"$f":"VLOOKUP(P1201,'Input MCC'!B:C,2,0)","v":{"$error":"#N/A"}},{"$f":"VLOOKUP(P1201,'Input MCC'!B:E,4,0)","v":{"$error":"#N/A"}},null,null,null,null,null,null,null,null,null,null,null,null,null,{"$error":"#DIV/0!"},0,0,null,"","","","","","","","","","",null,null,null,null,null,null,null,null,null,null,null,null,null,null,null,null,null,"ZWO"]
[null,null,null,null,null,null,null,null,null,null,null,null,null,null,null,null,{"$f":"VLOOKUP(P1202,'Input MCC'!B:C,2,0)","v":{"$error":"#N/A"}},{"$f":"VLOOKUP(P1202,'Input MCC'!B:E,4,0)","v":{"$error":"#N/A"}},null,null,null,null,null,null,null,null,null,null,null,null,null,{"$error":"#DIV/0!"},0,0,null,"","","","","","","","","","",null,null,null,null,null,null,null,null,null,null,null,null,null,null,null,null,null,"ZWO"]
[null,null,null,null,null,null,null,null,null,null,null,null,null,null,null,null,{"$f":"VLOOKUP(P1203,'Input MCC'!B:C,2,0)","v":{"$error":"#N/A"}},{"$f":"VLOOKUP(P1203,'Input MCC'!B:E,4,0)","v":{"$error":"#N/A"}},null,null,null,null,null,null,null,null,null,null,null,null,null,{"$error":"#DIV/0!"},0,0,null,"","","","","","","","","","",null,null,null,null,null,null,null,null,null,null,null,null,null,null,null,null,null,"ZWO"]
[null,null,null,null,null,null,null,null,null,null,null,null,null,null,null,null,{"$f":"VLOOKUP(P1204,'Input MCC'!B:C,2,0)","v":{"$error":"#N/A"}},{"$f":"VLOOKUP(P1204,'Input MCC'!B:E,4,0)","v":{"$error":"#N/A"}},null,null,null,null,null,null,null,null,null,null,null,null,null,{"$error":"#DIV/0!"},0,0,null,"","","","","","","","","","",null,null,null,null,null,null,null,null,null,null,null,null,null,null,null,null,null,"ZWO"]
[null,null,null,null,null,null,null,null,null,null,null,null,null,null,null,null,{"$f":"VLOOKUP(P1205,'Input MCC'!B:C,2,0)","v":{"$error":"#N/A"}},{"$f":"VLOOKUP(P1205,'Input MCC'!B:E,4,0)","v":{"$error":"#N/A"}},null,null,null,null,null,null,null,null,null,null,null,null,null,{"$error":"#DIV/0!"},0,0,null,"","","","","","","","","","",null,null,null,null,null,null,null,null,null,null,null,null,null,null,null,null,null,"ZWO"]
[null,null,null,null,null,null,null,null,null,null,null,null,null,null,null,null,{"$f":"VLOOKUP(P1206,'Input MCC'!B:C,2,0)","v":{"$error":"#N/A"}},{"$f":"VLOOKUP(P1206,'Input MCC'!B:E,4,0)","v":{"$error":"#N/A"}},null,null,null,null,{"$f":"SUM(V1206:V1211)","v":0},null,null,null,null,null,null,null,null,{"$error":"#DIV/0!"},0,0,null,"","","","","","","","","","",null,null,null,null,null,null,null,null,null,null,null,null,null,null,null,null,null,"ZWO"]
[null,null,null,null,null,null,null,null,null,null,null,null,null,null,null,null,{"$f":"VLOOKUP(P1207,'Input MCC'!B:C,2,0)","v":{"$error":"#N/A"}},{"$f":"VLOOKUP(P1207,'Input MCC'!B:E,4,0)","v":{"$error":"#N/A"}},null,null,null,null,null,null,null,null,null,null,null,null,null,{"$error":"#DIV/0!"},0,0,null,"","","","","","","","","","",null,null,null,null,null,null,null,null,null,null,null,null,null,null,null,null,null,"ZWO"]
[null,null,null,null,null,null,null,null,null,null,null,null,null,null,null,null,{"$f":"VLOOKUP(P1208,'Input MCC'!B:C,2,0)","v":{"$error":"#N/A"}},{"$f":"VLOOKUP(P1208,'Input MCC'!B:E,4,0)","v":{"$error":"#N/A"}},null,null,null,null,null,null,null,null,null,null,null,null,null,{"$f":"AE1208/AC1208","v":{"$error":"#DIV/0!"}},{"$f":"V1208*AC1208","v":0},{"$f":"V1208*AE1208","v":0},null,{"$f":"IF(AI1208 <> \"\",\n    IF(ISNUMBER(VALUE(LEFT(AI1208, FIND(\"%\", AI1208)-1))),\n        VALUE(LEFT(AI1208, FIND(\"%\", AI1208)-1)),\n        \"Invalid format\"),\n    \"\")","v":""},{"$f":"IF(AI1208 <> \"\",\n    IF(ISNUMBER(VALUE(LEFT(AI1208, FIND(\"%\", AI1208)-1))) * ISNUMBER(FIND(\"%\", AI1208 & \"wol\")) > 0,\n        TRIM(MID(AI1208, FIND(\"%\", AI1208)+1, FIND(\"/\", AI1208 & \"/\")-FIND(\"%\", AI1208)-1)),\n        \"Invalid format\"),\n    \"\")","v":""},{"$f":"IF(AI1208 <> \"\",\n    IF(ISNUMBER(VALUE(MID(AI1208, FIND(\"/\", AI1208) + 1, FIND(\"%\", AI1208, FIND(\"/\", AI1208)) - FIND(\"/\", AI1208) - 1))),\n        VALUE(MID(AI1208, FIND(\"/\", AI1208) + 1, FIND(\"%\", AI1208, FIND(\"/\", AI1208)) - FIND(\"/\", AI1208) - 1)),\n        \"\"),\n    \"\")","v":""},{"$f":"IF(AI1208 <> \"\",\n    IFERROR(TRIM(MID(AI1208, FIND(\"%\", AI1208, FIND(\"/\", AI1208)+1)+2,\n        IFERROR(FIND(\"/\", AI1208 & \"/\", FIND(\"/\", AI1208)+1)-FIND(\"%\", AI1208, FIND(\"/\", AI1208)+1)-2, LEN(AI1208)-FIND(\"%\", AI1208, FIND(\"/\", AI1208)+1)-1))),\n        \"\"),\n    \"\")","v":""},{"$f":"IF(AI1208 <> \"\",\n    IF(ISNUMBER(VALUE(MID(AI1208, FIND(\"/\", AI1208, FIND(\"/\", AI1208)+1) + 1, FIND(\"%\", AI1208, FIND(\"/\", AI1208, FIND(\"/\", AI1208)+1)) - FIND(\"/\", AI1208, FIND(\"/\", AI1208)+1) - 1))),\n        VALUE(MID(AI1208, FIND(\"/\", AI1208, FIND(\"/\", AI1208)+1) + 1, FIND(\"%\", AI1208, FIND(\"/\", AI1208, FIND(\"/\", AI1208)+1)) - FIND(\"/\", AI1208, FIND(\"/\", AI1208)+1) - 1)),\n        \"\"),\n    \"\")","v":""},{"$f":"IF(AI1208 <> \"\",\n    IFERROR(\n        TRIM(MID(AI1208,\n            FIND(\"%\", AI1208, FIND(\"%\", AI1208, FIND(\"%\", AI1208)+1)+1)+1,\n            FIND(\"/\", AI1208 & \"/\", FIND(\"%\", AI1208, FIND(\"%\", AI1208, FIND(\"%\", AI1208)+1)+1))-FIND(\"%\", AI1208, FIND(\"%\", AI1208, FIND(\"%\", AI1208)+1)+1)-1)\n        ),\n        \"\"\n    ),\n    \"\"\n)","v":""},{"$f":"IF(AI1208 <> \"\",\n    IF(ISNUMBER(VALUE(MID(AI1208, FIND(\"/\", AI1208, FIND(\"/\", AI1208, FIND(\"/\", AI1208)+1)+1) + 1, FIND(\"%\", AI1208, FIND(\"/\", AI1208, FIND(\"/\", AI1208, FIND(\"/\", AI1208)+1)+1)) - FIND(\"/\", AI1208, FIND(\"/\", AI1208, FIND(\"/\", AI1208)+1)+1) - 1))),\n        VALUE(MID(AI1208, FIND(\"/\", AI1208, FIND(\"/\", AI1208, FIND(\"/\", AI1208)+1)+1) + 1, FIND(\"%\", AI1208, FIND(\"/\", AI1208, FIND(\"/\", AI1208, FIND(\"/\", AI1208)+1)+1)) - FIND(\"/\", AI1208, FIND(\"/\", AI1208, FIND(\"/\", AI1208)+1)+1) - 1)),\n        \"\"),\n    \"\")","v":""},{"$f":"IF(AI1208 <> \"\",\n    IFERROR(TRIM(MID(AI1208, FIND(\"%\", AI1208, FIND(\"/\", AI1208, FIND(\"/\", AI1208, FIND(\"/\", AI1208)+1)+1)+1)+2,\n        IFERROR(FIND(\"/\", AI1208, FIND(\"/\", AI1208, FIND(\"/\", AI1208, FIND(\"/\", AI1208)+1)+1)+1)-FIND(\"%\", AI1208, FIND(\"/\", AI1208, FIND(\"/\", AI1208, FIND(\"/\", AI1208)+1)+1)+1)-2, LEN(AI1208)-FIND(\"%\", AI1208, FIND(\"/\", AI1208, FIND(\"/\", AI1208, FIND(\"/\", AI1208)+1)+1)+1)-1))),\n        \"\"),\n    \"\")","v":""},{"$f":"IF(AI1208 <> \"\",\n    IF(ISNUMBER(VALUE(MID(AI1208, FIND(\"/\", AI1208, FIND(\"/\", AI1208, FIND(\"/\", AI1208, FIND(\"/\", AI1208)+1)+1)+1) + 1, FIND(\"%\", AI1208, FIND(\"/\", AI1208, FIND(\"/\", AI1208, FIND(\"/\", AI1208, FIND(\"/\", AI1208)+1)+1)+1)) - FIND(\"/\", AI1208, FIND(\"/\", AI1208, FIND(\"/\", AI1208, FIND(\"/\", AI1208)+1)+1)+1) - 1))),\n        VALUE(MID(AI1208, FIND(\"/\", AI1208, FIND(\"/\", AI1208, FIND(\"/\", AI1208, FIND(\"/\", AI1208)+1)+1)+1) + 1, FIND(\"%\", AI1208, FIND(\"/\", AI1208, FIND(\"/\", AI1208, FIND(\"/\", AI1208, FIND(\"/\", AI1208)+1)+1)+1)) - FIND(\"/\", AI1208, FIND(\"/\", AI1208, FIND(\"/\", AI1208, FIND(\"/\", AI1208)+1)+1)+1) - 1)),\n        \"\"),\n    \"\")","v":""},{"$f":"IF(AI1208 = \"\", \"\",\n    IFERROR(TRIM(\n        MID(\n            AI1208,\n            FIND(\"%\", AI1208, FIND(\"/\", AI1208, FIND(\"/\", AI1208, FIND(\"/\", AI1208, FIND(\"/\", AI1208)+1)+1)+1)+1) + 1,\n            FIND(\"/\", AI1208 & \"/\", FIND(\"%\", AI1208, FIND(\"/\", AI1208, FIND(\"/\", AI1208, FIND(\"/\", AI1208, FIND(\"/\", AI1208)+1)+1)+1)+1)) -\n            FIND(\"%\", AI1208, FIND(\"/\", AI1208, FIND(\"/\", AI1208, FIND(\"/\", AI1208, FIND(\"/\", AI1208)+1)+1)+1)+1) - 1\n        )\n    ),\n    \"\")\n)","v":""},null,null,null,null,null,null,null,null,null,null,null,null,null,null,null,null,null,"ZWO"]
[null,null,null,null,null,null,null,null,null,null,null,null,null,null,null,null,{"$f":"VLOOKUP(P1209,'Input MCC'!B:C,2,0)","v":{"$error":"#N/A"}},{"$f":"VLOOKUP(P1209,'Input MCC'!B:E,4,0)","v":{"$error":"#N/A"}},null,null,null,null,null,null,null,null,null,null,null,null,null,{"$error":"#DIV/0!"},0,0,null,"","","","","","","","","","",null,null,null,null,null,null,null,null,null,null,null,null,null,null,null,null,null,"ZWO"]
[null,null,null,null,null,null,null,null,null,null,null,null,null,null,null,null,{"$f":"VLOOKUP(P1210,'Input MCC'!B:C,2,0)","v":{"$error":"#N/A"}},{"$f":"VLOOKUP(P1210,'Input MCC'!B:E,4,0)","v":{"$error":"#N/A"}},null,null,null,null,null,null,null,null,null,null,null,null,null,{"$error":"#DIV/0!"},0,0,null,"","","","","","","","","","",null,null,null,null,null,null,null,null,null,null,null,null,null,null,null,null,null,"ZWO"]
[null,null,null,null,null,null,null,null,null,null,null,null,null,null,null,null,{"$f":"VLOOKUP(P1211,'Input MCC'!B:C,2,0)","v":{"$error":"#N/A"}},{"$f":"VLOOKUP(P1211,'Input MCC'!B:E,4,0)","v":{"$error":"#N/A"}},null,null,null,null,null,null,null,null,null,null,null,null,null,{"$error":"#DIV/0!"},0,0,null,"","","","","","","","","","",null,null,null,null,null,null,null,null,null,null,null,null,null,null,null,null,null,"ZWO"]
[null,null,null,null,null,null,null,null,null,null,null,null,null,null,null,null,{"$f":"VLOOKUP(P1212,'Input MCC'!B:C,2,0)","v":{"$error":"#N/A"}},{"$f":"VLOOKUP(P1212,'Input MCC'!B:E,4,0)","v":{"$error":"#N/A"}},null,null,null,null,{"$f":"SUM(V1212:V1217)","v":0},null,null,null,null,null,null,null,null,{"$error":"#DIV/0!"},0,0,null,"","","","","","","","","","",null,null,null,null,null,null,null,null,null,null,null,null,null,null,null,null,null,"ZWO"]
[null,null,null,null,null,null,null,null,null,null,null,null,null,null,null,null,{"$f":"VLOOKUP(P1213,'Input MCC'!B:C,2,0)","v":{"$error":"#N/A"}},{"$f":"VLOOKUP(P1213,'Input MCC'!B:E,4,0)","v":{"$error":"#N/A"}},null,null,null,null,null,null,null,null,null,null,null,null,null,{"$error":"#DIV/0!"},0,0,null,"","","","","","","","","","",null,null,null,null,null,null,null,null,null,null,null,null,null,null,null,null,null,"ZWO"]
[null,null,null,null,null,null,null,null,null,null,null,null,null,null,null,null,{"$f":"VLOOKUP(P1214,'Input MCC'!B:C,2,0)","v":{"$error":"#N/A"}},{"$f":"VLOOKUP(P1214,'Input MCC'!B:E,4,0)","v":{"$error":"#N/A"}},null,null,null,null,null,null,null,null,null,null,null,null,null,{"$error":"#DIV/0!"},0,0,null,"","","","","","","","","","",null,null,null,null,null,null,null,null,null,null,null,null,null,null,null,null,null,"ZWO"]
[null,null,null,null,null,null,null,null,null,null,null,null,null,null,null,null,{"$f":"VLOOKUP(P1215,'Input MCC'!B:C,2,0)","v":{"$error":"#N/A"}},{"$f":"VLOOKUP(P1215,'Input MCC'!B:E,4,0)","v":{"$error":"#N/A"}},null,null,null,null,null,null,null,null,null,null,null,null,null,{"$error":"#DIV/0!"},0,0,null,"","","","","","","","","","",null,null,null,null,null,null,null,null,null,null,null,null,null,null,null,null,null,"ZWO"]
[null,null,null,null,null,null,null,null,null,null,null,null,null,null,null,null,{"$f":"VLOOKUP(P1216,'Input MCC'!B:C,2,0)","v":{"$error":"#N/A"}},{"$f":"VLOOKUP(P1216,'Input MCC'!B:E,4,0)","v":{"$error":"#N/A"}},null,null,null,null,null,null,null,null,null,null,null,null,null,{"$error":"#DIV/0!"},0,0,null,"","","","","","","","","","",null,null,null,null,null,null,null,null,null,null,null,null,null,null,null,null,null,"ZWO"]
[null,null,null,null,null,null,null,null,null,null,null,null,null,null,null,null,{"$f":"VLOOKUP(P1217,'Input MCC'!B:C,2,0)","v":{"$error":"#N/A"}},{"$f":"VLOOKUP(P1217,'Input MCC'!B:E,4,0)","v":{"$error":"#N/A"}},null,null,null,null,null,null,null,null,null,null,null,null,null,{"$error":"#DIV/0!"},0,0,null,"","","","","","","","","","",null,null,null,null,null,null,null,null,null,null,null,null,null,null,null,null,null,"ZWO"]
[null,null,null,null,null,null,null,null,null,null,null,null,null,null,null,null,{"$f":"VLOOKUP(P1218,'Input MCC'!B:C,2,0)","v":{"$error":"#N/A"}},{"$f":"VLOOKUP(P1218,'Input MCC'!B:E,4,0)","v":{"$error":"#N/A"}},null,null,null,null,{"$f":"SUM(V1218:V1223)","v":0},null,null,null,null,null,null,null,null,{"$error":"#DIV/0!"},0,0,null,"","","","","","","","","","",null,null,null,null,null,null,null,null,null,null,null,null,null,null,null,null,null,"ZWO"]
[null,null,null,null,null,null,null,null,null,null,null,null,null,null,null,null,{"$f":"VLOOKUP(P1219,'Input MCC'!B:C,2,0)","v":{"$error":"#N/A"}},{"$f":"VLOOKUP(P1219,'Input MCC'!B:E,4,0)","v":{"$error":"#N/A"}},null,null,null,null,null,null,null,null,null,null,null,null,null,{"$error":"#DIV/0!"},0,0,null,"","","","","","","","","","",null,null,null,null,null,null,null,null,null,null,null,null,null,null,null,null,null,"ZWO"]
[null,null,null,null,null,null,null,null,null,null,null,null,null,null,null,null,{"$f":"VLOOKUP(P1220,'Input MCC'!B:C,2,0)","v":{"$error":"#N/A"}},{"$f":"VLOOKUP(P1220,'Input MCC'!B:E,4,0)","v":{"$error":"#N/A"}},null,null,null,null,null,null,null,null,null,null,null,null,null,{"$error":"#DIV/0!"},0,0,null,"","","","","","","","","","",null,null,null,null,null,null,null,null,null,null,null,null,null,null,null,null,null,"ZWO"]
[null,null,null,null,null,null,null,null,null,null,null,null,null,null,null,null,{"$f":"VLOOKUP(P1221,'Input MCC'!B:C,2,0)","v":{"$error":"#N/A"}},{"$f":"VLOOKUP(P1221,'Input MCC'!B:E,4,0)","v":{"$error":"#N/A"}},null,null,null,null,null,null,null,null,null,null,null,null,null,{"$error":"#DIV/0!"},0,0,null,"","","","","","","","","","",null,null,null,null,null,null,null,null,null,null,null,null,null,null,null,null,null,"ZWO"]
[null,null,null,null,null,null,null,null,null,null,null,null,null,null,null,null,{"$f":"VLOOKUP(P1222,'Input MCC'!B:C,2,0)","v":{"$error":"#N/A"}},{"$f":"VLOOKUP(P1222,'Input MCC'!B:E,4,0)","v":{"$error":"#N/A"}},null,null,null,null,null,null,null,null,null,null,null,null,null,{"$error":"#DIV/0!"},0,0,null,"","","","","","","","","","",null,null,null,null,null,null,null,null,null,null,null,null,null,null,null,null,null,"ZWO"]
[null,null,null,null,null,null,null,null,null,null,null,null,null,null,null,null,{"$f":"VLOOKUP(P1223,'Input MCC'!B:C,2,0)","v":{"$error":"#N/A"}},{"$f":"VLOOKUP(P1223,'Input MCC'!B:E,4,0)","v":{"$error":"#N/A"}},null,null,null,null,null,null,null,null,null,null,null,null,null,{"$error":"#DIV/0!"},0,0,null,"","","","","","","","","","",null,null,null,null,null,null,null,null,null,null,null,null,null,null,null,null,null,"ZWO"]
[null,null,null,null,null,null,null,null,null,null,null,null,null,null,null,null,{"$f":"VLOOKUP(P1224,'Input MCC'!B:C,2,0)","v":{"$error":"#N/A"}},{"$f":"VLOOKUP(P1224,'Input MCC'!B:E,4,0)","v":{"$error":"#N/A"}},null,null,null,null,{"$f":"SUM(V1224:V1229)","v":0},null,null,null,null,null,null,null,null,{"$error":"#DIV/0!"},0,0,null,"","","","","","","","","","",null,null,null,null,null,null,null,null,null,null,null,null,null,null,null,null,null,"ZWO"]
[null,null,null,null,null,null,null,null,null,null,null,null,null,null,null,null,{"$f":"VLOOKUP(P1225,'Input MCC'!B:C,2,0)","v":{"$error":"#N/A"}},{"$f":"VLOOKUP(P1225,'Input MCC'!B:E,4,0)","v":{"$error":"#N/A"}},null,null,null,null,null,null,null,null,null,null,null,null,null,{"$error":"#DIV/0!"},0,0,null,"","","","","","","","","","",null,null,null,null,null,null,null,null,null,null,null,null,null,null,null,null,null,"ZWO"]
[null,null,null,null,null,null,null,null,null,null,null,null,null,null,null,null,{"$f":"VLOOKUP(P1226,'Input MCC'!B:C,2,0)","v":{"$error":"#N/A"}},{"$f":"VLOOKUP(P1226,'Input MCC'!B:E,4,0)","v":{"$error":"#N/A"}},null,null,null,null,null,null,null,null,null,null,null,null,null,{"$error":"#DIV/0!"},0,0,null,"","","","","","","","","","",null,null,null,null,null,null,null,null,null,null,null,null,null,null,null,null,null,"ZWO"]
[null,null,null,null,null,null,null,null,null,null,null,null,null,null,null,null,{"$f":"VLOOKUP(P1227,'Input MCC'!B:C,2,0)","v":{"$error":"#N/A"}},{"$f":"VLOOKUP(P1227,'Input MCC'!B:E,4,0)","v":{"$error":"#N/A"}},null,null,null,null,null,null,null,null,null,null,null,null,null,{"$error":"#DIV/0!"},0,0,null,"","","","","","","","","","",null,null,null,null,null,null,null,null,null,null,null,null,null,null,null,null,null,"ZWO"]
[null,null,null,null,null,null,null,null,null,null,null,null,null,null,null,null,{"$f":"VLOOKUP(P1228,'Input MCC'!B:C,2,0)","v":{"$error":"#N/A"}},{"$f":"VLOOKUP(P1228,'Input MCC'!B:E,4,0)","v":{"$error":"#N/A"}},null,null,null,null,null,null,null,null,null,null,null,null,null,{"$error":"#DIV/0!"},0,0,null,"","","","","","","","","","",null,null,null,null,null,null,null,null,null,null,null,null,null,null,null,null,null,"ZWO"]
[null,null,null,null,null,null,null,null,null,null,null,null,null,null,null,null,{"$f":"VLOOKUP(P1229,'Input MCC'!B:C,2,0)","v":{"$error":"#N/A"}},{"$f":"VLOOKUP(P1229,'Input MCC'!B:E,4,0)","v":{"$error":"#N/A"}},null,null,null,null,null,null,null,null,null,null,null,null,null,{"$error":"#DIV/0!"},0,0,null,"","","","","","","","","","",null,null,null,null,null,null,null,null,null,null,null,null,null,null,null,null,null,"ZWO"]
[null,null,null,null,null,null,null,null,null,null,null,null,null,null,null,null,{"$f":"VLOOKUP(P1230,'Input MCC'!B:C,2,0)","v":{"$error":"#N/A"}},{"$f":"VLOOKUP(P1230,'Input MCC'!B:E,4,0)","v":{"$error":"#N/A"}},null,null,null,null,{"$f":"SUM(V1230:V1235)","v":0},null,null,null,null,null,null,null,null,{"$error":"#DIV/0!"},0,0,null,"","","","","","","","","","",null,null,null,null,null,null,null,null,null,null,null,null,null,null,null,null,null,"ZWO"]
[null,null,null,null,null,null,null,null,null,null,null,null,null,null,null,null,{"$f":"VLOOKUP(P1231,'Input MCC'!B:C,2,0)","v":{"$error":"#N/A"}},{"$f":"VLOOKUP(P1231,'Input MCC'!B:E,4,0)","v":{"$error":"#N/A"}},null,null,null,null,null,null,null,null,null,null,null,null,null,{"$error":"#DIV/0!"},0,0,null,"","","","","","","","","","",null,null,null,null,null,null,null,null,null,null,null,null,null,null,null,null,null,"ZWO"]
[null,null,null,null,null,null,null,null,null,null,null,null,null,null,null,null,{"$f":"VLOOKUP(P1232,'Input MCC'!B:C,2,0)","v":{"$error":"#N/A"}},{"$f":"VLOOKUP(P1232,'Input MCC'!B:E,4,0)","v":{"$error":"#N/A"}},null,null,null,null,null,null,null,null,null,null,null,null,null,{"$error":"#DIV/0!"},0,0,null,"","","","","","","","","","",null,null,null,null,null,null,null,null,null,null,null,null,null,null,null,null,null,"ZWO"]
[null,null,null,null,null,null,null,null,null,null,null,null,null,null,null,null,{"$f":"VLOOKUP(P1233,'Input MCC'!B:C,2,0)","v":{"$error":"#N/A"}},{"$f":"VLOOKUP(P1233,'Input MCC'!B:E,4,0)","v":{"$error":"#N/A"}},null,null,null,null,null,null,null,null,null,null,null,null,null,{"$error":"#DIV/0!"},0,0,null,"","","","","","","","","","",null,null,null,null,null,null,null,null,null,null,null,null,null,null,null,null,null,"ZWO"]
[null,null,null,null,null,null,null,null,null,null,null,null,null,null,null,null,{"$f":"VLOOKUP(P1234,'Input MCC'!B:C,2,0)","v":{"$error":"#N/A"}},{"$f":"VLOOKUP(P1234,'Input MCC'!B:E,4,0)","v":{"$error":"#N/A"}},null,null,null,null,null,null,null,null,null,null,null,null,null,{"$error":"#DIV/0!"},0,0,null,"","","","","","","","","","",null,null,null,null,null,null,null,null,null,null,null,null,null,null,null,null,null,"ZWO"]
[null,null,null,null,null,null,null,null,null,null,null,null,null,null,null,null,{"$f":"VLOOKUP(P1235,'Input MCC'!B:C,2,0)","v":{"$error":"#N/A"}},{"$f":"VLOOKUP(P1235,'Input MCC'!B:E,4,0)","v":{"$error":"#N/A"}},null,null,null,null,null,null,null,null,null,null,null,null,null,{"$error":"#DIV/0!"},0,0,null,"","","","","","","","","","",null,null,null,null,null,null,null,null,null,null,null,null,null,null,null,null,null,"ZWO"]
[null,null,null,null,null,null,null,null,null,null,null,null,null,null,null,null,{"$f":"VLOOKUP(P1236,'Input MCC'!B:C,2,0)","v":{"$error":"#N/A"}},{"$f":"VLOOKUP(P1236,'Input MCC'!B:E,4,0)","v":{"$error":"#N/A"}},null,null,null,null,{"$f":"SUM(V1236:V1241)","v":0},null,null,null,null,null,null,null,null,{"$error":"#DIV/0!"},0,0,null,"","","","","","","","","","",null,null,null,null,null,null,null,null,null,null,null,null,null,null,null,null,null,"ZWO"]
[null,null,null,null,null,null,null,null,null,null,null,null,null,null,null,null,{"$f":"VLOOKUP(P1237,'Input MCC'!B:C,2,0)","v":{"$error":"#N/A"}},{"$f":"VLOOKUP(P1237,'Input MCC'!B:E,4,0)","v":{"$error":"#N/A"}},null,null,null,null,null,null,null,null,null,null,null,null,null,{"$error":"#DIV/0!"},0,0,null,"","","","","","","","","","",null,null,null,null,null,null,null,null,null,null,null,null,null,null,null,null,null,"ZWO"]
[null,null,null,null,null,null,null,null,null,null,null,null,null,null,null,null,{"$f":"VLOOKUP(P1238,'Input MCC'!B:C,2,0)","v":{"$error":"#N/A"}},{"$f":"VLOOKUP(P1238,'Input MCC'!B:E,4,0)","v":{"$error":"#N/A"}},null,null,null,null,null,null,null,null,null,null,null,null,null,{"$error":"#DIV/0!"},0,0,null,"","","","","","","","","","",null,null,null,null,null,null,null,null,null,null,null,null,null,null,null,null,null,"ZWO"]
[null,null,null,null,null,null,null,null,null,null,null,null,null,null,null,null,{"$f":"VLOOKUP(P1239,'Input MCC'!B:C,2,0)","v":{"$error":"#N/A"}},{"$f":"VLOOKUP(P1239,'Input MCC'!B:E,4,0)","v":{"$error":"#N/A"}},null,null,null,null,null,null,null,null,null,null,null,null,null,{"$error":"#DIV/0!"},0,0,null,"","","","","","","","","","",null,null,null,null,null,null,null,null,null,null,null,null,null,null,null,null,null,"ZWO"]
[null,null,null,null,null,null,null,null,null,null,null,null,null,null,null,null,{"$f":"VLOOKUP(P1240,'Input MCC'!B:C,2,0)","v":{"$error":"#N/A"}},{"$f":"VLOOKUP(P1240,'Input MCC'!B:E,4,0)","v":{"$error":"#N/A"}},null,null,null,null,null,null,null,null,null,null,null,null,null,{"$error":"#DIV/0!"},0,0,null,"","","","","","","","","","",null,null,null,null,null,null,null,null,null,null,null,null,null,null,null,null,null,"ZWO"]
[null,null,null,null,null,null,null,null,null,null,null,null,null,null,null,null,{"$f":"VLOOKUP(P1241,'Input MCC'!B:C,2,0)","v":{"$error":"#N/A"}},{"$f":"VLOOKUP(P1241,'Input MCC'!B:E,4,0)","v":{"$error":"#N/A"}},null,null,null,null,null,null,null,null,null,null,null,null,null,{"$error":"#DIV/0!"},0,0,null,"","","","","","","","","","",null,null,null,null,null,null,null,null,null,null,null,null,null,null,null,null,null,"ZWO"]
[null,null,null,null,null,null,null,null,null,null,null,null,null,null,null,null,{"$f":"VLOOKUP(P1242,'Input MCC'!B:C,2,0)","v":{"$error":"#N/A"}},{"$f":"VLOOKUP(P1242,'Input MCC'!B:E,4,0)","v":{"$error":"#N/A"}},null,null,null,null,{"$f":"SUM(V1242:V1247)","v":0},null,null,null,null,null,null,null,null,{"$error":"#DIV/0!"},0,0,null,"","","","","","","","","","",null,null,null,null,null,null,null,null,null,null,null,null,null,null,null,null,null,"ZWO"]
[null,null,null,null,null,null,null,null,null,null,null,null,null,null,null,null,{"$f":"VLOOKUP(P1243,'Input MCC'!B:C,2,0)","v":{"$error":"#N/A"}},{"$f":"VLOOKUP(P1243,'Input MCC'!B:E,4,0)","v":{"$error":"#N/A"}},null,null,null,null,null,null,null,null,null,null,null,null,null,{"$error":"#DIV/0!"},0,0,null,"","","","","","","","","","",null,null,null,null,null,null,null,null,null,null,null,null,null,null,null,null,null,"ZWO"]
[null,null,null,null,null,null,null,null,null,null,null,null,null,null,null,null,{"$f":"VLOOKUP(P1244,'Input MCC'!B:C,2,0)","v":{"$error":"#N/A"}},{"$f":"VLOOKUP(P1244,'Input MCC'!B:E,4,0)","v":{"$error":"#N/A"}},null,null,null,null,null,null,null,null,null,null,null,null,null,{"$error":"#DIV/0!"},0,0,null,"","","","","","","","","","",null,null,null,null,null,null,null,null,null,null,null,null,null,null,null,null,null,"ZWO"]
[null,null,null,null,null,null,null,null,null,null,null,null,null,null,null,null,{"$f":"VLOOKUP(P1245,'Input MCC'!B:C,2,0)","v":{"$error":"#N/A"}},{"$f":"VLOOKUP(P1245,'Input MCC'!B:E,4,0)","v":{"$error":"#N/A"}},null,null,null,null,null,null,null,null,null,null,null,null,null,{"$error":"#DIV/0!"},0,0,null,"","","","","","","","","","",null,null,null,null,null,null,null,null,null,null,null,null,null,null,null,null,null,"ZWO"]
[null,null,null,null,null,null,null,null,null,null,null,null,null,null,null,null,{"$f":"VLOOKUP(P1246,'Input MCC'!B:C,2,0)","v":{"$error":"#N/A"}},{"$f":"VLOOKUP(P1246,'Input MCC'!B:E,4,0)","v":{"$error":"#N/A"}},null,null,null,null,null,null,null,null,null,null,null,null,null,{"$error":"#DIV/0!"},0,0,null,"","","","","","","","","","",null,null,null,null,null,null,null,null,null,null,null,null,null,null,null,null,null,"ZWO"]
[null,null,null,null,null,null,null,null,null,null,null,null,null,null,null,null,{"$f":"VLOOKUP(P1247,'Input MCC'!B:C,2,0)","v":{"$error":"#N/A"}},{"$f":"VLOOKUP(P1247,'Input MCC'!B:E,4,0)","v":{"$error":"#N/A"}},null,null,null,null,null,null,null,null,null,null,null,null,null,{"$error":"#DIV/0!"},0,0,null,"","","","","","","","","","",null,null,null,null,null,null,null,null,null,null,null,null,null,null,null,null,null,"ZWO"]
[null,null,null,null,null,null,null,null,null,null,null,null,null,null,null,null,{"$f":"VLOOKUP(P1248,'Input MCC'!B:C,2,0)","v":{"$error":"#N/A"}},{"$f":"VLOOKUP(P1248,'Input MCC'!B:E,4,0)","v":{"$error":"#N/A"}},null,null,null,null,{"$f":"SUM(V1248:V1253)","v":0},null,null,null,null,null,null,null,null,{"$error":"#DIV/0!"},0,0,null,"","","","","","","","","","",null,null,null,null,null,null,null,null,null,null,null,null,null,null,null,null,null,"ZWO"]
[null,null,null,null,null,null,null,null,null,null,null,null,null,null,null,null,{"$f":"VLOOKUP(P1249,'Input MCC'!B:C,2,0)","v":{"$error":"#N/A"}},{"$f":"VLOOKUP(P1249,'Input MCC'!B:E,4,0)","v":{"$error":"#N/A"}},null,null,null,null,null,null,null,null,null,null,null,null,null,{"$error":"#DIV/0!"},0,0,null,"","","","","","","","","","",null,null,null,null,null,null,null,null,null,null,null,null,null,null,null,null,null,"ZWO"]
[null,null,null,null,null,null,null,null,null,null,null,null,null,null,null,null,{"$f":"VLOOKUP(P1250,'Input MCC'!B:C,2,0)","v":{"$error":"#N/A"}},{"$f":"VLOOKUP(P1250,'Input MCC'!B:E,4,0)","v":{"$error":"#N/A"}},null,null,null,null,null,null,null,null,null,null,null,null,null,{"$error":"#DIV/0!"},0,0,null,"","","","","","","","","","",null,null,null,null,null,null,null,null,null,null,null,null,null,null,null,null,null,"ZWO"]
[null,null,null,null,null,null,null,null,null,null,null,null,null,null,null,null,{"$f":"VLOOKUP(P1251,'Input MCC'!B:C,2,0)","v":{"$error":"#N/A"}},{"$f":"VLOOKUP(P1251,'Input MCC'!B:E,4,0)","v":{"$error":"#N/A"}},null,null,null,null,null,null,null,null,null,null,null,null,null,{"$error":"#DIV/0!"},0,0,null,"","","","","","","","","","",null,null,null,null,null,null,null,null,null,null,null,null,null,null,null,null,null,"ZWO"]
[null,null,null,null,null,null,null,null,null,null,null,null,null,null,null,null,{"$f":"VLOOKUP(P1252,'Input MCC'!B:C,2,0)","v":{"$error":"#N/A"}},{"$f":"VLOOKUP(P1252,'Input MCC'!B:E,4,0)","v":{"$error":"#N/A"}},null,null,null,null,null,null,null,null,null,null,null,null,null,{"$error":"#DIV/0!"},0,0,null,"","","","","","","","","","",null,null,null,null,null,null,null,null,null,null,null,null,null,null,null,null,null,"ZWO"]
[null,null,null,null,null,null,null,null,null,null,null,null,null,null,null,null,{"$f":"VLOOKUP(P1253,'Input MCC'!B:C,2,0)","v":{"$error":"#N/A"}},{"$f":"VLOOKUP(P1253,'Input MCC'!B:E,4,0)","v":{"$error":"#N/A"}},null,null,null,null,null,null,null,null,null,null,null,null,null,{"$error":"#DIV/0!"},0,0,null,"","","","","","","","","","",null,null,null,null,null,null,null,null,null,null,null,null,null,null,null,null,null,"ZWO"]
[null,null,null,null,null,null,null,null,null,null,null,null,null,null,null,null,{"$f":"VLOOKUP(P1254,'Input MCC'!B:C,2,0)","v":{"$error":"#N/A"}},{"$f":"VLOOKUP(P1254,'Input MCC'!B:E,4,0)","v":{"$error":"#N/A"}},null,null,null,null,{"$f":"SUM(V1254:V1259)","v":0},null,null,null,null,null,null,null,null,{"$error":"#DIV/0!"},0,0,null,"","","","","","","","","","",null,null,null,null,null,null,null,null,null,null,null,null,null,null,null,null,null,"ZWO"]
[null,null,null,null,null,null,null,null,null,null,null,null,null,null,null,null,{"$f":"VLOOKUP(P1255,'Input MCC'!B:C,2,0)","v":{"$error":"#N/A"}},{"$f":"VLOOKUP(P1255,'Input MCC'!B:E,4,0)","v":{"$error":"#N/A"}},null,null,null,null,null,null,null,null,null,null,null,null,null,{"$error":"#DIV/0!"},0,0,null,"","","","","","","","","","",null,null,null,null,null,null,null,null,null,null,null,null,null,null,null,null,null,"ZWO"]
[null,null,null,null,null,null,null,null,null,null,null,null,null,null,null,null,{"$f":"VLOOKUP(P1256,'Input MCC'!B:C,2,0)","v":{"$error":"#N/A"}},{"$f":"VLOOKUP(P1256,'Input MCC'!B:E,4,0)","v":{"$error":"#N/A"}},null,null,null,null,null,null,null,null,null,null,null,null,null,{"$error":"#DIV/0!"},0,0,null,"","","","","","","","","","",null,null,null,null,null,null,null,null,null,null,null,null,null,null,null,null,null,"ZWO"]
[null,null,null,null,null,null,null,null,null,null,null,null,null,null,null,null,{"$f":"VLOOKUP(P1257,'Input MCC'!B:C,2,0)","v":{"$error":"#N/A"}},{"$f":"VLOOKUP(P1257,'Input MCC'!B:E,4,0)","v":{"$error":"#N/A"}},null,null,null,null,null,null,null,null,null,null,null,null,null,{"$error":"#DIV/0!"},0,0,null,"","","","","","","","","","",null,null,null,null,null,null,null,null,null,null,null,null,null,null,null,null,null,"ZWO"]
[null,null,null,null,null,null,null,null,null,null,null,null,null,null,null,null,{"$f":"VLOOKUP(P1258,'Input MCC'!B:C,2,0)","v":{"$error":"#N/A"}},{"$f":"VLOOKUP(P1258,'Input MCC'!B:E,4,0)","v":{"$error":"#N/A"}},null,null,null,null,null,null,null,null,null,null,null,null,null,{"$error":"#DIV/0!"},0,0,null,"","","","","","","","","","",null,null,null,null,null,null,null,null,null,null,null,null,null,null,null,null,null,"ZWO"]
[null,null,null,null,null,null,null,null,null,null,null,null,null,null,null,null,{"$f":"VLOOKUP(P1259,'Input MCC'!B:C,2,0)","v":{"$error":"#N/A"}},{"$f":"VLOOKUP(P1259,'Input MCC'!B:E,4,0)","v":{"$error":"#N/A"}},null,null,null,null,null,null,null,null,null,null,null,null,null,{"$error":"#DIV/0!"},0,0,null,"","","","","","","","","","",null,null,null,null,null,null,null,null,null,null,null,null,null,null,null,null,null,"ZWO"]
[null,null,null,null,null,null,null,null,null,null,null,null,null,null,null,null,{"$f":"VLOOKUP(P1260,'Input MCC'!B:C,2,0)","v":{"$error":"#N/A"}},{"$f":"VLOOKUP(P1260,'Input MCC'!B:E,4,0)","v":{"$error":"#N/A"}},null,null,null,null,{"$f":"SUM(V1260:V1265)","v":0},null,null,null,null,null,null,null,null,{"$error":"#DIV/0!"},0,0,null,"","","","","","","","","","",null,null,null,null,null,null,null,null,null,null,null,null,null,null,null,null,null,"ZWO"]
[null,null,null,null,null,null,null,null,null,null,null,null,null,null,null,null,{"$f":"VLOOKUP(P1261,'Input MCC'!B:C,2,0)","v":{"$error":"#N/A"}},{"$f":"VLOOKUP(P1261,'Input MCC'!B:E,4,0)","v":{"$error":"#N/A"}},null,null,null,null,null,null,null,null,null,null,null,null,null,{"$error":"#DIV/0!"},0,0,null,"","","","","","","","","","",null,null,null,null,null,null,null,null,null,null,null,null,null,null,null,null,null,"ZWO"]
[null,null,null,null,null,null,null,null,null,null,null,null,null,null,null,null,{"$f":"VLOOKUP(P1262,'Input MCC'!B:C,2,0)","v":{"$error":"#N/A"}},{"$f":"VLOOKUP(P1262,'Input MCC'!B:E,4,0)","v":{"$error":"#N/A"}},null,null,null,null,null,null,null,null,null,null,null,null,null,{"$error":"#DIV/0!"},0,0,null,"","","","","","","","","","",null,null,null,null,null,null,null,null,null,null,null,null,null,null,null,null,null,"ZWO"]
[null,null,null,null,null,null,null,null,null,null,null,null,null,null,null,null,{"$f":"VLOOKUP(P1263,'Input MCC'!B:C,2,0)","v":{"$error":"#N/A"}},{"$f":"VLOOKUP(P1263,'Input MCC'!B:E,4,0)","v":{"$error":"#N/A"}},null,null,null,null,null,null,null,null,null,null,null,null,null,{"$error":"#DIV/0!"},0,0,null,"","","","","","","","","","",null,null,null,null,null,null,null,null,null,null,null,null,null,null,null,null,null,"ZWO"]
[null,null,null,null,null,null,null,null,null,null,null,null,null,null,null,null,{"$f":"VLOOKUP(P1264,'Input MCC'!B:C,2,0)","v":{"$error":"#N/A"}},{"$f":"VLOOKUP(P1264,'Input MCC'!B:E,4,0)","v":{"$error":"#N/A"}},null,null,null,null,null,null,null,null,null,null,null,null,null,{"$error":"#DIV/0!"},0,0,null,"","","","","","","","","","",null,null,null,null,null,null,null,null,null,null,null,null,null,null,null,null,null,"ZWO"]
[null,null,null,null,null,null,null,null,null,null,null,null,null,null,null,null,{"$f":"VLOOKUP(P1265,'Input MCC'!B:C,2,0)","v":{"$error":"#N/A"}},{"$f":"VLOOKUP(P1265,'Input MCC'!B:E,4,0)","v":{"$error":"#N/A"}},null,null,null,null,null,null,null,null,null,null,null,null,null,{"$error":"#DIV/0!"},0,0,null,"","","","","","","","","","",null,null,null,null,null,null,null,null,null,null,null,null,null,null,null,null,null,"ZWO"]
[null,null,null,null,null,null,null,null,null,null,null,null,null,null,null,null,{"$f":"VLOOKUP(P1266,'Input MCC'!B:C,2,0)","v":{"$error":"#N/A"}},{"$f":"VLOOKUP(P1266,'Input MCC'!B:E,4,0)","v":{"$error":"#N/A"}},null,null,null,null,{"$f":"SUM(V1266:V1271)","v":0},null,null,null,null,null,null,null,null,{"$error":"#DIV/0!"},0,0,null,"","","","","","","","","","",null,null,null,null,null,null,null,null,null,null,null,null,null,null,null,null,null,"ZWO"]
[null,null,null,null,null,null,null,null,null,null,null,null,null,null,null,null,{"$f":"VLOOKUP(P1267,'Input MCC'!B:C,2,0)","v":{"$error":"#N/A"}},{"$f":"VLOOKUP(P1267,'Input MCC'!B:E,4,0)","v":{"$error":"#N/A"}},null,null,null,null,null,null,null,null,null,null,null,null,null,{"$error":"#DIV/0!"},0,0,null,"","","","","","","","","","",null,null,null,null,null,null,null,null,null,null,null,null,null,null,null,null,null,"ZWO"]
[null,null,null,null,null,null,null,null,null,null,null,null,null,null,null,null,{"$f":"VLOOKUP(P1268,'Input MCC'!B:C,2,0)","v":{"$error":"#N/A"}},{"$f":"VLOOKUP(P1268,'Input MCC'!B:E,4,0)","v":{"$error":"#N/A"}},null,null,null,null,null,null,null,null,null,null,null,null,null,{"$error":"#DIV/0!"},0,0,null,"","","","","","","","","","",null,null,null,null,null,null,null,null,null,null,null,null,null,null,null,null,null,"ZWO"]
[null,null,null,null,null,null,null,null,null,null,null,null,null,null,null,null,{"$f":"VLOOKUP(P1269,'Input MCC'!B:C,2,0)","v":{"$error":"#N/A"}},{"$f":"VLOOKUP(P1269,'Input MCC'!B:E,4,0)","v":{"$error":"#N/A"}},null,null,null,null,null,null,null,null,null,null,null,null,null,{"$error":"#DIV/0!"},0,0,null,"","","","","","","","","","",null,null,null,null,null,null,null,null,null,null,null,null,null,null,null,null,null,"ZWO"]
[null,null,null,null,null,null,null,null,null,null,null,null,null,null,null,null,{"$f":"VLOOKUP(P1270,'Input MCC'!B:C,2,0)","v":{"$error":"#N/A"}},{"$f":"VLOOKUP(P1270,'Input MCC'!B:E,4,0)","v":{"$error":"#N/A"}},null,null,null,null,null,null,null,null,null,null,null,null,null,{"$error":"#DIV/0!"},0,0,null,"","","","","","","","","","",null,null,null,null,null,null,null,null,null,null,null,null,null,null,null,null,null,"ZWO"]
[null,null,null,null,null,null,null,null,null,null,null,null,null,null,null,null,{"$f":"VLOOKUP(P1271,'Input MCC'!B:C,2,0)","v":{"$error":"#N/A"}},{"$f":"VLOOKUP(P1271,'Input MCC'!B:E,4,0)","v":{"$error":"#N/A"}},null,null,null,null,null,null,null,null,null,null,null,null,null,{"$error":"#DIV/0!"},0,0,null,"","","","","","","","","","",null,null,null,null,null,null,null,null,null,null,null,null,null,null,null,null,null,"ZWO"]
[null,null,null,null,null,null,null,null,null,null,null,null,null,null,null,null,{"$f":"VLOOKUP(P1272,'Input MCC'!B:C,2,0)","v":{"$error":"#N/A"}},{"$f":"VLOOKUP(P1272,'Input MCC'!B:E,4,0)","v":{"$error":"#N/A"}},null,null,null,null,{"$f":"SUM(V1272:V1277)","v":0},null,null,null,null,null,null,null,null,{"$f":"AE1272/AC1272","v":{"$error":"#DIV/0!"}},{"$f":"V1272*AC1272","v":0},{"$f":"V1272*AE1272","v":0},null,{"$f":"IF(AI1272 <> \"\",\n    IF(ISNUMBER(VALUE(LEFT(AI1272, FIND(\"%\", AI1272)-1))),\n        VALUE(LEFT(AI1272, FIND(\"%\", AI1272)-1)),\n        \"Invalid format\"),\n    \"\")","v":""},{"$f":"IF(AI1272 <> \"\",\n    IF(ISNUMBER(VALUE(LEFT(AI1272, FIND(\"%\", AI1272)-1))) * ISNUMBER(FIND(\"%\", AI1272 & \"wol\")) > 0,\n        TRIM(MID(AI1272, FIND(\"%\", AI1272)+1, FIND(\"/\", AI1272 & \"/\")-FIND(\"%\", AI1272)-1)),\n        \"Invalid format\"),\n    \"\")","v":""},{"$f":"IF(AI1272 <> \"\",\n    IF(ISNUMBER(VALUE(MID(AI1272, FIND(\"/\", AI1272) + 1, FIND(\"%\", AI1272, FIND(\"/\", AI1272)) - FIND(\"/\", AI1272) - 1))),\n        VALUE(MID(AI1272, FIND(\"/\", AI1272) + 1, FIND(\"%\", AI1272, FIND(\"/\", AI1272)) - FIND(\"/\", AI1272) - 1)),\n        \"\"),\n    \"\")","v":""},{"$f":"IF(AI1272 <> \"\",\n    IFERROR(TRIM(MID(AI1272, FIND(\"%\", AI1272, FIND(\"/\", AI1272)+1)+2,\n        IFERROR(FIND(\"/\", AI1272 & \"/\", FIND(\"/\", AI1272)+1)-FIND(\"%\", AI1272, FIND(\"/\", AI1272)+1)-2, LEN(AI1272)-FIND(\"%\", AI1272, FIND(\"/\", AI1272)+1)-1))),\n        \"\"),\n    \"\")","v":""},{"$f":"IF(AI1272 <> \"\",\n    IF(ISNUMBER(VALUE(MID(AI1272, FIND(\"/\", AI1272, FIND(\"/\", AI1272)+1) + 1, FIND(\"%\", AI1272, FIND(\"/\", AI1272, FIND(\"/\", AI1272)+1)) - FIND(\"/\", AI1272, FIND(\"/\", AI1272)+1) - 1))),\n        VALUE(MID(AI1272, FIND(\"/\", AI1272, FIND(\"/\", AI1272)+1) + 1, FIND(\"%\", AI1272, FIND(\"/\", AI1272, FIND(\"/\", AI1272)+1)) - FIND(\"/\", AI1272, FIND(\"/\", AI1272)+1) - 1)),\n        \"\"),\n    \"\")","v":""},{"$f":"IF(AI1272 <> \"\",\n    IFERROR(\n        TRIM(MID(AI1272,\n            FIND(\"%\", AI1272, FIND(\"%\", AI1272, FIND(\"%\", AI1272)+1)+1)+1,\n            FIND(\"/\", AI1272 & \"/\", FIND(\"%\", AI1272, FIND(\"%\", AI1272, FIND(\"%\", AI1272)+1)+1))-FIND(\"%\", AI1272, FIND(\"%\", AI1272, FIND(\"%\", AI1272)+1)+1)-1)\n        ),\n        \"\"\n    ),\n    \"\"\n)","v":""},{"$f":"IF(AI1272 <> \"\",\n    IF(ISNUMBER(VALUE(MID(AI1272, FIND(\"/\", AI1272, FIND(\"/\", AI1272, FIND(\"/\", AI1272)+1)+1) + 1, FIND(\"%\", AI1272, FIND(\"/\", AI1272, FIND(\"/\", AI1272, FIND(\"/\", AI1272)+1)+1)) - FIND(\"/\", AI1272, FIND(\"/\", AI1272, FIND(\"/\", AI1272)+1)+1) - 1))),\n        VALUE(MID(AI1272, FIND(\"/\", AI1272, FIND(\"/\", AI1272, FIND(\"/\", AI1272)+1)+1) + 1, FIND(\"%\", AI1272, FIND(\"/\", AI1272, FIND(\"/\", AI1272, FIND(\"/\", AI1272)+1)+1)) - FIND(\"/\", AI1272, FIND(\"/\", AI1272, FIND(\"/\", AI1272)+1)+1) - 1)),\n        \"\"),\n    \"\")","v":""},{"$f":"IF(AI1272 <> \"\",\n    IFERROR(TRIM(MID(AI1272, FIND(\"%\", AI1272, FIND(\"/\", AI1272, FIND(\"/\", AI1272, FIND(\"/\", AI1272)+1)+1)+1)+2,\n        IFERROR(FIND(\"/\", AI1272, FIND(\"/\", AI1272, FIND(\"/\", AI1272, FIND(\"/\", AI1272)+1)+1)+1)-FIND(\"%\", AI1272, FIND(\"/\", AI1272, FIND(\"/\", AI1272, FIND(\"/\", AI1272)+1)+1)+1)-2, LEN(AI1272)-FIND(\"%\", AI1272, FIND(\"/\", AI1272, FIND(\"/\", AI1272, FIND(\"/\", AI1272)+1)+1)+1)-1))),\n        \"\"),\n    \"\")","v":""},{"$f":"IF(AI1272 <> \"\",\n    IF(ISNUMBER(VALUE(MID(AI1272, FIND(\"/\", AI1272, FIND(\"/\", AI1272, FIND(\"/\", AI1272, FIND(\"/\", AI1272)+1)+1)+1) + 1, FIND(\"%\", AI1272, FIND(\"/\", AI1272, FIND(\"/\", AI1272, FIND(\"/\", AI1272, FIND(\"/\", AI1272)+1)+1)+1)) - FIND(\"/\", AI1272, FIND(\"/\", AI1272, FIND(\"/\", AI1272, FIND(\"/\", AI1272)+1)+1)+1) - 1))),\n        VALUE(MID(AI1272, FIND(\"/\", AI1272, FIND(\"/\", AI1272, FIND(\"/\", AI1272, FIND(\"/\", AI1272)+1)+1)+1) + 1, FIND(\"%\", AI1272, FIND(\"/\", AI1272, FIND(\"/\", AI1272, FIND(\"/\", AI1272, FIND(\"/\", AI1272)+1)+1)+1)) - FIND(\"/\", AI1272, FIND(\"/\", AI1272, FIND(\"/\", AI1272, FIND(\"/\", AI1272)+1)+1)+1) - 1)),\n        \"\"),\n    \"\")","v":""},{"$f":"IF(AI1272 = \"\", \"\",\n    IFERROR(TRIM(\n        MID(\n            AI1272,\n            FIND(\"%\", AI1272, FIND(\"/\", AI1272, FIND(\"/\", AI1272, FIND(\"/\", AI1272, FIND(\"/\", AI1272)+1)+1)+1)+1) + 1,\n            FIND(\"/\", AI1272 & \"/\", FIND(\"%\", AI1272, FIND(\"/\", AI1272, FIND(\"/\", AI1272, FIND(\"/\", AI1272, FIND(\"/\", AI1272)+1)+1)+1)+1)) -\n            FIND(\"%\", AI1272, FIND(\"/\", AI1272, FIND(\"/\", AI1272, FIND(\"/\", AI1272, FIND(\"/\", AI1272)+1)+1)+1)+1) - 1\n        )\n    ),\n    \"\")\n)","v":""},null,null,null,null,null,null,null,null,null,null,null,null,null,null,null,null,null,"ZWO"]
[null,null,null,null,null,null,null,null,null,null,null,null,null,null,null,null,{"$f":"VLOOKUP(P1273,'Input MCC'!B:C,2,0)","v":{"$error":"#N/A"}},{"$f":"VLOOKUP(P1273,'Input MCC'!B:E,4,0)","v":{"$error":"#N/A"}},null,null,null,null,null,null,null,null,null,null,null,null,null,{"$error":"#DIV/0!"},0,0,null,"","","","","","","","","","",null,null,null,null,null,null,null,null,null,null,null,null,null,null,null,null,null,"ZWO"]
[null,null,null,null,null,null,null,null,null,null,null,null,null,null,null,null,{"$f":"VLOOKUP(P1274,'Input MCC'!B:C,2,0)","v":{"$error":"#N/A"}},{"$f":"VLOOKUP(P1274,'Input MCC'!B:E,4,0)","v":{"$error":"#N/A"}},null,null,null,null,null,null,null,null,null,null,null,null,null,{"$error":"#DIV/0!"},0,0,null,"","","","","","","","","","",null,null,null,null,null,null,null,null,null,null,null,null,null,null,null,null,null,"ZWO"]
[null,null,null,null,null,null,null,null,null,null,null,null,null,null,null,null,{"$f":"VLOOKUP(P1275,'Input MCC'!B:C,2,0)","v":{"$error":"#N/A"}},{"$f":"VLOOKUP(P1275,'Input MCC'!B:E,4,0)","v":{"$error":"#N/A"}},null,null,null,null,null,null,null,null,null,null,null,null,null,{"$error":"#DIV/0!"},0,0,null,"","","","","","","","","","",null,null,null,null,null,null,null,null,null,null,null,null,null,null,null,null,null,"ZWO"]
[null,null,null,null,null,null,null,null,null,null,null,null,null,null,null,null,{"$f":"VLOOKUP(P1276,'Input MCC'!B:C,2,0)","v":{"$error":"#N/A"}},{"$f":"VLOOKUP(P1276,'Input MCC'!B:E,4,0)","v":{"$error":"#N/A"}},null,null,null,null,null,null,null,null,null,null,null,null,null,{"$error":"#DIV/0!"},0,0,null,"","","","","","","","","","",null,null,null,null,null,null,null,null,null,null,null,null,null,null,null,null,null,"ZWO"]
[null,null,null,null,null,null,null,null,null,null,null,null,null,null,null,null,{"$f":"VLOOKUP(P1277,'Input MCC'!B:C,2,0)","v":{"$error":"#N/A"}},{"$f":"VLOOKUP(P1277,'Input MCC'!B:E,4,0)","v":{"$error":"#N/A"}},null,null,null,null,null,null,null,null,null,null,null,null,null,{"$error":"#DIV/0!"},0,0,null,"","","","","","","","","","",null,null,null,null,null,null,null,null,null,null,null,null,null,null,null,null,null,"ZWO"]
[null,null,null,null,null,null,null,null,null,null,null,null,null,null,null,null,{"$f":"VLOOKUP(P1278,'Input MCC'!B:C,2,0)","v":{"$error":"#N/A"}},{"$f":"VLOOKUP(P1278,'Input MCC'!B:E,4,0)","v":{"$error":"#N/A"}},null,null,null,null,{"$f":"SUM(V1278:V1283)","v":0},null,null,null,null,null,null,null,null,{"$error":"#DIV/0!"},0,0,null,"","","","","","","","","","",null,null,null,null,null,null,null,null,null,null,null,null,null,null,null,null,null,"ZWO"]
[null,null,null,null,null,null,null,null,null,null,null,null,null,null,null,null,{"$f":"VLOOKUP(P1279,'Input MCC'!B:C,2,0)","v":{"$error":"#N/A"}},{"$f":"VLOOKUP(P1279,'Input MCC'!B:E,4,0)","v":{"$error":"#N/A"}},null,null,null,null,null,null,null,null,null,null,null,null,null,{"$error":"#DIV/0!"},0,0,null,"","","","","","","","","","",null,null,null,null,null,null,null,null,null,null,null,null,null,null,null,null,null,"ZWO"]
[null,null,null,null,null,null,null,null,null,null,null,null,null,null,null,null,{"$f":"VLOOKUP(P1280,'Input MCC'!B:C,2,0)","v":{"$error":"#N/A"}},{"$f":"VLOOKUP(P1280,'Input MCC'!B:E,4,0)","v":{"$error":"#N/A"}},null,null,null,null,null,null,null,null,null,null,null,null,null,{"$error":"#DIV/0!"},0,0,null,"","","","","","","","","","",null,null,null,null,null,null,null,null,null,null,null,null,null,null,null,null,null,"ZWO"]
[null,null,null,null,null,null,null,null,null,null,null,null,null,null,null,null,{"$f":"VLOOKUP(P1281,'Input MCC'!B:C,2,0)","v":{"$error":"#N/A"}},{"$f":"VLOOKUP(P1281,'Input MCC'!B:E,4,0)","v":{"$error":"#N/A"}},null,null,null,null,null,null,null,null,null,null,null,null,null,{"$error":"#DIV/0!"},0,0,null,"","","","","","","","","","",null,null,null,null,null,null,null,null,null,null,null,null,null,null,null,null,null,"ZWO"]
[null,null,null,null,null,null,null,null,null,null,null,null,null,null,null,null,{"$f":"VLOOKUP(P1282,'Input MCC'!B:C,2,0)","v":{"$error":"#N/A"}},{"$f":"VLOOKUP(P1282,'Input MCC'!B:E,4,0)","v":{"$error":"#N/A"}},null,null,null,null,null,null,null,null,null,null,null,null,null,{"$error":"#DIV/0!"},0,0,null,"","","","","","","","","","",null,null,null,null,null,null,null,null,null,null,null,null,null,null,null,null,null,"ZWO"]
[null,null,null,null,null,null,null,null,null,null,null,null,null,null,null,null,{"$f":"VLOOKUP(P1283,'Input MCC'!B:C,2,0)","v":{"$error":"#N/A"}},{"$f":"VLOOKUP(P1283,'Input MCC'!B:E,4,0)","v":{"$error":"#N/A"}},null,null,null,null,null,null,null,null,null,null,null,null,null,{"$error":"#DIV/0!"},0,0,null,"","","","","","","","","","",null,null,null,null,null,null,null,null,null,null,null,null,null,null,null,null,null,"ZWO"]
[null,null,null,null,null,null,null,null,null,null,null,null,null,null,null,null,{"$f":"VLOOKUP(P1284,'Input MCC'!B:C,2,0)","v":{"$error":"#N/A"}},{"$f":"VLOOKUP(P1284,'Input MCC'!B:E,4,0)","v":{"$error":"#N/A"}},null,null,null,null,{"$f":"SUM(V1284:V1289)","v":0},null,null,null,null,null,null,null,null,{"$error":"#DIV/0!"},0,0,null,"","","","","","","","","","",null,null,null,null,null,null,null,null,null,null,null,null,null,null,null,null,null,"ZWO"]
[null,null,null,null,null,null,null,null,null,null,null,null,null,null,null,null,{"$f":"VLOOKUP(P1285,'Input MCC'!B:C,2,0)","v":{"$error":"#N/A"}},{"$f":"VLOOKUP(P1285,'Input MCC'!B:E,4,0)","v":{"$error":"#N/A"}},null,null,null,null,null,null,null,null,null,null,null,null,null,{"$error":"#DIV/0!"},0,0,null,"","","","","","","","","","",null,null,null,null,null,null,null,null,null,null,null,null,null,null,null,null,null,"ZWO"]
[null,null,null,null,null,null,null,null,null,null,null,null,null,null,null,null,{"$f":"VLOOKUP(P1286,'Input MCC'!B:C,2,0)","v":{"$error":"#N/A"}},{"$f":"VLOOKUP(P1286,'Input MCC'!B:E,4,0)","v":{"$error":"#N/A"}},null,null,null,null,null,null,null,null,null,null,null,null,null,{"$error":"#DIV/0!"},0,0,null,"","","","","","","","","","",null,null,null,null,null,null,null,null,null,null,null,null,null,null,null,null,null,"ZWO"]
[null,null,null,null,null,null,null,null,null,null,null,null,null,null,null,null,{"$f":"VLOOKUP(P1287,'Input MCC'!B:C,2,0)","v":{"$error":"#N/A"}},{"$f":"VLOOKUP(P1287,'Input MCC'!B:E,4,0)","v":{"$error":"#N/A"}},null,null,null,null,null,null,null,null,null,null,null,null,null,{"$error":"#DIV/0!"},0,0,null,"","","","","","","","","","",null,null,null,null,null,null,null,null,null,null,null,null,null,null,null,null,null,"ZWO"]
[null,null,null,null,null,null,null,null,null,null,null,null,null,null,null,null,{"$f":"VLOOKUP(P1288,'Input MCC'!B:C,2,0)","v":{"$error":"#N/A"}},{"$f":"VLOOKUP(P1288,'Input MCC'!B:E,4,0)","v":{"$error":"#N/A"}},null,null,null,null,null,null,null,null,null,null,null,null,null,{"$error":"#DIV/0!"},0,0,null,"","","","","","","","","","",null,null,null,null,null,null,null,null,null,null,null,null,null,null,null,null,null,"ZWO"]
[null,null,null,null,null,null,null,null,null,null,null,null,null,null,null,null,{"$f":"VLOOKUP(P1289,'Input MCC'!B:C,2,0)","v":{"$error":"#N/A"}},{"$f":"VLOOKUP(P1289,'Input MCC'!B:E,4,0)","v":{"$error":"#N/A"}},null,null,null,null,null,null,null,null,null,null,null,null,null,{"$error":"#DIV/0!"},0,0,null,"","","","","","","","","","",null,null,null,null,null,null,null,null,null,null,null,null,null,null,null,null,null,"ZWO"]
[null,null,null,null,null,null,null,null,null,null,null,null,null,null,null,null,{"$f":"VLOOKUP(P1290,'Input MCC'!B:C,2,0)","v":{"$error":"#N/A"}},{"$f":"VLOOKUP(P1290,'Input MCC'!B:E,4,0)","v":{"$error":"#N/A"}},null,null,null,null,{"$f":"SUM(V1290:V1295)","v":0},null,null,null,null,null,null,null,null,{"$error":"#DIV/0!"},0,0,null,"","","","","","","","","","",null,null,null,null,null,null,null,null,null,null,null,null,null,null,null,null,null,"ZWO"]
[null,null,null,null,null,null,null,null,null,null,null,null,null,null,null,null,{"$f":"VLOOKUP(P1291,'Input MCC'!B:C,2,0)","v":{"$error":"#N/A"}},{"$f":"VLOOKUP(P1291,'Input MCC'!B:E,4,0)","v":{"$error":"#N/A"}},null,null,null,null,null,null,null,null,null,null,null,null,null,{"$error":"#DIV/0!"},0,0,null,"","","","","","","","","","",null,null,null,null,null,null,null,null,null,null,null,null,null,null,null,null,null,"ZWO"]
[null,null,null,null,null,null,null,null,null,null,null,null,null,null,null,null,{"$f":"VLOOKUP(P1292,'Input MCC'!B:C,2,0)","v":{"$error":"#N/A"}},{"$f":"VLOOKUP(P1292,'Input MCC'!B:E,4,0)","v":{"$error":"#N/A"}},null,null,null,null,null,null,null,null,null,null,null,null,null,{"$error":"#DIV/0!"},0,0,null,"","","","","","","","","","",null,null,null,null,null,null,null,null,null,null,null,null,null,null,null,null,null,"ZWO"]
[null,null,null,null,null,null,null,null,null,null,null,null,null,null,null,null,{"$f":"VLOOKUP(P1293,'Input MCC'!B:C,2,0)","v":{"$error":"#N/A"}},{"$f":"VLOOKUP(P1293,'Input MCC'!B:E,4,0)","v":{"$error":"#N/A"}},null,null,null,null,null,null,null,null,null,null,null,null,null,{"$error":"#DIV/0!"},0,0,null,"","","","","","","","","","",null,null,null,null,null,null,null,null,null,null,null,null,null,null,null,null,null,"ZWO"]
[null,null,null,null,null,null,null,null,null,null,null,null,null,null,null,null,{"$f":"VLOOKUP(P1294,'Input MCC'!B:C,2,0)","v":{"$error":"#N/A"}},{"$f":"VLOOKUP(P1294,'Input MCC'!B:E,4,0)","v":{"$error":"#N/A"}},null,null,null,null,null,null,null,null,null,null,null,null,null,{"$error":"#DIV/0!"},0,0,null,"","","","","","","","","","",null,null,null,null,null,null,null,null,null,null,null,null,null,null,null,null,null,"ZWO"]
[null,null,null,null,null,null,null,null,null,null,null,null,null,null,null,null,{"$f":"VLOOKUP(P1295,'Input MCC'!B:C,2,0)","v":{"$error":"#N/A"}},{"$f":"VLOOKUP(P1295,'Input MCC'!B:E,4,0)","v":{"$error":"#N/A"}},null,null,null,null,null,null,null,null,null,null,null,null,null,{"$error":"#DIV/0!"},0,0,null,"","","","","","","","","","",null,null,null,null,null,null,null,null,null,null,null,null,null,null,null,null,null,"ZWO"]
[null,null,null,null,null,null,null,null,null,null,null,null,null,null,null,null,{"$f":"VLOOKUP(P1296,'Input MCC'!B:C,2,0)","v":{"$error":"#N/A"}},{"$f":"VLOOKUP(P1296,'Input MCC'!B:E,4,0)","v":{"$error":"#N/A"}},null,null,null,null,{"$f":"SUM(V1296:V1301)","v":0},null,null,null,null,null,null,null,null,{"$error":"#DIV/0!"},0,0,null,"","","","","","","","","","",null,null,null,null,null,null,null,null,null,null,null,null,null,null,null,null,null,"ZWO"]
[null,null,null,null,null,null,null,null,null,null,null,null,null,null,null,null,{"$f":"VLOOKUP(P1297,'Input MCC'!B:C,2,0)","v":{"$error":"#N/A"}},{"$f":"VLOOKUP(P1297,'Input MCC'!B:E,4,0)","v":{"$error":"#N/A"}},null,null,null,null,null,null,null,null,null,null,null,null,null,{"$error":"#DIV/0!"},0,0,null,"","","","","","","","","","",null,null,null,null,null,null,null,null,null,null,null,null,null,null,null,null,null,"ZWO"]
[null,null,null,null,null,null,null,null,null,null,null,null,null,null,null,null,{"$f":"VLOOKUP(P1298,'Input MCC'!B:C,2,0)","v":{"$error":"#N/A"}},{"$f":"VLOOKUP(P1298,'Input MCC'!B:E,4,0)","v":{"$error":"#N/A"}},null,null,null,null,null,null,null,null,null,null,null,null,null,{"$error":"#DIV/0!"},0,0,null,"","","","","","","","","","",null,null,null,null,null,null,null,null,null,null,null,null,null,null,null,null,null,"ZWO"]
[null,null,null,null,null,null,null,null,null,null,null,null,null,null,null,null,{"$f":"VLOOKUP(P1299,'Input MCC'!B:C,2,0)","v":{"$error":"#N/A"}},{"$f":"VLOOKUP(P1299,'Input MCC'!B:E,4,0)","v":{"$error":"#N/A"}},null,null,null,null,null,null,null,null,null,null,null,null,null,{"$error":"#DIV/0!"},0,0,null,"","","","","","","","","","",null,null,null,null,null,null,null,null,null,null,null,null,null,null,null,null,null,"ZWO"]
[null,null,null,null,null,null,null,null,null,null,null,null,null,null,null,null,{"$f":"VLOOKUP(P1300,'Input MCC'!B:C,2,0)","v":{"$error":"#N/A"}},{"$f":"VLOOKUP(P1300,'Input MCC'!B:E,4,0)","v":{"$error":"#N/A"}},null,null,null,null,null,null,null,null,null,null,null,null,null,{"$error":"#DIV/0!"},0,0,null,"","","","","","","","","","",null,null,null,null,null,null,null,null,null,null,null,null,null,null,null,null,null,"ZWO"]
[null,null,null,null,null,null,null,null,null,null,null,null,null,null,null,null,{"$f":"VLOOKUP(P1301,'Input MCC'!B:C,2,0)","v":{"$error":"#N/A"}},{"$f":"VLOOKUP(P1301,'Input MCC'!B:E,4,0)","v":{"$error":"#N/A"}},null,null,null,null,null,null,null,null,null,null,null,null,null,{"$error":"#DIV/0!"},0,0,null,"","","","","","","","","","",null,null,null,null,null,null,null,null,null,null,null,null,null,null,null,null,null,"ZWO"]
[null,null,null,null,null,null,null,null,null,null,null,null,null,null,null,null,{"$f":"VLOOKUP(P1302,'Input MCC'!B:C,2,0)","v":{"$error":"#N/A"}},{"$f":"VLOOKUP(P1302,'Input MCC'!B:E,4,0)","v":{"$error":"#N/A"}},null,null,null,null,{"$f":"SUM(V1302:V1307)","v":0},null,null,null,null,null,null,null,null,{"$error":"#DIV/0!"},0,0,null,"","","","","","","","","","",null,null,null,null,null,null,null,null,null,null,null,null,null,null,null,null,null,"ZWO"]
[null,null,null,null,null,null,null,null,null,null,null,null,null,null,null,null,{"$f":"VLOOKUP(P1303,'Input MCC'!B:C,2,0)","v":{"$error":"#N/A"}},{"$f":"VLOOKUP(P1303,'Input MCC'!B:E,4,0)","v":{"$error":"#N/A"}},null,null,null,null,null,null,null,null,null,null,null,null,null,{"$error":"#DIV/0!"},0,0,null,"","","","","","","","","","",null,null,null,null,null,null,null,null,null,null,null,null,null,null,null,null,null,"ZWO"]
[null,null,null,null,null,null,null,null,null,null,null,null,null,null,null,null,{"$f":"VLOOKUP(P1304,'Input MCC'!B:C,2,0)","v":{"$error":"#N/A"}},{"$f":"VLOOKUP(P1304,'Input MCC'!B:E,4,0)","v":{"$error":"#N/A"}},null,null,null,null,null,null,null,null,null,null,null,null,null,{"$error":"#DIV/0!"},0,0,null,"","","","","","","","","","",null,null,null,null,null,null,null,null,null,null,null,null,null,null,null,null,null,"ZWO"]
[null,null,null,null,null,null,null,null,null,null,null,null,null,null,null,null,{"$f":"VLOOKUP(P1305,'Input MCC'!B:C,2,0)","v":{"$error":"#N/A"}},{"$f":"VLOOKUP(P1305,'Input MCC'!B:E,4,0)","v":{"$error":"#N/A"}},null,null,null,null,null,null,null,null,null,null,null,null,null,{"$error":"#DIV/0!"},0,0,null,"","","","","","","","","","",null,null,null,null,null,null,null,null,null,null,null,null,null,null,null,null,null,"ZWO"]
[null,null,null,null,null,null,null,null,null,null,null,null,null,null,null,null,{"$f":"VLOOKUP(P1306,'Input MCC'!B:C,2,0)","v":{"$error":"#N/A"}},{"$f":"VLOOKUP(P1306,'Input MCC'!B:E,4,0)","v":{"$error":"#N/A"}},null,null,null,null,null,null,null,null,null,null,null,null,null,{"$error":"#DIV/0!"},0,0,null,"","","","","","","","","","",null,null,null,null,null,null,null,null,null,null,null,null,null,null,null,null,null,"ZWO"]
[null,null,null,null,null,null,null,null,null,null,null,null,null,null,null,null,{"$f":"VLOOKUP(P1307,'Input MCC'!B:C,2,0)","v":{"$error":"#N/A"}},{"$f":"VLOOKUP(P1307,'Input MCC'!B:E,4,0)","v":{"$error":"#N/A"}},null,null,null,null,null,null,null,null,null,null,null,null,null,{"$error":"#DIV/0!"},0,0,null,"","","","","","","","","","",null,null,null,null,null,null,null,null,null,null,null,null,null,null,null,null,null,"ZWO"]
[null,null,null,null,null,null,null,null,null,null,null,null,null,null,null,null,{"$f":"VLOOKUP(P1308,'Input MCC'!B:C,2,0)","v":{"$error":"#N/A"}},{"$f":"VLOOKUP(P1308,'Input MCC'!B:E,4,0)","v":{"$error":"#N/A"}},null,null,null,null,{"$f":"SUM(V1308:V1313)","v":0},null,null,null,null,null,null,null,null,{"$error":"#DIV/0!"},0,0,null,"","","","","","","","","","",null,null,null,null,null,null,null,null,null,null,null,null,null,null,null,null,null,"ZWO"]
[null,null,null,null,null,null,null,null,null,null,null,null,null,null,null,null,{"$f":"VLOOKUP(P1309,'Input MCC'!B:C,2,0)","v":{"$error":"#N/A"}},{"$f":"VLOOKUP(P1309,'Input MCC'!B:E,4,0)","v":{"$error":"#N/A"}},null,null,null,null,null,null,null,null,null,null,null,null,null,{"$error":"#DIV/0!"},0,0,null,"","","","","","","","","","",null,null,null,null,null,null,null,null,null,null,null,null,null,null,null,null,null,"ZWO"]
[null,null,null,null,null,null,null,null,null,null,null,null,null,null,null,null,{"$f":"VLOOKUP(P1310,'Input MCC'!B:C,2,0)","v":{"$error":"#N/A"}},{"$f":"VLOOKUP(P1310,'Input MCC'!B:E,4,0)","v":{"$error":"#N/A"}},null,null,null,null,null,null,null,null,null,null,null,null,null,{"$error":"#DIV/0!"},0,0,null,"","","","","","","","","","",null,null,null,null,null,null,null,null,null,null,null,null,null,null,null,null,null,"ZWO"]
[null,null,null,null,null,null,null,null,null,null,null,null,null,null,null,null,{"$f":"VLOOKUP(P1311,'Input MCC'!B:C,2,0)","v":{"$error":"#N/A"}},{"$f":"VLOOKUP(P1311,'Input MCC'!B:E,4,0)","v":{"$error":"#N/A"}},null,null,null,null,null,null,null,null,null,null,null,null,null,{"$error":"#DIV/0!"},0,0,null,"","","","","","","","","","",null,null,null,null,null,null,null,null,null,null,null,null,null,null,null,null,null,"ZWO"]
[null,null,null,null,null,null,null,null,null,null,null,null,null,null,null,null,{"$f":"VLOOKUP(P1312,'Input MCC'!B:C,2,0)","v":{"$error":"#N/A"}},{"$f":"VLOOKUP(P1312,'Input MCC'!B:E,4,0)","v":{"$error":"#N/A"}},null,null,null,null,null,null,null,null,null,null,null,null,null,{"$error":"#DIV/0!"},0,0,null,"","","","","","","","","","",null,null,null,null,null,null,null,null,null,null,null,null,null,null,null,null,null,"ZWO"]
[null,null,null,null,null,null,null,null,null,null,null,null,null,null,null,null,{"$f":"VLOOKUP(P1313,'Input MCC'!B:C,2,0)","v":{"$error":"#N/A"}},{"$f":"VLOOKUP(P1313,'Input MCC'!B:E,4,0)","v":{"$error":"#N/A"}},null,null,null,null,null,null,null,null,null,null,null,null,null,{"$error":"#DIV/0!"},0,0,null,"","","","","","","","","","",null,null,null,null,null,null,null,null,null,null,null,null,null,null,null,null,null,"ZWO"]
[null,null,null,null,null,null,null,null,null,null,null,null,null,null,null,null,{"$f":"VLOOKUP(P1314,'Input MCC'!B:C,2,0)","v":{"$error":"#N/A"}},{"$f":"VLOOKUP(P1314,'Input MCC'!B:E,4,0)","v":{"$error":"#N/A"}},null,null,null,null,{"$f":"SUM(V1314:V1319)","v":0},null,null,null,null,null,null,null,null,{"$error":"#DIV/0!"},0,0,null,"","","","","","","","","","",null,null,null,null,null,null,null,null,null,null,null,null,null,null,null,null,null,"ZWO"]
[null,null,null,null,null,null,null,null,null,null,null,null,null,null,null,null,{"$f":"VLOOKUP(P1315,'Input MCC'!B:C,2,0)","v":{"$error":"#N/A"}},{"$f":"VLOOKUP(P1315,'Input MCC'!B:E,4,0)","v":{"$error":"#N/A"}},null,null,null,null,null,null,null,null,null,null,null,null,null,{"$error":"#DIV/0!"},0,0,null,"","","","","","","","","","",null,null,null,null,null,null,null,null,null,null,null,null,null,null,null,null,null,"ZWO"]
[null,null,null,null,null,null,null,null,null,null,null,null,null,null,null,null,{"$f":"VLOOKUP(P1316,'Input MCC'!B:C,2,0)","v":{"$error":"#N/A"}},{"$f":"VLOOKUP(P1316,'Input MCC'!B:E,4,0)","v":{"$error":"#N/A"}},null,null,null,null,null,null,null,null,null,null,null,null,null,{"$error":"#DIV/0!"},0,0,null,"","","","","","","","","","",null,null,null,null,null,null,null,null,null,null,null,null,null,null,null,null,null,"ZWO"]
[null,null,null,null,null,null,null,null,null,null,null,null,null,null,null,null,{"$f":"VLOOKUP(P1317,'Input MCC'!B:C,2,0)","v":{"$error":"#N/A"}},{"$f":"VLOOKUP(P1317,'Input MCC'!B:E,4,0)","v":{"$error":"#N/A"}},null,null,null,null,null,null,null,null,null,null,null,null,null,{"$error":"#DIV/0!"},0,0,null,"","","","","","","","","","",null,null,null,null,null,null,null,null,null,null,null,null,null,null,null,null,null,"ZWO"]
[null,null,null,null,null,null,null,null,null,null,null,null,null,null,null,null,{"$f":"VLOOKUP(P1318,'Input MCC'!B:C,2,0)","v":{"$error":"#N/A"}},{"$f":"VLOOKUP(P1318,'Input MCC'!B:E,4,0)","v":{"$error":"#N/A"}},null,null,null,null,null,null,null,null,null,null,null,null,null,{"$error":"#DIV/0!"},0,0,null,"","","","","","","","","","",null,null,null,null,null,null,null,null,null,null,null,null,null,null,null,null,null,"ZWO"]
[null,null,null,null,null,null,null,null,null,null,null,null,null,null,null,null,{"$f":"VLOOKUP(P1319,'Input MCC'!B:C,2,0)","v":{"$error":"#N/A"}},{"$f":"VLOOKUP(P1319,'Input MCC'!B:E,4,0)","v":{"$error":"#N/A"}},null,null,null,null,null,null,null,null,null,null,null,null,null,{"$error":"#DIV/0!"},0,0,null,"","","","","","","","","","",null,null,null,null,null,null,null,null,null,null,null,null,null,null,null,null,null,"ZWO"]
[null,null,null,null,null,null,null,null,null,null,null,null,null,null,null,null,{"$f":"VLOOKUP(P1320,'Input MCC'!B:C,2,0)","v":{"$error":"#N/A"}},{"$f":"VLOOKUP(P1320,'Input MCC'!B:E,4,0)","v":{"$error":"#N/A"}},null,null,null,null,{"$f":"SUM(V1320:V1325)","v":0},null,null,null,null,null,null,null,null,{"$error":"#DIV/0!"},0,0,null,"","","","","","","","","","",null,null,null,null,null,null,null,null,null,null,null,null,null,null,null,null,null,"ZWO"]
[null,null,null,null,null,null,null,null,null,null,null,null,null,null,null,null,{"$f":"VLOOKUP(P1321,'Input MCC'!B:C,2,0)","v":{"$error":"#N/A"}},{"$f":"VLOOKUP(P1321,'Input MCC'!B:E,4,0)","v":{"$error":"#N/A"}},null,null,null,null,null,null,null,null,null,null,null,null,null,{"$error":"#DIV/0!"},0,0,null,"","","","","","","","","","",null,null,null,null,null,null,null,null,null,null,null,null,null,null,null,null,null,"ZWO"]
[null,null,null,null,null,null,null,null,null,null,null,null,null,null,null,null,{"$f":"VLOOKUP(P1322,'Input MCC'!B:C,2,0)","v":{"$error":"#N/A"}},{"$f":"VLOOKUP(P1322,'Input MCC'!B:E,4,0)","v":{"$error":"#N/A"}},null,null,null,null,null,null,null,null,null,null,null,null,null,{"$error":"#DIV/0!"},0,0,null,"","","","","","","","","","",null,null,null,null,null,null,null,null,null,null,null,null,null,null,null,null,null,"ZWO"]
[null,null,null,null,null,null,null,null,null,null,null,null,null,null,null,null,{"$f":"VLOOKUP(P1323,'Input MCC'!B:C,2,0)","v":{"$error":"#N/A"}},{"$f":"VLOOKUP(P1323,'Input MCC'!B:E,4,0)","v":{"$error":"#N/A"}},null,null,null,null,null,null,null,null,null,null,null,null,null,{"$error":"#DIV/0!"},0,0,null,"","","","","","","","","","",null,null,null,null,null,null,null,null,null,null,null,null,null,null,null,null,null,"ZWO"]
[null,null,null,null,null,null,null,null,null,null,null,null,null,null,null,null,{"$f":"VLOOKUP(P1324,'Input MCC'!B:C,2,0)","v":{"$error":"#N/A"}},{"$f":"VLOOKUP(P1324,'Input MCC'!B:E,4,0)","v":{"$error":"#N/A"}},null,null,null,null,null,null,null,null,null,null,null,null,null,{"$error":"#DIV/0!"},0,0,null,"","","","","","","","","","",null,null,null,null,null,null,null,null,null,null,null,null,null,null,null,null,null,"ZWO"]
[null,null,null,null,null,null,null,null,null,null,null,null,null,null,null,null,{"$f":"VLOOKUP(P1325,'Input MCC'!B:C,2,0)","v":{"$error":"#N/A"}},{"$f":"VLOOKUP(P1325,'Input MCC'!B:E,4,0)","v":{"$error":"#N/A"}},null,null,null,null,null,null,null,null,null,null,null,null,null,{"$error":"#DIV/0!"},0,0,null,"","","","","","","","","","",null,null,null,null,null,null,null,null,null,null,null,null,null,null,null,null,null,"ZWO"]
[null,null,null,null,null,null,null,null,null,null,null,null,null,null,null,null,{"$f":"VLOOKUP(P1326,'Input MCC'!B:C,2,0)","v":{"$error":"#N/A"}},{"$f":"VLOOKUP(P1326,'Input MCC'!B:E,4,0)","v":{"$error":"#N/A"}},null,null,null,null,{"$f":"SUM(V1326:V1331)","v":0},null,null,null,null,null,null,null,null,{"$error":"#DIV/0!"},0,0,null,"","","","","","","","","","",null,null,null,null,null,null,null,null,null,null,null,null,null,null,null,null,null,"ZWO"]
[null,null,null,null,null,null,null,null,null,null,null,null,null,null,null,null,{"$f":"VLOOKUP(P1327,'Input MCC'!B:C,2,0)","v":{"$error":"#N/A"}},{"$f":"VLOOKUP(P1327,'Input MCC'!B:E,4,0)","v":{"$error":"#N/A"}},null,null,null,null,null,null,null,null,null,null,null,null,null,{"$error":"#DIV/0!"},0,0,null,"","","","","","","","","","",null,null,null,null,null,null,null,null,null,null,null,null,null,null,null,null,null,"ZWO"]
[null,null,null,null,null,null,null,null,null,null,null,null,null,null,null,null,{"$f":"VLOOKUP(P1328,'Input MCC'!B:C,2,0)","v":{"$error":"#N/A"}},{"$f":"VLOOKUP(P1328,'Input MCC'!B:E,4,0)","v":{"$error":"#N/A"}},null,null,null,null,null,null,null,null,null,null,null,null,null,{"$error":"#DIV/0!"},0,0,null,"","","","","","","","","","",null,null,null,null,null,null,null,null,null,null,null,null,null,null,null,null,null,"ZWO"]
[null,null,null,null,null,null,null,null,null,null,null,null,null,null,null,null,{"$f":"VLOOKUP(P1329,'Input MCC'!B:C,2,0)","v":{"$error":"#N/A"}},{"$f":"VLOOKUP(P1329,'Input MCC'!B:E,4,0)","v":{"$error":"#N/A"}},null,null,null,null,null,null,null,null,null,null,null,null,null,{"$error":"#DIV/0!"},0,0,null,"","","","","","","","","","",null,null,null,null,null,null,null,null,null,null,null,null,null,null,null,null,null,"ZWO"]
[null,null,null,null,null,null,null,null,null,null,null,null,null,null,null,null,{"$f":"VLOOKUP(P1330,'Input MCC'!B:C,2,0)","v":{"$error":"#N/A"}},{"$f":"VLOOKUP(P1330,'Input MCC'!B:E,4,0)","v":{"$error":"#N/A"}},null,null,null,null,null,null,null,null,null,null,null,null,null,{"$error":"#DIV/0!"},0,0,null,"","","","","","","","","","",null,null,null,null,null,null,null,null,null,null,null,null,null,null,null,null,null,"ZWO"]
[null,null,null,null,null,null,null,null,null,null,null,null,null,null,null,null,{"$f":"VLOOKUP(P1331,'Input MCC'!B:C,2,0)","v":{"$error":"#N/A"}},{"$f":"VLOOKUP(P1331,'Input MCC'!B:E,4,0)","v":{"$error":"#N/A"}},null,null,null,null,null,null,null,null,null,null,null,null,null,{"$error":"#DIV/0!"},0,0,null,"","","","","","","","","","",null,null,null,null,null,null,null,null,null,null,null,null,null,null,null,null,null,"ZWO"]
[null,null,null,null,null,null,null,null,null,null,null,null,null,null,null,null,{"$f":"VLOOKUP(P1332,'Input MCC'!B:C,2,0)","v":{"$error":"#N/A"}},{"$f":"VLOOKUP(P1332,'Input MCC'!B:E,4,0)","v":{"$error":"#N/A"}},null,null,null,null,{"$f":"SUM(V1332:V1337)","v":0},null,null,null,null,null,null,null,null,{"$error":"#DIV/0!"},0,0,null,"","","","","","","","","","",null,null,null,null,null,null,null,null,null,null,null,null,null,null,null,null,null,"ZWO"]
[null,null,null,null,null,null,null,null,null,null,null,null,null,null,null,null,{"$f":"VLOOKUP(P1333,'Input MCC'!B:C,2,0)","v":{"$error":"#N/A"}},{"$f":"VLOOKUP(P1333,'Input MCC'!B:E,4,0)","v":{"$error":"#N/A"}},null,null,null,null,null,null,null,null,null,null,null,null,null,{"$error":"#DIV/0!"},0,0,null,"","","","","","","","","","",null,null,null,null,null,null,null,null,null,null,null,null,null,null,null,null,null,"ZWO"]
[null,null,null,null,null,null,null,null,null,null,null,null,null,null,null,null,{"$f":"VLOOKUP(P1334,'Input MCC'!B:C,2,0)","v":{"$error":"#N/A"}},{"$f":"VLOOKUP(P1334,'Input MCC'!B:E,4,0)","v":{"$error":"#N/A"}},null,null,null,null,null,null,null,null,null,null,null,null,null,{"$error":"#DIV/0!"},0,0,null,"","","","","","","","","","",null,null,null,null,null,null,null,null,null,null,null,null,null,null,null,null,null,"ZWO"]
[null,null,null,null,null,null,null,null,null,null,null,null,null,null,null,null,{"$f":"VLOOKUP(P1335,'Input MCC'!B:C,2,0)","v":{"$error":"#N/A"}},{"$f":"VLOOKUP(P1335,'Input MCC'!B:E,4,0)","v":{"$error":"#N/A"}},null,null,null,null,null,null,null,null,null,null,null,null,null,{"$error":"#DIV/0!"},0,0,null,"","","","","","","","","","",null,null,null,null,null,null,null,null,null,null,null,null,null,null,null,null,null,"ZWO"]
[null,null,null,null,null,null,null,null,null,null,null,null,null,null,null,null,{"$f":"VLOOKUP(P1336,'Input MCC'!B:C,2,0)","v":{"$error":"#N/A"}},{"$f":"VLOOKUP(P1336,'Input MCC'!B:E,4,0)","v":{"$error":"#N/A"}},null,null,null,null,null,null,null,null,null,null,null,null,null,{"$f":"AE1336/AC1336","v":{"$error":"#DIV/0!"}},{"$f":"V1336*AC1336","v":0},{"$f":"V1336*AE1336","v":0},null,{"$f":"IF(AI1336 <> \"\",\n    IF(ISNUMBER(VALUE(LEFT(AI1336, FIND(\"%\", AI1336)-1))),\n        VALUE(LEFT(AI1336, FIND(\"%\", AI1336)-1)),\n        \"Invalid format\"),\n    \"\")","v":""},{"$f":"IF(AI1336 <> \"\",\n    IF(ISNUMBER(VALUE(LEFT(AI1336, FIND(\"%\", AI1336)-1))) * ISNUMBER(FIND(\"%\", AI1336 & \"wol\")) > 0,\n        TRIM(MID(AI1336, FIND(\"%\", AI1336)+1, FIND(\"/\", AI1336 & \"/\")-FIND(\"%\", AI1336)-1)),\n        \"Invalid format\"),\n    \"\")","v":""},{"$f":"IF(AI1336 <> \"\",\n    IF(ISNUMBER(VALUE(MID(AI1336, FIND(\"/\", AI1336) + 1, FIND(\"%\", AI1336, FIND(\"/\", AI1336)) - FIND(\"/\", AI1336) - 1))),\n        VALUE(MID(AI1336, FIND(\"/\", AI1336) + 1, FIND(\"%\", AI1336, FIND(\"/\", AI1336)) - FIND(\"/\", AI1336) - 1)),\n        \"\"),\n    \"\")","v":""},{"$f":"IF(AI1336 <> \"\",\n    IFERROR(TRIM(MID(AI1336, FIND(\"%\", AI1336, FIND(\"/\", AI1336)+1)+2,\n        IFERROR(FIND(\"/\", AI1336 & \"/\", FIND(\"/\", AI1336)+1)-FIND(\"%\", AI1336, FIND(\"/\", AI1336)+1)-2, LEN(AI1336)-FIND(\"%\", AI1336, FIND(\"/\", AI1336)+1)-1))),\n        \"\"),\n    \"\")","v":""},{"$f":"IF(AI1336 <> \"\",\n    IF(ISNUMBER(VALUE(MID(AI1336, FIND(\"/\", AI1336, FIND(\"/\", AI1336)+1) + 1, FIND(\"%\", AI1336, FIND(\"/\", AI1336, FIND(\"/\", AI1336)+1)) - FIND(\"/\", AI1336, FIND(\"/\", AI1336)+1) - 1))),\n        VALUE(MID(AI1336, FIND(\"/\", AI1336, FIND(\"/\", AI1336)+1) + 1, FIND(\"%\", AI1336, FIND(\"/\", AI1336, FIND(\"/\", AI1336)+1)) - FIND(\"/\", AI1336, FIND(\"/\", AI1336)+1) - 1)),\n        \"\"),\n    \"\")","v":""},{"$f":"IF(AI1336 <> \"\",\n    IFERROR(\n        TRIM(MID(AI1336,\n            FIND(\"%\", AI1336, FIND(\"%\", AI1336, FIND(\"%\", AI1336)+1)+1)+1,\n            FIND(\"/\", AI1336 & \"/\", FIND(\"%\", AI1336, FIND(\"%\", AI1336, FIND(\"%\", AI1336)+1)+1))-FIND(\"%\", AI1336, FIND(\"%\", AI1336, FIND(\"%\", AI1336)+1)+1)-1)\n        ),\n        \"\"\n    ),\n    \"\"\n)","v":""},{"$f":"IF(AI1336 <> \"\",\n    IF(ISNUMBER(VALUE(MID(AI1336, FIND(\"/\", AI1336, FIND(\"/\", AI1336, FIND(\"/\", AI1336)+1)+1) + 1, FIND(\"%\", AI1336, FIND(\"/\", AI1336, FIND(\"/\", AI1336, FIND(\"/\", AI1336)+1)+1)) - FIND(\"/\", AI1336, FIND(\"/\", AI1336, FIND(\"/\", AI1336)+1)+1) - 1))),\n        VALUE(MID(AI1336, FIND(\"/\", AI1336, FIND(\"/\", AI1336, FIND(\"/\", AI1336)+1)+1) + 1, FIND(\"%\", AI1336, FIND(\"/\", AI1336, FIND(\"/\", AI1336, FIND(\"/\", AI1336)+1)+1)) - FIND(\"/\", AI1336, FIND(\"/\", AI1336, FIND(\"/\", AI1336)+1)+1) - 1)),\n        \"\"),\n    \"\")","v":""},{"$f":"IF(AI1336 <> \"\",\n    IFERROR(TRIM(MID(AI1336, FIND(\"%\", AI1336, FIND(\"/\", AI1336, FIND(\"/\", AI1336, FIND(\"/\", AI1336)+1)+1)+1)+2,\n        IFERROR(FIND(\"/\", AI1336, FIND(\"/\", AI1336, FIND(\"/\", AI1336, FIND(\"/\", AI1336)+1)+1)+1)-FIND(\"%\", AI1336, FIND(\"/\", AI1336, FIND(\"/\", AI1336, FIND(\"/\", AI1336)+1)+1)+1)-2, LEN(AI1336)-FIND(\"%\", AI1336, FIND(\"/\", AI1336, FIND(\"/\", AI1336, FIND(\"/\", AI1336)+1)+1)+1)-1))),\n        \"\"),\n    \"\")","v":""},{"$f":"IF(AI1336 <> \"\",\n    IF(ISNUMBER(VALUE(MID(AI1336, FIND(\"/\", AI1336, FIND(\"/\", AI1336, FIND(\"/\", AI1336, FIND(\"/\", AI1336)+1)+1)+1) + 1, FIND(\"%\", AI1336, FIND(\"/\", AI1336, FIND(\"/\", AI1336, FIND(\"/\", AI1336, FIND(\"/\", AI1336)+1)+1)+1)) - FIND(\"/\", AI1336, FIND(\"/\", AI1336, FIND(\"/\", AI1336, FIND(\"/\", AI1336)+1)+1)+1) - 1))),\n        VALUE(MID(AI1336, FIND(\"/\", AI1336, FIND(\"/\", AI1336, FIND(\"/\", AI1336, FIND(\"/\", AI1336)+1)+1)+1) + 1, FIND(\"%\", AI1336, FIND(\"/\", AI1336, FIND(\"/\", AI1336, FIND(\"/\", AI1336, FIND(\"/\", AI1336)+1)+1)+1)) - FIND(\"/\", AI1336, FIND(\"/\", AI1336, FIND(\"/\", AI1336, FIND(\"/\", AI1336)+1)+1)+1) - 1)),\n        \"\"),\n    \"\")","v":""},{"$f":"IF(AI1336 = \"\", \"\",\n    IFERROR(TRIM(\n        MID(\n            AI1336,\n            FIND(\"%\", AI1336, FIND(\"/\", AI1336, FIND(\"/\", AI1336, FIND(\"/\", AI1336, FIND(\"/\", AI1336)+1)+1)+1)+1) + 1,\n            FIND(\"/\", AI1336 & \"/\", FIND(\"%\", AI1336, FIND(\"/\", AI1336, FIND(\"/\", AI1336, FIND(\"/\", AI1336, FIND(\"/\", AI1336)+1)+1)+1)+1)) -\n            FIND(\"%\", AI1336, FIND(\"/\", AI1336, FIND(\"/\", AI1336, FIND(\"/\", AI1336, FIND(\"/\", AI1336)+1)+1)+1)+1) - 1\n        )\n    ),\n    \"\")\n)","v":""},null,null,null,null,null,null,null,null,null,null,null,null,null,null,null,null,null,"ZWO"]
[null,null,null,null,null,null,null,null,null,null,null,null,null,null,null,null,{"$f":"VLOOKUP(P1337,'Input MCC'!B:C,2,0)","v":{"$error":"#N/A"}},{"$f":"VLOOKUP(P1337,'Input MCC'!B:E,4,0)","v":{"$error":"#N/A"}},null,null,null,null,null,null,null,null,null,null,null,null,null,{"$error":"#DIV/0!"},0,0,null,"","","","","","","","","","",null,null,null,null,null,null,null,null,null,null,null,null,null,null,null,null,null,"ZWO"]
[null,null,null,null,null,null,null,null,null,null,null,null,null,null,null,null,{"$f":"VLOOKUP(P1338,'Input MCC'!B:C,2,0)","v":{"$error":"#N/A"}},{"$f":"VLOOKUP(P1338,'Input MCC'!B:E,4,0)","v":{"$error":"#N/A"}},null,null,null,null,{"$f":"SUM(V1338:V1343)","v":0},null,null,null,null,null,null,null,null,{"$error":"#DIV/0!"},0,0,null,"","","","","","","","","","",null,null,null,null,null,null,null,null,null,null,null,null,null,null,null,null,null,"ZWO"]
[null,null,null,null,null,null,null,null,null,null,null,null,null,null,null,null,{"$f":"VLOOKUP(P1339,'Input MCC'!B:C,2,0)","v":{"$error":"#N/A"}},{"$f":"VLOOKUP(P1339,'Input MCC'!B:E,4,0)","v":{"$error":"#N/A"}},null,null,null,null,null,null,null,null,null,null,null,null,null,{"$error":"#DIV/0!"},0,0,null,"","","","","","","","","","",null,null,null,null,null,null,null,null,null,null,null,null,null,null,null,null,null,"ZWO"]
[null,null,null,null,null,null,null,null,null,null,null,null,null,null,null,null,{"$f":"VLOOKUP(P1340,'Input MCC'!B:C,2,0)","v":{"$error":"#N/A"}},{"$f":"VLOOKUP(P1340,'Input MCC'!B:E,4,0)","v":{"$error":"#N/A"}},null,null,null,null,null,null,null,null,null,null,null,null,null,{"$error":"#DIV/0!"},0,0,null,"","","","","","","","","","",null,null,null,null,null,null,null,null,null,null,null,null,null,null,null,null,null,"ZWO"]
[null,null,null,null,null,null,null,null,null,null,null,null,null,null,null,null,{"$f":"VLOOKUP(P1341,'Input MCC'!B:C,2,0)","v":{"$error":"#N/A"}},{"$f":"VLOOKUP(P1341,'Input MCC'!B:E,4,0)","v":{"$error":"#N/A"}},null,null,null,null,null,null,null,null,null,null,null,null,null,{"$error":"#DIV/0!"},0,0,null,"","","","","","","","","","",null,null,null,null,null,null,null,null,null,null,null,null,null,null,null,null,null,"ZWO"]
[null,null,null,null,null,null,null,null,null,null,null,null,null,null,null,null,{"$f":"VLOOKUP(P1342,'Input MCC'!B:C,2,0)","v":{"$error":"#N/A"}},{"$f":"VLOOKUP(P1342,'Input MCC'!B:E,4,0)","v":{"$error":"#N/A"}},null,null,null,null,null,null,null,null,null,null,null,null,null,{"$error":"#DIV/0!"},0,0,null,"","","","","","","","","","",null,null,null,null,null,null,null,null,null,null,null,null,null,null,null,null,null,"ZWO"]
[null,null,null,null,null,null,null,null,null,null,null,null,null,null,null,null,{"$f":"VLOOKUP(P1343,'Input MCC'!B:C,2,0)","v":{"$error":"#N/A"}},{"$f":"VLOOKUP(P1343,'Input MCC'!B:E,4,0)","v":{"$error":"#N/A"}},null,null,null,null,null,null,null,null,null,null,null,null,null,{"$error":"#DIV/0!"},0,0,null,"","","","","","","","","","",null,null,null,null,null,null,null,null,null,null,null,null,null,null,null,null,null,"ZWO"]
[null,null,null,null,null,null,null,null,null,null,null,null,null,null,null,null,{"$f":"VLOOKUP(P1344,'Input MCC'!B:C,2,0)","v":{"$error":"#N/A"}},{"$f":"VLOOKUP(P1344,'Input MCC'!B:E,4,0)","v":{"$error":"#N/A"}},null,null,null,null,{"$f":"SUM(V1344:V1349)","v":0},null,null,null,null,null,null,null,null,{"$error":"#DIV/0!"},0,0,null,"","","","","","","","","","",null,null,null,null,null,null,null,null,null,null,null,null,null,null,null,null,null,"ZWO"]
[null,null,null,null,null,null,null,null,null,null,null,null,null,null,null,null,{"$f":"VLOOKUP(P1345,'Input MCC'!B:C,2,0)","v":{"$error":"#N/A"}},{"$f":"VLOOKUP(P1345,'Input MCC'!B:E,4,0)","v":{"$error":"#N/A"}},null,null,null,null,null,null,null,null,null,null,null,null,null,{"$error":"#DIV/0!"},0,0,null,"","","","","","","","","","",null,null,null,null,null,null,null,null,null,null,null,null,null,null,null,null,null,"ZWO"]
[null,null,null,null,null,null,null,null,null,null,null,null,null,null,null,null,{"$f":"VLOOKUP(P1346,'Input MCC'!B:C,2,0)","v":{"$error":"#N/A"}},{"$f":"VLOOKUP(P1346,'Input MCC'!B:E,4,0)","v":{"$error":"#N/A"}},null,null,null,null,null,null,null,null,null,null,null,null,null,{"$error":"#DIV/0!"},0,0,null,"","","","","","","","","","",null,null,null,null,null,null,null,null,null,null,null,null,null,null,null,null,null,"ZWO"]
[null,null,null,null,null,null,null,null,null,null,null,null,null,null,null,null,{"$f":"VLOOKUP(P1347,'Input MCC'!B:C,2,0)","v":{"$error":"#N/A"}},{"$f":"VLOOKUP(P1347,'Input MCC'!B:E,4,0)","v":{"$error":"#N/A"}},null,null,null,null,null,null,null,null,null,null,null,null,null,{"$error":"#DIV/0!"},0,0,null,"","","","","","","","","","",null,null,null,null,null,null,null,null,null,null,null,null,null,null,null,null,null,"ZWO"]
[null,null,null,null,null,null,null,null,null,null,null,null,null,null,null,null,{"$f":"VLOOKUP(P1348,'Input MCC'!B:C,2,0)","v":{"$error":"#N/A"}},{"$f":"VLOOKUP(P1348,'Input MCC'!B:E,4,0)","v":{"$error":"#N/A"}},null,null,null,null,null,null,null,null,null,null,null,null,null,{"$error":"#DIV/0!"},0,0,null,"","","","","","","","","","",null,null,null,null,null,null,null,null,null,null,null,null,null,null,null,null,null,"ZWO"]
[null,null,null,null,null,null,null,null,null,null,null,null,null,null,null,null,{"$f":"VLOOKUP(P1349,'Input MCC'!B:C,2,0)","v":{"$error":"#N/A"}},{"$f":"VLOOKUP(P1349,'Input MCC'!B:E,4,0)","v":{"$error":"#N/A"}},null,null,null,null,null,null,null,null,null,null,null,null,null,{"$error":"#DIV/0!"},0,0,null,"","","","","","","","","","",null,null,null,null,null,null,null,null,null,null,null,null,null,null,null,null,null,"ZWO"]
[null,null,null,null,null,null,null,null,null,null,null,null,null,null,null,null,{"$f":"VLOOKUP(P1350,'Input MCC'!B:C,2,0)","v":{"$error":"#N/A"}},{"$f":"VLOOKUP(P1350,'Input MCC'!B:E,4,0)","v":{"$error":"#N/A"}},null,null,null,null,{"$f":"SUM(V1350:V1355)","v":0},null,null,null,null,null,null,null,null,{"$error":"#DIV/0!"},0,0,null,"","","","","","","","","","",null,null,null,null,null,null,null,null,null,null,null,null,null,null,null,null,null,"ZWO"]
[null,null,null,null,null,null,null,null,null,null,null,null,null,null,null,null,{"$f":"VLOOKUP(P1351,'Input MCC'!B:C,2,0)","v":{"$error":"#N/A"}},{"$f":"VLOOKUP(P1351,'Input MCC'!B:E,4,0)","v":{"$error":"#N/A"}},null,null,null,null,null,null,null,null,null,null,null,null,null,{"$error":"#DIV/0!"},0,0,null,"","","","","","","","","","",null,null,null,null,null,null,null,null,null,null,null,null,null,null,null,null,null,"ZWO"]
[null,null,null,null,null,null,null,null,null,null,null,null,null,null,null,null,{"$f":"VLOOKUP(P1352,'Input MCC'!B:C,2,0)","v":{"$error":"#N/A"}},{"$f":"VLOOKUP(P1352,'Input MCC'!B:E,4,0)","v":{"$error":"#N/A"}},null,null,null,null,null,null,null,null,null,null,null,null,null,{"$error":"#DIV/0!"},0,0,null,"","","","","","","","","","",null,null,null,null,null,null,null,null,null,null,null,null,null,null,null,null,null,"ZWO"]
[null,null,null,null,null,null,null,null,null,null,null,null,null,null,null,null,{"$f":"VLOOKUP(P1353,'Input MCC'!B:C,2,0)","v":{"$error":"#N/A"}},{"$f":"VLOOKUP(P1353,'Input MCC'!B:E,4,0)","v":{"$error":"#N/A"}},null,null,null,null,null,null,null,null,null,null,null,null,null,{"$error":"#DIV/0!"},0,0,null,"","","","","","","","","","",null,null,null,null,null,null,null,null,null,null,null,null,null,null,null,null,null,"ZWO"]
[null,null,null,null,null,null,null,null,null,null,null,null,null,null,null,null,{"$f":"VLOOKUP(P1354,'Input MCC'!B:C,2,0)","v":{"$error":"#N/A"}},{"$f":"VLOOKUP(P1354,'Input MCC'!B:E,4,0)","v":{"$error":"#N/A"}},null,null,null,null,null,null,null,null,null,null,null,null,null,{"$error":"#DIV/0!"},0,0,null,"","","","","","","","","","",null,null,null,null,null,null,null,null,null,null,null,null,null,null,null,null,null,"ZWO"]
[null,null,null,null,null,null,null,null,null,null,null,null,null,null,null,null,{"$f":"VLOOKUP(P1355,'Input MCC'!B:C,2,0)","v":{"$error":"#N/A"}},{"$f":"VLOOKUP(P1355,'Input MCC'!B:E,4,0)","v":{"$error":"#N/A"}},null,null,null,null,null,null,null,null,null,null,null,null,null,{"$error":"#DIV/0!"},0,0,null,"","","","","","","","","","",null,null,null,null,null,null,null,null,null,null,null,null,null,null,null,null,null,"ZWO"]
[null,null,null,null,null,null,null,null,null,null,null,null,null,null,null,null,{"$f":"VLOOKUP(P1356,'Input MCC'!B:C,2,0)","v":{"$error":"#N/A"}},{"$f":"VLOOKUP(P1356,'Input MCC'!B:E,4,0)","v":{"$error":"#N/A"}},null,null,null,null,{"$f":"SUM(V1356:V1361)","v":0},null,null,null,null,null,null,null,null,{"$error":"#DIV/0!"},0,0,null,"","","","","","","","","","",null,null,null,null,null,null,null,null,null,null,null,null,null,null,null,null,null,"ZWO"]
[null,null,null,null,null,null,null,null,null,null,null,null,null,null,null,null,{"$f":"VLOOKUP(P1357,'Input MCC'!B:C,2,0)","v":{"$error":"#N/A"}},{"$f":"VLOOKUP(P1357,'Input MCC'!B:E,4,0)","v":{"$error":"#N/A"}},null,null,null,null,null,null,null,null,null,null,null,null,null,{"$error":"#DIV/0!"},0,0,null,"","","","","","","","","","",null,null,null,null,null,null,null,null,null,null,null,null,null,null,null,null,null,"ZWO"]
[null,null,null,null,null,null,null,null,null,null,null,null,null,null,null,null,{"$f":"VLOOKUP(P1358,'Input MCC'!B:C,2,0)","v":{"$error":"#N/A"}},{"$f":"VLOOKUP(P1358,'Input MCC'!B:E,4,0)","v":{"$error":"#N/A"}},null,null,null,null,null,null,null,null,null,null,null,null,null,{"$error":"#DIV/0!"},0,0,null,"","","","","","","","","","",null,null,null,null,null,null,null,null,null,null,null,null,null,null,null,null,null,"ZWO"]
[null,null,null,null,null,null,null,null,null,null,null,null,null,null,null,null,{"$f":"VLOOKUP(P1359,'Input MCC'!B:C,2,0)","v":{"$error":"#N/A"}},{"$f":"VLOOKUP(P1359,'Input MCC'!B:E,4,0)","v":{"$error":"#N/A"}},null,null,null,null,null,null,null,null,null,null,null,null,null,{"$error":"#DIV/0!"},0,0,null,"","","","","","","","","","",null,null,null,null,null,null,null,null,null,null,null,null,null,null,null,null,null,"ZWO"]
[null,null,null,null,null,null,null,null,null,null,null,null,null,null,null,null,{"$f":"VLOOKUP(P1360,'Input MCC'!B:C,2,0)","v":{"$error":"#N/A"}},{"$f":"VLOOKUP(P1360,'Input MCC'!B:E,4,0)","v":{"$error":"#N/A"}},null,null,null,null,null,null,null,null,null,null,null,null,null,{"$error":"#DIV/0!"},0,0,null,"","","","","","","","","","",null,null,null,null,null,null,null,null,null,null,null,null,null,null,null,null,null,"ZWO"]
[null,null,null,null,null,null,null,null,null,null,null,null,null,null,null,null,{"$f":"VLOOKUP(P1361,'Input MCC'!B:C,2,0)","v":{"$error":"#N/A"}},{"$f":"VLOOKUP(P1361,'Input MCC'!B:E,4,0)","v":{"$error":"#N/A"}},null,null,null,null,null,null,null,null,null,null,null,null,null,{"$error":"#DIV/0!"},0,0,null,"","","","","","","","","","",null,null,null,null,null,null,null,null,null,null,null,null,null,null,null,null,null,"ZWO"]
[null,null,null,null,null,null,null,null,null,null,null,null,null,null,null,null,{"$f":"VLOOKUP(P1362,'Input MCC'!B:C,2,0)","v":{"$error":"#N/A"}},{"$f":"VLOOKUP(P1362,'Input MCC'!B:E,4,0)","v":{"$error":"#N/A"}},null,null,null,null,{"$f":"SUM(V1362:V1367)","v":0},null,null,null,null,null,null,null,null,{"$error":"#DIV/0!"},0,0,null,"","","","","","","","","","",null,null,null,null,null,null,null,null,null,null,null,null,null,null,null,null,null,"ZWO"]
[null,null,null,null,null,null,null,null,null,null,null,null,null,null,null,null,{"$f":"VLOOKUP(P1363,'Input MCC'!B:C,2,0)","v":{"$error":"#N/A"}},{"$f":"VLOOKUP(P1363,'Input MCC'!B:E,4,0)","v":{"$error":"#N/A"}},null,null,null,null,null,null,null,null,null,null,null,null,null,{"$error":"#DIV/0!"},0,0,null,"","","","","","","","","","",null,null,null,null,null,null,null,null,null,null,null,null,null,null,null,null,null,"ZWO"]
[null,null,null,null,null,null,null,null,null,null,null,null,null,null,null,null,{"$f":"VLOOKUP(P1364,'Input MCC'!B:C,2,0)","v":{"$error":"#N/A"}},{"$f":"VLOOKUP(P1364,'Input MCC'!B:E,4,0)","v":{"$error":"#N/A"}},null,null,null,null,null,null,null,null,null,null,null,null,null,{"$error":"#DIV/0!"},0,0,null,"","","","","","","","","","",null,null,null,null,null,null,null,null,null,null,null,null,null,null,null,null,null,"ZWO"]
[null,null,null,null,null,null,null,null,null,null,null,null,null,null,null,null,{"$f":"VLOOKUP(P1365,'Input MCC'!B:C,2,0)","v":{"$error":"#N/A"}},{"$f":"VLOOKUP(P1365,'Input MCC'!B:E,4,0)","v":{"$error":"#N/A"}},null,null,null,null,null,null,null,null,null,null,null,null,null,{"$error":"#DIV/0!"},0,0,null,"","","","","","","","","","",null,null,null,null,null,null,null,null,null,null,null,null,null,null,null,null,null,"ZWO"]
[null,null,null,null,null,null,null,null,null,null,null,null,null,null,null,null,{"$f":"VLOOKUP(P1366,'Input MCC'!B:C,2,0)","v":{"$error":"#N/A"}},{"$f":"VLOOKUP(P1366,'Input MCC'!B:E,4,0)","v":{"$error":"#N/A"}},null,null,null,null,null,null,null,null,null,null,null,null,null,{"$error":"#DIV/0!"},0,0,null,"","","","","","","","","","",null,null,null,null,null,null,null,null,null,null,null,null,null,null,null,null,null,"ZWO"]
[null,null,null,null,null,null,null,null,null,null,null,null,null,null,null,null,{"$f":"VLOOKUP(P1367,'Input MCC'!B:C,2,0)","v":{"$error":"#N/A"}},{"$f":"VLOOKUP(P1367,'Input MCC'!B:E,4,0)","v":{"$error":"#N/A"}},null,null,null,null,null,null,null,null,null,null,null,null,null,{"$error":"#DIV/0!"},0,0,null,"","","","","","","","","","",null,null,null,null,null,null,null,null,null,null,null,null,null,null,null,null,null,"ZWO"]
[null,null,null,null,null,null,null,null,null,null,null,null,null,null,null,null,{"$f":"VLOOKUP(P1368,'Input MCC'!B:C,2,0)","v":{"$error":"#N/A"}},{"$f":"VLOOKUP(P1368,'Input MCC'!B:E,4,0)","v":{"$error":"#N/A"}},null,null,null,null,{"$f":"SUM(V1368:V1373)","v":0},null,null,null,null,null,null,null,null,{"$error":"#DIV/0!"},0,0,null,"","","","","","","","","","",null,null,null,null,null,null,null,null,null,null,null,null,null,null,null,null,null,"ZWO"]
[null,null,null,null,null,null,null,null,null,null,null,null,null,null,null,null,{"$f":"VLOOKUP(P1369,'Input MCC'!B:C,2,0)","v":{"$error":"#N/A"}},{"$f":"VLOOKUP(P1369,'Input MCC'!B:E,4,0)","v":{"$error":"#N/A"}},null,null,null,null,null,null,null,null,null,null,null,null,null,{"$error":"#DIV/0!"},0,0,null,"","","","","","","","","","",null,null,null,null,null,null,null,null,null,null,null,null,null,null,null,null,null,"ZWO"]
[null,null,null,null,null,null,null,null,null,null,null,null,null,null,null,null,{"$f":"VLOOKUP(P1370,'Input MCC'!B:C,2,0)","v":{"$error":"#N/A"}},{"$f":"VLOOKUP(P1370,'Input MCC'!B:E,4,0)","v":{"$error":"#N/A"}},null,null,null,null,null,null,null,null,null,null,null,null,null,{"$error":"#DIV/0!"},0,0,null,"","","","","","","","","","",null,null,null,null,null,null,null,null,null,null,null,null,null,null,null,null,null,"ZWO"]
[null,null,null,null,null,null,null,null,null,null,null,null,null,null,null,null,{"$f":"VLOOKUP(P1371,'Input MCC'!B:C,2,0)","v":{"$error":"#N/A"}},{"$f":"VLOOKUP(P1371,'Input MCC'!B:E,4,0)","v":{"$error":"#N/A"}},null,null,null,null,null,null,null,null,null,null,null,null,null,{"$error":"#DIV/0!"},0,0,null,"","","","","","","","","","",null,null,null,null,null,null,null,null,null,null,null,null,null,null,null,null,null,"ZWO"]
[null,null,null,null,null,null,null,null,null,null,null,null,null,null,null,null,{"$f":"VLOOKUP(P1372,'Input MCC'!B:C,2,0)","v":{"$error":"#N/A"}},{"$f":"VLOOKUP(P1372,'Input MCC'!B:E,4,0)","v":{"$error":"#N/A"}},null,null,null,null,null,null,null,null,null,null,null,null,null,{"$error":"#DIV/0!"},0,0,null,"","","","","","","","","","",null,null,null,null,null,null,null,null,null,null,null,null,null,null,null,null,null,"ZWO"]
[null,null,null,null,null,null,null,null,null,null,null,null,null,null,null,null,{"$f":"VLOOKUP(P1373,'Input MCC'!B:C,2,0)","v":{"$error":"#N/A"}},{"$f":"VLOOKUP(P1373,'Input MCC'!B:E,4,0)","v":{"$error":"#N/A"}},null,null,null,null,null,null,null,null,null,null,null,null,null,{"$error":"#DIV/0!"},0,0,null,"","","","","","","","","","",null,null,null,null,null,null,null,null,null,null,null,null,null,null,null,null,null,"ZWO"]
[null,null,null,null,null,null,null,null,null,null,null,null,null,null,null,null,{"$f":"VLOOKUP(P1374,'Input MCC'!B:C,2,0)","v":{"$error":"#N/A"}},{"$f":"VLOOKUP(P1374,'Input MCC'!B:E,4,0)","v":{"$error":"#N/A"}},null,null,null,null,{"$f":"SUM(V1374:V1379)","v":0},null,null,null,null,null,null,null,null,{"$error":"#DIV/0!"},0,0,null,"","","","","","","","","","",null,null,null,null,null,null,null,null,null,null,null,null,null,null,null,null,null,"ZWO"]
[null,null,null,null,null,null,null,null,null,null,null,null,null,null,null,null,{"$f":"VLOOKUP(P1375,'Input MCC'!B:C,2,0)","v":{"$error":"#N/A"}},{"$f":"VLOOKUP(P1375,'Input MCC'!B:E,4,0)","v":{"$error":"#N/A"}},null,null,null,null,null,null,null,null,null,null,null,null,null,{"$error":"#DIV/0!"},0,0,null,"","","","","","","","","","",null,null,null,null,null,null,null,null,null,null,null,null,null,null,null,null,null,"ZWO"]
[null,null,null,null,null,null,null,null,null,null,null,null,null,null,null,null,{"$f":"VLOOKUP(P1376,'Input MCC'!B:C,2,0)","v":{"$error":"#N/A"}},{"$f":"VLOOKUP(P1376,'Input MCC'!B:E,4,0)","v":{"$error":"#N/A"}},null,null,null,null,null,null,null,null,null,null,null,null,null,{"$error":"#DIV/0!"},0,0,null,"","","","","","","","","","",null,null,null,null,null,null,null,null,null,null,null,null,null,null,null,null,null,"ZWO"]
[null,null,null,null,null,null,null,null,null,null,null,null,null,null,null,null,{"$f":"VLOOKUP(P1377,'Input MCC'!B:C,2,0)","v":{"$error":"#N/A"}},{"$f":"VLOOKUP(P1377,'Input MCC'!B:E,4,0)","v":{"$error":"#N/A"}},null,null,null,null,null,null,null,null,null,null,null,null,null,{"$error":"#DIV/0!"},0,0,null,"","","","","","","","","","",null,null,null,null,null,null,null,null,null,null,null,null,null,null,null,null,null,"ZWO"]
[null,null,null,null,null,null,null,null,null,null,null,null,null,null,null,null,{"$f":"VLOOKUP(P1378,'Input MCC'!B:C,2,0)","v":{"$error":"#N/A"}},{"$f":"VLOOKUP(P1378,'Input MCC'!B:E,4,0)","v":{"$error":"#N/A"}},null,null,null,null,null,null,null,null,null,null,null,null,null,{"$error":"#DIV/0!"},0,0,null,"","","","","","","","","","",null,null,null,null,null,null,null,null,null,null,null,null,null,null,null,null,null,"ZWO"]
[null,null,null,null,null,null,null,null,null,null,null,null,null,null,null,null,{"$f":"VLOOKUP(P1379,'Input MCC'!B:C,2,0)","v":{"$error":"#N/A"}},{"$f":"VLOOKUP(P1379,'Input MCC'!B:E,4,0)","v":{"$error":"#N/A"}},null,null,null,null,null,null,null,null,null,null,null,null,null,{"$error":"#DIV/0!"},0,0,null,"","","","","","","","","","",null,null,null,null,null,null,null,null,null,null,null,null,null,null,null,null,null,"ZWO"]
[null,null,null,null,null,null,null,null,null,null,null,null,null,null,null,null,{"$f":"VLOOKUP(P1380,'Input MCC'!B:C,2,0)","v":{"$error":"#N/A"}},{"$f":"VLOOKUP(P1380,'Input MCC'!B:E,4,0)","v":{"$error":"#N/A"}},null,null,null,null,{"$f":"SUM(V1380:V1385)","v":0},null,null,null,null,null,null,null,null,{"$error":"#DIV/0!"},0,0,null,"","","","","","","","","","",null,null,null,null,null,null,null,null,null,null,null,null,null,null,null,null,null,"ZWO"]
[null,null,null,null,null,null,null,null,null,null,null,null,null,null,null,null,{"$f":"VLOOKUP(P1381,'Input MCC'!B:C,2,0)","v":{"$error":"#N/A"}},{"$f":"VLOOKUP(P1381,'Input MCC'!B:E,4,0)","v":{"$error":"#N/A"}},null,null,null,null,null,null,null,null,null,null,null,null,null,{"$error":"#DIV/0!"},0,0,null,"","","","","","","","","","",null,null,null,null,null,null,null,null,null,null,null,null,null,null,null,null,null,"ZWO"]
[null,null,null,null,null,null,null,null,null,null,null,null,null,null,null,null,{"$f":"VLOOKUP(P1382,'Input MCC'!B:C,2,0)","v":{"$error":"#N/A"}},{"$f":"VLOOKUP(P1382,'Input MCC'!B:E,4,0)","v":{"$error":"#N/A"}},null,null,null,null,null,null,null,null,null,null,null,null,null,{"$error":"#DIV/0!"},0,0,null,"","","","","","","","","","",null,null,null,null,null,null,null,null,null,null,null,null,null,null,null,null,null,"ZWO"]
[null,null,null,null,null,null,null,null,null,null,null,null,null,null,null,null,{"$f":"VLOOKUP(P1383,'Input MCC'!B:C,2,0)","v":{"$error":"#N/A"}},{"$f":"VLOOKUP(P1383,'Input MCC'!B:E,4,0)","v":{"$error":"#N/A"}},null,null,null,null,null,null,null,null,null,null,null,null,null,{"$error":"#DIV/0!"},0,0,null,"","","","","","","","","","",null,null,null,null,null,null,null,null,null,null,null,null,null,null,null,null,null,"ZWO"]
[null,null,null,null,null,null,null,null,null,null,null,null,null,null,null,null,{"$f":"VLOOKUP(P1384,'Input MCC'!B:C,2,0)","v":{"$error":"#N/A"}},{"$f":"VLOOKUP(P1384,'Input MCC'!B:E,4,0)","v":{"$error":"#N/A"}},null,null,null,null,null,null,null,null,null,null,null,null,null,{"$error":"#DIV/0!"},0,0,null,"","","","","","","","","","",null,null,null,null,null,null,null,null,null,null,null,null,null,null,null,null,null,"ZWO"]
[null,null,null,null,null,null,null,null,null,null,null,null,null,null,null,null,{"$f":"VLOOKUP(P1385,'Input MCC'!B:C,2,0)","v":{"$error":"#N/A"}},{"$f":"VLOOKUP(P1385,'Input MCC'!B:E,4,0)","v":{"$error":"#N/A"}},null,null,null,null,null,null,null,null,null,null,null,null,null,{"$error":"#DIV/0!"},0,0,null,"","","","","","","","","","",null,null,null,null,null,null,null,null,null,null,null,null,null,null,null,null,null,"ZWO"]
[null,null,null,null,null,null,null,null,null,null,null,null,null,null,null,null,{"$f":"VLOOKUP(P1386,'Input MCC'!B:C,2,0)","v":{"$error":"#N/A"}},{"$f":"VLOOKUP(P1386,'Input MCC'!B:E,4,0)","v":{"$error":"#N/A"}},null,null,null,null,{"$f":"SUM(V1386:V1391)","v":0},null,null,null,null,null,null,null,null,{"$error":"#DIV/0!"},0,0,null,"","","","","","","","","","",null,null,null,null,null,null,null,null,null,null,null,null,null,null,null,null,null,"ZWO"]
[null,null,null,null,null,null,null,null,null,null,null,null,null,null,null,null,{"$f":"VLOOKUP(P1387,'Input MCC'!B:C,2,0)","v":{"$error":"#N/A"}},{"$f":"VLOOKUP(P1387,'Input MCC'!B:E,4,0)","v":{"$error":"#N/A"}},null,null,null,null,null,null,null,null,null,null,null,null,null,{"$error":"#DIV/0!"},0,0,null,"","","","","","","","","","",null,null,null,null,null,null,null,null,null,null,null,null,null,null,null,null,null,"ZWO"]
[null,null,null,null,null,null,null,null,null,null,null,null,null,null,null,null,{"$f":"VLOOKUP(P1388,'Input MCC'!B:C,2,0)","v":{"$error":"#N/A"}},{"$f":"VLOOKUP(P1388,'Input MCC'!B:E,4,0)","v":{"$error":"#N/A"}},null,null,null,null,null,null,null,null,null,null,null,null,null,{"$error":"#DIV/0!"},0,0,null,"","","","","","","","","","",null,null,null,null,null,null,null,null,null,null,null,null,null,null,null,null,null,"ZWO"]
[null,null,null,null,null,null,null,null,null,null,null,null,null,null,null,null,{"$f":"VLOOKUP(P1389,'Input MCC'!B:C,2,0)","v":{"$error":"#N/A"}},{"$f":"VLOOKUP(P1389,'Input MCC'!B:E,4,0)","v":{"$error":"#N/A"}},null,null,null,null,null,null,null,null,null,null,null,null,null,{"$error":"#DIV/0!"},0,0,null,"","","","","","","","","","",null,null,null,null,null,null,null,null,null,null,null,null,null,null,null,null,null,"ZWO"]
[null,null,null,null,null,null,null,null,null,null,null,null,null,null,null,null,{"$f":"VLOOKUP(P1390,'Input MCC'!B:C,2,0)","v":{"$error":"#N/A"}},{"$f":"VLOOKUP(P1390,'Input MCC'!B:E,4,0)","v":{"$error":"#N/A"}},null,null,null,null,null,null,null,null,null,null,null,null,null,{"$error":"#DIV/0!"},0,0,null,"","","","","","","","","","",null,null,null,null,null,null,null,null,null,null,null,null,null,null,null,null,null,"ZWO"]
[null,null,null,null,null,null,null,null,null,null,null,null,null,null,null,null,{"$f":"VLOOKUP(P1391,'Input MCC'!B:C,2,0)","v":{"$error":"#N/A"}},{"$f":"VLOOKUP(P1391,'Input MCC'!B:E,4,0)","v":{"$error":"#N/A"}},null,null,null,null,null,null,null,null,null,null,null,null,null,{"$error":"#DIV/0!"},0,0,null,"","","","","","","","","","",null,null,null,null,null,null,null,null,null,null,null,null,null,null,null,null,null,"ZWO"]
[null,null,null,null,null,null,null,null,null,null,null,null,null,null,null,null,{"$f":"VLOOKUP(P1392,'Input MCC'!B:C,2,0)","v":{"$error":"#N/A"}},{"$f":"VLOOKUP(P1392,'Input MCC'!B:E,4,0)","v":{"$error":"#N/A"}},null,null,null,null,{"$f":"SUM(V1392:V1397)","v":0},null,null,null,null,null,null,null,null,{"$error":"#DIV/0!"},0,0,null,"","","","","","","","","","",null,null,null,null,null,null,null,null,null,null,null,null,null,null,null,null,null,"ZWO"]
[null,null,null,null,null,null,null,null,null,null,null,null,null,null,null,null,{"$f":"VLOOKUP(P1393,'Input MCC'!B:C,2,0)","v":{"$error":"#N/A"}},{"$f":"VLOOKUP(P1393,'Input MCC'!B:E,4,0)","v":{"$error":"#N/A"}},null,null,null,null,null,null,null,null,null,null,null,null,null,{"$error":"#DIV/0!"},0,0,null,"","","","","","","","","","",null,null,null,null,null,null,null,null,null,null,null,null,null,null,null,null,null,"ZWO"]
[null,null,null,null,null,null,null,null,null,null,null,null,null,null,null,null,{"$f":"VLOOKUP(P1394,'Input MCC'!B:C,2,0)","v":{"$error":"#N/A"}},{"$f":"VLOOKUP(P1394,'Input MCC'!B:E,4,0)","v":{"$error":"#N/A"}},null,null,null,null,null,null,null,null,null,null,null,null,null,{"$error":"#DIV/0!"},0,0,null,"","","","","","","","","","",null,null,null,null,null,null,null,null,null,null,null,null,null,null,null,null,null,"ZWO"]
[null,null,null,null,null,null,null,null,null,null,null,null,null,null,null,null,{"$f":"VLOOKUP(P1395,'Input MCC'!B:C,2,0)","v":{"$error":"#N/A"}},{"$f":"VLOOKUP(P1395,'Input MCC'!B:E,4,0)","v":{"$error":"#N/A"}},null,null,null,null,null,null,null,null,null,null,null,null,null,{"$error":"#DIV/0!"},0,0,null,"","","","","","","","","","",null,null,null,null,null,null,null,null,null,null,null,null,null,null,null,null,null,"ZWO"]
[null,null,null,null,null,null,null,null,null,null,null,null,null,null,null,null,{"$f":"VLOOKUP(P1396,'Input MCC'!B:C,2,0)","v":{"$error":"#N/A"}},{"$f":"VLOOKUP(P1396,'Input MCC'!B:E,4,0)","v":{"$error":"#N/A"}},null,null,null,null,null,null,null,null,null,null,null,null,null,{"$error":"#DIV/0!"},0,0,null,"","","","","","","","","","",null,null,null,null,null,null,null,null,null,null,null,null,null,null,null,null,null,"ZWO"]
[null,null,null,null,null,null,null,null,null,null,null,null,null,null,null,null,{"$f":"VLOOKUP(P1397,'Input MCC'!B:C,2,0)","v":{"$error":"#N/A"}},{"$f":"VLOOKUP(P1397,'Input MCC'!B:E,4,0)","v":{"$error":"#N/A"}},null,null,null,null,null,null,null,null,null,null,null,null,null,{"$error":"#DIV/0!"},0,0,null,"","","","","","","","","","",null,null,null,null,null,null,null,null,null,null,null,null,null,null,null,null,null,"ZWO"]
[null,null,null,null,null,null,null,null,null,null,null,null,null,null,null,null,{"$f":"VLOOKUP(P1398,'Input MCC'!B:C,2,0)","v":{"$error":"#N/A"}},{"$f":"VLOOKUP(P1398,'Input MCC'!B:E,4,0)","v":{"$error":"#N/A"}},null,null,null,null,{"$f":"SUM(V1398:V1403)","v":0},null,null,null,null,null,null,null,null,{"$error":"#DIV/0!"},0,0,null,"","","","","","","","","","",null,null,null,null,null,null,null,null,null,null,null,null,null,null,null,null,null,"ZWO"]
[null,null,null,null,null,null,null,null,null,null,null,null,null,null,null,null,{"$f":"VLOOKUP(P1399,'Input MCC'!B:C,2,0)","v":{"$error":"#N/A"}},{"$f":"VLOOKUP(P1399,'Input MCC'!B:E,4,0)","v":{"$error":"#N/A"}},null,null,null,null,null,null,null,null,null,null,null,null,null,{"$error":"#DIV/0!"},0,0,null,"","","","","","","","","","",null,null,null,null,null,null,null,null,null,null,null,null,null,null,null,null,null,"ZWO"]
[null,null,null,null,null,null,null,null,null,null,null,null,null,null,null,null,{"$f":"VLOOKUP(P1400,'Input MCC'!B:C,2,0)","v":{"$error":"#N/A"}},{"$f":"VLOOKUP(P1400,'Input MCC'!B:E,4,0)","v":{"$error":"#N/A"}},null,null,null,null,null,null,null,null,null,null,null,null,null,{"$f":"AE1400/AC1400","v":{"$error":"#DIV/0!"}},{"$f":"V1400*AC1400","v":0},{"$f":"V1400*AE1400","v":0},null,{"$f":"IF(AI1400 <> \"\",\n    IF(ISNUMBER(VALUE(LEFT(AI1400, FIND(\"%\", AI1400)-1))),\n        VALUE(LEFT(AI1400, FIND(\"%\", AI1400)-1)),\n        \"Invalid format\"),\n    \"\")","v":""},{"$f":"IF(AI1400 <> \"\",\n    IF(ISNUMBER(VALUE(LEFT(AI1400, FIND(\"%\", AI1400)-1))) * ISNUMBER(FIND(\"%\", AI1400 & \"wol\")) > 0,\n        TRIM(MID(AI1400, FIND(\"%\", AI1400)+1, FIND(\"/\", AI1400 & \"/\")-FIND(\"%\", AI1400)-1)),\n        \"Invalid format\"),\n    \"\")","v":""},{"$f":"IF(AI1400 <> \"\",\n    IF(ISNUMBER(VALUE(MID(AI1400, FIND(\"/\", AI1400) + 1, FIND(\"%\", AI1400, FIND(\"/\", AI1400)) - FIND(\"/\", AI1400) - 1))),\n        VALUE(MID(AI1400, FIND(\"/\", AI1400) + 1, FIND(\"%\", AI1400, FIND(\"/\", AI1400)) - FIND(\"/\", AI1400) - 1)),\n        \"\"),\n    \"\")","v":""},{"$f":"IF(AI1400 <> \"\",\n    IFERROR(TRIM(MID(AI1400, FIND(\"%\", AI1400, FIND(\"/\", AI1400)+1)+2,\n        IFERROR(FIND(\"/\", AI1400 & \"/\", FIND(\"/\", AI1400)+1)-FIND(\"%\", AI1400, FIND(\"/\", AI1400)+1)-2, LEN(AI1400)-FIND(\"%\", AI1400, FIND(\"/\", AI1400)+1)-1))),\n        \"\"),\n    \"\")","v":""},{"$f":"IF(AI1400 <> \"\",\n    IF(ISNUMBER(VALUE(MID(AI1400, FIND(\"/\", AI1400, FIND(\"/\", AI1400)+1) + 1, FIND(\"%\", AI1400, FIND(\"/\", AI1400, FIND(\"/\", AI1400)+1)) - FIND(\"/\", AI1400, FIND(\"/\", AI1400)+1) - 1))),\n        VALUE(MID(AI1400, FIND(\"/\", AI1400, FIND(\"/\", AI1400)+1) + 1, FIND(\"%\", AI1400, FIND(\"/\", AI1400, FIND(\"/\", AI1400)+1)) - FIND(\"/\", AI1400, FIND(\"/\", AI1400)+1) - 1)),\n        \"\"),\n    \"\")","v":""},{"$f":"IF(AI1400 <> \"\",\n    IFERROR(\n        TRIM(MID(AI1400,\n            FIND(\"%\", AI1400, FIND(\"%\", AI1400, FIND(\"%\", AI1400)+1)+1)+1,\n            FIND(\"/\", AI1400 & \"/\", FIND(\"%\", AI1400, FIND(\"%\", AI1400, FIND(\"%\", AI1400)+1)+1))-FIND(\"%\", AI1400, FIND(\"%\", AI1400, FIND(\"%\", AI1400)+1)+1)-1)\n        ),\n        \"\"\n    ),\n    \"\"\n)","v":""},{"$f":"IF(AI1400 <> \"\",\n    IF(ISNUMBER(VALUE(MID(AI1400, FIND(\"/\", AI1400, FIND(\"/\", AI1400, FIND(\"/\", AI1400)+1)+1) + 1, FIND(\"%\", AI1400, FIND(\"/\", AI1400, FIND(\"/\", AI1400, FIND(\"/\", AI1400)+1)+1)) - FIND(\"/\", AI1400, FIND(\"/\", AI1400, FIND(\"/\", AI1400)+1)+1) - 1))),\n        VALUE(MID(AI1400, FIND(\"/\", AI1400, FIND(\"/\", AI1400, FIND(\"/\", AI1400)+1)+1) + 1, FIND(\"%\", AI1400, FIND(\"/\", AI1400, FIND(\"/\", AI1400, FIND(\"/\", AI1400)+1)+1)) - FIND(\"/\", AI1400, FIND(\"/\", AI1400, FIND(\"/\", AI1400)+1)+1) - 1)),\n        \"\"),\n    \"\")","v":""},{"$f":"IF(AI1400 <> \"\",\n    IFERROR(TRIM(MID(AI1400, FIND(\"%\", AI1400, FIND(\"/\", AI1400, FIND(\"/\", AI1400, FIND(\"/\", AI1400)+1)+1)+1)+2,\n        IFERROR(FIND(\"/\", AI1400, FIND(\"/\", AI1400, FIND(\"/\", AI1400, FIND(\"/\", AI1400)+1)+1)+1)-FIND(\"%\", AI1400, FIND(\"/\", AI1400, FIND(\"/\", AI1400, FIND(\"/\", AI1400)+1)+1)+1)-2, LEN(AI1400)-FIND(\"%\", AI1400, FIND(\"/\", AI1400, FIND(\"/\", AI1400, FIND(\"/\", AI1400)+1)+1)+1)-1))),\n        \"\"),\n    \"\")","v":""},{"$f":"IF(AI1400 <> \"\",\n    IF(ISNUMBER(VALUE(MID(AI1400, FIND(\"/\", AI1400, FIND(\"/\", AI1400, FIND(\"/\", AI1400, FIND(\"/\", AI1400)+1)+1)+1) + 1, FIND(\"%\", AI1400, FIND(\"/\", AI1400, FIND(\"/\", AI1400, FIND(\"/\", AI1400, FIND(\"/\", AI1400)+1)+1)+1)) - FIND(\"/\", AI1400, FIND(\"/\", AI1400, FIND(\"/\", AI1400, FIND(\"/\", AI1400)+1)+1)+1) - 1))),\n        VALUE(MID(AI1400, FIND(\"/\", AI1400, FIND(\"/\", AI1400, FIND(\"/\", AI1400, FIND(\"/\", AI1400)+1)+1)+1) + 1, FIND(\"%\", AI1400, FIND(\"/\", AI1400, FIND(\"/\", AI1400, FIND(\"/\", AI1400, FIND(\"/\", AI1400)+1)+1)+1)) - FIND(\"/\", AI1400, FIND(\"/\", AI1400, FIND(\"/\", AI1400, FIND(\"/\", AI1400)+1)+1)+1) - 1)),\n        \"\"),\n    \"\")","v":""},{"$f":"IF(AI1400 = \"\", \"\",\n    IFERROR(TRIM(\n        MID(\n            AI1400,\n            FIND(\"%\", AI1400, FIND(\"/\", AI1400, FIND(\"/\", AI1400, FIND(\"/\", AI1400, FIND(\"/\", AI1400)+1)+1)+1)+1) + 1,\n            FIND(\"/\", AI1400 & \"/\", FIND(\"%\", AI1400, FIND(\"/\", AI1400, FIND(\"/\", AI1400, FIND(\"/\", AI1400, FIND(\"/\", AI1400)+1)+1)+1)+1)) -\n            FIND(\"%\", AI1400, FIND(\"/\", AI1400, FIND(\"/\", AI1400, FIND(\"/\", AI1400, FIND(\"/\", AI1400)+1)+1)+1)+1) - 1\n        )\n    ),\n    \"\")\n)","v":""},null,null,null,null,null,null,null,null,null,null,null,null,null,null,null,null,null,"ZWO"]
[null,null,null,null,null,null,null,null,null,null,null,null,null,null,null,null,{"$f":"VLOOKUP(P1401,'Input MCC'!B:C,2,0)","v":{"$error":"#N/A"}},{"$f":"VLOOKUP(P1401,'Input MCC'!B:E,4,0)","v":{"$error":"#N/A"}},null,null,null,null,null,null,null,null,null,null,null,null,null,{"$error":"#DIV/0!"},0,0,null,"","","","","","","","","","",null,null,null,null,null,null,null,null,null,null,null,null,null,null,null,null,null,"ZWO"]
[null,null,null,null,null,null,null,null,null,null,null,null,null,null,null,null,{"$f":"VLOOKUP(P1402,'Input MCC'!B:C,2,0)","v":{"$error":"#N/A"}},{"$f":"VLOOKUP(P1402,'Input MCC'!B:E,4,0)","v":{"$error":"#N/A"}},null,null,null,null,null,null,null,null,null,null,null,null,null,{"$error":"#DIV/0!"},0,0,null,"","","","","","","","","","",null,null,null,null,null,null,null,null,null,null,null,null,null,null,null,null,null,"ZWO"]
[null,null,null,null,null,null,null,null,null,null,null,null,null,null,null,null,{"$f":"VLOOKUP(P1403,'Input MCC'!B:C,2,0)","v":{"$error":"#N/A"}},{"$f":"VLOOKUP(P1403,'Input MCC'!B:E,4,0)","v":{"$error":"#N/A"}},null,null,null,null,null,null,null,null,null,null,null,null,null,{"$error":"#DIV/0!"},0,0,null,"","","","","","","","","","",null,null,null,null,null,null,null,null,null,null,null,null,null,null,null,null,null,"ZWO"]
[null,null,null,null,null,null,null,null,null,null,null,null,null,null,null,null,{"$f":"VLOOKUP(P1404,'Input MCC'!B:C,2,0)","v":{"$error":"#N/A"}},{"$f":"VLOOKUP(P1404,'Input MCC'!B:E,4,0)","v":{"$error":"#N/A"}},null,null,null,null,{"$f":"SUM(V1404:V1409)","v":0},null,null,null,null,null,null,null,null,{"$error":"#DIV/0!"},0,0,null,"","","","","","","","","","",null,null,null,null,null,null,null,null,null,null,null,null,null,null,null,null,null,"ZWO"]
[null,null,null,null,null,null,null,null,null,null,null,null,null,null,null,null,{"$f":"VLOOKUP(P1405,'Input MCC'!B:C,2,0)","v":{"$error":"#N/A"}},{"$f":"VLOOKUP(P1405,'Input MCC'!B:E,4,0)","v":{"$error":"#N/A"}},null,null,null,null,null,null,null,null,null,null,null,null,null,{"$error":"#DIV/0!"},0,0,null,"","","","","","","","","","",null,null,null,null,null,null,null,null,null,null,null,null,null,null,null,null,null,"ZWO"]
[null,null,null,null,null,null,null,null,null,null,null,null,null,null,null,null,{"$f":"VLOOKUP(P1406,'Input MCC'!B:C,2,0)","v":{"$error":"#N/A"}},{"$f":"VLOOKUP(P1406,'Input MCC'!B:E,4,0)","v":{"$error":"#N/A"}},null,null,null,null,null,null,null,null,null,null,null,null,null,{"$error":"#DIV/0!"},0,0,null,"","","","","","","","","","",null,null,null,null,null,null,null,null,null,null,null,null,null,null,null,null,null,"ZWO"]
[null,null,null,null,null,null,null,null,null,null,null,null,null,null,null,null,{"$f":"VLOOKUP(P1407,'Input MCC'!B:C,2,0)","v":{"$error":"#N/A"}},{"$f":"VLOOKUP(P1407,'Input MCC'!B:E,4,0)","v":{"$error":"#N/A"}},null,null,null,null,null,null,null,null,null,null,null,null,null,{"$error":"#DIV/0!"},0,0,null,"","","","","","","","","","",null,null,null,null,null,null,null,null,null,null,null,null,null,null,null,null,null,"ZWO"]
[null,null,null,null,null,null,null,null,null,null,null,null,null,null,null,null,{"$f":"VLOOKUP(P1408,'Input MCC'!B:C,2,0)","v":{"$error":"#N/A"}},{"$f":"VLOOKUP(P1408,'Input MCC'!B:E,4,0)","v":{"$error":"#N/A"}},null,null,null,null,null,null,null,null,null,null,null,null,null,{"$error":"#DIV/0!"},0,0,null,"","","","","","","","","","",null,null,null,null,null,null,null,null,null,null,null,null,null,null,null,null,null,"ZWO"]
[null,null,null,null,null,null,null,null,null,null,null,null,null,null,null,null,{"$f":"VLOOKUP(P1409,'Input MCC'!B:C,2,0)","v":{"$error":"#N/A"}},{"$f":"VLOOKUP(P1409,'Input MCC'!B:E,4,0)","v":{"$error":"#N/A"}},null,null,null,null,null,null,null,null,null,null,null,null,null,{"$error":"#DIV/0!"},0,0,null,"","","","","","","","","","",null,null,null,null,null,null,null,null,null,null,null,null,null,null,null,null,null,"ZWO"]
[null,null,null,null,null,null,null,null,null,null,null,null,null,null,null,null,{"$f":"VLOOKUP(P1410,'Input MCC'!B:C,2,0)","v":{"$error":"#N/A"}},{"$f":"VLOOKUP(P1410,'Input MCC'!B:E,4,0)","v":{"$error":"#N/A"}},null,null,null,null,{"$f":"SUM(V1410:V1415)","v":0},null,null,null,null,null,null,null,null,{"$error":"#DIV/0!"},0,0,null,"","","","","","","","","","",null,null,null,null,null,null,null,null,null,null,null,null,null,null,null,null,null,"ZWO"]
[null,null,null,null,null,null,null,null,null,null,null,null,null,null,null,null,{"$f":"VLOOKUP(P1411,'Input MCC'!B:C,2,0)","v":{"$error":"#N/A"}},{"$f":"VLOOKUP(P1411,'Input MCC'!B:E,4,0)","v":{"$error":"#N/A"}},null,null,null,null,null,null,null,null,null,null,null,null,null,{"$error":"#DIV/0!"},0,0,null,"","","","","","","","","","",null,null,null,null,null,null,null,null,null,null,null,null,null,null,null,null,null,"ZWO"]
[null,null,null,null,null,null,null,null,null,null,null,null,null,null,null,null,{"$f":"VLOOKUP(P1412,'Input MCC'!B:C,2,0)","v":{"$error":"#N/A"}},{"$f":"VLOOKUP(P1412,'Input MCC'!B:E,4,0)","v":{"$error":"#N/A"}},null,null,null,null,null,null,null,null,null,null,null,null,null,{"$error":"#DIV/0!"},0,0,null,"","","","","","","","","","",null,null,null,null,null,null,null,null,null,null,null,null,null,null,null,null,null,"ZWO"]
[null,null,null,null,null,null,null,null,null,null,null,null,null,null,null,null,{"$f":"VLOOKUP(P1413,'Input MCC'!B:C,2,0)","v":{"$error":"#N/A"}},{"$f":"VLOOKUP(P1413,'Input MCC'!B:E,4,0)","v":{"$error":"#N/A"}},null,null,null,null,null,null,null,null,null,null,null,null,null,{"$error":"#DIV/0!"},0,0,null,"","","","","","","","","","",null,null,null,null,null,null,null,null,null,null,null,null,null,null,null,null,null,"ZWO"]
[null,null,null,null,null,null,null,null,null,null,null,null,null,null,null,null,{"$f":"VLOOKUP(P1414,'Input MCC'!B:C,2,0)","v":{"$error":"#N/A"}},{"$f":"VLOOKUP(P1414,'Input MCC'!B:E,4,0)","v":{"$error":"#N/A"}},null,null,null,null,null,null,null,null,null,null,null,null,null,{"$error":"#DIV/0!"},0,0,null,"","","","","","","","","","",null,null,null,null,null,null,null,null,null,null,null,null,null,null,null,null,null,"ZWO"]
[null,null,null,null,null,null,null,null,null,null,null,null,null,null,null,null,{"$f":"VLOOKUP(P1415,'Input MCC'!B:C,2,0)","v":{"$error":"#N/A"}},{"$f":"VLOOKUP(P1415,'Input MCC'!B:E,4,0)","v":{"$error":"#N/A"}},null,null,null,null,null,null,null,null,null,null,null,null,null,{"$error":"#DIV/0!"},0,0,null,"","","","","","","","","","",null,null,null,null,null,null,null,null,null,null,null,null,null,null,null,null,null,"ZWO"]
[null,null,null,null,null,null,null,null,null,null,null,null,null,null,null,null,{"$f":"VLOOKUP(P1416,'Input MCC'!B:C,2,0)","v":{"$error":"#N/A"}},{"$f":"VLOOKUP(P1416,'Input MCC'!B:E,4,0)","v":{"$error":"#N/A"}},null,null,null,null,{"$f":"SUM(V1416:V1421)","v":0},null,null,null,null,null,null,null,null,{"$error":"#DIV/0!"},0,0,null,"","","","","","","","","","",null,null,null,null,null,null,null,null,null,null,null,null,null,null,null,null,null,"ZWO"]
[null,null,null,null,null,null,null,null,null,null,null,null,null,null,null,null,{"$f":"VLOOKUP(P1417,'Input MCC'!B:C,2,0)","v":{"$error":"#N/A"}},{"$f":"VLOOKUP(P1417,'Input MCC'!B:E,4,0)","v":{"$error":"#N/A"}},null,null,null,null,null,null,null,null,null,null,null,null,null,{"$error":"#DIV/0!"},0,0,null,"","","","","","","","","","",null,null,null,null,null,null,null,null,null,null,null,null,null,null,null,null,null,"ZWO"]
[null,null,null,null,null,null,null,null,null,null,null,null,null,null,null,null,{"$f":"VLOOKUP(P1418,'Input MCC'!B:C,2,0)","v":{"$error":"#N/A"}},{"$f":"VLOOKUP(P1418,'Input MCC'!B:E,4,0)","v":{"$error":"#N/A"}},null,null,null,null,null,null,null,null,null,null,null,null,null,{"$error":"#DIV/0!"},0,0,null,"","","","","","","","","","",null,null,null,null,null,null,null,null,null,null,null,null,null,null,null,null,null,"ZWO"]
[null,null,null,null,null,null,null,null,null,null,null,null,null,null,null,null,{"$f":"VLOOKUP(P1419,'Input MCC'!B:C,2,0)","v":{"$error":"#N/A"}},{"$f":"VLOOKUP(P1419,'Input MCC'!B:E,4,0)","v":{"$error":"#N/A"}},null,null,null,null,null,null,null,null,null,null,null,null,null,{"$error":"#DIV/0!"},0,0,null,"","","","","","","","","","",null,null,null,null,null,null,null,null,null,null,null,null,null,null,null,null,null,"ZWO"]
[null,null,null,null,null,null,null,null,null,null,null,null,null,null,null,null,{"$f":"VLOOKUP(P1420,'Input MCC'!B:C,2,0)","v":{"$error":"#N/A"}},{"$f":"VLOOKUP(P1420,'Input MCC'!B:E,4,0)","v":{"$error":"#N/A"}},null,null,null,null,null,null,null,null,null,null,null,null,null,{"$error":"#DIV/0!"},0,0,null,"","","","","","","","","","",null,null,null,null,null,null,null,null,null,null,null,null,null,null,null,null,null,"ZWO"]
[null,null,null,null,null,null,null,null,null,null,null,null,null,null,null,null,{"$f":"VLOOKUP(P1421,'Input MCC'!B:C,2,0)","v":{"$error":"#N/A"}},{"$f":"VLOOKUP(P1421,'Input MCC'!B:E,4,0)","v":{"$error":"#N/A"}},null,null,null,null,null,null,null,null,null,null,null,null,null,{"$error":"#DIV/0!"},0,0,null,"","","","","","","","","","",null,null,null,null,null,null,null,null,null,null,null,null,null,null,null,null,null,"ZWO"]
[null,null,null,null,null,null,null,null,null,null,null,null,null,null,null,null,{"$f":"VLOOKUP(P1422,'Input MCC'!B:C,2,0)","v":{"$error":"#N/A"}},{"$f":"VLOOKUP(P1422,'Input MCC'!B:E,4,0)","v":{"$error":"#N/A"}},null,null,null,null,{"$f":"SUM(V1422:V1427)","v":0},null,null,null,null,null,null,null,null,{"$error":"#DIV/0!"},0,0,null,"","","","","","","","","","",null,null,null,null,null,null,null,null,null,null,null,null,null,null,null,null,null,"ZWO"]
[null,null,null,null,null,null,null,null,null,null,null,null,null,null,null,null,{"$f":"VLOOKUP(P1423,'Input MCC'!B:C,2,0)","v":{"$error":"#N/A"}},{"$f":"VLOOKUP(P1423,'Input MCC'!B:E,4,0)","v":{"$error":"#N/A"}},null,null,null,null,null,null,null,null,null,null,null,null,null,{"$error":"#DIV/0!"},0,0,null,"","","","","","","","","","",null,null,null,null,null,null,null,null,null,null,null,null,null,null,null,null,null,"ZWO"]
[null,null,null,null,null,null,null,null,null,null,null,null,null,null,null,null,{"$f":"VLOOKUP(P1424,'Input MCC'!B:C,2,0)","v":{"$error":"#N/A"}},{"$f":"VLOOKUP(P1424,'Input MCC'!B:E,4,0)","v":{"$error":"#N/A"}},null,null,null,null,null,null,null,null,null,null,null,null,null,{"$error":"#DIV/0!"},0,0,null,"","","","","","","","","","",null,null,null,null,null,null,null,null,null,null,null,null,null,null,null,null,null,"ZWO"]
[null,null,null,null,null,null,null,null,null,null,null,null,null,null,null,null,{"$f":"VLOOKUP(P1425,'Input MCC'!B:C,2,0)","v":{"$error":"#N/A"}},{"$f":"VLOOKUP(P1425,'Input MCC'!B:E,4,0)","v":{"$error":"#N/A"}},null,null,null,null,null,null,null,null,null,null,null,null,null,{"$error":"#DIV/0!"},0,0,null,"","","","","","","","","","",null,null,null,null,null,null,null,null,null,null,null,null,null,null,null,null,null,"ZWO"]
[null,null,null,null,null,null,null,null,null,null,null,null,null,null,null,null,{"$f":"VLOOKUP(P1426,'Input MCC'!B:C,2,0)","v":{"$error":"#N/A"}},{"$f":"VLOOKUP(P1426,'Input MCC'!B:E,4,0)","v":{"$error":"#N/A"}},null,null,null,null,null,null,null,null,null,null,null,null,null,{"$error":"#DIV/0!"},0,0,null,"","","","","","","","","","",null,null,null,null,null,null,null,null,null,null,null,null,null,null,null,null,null,"ZWO"]
[null,null,null,null,null,null,null,null,null,null,null,null,null,null,null,null,{"$f":"VLOOKUP(P1427,'Input MCC'!B:C,2,0)","v":{"$error":"#N/A"}},{"$f":"VLOOKUP(P1427,'Input MCC'!B:E,4,0)","v":{"$error":"#N/A"}},null,null,null,null,null,null,null,null,null,null,null,null,null,{"$error":"#DIV/0!"},0,0,null,"","","","","","","","","","",null,null,null,null,null,null,null,null,null,null,null,null,null,null,null,null,null,"ZWO"]
[null,null,null,null,null,null,null,null,null,null,null,null,null,null,null,null,{"$f":"VLOOKUP(P1428,'Input MCC'!B:C,2,0)","v":{"$error":"#N/A"}},{"$f":"VLOOKUP(P1428,'Input MCC'!B:E,4,0)","v":{"$error":"#N/A"}},null,null,null,null,{"$f":"SUM(V1428:V1433)","v":0},null,null,null,null,null,null,null,null,{"$error":"#DIV/0!"},0,0,null,"","","","","","","","","","",null,null,null,null,null,null,null,null,null,null,null,null,null,null,null,null,null,"ZWO"]
[null,null,null,null,null,null,null,null,null,null,null,null,null,null,null,null,{"$f":"VLOOKUP(P1429,'Input MCC'!B:C,2,0)","v":{"$error":"#N/A"}},{"$f":"VLOOKUP(P1429,'Input MCC'!B:E,4,0)","v":{"$error":"#N/A"}},null,null,null,null,null,null,null,null,null,null,null,null,null,{"$error":"#DIV/0!"},0,0,null,"","","","","","","","","","",null,null,null,null,null,null,null,null,null,null,null,null,null,null,null,null,null,"ZWO"]
[null,null,null,null,null,null,null,null,null,null,null,null,null,null,null,null,{"$f":"VLOOKUP(P1430,'Input MCC'!B:C,2,0)","v":{"$error":"#N/A"}},{"$f":"VLOOKUP(P1430,'Input MCC'!B:E,4,0)","v":{"$error":"#N/A"}},null,null,null,null,null,null,null,null,null,null,null,null,null,{"$error":"#DIV/0!"},0,0,null,"","","","","","","","","","",null,null,null,null,null,null,null,null,null,null,null,null,null,null,null,null,null,"ZWO"]
[null,null,null,null,null,null,null,null,null,null,null,null,null,null,null,null,{"$f":"VLOOKUP(P1431,'Input MCC'!B:C,2,0)","v":{"$error":"#N/A"}},{"$f":"VLOOKUP(P1431,'Input MCC'!B:E,4,0)","v":{"$error":"#N/A"}},null,null,null,null,null,null,null,null,null,null,null,null,null,{"$error":"#DIV/0!"},0,0,null,"","","","","","","","","","",null,null,null,null,null,null,null,null,null,null,null,null,null,null,null,null,null,"ZWO"]
[null,null,null,null,null,null,null,null,null,null,null,null,null,null,null,null,{"$f":"VLOOKUP(P1432,'Input MCC'!B:C,2,0)","v":{"$error":"#N/A"}},{"$f":"VLOOKUP(P1432,'Input MCC'!B:E,4,0)","v":{"$error":"#N/A"}},null,null,null,null,null,null,null,null,null,null,null,null,null,{"$error":"#DIV/0!"},0,0,null,"","","","","","","","","","",null,null,null,null,null,null,null,null,null,null,null,null,null,null,null,null,null,"ZWO"]
[null,null,null,null,null,null,null,null,null,null,null,null,null,null,null,null,{"$f":"VLOOKUP(P1433,'Input MCC'!B:C,2,0)","v":{"$error":"#N/A"}},{"$f":"VLOOKUP(P1433,'Input MCC'!B:E,4,0)","v":{"$error":"#N/A"}},null,null,null,null,null,null,null,null,null,null,null,null,null,{"$error":"#DIV/0!"},0,0,null,"","","","","","","","","","",null,null,null,null,null,null,null,null,null,null,null,null,null,null,null,null,null,"ZWO"]
[null,null,null,null,null,null,null,null,null,null,null,null,null,null,null,null,{"$f":"VLOOKUP(P1434,'Input MCC'!B:C,2,0)","v":{"$error":"#N/A"}},{"$f":"VLOOKUP(P1434,'Input MCC'!B:E,4,0)","v":{"$error":"#N/A"}},null,null,null,null,{"$f":"SUM(V1434:V1439)","v":0},null,null,null,null,null,null,null,null,{"$error":"#DIV/0!"},0,0,null,"","","","","","","","","","",null,null,null,null,null,null,null,null,null,null,null,null,null,null,null,null,null,"ZWO"]
[null,null,null,null,null,null,null,null,null,null,null,null,null,null,null,null,{"$f":"VLOOKUP(P1435,'Input MCC'!B:C,2,0)","v":{"$error":"#N/A"}},{"$f":"VLOOKUP(P1435,'Input MCC'!B:E,4,0)","v":{"$error":"#N/A"}},null,null,null,null,null,null,null,null,null,null,null,null,null,{"$error":"#DIV/0!"},0,0,null,"","","","","","","","","","",null,null,null,null,null,null,null,null,null,null,null,null,null,null,null,null,null,"ZWO"]
[null,null,null,null,null,null,null,null,null,null,null,null,null,null,null,null,{"$f":"VLOOKUP(P1436,'Input MCC'!B:C,2,0)","v":{"$error":"#N/A"}},{"$f":"VLOOKUP(P1436,'Input MCC'!B:E,4,0)","v":{"$error":"#N/A"}},null,null,null,null,null,null,null,null,null,null,null,null,null,{"$error":"#DIV/0!"},0,0,null,"","","","","","","","","","",null,null,null,null,null,null,null,null,null,null,null,null,null,null,null,null,null,"ZWO"]
[null,null,null,null,null,null,null,null,null,null,null,null,null,null,null,null,{"$f":"VLOOKUP(P1437,'Input MCC'!B:C,2,0)","v":{"$error":"#N/A"}},{"$f":"VLOOKUP(P1437,'Input MCC'!B:E,4,0)","v":{"$error":"#N/A"}},null,null,null,null,null,null,null,null,null,null,null,null,null,{"$error":"#DIV/0!"},0,0,null,"","","","","","","","","","",null,null,null,null,null,null,null,null,null,null,null,null,null,null,null,null,null,"ZWO"]
[null,null,null,null,null,null,null,null,null,null,null,null,null,null,null,null,{"$f":"VLOOKUP(P1438,'Input MCC'!B:C,2,0)","v":{"$error":"#N/A"}},{"$f":"VLOOKUP(P1438,'Input MCC'!B:E,4,0)","v":{"$error":"#N/A"}},null,null,null,null,null,null,null,null,null,null,null,null,null,{"$error":"#DIV/0!"},0,0,null,"","","","","","","","","","",null,null,null,null,null,null,null,null,null,null,null,null,null,null,null,null,null,"ZWO"]
[null,null,null,null,null,null,null,null,null,null,null,null,null,null,null,null,{"$f":"VLOOKUP(P1439,'Input MCC'!B:C,2,0)","v":{"$error":"#N/A"}},{"$f":"VLOOKUP(P1439,'Input MCC'!B:E,4,0)","v":{"$error":"#N/A"}},null,null,null,null,null,null,null,null,null,null,null,null,null,{"$error":"#DIV/0!"},0,0,null,"","","","","","","","","","",null,null,null,null,null,null,null,null,null,null,null,null,null,null,null,null,null,"ZWO"]
[null,null,null,null,null,null,null,null,null,null,null,null,null,null,null,null,{"$f":"VLOOKUP(P1440,'Input MCC'!B:C,2,0)","v":{"$error":"#N/A"}},{"$f":"VLOOKUP(P1440,'Input MCC'!B:E,4,0)","v":{"$error":"#N/A"}},null,null,null,null,{"$f":"SUM(V1440:V1445)","v":0},null,null,null,null,null,null,null,null,{"$error":"#DIV/0!"},0,0,null,"","","","","","","","","","",null,null,null,null,null,null,null,null,null,null,null,null,null,null,null,null,null,"ZWO"]
[null,null,null,null,null,null,null,null,null,null,null,null,null,null,null,null,{"$f":"VLOOKUP(P1441,'Input MCC'!B:C,2,0)","v":{"$error":"#N/A"}},{"$f":"VLOOKUP(P1441,'Input MCC'!B:E,4,0)","v":{"$error":"#N/A"}},null,null,null,null,null,null,null,null,null,null,null,null,null,{"$error":"#DIV/0!"},0,0,null,"","","","","","","","","","",null,null,null,null,null,null,null,null,null,null,null,null,null,null,null,null,null,"ZWO"]
[null,null,null,null,null,null,null,null,null,null,null,null,null,null,null,null,{"$f":"VLOOKUP(P1442,'Input MCC'!B:C,2,0)","v":{"$error":"#N/A"}},{"$f":"VLOOKUP(P1442,'Input MCC'!B:E,4,0)","v":{"$error":"#N/A"}},null,null,null,null,null,null,null,null,null,null,null,null,null,{"$error":"#DIV/0!"},0,0,null,"","","","","","","","","","",null,null,null,null,null,null,null,null,null,null,null,null,null,null,null,null,null,"ZWO"]
[null,null,null,null,null,null,null,null,null,null,null,null,null,null,null,null,{"$f":"VLOOKUP(P1443,'Input MCC'!B:C,2,0)","v":{"$error":"#N/A"}},{"$f":"VLOOKUP(P1443,'Input MCC'!B:E,4,0)","v":{"$error":"#N/A"}},null,null,null,null,null,null,null,null,null,null,null,null,null,{"$error":"#DIV/0!"},0,0,null,"","","","","","","","","","",null,null,null,null,null,null,null,null,null,null,null,null,null,null,null,null,null,"ZWO"]
[null,null,null,null,null,null,null,null,null,null,null,null,null,null,null,null,{"$f":"VLOOKUP(P1444,'Input MCC'!B:C,2,0)","v":{"$error":"#N/A"}},{"$f":"VLOOKUP(P1444,'Input MCC'!B:E,4,0)","v":{"$error":"#N/A"}},null,null,null,null,null,null,null,null,null,null,null,null,null,{"$error":"#DIV/0!"},0,0,null,"","","","","","","","","","",null,null,null,null,null,null,null,null,null,null,null,null,null,null,null,null,null,"ZWO"]
[null,null,null,null,null,null,null,null,null,null,null,null,null,null,null,null,{"$f":"VLOOKUP(P1445,'Input MCC'!B:C,2,0)","v":{"$error":"#N/A"}},{"$f":"VLOOKUP(P1445,'Input MCC'!B:E,4,0)","v":{"$error":"#N/A"}},null,null,null,null,null,null,null,null,null,null,null,null,null,{"$error":"#DIV/0!"},0,0,null,"","","","","","","","","","",null,null,null,null,null,null,null,null,null,null,null,null,null,null,null,null,null,"ZWO"]
[null,null,null,null,null,null,null,null,null,null,null,null,null,null,null,null,{"$f":"VLOOKUP(P1446,'Input MCC'!B:C,2,0)","v":{"$error":"#N/A"}},{"$f":"VLOOKUP(P1446,'Input MCC'!B:E,4,0)","v":{"$error":"#N/A"}},null,null,null,null,{"$f":"SUM(V1446:V1451)","v":0},null,null,null,null,null,null,null,null,{"$error":"#DIV/0!"},0,0,null,"","","","","","","","","","",null,null,null,null,null,null,null,null,null,null,null,null,null,null,null,null,null,"ZWO"]
[null,null,null,null,null,null,null,null,null,null,null,null,null,null,null,null,{"$f":"VLOOKUP(P1447,'Input MCC'!B:C,2,0)","v":{"$error":"#N/A"}},{"$f":"VLOOKUP(P1447,'Input MCC'!B:E,4,0)","v":{"$error":"#N/A"}},null,null,null,null,null,null,null,null,null,null,null,null,null,{"$error":"#DIV/0!"},0,0,null,"","","","","","","","","","",null,null,null,null,null,null,null,null,null,null,null,null,null,null,null,null,null,"ZWO"]
[null,null,null,null,null,null,null,null,null,null,null,null,null,null,null,null,{"$f":"VLOOKUP(P1448,'Input MCC'!B:C,2,0)","v":{"$error":"#N/A"}},{"$f":"VLOOKUP(P1448,'Input MCC'!B:E,4,0)","v":{"$error":"#N/A"}},null,null,null,null,null,null,null,null,null,null,null,null,null,{"$error":"#DIV/0!"},0,0,null,"","","","","","","","","","",null,null,null,null,null,null,null,null,null,null,null,null,null,null,null,null,null,"ZWO"]
[null,null,null,null,null,null,null,null,null,null,null,null,null,null,null,null,{"$f":"VLOOKUP(P1449,'Input MCC'!B:C,2,0)","v":{"$error":"#N/A"}},{"$f":"VLOOKUP(P1449,'Input MCC'!B:E,4,0)","v":{"$error":"#N/A"}},null,null,null,null,null,null,null,null,null,null,null,null,null,{"$error":"#DIV/0!"},0,0,null,"","","","","","","","","","",null,null,null,null,null,null,null,null,null,null,null,null,null,null,null,null,null,"ZWO"]
[null,null,null,null,null,null,null,null,null,null,null,null,null,null,null,null,{"$f":"VLOOKUP(P1450,'Input MCC'!B:C,2,0)","v":{"$error":"#N/A"}},{"$f":"VLOOKUP(P1450,'Input MCC'!B:E,4,0)","v":{"$error":"#N/A"}},null,null,null,null,null,null,null,null,null,null,null,null,null,{"$error":"#DIV/0!"},0,0,null,"","","","","","","","","","",null,null,null,null,null,null,null,null,null,null,null,null,null,null,null,null,null,"ZWO"]
[null,null,null,null,null,null,null,null,null,null,null,null,null,null,null,null,{"$f":"VLOOKUP(P1451,'Input MCC'!B:C,2,0)","v":{"$error":"#N/A"}},{"$f":"VLOOKUP(P1451,'Input MCC'!B:E,4,0)","v":{"$error":"#N/A"}},null,null,null,null,null,null,null,null,null,null,null,null,null,{"$error":"#DIV/0!"},0,0,null,"","","","","","","","","","",null,null,null,null,null,null,null,null,null,null,null,null,null,null,null,null,null,"ZWO"]
[null,null,null,null,null,null,null,null,null,null,null,null,null,null,null,null,{"$f":"VLOOKUP(P1452,'Input MCC'!B:C,2,0)","v":{"$error":"#N/A"}},{"$f":"VLOOKUP(P1452,'Input MCC'!B:E,4,0)","v":{"$error":"#N/A"}},null,null,null,null,{"$f":"SUM(V1452:V1457)","v":0},null,null,null,null,null,null,null,null,{"$error":"#DIV/0!"},0,0,null,"","","","","","","","","","",null,null,null,null,null,null,null,null,null,null,null,null,null,null,null,null,null,"ZWO"]
[null,null,null,null,null,null,null,null,null,null,null,null,null,null,null,null,{"$f":"VLOOKUP(P1453,'Input MCC'!B:C,2,0)","v":{"$error":"#N/A"}},{"$f":"VLOOKUP(P1453,'Input MCC'!B:E,4,0)","v":{"$error":"#N/A"}},null,null,null,null,null,null,null,null,null,null,null,null,null,{"$error":"#DIV/0!"},0,0,null,"","","","","","","","","","",null,null,null,null,null,null,null,null,null,null,null,null,null,null,null,null,null,"ZWO"]
[null,null,null,null,null,null,null,null,null,null,null,null,null,null,null,null,{"$f":"VLOOKUP(P1454,'Input MCC'!B:C,2,0)","v":{"$error":"#N/A"}},{"$f":"VLOOKUP(P1454,'Input MCC'!B:E,4,0)","v":{"$error":"#N/A"}},null,null,null,null,null,null,null,null,null,null,null,null,null,{"$error":"#DIV/0!"},0,0,null,"","","","","","","","","","",null,null,null,null,null,null,null,null,null,null,null,null,null,null,null,null,null,"ZWO"]
[null,null,null,null,null,null,null,null,null,null,null,null,null,null,null,null,{"$f":"VLOOKUP(P1455,'Input MCC'!B:C,2,0)","v":{"$error":"#N/A"}},{"$f":"VLOOKUP(P1455,'Input MCC'!B:E,4,0)","v":{"$error":"#N/A"}},null,null,null,null,null,null,null,null,null,null,null,null,null,{"$error":"#DIV/0!"},0,0,null,"","","","","","","","","","",null,null,null,null,null,null,null,null,null,null,null,null,null,null,null,null,null,"ZWO"]
[null,null,null,null,null,null,null,null,null,null,null,null,null,null,null,null,{"$f":"VLOOKUP(P1456,'Input MCC'!B:C,2,0)","v":{"$error":"#N/A"}},{"$f":"VLOOKUP(P1456,'Input MCC'!B:E,4,0)","v":{"$error":"#N/A"}},null,null,null,null,null,null,null,null,null,null,null,null,null,{"$error":"#DIV/0!"},0,0,null,"","","","","","","","","","",null,null,null,null,null,null,null,null,null,null,null,null,null,null,null,null,null,"ZWO"]
[null,null,null,null,null,null,null,null,null,null,null,null,null,null,null,null,{"$f":"VLOOKUP(P1457,'Input MCC'!B:C,2,0)","v":{"$error":"#N/A"}},{"$f":"VLOOKUP(P1457,'Input MCC'!B:E,4,0)","v":{"$error":"#N/A"}},null,null,null,null,null,null,null,null,null,null,null,null,null,{"$error":"#DIV/0!"},0,0,null,"","","","","","","","","","",null,null,null,null,null,null,null,null,null,null,null,null,null,null,null,null,null,"ZWO"]
[null,null,null,null,null,null,null,null,null,null,null,null,null,null,null,null,{"$f":"VLOOKUP(P1458,'Input MCC'!B:C,2,0)","v":{"$error":"#N/A"}},{"$f":"VLOOKUP(P1458,'Input MCC'!B:E,4,0)","v":{"$error":"#N/A"}},null,null,null,null,{"$f":"SUM(V1458:V1463)","v":0},null,null,null,null,null,null,null,null,{"$error":"#DIV/0!"},0,0,null,"","","","","","","","","","",null,null,null,null,null,null,null,null,null,null,null,null,null,null,null,null,null,"ZWO"]
[null,null,null,null,null,null,null,null,null,null,null,null,null,null,null,null,{"$f":"VLOOKUP(P1459,'Input MCC'!B:C,2,0)","v":{"$error":"#N/A"}},{"$f":"VLOOKUP(P1459,'Input MCC'!B:E,4,0)","v":{"$error":"#N/A"}},null,null,null,null,null,null,null,null,null,null,null,null,null,{"$error":"#DIV/0!"},0,0,null,"","","","","","","","","","",null,null,null,null,null,null,null,null,null,null,null,null,null,null,null,null,null,"ZWO"]
[null,null,null,null,null,null,null,null,null,null,null,null,null,null,null,null,{"$f":"VLOOKUP(P1460,'Input MCC'!B:C,2,0)","v":{"$error":"#N/A"}},{"$f":"VLOOKUP(P1460,'Input MCC'!B:E,4,0)","v":{"$error":"#N/A"}},null,null,null,null,null,null,null,null,null,null,null,null,null,{"$error":"#DIV/0!"},0,0,null,"","","","","","","","","","",null,null,null,null,null,null,null,null,null,null,null,null,null,null,null,null,null,"ZWO"]
[null,null,null,null,null,null,null,null,null,null,null,null,null,null,null,null,{"$f":"VLOOKUP(P1461,'Input MCC'!B:C,2,0)","v":{"$error":"#N/A"}},{"$f":"VLOOKUP(P1461,'Input MCC'!B:E,4,0)","v":{"$error":"#N/A"}},null,null,null,null,null,null,null,null,null,null,null,null,null,{"$error":"#DIV/0!"},0,0,null,"","","","","","","","","","",null,null,null,null,null,null,null,null,null,null,null,null,null,null,null,null,null,"ZWO"]
[null,null,null,null,null,null,null,null,null,null,null,null,null,null,null,null,{"$f":"VLOOKUP(P1462,'Input MCC'!B:C,2,0)","v":{"$error":"#N/A"}},{"$f":"VLOOKUP(P1462,'Input MCC'!B:E,4,0)","v":{"$error":"#N/A"}},null,null,null,null,null,null,null,null,null,null,null,null,null,{"$error":"#DIV/0!"},0,0,null,"","","","","","","","","","",null,null,null,null,null,null,null,null,null,null,null,null,null,null,null,null,null,"ZWO"]
[null,null,null,null,null,null,null,null,null,null,null,null,null,null,null,null,{"$f":"VLOOKUP(P1463,'Input MCC'!B:C,2,0)","v":{"$error":"#N/A"}},{"$f":"VLOOKUP(P1463,'Input MCC'!B:E,4,0)","v":{"$error":"#N/A"}},null,null,null,null,null,null,null,null,null,null,null,null,null,{"$error":"#DIV/0!"},0,0,null,"","","","","","","","","","",null,null,null,null,null,null,null,null,null,null,null,null,null,null,null,null,null,"ZWO"]
[null,null,null,null,null,null,null,null,null,null,null,null,null,null,null,null,{"$f":"VLOOKUP(P1464,'Input MCC'!B:C,2,0)","v":{"$error":"#N/A"}},{"$f":"VLOOKUP(P1464,'Input MCC'!B:E,4,0)","v":{"$error":"#N/A"}},null,null,null,null,{"$f":"SUM(V1464:V1469)","v":0},null,null,null,null,null,null,null,null,{"$f":"AE1464/AC1464","v":{"$error":"#DIV/0!"}},{"$f":"V1464*AC1464","v":0},{"$f":"V1464*AE1464","v":0},null,{"$f":"IF(AI1464 <> \"\",\n    IF(ISNUMBER(VALUE(LEFT(AI1464, FIND(\"%\", AI1464)-1))),\n        VALUE(LEFT(AI1464, FIND(\"%\", AI1464)-1)),\n        \"Invalid format\"),\n    \"\")","v":""},{"$f":"IF(AI1464 <> \"\",\n    IF(ISNUMBER(VALUE(LEFT(AI1464, FIND(\"%\", AI1464)-1))) * ISNUMBER(FIND(\"%\", AI1464 & \"wol\")) > 0,\n        TRIM(MID(AI1464, FIND(\"%\", AI1464)+1, FIND(\"/\", AI1464 & \"/\")-FIND(\"%\", AI1464)-1)),\n        \"Invalid format\"),\n    \"\")","v":""},{"$f":"IF(AI1464 <> \"\",\n    IF(ISNUMBER(VALUE(MID(AI1464, FIND(\"/\", AI1464) + 1, FIND(\"%\", AI1464, FIND(\"/\", AI1464)) - FIND(\"/\", AI1464) - 1))),\n        VALUE(MID(AI1464, FIND(\"/\", AI1464) + 1, FIND(\"%\", AI1464, FIND(\"/\", AI1464)) - FIND(\"/\", AI1464) - 1)),\n        \"\"),\n    \"\")","v":""},{"$f":"IF(AI1464 <> \"\",\n    IFERROR(TRIM(MID(AI1464, FIND(\"%\", AI1464, FIND(\"/\", AI1464)+1)+2,\n        IFERROR(FIND(\"/\", AI1464 & \"/\", FIND(\"/\", AI1464)+1)-FIND(\"%\", AI1464, FIND(\"/\", AI1464)+1)-2, LEN(AI1464)-FIND(\"%\", AI1464, FIND(\"/\", AI1464)+1)-1))),\n        \"\"),\n    \"\")","v":""},{"$f":"IF(AI1464 <> \"\",\n    IF(ISNUMBER(VALUE(MID(AI1464, FIND(\"/\", AI1464, FIND(\"/\", AI1464)+1) + 1, FIND(\"%\", AI1464, FIND(\"/\", AI1464, FIND(\"/\", AI1464)+1)) - FIND(\"/\", AI1464, FIND(\"/\", AI1464)+1) - 1))),\n        VALUE(MID(AI1464, FIND(\"/\", AI1464, FIND(\"/\", AI1464)+1) + 1, FIND(\"%\", AI1464, FIND(\"/\", AI1464, FIND(\"/\", AI1464)+1)) - FIND(\"/\", AI1464, FIND(\"/\", AI1464)+1) - 1)),\n        \"\"),\n    \"\")","v":""},{"$f":"IF(AI1464 <> \"\",\n    IFERROR(\n        TRIM(MID(AI1464,\n            FIND(\"%\", AI1464, FIND(\"%\", AI1464, FIND(\"%\", AI1464)+1)+1)+1,\n            FIND(\"/\", AI1464 & \"/\", FIND(\"%\", AI1464, FIND(\"%\", AI1464, FIND(\"%\", AI1464)+1)+1))-FIND(\"%\", AI1464, FIND(\"%\", AI1464, FIND(\"%\", AI1464)+1)+1)-1)\n        ),\n        \"\"\n    ),\n    \"\"\n)","v":""},{"$f":"IF(AI1464 <> \"\",\n    IF(ISNUMBER(VALUE(MID(AI1464, FIND(\"/\", AI1464, FIND(\"/\", AI1464, FIND(\"/\", AI1464)+1)+1) + 1, FIND(\"%\", AI1464, FIND(\"/\", AI1464, FIND(\"/\", AI1464, FIND(\"/\", AI1464)+1)+1)) - FIND(\"/\", AI1464, FIND(\"/\", AI1464, FIND(\"/\", AI1464)+1)+1) - 1))),\n        VALUE(MID(AI1464, FIND(\"/\", AI1464, FIND(\"/\", AI1464, FIND(\"/\", AI1464)+1)+1) + 1, FIND(\"%\", AI1464, FIND(\"/\", AI1464, FIND(\"/\", AI1464, FIND(\"/\", AI1464)+1)+1)) - FIND(\"/\", AI1464, FIND(\"/\", AI1464, FIND(\"/\", AI1464)+1)+1) - 1)),\n        \"\"),\n    \"\")","v":""},{"$f":"IF(AI1464 <> \"\",\n    IFERROR(TRIM(MID(AI1464, FIND(\"%\", AI1464, FIND(\"/\", AI1464, FIND(\"/\", AI1464, FIND(\"/\", AI1464)+1)+1)+1)+2,\n        IFERROR(FIND(\"/\", AI1464, FIND(\"/\", AI1464, FIND(\"/\", AI1464, FIND(\"/\", AI1464)+1)+1)+1)-FIND(\"%\", AI1464, FIND(\"/\", AI1464, FIND(\"/\", AI1464, FIND(\"/\", AI1464)+1)+1)+1)-2, LEN(AI1464)-FIND(\"%\", AI1464, FIND(\"/\", AI1464, FIND(\"/\", AI1464, FIND(\"/\", AI1464)+1)+1)+1)-1))),\n        \"\"),\n    \"\")","v":""},{"$f":"IF(AI1464 <> \"\",\n    IF(ISNUMBER(VALUE(MID(AI1464, FIND(\"/\", AI1464, FIND(\"/\", AI1464, FIND(\"/\", AI1464, FIND(\"/\", AI1464)+1)+1)+1) + 1, FIND(\"%\", AI1464, FIND(\"/\", AI1464, FIND(\"/\", AI1464, FIND(\"/\", AI1464, FIND(\"/\", AI1464)+1)+1)+1)) - FIND(\"/\", AI1464, FIND(\"/\", AI1464, FIND(\"/\", AI1464, FIND(\"/\", AI1464)+1)+1)+1) - 1))),\n        VALUE(MID(AI1464, FIND(\"/\", AI1464, FIND(\"/\", AI1464, FIND(\"/\", AI1464, FIND(\"/\", AI1464)+1)+1)+1) + 1, FIND(\"%\", AI1464, FIND(\"/\", AI1464, FIND(\"/\", AI1464, FIND(\"/\", AI1464, FIND(\"/\", AI1464)+1)+1)+1)) - FIND(\"/\", AI1464, FIND(\"/\", AI1464, FIND(\"/\", AI1464, FIND(\"/\", AI1464)+1)+1)+1) - 1)),\n        \"\"),\n    \"\")","v":""},{"$f":"IF(AI1464 = \"\", \"\",\n    IFERROR(TRIM(\n        MID(\n            AI1464,\n            FIND(\"%\", AI1464, FIND(\"/\", AI1464, FIND(\"/\", AI1464, FIND(\"/\", AI1464, FIND(\"/\", AI1464)+1)+1)+1)+1) + 1,\n            FIND(\"/\", AI1464 & \"/\", FIND(\"%\", AI1464, FIND(\"/\", AI1464, FIND(\"/\", AI1464, FIND(\"/\", AI1464, FIND(\"/\", AI1464)+1)+1)+1)+1)) -\n            FIND(\"%\", AI1464, FIND(\"/\", AI1464, FIND(\"/\", AI1464, FIND(\"/\", AI1464, FIND(\"/\", AI1464)+1)+1)+1)+1) - 1\n        )\n    ),\n    \"\")\n)","v":""},null,null,null,null,null,null,null,null,null,null,null,null,null,null,null,null,null,"ZWO"]
[null,null,null,null,null,null,null,null,null,null,null,null,null,null,null,null,{"$f":"VLOOKUP(P1465,'Input MCC'!B:C,2,0)","v":{"$error":"#N/A"}},{"$f":"VLOOKUP(P1465,'Input MCC'!B:E,4,0)","v":{"$error":"#N/A"}},null,null,null,null,null,null,null,null,null,null,null,null,null,{"$error":"#DIV/0!"},0,0,null,"","","","","","","","","","",null,null,null,null,null,null,null,null,null,null,null,null,null,null,null,null,null,"ZWO"]
[null,null,null,null,null,null,null,null,null,null,null,null,null,null,null,null,{"$f":"VLOOKUP(P1466,'Input MCC'!B:C,2,0)","v":{"$error":"#N/A"}},{"$f":"VLOOKUP(P1466,'Input MCC'!B:E,4,0)","v":{"$error":"#N/A"}},null,null,null,null,null,null,null,null,null,null,null,null,null,{"$error":"#DIV/0!"},0,0,null,"","","","","","","","","","",null,null,null,null,null,null,null,null,null,null,null,null,null,null,null,null,null,"ZWO"]
[null,null,null,null,null,null,null,null,null,null,null,null,null,null,null,null,{"$f":"VLOOKUP(P1467,'Input MCC'!B:C,2,0)","v":{"$error":"#N/A"}},{"$f":"VLOOKUP(P1467,'Input MCC'!B:E,4,0)","v":{"$error":"#N/A"}},null,null,null,null,null,null,null,null,null,null,null,null,null,{"$error":"#DIV/0!"},0,0,null,"","","","","","","","","","",null,null,null,null,null,null,null,null,null,null,null,null,null,null,null,null,null,"ZWO"]
[null,null,null,null,null,null,null,null,null,null,null,null,null,null,null,null,{"$f":"VLOOKUP(P1468,'Input MCC'!B:C,2,0)","v":{"$error":"#N/A"}},{"$f":"VLOOKUP(P1468,'Input MCC'!B:E,4,0)","v":{"$error":"#N/A"}},null,null,null,null,null,null,null,null,null,null,null,null,null,{"$error":"#DIV/0!"},0,0,null,"","","","","","","","","","",null,null,null,null,null,null,null,null,null,null,null,null,null,null,null,null,null,"ZWO"]
[null,null,null,null,null,null,null,null,null,null,null,null,null,null,null,null,{"$f":"VLOOKUP(P1469,'Input MCC'!B:C,2,0)","v":{"$error":"#N/A"}},{"$f":"VLOOKUP(P1469,'Input MCC'!B:E,4,0)","v":{"$error":"#N/A"}},null,null,null,null,null,null,null,null,null,null,null,null,null,{"$error":"#DIV/0!"},0,0,null,"","","","","","","","","","",null,null,null,null,null,null,null,null,null,null,null,null,null,null,null,null,null,"ZWO"]
[null,null,null,null,null,null,null,null,null,null,null,null,null,null,null,null,{"$f":"VLOOKUP(P1470,'Input MCC'!B:C,2,0)","v":{"$error":"#N/A"}},{"$f":"VLOOKUP(P1470,'Input MCC'!B:E,4,0)","v":{"$error":"#N/A"}},null,null,null,null,{"$f":"SUM(V1470:V1475)","v":0},null,null,null,null,null,null,null,null,{"$error":"#DIV/0!"},0,0,null,"","","","","","","","","","",null,null,null,null,null,null,null,null,null,null,null,null,null,null,null,null,null,"ZWO"]
[null,null,null,null,null,null,null,null,null,null,null,null,null,null,null,null,{"$f":"VLOOKUP(P1471,'Input MCC'!B:C,2,0)","v":{"$error":"#N/A"}},{"$f":"VLOOKUP(P1471,'Input MCC'!B:E,4,0)","v":{"$error":"#N/A"}},null,null,null,null,null,null,null,null,null,null,null,null,null,{"$error":"#DIV/0!"},0,0,null,"","","","","","","","","","",null,null,null,null,null,null,null,null,null,null,null,null,null,null,null,null,null,"ZWO"]
[null,null,null,null,null,null,null,null,null,null,null,null,null,null,null,null,{"$f":"VLOOKUP(P1472,'Input MCC'!B:C,2,0)","v":{"$error":"#N/A"}},{"$f":"VLOOKUP(P1472,'Input MCC'!B:E,4,0)","v":{"$error":"#N/A"}},null,null,null,null,null,null,null,null,null,null,null,null,null,{"$error":"#DIV/0!"},0,0,null,"","","","","","","","","","",null,null,null,null,null,null,null,null,null,null,null,null,null,null,null,null,null,"ZWO"]
[null,null,null,null,null,null,null,null,null,null,null,null,null,null,null,null,{"$f":"VLOOKUP(P1473,'Input MCC'!B:C,2,0)","v":{"$error":"#N/A"}},{"$f":"VLOOKUP(P1473,'Input MCC'!B:E,4,0)","v":{"$error":"#N/A"}},null,null,null,null,null,null,null,null,null,null,null,null,null,{"$error":"#DIV/0!"},0,0,null,"","","","","","","","","","",null,null,null,null,null,null,null,null,null,null,null,null,null,null,null,null,null,"ZWO"]
[null,null,null,null,null,null,null,null,null,null,null,null,null,null,null,null,{"$f":"VLOOKUP(P1474,'Input MCC'!B:C,2,0)","v":{"$error":"#N/A"}},{"$f":"VLOOKUP(P1474,'Input MCC'!B:E,4,0)","v":{"$error":"#N/A"}},null,null,null,null,null,null,null,null,null,null,null,null,null,{"$error":"#DIV/0!"},0,0,null,"","","","","","","","","","",null,null,null,null,null,null,null,null,null,null,null,null,null,null,null,null,null,"ZWO"]
[null,null,null,null,null,null,null,null,null,null,null,null,null,null,null,null,{"$f":"VLOOKUP(P1475,'Input MCC'!B:C,2,0)","v":{"$error":"#N/A"}},{"$f":"VLOOKUP(P1475,'Input MCC'!B:E,4,0)","v":{"$error":"#N/A"}},null,null,null,null,null,null,null,null,null,null,null,null,null,{"$error":"#DIV/0!"},0,0,null,"","","","","","","","","","",null,null,null,null,null,null,null,null,null,null,null,null,null,null,null,null,null,"ZWO"]
[null,null,null,null,null,null,null,null,null,null,null,null,null,null,null,null,{"$f":"VLOOKUP(P1476,'Input MCC'!B:C,2,0)","v":{"$error":"#N/A"}},{"$f":"VLOOKUP(P1476,'Input MCC'!B:E,4,0)","v":{"$error":"#N/A"}},null,null,null,null,{"$f":"SUM(V1476:V1481)","v":0},null,null,null,null,null,null,null,null,{"$error":"#DIV/0!"},0,0,null,"","","","","","","","","","",null,null,null,null,null,null,null,null,null,null,null,null,null,null,null,null,null,"ZWO"]
[null,null,null,null,null,null,null,null,null,null,null,null,null,null,null,null,{"$f":"VLOOKUP(P1477,'Input MCC'!B:C,2,0)","v":{"$error":"#N/A"}},{"$f":"VLOOKUP(P1477,'Input MCC'!B:E,4,0)","v":{"$error":"#N/A"}},null,null,null,null,null,null,null,null,null,null,null,null,null,{"$error":"#DIV/0!"},0,0,null,"","","","","","","","","","",null,null,null,null,null,null,null,null,null,null,null,null,null,null,null,null,null,"ZWO"]
[null,null,null,null,null,null,null,null,null,null,null,null,null,null,null,null,{"$f":"VLOOKUP(P1478,'Input MCC'!B:C,2,0)","v":{"$error":"#N/A"}},{"$f":"VLOOKUP(P1478,'Input MCC'!B:E,4,0)","v":{"$error":"#N/A"}},null,null,null,null,null,null,null,null,null,null,null,null,null,{"$error":"#DIV/0!"},0,0,null,"","","","","","","","","","",null,null,null,null,null,null,null,null,null,null,null,null,null,null,null,null,null,"ZWO"]
[null,null,null,null,null,null,null,null,null,null,null,null,null,null,null,null,{"$f":"VLOOKUP(P1479,'Input MCC'!B:C,2,0)","v":{"$error":"#N/A"}},{"$f":"VLOOKUP(P1479,'Input MCC'!B:E,4,0)","v":{"$error":"#N/A"}},null,null,null,null,null,null,null,null,null,null,null,null,null,{"$error":"#DIV/0!"},0,0,null,"","","","","","","","","","",null,null,null,null,null,null,null,null,null,null,null,null,null,null,null,null,null,"ZWO"]
[null,null,null,null,null,null,null,null,null,null,null,null,null,null,null,null,{"$f":"VLOOKUP(P1480,'Input MCC'!B:C,2,0)","v":{"$error":"#N/A"}},{"$f":"VLOOKUP(P1480,'Input MCC'!B:E,4,0)","v":{"$error":"#N/A"}},null,null,null,null,null,null,null,null,null,null,null,null,null,{"$error":"#DIV/0!"},0,0,null,"","","","","","","","","","",null,null,null,null,null,null,null,null,null,null,null,null,null,null,null,null,null,"ZWO"]
[null,null,null,null,null,null,null,null,null,null,null,null,null,null,null,null,{"$f":"VLOOKUP(P1481,'Input MCC'!B:C,2,0)","v":{"$error":"#N/A"}},{"$f":"VLOOKUP(P1481,'Input MCC'!B:E,4,0)","v":{"$error":"#N/A"}},null,null,null,null,null,null,null,null,null,null,null,null,null,{"$error":"#DIV/0!"},0,0,null,"","","","","","","","","","",null,null,null,null,null,null,null,null,null,null,null,null,null,null,null,null,null,"ZWO"]
[null,null,null,null,null,null,null,null,null,null,null,null,null,null,null,null,{"$f":"VLOOKUP(P1482,'Input MCC'!B:C,2,0)","v":{"$error":"#N/A"}},{"$f":"VLOOKUP(P1482,'Input MCC'!B:E,4,0)","v":{"$error":"#N/A"}},null,null,null,null,{"$f":"SUM(V1482:V1487)","v":0},null,null,null,null,null,null,null,null,{"$error":"#DIV/0!"},0,0,null,"","","","","","","","","","",null,null,null,null,null,null,null,null,null,null,null,null,null,null,null,null,null,"ZWO"]
[null,null,null,null,null,null,null,null,null,null,null,null,null,null,null,null,{"$f":"VLOOKUP(P1483,'Input MCC'!B:C,2,0)","v":{"$error":"#N/A"}},{"$f":"VLOOKUP(P1483,'Input MCC'!B:E,4,0)","v":{"$error":"#N/A"}},null,null,null,null,null,null,null,null,null,null,null,null,null,{"$error":"#DIV/0!"},0,0,null,"","","","","","","","","","",null,null,null,null,null,null,null,null,null,null,null,null,null,null,null,null,null,"ZWO"]
[null,null,null,null,null,null,null,null,null,null,null,null,null,null,null,null,{"$f":"VLOOKUP(P1484,'Input MCC'!B:C,2,0)","v":{"$error":"#N/A"}},{"$f":"VLOOKUP(P1484,'Input MCC'!B:E,4,0)","v":{"$error":"#N/A"}},null,null,null,null,null,null,null,null,null,null,null,null,null,{"$error":"#DIV/0!"},0,0,null,"","","","","","","","","","",null,null,null,null,null,null,null,null,null,null,null,null,null,null,null,null,null,"ZWO"]
[null,null,null,null,null,null,null,null,null,null,null,null,null,null,null,null,{"$f":"VLOOKUP(P1485,'Input MCC'!B:C,2,0)","v":{"$error":"#N/A"}},{"$f":"VLOOKUP(P1485,'Input MCC'!B:E,4,0)","v":{"$error":"#N/A"}},null,null,null,null,null,null,null,null,null,null,null,null,null,{"$error":"#DIV/0!"},0,0,null,"","","","","","","","","","",null,null,null,null,null,null,null,null,null,null,null,null,null,null,null,null,null,"ZWO"]
[null,null,null,null,null,null,null,null,null,null,null,null,null,null,null,null,{"$f":"VLOOKUP(P1486,'Input MCC'!B:C,2,0)","v":{"$error":"#N/A"}},{"$f":"VLOOKUP(P1486,'Input MCC'!B:E,4,0)","v":{"$error":"#N/A"}},null,null,null,null,null,null,null,null,null,null,null,null,null,{"$error":"#DIV/0!"},0,0,null,"","","","","","","","","","",null,null,null,null,null,null,null,null,null,null,null,null,null,null,null,null,null,"ZWO"]
[null,null,null,null,null,null,null,null,null,null,null,null,null,null,null,null,{"$f":"VLOOKUP(P1487,'Input MCC'!B:C,2,0)","v":{"$error":"#N/A"}},{"$f":"VLOOKUP(P1487,'Input MCC'!B:E,4,0)","v":{"$error":"#N/A"}},null,null,null,null,null,null,null,null,null,null,null,null,null,{"$error":"#DIV/0!"},0,0,null,"","","","","","","","","","",null,null,null,null,null,null,null,null,null,null,null,null,null,null,null,null,null,"ZWO"]
[null,null,null,null,null,null,null,null,null,null,null,null,null,null,null,null,{"$f":"VLOOKUP(P1488,'Input MCC'!B:C,2,0)","v":{"$error":"#N/A"}},{"$f":"VLOOKUP(P1488,'Input MCC'!B:E,4,0)","v":{"$error":"#N/A"}},null,null,null,null,{"$f":"SUM(V1488:V1493)","v":0},null,null,null,null,null,null,null,null,{"$error":"#DIV/0!"},0,0,null,"","","","","","","","","","",null,null,null,null,null,null,null,null,null,null,null,null,null,null,null,null,null,"ZWO"]
[null,null,null,null,null,null,null,null,null,null,null,null,null,null,null,null,{"$f":"VLOOKUP(P1489,'Input MCC'!B:C,2,0)","v":{"$error":"#N/A"}},{"$f":"VLOOKUP(P1489,'Input MCC'!B:E,4,0)","v":{"$error":"#N/A"}},null,null,null,null,null,null,null,null,null,null,null,null,null,{"$error":"#DIV/0!"},0,0,null,"","","","","","","","","","",null,null,null,null,null,null,null,null,null,null,null,null,null,null,null,null,null,"ZWO"]
[null,null,null,null,null,null,null,null,null,null,null,null,null,null,null,null,{"$f":"VLOOKUP(P1490,'Input MCC'!B:C,2,0)","v":{"$error":"#N/A"}},{"$f":"VLOOKUP(P1490,'Input MCC'!B:E,4,0)","v":{"$error":"#N/A"}},null,null,null,null,null,null,null,null,null,null,null,null,null,{"$error":"#DIV/0!"},0,0,null,"","","","","","","","","","",null,null,null,null,null,null,null,null,null,null,null,null,null,null,null,null,null,"ZWO"]
[null,null,null,null,null,null,null,null,null,null,null,null,null,null,null,null,{"$f":"VLOOKUP(P1491,'Input MCC'!B:C,2,0)","v":{"$error":"#N/A"}},{"$f":"VLOOKUP(P1491,'Input MCC'!B:E,4,0)","v":{"$error":"#N/A"}},null,null,null,null,null,null,null,null,null,null,null,null,null,{"$error":"#DIV/0!"},0,0,null,"","","","","","","","","","",null,null,null,null,null,null,null,null,null,null,null,null,null,null,null,null,null,"ZWO"]
[null,null,null,null,null,null,null,null,null,null,null,null,null,null,null,null,{"$f":"VLOOKUP(P1492,'Input MCC'!B:C,2,0)","v":{"$error":"#N/A"}},{"$f":"VLOOKUP(P1492,'Input MCC'!B:E,4,0)","v":{"$error":"#N/A"}},null,null,null,null,null,null,null,null,null,null,null,null,null,{"$error":"#DIV/0!"},0,0,null,"","","","","","","","","","",null,null,null,null,null,null,null,null,null,null,null,null,null,null,null,null,null,"ZWO"]
[null,null,null,null,null,null,null,null,null,null,null,null,null,null,null,null,{"$f":"VLOOKUP(P1493,'Input MCC'!B:C,2,0)","v":{"$error":"#N/A"}},{"$f":"VLOOKUP(P1493,'Input MCC'!B:E,4,0)","v":{"$error":"#N/A"}},null,null,null,null,null,null,null,null,null,null,null,null,null,{"$error":"#DIV/0!"},0,0,null,"","","","","","","","","","",null,null,null,null,null,null,null,null,null,null,null,null,null,null,null,null,null,"ZWO"]
[null,null,null,null,null,null,null,null,null,null,null,null,null,null,null,null,{"$f":"VLOOKUP(P1494,'Input MCC'!B:C,2,0)","v":{"$error":"#N/A"}},{"$f":"VLOOKUP(P1494,'Input MCC'!B:E,4,0)","v":{"$error":"#N/A"}},null,null,null,null,{"$f":"SUM(V1494:V1499)","v":0},null,null,null,null,null,null,null,null,{"$error":"#DIV/0!"},0,0,null,"","","","","","","","","","",null,null,null,null,null,null,null,null,null,null,null,null,null,null,null,null,null,"ZWO"]
[null,null,null,null,null,null,null,null,null,null,null,null,null,null,null,null,{"$f":"VLOOKUP(P1495,'Input MCC'!B:C,2,0)","v":{"$error":"#N/A"}},{"$f":"VLOOKUP(P1495,'Input MCC'!B:E,4,0)","v":{"$error":"#N/A"}},null,null,null,null,null,null,null,null,null,null,null,null,null,{"$error":"#DIV/0!"},0,0,null,"","","","","","","","","","",null,null,null,null,null,null,null,null,null,null,null,null,null,null,null,null,null,"ZWO"]
[null,null,null,null,null,null,null,null,null,null,null,null,null,null,null,null,{"$f":"VLOOKUP(P1496,'Input MCC'!B:C,2,0)","v":{"$error":"#N/A"}},{"$f":"VLOOKUP(P1496,'Input MCC'!B:E,4,0)","v":{"$error":"#N/A"}},null,null,null,null,null,null,null,null,null,null,null,null,null,{"$error":"#DIV/0!"},0,0,null,"","","","","","","","","","",null,null,null,null,null,null,null,null,null,null,null,null,null,null,null,null,null,"ZWO"]
[null,null,null,null,null,null,null,null,null,null,null,null,null,null,null,null,{"$f":"VLOOKUP(P1497,'Input MCC'!B:C,2,0)","v":{"$error":"#N/A"}},{"$f":"VLOOKUP(P1497,'Input MCC'!B:E,4,0)","v":{"$error":"#N/A"}},null,null,null,null,null,null,null,null,null,null,null,null,null,{"$error":"#DIV/0!"},0,0,null,"","","","","","","","","","",null,null,null,null,null,null,null,null,null,null,null,null,null,null,null,null,null,"ZWO"]
[null,null,null,null,null,null,null,null,null,null,null,null,null,null,null,null,{"$f":"VLOOKUP(P1498,'Input MCC'!B:C,2,0)","v":{"$error":"#N/A"}},{"$f":"VLOOKUP(P1498,'Input MCC'!B:E,4,0)","v":{"$error":"#N/A"}},null,null,null,null,null,null,null,null,null,null,null,null,null,{"$error":"#DIV/0!"},0,0,null,"","","","","","","","","","",null,null,null,null,null,null,null,null,null,null,null,null,null,null,null,null,null,"ZWO"]
[null,null,null,null,null,null,null,null,null,null,null,null,null,null,null,null,{"$f":"VLOOKUP(P1499,'Input MCC'!B:C,2,0)","v":{"$error":"#N/A"}},{"$f":"VLOOKUP(P1499,'Input MCC'!B:E,4,0)","v":{"$error":"#N/A"}},null,null,null,null,null,null,null,null,null,null,null,null,null,{"$error":"#DIV/0!"},0,0,null,"","","","","","","","","","",null,null,null,null,null,null,null,null,null,null,null,null,null,null,null,null,null,"ZWO"]

{"sheet":"2. Content (NL)","index":2,"n_rows":1500,"n_cols":64,"rows_kept":1500,"cut":false,"hidden":false,"merged":[[0,47,0,63],[0,0,0,4],[0,5,0,20],[0,21,0,28],[0,29,0,34],[0,35,0,46]]}
["PRODUCTINFORMATIE",null,null,null,null,"ALGEMENE CONTENT",null,null,null,null,null,null,null,null,null,null,null,null,null,null,null,"CONTENT BROEKEN/ROKKEN",null,null,null,null,null,null,null,"CONTENT TOPS/JURKEN",null,null,null,null,null,"JASSEN",null,null,null,null,null,null,null,null,null,null,null,"SCHOENEN"]
["Wehkampartikelnummer","Leveranciers artikelnummer","AX Inkooptekst","Inkoopkleur","EAN","Filterkleur","Kleur","Filtermateriaal","Materiaal ","Materiaaltechnologie","Print","Sluiting","Wasvoorschrift","Droogvoorschrift","Strijkvoorschrift","Multi: Details","Multi: Assortiment","Multi: Soort zak","Sneeuwvanger","Multi: Sport of gebruiksmoment","Gebruiksmoment","Pasvorm/fit","Waist ","Lengte sportbroek","Soort sportbroek","Multi: Details broekspijpen","Multi: Soort broek","Multi: Soort rok","Multi: Soort korte broek","Kraagvorm","Mouwlengte","Achterkant","Multi: Soort jurk","Multi: Soort trui","Multi: Soort vest","Multi: Seizoen","Multi: Soort jas","Multi: Details mouwen","PFC-vrij","Recco-systeem","Ventilatieritsen","Voering","Waterafstotend","Waterdicht","Ademend vermogen","Waterkolom","Winddicht","Binnenzool schoenen","Buitenzool schoenen","Hakhoogte (cm)","Hakvorm","Demping schoenen","Uitneembaar voetbed","Multi: Eigenschappen voetbed","Multi: Eigenschappen zool","Materiaal buitenkant","Materiaal voering","Winter gripsysteem","Sok instap","Model schoenen","Categorie outdoorschoen","Terrein (Outdoor schoenen)","Terrein (Voetbal schoenen)","Type hardloopschoen"]
[null,{"$f":"IF('1. Order'!J6=\"\",\"\",'1. Order'!J6)","v":""},{"$f":"IF('1. Order'!K6=\"\",\"\",'1. Order'!K6)","v":""},{"$f":"IF('1. Order'!L6=\"\",\"\",'1. Order'!L6)","v":""},{"$f":"IF('1. Order'!N6=\"\",\"\",'1. Order'!N6)","v":""},null,null,{"$f":"IF('1. Order'!AV6=\"\",\"\",'1. Order'!AV6)","v":""},{"$f":"IF('1. Order'!AI6=\"\",\"\",'1. Order'!AI6)","v":""}]
[{"$f":"IF('1. Order'!B7=\"\",\"\",'1. Order'!B7)","v":""},{"$f":"IF('1. Order'!J7=\"\",\"\",'1. Order'!J7)","v":""},{"$f":"IF('1. Order'!K7=\"\",\"\",'1. Order'!K7)","v":""},{"$f":"IF('1. Order'!L7=\"\",\"\",'1. Order'!L7)","v":""},{"$f":"IF('1. Order'!N7=\"\",\"\",'1. Order'!N7)","v":""},null,null,{"$f":"IF('1. Order'!AV7=\"\",\"\",'1. Order'!AV7)","v":""},{"$f":"IF('1. Order'!AI7=\"\",\"\",'1. Order'!AI7)","v":""}]
[{"$f":"IF('1. Order'!B8=\"\",\"\",'1. Order'!B8)","v":""},{"$f":"IF('1. Order'!J8=\"\",\"\",'1. Order'!J8)","v":""},{"$f":"IF('1. Order'!K8=\"\",\"\",'1. Order'!K8)","v":""},{"$f":"IF('1. Order'!L8=\"\",\"\",'1. Order'!L8)","v":""},{"$f":"IF('1. Order'!N8=\"\",\"\",'1. Order'!N8)","v":""},null,null,{"$f":"IF('1. Order'!AV8=\"\",\"\",'1. Order'!AV8)","v":""},{"$f":"IF('1. Order'!AI8=\"\",\"\",'1. Order'!AI8)","v":""}]
[{"$f":"IF('1. Order'!B9=\"\",\"\",'1. Order'!B9)","v":""},{"$f":"IF('1. Order'!J9=\"\",\"\",'1. Order'!J9)","v":""},{"$f":"IF('1. Order'!K9=\"\",\"\",'1. Order'!K9)","v":""},{"$f":"IF('1. Order'!L9=\"\",\"\",'1. Order'!L9)","v":""},{"$f":"IF('1. Order'!N9=\"\",\"\",'1. Order'!N9)","v":""},null,null,{"$f":"IF('1. Order'!AV9=\"\",\"\",'1. Order'!AV9)","v":""},{"$f":"IF('1. Order'!AI9=\"\",\"\",'1. Order'!AI9)","v":""}]
[{"$f":"IF('1. Order'!B10=\"\",\"\",'1. Order'!B10)","v":""},{"$f":"IF('1. Order'!J10=\"\",\"\",'1. Order'!J10)","v":""},{"$f":"IF('1. Order'!K10=\"\",\"\",'1. Order'!K10)","v":""},{"$f":"IF('1. Order'!L10=\"\",\"\",'1. Order'!L10)","v":""},{"$f":"IF('1. Order'!N10=\"\",\"\",'1. Order'!N10)","v":""},null,null,{"$f":"IF('1. Order'!AV10=\"\",\"\",'1. Order'!AV10)","v":""},{"$f":"IF('1. Order'!AI10=\"\",\"\",'1. Order'!AI10)","v":""}]
[{"$f":"IF('1. Order'!B11=\"\",\"\",'1. Order'!B11)","v":""},{"$f":"IF('1. Order'!J11=\"\",\"\",'1. Order'!J11)","v":""},{"$f":"IF('1. Order'!K11=\"\",\"\",'1. Order'!K11)","v":""},{"$f":"IF('1. Order'!L11=\"\",\"\",'1. Order'!L11)","v":""},{"$f":"IF('1. Order'!N11=\"\",\"\",'1. Order'!N11)","v":""},null,null,{"$f":"IF('1. Order'!AV11=\"\",\"\",'1. Order'!AV11)","v":""},{"$f":"IF('1. Order'!AI11=\"\",\"\",'1. Order'!AI11)","v":""}]
[{"$f":"IF('1. Order'!B12=\"\",\"\",'1. Order'!B12)","v":""},{"$f":"IF('1. Order'!J12=\"\",\"\",'1. Order'!J12)","v":""},{"$f":"IF('1. Order'!K12=\"\",\"\",'1. Order'!K12)","v":""},{"$f":"IF('1. Order'!L12=\"\",\"\",'1. Order'!L12)","v":""},{"$f":"IF('1. Order'!N12=\"\",\"\",'1. Order'!N12)","v":""},null,null,{"$f":"IF('1. Order'!AV12=\"\",\"\",'1. Order'!AV12)","v":""},{"$f":"IF('1. Order'!AI12=\"\",\"\",'1. Order'!AI12)","v":""}]
[{"$f":"IF('1. Order'!B13=\"\",\"\",'1. Order'!B13)","v":""},{"$f":"IF('1. Order'!J13=\"\",\"\",'1. Order'!J13)","v":""},{"$f":"IF('1. Order'!K13=\"\",\"\",'1. Order'!K13)","v":""},{"$f":"IF('1. Order'!L13=\"\",\"\",'1. Order'!L13)","v":""},{"$f":"IF('1. Order'!N13=\"\",\"\",'1. Order'!N13)","v":""},null,null,{"$f":"IF('1. Order'!AV13=\"\",\"\",'1. Order'!AV13)","v":""},{"$f":"IF('1. Order'!AI13=\"\",\"\",'1. Order'!AI13)","v":""}]
[{"$f":"IF('1. Order'!B14=\"\",\"\",'1. Order'!B14)","v":""},{"$f":"IF('1. Order'!J14=\"\",\"\",'1. Order'!J14)","v":""},{"$f":"IF('1. Order'!K14=\"\",\"\",'1. Order'!K14)","v":""},{"$f":"IF('1. Order'!L14=\"\",\"\",'1. Order'!L14)","v":""},{"$f":"IF('1. Order'!N14=\"\",\"\",'1. Order'!N14)","v":""},null,null,{"$f":"IF('1. Order'!AV14=\"\",\"\",'1. Order'!AV14)","v":""},{"$f":"IF('1. Order'!AI14=\"\",\"\",'1. Order'!AI14)","v":""}]
[{"$f":"IF('1. Order'!B15=\"\",\"\",'1. Order'!B15)","v":""},{"$f":"IF('1. Order'!J15=\"\",\"\",'1. Order'!J15)","v":""},{"$f":"IF('1. Order'!K15=\"\",\"\",'1. Order'!K15)","v":""},{"$f":"IF('1. Order'!L15=\"\",\"\",'1. Order'!L15)","v":""},{"$f":"IF('1. Order'!N15=\"\",\"\",'1. Order'!N15)","v":""},null,null,{"$f":"IF('1. Order'!AV15=\"\",\"\",'1. Order'!AV15)","v":""},{"$f":"IF('1. Order'!AI15=\"\",\"\",'1. Order'!AI15)","v":""}]
[{"$f":"IF('1. Order'!B16=\"\",\"\",'1. Order'!B16)","v":""},{"$f":"IF('1. Order'!J16=\"\",\"\",'1. Order'!J16)","v":""},{"$f":"IF('1. Order'!K16=\"\",\"\",'1. Order'!K16)","v":""},{"$f":"IF('1. Order'!L16=\"\",\"\",'1. Order'!L16)","v":""},{"$f":"IF('1. Order'!N16=\"\",\"\",'1. Order'!N16)","v":""},null,null,{"$f":"IF('1. Order'!AV16=\"\",\"\",'1. Order'!AV16)","v":""},{"$f":"IF('1. Order'!AI16=\"\",\"\",'1. Order'!AI16)","v":""}]
[{"$f":"IF('1. Order'!B17=\"\",\"\",'1. Order'!B17)","v":""},{"$f":"IF('1. Order'!J17=\"\",\"\",'1. Order'!J17)","v":""},{"$f":"IF('1. Order'!K17=\"\",\"\",'1. Order'!K17)","v":""},{"$f":"IF('1. Order'!L17=\"\",\"\",'1. Order'!L17)","v":""},{"$f":"IF('1. Order'!N17=\"\",\"\",'1. Order'!N17)","v":""},null,null,{"$f":"IF('1. Order'!AV17=\"\",\"\",'1. Order'!AV17)","v":""},{"$f":"IF('1. Order'!AI17=\"\",\"\",'1. Order'!AI17)","v":""}]
[{"$f":"IF('1. Order'!B18=\"\",\"\",'1. Order'!B18)","v":""},{"$f":"IF('1. Order'!J18=\"\",\"\",'1. Order'!J18)","v":""},{"$f":"IF('1. Order'!K18=\"\",\"\",'1. Order'!K18)","v":""},{"$f":"IF('1. Order'!L18=\"\",\"\",'1. Order'!L18)","v":""},{"$f":"IF('1. Order'!N18=\"\",\"\",'1. Order'!N18)","v":""},null,null,{"$f":"IF('1. Order'!AV18=\"\",\"\",'1. Order'!AV18)","v":""},{"$f":"IF('1. Order'!AI18=\"\",\"\",'1. Order'!AI18)","v":""}]
[{"$f":"IF('1. Order'!B19=\"\",\"\",'1. Order'!B19)","v":""},{"$f":"IF('1. Order'!J19=\"\",\"\",'1. Order'!J19)","v":""},{"$f":"IF('1. Order'!K19=\"\",\"\",'1. Order'!K19)","v":""},{"$f":"IF('1. Order'!L19=\"\",\"\",'1. Order'!L19)","v":""},{"$f":"IF('1. Order'!N19=\"\",\"\",'1. Order'!N19)","v":""},null,null,{"$f":"IF('1. Order'!AV19=\"\",\"\",'1. Order'!AV19)","v":""},{"$f":"IF('1. Order'!AI19=\"\",\"\",'1. Order'!AI19)","v":""}]
[{"$f":"IF('1. Order'!B20=\"\",\"\",'1. Order'!B20)","v":""},{"$f":"IF('1. Order'!J20=\"\",\"\",'1. Order'!J20)","v":""},{"$f":"IF('1. Order'!K20=\"\",\"\",'1. Order'!K20)","v":""},{"$f":"IF('1. Order'!L20=\"\",\"\",'1. Order'!L20)","v":""},{"$f":"IF('1. Order'!N20=\"\",\"\",'1. Order'!N20)","v":""},null,null,{"$f":"IF('1. Order'!AV20=\"\",\"\",'1. Order'!AV20)","v":""},{"$f":"IF('1. Order'!AI20=\"\",\"\",'1. Order'!AI20)","v":""}]
[{"$f":"IF('1. Order'!B21=\"\",\"\",'1. Order'!B21)","v":""},{"$f":"IF('1. Order'!J21=\"\",\"\",'1. Order'!J21)","v":""},{"$f":"IF('1. Order'!K21=\"\",\"\",'1. Order'!K21)","v":""},{"$f":"IF('1. Order'!L21=\"\",\"\",'1. Order'!L21)","v":""},{"$f":"IF('1. Order'!N21=\"\",\"\",'1. Order'!N21)","v":""},null,null,{"$f":"IF('1. Order'!AV21=\"\",\"\",'1. Order'!AV21)","v":""},{"$f":"IF('1. Order'!AI21=\"\",\"\",'1. Order'!AI21)","v":""}]
[{"$f":"IF('1. Order'!B22=\"\",\"\",'1. Order'!B22)","v":""},{"$f":"IF('1. Order'!J22=\"\",\"\",'1. Order'!J22)","v":""},{"$f":"IF('1. Order'!K22=\"\",\"\",'1. Order'!K22)","v":""},{"$f":"IF('1. Order'!L22=\"\",\"\",'1. Order'!L22)","v":""},{"$f":"IF('1. Order'!N22=\"\",\"\",'1. Order'!N22)","v":""},null,null,{"$f":"IF('1. Order'!AV22=\"\",\"\",'1. Order'!AV22)","v":""},{"$f":"IF('1. Order'!AI22=\"\",\"\",'1. Order'!AI22)","v":""}]
[{"$f":"IF('1. Order'!B23=\"\",\"\",'1. Order'!B23)","v":""},{"$f":"IF('1. Order'!J23=\"\",\"\",'1. Order'!J23)","v":""},{"$f":"IF('1. Order'!K23=\"\",\"\",'1. Order'!K23)","v":""},{"$f":"IF('1. Order'!L23=\"\",\"\",'1. Order'!L23)","v":""},{"$f":"IF('1. Order'!N23=\"\",\"\",'1. Order'!N23)","v":""},null,null,{"$f":"IF('1. Order'!AV23=\"\",\"\",'1. Order'!AV23)","v":""},{"$f":"IF('1. Order'!AI23=\"\",\"\",'1. Order'!AI23)","v":""}]
[{"$f":"IF('1. Order'!B24=\"\",\"\",'1. Order'!B24)","v":""},{"$f":"IF('1. Order'!J24=\"\",\"\",'1. Order'!J24)","v":""},{"$f":"IF('1. Order'!K24=\"\",\"\",'1. Order'!K24)","v":""},{"$f":"IF('1. Order'!L24=\"\",\"\",'1. Order'!L24)","v":""},{"$f":"IF('1. Order'!N24=\"\",\"\",'1. Order'!N24)","v":""},null,null,{"$f":"IF('1. Order'!AV24=\"\",\"\",'1. Order'!AV24)","v":""},{"$f":"IF('1. Order'!AI24=\"\",\"\",'1. Order'!AI24)","v":""}]
[{"$f":"IF('1. Order'!B25=\"\",\"\",'1. Order'!B25)","v":""},{"$f":"IF('1. Order'!J25=\"\",\"\",'1. Order'!J25)","v":""},{"$f":"IF('1. Order'!K25=\"\",\"\",'1. Order'!K25)","v":""},{"$f":"IF('1. Order'!L25=\"\",\"\",'1. Order'!L25)","v":""},{"$f":"IF('1. Order'!N25=\"\",\"\",'1. Order'!N25)","v":""},null,null,{"$f":"IF('1. Order'!AV25=\"\",\"\",'1. Order'!AV25)","v":""},{"$f":"IF('1. Order'!AI25=\"\",\"\",'1. Order'!AI25)","v":""}]
[{"$f":"IF('1. Order'!B26=\"\",\"\",'1. Order'!B26)","v":""},{"$f":"IF('1. Order'!J26=\"\",\"\",'1. Order'!J26)","v":""},{"$f":"IF('1. Order'!K26=\"\",\"\",'1. Order'!K26)","v":""},{"$f":"IF('1. Order'!L26=\"\",\"\",'1. Order'!L26)","v":""},{"$f":"IF('1. Order'!N26=\"\",\"\",'1. Order'!N26)","v":""},null,null,{"$f":"IF('1. Order'!AV26=\"\",\"\",'1. Order'!AV26)","v":""},{"$f":"IF('1. Order'!AI26=\"\",\"\",'1. Order'!AI26)","v":""}]
[{"$f":"IF('1. Order'!B27=\"\",\"\",'1. Order'!B27)","v":""},{"$f":"IF('1. Order'!J27=\"\",\"\",'1. Order'!J27)","v":""},{"$f":"IF('1. Order'!K27=\"\",\"\",'1. Order'!K27)","v":""},{"$f":"IF('1. Order'!L27=\"\",\"\",'1. Order'!L27)","v":""},{"$f":"IF('1. Order'!N27=\"\",\"\",'1. Order'!N27)","v":""},null,null,{"$f":"IF('1. Order'!AV27=\"\",\"\",'1. Order'!AV27)","v":""},{"$f":"IF('1. Order'!AI27=\"\",\"\",'1. Order'!AI27)","v":""}]
[{"$f":"IF('1. Order'!B28=\"\",\"\",'1. Order'!B28)","v":""},{"$f":"IF('1. Order'!J28=\"\",\"\",'1. Order'!J28)","v":""},{"$f":"IF('1. Order'!K28=\"\",\"\",'1. Order'!K28)","v":""},{"$f":"IF('1. Order'!L28=\"\",\"\",'1. Order'!L28)","v":""},{"$f":"IF('1. Order'!N28=\"\",\"\",'1. Order'!N28)","v":""},null,null,{"$f":"IF('1. Order'!AV28=\"\",\"\",'1. Order'!AV28)","v":""},{"$f":"IF('1. Order'!AI28=\"\",\"\",'1. Order'!AI28)","v":""}]
[{"$f":"IF('1. Order'!B29=\"\",\"\",'1. Order'!B29)","v":""},{"$f":"IF('1. Order'!J29=\"\",\"\",'1. Order'!J29)","v":""},{"$f":"IF('1. Order'!K29=\"\",\"\",'1. Order'!K29)","v":""},{"$f":"IF('1. Order'!L29=\"\",\"\",'1. Order'!L29)","v":""},{"$f":"IF('1. Order'!N29=\"\",\"\",'1. Order'!N29)","v":""},null,null,{"$f":"IF('1. Order'!AV29=\"\",\"\",'1. Order'!AV29)","v":""},{"$f":"IF('1. Order'!AI29=\"\",\"\",'1. Order'!AI29)","v":""}]
[{"$f":"IF('1. Order'!B30=\"\",\"\",'1. Order'!B30)","v":""},{"$f":"IF('1. Order'!J30=\"\",\"\",'1. Order'!J30)","v":""},{"$f":"IF('1. Order'!K30=\"\",\"\",'1. Order'!K30)","v":""},{"$f":"IF('1. Order'!L30=\"\",\"\",'1. Order'!L30)","v":""},{"$f":"IF('1. Order'!N30=\"\",\"\",'1. Order'!N30)","v":""},null,null,{"$f":"IF('1. Order'!AV30=\"\",\"\",'1. Order'!AV30)","v":""},{"$f":"IF('1. Order'!AI30=\"\",\"\",'1. Order'!AI30)","v":""}]
[{"$f":"IF('1. Order'!B31=\"\",\"\",'1. Order'!B31)","v":""},{"$f":"IF('1. Order'!J31=\"\",\"\",'1. Order'!J31)","v":""},{"$f":"IF('1. Order'!K31=\"\",\"\",'1. Order'!K31)","v":""},{"$f":"IF('1. Order'!L31=\"\",\"\",'1. Order'!L31)","v":""},{"$f":"IF('1. Order'!N31=\"\",\"\",'1. Order'!N31)","v":""},null,null,{"$f":"IF('1. Order'!AV31=\"\",\"\",'1. Order'!AV31)","v":""},{"$f":"IF('1. Order'!AI31=\"\",\"\",'1. Order'!AI31)","v":""}]
[{"$f":"IF('1. Order'!B32=\"\",\"\",'1. Order'!B32)","v":""},{"$f":"IF('1. Order'!J32=\"\",\"\",'1. Order'!J32)","v":""},{"$f":"IF('1. Order'!K32=\"\",\"\",'1. Order'!K32)","v":""},{"$f":"IF('1. Order'!L32=\"\",\"\",'1. Order'!L32)","v":""},{"$f":"IF('1. Order'!N32=\"\",\"\",'1. Order'!N32)","v":""},null,null,{"$f":"IF('1. Order'!AV32=\"\",\"\",'1. Order'!AV32)","v":""},{"$f":"IF('1. Order'!AI32=\"\",\"\",'1. Order'!AI32)","v":""}]
[{"$f":"IF('1. Order'!B33=\"\",\"\",'1. Order'!B33)","v":""},{"$f":"IF('1. Order'!J33=\"\",\"\",'1. Order'!J33)","v":""},{"$f":"IF('1. Order'!K33=\"\",\"\",'1. Order'!K33)","v":""},{"$f":"IF('1. Order'!L33=\"\",\"\",'1. Order'!L33)","v":""},{"$f":"IF('1. Order'!N33=\"\",\"\",'1. Order'!N33)","v":""},null,null,{"$f":"IF('1. Order'!AV33=\"\",\"\",'1. Order'!AV33)","v":""},{"$f":"IF('1. Order'!AI33=\"\",\"\",'1. Order'!AI33)","v":""}]
[{"$f":"IF('1. Order'!B34=\"\",\"\",'1. Order'!B34)","v":""},{"$f":"IF('1. Order'!J34=\"\",\"\",'1. Order'!J34)","v":""},{"$f":"IF('1. Order'!K34=\"\",\"\",'1. Order'!K34)","v":""},{"$f":"IF('1. Order'!L34=\"\",\"\",'1. Order'!L34)","v":""},{"$f":"IF('1. Order'!N34=\"\",\"\",'1. Order'!N34)","v":""},null,null,{"$f":"IF('1. Order'!AV34=\"\",\"\",'1. Order'!AV34)","v":""},{"$f":"IF('1. Order'!AI34=\"\",\"\",'1. Order'!AI34)","v":""}]
[{"$f":"IF('1. Order'!B35=\"\",\"\",'1. Order'!B35)","v":""},{"$f":"IF('1. Order'!J35=\"\",\"\",'1. Order'!J35)","v":""},{"$f":"IF('1. Order'!K35=\"\",\"\",'1. Order'!K35)","v":""},{"$f":"IF('1. Order'!L35=\"\",\"\",'1. Order'!L35)","v":""},{"$f":"IF('1. Order'!N35=\"\",\"\",'1. Order'!N35)","v":""},null,null,{"$f":"IF('1. Order'!AV35=\"\",\"\",'1. Order'!AV35)","v":""},{"$f":"IF('1. Order'!AI35=\"\",\"\",'1. Order'!AI35)","v":""}]
[{"$f":"IF('1. Order'!B36=\"\",\"\",'1. Order'!B36)","v":""},{"$f":"IF('1. Order'!J36=\"\",\"\",'1. Order'!J36)","v":""},{"$f":"IF('1. Order'!K36=\"\",\"\",'1. Order'!K36)","v":""},{"$f":"IF('1. Order'!L36=\"\",\"\",'1. Order'!L36)","v":""},{"$f":"IF('1. Order'!N36=\"\",\"\",'1. Order'!N36)","v":""},null,null,{"$f":"IF('1. Order'!AV36=\"\",\"\",'1. Order'!AV36)","v":""},{"$f":"IF('1. Order'!AI36=\"\",\"\",'1. Order'!AI36)","v":""}]
[{"$f":"IF('1. Order'!B37=\"\",\"\",'1. Order'!B37)","v":""},{"$f":"IF('1. Order'!J37=\"\",\"\",'1. Order'!J37)","v":""},{"$f":"IF('1. Order'!K37=\"\",\"\",'1. Order'!K37)","v":""},{"$f":"IF('1. Order'!L37=\"\",\"\",'1. Order'!L37)","v":""},{"$f":"IF('1. Order'!N37=\"\",\"\",'1. Order'!N37)","v":""},null,null,{"$f":"IF('1. Order'!AV37=\"\",\"\",'1. Order'!AV37)","v":""},{"$f":"IF('1. Order'!AI37=\"\",\"\",'1. Order'!AI37)","v":""}]
[{"$f":"IF('1. Order'!B38=\"\",\"\",'1. Order'!B38)","v":""},{"$f":"IF('1. Order'!J38=\"\",\"\",'1. Order'!J38)","v":""},{"$f":"IF('1. Order'!K38=\"\",\"\",'1. Order'!K38)","v":""},{"$f":"IF('1. Order'!L38=\"\",\"\",'1. Order'!L38)","v":""},{"$f":"IF('1. Order'!N38=\"\",\"\",'1. Order'!N38)","v":""},null,null,{"$f":"IF('1. Order'!AV38=\"\",\"\",'1. Order'!AV38)","v":""},{"$f":"IF('1. Order'!AI38=\"\",\"\",'1. Order'!AI38)","v":""}]
[{"$f":"IF('1. Order'!B39=\"\",\"\",'1. Order'!B39)","v":""},{"$f":"IF('1. Order'!J39=\"\",\"\",'1. Order'!J39)","v":""},{"$f":"IF('1. Order'!K39=\"\",\"\",'1. Order'!K39)","v":""},{"$f":"IF('1. Order'!L39=\"\",\"\",'1. Order'!L39)","v":""},{"$f":"IF('1. Order'!N39=\"\",\"\",'1. Order'!N39)","v":""},null,null,{"$f":"IF('1. Order'!AV39=\"\",\"\",'1. Order'!AV39)","v":""},{"$f":"IF('1. Order'!AI39=\"\",\"\",'1. Order'!AI39)","v":""}]
[{"$f":"IF('1. Order'!B40=\"\",\"\",'1. Order'!B40)","v":""},{"$f":"IF('1. Order'!J40=\"\",\"\",'1. Order'!J40)","v":""},{"$f":"IF('1. Order'!K40=\"\",\"\",'1. Order'!K40)","v":""},{"$f":"IF('1. Order'!L40=\"\",\"\",'1. Order'!L40)","v":""},{"$f":"IF('1. Order'!N40=\"\",\"\",'1. Order'!N40)","v":""},null,null,{"$f":"IF('1. Order'!AV40=\"\",\"\",'1. Order'!AV40)","v":""},{"$f":"IF('1. Order'!AI40=\"\",\"\",'1. Order'!AI40)","v":""}]
[{"$f":"IF('1. Order'!B41=\"\",\"\",'1. Order'!B41)","v":""},{"$f":"IF('1. Order'!J41=\"\",\"\",'1. Order'!J41)","v":""},{"$f":"IF('1. Order'!K41=\"\",\"\",'1. Order'!K41)","v":""},{"$f":"IF('1. Order'!L41=\"\",\"\",'1. Order'!L41)","v":""},{"$f":"IF('1. Order'!N41=\"\",\"\",'1. Order'!N41)","v":""},null,null,{"$f":"IF('1. Order'!AV41=\"\",\"\",'1. Order'!AV41)","v":""},{"$f":"IF('1. Order'!AI41=\"\",\"\",'1. Order'!AI41)","v":""}]
[{"$f":"IF('1. Order'!B42=\"\",\"\",'1. Order'!B42)","v":""},{"$f":"IF('1. Order'!J42=\"\",\"\",'1. Order'!J42)","v":""},{"$f":"IF('1. Order'!K42=\"\",\"\",'1. Order'!K42)","v":""},{"$f":"IF('1. Order'!L42=\"\",\"\",'1. Order'!L42)","v":""},{"$f":"IF('1. Order'!N42=\"\",\"\",'1. Order'!N42)","v":""},null,null,{"$f":"IF('1. Order'!AV42=\"\",\"\",'1. Order'!AV42)","v":""},{"$f":"IF('1. Order'!AI42=\"\",\"\",'1. Order'!AI42)","v":""}]
[{"$f":"IF('1. Order'!B43=\"\",\"\",'1. Order'!B43)","v":""},{"$f":"IF('1. Order'!J43=\"\",\"\",'1. Order'!J43)","v":""},{"$f":"IF('1. Order'!K43=\"\",\"\",'1. Order'!K43)","v":""},{"$f":"IF('1. Order'!L43=\"\",\"\",'1. Order'!L43)","v":""},{"$f":"IF('1. Order'!N43=\"\",\"\",'1. Order'!N43)","v":""},null,null,{"$f":"IF('1. Order'!AV43=\"\",\"\",'1. Order'!AV43)","v":""},{"$f":"IF('1. Order'!AI43=\"\",\"\",'1. Order'!AI43)","v":""}]
[{"$f":"IF('1. Order'!B44=\"\",\"\",'1. Order'!B44)","v":""},{"$f":"IF('1. Order'!J44=\"\",\"\",'1. Order'!J44)","v":""},{"$f":"IF('1. Order'!K44=\"\",\"\",'1. Order'!K44)","v":""},{"$f":"IF('1. Order'!L44=\"\",\"\",'1. Order'!L44)","v":""},{"$f":"IF('1. Order'!N44=\"\",\"\",'1. Order'!N44)","v":""},null,null,{"$f":"IF('1. Order'!AV44=\"\",\"\",'1. Order'!AV44)","v":""},{"$f":"IF('1. Order'!AI44=\"\",\"\",'1. Order'!AI44)","v":""}]
[{"$f":"IF('1. Order'!B45=\"\",\"\",'1. Order'!B45)","v":""},{"$f":"IF('1. Order'!J45=\"\",\"\",'1. Order'!J45)","v":""},{"$f":"IF('1. Order'!K45=\"\",\"\",'1. Order'!K45)","v":""},{"$f":"IF('1. Order'!L45=\"\",\"\",'1. Order'!L45)","v":""},{"$f":"IF('1. Order'!N45=\"\",\"\",'1. Order'!N45)","v":""},null,null,{"$f":"IF('1. Order'!AV45=\"\",\"\",'1. Order'!AV45)","v":""},{"$f":"IF('1. Order'!AI45=\"\",\"\",'1. Order'!AI45)","v":""}]
[{"$f":"IF('1. Order'!B46=\"\",\"\",'1. Order'!B46)","v":""},{"$f":"IF('1. Order'!J46=\"\",\"\",'1. Order'!J46)","v":""},{"$f":"IF('1. Order'!K46=\"\",\"\",'1. Order'!K46)","v":""},{"$f":"IF('1. Order'!L46=\"\",\"\",'1. Order'!L46)","v":""},{"$f":"IF('1. Order'!N46=\"\",\"\",'1. Order'!N46)","v":""},null,null,{"$f":"IF('1. Order'!AV46=\"\",\"\",'1. Order'!AV46)","v":""},{"$f":"IF('1. Order'!AI46=\"\",\"\",'1. Order'!AI46)","v":""}]
[{"$f":"IF('1. Order'!B47=\"\",\"\",'1. Order'!B47)","v":""},{"$f":"IF('1. Order'!J47=\"\",\"\",'1. Order'!J47)","v":""},{"$f":"IF('1. Order'!K47=\"\",\"\",'1. Order'!K47)","v":""},{"$f":"IF('1. Order'!L47=\"\",\"\",'1. Order'!L47)","v":""},{"$f":"IF('1. Order'!N47=\"\",\"\",'1. Order'!N47)","v":""},null,null,{"$f":"IF('1. Order'!AV47=\"\",\"\",'1. Order'!AV47)","v":""},{"$f":"IF('1. Order'!AI47=\"\",\"\",'1. Order'!AI47)","v":""}]
[{"$f":"IF('1. Order'!B48=\"\",\"\",'1. Order'!B48)","v":""},{"$f":"IF('1. Order'!J48=\"\",\"\",'1. Order'!J48)","v":""},{"$f":"IF('1. Order'!K48=\"\",\"\",'1. Order'!K48)","v":""},{"$f":"IF('1. Order'!L48=\"\",\"\",'1. Order'!L48)","v":""},{"$f":"IF('1. Order'!N48=\"\",\"\",'1. Order'!N48)","v":""},null,null,{"$f":"IF('1. Order'!AV48=\"\",\"\",'1. Order'!AV48)","v":""},{"$f":"IF('1. Order'!AI48=\"\",\"\",'1. Order'!AI48)","v":""}]
[{"$f":"IF('1. Order'!B49=\"\",\"\",'1. Order'!B49)","v":""},{"$f":"IF('1. Order'!J49=\"\",\"\",'1. Order'!J49)","v":""},{"$f":"IF('1. Order'!K49=\"\",\"\",'1. Order'!K49)","v":""},{"$f":"IF('1. Order'!L49=\"\",\"\",'1. Order'!L49)","v":""},{"$f":"IF('1. Order'!N49=\"\",\"\",'1. Order'!N49)","v":""},null,null,{"$f":"IF('1. Order'!AV49=\"\",\"\",'1. Order'!AV49)","v":""},{"$f":"IF('1. Order'!AI49=\"\",\"\",'1. Order'!AI49)","v":""}]
[{"$f":"IF('1. Order'!B50=\"\",\"\",'1. Order'!B50)","v":""},{"$f":"IF('1. Order'!J50=\"\",\"\",'1. Order'!J50)","v":""},{"$f":"IF('1. Order'!K50=\"\",\"\",'1. Order'!K50)","v":""},{"$f":"IF('1. Order'!L50=\"\",\"\",'1. Order'!L50)","v":""},{"$f":"IF('1. Order'!N50=\"\",\"\",'1. Order'!N50)","v":""},null,null,{"$f":"IF('1. Order'!AV50=\"\",\"\",'1. Order'!AV50)","v":""},{"$f":"IF('1. Order'!AI50=\"\",\"\",'1. Order'!AI50)","v":""}]
[{"$f":"IF('1. Order'!B51=\"\",\"\",'1. Order'!B51)","v":""},{"$f":"IF('1. Order'!J51=\"\",\"\",'1. Order'!J51)","v":""},{"$f":"IF('1. Order'!K51=\"\",\"\",'1. Order'!K51)","v":""},{"$f":"IF('1. Order'!L51=\"\",\"\",'1. Order'!L51)","v":""},{"$f":"IF('1. Order'!N51=\"\",\"\",'1. Order'!N51)","v":""},null,null,{"$f":"IF('1. Order'!AV51=\"\",\"\",'1. Order'!AV51)","v":""},{"$f":"IF('1. Order'!AI51=\"\",\"\",'1. Order'!AI51)","v":""}]
[{"$f":"IF('1. Order'!B52=\"\",\"\",'1. Order'!B52)","v":""},{"$f":"IF('1. Order'!J52=\"\",\"\",'1. Order'!J52)","v":""},{"$f":"IF('1. Order'!K52=\"\",\"\",'1. Order'!K52)","v":""},{"$f":"IF('1. Order'!L52=\"\",\"\",'1. Order'!L52)","v":""},{"$f":"IF('1. Order'!N52=\"\",\"\",'1. Order'!N52)","v":""},null,null,{"$f":"IF('1. Order'!AV52=\"\",\"\",'1. Order'!AV52)","v":""},{"$f":"IF('1. Order'!AI52=\"\",\"\",'1. Order'!AI52)","v":""}]
[{"$f":"IF('1. Order'!B53=\"\",\"\",'1. Order'!B53)","v":""},{"$f":"IF('1. Order'!J53=\"\",\"\",'1. Order'!J53)","v":""},{"$f":"IF('1. Order'!K53=\"\",\"\",'1. Order'!K53)","v":""},{"$f":"IF('1. Order'!L53=\"\",\"\",'1. Order'!L53)","v":""},{"$f":"IF('1. Order'!N53=\"\",\"\",'1. Order'!N53)","v":""},null,null,{"$f":"IF('1. Order'!AV53=\"\",\"\",'1. Order'!AV53)","v":""},{"$f":"IF('1. Order'!AI53=\"\",\"\",'1. Order'!AI53)","v":""}]
[{"$f":"IF('1. Order'!B54=\"\",\"\",'1. Order'!B54)","v":""},{"$f":"IF('1. Order'!J54=\"\",\"\",'1. Order'!J54)","v":""},{"$f":"IF('1. Order'!K54=\"\",\"\",'1. Order'!K54)","v":""},{"$f":"IF('1. Order'!L54=\"\",\"\",'1. Order'!L54)","v":""},{"$f":"IF('1. Order'!N54=\"\",\"\",'1. Order'!N54)","v":""},null,null,{"$f":"IF('1. Order'!AV54=\"\",\"\",'1. Order'!AV54)","v":""},{"$f":"IF('1. Order'!AI54=\"\",\"\",'1. Order'!AI54)","v":""}]
[{"$f":"IF('1. Order'!B55=\"\",\"\",'1. Order'!B55)","v":""},{"$f":"IF('1. Order'!J55=\"\",\"\",'1. Order'!J55)","v":""},{"$f":"IF('1. Order'!K55=\"\",\"\",'1. Order'!K55)","v":""},{"$f":"IF('1. Order'!L55=\"\",\"\",'1. Order'!L55)","v":""},{"$f":"IF('1. Order'!N55=\"\",\"\",'1. Order'!N55)","v":""},null,null,{"$f":"IF('1. Order'!AV55=\"\",\"\",'1. Order'!AV55)","v":""},{"$f":"IF('1. Order'!AI55=\"\",\"\",'1. Order'!AI55)","v":""}]
[{"$f":"IF('1. Order'!B56=\"\",\"\",'1. Order'!B56)","v":""},{"$f":"IF('1. Order'!J56=\"\",\"\",'1. Order'!J56)","v":""},{"$f":"IF('1. Order'!K56=\"\",\"\",'1. Order'!K56)","v":""},{"$f":"IF('1. Order'!L56=\"\",\"\",'1. Order'!L56)","v":""},{"$f":"IF('1. Order'!N56=\"\",\"\",'1. Order'!N56)","v":""},null,null,{"$f":"IF('1. Order'!AV56=\"\",\"\",'1. Order'!AV56)","v":""},{"$f":"IF('1. Order'!AI56=\"\",\"\",'1. Order'!AI56)","v":""}]
[{"$f":"IF('1. Order'!B57=\"\",\"\",'1. Order'!B57)","v":""},{"$f":"IF('1. Order'!J57=\"\",\"\",'1. Order'!J57)","v":""},{"$f":"IF('1. Order'!K57=\"\",\"\",'1. Order'!K57)","v":""},{"$f":"IF('1. Order'!L57=\"\",\"\",'1. Order'!L57)","v":""},{"$f":"IF('1. Order'!N57=\"\",\"\",'1. Order'!N57)","v":""},null,null,{"$f":"IF('1. Order'!AV57=\"\",\"\",'1. Order'!AV57)","v":""},{"$f":"IF('1. Order'!AI57=\"\",\"\",'1. Order'!AI57)","v":""}]
[{"$f":"IF('1. Order'!B58=\"\",\"\",'1. Order'!B58)","v":""},{"$f":"IF('1. Order'!J58=\"\",\"\",'1. Order'!J58)","v":""},{"$f":"IF('1. Order'!K58=\"\",\"\",'1. Order'!K58)","v":""},{"$f":"IF('1. Order'!L58=\"\",\"\",'1. Order'!L58)","v":""},{"$f":"IF('1. Order'!N58=\"\",\"\",'1. Order'!N58)","v":""},null,null,{"$f":"IF('1. Order'!AV58=\"\",\"\",'1. Order'!AV58)","v":""},{"$f":"IF('1. Order'!AI58=\"\",\"\",'1. Order'!AI58)","v":""}]
[{"$f":"IF('1. Order'!B59=\"\",\"\",'1. Order'!B59)","v":""},{"$f":"IF('1. Order'!J59=\"\",\"\",'1. Order'!J59)","v":""},{"$f":"IF('1. Order'!K59=\"\",\"\",'1. Order'!K59)","v":""},{"$f":"IF('1. Order'!L59=\"\",\"\",'1. Order'!L59)","v":""},{"$f":"IF('1. Order'!N59=\"\",\"\",'1. Order'!N59)","v":""},null,null,{"$f":"IF('1. Order'!AV59=\"\",\"\",'1. Order'!AV59)","v":""},{"$f":"IF('1. Order'!AI59=\"\",\"\",'1. Order'!AI59)","v":""}]
[{"$f":"IF('1. Order'!B60=\"\",\"\",'1. Order'!B60)","v":""},{"$f":"IF('1. Order'!J60=\"\",\"\",'1. Order'!J60)","v":""},{"$f":"IF('1. Order'!K60=\"\",\"\",'1. Order'!K60)","v":""},{"$f":"IF('1. Order'!L60=\"\",\"\",'1. Order'!L60)","v":""},{"$f":"IF('1. Order'!N60=\"\",\"\",'1. Order'!N60)","v":""},null,null,{"$f":"IF('1. Order'!AV60=\"\",\"\",'1. Order'!AV60)","v":""},{"$f":"IF('1. Order'!AI60=\"\",\"\",'1. Order'!AI60)","v":""}]
[{"$f":"IF('1. Order'!B61=\"\",\"\",'1. Order'!B61)","v":""},{"$f":"IF('1. Order'!J61=\"\",\"\",'1. Order'!J61)","v":""},{"$f":"IF('1. Order'!K61=\"\",\"\",'1. Order'!K61)","v":""},{"$f":"IF('1. Order'!L61=\"\",\"\",'1. Order'!L61)","v":""},{"$f":"IF('1. Order'!N61=\"\",\"\",'1. Order'!N61)","v":""},null,null,{"$f":"IF('1. Order'!AV61=\"\",\"\",'1. Order'!AV61)","v":""},{"$f":"IF('1. Order'!AI61=\"\",\"\",'1. Order'!AI61)","v":""}]
[{"$f":"IF('1. Order'!B62=\"\",\"\",'1. Order'!B62)","v":""},{"$f":"IF('1. Order'!J62=\"\",\"\",'1. Order'!J62)","v":""},{"$f":"IF('1. Order'!K62=\"\",\"\",'1. Order'!K62)","v":""},{"$f":"IF('1. Order'!L62=\"\",\"\",'1. Order'!L62)","v":""},{"$f":"IF('1. Order'!N62=\"\",\"\",'1. Order'!N62)","v":""},null,null,{"$f":"IF('1. Order'!AV62=\"\",\"\",'1. Order'!AV62)","v":""},{"$f":"IF('1. Order'!AI62=\"\",\"\",'1. Order'!AI62)","v":""}]
[{"$f":"IF('1. Order'!B63=\"\",\"\",'1. Order'!B63)","v":""},{"$f":"IF('1. Order'!J63=\"\",\"\",'1. Order'!J63)","v":""},{"$f":"IF('1. Order'!K63=\"\",\"\",'1. Order'!K63)","v":""},{"$f":"IF('1. Order'!L63=\"\",\"\",'1. Order'!L63)","v":""},{"$f":"IF('1. Order'!N63=\"\",\"\",'1. Order'!N63)","v":""},null,null,{"$f":"IF('1. Order'!AV63=\"\",\"\",'1. Order'!AV63)","v":""},{"$f":"IF('1. Order'!AI63=\"\",\"\",'1. Order'!AI63)","v":""}]
[{"$f":"IF('1. Order'!B64=\"\",\"\",'1. Order'!B64)","v":""},{"$f":"IF('1. Order'!J64=\"\",\"\",'1. Order'!J64)","v":""},{"$f":"IF('1. Order'!K64=\"\",\"\",'1. Order'!K64)","v":""},{"$f":"IF('1. Order'!L64=\"\",\"\",'1. Order'!L64)","v":""},{"$f":"IF('1. Order'!N64=\"\",\"\",'1. Order'!N64)","v":""},null,null,{"$f":"IF('1. Order'!AV64=\"\",\"\",'1. Order'!AV64)","v":""},{"$f":"IF('1. Order'!AI64=\"\",\"\",'1. Order'!AI64)","v":""}]
[{"$f":"IF('1. Order'!B65=\"\",\"\",'1. Order'!B65)","v":""},{"$f":"IF('1. Order'!J65=\"\",\"\",'1. Order'!J65)","v":""},{"$f":"IF('1. Order'!K65=\"\",\"\",'1. Order'!K65)","v":""},{"$f":"IF('1. Order'!L65=\"\",\"\",'1. Order'!L65)","v":""},{"$f":"IF('1. Order'!N65=\"\",\"\",'1. Order'!N65)","v":""},null,null,{"$f":"IF('1. Order'!AV65=\"\",\"\",'1. Order'!AV65)","v":""},{"$f":"IF('1. Order'!AI65=\"\",\"\",'1. Order'!AI65)","v":""}]
[{"$f":"IF('1. Order'!B66=\"\",\"\",'1. Order'!B66)","v":""},{"$f":"IF('1. Order'!J66=\"\",\"\",'1. Order'!J66)","v":""},{"$f":"IF('1. Order'!K66=\"\",\"\",'1. Order'!K66)","v":""},{"$f":"IF('1. Order'!L66=\"\",\"\",'1. Order'!L66)","v":""},{"$f":"IF('1. Order'!N66=\"\",\"\",'1. Order'!N66)","v":""},null,null,{"$f":"IF('1. Order'!AV66=\"\",\"\",'1. Order'!AV66)","v":""},{"$f":"IF('1. Order'!AI66=\"\",\"\",'1. Order'!AI66)","v":""}]
[{"$f":"IF('1. Order'!B67=\"\",\"\",'1. Order'!B67)","v":""},{"$f":"IF('1. Order'!J67=\"\",\"\",'1. Order'!J67)","v":""},{"$f":"IF('1. Order'!K67=\"\",\"\",'1. Order'!K67)","v":""},{"$f":"IF('1. Order'!L67=\"\",\"\",'1. Order'!L67)","v":""},{"$f":"IF('1. Order'!N67=\"\",\"\",'1. Order'!N67)","v":""},null,null,{"$f":"IF('1. Order'!AV67=\"\",\"\",'1. Order'!AV67)","v":""},{"$f":"IF('1. Order'!AI67=\"\",\"\",'1. Order'!AI67)","v":""}]
[{"$f":"IF('1. Order'!B68=\"\",\"\",'1. Order'!B68)","v":""},{"$f":"IF('1. Order'!J68=\"\",\"\",'1. Order'!J68)","v":""},{"$f":"IF('1. Order'!K68=\"\",\"\",'1. Order'!K68)","v":""},{"$f":"IF('1. Order'!L68=\"\",\"\",'1. Order'!L68)","v":""},{"$f":"IF('1. Order'!N68=\"\",\"\",'1. Order'!N68)","v":""},null,null,{"$f":"IF('1. Order'!AV68=\"\",\"\",'1. Order'!AV68)","v":""},{"$f":"IF('1. Order'!AI68=\"\",\"\",'1. Order'!AI68)","v":""}]
[{"$f":"IF('1. Order'!B69=\"\",\"\",'1. Order'!B69)","v":""},{"$f":"IF('1. Order'!J69=\"\",\"\",'1. Order'!J69)","v":""},{"$f":"IF('1. Order'!K69=\"\",\"\",'1. Order'!K69)","v":""},{"$f":"IF('1. Order'!L69=\"\",\"\",'1. Order'!L69)","v":""},{"$f":"IF('1. Order'!N69=\"\",\"\",'1. Order'!N69)","v":""},null,null,{"$f":"IF('1. Order'!AV69=\"\",\"\",'1. Order'!AV69)","v":""},{"$f":"IF('1. Order'!AI69=\"\",\"\",'1. Order'!AI69)","v":""}]
[{"$f":"IF('1. Order'!B70=\"\",\"\",'1. Order'!B70)","v":""},{"$f":"IF('1. Order'!J70=\"\",\"\",'1. Order'!J70)","v":""},{"$f":"IF('1. Order'!K70=\"\",\"\",'1. Order'!K70)","v":""},{"$f":"IF('1. Order'!L70=\"\",\"\",'1. Order'!L70)","v":""},{"$f":"IF('1. Order'!N70=\"\",\"\",'1. Order'!N70)","v":""},null,null,{"$f":"IF('1. Order'!AV70=\"\",\"\",'1. Order'!AV70)","v":""},{"$f":"IF('1. Order'!AI70=\"\",\"\",'1. Order'!AI70)","v":""}]
[{"$f":"IF('1. Order'!B71=\"\",\"\",'1. Order'!B71)","v":""},{"$f":"IF('1. Order'!J71=\"\",\"\",'1. Order'!J71)","v":""},{"$f":"IF('1. Order'!K71=\"\",\"\",'1. Order'!K71)","v":""},{"$f":"IF('1. Order'!L71=\"\",\"\",'1. Order'!L71)","v":""},{"$f":"IF('1. Order'!N71=\"\",\"\",'1. Order'!N71)","v":""},null,null,{"$f":"IF('1. Order'!AV71=\"\",\"\",'1. Order'!AV71)","v":""},{"$f":"IF('1. Order'!AI71=\"\",\"\",'1. Order'!AI71)","v":""}]
[{"$f":"IF('1. Order'!B72=\"\",\"\",'1. Order'!B72)","v":""},{"$f":"IF('1. Order'!J72=\"\",\"\",'1. Order'!J72)","v":""},{"$f":"IF('1. Order'!K72=\"\",\"\",'1. Order'!K72)","v":""},{"$f":"IF('1. Order'!L72=\"\",\"\",'1. Order'!L72)","v":""},{"$f":"IF('1. Order'!N72=\"\",\"\",'1. Order'!N72)","v":""},null,null,{"$f":"IF('1. Order'!AV72=\"\",\"\",'1. Order'!AV72)","v":""},{"$f":"IF('1. Order'!AI72=\"\",\"\",'1. Order'!AI72)","v":""}]
[{"$f":"IF('1. Order'!B73=\"\",\"\",'1. Order'!B73)","v":""},{"$f":"IF('1. Order'!J73=\"\",\"\",'1. Order'!J73)","v":""},{"$f":"IF('1. Order'!K73=\"\",\"\",'1. Order'!K73)","v":""},{"$f":"IF('1. Order'!L73=\"\",\"\",'1. Order'!L73)","v":""},{"$f":"IF('1. Order'!N73=\"\",\"\",'1. Order'!N73)","v":""},null,null,{"$f":"IF('1. Order'!AV73=\"\",\"\",'1. Order'!AV73)","v":""},{"$f":"IF('1. Order'!AI73=\"\",\"\",'1. Order'!AI73)","v":""}]
[{"$f":"IF('1. Order'!B74=\"\",\"\",'1. Order'!B74)","v":""},{"$f":"IF('1. Order'!J74=\"\",\"\",'1. Order'!J74)","v":""},{"$f":"IF('1. Order'!K74=\"\",\"\",'1. Order'!K74)","v":""},{"$f":"IF('1. Order'!L74=\"\",\"\",'1. Order'!L74)","v":""},{"$f":"IF('1. Order'!N74=\"\",\"\",'1. Order'!N74)","v":""},null,null,{"$f":"IF('1. Order'!AV74=\"\",\"\",'1. Order'!AV74)","v":""},{"$f":"IF('1. Order'!AI74=\"\",\"\",'1. Order'!AI74)","v":""}]
[{"$f":"IF('1. Order'!B75=\"\",\"\",'1. Order'!B75)","v":""},{"$f":"IF('1. Order'!J75=\"\",\"\",'1. Order'!J75)","v":""},{"$f":"IF('1. Order'!K75=\"\",\"\",'1. Order'!K75)","v":""},{"$f":"IF('1. Order'!L75=\"\",\"\",'1. Order'!L75)","v":""},{"$f":"IF('1. Order'!N75=\"\",\"\",'1. Order'!N75)","v":""},null,null,{"$f":"IF('1. Order'!AV75=\"\",\"\",'1. Order'!AV75)","v":""},{"$f":"IF('1. Order'!AI75=\"\",\"\",'1. Order'!AI75)","v":""}]
[{"$f":"IF('1. Order'!B76=\"\",\"\",'1. Order'!B76)","v":""},{"$f":"IF('1. Order'!J76=\"\",\"\",'1. Order'!J76)","v":""},{"$f":"IF('1. Order'!K76=\"\",\"\",'1. Order'!K76)","v":""},{"$f":"IF('1. Order'!L76=\"\",\"\",'1. Order'!L76)","v":""},{"$f":"IF('1. Order'!N76=\"\",\"\",'1. Order'!N76)","v":""},null,null,{"$f":"IF('1. Order'!AV76=\"\",\"\",'1. Order'!AV76)","v":""},{"$f":"IF('1. Order'!AI76=\"\",\"\",'1. Order'!AI76)","v":""}]
[{"$f":"IF('1. Order'!B77=\"\",\"\",'1. Order'!B77)","v":""},{"$f":"IF('1. Order'!J77=\"\",\"\",'1. Order'!J77)","v":""},{"$f":"IF('1. Order'!K77=\"\",\"\",'1. Order'!K77)","v":""},{"$f":"IF('1. Order'!L77=\"\",\"\",'1. Order'!L77)","v":""},{"$f":"IF('1. Order'!N77=\"\",\"\",'1. Order'!N77)","v":""},null,null,{"$f":"IF('1. Order'!AV77=\"\",\"\",'1. Order'!AV77)","v":""},{"$f":"IF('1. Order'!AI77=\"\",\"\",'1. Order'!AI77)","v":""}]
[{"$f":"IF('1. Order'!B78=\"\",\"\",'1. Order'!B78)","v":""},{"$f":"IF('1. Order'!J78=\"\",\"\",'1. Order'!J78)","v":""},{"$f":"IF('1. Order'!K78=\"\",\"\",'1. Order'!K78)","v":""},{"$f":"IF('1. Order'!L78=\"\",\"\",'1. Order'!L78)","v":""},{"$f":"IF('1. Order'!N78=\"\",\"\",'1. Order'!N78)","v":""},null,null,{"$f":"IF('1. Order'!AV78=\"\",\"\",'1. Order'!AV78)","v":""},{"$f":"IF('1. Order'!AI78=\"\",\"\",'1. Order'!AI78)","v":""}]
[{"$f":"IF('1. Order'!B79=\"\",\"\",'1. Order'!B79)","v":""},{"$f":"IF('1. Order'!J79=\"\",\"\",'1. Order'!J79)","v":""},{"$f":"IF('1. Order'!K79=\"\",\"\",'1. Order'!K79)","v":""},{"$f":"IF('1. Order'!L79=\"\",\"\",'1. Order'!L79)","v":""},{"$f":"IF('1. Order'!N79=\"\",\"\",'1. Order'!N79)","v":""},null,null,{"$f":"IF('1. Order'!AV79=\"\",\"\",'1. Order'!AV79)","v":""},{"$f":"IF('1. Order'!AI79=\"\",\"\",'1. Order'!AI79)","v":""}]
[{"$f":"IF('1. Order'!B80=\"\",\"\",'1. Order'!B80)","v":""},{"$f":"IF('1. Order'!J80=\"\",\"\",'1. Order'!J80)","v":""},{"$f":"IF('1. Order'!K80=\"\",\"\",'1. Order'!K80)","v":""},{"$f":"IF('1. Order'!L80=\"\",\"\",'1. Order'!L80)","v":""},{"$f":"IF('1. Order'!N80=\"\",\"\",'1. Order'!N80)","v":""},null,null,{"$f":"IF('1. Order'!AV80=\"\",\"\",'1. Order'!AV80)","v":""},{"$f":"IF('1. Order'!AI80=\"\",\"\",'1. Order'!AI80)","v":""}]
[{"$f":"IF('1. Order'!B81=\"\",\"\",'1. Order'!B81)","v":""},{"$f":"IF('1. Order'!J81=\"\",\"\",'1. Order'!J81)","v":""},{"$f":"IF('1. Order'!K81=\"\",\"\",'1. Order'!K81)","v":""},{"$f":"IF('1. Order'!L81=\"\",\"\",'1. Order'!L81)","v":""},{"$f":"IF('1. Order'!N81=\"\",\"\",'1. Order'!N81)","v":""},null,null,{"$f":"IF('1. Order'!AV81=\"\",\"\",'1. Order'!AV81)","v":""},{"$f":"IF('1. Order'!AI81=\"\",\"\",'1. Order'!AI81)","v":""}]
[{"$f":"IF('1. Order'!B82=\"\",\"\",'1. Order'!B82)","v":""},{"$f":"IF('1. Order'!J82=\"\",\"\",'1. Order'!J82)","v":""},{"$f":"IF('1. Order'!K82=\"\",\"\",'1. Order'!K82)","v":""},{"$f":"IF('1. Order'!L82=\"\",\"\",'1. Order'!L82)","v":""},{"$f":"IF('1. Order'!N82=\"\",\"\",'1. Order'!N82)","v":""},null,null,{"$f":"IF('1. Order'!AV82=\"\",\"\",'1. Order'!AV82)","v":""},{"$f":"IF('1. Order'!AI82=\"\",\"\",'1. Order'!AI82)","v":""}]
[{"$f":"IF('1. Order'!B83=\"\",\"\",'1. Order'!B83)","v":""},{"$f":"IF('1. Order'!J83=\"\",\"\",'1. Order'!J83)","v":""},{"$f":"IF('1. Order'!K83=\"\",\"\",'1. Order'!K83)","v":""},{"$f":"IF('1. Order'!L83=\"\",\"\",'1. Order'!L83)","v":""},{"$f":"IF('1. Order'!N83=\"\",\"\",'1. Order'!N83)","v":""},null,null,{"$f":"IF('1. Order'!AV83=\"\",\"\",'1. Order'!AV83)","v":""},{"$f":"IF('1. Order'!AI83=\"\",\"\",'1. Order'!AI83)","v":""}]
[{"$f":"IF('1. Order'!B84=\"\",\"\",'1. Order'!B84)","v":""},{"$f":"IF('1. Order'!J84=\"\",\"\",'1. Order'!J84)","v":""},{"$f":"IF('1. Order'!K84=\"\",\"\",'1. Order'!K84)","v":""},{"$f":"IF('1. Order'!L84=\"\",\"\",'1. Order'!L84)","v":""},{"$f":"IF('1. Order'!N84=\"\",\"\",'1. Order'!N84)","v":""},null,null,{"$f":"IF('1. Order'!AV84=\"\",\"\",'1. Order'!AV84)","v":""},{"$f":"IF('1. Order'!AI84=\"\",\"\",'1. Order'!AI84)","v":""}]
[{"$f":"IF('1. Order'!B85=\"\",\"\",'1. Order'!B85)","v":""},{"$f":"IF('1. Order'!J85=\"\",\"\",'1. Order'!J85)","v":""},{"$f":"IF('1. Order'!K85=\"\",\"\",'1. Order'!K85)","v":""},{"$f":"IF('1. Order'!L85=\"\",\"\",'1. Order'!L85)","v":""},{"$f":"IF('1. Order'!N85=\"\",\"\",'1. Order'!N85)","v":""},null,null,{"$f":"IF('1. Order'!AV85=\"\",\"\",'1. Order'!AV85)","v":""},{"$f":"IF('1. Order'!AI85=\"\",\"\",'1. Order'!AI85)","v":""}]
[{"$f":"IF('1. Order'!B86=\"\",\"\",'1. Order'!B86)","v":""},{"$f":"IF('1. Order'!J86=\"\",\"\",'1. Order'!J86)","v":""},{"$f":"IF('1. Order'!K86=\"\",\"\",'1. Order'!K86)","v":""},{"$f":"IF('1. Order'!L86=\"\",\"\",'1. Order'!L86)","v":""},{"$f":"IF('1. Order'!N86=\"\",\"\",'1. Order'!N86)","v":""},null,null,{"$f":"IF('1. Order'!AV86=\"\",\"\",'1. Order'!AV86)","v":""},{"$f":"IF('1. Order'!AI86=\"\",\"\",'1. Order'!AI86)","v":""}]
[{"$f":"IF('1. Order'!B87=\"\",\"\",'1. Order'!B87)","v":""},{"$f":"IF('1. Order'!J87=\"\",\"\",'1. Order'!J87)","v":""},{"$f":"IF('1. Order'!K87=\"\",\"\",'1. Order'!K87)","v":""},{"$f":"IF('1. Order'!L87=\"\",\"\",'1. Order'!L87)","v":""},{"$f":"IF('1. Order'!N87=\"\",\"\",'1. Order'!N87)","v":""},null,null,{"$f":"IF('1. Order'!AV87=\"\",\"\",'1. Order'!AV87)","v":""},{"$f":"IF('1. Order'!AI87=\"\",\"\",'1. Order'!AI87)","v":""}]
[{"$f":"IF('1. Order'!B88=\"\",\"\",'1. Order'!B88)","v":""},{"$f":"IF('1. Order'!J88=\"\",\"\",'1. Order'!J88)","v":""},{"$f":"IF('1. Order'!K88=\"\",\"\",'1. Order'!K88)","v":""},{"$f":"IF('1. Order'!L88=\"\",\"\",'1. Order'!L88)","v":""},{"$f":"IF('1. Order'!N88=\"\",\"\",'1. Order'!N88)","v":""},null,null,{"$f":"IF('1. Order'!AV88=\"\",\"\",'1. Order'!AV88)","v":""},{"$f":"IF('1. Order'!AI88=\"\",\"\",'1. Order'!AI88)","v":""}]
[{"$f":"IF('1. Order'!B89=\"\",\"\",'1. Order'!B89)","v":""},{"$f":"IF('1. Order'!J89=\"\",\"\",'1. Order'!J89)","v":""},{"$f":"IF('1. Order'!K89=\"\",\"\",'1. Order'!K89)","v":""},{"$f":"IF('1. Order'!L89=\"\",\"\",'1. Order'!L89)","v":""},{"$f":"IF('1. Order'!N89=\"\",\"\",'1. Order'!N89)","v":""},null,null,{"$f":"IF('1. Order'!AV89=\"\",\"\",'1. Order'!AV89)","v":""},{"$f":"IF('1. Order'!AI89=\"\",\"\",'1. Order'!AI89)","v":""}]
[{"$f":"IF('1. Order'!B90=\"\",\"\",'1. Order'!B90)","v":""},{"$f":"IF('1. Order'!J90=\"\",\"\",'1. Order'!J90)","v":""},{"$f":"IF('1. Order'!K90=\"\",\"\",'1. Order'!K90)","v":""},{"$f":"IF('1. Order'!L90=\"\",\"\",'1. Order'!L90)","v":""},{"$f":"IF('1. Order'!N90=\"\",\"\",'1. Order'!N90)","v":""},null,null,{"$f":"IF('1. Order'!AV90=\"\",\"\",'1. Order'!AV90)","v":""},{"$f":"IF('1. Order'!AI90=\"\",\"\",'1. Order'!AI90)","v":""}]
[{"$f":"IF('1. Order'!B91=\"\",\"\",'1. Order'!B91)","v":""},{"$f":"IF('1. Order'!J91=\"\",\"\",'1. Order'!J91)","v":""},{"$f":"IF('1. Order'!K91=\"\",\"\",'1. Order'!K91)","v":""},{"$f":"IF('1. Order'!L91=\"\",\"\",'1. Order'!L91)","v":""},{"$f":"IF('1. Order'!N91=\"\",\"\",'1. Order'!N91)","v":""},null,null,{"$f":"IF('1. Order'!AV91=\"\",\"\",'1. Order'!AV91)","v":""},{"$f":"IF('1. Order'!AI91=\"\",\"\",'1. Order'!AI91)","v":""}]
[{"$f":"IF('1. Order'!B92=\"\",\"\",'1. Order'!B92)","v":""},{"$f":"IF('1. Order'!J92=\"\",\"\",'1. Order'!J92)","v":""},{"$f":"IF('1. Order'!K92=\"\",\"\",'1. Order'!K92)","v":""},{"$f":"IF('1. Order'!L92=\"\",\"\",'1. Order'!L92)","v":""},{"$f":"IF('1. Order'!N92=\"\",\"\",'1. Order'!N92)","v":""},null,null,{"$f":"IF('1. Order'!AV92=\"\",\"\",'1. Order'!AV92)","v":""},{"$f":"IF('1. Order'!AI92=\"\",\"\",'1. Order'!AI92)","v":""}]
[{"$f":"IF('1. Order'!B93=\"\",\"\",'1. Order'!B93)","v":""},{"$f":"IF('1. Order'!J93=\"\",\"\",'1. Order'!J93)","v":""},{"$f":"IF('1. Order'!K93=\"\",\"\",'1. Order'!K93)","v":""},{"$f":"IF('1. Order'!L93=\"\",\"\",'1. Order'!L93)","v":""},{"$f":"IF('1. Order'!N93=\"\",\"\",'1. Order'!N93)","v":""},null,null,{"$f":"IF('1. Order'!AV93=\"\",\"\",'1. Order'!AV93)","v":""},{"$f":"IF('1. Order'!AI93=\"\",\"\",'1. Order'!AI93)","v":""}]
[{"$f":"IF('1. Order'!B94=\"\",\"\",'1. Order'!B94)","v":""},{"$f":"IF('1. Order'!J94=\"\",\"\",'1. Order'!J94)","v":""},{"$f":"IF('1. Order'!K94=\"\",\"\",'1. Order'!K94)","v":""},{"$f":"IF('1. Order'!L94=\"\",\"\",'1. Order'!L94)","v":""},{"$f":"IF('1. Order'!N94=\"\",\"\",'1. Order'!N94)","v":""},null,null,{"$f":"IF('1. Order'!AV94=\"\",\"\",'1. Order'!AV94)","v":""},{"$f":"IF('1. Order'!AI94=\"\",\"\",'1. Order'!AI94)","v":""}]
[{"$f":"IF('1. Order'!B95=\"\",\"\",'1. Order'!B95)","v":""},{"$f":"IF('1. Order'!J95=\"\",\"\",'1. Order'!J95)","v":""},{"$f":"IF('1. Order'!K95=\"\",\"\",'1. Order'!K95)","v":""},{"$f":"IF('1. Order'!L95=\"\",\"\",'1. Order'!L95)","v":""},{"$f":"IF('1. Order'!N95=\"\",\"\",'1. Order'!N95)","v":""},null,null,{"$f":"IF('1. Order'!AV95=\"\",\"\",'1. Order'!AV95)","v":""},{"$f":"IF('1. Order'!AI95=\"\",\"\",'1. Order'!AI95)","v":""}]
[{"$f":"IF('1. Order'!B96=\"\",\"\",'1. Order'!B96)","v":""},{"$f":"IF('1. Order'!J96=\"\",\"\",'1. Order'!J96)","v":""},{"$f":"IF('1. Order'!K96=\"\",\"\",'1. Order'!K96)","v":""},{"$f":"IF('1. Order'!L96=\"\",\"\",'1. Order'!L96)","v":""},{"$f":"IF('1. Order'!N96=\"\",\"\",'1. Order'!N96)","v":""},null,null,{"$f":"IF('1. Order'!AV96=\"\",\"\",'1. Order'!AV96)","v":""},{"$f":"IF('1. Order'!AI96=\"\",\"\",'1. Order'!AI96)","v":""}]
[{"$f":"IF('1. Order'!B97=\"\",\"\",'1. Order'!B97)","v":""},{"$f":"IF('1. Order'!J97=\"\",\"\",'1. Order'!J97)","v":""},{"$f":"IF('1. Order'!K97=\"\",\"\",'1. Order'!K97)","v":""},{"$f":"IF('1. Order'!L97=\"\",\"\",'1. Order'!L97)","v":""},{"$f":"IF('1. Order'!N97=\"\",\"\",'1. Order'!N97)","v":""},null,null,{"$f":"IF('1. Order'!AV97=\"\",\"\",'1. Order'!AV97)","v":""},{"$f":"IF('1. Order'!AI97=\"\",\"\",'1. Order'!AI97)","v":""}]
[{"$f":"IF('1. Order'!B98=\"\",\"\",'1. Order'!B98)","v":""},{"$f":"IF('1. Order'!J98=\"\",\"\",'1. Order'!J98)","v":""},{"$f":"IF('1. Order'!K98=\"\",\"\",'1. Order'!K98)","v":""},{"$f":"IF('1. Order'!L98=\"\",\"\",'1. Order'!L98)","v":""},{"$f":"IF('1. Order'!N98=\"\",\"\",'1. Order'!N98)","v":""},null,null,{"$f":"IF('1. Order'!AV98=\"\",\"\",'1. Order'!AV98)","v":""},{"$f":"IF('1. Order'!AI98=\"\",\"\",'1. Order'!AI98)","v":""}]
[{"$f":"IF('1. Order'!B99=\"\",\"\",'1. Order'!B99)","v":""},{"$f":"IF('1. Order'!J99=\"\",\"\",'1. Order'!J99)","v":""},{"$f":"IF('1. Order'!K99=\"\",\"\",'1. Order'!K99)","v":""},{"$f":"IF('1. Order'!L99=\"\",\"\",'1. Order'!L99)","v":""},{"$f":"IF('1. Order'!N99=\"\",\"\",'1. Order'!N99)","v":""},null,null,{"$f":"IF('1. Order'!AV99=\"\",\"\",'1. Order'!AV99)","v":""},{"$f":"IF('1. Order'!AI99=\"\",\"\",'1. Order'!AI99)","v":""}]
[{"$f":"IF('1. Order'!B100=\"\",\"\",'1. Order'!B100)","v":""},{"$f":"IF('1. Order'!J100=\"\",\"\",'1. Order'!J100)","v":""},{"$f":"IF('1. Order'!K100=\"\",\"\",'1. Order'!K100)","v":""},{"$f":"IF('1. Order'!L100=\"\",\"\",'1. Order'!L100)","v":""},{"$f":"IF('1. Order'!N100=\"\",\"\",'1. Order'!N100)","v":""},null,null,{"$f":"IF('1. Order'!AV100=\"\",\"\",'1. Order'!AV100)","v":""},{"$f":"IF('1. Order'!AI100=\"\",\"\",'1. Order'!AI100)","v":""}]
[{"$f":"IF('1. Order'!B101=\"\",\"\",'1. Order'!B101)","v":""},{"$f":"IF('1. Order'!J101=\"\",\"\",'1. Order'!J101)","v":""},{"$f":"IF('1. Order'!K101=\"\",\"\",'1. Order'!K101)","v":""},{"$f":"IF('1. Order'!L101=\"\",\"\",'1. Order'!L101)","v":""},{"$f":"IF('1. Order'!N101=\"\",\"\",'1. Order'!N101)","v":""},null,null,{"$f":"IF('1. Order'!AV101=\"\",\"\",'1. Order'!AV101)","v":""},{"$f":"IF('1. Order'!AI101=\"\",\"\",'1. Order'!AI101)","v":""}]
[{"$f":"IF('1. Order'!B102=\"\",\"\",'1. Order'!B102)","v":""},{"$f":"IF('1. Order'!J102=\"\",\"\",'1. Order'!J102)","v":""},{"$f":"IF('1. Order'!K102=\"\",\"\",'1. Order'!K102)","v":""},{"$f":"IF('1. Order'!L102=\"\",\"\",'1. Order'!L102)","v":""},{"$f":"IF('1. Order'!N102=\"\",\"\",'1. Order'!N102)","v":""},null,null,{"$f":"IF('1. Order'!AV102=\"\",\"\",'1. Order'!AV102)","v":""},{"$f":"IF('1. Order'!AI102=\"\",\"\",'1. Order'!AI102)","v":""}]
[{"$f":"IF('1. Order'!B103=\"\",\"\",'1. Order'!B103)","v":""},{"$f":"IF('1. Order'!J103=\"\",\"\",'1. Order'!J103)","v":""},{"$f":"IF('1. Order'!K103=\"\",\"\",'1. Order'!K103)","v":""},{"$f":"IF('1. Order'!L103=\"\",\"\",'1. Order'!L103)","v":""},{"$f":"IF('1. Order'!N103=\"\",\"\",'1. Order'!N103)","v":""},null,null,{"$f":"IF('1. Order'!AV103=\"\",\"\",'1. Order'!AV103)","v":""},{"$f":"IF('1. Order'!AI103=\"\",\"\",'1. Order'!AI103)","v":""}]
[{"$f":"IF('1. Order'!B104=\"\",\"\",'1. Order'!B104)","v":""},{"$f":"IF('1. Order'!J104=\"\",\"\",'1. Order'!J104)","v":""},{"$f":"IF('1. Order'!K104=\"\",\"\",'1. Order'!K104)","v":""},{"$f":"IF('1. Order'!L104=\"\",\"\",'1. Order'!L104)","v":""},{"$f":"IF('1. Order'!N104=\"\",\"\",'1. Order'!N104)","v":""},null,null,{"$f":"IF('1. Order'!AV104=\"\",\"\",'1. Order'!AV104)","v":""},{"$f":"IF('1. Order'!AI104=\"\",\"\",'1. Order'!AI104)","v":""}]
[{"$f":"IF('1. Order'!B105=\"\",\"\",'1. Order'!B105)","v":""},{"$f":"IF('1. Order'!J105=\"\",\"\",'1. Order'!J105)","v":""},{"$f":"IF('1. Order'!K105=\"\",\"\",'1. Order'!K105)","v":""},{"$f":"IF('1. Order'!L105=\"\",\"\",'1. Order'!L105)","v":""},{"$f":"IF('1. Order'!N105=\"\",\"\",'1. Order'!N105)","v":""},null,null,{"$f":"IF('1. Order'!AV105=\"\",\"\",'1. Order'!AV105)","v":""},{"$f":"IF('1. Order'!AI105=\"\",\"\",'1. Order'!AI105)","v":""}]
[{"$f":"IF('1. Order'!B106=\"\",\"\",'1. Order'!B106)","v":""},{"$f":"IF('1. Order'!J106=\"\",\"\",'1. Order'!J106)","v":""},{"$f":"IF('1. Order'!K106=\"\",\"\",'1. Order'!K106)","v":""},{"$f":"IF('1. Order'!L106=\"\",\"\",'1. Order'!L106)","v":""},{"$f":"IF('1. Order'!N106=\"\",\"\",'1. Order'!N106)","v":""},null,null,{"$f":"IF('1. Order'!AV106=\"\",\"\",'1. Order'!AV106)","v":""},{"$f":"IF('1. Order'!AI106=\"\",\"\",'1. Order'!AI106)","v":""}]
[{"$f":"IF('1. Order'!B107=\"\",\"\",'1. Order'!B107)","v":""},{"$f":"IF('1. Order'!J107=\"\",\"\",'1. Order'!J107)","v":""},{"$f":"IF('1. Order'!K107=\"\",\"\",'1. Order'!K107)","v":""},{"$f":"IF('1. Order'!L107=\"\",\"\",'1. Order'!L107)","v":""},{"$f":"IF('1. Order'!N107=\"\",\"\",'1. Order'!N107)","v":""},null,null,{"$f":"IF('1. Order'!AV107=\"\",\"\",'1. Order'!AV107)","v":""},{"$f":"IF('1. Order'!AI107=\"\",\"\",'1. Order'!AI107)","v":""}]
[{"$f":"IF('1. Order'!B108=\"\",\"\",'1. Order'!B108)","v":""},{"$f":"IF('1. Order'!J108=\"\",\"\",'1. Order'!J108)","v":""},{"$f":"IF('1. Order'!K108=\"\",\"\",'1. Order'!K108)","v":""},{"$f":"IF('1. Order'!L108=\"\",\"\",'1. Order'!L108)","v":""},{"$f":"IF('1. Order'!N108=\"\",\"\",'1. Order'!N108)","v":""},null,null,{"$f":"IF('1. Order'!AV108=\"\",\"\",'1. Order'!AV108)","v":""},{"$f":"IF('1. Order'!AI108=\"\",\"\",'1. Order'!AI108)","v":""}]
[{"$f":"IF('1. Order'!B109=\"\",\"\",'1. Order'!B109)","v":""},{"$f":"IF('1. Order'!J109=\"\",\"\",'1. Order'!J109)","v":""},{"$f":"IF('1. Order'!K109=\"\",\"\",'1. Order'!K109)","v":""},{"$f":"IF('1. Order'!L109=\"\",\"\",'1. Order'!L109)","v":""},{"$f":"IF('1. Order'!N109=\"\",\"\",'1. Order'!N109)","v":""},null,null,{"$f":"IF('1. Order'!AV109=\"\",\"\",'1. Order'!AV109)","v":""},{"$f":"IF('1. Order'!AI109=\"\",\"\",'1. Order'!AI109)","v":""}]
[{"$f":"IF('1. Order'!B110=\"\",\"\",'1. Order'!B110)","v":""},{"$f":"IF('1. Order'!J110=\"\",\"\",'1. Order'!J110)","v":""},{"$f":"IF('1. Order'!K110=\"\",\"\",'1. Order'!K110)","v":""},{"$f":"IF('1. Order'!L110=\"\",\"\",'1. Order'!L110)","v":""},{"$f":"IF('1. Order'!N110=\"\",\"\",'1. Order'!N110)","v":""},null,null,{"$f":"IF('1. Order'!AV110=\"\",\"\",'1. Order'!AV110)","v":""},{"$f":"IF('1. Order'!AI110=\"\",\"\",'1. Order'!AI110)","v":""}]
[{"$f":"IF('1. Order'!B111=\"\",\"\",'1. Order'!B111)","v":""},{"$f":"IF('1. Order'!J111=\"\",\"\",'1. Order'!J111)","v":""},{"$f":"IF('1. Order'!K111=\"\",\"\",'1. Order'!K111)","v":""},{"$f":"IF('1. Order'!L111=\"\",\"\",'1. Order'!L111)","v":""},{"$f":"IF('1. Order'!N111=\"\",\"\",'1. Order'!N111)","v":""},null,null,{"$f":"IF('1. Order'!AV111=\"\",\"\",'1. Order'!AV111)","v":""},{"$f":"IF('1. Order'!AI111=\"\",\"\",'1. Order'!AI111)","v":""}]
[{"$f":"IF('1. Order'!B112=\"\",\"\",'1. Order'!B112)","v":""},{"$f":"IF('1. Order'!J112=\"\",\"\",'1. Order'!J112)","v":""},{"$f":"IF('1. Order'!K112=\"\",\"\",'1. Order'!K112)","v":""},{"$f":"IF('1. Order'!L112=\"\",\"\",'1. Order'!L112)","v":""},{"$f":"IF('1. Order'!N112=\"\",\"\",'1. Order'!N112)","v":""},null,null,{"$f":"IF('1. Order'!AV112=\"\",\"\",'1. Order'!AV112)","v":""},{"$f":"IF('1. Order'!AI112=\"\",\"\",'1. Order'!AI112)","v":""}]
[{"$f":"IF('1. Order'!B113=\"\",\"\",'1. Order'!B113)","v":""},{"$f":"IF('1. Order'!J113=\"\",\"\",'1. Order'!J113)","v":""},{"$f":"IF('1. Order'!K113=\"\",\"\",'1. Order'!K113)","v":""},{"$f":"IF('1. Order'!L113=\"\",\"\",'1. Order'!L113)","v":""},{"$f":"IF('1. Order'!N113=\"\",\"\",'1. Order'!N113)","v":""},null,null,{"$f":"IF('1. Order'!AV113=\"\",\"\",'1. Order'!AV113)","v":""},{"$f":"IF('1. Order'!AI113=\"\",\"\",'1. Order'!AI113)","v":""}]
[{"$f":"IF('1. Order'!B114=\"\",\"\",'1. Order'!B114)","v":""},{"$f":"IF('1. Order'!J114=\"\",\"\",'1. Order'!J114)","v":""},{"$f":"IF('1. Order'!K114=\"\",\"\",'1. Order'!K114)","v":""},{"$f":"IF('1. Order'!L114=\"\",\"\",'1. Order'!L114)","v":""},{"$f":"IF('1. Order'!N114=\"\",\"\",'1. Order'!N114)","v":""},null,null,{"$f":"IF('1. Order'!AV114=\"\",\"\",'1. Order'!AV114)","v":""},{"$f":"IF('1. Order'!AI114=\"\",\"\",'1. Order'!AI114)","v":""}]
[{"$f":"IF('1. Order'!B115=\"\",\"\",'1. Order'!B115)","v":""},{"$f":"IF('1. Order'!J115=\"\",\"\",'1. Order'!J115)","v":""},{"$f":"IF('1. Order'!K115=\"\",\"\",'1. Order'!K115)","v":""},{"$f":"IF('1. Order'!L115=\"\",\"\",'1. Order'!L115)","v":""},{"$f":"IF('1. Order'!N115=\"\",\"\",'1. Order'!N115)","v":""},null,null,{"$f":"IF('1. Order'!AV115=\"\",\"\",'1. Order'!AV115)","v":""},{"$f":"IF('1. Order'!AI115=\"\",\"\",'1. Order'!AI115)","v":""}]
[{"$f":"IF('1. Order'!B116=\"\",\"\",'1. Order'!B116)","v":""},{"$f":"IF('1. Order'!J116=\"\",\"\",'1. Order'!J116)","v":""},{"$f":"IF('1. Order'!K116=\"\",\"\",'1. Order'!K116)","v":""},{"$f":"IF('1. Order'!L116=\"\",\"\",'1. Order'!L116)","v":""},{"$f":"IF('1. Order'!N116=\"\",\"\",'1. Order'!N116)","v":""},null,null,{"$f":"IF('1. Order'!AV116=\"\",\"\",'1. Order'!AV116)","v":""},{"$f":"IF('1. Order'!AI116=\"\",\"\",'1. Order'!AI116)","v":""}]
[{"$f":"IF('1. Order'!B117=\"\",\"\",'1. Order'!B117)","v":""},{"$f":"IF('1. Order'!J117=\"\",\"\",'1. Order'!J117)","v":""},{"$f":"IF('1. Order'!K117=\"\",\"\",'1. Order'!K117)","v":""},{"$f":"IF('1. Order'!L117=\"\",\"\",'1. Order'!L117)","v":""},{"$f":"IF('1. Order'!N117=\"\",\"\",'1. Order'!N117)","v":""},null,null,{"$f":"IF('1. Order'!AV117=\"\",\"\",'1. Order'!AV117)","v":""},{"$f":"IF('1. Order'!AI117=\"\",\"\",'1. Order'!AI117)","v":""}]
[{"$f":"IF('1. Order'!B118=\"\",\"\",'1. Order'!B118)","v":""},{"$f":"IF('1. Order'!J118=\"\",\"\",'1. Order'!J118)","v":""},{"$f":"IF('1. Order'!K118=\"\",\"\",'1. Order'!K118)","v":""},{"$f":"IF('1. Order'!L118=\"\",\"\",'1. Order'!L118)","v":""},{"$f":"IF('1. Order'!N118=\"\",\"\",'1. Order'!N118)","v":""},null,null,{"$f":"IF('1. Order'!AV118=\"\",\"\",'1. Order'!AV118)","v":""},{"$f":"IF('1. Order'!AI118=\"\",\"\",'1. Order'!AI118)","v":""}]
[{"$f":"IF('1. Order'!B119=\"\",\"\",'1. Order'!B119)","v":""},{"$f":"IF('1. Order'!J119=\"\",\"\",'1. Order'!J119)","v":""},{"$f":"IF('1. Order'!K119=\"\",\"\",'1. Order'!K119)","v":""},{"$f":"IF('1. Order'!L119=\"\",\"\",'1. Order'!L119)","v":""},{"$f":"IF('1. Order'!N119=\"\",\"\",'1. Order'!N119)","v":""},null,null,{"$f":"IF('1. Order'!AV119=\"\",\"\",'1. Order'!AV119)","v":""},{"$f":"IF('1. Order'!AI119=\"\",\"\",'1. Order'!AI119)","v":""}]
[{"$f":"IF('1. Order'!B120=\"\",\"\",'1. Order'!B120)","v":""},{"$f":"IF('1. Order'!J120=\"\",\"\",'1. Order'!J120)","v":""},{"$f":"IF('1. Order'!K120=\"\",\"\",'1. Order'!K120)","v":""},{"$f":"IF('1. Order'!L120=\"\",\"\",'1. Order'!L120)","v":""},{"$f":"IF('1. Order'!N120=\"\",\"\",'1. Order'!N120)","v":""},null,null,{"$f":"IF('1. Order'!AV120=\"\",\"\",'1. Order'!AV120)","v":""},{"$f":"IF('1. Order'!AI120=\"\",\"\",'1. Order'!AI120)","v":""}]
[{"$f":"IF('1. Order'!B121=\"\",\"\",'1. Order'!B121)","v":""},{"$f":"IF('1. Order'!J121=\"\",\"\",'1. Order'!J121)","v":""},{"$f":"IF('1. Order'!K121=\"\",\"\",'1. Order'!K121)","v":""},{"$f":"IF('1. Order'!L121=\"\",\"\",'1. Order'!L121)","v":""},{"$f":"IF('1. Order'!N121=\"\",\"\",'1. Order'!N121)","v":""},null,null,{"$f":"IF('1. Order'!AV121=\"\",\"\",'1. Order'!AV121)","v":""},{"$f":"IF('1. Order'!AI121=\"\",\"\",'1. Order'!AI121)","v":""}]
[{"$f":"IF('1. Order'!B122=\"\",\"\",'1. Order'!B122)","v":""},{"$f":"IF('1. Order'!J122=\"\",\"\",'1. Order'!J122)","v":""},{"$f":"IF('1. Order'!K122=\"\",\"\",'1. Order'!K122)","v":""},{"$f":"IF('1. Order'!L122=\"\",\"\",'1. Order'!L122)","v":""},{"$f":"IF('1. Order'!N122=\"\",\"\",'1. Order'!N122)","v":""},null,null,{"$f":"IF('1. Order'!AV122=\"\",\"\",'1. Order'!AV122)","v":""},{"$f":"IF('1. Order'!AI122=\"\",\"\",'1. Order'!AI122)","v":""}]
[{"$f":"IF('1. Order'!B123=\"\",\"\",'1. Order'!B123)","v":""},{"$f":"IF('1. Order'!J123=\"\",\"\",'1. Order'!J123)","v":""},{"$f":"IF('1. Order'!K123=\"\",\"\",'1. Order'!K123)","v":""},{"$f":"IF('1. Order'!L123=\"\",\"\",'1. Order'!L123)","v":""},{"$f":"IF('1. Order'!N123=\"\",\"\",'1. Order'!N123)","v":""},null,null,{"$f":"IF('1. Order'!AV123=\"\",\"\",'1. Order'!AV123)","v":""},{"$f":"IF('1. Order'!AI123=\"\",\"\",'1. Order'!AI123)","v":""}]
[{"$f":"IF('1. Order'!B124=\"\",\"\",'1. Order'!B124)","v":""},{"$f":"IF('1. Order'!J124=\"\",\"\",'1. Order'!J124)","v":""},{"$f":"IF('1. Order'!K124=\"\",\"\",'1. Order'!K124)","v":""},{"$f":"IF('1. Order'!L124=\"\",\"\",'1. Order'!L124)","v":""},{"$f":"IF('1. Order'!N124=\"\",\"\",'1. Order'!N124)","v":""},null,null,{"$f":"IF('1. Order'!AV124=\"\",\"\",'1. Order'!AV124)","v":""},{"$f":"IF('1. Order'!AI124=\"\",\"\",'1. Order'!AI124)","v":""}]
[{"$f":"IF('1. Order'!B125=\"\",\"\",'1. Order'!B125)","v":""},{"$f":"IF('1. Order'!J125=\"\",\"\",'1. Order'!J125)","v":""},{"$f":"IF('1. Order'!K125=\"\",\"\",'1. Order'!K125)","v":""},{"$f":"IF('1. Order'!L125=\"\",\"\",'1. Order'!L125)","v":""},{"$f":"IF('1. Order'!N125=\"\",\"\",'1. Order'!N125)","v":""},null,null,{"$f":"IF('1. Order'!AV125=\"\",\"\",'1. Order'!AV125)","v":""},{"$f":"IF('1. Order'!AI125=\"\",\"\",'1. Order'!AI125)","v":""}]
[{"$f":"IF('1. Order'!B126=\"\",\"\",'1. Order'!B126)","v":""},{"$f":"IF('1. Order'!J126=\"\",\"\",'1. Order'!J126)","v":""},{"$f":"IF('1. Order'!K126=\"\",\"\",'1. Order'!K126)","v":""},{"$f":"IF('1. Order'!L126=\"\",\"\",'1. Order'!L126)","v":""},{"$f":"IF('1. Order'!N126=\"\",\"\",'1. Order'!N126)","v":""},null,null,{"$f":"IF('1. Order'!AV126=\"\",\"\",'1. Order'!AV126)","v":""},{"$f":"IF('1. Order'!AI126=\"\",\"\",'1. Order'!AI126)","v":""}]
[{"$f":"IF('1. Order'!B127=\"\",\"\",'1. Order'!B127)","v":""},{"$f":"IF('1. Order'!J127=\"\",\"\",'1. Order'!J127)","v":""},{"$f":"IF('1. Order'!K127=\"\",\"\",'1. Order'!K127)","v":""},{"$f":"IF('1. Order'!L127=\"\",\"\",'1. Order'!L127)","v":""},{"$f":"IF('1. Order'!N127=\"\",\"\",'1. Order'!N127)","v":""},null,null,{"$f":"IF('1. Order'!AV127=\"\",\"\",'1. Order'!AV127)","v":""},{"$f":"IF('1. Order'!AI127=\"\",\"\",'1. Order'!AI127)","v":""}]
[{"$f":"IF('1. Order'!B128=\"\",\"\",'1. Order'!B128)","v":""},{"$f":"IF('1. Order'!J128=\"\",\"\",'1. Order'!J128)","v":""},{"$f":"IF('1. Order'!K128=\"\",\"\",'1. Order'!K128)","v":""},{"$f":"IF('1. Order'!L128=\"\",\"\",'1. Order'!L128)","v":""},{"$f":"IF('1. Order'!N128=\"\",\"\",'1. Order'!N128)","v":""},null,null,{"$f":"IF('1. Order'!AV128=\"\",\"\",'1. Order'!AV128)","v":""},{"$f":"IF('1. Order'!AI128=\"\",\"\",'1. Order'!AI128)","v":""}]
[{"$f":"IF('1. Order'!B129=\"\",\"\",'1. Order'!B129)","v":""},{"$f":"IF('1. Order'!J129=\"\",\"\",'1. Order'!J129)","v":""},{"$f":"IF('1. Order'!K129=\"\",\"\",'1. Order'!K129)","v":""},{"$f":"IF('1. Order'!L129=\"\",\"\",'1. Order'!L129)","v":""},{"$f":"IF('1. Order'!N129=\"\",\"\",'1. Order'!N129)","v":""},null,null,{"$f":"IF('1. Order'!AV129=\"\",\"\",'1. Order'!AV129)","v":""},{"$f":"IF('1. Order'!AI129=\"\",\"\",'1. Order'!AI129)","v":""}]
[{"$f":"IF('1. Order'!B130=\"\",\"\",'1. Order'!B130)","v":""},{"$f":"IF('1. Order'!J130=\"\",\"\",'1. Order'!J130)","v":""},{"$f":"IF('1. Order'!K130=\"\",\"\",'1. Order'!K130)","v":""},{"$f":"IF('1. Order'!L130=\"\",\"\",'1. Order'!L130)","v":""},{"$f":"IF('1. Order'!N130=\"\",\"\",'1. Order'!N130)","v":""},null,null,{"$f":"IF('1. Order'!AV130=\"\",\"\",'1. Order'!AV130)","v":""},{"$f":"IF('1. Order'!AI130=\"\",\"\",'1. Order'!AI130)","v":""}]
[{"$f":"IF('1. Order'!B131=\"\",\"\",'1. Order'!B131)","v":""},{"$f":"IF('1. Order'!J131=\"\",\"\",'1. Order'!J131)","v":""},{"$f":"IF('1. Order'!K131=\"\",\"\",'1. Order'!K131)","v":""},{"$f":"IF('1. Order'!L131=\"\",\"\",'1. Order'!L131)","v":""},{"$f":"IF('1. Order'!N131=\"\",\"\",'1. Order'!N131)","v":""},null,null,{"$f":"IF('1. Order'!AV131=\"\",\"\",'1. Order'!AV131)","v":""},{"$f":"IF('1. Order'!AI131=\"\",\"\",'1. Order'!AI131)","v":""}]
[{"$f":"IF('1. Order'!B132=\"\",\"\",'1. Order'!B132)","v":""},{"$f":"IF('1. Order'!J132=\"\",\"\",'1. Order'!J132)","v":""},{"$f":"IF('1. Order'!K132=\"\",\"\",'1. Order'!K132)","v":""},{"$f":"IF('1. Order'!L132=\"\",\"\",'1. Order'!L132)","v":""},{"$f":"IF('1. Order'!N132=\"\",\"\",'1. Order'!N132)","v":""},null,null,{"$f":"IF('1. Order'!AV132=\"\",\"\",'1. Order'!AV132)","v":""},{"$f":"IF('1. Order'!AI132=\"\",\"\",'1. Order'!AI132)","v":""}]
[{"$f":"IF('1. Order'!B133=\"\",\"\",'1. Order'!B133)","v":""},{"$f":"IF('1. Order'!J133=\"\",\"\",'1. Order'!J133)","v":""},{"$f":"IF('1. Order'!K133=\"\",\"\",'1. Order'!K133)","v":""},{"$f":"IF('1. Order'!L133=\"\",\"\",'1. Order'!L133)","v":""},{"$f":"IF('1. Order'!N133=\"\",\"\",'1. Order'!N133)","v":""},null,null,{"$f":"IF('1. Order'!AV133=\"\",\"\",'1. Order'!AV133)","v":""},{"$f":"IF('1. Order'!AI133=\"\",\"\",'1. Order'!AI133)","v":""}]
[{"$f":"IF('1. Order'!B134=\"\",\"\",'1. Order'!B134)","v":""},{"$f":"IF('1. Order'!J134=\"\",\"\",'1. Order'!J134)","v":""},{"$f":"IF('1. Order'!K134=\"\",\"\",'1. Order'!K134)","v":""},{"$f":"IF('1. Order'!L134=\"\",\"\",'1. Order'!L134)","v":""},{"$f":"IF('1. Order'!N134=\"\",\"\",'1. Order'!N134)","v":""},null,null,{"$f":"IF('1. Order'!AV134=\"\",\"\",'1. Order'!AV134)","v":""},{"$f":"IF('1. Order'!AI134=\"\",\"\",'1. Order'!AI134)","v":""}]
[{"$f":"IF('1. Order'!B135=\"\",\"\",'1. Order'!B135)","v":""},{"$f":"IF('1. Order'!J135=\"\",\"\",'1. Order'!J135)","v":""},{"$f":"IF('1. Order'!K135=\"\",\"\",'1. Order'!K135)","v":""},{"$f":"IF('1. Order'!L135=\"\",\"\",'1. Order'!L135)","v":""},{"$f":"IF('1. Order'!N135=\"\",\"\",'1. Order'!N135)","v":""},null,null,{"$f":"IF('1. Order'!AV135=\"\",\"\",'1. Order'!AV135)","v":""},{"$f":"IF('1. Order'!AI135=\"\",\"\",'1. Order'!AI135)","v":""}]
[{"$f":"IF('1. Order'!B136=\"\",\"\",'1. Order'!B136)","v":""},{"$f":"IF('1. Order'!J136=\"\",\"\",'1. Order'!J136)","v":""},{"$f":"IF('1. Order'!K136=\"\",\"\",'1. Order'!K136)","v":""},{"$f":"IF('1. Order'!L136=\"\",\"\",'1. Order'!L136)","v":""},{"$f":"IF('1. Order'!N136=\"\",\"\",'1. Order'!N136)","v":""},null,null,{"$f":"IF('1. Order'!AV136=\"\",\"\",'1. Order'!AV136)","v":""},{"$f":"IF('1. Order'!AI136=\"\",\"\",'1. Order'!AI136)","v":""}]
[{"$f":"IF('1. Order'!B137=\"\",\"\",'1. Order'!B137)","v":""},{"$f":"IF('1. Order'!J137=\"\",\"\",'1. Order'!J137)","v":""},{"$f":"IF('1. Order'!K137=\"\",\"\",'1. Order'!K137)","v":""},{"$f":"IF('1. Order'!L137=\"\",\"\",'1. Order'!L137)","v":""},{"$f":"IF('1. Order'!N137=\"\",\"\",'1. Order'!N137)","v":""},null,null,{"$f":"IF('1. Order'!AV137=\"\",\"\",'1. Order'!AV137)","v":""},{"$f":"IF('1. Order'!AI137=\"\",\"\",'1. Order'!AI137)","v":""}]
[{"$f":"IF('1. Order'!B138=\"\",\"\",'1. Order'!B138)","v":""},{"$f":"IF('1. Order'!J138=\"\",\"\",'1. Order'!J138)","v":""},{"$f":"IF('1. Order'!K138=\"\",\"\",'1. Order'!K138)","v":""},{"$f":"IF('1. Order'!L138=\"\",\"\",'1. Order'!L138)","v":""},{"$f":"IF('1. Order'!N138=\"\",\"\",'1. Order'!N138)","v":""},null,null,{"$f":"IF('1. Order'!AV138=\"\",\"\",'1. Order'!AV138)","v":""},{"$f":"IF('1. Order'!AI138=\"\",\"\",'1. Order'!AI138)","v":""}]
[{"$f":"IF('1. Order'!B139=\"\",\"\",'1. Order'!B139)","v":""},{"$f":"IF('1. Order'!J139=\"\",\"\",'1. Order'!J139)","v":""},{"$f":"IF('1. Order'!K139=\"\",\"\",'1. Order'!K139)","v":""},{"$f":"IF('1. Order'!L139=\"\",\"\",'1. Order'!L139)","v":""},{"$f":"IF('1. Order'!N139=\"\",\"\",'1. Order'!N139)","v":""},null,null,{"$f":"IF('1. Order'!AV139=\"\",\"\",'1. Order'!AV139)","v":""},{"$f":"IF('1. Order'!AI139=\"\",\"\",'1. Order'!AI139)","v":""}]
[{"$f":"IF('1. Order'!B140=\"\",\"\",'1. Order'!B140)","v":""},{"$f":"IF('1. Order'!J140=\"\",\"\",'1. Order'!J140)","v":""},{"$f":"IF('1. Order'!K140=\"\",\"\",'1. Order'!K140)","v":""},{"$f":"IF('1. Order'!L140=\"\",\"\",'1. Order'!L140)","v":""},{"$f":"IF('1. Order'!N140=\"\",\"\",'1. Order'!N140)","v":""},null,null,{"$f":"IF('1. Order'!AV140=\"\",\"\",'1. Order'!AV140)","v":""},{"$f":"IF('1. Order'!AI140=\"\",\"\",'1. Order'!AI140)","v":""}]
[{"$f":"IF('1. Order'!B141=\"\",\"\",'1. Order'!B141)","v":""},{"$f":"IF('1. Order'!J141=\"\",\"\",'1. Order'!J141)","v":""},{"$f":"IF('1. Order'!K141=\"\",\"\",'1. Order'!K141)","v":""},{"$f":"IF('1. Order'!L141=\"\",\"\",'1. Order'!L141)","v":""},{"$f":"IF('1. Order'!N141=\"\",\"\",'1. Order'!N141)","v":""},null,null,{"$f":"IF('1. Order'!AV141=\"\",\"\",'1. Order'!AV141)","v":""},{"$f":"IF('1. Order'!AI141=\"\",\"\",'1. Order'!AI141)","v":""}]
[{"$f":"IF('1. Order'!B142=\"\",\"\",'1. Order'!B142)","v":""},{"$f":"IF('1. Order'!J142=\"\",\"\",'1. Order'!J142)","v":""},{"$f":"IF('1. Order'!K142=\"\",\"\",'1. Order'!K142)","v":""},{"$f":"IF('1. Order'!L142=\"\",\"\",'1. Order'!L142)","v":""},{"$f":"IF('1. Order'!N142=\"\",\"\",'1. Order'!N142)","v":""},null,null,{"$f":"IF('1. Order'!AV142=\"\",\"\",'1. Order'!AV142)","v":""},{"$f":"IF('1. Order'!AI142=\"\",\"\",'1. Order'!AI142)","v":""}]
[{"$f":"IF('1. Order'!B143=\"\",\"\",'1. Order'!B143)","v":""},{"$f":"IF('1. Order'!J143=\"\",\"\",'1. Order'!J143)","v":""},{"$f":"IF('1. Order'!K143=\"\",\"\",'1. Order'!K143)","v":""},{"$f":"IF('1. Order'!L143=\"\",\"\",'1. Order'!L143)","v":""},{"$f":"IF('1. Order'!N143=\"\",\"\",'1. Order'!N143)","v":""},null,null,{"$f":"IF('1. Order'!AV143=\"\",\"\",'1. Order'!AV143)","v":""},{"$f":"IF('1. Order'!AI143=\"\",\"\",'1. Order'!AI143)","v":""}]
[{"$f":"IF('1. Order'!B144=\"\",\"\",'1. Order'!B144)","v":""},{"$f":"IF('1. Order'!J144=\"\",\"\",'1. Order'!J144)","v":""},{"$f":"IF('1. Order'!K144=\"\",\"\",'1. Order'!K144)","v":""},{"$f":"IF('1. Order'!L144=\"\",\"\",'1. Order'!L144)","v":""},{"$f":"IF('1. Order'!N144=\"\",\"\",'1. Order'!N144)","v":""},null,null,{"$f":"IF('1. Order'!AV144=\"\",\"\",'1. Order'!AV144)","v":""},{"$f":"IF('1. Order'!AI144=\"\",\"\",'1. Order'!AI144)","v":""}]
[{"$f":"IF('1. Order'!B145=\"\",\"\",'1. Order'!B145)","v":""},{"$f":"IF('1. Order'!J145=\"\",\"\",'1. Order'!J145)","v":""},{"$f":"IF('1. Order'!K145=\"\",\"\",'1. Order'!K145)","v":""},{"$f":"IF('1. Order'!L145=\"\",\"\",'1. Order'!L145)","v":""},{"$f":"IF('1. Order'!N145=\"\",\"\",'1. Order'!N145)","v":""},null,null,{"$f":"IF('1. Order'!AV145=\"\",\"\",'1. Order'!AV145)","v":""},{"$f":"IF('1. Order'!AI145=\"\",\"\",'1. Order'!AI145)","v":""}]
[{"$f":"IF('1. Order'!B146=\"\",\"\",'1. Order'!B146)","v":""},{"$f":"IF('1. Order'!J146=\"\",\"\",'1. Order'!J146)","v":""},{"$f":"IF('1. Order'!K146=\"\",\"\",'1. Order'!K146)","v":""},{"$f":"IF('1. Order'!L146=\"\",\"\",'1. Order'!L146)","v":""},{"$f":"IF('1. Order'!N146=\"\",\"\",'1. Order'!N146)","v":""},null,null,{"$f":"IF('1. Order'!AV146=\"\",\"\",'1. Order'!AV146)","v":""},{"$f":"IF('1. Order'!AI146=\"\",\"\",'1. Order'!AI146)","v":""}]
[{"$f":"IF('1. Order'!B147=\"\",\"\",'1. Order'!B147)","v":""},{"$f":"IF('1. Order'!J147=\"\",\"\",'1. Order'!J147)","v":""},{"$f":"IF('1. Order'!K147=\"\",\"\",'1. Order'!K147)","v":""},{"$f":"IF('1. Order'!L147=\"\",\"\",'1. Order'!L147)","v":""},{"$f":"IF('1. Order'!N147=\"\",\"\",'1. Order'!N147)","v":""},null,null,{"$f":"IF('1. Order'!AV147=\"\",\"\",'1. Order'!AV147)","v":""},{"$f":"IF('1. Order'!AI147=\"\",\"\",'1. Order'!AI147)","v":""}]
[{"$f":"IF('1. Order'!B148=\"\",\"\",'1. Order'!B148)","v":""},{"$f":"IF('1. Order'!J148=\"\",\"\",'1. Order'!J148)","v":""},{"$f":"IF('1. Order'!K148=\"\",\"\",'1. Order'!K148)","v":""},{"$f":"IF('1. Order'!L148=\"\",\"\",'1. Order'!L148)","v":""},{"$f":"IF('1. Order'!N148=\"\",\"\",'1. Order'!N148)","v":""},null,null,{"$f":"IF('1. Order'!AV148=\"\",\"\",'1. Order'!AV148)","v":""},{"$f":"IF('1. Order'!AI148=\"\",\"\",'1. Order'!AI148)","v":""}]
[{"$f":"IF('1. Order'!B149=\"\",\"\",'1. Order'!B149)","v":""},{"$f":"IF('1. Order'!J149=\"\",\"\",'1. Order'!J149)","v":""},{"$f":"IF('1. Order'!K149=\"\",\"\",'1. Order'!K149)","v":""},{"$f":"IF('1. Order'!L149=\"\",\"\",'1. Order'!L149)","v":""},{"$f":"IF('1. Order'!N149=\"\",\"\",'1. Order'!N149)","v":""},null,null,{"$f":"IF('1. Order'!AV149=\"\",\"\",'1. Order'!AV149)","v":""},{"$f":"IF('1. Order'!AI149=\"\",\"\",'1. Order'!AI149)","v":""}]
[{"$f":"IF('1. Order'!B150=\"\",\"\",'1. Order'!B150)","v":""},{"$f":"IF('1. Order'!J150=\"\",\"\",'1. Order'!J150)","v":""},{"$f":"IF('1. Order'!K150=\"\",\"\",'1. Order'!K150)","v":""},{"$f":"IF('1. Order'!L150=\"\",\"\",'1. Order'!L150)","v":""},{"$f":"IF('1. Order'!N150=\"\",\"\",'1. Order'!N150)","v":""},null,null,{"$f":"IF('1. Order'!AV150=\"\",\"\",'1. Order'!AV150)","v":""},{"$f":"IF('1. Order'!AI150=\"\",\"\",'1. Order'!AI150)","v":""}]
[{"$f":"IF('1. Order'!B151=\"\",\"\",'1. Order'!B151)","v":""},{"$f":"IF('1. Order'!J151=\"\",\"\",'1. Order'!J151)","v":""},{"$f":"IF('1. Order'!K151=\"\",\"\",'1. Order'!K151)","v":""},{"$f":"IF('1. Order'!L151=\"\",\"\",'1. Order'!L151)","v":""},{"$f":"IF('1. Order'!N151=\"\",\"\",'1. Order'!N151)","v":""},null,null,{"$f":"IF('1. Order'!AV151=\"\",\"\",'1. Order'!AV151)","v":""},{"$f":"IF('1. Order'!AI151=\"\",\"\",'1. Order'!AI151)","v":""}]
[{"$f":"IF('1. Order'!B152=\"\",\"\",'1. Order'!B152)","v":""},{"$f":"IF('1. Order'!J152=\"\",\"\",'1. Order'!J152)","v":""},{"$f":"IF('1. Order'!K152=\"\",\"\",'1. Order'!K152)","v":""},{"$f":"IF('1. Order'!L152=\"\",\"\",'1. Order'!L152)","v":""},{"$f":"IF('1. Order'!N152=\"\",\"\",'1. Order'!N152)","v":""},null,null,{"$f":"IF('1. Order'!AV152=\"\",\"\",'1. Order'!AV152)","v":""},{"$f":"IF('1. Order'!AI152=\"\",\"\",'1. Order'!AI152)","v":""}]
[{"$f":"IF('1. Order'!B153=\"\",\"\",'1. Order'!B153)","v":""},{"$f":"IF('1. Order'!J153=\"\",\"\",'1. Order'!J153)","v":""},{"$f":"IF('1. Order'!K153=\"\",\"\",'1. Order'!K153)","v":""},{"$f":"IF('1. Order'!L153=\"\",\"\",'1. Order'!L153)","v":""},{"$f":"IF('1. Order'!N153=\"\",\"\",'1. Order'!N153)","v":""},null,null,{"$f":"IF('1. Order'!AV153=\"\",\"\",'1. Order'!AV153)","v":""},{"$f":"IF('1. Order'!AI153=\"\",\"\",'1. Order'!AI153)","v":""}]
[{"$f":"IF('1. Order'!B154=\"\",\"\",'1. Order'!B154)","v":""},{"$f":"IF('1. Order'!J154=\"\",\"\",'1. Order'!J154)","v":""},{"$f":"IF('1. Order'!K154=\"\",\"\",'1. Order'!K154)","v":""},{"$f":"IF('1. Order'!L154=\"\",\"\",'1. Order'!L154)","v":""},{"$f":"IF('1. Order'!N154=\"\",\"\",'1. Order'!N154)","v":""},null,null,{"$f":"IF('1. Order'!AV154=\"\",\"\",'1. Order'!AV154)","v":""},{"$f":"IF('1. Order'!AI154=\"\",\"\",'1. Order'!AI154)","v":""}]
[{"$f":"IF('1. Order'!B155=\"\",\"\",'1. Order'!B155)","v":""},{"$f":"IF('1. Order'!J155=\"\",\"\",'1. Order'!J155)","v":""},{"$f":"IF('1. Order'!K155=\"\",\"\",'1. Order'!K155)","v":""},{"$f":"IF('1. Order'!L155=\"\",\"\",'1. Order'!L155)","v":""},{"$f":"IF('1. Order'!N155=\"\",\"\",'1. Order'!N155)","v":""},null,null,{"$f":"IF('1. Order'!AV155=\"\",\"\",'1. Order'!AV155)","v":""},{"$f":"IF('1. Order'!AI155=\"\",\"\",'1. Order'!AI155)","v":""}]
[{"$f":"IF('1. Order'!B156=\"\",\"\",'1. Order'!B156)","v":""},{"$f":"IF('1. Order'!J156=\"\",\"\",'1. Order'!J156)","v":""},{"$f":"IF('1. Order'!K156=\"\",\"\",'1. Order'!K156)","v":""},{"$f":"IF('1. Order'!L156=\"\",\"\",'1. Order'!L156)","v":""},{"$f":"IF('1. Order'!N156=\"\",\"\",'1. Order'!N156)","v":""},null,null,{"$f":"IF('1. Order'!AV156=\"\",\"\",'1. Order'!AV156)","v":""},{"$f":"IF('1. Order'!AI156=\"\",\"\",'1. Order'!AI156)","v":""}]
[{"$f":"IF('1. Order'!B157=\"\",\"\",'1. Order'!B157)","v":""},{"$f":"IF('1. Order'!J157=\"\",\"\",'1. Order'!J157)","v":""},{"$f":"IF('1. Order'!K157=\"\",\"\",'1. Order'!K157)","v":""},{"$f":"IF('1. Order'!L157=\"\",\"\",'1. Order'!L157)","v":""},{"$f":"IF('1. Order'!N157=\"\",\"\",'1. Order'!N157)","v":""},null,null,{"$f":"IF('1. Order'!AV157=\"\",\"\",'1. Order'!AV157)","v":""},{"$f":"IF('1. Order'!AI157=\"\",\"\",'1. Order'!AI157)","v":""}]
[{"$f":"IF('1. Order'!B158=\"\",\"\",'1. Order'!B158)","v":""},{"$f":"IF('1. Order'!J158=\"\",\"\",'1. Order'!J158)","v":""},{"$f":"IF('1. Order'!K158=\"\",\"\",'1. Order'!K158)","v":""},{"$f":"IF('1. Order'!L158=\"\",\"\",'1. Order'!L158)","v":""},{"$f":"IF('1. Order'!N158=\"\",\"\",'1. Order'!N158)","v":""},null,null,{"$f":"IF('1. Order'!AV158=\"\",\"\",'1. Order'!AV158)","v":""},{"$f":"IF('1. Order'!AI158=\"\",\"\",'1. Order'!AI158)","v":""}]
[{"$f":"IF('1. Order'!B159=\"\",\"\",'1. Order'!B159)","v":""},{"$f":"IF('1. Order'!J159=\"\",\"\",'1. Order'!J159)","v":""},{"$f":"IF('1. Order'!K159=\"\",\"\",'1. Order'!K159)","v":""},{"$f":"IF('1. Order'!L159=\"\",\"\",'1. Order'!L159)","v":""},{"$f":"IF('1. Order'!N159=\"\",\"\",'1. Order'!N159)","v":""},null,null,{"$f":"IF('1. Order'!AV159=\"\",\"\",'1. Order'!AV159)","v":""},{"$f":"IF('1. Order'!AI159=\"\",\"\",'1. Order'!AI159)","v":""}]
[{"$f":"IF('1. Order'!B160=\"\",\"\",'1. Order'!B160)","v":""},{"$f":"IF('1. Order'!J160=\"\",\"\",'1. Order'!J160)","v":""},{"$f":"IF('1. Order'!K160=\"\",\"\",'1. Order'!K160)","v":""},{"$f":"IF('1. Order'!L160=\"\",\"\",'1. Order'!L160)","v":""},{"$f":"IF('1. Order'!N160=\"\",\"\",'1. Order'!N160)","v":""},null,null,{"$f":"IF('1. Order'!AV160=\"\",\"\",'1. Order'!AV160)","v":""},{"$f":"IF('1. Order'!AI160=\"\",\"\",'1. Order'!AI160)","v":""}]
[{"$f":"IF('1. Order'!B161=\"\",\"\",'1. Order'!B161)","v":""},{"$f":"IF('1. Order'!J161=\"\",\"\",'1. Order'!J161)","v":""},{"$f":"IF('1. Order'!K161=\"\",\"\",'1. Order'!K161)","v":""},{"$f":"IF('1. Order'!L161=\"\",\"\",'1. Order'!L161)","v":""},{"$f":"IF('1. Order'!N161=\"\",\"\",'1. Order'!N161)","v":""},null,null,{"$f":"IF('1. Order'!AV161=\"\",\"\",'1. Order'!AV161)","v":""},{"$f":"IF('1. Order'!AI161=\"\",\"\",'1. Order'!AI161)","v":""}]
[{"$f":"IF('1. Order'!B162=\"\",\"\",'1. Order'!B162)","v":""},{"$f":"IF('1. Order'!J162=\"\",\"\",'1. Order'!J162)","v":""},{"$f":"IF('1. Order'!K162=\"\",\"\",'1. Order'!K162)","v":""},{"$f":"IF('1. Order'!L162=\"\",\"\",'1. Order'!L162)","v":""},{"$f":"IF('1. Order'!N162=\"\",\"\",'1. Order'!N162)","v":""},null,null,{"$f":"IF('1. Order'!AV162=\"\",\"\",'1. Order'!AV162)","v":""},{"$f":"IF('1. Order'!AI162=\"\",\"\",'1. Order'!AI162)","v":""}]
[{"$f":"IF('1. Order'!B163=\"\",\"\",'1. Order'!B163)","v":""},{"$f":"IF('1. Order'!J163=\"\",\"\",'1. Order'!J163)","v":""},{"$f":"IF('1. Order'!K163=\"\",\"\",'1. Order'!K163)","v":""},{"$f":"IF('1. Order'!L163=\"\",\"\",'1. Order'!L163)","v":""},{"$f":"IF('1. Order'!N163=\"\",\"\",'1. Order'!N163)","v":""},null,null,{"$f":"IF('1. Order'!AV163=\"\",\"\",'1. Order'!AV163)","v":""},{"$f":"IF('1. Order'!AI163=\"\",\"\",'1. Order'!AI163)","v":""}]
[{"$f":"IF('1. Order'!B164=\"\",\"\",'1. Order'!B164)","v":""},{"$f":"IF('1. Order'!J164=\"\",\"\",'1. Order'!J164)","v":""},{"$f":"IF('1. Order'!K164=\"\",\"\",'1. Order'!K164)","v":""},{"$f":"IF('1. Order'!L164=\"\",\"\",'1. Order'!L164)","v":""},{"$f":"IF('1. Order'!N164=\"\",\"\",'1. Order'!N164)","v":""},null,null,{"$f":"IF('1. Order'!AV164=\"\",\"\",'1. Order'!AV164)","v":""},{"$f":"IF('1. Order'!AI164=\"\",\"\",'1. Order'!AI164)","v":""}]
[{"$f":"IF('1. Order'!B165=\"\",\"\",'1. Order'!B165)","v":""},{"$f":"IF('1. Order'!J165=\"\",\"\",'1. Order'!J165)","v":""},{"$f":"IF('1. Order'!K165=\"\",\"\",'1. Order'!K165)","v":""},{"$f":"IF('1. Order'!L165=\"\",\"\",'1. Order'!L165)","v":""},{"$f":"IF('1. Order'!N165=\"\",\"\",'1. Order'!N165)","v":""},null,null,{"$f":"IF('1. Order'!AV165=\"\",\"\",'1. Order'!AV165)","v":""},{"$f":"IF('1. Order'!AI165=\"\",\"\",'1. Order'!AI165)","v":""}]
[{"$f":"IF('1. Order'!B166=\"\",\"\",'1. Order'!B166)","v":""},{"$f":"IF('1. Order'!J166=\"\",\"\",'1. Order'!J166)","v":""},{"$f":"IF('1. Order'!K166=\"\",\"\",'1. Order'!K166)","v":""},{"$f":"IF('1. Order'!L166=\"\",\"\",'1. Order'!L166)","v":""},{"$f":"IF('1. Order'!N166=\"\",\"\",'1. Order'!N166)","v":""},null,null,{"$f":"IF('1. Order'!AV166=\"\",\"\",'1. Order'!AV166)","v":""},{"$f":"IF('1. Order'!AI166=\"\",\"\",'1. Order'!AI166)","v":""}]
[{"$f":"IF('1. Order'!B167=\"\",\"\",'1. Order'!B167)","v":""},{"$f":"IF('1. Order'!J167=\"\",\"\",'1. Order'!J167)","v":""},{"$f":"IF('1. Order'!K167=\"\",\"\",'1. Order'!K167)","v":""},{"$f":"IF('1. Order'!L167=\"\",\"\",'1. Order'!L167)","v":""},{"$f":"IF('1. Order'!N167=\"\",\"\",'1. Order'!N167)","v":""},null,null,{"$f":"IF('1. Order'!AV167=\"\",\"\",'1. Order'!AV167)","v":""},{"$f":"IF('1. Order'!AI167=\"\",\"\",'1. Order'!AI167)","v":""}]
[{"$f":"IF('1. Order'!B168=\"\",\"\",'1. Order'!B168)","v":""},{"$f":"IF('1. Order'!J168=\"\",\"\",'1. Order'!J168)","v":""},{"$f":"IF('1. Order'!K168=\"\",\"\",'1. Order'!K168)","v":""},{"$f":"IF('1. Order'!L168=\"\",\"\",'1. Order'!L168)","v":""},{"$f":"IF('1. Order'!N168=\"\",\"\",'1. Order'!N168)","v":""},null,null,{"$f":"IF('1. Order'!AV168=\"\",\"\",'1. Order'!AV168)","v":""},{"$f":"IF('1. Order'!AI168=\"\",\"\",'1. Order'!AI168)","v":""}]
[{"$f":"IF('1. Order'!B169=\"\",\"\",'1. Order'!B169)","v":""},{"$f":"IF('1. Order'!J169=\"\",\"\",'1. Order'!J169)","v":""},{"$f":"IF('1. Order'!K169=\"\",\"\",'1. Order'!K169)","v":""},{"$f":"IF('1. Order'!L169=\"\",\"\",'1. Order'!L169)","v":""},{"$f":"IF('1. Order'!N169=\"\",\"\",'1. Order'!N169)","v":""},null,null,{"$f":"IF('1. Order'!AV169=\"\",\"\",'1. Order'!AV169)","v":""},{"$f":"IF('1. Order'!AI169=\"\",\"\",'1. Order'!AI169)","v":""}]
[{"$f":"IF('1. Order'!B170=\"\",\"\",'1. Order'!B170)","v":""},{"$f":"IF('1. Order'!J170=\"\",\"\",'1. Order'!J170)","v":""},{"$f":"IF('1. Order'!K170=\"\",\"\",'1. Order'!K170)","v":""},{"$f":"IF('1. Order'!L170=\"\",\"\",'1. Order'!L170)","v":""},{"$f":"IF('1. Order'!N170=\"\",\"\",'1. Order'!N170)","v":""},null,null,{"$f":"IF('1. Order'!AV170=\"\",\"\",'1. Order'!AV170)","v":""},{"$f":"IF('1. Order'!AI170=\"\",\"\",'1. Order'!AI170)","v":""}]
[{"$f":"IF('1. Order'!B171=\"\",\"\",'1. Order'!B171)","v":""},{"$f":"IF('1. Order'!J171=\"\",\"\",'1. Order'!J171)","v":""},{"$f":"IF('1. Order'!K171=\"\",\"\",'1. Order'!K171)","v":""},{"$f":"IF('1. Order'!L171=\"\",\"\",'1. Order'!L171)","v":""},{"$f":"IF('1. Order'!N171=\"\",\"\",'1. Order'!N171)","v":""},null,null,{"$f":"IF('1. Order'!AV171=\"\",\"\",'1. Order'!AV171)","v":""},{"$f":"IF('1. Order'!AI171=\"\",\"\",'1. Order'!AI171)","v":""}]
[{"$f":"IF('1. Order'!B172=\"\",\"\",'1. Order'!B172)","v":""},{"$f":"IF('1. Order'!J172=\"\",\"\",'1. Order'!J172)","v":""},{"$f":"IF('1. Order'!K172=\"\",\"\",'1. Order'!K172)","v":""},{"$f":"IF('1. Order'!L172=\"\",\"\",'1. Order'!L172)","v":""},{"$f":"IF('1. Order'!N172=\"\",\"\",'1. Order'!N172)","v":""},null,null,{"$f":"IF('1. Order'!AV172=\"\",\"\",'1. Order'!AV172)","v":""},{"$f":"IF('1. Order'!AI172=\"\",\"\",'1. Order'!AI172)","v":""}]
[{"$f":"IF('1. Order'!B173=\"\",\"\",'1. Order'!B173)","v":""},{"$f":"IF('1. Order'!J173=\"\",\"\",'1. Order'!J173)","v":""},{"$f":"IF('1. Order'!K173=\"\",\"\",'1. Order'!K173)","v":""},{"$f":"IF('1. Order'!L173=\"\",\"\",'1. Order'!L173)","v":""},{"$f":"IF('1. Order'!N173=\"\",\"\",'1. Order'!N173)","v":""},null,null,{"$f":"IF('1. Order'!AV173=\"\",\"\",'1. Order'!AV173)","v":""},{"$f":"IF('1. Order'!AI173=\"\",\"\",'1. Order'!AI173)","v":""}]
[{"$f":"IF('1. Order'!B174=\"\",\"\",'1. Order'!B174)","v":""},{"$f":"IF('1. Order'!J174=\"\",\"\",'1. Order'!J174)","v":""},{"$f":"IF('1. Order'!K174=\"\",\"\",'1. Order'!K174)","v":""},{"$f":"IF('1. Order'!L174=\"\",\"\",'1. Order'!L174)","v":""},{"$f":"IF('1. Order'!N174=\"\",\"\",'1. Order'!N174)","v":""},null,null,{"$f":"IF('1. Order'!AV174=\"\",\"\",'1. Order'!AV174)","v":""},{"$f":"IF('1. Order'!AI174=\"\",\"\",'1. Order'!AI174)","v":""}]
[{"$f":"IF('1. Order'!B175=\"\",\"\",'1. Order'!B175)","v":""},{"$f":"IF('1. Order'!J175=\"\",\"\",'1. Order'!J175)","v":""},{"$f":"IF('1. Order'!K175=\"\",\"\",'1. Order'!K175)","v":""},{"$f":"IF('1. Order'!L175=\"\",\"\",'1. Order'!L175)","v":""},{"$f":"IF('1. Order'!N175=\"\",\"\",'1. Order'!N175)","v":""},null,null,{"$f":"IF('1. Order'!AV175=\"\",\"\",'1. Order'!AV175)","v":""},{"$f":"IF('1. Order'!AI175=\"\",\"\",'1. Order'!AI175)","v":""}]
[{"$f":"IF('1. Order'!B176=\"\",\"\",'1. Order'!B176)","v":""},{"$f":"IF('1. Order'!J176=\"\",\"\",'1. Order'!J176)","v":""},{"$f":"IF('1. Order'!K176=\"\",\"\",'1. Order'!K176)","v":""},{"$f":"IF('1. Order'!L176=\"\",\"\",'1. Order'!L176)","v":""},{"$f":"IF('1. Order'!N176=\"\",\"\",'1. Order'!N176)","v":""},null,null,{"$f":"IF('1. Order'!AV176=\"\",\"\",'1. Order'!AV176)","v":""},{"$f":"IF('1. Order'!AI176=\"\",\"\",'1. Order'!AI176)","v":""}]
[{"$f":"IF('1. Order'!B177=\"\",\"\",'1. Order'!B177)","v":""},{"$f":"IF('1. Order'!J177=\"\",\"\",'1. Order'!J177)","v":""},{"$f":"IF('1. Order'!K177=\"\",\"\",'1. Order'!K177)","v":""},{"$f":"IF('1. Order'!L177=\"\",\"\",'1. Order'!L177)","v":""},{"$f":"IF('1. Order'!N177=\"\",\"\",'1. Order'!N177)","v":""},null,null,{"$f":"IF('1. Order'!AV177=\"\",\"\",'1. Order'!AV177)","v":""},{"$f":"IF('1. Order'!AI177=\"\",\"\",'1. Order'!AI177)","v":""}]
[{"$f":"IF('1. Order'!B178=\"\",\"\",'1. Order'!B178)","v":""},{"$f":"IF('1. Order'!J178=\"\",\"\",'1. Order'!J178)","v":""},{"$f":"IF('1. Order'!K178=\"\",\"\",'1. Order'!K178)","v":""},{"$f":"IF('1. Order'!L178=\"\",\"\",'1. Order'!L178)","v":""},{"$f":"IF('1. Order'!N178=\"\",\"\",'1. Order'!N178)","v":""},null,null,{"$f":"IF('1. Order'!AV178=\"\",\"\",'1. Order'!AV178)","v":""},{"$f":"IF('1. Order'!AI178=\"\",\"\",'1. Order'!AI178)","v":""}]
[{"$f":"IF('1. Order'!B179=\"\",\"\",'1. Order'!B179)","v":""},{"$f":"IF('1. Order'!J179=\"\",\"\",'1. Order'!J179)","v":""},{"$f":"IF('1. Order'!K179=\"\",\"\",'1. Order'!K179)","v":""},{"$f":"IF('1. Order'!L179=\"\",\"\",'1. Order'!L179)","v":""},{"$f":"IF('1. Order'!N179=\"\",\"\",'1. Order'!N179)","v":""},null,null,{"$f":"IF('1. Order'!AV179=\"\",\"\",'1. Order'!AV179)","v":""},{"$f":"IF('1. Order'!AI179=\"\",\"\",'1. Order'!AI179)","v":""}]
[{"$f":"IF('1. Order'!B180=\"\",\"\",'1. Order'!B180)","v":""},{"$f":"IF('1. Order'!J180=\"\",\"\",'1. Order'!J180)","v":""},{"$f":"IF('1. Order'!K180=\"\",\"\",'1. Order'!K180)","v":""},{"$f":"IF('1. Order'!L180=\"\",\"\",'1. Order'!L180)","v":""},{"$f":"IF('1. Order'!N180=\"\",\"\",'1. Order'!N180)","v":""},null,null,{"$f":"IF('1. Order'!AV180=\"\",\"\",'1. Order'!AV180)","v":""},{"$f":"IF('1. Order'!AI180=\"\",\"\",'1. Order'!AI180)","v":""}]
[{"$f":"IF('1. Order'!B181=\"\",\"\",'1. Order'!B181)","v":""},{"$f":"IF('1. Order'!J181=\"\",\"\",'1. Order'!J181)","v":""},{"$f":"IF('1. Order'!K181=\"\",\"\",'1. Order'!K181)","v":""},{"$f":"IF('1. Order'!L181=\"\",\"\",'1. Order'!L181)","v":""},{"$f":"IF('1. Order'!N181=\"\",\"\",'1. Order'!N181)","v":""},null,null,{"$f":"IF('1. Order'!AV181=\"\",\"\",'1. Order'!AV181)","v":""},{"$f":"IF('1. Order'!AI181=\"\",\"\",'1. Order'!AI181)","v":""}]
[{"$f":"IF('1. Order'!B182=\"\",\"\",'1. Order'!B182)","v":""},{"$f":"IF('1. Order'!J182=\"\",\"\",'1. Order'!J182)","v":""},{"$f":"IF('1. Order'!K182=\"\",\"\",'1. Order'!K182)","v":""},{"$f":"IF('1. Order'!L182=\"\",\"\",'1. Order'!L182)","v":""},{"$f":"IF('1. Order'!N182=\"\",\"\",'1. Order'!N182)","v":""},null,null,{"$f":"IF('1. Order'!AV182=\"\",\"\",'1. Order'!AV182)","v":""},{"$f":"IF('1. Order'!AI182=\"\",\"\",'1. Order'!AI182)","v":""}]
[{"$f":"IF('1. Order'!B183=\"\",\"\",'1. Order'!B183)","v":""},{"$f":"IF('1. Order'!J183=\"\",\"\",'1. Order'!J183)","v":""},{"$f":"IF('1. Order'!K183=\"\",\"\",'1. Order'!K183)","v":""},{"$f":"IF('1. Order'!L183=\"\",\"\",'1. Order'!L183)","v":""},{"$f":"IF('1. Order'!N183=\"\",\"\",'1. Order'!N183)","v":""},null,null,{"$f":"IF('1. Order'!AV183=\"\",\"\",'1. Order'!AV183)","v":""},{"$f":"IF('1. Order'!AI183=\"\",\"\",'1. Order'!AI183)","v":""}]
[{"$f":"IF('1. Order'!B184=\"\",\"\",'1. Order'!B184)","v":""},{"$f":"IF('1. Order'!J184=\"\",\"\",'1. Order'!J184)","v":""},{"$f":"IF('1. Order'!K184=\"\",\"\",'1. Order'!K184)","v":""},{"$f":"IF('1. Order'!L184=\"\",\"\",'1. Order'!L184)","v":""},{"$f":"IF('1. Order'!N184=\"\",\"\",'1. Order'!N184)","v":""},null,null,{"$f":"IF('1. Order'!AV184=\"\",\"\",'1. Order'!AV184)","v":""},{"$f":"IF('1. Order'!AI184=\"\",\"\",'1. Order'!AI184)","v":""}]
[{"$f":"IF('1. Order'!B185=\"\",\"\",'1. Order'!B185)","v":""},{"$f":"IF('1. Order'!J185=\"\",\"\",'1. Order'!J185)","v":""},{"$f":"IF('1. Order'!K185=\"\",\"\",'1. Order'!K185)","v":""},{"$f":"IF('1. Order'!L185=\"\",\"\",'1. Order'!L185)","v":""},{"$f":"IF('1. Order'!N185=\"\",\"\",'1. Order'!N185)","v":""},null,null,{"$f":"IF('1. Order'!AV185=\"\",\"\",'1. Order'!AV185)","v":""},{"$f":"IF('1. Order'!AI185=\"\",\"\",'1. Order'!AI185)","v":""}]
[{"$f":"IF('1. Order'!B186=\"\",\"\",'1. Order'!B186)","v":""},{"$f":"IF('1. Order'!J186=\"\",\"\",'1. Order'!J186)","v":""},{"$f":"IF('1. Order'!K186=\"\",\"\",'1. Order'!K186)","v":""},{"$f":"IF('1. Order'!L186=\"\",\"\",'1. Order'!L186)","v":""},{"$f":"IF('1. Order'!N186=\"\",\"\",'1. Order'!N186)","v":""},null,null,{"$f":"IF('1. Order'!AV186=\"\",\"\",'1. Order'!AV186)","v":""},{"$f":"IF('1. Order'!AI186=\"\",\"\",'1. Order'!AI186)","v":""}]
[{"$f":"IF('1. Order'!B187=\"\",\"\",'1. Order'!B187)","v":""},{"$f":"IF('1. Order'!J187=\"\",\"\",'1. Order'!J187)","v":""},{"$f":"IF('1. Order'!K187=\"\",\"\",'1. Order'!K187)","v":""},{"$f":"IF('1. Order'!L187=\"\",\"\",'1. Order'!L187)","v":""},{"$f":"IF('1. Order'!N187=\"\",\"\",'1. Order'!N187)","v":""},null,null,{"$f":"IF('1. Order'!AV187=\"\",\"\",'1. Order'!AV187)","v":""},{"$f":"IF('1. Order'!AI187=\"\",\"\",'1. Order'!AI187)","v":""}]
[{"$f":"IF('1. Order'!B188=\"\",\"\",'1. Order'!B188)","v":""},{"$f":"IF('1. Order'!J188=\"\",\"\",'1. Order'!J188)","v":""},{"$f":"IF('1. Order'!K188=\"\",\"\",'1. Order'!K188)","v":""},{"$f":"IF('1. Order'!L188=\"\",\"\",'1. Order'!L188)","v":""},{"$f":"IF('1. Order'!N188=\"\",\"\",'1. Order'!N188)","v":""},null,null,{"$f":"IF('1. Order'!AV188=\"\",\"\",'1. Order'!AV188)","v":""},{"$f":"IF('1. Order'!AI188=\"\",\"\",'1. Order'!AI188)","v":""}]
[{"$f":"IF('1. Order'!B189=\"\",\"\",'1. Order'!B189)","v":""},{"$f":"IF('1. Order'!J189=\"\",\"\",'1. Order'!J189)","v":""},{"$f":"IF('1. Order'!K189=\"\",\"\",'1. Order'!K189)","v":""},{"$f":"IF('1. Order'!L189=\"\",\"\",'1. Order'!L189)","v":""},{"$f":"IF('1. Order'!N189=\"\",\"\",'1. Order'!N189)","v":""},null,null,{"$f":"IF('1. Order'!AV189=\"\",\"\",'1. Order'!AV189)","v":""},{"$f":"IF('1. Order'!AI189=\"\",\"\",'1. Order'!AI189)","v":""}]
[{"$f":"IF('1. Order'!B190=\"\",\"\",'1. Order'!B190)","v":""},{"$f":"IF('1. Order'!J190=\"\",\"\",'1. Order'!J190)","v":""},{"$f":"IF('1. Order'!K190=\"\",\"\",'1. Order'!K190)","v":""},{"$f":"IF('1. Order'!L190=\"\",\"\",'1. Order'!L190)","v":""},{"$f":"IF('1. Order'!N190=\"\",\"\",'1. Order'!N190)","v":""},null,null,{"$f":"IF('1. Order'!AV190=\"\",\"\",'1. Order'!AV190)","v":""},{"$f":"IF('1. Order'!AI190=\"\",\"\",'1. Order'!AI190)","v":""}]
[{"$f":"IF('1. Order'!B191=\"\",\"\",'1. Order'!B191)","v":""},{"$f":"IF('1. Order'!J191=\"\",\"\",'1. Order'!J191)","v":""},{"$f":"IF('1. Order'!K191=\"\",\"\",'1. Order'!K191)","v":""},{"$f":"IF('1. Order'!L191=\"\",\"\",'1. Order'!L191)","v":""},{"$f":"IF('1. Order'!N191=\"\",\"\",'1. Order'!N191)","v":""},null,null,{"$f":"IF('1. Order'!AV191=\"\",\"\",'1. Order'!AV191)","v":""},{"$f":"IF('1. Order'!AI191=\"\",\"\",'1. Order'!AI191)","v":""}]
[{"$f":"IF('1. Order'!B192=\"\",\"\",'1. Order'!B192)","v":""},{"$f":"IF('1. Order'!J192=\"\",\"\",'1. Order'!J192)","v":""},{"$f":"IF('1. Order'!K192=\"\",\"\",'1. Order'!K192)","v":""},{"$f":"IF('1. Order'!L192=\"\",\"\",'1. Order'!L192)","v":""},{"$f":"IF('1. Order'!N192=\"\",\"\",'1. Order'!N192)","v":""},null,null,{"$f":"IF('1. Order'!AV192=\"\",\"\",'1. Order'!AV192)","v":""},{"$f":"IF('1. Order'!AI192=\"\",\"\",'1. Order'!AI192)","v":""}]
[{"$f":"IF('1. Order'!B193=\"\",\"\",'1. Order'!B193)","v":""},{"$f":"IF('1. Order'!J193=\"\",\"\",'1. Order'!J193)","v":""},{"$f":"IF('1. Order'!K193=\"\",\"\",'1. Order'!K193)","v":""},{"$f":"IF('1. Order'!L193=\"\",\"\",'1. Order'!L193)","v":""},{"$f":"IF('1. Order'!N193=\"\",\"\",'1. Order'!N193)","v":""},null,null,{"$f":"IF('1. Order'!AV193=\"\",\"\",'1. Order'!AV193)","v":""},{"$f":"IF('1. Order'!AI193=\"\",\"\",'1. Order'!AI193)","v":""}]
[{"$f":"IF('1. Order'!B194=\"\",\"\",'1. Order'!B194)","v":""},{"$f":"IF('1. Order'!J194=\"\",\"\",'1. Order'!J194)","v":""},{"$f":"IF('1. Order'!K194=\"\",\"\",'1. Order'!K194)","v":""},{"$f":"IF('1. Order'!L194=\"\",\"\",'1. Order'!L194)","v":""},{"$f":"IF('1. Order'!N194=\"\",\"\",'1. Order'!N194)","v":""},null,null,{"$f":"IF('1. Order'!AV194=\"\",\"\",'1. Order'!AV194)","v":""},{"$f":"IF('1. Order'!AI194=\"\",\"\",'1. Order'!AI194)","v":""}]
[{"$f":"IF('1. Order'!B195=\"\",\"\",'1. Order'!B195)","v":""},{"$f":"IF('1. Order'!J195=\"\",\"\",'1. Order'!J195)","v":""},{"$f":"IF('1. Order'!K195=\"\",\"\",'1. Order'!K195)","v":""},{"$f":"IF('1. Order'!L195=\"\",\"\",'1. Order'!L195)","v":""},{"$f":"IF('1. Order'!N195=\"\",\"\",'1. Order'!N195)","v":""},null,null,{"$f":"IF('1. Order'!AV195=\"\",\"\",'1. Order'!AV195)","v":""},{"$f":"IF('1. Order'!AI195=\"\",\"\",'1. Order'!AI195)","v":""}]
[{"$f":"IF('1. Order'!B196=\"\",\"\",'1. Order'!B196)","v":""},{"$f":"IF('1. Order'!J196=\"\",\"\",'1. Order'!J196)","v":""},{"$f":"IF('1. Order'!K196=\"\",\"\",'1. Order'!K196)","v":""},{"$f":"IF('1. Order'!L196=\"\",\"\",'1. Order'!L196)","v":""},{"$f":"IF('1. Order'!N196=\"\",\"\",'1. Order'!N196)","v":""},null,null,{"$f":"IF('1. Order'!AV196=\"\",\"\",'1. Order'!AV196)","v":""},{"$f":"IF('1. Order'!AI196=\"\",\"\",'1. Order'!AI196)","v":""}]
[{"$f":"IF('1. Order'!B197=\"\",\"\",'1. Order'!B197)","v":""},{"$f":"IF('1. Order'!J197=\"\",\"\",'1. Order'!J197)","v":""},{"$f":"IF('1. Order'!K197=\"\",\"\",'1. Order'!K197)","v":""},{"$f":"IF('1. Order'!L197=\"\",\"\",'1. Order'!L197)","v":""},{"$f":"IF('1. Order'!N197=\"\",\"\",'1. Order'!N197)","v":""},null,null,{"$f":"IF('1. Order'!AV197=\"\",\"\",'1. Order'!AV197)","v":""},{"$f":"IF('1. Order'!AI197=\"\",\"\",'1. Order'!AI197)","v":""}]
[{"$f":"IF('1. Order'!B198=\"\",\"\",'1. Order'!B198)","v":""},{"$f":"IF('1. Order'!J198=\"\",\"\",'1. Order'!J198)","v":""},{"$f":"IF('1. Order'!K198=\"\",\"\",'1. Order'!K198)","v":""},{"$f":"IF('1. Order'!L198=\"\",\"\",'1. Order'!L198)","v":""},{"$f":"IF('1. Order'!N198=\"\",\"\",'1. Order'!N198)","v":""},null,null,{"$f":"IF('1. Order'!AV198=\"\",\"\",'1. Order'!AV198)","v":""},{"$f":"IF('1. Order'!AI198=\"\",\"\",'1. Order'!AI198)","v":""}]
[{"$f":"IF('1. Order'!B199=\"\",\"\",'1. Order'!B199)","v":""},{"$f":"IF('1. Order'!J199=\"\",\"\",'1. Order'!J199)","v":""},{"$f":"IF('1. Order'!K199=\"\",\"\",'1. Order'!K199)","v":""},{"$f":"IF('1. Order'!L199=\"\",\"\",'1. Order'!L199)","v":""},{"$f":"IF('1. Order'!N199=\"\",\"\",'1. Order'!N199)","v":""},null,null,{"$f":"IF('1. Order'!AV199=\"\",\"\",'1. Order'!AV199)","v":""},{"$f":"IF('1. Order'!AI199=\"\",\"\",'1. Order'!AI199)","v":""}]
[{"$f":"IF('1. Order'!B200=\"\",\"\",'1. Order'!B200)","v":""},{"$f":"IF('1. Order'!J200=\"\",\"\",'1. Order'!J200)","v":""},{"$f":"IF('1. Order'!K200=\"\",\"\",'1. Order'!K200)","v":""},{"$f":"IF('1. Order'!L200=\"\",\"\",'1. Order'!L200)","v":""},{"$f":"IF('1. Order'!N200=\"\",\"\",'1. Order'!N200)","v":""},null,null,{"$f":"IF('1. Order'!AV200=\"\",\"\",'1. Order'!AV200)","v":""},{"$f":"IF('1. Order'!AI200=\"\",\"\",'1. Order'!AI200)","v":""}]
[{"$f":"IF('1. Order'!B201=\"\",\"\",'1. Order'!B201)","v":""},{"$f":"IF('1. Order'!J201=\"\",\"\",'1. Order'!J201)","v":""},{"$f":"IF('1. Order'!K201=\"\",\"\",'1. Order'!K201)","v":""},{"$f":"IF('1. Order'!L201=\"\",\"\",'1. Order'!L201)","v":""},{"$f":"IF('1. Order'!N201=\"\",\"\",'1. Order'!N201)","v":""},null,null,{"$f":"IF('1. Order'!AV201=\"\",\"\",'1. Order'!AV201)","v":""},{"$f":"IF('1. Order'!AI201=\"\",\"\",'1. Order'!AI201)","v":""}]
[{"$f":"IF('1. Order'!B202=\"\",\"\",'1. Order'!B202)","v":""},{"$f":"IF('1. Order'!J202=\"\",\"\",'1. Order'!J202)","v":""},{"$f":"IF('1. Order'!K202=\"\",\"\",'1. Order'!K202)","v":""},{"$f":"IF('1. Order'!L202=\"\",\"\",'1. Order'!L202)","v":""},{"$f":"IF('1. Order'!N202=\"\",\"\",'1. Order'!N202)","v":""},null,null,{"$f":"IF('1. Order'!AV202=\"\",\"\",'1. Order'!AV202)","v":""},{"$f":"IF('1. Order'!AI202=\"\",\"\",'1. Order'!AI202)","v":""}]
[{"$f":"IF('1. Order'!B203=\"\",\"\",'1. Order'!B203)","v":""},{"$f":"IF('1. Order'!J203=\"\",\"\",'1. Order'!J203)","v":""},{"$f":"IF('1. Order'!K203=\"\",\"\",'1. Order'!K203)","v":""},{"$f":"IF('1. Order'!L203=\"\",\"\",'1. Order'!L203)","v":""},{"$f":"IF('1. Order'!N203=\"\",\"\",'1. Order'!N203)","v":""},null,null,{"$f":"IF('1. Order'!AV203=\"\",\"\",'1. Order'!AV203)","v":""},{"$f":"IF('1. Order'!AI203=\"\",\"\",'1. Order'!AI203)","v":""}]
[{"$f":"IF('1. Order'!B204=\"\",\"\",'1. Order'!B204)","v":""},{"$f":"IF('1. Order'!J204=\"\",\"\",'1. Order'!J204)","v":""},{"$f":"IF('1. Order'!K204=\"\",\"\",'1. Order'!K204)","v":""},{"$f":"IF('1. Order'!L204=\"\",\"\",'1. Order'!L204)","v":""},{"$f":"IF('1. Order'!N204=\"\",\"\",'1. Order'!N204)","v":""},null,null,{"$f":"IF('1. Order'!AV204=\"\",\"\",'1. Order'!AV204)","v":""},{"$f":"IF('1. Order'!AI204=\"\",\"\",'1. Order'!AI204)","v":""}]
[{"$f":"IF('1. Order'!B205=\"\",\"\",'1. Order'!B205)","v":""},{"$f":"IF('1. Order'!J205=\"\",\"\",'1. Order'!J205)","v":""},{"$f":"IF('1. Order'!K205=\"\",\"\",'1. Order'!K205)","v":""},{"$f":"IF('1. Order'!L205=\"\",\"\",'1. Order'!L205)","v":""},{"$f":"IF('1. Order'!N205=\"\",\"\",'1. Order'!N205)","v":""},null,null,{"$f":"IF('1. Order'!AV205=\"\",\"\",'1. Order'!AV205)","v":""},{"$f":"IF('1. Order'!AI205=\"\",\"\",'1. Order'!AI205)","v":""}]
[{"$f":"IF('1. Order'!B206=\"\",\"\",'1. Order'!B206)","v":""},{"$f":"IF('1. Order'!J206=\"\",\"\",'1. Order'!J206)","v":""},{"$f":"IF('1. Order'!K206=\"\",\"\",'1. Order'!K206)","v":""},{"$f":"IF('1. Order'!L206=\"\",\"\",'1. Order'!L206)","v":""},{"$f":"IF('1. Order'!N206=\"\",\"\",'1. Order'!N206)","v":""},null,null,{"$f":"IF('1. Order'!AV206=\"\",\"\",'1. Order'!AV206)","v":""},{"$f":"IF('1. Order'!AI206=\"\",\"\",'1. Order'!AI206)","v":""}]
[{"$f":"IF('1. Order'!B207=\"\",\"\",'1. Order'!B207)","v":""},{"$f":"IF('1. Order'!J207=\"\",\"\",'1. Order'!J207)","v":""},{"$f":"IF('1. Order'!K207=\"\",\"\",'1. Order'!K207)","v":""},{"$f":"IF('1. Order'!L207=\"\",\"\",'1. Order'!L207)","v":""},{"$f":"IF('1. Order'!N207=\"\",\"\",'1. Order'!N207)","v":""},null,null,{"$f":"IF('1. Order'!AV207=\"\",\"\",'1. Order'!AV207)","v":""},{"$f":"IF('1. Order'!AI207=\"\",\"\",'1. Order'!AI207)","v":""}]
[{"$f":"IF('1. Order'!B208=\"\",\"\",'1. Order'!B208)","v":""},{"$f":"IF('1. Order'!J208=\"\",\"\",'1. Order'!J208)","v":""},{"$f":"IF('1. Order'!K208=\"\",\"\",'1. Order'!K208)","v":""},{"$f":"IF('1. Order'!L208=\"\",\"\",'1. Order'!L208)","v":""},{"$f":"IF('1. Order'!N208=\"\",\"\",'1. Order'!N208)","v":""},null,null,{"$f":"IF('1. Order'!AV208=\"\",\"\",'1. Order'!AV208)","v":""},{"$f":"IF('1. Order'!AI208=\"\",\"\",'1. Order'!AI208)","v":""}]
[{"$f":"IF('1. Order'!B209=\"\",\"\",'1. Order'!B209)","v":""},{"$f":"IF('1. Order'!J209=\"\",\"\",'1. Order'!J209)","v":""},{"$f":"IF('1. Order'!K209=\"\",\"\",'1. Order'!K209)","v":""},{"$f":"IF('1. Order'!L209=\"\",\"\",'1. Order'!L209)","v":""},{"$f":"IF('1. Order'!N209=\"\",\"\",'1. Order'!N209)","v":""},null,null,{"$f":"IF('1. Order'!AV209=\"\",\"\",'1. Order'!AV209)","v":""},{"$f":"IF('1. Order'!AI209=\"\",\"\",'1. Order'!AI209)","v":""}]
[{"$f":"IF('1. Order'!B210=\"\",\"\",'1. Order'!B210)","v":""},{"$f":"IF('1. Order'!J210=\"\",\"\",'1. Order'!J210)","v":""},{"$f":"IF('1. Order'!K210=\"\",\"\",'1. Order'!K210)","v":""},{"$f":"IF('1. Order'!L210=\"\",\"\",'1. Order'!L210)","v":""},{"$f":"IF('1. Order'!N210=\"\",\"\",'1. Order'!N210)","v":""},null,null,{"$f":"IF('1. Order'!AV210=\"\",\"\",'1. Order'!AV210)","v":""},{"$f":"IF('1. Order'!AI210=\"\",\"\",'1. Order'!AI210)","v":""}]
[{"$f":"IF('1. Order'!B211=\"\",\"\",'1. Order'!B211)","v":""},{"$f":"IF('1. Order'!J211=\"\",\"\",'1. Order'!J211)","v":""},{"$f":"IF('1. Order'!K211=\"\",\"\",'1. Order'!K211)","v":""},{"$f":"IF('1. Order'!L211=\"\",\"\",'1. Order'!L211)","v":""},{"$f":"IF('1. Order'!N211=\"\",\"\",'1. Order'!N211)","v":""},null,null,{"$f":"IF('1. Order'!AV211=\"\",\"\",'1. Order'!AV211)","v":""},{"$f":"IF('1. Order'!AI211=\"\",\"\",'1. Order'!AI211)","v":""}]
[{"$f":"IF('1. Order'!B212=\"\",\"\",'1. Order'!B212)","v":""},{"$f":"IF('1. Order'!J212=\"\",\"\",'1. Order'!J212)","v":""},{"$f":"IF('1. Order'!K212=\"\",\"\",'1. Order'!K212)","v":""},{"$f":"IF('1. Order'!L212=\"\",\"\",'1. Order'!L212)","v":""},{"$f":"IF('1. Order'!N212=\"\",\"\",'1. Order'!N212)","v":""},null,null,{"$f":"IF('1. Order'!AV212=\"\",\"\",'1. Order'!AV212)","v":""},{"$f":"IF('1. Order'!AI212=\"\",\"\",'1. Order'!AI212)","v":""}]
[{"$f":"IF('1. Order'!B213=\"\",\"\",'1. Order'!B213)","v":""},{"$f":"IF('1. Order'!J213=\"\",\"\",'1. Order'!J213)","v":""},{"$f":"IF('1. Order'!K213=\"\",\"\",'1. Order'!K213)","v":""},{"$f":"IF('1. Order'!L213=\"\",\"\",'1. Order'!L213)","v":""},{"$f":"IF('1. Order'!N213=\"\",\"\",'1. Order'!N213)","v":""},null,null,{"$f":"IF('1. Order'!AV213=\"\",\"\",'1. Order'!AV213)","v":""},{"$f":"IF('1. Order'!AI213=\"\",\"\",'1. Order'!AI213)","v":""}]
[{"$f":"IF('1. Order'!B214=\"\",\"\",'1. Order'!B214)","v":""},{"$f":"IF('1. Order'!J214=\"\",\"\",'1. Order'!J214)","v":""},{"$f":"IF('1. Order'!K214=\"\",\"\",'1. Order'!K214)","v":""},{"$f":"IF('1. Order'!L214=\"\",\"\",'1. Order'!L214)","v":""},{"$f":"IF('1. Order'!N214=\"\",\"\",'1. Order'!N214)","v":""},null,null,{"$f":"IF('1. Order'!AV214=\"\",\"\",'1. Order'!AV214)","v":""},{"$f":"IF('1. Order'!AI214=\"\",\"\",'1. Order'!AI214)","v":""}]
[{"$f":"IF('1. Order'!B215=\"\",\"\",'1. Order'!B215)","v":""},{"$f":"IF('1. Order'!J215=\"\",\"\",'1. Order'!J215)","v":""},{"$f":"IF('1. Order'!K215=\"\",\"\",'1. Order'!K215)","v":""},{"$f":"IF('1. Order'!L215=\"\",\"\",'1. Order'!L215)","v":""},{"$f":"IF('1. Order'!N215=\"\",\"\",'1. Order'!N215)","v":""},null,null,{"$f":"IF('1. Order'!AV215=\"\",\"\",'1. Order'!AV215)","v":""},{"$f":"IF('1. Order'!AI215=\"\",\"\",'1. Order'!AI215)","v":""}]
[{"$f":"IF('1. Order'!B216=\"\",\"\",'1. Order'!B216)","v":""},{"$f":"IF('1. Order'!J216=\"\",\"\",'1. Order'!J216)","v":""},{"$f":"IF('1. Order'!K216=\"\",\"\",'1. Order'!K216)","v":""},{"$f":"IF('1. Order'!L216=\"\",\"\",'1. Order'!L216)","v":""},{"$f":"IF('1. Order'!N216=\"\",\"\",'1. Order'!N216)","v":""},null,null,{"$f":"IF('1. Order'!AV216=\"\",\"\",'1. Order'!AV216)","v":""},{"$f":"IF('1. Order'!AI216=\"\",\"\",'1. Order'!AI216)","v":""}]
[{"$f":"IF('1. Order'!B217=\"\",\"\",'1. Order'!B217)","v":""},{"$f":"IF('1. Order'!J217=\"\",\"\",'1. Order'!J217)","v":""},{"$f":"IF('1. Order'!K217=\"\",\"\",'1. Order'!K217)","v":""},{"$f":"IF('1. Order'!L217=\"\",\"\",'1. Order'!L217)","v":""},{"$f":"IF('1. Order'!N217=\"\",\"\",'1. Order'!N217)","v":""},null,null,{"$f":"IF('1. Order'!AV217=\"\",\"\",'1. Order'!AV217)","v":""},{"$f":"IF('1. Order'!AI217=\"\",\"\",'1. Order'!AI217)","v":""}]
[{"$f":"IF('1. Order'!B218=\"\",\"\",'1. Order'!B218)","v":""},{"$f":"IF('1. Order'!J218=\"\",\"\",'1. Order'!J218)","v":""},{"$f":"IF('1. Order'!K218=\"\",\"\",'1. Order'!K218)","v":""},{"$f":"IF('1. Order'!L218=\"\",\"\",'1. Order'!L218)","v":""},{"$f":"IF('1. Order'!N218=\"\",\"\",'1. Order'!N218)","v":""},null,null,{"$f":"IF('1. Order'!AV218=\"\",\"\",'1. Order'!AV218)","v":""},{"$f":"IF('1. Order'!AI218=\"\",\"\",'1. Order'!AI218)","v":""}]
[{"$f":"IF('1. Order'!B219=\"\",\"\",'1. Order'!B219)","v":""},{"$f":"IF('1. Order'!J219=\"\",\"\",'1. Order'!J219)","v":""},{"$f":"IF('1. Order'!K219=\"\",\"\",'1. Order'!K219)","v":""},{"$f":"IF('1. Order'!L219=\"\",\"\",'1. Order'!L219)","v":""},{"$f":"IF('1. Order'!N219=\"\",\"\",'1. Order'!N219)","v":""},null,null,{"$f":"IF('1. Order'!AV219=\"\",\"\",'1. Order'!AV219)","v":""},{"$f":"IF('1. Order'!AI219=\"\",\"\",'1. Order'!AI219)","v":""}]
[{"$f":"IF('1. Order'!B220=\"\",\"\",'1. Order'!B220)","v":""},{"$f":"IF('1. Order'!J220=\"\",\"\",'1. Order'!J220)","v":""},{"$f":"IF('1. Order'!K220=\"\",\"\",'1. Order'!K220)","v":""},{"$f":"IF('1. Order'!L220=\"\",\"\",'1. Order'!L220)","v":""},{"$f":"IF('1. Order'!N220=\"\",\"\",'1. Order'!N220)","v":""},null,null,{"$f":"IF('1. Order'!AV220=\"\",\"\",'1. Order'!AV220)","v":""},{"$f":"IF('1. Order'!AI220=\"\",\"\",'1. Order'!AI220)","v":""}]
[{"$f":"IF('1. Order'!B221=\"\",\"\",'1. Order'!B221)","v":""},{"$f":"IF('1. Order'!J221=\"\",\"\",'1. Order'!J221)","v":""},{"$f":"IF('1. Order'!K221=\"\",\"\",'1. Order'!K221)","v":""},{"$f":"IF('1. Order'!L221=\"\",\"\",'1. Order'!L221)","v":""},{"$f":"IF('1. Order'!N221=\"\",\"\",'1. Order'!N221)","v":""},null,null,{"$f":"IF('1. Order'!AV221=\"\",\"\",'1. Order'!AV221)","v":""},{"$f":"IF('1. Order'!AI221=\"\",\"\",'1. Order'!AI221)","v":""}]
[{"$f":"IF('1. Order'!B222=\"\",\"\",'1. Order'!B222)","v":""},{"$f":"IF('1. Order'!J222=\"\",\"\",'1. Order'!J222)","v":""},{"$f":"IF('1. Order'!K222=\"\",\"\",'1. Order'!K222)","v":""},{"$f":"IF('1. Order'!L222=\"\",\"\",'1. Order'!L222)","v":""},{"$f":"IF('1. Order'!N222=\"\",\"\",'1. Order'!N222)","v":""},null,null,{"$f":"IF('1. Order'!AV222=\"\",\"\",'1. Order'!AV222)","v":""},{"$f":"IF('1. Order'!AI222=\"\",\"\",'1. Order'!AI222)","v":""}]
[{"$f":"IF('1. Order'!B223=\"\",\"\",'1. Order'!B223)","v":""},{"$f":"IF('1. Order'!J223=\"\",\"\",'1. Order'!J223)","v":""},{"$f":"IF('1. Order'!K223=\"\",\"\",'1. Order'!K223)","v":""},{"$f":"IF('1. Order'!L223=\"\",\"\",'1. Order'!L223)","v":""},{"$f":"IF('1. Order'!N223=\"\",\"\",'1. Order'!N223)","v":""},null,null,{"$f":"IF('1. Order'!AV223=\"\",\"\",'1. Order'!AV223)","v":""},{"$f":"IF('1. Order'!AI223=\"\",\"\",'1. Order'!AI223)","v":""}]
[{"$f":"IF('1. Order'!B224=\"\",\"\",'1. Order'!B224)","v":""},{"$f":"IF('1. Order'!J224=\"\",\"\",'1. Order'!J224)","v":""},{"$f":"IF('1. Order'!K224=\"\",\"\",'1. Order'!K224)","v":""},{"$f":"IF('1. Order'!L224=\"\",\"\",'1. Order'!L224)","v":""},{"$f":"IF('1. Order'!N224=\"\",\"\",'1. Order'!N224)","v":""},null,null,{"$f":"IF('1. Order'!AV224=\"\",\"\",'1. Order'!AV224)","v":""},{"$f":"IF('1. Order'!AI224=\"\",\"\",'1. Order'!AI224)","v":""}]
[{"$f":"IF('1. Order'!B225=\"\",\"\",'1. Order'!B225)","v":""},{"$f":"IF('1. Order'!J225=\"\",\"\",'1. Order'!J225)","v":""},{"$f":"IF('1. Order'!K225=\"\",\"\",'1. Order'!K225)","v":""},{"$f":"IF('1. Order'!L225=\"\",\"\",'1. Order'!L225)","v":""},{"$f":"IF('1. Order'!N225=\"\",\"\",'1. Order'!N225)","v":""},null,null,{"$f":"IF('1. Order'!AV225=\"\",\"\",'1. Order'!AV225)","v":""},{"$f":"IF('1. Order'!AI225=\"\",\"\",'1. Order'!AI225)","v":""}]
[{"$f":"IF('1. Order'!B226=\"\",\"\",'1. Order'!B226)","v":""},{"$f":"IF('1. Order'!J226=\"\",\"\",'1. Order'!J226)","v":""},{"$f":"IF('1. Order'!K226=\"\",\"\",'1. Order'!K226)","v":""},{"$f":"IF('1. Order'!L226=\"\",\"\",'1. Order'!L226)","v":""},{"$f":"IF('1. Order'!N226=\"\",\"\",'1. Order'!N226)","v":""},null,null,{"$f":"IF('1. Order'!AV226=\"\",\"\",'1. Order'!AV226)","v":""},{"$f":"IF('1. Order'!AI226=\"\",\"\",'1. Order'!AI226)","v":""}]
[{"$f":"IF('1. Order'!B227=\"\",\"\",'1. Order'!B227)","v":""},{"$f":"IF('1. Order'!J227=\"\",\"\",'1. Order'!J227)","v":""},{"$f":"IF('1. Order'!K227=\"\",\"\",'1. Order'!K227)","v":""},{"$f":"IF('1. Order'!L227=\"\",\"\",'1. Order'!L227)","v":""},{"$f":"IF('1. Order'!N227=\"\",\"\",'1. Order'!N227)","v":""},null,null,{"$f":"IF('1. Order'!AV227=\"\",\"\",'1. Order'!AV227)","v":""},{"$f":"IF('1. Order'!AI227=\"\",\"\",'1. Order'!AI227)","v":""}]
[{"$f":"IF('1. Order'!B228=\"\",\"\",'1. Order'!B228)","v":""},{"$f":"IF('1. Order'!J228=\"\",\"\",'1. Order'!J228)","v":""},{"$f":"IF('1. Order'!K228=\"\",\"\",'1. Order'!K228)","v":""},{"$f":"IF('1. Order'!L228=\"\",\"\",'1. Order'!L228)","v":""},{"$f":"IF('1. Order'!N228=\"\",\"\",'1. Order'!N228)","v":""},null,null,{"$f":"IF('1. Order'!AV228=\"\",\"\",'1. Order'!AV228)","v":""},{"$f":"IF('1. Order'!AI228=\"\",\"\",'1. Order'!AI228)","v":""}]
[{"$f":"IF('1. Order'!B229=\"\",\"\",'1. Order'!B229)","v":""},{"$f":"IF('1. Order'!J229=\"\",\"\",'1. Order'!J229)","v":""},{"$f":"IF('1. Order'!K229=\"\",\"\",'1. Order'!K229)","v":""},{"$f":"IF('1. Order'!L229=\"\",\"\",'1. Order'!L229)","v":""},{"$f":"IF('1. Order'!N229=\"\",\"\",'1. Order'!N229)","v":""},null,null,{"$f":"IF('1. Order'!AV229=\"\",\"\",'1. Order'!AV229)","v":""},{"$f":"IF('1. Order'!AI229=\"\",\"\",'1. Order'!AI229)","v":""}]
[{"$f":"IF('1. Order'!B230=\"\",\"\",'1. Order'!B230)","v":""},{"$f":"IF('1. Order'!J230=\"\",\"\",'1. Order'!J230)","v":""},{"$f":"IF('1. Order'!K230=\"\",\"\",'1. Order'!K230)","v":""},{"$f":"IF('1. Order'!L230=\"\",\"\",'1. Order'!L230)","v":""},{"$f":"IF('1. Order'!N230=\"\",\"\",'1. Order'!N230)","v":""},null,null,{"$f":"IF('1. Order'!AV230=\"\",\"\",'1. Order'!AV230)","v":""},{"$f":"IF('1. Order'!AI230=\"\",\"\",'1. Order'!AI230)","v":""}]
[{"$f":"IF('1. Order'!B231=\"\",\"\",'1. Order'!B231)","v":""},{"$f":"IF('1. Order'!J231=\"\",\"\",'1. Order'!J231)","v":""},{"$f":"IF('1. Order'!K231=\"\",\"\",'1. Order'!K231)","v":""},{"$f":"IF('1. Order'!L231=\"\",\"\",'1. Order'!L231)","v":""},{"$f":"IF('1. Order'!N231=\"\",\"\",'1. Order'!N231)","v":""},null,null,{"$f":"IF('1. Order'!AV231=\"\",\"\",'1. Order'!AV231)","v":""},{"$f":"IF('1. Order'!AI231=\"\",\"\",'1. Order'!AI231)","v":""}]
[{"$f":"IF('1. Order'!B232=\"\",\"\",'1. Order'!B232)","v":""},{"$f":"IF('1. Order'!J232=\"\",\"\",'1. Order'!J232)","v":""},{"$f":"IF('1. Order'!K232=\"\",\"\",'1. Order'!K232)","v":""},{"$f":"IF('1. Order'!L232=\"\",\"\",'1. Order'!L232)","v":""},{"$f":"IF('1. Order'!N232=\"\",\"\",'1. Order'!N232)","v":""},null,null,{"$f":"IF('1. Order'!AV232=\"\",\"\",'1. Order'!AV232)","v":""},{"$f":"IF('1. Order'!AI232=\"\",\"\",'1. Order'!AI232)","v":""}]
[{"$f":"IF('1. Order'!B233=\"\",\"\",'1. Order'!B233)","v":""},{"$f":"IF('1. Order'!J233=\"\",\"\",'1. Order'!J233)","v":""},{"$f":"IF('1. Order'!K233=\"\",\"\",'1. Order'!K233)","v":""},{"$f":"IF('1. Order'!L233=\"\",\"\",'1. Order'!L233)","v":""},{"$f":"IF('1. Order'!N233=\"\",\"\",'1. Order'!N233)","v":""},null,null,{"$f":"IF('1. Order'!AV233=\"\",\"\",'1. Order'!AV233)","v":""},{"$f":"IF('1. Order'!AI233=\"\",\"\",'1. Order'!AI233)","v":""}]
[{"$f":"IF('1. Order'!B234=\"\",\"\",'1. Order'!B234)","v":""},{"$f":"IF('1. Order'!J234=\"\",\"\",'1. Order'!J234)","v":""},{"$f":"IF('1. Order'!K234=\"\",\"\",'1. Order'!K234)","v":""},{"$f":"IF('1. Order'!L234=\"\",\"\",'1. Order'!L234)","v":""},{"$f":"IF('1. Order'!N234=\"\",\"\",'1. Order'!N234)","v":""},null,null,{"$f":"IF('1. Order'!AV234=\"\",\"\",'1. Order'!AV234)","v":""},{"$f":"IF('1. Order'!AI234=\"\",\"\",'1. Order'!AI234)","v":""}]
[{"$f":"IF('1. Order'!B235=\"\",\"\",'1. Order'!B235)","v":""},{"$f":"IF('1. Order'!J235=\"\",\"\",'1. Order'!J235)","v":""},{"$f":"IF('1. Order'!K235=\"\",\"\",'1. Order'!K235)","v":""},{"$f":"IF('1. Order'!L235=\"\",\"\",'1. Order'!L235)","v":""},{"$f":"IF('1. Order'!N235=\"\",\"\",'1. Order'!N235)","v":""},null,null,{"$f":"IF('1. Order'!AV235=\"\",\"\",'1. Order'!AV235)","v":""},{"$f":"IF('1. Order'!AI235=\"\",\"\",'1. Order'!AI235)","v":""}]
[{"$f":"IF('1. Order'!B236=\"\",\"\",'1. Order'!B236)","v":""},{"$f":"IF('1. Order'!J236=\"\",\"\",'1. Order'!J236)","v":""},{"$f":"IF('1. Order'!K236=\"\",\"\",'1. Order'!K236)","v":""},{"$f":"IF('1. Order'!L236=\"\",\"\",'1. Order'!L236)","v":""},{"$f":"IF('1. Order'!N236=\"\",\"\",'1. Order'!N236)","v":""},null,null,{"$f":"IF('1. Order'!AV236=\"\",\"\",'1. Order'!AV236)","v":""},{"$f":"IF('1. Order'!AI236=\"\",\"\",'1. Order'!AI236)","v":""}]
[{"$f":"IF('1. Order'!B237=\"\",\"\",'1. Order'!B237)","v":""},{"$f":"IF('1. Order'!J237=\"\",\"\",'1. Order'!J237)","v":""},{"$f":"IF('1. Order'!K237=\"\",\"\",'1. Order'!K237)","v":""},{"$f":"IF('1. Order'!L237=\"\",\"\",'1. Order'!L237)","v":""},{"$f":"IF('1. Order'!N237=\"\",\"\",'1. Order'!N237)","v":""},null,null,{"$f":"IF('1. Order'!AV237=\"\",\"\",'1. Order'!AV237)","v":""},{"$f":"IF('1. Order'!AI237=\"\",\"\",'1. Order'!AI237)","v":""}]
[{"$f":"IF('1. Order'!B238=\"\",\"\",'1. Order'!B238)","v":""},{"$f":"IF('1. Order'!J238=\"\",\"\",'1. Order'!J238)","v":""},{"$f":"IF('1. Order'!K238=\"\",\"\",'1. Order'!K238)","v":""},{"$f":"IF('1. Order'!L238=\"\",\"\",'1. Order'!L238)","v":""},{"$f":"IF('1. Order'!N238=\"\",\"\",'1. Order'!N238)","v":""},null,null,{"$f":"IF('1. Order'!AV238=\"\",\"\",'1. Order'!AV238)","v":""},{"$f":"IF('1. Order'!AI238=\"\",\"\",'1. Order'!AI238)","v":""}]
[{"$f":"IF('1. Order'!B239=\"\",\"\",'1. Order'!B239)","v":""},{"$f":"IF('1. Order'!J239=\"\",\"\",'1. Order'!J239)","v":""},{"$f":"IF('1. Order'!K239=\"\",\"\",'1. Order'!K239)","v":""},{"$f":"IF('1. Order'!L239=\"\",\"\",'1. Order'!L239)","v":""},{"$f":"IF('1. Order'!N239=\"\",\"\",'1. Order'!N239)","v":""},null,null,{"$f":"IF('1. Order'!AV239=\"\",\"\",'1. Order'!AV239)","v":""},{"$f":"IF('1. Order'!AI239=\"\",\"\",'1. Order'!AI239)","v":""}]
[{"$f":"IF('1. Order'!B240=\"\",\"\",'1. Order'!B240)","v":""},{"$f":"IF('1. Order'!J240=\"\",\"\",'1. Order'!J240)","v":""},{"$f":"IF('1. Order'!K240=\"\",\"\",'1. Order'!K240)","v":""},{"$f":"IF('1. Order'!L240=\"\",\"\",'1. Order'!L240)","v":""},{"$f":"IF('1. Order'!N240=\"\",\"\",'1. Order'!N240)","v":""},null,null,{"$f":"IF('1. Order'!AV240=\"\",\"\",'1. Order'!AV240)","v":""},{"$f":"IF('1. Order'!AI240=\"\",\"\",'1. Order'!AI240)","v":""}]
[{"$f":"IF('1. Order'!B241=\"\",\"\",'1. Order'!B241)","v":""},{"$f":"IF('1. Order'!J241=\"\",\"\",'1. Order'!J241)","v":""},{"$f":"IF('1. Order'!K241=\"\",\"\",'1. Order'!K241)","v":""},{"$f":"IF('1. Order'!L241=\"\",\"\",'1. Order'!L241)","v":""},{"$f":"IF('1. Order'!N241=\"\",\"\",'1. Order'!N241)","v":""},null,null,{"$f":"IF('1. Order'!AV241=\"\",\"\",'1. Order'!AV241)","v":""},{"$f":"IF('1. Order'!AI241=\"\",\"\",'1. Order'!AI241)","v":""}]
[{"$f":"IF('1. Order'!B242=\"\",\"\",'1. Order'!B242)","v":""},{"$f":"IF('1. Order'!J242=\"\",\"\",'1. Order'!J242)","v":""},{"$f":"IF('1. Order'!K242=\"\",\"\",'1. Order'!K242)","v":""},{"$f":"IF('1. Order'!L242=\"\",\"\",'1. Order'!L242)","v":""},{"$f":"IF('1. Order'!N242=\"\",\"\",'1. Order'!N242)","v":""},null,null,{"$f":"IF('1. Order'!AV242=\"\",\"\",'1. Order'!AV242)","v":""},{"$f":"IF('1. Order'!AI242=\"\",\"\",'1. Order'!AI242)","v":""}]
[{"$f":"IF('1. Order'!B243=\"\",\"\",'1. Order'!B243)","v":""},{"$f":"IF('1. Order'!J243=\"\",\"\",'1. Order'!J243)","v":""},{"$f":"IF('1. Order'!K243=\"\",\"\",'1. Order'!K243)","v":""},{"$f":"IF('1. Order'!L243=\"\",\"\",'1. Order'!L243)","v":""},{"$f":"IF('1. Order'!N243=\"\",\"\",'1. Order'!N243)","v":""},null,null,{"$f":"IF('1. Order'!AV243=\"\",\"\",'1. Order'!AV243)","v":""},{"$f":"IF('1. Order'!AI243=\"\",\"\",'1. Order'!AI243)","v":""}]
[{"$f":"IF('1. Order'!B244=\"\",\"\",'1. Order'!B244)","v":""},{"$f":"IF('1. Order'!J244=\"\",\"\",'1. Order'!J244)","v":""},{"$f":"IF('1. Order'!K244=\"\",\"\",'1. Order'!K244)","v":""},{"$f":"IF('1. Order'!L244=\"\",\"\",'1. Order'!L244)","v":""},{"$f":"IF('1. Order'!N244=\"\",\"\",'1. Order'!N244)","v":""},null,null,{"$f":"IF('1. Order'!AV244=\"\",\"\",'1. Order'!AV244)","v":""},{"$f":"IF('1. Order'!AI244=\"\",\"\",'1. Order'!AI244)","v":""}]
[{"$f":"IF('1. Order'!B245=\"\",\"\",'1. Order'!B245)","v":""},{"$f":"IF('1. Order'!J245=\"\",\"\",'1. Order'!J245)","v":""},{"$f":"IF('1. Order'!K245=\"\",\"\",'1. Order'!K245)","v":""},{"$f":"IF('1. Order'!L245=\"\",\"\",'1. Order'!L245)","v":""},{"$f":"IF('1. Order'!N245=\"\",\"\",'1. Order'!N245)","v":""},null,null,{"$f":"IF('1. Order'!AV245=\"\",\"\",'1. Order'!AV245)","v":""},{"$f":"IF('1. Order'!AI245=\"\",\"\",'1. Order'!AI245)","v":""}]
[{"$f":"IF('1. Order'!B246=\"\",\"\",'1. Order'!B246)","v":""},{"$f":"IF('1. Order'!J246=\"\",\"\",'1. Order'!J246)","v":""},{"$f":"IF('1. Order'!K246=\"\",\"\",'1. Order'!K246)","v":""},{"$f":"IF('1. Order'!L246=\"\",\"\",'1. Order'!L246)","v":""},{"$f":"IF('1. Order'!N246=\"\",\"\",'1. Order'!N246)","v":""},null,null,{"$f":"IF('1. Order'!AV246=\"\",\"\",'1. Order'!AV246)","v":""},{"$f":"IF('1. Order'!AI246=\"\",\"\",'1. Order'!AI246)","v":""}]
[{"$f":"IF('1. Order'!B247=\"\",\"\",'1. Order'!B247)","v":""},{"$f":"IF('1. Order'!J247=\"\",\"\",'1. Order'!J247)","v":""},{"$f":"IF('1. Order'!K247=\"\",\"\",'1. Order'!K247)","v":""},{"$f":"IF('1. Order'!L247=\"\",\"\",'1. Order'!L247)","v":""},{"$f":"IF('1. Order'!N247=\"\",\"\",'1. Order'!N247)","v":""},null,null,{"$f":"IF('1. Order'!AV247=\"\",\"\",'1. Order'!AV247)","v":""},{"$f":"IF('1. Order'!AI247=\"\",\"\",'1. Order'!AI247)","v":""}]
[{"$f":"IF('1. Order'!B248=\"\",\"\",'1. Order'!B248)","v":""},{"$f":"IF('1. Order'!J248=\"\",\"\",'1. Order'!J248)","v":""},{"$f":"IF('1. Order'!K248=\"\",\"\",'1. Order'!K248)","v":""},{"$f":"IF('1. Order'!L248=\"\",\"\",'1. Order'!L248)","v":""},{"$f":"IF('1. Order'!N248=\"\",\"\",'1. Order'!N248)","v":""},null,null,{"$f":"IF('1. Order'!AV248=\"\",\"\",'1. Order'!AV248)","v":""},{"$f":"IF('1. Order'!AI248=\"\",\"\",'1. Order'!AI248)","v":""}]
[{"$f":"IF('1. Order'!B249=\"\",\"\",'1. Order'!B249)","v":""},{"$f":"IF('1. Order'!J249=\"\",\"\",'1. Order'!J249)","v":""},{"$f":"IF('1. Order'!K249=\"\",\"\",'1. Order'!K249)","v":""},{"$f":"IF('1. Order'!L249=\"\",\"\",'1. Order'!L249)","v":""},{"$f":"IF('1. Order'!N249=\"\",\"\",'1. Order'!N249)","v":""},null,null,{"$f":"IF('1. Order'!AV249=\"\",\"\",'1. Order'!AV249)","v":""},{"$f":"IF('1. Order'!AI249=\"\",\"\",'1. Order'!AI249)","v":""}]
[{"$f":"IF('1. Order'!B250=\"\",\"\",'1. Order'!B250)","v":""},{"$f":"IF('1. Order'!J250=\"\",\"\",'1. Order'!J250)","v":""},{"$f":"IF('1. Order'!K250=\"\",\"\",'1. Order'!K250)","v":""},{"$f":"IF('1. Order'!L250=\"\",\"\",'1. Order'!L250)","v":""},{"$f":"IF('1. Order'!N250=\"\",\"\",'1. Order'!N250)","v":""},null,null,{"$f":"IF('1. Order'!AV250=\"\",\"\",'1. Order'!AV250)","v":""},{"$f":"IF('1. Order'!AI250=\"\",\"\",'1. Order'!AI250)","v":""}]
[{"$f":"IF('1. Order'!B251=\"\",\"\",'1. Order'!B251)","v":""},{"$f":"IF('1. Order'!J251=\"\",\"\",'1. Order'!J251)","v":""},{"$f":"IF('1. Order'!K251=\"\",\"\",'1. Order'!K251)","v":""},{"$f":"IF('1. Order'!L251=\"\",\"\",'1. Order'!L251)","v":""},{"$f":"IF('1. Order'!N251=\"\",\"\",'1. Order'!N251)","v":""},null,null,{"$f":"IF('1. Order'!AV251=\"\",\"\",'1. Order'!AV251)","v":""},{"$f":"IF('1. Order'!AI251=\"\",\"\",'1. Order'!AI251)","v":""}]
[{"$f":"IF('1. Order'!B252=\"\",\"\",'1. Order'!B252)","v":""},{"$f":"IF('1. Order'!J252=\"\",\"\",'1. Order'!J252)","v":""},{"$f":"IF('1. Order'!K252=\"\",\"\",'1. Order'!K252)","v":""},{"$f":"IF('1. Order'!L252=\"\",\"\",'1. Order'!L252)","v":""},{"$f":"IF('1. Order'!N252=\"\",\"\",'1. Order'!N252)","v":""},null,null,{"$f":"IF('1. Order'!AV252=\"\",\"\",'1. Order'!AV252)","v":""},{"$f":"IF('1. Order'!AI252=\"\",\"\",'1. Order'!AI252)","v":""}]
[{"$f":"IF('1. Order'!B253=\"\",\"\",'1. Order'!B253)","v":""},{"$f":"IF('1. Order'!J253=\"\",\"\",'1. Order'!J253)","v":""},{"$f":"IF('1. Order'!K253=\"\",\"\",'1. Order'!K253)","v":""},{"$f":"IF('1. Order'!L253=\"\",\"\",'1. Order'!L253)","v":""},{"$f":"IF('1. Order'!N253=\"\",\"\",'1. Order'!N253)","v":""},null,null,{"$f":"IF('1. Order'!AV253=\"\",\"\",'1. Order'!AV253)","v":""},{"$f":"IF('1. Order'!AI253=\"\",\"\",'1. Order'!AI253)","v":""}]
[{"$f":"IF('1. Order'!B254=\"\",\"\",'1. Order'!B254)","v":""},{"$f":"IF('1. Order'!J254=\"\",\"\",'1. Order'!J254)","v":""},{"$f":"IF('1. Order'!K254=\"\",\"\",'1. Order'!K254)","v":""},{"$f":"IF('1. Order'!L254=\"\",\"\",'1. Order'!L254)","v":""},{"$f":"IF('1. Order'!N254=\"\",\"\",'1. Order'!N254)","v":""},null,null,{"$f":"IF('1. Order'!AV254=\"\",\"\",'1. Order'!AV254)","v":""},{"$f":"IF('1. Order'!AI254=\"\",\"\",'1. Order'!AI254)","v":""}]
[{"$f":"IF('1. Order'!B255=\"\",\"\",'1. Order'!B255)","v":""},{"$f":"IF('1. Order'!J255=\"\",\"\",'1. Order'!J255)","v":""},{"$f":"IF('1. Order'!K255=\"\",\"\",'1. Order'!K255)","v":""},{"$f":"IF('1. Order'!L255=\"\",\"\",'1. Order'!L255)","v":""},{"$f":"IF('1. Order'!N255=\"\",\"\",'1. Order'!N255)","v":""},null,null,{"$f":"IF('1. Order'!AV255=\"\",\"\",'1. Order'!AV255)","v":""},{"$f":"IF('1. Order'!AI255=\"\",\"\",'1. Order'!AI255)","v":""}]
[{"$f":"IF('1. Order'!B256=\"\",\"\",'1. Order'!B256)","v":""},{"$f":"IF('1. Order'!J256=\"\",\"\",'1. Order'!J256)","v":""},{"$f":"IF('1. Order'!K256=\"\",\"\",'1. Order'!K256)","v":""},{"$f":"IF('1. Order'!L256=\"\",\"\",'1. Order'!L256)","v":""},{"$f":"IF('1. Order'!N256=\"\",\"\",'1. Order'!N256)","v":""},null,null,{"$f":"IF('1. Order'!AV256=\"\",\"\",'1. Order'!AV256)","v":""},{"$f":"IF('1. Order'!AI256=\"\",\"\",'1. Order'!AI256)","v":""}]
[{"$f":"IF('1. Order'!B257=\"\",\"\",'1. Order'!B257)","v":""},{"$f":"IF('1. Order'!J257=\"\",\"\",'1. Order'!J257)","v":""},{"$f":"IF('1. Order'!K257=\"\",\"\",'1. Order'!K257)","v":""},{"$f":"IF('1. Order'!L257=\"\",\"\",'1. Order'!L257)","v":""},{"$f":"IF('1. Order'!N257=\"\",\"\",'1. Order'!N257)","v":""},null,null,{"$f":"IF('1. Order'!AV257=\"\",\"\",'1. Order'!AV257)","v":""},{"$f":"IF('1. Order'!AI257=\"\",\"\",'1. Order'!AI257)","v":""}]
[{"$f":"IF('1. Order'!B258=\"\",\"\",'1. Order'!B258)","v":""},{"$f":"IF('1. Order'!J258=\"\",\"\",'1. Order'!J258)","v":""},{"$f":"IF('1. Order'!K258=\"\",\"\",'1. Order'!K258)","v":""},{"$f":"IF('1. Order'!L258=\"\",\"\",'1. Order'!L258)","v":""},{"$f":"IF('1. Order'!N258=\"\",\"\",'1. Order'!N258)","v":""},null,null,{"$f":"IF('1. Order'!AV258=\"\",\"\",'1. Order'!AV258)","v":""},{"$f":"IF('1. Order'!AI258=\"\",\"\",'1. Order'!AI258)","v":""}]
[{"$f":"IF('1. Order'!B259=\"\",\"\",'1. Order'!B259)","v":""},{"$f":"IF('1. Order'!J259=\"\",\"\",'1. Order'!J259)","v":""},{"$f":"IF('1. Order'!K259=\"\",\"\",'1. Order'!K259)","v":""},{"$f":"IF('1. Order'!L259=\"\",\"\",'1. Order'!L259)","v":""},{"$f":"IF('1. Order'!N259=\"\",\"\",'1. Order'!N259)","v":""},null,null,{"$f":"IF('1. Order'!AV259=\"\",\"\",'1. Order'!AV259)","v":""},{"$f":"IF('1. Order'!AI259=\"\",\"\",'1. Order'!AI259)","v":""}]
[{"$f":"IF('1. Order'!B260=\"\",\"\",'1. Order'!B260)","v":""},{"$f":"IF('1. Order'!J260=\"\",\"\",'1. Order'!J260)","v":""},{"$f":"IF('1. Order'!K260=\"\",\"\",'1. Order'!K260)","v":""},{"$f":"IF('1. Order'!L260=\"\",\"\",'1. Order'!L260)","v":""},{"$f":"IF('1. Order'!N260=\"\",\"\",'1. Order'!N260)","v":""},null,null,{"$f":"IF('1. Order'!AV260=\"\",\"\",'1. Order'!AV260)","v":""},{"$f":"IF('1. Order'!AI260=\"\",\"\",'1. Order'!AI260)","v":""}]
[{"$f":"IF('1. Order'!B261=\"\",\"\",'1. Order'!B261)","v":""},{"$f":"IF('1. Order'!J261=\"\",\"\",'1. Order'!J261)","v":""},{"$f":"IF('1. Order'!K261=\"\",\"\",'1. Order'!K261)","v":""},{"$f":"IF('1. Order'!L261=\"\",\"\",'1. Order'!L261)","v":""},{"$f":"IF('1. Order'!N261=\"\",\"\",'1. Order'!N261)","v":""},null,null,{"$f":"IF('1. Order'!AV261=\"\",\"\",'1. Order'!AV261)","v":""},{"$f":"IF('1. Order'!AI261=\"\",\"\",'1. Order'!AI261)","v":""}]
[{"$f":"IF('1. Order'!B262=\"\",\"\",'1. Order'!B262)","v":""},{"$f":"IF('1. Order'!J262=\"\",\"\",'1. Order'!J262)","v":""},{"$f":"IF('1. Order'!K262=\"\",\"\",'1. Order'!K262)","v":""},{"$f":"IF('1. Order'!L262=\"\",\"\",'1. Order'!L262)","v":""},{"$f":"IF('1. Order'!N262=\"\",\"\",'1. Order'!N262)","v":""},null,null,{"$f":"IF('1. Order'!AV262=\"\",\"\",'1. Order'!AV262)","v":""},{"$f":"IF('1. Order'!AI262=\"\",\"\",'1. Order'!AI262)","v":""}]
[{"$f":"IF('1. Order'!B263=\"\",\"\",'1. Order'!B263)","v":""},{"$f":"IF('1. Order'!J263=\"\",\"\",'1. Order'!J263)","v":""},{"$f":"IF('1. Order'!K263=\"\",\"\",'1. Order'!K263)","v":""},{"$f":"IF('1. Order'!L263=\"\",\"\",'1. Order'!L263)","v":""},{"$f":"IF('1. Order'!N263=\"\",\"\",'1. Order'!N263)","v":""},null,null,{"$f":"IF('1. Order'!AV263=\"\",\"\",'1. Order'!AV263)","v":""},{"$f":"IF('1. Order'!AI263=\"\",\"\",'1. Order'!AI263)","v":""}]
[{"$f":"IF('1. Order'!B264=\"\",\"\",'1. Order'!B264)","v":""},{"$f":"IF('1. Order'!J264=\"\",\"\",'1. Order'!J264)","v":""},{"$f":"IF('1. Order'!K264=\"\",\"\",'1. Order'!K264)","v":""},{"$f":"IF('1. Order'!L264=\"\",\"\",'1. Order'!L264)","v":""},{"$f":"IF('1. Order'!N264=\"\",\"\",'1. Order'!N264)","v":""},null,null,{"$f":"IF('1. Order'!AV264=\"\",\"\",'1. Order'!AV264)","v":""},{"$f":"IF('1. Order'!AI264=\"\",\"\",'1. Order'!AI264)","v":""}]
[{"$f":"IF('1. Order'!B265=\"\",\"\",'1. Order'!B265)","v":""},{"$f":"IF('1. Order'!J265=\"\",\"\",'1. Order'!J265)","v":""},{"$f":"IF('1. Order'!K265=\"\",\"\",'1. Order'!K265)","v":""},{"$f":"IF('1. Order'!L265=\"\",\"\",'1. Order'!L265)","v":""},{"$f":"IF('1. Order'!N265=\"\",\"\",'1. Order'!N265)","v":""},null,null,{"$f":"IF('1. Order'!AV265=\"\",\"\",'1. Order'!AV265)","v":""},{"$f":"IF('1. Order'!AI265=\"\",\"\",'1. Order'!AI265)","v":""}]
[{"$f":"IF('1. Order'!B266=\"\",\"\",'1. Order'!B266)","v":""},{"$f":"IF('1. Order'!J266=\"\",\"\",'1. Order'!J266)","v":""},{"$f":"IF('1. Order'!K266=\"\",\"\",'1. Order'!K266)","v":""},{"$f":"IF('1. Order'!L266=\"\",\"\",'1. Order'!L266)","v":""},{"$f":"IF('1. Order'!N266=\"\",\"\",'1. Order'!N266)","v":""},null,null,{"$f":"IF('1. Order'!AV266=\"\",\"\",'1. Order'!AV266)","v":""},{"$f":"IF('1. Order'!AI266=\"\",\"\",'1. Order'!AI266)","v":""}]
[{"$f":"IF('1. Order'!B267=\"\",\"\",'1. Order'!B267)","v":""},{"$f":"IF('1. Order'!J267=\"\",\"\",'1. Order'!J267)","v":""},{"$f":"IF('1. Order'!K267=\"\",\"\",'1. Order'!K267)","v":""},{"$f":"IF('1. Order'!L267=\"\",\"\",'1. Order'!L267)","v":""},{"$f":"IF('1. Order'!N267=\"\",\"\",'1. Order'!N267)","v":""},null,null,{"$f":"IF('1. Order'!AV267=\"\",\"\",'1. Order'!AV267)","v":""},{"$f":"IF('1. Order'!AI267=\"\",\"\",'1. Order'!AI267)","v":""}]
[{"$f":"IF('1. Order'!B268=\"\",\"\",'1. Order'!B268)","v":""},{"$f":"IF('1. Order'!J268=\"\",\"\",'1. Order'!J268)","v":""},{"$f":"IF('1. Order'!K268=\"\",\"\",'1. Order'!K268)","v":""},{"$f":"IF('1. Order'!L268=\"\",\"\",'1. Order'!L268)","v":""},{"$f":"IF('1. Order'!N268=\"\",\"\",'1. Order'!N268)","v":""},null,null,{"$f":"IF('1. Order'!AV268=\"\",\"\",'1. Order'!AV268)","v":""},{"$f":"IF('1. Order'!AI268=\"\",\"\",'1. Order'!AI268)","v":""}]
[{"$f":"IF('1. Order'!B269=\"\",\"\",'1. Order'!B269)","v":""},{"$f":"IF('1. Order'!J269=\"\",\"\",'1. Order'!J269)","v":""},{"$f":"IF('1. Order'!K269=\"\",\"\",'1. Order'!K269)","v":""},{"$f":"IF('1. Order'!L269=\"\",\"\",'1. Order'!L269)","v":""},{"$f":"IF('1. Order'!N269=\"\",\"\",'1. Order'!N269)","v":""},null,null,{"$f":"IF('1. Order'!AV269=\"\",\"\",'1. Order'!AV269)","v":""},{"$f":"IF('1. Order'!AI269=\"\",\"\",'1. Order'!AI269)","v":""}]
[{"$f":"IF('1. Order'!B270=\"\",\"\",'1. Order'!B270)","v":""},{"$f":"IF('1. Order'!J270=\"\",\"\",'1. Order'!J270)","v":""},{"$f":"IF('1. Order'!K270=\"\",\"\",'1. Order'!K270)","v":""},{"$f":"IF('1. Order'!L270=\"\",\"\",'1. Order'!L270)","v":""},{"$f":"IF('1. Order'!N270=\"\",\"\",'1. Order'!N270)","v":""},null,null,{"$f":"IF('1. Order'!AV270=\"\",\"\",'1. Order'!AV270)","v":""},{"$f":"IF('1. Order'!AI270=\"\",\"\",'1. Order'!AI270)","v":""}]
[{"$f":"IF('1. Order'!B271=\"\",\"\",'1. Order'!B271)","v":""},{"$f":"IF('1. Order'!J271=\"\",\"\",'1. Order'!J271)","v":""},{"$f":"IF('1. Order'!K271=\"\",\"\",'1. Order'!K271)","v":""},{"$f":"IF('1. Order'!L271=\"\",\"\",'1. Order'!L271)","v":""},{"$f":"IF('1. Order'!N271=\"\",\"\",'1. Order'!N271)","v":""},null,null,{"$f":"IF('1. Order'!AV271=\"\",\"\",'1. Order'!AV271)","v":""},{"$f":"IF('1. Order'!AI271=\"\",\"\",'1. Order'!AI271)","v":""}]
[{"$f":"IF('1. Order'!B272=\"\",\"\",'1. Order'!B272)","v":""},{"$f":"IF('1. Order'!J272=\"\",\"\",'1. Order'!J272)","v":""},{"$f":"IF('1. Order'!K272=\"\",\"\",'1. Order'!K272)","v":""},{"$f":"IF('1. Order'!L272=\"\",\"\",'1. Order'!L272)","v":""},{"$f":"IF('1. Order'!N272=\"\",\"\",'1. Order'!N272)","v":""},null,null,{"$f":"IF('1. Order'!AV272=\"\",\"\",'1. Order'!AV272)","v":""},{"$f":"IF('1. Order'!AI272=\"\",\"\",'1. Order'!AI272)","v":""}]
[{"$f":"IF('1. Order'!B273=\"\",\"\",'1. Order'!B273)","v":""},{"$f":"IF('1. Order'!J273=\"\",\"\",'1. Order'!J273)","v":""},{"$f":"IF('1. Order'!K273=\"\",\"\",'1. Order'!K273)","v":""},{"$f":"IF('1. Order'!L273=\"\",\"\",'1. Order'!L273)","v":""},{"$f":"IF('1. Order'!N273=\"\",\"\",'1. Order'!N273)","v":""},null,null,{"$f":"IF('1. Order'!AV273=\"\",\"\",'1. Order'!AV273)","v":""},{"$f":"IF('1. Order'!AI273=\"\",\"\",'1. Order'!AI273)","v":""}]
[{"$f":"IF('1. Order'!B274=\"\",\"\",'1. Order'!B274)","v":""},{"$f":"IF('1. Order'!J274=\"\",\"\",'1. Order'!J274)","v":""},{"$f":"IF('1. Order'!K274=\"\",\"\",'1. Order'!K274)","v":""},{"$f":"IF('1. Order'!L274=\"\",\"\",'1. Order'!L274)","v":""},{"$f":"IF('1. Order'!N274=\"\",\"\",'1. Order'!N274)","v":""},null,null,{"$f":"IF('1. Order'!AV274=\"\",\"\",'1. Order'!AV274)","v":""},{"$f":"IF('1. Order'!AI274=\"\",\"\",'1. Order'!AI274)","v":""}]
[{"$f":"IF('1. Order'!B275=\"\",\"\",'1. Order'!B275)","v":""},{"$f":"IF('1. Order'!J275=\"\",\"\",'1. Order'!J275)","v":""},{"$f":"IF('1. Order'!K275=\"\",\"\",'1. Order'!K275)","v":""},{"$f":"IF('1. Order'!L275=\"\",\"\",'1. Order'!L275)","v":""},{"$f":"IF('1. Order'!N275=\"\",\"\",'1. Order'!N275)","v":""},null,null,{"$f":"IF('1. Order'!AV275=\"\",\"\",'1. Order'!AV275)","v":""},{"$f":"IF('1. Order'!AI275=\"\",\"\",'1. Order'!AI275)","v":""}]
[{"$f":"IF('1. Order'!B276=\"\",\"\",'1. Order'!B276)","v":""},{"$f":"IF('1. Order'!J276=\"\",\"\",'1. Order'!J276)","v":""},{"$f":"IF('1. Order'!K276=\"\",\"\",'1. Order'!K276)","v":""},{"$f":"IF('1. Order'!L276=\"\",\"\",'1. Order'!L276)","v":""},{"$f":"IF('1. Order'!N276=\"\",\"\",'1. Order'!N276)","v":""},null,null,{"$f":"IF('1. Order'!AV276=\"\",\"\",'1. Order'!AV276)","v":""},{"$f":"IF('1. Order'!AI276=\"\",\"\",'1. Order'!AI276)","v":""}]
[{"$f":"IF('1. Order'!B277=\"\",\"\",'1. Order'!B277)","v":""},{"$f":"IF('1. Order'!J277=\"\",\"\",'1. Order'!J277)","v":""},{"$f":"IF('1. Order'!K277=\"\",\"\",'1. Order'!K277)","v":""},{"$f":"IF('1. Order'!L277=\"\",\"\",'1. Order'!L277)","v":""},{"$f":"IF('1. Order'!N277=\"\",\"\",'1. Order'!N277)","v":""},null,null,{"$f":"IF('1. Order'!AV277=\"\",\"\",'1. Order'!AV277)","v":""},{"$f":"IF('1. Order'!AI277=\"\",\"\",'1. Order'!AI277)","v":""}]
[{"$f":"IF('1. Order'!B278=\"\",\"\",'1. Order'!B278)","v":""},{"$f":"IF('1. Order'!J278=\"\",\"\",'1. Order'!J278)","v":""},{"$f":"IF('1. Order'!K278=\"\",\"\",'1. Order'!K278)","v":""},{"$f":"IF('1. Order'!L278=\"\",\"\",'1. Order'!L278)","v":""},{"$f":"IF('1. Order'!N278=\"\",\"\",'1. Order'!N278)","v":""},null,null,{"$f":"IF('1. Order'!AV278=\"\",\"\",'1. Order'!AV278)","v":""},{"$f":"IF('1. Order'!AI278=\"\",\"\",'1. Order'!AI278)","v":""}]
[{"$f":"IF('1. Order'!B279=\"\",\"\",'1. Order'!B279)","v":""},{"$f":"IF('1. Order'!J279=\"\",\"\",'1. Order'!J279)","v":""},{"$f":"IF('1. Order'!K279=\"\",\"\",'1. Order'!K279)","v":""},{"$f":"IF('1. Order'!L279=\"\",\"\",'1. Order'!L279)","v":""},{"$f":"IF('1. Order'!N279=\"\",\"\",'1. Order'!N279)","v":""},null,null,{"$f":"IF('1. Order'!AV279=\"\",\"\",'1. Order'!AV279)","v":""},{"$f":"IF('1. Order'!AI279=\"\",\"\",'1. Order'!AI279)","v":""}]
[{"$f":"IF('1. Order'!B280=\"\",\"\",'1. Order'!B280)","v":""},{"$f":"IF('1. Order'!J280=\"\",\"\",'1. Order'!J280)","v":""},{"$f":"IF('1. Order'!K280=\"\",\"\",'1. Order'!K280)","v":""},{"$f":"IF('1. Order'!L280=\"\",\"\",'1. Order'!L280)","v":""},{"$f":"IF('1. Order'!N280=\"\",\"\",'1. Order'!N280)","v":""},null,null,{"$f":"IF('1. Order'!AV280=\"\",\"\",'1. Order'!AV280)","v":""},{"$f":"IF('1. Order'!AI280=\"\",\"\",'1. Order'!AI280)","v":""}]
[{"$f":"IF('1. Order'!B281=\"\",\"\",'1. Order'!B281)","v":""},{"$f":"IF('1. Order'!J281=\"\",\"\",'1. Order'!J281)","v":""},{"$f":"IF('1. Order'!K281=\"\",\"\",'1. Order'!K281)","v":""},{"$f":"IF('1. Order'!L281=\"\",\"\",'1. Order'!L281)","v":""},{"$f":"IF('1. Order'!N281=\"\",\"\",'1. Order'!N281)","v":""},null,null,{"$f":"IF('1. Order'!AV281=\"\",\"\",'1. Order'!AV281)","v":""},{"$f":"IF('1. Order'!AI281=\"\",\"\",'1. Order'!AI281)","v":""}]
[{"$f":"IF('1. Order'!B282=\"\",\"\",'1. Order'!B282)","v":""},{"$f":"IF('1. Order'!J282=\"\",\"\",'1. Order'!J282)","v":""},{"$f":"IF('1. Order'!K282=\"\",\"\",'1. Order'!K282)","v":""},{"$f":"IF('1. Order'!L282=\"\",\"\",'1. Order'!L282)","v":""},{"$f":"IF('1. Order'!N282=\"\",\"\",'1. Order'!N282)","v":""},null,null,{"$f":"IF('1. Order'!AV282=\"\",\"\",'1. Order'!AV282)","v":""},{"$f":"IF('1. Order'!AI282=\"\",\"\",'1. Order'!AI282)","v":""}]
[{"$f":"IF('1. Order'!B283=\"\",\"\",'1. Order'!B283)","v":""},{"$f":"IF('1. Order'!J283=\"\",\"\",'1. Order'!J283)","v":""},{"$f":"IF('1. Order'!K283=\"\",\"\",'1. Order'!K283)","v":""},{"$f":"IF('1. Order'!L283=\"\",\"\",'1. Order'!L283)","v":""},{"$f":"IF('1. Order'!N283=\"\",\"\",'1. Order'!N283)","v":""},null,null,{"$f":"IF('1. Order'!AV283=\"\",\"\",'1. Order'!AV283)","v":""},{"$f":"IF('1. Order'!AI283=\"\",\"\",'1. Order'!AI283)","v":""}]
[{"$f":"IF('1. Order'!B284=\"\",\"\",'1. Order'!B284)","v":""},{"$f":"IF('1. Order'!J284=\"\",\"\",'1. Order'!J284)","v":""},{"$f":"IF('1. Order'!K284=\"\",\"\",'1. Order'!K284)","v":""},{"$f":"IF('1. Order'!L284=\"\",\"\",'1. Order'!L284)","v":""},{"$f":"IF('1. Order'!N284=\"\",\"\",'1. Order'!N284)","v":""},null,null,{"$f":"IF('1. Order'!AV284=\"\",\"\",'1. Order'!AV284)","v":""},{"$f":"IF('1. Order'!AI284=\"\",\"\",'1. Order'!AI284)","v":""}]
[{"$f":"IF('1. Order'!B285=\"\",\"\",'1. Order'!B285)","v":""},{"$f":"IF('1. Order'!J285=\"\",\"\",'1. Order'!J285)","v":""},{"$f":"IF('1. Order'!K285=\"\",\"\",'1. Order'!K285)","v":""},{"$f":"IF('1. Order'!L285=\"\",\"\",'1. Order'!L285)","v":""},{"$f":"IF('1. Order'!N285=\"\",\"\",'1. Order'!N285)","v":""},null,null,{"$f":"IF('1. Order'!AV285=\"\",\"\",'1. Order'!AV285)","v":""},{"$f":"IF('1. Order'!AI285=\"\",\"\",'1. Order'!AI285)","v":""}]
[{"$f":"IF('1. Order'!B286=\"\",\"\",'1. Order'!B286)","v":""},{"$f":"IF('1. Order'!J286=\"\",\"\",'1. Order'!J286)","v":""},{"$f":"IF('1. Order'!K286=\"\",\"\",'1. Order'!K286)","v":""},{"$f":"IF('1. Order'!L286=\"\",\"\",'1. Order'!L286)","v":""},{"$f":"IF('1. Order'!N286=\"\",\"\",'1. Order'!N286)","v":""},null,null,{"$f":"IF('1. Order'!AV286=\"\",\"\",'1. Order'!AV286)","v":""},{"$f":"IF('1. Order'!AI286=\"\",\"\",'1. Order'!AI286)","v":""}]
[{"$f":"IF('1. Order'!B287=\"\",\"\",'1. Order'!B287)","v":""},{"$f":"IF('1. Order'!J287=\"\",\"\",'1. Order'!J287)","v":""},{"$f":"IF('1. Order'!K287=\"\",\"\",'1. Order'!K287)","v":""},{"$f":"IF('1. Order'!L287=\"\",\"\",'1. Order'!L287)","v":""},{"$f":"IF('1. Order'!N287=\"\",\"\",'1. Order'!N287)","v":""},null,null,{"$f":"IF('1. Order'!AV287=\"\",\"\",'1. Order'!AV287)","v":""},{"$f":"IF('1. Order'!AI287=\"\",\"\",'1. Order'!AI287)","v":""}]
[{"$f":"IF('1. Order'!B288=\"\",\"\",'1. Order'!B288)","v":""},{"$f":"IF('1. Order'!J288=\"\",\"\",'1. Order'!J288)","v":""},{"$f":"IF('1. Order'!K288=\"\",\"\",'1. Order'!K288)","v":""},{"$f":"IF('1. Order'!L288=\"\",\"\",'1. Order'!L288)","v":""},{"$f":"IF('1. Order'!N288=\"\",\"\",'1. Order'!N288)","v":""},null,null,{"$f":"IF('1. Order'!AV288=\"\",\"\",'1. Order'!AV288)","v":""},{"$f":"IF('1. Order'!AI288=\"\",\"\",'1. Order'!AI288)","v":""}]
[{"$f":"IF('1. Order'!B289=\"\",\"\",'1. Order'!B289)","v":""},{"$f":"IF('1. Order'!J289=\"\",\"\",'1. Order'!J289)","v":""},{"$f":"IF('1. Order'!K289=\"\",\"\",'1. Order'!K289)","v":""},{"$f":"IF('1. Order'!L289=\"\",\"\",'1. Order'!L289)","v":""},{"$f":"IF('1. Order'!N289=\"\",\"\",'1. Order'!N289)","v":""},null,null,{"$f":"IF('1. Order'!AV289=\"\",\"\",'1. Order'!AV289)","v":""},{"$f":"IF('1. Order'!AI289=\"\",\"\",'1. Order'!AI289)","v":""}]
[{"$f":"IF('1. Order'!B290=\"\",\"\",'1. Order'!B290)","v":""},{"$f":"IF('1. Order'!J290=\"\",\"\",'1. Order'!J290)","v":""},{"$f":"IF('1. Order'!K290=\"\",\"\",'1. Order'!K290)","v":""},{"$f":"IF('1. Order'!L290=\"\",\"\",'1. Order'!L290)","v":""},{"$f":"IF('1. Order'!N290=\"\",\"\",'1. Order'!N290)","v":""},null,null,{"$f":"IF('1. Order'!AV290=\"\",\"\",'1. Order'!AV290)","v":""},{"$f":"IF('1. Order'!AI290=\"\",\"\",'1. Order'!AI290)","v":""}]
[{"$f":"IF('1. Order'!B291=\"\",\"\",'1. Order'!B291)","v":""},{"$f":"IF('1. Order'!J291=\"\",\"\",'1. Order'!J291)","v":""},{"$f":"IF('1. Order'!K291=\"\",\"\",'1. Order'!K291)","v":""},{"$f":"IF('1. Order'!L291=\"\",\"\",'1. Order'!L291)","v":""},{"$f":"IF('1. Order'!N291=\"\",\"\",'1. Order'!N291)","v":""},null,null,{"$f":"IF('1. Order'!AV291=\"\",\"\",'1. Order'!AV291)","v":""},{"$f":"IF('1. Order'!AI291=\"\",\"\",'1. Order'!AI291)","v":""}]
[{"$f":"IF('1. Order'!B292=\"\",\"\",'1. Order'!B292)","v":""},{"$f":"IF('1. Order'!J292=\"\",\"\",'1. Order'!J292)","v":""},{"$f":"IF('1. Order'!K292=\"\",\"\",'1. Order'!K292)","v":""},{"$f":"IF('1. Order'!L292=\"\",\"\",'1. Order'!L292)","v":""},{"$f":"IF('1. Order'!N292=\"\",\"\",'1. Order'!N292)","v":""},null,null,{"$f":"IF('1. Order'!AV292=\"\",\"\",'1. Order'!AV292)","v":""},{"$f":"IF('1. Order'!AI292=\"\",\"\",'1. Order'!AI292)","v":""}]
[{"$f":"IF('1. Order'!B293=\"\",\"\",'1. Order'!B293)","v":""},{"$f":"IF('1. Order'!J293=\"\",\"\",'1. Order'!J293)","v":""},{"$f":"IF('1. Order'!K293=\"\",\"\",'1. Order'!K293)","v":""},{"$f":"IF('1. Order'!L293=\"\",\"\",'1. Order'!L293)","v":""},{"$f":"IF('1. Order'!N293=\"\",\"\",'1. Order'!N293)","v":""},null,null,{"$f":"IF('1. Order'!AV293=\"\",\"\",'1. Order'!AV293)","v":""},{"$f":"IF('1. Order'!AI293=\"\",\"\",'1. Order'!AI293)","v":""}]
[{"$f":"IF('1. Order'!B294=\"\",\"\",'1. Order'!B294)","v":""},{"$f":"IF('1. Order'!J294=\"\",\"\",'1. Order'!J294)","v":""},{"$f":"IF('1. Order'!K294=\"\",\"\",'1. Order'!K294)","v":""},{"$f":"IF('1. Order'!L294=\"\",\"\",'1. Order'!L294)","v":""},{"$f":"IF('1. Order'!N294=\"\",\"\",'1. Order'!N294)","v":""},null,null,{"$f":"IF('1. Order'!AV294=\"\",\"\",'1. Order'!AV294)","v":""},{"$f":"IF('1. Order'!AI294=\"\",\"\",'1. Order'!AI294)","v":""}]
[{"$f":"IF('1. Order'!B295=\"\",\"\",'1. Order'!B295)","v":""},{"$f":"IF('1. Order'!J295=\"\",\"\",'1. Order'!J295)","v":""},{"$f":"IF('1. Order'!K295=\"\",\"\",'1. Order'!K295)","v":""},{"$f":"IF('1. Order'!L295=\"\",\"\",'1. Order'!L295)","v":""},{"$f":"IF('1. Order'!N295=\"\",\"\",'1. Order'!N295)","v":""},null,null,{"$f":"IF('1. Order'!AV295=\"\",\"\",'1. Order'!AV295)","v":""},{"$f":"IF('1. Order'!AI295=\"\",\"\",'1. Order'!AI295)","v":""}]
[{"$f":"IF('1. Order'!B296=\"\",\"\",'1. Order'!B296)","v":""},{"$f":"IF('1. Order'!J296=\"\",\"\",'1. Order'!J296)","v":""},{"$f":"IF('1. Order'!K296=\"\",\"\",'1. Order'!K296)","v":""},{"$f":"IF('1. Order'!L296=\"\",\"\",'1. Order'!L296)","v":""},{"$f":"IF('1. Order'!N296=\"\",\"\",'1. Order'!N296)","v":""},null,null,{"$f":"IF('1. Order'!AV296=\"\",\"\",'1. Order'!AV296)","v":""},{"$f":"IF('1. Order'!AI296=\"\",\"\",'1. Order'!AI296)","v":""}]
[{"$f":"IF('1. Order'!B297=\"\",\"\",'1. Order'!B297)","v":""},{"$f":"IF('1. Order'!J297=\"\",\"\",'1. Order'!J297)","v":""},{"$f":"IF('1. Order'!K297=\"\",\"\",'1. Order'!K297)","v":""},{"$f":"IF('1. Order'!L297=\"\",\"\",'1. Order'!L297)","v":""},{"$f":"IF('1. Order'!N297=\"\",\"\",'1. Order'!N297)","v":""},null,null,{"$f":"IF('1. Order'!AV297=\"\",\"\",'1. Order'!AV297)","v":""},{"$f":"IF('1. Order'!AI297=\"\",\"\",'1. Order'!AI297)","v":""}]
[{"$f":"IF('1. Order'!B298=\"\",\"\",'1. Order'!B298)","v":""},{"$f":"IF('1. Order'!J298=\"\",\"\",'1. Order'!J298)","v":""},{"$f":"IF('1. Order'!K298=\"\",\"\",'1. Order'!K298)","v":""},{"$f":"IF('1. Order'!L298=\"\",\"\",'1. Order'!L298)","v":""},{"$f":"IF('1. Order'!N298=\"\",\"\",'1. Order'!N298)","v":""},null,null,{"$f":"IF('1. Order'!AV298=\"\",\"\",'1. Order'!AV298)","v":""},{"$f":"IF('1. Order'!AI298=\"\",\"\",'1. Order'!AI298)","v":""}]
[{"$f":"IF('1. Order'!B299=\"\",\"\",'1. Order'!B299)","v":""},{"$f":"IF('1. Order'!J299=\"\",\"\",'1. Order'!J299)","v":""},{"$f":"IF('1. Order'!K299=\"\",\"\",'1. Order'!K299)","v":""},{"$f":"IF('1. Order'!L299=\"\",\"\",'1. Order'!L299)","v":""},{"$f":"IF('1. Order'!N299=\"\",\"\",'1. Order'!N299)","v":""},null,null,{"$f":"IF('1. Order'!AV299=\"\",\"\",'1. Order'!AV299)","v":""},{"$f":"IF('1. Order'!AI299=\"\",\"\",'1. Order'!AI299)","v":""}]
[{"$f":"IF('1. Order'!B300=\"\",\"\",'1. Order'!B300)","v":""},{"$f":"IF('1. Order'!J300=\"\",\"\",'1. Order'!J300)","v":""},{"$f":"IF('1. Order'!K300=\"\",\"\",'1. Order'!K300)","v":""},{"$f":"IF('1. Order'!L300=\"\",\"\",'1. Order'!L300)","v":""},{"$f":"IF('1. Order'!N300=\"\",\"\",'1. Order'!N300)","v":""},null,null,{"$f":"IF('1. Order'!AV300=\"\",\"\",'1. Order'!AV300)","v":""},{"$f":"IF('1. Order'!AI300=\"\",\"\",'1. Order'!AI300)","v":""}]
[{"$f":"IF('1. Order'!B301=\"\",\"\",'1. Order'!B301)","v":""},{"$f":"IF('1. Order'!J301=\"\",\"\",'1. Order'!J301)","v":""},{"$f":"IF('1. Order'!K301=\"\",\"\",'1. Order'!K301)","v":""},{"$f":"IF('1. Order'!L301=\"\",\"\",'1. Order'!L301)","v":""},{"$f":"IF('1. Order'!N301=\"\",\"\",'1. Order'!N301)","v":""},null,null,{"$f":"IF('1. Order'!AV301=\"\",\"\",'1. Order'!AV301)","v":""},{"$f":"IF('1. Order'!AI301=\"\",\"\",'1. Order'!AI301)","v":""}]
[{"$f":"IF('1. Order'!B302=\"\",\"\",'1. Order'!B302)","v":""},{"$f":"IF('1. Order'!J302=\"\",\"\",'1. Order'!J302)","v":""},{"$f":"IF('1. Order'!K302=\"\",\"\",'1. Order'!K302)","v":""},{"$f":"IF('1. Order'!L302=\"\",\"\",'1. Order'!L302)","v":""},{"$f":"IF('1. Order'!N302=\"\",\"\",'1. Order'!N302)","v":""},null,null,{"$f":"IF('1. Order'!AV302=\"\",\"\",'1. Order'!AV302)","v":""},{"$f":"IF('1. Order'!AI302=\"\",\"\",'1. Order'!AI302)","v":""}]
[{"$f":"IF('1. Order'!B303=\"\",\"\",'1. Order'!B303)","v":""},{"$f":"IF('1. Order'!J303=\"\",\"\",'1. Order'!J303)","v":""},{"$f":"IF('1. Order'!K303=\"\",\"\",'1. Order'!K303)","v":""},{"$f":"IF('1. Order'!L303=\"\",\"\",'1. Order'!L303)","v":""},{"$f":"IF('1. Order'!N303=\"\",\"\",'1. Order'!N303)","v":""},null,null,{"$f":"IF('1. Order'!AV303=\"\",\"\",'1. Order'!AV303)","v":""},{"$f":"IF('1. Order'!AI303=\"\",\"\",'1. Order'!AI303)","v":""}]
[{"$f":"IF('1. Order'!B304=\"\",\"\",'1. Order'!B304)","v":""},{"$f":"IF('1. Order'!J304=\"\",\"\",'1. Order'!J304)","v":""},{"$f":"IF('1. Order'!K304=\"\",\"\",'1. Order'!K304)","v":""},{"$f":"IF('1. Order'!L304=\"\",\"\",'1. Order'!L304)","v":""},{"$f":"IF('1. Order'!N304=\"\",\"\",'1. Order'!N304)","v":""},null,null,{"$f":"IF('1. Order'!AV304=\"\",\"\",'1. Order'!AV304)","v":""},{"$f":"IF('1. Order'!AI304=\"\",\"\",'1. Order'!AI304)","v":""}]
[{"$f":"IF('1. Order'!B305=\"\",\"\",'1. Order'!B305)","v":""},{"$f":"IF('1. Order'!J305=\"\",\"\",'1. Order'!J305)","v":""},{"$f":"IF('1. Order'!K305=\"\",\"\",'1. Order'!K305)","v":""},{"$f":"IF('1. Order'!L305=\"\",\"\",'1. Order'!L305)","v":""},{"$f":"IF('1. Order'!N305=\"\",\"\",'1. Order'!N305)","v":""},null,null,{"$f":"IF('1. Order'!AV305=\"\",\"\",'1. Order'!AV305)","v":""},{"$f":"IF('1. Order'!AI305=\"\",\"\",'1. Order'!AI305)","v":""}]
[{"$f":"IF('1. Order'!B306=\"\",\"\",'1. Order'!B306)","v":""},{"$f":"IF('1. Order'!J306=\"\",\"\",'1. Order'!J306)","v":""},{"$f":"IF('1. Order'!K306=\"\",\"\",'1. Order'!K306)","v":""},{"$f":"IF('1. Order'!L306=\"\",\"\",'1. Order'!L306)","v":""},{"$f":"IF('1. Order'!N306=\"\",\"\",'1. Order'!N306)","v":""},null,null,{"$f":"IF('1. Order'!AV306=\"\",\"\",'1. Order'!AV306)","v":""},{"$f":"IF('1. Order'!AI306=\"\",\"\",'1. Order'!AI306)","v":""}]
[{"$f":"IF('1. Order'!B307=\"\",\"\",'1. Order'!B307)","v":""},{"$f":"IF('1. Order'!J307=\"\",\"\",'1. Order'!J307)","v":""},{"$f":"IF('1. Order'!K307=\"\",\"\",'1. Order'!K307)","v":""},{"$f":"IF('1. Order'!L307=\"\",\"\",'1. Order'!L307)","v":""},{"$f":"IF('1. Order'!N307=\"\",\"\",'1. Order'!N307)","v":""},null,null,{"$f":"IF('1. Order'!AV307=\"\",\"\",'1. Order'!AV307)","v":""},{"$f":"IF('1. Order'!AI307=\"\",\"\",'1. Order'!AI307)","v":""}]
[{"$f":"IF('1. Order'!B308=\"\",\"\",'1. Order'!B308)","v":""},{"$f":"IF('1. Order'!J308=\"\",\"\",'1. Order'!J308)","v":""},{"$f":"IF('1. Order'!K308=\"\",\"\",'1. Order'!K308)","v":""},{"$f":"IF('1. Order'!L308=\"\",\"\",'1. Order'!L308)","v":""},{"$f":"IF('1. Order'!N308=\"\",\"\",'1. Order'!N308)","v":""},null,null,{"$f":"IF('1. Order'!AV308=\"\",\"\",'1. Order'!AV308)","v":""},{"$f":"IF('1. Order'!AI308=\"\",\"\",'1. Order'!AI308)","v":""}]
[{"$f":"IF('1. Order'!B309=\"\",\"\",'1. Order'!B309)","v":""},{"$f":"IF('1. Order'!J309=\"\",\"\",'1. Order'!J309)","v":""},{"$f":"IF('1. Order'!K309=\"\",\"\",'1. Order'!K309)","v":""},{"$f":"IF('1. Order'!L309=\"\",\"\",'1. Order'!L309)","v":""},{"$f":"IF('1. Order'!N309=\"\",\"\",'1. Order'!N309)","v":""},null,null,{"$f":"IF('1. Order'!AV309=\"\",\"\",'1. Order'!AV309)","v":""},{"$f":"IF('1. Order'!AI309=\"\",\"\",'1. Order'!AI309)","v":""}]
[{"$f":"IF('1. Order'!B310=\"\",\"\",'1. Order'!B310)","v":""},{"$f":"IF('1. Order'!J310=\"\",\"\",'1. Order'!J310)","v":""},{"$f":"IF('1. Order'!K310=\"\",\"\",'1. Order'!K310)","v":""},{"$f":"IF('1. Order'!L310=\"\",\"\",'1. Order'!L310)","v":""},{"$f":"IF('1. Order'!N310=\"\",\"\",'1. Order'!N310)","v":""},null,null,{"$f":"IF('1. Order'!AV310=\"\",\"\",'1. Order'!AV310)","v":""},{"$f":"IF('1. Order'!AI310=\"\",\"\",'1. Order'!AI310)","v":""}]
[{"$f":"IF('1. Order'!B311=\"\",\"\",'1. Order'!B311)","v":""},{"$f":"IF('1. Order'!J311=\"\",\"\",'1. Order'!J311)","v":""},{"$f":"IF('1. Order'!K311=\"\",\"\",'1. Order'!K311)","v":""},{"$f":"IF('1. Order'!L311=\"\",\"\",'1. Order'!L311)","v":""},{"$f":"IF('1. Order'!N311=\"\",\"\",'1. Order'!N311)","v":""},null,null,{"$f":"IF('1. Order'!AV311=\"\",\"\",'1. Order'!AV311)","v":""},{"$f":"IF('1. Order'!AI311=\"\",\"\",'1. Order'!AI311)","v":""}]
[{"$f":"IF('1. Order'!B312=\"\",\"\",'1. Order'!B312)","v":""},{"$f":"IF('1. Order'!J312=\"\",\"\",'1. Order'!J312)","v":""},{"$f":"IF('1. Order'!K312=\"\",\"\",'1. Order'!K312)","v":""},{"$f":"IF('1. Order'!L312=\"\",\"\",'1. Order'!L312)","v":""},{"$f":"IF('1. Order'!N312=\"\",\"\",'1. Order'!N312)","v":""},null,null,{"$f":"IF('1. Order'!AV312=\"\",\"\",'1. Order'!AV312)","v":""},{"$f":"IF('1. Order'!AI312=\"\",\"\",'1. Order'!AI312)","v":""}]
[{"$f":"IF('1. Order'!B313=\"\",\"\",'1. Order'!B313)","v":""},{"$f":"IF('1. Order'!J313=\"\",\"\",'1. Order'!J313)","v":""},{"$f":"IF('1. Order'!K313=\"\",\"\",'1. Order'!K313)","v":""},{"$f":"IF('1. Order'!L313=\"\",\"\",'1. Order'!L313)","v":""},{"$f":"IF('1. Order'!N313=\"\",\"\",'1. Order'!N313)","v":""},null,null,{"$f":"IF('1. Order'!AV313=\"\",\"\",'1. Order'!AV313)","v":""},{"$f":"IF('1. Order'!AI313=\"\",\"\",'1. Order'!AI313)","v":""}]
[{"$f":"IF('1. Order'!B314=\"\",\"\",'1. Order'!B314)","v":""},{"$f":"IF('1. Order'!J314=\"\",\"\",'1. Order'!J314)","v":""},{"$f":"IF('1. Order'!K314=\"\",\"\",'1. Order'!K314)","v":""},{"$f":"IF('1. Order'!L314=\"\",\"\",'1. Order'!L314)","v":""},{"$f":"IF('1. Order'!N314=\"\",\"\",'1. Order'!N314)","v":""},null,null,{"$f":"IF('1. Order'!AV314=\"\",\"\",'1. Order'!AV314)","v":""},{"$f":"IF('1. Order'!AI314=\"\",\"\",'1. Order'!AI314)","v":""}]
[{"$f":"IF('1. Order'!B315=\"\",\"\",'1. Order'!B315)","v":""},{"$f":"IF('1. Order'!J315=\"\",\"\",'1. Order'!J315)","v":""},{"$f":"IF('1. Order'!K315=\"\",\"\",'1. Order'!K315)","v":""},{"$f":"IF('1. Order'!L315=\"\",\"\",'1. Order'!L315)","v":""},{"$f":"IF('1. Order'!N315=\"\",\"\",'1. Order'!N315)","v":""},null,null,{"$f":"IF('1. Order'!AV315=\"\",\"\",'1. Order'!AV315)","v":""},{"$f":"IF('1. Order'!AI315=\"\",\"\",'1. Order'!AI315)","v":""}]
[{"$f":"IF('1. Order'!B316=\"\",\"\",'1. Order'!B316)","v":""},{"$f":"IF('1. Order'!J316=\"\",\"\",'1. Order'!J316)","v":""},{"$f":"IF('1. Order'!K316=\"\",\"\",'1. Order'!K316)","v":""},{"$f":"IF('1. Order'!L316=\"\",\"\",'1. Order'!L316)","v":""},{"$f":"IF('1. Order'!N316=\"\",\"\",'1. Order'!N316)","v":""},null,null,{"$f":"IF('1. Order'!AV316=\"\",\"\",'1. Order'!AV316)","v":""},{"$f":"IF('1. Order'!AI316=\"\",\"\",'1. Order'!AI316)","v":""}]
[{"$f":"IF('1. Order'!B317=\"\",\"\",'1. Order'!B317)","v":""},{"$f":"IF('1. Order'!J317=\"\",\"\",'1. Order'!J317)","v":""},{"$f":"IF('1. Order'!K317=\"\",\"\",'1. Order'!K317)","v":""},{"$f":"IF('1. Order'!L317=\"\",\"\",'1. Order'!L317)","v":""},{"$f":"IF('1. Order'!N317=\"\",\"\",'1. Order'!N317)","v":""},null,null,{"$f":"IF('1. Order'!AV317=\"\",\"\",'1. Order'!AV317)","v":""},{"$f":"IF('1. Order'!AI317=\"\",\"\",'1. Order'!AI317)","v":""}]
[{"$f":"IF('1. Order'!B318=\"\",\"\",'1. Order'!B318)","v":""},{"$f":"IF('1. Order'!J318=\"\",\"\",'1. Order'!J318)","v":""},{"$f":"IF('1. Order'!K318=\"\",\"\",'1. Order'!K318)","v":""},{"$f":"IF('1. Order'!L318=\"\",\"\",'1. Order'!L318)","v":""},{"$f":"IF('1. Order'!N318=\"\",\"\",'1. Order'!N318)","v":""},null,null,{"$f":"IF('1. Order'!AV318=\"\",\"\",'1. Order'!AV318)","v":""},{"$f":"IF('1. Order'!AI318=\"\",\"\",'1. Order'!AI318)","v":""}]
[{"$f":"IF('1. Order'!B319=\"\",\"\",'1. Order'!B319)","v":""},{"$f":"IF('1. Order'!J319=\"\",\"\",'1. Order'!J319)","v":""},{"$f":"IF('1. Order'!K319=\"\",\"\",'1. Order'!K319)","v":""},{"$f":"IF('1. Order'!L319=\"\",\"\",'1. Order'!L319)","v":""},{"$f":"IF('1. Order'!N319=\"\",\"\",'1. Order'!N319)","v":""},null,null,{"$f":"IF('1. Order'!AV319=\"\",\"\",'1. Order'!AV319)","v":""},{"$f":"IF('1. Order'!AI319=\"\",\"\",'1. Order'!AI319)","v":""}]
[{"$f":"IF('1. Order'!B320=\"\",\"\",'1. Order'!B320)","v":""},{"$f":"IF('1. Order'!J320=\"\",\"\",'1. Order'!J320)","v":""},{"$f":"IF('1. Order'!K320=\"\",\"\",'1. Order'!K320)","v":""},{"$f":"IF('1. Order'!L320=\"\",\"\",'1. Order'!L320)","v":""},{"$f":"IF('1. Order'!N320=\"\",\"\",'1. Order'!N320)","v":""},null,null,{"$f":"IF('1. Order'!AV320=\"\",\"\",'1. Order'!AV320)","v":""},{"$f":"IF('1. Order'!AI320=\"\",\"\",'1. Order'!AI320)","v":""}]
[{"$f":"IF('1. Order'!B321=\"\",\"\",'1. Order'!B321)","v":""},{"$f":"IF('1. Order'!J321=\"\",\"\",'1. Order'!J321)","v":""},{"$f":"IF('1. Order'!K321=\"\",\"\",'1. Order'!K321)","v":""},{"$f":"IF('1. Order'!L321=\"\",\"\",'1. Order'!L321)","v":""},{"$f":"IF('1. Order'!N321=\"\",\"\",'1. Order'!N321)","v":""},null,null,{"$f":"IF('1. Order'!AV321=\"\",\"\",'1. Order'!AV321)","v":""},{"$f":"IF('1. Order'!AI321=\"\",\"\",'1. Order'!AI321)","v":""}]
[{"$f":"IF('1. Order'!B322=\"\",\"\",'1. Order'!B322)","v":""},{"$f":"IF('1. Order'!J322=\"\",\"\",'1. Order'!J322)","v":""},{"$f":"IF('1. Order'!K322=\"\",\"\",'1. Order'!K322)","v":""},{"$f":"IF('1. Order'!L322=\"\",\"\",'1. Order'!L322)","v":""},{"$f":"IF('1. Order'!N322=\"\",\"\",'1. Order'!N322)","v":""},null,null,{"$f":"IF('1. Order'!AV322=\"\",\"\",'1. Order'!AV322)","v":""},{"$f":"IF('1. Order'!AI322=\"\",\"\",'1. Order'!AI322)","v":""}]
[{"$f":"IF('1. Order'!B323=\"\",\"\",'1. Order'!B323)","v":""},{"$f":"IF('1. Order'!J323=\"\",\"\",'1. Order'!J323)","v":""},{"$f":"IF('1. Order'!K323=\"\",\"\",'1. Order'!K323)","v":""},{"$f":"IF('1. Order'!L323=\"\",\"\",'1. Order'!L323)","v":""},{"$f":"IF('1. Order'!N323=\"\",\"\",'1. Order'!N323)","v":""},null,null,{"$f":"IF('1. Order'!AV323=\"\",\"\",'1. Order'!AV323)","v":""},{"$f":"IF('1. Order'!AI323=\"\",\"\",'1. Order'!AI323)","v":""}]
[{"$f":"IF('1. Order'!B324=\"\",\"\",'1. Order'!B324)","v":""},{"$f":"IF('1. Order'!J324=\"\",\"\",'1. Order'!J324)","v":""},{"$f":"IF('1. Order'!K324=\"\",\"\",'1. Order'!K324)","v":""},{"$f":"IF('1. Order'!L324=\"\",\"\",'1. Order'!L324)","v":""},{"$f":"IF('1. Order'!N324=\"\",\"\",'1. Order'!N324)","v":""},null,null,{"$f":"IF('1. Order'!AV324=\"\",\"\",'1. Order'!AV324)","v":""},{"$f":"IF('1. Order'!AI324=\"\",\"\",'1. Order'!AI324)","v":""}]
[{"$f":"IF('1. Order'!B325=\"\",\"\",'1. Order'!B325)","v":""},{"$f":"IF('1. Order'!J325=\"\",\"\",'1. Order'!J325)","v":""},{"$f":"IF('1. Order'!K325=\"\",\"\",'1. Order'!K325)","v":""},{"$f":"IF('1. Order'!L325=\"\",\"\",'1. Order'!L325)","v":""},{"$f":"IF('1. Order'!N325=\"\",\"\",'1. Order'!N325)","v":""},null,null,{"$f":"IF('1. Order'!AV325=\"\",\"\",'1. Order'!AV325)","v":""},{"$f":"IF('1. Order'!AI325=\"\",\"\",'1. Order'!AI325)","v":""}]
[{"$f":"IF('1. Order'!B326=\"\",\"\",'1. Order'!B326)","v":""},{"$f":"IF('1. Order'!J326=\"\",\"\",'1. Order'!J326)","v":""},{"$f":"IF('1. Order'!K326=\"\",\"\",'1. Order'!K326)","v":""},{"$f":"IF('1. Order'!L326=\"\",\"\",'1. Order'!L326)","v":""},{"$f":"IF('1. Order'!N326=\"\",\"\",'1. Order'!N326)","v":""},null,null,{"$f":"IF('1. Order'!AV326=\"\",\"\",'1. Order'!AV326)","v":""},{"$f":"IF('1. Order'!AI326=\"\",\"\",'1. Order'!AI326)","v":""}]
[{"$f":"IF('1. Order'!B327=\"\",\"\",'1. Order'!B327)","v":""},{"$f":"IF('1. Order'!J327=\"\",\"\",'1. Order'!J327)","v":""},{"$f":"IF('1. Order'!K327=\"\",\"\",'1. Order'!K327)","v":""},{"$f":"IF('1. Order'!L327=\"\",\"\",'1. Order'!L327)","v":""},{"$f":"IF('1. Order'!N327=\"\",\"\",'1. Order'!N327)","v":""},null,null,{"$f":"IF('1. Order'!AV327=\"\",\"\",'1. Order'!AV327)","v":""},{"$f":"IF('1. Order'!AI327=\"\",\"\",'1. Order'!AI327)","v":""}]
[{"$f":"IF('1. Order'!B328=\"\",\"\",'1. Order'!B328)","v":""},{"$f":"IF('1. Order'!J328=\"\",\"\",'1. Order'!J328)","v":""},{"$f":"IF('1. Order'!K328=\"\",\"\",'1. Order'!K328)","v":""},{"$f":"IF('1. Order'!L328=\"\",\"\",'1. Order'!L328)","v":""},{"$f":"IF('1. Order'!N328=\"\",\"\",'1. Order'!N328)","v":""},null,null,{"$f":"IF('1. Order'!AV328=\"\",\"\",'1. Order'!AV328)","v":""},{"$f":"IF('1. Order'!AI328=\"\",\"\",'1. Order'!AI328)","v":""}]
[{"$f":"IF('1. Order'!B329=\"\",\"\",'1. Order'!B329)","v":""},{"$f":"IF('1. Order'!J329=\"\",\"\",'1. Order'!J329)","v":""},{"$f":"IF('1. Order'!K329=\"\",\"\",'1. Order'!K329)","v":""},{"$f":"IF('1. Order'!L329=\"\",\"\",'1. Order'!L329)","v":""},{"$f":"IF('1. Order'!N329=\"\",\"\",'1. Order'!N329)","v":""},null,null,{"$f":"IF('1. Order'!AV329=\"\",\"\",'1. Order'!AV329)","v":""},{"$f":"IF('1. Order'!AI329=\"\",\"\",'1. Order'!AI329)","v":""}]
[{"$f":"IF('1. Order'!B330=\"\",\"\",'1. Order'!B330)","v":""},{"$f":"IF('1. Order'!J330=\"\",\"\",'1. Order'!J330)","v":""},{"$f":"IF('1. Order'!K330=\"\",\"\",'1. Order'!K330)","v":""},{"$f":"IF('1. Order'!L330=\"\",\"\",'1. Order'!L330)","v":""},{"$f":"IF('1. Order'!N330=\"\",\"\",'1. Order'!N330)","v":""},null,null,{"$f":"IF('1. Order'!AV330=\"\",\"\",'1. Order'!AV330)","v":""},{"$f":"IF('1. Order'!AI330=\"\",\"\",'1. Order'!AI330)","v":""}]
[{"$f":"IF('1. Order'!B331=\"\",\"\",'1. Order'!B331)","v":""},{"$f":"IF('1. Order'!J331=\"\",\"\",'1. Order'!J331)","v":""},{"$f":"IF('1. Order'!K331=\"\",\"\",'1. Order'!K331)","v":""},{"$f":"IF('1. Order'!L331=\"\",\"\",'1. Order'!L331)","v":""},{"$f":"IF('1. Order'!N331=\"\",\"\",'1. Order'!N331)","v":""},null,null,{"$f":"IF('1. Order'!AV331=\"\",\"\",'1. Order'!AV331)","v":""},{"$f":"IF('1. Order'!AI331=\"\",\"\",'1. Order'!AI331)","v":""}]
[{"$f":"IF('1. Order'!B332=\"\",\"\",'1. Order'!B332)","v":""},{"$f":"IF('1. Order'!J332=\"\",\"\",'1. Order'!J332)","v":""},{"$f":"IF('1. Order'!K332=\"\",\"\",'1. Order'!K332)","v":""},{"$f":"IF('1. Order'!L332=\"\",\"\",'1. Order'!L332)","v":""},{"$f":"IF('1. Order'!N332=\"\",\"\",'1. Order'!N332)","v":""},null,null,{"$f":"IF('1. Order'!AV332=\"\",\"\",'1. Order'!AV332)","v":""},{"$f":"IF('1. Order'!AI332=\"\",\"\",'1. Order'!AI332)","v":""}]
[{"$f":"IF('1. Order'!B333=\"\",\"\",'1. Order'!B333)","v":""},{"$f":"IF('1. Order'!J333=\"\",\"\",'1. Order'!J333)","v":""},{"$f":"IF('1. Order'!K333=\"\",\"\",'1. Order'!K333)","v":""},{"$f":"IF('1. Order'!L333=\"\",\"\",'1. Order'!L333)","v":""},{"$f":"IF('1. Order'!N333=\"\",\"\",'1. Order'!N333)","v":""},null,null,{"$f":"IF('1. Order'!AV333=\"\",\"\",'1. Order'!AV333)","v":""},{"$f":"IF('1. Order'!AI333=\"\",\"\",'1. Order'!AI333)","v":""}]
[{"$f":"IF('1. Order'!B334=\"\",\"\",'1. Order'!B334)","v":""},{"$f":"IF('1. Order'!J334=\"\",\"\",'1. Order'!J334)","v":""},{"$f":"IF('1. Order'!K334=\"\",\"\",'1. Order'!K334)","v":""},{"$f":"IF('1. Order'!L334=\"\",\"\",'1. Order'!L334)","v":""},{"$f":"IF('1. Order'!N334=\"\",\"\",'1. Order'!N334)","v":""},null,null,{"$f":"IF('1. Order'!AV334=\"\",\"\",'1. Order'!AV334)","v":""},{"$f":"IF('1. Order'!AI334=\"\",\"\",'1. Order'!AI334)","v":""}]
[{"$f":"IF('1. Order'!B335=\"\",\"\",'1. Order'!B335)","v":""},{"$f":"IF('1. Order'!J335=\"\",\"\",'1. Order'!J335)","v":""},{"$f":"IF('1. Order'!K335=\"\",\"\",'1. Order'!K335)","v":""},{"$f":"IF('1. Order'!L335=\"\",\"\",'1. Order'!L335)","v":""},{"$f":"IF('1. Order'!N335=\"\",\"\",'1. Order'!N335)","v":""},null,null,{"$f":"IF('1. Order'!AV335=\"\",\"\",'1. Order'!AV335)","v":""},{"$f":"IF('1. Order'!AI335=\"\",\"\",'1. Order'!AI335)","v":""}]
[{"$f":"IF('1. Order'!B336=\"\",\"\",'1. Order'!B336)","v":""},{"$f":"IF('1. Order'!J336=\"\",\"\",'1. Order'!J336)","v":""},{"$f":"IF('1. Order'!K336=\"\",\"\",'1. Order'!K336)","v":""},{"$f":"IF('1. Order'!L336=\"\",\"\",'1. Order'!L336)","v":""},{"$f":"IF('1. Order'!N336=\"\",\"\",'1. Order'!N336)","v":""},null,null,{"$f":"IF('1. Order'!AV336=\"\",\"\",'1. Order'!AV336)","v":""},{"$f":"IF('1. Order'!AI336=\"\",\"\",'1. Order'!AI336)","v":""}]
[{"$f":"IF('1. Order'!B337=\"\",\"\",'1. Order'!B337)","v":""},{"$f":"IF('1. Order'!J337=\"\",\"\",'1. Order'!J337)","v":""},{"$f":"IF('1. Order'!K337=\"\",\"\",'1. Order'!K337)","v":""},{"$f":"IF('1. Order'!L337=\"\",\"\",'1. Order'!L337)","v":""},{"$f":"IF('1. Order'!N337=\"\",\"\",'1. Order'!N337)","v":""},null,null,{"$f":"IF('1. Order'!AV337=\"\",\"\",'1. Order'!AV337)","v":""},{"$f":"IF('1. Order'!AI337=\"\",\"\",'1. Order'!AI337)","v":""}]
[{"$f":"IF('1. Order'!B338=\"\",\"\",'1. Order'!B338)","v":""},{"$f":"IF('1. Order'!J338=\"\",\"\",'1. Order'!J338)","v":""},{"$f":"IF('1. Order'!K338=\"\",\"\",'1. Order'!K338)","v":""},{"$f":"IF('1. Order'!L338=\"\",\"\",'1. Order'!L338)","v":""},{"$f":"IF('1. Order'!N338=\"\",\"\",'1. Order'!N338)","v":""},null,null,{"$f":"IF('1. Order'!AV338=\"\",\"\",'1. Order'!AV338)","v":""},{"$f":"IF('1. Order'!AI338=\"\",\"\",'1. Order'!AI338)","v":""}]
[{"$f":"IF('1. Order'!B339=\"\",\"\",'1. Order'!B339)","v":""},{"$f":"IF('1. Order'!J339=\"\",\"\",'1. Order'!J339)","v":""},{"$f":"IF('1. Order'!K339=\"\",\"\",'1. Order'!K339)","v":""},{"$f":"IF('1. Order'!L339=\"\",\"\",'1. Order'!L339)","v":""},{"$f":"IF('1. Order'!N339=\"\",\"\",'1. Order'!N339)","v":""},null,null,{"$f":"IF('1. Order'!AV339=\"\",\"\",'1. Order'!AV339)","v":""},{"$f":"IF('1. Order'!AI339=\"\",\"\",'1. Order'!AI339)","v":""}]
[{"$f":"IF('1. Order'!B340=\"\",\"\",'1. Order'!B340)","v":""},{"$f":"IF('1. Order'!J340=\"\",\"\",'1. Order'!J340)","v":""},{"$f":"IF('1. Order'!K340=\"\",\"\",'1. Order'!K340)","v":""},{"$f":"IF('1. Order'!L340=\"\",\"\",'1. Order'!L340)","v":""},{"$f":"IF('1. Order'!N340=\"\",\"\",'1. Order'!N340)","v":""},null,null,{"$f":"IF('1. Order'!AV340=\"\",\"\",'1. Order'!AV340)","v":""},{"$f":"IF('1. Order'!AI340=\"\",\"\",'1. Order'!AI340)","v":""}]
[{"$f":"IF('1. Order'!B341=\"\",\"\",'1. Order'!B341)","v":""},{"$f":"IF('1. Order'!J341=\"\",\"\",'1. Order'!J341)","v":""},{"$f":"IF('1. Order'!K341=\"\",\"\",'1. Order'!K341)","v":""},{"$f":"IF('1. Order'!L341=\"\",\"\",'1. Order'!L341)","v":""},{"$f":"IF('1. Order'!N341=\"\",\"\",'1. Order'!N341)","v":""},null,null,{"$f":"IF('1. Order'!AV341=\"\",\"\",'1. Order'!AV341)","v":""},{"$f":"IF('1. Order'!AI341=\"\",\"\",'1. Order'!AI341)","v":""}]
[{"$f":"IF('1. Order'!B342=\"\",\"\",'1. Order'!B342)","v":""},{"$f":"IF('1. Order'!J342=\"\",\"\",'1. Order'!J342)","v":""},{"$f":"IF('1. Order'!K342=\"\",\"\",'1. Order'!K342)","v":""},{"$f":"IF('1. Order'!L342=\"\",\"\",'1. Order'!L342)","v":""},{"$f":"IF('1. Order'!N342=\"\",\"\",'1. Order'!N342)","v":""},null,null,{"$f":"IF('1. Order'!AV342=\"\",\"\",'1. Order'!AV342)","v":""},{"$f":"IF('1. Order'!AI342=\"\",\"\",'1. Order'!AI342)","v":""}]
[{"$f":"IF('1. Order'!B343=\"\",\"\",'1. Order'!B343)","v":""},{"$f":"IF('1. Order'!J343=\"\",\"\",'1. Order'!J343)","v":""},{"$f":"IF('1. Order'!K343=\"\",\"\",'1. Order'!K343)","v":""},{"$f":"IF('1. Order'!L343=\"\",\"\",'1. Order'!L343)","v":""},{"$f":"IF('1. Order'!N343=\"\",\"\",'1. Order'!N343)","v":""},null,null,{"$f":"IF('1. Order'!AV343=\"\",\"\",'1. Order'!AV343)","v":""},{"$f":"IF('1. Order'!AI343=\"\",\"\",'1. Order'!AI343)","v":""}]
[{"$f":"IF('1. Order'!B344=\"\",\"\",'1. Order'!B344)","v":""},{"$f":"IF('1. Order'!J344=\"\",\"\",'1. Order'!J344)","v":""},{"$f":"IF('1. Order'!K344=\"\",\"\",'1. Order'!K344)","v":""},{"$f":"IF('1. Order'!L344=\"\",\"\",'1. Order'!L344)","v":""},{"$f":"IF('1. Order'!N344=\"\",\"\",'1. Order'!N344)","v":""},null,null,{"$f":"IF('1. Order'!AV344=\"\",\"\",'1. Order'!AV344)","v":""},{"$f":"IF('1. Order'!AI344=\"\",\"\",'1. Order'!AI344)","v":""}]
[{"$f":"IF('1. Order'!B345=\"\",\"\",'1. Order'!B345)","v":""},{"$f":"IF('1. Order'!J345=\"\",\"\",'1. Order'!J345)","v":""},{"$f":"IF('1. Order'!K345=\"\",\"\",'1. Order'!K345)","v":""},{"$f":"IF('1. Order'!L345=\"\",\"\",'1. Order'!L345)","v":""},{"$f":"IF('1. Order'!N345=\"\",\"\",'1. Order'!N345)","v":""},null,null,{"$f":"IF('1. Order'!AV345=\"\",\"\",'1. Order'!AV345)","v":""},{"$f":"IF('1. Order'!AI345=\"\",\"\",'1. Order'!AI345)","v":""}]
[{"$f":"IF('1. Order'!B346=\"\",\"\",'1. Order'!B346)","v":""},{"$f":"IF('1. Order'!J346=\"\",\"\",'1. Order'!J346)","v":""},{"$f":"IF('1. Order'!K346=\"\",\"\",'1. Order'!K346)","v":""},{"$f":"IF('1. Order'!L346=\"\",\"\",'1. Order'!L346)","v":""},{"$f":"IF('1. Order'!N346=\"\",\"\",'1. Order'!N346)","v":""},null,null,{"$f":"IF('1. Order'!AV346=\"\",\"\",'1. Order'!AV346)","v":""},{"$f":"IF('1. Order'!AI346=\"\",\"\",'1. Order'!AI346)","v":""}]
[{"$f":"IF('1. Order'!B347=\"\",\"\",'1. Order'!B347)","v":""},{"$f":"IF('1. Order'!J347=\"\",\"\",'1. Order'!J347)","v":""},{"$f":"IF('1. Order'!K347=\"\",\"\",'1. Order'!K347)","v":""},{"$f":"IF('1. Order'!L347=\"\",\"\",'1. Order'!L347)","v":""},{"$f":"IF('1. Order'!N347=\"\",\"\",'1. Order'!N347)","v":""},null,null,{"$f":"IF('1. Order'!AV347=\"\",\"\",'1. Order'!AV347)","v":""},{"$f":"IF('1. Order'!AI347=\"\",\"\",'1. Order'!AI347)","v":""}]
[{"$f":"IF('1. Order'!B348=\"\",\"\",'1. Order'!B348)","v":""},{"$f":"IF('1. Order'!J348=\"\",\"\",'1. Order'!J348)","v":""},{"$f":"IF('1. Order'!K348=\"\",\"\",'1. Order'!K348)","v":""},{"$f":"IF('1. Order'!L348=\"\",\"\",'1. Order'!L348)","v":""},{"$f":"IF('1. Order'!N348=\"\",\"\",'1. Order'!N348)","v":""},null,null,{"$f":"IF('1. Order'!AV348=\"\",\"\",'1. Order'!AV348)","v":""},{"$f":"IF('1. Order'!AI348=\"\",\"\",'1. Order'!AI348)","v":""}]
[{"$f":"IF('1. Order'!B349=\"\",\"\",'1. Order'!B349)","v":""},{"$f":"IF('1. Order'!J349=\"\",\"\",'1. Order'!J349)","v":""},{"$f":"IF('1. Order'!K349=\"\",\"\",'1. Order'!K349)","v":""},{"$f":"IF('1. Order'!L349=\"\",\"\",'1. Order'!L349)","v":""},{"$f":"IF('1. Order'!N349=\"\",\"\",'1. Order'!N349)","v":""},null,null,{"$f":"IF('1. Order'!AV349=\"\",\"\",'1. Order'!AV349)","v":""},{"$f":"IF('1. Order'!AI349=\"\",\"\",'1. Order'!AI349)","v":""}]
[{"$f":"IF('1. Order'!B350=\"\",\"\",'1. Order'!B350)","v":""},{"$f":"IF('1. Order'!J350=\"\",\"\",'1. Order'!J350)","v":""},{"$f":"IF('1. Order'!K350=\"\",\"\",'1. Order'!K350)","v":""},{"$f":"IF('1. Order'!L350=\"\",\"\",'1. Order'!L350)","v":""},{"$f":"IF('1. Order'!N350=\"\",\"\",'1. Order'!N350)","v":""},null,null,{"$f":"IF('1. Order'!AV350=\"\",\"\",'1. Order'!AV350)","v":""},{"$f":"IF('1. Order'!AI350=\"\",\"\",'1. Order'!AI350)","v":""}]
[{"$f":"IF('1. Order'!B351=\"\",\"\",'1. Order'!B351)","v":""},{"$f":"IF('1. Order'!J351=\"\",\"\",'1. Order'!J351)","v":""},{"$f":"IF('1. Order'!K351=\"\",\"\",'1. Order'!K351)","v":""},{"$f":"IF('1. Order'!L351=\"\",\"\",'1. Order'!L351)","v":""},{"$f":"IF('1. Order'!N351=\"\",\"\",'1. Order'!N351)","v":""},null,null,{"$f":"IF('1. Order'!AV351=\"\",\"\",'1. Order'!AV351)","v":""},{"$f":"IF('1. Order'!AI351=\"\",\"\",'1. Order'!AI351)","v":""}]
[{"$f":"IF('1. Order'!B352=\"\",\"\",'1. Order'!B352)","v":""},{"$f":"IF('1. Order'!J352=\"\",\"\",'1. Order'!J352)","v":""},{"$f":"IF('1. Order'!K352=\"\",\"\",'1. Order'!K352)","v":""},{"$f":"IF('1. Order'!L352=\"\",\"\",'1. Order'!L352)","v":""},{"$f":"IF('1. Order'!N352=\"\",\"\",'1. Order'!N352)","v":""},null,null,{"$f":"IF('1. Order'!AV352=\"\",\"\",'1. Order'!AV352)","v":""},{"$f":"IF('1. Order'!AI352=\"\",\"\",'1. Order'!AI352)","v":""}]
[{"$f":"IF('1. Order'!B353=\"\",\"\",'1. Order'!B353)","v":""},{"$f":"IF('1. Order'!J353=\"\",\"\",'1. Order'!J353)","v":""},{"$f":"IF('1. Order'!K353=\"\",\"\",'1. Order'!K353)","v":""},{"$f":"IF('1. Order'!L353=\"\",\"\",'1. Order'!L353)","v":""},{"$f":"IF('1. Order'!N353=\"\",\"\",'1. Order'!N353)","v":""},null,null,{"$f":"IF('1. Order'!AV353=\"\",\"\",'1. Order'!AV353)","v":""},{"$f":"IF('1. Order'!AI353=\"\",\"\",'1. Order'!AI353)","v":""}]
[{"$f":"IF('1. Order'!B354=\"\",\"\",'1. Order'!B354)","v":""},{"$f":"IF('1. Order'!J354=\"\",\"\",'1. Order'!J354)","v":""},{"$f":"IF('1. Order'!K354=\"\",\"\",'1. Order'!K354)","v":""},{"$f":"IF('1. Order'!L354=\"\",\"\",'1. Order'!L354)","v":""},{"$f":"IF('1. Order'!N354=\"\",\"\",'1. Order'!N354)","v":""},null,null,{"$f":"IF('1. Order'!AV354=\"\",\"\",'1. Order'!AV354)","v":""},{"$f":"IF('1. Order'!AI354=\"\",\"\",'1. Order'!AI354)","v":""}]
[{"$f":"IF('1. Order'!B355=\"\",\"\",'1. Order'!B355)","v":""},{"$f":"IF('1. Order'!J355=\"\",\"\",'1. Order'!J355)","v":""},{"$f":"IF('1. Order'!K355=\"\",\"\",'1. Order'!K355)","v":""},{"$f":"IF('1. Order'!L355=\"\",\"\",'1. Order'!L355)","v":""},{"$f":"IF('1. Order'!N355=\"\",\"\",'1. Order'!N355)","v":""},null,null,{"$f":"IF('1. Order'!AV355=\"\",\"\",'1. Order'!AV355)","v":""},{"$f":"IF('1. Order'!AI355=\"\",\"\",'1. Order'!AI355)","v":""}]
[{"$f":"IF('1. Order'!B356=\"\",\"\",'1. Order'!B356)","v":""},{"$f":"IF('1. Order'!J356=\"\",\"\",'1. Order'!J356)","v":""},{"$f":"IF('1. Order'!K356=\"\",\"\",'1. Order'!K356)","v":""},{"$f":"IF('1. Order'!L356=\"\",\"\",'1. Order'!L356)","v":""},{"$f":"IF('1. Order'!N356=\"\",\"\",'1. Order'!N356)","v":""},null,null,{"$f":"IF('1. Order'!AV356=\"\",\"\",'1. Order'!AV356)","v":""},{"$f":"IF('1. Order'!AI356=\"\",\"\",'1. Order'!AI356)","v":""}]
[{"$f":"IF('1. Order'!B357=\"\",\"\",'1. Order'!B357)","v":""},{"$f":"IF('1. Order'!J357=\"\",\"\",'1. Order'!J357)","v":""},{"$f":"IF('1. Order'!K357=\"\",\"\",'1. Order'!K357)","v":""},{"$f":"IF('1. Order'!L357=\"\",\"\",'1. Order'!L357)","v":""},{"$f":"IF('1. Order'!N357=\"\",\"\",'1. Order'!N357)","v":""},null,null,{"$f":"IF('1. Order'!AV357=\"\",\"\",'1. Order'!AV357)","v":""},{"$f":"IF('1. Order'!AI357=\"\",\"\",'1. Order'!AI357)","v":""}]
[{"$f":"IF('1. Order'!B358=\"\",\"\",'1. Order'!B358)","v":""},{"$f":"IF('1. Order'!J358=\"\",\"\",'1. Order'!J358)","v":""},{"$f":"IF('1. Order'!K358=\"\",\"\",'1. Order'!K358)","v":""},{"$f":"IF('1. Order'!L358=\"\",\"\",'1. Order'!L358)","v":""},{"$f":"IF('1. Order'!N358=\"\",\"\",'1. Order'!N358)","v":""},null,null,{"$f":"IF('1. Order'!AV358=\"\",\"\",'1. Order'!AV358)","v":""},{"$f":"IF('1. Order'!AI358=\"\",\"\",'1. Order'!AI358)","v":""}]
[{"$f":"IF('1. Order'!B359=\"\",\"\",'1. Order'!B359)","v":""},{"$f":"IF('1. Order'!J359=\"\",\"\",'1. Order'!J359)","v":""},{"$f":"IF('1. Order'!K359=\"\",\"\",'1. Order'!K359)","v":""},{"$f":"IF('1. Order'!L359=\"\",\"\",'1. Order'!L359)","v":""},{"$f":"IF('1. Order'!N359=\"\",\"\",'1. Order'!N359)","v":""},null,null,{"$f":"IF('1. Order'!AV359=\"\",\"\",'1. Order'!AV359)","v":""},{"$f":"IF('1. Order'!AI359=\"\",\"\",'1. Order'!AI359)","v":""}]
[{"$f":"IF('1. Order'!B360=\"\",\"\",'1. Order'!B360)","v":""},{"$f":"IF('1. Order'!J360=\"\",\"\",'1. Order'!J360)","v":""},{"$f":"IF('1. Order'!K360=\"\",\"\",'1. Order'!K360)","v":""},{"$f":"IF('1. Order'!L360=\"\",\"\",'1. Order'!L360)","v":""},{"$f":"IF('1. Order'!N360=\"\",\"\",'1. Order'!N360)","v":""},null,null,{"$f":"IF('1. Order'!AV360=\"\",\"\",'1. Order'!AV360)","v":""},{"$f":"IF('1. Order'!AI360=\"\",\"\",'1. Order'!AI360)","v":""}]
[{"$f":"IF('1. Order'!B361=\"\",\"\",'1. Order'!B361)","v":""},{"$f":"IF('1. Order'!J361=\"\",\"\",'1. Order'!J361)","v":""},{"$f":"IF('1. Order'!K361=\"\",\"\",'1. Order'!K361)","v":""},{"$f":"IF('1. Order'!L361=\"\",\"\",'1. Order'!L361)","v":""},{"$f":"IF('1. Order'!N361=\"\",\"\",'1. Order'!N361)","v":""},null,null,{"$f":"IF('1. Order'!AV361=\"\",\"\",'1. Order'!AV361)","v":""},{"$f":"IF('1. Order'!AI361=\"\",\"\",'1. Order'!AI361)","v":""}]
[{"$f":"IF('1. Order'!B362=\"\",\"\",'1. Order'!B362)","v":""},{"$f":"IF('1. Order'!J362=\"\",\"\",'1. Order'!J362)","v":""},{"$f":"IF('1. Order'!K362=\"\",\"\",'1. Order'!K362)","v":""},{"$f":"IF('1. Order'!L362=\"\",\"\",'1. Order'!L362)","v":""},{"$f":"IF('1. Order'!N362=\"\",\"\",'1. Order'!N362)","v":""},null,null,{"$f":"IF('1. Order'!AV362=\"\",\"\",'1. Order'!AV362)","v":""},{"$f":"IF('1. Order'!AI362=\"\",\"\",'1. Order'!AI362)","v":""}]
[{"$f":"IF('1. Order'!B363=\"\",\"\",'1. Order'!B363)","v":""},{"$f":"IF('1. Order'!J363=\"\",\"\",'1. Order'!J363)","v":""},{"$f":"IF('1. Order'!K363=\"\",\"\",'1. Order'!K363)","v":""},{"$f":"IF('1. Order'!L363=\"\",\"\",'1. Order'!L363)","v":""},{"$f":"IF('1. Order'!N363=\"\",\"\",'1. Order'!N363)","v":""},null,null,{"$f":"IF('1. Order'!AV363=\"\",\"\",'1. Order'!AV363)","v":""},{"$f":"IF('1. Order'!AI363=\"\",\"\",'1. Order'!AI363)","v":""}]
[{"$f":"IF('1. Order'!B364=\"\",\"\",'1. Order'!B364)","v":""},{"$f":"IF('1. Order'!J364=\"\",\"\",'1. Order'!J364)","v":""},{"$f":"IF('1. Order'!K364=\"\",\"\",'1. Order'!K364)","v":""},{"$f":"IF('1. Order'!L364=\"\",\"\",'1. Order'!L364)","v":""},{"$f":"IF('1. Order'!N364=\"\",\"\",'1. Order'!N364)","v":""},null,null,{"$f":"IF('1. Order'!AV364=\"\",\"\",'1. Order'!AV364)","v":""},{"$f":"IF('1. Order'!AI364=\"\",\"\",'1. Order'!AI364)","v":""}]
[{"$f":"IF('1. Order'!B365=\"\",\"\",'1. Order'!B365)","v":""},{"$f":"IF('1. Order'!J365=\"\",\"\",'1. Order'!J365)","v":""},{"$f":"IF('1. Order'!K365=\"\",\"\",'1. Order'!K365)","v":""},{"$f":"IF('1. Order'!L365=\"\",\"\",'1. Order'!L365)","v":""},{"$f":"IF('1. Order'!N365=\"\",\"\",'1. Order'!N365)","v":""},null,null,{"$f":"IF('1. Order'!AV365=\"\",\"\",'1. Order'!AV365)","v":""},{"$f":"IF('1. Order'!AI365=\"\",\"\",'1. Order'!AI365)","v":""}]
[{"$f":"IF('1. Order'!B366=\"\",\"\",'1. Order'!B366)","v":""},{"$f":"IF('1. Order'!J366=\"\",\"\",'1. Order'!J366)","v":""},{"$f":"IF('1. Order'!K366=\"\",\"\",'1. Order'!K366)","v":""},{"$f":"IF('1. Order'!L366=\"\",\"\",'1. Order'!L366)","v":""},{"$f":"IF('1. Order'!N366=\"\",\"\",'1. Order'!N366)","v":""},null,null,{"$f":"IF('1. Order'!AV366=\"\",\"\",'1. Order'!AV366)","v":""},{"$f":"IF('1. Order'!AI366=\"\",\"\",'1. Order'!AI366)","v":""}]
[{"$f":"IF('1. Order'!B367=\"\",\"\",'1. Order'!B367)","v":""},{"$f":"IF('1. Order'!J367=\"\",\"\",'1. Order'!J367)","v":""},{"$f":"IF('1. Order'!K367=\"\",\"\",'1. Order'!K367)","v":""},{"$f":"IF('1. Order'!L367=\"\",\"\",'1. Order'!L367)","v":""},{"$f":"IF('1. Order'!N367=\"\",\"\",'1. Order'!N367)","v":""},null,null,{"$f":"IF('1. Order'!AV367=\"\",\"\",'1. Order'!AV367)","v":""},{"$f":"IF('1. Order'!AI367=\"\",\"\",'1. Order'!AI367)","v":""}]
[{"$f":"IF('1. Order'!B368=\"\",\"\",'1. Order'!B368)","v":""},{"$f":"IF('1. Order'!J368=\"\",\"\",'1. Order'!J368)","v":""},{"$f":"IF('1. Order'!K368=\"\",\"\",'1. Order'!K368)","v":""},{"$f":"IF('1. Order'!L368=\"\",\"\",'1. Order'!L368)","v":""},{"$f":"IF('1. Order'!N368=\"\",\"\",'1. Order'!N368)","v":""},null,null,{"$f":"IF('1. Order'!AV368=\"\",\"\",'1. Order'!AV368)","v":""},{"$f":"IF('1. Order'!AI368=\"\",\"\",'1. Order'!AI368)","v":""}]
[{"$f":"IF('1. Order'!B369=\"\",\"\",'1. Order'!B369)","v":""},{"$f":"IF('1. Order'!J369=\"\",\"\",'1. Order'!J369)","v":""},{"$f":"IF('1. Order'!K369=\"\",\"\",'1. Order'!K369)","v":""},{"$f":"IF('1. Order'!L369=\"\",\"\",'1. Order'!L369)","v":""},{"$f":"IF('1. Order'!N369=\"\",\"\",'1. Order'!N369)","v":""},null,null,{"$f":"IF('1. Order'!AV369=\"\",\"\",'1. Order'!AV369)","v":""},{"$f":"IF('1. Order'!AI369=\"\",\"\",'1. Order'!AI369)","v":""}]
[{"$f":"IF('1. Order'!B370=\"\",\"\",'1. Order'!B370)","v":""},{"$f":"IF('1. Order'!J370=\"\",\"\",'1. Order'!J370)","v":""},{"$f":"IF('1. Order'!K370=\"\",\"\",'1. Order'!K370)","v":""},{"$f":"IF('1. Order'!L370=\"\",\"\",'1. Order'!L370)","v":""},{"$f":"IF('1. Order'!N370=\"\",\"\",'1. Order'!N370)","v":""},null,null,{"$f":"IF('1. Order'!AV370=\"\",\"\",'1. Order'!AV370)","v":""},{"$f":"IF('1. Order'!AI370=\"\",\"\",'1. Order'!AI370)","v":""}]
[{"$f":"IF('1. Order'!B371=\"\",\"\",'1. Order'!B371)","v":""},{"$f":"IF('1. Order'!J371=\"\",\"\",'1. Order'!J371)","v":""},{"$f":"IF('1. Order'!K371=\"\",\"\",'1. Order'!K371)","v":""},{"$f":"IF('1. Order'!L371=\"\",\"\",'1. Order'!L371)","v":""},{"$f":"IF('1. Order'!N371=\"\",\"\",'1. Order'!N371)","v":""},null,null,{"$f":"IF('1. Order'!AV371=\"\",\"\",'1. Order'!AV371)","v":""},{"$f":"IF('1. Order'!AI371=\"\",\"\",'1. Order'!AI371)","v":""}]
[{"$f":"IF('1. Order'!B372=\"\",\"\",'1. Order'!B372)","v":""},{"$f":"IF('1. Order'!J372=\"\",\"\",'1. Order'!J372)","v":""},{"$f":"IF('1. Order'!K372=\"\",\"\",'1. Order'!K372)","v":""},{"$f":"IF('1. Order'!L372=\"\",\"\",'1. Order'!L372)","v":""},{"$f":"IF('1. Order'!N372=\"\",\"\",'1. Order'!N372)","v":""},null,null,{"$f":"IF('1. Order'!AV372=\"\",\"\",'1. Order'!AV372)","v":""},{"$f":"IF('1. Order'!AI372=\"\",\"\",'1. Order'!AI372)","v":""}]
[{"$f":"IF('1. Order'!B373=\"\",\"\",'1. Order'!B373)","v":""},{"$f":"IF('1. Order'!J373=\"\",\"\",'1. Order'!J373)","v":""},{"$f":"IF('1. Order'!K373=\"\",\"\",'1. Order'!K373)","v":""},{"$f":"IF('1. Order'!L373=\"\",\"\",'1. Order'!L373)","v":""},{"$f":"IF('1. Order'!N373=\"\",\"\",'1. Order'!N373)","v":""},null,null,{"$f":"IF('1. Order'!AV373=\"\",\"\",'1. Order'!AV373)","v":""},{"$f":"IF('1. Order'!AI373=\"\",\"\",'1. Order'!AI373)","v":""}]
[{"$f":"IF('1. Order'!B374=\"\",\"\",'1. Order'!B374)","v":""},{"$f":"IF('1. Order'!J374=\"\",\"\",'1. Order'!J374)","v":""},{"$f":"IF('1. Order'!K374=\"\",\"\",'1. Order'!K374)","v":""},{"$f":"IF('1. Order'!L374=\"\",\"\",'1. Order'!L374)","v":""},{"$f":"IF('1. Order'!N374=\"\",\"\",'1. Order'!N374)","v":""},null,null,{"$f":"IF('1. Order'!AV374=\"\",\"\",'1. Order'!AV374)","v":""},{"$f":"IF('1. Order'!AI374=\"\",\"\",'1. Order'!AI374)","v":""}]
[{"$f":"IF('1. Order'!B375=\"\",\"\",'1. Order'!B375)","v":""},{"$f":"IF('1. Order'!J375=\"\",\"\",'1. Order'!J375)","v":""},{"$f":"IF('1. Order'!K375=\"\",\"\",'1. Order'!K375)","v":""},{"$f":"IF('1. Order'!L375=\"\",\"\",'1. Order'!L375)","v":""},{"$f":"IF('1. Order'!N375=\"\",\"\",'1. Order'!N375)","v":""},null,null,{"$f":"IF('1. Order'!AV375=\"\",\"\",'1. Order'!AV375)","v":""},{"$f":"IF('1. Order'!AI375=\"\",\"\",'1. Order'!AI375)","v":""}]
[{"$f":"IF('1. Order'!B376=\"\",\"\",'1. Order'!B376)","v":""},{"$f":"IF('1. Order'!J376=\"\",\"\",'1. Order'!J376)","v":""},{"$f":"IF('1. Order'!K376=\"\",\"\",'1. Order'!K376)","v":""},{"$f":"IF('1. Order'!L376=\"\",\"\",'1. Order'!L376)","v":""},{"$f":"IF('1. Order'!N376=\"\",\"\",'1. Order'!N376)","v":""},null,null,{"$f":"IF('1. Order'!AV376=\"\",\"\",'1. Order'!AV376)","v":""},{"$f":"IF('1. Order'!AI376=\"\",\"\",'1. Order'!AI376)","v":""}]
[{"$f":"IF('1. Order'!B377=\"\",\"\",'1. Order'!B377)","v":""},{"$f":"IF('1. Order'!J377=\"\",\"\",'1. Order'!J377)","v":""},{"$f":"IF('1. Order'!K377=\"\",\"\",'1. Order'!K377)","v":""},{"$f":"IF('1. Order'!L377=\"\",\"\",'1. Order'!L377)","v":""},{"$f":"IF('1. Order'!N377=\"\",\"\",'1. Order'!N377)","v":""},null,null,{"$f":"IF('1. Order'!AV377=\"\",\"\",'1. Order'!AV377)","v":""},{"$f":"IF('1. Order'!AI377=\"\",\"\",'1. Order'!AI377)","v":""}]
[{"$f":"IF('1. Order'!B378=\"\",\"\",'1. Order'!B378)","v":""},{"$f":"IF('1. Order'!J378=\"\",\"\",'1. Order'!J378)","v":""},{"$f":"IF('1. Order'!K378=\"\",\"\",'1. Order'!K378)","v":""},{"$f":"IF('1. Order'!L378=\"\",\"\",'1. Order'!L378)","v":""},{"$f":"IF('1. Order'!N378=\"\",\"\",'1. Order'!N378)","v":""},null,null,{"$f":"IF('1. Order'!AV378=\"\",\"\",'1. Order'!AV378)","v":""},{"$f":"IF('1. Order'!AI378=\"\",\"\",'1. Order'!AI378)","v":""}]
[{"$f":"IF('1. Order'!B379=\"\",\"\",'1. Order'!B379)","v":""},{"$f":"IF('1. Order'!J379=\"\",\"\",'1. Order'!J379)","v":""},{"$f":"IF('1. Order'!K379=\"\",\"\",'1. Order'!K379)","v":""},{"$f":"IF('1. Order'!L379=\"\",\"\",'1. Order'!L379)","v":""},{"$f":"IF('1. Order'!N379=\"\",\"\",'1. Order'!N379)","v":""},null,null,{"$f":"IF('1. Order'!AV379=\"\",\"\",'1. Order'!AV379)","v":""},{"$f":"IF('1. Order'!AI379=\"\",\"\",'1. Order'!AI379)","v":""}]
[{"$f":"IF('1. Order'!B380=\"\",\"\",'1. Order'!B380)","v":""},{"$f":"IF('1. Order'!J380=\"\",\"\",'1. Order'!J380)","v":""},{"$f":"IF('1. Order'!K380=\"\",\"\",'1. Order'!K380)","v":""},{"$f":"IF('1. Order'!L380=\"\",\"\",'1. Order'!L380)","v":""},{"$f":"IF('1. Order'!N380=\"\",\"\",'1. Order'!N380)","v":""},null,null,{"$f":"IF('1. Order'!AV380=\"\",\"\",'1. Order'!AV380)","v":""},{"$f":"IF('1. Order'!AI380=\"\",\"\",'1. Order'!AI380)","v":""}]
[{"$f":"IF('1. Order'!B381=\"\",\"\",'1. Order'!B381)","v":""},{"$f":"IF('1. Order'!J381=\"\",\"\",'1. Order'!J381)","v":""},{"$f":"IF('1. Order'!K381=\"\",\"\",'1. Order'!K381)","v":""},{"$f":"IF('1. Order'!L381=\"\",\"\",'1. Order'!L381)","v":""},{"$f":"IF('1. Order'!N381=\"\",\"\",'1. Order'!N381)","v":""},null,null,{"$f":"IF('1. Order'!AV381=\"\",\"\",'1. Order'!AV381)","v":""},{"$f":"IF('1. Order'!AI381=\"\",\"\",'1. Order'!AI381)","v":""}]
[{"$f":"IF('1. Order'!B382=\"\",\"\",'1. Order'!B382)","v":""},{"$f":"IF('1. Order'!J382=\"\",\"\",'1. Order'!J382)","v":""},{"$f":"IF('1. Order'!K382=\"\",\"\",'1. Order'!K382)","v":""},{"$f":"IF('1. Order'!L382=\"\",\"\",'1. Order'!L382)","v":""},{"$f":"IF('1. Order'!N382=\"\",\"\",'1. Order'!N382)","v":""},null,null,{"$f":"IF('1. Order'!AV382=\"\",\"\",'1. Order'!AV382)","v":""},{"$f":"IF('1. Order'!AI382=\"\",\"\",'1. Order'!AI382)","v":""}]
[{"$f":"IF('1. Order'!B383=\"\",\"\",'1. Order'!B383)","v":""},{"$f":"IF('1. Order'!J383=\"\",\"\",'1. Order'!J383)","v":""},{"$f":"IF('1. Order'!K383=\"\",\"\",'1. Order'!K383)","v":""},{"$f":"IF('1. Order'!L383=\"\",\"\",'1. Order'!L383)","v":""},{"$f":"IF('1. Order'!N383=\"\",\"\",'1. Order'!N383)","v":""},null,null,{"$f":"IF('1. Order'!AV383=\"\",\"\",'1. Order'!AV383)","v":""},{"$f":"IF('1. Order'!AI383=\"\",\"\",'1. Order'!AI383)","v":""}]
[{"$f":"IF('1. Order'!B384=\"\",\"\",'1. Order'!B384)","v":""},{"$f":"IF('1. Order'!J384=\"\",\"\",'1. Order'!J384)","v":""},{"$f":"IF('1. Order'!K384=\"\",\"\",'1. Order'!K384)","v":""},{"$f":"IF('1. Order'!L384=\"\",\"\",'1. Order'!L384)","v":""},{"$f":"IF('1. Order'!N384=\"\",\"\",'1. Order'!N384)","v":""},null,null,{"$f":"IF('1. Order'!AV384=\"\",\"\",'1. Order'!AV384)","v":""},{"$f":"IF('1. Order'!AI384=\"\",\"\",'1. Order'!AI384)","v":""}]
[{"$f":"IF('1. Order'!B385=\"\",\"\",'1. Order'!B385)","v":""},{"$f":"IF('1. Order'!J385=\"\",\"\",'1. Order'!J385)","v":""},{"$f":"IF('1. Order'!K385=\"\",\"\",'1. Order'!K385)","v":""},{"$f":"IF('1. Order'!L385=\"\",\"\",'1. Order'!L385)","v":""},{"$f":"IF('1. Order'!N385=\"\",\"\",'1. Order'!N385)","v":""},null,null,{"$f":"IF('1. Order'!AV385=\"\",\"\",'1. Order'!AV385)","v":""},{"$f":"IF('1. Order'!AI385=\"\",\"\",'1. Order'!AI385)","v":""}]
[{"$f":"IF('1. Order'!B386=\"\",\"\",'1. Order'!B386)","v":""},{"$f":"IF('1. Order'!J386=\"\",\"\",'1. Order'!J386)","v":""},{"$f":"IF('1. Order'!K386=\"\",\"\",'1. Order'!K386)","v":""},{"$f":"IF('1. Order'!L386=\"\",\"\",'1. Order'!L386)","v":""},{"$f":"IF('1. Order'!N386=\"\",\"\",'1. Order'!N386)","v":""},null,null,{"$f":"IF('1. Order'!AV386=\"\",\"\",'1. Order'!AV386)","v":""},{"$f":"IF('1. Order'!AI386=\"\",\"\",'1. Order'!AI386)","v":""}]
[{"$f":"IF('1. Order'!B387=\"\",\"\",'1. Order'!B387)","v":""},{"$f":"IF('1. Order'!J387=\"\",\"\",'1. Order'!J387)","v":""},{"$f":"IF('1. Order'!K387=\"\",\"\",'1. Order'!K387)","v":""},{"$f":"IF('1. Order'!L387=\"\",\"\",'1. Order'!L387)","v":""},{"$f":"IF('1. Order'!N387=\"\",\"\",'1. Order'!N387)","v":""},null,null,{"$f":"IF('1. Order'!AV387=\"\",\"\",'1. Order'!AV387)","v":""},{"$f":"IF('1. Order'!AI387=\"\",\"\",'1. Order'!AI387)","v":""}]
[{"$f":"IF('1. Order'!B388=\"\",\"\",'1. Order'!B388)","v":""},{"$f":"IF('1. Order'!J388=\"\",\"\",'1. Order'!J388)","v":""},{"$f":"IF('1. Order'!K388=\"\",\"\",'1. Order'!K388)","v":""},{"$f":"IF('1. Order'!L388=\"\",\"\",'1. Order'!L388)","v":""},{"$f":"IF('1. Order'!N388=\"\",\"\",'1. Order'!N388)","v":""},null,null,{"$f":"IF('1. Order'!AV388=\"\",\"\",'1. Order'!AV388)","v":""},{"$f":"IF('1. Order'!AI388=\"\",\"\",'1. Order'!AI388)","v":""}]
[{"$f":"IF('1. Order'!B389=\"\",\"\",'1. Order'!B389)","v":""},{"$f":"IF('1. Order'!J389=\"\",\"\",'1. Order'!J389)","v":""},{"$f":"IF('1. Order'!K389=\"\",\"\",'1. Order'!K389)","v":""},{"$f":"IF('1. Order'!L389=\"\",\"\",'1. Order'!L389)","v":""},{"$f":"IF('1. Order'!N389=\"\",\"\",'1. Order'!N389)","v":""},null,null,{"$f":"IF('1. Order'!AV389=\"\",\"\",'1. Order'!AV389)","v":""},{"$f":"IF('1. Order'!AI389=\"\",\"\",'1. Order'!AI389)","v":""}]
[{"$f":"IF('1. Order'!B390=\"\",\"\",'1. Order'!B390)","v":""},{"$f":"IF('1. Order'!J390=\"\",\"\",'1. Order'!J390)","v":""},{"$f":"IF('1. Order'!K390=\"\",\"\",'1. Order'!K390)","v":""},{"$f":"IF('1. Order'!L390=\"\",\"\",'1. Order'!L390)","v":""},{"$f":"IF('1. Order'!N390=\"\",\"\",'1. Order'!N390)","v":""},null,null,{"$f":"IF('1. Order'!AV390=\"\",\"\",'1. Order'!AV390)","v":""},{"$f":"IF('1. Order'!AI390=\"\",\"\",'1. Order'!AI390)","v":""}]
[{"$f":"IF('1. Order'!B391=\"\",\"\",'1. Order'!B391)","v":""},{"$f":"IF('1. Order'!J391=\"\",\"\",'1. Order'!J391)","v":""},{"$f":"IF('1. Order'!K391=\"\",\"\",'1. Order'!K391)","v":""},{"$f":"IF('1. Order'!L391=\"\",\"\",'1. Order'!L391)","v":""},{"$f":"IF('1. Order'!N391=\"\",\"\",'1. Order'!N391)","v":""},null,null,{"$f":"IF('1. Order'!AV391=\"\",\"\",'1. Order'!AV391)","v":""},{"$f":"IF('1. Order'!AI391=\"\",\"\",'1. Order'!AI391)","v":""}]
[{"$f":"IF('1. Order'!B392=\"\",\"\",'1. Order'!B392)","v":""},{"$f":"IF('1. Order'!J392=\"\",\"\",'1. Order'!J392)","v":""},{"$f":"IF('1. Order'!K392=\"\",\"\",'1. Order'!K392)","v":""},{"$f":"IF('1. Order'!L392=\"\",\"\",'1. Order'!L392)","v":""},{"$f":"IF('1. Order'!N392=\"\",\"\",'1. Order'!N392)","v":""},null,null,{"$f":"IF('1. Order'!AV392=\"\",\"\",'1. Order'!AV392)","v":""},{"$f":"IF('1. Order'!AI392=\"\",\"\",'1. Order'!AI392)","v":""}]
[{"$f":"IF('1. Order'!B393=\"\",\"\",'1. Order'!B393)","v":""},{"$f":"IF('1. Order'!J393=\"\",\"\",'1. Order'!J393)","v":""},{"$f":"IF('1. Order'!K393=\"\",\"\",'1. Order'!K393)","v":""},{"$f":"IF('1. Order'!L393=\"\",\"\",'1. Order'!L393)","v":""},{"$f":"IF('1. Order'!N393=\"\",\"\",'1. Order'!N393)","v":""},null,null,{"$f":"IF('1. Order'!AV393=\"\",\"\",'1. Order'!AV393)","v":""},{"$f":"IF('1. Order'!AI393=\"\",\"\",'1. Order'!AI393)","v":""}]
[{"$f":"IF('1. Order'!B394=\"\",\"\",'1. Order'!B394)","v":""},{"$f":"IF('1. Order'!J394=\"\",\"\",'1. Order'!J394)","v":""},{"$f":"IF('1. Order'!K394=\"\",\"\",'1. Order'!K394)","v":""},{"$f":"IF('1. Order'!L394=\"\",\"\",'1. Order'!L394)","v":""},{"$f":"IF('1. Order'!N394=\"\",\"\",'1. Order'!N394)","v":""},null,null,{"$f":"IF('1. Order'!AV394=\"\",\"\",'1. Order'!AV394)","v":""},{"$f":"IF('1. Order'!AI394=\"\",\"\",'1. Order'!AI394)","v":""}]
[{"$f":"IF('1. Order'!B395=\"\",\"\",'1. Order'!B395)","v":""},{"$f":"IF('1. Order'!J395=\"\",\"\",'1. Order'!J395)","v":""},{"$f":"IF('1. Order'!K395=\"\",\"\",'1. Order'!K395)","v":""},{"$f":"IF('1. Order'!L395=\"\",\"\",'1. Order'!L395)","v":""},{"$f":"IF('1. Order'!N395=\"\",\"\",'1. Order'!N395)","v":""},null,null,{"$f":"IF('1. Order'!AV395=\"\",\"\",'1. Order'!AV395)","v":""},{"$f":"IF('1. Order'!AI395=\"\",\"\",'1. Order'!AI395)","v":""}]
[{"$f":"IF('1. Order'!B396=\"\",\"\",'1. Order'!B396)","v":""},{"$f":"IF('1. Order'!J396=\"\",\"\",'1. Order'!J396)","v":""},{"$f":"IF('1. Order'!K396=\"\",\"\",'1. Order'!K396)","v":""},{"$f":"IF('1. Order'!L396=\"\",\"\",'1. Order'!L396)","v":""},{"$f":"IF('1. Order'!N396=\"\",\"\",'1. Order'!N396)","v":""},null,null,{"$f":"IF('1. Order'!AV396=\"\",\"\",'1. Order'!AV396)","v":""},{"$f":"IF('1. Order'!AI396=\"\",\"\",'1. Order'!AI396)","v":""}]
[{"$f":"IF('1. Order'!B397=\"\",\"\",'1. Order'!B397)","v":""},{"$f":"IF('1. Order'!J397=\"\",\"\",'1. Order'!J397)","v":""},{"$f":"IF('1. Order'!K397=\"\",\"\",'1. Order'!K397)","v":""},{"$f":"IF('1. Order'!L397=\"\",\"\",'1. Order'!L397)","v":""},{"$f":"IF('1. Order'!N397=\"\",\"\",'1. Order'!N397)","v":""},null,null,{"$f":"IF('1. Order'!AV397=\"\",\"\",'1. Order'!AV397)","v":""},{"$f":"IF('1. Order'!AI397=\"\",\"\",'1. Order'!AI397)","v":""}]
[{"$f":"IF('1. Order'!B398=\"\",\"\",'1. Order'!B398)","v":""},{"$f":"IF('1. Order'!J398=\"\",\"\",'1. Order'!J398)","v":""},{"$f":"IF('1. Order'!K398=\"\",\"\",'1. Order'!K398)","v":""},{"$f":"IF('1. Order'!L398=\"\",\"\",'1. Order'!L398)","v":""},{"$f":"IF('1. Order'!N398=\"\",\"\",'1. Order'!N398)","v":""},null,null,{"$f":"IF('1. Order'!AV398=\"\",\"\",'1. Order'!AV398)","v":""},{"$f":"IF('1. Order'!AI398=\"\",\"\",'1. Order'!AI398)","v":""}]
[{"$f":"IF('1. Order'!B399=\"\",\"\",'1. Order'!B399)","v":""},{"$f":"IF('1. Order'!J399=\"\",\"\",'1. Order'!J399)","v":""},{"$f":"IF('1. Order'!K399=\"\",\"\",'1. Order'!K399)","v":""},{"$f":"IF('1. Order'!L399=\"\",\"\",'1. Order'!L399)","v":""},{"$f":"IF('1. Order'!N399=\"\",\"\",'1. Order'!N399)","v":""},null,null,{"$f":"IF('1. Order'!AV399=\"\",\"\",'1. Order'!AV399)","v":""},{"$f":"IF('1. Order'!AI399=\"\",\"\",'1. Order'!AI399)","v":""}]
[{"$f":"IF('1. Order'!B400=\"\",\"\",'1. Order'!B400)","v":""},{"$f":"IF('1. Order'!J400=\"\",\"\",'1. Order'!J400)","v":""},{"$f":"IF('1. Order'!K400=\"\",\"\",'1. Order'!K400)","v":""},{"$f":"IF('1. Order'!L400=\"\",\"\",'1. Order'!L400)","v":""},{"$f":"IF('1. Order'!N400=\"\",\"\",'1. Order'!N400)","v":""},null,null,{"$f":"IF('1. Order'!AV400=\"\",\"\",'1. Order'!AV400)","v":""},{"$f":"IF('1. Order'!AI400=\"\",\"\",'1. Order'!AI400)","v":""}]
[{"$f":"IF('1. Order'!B401=\"\",\"\",'1. Order'!B401)","v":""},{"$f":"IF('1. Order'!J401=\"\",\"\",'1. Order'!J401)","v":""},{"$f":"IF('1. Order'!K401=\"\",\"\",'1. Order'!K401)","v":""},{"$f":"IF('1. Order'!L401=\"\",\"\",'1. Order'!L401)","v":""},{"$f":"IF('1. Order'!N401=\"\",\"\",'1. Order'!N401)","v":""},null,null,{"$f":"IF('1. Order'!AV401=\"\",\"\",'1. Order'!AV401)","v":""},{"$f":"IF('1. Order'!AI401=\"\",\"\",'1. Order'!AI401)","v":""}]
[{"$f":"IF('1. Order'!B402=\"\",\"\",'1. Order'!B402)","v":""},{"$f":"IF('1. Order'!J402=\"\",\"\",'1. Order'!J402)","v":""},{"$f":"IF('1. Order'!K402=\"\",\"\",'1. Order'!K402)","v":""},{"$f":"IF('1. Order'!L402=\"\",\"\",'1. Order'!L402)","v":""},{"$f":"IF('1. Order'!N402=\"\",\"\",'1. Order'!N402)","v":""},null,null,{"$f":"IF('1. Order'!AV402=\"\",\"\",'1. Order'!AV402)","v":""},{"$f":"IF('1. Order'!AI402=\"\",\"\",'1. Order'!AI402)","v":""}]
[{"$f":"IF('1. Order'!B403=\"\",\"\",'1. Order'!B403)","v":""},{"$f":"IF('1. Order'!J403=\"\",\"\",'1. Order'!J403)","v":""},{"$f":"IF('1. Order'!K403=\"\",\"\",'1. Order'!K403)","v":""},{"$f":"IF('1. Order'!L403=\"\",\"\",'1. Order'!L403)","v":""},{"$f":"IF('1. Order'!N403=\"\",\"\",'1. Order'!N403)","v":""},null,null,{"$f":"IF('1. Order'!AV403=\"\",\"\",'1. Order'!AV403)","v":""},{"$f":"IF('1. Order'!AI403=\"\",\"\",'1. Order'!AI403)","v":""}]
[{"$f":"IF('1. Order'!B404=\"\",\"\",'1. Order'!B404)","v":""},{"$f":"IF('1. Order'!J404=\"\",\"\",'1. Order'!J404)","v":""},{"$f":"IF('1. Order'!K404=\"\",\"\",'1. Order'!K404)","v":""},{"$f":"IF('1. Order'!L404=\"\",\"\",'1. Order'!L404)","v":""},{"$f":"IF('1. Order'!N404=\"\",\"\",'1. Order'!N404)","v":""},null,null,{"$f":"IF('1. Order'!AV404=\"\",\"\",'1. Order'!AV404)","v":""},{"$f":"IF('1. Order'!AI404=\"\",\"\",'1. Order'!AI404)","v":""}]
[{"$f":"IF('1. Order'!B405=\"\",\"\",'1. Order'!B405)","v":""},{"$f":"IF('1. Order'!J405=\"\",\"\",'1. Order'!J405)","v":""},{"$f":"IF('1. Order'!K405=\"\",\"\",'1. Order'!K405)","v":""},{"$f":"IF('1. Order'!L405=\"\",\"\",'1. Order'!L405)","v":""},{"$f":"IF('1. Order'!N405=\"\",\"\",'1. Order'!N405)","v":""},null,null,{"$f":"IF('1. Order'!AV405=\"\",\"\",'1. Order'!AV405)","v":""},{"$f":"IF('1. Order'!AI405=\"\",\"\",'1. Order'!AI405)","v":""}]
[{"$f":"IF('1. Order'!B406=\"\",\"\",'1. Order'!B406)","v":""},{"$f":"IF('1. Order'!J406=\"\",\"\",'1. Order'!J406)","v":""},{"$f":"IF('1. Order'!K406=\"\",\"\",'1. Order'!K406)","v":""},{"$f":"IF('1. Order'!L406=\"\",\"\",'1. Order'!L406)","v":""},{"$f":"IF('1. Order'!N406=\"\",\"\",'1. Order'!N406)","v":""},null,null,{"$f":"IF('1. Order'!AV406=\"\",\"\",'1. Order'!AV406)","v":""},{"$f":"IF('1. Order'!AI406=\"\",\"\",'1. Order'!AI406)","v":""}]
[{"$f":"IF('1. Order'!B407=\"\",\"\",'1. Order'!B407)","v":""},{"$f":"IF('1. Order'!J407=\"\",\"\",'1. Order'!J407)","v":""},{"$f":"IF('1. Order'!K407=\"\",\"\",'1. Order'!K407)","v":""},{"$f":"IF('1. Order'!L407=\"\",\"\",'1. Order'!L407)","v":""},{"$f":"IF('1. Order'!N407=\"\",\"\",'1. Order'!N407)","v":""},null,null,{"$f":"IF('1. Order'!AV407=\"\",\"\",'1. Order'!AV407)","v":""},{"$f":"IF('1. Order'!AI407=\"\",\"\",'1. Order'!AI407)","v":""}]
[{"$f":"IF('1. Order'!B408=\"\",\"\",'1. Order'!B408)","v":""},{"$f":"IF('1. Order'!J408=\"\",\"\",'1. Order'!J408)","v":""},{"$f":"IF('1. Order'!K408=\"\",\"\",'1. Order'!K408)","v":""},{"$f":"IF('1. Order'!L408=\"\",\"\",'1. Order'!L408)","v":""},{"$f":"IF('1. Order'!N408=\"\",\"\",'1. Order'!N408)","v":""},null,null,{"$f":"IF('1. Order'!AV408=\"\",\"\",'1. Order'!AV408)","v":""},{"$f":"IF('1. Order'!AI408=\"\",\"\",'1. Order'!AI408)","v":""}]
[{"$f":"IF('1. Order'!B409=\"\",\"\",'1. Order'!B409)","v":""},{"$f":"IF('1. Order'!J409=\"\",\"\",'1. Order'!J409)","v":""},{"$f":"IF('1. Order'!K409=\"\",\"\",'1. Order'!K409)","v":""},{"$f":"IF('1. Order'!L409=\"\",\"\",'1. Order'!L409)","v":""},{"$f":"IF('1. Order'!N409=\"\",\"\",'1. Order'!N409)","v":""},null,null,{"$f":"IF('1. Order'!AV409=\"\",\"\",'1. Order'!AV409)","v":""},{"$f":"IF('1. Order'!AI409=\"\",\"\",'1. Order'!AI409)","v":""}]
[{"$f":"IF('1. Order'!B410=\"\",\"\",'1. Order'!B410)","v":""},{"$f":"IF('1. Order'!J410=\"\",\"\",'1. Order'!J410)","v":""},{"$f":"IF('1. Order'!K410=\"\",\"\",'1. Order'!K410)","v":""},{"$f":"IF('1. Order'!L410=\"\",\"\",'1. Order'!L410)","v":""},{"$f":"IF('1. Order'!N410=\"\",\"\",'1. Order'!N410)","v":""},null,null,{"$f":"IF('1. Order'!AV410=\"\",\"\",'1. Order'!AV410)","v":""},{"$f":"IF('1. Order'!AI410=\"\",\"\",'1. Order'!AI410)","v":""}]
[{"$f":"IF('1. Order'!B411=\"\",\"\",'1. Order'!B411)","v":""},{"$f":"IF('1. Order'!J411=\"\",\"\",'1. Order'!J411)","v":""},{"$f":"IF('1. Order'!K411=\"\",\"\",'1. Order'!K411)","v":""},{"$f":"IF('1. Order'!L411=\"\",\"\",'1. Order'!L411)","v":""},{"$f":"IF('1. Order'!N411=\"\",\"\",'1. Order'!N411)","v":""},null,null,{"$f":"IF('1. Order'!AV411=\"\",\"\",'1. Order'!AV411)","v":""},{"$f":"IF('1. Order'!AI411=\"\",\"\",'1. Order'!AI411)","v":""}]
[{"$f":"IF('1. Order'!B412=\"\",\"\",'1. Order'!B412)","v":""},{"$f":"IF('1. Order'!J412=\"\",\"\",'1. Order'!J412)","v":""},{"$f":"IF('1. Order'!K412=\"\",\"\",'1. Order'!K412)","v":""},{"$f":"IF('1. Order'!L412=\"\",\"\",'1. Order'!L412)","v":""},{"$f":"IF('1. Order'!N412=\"\",\"\",'1. Order'!N412)","v":""},null,null,{"$f":"IF('1. Order'!AV412=\"\",\"\",'1. Order'!AV412)","v":""},{"$f":"IF('1. Order'!AI412=\"\",\"\",'1. Order'!AI412)","v":""}]
[{"$f":"IF('1. Order'!B413=\"\",\"\",'1. Order'!B413)","v":""},{"$f":"IF('1. Order'!J413=\"\",\"\",'1. Order'!J413)","v":""},{"$f":"IF('1. Order'!K413=\"\",\"\",'1. Order'!K413)","v":""},{"$f":"IF('1. Order'!L413=\"\",\"\",'1. Order'!L413)","v":""},{"$f":"IF('1. Order'!N413=\"\",\"\",'1. Order'!N413)","v":""},null,null,{"$f":"IF('1. Order'!AV413=\"\",\"\",'1. Order'!AV413)","v":""},{"$f":"IF('1. Order'!AI413=\"\",\"\",'1. Order'!AI413)","v":""}]
[{"$f":"IF('1. Order'!B414=\"\",\"\",'1. Order'!B414)","v":""},{"$f":"IF('1. Order'!J414=\"\",\"\",'1. Order'!J414)","v":""},{"$f":"IF('1. Order'!K414=\"\",\"\",'1. Order'!K414)","v":""},{"$f":"IF('1. Order'!L414=\"\",\"\",'1. Order'!L414)","v":""},{"$f":"IF('1. Order'!N414=\"\",\"\",'1. Order'!N414)","v":""},null,null,{"$f":"IF('1. Order'!AV414=\"\",\"\",'1. Order'!AV414)","v":""},{"$f":"IF('1. Order'!AI414=\"\",\"\",'1. Order'!AI414)","v":""}]
[{"$f":"IF('1. Order'!B415=\"\",\"\",'1. Order'!B415)","v":""},{"$f":"IF('1. Order'!J415=\"\",\"\",'1. Order'!J415)","v":""},{"$f":"IF('1. Order'!K415=\"\",\"\",'1. Order'!K415)","v":""},{"$f":"IF('1. Order'!L415=\"\",\"\",'1. Order'!L415)","v":""},{"$f":"IF('1. Order'!N415=\"\",\"\",'1. Order'!N415)","v":""},null,null,{"$f":"IF('1. Order'!AV415=\"\",\"\",'1. Order'!AV415)","v":""},{"$f":"IF('1. Order'!AI415=\"\",\"\",'1. Order'!AI415)","v":""}]
[{"$f":"IF('1. Order'!B416=\"\",\"\",'1. Order'!B416)","v":""},{"$f":"IF('1. Order'!J416=\"\",\"\",'1. Order'!J416)","v":""},{"$f":"IF('1. Order'!K416=\"\",\"\",'1. Order'!K416)","v":""},{"$f":"IF('1. Order'!L416=\"\",\"\",'1. Order'!L416)","v":""},{"$f":"IF('1. Order'!N416=\"\",\"\",'1. Order'!N416)","v":""},null,null,{"$f":"IF('1. Order'!AV416=\"\",\"\",'1. Order'!AV416)","v":""},{"$f":"IF('1. Order'!AI416=\"\",\"\",'1. Order'!AI416)","v":""}]
[{"$f":"IF('1. Order'!B417=\"\",\"\",'1. Order'!B417)","v":""},{"$f":"IF('1. Order'!J417=\"\",\"\",'1. Order'!J417)","v":""},{"$f":"IF('1. Order'!K417=\"\",\"\",'1. Order'!K417)","v":""},{"$f":"IF('1. Order'!L417=\"\",\"\",'1. Order'!L417)","v":""},{"$f":"IF('1. Order'!N417=\"\",\"\",'1. Order'!N417)","v":""},null,null,{"$f":"IF('1. Order'!AV417=\"\",\"\",'1. Order'!AV417)","v":""},{"$f":"IF('1. Order'!AI417=\"\",\"\",'1. Order'!AI417)","v":""}]
[{"$f":"IF('1. Order'!B418=\"\",\"\",'1. Order'!B418)","v":""},{"$f":"IF('1. Order'!J418=\"\",\"\",'1. Order'!J418)","v":""},{"$f":"IF('1. Order'!K418=\"\",\"\",'1. Order'!K418)","v":""},{"$f":"IF('1. Order'!L418=\"\",\"\",'1. Order'!L418)","v":""},{"$f":"IF('1. Order'!N418=\"\",\"\",'1. Order'!N418)","v":""},null,null,{"$f":"IF('1. Order'!AV418=\"\",\"\",'1. Order'!AV418)","v":""},{"$f":"IF('1. Order'!AI418=\"\",\"\",'1. Order'!AI418)","v":""}]
[{"$f":"IF('1. Order'!B419=\"\",\"\",'1. Order'!B419)","v":""},{"$f":"IF('1. Order'!J419=\"\",\"\",'1. Order'!J419)","v":""},{"$f":"IF('1. Order'!K419=\"\",\"\",'1. Order'!K419)","v":""},{"$f":"IF('1. Order'!L419=\"\",\"\",'1. Order'!L419)","v":""},{"$f":"IF('1. Order'!N419=\"\",\"\",'1. Order'!N419)","v":""},null,null,{"$f":"IF('1. Order'!AV419=\"\",\"\",'1. Order'!AV419)","v":""},{"$f":"IF('1. Order'!AI419=\"\",\"\",'1. Order'!AI419)","v":""}]
[{"$f":"IF('1. Order'!B420=\"\",\"\",'1. Order'!B420)","v":""},{"$f":"IF('1. Order'!J420=\"\",\"\",'1. Order'!J420)","v":""},{"$f":"IF('1. Order'!K420=\"\",\"\",'1. Order'!K420)","v":""},{"$f":"IF('1. Order'!L420=\"\",\"\",'1. Order'!L420)","v":""},{"$f":"IF('1. Order'!N420=\"\",\"\",'1. Order'!N420)","v":""},null,null,{"$f":"IF('1. Order'!AV420=\"\",\"\",'1. Order'!AV420)","v":""},{"$f":"IF('1. Order'!AI420=\"\",\"\",'1. Order'!AI420)","v":""}]
[{"$f":"IF('1. Order'!B421=\"\",\"\",'1. Order'!B421)","v":""},{"$f":"IF('1. Order'!J421=\"\",\"\",'1. Order'!J421)","v":""},{"$f":"IF('1. Order'!K421=\"\",\"\",'1. Order'!K421)","v":""},{"$f":"IF('1. Order'!L421=\"\",\"\",'1. Order'!L421)","v":""},{"$f":"IF('1. Order'!N421=\"\",\"\",'1. Order'!N421)","v":""},null,null,{"$f":"IF('1. Order'!AV421=\"\",\"\",'1. Order'!AV421)","v":""},{"$f":"IF('1. Order'!AI421=\"\",\"\",'1. Order'!AI421)","v":""}]
[{"$f":"IF('1. Order'!B422=\"\",\"\",'1. Order'!B422)","v":""},{"$f":"IF('1. Order'!J422=\"\",\"\",'1. Order'!J422)","v":""},{"$f":"IF('1. Order'!K422=\"\",\"\",'1. Order'!K422)","v":""},{"$f":"IF('1. Order'!L422=\"\",\"\",'1. Order'!L422)","v":""},{"$f":"IF('1. Order'!N422=\"\",\"\",'1. Order'!N422)","v":""},null,null,{"$f":"IF('1. Order'!AV422=\"\",\"\",'1. Order'!AV422)","v":""},{"$f":"IF('1. Order'!AI422=\"\",\"\",'1. Order'!AI422)","v":""}]
[{"$f":"IF('1. Order'!B423=\"\",\"\",'1. Order'!B423)","v":""},{"$f":"IF('1. Order'!J423=\"\",\"\",'1. Order'!J423)","v":""},{"$f":"IF('1. Order'!K423=\"\",\"\",'1. Order'!K423)","v":""},{"$f":"IF('1. Order'!L423=\"\",\"\",'1. Order'!L423)","v":""},{"$f":"IF('1. Order'!N423=\"\",\"\",'1. Order'!N423)","v":""},null,null,{"$f":"IF('1. Order'!AV423=\"\",\"\",'1. Order'!AV423)","v":""},{"$f":"IF('1. Order'!AI423=\"\",\"\",'1. Order'!AI423)","v":""}]
[{"$f":"IF('1. Order'!B424=\"\",\"\",'1. Order'!B424)","v":""},{"$f":"IF('1. Order'!J424=\"\",\"\",'1. Order'!J424)","v":""},{"$f":"IF('1. Order'!K424=\"\",\"\",'1. Order'!K424)","v":""},{"$f":"IF('1. Order'!L424=\"\",\"\",'1. Order'!L424)","v":""},{"$f":"IF('1. Order'!N424=\"\",\"\",'1. Order'!N424)","v":""},null,null,{"$f":"IF('1. Order'!AV424=\"\",\"\",'1. Order'!AV424)","v":""},{"$f":"IF('1. Order'!AI424=\"\",\"\",'1. Order'!AI424)","v":""}]
[{"$f":"IF('1. Order'!B425=\"\",\"\",'1. Order'!B425)","v":""},{"$f":"IF('1. Order'!J425=\"\",\"\",'1. Order'!J425)","v":""},{"$f":"IF('1. Order'!K425=\"\",\"\",'1. Order'!K425)","v":""},{"$f":"IF('1. Order'!L425=\"\",\"\",'1. Order'!L425)","v":""},{"$f":"IF('1. Order'!N425=\"\",\"\",'1. Order'!N425)","v":""},null,null,{"$f":"IF('1. Order'!AV425=\"\",\"\",'1. Order'!AV425)","v":""},{"$f":"IF('1. Order'!AI425=\"\",\"\",'1. Order'!AI425)","v":""}]
[{"$f":"IF('1. Order'!B426=\"\",\"\",'1. Order'!B426)","v":""},{"$f":"IF('1. Order'!J426=\"\",\"\",'1. Order'!J426)","v":""},{"$f":"IF('1. Order'!K426=\"\",\"\",'1. Order'!K426)","v":""},{"$f":"IF('1. Order'!L426=\"\",\"\",'1. Order'!L426)","v":""},{"$f":"IF('1. Order'!N426=\"\",\"\",'1. Order'!N426)","v":""},null,null,{"$f":"IF('1. Order'!AV426=\"\",\"\",'1. Order'!AV426)","v":""},{"$f":"IF('1. Order'!AI426=\"\",\"\",'1. Order'!AI426)","v":""}]
[{"$f":"IF('1. Order'!B427=\"\",\"\",'1. Order'!B427)","v":""},{"$f":"IF('1. Order'!J427=\"\",\"\",'1. Order'!J427)","v":""},{"$f":"IF('1. Order'!K427=\"\",\"\",'1. Order'!K427)","v":""},{"$f":"IF('1. Order'!L427=\"\",\"\",'1. Order'!L427)","v":""},{"$f":"IF('1. Order'!N427=\"\",\"\",'1. Order'!N427)","v":""},null,null,{"$f":"IF('1. Order'!AV427=\"\",\"\",'1. Order'!AV427)","v":""},{"$f":"IF('1. Order'!AI427=\"\",\"\",'1. Order'!AI427)","v":""}]
[{"$f":"IF('1. Order'!B428=\"\",\"\",'1. Order'!B428)","v":""},{"$f":"IF('1. Order'!J428=\"\",\"\",'1. Order'!J428)","v":""},{"$f":"IF('1. Order'!K428=\"\",\"\",'1. Order'!K428)","v":""},{"$f":"IF('1. Order'!L428=\"\",\"\",'1. Order'!L428)","v":""},{"$f":"IF('1. Order'!N428=\"\",\"\",'1. Order'!N428)","v":""},null,null,{"$f":"IF('1. Order'!AV428=\"\",\"\",'1. Order'!AV428)","v":""},{"$f":"IF('1. Order'!AI428=\"\",\"\",'1. Order'!AI428)","v":""}]
[{"$f":"IF('1. Order'!B429=\"\",\"\",'1. Order'!B429)","v":""},{"$f":"IF('1. Order'!J429=\"\",\"\",'1. Order'!J429)","v":""},{"$f":"IF('1. Order'!K429=\"\",\"\",'1. Order'!K429)","v":""},{"$f":"IF('1. Order'!L429=\"\",\"\",'1. Order'!L429)","v":""},{"$f":"IF('1. Order'!N429=\"\",\"\",'1. Order'!N429)","v":""},null,null,{"$f":"IF('1. Order'!AV429=\"\",\"\",'1. Order'!AV429)","v":""},{"$f":"IF('1. Order'!AI429=\"\",\"\",'1. Order'!AI429)","v":""}]
[{"$f":"IF('1. Order'!B430=\"\",\"\",'1. Order'!B430)","v":""},{"$f":"IF('1. Order'!J430=\"\",\"\",'1. Order'!J430)","v":""},{"$f":"IF('1. Order'!K430=\"\",\"\",'1. Order'!K430)","v":""},{"$f":"IF('1. Order'!L430=\"\",\"\",'1. Order'!L430)","v":""},{"$f":"IF('1. Order'!N430=\"\",\"\",'1. Order'!N430)","v":""},null,null,{"$f":"IF('1. Order'!AV430=\"\",\"\",'1. Order'!AV430)","v":""},{"$f":"IF('1. Order'!AI430=\"\",\"\",'1. Order'!AI430)","v":""}]
[{"$f":"IF('1. Order'!B431=\"\",\"\",'1. Order'!B431)","v":""},{"$f":"IF('1. Order'!J431=\"\",\"\",'1. Order'!J431)","v":""},{"$f":"IF('1. Order'!K431=\"\",\"\",'1. Order'!K431)","v":""},{"$f":"IF('1. Order'!L431=\"\",\"\",'1. Order'!L431)","v":""},{"$f":"IF('1. Order'!N431=\"\",\"\",'1. Order'!N431)","v":""},null,null,{"$f":"IF('1. Order'!AV431=\"\",\"\",'1. Order'!AV431)","v":""},{"$f":"IF('1. Order'!AI431=\"\",\"\",'1. Order'!AI431)","v":""}]
[{"$f":"IF('1. Order'!B432=\"\",\"\",'1. Order'!B432)","v":""},{"$f":"IF('1. Order'!J432=\"\",\"\",'1. Order'!J432)","v":""},{"$f":"IF('1. Order'!K432=\"\",\"\",'1. Order'!K432)","v":""},{"$f":"IF('1. Order'!L432=\"\",\"\",'1. Order'!L432)","v":""},{"$f":"IF('1. Order'!N432=\"\",\"\",'1. Order'!N432)","v":""},null,null,{"$f":"IF('1. Order'!AV432=\"\",\"\",'1. Order'!AV432)","v":""},{"$f":"IF('1. Order'!AI432=\"\",\"\",'1. Order'!AI432)","v":""}]
[{"$f":"IF('1. Order'!B433=\"\",\"\",'1. Order'!B433)","v":""},{"$f":"IF('1. Order'!J433=\"\",\"\",'1. Order'!J433)","v":""},{"$f":"IF('1. Order'!K433=\"\",\"\",'1. Order'!K433)","v":""},{"$f":"IF('1. Order'!L433=\"\",\"\",'1. Order'!L433)","v":""},{"$f":"IF('1. Order'!N433=\"\",\"\",'1. Order'!N433)","v":""},null,null,{"$f":"IF('1. Order'!AV433=\"\",\"\",'1. Order'!AV433)","v":""},{"$f":"IF('1. Order'!AI433=\"\",\"\",'1. Order'!AI433)","v":""}]
[{"$f":"IF('1. Order'!B434=\"\",\"\",'1. Order'!B434)","v":""},{"$f":"IF('1. Order'!J434=\"\",\"\",'1. Order'!J434)","v":""},{"$f":"IF('1. Order'!K434=\"\",\"\",'1. Order'!K434)","v":""},{"$f":"IF('1. Order'!L434=\"\",\"\",'1. Order'!L434)","v":""},{"$f":"IF('1. Order'!N434=\"\",\"\",'1. Order'!N434)","v":""},null,null,{"$f":"IF('1. Order'!AV434=\"\",\"\",'1. Order'!AV434)","v":""},{"$f":"IF('1. Order'!AI434=\"\",\"\",'1. Order'!AI434)","v":""}]
[{"$f":"IF('1. Order'!B435=\"\",\"\",'1. Order'!B435)","v":""},{"$f":"IF('1. Order'!J435=\"\",\"\",'1. Order'!J435)","v":""},{"$f":"IF('1. Order'!K435=\"\",\"\",'1. Order'!K435)","v":""},{"$f":"IF('1. Order'!L435=\"\",\"\",'1. Order'!L435)","v":""},{"$f":"IF('1. Order'!N435=\"\",\"\",'1. Order'!N435)","v":""},null,null,{"$f":"IF('1. Order'!AV435=\"\",\"\",'1. Order'!AV435)","v":""},{"$f":"IF('1. Order'!AI435=\"\",\"\",'1. Order'!AI435)","v":""}]
[{"$f":"IF('1. Order'!B436=\"\",\"\",'1. Order'!B436)","v":""},{"$f":"IF('1. Order'!J436=\"\",\"\",'1. Order'!J436)","v":""},{"$f":"IF('1. Order'!K436=\"\",\"\",'1. Order'!K436)","v":""},{"$f":"IF('1. Order'!L436=\"\",\"\",'1. Order'!L436)","v":""},{"$f":"IF('1. Order'!N436=\"\",\"\",'1. Order'!N436)","v":""},null,null,{"$f":"IF('1. Order'!AV436=\"\",\"\",'1. Order'!AV436)","v":""},{"$f":"IF('1. Order'!AI436=\"\",\"\",'1. Order'!AI436)","v":""}]
[{"$f":"IF('1. Order'!B437=\"\",\"\",'1. Order'!B437)","v":""},{"$f":"IF('1. Order'!J437=\"\",\"\",'1. Order'!J437)","v":""},{"$f":"IF('1. Order'!K437=\"\",\"\",'1. Order'!K437)","v":""},{"$f":"IF('1. Order'!L437=\"\",\"\",'1. Order'!L437)","v":""},{"$f":"IF('1. Order'!N437=\"\",\"\",'1. Order'!N437)","v":""},null,null,{"$f":"IF('1. Order'!AV437=\"\",\"\",'1. Order'!AV437)","v":""},{"$f":"IF('1. Order'!AI437=\"\",\"\",'1. Order'!AI437)","v":""}]
[{"$f":"IF('1. Order'!B438=\"\",\"\",'1. Order'!B438)","v":""},{"$f":"IF('1. Order'!J438=\"\",\"\",'1. Order'!J438)","v":""},{"$f":"IF('1. Order'!K438=\"\",\"\",'1. Order'!K438)","v":""},{"$f":"IF('1. Order'!L438=\"\",\"\",'1. Order'!L438)","v":""},{"$f":"IF('1. Order'!N438=\"\",\"\",'1. Order'!N438)","v":""},null,null,{"$f":"IF('1. Order'!AV438=\"\",\"\",'1. Order'!AV438)","v":""},{"$f":"IF('1. Order'!AI438=\"\",\"\",'1. Order'!AI438)","v":""}]
[{"$f":"IF('1. Order'!B439=\"\",\"\",'1. Order'!B439)","v":""},{"$f":"IF('1. Order'!J439=\"\",\"\",'1. Order'!J439)","v":""},{"$f":"IF('1. Order'!K439=\"\",\"\",'1. Order'!K439)","v":""},{"$f":"IF('1. Order'!L439=\"\",\"\",'1. Order'!L439)","v":""},{"$f":"IF('1. Order'!N439=\"\",\"\",'1. Order'!N439)","v":""},null,null,{"$f":"IF('1. Order'!AV439=\"\",\"\",'1. Order'!AV439)","v":""},{"$f":"IF('1. Order'!AI439=\"\",\"\",'1. Order'!AI439)","v":""}]
[{"$f":"IF('1. Order'!B440=\"\",\"\",'1. Order'!B440)","v":""},{"$f":"IF('1. Order'!J440=\"\",\"\",'1. Order'!J440)","v":""},{"$f":"IF('1. Order'!K440=\"\",\"\",'1. Order'!K440)","v":""},{"$f":"IF('1. Order'!L440=\"\",\"\",'1. Order'!L440)","v":""},{"$f":"IF('1. Order'!N440=\"\",\"\",'1. Order'!N440)","v":""},null,null,{"$f":"IF('1. Order'!AV440=\"\",\"\",'1. Order'!AV440)","v":""},{"$f":"IF('1. Order'!AI440=\"\",\"\",'1. Order'!AI440)","v":""}]
[{"$f":"IF('1. Order'!B441=\"\",\"\",'1. Order'!B441)","v":""},{"$f":"IF('1. Order'!J441=\"\",\"\",'1. Order'!J441)","v":""},{"$f":"IF('1. Order'!K441=\"\",\"\",'1. Order'!K441)","v":""},{"$f":"IF('1. Order'!L441=\"\",\"\",'1. Order'!L441)","v":""},{"$f":"IF('1. Order'!N441=\"\",\"\",'1. Order'!N441)","v":""},null,null,{"$f":"IF('1. Order'!AV441=\"\",\"\",'1. Order'!AV441)","v":""},{"$f":"IF('1. Order'!AI441=\"\",\"\",'1. Order'!AI441)","v":""}]
[{"$f":"IF('1. Order'!B442=\"\",\"\",'1. Order'!B442)","v":""},{"$f":"IF('1. Order'!J442=\"\",\"\",'1. Order'!J442)","v":""},{"$f":"IF('1. Order'!K442=\"\",\"\",'1. Order'!K442)","v":""},{"$f":"IF('1. Order'!L442=\"\",\"\",'1. Order'!L442)","v":""},{"$f":"IF('1. Order'!N442=\"\",\"\",'1. Order'!N442)","v":""},null,null,{"$f":"IF('1. Order'!AV442=\"\",\"\",'1. Order'!AV442)","v":""},{"$f":"IF('1. Order'!AI442=\"\",\"\",'1. Order'!AI442)","v":""}]
[{"$f":"IF('1. Order'!B443=\"\",\"\",'1. Order'!B443)","v":""},{"$f":"IF('1. Order'!J443=\"\",\"\",'1. Order'!J443)","v":""},{"$f":"IF('1. Order'!K443=\"\",\"\",'1. Order'!K443)","v":""},{"$f":"IF('1. Order'!L443=\"\",\"\",'1. Order'!L443)","v":""},{"$f":"IF('1. Order'!N443=\"\",\"\",'1. Order'!N443)","v":""},null,null,{"$f":"IF('1. Order'!AV443=\"\",\"\",'1. Order'!AV443)","v":""},{"$f":"IF('1. Order'!AI443=\"\",\"\",'1. Order'!AI443)","v":""}]
[{"$f":"IF('1. Order'!B444=\"\",\"\",'1. Order'!B444)","v":""},{"$f":"IF('1. Order'!J444=\"\",\"\",'1. Order'!J444)","v":""},{"$f":"IF('1. Order'!K444=\"\",\"\",'1. Order'!K444)","v":""},{"$f":"IF('1. Order'!L444=\"\",\"\",'1. Order'!L444)","v":""},{"$f":"IF('1. Order'!N444=\"\",\"\",'1. Order'!N444)","v":""},null,null,{"$f":"IF('1. Order'!AV444=\"\",\"\",'1. Order'!AV444)","v":""},{"$f":"IF('1. Order'!AI444=\"\",\"\",'1. Order'!AI444)","v":""}]
[{"$f":"IF('1. Order'!B445=\"\",\"\",'1. Order'!B445)","v":""},{"$f":"IF('1. Order'!J445=\"\",\"\",'1. Order'!J445)","v":""},{"$f":"IF('1. Order'!K445=\"\",\"\",'1. Order'!K445)","v":""},{"$f":"IF('1. Order'!L445=\"\",\"\",'1. Order'!L445)","v":""},{"$f":"IF('1. Order'!N445=\"\",\"\",'1. Order'!N445)","v":""},null,null,{"$f":"IF('1. Order'!AV445=\"\",\"\",'1. Order'!AV445)","v":""},{"$f":"IF('1. Order'!AI445=\"\",\"\",'1. Order'!AI445)","v":""}]
[{"$f":"IF('1. Order'!B446=\"\",\"\",'1. Order'!B446)","v":""},{"$f":"IF('1. Order'!J446=\"\",\"\",'1. Order'!J446)","v":""},{"$f":"IF('1. Order'!K446=\"\",\"\",'1. Order'!K446)","v":""},{"$f":"IF('1. Order'!L446=\"\",\"\",'1. Order'!L446)","v":""},{"$f":"IF('1. Order'!N446=\"\",\"\",'1. Order'!N446)","v":""},null,null,{"$f":"IF('1. Order'!AV446=\"\",\"\",'1. Order'!AV446)","v":""},{"$f":"IF('1. Order'!AI446=\"\",\"\",'1. Order'!AI446)","v":""}]
[{"$f":"IF('1. Order'!B447=\"\",\"\",'1. Order'!B447)","v":""},{"$f":"IF('1. Order'!J447=\"\",\"\",'1. Order'!J447)","v":""},{"$f":"IF('1. Order'!K447=\"\",\"\",'1. Order'!K447)","v":""},{"$f":"IF('1. Order'!L447=\"\",\"\",'1. Order'!L447)","v":""},{"$f":"IF('1. Order'!N447=\"\",\"\",'1. Order'!N447)","v":""},null,null,{"$f":"IF('1. Order'!AV447=\"\",\"\",'1. Order'!AV447)","v":""},{"$f":"IF('1. Order'!AI447=\"\",\"\",'1. Order'!AI447)","v":""}]
[{"$f":"IF('1. Order'!B448=\"\",\"\",'1. Order'!B448)","v":""},{"$f":"IF('1. Order'!J448=\"\",\"\",'1. Order'!J448)","v":""},{"$f":"IF('1. Order'!K448=\"\",\"\",'1. Order'!K448)","v":""},{"$f":"IF('1. Order'!L448=\"\",\"\",'1. Order'!L448)","v":""},{"$f":"IF('1. Order'!N448=\"\",\"\",'1. Order'!N448)","v":""},null,null,{"$f":"IF('1. Order'!AV448=\"\",\"\",'1. Order'!AV448)","v":""},{"$f":"IF('1. Order'!AI448=\"\",\"\",'1. Order'!AI448)","v":""}]
[{"$f":"IF('1. Order'!B449=\"\",\"\",'1. Order'!B449)","v":""},{"$f":"IF('1. Order'!J449=\"\",\"\",'1. Order'!J449)","v":""},{"$f":"IF('1. Order'!K449=\"\",\"\",'1. Order'!K449)","v":""},{"$f":"IF('1. Order'!L449=\"\",\"\",'1. Order'!L449)","v":""},{"$f":"IF('1. Order'!N449=\"\",\"\",'1. Order'!N449)","v":""},null,null,{"$f":"IF('1. Order'!AV449=\"\",\"\",'1. Order'!AV449)","v":""},{"$f":"IF('1. Order'!AI449=\"\",\"\",'1. Order'!AI449)","v":""}]
[{"$f":"IF('1. Order'!B450=\"\",\"\",'1. Order'!B450)","v":""},{"$f":"IF('1. Order'!J450=\"\",\"\",'1. Order'!J450)","v":""},{"$f":"IF('1. Order'!K450=\"\",\"\",'1. Order'!K450)","v":""},{"$f":"IF('1. Order'!L450=\"\",\"\",'1. Order'!L450)","v":""},{"$f":"IF('1. Order'!N450=\"\",\"\",'1. Order'!N450)","v":""},null,null,{"$f":"IF('1. Order'!AV450=\"\",\"\",'1. Order'!AV450)","v":""},{"$f":"IF('1. Order'!AI450=\"\",\"\",'1. Order'!AI450)","v":""}]
[{"$f":"IF('1. Order'!B451=\"\",\"\",'1. Order'!B451)","v":""},{"$f":"IF('1. Order'!J451=\"\",\"\",'1. Order'!J451)","v":""},{"$f":"IF('1. Order'!K451=\"\",\"\",'1. Order'!K451)","v":""},{"$f":"IF('1. Order'!L451=\"\",\"\",'1. Order'!L451)","v":""},{"$f":"IF('1. Order'!N451=\"\",\"\",'1. Order'!N451)","v":""},null,null,{"$f":"IF('1. Order'!AV451=\"\",\"\",'1. Order'!AV451)","v":""},{"$f":"IF('1. Order'!AI451=\"\",\"\",'1. Order'!AI451)","v":""}]
[{"$f":"IF('1. Order'!B452=\"\",\"\",'1. Order'!B452)","v":""},{"$f":"IF('1. Order'!J452=\"\",\"\",'1. Order'!J452)","v":""},{"$f":"IF('1. Order'!K452=\"\",\"\",'1. Order'!K452)","v":""},{"$f":"IF('1. Order'!L452=\"\",\"\",'1. Order'!L452)","v":""},{"$f":"IF('1. Order'!N452=\"\",\"\",'1. Order'!N452)","v":""},null,null,{"$f":"IF('1. Order'!AV452=\"\",\"\",'1. Order'!AV452)","v":""},{"$f":"IF('1. Order'!AI452=\"\",\"\",'1. Order'!AI452)","v":""}]
[{"$f":"IF('1. Order'!B453=\"\",\"\",'1. Order'!B453)","v":""},{"$f":"IF('1. Order'!J453=\"\",\"\",'1. Order'!J453)","v":""},{"$f":"IF('1. Order'!K453=\"\",\"\",'1. Order'!K453)","v":""},{"$f":"IF('1. Order'!L453=\"\",\"\",'1. Order'!L453)","v":""},{"$f":"IF('1. Order'!N453=\"\",\"\",'1. Order'!N453)","v":""},null,null,{"$f":"IF('1. Order'!AV453=\"\",\"\",'1. Order'!AV453)","v":""},{"$f":"IF('1. Order'!AI453=\"\",\"\",'1. Order'!AI453)","v":""}]
[{"$f":"IF('1. Order'!B454=\"\",\"\",'1. Order'!B454)","v":""},{"$f":"IF('1. Order'!J454=\"\",\"\",'1. Order'!J454)","v":""},{"$f":"IF('1. Order'!K454=\"\",\"\",'1. Order'!K454)","v":""},{"$f":"IF('1. Order'!L454=\"\",\"\",'1. Order'!L454)","v":""},{"$f":"IF('1. Order'!N454=\"\",\"\",'1. Order'!N454)","v":""},null,null,{"$f":"IF('1. Order'!AV454=\"\",\"\",'1. Order'!AV454)","v":""},{"$f":"IF('1. Order'!AI454=\"\",\"\",'1. Order'!AI454)","v":""}]
[{"$f":"IF('1. Order'!B455=\"\",\"\",'1. Order'!B455)","v":""},{"$f":"IF('1. Order'!J455=\"\",\"\",'1. Order'!J455)","v":""},{"$f":"IF('1. Order'!K455=\"\",\"\",'1. Order'!K455)","v":""},{"$f":"IF('1. Order'!L455=\"\",\"\",'1. Order'!L455)","v":""},{"$f":"IF('1. Order'!N455=\"\",\"\",'1. Order'!N455)","v":""},null,null,{"$f":"IF('1. Order'!AV455=\"\",\"\",'1. Order'!AV455)","v":""},{"$f":"IF('1. Order'!AI455=\"\",\"\",'1. Order'!AI455)","v":""}]
[{"$f":"IF('1. Order'!B456=\"\",\"\",'1. Order'!B456)","v":""},{"$f":"IF('1. Order'!J456=\"\",\"\",'1. Order'!J456)","v":""},{"$f":"IF('1. Order'!K456=\"\",\"\",'1. Order'!K456)","v":""},{"$f":"IF('1. Order'!L456=\"\",\"\",'1. Order'!L456)","v":""},{"$f":"IF('1. Order'!N456=\"\",\"\",'1. Order'!N456)","v":""},null,null,{"$f":"IF('1. Order'!AV456=\"\",\"\",'1. Order'!AV456)","v":""},{"$f":"IF('1. Order'!AI456=\"\",\"\",'1. Order'!AI456)","v":""}]
[{"$f":"IF('1. Order'!B457=\"\",\"\",'1. Order'!B457)","v":""},{"$f":"IF('1. Order'!J457=\"\",\"\",'1. Order'!J457)","v":""},{"$f":"IF('1. Order'!K457=\"\",\"\",'1. Order'!K457)","v":""},{"$f":"IF('1. Order'!L457=\"\",\"\",'1. Order'!L457)","v":""},{"$f":"IF('1. Order'!N457=\"\",\"\",'1. Order'!N457)","v":""},null,null,{"$f":"IF('1. Order'!AV457=\"\",\"\",'1. Order'!AV457)","v":""},{"$f":"IF('1. Order'!AI457=\"\",\"\",'1. Order'!AI457)","v":""}]
[{"$f":"IF('1. Order'!B458=\"\",\"\",'1. Order'!B458)","v":""},{"$f":"IF('1. Order'!J458=\"\",\"\",'1. Order'!J458)","v":""},{"$f":"IF('1. Order'!K458=\"\",\"\",'1. Order'!K458)","v":""},{"$f":"IF('1. Order'!L458=\"\",\"\",'1. Order'!L458)","v":""},{"$f":"IF('1. Order'!N458=\"\",\"\",'1. Order'!N458)","v":""},null,null,{"$f":"IF('1. Order'!AV458=\"\",\"\",'1. Order'!AV458)","v":""},{"$f":"IF('1. Order'!AI458=\"\",\"\",'1. Order'!AI458)","v":""}]
[{"$f":"IF('1. Order'!B459=\"\",\"\",'1. Order'!B459)","v":""},{"$f":"IF('1. Order'!J459=\"\",\"\",'1. Order'!J459)","v":""},{"$f":"IF('1. Order'!K459=\"\",\"\",'1. Order'!K459)","v":""},{"$f":"IF('1. Order'!L459=\"\",\"\",'1. Order'!L459)","v":""},{"$f":"IF('1. Order'!N459=\"\",\"\",'1. Order'!N459)","v":""},null,null,{"$f":"IF('1. Order'!AV459=\"\",\"\",'1. Order'!AV459)","v":""},{"$f":"IF('1. Order'!AI459=\"\",\"\",'1. Order'!AI459)","v":""}]
[{"$f":"IF('1. Order'!B460=\"\",\"\",'1. Order'!B460)","v":""},{"$f":"IF('1. Order'!J460=\"\",\"\",'1. Order'!J460)","v":""},{"$f":"IF('1. Order'!K460=\"\",\"\",'1. Order'!K460)","v":""},{"$f":"IF('1. Order'!L460=\"\",\"\",'1. Order'!L460)","v":""},{"$f":"IF('1. Order'!N460=\"\",\"\",'1. Order'!N460)","v":""},null,null,{"$f":"IF('1. Order'!AV460=\"\",\"\",'1. Order'!AV460)","v":""},{"$f":"IF('1. Order'!AI460=\"\",\"\",'1. Order'!AI460)","v":""}]
[{"$f":"IF('1. Order'!B461=\"\",\"\",'1. Order'!B461)","v":""},{"$f":"IF('1. Order'!J461=\"\",\"\",'1. Order'!J461)","v":""},{"$f":"IF('1. Order'!K461=\"\",\"\",'1. Order'!K461)","v":""},{"$f":"IF('1. Order'!L461=\"\",\"\",'1. Order'!L461)","v":""},{"$f":"IF('1. Order'!N461=\"\",\"\",'1. Order'!N461)","v":""},null,null,{"$f":"IF('1. Order'!AV461=\"\",\"\",'1. Order'!AV461)","v":""},{"$f":"IF('1. Order'!AI461=\"\",\"\",'1. Order'!AI461)","v":""}]
[{"$f":"IF('1. Order'!B462=\"\",\"\",'1. Order'!B462)","v":""},{"$f":"IF('1. Order'!J462=\"\",\"\",'1. Order'!J462)","v":""},{"$f":"IF('1. Order'!K462=\"\",\"\",'1. Order'!K462)","v":""},{"$f":"IF('1. Order'!L462=\"\",\"\",'1. Order'!L462)","v":""},{"$f":"IF('1. Order'!N462=\"\",\"\",'1. Order'!N462)","v":""},null,null,{"$f":"IF('1. Order'!AV462=\"\",\"\",'1. Order'!AV462)","v":""},{"$f":"IF('1. Order'!AI462=\"\",\"\",'1. Order'!AI462)","v":""}]
[{"$f":"IF('1. Order'!B463=\"\",\"\",'1. Order'!B463)","v":""},{"$f":"IF('1. Order'!J463=\"\",\"\",'1. Order'!J463)","v":""},{"$f":"IF('1. Order'!K463=\"\",\"\",'1. Order'!K463)","v":""},{"$f":"IF('1. Order'!L463=\"\",\"\",'1. Order'!L463)","v":""},{"$f":"IF('1. Order'!N463=\"\",\"\",'1. Order'!N463)","v":""},null,null,{"$f":"IF('1. Order'!AV463=\"\",\"\",'1. Order'!AV463)","v":""},{"$f":"IF('1. Order'!AI463=\"\",\"\",'1. Order'!AI463)","v":""}]
[{"$f":"IF('1. Order'!B464=\"\",\"\",'1. Order'!B464)","v":""},{"$f":"IF('1. Order'!J464=\"\",\"\",'1. Order'!J464)","v":""},{"$f":"IF('1. Order'!K464=\"\",\"\",'1. Order'!K464)","v":""},{"$f":"IF('1. Order'!L464=\"\",\"\",'1. Order'!L464)","v":""},{"$f":"IF('1. Order'!N464=\"\",\"\",'1. Order'!N464)","v":""},null,null,{"$f":"IF('1. Order'!AV464=\"\",\"\",'1. Order'!AV464)","v":""},{"$f":"IF('1. Order'!AI464=\"\",\"\",'1. Order'!AI464)","v":""}]
[{"$f":"IF('1. Order'!B465=\"\",\"\",'1. Order'!B465)","v":""},{"$f":"IF('1. Order'!J465=\"\",\"\",'1. Order'!J465)","v":""},{"$f":"IF('1. Order'!K465=\"\",\"\",'1. Order'!K465)","v":""},{"$f":"IF('1. Order'!L465=\"\",\"\",'1. Order'!L465)","v":""},{"$f":"IF('1. Order'!N465=\"\",\"\",'1. Order'!N465)","v":""},null,null,{"$f":"IF('1. Order'!AV465=\"\",\"\",'1. Order'!AV465)","v":""},{"$f":"IF('1. Order'!AI465=\"\",\"\",'1. Order'!AI465)","v":""}]
[{"$f":"IF('1. Order'!B466=\"\",\"\",'1. Order'!B466)","v":""},{"$f":"IF('1. Order'!J466=\"\",\"\",'1. Order'!J466)","v":""},{"$f":"IF('1. Order'!K466=\"\",\"\",'1. Order'!K466)","v":""},{"$f":"IF('1. Order'!L466=\"\",\"\",'1. Order'!L466)","v":""},{"$f":"IF('1. Order'!N466=\"\",\"\",'1. Order'!N466)","v":""},null,null,{"$f":"IF('1. Order'!AV466=\"\",\"\",'1. Order'!AV466)","v":""},{"$f":"IF('1. Order'!AI466=\"\",\"\",'1. Order'!AI466)","v":""}]
[{"$f":"IF('1. Order'!B467=\"\",\"\",'1. Order'!B467)","v":""},{"$f":"IF('1. Order'!J467=\"\",\"\",'1. Order'!J467)","v":""},{"$f":"IF('1. Order'!K467=\"\",\"\",'1. Order'!K467)","v":""},{"$f":"IF('1. Order'!L467=\"\",\"\",'1. Order'!L467)","v":""},{"$f":"IF('1. Order'!N467=\"\",\"\",'1. Order'!N467)","v":""},null,null,{"$f":"IF('1. Order'!AV467=\"\",\"\",'1. Order'!AV467)","v":""},{"$f":"IF('1. Order'!AI467=\"\",\"\",'1. Order'!AI467)","v":""}]
[{"$f":"IF('1. Order'!B468=\"\",\"\",'1. Order'!B468)","v":""},{"$f":"IF('1. Order'!J468=\"\",\"\",'1. Order'!J468)","v":""},{"$f":"IF('1. Order'!K468=\"\",\"\",'1. Order'!K468)","v":""},{"$f":"IF('1. Order'!L468=\"\",\"\",'1. Order'!L468)","v":""},{"$f":"IF('1. Order'!N468=\"\",\"\",'1. Order'!N468)","v":""},null,null,{"$f":"IF('1. Order'!AV468=\"\",\"\",'1. Order'!AV468)","v":""},{"$f":"IF('1. Order'!AI468=\"\",\"\",'1. Order'!AI468)","v":""}]
[{"$f":"IF('1. Order'!B469=\"\",\"\",'1. Order'!B469)","v":""},{"$f":"IF('1. Order'!J469=\"\",\"\",'1. Order'!J469)","v":""},{"$f":"IF('1. Order'!K469=\"\",\"\",'1. Order'!K469)","v":""},{"$f":"IF('1. Order'!L469=\"\",\"\",'1. Order'!L469)","v":""},{"$f":"IF('1. Order'!N469=\"\",\"\",'1. Order'!N469)","v":""},null,null,{"$f":"IF('1. Order'!AV469=\"\",\"\",'1. Order'!AV469)","v":""},{"$f":"IF('1. Order'!AI469=\"\",\"\",'1. Order'!AI469)","v":""}]
[{"$f":"IF('1. Order'!B470=\"\",\"\",'1. Order'!B470)","v":""},{"$f":"IF('1. Order'!J470=\"\",\"\",'1. Order'!J470)","v":""},{"$f":"IF('1. Order'!K470=\"\",\"\",'1. Order'!K470)","v":""},{"$f":"IF('1. Order'!L470=\"\",\"\",'1. Order'!L470)","v":""},{"$f":"IF('1. Order'!N470=\"\",\"\",'1. Order'!N470)","v":""},null,null,{"$f":"IF('1. Order'!AV470=\"\",\"\",'1. Order'!AV470)","v":""},{"$f":"IF('1. Order'!AI470=\"\",\"\",'1. Order'!AI470)","v":""}]
[{"$f":"IF('1. Order'!B471=\"\",\"\",'1. Order'!B471)","v":""},{"$f":"IF('1. Order'!J471=\"\",\"\",'1. Order'!J471)","v":""},{"$f":"IF('1. Order'!K471=\"\",\"\",'1. Order'!K471)","v":""},{"$f":"IF('1. Order'!L471=\"\",\"\",'1. Order'!L471)","v":""},{"$f":"IF('1. Order'!N471=\"\",\"\",'1. Order'!N471)","v":""},null,null,{"$f":"IF('1. Order'!AV471=\"\",\"\",'1. Order'!AV471)","v":""},{"$f":"IF('1. Order'!AI471=\"\",\"\",'1. Order'!AI471)","v":""}]
[{"$f":"IF('1. Order'!B472=\"\",\"\",'1. Order'!B472)","v":""},{"$f":"IF('1. Order'!J472=\"\",\"\",'1. Order'!J472)","v":""},{"$f":"IF('1. Order'!K472=\"\",\"\",'1. Order'!K472)","v":""},{"$f":"IF('1. Order'!L472=\"\",\"\",'1. Order'!L472)","v":""},{"$f":"IF('1. Order'!N472=\"\",\"\",'1. Order'!N472)","v":""},null,null,{"$f":"IF('1. Order'!AV472=\"\",\"\",'1. Order'!AV472)","v":""},{"$f":"IF('1. Order'!AI472=\"\",\"\",'1. Order'!AI472)","v":""}]
[{"$f":"IF('1. Order'!B473=\"\",\"\",'1. Order'!B473)","v":""},{"$f":"IF('1. Order'!J473=\"\",\"\",'1. Order'!J473)","v":""},{"$f":"IF('1. Order'!K473=\"\",\"\",'1. Order'!K473)","v":""},{"$f":"IF('1. Order'!L473=\"\",\"\",'1. Order'!L473)","v":""},{"$f":"IF('1. Order'!N473=\"\",\"\",'1. Order'!N473)","v":""},null,null,{"$f":"IF('1. Order'!AV473=\"\",\"\",'1. Order'!AV473)","v":""},{"$f":"IF('1. Order'!AI473=\"\",\"\",'1. Order'!AI473)","v":""}]
[{"$f":"IF('1. Order'!B474=\"\",\"\",'1. Order'!B474)","v":""},{"$f":"IF('1. Order'!J474=\"\",\"\",'1. Order'!J474)","v":""},{"$f":"IF('1. Order'!K474=\"\",\"\",'1. Order'!K474)","v":""},{"$f":"IF('1. Order'!L474=\"\",\"\",'1. Order'!L474)","v":""},{"$f":"IF('1. Order'!N474=\"\",\"\",'1. Order'!N474)","v":""},null,null,{"$f":"IF('1. Order'!AV474=\"\",\"\",'1. Order'!AV474)","v":""},{"$f":"IF('1. Order'!AI474=\"\",\"\",'1. Order'!AI474)","v":""}]
[{"$f":"IF('1. Order'!B475=\"\",\"\",'1. Order'!B475)","v":""},{"$f":"IF('1. Order'!J475=\"\",\"\",'1. Order'!J475)","v":""},{"$f":"IF('1. Order'!K475=\"\",\"\",'1. Order'!K475)","v":""},{"$f":"IF('1. Order'!L475=\"\",\"\",'1. Order'!L475)","v":""},{"$f":"IF('1. Order'!N475=\"\",\"\",'1. Order'!N475)","v":""},null,null,{"$f":"IF('1. Order'!AV475=\"\",\"\",'1. Order'!AV475)","v":""},{"$f":"IF('1. Order'!AI475=\"\",\"\",'1. Order'!AI475)","v":""}]
[{"$f":"IF('1. Order'!B476=\"\",\"\",'1. Order'!B476)","v":""},{"$f":"IF('1. Order'!J476=\"\",\"\",'1. Order'!J476)","v":""},{"$f":"IF('1. Order'!K476=\"\",\"\",'1. Order'!K476)","v":""},{"$f":"IF('1. Order'!L476=\"\",\"\",'1. Order'!L476)","v":""},{"$f":"IF('1. Order'!N476=\"\",\"\",'1. Order'!N476)","v":""},null,null,{"$f":"IF('1. Order'!AV476=\"\",\"\",'1. Order'!AV476)","v":""},{"$f":"IF('1. Order'!AI476=\"\",\"\",'1. Order'!AI476)","v":""}]
[{"$f":"IF('1. Order'!B477=\"\",\"\",'1. Order'!B477)","v":""},{"$f":"IF('1. Order'!J477=\"\",\"\",'1. Order'!J477)","v":""},{"$f":"IF('1. Order'!K477=\"\",\"\",'1. Order'!K477)","v":""},{"$f":"IF('1. Order'!L477=\"\",\"\",'1. Order'!L477)","v":""},{"$f":"IF('1. Order'!N477=\"\",\"\",'1. Order'!N477)","v":""},null,null,{"$f":"IF('1. Order'!AV477=\"\",\"\",'1. Order'!AV477)","v":""},{"$f":"IF('1. Order'!AI477=\"\",\"\",'1. Order'!AI477)","v":""}]
[{"$f":"IF('1. Order'!B478=\"\",\"\",'1. Order'!B478)","v":""},{"$f":"IF('1. Order'!J478=\"\",\"\",'1. Order'!J478)","v":""},{"$f":"IF('1. Order'!K478=\"\",\"\",'1. Order'!K478)","v":""},{"$f":"IF('1. Order'!L478=\"\",\"\",'1. Order'!L478)","v":""},{"$f":"IF('1. Order'!N478=\"\",\"\",'1. Order'!N478)","v":""},null,null,{"$f":"IF('1. Order'!AV478=\"\",\"\",'1. Order'!AV478)","v":""},{"$f":"IF('1. Order'!AI478=\"\",\"\",'1. Order'!AI478)","v":""}]
[{"$f":"IF('1. Order'!B479=\"\",\"\",'1. Order'!B479)","v":""},{"$f":"IF('1. Order'!J479=\"\",\"\",'1. Order'!J479)","v":""},{"$f":"IF('1. Order'!K479=\"\",\"\",'1. Order'!K479)","v":""},{"$f":"IF('1. Order'!L479=\"\",\"\",'1. Order'!L479)","v":""},{"$f":"IF('1. Order'!N479=\"\",\"\",'1. Order'!N479)","v":""},null,null,{"$f":"IF('1. Order'!AV479=\"\",\"\",'1. Order'!AV479)","v":""},{"$f":"IF('1. Order'!AI479=\"\",\"\",'1. Order'!AI479)","v":""}]
[{"$f":"IF('1. Order'!B480=\"\",\"\",'1. Order'!B480)","v":""},{"$f":"IF('1. Order'!J480=\"\",\"\",'1. Order'!J480)","v":""},{"$f":"IF('1. Order'!K480=\"\",\"\",'1. Order'!K480)","v":""},{"$f":"IF('1. Order'!L480=\"\",\"\",'1. Order'!L480)","v":""},{"$f":"IF('1. Order'!N480=\"\",\"\",'1. Order'!N480)","v":""},null,null,{"$f":"IF('1. Order'!AV480=\"\",\"\",'1. Order'!AV480)","v":""},{"$f":"IF('1. Order'!AI480=\"\",\"\",'1. Order'!AI480)","v":""}]
[{"$f":"IF('1. Order'!B481=\"\",\"\",'1. Order'!B481)","v":""},{"$f":"IF('1. Order'!J481=\"\",\"\",'1. Order'!J481)","v":""},{"$f":"IF('1. Order'!K481=\"\",\"\",'1. Order'!K481)","v":""},{"$f":"IF('1. Order'!L481=\"\",\"\",'1. Order'!L481)","v":""},{"$f":"IF('1. Order'!N481=\"\",\"\",'1. Order'!N481)","v":""},null,null,{"$f":"IF('1. Order'!AV481=\"\",\"\",'1. Order'!AV481)","v":""},{"$f":"IF('1. Order'!AI481=\"\",\"\",'1. Order'!AI481)","v":""}]
[{"$f":"IF('1. Order'!B482=\"\",\"\",'1. Order'!B482)","v":""},{"$f":"IF('1. Order'!J482=\"\",\"\",'1. Order'!J482)","v":""},{"$f":"IF('1. Order'!K482=\"\",\"\",'1. Order'!K482)","v":""},{"$f":"IF('1. Order'!L482=\"\",\"\",'1. Order'!L482)","v":""},{"$f":"IF('1. Order'!N482=\"\",\"\",'1. Order'!N482)","v":""},null,null,{"$f":"IF('1. Order'!AV482=\"\",\"\",'1. Order'!AV482)","v":""},{"$f":"IF('1. Order'!AI482=\"\",\"\",'1. Order'!AI482)","v":""}]
[{"$f":"IF('1. Order'!B483=\"\",\"\",'1. Order'!B483)","v":""},{"$f":"IF('1. Order'!J483=\"\",\"\",'1. Order'!J483)","v":""},{"$f":"IF('1. Order'!K483=\"\",\"\",'1. Order'!K483)","v":""},{"$f":"IF('1. Order'!L483=\"\",\"\",'1. Order'!L483)","v":""},{"$f":"IF('1. Order'!N483=\"\",\"\",'1. Order'!N483)","v":""},null,null,{"$f":"IF('1. Order'!AV483=\"\",\"\",'1. Order'!AV483)","v":""},{"$f":"IF('1. Order'!AI483=\"\",\"\",'1. Order'!AI483)","v":""}]
[{"$f":"IF('1. Order'!B484=\"\",\"\",'1. Order'!B484)","v":""},{"$f":"IF('1. Order'!J484=\"\",\"\",'1. Order'!J484)","v":""},{"$f":"IF('1. Order'!K484=\"\",\"\",'1. Order'!K484)","v":""},{"$f":"IF('1. Order'!L484=\"\",\"\",'1. Order'!L484)","v":""},{"$f":"IF('1. Order'!N484=\"\",\"\",'1. Order'!N484)","v":""},null,null,{"$f":"IF('1. Order'!AV484=\"\",\"\",'1. Order'!AV484)","v":""},{"$f":"IF('1. Order'!AI484=\"\",\"\",'1. Order'!AI484)","v":""}]
[{"$f":"IF('1. Order'!B485=\"\",\"\",'1. Order'!B485)","v":""},{"$f":"IF('1. Order'!J485=\"\",\"\",'1. Order'!J485)","v":""},{"$f":"IF('1. Order'!K485=\"\",\"\",'1. Order'!K485)","v":""},{"$f":"IF('1. Order'!L485=\"\",\"\",'1. Order'!L485)","v":""},{"$f":"IF('1. Order'!N485=\"\",\"\",'1. Order'!N485)","v":""},null,null,{"$f":"IF('1. Order'!AV485=\"\",\"\",'1. Order'!AV485)","v":""},{"$f":"IF('1. Order'!AI485=\"\",\"\",'1. Order'!AI485)","v":""}]
[{"$f":"IF('1. Order'!B486=\"\",\"\",'1. Order'!B486)","v":""},{"$f":"IF('1. Order'!J486=\"\",\"\",'1. Order'!J486)","v":""},{"$f":"IF('1. Order'!K486=\"\",\"\",'1. Order'!K486)","v":""},{"$f":"IF('1. Order'!L486=\"\",\"\",'1. Order'!L486)","v":""},{"$f":"IF('1. Order'!N486=\"\",\"\",'1. Order'!N486)","v":""},null,null,{"$f":"IF('1. Order'!AV486=\"\",\"\",'1. Order'!AV486)","v":""},{"$f":"IF('1. Order'!AI486=\"\",\"\",'1. Order'!AI486)","v":""}]
[{"$f":"IF('1. Order'!B487=\"\",\"\",'1. Order'!B487)","v":""},{"$f":"IF('1. Order'!J487=\"\",\"\",'1. Order'!J487)","v":""},{"$f":"IF('1. Order'!K487=\"\",\"\",'1. Order'!K487)","v":""},{"$f":"IF('1. Order'!L487=\"\",\"\",'1. Order'!L487)","v":""},{"$f":"IF('1. Order'!N487=\"\",\"\",'1. Order'!N487)","v":""},null,null,{"$f":"IF('1. Order'!AV487=\"\",\"\",'1. Order'!AV487)","v":""},{"$f":"IF('1. Order'!AI487=\"\",\"\",'1. Order'!AI487)","v":""}]
[{"$f":"IF('1. Order'!B488=\"\",\"\",'1. Order'!B488)","v":""},{"$f":"IF('1. Order'!J488=\"\",\"\",'1. Order'!J488)","v":""},{"$f":"IF('1. Order'!K488=\"\",\"\",'1. Order'!K488)","v":""},{"$f":"IF('1. Order'!L488=\"\",\"\",'1. Order'!L488)","v":""},{"$f":"IF('1. Order'!N488=\"\",\"\",'1. Order'!N488)","v":""},null,null,{"$f":"IF('1. Order'!AV488=\"\",\"\",'1. Order'!AV488)","v":""},{"$f":"IF('1. Order'!AI488=\"\",\"\",'1. Order'!AI488)","v":""}]
[{"$f":"IF('1. Order'!B489=\"\",\"\",'1. Order'!B489)","v":""},{"$f":"IF('1. Order'!J489=\"\",\"\",'1. Order'!J489)","v":""},{"$f":"IF('1. Order'!K489=\"\",\"\",'1. Order'!K489)","v":""},{"$f":"IF('1. Order'!L489=\"\",\"\",'1. Order'!L489)","v":""},{"$f":"IF('1. Order'!N489=\"\",\"\",'1. Order'!N489)","v":""},null,null,{"$f":"IF('1. Order'!AV489=\"\",\"\",'1. Order'!AV489)","v":""},{"$f":"IF('1. Order'!AI489=\"\",\"\",'1. Order'!AI489)","v":""}]
[{"$f":"IF('1. Order'!B490=\"\",\"\",'1. Order'!B490)","v":""},{"$f":"IF('1. Order'!J490=\"\",\"\",'1. Order'!J490)","v":""},{"$f":"IF('1. Order'!K490=\"\",\"\",'1. Order'!K490)","v":""},{"$f":"IF('1. Order'!L490=\"\",\"\",'1. Order'!L490)","v":""},{"$f":"IF('1. Order'!N490=\"\",\"\",'1. Order'!N490)","v":""},null,null,{"$f":"IF('1. Order'!AV490=\"\",\"\",'1. Order'!AV490)","v":""},{"$f":"IF('1. Order'!AI490=\"\",\"\",'1. Order'!AI490)","v":""}]
[{"$f":"IF('1. Order'!B491=\"\",\"\",'1. Order'!B491)","v":""},{"$f":"IF('1. Order'!J491=\"\",\"\",'1. Order'!J491)","v":""},{"$f":"IF('1. Order'!K491=\"\",\"\",'1. Order'!K491)","v":""},{"$f":"IF('1. Order'!L491=\"\",\"\",'1. Order'!L491)","v":""},{"$f":"IF('1. Order'!N491=\"\",\"\",'1. Order'!N491)","v":""},null,null,{"$f":"IF('1. Order'!AV491=\"\",\"\",'1. Order'!AV491)","v":""},{"$f":"IF('1. Order'!AI491=\"\",\"\",'1. Order'!AI491)","v":""}]
[{"$f":"IF('1. Order'!B492=\"\",\"\",'1. Order'!B492)","v":""},{"$f":"IF('1. Order'!J492=\"\",\"\",'1. Order'!J492)","v":""},{"$f":"IF('1. Order'!K492=\"\",\"\",'1. Order'!K492)","v":""},{"$f":"IF('1. Order'!L492=\"\",\"\",'1. Order'!L492)","v":""},{"$f":"IF('1. Order'!N492=\"\",\"\",'1. Order'!N492)","v":""},null,null,{"$f":"IF('1. Order'!AV492=\"\",\"\",'1. Order'!AV492)","v":""},{"$f":"IF('1. Order'!AI492=\"\",\"\",'1. Order'!AI492)","v":""}]
[{"$f":"IF('1. Order'!B493=\"\",\"\",'1. Order'!B493)","v":""},{"$f":"IF('1. Order'!J493=\"\",\"\",'1. Order'!J493)","v":""},{"$f":"IF('1. Order'!K493=\"\",\"\",'1. Order'!K493)","v":""},{"$f":"IF('1. Order'!L493=\"\",\"\",'1. Order'!L493)","v":""},{"$f":"IF('1. Order'!N493=\"\",\"\",'1. Order'!N493)","v":""},null,null,{"$f":"IF('1. Order'!AV493=\"\",\"\",'1. Order'!AV493)","v":""},{"$f":"IF('1. Order'!AI493=\"\",\"\",'1. Order'!AI493)","v":""}]
[{"$f":"IF('1. Order'!B494=\"\",\"\",'1. Order'!B494)","v":""},{"$f":"IF('1. Order'!J494=\"\",\"\",'1. Order'!J494)","v":""},{"$f":"IF('1. Order'!K494=\"\",\"\",'1. Order'!K494)","v":""},{"$f":"IF('1. Order'!L494=\"\",\"\",'1. Order'!L494)","v":""},{"$f":"IF('1. Order'!N494=\"\",\"\",'1. Order'!N494)","v":""},null,null,{"$f":"IF('1. Order'!AV494=\"\",\"\",'1. Order'!AV494)","v":""},{"$f":"IF('1. Order'!AI494=\"\",\"\",'1. Order'!AI494)","v":""}]
[{"$f":"IF('1. Order'!B495=\"\",\"\",'1. Order'!B495)","v":""},{"$f":"IF('1. Order'!J495=\"\",\"\",'1. Order'!J495)","v":""},{"$f":"IF('1. Order'!K495=\"\",\"\",'1. Order'!K495)","v":""},{"$f":"IF('1. Order'!L495=\"\",\"\",'1. Order'!L495)","v":""},{"$f":"IF('1. Order'!N495=\"\",\"\",'1. Order'!N495)","v":""},null,null,{"$f":"IF('1. Order'!AV495=\"\",\"\",'1. Order'!AV495)","v":""},{"$f":"IF('1. Order'!AI495=\"\",\"\",'1. Order'!AI495)","v":""}]
[{"$f":"IF('1. Order'!B496=\"\",\"\",'1. Order'!B496)","v":""},{"$f":"IF('1. Order'!J496=\"\",\"\",'1. Order'!J496)","v":""},{"$f":"IF('1. Order'!K496=\"\",\"\",'1. Order'!K496)","v":""},{"$f":"IF('1. Order'!L496=\"\",\"\",'1. Order'!L496)","v":""},{"$f":"IF('1. Order'!N496=\"\",\"\",'1. Order'!N496)","v":""},null,null,{"$f":"IF('1. Order'!AV496=\"\",\"\",'1. Order'!AV496)","v":""},{"$f":"IF('1. Order'!AI496=\"\",\"\",'1. Order'!AI496)","v":""}]
[{"$f":"IF('1. Order'!B497=\"\",\"\",'1. Order'!B497)","v":""},{"$f":"IF('1. Order'!J497=\"\",\"\",'1. Order'!J497)","v":""},{"$f":"IF('1. Order'!K497=\"\",\"\",'1. Order'!K497)","v":""},{"$f":"IF('1. Order'!L497=\"\",\"\",'1. Order'!L497)","v":""},{"$f":"IF('1. Order'!N497=\"\",\"\",'1. Order'!N497)","v":""},null,null,{"$f":"IF('1. Order'!AV497=\"\",\"\",'1. Order'!AV497)","v":""},{"$f":"IF('1. Order'!AI497=\"\",\"\",'1. Order'!AI497)","v":""}]
[{"$f":"IF('1. Order'!B498=\"\",\"\",'1. Order'!B498)","v":""},{"$f":"IF('1. Order'!J498=\"\",\"\",'1. Order'!J498)","v":""},{"$f":"IF('1. Order'!K498=\"\",\"\",'1. Order'!K498)","v":""},{"$f":"IF('1. Order'!L498=\"\",\"\",'1. Order'!L498)","v":""},{"$f":"IF('1. Order'!N498=\"\",\"\",'1. Order'!N498)","v":""},null,null,{"$f":"IF('1. Order'!AV498=\"\",\"\",'1. Order'!AV498)","v":""},{"$f":"IF('1. Order'!AI498=\"\",\"\",'1. Order'!AI498)","v":""}]
[{"$f":"IF('1. Order'!B499=\"\",\"\",'1. Order'!B499)","v":""},{"$f":"IF('1. Order'!J499=\"\",\"\",'1. Order'!J499)","v":""},{"$f":"IF('1. Order'!K499=\"\",\"\",'1. Order'!K499)","v":""},{"$f":"IF('1. Order'!L499=\"\",\"\",'1. Order'!L499)","v":""},{"$f":"IF('1. Order'!N499=\"\",\"\",'1. Order'!N499)","v":""},null,null,{"$f":"IF('1. Order'!AV499=\"\",\"\",'1. Order'!AV499)","v":""},{"$f":"IF('1. Order'!AI499=\"\",\"\",'1. Order'!AI499)","v":""}]
[{"$f":"IF('1. Order'!B500=\"\",\"\",'1. Order'!B500)","v":""},{"$f":"IF('1. Order'!J500=\"\",\"\",'1. Order'!J500)","v":""},{"$f":"IF('1. Order'!K500=\"\",\"\",'1. Order'!K500)","v":""},{"$f":"IF('1. Order'!L500=\"\",\"\",'1. Order'!L500)","v":""},{"$f":"IF('1. Order'!N500=\"\",\"\",'1. Order'!N500)","v":""},null,null,{"$f":"IF('1. Order'!AV500=\"\",\"\",'1. Order'!AV500)","v":""},{"$f":"IF('1. Order'!AI500=\"\",\"\",'1. Order'!AI500)","v":""}]
[{"$f":"IF('1. Order'!B501=\"\",\"\",'1. Order'!B501)","v":""},{"$f":"IF('1. Order'!J501=\"\",\"\",'1. Order'!J501)","v":""},{"$f":"IF('1. Order'!K501=\"\",\"\",'1. Order'!K501)","v":""},{"$f":"IF('1. Order'!L501=\"\",\"\",'1. Order'!L501)","v":""},{"$f":"IF('1. Order'!N501=\"\",\"\",'1. Order'!N501)","v":""},null,null,{"$f":"IF('1. Order'!AV501=\"\",\"\",'1. Order'!AV501)","v":""},{"$f":"IF('1. Order'!AI501=\"\",\"\",'1. Order'!AI501)","v":""}]
[{"$f":"IF('1. Order'!B502=\"\",\"\",'1. Order'!B502)","v":""},{"$f":"IF('1. Order'!J502=\"\",\"\",'1. Order'!J502)","v":""},{"$f":"IF('1. Order'!K502=\"\",\"\",'1. Order'!K502)","v":""},{"$f":"IF('1. Order'!L502=\"\",\"\",'1. Order'!L502)","v":""},{"$f":"IF('1. Order'!N502=\"\",\"\",'1. Order'!N502)","v":""},null,null,{"$f":"IF('1. Order'!AV502=\"\",\"\",'1. Order'!AV502)","v":""},{"$f":"IF('1. Order'!AI502=\"\",\"\",'1. Order'!AI502)","v":""}]
[{"$f":"IF('1. Order'!B503=\"\",\"\",'1. Order'!B503)","v":""},{"$f":"IF('1. Order'!J503=\"\",\"\",'1. Order'!J503)","v":""},{"$f":"IF('1. Order'!K503=\"\",\"\",'1. Order'!K503)","v":""},{"$f":"IF('1. Order'!L503=\"\",\"\",'1. Order'!L503)","v":""},{"$f":"IF('1. Order'!N503=\"\",\"\",'1. Order'!N503)","v":""},null,null,{"$f":"IF('1. Order'!AV503=\"\",\"\",'1. Order'!AV503)","v":""},{"$f":"IF('1. Order'!AI503=\"\",\"\",'1. Order'!AI503)","v":""}]
[{"$f":"IF('1. Order'!B504=\"\",\"\",'1. Order'!B504)","v":""},{"$f":"IF('1. Order'!J504=\"\",\"\",'1. Order'!J504)","v":""},{"$f":"IF('1. Order'!K504=\"\",\"\",'1. Order'!K504)","v":""},{"$f":"IF('1. Order'!L504=\"\",\"\",'1. Order'!L504)","v":""},{"$f":"IF('1. Order'!N504=\"\",\"\",'1. Order'!N504)","v":""},null,null,{"$f":"IF('1. Order'!AV504=\"\",\"\",'1. Order'!AV504)","v":""},{"$f":"IF('1. Order'!AI504=\"\",\"\",'1. Order'!AI504)","v":""}]
[{"$f":"IF('1. Order'!B505=\"\",\"\",'1. Order'!B505)","v":""},{"$f":"IF('1. Order'!J505=\"\",\"\",'1. Order'!J505)","v":""},{"$f":"IF('1. Order'!K505=\"\",\"\",'1. Order'!K505)","v":""},{"$f":"IF('1. Order'!L505=\"\",\"\",'1. Order'!L505)","v":""},{"$f":"IF('1. Order'!N505=\"\",\"\",'1. Order'!N505)","v":""},null,null,{"$f":"IF('1. Order'!AV505=\"\",\"\",'1. Order'!AV505)","v":""},{"$f":"IF('1. Order'!AI505=\"\",\"\",'1. Order'!AI505)","v":""}]
[{"$f":"IF('1. Order'!B506=\"\",\"\",'1. Order'!B506)","v":""},{"$f":"IF('1. Order'!J506=\"\",\"\",'1. Order'!J506)","v":""},{"$f":"IF('1. Order'!K506=\"\",\"\",'1. Order'!K506)","v":""},{"$f":"IF('1. Order'!L506=\"\",\"\",'1. Order'!L506)","v":""},{"$f":"IF('1. Order'!N506=\"\",\"\",'1. Order'!N506)","v":""},null,null,{"$f":"IF('1. Order'!AV506=\"\",\"\",'1. Order'!AV506)","v":""},{"$f":"IF('1. Order'!AI506=\"\",\"\",'1. Order'!AI506)","v":""}]
[{"$f":"IF('1. Order'!B507=\"\",\"\",'1. Order'!B507)","v":""},{"$f":"IF('1. Order'!J507=\"\",\"\",'1. Order'!J507)","v":""},{"$f":"IF('1. Order'!K507=\"\",\"\",'1. Order'!K507)","v":""},{"$f":"IF('1. Order'!L507=\"\",\"\",'1. Order'!L507)","v":""},{"$f":"IF('1. Order'!N507=\"\",\"\",'1. Order'!N507)","v":""},null,null,{"$f":"IF('1. Order'!AV507=\"\",\"\",'1. Order'!AV507)","v":""},{"$f":"IF('1. Order'!AI507=\"\",\"\",'1. Order'!AI507)","v":""}]
[{"$f":"IF('1. Order'!B508=\"\",\"\",'1. Order'!B508)","v":""},{"$f":"IF('1. Order'!J508=\"\",\"\",'1. Order'!J508)","v":""},{"$f":"IF('1. Order'!K508=\"\",\"\",'1. Order'!K508)","v":""},{"$f":"IF('1. Order'!L508=\"\",\"\",'1. Order'!L508)","v":""},{"$f":"IF('1. Order'!N508=\"\",\"\",'1. Order'!N508)","v":""},null,null,{"$f":"IF('1. Order'!AV508=\"\",\"\",'1. Order'!AV508)","v":""},{"$f":"IF('1. Order'!AI508=\"\",\"\",'1. Order'!AI508)","v":""}]
[{"$f":"IF('1. Order'!B509=\"\",\"\",'1. Order'!B509)","v":""},{"$f":"IF('1. Order'!J509=\"\",\"\",'1. Order'!J509)","v":""},{"$f":"IF('1. Order'!K509=\"\",\"\",'1. Order'!K509)","v":""},{"$f":"IF('1. Order'!L509=\"\",\"\",'1. Order'!L509)","v":""},{"$f":"IF('1. Order'!N509=\"\",\"\",'1. Order'!N509)","v":""},null,null,{"$f":"IF('1. Order'!AV509=\"\",\"\",'1. Order'!AV509)","v":""},{"$f":"IF('1. Order'!AI509=\"\",\"\",'1. Order'!AI509)","v":""}]
[{"$f":"IF('1. Order'!B510=\"\",\"\",'1. Order'!B510)","v":""},{"$f":"IF('1. Order'!J510=\"\",\"\",'1. Order'!J510)","v":""},{"$f":"IF('1. Order'!K510=\"\",\"\",'1. Order'!K510)","v":""},{"$f":"IF('1. Order'!L510=\"\",\"\",'1. Order'!L510)","v":""},{"$f":"IF('1. Order'!N510=\"\",\"\",'1. Order'!N510)","v":""},null,null,{"$f":"IF('1. Order'!AV510=\"\",\"\",'1. Order'!AV510)","v":""},{"$f":"IF('1. Order'!AI510=\"\",\"\",'1. Order'!AI510)","v":""}]
[{"$f":"IF('1. Order'!B511=\"\",\"\",'1. Order'!B511)","v":""},{"$f":"IF('1. Order'!J511=\"\",\"\",'1. Order'!J511)","v":""},{"$f":"IF('1. Order'!K511=\"\",\"\",'1. Order'!K511)","v":""},{"$f":"IF('1. Order'!L511=\"\",\"\",'1. Order'!L511)","v":""},{"$f":"IF('1. Order'!N511=\"\",\"\",'1. Order'!N511)","v":""},null,null,{"$f":"IF('1. Order'!AV511=\"\",\"\",'1. Order'!AV511)","v":""},{"$f":"IF('1. Order'!AI511=\"\",\"\",'1. Order'!AI511)","v":""}]
[{"$f":"IF('1. Order'!B512=\"\",\"\",'1. Order'!B512)","v":""},{"$f":"IF('1. Order'!J512=\"\",\"\",'1. Order'!J512)","v":""},{"$f":"IF('1. Order'!K512=\"\",\"\",'1. Order'!K512)","v":""},{"$f":"IF('1. Order'!L512=\"\",\"\",'1. Order'!L512)","v":""},{"$f":"IF('1. Order'!N512=\"\",\"\",'1. Order'!N512)","v":""},null,null,{"$f":"IF('1. Order'!AV512=\"\",\"\",'1. Order'!AV512)","v":""},{"$f":"IF('1. Order'!AI512=\"\",\"\",'1. Order'!AI512)","v":""}]
[{"$f":"IF('1. Order'!B513=\"\",\"\",'1. Order'!B513)","v":""},{"$f":"IF('1. Order'!J513=\"\",\"\",'1. Order'!J513)","v":""},{"$f":"IF('1. Order'!K513=\"\",\"\",'1. Order'!K513)","v":""},{"$f":"IF('1. Order'!L513=\"\",\"\",'1. Order'!L513)","v":""},{"$f":"IF('1. Order'!N513=\"\",\"\",'1. Order'!N513)","v":""},null,null,{"$f":"IF('1. Order'!AV513=\"\",\"\",'1. Order'!AV513)","v":""},{"$f":"IF('1. Order'!AI513=\"\",\"\",'1. Order'!AI513)","v":""}]
[{"$f":"IF('1. Order'!B514=\"\",\"\",'1. Order'!B514)","v":""},{"$f":"IF('1. Order'!J514=\"\",\"\",'1. Order'!J514)","v":""},{"$f":"IF('1. Order'!K514=\"\",\"\",'1. Order'!K514)","v":""},{"$f":"IF('1. Order'!L514=\"\",\"\",'1. Order'!L514)","v":""},{"$f":"IF('1. Order'!N514=\"\",\"\",'1. Order'!N514)","v":""},null,null,{"$f":"IF('1. Order'!AV514=\"\",\"\",'1. Order'!AV514)","v":""},{"$f":"IF('1. Order'!AI514=\"\",\"\",'1. Order'!AI514)","v":""}]
[{"$f":"IF('1. Order'!B515=\"\",\"\",'1. Order'!B515)","v":""},{"$f":"IF('1. Order'!J515=\"\",\"\",'1. Order'!J515)","v":""},{"$f":"IF('1. Order'!K515=\"\",\"\",'1. Order'!K515)","v":""},{"$f":"IF('1. Order'!L515=\"\",\"\",'1. Order'!L515)","v":""},{"$f":"IF('1. Order'!N515=\"\",\"\",'1. Order'!N515)","v":""},null,null,{"$f":"IF('1. Order'!AV515=\"\",\"\",'1. Order'!AV515)","v":""},{"$f":"IF('1. Order'!AI515=\"\",\"\",'1. Order'!AI515)","v":""}]
[{"$f":"IF('1. Order'!B516=\"\",\"\",'1. Order'!B516)","v":""},{"$f":"IF('1. Order'!J516=\"\",\"\",'1. Order'!J516)","v":""},{"$f":"IF('1. Order'!K516=\"\",\"\",'1. Order'!K516)","v":""},{"$f":"IF('1. Order'!L516=\"\",\"\",'1. Order'!L516)","v":""},{"$f":"IF('1. Order'!N516=\"\",\"\",'1. Order'!N516)","v":""},null,null,{"$f":"IF('1. Order'!AV516=\"\",\"\",'1. Order'!AV516)","v":""},{"$f":"IF('1. Order'!AI516=\"\",\"\",'1. Order'!AI516)","v":""}]
[{"$f":"IF('1. Order'!B517=\"\",\"\",'1. Order'!B517)","v":""},{"$f":"IF('1. Order'!J517=\"\",\"\",'1. Order'!J517)","v":""},{"$f":"IF('1. Order'!K517=\"\",\"\",'1. Order'!K517)","v":""},{"$f":"IF('1. Order'!L517=\"\",\"\",'1. Order'!L517)","v":""},{"$f":"IF('1. Order'!N517=\"\",\"\",'1. Order'!N517)","v":""},null,null,{"$f":"IF('1. Order'!AV517=\"\",\"\",'1. Order'!AV517)","v":""},{"$f":"IF('1. Order'!AI517=\"\",\"\",'1. Order'!AI517)","v":""}]
[{"$f":"IF('1. Order'!B518=\"\",\"\",'1. Order'!B518)","v":""},{"$f":"IF('1. Order'!J518=\"\",\"\",'1. Order'!J518)","v":""},{"$f":"IF('1. Order'!K518=\"\",\"\",'1. Order'!K518)","v":""},{"$f":"IF('1. Order'!L518=\"\",\"\",'1. Order'!L518)","v":""},{"$f":"IF('1. Order'!N518=\"\",\"\",'1. Order'!N518)","v":""},null,null,{"$f":"IF('1. Order'!AV518=\"\",\"\",'1. Order'!AV518)","v":""},{"$f":"IF('1. Order'!AI518=\"\",\"\",'1. Order'!AI518)","v":""}]
[{"$f":"IF('1. Order'!B519=\"\",\"\",'1. Order'!B519)","v":""},{"$f":"IF('1. Order'!J519=\"\",\"\",'1. Order'!J519)","v":""},{"$f":"IF('1. Order'!K519=\"\",\"\",'1. Order'!K519)","v":""},{"$f":"IF('1. Order'!L519=\"\",\"\",'1. Order'!L519)","v":""},{"$f":"IF('1. Order'!N519=\"\",\"\",'1. Order'!N519)","v":""},null,null,{"$f":"IF('1. Order'!AV519=\"\",\"\",'1. Order'!AV519)","v":""},{"$f":"IF('1. Order'!AI519=\"\",\"\",'1. Order'!AI519)","v":""}]
[{"$f":"IF('1. Order'!B520=\"\",\"\",'1. Order'!B520)","v":""},{"$f":"IF('1. Order'!J520=\"\",\"\",'1. Order'!J520)","v":""},{"$f":"IF('1. Order'!K520=\"\",\"\",'1. Order'!K520)","v":""},{"$f":"IF('1. Order'!L520=\"\",\"\",'1. Order'!L520)","v":""},{"$f":"IF('1. Order'!N520=\"\",\"\",'1. Order'!N520)","v":""},null,null,{"$f":"IF('1. Order'!AV520=\"\",\"\",'1. Order'!AV520)","v":""},{"$f":"IF('1. Order'!AI520=\"\",\"\",'1. Order'!AI520)","v":""}]
[{"$f":"IF('1. Order'!B521=\"\",\"\",'1. Order'!B521)","v":""},{"$f":"IF('1. Order'!J521=\"\",\"\",'1. Order'!J521)","v":""},{"$f":"IF('1. Order'!K521=\"\",\"\",'1. Order'!K521)","v":""},{"$f":"IF('1. Order'!L521=\"\",\"\",'1. Order'!L521)","v":""},{"$f":"IF('1. Order'!N521=\"\",\"\",'1. Order'!N521)","v":""},null,null,{"$f":"IF('1. Order'!AV521=\"\",\"\",'1. Order'!AV521)","v":""},{"$f":"IF('1. Order'!AI521=\"\",\"\",'1. Order'!AI521)","v":""}]
[{"$f":"IF('1. Order'!B522=\"\",\"\",'1. Order'!B522)","v":""},{"$f":"IF('1. Order'!J522=\"\",\"\",'1. Order'!J522)","v":""},{"$f":"IF('1. Order'!K522=\"\",\"\",'1. Order'!K522)","v":""},{"$f":"IF('1. Order'!L522=\"\",\"\",'1. Order'!L522)","v":""},{"$f":"IF('1. Order'!N522=\"\",\"\",'1. Order'!N522)","v":""},null,null,{"$f":"IF('1. Order'!AV522=\"\",\"\",'1. Order'!AV522)","v":""},{"$f":"IF('1. Order'!AI522=\"\",\"\",'1. Order'!AI522)","v":""}]
[{"$f":"IF('1. Order'!B523=\"\",\"\",'1. Order'!B523)","v":""},{"$f":"IF('1. Order'!J523=\"\",\"\",'1. Order'!J523)","v":""},{"$f":"IF('1. Order'!K523=\"\",\"\",'1. Order'!K523)","v":""},{"$f":"IF('1. Order'!L523=\"\",\"\",'1. Order'!L523)","v":""},{"$f":"IF('1. Order'!N523=\"\",\"\",'1. Order'!N523)","v":""},null,null,{"$f":"IF('1. Order'!AV523=\"\",\"\",'1. Order'!AV523)","v":""},{"$f":"IF('1. Order'!AI523=\"\",\"\",'1. Order'!AI523)","v":""}]
[{"$f":"IF('1. Order'!B524=\"\",\"\",'1. Order'!B524)","v":""},{"$f":"IF('1. Order'!J524=\"\",\"\",'1. Order'!J524)","v":""},{"$f":"IF('1. Order'!K524=\"\",\"\",'1. Order'!K524)","v":""},{"$f":"IF('1. Order'!L524=\"\",\"\",'1. Order'!L524)","v":""},{"$f":"IF('1. Order'!N524=\"\",\"\",'1. Order'!N524)","v":""},null,null,{"$f":"IF('1. Order'!AV524=\"\",\"\",'1. Order'!AV524)","v":""},{"$f":"IF('1. Order'!AI524=\"\",\"\",'1. Order'!AI524)","v":""}]
[{"$f":"IF('1. Order'!B525=\"\",\"\",'1. Order'!B525)","v":""},{"$f":"IF('1. Order'!J525=\"\",\"\",'1. Order'!J525)","v":""},{"$f":"IF('1. Order'!K525=\"\",\"\",'1. Order'!K525)","v":""},{"$f":"IF('1. Order'!L525=\"\",\"\",'1. Order'!L525)","v":""},{"$f":"IF('1. Order'!N525=\"\",\"\",'1. Order'!N525)","v":""},null,null,{"$f":"IF('1. Order'!AV525=\"\",\"\",'1. Order'!AV525)","v":""},{"$f":"IF('1. Order'!AI525=\"\",\"\",'1. Order'!AI525)","v":""}]
[{"$f":"IF('1. Order'!B526=\"\",\"\",'1. Order'!B526)","v":""},{"$f":"IF('1. Order'!J526=\"\",\"\",'1. Order'!J526)","v":""},{"$f":"IF('1. Order'!K526=\"\",\"\",'1. Order'!K526)","v":""},{"$f":"IF('1. Order'!L526=\"\",\"\",'1. Order'!L526)","v":""},{"$f":"IF('1. Order'!N526=\"\",\"\",'1. Order'!N526)","v":""},null,null,{"$f":"IF('1. Order'!AV526=\"\",\"\",'1. Order'!AV526)","v":""},{"$f":"IF('1. Order'!AI526=\"\",\"\",'1. Order'!AI526)","v":""}]
[{"$f":"IF('1. Order'!B527=\"\",\"\",'1. Order'!B527)","v":""},{"$f":"IF('1. Order'!J527=\"\",\"\",'1. Order'!J527)","v":""},{"$f":"IF('1. Order'!K527=\"\",\"\",'1. Order'!K527)","v":""},{"$f":"IF('1. Order'!L527=\"\",\"\",'1. Order'!L527)","v":""},{"$f":"IF('1. Order'!N527=\"\",\"\",'1. Order'!N527)","v":""},null,null,{"$f":"IF('1. Order'!AV527=\"\",\"\",'1. Order'!AV527)","v":""},{"$f":"IF('1. Order'!AI527=\"\",\"\",'1. Order'!AI527)","v":""}]
[{"$f":"IF('1. Order'!B528=\"\",\"\",'1. Order'!B528)","v":""},{"$f":"IF('1. Order'!J528=\"\",\"\",'1. Order'!J528)","v":""},{"$f":"IF('1. Order'!K528=\"\",\"\",'1. Order'!K528)","v":""},{"$f":"IF('1. Order'!L528=\"\",\"\",'1. Order'!L528)","v":""},{"$f":"IF('1. Order'!N528=\"\",\"\",'1. Order'!N528)","v":""},null,null,{"$f":"IF('1. Order'!AV528=\"\",\"\",'1. Order'!AV528)","v":""},{"$f":"IF('1. Order'!AI528=\"\",\"\",'1. Order'!AI528)","v":""}]
[{"$f":"IF('1. Order'!B529=\"\",\"\",'1. Order'!B529)","v":""},{"$f":"IF('1. Order'!J529=\"\",\"\",'1. Order'!J529)","v":""},{"$f":"IF('1. Order'!K529=\"\",\"\",'1. Order'!K529)","v":""},{"$f":"IF('1. Order'!L529=\"\",\"\",'1. Order'!L529)","v":""},{"$f":"IF('1. Order'!N529=\"\",\"\",'1. Order'!N529)","v":""},null,null,{"$f":"IF('1. Order'!AV529=\"\",\"\",'1. Order'!AV529)","v":""},{"$f":"IF('1. Order'!AI529=\"\",\"\",'1. Order'!AI529)","v":""}]
[{"$f":"IF('1. Order'!B530=\"\",\"\",'1. Order'!B530)","v":""},{"$f":"IF('1. Order'!J530=\"\",\"\",'1. Order'!J530)","v":""},{"$f":"IF('1. Order'!K530=\"\",\"\",'1. Order'!K530)","v":""},{"$f":"IF('1. Order'!L530=\"\",\"\",'1. Order'!L530)","v":""},{"$f":"IF('1. Order'!N530=\"\",\"\",'1. Order'!N530)","v":""},null,null,{"$f":"IF('1. Order'!AV530=\"\",\"\",'1. Order'!AV530)","v":""},{"$f":"IF('1. Order'!AI530=\"\",\"\",'1. Order'!AI530)","v":""}]
[{"$f":"IF('1. Order'!B531=\"\",\"\",'1. Order'!B531)","v":""},{"$f":"IF('1. Order'!J531=\"\",\"\",'1. Order'!J531)","v":""},{"$f":"IF('1. Order'!K531=\"\",\"\",'1. Order'!K531)","v":""},{"$f":"IF('1. Order'!L531=\"\",\"\",'1. Order'!L531)","v":""},{"$f":"IF('1. Order'!N531=\"\",\"\",'1. Order'!N531)","v":""},null,null,{"$f":"IF('1. Order'!AV531=\"\",\"\",'1. Order'!AV531)","v":""},{"$f":"IF('1. Order'!AI531=\"\",\"\",'1. Order'!AI531)","v":""}]
[{"$f":"IF('1. Order'!B532=\"\",\"\",'1. Order'!B532)","v":""},{"$f":"IF('1. Order'!J532=\"\",\"\",'1. Order'!J532)","v":""},{"$f":"IF('1. Order'!K532=\"\",\"\",'1. Order'!K532)","v":""},{"$f":"IF('1. Order'!L532=\"\",\"\",'1. Order'!L532)","v":""},{"$f":"IF('1. Order'!N532=\"\",\"\",'1. Order'!N532)","v":""},null,null,{"$f":"IF('1. Order'!AV532=\"\",\"\",'1. Order'!AV532)","v":""},{"$f":"IF('1. Order'!AI532=\"\",\"\",'1. Order'!AI532)","v":""}]
[{"$f":"IF('1. Order'!B533=\"\",\"\",'1. Order'!B533)","v":""},{"$f":"IF('1. Order'!J533=\"\",\"\",'1. Order'!J533)","v":""},{"$f":"IF('1. Order'!K533=\"\",\"\",'1. Order'!K533)","v":""},{"$f":"IF('1. Order'!L533=\"\",\"\",'1. Order'!L533)","v":""},{"$f":"IF('1. Order'!N533=\"\",\"\",'1. Order'!N533)","v":""},null,null,{"$f":"IF('1. Order'!AV533=\"\",\"\",'1. Order'!AV533)","v":""},{"$f":"IF('1. Order'!AI533=\"\",\"\",'1. Order'!AI533)","v":""}]
[{"$f":"IF('1. Order'!B534=\"\",\"\",'1. Order'!B534)","v":""},{"$f":"IF('1. Order'!J534=\"\",\"\",'1. Order'!J534)","v":""},{"$f":"IF('1. Order'!K534=\"\",\"\",'1. Order'!K534)","v":""},{"$f":"IF('1. Order'!L534=\"\",\"\",'1. Order'!L534)","v":""},{"$f":"IF('1. Order'!N534=\"\",\"\",'1. Order'!N534)","v":""},null,null,{"$f":"IF('1. Order'!AV534=\"\",\"\",'1. Order'!AV534)","v":""},{"$f":"IF('1. Order'!AI534=\"\",\"\",'1. Order'!AI534)","v":""}]
[{"$f":"IF('1. Order'!B535=\"\",\"\",'1. Order'!B535)","v":""},{"$f":"IF('1. Order'!J535=\"\",\"\",'1. Order'!J535)","v":""},{"$f":"IF('1. Order'!K535=\"\",\"\",'1. Order'!K535)","v":""},{"$f":"IF('1. Order'!L535=\"\",\"\",'1. Order'!L535)","v":""},{"$f":"IF('1. Order'!N535=\"\",\"\",'1. Order'!N535)","v":""},null,null,{"$f":"IF('1. Order'!AV535=\"\",\"\",'1. Order'!AV535)","v":""},{"$f":"IF('1. Order'!AI535=\"\",\"\",'1. Order'!AI535)","v":""}]
[{"$f":"IF('1. Order'!B536=\"\",\"\",'1. Order'!B536)","v":""},{"$f":"IF('1. Order'!J536=\"\",\"\",'1. Order'!J536)","v":""},{"$f":"IF('1. Order'!K536=\"\",\"\",'1. Order'!K536)","v":""},{"$f":"IF('1. Order'!L536=\"\",\"\",'1. Order'!L536)","v":""},{"$f":"IF('1. Order'!N536=\"\",\"\",'1. Order'!N536)","v":""},null,null,{"$f":"IF('1. Order'!AV536=\"\",\"\",'1. Order'!AV536)","v":""},{"$f":"IF('1. Order'!AI536=\"\",\"\",'1. Order'!AI536)","v":""}]
[{"$f":"IF('1. Order'!B537=\"\",\"\",'1. Order'!B537)","v":""},{"$f":"IF('1. Order'!J537=\"\",\"\",'1. Order'!J537)","v":""},{"$f":"IF('1. Order'!K537=\"\",\"\",'1. Order'!K537)","v":""},{"$f":"IF('1. Order'!L537=\"\",\"\",'1. Order'!L537)","v":""},{"$f":"IF('1. Order'!N537=\"\",\"\",'1. Order'!N537)","v":""},null,null,{"$f":"IF('1. Order'!AV537=\"\",\"\",'1. Order'!AV537)","v":""},{"$f":"IF('1. Order'!AI537=\"\",\"\",'1. Order'!AI537)","v":""}]
[{"$f":"IF('1. Order'!B538=\"\",\"\",'1. Order'!B538)","v":""},{"$f":"IF('1. Order'!J538=\"\",\"\",'1. Order'!J538)","v":""},{"$f":"IF('1. Order'!K538=\"\",\"\",'1. Order'!K538)","v":""},{"$f":"IF('1. Order'!L538=\"\",\"\",'1. Order'!L538)","v":""},{"$f":"IF('1. Order'!N538=\"\",\"\",'1. Order'!N538)","v":""},null,null,{"$f":"IF('1. Order'!AV538=\"\",\"\",'1. Order'!AV538)","v":""},{"$f":"IF('1. Order'!AI538=\"\",\"\",'1. Order'!AI538)","v":""}]
[{"$f":"IF('1. Order'!B539=\"\",\"\",'1. Order'!B539)","v":""},{"$f":"IF('1. Order'!J539=\"\",\"\",'1. Order'!J539)","v":""},{"$f":"IF('1. Order'!K539=\"\",\"\",'1. Order'!K539)","v":""},{"$f":"IF('1. Order'!L539=\"\",\"\",'1. Order'!L539)","v":""},{"$f":"IF('1. Order'!N539=\"\",\"\",'1. Order'!N539)","v":""},null,null,{"$f":"IF('1. Order'!AV539=\"\",\"\",'1. Order'!AV539)","v":""},{"$f":"IF('1. Order'!AI539=\"\",\"\",'1. Order'!AI539)","v":""}]
[{"$f":"IF('1. Order'!B540=\"\",\"\",'1. Order'!B540)","v":""},{"$f":"IF('1. Order'!J540=\"\",\"\",'1. Order'!J540)","v":""},{"$f":"IF('1. Order'!K540=\"\",\"\",'1. Order'!K540)","v":""},{"$f":"IF('1. Order'!L540=\"\",\"\",'1. Order'!L540)","v":""},{"$f":"IF('1. Order'!N540=\"\",\"\",'1. Order'!N540)","v":""},null,null,{"$f":"IF('1. Order'!AV540=\"\",\"\",'1. Order'!AV540)","v":""},{"$f":"IF('1. Order'!AI540=\"\",\"\",'1. Order'!AI540)","v":""}]
[{"$f":"IF('1. Order'!B541=\"\",\"\",'1. Order'!B541)","v":""},{"$f":"IF('1. Order'!J541=\"\",\"\",'1. Order'!J541)","v":""},{"$f":"IF('1. Order'!K541=\"\",\"\",'1. Order'!K541)","v":""},{"$f":"IF('1. Order'!L541=\"\",\"\",'1. Order'!L541)","v":""},{"$f":"IF('1. Order'!N541=\"\",\"\",'1. Order'!N541)","v":""},null,null,{"$f":"IF('1. Order'!AV541=\"\",\"\",'1. Order'!AV541)","v":""},{"$f":"IF('1. Order'!AI541=\"\",\"\",'1. Order'!AI541)","v":""}]
[{"$f":"IF('1. Order'!B542=\"\",\"\",'1. Order'!B542)","v":""},{"$f":"IF('1. Order'!J542=\"\",\"\",'1. Order'!J542)","v":""},{"$f":"IF('1. Order'!K542=\"\",\"\",'1. Order'!K542)","v":""},{"$f":"IF('1. Order'!L542=\"\",\"\",'1. Order'!L542)","v":""},{"$f":"IF('1. Order'!N542=\"\",\"\",'1. Order'!N542)","v":""},null,null,{"$f":"IF('1. Order'!AV542=\"\",\"\",'1. Order'!AV542)","v":""},{"$f":"IF('1. Order'!AI542=\"\",\"\",'1. Order'!AI542)","v":""}]
[{"$f":"IF('1. Order'!B543=\"\",\"\",'1. Order'!B543)","v":""},{"$f":"IF('1. Order'!J543=\"\",\"\",'1. Order'!J543)","v":""},{"$f":"IF('1. Order'!K543=\"\",\"\",'1. Order'!K543)","v":""},{"$f":"IF('1. Order'!L543=\"\",\"\",'1. Order'!L543)","v":""},{"$f":"IF('1. Order'!N543=\"\",\"\",'1. Order'!N543)","v":""},null,null,{"$f":"IF('1. Order'!AV543=\"\",\"\",'1. Order'!AV543)","v":""},{"$f":"IF('1. Order'!AI543=\"\",\"\",'1. Order'!AI543)","v":""}]
[{"$f":"IF('1. Order'!B544=\"\",\"\",'1. Order'!B544)","v":""},{"$f":"IF('1. Order'!J544=\"\",\"\",'1. Order'!J544)","v":""},{"$f":"IF('1. Order'!K544=\"\",\"\",'1. Order'!K544)","v":""},{"$f":"IF('1. Order'!L544=\"\",\"\",'1. Order'!L544)","v":""},{"$f":"IF('1. Order'!N544=\"\",\"\",'1. Order'!N544)","v":""},null,null,{"$f":"IF('1. Order'!AV544=\"\",\"\",'1. Order'!AV544)","v":""},{"$f":"IF('1. Order'!AI544=\"\",\"\",'1. Order'!AI544)","v":""}]
[{"$f":"IF('1. Order'!B545=\"\",\"\",'1. Order'!B545)","v":""},{"$f":"IF('1. Order'!J545=\"\",\"\",'1. Order'!J545)","v":""},{"$f":"IF('1. Order'!K545=\"\",\"\",'1. Order'!K545)","v":""},{"$f":"IF('1. Order'!L545=\"\",\"\",'1. Order'!L545)","v":""},{"$f":"IF('1. Order'!N545=\"\",\"\",'1. Order'!N545)","v":""},null,null,{"$f":"IF('1. Order'!AV545=\"\",\"\",'1. Order'!AV545)","v":""},{"$f":"IF('1. Order'!AI545=\"\",\"\",'1. Order'!AI545)","v":""}]
[{"$f":"IF('1. Order'!B546=\"\",\"\",'1. Order'!B546)","v":""},{"$f":"IF('1. Order'!J546=\"\",\"\",'1. Order'!J546)","v":""},{"$f":"IF('1. Order'!K546=\"\",\"\",'1. Order'!K546)","v":""},{"$f":"IF('1. Order'!L546=\"\",\"\",'1. Order'!L546)","v":""},{"$f":"IF('1. Order'!N546=\"\",\"\",'1. Order'!N546)","v":""},null,null,{"$f":"IF('1. Order'!AV546=\"\",\"\",'1. Order'!AV546)","v":""},{"$f":"IF('1. Order'!AI546=\"\",\"\",'1. Order'!AI546)","v":""}]
[{"$f":"IF('1. Order'!B547=\"\",\"\",'1. Order'!B547)","v":""},{"$f":"IF('1. Order'!J547=\"\",\"\",'1. Order'!J547)","v":""},{"$f":"IF('1. Order'!K547=\"\",\"\",'1. Order'!K547)","v":""},{"$f":"IF('1. Order'!L547=\"\",\"\",'1. Order'!L547)","v":""},{"$f":"IF('1. Order'!N547=\"\",\"\",'1. Order'!N547)","v":""},null,null,{"$f":"IF('1. Order'!AV547=\"\",\"\",'1. Order'!AV547)","v":""},{"$f":"IF('1. Order'!AI547=\"\",\"\",'1. Order'!AI547)","v":""}]
[{"$f":"IF('1. Order'!B548=\"\",\"\",'1. Order'!B548)","v":""},{"$f":"IF('1. Order'!J548=\"\",\"\",'1. Order'!J548)","v":""},{"$f":"IF('1. Order'!K548=\"\",\"\",'1. Order'!K548)","v":""},{"$f":"IF('1. Order'!L548=\"\",\"\",'1. Order'!L548)","v":""},{"$f":"IF('1. Order'!N548=\"\",\"\",'1. Order'!N548)","v":""},null,null,{"$f":"IF('1. Order'!AV548=\"\",\"\",'1. Order'!AV548)","v":""},{"$f":"IF('1. Order'!AI548=\"\",\"\",'1. Order'!AI548)","v":""}]
[{"$f":"IF('1. Order'!B549=\"\",\"\",'1. Order'!B549)","v":""},{"$f":"IF('1. Order'!J549=\"\",\"\",'1. Order'!J549)","v":""},{"$f":"IF('1. Order'!K549=\"\",\"\",'1. Order'!K549)","v":""},{"$f":"IF('1. Order'!L549=\"\",\"\",'1. Order'!L549)","v":""},{"$f":"IF('1. Order'!N549=\"\",\"\",'1. Order'!N549)","v":""},null,null,{"$f":"IF('1. Order'!AV549=\"\",\"\",'1. Order'!AV549)","v":""},{"$f":"IF('1. Order'!AI549=\"\",\"\",'1. Order'!AI549)","v":""}]
[{"$f":"IF('1. Order'!B550=\"\",\"\",'1. Order'!B550)","v":""},{"$f":"IF('1. Order'!J550=\"\",\"\",'1. Order'!J550)","v":""},{"$f":"IF('1. Order'!K550=\"\",\"\",'1. Order'!K550)","v":""},{"$f":"IF('1. Order'!L550=\"\",\"\",'1. Order'!L550)","v":""},{"$f":"IF('1. Order'!N550=\"\",\"\",'1. Order'!N550)","v":""},null,null,{"$f":"IF('1. Order'!AV550=\"\",\"\",'1. Order'!AV550)","v":""},{"$f":"IF('1. Order'!AI550=\"\",\"\",'1. Order'!AI550)","v":""}]
[{"$f":"IF('1. Order'!B551=\"\",\"\",'1. Order'!B551)","v":""},{"$f":"IF('1. Order'!J551=\"\",\"\",'1. Order'!J551)","v":""},{"$f":"IF('1. Order'!K551=\"\",\"\",'1. Order'!K551)","v":""},{"$f":"IF('1. Order'!L551=\"\",\"\",'1. Order'!L551)","v":""},{"$f":"IF('1. Order'!N551=\"\",\"\",'1. Order'!N551)","v":""},null,null,{"$f":"IF('1. Order'!AV551=\"\",\"\",'1. Order'!AV551)","v":""},{"$f":"IF('1. Order'!AI551=\"\",\"\",'1. Order'!AI551)","v":""}]
[{"$f":"IF('1. Order'!B552=\"\",\"\",'1. Order'!B552)","v":""},{"$f":"IF('1. Order'!J552=\"\",\"\",'1. Order'!J552)","v":""},{"$f":"IF('1. Order'!K552=\"\",\"\",'1. Order'!K552)","v":""},{"$f":"IF('1. Order'!L552=\"\",\"\",'1. Order'!L552)","v":""},{"$f":"IF('1. Order'!N552=\"\",\"\",'1. Order'!N552)","v":""},null,null,{"$f":"IF('1. Order'!AV552=\"\",\"\",'1. Order'!AV552)","v":""},{"$f":"IF('1. Order'!AI552=\"\",\"\",'1. Order'!AI552)","v":""}]
[{"$f":"IF('1. Order'!B553=\"\",\"\",'1. Order'!B553)","v":""},{"$f":"IF('1. Order'!J553=\"\",\"\",'1. Order'!J553)","v":""},{"$f":"IF('1. Order'!K553=\"\",\"\",'1. Order'!K553)","v":""},{"$f":"IF('1. Order'!L553=\"\",\"\",'1. Order'!L553)","v":""},{"$f":"IF('1. Order'!N553=\"\",\"\",'1. Order'!N553)","v":""},null,null,{"$f":"IF('1. Order'!AV553=\"\",\"\",'1. Order'!AV553)","v":""},{"$f":"IF('1. Order'!AI553=\"\",\"\",'1. Order'!AI553)","v":""}]
[{"$f":"IF('1. Order'!B554=\"\",\"\",'1. Order'!B554)","v":""},{"$f":"IF('1. Order'!J554=\"\",\"\",'1. Order'!J554)","v":""},{"$f":"IF('1. Order'!K554=\"\",\"\",'1. Order'!K554)","v":""},{"$f":"IF('1. Order'!L554=\"\",\"\",'1. Order'!L554)","v":""},{"$f":"IF('1. Order'!N554=\"\",\"\",'1. Order'!N554)","v":""},null,null,{"$f":"IF('1. Order'!AV554=\"\",\"\",'1. Order'!AV554)","v":""},{"$f":"IF('1. Order'!AI554=\"\",\"\",'1. Order'!AI554)","v":""}]
[{"$f":"IF('1. Order'!B555=\"\",\"\",'1. Order'!B555)","v":""},{"$f":"IF('1. Order'!J555=\"\",\"\",'1. Order'!J555)","v":""},{"$f":"IF('1. Order'!K555=\"\",\"\",'1. Order'!K555)","v":""},{"$f":"IF('1. Order'!L555=\"\",\"\",'1. Order'!L555)","v":""},{"$f":"IF('1. Order'!N555=\"\",\"\",'1. Order'!N555)","v":""},null,null,{"$f":"IF('1. Order'!AV555=\"\",\"\",'1. Order'!AV555)","v":""},{"$f":"IF('1. Order'!AI555=\"\",\"\",'1. Order'!AI555)","v":""}]
[{"$f":"IF('1. Order'!B556=\"\",\"\",'1. Order'!B556)","v":""},{"$f":"IF('1. Order'!J556=\"\",\"\",'1. Order'!J556)","v":""},{"$f":"IF('1. Order'!K556=\"\",\"\",'1. Order'!K556)","v":""},{"$f":"IF('1. Order'!L556=\"\",\"\",'1. Order'!L556)","v":""},{"$f":"IF('1. Order'!N556=\"\",\"\",'1. Order'!N556)","v":""},null,null,{"$f":"IF('1. Order'!AV556=\"\",\"\",'1. Order'!AV556)","v":""},{"$f":"IF('1. Order'!AI556=\"\",\"\",'1. Order'!AI556)","v":""}]
[{"$f":"IF('1. Order'!B557=\"\",\"\",'1. Order'!B557)","v":""},{"$f":"IF('1. Order'!J557=\"\",\"\",'1. Order'!J557)","v":""},{"$f":"IF('1. Order'!K557=\"\",\"\",'1. Order'!K557)","v":""},{"$f":"IF('1. Order'!L557=\"\",\"\",'1. Order'!L557)","v":""},{"$f":"IF('1. Order'!N557=\"\",\"\",'1. Order'!N557)","v":""},null,null,{"$f":"IF('1. Order'!AV557=\"\",\"\",'1. Order'!AV557)","v":""},{"$f":"IF('1. Order'!AI557=\"\",\"\",'1. Order'!AI557)","v":""}]
[{"$f":"IF('1. Order'!B558=\"\",\"\",'1. Order'!B558)","v":""},{"$f":"IF('1. Order'!J558=\"\",\"\",'1. Order'!J558)","v":""},{"$f":"IF('1. Order'!K558=\"\",\"\",'1. Order'!K558)","v":""},{"$f":"IF('1. Order'!L558=\"\",\"\",'1. Order'!L558)","v":""},{"$f":"IF('1. Order'!N558=\"\",\"\",'1. Order'!N558)","v":""},null,null,{"$f":"IF('1. Order'!AV558=\"\",\"\",'1. Order'!AV558)","v":""},{"$f":"IF('1. Order'!AI558=\"\",\"\",'1. Order'!AI558)","v":""}]
[{"$f":"IF('1. Order'!B559=\"\",\"\",'1. Order'!B559)","v":""},{"$f":"IF('1. Order'!J559=\"\",\"\",'1. Order'!J559)","v":""},{"$f":"IF('1. Order'!K559=\"\",\"\",'1. Order'!K559)","v":""},{"$f":"IF('1. Order'!L559=\"\",\"\",'1. Order'!L559)","v":""},{"$f":"IF('1. Order'!N559=\"\",\"\",'1. Order'!N559)","v":""},null,null,{"$f":"IF('1. Order'!AV559=\"\",\"\",'1. Order'!AV559)","v":""},{"$f":"IF('1. Order'!AI559=\"\",\"\",'1. Order'!AI559)","v":""}]
[{"$f":"IF('1. Order'!B560=\"\",\"\",'1. Order'!B560)","v":""},{"$f":"IF('1. Order'!J560=\"\",\"\",'1. Order'!J560)","v":""},{"$f":"IF('1. Order'!K560=\"\",\"\",'1. Order'!K560)","v":""},{"$f":"IF('1. Order'!L560=\"\",\"\",'1. Order'!L560)","v":""},{"$f":"IF('1. Order'!N560=\"\",\"\",'1. Order'!N560)","v":""},null,null,{"$f":"IF('1. Order'!AV560=\"\",\"\",'1. Order'!AV560)","v":""},{"$f":"IF('1. Order'!AI560=\"\",\"\",'1. Order'!AI560)","v":""}]
[{"$f":"IF('1. Order'!B561=\"\",\"\",'1. Order'!B561)","v":""},{"$f":"IF('1. Order'!J561=\"\",\"\",'1. Order'!J561)","v":""},{"$f":"IF('1. Order'!K561=\"\",\"\",'1. Order'!K561)","v":""},{"$f":"IF('1. Order'!L561=\"\",\"\",'1. Order'!L561)","v":""},{"$f":"IF('1. Order'!N561=\"\",\"\",'1. Order'!N561)","v":""},null,null,{"$f":"IF('1. Order'!AV561=\"\",\"\",'1. Order'!AV561)","v":""},{"$f":"IF('1. Order'!AI561=\"\",\"\",'1. Order'!AI561)","v":""}]
[{"$f":"IF('1. Order'!B562=\"\",\"\",'1. Order'!B562)","v":""},{"$f":"IF('1. Order'!J562=\"\",\"\",'1. Order'!J562)","v":""},{"$f":"IF('1. Order'!K562=\"\",\"\",'1. Order'!K562)","v":""},{"$f":"IF('1. Order'!L562=\"\",\"\",'1. Order'!L562)","v":""},{"$f":"IF('1. Order'!N562=\"\",\"\",'1. Order'!N562)","v":""},null,null,{"$f":"IF('1. Order'!AV562=\"\",\"\",'1. Order'!AV562)","v":""},{"$f":"IF('1. Order'!AI562=\"\",\"\",'1. Order'!AI562)","v":""}]
[{"$f":"IF('1. Order'!B563=\"\",\"\",'1. Order'!B563)","v":""},{"$f":"IF('1. Order'!J563=\"\",\"\",'1. Order'!J563)","v":""},{"$f":"IF('1. Order'!K563=\"\",\"\",'1. Order'!K563)","v":""},{"$f":"IF('1. Order'!L563=\"\",\"\",'1. Order'!L563)","v":""},{"$f":"IF('1. Order'!N563=\"\",\"\",'1. Order'!N563)","v":""},null,null,{"$f":"IF('1. Order'!AV563=\"\",\"\",'1. Order'!AV563)","v":""},{"$f":"IF('1. Order'!AI563=\"\",\"\",'1. Order'!AI563)","v":""}]
[{"$f":"IF('1. Order'!B564=\"\",\"\",'1. Order'!B564)","v":""},{"$f":"IF('1. Order'!J564=\"\",\"\",'1. Order'!J564)","v":""},{"$f":"IF('1. Order'!K564=\"\",\"\",'1. Order'!K564)","v":""},{"$f":"IF('1. Order'!L564=\"\",\"\",'1. Order'!L564)","v":""},{"$f":"IF('1. Order'!N564=\"\",\"\",'1. Order'!N564)","v":""},null,null,{"$f":"IF('1. Order'!AV564=\"\",\"\",'1. Order'!AV564)","v":""},{"$f":"IF('1. Order'!AI564=\"\",\"\",'1. Order'!AI564)","v":""}]
[{"$f":"IF('1. Order'!B565=\"\",\"\",'1. Order'!B565)","v":""},{"$f":"IF('1. Order'!J565=\"\",\"\",'1. Order'!J565)","v":""},{"$f":"IF('1. Order'!K565=\"\",\"\",'1. Order'!K565)","v":""},{"$f":"IF('1. Order'!L565=\"\",\"\",'1. Order'!L565)","v":""},{"$f":"IF('1. Order'!N565=\"\",\"\",'1. Order'!N565)","v":""},null,null,{"$f":"IF('1. Order'!AV565=\"\",\"\",'1. Order'!AV565)","v":""},{"$f":"IF('1. Order'!AI565=\"\",\"\",'1. Order'!AI565)","v":""}]
[{"$f":"IF('1. Order'!B566=\"\",\"\",'1. Order'!B566)","v":""},{"$f":"IF('1. Order'!J566=\"\",\"\",'1. Order'!J566)","v":""},{"$f":"IF('1. Order'!K566=\"\",\"\",'1. Order'!K566)","v":""},{"$f":"IF('1. Order'!L566=\"\",\"\",'1. Order'!L566)","v":""},{"$f":"IF('1. Order'!N566=\"\",\"\",'1. Order'!N566)","v":""},null,null,{"$f":"IF('1. Order'!AV566=\"\",\"\",'1. Order'!AV566)","v":""},{"$f":"IF('1. Order'!AI566=\"\",\"\",'1. Order'!AI566)","v":""}]
[{"$f":"IF('1. Order'!B567=\"\",\"\",'1. Order'!B567)","v":""},{"$f":"IF('1. Order'!J567=\"\",\"\",'1. Order'!J567)","v":""},{"$f":"IF('1. Order'!K567=\"\",\"\",'1. Order'!K567)","v":""},{"$f":"IF('1. Order'!L567=\"\",\"\",'1. Order'!L567)","v":""},{"$f":"IF('1. Order'!N567=\"\",\"\",'1. Order'!N567)","v":""},null,null,{"$f":"IF('1. Order'!AV567=\"\",\"\",'1. Order'!AV567)","v":""},{"$f":"IF('1. Order'!AI567=\"\",\"\",'1. Order'!AI567)","v":""}]
[{"$f":"IF('1. Order'!B568=\"\",\"\",'1. Order'!B568)","v":""},{"$f":"IF('1. Order'!J568=\"\",\"\",'1. Order'!J568)","v":""},{"$f":"IF('1. Order'!K568=\"\",\"\",'1. Order'!K568)","v":""},{"$f":"IF('1. Order'!L568=\"\",\"\",'1. Order'!L568)","v":""},{"$f":"IF('1. Order'!N568=\"\",\"\",'1. Order'!N568)","v":""},null,null,{"$f":"IF('1. Order'!AV568=\"\",\"\",'1. Order'!AV568)","v":""},{"$f":"IF('1. Order'!AI568=\"\",\"\",'1. Order'!AI568)","v":""}]
[{"$f":"IF('1. Order'!B569=\"\",\"\",'1. Order'!B569)","v":""},{"$f":"IF('1. Order'!J569=\"\",\"\",'1. Order'!J569)","v":""},{"$f":"IF('1. Order'!K569=\"\",\"\",'1. Order'!K569)","v":""},{"$f":"IF('1. Order'!L569=\"\",\"\",'1. Order'!L569)","v":""},{"$f":"IF('1. Order'!N569=\"\",\"\",'1. Order'!N569)","v":""},null,null,{"$f":"IF('1. Order'!AV569=\"\",\"\",'1. Order'!AV569)","v":""},{"$f":"IF('1. Order'!AI569=\"\",\"\",'1. Order'!AI569)","v":""}]
[{"$f":"IF('1. Order'!B570=\"\",\"\",'1. Order'!B570)","v":""},{"$f":"IF('1. Order'!J570=\"\",\"\",'1. Order'!J570)","v":""},{"$f":"IF('1. Order'!K570=\"\",\"\",'1. Order'!K570)","v":""},{"$f":"IF('1. Order'!L570=\"\",\"\",'1. Order'!L570)","v":""},{"$f":"IF('1. Order'!N570=\"\",\"\",'1. Order'!N570)","v":""},null,null,{"$f":"IF('1. Order'!AV570=\"\",\"\",'1. Order'!AV570)","v":""},{"$f":"IF('1. Order'!AI570=\"\",\"\",'1. Order'!AI570)","v":""}]
[{"$f":"IF('1. Order'!B571=\"\",\"\",'1. Order'!B571)","v":""},{"$f":"IF('1. Order'!J571=\"\",\"\",'1. Order'!J571)","v":""},{"$f":"IF('1. Order'!K571=\"\",\"\",'1. Order'!K571)","v":""},{"$f":"IF('1. Order'!L571=\"\",\"\",'1. Order'!L571)","v":""},{"$f":"IF('1. Order'!N571=\"\",\"\",'1. Order'!N571)","v":""},null,null,{"$f":"IF('1. Order'!AV571=\"\",\"\",'1. Order'!AV571)","v":""},{"$f":"IF('1. Order'!AI571=\"\",\"\",'1. Order'!AI571)","v":""}]
[{"$f":"IF('1. Order'!B572=\"\",\"\",'1. Order'!B572)","v":""},{"$f":"IF('1. Order'!J572=\"\",\"\",'1. Order'!J572)","v":""},{"$f":"IF('1. Order'!K572=\"\",\"\",'1. Order'!K572)","v":""},{"$f":"IF('1. Order'!L572=\"\",\"\",'1. Order'!L572)","v":""},{"$f":"IF('1. Order'!N572=\"\",\"\",'1. Order'!N572)","v":""},null,null,{"$f":"IF('1. Order'!AV572=\"\",\"\",'1. Order'!AV572)","v":""},{"$f":"IF('1. Order'!AI572=\"\",\"\",'1. Order'!AI572)","v":""}]
[{"$f":"IF('1. Order'!B573=\"\",\"\",'1. Order'!B573)","v":""},{"$f":"IF('1. Order'!J573=\"\",\"\",'1. Order'!J573)","v":""},{"$f":"IF('1. Order'!K573=\"\",\"\",'1. Order'!K573)","v":""},{"$f":"IF('1. Order'!L573=\"\",\"\",'1. Order'!L573)","v":""},{"$f":"IF('1. Order'!N573=\"\",\"\",'1. Order'!N573)","v":""},null,null,{"$f":"IF('1. Order'!AV573=\"\",\"\",'1. Order'!AV573)","v":""},{"$f":"IF('1. Order'!AI573=\"\",\"\",'1. Order'!AI573)","v":""}]
[{"$f":"IF('1. Order'!B574=\"\",\"\",'1. Order'!B574)","v":""},{"$f":"IF('1. Order'!J574=\"\",\"\",'1. Order'!J574)","v":""},{"$f":"IF('1. Order'!K574=\"\",\"\",'1. Order'!K574)","v":""},{"$f":"IF('1. Order'!L574=\"\",\"\",'1. Order'!L574)","v":""},{"$f":"IF('1. Order'!N574=\"\",\"\",'1. Order'!N574)","v":""},null,null,{"$f":"IF('1. Order'!AV574=\"\",\"\",'1. Order'!AV574)","v":""},{"$f":"IF('1. Order'!AI574=\"\",\"\",'1. Order'!AI574)","v":""}]
[{"$f":"IF('1. Order'!B575=\"\",\"\",'1. Order'!B575)","v":""},{"$f":"IF('1. Order'!J575=\"\",\"\",'1. Order'!J575)","v":""},{"$f":"IF('1. Order'!K575=\"\",\"\",'1. Order'!K575)","v":""},{"$f":"IF('1. Order'!L575=\"\",\"\",'1. Order'!L575)","v":""},{"$f":"IF('1. Order'!N575=\"\",\"\",'1. Order'!N575)","v":""},null,null,{"$f":"IF('1. Order'!AV575=\"\",\"\",'1. Order'!AV575)","v":""},{"$f":"IF('1. Order'!AI575=\"\",\"\",'1. Order'!AI575)","v":""}]
[{"$f":"IF('1. Order'!B576=\"\",\"\",'1. Order'!B576)","v":""},{"$f":"IF('1. Order'!J576=\"\",\"\",'1. Order'!J576)","v":""},{"$f":"IF('1. Order'!K576=\"\",\"\",'1. Order'!K576)","v":""},{"$f":"IF('1. Order'!L576=\"\",\"\",'1. Order'!L576)","v":""},{"$f":"IF('1. Order'!N576=\"\",\"\",'1. Order'!N576)","v":""},null,null,{"$f":"IF('1. Order'!AV576=\"\",\"\",'1. Order'!AV576)","v":""},{"$f":"IF('1. Order'!AI576=\"\",\"\",'1. Order'!AI576)","v":""}]
[{"$f":"IF('1. Order'!B577=\"\",\"\",'1. Order'!B577)","v":""},{"$f":"IF('1. Order'!J577=\"\",\"\",'1. Order'!J577)","v":""},{"$f":"IF('1. Order'!K577=\"\",\"\",'1. Order'!K577)","v":""},{"$f":"IF('1. Order'!L577=\"\",\"\",'1. Order'!L577)","v":""},{"$f":"IF('1. Order'!N577=\"\",\"\",'1. Order'!N577)","v":""},null,null,{"$f":"IF('1. Order'!AV577=\"\",\"\",'1. Order'!AV577)","v":""},{"$f":"IF('1. Order'!AI577=\"\",\"\",'1. Order'!AI577)","v":""}]
[{"$f":"IF('1. Order'!B578=\"\",\"\",'1. Order'!B578)","v":""},{"$f":"IF('1. Order'!J578=\"\",\"\",'1. Order'!J578)","v":""},{"$f":"IF('1. Order'!K578=\"\",\"\",'1. Order'!K578)","v":""},{"$f":"IF('1. Order'!L578=\"\",\"\",'1. Order'!L578)","v":""},{"$f":"IF('1. Order'!N578=\"\",\"\",'1. Order'!N578)","v":""},null,null,{"$f":"IF('1. Order'!AV578=\"\",\"\",'1. Order'!AV578)","v":""},{"$f":"IF('1. Order'!AI578=\"\",\"\",'1. Order'!AI578)","v":""}]
[{"$f":"IF('1. Order'!B579=\"\",\"\",'1. Order'!B579)","v":""},{"$f":"IF('1. Order'!J579=\"\",\"\",'1. Order'!J579)","v":""},{"$f":"IF('1. Order'!K579=\"\",\"\",'1. Order'!K579)","v":""},{"$f":"IF('1. Order'!L579=\"\",\"\",'1. Order'!L579)","v":""},{"$f":"IF('1. Order'!N579=\"\",\"\",'1. Order'!N579)","v":""},null,null,{"$f":"IF('1. Order'!AV579=\"\",\"\",'1. Order'!AV579)","v":""},{"$f":"IF('1. Order'!AI579=\"\",\"\",'1. Order'!AI579)","v":""}]
[{"$f":"IF('1. Order'!B580=\"\",\"\",'1. Order'!B580)","v":""},{"$f":"IF('1. Order'!J580=\"\",\"\",'1. Order'!J580)","v":""},{"$f":"IF('1. Order'!K580=\"\",\"\",'1. Order'!K580)","v":""},{"$f":"IF('1. Order'!L580=\"\",\"\",'1. Order'!L580)","v":""},{"$f":"IF('1. Order'!N580=\"\",\"\",'1. Order'!N580)","v":""},null,null,{"$f":"IF('1. Order'!AV580=\"\",\"\",'1. Order'!AV580)","v":""},{"$f":"IF('1. Order'!AI580=\"\",\"\",'1. Order'!AI580)","v":""}]
[{"$f":"IF('1. Order'!B581=\"\",\"\",'1. Order'!B581)","v":""},{"$f":"IF('1. Order'!J581=\"\",\"\",'1. Order'!J581)","v":""},{"$f":"IF('1. Order'!K581=\"\",\"\",'1. Order'!K581)","v":""},{"$f":"IF('1. Order'!L581=\"\",\"\",'1. Order'!L581)","v":""},{"$f":"IF('1. Order'!N581=\"\",\"\",'1. Order'!N581)","v":""},null,null,{"$f":"IF('1. Order'!AV581=\"\",\"\",'1. Order'!AV581)","v":""},{"$f":"IF('1. Order'!AI581=\"\",\"\",'1. Order'!AI581)","v":""}]
[{"$f":"IF('1. Order'!B582=\"\",\"\",'1. Order'!B582)","v":""},{"$f":"IF('1. Order'!J582=\"\",\"\",'1. Order'!J582)","v":""},{"$f":"IF('1. Order'!K582=\"\",\"\",'1. Order'!K582)","v":""},{"$f":"IF('1. Order'!L582=\"\",\"\",'1. Order'!L582)","v":""},{"$f":"IF('1. Order'!N582=\"\",\"\",'1. Order'!N582)","v":""},null,null,{"$f":"IF('1. Order'!AV582=\"\",\"\",'1. Order'!AV582)","v":""},{"$f":"IF('1. Order'!AI582=\"\",\"\",'1. Order'!AI582)","v":""}]
[{"$f":"IF('1. Order'!B583=\"\",\"\",'1. Order'!B583)","v":""},{"$f":"IF('1. Order'!J583=\"\",\"\",'1. Order'!J583)","v":""},{"$f":"IF('1. Order'!K583=\"\",\"\",'1. Order'!K583)","v":""},{"$f":"IF('1. Order'!L583=\"\",\"\",'1. Order'!L583)","v":""},{"$f":"IF('1. Order'!N583=\"\",\"\",'1. Order'!N583)","v":""},null,null,{"$f":"IF('1. Order'!AV583=\"\",\"\",'1. Order'!AV583)","v":""},{"$f":"IF('1. Order'!AI583=\"\",\"\",'1. Order'!AI583)","v":""}]
[{"$f":"IF('1. Order'!B584=\"\",\"\",'1. Order'!B584)","v":""},{"$f":"IF('1. Order'!J584=\"\",\"\",'1. Order'!J584)","v":""},{"$f":"IF('1. Order'!K584=\"\",\"\",'1. Order'!K584)","v":""},{"$f":"IF('1. Order'!L584=\"\",\"\",'1. Order'!L584)","v":""},{"$f":"IF('1. Order'!N584=\"\",\"\",'1. Order'!N584)","v":""},null,null,{"$f":"IF('1. Order'!AV584=\"\",\"\",'1. Order'!AV584)","v":""},{"$f":"IF('1. Order'!AI584=\"\",\"\",'1. Order'!AI584)","v":""}]
[{"$f":"IF('1. Order'!B585=\"\",\"\",'1. Order'!B585)","v":""},{"$f":"IF('1. Order'!J585=\"\",\"\",'1. Order'!J585)","v":""},{"$f":"IF('1. Order'!K585=\"\",\"\",'1. Order'!K585)","v":""},{"$f":"IF('1. Order'!L585=\"\",\"\",'1. Order'!L585)","v":""},{"$f":"IF('1. Order'!N585=\"\",\"\",'1. Order'!N585)","v":""},null,null,{"$f":"IF('1. Order'!AV585=\"\",\"\",'1. Order'!AV585)","v":""},{"$f":"IF('1. Order'!AI585=\"\",\"\",'1. Order'!AI585)","v":""}]
[{"$f":"IF('1. Order'!B586=\"\",\"\",'1. Order'!B586)","v":""},{"$f":"IF('1. Order'!J586=\"\",\"\",'1. Order'!J586)","v":""},{"$f":"IF('1. Order'!K586=\"\",\"\",'1. Order'!K586)","v":""},{"$f":"IF('1. Order'!L586=\"\",\"\",'1. Order'!L586)","v":""},{"$f":"IF('1. Order'!N586=\"\",\"\",'1. Order'!N586)","v":""},null,null,{"$f":"IF('1. Order'!AV586=\"\",\"\",'1. Order'!AV586)","v":""},{"$f":"IF('1. Order'!AI586=\"\",\"\",'1. Order'!AI586)","v":""}]
[{"$f":"IF('1. Order'!B587=\"\",\"\",'1. Order'!B587)","v":""},{"$f":"IF('1. Order'!J587=\"\",\"\",'1. Order'!J587)","v":""},{"$f":"IF('1. Order'!K587=\"\",\"\",'1. Order'!K587)","v":""},{"$f":"IF('1. Order'!L587=\"\",\"\",'1. Order'!L587)","v":""},{"$f":"IF('1. Order'!N587=\"\",\"\",'1. Order'!N587)","v":""},null,null,{"$f":"IF('1. Order'!AV587=\"\",\"\",'1. Order'!AV587)","v":""},{"$f":"IF('1. Order'!AI587=\"\",\"\",'1. Order'!AI587)","v":""}]
[{"$f":"IF('1. Order'!B588=\"\",\"\",'1. Order'!B588)","v":""},{"$f":"IF('1. Order'!J588=\"\",\"\",'1. Order'!J588)","v":""},{"$f":"IF('1. Order'!K588=\"\",\"\",'1. Order'!K588)","v":""},{"$f":"IF('1. Order'!L588=\"\",\"\",'1. Order'!L588)","v":""},{"$f":"IF('1. Order'!N588=\"\",\"\",'1. Order'!N588)","v":""},null,null,{"$f":"IF('1. Order'!AV588=\"\",\"\",'1. Order'!AV588)","v":""},{"$f":"IF('1. Order'!AI588=\"\",\"\",'1. Order'!AI588)","v":""}]
[{"$f":"IF('1. Order'!B589=\"\",\"\",'1. Order'!B589)","v":""},{"$f":"IF('1. Order'!J589=\"\",\"\",'1. Order'!J589)","v":""},{"$f":"IF('1. Order'!K589=\"\",\"\",'1. Order'!K589)","v":""},{"$f":"IF('1. Order'!L589=\"\",\"\",'1. Order'!L589)","v":""},{"$f":"IF('1. Order'!N589=\"\",\"\",'1. Order'!N589)","v":""},null,null,{"$f":"IF('1. Order'!AV589=\"\",\"\",'1. Order'!AV589)","v":""},{"$f":"IF('1. Order'!AI589=\"\",\"\",'1. Order'!AI589)","v":""}]
[{"$f":"IF('1. Order'!B590=\"\",\"\",'1. Order'!B590)","v":""},{"$f":"IF('1. Order'!J590=\"\",\"\",'1. Order'!J590)","v":""},{"$f":"IF('1. Order'!K590=\"\",\"\",'1. Order'!K590)","v":""},{"$f":"IF('1. Order'!L590=\"\",\"\",'1. Order'!L590)","v":""},{"$f":"IF('1. Order'!N590=\"\",\"\",'1. Order'!N590)","v":""},null,null,{"$f":"IF('1. Order'!AV590=\"\",\"\",'1. Order'!AV590)","v":""},{"$f":"IF('1. Order'!AI590=\"\",\"\",'1. Order'!AI590)","v":""}]
[{"$f":"IF('1. Order'!B591=\"\",\"\",'1. Order'!B591)","v":""},{"$f":"IF('1. Order'!J591=\"\",\"\",'1. Order'!J591)","v":""},{"$f":"IF('1. Order'!K591=\"\",\"\",'1. Order'!K591)","v":""},{"$f":"IF('1. Order'!L591=\"\",\"\",'1. Order'!L591)","v":""},{"$f":"IF('1. Order'!N591=\"\",\"\",'1. Order'!N591)","v":""},null,null,{"$f":"IF('1. Order'!AV591=\"\",\"\",'1. Order'!AV591)","v":""},{"$f":"IF('1. Order'!AI591=\"\",\"\",'1. Order'!AI591)","v":""}]
[{"$f":"IF('1. Order'!B592=\"\",\"\",'1. Order'!B592)","v":""},{"$f":"IF('1. Order'!J592=\"\",\"\",'1. Order'!J592)","v":""},{"$f":"IF('1. Order'!K592=\"\",\"\",'1. Order'!K592)","v":""},{"$f":"IF('1. Order'!L592=\"\",\"\",'1. Order'!L592)","v":""},{"$f":"IF('1. Order'!N592=\"\",\"\",'1. Order'!N592)","v":""},null,null,{"$f":"IF('1. Order'!AV592=\"\",\"\",'1. Order'!AV592)","v":""},{"$f":"IF('1. Order'!AI592=\"\",\"\",'1. Order'!AI592)","v":""}]
[{"$f":"IF('1. Order'!B593=\"\",\"\",'1. Order'!B593)","v":""},{"$f":"IF('1. Order'!J593=\"\",\"\",'1. Order'!J593)","v":""},{"$f":"IF('1. Order'!K593=\"\",\"\",'1. Order'!K593)","v":""},{"$f":"IF('1. Order'!L593=\"\",\"\",'1. Order'!L593)","v":""},{"$f":"IF('1. Order'!N593=\"\",\"\",'1. Order'!N593)","v":""},null,null,{"$f":"IF('1. Order'!AV593=\"\",\"\",'1. Order'!AV593)","v":""},{"$f":"IF('1. Order'!AI593=\"\",\"\",'1. Order'!AI593)","v":""}]
[{"$f":"IF('1. Order'!B594=\"\",\"\",'1. Order'!B594)","v":""},{"$f":"IF('1. Order'!J594=\"\",\"\",'1. Order'!J594)","v":""},{"$f":"IF('1. Order'!K594=\"\",\"\",'1. Order'!K594)","v":""},{"$f":"IF('1. Order'!L594=\"\",\"\",'1. Order'!L594)","v":""},{"$f":"IF('1. Order'!N594=\"\",\"\",'1. Order'!N594)","v":""},null,null,{"$f":"IF('1. Order'!AV594=\"\",\"\",'1. Order'!AV594)","v":""},{"$f":"IF('1. Order'!AI594=\"\",\"\",'1. Order'!AI594)","v":""}]
[{"$f":"IF('1. Order'!B595=\"\",\"\",'1. Order'!B595)","v":""},{"$f":"IF('1. Order'!J595=\"\",\"\",'1. Order'!J595)","v":""},{"$f":"IF('1. Order'!K595=\"\",\"\",'1. Order'!K595)","v":""},{"$f":"IF('1. Order'!L595=\"\",\"\",'1. Order'!L595)","v":""},{"$f":"IF('1. Order'!N595=\"\",\"\",'1. Order'!N595)","v":""},null,null,{"$f":"IF('1. Order'!AV595=\"\",\"\",'1. Order'!AV595)","v":""},{"$f":"IF('1. Order'!AI595=\"\",\"\",'1. Order'!AI595)","v":""}]
[{"$f":"IF('1. Order'!B596=\"\",\"\",'1. Order'!B596)","v":""},{"$f":"IF('1. Order'!J596=\"\",\"\",'1. Order'!J596)","v":""},{"$f":"IF('1. Order'!K596=\"\",\"\",'1. Order'!K596)","v":""},{"$f":"IF('1. Order'!L596=\"\",\"\",'1. Order'!L596)","v":""},{"$f":"IF('1. Order'!N596=\"\",\"\",'1. Order'!N596)","v":""},null,null,{"$f":"IF('1. Order'!AV596=\"\",\"\",'1. Order'!AV596)","v":""},{"$f":"IF('1. Order'!AI596=\"\",\"\",'1. Order'!AI596)","v":""}]
[{"$f":"IF('1. Order'!B597=\"\",\"\",'1. Order'!B597)","v":""},{"$f":"IF('1. Order'!J597=\"\",\"\",'1. Order'!J597)","v":""},{"$f":"IF('1. Order'!K597=\"\",\"\",'1. Order'!K597)","v":""},{"$f":"IF('1. Order'!L597=\"\",\"\",'1. Order'!L597)","v":""},{"$f":"IF('1. Order'!N597=\"\",\"\",'1. Order'!N597)","v":""},null,null,{"$f":"IF('1. Order'!AV597=\"\",\"\",'1. Order'!AV597)","v":""},{"$f":"IF('1. Order'!AI597=\"\",\"\",'1. Order'!AI597)","v":""}]
[{"$f":"IF('1. Order'!B598=\"\",\"\",'1. Order'!B598)","v":""},{"$f":"IF('1. Order'!J598=\"\",\"\",'1. Order'!J598)","v":""},{"$f":"IF('1. Order'!K598=\"\",\"\",'1. Order'!K598)","v":""},{"$f":"IF('1. Order'!L598=\"\",\"\",'1. Order'!L598)","v":""},{"$f":"IF('1. Order'!N598=\"\",\"\",'1. Order'!N598)","v":""},null,null,{"$f":"IF('1. Order'!AV598=\"\",\"\",'1. Order'!AV598)","v":""},{"$f":"IF('1. Order'!AI598=\"\",\"\",'1. Order'!AI598)","v":""}]
[{"$f":"IF('1. Order'!B599=\"\",\"\",'1. Order'!B599)","v":""},{"$f":"IF('1. Order'!J599=\"\",\"\",'1. Order'!J599)","v":""},{"$f":"IF('1. Order'!K599=\"\",\"\",'1. Order'!K599)","v":""},{"$f":"IF('1. Order'!L599=\"\",\"\",'1. Order'!L599)","v":""},{"$f":"IF('1. Order'!N599=\"\",\"\",'1. Order'!N599)","v":""},null,null,{"$f":"IF('1. Order'!AV599=\"\",\"\",'1. Order'!AV599)","v":""},{"$f":"IF('1. Order'!AI599=\"\",\"\",'1. Order'!AI599)","v":""}]
[{"$f":"IF('1. Order'!B600=\"\",\"\",'1. Order'!B600)","v":""},{"$f":"IF('1. Order'!J600=\"\",\"\",'1. Order'!J600)","v":""},{"$f":"IF('1. Order'!K600=\"\",\"\",'1. Order'!K600)","v":""},{"$f":"IF('1. Order'!L600=\"\",\"\",'1. Order'!L600)","v":""},{"$f":"IF('1. Order'!N600=\"\",\"\",'1. Order'!N600)","v":""},null,null,{"$f":"IF('1. Order'!AV600=\"\",\"\",'1. Order'!AV600)","v":""},{"$f":"IF('1. Order'!AI600=\"\",\"\",'1. Order'!AI600)","v":""}]
[{"$f":"IF('1. Order'!B601=\"\",\"\",'1. Order'!B601)","v":""},{"$f":"IF('1. Order'!J601=\"\",\"\",'1. Order'!J601)","v":""},{"$f":"IF('1. Order'!K601=\"\",\"\",'1. Order'!K601)","v":""},{"$f":"IF('1. Order'!L601=\"\",\"\",'1. Order'!L601)","v":""},{"$f":"IF('1. Order'!N601=\"\",\"\",'1. Order'!N601)","v":""},null,null,{"$f":"IF('1. Order'!AV601=\"\",\"\",'1. Order'!AV601)","v":""},{"$f":"IF('1. Order'!AI601=\"\",\"\",'1. Order'!AI601)","v":""}]
[{"$f":"IF('1. Order'!B602=\"\",\"\",'1. Order'!B602)","v":""},{"$f":"IF('1. Order'!J602=\"\",\"\",'1. Order'!J602)","v":""},{"$f":"IF('1. Order'!K602=\"\",\"\",'1. Order'!K602)","v":""},{"$f":"IF('1. Order'!L602=\"\",\"\",'1. Order'!L602)","v":""},{"$f":"IF('1. Order'!N602=\"\",\"\",'1. Order'!N602)","v":""},null,null,{"$f":"IF('1. Order'!AV602=\"\",\"\",'1. Order'!AV602)","v":""},{"$f":"IF('1. Order'!AI602=\"\",\"\",'1. Order'!AI602)","v":""}]
[{"$f":"IF('1. Order'!B603=\"\",\"\",'1. Order'!B603)","v":""},{"$f":"IF('1. Order'!J603=\"\",\"\",'1. Order'!J603)","v":""},{"$f":"IF('1. Order'!K603=\"\",\"\",'1. Order'!K603)","v":""},{"$f":"IF('1. Order'!L603=\"\",\"\",'1. Order'!L603)","v":""},{"$f":"IF('1. Order'!N603=\"\",\"\",'1. Order'!N603)","v":""},null,null,{"$f":"IF('1. Order'!AV603=\"\",\"\",'1. Order'!AV603)","v":""},{"$f":"IF('1. Order'!AI603=\"\",\"\",'1. Order'!AI603)","v":""}]
[{"$f":"IF('1. Order'!B604=\"\",\"\",'1. Order'!B604)","v":""},{"$f":"IF('1. Order'!J604=\"\",\"\",'1. Order'!J604)","v":""},{"$f":"IF('1. Order'!K604=\"\",\"\",'1. Order'!K604)","v":""},{"$f":"IF('1. Order'!L604=\"\",\"\",'1. Order'!L604)","v":""},{"$f":"IF('1. Order'!N604=\"\",\"\",'1. Order'!N604)","v":""},null,null,{"$f":"IF('1. Order'!AV604=\"\",\"\",'1. Order'!AV604)","v":""},{"$f":"IF('1. Order'!AI604=\"\",\"\",'1. Order'!AI604)","v":""}]
[{"$f":"IF('1. Order'!B605=\"\",\"\",'1. Order'!B605)","v":""},{"$f":"IF('1. Order'!J605=\"\",\"\",'1. Order'!J605)","v":""},{"$f":"IF('1. Order'!K605=\"\",\"\",'1. Order'!K605)","v":""},{"$f":"IF('1. Order'!L605=\"\",\"\",'1. Order'!L605)","v":""},{"$f":"IF('1. Order'!N605=\"\",\"\",'1. Order'!N605)","v":""},null,null,{"$f":"IF('1. Order'!AV605=\"\",\"\",'1. Order'!AV605)","v":""},{"$f":"IF('1. Order'!AI605=\"\",\"\",'1. Order'!AI605)","v":""}]
[{"$f":"IF('1. Order'!B606=\"\",\"\",'1. Order'!B606)","v":""},{"$f":"IF('1. Order'!J606=\"\",\"\",'1. Order'!J606)","v":""},{"$f":"IF('1. Order'!K606=\"\",\"\",'1. Order'!K606)","v":""},{"$f":"IF('1. Order'!L606=\"\",\"\",'1. Order'!L606)","v":""},{"$f":"IF('1. Order'!N606=\"\",\"\",'1. Order'!N606)","v":""},null,null,{"$f":"IF('1. Order'!AV606=\"\",\"\",'1. Order'!AV606)","v":""},{"$f":"IF('1. Order'!AI606=\"\",\"\",'1. Order'!AI606)","v":""}]
[{"$f":"IF('1. Order'!B607=\"\",\"\",'1. Order'!B607)","v":""},{"$f":"IF('1. Order'!J607=\"\",\"\",'1. Order'!J607)","v":""},{"$f":"IF('1. Order'!K607=\"\",\"\",'1. Order'!K607)","v":""},{"$f":"IF('1. Order'!L607=\"\",\"\",'1. Order'!L607)","v":""},{"$f":"IF('1. Order'!N607=\"\",\"\",'1. Order'!N607)","v":""},null,null,{"$f":"IF('1. Order'!AV607=\"\",\"\",'1. Order'!AV607)","v":""},{"$f":"IF('1. Order'!AI607=\"\",\"\",'1. Order'!AI607)","v":""}]
[{"$f":"IF('1. Order'!B608=\"\",\"\",'1. Order'!B608)","v":""},{"$f":"IF('1. Order'!J608=\"\",\"\",'1. Order'!J608)","v":""},{"$f":"IF('1. Order'!K608=\"\",\"\",'1. Order'!K608)","v":""},{"$f":"IF('1. Order'!L608=\"\",\"\",'1. Order'!L608)","v":""},{"$f":"IF('1. Order'!N608=\"\",\"\",'1. Order'!N608)","v":""},null,null,{"$f":"IF('1. Order'!AV608=\"\",\"\",'1. Order'!AV608)","v":""},{"$f":"IF('1. Order'!AI608=\"\",\"\",'1. Order'!AI608)","v":""}]
[{"$f":"IF('1. Order'!B609=\"\",\"\",'1. Order'!B609)","v":""},{"$f":"IF('1. Order'!J609=\"\",\"\",'1. Order'!J609)","v":""},{"$f":"IF('1. Order'!K609=\"\",\"\",'1. Order'!K609)","v":""},{"$f":"IF('1. Order'!L609=\"\",\"\",'1. Order'!L609)","v":""},{"$f":"IF('1. Order'!N609=\"\",\"\",'1. Order'!N609)","v":""},null,null,{"$f":"IF('1. Order'!AV609=\"\",\"\",'1. Order'!AV609)","v":""},{"$f":"IF('1. Order'!AI609=\"\",\"\",'1. Order'!AI609)","v":""}]
[{"$f":"IF('1. Order'!B610=\"\",\"\",'1. Order'!B610)","v":""},{"$f":"IF('1. Order'!J610=\"\",\"\",'1. Order'!J610)","v":""},{"$f":"IF('1. Order'!K610=\"\",\"\",'1. Order'!K610)","v":""},{"$f":"IF('1. Order'!L610=\"\",\"\",'1. Order'!L610)","v":""},{"$f":"IF('1. Order'!N610=\"\",\"\",'1. Order'!N610)","v":""},null,null,{"$f":"IF('1. Order'!AV610=\"\",\"\",'1. Order'!AV610)","v":""},{"$f":"IF('1. Order'!AI610=\"\",\"\",'1. Order'!AI610)","v":""}]
[{"$f":"IF('1. Order'!B611=\"\",\"\",'1. Order'!B611)","v":""},{"$f":"IF('1. Order'!J611=\"\",\"\",'1. Order'!J611)","v":""},{"$f":"IF('1. Order'!K611=\"\",\"\",'1. Order'!K611)","v":""},{"$f":"IF('1. Order'!L611=\"\",\"\",'1. Order'!L611)","v":""},{"$f":"IF('1. Order'!N611=\"\",\"\",'1. Order'!N611)","v":""},null,null,{"$f":"IF('1. Order'!AV611=\"\",\"\",'1. Order'!AV611)","v":""},{"$f":"IF('1. Order'!AI611=\"\",\"\",'1. Order'!AI611)","v":""}]
[{"$f":"IF('1. Order'!B612=\"\",\"\",'1. Order'!B612)","v":""},{"$f":"IF('1. Order'!J612=\"\",\"\",'1. Order'!J612)","v":""},{"$f":"IF('1. Order'!K612=\"\",\"\",'1. Order'!K612)","v":""},{"$f":"IF('1. Order'!L612=\"\",\"\",'1. Order'!L612)","v":""},{"$f":"IF('1. Order'!N612=\"\",\"\",'1. Order'!N612)","v":""},null,null,{"$f":"IF('1. Order'!AV612=\"\",\"\",'1. Order'!AV612)","v":""},{"$f":"IF('1. Order'!AI612=\"\",\"\",'1. Order'!AI612)","v":""}]
[{"$f":"IF('1. Order'!B613=\"\",\"\",'1. Order'!B613)","v":""},{"$f":"IF('1. Order'!J613=\"\",\"\",'1. Order'!J613)","v":""},{"$f":"IF('1. Order'!K613=\"\",\"\",'1. Order'!K613)","v":""},{"$f":"IF('1. Order'!L613=\"\",\"\",'1. Order'!L613)","v":""},{"$f":"IF('1. Order'!N613=\"\",\"\",'1. Order'!N613)","v":""},null,null,{"$f":"IF('1. Order'!AV613=\"\",\"\",'1. Order'!AV613)","v":""},{"$f":"IF('1. Order'!AI613=\"\",\"\",'1. Order'!AI613)","v":""}]
[{"$f":"IF('1. Order'!B614=\"\",\"\",'1. Order'!B614)","v":""},{"$f":"IF('1. Order'!J614=\"\",\"\",'1. Order'!J614)","v":""},{"$f":"IF('1. Order'!K614=\"\",\"\",'1. Order'!K614)","v":""},{"$f":"IF('1. Order'!L614=\"\",\"\",'1. Order'!L614)","v":""},{"$f":"IF('1. Order'!N614=\"\",\"\",'1. Order'!N614)","v":""},null,null,{"$f":"IF('1. Order'!AV614=\"\",\"\",'1. Order'!AV614)","v":""},{"$f":"IF('1. Order'!AI614=\"\",\"\",'1. Order'!AI614)","v":""}]
[{"$f":"IF('1. Order'!B615=\"\",\"\",'1. Order'!B615)","v":""},{"$f":"IF('1. Order'!J615=\"\",\"\",'1. Order'!J615)","v":""},{"$f":"IF('1. Order'!K615=\"\",\"\",'1. Order'!K615)","v":""},{"$f":"IF('1. Order'!L615=\"\",\"\",'1. Order'!L615)","v":""},{"$f":"IF('1. Order'!N615=\"\",\"\",'1. Order'!N615)","v":""},null,null,{"$f":"IF('1. Order'!AV615=\"\",\"\",'1. Order'!AV615)","v":""},{"$f":"IF('1. Order'!AI615=\"\",\"\",'1. Order'!AI615)","v":""}]
[{"$f":"IF('1. Order'!B616=\"\",\"\",'1. Order'!B616)","v":""},{"$f":"IF('1. Order'!J616=\"\",\"\",'1. Order'!J616)","v":""},{"$f":"IF('1. Order'!K616=\"\",\"\",'1. Order'!K616)","v":""},{"$f":"IF('1. Order'!L616=\"\",\"\",'1. Order'!L616)","v":""},{"$f":"IF('1. Order'!N616=\"\",\"\",'1. Order'!N616)","v":""},null,null,{"$f":"IF('1. Order'!AV616=\"\",\"\",'1. Order'!AV616)","v":""},{"$f":"IF('1. Order'!AI616=\"\",\"\",'1. Order'!AI616)","v":""}]
[{"$f":"IF('1. Order'!B617=\"\",\"\",'1. Order'!B617)","v":""},{"$f":"IF('1. Order'!J617=\"\",\"\",'1. Order'!J617)","v":""},{"$f":"IF('1. Order'!K617=\"\",\"\",'1. Order'!K617)","v":""},{"$f":"IF('1. Order'!L617=\"\",\"\",'1. Order'!L617)","v":""},{"$f":"IF('1. Order'!N617=\"\",\"\",'1. Order'!N617)","v":""},null,null,{"$f":"IF('1. Order'!AV617=\"\",\"\",'1. Order'!AV617)","v":""},{"$f":"IF('1. Order'!AI617=\"\",\"\",'1. Order'!AI617)","v":""}]
[{"$f":"IF('1. Order'!B618=\"\",\"\",'1. Order'!B618)","v":""},{"$f":"IF('1. Order'!J618=\"\",\"\",'1. Order'!J618)","v":""},{"$f":"IF('1. Order'!K618=\"\",\"\",'1. Order'!K618)","v":""},{"$f":"IF('1. Order'!L618=\"\",\"\",'1. Order'!L618)","v":""},{"$f":"IF('1. Order'!N618=\"\",\"\",'1. Order'!N618)","v":""},null,null,{"$f":"IF('1. Order'!AV618=\"\",\"\",'1. Order'!AV618)","v":""},{"$f":"IF('1. Order'!AI618=\"\",\"\",'1. Order'!AI618)","v":""}]
[{"$f":"IF('1. Order'!B619=\"\",\"\",'1. Order'!B619)","v":""},{"$f":"IF('1. Order'!J619=\"\",\"\",'1. Order'!J619)","v":""},{"$f":"IF('1. Order'!K619=\"\",\"\",'1. Order'!K619)","v":""},{"$f":"IF('1. Order'!L619=\"\",\"\",'1. Order'!L619)","v":""},{"$f":"IF('1. Order'!N619=\"\",\"\",'1. Order'!N619)","v":""},null,null,{"$f":"IF('1. Order'!AV619=\"\",\"\",'1. Order'!AV619)","v":""},{"$f":"IF('1. Order'!AI619=\"\",\"\",'1. Order'!AI619)","v":""}]
[{"$f":"IF('1. Order'!B620=\"\",\"\",'1. Order'!B620)","v":""},{"$f":"IF('1. Order'!J620=\"\",\"\",'1. Order'!J620)","v":""},{"$f":"IF('1. Order'!K620=\"\",\"\",'1. Order'!K620)","v":""},{"$f":"IF('1. Order'!L620=\"\",\"\",'1. Order'!L620)","v":""},{"$f":"IF('1. Order'!N620=\"\",\"\",'1. Order'!N620)","v":""},null,null,{"$f":"IF('1. Order'!AV620=\"\",\"\",'1. Order'!AV620)","v":""},{"$f":"IF('1. Order'!AI620=\"\",\"\",'1. Order'!AI620)","v":""}]
[{"$f":"IF('1. Order'!B621=\"\",\"\",'1. Order'!B621)","v":""},{"$f":"IF('1. Order'!J621=\"\",\"\",'1. Order'!J621)","v":""},{"$f":"IF('1. Order'!K621=\"\",\"\",'1. Order'!K621)","v":""},{"$f":"IF('1. Order'!L621=\"\",\"\",'1. Order'!L621)","v":""},{"$f":"IF('1. Order'!N621=\"\",\"\",'1. Order'!N621)","v":""},null,null,{"$f":"IF('1. Order'!AV621=\"\",\"\",'1. Order'!AV621)","v":""},{"$f":"IF('1. Order'!AI621=\"\",\"\",'1. Order'!AI621)","v":""}]
[{"$f":"IF('1. Order'!B622=\"\",\"\",'1. Order'!B622)","v":""},{"$f":"IF('1. Order'!J622=\"\",\"\",'1. Order'!J622)","v":""},{"$f":"IF('1. Order'!K622=\"\",\"\",'1. Order'!K622)","v":""},{"$f":"IF('1. Order'!L622=\"\",\"\",'1. Order'!L622)","v":""},{"$f":"IF('1. Order'!N622=\"\",\"\",'1. Order'!N622)","v":""},null,null,{"$f":"IF('1. Order'!AV622=\"\",\"\",'1. Order'!AV622)","v":""},{"$f":"IF('1. Order'!AI622=\"\",\"\",'1. Order'!AI622)","v":""}]
[{"$f":"IF('1. Order'!B623=\"\",\"\",'1. Order'!B623)","v":""},{"$f":"IF('1. Order'!J623=\"\",\"\",'1. Order'!J623)","v":""},{"$f":"IF('1. Order'!K623=\"\",\"\",'1. Order'!K623)","v":""},{"$f":"IF('1. Order'!L623=\"\",\"\",'1. Order'!L623)","v":""},{"$f":"IF('1. Order'!N623=\"\",\"\",'1. Order'!N623)","v":""},null,null,{"$f":"IF('1. Order'!AV623=\"\",\"\",'1. Order'!AV623)","v":""},{"$f":"IF('1. Order'!AI623=\"\",\"\",'1. Order'!AI623)","v":""}]
[{"$f":"IF('1. Order'!B624=\"\",\"\",'1. Order'!B624)","v":""},{"$f":"IF('1. Order'!J624=\"\",\"\",'1. Order'!J624)","v":""},{"$f":"IF('1. Order'!K624=\"\",\"\",'1. Order'!K624)","v":""},{"$f":"IF('1. Order'!L624=\"\",\"\",'1. Order'!L624)","v":""},{"$f":"IF('1. Order'!N624=\"\",\"\",'1. Order'!N624)","v":""},null,null,{"$f":"IF('1. Order'!AV624=\"\",\"\",'1. Order'!AV624)","v":""},{"$f":"IF('1. Order'!AI624=\"\",\"\",'1. Order'!AI624)","v":""}]
[{"$f":"IF('1. Order'!B625=\"\",\"\",'1. Order'!B625)","v":""},{"$f":"IF('1. Order'!J625=\"\",\"\",'1. Order'!J625)","v":""},{"$f":"IF('1. Order'!K625=\"\",\"\",'1. Order'!K625)","v":""},{"$f":"IF('1. Order'!L625=\"\",\"\",'1. Order'!L625)","v":""},{"$f":"IF('1. Order'!N625=\"\",\"\",'1. Order'!N625)","v":""},null,null,{"$f":"IF('1. Order'!AV625=\"\",\"\",'1. Order'!AV625)","v":""},{"$f":"IF('1. Order'!AI625=\"\",\"\",'1. Order'!AI625)","v":""}]
[{"$f":"IF('1. Order'!B626=\"\",\"\",'1. Order'!B626)","v":""},{"$f":"IF('1. Order'!J626=\"\",\"\",'1. Order'!J626)","v":""},{"$f":"IF('1. Order'!K626=\"\",\"\",'1. Order'!K626)","v":""},{"$f":"IF('1. Order'!L626=\"\",\"\",'1. Order'!L626)","v":""},{"$f":"IF('1. Order'!N626=\"\",\"\",'1. Order'!N626)","v":""},null,null,{"$f":"IF('1. Order'!AV626=\"\",\"\",'1. Order'!AV626)","v":""},{"$f":"IF('1. Order'!AI626=\"\",\"\",'1. Order'!AI626)","v":""}]
[{"$f":"IF('1. Order'!B627=\"\",\"\",'1. Order'!B627)","v":""},{"$f":"IF('1. Order'!J627=\"\",\"\",'1. Order'!J627)","v":""},{"$f":"IF('1. Order'!K627=\"\",\"\",'1. Order'!K627)","v":""},{"$f":"IF('1. Order'!L627=\"\",\"\",'1. Order'!L627)","v":""},{"$f":"IF('1. Order'!N627=\"\",\"\",'1. Order'!N627)","v":""},null,null,{"$f":"IF('1. Order'!AV627=\"\",\"\",'1. Order'!AV627)","v":""},{"$f":"IF('1. Order'!AI627=\"\",\"\",'1. Order'!AI627)","v":""}]
[{"$f":"IF('1. Order'!B628=\"\",\"\",'1. Order'!B628)","v":""},{"$f":"IF('1. Order'!J628=\"\",\"\",'1. Order'!J628)","v":""},{"$f":"IF('1. Order'!K628=\"\",\"\",'1. Order'!K628)","v":""},{"$f":"IF('1. Order'!L628=\"\",\"\",'1. Order'!L628)","v":""},{"$f":"IF('1. Order'!N628=\"\",\"\",'1. Order'!N628)","v":""},null,null,{"$f":"IF('1. Order'!AV628=\"\",\"\",'1. Order'!AV628)","v":""},{"$f":"IF('1. Order'!AI628=\"\",\"\",'1. Order'!AI628)","v":""}]
[{"$f":"IF('1. Order'!B629=\"\",\"\",'1. Order'!B629)","v":""},{"$f":"IF('1. Order'!J629=\"\",\"\",'1. Order'!J629)","v":""},{"$f":"IF('1. Order'!K629=\"\",\"\",'1. Order'!K629)","v":""},{"$f":"IF('1. Order'!L629=\"\",\"\",'1. Order'!L629)","v":""},{"$f":"IF('1. Order'!N629=\"\",\"\",'1. Order'!N629)","v":""},null,null,{"$f":"IF('1. Order'!AV629=\"\",\"\",'1. Order'!AV629)","v":""},{"$f":"IF('1. Order'!AI629=\"\",\"\",'1. Order'!AI629)","v":""}]
[{"$f":"IF('1. Order'!B630=\"\",\"\",'1. Order'!B630)","v":""},{"$f":"IF('1. Order'!J630=\"\",\"\",'1. Order'!J630)","v":""},{"$f":"IF('1. Order'!K630=\"\",\"\",'1. Order'!K630)","v":""},{"$f":"IF('1. Order'!L630=\"\",\"\",'1. Order'!L630)","v":""},{"$f":"IF('1. Order'!N630=\"\",\"\",'1. Order'!N630)","v":""},null,null,{"$f":"IF('1. Order'!AV630=\"\",\"\",'1. Order'!AV630)","v":""},{"$f":"IF('1. Order'!AI630=\"\",\"\",'1. Order'!AI630)","v":""}]
[{"$f":"IF('1. Order'!B631=\"\",\"\",'1. Order'!B631)","v":""},{"$f":"IF('1. Order'!J631=\"\",\"\",'1. Order'!J631)","v":""},{"$f":"IF('1. Order'!K631=\"\",\"\",'1. Order'!K631)","v":""},{"$f":"IF('1. Order'!L631=\"\",\"\",'1. Order'!L631)","v":""},{"$f":"IF('1. Order'!N631=\"\",\"\",'1. Order'!N631)","v":""},null,null,{"$f":"IF('1. Order'!AV631=\"\",\"\",'1. Order'!AV631)","v":""},{"$f":"IF('1. Order'!AI631=\"\",\"\",'1. Order'!AI631)","v":""}]
[{"$f":"IF('1. Order'!B632=\"\",\"\",'1. Order'!B632)","v":""},{"$f":"IF('1. Order'!J632=\"\",\"\",'1. Order'!J632)","v":""},{"$f":"IF('1. Order'!K632=\"\",\"\",'1. Order'!K632)","v":""},{"$f":"IF('1. Order'!L632=\"\",\"\",'1. Order'!L632)","v":""},{"$f":"IF('1. Order'!N632=\"\",\"\",'1. Order'!N632)","v":""},null,null,{"$f":"IF('1. Order'!AV632=\"\",\"\",'1. Order'!AV632)","v":""},{"$f":"IF('1. Order'!AI632=\"\",\"\",'1. Order'!AI632)","v":""}]
[{"$f":"IF('1. Order'!B633=\"\",\"\",'1. Order'!B633)","v":""},{"$f":"IF('1. Order'!J633=\"\",\"\",'1. Order'!J633)","v":""},{"$f":"IF('1. Order'!K633=\"\",\"\",'1. Order'!K633)","v":""},{"$f":"IF('1. Order'!L633=\"\",\"\",'1. Order'!L633)","v":""},{"$f":"IF('1. Order'!N633=\"\",\"\",'1. Order'!N633)","v":""},null,null,{"$f":"IF('1. Order'!AV633=\"\",\"\",'1. Order'!AV633)","v":""},{"$f":"IF('1. Order'!AI633=\"\",\"\",'1. Order'!AI633)","v":""}]
[{"$f":"IF('1. Order'!B634=\"\",\"\",'1. Order'!B634)","v":""},{"$f":"IF('1. Order'!J634=\"\",\"\",'1. Order'!J634)","v":""},{"$f":"IF('1. Order'!K634=\"\",\"\",'1. Order'!K634)","v":""},{"$f":"IF('1. Order'!L634=\"\",\"\",'1. Order'!L634)","v":""},{"$f":"IF('1. Order'!N634=\"\",\"\",'1. Order'!N634)","v":""},null,null,{"$f":"IF('1. Order'!AV634=\"\",\"\",'1. Order'!AV634)","v":""},{"$f":"IF('1. Order'!AI634=\"\",\"\",'1. Order'!AI634)","v":""}]
[{"$f":"IF('1. Order'!B635=\"\",\"\",'1. Order'!B635)","v":""},{"$f":"IF('1. Order'!J635=\"\",\"\",'1. Order'!J635)","v":""},{"$f":"IF('1. Order'!K635=\"\",\"\",'1. Order'!K635)","v":""},{"$f":"IF('1. Order'!L635=\"\",\"\",'1. Order'!L635)","v":""},{"$f":"IF('1. Order'!N635=\"\",\"\",'1. Order'!N635)","v":""},null,null,{"$f":"IF('1. Order'!AV635=\"\",\"\",'1. Order'!AV635)","v":""},{"$f":"IF('1. Order'!AI635=\"\",\"\",'1. Order'!AI635)","v":""}]
[{"$f":"IF('1. Order'!B636=\"\",\"\",'1. Order'!B636)","v":""},{"$f":"IF('1. Order'!J636=\"\",\"\",'1. Order'!J636)","v":""},{"$f":"IF('1. Order'!K636=\"\",\"\",'1. Order'!K636)","v":""},{"$f":"IF('1. Order'!L636=\"\",\"\",'1. Order'!L636)","v":""},{"$f":"IF('1. Order'!N636=\"\",\"\",'1. Order'!N636)","v":""},null,null,{"$f":"IF('1. Order'!AV636=\"\",\"\",'1. Order'!AV636)","v":""},{"$f":"IF('1. Order'!AI636=\"\",\"\",'1. Order'!AI636)","v":""}]
[{"$f":"IF('1. Order'!B637=\"\",\"\",'1. Order'!B637)","v":""},{"$f":"IF('1. Order'!J637=\"\",\"\",'1. Order'!J637)","v":""},{"$f":"IF('1. Order'!K637=\"\",\"\",'1. Order'!K637)","v":""},{"$f":"IF('1. Order'!L637=\"\",\"\",'1. Order'!L637)","v":""},{"$f":"IF('1. Order'!N637=\"\",\"\",'1. Order'!N637)","v":""},null,null,{"$f":"IF('1. Order'!AV637=\"\",\"\",'1. Order'!AV637)","v":""},{"$f":"IF('1. Order'!AI637=\"\",\"\",'1. Order'!AI637)","v":""}]
[{"$f":"IF('1. Order'!B638=\"\",\"\",'1. Order'!B638)","v":""},{"$f":"IF('1. Order'!J638=\"\",\"\",'1. Order'!J638)","v":""},{"$f":"IF('1. Order'!K638=\"\",\"\",'1. Order'!K638)","v":""},{"$f":"IF('1. Order'!L638=\"\",\"\",'1. Order'!L638)","v":""},{"$f":"IF('1. Order'!N638=\"\",\"\",'1. Order'!N638)","v":""},null,null,{"$f":"IF('1. Order'!AV638=\"\",\"\",'1. Order'!AV638)","v":""},{"$f":"IF('1. Order'!AI638=\"\",\"\",'1. Order'!AI638)","v":""}]
[{"$f":"IF('1. Order'!B639=\"\",\"\",'1. Order'!B639)","v":""},{"$f":"IF('1. Order'!J639=\"\",\"\",'1. Order'!J639)","v":""},{"$f":"IF('1. Order'!K639=\"\",\"\",'1. Order'!K639)","v":""},{"$f":"IF('1. Order'!L639=\"\",\"\",'1. Order'!L639)","v":""},{"$f":"IF('1. Order'!N639=\"\",\"\",'1. Order'!N639)","v":""},null,null,{"$f":"IF('1. Order'!AV639=\"\",\"\",'1. Order'!AV639)","v":""},{"$f":"IF('1. Order'!AI639=\"\",\"\",'1. Order'!AI639)","v":""}]
[{"$f":"IF('1. Order'!B640=\"\",\"\",'1. Order'!B640)","v":""},{"$f":"IF('1. Order'!J640=\"\",\"\",'1. Order'!J640)","v":""},{"$f":"IF('1. Order'!K640=\"\",\"\",'1. Order'!K640)","v":""},{"$f":"IF('1. Order'!L640=\"\",\"\",'1. Order'!L640)","v":""},{"$f":"IF('1. Order'!N640=\"\",\"\",'1. Order'!N640)","v":""},null,null,{"$f":"IF('1. Order'!AV640=\"\",\"\",'1. Order'!AV640)","v":""},{"$f":"IF('1. Order'!AI640=\"\",\"\",'1. Order'!AI640)","v":""}]
[{"$f":"IF('1. Order'!B641=\"\",\"\",'1. Order'!B641)","v":""},{"$f":"IF('1. Order'!J641=\"\",\"\",'1. Order'!J641)","v":""},{"$f":"IF('1. Order'!K641=\"\",\"\",'1. Order'!K641)","v":""},{"$f":"IF('1. Order'!L641=\"\",\"\",'1. Order'!L641)","v":""},{"$f":"IF('1. Order'!N641=\"\",\"\",'1. Order'!N641)","v":""},null,null,{"$f":"IF('1. Order'!AV641=\"\",\"\",'1. Order'!AV641)","v":""},{"$f":"IF('1. Order'!AI641=\"\",\"\",'1. Order'!AI641)","v":""}]
[{"$f":"IF('1. Order'!B642=\"\",\"\",'1. Order'!B642)","v":""},{"$f":"IF('1. Order'!J642=\"\",\"\",'1. Order'!J642)","v":""},{"$f":"IF('1. Order'!K642=\"\",\"\",'1. Order'!K642)","v":""},{"$f":"IF('1. Order'!L642=\"\",\"\",'1. Order'!L642)","v":""},{"$f":"IF('1. Order'!N642=\"\",\"\",'1. Order'!N642)","v":""},null,null,{"$f":"IF('1. Order'!AV642=\"\",\"\",'1. Order'!AV642)","v":""},{"$f":"IF('1. Order'!AI642=\"\",\"\",'1. Order'!AI642)","v":""}]
[{"$f":"IF('1. Order'!B643=\"\",\"\",'1. Order'!B643)","v":""},{"$f":"IF('1. Order'!J643=\"\",\"\",'1. Order'!J643)","v":""},{"$f":"IF('1. Order'!K643=\"\",\"\",'1. Order'!K643)","v":""},{"$f":"IF('1. Order'!L643=\"\",\"\",'1. Order'!L643)","v":""},{"$f":"IF('1. Order'!N643=\"\",\"\",'1. Order'!N643)","v":""},null,null,{"$f":"IF('1. Order'!AV643=\"\",\"\",'1. Order'!AV643)","v":""},{"$f":"IF('1. Order'!AI643=\"\",\"\",'1. Order'!AI643)","v":""}]
[{"$f":"IF('1. Order'!B644=\"\",\"\",'1. Order'!B644)","v":""},{"$f":"IF('1. Order'!J644=\"\",\"\",'1. Order'!J644)","v":""},{"$f":"IF('1. Order'!K644=\"\",\"\",'1. Order'!K644)","v":""},{"$f":"IF('1. Order'!L644=\"\",\"\",'1. Order'!L644)","v":""},{"$f":"IF('1. Order'!N644=\"\",\"\",'1. Order'!N644)","v":""},null,null,{"$f":"IF('1. Order'!AV644=\"\",\"\",'1. Order'!AV644)","v":""},{"$f":"IF('1. Order'!AI644=\"\",\"\",'1. Order'!AI644)","v":""}]
[{"$f":"IF('1. Order'!B645=\"\",\"\",'1. Order'!B645)","v":""},{"$f":"IF('1. Order'!J645=\"\",\"\",'1. Order'!J645)","v":""},{"$f":"IF('1. Order'!K645=\"\",\"\",'1. Order'!K645)","v":""},{"$f":"IF('1. Order'!L645=\"\",\"\",'1. Order'!L645)","v":""},{"$f":"IF('1. Order'!N645=\"\",\"\",'1. Order'!N645)","v":""},null,null,{"$f":"IF('1. Order'!AV645=\"\",\"\",'1. Order'!AV645)","v":""},{"$f":"IF('1. Order'!AI645=\"\",\"\",'1. Order'!AI645)","v":""}]
[{"$f":"IF('1. Order'!B646=\"\",\"\",'1. Order'!B646)","v":""},{"$f":"IF('1. Order'!J646=\"\",\"\",'1. Order'!J646)","v":""},{"$f":"IF('1. Order'!K646=\"\",\"\",'1. Order'!K646)","v":""},{"$f":"IF('1. Order'!L646=\"\",\"\",'1. Order'!L646)","v":""},{"$f":"IF('1. Order'!N646=\"\",\"\",'1. Order'!N646)","v":""},null,null,{"$f":"IF('1. Order'!AV646=\"\",\"\",'1. Order'!AV646)","v":""},{"$f":"IF('1. Order'!AI646=\"\",\"\",'1. Order'!AI646)","v":""}]
[{"$f":"IF('1. Order'!B647=\"\",\"\",'1. Order'!B647)","v":""},{"$f":"IF('1. Order'!J647=\"\",\"\",'1. Order'!J647)","v":""},{"$f":"IF('1. Order'!K647=\"\",\"\",'1. Order'!K647)","v":""},{"$f":"IF('1. Order'!L647=\"\",\"\",'1. Order'!L647)","v":""},{"$f":"IF('1. Order'!N647=\"\",\"\",'1. Order'!N647)","v":""},null,null,{"$f":"IF('1. Order'!AV647=\"\",\"\",'1. Order'!AV647)","v":""},{"$f":"IF('1. Order'!AI647=\"\",\"\",'1. Order'!AI647)","v":""}]
[{"$f":"IF('1. Order'!B648=\"\",\"\",'1. Order'!B648)","v":""},{"$f":"IF('1. Order'!J648=\"\",\"\",'1. Order'!J648)","v":""},{"$f":"IF('1. Order'!K648=\"\",\"\",'1. Order'!K648)","v":""},{"$f":"IF('1. Order'!L648=\"\",\"\",'1. Order'!L648)","v":""},{"$f":"IF('1. Order'!N648=\"\",\"\",'1. Order'!N648)","v":""},null,null,{"$f":"IF('1. Order'!AV648=\"\",\"\",'1. Order'!AV648)","v":""},{"$f":"IF('1. Order'!AI648=\"\",\"\",'1. Order'!AI648)","v":""}]
[{"$f":"IF('1. Order'!B649=\"\",\"\",'1. Order'!B649)","v":""},{"$f":"IF('1. Order'!J649=\"\",\"\",'1. Order'!J649)","v":""},{"$f":"IF('1. Order'!K649=\"\",\"\",'1. Order'!K649)","v":""},{"$f":"IF('1. Order'!L649=\"\",\"\",'1. Order'!L649)","v":""},{"$f":"IF('1. Order'!N649=\"\",\"\",'1. Order'!N649)","v":""},null,null,{"$f":"IF('1. Order'!AV649=\"\",\"\",'1. Order'!AV649)","v":""},{"$f":"IF('1. Order'!AI649=\"\",\"\",'1. Order'!AI649)","v":""}]
[{"$f":"IF('1. Order'!B650=\"\",\"\",'1. Order'!B650)","v":""},{"$f":"IF('1. Order'!J650=\"\",\"\",'1. Order'!J650)","v":""},{"$f":"IF('1. Order'!K650=\"\",\"\",'1. Order'!K650)","v":""},{"$f":"IF('1. Order'!L650=\"\",\"\",'1. Order'!L650)","v":""},{"$f":"IF('1. Order'!N650=\"\",\"\",'1. Order'!N650)","v":""},null,null,{"$f":"IF('1. Order'!AV650=\"\",\"\",'1. Order'!AV650)","v":""},{"$f":"IF('1. Order'!AI650=\"\",\"\",'1. Order'!AI650)","v":""}]
[{"$f":"IF('1. Order'!B651=\"\",\"\",'1. Order'!B651)","v":""},{"$f":"IF('1. Order'!J651=\"\",\"\",'1. Order'!J651)","v":""},{"$f":"IF('1. Order'!K651=\"\",\"\",'1. Order'!K651)","v":""},{"$f":"IF('1. Order'!L651=\"\",\"\",'1. Order'!L651)","v":""},{"$f":"IF('1. Order'!N651=\"\",\"\",'1. Order'!N651)","v":""},null,null,{"$f":"IF('1. Order'!AV651=\"\",\"\",'1. Order'!AV651)","v":""},{"$f":"IF('1. Order'!AI651=\"\",\"\",'1. Order'!AI651)","v":""}]
[{"$f":"IF('1. Order'!B652=\"\",\"\",'1. Order'!B652)","v":""},{"$f":"IF('1. Order'!J652=\"\",\"\",'1. Order'!J652)","v":""},{"$f":"IF('1. Order'!K652=\"\",\"\",'1. Order'!K652)","v":""},{"$f":"IF('1. Order'!L652=\"\",\"\",'1. Order'!L652)","v":""},{"$f":"IF('1. Order'!N652=\"\",\"\",'1. Order'!N652)","v":""},null,null,{"$f":"IF('1. Order'!AV652=\"\",\"\",'1. Order'!AV652)","v":""},{"$f":"IF('1. Order'!AI652=\"\",\"\",'1. Order'!AI652)","v":""}]
[{"$f":"IF('1. Order'!B653=\"\",\"\",'1. Order'!B653)","v":""},{"$f":"IF('1. Order'!J653=\"\",\"\",'1. Order'!J653)","v":""},{"$f":"IF('1. Order'!K653=\"\",\"\",'1. Order'!K653)","v":""},{"$f":"IF('1. Order'!L653=\"\",\"\",'1. Order'!L653)","v":""},{"$f":"IF('1. Order'!N653=\"\",\"\",'1. Order'!N653)","v":""},null,null,{"$f":"IF('1. Order'!AV653=\"\",\"\",'1. Order'!AV653)","v":""},{"$f":"IF('1. Order'!AI653=\"\",\"\",'1. Order'!AI653)","v":""}]
[{"$f":"IF('1. Order'!B654=\"\",\"\",'1. Order'!B654)","v":""},{"$f":"IF('1. Order'!J654=\"\",\"\",'1. Order'!J654)","v":""},{"$f":"IF('1. Order'!K654=\"\",\"\",'1. Order'!K654)","v":""},{"$f":"IF('1. Order'!L654=\"\",\"\",'1. Order'!L654)","v":""},{"$f":"IF('1. Order'!N654=\"\",\"\",'1. Order'!N654)","v":""},null,null,{"$f":"IF('1. Order'!AV654=\"\",\"\",'1. Order'!AV654)","v":""},{"$f":"IF('1. Order'!AI654=\"\",\"\",'1. Order'!AI654)","v":""}]
[{"$f":"IF('1. Order'!B655=\"\",\"\",'1. Order'!B655)","v":""},{"$f":"IF('1. Order'!J655=\"\",\"\",'1. Order'!J655)","v":""},{"$f":"IF('1. Order'!K655=\"\",\"\",'1. Order'!K655)","v":""},{"$f":"IF('1. Order'!L655=\"\",\"\",'1. Order'!L655)","v":""},{"$f":"IF('1. Order'!N655=\"\",\"\",'1. Order'!N655)","v":""},null,null,{"$f":"IF('1. Order'!AV655=\"\",\"\",'1. Order'!AV655)","v":""},{"$f":"IF('1. Order'!AI655=\"\",\"\",'1. Order'!AI655)","v":""}]
[{"$f":"IF('1. Order'!B656=\"\",\"\",'1. Order'!B656)","v":""},{"$f":"IF('1. Order'!J656=\"\",\"\",'1. Order'!J656)","v":""},{"$f":"IF('1. Order'!K656=\"\",\"\",'1. Order'!K656)","v":""},{"$f":"IF('1. Order'!L656=\"\",\"\",'1. Order'!L656)","v":""},{"$f":"IF('1. Order'!N656=\"\",\"\",'1. Order'!N656)","v":""},null,null,{"$f":"IF('1. Order'!AV656=\"\",\"\",'1. Order'!AV656)","v":""},{"$f":"IF('1. Order'!AI656=\"\",\"\",'1. Order'!AI656)","v":""}]
[{"$f":"IF('1. Order'!B657=\"\",\"\",'1. Order'!B657)","v":""},{"$f":"IF('1. Order'!J657=\"\",\"\",'1. Order'!J657)","v":""},{"$f":"IF('1. Order'!K657=\"\",\"\",'1. Order'!K657)","v":""},{"$f":"IF('1. Order'!L657=\"\",\"\",'1. Order'!L657)","v":""},{"$f":"IF('1. Order'!N657=\"\",\"\",'1. Order'!N657)","v":""},null,null,{"$f":"IF('1. Order'!AV657=\"\",\"\",'1. Order'!AV657)","v":""},{"$f":"IF('1. Order'!AI657=\"\",\"\",'1. Order'!AI657)","v":""}]
[{"$f":"IF('1. Order'!B658=\"\",\"\",'1. Order'!B658)","v":""},{"$f":"IF('1. Order'!J658=\"\",\"\",'1. Order'!J658)","v":""},{"$f":"IF('1. Order'!K658=\"\",\"\",'1. Order'!K658)","v":""},{"$f":"IF('1. Order'!L658=\"\",\"\",'1. Order'!L658)","v":""},{"$f":"IF('1. Order'!N658=\"\",\"\",'1. Order'!N658)","v":""},null,null,{"$f":"IF('1. Order'!AV658=\"\",\"\",'1. Order'!AV658)","v":""},{"$f":"IF('1. Order'!AI658=\"\",\"\",'1. Order'!AI658)","v":""}]
[{"$f":"IF('1. Order'!B659=\"\",\"\",'1. Order'!B659)","v":""},{"$f":"IF('1. Order'!J659=\"\",\"\",'1. Order'!J659)","v":""},{"$f":"IF('1. Order'!K659=\"\",\"\",'1. Order'!K659)","v":""},{"$f":"IF('1. Order'!L659=\"\",\"\",'1. Order'!L659)","v":""},{"$f":"IF('1. Order'!N659=\"\",\"\",'1. Order'!N659)","v":""},null,null,{"$f":"IF('1. Order'!AV659=\"\",\"\",'1. Order'!AV659)","v":""},{"$f":"IF('1. Order'!AI659=\"\",\"\",'1. Order'!AI659)","v":""}]
[{"$f":"IF('1. Order'!B660=\"\",\"\",'1. Order'!B660)","v":""},{"$f":"IF('1. Order'!J660=\"\",\"\",'1. Order'!J660)","v":""},{"$f":"IF('1. Order'!K660=\"\",\"\",'1. Order'!K660)","v":""},{"$f":"IF('1. Order'!L660=\"\",\"\",'1. Order'!L660)","v":""},{"$f":"IF('1. Order'!N660=\"\",\"\",'1. Order'!N660)","v":""},null,null,{"$f":"IF('1. Order'!AV660=\"\",\"\",'1. Order'!AV660)","v":""},{"$f":"IF('1. Order'!AI660=\"\",\"\",'1. Order'!AI660)","v":""}]
[{"$f":"IF('1. Order'!B661=\"\",\"\",'1. Order'!B661)","v":""},{"$f":"IF('1. Order'!J661=\"\",\"\",'1. Order'!J661)","v":""},{"$f":"IF('1. Order'!K661=\"\",\"\",'1. Order'!K661)","v":""},{"$f":"IF('1. Order'!L661=\"\",\"\",'1. Order'!L661)","v":""},{"$f":"IF('1. Order'!N661=\"\",\"\",'1. Order'!N661)","v":""},null,null,{"$f":"IF('1. Order'!AV661=\"\",\"\",'1. Order'!AV661)","v":""},{"$f":"IF('1. Order'!AI661=\"\",\"\",'1. Order'!AI661)","v":""}]
[{"$f":"IF('1. Order'!B662=\"\",\"\",'1. Order'!B662)","v":""},{"$f":"IF('1. Order'!J662=\"\",\"\",'1. Order'!J662)","v":""},{"$f":"IF('1. Order'!K662=\"\",\"\",'1. Order'!K662)","v":""},{"$f":"IF('1. Order'!L662=\"\",\"\",'1. Order'!L662)","v":""},{"$f":"IF('1. Order'!N662=\"\",\"\",'1. Order'!N662)","v":""},null,null,{"$f":"IF('1. Order'!AV662=\"\",\"\",'1. Order'!AV662)","v":""},{"$f":"IF('1. Order'!AI662=\"\",\"\",'1. Order'!AI662)","v":""}]
[{"$f":"IF('1. Order'!B663=\"\",\"\",'1. Order'!B663)","v":""},{"$f":"IF('1. Order'!J663=\"\",\"\",'1. Order'!J663)","v":""},{"$f":"IF('1. Order'!K663=\"\",\"\",'1. Order'!K663)","v":""},{"$f":"IF('1. Order'!L663=\"\",\"\",'1. Order'!L663)","v":""},{"$f":"IF('1. Order'!N663=\"\",\"\",'1. Order'!N663)","v":""},null,null,{"$f":"IF('1. Order'!AV663=\"\",\"\",'1. Order'!AV663)","v":""},{"$f":"IF('1. Order'!AI663=\"\",\"\",'1. Order'!AI663)","v":""}]
[{"$f":"IF('1. Order'!B664=\"\",\"\",'1. Order'!B664)","v":""},{"$f":"IF('1. Order'!J664=\"\",\"\",'1. Order'!J664)","v":""},{"$f":"IF('1. Order'!K664=\"\",\"\",'1. Order'!K664)","v":""},{"$f":"IF('1. Order'!L664=\"\",\"\",'1. Order'!L664)","v":""},{"$f":"IF('1. Order'!N664=\"\",\"\",'1. Order'!N664)","v":""},null,null,{"$f":"IF('1. Order'!AV664=\"\",\"\",'1. Order'!AV664)","v":""},{"$f":"IF('1. Order'!AI664=\"\",\"\",'1. Order'!AI664)","v":""}]
[{"$f":"IF('1. Order'!B665=\"\",\"\",'1. Order'!B665)","v":""},{"$f":"IF('1. Order'!J665=\"\",\"\",'1. Order'!J665)","v":""},{"$f":"IF('1. Order'!K665=\"\",\"\",'1. Order'!K665)","v":""},{"$f":"IF('1. Order'!L665=\"\",\"\",'1. Order'!L665)","v":""},{"$f":"IF('1. Order'!N665=\"\",\"\",'1. Order'!N665)","v":""},null,null,{"$f":"IF('1. Order'!AV665=\"\",\"\",'1. Order'!AV665)","v":""},{"$f":"IF('1. Order'!AI665=\"\",\"\",'1. Order'!AI665)","v":""}]
[{"$f":"IF('1. Order'!B666=\"\",\"\",'1. Order'!B666)","v":""},{"$f":"IF('1. Order'!J666=\"\",\"\",'1. Order'!J666)","v":""},{"$f":"IF('1. Order'!K666=\"\",\"\",'1. Order'!K666)","v":""},{"$f":"IF('1. Order'!L666=\"\",\"\",'1. Order'!L666)","v":""},{"$f":"IF('1. Order'!N666=\"\",\"\",'1. Order'!N666)","v":""},null,null,{"$f":"IF('1. Order'!AV666=\"\",\"\",'1. Order'!AV666)","v":""},{"$f":"IF('1. Order'!AI666=\"\",\"\",'1. Order'!AI666)","v":""}]
[{"$f":"IF('1. Order'!B667=\"\",\"\",'1. Order'!B667)","v":""},{"$f":"IF('1. Order'!J667=\"\",\"\",'1. Order'!J667)","v":""},{"$f":"IF('1. Order'!K667=\"\",\"\",'1. Order'!K667)","v":""},{"$f":"IF('1. Order'!L667=\"\",\"\",'1. Order'!L667)","v":""},{"$f":"IF('1. Order'!N667=\"\",\"\",'1. Order'!N667)","v":""},null,null,{"$f":"IF('1. Order'!AV667=\"\",\"\",'1. Order'!AV667)","v":""},{"$f":"IF('1. Order'!AI667=\"\",\"\",'1. Order'!AI667)","v":""}]
[{"$f":"IF('1. Order'!B668=\"\",\"\",'1. Order'!B668)","v":""},{"$f":"IF('1. Order'!J668=\"\",\"\",'1. Order'!J668)","v":""},{"$f":"IF('1. Order'!K668=\"\",\"\",'1. Order'!K668)","v":""},{"$f":"IF('1. Order'!L668=\"\",\"\",'1. Order'!L668)","v":""},{"$f":"IF('1. Order'!N668=\"\",\"\",'1. Order'!N668)","v":""},null,null,{"$f":"IF('1. Order'!AV668=\"\",\"\",'1. Order'!AV668)","v":""},{"$f":"IF('1. Order'!AI668=\"\",\"\",'1. Order'!AI668)","v":""}]
[{"$f":"IF('1. Order'!B669=\"\",\"\",'1. Order'!B669)","v":""},{"$f":"IF('1. Order'!J669=\"\",\"\",'1. Order'!J669)","v":""},{"$f":"IF('1. Order'!K669=\"\",\"\",'1. Order'!K669)","v":""},{"$f":"IF('1. Order'!L669=\"\",\"\",'1. Order'!L669)","v":""},{"$f":"IF('1. Order'!N669=\"\",\"\",'1. Order'!N669)","v":""},null,null,{"$f":"IF('1. Order'!AV669=\"\",\"\",'1. Order'!AV669)","v":""},{"$f":"IF('1. Order'!AI669=\"\",\"\",'1. Order'!AI669)","v":""}]
[{"$f":"IF('1. Order'!B670=\"\",\"\",'1. Order'!B670)","v":""},{"$f":"IF('1. Order'!J670=\"\",\"\",'1. Order'!J670)","v":""},{"$f":"IF('1. Order'!K670=\"\",\"\",'1. Order'!K670)","v":""},{"$f":"IF('1. Order'!L670=\"\",\"\",'1. Order'!L670)","v":""},{"$f":"IF('1. Order'!N670=\"\",\"\",'1. Order'!N670)","v":""},null,null,{"$f":"IF('1. Order'!AV670=\"\",\"\",'1. Order'!AV670)","v":""},{"$f":"IF('1. Order'!AI670=\"\",\"\",'1. Order'!AI670)","v":""}]
[{"$f":"IF('1. Order'!B671=\"\",\"\",'1. Order'!B671)","v":""},{"$f":"IF('1. Order'!J671=\"\",\"\",'1. Order'!J671)","v":""},{"$f":"IF('1. Order'!K671=\"\",\"\",'1. Order'!K671)","v":""},{"$f":"IF('1. Order'!L671=\"\",\"\",'1. Order'!L671)","v":""},{"$f":"IF('1. Order'!N671=\"\",\"\",'1. Order'!N671)","v":""},null,null,{"$f":"IF('1. Order'!AV671=\"\",\"\",'1. Order'!AV671)","v":""},{"$f":"IF('1. Order'!AI671=\"\",\"\",'1. Order'!AI671)","v":""}]
[{"$f":"IF('1. Order'!B672=\"\",\"\",'1. Order'!B672)","v":""},{"$f":"IF('1. Order'!J672=\"\",\"\",'1. Order'!J672)","v":""},{"$f":"IF('1. Order'!K672=\"\",\"\",'1. Order'!K672)","v":""},{"$f":"IF('1. Order'!L672=\"\",\"\",'1. Order'!L672)","v":""},{"$f":"IF('1. Order'!N672=\"\",\"\",'1. Order'!N672)","v":""},null,null,{"$f":"IF('1. Order'!AV672=\"\",\"\",'1. Order'!AV672)","v":""},{"$f":"IF('1. Order'!AI672=\"\",\"\",'1. Order'!AI672)","v":""}]
[{"$f":"IF('1. Order'!B673=\"\",\"\",'1. Order'!B673)","v":""},{"$f":"IF('1. Order'!J673=\"\",\"\",'1. Order'!J673)","v":""},{"$f":"IF('1. Order'!K673=\"\",\"\",'1. Order'!K673)","v":""},{"$f":"IF('1. Order'!L673=\"\",\"\",'1. Order'!L673)","v":""},{"$f":"IF('1. Order'!N673=\"\",\"\",'1. Order'!N673)","v":""},null,null,{"$f":"IF('1. Order'!AV673=\"\",\"\",'1. Order'!AV673)","v":""},{"$f":"IF('1. Order'!AI673=\"\",\"\",'1. Order'!AI673)","v":""}]
[{"$f":"IF('1. Order'!B674=\"\",\"\",'1. Order'!B674)","v":""},{"$f":"IF('1. Order'!J674=\"\",\"\",'1. Order'!J674)","v":""},{"$f":"IF('1. Order'!K674=\"\",\"\",'1. Order'!K674)","v":""},{"$f":"IF('1. Order'!L674=\"\",\"\",'1. Order'!L674)","v":""},{"$f":"IF('1. Order'!N674=\"\",\"\",'1. Order'!N674)","v":""},null,null,{"$f":"IF('1. Order'!AV674=\"\",\"\",'1. Order'!AV674)","v":""},{"$f":"IF('1. Order'!AI674=\"\",\"\",'1. Order'!AI674)","v":""}]
[{"$f":"IF('1. Order'!B675=\"\",\"\",'1. Order'!B675)","v":""},{"$f":"IF('1. Order'!J675=\"\",\"\",'1. Order'!J675)","v":""},{"$f":"IF('1. Order'!K675=\"\",\"\",'1. Order'!K675)","v":""},{"$f":"IF('1. Order'!L675=\"\",\"\",'1. Order'!L675)","v":""},{"$f":"IF('1. Order'!N675=\"\",\"\",'1. Order'!N675)","v":""},null,null,{"$f":"IF('1. Order'!AV675=\"\",\"\",'1. Order'!AV675)","v":""},{"$f":"IF('1. Order'!AI675=\"\",\"\",'1. Order'!AI675)","v":""}]
[{"$f":"IF('1. Order'!B676=\"\",\"\",'1. Order'!B676)","v":""},{"$f":"IF('1. Order'!J676=\"\",\"\",'1. Order'!J676)","v":""},{"$f":"IF('1. Order'!K676=\"\",\"\",'1. Order'!K676)","v":""},{"$f":"IF('1. Order'!L676=\"\",\"\",'1. Order'!L676)","v":""},{"$f":"IF('1. Order'!N676=\"\",\"\",'1. Order'!N676)","v":""},null,null,{"$f":"IF('1. Order'!AV676=\"\",\"\",'1. Order'!AV676)","v":""},{"$f":"IF('1. Order'!AI676=\"\",\"\",'1. Order'!AI676)","v":""}]
[{"$f":"IF('1. Order'!B677=\"\",\"\",'1. Order'!B677)","v":""},{"$f":"IF('1. Order'!J677=\"\",\"\",'1. Order'!J677)","v":""},{"$f":"IF('1. Order'!K677=\"\",\"\",'1. Order'!K677)","v":""},{"$f":"IF('1. Order'!L677=\"\",\"\",'1. Order'!L677)","v":""},{"$f":"IF('1. Order'!N677=\"\",\"\",'1. Order'!N677)","v":""},null,null,{"$f":"IF('1. Order'!AV677=\"\",\"\",'1. Order'!AV677)","v":""},{"$f":"IF('1. Order'!AI677=\"\",\"\",'1. Order'!AI677)","v":""}]
[{"$f":"IF('1. Order'!B678=\"\",\"\",'1. Order'!B678)","v":""},{"$f":"IF('1. Order'!J678=\"\",\"\",'1. Order'!J678)","v":""},{"$f":"IF('1. Order'!K678=\"\",\"\",'1. Order'!K678)","v":""},{"$f":"IF('1. Order'!L678=\"\",\"\",'1. Order'!L678)","v":""},{"$f":"IF('1. Order'!N678=\"\",\"\",'1. Order'!N678)","v":""},null,null,{"$f":"IF('1. Order'!AV678=\"\",\"\",'1. Order'!AV678)","v":""},{"$f":"IF('1. Order'!AI678=\"\",\"\",'1. Order'!AI678)","v":""}]
[{"$f":"IF('1. Order'!B679=\"\",\"\",'1. Order'!B679)","v":""},{"$f":"IF('1. Order'!J679=\"\",\"\",'1. Order'!J679)","v":""},{"$f":"IF('1. Order'!K679=\"\",\"\",'1. Order'!K679)","v":""},{"$f":"IF('1. Order'!L679=\"\",\"\",'1. Order'!L679)","v":""},{"$f":"IF('1. Order'!N679=\"\",\"\",'1. Order'!N679)","v":""},null,null,{"$f":"IF('1. Order'!AV679=\"\",\"\",'1. Order'!AV679)","v":""},{"$f":"IF('1. Order'!AI679=\"\",\"\",'1. Order'!AI679)","v":""}]
[{"$f":"IF('1. Order'!B680=\"\",\"\",'1. Order'!B680)","v":""},{"$f":"IF('1. Order'!J680=\"\",\"\",'1. Order'!J680)","v":""},{"$f":"IF('1. Order'!K680=\"\",\"\",'1. Order'!K680)","v":""},{"$f":"IF('1. Order'!L680=\"\",\"\",'1. Order'!L680)","v":""},{"$f":"IF('1. Order'!N680=\"\",\"\",'1. Order'!N680)","v":""},null,null,{"$f":"IF('1. Order'!AV680=\"\",\"\",'1. Order'!AV680)","v":""},{"$f":"IF('1. Order'!AI680=\"\",\"\",'1. Order'!AI680)","v":""}]
[{"$f":"IF('1. Order'!B681=\"\",\"\",'1. Order'!B681)","v":""},{"$f":"IF('1. Order'!J681=\"\",\"\",'1. Order'!J681)","v":""},{"$f":"IF('1. Order'!K681=\"\",\"\",'1. Order'!K681)","v":""},{"$f":"IF('1. Order'!L681=\"\",\"\",'1. Order'!L681)","v":""},{"$f":"IF('1. Order'!N681=\"\",\"\",'1. Order'!N681)","v":""},null,null,{"$f":"IF('1. Order'!AV681=\"\",\"\",'1. Order'!AV681)","v":""},{"$f":"IF('1. Order'!AI681=\"\",\"\",'1. Order'!AI681)","v":""}]
[{"$f":"IF('1. Order'!B682=\"\",\"\",'1. Order'!B682)","v":""},{"$f":"IF('1. Order'!J682=\"\",\"\",'1. Order'!J682)","v":""},{"$f":"IF('1. Order'!K682=\"\",\"\",'1. Order'!K682)","v":""},{"$f":"IF('1. Order'!L682=\"\",\"\",'1. Order'!L682)","v":""},{"$f":"IF('1. Order'!N682=\"\",\"\",'1. Order'!N682)","v":""},null,null,{"$f":"IF('1. Order'!AV682=\"\",\"\",'1. Order'!AV682)","v":""},{"$f":"IF('1. Order'!AI682=\"\",\"\",'1. Order'!AI682)","v":""}]
[{"$f":"IF('1. Order'!B683=\"\",\"\",'1. Order'!B683)","v":""},{"$f":"IF('1. Order'!J683=\"\",\"\",'1. Order'!J683)","v":""},{"$f":"IF('1. Order'!K683=\"\",\"\",'1. Order'!K683)","v":""},{"$f":"IF('1. Order'!L683=\"\",\"\",'1. Order'!L683)","v":""},{"$f":"IF('1. Order'!N683=\"\",\"\",'1. Order'!N683)","v":""},null,null,{"$f":"IF('1. Order'!AV683=\"\",\"\",'1. Order'!AV683)","v":""},{"$f":"IF('1. Order'!AI683=\"\",\"\",'1. Order'!AI683)","v":""}]
[{"$f":"IF('1. Order'!B684=\"\",\"\",'1. Order'!B684)","v":""},{"$f":"IF('1. Order'!J684=\"\",\"\",'1. Order'!J684)","v":""},{"$f":"IF('1. Order'!K684=\"\",\"\",'1. Order'!K684)","v":""},{"$f":"IF('1. Order'!L684=\"\",\"\",'1. Order'!L684)","v":""},{"$f":"IF('1. Order'!N684=\"\",\"\",'1. Order'!N684)","v":""},null,null,{"$f":"IF('1. Order'!AV684=\"\",\"\",'1. Order'!AV684)","v":""},{"$f":"IF('1. Order'!AI684=\"\",\"\",'1. Order'!AI684)","v":""}]
[{"$f":"IF('1. Order'!B685=\"\",\"\",'1. Order'!B685)","v":""},{"$f":"IF('1. Order'!J685=\"\",\"\",'1. Order'!J685)","v":""},{"$f":"IF('1. Order'!K685=\"\",\"\",'1. Order'!K685)","v":""},{"$f":"IF('1. Order'!L685=\"\",\"\",'1. Order'!L685)","v":""},{"$f":"IF('1. Order'!N685=\"\",\"\",'1. Order'!N685)","v":""},null,null,{"$f":"IF('1. Order'!AV685=\"\",\"\",'1. Order'!AV685)","v":""},{"$f":"IF('1. Order'!AI685=\"\",\"\",'1. Order'!AI685)","v":""}]
[{"$f":"IF('1. Order'!B686=\"\",\"\",'1. Order'!B686)","v":""},{"$f":"IF('1. Order'!J686=\"\",\"\",'1. Order'!J686)","v":""},{"$f":"IF('1. Order'!K686=\"\",\"\",'1. Order'!K686)","v":""},{"$f":"IF('1. Order'!L686=\"\",\"\",'1. Order'!L686)","v":""},{"$f":"IF('1. Order'!N686=\"\",\"\",'1. Order'!N686)","v":""},null,null,{"$f":"IF('1. Order'!AV686=\"\",\"\",'1. Order'!AV686)","v":""},{"$f":"IF('1. Order'!AI686=\"\",\"\",'1. Order'!AI686)","v":""}]
[{"$f":"IF('1. Order'!B687=\"\",\"\",'1. Order'!B687)","v":""},{"$f":"IF('1. Order'!J687=\"\",\"\",'1. Order'!J687)","v":""},{"$f":"IF('1. Order'!K687=\"\",\"\",'1. Order'!K687)","v":""},{"$f":"IF('1. Order'!L687=\"\",\"\",'1. Order'!L687)","v":""},{"$f":"IF('1. Order'!N687=\"\",\"\",'1. Order'!N687)","v":""},null,null,{"$f":"IF('1. Order'!AV687=\"\",\"\",'1. Order'!AV687)","v":""},{"$f":"IF('1. Order'!AI687=\"\",\"\",'1. Order'!AI687)","v":""}]
[{"$f":"IF('1. Order'!B688=\"\",\"\",'1. Order'!B688)","v":""},{"$f":"IF('1. Order'!J688=\"\",\"\",'1. Order'!J688)","v":""},{"$f":"IF('1. Order'!K688=\"\",\"\",'1. Order'!K688)","v":""},{"$f":"IF('1. Order'!L688=\"\",\"\",'1. Order'!L688)","v":""},{"$f":"IF('1. Order'!N688=\"\",\"\",'1. Order'!N688)","v":""},null,null,{"$f":"IF('1. Order'!AV688=\"\",\"\",'1. Order'!AV688)","v":""},{"$f":"IF('1. Order'!AI688=\"\",\"\",'1. Order'!AI688)","v":""}]
[{"$f":"IF('1. Order'!B689=\"\",\"\",'1. Order'!B689)","v":""},{"$f":"IF('1. Order'!J689=\"\",\"\",'1. Order'!J689)","v":""},{"$f":"IF('1. Order'!K689=\"\",\"\",'1. Order'!K689)","v":""},{"$f":"IF('1. Order'!L689=\"\",\"\",'1. Order'!L689)","v":""},{"$f":"IF('1. Order'!N689=\"\",\"\",'1. Order'!N689)","v":""},null,null,{"$f":"IF('1. Order'!AV689=\"\",\"\",'1. Order'!AV689)","v":""},{"$f":"IF('1. Order'!AI689=\"\",\"\",'1. Order'!AI689)","v":""}]
[{"$f":"IF('1. Order'!B690=\"\",\"\",'1. Order'!B690)","v":""},{"$f":"IF('1. Order'!J690=\"\",\"\",'1. Order'!J690)","v":""},{"$f":"IF('1. Order'!K690=\"\",\"\",'1. Order'!K690)","v":""},{"$f":"IF('1. Order'!L690=\"\",\"\",'1. Order'!L690)","v":""},{"$f":"IF('1. Order'!N690=\"\",\"\",'1. Order'!N690)","v":""},null,null,{"$f":"IF('1. Order'!AV690=\"\",\"\",'1. Order'!AV690)","v":""},{"$f":"IF('1. Order'!AI690=\"\",\"\",'1. Order'!AI690)","v":""}]
[{"$f":"IF('1. Order'!B691=\"\",\"\",'1. Order'!B691)","v":""},{"$f":"IF('1. Order'!J691=\"\",\"\",'1. Order'!J691)","v":""},{"$f":"IF('1. Order'!K691=\"\",\"\",'1. Order'!K691)","v":""},{"$f":"IF('1. Order'!L691=\"\",\"\",'1. Order'!L691)","v":""},{"$f":"IF('1. Order'!N691=\"\",\"\",'1. Order'!N691)","v":""},null,null,{"$f":"IF('1. Order'!AV691=\"\",\"\",'1. Order'!AV691)","v":""},{"$f":"IF('1. Order'!AI691=\"\",\"\",'1. Order'!AI691)","v":""}]
[{"$f":"IF('1. Order'!B692=\"\",\"\",'1. Order'!B692)","v":""},{"$f":"IF('1. Order'!J692=\"\",\"\",'1. Order'!J692)","v":""},{"$f":"IF('1. Order'!K692=\"\",\"\",'1. Order'!K692)","v":""},{"$f":"IF('1. Order'!L692=\"\",\"\",'1. Order'!L692)","v":""},{"$f":"IF('1. Order'!N692=\"\",\"\",'1. Order'!N692)","v":""},null,null,{"$f":"IF('1. Order'!AV692=\"\",\"\",'1. Order'!AV692)","v":""},{"$f":"IF('1. Order'!AI692=\"\",\"\",'1. Order'!AI692)","v":""}]
[{"$f":"IF('1. Order'!B693=\"\",\"\",'1. Order'!B693)","v":""},{"$f":"IF('1. Order'!J693=\"\",\"\",'1. Order'!J693)","v":""},{"$f":"IF('1. Order'!K693=\"\",\"\",'1. Order'!K693)","v":""},{"$f":"IF('1. Order'!L693=\"\",\"\",'1. Order'!L693)","v":""},{"$f":"IF('1. Order'!N693=\"\",\"\",'1. Order'!N693)","v":""},null,null,{"$f":"IF('1. Order'!AV693=\"\",\"\",'1. Order'!AV693)","v":""},{"$f":"IF('1. Order'!AI693=\"\",\"\",'1. Order'!AI693)","v":""}]
[{"$f":"IF('1. Order'!B694=\"\",\"\",'1. Order'!B694)","v":""},{"$f":"IF('1. Order'!J694=\"\",\"\",'1. Order'!J694)","v":""},{"$f":"IF('1. Order'!K694=\"\",\"\",'1. Order'!K694)","v":""},{"$f":"IF('1. Order'!L694=\"\",\"\",'1. Order'!L694)","v":""},{"$f":"IF('1. Order'!N694=\"\",\"\",'1. Order'!N694)","v":""},null,null,{"$f":"IF('1. Order'!AV694=\"\",\"\",'1. Order'!AV694)","v":""},{"$f":"IF('1. Order'!AI694=\"\",\"\",'1. Order'!AI694)","v":""}]
[{"$f":"IF('1. Order'!B695=\"\",\"\",'1. Order'!B695)","v":""},{"$f":"IF('1. Order'!J695=\"\",\"\",'1. Order'!J695)","v":""},{"$f":"IF('1. Order'!K695=\"\",\"\",'1. Order'!K695)","v":""},{"$f":"IF('1. Order'!L695=\"\",\"\",'1. Order'!L695)","v":""},{"$f":"IF('1. Order'!N695=\"\",\"\",'1. Order'!N695)","v":""},null,null,{"$f":"IF('1. Order'!AV695=\"\",\"\",'1. Order'!AV695)","v":""},{"$f":"IF('1. Order'!AI695=\"\",\"\",'1. Order'!AI695)","v":""}]
[{"$f":"IF('1. Order'!B696=\"\",\"\",'1. Order'!B696)","v":""},{"$f":"IF('1. Order'!J696=\"\",\"\",'1. Order'!J696)","v":""},{"$f":"IF('1. Order'!K696=\"\",\"\",'1. Order'!K696)","v":""},{"$f":"IF('1. Order'!L696=\"\",\"\",'1. Order'!L696)","v":""},{"$f":"IF('1. Order'!N696=\"\",\"\",'1. Order'!N696)","v":""},null,null,{"$f":"IF('1. Order'!AV696=\"\",\"\",'1. Order'!AV696)","v":""},{"$f":"IF('1. Order'!AI696=\"\",\"\",'1. Order'!AI696)","v":""}]
[{"$f":"IF('1. Order'!B697=\"\",\"\",'1. Order'!B697)","v":""},{"$f":"IF('1. Order'!J697=\"\",\"\",'1. Order'!J697)","v":""},{"$f":"IF('1. Order'!K697=\"\",\"\",'1. Order'!K697)","v":""},{"$f":"IF('1. Order'!L697=\"\",\"\",'1. Order'!L697)","v":""},{"$f":"IF('1. Order'!N697=\"\",\"\",'1. Order'!N697)","v":""},null,null,{"$f":"IF('1. Order'!AV697=\"\",\"\",'1. Order'!AV697)","v":""},{"$f":"IF('1. Order'!AI697=\"\",\"\",'1. Order'!AI697)","v":""}]
[{"$f":"IF('1. Order'!B698=\"\",\"\",'1. Order'!B698)","v":""},{"$f":"IF('1. Order'!J698=\"\",\"\",'1. Order'!J698)","v":""},{"$f":"IF('1. Order'!K698=\"\",\"\",'1. Order'!K698)","v":""},{"$f":"IF('1. Order'!L698=\"\",\"\",'1. Order'!L698)","v":""},{"$f":"IF('1. Order'!N698=\"\",\"\",'1. Order'!N698)","v":""},null,null,{"$f":"IF('1. Order'!AV698=\"\",\"\",'1. Order'!AV698)","v":""},{"$f":"IF('1. Order'!AI698=\"\",\"\",'1. Order'!AI698)","v":""}]
[{"$f":"IF('1. Order'!B699=\"\",\"\",'1. Order'!B699)","v":""},{"$f":"IF('1. Order'!J699=\"\",\"\",'1. Order'!J699)","v":""},{"$f":"IF('1. Order'!K699=\"\",\"\",'1. Order'!K699)","v":""},{"$f":"IF('1. Order'!L699=\"\",\"\",'1. Order'!L699)","v":""},{"$f":"IF('1. Order'!N699=\"\",\"\",'1. Order'!N699)","v":""},null,null,{"$f":"IF('1. Order'!AV699=\"\",\"\",'1. Order'!AV699)","v":""},{"$f":"IF('1. Order'!AI699=\"\",\"\",'1. Order'!AI699)","v":""}]
[{"$f":"IF('1. Order'!B700=\"\",\"\",'1. Order'!B700)","v":""},{"$f":"IF('1. Order'!J700=\"\",\"\",'1. Order'!J700)","v":""},{"$f":"IF('1. Order'!K700=\"\",\"\",'1. Order'!K700)","v":""},{"$f":"IF('1. Order'!L700=\"\",\"\",'1. Order'!L700)","v":""},{"$f":"IF('1. Order'!N700=\"\",\"\",'1. Order'!N700)","v":""},null,null,{"$f":"IF('1. Order'!AV700=\"\",\"\",'1. Order'!AV700)","v":""},{"$f":"IF('1. Order'!AI700=\"\",\"\",'1. Order'!AI700)","v":""}]
[{"$f":"IF('1. Order'!B701=\"\",\"\",'1. Order'!B701)","v":""},{"$f":"IF('1. Order'!J701=\"\",\"\",'1. Order'!J701)","v":""},{"$f":"IF('1. Order'!K701=\"\",\"\",'1. Order'!K701)","v":""},{"$f":"IF('1. Order'!L701=\"\",\"\",'1. Order'!L701)","v":""},{"$f":"IF('1. Order'!N701=\"\",\"\",'1. Order'!N701)","v":""},null,null,{"$f":"IF('1. Order'!AV701=\"\",\"\",'1. Order'!AV701)","v":""},{"$f":"IF('1. Order'!AI701=\"\",\"\",'1. Order'!AI701)","v":""}]
[{"$f":"IF('1. Order'!B702=\"\",\"\",'1. Order'!B702)","v":""},{"$f":"IF('1. Order'!J702=\"\",\"\",'1. Order'!J702)","v":""},{"$f":"IF('1. Order'!K702=\"\",\"\",'1. Order'!K702)","v":""},{"$f":"IF('1. Order'!L702=\"\",\"\",'1. Order'!L702)","v":""},{"$f":"IF('1. Order'!N702=\"\",\"\",'1. Order'!N702)","v":""},null,null,{"$f":"IF('1. Order'!AV702=\"\",\"\",'1. Order'!AV702)","v":""},{"$f":"IF('1. Order'!AI702=\"\",\"\",'1. Order'!AI702)","v":""}]
[{"$f":"IF('1. Order'!B703=\"\",\"\",'1. Order'!B703)","v":""},{"$f":"IF('1. Order'!J703=\"\",\"\",'1. Order'!J703)","v":""},{"$f":"IF('1. Order'!K703=\"\",\"\",'1. Order'!K703)","v":""},{"$f":"IF('1. Order'!L703=\"\",\"\",'1. Order'!L703)","v":""},{"$f":"IF('1. Order'!N703=\"\",\"\",'1. Order'!N703)","v":""},null,null,{"$f":"IF('1. Order'!AV703=\"\",\"\",'1. Order'!AV703)","v":""},{"$f":"IF('1. Order'!AI703=\"\",\"\",'1. Order'!AI703)","v":""}]
[{"$f":"IF('1. Order'!B704=\"\",\"\",'1. Order'!B704)","v":""},{"$f":"IF('1. Order'!J704=\"\",\"\",'1. Order'!J704)","v":""},{"$f":"IF('1. Order'!K704=\"\",\"\",'1. Order'!K704)","v":""},{"$f":"IF('1. Order'!L704=\"\",\"\",'1. Order'!L704)","v":""},{"$f":"IF('1. Order'!N704=\"\",\"\",'1. Order'!N704)","v":""},null,null,{"$f":"IF('1. Order'!AV704=\"\",\"\",'1. Order'!AV704)","v":""},{"$f":"IF('1. Order'!AI704=\"\",\"\",'1. Order'!AI704)","v":""}]
[{"$f":"IF('1. Order'!B705=\"\",\"\",'1. Order'!B705)","v":""},{"$f":"IF('1. Order'!J705=\"\",\"\",'1. Order'!J705)","v":""},{"$f":"IF('1. Order'!K705=\"\",\"\",'1. Order'!K705)","v":""},{"$f":"IF('1. Order'!L705=\"\",\"\",'1. Order'!L705)","v":""},{"$f":"IF('1. Order'!N705=\"\",\"\",'1. Order'!N705)","v":""},null,null,{"$f":"IF('1. Order'!AV705=\"\",\"\",'1. Order'!AV705)","v":""},{"$f":"IF('1. Order'!AI705=\"\",\"\",'1. Order'!AI705)","v":""}]
[{"$f":"IF('1. Order'!B706=\"\",\"\",'1. Order'!B706)","v":""},{"$f":"IF('1. Order'!J706=\"\",\"\",'1. Order'!J706)","v":""},{"$f":"IF('1. Order'!K706=\"\",\"\",'1. Order'!K706)","v":""},{"$f":"IF('1. Order'!L706=\"\",\"\",'1. Order'!L706)","v":""},{"$f":"IF('1. Order'!N706=\"\",\"\",'1. Order'!N706)","v":""},null,null,{"$f":"IF('1. Order'!AV706=\"\",\"\",'1. Order'!AV706)","v":""},{"$f":"IF('1. Order'!AI706=\"\",\"\",'1. Order'!AI706)","v":""}]
[{"$f":"IF('1. Order'!B707=\"\",\"\",'1. Order'!B707)","v":""},{"$f":"IF('1. Order'!J707=\"\",\"\",'1. Order'!J707)","v":""},{"$f":"IF('1. Order'!K707=\"\",\"\",'1. Order'!K707)","v":""},{"$f":"IF('1. Order'!L707=\"\",\"\",'1. Order'!L707)","v":""},{"$f":"IF('1. Order'!N707=\"\",\"\",'1. Order'!N707)","v":""},null,null,{"$f":"IF('1. Order'!AV707=\"\",\"\",'1. Order'!AV707)","v":""},{"$f":"IF('1. Order'!AI707=\"\",\"\",'1. Order'!AI707)","v":""}]
[{"$f":"IF('1. Order'!B708=\"\",\"\",'1. Order'!B708)","v":""},{"$f":"IF('1. Order'!J708=\"\",\"\",'1. Order'!J708)","v":""},{"$f":"IF('1. Order'!K708=\"\",\"\",'1. Order'!K708)","v":""},{"$f":"IF('1. Order'!L708=\"\",\"\",'1. Order'!L708)","v":""},{"$f":"IF('1. Order'!N708=\"\",\"\",'1. Order'!N708)","v":""},null,null,{"$f":"IF('1. Order'!AV708=\"\",\"\",'1. Order'!AV708)","v":""},{"$f":"IF('1. Order'!AI708=\"\",\"\",'1. Order'!AI708)","v":""}]
[{"$f":"IF('1. Order'!B709=\"\",\"\",'1. Order'!B709)","v":""},{"$f":"IF('1. Order'!J709=\"\",\"\",'1. Order'!J709)","v":""},{"$f":"IF('1. Order'!K709=\"\",\"\",'1. Order'!K709)","v":""},{"$f":"IF('1. Order'!L709=\"\",\"\",'1. Order'!L709)","v":""},{"$f":"IF('1. Order'!N709=\"\",\"\",'1. Order'!N709)","v":""},null,null,{"$f":"IF('1. Order'!AV709=\"\",\"\",'1. Order'!AV709)","v":""},{"$f":"IF('1. Order'!AI709=\"\",\"\",'1. Order'!AI709)","v":""}]
[{"$f":"IF('1. Order'!B710=\"\",\"\",'1. Order'!B710)","v":""},{"$f":"IF('1. Order'!J710=\"\",\"\",'1. Order'!J710)","v":""},{"$f":"IF('1. Order'!K710=\"\",\"\",'1. Order'!K710)","v":""},{"$f":"IF('1. Order'!L710=\"\",\"\",'1. Order'!L710)","v":""},{"$f":"IF('1. Order'!N710=\"\",\"\",'1. Order'!N710)","v":""},null,null,{"$f":"IF('1. Order'!AV710=\"\",\"\",'1. Order'!AV710)","v":""},{"$f":"IF('1. Order'!AI710=\"\",\"\",'1. Order'!AI710)","v":""}]
[{"$f":"IF('1. Order'!B711=\"\",\"\",'1. Order'!B711)","v":""},{"$f":"IF('1. Order'!J711=\"\",\"\",'1. Order'!J711)","v":""},{"$f":"IF('1. Order'!K711=\"\",\"\",'1. Order'!K711)","v":""},{"$f":"IF('1. Order'!L711=\"\",\"\",'1. Order'!L711)","v":""},{"$f":"IF('1. Order'!N711=\"\",\"\",'1. Order'!N711)","v":""},null,null,{"$f":"IF('1. Order'!AV711=\"\",\"\",'1. Order'!AV711)","v":""},{"$f":"IF('1. Order'!AI711=\"\",\"\",'1. Order'!AI711)","v":""}]
[{"$f":"IF('1. Order'!B712=\"\",\"\",'1. Order'!B712)","v":""},{"$f":"IF('1. Order'!J712=\"\",\"\",'1. Order'!J712)","v":""},{"$f":"IF('1. Order'!K712=\"\",\"\",'1. Order'!K712)","v":""},{"$f":"IF('1. Order'!L712=\"\",\"\",'1. Order'!L712)","v":""},{"$f":"IF('1. Order'!N712=\"\",\"\",'1. Order'!N712)","v":""},null,null,{"$f":"IF('1. Order'!AV712=\"\",\"\",'1. Order'!AV712)","v":""},{"$f":"IF('1. Order'!AI712=\"\",\"\",'1. Order'!AI712)","v":""}]
[{"$f":"IF('1. Order'!B713=\"\",\"\",'1. Order'!B713)","v":""},{"$f":"IF('1. Order'!J713=\"\",\"\",'1. Order'!J713)","v":""},{"$f":"IF('1. Order'!K713=\"\",\"\",'1. Order'!K713)","v":""},{"$f":"IF('1. Order'!L713=\"\",\"\",'1. Order'!L713)","v":""},{"$f":"IF('1. Order'!N713=\"\",\"\",'1. Order'!N713)","v":""},null,null,{"$f":"IF('1. Order'!AV713=\"\",\"\",'1. Order'!AV713)","v":""},{"$f":"IF('1. Order'!AI713=\"\",\"\",'1. Order'!AI713)","v":""}]
[{"$f":"IF('1. Order'!B714=\"\",\"\",'1. Order'!B714)","v":""},{"$f":"IF('1. Order'!J714=\"\",\"\",'1. Order'!J714)","v":""},{"$f":"IF('1. Order'!K714=\"\",\"\",'1. Order'!K714)","v":""},{"$f":"IF('1. Order'!L714=\"\",\"\",'1. Order'!L714)","v":""},{"$f":"IF('1. Order'!N714=\"\",\"\",'1. Order'!N714)","v":""},null,null,{"$f":"IF('1. Order'!AV714=\"\",\"\",'1. Order'!AV714)","v":""},{"$f":"IF('1. Order'!AI714=\"\",\"\",'1. Order'!AI714)","v":""}]
[{"$f":"IF('1. Order'!B715=\"\",\"\",'1. Order'!B715)","v":""},{"$f":"IF('1. Order'!J715=\"\",\"\",'1. Order'!J715)","v":""},{"$f":"IF('1. Order'!K715=\"\",\"\",'1. Order'!K715)","v":""},{"$f":"IF('1. Order'!L715=\"\",\"\",'1. Order'!L715)","v":""},{"$f":"IF('1. Order'!N715=\"\",\"\",'1. Order'!N715)","v":""},null,null,{"$f":"IF('1. Order'!AV715=\"\",\"\",'1. Order'!AV715)","v":""},{"$f":"IF('1. Order'!AI715=\"\",\"\",'1. Order'!AI715)","v":""}]
[{"$f":"IF('1. Order'!B716=\"\",\"\",'1. Order'!B716)","v":""},{"$f":"IF('1. Order'!J716=\"\",\"\",'1. Order'!J716)","v":""},{"$f":"IF('1. Order'!K716=\"\",\"\",'1. Order'!K716)","v":""},{"$f":"IF('1. Order'!L716=\"\",\"\",'1. Order'!L716)","v":""},{"$f":"IF('1. Order'!N716=\"\",\"\",'1. Order'!N716)","v":""},null,null,{"$f":"IF('1. Order'!AV716=\"\",\"\",'1. Order'!AV716)","v":""},{"$f":"IF('1. Order'!AI716=\"\",\"\",'1. Order'!AI716)","v":""}]
[{"$f":"IF('1. Order'!B717=\"\",\"\",'1. Order'!B717)","v":""},{"$f":"IF('1. Order'!J717=\"\",\"\",'1. Order'!J717)","v":""},{"$f":"IF('1. Order'!K717=\"\",\"\",'1. Order'!K717)","v":""},{"$f":"IF('1. Order'!L717=\"\",\"\",'1. Order'!L717)","v":""},{"$f":"IF('1. Order'!N717=\"\",\"\",'1. Order'!N717)","v":""},null,null,{"$f":"IF('1. Order'!AV717=\"\",\"\",'1. Order'!AV717)","v":""},{"$f":"IF('1. Order'!AI717=\"\",\"\",'1. Order'!AI717)","v":""}]
[{"$f":"IF('1. Order'!B718=\"\",\"\",'1. Order'!B718)","v":""},{"$f":"IF('1. Order'!J718=\"\",\"\",'1. Order'!J718)","v":""},{"$f":"IF('1. Order'!K718=\"\",\"\",'1. Order'!K718)","v":""},{"$f":"IF('1. Order'!L718=\"\",\"\",'1. Order'!L718)","v":""},{"$f":"IF('1. Order'!N718=\"\",\"\",'1. Order'!N718)","v":""},null,null,{"$f":"IF('1. Order'!AV718=\"\",\"\",'1. Order'!AV718)","v":""},{"$f":"IF('1. Order'!AI718=\"\",\"\",'1. Order'!AI718)","v":""}]
[{"$f":"IF('1. Order'!B719=\"\",\"\",'1. Order'!B719)","v":""},{"$f":"IF('1. Order'!J719=\"\",\"\",'1. Order'!J719)","v":""},{"$f":"IF('1. Order'!K719=\"\",\"\",'1. Order'!K719)","v":""},{"$f":"IF('1. Order'!L719=\"\",\"\",'1. Order'!L719)","v":""},{"$f":"IF('1. Order'!N719=\"\",\"\",'1. Order'!N719)","v":""},null,null,{"$f":"IF('1. Order'!AV719=\"\",\"\",'1. Order'!AV719)","v":""},{"$f":"IF('1. Order'!AI719=\"\",\"\",'1. Order'!AI719)","v":""}]
[{"$f":"IF('1. Order'!B720=\"\",\"\",'1. Order'!B720)","v":""},{"$f":"IF('1. Order'!J720=\"\",\"\",'1. Order'!J720)","v":""},{"$f":"IF('1. Order'!K720=\"\",\"\",'1. Order'!K720)","v":""},{"$f":"IF('1. Order'!L720=\"\",\"\",'1. Order'!L720)","v":""},{"$f":"IF('1. Order'!N720=\"\",\"\",'1. Order'!N720)","v":""},null,null,{"$f":"IF('1. Order'!AV720=\"\",\"\",'1. Order'!AV720)","v":""},{"$f":"IF('1. Order'!AI720=\"\",\"\",'1. Order'!AI720)","v":""}]
[{"$f":"IF('1. Order'!B721=\"\",\"\",'1. Order'!B721)","v":""},{"$f":"IF('1. Order'!J721=\"\",\"\",'1. Order'!J721)","v":""},{"$f":"IF('1. Order'!K721=\"\",\"\",'1. Order'!K721)","v":""},{"$f":"IF('1. Order'!L721=\"\",\"\",'1. Order'!L721)","v":""},{"$f":"IF('1. Order'!N721=\"\",\"\",'1. Order'!N721)","v":""},null,null,{"$f":"IF('1. Order'!AV721=\"\",\"\",'1. Order'!AV721)","v":""},{"$f":"IF('1. Order'!AI721=\"\",\"\",'1. Order'!AI721)","v":""}]
[{"$f":"IF('1. Order'!B722=\"\",\"\",'1. Order'!B722)","v":""},{"$f":"IF('1. Order'!J722=\"\",\"\",'1. Order'!J722)","v":""},{"$f":"IF('1. Order'!K722=\"\",\"\",'1. Order'!K722)","v":""},{"$f":"IF('1. Order'!L722=\"\",\"\",'1. Order'!L722)","v":""},{"$f":"IF('1. Order'!N722=\"\",\"\",'1. Order'!N722)","v":""},null,null,{"$f":"IF('1. Order'!AV722=\"\",\"\",'1. Order'!AV722)","v":""},{"$f":"IF('1. Order'!AI722=\"\",\"\",'1. Order'!AI722)","v":""}]
[{"$f":"IF('1. Order'!B723=\"\",\"\",'1. Order'!B723)","v":""},{"$f":"IF('1. Order'!J723=\"\",\"\",'1. Order'!J723)","v":""},{"$f":"IF('1. Order'!K723=\"\",\"\",'1. Order'!K723)","v":""},{"$f":"IF('1. Order'!L723=\"\",\"\",'1. Order'!L723)","v":""},{"$f":"IF('1. Order'!N723=\"\",\"\",'1. Order'!N723)","v":""},null,null,{"$f":"IF('1. Order'!AV723=\"\",\"\",'1. Order'!AV723)","v":""},{"$f":"IF('1. Order'!AI723=\"\",\"\",'1. Order'!AI723)","v":""}]
[{"$f":"IF('1. Order'!B724=\"\",\"\",'1. Order'!B724)","v":""},{"$f":"IF('1. Order'!J724=\"\",\"\",'1. Order'!J724)","v":""},{"$f":"IF('1. Order'!K724=\"\",\"\",'1. Order'!K724)","v":""},{"$f":"IF('1. Order'!L724=\"\",\"\",'1. Order'!L724)","v":""},{"$f":"IF('1. Order'!N724=\"\",\"\",'1. Order'!N724)","v":""},null,null,{"$f":"IF('1. Order'!AV724=\"\",\"\",'1. Order'!AV724)","v":""},{"$f":"IF('1. Order'!AI724=\"\",\"\",'1. Order'!AI724)","v":""}]
[{"$f":"IF('1. Order'!B725=\"\",\"\",'1. Order'!B725)","v":""},{"$f":"IF('1. Order'!J725=\"\",\"\",'1. Order'!J725)","v":""},{"$f":"IF('1. Order'!K725=\"\",\"\",'1. Order'!K725)","v":""},{"$f":"IF('1. Order'!L725=\"\",\"\",'1. Order'!L725)","v":""},{"$f":"IF('1. Order'!N725=\"\",\"\",'1. Order'!N725)","v":""},null,null,{"$f":"IF('1. Order'!AV725=\"\",\"\",'1. Order'!AV725)","v":""},{"$f":"IF('1. Order'!AI725=\"\",\"\",'1. Order'!AI725)","v":""}]
[{"$f":"IF('1. Order'!B726=\"\",\"\",'1. Order'!B726)","v":""},{"$f":"IF('1. Order'!J726=\"\",\"\",'1. Order'!J726)","v":""},{"$f":"IF('1. Order'!K726=\"\",\"\",'1. Order'!K726)","v":""},{"$f":"IF('1. Order'!L726=\"\",\"\",'1. Order'!L726)","v":""},{"$f":"IF('1. Order'!N726=\"\",\"\",'1. Order'!N726)","v":""},null,null,{"$f":"IF('1. Order'!AV726=\"\",\"\",'1. Order'!AV726)","v":""},{"$f":"IF('1. Order'!AI726=\"\",\"\",'1. Order'!AI726)","v":""}]
[{"$f":"IF('1. Order'!B727=\"\",\"\",'1. Order'!B727)","v":""},{"$f":"IF('1. Order'!J727=\"\",\"\",'1. Order'!J727)","v":""},{"$f":"IF('1. Order'!K727=\"\",\"\",'1. Order'!K727)","v":""},{"$f":"IF('1. Order'!L727=\"\",\"\",'1. Order'!L727)","v":""},{"$f":"IF('1. Order'!N727=\"\",\"\",'1. Order'!N727)","v":""},null,null,{"$f":"IF('1. Order'!AV727=\"\",\"\",'1. Order'!AV727)","v":""},{"$f":"IF('1. Order'!AI727=\"\",\"\",'1. Order'!AI727)","v":""}]
[{"$f":"IF('1. Order'!B728=\"\",\"\",'1. Order'!B728)","v":""},{"$f":"IF('1. Order'!J728=\"\",\"\",'1. Order'!J728)","v":""},{"$f":"IF('1. Order'!K728=\"\",\"\",'1. Order'!K728)","v":""},{"$f":"IF('1. Order'!L728=\"\",\"\",'1. Order'!L728)","v":""},{"$f":"IF('1. Order'!N728=\"\",\"\",'1. Order'!N728)","v":""},null,null,{"$f":"IF('1. Order'!AV728=\"\",\"\",'1. Order'!AV728)","v":""},{"$f":"IF('1. Order'!AI728=\"\",\"\",'1. Order'!AI728)","v":""}]
[{"$f":"IF('1. Order'!B729=\"\",\"\",'1. Order'!B729)","v":""},{"$f":"IF('1. Order'!J729=\"\",\"\",'1. Order'!J729)","v":""},{"$f":"IF('1. Order'!K729=\"\",\"\",'1. Order'!K729)","v":""},{"$f":"IF('1. Order'!L729=\"\",\"\",'1. Order'!L729)","v":""},{"$f":"IF('1. Order'!N729=\"\",\"\",'1. Order'!N729)","v":""},null,null,{"$f":"IF('1. Order'!AV729=\"\",\"\",'1. Order'!AV729)","v":""},{"$f":"IF('1. Order'!AI729=\"\",\"\",'1. Order'!AI729)","v":""}]
[{"$f":"IF('1. Order'!B730=\"\",\"\",'1. Order'!B730)","v":""},{"$f":"IF('1. Order'!J730=\"\",\"\",'1. Order'!J730)","v":""},{"$f":"IF('1. Order'!K730=\"\",\"\",'1. Order'!K730)","v":""},{"$f":"IF('1. Order'!L730=\"\",\"\",'1. Order'!L730)","v":""},{"$f":"IF('1. Order'!N730=\"\",\"\",'1. Order'!N730)","v":""},null,null,{"$f":"IF('1. Order'!AV730=\"\",\"\",'1. Order'!AV730)","v":""},{"$f":"IF('1. Order'!AI730=\"\",\"\",'1. Order'!AI730)","v":""}]
[{"$f":"IF('1. Order'!B731=\"\",\"\",'1. Order'!B731)","v":""},{"$f":"IF('1. Order'!J731=\"\",\"\",'1. Order'!J731)","v":""},{"$f":"IF('1. Order'!K731=\"\",\"\",'1. Order'!K731)","v":""},{"$f":"IF('1. Order'!L731=\"\",\"\",'1. Order'!L731)","v":""},{"$f":"IF('1. Order'!N731=\"\",\"\",'1. Order'!N731)","v":""},null,null,{"$f":"IF('1. Order'!AV731=\"\",\"\",'1. Order'!AV731)","v":""},{"$f":"IF('1. Order'!AI731=\"\",\"\",'1. Order'!AI731)","v":""}]
[{"$f":"IF('1. Order'!B732=\"\",\"\",'1. Order'!B732)","v":""},{"$f":"IF('1. Order'!J732=\"\",\"\",'1. Order'!J732)","v":""},{"$f":"IF('1. Order'!K732=\"\",\"\",'1. Order'!K732)","v":""},{"$f":"IF('1. Order'!L732=\"\",\"\",'1. Order'!L732)","v":""},{"$f":"IF('1. Order'!N732=\"\",\"\",'1. Order'!N732)","v":""},null,null,{"$f":"IF('1. Order'!AV732=\"\",\"\",'1. Order'!AV732)","v":""},{"$f":"IF('1. Order'!AI732=\"\",\"\",'1. Order'!AI732)","v":""}]
[{"$f":"IF('1. Order'!B733=\"\",\"\",'1. Order'!B733)","v":""},{"$f":"IF('1. Order'!J733=\"\",\"\",'1. Order'!J733)","v":""},{"$f":"IF('1. Order'!K733=\"\",\"\",'1. Order'!K733)","v":""},{"$f":"IF('1. Order'!L733=\"\",\"\",'1. Order'!L733)","v":""},{"$f":"IF('1. Order'!N733=\"\",\"\",'1. Order'!N733)","v":""},null,null,{"$f":"IF('1. Order'!AV733=\"\",\"\",'1. Order'!AV733)","v":""},{"$f":"IF('1. Order'!AI733=\"\",\"\",'1. Order'!AI733)","v":""}]
[{"$f":"IF('1. Order'!B734=\"\",\"\",'1. Order'!B734)","v":""},{"$f":"IF('1. Order'!J734=\"\",\"\",'1. Order'!J734)","v":""},{"$f":"IF('1. Order'!K734=\"\",\"\",'1. Order'!K734)","v":""},{"$f":"IF('1. Order'!L734=\"\",\"\",'1. Order'!L734)","v":""},{"$f":"IF('1. Order'!N734=\"\",\"\",'1. Order'!N734)","v":""},null,null,{"$f":"IF('1. Order'!AV734=\"\",\"\",'1. Order'!AV734)","v":""},{"$f":"IF('1. Order'!AI734=\"\",\"\",'1. Order'!AI734)","v":""}]
[{"$f":"IF('1. Order'!B735=\"\",\"\",'1. Order'!B735)","v":""},{"$f":"IF('1. Order'!J735=\"\",\"\",'1. Order'!J735)","v":""},{"$f":"IF('1. Order'!K735=\"\",\"\",'1. Order'!K735)","v":""},{"$f":"IF('1. Order'!L735=\"\",\"\",'1. Order'!L735)","v":""},{"$f":"IF('1. Order'!N735=\"\",\"\",'1. Order'!N735)","v":""},null,null,{"$f":"IF('1. Order'!AV735=\"\",\"\",'1. Order'!AV735)","v":""},{"$f":"IF('1. Order'!AI735=\"\",\"\",'1. Order'!AI735)","v":""}]
[{"$f":"IF('1. Order'!B736=\"\",\"\",'1. Order'!B736)","v":""},{"$f":"IF('1. Order'!J736=\"\",\"\",'1. Order'!J736)","v":""},{"$f":"IF('1. Order'!K736=\"\",\"\",'1. Order'!K736)","v":""},{"$f":"IF('1. Order'!L736=\"\",\"\",'1. Order'!L736)","v":""},{"$f":"IF('1. Order'!N736=\"\",\"\",'1. Order'!N736)","v":""},null,null,{"$f":"IF('1. Order'!AV736=\"\",\"\",'1. Order'!AV736)","v":""},{"$f":"IF('1. Order'!AI736=\"\",\"\",'1. Order'!AI736)","v":""}]
[{"$f":"IF('1. Order'!B737=\"\",\"\",'1. Order'!B737)","v":""},{"$f":"IF('1. Order'!J737=\"\",\"\",'1. Order'!J737)","v":""},{"$f":"IF('1. Order'!K737=\"\",\"\",'1. Order'!K737)","v":""},{"$f":"IF('1. Order'!L737=\"\",\"\",'1. Order'!L737)","v":""},{"$f":"IF('1. Order'!N737=\"\",\"\",'1. Order'!N737)","v":""},null,null,{"$f":"IF('1. Order'!AV737=\"\",\"\",'1. Order'!AV737)","v":""},{"$f":"IF('1. Order'!AI737=\"\",\"\",'1. Order'!AI737)","v":""}]
[{"$f":"IF('1. Order'!B738=\"\",\"\",'1. Order'!B738)","v":""},{"$f":"IF('1. Order'!J738=\"\",\"\",'1. Order'!J738)","v":""},{"$f":"IF('1. Order'!K738=\"\",\"\",'1. Order'!K738)","v":""},{"$f":"IF('1. Order'!L738=\"\",\"\",'1. Order'!L738)","v":""},{"$f":"IF('1. Order'!N738=\"\",\"\",'1. Order'!N738)","v":""},null,null,{"$f":"IF('1. Order'!AV738=\"\",\"\",'1. Order'!AV738)","v":""},{"$f":"IF('1. Order'!AI738=\"\",\"\",'1. Order'!AI738)","v":""}]
[{"$f":"IF('1. Order'!B739=\"\",\"\",'1. Order'!B739)","v":""},{"$f":"IF('1. Order'!J739=\"\",\"\",'1. Order'!J739)","v":""},{"$f":"IF('1. Order'!K739=\"\",\"\",'1. Order'!K739)","v":""},{"$f":"IF('1. Order'!L739=\"\",\"\",'1. Order'!L739)","v":""},{"$f":"IF('1. Order'!N739=\"\",\"\",'1. Order'!N739)","v":""},null,null,{"$f":"IF('1. Order'!AV739=\"\",\"\",'1. Order'!AV739)","v":""},{"$f":"IF('1. Order'!AI739=\"\",\"\",'1. Order'!AI739)","v":""}]
[{"$f":"IF('1. Order'!B740=\"\",\"\",'1. Order'!B740)","v":""},{"$f":"IF('1. Order'!J740=\"\",\"\",'1. Order'!J740)","v":""},{"$f":"IF('1. Order'!K740=\"\",\"\",'1. Order'!K740)","v":""},{"$f":"IF('1. Order'!L740=\"\",\"\",'1. Order'!L740)","v":""},{"$f":"IF('1. Order'!N740=\"\",\"\",'1. Order'!N740)","v":""},null,null,{"$f":"IF('1. Order'!AV740=\"\",\"\",'1. Order'!AV740)","v":""},{"$f":"IF('1. Order'!AI740=\"\",\"\",'1. Order'!AI740)","v":""}]
[{"$f":"IF('1. Order'!B741=\"\",\"\",'1. Order'!B741)","v":""},{"$f":"IF('1. Order'!J741=\"\",\"\",'1. Order'!J741)","v":""},{"$f":"IF('1. Order'!K741=\"\",\"\",'1. Order'!K741)","v":""},{"$f":"IF('1. Order'!L741=\"\",\"\",'1. Order'!L741)","v":""},{"$f":"IF('1. Order'!N741=\"\",\"\",'1. Order'!N741)","v":""},null,null,{"$f":"IF('1. Order'!AV741=\"\",\"\",'1. Order'!AV741)","v":""},{"$f":"IF('1. Order'!AI741=\"\",\"\",'1. Order'!AI741)","v":""}]
[{"$f":"IF('1. Order'!B742=\"\",\"\",'1. Order'!B742)","v":""},{"$f":"IF('1. Order'!J742=\"\",\"\",'1. Order'!J742)","v":""},{"$f":"IF('1. Order'!K742=\"\",\"\",'1. Order'!K742)","v":""},{"$f":"IF('1. Order'!L742=\"\",\"\",'1. Order'!L742)","v":""},{"$f":"IF('1. Order'!N742=\"\",\"\",'1. Order'!N742)","v":""},null,null,{"$f":"IF('1. Order'!AV742=\"\",\"\",'1. Order'!AV742)","v":""},{"$f":"IF('1. Order'!AI742=\"\",\"\",'1. Order'!AI742)","v":""}]
[{"$f":"IF('1. Order'!B743=\"\",\"\",'1. Order'!B743)","v":""},{"$f":"IF('1. Order'!J743=\"\",\"\",'1. Order'!J743)","v":""},{"$f":"IF('1. Order'!K743=\"\",\"\",'1. Order'!K743)","v":""},{"$f":"IF('1. Order'!L743=\"\",\"\",'1. Order'!L743)","v":""},{"$f":"IF('1. Order'!N743=\"\",\"\",'1. Order'!N743)","v":""},null,null,{"$f":"IF('1. Order'!AV743=\"\",\"\",'1. Order'!AV743)","v":""},{"$f":"IF('1. Order'!AI743=\"\",\"\",'1. Order'!AI743)","v":""}]
[{"$f":"IF('1. Order'!B744=\"\",\"\",'1. Order'!B744)","v":""},{"$f":"IF('1. Order'!J744=\"\",\"\",'1. Order'!J744)","v":""},{"$f":"IF('1. Order'!K744=\"\",\"\",'1. Order'!K744)","v":""},{"$f":"IF('1. Order'!L744=\"\",\"\",'1. Order'!L744)","v":""},{"$f":"IF('1. Order'!N744=\"\",\"\",'1. Order'!N744)","v":""},null,null,{"$f":"IF('1. Order'!AV744=\"\",\"\",'1. Order'!AV744)","v":""},{"$f":"IF('1. Order'!AI744=\"\",\"\",'1. Order'!AI744)","v":""}]
[{"$f":"IF('1. Order'!B745=\"\",\"\",'1. Order'!B745)","v":""},{"$f":"IF('1. Order'!J745=\"\",\"\",'1. Order'!J745)","v":""},{"$f":"IF('1. Order'!K745=\"\",\"\",'1. Order'!K745)","v":""},{"$f":"IF('1. Order'!L745=\"\",\"\",'1. Order'!L745)","v":""},{"$f":"IF('1. Order'!N745=\"\",\"\",'1. Order'!N745)","v":""},null,null,{"$f":"IF('1. Order'!AV745=\"\",\"\",'1. Order'!AV745)","v":""},{"$f":"IF('1. Order'!AI745=\"\",\"\",'1. Order'!AI745)","v":""}]
[{"$f":"IF('1. Order'!B746=\"\",\"\",'1. Order'!B746)","v":""},{"$f":"IF('1. Order'!J746=\"\",\"\",'1. Order'!J746)","v":""},{"$f":"IF('1. Order'!K746=\"\",\"\",'1. Order'!K746)","v":""},{"$f":"IF('1. Order'!L746=\"\",\"\",'1. Order'!L746)","v":""},{"$f":"IF('1. Order'!N746=\"\",\"\",'1. Order'!N746)","v":""},null,null,{"$f":"IF('1. Order'!AV746=\"\",\"\",'1. Order'!AV746)","v":""},{"$f":"IF('1. Order'!AI746=\"\",\"\",'1. Order'!AI746)","v":""}]
[{"$f":"IF('1. Order'!B747=\"\",\"\",'1. Order'!B747)","v":""},{"$f":"IF('1. Order'!J747=\"\",\"\",'1. Order'!J747)","v":""},{"$f":"IF('1. Order'!K747=\"\",\"\",'1. Order'!K747)","v":""},{"$f":"IF('1. Order'!L747=\"\",\"\",'1. Order'!L747)","v":""},{"$f":"IF('1. Order'!N747=\"\",\"\",'1. Order'!N747)","v":""},null,null,{"$f":"IF('1. Order'!AV747=\"\",\"\",'1. Order'!AV747)","v":""},{"$f":"IF('1. Order'!AI747=\"\",\"\",'1. Order'!AI747)","v":""}]
[{"$f":"IF('1. Order'!B748=\"\",\"\",'1. Order'!B748)","v":""},{"$f":"IF('1. Order'!J748=\"\",\"\",'1. Order'!J748)","v":""},{"$f":"IF('1. Order'!K748=\"\",\"\",'1. Order'!K748)","v":""},{"$f":"IF('1. Order'!L748=\"\",\"\",'1. Order'!L748)","v":""},{"$f":"IF('1. Order'!N748=\"\",\"\",'1. Order'!N748)","v":""},null,null,{"$f":"IF('1. Order'!AV748=\"\",\"\",'1. Order'!AV748)","v":""},{"$f":"IF('1. Order'!AI748=\"\",\"\",'1. Order'!AI748)","v":""}]
[{"$f":"IF('1. Order'!B749=\"\",\"\",'1. Order'!B749)","v":""},{"$f":"IF('1. Order'!J749=\"\",\"\",'1. Order'!J749)","v":""},{"$f":"IF('1. Order'!K749=\"\",\"\",'1. Order'!K749)","v":""},{"$f":"IF('1. Order'!L749=\"\",\"\",'1. Order'!L749)","v":""},{"$f":"IF('1. Order'!N749=\"\",\"\",'1. Order'!N749)","v":""},null,null,{"$f":"IF('1. Order'!AV749=\"\",\"\",'1. Order'!AV749)","v":""},{"$f":"IF('1. Order'!AI749=\"\",\"\",'1. Order'!AI749)","v":""}]
[{"$f":"IF('1. Order'!B750=\"\",\"\",'1. Order'!B750)","v":""},{"$f":"IF('1. Order'!J750=\"\",\"\",'1. Order'!J750)","v":""},{"$f":"IF('1. Order'!K750=\"\",\"\",'1. Order'!K750)","v":""},{"$f":"IF('1. Order'!L750=\"\",\"\",'1. Order'!L750)","v":""},{"$f":"IF('1. Order'!N750=\"\",\"\",'1. Order'!N750)","v":""},null,null,{"$f":"IF('1. Order'!AV750=\"\",\"\",'1. Order'!AV750)","v":""},{"$f":"IF('1. Order'!AI750=\"\",\"\",'1. Order'!AI750)","v":""}]
[{"$f":"IF('1. Order'!B751=\"\",\"\",'1. Order'!B751)","v":""},{"$f":"IF('1. Order'!J751=\"\",\"\",'1. Order'!J751)","v":""},{"$f":"IF('1. Order'!K751=\"\",\"\",'1. Order'!K751)","v":""},{"$f":"IF('1. Order'!L751=\"\",\"\",'1. Order'!L751)","v":""},{"$f":"IF('1. Order'!N751=\"\",\"\",'1. Order'!N751)","v":""},null,null,{"$f":"IF('1. Order'!AV751=\"\",\"\",'1. Order'!AV751)","v":""},{"$f":"IF('1. Order'!AI751=\"\",\"\",'1. Order'!AI751)","v":""}]
[{"$f":"IF('1. Order'!B752=\"\",\"\",'1. Order'!B752)","v":""},{"$f":"IF('1. Order'!J752=\"\",\"\",'1. Order'!J752)","v":""},{"$f":"IF('1. Order'!K752=\"\",\"\",'1. Order'!K752)","v":""},{"$f":"IF('1. Order'!L752=\"\",\"\",'1. Order'!L752)","v":""},{"$f":"IF('1. Order'!N752=\"\",\"\",'1. Order'!N752)","v":""},null,null,{"$f":"IF('1. Order'!AV752=\"\",\"\",'1. Order'!AV752)","v":""},{"$f":"IF('1. Order'!AI752=\"\",\"\",'1. Order'!AI752)","v":""}]
[{"$f":"IF('1. Order'!B753=\"\",\"\",'1. Order'!B753)","v":""},{"$f":"IF('1. Order'!J753=\"\",\"\",'1. Order'!J753)","v":""},{"$f":"IF('1. Order'!K753=\"\",\"\",'1. Order'!K753)","v":""},{"$f":"IF('1. Order'!L753=\"\",\"\",'1. Order'!L753)","v":""},{"$f":"IF('1. Order'!N753=\"\",\"\",'1. Order'!N753)","v":""},null,null,{"$f":"IF('1. Order'!AV753=\"\",\"\",'1. Order'!AV753)","v":""},{"$f":"IF('1. Order'!AI753=\"\",\"\",'1. Order'!AI753)","v":""}]
[{"$f":"IF('1. Order'!B754=\"\",\"\",'1. Order'!B754)","v":""},{"$f":"IF('1. Order'!J754=\"\",\"\",'1. Order'!J754)","v":""},{"$f":"IF('1. Order'!K754=\"\",\"\",'1. Order'!K754)","v":""},{"$f":"IF('1. Order'!L754=\"\",\"\",'1. Order'!L754)","v":""},{"$f":"IF('1. Order'!N754=\"\",\"\",'1. Order'!N754)","v":""},null,null,{"$f":"IF('1. Order'!AV754=\"\",\"\",'1. Order'!AV754)","v":""},{"$f":"IF('1. Order'!AI754=\"\",\"\",'1. Order'!AI754)","v":""}]
[{"$f":"IF('1. Order'!B755=\"\",\"\",'1. Order'!B755)","v":""},{"$f":"IF('1. Order'!J755=\"\",\"\",'1. Order'!J755)","v":""},{"$f":"IF('1. Order'!K755=\"\",\"\",'1. Order'!K755)","v":""},{"$f":"IF('1. Order'!L755=\"\",\"\",'1. Order'!L755)","v":""},{"$f":"IF('1. Order'!N755=\"\",\"\",'1. Order'!N755)","v":""},null,null,{"$f":"IF('1. Order'!AV755=\"\",\"\",'1. Order'!AV755)","v":""},{"$f":"IF('1. Order'!AI755=\"\",\"\",'1. Order'!AI755)","v":""}]
[{"$f":"IF('1. Order'!B756=\"\",\"\",'1. Order'!B756)","v":""},{"$f":"IF('1. Order'!J756=\"\",\"\",'1. Order'!J756)","v":""},{"$f":"IF('1. Order'!K756=\"\",\"\",'1. Order'!K756)","v":""},{"$f":"IF('1. Order'!L756=\"\",\"\",'1. Order'!L756)","v":""},{"$f":"IF('1. Order'!N756=\"\",\"\",'1. Order'!N756)","v":""},null,null,{"$f":"IF('1. Order'!AV756=\"\",\"\",'1. Order'!AV756)","v":""},{"$f":"IF('1. Order'!AI756=\"\",\"\",'1. Order'!AI756)","v":""}]
[{"$f":"IF('1. Order'!B757=\"\",\"\",'1. Order'!B757)","v":""},{"$f":"IF('1. Order'!J757=\"\",\"\",'1. Order'!J757)","v":""},{"$f":"IF('1. Order'!K757=\"\",\"\",'1. Order'!K757)","v":""},{"$f":"IF('1. Order'!L757=\"\",\"\",'1. Order'!L757)","v":""},{"$f":"IF('1. Order'!N757=\"\",\"\",'1. Order'!N757)","v":""},null,null,{"$f":"IF('1. Order'!AV757=\"\",\"\",'1. Order'!AV757)","v":""},{"$f":"IF('1. Order'!AI757=\"\",\"\",'1. Order'!AI757)","v":""}]
[{"$f":"IF('1. Order'!B758=\"\",\"\",'1. Order'!B758)","v":""},{"$f":"IF('1. Order'!J758=\"\",\"\",'1. Order'!J758)","v":""},{"$f":"IF('1. Order'!K758=\"\",\"\",'1. Order'!K758)","v":""},{"$f":"IF('1. Order'!L758=\"\",\"\",'1. Order'!L758)","v":""},{"$f":"IF('1. Order'!N758=\"\",\"\",'1. Order'!N758)","v":""},null,null,{"$f":"IF('1. Order'!AV758=\"\",\"\",'1. Order'!AV758)","v":""},{"$f":"IF('1. Order'!AI758=\"\",\"\",'1. Order'!AI758)","v":""}]
[{"$f":"IF('1. Order'!B759=\"\",\"\",'1. Order'!B759)","v":""},{"$f":"IF('1. Order'!J759=\"\",\"\",'1. Order'!J759)","v":""},{"$f":"IF('1. Order'!K759=\"\",\"\",'1. Order'!K759)","v":""},{"$f":"IF('1. Order'!L759=\"\",\"\",'1. Order'!L759)","v":""},{"$f":"IF('1. Order'!N759=\"\",\"\",'1. Order'!N759)","v":""},null,null,{"$f":"IF('1. Order'!AV759=\"\",\"\",'1. Order'!AV759)","v":""},{"$f":"IF('1. Order'!AI759=\"\",\"\",'1. Order'!AI759)","v":""}]
[{"$f":"IF('1. Order'!B760=\"\",\"\",'1. Order'!B760)","v":""},{"$f":"IF('1. Order'!J760=\"\",\"\",'1. Order'!J760)","v":""},{"$f":"IF('1. Order'!K760=\"\",\"\",'1. Order'!K760)","v":""},{"$f":"IF('1. Order'!L760=\"\",\"\",'1. Order'!L760)","v":""},{"$f":"IF('1. Order'!N760=\"\",\"\",'1. Order'!N760)","v":""},null,null,{"$f":"IF('1. Order'!AV760=\"\",\"\",'1. Order'!AV760)","v":""},{"$f":"IF('1. Order'!AI760=\"\",\"\",'1. Order'!AI760)","v":""}]
[{"$f":"IF('1. Order'!B761=\"\",\"\",'1. Order'!B761)","v":""},{"$f":"IF('1. Order'!J761=\"\",\"\",'1. Order'!J761)","v":""},{"$f":"IF('1. Order'!K761=\"\",\"\",'1. Order'!K761)","v":""},{"$f":"IF('1. Order'!L761=\"\",\"\",'1. Order'!L761)","v":""},{"$f":"IF('1. Order'!N761=\"\",\"\",'1. Order'!N761)","v":""},null,null,{"$f":"IF('1. Order'!AV761=\"\",\"\",'1. Order'!AV761)","v":""},{"$f":"IF('1. Order'!AI761=\"\",\"\",'1. Order'!AI761)","v":""}]
[{"$f":"IF('1. Order'!B762=\"\",\"\",'1. Order'!B762)","v":""},{"$f":"IF('1. Order'!J762=\"\",\"\",'1. Order'!J762)","v":""},{"$f":"IF('1. Order'!K762=\"\",\"\",'1. Order'!K762)","v":""},{"$f":"IF('1. Order'!L762=\"\",\"\",'1. Order'!L762)","v":""},{"$f":"IF('1. Order'!N762=\"\",\"\",'1. Order'!N762)","v":""},null,null,{"$f":"IF('1. Order'!AV762=\"\",\"\",'1. Order'!AV762)","v":""},{"$f":"IF('1. Order'!AI762=\"\",\"\",'1. Order'!AI762)","v":""}]
[{"$f":"IF('1. Order'!B763=\"\",\"\",'1. Order'!B763)","v":""},{"$f":"IF('1. Order'!J763=\"\",\"\",'1. Order'!J763)","v":""},{"$f":"IF('1. Order'!K763=\"\",\"\",'1. Order'!K763)","v":""},{"$f":"IF('1. Order'!L763=\"\",\"\",'1. Order'!L763)","v":""},{"$f":"IF('1. Order'!N763=\"\",\"\",'1. Order'!N763)","v":""},null,null,{"$f":"IF('1. Order'!AV763=\"\",\"\",'1. Order'!AV763)","v":""},{"$f":"IF('1. Order'!AI763=\"\",\"\",'1. Order'!AI763)","v":""}]
[{"$f":"IF('1. Order'!B764=\"\",\"\",'1. Order'!B764)","v":""},{"$f":"IF('1. Order'!J764=\"\",\"\",'1. Order'!J764)","v":""},{"$f":"IF('1. Order'!K764=\"\",\"\",'1. Order'!K764)","v":""},{"$f":"IF('1. Order'!L764=\"\",\"\",'1. Order'!L764)","v":""},{"$f":"IF('1. Order'!N764=\"\",\"\",'1. Order'!N764)","v":""},null,null,{"$f":"IF('1. Order'!AV764=\"\",\"\",'1. Order'!AV764)","v":""},{"$f":"IF('1. Order'!AI764=\"\",\"\",'1. Order'!AI764)","v":""}]
[{"$f":"IF('1. Order'!B765=\"\",\"\",'1. Order'!B765)","v":""},{"$f":"IF('1. Order'!J765=\"\",\"\",'1. Order'!J765)","v":""},{"$f":"IF('1. Order'!K765=\"\",\"\",'1. Order'!K765)","v":""},{"$f":"IF('1. Order'!L765=\"\",\"\",'1. Order'!L765)","v":""},{"$f":"IF('1. Order'!N765=\"\",\"\",'1. Order'!N765)","v":""},null,null,{"$f":"IF('1. Order'!AV765=\"\",\"\",'1. Order'!AV765)","v":""},{"$f":"IF('1. Order'!AI765=\"\",\"\",'1. Order'!AI765)","v":""}]
[{"$f":"IF('1. Order'!B766=\"\",\"\",'1. Order'!B766)","v":""},{"$f":"IF('1. Order'!J766=\"\",\"\",'1. Order'!J766)","v":""},{"$f":"IF('1. Order'!K766=\"\",\"\",'1. Order'!K766)","v":""},{"$f":"IF('1. Order'!L766=\"\",\"\",'1. Order'!L766)","v":""},{"$f":"IF('1. Order'!N766=\"\",\"\",'1. Order'!N766)","v":""},null,null,{"$f":"IF('1. Order'!AV766=\"\",\"\",'1. Order'!AV766)","v":""},{"$f":"IF('1. Order'!AI766=\"\",\"\",'1. Order'!AI766)","v":""}]
[{"$f":"IF('1. Order'!B767=\"\",\"\",'1. Order'!B767)","v":""},{"$f":"IF('1. Order'!J767=\"\",\"\",'1. Order'!J767)","v":""},{"$f":"IF('1. Order'!K767=\"\",\"\",'1. Order'!K767)","v":""},{"$f":"IF('1. Order'!L767=\"\",\"\",'1. Order'!L767)","v":""},{"$f":"IF('1. Order'!N767=\"\",\"\",'1. Order'!N767)","v":""},null,null,{"$f":"IF('1. Order'!AV767=\"\",\"\",'1. Order'!AV767)","v":""},{"$f":"IF('1. Order'!AI767=\"\",\"\",'1. Order'!AI767)","v":""}]
[{"$f":"IF('1. Order'!B768=\"\",\"\",'1. Order'!B768)","v":""},{"$f":"IF('1. Order'!J768=\"\",\"\",'1. Order'!J768)","v":""},{"$f":"IF('1. Order'!K768=\"\",\"\",'1. Order'!K768)","v":""},{"$f":"IF('1. Order'!L768=\"\",\"\",'1. Order'!L768)","v":""},{"$f":"IF('1. Order'!N768=\"\",\"\",'1. Order'!N768)","v":""},null,null,{"$f":"IF('1. Order'!AV768=\"\",\"\",'1. Order'!AV768)","v":""},{"$f":"IF('1. Order'!AI768=\"\",\"\",'1. Order'!AI768)","v":""}]
[{"$f":"IF('1. Order'!B769=\"\",\"\",'1. Order'!B769)","v":""},{"$f":"IF('1. Order'!J769=\"\",\"\",'1. Order'!J769)","v":""},{"$f":"IF('1. Order'!K769=\"\",\"\",'1. Order'!K769)","v":""},{"$f":"IF('1. Order'!L769=\"\",\"\",'1. Order'!L769)","v":""},{"$f":"IF('1. Order'!N769=\"\",\"\",'1. Order'!N769)","v":""},null,null,{"$f":"IF('1. Order'!AV769=\"\",\"\",'1. Order'!AV769)","v":""},{"$f":"IF('1. Order'!AI769=\"\",\"\",'1. Order'!AI769)","v":""}]
[{"$f":"IF('1. Order'!B770=\"\",\"\",'1. Order'!B770)","v":""},{"$f":"IF('1. Order'!J770=\"\",\"\",'1. Order'!J770)","v":""},{"$f":"IF('1. Order'!K770=\"\",\"\",'1. Order'!K770)","v":""},{"$f":"IF('1. Order'!L770=\"\",\"\",'1. Order'!L770)","v":""},{"$f":"IF('1. Order'!N770=\"\",\"\",'1. Order'!N770)","v":""},null,null,{"$f":"IF('1. Order'!AV770=\"\",\"\",'1. Order'!AV770)","v":""},{"$f":"IF('1. Order'!AI770=\"\",\"\",'1. Order'!AI770)","v":""}]
[{"$f":"IF('1. Order'!B771=\"\",\"\",'1. Order'!B771)","v":""},{"$f":"IF('1. Order'!J771=\"\",\"\",'1. Order'!J771)","v":""},{"$f":"IF('1. Order'!K771=\"\",\"\",'1. Order'!K771)","v":""},{"$f":"IF('1. Order'!L771=\"\",\"\",'1. Order'!L771)","v":""},{"$f":"IF('1. Order'!N771=\"\",\"\",'1. Order'!N771)","v":""},null,null,{"$f":"IF('1. Order'!AV771=\"\",\"\",'1. Order'!AV771)","v":""},{"$f":"IF('1. Order'!AI771=\"\",\"\",'1. Order'!AI771)","v":""}]
[{"$f":"IF('1. Order'!B772=\"\",\"\",'1. Order'!B772)","v":""},{"$f":"IF('1. Order'!J772=\"\",\"\",'1. Order'!J772)","v":""},{"$f":"IF('1. Order'!K772=\"\",\"\",'1. Order'!K772)","v":""},{"$f":"IF('1. Order'!L772=\"\",\"\",'1. Order'!L772)","v":""},{"$f":"IF('1. Order'!N772=\"\",\"\",'1. Order'!N772)","v":""},null,null,{"$f":"IF('1. Order'!AV772=\"\",\"\",'1. Order'!AV772)","v":""},{"$f":"IF('1. Order'!AI772=\"\",\"\",'1. Order'!AI772)","v":""}]
[{"$f":"IF('1. Order'!B773=\"\",\"\",'1. Order'!B773)","v":""},{"$f":"IF('1. Order'!J773=\"\",\"\",'1. Order'!J773)","v":""},{"$f":"IF('1. Order'!K773=\"\",\"\",'1. Order'!K773)","v":""},{"$f":"IF('1. Order'!L773=\"\",\"\",'1. Order'!L773)","v":""},{"$f":"IF('1. Order'!N773=\"\",\"\",'1. Order'!N773)","v":""},null,null,{"$f":"IF('1. Order'!AV773=\"\",\"\",'1. Order'!AV773)","v":""},{"$f":"IF('1. Order'!AI773=\"\",\"\",'1. Order'!AI773)","v":""}]
[{"$f":"IF('1. Order'!B774=\"\",\"\",'1. Order'!B774)","v":""},{"$f":"IF('1. Order'!J774=\"\",\"\",'1. Order'!J774)","v":""},{"$f":"IF('1. Order'!K774=\"\",\"\",'1. Order'!K774)","v":""},{"$f":"IF('1. Order'!L774=\"\",\"\",'1. Order'!L774)","v":""},{"$f":"IF('1. Order'!N774=\"\",\"\",'1. Order'!N774)","v":""},null,null,{"$f":"IF('1. Order'!AV774=\"\",\"\",'1. Order'!AV774)","v":""},{"$f":"IF('1. Order'!AI774=\"\",\"\",'1. Order'!AI774)","v":""}]
[{"$f":"IF('1. Order'!B775=\"\",\"\",'1. Order'!B775)","v":""},{"$f":"IF('1. Order'!J775=\"\",\"\",'1. Order'!J775)","v":""},{"$f":"IF('1. Order'!K775=\"\",\"\",'1. Order'!K775)","v":""},{"$f":"IF('1. Order'!L775=\"\",\"\",'1. Order'!L775)","v":""},{"$f":"IF('1. Order'!N775=\"\",\"\",'1. Order'!N775)","v":""},null,null,{"$f":"IF('1. Order'!AV775=\"\",\"\",'1. Order'!AV775)","v":""},{"$f":"IF('1. Order'!AI775=\"\",\"\",'1. Order'!AI775)","v":""}]
[{"$f":"IF('1. Order'!B776=\"\",\"\",'1. Order'!B776)","v":""},{"$f":"IF('1. Order'!J776=\"\",\"\",'1. Order'!J776)","v":""},{"$f":"IF('1. Order'!K776=\"\",\"\",'1. Order'!K776)","v":""},{"$f":"IF('1. Order'!L776=\"\",\"\",'1. Order'!L776)","v":""},{"$f":"IF('1. Order'!N776=\"\",\"\",'1. Order'!N776)","v":""},null,null,{"$f":"IF('1. Order'!AV776=\"\",\"\",'1. Order'!AV776)","v":""},{"$f":"IF('1. Order'!AI776=\"\",\"\",'1. Order'!AI776)","v":""}]
[{"$f":"IF('1. Order'!B777=\"\",\"\",'1. Order'!B777)","v":""},{"$f":"IF('1. Order'!J777=\"\",\"\",'1. Order'!J777)","v":""},{"$f":"IF('1. Order'!K777=\"\",\"\",'1. Order'!K777)","v":""},{"$f":"IF('1. Order'!L777=\"\",\"\",'1. Order'!L777)","v":""},{"$f":"IF('1. Order'!N777=\"\",\"\",'1. Order'!N777)","v":""},null,null,{"$f":"IF('1. Order'!AV777=\"\",\"\",'1. Order'!AV777)","v":""},{"$f":"IF('1. Order'!AI777=\"\",\"\",'1. Order'!AI777)","v":""}]
[{"$f":"IF('1. Order'!B778=\"\",\"\",'1. Order'!B778)","v":""},{"$f":"IF('1. Order'!J778=\"\",\"\",'1. Order'!J778)","v":""},{"$f":"IF('1. Order'!K778=\"\",\"\",'1. Order'!K778)","v":""},{"$f":"IF('1. Order'!L778=\"\",\"\",'1. Order'!L778)","v":""},{"$f":"IF('1. Order'!N778=\"\",\"\",'1. Order'!N778)","v":""},null,null,{"$f":"IF('1. Order'!AV778=\"\",\"\",'1. Order'!AV778)","v":""},{"$f":"IF('1. Order'!AI778=\"\",\"\",'1. Order'!AI778)","v":""}]
[{"$f":"IF('1. Order'!B779=\"\",\"\",'1. Order'!B779)","v":""},{"$f":"IF('1. Order'!J779=\"\",\"\",'1. Order'!J779)","v":""},{"$f":"IF('1. Order'!K779=\"\",\"\",'1. Order'!K779)","v":""},{"$f":"IF('1. Order'!L779=\"\",\"\",'1. Order'!L779)","v":""},{"$f":"IF('1. Order'!N779=\"\",\"\",'1. Order'!N779)","v":""},null,null,{"$f":"IF('1. Order'!AV779=\"\",\"\",'1. Order'!AV779)","v":""},{"$f":"IF('1. Order'!AI779=\"\",\"\",'1. Order'!AI779)","v":""}]
[{"$f":"IF('1. Order'!B780=\"\",\"\",'1. Order'!B780)","v":""},{"$f":"IF('1. Order'!J780=\"\",\"\",'1. Order'!J780)","v":""},{"$f":"IF('1. Order'!K780=\"\",\"\",'1. Order'!K780)","v":""},{"$f":"IF('1. Order'!L780=\"\",\"\",'1. Order'!L780)","v":""},{"$f":"IF('1. Order'!N780=\"\",\"\",'1. Order'!N780)","v":""},null,null,{"$f":"IF('1. Order'!AV780=\"\",\"\",'1. Order'!AV780)","v":""},{"$f":"IF('1. Order'!AI780=\"\",\"\",'1. Order'!AI780)","v":""}]
[{"$f":"IF('1. Order'!B781=\"\",\"\",'1. Order'!B781)","v":""},{"$f":"IF('1. Order'!J781=\"\",\"\",'1. Order'!J781)","v":""},{"$f":"IF('1. Order'!K781=\"\",\"\",'1. Order'!K781)","v":""},{"$f":"IF('1. Order'!L781=\"\",\"\",'1. Order'!L781)","v":""},{"$f":"IF('1. Order'!N781=\"\",\"\",'1. Order'!N781)","v":""},null,null,{"$f":"IF('1. Order'!AV781=\"\",\"\",'1. Order'!AV781)","v":""},{"$f":"IF('1. Order'!AI781=\"\",\"\",'1. Order'!AI781)","v":""}]
[{"$f":"IF('1. Order'!B782=\"\",\"\",'1. Order'!B782)","v":""},{"$f":"IF('1. Order'!J782=\"\",\"\",'1. Order'!J782)","v":""},{"$f":"IF('1. Order'!K782=\"\",\"\",'1. Order'!K782)","v":""},{"$f":"IF('1. Order'!L782=\"\",\"\",'1. Order'!L782)","v":""},{"$f":"IF('1. Order'!N782=\"\",\"\",'1. Order'!N782)","v":""},null,null,{"$f":"IF('1. Order'!AV782=\"\",\"\",'1. Order'!AV782)","v":""},{"$f":"IF('1. Order'!AI782=\"\",\"\",'1. Order'!AI782)","v":""}]
[{"$f":"IF('1. Order'!B783=\"\",\"\",'1. Order'!B783)","v":""},{"$f":"IF('1. Order'!J783=\"\",\"\",'1. Order'!J783)","v":""},{"$f":"IF('1. Order'!K783=\"\",\"\",'1. Order'!K783)","v":""},{"$f":"IF('1. Order'!L783=\"\",\"\",'1. Order'!L783)","v":""},{"$f":"IF('1. Order'!N783=\"\",\"\",'1. Order'!N783)","v":""},null,null,{"$f":"IF('1. Order'!AV783=\"\",\"\",'1. Order'!AV783)","v":""},{"$f":"IF('1. Order'!AI783=\"\",\"\",'1. Order'!AI783)","v":""}]
[{"$f":"IF('1. Order'!B784=\"\",\"\",'1. Order'!B784)","v":""},{"$f":"IF('1. Order'!J784=\"\",\"\",'1. Order'!J784)","v":""},{"$f":"IF('1. Order'!K784=\"\",\"\",'1. Order'!K784)","v":""},{"$f":"IF('1. Order'!L784=\"\",\"\",'1. Order'!L784)","v":""},{"$f":"IF('1. Order'!N784=\"\",\"\",'1. Order'!N784)","v":""},null,null,{"$f":"IF('1. Order'!AV784=\"\",\"\",'1. Order'!AV784)","v":""},{"$f":"IF('1. Order'!AI784=\"\",\"\",'1. Order'!AI784)","v":""}]
[{"$f":"IF('1. Order'!B785=\"\",\"\",'1. Order'!B785)","v":""},{"$f":"IF('1. Order'!J785=\"\",\"\",'1. Order'!J785)","v":""},{"$f":"IF('1. Order'!K785=\"\",\"\",'1. Order'!K785)","v":""},{"$f":"IF('1. Order'!L785=\"\",\"\",'1. Order'!L785)","v":""},{"$f":"IF('1. Order'!N785=\"\",\"\",'1. Order'!N785)","v":""},null,null,{"$f":"IF('1. Order'!AV785=\"\",\"\",'1. Order'!AV785)","v":""},{"$f":"IF('1. Order'!AI785=\"\",\"\",'1. Order'!AI785)","v":""}]
[{"$f":"IF('1. Order'!B786=\"\",\"\",'1. Order'!B786)","v":""},{"$f":"IF('1. Order'!J786=\"\",\"\",'1. Order'!J786)","v":""},{"$f":"IF('1. Order'!K786=\"\",\"\",'1. Order'!K786)","v":""},{"$f":"IF('1. Order'!L786=\"\",\"\",'1. Order'!L786)","v":""},{"$f":"IF('1. Order'!N786=\"\",\"\",'1. Order'!N786)","v":""},null,null,{"$f":"IF('1. Order'!AV786=\"\",\"\",'1. Order'!AV786)","v":""},{"$f":"IF('1. Order'!AI786=\"\",\"\",'1. Order'!AI786)","v":""}]
[{"$f":"IF('1. Order'!B787=\"\",\"\",'1. Order'!B787)","v":""},{"$f":"IF('1. Order'!J787=\"\",\"\",'1. Order'!J787)","v":""},{"$f":"IF('1. Order'!K787=\"\",\"\",'1. Order'!K787)","v":""},{"$f":"IF('1. Order'!L787=\"\",\"\",'1. Order'!L787)","v":""},{"$f":"IF('1. Order'!N787=\"\",\"\",'1. Order'!N787)","v":""},null,null,{"$f":"IF('1. Order'!AV787=\"\",\"\",'1. Order'!AV787)","v":""},{"$f":"IF('1. Order'!AI787=\"\",\"\",'1. Order'!AI787)","v":""}]
[{"$f":"IF('1. Order'!B788=\"\",\"\",'1. Order'!B788)","v":""},{"$f":"IF('1. Order'!J788=\"\",\"\",'1. Order'!J788)","v":""},{"$f":"IF('1. Order'!K788=\"\",\"\",'1. Order'!K788)","v":""},{"$f":"IF('1. Order'!L788=\"\",\"\",'1. Order'!L788)","v":""},{"$f":"IF('1. Order'!N788=\"\",\"\",'1. Order'!N788)","v":""},null,null,{"$f":"IF('1. Order'!AV788=\"\",\"\",'1. Order'!AV788)","v":""},{"$f":"IF('1. Order'!AI788=\"\",\"\",'1. Order'!AI788)","v":""}]
[{"$f":"IF('1. Order'!B789=\"\",\"\",'1. Order'!B789)","v":""},{"$f":"IF('1. Order'!J789=\"\",\"\",'1. Order'!J789)","v":""},{"$f":"IF('1. Order'!K789=\"\",\"\",'1. Order'!K789)","v":""},{"$f":"IF('1. Order'!L789=\"\",\"\",'1. Order'!L789)","v":""},{"$f":"IF('1. Order'!N789=\"\",\"\",'1. Order'!N789)","v":""},null,null,{"$f":"IF('1. Order'!AV789=\"\",\"\",'1. Order'!AV789)","v":""},{"$f":"IF('1. Order'!AI789=\"\",\"\",'1. Order'!AI789)","v":""}]
[{"$f":"IF('1. Order'!B790=\"\",\"\",'1. Order'!B790)","v":""},{"$f":"IF('1. Order'!J790=\"\",\"\",'1. Order'!J790)","v":""},{"$f":"IF('1. Order'!K790=\"\",\"\",'1. Order'!K790)","v":""},{"$f":"IF('1. Order'!L790=\"\",\"\",'1. Order'!L790)","v":""},{"$f":"IF('1. Order'!N790=\"\",\"\",'1. Order'!N790)","v":""},null,null,{"$f":"IF('1. Order'!AV790=\"\",\"\",'1. Order'!AV790)","v":""},{"$f":"IF('1. Order'!AI790=\"\",\"\",'1. Order'!AI790)","v":""}]
[{"$f":"IF('1. Order'!B791=\"\",\"\",'1. Order'!B791)","v":""},{"$f":"IF('1. Order'!J791=\"\",\"\",'1. Order'!J791)","v":""},{"$f":"IF('1. Order'!K791=\"\",\"\",'1. Order'!K791)","v":""},{"$f":"IF('1. Order'!L791=\"\",\"\",'1. Order'!L791)","v":""},{"$f":"IF('1. Order'!N791=\"\",\"\",'1. Order'!N791)","v":""},null,null,{"$f":"IF('1. Order'!AV791=\"\",\"\",'1. Order'!AV791)","v":""},{"$f":"IF('1. Order'!AI791=\"\",\"\",'1. Order'!AI791)","v":""}]
[{"$f":"IF('1. Order'!B792=\"\",\"\",'1. Order'!B792)","v":""},{"$f":"IF('1. Order'!J792=\"\",\"\",'1. Order'!J792)","v":""},{"$f":"IF('1. Order'!K792=\"\",\"\",'1. Order'!K792)","v":""},{"$f":"IF('1. Order'!L792=\"\",\"\",'1. Order'!L792)","v":""},{"$f":"IF('1. Order'!N792=\"\",\"\",'1. Order'!N792)","v":""},null,null,{"$f":"IF('1. Order'!AV792=\"\",\"\",'1. Order'!AV792)","v":""},{"$f":"IF('1. Order'!AI792=\"\",\"\",'1. Order'!AI792)","v":""}]
[{"$f":"IF('1. Order'!B793=\"\",\"\",'1. Order'!B793)","v":""},{"$f":"IF('1. Order'!J793=\"\",\"\",'1. Order'!J793)","v":""},{"$f":"IF('1. Order'!K793=\"\",\"\",'1. Order'!K793)","v":""},{"$f":"IF('1. Order'!L793=\"\",\"\",'1. Order'!L793)","v":""},{"$f":"IF('1. Order'!N793=\"\",\"\",'1. Order'!N793)","v":""},null,null,{"$f":"IF('1. Order'!AV793=\"\",\"\",'1. Order'!AV793)","v":""},{"$f":"IF('1. Order'!AI793=\"\",\"\",'1. Order'!AI793)","v":""}]
[{"$f":"IF('1. Order'!B794=\"\",\"\",'1. Order'!B794)","v":""},{"$f":"IF('1. Order'!J794=\"\",\"\",'1. Order'!J794)","v":""},{"$f":"IF('1. Order'!K794=\"\",\"\",'1. Order'!K794)","v":""},{"$f":"IF('1. Order'!L794=\"\",\"\",'1. Order'!L794)","v":""},{"$f":"IF('1. Order'!N794=\"\",\"\",'1. Order'!N794)","v":""},null,null,{"$f":"IF('1. Order'!AV794=\"\",\"\",'1. Order'!AV794)","v":""},{"$f":"IF('1. Order'!AI794=\"\",\"\",'1. Order'!AI794)","v":""}]
[{"$f":"IF('1. Order'!B795=\"\",\"\",'1. Order'!B795)","v":""},{"$f":"IF('1. Order'!J795=\"\",\"\",'1. Order'!J795)","v":""},{"$f":"IF('1. Order'!K795=\"\",\"\",'1. Order'!K795)","v":""},{"$f":"IF('1. Order'!L795=\"\",\"\",'1. Order'!L795)","v":""},{"$f":"IF('1. Order'!N795=\"\",\"\",'1. Order'!N795)","v":""},null,null,{"$f":"IF('1. Order'!AV795=\"\",\"\",'1. Order'!AV795)","v":""},{"$f":"IF('1. Order'!AI795=\"\",\"\",'1. Order'!AI795)","v":""}]
[{"$f":"IF('1. Order'!B796=\"\",\"\",'1. Order'!B796)","v":""},{"$f":"IF('1. Order'!J796=\"\",\"\",'1. Order'!J796)","v":""},{"$f":"IF('1. Order'!K796=\"\",\"\",'1. Order'!K796)","v":""},{"$f":"IF('1. Order'!L796=\"\",\"\",'1. Order'!L796)","v":""},{"$f":"IF('1. Order'!N796=\"\",\"\",'1. Order'!N796)","v":""},null,null,{"$f":"IF('1. Order'!AV796=\"\",\"\",'1. Order'!AV796)","v":""},{"$f":"IF('1. Order'!AI796=\"\",\"\",'1. Order'!AI796)","v":""}]
[{"$f":"IF('1. Order'!B797=\"\",\"\",'1. Order'!B797)","v":""},{"$f":"IF('1. Order'!J797=\"\",\"\",'1. Order'!J797)","v":""},{"$f":"IF('1. Order'!K797=\"\",\"\",'1. Order'!K797)","v":""},{"$f":"IF('1. Order'!L797=\"\",\"\",'1. Order'!L797)","v":""},{"$f":"IF('1. Order'!N797=\"\",\"\",'1. Order'!N797)","v":""},null,null,{"$f":"IF('1. Order'!AV797=\"\",\"\",'1. Order'!AV797)","v":""},{"$f":"IF('1. Order'!AI797=\"\",\"\",'1. Order'!AI797)","v":""}]
[{"$f":"IF('1. Order'!B798=\"\",\"\",'1. Order'!B798)","v":""},{"$f":"IF('1. Order'!J798=\"\",\"\",'1. Order'!J798)","v":""},{"$f":"IF('1. Order'!K798=\"\",\"\",'1. Order'!K798)","v":""},{"$f":"IF('1. Order'!L798=\"\",\"\",'1. Order'!L798)","v":""},{"$f":"IF('1. Order'!N798=\"\",\"\",'1. Order'!N798)","v":""},null,null,{"$f":"IF('1. Order'!AV798=\"\",\"\",'1. Order'!AV798)","v":""},{"$f":"IF('1. Order'!AI798=\"\",\"\",'1. Order'!AI798)","v":""}]
[{"$f":"IF('1. Order'!B799=\"\",\"\",'1. Order'!B799)","v":""},{"$f":"IF('1. Order'!J799=\"\",\"\",'1. Order'!J799)","v":""},{"$f":"IF('1. Order'!K799=\"\",\"\",'1. Order'!K799)","v":""},{"$f":"IF('1. Order'!L799=\"\",\"\",'1. Order'!L799)","v":""},{"$f":"IF('1. Order'!N799=\"\",\"\",'1. Order'!N799)","v":""},null,null,{"$f":"IF('1. Order'!AV799=\"\",\"\",'1. Order'!AV799)","v":""},{"$f":"IF('1. Order'!AI799=\"\",\"\",'1. Order'!AI799)","v":""}]
[{"$f":"IF('1. Order'!B800=\"\",\"\",'1. Order'!B800)","v":""},{"$f":"IF('1. Order'!J800=\"\",\"\",'1. Order'!J800)","v":""},{"$f":"IF('1. Order'!K800=\"\",\"\",'1. Order'!K800)","v":""},{"$f":"IF('1. Order'!L800=\"\",\"\",'1. Order'!L800)","v":""},{"$f":"IF('1. Order'!N800=\"\",\"\",'1. Order'!N800)","v":""},null,null,{"$f":"IF('1. Order'!AV800=\"\",\"\",'1. Order'!AV800)","v":""},{"$f":"IF('1. Order'!AI800=\"\",\"\",'1. Order'!AI800)","v":""}]
[{"$f":"IF('1. Order'!B801=\"\",\"\",'1. Order'!B801)","v":""},{"$f":"IF('1. Order'!J801=\"\",\"\",'1. Order'!J801)","v":""},{"$f":"IF('1. Order'!K801=\"\",\"\",'1. Order'!K801)","v":""},{"$f":"IF('1. Order'!L801=\"\",\"\",'1. Order'!L801)","v":""},{"$f":"IF('1. Order'!N801=\"\",\"\",'1. Order'!N801)","v":""},null,null,{"$f":"IF('1. Order'!AV801=\"\",\"\",'1. Order'!AV801)","v":""},{"$f":"IF('1. Order'!AI801=\"\",\"\",'1. Order'!AI801)","v":""}]
[{"$f":"IF('1. Order'!B802=\"\",\"\",'1. Order'!B802)","v":""},{"$f":"IF('1. Order'!J802=\"\",\"\",'1. Order'!J802)","v":""},{"$f":"IF('1. Order'!K802=\"\",\"\",'1. Order'!K802)","v":""},{"$f":"IF('1. Order'!L802=\"\",\"\",'1. Order'!L802)","v":""},{"$f":"IF('1. Order'!N802=\"\",\"\",'1. Order'!N802)","v":""},null,null,{"$f":"IF('1. Order'!AV802=\"\",\"\",'1. Order'!AV802)","v":""},{"$f":"IF('1. Order'!AI802=\"\",\"\",'1. Order'!AI802)","v":""}]
[{"$f":"IF('1. Order'!B803=\"\",\"\",'1. Order'!B803)","v":""},{"$f":"IF('1. Order'!J803=\"\",\"\",'1. Order'!J803)","v":""},{"$f":"IF('1. Order'!K803=\"\",\"\",'1. Order'!K803)","v":""},{"$f":"IF('1. Order'!L803=\"\",\"\",'1. Order'!L803)","v":""},{"$f":"IF('1. Order'!N803=\"\",\"\",'1. Order'!N803)","v":""},null,null,{"$f":"IF('1. Order'!AV803=\"\",\"\",'1. Order'!AV803)","v":""},{"$f":"IF('1. Order'!AI803=\"\",\"\",'1. Order'!AI803)","v":""}]
[{"$f":"IF('1. Order'!B804=\"\",\"\",'1. Order'!B804)","v":""},{"$f":"IF('1. Order'!J804=\"\",\"\",'1. Order'!J804)","v":""},{"$f":"IF('1. Order'!K804=\"\",\"\",'1. Order'!K804)","v":""},{"$f":"IF('1. Order'!L804=\"\",\"\",'1. Order'!L804)","v":""},{"$f":"IF('1. Order'!N804=\"\",\"\",'1. Order'!N804)","v":""},null,null,{"$f":"IF('1. Order'!AV804=\"\",\"\",'1. Order'!AV804)","v":""},{"$f":"IF('1. Order'!AI804=\"\",\"\",'1. Order'!AI804)","v":""}]
[{"$f":"IF('1. Order'!B805=\"\",\"\",'1. Order'!B805)","v":""},{"$f":"IF('1. Order'!J805=\"\",\"\",'1. Order'!J805)","v":""},{"$f":"IF('1. Order'!K805=\"\",\"\",'1. Order'!K805)","v":""},{"$f":"IF('1. Order'!L805=\"\",\"\",'1. Order'!L805)","v":""},{"$f":"IF('1. Order'!N805=\"\",\"\",'1. Order'!N805)","v":""},null,null,{"$f":"IF('1. Order'!AV805=\"\",\"\",'1. Order'!AV805)","v":""},{"$f":"IF('1. Order'!AI805=\"\",\"\",'1. Order'!AI805)","v":""}]
[{"$f":"IF('1. Order'!B806=\"\",\"\",'1. Order'!B806)","v":""},{"$f":"IF('1. Order'!J806=\"\",\"\",'1. Order'!J806)","v":""},{"$f":"IF('1. Order'!K806=\"\",\"\",'1. Order'!K806)","v":""},{"$f":"IF('1. Order'!L806=\"\",\"\",'1. Order'!L806)","v":""},{"$f":"IF('1. Order'!N806=\"\",\"\",'1. Order'!N806)","v":""},null,null,{"$f":"IF('1. Order'!AV806=\"\",\"\",'1. Order'!AV806)","v":""},{"$f":"IF('1. Order'!AI806=\"\",\"\",'1. Order'!AI806)","v":""}]
[{"$f":"IF('1. Order'!B807=\"\",\"\",'1. Order'!B807)","v":""},{"$f":"IF('1. Order'!J807=\"\",\"\",'1. Order'!J807)","v":""},{"$f":"IF('1. Order'!K807=\"\",\"\",'1. Order'!K807)","v":""},{"$f":"IF('1. Order'!L807=\"\",\"\",'1. Order'!L807)","v":""},{"$f":"IF('1. Order'!N807=\"\",\"\",'1. Order'!N807)","v":""},null,null,{"$f":"IF('1. Order'!AV807=\"\",\"\",'1. Order'!AV807)","v":""},{"$f":"IF('1. Order'!AI807=\"\",\"\",'1. Order'!AI807)","v":""}]
[{"$f":"IF('1. Order'!B808=\"\",\"\",'1. Order'!B808)","v":""},{"$f":"IF('1. Order'!J808=\"\",\"\",'1. Order'!J808)","v":""},{"$f":"IF('1. Order'!K808=\"\",\"\",'1. Order'!K808)","v":""},{"$f":"IF('1. Order'!L808=\"\",\"\",'1. Order'!L808)","v":""},{"$f":"IF('1. Order'!N808=\"\",\"\",'1. Order'!N808)","v":""},null,null,{"$f":"IF('1. Order'!AV808=\"\",\"\",'1. Order'!AV808)","v":""},{"$f":"IF('1. Order'!AI808=\"\",\"\",'1. Order'!AI808)","v":""}]
[{"$f":"IF('1. Order'!B809=\"\",\"\",'1. Order'!B809)","v":""},{"$f":"IF('1. Order'!J809=\"\",\"\",'1. Order'!J809)","v":""},{"$f":"IF('1. Order'!K809=\"\",\"\",'1. Order'!K809)","v":""},{"$f":"IF('1. Order'!L809=\"\",\"\",'1. Order'!L809)","v":""},{"$f":"IF('1. Order'!N809=\"\",\"\",'1. Order'!N809)","v":""},null,null,{"$f":"IF('1. Order'!AV809=\"\",\"\",'1. Order'!AV809)","v":""},{"$f":"IF('1. Order'!AI809=\"\",\"\",'1. Order'!AI809)","v":""}]
[{"$f":"IF('1. Order'!B810=\"\",\"\",'1. Order'!B810)","v":""},{"$f":"IF('1. Order'!J810=\"\",\"\",'1. Order'!J810)","v":""},{"$f":"IF('1. Order'!K810=\"\",\"\",'1. Order'!K810)","v":""},{"$f":"IF('1. Order'!L810=\"\",\"\",'1. Order'!L810)","v":""},{"$f":"IF('1. Order'!N810=\"\",\"\",'1. Order'!N810)","v":""},null,null,{"$f":"IF('1. Order'!AV810=\"\",\"\",'1. Order'!AV810)","v":""},{"$f":"IF('1. Order'!AI810=\"\",\"\",'1. Order'!AI810)","v":""}]
[{"$f":"IF('1. Order'!B811=\"\",\"\",'1. Order'!B811)","v":""},{"$f":"IF('1. Order'!J811=\"\",\"\",'1. Order'!J811)","v":""},{"$f":"IF('1. Order'!K811=\"\",\"\",'1. Order'!K811)","v":""},{"$f":"IF('1. Order'!L811=\"\",\"\",'1. Order'!L811)","v":""},{"$f":"IF('1. Order'!N811=\"\",\"\",'1. Order'!N811)","v":""},null,null,{"$f":"IF('1. Order'!AV811=\"\",\"\",'1. Order'!AV811)","v":""},{"$f":"IF('1. Order'!AI811=\"\",\"\",'1. Order'!AI811)","v":""}]
[{"$f":"IF('1. Order'!B812=\"\",\"\",'1. Order'!B812)","v":""},{"$f":"IF('1. Order'!J812=\"\",\"\",'1. Order'!J812)","v":""},{"$f":"IF('1. Order'!K812=\"\",\"\",'1. Order'!K812)","v":""},{"$f":"IF('1. Order'!L812=\"\",\"\",'1. Order'!L812)","v":""},{"$f":"IF('1. Order'!N812=\"\",\"\",'1. Order'!N812)","v":""},null,null,{"$f":"IF('1. Order'!AV812=\"\",\"\",'1. Order'!AV812)","v":""},{"$f":"IF('1. Order'!AI812=\"\",\"\",'1. Order'!AI812)","v":""}]
[{"$f":"IF('1. Order'!B813=\"\",\"\",'1. Order'!B813)","v":""},{"$f":"IF('1. Order'!J813=\"\",\"\",'1. Order'!J813)","v":""},{"$f":"IF('1. Order'!K813=\"\",\"\",'1. Order'!K813)","v":""},{"$f":"IF('1. Order'!L813=\"\",\"\",'1. Order'!L813)","v":""},{"$f":"IF('1. Order'!N813=\"\",\"\",'1. Order'!N813)","v":""},null,null,{"$f":"IF('1. Order'!AV813=\"\",\"\",'1. Order'!AV813)","v":""},{"$f":"IF('1. Order'!AI813=\"\",\"\",'1. Order'!AI813)","v":""}]
[{"$f":"IF('1. Order'!B814=\"\",\"\",'1. Order'!B814)","v":""},{"$f":"IF('1. Order'!J814=\"\",\"\",'1. Order'!J814)","v":""},{"$f":"IF('1. Order'!K814=\"\",\"\",'1. Order'!K814)","v":""},{"$f":"IF('1. Order'!L814=\"\",\"\",'1. Order'!L814)","v":""},{"$f":"IF('1. Order'!N814=\"\",\"\",'1. Order'!N814)","v":""},null,null,{"$f":"IF('1. Order'!AV814=\"\",\"\",'1. Order'!AV814)","v":""},{"$f":"IF('1. Order'!AI814=\"\",\"\",'1. Order'!AI814)","v":""}]
[{"$f":"IF('1. Order'!B815=\"\",\"\",'1. Order'!B815)","v":""},{"$f":"IF('1. Order'!J815=\"\",\"\",'1. Order'!J815)","v":""},{"$f":"IF('1. Order'!K815=\"\",\"\",'1. Order'!K815)","v":""},{"$f":"IF('1. Order'!L815=\"\",\"\",'1. Order'!L815)","v":""},{"$f":"IF('1. Order'!N815=\"\",\"\",'1. Order'!N815)","v":""},null,null,{"$f":"IF('1. Order'!AV815=\"\",\"\",'1. Order'!AV815)","v":""},{"$f":"IF('1. Order'!AI815=\"\",\"\",'1. Order'!AI815)","v":""}]
[{"$f":"IF('1. Order'!B816=\"\",\"\",'1. Order'!B816)","v":""},{"$f":"IF('1. Order'!J816=\"\",\"\",'1. Order'!J816)","v":""},{"$f":"IF('1. Order'!K816=\"\",\"\",'1. Order'!K816)","v":""},{"$f":"IF('1. Order'!L816=\"\",\"\",'1. Order'!L816)","v":""},{"$f":"IF('1. Order'!N816=\"\",\"\",'1. Order'!N816)","v":""},null,null,{"$f":"IF('1. Order'!AV816=\"\",\"\",'1. Order'!AV816)","v":""},{"$f":"IF('1. Order'!AI816=\"\",\"\",'1. Order'!AI816)","v":""}]
[{"$f":"IF('1. Order'!B817=\"\",\"\",'1. Order'!B817)","v":""},{"$f":"IF('1. Order'!J817=\"\",\"\",'1. Order'!J817)","v":""},{"$f":"IF('1. Order'!K817=\"\",\"\",'1. Order'!K817)","v":""},{"$f":"IF('1. Order'!L817=\"\",\"\",'1. Order'!L817)","v":""},{"$f":"IF('1. Order'!N817=\"\",\"\",'1. Order'!N817)","v":""},null,null,{"$f":"IF('1. Order'!AV817=\"\",\"\",'1. Order'!AV817)","v":""},{"$f":"IF('1. Order'!AI817=\"\",\"\",'1. Order'!AI817)","v":""}]
[{"$f":"IF('1. Order'!B818=\"\",\"\",'1. Order'!B818)","v":""},{"$f":"IF('1. Order'!J818=\"\",\"\",'1. Order'!J818)","v":""},{"$f":"IF('1. Order'!K818=\"\",\"\",'1. Order'!K818)","v":""},{"$f":"IF('1. Order'!L818=\"\",\"\",'1. Order'!L818)","v":""},{"$f":"IF('1. Order'!N818=\"\",\"\",'1. Order'!N818)","v":""},null,null,{"$f":"IF('1. Order'!AV818=\"\",\"\",'1. Order'!AV818)","v":""},{"$f":"IF('1. Order'!AI818=\"\",\"\",'1. Order'!AI818)","v":""}]
[{"$f":"IF('1. Order'!B819=\"\",\"\",'1. Order'!B819)","v":""},{"$f":"IF('1. Order'!J819=\"\",\"\",'1. Order'!J819)","v":""},{"$f":"IF('1. Order'!K819=\"\",\"\",'1. Order'!K819)","v":""},{"$f":"IF('1. Order'!L819=\"\",\"\",'1. Order'!L819)","v":""},{"$f":"IF('1. Order'!N819=\"\",\"\",'1. Order'!N819)","v":""},null,null,{"$f":"IF('1. Order'!AV819=\"\",\"\",'1. Order'!AV819)","v":""},{"$f":"IF('1. Order'!AI819=\"\",\"\",'1. Order'!AI819)","v":""}]
[{"$f":"IF('1. Order'!B820=\"\",\"\",'1. Order'!B820)","v":""},{"$f":"IF('1. Order'!J820=\"\",\"\",'1. Order'!J820)","v":""},{"$f":"IF('1. Order'!K820=\"\",\"\",'1. Order'!K820)","v":""},{"$f":"IF('1. Order'!L820=\"\",\"\",'1. Order'!L820)","v":""},{"$f":"IF('1. Order'!N820=\"\",\"\",'1. Order'!N820)","v":""},null,null,{"$f":"IF('1. Order'!AV820=\"\",\"\",'1. Order'!AV820)","v":""},{"$f":"IF('1. Order'!AI820=\"\",\"\",'1. Order'!AI820)","v":""}]
[{"$f":"IF('1. Order'!B821=\"\",\"\",'1. Order'!B821)","v":""},{"$f":"IF('1. Order'!J821=\"\",\"\",'1. Order'!J821)","v":""},{"$f":"IF('1. Order'!K821=\"\",\"\",'1. Order'!K821)","v":""},{"$f":"IF('1. Order'!L821=\"\",\"\",'1. Order'!L821)","v":""},{"$f":"IF('1. Order'!N821=\"\",\"\",'1. Order'!N821)","v":""},null,null,{"$f":"IF('1. Order'!AV821=\"\",\"\",'1. Order'!AV821)","v":""},{"$f":"IF('1. Order'!AI821=\"\",\"\",'1. Order'!AI821)","v":""}]
[{"$f":"IF('1. Order'!B822=\"\",\"\",'1. Order'!B822)","v":""},{"$f":"IF('1. Order'!J822=\"\",\"\",'1. Order'!J822)","v":""},{"$f":"IF('1. Order'!K822=\"\",\"\",'1. Order'!K822)","v":""},{"$f":"IF('1. Order'!L822=\"\",\"\",'1. Order'!L822)","v":""},{"$f":"IF('1. Order'!N822=\"\",\"\",'1. Order'!N822)","v":""},null,null,{"$f":"IF('1. Order'!AV822=\"\",\"\",'1. Order'!AV822)","v":""},{"$f":"IF('1. Order'!AI822=\"\",\"\",'1. Order'!AI822)","v":""}]
[{"$f":"IF('1. Order'!B823=\"\",\"\",'1. Order'!B823)","v":""},{"$f":"IF('1. Order'!J823=\"\",\"\",'1. Order'!J823)","v":""},{"$f":"IF('1. Order'!K823=\"\",\"\",'1. Order'!K823)","v":""},{"$f":"IF('1. Order'!L823=\"\",\"\",'1. Order'!L823)","v":""},{"$f":"IF('1. Order'!N823=\"\",\"\",'1. Order'!N823)","v":""},null,null,{"$f":"IF('1. Order'!AV823=\"\",\"\",'1. Order'!AV823)","v":""},{"$f":"IF('1. Order'!AI823=\"\",\"\",'1. Order'!AI823)","v":""}]
[{"$f":"IF('1. Order'!B824=\"\",\"\",'1. Order'!B824)","v":""},{"$f":"IF('1. Order'!J824=\"\",\"\",'1. Order'!J824)","v":""},{"$f":"IF('1. Order'!K824=\"\",\"\",'1. Order'!K824)","v":""},{"$f":"IF('1. Order'!L824=\"\",\"\",'1. Order'!L824)","v":""},{"$f":"IF('1. Order'!N824=\"\",\"\",'1. Order'!N824)","v":""},null,null,{"$f":"IF('1. Order'!AV824=\"\",\"\",'1. Order'!AV824)","v":""},{"$f":"IF('1. Order'!AI824=\"\",\"\",'1. Order'!AI824)","v":""}]
[{"$f":"IF('1. Order'!B825=\"\",\"\",'1. Order'!B825)","v":""},{"$f":"IF('1. Order'!J825=\"\",\"\",'1. Order'!J825)","v":""},{"$f":"IF('1. Order'!K825=\"\",\"\",'1. Order'!K825)","v":""},{"$f":"IF('1. Order'!L825=\"\",\"\",'1. Order'!L825)","v":""},{"$f":"IF('1. Order'!N825=\"\",\"\",'1. Order'!N825)","v":""},null,null,{"$f":"IF('1. Order'!AV825=\"\",\"\",'1. Order'!AV825)","v":""},{"$f":"IF('1. Order'!AI825=\"\",\"\",'1. Order'!AI825)","v":""}]
[{"$f":"IF('1. Order'!B826=\"\",\"\",'1. Order'!B826)","v":""},{"$f":"IF('1. Order'!J826=\"\",\"\",'1. Order'!J826)","v":""},{"$f":"IF('1. Order'!K826=\"\",\"\",'1. Order'!K826)","v":""},{"$f":"IF('1. Order'!L826=\"\",\"\",'1. Order'!L826)","v":""},{"$f":"IF('1. Order'!N826=\"\",\"\",'1. Order'!N826)","v":""},null,null,{"$f":"IF('1. Order'!AV826=\"\",\"\",'1. Order'!AV826)","v":""},{"$f":"IF('1. Order'!AI826=\"\",\"\",'1. Order'!AI826)","v":""}]
[{"$f":"IF('1. Order'!B827=\"\",\"\",'1. Order'!B827)","v":""},{"$f":"IF('1. Order'!J827=\"\",\"\",'1. Order'!J827)","v":""},{"$f":"IF('1. Order'!K827=\"\",\"\",'1. Order'!K827)","v":""},{"$f":"IF('1. Order'!L827=\"\",\"\",'1. Order'!L827)","v":""},{"$f":"IF('1. Order'!N827=\"\",\"\",'1. Order'!N827)","v":""},null,null,{"$f":"IF('1. Order'!AV827=\"\",\"\",'1. Order'!AV827)","v":""},{"$f":"IF('1. Order'!AI827=\"\",\"\",'1. Order'!AI827)","v":""}]
[{"$f":"IF('1. Order'!B828=\"\",\"\",'1. Order'!B828)","v":""},{"$f":"IF('1. Order'!J828=\"\",\"\",'1. Order'!J828)","v":""},{"$f":"IF('1. Order'!K828=\"\",\"\",'1. Order'!K828)","v":""},{"$f":"IF('1. Order'!L828=\"\",\"\",'1. Order'!L828)","v":""},{"$f":"IF('1. Order'!N828=\"\",\"\",'1. Order'!N828)","v":""},null,null,{"$f":"IF('1. Order'!AV828=\"\",\"\",'1. Order'!AV828)","v":""},{"$f":"IF('1. Order'!AI828=\"\",\"\",'1. Order'!AI828)","v":""}]
[{"$f":"IF('1. Order'!B829=\"\",\"\",'1. Order'!B829)","v":""},{"$f":"IF('1. Order'!J829=\"\",\"\",'1. Order'!J829)","v":""},{"$f":"IF('1. Order'!K829=\"\",\"\",'1. Order'!K829)","v":""},{"$f":"IF('1. Order'!L829=\"\",\"\",'1. Order'!L829)","v":""},{"$f":"IF('1. Order'!N829=\"\",\"\",'1. Order'!N829)","v":""},null,null,{"$f":"IF('1. Order'!AV829=\"\",\"\",'1. Order'!AV829)","v":""},{"$f":"IF('1. Order'!AI829=\"\",\"\",'1. Order'!AI829)","v":""}]
[{"$f":"IF('1. Order'!B830=\"\",\"\",'1. Order'!B830)","v":""},{"$f":"IF('1. Order'!J830=\"\",\"\",'1. Order'!J830)","v":""},{"$f":"IF('1. Order'!K830=\"\",\"\",'1. Order'!K830)","v":""},{"$f":"IF('1. Order'!L830=\"\",\"\",'1. Order'!L830)","v":""},{"$f":"IF('1. Order'!N830=\"\",\"\",'1. Order'!N830)","v":""},null,null,{"$f":"IF('1. Order'!AV830=\"\",\"\",'1. Order'!AV830)","v":""},{"$f":"IF('1. Order'!AI830=\"\",\"\",'1. Order'!AI830)","v":""}]
[{"$f":"IF('1. Order'!B831=\"\",\"\",'1. Order'!B831)","v":""},{"$f":"IF('1. Order'!J831=\"\",\"\",'1. Order'!J831)","v":""},{"$f":"IF('1. Order'!K831=\"\",\"\",'1. Order'!K831)","v":""},{"$f":"IF('1. Order'!L831=\"\",\"\",'1. Order'!L831)","v":""},{"$f":"IF('1. Order'!N831=\"\",\"\",'1. Order'!N831)","v":""},null,null,{"$f":"IF('1. Order'!AV831=\"\",\"\",'1. Order'!AV831)","v":""},{"$f":"IF('1. Order'!AI831=\"\",\"\",'1. Order'!AI831)","v":""}]
[{"$f":"IF('1. Order'!B832=\"\",\"\",'1. Order'!B832)","v":""},{"$f":"IF('1. Order'!J832=\"\",\"\",'1. Order'!J832)","v":""},{"$f":"IF('1. Order'!K832=\"\",\"\",'1. Order'!K832)","v":""},{"$f":"IF('1. Order'!L832=\"\",\"\",'1. Order'!L832)","v":""},{"$f":"IF('1. Order'!N832=\"\",\"\",'1. Order'!N832)","v":""},null,null,{"$f":"IF('1. Order'!AV832=\"\",\"\",'1. Order'!AV832)","v":""},{"$f":"IF('1. Order'!AI832=\"\",\"\",'1. Order'!AI832)","v":""}]
[{"$f":"IF('1. Order'!B833=\"\",\"\",'1. Order'!B833)","v":""},{"$f":"IF('1. Order'!J833=\"\",\"\",'1. Order'!J833)","v":""},{"$f":"IF('1. Order'!K833=\"\",\"\",'1. Order'!K833)","v":""},{"$f":"IF('1. Order'!L833=\"\",\"\",'1. Order'!L833)","v":""},{"$f":"IF('1. Order'!N833=\"\",\"\",'1. Order'!N833)","v":""},null,null,{"$f":"IF('1. Order'!AV833=\"\",\"\",'1. Order'!AV833)","v":""},{"$f":"IF('1. Order'!AI833=\"\",\"\",'1. Order'!AI833)","v":""}]
[{"$f":"IF('1. Order'!B834=\"\",\"\",'1. Order'!B834)","v":""},{"$f":"IF('1. Order'!J834=\"\",\"\",'1. Order'!J834)","v":""},{"$f":"IF('1. Order'!K834=\"\",\"\",'1. Order'!K834)","v":""},{"$f":"IF('1. Order'!L834=\"\",\"\",'1. Order'!L834)","v":""},{"$f":"IF('1. Order'!N834=\"\",\"\",'1. Order'!N834)","v":""},null,null,{"$f":"IF('1. Order'!AV834=\"\",\"\",'1. Order'!AV834)","v":""},{"$f":"IF('1. Order'!AI834=\"\",\"\",'1. Order'!AI834)","v":""}]
[{"$f":"IF('1. Order'!B835=\"\",\"\",'1. Order'!B835)","v":""},{"$f":"IF('1. Order'!J835=\"\",\"\",'1. Order'!J835)","v":""},{"$f":"IF('1. Order'!K835=\"\",\"\",'1. Order'!K835)","v":""},{"$f":"IF('1. Order'!L835=\"\",\"\",'1. Order'!L835)","v":""},{"$f":"IF('1. Order'!N835=\"\",\"\",'1. Order'!N835)","v":""},null,null,{"$f":"IF('1. Order'!AV835=\"\",\"\",'1. Order'!AV835)","v":""},{"$f":"IF('1. Order'!AI835=\"\",\"\",'1. Order'!AI835)","v":""}]
[{"$f":"IF('1. Order'!B836=\"\",\"\",'1. Order'!B836)","v":""},{"$f":"IF('1. Order'!J836=\"\",\"\",'1. Order'!J836)","v":""},{"$f":"IF('1. Order'!K836=\"\",\"\",'1. Order'!K836)","v":""},{"$f":"IF('1. Order'!L836=\"\",\"\",'1. Order'!L836)","v":""},{"$f":"IF('1. Order'!N836=\"\",\"\",'1. Order'!N836)","v":""},null,null,{"$f":"IF('1. Order'!AV836=\"\",\"\",'1. Order'!AV836)","v":""},{"$f":"IF('1. Order'!AI836=\"\",\"\",'1. Order'!AI836)","v":""}]
[{"$f":"IF('1. Order'!B837=\"\",\"\",'1. Order'!B837)","v":""},{"$f":"IF('1. Order'!J837=\"\",\"\",'1. Order'!J837)","v":""},{"$f":"IF('1. Order'!K837=\"\",\"\",'1. Order'!K837)","v":""},{"$f":"IF('1. Order'!L837=\"\",\"\",'1. Order'!L837)","v":""},{"$f":"IF('1. Order'!N837=\"\",\"\",'1. Order'!N837)","v":""},null,null,{"$f":"IF('1. Order'!AV837=\"\",\"\",'1. Order'!AV837)","v":""},{"$f":"IF('1. Order'!AI837=\"\",\"\",'1. Order'!AI837)","v":""}]
[{"$f":"IF('1. Order'!B838=\"\",\"\",'1. Order'!B838)","v":""},{"$f":"IF('1. Order'!J838=\"\",\"\",'1. Order'!J838)","v":""},{"$f":"IF('1. Order'!K838=\"\",\"\",'1. Order'!K838)","v":""},{"$f":"IF('1. Order'!L838=\"\",\"\",'1. Order'!L838)","v":""},{"$f":"IF('1. Order'!N838=\"\",\"\",'1. Order'!N838)","v":""},null,null,{"$f":"IF('1. Order'!AV838=\"\",\"\",'1. Order'!AV838)","v":""},{"$f":"IF('1. Order'!AI838=\"\",\"\",'1. Order'!AI838)","v":""}]
[{"$f":"IF('1. Order'!B839=\"\",\"\",'1. Order'!B839)","v":""},{"$f":"IF('1. Order'!J839=\"\",\"\",'1. Order'!J839)","v":""},{"$f":"IF('1. Order'!K839=\"\",\"\",'1. Order'!K839)","v":""},{"$f":"IF('1. Order'!L839=\"\",\"\",'1. Order'!L839)","v":""},{"$f":"IF('1. Order'!N839=\"\",\"\",'1. Order'!N839)","v":""},null,null,{"$f":"IF('1. Order'!AV839=\"\",\"\",'1. Order'!AV839)","v":""},{"$f":"IF('1. Order'!AI839=\"\",\"\",'1. Order'!AI839)","v":""}]
[{"$f":"IF('1. Order'!B840=\"\",\"\",'1. Order'!B840)","v":""},{"$f":"IF('1. Order'!J840=\"\",\"\",'1. Order'!J840)","v":""},{"$f":"IF('1. Order'!K840=\"\",\"\",'1. Order'!K840)","v":""},{"$f":"IF('1. Order'!L840=\"\",\"\",'1. Order'!L840)","v":""},{"$f":"IF('1. Order'!N840=\"\",\"\",'1. Order'!N840)","v":""},null,null,{"$f":"IF('1. Order'!AV840=\"\",\"\",'1. Order'!AV840)","v":""},{"$f":"IF('1. Order'!AI840=\"\",\"\",'1. Order'!AI840)","v":""}]
[{"$f":"IF('1. Order'!B841=\"\",\"\",'1. Order'!B841)","v":""},{"$f":"IF('1. Order'!J841=\"\",\"\",'1. Order'!J841)","v":""},{"$f":"IF('1. Order'!K841=\"\",\"\",'1. Order'!K841)","v":""},{"$f":"IF('1. Order'!L841=\"\",\"\",'1. Order'!L841)","v":""},{"$f":"IF('1. Order'!N841=\"\",\"\",'1. Order'!N841)","v":""},null,null,{"$f":"IF('1. Order'!AV841=\"\",\"\",'1. Order'!AV841)","v":""},{"$f":"IF('1. Order'!AI841=\"\",\"\",'1. Order'!AI841)","v":""}]
[{"$f":"IF('1. Order'!B842=\"\",\"\",'1. Order'!B842)","v":""},{"$f":"IF('1. Order'!J842=\"\",\"\",'1. Order'!J842)","v":""},{"$f":"IF('1. Order'!K842=\"\",\"\",'1. Order'!K842)","v":""},{"$f":"IF('1. Order'!L842=\"\",\"\",'1. Order'!L842)","v":""},{"$f":"IF('1. Order'!N842=\"\",\"\",'1. Order'!N842)","v":""},null,null,{"$f":"IF('1. Order'!AV842=\"\",\"\",'1. Order'!AV842)","v":""},{"$f":"IF('1. Order'!AI842=\"\",\"\",'1. Order'!AI842)","v":""}]
[{"$f":"IF('1. Order'!B843=\"\",\"\",'1. Order'!B843)","v":""},{"$f":"IF('1. Order'!J843=\"\",\"\",'1. Order'!J843)","v":""},{"$f":"IF('1. Order'!K843=\"\",\"\",'1. Order'!K843)","v":""},{"$f":"IF('1. Order'!L843=\"\",\"\",'1. Order'!L843)","v":""},{"$f":"IF('1. Order'!N843=\"\",\"\",'1. Order'!N843)","v":""},null,null,{"$f":"IF('1. Order'!AV843=\"\",\"\",'1. Order'!AV843)","v":""},{"$f":"IF('1. Order'!AI843=\"\",\"\",'1. Order'!AI843)","v":""}]
[{"$f":"IF('1. Order'!B844=\"\",\"\",'1. Order'!B844)","v":""},{"$f":"IF('1. Order'!J844=\"\",\"\",'1. Order'!J844)","v":""},{"$f":"IF('1. Order'!K844=\"\",\"\",'1. Order'!K844)","v":""},{"$f":"IF('1. Order'!L844=\"\",\"\",'1. Order'!L844)","v":""},{"$f":"IF('1. Order'!N844=\"\",\"\",'1. Order'!N844)","v":""},null,null,{"$f":"IF('1. Order'!AV844=\"\",\"\",'1. Order'!AV844)","v":""},{"$f":"IF('1. Order'!AI844=\"\",\"\",'1. Order'!AI844)","v":""}]
[{"$f":"IF('1. Order'!B845=\"\",\"\",'1. Order'!B845)","v":""},{"$f":"IF('1. Order'!J845=\"\",\"\",'1. Order'!J845)","v":""},{"$f":"IF('1. Order'!K845=\"\",\"\",'1. Order'!K845)","v":""},{"$f":"IF('1. Order'!L845=\"\",\"\",'1. Order'!L845)","v":""},{"$f":"IF('1. Order'!N845=\"\",\"\",'1. Order'!N845)","v":""},null,null,{"$f":"IF('1. Order'!AV845=\"\",\"\",'1. Order'!AV845)","v":""},{"$f":"IF('1. Order'!AI845=\"\",\"\",'1. Order'!AI845)","v":""}]
[{"$f":"IF('1. Order'!B846=\"\",\"\",'1. Order'!B846)","v":""},{"$f":"IF('1. Order'!J846=\"\",\"\",'1. Order'!J846)","v":""},{"$f":"IF('1. Order'!K846=\"\",\"\",'1. Order'!K846)","v":""},{"$f":"IF('1. Order'!L846=\"\",\"\",'1. Order'!L846)","v":""},{"$f":"IF('1. Order'!N846=\"\",\"\",'1. Order'!N846)","v":""},null,null,{"$f":"IF('1. Order'!AV846=\"\",\"\",'1. Order'!AV846)","v":""},{"$f":"IF('1. Order'!AI846=\"\",\"\",'1. Order'!AI846)","v":""}]
[{"$f":"IF('1. Order'!B847=\"\",\"\",'1. Order'!B847)","v":""},{"$f":"IF('1. Order'!J847=\"\",\"\",'1. Order'!J847)","v":""},{"$f":"IF('1. Order'!K847=\"\",\"\",'1. Order'!K847)","v":""},{"$f":"IF('1. Order'!L847=\"\",\"\",'1. Order'!L847)","v":""},{"$f":"IF('1. Order'!N847=\"\",\"\",'1. Order'!N847)","v":""},null,null,{"$f":"IF('1. Order'!AV847=\"\",\"\",'1. Order'!AV847)","v":""},{"$f":"IF('1. Order'!AI847=\"\",\"\",'1. Order'!AI847)","v":""}]
[{"$f":"IF('1. Order'!B848=\"\",\"\",'1. Order'!B848)","v":""},{"$f":"IF('1. Order'!J848=\"\",\"\",'1. Order'!J848)","v":""},{"$f":"IF('1. Order'!K848=\"\",\"\",'1. Order'!K848)","v":""},{"$f":"IF('1. Order'!L848=\"\",\"\",'1. Order'!L848)","v":""},{"$f":"IF('1. Order'!N848=\"\",\"\",'1. Order'!N848)","v":""},null,null,{"$f":"IF('1. Order'!AV848=\"\",\"\",'1. Order'!AV848)","v":""},{"$f":"IF('1. Order'!AI848=\"\",\"\",'1. Order'!AI848)","v":""}]
[{"$f":"IF('1. Order'!B849=\"\",\"\",'1. Order'!B849)","v":""},{"$f":"IF('1. Order'!J849=\"\",\"\",'1. Order'!J849)","v":""},{"$f":"IF('1. Order'!K849=\"\",\"\",'1. Order'!K849)","v":""},{"$f":"IF('1. Order'!L849=\"\",\"\",'1. Order'!L849)","v":""},{"$f":"IF('1. Order'!N849=\"\",\"\",'1. Order'!N849)","v":""},null,null,{"$f":"IF('1. Order'!AV849=\"\",\"\",'1. Order'!AV849)","v":""},{"$f":"IF('1. Order'!AI849=\"\",\"\",'1. Order'!AI849)","v":""}]
[{"$f":"IF('1. Order'!B850=\"\",\"\",'1. Order'!B850)","v":""},{"$f":"IF('1. Order'!J850=\"\",\"\",'1. Order'!J850)","v":""},{"$f":"IF('1. Order'!K850=\"\",\"\",'1. Order'!K850)","v":""},{"$f":"IF('1. Order'!L850=\"\",\"\",'1. Order'!L850)","v":""},{"$f":"IF('1. Order'!N850=\"\",\"\",'1. Order'!N850)","v":""},null,null,{"$f":"IF('1. Order'!AV850=\"\",\"\",'1. Order'!AV850)","v":""},{"$f":"IF('1. Order'!AI850=\"\",\"\",'1. Order'!AI850)","v":""}]
[{"$f":"IF('1. Order'!B851=\"\",\"\",'1. Order'!B851)","v":""},{"$f":"IF('1. Order'!J851=\"\",\"\",'1. Order'!J851)","v":""},{"$f":"IF('1. Order'!K851=\"\",\"\",'1. Order'!K851)","v":""},{"$f":"IF('1. Order'!L851=\"\",\"\",'1. Order'!L851)","v":""},{"$f":"IF('1. Order'!N851=\"\",\"\",'1. Order'!N851)","v":""},null,null,{"$f":"IF('1. Order'!AV851=\"\",\"\",'1. Order'!AV851)","v":""},{"$f":"IF('1. Order'!AI851=\"\",\"\",'1. Order'!AI851)","v":""}]
[{"$f":"IF('1. Order'!B852=\"\",\"\",'1. Order'!B852)","v":""},{"$f":"IF('1. Order'!J852=\"\",\"\",'1. Order'!J852)","v":""},{"$f":"IF('1. Order'!K852=\"\",\"\",'1. Order'!K852)","v":""},{"$f":"IF('1. Order'!L852=\"\",\"\",'1. Order'!L852)","v":""},{"$f":"IF('1. Order'!N852=\"\",\"\",'1. Order'!N852)","v":""},null,null,{"$f":"IF('1. Order'!AV852=\"\",\"\",'1. Order'!AV852)","v":""},{"$f":"IF('1. Order'!AI852=\"\",\"\",'1. Order'!AI852)","v":""}]
[{"$f":"IF('1. Order'!B853=\"\",\"\",'1. Order'!B853)","v":""},{"$f":"IF('1. Order'!J853=\"\",\"\",'1. Order'!J853)","v":""},{"$f":"IF('1. Order'!K853=\"\",\"\",'1. Order'!K853)","v":""},{"$f":"IF('1. Order'!L853=\"\",\"\",'1. Order'!L853)","v":""},{"$f":"IF('1. Order'!N853=\"\",\"\",'1. Order'!N853)","v":""},null,null,{"$f":"IF('1. Order'!AV853=\"\",\"\",'1. Order'!AV853)","v":""},{"$f":"IF('1. Order'!AI853=\"\",\"\",'1. Order'!AI853)","v":""}]
[{"$f":"IF('1. Order'!B854=\"\",\"\",'1. Order'!B854)","v":""},{"$f":"IF('1. Order'!J854=\"\",\"\",'1. Order'!J854)","v":""},{"$f":"IF('1. Order'!K854=\"\",\"\",'1. Order'!K854)","v":""},{"$f":"IF('1. Order'!L854=\"\",\"\",'1. Order'!L854)","v":""},{"$f":"IF('1. Order'!N854=\"\",\"\",'1. Order'!N854)","v":""},null,null,{"$f":"IF('1. Order'!AV854=\"\",\"\",'1. Order'!AV854)","v":""},{"$f":"IF('1. Order'!AI854=\"\",\"\",'1. Order'!AI854)","v":""}]
[{"$f":"IF('1. Order'!B855=\"\",\"\",'1. Order'!B855)","v":""},{"$f":"IF('1. Order'!J855=\"\",\"\",'1. Order'!J855)","v":""},{"$f":"IF('1. Order'!K855=\"\",\"\",'1. Order'!K855)","v":""},{"$f":"IF('1. Order'!L855=\"\",\"\",'1. Order'!L855)","v":""},{"$f":"IF('1. Order'!N855=\"\",\"\",'1. Order'!N855)","v":""},null,null,{"$f":"IF('1. Order'!AV855=\"\",\"\",'1. Order'!AV855)","v":""},{"$f":"IF('1. Order'!AI855=\"\",\"\",'1. Order'!AI855)","v":""}]
[{"$f":"IF('1. Order'!B856=\"\",\"\",'1. Order'!B856)","v":""},{"$f":"IF('1. Order'!J856=\"\",\"\",'1. Order'!J856)","v":""},{"$f":"IF('1. Order'!K856=\"\",\"\",'1. Order'!K856)","v":""},{"$f":"IF('1. Order'!L856=\"\",\"\",'1. Order'!L856)","v":""},{"$f":"IF('1. Order'!N856=\"\",\"\",'1. Order'!N856)","v":""},null,null,{"$f":"IF('1. Order'!AV856=\"\",\"\",'1. Order'!AV856)","v":""},{"$f":"IF('1. Order'!AI856=\"\",\"\",'1. Order'!AI856)","v":""}]
[{"$f":"IF('1. Order'!B857=\"\",\"\",'1. Order'!B857)","v":""},{"$f":"IF('1. Order'!J857=\"\",\"\",'1. Order'!J857)","v":""},{"$f":"IF('1. Order'!K857=\"\",\"\",'1. Order'!K857)","v":""},{"$f":"IF('1. Order'!L857=\"\",\"\",'1. Order'!L857)","v":""},{"$f":"IF('1. Order'!N857=\"\",\"\",'1. Order'!N857)","v":""},null,null,{"$f":"IF('1. Order'!AV857=\"\",\"\",'1. Order'!AV857)","v":""},{"$f":"IF('1. Order'!AI857=\"\",\"\",'1. Order'!AI857)","v":""}]
[{"$f":"IF('1. Order'!B858=\"\",\"\",'1. Order'!B858)","v":""},{"$f":"IF('1. Order'!J858=\"\",\"\",'1. Order'!J858)","v":""},{"$f":"IF('1. Order'!K858=\"\",\"\",'1. Order'!K858)","v":""},{"$f":"IF('1. Order'!L858=\"\",\"\",'1. Order'!L858)","v":""},{"$f":"IF('1. Order'!N858=\"\",\"\",'1. Order'!N858)","v":""},null,null,{"$f":"IF('1. Order'!AV858=\"\",\"\",'1. Order'!AV858)","v":""},{"$f":"IF('1. Order'!AI858=\"\",\"\",'1. Order'!AI858)","v":""}]
[{"$f":"IF('1. Order'!B859=\"\",\"\",'1. Order'!B859)","v":""},{"$f":"IF('1. Order'!J859=\"\",\"\",'1. Order'!J859)","v":""},{"$f":"IF('1. Order'!K859=\"\",\"\",'1. Order'!K859)","v":""},{"$f":"IF('1. Order'!L859=\"\",\"\",'1. Order'!L859)","v":""},{"$f":"IF('1. Order'!N859=\"\",\"\",'1. Order'!N859)","v":""},null,null,{"$f":"IF('1. Order'!AV859=\"\",\"\",'1. Order'!AV859)","v":""},{"$f":"IF('1. Order'!AI859=\"\",\"\",'1. Order'!AI859)","v":""}]
[{"$f":"IF('1. Order'!B860=\"\",\"\",'1. Order'!B860)","v":""},{"$f":"IF('1. Order'!J860=\"\",\"\",'1. Order'!J860)","v":""},{"$f":"IF('1. Order'!K860=\"\",\"\",'1. Order'!K860)","v":""},{"$f":"IF('1. Order'!L860=\"\",\"\",'1. Order'!L860)","v":""},{"$f":"IF('1. Order'!N860=\"\",\"\",'1. Order'!N860)","v":""},null,null,{"$f":"IF('1. Order'!AV860=\"\",\"\",'1. Order'!AV860)","v":""},{"$f":"IF('1. Order'!AI860=\"\",\"\",'1. Order'!AI860)","v":""}]
[{"$f":"IF('1. Order'!B861=\"\",\"\",'1. Order'!B861)","v":""},{"$f":"IF('1. Order'!J861=\"\",\"\",'1. Order'!J861)","v":""},{"$f":"IF('1. Order'!K861=\"\",\"\",'1. Order'!K861)","v":""},{"$f":"IF('1. Order'!L861=\"\",\"\",'1. Order'!L861)","v":""},{"$f":"IF('1. Order'!N861=\"\",\"\",'1. Order'!N861)","v":""},null,null,{"$f":"IF('1. Order'!AV861=\"\",\"\",'1. Order'!AV861)","v":""},{"$f":"IF('1. Order'!AI861=\"\",\"\",'1. Order'!AI861)","v":""}]
[{"$f":"IF('1. Order'!B862=\"\",\"\",'1. Order'!B862)","v":""},{"$f":"IF('1. Order'!J862=\"\",\"\",'1. Order'!J862)","v":""},{"$f":"IF('1. Order'!K862=\"\",\"\",'1. Order'!K862)","v":""},{"$f":"IF('1. Order'!L862=\"\",\"\",'1. Order'!L862)","v":""},{"$f":"IF('1. Order'!N862=\"\",\"\",'1. Order'!N862)","v":""},null,null,{"$f":"IF('1. Order'!AV862=\"\",\"\",'1. Order'!AV862)","v":""},{"$f":"IF('1. Order'!AI862=\"\",\"\",'1. Order'!AI862)","v":""}]
[{"$f":"IF('1. Order'!B863=\"\",\"\",'1. Order'!B863)","v":""},{"$f":"IF('1. Order'!J863=\"\",\"\",'1. Order'!J863)","v":""},{"$f":"IF('1. Order'!K863=\"\",\"\",'1. Order'!K863)","v":""},{"$f":"IF('1. Order'!L863=\"\",\"\",'1. Order'!L863)","v":""},{"$f":"IF('1. Order'!N863=\"\",\"\",'1. Order'!N863)","v":""},null,null,{"$f":"IF('1. Order'!AV863=\"\",\"\",'1. Order'!AV863)","v":""},{"$f":"IF('1. Order'!AI863=\"\",\"\",'1. Order'!AI863)","v":""}]
[{"$f":"IF('1. Order'!B864=\"\",\"\",'1. Order'!B864)","v":""},{"$f":"IF('1. Order'!J864=\"\",\"\",'1. Order'!J864)","v":""},{"$f":"IF('1. Order'!K864=\"\",\"\",'1. Order'!K864)","v":""},{"$f":"IF('1. Order'!L864=\"\",\"\",'1. Order'!L864)","v":""},{"$f":"IF('1. Order'!N864=\"\",\"\",'1. Order'!N864)","v":""},null,null,{"$f":"IF('1. Order'!AV864=\"\",\"\",'1. Order'!AV864)","v":""},{"$f":"IF('1. Order'!AI864=\"\",\"\",'1. Order'!AI864)","v":""}]
[{"$f":"IF('1. Order'!B865=\"\",\"\",'1. Order'!B865)","v":""},{"$f":"IF('1. Order'!J865=\"\",\"\",'1. Order'!J865)","v":""},{"$f":"IF('1. Order'!K865=\"\",\"\",'1. Order'!K865)","v":""},{"$f":"IF('1. Order'!L865=\"\",\"\",'1. Order'!L865)","v":""},{"$f":"IF('1. Order'!N865=\"\",\"\",'1. Order'!N865)","v":""},null,null,{"$f":"IF('1. Order'!AV865=\"\",\"\",'1. Order'!AV865)","v":""},{"$f":"IF('1. Order'!AI865=\"\",\"\",'1. Order'!AI865)","v":""}]
[{"$f":"IF('1. Order'!B866=\"\",\"\",'1. Order'!B866)","v":""},{"$f":"IF('1. Order'!J866=\"\",\"\",'1. Order'!J866)","v":""},{"$f":"IF('1. Order'!K866=\"\",\"\",'1. Order'!K866)","v":""},{"$f":"IF('1. Order'!L866=\"\",\"\",'1. Order'!L866)","v":""},{"$f":"IF('1. Order'!N866=\"\",\"\",'1. Order'!N866)","v":""},null,null,{"$f":"IF('1. Order'!AV866=\"\",\"\",'1. Order'!AV866)","v":""},{"$f":"IF('1. Order'!AI866=\"\",\"\",'1. Order'!AI866)","v":""}]
[{"$f":"IF('1. Order'!B867=\"\",\"\",'1. Order'!B867)","v":""},{"$f":"IF('1. Order'!J867=\"\",\"\",'1. Order'!J867)","v":""},{"$f":"IF('1. Order'!K867=\"\",\"\",'1. Order'!K867)","v":""},{"$f":"IF('1. Order'!L867=\"\",\"\",'1. Order'!L867)","v":""},{"$f":"IF('1. Order'!N867=\"\",\"\",'1. Order'!N867)","v":""},null,null,{"$f":"IF('1. Order'!AV867=\"\",\"\",'1. Order'!AV867)","v":""},{"$f":"IF('1. Order'!AI867=\"\",\"\",'1. Order'!AI867)","v":""}]
[{"$f":"IF('1. Order'!B868=\"\",\"\",'1. Order'!B868)","v":""},{"$f":"IF('1. Order'!J868=\"\",\"\",'1. Order'!J868)","v":""},{"$f":"IF('1. Order'!K868=\"\",\"\",'1. Order'!K868)","v":""},{"$f":"IF('1. Order'!L868=\"\",\"\",'1. Order'!L868)","v":""},{"$f":"IF('1. Order'!N868=\"\",\"\",'1. Order'!N868)","v":""},null,null,{"$f":"IF('1. Order'!AV868=\"\",\"\",'1. Order'!AV868)","v":""},{"$f":"IF('1. Order'!AI868=\"\",\"\",'1. Order'!AI868)","v":""}]
[{"$f":"IF('1. Order'!B869=\"\",\"\",'1. Order'!B869)","v":""},{"$f":"IF('1. Order'!J869=\"\",\"\",'1. Order'!J869)","v":""},{"$f":"IF('1. Order'!K869=\"\",\"\",'1. Order'!K869)","v":""},{"$f":"IF('1. Order'!L869=\"\",\"\",'1. Order'!L869)","v":""},{"$f":"IF('1. Order'!N869=\"\",\"\",'1. Order'!N869)","v":""},null,null,{"$f":"IF('1. Order'!AV869=\"\",\"\",'1. Order'!AV869)","v":""},{"$f":"IF('1. Order'!AI869=\"\",\"\",'1. Order'!AI869)","v":""}]
[{"$f":"IF('1. Order'!B870=\"\",\"\",'1. Order'!B870)","v":""},{"$f":"IF('1. Order'!J870=\"\",\"\",'1. Order'!J870)","v":""},{"$f":"IF('1. Order'!K870=\"\",\"\",'1. Order'!K870)","v":""},{"$f":"IF('1. Order'!L870=\"\",\"\",'1. Order'!L870)","v":""},{"$f":"IF('1. Order'!N870=\"\",\"\",'1. Order'!N870)","v":""},null,null,{"$f":"IF('1. Order'!AV870=\"\",\"\",'1. Order'!AV870)","v":""},{"$f":"IF('1. Order'!AI870=\"\",\"\",'1. Order'!AI870)","v":""}]
[{"$f":"IF('1. Order'!B871=\"\",\"\",'1. Order'!B871)","v":""},{"$f":"IF('1. Order'!J871=\"\",\"\",'1. Order'!J871)","v":""},{"$f":"IF('1. Order'!K871=\"\",\"\",'1. Order'!K871)","v":""},{"$f":"IF('1. Order'!L871=\"\",\"\",'1. Order'!L871)","v":""},{"$f":"IF('1. Order'!N871=\"\",\"\",'1. Order'!N871)","v":""},null,null,{"$f":"IF('1. Order'!AV871=\"\",\"\",'1. Order'!AV871)","v":""},{"$f":"IF('1. Order'!AI871=\"\",\"\",'1. Order'!AI871)","v":""}]
[{"$f":"IF('1. Order'!B872=\"\",\"\",'1. Order'!B872)","v":""},{"$f":"IF('1. Order'!J872=\"\",\"\",'1. Order'!J872)","v":""},{"$f":"IF('1. Order'!K872=\"\",\"\",'1. Order'!K872)","v":""},{"$f":"IF('1. Order'!L872=\"\",\"\",'1. Order'!L872)","v":""},{"$f":"IF('1. Order'!N872=\"\",\"\",'1. Order'!N872)","v":""},null,null,{"$f":"IF('1. Order'!AV872=\"\",\"\",'1. Order'!AV872)","v":""},{"$f":"IF('1. Order'!AI872=\"\",\"\",'1. Order'!AI872)","v":""}]
[{"$f":"IF('1. Order'!B873=\"\",\"\",'1. Order'!B873)","v":""},{"$f":"IF('1. Order'!J873=\"\",\"\",'1. Order'!J873)","v":""},{"$f":"IF('1. Order'!K873=\"\",\"\",'1. Order'!K873)","v":""},{"$f":"IF('1. Order'!L873=\"\",\"\",'1. Order'!L873)","v":""},{"$f":"IF('1. Order'!N873=\"\",\"\",'1. Order'!N873)","v":""},null,null,{"$f":"IF('1. Order'!AV873=\"\",\"\",'1. Order'!AV873)","v":""},{"$f":"IF('1. Order'!AI873=\"\",\"\",'1. Order'!AI873)","v":""}]
[{"$f":"IF('1. Order'!B874=\"\",\"\",'1. Order'!B874)","v":""},{"$f":"IF('1. Order'!J874=\"\",\"\",'1. Order'!J874)","v":""},{"$f":"IF('1. Order'!K874=\"\",\"\",'1. Order'!K874)","v":""},{"$f":"IF('1. Order'!L874=\"\",\"\",'1. Order'!L874)","v":""},{"$f":"IF('1. Order'!N874=\"\",\"\",'1. Order'!N874)","v":""},null,null,{"$f":"IF('1. Order'!AV874=\"\",\"\",'1. Order'!AV874)","v":""},{"$f":"IF('1. Order'!AI874=\"\",\"\",'1. Order'!AI874)","v":""}]
[{"$f":"IF('1. Order'!B875=\"\",\"\",'1. Order'!B875)","v":""},{"$f":"IF('1. Order'!J875=\"\",\"\",'1. Order'!J875)","v":""},{"$f":"IF('1. Order'!K875=\"\",\"\",'1. Order'!K875)","v":""},{"$f":"IF('1. Order'!L875=\"\",\"\",'1. Order'!L875)","v":""},{"$f":"IF('1. Order'!N875=\"\",\"\",'1. Order'!N875)","v":""},null,null,{"$f":"IF('1. Order'!AV875=\"\",\"\",'1. Order'!AV875)","v":""},{"$f":"IF('1. Order'!AI875=\"\",\"\",'1. Order'!AI875)","v":""}]
[{"$f":"IF('1. Order'!B876=\"\",\"\",'1. Order'!B876)","v":""},{"$f":"IF('1. Order'!J876=\"\",\"\",'1. Order'!J876)","v":""},{"$f":"IF('1. Order'!K876=\"\",\"\",'1. Order'!K876)","v":""},{"$f":"IF('1. Order'!L876=\"\",\"\",'1. Order'!L876)","v":""},{"$f":"IF('1. Order'!N876=\"\",\"\",'1. Order'!N876)","v":""},null,null,{"$f":"IF('1. Order'!AV876=\"\",\"\",'1. Order'!AV876)","v":""},{"$f":"IF('1. Order'!AI876=\"\",\"\",'1. Order'!AI876)","v":""}]
[{"$f":"IF('1. Order'!B877=\"\",\"\",'1. Order'!B877)","v":""},{"$f":"IF('1. Order'!J877=\"\",\"\",'1. Order'!J877)","v":""},{"$f":"IF('1. Order'!K877=\"\",\"\",'1. Order'!K877)","v":""},{"$f":"IF('1. Order'!L877=\"\",\"\",'1. Order'!L877)","v":""},{"$f":"IF('1. Order'!N877=\"\",\"\",'1. Order'!N877)","v":""},null,null,{"$f":"IF('1. Order'!AV877=\"\",\"\",'1. Order'!AV877)","v":""},{"$f":"IF('1. Order'!AI877=\"\",\"\",'1. Order'!AI877)","v":""}]
[{"$f":"IF('1. Order'!B878=\"\",\"\",'1. Order'!B878)","v":""},{"$f":"IF('1. Order'!J878=\"\",\"\",'1. Order'!J878)","v":""},{"$f":"IF('1. Order'!K878=\"\",\"\",'1. Order'!K878)","v":""},{"$f":"IF('1. Order'!L878=\"\",\"\",'1. Order'!L878)","v":""},{"$f":"IF('1. Order'!N878=\"\",\"\",'1. Order'!N878)","v":""},null,null,{"$f":"IF('1. Order'!AV878=\"\",\"\",'1. Order'!AV878)","v":""},{"$f":"IF('1. Order'!AI878=\"\",\"\",'1. Order'!AI878)","v":""}]
[{"$f":"IF('1. Order'!B879=\"\",\"\",'1. Order'!B879)","v":""},{"$f":"IF('1. Order'!J879=\"\",\"\",'1. Order'!J879)","v":""},{"$f":"IF('1. Order'!K879=\"\",\"\",'1. Order'!K879)","v":""},{"$f":"IF('1. Order'!L879=\"\",\"\",'1. Order'!L879)","v":""},{"$f":"IF('1. Order'!N879=\"\",\"\",'1. Order'!N879)","v":""},null,null,{"$f":"IF('1. Order'!AV879=\"\",\"\",'1. Order'!AV879)","v":""},{"$f":"IF('1. Order'!AI879=\"\",\"\",'1. Order'!AI879)","v":""}]
[{"$f":"IF('1. Order'!B880=\"\",\"\",'1. Order'!B880)","v":""},{"$f":"IF('1. Order'!J880=\"\",\"\",'1. Order'!J880)","v":""},{"$f":"IF('1. Order'!K880=\"\",\"\",'1. Order'!K880)","v":""},{"$f":"IF('1. Order'!L880=\"\",\"\",'1. Order'!L880)","v":""},{"$f":"IF('1. Order'!N880=\"\",\"\",'1. Order'!N880)","v":""},null,null,{"$f":"IF('1. Order'!AV880=\"\",\"\",'1. Order'!AV880)","v":""},{"$f":"IF('1. Order'!AI880=\"\",\"\",'1. Order'!AI880)","v":""}]
[{"$f":"IF('1. Order'!B881=\"\",\"\",'1. Order'!B881)","v":""},{"$f":"IF('1. Order'!J881=\"\",\"\",'1. Order'!J881)","v":""},{"$f":"IF('1. Order'!K881=\"\",\"\",'1. Order'!K881)","v":""},{"$f":"IF('1. Order'!L881=\"\",\"\",'1. Order'!L881)","v":""},{"$f":"IF('1. Order'!N881=\"\",\"\",'1. Order'!N881)","v":""},null,null,{"$f":"IF('1. Order'!AV881=\"\",\"\",'1. Order'!AV881)","v":""},{"$f":"IF('1. Order'!AI881=\"\",\"\",'1. Order'!AI881)","v":""}]
[{"$f":"IF('1. Order'!B882=\"\",\"\",'1. Order'!B882)","v":""},{"$f":"IF('1. Order'!J882=\"\",\"\",'1. Order'!J882)","v":""},{"$f":"IF('1. Order'!K882=\"\",\"\",'1. Order'!K882)","v":""},{"$f":"IF('1. Order'!L882=\"\",\"\",'1. Order'!L882)","v":""},{"$f":"IF('1. Order'!N882=\"\",\"\",'1. Order'!N882)","v":""},null,null,{"$f":"IF('1. Order'!AV882=\"\",\"\",'1. Order'!AV882)","v":""},{"$f":"IF('1. Order'!AI882=\"\",\"\",'1. Order'!AI882)","v":""}]
[{"$f":"IF('1. Order'!B883=\"\",\"\",'1. Order'!B883)","v":""},{"$f":"IF('1. Order'!J883=\"\",\"\",'1. Order'!J883)","v":""},{"$f":"IF('1. Order'!K883=\"\",\"\",'1. Order'!K883)","v":""},{"$f":"IF('1. Order'!L883=\"\",\"\",'1. Order'!L883)","v":""},{"$f":"IF('1. Order'!N883=\"\",\"\",'1. Order'!N883)","v":""},null,null,{"$f":"IF('1. Order'!AV883=\"\",\"\",'1. Order'!AV883)","v":""},{"$f":"IF('1. Order'!AI883=\"\",\"\",'1. Order'!AI883)","v":""}]
[{"$f":"IF('1. Order'!B884=\"\",\"\",'1. Order'!B884)","v":""},{"$f":"IF('1. Order'!J884=\"\",\"\",'1. Order'!J884)","v":""},{"$f":"IF('1. Order'!K884=\"\",\"\",'1. Order'!K884)","v":""},{"$f":"IF('1. Order'!L884=\"\",\"\",'1. Order'!L884)","v":""},{"$f":"IF('1. Order'!N884=\"\",\"\",'1. Order'!N884)","v":""},null,null,{"$f":"IF('1. Order'!AV884=\"\",\"\",'1. Order'!AV884)","v":""},{"$f":"IF('1. Order'!AI884=\"\",\"\",'1. Order'!AI884)","v":""}]
[{"$f":"IF('1. Order'!B885=\"\",\"\",'1. Order'!B885)","v":""},{"$f":"IF('1. Order'!J885=\"\",\"\",'1. Order'!J885)","v":""},{"$f":"IF('1. Order'!K885=\"\",\"\",'1. Order'!K885)","v":""},{"$f":"IF('1. Order'!L885=\"\",\"\",'1. Order'!L885)","v":""},{"$f":"IF('1. Order'!N885=\"\",\"\",'1. Order'!N885)","v":""},null,null,{"$f":"IF('1. Order'!AV885=\"\",\"\",'1. Order'!AV885)","v":""},{"$f":"IF('1. Order'!AI885=\"\",\"\",'1. Order'!AI885)","v":""}]
[{"$f":"IF('1. Order'!B886=\"\",\"\",'1. Order'!B886)","v":""},{"$f":"IF('1. Order'!J886=\"\",\"\",'1. Order'!J886)","v":""},{"$f":"IF('1. Order'!K886=\"\",\"\",'1. Order'!K886)","v":""},{"$f":"IF('1. Order'!L886=\"\",\"\",'1. Order'!L886)","v":""},{"$f":"IF('1. Order'!N886=\"\",\"\",'1. Order'!N886)","v":""},null,null,{"$f":"IF('1. Order'!AV886=\"\",\"\",'1. Order'!AV886)","v":""},{"$f":"IF('1. Order'!AI886=\"\",\"\",'1. Order'!AI886)","v":""}]
[{"$f":"IF('1. Order'!B887=\"\",\"\",'1. Order'!B887)","v":""},{"$f":"IF('1. Order'!J887=\"\",\"\",'1. Order'!J887)","v":""},{"$f":"IF('1. Order'!K887=\"\",\"\",'1. Order'!K887)","v":""},{"$f":"IF('1. Order'!L887=\"\",\"\",'1. Order'!L887)","v":""},{"$f":"IF('1. Order'!N887=\"\",\"\",'1. Order'!N887)","v":""},null,null,{"$f":"IF('1. Order'!AV887=\"\",\"\",'1. Order'!AV887)","v":""},{"$f":"IF('1. Order'!AI887=\"\",\"\",'1. Order'!AI887)","v":""}]
[{"$f":"IF('1. Order'!B888=\"\",\"\",'1. Order'!B888)","v":""},{"$f":"IF('1. Order'!J888=\"\",\"\",'1. Order'!J888)","v":""},{"$f":"IF('1. Order'!K888=\"\",\"\",'1. Order'!K888)","v":""},{"$f":"IF('1. Order'!L888=\"\",\"\",'1. Order'!L888)","v":""},{"$f":"IF('1. Order'!N888=\"\",\"\",'1. Order'!N888)","v":""},null,null,{"$f":"IF('1. Order'!AV888=\"\",\"\",'1. Order'!AV888)","v":""},{"$f":"IF('1. Order'!AI888=\"\",\"\",'1. Order'!AI888)","v":""}]
[{"$f":"IF('1. Order'!B889=\"\",\"\",'1. Order'!B889)","v":""},{"$f":"IF('1. Order'!J889=\"\",\"\",'1. Order'!J889)","v":""},{"$f":"IF('1. Order'!K889=\"\",\"\",'1. Order'!K889)","v":""},{"$f":"IF('1. Order'!L889=\"\",\"\",'1. Order'!L889)","v":""},{"$f":"IF('1. Order'!N889=\"\",\"\",'1. Order'!N889)","v":""},null,null,{"$f":"IF('1. Order'!AV889=\"\",\"\",'1. Order'!AV889)","v":""},{"$f":"IF('1. Order'!AI889=\"\",\"\",'1. Order'!AI889)","v":""}]
[{"$f":"IF('1. Order'!B890=\"\",\"\",'1. Order'!B890)","v":""},{"$f":"IF('1. Order'!J890=\"\",\"\",'1. Order'!J890)","v":""},{"$f":"IF('1. Order'!K890=\"\",\"\",'1. Order'!K890)","v":""},{"$f":"IF('1. Order'!L890=\"\",\"\",'1. Order'!L890)","v":""},{"$f":"IF('1. Order'!N890=\"\",\"\",'1. Order'!N890)","v":""},null,null,{"$f":"IF('1. Order'!AV890=\"\",\"\",'1. Order'!AV890)","v":""},{"$f":"IF('1. Order'!AI890=\"\",\"\",'1. Order'!AI890)","v":""}]
[{"$f":"IF('1. Order'!B891=\"\",\"\",'1. Order'!B891)","v":""},{"$f":"IF('1. Order'!J891=\"\",\"\",'1. Order'!J891)","v":""},{"$f":"IF('1. Order'!K891=\"\",\"\",'1. Order'!K891)","v":""},{"$f":"IF('1. Order'!L891=\"\",\"\",'1. Order'!L891)","v":""},{"$f":"IF('1. Order'!N891=\"\",\"\",'1. Order'!N891)","v":""},null,null,{"$f":"IF('1. Order'!AV891=\"\",\"\",'1. Order'!AV891)","v":""},{"$f":"IF('1. Order'!AI891=\"\",\"\",'1. Order'!AI891)","v":""}]
[{"$f":"IF('1. Order'!B892=\"\",\"\",'1. Order'!B892)","v":""},{"$f":"IF('1. Order'!J892=\"\",\"\",'1. Order'!J892)","v":""},{"$f":"IF('1. Order'!K892=\"\",\"\",'1. Order'!K892)","v":""},{"$f":"IF('1. Order'!L892=\"\",\"\",'1. Order'!L892)","v":""},{"$f":"IF('1. Order'!N892=\"\",\"\",'1. Order'!N892)","v":""},null,null,{"$f":"IF('1. Order'!AV892=\"\",\"\",'1. Order'!AV892)","v":""},{"$f":"IF('1. Order'!AI892=\"\",\"\",'1. Order'!AI892)","v":""}]
[{"$f":"IF('1. Order'!B893=\"\",\"\",'1. Order'!B893)","v":""},{"$f":"IF('1. Order'!J893=\"\",\"\",'1. Order'!J893)","v":""},{"$f":"IF('1. Order'!K893=\"\",\"\",'1. Order'!K893)","v":""},{"$f":"IF('1. Order'!L893=\"\",\"\",'1. Order'!L893)","v":""},{"$f":"IF('1. Order'!N893=\"\",\"\",'1. Order'!N893)","v":""},null,null,{"$f":"IF('1. Order'!AV893=\"\",\"\",'1. Order'!AV893)","v":""},{"$f":"IF('1. Order'!AI893=\"\",\"\",'1. Order'!AI893)","v":""}]
[{"$f":"IF('1. Order'!B894=\"\",\"\",'1. Order'!B894)","v":""},{"$f":"IF('1. Order'!J894=\"\",\"\",'1. Order'!J894)","v":""},{"$f":"IF('1. Order'!K894=\"\",\"\",'1. Order'!K894)","v":""},{"$f":"IF('1. Order'!L894=\"\",\"\",'1. Order'!L894)","v":""},{"$f":"IF('1. Order'!N894=\"\",\"\",'1. Order'!N894)","v":""},null,null,{"$f":"IF('1. Order'!AV894=\"\",\"\",'1. Order'!AV894)","v":""},{"$f":"IF('1. Order'!AI894=\"\",\"\",'1. Order'!AI894)","v":""}]
[{"$f":"IF('1. Order'!B895=\"\",\"\",'1. Order'!B895)","v":""},{"$f":"IF('1. Order'!J895=\"\",\"\",'1. Order'!J895)","v":""},{"$f":"IF('1. Order'!K895=\"\",\"\",'1. Order'!K895)","v":""},{"$f":"IF('1. Order'!L895=\"\",\"\",'1. Order'!L895)","v":""},{"$f":"IF('1. Order'!N895=\"\",\"\",'1. Order'!N895)","v":""},null,null,{"$f":"IF('1. Order'!AV895=\"\",\"\",'1. Order'!AV895)","v":""},{"$f":"IF('1. Order'!AI895=\"\",\"\",'1. Order'!AI895)","v":""}]
[{"$f":"IF('1. Order'!B896=\"\",\"\",'1. Order'!B896)","v":""},{"$f":"IF('1. Order'!J896=\"\",\"\",'1. Order'!J896)","v":""},{"$f":"IF('1. Order'!K896=\"\",\"\",'1. Order'!K896)","v":""},{"$f":"IF('1. Order'!L896=\"\",\"\",'1. Order'!L896)","v":""},{"$f":"IF('1. Order'!N896=\"\",\"\",'1. Order'!N896)","v":""},null,null,{"$f":"IF('1. Order'!AV896=\"\",\"\",'1. Order'!AV896)","v":""},{"$f":"IF('1. Order'!AI896=\"\",\"\",'1. Order'!AI896)","v":""}]
[{"$f":"IF('1. Order'!B897=\"\",\"\",'1. Order'!B897)","v":""},{"$f":"IF('1. Order'!J897=\"\",\"\",'1. Order'!J897)","v":""},{"$f":"IF('1. Order'!K897=\"\",\"\",'1. Order'!K897)","v":""},{"$f":"IF('1. Order'!L897=\"\",\"\",'1. Order'!L897)","v":""},{"$f":"IF('1. Order'!N897=\"\",\"\",'1. Order'!N897)","v":""},null,null,{"$f":"IF('1. Order'!AV897=\"\",\"\",'1. Order'!AV897)","v":""},{"$f":"IF('1. Order'!AI897=\"\",\"\",'1. Order'!AI897)","v":""}]
[{"$f":"IF('1. Order'!B898=\"\",\"\",'1. Order'!B898)","v":""},{"$f":"IF('1. Order'!J898=\"\",\"\",'1. Order'!J898)","v":""},{"$f":"IF('1. Order'!K898=\"\",\"\",'1. Order'!K898)","v":""},{"$f":"IF('1. Order'!L898=\"\",\"\",'1. Order'!L898)","v":""},{"$f":"IF('1. Order'!N898=\"\",\"\",'1. Order'!N898)","v":""},null,null,{"$f":"IF('1. Order'!AV898=\"\",\"\",'1. Order'!AV898)","v":""},{"$f":"IF('1. Order'!AI898=\"\",\"\",'1. Order'!AI898)","v":""}]
[{"$f":"IF('1. Order'!B899=\"\",\"\",'1. Order'!B899)","v":""},{"$f":"IF('1. Order'!J899=\"\",\"\",'1. Order'!J899)","v":""},{"$f":"IF('1. Order'!K899=\"\",\"\",'1. Order'!K899)","v":""},{"$f":"IF('1. Order'!L899=\"\",\"\",'1. Order'!L899)","v":""},{"$f":"IF('1. Order'!N899=\"\",\"\",'1. Order'!N899)","v":""},null,null,{"$f":"IF('1. Order'!AV899=\"\",\"\",'1. Order'!AV899)","v":""},{"$f":"IF('1. Order'!AI899=\"\",\"\",'1. Order'!AI899)","v":""}]
[{"$f":"IF('1. Order'!B900=\"\",\"\",'1. Order'!B900)","v":""},{"$f":"IF('1. Order'!J900=\"\",\"\",'1. Order'!J900)","v":""},{"$f":"IF('1. Order'!K900=\"\",\"\",'1. Order'!K900)","v":""},{"$f":"IF('1. Order'!L900=\"\",\"\",'1. Order'!L900)","v":""},{"$f":"IF('1. Order'!N900=\"\",\"\",'1. Order'!N900)","v":""},null,null,{"$f":"IF('1. Order'!AV900=\"\",\"\",'1. Order'!AV900)","v":""},{"$f":"IF('1. Order'!AI900=\"\",\"\",'1. Order'!AI900)","v":""}]
[{"$f":"IF('1. Order'!B901=\"\",\"\",'1. Order'!B901)","v":""},{"$f":"IF('1. Order'!J901=\"\",\"\",'1. Order'!J901)","v":""},{"$f":"IF('1. Order'!K901=\"\",\"\",'1. Order'!K901)","v":""},{"$f":"IF('1. Order'!L901=\"\",\"\",'1. Order'!L901)","v":""},{"$f":"IF('1. Order'!N901=\"\",\"\",'1. Order'!N901)","v":""},null,null,{"$f":"IF('1. Order'!AV901=\"\",\"\",'1. Order'!AV901)","v":""},{"$f":"IF('1. Order'!AI901=\"\",\"\",'1. Order'!AI901)","v":""}]
[{"$f":"IF('1. Order'!B902=\"\",\"\",'1. Order'!B902)","v":""},{"$f":"IF('1. Order'!J902=\"\",\"\",'1. Order'!J902)","v":""},{"$f":"IF('1. Order'!K902=\"\",\"\",'1. Order'!K902)","v":""},{"$f":"IF('1. Order'!L902=\"\",\"\",'1. Order'!L902)","v":""},{"$f":"IF('1. Order'!N902=\"\",\"\",'1. Order'!N902)","v":""},null,null,{"$f":"IF('1. Order'!AV902=\"\",\"\",'1. Order'!AV902)","v":""},{"$f":"IF('1. Order'!AI902=\"\",\"\",'1. Order'!AI902)","v":""}]
[{"$f":"IF('1. Order'!B903=\"\",\"\",'1. Order'!B903)","v":""},{"$f":"IF('1. Order'!J903=\"\",\"\",'1. Order'!J903)","v":""},{"$f":"IF('1. Order'!K903=\"\",\"\",'1. Order'!K903)","v":""},{"$f":"IF('1. Order'!L903=\"\",\"\",'1. Order'!L903)","v":""},{"$f":"IF('1. Order'!N903=\"\",\"\",'1. Order'!N903)","v":""},null,null,{"$f":"IF('1. Order'!AV903=\"\",\"\",'1. Order'!AV903)","v":""},{"$f":"IF('1. Order'!AI903=\"\",\"\",'1. Order'!AI903)","v":""}]
[{"$f":"IF('1. Order'!B904=\"\",\"\",'1. Order'!B904)","v":""},{"$f":"IF('1. Order'!J904=\"\",\"\",'1. Order'!J904)","v":""},{"$f":"IF('1. Order'!K904=\"\",\"\",'1. Order'!K904)","v":""},{"$f":"IF('1. Order'!L904=\"\",\"\",'1. Order'!L904)","v":""},{"$f":"IF('1. Order'!N904=\"\",\"\",'1. Order'!N904)","v":""},null,null,{"$f":"IF('1. Order'!AV904=\"\",\"\",'1. Order'!AV904)","v":""},{"$f":"IF('1. Order'!AI904=\"\",\"\",'1. Order'!AI904)","v":""}]
[{"$f":"IF('1. Order'!B905=\"\",\"\",'1. Order'!B905)","v":""},{"$f":"IF('1. Order'!J905=\"\",\"\",'1. Order'!J905)","v":""},{"$f":"IF('1. Order'!K905=\"\",\"\",'1. Order'!K905)","v":""},{"$f":"IF('1. Order'!L905=\"\",\"\",'1. Order'!L905)","v":""},{"$f":"IF('1. Order'!N905=\"\",\"\",'1. Order'!N905)","v":""},null,null,{"$f":"IF('1. Order'!AV905=\"\",\"\",'1. Order'!AV905)","v":""},{"$f":"IF('1. Order'!AI905=\"\",\"\",'1. Order'!AI905)","v":""}]
[{"$f":"IF('1. Order'!B906=\"\",\"\",'1. Order'!B906)","v":""},{"$f":"IF('1. Order'!J906=\"\",\"\",'1. Order'!J906)","v":""},{"$f":"IF('1. Order'!K906=\"\",\"\",'1. Order'!K906)","v":""},{"$f":"IF('1. Order'!L906=\"\",\"\",'1. Order'!L906)","v":""},{"$f":"IF('1. Order'!N906=\"\",\"\",'1. Order'!N906)","v":""},null,null,{"$f":"IF('1. Order'!AV906=\"\",\"\",'1. Order'!AV906)","v":""},{"$f":"IF('1. Order'!AI906=\"\",\"\",'1. Order'!AI906)","v":""}]
[{"$f":"IF('1. Order'!B907=\"\",\"\",'1. Order'!B907)","v":""},{"$f":"IF('1. Order'!J907=\"\",\"\",'1. Order'!J907)","v":""},{"$f":"IF('1. Order'!K907=\"\",\"\",'1. Order'!K907)","v":""},{"$f":"IF('1. Order'!L907=\"\",\"\",'1. Order'!L907)","v":""},{"$f":"IF('1. Order'!N907=\"\",\"\",'1. Order'!N907)","v":""},null,null,{"$f":"IF('1. Order'!AV907=\"\",\"\",'1. Order'!AV907)","v":""},{"$f":"IF('1. Order'!AI907=\"\",\"\",'1. Order'!AI907)","v":""}]
[{"$f":"IF('1. Order'!B908=\"\",\"\",'1. Order'!B908)","v":""},{"$f":"IF('1. Order'!J908=\"\",\"\",'1. Order'!J908)","v":""},{"$f":"IF('1. Order'!K908=\"\",\"\",'1. Order'!K908)","v":""},{"$f":"IF('1. Order'!L908=\"\",\"\",'1. Order'!L908)","v":""},{"$f":"IF('1. Order'!N908=\"\",\"\",'1. Order'!N908)","v":""},null,null,{"$f":"IF('1. Order'!AV908=\"\",\"\",'1. Order'!AV908)","v":""},{"$f":"IF('1. Order'!AI908=\"\",\"\",'1. Order'!AI908)","v":""}]
[{"$f":"IF('1. Order'!B909=\"\",\"\",'1. Order'!B909)","v":""},{"$f":"IF('1. Order'!J909=\"\",\"\",'1. Order'!J909)","v":""},{"$f":"IF('1. Order'!K909=\"\",\"\",'1. Order'!K909)","v":""},{"$f":"IF('1. Order'!L909=\"\",\"\",'1. Order'!L909)","v":""},{"$f":"IF('1. Order'!N909=\"\",\"\",'1. Order'!N909)","v":""},null,null,{"$f":"IF('1. Order'!AV909=\"\",\"\",'1. Order'!AV909)","v":""},{"$f":"IF('1. Order'!AI909=\"\",\"\",'1. Order'!AI909)","v":""}]
[{"$f":"IF('1. Order'!B910=\"\",\"\",'1. Order'!B910)","v":""},{"$f":"IF('1. Order'!J910=\"\",\"\",'1. Order'!J910)","v":""},{"$f":"IF('1. Order'!K910=\"\",\"\",'1. Order'!K910)","v":""},{"$f":"IF('1. Order'!L910=\"\",\"\",'1. Order'!L910)","v":""},{"$f":"IF('1. Order'!N910=\"\",\"\",'1. Order'!N910)","v":""},null,null,{"$f":"IF('1. Order'!AV910=\"\",\"\",'1. Order'!AV910)","v":""},{"$f":"IF('1. Order'!AI910=\"\",\"\",'1. Order'!AI910)","v":""}]
[{"$f":"IF('1. Order'!B911=\"\",\"\",'1. Order'!B911)","v":""},{"$f":"IF('1. Order'!J911=\"\",\"\",'1. Order'!J911)","v":""},{"$f":"IF('1. Order'!K911=\"\",\"\",'1. Order'!K911)","v":""},{"$f":"IF('1. Order'!L911=\"\",\"\",'1. Order'!L911)","v":""},{"$f":"IF('1. Order'!N911=\"\",\"\",'1. Order'!N911)","v":""},null,null,{"$f":"IF('1. Order'!AV911=\"\",\"\",'1. Order'!AV911)","v":""},{"$f":"IF('1. Order'!AI911=\"\",\"\",'1. Order'!AI911)","v":""}]
[{"$f":"IF('1. Order'!B912=\"\",\"\",'1. Order'!B912)","v":""},{"$f":"IF('1. Order'!J912=\"\",\"\",'1. Order'!J912)","v":""},{"$f":"IF('1. Order'!K912=\"\",\"\",'1. Order'!K912)","v":""},{"$f":"IF('1. Order'!L912=\"\",\"\",'1. Order'!L912)","v":""},{"$f":"IF('1. Order'!N912=\"\",\"\",'1. Order'!N912)","v":""},null,null,{"$f":"IF('1. Order'!AV912=\"\",\"\",'1. Order'!AV912)","v":""},{"$f":"IF('1. Order'!AI912=\"\",\"\",'1. Order'!AI912)","v":""}]
[{"$f":"IF('1. Order'!B913=\"\",\"\",'1. Order'!B913)","v":""},{"$f":"IF('1. Order'!J913=\"\",\"\",'1. Order'!J913)","v":""},{"$f":"IF('1. Order'!K913=\"\",\"\",'1. Order'!K913)","v":""},{"$f":"IF('1. Order'!L913=\"\",\"\",'1. Order'!L913)","v":""},{"$f":"IF('1. Order'!N913=\"\",\"\",'1. Order'!N913)","v":""},null,null,{"$f":"IF('1. Order'!AV913=\"\",\"\",'1. Order'!AV913)","v":""},{"$f":"IF('1. Order'!AI913=\"\",\"\",'1. Order'!AI913)","v":""}]
[{"$f":"IF('1. Order'!B914=\"\",\"\",'1. Order'!B914)","v":""},{"$f":"IF('1. Order'!J914=\"\",\"\",'1. Order'!J914)","v":""},{"$f":"IF('1. Order'!K914=\"\",\"\",'1. Order'!K914)","v":""},{"$f":"IF('1. Order'!L914=\"\",\"\",'1. Order'!L914)","v":""},{"$f":"IF('1. Order'!N914=\"\",\"\",'1. Order'!N914)","v":""},null,null,{"$f":"IF('1. Order'!AV914=\"\",\"\",'1. Order'!AV914)","v":""},{"$f":"IF('1. Order'!AI914=\"\",\"\",'1. Order'!AI914)","v":""}]
[{"$f":"IF('1. Order'!B915=\"\",\"\",'1. Order'!B915)","v":""},{"$f":"IF('1. Order'!J915=\"\",\"\",'1. Order'!J915)","v":""},{"$f":"IF('1. Order'!K915=\"\",\"\",'1. Order'!K915)","v":""},{"$f":"IF('1. Order'!L915=\"\",\"\",'1. Order'!L915)","v":""},{"$f":"IF('1. Order'!N915=\"\",\"\",'1. Order'!N915)","v":""},null,null,{"$f":"IF('1. Order'!AV915=\"\",\"\",'1. Order'!AV915)","v":""},{"$f":"IF('1. Order'!AI915=\"\",\"\",'1. Order'!AI915)","v":""}]
[{"$f":"IF('1. Order'!B916=\"\",\"\",'1. Order'!B916)","v":""},{"$f":"IF('1. Order'!J916=\"\",\"\",'1. Order'!J916)","v":""},{"$f":"IF('1. Order'!K916=\"\",\"\",'1. Order'!K916)","v":""},{"$f":"IF('1. Order'!L916=\"\",\"\",'1. Order'!L916)","v":""},{"$f":"IF('1. Order'!N916=\"\",\"\",'1. Order'!N916)","v":""},null,null,{"$f":"IF('1. Order'!AV916=\"\",\"\",'1. Order'!AV916)","v":""},{"$f":"IF('1. Order'!AI916=\"\",\"\",'1. Order'!AI916)","v":""}]
[{"$f":"IF('1. Order'!B917=\"\",\"\",'1. Order'!B917)","v":""},{"$f":"IF('1. Order'!J917=\"\",\"\",'1. Order'!J917)","v":""},{"$f":"IF('1. Order'!K917=\"\",\"\",'1. Order'!K917)","v":""},{"$f":"IF('1. Order'!L917=\"\",\"\",'1. Order'!L917)","v":""},{"$f":"IF('1. Order'!N917=\"\",\"\",'1. Order'!N917)","v":""},null,null,{"$f":"IF('1. Order'!AV917=\"\",\"\",'1. Order'!AV917)","v":""},{"$f":"IF('1. Order'!AI917=\"\",\"\",'1. Order'!AI917)","v":""}]
[{"$f":"IF('1. Order'!B918=\"\",\"\",'1. Order'!B918)","v":""},{"$f":"IF('1. Order'!J918=\"\",\"\",'1. Order'!J918)","v":""},{"$f":"IF('1. Order'!K918=\"\",\"\",'1. Order'!K918)","v":""},{"$f":"IF('1. Order'!L918=\"\",\"\",'1. Order'!L918)","v":""},{"$f":"IF('1. Order'!N918=\"\",\"\",'1. Order'!N918)","v":""},null,null,{"$f":"IF('1. Order'!AV918=\"\",\"\",'1. Order'!AV918)","v":""},{"$f":"IF('1. Order'!AI918=\"\",\"\",'1. Order'!AI918)","v":""}]
[{"$f":"IF('1. Order'!B919=\"\",\"\",'1. Order'!B919)","v":""},{"$f":"IF('1. Order'!J919=\"\",\"\",'1. Order'!J919)","v":""},{"$f":"IF('1. Order'!K919=\"\",\"\",'1. Order'!K919)","v":""},{"$f":"IF('1. Order'!L919=\"\",\"\",'1. Order'!L919)","v":""},{"$f":"IF('1. Order'!N919=\"\",\"\",'1. Order'!N919)","v":""},null,null,{"$f":"IF('1. Order'!AV919=\"\",\"\",'1. Order'!AV919)","v":""},{"$f":"IF('1. Order'!AI919=\"\",\"\",'1. Order'!AI919)","v":""}]
[{"$f":"IF('1. Order'!B920=\"\",\"\",'1. Order'!B920)","v":""},{"$f":"IF('1. Order'!J920=\"\",\"\",'1. Order'!J920)","v":""},{"$f":"IF('1. Order'!K920=\"\",\"\",'1. Order'!K920)","v":""},{"$f":"IF('1. Order'!L920=\"\",\"\",'1. Order'!L920)","v":""},{"$f":"IF('1. Order'!N920=\"\",\"\",'1. Order'!N920)","v":""},null,null,{"$f":"IF('1. Order'!AV920=\"\",\"\",'1. Order'!AV920)","v":""},{"$f":"IF('1. Order'!AI920=\"\",\"\",'1. Order'!AI920)","v":""}]
[{"$f":"IF('1. Order'!B921=\"\",\"\",'1. Order'!B921)","v":""},{"$f":"IF('1. Order'!J921=\"\",\"\",'1. Order'!J921)","v":""},{"$f":"IF('1. Order'!K921=\"\",\"\",'1. Order'!K921)","v":""},{"$f":"IF('1. Order'!L921=\"\",\"\",'1. Order'!L921)","v":""},{"$f":"IF('1. Order'!N921=\"\",\"\",'1. Order'!N921)","v":""},null,null,{"$f":"IF('1. Order'!AV921=\"\",\"\",'1. Order'!AV921)","v":""},{"$f":"IF('1. Order'!AI921=\"\",\"\",'1. Order'!AI921)","v":""}]
[{"$f":"IF('1. Order'!B922=\"\",\"\",'1. Order'!B922)","v":""},{"$f":"IF('1. Order'!J922=\"\",\"\",'1. Order'!J922)","v":""},{"$f":"IF('1. Order'!K922=\"\",\"\",'1. Order'!K922)","v":""},{"$f":"IF('1. Order'!L922=\"\",\"\",'1. Order'!L922)","v":""},{"$f":"IF('1. Order'!N922=\"\",\"\",'1. Order'!N922)","v":""},null,null,{"$f":"IF('1. Order'!AV922=\"\",\"\",'1. Order'!AV922)","v":""},{"$f":"IF('1. Order'!AI922=\"\",\"\",'1. Order'!AI922)","v":""}]
[{"$f":"IF('1. Order'!B923=\"\",\"\",'1. Order'!B923)","v":""},{"$f":"IF('1. Order'!J923=\"\",\"\",'1. Order'!J923)","v":""},{"$f":"IF('1. Order'!K923=\"\",\"\",'1. Order'!K923)","v":""},{"$f":"IF('1. Order'!L923=\"\",\"\",'1. Order'!L923)","v":""},{"$f":"IF('1. Order'!N923=\"\",\"\",'1. Order'!N923)","v":""},null,null,{"$f":"IF('1. Order'!AV923=\"\",\"\",'1. Order'!AV923)","v":""},{"$f":"IF('1. Order'!AI923=\"\",\"\",'1. Order'!AI923)","v":""}]
[{"$f":"IF('1. Order'!B924=\"\",\"\",'1. Order'!B924)","v":""},{"$f":"IF('1. Order'!J924=\"\",\"\",'1. Order'!J924)","v":""},{"$f":"IF('1. Order'!K924=\"\",\"\",'1. Order'!K924)","v":""},{"$f":"IF('1. Order'!L924=\"\",\"\",'1. Order'!L924)","v":""},{"$f":"IF('1. Order'!N924=\"\",\"\",'1. Order'!N924)","v":""},null,null,{"$f":"IF('1. Order'!AV924=\"\",\"\",'1. Order'!AV924)","v":""},{"$f":"IF('1. Order'!AI924=\"\",\"\",'1. Order'!AI924)","v":""}]
[{"$f":"IF('1. Order'!B925=\"\",\"\",'1. Order'!B925)","v":""},{"$f":"IF('1. Order'!J925=\"\",\"\",'1. Order'!J925)","v":""},{"$f":"IF('1. Order'!K925=\"\",\"\",'1. Order'!K925)","v":""},{"$f":"IF('1. Order'!L925=\"\",\"\",'1. Order'!L925)","v":""},{"$f":"IF('1. Order'!N925=\"\",\"\",'1. Order'!N925)","v":""},null,null,{"$f":"IF('1. Order'!AV925=\"\",\"\",'1. Order'!AV925)","v":""},{"$f":"IF('1. Order'!AI925=\"\",\"\",'1. Order'!AI925)","v":""}]
[{"$f":"IF('1. Order'!B926=\"\",\"\",'1. Order'!B926)","v":""},{"$f":"IF('1. Order'!J926=\"\",\"\",'1. Order'!J926)","v":""},{"$f":"IF('1. Order'!K926=\"\",\"\",'1. Order'!K926)","v":""},{"$f":"IF('1. Order'!L926=\"\",\"\",'1. Order'!L926)","v":""},{"$f":"IF('1. Order'!N926=\"\",\"\",'1. Order'!N926)","v":""},null,null,{"$f":"IF('1. Order'!AV926=\"\",\"\",'1. Order'!AV926)","v":""},{"$f":"IF('1. Order'!AI926=\"\",\"\",'1. Order'!AI926)","v":""}]
[{"$f":"IF('1. Order'!B927=\"\",\"\",'1. Order'!B927)","v":""},{"$f":"IF('1. Order'!J927=\"\",\"\",'1. Order'!J927)","v":""},{"$f":"IF('1. Order'!K927=\"\",\"\",'1. Order'!K927)","v":""},{"$f":"IF('1. Order'!L927=\"\",\"\",'1. Order'!L927)","v":""},{"$f":"IF('1. Order'!N927=\"\",\"\",'1. Order'!N927)","v":""},null,null,{"$f":"IF('1. Order'!AV927=\"\",\"\",'1. Order'!AV927)","v":""},{"$f":"IF('1. Order'!AI927=\"\",\"\",'1. Order'!AI927)","v":""}]
[{"$f":"IF('1. Order'!B928=\"\",\"\",'1. Order'!B928)","v":""},{"$f":"IF('1. Order'!J928=\"\",\"\",'1. Order'!J928)","v":""},{"$f":"IF('1. Order'!K928=\"\",\"\",'1. Order'!K928)","v":""},{"$f":"IF('1. Order'!L928=\"\",\"\",'1. Order'!L928)","v":""},{"$f":"IF('1. Order'!N928=\"\",\"\",'1. Order'!N928)","v":""},null,null,{"$f":"IF('1. Order'!AV928=\"\",\"\",'1. Order'!AV928)","v":""},{"$f":"IF('1. Order'!AI928=\"\",\"\",'1. Order'!AI928)","v":""}]
[{"$f":"IF('1. Order'!B929=\"\",\"\",'1. Order'!B929)","v":""},{"$f":"IF('1. Order'!J929=\"\",\"\",'1. Order'!J929)","v":""},{"$f":"IF('1. Order'!K929=\"\",\"\",'1. Order'!K929)","v":""},{"$f":"IF('1. Order'!L929=\"\",\"\",'1. Order'!L929)","v":""},{"$f":"IF('1. Order'!N929=\"\",\"\",'1. Order'!N929)","v":""},null,null,{"$f":"IF('1. Order'!AV929=\"\",\"\",'1. Order'!AV929)","v":""},{"$f":"IF('1. Order'!AI929=\"\",\"\",'1. Order'!AI929)","v":""}]
[{"$f":"IF('1. Order'!B930=\"\",\"\",'1. Order'!B930)","v":""},{"$f":"IF('1. Order'!J930=\"\",\"\",'1. Order'!J930)","v":""},{"$f":"IF('1. Order'!K930=\"\",\"\",'1. Order'!K930)","v":""},{"$f":"IF('1. Order'!L930=\"\",\"\",'1. Order'!L930)","v":""},{"$f":"IF('1. Order'!N930=\"\",\"\",'1. Order'!N930)","v":""},null,null,{"$f":"IF('1. Order'!AV930=\"\",\"\",'1. Order'!AV930)","v":""},{"$f":"IF('1. Order'!AI930=\"\",\"\",'1. Order'!AI930)","v":""}]
[{"$f":"IF('1. Order'!B931=\"\",\"\",'1. Order'!B931)","v":""},{"$f":"IF('1. Order'!J931=\"\",\"\",'1. Order'!J931)","v":""},{"$f":"IF('1. Order'!K931=\"\",\"\",'1. Order'!K931)","v":""},{"$f":"IF('1. Order'!L931=\"\",\"\",'1. Order'!L931)","v":""},{"$f":"IF('1. Order'!N931=\"\",\"\",'1. Order'!N931)","v":""},null,null,{"$f":"IF('1. Order'!AV931=\"\",\"\",'1. Order'!AV931)","v":""},{"$f":"IF('1. Order'!AI931=\"\",\"\",'1. Order'!AI931)","v":""}]
[{"$f":"IF('1. Order'!B932=\"\",\"\",'1. Order'!B932)","v":""},{"$f":"IF('1. Order'!J932=\"\",\"\",'1. Order'!J932)","v":""},{"$f":"IF('1. Order'!K932=\"\",\"\",'1. Order'!K932)","v":""},{"$f":"IF('1. Order'!L932=\"\",\"\",'1. Order'!L932)","v":""},{"$f":"IF('1. Order'!N932=\"\",\"\",'1. Order'!N932)","v":""},null,null,{"$f":"IF('1. Order'!AV932=\"\",\"\",'1. Order'!AV932)","v":""},{"$f":"IF('1. Order'!AI932=\"\",\"\",'1. Order'!AI932)","v":""}]
[{"$f":"IF('1. Order'!B933=\"\",\"\",'1. Order'!B933)","v":""},{"$f":"IF('1. Order'!J933=\"\",\"\",'1. Order'!J933)","v":""},{"$f":"IF('1. Order'!K933=\"\",\"\",'1. Order'!K933)","v":""},{"$f":"IF('1. Order'!L933=\"\",\"\",'1. Order'!L933)","v":""},{"$f":"IF('1. Order'!N933=\"\",\"\",'1. Order'!N933)","v":""},null,null,{"$f":"IF('1. Order'!AV933=\"\",\"\",'1. Order'!AV933)","v":""},{"$f":"IF('1. Order'!AI933=\"\",\"\",'1. Order'!AI933)","v":""}]
[{"$f":"IF('1. Order'!B934=\"\",\"\",'1. Order'!B934)","v":""},{"$f":"IF('1. Order'!J934=\"\",\"\",'1. Order'!J934)","v":""},{"$f":"IF('1. Order'!K934=\"\",\"\",'1. Order'!K934)","v":""},{"$f":"IF('1. Order'!L934=\"\",\"\",'1. Order'!L934)","v":""},{"$f":"IF('1. Order'!N934=\"\",\"\",'1. Order'!N934)","v":""},null,null,{"$f":"IF('1. Order'!AV934=\"\",\"\",'1. Order'!AV934)","v":""},{"$f":"IF('1. Order'!AI934=\"\",\"\",'1. Order'!AI934)","v":""}]
[{"$f":"IF('1. Order'!B935=\"\",\"\",'1. Order'!B935)","v":""},{"$f":"IF('1. Order'!J935=\"\",\"\",'1. Order'!J935)","v":""},{"$f":"IF('1. Order'!K935=\"\",\"\",'1. Order'!K935)","v":""},{"$f":"IF('1. Order'!L935=\"\",\"\",'1. Order'!L935)","v":""},{"$f":"IF('1. Order'!N935=\"\",\"\",'1. Order'!N935)","v":""},null,null,{"$f":"IF('1. Order'!AV935=\"\",\"\",'1. Order'!AV935)","v":""},{"$f":"IF('1. Order'!AI935=\"\",\"\",'1. Order'!AI935)","v":""}]
[{"$f":"IF('1. Order'!B936=\"\",\"\",'1. Order'!B936)","v":""},{"$f":"IF('1. Order'!J936=\"\",\"\",'1. Order'!J936)","v":""},{"$f":"IF('1. Order'!K936=\"\",\"\",'1. Order'!K936)","v":""},{"$f":"IF('1. Order'!L936=\"\",\"\",'1. Order'!L936)","v":""},{"$f":"IF('1. Order'!N936=\"\",\"\",'1. Order'!N936)","v":""},null,null,{"$f":"IF('1. Order'!AV936=\"\",\"\",'1. Order'!AV936)","v":""},{"$f":"IF('1. Order'!AI936=\"\",\"\",'1. Order'!AI936)","v":""}]
[{"$f":"IF('1. Order'!B937=\"\",\"\",'1. Order'!B937)","v":""},{"$f":"IF('1. Order'!J937=\"\",\"\",'1. Order'!J937)","v":""},{"$f":"IF('1. Order'!K937=\"\",\"\",'1. Order'!K937)","v":""},{"$f":"IF('1. Order'!L937=\"\",\"\",'1. Order'!L937)","v":""},{"$f":"IF('1. Order'!N937=\"\",\"\",'1. Order'!N937)","v":""},null,null,{"$f":"IF('1. Order'!AV937=\"\",\"\",'1. Order'!AV937)","v":""},{"$f":"IF('1. Order'!AI937=\"\",\"\",'1. Order'!AI937)","v":""}]
[{"$f":"IF('1. Order'!B938=\"\",\"\",'1. Order'!B938)","v":""},{"$f":"IF('1. Order'!J938=\"\",\"\",'1. Order'!J938)","v":""},{"$f":"IF('1. Order'!K938=\"\",\"\",'1. Order'!K938)","v":""},{"$f":"IF('1. Order'!L938=\"\",\"\",'1. Order'!L938)","v":""},{"$f":"IF('1. Order'!N938=\"\",\"\",'1. Order'!N938)","v":""},null,null,{"$f":"IF('1. Order'!AV938=\"\",\"\",'1. Order'!AV938)","v":""},{"$f":"IF('1. Order'!AI938=\"\",\"\",'1. Order'!AI938)","v":""}]
[{"$f":"IF('1. Order'!B939=\"\",\"\",'1. Order'!B939)","v":""},{"$f":"IF('1. Order'!J939=\"\",\"\",'1. Order'!J939)","v":""},{"$f":"IF('1. Order'!K939=\"\",\"\",'1. Order'!K939)","v":""},{"$f":"IF('1. Order'!L939=\"\",\"\",'1. Order'!L939)","v":""},{"$f":"IF('1. Order'!N939=\"\",\"\",'1. Order'!N939)","v":""},null,null,{"$f":"IF('1. Order'!AV939=\"\",\"\",'1. Order'!AV939)","v":""},{"$f":"IF('1. Order'!AI939=\"\",\"\",'1. Order'!AI939)","v":""}]
[{"$f":"IF('1. Order'!B940=\"\",\"\",'1. Order'!B940)","v":""},{"$f":"IF('1. Order'!J940=\"\",\"\",'1. Order'!J940)","v":""},{"$f":"IF('1. Order'!K940=\"\",\"\",'1. Order'!K940)","v":""},{"$f":"IF('1. Order'!L940=\"\",\"\",'1. Order'!L940)","v":""},{"$f":"IF('1. Order'!N940=\"\",\"\",'1. Order'!N940)","v":""},null,null,{"$f":"IF('1. Order'!AV940=\"\",\"\",'1. Order'!AV940)","v":""},{"$f":"IF('1. Order'!AI940=\"\",\"\",'1. Order'!AI940)","v":""}]
[{"$f":"IF('1. Order'!B941=\"\",\"\",'1. Order'!B941)","v":""},{"$f":"IF('1. Order'!J941=\"\",\"\",'1. Order'!J941)","v":""},{"$f":"IF('1. Order'!K941=\"\",\"\",'1. Order'!K941)","v":""},{"$f":"IF('1. Order'!L941=\"\",\"\",'1. Order'!L941)","v":""},{"$f":"IF('1. Order'!N941=\"\",\"\",'1. Order'!N941)","v":""},null,null,{"$f":"IF('1. Order'!AV941=\"\",\"\",'1. Order'!AV941)","v":""},{"$f":"IF('1. Order'!AI941=\"\",\"\",'1. Order'!AI941)","v":""}]
[{"$f":"IF('1. Order'!B942=\"\",\"\",'1. Order'!B942)","v":""},{"$f":"IF('1. Order'!J942=\"\",\"\",'1. Order'!J942)","v":""},{"$f":"IF('1. Order'!K942=\"\",\"\",'1. Order'!K942)","v":""},{"$f":"IF('1. Order'!L942=\"\",\"\",'1. Order'!L942)","v":""},{"$f":"IF('1. Order'!N942=\"\",\"\",'1. Order'!N942)","v":""},null,null,{"$f":"IF('1. Order'!AV942=\"\",\"\",'1. Order'!AV942)","v":""},{"$f":"IF('1. Order'!AI942=\"\",\"\",'1. Order'!AI942)","v":""}]
[{"$f":"IF('1. Order'!B943=\"\",\"\",'1. Order'!B943)","v":""},{"$f":"IF('1. Order'!J943=\"\",\"\",'1. Order'!J943)","v":""},{"$f":"IF('1. Order'!K943=\"\",\"\",'1. Order'!K943)","v":""},{"$f":"IF('1. Order'!L943=\"\",\"\",'1. Order'!L943)","v":""},{"$f":"IF('1. Order'!N943=\"\",\"\",'1. Order'!N943)","v":""},null,null,{"$f":"IF('1. Order'!AV943=\"\",\"\",'1. Order'!AV943)","v":""},{"$f":"IF('1. Order'!AI943=\"\",\"\",'1. Order'!AI943)","v":""}]
[{"$f":"IF('1. Order'!B944=\"\",\"\",'1. Order'!B944)","v":""},{"$f":"IF('1. Order'!J944=\"\",\"\",'1. Order'!J944)","v":""},{"$f":"IF('1. Order'!K944=\"\",\"\",'1. Order'!K944)","v":""},{"$f":"IF('1. Order'!L944=\"\",\"\",'1. Order'!L944)","v":""},{"$f":"IF('1. Order'!N944=\"\",\"\",'1. Order'!N944)","v":""},null,null,{"$f":"IF('1. Order'!AV944=\"\",\"\",'1. Order'!AV944)","v":""},{"$f":"IF('1. Order'!AI944=\"\",\"\",'1. Order'!AI944)","v":""}]
[{"$f":"IF('1. Order'!B945=\"\",\"\",'1. Order'!B945)","v":""},{"$f":"IF('1. Order'!J945=\"\",\"\",'1. Order'!J945)","v":""},{"$f":"IF('1. Order'!K945=\"\",\"\",'1. Order'!K945)","v":""},{"$f":"IF('1. Order'!L945=\"\",\"\",'1. Order'!L945)","v":""},{"$f":"IF('1. Order'!N945=\"\",\"\",'1. Order'!N945)","v":""},null,null,{"$f":"IF('1. Order'!AV945=\"\",\"\",'1. Order'!AV945)","v":""},{"$f":"IF('1. Order'!AI945=\"\",\"\",'1. Order'!AI945)","v":""}]
[{"$f":"IF('1. Order'!B946=\"\",\"\",'1. Order'!B946)","v":""},{"$f":"IF('1. Order'!J946=\"\",\"\",'1. Order'!J946)","v":""},{"$f":"IF('1. Order'!K946=\"\",\"\",'1. Order'!K946)","v":""},{"$f":"IF('1. Order'!L946=\"\",\"\",'1. Order'!L946)","v":""},{"$f":"IF('1. Order'!N946=\"\",\"\",'1. Order'!N946)","v":""},null,null,{"$f":"IF('1. Order'!AV946=\"\",\"\",'1. Order'!AV946)","v":""},{"$f":"IF('1. Order'!AI946=\"\",\"\",'1. Order'!AI946)","v":""}]
[{"$f":"IF('1. Order'!B947=\"\",\"\",'1. Order'!B947)","v":""},{"$f":"IF('1. Order'!J947=\"\",\"\",'1. Order'!J947)","v":""},{"$f":"IF('1. Order'!K947=\"\",\"\",'1. Order'!K947)","v":""},{"$f":"IF('1. Order'!L947=\"\",\"\",'1. Order'!L947)","v":""},{"$f":"IF('1. Order'!N947=\"\",\"\",'1. Order'!N947)","v":""},null,null,{"$f":"IF('1. Order'!AV947=\"\",\"\",'1. Order'!AV947)","v":""},{"$f":"IF('1. Order'!AI947=\"\",\"\",'1. Order'!AI947)","v":""}]
[{"$f":"IF('1. Order'!B948=\"\",\"\",'1. Order'!B948)","v":""},{"$f":"IF('1. Order'!J948=\"\",\"\",'1. Order'!J948)","v":""},{"$f":"IF('1. Order'!K948=\"\",\"\",'1. Order'!K948)","v":""},{"$f":"IF('1. Order'!L948=\"\",\"\",'1. Order'!L948)","v":""},{"$f":"IF('1. Order'!N948=\"\",\"\",'1. Order'!N948)","v":""},null,null,{"$f":"IF('1. Order'!AV948=\"\",\"\",'1. Order'!AV948)","v":""},{"$f":"IF('1. Order'!AI948=\"\",\"\",'1. Order'!AI948)","v":""}]
[{"$f":"IF('1. Order'!B949=\"\",\"\",'1. Order'!B949)","v":""},{"$f":"IF('1. Order'!J949=\"\",\"\",'1. Order'!J949)","v":""},{"$f":"IF('1. Order'!K949=\"\",\"\",'1. Order'!K949)","v":""},{"$f":"IF('1. Order'!L949=\"\",\"\",'1. Order'!L949)","v":""},{"$f":"IF('1. Order'!N949=\"\",\"\",'1. Order'!N949)","v":""},null,null,{"$f":"IF('1. Order'!AV949=\"\",\"\",'1. Order'!AV949)","v":""},{"$f":"IF('1. Order'!AI949=\"\",\"\",'1. Order'!AI949)","v":""}]
[{"$f":"IF('1. Order'!B950=\"\",\"\",'1. Order'!B950)","v":""},{"$f":"IF('1. Order'!J950=\"\",\"\",'1. Order'!J950)","v":""},{"$f":"IF('1. Order'!K950=\"\",\"\",'1. Order'!K950)","v":""},{"$f":"IF('1. Order'!L950=\"\",\"\",'1. Order'!L950)","v":""},{"$f":"IF('1. Order'!N950=\"\",\"\",'1. Order'!N950)","v":""},null,null,{"$f":"IF('1. Order'!AV950=\"\",\"\",'1. Order'!AV950)","v":""},{"$f":"IF('1. Order'!AI950=\"\",\"\",'1. Order'!AI950)","v":""}]
[{"$f":"IF('1. Order'!B951=\"\",\"\",'1. Order'!B951)","v":""},{"$f":"IF('1. Order'!J951=\"\",\"\",'1. Order'!J951)","v":""},{"$f":"IF('1. Order'!K951=\"\",\"\",'1. Order'!K951)","v":""},{"$f":"IF('1. Order'!L951=\"\",\"\",'1. Order'!L951)","v":""},{"$f":"IF('1. Order'!N951=\"\",\"\",'1. Order'!N951)","v":""},null,null,{"$f":"IF('1. Order'!AV951=\"\",\"\",'1. Order'!AV951)","v":""},{"$f":"IF('1. Order'!AI951=\"\",\"\",'1. Order'!AI951)","v":""}]
[{"$f":"IF('1. Order'!B952=\"\",\"\",'1. Order'!B952)","v":""},{"$f":"IF('1. Order'!J952=\"\",\"\",'1. Order'!J952)","v":""},{"$f":"IF('1. Order'!K952=\"\",\"\",'1. Order'!K952)","v":""},{"$f":"IF('1. Order'!L952=\"\",\"\",'1. Order'!L952)","v":""},{"$f":"IF('1. Order'!N952=\"\",\"\",'1. Order'!N952)","v":""},null,null,{"$f":"IF('1. Order'!AV952=\"\",\"\",'1. Order'!AV952)","v":""},{"$f":"IF('1. Order'!AI952=\"\",\"\",'1. Order'!AI952)","v":""}]
[{"$f":"IF('1. Order'!B953=\"\",\"\",'1. Order'!B953)","v":""},{"$f":"IF('1. Order'!J953=\"\",\"\",'1. Order'!J953)","v":""},{"$f":"IF('1. Order'!K953=\"\",\"\",'1. Order'!K953)","v":""},{"$f":"IF('1. Order'!L953=\"\",\"\",'1. Order'!L953)","v":""},{"$f":"IF('1. Order'!N953=\"\",\"\",'1. Order'!N953)","v":""},null,null,{"$f":"IF('1. Order'!AV953=\"\",\"\",'1. Order'!AV953)","v":""},{"$f":"IF('1. Order'!AI953=\"\",\"\",'1. Order'!AI953)","v":""}]
[{"$f":"IF('1. Order'!B954=\"\",\"\",'1. Order'!B954)","v":""},{"$f":"IF('1. Order'!J954=\"\",\"\",'1. Order'!J954)","v":""},{"$f":"IF('1. Order'!K954=\"\",\"\",'1. Order'!K954)","v":""},{"$f":"IF('1. Order'!L954=\"\",\"\",'1. Order'!L954)","v":""},{"$f":"IF('1. Order'!N954=\"\",\"\",'1. Order'!N954)","v":""},null,null,{"$f":"IF('1. Order'!AV954=\"\",\"\",'1. Order'!AV954)","v":""},{"$f":"IF('1. Order'!AI954=\"\",\"\",'1. Order'!AI954)","v":""}]
[{"$f":"IF('1. Order'!B955=\"\",\"\",'1. Order'!B955)","v":""},{"$f":"IF('1. Order'!J955=\"\",\"\",'1. Order'!J955)","v":""},{"$f":"IF('1. Order'!K955=\"\",\"\",'1. Order'!K955)","v":""},{"$f":"IF('1. Order'!L955=\"\",\"\",'1. Order'!L955)","v":""},{"$f":"IF('1. Order'!N955=\"\",\"\",'1. Order'!N955)","v":""},null,null,{"$f":"IF('1. Order'!AV955=\"\",\"\",'1. Order'!AV955)","v":""},{"$f":"IF('1. Order'!AI955=\"\",\"\",'1. Order'!AI955)","v":""}]
[{"$f":"IF('1. Order'!B956=\"\",\"\",'1. Order'!B956)","v":""},{"$f":"IF('1. Order'!J956=\"\",\"\",'1. Order'!J956)","v":""},{"$f":"IF('1. Order'!K956=\"\",\"\",'1. Order'!K956)","v":""},{"$f":"IF('1. Order'!L956=\"\",\"\",'1. Order'!L956)","v":""},{"$f":"IF('1. Order'!N956=\"\",\"\",'1. Order'!N956)","v":""},null,null,{"$f":"IF('1. Order'!AV956=\"\",\"\",'1. Order'!AV956)","v":""},{"$f":"IF('1. Order'!AI956=\"\",\"\",'1. Order'!AI956)","v":""}]
[{"$f":"IF('1. Order'!B957=\"\",\"\",'1. Order'!B957)","v":""},{"$f":"IF('1. Order'!J957=\"\",\"\",'1. Order'!J957)","v":""},{"$f":"IF('1. Order'!K957=\"\",\"\",'1. Order'!K957)","v":""},{"$f":"IF('1. Order'!L957=\"\",\"\",'1. Order'!L957)","v":""},{"$f":"IF('1. Order'!N957=\"\",\"\",'1. Order'!N957)","v":""},null,null,{"$f":"IF('1. Order'!AV957=\"\",\"\",'1. Order'!AV957)","v":""},{"$f":"IF('1. Order'!AI957=\"\",\"\",'1. Order'!AI957)","v":""}]
[{"$f":"IF('1. Order'!B958=\"\",\"\",'1. Order'!B958)","v":""},{"$f":"IF('1. Order'!J958=\"\",\"\",'1. Order'!J958)","v":""},{"$f":"IF('1. Order'!K958=\"\",\"\",'1. Order'!K958)","v":""},{"$f":"IF('1. Order'!L958=\"\",\"\",'1. Order'!L958)","v":""},{"$f":"IF('1. Order'!N958=\"\",\"\",'1. Order'!N958)","v":""},null,null,{"$f":"IF('1. Order'!AV958=\"\",\"\",'1. Order'!AV958)","v":""},{"$f":"IF('1. Order'!AI958=\"\",\"\",'1. Order'!AI958)","v":""}]
[{"$f":"IF('1. Order'!B959=\"\",\"\",'1. Order'!B959)","v":""},{"$f":"IF('1. Order'!J959=\"\",\"\",'1. Order'!J959)","v":""},{"$f":"IF('1. Order'!K959=\"\",\"\",'1. Order'!K959)","v":""},{"$f":"IF('1. Order'!L959=\"\",\"\",'1. Order'!L959)","v":""},{"$f":"IF('1. Order'!N959=\"\",\"\",'1. Order'!N959)","v":""},null,null,{"$f":"IF('1. Order'!AV959=\"\",\"\",'1. Order'!AV959)","v":""},{"$f":"IF('1. Order'!AI959=\"\",\"\",'1. Order'!AI959)","v":""}]
[{"$f":"IF('1. Order'!B960=\"\",\"\",'1. Order'!B960)","v":""},{"$f":"IF('1. Order'!J960=\"\",\"\",'1. Order'!J960)","v":""},{"$f":"IF('1. Order'!K960=\"\",\"\",'1. Order'!K960)","v":""},{"$f":"IF('1. Order'!L960=\"\",\"\",'1. Order'!L960)","v":""},{"$f":"IF('1. Order'!N960=\"\",\"\",'1. Order'!N960)","v":""},null,null,{"$f":"IF('1. Order'!AV960=\"\",\"\",'1. Order'!AV960)","v":""},{"$f":"IF('1. Order'!AI960=\"\",\"\",'1. Order'!AI960)","v":""}]
[{"$f":"IF('1. Order'!B961=\"\",\"\",'1. Order'!B961)","v":""},{"$f":"IF('1. Order'!J961=\"\",\"\",'1. Order'!J961)","v":""},{"$f":"IF('1. Order'!K961=\"\",\"\",'1. Order'!K961)","v":""},{"$f":"IF('1. Order'!L961=\"\",\"\",'1. Order'!L961)","v":""},{"$f":"IF('1. Order'!N961=\"\",\"\",'1. Order'!N961)","v":""},null,null,{"$f":"IF('1. Order'!AV961=\"\",\"\",'1. Order'!AV961)","v":""},{"$f":"IF('1. Order'!AI961=\"\",\"\",'1. Order'!AI961)","v":""}]
[{"$f":"IF('1. Order'!B962=\"\",\"\",'1. Order'!B962)","v":""},{"$f":"IF('1. Order'!J962=\"\",\"\",'1. Order'!J962)","v":""},{"$f":"IF('1. Order'!K962=\"\",\"\",'1. Order'!K962)","v":""},{"$f":"IF('1. Order'!L962=\"\",\"\",'1. Order'!L962)","v":""},{"$f":"IF('1. Order'!N962=\"\",\"\",'1. Order'!N962)","v":""},null,null,{"$f":"IF('1. Order'!AV962=\"\",\"\",'1. Order'!AV962)","v":""},{"$f":"IF('1. Order'!AI962=\"\",\"\",'1. Order'!AI962)","v":""}]
[{"$f":"IF('1. Order'!B963=\"\",\"\",'1. Order'!B963)","v":""},{"$f":"IF('1. Order'!J963=\"\",\"\",'1. Order'!J963)","v":""},{"$f":"IF('1. Order'!K963=\"\",\"\",'1. Order'!K963)","v":""},{"$f":"IF('1. Order'!L963=\"\",\"\",'1. Order'!L963)","v":""},{"$f":"IF('1. Order'!N963=\"\",\"\",'1. Order'!N963)","v":""},null,null,{"$f":"IF('1. Order'!AV963=\"\",\"\",'1. Order'!AV963)","v":""},{"$f":"IF('1. Order'!AI963=\"\",\"\",'1. Order'!AI963)","v":""}]
[{"$f":"IF('1. Order'!B964=\"\",\"\",'1. Order'!B964)","v":""},{"$f":"IF('1. Order'!J964=\"\",\"\",'1. Order'!J964)","v":""},{"$f":"IF('1. Order'!K964=\"\",\"\",'1. Order'!K964)","v":""},{"$f":"IF('1. Order'!L964=\"\",\"\",'1. Order'!L964)","v":""},{"$f":"IF('1. Order'!N964=\"\",\"\",'1. Order'!N964)","v":""},null,null,{"$f":"IF('1. Order'!AV964=\"\",\"\",'1. Order'!AV964)","v":""},{"$f":"IF('1. Order'!AI964=\"\",\"\",'1. Order'!AI964)","v":""}]
[{"$f":"IF('1. Order'!B965=\"\",\"\",'1. Order'!B965)","v":""},{"$f":"IF('1. Order'!J965=\"\",\"\",'1. Order'!J965)","v":""},{"$f":"IF('1. Order'!K965=\"\",\"\",'1. Order'!K965)","v":""},{"$f":"IF('1. Order'!L965=\"\",\"\",'1. Order'!L965)","v":""},{"$f":"IF('1. Order'!N965=\"\",\"\",'1. Order'!N965)","v":""},null,null,{"$f":"IF('1. Order'!AV965=\"\",\"\",'1. Order'!AV965)","v":""},{"$f":"IF('1. Order'!AI965=\"\",\"\",'1. Order'!AI965)","v":""}]
[{"$f":"IF('1. Order'!B966=\"\",\"\",'1. Order'!B966)","v":""},{"$f":"IF('1. Order'!J966=\"\",\"\",'1. Order'!J966)","v":""},{"$f":"IF('1. Order'!K966=\"\",\"\",'1. Order'!K966)","v":""},{"$f":"IF('1. Order'!L966=\"\",\"\",'1. Order'!L966)","v":""},{"$f":"IF('1. Order'!N966=\"\",\"\",'1. Order'!N966)","v":""},null,null,{"$f":"IF('1. Order'!AV966=\"\",\"\",'1. Order'!AV966)","v":""},{"$f":"IF('1. Order'!AI966=\"\",\"\",'1. Order'!AI966)","v":""}]
[{"$f":"IF('1. Order'!B967=\"\",\"\",'1. Order'!B967)","v":""},{"$f":"IF('1. Order'!J967=\"\",\"\",'1. Order'!J967)","v":""},{"$f":"IF('1. Order'!K967=\"\",\"\",'1. Order'!K967)","v":""},{"$f":"IF('1. Order'!L967=\"\",\"\",'1. Order'!L967)","v":""},{"$f":"IF('1. Order'!N967=\"\",\"\",'1. Order'!N967)","v":""},null,null,{"$f":"IF('1. Order'!AV967=\"\",\"\",'1. Order'!AV967)","v":""},{"$f":"IF('1. Order'!AI967=\"\",\"\",'1. Order'!AI967)","v":""}]
[{"$f":"IF('1. Order'!B968=\"\",\"\",'1. Order'!B968)","v":""},{"$f":"IF('1. Order'!J968=\"\",\"\",'1. Order'!J968)","v":""},{"$f":"IF('1. Order'!K968=\"\",\"\",'1. Order'!K968)","v":""},{"$f":"IF('1. Order'!L968=\"\",\"\",'1. Order'!L968)","v":""},{"$f":"IF('1. Order'!N968=\"\",\"\",'1. Order'!N968)","v":""},null,null,{"$f":"IF('1. Order'!AV968=\"\",\"\",'1. Order'!AV968)","v":""},{"$f":"IF('1. Order'!AI968=\"\",\"\",'1. Order'!AI968)","v":""}]
[{"$f":"IF('1. Order'!B969=\"\",\"\",'1. Order'!B969)","v":""},{"$f":"IF('1. Order'!J969=\"\",\"\",'1. Order'!J969)","v":""},{"$f":"IF('1. Order'!K969=\"\",\"\",'1. Order'!K969)","v":""},{"$f":"IF('1. Order'!L969=\"\",\"\",'1. Order'!L969)","v":""},{"$f":"IF('1. Order'!N969=\"\",\"\",'1. Order'!N969)","v":""},null,null,{"$f":"IF('1. Order'!AV969=\"\",\"\",'1. Order'!AV969)","v":""},{"$f":"IF('1. Order'!AI969=\"\",\"\",'1. Order'!AI969)","v":""}]
[{"$f":"IF('1. Order'!B970=\"\",\"\",'1. Order'!B970)","v":""},{"$f":"IF('1. Order'!J970=\"\",\"\",'1. Order'!J970)","v":""},{"$f":"IF('1. Order'!K970=\"\",\"\",'1. Order'!K970)","v":""},{"$f":"IF('1. Order'!L970=\"\",\"\",'1. Order'!L970)","v":""},{"$f":"IF('1. Order'!N970=\"\",\"\",'1. Order'!N970)","v":""},null,null,{"$f":"IF('1. Order'!AV970=\"\",\"\",'1. Order'!AV970)","v":""},{"$f":"IF('1. Order'!AI970=\"\",\"\",'1. Order'!AI970)","v":""}]
[{"$f":"IF('1. Order'!B971=\"\",\"\",'1. Order'!B971)","v":""},{"$f":"IF('1. Order'!J971=\"\",\"\",'1. Order'!J971)","v":""},{"$f":"IF('1. Order'!K971=\"\",\"\",'1. Order'!K971)","v":""},{"$f":"IF('1. Order'!L971=\"\",\"\",'1. Order'!L971)","v":""},{"$f":"IF('1. Order'!N971=\"\",\"\",'1. Order'!N971)","v":""},null,null,{"$f":"IF('1. Order'!AV971=\"\",\"\",'1. Order'!AV971)","v":""},{"$f":"IF('1. Order'!AI971=\"\",\"\",'1. Order'!AI971)","v":""}]
[{"$f":"IF('1. Order'!B972=\"\",\"\",'1. Order'!B972)","v":""},{"$f":"IF('1. Order'!J972=\"\",\"\",'1. Order'!J972)","v":""},{"$f":"IF('1. Order'!K972=\"\",\"\",'1. Order'!K972)","v":""},{"$f":"IF('1. Order'!L972=\"\",\"\",'1. Order'!L972)","v":""},{"$f":"IF('1. Order'!N972=\"\",\"\",'1. Order'!N972)","v":""},null,null,{"$f":"IF('1. Order'!AV972=\"\",\"\",'1. Order'!AV972)","v":""},{"$f":"IF('1. Order'!AI972=\"\",\"\",'1. Order'!AI972)","v":""}]
[{"$f":"IF('1. Order'!B973=\"\",\"\",'1. Order'!B973)","v":""},{"$f":"IF('1. Order'!J973=\"\",\"\",'1. Order'!J973)","v":""},{"$f":"IF('1. Order'!K973=\"\",\"\",'1. Order'!K973)","v":""},{"$f":"IF('1. Order'!L973=\"\",\"\",'1. Order'!L973)","v":""},{"$f":"IF('1. Order'!N973=\"\",\"\",'1. Order'!N973)","v":""},null,null,{"$f":"IF('1. Order'!AV973=\"\",\"\",'1. Order'!AV973)","v":""},{"$f":"IF('1. Order'!AI973=\"\",\"\",'1. Order'!AI973)","v":""}]
[{"$f":"IF('1. Order'!B974=\"\",\"\",'1. Order'!B974)","v":""},{"$f":"IF('1. Order'!J974=\"\",\"\",'1. Order'!J974)","v":""},{"$f":"IF('1. Order'!K974=\"\",\"\",'1. Order'!K974)","v":""},{"$f":"IF('1. Order'!L974=\"\",\"\",'1. Order'!L974)","v":""},{"$f":"IF('1. Order'!N974=\"\",\"\",'1. Order'!N974)","v":""},null,null,{"$f":"IF('1. Order'!AV974=\"\",\"\",'1. Order'!AV974)","v":""},{"$f":"IF('1. Order'!AI974=\"\",\"\",'1. Order'!AI974)","v":""}]
[{"$f":"IF('1. Order'!B975=\"\",\"\",'1. Order'!B975)","v":""},{"$f":"IF('1. Order'!J975=\"\",\"\",'1. Order'!J975)","v":""},{"$f":"IF('1. Order'!K975=\"\",\"\",'1. Order'!K975)","v":""},{"$f":"IF('1. Order'!L975=\"\",\"\",'1. Order'!L975)","v":""},{"$f":"IF('1. Order'!N975=\"\",\"\",'1. Order'!N975)","v":""},null,null,{"$f":"IF('1. Order'!AV975=\"\",\"\",'1. Order'!AV975)","v":""},{"$f":"IF('1. Order'!AI975=\"\",\"\",'1. Order'!AI975)","v":""}]
[{"$f":"IF('1. Order'!B976=\"\",\"\",'1. Order'!B976)","v":""},{"$f":"IF('1. Order'!J976=\"\",\"\",'1. Order'!J976)","v":""},{"$f":"IF('1. Order'!K976=\"\",\"\",'1. Order'!K976)","v":""},{"$f":"IF('1. Order'!L976=\"\",\"\",'1. Order'!L976)","v":""},{"$f":"IF('1. Order'!N976=\"\",\"\",'1. Order'!N976)","v":""},null,null,{"$f":"IF('1. Order'!AV976=\"\",\"\",'1. Order'!AV976)","v":""},{"$f":"IF('1. Order'!AI976=\"\",\"\",'1. Order'!AI976)","v":""}]
[{"$f":"IF('1. Order'!B977=\"\",\"\",'1. Order'!B977)","v":""},{"$f":"IF('1. Order'!J977=\"\",\"\",'1. Order'!J977)","v":""},{"$f":"IF('1. Order'!K977=\"\",\"\",'1. Order'!K977)","v":""},{"$f":"IF('1. Order'!L977=\"\",\"\",'1. Order'!L977)","v":""},{"$f":"IF('1. Order'!N977=\"\",\"\",'1. Order'!N977)","v":""},null,null,{"$f":"IF('1. Order'!AV977=\"\",\"\",'1. Order'!AV977)","v":""},{"$f":"IF('1. Order'!AI977=\"\",\"\",'1. Order'!AI977)","v":""}]
[{"$f":"IF('1. Order'!B978=\"\",\"\",'1. Order'!B978)","v":""},{"$f":"IF('1. Order'!J978=\"\",\"\",'1. Order'!J978)","v":""},{"$f":"IF('1. Order'!K978=\"\",\"\",'1. Order'!K978)","v":""},{"$f":"IF('1. Order'!L978=\"\",\"\",'1. Order'!L978)","v":""},{"$f":"IF('1. Order'!N978=\"\",\"\",'1. Order'!N978)","v":""},null,null,{"$f":"IF('1. Order'!AV978=\"\",\"\",'1. Order'!AV978)","v":""},{"$f":"IF('1. Order'!AI978=\"\",\"\",'1. Order'!AI978)","v":""}]
[{"$f":"IF('1. Order'!B979=\"\",\"\",'1. Order'!B979)","v":""},{"$f":"IF('1. Order'!J979=\"\",\"\",'1. Order'!J979)","v":""},{"$f":"IF('1. Order'!K979=\"\",\"\",'1. Order'!K979)","v":""},{"$f":"IF('1. Order'!L979=\"\",\"\",'1. Order'!L979)","v":""},{"$f":"IF('1. Order'!N979=\"\",\"\",'1. Order'!N979)","v":""},null,null,{"$f":"IF('1. Order'!AV979=\"\",\"\",'1. Order'!AV979)","v":""},{"$f":"IF('1. Order'!AI979=\"\",\"\",'1. Order'!AI979)","v":""}]
[{"$f":"IF('1. Order'!B980=\"\",\"\",'1. Order'!B980)","v":""},{"$f":"IF('1. Order'!J980=\"\",\"\",'1. Order'!J980)","v":""},{"$f":"IF('1. Order'!K980=\"\",\"\",'1. Order'!K980)","v":""},{"$f":"IF('1. Order'!L980=\"\",\"\",'1. Order'!L980)","v":""},{"$f":"IF('1. Order'!N980=\"\",\"\",'1. Order'!N980)","v":""},null,null,{"$f":"IF('1. Order'!AV980=\"\",\"\",'1. Order'!AV980)","v":""},{"$f":"IF('1. Order'!AI980=\"\",\"\",'1. Order'!AI980)","v":""}]
[{"$f":"IF('1. Order'!B981=\"\",\"\",'1. Order'!B981)","v":""},{"$f":"IF('1. Order'!J981=\"\",\"\",'1. Order'!J981)","v":""},{"$f":"IF('1. Order'!K981=\"\",\"\",'1. Order'!K981)","v":""},{"$f":"IF('1. Order'!L981=\"\",\"\",'1. Order'!L981)","v":""},{"$f":"IF('1. Order'!N981=\"\",\"\",'1. Order'!N981)","v":""},null,null,{"$f":"IF('1. Order'!AV981=\"\",\"\",'1. Order'!AV981)","v":""},{"$f":"IF('1. Order'!AI981=\"\",\"\",'1. Order'!AI981)","v":""}]
[{"$f":"IF('1. Order'!B982=\"\",\"\",'1. Order'!B982)","v":""},{"$f":"IF('1. Order'!J982=\"\",\"\",'1. Order'!J982)","v":""},{"$f":"IF('1. Order'!K982=\"\",\"\",'1. Order'!K982)","v":""},{"$f":"IF('1. Order'!L982=\"\",\"\",'1. Order'!L982)","v":""},{"$f":"IF('1. Order'!N982=\"\",\"\",'1. Order'!N982)","v":""},null,null,{"$f":"IF('1. Order'!AV982=\"\",\"\",'1. Order'!AV982)","v":""},{"$f":"IF('1. Order'!AI982=\"\",\"\",'1. Order'!AI982)","v":""}]
[{"$f":"IF('1. Order'!B983=\"\",\"\",'1. Order'!B983)","v":""},{"$f":"IF('1. Order'!J983=\"\",\"\",'1. Order'!J983)","v":""},{"$f":"IF('1. Order'!K983=\"\",\"\",'1. Order'!K983)","v":""},{"$f":"IF('1. Order'!L983=\"\",\"\",'1. Order'!L983)","v":""},{"$f":"IF('1. Order'!N983=\"\",\"\",'1. Order'!N983)","v":""},null,null,{"$f":"IF('1. Order'!AV983=\"\",\"\",'1. Order'!AV983)","v":""},{"$f":"IF('1. Order'!AI983=\"\",\"\",'1. Order'!AI983)","v":""}]
[{"$f":"IF('1. Order'!B984=\"\",\"\",'1. Order'!B984)","v":""},{"$f":"IF('1. Order'!J984=\"\",\"\",'1. Order'!J984)","v":""},{"$f":"IF('1. Order'!K984=\"\",\"\",'1. Order'!K984)","v":""},{"$f":"IF('1. Order'!L984=\"\",\"\",'1. Order'!L984)","v":""},{"$f":"IF('1. Order'!N984=\"\",\"\",'1. Order'!N984)","v":""},null,null,{"$f":"IF('1. Order'!AV984=\"\",\"\",'1. Order'!AV984)","v":""},{"$f":"IF('1. Order'!AI984=\"\",\"\",'1. Order'!AI984)","v":""}]
[{"$f":"IF('1. Order'!B985=\"\",\"\",'1. Order'!B985)","v":""},{"$f":"IF('1. Order'!J985=\"\",\"\",'1. Order'!J985)","v":""},{"$f":"IF('1. Order'!K985=\"\",\"\",'1. Order'!K985)","v":""},{"$f":"IF('1. Order'!L985=\"\",\"\",'1. Order'!L985)","v":""},{"$f":"IF('1. Order'!N985=\"\",\"\",'1. Order'!N985)","v":""},null,null,{"$f":"IF('1. Order'!AV985=\"\",\"\",'1. Order'!AV985)","v":""},{"$f":"IF('1. Order'!AI985=\"\",\"\",'1. Order'!AI985)","v":""}]
[{"$f":"IF('1. Order'!B986=\"\",\"\",'1. Order'!B986)","v":""},{"$f":"IF('1. Order'!J986=\"\",\"\",'1. Order'!J986)","v":""},{"$f":"IF('1. Order'!K986=\"\",\"\",'1. Order'!K986)","v":""},{"$f":"IF('1. Order'!L986=\"\",\"\",'1. Order'!L986)","v":""},{"$f":"IF('1. Order'!N986=\"\",\"\",'1. Order'!N986)","v":""},null,null,{"$f":"IF('1. Order'!AV986=\"\",\"\",'1. Order'!AV986)","v":""},{"$f":"IF('1. Order'!AI986=\"\",\"\",'1. Order'!AI986)","v":""}]
[{"$f":"IF('1. Order'!B987=\"\",\"\",'1. Order'!B987)","v":""},{"$f":"IF('1. Order'!J987=\"\",\"\",'1. Order'!J987)","v":""},{"$f":"IF('1. Order'!K987=\"\",\"\",'1. Order'!K987)","v":""},{"$f":"IF('1. Order'!L987=\"\",\"\",'1. Order'!L987)","v":""},{"$f":"IF('1. Order'!N987=\"\",\"\",'1. Order'!N987)","v":""},null,null,{"$f":"IF('1. Order'!AV987=\"\",\"\",'1. Order'!AV987)","v":""},{"$f":"IF('1. Order'!AI987=\"\",\"\",'1. Order'!AI987)","v":""}]
[{"$f":"IF('1. Order'!B988=\"\",\"\",'1. Order'!B988)","v":""},{"$f":"IF('1. Order'!J988=\"\",\"\",'1. Order'!J988)","v":""},{"$f":"IF('1. Order'!K988=\"\",\"\",'1. Order'!K988)","v":""},{"$f":"IF('1. Order'!L988=\"\",\"\",'1. Order'!L988)","v":""},{"$f":"IF('1. Order'!N988=\"\",\"\",'1. Order'!N988)","v":""},null,null,{"$f":"IF('1. Order'!AV988=\"\",\"\",'1. Order'!AV988)","v":""},{"$f":"IF('1. Order'!AI988=\"\",\"\",'1. Order'!AI988)","v":""}]
[{"$f":"IF('1. Order'!B989=\"\",\"\",'1. Order'!B989)","v":""},{"$f":"IF('1. Order'!J989=\"\",\"\",'1. Order'!J989)","v":""},{"$f":"IF('1. Order'!K989=\"\",\"\",'1. Order'!K989)","v":""},{"$f":"IF('1. Order'!L989=\"\",\"\",'1. Order'!L989)","v":""},{"$f":"IF('1. Order'!N989=\"\",\"\",'1. Order'!N989)","v":""},null,null,{"$f":"IF('1. Order'!AV989=\"\",\"\",'1. Order'!AV989)","v":""},{"$f":"IF('1. Order'!AI989=\"\",\"\",'1. Order'!AI989)","v":""}]
[{"$f":"IF('1. Order'!B990=\"\",\"\",'1. Order'!B990)","v":""},{"$f":"IF('1. Order'!J990=\"\",\"\",'1. Order'!J990)","v":""},{"$f":"IF('1. Order'!K990=\"\",\"\",'1. Order'!K990)","v":""},{"$f":"IF('1. Order'!L990=\"\",\"\",'1. Order'!L990)","v":""},{"$f":"IF('1. Order'!N990=\"\",\"\",'1. Order'!N990)","v":""},null,null,{"$f":"IF('1. Order'!AV990=\"\",\"\",'1. Order'!AV990)","v":""},{"$f":"IF('1. Order'!AI990=\"\",\"\",'1. Order'!AI990)","v":""}]
[{"$f":"IF('1. Order'!B991=\"\",\"\",'1. Order'!B991)","v":""},{"$f":"IF('1. Order'!J991=\"\",\"\",'1. Order'!J991)","v":""},{"$f":"IF('1. Order'!K991=\"\",\"\",'1. Order'!K991)","v":""},{"$f":"IF('1. Order'!L991=\"\",\"\",'1. Order'!L991)","v":""},{"$f":"IF('1. Order'!N991=\"\",\"\",'1. Order'!N991)","v":""},null,null,{"$f":"IF('1. Order'!AV991=\"\",\"\",'1. Order'!AV991)","v":""},{"$f":"IF('1. Order'!AI991=\"\",\"\",'1. Order'!AI991)","v":""}]
[{"$f":"IF('1. Order'!B992=\"\",\"\",'1. Order'!B992)","v":""},{"$f":"IF('1. Order'!J992=\"\",\"\",'1. Order'!J992)","v":""},{"$f":"IF('1. Order'!K992=\"\",\"\",'1. Order'!K992)","v":""},{"$f":"IF('1. Order'!L992=\"\",\"\",'1. Order'!L992)","v":""},{"$f":"IF('1. Order'!N992=\"\",\"\",'1. Order'!N992)","v":""},null,null,{"$f":"IF('1. Order'!AV992=\"\",\"\",'1. Order'!AV992)","v":""},{"$f":"IF('1. Order'!AI992=\"\",\"\",'1. Order'!AI992)","v":""}]
[{"$f":"IF('1. Order'!B993=\"\",\"\",'1. Order'!B993)","v":""},{"$f":"IF('1. Order'!J993=\"\",\"\",'1. Order'!J993)","v":""},{"$f":"IF('1. Order'!K993=\"\",\"\",'1. Order'!K993)","v":""},{"$f":"IF('1. Order'!L993=\"\",\"\",'1. Order'!L993)","v":""},{"$f":"IF('1. Order'!N993=\"\",\"\",'1. Order'!N993)","v":""},null,null,{"$f":"IF('1. Order'!AV993=\"\",\"\",'1. Order'!AV993)","v":""},{"$f":"IF('1. Order'!AI993=\"\",\"\",'1. Order'!AI993)","v":""}]
[{"$f":"IF('1. Order'!B994=\"\",\"\",'1. Order'!B994)","v":""},{"$f":"IF('1. Order'!J994=\"\",\"\",'1. Order'!J994)","v":""},{"$f":"IF('1. Order'!K994=\"\",\"\",'1. Order'!K994)","v":""},{"$f":"IF('1. Order'!L994=\"\",\"\",'1. Order'!L994)","v":""},{"$f":"IF('1. Order'!N994=\"\",\"\",'1. Order'!N994)","v":""},null,null,{"$f":"IF('1. Order'!AV994=\"\",\"\",'1. Order'!AV994)","v":""},{"$f":"IF('1. Order'!AI994=\"\",\"\",'1. Order'!AI994)","v":""}]
[{"$f":"IF('1. Order'!B995=\"\",\"\",'1. Order'!B995)","v":""},{"$f":"IF('1. Order'!J995=\"\",\"\",'1. Order'!J995)","v":""},{"$f":"IF('1. Order'!K995=\"\",\"\",'1. Order'!K995)","v":""},{"$f":"IF('1. Order'!L995=\"\",\"\",'1. Order'!L995)","v":""},{"$f":"IF('1. Order'!N995=\"\",\"\",'1. Order'!N995)","v":""},null,null,{"$f":"IF('1. Order'!AV995=\"\",\"\",'1. Order'!AV995)","v":""},{"$f":"IF('1. Order'!AI995=\"\",\"\",'1. Order'!AI995)","v":""}]
[{"$f":"IF('1. Order'!B996=\"\",\"\",'1. Order'!B996)","v":""},{"$f":"IF('1. Order'!J996=\"\",\"\",'1. Order'!J996)","v":""},{"$f":"IF('1. Order'!K996=\"\",\"\",'1. Order'!K996)","v":""},{"$f":"IF('1. Order'!L996=\"\",\"\",'1. Order'!L996)","v":""},{"$f":"IF('1. Order'!N996=\"\",\"\",'1. Order'!N996)","v":""},null,null,{"$f":"IF('1. Order'!AV996=\"\",\"\",'1. Order'!AV996)","v":""},{"$f":"IF('1. Order'!AI996=\"\",\"\",'1. Order'!AI996)","v":""}]
[{"$f":"IF('1. Order'!B997=\"\",\"\",'1. Order'!B997)","v":""},{"$f":"IF('1. Order'!J997=\"\",\"\",'1. Order'!J997)","v":""},{"$f":"IF('1. Order'!K997=\"\",\"\",'1. Order'!K997)","v":""},{"$f":"IF('1. Order'!L997=\"\",\"\",'1. Order'!L997)","v":""},{"$f":"IF('1. Order'!N997=\"\",\"\",'1. Order'!N997)","v":""},null,null,{"$f":"IF('1. Order'!AV997=\"\",\"\",'1. Order'!AV997)","v":""},{"$f":"IF('1. Order'!AI997=\"\",\"\",'1. Order'!AI997)","v":""}]
[{"$f":"IF('1. Order'!B998=\"\",\"\",'1. Order'!B998)","v":""},{"$f":"IF('1. Order'!J998=\"\",\"\",'1. Order'!J998)","v":""},{"$f":"IF('1. Order'!K998=\"\",\"\",'1. Order'!K998)","v":""},{"$f":"IF('1. Order'!L998=\"\",\"\",'1. Order'!L998)","v":""},{"$f":"IF('1. Order'!N998=\"\",\"\",'1. Order'!N998)","v":""},null,null,{"$f":"IF('1. Order'!AV998=\"\",\"\",'1. Order'!AV998)","v":""},{"$f":"IF('1. Order'!AI998=\"\",\"\",'1. Order'!AI998)","v":""}]
[{"$f":"IF('1. Order'!B999=\"\",\"\",'1. Order'!B999)","v":""},{"$f":"IF('1. Order'!J999=\"\",\"\",'1. Order'!J999)","v":""},{"$f":"IF('1. Order'!K999=\"\",\"\",'1. Order'!K999)","v":""},{"$f":"IF('1. Order'!L999=\"\",\"\",'1. Order'!L999)","v":""},{"$f":"IF('1. Order'!N999=\"\",\"\",'1. Order'!N999)","v":""},null,null,{"$f":"IF('1. Order'!AV999=\"\",\"\",'1. Order'!AV999)","v":""},{"$f":"IF('1. Order'!AI999=\"\",\"\",'1. Order'!AI999)","v":""}]
[{"$f":"IF('1. Order'!B1000=\"\",\"\",'1. Order'!B1000)","v":""},{"$f":"IF('1. Order'!J1000=\"\",\"\",'1. Order'!J1000)","v":""},{"$f":"IF('1. Order'!K1000=\"\",\"\",'1. Order'!K1000)","v":""},{"$f":"IF('1. Order'!L1000=\"\",\"\",'1. Order'!L1000)","v":""},{"$f":"IF('1. Order'!N1000=\"\",\"\",'1. Order'!N1000)","v":""},null,null,{"$f":"IF('1. Order'!AV1000=\"\",\"\",'1. Order'!AV1000)","v":""},{"$f":"IF('1. Order'!AI1000=\"\",\"\",'1. Order'!AI1000)","v":""}]
[{"$f":"IF('1. Order'!B1001=\"\",\"\",'1. Order'!B1001)","v":""},{"$f":"IF('1. Order'!J1001=\"\",\"\",'1. Order'!J1001)","v":""},{"$f":"IF('1. Order'!K1001=\"\",\"\",'1. Order'!K1001)","v":""},{"$f":"IF('1. Order'!L1001=\"\",\"\",'1. Order'!L1001)","v":""},{"$f":"IF('1. Order'!N1001=\"\",\"\",'1. Order'!N1001)","v":""},null,null,{"$f":"IF('1. Order'!AV1001=\"\",\"\",'1. Order'!AV1001)","v":""},{"$f":"IF('1. Order'!AI1001=\"\",\"\",'1. Order'!AI1001)","v":""}]
[{"$f":"IF('1. Order'!B1002=\"\",\"\",'1. Order'!B1002)","v":""},{"$f":"IF('1. Order'!J1002=\"\",\"\",'1. Order'!J1002)","v":""},{"$f":"IF('1. Order'!K1002=\"\",\"\",'1. Order'!K1002)","v":""},{"$f":"IF('1. Order'!L1002=\"\",\"\",'1. Order'!L1002)","v":""},{"$f":"IF('1. Order'!N1002=\"\",\"\",'1. Order'!N1002)","v":""},null,null,{"$f":"IF('1. Order'!AV1002=\"\",\"\",'1. Order'!AV1002)","v":""},{"$f":"IF('1. Order'!AI1002=\"\",\"\",'1. Order'!AI1002)","v":""}]
[{"$f":"IF('1. Order'!B1003=\"\",\"\",'1. Order'!B1003)","v":""},{"$f":"IF('1. Order'!J1003=\"\",\"\",'1. Order'!J1003)","v":""},{"$f":"IF('1. Order'!K1003=\"\",\"\",'1. Order'!K1003)","v":""},{"$f":"IF('1. Order'!L1003=\"\",\"\",'1. Order'!L1003)","v":""},{"$f":"IF('1. Order'!N1003=\"\",\"\",'1. Order'!N1003)","v":""},null,null,{"$f":"IF('1. Order'!AV1003=\"\",\"\",'1. Order'!AV1003)","v":""},{"$f":"IF('1. Order'!AI1003=\"\",\"\",'1. Order'!AI1003)","v":""}]
[{"$f":"IF('1. Order'!B1004=\"\",\"\",'1. Order'!B1004)","v":""},{"$f":"IF('1. Order'!J1004=\"\",\"\",'1. Order'!J1004)","v":""},{"$f":"IF('1. Order'!K1004=\"\",\"\",'1. Order'!K1004)","v":""},{"$f":"IF('1. Order'!L1004=\"\",\"\",'1. Order'!L1004)","v":""},{"$f":"IF('1. Order'!N1004=\"\",\"\",'1. Order'!N1004)","v":""},null,null,{"$f":"IF('1. Order'!AV1004=\"\",\"\",'1. Order'!AV1004)","v":""},{"$f":"IF('1. Order'!AI1004=\"\",\"\",'1. Order'!AI1004)","v":""}]
[{"$f":"IF('1. Order'!B1005=\"\",\"\",'1. Order'!B1005)","v":""},{"$f":"IF('1. Order'!J1005=\"\",\"\",'1. Order'!J1005)","v":""},{"$f":"IF('1. Order'!K1005=\"\",\"\",'1. Order'!K1005)","v":""},{"$f":"IF('1. Order'!L1005=\"\",\"\",'1. Order'!L1005)","v":""},{"$f":"IF('1. Order'!N1005=\"\",\"\",'1. Order'!N1005)","v":""},null,null,{"$f":"IF('1. Order'!AV1005=\"\",\"\",'1. Order'!AV1005)","v":""},{"$f":"IF('1. Order'!AI1005=\"\",\"\",'1. Order'!AI1005)","v":""}]
[{"$f":"IF('1. Order'!B1006=\"\",\"\",'1. Order'!B1006)","v":""},{"$f":"IF('1. Order'!J1006=\"\",\"\",'1. Order'!J1006)","v":""},{"$f":"IF('1. Order'!K1006=\"\",\"\",'1. Order'!K1006)","v":""},{"$f":"IF('1. Order'!L1006=\"\",\"\",'1. Order'!L1006)","v":""},{"$f":"IF('1. Order'!N1006=\"\",\"\",'1. Order'!N1006)","v":""},null,null,{"$f":"IF('1. Order'!AV1006=\"\",\"\",'1. Order'!AV1006)","v":""},{"$f":"IF('1. Order'!AI1006=\"\",\"\",'1. Order'!AI1006)","v":""}]
[{"$f":"IF('1. Order'!B1007=\"\",\"\",'1. Order'!B1007)","v":""},{"$f":"IF('1. Order'!J1007=\"\",\"\",'1. Order'!J1007)","v":""},{"$f":"IF('1. Order'!K1007=\"\",\"\",'1. Order'!K1007)","v":""},{"$f":"IF('1. Order'!L1007=\"\",\"\",'1. Order'!L1007)","v":""},{"$f":"IF('1. Order'!N1007=\"\",\"\",'1. Order'!N1007)","v":""},null,null,{"$f":"IF('1. Order'!AV1007=\"\",\"\",'1. Order'!AV1007)","v":""},{"$f":"IF('1. Order'!AI1007=\"\",\"\",'1. Order'!AI1007)","v":""}]
[{"$f":"IF('1. Order'!B1008=\"\",\"\",'1. Order'!B1008)","v":""},{"$f":"IF('1. Order'!J1008=\"\",\"\",'1. Order'!J1008)","v":""},{"$f":"IF('1. Order'!K1008=\"\",\"\",'1. Order'!K1008)","v":""},{"$f":"IF('1. Order'!L1008=\"\",\"\",'1. Order'!L1008)","v":""},{"$f":"IF('1. Order'!N1008=\"\",\"\",'1. Order'!N1008)","v":""},null,null,{"$f":"IF('1. Order'!AV1008=\"\",\"\",'1. Order'!AV1008)","v":""},{"$f":"IF('1. Order'!AI1008=\"\",\"\",'1. Order'!AI1008)","v":""}]
[{"$f":"IF('1. Order'!B1009=\"\",\"\",'1. Order'!B1009)","v":""},{"$f":"IF('1. Order'!J1009=\"\",\"\",'1. Order'!J1009)","v":""},{"$f":"IF('1. Order'!K1009=\"\",\"\",'1. Order'!K1009)","v":""},{"$f":"IF('1. Order'!L1009=\"\",\"\",'1. Order'!L1009)","v":""},{"$f":"IF('1. Order'!N1009=\"\",\"\",'1. Order'!N1009)","v":""},null,null,{"$f":"IF('1. Order'!AV1009=\"\",\"\",'1. Order'!AV1009)","v":""},{"$f":"IF('1. Order'!AI1009=\"\",\"\",'1. Order'!AI1009)","v":""}]
[{"$f":"IF('1. Order'!B1010=\"\",\"\",'1. Order'!B1010)","v":""},{"$f":"IF('1. Order'!J1010=\"\",\"\",'1. Order'!J1010)","v":""},{"$f":"IF('1. Order'!K1010=\"\",\"\",'1. Order'!K1010)","v":""},{"$f":"IF('1. Order'!L1010=\"\",\"\",'1. Order'!L1010)","v":""},{"$f":"IF('1. Order'!N1010=\"\",\"\",'1. Order'!N1010)","v":""},null,null,{"$f":"IF('1. Order'!AV1010=\"\",\"\",'1. Order'!AV1010)","v":""},{"$f":"IF('1. Order'!AI1010=\"\",\"\",'1. Order'!AI1010)","v":""}]
[{"$f":"IF('1. Order'!B1011=\"\",\"\",'1. Order'!B1011)","v":""},{"$f":"IF('1. Order'!J1011=\"\",\"\",'1. Order'!J1011)","v":""},{"$f":"IF('1. Order'!K1011=\"\",\"\",'1. Order'!K1011)","v":""},{"$f":"IF('1. Order'!L1011=\"\",\"\",'1. Order'!L1011)","v":""},{"$f":"IF('1. Order'!N1011=\"\",\"\",'1. Order'!N1011)","v":""},null,null,{"$f":"IF('1. Order'!AV1011=\"\",\"\",'1. Order'!AV1011)","v":""},{"$f":"IF('1. Order'!AI1011=\"\",\"\",'1. Order'!AI1011)","v":""}]
[{"$f":"IF('1. Order'!B1012=\"\",\"\",'1. Order'!B1012)","v":""},{"$f":"IF('1. Order'!J1012=\"\",\"\",'1. Order'!J1012)","v":""},{"$f":"IF('1. Order'!K1012=\"\",\"\",'1. Order'!K1012)","v":""},{"$f":"IF('1. Order'!L1012=\"\",\"\",'1. Order'!L1012)","v":""},{"$f":"IF('1. Order'!N1012=\"\",\"\",'1. Order'!N1012)","v":""},null,null,{"$f":"IF('1. Order'!AV1012=\"\",\"\",'1. Order'!AV1012)","v":""},{"$f":"IF('1. Order'!AI1012=\"\",\"\",'1. Order'!AI1012)","v":""}]
[{"$f":"IF('1. Order'!B1013=\"\",\"\",'1. Order'!B1013)","v":""},{"$f":"IF('1. Order'!J1013=\"\",\"\",'1. Order'!J1013)","v":""},{"$f":"IF('1. Order'!K1013=\"\",\"\",'1. Order'!K1013)","v":""},{"$f":"IF('1. Order'!L1013=\"\",\"\",'1. Order'!L1013)","v":""},{"$f":"IF('1. Order'!N1013=\"\",\"\",'1. Order'!N1013)","v":""},null,null,{"$f":"IF('1. Order'!AV1013=\"\",\"\",'1. Order'!AV1013)","v":""},{"$f":"IF('1. Order'!AI1013=\"\",\"\",'1. Order'!AI1013)","v":""}]
[{"$f":"IF('1. Order'!B1014=\"\",\"\",'1. Order'!B1014)","v":""},{"$f":"IF('1. Order'!J1014=\"\",\"\",'1. Order'!J1014)","v":""},{"$f":"IF('1. Order'!K1014=\"\",\"\",'1. Order'!K1014)","v":""},{"$f":"IF('1. Order'!L1014=\"\",\"\",'1. Order'!L1014)","v":""},{"$f":"IF('1. Order'!N1014=\"\",\"\",'1. Order'!N1014)","v":""},null,null,{"$f":"IF('1. Order'!AV1014=\"\",\"\",'1. Order'!AV1014)","v":""},{"$f":"IF('1. Order'!AI1014=\"\",\"\",'1. Order'!AI1014)","v":""}]
[{"$f":"IF('1. Order'!B1015=\"\",\"\",'1. Order'!B1015)","v":""},{"$f":"IF('1. Order'!J1015=\"\",\"\",'1. Order'!J1015)","v":""},{"$f":"IF('1. Order'!K1015=\"\",\"\",'1. Order'!K1015)","v":""},{"$f":"IF('1. Order'!L1015=\"\",\"\",'1. Order'!L1015)","v":""},{"$f":"IF('1. Order'!N1015=\"\",\"\",'1. Order'!N1015)","v":""},null,null,{"$f":"IF('1. Order'!AV1015=\"\",\"\",'1. Order'!AV1015)","v":""},{"$f":"IF('1. Order'!AI1015=\"\",\"\",'1. Order'!AI1015)","v":""}]
[{"$f":"IF('1. Order'!B1016=\"\",\"\",'1. Order'!B1016)","v":""},{"$f":"IF('1. Order'!J1016=\"\",\"\",'1. Order'!J1016)","v":""},{"$f":"IF('1. Order'!K1016=\"\",\"\",'1. Order'!K1016)","v":""},{"$f":"IF('1. Order'!L1016=\"\",\"\",'1. Order'!L1016)","v":""},{"$f":"IF('1. Order'!N1016=\"\",\"\",'1. Order'!N1016)","v":""},null,null,{"$f":"IF('1. Order'!AV1016=\"\",\"\",'1. Order'!AV1016)","v":""},{"$f":"IF('1. Order'!AI1016=\"\",\"\",'1. Order'!AI1016)","v":""}]
[{"$f":"IF('1. Order'!B1017=\"\",\"\",'1. Order'!B1017)","v":""},{"$f":"IF('1. Order'!J1017=\"\",\"\",'1. Order'!J1017)","v":""},{"$f":"IF('1. Order'!K1017=\"\",\"\",'1. Order'!K1017)","v":""},{"$f":"IF('1. Order'!L1017=\"\",\"\",'1. Order'!L1017)","v":""},{"$f":"IF('1. Order'!N1017=\"\",\"\",'1. Order'!N1017)","v":""},null,null,{"$f":"IF('1. Order'!AV1017=\"\",\"\",'1. Order'!AV1017)","v":""},{"$f":"IF('1. Order'!AI1017=\"\",\"\",'1. Order'!AI1017)","v":""}]
[{"$f":"IF('1. Order'!B1018=\"\",\"\",'1. Order'!B1018)","v":""},{"$f":"IF('1. Order'!J1018=\"\",\"\",'1. Order'!J1018)","v":""},{"$f":"IF('1. Order'!K1018=\"\",\"\",'1. Order'!K1018)","v":""},{"$f":"IF('1. Order'!L1018=\"\",\"\",'1. Order'!L1018)","v":""},{"$f":"IF('1. Order'!N1018=\"\",\"\",'1. Order'!N1018)","v":""},null,null,{"$f":"IF('1. Order'!AV1018=\"\",\"\",'1. Order'!AV1018)","v":""},{"$f":"IF('1. Order'!AI1018=\"\",\"\",'1. Order'!AI1018)","v":""}]
[{"$f":"IF('1. Order'!B1019=\"\",\"\",'1. Order'!B1019)","v":""},{"$f":"IF('1. Order'!J1019=\"\",\"\",'1. Order'!J1019)","v":""},{"$f":"IF('1. Order'!K1019=\"\",\"\",'1. Order'!K1019)","v":""},{"$f":"IF('1. Order'!L1019=\"\",\"\",'1. Order'!L1019)","v":""},{"$f":"IF('1. Order'!N1019=\"\",\"\",'1. Order'!N1019)","v":""},null,null,{"$f":"IF('1. Order'!AV1019=\"\",\"\",'1. Order'!AV1019)","v":""},{"$f":"IF('1. Order'!AI1019=\"\",\"\",'1. Order'!AI1019)","v":""}]
[{"$f":"IF('1. Order'!B1020=\"\",\"\",'1. Order'!B1020)","v":""},{"$f":"IF('1. Order'!J1020=\"\",\"\",'1. Order'!J1020)","v":""},{"$f":"IF('1. Order'!K1020=\"\",\"\",'1. Order'!K1020)","v":""},{"$f":"IF('1. Order'!L1020=\"\",\"\",'1. Order'!L1020)","v":""},{"$f":"IF('1. Order'!N1020=\"\",\"\",'1. Order'!N1020)","v":""},null,null,{"$f":"IF('1. Order'!AV1020=\"\",\"\",'1. Order'!AV1020)","v":""},{"$f":"IF('1. Order'!AI1020=\"\",\"\",'1. Order'!AI1020)","v":""}]
[{"$f":"IF('1. Order'!B1021=\"\",\"\",'1. Order'!B1021)","v":""},{"$f":"IF('1. Order'!J1021=\"\",\"\",'1. Order'!J1021)","v":""},{"$f":"IF('1. Order'!K1021=\"\",\"\",'1. Order'!K1021)","v":""},{"$f":"IF('1. Order'!L1021=\"\",\"\",'1. Order'!L1021)","v":""},{"$f":"IF('1. Order'!N1021=\"\",\"\",'1. Order'!N1021)","v":""},null,null,{"$f":"IF('1. Order'!AV1021=\"\",\"\",'1. Order'!AV1021)","v":""},{"$f":"IF('1. Order'!AI1021=\"\",\"\",'1. Order'!AI1021)","v":""}]
[{"$f":"IF('1. Order'!B1022=\"\",\"\",'1. Order'!B1022)","v":""},{"$f":"IF('1. Order'!J1022=\"\",\"\",'1. Order'!J1022)","v":""},{"$f":"IF('1. Order'!K1022=\"\",\"\",'1. Order'!K1022)","v":""},{"$f":"IF('1. Order'!L1022=\"\",\"\",'1. Order'!L1022)","v":""},{"$f":"IF('1. Order'!N1022=\"\",\"\",'1. Order'!N1022)","v":""},null,null,{"$f":"IF('1. Order'!AV1022=\"\",\"\",'1. Order'!AV1022)","v":""},{"$f":"IF('1. Order'!AI1022=\"\",\"\",'1. Order'!AI1022)","v":""}]
[{"$f":"IF('1. Order'!B1023=\"\",\"\",'1. Order'!B1023)","v":""},{"$f":"IF('1. Order'!J1023=\"\",\"\",'1. Order'!J1023)","v":""},{"$f":"IF('1. Order'!K1023=\"\",\"\",'1. Order'!K1023)","v":""},{"$f":"IF('1. Order'!L1023=\"\",\"\",'1. Order'!L1023)","v":""},{"$f":"IF('1. Order'!N1023=\"\",\"\",'1. Order'!N1023)","v":""},null,null,{"$f":"IF('1. Order'!AV1023=\"\",\"\",'1. Order'!AV1023)","v":""},{"$f":"IF('1. Order'!AI1023=\"\",\"\",'1. Order'!AI1023)","v":""}]
[{"$f":"IF('1. Order'!B1024=\"\",\"\",'1. Order'!B1024)","v":""},{"$f":"IF('1. Order'!J1024=\"\",\"\",'1. Order'!J1024)","v":""},{"$f":"IF('1. Order'!K1024=\"\",\"\",'1. Order'!K1024)","v":""},{"$f":"IF('1. Order'!L1024=\"\",\"\",'1. Order'!L1024)","v":""},{"$f":"IF('1. Order'!N1024=\"\",\"\",'1. Order'!N1024)","v":""},null,null,{"$f":"IF('1. Order'!AV1024=\"\",\"\",'1. Order'!AV1024)","v":""},{"$f":"IF('1. Order'!AI1024=\"\",\"\",'1. Order'!AI1024)","v":""}]
[{"$f":"IF('1. Order'!B1025=\"\",\"\",'1. Order'!B1025)","v":""},{"$f":"IF('1. Order'!J1025=\"\",\"\",'1. Order'!J1025)","v":""},{"$f":"IF('1. Order'!K1025=\"\",\"\",'1. Order'!K1025)","v":""},{"$f":"IF('1. Order'!L1025=\"\",\"\",'1. Order'!L1025)","v":""},{"$f":"IF('1. Order'!N1025=\"\",\"\",'1. Order'!N1025)","v":""},null,null,{"$f":"IF('1. Order'!AV1025=\"\",\"\",'1. Order'!AV1025)","v":""},{"$f":"IF('1. Order'!AI1025=\"\",\"\",'1. Order'!AI1025)","v":""}]
[{"$f":"IF('1. Order'!B1026=\"\",\"\",'1. Order'!B1026)","v":""},{"$f":"IF('1. Order'!J1026=\"\",\"\",'1. Order'!J1026)","v":""},{"$f":"IF('1. Order'!K1026=\"\",\"\",'1. Order'!K1026)","v":""},{"$f":"IF('1. Order'!L1026=\"\",\"\",'1. Order'!L1026)","v":""},{"$f":"IF('1. Order'!N1026=\"\",\"\",'1. Order'!N1026)","v":""},null,null,{"$f":"IF('1. Order'!AV1026=\"\",\"\",'1. Order'!AV1026)","v":""},{"$f":"IF('1. Order'!AI1026=\"\",\"\",'1. Order'!AI1026)","v":""}]
[{"$f":"IF('1. Order'!B1027=\"\",\"\",'1. Order'!B1027)","v":""},{"$f":"IF('1. Order'!J1027=\"\",\"\",'1. Order'!J1027)","v":""},{"$f":"IF('1. Order'!K1027=\"\",\"\",'1. Order'!K1027)","v":""},{"$f":"IF('1. Order'!L1027=\"\",\"\",'1. Order'!L1027)","v":""},{"$f":"IF('1. Order'!N1027=\"\",\"\",'1. Order'!N1027)","v":""},null,null,{"$f":"IF('1. Order'!AV1027=\"\",\"\",'1. Order'!AV1027)","v":""},{"$f":"IF('1. Order'!AI1027=\"\",\"\",'1. Order'!AI1027)","v":""}]
[{"$f":"IF('1. Order'!B1028=\"\",\"\",'1. Order'!B1028)","v":""},{"$f":"IF('1. Order'!J1028=\"\",\"\",'1. Order'!J1028)","v":""},{"$f":"IF('1. Order'!K1028=\"\",\"\",'1. Order'!K1028)","v":""},{"$f":"IF('1. Order'!L1028=\"\",\"\",'1. Order'!L1028)","v":""},{"$f":"IF('1. Order'!N1028=\"\",\"\",'1. Order'!N1028)","v":""},null,null,{"$f":"IF('1. Order'!AV1028=\"\",\"\",'1. Order'!AV1028)","v":""},{"$f":"IF('1. Order'!AI1028=\"\",\"\",'1. Order'!AI1028)","v":""}]
[{"$f":"IF('1. Order'!B1029=\"\",\"\",'1. Order'!B1029)","v":""},{"$f":"IF('1. Order'!J1029=\"\",\"\",'1. Order'!J1029)","v":""},{"$f":"IF('1. Order'!K1029=\"\",\"\",'1. Order'!K1029)","v":""},{"$f":"IF('1. Order'!L1029=\"\",\"\",'1. Order'!L1029)","v":""},{"$f":"IF('1. Order'!N1029=\"\",\"\",'1. Order'!N1029)","v":""},null,null,{"$f":"IF('1. Order'!AV1029=\"\",\"\",'1. Order'!AV1029)","v":""},{"$f":"IF('1. Order'!AI1029=\"\",\"\",'1. Order'!AI1029)","v":""}]
[{"$f":"IF('1. Order'!B1030=\"\",\"\",'1. Order'!B1030)","v":""},{"$f":"IF('1. Order'!J1030=\"\",\"\",'1. Order'!J1030)","v":""},{"$f":"IF('1. Order'!K1030=\"\",\"\",'1. Order'!K1030)","v":""},{"$f":"IF('1. Order'!L1030=\"\",\"\",'1. Order'!L1030)","v":""},{"$f":"IF('1. Order'!N1030=\"\",\"\",'1. Order'!N1030)","v":""},null,null,{"$f":"IF('1. Order'!AV1030=\"\",\"\",'1. Order'!AV1030)","v":""},{"$f":"IF('1. Order'!AI1030=\"\",\"\",'1. Order'!AI1030)","v":""}]
[{"$f":"IF('1. Order'!B1031=\"\",\"\",'1. Order'!B1031)","v":""},{"$f":"IF('1. Order'!J1031=\"\",\"\",'1. Order'!J1031)","v":""},{"$f":"IF('1. Order'!K1031=\"\",\"\",'1. Order'!K1031)","v":""},{"$f":"IF('1. Order'!L1031=\"\",\"\",'1. Order'!L1031)","v":""},{"$f":"IF('1. Order'!N1031=\"\",\"\",'1. Order'!N1031)","v":""},null,null,{"$f":"IF('1. Order'!AV1031=\"\",\"\",'1. Order'!AV1031)","v":""},{"$f":"IF('1. Order'!AI1031=\"\",\"\",'1. Order'!AI1031)","v":""}]
[{"$f":"IF('1. Order'!B1032=\"\",\"\",'1. Order'!B1032)","v":""},{"$f":"IF('1. Order'!J1032=\"\",\"\",'1. Order'!J1032)","v":""},{"$f":"IF('1. Order'!K1032=\"\",\"\",'1. Order'!K1032)","v":""},{"$f":"IF('1. Order'!L1032=\"\",\"\",'1. Order'!L1032)","v":""},{"$f":"IF('1. Order'!N1032=\"\",\"\",'1. Order'!N1032)","v":""},null,null,{"$f":"IF('1. Order'!AV1032=\"\",\"\",'1. Order'!AV1032)","v":""},{"$f":"IF('1. Order'!AI1032=\"\",\"\",'1. Order'!AI1032)","v":""}]
[{"$f":"IF('1. Order'!B1033=\"\",\"\",'1. Order'!B1033)","v":""},{"$f":"IF('1. Order'!J1033=\"\",\"\",'1. Order'!J1033)","v":""},{"$f":"IF('1. Order'!K1033=\"\",\"\",'1. Order'!K1033)","v":""},{"$f":"IF('1. Order'!L1033=\"\",\"\",'1. Order'!L1033)","v":""},{"$f":"IF('1. Order'!N1033=\"\",\"\",'1. Order'!N1033)","v":""},null,null,{"$f":"IF('1. Order'!AV1033=\"\",\"\",'1. Order'!AV1033)","v":""},{"$f":"IF('1. Order'!AI1033=\"\",\"\",'1. Order'!AI1033)","v":""}]
[{"$f":"IF('1. Order'!B1034=\"\",\"\",'1. Order'!B1034)","v":""},{"$f":"IF('1. Order'!J1034=\"\",\"\",'1. Order'!J1034)","v":""},{"$f":"IF('1. Order'!K1034=\"\",\"\",'1. Order'!K1034)","v":""},{"$f":"IF('1. Order'!L1034=\"\",\"\",'1. Order'!L1034)","v":""},{"$f":"IF('1. Order'!N1034=\"\",\"\",'1. Order'!N1034)","v":""},null,null,{"$f":"IF('1. Order'!AV1034=\"\",\"\",'1. Order'!AV1034)","v":""},{"$f":"IF('1. Order'!AI1034=\"\",\"\",'1. Order'!AI1034)","v":""}]
[{"$f":"IF('1. Order'!B1035=\"\",\"\",'1. Order'!B1035)","v":""},{"$f":"IF('1. Order'!J1035=\"\",\"\",'1. Order'!J1035)","v":""},{"$f":"IF('1. Order'!K1035=\"\",\"\",'1. Order'!K1035)","v":""},{"$f":"IF('1. Order'!L1035=\"\",\"\",'1. Order'!L1035)","v":""},{"$f":"IF('1. Order'!N1035=\"\",\"\",'1. Order'!N1035)","v":""},null,null,{"$f":"IF('1. Order'!AV1035=\"\",\"\",'1. Order'!AV1035)","v":""},{"$f":"IF('1. Order'!AI1035=\"\",\"\",'1. Order'!AI1035)","v":""}]
[{"$f":"IF('1. Order'!B1036=\"\",\"\",'1. Order'!B1036)","v":""},{"$f":"IF('1. Order'!J1036=\"\",\"\",'1. Order'!J1036)","v":""},{"$f":"IF('1. Order'!K1036=\"\",\"\",'1. Order'!K1036)","v":""},{"$f":"IF('1. Order'!L1036=\"\",\"\",'1. Order'!L1036)","v":""},{"$f":"IF('1. Order'!N1036=\"\",\"\",'1. Order'!N1036)","v":""},null,null,{"$f":"IF('1. Order'!AV1036=\"\",\"\",'1. Order'!AV1036)","v":""},{"$f":"IF('1. Order'!AI1036=\"\",\"\",'1. Order'!AI1036)","v":""}]
[{"$f":"IF('1. Order'!B1037=\"\",\"\",'1. Order'!B1037)","v":""},{"$f":"IF('1. Order'!J1037=\"\",\"\",'1. Order'!J1037)","v":""},{"$f":"IF('1. Order'!K1037=\"\",\"\",'1. Order'!K1037)","v":""},{"$f":"IF('1. Order'!L1037=\"\",\"\",'1. Order'!L1037)","v":""},{"$f":"IF('1. Order'!N1037=\"\",\"\",'1. Order'!N1037)","v":""},null,null,{"$f":"IF('1. Order'!AV1037=\"\",\"\",'1. Order'!AV1037)","v":""},{"$f":"IF('1. Order'!AI1037=\"\",\"\",'1. Order'!AI1037)","v":""}]
[{"$f":"IF('1. Order'!B1038=\"\",\"\",'1. Order'!B1038)","v":""},{"$f":"IF('1. Order'!J1038=\"\",\"\",'1. Order'!J1038)","v":""},{"$f":"IF('1. Order'!K1038=\"\",\"\",'1. Order'!K1038)","v":""},{"$f":"IF('1. Order'!L1038=\"\",\"\",'1. Order'!L1038)","v":""},{"$f":"IF('1. Order'!N1038=\"\",\"\",'1. Order'!N1038)","v":""},null,null,{"$f":"IF('1. Order'!AV1038=\"\",\"\",'1. Order'!AV1038)","v":""},{"$f":"IF('1. Order'!AI1038=\"\",\"\",'1. Order'!AI1038)","v":""}]
[{"$f":"IF('1. Order'!B1039=\"\",\"\",'1. Order'!B1039)","v":""},{"$f":"IF('1. Order'!J1039=\"\",\"\",'1. Order'!J1039)","v":""},{"$f":"IF('1. Order'!K1039=\"\",\"\",'1. Order'!K1039)","v":""},{"$f":"IF('1. Order'!L1039=\"\",\"\",'1. Order'!L1039)","v":""},{"$f":"IF('1. Order'!N1039=\"\",\"\",'1. Order'!N1039)","v":""},null,null,{"$f":"IF('1. Order'!AV1039=\"\",\"\",'1. Order'!AV1039)","v":""},{"$f":"IF('1. Order'!AI1039=\"\",\"\",'1. Order'!AI1039)","v":""}]
[{"$f":"IF('1. Order'!B1040=\"\",\"\",'1. Order'!B1040)","v":""},{"$f":"IF('1. Order'!J1040=\"\",\"\",'1. Order'!J1040)","v":""},{"$f":"IF('1. Order'!K1040=\"\",\"\",'1. Order'!K1040)","v":""},{"$f":"IF('1. Order'!L1040=\"\",\"\",'1. Order'!L1040)","v":""},{"$f":"IF('1. Order'!N1040=\"\",\"\",'1. Order'!N1040)","v":""},null,null,{"$f":"IF('1. Order'!AV1040=\"\",\"\",'1. Order'!AV1040)","v":""},{"$f":"IF('1. Order'!AI1040=\"\",\"\",'1. Order'!AI1040)","v":""}]
[{"$f":"IF('1. Order'!B1041=\"\",\"\",'1. Order'!B1041)","v":""},{"$f":"IF('1. Order'!J1041=\"\",\"\",'1. Order'!J1041)","v":""},{"$f":"IF('1. Order'!K1041=\"\",\"\",'1. Order'!K1041)","v":""},{"$f":"IF('1. Order'!L1041=\"\",\"\",'1. Order'!L1041)","v":""},{"$f":"IF('1. Order'!N1041=\"\",\"\",'1. Order'!N1041)","v":""},null,null,{"$f":"IF('1. Order'!AV1041=\"\",\"\",'1. Order'!AV1041)","v":""},{"$f":"IF('1. Order'!AI1041=\"\",\"\",'1. Order'!AI1041)","v":""}]
[{"$f":"IF('1. Order'!B1042=\"\",\"\",'1. Order'!B1042)","v":""},{"$f":"IF('1. Order'!J1042=\"\",\"\",'1. Order'!J1042)","v":""},{"$f":"IF('1. Order'!K1042=\"\",\"\",'1. Order'!K1042)","v":""},{"$f":"IF('1. Order'!L1042=\"\",\"\",'1. Order'!L1042)","v":""},{"$f":"IF('1. Order'!N1042=\"\",\"\",'1. Order'!N1042)","v":""},null,null,{"$f":"IF('1. Order'!AV1042=\"\",\"\",'1. Order'!AV1042)","v":""},{"$f":"IF('1. Order'!AI1042=\"\",\"\",'1. Order'!AI1042)","v":""}]
[{"$f":"IF('1. Order'!B1043=\"\",\"\",'1. Order'!B1043)","v":""},{"$f":"IF('1. Order'!J1043=\"\",\"\",'1. Order'!J1043)","v":""},{"$f":"IF('1. Order'!K1043=\"\",\"\",'1. Order'!K1043)","v":""},{"$f":"IF('1. Order'!L1043=\"\",\"\",'1. Order'!L1043)","v":""},{"$f":"IF('1. Order'!N1043=\"\",\"\",'1. Order'!N1043)","v":""},null,null,{"$f":"IF('1. Order'!AV1043=\"\",\"\",'1. Order'!AV1043)","v":""},{"$f":"IF('1. Order'!AI1043=\"\",\"\",'1. Order'!AI1043)","v":""}]
[{"$f":"IF('1. Order'!B1044=\"\",\"\",'1. Order'!B1044)","v":""},{"$f":"IF('1. Order'!J1044=\"\",\"\",'1. Order'!J1044)","v":""},{"$f":"IF('1. Order'!K1044=\"\",\"\",'1. Order'!K1044)","v":""},{"$f":"IF('1. Order'!L1044=\"\",\"\",'1. Order'!L1044)","v":""},{"$f":"IF('1. Order'!N1044=\"\",\"\",'1. Order'!N1044)","v":""},null,null,{"$f":"IF('1. Order'!AV1044=\"\",\"\",'1. Order'!AV1044)","v":""},{"$f":"IF('1. Order'!AI1044=\"\",\"\",'1. Order'!AI1044)","v":""}]
[{"$f":"IF('1. Order'!B1045=\"\",\"\",'1. Order'!B1045)","v":""},{"$f":"IF('1. Order'!J1045=\"\",\"\",'1. Order'!J1045)","v":""},{"$f":"IF('1. Order'!K1045=\"\",\"\",'1. Order'!K1045)","v":""},{"$f":"IF('1. Order'!L1045=\"\",\"\",'1. Order'!L1045)","v":""},{"$f":"IF('1. Order'!N1045=\"\",\"\",'1. Order'!N1045)","v":""},null,null,{"$f":"IF('1. Order'!AV1045=\"\",\"\",'1. Order'!AV1045)","v":""},{"$f":"IF('1. Order'!AI1045=\"\",\"\",'1. Order'!AI1045)","v":""}]
[{"$f":"IF('1. Order'!B1046=\"\",\"\",'1. Order'!B1046)","v":""},{"$f":"IF('1. Order'!J1046=\"\",\"\",'1. Order'!J1046)","v":""},{"$f":"IF('1. Order'!K1046=\"\",\"\",'1. Order'!K1046)","v":""},{"$f":"IF('1. Order'!L1046=\"\",\"\",'1. Order'!L1046)","v":""},{"$f":"IF('1. Order'!N1046=\"\",\"\",'1. Order'!N1046)","v":""},null,null,{"$f":"IF('1. Order'!AV1046=\"\",\"\",'1. Order'!AV1046)","v":""},{"$f":"IF('1. Order'!AI1046=\"\",\"\",'1. Order'!AI1046)","v":""}]
[{"$f":"IF('1. Order'!B1047=\"\",\"\",'1. Order'!B1047)","v":""},{"$f":"IF('1. Order'!J1047=\"\",\"\",'1. Order'!J1047)","v":""},{"$f":"IF('1. Order'!K1047=\"\",\"\",'1. Order'!K1047)","v":""},{"$f":"IF('1. Order'!L1047=\"\",\"\",'1. Order'!L1047)","v":""},{"$f":"IF('1. Order'!N1047=\"\",\"\",'1. Order'!N1047)","v":""},null,null,{"$f":"IF('1. Order'!AV1047=\"\",\"\",'1. Order'!AV1047)","v":""},{"$f":"IF('1. Order'!AI1047=\"\",\"\",'1. Order'!AI1047)","v":""}]
[{"$f":"IF('1. Order'!B1048=\"\",\"\",'1. Order'!B1048)","v":""},{"$f":"IF('1. Order'!J1048=\"\",\"\",'1. Order'!J1048)","v":""},{"$f":"IF('1. Order'!K1048=\"\",\"\",'1. Order'!K1048)","v":""},{"$f":"IF('1. Order'!L1048=\"\",\"\",'1. Order'!L1048)","v":""},{"$f":"IF('1. Order'!N1048=\"\",\"\",'1. Order'!N1048)","v":""},null,null,{"$f":"IF('1. Order'!AV1048=\"\",\"\",'1. Order'!AV1048)","v":""},{"$f":"IF('1. Order'!AI1048=\"\",\"\",'1. Order'!AI1048)","v":""}]
[{"$f":"IF('1. Order'!B1049=\"\",\"\",'1. Order'!B1049)","v":""},{"$f":"IF('1. Order'!J1049=\"\",\"\",'1. Order'!J1049)","v":""},{"$f":"IF('1. Order'!K1049=\"\",\"\",'1. Order'!K1049)","v":""},{"$f":"IF('1. Order'!L1049=\"\",\"\",'1. Order'!L1049)","v":""},{"$f":"IF('1. Order'!N1049=\"\",\"\",'1. Order'!N1049)","v":""},null,null,{"$f":"IF('1. Order'!AV1049=\"\",\"\",'1. Order'!AV1049)","v":""},{"$f":"IF('1. Order'!AI1049=\"\",\"\",'1. Order'!AI1049)","v":""}]
[{"$f":"IF('1. Order'!B1050=\"\",\"\",'1. Order'!B1050)","v":""},{"$f":"IF('1. Order'!J1050=\"\",\"\",'1. Order'!J1050)","v":""},{"$f":"IF('1. Order'!K1050=\"\",\"\",'1. Order'!K1050)","v":""},{"$f":"IF('1. Order'!L1050=\"\",\"\",'1. Order'!L1050)","v":""},{"$f":"IF('1. Order'!N1050=\"\",\"\",'1. Order'!N1050)","v":""},null,null,{"$f":"IF('1. Order'!AV1050=\"\",\"\",'1. Order'!AV1050)","v":""},{"$f":"IF('1. Order'!AI1050=\"\",\"\",'1. Order'!AI1050)","v":""}]
[{"$f":"IF('1. Order'!B1051=\"\",\"\",'1. Order'!B1051)","v":""},{"$f":"IF('1. Order'!J1051=\"\",\"\",'1. Order'!J1051)","v":""},{"$f":"IF('1. Order'!K1051=\"\",\"\",'1. Order'!K1051)","v":""},{"$f":"IF('1. Order'!L1051=\"\",\"\",'1. Order'!L1051)","v":""},{"$f":"IF('1. Order'!N1051=\"\",\"\",'1. Order'!N1051)","v":""},null,null,{"$f":"IF('1. Order'!AV1051=\"\",\"\",'1. Order'!AV1051)","v":""},{"$f":"IF('1. Order'!AI1051=\"\",\"\",'1. Order'!AI1051)","v":""}]
[{"$f":"IF('1. Order'!B1052=\"\",\"\",'1. Order'!B1052)","v":""},{"$f":"IF('1. Order'!J1052=\"\",\"\",'1. Order'!J1052)","v":""},{"$f":"IF('1. Order'!K1052=\"\",\"\",'1. Order'!K1052)","v":""},{"$f":"IF('1. Order'!L1052=\"\",\"\",'1. Order'!L1052)","v":""},{"$f":"IF('1. Order'!N1052=\"\",\"\",'1. Order'!N1052)","v":""},null,null,{"$f":"IF('1. Order'!AV1052=\"\",\"\",'1. Order'!AV1052)","v":""},{"$f":"IF('1. Order'!AI1052=\"\",\"\",'1. Order'!AI1052)","v":""}]
[{"$f":"IF('1. Order'!B1053=\"\",\"\",'1. Order'!B1053)","v":""},{"$f":"IF('1. Order'!J1053=\"\",\"\",'1. Order'!J1053)","v":""},{"$f":"IF('1. Order'!K1053=\"\",\"\",'1. Order'!K1053)","v":""},{"$f":"IF('1. Order'!L1053=\"\",\"\",'1. Order'!L1053)","v":""},{"$f":"IF('1. Order'!N1053=\"\",\"\",'1. Order'!N1053)","v":""},null,null,{"$f":"IF('1. Order'!AV1053=\"\",\"\",'1. Order'!AV1053)","v":""},{"$f":"IF('1. Order'!AI1053=\"\",\"\",'1. Order'!AI1053)","v":""}]
[{"$f":"IF('1. Order'!B1054=\"\",\"\",'1. Order'!B1054)","v":""},{"$f":"IF('1. Order'!J1054=\"\",\"\",'1. Order'!J1054)","v":""},{"$f":"IF('1. Order'!K1054=\"\",\"\",'1. Order'!K1054)","v":""},{"$f":"IF('1. Order'!L1054=\"\",\"\",'1. Order'!L1054)","v":""},{"$f":"IF('1. Order'!N1054=\"\",\"\",'1. Order'!N1054)","v":""},null,null,{"$f":"IF('1. Order'!AV1054=\"\",\"\",'1. Order'!AV1054)","v":""},{"$f":"IF('1. Order'!AI1054=\"\",\"\",'1. Order'!AI1054)","v":""}]
[{"$f":"IF('1. Order'!B1055=\"\",\"\",'1. Order'!B1055)","v":""},{"$f":"IF('1. Order'!J1055=\"\",\"\",'1. Order'!J1055)","v":""},{"$f":"IF('1. Order'!K1055=\"\",\"\",'1. Order'!K1055)","v":""},{"$f":"IF('1. Order'!L1055=\"\",\"\",'1. Order'!L1055)","v":""},{"$f":"IF('1. Order'!N1055=\"\",\"\",'1. Order'!N1055)","v":""},null,null,{"$f":"IF('1. Order'!AV1055=\"\",\"\",'1. Order'!AV1055)","v":""},{"$f":"IF('1. Order'!AI1055=\"\",\"\",'1. Order'!AI1055)","v":""}]
[{"$f":"IF('1. Order'!B1056=\"\",\"\",'1. Order'!B1056)","v":""},{"$f":"IF('1. Order'!J1056=\"\",\"\",'1. Order'!J1056)","v":""},{"$f":"IF('1. Order'!K1056=\"\",\"\",'1. Order'!K1056)","v":""},{"$f":"IF('1. Order'!L1056=\"\",\"\",'1. Order'!L1056)","v":""},{"$f":"IF('1. Order'!N1056=\"\",\"\",'1. Order'!N1056)","v":""},null,null,{"$f":"IF('1. Order'!AV1056=\"\",\"\",'1. Order'!AV1056)","v":""},{"$f":"IF('1. Order'!AI1056=\"\",\"\",'1. Order'!AI1056)","v":""}]
[{"$f":"IF('1. Order'!B1057=\"\",\"\",'1. Order'!B1057)","v":""},{"$f":"IF('1. Order'!J1057=\"\",\"\",'1. Order'!J1057)","v":""},{"$f":"IF('1. Order'!K1057=\"\",\"\",'1. Order'!K1057)","v":""},{"$f":"IF('1. Order'!L1057=\"\",\"\",'1. Order'!L1057)","v":""},{"$f":"IF('1. Order'!N1057=\"\",\"\",'1. Order'!N1057)","v":""},null,null,{"$f":"IF('1. Order'!AV1057=\"\",\"\",'1. Order'!AV1057)","v":""},{"$f":"IF('1. Order'!AI1057=\"\",\"\",'1. Order'!AI1057)","v":""}]
[{"$f":"IF('1. Order'!B1058=\"\",\"\",'1. Order'!B1058)","v":""},{"$f":"IF('1. Order'!J1058=\"\",\"\",'1. Order'!J1058)","v":""},{"$f":"IF('1. Order'!K1058=\"\",\"\",'1. Order'!K1058)","v":""},{"$f":"IF('1. Order'!L1058=\"\",\"\",'1. Order'!L1058)","v":""},{"$f":"IF('1. Order'!N1058=\"\",\"\",'1. Order'!N1058)","v":""},null,null,{"$f":"IF('1. Order'!AV1058=\"\",\"\",'1. Order'!AV1058)","v":""},{"$f":"IF('1. Order'!AI1058=\"\",\"\",'1. Order'!AI1058)","v":""}]
[{"$f":"IF('1. Order'!B1059=\"\",\"\",'1. Order'!B1059)","v":""},{"$f":"IF('1. Order'!J1059=\"\",\"\",'1. Order'!J1059)","v":""},{"$f":"IF('1. Order'!K1059=\"\",\"\",'1. Order'!K1059)","v":""},{"$f":"IF('1. Order'!L1059=\"\",\"\",'1. Order'!L1059)","v":""},{"$f":"IF('1. Order'!N1059=\"\",\"\",'1. Order'!N1059)","v":""},null,null,{"$f":"IF('1. Order'!AV1059=\"\",\"\",'1. Order'!AV1059)","v":""},{"$f":"IF('1. Order'!AI1059=\"\",\"\",'1. Order'!AI1059)","v":""}]
[{"$f":"IF('1. Order'!B1060=\"\",\"\",'1. Order'!B1060)","v":""},{"$f":"IF('1. Order'!J1060=\"\",\"\",'1. Order'!J1060)","v":""},{"$f":"IF('1. Order'!K1060=\"\",\"\",'1. Order'!K1060)","v":""},{"$f":"IF('1. Order'!L1060=\"\",\"\",'1. Order'!L1060)","v":""},{"$f":"IF('1. Order'!N1060=\"\",\"\",'1. Order'!N1060)","v":""},null,null,{"$f":"IF('1. Order'!AV1060=\"\",\"\",'1. Order'!AV1060)","v":""},{"$f":"IF('1. Order'!AI1060=\"\",\"\",'1. Order'!AI1060)","v":""}]
[{"$f":"IF('1. Order'!B1061=\"\",\"\",'1. Order'!B1061)","v":""},{"$f":"IF('1. Order'!J1061=\"\",\"\",'1. Order'!J1061)","v":""},{"$f":"IF('1. Order'!K1061=\"\",\"\",'1. Order'!K1061)","v":""},{"$f":"IF('1. Order'!L1061=\"\",\"\",'1. Order'!L1061)","v":""},{"$f":"IF('1. Order'!N1061=\"\",\"\",'1. Order'!N1061)","v":""},null,null,{"$f":"IF('1. Order'!AV1061=\"\",\"\",'1. Order'!AV1061)","v":""},{"$f":"IF('1. Order'!AI1061=\"\",\"\",'1. Order'!AI1061)","v":""}]
[{"$f":"IF('1. Order'!B1062=\"\",\"\",'1. Order'!B1062)","v":""},{"$f":"IF('1. Order'!J1062=\"\",\"\",'1. Order'!J1062)","v":""},{"$f":"IF('1. Order'!K1062=\"\",\"\",'1. Order'!K1062)","v":""},{"$f":"IF('1. Order'!L1062=\"\",\"\",'1. Order'!L1062)","v":""},{"$f":"IF('1. Order'!N1062=\"\",\"\",'1. Order'!N1062)","v":""},null,null,{"$f":"IF('1. Order'!AV1062=\"\",\"\",'1. Order'!AV1062)","v":""},{"$f":"IF('1. Order'!AI1062=\"\",\"\",'1. Order'!AI1062)","v":""}]
[{"$f":"IF('1. Order'!B1063=\"\",\"\",'1. Order'!B1063)","v":""},{"$f":"IF('1. Order'!J1063=\"\",\"\",'1. Order'!J1063)","v":""},{"$f":"IF('1. Order'!K1063=\"\",\"\",'1. Order'!K1063)","v":""},{"$f":"IF('1. Order'!L1063=\"\",\"\",'1. Order'!L1063)","v":""},{"$f":"IF('1. Order'!N1063=\"\",\"\",'1. Order'!N1063)","v":""},null,null,{"$f":"IF('1. Order'!AV1063=\"\",\"\",'1. Order'!AV1063)","v":""},{"$f":"IF('1. Order'!AI1063=\"\",\"\",'1. Order'!AI1063)","v":""}]
[{"$f":"IF('1. Order'!B1064=\"\",\"\",'1. Order'!B1064)","v":""},{"$f":"IF('1. Order'!J1064=\"\",\"\",'1. Order'!J1064)","v":""},{"$f":"IF('1. Order'!K1064=\"\",\"\",'1. Order'!K1064)","v":""},{"$f":"IF('1. Order'!L1064=\"\",\"\",'1. Order'!L1064)","v":""},{"$f":"IF('1. Order'!N1064=\"\",\"\",'1. Order'!N1064)","v":""},null,null,{"$f":"IF('1. Order'!AV1064=\"\",\"\",'1. Order'!AV1064)","v":""},{"$f":"IF('1. Order'!AI1064=\"\",\"\",'1. Order'!AI1064)","v":""}]
[{"$f":"IF('1. Order'!B1065=\"\",\"\",'1. Order'!B1065)","v":""},{"$f":"IF('1. Order'!J1065=\"\",\"\",'1. Order'!J1065)","v":""},{"$f":"IF('1. Order'!K1065=\"\",\"\",'1. Order'!K1065)","v":""},{"$f":"IF('1. Order'!L1065=\"\",\"\",'1. Order'!L1065)","v":""},{"$f":"IF('1. Order'!N1065=\"\",\"\",'1. Order'!N1065)","v":""},null,null,{"$f":"IF('1. Order'!AV1065=\"\",\"\",'1. Order'!AV1065)","v":""},{"$f":"IF('1. Order'!AI1065=\"\",\"\",'1. Order'!AI1065)","v":""}]
[{"$f":"IF('1. Order'!B1066=\"\",\"\",'1. Order'!B1066)","v":""},{"$f":"IF('1. Order'!J1066=\"\",\"\",'1. Order'!J1066)","v":""},{"$f":"IF('1. Order'!K1066=\"\",\"\",'1. Order'!K1066)","v":""},{"$f":"IF('1. Order'!L1066=\"\",\"\",'1. Order'!L1066)","v":""},{"$f":"IF('1. Order'!N1066=\"\",\"\",'1. Order'!N1066)","v":""},null,null,{"$f":"IF('1. Order'!AV1066=\"\",\"\",'1. Order'!AV1066)","v":""},{"$f":"IF('1. Order'!AI1066=\"\",\"\",'1. Order'!AI1066)","v":""}]
[{"$f":"IF('1. Order'!B1067=\"\",\"\",'1. Order'!B1067)","v":""},{"$f":"IF('1. Order'!J1067=\"\",\"\",'1. Order'!J1067)","v":""},{"$f":"IF('1. Order'!K1067=\"\",\"\",'1. Order'!K1067)","v":""},{"$f":"IF('1. Order'!L1067=\"\",\"\",'1. Order'!L1067)","v":""},{"$f":"IF('1. Order'!N1067=\"\",\"\",'1. Order'!N1067)","v":""},null,null,{"$f":"IF('1. Order'!AV1067=\"\",\"\",'1. Order'!AV1067)","v":""},{"$f":"IF('1. Order'!AI1067=\"\",\"\",'1. Order'!AI1067)","v":""}]
[{"$f":"IF('1. Order'!B1068=\"\",\"\",'1. Order'!B1068)","v":""},{"$f":"IF('1. Order'!J1068=\"\",\"\",'1. Order'!J1068)","v":""},{"$f":"IF('1. Order'!K1068=\"\",\"\",'1. Order'!K1068)","v":""},{"$f":"IF('1. Order'!L1068=\"\",\"\",'1. Order'!L1068)","v":""},{"$f":"IF('1. Order'!N1068=\"\",\"\",'1. Order'!N1068)","v":""},null,null,{"$f":"IF('1. Order'!AV1068=\"\",\"\",'1. Order'!AV1068)","v":""},{"$f":"IF('1. Order'!AI1068=\"\",\"\",'1. Order'!AI1068)","v":""}]
[{"$f":"IF('1. Order'!B1069=\"\",\"\",'1. Order'!B1069)","v":""},{"$f":"IF('1. Order'!J1069=\"\",\"\",'1. Order'!J1069)","v":""},{"$f":"IF('1. Order'!K1069=\"\",\"\",'1. Order'!K1069)","v":""},{"$f":"IF('1. Order'!L1069=\"\",\"\",'1. Order'!L1069)","v":""},{"$f":"IF('1. Order'!N1069=\"\",\"\",'1. Order'!N1069)","v":""},null,null,{"$f":"IF('1. Order'!AV1069=\"\",\"\",'1. Order'!AV1069)","v":""},{"$f":"IF('1. Order'!AI1069=\"\",\"\",'1. Order'!AI1069)","v":""}]
[{"$f":"IF('1. Order'!B1070=\"\",\"\",'1. Order'!B1070)","v":""},{"$f":"IF('1. Order'!J1070=\"\",\"\",'1. Order'!J1070)","v":""},{"$f":"IF('1. Order'!K1070=\"\",\"\",'1. Order'!K1070)","v":""},{"$f":"IF('1. Order'!L1070=\"\",\"\",'1. Order'!L1070)","v":""},{"$f":"IF('1. Order'!N1070=\"\",\"\",'1. Order'!N1070)","v":""},null,null,{"$f":"IF('1. Order'!AV1070=\"\",\"\",'1. Order'!AV1070)","v":""},{"$f":"IF('1. Order'!AI1070=\"\",\"\",'1. Order'!AI1070)","v":""}]
[{"$f":"IF('1. Order'!B1071=\"\",\"\",'1. Order'!B1071)","v":""},{"$f":"IF('1. Order'!J1071=\"\",\"\",'1. Order'!J1071)","v":""},{"$f":"IF('1. Order'!K1071=\"\",\"\",'1. Order'!K1071)","v":""},{"$f":"IF('1. Order'!L1071=\"\",\"\",'1. Order'!L1071)","v":""},{"$f":"IF('1. Order'!N1071=\"\",\"\",'1. Order'!N1071)","v":""},null,null,{"$f":"IF('1. Order'!AV1071=\"\",\"\",'1. Order'!AV1071)","v":""},{"$f":"IF('1. Order'!AI1071=\"\",\"\",'1. Order'!AI1071)","v":""}]
[{"$f":"IF('1. Order'!B1072=\"\",\"\",'1. Order'!B1072)","v":""},{"$f":"IF('1. Order'!J1072=\"\",\"\",'1. Order'!J1072)","v":""},{"$f":"IF('1. Order'!K1072=\"\",\"\",'1. Order'!K1072)","v":""},{"$f":"IF('1. Order'!L1072=\"\",\"\",'1. Order'!L1072)","v":""},{"$f":"IF('1. Order'!N1072=\"\",\"\",'1. Order'!N1072)","v":""},null,null,{"$f":"IF('1. Order'!AV1072=\"\",\"\",'1. Order'!AV1072)","v":""},{"$f":"IF('1. Order'!AI1072=\"\",\"\",'1. Order'!AI1072)","v":""}]
[{"$f":"IF('1. Order'!B1073=\"\",\"\",'1. Order'!B1073)","v":""},{"$f":"IF('1. Order'!J1073=\"\",\"\",'1. Order'!J1073)","v":""},{"$f":"IF('1. Order'!K1073=\"\",\"\",'1. Order'!K1073)","v":""},{"$f":"IF('1. Order'!L1073=\"\",\"\",'1. Order'!L1073)","v":""},{"$f":"IF('1. Order'!N1073=\"\",\"\",'1. Order'!N1073)","v":""},null,null,{"$f":"IF('1. Order'!AV1073=\"\",\"\",'1. Order'!AV1073)","v":""},{"$f":"IF('1. Order'!AI1073=\"\",\"\",'1. Order'!AI1073)","v":""}]
[{"$f":"IF('1. Order'!B1074=\"\",\"\",'1. Order'!B1074)","v":""},{"$f":"IF('1. Order'!J1074=\"\",\"\",'1. Order'!J1074)","v":""},{"$f":"IF('1. Order'!K1074=\"\",\"\",'1. Order'!K1074)","v":""},{"$f":"IF('1. Order'!L1074=\"\",\"\",'1. Order'!L1074)","v":""},{"$f":"IF('1. Order'!N1074=\"\",\"\",'1. Order'!N1074)","v":""},null,null,{"$f":"IF('1. Order'!AV1074=\"\",\"\",'1. Order'!AV1074)","v":""},{"$f":"IF('1. Order'!AI1074=\"\",\"\",'1. Order'!AI1074)","v":""}]
[{"$f":"IF('1. Order'!B1075=\"\",\"\",'1. Order'!B1075)","v":""},{"$f":"IF('1. Order'!J1075=\"\",\"\",'1. Order'!J1075)","v":""},{"$f":"IF('1. Order'!K1075=\"\",\"\",'1. Order'!K1075)","v":""},{"$f":"IF('1. Order'!L1075=\"\",\"\",'1. Order'!L1075)","v":""},{"$f":"IF('1. Order'!N1075=\"\",\"\",'1. Order'!N1075)","v":""},null,null,{"$f":"IF('1. Order'!AV1075=\"\",\"\",'1. Order'!AV1075)","v":""},{"$f":"IF('1. Order'!AI1075=\"\",\"\",'1. Order'!AI1075)","v":""}]
[{"$f":"IF('1. Order'!B1076=\"\",\"\",'1. Order'!B1076)","v":""},{"$f":"IF('1. Order'!J1076=\"\",\"\",'1. Order'!J1076)","v":""},{"$f":"IF('1. Order'!K1076=\"\",\"\",'1. Order'!K1076)","v":""},{"$f":"IF('1. Order'!L1076=\"\",\"\",'1. Order'!L1076)","v":""},{"$f":"IF('1. Order'!N1076=\"\",\"\",'1. Order'!N1076)","v":""},null,null,{"$f":"IF('1. Order'!AV1076=\"\",\"\",'1. Order'!AV1076)","v":""},{"$f":"IF('1. Order'!AI1076=\"\",\"\",'1. Order'!AI1076)","v":""}]
[{"$f":"IF('1. Order'!B1077=\"\",\"\",'1. Order'!B1077)","v":""},{"$f":"IF('1. Order'!J1077=\"\",\"\",'1. Order'!J1077)","v":""},{"$f":"IF('1. Order'!K1077=\"\",\"\",'1. Order'!K1077)","v":""},{"$f":"IF('1. Order'!L1077=\"\",\"\",'1. Order'!L1077)","v":""},{"$f":"IF('1. Order'!N1077=\"\",\"\",'1. Order'!N1077)","v":""},null,null,{"$f":"IF('1. Order'!AV1077=\"\",\"\",'1. Order'!AV1077)","v":""},{"$f":"IF('1. Order'!AI1077=\"\",\"\",'1. Order'!AI1077)","v":""}]
[{"$f":"IF('1. Order'!B1078=\"\",\"\",'1. Order'!B1078)","v":""},{"$f":"IF('1. Order'!J1078=\"\",\"\",'1. Order'!J1078)","v":""},{"$f":"IF('1. Order'!K1078=\"\",\"\",'1. Order'!K1078)","v":""},{"$f":"IF('1. Order'!L1078=\"\",\"\",'1. Order'!L1078)","v":""},{"$f":"IF('1. Order'!N1078=\"\",\"\",'1. Order'!N1078)","v":""},null,null,{"$f":"IF('1. Order'!AV1078=\"\",\"\",'1. Order'!AV1078)","v":""},{"$f":"IF('1. Order'!AI1078=\"\",\"\",'1. Order'!AI1078)","v":""}]
[{"$f":"IF('1. Order'!B1079=\"\",\"\",'1. Order'!B1079)","v":""},{"$f":"IF('1. Order'!J1079=\"\",\"\",'1. Order'!J1079)","v":""},{"$f":"IF('1. Order'!K1079=\"\",\"\",'1. Order'!K1079)","v":""},{"$f":"IF('1. Order'!L1079=\"\",\"\",'1. Order'!L1079)","v":""},{"$f":"IF('1. Order'!N1079=\"\",\"\",'1. Order'!N1079)","v":""},null,null,{"$f":"IF('1. Order'!AV1079=\"\",\"\",'1. Order'!AV1079)","v":""},{"$f":"IF('1. Order'!AI1079=\"\",\"\",'1. Order'!AI1079)","v":""}]
[{"$f":"IF('1. Order'!B1080=\"\",\"\",'1. Order'!B1080)","v":""},{"$f":"IF('1. Order'!J1080=\"\",\"\",'1. Order'!J1080)","v":""},{"$f":"IF('1. Order'!K1080=\"\",\"\",'1. Order'!K1080)","v":""},{"$f":"IF('1. Order'!L1080=\"\",\"\",'1. Order'!L1080)","v":""},{"$f":"IF('1. Order'!N1080=\"\",\"\",'1. Order'!N1080)","v":""},null,null,{"$f":"IF('1. Order'!AV1080=\"\",\"\",'1. Order'!AV1080)","v":""},{"$f":"IF('1. Order'!AI1080=\"\",\"\",'1. Order'!AI1080)","v":""}]
[{"$f":"IF('1. Order'!B1081=\"\",\"\",'1. Order'!B1081)","v":""},{"$f":"IF('1. Order'!J1081=\"\",\"\",'1. Order'!J1081)","v":""},{"$f":"IF('1. Order'!K1081=\"\",\"\",'1. Order'!K1081)","v":""},{"$f":"IF('1. Order'!L1081=\"\",\"\",'1. Order'!L1081)","v":""},{"$f":"IF('1. Order'!N1081=\"\",\"\",'1. Order'!N1081)","v":""},null,null,{"$f":"IF('1. Order'!AV1081=\"\",\"\",'1. Order'!AV1081)","v":""},{"$f":"IF('1. Order'!AI1081=\"\",\"\",'1. Order'!AI1081)","v":""}]
[{"$f":"IF('1. Order'!B1082=\"\",\"\",'1. Order'!B1082)","v":""},{"$f":"IF('1. Order'!J1082=\"\",\"\",'1. Order'!J1082)","v":""},{"$f":"IF('1. Order'!K1082=\"\",\"\",'1. Order'!K1082)","v":""},{"$f":"IF('1. Order'!L1082=\"\",\"\",'1. Order'!L1082)","v":""},{"$f":"IF('1. Order'!N1082=\"\",\"\",'1. Order'!N1082)","v":""},null,null,{"$f":"IF('1. Order'!AV1082=\"\",\"\",'1. Order'!AV1082)","v":""},{"$f":"IF('1. Order'!AI1082=\"\",\"\",'1. Order'!AI1082)","v":""}]
[{"$f":"IF('1. Order'!B1083=\"\",\"\",'1. Order'!B1083)","v":""},{"$f":"IF('1. Order'!J1083=\"\",\"\",'1. Order'!J1083)","v":""},{"$f":"IF('1. Order'!K1083=\"\",\"\",'1. Order'!K1083)","v":""},{"$f":"IF('1. Order'!L1083=\"\",\"\",'1. Order'!L1083)","v":""},{"$f":"IF('1. Order'!N1083=\"\",\"\",'1. Order'!N1083)","v":""},null,null,{"$f":"IF('1. Order'!AV1083=\"\",\"\",'1. Order'!AV1083)","v":""},{"$f":"IF('1. Order'!AI1083=\"\",\"\",'1. Order'!AI1083)","v":""}]
[{"$f":"IF('1. Order'!B1084=\"\",\"\",'1. Order'!B1084)","v":""},{"$f":"IF('1. Order'!J1084=\"\",\"\",'1. Order'!J1084)","v":""},{"$f":"IF('1. Order'!K1084=\"\",\"\",'1. Order'!K1084)","v":""},{"$f":"IF('1. Order'!L1084=\"\",\"\",'1. Order'!L1084)","v":""},{"$f":"IF('1. Order'!N1084=\"\",\"\",'1. Order'!N1084)","v":""},null,null,{"$f":"IF('1. Order'!AV1084=\"\",\"\",'1. Order'!AV1084)","v":""},{"$f":"IF('1. Order'!AI1084=\"\",\"\",'1. Order'!AI1084)","v":""}]
[{"$f":"IF('1. Order'!B1085=\"\",\"\",'1. Order'!B1085)","v":""},{"$f":"IF('1. Order'!J1085=\"\",\"\",'1. Order'!J1085)","v":""},{"$f":"IF('1. Order'!K1085=\"\",\"\",'1. Order'!K1085)","v":""},{"$f":"IF('1. Order'!L1085=\"\",\"\",'1. Order'!L1085)","v":""},{"$f":"IF('1. Order'!N1085=\"\",\"\",'1. Order'!N1085)","v":""},null,null,{"$f":"IF('1. Order'!AV1085=\"\",\"\",'1. Order'!AV1085)","v":""},{"$f":"IF('1. Order'!AI1085=\"\",\"\",'1. Order'!AI1085)","v":""}]
[{"$f":"IF('1. Order'!B1086=\"\",\"\",'1. Order'!B1086)","v":""},{"$f":"IF('1. Order'!J1086=\"\",\"\",'1. Order'!J1086)","v":""},{"$f":"IF('1. Order'!K1086=\"\",\"\",'1. Order'!K1086)","v":""},{"$f":"IF('1. Order'!L1086=\"\",\"\",'1. Order'!L1086)","v":""},{"$f":"IF('1. Order'!N1086=\"\",\"\",'1. Order'!N1086)","v":""},null,null,{"$f":"IF('1. Order'!AV1086=\"\",\"\",'1. Order'!AV1086)","v":""},{"$f":"IF('1. Order'!AI1086=\"\",\"\",'1. Order'!AI1086)","v":""}]
[{"$f":"IF('1. Order'!B1087=\"\",\"\",'1. Order'!B1087)","v":""},{"$f":"IF('1. Order'!J1087=\"\",\"\",'1. Order'!J1087)","v":""},{"$f":"IF('1. Order'!K1087=\"\",\"\",'1. Order'!K1087)","v":""},{"$f":"IF('1. Order'!L1087=\"\",\"\",'1. Order'!L1087)","v":""},{"$f":"IF('1. Order'!N1087=\"\",\"\",'1. Order'!N1087)","v":""},null,null,{"$f":"IF('1. Order'!AV1087=\"\",\"\",'1. Order'!AV1087)","v":""},{"$f":"IF('1. Order'!AI1087=\"\",\"\",'1. Order'!AI1087)","v":""}]
[{"$f":"IF('1. Order'!B1088=\"\",\"\",'1. Order'!B1088)","v":""},{"$f":"IF('1. Order'!J1088=\"\",\"\",'1. Order'!J1088)","v":""},{"$f":"IF('1. Order'!K1088=\"\",\"\",'1. Order'!K1088)","v":""},{"$f":"IF('1. Order'!L1088=\"\",\"\",'1. Order'!L1088)","v":""},{"$f":"IF('1. Order'!N1088=\"\",\"\",'1. Order'!N1088)","v":""},null,null,{"$f":"IF('1. Order'!AV1088=\"\",\"\",'1. Order'!AV1088)","v":""},{"$f":"IF('1. Order'!AI1088=\"\",\"\",'1. Order'!AI1088)","v":""}]
[{"$f":"IF('1. Order'!B1089=\"\",\"\",'1. Order'!B1089)","v":""},{"$f":"IF('1. Order'!J1089=\"\",\"\",'1. Order'!J1089)","v":""},{"$f":"IF('1. Order'!K1089=\"\",\"\",'1. Order'!K1089)","v":""},{"$f":"IF('1. Order'!L1089=\"\",\"\",'1. Order'!L1089)","v":""},{"$f":"IF('1. Order'!N1089=\"\",\"\",'1. Order'!N1089)","v":""},null,null,{"$f":"IF('1. Order'!AV1089=\"\",\"\",'1. Order'!AV1089)","v":""},{"$f":"IF('1. Order'!AI1089=\"\",\"\",'1. Order'!AI1089)","v":""}]
[{"$f":"IF('1. Order'!B1090=\"\",\"\",'1. Order'!B1090)","v":""},{"$f":"IF('1. Order'!J1090=\"\",\"\",'1. Order'!J1090)","v":""},{"$f":"IF('1. Order'!K1090=\"\",\"\",'1. Order'!K1090)","v":""},{"$f":"IF('1. Order'!L1090=\"\",\"\",'1. Order'!L1090)","v":""},{"$f":"IF('1. Order'!N1090=\"\",\"\",'1. Order'!N1090)","v":""},null,null,{"$f":"IF('1. Order'!AV1090=\"\",\"\",'1. Order'!AV1090)","v":""},{"$f":"IF('1. Order'!AI1090=\"\",\"\",'1. Order'!AI1090)","v":""}]
[{"$f":"IF('1. Order'!B1091=\"\",\"\",'1. Order'!B1091)","v":""},{"$f":"IF('1. Order'!J1091=\"\",\"\",'1. Order'!J1091)","v":""},{"$f":"IF('1. Order'!K1091=\"\",\"\",'1. Order'!K1091)","v":""},{"$f":"IF('1. Order'!L1091=\"\",\"\",'1. Order'!L1091)","v":""},{"$f":"IF('1. Order'!N1091=\"\",\"\",'1. Order'!N1091)","v":""},null,null,{"$f":"IF('1. Order'!AV1091=\"\",\"\",'1. Order'!AV1091)","v":""},{"$f":"IF('1. Order'!AI1091=\"\",\"\",'1. Order'!AI1091)","v":""}]
[{"$f":"IF('1. Order'!B1092=\"\",\"\",'1. Order'!B1092)","v":""},{"$f":"IF('1. Order'!J1092=\"\",\"\",'1. Order'!J1092)","v":""},{"$f":"IF('1. Order'!K1092=\"\",\"\",'1. Order'!K1092)","v":""},{"$f":"IF('1. Order'!L1092=\"\",\"\",'1. Order'!L1092)","v":""},{"$f":"IF('1. Order'!N1092=\"\",\"\",'1. Order'!N1092)","v":""},null,null,{"$f":"IF('1. Order'!AV1092=\"\",\"\",'1. Order'!AV1092)","v":""},{"$f":"IF('1. Order'!AI1092=\"\",\"\",'1. Order'!AI1092)","v":""}]
[{"$f":"IF('1. Order'!B1093=\"\",\"\",'1. Order'!B1093)","v":""},{"$f":"IF('1. Order'!J1093=\"\",\"\",'1. Order'!J1093)","v":""},{"$f":"IF('1. Order'!K1093=\"\",\"\",'1. Order'!K1093)","v":""},{"$f":"IF('1. Order'!L1093=\"\",\"\",'1. Order'!L1093)","v":""},{"$f":"IF('1. Order'!N1093=\"\",\"\",'1. Order'!N1093)","v":""},null,null,{"$f":"IF('1. Order'!AV1093=\"\",\"\",'1. Order'!AV1093)","v":""},{"$f":"IF('1. Order'!AI1093=\"\",\"\",'1. Order'!AI1093)","v":""}]
[{"$f":"IF('1. Order'!B1094=\"\",\"\",'1. Order'!B1094)","v":""},{"$f":"IF('1. Order'!J1094=\"\",\"\",'1. Order'!J1094)","v":""},{"$f":"IF('1. Order'!K1094=\"\",\"\",'1. Order'!K1094)","v":""},{"$f":"IF('1. Order'!L1094=\"\",\"\",'1. Order'!L1094)","v":""},{"$f":"IF('1. Order'!N1094=\"\",\"\",'1. Order'!N1094)","v":""},null,null,{"$f":"IF('1. Order'!AV1094=\"\",\"\",'1. Order'!AV1094)","v":""},{"$f":"IF('1. Order'!AI1094=\"\",\"\",'1. Order'!AI1094)","v":""}]
[{"$f":"IF('1. Order'!B1095=\"\",\"\",'1. Order'!B1095)","v":""},{"$f":"IF('1. Order'!J1095=\"\",\"\",'1. Order'!J1095)","v":""},{"$f":"IF('1. Order'!K1095=\"\",\"\",'1. Order'!K1095)","v":""},{"$f":"IF('1. Order'!L1095=\"\",\"\",'1. Order'!L1095)","v":""},{"$f":"IF('1. Order'!N1095=\"\",\"\",'1. Order'!N1095)","v":""},null,null,{"$f":"IF('1. Order'!AV1095=\"\",\"\",'1. Order'!AV1095)","v":""},{"$f":"IF('1. Order'!AI1095=\"\",\"\",'1. Order'!AI1095)","v":""}]
[{"$f":"IF('1. Order'!B1096=\"\",\"\",'1. Order'!B1096)","v":""},{"$f":"IF('1. Order'!J1096=\"\",\"\",'1. Order'!J1096)","v":""},{"$f":"IF('1. Order'!K1096=\"\",\"\",'1. Order'!K1096)","v":""},{"$f":"IF('1. Order'!L1096=\"\",\"\",'1. Order'!L1096)","v":""},{"$f":"IF('1. Order'!N1096=\"\",\"\",'1. Order'!N1096)","v":""},null,null,{"$f":"IF('1. Order'!AV1096=\"\",\"\",'1. Order'!AV1096)","v":""},{"$f":"IF('1. Order'!AI1096=\"\",\"\",'1. Order'!AI1096)","v":""}]
[{"$f":"IF('1. Order'!B1097=\"\",\"\",'1. Order'!B1097)","v":""},{"$f":"IF('1. Order'!J1097=\"\",\"\",'1. Order'!J1097)","v":""},{"$f":"IF('1. Order'!K1097=\"\",\"\",'1. Order'!K1097)","v":""},{"$f":"IF('1. Order'!L1097=\"\",\"\",'1. Order'!L1097)","v":""},{"$f":"IF('1. Order'!N1097=\"\",\"\",'1. Order'!N1097)","v":""},null,null,{"$f":"IF('1. Order'!AV1097=\"\",\"\",'1. Order'!AV1097)","v":""},{"$f":"IF('1. Order'!AI1097=\"\",\"\",'1. Order'!AI1097)","v":""}]
[{"$f":"IF('1. Order'!B1098=\"\",\"\",'1. Order'!B1098)","v":""},{"$f":"IF('1. Order'!J1098=\"\",\"\",'1. Order'!J1098)","v":""},{"$f":"IF('1. Order'!K1098=\"\",\"\",'1. Order'!K1098)","v":""},{"$f":"IF('1. Order'!L1098=\"\",\"\",'1. Order'!L1098)","v":""},{"$f":"IF('1. Order'!N1098=\"\",\"\",'1. Order'!N1098)","v":""},null,null,{"$f":"IF('1. Order'!AV1098=\"\",\"\",'1. Order'!AV1098)","v":""},{"$f":"IF('1. Order'!AI1098=\"\",\"\",'1. Order'!AI1098)","v":""}]
[{"$f":"IF('1. Order'!B1099=\"\",\"\",'1. Order'!B1099)","v":""},{"$f":"IF('1. Order'!J1099=\"\",\"\",'1. Order'!J1099)","v":""},{"$f":"IF('1. Order'!K1099=\"\",\"\",'1. Order'!K1099)","v":""},{"$f":"IF('1. Order'!L1099=\"\",\"\",'1. Order'!L1099)","v":""},{"$f":"IF('1. Order'!N1099=\"\",\"\",'1. Order'!N1099)","v":""},null,null,{"$f":"IF('1. Order'!AV1099=\"\",\"\",'1. Order'!AV1099)","v":""},{"$f":"IF('1. Order'!AI1099=\"\",\"\",'1. Order'!AI1099)","v":""}]
[{"$f":"IF('1. Order'!B1100=\"\",\"\",'1. Order'!B1100)","v":""},{"$f":"IF('1. Order'!J1100=\"\",\"\",'1. Order'!J1100)","v":""},{"$f":"IF('1. Order'!K1100=\"\",\"\",'1. Order'!K1100)","v":""},{"$f":"IF('1. Order'!L1100=\"\",\"\",'1. Order'!L1100)","v":""},{"$f":"IF('1. Order'!N1100=\"\",\"\",'1. Order'!N1100)","v":""},null,null,{"$f":"IF('1. Order'!AV1100=\"\",\"\",'1. Order'!AV1100)","v":""},{"$f":"IF('1. Order'!AI1100=\"\",\"\",'1. Order'!AI1100)","v":""}]
[{"$f":"IF('1. Order'!B1101=\"\",\"\",'1. Order'!B1101)","v":""},{"$f":"IF('1. Order'!J1101=\"\",\"\",'1. Order'!J1101)","v":""},{"$f":"IF('1. Order'!K1101=\"\",\"\",'1. Order'!K1101)","v":""},{"$f":"IF('1. Order'!L1101=\"\",\"\",'1. Order'!L1101)","v":""},{"$f":"IF('1. Order'!N1101=\"\",\"\",'1. Order'!N1101)","v":""},null,null,{"$f":"IF('1. Order'!AV1101=\"\",\"\",'1. Order'!AV1101)","v":""},{"$f":"IF('1. Order'!AI1101=\"\",\"\",'1. Order'!AI1101)","v":""}]
[{"$f":"IF('1. Order'!B1102=\"\",\"\",'1. Order'!B1102)","v":""},{"$f":"IF('1. Order'!J1102=\"\",\"\",'1. Order'!J1102)","v":""},{"$f":"IF('1. Order'!K1102=\"\",\"\",'1. Order'!K1102)","v":""},{"$f":"IF('1. Order'!L1102=\"\",\"\",'1. Order'!L1102)","v":""},{"$f":"IF('1. Order'!N1102=\"\",\"\",'1. Order'!N1102)","v":""},null,null,{"$f":"IF('1. Order'!AV1102=\"\",\"\",'1. Order'!AV1102)","v":""},{"$f":"IF('1. Order'!AI1102=\"\",\"\",'1. Order'!AI1102)","v":""}]
[{"$f":"IF('1. Order'!B1103=\"\",\"\",'1. Order'!B1103)","v":""},{"$f":"IF('1. Order'!J1103=\"\",\"\",'1. Order'!J1103)","v":""},{"$f":"IF('1. Order'!K1103=\"\",\"\",'1. Order'!K1103)","v":""},{"$f":"IF('1. Order'!L1103=\"\",\"\",'1. Order'!L1103)","v":""},{"$f":"IF('1. Order'!N1103=\"\",\"\",'1. Order'!N1103)","v":""},null,null,{"$f":"IF('1. Order'!AV1103=\"\",\"\",'1. Order'!AV1103)","v":""},{"$f":"IF('1. Order'!AI1103=\"\",\"\",'1. Order'!AI1103)","v":""}]
[{"$f":"IF('1. Order'!B1104=\"\",\"\",'1. Order'!B1104)","v":""},{"$f":"IF('1. Order'!J1104=\"\",\"\",'1. Order'!J1104)","v":""},{"$f":"IF('1. Order'!K1104=\"\",\"\",'1. Order'!K1104)","v":""},{"$f":"IF('1. Order'!L1104=\"\",\"\",'1. Order'!L1104)","v":""},{"$f":"IF('1. Order'!N1104=\"\",\"\",'1. Order'!N1104)","v":""},null,null,{"$f":"IF('1. Order'!AV1104=\"\",\"\",'1. Order'!AV1104)","v":""},{"$f":"IF('1. Order'!AI1104=\"\",\"\",'1. Order'!AI1104)","v":""}]
[{"$f":"IF('1. Order'!B1105=\"\",\"\",'1. Order'!B1105)","v":""},{"$f":"IF('1. Order'!J1105=\"\",\"\",'1. Order'!J1105)","v":""},{"$f":"IF('1. Order'!K1105=\"\",\"\",'1. Order'!K1105)","v":""},{"$f":"IF('1. Order'!L1105=\"\",\"\",'1. Order'!L1105)","v":""},{"$f":"IF('1. Order'!N1105=\"\",\"\",'1. Order'!N1105)","v":""},null,null,{"$f":"IF('1. Order'!AV1105=\"\",\"\",'1. Order'!AV1105)","v":""},{"$f":"IF('1. Order'!AI1105=\"\",\"\",'1. Order'!AI1105)","v":""}]
[{"$f":"IF('1. Order'!B1106=\"\",\"\",'1. Order'!B1106)","v":""},{"$f":"IF('1. Order'!J1106=\"\",\"\",'1. Order'!J1106)","v":""},{"$f":"IF('1. Order'!K1106=\"\",\"\",'1. Order'!K1106)","v":""},{"$f":"IF('1. Order'!L1106=\"\",\"\",'1. Order'!L1106)","v":""},{"$f":"IF('1. Order'!N1106=\"\",\"\",'1. Order'!N1106)","v":""},null,null,{"$f":"IF('1. Order'!AV1106=\"\",\"\",'1. Order'!AV1106)","v":""},{"$f":"IF('1. Order'!AI1106=\"\",\"\",'1. Order'!AI1106)","v":""}]
[{"$f":"IF('1. Order'!B1107=\"\",\"\",'1. Order'!B1107)","v":""},{"$f":"IF('1. Order'!J1107=\"\",\"\",'1. Order'!J1107)","v":""},{"$f":"IF('1. Order'!K1107=\"\",\"\",'1. Order'!K1107)","v":""},{"$f":"IF('1. Order'!L1107=\"\",\"\",'1. Order'!L1107)","v":""},{"$f":"IF('1. Order'!N1107=\"\",\"\",'1. Order'!N1107)","v":""},null,null,{"$f":"IF('1. Order'!AV1107=\"\",\"\",'1. Order'!AV1107)","v":""},{"$f":"IF('1. Order'!AI1107=\"\",\"\",'1. Order'!AI1107)","v":""}]
[{"$f":"IF('1. Order'!B1108=\"\",\"\",'1. Order'!B1108)","v":""},{"$f":"IF('1. Order'!J1108=\"\",\"\",'1. Order'!J1108)","v":""},{"$f":"IF('1. Order'!K1108=\"\",\"\",'1. Order'!K1108)","v":""},{"$f":"IF('1. Order'!L1108=\"\",\"\",'1. Order'!L1108)","v":""},{"$f":"IF('1. Order'!N1108=\"\",\"\",'1. Order'!N1108)","v":""},null,null,{"$f":"IF('1. Order'!AV1108=\"\",\"\",'1. Order'!AV1108)","v":""},{"$f":"IF('1. Order'!AI1108=\"\",\"\",'1. Order'!AI1108)","v":""}]
[{"$f":"IF('1. Order'!B1109=\"\",\"\",'1. Order'!B1109)","v":""},{"$f":"IF('1. Order'!J1109=\"\",\"\",'1. Order'!J1109)","v":""},{"$f":"IF('1. Order'!K1109=\"\",\"\",'1. Order'!K1109)","v":""},{"$f":"IF('1. Order'!L1109=\"\",\"\",'1. Order'!L1109)","v":""},{"$f":"IF('1. Order'!N1109=\"\",\"\",'1. Order'!N1109)","v":""},null,null,{"$f":"IF('1. Order'!AV1109=\"\",\"\",'1. Order'!AV1109)","v":""},{"$f":"IF('1. Order'!AI1109=\"\",\"\",'1. Order'!AI1109)","v":""}]
[{"$f":"IF('1. Order'!B1110=\"\",\"\",'1. Order'!B1110)","v":""},{"$f":"IF('1. Order'!J1110=\"\",\"\",'1. Order'!J1110)","v":""},{"$f":"IF('1. Order'!K1110=\"\",\"\",'1. Order'!K1110)","v":""},{"$f":"IF('1. Order'!L1110=\"\",\"\",'1. Order'!L1110)","v":""},{"$f":"IF('1. Order'!N1110=\"\",\"\",'1. Order'!N1110)","v":""},null,null,{"$f":"IF('1. Order'!AV1110=\"\",\"\",'1. Order'!AV1110)","v":""},{"$f":"IF('1. Order'!AI1110=\"\",\"\",'1. Order'!AI1110)","v":""}]
[{"$f":"IF('1. Order'!B1111=\"\",\"\",'1. Order'!B1111)","v":""},{"$f":"IF('1. Order'!J1111=\"\",\"\",'1. Order'!J1111)","v":""},{"$f":"IF('1. Order'!K1111=\"\",\"\",'1. Order'!K1111)","v":""},{"$f":"IF('1. Order'!L1111=\"\",\"\",'1. Order'!L1111)","v":""},{"$f":"IF('1. Order'!N1111=\"\",\"\",'1. Order'!N1111)","v":""},null,null,{"$f":"IF('1. Order'!AV1111=\"\",\"\",'1. Order'!AV1111)","v":""},{"$f":"IF('1. Order'!AI1111=\"\",\"\",'1. Order'!AI1111)","v":""}]
[{"$f":"IF('1. Order'!B1112=\"\",\"\",'1. Order'!B1112)","v":""},{"$f":"IF('1. Order'!J1112=\"\",\"\",'1. Order'!J1112)","v":""},{"$f":"IF('1. Order'!K1112=\"\",\"\",'1. Order'!K1112)","v":""},{"$f":"IF('1. Order'!L1112=\"\",\"\",'1. Order'!L1112)","v":""},{"$f":"IF('1. Order'!N1112=\"\",\"\",'1. Order'!N1112)","v":""},null,null,{"$f":"IF('1. Order'!AV1112=\"\",\"\",'1. Order'!AV1112)","v":""},{"$f":"IF('1. Order'!AI1112=\"\",\"\",'1. Order'!AI1112)","v":""}]
[{"$f":"IF('1. Order'!B1113=\"\",\"\",'1. Order'!B1113)","v":""},{"$f":"IF('1. Order'!J1113=\"\",\"\",'1. Order'!J1113)","v":""},{"$f":"IF('1. Order'!K1113=\"\",\"\",'1. Order'!K1113)","v":""},{"$f":"IF('1. Order'!L1113=\"\",\"\",'1. Order'!L1113)","v":""},{"$f":"IF('1. Order'!N1113=\"\",\"\",'1. Order'!N1113)","v":""},null,null,{"$f":"IF('1. Order'!AV1113=\"\",\"\",'1. Order'!AV1113)","v":""},{"$f":"IF('1. Order'!AI1113=\"\",\"\",'1. Order'!AI1113)","v":""}]
[{"$f":"IF('1. Order'!B1114=\"\",\"\",'1. Order'!B1114)","v":""},{"$f":"IF('1. Order'!J1114=\"\",\"\",'1. Order'!J1114)","v":""},{"$f":"IF('1. Order'!K1114=\"\",\"\",'1. Order'!K1114)","v":""},{"$f":"IF('1. Order'!L1114=\"\",\"\",'1. Order'!L1114)","v":""},{"$f":"IF('1. Order'!N1114=\"\",\"\",'1. Order'!N1114)","v":""},null,null,{"$f":"IF('1. Order'!AV1114=\"\",\"\",'1. Order'!AV1114)","v":""},{"$f":"IF('1. Order'!AI1114=\"\",\"\",'1. Order'!AI1114)","v":""}]
[{"$f":"IF('1. Order'!B1115=\"\",\"\",'1. Order'!B1115)","v":""},{"$f":"IF('1. Order'!J1115=\"\",\"\",'1. Order'!J1115)","v":""},{"$f":"IF('1. Order'!K1115=\"\",\"\",'1. Order'!K1115)","v":""},{"$f":"IF('1. Order'!L1115=\"\",\"\",'1. Order'!L1115)","v":""},{"$f":"IF('1. Order'!N1115=\"\",\"\",'1. Order'!N1115)","v":""},null,null,{"$f":"IF('1. Order'!AV1115=\"\",\"\",'1. Order'!AV1115)","v":""},{"$f":"IF('1. Order'!AI1115=\"\",\"\",'1. Order'!AI1115)","v":""}]
[{"$f":"IF('1. Order'!B1116=\"\",\"\",'1. Order'!B1116)","v":""},{"$f":"IF('1. Order'!J1116=\"\",\"\",'1. Order'!J1116)","v":""},{"$f":"IF('1. Order'!K1116=\"\",\"\",'1. Order'!K1116)","v":""},{"$f":"IF('1. Order'!L1116=\"\",\"\",'1. Order'!L1116)","v":""},{"$f":"IF('1. Order'!N1116=\"\",\"\",'1. Order'!N1116)","v":""},null,null,{"$f":"IF('1. Order'!AV1116=\"\",\"\",'1. Order'!AV1116)","v":""},{"$f":"IF('1. Order'!AI1116=\"\",\"\",'1. Order'!AI1116)","v":""}]
[{"$f":"IF('1. Order'!B1117=\"\",\"\",'1. Order'!B1117)","v":""},{"$f":"IF('1. Order'!J1117=\"\",\"\",'1. Order'!J1117)","v":""},{"$f":"IF('1. Order'!K1117=\"\",\"\",'1. Order'!K1117)","v":""},{"$f":"IF('1. Order'!L1117=\"\",\"\",'1. Order'!L1117)","v":""},{"$f":"IF('1. Order'!N1117=\"\",\"\",'1. Order'!N1117)","v":""},null,null,{"$f":"IF('1. Order'!AV1117=\"\",\"\",'1. Order'!AV1117)","v":""},{"$f":"IF('1. Order'!AI1117=\"\",\"\",'1. Order'!AI1117)","v":""}]
[{"$f":"IF('1. Order'!B1118=\"\",\"\",'1. Order'!B1118)","v":""},{"$f":"IF('1. Order'!J1118=\"\",\"\",'1. Order'!J1118)","v":""},{"$f":"IF('1. Order'!K1118=\"\",\"\",'1. Order'!K1118)","v":""},{"$f":"IF('1. Order'!L1118=\"\",\"\",'1. Order'!L1118)","v":""},{"$f":"IF('1. Order'!N1118=\"\",\"\",'1. Order'!N1118)","v":""},null,null,{"$f":"IF('1. Order'!AV1118=\"\",\"\",'1. Order'!AV1118)","v":""},{"$f":"IF('1. Order'!AI1118=\"\",\"\",'1. Order'!AI1118)","v":""}]
[{"$f":"IF('1. Order'!B1119=\"\",\"\",'1. Order'!B1119)","v":""},{"$f":"IF('1. Order'!J1119=\"\",\"\",'1. Order'!J1119)","v":""},{"$f":"IF('1. Order'!K1119=\"\",\"\",'1. Order'!K1119)","v":""},{"$f":"IF('1. Order'!L1119=\"\",\"\",'1. Order'!L1119)","v":""},{"$f":"IF('1. Order'!N1119=\"\",\"\",'1. Order'!N1119)","v":""},null,null,{"$f":"IF('1. Order'!AV1119=\"\",\"\",'1. Order'!AV1119)","v":""},{"$f":"IF('1. Order'!AI1119=\"\",\"\",'1. Order'!AI1119)","v":""}]
[{"$f":"IF('1. Order'!B1120=\"\",\"\",'1. Order'!B1120)","v":""},{"$f":"IF('1. Order'!J1120=\"\",\"\",'1. Order'!J1120)","v":""},{"$f":"IF('1. Order'!K1120=\"\",\"\",'1. Order'!K1120)","v":""},{"$f":"IF('1. Order'!L1120=\"\",\"\",'1. Order'!L1120)","v":""},{"$f":"IF('1. Order'!N1120=\"\",\"\",'1. Order'!N1120)","v":""},null,null,{"$f":"IF('1. Order'!AV1120=\"\",\"\",'1. Order'!AV1120)","v":""},{"$f":"IF('1. Order'!AI1120=\"\",\"\",'1. Order'!AI1120)","v":""}]
[{"$f":"IF('1. Order'!B1121=\"\",\"\",'1. Order'!B1121)","v":""},{"$f":"IF('1. Order'!J1121=\"\",\"\",'1. Order'!J1121)","v":""},{"$f":"IF('1. Order'!K1121=\"\",\"\",'1. Order'!K1121)","v":""},{"$f":"IF('1. Order'!L1121=\"\",\"\",'1. Order'!L1121)","v":""},{"$f":"IF('1. Order'!N1121=\"\",\"\",'1. Order'!N1121)","v":""},null,null,{"$f":"IF('1. Order'!AV1121=\"\",\"\",'1. Order'!AV1121)","v":""},{"$f":"IF('1. Order'!AI1121=\"\",\"\",'1. Order'!AI1121)","v":""}]
[{"$f":"IF('1. Order'!B1122=\"\",\"\",'1. Order'!B1122)","v":""},{"$f":"IF('1. Order'!J1122=\"\",\"\",'1. Order'!J1122)","v":""},{"$f":"IF('1. Order'!K1122=\"\",\"\",'1. Order'!K1122)","v":""},{"$f":"IF('1. Order'!L1122=\"\",\"\",'1. Order'!L1122)","v":""},{"$f":"IF('1. Order'!N1122=\"\",\"\",'1. Order'!N1122)","v":""},null,null,{"$f":"IF('1. Order'!AV1122=\"\",\"\",'1. Order'!AV1122)","v":""},{"$f":"IF('1. Order'!AI1122=\"\",\"\",'1. Order'!AI1122)","v":""}]
[{"$f":"IF('1. Order'!B1123=\"\",\"\",'1. Order'!B1123)","v":""},{"$f":"IF('1. Order'!J1123=\"\",\"\",'1. Order'!J1123)","v":""},{"$f":"IF('1. Order'!K1123=\"\",\"\",'1. Order'!K1123)","v":""},{"$f":"IF('1. Order'!L1123=\"\",\"\",'1. Order'!L1123)","v":""},{"$f":"IF('1. Order'!N1123=\"\",\"\",'1. Order'!N1123)","v":""},null,null,{"$f":"IF('1. Order'!AV1123=\"\",\"\",'1. Order'!AV1123)","v":""},{"$f":"IF('1. Order'!AI1123=\"\",\"\",'1. Order'!AI1123)","v":""}]
[{"$f":"IF('1. Order'!B1124=\"\",\"\",'1. Order'!B1124)","v":""},{"$f":"IF('1. Order'!J1124=\"\",\"\",'1. Order'!J1124)","v":""},{"$f":"IF('1. Order'!K1124=\"\",\"\",'1. Order'!K1124)","v":""},{"$f":"IF('1. Order'!L1124=\"\",\"\",'1. Order'!L1124)","v":""},{"$f":"IF('1. Order'!N1124=\"\",\"\",'1. Order'!N1124)","v":""},null,null,{"$f":"IF('1. Order'!AV1124=\"\",\"\",'1. Order'!AV1124)","v":""},{"$f":"IF('1. Order'!AI1124=\"\",\"\",'1. Order'!AI1124)","v":""}]
[{"$f":"IF('1. Order'!B1125=\"\",\"\",'1. Order'!B1125)","v":""},{"$f":"IF('1. Order'!J1125=\"\",\"\",'1. Order'!J1125)","v":""},{"$f":"IF('1. Order'!K1125=\"\",\"\",'1. Order'!K1125)","v":""},{"$f":"IF('1. Order'!L1125=\"\",\"\",'1. Order'!L1125)","v":""},{"$f":"IF('1. Order'!N1125=\"\",\"\",'1. Order'!N1125)","v":""},null,null,{"$f":"IF('1. Order'!AV1125=\"\",\"\",'1. Order'!AV1125)","v":""},{"$f":"IF('1. Order'!AI1125=\"\",\"\",'1. Order'!AI1125)","v":""}]
[{"$f":"IF('1. Order'!B1126=\"\",\"\",'1. Order'!B1126)","v":""},{"$f":"IF('1. Order'!J1126=\"\",\"\",'1. Order'!J1126)","v":""},{"$f":"IF('1. Order'!K1126=\"\",\"\",'1. Order'!K1126)","v":""},{"$f":"IF('1. Order'!L1126=\"\",\"\",'1. Order'!L1126)","v":""},{"$f":"IF('1. Order'!N1126=\"\",\"\",'1. Order'!N1126)","v":""},null,null,{"$f":"IF('1. Order'!AV1126=\"\",\"\",'1. Order'!AV1126)","v":""},{"$f":"IF('1. Order'!AI1126=\"\",\"\",'1. Order'!AI1126)","v":""}]
[{"$f":"IF('1. Order'!B1127=\"\",\"\",'1. Order'!B1127)","v":""},{"$f":"IF('1. Order'!J1127=\"\",\"\",'1. Order'!J1127)","v":""},{"$f":"IF('1. Order'!K1127=\"\",\"\",'1. Order'!K1127)","v":""},{"$f":"IF('1. Order'!L1127=\"\",\"\",'1. Order'!L1127)","v":""},{"$f":"IF('1. Order'!N1127=\"\",\"\",'1. Order'!N1127)","v":""},null,null,{"$f":"IF('1. Order'!AV1127=\"\",\"\",'1. Order'!AV1127)","v":""},{"$f":"IF('1. Order'!AI1127=\"\",\"\",'1. Order'!AI1127)","v":""}]
[{"$f":"IF('1. Order'!B1128=\"\",\"\",'1. Order'!B1128)","v":""},{"$f":"IF('1. Order'!J1128=\"\",\"\",'1. Order'!J1128)","v":""},{"$f":"IF('1. Order'!K1128=\"\",\"\",'1. Order'!K1128)","v":""},{"$f":"IF('1. Order'!L1128=\"\",\"\",'1. Order'!L1128)","v":""},{"$f":"IF('1. Order'!N1128=\"\",\"\",'1. Order'!N1128)","v":""},null,null,{"$f":"IF('1. Order'!AV1128=\"\",\"\",'1. Order'!AV1128)","v":""},{"$f":"IF('1. Order'!AI1128=\"\",\"\",'1. Order'!AI1128)","v":""}]
[{"$f":"IF('1. Order'!B1129=\"\",\"\",'1. Order'!B1129)","v":""},{"$f":"IF('1. Order'!J1129=\"\",\"\",'1. Order'!J1129)","v":""},{"$f":"IF('1. Order'!K1129=\"\",\"\",'1. Order'!K1129)","v":""},{"$f":"IF('1. Order'!L1129=\"\",\"\",'1. Order'!L1129)","v":""},{"$f":"IF('1. Order'!N1129=\"\",\"\",'1. Order'!N1129)","v":""},null,null,{"$f":"IF('1. Order'!AV1129=\"\",\"\",'1. Order'!AV1129)","v":""},{"$f":"IF('1. Order'!AI1129=\"\",\"\",'1. Order'!AI1129)","v":""}]
[{"$f":"IF('1. Order'!B1130=\"\",\"\",'1. Order'!B1130)","v":""},{"$f":"IF('1. Order'!J1130=\"\",\"\",'1. Order'!J1130)","v":""},{"$f":"IF('1. Order'!K1130=\"\",\"\",'1. Order'!K1130)","v":""},{"$f":"IF('1. Order'!L1130=\"\",\"\",'1. Order'!L1130)","v":""},{"$f":"IF('1. Order'!N1130=\"\",\"\",'1. Order'!N1130)","v":""},null,null,{"$f":"IF('1. Order'!AV1130=\"\",\"\",'1. Order'!AV1130)","v":""},{"$f":"IF('1. Order'!AI1130=\"\",\"\",'1. Order'!AI1130)","v":""}]
[{"$f":"IF('1. Order'!B1131=\"\",\"\",'1. Order'!B1131)","v":""},{"$f":"IF('1. Order'!J1131=\"\",\"\",'1. Order'!J1131)","v":""},{"$f":"IF('1. Order'!K1131=\"\",\"\",'1. Order'!K1131)","v":""},{"$f":"IF('1. Order'!L1131=\"\",\"\",'1. Order'!L1131)","v":""},{"$f":"IF('1. Order'!N1131=\"\",\"\",'1. Order'!N1131)","v":""},null,null,{"$f":"IF('1. Order'!AV1131=\"\",\"\",'1. Order'!AV1131)","v":""},{"$f":"IF('1. Order'!AI1131=\"\",\"\",'1. Order'!AI1131)","v":""}]
[{"$f":"IF('1. Order'!B1132=\"\",\"\",'1. Order'!B1132)","v":""},{"$f":"IF('1. Order'!J1132=\"\",\"\",'1. Order'!J1132)","v":""},{"$f":"IF('1. Order'!K1132=\"\",\"\",'1. Order'!K1132)","v":""},{"$f":"IF('1. Order'!L1132=\"\",\"\",'1. Order'!L1132)","v":""},{"$f":"IF('1. Order'!N1132=\"\",\"\",'1. Order'!N1132)","v":""},null,null,{"$f":"IF('1. Order'!AV1132=\"\",\"\",'1. Order'!AV1132)","v":""},{"$f":"IF('1. Order'!AI1132=\"\",\"\",'1. Order'!AI1132)","v":""}]
[{"$f":"IF('1. Order'!B1133=\"\",\"\",'1. Order'!B1133)","v":""},{"$f":"IF('1. Order'!J1133=\"\",\"\",'1. Order'!J1133)","v":""},{"$f":"IF('1. Order'!K1133=\"\",\"\",'1. Order'!K1133)","v":""},{"$f":"IF('1. Order'!L1133=\"\",\"\",'1. Order'!L1133)","v":""},{"$f":"IF('1. Order'!N1133=\"\",\"\",'1. Order'!N1133)","v":""},null,null,{"$f":"IF('1. Order'!AV1133=\"\",\"\",'1. Order'!AV1133)","v":""},{"$f":"IF('1. Order'!AI1133=\"\",\"\",'1. Order'!AI1133)","v":""}]
[{"$f":"IF('1. Order'!B1134=\"\",\"\",'1. Order'!B1134)","v":""},{"$f":"IF('1. Order'!J1134=\"\",\"\",'1. Order'!J1134)","v":""},{"$f":"IF('1. Order'!K1134=\"\",\"\",'1. Order'!K1134)","v":""},{"$f":"IF('1. Order'!L1134=\"\",\"\",'1. Order'!L1134)","v":""},{"$f":"IF('1. Order'!N1134=\"\",\"\",'1. Order'!N1134)","v":""},null,null,{"$f":"IF('1. Order'!AV1134=\"\",\"\",'1. Order'!AV1134)","v":""},{"$f":"IF('1. Order'!AI1134=\"\",\"\",'1. Order'!AI1134)","v":""}]
[{"$f":"IF('1. Order'!B1135=\"\",\"\",'1. Order'!B1135)","v":""},{"$f":"IF('1. Order'!J1135=\"\",\"\",'1. Order'!J1135)","v":""},{"$f":"IF('1. Order'!K1135=\"\",\"\",'1. Order'!K1135)","v":""},{"$f":"IF('1. Order'!L1135=\"\",\"\",'1. Order'!L1135)","v":""},{"$f":"IF('1. Order'!N1135=\"\",\"\",'1. Order'!N1135)","v":""},null,null,{"$f":"IF('1. Order'!AV1135=\"\",\"\",'1. Order'!AV1135)","v":""},{"$f":"IF('1. Order'!AI1135=\"\",\"\",'1. Order'!AI1135)","v":""}]
[{"$f":"IF('1. Order'!B1136=\"\",\"\",'1. Order'!B1136)","v":""},{"$f":"IF('1. Order'!J1136=\"\",\"\",'1. Order'!J1136)","v":""},{"$f":"IF('1. Order'!K1136=\"\",\"\",'1. Order'!K1136)","v":""},{"$f":"IF('1. Order'!L1136=\"\",\"\",'1. Order'!L1136)","v":""},{"$f":"IF('1. Order'!N1136=\"\",\"\",'1. Order'!N1136)","v":""},null,null,{"$f":"IF('1. Order'!AV1136=\"\",\"\",'1. Order'!AV1136)","v":""},{"$f":"IF('1. Order'!AI1136=\"\",\"\",'1. Order'!AI1136)","v":""}]
[{"$f":"IF('1. Order'!B1137=\"\",\"\",'1. Order'!B1137)","v":""},{"$f":"IF('1. Order'!J1137=\"\",\"\",'1. Order'!J1137)","v":""},{"$f":"IF('1. Order'!K1137=\"\",\"\",'1. Order'!K1137)","v":""},{"$f":"IF('1. Order'!L1137=\"\",\"\",'1. Order'!L1137)","v":""},{"$f":"IF('1. Order'!N1137=\"\",\"\",'1. Order'!N1137)","v":""},null,null,{"$f":"IF('1. Order'!AV1137=\"\",\"\",'1. Order'!AV1137)","v":""},{"$f":"IF('1. Order'!AI1137=\"\",\"\",'1. Order'!AI1137)","v":""}]
[{"$f":"IF('1. Order'!B1138=\"\",\"\",'1. Order'!B1138)","v":""},{"$f":"IF('1. Order'!J1138=\"\",\"\",'1. Order'!J1138)","v":""},{"$f":"IF('1. Order'!K1138=\"\",\"\",'1. Order'!K1138)","v":""},{"$f":"IF('1. Order'!L1138=\"\",\"\",'1. Order'!L1138)","v":""},{"$f":"IF('1. Order'!N1138=\"\",\"\",'1. Order'!N1138)","v":""},null,null,{"$f":"IF('1. Order'!AV1138=\"\",\"\",'1. Order'!AV1138)","v":""},{"$f":"IF('1. Order'!AI1138=\"\",\"\",'1. Order'!AI1138)","v":""}]
[{"$f":"IF('1. Order'!B1139=\"\",\"\",'1. Order'!B1139)","v":""},{"$f":"IF('1. Order'!J1139=\"\",\"\",'1. Order'!J1139)","v":""},{"$f":"IF('1. Order'!K1139=\"\",\"\",'1. Order'!K1139)","v":""},{"$f":"IF('1. Order'!L1139=\"\",\"\",'1. Order'!L1139)","v":""},{"$f":"IF('1. Order'!N1139=\"\",\"\",'1. Order'!N1139)","v":""},null,null,{"$f":"IF('1. Order'!AV1139=\"\",\"\",'1. Order'!AV1139)","v":""},{"$f":"IF('1. Order'!AI1139=\"\",\"\",'1. Order'!AI1139)","v":""}]
[{"$f":"IF('1. Order'!B1140=\"\",\"\",'1. Order'!B1140)","v":""},{"$f":"IF('1. Order'!J1140=\"\",\"\",'1. Order'!J1140)","v":""},{"$f":"IF('1. Order'!K1140=\"\",\"\",'1. Order'!K1140)","v":""},{"$f":"IF('1. Order'!L1140=\"\",\"\",'1. Order'!L1140)","v":""},{"$f":"IF('1. Order'!N1140=\"\",\"\",'1. Order'!N1140)","v":""},null,null,{"$f":"IF('1. Order'!AV1140=\"\",\"\",'1. Order'!AV1140)","v":""},{"$f":"IF('1. Order'!AI1140=\"\",\"\",'1. Order'!AI1140)","v":""}]
[{"$f":"IF('1. Order'!B1141=\"\",\"\",'1. Order'!B1141)","v":""},{"$f":"IF('1. Order'!J1141=\"\",\"\",'1. Order'!J1141)","v":""},{"$f":"IF('1. Order'!K1141=\"\",\"\",'1. Order'!K1141)","v":""},{"$f":"IF('1. Order'!L1141=\"\",\"\",'1. Order'!L1141)","v":""},{"$f":"IF('1. Order'!N1141=\"\",\"\",'1. Order'!N1141)","v":""},null,null,{"$f":"IF('1. Order'!AV1141=\"\",\"\",'1. Order'!AV1141)","v":""},{"$f":"IF('1. Order'!AI1141=\"\",\"\",'1. Order'!AI1141)","v":""}]
[{"$f":"IF('1. Order'!B1142=\"\",\"\",'1. Order'!B1142)","v":""},{"$f":"IF('1. Order'!J1142=\"\",\"\",'1. Order'!J1142)","v":""},{"$f":"IF('1. Order'!K1142=\"\",\"\",'1. Order'!K1142)","v":""},{"$f":"IF('1. Order'!L1142=\"\",\"\",'1. Order'!L1142)","v":""},{"$f":"IF('1. Order'!N1142=\"\",\"\",'1. Order'!N1142)","v":""},null,null,{"$f":"IF('1. Order'!AV1142=\"\",\"\",'1. Order'!AV1142)","v":""},{"$f":"IF('1. Order'!AI1142=\"\",\"\",'1. Order'!AI1142)","v":""}]
[{"$f":"IF('1. Order'!B1143=\"\",\"\",'1. Order'!B1143)","v":""},{"$f":"IF('1. Order'!J1143=\"\",\"\",'1. Order'!J1143)","v":""},{"$f":"IF('1. Order'!K1143=\"\",\"\",'1. Order'!K1143)","v":""},{"$f":"IF('1. Order'!L1143=\"\",\"\",'1. Order'!L1143)","v":""},{"$f":"IF('1. Order'!N1143=\"\",\"\",'1. Order'!N1143)","v":""},null,null,{"$f":"IF('1. Order'!AV1143=\"\",\"\",'1. Order'!AV1143)","v":""},{"$f":"IF('1. Order'!AI1143=\"\",\"\",'1. Order'!AI1143)","v":""}]
[{"$f":"IF('1. Order'!B1144=\"\",\"\",'1. Order'!B1144)","v":""},{"$f":"IF('1. Order'!J1144=\"\",\"\",'1. Order'!J1144)","v":""},{"$f":"IF('1. Order'!K1144=\"\",\"\",'1. Order'!K1144)","v":""},{"$f":"IF('1. Order'!L1144=\"\",\"\",'1. Order'!L1144)","v":""},{"$f":"IF('1. Order'!N1144=\"\",\"\",'1. Order'!N1144)","v":""},null,null,{"$f":"IF('1. Order'!AV1144=\"\",\"\",'1. Order'!AV1144)","v":""},{"$f":"IF('1. Order'!AI1144=\"\",\"\",'1. Order'!AI1144)","v":""}]
[{"$f":"IF('1. Order'!B1145=\"\",\"\",'1. Order'!B1145)","v":""},{"$f":"IF('1. Order'!J1145=\"\",\"\",'1. Order'!J1145)","v":""},{"$f":"IF('1. Order'!K1145=\"\",\"\",'1. Order'!K1145)","v":""},{"$f":"IF('1. Order'!L1145=\"\",\"\",'1. Order'!L1145)","v":""},{"$f":"IF('1. Order'!N1145=\"\",\"\",'1. Order'!N1145)","v":""},null,null,{"$f":"IF('1. Order'!AV1145=\"\",\"\",'1. Order'!AV1145)","v":""},{"$f":"IF('1. Order'!AI1145=\"\",\"\",'1. Order'!AI1145)","v":""}]
[{"$f":"IF('1. Order'!B1146=\"\",\"\",'1. Order'!B1146)","v":""},{"$f":"IF('1. Order'!J1146=\"\",\"\",'1. Order'!J1146)","v":""},{"$f":"IF('1. Order'!K1146=\"\",\"\",'1. Order'!K1146)","v":""},{"$f":"IF('1. Order'!L1146=\"\",\"\",'1. Order'!L1146)","v":""},{"$f":"IF('1. Order'!N1146=\"\",\"\",'1. Order'!N1146)","v":""},null,null,{"$f":"IF('1. Order'!AV1146=\"\",\"\",'1. Order'!AV1146)","v":""},{"$f":"IF('1. Order'!AI1146=\"\",\"\",'1. Order'!AI1146)","v":""}]
[{"$f":"IF('1. Order'!B1147=\"\",\"\",'1. Order'!B1147)","v":""},{"$f":"IF('1. Order'!J1147=\"\",\"\",'1. Order'!J1147)","v":""},{"$f":"IF('1. Order'!K1147=\"\",\"\",'1. Order'!K1147)","v":""},{"$f":"IF('1. Order'!L1147=\"\",\"\",'1. Order'!L1147)","v":""},{"$f":"IF('1. Order'!N1147=\"\",\"\",'1. Order'!N1147)","v":""},null,null,{"$f":"IF('1. Order'!AV1147=\"\",\"\",'1. Order'!AV1147)","v":""},{"$f":"IF('1. Order'!AI1147=\"\",\"\",'1. Order'!AI1147)","v":""}]
[{"$f":"IF('1. Order'!B1148=\"\",\"\",'1. Order'!B1148)","v":""},{"$f":"IF('1. Order'!J1148=\"\",\"\",'1. Order'!J1148)","v":""},{"$f":"IF('1. Order'!K1148=\"\",\"\",'1. Order'!K1148)","v":""},{"$f":"IF('1. Order'!L1148=\"\",\"\",'1. Order'!L1148)","v":""},{"$f":"IF('1. Order'!N1148=\"\",\"\",'1. Order'!N1148)","v":""},null,null,{"$f":"IF('1. Order'!AV1148=\"\",\"\",'1. Order'!AV1148)","v":""},{"$f":"IF('1. Order'!AI1148=\"\",\"\",'1. Order'!AI1148)","v":""}]
[{"$f":"IF('1. Order'!B1149=\"\",\"\",'1. Order'!B1149)","v":""},{"$f":"IF('1. Order'!J1149=\"\",\"\",'1. Order'!J1149)","v":""},{"$f":"IF('1. Order'!K1149=\"\",\"\",'1. Order'!K1149)","v":""},{"$f":"IF('1. Order'!L1149=\"\",\"\",'1. Order'!L1149)","v":""},{"$f":"IF('1. Order'!N1149=\"\",\"\",'1. Order'!N1149)","v":""},null,null,{"$f":"IF('1. Order'!AV1149=\"\",\"\",'1. Order'!AV1149)","v":""},{"$f":"IF('1. Order'!AI1149=\"\",\"\",'1. Order'!AI1149)","v":""}]
[{"$f":"IF('1. Order'!B1150=\"\",\"\",'1. Order'!B1150)","v":""},{"$f":"IF('1. Order'!J1150=\"\",\"\",'1. Order'!J1150)","v":""},{"$f":"IF('1. Order'!K1150=\"\",\"\",'1. Order'!K1150)","v":""},{"$f":"IF('1. Order'!L1150=\"\",\"\",'1. Order'!L1150)","v":""},{"$f":"IF('1. Order'!N1150=\"\",\"\",'1. Order'!N1150)","v":""},null,null,{"$f":"IF('1. Order'!AV1150=\"\",\"\",'1. Order'!AV1150)","v":""},{"$f":"IF('1. Order'!AI1150=\"\",\"\",'1. Order'!AI1150)","v":""}]
[{"$f":"IF('1. Order'!B1151=\"\",\"\",'1. Order'!B1151)","v":""},{"$f":"IF('1. Order'!J1151=\"\",\"\",'1. Order'!J1151)","v":""},{"$f":"IF('1. Order'!K1151=\"\",\"\",'1. Order'!K1151)","v":""},{"$f":"IF('1. Order'!L1151=\"\",\"\",'1. Order'!L1151)","v":""},{"$f":"IF('1. Order'!N1151=\"\",\"\",'1. Order'!N1151)","v":""},null,null,{"$f":"IF('1. Order'!AV1151=\"\",\"\",'1. Order'!AV1151)","v":""},{"$f":"IF('1. Order'!AI1151=\"\",\"\",'1. Order'!AI1151)","v":""}]
[{"$f":"IF('1. Order'!B1152=\"\",\"\",'1. Order'!B1152)","v":""},{"$f":"IF('1. Order'!J1152=\"\",\"\",'1. Order'!J1152)","v":""},{"$f":"IF('1. Order'!K1152=\"\",\"\",'1. Order'!K1152)","v":""},{"$f":"IF('1. Order'!L1152=\"\",\"\",'1. Order'!L1152)","v":""},{"$f":"IF('1. Order'!N1152=\"\",\"\",'1. Order'!N1152)","v":""},null,null,{"$f":"IF('1. Order'!AV1152=\"\",\"\",'1. Order'!AV1152)","v":""},{"$f":"IF('1. Order'!AI1152=\"\",\"\",'1. Order'!AI1152)","v":""}]
[{"$f":"IF('1. Order'!B1153=\"\",\"\",'1. Order'!B1153)","v":""},{"$f":"IF('1. Order'!J1153=\"\",\"\",'1. Order'!J1153)","v":""},{"$f":"IF('1. Order'!K1153=\"\",\"\",'1. Order'!K1153)","v":""},{"$f":"IF('1. Order'!L1153=\"\",\"\",'1. Order'!L1153)","v":""},{"$f":"IF('1. Order'!N1153=\"\",\"\",'1. Order'!N1153)","v":""},null,null,{"$f":"IF('1. Order'!AV1153=\"\",\"\",'1. Order'!AV1153)","v":""},{"$f":"IF('1. Order'!AI1153=\"\",\"\",'1. Order'!AI1153)","v":""}]
[{"$f":"IF('1. Order'!B1154=\"\",\"\",'1. Order'!B1154)","v":""},{"$f":"IF('1. Order'!J1154=\"\",\"\",'1. Order'!J1154)","v":""},{"$f":"IF('1. Order'!K1154=\"\",\"\",'1. Order'!K1154)","v":""},{"$f":"IF('1. Order'!L1154=\"\",\"\",'1. Order'!L1154)","v":""},{"$f":"IF('1. Order'!N1154=\"\",\"\",'1. Order'!N1154)","v":""},null,null,{"$f":"IF('1. Order'!AV1154=\"\",\"\",'1. Order'!AV1154)","v":""},{"$f":"IF('1. Order'!AI1154=\"\",\"\",'1. Order'!AI1154)","v":""}]
[{"$f":"IF('1. Order'!B1155=\"\",\"\",'1. Order'!B1155)","v":""},{"$f":"IF('1. Order'!J1155=\"\",\"\",'1. Order'!J1155)","v":""},{"$f":"IF('1. Order'!K1155=\"\",\"\",'1. Order'!K1155)","v":""},{"$f":"IF('1. Order'!L1155=\"\",\"\",'1. Order'!L1155)","v":""},{"$f":"IF('1. Order'!N1155=\"\",\"\",'1. Order'!N1155)","v":""},null,null,{"$f":"IF('1. Order'!AV1155=\"\",\"\",'1. Order'!AV1155)","v":""},{"$f":"IF('1. Order'!AI1155=\"\",\"\",'1. Order'!AI1155)","v":""}]
[{"$f":"IF('1. Order'!B1156=\"\",\"\",'1. Order'!B1156)","v":""},{"$f":"IF('1. Order'!J1156=\"\",\"\",'1. Order'!J1156)","v":""},{"$f":"IF('1. Order'!K1156=\"\",\"\",'1. Order'!K1156)","v":""},{"$f":"IF('1. Order'!L1156=\"\",\"\",'1. Order'!L1156)","v":""},{"$f":"IF('1. Order'!N1156=\"\",\"\",'1. Order'!N1156)","v":""},null,null,{"$f":"IF('1. Order'!AV1156=\"\",\"\",'1. Order'!AV1156)","v":""},{"$f":"IF('1. Order'!AI1156=\"\",\"\",'1. Order'!AI1156)","v":""}]
[{"$f":"IF('1. Order'!B1157=\"\",\"\",'1. Order'!B1157)","v":""},{"$f":"IF('1. Order'!J1157=\"\",\"\",'1. Order'!J1157)","v":""},{"$f":"IF('1. Order'!K1157=\"\",\"\",'1. Order'!K1157)","v":""},{"$f":"IF('1. Order'!L1157=\"\",\"\",'1. Order'!L1157)","v":""},{"$f":"IF('1. Order'!N1157=\"\",\"\",'1. Order'!N1157)","v":""},null,null,{"$f":"IF('1. Order'!AV1157=\"\",\"\",'1. Order'!AV1157)","v":""},{"$f":"IF('1. Order'!AI1157=\"\",\"\",'1. Order'!AI1157)","v":""}]
[{"$f":"IF('1. Order'!B1158=\"\",\"\",'1. Order'!B1158)","v":""},{"$f":"IF('1. Order'!J1158=\"\",\"\",'1. Order'!J1158)","v":""},{"$f":"IF('1. Order'!K1158=\"\",\"\",'1. Order'!K1158)","v":""},{"$f":"IF('1. Order'!L1158=\"\",\"\",'1. Order'!L1158)","v":""},{"$f":"IF('1. Order'!N1158=\"\",\"\",'1. Order'!N1158)","v":""},null,null,{"$f":"IF('1. Order'!AV1158=\"\",\"\",'1. Order'!AV1158)","v":""},{"$f":"IF('1. Order'!AI1158=\"\",\"\",'1. Order'!AI1158)","v":""}]
[{"$f":"IF('1. Order'!B1159=\"\",\"\",'1. Order'!B1159)","v":""},{"$f":"IF('1. Order'!J1159=\"\",\"\",'1. Order'!J1159)","v":""},{"$f":"IF('1. Order'!K1159=\"\",\"\",'1. Order'!K1159)","v":""},{"$f":"IF('1. Order'!L1159=\"\",\"\",'1. Order'!L1159)","v":""},{"$f":"IF('1. Order'!N1159=\"\",\"\",'1. Order'!N1159)","v":""},null,null,{"$f":"IF('1. Order'!AV1159=\"\",\"\",'1. Order'!AV1159)","v":""},{"$f":"IF('1. Order'!AI1159=\"\",\"\",'1. Order'!AI1159)","v":""}]
[{"$f":"IF('1. Order'!B1160=\"\",\"\",'1. Order'!B1160)","v":""},{"$f":"IF('1. Order'!J1160=\"\",\"\",'1. Order'!J1160)","v":""},{"$f":"IF('1. Order'!K1160=\"\",\"\",'1. Order'!K1160)","v":""},{"$f":"IF('1. Order'!L1160=\"\",\"\",'1. Order'!L1160)","v":""},{"$f":"IF('1. Order'!N1160=\"\",\"\",'1. Order'!N1160)","v":""},null,null,{"$f":"IF('1. Order'!AV1160=\"\",\"\",'1. Order'!AV1160)","v":""},{"$f":"IF('1. Order'!AI1160=\"\",\"\",'1. Order'!AI1160)","v":""}]
[{"$f":"IF('1. Order'!B1161=\"\",\"\",'1. Order'!B1161)","v":""},{"$f":"IF('1. Order'!J1161=\"\",\"\",'1. Order'!J1161)","v":""},{"$f":"IF('1. Order'!K1161=\"\",\"\",'1. Order'!K1161)","v":""},{"$f":"IF('1. Order'!L1161=\"\",\"\",'1. Order'!L1161)","v":""},{"$f":"IF('1. Order'!N1161=\"\",\"\",'1. Order'!N1161)","v":""},null,null,{"$f":"IF('1. Order'!AV1161=\"\",\"\",'1. Order'!AV1161)","v":""},{"$f":"IF('1. Order'!AI1161=\"\",\"\",'1. Order'!AI1161)","v":""}]
[{"$f":"IF('1. Order'!B1162=\"\",\"\",'1. Order'!B1162)","v":""},{"$f":"IF('1. Order'!J1162=\"\",\"\",'1. Order'!J1162)","v":""},{"$f":"IF('1. Order'!K1162=\"\",\"\",'1. Order'!K1162)","v":""},{"$f":"IF('1. Order'!L1162=\"\",\"\",'1. Order'!L1162)","v":""},{"$f":"IF('1. Order'!N1162=\"\",\"\",'1. Order'!N1162)","v":""},null,null,{"$f":"IF('1. Order'!AV1162=\"\",\"\",'1. Order'!AV1162)","v":""},{"$f":"IF('1. Order'!AI1162=\"\",\"\",'1. Order'!AI1162)","v":""}]
[{"$f":"IF('1. Order'!B1163=\"\",\"\",'1. Order'!B1163)","v":""},{"$f":"IF('1. Order'!J1163=\"\",\"\",'1. Order'!J1163)","v":""},{"$f":"IF('1. Order'!K1163=\"\",\"\",'1. Order'!K1163)","v":""},{"$f":"IF('1. Order'!L1163=\"\",\"\",'1. Order'!L1163)","v":""},{"$f":"IF('1. Order'!N1163=\"\",\"\",'1. Order'!N1163)","v":""},null,null,{"$f":"IF('1. Order'!AV1163=\"\",\"\",'1. Order'!AV1163)","v":""},{"$f":"IF('1. Order'!AI1163=\"\",\"\",'1. Order'!AI1163)","v":""}]
[{"$f":"IF('1. Order'!B1164=\"\",\"\",'1. Order'!B1164)","v":""},{"$f":"IF('1. Order'!J1164=\"\",\"\",'1. Order'!J1164)","v":""},{"$f":"IF('1. Order'!K1164=\"\",\"\",'1. Order'!K1164)","v":""},{"$f":"IF('1. Order'!L1164=\"\",\"\",'1. Order'!L1164)","v":""},{"$f":"IF('1. Order'!N1164=\"\",\"\",'1. Order'!N1164)","v":""},null,null,{"$f":"IF('1. Order'!AV1164=\"\",\"\",'1. Order'!AV1164)","v":""},{"$f":"IF('1. Order'!AI1164=\"\",\"\",'1. Order'!AI1164)","v":""}]
[{"$f":"IF('1. Order'!B1165=\"\",\"\",'1. Order'!B1165)","v":""},{"$f":"IF('1. Order'!J1165=\"\",\"\",'1. Order'!J1165)","v":""},{"$f":"IF('1. Order'!K1165=\"\",\"\",'1. Order'!K1165)","v":""},{"$f":"IF('1. Order'!L1165=\"\",\"\",'1. Order'!L1165)","v":""},{"$f":"IF('1. Order'!N1165=\"\",\"\",'1. Order'!N1165)","v":""},null,null,{"$f":"IF('1. Order'!AV1165=\"\",\"\",'1. Order'!AV1165)","v":""},{"$f":"IF('1. Order'!AI1165=\"\",\"\",'1. Order'!AI1165)","v":""}]
[{"$f":"IF('1. Order'!B1166=\"\",\"\",'1. Order'!B1166)","v":""},{"$f":"IF('1. Order'!J1166=\"\",\"\",'1. Order'!J1166)","v":""},{"$f":"IF('1. Order'!K1166=\"\",\"\",'1. Order'!K1166)","v":""},{"$f":"IF('1. Order'!L1166=\"\",\"\",'1. Order'!L1166)","v":""},{"$f":"IF('1. Order'!N1166=\"\",\"\",'1. Order'!N1166)","v":""},null,null,{"$f":"IF('1. Order'!AV1166=\"\",\"\",'1. Order'!AV1166)","v":""},{"$f":"IF('1. Order'!AI1166=\"\",\"\",'1. Order'!AI1166)","v":""}]
[{"$f":"IF('1. Order'!B1167=\"\",\"\",'1. Order'!B1167)","v":""},{"$f":"IF('1. Order'!J1167=\"\",\"\",'1. Order'!J1167)","v":""},{"$f":"IF('1. Order'!K1167=\"\",\"\",'1. Order'!K1167)","v":""},{"$f":"IF('1. Order'!L1167=\"\",\"\",'1. Order'!L1167)","v":""},{"$f":"IF('1. Order'!N1167=\"\",\"\",'1. Order'!N1167)","v":""},null,null,{"$f":"IF('1. Order'!AV1167=\"\",\"\",'1. Order'!AV1167)","v":""},{"$f":"IF('1. Order'!AI1167=\"\",\"\",'1. Order'!AI1167)","v":""}]
[{"$f":"IF('1. Order'!B1168=\"\",\"\",'1. Order'!B1168)","v":""},{"$f":"IF('1. Order'!J1168=\"\",\"\",'1. Order'!J1168)","v":""},{"$f":"IF('1. Order'!K1168=\"\",\"\",'1. Order'!K1168)","v":""},{"$f":"IF('1. Order'!L1168=\"\",\"\",'1. Order'!L1168)","v":""},{"$f":"IF('1. Order'!N1168=\"\",\"\",'1. Order'!N1168)","v":""},null,null,{"$f":"IF('1. Order'!AV1168=\"\",\"\",'1. Order'!AV1168)","v":""},{"$f":"IF('1. Order'!AI1168=\"\",\"\",'1. Order'!AI1168)","v":""}]
[{"$f":"IF('1. Order'!B1169=\"\",\"\",'1. Order'!B1169)","v":""},{"$f":"IF('1. Order'!J1169=\"\",\"\",'1. Order'!J1169)","v":""},{"$f":"IF('1. Order'!K1169=\"\",\"\",'1. Order'!K1169)","v":""},{"$f":"IF('1. Order'!L1169=\"\",\"\",'1. Order'!L1169)","v":""},{"$f":"IF('1. Order'!N1169=\"\",\"\",'1. Order'!N1169)","v":""},null,null,{"$f":"IF('1. Order'!AV1169=\"\",\"\",'1. Order'!AV1169)","v":""},{"$f":"IF('1. Order'!AI1169=\"\",\"\",'1. Order'!AI1169)","v":""}]
[{"$f":"IF('1. Order'!B1170=\"\",\"\",'1. Order'!B1170)","v":""},{"$f":"IF('1. Order'!J1170=\"\",\"\",'1. Order'!J1170)","v":""},{"$f":"IF('1. Order'!K1170=\"\",\"\",'1. Order'!K1170)","v":""},{"$f":"IF('1. Order'!L1170=\"\",\"\",'1. Order'!L1170)","v":""},{"$f":"IF('1. Order'!N1170=\"\",\"\",'1. Order'!N1170)","v":""},null,null,{"$f":"IF('1. Order'!AV1170=\"\",\"\",'1. Order'!AV1170)","v":""},{"$f":"IF('1. Order'!AI1170=\"\",\"\",'1. Order'!AI1170)","v":""}]
[{"$f":"IF('1. Order'!B1171=\"\",\"\",'1. Order'!B1171)","v":""},{"$f":"IF('1. Order'!J1171=\"\",\"\",'1. Order'!J1171)","v":""},{"$f":"IF('1. Order'!K1171=\"\",\"\",'1. Order'!K1171)","v":""},{"$f":"IF('1. Order'!L1171=\"\",\"\",'1. Order'!L1171)","v":""},{"$f":"IF('1. Order'!N1171=\"\",\"\",'1. Order'!N1171)","v":""},null,null,{"$f":"IF('1. Order'!AV1171=\"\",\"\",'1. Order'!AV1171)","v":""},{"$f":"IF('1. Order'!AI1171=\"\",\"\",'1. Order'!AI1171)","v":""}]
[{"$f":"IF('1. Order'!B1172=\"\",\"\",'1. Order'!B1172)","v":""},{"$f":"IF('1. Order'!J1172=\"\",\"\",'1. Order'!J1172)","v":""},{"$f":"IF('1. Order'!K1172=\"\",\"\",'1. Order'!K1172)","v":""},{"$f":"IF('1. Order'!L1172=\"\",\"\",'1. Order'!L1172)","v":""},{"$f":"IF('1. Order'!N1172=\"\",\"\",'1. Order'!N1172)","v":""},null,null,{"$f":"IF('1. Order'!AV1172=\"\",\"\",'1. Order'!AV1172)","v":""},{"$f":"IF('1. Order'!AI1172=\"\",\"\",'1. Order'!AI1172)","v":""}]
[{"$f":"IF('1. Order'!B1173=\"\",\"\",'1. Order'!B1173)","v":""},{"$f":"IF('1. Order'!J1173=\"\",\"\",'1. Order'!J1173)","v":""},{"$f":"IF('1. Order'!K1173=\"\",\"\",'1. Order'!K1173)","v":""},{"$f":"IF('1. Order'!L1173=\"\",\"\",'1. Order'!L1173)","v":""},{"$f":"IF('1. Order'!N1173=\"\",\"\",'1. Order'!N1173)","v":""},null,null,{"$f":"IF('1. Order'!AV1173=\"\",\"\",'1. Order'!AV1173)","v":""},{"$f":"IF('1. Order'!AI1173=\"\",\"\",'1. Order'!AI1173)","v":""}]
[{"$f":"IF('1. Order'!B1174=\"\",\"\",'1. Order'!B1174)","v":""},{"$f":"IF('1. Order'!J1174=\"\",\"\",'1. Order'!J1174)","v":""},{"$f":"IF('1. Order'!K1174=\"\",\"\",'1. Order'!K1174)","v":""},{"$f":"IF('1. Order'!L1174=\"\",\"\",'1. Order'!L1174)","v":""},{"$f":"IF('1. Order'!N1174=\"\",\"\",'1. Order'!N1174)","v":""},null,null,{"$f":"IF('1. Order'!AV1174=\"\",\"\",'1. Order'!AV1174)","v":""},{"$f":"IF('1. Order'!AI1174=\"\",\"\",'1. Order'!AI1174)","v":""}]
[{"$f":"IF('1. Order'!B1175=\"\",\"\",'1. Order'!B1175)","v":""},{"$f":"IF('1. Order'!J1175=\"\",\"\",'1. Order'!J1175)","v":""},{"$f":"IF('1. Order'!K1175=\"\",\"\",'1. Order'!K1175)","v":""},{"$f":"IF('1. Order'!L1175=\"\",\"\",'1. Order'!L1175)","v":""},{"$f":"IF('1. Order'!N1175=\"\",\"\",'1. Order'!N1175)","v":""},null,null,{"$f":"IF('1. Order'!AV1175=\"\",\"\",'1. Order'!AV1175)","v":""},{"$f":"IF('1. Order'!AI1175=\"\",\"\",'1. Order'!AI1175)","v":""}]
[{"$f":"IF('1. Order'!B1176=\"\",\"\",'1. Order'!B1176)","v":""},{"$f":"IF('1. Order'!J1176=\"\",\"\",'1. Order'!J1176)","v":""},{"$f":"IF('1. Order'!K1176=\"\",\"\",'1. Order'!K1176)","v":""},{"$f":"IF('1. Order'!L1176=\"\",\"\",'1. Order'!L1176)","v":""},{"$f":"IF('1. Order'!N1176=\"\",\"\",'1. Order'!N1176)","v":""},null,null,{"$f":"IF('1. Order'!AV1176=\"\",\"\",'1. Order'!AV1176)","v":""},{"$f":"IF('1. Order'!AI1176=\"\",\"\",'1. Order'!AI1176)","v":""}]
[{"$f":"IF('1. Order'!B1177=\"\",\"\",'1. Order'!B1177)","v":""},{"$f":"IF('1. Order'!J1177=\"\",\"\",'1. Order'!J1177)","v":""},{"$f":"IF('1. Order'!K1177=\"\",\"\",'1. Order'!K1177)","v":""},{"$f":"IF('1. Order'!L1177=\"\",\"\",'1. Order'!L1177)","v":""},{"$f":"IF('1. Order'!N1177=\"\",\"\",'1. Order'!N1177)","v":""},null,null,{"$f":"IF('1. Order'!AV1177=\"\",\"\",'1. Order'!AV1177)","v":""},{"$f":"IF('1. Order'!AI1177=\"\",\"\",'1. Order'!AI1177)","v":""}]
[{"$f":"IF('1. Order'!B1178=\"\",\"\",'1. Order'!B1178)","v":""},{"$f":"IF('1. Order'!J1178=\"\",\"\",'1. Order'!J1178)","v":""},{"$f":"IF('1. Order'!K1178=\"\",\"\",'1. Order'!K1178)","v":""},{"$f":"IF('1. Order'!L1178=\"\",\"\",'1. Order'!L1178)","v":""},{"$f":"IF('1. Order'!N1178=\"\",\"\",'1. Order'!N1178)","v":""},null,null,{"$f":"IF('1. Order'!AV1178=\"\",\"\",'1. Order'!AV1178)","v":""},{"$f":"IF('1. Order'!AI1178=\"\",\"\",'1. Order'!AI1178)","v":""}]
[{"$f":"IF('1. Order'!B1179=\"\",\"\",'1. Order'!B1179)","v":""},{"$f":"IF('1. Order'!J1179=\"\",\"\",'1. Order'!J1179)","v":""},{"$f":"IF('1. Order'!K1179=\"\",\"\",'1. Order'!K1179)","v":""},{"$f":"IF('1. Order'!L1179=\"\",\"\",'1. Order'!L1179)","v":""},{"$f":"IF('1. Order'!N1179=\"\",\"\",'1. Order'!N1179)","v":""},null,null,{"$f":"IF('1. Order'!AV1179=\"\",\"\",'1. Order'!AV1179)","v":""},{"$f":"IF('1. Order'!AI1179=\"\",\"\",'1. Order'!AI1179)","v":""}]
[{"$f":"IF('1. Order'!B1180=\"\",\"\",'1. Order'!B1180)","v":""},{"$f":"IF('1. Order'!J1180=\"\",\"\",'1. Order'!J1180)","v":""},{"$f":"IF('1. Order'!K1180=\"\",\"\",'1. Order'!K1180)","v":""},{"$f":"IF('1. Order'!L1180=\"\",\"\",'1. Order'!L1180)","v":""},{"$f":"IF('1. Order'!N1180=\"\",\"\",'1. Order'!N1180)","v":""},null,null,{"$f":"IF('1. Order'!AV1180=\"\",\"\",'1. Order'!AV1180)","v":""},{"$f":"IF('1. Order'!AI1180=\"\",\"\",'1. Order'!AI1180)","v":""}]
[{"$f":"IF('1. Order'!B1181=\"\",\"\",'1. Order'!B1181)","v":""},{"$f":"IF('1. Order'!J1181=\"\",\"\",'1. Order'!J1181)","v":""},{"$f":"IF('1. Order'!K1181=\"\",\"\",'1. Order'!K1181)","v":""},{"$f":"IF('1. Order'!L1181=\"\",\"\",'1. Order'!L1181)","v":""},{"$f":"IF('1. Order'!N1181=\"\",\"\",'1. Order'!N1181)","v":""},null,null,{"$f":"IF('1. Order'!AV1181=\"\",\"\",'1. Order'!AV1181)","v":""},{"$f":"IF('1. Order'!AI1181=\"\",\"\",'1. Order'!AI1181)","v":""}]
[{"$f":"IF('1. Order'!B1182=\"\",\"\",'1. Order'!B1182)","v":""},{"$f":"IF('1. Order'!J1182=\"\",\"\",'1. Order'!J1182)","v":""},{"$f":"IF('1. Order'!K1182=\"\",\"\",'1. Order'!K1182)","v":""},{"$f":"IF('1. Order'!L1182=\"\",\"\",'1. Order'!L1182)","v":""},{"$f":"IF('1. Order'!N1182=\"\",\"\",'1. Order'!N1182)","v":""},null,null,{"$f":"IF('1. Order'!AV1182=\"\",\"\",'1. Order'!AV1182)","v":""},{"$f":"IF('1. Order'!AI1182=\"\",\"\",'1. Order'!AI1182)","v":""}]
[{"$f":"IF('1. Order'!B1183=\"\",\"\",'1. Order'!B1183)","v":""},{"$f":"IF('1. Order'!J1183=\"\",\"\",'1. Order'!J1183)","v":""},{"$f":"IF('1. Order'!K1183=\"\",\"\",'1. Order'!K1183)","v":""},{"$f":"IF('1. Order'!L1183=\"\",\"\",'1. Order'!L1183)","v":""},{"$f":"IF('1. Order'!N1183=\"\",\"\",'1. Order'!N1183)","v":""},null,null,{"$f":"IF('1. Order'!AV1183=\"\",\"\",'1. Order'!AV1183)","v":""},{"$f":"IF('1. Order'!AI1183=\"\",\"\",'1. Order'!AI1183)","v":""}]
[{"$f":"IF('1. Order'!B1184=\"\",\"\",'1. Order'!B1184)","v":""},{"$f":"IF('1. Order'!J1184=\"\",\"\",'1. Order'!J1184)","v":""},{"$f":"IF('1. Order'!K1184=\"\",\"\",'1. Order'!K1184)","v":""},{"$f":"IF('1. Order'!L1184=\"\",\"\",'1. Order'!L1184)","v":""},{"$f":"IF('1. Order'!N1184=\"\",\"\",'1. Order'!N1184)","v":""},null,null,{"$f":"IF('1. Order'!AV1184=\"\",\"\",'1. Order'!AV1184)","v":""},{"$f":"IF('1. Order'!AI1184=\"\",\"\",'1. Order'!AI1184)","v":""}]
[{"$f":"IF('1. Order'!B1185=\"\",\"\",'1. Order'!B1185)","v":""},{"$f":"IF('1. Order'!J1185=\"\",\"\",'1. Order'!J1185)","v":""},{"$f":"IF('1. Order'!K1185=\"\",\"\",'1. Order'!K1185)","v":""},{"$f":"IF('1. Order'!L1185=\"\",\"\",'1. Order'!L1185)","v":""},{"$f":"IF('1. Order'!N1185=\"\",\"\",'1. Order'!N1185)","v":""},null,null,{"$f":"IF('1. Order'!AV1185=\"\",\"\",'1. Order'!AV1185)","v":""},{"$f":"IF('1. Order'!AI1185=\"\",\"\",'1. Order'!AI1185)","v":""}]
[{"$f":"IF('1. Order'!B1186=\"\",\"\",'1. Order'!B1186)","v":""},{"$f":"IF('1. Order'!J1186=\"\",\"\",'1. Order'!J1186)","v":""},{"$f":"IF('1. Order'!K1186=\"\",\"\",'1. Order'!K1186)","v":""},{"$f":"IF('1. Order'!L1186=\"\",\"\",'1. Order'!L1186)","v":""},{"$f":"IF('1. Order'!N1186=\"\",\"\",'1. Order'!N1186)","v":""},null,null,{"$f":"IF('1. Order'!AV1186=\"\",\"\",'1. Order'!AV1186)","v":""},{"$f":"IF('1. Order'!AI1186=\"\",\"\",'1. Order'!AI1186)","v":""}]
[{"$f":"IF('1. Order'!B1187=\"\",\"\",'1. Order'!B1187)","v":""},{"$f":"IF('1. Order'!J1187=\"\",\"\",'1. Order'!J1187)","v":""},{"$f":"IF('1. Order'!K1187=\"\",\"\",'1. Order'!K1187)","v":""},{"$f":"IF('1. Order'!L1187=\"\",\"\",'1. Order'!L1187)","v":""},{"$f":"IF('1. Order'!N1187=\"\",\"\",'1. Order'!N1187)","v":""},null,null,{"$f":"IF('1. Order'!AV1187=\"\",\"\",'1. Order'!AV1187)","v":""},{"$f":"IF('1. Order'!AI1187=\"\",\"\",'1. Order'!AI1187)","v":""}]
[{"$f":"IF('1. Order'!B1188=\"\",\"\",'1. Order'!B1188)","v":""},{"$f":"IF('1. Order'!J1188=\"\",\"\",'1. Order'!J1188)","v":""},{"$f":"IF('1. Order'!K1188=\"\",\"\",'1. Order'!K1188)","v":""},{"$f":"IF('1. Order'!L1188=\"\",\"\",'1. Order'!L1188)","v":""},{"$f":"IF('1. Order'!N1188=\"\",\"\",'1. Order'!N1188)","v":""},null,null,{"$f":"IF('1. Order'!AV1188=\"\",\"\",'1. Order'!AV1188)","v":""},{"$f":"IF('1. Order'!AI1188=\"\",\"\",'1. Order'!AI1188)","v":""}]
[{"$f":"IF('1. Order'!B1189=\"\",\"\",'1. Order'!B1189)","v":""},{"$f":"IF('1. Order'!J1189=\"\",\"\",'1. Order'!J1189)","v":""},{"$f":"IF('1. Order'!K1189=\"\",\"\",'1. Order'!K1189)","v":""},{"$f":"IF('1. Order'!L1189=\"\",\"\",'1. Order'!L1189)","v":""},{"$f":"IF('1. Order'!N1189=\"\",\"\",'1. Order'!N1189)","v":""},null,null,{"$f":"IF('1. Order'!AV1189=\"\",\"\",'1. Order'!AV1189)","v":""},{"$f":"IF('1. Order'!AI1189=\"\",\"\",'1. Order'!AI1189)","v":""}]
[{"$f":"IF('1. Order'!B1190=\"\",\"\",'1. Order'!B1190)","v":""},{"$f":"IF('1. Order'!J1190=\"\",\"\",'1. Order'!J1190)","v":""},{"$f":"IF('1. Order'!K1190=\"\",\"\",'1. Order'!K1190)","v":""},{"$f":"IF('1. Order'!L1190=\"\",\"\",'1. Order'!L1190)","v":""},{"$f":"IF('1. Order'!N1190=\"\",\"\",'1. Order'!N1190)","v":""},null,null,{"$f":"IF('1. Order'!AV1190=\"\",\"\",'1. Order'!AV1190)","v":""},{"$f":"IF('1. Order'!AI1190=\"\",\"\",'1. Order'!AI1190)","v":""}]
[{"$f":"IF('1. Order'!B1191=\"\",\"\",'1. Order'!B1191)","v":""},{"$f":"IF('1. Order'!J1191=\"\",\"\",'1. Order'!J1191)","v":""},{"$f":"IF('1. Order'!K1191=\"\",\"\",'1. Order'!K1191)","v":""},{"$f":"IF('1. Order'!L1191=\"\",\"\",'1. Order'!L1191)","v":""},{"$f":"IF('1. Order'!N1191=\"\",\"\",'1. Order'!N1191)","v":""},null,null,{"$f":"IF('1. Order'!AV1191=\"\",\"\",'1. Order'!AV1191)","v":""},{"$f":"IF('1. Order'!AI1191=\"\",\"\",'1. Order'!AI1191)","v":""}]
[{"$f":"IF('1. Order'!B1192=\"\",\"\",'1. Order'!B1192)","v":""},{"$f":"IF('1. Order'!J1192=\"\",\"\",'1. Order'!J1192)","v":""},{"$f":"IF('1. Order'!K1192=\"\",\"\",'1. Order'!K1192)","v":""},{"$f":"IF('1. Order'!L1192=\"\",\"\",'1. Order'!L1192)","v":""},{"$f":"IF('1. Order'!N1192=\"\",\"\",'1. Order'!N1192)","v":""},null,null,{"$f":"IF('1. Order'!AV1192=\"\",\"\",'1. Order'!AV1192)","v":""},{"$f":"IF('1. Order'!AI1192=\"\",\"\",'1. Order'!AI1192)","v":""}]
[{"$f":"IF('1. Order'!B1193=\"\",\"\",'1. Order'!B1193)","v":""},{"$f":"IF('1. Order'!J1193=\"\",\"\",'1. Order'!J1193)","v":""},{"$f":"IF('1. Order'!K1193=\"\",\"\",'1. Order'!K1193)","v":""},{"$f":"IF('1. Order'!L1193=\"\",\"\",'1. Order'!L1193)","v":""},{"$f":"IF('1. Order'!N1193=\"\",\"\",'1. Order'!N1193)","v":""},null,null,{"$f":"IF('1. Order'!AV1193=\"\",\"\",'1. Order'!AV1193)","v":""},{"$f":"IF('1. Order'!AI1193=\"\",\"\",'1. Order'!AI1193)","v":""}]
[{"$f":"IF('1. Order'!B1194=\"\",\"\",'1. Order'!B1194)","v":""},{"$f":"IF('1. Order'!J1194=\"\",\"\",'1. Order'!J1194)","v":""},{"$f":"IF('1. Order'!K1194=\"\",\"\",'1. Order'!K1194)","v":""},{"$f":"IF('1. Order'!L1194=\"\",\"\",'1. Order'!L1194)","v":""},{"$f":"IF('1. Order'!N1194=\"\",\"\",'1. Order'!N1194)","v":""},null,null,{"$f":"IF('1. Order'!AV1194=\"\",\"\",'1. Order'!AV1194)","v":""},{"$f":"IF('1. Order'!AI1194=\"\",\"\",'1. Order'!AI1194)","v":""}]
[{"$f":"IF('1. Order'!B1195=\"\",\"\",'1. Order'!B1195)","v":""},{"$f":"IF('1. Order'!J1195=\"\",\"\",'1. Order'!J1195)","v":""},{"$f":"IF('1. Order'!K1195=\"\",\"\",'1. Order'!K1195)","v":""},{"$f":"IF('1. Order'!L1195=\"\",\"\",'1. Order'!L1195)","v":""},{"$f":"IF('1. Order'!N1195=\"\",\"\",'1. Order'!N1195)","v":""},null,null,{"$f":"IF('1. Order'!AV1195=\"\",\"\",'1. Order'!AV1195)","v":""},{"$f":"IF('1. Order'!AI1195=\"\",\"\",'1. Order'!AI1195)","v":""}]
[{"$f":"IF('1. Order'!B1196=\"\",\"\",'1. Order'!B1196)","v":""},{"$f":"IF('1. Order'!J1196=\"\",\"\",'1. Order'!J1196)","v":""},{"$f":"IF('1. Order'!K1196=\"\",\"\",'1. Order'!K1196)","v":""},{"$f":"IF('1. Order'!L1196=\"\",\"\",'1. Order'!L1196)","v":""},{"$f":"IF('1. Order'!N1196=\"\",\"\",'1. Order'!N1196)","v":""},null,null,{"$f":"IF('1. Order'!AV1196=\"\",\"\",'1. Order'!AV1196)","v":""},{"$f":"IF('1. Order'!AI1196=\"\",\"\",'1. Order'!AI1196)","v":""}]
[{"$f":"IF('1. Order'!B1197=\"\",\"\",'1. Order'!B1197)","v":""},{"$f":"IF('1. Order'!J1197=\"\",\"\",'1. Order'!J1197)","v":""},{"$f":"IF('1. Order'!K1197=\"\",\"\",'1. Order'!K1197)","v":""},{"$f":"IF('1. Order'!L1197=\"\",\"\",'1. Order'!L1197)","v":""},{"$f":"IF('1. Order'!N1197=\"\",\"\",'1. Order'!N1197)","v":""},null,null,{"$f":"IF('1. Order'!AV1197=\"\",\"\",'1. Order'!AV1197)","v":""},{"$f":"IF('1. Order'!AI1197=\"\",\"\",'1. Order'!AI1197)","v":""}]
[{"$f":"IF('1. Order'!B1198=\"\",\"\",'1. Order'!B1198)","v":""},{"$f":"IF('1. Order'!J1198=\"\",\"\",'1. Order'!J1198)","v":""},{"$f":"IF('1. Order'!K1198=\"\",\"\",'1. Order'!K1198)","v":""},{"$f":"IF('1. Order'!L1198=\"\",\"\",'1. Order'!L1198)","v":""},{"$f":"IF('1. Order'!N1198=\"\",\"\",'1. Order'!N1198)","v":""},null,null,{"$f":"IF('1. Order'!AV1198=\"\",\"\",'1. Order'!AV1198)","v":""},{"$f":"IF('1. Order'!AI1198=\"\",\"\",'1. Order'!AI1198)","v":""}]
[{"$f":"IF('1. Order'!B1199=\"\",\"\",'1. Order'!B1199)","v":""},{"$f":"IF('1. Order'!J1199=\"\",\"\",'1. Order'!J1199)","v":""},{"$f":"IF('1. Order'!K1199=\"\",\"\",'1. Order'!K1199)","v":""},{"$f":"IF('1. Order'!L1199=\"\",\"\",'1. Order'!L1199)","v":""},{"$f":"IF('1. Order'!N1199=\"\",\"\",'1. Order'!N1199)","v":""},null,null,{"$f":"IF('1. Order'!AV1199=\"\",\"\",'1. Order'!AV1199)","v":""},{"$f":"IF('1. Order'!AI1199=\"\",\"\",'1. Order'!AI1199)","v":""}]
[{"$f":"IF('1. Order'!B1200=\"\",\"\",'1. Order'!B1200)","v":""},{"$f":"IF('1. Order'!J1200=\"\",\"\",'1. Order'!J1200)","v":""},{"$f":"IF('1. Order'!K1200=\"\",\"\",'1. Order'!K1200)","v":""},{"$f":"IF('1. Order'!L1200=\"\",\"\",'1. Order'!L1200)","v":""},{"$f":"IF('1. Order'!N1200=\"\",\"\",'1. Order'!N1200)","v":""},null,null,{"$f":"IF('1. Order'!AV1200=\"\",\"\",'1. Order'!AV1200)","v":""},{"$f":"IF('1. Order'!AI1200=\"\",\"\",'1. Order'!AI1200)","v":""}]
[{"$f":"IF('1. Order'!B1201=\"\",\"\",'1. Order'!B1201)","v":""},{"$f":"IF('1. Order'!J1201=\"\",\"\",'1. Order'!J1201)","v":""},{"$f":"IF('1. Order'!K1201=\"\",\"\",'1. Order'!K1201)","v":""},{"$f":"IF('1. Order'!L1201=\"\",\"\",'1. Order'!L1201)","v":""},{"$f":"IF('1. Order'!N1201=\"\",\"\",'1. Order'!N1201)","v":""},null,null,{"$f":"IF('1. Order'!AV1201=\"\",\"\",'1. Order'!AV1201)","v":""},{"$f":"IF('1. Order'!AI1201=\"\",\"\",'1. Order'!AI1201)","v":""}]
[{"$f":"IF('1. Order'!B1202=\"\",\"\",'1. Order'!B1202)","v":""},{"$f":"IF('1. Order'!J1202=\"\",\"\",'1. Order'!J1202)","v":""},{"$f":"IF('1. Order'!K1202=\"\",\"\",'1. Order'!K1202)","v":""},{"$f":"IF('1. Order'!L1202=\"\",\"\",'1. Order'!L1202)","v":""},{"$f":"IF('1. Order'!N1202=\"\",\"\",'1. Order'!N1202)","v":""},null,null,{"$f":"IF('1. Order'!AV1202=\"\",\"\",'1. Order'!AV1202)","v":""},{"$f":"IF('1. Order'!AI1202=\"\",\"\",'1. Order'!AI1202)","v":""}]
[{"$f":"IF('1. Order'!B1203=\"\",\"\",'1. Order'!B1203)","v":""},{"$f":"IF('1. Order'!J1203=\"\",\"\",'1. Order'!J1203)","v":""},{"$f":"IF('1. Order'!K1203=\"\",\"\",'1. Order'!K1203)","v":""},{"$f":"IF('1. Order'!L1203=\"\",\"\",'1. Order'!L1203)","v":""},{"$f":"IF('1. Order'!N1203=\"\",\"\",'1. Order'!N1203)","v":""},null,null,{"$f":"IF('1. Order'!AV1203=\"\",\"\",'1. Order'!AV1203)","v":""},{"$f":"IF('1. Order'!AI1203=\"\",\"\",'1. Order'!AI1203)","v":""}]
[{"$f":"IF('1. Order'!B1204=\"\",\"\",'1. Order'!B1204)","v":""},{"$f":"IF('1. Order'!J1204=\"\",\"\",'1. Order'!J1204)","v":""},{"$f":"IF('1. Order'!K1204=\"\",\"\",'1. Order'!K1204)","v":""},{"$f":"IF('1. Order'!L1204=\"\",\"\",'1. Order'!L1204)","v":""},{"$f":"IF('1. Order'!N1204=\"\",\"\",'1. Order'!N1204)","v":""},null,null,{"$f":"IF('1. Order'!AV1204=\"\",\"\",'1. Order'!AV1204)","v":""},{"$f":"IF('1. Order'!AI1204=\"\",\"\",'1. Order'!AI1204)","v":""}]
[{"$f":"IF('1. Order'!B1205=\"\",\"\",'1. Order'!B1205)","v":""},{"$f":"IF('1. Order'!J1205=\"\",\"\",'1. Order'!J1205)","v":""},{"$f":"IF('1. Order'!K1205=\"\",\"\",'1. Order'!K1205)","v":""},{"$f":"IF('1. Order'!L1205=\"\",\"\",'1. Order'!L1205)","v":""},{"$f":"IF('1. Order'!N1205=\"\",\"\",'1. Order'!N1205)","v":""},null,null,{"$f":"IF('1. Order'!AV1205=\"\",\"\",'1. Order'!AV1205)","v":""},{"$f":"IF('1. Order'!AI1205=\"\",\"\",'1. Order'!AI1205)","v":""}]
[{"$f":"IF('1. Order'!B1206=\"\",\"\",'1. Order'!B1206)","v":""},{"$f":"IF('1. Order'!J1206=\"\",\"\",'1. Order'!J1206)","v":""},{"$f":"IF('1. Order'!K1206=\"\",\"\",'1. Order'!K1206)","v":""},{"$f":"IF('1. Order'!L1206=\"\",\"\",'1. Order'!L1206)","v":""},{"$f":"IF('1. Order'!N1206=\"\",\"\",'1. Order'!N1206)","v":""},null,null,{"$f":"IF('1. Order'!AV1206=\"\",\"\",'1. Order'!AV1206)","v":""},{"$f":"IF('1. Order'!AI1206=\"\",\"\",'1. Order'!AI1206)","v":""}]
[{"$f":"IF('1. Order'!B1207=\"\",\"\",'1. Order'!B1207)","v":""},{"$f":"IF('1. Order'!J1207=\"\",\"\",'1. Order'!J1207)","v":""},{"$f":"IF('1. Order'!K1207=\"\",\"\",'1. Order'!K1207)","v":""},{"$f":"IF('1. Order'!L1207=\"\",\"\",'1. Order'!L1207)","v":""},{"$f":"IF('1. Order'!N1207=\"\",\"\",'1. Order'!N1207)","v":""},null,null,{"$f":"IF('1. Order'!AV1207=\"\",\"\",'1. Order'!AV1207)","v":""},{"$f":"IF('1. Order'!AI1207=\"\",\"\",'1. Order'!AI1207)","v":""}]
[{"$f":"IF('1. Order'!B1208=\"\",\"\",'1. Order'!B1208)","v":""},{"$f":"IF('1. Order'!J1208=\"\",\"\",'1. Order'!J1208)","v":""},{"$f":"IF('1. Order'!K1208=\"\",\"\",'1. Order'!K1208)","v":""},{"$f":"IF('1. Order'!L1208=\"\",\"\",'1. Order'!L1208)","v":""},{"$f":"IF('1. Order'!N1208=\"\",\"\",'1. Order'!N1208)","v":""},null,null,{"$f":"IF('1. Order'!AV1208=\"\",\"\",'1. Order'!AV1208)","v":""},{"$f":"IF('1. Order'!AI1208=\"\",\"\",'1. Order'!AI1208)","v":""}]
[{"$f":"IF('1. Order'!B1209=\"\",\"\",'1. Order'!B1209)","v":""},{"$f":"IF('1. Order'!J1209=\"\",\"\",'1. Order'!J1209)","v":""},{"$f":"IF('1. Order'!K1209=\"\",\"\",'1. Order'!K1209)","v":""},{"$f":"IF('1. Order'!L1209=\"\",\"\",'1. Order'!L1209)","v":""},{"$f":"IF('1. Order'!N1209=\"\",\"\",'1. Order'!N1209)","v":""},null,null,{"$f":"IF('1. Order'!AV1209=\"\",\"\",'1. Order'!AV1209)","v":""},{"$f":"IF('1. Order'!AI1209=\"\",\"\",'1. Order'!AI1209)","v":""}]
[{"$f":"IF('1. Order'!B1210=\"\",\"\",'1. Order'!B1210)","v":""},{"$f":"IF('1. Order'!J1210=\"\",\"\",'1. Order'!J1210)","v":""},{"$f":"IF('1. Order'!K1210=\"\",\"\",'1. Order'!K1210)","v":""},{"$f":"IF('1. Order'!L1210=\"\",\"\",'1. Order'!L1210)","v":""},{"$f":"IF('1. Order'!N1210=\"\",\"\",'1. Order'!N1210)","v":""},null,null,{"$f":"IF('1. Order'!AV1210=\"\",\"\",'1. Order'!AV1210)","v":""},{"$f":"IF('1. Order'!AI1210=\"\",\"\",'1. Order'!AI1210)","v":""}]
[{"$f":"IF('1. Order'!B1211=\"\",\"\",'1. Order'!B1211)","v":""},{"$f":"IF('1. Order'!J1211=\"\",\"\",'1. Order'!J1211)","v":""},{"$f":"IF('1. Order'!K1211=\"\",\"\",'1. Order'!K1211)","v":""},{"$f":"IF('1. Order'!L1211=\"\",\"\",'1. Order'!L1211)","v":""},{"$f":"IF('1. Order'!N1211=\"\",\"\",'1. Order'!N1211)","v":""},null,null,{"$f":"IF('1. Order'!AV1211=\"\",\"\",'1. Order'!AV1211)","v":""},{"$f":"IF('1. Order'!AI1211=\"\",\"\",'1. Order'!AI1211)","v":""}]
[{"$f":"IF('1. Order'!B1212=\"\",\"\",'1. Order'!B1212)","v":""},{"$f":"IF('1. Order'!J1212=\"\",\"\",'1. Order'!J1212)","v":""},{"$f":"IF('1. Order'!K1212=\"\",\"\",'1. Order'!K1212)","v":""},{"$f":"IF('1. Order'!L1212=\"\",\"\",'1. Order'!L1212)","v":""},{"$f":"IF('1. Order'!N1212=\"\",\"\",'1. Order'!N1212)","v":""},null,null,{"$f":"IF('1. Order'!AV1212=\"\",\"\",'1. Order'!AV1212)","v":""},{"$f":"IF('1. Order'!AI1212=\"\",\"\",'1. Order'!AI1212)","v":""}]
[{"$f":"IF('1. Order'!B1213=\"\",\"\",'1. Order'!B1213)","v":""},{"$f":"IF('1. Order'!J1213=\"\",\"\",'1. Order'!J1213)","v":""},{"$f":"IF('1. Order'!K1213=\"\",\"\",'1. Order'!K1213)","v":""},{"$f":"IF('1. Order'!L1213=\"\",\"\",'1. Order'!L1213)","v":""},{"$f":"IF('1. Order'!N1213=\"\",\"\",'1. Order'!N1213)","v":""},null,null,{"$f":"IF('1. Order'!AV1213=\"\",\"\",'1. Order'!AV1213)","v":""},{"$f":"IF('1. Order'!AI1213=\"\",\"\",'1. Order'!AI1213)","v":""}]
[{"$f":"IF('1. Order'!B1214=\"\",\"\",'1. Order'!B1214)","v":""},{"$f":"IF('1. Order'!J1214=\"\",\"\",'1. Order'!J1214)","v":""},{"$f":"IF('1. Order'!K1214=\"\",\"\",'1. Order'!K1214)","v":""},{"$f":"IF('1. Order'!L1214=\"\",\"\",'1. Order'!L1214)","v":""},{"$f":"IF('1. Order'!N1214=\"\",\"\",'1. Order'!N1214)","v":""},null,null,{"$f":"IF('1. Order'!AV1214=\"\",\"\",'1. Order'!AV1214)","v":""},{"$f":"IF('1. Order'!AI1214=\"\",\"\",'1. Order'!AI1214)","v":""}]
[{"$f":"IF('1. Order'!B1215=\"\",\"\",'1. Order'!B1215)","v":""},{"$f":"IF('1. Order'!J1215=\"\",\"\",'1. Order'!J1215)","v":""},{"$f":"IF('1. Order'!K1215=\"\",\"\",'1. Order'!K1215)","v":""},{"$f":"IF('1. Order'!L1215=\"\",\"\",'1. Order'!L1215)","v":""},{"$f":"IF('1. Order'!N1215=\"\",\"\",'1. Order'!N1215)","v":""},null,null,{"$f":"IF('1. Order'!AV1215=\"\",\"\",'1. Order'!AV1215)","v":""},{"$f":"IF('1. Order'!AI1215=\"\",\"\",'1. Order'!AI1215)","v":""}]
[{"$f":"IF('1. Order'!B1216=\"\",\"\",'1. Order'!B1216)","v":""},{"$f":"IF('1. Order'!J1216=\"\",\"\",'1. Order'!J1216)","v":""},{"$f":"IF('1. Order'!K1216=\"\",\"\",'1. Order'!K1216)","v":""},{"$f":"IF('1. Order'!L1216=\"\",\"\",'1. Order'!L1216)","v":""},{"$f":"IF('1. Order'!N1216=\"\",\"\",'1. Order'!N1216)","v":""},null,null,{"$f":"IF('1. Order'!AV1216=\"\",\"\",'1. Order'!AV1216)","v":""},{"$f":"IF('1. Order'!AI1216=\"\",\"\",'1. Order'!AI1216)","v":""}]
[{"$f":"IF('1. Order'!B1217=\"\",\"\",'1. Order'!B1217)","v":""},{"$f":"IF('1. Order'!J1217=\"\",\"\",'1. Order'!J1217)","v":""},{"$f":"IF('1. Order'!K1217=\"\",\"\",'1. Order'!K1217)","v":""},{"$f":"IF('1. Order'!L1217=\"\",\"\",'1. Order'!L1217)","v":""},{"$f":"IF('1. Order'!N1217=\"\",\"\",'1. Order'!N1217)","v":""},null,null,{"$f":"IF('1. Order'!AV1217=\"\",\"\",'1. Order'!AV1217)","v":""},{"$f":"IF('1. Order'!AI1217=\"\",\"\",'1. Order'!AI1217)","v":""}]
[{"$f":"IF('1. Order'!B1218=\"\",\"\",'1. Order'!B1218)","v":""},{"$f":"IF('1. Order'!J1218=\"\",\"\",'1. Order'!J1218)","v":""},{"$f":"IF('1. Order'!K1218=\"\",\"\",'1. Order'!K1218)","v":""},{"$f":"IF('1. Order'!L1218=\"\",\"\",'1. Order'!L1218)","v":""},{"$f":"IF('1. Order'!N1218=\"\",\"\",'1. Order'!N1218)","v":""},null,null,{"$f":"IF('1. Order'!AV1218=\"\",\"\",'1. Order'!AV1218)","v":""},{"$f":"IF('1. Order'!AI1218=\"\",\"\",'1. Order'!AI1218)","v":""}]
[{"$f":"IF('1. Order'!B1219=\"\",\"\",'1. Order'!B1219)","v":""},{"$f":"IF('1. Order'!J1219=\"\",\"\",'1. Order'!J1219)","v":""},{"$f":"IF('1. Order'!K1219=\"\",\"\",'1. Order'!K1219)","v":""},{"$f":"IF('1. Order'!L1219=\"\",\"\",'1. Order'!L1219)","v":""},{"$f":"IF('1. Order'!N1219=\"\",\"\",'1. Order'!N1219)","v":""},null,null,{"$f":"IF('1. Order'!AV1219=\"\",\"\",'1. Order'!AV1219)","v":""},{"$f":"IF('1. Order'!AI1219=\"\",\"\",'1. Order'!AI1219)","v":""}]
[{"$f":"IF('1. Order'!B1220=\"\",\"\",'1. Order'!B1220)","v":""},{"$f":"IF('1. Order'!J1220=\"\",\"\",'1. Order'!J1220)","v":""},{"$f":"IF('1. Order'!K1220=\"\",\"\",'1. Order'!K1220)","v":""},{"$f":"IF('1. Order'!L1220=\"\",\"\",'1. Order'!L1220)","v":""},{"$f":"IF('1. Order'!N1220=\"\",\"\",'1. Order'!N1220)","v":""},null,null,{"$f":"IF('1. Order'!AV1220=\"\",\"\",'1. Order'!AV1220)","v":""},{"$f":"IF('1. Order'!AI1220=\"\",\"\",'1. Order'!AI1220)","v":""}]
[{"$f":"IF('1. Order'!B1221=\"\",\"\",'1. Order'!B1221)","v":""},{"$f":"IF('1. Order'!J1221=\"\",\"\",'1. Order'!J1221)","v":""},{"$f":"IF('1. Order'!K1221=\"\",\"\",'1. Order'!K1221)","v":""},{"$f":"IF('1. Order'!L1221=\"\",\"\",'1. Order'!L1221)","v":""},{"$f":"IF('1. Order'!N1221=\"\",\"\",'1. Order'!N1221)","v":""},null,null,{"$f":"IF('1. Order'!AV1221=\"\",\"\",'1. Order'!AV1221)","v":""},{"$f":"IF('1. Order'!AI1221=\"\",\"\",'1. Order'!AI1221)","v":""}]
[{"$f":"IF('1. Order'!B1222=\"\",\"\",'1. Order'!B1222)","v":""},{"$f":"IF('1. Order'!J1222=\"\",\"\",'1. Order'!J1222)","v":""},{"$f":"IF('1. Order'!K1222=\"\",\"\",'1. Order'!K1222)","v":""},{"$f":"IF('1. Order'!L1222=\"\",\"\",'1. Order'!L1222)","v":""},{"$f":"IF('1. Order'!N1222=\"\",\"\",'1. Order'!N1222)","v":""},null,null,{"$f":"IF('1. Order'!AV1222=\"\",\"\",'1. Order'!AV1222)","v":""},{"$f":"IF('1. Order'!AI1222=\"\",\"\",'1. Order'!AI1222)","v":""}]
[{"$f":"IF('1. Order'!B1223=\"\",\"\",'1. Order'!B1223)","v":""},{"$f":"IF('1. Order'!J1223=\"\",\"\",'1. Order'!J1223)","v":""},{"$f":"IF('1. Order'!K1223=\"\",\"\",'1. Order'!K1223)","v":""},{"$f":"IF('1. Order'!L1223=\"\",\"\",'1. Order'!L1223)","v":""},{"$f":"IF('1. Order'!N1223=\"\",\"\",'1. Order'!N1223)","v":""},null,null,{"$f":"IF('1. Order'!AV1223=\"\",\"\",'1. Order'!AV1223)","v":""},{"$f":"IF('1. Order'!AI1223=\"\",\"\",'1. Order'!AI1223)","v":""}]
[{"$f":"IF('1. Order'!B1224=\"\",\"\",'1. Order'!B1224)","v":""},{"$f":"IF('1. Order'!J1224=\"\",\"\",'1. Order'!J1224)","v":""},{"$f":"IF('1. Order'!K1224=\"\",\"\",'1. Order'!K1224)","v":""},{"$f":"IF('1. Order'!L1224=\"\",\"\",'1. Order'!L1224)","v":""},{"$f":"IF('1. Order'!N1224=\"\",\"\",'1. Order'!N1224)","v":""},null,null,{"$f":"IF('1. Order'!AV1224=\"\",\"\",'1. Order'!AV1224)","v":""},{"$f":"IF('1. Order'!AI1224=\"\",\"\",'1. Order'!AI1224)","v":""}]
[{"$f":"IF('1. Order'!B1225=\"\",\"\",'1. Order'!B1225)","v":""},{"$f":"IF('1. Order'!J1225=\"\",\"\",'1. Order'!J1225)","v":""},{"$f":"IF('1. Order'!K1225=\"\",\"\",'1. Order'!K1225)","v":""},{"$f":"IF('1. Order'!L1225=\"\",\"\",'1. Order'!L1225)","v":""},{"$f":"IF('1. Order'!N1225=\"\",\"\",'1. Order'!N1225)","v":""},null,null,{"$f":"IF('1. Order'!AV1225=\"\",\"\",'1. Order'!AV1225)","v":""},{"$f":"IF('1. Order'!AI1225=\"\",\"\",'1. Order'!AI1225)","v":""}]
[{"$f":"IF('1. Order'!B1226=\"\",\"\",'1. Order'!B1226)","v":""},{"$f":"IF('1. Order'!J1226=\"\",\"\",'1. Order'!J1226)","v":""},{"$f":"IF('1. Order'!K1226=\"\",\"\",'1. Order'!K1226)","v":""},{"$f":"IF('1. Order'!L1226=\"\",\"\",'1. Order'!L1226)","v":""},{"$f":"IF('1. Order'!N1226=\"\",\"\",'1. Order'!N1226)","v":""},null,null,{"$f":"IF('1. Order'!AV1226=\"\",\"\",'1. Order'!AV1226)","v":""},{"$f":"IF('1. Order'!AI1226=\"\",\"\",'1. Order'!AI1226)","v":""}]
[{"$f":"IF('1. Order'!B1227=\"\",\"\",'1. Order'!B1227)","v":""},{"$f":"IF('1. Order'!J1227=\"\",\"\",'1. Order'!J1227)","v":""},{"$f":"IF('1. Order'!K1227=\"\",\"\",'1. Order'!K1227)","v":""},{"$f":"IF('1. Order'!L1227=\"\",\"\",'1. Order'!L1227)","v":""},{"$f":"IF('1. Order'!N1227=\"\",\"\",'1. Order'!N1227)","v":""},null,null,{"$f":"IF('1. Order'!AV1227=\"\",\"\",'1. Order'!AV1227)","v":""},{"$f":"IF('1. Order'!AI1227=\"\",\"\",'1. Order'!AI1227)","v":""}]
[{"$f":"IF('1. Order'!B1228=\"\",\"\",'1. Order'!B1228)","v":""},{"$f":"IF('1. Order'!J1228=\"\",\"\",'1. Order'!J1228)","v":""},{"$f":"IF('1. Order'!K1228=\"\",\"\",'1. Order'!K1228)","v":""},{"$f":"IF('1. Order'!L1228=\"\",\"\",'1. Order'!L1228)","v":""},{"$f":"IF('1. Order'!N1228=\"\",\"\",'1. Order'!N1228)","v":""},null,null,{"$f":"IF('1. Order'!AV1228=\"\",\"\",'1. Order'!AV1228)","v":""},{"$f":"IF('1. Order'!AI1228=\"\",\"\",'1. Order'!AI1228)","v":""}]
[{"$f":"IF('1. Order'!B1229=\"\",\"\",'1. Order'!B1229)","v":""},{"$f":"IF('1. Order'!J1229=\"\",\"\",'1. Order'!J1229)","v":""},{"$f":"IF('1. Order'!K1229=\"\",\"\",'1. Order'!K1229)","v":""},{"$f":"IF('1. Order'!L1229=\"\",\"\",'1. Order'!L1229)","v":""},{"$f":"IF('1. Order'!N1229=\"\",\"\",'1. Order'!N1229)","v":""},null,null,{"$f":"IF('1. Order'!AV1229=\"\",\"\",'1. Order'!AV1229)","v":""},{"$f":"IF('1. Order'!AI1229=\"\",\"\",'1. Order'!AI1229)","v":""}]
[{"$f":"IF('1. Order'!B1230=\"\",\"\",'1. Order'!B1230)","v":""},{"$f":"IF('1. Order'!J1230=\"\",\"\",'1. Order'!J1230)","v":""},{"$f":"IF('1. Order'!K1230=\"\",\"\",'1. Order'!K1230)","v":""},{"$f":"IF('1. Order'!L1230=\"\",\"\",'1. Order'!L1230)","v":""},{"$f":"IF('1. Order'!N1230=\"\",\"\",'1. Order'!N1230)","v":""},null,null,{"$f":"IF('1. Order'!AV1230=\"\",\"\",'1. Order'!AV1230)","v":""},{"$f":"IF('1. Order'!AI1230=\"\",\"\",'1. Order'!AI1230)","v":""}]
[{"$f":"IF('1. Order'!B1231=\"\",\"\",'1. Order'!B1231)","v":""},{"$f":"IF('1. Order'!J1231=\"\",\"\",'1. Order'!J1231)","v":""},{"$f":"IF('1. Order'!K1231=\"\",\"\",'1. Order'!K1231)","v":""},{"$f":"IF('1. Order'!L1231=\"\",\"\",'1. Order'!L1231)","v":""},{"$f":"IF('1. Order'!N1231=\"\",\"\",'1. Order'!N1231)","v":""},null,null,{"$f":"IF('1. Order'!AV1231=\"\",\"\",'1. Order'!AV1231)","v":""},{"$f":"IF('1. Order'!AI1231=\"\",\"\",'1. Order'!AI1231)","v":""}]
[{"$f":"IF('1. Order'!B1232=\"\",\"\",'1. Order'!B1232)","v":""},{"$f":"IF('1. Order'!J1232=\"\",\"\",'1. Order'!J1232)","v":""},{"$f":"IF('1. Order'!K1232=\"\",\"\",'1. Order'!K1232)","v":""},{"$f":"IF('1. Order'!L1232=\"\",\"\",'1. Order'!L1232)","v":""},{"$f":"IF('1. Order'!N1232=\"\",\"\",'1. Order'!N1232)","v":""},null,null,{"$f":"IF('1. Order'!AV1232=\"\",\"\",'1. Order'!AV1232)","v":""},{"$f":"IF('1. Order'!AI1232=\"\",\"\",'1. Order'!AI1232)","v":""}]
[{"$f":"IF('1. Order'!B1233=\"\",\"\",'1. Order'!B1233)","v":""},{"$f":"IF('1. Order'!J1233=\"\",\"\",'1. Order'!J1233)","v":""},{"$f":"IF('1. Order'!K1233=\"\",\"\",'1. Order'!K1233)","v":""},{"$f":"IF('1. Order'!L1233=\"\",\"\",'1. Order'!L1233)","v":""},{"$f":"IF('1. Order'!N1233=\"\",\"\",'1. Order'!N1233)","v":""},null,null,{"$f":"IF('1. Order'!AV1233=\"\",\"\",'1. Order'!AV1233)","v":""},{"$f":"IF('1. Order'!AI1233=\"\",\"\",'1. Order'!AI1233)","v":""}]
[{"$f":"IF('1. Order'!B1234=\"\",\"\",'1. Order'!B1234)","v":""},{"$f":"IF('1. Order'!J1234=\"\",\"\",'1. Order'!J1234)","v":""},{"$f":"IF('1. Order'!K1234=\"\",\"\",'1. Order'!K1234)","v":""},{"$f":"IF('1. Order'!L1234=\"\",\"\",'1. Order'!L1234)","v":""},{"$f":"IF('1. Order'!N1234=\"\",\"\",'1. Order'!N1234)","v":""},null,null,{"$f":"IF('1. Order'!AV1234=\"\",\"\",'1. Order'!AV1234)","v":""},{"$f":"IF('1. Order'!AI1234=\"\",\"\",'1. Order'!AI1234)","v":""}]
[{"$f":"IF('1. Order'!B1235=\"\",\"\",'1. Order'!B1235)","v":""},{"$f":"IF('1. Order'!J1235=\"\",\"\",'1. Order'!J1235)","v":""},{"$f":"IF('1. Order'!K1235=\"\",\"\",'1. Order'!K1235)","v":""},{"$f":"IF('1. Order'!L1235=\"\",\"\",'1. Order'!L1235)","v":""},{"$f":"IF('1. Order'!N1235=\"\",\"\",'1. Order'!N1235)","v":""},null,null,{"$f":"IF('1. Order'!AV1235=\"\",\"\",'1. Order'!AV1235)","v":""},{"$f":"IF('1. Order'!AI1235=\"\",\"\",'1. Order'!AI1235)","v":""}]
[{"$f":"IF('1. Order'!B1236=\"\",\"\",'1. Order'!B1236)","v":""},{"$f":"IF('1. Order'!J1236=\"\",\"\",'1. Order'!J1236)","v":""},{"$f":"IF('1. Order'!K1236=\"\",\"\",'1. Order'!K1236)","v":""},{"$f":"IF('1. Order'!L1236=\"\",\"\",'1. Order'!L1236)","v":""},{"$f":"IF('1. Order'!N1236=\"\",\"\",'1. Order'!N1236)","v":""},null,null,{"$f":"IF('1. Order'!AV1236=\"\",\"\",'1. Order'!AV1236)","v":""},{"$f":"IF('1. Order'!AI1236=\"\",\"\",'1. Order'!AI1236)","v":""}]
[{"$f":"IF('1. Order'!B1237=\"\",\"\",'1. Order'!B1237)","v":""},{"$f":"IF('1. Order'!J1237=\"\",\"\",'1. Order'!J1237)","v":""},{"$f":"IF('1. Order'!K1237=\"\",\"\",'1. Order'!K1237)","v":""},{"$f":"IF('1. Order'!L1237=\"\",\"\",'1. Order'!L1237)","v":""},{"$f":"IF('1. Order'!N1237=\"\",\"\",'1. Order'!N1237)","v":""},null,null,{"$f":"IF('1. Order'!AV1237=\"\",\"\",'1. Order'!AV1237)","v":""},{"$f":"IF('1. Order'!AI1237=\"\",\"\",'1. Order'!AI1237)","v":""}]
[{"$f":"IF('1. Order'!B1238=\"\",\"\",'1. Order'!B1238)","v":""},{"$f":"IF('1. Order'!J1238=\"\",\"\",'1. Order'!J1238)","v":""},{"$f":"IF('1. Order'!K1238=\"\",\"\",'1. Order'!K1238)","v":""},{"$f":"IF('1. Order'!L1238=\"\",\"\",'1. Order'!L1238)","v":""},{"$f":"IF('1. Order'!N1238=\"\",\"\",'1. Order'!N1238)","v":""},null,null,{"$f":"IF('1. Order'!AV1238=\"\",\"\",'1. Order'!AV1238)","v":""},{"$f":"IF('1. Order'!AI1238=\"\",\"\",'1. Order'!AI1238)","v":""}]
[{"$f":"IF('1. Order'!B1239=\"\",\"\",'1. Order'!B1239)","v":""},{"$f":"IF('1. Order'!J1239=\"\",\"\",'1. Order'!J1239)","v":""},{"$f":"IF('1. Order'!K1239=\"\",\"\",'1. Order'!K1239)","v":""},{"$f":"IF('1. Order'!L1239=\"\",\"\",'1. Order'!L1239)","v":""},{"$f":"IF('1. Order'!N1239=\"\",\"\",'1. Order'!N1239)","v":""},null,null,{"$f":"IF('1. Order'!AV1239=\"\",\"\",'1. Order'!AV1239)","v":""},{"$f":"IF('1. Order'!AI1239=\"\",\"\",'1. Order'!AI1239)","v":""}]
[{"$f":"IF('1. Order'!B1240=\"\",\"\",'1. Order'!B1240)","v":""},{"$f":"IF('1. Order'!J1240=\"\",\"\",'1. Order'!J1240)","v":""},{"$f":"IF('1. Order'!K1240=\"\",\"\",'1. Order'!K1240)","v":""},{"$f":"IF('1. Order'!L1240=\"\",\"\",'1. Order'!L1240)","v":""},{"$f":"IF('1. Order'!N1240=\"\",\"\",'1. Order'!N1240)","v":""},null,null,{"$f":"IF('1. Order'!AV1240=\"\",\"\",'1. Order'!AV1240)","v":""},{"$f":"IF('1. Order'!AI1240=\"\",\"\",'1. Order'!AI1240)","v":""}]
[{"$f":"IF('1. Order'!B1241=\"\",\"\",'1. Order'!B1241)","v":""},{"$f":"IF('1. Order'!J1241=\"\",\"\",'1. Order'!J1241)","v":""},{"$f":"IF('1. Order'!K1241=\"\",\"\",'1. Order'!K1241)","v":""},{"$f":"IF('1. Order'!L1241=\"\",\"\",'1. Order'!L1241)","v":""},{"$f":"IF('1. Order'!N1241=\"\",\"\",'1. Order'!N1241)","v":""},null,null,{"$f":"IF('1. Order'!AV1241=\"\",\"\",'1. Order'!AV1241)","v":""},{"$f":"IF('1. Order'!AI1241=\"\",\"\",'1. Order'!AI1241)","v":""}]
[{"$f":"IF('1. Order'!B1242=\"\",\"\",'1. Order'!B1242)","v":""},{"$f":"IF('1. Order'!J1242=\"\",\"\",'1. Order'!J1242)","v":""},{"$f":"IF('1. Order'!K1242=\"\",\"\",'1. Order'!K1242)","v":""},{"$f":"IF('1. Order'!L1242=\"\",\"\",'1. Order'!L1242)","v":""},{"$f":"IF('1. Order'!N1242=\"\",\"\",'1. Order'!N1242)","v":""},null,null,{"$f":"IF('1. Order'!AV1242=\"\",\"\",'1. Order'!AV1242)","v":""},{"$f":"IF('1. Order'!AI1242=\"\",\"\",'1. Order'!AI1242)","v":""}]
[{"$f":"IF('1. Order'!B1243=\"\",\"\",'1. Order'!B1243)","v":""},{"$f":"IF('1. Order'!J1243=\"\",\"\",'1. Order'!J1243)","v":""},{"$f":"IF('1. Order'!K1243=\"\",\"\",'1. Order'!K1243)","v":""},{"$f":"IF('1. Order'!L1243=\"\",\"\",'1. Order'!L1243)","v":""},{"$f":"IF('1. Order'!N1243=\"\",\"\",'1. Order'!N1243)","v":""},null,null,{"$f":"IF('1. Order'!AV1243=\"\",\"\",'1. Order'!AV1243)","v":""},{"$f":"IF('1. Order'!AI1243=\"\",\"\",'1. Order'!AI1243)","v":""}]
[{"$f":"IF('1. Order'!B1244=\"\",\"\",'1. Order'!B1244)","v":""},{"$f":"IF('1. Order'!J1244=\"\",\"\",'1. Order'!J1244)","v":""},{"$f":"IF('1. Order'!K1244=\"\",\"\",'1. Order'!K1244)","v":""},{"$f":"IF('1. Order'!L1244=\"\",\"\",'1. Order'!L1244)","v":""},{"$f":"IF('1. Order'!N1244=\"\",\"\",'1. Order'!N1244)","v":""},null,null,{"$f":"IF('1. Order'!AV1244=\"\",\"\",'1. Order'!AV1244)","v":""},{"$f":"IF('1. Order'!AI1244=\"\",\"\",'1. Order'!AI1244)","v":""}]
[{"$f":"IF('1. Order'!B1245=\"\",\"\",'1. Order'!B1245)","v":""},{"$f":"IF('1. Order'!J1245=\"\",\"\",'1. Order'!J1245)","v":""},{"$f":"IF('1. Order'!K1245=\"\",\"\",'1. Order'!K1245)","v":""},{"$f":"IF('1. Order'!L1245=\"\",\"\",'1. Order'!L1245)","v":""},{"$f":"IF('1. Order'!N1245=\"\",\"\",'1. Order'!N1245)","v":""},null,null,{"$f":"IF('1. Order'!AV1245=\"\",\"\",'1. Order'!AV1245)","v":""},{"$f":"IF('1. Order'!AI1245=\"\",\"\",'1. Order'!AI1245)","v":""}]
[{"$f":"IF('1. Order'!B1246=\"\",\"\",'1. Order'!B1246)","v":""},{"$f":"IF('1. Order'!J1246=\"\",\"\",'1. Order'!J1246)","v":""},{"$f":"IF('1. Order'!K1246=\"\",\"\",'1. Order'!K1246)","v":""},{"$f":"IF('1. Order'!L1246=\"\",\"\",'1. Order'!L1246)","v":""},{"$f":"IF('1. Order'!N1246=\"\",\"\",'1. Order'!N1246)","v":""},null,null,{"$f":"IF('1. Order'!AV1246=\"\",\"\",'1. Order'!AV1246)","v":""},{"$f":"IF('1. Order'!AI1246=\"\",\"\",'1. Order'!AI1246)","v":""}]
[{"$f":"IF('1. Order'!B1247=\"\",\"\",'1. Order'!B1247)","v":""},{"$f":"IF('1. Order'!J1247=\"\",\"\",'1. Order'!J1247)","v":""},{"$f":"IF('1. Order'!K1247=\"\",\"\",'1. Order'!K1247)","v":""},{"$f":"IF('1. Order'!L1247=\"\",\"\",'1. Order'!L1247)","v":""},{"$f":"IF('1. Order'!N1247=\"\",\"\",'1. Order'!N1247)","v":""},null,null,{"$f":"IF('1. Order'!AV1247=\"\",\"\",'1. Order'!AV1247)","v":""},{"$f":"IF('1. Order'!AI1247=\"\",\"\",'1. Order'!AI1247)","v":""}]
[{"$f":"IF('1. Order'!B1248=\"\",\"\",'1. Order'!B1248)","v":""},{"$f":"IF('1. Order'!J1248=\"\",\"\",'1. Order'!J1248)","v":""},{"$f":"IF('1. Order'!K1248=\"\",\"\",'1. Order'!K1248)","v":""},{"$f":"IF('1. Order'!L1248=\"\",\"\",'1. Order'!L1248)","v":""},{"$f":"IF('1. Order'!N1248=\"\",\"\",'1. Order'!N1248)","v":""},null,null,{"$f":"IF('1. Order'!AV1248=\"\",\"\",'1. Order'!AV1248)","v":""},{"$f":"IF('1. Order'!AI1248=\"\",\"\",'1. Order'!AI1248)","v":""}]
[{"$f":"IF('1. Order'!B1249=\"\",\"\",'1. Order'!B1249)","v":""},{"$f":"IF('1. Order'!J1249=\"\",\"\",'1. Order'!J1249)","v":""},{"$f":"IF('1. Order'!K1249=\"\",\"\",'1. Order'!K1249)","v":""},{"$f":"IF('1. Order'!L1249=\"\",\"\",'1. Order'!L1249)","v":""},{"$f":"IF('1. Order'!N1249=\"\",\"\",'1. Order'!N1249)","v":""},null,null,{"$f":"IF('1. Order'!AV1249=\"\",\"\",'1. Order'!AV1249)","v":""},{"$f":"IF('1. Order'!AI1249=\"\",\"\",'1. Order'!AI1249)","v":""}]
[{"$f":"IF('1. Order'!B1250=\"\",\"\",'1. Order'!B1250)","v":""},{"$f":"IF('1. Order'!J1250=\"\",\"\",'1. Order'!J1250)","v":""},{"$f":"IF('1. Order'!K1250=\"\",\"\",'1. Order'!K1250)","v":""},{"$f":"IF('1. Order'!L1250=\"\",\"\",'1. Order'!L1250)","v":""},{"$f":"IF('1. Order'!N1250=\"\",\"\",'1. Order'!N1250)","v":""},null,null,{"$f":"IF('1. Order'!AV1250=\"\",\"\",'1. Order'!AV1250)","v":""},{"$f":"IF('1. Order'!AI1250=\"\",\"\",'1. Order'!AI1250)","v":""}]
[{"$f":"IF('1. Order'!B1251=\"\",\"\",'1. Order'!B1251)","v":""},{"$f":"IF('1. Order'!J1251=\"\",\"\",'1. Order'!J1251)","v":""},{"$f":"IF('1. Order'!K1251=\"\",\"\",'1. Order'!K1251)","v":""},{"$f":"IF('1. Order'!L1251=\"\",\"\",'1. Order'!L1251)","v":""},{"$f":"IF('1. Order'!N1251=\"\",\"\",'1. Order'!N1251)","v":""},null,null,{"$f":"IF('1. Order'!AV1251=\"\",\"\",'1. Order'!AV1251)","v":""},{"$f":"IF('1. Order'!AI1251=\"\",\"\",'1. Order'!AI1251)","v":""}]
[{"$f":"IF('1. Order'!B1252=\"\",\"\",'1. Order'!B1252)","v":""},{"$f":"IF('1. Order'!J1252=\"\",\"\",'1. Order'!J1252)","v":""},{"$f":"IF('1. Order'!K1252=\"\",\"\",'1. Order'!K1252)","v":""},{"$f":"IF('1. Order'!L1252=\"\",\"\",'1. Order'!L1252)","v":""},{"$f":"IF('1. Order'!N1252=\"\",\"\",'1. Order'!N1252)","v":""},null,null,{"$f":"IF('1. Order'!AV1252=\"\",\"\",'1. Order'!AV1252)","v":""},{"$f":"IF('1. Order'!AI1252=\"\",\"\",'1. Order'!AI1252)","v":""}]
[{"$f":"IF('1. Order'!B1253=\"\",\"\",'1. Order'!B1253)","v":""},{"$f":"IF('1. Order'!J1253=\"\",\"\",'1. Order'!J1253)","v":""},{"$f":"IF('1. Order'!K1253=\"\",\"\",'1. Order'!K1253)","v":""},{"$f":"IF('1. Order'!L1253=\"\",\"\",'1. Order'!L1253)","v":""},{"$f":"IF('1. Order'!N1253=\"\",\"\",'1. Order'!N1253)","v":""},null,null,{"$f":"IF('1. Order'!AV1253=\"\",\"\",'1. Order'!AV1253)","v":""},{"$f":"IF('1. Order'!AI1253=\"\",\"\",'1. Order'!AI1253)","v":""}]
[{"$f":"IF('1. Order'!B1254=\"\",\"\",'1. Order'!B1254)","v":""},{"$f":"IF('1. Order'!J1254=\"\",\"\",'1. Order'!J1254)","v":""},{"$f":"IF('1. Order'!K1254=\"\",\"\",'1. Order'!K1254)","v":""},{"$f":"IF('1. Order'!L1254=\"\",\"\",'1. Order'!L1254)","v":""},{"$f":"IF('1. Order'!N1254=\"\",\"\",'1. Order'!N1254)","v":""},null,null,{"$f":"IF('1. Order'!AV1254=\"\",\"\",'1. Order'!AV1254)","v":""},{"$f":"IF('1. Order'!AI1254=\"\",\"\",'1. Order'!AI1254)","v":""}]
[{"$f":"IF('1. Order'!B1255=\"\",\"\",'1. Order'!B1255)","v":""},{"$f":"IF('1. Order'!J1255=\"\",\"\",'1. Order'!J1255)","v":""},{"$f":"IF('1. Order'!K1255=\"\",\"\",'1. Order'!K1255)","v":""},{"$f":"IF('1. Order'!L1255=\"\",\"\",'1. Order'!L1255)","v":""},{"$f":"IF('1. Order'!N1255=\"\",\"\",'1. Order'!N1255)","v":""},null,null,{"$f":"IF('1. Order'!AV1255=\"\",\"\",'1. Order'!AV1255)","v":""},{"$f":"IF('1. Order'!AI1255=\"\",\"\",'1. Order'!AI1255)","v":""}]
[{"$f":"IF('1. Order'!B1256=\"\",\"\",'1. Order'!B1256)","v":""},{"$f":"IF('1. Order'!J1256=\"\",\"\",'1. Order'!J1256)","v":""},{"$f":"IF('1. Order'!K1256=\"\",\"\",'1. Order'!K1256)","v":""},{"$f":"IF('1. Order'!L1256=\"\",\"\",'1. Order'!L1256)","v":""},{"$f":"IF('1. Order'!N1256=\"\",\"\",'1. Order'!N1256)","v":""},null,null,{"$f":"IF('1. Order'!AV1256=\"\",\"\",'1. Order'!AV1256)","v":""},{"$f":"IF('1. Order'!AI1256=\"\",\"\",'1. Order'!AI1256)","v":""}]
[{"$f":"IF('1. Order'!B1257=\"\",\"\",'1. Order'!B1257)","v":""},{"$f":"IF('1. Order'!J1257=\"\",\"\",'1. Order'!J1257)","v":""},{"$f":"IF('1. Order'!K1257=\"\",\"\",'1. Order'!K1257)","v":""},{"$f":"IF('1. Order'!L1257=\"\",\"\",'1. Order'!L1257)","v":""},{"$f":"IF('1. Order'!N1257=\"\",\"\",'1. Order'!N1257)","v":""},null,null,{"$f":"IF('1. Order'!AV1257=\"\",\"\",'1. Order'!AV1257)","v":""},{"$f":"IF('1. Order'!AI1257=\"\",\"\",'1. Order'!AI1257)","v":""}]
[{"$f":"IF('1. Order'!B1258=\"\",\"\",'1. Order'!B1258)","v":""},{"$f":"IF('1. Order'!J1258=\"\",\"\",'1. Order'!J1258)","v":""},{"$f":"IF('1. Order'!K1258=\"\",\"\",'1. Order'!K1258)","v":""},{"$f":"IF('1. Order'!L1258=\"\",\"\",'1. Order'!L1258)","v":""},{"$f":"IF('1. Order'!N1258=\"\",\"\",'1. Order'!N1258)","v":""},null,null,{"$f":"IF('1. Order'!AV1258=\"\",\"\",'1. Order'!AV1258)","v":""},{"$f":"IF('1. Order'!AI1258=\"\",\"\",'1. Order'!AI1258)","v":""}]
[{"$f":"IF('1. Order'!B1259=\"\",\"\",'1. Order'!B1259)","v":""},{"$f":"IF('1. Order'!J1259=\"\",\"\",'1. Order'!J1259)","v":""},{"$f":"IF('1. Order'!K1259=\"\",\"\",'1. Order'!K1259)","v":""},{"$f":"IF('1. Order'!L1259=\"\",\"\",'1. Order'!L1259)","v":""},{"$f":"IF('1. Order'!N1259=\"\",\"\",'1. Order'!N1259)","v":""},null,null,{"$f":"IF('1. Order'!AV1259=\"\",\"\",'1. Order'!AV1259)","v":""},{"$f":"IF('1. Order'!AI1259=\"\",\"\",'1. Order'!AI1259)","v":""}]
[{"$f":"IF('1. Order'!B1260=\"\",\"\",'1. Order'!B1260)","v":""},{"$f":"IF('1. Order'!J1260=\"\",\"\",'1. Order'!J1260)","v":""},{"$f":"IF('1. Order'!K1260=\"\",\"\",'1. Order'!K1260)","v":""},{"$f":"IF('1. Order'!L1260=\"\",\"\",'1. Order'!L1260)","v":""},{"$f":"IF('1. Order'!N1260=\"\",\"\",'1. Order'!N1260)","v":""},null,null,{"$f":"IF('1. Order'!AV1260=\"\",\"\",'1. Order'!AV1260)","v":""},{"$f":"IF('1. Order'!AI1260=\"\",\"\",'1. Order'!AI1260)","v":""}]
[{"$f":"IF('1. Order'!B1261=\"\",\"\",'1. Order'!B1261)","v":""},{"$f":"IF('1. Order'!J1261=\"\",\"\",'1. Order'!J1261)","v":""},{"$f":"IF('1. Order'!K1261=\"\",\"\",'1. Order'!K1261)","v":""},{"$f":"IF('1. Order'!L1261=\"\",\"\",'1. Order'!L1261)","v":""},{"$f":"IF('1. Order'!N1261=\"\",\"\",'1. Order'!N1261)","v":""},null,null,{"$f":"IF('1. Order'!AV1261=\"\",\"\",'1. Order'!AV1261)","v":""},{"$f":"IF('1. Order'!AI1261=\"\",\"\",'1. Order'!AI1261)","v":""}]
[{"$f":"IF('1. Order'!B1262=\"\",\"\",'1. Order'!B1262)","v":""},{"$f":"IF('1. Order'!J1262=\"\",\"\",'1. Order'!J1262)","v":""},{"$f":"IF('1. Order'!K1262=\"\",\"\",'1. Order'!K1262)","v":""},{"$f":"IF('1. Order'!L1262=\"\",\"\",'1. Order'!L1262)","v":""},{"$f":"IF('1. Order'!N1262=\"\",\"\",'1. Order'!N1262)","v":""},null,null,{"$f":"IF('1. Order'!AV1262=\"\",\"\",'1. Order'!AV1262)","v":""},{"$f":"IF('1. Order'!AI1262=\"\",\"\",'1. Order'!AI1262)","v":""}]
[{"$f":"IF('1. Order'!B1263=\"\",\"\",'1. Order'!B1263)","v":""},{"$f":"IF('1. Order'!J1263=\"\",\"\",'1. Order'!J1263)","v":""},{"$f":"IF('1. Order'!K1263=\"\",\"\",'1. Order'!K1263)","v":""},{"$f":"IF('1. Order'!L1263=\"\",\"\",'1. Order'!L1263)","v":""},{"$f":"IF('1. Order'!N1263=\"\",\"\",'1. Order'!N1263)","v":""},null,null,{"$f":"IF('1. Order'!AV1263=\"\",\"\",'1. Order'!AV1263)","v":""},{"$f":"IF('1. Order'!AI1263=\"\",\"\",'1. Order'!AI1263)","v":""}]
[{"$f":"IF('1. Order'!B1264=\"\",\"\",'1. Order'!B1264)","v":""},{"$f":"IF('1. Order'!J1264=\"\",\"\",'1. Order'!J1264)","v":""},{"$f":"IF('1. Order'!K1264=\"\",\"\",'1. Order'!K1264)","v":""},{"$f":"IF('1. Order'!L1264=\"\",\"\",'1. Order'!L1264)","v":""},{"$f":"IF('1. Order'!N1264=\"\",\"\",'1. Order'!N1264)","v":""},null,null,{"$f":"IF('1. Order'!AV1264=\"\",\"\",'1. Order'!AV1264)","v":""},{"$f":"IF('1. Order'!AI1264=\"\",\"\",'1. Order'!AI1264)","v":""}]
[{"$f":"IF('1. Order'!B1265=\"\",\"\",'1. Order'!B1265)","v":""},{"$f":"IF('1. Order'!J1265=\"\",\"\",'1. Order'!J1265)","v":""},{"$f":"IF('1. Order'!K1265=\"\",\"\",'1. Order'!K1265)","v":""},{"$f":"IF('1. Order'!L1265=\"\",\"\",'1. Order'!L1265)","v":""},{"$f":"IF('1. Order'!N1265=\"\",\"\",'1. Order'!N1265)","v":""},null,null,{"$f":"IF('1. Order'!AV1265=\"\",\"\",'1. Order'!AV1265)","v":""},{"$f":"IF('1. Order'!AI1265=\"\",\"\",'1. Order'!AI1265)","v":""}]
[{"$f":"IF('1. Order'!B1266=\"\",\"\",'1. Order'!B1266)","v":""},{"$f":"IF('1. Order'!J1266=\"\",\"\",'1. Order'!J1266)","v":""},{"$f":"IF('1. Order'!K1266=\"\",\"\",'1. Order'!K1266)","v":""},{"$f":"IF('1. Order'!L1266=\"\",\"\",'1. Order'!L1266)","v":""},{"$f":"IF('1. Order'!N1266=\"\",\"\",'1. Order'!N1266)","v":""},null,null,{"$f":"IF('1. Order'!AV1266=\"\",\"\",'1. Order'!AV1266)","v":""},{"$f":"IF('1. Order'!AI1266=\"\",\"\",'1. Order'!AI1266)","v":""}]
[{"$f":"IF('1. Order'!B1267=\"\",\"\",'1. Order'!B1267)","v":""},{"$f":"IF('1. Order'!J1267=\"\",\"\",'1. Order'!J1267)","v":""},{"$f":"IF('1. Order'!K1267=\"\",\"\",'1. Order'!K1267)","v":""},{"$f":"IF('1. Order'!L1267=\"\",\"\",'1. Order'!L1267)","v":""},{"$f":"IF('1. Order'!N1267=\"\",\"\",'1. Order'!N1267)","v":""},null,null,{"$f":"IF('1. Order'!AV1267=\"\",\"\",'1. Order'!AV1267)","v":""},{"$f":"IF('1. Order'!AI1267=\"\",\"\",'1. Order'!AI1267)","v":""}]
[{"$f":"IF('1. Order'!B1268=\"\",\"\",'1. Order'!B1268)","v":""},{"$f":"IF('1. Order'!J1268=\"\",\"\",'1. Order'!J1268)","v":""},{"$f":"IF('1. Order'!K1268=\"\",\"\",'1. Order'!K1268)","v":""},{"$f":"IF('1. Order'!L1268=\"\",\"\",'1. Order'!L1268)","v":""},{"$f":"IF('1. Order'!N1268=\"\",\"\",'1. Order'!N1268)","v":""},null,null,{"$f":"IF('1. Order'!AV1268=\"\",\"\",'1. Order'!AV1268)","v":""},{"$f":"IF('1. Order'!AI1268=\"\",\"\",'1. Order'!AI1268)","v":""}]
[{"$f":"IF('1. Order'!B1269=\"\",\"\",'1. Order'!B1269)","v":""},{"$f":"IF('1. Order'!J1269=\"\",\"\",'1. Order'!J1269)","v":""},{"$f":"IF('1. Order'!K1269=\"\",\"\",'1. Order'!K1269)","v":""},{"$f":"IF('1. Order'!L1269=\"\",\"\",'1. Order'!L1269)","v":""},{"$f":"IF('1. Order'!N1269=\"\",\"\",'1. Order'!N1269)","v":""},null,null,{"$f":"IF('1. Order'!AV1269=\"\",\"\",'1. Order'!AV1269)","v":""},{"$f":"IF('1. Order'!AI1269=\"\",\"\",'1. Order'!AI1269)","v":""}]
[{"$f":"IF('1. Order'!B1270=\"\",\"\",'1. Order'!B1270)","v":""},{"$f":"IF('1. Order'!J1270=\"\",\"\",'1. Order'!J1270)","v":""},{"$f":"IF('1. Order'!K1270=\"\",\"\",'1. Order'!K1270)","v":""},{"$f":"IF('1. Order'!L1270=\"\",\"\",'1. Order'!L1270)","v":""},{"$f":"IF('1. Order'!N1270=\"\",\"\",'1. Order'!N1270)","v":""},null,null,{"$f":"IF('1. Order'!AV1270=\"\",\"\",'1. Order'!AV1270)","v":""},{"$f":"IF('1. Order'!AI1270=\"\",\"\",'1. Order'!AI1270)","v":""}]
[{"$f":"IF('1. Order'!B1271=\"\",\"\",'1. Order'!B1271)","v":""},{"$f":"IF('1. Order'!J1271=\"\",\"\",'1. Order'!J1271)","v":""},{"$f":"IF('1. Order'!K1271=\"\",\"\",'1. Order'!K1271)","v":""},{"$f":"IF('1. Order'!L1271=\"\",\"\",'1. Order'!L1271)","v":""},{"$f":"IF('1. Order'!N1271=\"\",\"\",'1. Order'!N1271)","v":""},null,null,{"$f":"IF('1. Order'!AV1271=\"\",\"\",'1. Order'!AV1271)","v":""},{"$f":"IF('1. Order'!AI1271=\"\",\"\",'1. Order'!AI1271)","v":""}]
[{"$f":"IF('1. Order'!B1272=\"\",\"\",'1. Order'!B1272)","v":""},{"$f":"IF('1. Order'!J1272=\"\",\"\",'1. Order'!J1272)","v":""},{"$f":"IF('1. Order'!K1272=\"\",\"\",'1. Order'!K1272)","v":""},{"$f":"IF('1. Order'!L1272=\"\",\"\",'1. Order'!L1272)","v":""},{"$f":"IF('1. Order'!N1272=\"\",\"\",'1. Order'!N1272)","v":""},null,null,{"$f":"IF('1. Order'!AV1272=\"\",\"\",'1. Order'!AV1272)","v":""},{"$f":"IF('1. Order'!AI1272=\"\",\"\",'1. Order'!AI1272)","v":""}]
[{"$f":"IF('1. Order'!B1273=\"\",\"\",'1. Order'!B1273)","v":""},{"$f":"IF('1. Order'!J1273=\"\",\"\",'1. Order'!J1273)","v":""},{"$f":"IF('1. Order'!K1273=\"\",\"\",'1. Order'!K1273)","v":""},{"$f":"IF('1. Order'!L1273=\"\",\"\",'1. Order'!L1273)","v":""},{"$f":"IF('1. Order'!N1273=\"\",\"\",'1. Order'!N1273)","v":""},null,null,{"$f":"IF('1. Order'!AV1273=\"\",\"\",'1. Order'!AV1273)","v":""},{"$f":"IF('1. Order'!AI1273=\"\",\"\",'1. Order'!AI1273)","v":""}]
[{"$f":"IF('1. Order'!B1274=\"\",\"\",'1. Order'!B1274)","v":""},{"$f":"IF('1. Order'!J1274=\"\",\"\",'1. Order'!J1274)","v":""},{"$f":"IF('1. Order'!K1274=\"\",\"\",'1. Order'!K1274)","v":""},{"$f":"IF('1. Order'!L1274=\"\",\"\",'1. Order'!L1274)","v":""},{"$f":"IF('1. Order'!N1274=\"\",\"\",'1. Order'!N1274)","v":""},null,null,{"$f":"IF('1. Order'!AV1274=\"\",\"\",'1. Order'!AV1274)","v":""},{"$f":"IF('1. Order'!AI1274=\"\",\"\",'1. Order'!AI1274)","v":""}]
[{"$f":"IF('1. Order'!B1275=\"\",\"\",'1. Order'!B1275)","v":""},{"$f":"IF('1. Order'!J1275=\"\",\"\",'1. Order'!J1275)","v":""},{"$f":"IF('1. Order'!K1275=\"\",\"\",'1. Order'!K1275)","v":""},{"$f":"IF('1. Order'!L1275=\"\",\"\",'1. Order'!L1275)","v":""},{"$f":"IF('1. Order'!N1275=\"\",\"\",'1. Order'!N1275)","v":""},null,null,{"$f":"IF('1. Order'!AV1275=\"\",\"\",'1. Order'!AV1275)","v":""},{"$f":"IF('1. Order'!AI1275=\"\",\"\",'1. Order'!AI1275)","v":""}]
[{"$f":"IF('1. Order'!B1276=\"\",\"\",'1. Order'!B1276)","v":""},{"$f":"IF('1. Order'!J1276=\"\",\"\",'1. Order'!J1276)","v":""},{"$f":"IF('1. Order'!K1276=\"\",\"\",'1. Order'!K1276)","v":""},{"$f":"IF('1. Order'!L1276=\"\",\"\",'1. Order'!L1276)","v":""},{"$f":"IF('1. Order'!N1276=\"\",\"\",'1. Order'!N1276)","v":""},null,null,{"$f":"IF('1. Order'!AV1276=\"\",\"\",'1. Order'!AV1276)","v":""},{"$f":"IF('1. Order'!AI1276=\"\",\"\",'1. Order'!AI1276)","v":""}]
[{"$f":"IF('1. Order'!B1277=\"\",\"\",'1. Order'!B1277)","v":""},{"$f":"IF('1. Order'!J1277=\"\",\"\",'1. Order'!J1277)","v":""},{"$f":"IF('1. Order'!K1277=\"\",\"\",'1. Order'!K1277)","v":""},{"$f":"IF('1. Order'!L1277=\"\",\"\",'1. Order'!L1277)","v":""},{"$f":"IF('1. Order'!N1277=\"\",\"\",'1. Order'!N1277)","v":""},null,null,{"$f":"IF('1. Order'!AV1277=\"\",\"\",'1. Order'!AV1277)","v":""},{"$f":"IF('1. Order'!AI1277=\"\",\"\",'1. Order'!AI1277)","v":""}]
[{"$f":"IF('1. Order'!B1278=\"\",\"\",'1. Order'!B1278)","v":""},{"$f":"IF('1. Order'!J1278=\"\",\"\",'1. Order'!J1278)","v":""},{"$f":"IF('1. Order'!K1278=\"\",\"\",'1. Order'!K1278)","v":""},{"$f":"IF('1. Order'!L1278=\"\",\"\",'1. Order'!L1278)","v":""},{"$f":"IF('1. Order'!N1278=\"\",\"\",'1. Order'!N1278)","v":""},null,null,{"$f":"IF('1. Order'!AV1278=\"\",\"\",'1. Order'!AV1278)","v":""},{"$f":"IF('1. Order'!AI1278=\"\",\"\",'1. Order'!AI1278)","v":""}]
[{"$f":"IF('1. Order'!B1279=\"\",\"\",'1. Order'!B1279)","v":""},{"$f":"IF('1. Order'!J1279=\"\",\"\",'1. Order'!J1279)","v":""},{"$f":"IF('1. Order'!K1279=\"\",\"\",'1. Order'!K1279)","v":""},{"$f":"IF('1. Order'!L1279=\"\",\"\",'1. Order'!L1279)","v":""},{"$f":"IF('1. Order'!N1279=\"\",\"\",'1. Order'!N1279)","v":""},null,null,{"$f":"IF('1. Order'!AV1279=\"\",\"\",'1. Order'!AV1279)","v":""},{"$f":"IF('1. Order'!AI1279=\"\",\"\",'1. Order'!AI1279)","v":""}]
[{"$f":"IF('1. Order'!B1280=\"\",\"\",'1. Order'!B1280)","v":""},{"$f":"IF('1. Order'!J1280=\"\",\"\",'1. Order'!J1280)","v":""},{"$f":"IF('1. Order'!K1280=\"\",\"\",'1. Order'!K1280)","v":""},{"$f":"IF('1. Order'!L1280=\"\",\"\",'1. Order'!L1280)","v":""},{"$f":"IF('1. Order'!N1280=\"\",\"\",'1. Order'!N1280)","v":""},null,null,{"$f":"IF('1. Order'!AV1280=\"\",\"\",'1. Order'!AV1280)","v":""},{"$f":"IF('1. Order'!AI1280=\"\",\"\",'1. Order'!AI1280)","v":""}]
[{"$f":"IF('1. Order'!B1281=\"\",\"\",'1. Order'!B1281)","v":""},{"$f":"IF('1. Order'!J1281=\"\",\"\",'1. Order'!J1281)","v":""},{"$f":"IF('1. Order'!K1281=\"\",\"\",'1. Order'!K1281)","v":""},{"$f":"IF('1. Order'!L1281=\"\",\"\",'1. Order'!L1281)","v":""},{"$f":"IF('1. Order'!N1281=\"\",\"\",'1. Order'!N1281)","v":""},null,null,{"$f":"IF('1. Order'!AV1281=\"\",\"\",'1. Order'!AV1281)","v":""},{"$f":"IF('1. Order'!AI1281=\"\",\"\",'1. Order'!AI1281)","v":""}]
[{"$f":"IF('1. Order'!B1282=\"\",\"\",'1. Order'!B1282)","v":""},{"$f":"IF('1. Order'!J1282=\"\",\"\",'1. Order'!J1282)","v":""},{"$f":"IF('1. Order'!K1282=\"\",\"\",'1. Order'!K1282)","v":""},{"$f":"IF('1. Order'!L1282=\"\",\"\",'1. Order'!L1282)","v":""},{"$f":"IF('1. Order'!N1282=\"\",\"\",'1. Order'!N1282)","v":""},null,null,{"$f":"IF('1. Order'!AV1282=\"\",\"\",'1. Order'!AV1282)","v":""},{"$f":"IF('1. Order'!AI1282=\"\",\"\",'1. Order'!AI1282)","v":""}]
[{"$f":"IF('1. Order'!B1283=\"\",\"\",'1. Order'!B1283)","v":""},{"$f":"IF('1. Order'!J1283=\"\",\"\",'1. Order'!J1283)","v":""},{"$f":"IF('1. Order'!K1283=\"\",\"\",'1. Order'!K1283)","v":""},{"$f":"IF('1. Order'!L1283=\"\",\"\",'1. Order'!L1283)","v":""},{"$f":"IF('1. Order'!N1283=\"\",\"\",'1. Order'!N1283)","v":""},null,null,{"$f":"IF('1. Order'!AV1283=\"\",\"\",'1. Order'!AV1283)","v":""},{"$f":"IF('1. Order'!AI1283=\"\",\"\",'1. Order'!AI1283)","v":""}]
[{"$f":"IF('1. Order'!B1284=\"\",\"\",'1. Order'!B1284)","v":""},{"$f":"IF('1. Order'!J1284=\"\",\"\",'1. Order'!J1284)","v":""},{"$f":"IF('1. Order'!K1284=\"\",\"\",'1. Order'!K1284)","v":""},{"$f":"IF('1. Order'!L1284=\"\",\"\",'1. Order'!L1284)","v":""},{"$f":"IF('1. Order'!N1284=\"\",\"\",'1. Order'!N1284)","v":""},null,null,{"$f":"IF('1. Order'!AV1284=\"\",\"\",'1. Order'!AV1284)","v":""},{"$f":"IF('1. Order'!AI1284=\"\",\"\",'1. Order'!AI1284)","v":""}]
[{"$f":"IF('1. Order'!B1285=\"\",\"\",'1. Order'!B1285)","v":""},{"$f":"IF('1. Order'!J1285=\"\",\"\",'1. Order'!J1285)","v":""},{"$f":"IF('1. Order'!K1285=\"\",\"\",'1. Order'!K1285)","v":""},{"$f":"IF('1. Order'!L1285=\"\",\"\",'1. Order'!L1285)","v":""},{"$f":"IF('1. Order'!N1285=\"\",\"\",'1. Order'!N1285)","v":""},null,null,{"$f":"IF('1. Order'!AV1285=\"\",\"\",'1. Order'!AV1285)","v":""},{"$f":"IF('1. Order'!AI1285=\"\",\"\",'1. Order'!AI1285)","v":""}]
[{"$f":"IF('1. Order'!B1286=\"\",\"\",'1. Order'!B1286)","v":""},{"$f":"IF('1. Order'!J1286=\"\",\"\",'1. Order'!J1286)","v":""},{"$f":"IF('1. Order'!K1286=\"\",\"\",'1. Order'!K1286)","v":""},{"$f":"IF('1. Order'!L1286=\"\",\"\",'1. Order'!L1286)","v":""},{"$f":"IF('1. Order'!N1286=\"\",\"\",'1. Order'!N1286)","v":""},null,null,{"$f":"IF('1. Order'!AV1286=\"\",\"\",'1. Order'!AV1286)","v":""},{"$f":"IF('1. Order'!AI1286=\"\",\"\",'1. Order'!AI1286)","v":""}]
[{"$f":"IF('1. Order'!B1287=\"\",\"\",'1. Order'!B1287)","v":""},{"$f":"IF('1. Order'!J1287=\"\",\"\",'1. Order'!J1287)","v":""},{"$f":"IF('1. Order'!K1287=\"\",\"\",'1. Order'!K1287)","v":""},{"$f":"IF('1. Order'!L1287=\"\",\"\",'1. Order'!L1287)","v":""},{"$f":"IF('1. Order'!N1287=\"\",\"\",'1. Order'!N1287)","v":""},null,null,{"$f":"IF('1. Order'!AV1287=\"\",\"\",'1. Order'!AV1287)","v":""},{"$f":"IF('1. Order'!AI1287=\"\",\"\",'1. Order'!AI1287)","v":""}]
[{"$f":"IF('1. Order'!B1288=\"\",\"\",'1. Order'!B1288)","v":""},{"$f":"IF('1. Order'!J1288=\"\",\"\",'1. Order'!J1288)","v":""},{"$f":"IF('1. Order'!K1288=\"\",\"\",'1. Order'!K1288)","v":""},{"$f":"IF('1. Order'!L1288=\"\",\"\",'1. Order'!L1288)","v":""},{"$f":"IF('1. Order'!N1288=\"\",\"\",'1. Order'!N1288)","v":""},null,null,{"$f":"IF('1. Order'!AV1288=\"\",\"\",'1. Order'!AV1288)","v":""},{"$f":"IF('1. Order'!AI1288=\"\",\"\",'1. Order'!AI1288)","v":""}]
[{"$f":"IF('1. Order'!B1289=\"\",\"\",'1. Order'!B1289)","v":""},{"$f":"IF('1. Order'!J1289=\"\",\"\",'1. Order'!J1289)","v":""},{"$f":"IF('1. Order'!K1289=\"\",\"\",'1. Order'!K1289)","v":""},{"$f":"IF('1. Order'!L1289=\"\",\"\",'1. Order'!L1289)","v":""},{"$f":"IF('1. Order'!N1289=\"\",\"\",'1. Order'!N1289)","v":""},null,null,{"$f":"IF('1. Order'!AV1289=\"\",\"\",'1. Order'!AV1289)","v":""},{"$f":"IF('1. Order'!AI1289=\"\",\"\",'1. Order'!AI1289)","v":""}]
[{"$f":"IF('1. Order'!B1290=\"\",\"\",'1. Order'!B1290)","v":""},{"$f":"IF('1. Order'!J1290=\"\",\"\",'1. Order'!J1290)","v":""},{"$f":"IF('1. Order'!K1290=\"\",\"\",'1. Order'!K1290)","v":""},{"$f":"IF('1. Order'!L1290=\"\",\"\",'1. Order'!L1290)","v":""},{"$f":"IF('1. Order'!N1290=\"\",\"\",'1. Order'!N1290)","v":""},null,null,{"$f":"IF('1. Order'!AV1290=\"\",\"\",'1. Order'!AV1290)","v":""},{"$f":"IF('1. Order'!AI1290=\"\",\"\",'1. Order'!AI1290)","v":""}]
[{"$f":"IF('1. Order'!B1291=\"\",\"\",'1. Order'!B1291)","v":""},{"$f":"IF('1. Order'!J1291=\"\",\"\",'1. Order'!J1291)","v":""},{"$f":"IF('1. Order'!K1291=\"\",\"\",'1. Order'!K1291)","v":""},{"$f":"IF('1. Order'!L1291=\"\",\"\",'1. Order'!L1291)","v":""},{"$f":"IF('1. Order'!N1291=\"\",\"\",'1. Order'!N1291)","v":""},null,null,{"$f":"IF('1. Order'!AV1291=\"\",\"\",'1. Order'!AV1291)","v":""},{"$f":"IF('1. Order'!AI1291=\"\",\"\",'1. Order'!AI1291)","v":""}]
[{"$f":"IF('1. Order'!B1292=\"\",\"\",'1. Order'!B1292)","v":""},{"$f":"IF('1. Order'!J1292=\"\",\"\",'1. Order'!J1292)","v":""},{"$f":"IF('1. Order'!K1292=\"\",\"\",'1. Order'!K1292)","v":""},{"$f":"IF('1. Order'!L1292=\"\",\"\",'1. Order'!L1292)","v":""},{"$f":"IF('1. Order'!N1292=\"\",\"\",'1. Order'!N1292)","v":""},null,null,{"$f":"IF('1. Order'!AV1292=\"\",\"\",'1. Order'!AV1292)","v":""},{"$f":"IF('1. Order'!AI1292=\"\",\"\",'1. Order'!AI1292)","v":""}]
[{"$f":"IF('1. Order'!B1293=\"\",\"\",'1. Order'!B1293)","v":""},{"$f":"IF('1. Order'!J1293=\"\",\"\",'1. Order'!J1293)","v":""},{"$f":"IF('1. Order'!K1293=\"\",\"\",'1. Order'!K1293)","v":""},{"$f":"IF('1. Order'!L1293=\"\",\"\",'1. Order'!L1293)","v":""},{"$f":"IF('1. Order'!N1293=\"\",\"\",'1. Order'!N1293)","v":""},null,null,{"$f":"IF('1. Order'!AV1293=\"\",\"\",'1. Order'!AV1293)","v":""},{"$f":"IF('1. Order'!AI1293=\"\",\"\",'1. Order'!AI1293)","v":""}]
[{"$f":"IF('1. Order'!B1294=\"\",\"\",'1. Order'!B1294)","v":""},{"$f":"IF('1. Order'!J1294=\"\",\"\",'1. Order'!J1294)","v":""},{"$f":"IF('1. Order'!K1294=\"\",\"\",'1. Order'!K1294)","v":""},{"$f":"IF('1. Order'!L1294=\"\",\"\",'1. Order'!L1294)","v":""},{"$f":"IF('1. Order'!N1294=\"\",\"\",'1. Order'!N1294)","v":""},null,null,{"$f":"IF('1. Order'!AV1294=\"\",\"\",'1. Order'!AV1294)","v":""},{"$f":"IF('1. Order'!AI1294=\"\",\"\",'1. Order'!AI1294)","v":""}]
[{"$f":"IF('1. Order'!B1295=\"\",\"\",'1. Order'!B1295)","v":""},{"$f":"IF('1. Order'!J1295=\"\",\"\",'1. Order'!J1295)","v":""},{"$f":"IF('1. Order'!K1295=\"\",\"\",'1. Order'!K1295)","v":""},{"$f":"IF('1. Order'!L1295=\"\",\"\",'1. Order'!L1295)","v":""},{"$f":"IF('1. Order'!N1295=\"\",\"\",'1. Order'!N1295)","v":""},null,null,{"$f":"IF('1. Order'!AV1295=\"\",\"\",'1. Order'!AV1295)","v":""},{"$f":"IF('1. Order'!AI1295=\"\",\"\",'1. Order'!AI1295)","v":""}]
[{"$f":"IF('1. Order'!B1296=\"\",\"\",'1. Order'!B1296)","v":""},{"$f":"IF('1. Order'!J1296=\"\",\"\",'1. Order'!J1296)","v":""},{"$f":"IF('1. Order'!K1296=\"\",\"\",'1. Order'!K1296)","v":""},{"$f":"IF('1. Order'!L1296=\"\",\"\",'1. Order'!L1296)","v":""},{"$f":"IF('1. Order'!N1296=\"\",\"\",'1. Order'!N1296)","v":""},null,null,{"$f":"IF('1. Order'!AV1296=\"\",\"\",'1. Order'!AV1296)","v":""},{"$f":"IF('1. Order'!AI1296=\"\",\"\",'1. Order'!AI1296)","v":""}]
[{"$f":"IF('1. Order'!B1297=\"\",\"\",'1. Order'!B1297)","v":""},{"$f":"IF('1. Order'!J1297=\"\",\"\",'1. Order'!J1297)","v":""},{"$f":"IF('1. Order'!K1297=\"\",\"\",'1. Order'!K1297)","v":""},{"$f":"IF('1. Order'!L1297=\"\",\"\",'1. Order'!L1297)","v":""},{"$f":"IF('1. Order'!N1297=\"\",\"\",'1. Order'!N1297)","v":""},null,null,{"$f":"IF('1. Order'!AV1297=\"\",\"\",'1. Order'!AV1297)","v":""},{"$f":"IF('1. Order'!AI1297=\"\",\"\",'1. Order'!AI1297)","v":""}]
[{"$f":"IF('1. Order'!B1298=\"\",\"\",'1. Order'!B1298)","v":""},{"$f":"IF('1. Order'!J1298=\"\",\"\",'1. Order'!J1298)","v":""},{"$f":"IF('1. Order'!K1298=\"\",\"\",'1. Order'!K1298)","v":""},{"$f":"IF('1. Order'!L1298=\"\",\"\",'1. Order'!L1298)","v":""},{"$f":"IF('1. Order'!N1298=\"\",\"\",'1. Order'!N1298)","v":""},null,null,{"$f":"IF('1. Order'!AV1298=\"\",\"\",'1. Order'!AV1298)","v":""},{"$f":"IF('1. Order'!AI1298=\"\",\"\",'1. Order'!AI1298)","v":""}]
[{"$f":"IF('1. Order'!B1299=\"\",\"\",'1. Order'!B1299)","v":""},{"$f":"IF('1. Order'!J1299=\"\",\"\",'1. Order'!J1299)","v":""},{"$f":"IF('1. Order'!K1299=\"\",\"\",'1. Order'!K1299)","v":""},{"$f":"IF('1. Order'!L1299=\"\",\"\",'1. Order'!L1299)","v":""},{"$f":"IF('1. Order'!N1299=\"\",\"\",'1. Order'!N1299)","v":""},null,null,{"$f":"IF('1. Order'!AV1299=\"\",\"\",'1. Order'!AV1299)","v":""},{"$f":"IF('1. Order'!AI1299=\"\",\"\",'1. Order'!AI1299)","v":""}]
[{"$f":"IF('1. Order'!B1300=\"\",\"\",'1. Order'!B1300)","v":""},{"$f":"IF('1. Order'!J1300=\"\",\"\",'1. Order'!J1300)","v":""},{"$f":"IF('1. Order'!K1300=\"\",\"\",'1. Order'!K1300)","v":""},{"$f":"IF('1. Order'!L1300=\"\",\"\",'1. Order'!L1300)","v":""},{"$f":"IF('1. Order'!N1300=\"\",\"\",'1. Order'!N1300)","v":""},null,null,{"$f":"IF('1. Order'!AV1300=\"\",\"\",'1. Order'!AV1300)","v":""},{"$f":"IF('1. Order'!AI1300=\"\",\"\",'1. Order'!AI1300)","v":""}]
[{"$f":"IF('1. Order'!B1301=\"\",\"\",'1. Order'!B1301)","v":""},{"$f":"IF('1. Order'!J1301=\"\",\"\",'1. Order'!J1301)","v":""},{"$f":"IF('1. Order'!K1301=\"\",\"\",'1. Order'!K1301)","v":""},{"$f":"IF('1. Order'!L1301=\"\",\"\",'1. Order'!L1301)","v":""},{"$f":"IF('1. Order'!N1301=\"\",\"\",'1. Order'!N1301)","v":""},null,null,{"$f":"IF('1. Order'!AV1301=\"\",\"\",'1. Order'!AV1301)","v":""},{"$f":"IF('1. Order'!AI1301=\"\",\"\",'1. Order'!AI1301)","v":""}]
[{"$f":"IF('1. Order'!B1302=\"\",\"\",'1. Order'!B1302)","v":""},{"$f":"IF('1. Order'!J1302=\"\",\"\",'1. Order'!J1302)","v":""},{"$f":"IF('1. Order'!K1302=\"\",\"\",'1. Order'!K1302)","v":""},{"$f":"IF('1. Order'!L1302=\"\",\"\",'1. Order'!L1302)","v":""},{"$f":"IF('1. Order'!N1302=\"\",\"\",'1. Order'!N1302)","v":""},null,null,{"$f":"IF('1. Order'!AV1302=\"\",\"\",'1. Order'!AV1302)","v":""},{"$f":"IF('1. Order'!AI1302=\"\",\"\",'1. Order'!AI1302)","v":""}]
[{"$f":"IF('1. Order'!B1303=\"\",\"\",'1. Order'!B1303)","v":""},{"$f":"IF('1. Order'!J1303=\"\",\"\",'1. Order'!J1303)","v":""},{"$f":"IF('1. Order'!K1303=\"\",\"\",'1. Order'!K1303)","v":""},{"$f":"IF('1. Order'!L1303=\"\",\"\",'1. Order'!L1303)","v":""},{"$f":"IF('1. Order'!N1303=\"\",\"\",'1. Order'!N1303)","v":""},null,null,{"$f":"IF('1. Order'!AV1303=\"\",\"\",'1. Order'!AV1303)","v":""},{"$f":"IF('1. Order'!AI1303=\"\",\"\",'1. Order'!AI1303)","v":""}]
[{"$f":"IF('1. Order'!B1304=\"\",\"\",'1. Order'!B1304)","v":""},{"$f":"IF('1. Order'!J1304=\"\",\"\",'1. Order'!J1304)","v":""},{"$f":"IF('1. Order'!K1304=\"\",\"\",'1. Order'!K1304)","v":""},{"$f":"IF('1. Order'!L1304=\"\",\"\",'1. Order'!L1304)","v":""},{"$f":"IF('1. Order'!N1304=\"\",\"\",'1. Order'!N1304)","v":""},null,null,{"$f":"IF('1. Order'!AV1304=\"\",\"\",'1. Order'!AV1304)","v":""},{"$f":"IF('1. Order'!AI1304=\"\",\"\",'1. Order'!AI1304)","v":""}]
[{"$f":"IF('1. Order'!B1305=\"\",\"\",'1. Order'!B1305)","v":""},{"$f":"IF('1. Order'!J1305=\"\",\"\",'1. Order'!J1305)","v":""},{"$f":"IF('1. Order'!K1305=\"\",\"\",'1. Order'!K1305)","v":""},{"$f":"IF('1. Order'!L1305=\"\",\"\",'1. Order'!L1305)","v":""},{"$f":"IF('1. Order'!N1305=\"\",\"\",'1. Order'!N1305)","v":""},null,null,{"$f":"IF('1. Order'!AV1305=\"\",\"\",'1. Order'!AV1305)","v":""},{"$f":"IF('1. Order'!AI1305=\"\",\"\",'1. Order'!AI1305)","v":""}]
[{"$f":"IF('1. Order'!B1306=\"\",\"\",'1. Order'!B1306)","v":""},{"$f":"IF('1. Order'!J1306=\"\",\"\",'1. Order'!J1306)","v":""},{"$f":"IF('1. Order'!K1306=\"\",\"\",'1. Order'!K1306)","v":""},{"$f":"IF('1. Order'!L1306=\"\",\"\",'1. Order'!L1306)","v":""},{"$f":"IF('1. Order'!N1306=\"\",\"\",'1. Order'!N1306)","v":""},null,null,{"$f":"IF('1. Order'!AV1306=\"\",\"\",'1. Order'!AV1306)","v":""},{"$f":"IF('1. Order'!AI1306=\"\",\"\",'1. Order'!AI1306)","v":""}]
[{"$f":"IF('1. Order'!B1307=\"\",\"\",'1. Order'!B1307)","v":""},{"$f":"IF('1. Order'!J1307=\"\",\"\",'1. Order'!J1307)","v":""},{"$f":"IF('1. Order'!K1307=\"\",\"\",'1. Order'!K1307)","v":""},{"$f":"IF('1. Order'!L1307=\"\",\"\",'1. Order'!L1307)","v":""},{"$f":"IF('1. Order'!N1307=\"\",\"\",'1. Order'!N1307)","v":""},null,null,{"$f":"IF('1. Order'!AV1307=\"\",\"\",'1. Order'!AV1307)","v":""},{"$f":"IF('1. Order'!AI1307=\"\",\"\",'1. Order'!AI1307)","v":""}]
[{"$f":"IF('1. Order'!B1308=\"\",\"\",'1. Order'!B1308)","v":""},{"$f":"IF('1. Order'!J1308=\"\",\"\",'1. Order'!J1308)","v":""},{"$f":"IF('1. Order'!K1308=\"\",\"\",'1. Order'!K1308)","v":""},{"$f":"IF('1. Order'!L1308=\"\",\"\",'1. Order'!L1308)","v":""},{"$f":"IF('1. Order'!N1308=\"\",\"\",'1. Order'!N1308)","v":""},null,null,{"$f":"IF('1. Order'!AV1308=\"\",\"\",'1. Order'!AV1308)","v":""},{"$f":"IF('1. Order'!AI1308=\"\",\"\",'1. Order'!AI1308)","v":""}]
[{"$f":"IF('1. Order'!B1309=\"\",\"\",'1. Order'!B1309)","v":""},{"$f":"IF('1. Order'!J1309=\"\",\"\",'1. Order'!J1309)","v":""},{"$f":"IF('1. Order'!K1309=\"\",\"\",'1. Order'!K1309)","v":""},{"$f":"IF('1. Order'!L1309=\"\",\"\",'1. Order'!L1309)","v":""},{"$f":"IF('1. Order'!N1309=\"\",\"\",'1. Order'!N1309)","v":""},null,null,{"$f":"IF('1. Order'!AV1309=\"\",\"\",'1. Order'!AV1309)","v":""},{"$f":"IF('1. Order'!AI1309=\"\",\"\",'1. Order'!AI1309)","v":""}]
[{"$f":"IF('1. Order'!B1310=\"\",\"\",'1. Order'!B1310)","v":""},{"$f":"IF('1. Order'!J1310=\"\",\"\",'1. Order'!J1310)","v":""},{"$f":"IF('1. Order'!K1310=\"\",\"\",'1. Order'!K1310)","v":""},{"$f":"IF('1. Order'!L1310=\"\",\"\",'1. Order'!L1310)","v":""},{"$f":"IF('1. Order'!N1310=\"\",\"\",'1. Order'!N1310)","v":""},null,null,{"$f":"IF('1. Order'!AV1310=\"\",\"\",'1. Order'!AV1310)","v":""},{"$f":"IF('1. Order'!AI1310=\"\",\"\",'1. Order'!AI1310)","v":""}]
[{"$f":"IF('1. Order'!B1311=\"\",\"\",'1. Order'!B1311)","v":""},{"$f":"IF('1. Order'!J1311=\"\",\"\",'1. Order'!J1311)","v":""},{"$f":"IF('1. Order'!K1311=\"\",\"\",'1. Order'!K1311)","v":""},{"$f":"IF('1. Order'!L1311=\"\",\"\",'1. Order'!L1311)","v":""},{"$f":"IF('1. Order'!N1311=\"\",\"\",'1. Order'!N1311)","v":""},null,null,{"$f":"IF('1. Order'!AV1311=\"\",\"\",'1. Order'!AV1311)","v":""},{"$f":"IF('1. Order'!AI1311=\"\",\"\",'1. Order'!AI1311)","v":""}]
[{"$f":"IF('1. Order'!B1312=\"\",\"\",'1. Order'!B1312)","v":""},{"$f":"IF('1. Order'!J1312=\"\",\"\",'1. Order'!J1312)","v":""},{"$f":"IF('1. Order'!K1312=\"\",\"\",'1. Order'!K1312)","v":""},{"$f":"IF('1. Order'!L1312=\"\",\"\",'1. Order'!L1312)","v":""},{"$f":"IF('1. Order'!N1312=\"\",\"\",'1. Order'!N1312)","v":""},null,null,{"$f":"IF('1. Order'!AV1312=\"\",\"\",'1. Order'!AV1312)","v":""},{"$f":"IF('1. Order'!AI1312=\"\",\"\",'1. Order'!AI1312)","v":""}]
[{"$f":"IF('1. Order'!B1313=\"\",\"\",'1. Order'!B1313)","v":""},{"$f":"IF('1. Order'!J1313=\"\",\"\",'1. Order'!J1313)","v":""},{"$f":"IF('1. Order'!K1313=\"\",\"\",'1. Order'!K1313)","v":""},{"$f":"IF('1. Order'!L1313=\"\",\"\",'1. Order'!L1313)","v":""},{"$f":"IF('1. Order'!N1313=\"\",\"\",'1. Order'!N1313)","v":""},null,null,{"$f":"IF('1. Order'!AV1313=\"\",\"\",'1. Order'!AV1313)","v":""},{"$f":"IF('1. Order'!AI1313=\"\",\"\",'1. Order'!AI1313)","v":""}]
[{"$f":"IF('1. Order'!B1314=\"\",\"\",'1. Order'!B1314)","v":""},{"$f":"IF('1. Order'!J1314=\"\",\"\",'1. Order'!J1314)","v":""},{"$f":"IF('1. Order'!K1314=\"\",\"\",'1. Order'!K1314)","v":""},{"$f":"IF('1. Order'!L1314=\"\",\"\",'1. Order'!L1314)","v":""},{"$f":"IF('1. Order'!N1314=\"\",\"\",'1. Order'!N1314)","v":""},null,null,{"$f":"IF('1. Order'!AV1314=\"\",\"\",'1. Order'!AV1314)","v":""},{"$f":"IF('1. Order'!AI1314=\"\",\"\",'1. Order'!AI1314)","v":""}]
[{"$f":"IF('1. Order'!B1315=\"\",\"\",'1. Order'!B1315)","v":""},{"$f":"IF('1. Order'!J1315=\"\",\"\",'1. Order'!J1315)","v":""},{"$f":"IF('1. Order'!K1315=\"\",\"\",'1. Order'!K1315)","v":""},{"$f":"IF('1. Order'!L1315=\"\",\"\",'1. Order'!L1315)","v":""},{"$f":"IF('1. Order'!N1315=\"\",\"\",'1. Order'!N1315)","v":""},null,null,{"$f":"IF('1. Order'!AV1315=\"\",\"\",'1. Order'!AV1315)","v":""},{"$f":"IF('1. Order'!AI1315=\"\",\"\",'1. Order'!AI1315)","v":""}]
[{"$f":"IF('1. Order'!B1316=\"\",\"\",'1. Order'!B1316)","v":""},{"$f":"IF('1. Order'!J1316=\"\",\"\",'1. Order'!J1316)","v":""},{"$f":"IF('1. Order'!K1316=\"\",\"\",'1. Order'!K1316)","v":""},{"$f":"IF('1. Order'!L1316=\"\",\"\",'1. Order'!L1316)","v":""},{"$f":"IF('1. Order'!N1316=\"\",\"\",'1. Order'!N1316)","v":""},null,null,{"$f":"IF('1. Order'!AV1316=\"\",\"\",'1. Order'!AV1316)","v":""},{"$f":"IF('1. Order'!AI1316=\"\",\"\",'1. Order'!AI1316)","v":""}]
[{"$f":"IF('1. Order'!B1317=\"\",\"\",'1. Order'!B1317)","v":""},{"$f":"IF('1. Order'!J1317=\"\",\"\",'1. Order'!J1317)","v":""},{"$f":"IF('1. Order'!K1317=\"\",\"\",'1. Order'!K1317)","v":""},{"$f":"IF('1. Order'!L1317=\"\",\"\",'1. Order'!L1317)","v":""},{"$f":"IF('1. Order'!N1317=\"\",\"\",'1. Order'!N1317)","v":""},null,null,{"$f":"IF('1. Order'!AV1317=\"\",\"\",'1. Order'!AV1317)","v":""},{"$f":"IF('1. Order'!AI1317=\"\",\"\",'1. Order'!AI1317)","v":""}]
[{"$f":"IF('1. Order'!B1318=\"\",\"\",'1. Order'!B1318)","v":""},{"$f":"IF('1. Order'!J1318=\"\",\"\",'1. Order'!J1318)","v":""},{"$f":"IF('1. Order'!K1318=\"\",\"\",'1. Order'!K1318)","v":""},{"$f":"IF('1. Order'!L1318=\"\",\"\",'1. Order'!L1318)","v":""},{"$f":"IF('1. Order'!N1318=\"\",\"\",'1. Order'!N1318)","v":""},null,null,{"$f":"IF('1. Order'!AV1318=\"\",\"\",'1. Order'!AV1318)","v":""},{"$f":"IF('1. Order'!AI1318=\"\",\"\",'1. Order'!AI1318)","v":""}]
[{"$f":"IF('1. Order'!B1319=\"\",\"\",'1. Order'!B1319)","v":""},{"$f":"IF('1. Order'!J1319=\"\",\"\",'1. Order'!J1319)","v":""},{"$f":"IF('1. Order'!K1319=\"\",\"\",'1. Order'!K1319)","v":""},{"$f":"IF('1. Order'!L1319=\"\",\"\",'1. Order'!L1319)","v":""},{"$f":"IF('1. Order'!N1319=\"\",\"\",'1. Order'!N1319)","v":""},null,null,{"$f":"IF('1. Order'!AV1319=\"\",\"\",'1. Order'!AV1319)","v":""},{"$f":"IF('1. Order'!AI1319=\"\",\"\",'1. Order'!AI1319)","v":""}]
[{"$f":"IF('1. Order'!B1320=\"\",\"\",'1. Order'!B1320)","v":""},{"$f":"IF('1. Order'!J1320=\"\",\"\",'1. Order'!J1320)","v":""},{"$f":"IF('1. Order'!K1320=\"\",\"\",'1. Order'!K1320)","v":""},{"$f":"IF('1. Order'!L1320=\"\",\"\",'1. Order'!L1320)","v":""},{"$f":"IF('1. Order'!N1320=\"\",\"\",'1. Order'!N1320)","v":""},null,null,{"$f":"IF('1. Order'!AV1320=\"\",\"\",'1. Order'!AV1320)","v":""},{"$f":"IF('1. Order'!AI1320=\"\",\"\",'1. Order'!AI1320)","v":""}]
[{"$f":"IF('1. Order'!B1321=\"\",\"\",'1. Order'!B1321)","v":""},{"$f":"IF('1. Order'!J1321=\"\",\"\",'1. Order'!J1321)","v":""},{"$f":"IF('1. Order'!K1321=\"\",\"\",'1. Order'!K1321)","v":""},{"$f":"IF('1. Order'!L1321=\"\",\"\",'1. Order'!L1321)","v":""},{"$f":"IF('1. Order'!N1321=\"\",\"\",'1. Order'!N1321)","v":""},null,null,{"$f":"IF('1. Order'!AV1321=\"\",\"\",'1. Order'!AV1321)","v":""},{"$f":"IF('1. Order'!AI1321=\"\",\"\",'1. Order'!AI1321)","v":""}]
[{"$f":"IF('1. Order'!B1322=\"\",\"\",'1. Order'!B1322)","v":""},{"$f":"IF('1. Order'!J1322=\"\",\"\",'1. Order'!J1322)","v":""},{"$f":"IF('1. Order'!K1322=\"\",\"\",'1. Order'!K1322)","v":""},{"$f":"IF('1. Order'!L1322=\"\",\"\",'1. Order'!L1322)","v":""},{"$f":"IF('1. Order'!N1322=\"\",\"\",'1. Order'!N1322)","v":""},null,null,{"$f":"IF('1. Order'!AV1322=\"\",\"\",'1. Order'!AV1322)","v":""},{"$f":"IF('1. Order'!AI1322=\"\",\"\",'1. Order'!AI1322)","v":""}]
[{"$f":"IF('1. Order'!B1323=\"\",\"\",'1. Order'!B1323)","v":""},{"$f":"IF('1. Order'!J1323=\"\",\"\",'1. Order'!J1323)","v":""},{"$f":"IF('1. Order'!K1323=\"\",\"\",'1. Order'!K1323)","v":""},{"$f":"IF('1. Order'!L1323=\"\",\"\",'1. Order'!L1323)","v":""},{"$f":"IF('1. Order'!N1323=\"\",\"\",'1. Order'!N1323)","v":""},null,null,{"$f":"IF('1. Order'!AV1323=\"\",\"\",'1. Order'!AV1323)","v":""},{"$f":"IF('1. Order'!AI1323=\"\",\"\",'1. Order'!AI1323)","v":""}]
[{"$f":"IF('1. Order'!B1324=\"\",\"\",'1. Order'!B1324)","v":""},{"$f":"IF('1. Order'!J1324=\"\",\"\",'1. Order'!J1324)","v":""},{"$f":"IF('1. Order'!K1324=\"\",\"\",'1. Order'!K1324)","v":""},{"$f":"IF('1. Order'!L1324=\"\",\"\",'1. Order'!L1324)","v":""},{"$f":"IF('1. Order'!N1324=\"\",\"\",'1. Order'!N1324)","v":""},null,null,{"$f":"IF('1. Order'!AV1324=\"\",\"\",'1. Order'!AV1324)","v":""},{"$f":"IF('1. Order'!AI1324=\"\",\"\",'1. Order'!AI1324)","v":""}]
[{"$f":"IF('1. Order'!B1325=\"\",\"\",'1. Order'!B1325)","v":""},{"$f":"IF('1. Order'!J1325=\"\",\"\",'1. Order'!J1325)","v":""},{"$f":"IF('1. Order'!K1325=\"\",\"\",'1. Order'!K1325)","v":""},{"$f":"IF('1. Order'!L1325=\"\",\"\",'1. Order'!L1325)","v":""},{"$f":"IF('1. Order'!N1325=\"\",\"\",'1. Order'!N1325)","v":""},null,null,{"$f":"IF('1. Order'!AV1325=\"\",\"\",'1. Order'!AV1325)","v":""},{"$f":"IF('1. Order'!AI1325=\"\",\"\",'1. Order'!AI1325)","v":""}]
[{"$f":"IF('1. Order'!B1326=\"\",\"\",'1. Order'!B1326)","v":""},{"$f":"IF('1. Order'!J1326=\"\",\"\",'1. Order'!J1326)","v":""},{"$f":"IF('1. Order'!K1326=\"\",\"\",'1. Order'!K1326)","v":""},{"$f":"IF('1. Order'!L1326=\"\",\"\",'1. Order'!L1326)","v":""},{"$f":"IF('1. Order'!N1326=\"\",\"\",'1. Order'!N1326)","v":""},null,null,{"$f":"IF('1. Order'!AV1326=\"\",\"\",'1. Order'!AV1326)","v":""},{"$f":"IF('1. Order'!AI1326=\"\",\"\",'1. Order'!AI1326)","v":""}]
[{"$f":"IF('1. Order'!B1327=\"\",\"\",'1. Order'!B1327)","v":""},{"$f":"IF('1. Order'!J1327=\"\",\"\",'1. Order'!J1327)","v":""},{"$f":"IF('1. Order'!K1327=\"\",\"\",'1. Order'!K1327)","v":""},{"$f":"IF('1. Order'!L1327=\"\",\"\",'1. Order'!L1327)","v":""},{"$f":"IF('1. Order'!N1327=\"\",\"\",'1. Order'!N1327)","v":""},null,null,{"$f":"IF('1. Order'!AV1327=\"\",\"\",'1. Order'!AV1327)","v":""},{"$f":"IF('1. Order'!AI1327=\"\",\"\",'1. Order'!AI1327)","v":""}]
[{"$f":"IF('1. Order'!B1328=\"\",\"\",'1. Order'!B1328)","v":""},{"$f":"IF('1. Order'!J1328=\"\",\"\",'1. Order'!J1328)","v":""},{"$f":"IF('1. Order'!K1328=\"\",\"\",'1. Order'!K1328)","v":""},{"$f":"IF('1. Order'!L1328=\"\",\"\",'1. Order'!L1328)","v":""},{"$f":"IF('1. Order'!N1328=\"\",\"\",'1. Order'!N1328)","v":""},null,null,{"$f":"IF('1. Order'!AV1328=\"\",\"\",'1. Order'!AV1328)","v":""},{"$f":"IF('1. Order'!AI1328=\"\",\"\",'1. Order'!AI1328)","v":""}]
[{"$f":"IF('1. Order'!B1329=\"\",\"\",'1. Order'!B1329)","v":""},{"$f":"IF('1. Order'!J1329=\"\",\"\",'1. Order'!J1329)","v":""},{"$f":"IF('1. Order'!K1329=\"\",\"\",'1. Order'!K1329)","v":""},{"$f":"IF('1. Order'!L1329=\"\",\"\",'1. Order'!L1329)","v":""},{"$f":"IF('1. Order'!N1329=\"\",\"\",'1. Order'!N1329)","v":""},null,null,{"$f":"IF('1. Order'!AV1329=\"\",\"\",'1. Order'!AV1329)","v":""},{"$f":"IF('1. Order'!AI1329=\"\",\"\",'1. Order'!AI1329)","v":""}]
[{"$f":"IF('1. Order'!B1330=\"\",\"\",'1. Order'!B1330)","v":""},{"$f":"IF('1. Order'!J1330=\"\",\"\",'1. Order'!J1330)","v":""},{"$f":"IF('1. Order'!K1330=\"\",\"\",'1. Order'!K1330)","v":""},{"$f":"IF('1. Order'!L1330=\"\",\"\",'1. Order'!L1330)","v":""},{"$f":"IF('1. Order'!N1330=\"\",\"\",'1. Order'!N1330)","v":""},null,null,{"$f":"IF('1. Order'!AV1330=\"\",\"\",'1. Order'!AV1330)","v":""},{"$f":"IF('1. Order'!AI1330=\"\",\"\",'1. Order'!AI1330)","v":""}]
[{"$f":"IF('1. Order'!B1331=\"\",\"\",'1. Order'!B1331)","v":""},{"$f":"IF('1. Order'!J1331=\"\",\"\",'1. Order'!J1331)","v":""},{"$f":"IF('1. Order'!K1331=\"\",\"\",'1. Order'!K1331)","v":""},{"$f":"IF('1. Order'!L1331=\"\",\"\",'1. Order'!L1331)","v":""},{"$f":"IF('1. Order'!N1331=\"\",\"\",'1. Order'!N1331)","v":""},null,null,{"$f":"IF('1. Order'!AV1331=\"\",\"\",'1. Order'!AV1331)","v":""},{"$f":"IF('1. Order'!AI1331=\"\",\"\",'1. Order'!AI1331)","v":""}]
[{"$f":"IF('1. Order'!B1332=\"\",\"\",'1. Order'!B1332)","v":""},{"$f":"IF('1. Order'!J1332=\"\",\"\",'1. Order'!J1332)","v":""},{"$f":"IF('1. Order'!K1332=\"\",\"\",'1. Order'!K1332)","v":""},{"$f":"IF('1. Order'!L1332=\"\",\"\",'1. Order'!L1332)","v":""},{"$f":"IF('1. Order'!N1332=\"\",\"\",'1. Order'!N1332)","v":""},null,null,{"$f":"IF('1. Order'!AV1332=\"\",\"\",'1. Order'!AV1332)","v":""},{"$f":"IF('1. Order'!AI1332=\"\",\"\",'1. Order'!AI1332)","v":""}]
[{"$f":"IF('1. Order'!B1333=\"\",\"\",'1. Order'!B1333)","v":""},{"$f":"IF('1. Order'!J1333=\"\",\"\",'1. Order'!J1333)","v":""},{"$f":"IF('1. Order'!K1333=\"\",\"\",'1. Order'!K1333)","v":""},{"$f":"IF('1. Order'!L1333=\"\",\"\",'1. Order'!L1333)","v":""},{"$f":"IF('1. Order'!N1333=\"\",\"\",'1. Order'!N1333)","v":""},null,null,{"$f":"IF('1. Order'!AV1333=\"\",\"\",'1. Order'!AV1333)","v":""},{"$f":"IF('1. Order'!AI1333=\"\",\"\",'1. Order'!AI1333)","v":""}]
[{"$f":"IF('1. Order'!B1334=\"\",\"\",'1. Order'!B1334)","v":""},{"$f":"IF('1. Order'!J1334=\"\",\"\",'1. Order'!J1334)","v":""},{"$f":"IF('1. Order'!K1334=\"\",\"\",'1. Order'!K1334)","v":""},{"$f":"IF('1. Order'!L1334=\"\",\"\",'1. Order'!L1334)","v":""},{"$f":"IF('1. Order'!N1334=\"\",\"\",'1. Order'!N1334)","v":""},null,null,{"$f":"IF('1. Order'!AV1334=\"\",\"\",'1. Order'!AV1334)","v":""},{"$f":"IF('1. Order'!AI1334=\"\",\"\",'1. Order'!AI1334)","v":""}]
[{"$f":"IF('1. Order'!B1335=\"\",\"\",'1. Order'!B1335)","v":""},{"$f":"IF('1. Order'!J1335=\"\",\"\",'1. Order'!J1335)","v":""},{"$f":"IF('1. Order'!K1335=\"\",\"\",'1. Order'!K1335)","v":""},{"$f":"IF('1. Order'!L1335=\"\",\"\",'1. Order'!L1335)","v":""},{"$f":"IF('1. Order'!N1335=\"\",\"\",'1. Order'!N1335)","v":""},null,null,{"$f":"IF('1. Order'!AV1335=\"\",\"\",'1. Order'!AV1335)","v":""},{"$f":"IF('1. Order'!AI1335=\"\",\"\",'1. Order'!AI1335)","v":""}]
[{"$f":"IF('1. Order'!B1336=\"\",\"\",'1. Order'!B1336)","v":""},{"$f":"IF('1. Order'!J1336=\"\",\"\",'1. Order'!J1336)","v":""},{"$f":"IF('1. Order'!K1336=\"\",\"\",'1. Order'!K1336)","v":""},{"$f":"IF('1. Order'!L1336=\"\",\"\",'1. Order'!L1336)","v":""},{"$f":"IF('1. Order'!N1336=\"\",\"\",'1. Order'!N1336)","v":""},null,null,{"$f":"IF('1. Order'!AV1336=\"\",\"\",'1. Order'!AV1336)","v":""},{"$f":"IF('1. Order'!AI1336=\"\",\"\",'1. Order'!AI1336)","v":""}]
[{"$f":"IF('1. Order'!B1337=\"\",\"\",'1. Order'!B1337)","v":""},{"$f":"IF('1. Order'!J1337=\"\",\"\",'1. Order'!J1337)","v":""},{"$f":"IF('1. Order'!K1337=\"\",\"\",'1. Order'!K1337)","v":""},{"$f":"IF('1. Order'!L1337=\"\",\"\",'1. Order'!L1337)","v":""},{"$f":"IF('1. Order'!N1337=\"\",\"\",'1. Order'!N1337)","v":""},null,null,{"$f":"IF('1. Order'!AV1337=\"\",\"\",'1. Order'!AV1337)","v":""},{"$f":"IF('1. Order'!AI1337=\"\",\"\",'1. Order'!AI1337)","v":""}]
[{"$f":"IF('1. Order'!B1338=\"\",\"\",'1. Order'!B1338)","v":""},{"$f":"IF('1. Order'!J1338=\"\",\"\",'1. Order'!J1338)","v":""},{"$f":"IF('1. Order'!K1338=\"\",\"\",'1. Order'!K1338)","v":""},{"$f":"IF('1. Order'!L1338=\"\",\"\",'1. Order'!L1338)","v":""},{"$f":"IF('1. Order'!N1338=\"\",\"\",'1. Order'!N1338)","v":""},null,null,{"$f":"IF('1. Order'!AV1338=\"\",\"\",'1. Order'!AV1338)","v":""},{"$f":"IF('1. Order'!AI1338=\"\",\"\",'1. Order'!AI1338)","v":""}]
[{"$f":"IF('1. Order'!B1339=\"\",\"\",'1. Order'!B1339)","v":""},{"$f":"IF('1. Order'!J1339=\"\",\"\",'1. Order'!J1339)","v":""},{"$f":"IF('1. Order'!K1339=\"\",\"\",'1. Order'!K1339)","v":""},{"$f":"IF('1. Order'!L1339=\"\",\"\",'1. Order'!L1339)","v":""},{"$f":"IF('1. Order'!N1339=\"\",\"\",'1. Order'!N1339)","v":""},null,null,{"$f":"IF('1. Order'!AV1339=\"\",\"\",'1. Order'!AV1339)","v":""},{"$f":"IF('1. Order'!AI1339=\"\",\"\",'1. Order'!AI1339)","v":""}]
[{"$f":"IF('1. Order'!B1340=\"\",\"\",'1. Order'!B1340)","v":""},{"$f":"IF('1. Order'!J1340=\"\",\"\",'1. Order'!J1340)","v":""},{"$f":"IF('1. Order'!K1340=\"\",\"\",'1. Order'!K1340)","v":""},{"$f":"IF('1. Order'!L1340=\"\",\"\",'1. Order'!L1340)","v":""},{"$f":"IF('1. Order'!N1340=\"\",\"\",'1. Order'!N1340)","v":""},null,null,{"$f":"IF('1. Order'!AV1340=\"\",\"\",'1. Order'!AV1340)","v":""},{"$f":"IF('1. Order'!AI1340=\"\",\"\",'1. Order'!AI1340)","v":""}]
[{"$f":"IF('1. Order'!B1341=\"\",\"\",'1. Order'!B1341)","v":""},{"$f":"IF('1. Order'!J1341=\"\",\"\",'1. Order'!J1341)","v":""},{"$f":"IF('1. Order'!K1341=\"\",\"\",'1. Order'!K1341)","v":""},{"$f":"IF('1. Order'!L1341=\"\",\"\",'1. Order'!L1341)","v":""},{"$f":"IF('1. Order'!N1341=\"\",\"\",'1. Order'!N1341)","v":""},null,null,{"$f":"IF('1. Order'!AV1341=\"\",\"\",'1. Order'!AV1341)","v":""},{"$f":"IF('1. Order'!AI1341=\"\",\"\",'1. Order'!AI1341)","v":""}]
[{"$f":"IF('1. Order'!B1342=\"\",\"\",'1. Order'!B1342)","v":""},{"$f":"IF('1. Order'!J1342=\"\",\"\",'1. Order'!J1342)","v":""},{"$f":"IF('1. Order'!K1342=\"\",\"\",'1. Order'!K1342)","v":""},{"$f":"IF('1. Order'!L1342=\"\",\"\",'1. Order'!L1342)","v":""},{"$f":"IF('1. Order'!N1342=\"\",\"\",'1. Order'!N1342)","v":""},null,null,{"$f":"IF('1. Order'!AV1342=\"\",\"\",'1. Order'!AV1342)","v":""},{"$f":"IF('1. Order'!AI1342=\"\",\"\",'1. Order'!AI1342)","v":""}]
[{"$f":"IF('1. Order'!B1343=\"\",\"\",'1. Order'!B1343)","v":""},{"$f":"IF('1. Order'!J1343=\"\",\"\",'1. Order'!J1343)","v":""},{"$f":"IF('1. Order'!K1343=\"\",\"\",'1. Order'!K1343)","v":""},{"$f":"IF('1. Order'!L1343=\"\",\"\",'1. Order'!L1343)","v":""},{"$f":"IF('1. Order'!N1343=\"\",\"\",'1. Order'!N1343)","v":""},null,null,{"$f":"IF('1. Order'!AV1343=\"\",\"\",'1. Order'!AV1343)","v":""},{"$f":"IF('1. Order'!AI1343=\"\",\"\",'1. Order'!AI1343)","v":""}]
[{"$f":"IF('1. Order'!B1344=\"\",\"\",'1. Order'!B1344)","v":""},{"$f":"IF('1. Order'!J1344=\"\",\"\",'1. Order'!J1344)","v":""},{"$f":"IF('1. Order'!K1344=\"\",\"\",'1. Order'!K1344)","v":""},{"$f":"IF('1. Order'!L1344=\"\",\"\",'1. Order'!L1344)","v":""},{"$f":"IF('1. Order'!N1344=\"\",\"\",'1. Order'!N1344)","v":""},null,null,{"$f":"IF('1. Order'!AV1344=\"\",\"\",'1. Order'!AV1344)","v":""},{"$f":"IF('1. Order'!AI1344=\"\",\"\",'1. Order'!AI1344)","v":""}]
[{"$f":"IF('1. Order'!B1345=\"\",\"\",'1. Order'!B1345)","v":""},{"$f":"IF('1. Order'!J1345=\"\",\"\",'1. Order'!J1345)","v":""},{"$f":"IF('1. Order'!K1345=\"\",\"\",'1. Order'!K1345)","v":""},{"$f":"IF('1. Order'!L1345=\"\",\"\",'1. Order'!L1345)","v":""},{"$f":"IF('1. Order'!N1345=\"\",\"\",'1. Order'!N1345)","v":""},null,null,{"$f":"IF('1. Order'!AV1345=\"\",\"\",'1. Order'!AV1345)","v":""},{"$f":"IF('1. Order'!AI1345=\"\",\"\",'1. Order'!AI1345)","v":""}]
[{"$f":"IF('1. Order'!B1346=\"\",\"\",'1. Order'!B1346)","v":""},{"$f":"IF('1. Order'!J1346=\"\",\"\",'1. Order'!J1346)","v":""},{"$f":"IF('1. Order'!K1346=\"\",\"\",'1. Order'!K1346)","v":""},{"$f":"IF('1. Order'!L1346=\"\",\"\",'1. Order'!L1346)","v":""},{"$f":"IF('1. Order'!N1346=\"\",\"\",'1. Order'!N1346)","v":""},null,null,{"$f":"IF('1. Order'!AV1346=\"\",\"\",'1. Order'!AV1346)","v":""},{"$f":"IF('1. Order'!AI1346=\"\",\"\",'1. Order'!AI1346)","v":""}]
[{"$f":"IF('1. Order'!B1347=\"\",\"\",'1. Order'!B1347)","v":""},{"$f":"IF('1. Order'!J1347=\"\",\"\",'1. Order'!J1347)","v":""},{"$f":"IF('1. Order'!K1347=\"\",\"\",'1. Order'!K1347)","v":""},{"$f":"IF('1. Order'!L1347=\"\",\"\",'1. Order'!L1347)","v":""},{"$f":"IF('1. Order'!N1347=\"\",\"\",'1. Order'!N1347)","v":""},null,null,{"$f":"IF('1. Order'!AV1347=\"\",\"\",'1. Order'!AV1347)","v":""},{"$f":"IF('1. Order'!AI1347=\"\",\"\",'1. Order'!AI1347)","v":""}]
[{"$f":"IF('1. Order'!B1348=\"\",\"\",'1. Order'!B1348)","v":""},{"$f":"IF('1. Order'!J1348=\"\",\"\",'1. Order'!J1348)","v":""},{"$f":"IF('1. Order'!K1348=\"\",\"\",'1. Order'!K1348)","v":""},{"$f":"IF('1. Order'!L1348=\"\",\"\",'1. Order'!L1348)","v":""},{"$f":"IF('1. Order'!N1348=\"\",\"\",'1. Order'!N1348)","v":""},null,null,{"$f":"IF('1. Order'!AV1348=\"\",\"\",'1. Order'!AV1348)","v":""},{"$f":"IF('1. Order'!AI1348=\"\",\"\",'1. Order'!AI1348)","v":""}]
[{"$f":"IF('1. Order'!B1349=\"\",\"\",'1. Order'!B1349)","v":""},{"$f":"IF('1. Order'!J1349=\"\",\"\",'1. Order'!J1349)","v":""},{"$f":"IF('1. Order'!K1349=\"\",\"\",'1. Order'!K1349)","v":""},{"$f":"IF('1. Order'!L1349=\"\",\"\",'1. Order'!L1349)","v":""},{"$f":"IF('1. Order'!N1349=\"\",\"\",'1. Order'!N1349)","v":""},null,null,{"$f":"IF('1. Order'!AV1349=\"\",\"\",'1. Order'!AV1349)","v":""},{"$f":"IF('1. Order'!AI1349=\"\",\"\",'1. Order'!AI1349)","v":""}]
[{"$f":"IF('1. Order'!B1350=\"\",\"\",'1. Order'!B1350)","v":""},{"$f":"IF('1. Order'!J1350=\"\",\"\",'1. Order'!J1350)","v":""},{"$f":"IF('1. Order'!K1350=\"\",\"\",'1. Order'!K1350)","v":""},{"$f":"IF('1. Order'!L1350=\"\",\"\",'1. Order'!L1350)","v":""},{"$f":"IF('1. Order'!N1350=\"\",\"\",'1. Order'!N1350)","v":""},null,null,{"$f":"IF('1. Order'!AV1350=\"\",\"\",'1. Order'!AV1350)","v":""},{"$f":"IF('1. Order'!AI1350=\"\",\"\",'1. Order'!AI1350)","v":""}]
[{"$f":"IF('1. Order'!B1351=\"\",\"\",'1. Order'!B1351)","v":""},{"$f":"IF('1. Order'!J1351=\"\",\"\",'1. Order'!J1351)","v":""},{"$f":"IF('1. Order'!K1351=\"\",\"\",'1. Order'!K1351)","v":""},{"$f":"IF('1. Order'!L1351=\"\",\"\",'1. Order'!L1351)","v":""},{"$f":"IF('1. Order'!N1351=\"\",\"\",'1. Order'!N1351)","v":""},null,null,{"$f":"IF('1. Order'!AV1351=\"\",\"\",'1. Order'!AV1351)","v":""},{"$f":"IF('1. Order'!AI1351=\"\",\"\",'1. Order'!AI1351)","v":""}]
[{"$f":"IF('1. Order'!B1352=\"\",\"\",'1. Order'!B1352)","v":""},{"$f":"IF('1. Order'!J1352=\"\",\"\",'1. Order'!J1352)","v":""},{"$f":"IF('1. Order'!K1352=\"\",\"\",'1. Order'!K1352)","v":""},{"$f":"IF('1. Order'!L1352=\"\",\"\",'1. Order'!L1352)","v":""},{"$f":"IF('1. Order'!N1352=\"\",\"\",'1. Order'!N1352)","v":""},null,null,{"$f":"IF('1. Order'!AV1352=\"\",\"\",'1. Order'!AV1352)","v":""},{"$f":"IF('1. Order'!AI1352=\"\",\"\",'1. Order'!AI1352)","v":""}]
[{"$f":"IF('1. Order'!B1353=\"\",\"\",'1. Order'!B1353)","v":""},{"$f":"IF('1. Order'!J1353=\"\",\"\",'1. Order'!J1353)","v":""},{"$f":"IF('1. Order'!K1353=\"\",\"\",'1. Order'!K1353)","v":""},{"$f":"IF('1. Order'!L1353=\"\",\"\",'1. Order'!L1353)","v":""},{"$f":"IF('1. Order'!N1353=\"\",\"\",'1. Order'!N1353)","v":""},null,null,{"$f":"IF('1. Order'!AV1353=\"\",\"\",'1. Order'!AV1353)","v":""},{"$f":"IF('1. Order'!AI1353=\"\",\"\",'1. Order'!AI1353)","v":""}]
[{"$f":"IF('1. Order'!B1354=\"\",\"\",'1. Order'!B1354)","v":""},{"$f":"IF('1. Order'!J1354=\"\",\"\",'1. Order'!J1354)","v":""},{"$f":"IF('1. Order'!K1354=\"\",\"\",'1. Order'!K1354)","v":""},{"$f":"IF('1. Order'!L1354=\"\",\"\",'1. Order'!L1354)","v":""},{"$f":"IF('1. Order'!N1354=\"\",\"\",'1. Order'!N1354)","v":""},null,null,{"$f":"IF('1. Order'!AV1354=\"\",\"\",'1. Order'!AV1354)","v":""},{"$f":"IF('1. Order'!AI1354=\"\",\"\",'1. Order'!AI1354)","v":""}]
[{"$f":"IF('1. Order'!B1355=\"\",\"\",'1. Order'!B1355)","v":""},{"$f":"IF('1. Order'!J1355=\"\",\"\",'1. Order'!J1355)","v":""},{"$f":"IF('1. Order'!K1355=\"\",\"\",'1. Order'!K1355)","v":""},{"$f":"IF('1. Order'!L1355=\"\",\"\",'1. Order'!L1355)","v":""},{"$f":"IF('1. Order'!N1355=\"\",\"\",'1. Order'!N1355)","v":""},null,null,{"$f":"IF('1. Order'!AV1355=\"\",\"\",'1. Order'!AV1355)","v":""},{"$f":"IF('1. Order'!AI1355=\"\",\"\",'1. Order'!AI1355)","v":""}]
[{"$f":"IF('1. Order'!B1356=\"\",\"\",'1. Order'!B1356)","v":""},{"$f":"IF('1. Order'!J1356=\"\",\"\",'1. Order'!J1356)","v":""},{"$f":"IF('1. Order'!K1356=\"\",\"\",'1. Order'!K1356)","v":""},{"$f":"IF('1. Order'!L1356=\"\",\"\",'1. Order'!L1356)","v":""},{"$f":"IF('1. Order'!N1356=\"\",\"\",'1. Order'!N1356)","v":""},null,null,{"$f":"IF('1. Order'!AV1356=\"\",\"\",'1. Order'!AV1356)","v":""},{"$f":"IF('1. Order'!AI1356=\"\",\"\",'1. Order'!AI1356)","v":""}]
[{"$f":"IF('1. Order'!B1357=\"\",\"\",'1. Order'!B1357)","v":""},{"$f":"IF('1. Order'!J1357=\"\",\"\",'1. Order'!J1357)","v":""},{"$f":"IF('1. Order'!K1357=\"\",\"\",'1. Order'!K1357)","v":""},{"$f":"IF('1. Order'!L1357=\"\",\"\",'1. Order'!L1357)","v":""},{"$f":"IF('1. Order'!N1357=\"\",\"\",'1. Order'!N1357)","v":""},null,null,{"$f":"IF('1. Order'!AV1357=\"\",\"\",'1. Order'!AV1357)","v":""},{"$f":"IF('1. Order'!AI1357=\"\",\"\",'1. Order'!AI1357)","v":""}]
[{"$f":"IF('1. Order'!B1358=\"\",\"\",'1. Order'!B1358)","v":""},{"$f":"IF('1. Order'!J1358=\"\",\"\",'1. Order'!J1358)","v":""},{"$f":"IF('1. Order'!K1358=\"\",\"\",'1. Order'!K1358)","v":""},{"$f":"IF('1. Order'!L1358=\"\",\"\",'1. Order'!L1358)","v":""},{"$f":"IF('1. Order'!N1358=\"\",\"\",'1. Order'!N1358)","v":""},null,null,{"$f":"IF('1. Order'!AV1358=\"\",\"\",'1. Order'!AV1358)","v":""},{"$f":"IF('1. Order'!AI1358=\"\",\"\",'1. Order'!AI1358)","v":""}]
[{"$f":"IF('1. Order'!B1359=\"\",\"\",'1. Order'!B1359)","v":""},{"$f":"IF('1. Order'!J1359=\"\",\"\",'1. Order'!J1359)","v":""},{"$f":"IF('1. Order'!K1359=\"\",\"\",'1. Order'!K1359)","v":""},{"$f":"IF('1. Order'!L1359=\"\",\"\",'1. Order'!L1359)","v":""},{"$f":"IF('1. Order'!N1359=\"\",\"\",'1. Order'!N1359)","v":""},null,null,{"$f":"IF('1. Order'!AV1359=\"\",\"\",'1. Order'!AV1359)","v":""},{"$f":"IF('1. Order'!AI1359=\"\",\"\",'1. Order'!AI1359)","v":""}]
[{"$f":"IF('1. Order'!B1360=\"\",\"\",'1. Order'!B1360)","v":""},{"$f":"IF('1. Order'!J1360=\"\",\"\",'1. Order'!J1360)","v":""},{"$f":"IF('1. Order'!K1360=\"\",\"\",'1. Order'!K1360)","v":""},{"$f":"IF('1. Order'!L1360=\"\",\"\",'1. Order'!L1360)","v":""},{"$f":"IF('1. Order'!N1360=\"\",\"\",'1. Order'!N1360)","v":""},null,null,{"$f":"IF('1. Order'!AV1360=\"\",\"\",'1. Order'!AV1360)","v":""},{"$f":"IF('1. Order'!AI1360=\"\",\"\",'1. Order'!AI1360)","v":""}]
[{"$f":"IF('1. Order'!B1361=\"\",\"\",'1. Order'!B1361)","v":""},{"$f":"IF('1. Order'!J1361=\"\",\"\",'1. Order'!J1361)","v":""},{"$f":"IF('1. Order'!K1361=\"\",\"\",'1. Order'!K1361)","v":""},{"$f":"IF('1. Order'!L1361=\"\",\"\",'1. Order'!L1361)","v":""},{"$f":"IF('1. Order'!N1361=\"\",\"\",'1. Order'!N1361)","v":""},null,null,{"$f":"IF('1. Order'!AV1361=\"\",\"\",'1. Order'!AV1361)","v":""},{"$f":"IF('1. Order'!AI1361=\"\",\"\",'1. Order'!AI1361)","v":""}]
[{"$f":"IF('1. Order'!B1362=\"\",\"\",'1. Order'!B1362)","v":""},{"$f":"IF('1. Order'!J1362=\"\",\"\",'1. Order'!J1362)","v":""},{"$f":"IF('1. Order'!K1362=\"\",\"\",'1. Order'!K1362)","v":""},{"$f":"IF('1. Order'!L1362=\"\",\"\",'1. Order'!L1362)","v":""},{"$f":"IF('1. Order'!N1362=\"\",\"\",'1. Order'!N1362)","v":""},null,null,{"$f":"IF('1. Order'!AV1362=\"\",\"\",'1. Order'!AV1362)","v":""},{"$f":"IF('1. Order'!AI1362=\"\",\"\",'1. Order'!AI1362)","v":""}]
[{"$f":"IF('1. Order'!B1363=\"\",\"\",'1. Order'!B1363)","v":""},{"$f":"IF('1. Order'!J1363=\"\",\"\",'1. Order'!J1363)","v":""},{"$f":"IF('1. Order'!K1363=\"\",\"\",'1. Order'!K1363)","v":""},{"$f":"IF('1. Order'!L1363=\"\",\"\",'1. Order'!L1363)","v":""},{"$f":"IF('1. Order'!N1363=\"\",\"\",'1. Order'!N1363)","v":""},null,null,{"$f":"IF('1. Order'!AV1363=\"\",\"\",'1. Order'!AV1363)","v":""},{"$f":"IF('1. Order'!AI1363=\"\",\"\",'1. Order'!AI1363)","v":""}]
[{"$f":"IF('1. Order'!B1364=\"\",\"\",'1. Order'!B1364)","v":""},{"$f":"IF('1. Order'!J1364=\"\",\"\",'1. Order'!J1364)","v":""},{"$f":"IF('1. Order'!K1364=\"\",\"\",'1. Order'!K1364)","v":""},{"$f":"IF('1. Order'!L1364=\"\",\"\",'1. Order'!L1364)","v":""},{"$f":"IF('1. Order'!N1364=\"\",\"\",'1. Order'!N1364)","v":""},null,null,{"$f":"IF('1. Order'!AV1364=\"\",\"\",'1. Order'!AV1364)","v":""},{"$f":"IF('1. Order'!AI1364=\"\",\"\",'1. Order'!AI1364)","v":""}]
[{"$f":"IF('1. Order'!B1365=\"\",\"\",'1. Order'!B1365)","v":""},{"$f":"IF('1. Order'!J1365=\"\",\"\",'1. Order'!J1365)","v":""},{"$f":"IF('1. Order'!K1365=\"\",\"\",'1. Order'!K1365)","v":""},{"$f":"IF('1. Order'!L1365=\"\",\"\",'1. Order'!L1365)","v":""},{"$f":"IF('1. Order'!N1365=\"\",\"\",'1. Order'!N1365)","v":""},null,null,{"$f":"IF('1. Order'!AV1365=\"\",\"\",'1. Order'!AV1365)","v":""},{"$f":"IF('1. Order'!AI1365=\"\",\"\",'1. Order'!AI1365)","v":""}]
[{"$f":"IF('1. Order'!B1366=\"\",\"\",'1. Order'!B1366)","v":""},{"$f":"IF('1. Order'!J1366=\"\",\"\",'1. Order'!J1366)","v":""},{"$f":"IF('1. Order'!K1366=\"\",\"\",'1. Order'!K1366)","v":""},{"$f":"IF('1. Order'!L1366=\"\",\"\",'1. Order'!L1366)","v":""},{"$f":"IF('1. Order'!N1366=\"\",\"\",'1. Order'!N1366)","v":""},null,null,{"$f":"IF('1. Order'!AV1366=\"\",\"\",'1. Order'!AV1366)","v":""},{"$f":"IF('1. Order'!AI1366=\"\",\"\",'1. Order'!AI1366)","v":""}]
[{"$f":"IF('1. Order'!B1367=\"\",\"\",'1. Order'!B1367)","v":""},{"$f":"IF('1. Order'!J1367=\"\",\"\",'1. Order'!J1367)","v":""},{"$f":"IF('1. Order'!K1367=\"\",\"\",'1. Order'!K1367)","v":""},{"$f":"IF('1. Order'!L1367=\"\",\"\",'1. Order'!L1367)","v":""},{"$f":"IF('1. Order'!N1367=\"\",\"\",'1. Order'!N1367)","v":""},null,null,{"$f":"IF('1. Order'!AV1367=\"\",\"\",'1. Order'!AV1367)","v":""},{"$f":"IF('1. Order'!AI1367=\"\",\"\",'1. Order'!AI1367)","v":""}]
[{"$f":"IF('1. Order'!B1368=\"\",\"\",'1. Order'!B1368)","v":""},{"$f":"IF('1. Order'!J1368=\"\",\"\",'1. Order'!J1368)","v":""},{"$f":"IF('1. Order'!K1368=\"\",\"\",'1. Order'!K1368)","v":""},{"$f":"IF('1. Order'!L1368=\"\",\"\",'1. Order'!L1368)","v":""},{"$f":"IF('1. Order'!N1368=\"\",\"\",'1. Order'!N1368)","v":""},null,null,{"$f":"IF('1. Order'!AV1368=\"\",\"\",'1. Order'!AV1368)","v":""},{"$f":"IF('1. Order'!AI1368=\"\",\"\",'1. Order'!AI1368)","v":""}]
[{"$f":"IF('1. Order'!B1369=\"\",\"\",'1. Order'!B1369)","v":""},{"$f":"IF('1. Order'!J1369=\"\",\"\",'1. Order'!J1369)","v":""},{"$f":"IF('1. Order'!K1369=\"\",\"\",'1. Order'!K1369)","v":""},{"$f":"IF('1. Order'!L1369=\"\",\"\",'1. Order'!L1369)","v":""},{"$f":"IF('1. Order'!N1369=\"\",\"\",'1. Order'!N1369)","v":""},null,null,{"$f":"IF('1. Order'!AV1369=\"\",\"\",'1. Order'!AV1369)","v":""},{"$f":"IF('1. Order'!AI1369=\"\",\"\",'1. Order'!AI1369)","v":""}]
[{"$f":"IF('1. Order'!B1370=\"\",\"\",'1. Order'!B1370)","v":""},{"$f":"IF('1. Order'!J1370=\"\",\"\",'1. Order'!J1370)","v":""},{"$f":"IF('1. Order'!K1370=\"\",\"\",'1. Order'!K1370)","v":""},{"$f":"IF('1. Order'!L1370=\"\",\"\",'1. Order'!L1370)","v":""},{"$f":"IF('1. Order'!N1370=\"\",\"\",'1. Order'!N1370)","v":""},null,null,{"$f":"IF('1. Order'!AV1370=\"\",\"\",'1. Order'!AV1370)","v":""},{"$f":"IF('1. Order'!AI1370=\"\",\"\",'1. Order'!AI1370)","v":""}]
[{"$f":"IF('1. Order'!B1371=\"\",\"\",'1. Order'!B1371)","v":""},{"$f":"IF('1. Order'!J1371=\"\",\"\",'1. Order'!J1371)","v":""},{"$f":"IF('1. Order'!K1371=\"\",\"\",'1. Order'!K1371)","v":""},{"$f":"IF('1. Order'!L1371=\"\",\"\",'1. Order'!L1371)","v":""},{"$f":"IF('1. Order'!N1371=\"\",\"\",'1. Order'!N1371)","v":""},null,null,{"$f":"IF('1. Order'!AV1371=\"\",\"\",'1. Order'!AV1371)","v":""},{"$f":"IF('1. Order'!AI1371=\"\",\"\",'1. Order'!AI1371)","v":""}]
[{"$f":"IF('1. Order'!B1372=\"\",\"\",'1. Order'!B1372)","v":""},{"$f":"IF('1. Order'!J1372=\"\",\"\",'1. Order'!J1372)","v":""},{"$f":"IF('1. Order'!K1372=\"\",\"\",'1. Order'!K1372)","v":""},{"$f":"IF('1. Order'!L1372=\"\",\"\",'1. Order'!L1372)","v":""},{"$f":"IF('1. Order'!N1372=\"\",\"\",'1. Order'!N1372)","v":""},null,null,{"$f":"IF('1. Order'!AV1372=\"\",\"\",'1. Order'!AV1372)","v":""},{"$f":"IF('1. Order'!AI1372=\"\",\"\",'1. Order'!AI1372)","v":""}]
[{"$f":"IF('1. Order'!B1373=\"\",\"\",'1. Order'!B1373)","v":""},{"$f":"IF('1. Order'!J1373=\"\",\"\",'1. Order'!J1373)","v":""},{"$f":"IF('1. Order'!K1373=\"\",\"\",'1. Order'!K1373)","v":""},{"$f":"IF('1. Order'!L1373=\"\",\"\",'1. Order'!L1373)","v":""},{"$f":"IF('1. Order'!N1373=\"\",\"\",'1. Order'!N1373)","v":""},null,null,{"$f":"IF('1. Order'!AV1373=\"\",\"\",'1. Order'!AV1373)","v":""},{"$f":"IF('1. Order'!AI1373=\"\",\"\",'1. Order'!AI1373)","v":""}]
[{"$f":"IF('1. Order'!B1374=\"\",\"\",'1. Order'!B1374)","v":""},{"$f":"IF('1. Order'!J1374=\"\",\"\",'1. Order'!J1374)","v":""},{"$f":"IF('1. Order'!K1374=\"\",\"\",'1. Order'!K1374)","v":""},{"$f":"IF('1. Order'!L1374=\"\",\"\",'1. Order'!L1374)","v":""},{"$f":"IF('1. Order'!N1374=\"\",\"\",'1. Order'!N1374)","v":""},null,null,{"$f":"IF('1. Order'!AV1374=\"\",\"\",'1. Order'!AV1374)","v":""},{"$f":"IF('1. Order'!AI1374=\"\",\"\",'1. Order'!AI1374)","v":""}]
[{"$f":"IF('1. Order'!B1375=\"\",\"\",'1. Order'!B1375)","v":""},{"$f":"IF('1. Order'!J1375=\"\",\"\",'1. Order'!J1375)","v":""},{"$f":"IF('1. Order'!K1375=\"\",\"\",'1. Order'!K1375)","v":""},{"$f":"IF('1. Order'!L1375=\"\",\"\",'1. Order'!L1375)","v":""},{"$f":"IF('1. Order'!N1375=\"\",\"\",'1. Order'!N1375)","v":""},null,null,{"$f":"IF('1. Order'!AV1375=\"\",\"\",'1. Order'!AV1375)","v":""},{"$f":"IF('1. Order'!AI1375=\"\",\"\",'1. Order'!AI1375)","v":""}]
[{"$f":"IF('1. Order'!B1376=\"\",\"\",'1. Order'!B1376)","v":""},{"$f":"IF('1. Order'!J1376=\"\",\"\",'1. Order'!J1376)","v":""},{"$f":"IF('1. Order'!K1376=\"\",\"\",'1. Order'!K1376)","v":""},{"$f":"IF('1. Order'!L1376=\"\",\"\",'1. Order'!L1376)","v":""},{"$f":"IF('1. Order'!N1376=\"\",\"\",'1. Order'!N1376)","v":""},null,null,{"$f":"IF('1. Order'!AV1376=\"\",\"\",'1. Order'!AV1376)","v":""},{"$f":"IF('1. Order'!AI1376=\"\",\"\",'1. Order'!AI1376)","v":""}]
[{"$f":"IF('1. Order'!B1377=\"\",\"\",'1. Order'!B1377)","v":""},{"$f":"IF('1. Order'!J1377=\"\",\"\",'1. Order'!J1377)","v":""},{"$f":"IF('1. Order'!K1377=\"\",\"\",'1. Order'!K1377)","v":""},{"$f":"IF('1. Order'!L1377=\"\",\"\",'1. Order'!L1377)","v":""},{"$f":"IF('1. Order'!N1377=\"\",\"\",'1. Order'!N1377)","v":""},null,null,{"$f":"IF('1. Order'!AV1377=\"\",\"\",'1. Order'!AV1377)","v":""},{"$f":"IF('1. Order'!AI1377=\"\",\"\",'1. Order'!AI1377)","v":""}]
[{"$f":"IF('1. Order'!B1378=\"\",\"\",'1. Order'!B1378)","v":""},{"$f":"IF('1. Order'!J1378=\"\",\"\",'1. Order'!J1378)","v":""},{"$f":"IF('1. Order'!K1378=\"\",\"\",'1. Order'!K1378)","v":""},{"$f":"IF('1. Order'!L1378=\"\",\"\",'1. Order'!L1378)","v":""},{"$f":"IF('1. Order'!N1378=\"\",\"\",'1. Order'!N1378)","v":""},null,null,{"$f":"IF('1. Order'!AV1378=\"\",\"\",'1. Order'!AV1378)","v":""},{"$f":"IF('1. Order'!AI1378=\"\",\"\",'1. Order'!AI1378)","v":""}]
[{"$f":"IF('1. Order'!B1379=\"\",\"\",'1. Order'!B1379)","v":""},{"$f":"IF('1. Order'!J1379=\"\",\"\",'1. Order'!J1379)","v":""},{"$f":"IF('1. Order'!K1379=\"\",\"\",'1. Order'!K1379)","v":""},{"$f":"IF('1. Order'!L1379=\"\",\"\",'1. Order'!L1379)","v":""},{"$f":"IF('1. Order'!N1379=\"\",\"\",'1. Order'!N1379)","v":""},null,null,{"$f":"IF('1. Order'!AV1379=\"\",\"\",'1. Order'!AV1379)","v":""},{"$f":"IF('1. Order'!AI1379=\"\",\"\",'1. Order'!AI1379)","v":""}]
[{"$f":"IF('1. Order'!B1380=\"\",\"\",'1. Order'!B1380)","v":""},{"$f":"IF('1. Order'!J1380=\"\",\"\",'1. Order'!J1380)","v":""},{"$f":"IF('1. Order'!K1380=\"\",\"\",'1. Order'!K1380)","v":""},{"$f":"IF('1. Order'!L1380=\"\",\"\",'1. Order'!L1380)","v":""},{"$f":"IF('1. Order'!N1380=\"\",\"\",'1. Order'!N1380)","v":""},null,null,{"$f":"IF('1. Order'!AV1380=\"\",\"\",'1. Order'!AV1380)","v":""},{"$f":"IF('1. Order'!AI1380=\"\",\"\",'1. Order'!AI1380)","v":""}]
[{"$f":"IF('1. Order'!B1381=\"\",\"\",'1. Order'!B1381)","v":""},{"$f":"IF('1. Order'!J1381=\"\",\"\",'1. Order'!J1381)","v":""},{"$f":"IF('1. Order'!K1381=\"\",\"\",'1. Order'!K1381)","v":""},{"$f":"IF('1. Order'!L1381=\"\",\"\",'1. Order'!L1381)","v":""},{"$f":"IF('1. Order'!N1381=\"\",\"\",'1. Order'!N1381)","v":""},null,null,{"$f":"IF('1. Order'!AV1381=\"\",\"\",'1. Order'!AV1381)","v":""},{"$f":"IF('1. Order'!AI1381=\"\",\"\",'1. Order'!AI1381)","v":""}]
[{"$f":"IF('1. Order'!B1382=\"\",\"\",'1. Order'!B1382)","v":""},{"$f":"IF('1. Order'!J1382=\"\",\"\",'1. Order'!J1382)","v":""},{"$f":"IF('1. Order'!K1382=\"\",\"\",'1. Order'!K1382)","v":""},{"$f":"IF('1. Order'!L1382=\"\",\"\",'1. Order'!L1382)","v":""},{"$f":"IF('1. Order'!N1382=\"\",\"\",'1. Order'!N1382)","v":""},null,null,{"$f":"IF('1. Order'!AV1382=\"\",\"\",'1. Order'!AV1382)","v":""},{"$f":"IF('1. Order'!AI1382=\"\",\"\",'1. Order'!AI1382)","v":""}]
[{"$f":"IF('1. Order'!B1383=\"\",\"\",'1. Order'!B1383)","v":""},{"$f":"IF('1. Order'!J1383=\"\",\"\",'1. Order'!J1383)","v":""},{"$f":"IF('1. Order'!K1383=\"\",\"\",'1. Order'!K1383)","v":""},{"$f":"IF('1. Order'!L1383=\"\",\"\",'1. Order'!L1383)","v":""},{"$f":"IF('1. Order'!N1383=\"\",\"\",'1. Order'!N1383)","v":""},null,null,{"$f":"IF('1. Order'!AV1383=\"\",\"\",'1. Order'!AV1383)","v":""},{"$f":"IF('1. Order'!AI1383=\"\",\"\",'1. Order'!AI1383)","v":""}]
[{"$f":"IF('1. Order'!B1384=\"\",\"\",'1. Order'!B1384)","v":""},{"$f":"IF('1. Order'!J1384=\"\",\"\",'1. Order'!J1384)","v":""},{"$f":"IF('1. Order'!K1384=\"\",\"\",'1. Order'!K1384)","v":""},{"$f":"IF('1. Order'!L1384=\"\",\"\",'1. Order'!L1384)","v":""},{"$f":"IF('1. Order'!N1384=\"\",\"\",'1. Order'!N1384)","v":""},null,null,{"$f":"IF('1. Order'!AV1384=\"\",\"\",'1. Order'!AV1384)","v":""},{"$f":"IF('1. Order'!AI1384=\"\",\"\",'1. Order'!AI1384)","v":""}]
[{"$f":"IF('1. Order'!B1385=\"\",\"\",'1. Order'!B1385)","v":""},{"$f":"IF('1. Order'!J1385=\"\",\"\",'1. Order'!J1385)","v":""},{"$f":"IF('1. Order'!K1385=\"\",\"\",'1. Order'!K1385)","v":""},{"$f":"IF('1. Order'!L1385=\"\",\"\",'1. Order'!L1385)","v":""},{"$f":"IF('1. Order'!N1385=\"\",\"\",'1. Order'!N1385)","v":""},null,null,{"$f":"IF('1. Order'!AV1385=\"\",\"\",'1. Order'!AV1385)","v":""},{"$f":"IF('1. Order'!AI1385=\"\",\"\",'1. Order'!AI1385)","v":""}]
[{"$f":"IF('1. Order'!B1386=\"\",\"\",'1. Order'!B1386)","v":""},{"$f":"IF('1. Order'!J1386=\"\",\"\",'1. Order'!J1386)","v":""},{"$f":"IF('1. Order'!K1386=\"\",\"\",'1. Order'!K1386)","v":""},{"$f":"IF('1. Order'!L1386=\"\",\"\",'1. Order'!L1386)","v":""},{"$f":"IF('1. Order'!N1386=\"\",\"\",'1. Order'!N1386)","v":""},null,null,{"$f":"IF('1. Order'!AV1386=\"\",\"\",'1. Order'!AV1386)","v":""},{"$f":"IF('1. Order'!AI1386=\"\",\"\",'1. Order'!AI1386)","v":""}]
[{"$f":"IF('1. Order'!B1387=\"\",\"\",'1. Order'!B1387)","v":""},{"$f":"IF('1. Order'!J1387=\"\",\"\",'1. Order'!J1387)","v":""},{"$f":"IF('1. Order'!K1387=\"\",\"\",'1. Order'!K1387)","v":""},{"$f":"IF('1. Order'!L1387=\"\",\"\",'1. Order'!L1387)","v":""},{"$f":"IF('1. Order'!N1387=\"\",\"\",'1. Order'!N1387)","v":""},null,null,{"$f":"IF('1. Order'!AV1387=\"\",\"\",'1. Order'!AV1387)","v":""},{"$f":"IF('1. Order'!AI1387=\"\",\"\",'1. Order'!AI1387)","v":""}]
[{"$f":"IF('1. Order'!B1388=\"\",\"\",'1. Order'!B1388)","v":""},{"$f":"IF('1. Order'!J1388=\"\",\"\",'1. Order'!J1388)","v":""},{"$f":"IF('1. Order'!K1388=\"\",\"\",'1. Order'!K1388)","v":""},{"$f":"IF('1. Order'!L1388=\"\",\"\",'1. Order'!L1388)","v":""},{"$f":"IF('1. Order'!N1388=\"\",\"\",'1. Order'!N1388)","v":""},null,null,{"$f":"IF('1. Order'!AV1388=\"\",\"\",'1. Order'!AV1388)","v":""},{"$f":"IF('1. Order'!AI1388=\"\",\"\",'1. Order'!AI1388)","v":""}]
[{"$f":"IF('1. Order'!B1389=\"\",\"\",'1. Order'!B1389)","v":""},{"$f":"IF('1. Order'!J1389=\"\",\"\",'1. Order'!J1389)","v":""},{"$f":"IF('1. Order'!K1389=\"\",\"\",'1. Order'!K1389)","v":""},{"$f":"IF('1. Order'!L1389=\"\",\"\",'1. Order'!L1389)","v":""},{"$f":"IF('1. Order'!N1389=\"\",\"\",'1. Order'!N1389)","v":""},null,null,{"$f":"IF('1. Order'!AV1389=\"\",\"\",'1. Order'!AV1389)","v":""},{"$f":"IF('1. Order'!AI1389=\"\",\"\",'1. Order'!AI1389)","v":""}]
[{"$f":"IF('1. Order'!B1390=\"\",\"\",'1. Order'!B1390)","v":""},{"$f":"IF('1. Order'!J1390=\"\",\"\",'1. Order'!J1390)","v":""},{"$f":"IF('1. Order'!K1390=\"\",\"\",'1. Order'!K1390)","v":""},{"$f":"IF('1. Order'!L1390=\"\",\"\",'1. Order'!L1390)","v":""},{"$f":"IF('1. Order'!N1390=\"\",\"\",'1. Order'!N1390)","v":""},null,null,{"$f":"IF('1. Order'!AV1390=\"\",\"\",'1. Order'!AV1390)","v":""},{"$f":"IF('1. Order'!AI1390=\"\",\"\",'1. Order'!AI1390)","v":""}]
[{"$f":"IF('1. Order'!B1391=\"\",\"\",'1. Order'!B1391)","v":""},{"$f":"IF('1. Order'!J1391=\"\",\"\",'1. Order'!J1391)","v":""},{"$f":"IF('1. Order'!K1391=\"\",\"\",'1. Order'!K1391)","v":""},{"$f":"IF('1. Order'!L1391=\"\",\"\",'1. Order'!L1391)","v":""},{"$f":"IF('1. Order'!N1391=\"\",\"\",'1. Order'!N1391)","v":""},null,null,{"$f":"IF('1. Order'!AV1391=\"\",\"\",'1. Order'!AV1391)","v":""},{"$f":"IF('1. Order'!AI1391=\"\",\"\",'1. Order'!AI1391)","v":""}]
[{"$f":"IF('1. Order'!B1392=\"\",\"\",'1. Order'!B1392)","v":""},{"$f":"IF('1. Order'!J1392=\"\",\"\",'1. Order'!J1392)","v":""},{"$f":"IF('1. Order'!K1392=\"\",\"\",'1. Order'!K1392)","v":""},{"$f":"IF('1. Order'!L1392=\"\",\"\",'1. Order'!L1392)","v":""},{"$f":"IF('1. Order'!N1392=\"\",\"\",'1. Order'!N1392)","v":""},null,null,{"$f":"IF('1. Order'!AV1392=\"\",\"\",'1. Order'!AV1392)","v":""},{"$f":"IF('1. Order'!AI1392=\"\",\"\",'1. Order'!AI1392)","v":""}]
[{"$f":"IF('1. Order'!B1393=\"\",\"\",'1. Order'!B1393)","v":""},{"$f":"IF('1. Order'!J1393=\"\",\"\",'1. Order'!J1393)","v":""},{"$f":"IF('1. Order'!K1393=\"\",\"\",'1. Order'!K1393)","v":""},{"$f":"IF('1. Order'!L1393=\"\",\"\",'1. Order'!L1393)","v":""},{"$f":"IF('1. Order'!N1393=\"\",\"\",'1. Order'!N1393)","v":""},null,null,{"$f":"IF('1. Order'!AV1393=\"\",\"\",'1. Order'!AV1393)","v":""},{"$f":"IF('1. Order'!AI1393=\"\",\"\",'1. Order'!AI1393)","v":""}]
[{"$f":"IF('1. Order'!B1394=\"\",\"\",'1. Order'!B1394)","v":""},{"$f":"IF('1. Order'!J1394=\"\",\"\",'1. Order'!J1394)","v":""},{"$f":"IF('1. Order'!K1394=\"\",\"\",'1. Order'!K1394)","v":""},{"$f":"IF('1. Order'!L1394=\"\",\"\",'1. Order'!L1394)","v":""},{"$f":"IF('1. Order'!N1394=\"\",\"\",'1. Order'!N1394)","v":""},null,null,{"$f":"IF('1. Order'!AV1394=\"\",\"\",'1. Order'!AV1394)","v":""},{"$f":"IF('1. Order'!AI1394=\"\",\"\",'1. Order'!AI1394)","v":""}]
[{"$f":"IF('1. Order'!B1395=\"\",\"\",'1. Order'!B1395)","v":""},{"$f":"IF('1. Order'!J1395=\"\",\"\",'1. Order'!J1395)","v":""},{"$f":"IF('1. Order'!K1395=\"\",\"\",'1. Order'!K1395)","v":""},{"$f":"IF('1. Order'!L1395=\"\",\"\",'1. Order'!L1395)","v":""},{"$f":"IF('1. Order'!N1395=\"\",\"\",'1. Order'!N1395)","v":""},null,null,{"$f":"IF('1. Order'!AV1395=\"\",\"\",'1. Order'!AV1395)","v":""},{"$f":"IF('1. Order'!AI1395=\"\",\"\",'1. Order'!AI1395)","v":""}]
[{"$f":"IF('1. Order'!B1396=\"\",\"\",'1. Order'!B1396)","v":""},{"$f":"IF('1. Order'!J1396=\"\",\"\",'1. Order'!J1396)","v":""},{"$f":"IF('1. Order'!K1396=\"\",\"\",'1. Order'!K1396)","v":""},{"$f":"IF('1. Order'!L1396=\"\",\"\",'1. Order'!L1396)","v":""},{"$f":"IF('1. Order'!N1396=\"\",\"\",'1. Order'!N1396)","v":""},null,null,{"$f":"IF('1. Order'!AV1396=\"\",\"\",'1. Order'!AV1396)","v":""},{"$f":"IF('1. Order'!AI1396=\"\",\"\",'1. Order'!AI1396)","v":""}]
[{"$f":"IF('1. Order'!B1397=\"\",\"\",'1. Order'!B1397)","v":""},{"$f":"IF('1. Order'!J1397=\"\",\"\",'1. Order'!J1397)","v":""},{"$f":"IF('1. Order'!K1397=\"\",\"\",'1. Order'!K1397)","v":""},{"$f":"IF('1. Order'!L1397=\"\",\"\",'1. Order'!L1397)","v":""},{"$f":"IF('1. Order'!N1397=\"\",\"\",'1. Order'!N1397)","v":""},null,null,{"$f":"IF('1. Order'!AV1397=\"\",\"\",'1. Order'!AV1397)","v":""},{"$f":"IF('1. Order'!AI1397=\"\",\"\",'1. Order'!AI1397)","v":""}]
[{"$f":"IF('1. Order'!B1398=\"\",\"\",'1. Order'!B1398)","v":""},{"$f":"IF('1. Order'!J1398=\"\",\"\",'1. Order'!J1398)","v":""},{"$f":"IF('1. Order'!K1398=\"\",\"\",'1. Order'!K1398)","v":""},{"$f":"IF('1. Order'!L1398=\"\",\"\",'1. Order'!L1398)","v":""},{"$f":"IF('1. Order'!N1398=\"\",\"\",'1. Order'!N1398)","v":""},null,null,{"$f":"IF('1. Order'!AV1398=\"\",\"\",'1. Order'!AV1398)","v":""},{"$f":"IF('1. Order'!AI1398=\"\",\"\",'1. Order'!AI1398)","v":""}]
[{"$f":"IF('1. Order'!B1399=\"\",\"\",'1. Order'!B1399)","v":""},{"$f":"IF('1. Order'!J1399=\"\",\"\",'1. Order'!J1399)","v":""},{"$f":"IF('1. Order'!K1399=\"\",\"\",'1. Order'!K1399)","v":""},{"$f":"IF('1. Order'!L1399=\"\",\"\",'1. Order'!L1399)","v":""},{"$f":"IF('1. Order'!N1399=\"\",\"\",'1. Order'!N1399)","v":""},null,null,{"$f":"IF('1. Order'!AV1399=\"\",\"\",'1. Order'!AV1399)","v":""},{"$f":"IF('1. Order'!AI1399=\"\",\"\",'1. Order'!AI1399)","v":""}]
[{"$f":"IF('1. Order'!B1400=\"\",\"\",'1. Order'!B1400)","v":""},{"$f":"IF('1. Order'!J1400=\"\",\"\",'1. Order'!J1400)","v":""},{"$f":"IF('1. Order'!K1400=\"\",\"\",'1. Order'!K1400)","v":""},{"$f":"IF('1. Order'!L1400=\"\",\"\",'1. Order'!L1400)","v":""},{"$f":"IF('1. Order'!N1400=\"\",\"\",'1. Order'!N1400)","v":""},null,null,{"$f":"IF('1. Order'!AV1400=\"\",\"\",'1. Order'!AV1400)","v":""},{"$f":"IF('1. Order'!AI1400=\"\",\"\",'1. Order'!AI1400)","v":""}]
[{"$f":"IF('1. Order'!B1401=\"\",\"\",'1. Order'!B1401)","v":""},{"$f":"IF('1. Order'!J1401=\"\",\"\",'1. Order'!J1401)","v":""},{"$f":"IF('1. Order'!K1401=\"\",\"\",'1. Order'!K1401)","v":""},{"$f":"IF('1. Order'!L1401=\"\",\"\",'1. Order'!L1401)","v":""},{"$f":"IF('1. Order'!N1401=\"\",\"\",'1. Order'!N1401)","v":""},null,null,{"$f":"IF('1. Order'!AV1401=\"\",\"\",'1. Order'!AV1401)","v":""},{"$f":"IF('1. Order'!AI1401=\"\",\"\",'1. Order'!AI1401)","v":""}]
[{"$f":"IF('1. Order'!B1402=\"\",\"\",'1. Order'!B1402)","v":""},{"$f":"IF('1. Order'!J1402=\"\",\"\",'1. Order'!J1402)","v":""},{"$f":"IF('1. Order'!K1402=\"\",\"\",'1. Order'!K1402)","v":""},{"$f":"IF('1. Order'!L1402=\"\",\"\",'1. Order'!L1402)","v":""},{"$f":"IF('1. Order'!N1402=\"\",\"\",'1. Order'!N1402)","v":""},null,null,{"$f":"IF('1. Order'!AV1402=\"\",\"\",'1. Order'!AV1402)","v":""},{"$f":"IF('1. Order'!AI1402=\"\",\"\",'1. Order'!AI1402)","v":""}]
[{"$f":"IF('1. Order'!B1403=\"\",\"\",'1. Order'!B1403)","v":""},{"$f":"IF('1. Order'!J1403=\"\",\"\",'1. Order'!J1403)","v":""},{"$f":"IF('1. Order'!K1403=\"\",\"\",'1. Order'!K1403)","v":""},{"$f":"IF('1. Order'!L1403=\"\",\"\",'1. Order'!L1403)","v":""},{"$f":"IF('1. Order'!N1403=\"\",\"\",'1. Order'!N1403)","v":""},null,null,{"$f":"IF('1. Order'!AV1403=\"\",\"\",'1. Order'!AV1403)","v":""},{"$f":"IF('1. Order'!AI1403=\"\",\"\",'1. Order'!AI1403)","v":""}]
[{"$f":"IF('1. Order'!B1404=\"\",\"\",'1. Order'!B1404)","v":""},{"$f":"IF('1. Order'!J1404=\"\",\"\",'1. Order'!J1404)","v":""},{"$f":"IF('1. Order'!K1404=\"\",\"\",'1. Order'!K1404)","v":""},{"$f":"IF('1. Order'!L1404=\"\",\"\",'1. Order'!L1404)","v":""},{"$f":"IF('1. Order'!N1404=\"\",\"\",'1. Order'!N1404)","v":""},null,null,{"$f":"IF('1. Order'!AV1404=\"\",\"\",'1. Order'!AV1404)","v":""},{"$f":"IF('1. Order'!AI1404=\"\",\"\",'1. Order'!AI1404)","v":""}]
[{"$f":"IF('1. Order'!B1405=\"\",\"\",'1. Order'!B1405)","v":""},{"$f":"IF('1. Order'!J1405=\"\",\"\",'1. Order'!J1405)","v":""},{"$f":"IF('1. Order'!K1405=\"\",\"\",'1. Order'!K1405)","v":""},{"$f":"IF('1. Order'!L1405=\"\",\"\",'1. Order'!L1405)","v":""},{"$f":"IF('1. Order'!N1405=\"\",\"\",'1. Order'!N1405)","v":""},null,null,{"$f":"IF('1. Order'!AV1405=\"\",\"\",'1. Order'!AV1405)","v":""},{"$f":"IF('1. Order'!AI1405=\"\",\"\",'1. Order'!AI1405)","v":""}]
[{"$f":"IF('1. Order'!B1406=\"\",\"\",'1. Order'!B1406)","v":""},{"$f":"IF('1. Order'!J1406=\"\",\"\",'1. Order'!J1406)","v":""},{"$f":"IF('1. Order'!K1406=\"\",\"\",'1. Order'!K1406)","v":""},{"$f":"IF('1. Order'!L1406=\"\",\"\",'1. Order'!L1406)","v":""},{"$f":"IF('1. Order'!N1406=\"\",\"\",'1. Order'!N1406)","v":""},null,null,{"$f":"IF('1. Order'!AV1406=\"\",\"\",'1. Order'!AV1406)","v":""},{"$f":"IF('1. Order'!AI1406=\"\",\"\",'1. Order'!AI1406)","v":""}]
[{"$f":"IF('1. Order'!B1407=\"\",\"\",'1. Order'!B1407)","v":""},{"$f":"IF('1. Order'!J1407=\"\",\"\",'1. Order'!J1407)","v":""},{"$f":"IF('1. Order'!K1407=\"\",\"\",'1. Order'!K1407)","v":""},{"$f":"IF('1. Order'!L1407=\"\",\"\",'1. Order'!L1407)","v":""},{"$f":"IF('1. Order'!N1407=\"\",\"\",'1. Order'!N1407)","v":""},null,null,{"$f":"IF('1. Order'!AV1407=\"\",\"\",'1. Order'!AV1407)","v":""},{"$f":"IF('1. Order'!AI1407=\"\",\"\",'1. Order'!AI1407)","v":""}]
[{"$f":"IF('1. Order'!B1408=\"\",\"\",'1. Order'!B1408)","v":""},{"$f":"IF('1. Order'!J1408=\"\",\"\",'1. Order'!J1408)","v":""},{"$f":"IF('1. Order'!K1408=\"\",\"\",'1. Order'!K1408)","v":""},{"$f":"IF('1. Order'!L1408=\"\",\"\",'1. Order'!L1408)","v":""},{"$f":"IF('1. Order'!N1408=\"\",\"\",'1. Order'!N1408)","v":""},null,null,{"$f":"IF('1. Order'!AV1408=\"\",\"\",'1. Order'!AV1408)","v":""},{"$f":"IF('1. Order'!AI1408=\"\",\"\",'1. Order'!AI1408)","v":""}]
[{"$f":"IF('1. Order'!B1409=\"\",\"\",'1. Order'!B1409)","v":""},{"$f":"IF('1. Order'!J1409=\"\",\"\",'1. Order'!J1409)","v":""},{"$f":"IF('1. Order'!K1409=\"\",\"\",'1. Order'!K1409)","v":""},{"$f":"IF('1. Order'!L1409=\"\",\"\",'1. Order'!L1409)","v":""},{"$f":"IF('1. Order'!N1409=\"\",\"\",'1. Order'!N1409)","v":""},null,null,{"$f":"IF('1. Order'!AV1409=\"\",\"\",'1. Order'!AV1409)","v":""},{"$f":"IF('1. Order'!AI1409=\"\",\"\",'1. Order'!AI1409)","v":""}]
[{"$f":"IF('1. Order'!B1410=\"\",\"\",'1. Order'!B1410)","v":""},{"$f":"IF('1. Order'!J1410=\"\",\"\",'1. Order'!J1410)","v":""},{"$f":"IF('1. Order'!K1410=\"\",\"\",'1. Order'!K1410)","v":""},{"$f":"IF('1. Order'!L1410=\"\",\"\",'1. Order'!L1410)","v":""},{"$f":"IF('1. Order'!N1410=\"\",\"\",'1. Order'!N1410)","v":""},null,null,{"$f":"IF('1. Order'!AV1410=\"\",\"\",'1. Order'!AV1410)","v":""},{"$f":"IF('1. Order'!AI1410=\"\",\"\",'1. Order'!AI1410)","v":""}]
[{"$f":"IF('1. Order'!B1411=\"\",\"\",'1. Order'!B1411)","v":""},{"$f":"IF('1. Order'!J1411=\"\",\"\",'1. Order'!J1411)","v":""},{"$f":"IF('1. Order'!K1411=\"\",\"\",'1. Order'!K1411)","v":""},{"$f":"IF('1. Order'!L1411=\"\",\"\",'1. Order'!L1411)","v":""},{"$f":"IF('1. Order'!N1411=\"\",\"\",'1. Order'!N1411)","v":""},null,null,{"$f":"IF('1. Order'!AV1411=\"\",\"\",'1. Order'!AV1411)","v":""},{"$f":"IF('1. Order'!AI1411=\"\",\"\",'1. Order'!AI1411)","v":""}]
[{"$f":"IF('1. Order'!B1412=\"\",\"\",'1. Order'!B1412)","v":""},{"$f":"IF('1. Order'!J1412=\"\",\"\",'1. Order'!J1412)","v":""},{"$f":"IF('1. Order'!K1412=\"\",\"\",'1. Order'!K1412)","v":""},{"$f":"IF('1. Order'!L1412=\"\",\"\",'1. Order'!L1412)","v":""},{"$f":"IF('1. Order'!N1412=\"\",\"\",'1. Order'!N1412)","v":""},null,null,{"$f":"IF('1. Order'!AV1412=\"\",\"\",'1. Order'!AV1412)","v":""},{"$f":"IF('1. Order'!AI1412=\"\",\"\",'1. Order'!AI1412)","v":""}]
[{"$f":"IF('1. Order'!B1413=\"\",\"\",'1. Order'!B1413)","v":""},{"$f":"IF('1. Order'!J1413=\"\",\"\",'1. Order'!J1413)","v":""},{"$f":"IF('1. Order'!K1413=\"\",\"\",'1. Order'!K1413)","v":""},{"$f":"IF('1. Order'!L1413=\"\",\"\",'1. Order'!L1413)","v":""},{"$f":"IF('1. Order'!N1413=\"\",\"\",'1. Order'!N1413)","v":""},null,null,{"$f":"IF('1. Order'!AV1413=\"\",\"\",'1. Order'!AV1413)","v":""},{"$f":"IF('1. Order'!AI1413=\"\",\"\",'1. Order'!AI1413)","v":""}]
[{"$f":"IF('1. Order'!B1414=\"\",\"\",'1. Order'!B1414)","v":""},{"$f":"IF('1. Order'!J1414=\"\",\"\",'1. Order'!J1414)","v":""},{"$f":"IF('1. Order'!K1414=\"\",\"\",'1. Order'!K1414)","v":""},{"$f":"IF('1. Order'!L1414=\"\",\"\",'1. Order'!L1414)","v":""},{"$f":"IF('1. Order'!N1414=\"\",\"\",'1. Order'!N1414)","v":""},null,null,{"$f":"IF('1. Order'!AV1414=\"\",\"\",'1. Order'!AV1414)","v":""},{"$f":"IF('1. Order'!AI1414=\"\",\"\",'1. Order'!AI1414)","v":""}]
[{"$f":"IF('1. Order'!B1415=\"\",\"\",'1. Order'!B1415)","v":""},{"$f":"IF('1. Order'!J1415=\"\",\"\",'1. Order'!J1415)","v":""},{"$f":"IF('1. Order'!K1415=\"\",\"\",'1. Order'!K1415)","v":""},{"$f":"IF('1. Order'!L1415=\"\",\"\",'1. Order'!L1415)","v":""},{"$f":"IF('1. Order'!N1415=\"\",\"\",'1. Order'!N1415)","v":""},null,null,{"$f":"IF('1. Order'!AV1415=\"\",\"\",'1. Order'!AV1415)","v":""},{"$f":"IF('1. Order'!AI1415=\"\",\"\",'1. Order'!AI1415)","v":""}]
[{"$f":"IF('1. Order'!B1416=\"\",\"\",'1. Order'!B1416)","v":""},{"$f":"IF('1. Order'!J1416=\"\",\"\",'1. Order'!J1416)","v":""},{"$f":"IF('1. Order'!K1416=\"\",\"\",'1. Order'!K1416)","v":""},{"$f":"IF('1. Order'!L1416=\"\",\"\",'1. Order'!L1416)","v":""},{"$f":"IF('1. Order'!N1416=\"\",\"\",'1. Order'!N1416)","v":""},null,null,{"$f":"IF('1. Order'!AV1416=\"\",\"\",'1. Order'!AV1416)","v":""},{"$f":"IF('1. Order'!AI1416=\"\",\"\",'1. Order'!AI1416)","v":""}]
[{"$f":"IF('1. Order'!B1417=\"\",\"\",'1. Order'!B1417)","v":""},{"$f":"IF('1. Order'!J1417=\"\",\"\",'1. Order'!J1417)","v":""},{"$f":"IF('1. Order'!K1417=\"\",\"\",'1. Order'!K1417)","v":""},{"$f":"IF('1. Order'!L1417=\"\",\"\",'1. Order'!L1417)","v":""},{"$f":"IF('1. Order'!N1417=\"\",\"\",'1. Order'!N1417)","v":""},null,null,{"$f":"IF('1. Order'!AV1417=\"\",\"\",'1. Order'!AV1417)","v":""},{"$f":"IF('1. Order'!AI1417=\"\",\"\",'1. Order'!AI1417)","v":""}]
[{"$f":"IF('1. Order'!B1418=\"\",\"\",'1. Order'!B1418)","v":""},{"$f":"IF('1. Order'!J1418=\"\",\"\",'1. Order'!J1418)","v":""},{"$f":"IF('1. Order'!K1418=\"\",\"\",'1. Order'!K1418)","v":""},{"$f":"IF('1. Order'!L1418=\"\",\"\",'1. Order'!L1418)","v":""},{"$f":"IF('1. Order'!N1418=\"\",\"\",'1. Order'!N1418)","v":""},null,null,{"$f":"IF('1. Order'!AV1418=\"\",\"\",'1. Order'!AV1418)","v":""},{"$f":"IF('1. Order'!AI1418=\"\",\"\",'1. Order'!AI1418)","v":""}]
[{"$f":"IF('1. Order'!B1419=\"\",\"\",'1. Order'!B1419)","v":""},{"$f":"IF('1. Order'!J1419=\"\",\"\",'1. Order'!J1419)","v":""},{"$f":"IF('1. Order'!K1419=\"\",\"\",'1. Order'!K1419)","v":""},{"$f":"IF('1. Order'!L1419=\"\",\"\",'1. Order'!L1419)","v":""},{"$f":"IF('1. Order'!N1419=\"\",\"\",'1. Order'!N1419)","v":""},null,null,{"$f":"IF('1. Order'!AV1419=\"\",\"\",'1. Order'!AV1419)","v":""},{"$f":"IF('1. Order'!AI1419=\"\",\"\",'1. Order'!AI1419)","v":""}]
[{"$f":"IF('1. Order'!B1420=\"\",\"\",'1. Order'!B1420)","v":""},{"$f":"IF('1. Order'!J1420=\"\",\"\",'1. Order'!J1420)","v":""},{"$f":"IF('1. Order'!K1420=\"\",\"\",'1. Order'!K1420)","v":""},{"$f":"IF('1. Order'!L1420=\"\",\"\",'1. Order'!L1420)","v":""},{"$f":"IF('1. Order'!N1420=\"\",\"\",'1. Order'!N1420)","v":""},null,null,{"$f":"IF('1. Order'!AV1420=\"\",\"\",'1. Order'!AV1420)","v":""},{"$f":"IF('1. Order'!AI1420=\"\",\"\",'1. Order'!AI1420)","v":""}]
[{"$f":"IF('1. Order'!B1421=\"\",\"\",'1. Order'!B1421)","v":""},{"$f":"IF('1. Order'!J1421=\"\",\"\",'1. Order'!J1421)","v":""},{"$f":"IF('1. Order'!K1421=\"\",\"\",'1. Order'!K1421)","v":""},{"$f":"IF('1. Order'!L1421=\"\",\"\",'1. Order'!L1421)","v":""},{"$f":"IF('1. Order'!N1421=\"\",\"\",'1. Order'!N1421)","v":""},null,null,{"$f":"IF('1. Order'!AV1421=\"\",\"\",'1. Order'!AV1421)","v":""},{"$f":"IF('1. Order'!AI1421=\"\",\"\",'1. Order'!AI1421)","v":""}]
[{"$f":"IF('1. Order'!B1422=\"\",\"\",'1. Order'!B1422)","v":""},{"$f":"IF('1. Order'!J1422=\"\",\"\",'1. Order'!J1422)","v":""},{"$f":"IF('1. Order'!K1422=\"\",\"\",'1. Order'!K1422)","v":""},{"$f":"IF('1. Order'!L1422=\"\",\"\",'1. Order'!L1422)","v":""},{"$f":"IF('1. Order'!N1422=\"\",\"\",'1. Order'!N1422)","v":""},null,null,{"$f":"IF('1. Order'!AV1422=\"\",\"\",'1. Order'!AV1422)","v":""},{"$f":"IF('1. Order'!AI1422=\"\",\"\",'1. Order'!AI1422)","v":""}]
[{"$f":"IF('1. Order'!B1423=\"\",\"\",'1. Order'!B1423)","v":""},{"$f":"IF('1. Order'!J1423=\"\",\"\",'1. Order'!J1423)","v":""},{"$f":"IF('1. Order'!K1423=\"\",\"\",'1. Order'!K1423)","v":""},{"$f":"IF('1. Order'!L1423=\"\",\"\",'1. Order'!L1423)","v":""},{"$f":"IF('1. Order'!N1423=\"\",\"\",'1. Order'!N1423)","v":""},null,null,{"$f":"IF('1. Order'!AV1423=\"\",\"\",'1. Order'!AV1423)","v":""},{"$f":"IF('1. Order'!AI1423=\"\",\"\",'1. Order'!AI1423)","v":""}]
[{"$f":"IF('1. Order'!B1424=\"\",\"\",'1. Order'!B1424)","v":""},{"$f":"IF('1. Order'!J1424=\"\",\"\",'1. Order'!J1424)","v":""},{"$f":"IF('1. Order'!K1424=\"\",\"\",'1. Order'!K1424)","v":""},{"$f":"IF('1. Order'!L1424=\"\",\"\",'1. Order'!L1424)","v":""},{"$f":"IF('1. Order'!N1424=\"\",\"\",'1. Order'!N1424)","v":""},null,null,{"$f":"IF('1. Order'!AV1424=\"\",\"\",'1. Order'!AV1424)","v":""},{"$f":"IF('1. Order'!AI1424=\"\",\"\",'1. Order'!AI1424)","v":""}]
[{"$f":"IF('1. Order'!B1425=\"\",\"\",'1. Order'!B1425)","v":""},{"$f":"IF('1. Order'!J1425=\"\",\"\",'1. Order'!J1425)","v":""},{"$f":"IF('1. Order'!K1425=\"\",\"\",'1. Order'!K1425)","v":""},{"$f":"IF('1. Order'!L1425=\"\",\"\",'1. Order'!L1425)","v":""},{"$f":"IF('1. Order'!N1425=\"\",\"\",'1. Order'!N1425)","v":""},null,null,{"$f":"IF('1. Order'!AV1425=\"\",\"\",'1. Order'!AV1425)","v":""},{"$f":"IF('1. Order'!AI1425=\"\",\"\",'1. Order'!AI1425)","v":""}]
[{"$f":"IF('1. Order'!B1426=\"\",\"\",'1. Order'!B1426)","v":""},{"$f":"IF('1. Order'!J1426=\"\",\"\",'1. Order'!J1426)","v":""},{"$f":"IF('1. Order'!K1426=\"\",\"\",'1. Order'!K1426)","v":""},{"$f":"IF('1. Order'!L1426=\"\",\"\",'1. Order'!L1426)","v":""},{"$f":"IF('1. Order'!N1426=\"\",\"\",'1. Order'!N1426)","v":""},null,null,{"$f":"IF('1. Order'!AV1426=\"\",\"\",'1. Order'!AV1426)","v":""},{"$f":"IF('1. Order'!AI1426=\"\",\"\",'1. Order'!AI1426)","v":""}]
[{"$f":"IF('1. Order'!B1427=\"\",\"\",'1. Order'!B1427)","v":""},{"$f":"IF('1. Order'!J1427=\"\",\"\",'1. Order'!J1427)","v":""},{"$f":"IF('1. Order'!K1427=\"\",\"\",'1. Order'!K1427)","v":""},{"$f":"IF('1. Order'!L1427=\"\",\"\",'1. Order'!L1427)","v":""},{"$f":"IF('1. Order'!N1427=\"\",\"\",'1. Order'!N1427)","v":""},null,null,{"$f":"IF('1. Order'!AV1427=\"\",\"\",'1. Order'!AV1427)","v":""},{"$f":"IF('1. Order'!AI1427=\"\",\"\",'1. Order'!AI1427)","v":""}]
[{"$f":"IF('1. Order'!B1428=\"\",\"\",'1. Order'!B1428)","v":""},{"$f":"IF('1. Order'!J1428=\"\",\"\",'1. Order'!J1428)","v":""},{"$f":"IF('1. Order'!K1428=\"\",\"\",'1. Order'!K1428)","v":""},{"$f":"IF('1. Order'!L1428=\"\",\"\",'1. Order'!L1428)","v":""},{"$f":"IF('1. Order'!N1428=\"\",\"\",'1. Order'!N1428)","v":""},null,null,{"$f":"IF('1. Order'!AV1428=\"\",\"\",'1. Order'!AV1428)","v":""},{"$f":"IF('1. Order'!AI1428=\"\",\"\",'1. Order'!AI1428)","v":""}]
[{"$f":"IF('1. Order'!B1429=\"\",\"\",'1. Order'!B1429)","v":""},{"$f":"IF('1. Order'!J1429=\"\",\"\",'1. Order'!J1429)","v":""},{"$f":"IF('1. Order'!K1429=\"\",\"\",'1. Order'!K1429)","v":""},{"$f":"IF('1. Order'!L1429=\"\",\"\",'1. Order'!L1429)","v":""},{"$f":"IF('1. Order'!N1429=\"\",\"\",'1. Order'!N1429)","v":""},null,null,{"$f":"IF('1. Order'!AV1429=\"\",\"\",'1. Order'!AV1429)","v":""},{"$f":"IF('1. Order'!AI1429=\"\",\"\",'1. Order'!AI1429)","v":""}]
[{"$f":"IF('1. Order'!B1430=\"\",\"\",'1. Order'!B1430)","v":""},{"$f":"IF('1. Order'!J1430=\"\",\"\",'1. Order'!J1430)","v":""},{"$f":"IF('1. Order'!K1430=\"\",\"\",'1. Order'!K1430)","v":""},{"$f":"IF('1. Order'!L1430=\"\",\"\",'1. Order'!L1430)","v":""},{"$f":"IF('1. Order'!N1430=\"\",\"\",'1. Order'!N1430)","v":""},null,null,{"$f":"IF('1. Order'!AV1430=\"\",\"\",'1. Order'!AV1430)","v":""},{"$f":"IF('1. Order'!AI1430=\"\",\"\",'1. Order'!AI1430)","v":""}]
[{"$f":"IF('1. Order'!B1431=\"\",\"\",'1. Order'!B1431)","v":""},{"$f":"IF('1. Order'!J1431=\"\",\"\",'1. Order'!J1431)","v":""},{"$f":"IF('1. Order'!K1431=\"\",\"\",'1. Order'!K1431)","v":""},{"$f":"IF('1. Order'!L1431=\"\",\"\",'1. Order'!L1431)","v":""},{"$f":"IF('1. Order'!N1431=\"\",\"\",'1. Order'!N1431)","v":""},null,null,{"$f":"IF('1. Order'!AV1431=\"\",\"\",'1. Order'!AV1431)","v":""},{"$f":"IF('1. Order'!AI1431=\"\",\"\",'1. Order'!AI1431)","v":""}]
[{"$f":"IF('1. Order'!B1432=\"\",\"\",'1. Order'!B1432)","v":""},{"$f":"IF('1. Order'!J1432=\"\",\"\",'1. Order'!J1432)","v":""},{"$f":"IF('1. Order'!K1432=\"\",\"\",'1. Order'!K1432)","v":""},{"$f":"IF('1. Order'!L1432=\"\",\"\",'1. Order'!L1432)","v":""},{"$f":"IF('1. Order'!N1432=\"\",\"\",'1. Order'!N1432)","v":""},null,null,{"$f":"IF('1. Order'!AV1432=\"\",\"\",'1. Order'!AV1432)","v":""},{"$f":"IF('1. Order'!AI1432=\"\",\"\",'1. Order'!AI1432)","v":""}]
[{"$f":"IF('1. Order'!B1433=\"\",\"\",'1. Order'!B1433)","v":""},{"$f":"IF('1. Order'!J1433=\"\",\"\",'1. Order'!J1433)","v":""},{"$f":"IF('1. Order'!K1433=\"\",\"\",'1. Order'!K1433)","v":""},{"$f":"IF('1. Order'!L1433=\"\",\"\",'1. Order'!L1433)","v":""},{"$f":"IF('1. Order'!N1433=\"\",\"\",'1. Order'!N1433)","v":""},null,null,{"$f":"IF('1. Order'!AV1433=\"\",\"\",'1. Order'!AV1433)","v":""},{"$f":"IF('1. Order'!AI1433=\"\",\"\",'1. Order'!AI1433)","v":""}]
[{"$f":"IF('1. Order'!B1434=\"\",\"\",'1. Order'!B1434)","v":""},{"$f":"IF('1. Order'!J1434=\"\",\"\",'1. Order'!J1434)","v":""},{"$f":"IF('1. Order'!K1434=\"\",\"\",'1. Order'!K1434)","v":""},{"$f":"IF('1. Order'!L1434=\"\",\"\",'1. Order'!L1434)","v":""},{"$f":"IF('1. Order'!N1434=\"\",\"\",'1. Order'!N1434)","v":""},null,null,{"$f":"IF('1. Order'!AV1434=\"\",\"\",'1. Order'!AV1434)","v":""},{"$f":"IF('1. Order'!AI1434=\"\",\"\",'1. Order'!AI1434)","v":""}]
[{"$f":"IF('1. Order'!B1435=\"\",\"\",'1. Order'!B1435)","v":""},{"$f":"IF('1. Order'!J1435=\"\",\"\",'1. Order'!J1435)","v":""},{"$f":"IF('1. Order'!K1435=\"\",\"\",'1. Order'!K1435)","v":""},{"$f":"IF('1. Order'!L1435=\"\",\"\",'1. Order'!L1435)","v":""},{"$f":"IF('1. Order'!N1435=\"\",\"\",'1. Order'!N1435)","v":""},null,null,{"$f":"IF('1. Order'!AV1435=\"\",\"\",'1. Order'!AV1435)","v":""},{"$f":"IF('1. Order'!AI1435=\"\",\"\",'1. Order'!AI1435)","v":""}]
[{"$f":"IF('1. Order'!B1436=\"\",\"\",'1. Order'!B1436)","v":""},{"$f":"IF('1. Order'!J1436=\"\",\"\",'1. Order'!J1436)","v":""},{"$f":"IF('1. Order'!K1436=\"\",\"\",'1. Order'!K1436)","v":""},{"$f":"IF('1. Order'!L1436=\"\",\"\",'1. Order'!L1436)","v":""},{"$f":"IF('1. Order'!N1436=\"\",\"\",'1. Order'!N1436)","v":""},null,null,{"$f":"IF('1. Order'!AV1436=\"\",\"\",'1. Order'!AV1436)","v":""},{"$f":"IF('1. Order'!AI1436=\"\",\"\",'1. Order'!AI1436)","v":""}]
[{"$f":"IF('1. Order'!B1437=\"\",\"\",'1. Order'!B1437)","v":""},{"$f":"IF('1. Order'!J1437=\"\",\"\",'1. Order'!J1437)","v":""},{"$f":"IF('1. Order'!K1437=\"\",\"\",'1. Order'!K1437)","v":""},{"$f":"IF('1. Order'!L1437=\"\",\"\",'1. Order'!L1437)","v":""},{"$f":"IF('1. Order'!N1437=\"\",\"\",'1. Order'!N1437)","v":""},null,null,{"$f":"IF('1. Order'!AV1437=\"\",\"\",'1. Order'!AV1437)","v":""},{"$f":"IF('1. Order'!AI1437=\"\",\"\",'1. Order'!AI1437)","v":""}]
[{"$f":"IF('1. Order'!B1438=\"\",\"\",'1. Order'!B1438)","v":""},{"$f":"IF('1. Order'!J1438=\"\",\"\",'1. Order'!J1438)","v":""},{"$f":"IF('1. Order'!K1438=\"\",\"\",'1. Order'!K1438)","v":""},{"$f":"IF('1. Order'!L1438=\"\",\"\",'1. Order'!L1438)","v":""},{"$f":"IF('1. Order'!N1438=\"\",\"\",'1. Order'!N1438)","v":""},null,null,{"$f":"IF('1. Order'!AV1438=\"\",\"\",'1. Order'!AV1438)","v":""},{"$f":"IF('1. Order'!AI1438=\"\",\"\",'1. Order'!AI1438)","v":""}]
[{"$f":"IF('1. Order'!B1439=\"\",\"\",'1. Order'!B1439)","v":""},{"$f":"IF('1. Order'!J1439=\"\",\"\",'1. Order'!J1439)","v":""},{"$f":"IF('1. Order'!K1439=\"\",\"\",'1. Order'!K1439)","v":""},{"$f":"IF('1. Order'!L1439=\"\",\"\",'1. Order'!L1439)","v":""},{"$f":"IF('1. Order'!N1439=\"\",\"\",'1. Order'!N1439)","v":""},null,null,{"$f":"IF('1. Order'!AV1439=\"\",\"\",'1. Order'!AV1439)","v":""},{"$f":"IF('1. Order'!AI1439=\"\",\"\",'1. Order'!AI1439)","v":""}]
[{"$f":"IF('1. Order'!B1440=\"\",\"\",'1. Order'!B1440)","v":""},{"$f":"IF('1. Order'!J1440=\"\",\"\",'1. Order'!J1440)","v":""},{"$f":"IF('1. Order'!K1440=\"\",\"\",'1. Order'!K1440)","v":""},{"$f":"IF('1. Order'!L1440=\"\",\"\",'1. Order'!L1440)","v":""},{"$f":"IF('1. Order'!N1440=\"\",\"\",'1. Order'!N1440)","v":""},null,null,{"$f":"IF('1. Order'!AV1440=\"\",\"\",'1. Order'!AV1440)","v":""},{"$f":"IF('1. Order'!AI1440=\"\",\"\",'1. Order'!AI1440)","v":""}]
[{"$f":"IF('1. Order'!B1441=\"\",\"\",'1. Order'!B1441)","v":""},{"$f":"IF('1. Order'!J1441=\"\",\"\",'1. Order'!J1441)","v":""},{"$f":"IF('1. Order'!K1441=\"\",\"\",'1. Order'!K1441)","v":""},{"$f":"IF('1. Order'!L1441=\"\",\"\",'1. Order'!L1441)","v":""},{"$f":"IF('1. Order'!N1441=\"\",\"\",'1. Order'!N1441)","v":""},null,null,{"$f":"IF('1. Order'!AV1441=\"\",\"\",'1. Order'!AV1441)","v":""},{"$f":"IF('1. Order'!AI1441=\"\",\"\",'1. Order'!AI1441)","v":""}]
[{"$f":"IF('1. Order'!B1442=\"\",\"\",'1. Order'!B1442)","v":""},{"$f":"IF('1. Order'!J1442=\"\",\"\",'1. Order'!J1442)","v":""},{"$f":"IF('1. Order'!K1442=\"\",\"\",'1. Order'!K1442)","v":""},{"$f":"IF('1. Order'!L1442=\"\",\"\",'1. Order'!L1442)","v":""},{"$f":"IF('1. Order'!N1442=\"\",\"\",'1. Order'!N1442)","v":""},null,null,{"$f":"IF('1. Order'!AV1442=\"\",\"\",'1. Order'!AV1442)","v":""},{"$f":"IF('1. Order'!AI1442=\"\",\"\",'1. Order'!AI1442)","v":""}]
[{"$f":"IF('1. Order'!B1443=\"\",\"\",'1. Order'!B1443)","v":""},{"$f":"IF('1. Order'!J1443=\"\",\"\",'1. Order'!J1443)","v":""},{"$f":"IF('1. Order'!K1443=\"\",\"\",'1. Order'!K1443)","v":""},{"$f":"IF('1. Order'!L1443=\"\",\"\",'1. Order'!L1443)","v":""},{"$f":"IF('1. Order'!N1443=\"\",\"\",'1. Order'!N1443)","v":""},null,null,{"$f":"IF('1. Order'!AV1443=\"\",\"\",'1. Order'!AV1443)","v":""},{"$f":"IF('1. Order'!AI1443=\"\",\"\",'1. Order'!AI1443)","v":""}]
[{"$f":"IF('1. Order'!B1444=\"\",\"\",'1. Order'!B1444)","v":""},{"$f":"IF('1. Order'!J1444=\"\",\"\",'1. Order'!J1444)","v":""},{"$f":"IF('1. Order'!K1444=\"\",\"\",'1. Order'!K1444)","v":""},{"$f":"IF('1. Order'!L1444=\"\",\"\",'1. Order'!L1444)","v":""},{"$f":"IF('1. Order'!N1444=\"\",\"\",'1. Order'!N1444)","v":""},null,null,{"$f":"IF('1. Order'!AV1444=\"\",\"\",'1. Order'!AV1444)","v":""},{"$f":"IF('1. Order'!AI1444=\"\",\"\",'1. Order'!AI1444)","v":""}]
[{"$f":"IF('1. Order'!B1445=\"\",\"\",'1. Order'!B1445)","v":""},{"$f":"IF('1. Order'!J1445=\"\",\"\",'1. Order'!J1445)","v":""},{"$f":"IF('1. Order'!K1445=\"\",\"\",'1. Order'!K1445)","v":""},{"$f":"IF('1. Order'!L1445=\"\",\"\",'1. Order'!L1445)","v":""},{"$f":"IF('1. Order'!N1445=\"\",\"\",'1. Order'!N1445)","v":""},null,null,{"$f":"IF('1. Order'!AV1445=\"\",\"\",'1. Order'!AV1445)","v":""},{"$f":"IF('1. Order'!AI1445=\"\",\"\",'1. Order'!AI1445)","v":""}]
[{"$f":"IF('1. Order'!B1446=\"\",\"\",'1. Order'!B1446)","v":""},{"$f":"IF('1. Order'!J1446=\"\",\"\",'1. Order'!J1446)","v":""},{"$f":"IF('1. Order'!K1446=\"\",\"\",'1. Order'!K1446)","v":""},{"$f":"IF('1. Order'!L1446=\"\",\"\",'1. Order'!L1446)","v":""},{"$f":"IF('1. Order'!N1446=\"\",\"\",'1. Order'!N1446)","v":""},null,null,{"$f":"IF('1. Order'!AV1446=\"\",\"\",'1. Order'!AV1446)","v":""},{"$f":"IF('1. Order'!AI1446=\"\",\"\",'1. Order'!AI1446)","v":""}]
[{"$f":"IF('1. Order'!B1447=\"\",\"\",'1. Order'!B1447)","v":""},{"$f":"IF('1. Order'!J1447=\"\",\"\",'1. Order'!J1447)","v":""},{"$f":"IF('1. Order'!K1447=\"\",\"\",'1. Order'!K1447)","v":""},{"$f":"IF('1. Order'!L1447=\"\",\"\",'1. Order'!L1447)","v":""},{"$f":"IF('1. Order'!N1447=\"\",\"\",'1. Order'!N1447)","v":""},null,null,{"$f":"IF('1. Order'!AV1447=\"\",\"\",'1. Order'!AV1447)","v":""},{"$f":"IF('1. Order'!AI1447=\"\",\"\",'1. Order'!AI1447)","v":""}]
[{"$f":"IF('1. Order'!B1448=\"\",\"\",'1. Order'!B1448)","v":""},{"$f":"IF('1. Order'!J1448=\"\",\"\",'1. Order'!J1448)","v":""},{"$f":"IF('1. Order'!K1448=\"\",\"\",'1. Order'!K1448)","v":""},{"$f":"IF('1. Order'!L1448=\"\",\"\",'1. Order'!L1448)","v":""},{"$f":"IF('1. Order'!N1448=\"\",\"\",'1. Order'!N1448)","v":""},null,null,{"$f":"IF('1. Order'!AV1448=\"\",\"\",'1. Order'!AV1448)","v":""},{"$f":"IF('1. Order'!AI1448=\"\",\"\",'1. Order'!AI1448)","v":""}]
[{"$f":"IF('1. Order'!B1449=\"\",\"\",'1. Order'!B1449)","v":""},{"$f":"IF('1. Order'!J1449=\"\",\"\",'1. Order'!J1449)","v":""},{"$f":"IF('1. Order'!K1449=\"\",\"\",'1. Order'!K1449)","v":""},{"$f":"IF('1. Order'!L1449=\"\",\"\",'1. Order'!L1449)","v":""},{"$f":"IF('1. Order'!N1449=\"\",\"\",'1. Order'!N1449)","v":""},null,null,{"$f":"IF('1. Order'!AV1449=\"\",\"\",'1. Order'!AV1449)","v":""},{"$f":"IF('1. Order'!AI1449=\"\",\"\",'1. Order'!AI1449)","v":""}]
[{"$f":"IF('1. Order'!B1450=\"\",\"\",'1. Order'!B1450)","v":""},{"$f":"IF('1. Order'!J1450=\"\",\"\",'1. Order'!J1450)","v":""},{"$f":"IF('1. Order'!K1450=\"\",\"\",'1. Order'!K1450)","v":""},{"$f":"IF('1. Order'!L1450=\"\",\"\",'1. Order'!L1450)","v":""},{"$f":"IF('1. Order'!N1450=\"\",\"\",'1. Order'!N1450)","v":""},null,null,{"$f":"IF('1. Order'!AV1450=\"\",\"\",'1. Order'!AV1450)","v":""},{"$f":"IF('1. Order'!AI1450=\"\",\"\",'1. Order'!AI1450)","v":""}]
[{"$f":"IF('1. Order'!B1451=\"\",\"\",'1. Order'!B1451)","v":""},{"$f":"IF('1. Order'!J1451=\"\",\"\",'1. Order'!J1451)","v":""},{"$f":"IF('1. Order'!K1451=\"\",\"\",'1. Order'!K1451)","v":""},{"$f":"IF('1. Order'!L1451=\"\",\"\",'1. Order'!L1451)","v":""},{"$f":"IF('1. Order'!N1451=\"\",\"\",'1. Order'!N1451)","v":""},null,null,{"$f":"IF('1. Order'!AV1451=\"\",\"\",'1. Order'!AV1451)","v":""},{"$f":"IF('1. Order'!AI1451=\"\",\"\",'1. Order'!AI1451)","v":""}]
[{"$f":"IF('1. Order'!B1452=\"\",\"\",'1. Order'!B1452)","v":""},{"$f":"IF('1. Order'!J1452=\"\",\"\",'1. Order'!J1452)","v":""},{"$f":"IF('1. Order'!K1452=\"\",\"\",'1. Order'!K1452)","v":""},{"$f":"IF('1. Order'!L1452=\"\",\"\",'1. Order'!L1452)","v":""},{"$f":"IF('1. Order'!N1452=\"\",\"\",'1. Order'!N1452)","v":""},null,null,{"$f":"IF('1. Order'!AV1452=\"\",\"\",'1. Order'!AV1452)","v":""},{"$f":"IF('1. Order'!AI1452=\"\",\"\",'1. Order'!AI1452)","v":""}]
[{"$f":"IF('1. Order'!B1453=\"\",\"\",'1. Order'!B1453)","v":""},{"$f":"IF('1. Order'!J1453=\"\",\"\",'1. Order'!J1453)","v":""},{"$f":"IF('1. Order'!K1453=\"\",\"\",'1. Order'!K1453)","v":""},{"$f":"IF('1. Order'!L1453=\"\",\"\",'1. Order'!L1453)","v":""},{"$f":"IF('1. Order'!N1453=\"\",\"\",'1. Order'!N1453)","v":""},null,null,{"$f":"IF('1. Order'!AV1453=\"\",\"\",'1. Order'!AV1453)","v":""},{"$f":"IF('1. Order'!AI1453=\"\",\"\",'1. Order'!AI1453)","v":""}]
[{"$f":"IF('1. Order'!B1454=\"\",\"\",'1. Order'!B1454)","v":""},{"$f":"IF('1. Order'!J1454=\"\",\"\",'1. Order'!J1454)","v":""},{"$f":"IF('1. Order'!K1454=\"\",\"\",'1. Order'!K1454)","v":""},{"$f":"IF('1. Order'!L1454=\"\",\"\",'1. Order'!L1454)","v":""},{"$f":"IF('1. Order'!N1454=\"\",\"\",'1. Order'!N1454)","v":""},null,null,{"$f":"IF('1. Order'!AV1454=\"\",\"\",'1. Order'!AV1454)","v":""},{"$f":"IF('1. Order'!AI1454=\"\",\"\",'1. Order'!AI1454)","v":""}]
[{"$f":"IF('1. Order'!B1455=\"\",\"\",'1. Order'!B1455)","v":""},{"$f":"IF('1. Order'!J1455=\"\",\"\",'1. Order'!J1455)","v":""},{"$f":"IF('1. Order'!K1455=\"\",\"\",'1. Order'!K1455)","v":""},{"$f":"IF('1. Order'!L1455=\"\",\"\",'1. Order'!L1455)","v":""},{"$f":"IF('1. Order'!N1455=\"\",\"\",'1. Order'!N1455)","v":""},null,null,{"$f":"IF('1. Order'!AV1455=\"\",\"\",'1. Order'!AV1455)","v":""},{"$f":"IF('1. Order'!AI1455=\"\",\"\",'1. Order'!AI1455)","v":""}]
[{"$f":"IF('1. Order'!B1456=\"\",\"\",'1. Order'!B1456)","v":""},{"$f":"IF('1. Order'!J1456=\"\",\"\",'1. Order'!J1456)","v":""},{"$f":"IF('1. Order'!K1456=\"\",\"\",'1. Order'!K1456)","v":""},{"$f":"IF('1. Order'!L1456=\"\",\"\",'1. Order'!L1456)","v":""},{"$f":"IF('1. Order'!N1456=\"\",\"\",'1. Order'!N1456)","v":""},null,null,{"$f":"IF('1. Order'!AV1456=\"\",\"\",'1. Order'!AV1456)","v":""},{"$f":"IF('1. Order'!AI1456=\"\",\"\",'1. Order'!AI1456)","v":""}]
[{"$f":"IF('1. Order'!B1457=\"\",\"\",'1. Order'!B1457)","v":""},{"$f":"IF('1. Order'!J1457=\"\",\"\",'1. Order'!J1457)","v":""},{"$f":"IF('1. Order'!K1457=\"\",\"\",'1. Order'!K1457)","v":""},{"$f":"IF('1. Order'!L1457=\"\",\"\",'1. Order'!L1457)","v":""},{"$f":"IF('1. Order'!N1457=\"\",\"\",'1. Order'!N1457)","v":""},null,null,{"$f":"IF('1. Order'!AV1457=\"\",\"\",'1. Order'!AV1457)","v":""},{"$f":"IF('1. Order'!AI1457=\"\",\"\",'1. Order'!AI1457)","v":""}]
[{"$f":"IF('1. Order'!B1458=\"\",\"\",'1. Order'!B1458)","v":""},{"$f":"IF('1. Order'!J1458=\"\",\"\",'1. Order'!J1458)","v":""},{"$f":"IF('1. Order'!K1458=\"\",\"\",'1. Order'!K1458)","v":""},{"$f":"IF('1. Order'!L1458=\"\",\"\",'1. Order'!L1458)","v":""},{"$f":"IF('1. Order'!N1458=\"\",\"\",'1. Order'!N1458)","v":""},null,null,{"$f":"IF('1. Order'!AV1458=\"\",\"\",'1. Order'!AV1458)","v":""},{"$f":"IF('1. Order'!AI1458=\"\",\"\",'1. Order'!AI1458)","v":""}]
[{"$f":"IF('1. Order'!B1459=\"\",\"\",'1. Order'!B1459)","v":""},{"$f":"IF('1. Order'!J1459=\"\",\"\",'1. Order'!J1459)","v":""},{"$f":"IF('1. Order'!K1459=\"\",\"\",'1. Order'!K1459)","v":""},{"$f":"IF('1. Order'!L1459=\"\",\"\",'1. Order'!L1459)","v":""},{"$f":"IF('1. Order'!N1459=\"\",\"\",'1. Order'!N1459)","v":""},null,null,{"$f":"IF('1. Order'!AV1459=\"\",\"\",'1. Order'!AV1459)","v":""},{"$f":"IF('1. Order'!AI1459=\"\",\"\",'1. Order'!AI1459)","v":""}]
[{"$f":"IF('1. Order'!B1460=\"\",\"\",'1. Order'!B1460)","v":""},{"$f":"IF('1. Order'!J1460=\"\",\"\",'1. Order'!J1460)","v":""},{"$f":"IF('1. Order'!K1460=\"\",\"\",'1. Order'!K1460)","v":""},{"$f":"IF('1. Order'!L1460=\"\",\"\",'1. Order'!L1460)","v":""},{"$f":"IF('1. Order'!N1460=\"\",\"\",'1. Order'!N1460)","v":""},null,null,{"$f":"IF('1. Order'!AV1460=\"\",\"\",'1. Order'!AV1460)","v":""},{"$f":"IF('1. Order'!AI1460=\"\",\"\",'1. Order'!AI1460)","v":""}]
[{"$f":"IF('1. Order'!B1461=\"\",\"\",'1. Order'!B1461)","v":""},{"$f":"IF('1. Order'!J1461=\"\",\"\",'1. Order'!J1461)","v":""},{"$f":"IF('1. Order'!K1461=\"\",\"\",'1. Order'!K1461)","v":""},{"$f":"IF('1. Order'!L1461=\"\",\"\",'1. Order'!L1461)","v":""},{"$f":"IF('1. Order'!N1461=\"\",\"\",'1. Order'!N1461)","v":""},null,null,{"$f":"IF('1. Order'!AV1461=\"\",\"\",'1. Order'!AV1461)","v":""},{"$f":"IF('1. Order'!AI1461=\"\",\"\",'1. Order'!AI1461)","v":""}]
[{"$f":"IF('1. Order'!B1462=\"\",\"\",'1. Order'!B1462)","v":""},{"$f":"IF('1. Order'!J1462=\"\",\"\",'1. Order'!J1462)","v":""},{"$f":"IF('1. Order'!K1462=\"\",\"\",'1. Order'!K1462)","v":""},{"$f":"IF('1. Order'!L1462=\"\",\"\",'1. Order'!L1462)","v":""},{"$f":"IF('1. Order'!N1462=\"\",\"\",'1. Order'!N1462)","v":""},null,null,{"$f":"IF('1. Order'!AV1462=\"\",\"\",'1. Order'!AV1462)","v":""},{"$f":"IF('1. Order'!AI1462=\"\",\"\",'1. Order'!AI1462)","v":""}]
[{"$f":"IF('1. Order'!B1463=\"\",\"\",'1. Order'!B1463)","v":""},{"$f":"IF('1. Order'!J1463=\"\",\"\",'1. Order'!J1463)","v":""},{"$f":"IF('1. Order'!K1463=\"\",\"\",'1. Order'!K1463)","v":""},{"$f":"IF('1. Order'!L1463=\"\",\"\",'1. Order'!L1463)","v":""},{"$f":"IF('1. Order'!N1463=\"\",\"\",'1. Order'!N1463)","v":""},null,null,{"$f":"IF('1. Order'!AV1463=\"\",\"\",'1. Order'!AV1463)","v":""},{"$f":"IF('1. Order'!AI1463=\"\",\"\",'1. Order'!AI1463)","v":""}]
[{"$f":"IF('1. Order'!B1464=\"\",\"\",'1. Order'!B1464)","v":""},{"$f":"IF('1. Order'!J1464=\"\",\"\",'1. Order'!J1464)","v":""},{"$f":"IF('1. Order'!K1464=\"\",\"\",'1. Order'!K1464)","v":""},{"$f":"IF('1. Order'!L1464=\"\",\"\",'1. Order'!L1464)","v":""},{"$f":"IF('1. Order'!N1464=\"\",\"\",'1. Order'!N1464)","v":""},null,null,{"$f":"IF('1. Order'!AV1464=\"\",\"\",'1. Order'!AV1464)","v":""},{"$f":"IF('1. Order'!AI1464=\"\",\"\",'1. Order'!AI1464)","v":""}]
[{"$f":"IF('1. Order'!B1465=\"\",\"\",'1. Order'!B1465)","v":""},{"$f":"IF('1. Order'!J1465=\"\",\"\",'1. Order'!J1465)","v":""},{"$f":"IF('1. Order'!K1465=\"\",\"\",'1. Order'!K1465)","v":""},{"$f":"IF('1. Order'!L1465=\"\",\"\",'1. Order'!L1465)","v":""},{"$f":"IF('1. Order'!N1465=\"\",\"\",'1. Order'!N1465)","v":""},null,null,{"$f":"IF('1. Order'!AV1465=\"\",\"\",'1. Order'!AV1465)","v":""},{"$f":"IF('1. Order'!AI1465=\"\",\"\",'1. Order'!AI1465)","v":""}]
[{"$f":"IF('1. Order'!B1466=\"\",\"\",'1. Order'!B1466)","v":""},{"$f":"IF('1. Order'!J1466=\"\",\"\",'1. Order'!J1466)","v":""},{"$f":"IF('1. Order'!K1466=\"\",\"\",'1. Order'!K1466)","v":""},{"$f":"IF('1. Order'!L1466=\"\",\"\",'1. Order'!L1466)","v":""},{"$f":"IF('1. Order'!N1466=\"\",\"\",'1. Order'!N1466)","v":""},null,null,{"$f":"IF('1. Order'!AV1466=\"\",\"\",'1. Order'!AV1466)","v":""},{"$f":"IF('1. Order'!AI1466=\"\",\"\",'1. Order'!AI1466)","v":""}]
[{"$f":"IF('1. Order'!B1467=\"\",\"\",'1. Order'!B1467)","v":""},{"$f":"IF('1. Order'!J1467=\"\",\"\",'1. Order'!J1467)","v":""},{"$f":"IF('1. Order'!K1467=\"\",\"\",'1. Order'!K1467)","v":""},{"$f":"IF('1. Order'!L1467=\"\",\"\",'1. Order'!L1467)","v":""},{"$f":"IF('1. Order'!N1467=\"\",\"\",'1. Order'!N1467)","v":""},null,null,{"$f":"IF('1. Order'!AV1467=\"\",\"\",'1. Order'!AV1467)","v":""},{"$f":"IF('1. Order'!AI1467=\"\",\"\",'1. Order'!AI1467)","v":""}]
[{"$f":"IF('1. Order'!B1468=\"\",\"\",'1. Order'!B1468)","v":""},{"$f":"IF('1. Order'!J1468=\"\",\"\",'1. Order'!J1468)","v":""},{"$f":"IF('1. Order'!K1468=\"\",\"\",'1. Order'!K1468)","v":""},{"$f":"IF('1. Order'!L1468=\"\",\"\",'1. Order'!L1468)","v":""},{"$f":"IF('1. Order'!N1468=\"\",\"\",'1. Order'!N1468)","v":""},null,null,{"$f":"IF('1. Order'!AV1468=\"\",\"\",'1. Order'!AV1468)","v":""},{"$f":"IF('1. Order'!AI1468=\"\",\"\",'1. Order'!AI1468)","v":""}]
[{"$f":"IF('1. Order'!B1469=\"\",\"\",'1. Order'!B1469)","v":""},{"$f":"IF('1. Order'!J1469=\"\",\"\",'1. Order'!J1469)","v":""},{"$f":"IF('1. Order'!K1469=\"\",\"\",'1. Order'!K1469)","v":""},{"$f":"IF('1. Order'!L1469=\"\",\"\",'1. Order'!L1469)","v":""},{"$f":"IF('1. Order'!N1469=\"\",\"\",'1. Order'!N1469)","v":""},null,null,{"$f":"IF('1. Order'!AV1469=\"\",\"\",'1. Order'!AV1469)","v":""},{"$f":"IF('1. Order'!AI1469=\"\",\"\",'1. Order'!AI1469)","v":""}]
[{"$f":"IF('1. Order'!B1470=\"\",\"\",'1. Order'!B1470)","v":""},{"$f":"IF('1. Order'!J1470=\"\",\"\",'1. Order'!J1470)","v":""},{"$f":"IF('1. Order'!K1470=\"\",\"\",'1. Order'!K1470)","v":""},{"$f":"IF('1. Order'!L1470=\"\",\"\",'1. Order'!L1470)","v":""},{"$f":"IF('1. Order'!N1470=\"\",\"\",'1. Order'!N1470)","v":""},null,null,{"$f":"IF('1. Order'!AV1470=\"\",\"\",'1. Order'!AV1470)","v":""},{"$f":"IF('1. Order'!AI1470=\"\",\"\",'1. Order'!AI1470)","v":""}]
[{"$f":"IF('1. Order'!B1471=\"\",\"\",'1. Order'!B1471)","v":""},{"$f":"IF('1. Order'!J1471=\"\",\"\",'1. Order'!J1471)","v":""},{"$f":"IF('1. Order'!K1471=\"\",\"\",'1. Order'!K1471)","v":""},{"$f":"IF('1. Order'!L1471=\"\",\"\",'1. Order'!L1471)","v":""},{"$f":"IF('1. Order'!N1471=\"\",\"\",'1. Order'!N1471)","v":""},null,null,{"$f":"IF('1. Order'!AV1471=\"\",\"\",'1. Order'!AV1471)","v":""},{"$f":"IF('1. Order'!AI1471=\"\",\"\",'1. Order'!AI1471)","v":""}]
[{"$f":"IF('1. Order'!B1472=\"\",\"\",'1. Order'!B1472)","v":""},{"$f":"IF('1. Order'!J1472=\"\",\"\",'1. Order'!J1472)","v":""},{"$f":"IF('1. Order'!K1472=\"\",\"\",'1. Order'!K1472)","v":""},{"$f":"IF('1. Order'!L1472=\"\",\"\",'1. Order'!L1472)","v":""},{"$f":"IF('1. Order'!N1472=\"\",\"\",'1. Order'!N1472)","v":""},null,null,{"$f":"IF('1. Order'!AV1472=\"\",\"\",'1. Order'!AV1472)","v":""},{"$f":"IF('1. Order'!AI1472=\"\",\"\",'1. Order'!AI1472)","v":""}]
[{"$f":"IF('1. Order'!B1473=\"\",\"\",'1. Order'!B1473)","v":""},{"$f":"IF('1. Order'!J1473=\"\",\"\",'1. Order'!J1473)","v":""},{"$f":"IF('1. Order'!K1473=\"\",\"\",'1. Order'!K1473)","v":""},{"$f":"IF('1. Order'!L1473=\"\",\"\",'1. Order'!L1473)","v":""},{"$f":"IF('1. Order'!N1473=\"\",\"\",'1. Order'!N1473)","v":""},null,null,{"$f":"IF('1. Order'!AV1473=\"\",\"\",'1. Order'!AV1473)","v":""},{"$f":"IF('1. Order'!AI1473=\"\",\"\",'1. Order'!AI1473)","v":""}]
[{"$f":"IF('1. Order'!B1474=\"\",\"\",'1. Order'!B1474)","v":""},{"$f":"IF('1. Order'!J1474=\"\",\"\",'1. Order'!J1474)","v":""},{"$f":"IF('1. Order'!K1474=\"\",\"\",'1. Order'!K1474)","v":""},{"$f":"IF('1. Order'!L1474=\"\",\"\",'1. Order'!L1474)","v":""},{"$f":"IF('1. Order'!N1474=\"\",\"\",'1. Order'!N1474)","v":""},null,null,{"$f":"IF('1. Order'!AV1474=\"\",\"\",'1. Order'!AV1474)","v":""},{"$f":"IF('1. Order'!AI1474=\"\",\"\",'1. Order'!AI1474)","v":""}]
[{"$f":"IF('1. Order'!B1475=\"\",\"\",'1. Order'!B1475)","v":""},{"$f":"IF('1. Order'!J1475=\"\",\"\",'1. Order'!J1475)","v":""},{"$f":"IF('1. Order'!K1475=\"\",\"\",'1. Order'!K1475)","v":""},{"$f":"IF('1. Order'!L1475=\"\",\"\",'1. Order'!L1475)","v":""},{"$f":"IF('1. Order'!N1475=\"\",\"\",'1. Order'!N1475)","v":""},null,null,{"$f":"IF('1. Order'!AV1475=\"\",\"\",'1. Order'!AV1475)","v":""},{"$f":"IF('1. Order'!AI1475=\"\",\"\",'1. Order'!AI1475)","v":""}]
[{"$f":"IF('1. Order'!B1476=\"\",\"\",'1. Order'!B1476)","v":""},{"$f":"IF('1. Order'!J1476=\"\",\"\",'1. Order'!J1476)","v":""},{"$f":"IF('1. Order'!K1476=\"\",\"\",'1. Order'!K1476)","v":""},{"$f":"IF('1. Order'!L1476=\"\",\"\",'1. Order'!L1476)","v":""},{"$f":"IF('1. Order'!N1476=\"\",\"\",'1. Order'!N1476)","v":""},null,null,{"$f":"IF('1. Order'!AV1476=\"\",\"\",'1. Order'!AV1476)","v":""},{"$f":"IF('1. Order'!AI1476=\"\",\"\",'1. Order'!AI1476)","v":""}]
[{"$f":"IF('1. Order'!B1477=\"\",\"\",'1. Order'!B1477)","v":""},{"$f":"IF('1. Order'!J1477=\"\",\"\",'1. Order'!J1477)","v":""},{"$f":"IF('1. Order'!K1477=\"\",\"\",'1. Order'!K1477)","v":""},{"$f":"IF('1. Order'!L1477=\"\",\"\",'1. Order'!L1477)","v":""},{"$f":"IF('1. Order'!N1477=\"\",\"\",'1. Order'!N1477)","v":""},null,null,{"$f":"IF('1. Order'!AV1477=\"\",\"\",'1. Order'!AV1477)","v":""},{"$f":"IF('1. Order'!AI1477=\"\",\"\",'1. Order'!AI1477)","v":""}]
[{"$f":"IF('1. Order'!B1478=\"\",\"\",'1. Order'!B1478)","v":""},{"$f":"IF('1. Order'!J1478=\"\",\"\",'1. Order'!J1478)","v":""},{"$f":"IF('1. Order'!K1478=\"\",\"\",'1. Order'!K1478)","v":""},{"$f":"IF('1. Order'!L1478=\"\",\"\",'1. Order'!L1478)","v":""},{"$f":"IF('1. Order'!N1478=\"\",\"\",'1. Order'!N1478)","v":""},null,null,{"$f":"IF('1. Order'!AV1478=\"\",\"\",'1. Order'!AV1478)","v":""},{"$f":"IF('1. Order'!AI1478=\"\",\"\",'1. Order'!AI1478)","v":""}]
[{"$f":"IF('1. Order'!B1479=\"\",\"\",'1. Order'!B1479)","v":""},{"$f":"IF('1. Order'!J1479=\"\",\"\",'1. Order'!J1479)","v":""},{"$f":"IF('1. Order'!K1479=\"\",\"\",'1. Order'!K1479)","v":""},{"$f":"IF('1. Order'!L1479=\"\",\"\",'1. Order'!L1479)","v":""},{"$f":"IF('1. Order'!N1479=\"\",\"\",'1. Order'!N1479)","v":""},null,null,{"$f":"IF('1. Order'!AV1479=\"\",\"\",'1. Order'!AV1479)","v":""},{"$f":"IF('1. Order'!AI1479=\"\",\"\",'1. Order'!AI1479)","v":""}]
[{"$f":"IF('1. Order'!B1480=\"\",\"\",'1. Order'!B1480)","v":""},{"$f":"IF('1. Order'!J1480=\"\",\"\",'1. Order'!J1480)","v":""},{"$f":"IF('1. Order'!K1480=\"\",\"\",'1. Order'!K1480)","v":""},{"$f":"IF('1. Order'!L1480=\"\",\"\",'1. Order'!L1480)","v":""},{"$f":"IF('1. Order'!N1480=\"\",\"\",'1. Order'!N1480)","v":""},null,null,{"$f":"IF('1. Order'!AV1480=\"\",\"\",'1. Order'!AV1480)","v":""},{"$f":"IF('1. Order'!AI1480=\"\",\"\",'1. Order'!AI1480)","v":""}]
[{"$f":"IF('1. Order'!B1481=\"\",\"\",'1. Order'!B1481)","v":""},{"$f":"IF('1. Order'!J1481=\"\",\"\",'1. Order'!J1481)","v":""},{"$f":"IF('1. Order'!K1481=\"\",\"\",'1. Order'!K1481)","v":""},{"$f":"IF('1. Order'!L1481=\"\",\"\",'1. Order'!L1481)","v":""},{"$f":"IF('1. Order'!N1481=\"\",\"\",'1. Order'!N1481)","v":""},null,null,{"$f":"IF('1. Order'!AV1481=\"\",\"\",'1. Order'!AV1481)","v":""},{"$f":"IF('1. Order'!AI1481=\"\",\"\",'1. Order'!AI1481)","v":""}]
[{"$f":"IF('1. Order'!B1482=\"\",\"\",'1. Order'!B1482)","v":""},{"$f":"IF('1. Order'!J1482=\"\",\"\",'1. Order'!J1482)","v":""},{"$f":"IF('1. Order'!K1482=\"\",\"\",'1. Order'!K1482)","v":""},{"$f":"IF('1. Order'!L1482=\"\",\"\",'1. Order'!L1482)","v":""},{"$f":"IF('1. Order'!N1482=\"\",\"\",'1. Order'!N1482)","v":""},null,null,{"$f":"IF('1. Order'!AV1482=\"\",\"\",'1. Order'!AV1482)","v":""},{"$f":"IF('1. Order'!AI1482=\"\",\"\",'1. Order'!AI1482)","v":""}]
[{"$f":"IF('1. Order'!B1483=\"\",\"\",'1. Order'!B1483)","v":""},{"$f":"IF('1. Order'!J1483=\"\",\"\",'1. Order'!J1483)","v":""},{"$f":"IF('1. Order'!K1483=\"\",\"\",'1. Order'!K1483)","v":""},{"$f":"IF('1. Order'!L1483=\"\",\"\",'1. Order'!L1483)","v":""},{"$f":"IF('1. Order'!N1483=\"\",\"\",'1. Order'!N1483)","v":""},null,null,{"$f":"IF('1. Order'!AV1483=\"\",\"\",'1. Order'!AV1483)","v":""},{"$f":"IF('1. Order'!AI1483=\"\",\"\",'1. Order'!AI1483)","v":""}]
[{"$f":"IF('1. Order'!B1484=\"\",\"\",'1. Order'!B1484)","v":""},{"$f":"IF('1. Order'!J1484=\"\",\"\",'1. Order'!J1484)","v":""},{"$f":"IF('1. Order'!K1484=\"\",\"\",'1. Order'!K1484)","v":""},{"$f":"IF('1. Order'!L1484=\"\",\"\",'1. Order'!L1484)","v":""},{"$f":"IF('1. Order'!N1484=\"\",\"\",'1. Order'!N1484)","v":""},null,null,{"$f":"IF('1. Order'!AV1484=\"\",\"\",'1. Order'!AV1484)","v":""},{"$f":"IF('1. Order'!AI1484=\"\",\"\",'1. Order'!AI1484)","v":""}]
[{"$f":"IF('1. Order'!B1485=\"\",\"\",'1. Order'!B1485)","v":""},{"$f":"IF('1. Order'!J1485=\"\",\"\",'1. Order'!J1485)","v":""},{"$f":"IF('1. Order'!K1485=\"\",\"\",'1. Order'!K1485)","v":""},{"$f":"IF('1. Order'!L1485=\"\",\"\",'1. Order'!L1485)","v":""},{"$f":"IF('1. Order'!N1485=\"\",\"\",'1. Order'!N1485)","v":""},null,null,{"$f":"IF('1. Order'!AV1485=\"\",\"\",'1. Order'!AV1485)","v":""},{"$f":"IF('1. Order'!AI1485=\"\",\"\",'1. Order'!AI1485)","v":""}]
[{"$f":"IF('1. Order'!B1486=\"\",\"\",'1. Order'!B1486)","v":""},{"$f":"IF('1. Order'!J1486=\"\",\"\",'1. Order'!J1486)","v":""},{"$f":"IF('1. Order'!K1486=\"\",\"\",'1. Order'!K1486)","v":""},{"$f":"IF('1. Order'!L1486=\"\",\"\",'1. Order'!L1486)","v":""},{"$f":"IF('1. Order'!N1486=\"\",\"\",'1. Order'!N1486)","v":""},null,null,{"$f":"IF('1. Order'!AV1486=\"\",\"\",'1. Order'!AV1486)","v":""},{"$f":"IF('1. Order'!AI1486=\"\",\"\",'1. Order'!AI1486)","v":""}]
[{"$f":"IF('1. Order'!B1487=\"\",\"\",'1. Order'!B1487)","v":""},{"$f":"IF('1. Order'!J1487=\"\",\"\",'1. Order'!J1487)","v":""},{"$f":"IF('1. Order'!K1487=\"\",\"\",'1. Order'!K1487)","v":""},{"$f":"IF('1. Order'!L1487=\"\",\"\",'1. Order'!L1487)","v":""},{"$f":"IF('1. Order'!N1487=\"\",\"\",'1. Order'!N1487)","v":""},null,null,{"$f":"IF('1. Order'!AV1487=\"\",\"\",'1. Order'!AV1487)","v":""},{"$f":"IF('1. Order'!AI1487=\"\",\"\",'1. Order'!AI1487)","v":""}]
[{"$f":"IF('1. Order'!B1488=\"\",\"\",'1. Order'!B1488)","v":""},{"$f":"IF('1. Order'!J1488=\"\",\"\",'1. Order'!J1488)","v":""},{"$f":"IF('1. Order'!K1488=\"\",\"\",'1. Order'!K1488)","v":""},{"$f":"IF('1. Order'!L1488=\"\",\"\",'1. Order'!L1488)","v":""},{"$f":"IF('1. Order'!N1488=\"\",\"\",'1. Order'!N1488)","v":""},null,null,{"$f":"IF('1. Order'!AV1488=\"\",\"\",'1. Order'!AV1488)","v":""},{"$f":"IF('1. Order'!AI1488=\"\",\"\",'1. Order'!AI1488)","v":""}]
[{"$f":"IF('1. Order'!B1489=\"\",\"\",'1. Order'!B1489)","v":""},{"$f":"IF('1. Order'!J1489=\"\",\"\",'1. Order'!J1489)","v":""},{"$f":"IF('1. Order'!K1489=\"\",\"\",'1. Order'!K1489)","v":""},{"$f":"IF('1. Order'!L1489=\"\",\"\",'1. Order'!L1489)","v":""},{"$f":"IF('1. Order'!N1489=\"\",\"\",'1. Order'!N1489)","v":""},null,null,{"$f":"IF('1. Order'!AV1489=\"\",\"\",'1. Order'!AV1489)","v":""},{"$f":"IF('1. Order'!AI1489=\"\",\"\",'1. Order'!AI1489)","v":""}]
[{"$f":"IF('1. Order'!B1490=\"\",\"\",'1. Order'!B1490)","v":""},{"$f":"IF('1. Order'!J1490=\"\",\"\",'1. Order'!J1490)","v":""},{"$f":"IF('1. Order'!K1490=\"\",\"\",'1. Order'!K1490)","v":""},{"$f":"IF('1. Order'!L1490=\"\",\"\",'1. Order'!L1490)","v":""},{"$f":"IF('1. Order'!N1490=\"\",\"\",'1. Order'!N1490)","v":""},null,null,{"$f":"IF('1. Order'!AV1490=\"\",\"\",'1. Order'!AV1490)","v":""},{"$f":"IF('1. Order'!AI1490=\"\",\"\",'1. Order'!AI1490)","v":""}]
[{"$f":"IF('1. Order'!B1491=\"\",\"\",'1. Order'!B1491)","v":""},{"$f":"IF('1. Order'!J1491=\"\",\"\",'1. Order'!J1491)","v":""},{"$f":"IF('1. Order'!K1491=\"\",\"\",'1. Order'!K1491)","v":""},{"$f":"IF('1. Order'!L1491=\"\",\"\",'1. Order'!L1491)","v":""},{"$f":"IF('1. Order'!N1491=\"\",\"\",'1. Order'!N1491)","v":""},null,null,{"$f":"IF('1. Order'!AV1491=\"\",\"\",'1. Order'!AV1491)","v":""},{"$f":"IF('1. Order'!AI1491=\"\",\"\",'1. Order'!AI1491)","v":""}]
[{"$f":"IF('1. Order'!B1492=\"\",\"\",'1. Order'!B1492)","v":""},{"$f":"IF('1. Order'!J1492=\"\",\"\",'1. Order'!J1492)","v":""},{"$f":"IF('1. Order'!K1492=\"\",\"\",'1. Order'!K1492)","v":""},{"$f":"IF('1. Order'!L1492=\"\",\"\",'1. Order'!L1492)","v":""},{"$f":"IF('1. Order'!N1492=\"\",\"\",'1. Order'!N1492)","v":""},null,null,{"$f":"IF('1. Order'!AV1492=\"\",\"\",'1. Order'!AV1492)","v":""},{"$f":"IF('1. Order'!AI1492=\"\",\"\",'1. Order'!AI1492)","v":""}]
[{"$f":"IF('1. Order'!B1493=\"\",\"\",'1. Order'!B1493)","v":""},{"$f":"IF('1. Order'!J1493=\"\",\"\",'1. Order'!J1493)","v":""},{"$f":"IF('1. Order'!K1493=\"\",\"\",'1. Order'!K1493)","v":""},{"$f":"IF('1. Order'!L1493=\"\",\"\",'1. Order'!L1493)","v":""},{"$f":"IF('1. Order'!N1493=\"\",\"\",'1. Order'!N1493)","v":""},null,null,{"$f":"IF('1. Order'!AV1493=\"\",\"\",'1. Order'!AV1493)","v":""},{"$f":"IF('1. Order'!AI1493=\"\",\"\",'1. Order'!AI1493)","v":""}]
[{"$f":"IF('1. Order'!B1494=\"\",\"\",'1. Order'!B1494)","v":""},{"$f":"IF('1. Order'!J1494=\"\",\"\",'1. Order'!J1494)","v":""},{"$f":"IF('1. Order'!K1494=\"\",\"\",'1. Order'!K1494)","v":""},{"$f":"IF('1. Order'!L1494=\"\",\"\",'1. Order'!L1494)","v":""},{"$f":"IF('1. Order'!N1494=\"\",\"\",'1. Order'!N1494)","v":""},null,null,{"$f":"IF('1. Order'!AV1494=\"\",\"\",'1. Order'!AV1494)","v":""},{"$f":"IF('1. Order'!AI1494=\"\",\"\",'1. Order'!AI1494)","v":""}]
[{"$f":"IF('1. Order'!B1495=\"\",\"\",'1. Order'!B1495)","v":""},{"$f":"IF('1. Order'!J1495=\"\",\"\",'1. Order'!J1495)","v":""},{"$f":"IF('1. Order'!K1495=\"\",\"\",'1. Order'!K1495)","v":""},{"$f":"IF('1. Order'!L1495=\"\",\"\",'1. Order'!L1495)","v":""},{"$f":"IF('1. Order'!N1495=\"\",\"\",'1. Order'!N1495)","v":""},null,null,{"$f":"IF('1. Order'!AV1495=\"\",\"\",'1. Order'!AV1495)","v":""},{"$f":"IF('1. Order'!AI1495=\"\",\"\",'1. Order'!AI1495)","v":""}]
[{"$f":"IF('1. Order'!B1496=\"\",\"\",'1. Order'!B1496)","v":""},{"$f":"IF('1. Order'!J1496=\"\",\"\",'1. Order'!J1496)","v":""},{"$f":"IF('1. Order'!K1496=\"\",\"\",'1. Order'!K1496)","v":""},{"$f":"IF('1. Order'!L1496=\"\",\"\",'1. Order'!L1496)","v":""},{"$f":"IF('1. Order'!N1496=\"\",\"\",'1. Order'!N1496)","v":""},null,null,{"$f":"IF('1. Order'!AV1496=\"\",\"\",'1. Order'!AV1496)","v":""},{"$f":"IF('1. Order'!AI1496=\"\",\"\",'1. Order'!AI1496)","v":""}]
[{"$f":"IF('1. Order'!B1497=\"\",\"\",'1. Order'!B1497)","v":""},{"$f":"IF('1. Order'!J1497=\"\",\"\",'1. Order'!J1497)","v":""},{"$f":"IF('1. Order'!K1497=\"\",\"\",'1. Order'!K1497)","v":""},{"$f":"IF('1. Order'!L1497=\"\",\"\",'1. Order'!L1497)","v":""},{"$f":"IF('1. Order'!N1497=\"\",\"\",'1. Order'!N1497)","v":""},null,null,{"$f":"IF('1. Order'!AV1497=\"\",\"\",'1. Order'!AV1497)","v":""},{"$f":"IF('1. Order'!AI1497=\"\",\"\",'1. Order'!AI1497)","v":""}]
[{"$f":"IF('1. Order'!B1498=\"\",\"\",'1. Order'!B1498)","v":""},{"$f":"IF('1. Order'!J1498=\"\",\"\",'1. Order'!J1498)","v":""},{"$f":"IF('1. Order'!K1498=\"\",\"\",'1. Order'!K1498)","v":""},{"$f":"IF('1. Order'!L1498=\"\",\"\",'1. Order'!L1498)","v":""},{"$f":"IF('1. Order'!N1498=\"\",\"\",'1. Order'!N1498)","v":""},null,null,{"$f":"IF('1. Order'!AV1498=\"\",\"\",'1. Order'!AV1498)","v":""},{"$f":"IF('1. Order'!AI1498=\"\",\"\",'1. Order'!AI1498)","v":""}]
[{"$f":"IF('1. Order'!B1499=\"\",\"\",'1. Order'!B1499)","v":""},{"$f":"IF('1. Order'!J1499=\"\",\"\",'1. Order'!J1499)","v":""},{"$f":"IF('1. Order'!K1499=\"\",\"\",'1. Order'!K1499)","v":""},{"$f":"IF('1. Order'!L1499=\"\",\"\",'1. Order'!L1499)","v":""},{"$f":"IF('1. Order'!N1499=\"\",\"\",'1. Order'!N1499)","v":""},null,null,{"$f":"IF('1. Order'!AV1499=\"\",\"\",'1. Order'!AV1499)","v":""},{"$f":"IF('1. Order'!AI1499=\"\",\"\",'1. Order'!AI1499)","v":""}]
[{"$f":"IF('1. Order'!B1500=\"\",\"\",'1. Order'!B1500)","v":""},{"$f":"IF('1. Order'!J1500=\"\",\"\",'1. Order'!J1500)","v":""},{"$f":"IF('1. Order'!K1500=\"\",\"\",'1. Order'!K1500)","v":""},{"$f":"IF('1. Order'!L1500=\"\",\"\",'1. Order'!L1500)","v":""},{"$f":"IF('1. Order'!N1500=\"\",\"\",'1. Order'!N1500)","v":""},null,null,{"$f":"IF('1. Order'!AV1500=\"\",\"\",'1. Order'!AV1500)","v":""},{"$f":"IF('1. Order'!AI1500=\"\",\"\",'1. Order'!AI1500)","v":""}]
[{"$f":"IF('1. Order'!B1501=\"\",\"\",'1. Order'!B1501)","v":""},{"$f":"IF('1. Order'!J1501=\"\",\"\",'1. Order'!J1501)","v":""},{"$f":"IF('1. Order'!K1501=\"\",\"\",'1. Order'!K1501)","v":""},{"$f":"IF('1. Order'!L1501=\"\",\"\",'1. Order'!L1501)","v":""},{"$f":"IF('1. Order'!N1501=\"\",\"\",'1. Order'!N1501)","v":""},null,null,{"$f":"IF('1. Order'!AV1501=\"\",\"\",'1. Order'!AV1501)","v":""},{"$f":"IF('1. Order'!AI1501=\"\",\"\",'1. Order'!AI1501)","v":""}]
[{"$f":"IF('1. Order'!B1502=\"\",\"\",'1. Order'!B1502)","v":""},{"$f":"IF('1. Order'!J1502=\"\",\"\",'1. Order'!J1502)","v":""},{"$f":"IF('1. Order'!K1502=\"\",\"\",'1. Order'!K1502)","v":""},{"$f":"IF('1. Order'!L1502=\"\",\"\",'1. Order'!L1502)","v":""},{"$f":"IF('1. Order'!N1502=\"\",\"\",'1. Order'!N1502)","v":""},null,null,{"$f":"IF('1. Order'!AV1502=\"\",\"\",'1. Order'!AV1502)","v":""},{"$f":"IF('1. Order'!AI1502=\"\",\"\",'1. Order'!AI1502)","v":""}]
[{"$f":"IF('1. Order'!B1503=\"\",\"\",'1. Order'!B1503)","v":""},{"$f":"IF('1. Order'!J1503=\"\",\"\",'1. Order'!J1503)","v":""},{"$f":"IF('1. Order'!K1503=\"\",\"\",'1. Order'!K1503)","v":""},{"$f":"IF('1. Order'!L1503=\"\",\"\",'1. Order'!L1503)","v":""},{"$f":"IF('1. Order'!N1503=\"\",\"\",'1. Order'!N1503)","v":""},null,null,{"$f":"IF('1. Order'!AV1503=\"\",\"\",'1. Order'!AV1503)","v":""},{"$f":"IF('1. Order'!AI1503=\"\",\"\",'1. Order'!AI1503)","v":""}]

{"sheet":"2.1. Content (ENG)","index":3,"n_rows":1500,"n_cols":64,"rows_kept":1500,"cut":false,"hidden":false,"merged":[[0,47,0,63],[0,0,0,4],[0,5,0,20],[0,21,0,28],[0,29,0,34],[0,35,0,46]]}
["PRODUCTINFORMATIE",null,null,null,null,"GENERAL CONTENT",null,null,null,null,null,null,null,null,null,null,null,null,null,null,null,"CONTENT TROUSERS/SKIRTS/SHORTS",null,null,null,null,null,null,null,"CONTENT TOPS/DRESSES",null,null,null,null,null,"JACKETS",null,null,null,null,null,null,null,null,null,null,null,"SHOES"]
["Wehkamp article number","Style number","Stylename","Colournumber + name","EAN13","Filter colour","Colour","Filtermaterial","Material","Material technology","Print","Closure","Washing instructions","Drying instructions","Ironing instructions","Snowcatcher","Multi: Type of pockets","Multi: Details","Muti: Sport or usage","Multi: Assortment","Sportmoment","Fit","Waist ","Length sports trousers","Type of sports trousers","Multi: Details trouser legs","Multi: Type of trousers","Multi: Type of skirt","Multi: Type of shorts","Neckline","Sleeve length","Details back","Multi: Type of dress","Multi: Type of sweater","Multi: Type of cardigan","Multi: Season","Multi: Type of jacket","Multi: Details sleeves","PFC-free","Recco-system","Ventilation zips","Lining","Water repellent","Waterproof","Breathability","Water column","Windproof","Insole shoes","Outsole shoes","Heel heigth (cm)","Type of heel","Cushioning of the shoes","Removeable footbed","Multi: Footbed features","Multi: Sole features","Outer material","Lining material","Winter gripsystem","Sock instep","Type of shoes","Category outdoor shoes","Terrain (Outdoor shoes)","Terrain (Football shoes)","Type of running shoes"]
[{"$f":"IF('1. Order'!B6=\"\",\"\",'1. Order'!B6)","v":""},{"$f":"IF('1. Order'!J6=\"\",\"\",'1. Order'!J6)","v":""},{"$f":"IF('1. Order'!K6=\"\",\"\",'1. Order'!K6)","v":""},{"$f":"IF('1. Order'!L6=\"\",\"\",'1. Order'!L6)","v":""},{"$f":"IF('1. Order'!N6=\"\",\"\",'1. Order'!N6)","v":""},null,null,null,{"$f":"IF('1. Order'!AI6=\"\",\"\",'1. Order'!AI6)","v":""}]
[{"$f":"IF('1. Order'!B7=\"\",\"\",'1. Order'!B7)","v":""},{"$f":"IF('1. Order'!J7=\"\",\"\",'1. Order'!J7)","v":""},{"$f":"IF('1. Order'!K7=\"\",\"\",'1. Order'!K7)","v":""},{"$f":"IF('1. Order'!L7=\"\",\"\",'1. Order'!L7)","v":""},{"$f":"IF('1. Order'!N7=\"\",\"\",'1. Order'!N7)","v":""},null,null,{"$f":"'1. Order'!AV7","v":0},{"$f":"IF('1. Order'!AI7=\"\",\"\",'1. Order'!AI7)","v":""}]
[{"$f":"IF('1. Order'!B8=\"\",\"\",'1. Order'!B8)","v":""},{"$f":"IF('1. Order'!J8=\"\",\"\",'1. Order'!J8)","v":""},{"$f":"IF('1. Order'!K8=\"\",\"\",'1. Order'!K8)","v":""},{"$f":"IF('1. Order'!L8=\"\",\"\",'1. Order'!L8)","v":""},{"$f":"IF('1. Order'!N8=\"\",\"\",'1. Order'!N8)","v":""},null,null,{"$f":"'1. Order'!AV8","v":0},{"$f":"IF('1. Order'!AI8=\"\",\"\",'1. Order'!AI8)","v":""}]
[{"$f":"IF('1. Order'!B9=\"\",\"\",'1. Order'!B9)","v":""},{"$f":"IF('1. Order'!J9=\"\",\"\",'1. Order'!J9)","v":""},{"$f":"IF('1. Order'!K9=\"\",\"\",'1. Order'!K9)","v":""},{"$f":"IF('1. Order'!L9=\"\",\"\",'1. Order'!L9)","v":""},{"$f":"IF('1. Order'!N9=\"\",\"\",'1. Order'!N9)","v":""},null,null,{"$f":"'1. Order'!AV9","v":0},{"$f":"IF('1. Order'!AI9=\"\",\"\",'1. Order'!AI9)","v":""}]
[{"$f":"IF('1. Order'!B10=\"\",\"\",'1. Order'!B10)","v":""},{"$f":"IF('1. Order'!J10=\"\",\"\",'1. Order'!J10)","v":""},{"$f":"IF('1. Order'!K10=\"\",\"\",'1. Order'!K10)","v":""},{"$f":"IF('1. Order'!L10=\"\",\"\",'1. Order'!L10)","v":""},{"$f":"IF('1. Order'!N10=\"\",\"\",'1. Order'!N10)","v":""},null,null,{"$f":"'1. Order'!AV10","v":0},{"$f":"IF('1. Order'!AI10=\"\",\"\",'1. Order'!AI10)","v":""}]
[{"$f":"IF('1. Order'!B11=\"\",\"\",'1. Order'!B11)","v":""},{"$f":"IF('1. Order'!J11=\"\",\"\",'1. Order'!J11)","v":""},{"$f":"IF('1. Order'!K11=\"\",\"\",'1. Order'!K11)","v":""},{"$f":"IF('1. Order'!L11=\"\",\"\",'1. Order'!L11)","v":""},{"$f":"IF('1. Order'!N11=\"\",\"\",'1. Order'!N11)","v":""},null,null,{"$f":"'1. Order'!AV11","v":0},{"$f":"IF('1. Order'!AI11=\"\",\"\",'1. Order'!AI11)","v":""}]
[{"$f":"IF('1. Order'!B12=\"\",\"\",'1. Order'!B12)","v":""},{"$f":"IF('1. Order'!J12=\"\",\"\",'1. Order'!J12)","v":""},{"$f":"IF('1. Order'!K12=\"\",\"\",'1. Order'!K12)","v":""},{"$f":"IF('1. Order'!L12=\"\",\"\",'1. Order'!L12)","v":""},{"$f":"IF('1. Order'!N12=\"\",\"\",'1. Order'!N12)","v":""},null,null,{"$f":"'1. Order'!AV12","v":0},{"$f":"IF('1. Order'!AI12=\"\",\"\",'1. Order'!AI12)","v":""}]
[{"$f":"IF('1. Order'!B13=\"\",\"\",'1. Order'!B13)","v":""},{"$f":"IF('1. Order'!J13=\"\",\"\",'1. Order'!J13)","v":""},{"$f":"IF('1. Order'!K13=\"\",\"\",'1. Order'!K13)","v":""},{"$f":"IF('1. Order'!L13=\"\",\"\",'1. Order'!L13)","v":""},{"$f":"IF('1. Order'!N13=\"\",\"\",'1. Order'!N13)","v":""},null,null,{"$f":"'1. Order'!AV13","v":0},{"$f":"IF('1. Order'!AI13=\"\",\"\",'1. Order'!AI13)","v":""}]
[{"$f":"IF('1. Order'!B14=\"\",\"\",'1. Order'!B14)","v":""},{"$f":"IF('1. Order'!J14=\"\",\"\",'1. Order'!J14)","v":""},{"$f":"IF('1. Order'!K14=\"\",\"\",'1. Order'!K14)","v":""},{"$f":"IF('1. Order'!L14=\"\",\"\",'1. Order'!L14)","v":""},{"$f":"IF('1. Order'!N14=\"\",\"\",'1. Order'!N14)","v":""},null,null,{"$f":"'1. Order'!AV14","v":0},{"$f":"IF('1. Order'!AI14=\"\",\"\",'1. Order'!AI14)","v":""}]
[{"$f":"IF('1. Order'!B15=\"\",\"\",'1. Order'!B15)","v":""},{"$f":"IF('1. Order'!J15=\"\",\"\",'1. Order'!J15)","v":""},{"$f":"IF('1. Order'!K15=\"\",\"\",'1. Order'!K15)","v":""},{"$f":"IF('1. Order'!L15=\"\",\"\",'1. Order'!L15)","v":""},{"$f":"IF('1. Order'!N15=\"\",\"\",'1. Order'!N15)","v":""},null,null,{"$f":"'1. Order'!AV15","v":0},{"$f":"IF('1. Order'!AI15=\"\",\"\",'1. Order'!AI15)","v":""}]
[{"$f":"IF('1. Order'!B16=\"\",\"\",'1. Order'!B16)","v":""},{"$f":"IF('1. Order'!J16=\"\",\"\",'1. Order'!J16)","v":""},{"$f":"IF('1. Order'!K16=\"\",\"\",'1. Order'!K16)","v":""},{"$f":"IF('1. Order'!L16=\"\",\"\",'1. Order'!L16)","v":""},{"$f":"IF('1. Order'!N16=\"\",\"\",'1. Order'!N16)","v":""},null,null,{"$f":"'1. Order'!AV16","v":0},{"$f":"IF('1. Order'!AI16=\"\",\"\",'1. Order'!AI16)","v":""}]
[{"$f":"IF('1. Order'!B17=\"\",\"\",'1. Order'!B17)","v":""},{"$f":"IF('1. Order'!J17=\"\",\"\",'1. Order'!J17)","v":""},{"$f":"IF('1. Order'!K17=\"\",\"\",'1. Order'!K17)","v":""},{"$f":"IF('1. Order'!L17=\"\",\"\",'1. Order'!L17)","v":""},{"$f":"IF('1. Order'!N17=\"\",\"\",'1. Order'!N17)","v":""},null,null,{"$f":"'1. Order'!AV17","v":0},{"$f":"IF('1. Order'!AI17=\"\",\"\",'1. Order'!AI17)","v":""}]
[{"$f":"IF('1. Order'!B18=\"\",\"\",'1. Order'!B18)","v":""},{"$f":"IF('1. Order'!J18=\"\",\"\",'1. Order'!J18)","v":""},{"$f":"IF('1. Order'!K18=\"\",\"\",'1. Order'!K18)","v":""},{"$f":"IF('1. Order'!L18=\"\",\"\",'1. Order'!L18)","v":""},{"$f":"IF('1. Order'!N18=\"\",\"\",'1. Order'!N18)","v":""},null,null,{"$f":"'1. Order'!AV18","v":0},{"$f":"IF('1. Order'!AI18=\"\",\"\",'1. Order'!AI18)","v":""}]
[{"$f":"IF('1. Order'!B19=\"\",\"\",'1. Order'!B19)","v":""},{"$f":"IF('1. Order'!J19=\"\",\"\",'1. Order'!J19)","v":""},{"$f":"IF('1. Order'!K19=\"\",\"\",'1. Order'!K19)","v":""},{"$f":"IF('1. Order'!L19=\"\",\"\",'1. Order'!L19)","v":""},{"$f":"IF('1. Order'!N19=\"\",\"\",'1. Order'!N19)","v":""},null,null,{"$f":"'1. Order'!AV19","v":0},{"$f":"IF('1. Order'!AI19=\"\",\"\",'1. Order'!AI19)","v":""}]
[{"$f":"IF('1. Order'!B20=\"\",\"\",'1. Order'!B20)","v":""},{"$f":"IF('1. Order'!J20=\"\",\"\",'1. Order'!J20)","v":""},{"$f":"IF('1. Order'!K20=\"\",\"\",'1. Order'!K20)","v":""},{"$f":"IF('1. Order'!L20=\"\",\"\",'1. Order'!L20)","v":""},{"$f":"IF('1. Order'!N20=\"\",\"\",'1. Order'!N20)","v":""},null,null,{"$f":"'1. Order'!AV20","v":0},{"$f":"IF('1. Order'!AI20=\"\",\"\",'1. Order'!AI20)","v":""}]
[{"$f":"IF('1. Order'!B21=\"\",\"\",'1. Order'!B21)","v":""},{"$f":"IF('1. Order'!J21=\"\",\"\",'1. Order'!J21)","v":""},{"$f":"IF('1. Order'!K21=\"\",\"\",'1. Order'!K21)","v":""},{"$f":"IF('1. Order'!L21=\"\",\"\",'1. Order'!L21)","v":""},{"$f":"IF('1. Order'!N21=\"\",\"\",'1. Order'!N21)","v":""},null,null,{"$f":"'1. Order'!AV21","v":0},{"$f":"IF('1. Order'!AI21=\"\",\"\",'1. Order'!AI21)","v":""}]
[{"$f":"IF('1. Order'!B22=\"\",\"\",'1. Order'!B22)","v":""},{"$f":"IF('1. Order'!J22=\"\",\"\",'1. Order'!J22)","v":""},{"$f":"IF('1. Order'!K22=\"\",\"\",'1. Order'!K22)","v":""},{"$f":"IF('1. Order'!L22=\"\",\"\",'1. Order'!L22)","v":""},{"$f":"IF('1. Order'!N22=\"\",\"\",'1. Order'!N22)","v":""},null,null,{"$f":"'1. Order'!AV22","v":0},{"$f":"IF('1. Order'!AI22=\"\",\"\",'1. Order'!AI22)","v":""}]
[{"$f":"IF('1. Order'!B23=\"\",\"\",'1. Order'!B23)","v":""},{"$f":"IF('1. Order'!J23=\"\",\"\",'1. Order'!J23)","v":""},{"$f":"IF('1. Order'!K23=\"\",\"\",'1. Order'!K23)","v":""},{"$f":"IF('1. Order'!L23=\"\",\"\",'1. Order'!L23)","v":""},{"$f":"IF('1. Order'!N23=\"\",\"\",'1. Order'!N23)","v":""},null,null,{"$f":"'1. Order'!AV23","v":0},{"$f":"IF('1. Order'!AI23=\"\",\"\",'1. Order'!AI23)","v":""}]
[{"$f":"IF('1. Order'!B24=\"\",\"\",'1. Order'!B24)","v":""},{"$f":"IF('1. Order'!J24=\"\",\"\",'1. Order'!J24)","v":""},{"$f":"IF('1. Order'!K24=\"\",\"\",'1. Order'!K24)","v":""},{"$f":"IF('1. Order'!L24=\"\",\"\",'1. Order'!L24)","v":""},{"$f":"IF('1. Order'!N24=\"\",\"\",'1. Order'!N24)","v":""},null,null,{"$f":"'1. Order'!AV24","v":0},{"$f":"IF('1. Order'!AI24=\"\",\"\",'1. Order'!AI24)","v":""}]
[{"$f":"IF('1. Order'!B25=\"\",\"\",'1. Order'!B25)","v":""},{"$f":"IF('1. Order'!J25=\"\",\"\",'1. Order'!J25)","v":""},{"$f":"IF('1. Order'!K25=\"\",\"\",'1. Order'!K25)","v":""},{"$f":"IF('1. Order'!L25=\"\",\"\",'1. Order'!L25)","v":""},{"$f":"IF('1. Order'!N25=\"\",\"\",'1. Order'!N25)","v":""},null,null,{"$f":"'1. Order'!AV25","v":0},{"$f":"IF('1. Order'!AI25=\"\",\"\",'1. Order'!AI25)","v":""}]
[{"$f":"IF('1. Order'!B26=\"\",\"\",'1. Order'!B26)","v":""},{"$f":"IF('1. Order'!J26=\"\",\"\",'1. Order'!J26)","v":""},{"$f":"IF('1. Order'!K26=\"\",\"\",'1. Order'!K26)","v":""},{"$f":"IF('1. Order'!L26=\"\",\"\",'1. Order'!L26)","v":""},{"$f":"IF('1. Order'!N26=\"\",\"\",'1. Order'!N26)","v":""},null,null,{"$f":"'1. Order'!AV26","v":0},{"$f":"IF('1. Order'!AI26=\"\",\"\",'1. Order'!AI26)","v":""}]
[{"$f":"IF('1. Order'!B27=\"\",\"\",'1. Order'!B27)","v":""},{"$f":"IF('1. Order'!J27=\"\",\"\",'1. Order'!J27)","v":""},{"$f":"IF('1. Order'!K27=\"\",\"\",'1. Order'!K27)","v":""},{"$f":"IF('1. Order'!L27=\"\",\"\",'1. Order'!L27)","v":""},{"$f":"IF('1. Order'!N27=\"\",\"\",'1. Order'!N27)","v":""},null,null,{"$f":"'1. Order'!AV27","v":0},{"$f":"IF('1. Order'!AI27=\"\",\"\",'1. Order'!AI27)","v":""}]
[{"$f":"IF('1. Order'!B28=\"\",\"\",'1. Order'!B28)","v":""},{"$f":"IF('1. Order'!J28=\"\",\"\",'1. Order'!J28)","v":""},{"$f":"IF('1. Order'!K28=\"\",\"\",'1. Order'!K28)","v":""},{"$f":"IF('1. Order'!L28=\"\",\"\",'1. Order'!L28)","v":""},{"$f":"IF('1. Order'!N28=\"\",\"\",'1. Order'!N28)","v":""},null,null,{"$f":"'1. Order'!AV28","v":0},{"$f":"IF('1. Order'!AI28=\"\",\"\",'1. Order'!AI28)","v":""}]
[{"$f":"IF('1. Order'!B29=\"\",\"\",'1. Order'!B29)","v":""},{"$f":"IF('1. Order'!J29=\"\",\"\",'1. Order'!J29)","v":""},{"$f":"IF('1. Order'!K29=\"\",\"\",'1. Order'!K29)","v":""},{"$f":"IF('1. Order'!L29=\"\",\"\",'1. Order'!L29)","v":""},{"$f":"IF('1. Order'!N29=\"\",\"\",'1. Order'!N29)","v":""},null,null,{"$f":"'1. Order'!AV29","v":0},{"$f":"IF('1. Order'!AI29=\"\",\"\",'1. Order'!AI29)","v":""}]
[{"$f":"IF('1. Order'!B30=\"\",\"\",'1. Order'!B30)","v":""},{"$f":"IF('1. Order'!J30=\"\",\"\",'1. Order'!J30)","v":""},{"$f":"IF('1. Order'!K30=\"\",\"\",'1. Order'!K30)","v":""},{"$f":"IF('1. Order'!L30=\"\",\"\",'1. Order'!L30)","v":""},{"$f":"IF('1. Order'!N30=\"\",\"\",'1. Order'!N30)","v":""},null,null,{"$f":"'1. Order'!AV30","v":0},{"$f":"IF('1. Order'!AI30=\"\",\"\",'1. Order'!AI30)","v":""}]
[{"$f":"IF('1. Order'!B31=\"\",\"\",'1. Order'!B31)","v":""},{"$f":"IF('1. Order'!J31=\"\",\"\",'1. Order'!J31)","v":""},{"$f":"IF('1. Order'!K31=\"\",\"\",'1. Order'!K31)","v":""},{"$f":"IF('1. Order'!L31=\"\",\"\",'1. Order'!L31)","v":""},{"$f":"IF('1. Order'!N31=\"\",\"\",'1. Order'!N31)","v":""},null,null,{"$f":"'1. Order'!AV31","v":0},{"$f":"IF('1. Order'!AI31=\"\",\"\",'1. Order'!AI31)","v":""}]
[{"$f":"IF('1. Order'!B32=\"\",\"\",'1. Order'!B32)","v":""},{"$f":"IF('1. Order'!J32=\"\",\"\",'1. Order'!J32)","v":""},{"$f":"IF('1. Order'!K32=\"\",\"\",'1. Order'!K32)","v":""},{"$f":"IF('1. Order'!L32=\"\",\"\",'1. Order'!L32)","v":""},{"$f":"IF('1. Order'!N32=\"\",\"\",'1. Order'!N32)","v":""},null,null,{"$f":"'1. Order'!AV32","v":0},{"$f":"IF('1. Order'!AI32=\"\",\"\",'1. Order'!AI32)","v":""}]
[{"$f":"IF('1. Order'!B33=\"\",\"\",'1. Order'!B33)","v":""},{"$f":"IF('1. Order'!J33=\"\",\"\",'1. Order'!J33)","v":""},{"$f":"IF('1. Order'!K33=\"\",\"\",'1. Order'!K33)","v":""},{"$f":"IF('1. Order'!L33=\"\",\"\",'1. Order'!L33)","v":""},{"$f":"IF('1. Order'!N33=\"\",\"\",'1. Order'!N33)","v":""},null,null,{"$f":"'1. Order'!AV33","v":0},{"$f":"IF('1. Order'!AI33=\"\",\"\",'1. Order'!AI33)","v":""}]
[{"$f":"IF('1. Order'!B34=\"\",\"\",'1. Order'!B34)","v":""},{"$f":"IF('1. Order'!J34=\"\",\"\",'1. Order'!J34)","v":""},{"$f":"IF('1. Order'!K34=\"\",\"\",'1. Order'!K34)","v":""},{"$f":"IF('1. Order'!L34=\"\",\"\",'1. Order'!L34)","v":""},{"$f":"IF('1. Order'!N34=\"\",\"\",'1. Order'!N34)","v":""},null,null,{"$f":"'1. Order'!AV34","v":0},{"$f":"IF('1. Order'!AI34=\"\",\"\",'1. Order'!AI34)","v":""}]
[{"$f":"IF('1. Order'!B35=\"\",\"\",'1. Order'!B35)","v":""},{"$f":"IF('1. Order'!J35=\"\",\"\",'1. Order'!J35)","v":""},{"$f":"IF('1. Order'!K35=\"\",\"\",'1. Order'!K35)","v":""},{"$f":"IF('1. Order'!L35=\"\",\"\",'1. Order'!L35)","v":""},{"$f":"IF('1. Order'!N35=\"\",\"\",'1. Order'!N35)","v":""},null,null,{"$f":"'1. Order'!AV35","v":0},{"$f":"IF('1. Order'!AI35=\"\",\"\",'1. Order'!AI35)","v":""}]
[{"$f":"IF('1. Order'!B36=\"\",\"\",'1. Order'!B36)","v":""},{"$f":"IF('1. Order'!J36=\"\",\"\",'1. Order'!J36)","v":""},{"$f":"IF('1. Order'!K36=\"\",\"\",'1. Order'!K36)","v":""},{"$f":"IF('1. Order'!L36=\"\",\"\",'1. Order'!L36)","v":""},{"$f":"IF('1. Order'!N36=\"\",\"\",'1. Order'!N36)","v":""},null,null,{"$f":"'1. Order'!AV36","v":0},{"$f":"IF('1. Order'!AI36=\"\",\"\",'1. Order'!AI36)","v":""}]
[{"$f":"IF('1. Order'!B37=\"\",\"\",'1. Order'!B37)","v":""},{"$f":"IF('1. Order'!J37=\"\",\"\",'1. Order'!J37)","v":""},{"$f":"IF('1. Order'!K37=\"\",\"\",'1. Order'!K37)","v":""},{"$f":"IF('1. Order'!L37=\"\",\"\",'1. Order'!L37)","v":""},{"$f":"IF('1. Order'!N37=\"\",\"\",'1. Order'!N37)","v":""},null,null,{"$f":"'1. Order'!AV37","v":0},{"$f":"IF('1. Order'!AI37=\"\",\"\",'1. Order'!AI37)","v":""}]
[{"$f":"IF('1. Order'!B38=\"\",\"\",'1. Order'!B38)","v":""},{"$f":"IF('1. Order'!J38=\"\",\"\",'1. Order'!J38)","v":""},{"$f":"IF('1. Order'!K38=\"\",\"\",'1. Order'!K38)","v":""},{"$f":"IF('1. Order'!L38=\"\",\"\",'1. Order'!L38)","v":""},{"$f":"IF('1. Order'!N38=\"\",\"\",'1. Order'!N38)","v":""},null,null,{"$f":"'1. Order'!AV38","v":0},{"$f":"IF('1. Order'!AI38=\"\",\"\",'1. Order'!AI38)","v":""}]
[{"$f":"IF('1. Order'!B39=\"\",\"\",'1. Order'!B39)","v":""},{"$f":"IF('1. Order'!J39=\"\",\"\",'1. Order'!J39)","v":""},{"$f":"IF('1. Order'!K39=\"\",\"\",'1. Order'!K39)","v":""},{"$f":"IF('1. Order'!L39=\"\",\"\",'1. Order'!L39)","v":""},{"$f":"IF('1. Order'!N39=\"\",\"\",'1. Order'!N39)","v":""},null,null,{"$f":"'1. Order'!AV39","v":0},{"$f":"IF('1. Order'!AI39=\"\",\"\",'1. Order'!AI39)","v":""}]
[{"$f":"IF('1. Order'!B40=\"\",\"\",'1. Order'!B40)","v":""},{"$f":"IF('1. Order'!J40=\"\",\"\",'1. Order'!J40)","v":""},{"$f":"IF('1. Order'!K40=\"\",\"\",'1. Order'!K40)","v":""},{"$f":"IF('1. Order'!L40=\"\",\"\",'1. Order'!L40)","v":""},{"$f":"IF('1. Order'!N40=\"\",\"\",'1. Order'!N40)","v":""},null,null,{"$f":"'1. Order'!AV40","v":0},{"$f":"IF('1. Order'!AI40=\"\",\"\",'1. Order'!AI40)","v":""}]
[{"$f":"IF('1. Order'!B41=\"\",\"\",'1. Order'!B41)","v":""},{"$f":"IF('1. Order'!J41=\"\",\"\",'1. Order'!J41)","v":""},{"$f":"IF('1. Order'!K41=\"\",\"\",'1. Order'!K41)","v":""},{"$f":"IF('1. Order'!L41=\"\",\"\",'1. Order'!L41)","v":""},{"$f":"IF('1. Order'!N41=\"\",\"\",'1. Order'!N41)","v":""},null,null,{"$f":"'1. Order'!AV41","v":0},{"$f":"IF('1. Order'!AI41=\"\",\"\",'1. Order'!AI41)","v":""}]
[{"$f":"IF('1. Order'!B42=\"\",\"\",'1. Order'!B42)","v":""},{"$f":"IF('1. Order'!J42=\"\",\"\",'1. Order'!J42)","v":""},{"$f":"IF('1. Order'!K42=\"\",\"\",'1. Order'!K42)","v":""},{"$f":"IF('1. Order'!L42=\"\",\"\",'1. Order'!L42)","v":""},{"$f":"IF('1. Order'!N42=\"\",\"\",'1. Order'!N42)","v":""},null,null,{"$f":"'1. Order'!AV42","v":0},{"$f":"IF('1. Order'!AI42=\"\",\"\",'1. Order'!AI42)","v":""}]
[{"$f":"IF('1. Order'!B43=\"\",\"\",'1. Order'!B43)","v":""},{"$f":"IF('1. Order'!J43=\"\",\"\",'1. Order'!J43)","v":""},{"$f":"IF('1. Order'!K43=\"\",\"\",'1. Order'!K43)","v":""},{"$f":"IF('1. Order'!L43=\"\",\"\",'1. Order'!L43)","v":""},{"$f":"IF('1. Order'!N43=\"\",\"\",'1. Order'!N43)","v":""},null,null,{"$f":"'1. Order'!AV43","v":0},{"$f":"IF('1. Order'!AI43=\"\",\"\",'1. Order'!AI43)","v":""}]
[{"$f":"IF('1. Order'!B44=\"\",\"\",'1. Order'!B44)","v":""},{"$f":"IF('1. Order'!J44=\"\",\"\",'1. Order'!J44)","v":""},{"$f":"IF('1. Order'!K44=\"\",\"\",'1. Order'!K44)","v":""},{"$f":"IF('1. Order'!L44=\"\",\"\",'1. Order'!L44)","v":""},{"$f":"IF('1. Order'!N44=\"\",\"\",'1. Order'!N44)","v":""},null,null,{"$f":"'1. Order'!AV44","v":0},{"$f":"IF('1. Order'!AI44=\"\",\"\",'1. Order'!AI44)","v":""}]
[{"$f":"IF('1. Order'!B45=\"\",\"\",'1. Order'!B45)","v":""},{"$f":"IF('1. Order'!J45=\"\",\"\",'1. Order'!J45)","v":""},{"$f":"IF('1. Order'!K45=\"\",\"\",'1. Order'!K45)","v":""},{"$f":"IF('1. Order'!L45=\"\",\"\",'1. Order'!L45)","v":""},{"$f":"IF('1. Order'!N45=\"\",\"\",'1. Order'!N45)","v":""},null,null,{"$f":"'1. Order'!AV45","v":0},{"$f":"IF('1. Order'!AI45=\"\",\"\",'1. Order'!AI45)","v":""}]
[{"$f":"IF('1. Order'!B46=\"\",\"\",'1. Order'!B46)","v":""},{"$f":"IF('1. Order'!J46=\"\",\"\",'1. Order'!J46)","v":""},{"$f":"IF('1. Order'!K46=\"\",\"\",'1. Order'!K46)","v":""},{"$f":"IF('1. Order'!L46=\"\",\"\",'1. Order'!L46)","v":""},{"$f":"IF('1. Order'!N46=\"\",\"\",'1. Order'!N46)","v":""},null,null,{"$f":"'1. Order'!AV46","v":0},{"$f":"IF('1. Order'!AI46=\"\",\"\",'1. Order'!AI46)","v":""}]
[{"$f":"IF('1. Order'!B47=\"\",\"\",'1. Order'!B47)","v":""},{"$f":"IF('1. Order'!J47=\"\",\"\",'1. Order'!J47)","v":""},{"$f":"IF('1. Order'!K47=\"\",\"\",'1. Order'!K47)","v":""},{"$f":"IF('1. Order'!L47=\"\",\"\",'1. Order'!L47)","v":""},{"$f":"IF('1. Order'!N47=\"\",\"\",'1. Order'!N47)","v":""},null,null,{"$f":"'1. Order'!AV47","v":0},{"$f":"IF('1. Order'!AI47=\"\",\"\",'1. Order'!AI47)","v":""}]
[{"$f":"IF('1. Order'!B48=\"\",\"\",'1. Order'!B48)","v":""},{"$f":"IF('1. Order'!J48=\"\",\"\",'1. Order'!J48)","v":""},{"$f":"IF('1. Order'!K48=\"\",\"\",'1. Order'!K48)","v":""},{"$f":"IF('1. Order'!L48=\"\",\"\",'1. Order'!L48)","v":""},{"$f":"IF('1. Order'!N48=\"\",\"\",'1. Order'!N48)","v":""},null,null,{"$f":"'1. Order'!AV48","v":0},{"$f":"IF('1. Order'!AI48=\"\",\"\",'1. Order'!AI48)","v":""}]
[{"$f":"IF('1. Order'!B49=\"\",\"\",'1. Order'!B49)","v":""},{"$f":"IF('1. Order'!J49=\"\",\"\",'1. Order'!J49)","v":""},{"$f":"IF('1. Order'!K49=\"\",\"\",'1. Order'!K49)","v":""},{"$f":"IF('1. Order'!L49=\"\",\"\",'1. Order'!L49)","v":""},{"$f":"IF('1. Order'!N49=\"\",\"\",'1. Order'!N49)","v":""},null,null,{"$f":"'1. Order'!AV49","v":0},{"$f":"IF('1. Order'!AI49=\"\",\"\",'1. Order'!AI49)","v":""}]
[{"$f":"IF('1. Order'!B50=\"\",\"\",'1. Order'!B50)","v":""},{"$f":"IF('1. Order'!J50=\"\",\"\",'1. Order'!J50)","v":""},{"$f":"IF('1. Order'!K50=\"\",\"\",'1. Order'!K50)","v":""},{"$f":"IF('1. Order'!L50=\"\",\"\",'1. Order'!L50)","v":""},{"$f":"IF('1. Order'!N50=\"\",\"\",'1. Order'!N50)","v":""},null,null,{"$f":"'1. Order'!AV50","v":0},{"$f":"IF('1. Order'!AI50=\"\",\"\",'1. Order'!AI50)","v":""}]
[{"$f":"IF('1. Order'!B51=\"\",\"\",'1. Order'!B51)","v":""},{"$f":"IF('1. Order'!J51=\"\",\"\",'1. Order'!J51)","v":""},{"$f":"IF('1. Order'!K51=\"\",\"\",'1. Order'!K51)","v":""},{"$f":"IF('1. Order'!L51=\"\",\"\",'1. Order'!L51)","v":""},{"$f":"IF('1. Order'!N51=\"\",\"\",'1. Order'!N51)","v":""},null,null,{"$f":"'1. Order'!AV51","v":0},{"$f":"IF('1. Order'!AI51=\"\",\"\",'1. Order'!AI51)","v":""}]
[{"$f":"IF('1. Order'!B52=\"\",\"\",'1. Order'!B52)","v":""},{"$f":"IF('1. Order'!J52=\"\",\"\",'1. Order'!J52)","v":""},{"$f":"IF('1. Order'!K52=\"\",\"\",'1. Order'!K52)","v":""},{"$f":"IF('1. Order'!L52=\"\",\"\",'1. Order'!L52)","v":""},{"$f":"IF('1. Order'!N52=\"\",\"\",'1. Order'!N52)","v":""},null,null,{"$f":"'1. Order'!AV52","v":0},{"$f":"IF('1. Order'!AI52=\"\",\"\",'1. Order'!AI52)","v":""}]
[{"$f":"IF('1. Order'!B53=\"\",\"\",'1. Order'!B53)","v":""},{"$f":"IF('1. Order'!J53=\"\",\"\",'1. Order'!J53)","v":""},{"$f":"IF('1. Order'!K53=\"\",\"\",'1. Order'!K53)","v":""},{"$f":"IF('1. Order'!L53=\"\",\"\",'1. Order'!L53)","v":""},{"$f":"IF('1. Order'!N53=\"\",\"\",'1. Order'!N53)","v":""},null,null,{"$f":"'1. Order'!AV53","v":0},{"$f":"IF('1. Order'!AI53=\"\",\"\",'1. Order'!AI53)","v":""}]
[{"$f":"IF('1. Order'!B54=\"\",\"\",'1. Order'!B54)","v":""},{"$f":"IF('1. Order'!J54=\"\",\"\",'1. Order'!J54)","v":""},{"$f":"IF('1. Order'!K54=\"\",\"\",'1. Order'!K54)","v":""},{"$f":"IF('1. Order'!L54=\"\",\"\",'1. Order'!L54)","v":""},{"$f":"IF('1. Order'!N54=\"\",\"\",'1. Order'!N54)","v":""},null,null,{"$f":"'1. Order'!AV54","v":0},{"$f":"IF('1. Order'!AI54=\"\",\"\",'1. Order'!AI54)","v":""}]
[{"$f":"IF('1. Order'!B55=\"\",\"\",'1. Order'!B55)","v":""},{"$f":"IF('1. Order'!J55=\"\",\"\",'1. Order'!J55)","v":""},{"$f":"IF('1. Order'!K55=\"\",\"\",'1. Order'!K55)","v":""},{"$f":"IF('1. Order'!L55=\"\",\"\",'1. Order'!L55)","v":""},{"$f":"IF('1. Order'!N55=\"\",\"\",'1. Order'!N55)","v":""},null,null,{"$f":"'1. Order'!AV55","v":0},{"$f":"IF('1. Order'!AI55=\"\",\"\",'1. Order'!AI55)","v":""}]
[{"$f":"IF('1. Order'!B56=\"\",\"\",'1. Order'!B56)","v":""},{"$f":"IF('1. Order'!J56=\"\",\"\",'1. Order'!J56)","v":""},{"$f":"IF('1. Order'!K56=\"\",\"\",'1. Order'!K56)","v":""},{"$f":"IF('1. Order'!L56=\"\",\"\",'1. Order'!L56)","v":""},{"$f":"IF('1. Order'!N56=\"\",\"\",'1. Order'!N56)","v":""},null,null,{"$f":"'1. Order'!AV56","v":0},{"$f":"IF('1. Order'!AI56=\"\",\"\",'1. Order'!AI56)","v":""}]
[{"$f":"IF('1. Order'!B57=\"\",\"\",'1. Order'!B57)","v":""},{"$f":"IF('1. Order'!J57=\"\",\"\",'1. Order'!J57)","v":""},{"$f":"IF('1. Order'!K57=\"\",\"\",'1. Order'!K57)","v":""},{"$f":"IF('1. Order'!L57=\"\",\"\",'1. Order'!L57)","v":""},{"$f":"IF('1. Order'!N57=\"\",\"\",'1. Order'!N57)","v":""},null,null,{"$f":"'1. Order'!AV57","v":0},{"$f":"IF('1. Order'!AI57=\"\",\"\",'1. Order'!AI57)","v":""}]
[{"$f":"IF('1. Order'!B58=\"\",\"\",'1. Order'!B58)","v":""},{"$f":"IF('1. Order'!J58=\"\",\"\",'1. Order'!J58)","v":""},{"$f":"IF('1. Order'!K58=\"\",\"\",'1. Order'!K58)","v":""},{"$f":"IF('1. Order'!L58=\"\",\"\",'1. Order'!L58)","v":""},{"$f":"IF('1. Order'!N58=\"\",\"\",'1. Order'!N58)","v":""},null,null,{"$f":"'1. Order'!AV58","v":0},{"$f":"IF('1. Order'!AI58=\"\",\"\",'1. Order'!AI58)","v":""}]
[{"$f":"IF('1. Order'!B59=\"\",\"\",'1. Order'!B59)","v":""},{"$f":"IF('1. Order'!J59=\"\",\"\",'1. Order'!J59)","v":""},{"$f":"IF('1. Order'!K59=\"\",\"\",'1. Order'!K59)","v":""},{"$f":"IF('1. Order'!L59=\"\",\"\",'1. Order'!L59)","v":""},{"$f":"IF('1. Order'!N59=\"\",\"\",'1. Order'!N59)","v":""},null,null,{"$f":"'1. Order'!AV59","v":0},{"$f":"IF('1. Order'!AI59=\"\",\"\",'1. Order'!AI59)","v":""}]
[{"$f":"IF('1. Order'!B60=\"\",\"\",'1. Order'!B60)","v":""},{"$f":"IF('1. Order'!J60=\"\",\"\",'1. Order'!J60)","v":""},{"$f":"IF('1. Order'!K60=\"\",\"\",'1. Order'!K60)","v":""},{"$f":"IF('1. Order'!L60=\"\",\"\",'1. Order'!L60)","v":""},{"$f":"IF('1. Order'!N60=\"\",\"\",'1. Order'!N60)","v":""},null,null,{"$f":"'1. Order'!AV60","v":0},{"$f":"IF('1. Order'!AI60=\"\",\"\",'1. Order'!AI60)","v":""}]
[{"$f":"IF('1. Order'!B61=\"\",\"\",'1. Order'!B61)","v":""},{"$f":"IF('1. Order'!J61=\"\",\"\",'1. Order'!J61)","v":""},{"$f":"IF('1. Order'!K61=\"\",\"\",'1. Order'!K61)","v":""},{"$f":"IF('1. Order'!L61=\"\",\"\",'1. Order'!L61)","v":""},{"$f":"IF('1. Order'!N61=\"\",\"\",'1. Order'!N61)","v":""},null,null,{"$f":"'1. Order'!AV61","v":0},{"$f":"IF('1. Order'!AI61=\"\",\"\",'1. Order'!AI61)","v":""}]
[{"$f":"IF('1. Order'!B62=\"\",\"\",'1. Order'!B62)","v":""},{"$f":"IF('1. Order'!J62=\"\",\"\",'1. Order'!J62)","v":""},{"$f":"IF('1. Order'!K62=\"\",\"\",'1. Order'!K62)","v":""},{"$f":"IF('1. Order'!L62=\"\",\"\",'1. Order'!L62)","v":""},{"$f":"IF('1. Order'!N62=\"\",\"\",'1. Order'!N62)","v":""},null,null,{"$f":"'1. Order'!AV62","v":0},{"$f":"IF('1. Order'!AI62=\"\",\"\",'1. Order'!AI62)","v":""}]
[{"$f":"IF('1. Order'!B63=\"\",\"\",'1. Order'!B63)","v":""},{"$f":"IF('1. Order'!J63=\"\",\"\",'1. Order'!J63)","v":""},{"$f":"IF('1. Order'!K63=\"\",\"\",'1. Order'!K63)","v":""},{"$f":"IF('1. Order'!L63=\"\",\"\",'1. Order'!L63)","v":""},{"$f":"IF('1. Order'!N63=\"\",\"\",'1. Order'!N63)","v":""},null,null,{"$f":"'1. Order'!AV63","v":0},{"$f":"IF('1. Order'!AI63=\"\",\"\",'1. Order'!AI63)","v":""}]
[{"$f":"IF('1. Order'!B64=\"\",\"\",'1. Order'!B64)","v":""},{"$f":"IF('1. Order'!J64=\"\",\"\",'1. Order'!J64)","v":""},{"$f":"IF('1. Order'!K64=\"\",\"\",'1. Order'!K64)","v":""},{"$f":"IF('1. Order'!L64=\"\",\"\",'1. Order'!L64)","v":""},{"$f":"IF('1. Order'!N64=\"\",\"\",'1. Order'!N64)","v":""},null,null,{"$f":"'1. Order'!AV64","v":0},{"$f":"IF('1. Order'!AI64=\"\",\"\",'1. Order'!AI64)","v":""}]
[{"$f":"IF('1. Order'!B65=\"\",\"\",'1. Order'!B65)","v":""},{"$f":"IF('1. Order'!J65=\"\",\"\",'1. Order'!J65)","v":""},{"$f":"IF('1. Order'!K65=\"\",\"\",'1. Order'!K65)","v":""},{"$f":"IF('1. Order'!L65=\"\",\"\",'1. Order'!L65)","v":""},{"$f":"IF('1. Order'!N65=\"\",\"\",'1. Order'!N65)","v":""},null,null,{"$f":"'1. Order'!AV65","v":0},{"$f":"IF('1. Order'!AI65=\"\",\"\",'1. Order'!AI65)","v":""}]
[{"$f":"IF('1. Order'!B66=\"\",\"\",'1. Order'!B66)","v":""},{"$f":"IF('1. Order'!J66=\"\",\"\",'1. Order'!J66)","v":""},{"$f":"IF('1. Order'!K66=\"\",\"\",'1. Order'!K66)","v":""},{"$f":"IF('1. Order'!L66=\"\",\"\",'1. Order'!L66)","v":""},{"$f":"IF('1. Order'!N66=\"\",\"\",'1. Order'!N66)","v":""},null,null,{"$f":"'1. Order'!AV66","v":0},{"$f":"IF('1. Order'!AI66=\"\",\"\",'1. Order'!AI66)","v":""}]
[{"$f":"IF('1. Order'!B67=\"\",\"\",'1. Order'!B67)","v":""},{"$f":"IF('1. Order'!J67=\"\",\"\",'1. Order'!J67)","v":""},{"$f":"IF('1. Order'!K67=\"\",\"\",'1. Order'!K67)","v":""},{"$f":"IF('1. Order'!L67=\"\",\"\",'1. Order'!L67)","v":""},{"$f":"IF('1. Order'!N67=\"\",\"\",'1. Order'!N67)","v":""},null,null,{"$f":"'1. Order'!AV67","v":0},{"$f":"IF('1. Order'!AI67=\"\",\"\",'1. Order'!AI67)","v":""}]
[{"$f":"IF('1. Order'!B68=\"\",\"\",'1. Order'!B68)","v":""},{"$f":"IF('1. Order'!J68=\"\",\"\",'1. Order'!J68)","v":""},{"$f":"IF('1. Order'!K68=\"\",\"\",'1. Order'!K68)","v":""},{"$f":"IF('1. Order'!L68=\"\",\"\",'1. Order'!L68)","v":""},{"$f":"IF('1. Order'!N68=\"\",\"\",'1. Order'!N68)","v":""},null,null,{"$f":"'1. Order'!AV68","v":0},{"$f":"IF('1. Order'!AI68=\"\",\"\",'1. Order'!AI68)","v":""}]
[{"$f":"IF('1. Order'!B69=\"\",\"\",'1. Order'!B69)","v":""},{"$f":"IF('1. Order'!J69=\"\",\"\",'1. Order'!J69)","v":""},{"$f":"IF('1. Order'!K69=\"\",\"\",'1. Order'!K69)","v":""},{"$f":"IF('1. Order'!L69=\"\",\"\",'1. Order'!L69)","v":""},{"$f":"IF('1. Order'!N69=\"\",\"\",'1. Order'!N69)","v":""},null,null,{"$f":"'1. Order'!AV69","v":0},{"$f":"IF('1. Order'!AI69=\"\",\"\",'1. Order'!AI69)","v":""}]
[{"$f":"IF('1. Order'!B70=\"\",\"\",'1. Order'!B70)","v":""},{"$f":"IF('1. Order'!J70=\"\",\"\",'1. Order'!J70)","v":""},{"$f":"IF('1. Order'!K70=\"\",\"\",'1. Order'!K70)","v":""},{"$f":"IF('1. Order'!L70=\"\",\"\",'1. Order'!L70)","v":""},{"$f":"IF('1. Order'!N70=\"\",\"\",'1. Order'!N70)","v":""},null,null,{"$f":"'1. Order'!AV70","v":0},{"$f":"IF('1. Order'!AI70=\"\",\"\",'1. Order'!AI70)","v":""}]
[{"$f":"IF('1. Order'!B71=\"\",\"\",'1. Order'!B71)","v":""},{"$f":"IF('1. Order'!J71=\"\",\"\",'1. Order'!J71)","v":""},{"$f":"IF('1. Order'!K71=\"\",\"\",'1. Order'!K71)","v":""},{"$f":"IF('1. Order'!L71=\"\",\"\",'1. Order'!L71)","v":""},{"$f":"IF('1. Order'!N71=\"\",\"\",'1. Order'!N71)","v":""},null,null,{"$f":"'1. Order'!AV71","v":0},{"$f":"IF('1. Order'!AI71=\"\",\"\",'1. Order'!AI71)","v":""}]
[{"$f":"IF('1. Order'!B72=\"\",\"\",'1. Order'!B72)","v":""},{"$f":"IF('1. Order'!J72=\"\",\"\",'1. Order'!J72)","v":""},{"$f":"IF('1. Order'!K72=\"\",\"\",'1. Order'!K72)","v":""},{"$f":"IF('1. Order'!L72=\"\",\"\",'1. Order'!L72)","v":""},{"$f":"IF('1. Order'!N72=\"\",\"\",'1. Order'!N72)","v":""},null,null,{"$f":"'1. Order'!AV72","v":0},{"$f":"IF('1. Order'!AI72=\"\",\"\",'1. Order'!AI72)","v":""}]
[{"$f":"IF('1. Order'!B73=\"\",\"\",'1. Order'!B73)","v":""},{"$f":"IF('1. Order'!J73=\"\",\"\",'1. Order'!J73)","v":""},{"$f":"IF('1. Order'!K73=\"\",\"\",'1. Order'!K73)","v":""},{"$f":"IF('1. Order'!L73=\"\",\"\",'1. Order'!L73)","v":""},{"$f":"IF('1. Order'!N73=\"\",\"\",'1. Order'!N73)","v":""},null,null,{"$f":"'1. Order'!AV73","v":0},{"$f":"IF('1. Order'!AI73=\"\",\"\",'1. Order'!AI73)","v":""}]
[{"$f":"IF('1. Order'!B74=\"\",\"\",'1. Order'!B74)","v":""},{"$f":"IF('1. Order'!J74=\"\",\"\",'1. Order'!J74)","v":""},{"$f":"IF('1. Order'!K74=\"\",\"\",'1. Order'!K74)","v":""},{"$f":"IF('1. Order'!L74=\"\",\"\",'1. Order'!L74)","v":""},{"$f":"IF('1. Order'!N74=\"\",\"\",'1. Order'!N74)","v":""},null,null,{"$f":"'1. Order'!AV74","v":0},{"$f":"IF('1. Order'!AI74=\"\",\"\",'1. Order'!AI74)","v":""}]
[{"$f":"IF('1. Order'!B75=\"\",\"\",'1. Order'!B75)","v":""},{"$f":"IF('1. Order'!J75=\"\",\"\",'1. Order'!J75)","v":""},{"$f":"IF('1. Order'!K75=\"\",\"\",'1. Order'!K75)","v":""},{"$f":"IF('1. Order'!L75=\"\",\"\",'1. Order'!L75)","v":""},{"$f":"IF('1. Order'!N75=\"\",\"\",'1. Order'!N75)","v":""},null,null,{"$f":"'1. Order'!AV75","v":0},{"$f":"IF('1. Order'!AI75=\"\",\"\",'1. Order'!AI75)","v":""}]
[{"$f":"IF('1. Order'!B76=\"\",\"\",'1. Order'!B76)","v":""},{"$f":"IF('1. Order'!J76=\"\",\"\",'1. Order'!J76)","v":""},{"$f":"IF('1. Order'!K76=\"\",\"\",'1. Order'!K76)","v":""},{"$f":"IF('1. Order'!L76=\"\",\"\",'1. Order'!L76)","v":""},{"$f":"IF('1. Order'!N76=\"\",\"\",'1. Order'!N76)","v":""},null,null,{"$f":"'1. Order'!AV76","v":0},{"$f":"IF('1. Order'!AI76=\"\",\"\",'1. Order'!AI76)","v":""}]
[{"$f":"IF('1. Order'!B77=\"\",\"\",'1. Order'!B77)","v":""},{"$f":"IF('1. Order'!J77=\"\",\"\",'1. Order'!J77)","v":""},{"$f":"IF('1. Order'!K77=\"\",\"\",'1. Order'!K77)","v":""},{"$f":"IF('1. Order'!L77=\"\",\"\",'1. Order'!L77)","v":""},{"$f":"IF('1. Order'!N77=\"\",\"\",'1. Order'!N77)","v":""},null,null,{"$f":"'1. Order'!AV77","v":0},{"$f":"IF('1. Order'!AI77=\"\",\"\",'1. Order'!AI77)","v":""}]
[{"$f":"IF('1. Order'!B78=\"\",\"\",'1. Order'!B78)","v":""},{"$f":"IF('1. Order'!J78=\"\",\"\",'1. Order'!J78)","v":""},{"$f":"IF('1. Order'!K78=\"\",\"\",'1. Order'!K78)","v":""},{"$f":"IF('1. Order'!L78=\"\",\"\",'1. Order'!L78)","v":""},{"$f":"IF('1. Order'!N78=\"\",\"\",'1. Order'!N78)","v":""},null,null,{"$f":"'1. Order'!AV78","v":0},{"$f":"IF('1. Order'!AI78=\"\",\"\",'1. Order'!AI78)","v":""}]
[{"$f":"IF('1. Order'!B79=\"\",\"\",'1. Order'!B79)","v":""},{"$f":"IF('1. Order'!J79=\"\",\"\",'1. Order'!J79)","v":""},{"$f":"IF('1. Order'!K79=\"\",\"\",'1. Order'!K79)","v":""},{"$f":"IF('1. Order'!L79=\"\",\"\",'1. Order'!L79)","v":""},{"$f":"IF('1. Order'!N79=\"\",\"\",'1. Order'!N79)","v":""},null,null,{"$f":"'1. Order'!AV79","v":0},{"$f":"IF('1. Order'!AI79=\"\",\"\",'1. Order'!AI79)","v":""}]
[{"$f":"IF('1. Order'!B80=\"\",\"\",'1. Order'!B80)","v":""},{"$f":"IF('1. Order'!J80=\"\",\"\",'1. Order'!J80)","v":""},{"$f":"IF('1. Order'!K80=\"\",\"\",'1. Order'!K80)","v":""},{"$f":"IF('1. Order'!L80=\"\",\"\",'1. Order'!L80)","v":""},{"$f":"IF('1. Order'!N80=\"\",\"\",'1. Order'!N80)","v":""},null,null,{"$f":"'1. Order'!AV80","v":0},{"$f":"IF('1. Order'!AI80=\"\",\"\",'1. Order'!AI80)","v":""}]
[{"$f":"IF('1. Order'!B81=\"\",\"\",'1. Order'!B81)","v":""},{"$f":"IF('1. Order'!J81=\"\",\"\",'1. Order'!J81)","v":""},{"$f":"IF('1. Order'!K81=\"\",\"\",'1. Order'!K81)","v":""},{"$f":"IF('1. Order'!L81=\"\",\"\",'1. Order'!L81)","v":""},{"$f":"IF('1. Order'!N81=\"\",\"\",'1. Order'!N81)","v":""},null,null,{"$f":"'1. Order'!AV81","v":0},{"$f":"IF('1. Order'!AI81=\"\",\"\",'1. Order'!AI81)","v":""}]
[{"$f":"IF('1. Order'!B82=\"\",\"\",'1. Order'!B82)","v":""},{"$f":"IF('1. Order'!J82=\"\",\"\",'1. Order'!J82)","v":""},{"$f":"IF('1. Order'!K82=\"\",\"\",'1. Order'!K82)","v":""},{"$f":"IF('1. Order'!L82=\"\",\"\",'1. Order'!L82)","v":""},{"$f":"IF('1. Order'!N82=\"\",\"\",'1. Order'!N82)","v":""},null,null,{"$f":"'1. Order'!AV82","v":0},{"$f":"IF('1. Order'!AI82=\"\",\"\",'1. Order'!AI82)","v":""}]
[{"$f":"IF('1. Order'!B83=\"\",\"\",'1. Order'!B83)","v":""},{"$f":"IF('1. Order'!J83=\"\",\"\",'1. Order'!J83)","v":""},{"$f":"IF('1. Order'!K83=\"\",\"\",'1. Order'!K83)","v":""},{"$f":"IF('1. Order'!L83=\"\",\"\",'1. Order'!L83)","v":""},{"$f":"IF('1. Order'!N83=\"\",\"\",'1. Order'!N83)","v":""},null,null,{"$f":"'1. Order'!AV83","v":0},{"$f":"IF('1. Order'!AI83=\"\",\"\",'1. Order'!AI83)","v":""}]
[{"$f":"IF('1. Order'!B84=\"\",\"\",'1. Order'!B84)","v":""},{"$f":"IF('1. Order'!J84=\"\",\"\",'1. Order'!J84)","v":""},{"$f":"IF('1. Order'!K84=\"\",\"\",'1. Order'!K84)","v":""},{"$f":"IF('1. Order'!L84=\"\",\"\",'1. Order'!L84)","v":""},{"$f":"IF('1. Order'!N84=\"\",\"\",'1. Order'!N84)","v":""},null,null,{"$f":"'1. Order'!AV84","v":0},{"$f":"IF('1. Order'!AI84=\"\",\"\",'1. Order'!AI84)","v":""}]
[{"$f":"IF('1. Order'!B85=\"\",\"\",'1. Order'!B85)","v":""},{"$f":"IF('1. Order'!J85=\"\",\"\",'1. Order'!J85)","v":""},{"$f":"IF('1. Order'!K85=\"\",\"\",'1. Order'!K85)","v":""},{"$f":"IF('1. Order'!L85=\"\",\"\",'1. Order'!L85)","v":""},{"$f":"IF('1. Order'!N85=\"\",\"\",'1. Order'!N85)","v":""},null,null,{"$f":"'1. Order'!AV85","v":0},{"$f":"IF('1. Order'!AI85=\"\",\"\",'1. Order'!AI85)","v":""}]
[{"$f":"IF('1. Order'!B86=\"\",\"\",'1. Order'!B86)","v":""},{"$f":"IF('1. Order'!J86=\"\",\"\",'1. Order'!J86)","v":""},{"$f":"IF('1. Order'!K86=\"\",\"\",'1. Order'!K86)","v":""},{"$f":"IF('1. Order'!L86=\"\",\"\",'1. Order'!L86)","v":""},{"$f":"IF('1. Order'!N86=\"\",\"\",'1. Order'!N86)","v":""},null,null,{"$f":"'1. Order'!AV86","v":0},{"$f":"IF('1. Order'!AI86=\"\",\"\",'1. Order'!AI86)","v":""}]
[{"$f":"IF('1. Order'!B87=\"\",\"\",'1. Order'!B87)","v":""},{"$f":"IF('1. Order'!J87=\"\",\"\",'1. Order'!J87)","v":""},{"$f":"IF('1. Order'!K87=\"\",\"\",'1. Order'!K87)","v":""},{"$f":"IF('1. Order'!L87=\"\",\"\",'1. Order'!L87)","v":""},{"$f":"IF('1. Order'!N87=\"\",\"\",'1. Order'!N87)","v":""},null,null,{"$f":"'1. Order'!AV87","v":0},{"$f":"IF('1. Order'!AI87=\"\",\"\",'1. Order'!AI87)","v":""}]
[{"$f":"IF('1. Order'!B88=\"\",\"\",'1. Order'!B88)","v":""},{"$f":"IF('1. Order'!J88=\"\",\"\",'1. Order'!J88)","v":""},{"$f":"IF('1. Order'!K88=\"\",\"\",'1. Order'!K88)","v":""},{"$f":"IF('1. Order'!L88=\"\",\"\",'1. Order'!L88)","v":""},{"$f":"IF('1. Order'!N88=\"\",\"\",'1. Order'!N88)","v":""},null,null,{"$f":"'1. Order'!AV88","v":0},{"$f":"IF('1. Order'!AI88=\"\",\"\",'1. Order'!AI88)","v":""}]
[{"$f":"IF('1. Order'!B89=\"\",\"\",'1. Order'!B89)","v":""},{"$f":"IF('1. Order'!J89=\"\",\"\",'1. Order'!J89)","v":""},{"$f":"IF('1. Order'!K89=\"\",\"\",'1. Order'!K89)","v":""},{"$f":"IF('1. Order'!L89=\"\",\"\",'1. Order'!L89)","v":""},{"$f":"IF('1. Order'!N89=\"\",\"\",'1. Order'!N89)","v":""},null,null,{"$f":"'1. Order'!AV89","v":0},{"$f":"IF('1. Order'!AI89=\"\",\"\",'1. Order'!AI89)","v":""}]
[{"$f":"IF('1. Order'!B90=\"\",\"\",'1. Order'!B90)","v":""},{"$f":"IF('1. Order'!J90=\"\",\"\",'1. Order'!J90)","v":""},{"$f":"IF('1. Order'!K90=\"\",\"\",'1. Order'!K90)","v":""},{"$f":"IF('1. Order'!L90=\"\",\"\",'1. Order'!L90)","v":""},{"$f":"IF('1. Order'!N90=\"\",\"\",'1. Order'!N90)","v":""},null,null,{"$f":"'1. Order'!AV90","v":0},{"$f":"IF('1. Order'!AI90=\"\",\"\",'1. Order'!AI90)","v":""}]
[{"$f":"IF('1. Order'!B91=\"\",\"\",'1. Order'!B91)","v":""},{"$f":"IF('1. Order'!J91=\"\",\"\",'1. Order'!J91)","v":""},{"$f":"IF('1. Order'!K91=\"\",\"\",'1. Order'!K91)","v":""},{"$f":"IF('1. Order'!L91=\"\",\"\",'1. Order'!L91)","v":""},{"$f":"IF('1. Order'!N91=\"\",\"\",'1. Order'!N91)","v":""},null,null,{"$f":"'1. Order'!AV91","v":0},{"$f":"IF('1. Order'!AI91=\"\",\"\",'1. Order'!AI91)","v":""}]
[{"$f":"IF('1. Order'!B92=\"\",\"\",'1. Order'!B92)","v":""},{"$f":"IF('1. Order'!J92=\"\",\"\",'1. Order'!J92)","v":""},{"$f":"IF('1. Order'!K92=\"\",\"\",'1. Order'!K92)","v":""},{"$f":"IF('1. Order'!L92=\"\",\"\",'1. Order'!L92)","v":""},{"$f":"IF('1. Order'!N92=\"\",\"\",'1. Order'!N92)","v":""},null,null,{"$f":"'1. Order'!AV92","v":0},{"$f":"IF('1. Order'!AI92=\"\",\"\",'1. Order'!AI92)","v":""}]
[{"$f":"IF('1. Order'!B93=\"\",\"\",'1. Order'!B93)","v":""},{"$f":"IF('1. Order'!J93=\"\",\"\",'1. Order'!J93)","v":""},{"$f":"IF('1. Order'!K93=\"\",\"\",'1. Order'!K93)","v":""},{"$f":"IF('1. Order'!L93=\"\",\"\",'1. Order'!L93)","v":""},{"$f":"IF('1. Order'!N93=\"\",\"\",'1. Order'!N93)","v":""},null,null,{"$f":"'1. Order'!AV93","v":0},{"$f":"IF('1. Order'!AI93=\"\",\"\",'1. Order'!AI93)","v":""}]
[{"$f":"IF('1. Order'!B94=\"\",\"\",'1. Order'!B94)","v":""},{"$f":"IF('1. Order'!J94=\"\",\"\",'1. Order'!J94)","v":""},{"$f":"IF('1. Order'!K94=\"\",\"\",'1. Order'!K94)","v":""},{"$f":"IF('1. Order'!L94=\"\",\"\",'1. Order'!L94)","v":""},{"$f":"IF('1. Order'!N94=\"\",\"\",'1. Order'!N94)","v":""},null,null,{"$f":"'1. Order'!AV94","v":0},{"$f":"IF('1. Order'!AI94=\"\",\"\",'1. Order'!AI94)","v":""}]
[{"$f":"IF('1. Order'!B95=\"\",\"\",'1. Order'!B95)","v":""},{"$f":"IF('1. Order'!J95=\"\",\"\",'1. Order'!J95)","v":""},{"$f":"IF('1. Order'!K95=\"\",\"\",'1. Order'!K95)","v":""},{"$f":"IF('1. Order'!L95=\"\",\"\",'1. Order'!L95)","v":""},{"$f":"IF('1. Order'!N95=\"\",\"\",'1. Order'!N95)","v":""},null,null,{"$f":"'1. Order'!AV95","v":0},{"$f":"IF('1. Order'!AI95=\"\",\"\",'1. Order'!AI95)","v":""}]
[{"$f":"IF('1. Order'!B96=\"\",\"\",'1. Order'!B96)","v":""},{"$f":"IF('1. Order'!J96=\"\",\"\",'1. Order'!J96)","v":""},{"$f":"IF('1. Order'!K96=\"\",\"\",'1. Order'!K96)","v":""},{"$f":"IF('1. Order'!L96=\"\",\"\",'1. Order'!L96)","v":""},{"$f":"IF('1. Order'!N96=\"\",\"\",'1. Order'!N96)","v":""},null,null,{"$f":"'1. Order'!AV96","v":0},{"$f":"IF('1. Order'!AI96=\"\",\"\",'1. Order'!AI96)","v":""}]
[{"$f":"IF('1. Order'!B97=\"\",\"\",'1. Order'!B97)","v":""},{"$f":"IF('1. Order'!J97=\"\",\"\",'1. Order'!J97)","v":""},{"$f":"IF('1. Order'!K97=\"\",\"\",'1. Order'!K97)","v":""},{"$f":"IF('1. Order'!L97=\"\",\"\",'1. Order'!L97)","v":""},{"$f":"IF('1. Order'!N97=\"\",\"\",'1. Order'!N97)","v":""},null,null,{"$f":"'1. Order'!AV97","v":0},{"$f":"IF('1. Order'!AI97=\"\",\"\",'1. Order'!AI97)","v":""}]
[{"$f":"IF('1. Order'!B98=\"\",\"\",'1. Order'!B98)","v":""},{"$f":"IF('1. Order'!J98=\"\",\"\",'1. Order'!J98)","v":""},{"$f":"IF('1. Order'!K98=\"\",\"\",'1. Order'!K98)","v":""},{"$f":"IF('1. Order'!L98=\"\",\"\",'1. Order'!L98)","v":""},{"$f":"IF('1. Order'!N98=\"\",\"\",'1. Order'!N98)","v":""},null,null,{"$f":"'1. Order'!AV98","v":0},{"$f":"IF('1. Order'!AI98=\"\",\"\",'1. Order'!AI98)","v":""}]
[{"$f":"IF('1. Order'!B99=\"\",\"\",'1. Order'!B99)","v":""},{"$f":"IF('1. Order'!J99=\"\",\"\",'1. Order'!J99)","v":""},{"$f":"IF('1. Order'!K99=\"\",\"\",'1. Order'!K99)","v":""},{"$f":"IF('1. Order'!L99=\"\",\"\",'1. Order'!L99)","v":""},{"$f":"IF('1. Order'!N99=\"\",\"\",'1. Order'!N99)","v":""},null,null,{"$f":"'1. Order'!AV99","v":0},{"$f":"IF('1. Order'!AI99=\"\",\"\",'1. Order'!AI99)","v":""}]
[{"$f":"IF('1. Order'!B100=\"\",\"\",'1. Order'!B100)","v":""},{"$f":"IF('1. Order'!J100=\"\",\"\",'1. Order'!J100)","v":""},{"$f":"IF('1. Order'!K100=\"\",\"\",'1. Order'!K100)","v":""},{"$f":"IF('1. Order'!L100=\"\",\"\",'1. Order'!L100)","v":""},{"$f":"IF('1. Order'!N100=\"\",\"\",'1. Order'!N100)","v":""},null,null,{"$f":"'1. Order'!AV100","v":0},{"$f":"IF('1. Order'!AI100=\"\",\"\",'1. Order'!AI100)","v":""}]
[{"$f":"IF('1. Order'!B101=\"\",\"\",'1. Order'!B101)","v":""},{"$f":"IF('1. Order'!J101=\"\",\"\",'1. Order'!J101)","v":""},{"$f":"IF('1. Order'!K101=\"\",\"\",'1. Order'!K101)","v":""},{"$f":"IF('1. Order'!L101=\"\",\"\",'1. Order'!L101)","v":""},{"$f":"IF('1. Order'!N101=\"\",\"\",'1. Order'!N101)","v":""},null,null,{"$f":"'1. Order'!AV101","v":0},{"$f":"IF('1. Order'!AI101=\"\",\"\",'1. Order'!AI101)","v":""}]
[{"$f":"IF('1. Order'!B102=\"\",\"\",'1. Order'!B102)","v":""},{"$f":"IF('1. Order'!J102=\"\",\"\",'1. Order'!J102)","v":""},{"$f":"IF('1. Order'!K102=\"\",\"\",'1. Order'!K102)","v":""},{"$f":"IF('1. Order'!L102=\"\",\"\",'1. Order'!L102)","v":""},{"$f":"IF('1. Order'!N102=\"\",\"\",'1. Order'!N102)","v":""},null,null,{"$f":"'1. Order'!AV102","v":0},{"$f":"IF('1. Order'!AI102=\"\",\"\",'1. Order'!AI102)","v":""}]
[{"$f":"IF('1. Order'!B103=\"\",\"\",'1. Order'!B103)","v":""},{"$f":"IF('1. Order'!J103=\"\",\"\",'1. Order'!J103)","v":""},{"$f":"IF('1. Order'!K103=\"\",\"\",'1. Order'!K103)","v":""},{"$f":"IF('1. Order'!L103=\"\",\"\",'1. Order'!L103)","v":""},{"$f":"IF('1. Order'!N103=\"\",\"\",'1. Order'!N103)","v":""},null,null,{"$f":"'1. Order'!AV103","v":0},{"$f":"IF('1. Order'!AI103=\"\",\"\",'1. Order'!AI103)","v":""}]
[{"$f":"IF('1. Order'!B104=\"\",\"\",'1. Order'!B104)","v":""},{"$f":"IF('1. Order'!J104=\"\",\"\",'1. Order'!J104)","v":""},{"$f":"IF('1. Order'!K104=\"\",\"\",'1. Order'!K104)","v":""},{"$f":"IF('1. Order'!L104=\"\",\"\",'1. Order'!L104)","v":""},{"$f":"IF('1. Order'!N104=\"\",\"\",'1. Order'!N104)","v":""},null,null,{"$f":"'1. Order'!AV104","v":0},{"$f":"IF('1. Order'!AI104=\"\",\"\",'1. Order'!AI104)","v":""}]
[{"$f":"IF('1. Order'!B105=\"\",\"\",'1. Order'!B105)","v":""},{"$f":"IF('1. Order'!J105=\"\",\"\",'1. Order'!J105)","v":""},{"$f":"IF('1. Order'!K105=\"\",\"\",'1. Order'!K105)","v":""},{"$f":"IF('1. Order'!L105=\"\",\"\",'1. Order'!L105)","v":""},{"$f":"IF('1. Order'!N105=\"\",\"\",'1. Order'!N105)","v":""},null,null,{"$f":"'1. Order'!AV105","v":0},{"$f":"IF('1. Order'!AI105=\"\",\"\",'1. Order'!AI105)","v":""}]
[{"$f":"IF('1. Order'!B106=\"\",\"\",'1. Order'!B106)","v":""},{"$f":"IF('1. Order'!J106=\"\",\"\",'1. Order'!J106)","v":""},{"$f":"IF('1. Order'!K106=\"\",\"\",'1. Order'!K106)","v":""},{"$f":"IF('1. Order'!L106=\"\",\"\",'1. Order'!L106)","v":""},{"$f":"IF('1. Order'!N106=\"\",\"\",'1. Order'!N106)","v":""},null,null,{"$f":"'1. Order'!AV106","v":0},{"$f":"IF('1. Order'!AI106=\"\",\"\",'1. Order'!AI106)","v":""}]
[{"$f":"IF('1. Order'!B107=\"\",\"\",'1. Order'!B107)","v":""},{"$f":"IF('1. Order'!J107=\"\",\"\",'1. Order'!J107)","v":""},{"$f":"IF('1. Order'!K107=\"\",\"\",'1. Order'!K107)","v":""},{"$f":"IF('1. Order'!L107=\"\",\"\",'1. Order'!L107)","v":""},{"$f":"IF('1. Order'!N107=\"\",\"\",'1. Order'!N107)","v":""},null,null,{"$f":"'1. Order'!AV107","v":0},{"$f":"IF('1. Order'!AI107=\"\",\"\",'1. Order'!AI107)","v":""}]
[{"$f":"IF('1. Order'!B108=\"\",\"\",'1. Order'!B108)","v":""},{"$f":"IF('1. Order'!J108=\"\",\"\",'1. Order'!J108)","v":""},{"$f":"IF('1. Order'!K108=\"\",\"\",'1. Order'!K108)","v":""},{"$f":"IF('1. Order'!L108=\"\",\"\",'1. Order'!L108)","v":""},{"$f":"IF('1. Order'!N108=\"\",\"\",'1. Order'!N108)","v":""},null,null,{"$f":"'1. Order'!AV108","v":0},{"$f":"IF('1. Order'!AI108=\"\",\"\",'1. Order'!AI108)","v":""}]
[{"$f":"IF('1. Order'!B109=\"\",\"\",'1. Order'!B109)","v":""},{"$f":"IF('1. Order'!J109=\"\",\"\",'1. Order'!J109)","v":""},{"$f":"IF('1. Order'!K109=\"\",\"\",'1. Order'!K109)","v":""},{"$f":"IF('1. Order'!L109=\"\",\"\",'1. Order'!L109)","v":""},{"$f":"IF('1. Order'!N109=\"\",\"\",'1. Order'!N109)","v":""},null,null,{"$f":"'1. Order'!AV109","v":0},{"$f":"IF('1. Order'!AI109=\"\",\"\",'1. Order'!AI109)","v":""}]
[{"$f":"IF('1. Order'!B110=\"\",\"\",'1. Order'!B110)","v":""},{"$f":"IF('1. Order'!J110=\"\",\"\",'1. Order'!J110)","v":""},{"$f":"IF('1. Order'!K110=\"\",\"\",'1. Order'!K110)","v":""},{"$f":"IF('1. Order'!L110=\"\",\"\",'1. Order'!L110)","v":""},{"$f":"IF('1. Order'!N110=\"\",\"\",'1. Order'!N110)","v":""},null,null,{"$f":"'1. Order'!AV110","v":0},{"$f":"IF('1. Order'!AI110=\"\",\"\",'1. Order'!AI110)","v":""}]
[{"$f":"IF('1. Order'!B111=\"\",\"\",'1. Order'!B111)","v":""},{"$f":"IF('1. Order'!J111=\"\",\"\",'1. Order'!J111)","v":""},{"$f":"IF('1. Order'!K111=\"\",\"\",'1. Order'!K111)","v":""},{"$f":"IF('1. Order'!L111=\"\",\"\",'1. Order'!L111)","v":""},{"$f":"IF('1. Order'!N111=\"\",\"\",'1. Order'!N111)","v":""},null,null,{"$f":"'1. Order'!AV111","v":0},{"$f":"IF('1. Order'!AI111=\"\",\"\",'1. Order'!AI111)","v":""}]
[{"$f":"IF('1. Order'!B112=\"\",\"\",'1. Order'!B112)","v":""},{"$f":"IF('1. Order'!J112=\"\",\"\",'1. Order'!J112)","v":""},{"$f":"IF('1. Order'!K112=\"\",\"\",'1. Order'!K112)","v":""},{"$f":"IF('1. Order'!L112=\"\",\"\",'1. Order'!L112)","v":""},{"$f":"IF('1. Order'!N112=\"\",\"\",'1. Order'!N112)","v":""},null,null,{"$f":"'1. Order'!AV112","v":0},{"$f":"IF('1. Order'!AI112=\"\",\"\",'1. Order'!AI112)","v":""}]
[{"$f":"IF('1. Order'!B113=\"\",\"\",'1. Order'!B113)","v":""},{"$f":"IF('1. Order'!J113=\"\",\"\",'1. Order'!J113)","v":""},{"$f":"IF('1. Order'!K113=\"\",\"\",'1. Order'!K113)","v":""},{"$f":"IF('1. Order'!L113=\"\",\"\",'1. Order'!L113)","v":""},{"$f":"IF('1. Order'!N113=\"\",\"\",'1. Order'!N113)","v":""},null,null,{"$f":"'1. Order'!AV113","v":0},{"$f":"IF('1. Order'!AI113=\"\",\"\",'1. Order'!AI113)","v":""}]
[{"$f":"IF('1. Order'!B114=\"\",\"\",'1. Order'!B114)","v":""},{"$f":"IF('1. Order'!J114=\"\",\"\",'1. Order'!J114)","v":""},{"$f":"IF('1. Order'!K114=\"\",\"\",'1. Order'!K114)","v":""},{"$f":"IF('1. Order'!L114=\"\",\"\",'1. Order'!L114)","v":""},{"$f":"IF('1. Order'!N114=\"\",\"\",'1. Order'!N114)","v":""},null,null,{"$f":"'1. Order'!AV114","v":0},{"$f":"IF('1. Order'!AI114=\"\",\"\",'1. Order'!AI114)","v":""}]
[{"$f":"IF('1. Order'!B115=\"\",\"\",'1. Order'!B115)","v":""},{"$f":"IF('1. Order'!J115=\"\",\"\",'1. Order'!J115)","v":""},{"$f":"IF('1. Order'!K115=\"\",\"\",'1. Order'!K115)","v":""},{"$f":"IF('1. Order'!L115=\"\",\"\",'1. Order'!L115)","v":""},{"$f":"IF('1. Order'!N115=\"\",\"\",'1. Order'!N115)","v":""},null,null,{"$f":"'1. Order'!AV115","v":0},{"$f":"IF('1. Order'!AI115=\"\",\"\",'1. Order'!AI115)","v":""}]
[{"$f":"IF('1. Order'!B116=\"\",\"\",'1. Order'!B116)","v":""},{"$f":"IF('1. Order'!J116=\"\",\"\",'1. Order'!J116)","v":""},{"$f":"IF('1. Order'!K116=\"\",\"\",'1. Order'!K116)","v":""},{"$f":"IF('1. Order'!L116=\"\",\"\",'1. Order'!L116)","v":""},{"$f":"IF('1. Order'!N116=\"\",\"\",'1. Order'!N116)","v":""},null,null,{"$f":"'1. Order'!AV116","v":0},{"$f":"IF('1. Order'!AI116=\"\",\"\",'1. Order'!AI116)","v":""}]
[{"$f":"IF('1. Order'!B117=\"\",\"\",'1. Order'!B117)","v":""},{"$f":"IF('1. Order'!J117=\"\",\"\",'1. Order'!J117)","v":""},{"$f":"IF('1. Order'!K117=\"\",\"\",'1. Order'!K117)","v":""},{"$f":"IF('1. Order'!L117=\"\",\"\",'1. Order'!L117)","v":""},{"$f":"IF('1. Order'!N117=\"\",\"\",'1. Order'!N117)","v":""},null,null,{"$f":"'1. Order'!AV117","v":0},{"$f":"IF('1. Order'!AI117=\"\",\"\",'1. Order'!AI117)","v":""}]
[{"$f":"IF('1. Order'!B118=\"\",\"\",'1. Order'!B118)","v":""},{"$f":"IF('1. Order'!J118=\"\",\"\",'1. Order'!J118)","v":""},{"$f":"IF('1. Order'!K118=\"\",\"\",'1. Order'!K118)","v":""},{"$f":"IF('1. Order'!L118=\"\",\"\",'1. Order'!L118)","v":""},{"$f":"IF('1. Order'!N118=\"\",\"\",'1. Order'!N118)","v":""},null,null,{"$f":"'1. Order'!AV118","v":0},{"$f":"IF('1. Order'!AI118=\"\",\"\",'1. Order'!AI118)","v":""}]
[{"$f":"IF('1. Order'!B119=\"\",\"\",'1. Order'!B119)","v":""},{"$f":"IF('1. Order'!J119=\"\",\"\",'1. Order'!J119)","v":""},{"$f":"IF('1. Order'!K119=\"\",\"\",'1. Order'!K119)","v":""},{"$f":"IF('1. Order'!L119=\"\",\"\",'1. Order'!L119)","v":""},{"$f":"IF('1. Order'!N119=\"\",\"\",'1. Order'!N119)","v":""},null,null,{"$f":"'1. Order'!AV119","v":0},{"$f":"IF('1. Order'!AI119=\"\",\"\",'1. Order'!AI119)","v":""}]
[{"$f":"IF('1. Order'!B120=\"\",\"\",'1. Order'!B120)","v":""},{"$f":"IF('1. Order'!J120=\"\",\"\",'1. Order'!J120)","v":""},{"$f":"IF('1. Order'!K120=\"\",\"\",'1. Order'!K120)","v":""},{"$f":"IF('1. Order'!L120=\"\",\"\",'1. Order'!L120)","v":""},{"$f":"IF('1. Order'!N120=\"\",\"\",'1. Order'!N120)","v":""},null,null,{"$f":"'1. Order'!AV120","v":0},{"$f":"IF('1. Order'!AI120=\"\",\"\",'1. Order'!AI120)","v":""}]
[{"$f":"IF('1. Order'!B121=\"\",\"\",'1. Order'!B121)","v":""},{"$f":"IF('1. Order'!J121=\"\",\"\",'1. Order'!J121)","v":""},{"$f":"IF('1. Order'!K121=\"\",\"\",'1. Order'!K121)","v":""},{"$f":"IF('1. Order'!L121=\"\",\"\",'1. Order'!L121)","v":""},{"$f":"IF('1. Order'!N121=\"\",\"\",'1. Order'!N121)","v":""},null,null,{"$f":"'1. Order'!AV121","v":0},{"$f":"IF('1. Order'!AI121=\"\",\"\",'1. Order'!AI121)","v":""}]
[{"$f":"IF('1. Order'!B122=\"\",\"\",'1. Order'!B122)","v":""},{"$f":"IF('1. Order'!J122=\"\",\"\",'1. Order'!J122)","v":""},{"$f":"IF('1. Order'!K122=\"\",\"\",'1. Order'!K122)","v":""},{"$f":"IF('1. Order'!L122=\"\",\"\",'1. Order'!L122)","v":""},{"$f":"IF('1. Order'!N122=\"\",\"\",'1. Order'!N122)","v":""},null,null,{"$f":"'1. Order'!AV122","v":0},{"$f":"IF('1. Order'!AI122=\"\",\"\",'1. Order'!AI122)","v":""}]
[{"$f":"IF('1. Order'!B123=\"\",\"\",'1. Order'!B123)","v":""},{"$f":"IF('1. Order'!J123=\"\",\"\",'1. Order'!J123)","v":""},{"$f":"IF('1. Order'!K123=\"\",\"\",'1. Order'!K123)","v":""},{"$f":"IF('1. Order'!L123=\"\",\"\",'1. Order'!L123)","v":""},{"$f":"IF('1. Order'!N123=\"\",\"\",'1. Order'!N123)","v":""},null,null,{"$f":"'1. Order'!AV123","v":0},{"$f":"IF('1. Order'!AI123=\"\",\"\",'1. Order'!AI123)","v":""}]
[{"$f":"IF('1. Order'!B124=\"\",\"\",'1. Order'!B124)","v":""},{"$f":"IF('1. Order'!J124=\"\",\"\",'1. Order'!J124)","v":""},{"$f":"IF('1. Order'!K124=\"\",\"\",'1. Order'!K124)","v":""},{"$f":"IF('1. Order'!L124=\"\",\"\",'1. Order'!L124)","v":""},{"$f":"IF('1. Order'!N124=\"\",\"\",'1. Order'!N124)","v":""},null,null,{"$f":"'1. Order'!AV124","v":0},{"$f":"IF('1. Order'!AI124=\"\",\"\",'1. Order'!AI124)","v":""}]
[{"$f":"IF('1. Order'!B125=\"\",\"\",'1. Order'!B125)","v":""},{"$f":"IF('1. Order'!J125=\"\",\"\",'1. Order'!J125)","v":""},{"$f":"IF('1. Order'!K125=\"\",\"\",'1. Order'!K125)","v":""},{"$f":"IF('1. Order'!L125=\"\",\"\",'1. Order'!L125)","v":""},{"$f":"IF('1. Order'!N125=\"\",\"\",'1. Order'!N125)","v":""},null,null,{"$f":"'1. Order'!AV125","v":0},{"$f":"IF('1. Order'!AI125=\"\",\"\",'1. Order'!AI125)","v":""}]
[{"$f":"IF('1. Order'!B126=\"\",\"\",'1. Order'!B126)","v":""},{"$f":"IF('1. Order'!J126=\"\",\"\",'1. Order'!J126)","v":""},{"$f":"IF('1. Order'!K126=\"\",\"\",'1. Order'!K126)","v":""},{"$f":"IF('1. Order'!L126=\"\",\"\",'1. Order'!L126)","v":""},{"$f":"IF('1. Order'!N126=\"\",\"\",'1. Order'!N126)","v":""},null,null,{"$f":"'1. Order'!AV126","v":0},{"$f":"IF('1. Order'!AI126=\"\",\"\",'1. Order'!AI126)","v":""}]
[{"$f":"IF('1. Order'!B127=\"\",\"\",'1. Order'!B127)","v":""},{"$f":"IF('1. Order'!J127=\"\",\"\",'1. Order'!J127)","v":""},{"$f":"IF('1. Order'!K127=\"\",\"\",'1. Order'!K127)","v":""},{"$f":"IF('1. Order'!L127=\"\",\"\",'1. Order'!L127)","v":""},{"$f":"IF('1. Order'!N127=\"\",\"\",'1. Order'!N127)","v":""},null,null,{"$f":"'1. Order'!AV127","v":0},{"$f":"IF('1. Order'!AI127=\"\",\"\",'1. Order'!AI127)","v":""}]
[{"$f":"IF('1. Order'!B128=\"\",\"\",'1. Order'!B128)","v":""},{"$f":"IF('1. Order'!J128=\"\",\"\",'1. Order'!J128)","v":""},{"$f":"IF('1. Order'!K128=\"\",\"\",'1. Order'!K128)","v":""},{"$f":"IF('1. Order'!L128=\"\",\"\",'1. Order'!L128)","v":""},{"$f":"IF('1. Order'!N128=\"\",\"\",'1. Order'!N128)","v":""},null,null,{"$f":"'1. Order'!AV128","v":0},{"$f":"IF('1. Order'!AI128=\"\",\"\",'1. Order'!AI128)","v":""}]
[{"$f":"IF('1. Order'!B129=\"\",\"\",'1. Order'!B129)","v":""},{"$f":"IF('1. Order'!J129=\"\",\"\",'1. Order'!J129)","v":""},{"$f":"IF('1. Order'!K129=\"\",\"\",'1. Order'!K129)","v":""},{"$f":"IF('1. Order'!L129=\"\",\"\",'1. Order'!L129)","v":""},{"$f":"IF('1. Order'!N129=\"\",\"\",'1. Order'!N129)","v":""},null,null,{"$f":"'1. Order'!AV129","v":0},{"$f":"IF('1. Order'!AI129=\"\",\"\",'1. Order'!AI129)","v":""}]
[{"$f":"IF('1. Order'!B130=\"\",\"\",'1. Order'!B130)","v":""},{"$f":"IF('1. Order'!J130=\"\",\"\",'1. Order'!J130)","v":""},{"$f":"IF('1. Order'!K130=\"\",\"\",'1. Order'!K130)","v":""},{"$f":"IF('1. Order'!L130=\"\",\"\",'1. Order'!L130)","v":""},{"$f":"IF('1. Order'!N130=\"\",\"\",'1. Order'!N130)","v":""},null,null,{"$f":"'1. Order'!AV130","v":0},{"$f":"IF('1. Order'!AI130=\"\",\"\",'1. Order'!AI130)","v":""}]
[{"$f":"IF('1. Order'!B131=\"\",\"\",'1. Order'!B131)","v":""},{"$f":"IF('1. Order'!J131=\"\",\"\",'1. Order'!J131)","v":""},{"$f":"IF('1. Order'!K131=\"\",\"\",'1. Order'!K131)","v":""},{"$f":"IF('1. Order'!L131=\"\",\"\",'1. Order'!L131)","v":""},{"$f":"IF('1. Order'!N131=\"\",\"\",'1. Order'!N131)","v":""},null,null,{"$f":"'1. Order'!AV131","v":0},{"$f":"IF('1. Order'!AI131=\"\",\"\",'1. Order'!AI131)","v":""}]
[{"$f":"IF('1. Order'!B132=\"\",\"\",'1. Order'!B132)","v":""},{"$f":"IF('1. Order'!J132=\"\",\"\",'1. Order'!J132)","v":""},{"$f":"IF('1. Order'!K132=\"\",\"\",'1. Order'!K132)","v":""},{"$f":"IF('1. Order'!L132=\"\",\"\",'1. Order'!L132)","v":""},{"$f":"IF('1. Order'!N132=\"\",\"\",'1. Order'!N132)","v":""},null,null,{"$f":"'1. Order'!AV132","v":0},{"$f":"IF('1. Order'!AI132=\"\",\"\",'1. Order'!AI132)","v":""}]
[{"$f":"IF('1. Order'!B133=\"\",\"\",'1. Order'!B133)","v":""},{"$f":"IF('1. Order'!J133=\"\",\"\",'1. Order'!J133)","v":""},{"$f":"IF('1. Order'!K133=\"\",\"\",'1. Order'!K133)","v":""},{"$f":"IF('1. Order'!L133=\"\",\"\",'1. Order'!L133)","v":""},{"$f":"IF('1. Order'!N133=\"\",\"\",'1. Order'!N133)","v":""},null,null,{"$f":"'1. Order'!AV133","v":0},{"$f":"IF('1. Order'!AI133=\"\",\"\",'1. Order'!AI133)","v":""}]
[{"$f":"IF('1. Order'!B134=\"\",\"\",'1. Order'!B134)","v":""},{"$f":"IF('1. Order'!J134=\"\",\"\",'1. Order'!J134)","v":""},{"$f":"IF('1. Order'!K134=\"\",\"\",'1. Order'!K134)","v":""},{"$f":"IF('1. Order'!L134=\"\",\"\",'1. Order'!L134)","v":""},{"$f":"IF('1. Order'!N134=\"\",\"\",'1. Order'!N134)","v":""},null,null,{"$f":"'1. Order'!AV134","v":0},{"$f":"IF('1. Order'!AI134=\"\",\"\",'1. Order'!AI134)","v":""}]
[{"$f":"IF('1. Order'!B135=\"\",\"\",'1. Order'!B135)","v":""},{"$f":"IF('1. Order'!J135=\"\",\"\",'1. Order'!J135)","v":""},{"$f":"IF('1. Order'!K135=\"\",\"\",'1. Order'!K135)","v":""},{"$f":"IF('1. Order'!L135=\"\",\"\",'1. Order'!L135)","v":""},{"$f":"IF('1. Order'!N135=\"\",\"\",'1. Order'!N135)","v":""},null,null,{"$f":"'1. Order'!AV135","v":0},{"$f":"IF('1. Order'!AI135=\"\",\"\",'1. Order'!AI135)","v":""}]
[{"$f":"IF('1. Order'!B136=\"\",\"\",'1. Order'!B136)","v":""},{"$f":"IF('1. Order'!J136=\"\",\"\",'1. Order'!J136)","v":""},{"$f":"IF('1. Order'!K136=\"\",\"\",'1. Order'!K136)","v":""},{"$f":"IF('1. Order'!L136=\"\",\"\",'1. Order'!L136)","v":""},{"$f":"IF('1. Order'!N136=\"\",\"\",'1. Order'!N136)","v":""},null,null,{"$f":"'1. Order'!AV136","v":0},{"$f":"IF('1. Order'!AI136=\"\",\"\",'1. Order'!AI136)","v":""}]
[{"$f":"IF('1. Order'!B137=\"\",\"\",'1. Order'!B137)","v":""},{"$f":"IF('1. Order'!J137=\"\",\"\",'1. Order'!J137)","v":""},{"$f":"IF('1. Order'!K137=\"\",\"\",'1. Order'!K137)","v":""},{"$f":"IF('1. Order'!L137=\"\",\"\",'1. Order'!L137)","v":""},{"$f":"IF('1. Order'!N137=\"\",\"\",'1. Order'!N137)","v":""},null,null,{"$f":"'1. Order'!AV137","v":0},{"$f":"IF('1. Order'!AI137=\"\",\"\",'1. Order'!AI137)","v":""}]
[{"$f":"IF('1. Order'!B138=\"\",\"\",'1. Order'!B138)","v":""},{"$f":"IF('1. Order'!J138=\"\",\"\",'1. Order'!J138)","v":""},{"$f":"IF('1. Order'!K138=\"\",\"\",'1. Order'!K138)","v":""},{"$f":"IF('1. Order'!L138=\"\",\"\",'1. Order'!L138)","v":""},{"$f":"IF('1. Order'!N138=\"\",\"\",'1. Order'!N138)","v":""},null,null,{"$f":"'1. Order'!AV138","v":0},{"$f":"IF('1. Order'!AI138=\"\",\"\",'1. Order'!AI138)","v":""}]
[{"$f":"IF('1. Order'!B139=\"\",\"\",'1. Order'!B139)","v":""},{"$f":"IF('1. Order'!J139=\"\",\"\",'1. Order'!J139)","v":""},{"$f":"IF('1. Order'!K139=\"\",\"\",'1. Order'!K139)","v":""},{"$f":"IF('1. Order'!L139=\"\",\"\",'1. Order'!L139)","v":""},{"$f":"IF('1. Order'!N139=\"\",\"\",'1. Order'!N139)","v":""},null,null,{"$f":"'1. Order'!AV139","v":0},{"$f":"IF('1. Order'!AI139=\"\",\"\",'1. Order'!AI139)","v":""}]
[{"$f":"IF('1. Order'!B140=\"\",\"\",'1. Order'!B140)","v":""},{"$f":"IF('1. Order'!J140=\"\",\"\",'1. Order'!J140)","v":""},{"$f":"IF('1. Order'!K140=\"\",\"\",'1. Order'!K140)","v":""},{"$f":"IF('1. Order'!L140=\"\",\"\",'1. Order'!L140)","v":""},{"$f":"IF('1. Order'!N140=\"\",\"\",'1. Order'!N140)","v":""},null,null,{"$f":"'1. Order'!AV140","v":0},{"$f":"IF('1. Order'!AI140=\"\",\"\",'1. Order'!AI140)","v":""}]
[{"$f":"IF('1. Order'!B141=\"\",\"\",'1. Order'!B141)","v":""},{"$f":"IF('1. Order'!J141=\"\",\"\",'1. Order'!J141)","v":""},{"$f":"IF('1. Order'!K141=\"\",\"\",'1. Order'!K141)","v":""},{"$f":"IF('1. Order'!L141=\"\",\"\",'1. Order'!L141)","v":""},{"$f":"IF('1. Order'!N141=\"\",\"\",'1. Order'!N141)","v":""},null,null,{"$f":"'1. Order'!AV141","v":0},{"$f":"IF('1. Order'!AI141=\"\",\"\",'1. Order'!AI141)","v":""}]
[{"$f":"IF('1. Order'!B142=\"\",\"\",'1. Order'!B142)","v":""},{"$f":"IF('1. Order'!J142=\"\",\"\",'1. Order'!J142)","v":""},{"$f":"IF('1. Order'!K142=\"\",\"\",'1. Order'!K142)","v":""},{"$f":"IF('1. Order'!L142=\"\",\"\",'1. Order'!L142)","v":""},{"$f":"IF('1. Order'!N142=\"\",\"\",'1. Order'!N142)","v":""},null,null,{"$f":"'1. Order'!AV142","v":0},{"$f":"IF('1. Order'!AI142=\"\",\"\",'1. Order'!AI142)","v":""}]
[{"$f":"IF('1. Order'!B143=\"\",\"\",'1. Order'!B143)","v":""},{"$f":"IF('1. Order'!J143=\"\",\"\",'1. Order'!J143)","v":""},{"$f":"IF('1. Order'!K143=\"\",\"\",'1. Order'!K143)","v":""},{"$f":"IF('1. Order'!L143=\"\",\"\",'1. Order'!L143)","v":""},{"$f":"IF('1. Order'!N143=\"\",\"\",'1. Order'!N143)","v":""},null,null,{"$f":"'1. Order'!AV143","v":0},{"$f":"IF('1. Order'!AI143=\"\",\"\",'1. Order'!AI143)","v":""}]
[{"$f":"IF('1. Order'!B144=\"\",\"\",'1. Order'!B144)","v":""},{"$f":"IF('1. Order'!J144=\"\",\"\",'1. Order'!J144)","v":""},{"$f":"IF('1. Order'!K144=\"\",\"\",'1. Order'!K144)","v":""},{"$f":"IF('1. Order'!L144=\"\",\"\",'1. Order'!L144)","v":""},{"$f":"IF('1. Order'!N144=\"\",\"\",'1. Order'!N144)","v":""},null,null,{"$f":"'1. Order'!AV144","v":0},{"$f":"IF('1. Order'!AI144=\"\",\"\",'1. Order'!AI144)","v":""}]
[{"$f":"IF('1. Order'!B145=\"\",\"\",'1. Order'!B145)","v":""},{"$f":"IF('1. Order'!J145=\"\",\"\",'1. Order'!J145)","v":""},{"$f":"IF('1. Order'!K145=\"\",\"\",'1. Order'!K145)","v":""},{"$f":"IF('1. Order'!L145=\"\",\"\",'1. Order'!L145)","v":""},{"$f":"IF('1. Order'!N145=\"\",\"\",'1. Order'!N145)","v":""},null,null,{"$f":"'1. Order'!AV145","v":0},{"$f":"IF('1. Order'!AI145=\"\",\"\",'1. Order'!AI145)","v":""}]
[{"$f":"IF('1. Order'!B146=\"\",\"\",'1. Order'!B146)","v":""},{"$f":"IF('1. Order'!J146=\"\",\"\",'1. Order'!J146)","v":""},{"$f":"IF('1. Order'!K146=\"\",\"\",'1. Order'!K146)","v":""},{"$f":"IF('1. Order'!L146=\"\",\"\",'1. Order'!L146)","v":""},{"$f":"IF('1. Order'!N146=\"\",\"\",'1. Order'!N146)","v":""},null,null,{"$f":"'1. Order'!AV146","v":0},{"$f":"IF('1. Order'!AI146=\"\",\"\",'1. Order'!AI146)","v":""}]
[{"$f":"IF('1. Order'!B147=\"\",\"\",'1. Order'!B147)","v":""},{"$f":"IF('1. Order'!J147=\"\",\"\",'1. Order'!J147)","v":""},{"$f":"IF('1. Order'!K147=\"\",\"\",'1. Order'!K147)","v":""},{"$f":"IF('1. Order'!L147=\"\",\"\",'1. Order'!L147)","v":""},{"$f":"IF('1. Order'!N147=\"\",\"\",'1. Order'!N147)","v":""},null,null,{"$f":"'1. Order'!AV147","v":0},{"$f":"IF('1. Order'!AI147=\"\",\"\",'1. Order'!AI147)","v":""}]
[{"$f":"IF('1. Order'!B148=\"\",\"\",'1. Order'!B148)","v":""},{"$f":"IF('1. Order'!J148=\"\",\"\",'1. Order'!J148)","v":""},{"$f":"IF('1. Order'!K148=\"\",\"\",'1. Order'!K148)","v":""},{"$f":"IF('1. Order'!L148=\"\",\"\",'1. Order'!L148)","v":""},{"$f":"IF('1. Order'!N148=\"\",\"\",'1. Order'!N148)","v":""},null,null,{"$f":"'1. Order'!AV148","v":0},{"$f":"IF('1. Order'!AI148=\"\",\"\",'1. Order'!AI148)","v":""}]
[{"$f":"IF('1. Order'!B149=\"\",\"\",'1. Order'!B149)","v":""},{"$f":"IF('1. Order'!J149=\"\",\"\",'1. Order'!J149)","v":""},{"$f":"IF('1. Order'!K149=\"\",\"\",'1. Order'!K149)","v":""},{"$f":"IF('1. Order'!L149=\"\",\"\",'1. Order'!L149)","v":""},{"$f":"IF('1. Order'!N149=\"\",\"\",'1. Order'!N149)","v":""},null,null,{"$f":"'1. Order'!AV149","v":0},{"$f":"IF('1. Order'!AI149=\"\",\"\",'1. Order'!AI149)","v":""}]
[{"$f":"IF('1. Order'!B150=\"\",\"\",'1. Order'!B150)","v":""},{"$f":"IF('1. Order'!J150=\"\",\"\",'1. Order'!J150)","v":""},{"$f":"IF('1. Order'!K150=\"\",\"\",'1. Order'!K150)","v":""},{"$f":"IF('1. Order'!L150=\"\",\"\",'1. Order'!L150)","v":""},{"$f":"IF('1. Order'!N150=\"\",\"\",'1. Order'!N150)","v":""},null,null,{"$f":"'1. Order'!AV150","v":0},{"$f":"IF('1. Order'!AI150=\"\",\"\",'1. Order'!AI150)","v":""}]
[{"$f":"IF('1. Order'!B151=\"\",\"\",'1. Order'!B151)","v":""},{"$f":"IF('1. Order'!J151=\"\",\"\",'1. Order'!J151)","v":""},{"$f":"IF('1. Order'!K151=\"\",\"\",'1. Order'!K151)","v":""},{"$f":"IF('1. Order'!L151=\"\",\"\",'1. Order'!L151)","v":""},{"$f":"IF('1. Order'!N151=\"\",\"\",'1. Order'!N151)","v":""},null,null,{"$f":"'1. Order'!AV151","v":0},{"$f":"IF('1. Order'!AI151=\"\",\"\",'1. Order'!AI151)","v":""}]
[{"$f":"IF('1. Order'!B152=\"\",\"\",'1. Order'!B152)","v":""},{"$f":"IF('1. Order'!J152=\"\",\"\",'1. Order'!J152)","v":""},{"$f":"IF('1. Order'!K152=\"\",\"\",'1. Order'!K152)","v":""},{"$f":"IF('1. Order'!L152=\"\",\"\",'1. Order'!L152)","v":""},{"$f":"IF('1. Order'!N152=\"\",\"\",'1. Order'!N152)","v":""},null,null,{"$f":"'1. Order'!AV152","v":0},{"$f":"IF('1. Order'!AI152=\"\",\"\",'1. Order'!AI152)","v":""}]
[{"$f":"IF('1. Order'!B153=\"\",\"\",'1. Order'!B153)","v":""},{"$f":"IF('1. Order'!J153=\"\",\"\",'1. Order'!J153)","v":""},{"$f":"IF('1. Order'!K153=\"\",\"\",'1. Order'!K153)","v":""},{"$f":"IF('1. Order'!L153=\"\",\"\",'1. Order'!L153)","v":""},{"$f":"IF('1. Order'!N153=\"\",\"\",'1. Order'!N153)","v":""},null,null,{"$f":"'1. Order'!AV153","v":0},{"$f":"IF('1. Order'!AI153=\"\",\"\",'1. Order'!AI153)","v":""}]
[{"$f":"IF('1. Order'!B154=\"\",\"\",'1. Order'!B154)","v":""},{"$f":"IF('1. Order'!J154=\"\",\"\",'1. Order'!J154)","v":""},{"$f":"IF('1. Order'!K154=\"\",\"\",'1. Order'!K154)","v":""},{"$f":"IF('1. Order'!L154=\"\",\"\",'1. Order'!L154)","v":""},{"$f":"IF('1. Order'!N154=\"\",\"\",'1. Order'!N154)","v":""},null,null,{"$f":"'1. Order'!AV154","v":0},{"$f":"IF('1. Order'!AI154=\"\",\"\",'1. Order'!AI154)","v":""}]
[{"$f":"IF('1. Order'!B155=\"\",\"\",'1. Order'!B155)","v":""},{"$f":"IF('1. Order'!J155=\"\",\"\",'1. Order'!J155)","v":""},{"$f":"IF('1. Order'!K155=\"\",\"\",'1. Order'!K155)","v":""},{"$f":"IF('1. Order'!L155=\"\",\"\",'1. Order'!L155)","v":""},{"$f":"IF('1. Order'!N155=\"\",\"\",'1. Order'!N155)","v":""},null,null,{"$f":"'1. Order'!AV155","v":0},{"$f":"IF('1. Order'!AI155=\"\",\"\",'1. Order'!AI155)","v":""}]
[{"$f":"IF('1. Order'!B156=\"\",\"\",'1. Order'!B156)","v":""},{"$f":"IF('1. Order'!J156=\"\",\"\",'1. Order'!J156)","v":""},{"$f":"IF('1. Order'!K156=\"\",\"\",'1. Order'!K156)","v":""},{"$f":"IF('1. Order'!L156=\"\",\"\",'1. Order'!L156)","v":""},{"$f":"IF('1. Order'!N156=\"\",\"\",'1. Order'!N156)","v":""},null,null,{"$f":"'1. Order'!AV156","v":0},{"$f":"IF('1. Order'!AI156=\"\",\"\",'1. Order'!AI156)","v":""}]
[{"$f":"IF('1. Order'!B157=\"\",\"\",'1. Order'!B157)","v":""},{"$f":"IF('1. Order'!J157=\"\",\"\",'1. Order'!J157)","v":""},{"$f":"IF('1. Order'!K157=\"\",\"\",'1. Order'!K157)","v":""},{"$f":"IF('1. Order'!L157=\"\",\"\",'1. Order'!L157)","v":""},{"$f":"IF('1. Order'!N157=\"\",\"\",'1. Order'!N157)","v":""},null,null,{"$f":"'1. Order'!AV157","v":0},{"$f":"IF('1. Order'!AI157=\"\",\"\",'1. Order'!AI157)","v":""}]
[{"$f":"IF('1. Order'!B158=\"\",\"\",'1. Order'!B158)","v":""},{"$f":"IF('1. Order'!J158=\"\",\"\",'1. Order'!J158)","v":""},{"$f":"IF('1. Order'!K158=\"\",\"\",'1. Order'!K158)","v":""},{"$f":"IF('1. Order'!L158=\"\",\"\",'1. Order'!L158)","v":""},{"$f":"IF('1. Order'!N158=\"\",\"\",'1. Order'!N158)","v":""},null,null,{"$f":"'1. Order'!AV158","v":0},{"$f":"IF('1. Order'!AI158=\"\",\"\",'1. Order'!AI158)","v":""}]
[{"$f":"IF('1. Order'!B159=\"\",\"\",'1. Order'!B159)","v":""},{"$f":"IF('1. Order'!J159=\"\",\"\",'1. Order'!J159)","v":""},{"$f":"IF('1. Order'!K159=\"\",\"\",'1. Order'!K159)","v":""},{"$f":"IF('1. Order'!L159=\"\",\"\",'1. Order'!L159)","v":""},{"$f":"IF('1. Order'!N159=\"\",\"\",'1. Order'!N159)","v":""},null,null,{"$f":"'1. Order'!AV159","v":0},{"$f":"IF('1. Order'!AI159=\"\",\"\",'1. Order'!AI159)","v":""}]
[{"$f":"IF('1. Order'!B160=\"\",\"\",'1. Order'!B160)","v":""},{"$f":"IF('1. Order'!J160=\"\",\"\",'1. Order'!J160)","v":""},{"$f":"IF('1. Order'!K160=\"\",\"\",'1. Order'!K160)","v":""},{"$f":"IF('1. Order'!L160=\"\",\"\",'1. Order'!L160)","v":""},{"$f":"IF('1. Order'!N160=\"\",\"\",'1. Order'!N160)","v":""},null,null,{"$f":"'1. Order'!AV160","v":0},{"$f":"IF('1. Order'!AI160=\"\",\"\",'1. Order'!AI160)","v":""}]
[{"$f":"IF('1. Order'!B161=\"\",\"\",'1. Order'!B161)","v":""},{"$f":"IF('1. Order'!J161=\"\",\"\",'1. Order'!J161)","v":""},{"$f":"IF('1. Order'!K161=\"\",\"\",'1. Order'!K161)","v":""},{"$f":"IF('1. Order'!L161=\"\",\"\",'1. Order'!L161)","v":""},{"$f":"IF('1. Order'!N161=\"\",\"\",'1. Order'!N161)","v":""},null,null,{"$f":"'1. Order'!AV161","v":0},{"$f":"IF('1. Order'!AI161=\"\",\"\",'1. Order'!AI161)","v":""}]
[{"$f":"IF('1. Order'!B162=\"\",\"\",'1. Order'!B162)","v":""},{"$f":"IF('1. Order'!J162=\"\",\"\",'1. Order'!J162)","v":""},{"$f":"IF('1. Order'!K162=\"\",\"\",'1. Order'!K162)","v":""},{"$f":"IF('1. Order'!L162=\"\",\"\",'1. Order'!L162)","v":""},{"$f":"IF('1. Order'!N162=\"\",\"\",'1. Order'!N162)","v":""},null,null,{"$f":"'1. Order'!AV162","v":0},{"$f":"IF('1. Order'!AI162=\"\",\"\",'1. Order'!AI162)","v":""}]
[{"$f":"IF('1. Order'!B163=\"\",\"\",'1. Order'!B163)","v":""},{"$f":"IF('1. Order'!J163=\"\",\"\",'1. Order'!J163)","v":""},{"$f":"IF('1. Order'!K163=\"\",\"\",'1. Order'!K163)","v":""},{"$f":"IF('1. Order'!L163=\"\",\"\",'1. Order'!L163)","v":""},{"$f":"IF('1. Order'!N163=\"\",\"\",'1. Order'!N163)","v":""},null,null,{"$f":"'1. Order'!AV163","v":0},{"$f":"IF('1. Order'!AI163=\"\",\"\",'1. Order'!AI163)","v":""}]
[{"$f":"IF('1. Order'!B164=\"\",\"\",'1. Order'!B164)","v":""},{"$f":"IF('1. Order'!J164=\"\",\"\",'1. Order'!J164)","v":""},{"$f":"IF('1. Order'!K164=\"\",\"\",'1. Order'!K164)","v":""},{"$f":"IF('1. Order'!L164=\"\",\"\",'1. Order'!L164)","v":""},{"$f":"IF('1. Order'!N164=\"\",\"\",'1. Order'!N164)","v":""},null,null,{"$f":"'1. Order'!AV164","v":0},{"$f":"IF('1. Order'!AI164=\"\",\"\",'1. Order'!AI164)","v":""}]
[{"$f":"IF('1. Order'!B165=\"\",\"\",'1. Order'!B165)","v":""},{"$f":"IF('1. Order'!J165=\"\",\"\",'1. Order'!J165)","v":""},{"$f":"IF('1. Order'!K165=\"\",\"\",'1. Order'!K165)","v":""},{"$f":"IF('1. Order'!L165=\"\",\"\",'1. Order'!L165)","v":""},{"$f":"IF('1. Order'!N165=\"\",\"\",'1. Order'!N165)","v":""},null,null,{"$f":"'1. Order'!AV165","v":0},{"$f":"IF('1. Order'!AI165=\"\",\"\",'1. Order'!AI165)","v":""}]
[{"$f":"IF('1. Order'!B166=\"\",\"\",'1. Order'!B166)","v":""},{"$f":"IF('1. Order'!J166=\"\",\"\",'1. Order'!J166)","v":""},{"$f":"IF('1. Order'!K166=\"\",\"\",'1. Order'!K166)","v":""},{"$f":"IF('1. Order'!L166=\"\",\"\",'1. Order'!L166)","v":""},{"$f":"IF('1. Order'!N166=\"\",\"\",'1. Order'!N166)","v":""},null,null,{"$f":"'1. Order'!AV166","v":0},{"$f":"IF('1. Order'!AI166=\"\",\"\",'1. Order'!AI166)","v":""}]
[{"$f":"IF('1. Order'!B167=\"\",\"\",'1. Order'!B167)","v":""},{"$f":"IF('1. Order'!J167=\"\",\"\",'1. Order'!J167)","v":""},{"$f":"IF('1. Order'!K167=\"\",\"\",'1. Order'!K167)","v":""},{"$f":"IF('1. Order'!L167=\"\",\"\",'1. Order'!L167)","v":""},{"$f":"IF('1. Order'!N167=\"\",\"\",'1. Order'!N167)","v":""},null,null,{"$f":"'1. Order'!AV167","v":0},{"$f":"IF('1. Order'!AI167=\"\",\"\",'1. Order'!AI167)","v":""}]
[{"$f":"IF('1. Order'!B168=\"\",\"\",'1. Order'!B168)","v":""},{"$f":"IF('1. Order'!J168=\"\",\"\",'1. Order'!J168)","v":""},{"$f":"IF('1. Order'!K168=\"\",\"\",'1. Order'!K168)","v":""},{"$f":"IF('1. Order'!L168=\"\",\"\",'1. Order'!L168)","v":""},{"$f":"IF('1. Order'!N168=\"\",\"\",'1. Order'!N168)","v":""},null,null,{"$f":"'1. Order'!AV168","v":0},{"$f":"IF('1. Order'!AI168=\"\",\"\",'1. Order'!AI168)","v":""}]
[{"$f":"IF('1. Order'!B169=\"\",\"\",'1. Order'!B169)","v":""},{"$f":"IF('1. Order'!J169=\"\",\"\",'1. Order'!J169)","v":""},{"$f":"IF('1. Order'!K169=\"\",\"\",'1. Order'!K169)","v":""},{"$f":"IF('1. Order'!L169=\"\",\"\",'1. Order'!L169)","v":""},{"$f":"IF('1. Order'!N169=\"\",\"\",'1. Order'!N169)","v":""},null,null,{"$f":"'1. Order'!AV169","v":0},{"$f":"IF('1. Order'!AI169=\"\",\"\",'1. Order'!AI169)","v":""}]
[{"$f":"IF('1. Order'!B170=\"\",\"\",'1. Order'!B170)","v":""},{"$f":"IF('1. Order'!J170=\"\",\"\",'1. Order'!J170)","v":""},{"$f":"IF('1. Order'!K170=\"\",\"\",'1. Order'!K170)","v":""},{"$f":"IF('1. Order'!L170=\"\",\"\",'1. Order'!L170)","v":""},{"$f":"IF('1. Order'!N170=\"\",\"\",'1. Order'!N170)","v":""},null,null,{"$f":"'1. Order'!AV170","v":0},{"$f":"IF('1. Order'!AI170=\"\",\"\",'1. Order'!AI170)","v":""}]
[{"$f":"IF('1. Order'!B171=\"\",\"\",'1. Order'!B171)","v":""},{"$f":"IF('1. Order'!J171=\"\",\"\",'1. Order'!J171)","v":""},{"$f":"IF('1. Order'!K171=\"\",\"\",'1. Order'!K171)","v":""},{"$f":"IF('1. Order'!L171=\"\",\"\",'1. Order'!L171)","v":""},{"$f":"IF('1. Order'!N171=\"\",\"\",'1. Order'!N171)","v":""},null,null,{"$f":"'1. Order'!AV171","v":0},{"$f":"IF('1. Order'!AI171=\"\",\"\",'1. Order'!AI171)","v":""}]
[{"$f":"IF('1. Order'!B172=\"\",\"\",'1. Order'!B172)","v":""},{"$f":"IF('1. Order'!J172=\"\",\"\",'1. Order'!J172)","v":""},{"$f":"IF('1. Order'!K172=\"\",\"\",'1. Order'!K172)","v":""},{"$f":"IF('1. Order'!L172=\"\",\"\",'1. Order'!L172)","v":""},{"$f":"IF('1. Order'!N172=\"\",\"\",'1. Order'!N172)","v":""},null,null,{"$f":"'1. Order'!AV172","v":0},{"$f":"IF('1. Order'!AI172=\"\",\"\",'1. Order'!AI172)","v":""}]
[{"$f":"IF('1. Order'!B173=\"\",\"\",'1. Order'!B173)","v":""},{"$f":"IF('1. Order'!J173=\"\",\"\",'1. Order'!J173)","v":""},{"$f":"IF('1. Order'!K173=\"\",\"\",'1. Order'!K173)","v":""},{"$f":"IF('1. Order'!L173=\"\",\"\",'1. Order'!L173)","v":""},{"$f":"IF('1. Order'!N173=\"\",\"\",'1. Order'!N173)","v":""},null,null,{"$f":"'1. Order'!AV173","v":0},{"$f":"IF('1. Order'!AI173=\"\",\"\",'1. Order'!AI173)","v":""}]
[{"$f":"IF('1. Order'!B174=\"\",\"\",'1. Order'!B174)","v":""},{"$f":"IF('1. Order'!J174=\"\",\"\",'1. Order'!J174)","v":""},{"$f":"IF('1. Order'!K174=\"\",\"\",'1. Order'!K174)","v":""},{"$f":"IF('1. Order'!L174=\"\",\"\",'1. Order'!L174)","v":""},{"$f":"IF('1. Order'!N174=\"\",\"\",'1. Order'!N174)","v":""},null,null,{"$f":"'1. Order'!AV174","v":0},{"$f":"IF('1. Order'!AI174=\"\",\"\",'1. Order'!AI174)","v":""}]
[{"$f":"IF('1. Order'!B175=\"\",\"\",'1. Order'!B175)","v":""},{"$f":"IF('1. Order'!J175=\"\",\"\",'1. Order'!J175)","v":""},{"$f":"IF('1. Order'!K175=\"\",\"\",'1. Order'!K175)","v":""},{"$f":"IF('1. Order'!L175=\"\",\"\",'1. Order'!L175)","v":""},{"$f":"IF('1. Order'!N175=\"\",\"\",'1. Order'!N175)","v":""},null,null,{"$f":"'1. Order'!AV175","v":0},{"$f":"IF('1. Order'!AI175=\"\",\"\",'1. Order'!AI175)","v":""}]
[{"$f":"IF('1. Order'!B176=\"\",\"\",'1. Order'!B176)","v":""},{"$f":"IF('1. Order'!J176=\"\",\"\",'1. Order'!J176)","v":""},{"$f":"IF('1. Order'!K176=\"\",\"\",'1. Order'!K176)","v":""},{"$f":"IF('1. Order'!L176=\"\",\"\",'1. Order'!L176)","v":""},{"$f":"IF('1. Order'!N176=\"\",\"\",'1. Order'!N176)","v":""},null,null,{"$f":"'1. Order'!AV176","v":0},{"$f":"IF('1. Order'!AI176=\"\",\"\",'1. Order'!AI176)","v":""}]
[{"$f":"IF('1. Order'!B177=\"\",\"\",'1. Order'!B177)","v":""},{"$f":"IF('1. Order'!J177=\"\",\"\",'1. Order'!J177)","v":""},{"$f":"IF('1. Order'!K177=\"\",\"\",'1. Order'!K177)","v":""},{"$f":"IF('1. Order'!L177=\"\",\"\",'1. Order'!L177)","v":""},{"$f":"IF('1. Order'!N177=\"\",\"\",'1. Order'!N177)","v":""},null,null,{"$f":"'1. Order'!AV177","v":0},{"$f":"IF('1. Order'!AI177=\"\",\"\",'1. Order'!AI177)","v":""}]
[{"$f":"IF('1. Order'!B178=\"\",\"\",'1. Order'!B178)","v":""},{"$f":"IF('1. Order'!J178=\"\",\"\",'1. Order'!J178)","v":""},{"$f":"IF('1. Order'!K178=\"\",\"\",'1. Order'!K178)","v":""},{"$f":"IF('1. Order'!L178=\"\",\"\",'1. Order'!L178)","v":""},{"$f":"IF('1. Order'!N178=\"\",\"\",'1. Order'!N178)","v":""},null,null,{"$f":"'1. Order'!AV178","v":0},{"$f":"IF('1. Order'!AI178=\"\",\"\",'1. Order'!AI178)","v":""}]
[{"$f":"IF('1. Order'!B179=\"\",\"\",'1. Order'!B179)","v":""},{"$f":"IF('1. Order'!J179=\"\",\"\",'1. Order'!J179)","v":""},{"$f":"IF('1. Order'!K179=\"\",\"\",'1. Order'!K179)","v":""},{"$f":"IF('1. Order'!L179=\"\",\"\",'1. Order'!L179)","v":""},{"$f":"IF('1. Order'!N179=\"\",\"\",'1. Order'!N179)","v":""},null,null,{"$f":"'1. Order'!AV179","v":0},{"$f":"IF('1. Order'!AI179=\"\",\"\",'1. Order'!AI179)","v":""}]
[{"$f":"IF('1. Order'!B180=\"\",\"\",'1. Order'!B180)","v":""},{"$f":"IF('1. Order'!J180=\"\",\"\",'1. Order'!J180)","v":""},{"$f":"IF('1. Order'!K180=\"\",\"\",'1. Order'!K180)","v":""},{"$f":"IF('1. Order'!L180=\"\",\"\",'1. Order'!L180)","v":""},{"$f":"IF('1. Order'!N180=\"\",\"\",'1. Order'!N180)","v":""},null,null,{"$f":"'1. Order'!AV180","v":0},{"$f":"IF('1. Order'!AI180=\"\",\"\",'1. Order'!AI180)","v":""}]
[{"$f":"IF('1. Order'!B181=\"\",\"\",'1. Order'!B181)","v":""},{"$f":"IF('1. Order'!J181=\"\",\"\",'1. Order'!J181)","v":""},{"$f":"IF('1. Order'!K181=\"\",\"\",'1. Order'!K181)","v":""},{"$f":"IF('1. Order'!L181=\"\",\"\",'1. Order'!L181)","v":""},{"$f":"IF('1. Order'!N181=\"\",\"\",'1. Order'!N181)","v":""},null,null,{"$f":"'1. Order'!AV181","v":0},{"$f":"IF('1. Order'!AI181=\"\",\"\",'1. Order'!AI181)","v":""}]
[{"$f":"IF('1. Order'!B182=\"\",\"\",'1. Order'!B182)","v":""},{"$f":"IF('1. Order'!J182=\"\",\"\",'1. Order'!J182)","v":""},{"$f":"IF('1. Order'!K182=\"\",\"\",'1. Order'!K182)","v":""},{"$f":"IF('1. Order'!L182=\"\",\"\",'1. Order'!L182)","v":""},{"$f":"IF('1. Order'!N182=\"\",\"\",'1. Order'!N182)","v":""},null,null,{"$f":"'1. Order'!AV182","v":0},{"$f":"IF('1. Order'!AI182=\"\",\"\",'1. Order'!AI182)","v":""}]
[{"$f":"IF('1. Order'!B183=\"\",\"\",'1. Order'!B183)","v":""},{"$f":"IF('1. Order'!J183=\"\",\"\",'1. Order'!J183)","v":""},{"$f":"IF('1. Order'!K183=\"\",\"\",'1. Order'!K183)","v":""},{"$f":"IF('1. Order'!L183=\"\",\"\",'1. Order'!L183)","v":""},{"$f":"IF('1. Order'!N183=\"\",\"\",'1. Order'!N183)","v":""},null,null,{"$f":"'1. Order'!AV183","v":0},{"$f":"IF('1. Order'!AI183=\"\",\"\",'1. Order'!AI183)","v":""}]
[{"$f":"IF('1. Order'!B184=\"\",\"\",'1. Order'!B184)","v":""},{"$f":"IF('1. Order'!J184=\"\",\"\",'1. Order'!J184)","v":""},{"$f":"IF('1. Order'!K184=\"\",\"\",'1. Order'!K184)","v":""},{"$f":"IF('1. Order'!L184=\"\",\"\",'1. Order'!L184)","v":""},{"$f":"IF('1. Order'!N184=\"\",\"\",'1. Order'!N184)","v":""},null,null,{"$f":"'1. Order'!AV184","v":0},{"$f":"IF('1. Order'!AI184=\"\",\"\",'1. Order'!AI184)","v":""}]
[{"$f":"IF('1. Order'!B185=\"\",\"\",'1. Order'!B185)","v":""},{"$f":"IF('1. Order'!J185=\"\",\"\",'1. Order'!J185)","v":""},{"$f":"IF('1. Order'!K185=\"\",\"\",'1. Order'!K185)","v":""},{"$f":"IF('1. Order'!L185=\"\",\"\",'1. Order'!L185)","v":""},{"$f":"IF('1. Order'!N185=\"\",\"\",'1. Order'!N185)","v":""},null,null,{"$f":"'1. Order'!AV185","v":0},{"$f":"IF('1. Order'!AI185=\"\",\"\",'1. Order'!AI185)","v":""}]
[{"$f":"IF('1. Order'!B186=\"\",\"\",'1. Order'!B186)","v":""},{"$f":"IF('1. Order'!J186=\"\",\"\",'1. Order'!J186)","v":""},{"$f":"IF('1. Order'!K186=\"\",\"\",'1. Order'!K186)","v":""},{"$f":"IF('1. Order'!L186=\"\",\"\",'1. Order'!L186)","v":""},{"$f":"IF('1. Order'!N186=\"\",\"\",'1. Order'!N186)","v":""},null,null,{"$f":"'1. Order'!AV186","v":0},{"$f":"IF('1. Order'!AI186=\"\",\"\",'1. Order'!AI186)","v":""}]
[{"$f":"IF('1. Order'!B187=\"\",\"\",'1. Order'!B187)","v":""},{"$f":"IF('1. Order'!J187=\"\",\"\",'1. Order'!J187)","v":""},{"$f":"IF('1. Order'!K187=\"\",\"\",'1. Order'!K187)","v":""},{"$f":"IF('1. Order'!L187=\"\",\"\",'1. Order'!L187)","v":""},{"$f":"IF('1. Order'!N187=\"\",\"\",'1. Order'!N187)","v":""},null,null,{"$f":"'1. Order'!AV187","v":0},{"$f":"IF('1. Order'!AI187=\"\",\"\",'1. Order'!AI187)","v":""}]
[{"$f":"IF('1. Order'!B188=\"\",\"\",'1. Order'!B188)","v":""},{"$f":"IF('1. Order'!J188=\"\",\"\",'1. Order'!J188)","v":""},{"$f":"IF('1. Order'!K188=\"\",\"\",'1. Order'!K188)","v":""},{"$f":"IF('1. Order'!L188=\"\",\"\",'1. Order'!L188)","v":""},{"$f":"IF('1. Order'!N188=\"\",\"\",'1. Order'!N188)","v":""},null,null,{"$f":"'1. Order'!AV188","v":0},{"$f":"IF('1. Order'!AI188=\"\",\"\",'1. Order'!AI188)","v":""}]
[{"$f":"IF('1. Order'!B189=\"\",\"\",'1. Order'!B189)","v":""},{"$f":"IF('1. Order'!J189=\"\",\"\",'1. Order'!J189)","v":""},{"$f":"IF('1. Order'!K189=\"\",\"\",'1. Order'!K189)","v":""},{"$f":"IF('1. Order'!L189=\"\",\"\",'1. Order'!L189)","v":""},{"$f":"IF('1. Order'!N189=\"\",\"\",'1. Order'!N189)","v":""},null,null,{"$f":"'1. Order'!AV189","v":0},{"$f":"IF('1. Order'!AI189=\"\",\"\",'1. Order'!AI189)","v":""}]
[{"$f":"IF('1. Order'!B190=\"\",\"\",'1. Order'!B190)","v":""},{"$f":"IF('1. Order'!J190=\"\",\"\",'1. Order'!J190)","v":""},{"$f":"IF('1. Order'!K190=\"\",\"\",'1. Order'!K190)","v":""},{"$f":"IF('1. Order'!L190=\"\",\"\",'1. Order'!L190)","v":""},{"$f":"IF('1. Order'!N190=\"\",\"\",'1. Order'!N190)","v":""},null,null,{"$f":"'1. Order'!AV190","v":0},{"$f":"IF('1. Order'!AI190=\"\",\"\",'1. Order'!AI190)","v":""}]
[{"$f":"IF('1. Order'!B191=\"\",\"\",'1. Order'!B191)","v":""},{"$f":"IF('1. Order'!J191=\"\",\"\",'1. Order'!J191)","v":""},{"$f":"IF('1. Order'!K191=\"\",\"\",'1. Order'!K191)","v":""},{"$f":"IF('1. Order'!L191=\"\",\"\",'1. Order'!L191)","v":""},{"$f":"IF('1. Order'!N191=\"\",\"\",'1. Order'!N191)","v":""},null,null,{"$f":"'1. Order'!AV191","v":0},{"$f":"IF('1. Order'!AI191=\"\",\"\",'1. Order'!AI191)","v":""}]
[{"$f":"IF('1. Order'!B192=\"\",\"\",'1. Order'!B192)","v":""},{"$f":"IF('1. Order'!J192=\"\",\"\",'1. Order'!J192)","v":""},{"$f":"IF('1. Order'!K192=\"\",\"\",'1. Order'!K192)","v":""},{"$f":"IF('1. Order'!L192=\"\",\"\",'1. Order'!L192)","v":""},{"$f":"IF('1. Order'!N192=\"\",\"\",'1. Order'!N192)","v":""},null,null,{"$f":"'1. Order'!AV192","v":0},{"$f":"IF('1. Order'!AI192=\"\",\"\",'1. Order'!AI192)","v":""}]
[{"$f":"IF('1. Order'!B193=\"\",\"\",'1. Order'!B193)","v":""},{"$f":"IF('1. Order'!J193=\"\",\"\",'1. Order'!J193)","v":""},{"$f":"IF('1. Order'!K193=\"\",\"\",'1. Order'!K193)","v":""},{"$f":"IF('1. Order'!L193=\"\",\"\",'1. Order'!L193)","v":""},{"$f":"IF('1. Order'!N193=\"\",\"\",'1. Order'!N193)","v":""},null,null,{"$f":"'1. Order'!AV193","v":0},{"$f":"IF('1. Order'!AI193=\"\",\"\",'1. Order'!AI193)","v":""}]
[{"$f":"IF('1. Order'!B194=\"\",\"\",'1. Order'!B194)","v":""},{"$f":"IF('1. Order'!J194=\"\",\"\",'1. Order'!J194)","v":""},{"$f":"IF('1. Order'!K194=\"\",\"\",'1. Order'!K194)","v":""},{"$f":"IF('1. Order'!L194=\"\",\"\",'1. Order'!L194)","v":""},{"$f":"IF('1. Order'!N194=\"\",\"\",'1. Order'!N194)","v":""},null,null,{"$f":"'1. Order'!AV194","v":0},{"$f":"IF('1. Order'!AI194=\"\",\"\",'1. Order'!AI194)","v":""}]
[{"$f":"IF('1. Order'!B195=\"\",\"\",'1. Order'!B195)","v":""},{"$f":"IF('1. Order'!J195=\"\",\"\",'1. Order'!J195)","v":""},{"$f":"IF('1. Order'!K195=\"\",\"\",'1. Order'!K195)","v":""},{"$f":"IF('1. Order'!L195=\"\",\"\",'1. Order'!L195)","v":""},{"$f":"IF('1. Order'!N195=\"\",\"\",'1. Order'!N195)","v":""},null,null,{"$f":"'1. Order'!AV195","v":0},{"$f":"IF('1. Order'!AI195=\"\",\"\",'1. Order'!AI195)","v":""}]
[{"$f":"IF('1. Order'!B196=\"\",\"\",'1. Order'!B196)","v":""},{"$f":"IF('1. Order'!J196=\"\",\"\",'1. Order'!J196)","v":""},{"$f":"IF('1. Order'!K196=\"\",\"\",'1. Order'!K196)","v":""},{"$f":"IF('1. Order'!L196=\"\",\"\",'1. Order'!L196)","v":""},{"$f":"IF('1. Order'!N196=\"\",\"\",'1. Order'!N196)","v":""},null,null,{"$f":"'1. Order'!AV196","v":0},{"$f":"IF('1. Order'!AI196=\"\",\"\",'1. Order'!AI196)","v":""}]
[{"$f":"IF('1. Order'!B197=\"\",\"\",'1. Order'!B197)","v":""},{"$f":"IF('1. Order'!J197=\"\",\"\",'1. Order'!J197)","v":""},{"$f":"IF('1. Order'!K197=\"\",\"\",'1. Order'!K197)","v":""},{"$f":"IF('1. Order'!L197=\"\",\"\",'1. Order'!L197)","v":""},{"$f":"IF('1. Order'!N197=\"\",\"\",'1. Order'!N197)","v":""},null,null,{"$f":"'1. Order'!AV197","v":0},{"$f":"IF('1. Order'!AI197=\"\",\"\",'1. Order'!AI197)","v":""}]
[{"$f":"IF('1. Order'!B198=\"\",\"\",'1. Order'!B198)","v":""},{"$f":"IF('1. Order'!J198=\"\",\"\",'1. Order'!J198)","v":""},{"$f":"IF('1. Order'!K198=\"\",\"\",'1. Order'!K198)","v":""},{"$f":"IF('1. Order'!L198=\"\",\"\",'1. Order'!L198)","v":""},{"$f":"IF('1. Order'!N198=\"\",\"\",'1. Order'!N198)","v":""},null,null,{"$f":"'1. Order'!AV198","v":0},{"$f":"IF('1. Order'!AI198=\"\",\"\",'1. Order'!AI198)","v":""}]
[{"$f":"IF('1. Order'!B199=\"\",\"\",'1. Order'!B199)","v":""},{"$f":"IF('1. Order'!J199=\"\",\"\",'1. Order'!J199)","v":""},{"$f":"IF('1. Order'!K199=\"\",\"\",'1. Order'!K199)","v":""},{"$f":"IF('1. Order'!L199=\"\",\"\",'1. Order'!L199)","v":""},{"$f":"IF('1. Order'!N199=\"\",\"\",'1. Order'!N199)","v":""},null,null,{"$f":"'1. Order'!AV199","v":0},{"$f":"IF('1. Order'!AI199=\"\",\"\",'1. Order'!AI199)","v":""}]
[{"$f":"IF('1. Order'!B200=\"\",\"\",'1. Order'!B200)","v":""},{"$f":"IF('1. Order'!J200=\"\",\"\",'1. Order'!J200)","v":""},{"$f":"IF('1. Order'!K200=\"\",\"\",'1. Order'!K200)","v":""},{"$f":"IF('1. Order'!L200=\"\",\"\",'1. Order'!L200)","v":""},{"$f":"IF('1. Order'!N200=\"\",\"\",'1. Order'!N200)","v":""},null,null,{"$f":"'1. Order'!AV200","v":0},{"$f":"IF('1. Order'!AI200=\"\",\"\",'1. Order'!AI200)","v":""}]
[{"$f":"IF('1. Order'!B201=\"\",\"\",'1. Order'!B201)","v":""},{"$f":"IF('1. Order'!J201=\"\",\"\",'1. Order'!J201)","v":""},{"$f":"IF('1. Order'!K201=\"\",\"\",'1. Order'!K201)","v":""},{"$f":"IF('1. Order'!L201=\"\",\"\",'1. Order'!L201)","v":""},{"$f":"IF('1. Order'!N201=\"\",\"\",'1. Order'!N201)","v":""},null,null,{"$f":"'1. Order'!AV201","v":0},{"$f":"IF('1. Order'!AI201=\"\",\"\",'1. Order'!AI201)","v":""}]
[{"$f":"IF('1. Order'!B202=\"\",\"\",'1. Order'!B202)","v":""},{"$f":"IF('1. Order'!J202=\"\",\"\",'1. Order'!J202)","v":""},{"$f":"IF('1. Order'!K202=\"\",\"\",'1. Order'!K202)","v":""},{"$f":"IF('1. Order'!L202=\"\",\"\",'1. Order'!L202)","v":""},{"$f":"IF('1. Order'!N202=\"\",\"\",'1. Order'!N202)","v":""},null,null,{"$f":"'1. Order'!AV202","v":0},{"$f":"IF('1. Order'!AI202=\"\",\"\",'1. Order'!AI202)","v":""}]
[{"$f":"IF('1. Order'!B203=\"\",\"\",'1. Order'!B203)","v":""},{"$f":"IF('1. Order'!J203=\"\",\"\",'1. Order'!J203)","v":""},{"$f":"IF('1. Order'!K203=\"\",\"\",'1. Order'!K203)","v":""},{"$f":"IF('1. Order'!L203=\"\",\"\",'1. Order'!L203)","v":""},{"$f":"IF('1. Order'!N203=\"\",\"\",'1. Order'!N203)","v":""},null,null,{"$f":"'1. Order'!AV203","v":0},{"$f":"IF('1. Order'!AI203=\"\",\"\",'1. Order'!AI203)","v":""}]
[{"$f":"IF('1. Order'!B204=\"\",\"\",'1. Order'!B204)","v":""},{"$f":"IF('1. Order'!J204=\"\",\"\",'1. Order'!J204)","v":""},{"$f":"IF('1. Order'!K204=\"\",\"\",'1. Order'!K204)","v":""},{"$f":"IF('1. Order'!L204=\"\",\"\",'1. Order'!L204)","v":""},{"$f":"IF('1. Order'!N204=\"\",\"\",'1. Order'!N204)","v":""},null,null,{"$f":"'1. Order'!AV204","v":0},{"$f":"IF('1. Order'!AI204=\"\",\"\",'1. Order'!AI204)","v":""}]
[{"$f":"IF('1. Order'!B205=\"\",\"\",'1. Order'!B205)","v":""},{"$f":"IF('1. Order'!J205=\"\",\"\",'1. Order'!J205)","v":""},{"$f":"IF('1. Order'!K205=\"\",\"\",'1. Order'!K205)","v":""},{"$f":"IF('1. Order'!L205=\"\",\"\",'1. Order'!L205)","v":""},{"$f":"IF('1. Order'!N205=\"\",\"\",'1. Order'!N205)","v":""},null,null,{"$f":"'1. Order'!AV205","v":0},{"$f":"IF('1. Order'!AI205=\"\",\"\",'1. Order'!AI205)","v":""}]
[{"$f":"IF('1. Order'!B206=\"\",\"\",'1. Order'!B206)","v":""},{"$f":"IF('1. Order'!J206=\"\",\"\",'1. Order'!J206)","v":""},{"$f":"IF('1. Order'!K206=\"\",\"\",'1. Order'!K206)","v":""},{"$f":"IF('1. Order'!L206=\"\",\"\",'1. Order'!L206)","v":""},{"$f":"IF('1. Order'!N206=\"\",\"\",'1. Order'!N206)","v":""},null,null,{"$f":"'1. Order'!AV206","v":0},{"$f":"IF('1. Order'!AI206=\"\",\"\",'1. Order'!AI206)","v":""}]
[{"$f":"IF('1. Order'!B207=\"\",\"\",'1. Order'!B207)","v":""},{"$f":"IF('1. Order'!J207=\"\",\"\",'1. Order'!J207)","v":""},{"$f":"IF('1. Order'!K207=\"\",\"\",'1. Order'!K207)","v":""},{"$f":"IF('1. Order'!L207=\"\",\"\",'1. Order'!L207)","v":""},{"$f":"IF('1. Order'!N207=\"\",\"\",'1. Order'!N207)","v":""},null,null,{"$f":"'1. Order'!AV207","v":0},{"$f":"IF('1. Order'!AI207=\"\",\"\",'1. Order'!AI207)","v":""}]
[{"$f":"IF('1. Order'!B208=\"\",\"\",'1. Order'!B208)","v":""},{"$f":"IF('1. Order'!J208=\"\",\"\",'1. Order'!J208)","v":""},{"$f":"IF('1. Order'!K208=\"\",\"\",'1. Order'!K208)","v":""},{"$f":"IF('1. Order'!L208=\"\",\"\",'1. Order'!L208)","v":""},{"$f":"IF('1. Order'!N208=\"\",\"\",'1. Order'!N208)","v":""},null,null,{"$f":"'1. Order'!AV208","v":0},{"$f":"IF('1. Order'!AI208=\"\",\"\",'1. Order'!AI208)","v":""}]
[{"$f":"IF('1. Order'!B209=\"\",\"\",'1. Order'!B209)","v":""},{"$f":"IF('1. Order'!J209=\"\",\"\",'1. Order'!J209)","v":""},{"$f":"IF('1. Order'!K209=\"\",\"\",'1. Order'!K209)","v":""},{"$f":"IF('1. Order'!L209=\"\",\"\",'1. Order'!L209)","v":""},{"$f":"IF('1. Order'!N209=\"\",\"\",'1. Order'!N209)","v":""},null,null,{"$f":"'1. Order'!AV209","v":0},{"$f":"IF('1. Order'!AI209=\"\",\"\",'1. Order'!AI209)","v":""}]
[{"$f":"IF('1. Order'!B210=\"\",\"\",'1. Order'!B210)","v":""},{"$f":"IF('1. Order'!J210=\"\",\"\",'1. Order'!J210)","v":""},{"$f":"IF('1. Order'!K210=\"\",\"\",'1. Order'!K210)","v":""},{"$f":"IF('1. Order'!L210=\"\",\"\",'1. Order'!L210)","v":""},{"$f":"IF('1. Order'!N210=\"\",\"\",'1. Order'!N210)","v":""},null,null,{"$f":"'1. Order'!AV210","v":0},{"$f":"IF('1. Order'!AI210=\"\",\"\",'1. Order'!AI210)","v":""}]
[{"$f":"IF('1. Order'!B211=\"\",\"\",'1. Order'!B211)","v":""},{"$f":"IF('1. Order'!J211=\"\",\"\",'1. Order'!J211)","v":""},{"$f":"IF('1. Order'!K211=\"\",\"\",'1. Order'!K211)","v":""},{"$f":"IF('1. Order'!L211=\"\",\"\",'1. Order'!L211)","v":""},{"$f":"IF('1. Order'!N211=\"\",\"\",'1. Order'!N211)","v":""},null,null,{"$f":"'1. Order'!AV211","v":0},{"$f":"IF('1. Order'!AI211=\"\",\"\",'1. Order'!AI211)","v":""}]
[{"$f":"IF('1. Order'!B212=\"\",\"\",'1. Order'!B212)","v":""},{"$f":"IF('1. Order'!J212=\"\",\"\",'1. Order'!J212)","v":""},{"$f":"IF('1. Order'!K212=\"\",\"\",'1. Order'!K212)","v":""},{"$f":"IF('1. Order'!L212=\"\",\"\",'1. Order'!L212)","v":""},{"$f":"IF('1. Order'!N212=\"\",\"\",'1. Order'!N212)","v":""},null,null,{"$f":"'1. Order'!AV212","v":0},{"$f":"IF('1. Order'!AI212=\"\",\"\",'1. Order'!AI212)","v":""}]
[{"$f":"IF('1. Order'!B213=\"\",\"\",'1. Order'!B213)","v":""},{"$f":"IF('1. Order'!J213=\"\",\"\",'1. Order'!J213)","v":""},{"$f":"IF('1. Order'!K213=\"\",\"\",'1. Order'!K213)","v":""},{"$f":"IF('1. Order'!L213=\"\",\"\",'1. Order'!L213)","v":""},{"$f":"IF('1. Order'!N213=\"\",\"\",'1. Order'!N213)","v":""},null,null,{"$f":"'1. Order'!AV213","v":0},{"$f":"IF('1. Order'!AI213=\"\",\"\",'1. Order'!AI213)","v":""}]
[{"$f":"IF('1. Order'!B214=\"\",\"\",'1. Order'!B214)","v":""},{"$f":"IF('1. Order'!J214=\"\",\"\",'1. Order'!J214)","v":""},{"$f":"IF('1. Order'!K214=\"\",\"\",'1. Order'!K214)","v":""},{"$f":"IF('1. Order'!L214=\"\",\"\",'1. Order'!L214)","v":""},{"$f":"IF('1. Order'!N214=\"\",\"\",'1. Order'!N214)","v":""},null,null,{"$f":"'1. Order'!AV214","v":0},{"$f":"IF('1. Order'!AI214=\"\",\"\",'1. Order'!AI214)","v":""}]
[{"$f":"IF('1. Order'!B215=\"\",\"\",'1. Order'!B215)","v":""},{"$f":"IF('1. Order'!J215=\"\",\"\",'1. Order'!J215)","v":""},{"$f":"IF('1. Order'!K215=\"\",\"\",'1. Order'!K215)","v":""},{"$f":"IF('1. Order'!L215=\"\",\"\",'1. Order'!L215)","v":""},{"$f":"IF('1. Order'!N215=\"\",\"\",'1. Order'!N215)","v":""},null,null,{"$f":"'1. Order'!AV215","v":0},{"$f":"IF('1. Order'!AI215=\"\",\"\",'1. Order'!AI215)","v":""}]
[{"$f":"IF('1. Order'!B216=\"\",\"\",'1. Order'!B216)","v":""},{"$f":"IF('1. Order'!J216=\"\",\"\",'1. Order'!J216)","v":""},{"$f":"IF('1. Order'!K216=\"\",\"\",'1. Order'!K216)","v":""},{"$f":"IF('1. Order'!L216=\"\",\"\",'1. Order'!L216)","v":""},{"$f":"IF('1. Order'!N216=\"\",\"\",'1. Order'!N216)","v":""},null,null,{"$f":"'1. Order'!AV216","v":0},{"$f":"IF('1. Order'!AI216=\"\",\"\",'1. Order'!AI216)","v":""}]
[{"$f":"IF('1. Order'!B217=\"\",\"\",'1. Order'!B217)","v":""},{"$f":"IF('1. Order'!J217=\"\",\"\",'1. Order'!J217)","v":""},{"$f":"IF('1. Order'!K217=\"\",\"\",'1. Order'!K217)","v":""},{"$f":"IF('1. Order'!L217=\"\",\"\",'1. Order'!L217)","v":""},{"$f":"IF('1. Order'!N217=\"\",\"\",'1. Order'!N217)","v":""},null,null,{"$f":"'1. Order'!AV217","v":0},{"$f":"IF('1. Order'!AI217=\"\",\"\",'1. Order'!AI217)","v":""}]
[{"$f":"IF('1. Order'!B218=\"\",\"\",'1. Order'!B218)","v":""},{"$f":"IF('1. Order'!J218=\"\",\"\",'1. Order'!J218)","v":""},{"$f":"IF('1. Order'!K218=\"\",\"\",'1. Order'!K218)","v":""},{"$f":"IF('1. Order'!L218=\"\",\"\",'1. Order'!L218)","v":""},{"$f":"IF('1. Order'!N218=\"\",\"\",'1. Order'!N218)","v":""},null,null,{"$f":"'1. Order'!AV218","v":0},{"$f":"IF('1. Order'!AI218=\"\",\"\",'1. Order'!AI218)","v":""}]
[{"$f":"IF('1. Order'!B219=\"\",\"\",'1. Order'!B219)","v":""},{"$f":"IF('1. Order'!J219=\"\",\"\",'1. Order'!J219)","v":""},{"$f":"IF('1. Order'!K219=\"\",\"\",'1. Order'!K219)","v":""},{"$f":"IF('1. Order'!L219=\"\",\"\",'1. Order'!L219)","v":""},{"$f":"IF('1. Order'!N219=\"\",\"\",'1. Order'!N219)","v":""},null,null,{"$f":"'1. Order'!AV219","v":0},{"$f":"IF('1. Order'!AI219=\"\",\"\",'1. Order'!AI219)","v":""}]
[{"$f":"IF('1. Order'!B220=\"\",\"\",'1. Order'!B220)","v":""},{"$f":"IF('1. Order'!J220=\"\",\"\",'1. Order'!J220)","v":""},{"$f":"IF('1. Order'!K220=\"\",\"\",'1. Order'!K220)","v":""},{"$f":"IF('1. Order'!L220=\"\",\"\",'1. Order'!L220)","v":""},{"$f":"IF('1. Order'!N220=\"\",\"\",'1. Order'!N220)","v":""},null,null,{"$f":"'1. Order'!AV220","v":0},{"$f":"IF('1. Order'!AI220=\"\",\"\",'1. Order'!AI220)","v":""}]
[{"$f":"IF('1. Order'!B221=\"\",\"\",'1. Order'!B221)","v":""},{"$f":"IF('1. Order'!J221=\"\",\"\",'1. Order'!J221)","v":""},{"$f":"IF('1. Order'!K221=\"\",\"\",'1. Order'!K221)","v":""},{"$f":"IF('1. Order'!L221=\"\",\"\",'1. Order'!L221)","v":""},{"$f":"IF('1. Order'!N221=\"\",\"\",'1. Order'!N221)","v":""},null,null,{"$f":"'1. Order'!AV221","v":0},{"$f":"IF('1. Order'!AI221=\"\",\"\",'1. Order'!AI221)","v":""}]
[{"$f":"IF('1. Order'!B222=\"\",\"\",'1. Order'!B222)","v":""},{"$f":"IF('1. Order'!J222=\"\",\"\",'1. Order'!J222)","v":""},{"$f":"IF('1. Order'!K222=\"\",\"\",'1. Order'!K222)","v":""},{"$f":"IF('1. Order'!L222=\"\",\"\",'1. Order'!L222)","v":""},{"$f":"IF('1. Order'!N222=\"\",\"\",'1. Order'!N222)","v":""},null,null,{"$f":"'1. Order'!AV222","v":0},{"$f":"IF('1. Order'!AI222=\"\",\"\",'1. Order'!AI222)","v":""}]
[{"$f":"IF('1. Order'!B223=\"\",\"\",'1. Order'!B223)","v":""},{"$f":"IF('1. Order'!J223=\"\",\"\",'1. Order'!J223)","v":""},{"$f":"IF('1. Order'!K223=\"\",\"\",'1. Order'!K223)","v":""},{"$f":"IF('1. Order'!L223=\"\",\"\",'1. Order'!L223)","v":""},{"$f":"IF('1. Order'!N223=\"\",\"\",'1. Order'!N223)","v":""},null,null,{"$f":"'1. Order'!AV223","v":0},{"$f":"IF('1. Order'!AI223=\"\",\"\",'1. Order'!AI223)","v":""}]
[{"$f":"IF('1. Order'!B224=\"\",\"\",'1. Order'!B224)","v":""},{"$f":"IF('1. Order'!J224=\"\",\"\",'1. Order'!J224)","v":""},{"$f":"IF('1. Order'!K224=\"\",\"\",'1. Order'!K224)","v":""},{"$f":"IF('1. Order'!L224=\"\",\"\",'1. Order'!L224)","v":""},{"$f":"IF('1. Order'!N224=\"\",\"\",'1. Order'!N224)","v":""},null,null,{"$f":"'1. Order'!AV224","v":0},{"$f":"IF('1. Order'!AI224=\"\",\"\",'1. Order'!AI224)","v":""}]
[{"$f":"IF('1. Order'!B225=\"\",\"\",'1. Order'!B225)","v":""},{"$f":"IF('1. Order'!J225=\"\",\"\",'1. Order'!J225)","v":""},{"$f":"IF('1. Order'!K225=\"\",\"\",'1. Order'!K225)","v":""},{"$f":"IF('1. Order'!L225=\"\",\"\",'1. Order'!L225)","v":""},{"$f":"IF('1. Order'!N225=\"\",\"\",'1. Order'!N225)","v":""},null,null,{"$f":"'1. Order'!AV225","v":0},{"$f":"IF('1. Order'!AI225=\"\",\"\",'1. Order'!AI225)","v":""}]
[{"$f":"IF('1. Order'!B226=\"\",\"\",'1. Order'!B226)","v":""},{"$f":"IF('1. Order'!J226=\"\",\"\",'1. Order'!J226)","v":""},{"$f":"IF('1. Order'!K226=\"\",\"\",'1. Order'!K226)","v":""},{"$f":"IF('1. Order'!L226=\"\",\"\",'1. Order'!L226)","v":""},{"$f":"IF('1. Order'!N226=\"\",\"\",'1. Order'!N226)","v":""},null,null,{"$f":"'1. Order'!AV226","v":0},{"$f":"IF('1. Order'!AI226=\"\",\"\",'1. Order'!AI226)","v":""}]
[{"$f":"IF('1. Order'!B227=\"\",\"\",'1. Order'!B227)","v":""},{"$f":"IF('1. Order'!J227=\"\",\"\",'1. Order'!J227)","v":""},{"$f":"IF('1. Order'!K227=\"\",\"\",'1. Order'!K227)","v":""},{"$f":"IF('1. Order'!L227=\"\",\"\",'1. Order'!L227)","v":""},{"$f":"IF('1. Order'!N227=\"\",\"\",'1. Order'!N227)","v":""},null,null,{"$f":"'1. Order'!AV227","v":0},{"$f":"IF('1. Order'!AI227=\"\",\"\",'1. Order'!AI227)","v":""}]
[{"$f":"IF('1. Order'!B228=\"\",\"\",'1. Order'!B228)","v":""},{"$f":"IF('1. Order'!J228=\"\",\"\",'1. Order'!J228)","v":""},{"$f":"IF('1. Order'!K228=\"\",\"\",'1. Order'!K228)","v":""},{"$f":"IF('1. Order'!L228=\"\",\"\",'1. Order'!L228)","v":""},{"$f":"IF('1. Order'!N228=\"\",\"\",'1. Order'!N228)","v":""},null,null,{"$f":"'1. Order'!AV228","v":0},{"$f":"IF('1. Order'!AI228=\"\",\"\",'1. Order'!AI228)","v":""}]
[{"$f":"IF('1. Order'!B229=\"\",\"\",'1. Order'!B229)","v":""},{"$f":"IF('1. Order'!J229=\"\",\"\",'1. Order'!J229)","v":""},{"$f":"IF('1. Order'!K229=\"\",\"\",'1. Order'!K229)","v":""},{"$f":"IF('1. Order'!L229=\"\",\"\",'1. Order'!L229)","v":""},{"$f":"IF('1. Order'!N229=\"\",\"\",'1. Order'!N229)","v":""},null,null,{"$f":"'1. Order'!AV229","v":0},{"$f":"IF('1. Order'!AI229=\"\",\"\",'1. Order'!AI229)","v":""}]
[{"$f":"IF('1. Order'!B230=\"\",\"\",'1. Order'!B230)","v":""},{"$f":"IF('1. Order'!J230=\"\",\"\",'1. Order'!J230)","v":""},{"$f":"IF('1. Order'!K230=\"\",\"\",'1. Order'!K230)","v":""},{"$f":"IF('1. Order'!L230=\"\",\"\",'1. Order'!L230)","v":""},{"$f":"IF('1. Order'!N230=\"\",\"\",'1. Order'!N230)","v":""},null,null,{"$f":"'1. Order'!AV230","v":0},{"$f":"IF('1. Order'!AI230=\"\",\"\",'1. Order'!AI230)","v":""}]
[{"$f":"IF('1. Order'!B231=\"\",\"\",'1. Order'!B231)","v":""},{"$f":"IF('1. Order'!J231=\"\",\"\",'1. Order'!J231)","v":""},{"$f":"IF('1. Order'!K231=\"\",\"\",'1. Order'!K231)","v":""},{"$f":"IF('1. Order'!L231=\"\",\"\",'1. Order'!L231)","v":""},{"$f":"IF('1. Order'!N231=\"\",\"\",'1. Order'!N231)","v":""},null,null,{"$f":"'1. Order'!AV231","v":0},{"$f":"IF('1. Order'!AI231=\"\",\"\",'1. Order'!AI231)","v":""}]
[{"$f":"IF('1. Order'!B232=\"\",\"\",'1. Order'!B232)","v":""},{"$f":"IF('1. Order'!J232=\"\",\"\",'1. Order'!J232)","v":""},{"$f":"IF('1. Order'!K232=\"\",\"\",'1. Order'!K232)","v":""},{"$f":"IF('1. Order'!L232=\"\",\"\",'1. Order'!L232)","v":""},{"$f":"IF('1. Order'!N232=\"\",\"\",'1. Order'!N232)","v":""},null,null,{"$f":"'1. Order'!AV232","v":0},{"$f":"IF('1. Order'!AI232=\"\",\"\",'1. Order'!AI232)","v":""}]
[{"$f":"IF('1. Order'!B233=\"\",\"\",'1. Order'!B233)","v":""},{"$f":"IF('1. Order'!J233=\"\",\"\",'1. Order'!J233)","v":""},{"$f":"IF('1. Order'!K233=\"\",\"\",'1. Order'!K233)","v":""},{"$f":"IF('1. Order'!L233=\"\",\"\",'1. Order'!L233)","v":""},{"$f":"IF('1. Order'!N233=\"\",\"\",'1. Order'!N233)","v":""},null,null,{"$f":"'1. Order'!AV233","v":0},{"$f":"IF('1. Order'!AI233=\"\",\"\",'1. Order'!AI233)","v":""}]
[{"$f":"IF('1. Order'!B234=\"\",\"\",'1. Order'!B234)","v":""},{"$f":"IF('1. Order'!J234=\"\",\"\",'1. Order'!J234)","v":""},{"$f":"IF('1. Order'!K234=\"\",\"\",'1. Order'!K234)","v":""},{"$f":"IF('1. Order'!L234=\"\",\"\",'1. Order'!L234)","v":""},{"$f":"IF('1. Order'!N234=\"\",\"\",'1. Order'!N234)","v":""},null,null,{"$f":"'1. Order'!AV234","v":0},{"$f":"IF('1. Order'!AI234=\"\",\"\",'1. Order'!AI234)","v":""}]
[{"$f":"IF('1. Order'!B235=\"\",\"\",'1. Order'!B235)","v":""},{"$f":"IF('1. Order'!J235=\"\",\"\",'1. Order'!J235)","v":""},{"$f":"IF('1. Order'!K235=\"\",\"\",'1. Order'!K235)","v":""},{"$f":"IF('1. Order'!L235=\"\",\"\",'1. Order'!L235)","v":""},{"$f":"IF('1. Order'!N235=\"\",\"\",'1. Order'!N235)","v":""},null,null,{"$f":"'1. Order'!AV235","v":0},{"$f":"IF('1. Order'!AI235=\"\",\"\",'1. Order'!AI235)","v":""}]
[{"$f":"IF('1. Order'!B236=\"\",\"\",'1. Order'!B236)","v":""},{"$f":"IF('1. Order'!J236=\"\",\"\",'1. Order'!J236)","v":""},{"$f":"IF('1. Order'!K236=\"\",\"\",'1. Order'!K236)","v":""},{"$f":"IF('1. Order'!L236=\"\",\"\",'1. Order'!L236)","v":""},{"$f":"IF('1. Order'!N236=\"\",\"\",'1. Order'!N236)","v":""},null,null,{"$f":"'1. Order'!AV236","v":0},{"$f":"IF('1. Order'!AI236=\"\",\"\",'1. Order'!AI236)","v":""}]
[{"$f":"IF('1. Order'!B237=\"\",\"\",'1. Order'!B237)","v":""},{"$f":"IF('1. Order'!J237=\"\",\"\",'1. Order'!J237)","v":""},{"$f":"IF('1. Order'!K237=\"\",\"\",'1. Order'!K237)","v":""},{"$f":"IF('1. Order'!L237=\"\",\"\",'1. Order'!L237)","v":""},{"$f":"IF('1. Order'!N237=\"\",\"\",'1. Order'!N237)","v":""},null,null,{"$f":"'1. Order'!AV237","v":0},{"$f":"IF('1. Order'!AI237=\"\",\"\",'1. Order'!AI237)","v":""}]
[{"$f":"IF('1. Order'!B238=\"\",\"\",'1. Order'!B238)","v":""},{"$f":"IF('1. Order'!J238=\"\",\"\",'1. Order'!J238)","v":""},{"$f":"IF('1. Order'!K238=\"\",\"\",'1. Order'!K238)","v":""},{"$f":"IF('1. Order'!L238=\"\",\"\",'1. Order'!L238)","v":""},{"$f":"IF('1. Order'!N238=\"\",\"\",'1. Order'!N238)","v":""},null,null,{"$f":"'1. Order'!AV238","v":0},{"$f":"IF('1. Order'!AI238=\"\",\"\",'1. Order'!AI238)","v":""}]
[{"$f":"IF('1. Order'!B239=\"\",\"\",'1. Order'!B239)","v":""},{"$f":"IF('1. Order'!J239=\"\",\"\",'1. Order'!J239)","v":""},{"$f":"IF('1. Order'!K239=\"\",\"\",'1. Order'!K239)","v":""},{"$f":"IF('1. Order'!L239=\"\",\"\",'1. Order'!L239)","v":""},{"$f":"IF('1. Order'!N239=\"\",\"\",'1. Order'!N239)","v":""},null,null,{"$f":"'1. Order'!AV239","v":0},{"$f":"IF('1. Order'!AI239=\"\",\"\",'1. Order'!AI239)","v":""}]
[{"$f":"IF('1. Order'!B240=\"\",\"\",'1. Order'!B240)","v":""},{"$f":"IF('1. Order'!J240=\"\",\"\",'1. Order'!J240)","v":""},{"$f":"IF('1. Order'!K240=\"\",\"\",'1. Order'!K240)","v":""},{"$f":"IF('1. Order'!L240=\"\",\"\",'1. Order'!L240)","v":""},{"$f":"IF('1. Order'!N240=\"\",\"\",'1. Order'!N240)","v":""},null,null,{"$f":"'1. Order'!AV240","v":0},{"$f":"IF('1. Order'!AI240=\"\",\"\",'1. Order'!AI240)","v":""}]
[{"$f":"IF('1. Order'!B241=\"\",\"\",'1. Order'!B241)","v":""},{"$f":"IF('1. Order'!J241=\"\",\"\",'1. Order'!J241)","v":""},{"$f":"IF('1. Order'!K241=\"\",\"\",'1. Order'!K241)","v":""},{"$f":"IF('1. Order'!L241=\"\",\"\",'1. Order'!L241)","v":""},{"$f":"IF('1. Order'!N241=\"\",\"\",'1. Order'!N241)","v":""},null,null,{"$f":"'1. Order'!AV241","v":0},{"$f":"IF('1. Order'!AI241=\"\",\"\",'1. Order'!AI241)","v":""}]
[{"$f":"IF('1. Order'!B242=\"\",\"\",'1. Order'!B242)","v":""},{"$f":"IF('1. Order'!J242=\"\",\"\",'1. Order'!J242)","v":""},{"$f":"IF('1. Order'!K242=\"\",\"\",'1. Order'!K242)","v":""},{"$f":"IF('1. Order'!L242=\"\",\"\",'1. Order'!L242)","v":""},{"$f":"IF('1. Order'!N242=\"\",\"\",'1. Order'!N242)","v":""},null,null,{"$f":"'1. Order'!AV242","v":0},{"$f":"IF('1. Order'!AI242=\"\",\"\",'1. Order'!AI242)","v":""}]
[{"$f":"IF('1. Order'!B243=\"\",\"\",'1. Order'!B243)","v":""},{"$f":"IF('1. Order'!J243=\"\",\"\",'1. Order'!J243)","v":""},{"$f":"IF('1. Order'!K243=\"\",\"\",'1. Order'!K243)","v":""},{"$f":"IF('1. Order'!L243=\"\",\"\",'1. Order'!L243)","v":""},{"$f":"IF('1. Order'!N243=\"\",\"\",'1. Order'!N243)","v":""},null,null,{"$f":"'1. Order'!AV243","v":0},{"$f":"IF('1. Order'!AI243=\"\",\"\",'1. Order'!AI243)","v":""}]
[{"$f":"IF('1. Order'!B244=\"\",\"\",'1. Order'!B244)","v":""},{"$f":"IF('1. Order'!J244=\"\",\"\",'1. Order'!J244)","v":""},{"$f":"IF('1. Order'!K244=\"\",\"\",'1. Order'!K244)","v":""},{"$f":"IF('1. Order'!L244=\"\",\"\",'1. Order'!L244)","v":""},{"$f":"IF('1. Order'!N244=\"\",\"\",'1. Order'!N244)","v":""},null,null,{"$f":"'1. Order'!AV244","v":0},{"$f":"IF('1. Order'!AI244=\"\",\"\",'1. Order'!AI244)","v":""}]
[{"$f":"IF('1. Order'!B245=\"\",\"\",'1. Order'!B245)","v":""},{"$f":"IF('1. Order'!J245=\"\",\"\",'1. Order'!J245)","v":""},{"$f":"IF('1. Order'!K245=\"\",\"\",'1. Order'!K245)","v":""},{"$f":"IF('1. Order'!L245=\"\",\"\",'1. Order'!L245)","v":""},{"$f":"IF('1. Order'!N245=\"\",\"\",'1. Order'!N245)","v":""},null,null,{"$f":"'1. Order'!AV245","v":0},{"$f":"IF('1. Order'!AI245=\"\",\"\",'1. Order'!AI245)","v":""}]
[{"$f":"IF('1. Order'!B246=\"\",\"\",'1. Order'!B246)","v":""},{"$f":"IF('1. Order'!J246=\"\",\"\",'1. Order'!J246)","v":""},{"$f":"IF('1. Order'!K246=\"\",\"\",'1. Order'!K246)","v":""},{"$f":"IF('1. Order'!L246=\"\",\"\",'1. Order'!L246)","v":""},{"$f":"IF('1. Order'!N246=\"\",\"\",'1. Order'!N246)","v":""},null,null,{"$f":"'1. Order'!AV246","v":0},{"$f":"IF('1. Order'!AI246=\"\",\"\",'1. Order'!AI246)","v":""}]
[{"$f":"IF('1. Order'!B247=\"\",\"\",'1. Order'!B247)","v":""},{"$f":"IF('1. Order'!J247=\"\",\"\",'1. Order'!J247)","v":""},{"$f":"IF('1. Order'!K247=\"\",\"\",'1. Order'!K247)","v":""},{"$f":"IF('1. Order'!L247=\"\",\"\",'1. Order'!L247)","v":""},{"$f":"IF('1. Order'!N247=\"\",\"\",'1. Order'!N247)","v":""},null,null,{"$f":"'1. Order'!AV247","v":0},{"$f":"IF('1. Order'!AI247=\"\",\"\",'1. Order'!AI247)","v":""}]
[{"$f":"IF('1. Order'!B248=\"\",\"\",'1. Order'!B248)","v":""},{"$f":"IF('1. Order'!J248=\"\",\"\",'1. Order'!J248)","v":""},{"$f":"IF('1. Order'!K248=\"\",\"\",'1. Order'!K248)","v":""},{"$f":"IF('1. Order'!L248=\"\",\"\",'1. Order'!L248)","v":""},{"$f":"IF('1. Order'!N248=\"\",\"\",'1. Order'!N248)","v":""},null,null,{"$f":"'1. Order'!AV248","v":0},{"$f":"IF('1. Order'!AI248=\"\",\"\",'1. Order'!AI248)","v":""}]
[{"$f":"IF('1. Order'!B249=\"\",\"\",'1. Order'!B249)","v":""},{"$f":"IF('1. Order'!J249=\"\",\"\",'1. Order'!J249)","v":""},{"$f":"IF('1. Order'!K249=\"\",\"\",'1. Order'!K249)","v":""},{"$f":"IF('1. Order'!L249=\"\",\"\",'1. Order'!L249)","v":""},{"$f":"IF('1. Order'!N249=\"\",\"\",'1. Order'!N249)","v":""},null,null,{"$f":"'1. Order'!AV249","v":0},{"$f":"IF('1. Order'!AI249=\"\",\"\",'1. Order'!AI249)","v":""}]
[{"$f":"IF('1. Order'!B250=\"\",\"\",'1. Order'!B250)","v":""},{"$f":"IF('1. Order'!J250=\"\",\"\",'1. Order'!J250)","v":""},{"$f":"IF('1. Order'!K250=\"\",\"\",'1. Order'!K250)","v":""},{"$f":"IF('1. Order'!L250=\"\",\"\",'1. Order'!L250)","v":""},{"$f":"IF('1. Order'!N250=\"\",\"\",'1. Order'!N250)","v":""},null,null,{"$f":"'1. Order'!AV250","v":0},{"$f":"IF('1. Order'!AI250=\"\",\"\",'1. Order'!AI250)","v":""}]
[{"$f":"IF('1. Order'!B251=\"\",\"\",'1. Order'!B251)","v":""},{"$f":"IF('1. Order'!J251=\"\",\"\",'1. Order'!J251)","v":""},{"$f":"IF('1. Order'!K251=\"\",\"\",'1. Order'!K251)","v":""},{"$f":"IF('1. Order'!L251=\"\",\"\",'1. Order'!L251)","v":""},{"$f":"IF('1. Order'!N251=\"\",\"\",'1. Order'!N251)","v":""},null,null,{"$f":"'1. Order'!AV251","v":0},{"$f":"IF('1. Order'!AI251=\"\",\"\",'1. Order'!AI251)","v":""}]
[{"$f":"IF('1. Order'!B252=\"\",\"\",'1. Order'!B252)","v":""},{"$f":"IF('1. Order'!J252=\"\",\"\",'1. Order'!J252)","v":""},{"$f":"IF('1. Order'!K252=\"\",\"\",'1. Order'!K252)","v":""},{"$f":"IF('1. Order'!L252=\"\",\"\",'1. Order'!L252)","v":""},{"$f":"IF('1. Order'!N252=\"\",\"\",'1. Order'!N252)","v":""},null,null,{"$f":"'1. Order'!AV252","v":0},{"$f":"IF('1. Order'!AI252=\"\",\"\",'1. Order'!AI252)","v":""}]
[{"$f":"IF('1. Order'!B253=\"\",\"\",'1. Order'!B253)","v":""},{"$f":"IF('1. Order'!J253=\"\",\"\",'1. Order'!J253)","v":""},{"$f":"IF('1. Order'!K253=\"\",\"\",'1. Order'!K253)","v":""},{"$f":"IF('1. Order'!L253=\"\",\"\",'1. Order'!L253)","v":""},{"$f":"IF('1. Order'!N253=\"\",\"\",'1. Order'!N253)","v":""},null,null,{"$f":"'1. Order'!AV253","v":0},{"$f":"IF('1. Order'!AI253=\"\",\"\",'1. Order'!AI253)","v":""}]
[{"$f":"IF('1. Order'!B254=\"\",\"\",'1. Order'!B254)","v":""},{"$f":"IF('1. Order'!J254=\"\",\"\",'1. Order'!J254)","v":""},{"$f":"IF('1. Order'!K254=\"\",\"\",'1. Order'!K254)","v":""},{"$f":"IF('1. Order'!L254=\"\",\"\",'1. Order'!L254)","v":""},{"$f":"IF('1. Order'!N254=\"\",\"\",'1. Order'!N254)","v":""},null,null,{"$f":"'1. Order'!AV254","v":0},{"$f":"IF('1. Order'!AI254=\"\",\"\",'1. Order'!AI254)","v":""}]
[{"$f":"IF('1. Order'!B255=\"\",\"\",'1. Order'!B255)","v":""},{"$f":"IF('1. Order'!J255=\"\",\"\",'1. Order'!J255)","v":""},{"$f":"IF('1. Order'!K255=\"\",\"\",'1. Order'!K255)","v":""},{"$f":"IF('1. Order'!L255=\"\",\"\",'1. Order'!L255)","v":""},{"$f":"IF('1. Order'!N255=\"\",\"\",'1. Order'!N255)","v":""},null,null,{"$f":"'1. Order'!AV255","v":0},{"$f":"IF('1. Order'!AI255=\"\",\"\",'1. Order'!AI255)","v":""}]
[{"$f":"IF('1. Order'!B256=\"\",\"\",'1. Order'!B256)","v":""},{"$f":"IF('1. Order'!J256=\"\",\"\",'1. Order'!J256)","v":""},{"$f":"IF('1. Order'!K256=\"\",\"\",'1. Order'!K256)","v":""},{"$f":"IF('1. Order'!L256=\"\",\"\",'1. Order'!L256)","v":""},{"$f":"IF('1. Order'!N256=\"\",\"\",'1. Order'!N256)","v":""},null,null,{"$f":"'1. Order'!AV256","v":0},{"$f":"IF('1. Order'!AI256=\"\",\"\",'1. Order'!AI256)","v":""}]
[{"$f":"IF('1. Order'!B257=\"\",\"\",'1. Order'!B257)","v":""},{"$f":"IF('1. Order'!J257=\"\",\"\",'1. Order'!J257)","v":""},{"$f":"IF('1. Order'!K257=\"\",\"\",'1. Order'!K257)","v":""},{"$f":"IF('1. Order'!L257=\"\",\"\",'1. Order'!L257)","v":""},{"$f":"IF('1. Order'!N257=\"\",\"\",'1. Order'!N257)","v":""},null,null,{"$f":"'1. Order'!AV257","v":0},{"$f":"IF('1. Order'!AI257=\"\",\"\",'1. Order'!AI257)","v":""}]
[{"$f":"IF('1. Order'!B258=\"\",\"\",'1. Order'!B258)","v":""},{"$f":"IF('1. Order'!J258=\"\",\"\",'1. Order'!J258)","v":""},{"$f":"IF('1. Order'!K258=\"\",\"\",'1. Order'!K258)","v":""},{"$f":"IF('1. Order'!L258=\"\",\"\",'1. Order'!L258)","v":""},{"$f":"IF('1. Order'!N258=\"\",\"\",'1. Order'!N258)","v":""},null,null,{"$f":"'1. Order'!AV258","v":0},{"$f":"IF('1. Order'!AI258=\"\",\"\",'1. Order'!AI258)","v":""}]
[{"$f":"IF('1. Order'!B259=\"\",\"\",'1. Order'!B259)","v":""},{"$f":"IF('1. Order'!J259=\"\",\"\",'1. Order'!J259)","v":""},{"$f":"IF('1. Order'!K259=\"\",\"\",'1. Order'!K259)","v":""},{"$f":"IF('1. Order'!L259=\"\",\"\",'1. Order'!L259)","v":""},{"$f":"IF('1. Order'!N259=\"\",\"\",'1. Order'!N259)","v":""},null,null,{"$f":"'1. Order'!AV259","v":0},{"$f":"IF('1. Order'!AI259=\"\",\"\",'1. Order'!AI259)","v":""}]
[{"$f":"IF('1. Order'!B260=\"\",\"\",'1. Order'!B260)","v":""},{"$f":"IF('1. Order'!J260=\"\",\"\",'1. Order'!J260)","v":""},{"$f":"IF('1. Order'!K260=\"\",\"\",'1. Order'!K260)","v":""},{"$f":"IF('1. Order'!L260=\"\",\"\",'1. Order'!L260)","v":""},{"$f":"IF('1. Order'!N260=\"\",\"\",'1. Order'!N260)","v":""},null,null,{"$f":"'1. Order'!AV260","v":0},{"$f":"IF('1. Order'!AI260=\"\",\"\",'1. Order'!AI260)","v":""}]
[{"$f":"IF('1. Order'!B261=\"\",\"\",'1. Order'!B261)","v":""},{"$f":"IF('1. Order'!J261=\"\",\"\",'1. Order'!J261)","v":""},{"$f":"IF('1. Order'!K261=\"\",\"\",'1. Order'!K261)","v":""},{"$f":"IF('1. Order'!L261=\"\",\"\",'1. Order'!L261)","v":""},{"$f":"IF('1. Order'!N261=\"\",\"\",'1. Order'!N261)","v":""},null,null,{"$f":"'1. Order'!AV261","v":0},{"$f":"IF('1. Order'!AI261=\"\",\"\",'1. Order'!AI261)","v":""}]
[{"$f":"IF('1. Order'!B262=\"\",\"\",'1. Order'!B262)","v":""},{"$f":"IF('1. Order'!J262=\"\",\"\",'1. Order'!J262)","v":""},{"$f":"IF('1. Order'!K262=\"\",\"\",'1. Order'!K262)","v":""},{"$f":"IF('1. Order'!L262=\"\",\"\",'1. Order'!L262)","v":""},{"$f":"IF('1. Order'!N262=\"\",\"\",'1. Order'!N262)","v":""},null,null,{"$f":"'1. Order'!AV262","v":0},{"$f":"IF('1. Order'!AI262=\"\",\"\",'1. Order'!AI262)","v":""}]
[{"$f":"IF('1. Order'!B263=\"\",\"\",'1. Order'!B263)","v":""},{"$f":"IF('1. Order'!J263=\"\",\"\",'1. Order'!J263)","v":""},{"$f":"IF('1. Order'!K263=\"\",\"\",'1. Order'!K263)","v":""},{"$f":"IF('1. Order'!L263=\"\",\"\",'1. Order'!L263)","v":""},{"$f":"IF('1. Order'!N263=\"\",\"\",'1. Order'!N263)","v":""},null,null,{"$f":"'1. Order'!AV263","v":0},{"$f":"IF('1. Order'!AI263=\"\",\"\",'1. Order'!AI263)","v":""}]
[{"$f":"IF('1. Order'!B264=\"\",\"\",'1. Order'!B264)","v":""},{"$f":"IF('1. Order'!J264=\"\",\"\",'1. Order'!J264)","v":""},{"$f":"IF('1. Order'!K264=\"\",\"\",'1. Order'!K264)","v":""},{"$f":"IF('1. Order'!L264=\"\",\"\",'1. Order'!L264)","v":""},{"$f":"IF('1. Order'!N264=\"\",\"\",'1. Order'!N264)","v":""},null,null,{"$f":"'1. Order'!AV264","v":0},{"$f":"IF('1. Order'!AI264=\"\",\"\",'1. Order'!AI264)","v":""}]
[{"$f":"IF('1. Order'!B265=\"\",\"\",'1. Order'!B265)","v":""},{"$f":"IF('1. Order'!J265=\"\",\"\",'1. Order'!J265)","v":""},{"$f":"IF('1. Order'!K265=\"\",\"\",'1. Order'!K265)","v":""},{"$f":"IF('1. Order'!L265=\"\",\"\",'1. Order'!L265)","v":""},{"$f":"IF('1. Order'!N265=\"\",\"\",'1. Order'!N265)","v":""},null,null,{"$f":"'1. Order'!AV265","v":0},{"$f":"IF('1. Order'!AI265=\"\",\"\",'1. Order'!AI265)","v":""}]
[{"$f":"IF('1. Order'!B266=\"\",\"\",'1. Order'!B266)","v":""},{"$f":"IF('1. Order'!J266=\"\",\"\",'1. Order'!J266)","v":""},{"$f":"IF('1. Order'!K266=\"\",\"\",'1. Order'!K266)","v":""},{"$f":"IF('1. Order'!L266=\"\",\"\",'1. Order'!L266)","v":""},{"$f":"IF('1. Order'!N266=\"\",\"\",'1. Order'!N266)","v":""},null,null,{"$f":"'1. Order'!AV266","v":0},{"$f":"IF('1. Order'!AI266=\"\",\"\",'1. Order'!AI266)","v":""}]
[{"$f":"IF('1. Order'!B267=\"\",\"\",'1. Order'!B267)","v":""},{"$f":"IF('1. Order'!J267=\"\",\"\",'1. Order'!J267)","v":""},{"$f":"IF('1. Order'!K267=\"\",\"\",'1. Order'!K267)","v":""},{"$f":"IF('1. Order'!L267=\"\",\"\",'1. Order'!L267)","v":""},{"$f":"IF('1. Order'!N267=\"\",\"\",'1. Order'!N267)","v":""},null,null,{"$f":"'1. Order'!AV267","v":0},{"$f":"IF('1. Order'!AI267=\"\",\"\",'1. Order'!AI267)","v":""}]
[{"$f":"IF('1. Order'!B268=\"\",\"\",'1. Order'!B268)","v":""},{"$f":"IF('1. Order'!J268=\"\",\"\",'1. Order'!J268)","v":""},{"$f":"IF('1. Order'!K268=\"\",\"\",'1. Order'!K268)","v":""},{"$f":"IF('1. Order'!L268=\"\",\"\",'1. Order'!L268)","v":""},{"$f":"IF('1. Order'!N268=\"\",\"\",'1. Order'!N268)","v":""},null,null,{"$f":"'1. Order'!AV268","v":0},{"$f":"IF('1. Order'!AI268=\"\",\"\",'1. Order'!AI268)","v":""}]
[{"$f":"IF('1. Order'!B269=\"\",\"\",'1. Order'!B269)","v":""},{"$f":"IF('1. Order'!J269=\"\",\"\",'1. Order'!J269)","v":""},{"$f":"IF('1. Order'!K269=\"\",\"\",'1. Order'!K269)","v":""},{"$f":"IF('1. Order'!L269=\"\",\"\",'1. Order'!L269)","v":""},{"$f":"IF('1. Order'!N269=\"\",\"\",'1. Order'!N269)","v":""},null,null,{"$f":"'1. Order'!AV269","v":0},{"$f":"IF('1. Order'!AI269=\"\",\"\",'1. Order'!AI269)","v":""}]
[{"$f":"IF('1. Order'!B270=\"\",\"\",'1. Order'!B270)","v":""},{"$f":"IF('1. Order'!J270=\"\",\"\",'1. Order'!J270)","v":""},{"$f":"IF('1. Order'!K270=\"\",\"\",'1. Order'!K270)","v":""},{"$f":"IF('1. Order'!L270=\"\",\"\",'1. Order'!L270)","v":""},{"$f":"IF('1. Order'!N270=\"\",\"\",'1. Order'!N270)","v":""},null,null,{"$f":"'1. Order'!AV270","v":0},{"$f":"IF('1. Order'!AI270=\"\",\"\",'1. Order'!AI270)","v":""}]
[{"$f":"IF('1. Order'!B271=\"\",\"\",'1. Order'!B271)","v":""},{"$f":"IF('1. Order'!J271=\"\",\"\",'1. Order'!J271)","v":""},{"$f":"IF('1. Order'!K271=\"\",\"\",'1. Order'!K271)","v":""},{"$f":"IF('1. Order'!L271=\"\",\"\",'1. Order'!L271)","v":""},{"$f":"IF('1. Order'!N271=\"\",\"\",'1. Order'!N271)","v":""},null,null,{"$f":"'1. Order'!AV271","v":0},{"$f":"IF('1. Order'!AI271=\"\",\"\",'1. Order'!AI271)","v":""}]
[{"$f":"IF('1. Order'!B272=\"\",\"\",'1. Order'!B272)","v":""},{"$f":"IF('1. Order'!J272=\"\",\"\",'1. Order'!J272)","v":""},{"$f":"IF('1. Order'!K272=\"\",\"\",'1. Order'!K272)","v":""},{"$f":"IF('1. Order'!L272=\"\",\"\",'1. Order'!L272)","v":""},{"$f":"IF('1. Order'!N272=\"\",\"\",'1. Order'!N272)","v":""},null,null,{"$f":"'1. Order'!AV272","v":0},{"$f":"IF('1. Order'!AI272=\"\",\"\",'1. Order'!AI272)","v":""}]
[{"$f":"IF('1. Order'!B273=\"\",\"\",'1. Order'!B273)","v":""},{"$f":"IF('1. Order'!J273=\"\",\"\",'1. Order'!J273)","v":""},{"$f":"IF('1. Order'!K273=\"\",\"\",'1. Order'!K273)","v":""},{"$f":"IF('1. Order'!L273=\"\",\"\",'1. Order'!L273)","v":""},{"$f":"IF('1. Order'!N273=\"\",\"\",'1. Order'!N273)","v":""},null,null,{"$f":"'1. Order'!AV273","v":0},{"$f":"IF('1. Order'!AI273=\"\",\"\",'1. Order'!AI273)","v":""}]
[{"$f":"IF('1. Order'!B274=\"\",\"\",'1. Order'!B274)","v":""},{"$f":"IF('1. Order'!J274=\"\",\"\",'1. Order'!J274)","v":""},{"$f":"IF('1. Order'!K274=\"\",\"\",'1. Order'!K274)","v":""},{"$f":"IF('1. Order'!L274=\"\",\"\",'1. Order'!L274)","v":""},{"$f":"IF('1. Order'!N274=\"\",\"\",'1. Order'!N274)","v":""},null,null,{"$f":"'1. Order'!AV274","v":0},{"$f":"IF('1. Order'!AI274=\"\",\"\",'1. Order'!AI274)","v":""}]
[{"$f":"IF('1. Order'!B275=\"\",\"\",'1. Order'!B275)","v":""},{"$f":"IF('1. Order'!J275=\"\",\"\",'1. Order'!J275)","v":""},{"$f":"IF('1. Order'!K275=\"\",\"\",'1. Order'!K275)","v":""},{"$f":"IF('1. Order'!L275=\"\",\"\",'1. Order'!L275)","v":""},{"$f":"IF('1. Order'!N275=\"\",\"\",'1. Order'!N275)","v":""},null,null,{"$f":"'1. Order'!AV275","v":0},{"$f":"IF('1. Order'!AI275=\"\",\"\",'1. Order'!AI275)","v":""}]
[{"$f":"IF('1. Order'!B276=\"\",\"\",'1. Order'!B276)","v":""},{"$f":"IF('1. Order'!J276=\"\",\"\",'1. Order'!J276)","v":""},{"$f":"IF('1. Order'!K276=\"\",\"\",'1. Order'!K276)","v":""},{"$f":"IF('1. Order'!L276=\"\",\"\",'1. Order'!L276)","v":""},{"$f":"IF('1. Order'!N276=\"\",\"\",'1. Order'!N276)","v":""},null,null,{"$f":"'1. Order'!AV276","v":0},{"$f":"IF('1. Order'!AI276=\"\",\"\",'1. Order'!AI276)","v":""}]
[{"$f":"IF('1. Order'!B277=\"\",\"\",'1. Order'!B277)","v":""},{"$f":"IF('1. Order'!J277=\"\",\"\",'1. Order'!J277)","v":""},{"$f":"IF('1. Order'!K277=\"\",\"\",'1. Order'!K277)","v":""},{"$f":"IF('1. Order'!L277=\"\",\"\",'1. Order'!L277)","v":""},{"$f":"IF('1. Order'!N277=\"\",\"\",'1. Order'!N277)","v":""},null,null,{"$f":"'1. Order'!AV277","v":0},{"$f":"IF('1. Order'!AI277=\"\",\"\",'1. Order'!AI277)","v":""}]
[{"$f":"IF('1. Order'!B278=\"\",\"\",'1. Order'!B278)","v":""},{"$f":"IF('1. Order'!J278=\"\",\"\",'1. Order'!J278)","v":""},{"$f":"IF('1. Order'!K278=\"\",\"\",'1. Order'!K278)","v":""},{"$f":"IF('1. Order'!L278=\"\",\"\",'1. Order'!L278)","v":""},{"$f":"IF('1. Order'!N278=\"\",\"\",'1. Order'!N278)","v":""},null,null,{"$f":"'1. Order'!AV278","v":0},{"$f":"IF('1. Order'!AI278=\"\",\"\",'1. Order'!AI278)","v":""}]
[{"$f":"IF('1. Order'!B279=\"\",\"\",'1. Order'!B279)","v":""},{"$f":"IF('1. Order'!J279=\"\",\"\",'1. Order'!J279)","v":""},{"$f":"IF('1. Order'!K279=\"\",\"\",'1. Order'!K279)","v":""},{"$f":"IF('1. Order'!L279=\"\",\"\",'1. Order'!L279)","v":""},{"$f":"IF('1. Order'!N279=\"\",\"\",'1. Order'!N279)","v":""},null,null,{"$f":"'1. Order'!AV279","v":0},{"$f":"IF('1. Order'!AI279=\"\",\"\",'1. Order'!AI279)","v":""}]
[{"$f":"IF('1. Order'!B280=\"\",\"\",'1. Order'!B280)","v":""},{"$f":"IF('1. Order'!J280=\"\",\"\",'1. Order'!J280)","v":""},{"$f":"IF('1. Order'!K280=\"\",\"\",'1. Order'!K280)","v":""},{"$f":"IF('1. Order'!L280=\"\",\"\",'1. Order'!L280)","v":""},{"$f":"IF('1. Order'!N280=\"\",\"\",'1. Order'!N280)","v":""},null,null,{"$f":"'1. Order'!AV280","v":0},{"$f":"IF('1. Order'!AI280=\"\",\"\",'1. Order'!AI280)","v":""}]
[{"$f":"IF('1. Order'!B281=\"\",\"\",'1. Order'!B281)","v":""},{"$f":"IF('1. Order'!J281=\"\",\"\",'1. Order'!J281)","v":""},{"$f":"IF('1. Order'!K281=\"\",\"\",'1. Order'!K281)","v":""},{"$f":"IF('1. Order'!L281=\"\",\"\",'1. Order'!L281)","v":""},{"$f":"IF('1. Order'!N281=\"\",\"\",'1. Order'!N281)","v":""},null,null,{"$f":"'1. Order'!AV281","v":0},{"$f":"IF('1. Order'!AI281=\"\",\"\",'1. Order'!AI281)","v":""}]
[{"$f":"IF('1. Order'!B282=\"\",\"\",'1. Order'!B282)","v":""},{"$f":"IF('1. Order'!J282=\"\",\"\",'1. Order'!J282)","v":""},{"$f":"IF('1. Order'!K282=\"\",\"\",'1. Order'!K282)","v":""},{"$f":"IF('1. Order'!L282=\"\",\"\",'1. Order'!L282)","v":""},{"$f":"IF('1. Order'!N282=\"\",\"\",'1. Order'!N282)","v":""},null,null,{"$f":"'1. Order'!AV282","v":0},{"$f":"IF('1. Order'!AI282=\"\",\"\",'1. Order'!AI282)","v":""}]
[{"$f":"IF('1. Order'!B283=\"\",\"\",'1. Order'!B283)","v":""},{"$f":"IF('1. Order'!J283=\"\",\"\",'1. Order'!J283)","v":""},{"$f":"IF('1. Order'!K283=\"\",\"\",'1. Order'!K283)","v":""},{"$f":"IF('1. Order'!L283=\"\",\"\",'1. Order'!L283)","v":""},{"$f":"IF('1. Order'!N283=\"\",\"\",'1. Order'!N283)","v":""},null,null,{"$f":"'1. Order'!AV283","v":0},{"$f":"IF('1. Order'!AI283=\"\",\"\",'1. Order'!AI283)","v":""}]
[{"$f":"IF('1. Order'!B284=\"\",\"\",'1. Order'!B284)","v":""},{"$f":"IF('1. Order'!J284=\"\",\"\",'1. Order'!J284)","v":""},{"$f":"IF('1. Order'!K284=\"\",\"\",'1. Order'!K284)","v":""},{"$f":"IF('1. Order'!L284=\"\",\"\",'1. Order'!L284)","v":""},{"$f":"IF('1. Order'!N284=\"\",\"\",'1. Order'!N284)","v":""},null,null,{"$f":"'1. Order'!AV284","v":0},{"$f":"IF('1. Order'!AI284=\"\",\"\",'1. Order'!AI284)","v":""}]
[{"$f":"IF('1. Order'!B285=\"\",\"\",'1. Order'!B285)","v":""},{"$f":"IF('1. Order'!J285=\"\",\"\",'1. Order'!J285)","v":""},{"$f":"IF('1. Order'!K285=\"\",\"\",'1. Order'!K285)","v":""},{"$f":"IF('1. Order'!L285=\"\",\"\",'1. Order'!L285)","v":""},{"$f":"IF('1. Order'!N285=\"\",\"\",'1. Order'!N285)","v":""},null,null,{"$f":"'1. Order'!AV285","v":0},{"$f":"IF('1. Order'!AI285=\"\",\"\",'1. Order'!AI285)","v":""}]
[{"$f":"IF('1. Order'!B286=\"\",\"\",'1. Order'!B286)","v":""},{"$f":"IF('1. Order'!J286=\"\",\"\",'1. Order'!J286)","v":""},{"$f":"IF('1. Order'!K286=\"\",\"\",'1. Order'!K286)","v":""},{"$f":"IF('1. Order'!L286=\"\",\"\",'1. Order'!L286)","v":""},{"$f":"IF('1. Order'!N286=\"\",\"\",'1. Order'!N286)","v":""},null,null,{"$f":"'1. Order'!AV286","v":0},{"$f":"IF('1. Order'!AI286=\"\",\"\",'1. Order'!AI286)","v":""}]
[{"$f":"IF('1. Order'!B287=\"\",\"\",'1. Order'!B287)","v":""},{"$f":"IF('1. Order'!J287=\"\",\"\",'1. Order'!J287)","v":""},{"$f":"IF('1. Order'!K287=\"\",\"\",'1. Order'!K287)","v":""},{"$f":"IF('1. Order'!L287=\"\",\"\",'1. Order'!L287)","v":""},{"$f":"IF('1. Order'!N287=\"\",\"\",'1. Order'!N287)","v":""},null,null,{"$f":"'1. Order'!AV287","v":0},{"$f":"IF('1. Order'!AI287=\"\",\"\",'1. Order'!AI287)","v":""}]
[{"$f":"IF('1. Order'!B288=\"\",\"\",'1. Order'!B288)","v":""},{"$f":"IF('1. Order'!J288=\"\",\"\",'1. Order'!J288)","v":""},{"$f":"IF('1. Order'!K288=\"\",\"\",'1. Order'!K288)","v":""},{"$f":"IF('1. Order'!L288=\"\",\"\",'1. Order'!L288)","v":""},{"$f":"IF('1. Order'!N288=\"\",\"\",'1. Order'!N288)","v":""},null,null,{"$f":"'1. Order'!AV288","v":0},{"$f":"IF('1. Order'!AI288=\"\",\"\",'1. Order'!AI288)","v":""}]
[{"$f":"IF('1. Order'!B289=\"\",\"\",'1. Order'!B289)","v":""},{"$f":"IF('1. Order'!J289=\"\",\"\",'1. Order'!J289)","v":""},{"$f":"IF('1. Order'!K289=\"\",\"\",'1. Order'!K289)","v":""},{"$f":"IF('1. Order'!L289=\"\",\"\",'1. Order'!L289)","v":""},{"$f":"IF('1. Order'!N289=\"\",\"\",'1. Order'!N289)","v":""},null,null,{"$f":"'1. Order'!AV289","v":0},{"$f":"IF('1. Order'!AI289=\"\",\"\",'1. Order'!AI289)","v":""}]
[{"$f":"IF('1. Order'!B290=\"\",\"\",'1. Order'!B290)","v":""},{"$f":"IF('1. Order'!J290=\"\",\"\",'1. Order'!J290)","v":""},{"$f":"IF('1. Order'!K290=\"\",\"\",'1. Order'!K290)","v":""},{"$f":"IF('1. Order'!L290=\"\",\"\",'1. Order'!L290)","v":""},{"$f":"IF('1. Order'!N290=\"\",\"\",'1. Order'!N290)","v":""},null,null,{"$f":"'1. Order'!AV290","v":0},{"$f":"IF('1. Order'!AI290=\"\",\"\",'1. Order'!AI290)","v":""}]
[{"$f":"IF('1. Order'!B291=\"\",\"\",'1. Order'!B291)","v":""},{"$f":"IF('1. Order'!J291=\"\",\"\",'1. Order'!J291)","v":""},{"$f":"IF('1. Order'!K291=\"\",\"\",'1. Order'!K291)","v":""},{"$f":"IF('1. Order'!L291=\"\",\"\",'1. Order'!L291)","v":""},{"$f":"IF('1. Order'!N291=\"\",\"\",'1. Order'!N291)","v":""},null,null,{"$f":"'1. Order'!AV291","v":0},{"$f":"IF('1. Order'!AI291=\"\",\"\",'1. Order'!AI291)","v":""}]
[{"$f":"IF('1. Order'!B292=\"\",\"\",'1. Order'!B292)","v":""},{"$f":"IF('1. Order'!J292=\"\",\"\",'1. Order'!J292)","v":""},{"$f":"IF('1. Order'!K292=\"\",\"\",'1. Order'!K292)","v":""},{"$f":"IF('1. Order'!L292=\"\",\"\",'1. Order'!L292)","v":""},{"$f":"IF('1. Order'!N292=\"\",\"\",'1. Order'!N292)","v":""},null,null,{"$f":"'1. Order'!AV292","v":0},{"$f":"IF('1. Order'!AI292=\"\",\"\",'1. Order'!AI292)","v":""}]
[{"$f":"IF('1. Order'!B293=\"\",\"\",'1. Order'!B293)","v":""},{"$f":"IF('1. Order'!J293=\"\",\"\",'1. Order'!J293)","v":""},{"$f":"IF('1. Order'!K293=\"\",\"\",'1. Order'!K293)","v":""},{"$f":"IF('1. Order'!L293=\"\",\"\",'1. Order'!L293)","v":""},{"$f":"IF('1. Order'!N293=\"\",\"\",'1. Order'!N293)","v":""},null,null,{"$f":"'1. Order'!AV293","v":0},{"$f":"IF('1. Order'!AI293=\"\",\"\",'1. Order'!AI293)","v":""}]
[{"$f":"IF('1. Order'!B294=\"\",\"\",'1. Order'!B294)","v":""},{"$f":"IF('1. Order'!J294=\"\",\"\",'1. Order'!J294)","v":""},{"$f":"IF('1. Order'!K294=\"\",\"\",'1. Order'!K294)","v":""},{"$f":"IF('1. Order'!L294=\"\",\"\",'1. Order'!L294)","v":""},{"$f":"IF('1. Order'!N294=\"\",\"\",'1. Order'!N294)","v":""},null,null,{"$f":"'1. Order'!AV294","v":0},{"$f":"IF('1. Order'!AI294=\"\",\"\",'1. Order'!AI294)","v":""}]
[{"$f":"IF('1. Order'!B295=\"\",\"\",'1. Order'!B295)","v":""},{"$f":"IF('1. Order'!J295=\"\",\"\",'1. Order'!J295)","v":""},{"$f":"IF('1. Order'!K295=\"\",\"\",'1. Order'!K295)","v":""},{"$f":"IF('1. Order'!L295=\"\",\"\",'1. Order'!L295)","v":""},{"$f":"IF('1. Order'!N295=\"\",\"\",'1. Order'!N295)","v":""},null,null,{"$f":"'1. Order'!AV295","v":0},{"$f":"IF('1. Order'!AI295=\"\",\"\",'1. Order'!AI295)","v":""}]
[{"$f":"IF('1. Order'!B296=\"\",\"\",'1. Order'!B296)","v":""},{"$f":"IF('1. Order'!J296=\"\",\"\",'1. Order'!J296)","v":""},{"$f":"IF('1. Order'!K296=\"\",\"\",'1. Order'!K296)","v":""},{"$f":"IF('1. Order'!L296=\"\",\"\",'1. Order'!L296)","v":""},{"$f":"IF('1. Order'!N296=\"\",\"\",'1. Order'!N296)","v":""},null,null,{"$f":"'1. Order'!AV296","v":0},{"$f":"IF('1. Order'!AI296=\"\",\"\",'1. Order'!AI296)","v":""}]
[{"$f":"IF('1. Order'!B297=\"\",\"\",'1. Order'!B297)","v":""},{"$f":"IF('1. Order'!J297=\"\",\"\",'1. Order'!J297)","v":""},{"$f":"IF('1. Order'!K297=\"\",\"\",'1. Order'!K297)","v":""},{"$f":"IF('1. Order'!L297=\"\",\"\",'1. Order'!L297)","v":""},{"$f":"IF('1. Order'!N297=\"\",\"\",'1. Order'!N297)","v":""},null,null,{"$f":"'1. Order'!AV297","v":0},{"$f":"IF('1. Order'!AI297=\"\",\"\",'1. Order'!AI297)","v":""}]
[{"$f":"IF('1. Order'!B298=\"\",\"\",'1. Order'!B298)","v":""},{"$f":"IF('1. Order'!J298=\"\",\"\",'1. Order'!J298)","v":""},{"$f":"IF('1. Order'!K298=\"\",\"\",'1. Order'!K298)","v":""},{"$f":"IF('1. Order'!L298=\"\",\"\",'1. Order'!L298)","v":""},{"$f":"IF('1. Order'!N298=\"\",\"\",'1. Order'!N298)","v":""},null,null,{"$f":"'1. Order'!AV298","v":0},{"$f":"IF('1. Order'!AI298=\"\",\"\",'1. Order'!AI298)","v":""}]
[{"$f":"IF('1. Order'!B299=\"\",\"\",'1. Order'!B299)","v":""},{"$f":"IF('1. Order'!J299=\"\",\"\",'1. Order'!J299)","v":""},{"$f":"IF('1. Order'!K299=\"\",\"\",'1. Order'!K299)","v":""},{"$f":"IF('1. Order'!L299=\"\",\"\",'1. Order'!L299)","v":""},{"$f":"IF('1. Order'!N299=\"\",\"\",'1. Order'!N299)","v":""},null,null,{"$f":"'1. Order'!AV299","v":0},{"$f":"IF('1. Order'!AI299=\"\",\"\",'1. Order'!AI299)","v":""}]
[{"$f":"IF('1. Order'!B300=\"\",\"\",'1. Order'!B300)","v":""},{"$f":"IF('1. Order'!J300=\"\",\"\",'1. Order'!J300)","v":""},{"$f":"IF('1. Order'!K300=\"\",\"\",'1. Order'!K300)","v":""},{"$f":"IF('1. Order'!L300=\"\",\"\",'1. Order'!L300)","v":""},{"$f":"IF('1. Order'!N300=\"\",\"\",'1. Order'!N300)","v":""},null,null,{"$f":"'1. Order'!AV300","v":0},{"$f":"IF('1. Order'!AI300=\"\",\"\",'1. Order'!AI300)","v":""}]
[{"$f":"IF('1. Order'!B301=\"\",\"\",'1. Order'!B301)","v":""},{"$f":"IF('1. Order'!J301=\"\",\"\",'1. Order'!J301)","v":""},{"$f":"IF('1. Order'!K301=\"\",\"\",'1. Order'!K301)","v":""},{"$f":"IF('1. Order'!L301=\"\",\"\",'1. Order'!L301)","v":""},{"$f":"IF('1. Order'!N301=\"\",\"\",'1. Order'!N301)","v":""},null,null,{"$f":"'1. Order'!AV301","v":0},{"$f":"IF('1. Order'!AI301=\"\",\"\",'1. Order'!AI301)","v":""}]
[{"$f":"IF('1. Order'!B302=\"\",\"\",'1. Order'!B302)","v":""},{"$f":"IF('1. Order'!J302=\"\",\"\",'1. Order'!J302)","v":""},{"$f":"IF('1. Order'!K302=\"\",\"\",'1. Order'!K302)","v":""},{"$f":"IF('1. Order'!L302=\"\",\"\",'1. Order'!L302)","v":""},{"$f":"IF('1. Order'!N302=\"\",\"\",'1. Order'!N302)","v":""},null,null,{"$f":"'1. Order'!AV302","v":0},{"$f":"IF('1. Order'!AI302=\"\",\"\",'1. Order'!AI302)","v":""}]
[{"$f":"IF('1. Order'!B303=\"\",\"\",'1. Order'!B303)","v":""},{"$f":"IF('1. Order'!J303=\"\",\"\",'1. Order'!J303)","v":""},{"$f":"IF('1. Order'!K303=\"\",\"\",'1. Order'!K303)","v":""},{"$f":"IF('1. Order'!L303=\"\",\"\",'1. Order'!L303)","v":""},{"$f":"IF('1. Order'!N303=\"\",\"\",'1. Order'!N303)","v":""},null,null,{"$f":"'1. Order'!AV303","v":0},{"$f":"IF('1. Order'!AI303=\"\",\"\",'1. Order'!AI303)","v":""}]
[{"$f":"IF('1. Order'!B304=\"\",\"\",'1. Order'!B304)","v":""},{"$f":"IF('1. Order'!J304=\"\",\"\",'1. Order'!J304)","v":""},{"$f":"IF('1. Order'!K304=\"\",\"\",'1. Order'!K304)","v":""},{"$f":"IF('1. Order'!L304=\"\",\"\",'1. Order'!L304)","v":""},{"$f":"IF('1. Order'!N304=\"\",\"\",'1. Order'!N304)","v":""},null,null,{"$f":"'1. Order'!AV304","v":0},{"$f":"IF('1. Order'!AI304=\"\",\"\",'1. Order'!AI304)","v":""}]
[{"$f":"IF('1. Order'!B305=\"\",\"\",'1. Order'!B305)","v":""},{"$f":"IF('1. Order'!J305=\"\",\"\",'1. Order'!J305)","v":""},{"$f":"IF('1. Order'!K305=\"\",\"\",'1. Order'!K305)","v":""},{"$f":"IF('1. Order'!L305=\"\",\"\",'1. Order'!L305)","v":""},{"$f":"IF('1. Order'!N305=\"\",\"\",'1. Order'!N305)","v":""},null,null,{"$f":"'1. Order'!AV305","v":0},{"$f":"IF('1. Order'!AI305=\"\",\"\",'1. Order'!AI305)","v":""}]
[{"$f":"IF('1. Order'!B306=\"\",\"\",'1. Order'!B306)","v":""},{"$f":"IF('1. Order'!J306=\"\",\"\",'1. Order'!J306)","v":""},{"$f":"IF('1. Order'!K306=\"\",\"\",'1. Order'!K306)","v":""},{"$f":"IF('1. Order'!L306=\"\",\"\",'1. Order'!L306)","v":""},{"$f":"IF('1. Order'!N306=\"\",\"\",'1. Order'!N306)","v":""},null,null,{"$f":"'1. Order'!AV306","v":0},{"$f":"IF('1. Order'!AI306=\"\",\"\",'1. Order'!AI306)","v":""}]
[{"$f":"IF('1. Order'!B307=\"\",\"\",'1. Order'!B307)","v":""},{"$f":"IF('1. Order'!J307=\"\",\"\",'1. Order'!J307)","v":""},{"$f":"IF('1. Order'!K307=\"\",\"\",'1. Order'!K307)","v":""},{"$f":"IF('1. Order'!L307=\"\",\"\",'1. Order'!L307)","v":""},{"$f":"IF('1. Order'!N307=\"\",\"\",'1. Order'!N307)","v":""},null,null,{"$f":"'1. Order'!AV307","v":0},{"$f":"IF('1. Order'!AI307=\"\",\"\",'1. Order'!AI307)","v":""}]
[{"$f":"IF('1. Order'!B308=\"\",\"\",'1. Order'!B308)","v":""},{"$f":"IF('1. Order'!J308=\"\",\"\",'1. Order'!J308)","v":""},{"$f":"IF('1. Order'!K308=\"\",\"\",'1. Order'!K308)","v":""},{"$f":"IF('1. Order'!L308=\"\",\"\",'1. Order'!L308)","v":""},{"$f":"IF('1. Order'!N308=\"\",\"\",'1. Order'!N308)","v":""},null,null,{"$f":"'1. Order'!AV308","v":0},{"$f":"IF('1. Order'!AI308=\"\",\"\",'1. Order'!AI308)","v":""}]
[{"$f":"IF('1. Order'!B309=\"\",\"\",'1. Order'!B309)","v":""},{"$f":"IF('1. Order'!J309=\"\",\"\",'1. Order'!J309)","v":""},{"$f":"IF('1. Order'!K309=\"\",\"\",'1. Order'!K309)","v":""},{"$f":"IF('1. Order'!L309=\"\",\"\",'1. Order'!L309)","v":""},{"$f":"IF('1. Order'!N309=\"\",\"\",'1. Order'!N309)","v":""},null,null,{"$f":"'1. Order'!AV309","v":0},{"$f":"IF('1. Order'!AI309=\"\",\"\",'1. Order'!AI309)","v":""}]
[{"$f":"IF('1. Order'!B310=\"\",\"\",'1. Order'!B310)","v":""},{"$f":"IF('1. Order'!J310=\"\",\"\",'1. Order'!J310)","v":""},{"$f":"IF('1. Order'!K310=\"\",\"\",'1. Order'!K310)","v":""},{"$f":"IF('1. Order'!L310=\"\",\"\",'1. Order'!L310)","v":""},{"$f":"IF('1. Order'!N310=\"\",\"\",'1. Order'!N310)","v":""},null,null,{"$f":"'1. Order'!AV310","v":0},{"$f":"IF('1. Order'!AI310=\"\",\"\",'1. Order'!AI310)","v":""}]
[{"$f":"IF('1. Order'!B311=\"\",\"\",'1. Order'!B311)","v":""},{"$f":"IF('1. Order'!J311=\"\",\"\",'1. Order'!J311)","v":""},{"$f":"IF('1. Order'!K311=\"\",\"\",'1. Order'!K311)","v":""},{"$f":"IF('1. Order'!L311=\"\",\"\",'1. Order'!L311)","v":""},{"$f":"IF('1. Order'!N311=\"\",\"\",'1. Order'!N311)","v":""},null,null,{"$f":"'1. Order'!AV311","v":0},{"$f":"IF('1. Order'!AI311=\"\",\"\",'1. Order'!AI311)","v":""}]
[{"$f":"IF('1. Order'!B312=\"\",\"\",'1. Order'!B312)","v":""},{"$f":"IF('1. Order'!J312=\"\",\"\",'1. Order'!J312)","v":""},{"$f":"IF('1. Order'!K312=\"\",\"\",'1. Order'!K312)","v":""},{"$f":"IF('1. Order'!L312=\"\",\"\",'1. Order'!L312)","v":""},{"$f":"IF('1. Order'!N312=\"\",\"\",'1. Order'!N312)","v":""},null,null,{"$f":"'1. Order'!AV312","v":0},{"$f":"IF('1. Order'!AI312=\"\",\"\",'1. Order'!AI312)","v":""}]
[{"$f":"IF('1. Order'!B313=\"\",\"\",'1. Order'!B313)","v":""},{"$f":"IF('1. Order'!J313=\"\",\"\",'1. Order'!J313)","v":""},{"$f":"IF('1. Order'!K313=\"\",\"\",'1. Order'!K313)","v":""},{"$f":"IF('1. Order'!L313=\"\",\"\",'1. Order'!L313)","v":""},{"$f":"IF('1. Order'!N313=\"\",\"\",'1. Order'!N313)","v":""},null,null,{"$f":"'1. Order'!AV313","v":0},{"$f":"IF('1. Order'!AI313=\"\",\"\",'1. Order'!AI313)","v":""}]
[{"$f":"IF('1. Order'!B314=\"\",\"\",'1. Order'!B314)","v":""},{"$f":"IF('1. Order'!J314=\"\",\"\",'1. Order'!J314)","v":""},{"$f":"IF('1. Order'!K314=\"\",\"\",'1. Order'!K314)","v":""},{"$f":"IF('1. Order'!L314=\"\",\"\",'1. Order'!L314)","v":""},{"$f":"IF('1. Order'!N314=\"\",\"\",'1. Order'!N314)","v":""},null,null,{"$f":"'1. Order'!AV314","v":0},{"$f":"IF('1. Order'!AI314=\"\",\"\",'1. Order'!AI314)","v":""}]
[{"$f":"IF('1. Order'!B315=\"\",\"\",'1. Order'!B315)","v":""},{"$f":"IF('1. Order'!J315=\"\",\"\",'1. Order'!J315)","v":""},{"$f":"IF('1. Order'!K315=\"\",\"\",'1. Order'!K315)","v":""},{"$f":"IF('1. Order'!L315=\"\",\"\",'1. Order'!L315)","v":""},{"$f":"IF('1. Order'!N315=\"\",\"\",'1. Order'!N315)","v":""},null,null,{"$f":"'1. Order'!AV315","v":0},{"$f":"IF('1. Order'!AI315=\"\",\"\",'1. Order'!AI315)","v":""}]
[{"$f":"IF('1. Order'!B316=\"\",\"\",'1. Order'!B316)","v":""},{"$f":"IF('1. Order'!J316=\"\",\"\",'1. Order'!J316)","v":""},{"$f":"IF('1. Order'!K316=\"\",\"\",'1. Order'!K316)","v":""},{"$f":"IF('1. Order'!L316=\"\",\"\",'1. Order'!L316)","v":""},{"$f":"IF('1. Order'!N316=\"\",\"\",'1. Order'!N316)","v":""},null,null,{"$f":"'1. Order'!AV316","v":0},{"$f":"IF('1. Order'!AI316=\"\",\"\",'1. Order'!AI316)","v":""}]
[{"$f":"IF('1. Order'!B317=\"\",\"\",'1. Order'!B317)","v":""},{"$f":"IF('1. Order'!J317=\"\",\"\",'1. Order'!J317)","v":""},{"$f":"IF('1. Order'!K317=\"\",\"\",'1. Order'!K317)","v":""},{"$f":"IF('1. Order'!L317=\"\",\"\",'1. Order'!L317)","v":""},{"$f":"IF('1. Order'!N317=\"\",\"\",'1. Order'!N317)","v":""},null,null,{"$f":"'1. Order'!AV317","v":0},{"$f":"IF('1. Order'!AI317=\"\",\"\",'1. Order'!AI317)","v":""}]
[{"$f":"IF('1. Order'!B318=\"\",\"\",'1. Order'!B318)","v":""},{"$f":"IF('1. Order'!J318=\"\",\"\",'1. Order'!J318)","v":""},{"$f":"IF('1. Order'!K318=\"\",\"\",'1. Order'!K318)","v":""},{"$f":"IF('1. Order'!L318=\"\",\"\",'1. Order'!L318)","v":""},{"$f":"IF('1. Order'!N318=\"\",\"\",'1. Order'!N318)","v":""},null,null,{"$f":"'1. Order'!AV318","v":0},{"$f":"IF('1. Order'!AI318=\"\",\"\",'1. Order'!AI318)","v":""}]
[{"$f":"IF('1. Order'!B319=\"\",\"\",'1. Order'!B319)","v":""},{"$f":"IF('1. Order'!J319=\"\",\"\",'1. Order'!J319)","v":""},{"$f":"IF('1. Order'!K319=\"\",\"\",'1. Order'!K319)","v":""},{"$f":"IF('1. Order'!L319=\"\",\"\",'1. Order'!L319)","v":""},{"$f":"IF('1. Order'!N319=\"\",\"\",'1. Order'!N319)","v":""},null,null,{"$f":"'1. Order'!AV319","v":0},{"$f":"IF('1. Order'!AI319=\"\",\"\",'1. Order'!AI319)","v":""}]
[{"$f":"IF('1. Order'!B320=\"\",\"\",'1. Order'!B320)","v":""},{"$f":"IF('1. Order'!J320=\"\",\"\",'1. Order'!J320)","v":""},{"$f":"IF('1. Order'!K320=\"\",\"\",'1. Order'!K320)","v":""},{"$f":"IF('1. Order'!L320=\"\",\"\",'1. Order'!L320)","v":""},{"$f":"IF('1. Order'!N320=\"\",\"\",'1. Order'!N320)","v":""},null,null,{"$f":"'1. Order'!AV320","v":0},{"$f":"IF('1. Order'!AI320=\"\",\"\",'1. Order'!AI320)","v":""}]
[{"$f":"IF('1. Order'!B321=\"\",\"\",'1. Order'!B321)","v":""},{"$f":"IF('1. Order'!J321=\"\",\"\",'1. Order'!J321)","v":""},{"$f":"IF('1. Order'!K321=\"\",\"\",'1. Order'!K321)","v":""},{"$f":"IF('1. Order'!L321=\"\",\"\",'1. Order'!L321)","v":""},{"$f":"IF('1. Order'!N321=\"\",\"\",'1. Order'!N321)","v":""},null,null,{"$f":"'1. Order'!AV321","v":0},{"$f":"IF('1. Order'!AI321=\"\",\"\",'1. Order'!AI321)","v":""}]
[{"$f":"IF('1. Order'!B322=\"\",\"\",'1. Order'!B322)","v":""},{"$f":"IF('1. Order'!J322=\"\",\"\",'1. Order'!J322)","v":""},{"$f":"IF('1. Order'!K322=\"\",\"\",'1. Order'!K322)","v":""},{"$f":"IF('1. Order'!L322=\"\",\"\",'1. Order'!L322)","v":""},{"$f":"IF('1. Order'!N322=\"\",\"\",'1. Order'!N322)","v":""},null,null,{"$f":"'1. Order'!AV322","v":0},{"$f":"IF('1. Order'!AI322=\"\",\"\",'1. Order'!AI322)","v":""}]
[{"$f":"IF('1. Order'!B323=\"\",\"\",'1. Order'!B323)","v":""},{"$f":"IF('1. Order'!J323=\"\",\"\",'1. Order'!J323)","v":""},{"$f":"IF('1. Order'!K323=\"\",\"\",'1. Order'!K323)","v":""},{"$f":"IF('1. Order'!L323=\"\",\"\",'1. Order'!L323)","v":""},{"$f":"IF('1. Order'!N323=\"\",\"\",'1. Order'!N323)","v":""},null,null,{"$f":"'1. Order'!AV323","v":0},{"$f":"IF('1. Order'!AI323=\"\",\"\",'1. Order'!AI323)","v":""}]
[{"$f":"IF('1. Order'!B324=\"\",\"\",'1. Order'!B324)","v":""},{"$f":"IF('1. Order'!J324=\"\",\"\",'1. Order'!J324)","v":""},{"$f":"IF('1. Order'!K324=\"\",\"\",'1. Order'!K324)","v":""},{"$f":"IF('1. Order'!L324=\"\",\"\",'1. Order'!L324)","v":""},{"$f":"IF('1. Order'!N324=\"\",\"\",'1. Order'!N324)","v":""},null,null,{"$f":"'1. Order'!AV324","v":0},{"$f":"IF('1. Order'!AI324=\"\",\"\",'1. Order'!AI324)","v":""}]
[{"$f":"IF('1. Order'!B325=\"\",\"\",'1. Order'!B325)","v":""},{"$f":"IF('1. Order'!J325=\"\",\"\",'1. Order'!J325)","v":""},{"$f":"IF('1. Order'!K325=\"\",\"\",'1. Order'!K325)","v":""},{"$f":"IF('1. Order'!L325=\"\",\"\",'1. Order'!L325)","v":""},{"$f":"IF('1. Order'!N325=\"\",\"\",'1. Order'!N325)","v":""},null,null,{"$f":"'1. Order'!AV325","v":0},{"$f":"IF('1. Order'!AI325=\"\",\"\",'1. Order'!AI325)","v":""}]
[{"$f":"IF('1. Order'!B326=\"\",\"\",'1. Order'!B326)","v":""},{"$f":"IF('1. Order'!J326=\"\",\"\",'1. Order'!J326)","v":""},{"$f":"IF('1. Order'!K326=\"\",\"\",'1. Order'!K326)","v":""},{"$f":"IF('1. Order'!L326=\"\",\"\",'1. Order'!L326)","v":""},{"$f":"IF('1. Order'!N326=\"\",\"\",'1. Order'!N326)","v":""},null,null,{"$f":"'1. Order'!AV326","v":0},{"$f":"IF('1. Order'!AI326=\"\",\"\",'1. Order'!AI326)","v":""}]
[{"$f":"IF('1. Order'!B327=\"\",\"\",'1. Order'!B327)","v":""},{"$f":"IF('1. Order'!J327=\"\",\"\",'1. Order'!J327)","v":""},{"$f":"IF('1. Order'!K327=\"\",\"\",'1. Order'!K327)","v":""},{"$f":"IF('1. Order'!L327=\"\",\"\",'1. Order'!L327)","v":""},{"$f":"IF('1. Order'!N327=\"\",\"\",'1. Order'!N327)","v":""},null,null,{"$f":"'1. Order'!AV327","v":0},{"$f":"IF('1. Order'!AI327=\"\",\"\",'1. Order'!AI327)","v":""}]
[{"$f":"IF('1. Order'!B328=\"\",\"\",'1. Order'!B328)","v":""},{"$f":"IF('1. Order'!J328=\"\",\"\",'1. Order'!J328)","v":""},{"$f":"IF('1. Order'!K328=\"\",\"\",'1. Order'!K328)","v":""},{"$f":"IF('1. Order'!L328=\"\",\"\",'1. Order'!L328)","v":""},{"$f":"IF('1. Order'!N328=\"\",\"\",'1. Order'!N328)","v":""},null,null,{"$f":"'1. Order'!AV328","v":0},{"$f":"IF('1. Order'!AI328=\"\",\"\",'1. Order'!AI328)","v":""}]
[{"$f":"IF('1. Order'!B329=\"\",\"\",'1. Order'!B329)","v":""},{"$f":"IF('1. Order'!J329=\"\",\"\",'1. Order'!J329)","v":""},{"$f":"IF('1. Order'!K329=\"\",\"\",'1. Order'!K329)","v":""},{"$f":"IF('1. Order'!L329=\"\",\"\",'1. Order'!L329)","v":""},{"$f":"IF('1. Order'!N329=\"\",\"\",'1. Order'!N329)","v":""},null,null,{"$f":"'1. Order'!AV329","v":0},{"$f":"IF('1. Order'!AI329=\"\",\"\",'1. Order'!AI329)","v":""}]
[{"$f":"IF('1. Order'!B330=\"\",\"\",'1. Order'!B330)","v":""},{"$f":"IF('1. Order'!J330=\"\",\"\",'1. Order'!J330)","v":""},{"$f":"IF('1. Order'!K330=\"\",\"\",'1. Order'!K330)","v":""},{"$f":"IF('1. Order'!L330=\"\",\"\",'1. Order'!L330)","v":""},{"$f":"IF('1. Order'!N330=\"\",\"\",'1. Order'!N330)","v":""},null,null,{"$f":"'1. Order'!AV330","v":0},{"$f":"IF('1. Order'!AI330=\"\",\"\",'1. Order'!AI330)","v":""}]
[{"$f":"IF('1. Order'!B331=\"\",\"\",'1. Order'!B331)","v":""},{"$f":"IF('1. Order'!J331=\"\",\"\",'1. Order'!J331)","v":""},{"$f":"IF('1. Order'!K331=\"\",\"\",'1. Order'!K331)","v":""},{"$f":"IF('1. Order'!L331=\"\",\"\",'1. Order'!L331)","v":""},{"$f":"IF('1. Order'!N331=\"\",\"\",'1. Order'!N331)","v":""},null,null,{"$f":"'1. Order'!AV331","v":0},{"$f":"IF('1. Order'!AI331=\"\",\"\",'1. Order'!AI331)","v":""}]
[{"$f":"IF('1. Order'!B332=\"\",\"\",'1. Order'!B332)","v":""},{"$f":"IF('1. Order'!J332=\"\",\"\",'1. Order'!J332)","v":""},{"$f":"IF('1. Order'!K332=\"\",\"\",'1. Order'!K332)","v":""},{"$f":"IF('1. Order'!L332=\"\",\"\",'1. Order'!L332)","v":""},{"$f":"IF('1. Order'!N332=\"\",\"\",'1. Order'!N332)","v":""},null,null,{"$f":"'1. Order'!AV332","v":0},{"$f":"IF('1. Order'!AI332=\"\",\"\",'1. Order'!AI332)","v":""}]
[{"$f":"IF('1. Order'!B333=\"\",\"\",'1. Order'!B333)","v":""},{"$f":"IF('1. Order'!J333=\"\",\"\",'1. Order'!J333)","v":""},{"$f":"IF('1. Order'!K333=\"\",\"\",'1. Order'!K333)","v":""},{"$f":"IF('1. Order'!L333=\"\",\"\",'1. Order'!L333)","v":""},{"$f":"IF('1. Order'!N333=\"\",\"\",'1. Order'!N333)","v":""},null,null,{"$f":"'1. Order'!AV333","v":0},{"$f":"IF('1. Order'!AI333=\"\",\"\",'1. Order'!AI333)","v":""}]
[{"$f":"IF('1. Order'!B334=\"\",\"\",'1. Order'!B334)","v":""},{"$f":"IF('1. Order'!J334=\"\",\"\",'1. Order'!J334)","v":""},{"$f":"IF('1. Order'!K334=\"\",\"\",'1. Order'!K334)","v":""},{"$f":"IF('1. Order'!L334=\"\",\"\",'1. Order'!L334)","v":""},{"$f":"IF('1. Order'!N334=\"\",\"\",'1. Order'!N334)","v":""},null,null,{"$f":"'1. Order'!AV334","v":0},{"$f":"IF('1. Order'!AI334=\"\",\"\",'1. Order'!AI334)","v":""}]
[{"$f":"IF('1. Order'!B335=\"\",\"\",'1. Order'!B335)","v":""},{"$f":"IF('1. Order'!J335=\"\",\"\",'1. Order'!J335)","v":""},{"$f":"IF('1. Order'!K335=\"\",\"\",'1. Order'!K335)","v":""},{"$f":"IF('1. Order'!L335=\"\",\"\",'1. Order'!L335)","v":""},{"$f":"IF('1. Order'!N335=\"\",\"\",'1. Order'!N335)","v":""},null,null,{"$f":"'1. Order'!AV335","v":0},{"$f":"IF('1. Order'!AI335=\"\",\"\",'1. Order'!AI335)","v":""}]
[{"$f":"IF('1. Order'!B336=\"\",\"\",'1. Order'!B336)","v":""},{"$f":"IF('1. Order'!J336=\"\",\"\",'1. Order'!J336)","v":""},{"$f":"IF('1. Order'!K336=\"\",\"\",'1. Order'!K336)","v":""},{"$f":"IF('1. Order'!L336=\"\",\"\",'1. Order'!L336)","v":""},{"$f":"IF('1. Order'!N336=\"\",\"\",'1. Order'!N336)","v":""},null,null,{"$f":"'1. Order'!AV336","v":0},{"$f":"IF('1. Order'!AI336=\"\",\"\",'1. Order'!AI336)","v":""}]
[{"$f":"IF('1. Order'!B337=\"\",\"\",'1. Order'!B337)","v":""},{"$f":"IF('1. Order'!J337=\"\",\"\",'1. Order'!J337)","v":""},{"$f":"IF('1. Order'!K337=\"\",\"\",'1. Order'!K337)","v":""},{"$f":"IF('1. Order'!L337=\"\",\"\",'1. Order'!L337)","v":""},{"$f":"IF('1. Order'!N337=\"\",\"\",'1. Order'!N337)","v":""},null,null,{"$f":"'1. Order'!AV337","v":0},{"$f":"IF('1. Order'!AI337=\"\",\"\",'1. Order'!AI337)","v":""}]
[{"$f":"IF('1. Order'!B338=\"\",\"\",'1. Order'!B338)","v":""},{"$f":"IF('1. Order'!J338=\"\",\"\",'1. Order'!J338)","v":""},{"$f":"IF('1. Order'!K338=\"\",\"\",'1. Order'!K338)","v":""},{"$f":"IF('1. Order'!L338=\"\",\"\",'1. Order'!L338)","v":""},{"$f":"IF('1. Order'!N338=\"\",\"\",'1. Order'!N338)","v":""},null,null,{"$f":"'1. Order'!AV338","v":0},{"$f":"IF('1. Order'!AI338=\"\",\"\",'1. Order'!AI338)","v":""}]
[{"$f":"IF('1. Order'!B339=\"\",\"\",'1. Order'!B339)","v":""},{"$f":"IF('1. Order'!J339=\"\",\"\",'1. Order'!J339)","v":""},{"$f":"IF('1. Order'!K339=\"\",\"\",'1. Order'!K339)","v":""},{"$f":"IF('1. Order'!L339=\"\",\"\",'1. Order'!L339)","v":""},{"$f":"IF('1. Order'!N339=\"\",\"\",'1. Order'!N339)","v":""},null,null,{"$f":"'1. Order'!AV339","v":0},{"$f":"IF('1. Order'!AI339=\"\",\"\",'1. Order'!AI339)","v":""}]
[{"$f":"IF('1. Order'!B340=\"\",\"\",'1. Order'!B340)","v":""},{"$f":"IF('1. Order'!J340=\"\",\"\",'1. Order'!J340)","v":""},{"$f":"IF('1. Order'!K340=\"\",\"\",'1. Order'!K340)","v":""},{"$f":"IF('1. Order'!L340=\"\",\"\",'1. Order'!L340)","v":""},{"$f":"IF('1. Order'!N340=\"\",\"\",'1. Order'!N340)","v":""},null,null,{"$f":"'1. Order'!AV340","v":0},{"$f":"IF('1. Order'!AI340=\"\",\"\",'1. Order'!AI340)","v":""}]
[{"$f":"IF('1. Order'!B341=\"\",\"\",'1. Order'!B341)","v":""},{"$f":"IF('1. Order'!J341=\"\",\"\",'1. Order'!J341)","v":""},{"$f":"IF('1. Order'!K341=\"\",\"\",'1. Order'!K341)","v":""},{"$f":"IF('1. Order'!L341=\"\",\"\",'1. Order'!L341)","v":""},{"$f":"IF('1. Order'!N341=\"\",\"\",'1. Order'!N341)","v":""},null,null,{"$f":"'1. Order'!AV341","v":0},{"$f":"IF('1. Order'!AI341=\"\",\"\",'1. Order'!AI341)","v":""}]
[{"$f":"IF('1. Order'!B342=\"\",\"\",'1. Order'!B342)","v":""},{"$f":"IF('1. Order'!J342=\"\",\"\",'1. Order'!J342)","v":""},{"$f":"IF('1. Order'!K342=\"\",\"\",'1. Order'!K342)","v":""},{"$f":"IF('1. Order'!L342=\"\",\"\",'1. Order'!L342)","v":""},{"$f":"IF('1. Order'!N342=\"\",\"\",'1. Order'!N342)","v":""},null,null,{"$f":"'1. Order'!AV342","v":0},{"$f":"IF('1. Order'!AI342=\"\",\"\",'1. Order'!AI342)","v":""}]
[{"$f":"IF('1. Order'!B343=\"\",\"\",'1. Order'!B343)","v":""},{"$f":"IF('1. Order'!J343=\"\",\"\",'1. Order'!J343)","v":""},{"$f":"IF('1. Order'!K343=\"\",\"\",'1. Order'!K343)","v":""},{"$f":"IF('1. Order'!L343=\"\",\"\",'1. Order'!L343)","v":""},{"$f":"IF('1. Order'!N343=\"\",\"\",'1. Order'!N343)","v":""},null,null,{"$f":"'1. Order'!AV343","v":0},{"$f":"IF('1. Order'!AI343=\"\",\"\",'1. Order'!AI343)","v":""}]
[{"$f":"IF('1. Order'!B344=\"\",\"\",'1. Order'!B344)","v":""},{"$f":"IF('1. Order'!J344=\"\",\"\",'1. Order'!J344)","v":""},{"$f":"IF('1. Order'!K344=\"\",\"\",'1. Order'!K344)","v":""},{"$f":"IF('1. Order'!L344=\"\",\"\",'1. Order'!L344)","v":""},{"$f":"IF('1. Order'!N344=\"\",\"\",'1. Order'!N344)","v":""},null,null,{"$f":"'1. Order'!AV344","v":0},{"$f":"IF('1. Order'!AI344=\"\",\"\",'1. Order'!AI344)","v":""}]
[{"$f":"IF('1. Order'!B345=\"\",\"\",'1. Order'!B345)","v":""},{"$f":"IF('1. Order'!J345=\"\",\"\",'1. Order'!J345)","v":""},{"$f":"IF('1. Order'!K345=\"\",\"\",'1. Order'!K345)","v":""},{"$f":"IF('1. Order'!L345=\"\",\"\",'1. Order'!L345)","v":""},{"$f":"IF('1. Order'!N345=\"\",\"\",'1. Order'!N345)","v":""},null,null,{"$f":"'1. Order'!AV345","v":0},{"$f":"IF('1. Order'!AI345=\"\",\"\",'1. Order'!AI345)","v":""}]
[{"$f":"IF('1. Order'!B346=\"\",\"\",'1. Order'!B346)","v":""},{"$f":"IF('1. Order'!J346=\"\",\"\",'1. Order'!J346)","v":""},{"$f":"IF('1. Order'!K346=\"\",\"\",'1. Order'!K346)","v":""},{"$f":"IF('1. Order'!L346=\"\",\"\",'1. Order'!L346)","v":""},{"$f":"IF('1. Order'!N346=\"\",\"\",'1. Order'!N346)","v":""},null,null,{"$f":"'1. Order'!AV346","v":0},{"$f":"IF('1. Order'!AI346=\"\",\"\",'1. Order'!AI346)","v":""}]
[{"$f":"IF('1. Order'!B347=\"\",\"\",'1. Order'!B347)","v":""},{"$f":"IF('1. Order'!J347=\"\",\"\",'1. Order'!J347)","v":""},{"$f":"IF('1. Order'!K347=\"\",\"\",'1. Order'!K347)","v":""},{"$f":"IF('1. Order'!L347=\"\",\"\",'1. Order'!L347)","v":""},{"$f":"IF('1. Order'!N347=\"\",\"\",'1. Order'!N347)","v":""},null,null,{"$f":"'1. Order'!AV347","v":0},{"$f":"IF('1. Order'!AI347=\"\",\"\",'1. Order'!AI347)","v":""}]
[{"$f":"IF('1. Order'!B348=\"\",\"\",'1. Order'!B348)","v":""},{"$f":"IF('1. Order'!J348=\"\",\"\",'1. Order'!J348)","v":""},{"$f":"IF('1. Order'!K348=\"\",\"\",'1. Order'!K348)","v":""},{"$f":"IF('1. Order'!L348=\"\",\"\",'1. Order'!L348)","v":""},{"$f":"IF('1. Order'!N348=\"\",\"\",'1. Order'!N348)","v":""},null,null,{"$f":"'1. Order'!AV348","v":0},{"$f":"IF('1. Order'!AI348=\"\",\"\",'1. Order'!AI348)","v":""}]
[{"$f":"IF('1. Order'!B349=\"\",\"\",'1. Order'!B349)","v":""},{"$f":"IF('1. Order'!J349=\"\",\"\",'1. Order'!J349)","v":""},{"$f":"IF('1. Order'!K349=\"\",\"\",'1. Order'!K349)","v":""},{"$f":"IF('1. Order'!L349=\"\",\"\",'1. Order'!L349)","v":""},{"$f":"IF('1. Order'!N349=\"\",\"\",'1. Order'!N349)","v":""},null,null,{"$f":"'1. Order'!AV349","v":0},{"$f":"IF('1. Order'!AI349=\"\",\"\",'1. Order'!AI349)","v":""}]
[{"$f":"IF('1. Order'!B350=\"\",\"\",'1. Order'!B350)","v":""},{"$f":"IF('1. Order'!J350=\"\",\"\",'1. Order'!J350)","v":""},{"$f":"IF('1. Order'!K350=\"\",\"\",'1. Order'!K350)","v":""},{"$f":"IF('1. Order'!L350=\"\",\"\",'1. Order'!L350)","v":""},{"$f":"IF('1. Order'!N350=\"\",\"\",'1. Order'!N350)","v":""},null,null,{"$f":"'1. Order'!AV350","v":0},{"$f":"IF('1. Order'!AI350=\"\",\"\",'1. Order'!AI350)","v":""}]
[{"$f":"IF('1. Order'!B351=\"\",\"\",'1. Order'!B351)","v":""},{"$f":"IF('1. Order'!J351=\"\",\"\",'1. Order'!J351)","v":""},{"$f":"IF('1. Order'!K351=\"\",\"\",'1. Order'!K351)","v":""},{"$f":"IF('1. Order'!L351=\"\",\"\",'1. Order'!L351)","v":""},{"$f":"IF('1. Order'!N351=\"\",\"\",'1. Order'!N351)","v":""},null,null,{"$f":"'1. Order'!AV351","v":0},{"$f":"IF('1. Order'!AI351=\"\",\"\",'1. Order'!AI351)","v":""}]
[{"$f":"IF('1. Order'!B352=\"\",\"\",'1. Order'!B352)","v":""},{"$f":"IF('1. Order'!J352=\"\",\"\",'1. Order'!J352)","v":""},{"$f":"IF('1. Order'!K352=\"\",\"\",'1. Order'!K352)","v":""},{"$f":"IF('1. Order'!L352=\"\",\"\",'1. Order'!L352)","v":""},{"$f":"IF('1. Order'!N352=\"\",\"\",'1. Order'!N352)","v":""},null,null,{"$f":"'1. Order'!AV352","v":0},{"$f":"IF('1. Order'!AI352=\"\",\"\",'1. Order'!AI352)","v":""}]
[{"$f":"IF('1. Order'!B353=\"\",\"\",'1. Order'!B353)","v":""},{"$f":"IF('1. Order'!J353=\"\",\"\",'1. Order'!J353)","v":""},{"$f":"IF('1. Order'!K353=\"\",\"\",'1. Order'!K353)","v":""},{"$f":"IF('1. Order'!L353=\"\",\"\",'1. Order'!L353)","v":""},{"$f":"IF('1. Order'!N353=\"\",\"\",'1. Order'!N353)","v":""},null,null,{"$f":"'1. Order'!AV353","v":0},{"$f":"IF('1. Order'!AI353=\"\",\"\",'1. Order'!AI353)","v":""}]
[{"$f":"IF('1. Order'!B354=\"\",\"\",'1. Order'!B354)","v":""},{"$f":"IF('1. Order'!J354=\"\",\"\",'1. Order'!J354)","v":""},{"$f":"IF('1. Order'!K354=\"\",\"\",'1. Order'!K354)","v":""},{"$f":"IF('1. Order'!L354=\"\",\"\",'1. Order'!L354)","v":""},{"$f":"IF('1. Order'!N354=\"\",\"\",'1. Order'!N354)","v":""},null,null,{"$f":"'1. Order'!AV354","v":0},{"$f":"IF('1. Order'!AI354=\"\",\"\",'1. Order'!AI354)","v":""}]
[{"$f":"IF('1. Order'!B355=\"\",\"\",'1. Order'!B355)","v":""},{"$f":"IF('1. Order'!J355=\"\",\"\",'1. Order'!J355)","v":""},{"$f":"IF('1. Order'!K355=\"\",\"\",'1. Order'!K355)","v":""},{"$f":"IF('1. Order'!L355=\"\",\"\",'1. Order'!L355)","v":""},{"$f":"IF('1. Order'!N355=\"\",\"\",'1. Order'!N355)","v":""},null,null,{"$f":"'1. Order'!AV355","v":0},{"$f":"IF('1. Order'!AI355=\"\",\"\",'1. Order'!AI355)","v":""}]
[{"$f":"IF('1. Order'!B356=\"\",\"\",'1. Order'!B356)","v":""},{"$f":"IF('1. Order'!J356=\"\",\"\",'1. Order'!J356)","v":""},{"$f":"IF('1. Order'!K356=\"\",\"\",'1. Order'!K356)","v":""},{"$f":"IF('1. Order'!L356=\"\",\"\",'1. Order'!L356)","v":""},{"$f":"IF('1. Order'!N356=\"\",\"\",'1. Order'!N356)","v":""},null,null,{"$f":"'1. Order'!AV356","v":0},{"$f":"IF('1. Order'!AI356=\"\",\"\",'1. Order'!AI356)","v":""}]
[{"$f":"IF('1. Order'!B357=\"\",\"\",'1. Order'!B357)","v":""},{"$f":"IF('1. Order'!J357=\"\",\"\",'1. Order'!J357)","v":""},{"$f":"IF('1. Order'!K357=\"\",\"\",'1. Order'!K357)","v":""},{"$f":"IF('1. Order'!L357=\"\",\"\",'1. Order'!L357)","v":""},{"$f":"IF('1. Order'!N357=\"\",\"\",'1. Order'!N357)","v":""},null,null,{"$f":"'1. Order'!AV357","v":0},{"$f":"IF('1. Order'!AI357=\"\",\"\",'1. Order'!AI357)","v":""}]
[{"$f":"IF('1. Order'!B358=\"\",\"\",'1. Order'!B358)","v":""},{"$f":"IF('1. Order'!J358=\"\",\"\",'1. Order'!J358)","v":""},{"$f":"IF('1. Order'!K358=\"\",\"\",'1. Order'!K358)","v":""},{"$f":"IF('1. Order'!L358=\"\",\"\",'1. Order'!L358)","v":""},{"$f":"IF('1. Order'!N358=\"\",\"\",'1. Order'!N358)","v":""},null,null,{"$f":"'1. Order'!AV358","v":0},{"$f":"IF('1. Order'!AI358=\"\",\"\",'1. Order'!AI358)","v":""}]
[{"$f":"IF('1. Order'!B359=\"\",\"\",'1. Order'!B359)","v":""},{"$f":"IF('1. Order'!J359=\"\",\"\",'1. Order'!J359)","v":""},{"$f":"IF('1. Order'!K359=\"\",\"\",'1. Order'!K359)","v":""},{"$f":"IF('1. Order'!L359=\"\",\"\",'1. Order'!L359)","v":""},{"$f":"IF('1. Order'!N359=\"\",\"\",'1. Order'!N359)","v":""},null,null,{"$f":"'1. Order'!AV359","v":0},{"$f":"IF('1. Order'!AI359=\"\",\"\",'1. Order'!AI359)","v":""}]
[{"$f":"IF('1. Order'!B360=\"\",\"\",'1. Order'!B360)","v":""},{"$f":"IF('1. Order'!J360=\"\",\"\",'1. Order'!J360)","v":""},{"$f":"IF('1. Order'!K360=\"\",\"\",'1. Order'!K360)","v":""},{"$f":"IF('1. Order'!L360=\"\",\"\",'1. Order'!L360)","v":""},{"$f":"IF('1. Order'!N360=\"\",\"\",'1. Order'!N360)","v":""},null,null,{"$f":"'1. Order'!AV360","v":0},{"$f":"IF('1. Order'!AI360=\"\",\"\",'1. Order'!AI360)","v":""}]
[{"$f":"IF('1. Order'!B361=\"\",\"\",'1. Order'!B361)","v":""},{"$f":"IF('1. Order'!J361=\"\",\"\",'1. Order'!J361)","v":""},{"$f":"IF('1. Order'!K361=\"\",\"\",'1. Order'!K361)","v":""},{"$f":"IF('1. Order'!L361=\"\",\"\",'1. Order'!L361)","v":""},{"$f":"IF('1. Order'!N361=\"\",\"\",'1. Order'!N361)","v":""},null,null,{"$f":"'1. Order'!AV361","v":0},{"$f":"IF('1. Order'!AI361=\"\",\"\",'1. Order'!AI361)","v":""}]
[{"$f":"IF('1. Order'!B362=\"\",\"\",'1. Order'!B362)","v":""},{"$f":"IF('1. Order'!J362=\"\",\"\",'1. Order'!J362)","v":""},{"$f":"IF('1. Order'!K362=\"\",\"\",'1. Order'!K362)","v":""},{"$f":"IF('1. Order'!L362=\"\",\"\",'1. Order'!L362)","v":""},{"$f":"IF('1. Order'!N362=\"\",\"\",'1. Order'!N362)","v":""},null,null,{"$f":"'1. Order'!AV362","v":0},{"$f":"IF('1. Order'!AI362=\"\",\"\",'1. Order'!AI362)","v":""}]
[{"$f":"IF('1. Order'!B363=\"\",\"\",'1. Order'!B363)","v":""},{"$f":"IF('1. Order'!J363=\"\",\"\",'1. Order'!J363)","v":""},{"$f":"IF('1. Order'!K363=\"\",\"\",'1. Order'!K363)","v":""},{"$f":"IF('1. Order'!L363=\"\",\"\",'1. Order'!L363)","v":""},{"$f":"IF('1. Order'!N363=\"\",\"\",'1. Order'!N363)","v":""},null,null,{"$f":"'1. Order'!AV363","v":0},{"$f":"IF('1. Order'!AI363=\"\",\"\",'1. Order'!AI363)","v":""}]
[{"$f":"IF('1. Order'!B364=\"\",\"\",'1. Order'!B364)","v":""},{"$f":"IF('1. Order'!J364=\"\",\"\",'1. Order'!J364)","v":""},{"$f":"IF('1. Order'!K364=\"\",\"\",'1. Order'!K364)","v":""},{"$f":"IF('1. Order'!L364=\"\",\"\",'1. Order'!L364)","v":""},{"$f":"IF('1. Order'!N364=\"\",\"\",'1. Order'!N364)","v":""},null,null,{"$f":"'1. Order'!AV364","v":0},{"$f":"IF('1. Order'!AI364=\"\",\"\",'1. Order'!AI364)","v":""}]
[{"$f":"IF('1. Order'!B365=\"\",\"\",'1. Order'!B365)","v":""},{"$f":"IF('1. Order'!J365=\"\",\"\",'1. Order'!J365)","v":""},{"$f":"IF('1. Order'!K365=\"\",\"\",'1. Order'!K365)","v":""},{"$f":"IF('1. Order'!L365=\"\",\"\",'1. Order'!L365)","v":""},{"$f":"IF('1. Order'!N365=\"\",\"\",'1. Order'!N365)","v":""},null,null,{"$f":"'1. Order'!AV365","v":0},{"$f":"IF('1. Order'!AI365=\"\",\"\",'1. Order'!AI365)","v":""}]
[{"$f":"IF('1. Order'!B366=\"\",\"\",'1. Order'!B366)","v":""},{"$f":"IF('1. Order'!J366=\"\",\"\",'1. Order'!J366)","v":""},{"$f":"IF('1. Order'!K366=\"\",\"\",'1. Order'!K366)","v":""},{"$f":"IF('1. Order'!L366=\"\",\"\",'1. Order'!L366)","v":""},{"$f":"IF('1. Order'!N366=\"\",\"\",'1. Order'!N366)","v":""},null,null,{"$f":"'1. Order'!AV366","v":0},{"$f":"IF('1. Order'!AI366=\"\",\"\",'1. Order'!AI366)","v":""}]
[{"$f":"IF('1. Order'!B367=\"\",\"\",'1. Order'!B367)","v":""},{"$f":"IF('1. Order'!J367=\"\",\"\",'1. Order'!J367)","v":""},{"$f":"IF('1. Order'!K367=\"\",\"\",'1. Order'!K367)","v":""},{"$f":"IF('1. Order'!L367=\"\",\"\",'1. Order'!L367)","v":""},{"$f":"IF('1. Order'!N367=\"\",\"\",'1. Order'!N367)","v":""},null,null,{"$f":"'1. Order'!AV367","v":0},{"$f":"IF('1. Order'!AI367=\"\",\"\",'1. Order'!AI367)","v":""}]
[{"$f":"IF('1. Order'!B368=\"\",\"\",'1. Order'!B368)","v":""},{"$f":"IF('1. Order'!J368=\"\",\"\",'1. Order'!J368)","v":""},{"$f":"IF('1. Order'!K368=\"\",\"\",'1. Order'!K368)","v":""},{"$f":"IF('1. Order'!L368=\"\",\"\",'1. Order'!L368)","v":""},{"$f":"IF('1. Order'!N368=\"\",\"\",'1. Order'!N368)","v":""},null,null,{"$f":"'1. Order'!AV368","v":0},{"$f":"IF('1. Order'!AI368=\"\",\"\",'1. Order'!AI368)","v":""}]
[{"$f":"IF('1. Order'!B369=\"\",\"\",'1. Order'!B369)","v":""},{"$f":"IF('1. Order'!J369=\"\",\"\",'1. Order'!J369)","v":""},{"$f":"IF('1. Order'!K369=\"\",\"\",'1. Order'!K369)","v":""},{"$f":"IF('1. Order'!L369=\"\",\"\",'1. Order'!L369)","v":""},{"$f":"IF('1. Order'!N369=\"\",\"\",'1. Order'!N369)","v":""},null,null,{"$f":"'1. Order'!AV369","v":0},{"$f":"IF('1. Order'!AI369=\"\",\"\",'1. Order'!AI369)","v":""}]
[{"$f":"IF('1. Order'!B370=\"\",\"\",'1. Order'!B370)","v":""},{"$f":"IF('1. Order'!J370=\"\",\"\",'1. Order'!J370)","v":""},{"$f":"IF('1. Order'!K370=\"\",\"\",'1. Order'!K370)","v":""},{"$f":"IF('1. Order'!L370=\"\",\"\",'1. Order'!L370)","v":""},{"$f":"IF('1. Order'!N370=\"\",\"\",'1. Order'!N370)","v":""},null,null,{"$f":"'1. Order'!AV370","v":0},{"$f":"IF('1. Order'!AI370=\"\",\"\",'1. Order'!AI370)","v":""}]
[{"$f":"IF('1. Order'!B371=\"\",\"\",'1. Order'!B371)","v":""},{"$f":"IF('1. Order'!J371=\"\",\"\",'1. Order'!J371)","v":""},{"$f":"IF('1. Order'!K371=\"\",\"\",'1. Order'!K371)","v":""},{"$f":"IF('1. Order'!L371=\"\",\"\",'1. Order'!L371)","v":""},{"$f":"IF('1. Order'!N371=\"\",\"\",'1. Order'!N371)","v":""},null,null,{"$f":"'1. Order'!AV371","v":0},{"$f":"IF('1. Order'!AI371=\"\",\"\",'1. Order'!AI371)","v":""}]
[{"$f":"IF('1. Order'!B372=\"\",\"\",'1. Order'!B372)","v":""},{"$f":"IF('1. Order'!J372=\"\",\"\",'1. Order'!J372)","v":""},{"$f":"IF('1. Order'!K372=\"\",\"\",'1. Order'!K372)","v":""},{"$f":"IF('1. Order'!L372=\"\",\"\",'1. Order'!L372)","v":""},{"$f":"IF('1. Order'!N372=\"\",\"\",'1. Order'!N372)","v":""},null,null,{"$f":"'1. Order'!AV372","v":0},{"$f":"IF('1. Order'!AI372=\"\",\"\",'1. Order'!AI372)","v":""}]
[{"$f":"IF('1. Order'!B373=\"\",\"\",'1. Order'!B373)","v":""},{"$f":"IF('1. Order'!J373=\"\",\"\",'1. Order'!J373)","v":""},{"$f":"IF('1. Order'!K373=\"\",\"\",'1. Order'!K373)","v":""},{"$f":"IF('1. Order'!L373=\"\",\"\",'1. Order'!L373)","v":""},{"$f":"IF('1. Order'!N373=\"\",\"\",'1. Order'!N373)","v":""},null,null,{"$f":"'1. Order'!AV373","v":0},{"$f":"IF('1. Order'!AI373=\"\",\"\",'1. Order'!AI373)","v":""}]
[{"$f":"IF('1. Order'!B374=\"\",\"\",'1. Order'!B374)","v":""},{"$f":"IF('1. Order'!J374=\"\",\"\",'1. Order'!J374)","v":""},{"$f":"IF('1. Order'!K374=\"\",\"\",'1. Order'!K374)","v":""},{"$f":"IF('1. Order'!L374=\"\",\"\",'1. Order'!L374)","v":""},{"$f":"IF('1. Order'!N374=\"\",\"\",'1. Order'!N374)","v":""},null,null,{"$f":"'1. Order'!AV374","v":0},{"$f":"IF('1. Order'!AI374=\"\",\"\",'1. Order'!AI374)","v":""}]
[{"$f":"IF('1. Order'!B375=\"\",\"\",'1. Order'!B375)","v":""},{"$f":"IF('1. Order'!J375=\"\",\"\",'1. Order'!J375)","v":""},{"$f":"IF('1. Order'!K375=\"\",\"\",'1. Order'!K375)","v":""},{"$f":"IF('1. Order'!L375=\"\",\"\",'1. Order'!L375)","v":""},{"$f":"IF('1. Order'!N375=\"\",\"\",'1. Order'!N375)","v":""},null,null,{"$f":"'1. Order'!AV375","v":0},{"$f":"IF('1. Order'!AI375=\"\",\"\",'1. Order'!AI375)","v":""}]
[{"$f":"IF('1. Order'!B376=\"\",\"\",'1. Order'!B376)","v":""},{"$f":"IF('1. Order'!J376=\"\",\"\",'1. Order'!J376)","v":""},{"$f":"IF('1. Order'!K376=\"\",\"\",'1. Order'!K376)","v":""},{"$f":"IF('1. Order'!L376=\"\",\"\",'1. Order'!L376)","v":""},{"$f":"IF('1. Order'!N376=\"\",\"\",'1. Order'!N376)","v":""},null,null,{"$f":"'1. Order'!AV376","v":0},{"$f":"IF('1. Order'!AI376=\"\",\"\",'1. Order'!AI376)","v":""}]
[{"$f":"IF('1. Order'!B377=\"\",\"\",'1. Order'!B377)","v":""},{"$f":"IF('1. Order'!J377=\"\",\"\",'1. Order'!J377)","v":""},{"$f":"IF('1. Order'!K377=\"\",\"\",'1. Order'!K377)","v":""},{"$f":"IF('1. Order'!L377=\"\",\"\",'1. Order'!L377)","v":""},{"$f":"IF('1. Order'!N377=\"\",\"\",'1. Order'!N377)","v":""},null,null,{"$f":"'1. Order'!AV377","v":0},{"$f":"IF('1. Order'!AI377=\"\",\"\",'1. Order'!AI377)","v":""}]
[{"$f":"IF('1. Order'!B378=\"\",\"\",'1. Order'!B378)","v":""},{"$f":"IF('1. Order'!J378=\"\",\"\",'1. Order'!J378)","v":""},{"$f":"IF('1. Order'!K378=\"\",\"\",'1. Order'!K378)","v":""},{"$f":"IF('1. Order'!L378=\"\",\"\",'1. Order'!L378)","v":""},{"$f":"IF('1. Order'!N378=\"\",\"\",'1. Order'!N378)","v":""},null,null,{"$f":"'1. Order'!AV378","v":0},{"$f":"IF('1. Order'!AI378=\"\",\"\",'1. Order'!AI378)","v":""}]
[{"$f":"IF('1. Order'!B379=\"\",\"\",'1. Order'!B379)","v":""},{"$f":"IF('1. Order'!J379=\"\",\"\",'1. Order'!J379)","v":""},{"$f":"IF('1. Order'!K379=\"\",\"\",'1. Order'!K379)","v":""},{"$f":"IF('1. Order'!L379=\"\",\"\",'1. Order'!L379)","v":""},{"$f":"IF('1. Order'!N379=\"\",\"\",'1. Order'!N379)","v":""},null,null,{"$f":"'1. Order'!AV379","v":0},{"$f":"IF('1. Order'!AI379=\"\",\"\",'1. Order'!AI379)","v":""}]
[{"$f":"IF('1. Order'!B380=\"\",\"\",'1. Order'!B380)","v":""},{"$f":"IF('1. Order'!J380=\"\",\"\",'1. Order'!J380)","v":""},{"$f":"IF('1. Order'!K380=\"\",\"\",'1. Order'!K380)","v":""},{"$f":"IF('1. Order'!L380=\"\",\"\",'1. Order'!L380)","v":""},{"$f":"IF('1. Order'!N380=\"\",\"\",'1. Order'!N380)","v":""},null,null,{"$f":"'1. Order'!AV380","v":0},{"$f":"IF('1. Order'!AI380=\"\",\"\",'1. Order'!AI380)","v":""}]
[{"$f":"IF('1. Order'!B381=\"\",\"\",'1. Order'!B381)","v":""},{"$f":"IF('1. Order'!J381=\"\",\"\",'1. Order'!J381)","v":""},{"$f":"IF('1. Order'!K381=\"\",\"\",'1. Order'!K381)","v":""},{"$f":"IF('1. Order'!L381=\"\",\"\",'1. Order'!L381)","v":""},{"$f":"IF('1. Order'!N381=\"\",\"\",'1. Order'!N381)","v":""},null,null,{"$f":"'1. Order'!AV381","v":0},{"$f":"IF('1. Order'!AI381=\"\",\"\",'1. Order'!AI381)","v":""}]
[{"$f":"IF('1. Order'!B382=\"\",\"\",'1. Order'!B382)","v":""},{"$f":"IF('1. Order'!J382=\"\",\"\",'1. Order'!J382)","v":""},{"$f":"IF('1. Order'!K382=\"\",\"\",'1. Order'!K382)","v":""},{"$f":"IF('1. Order'!L382=\"\",\"\",'1. Order'!L382)","v":""},{"$f":"IF('1. Order'!N382=\"\",\"\",'1. Order'!N382)","v":""},null,null,{"$f":"'1. Order'!AV382","v":0},{"$f":"IF('1. Order'!AI382=\"\",\"\",'1. Order'!AI382)","v":""}]
[{"$f":"IF('1. Order'!B383=\"\",\"\",'1. Order'!B383)","v":""},{"$f":"IF('1. Order'!J383=\"\",\"\",'1. Order'!J383)","v":""},{"$f":"IF('1. Order'!K383=\"\",\"\",'1. Order'!K383)","v":""},{"$f":"IF('1. Order'!L383=\"\",\"\",'1. Order'!L383)","v":""},{"$f":"IF('1. Order'!N383=\"\",\"\",'1. Order'!N383)","v":""},null,null,{"$f":"'1. Order'!AV383","v":0},{"$f":"IF('1. Order'!AI383=\"\",\"\",'1. Order'!AI383)","v":""}]
[{"$f":"IF('1. Order'!B384=\"\",\"\",'1. Order'!B384)","v":""},{"$f":"IF('1. Order'!J384=\"\",\"\",'1. Order'!J384)","v":""},{"$f":"IF('1. Order'!K384=\"\",\"\",'1. Order'!K384)","v":""},{"$f":"IF('1. Order'!L384=\"\",\"\",'1. Order'!L384)","v":""},{"$f":"IF('1. Order'!N384=\"\",\"\",'1. Order'!N384)","v":""},null,null,{"$f":"'1. Order'!AV384","v":0},{"$f":"IF('1. Order'!AI384=\"\",\"\",'1. Order'!AI384)","v":""}]
[{"$f":"IF('1. Order'!B385=\"\",\"\",'1. Order'!B385)","v":""},{"$f":"IF('1. Order'!J385=\"\",\"\",'1. Order'!J385)","v":""},{"$f":"IF('1. Order'!K385=\"\",\"\",'1. Order'!K385)","v":""},{"$f":"IF('1. Order'!L385=\"\",\"\",'1. Order'!L385)","v":""},{"$f":"IF('1. Order'!N385=\"\",\"\",'1. Order'!N385)","v":""},null,null,{"$f":"'1. Order'!AV385","v":0},{"$f":"IF('1. Order'!AI385=\"\",\"\",'1. Order'!AI385)","v":""}]
[{"$f":"IF('1. Order'!B386=\"\",\"\",'1. Order'!B386)","v":""},{"$f":"IF('1. Order'!J386=\"\",\"\",'1. Order'!J386)","v":""},{"$f":"IF('1. Order'!K386=\"\",\"\",'1. Order'!K386)","v":""},{"$f":"IF('1. Order'!L386=\"\",\"\",'1. Order'!L386)","v":""},{"$f":"IF('1. Order'!N386=\"\",\"\",'1. Order'!N386)","v":""},null,null,{"$f":"'1. Order'!AV386","v":0},{"$f":"IF('1. Order'!AI386=\"\",\"\",'1. Order'!AI386)","v":""}]
[{"$f":"IF('1. Order'!B387=\"\",\"\",'1. Order'!B387)","v":""},{"$f":"IF('1. Order'!J387=\"\",\"\",'1. Order'!J387)","v":""},{"$f":"IF('1. Order'!K387=\"\",\"\",'1. Order'!K387)","v":""},{"$f":"IF('1. Order'!L387=\"\",\"\",'1. Order'!L387)","v":""},{"$f":"IF('1. Order'!N387=\"\",\"\",'1. Order'!N387)","v":""},null,null,{"$f":"'1. Order'!AV387","v":0},{"$f":"IF('1. Order'!AI387=\"\",\"\",'1. Order'!AI387)","v":""}]
[{"$f":"IF('1. Order'!B388=\"\",\"\",'1. Order'!B388)","v":""},{"$f":"IF('1. Order'!J388=\"\",\"\",'1. Order'!J388)","v":""},{"$f":"IF('1. Order'!K388=\"\",\"\",'1. Order'!K388)","v":""},{"$f":"IF('1. Order'!L388=\"\",\"\",'1. Order'!L388)","v":""},{"$f":"IF('1. Order'!N388=\"\",\"\",'1. Order'!N388)","v":""},null,null,{"$f":"'1. Order'!AV388","v":0},{"$f":"IF('1. Order'!AI388=\"\",\"\",'1. Order'!AI388)","v":""}]
[{"$f":"IF('1. Order'!B389=\"\",\"\",'1. Order'!B389)","v":""},{"$f":"IF('1. Order'!J389=\"\",\"\",'1. Order'!J389)","v":""},{"$f":"IF('1. Order'!K389=\"\",\"\",'1. Order'!K389)","v":""},{"$f":"IF('1. Order'!L389=\"\",\"\",'1. Order'!L389)","v":""},{"$f":"IF('1. Order'!N389=\"\",\"\",'1. Order'!N389)","v":""},null,null,{"$f":"'1. Order'!AV389","v":0},{"$f":"IF('1. Order'!AI389=\"\",\"\",'1. Order'!AI389)","v":""}]
[{"$f":"IF('1. Order'!B390=\"\",\"\",'1. Order'!B390)","v":""},{"$f":"IF('1. Order'!J390=\"\",\"\",'1. Order'!J390)","v":""},{"$f":"IF('1. Order'!K390=\"\",\"\",'1. Order'!K390)","v":""},{"$f":"IF('1. Order'!L390=\"\",\"\",'1. Order'!L390)","v":""},{"$f":"IF('1. Order'!N390=\"\",\"\",'1. Order'!N390)","v":""},null,null,{"$f":"'1. Order'!AV390","v":0},{"$f":"IF('1. Order'!AI390=\"\",\"\",'1. Order'!AI390)","v":""}]
[{"$f":"IF('1. Order'!B391=\"\",\"\",'1. Order'!B391)","v":""},{"$f":"IF('1. Order'!J391=\"\",\"\",'1. Order'!J391)","v":""},{"$f":"IF('1. Order'!K391=\"\",\"\",'1. Order'!K391)","v":""},{"$f":"IF('1. Order'!L391=\"\",\"\",'1. Order'!L391)","v":""},{"$f":"IF('1. Order'!N391=\"\",\"\",'1. Order'!N391)","v":""},null,null,{"$f":"'1. Order'!AV391","v":0},{"$f":"IF('1. Order'!AI391=\"\",\"\",'1. Order'!AI391)","v":""}]
[{"$f":"IF('1. Order'!B392=\"\",\"\",'1. Order'!B392)","v":""},{"$f":"IF('1. Order'!J392=\"\",\"\",'1. Order'!J392)","v":""},{"$f":"IF('1. Order'!K392=\"\",\"\",'1. Order'!K392)","v":""},{"$f":"IF('1. Order'!L392=\"\",\"\",'1. Order'!L392)","v":""},{"$f":"IF('1. Order'!N392=\"\",\"\",'1. Order'!N392)","v":""},null,null,{"$f":"'1. Order'!AV392","v":0},{"$f":"IF('1. Order'!AI392=\"\",\"\",'1. Order'!AI392)","v":""}]
[{"$f":"IF('1. Order'!B393=\"\",\"\",'1. Order'!B393)","v":""},{"$f":"IF('1. Order'!J393=\"\",\"\",'1. Order'!J393)","v":""},{"$f":"IF('1. Order'!K393=\"\",\"\",'1. Order'!K393)","v":""},{"$f":"IF('1. Order'!L393=\"\",\"\",'1. Order'!L393)","v":""},{"$f":"IF('1. Order'!N393=\"\",\"\",'1. Order'!N393)","v":""},null,null,{"$f":"'1. Order'!AV393","v":0},{"$f":"IF('1. Order'!AI393=\"\",\"\",'1. Order'!AI393)","v":""}]
[{"$f":"IF('1. Order'!B394=\"\",\"\",'1. Order'!B394)","v":""},{"$f":"IF('1. Order'!J394=\"\",\"\",'1. Order'!J394)","v":""},{"$f":"IF('1. Order'!K394=\"\",\"\",'1. Order'!K394)","v":""},{"$f":"IF('1. Order'!L394=\"\",\"\",'1. Order'!L394)","v":""},{"$f":"IF('1. Order'!N394=\"\",\"\",'1. Order'!N394)","v":""},null,null,{"$f":"'1. Order'!AV394","v":0},{"$f":"IF('1. Order'!AI394=\"\",\"\",'1. Order'!AI394)","v":""}]
[{"$f":"IF('1. Order'!B395=\"\",\"\",'1. Order'!B395)","v":""},{"$f":"IF('1. Order'!J395=\"\",\"\",'1. Order'!J395)","v":""},{"$f":"IF('1. Order'!K395=\"\",\"\",'1. Order'!K395)","v":""},{"$f":"IF('1. Order'!L395=\"\",\"\",'1. Order'!L395)","v":""},{"$f":"IF('1. Order'!N395=\"\",\"\",'1. Order'!N395)","v":""},null,null,{"$f":"'1. Order'!AV395","v":0},{"$f":"IF('1. Order'!AI395=\"\",\"\",'1. Order'!AI395)","v":""}]
[{"$f":"IF('1. Order'!B396=\"\",\"\",'1. Order'!B396)","v":""},{"$f":"IF('1. Order'!J396=\"\",\"\",'1. Order'!J396)","v":""},{"$f":"IF('1. Order'!K396=\"\",\"\",'1. Order'!K396)","v":""},{"$f":"IF('1. Order'!L396=\"\",\"\",'1. Order'!L396)","v":""},{"$f":"IF('1. Order'!N396=\"\",\"\",'1. Order'!N396)","v":""},null,null,{"$f":"'1. Order'!AV396","v":0},{"$f":"IF('1. Order'!AI396=\"\",\"\",'1. Order'!AI396)","v":""}]
[{"$f":"IF('1. Order'!B397=\"\",\"\",'1. Order'!B397)","v":""},{"$f":"IF('1. Order'!J397=\"\",\"\",'1. Order'!J397)","v":""},{"$f":"IF('1. Order'!K397=\"\",\"\",'1. Order'!K397)","v":""},{"$f":"IF('1. Order'!L397=\"\",\"\",'1. Order'!L397)","v":""},{"$f":"IF('1. Order'!N397=\"\",\"\",'1. Order'!N397)","v":""},null,null,{"$f":"'1. Order'!AV397","v":0},{"$f":"IF('1. Order'!AI397=\"\",\"\",'1. Order'!AI397)","v":""}]
[{"$f":"IF('1. Order'!B398=\"\",\"\",'1. Order'!B398)","v":""},{"$f":"IF('1. Order'!J398=\"\",\"\",'1. Order'!J398)","v":""},{"$f":"IF('1. Order'!K398=\"\",\"\",'1. Order'!K398)","v":""},{"$f":"IF('1. Order'!L398=\"\",\"\",'1. Order'!L398)","v":""},{"$f":"IF('1. Order'!N398=\"\",\"\",'1. Order'!N398)","v":""},null,null,{"$f":"'1. Order'!AV398","v":0},{"$f":"IF('1. Order'!AI398=\"\",\"\",'1. Order'!AI398)","v":""}]
[{"$f":"IF('1. Order'!B399=\"\",\"\",'1. Order'!B399)","v":""},{"$f":"IF('1. Order'!J399=\"\",\"\",'1. Order'!J399)","v":""},{"$f":"IF('1. Order'!K399=\"\",\"\",'1. Order'!K399)","v":""},{"$f":"IF('1. Order'!L399=\"\",\"\",'1. Order'!L399)","v":""},{"$f":"IF('1. Order'!N399=\"\",\"\",'1. Order'!N399)","v":""},null,null,{"$f":"'1. Order'!AV399","v":0},{"$f":"IF('1. Order'!AI399=\"\",\"\",'1. Order'!AI399)","v":""}]
[{"$f":"IF('1. Order'!B400=\"\",\"\",'1. Order'!B400)","v":""},{"$f":"IF('1. Order'!J400=\"\",\"\",'1. Order'!J400)","v":""},{"$f":"IF('1. Order'!K400=\"\",\"\",'1. Order'!K400)","v":""},{"$f":"IF('1. Order'!L400=\"\",\"\",'1. Order'!L400)","v":""},{"$f":"IF('1. Order'!N400=\"\",\"\",'1. Order'!N400)","v":""},null,null,{"$f":"'1. Order'!AV400","v":0},{"$f":"IF('1. Order'!AI400=\"\",\"\",'1. Order'!AI400)","v":""}]
[{"$f":"IF('1. Order'!B401=\"\",\"\",'1. Order'!B401)","v":""},{"$f":"IF('1. Order'!J401=\"\",\"\",'1. Order'!J401)","v":""},{"$f":"IF('1. Order'!K401=\"\",\"\",'1. Order'!K401)","v":""},{"$f":"IF('1. Order'!L401=\"\",\"\",'1. Order'!L401)","v":""},{"$f":"IF('1. Order'!N401=\"\",\"\",'1. Order'!N401)","v":""},null,null,{"$f":"'1. Order'!AV401","v":0},{"$f":"IF('1. Order'!AI401=\"\",\"\",'1. Order'!AI401)","v":""}]
[{"$f":"IF('1. Order'!B402=\"\",\"\",'1. Order'!B402)","v":""},{"$f":"IF('1. Order'!J402=\"\",\"\",'1. Order'!J402)","v":""},{"$f":"IF('1. Order'!K402=\"\",\"\",'1. Order'!K402)","v":""},{"$f":"IF('1. Order'!L402=\"\",\"\",'1. Order'!L402)","v":""},{"$f":"IF('1. Order'!N402=\"\",\"\",'1. Order'!N402)","v":""},null,null,{"$f":"'1. Order'!AV402","v":0},{"$f":"IF('1. Order'!AI402=\"\",\"\",'1. Order'!AI402)","v":""}]
[{"$f":"IF('1. Order'!B403=\"\",\"\",'1. Order'!B403)","v":""},{"$f":"IF('1. Order'!J403=\"\",\"\",'1. Order'!J403)","v":""},{"$f":"IF('1. Order'!K403=\"\",\"\",'1. Order'!K403)","v":""},{"$f":"IF('1. Order'!L403=\"\",\"\",'1. Order'!L403)","v":""},{"$f":"IF('1. Order'!N403=\"\",\"\",'1. Order'!N403)","v":""},null,null,{"$f":"'1. Order'!AV403","v":0},{"$f":"IF('1. Order'!AI403=\"\",\"\",'1. Order'!AI403)","v":""}]
[{"$f":"IF('1. Order'!B404=\"\",\"\",'1. Order'!B404)","v":""},{"$f":"IF('1. Order'!J404=\"\",\"\",'1. Order'!J404)","v":""},{"$f":"IF('1. Order'!K404=\"\",\"\",'1. Order'!K404)","v":""},{"$f":"IF('1. Order'!L404=\"\",\"\",'1. Order'!L404)","v":""},{"$f":"IF('1. Order'!N404=\"\",\"\",'1. Order'!N404)","v":""},null,null,{"$f":"'1. Order'!AV404","v":0},{"$f":"IF('1. Order'!AI404=\"\",\"\",'1. Order'!AI404)","v":""}]
[{"$f":"IF('1. Order'!B405=\"\",\"\",'1. Order'!B405)","v":""},{"$f":"IF('1. Order'!J405=\"\",\"\",'1. Order'!J405)","v":""},{"$f":"IF('1. Order'!K405=\"\",\"\",'1. Order'!K405)","v":""},{"$f":"IF('1. Order'!L405=\"\",\"\",'1. Order'!L405)","v":""},{"$f":"IF('1. Order'!N405=\"\",\"\",'1. Order'!N405)","v":""},null,null,{"$f":"'1. Order'!AV405","v":0},{"$f":"IF('1. Order'!AI405=\"\",\"\",'1. Order'!AI405)","v":""}]
[{"$f":"IF('1. Order'!B406=\"\",\"\",'1. Order'!B406)","v":""},{"$f":"IF('1. Order'!J406=\"\",\"\",'1. Order'!J406)","v":""},{"$f":"IF('1. Order'!K406=\"\",\"\",'1. Order'!K406)","v":""},{"$f":"IF('1. Order'!L406=\"\",\"\",'1. Order'!L406)","v":""},{"$f":"IF('1. Order'!N406=\"\",\"\",'1. Order'!N406)","v":""},null,null,{"$f":"'1. Order'!AV406","v":0},{"$f":"IF('1. Order'!AI406=\"\",\"\",'1. Order'!AI406)","v":""}]
[{"$f":"IF('1. Order'!B407=\"\",\"\",'1. Order'!B407)","v":""},{"$f":"IF('1. Order'!J407=\"\",\"\",'1. Order'!J407)","v":""},{"$f":"IF('1. Order'!K407=\"\",\"\",'1. Order'!K407)","v":""},{"$f":"IF('1. Order'!L407=\"\",\"\",'1. Order'!L407)","v":""},{"$f":"IF('1. Order'!N407=\"\",\"\",'1. Order'!N407)","v":""},null,null,{"$f":"'1. Order'!AV407","v":0},{"$f":"IF('1. Order'!AI407=\"\",\"\",'1. Order'!AI407)","v":""}]
[{"$f":"IF('1. Order'!B408=\"\",\"\",'1. Order'!B408)","v":""},{"$f":"IF('1. Order'!J408=\"\",\"\",'1. Order'!J408)","v":""},{"$f":"IF('1. Order'!K408=\"\",\"\",'1. Order'!K408)","v":""},{"$f":"IF('1. Order'!L408=\"\",\"\",'1. Order'!L408)","v":""},{"$f":"IF('1. Order'!N408=\"\",\"\",'1. Order'!N408)","v":""},null,null,{"$f":"'1. Order'!AV408","v":0},{"$f":"IF('1. Order'!AI408=\"\",\"\",'1. Order'!AI408)","v":""}]
[{"$f":"IF('1. Order'!B409=\"\",\"\",'1. Order'!B409)","v":""},{"$f":"IF('1. Order'!J409=\"\",\"\",'1. Order'!J409)","v":""},{"$f":"IF('1. Order'!K409=\"\",\"\",'1. Order'!K409)","v":""},{"$f":"IF('1. Order'!L409=\"\",\"\",'1. Order'!L409)","v":""},{"$f":"IF('1. Order'!N409=\"\",\"\",'1. Order'!N409)","v":""},null,null,{"$f":"'1. Order'!AV409","v":0},{"$f":"IF('1. Order'!AI409=\"\",\"\",'1. Order'!AI409)","v":""}]
[{"$f":"IF('1. Order'!B410=\"\",\"\",'1. Order'!B410)","v":""},{"$f":"IF('1. Order'!J410=\"\",\"\",'1. Order'!J410)","v":""},{"$f":"IF('1. Order'!K410=\"\",\"\",'1. Order'!K410)","v":""},{"$f":"IF('1. Order'!L410=\"\",\"\",'1. Order'!L410)","v":""},{"$f":"IF('1. Order'!N410=\"\",\"\",'1. Order'!N410)","v":""},null,null,{"$f":"'1. Order'!AV410","v":0},{"$f":"IF('1. Order'!AI410=\"\",\"\",'1. Order'!AI410)","v":""}]
[{"$f":"IF('1. Order'!B411=\"\",\"\",'1. Order'!B411)","v":""},{"$f":"IF('1. Order'!J411=\"\",\"\",'1. Order'!J411)","v":""},{"$f":"IF('1. Order'!K411=\"\",\"\",'1. Order'!K411)","v":""},{"$f":"IF('1. Order'!L411=\"\",\"\",'1. Order'!L411)","v":""},{"$f":"IF('1. Order'!N411=\"\",\"\",'1. Order'!N411)","v":""},null,null,{"$f":"'1. Order'!AV411","v":0},{"$f":"IF('1. Order'!AI411=\"\",\"\",'1. Order'!AI411)","v":""}]
[{"$f":"IF('1. Order'!B412=\"\",\"\",'1. Order'!B412)","v":""},{"$f":"IF('1. Order'!J412=\"\",\"\",'1. Order'!J412)","v":""},{"$f":"IF('1. Order'!K412=\"\",\"\",'1. Order'!K412)","v":""},{"$f":"IF('1. Order'!L412=\"\",\"\",'1. Order'!L412)","v":""},{"$f":"IF('1. Order'!N412=\"\",\"\",'1. Order'!N412)","v":""},null,null,{"$f":"'1. Order'!AV412","v":0},{"$f":"IF('1. Order'!AI412=\"\",\"\",'1. Order'!AI412)","v":""}]
[{"$f":"IF('1. Order'!B413=\"\",\"\",'1. Order'!B413)","v":""},{"$f":"IF('1. Order'!J413=\"\",\"\",'1. Order'!J413)","v":""},{"$f":"IF('1. Order'!K413=\"\",\"\",'1. Order'!K413)","v":""},{"$f":"IF('1. Order'!L413=\"\",\"\",'1. Order'!L413)","v":""},{"$f":"IF('1. Order'!N413=\"\",\"\",'1. Order'!N413)","v":""},null,null,{"$f":"'1. Order'!AV413","v":0},{"$f":"IF('1. Order'!AI413=\"\",\"\",'1. Order'!AI413)","v":""}]
[{"$f":"IF('1. Order'!B414=\"\",\"\",'1. Order'!B414)","v":""},{"$f":"IF('1. Order'!J414=\"\",\"\",'1. Order'!J414)","v":""},{"$f":"IF('1. Order'!K414=\"\",\"\",'1. Order'!K414)","v":""},{"$f":"IF('1. Order'!L414=\"\",\"\",'1. Order'!L414)","v":""},{"$f":"IF('1. Order'!N414=\"\",\"\",'1. Order'!N414)","v":""},null,null,{"$f":"'1. Order'!AV414","v":0},{"$f":"IF('1. Order'!AI414=\"\",\"\",'1. Order'!AI414)","v":""}]
[{"$f":"IF('1. Order'!B415=\"\",\"\",'1. Order'!B415)","v":""},{"$f":"IF('1. Order'!J415=\"\",\"\",'1. Order'!J415)","v":""},{"$f":"IF('1. Order'!K415=\"\",\"\",'1. Order'!K415)","v":""},{"$f":"IF('1. Order'!L415=\"\",\"\",'1. Order'!L415)","v":""},{"$f":"IF('1. Order'!N415=\"\",\"\",'1. Order'!N415)","v":""},null,null,{"$f":"'1. Order'!AV415","v":0},{"$f":"IF('1. Order'!AI415=\"\",\"\",'1. Order'!AI415)","v":""}]
[{"$f":"IF('1. Order'!B416=\"\",\"\",'1. Order'!B416)","v":""},{"$f":"IF('1. Order'!J416=\"\",\"\",'1. Order'!J416)","v":""},{"$f":"IF('1. Order'!K416=\"\",\"\",'1. Order'!K416)","v":""},{"$f":"IF('1. Order'!L416=\"\",\"\",'1. Order'!L416)","v":""},{"$f":"IF('1. Order'!N416=\"\",\"\",'1. Order'!N416)","v":""},null,null,{"$f":"'1. Order'!AV416","v":0},{"$f":"IF('1. Order'!AI416=\"\",\"\",'1. Order'!AI416)","v":""}]
[{"$f":"IF('1. Order'!B417=\"\",\"\",'1. Order'!B417)","v":""},{"$f":"IF('1. Order'!J417=\"\",\"\",'1. Order'!J417)","v":""},{"$f":"IF('1. Order'!K417=\"\",\"\",'1. Order'!K417)","v":""},{"$f":"IF('1. Order'!L417=\"\",\"\",'1. Order'!L417)","v":""},{"$f":"IF('1. Order'!N417=\"\",\"\",'1. Order'!N417)","v":""},null,null,{"$f":"'1. Order'!AV417","v":0},{"$f":"IF('1. Order'!AI417=\"\",\"\",'1. Order'!AI417)","v":""}]
[{"$f":"IF('1. Order'!B418=\"\",\"\",'1. Order'!B418)","v":""},{"$f":"IF('1. Order'!J418=\"\",\"\",'1. Order'!J418)","v":""},{"$f":"IF('1. Order'!K418=\"\",\"\",'1. Order'!K418)","v":""},{"$f":"IF('1. Order'!L418=\"\",\"\",'1. Order'!L418)","v":""},{"$f":"IF('1. Order'!N418=\"\",\"\",'1. Order'!N418)","v":""},null,null,{"$f":"'1. Order'!AV418","v":0},{"$f":"IF('1. Order'!AI418=\"\",\"\",'1. Order'!AI418)","v":""}]
[{"$f":"IF('1. Order'!B419=\"\",\"\",'1. Order'!B419)","v":""},{"$f":"IF('1. Order'!J419=\"\",\"\",'1. Order'!J419)","v":""},{"$f":"IF('1. Order'!K419=\"\",\"\",'1. Order'!K419)","v":""},{"$f":"IF('1. Order'!L419=\"\",\"\",'1. Order'!L419)","v":""},{"$f":"IF('1. Order'!N419=\"\",\"\",'1. Order'!N419)","v":""},null,null,{"$f":"'1. Order'!AV419","v":0},{"$f":"IF('1. Order'!AI419=\"\",\"\",'1. Order'!AI419)","v":""}]
[{"$f":"IF('1. Order'!B420=\"\",\"\",'1. Order'!B420)","v":""},{"$f":"IF('1. Order'!J420=\"\",\"\",'1. Order'!J420)","v":""},{"$f":"IF('1. Order'!K420=\"\",\"\",'1. Order'!K420)","v":""},{"$f":"IF('1. Order'!L420=\"\",\"\",'1. Order'!L420)","v":""},{"$f":"IF('1. Order'!N420=\"\",\"\",'1. Order'!N420)","v":""},null,null,{"$f":"'1. Order'!AV420","v":0},{"$f":"IF('1. Order'!AI420=\"\",\"\",'1. Order'!AI420)","v":""}]
[{"$f":"IF('1. Order'!B421=\"\",\"\",'1. Order'!B421)","v":""},{"$f":"IF('1. Order'!J421=\"\",\"\",'1. Order'!J421)","v":""},{"$f":"IF('1. Order'!K421=\"\",\"\",'1. Order'!K421)","v":""},{"$f":"IF('1. Order'!L421=\"\",\"\",'1. Order'!L421)","v":""},{"$f":"IF('1. Order'!N421=\"\",\"\",'1. Order'!N421)","v":""},null,null,{"$f":"'1. Order'!AV421","v":0},{"$f":"IF('1. Order'!AI421=\"\",\"\",'1. Order'!AI421)","v":""}]
[{"$f":"IF('1. Order'!B422=\"\",\"\",'1. Order'!B422)","v":""},{"$f":"IF('1. Order'!J422=\"\",\"\",'1. Order'!J422)","v":""},{"$f":"IF('1. Order'!K422=\"\",\"\",'1. Order'!K422)","v":""},{"$f":"IF('1. Order'!L422=\"\",\"\",'1. Order'!L422)","v":""},{"$f":"IF('1. Order'!N422=\"\",\"\",'1. Order'!N422)","v":""},null,null,{"$f":"'1. Order'!AV422","v":0},{"$f":"IF('1. Order'!AI422=\"\",\"\",'1. Order'!AI422)","v":""}]
[{"$f":"IF('1. Order'!B423=\"\",\"\",'1. Order'!B423)","v":""},{"$f":"IF('1. Order'!J423=\"\",\"\",'1. Order'!J423)","v":""},{"$f":"IF('1. Order'!K423=\"\",\"\",'1. Order'!K423)","v":""},{"$f":"IF('1. Order'!L423=\"\",\"\",'1. Order'!L423)","v":""},{"$f":"IF('1. Order'!N423=\"\",\"\",'1. Order'!N423)","v":""},null,null,{"$f":"'1. Order'!AV423","v":0},{"$f":"IF('1. Order'!AI423=\"\",\"\",'1. Order'!AI423)","v":""}]
[{"$f":"IF('1. Order'!B424=\"\",\"\",'1. Order'!B424)","v":""},{"$f":"IF('1. Order'!J424=\"\",\"\",'1. Order'!J424)","v":""},{"$f":"IF('1. Order'!K424=\"\",\"\",'1. Order'!K424)","v":""},{"$f":"IF('1. Order'!L424=\"\",\"\",'1. Order'!L424)","v":""},{"$f":"IF('1. Order'!N424=\"\",\"\",'1. Order'!N424)","v":""},null,null,{"$f":"'1. Order'!AV424","v":0},{"$f":"IF('1. Order'!AI424=\"\",\"\",'1. Order'!AI424)","v":""}]
[{"$f":"IF('1. Order'!B425=\"\",\"\",'1. Order'!B425)","v":""},{"$f":"IF('1. Order'!J425=\"\",\"\",'1. Order'!J425)","v":""},{"$f":"IF('1. Order'!K425=\"\",\"\",'1. Order'!K425)","v":""},{"$f":"IF('1. Order'!L425=\"\",\"\",'1. Order'!L425)","v":""},{"$f":"IF('1. Order'!N425=\"\",\"\",'1. Order'!N425)","v":""},null,null,{"$f":"'1. Order'!AV425","v":0},{"$f":"IF('1. Order'!AI425=\"\",\"\",'1. Order'!AI425)","v":""}]
[{"$f":"IF('1. Order'!B426=\"\",\"\",'1. Order'!B426)","v":""},{"$f":"IF('1. Order'!J426=\"\",\"\",'1. Order'!J426)","v":""},{"$f":"IF('1. Order'!K426=\"\",\"\",'1. Order'!K426)","v":""},{"$f":"IF('1. Order'!L426=\"\",\"\",'1. Order'!L426)","v":""},{"$f":"IF('1. Order'!N426=\"\",\"\",'1. Order'!N426)","v":""},null,null,{"$f":"'1. Order'!AV426","v":0},{"$f":"IF('1. Order'!AI426=\"\",\"\",'1. Order'!AI426)","v":""}]
[{"$f":"IF('1. Order'!B427=\"\",\"\",'1. Order'!B427)","v":""},{"$f":"IF('1. Order'!J427=\"\",\"\",'1. Order'!J427)","v":""},{"$f":"IF('1. Order'!K427=\"\",\"\",'1. Order'!K427)","v":""},{"$f":"IF('1. Order'!L427=\"\",\"\",'1. Order'!L427)","v":""},{"$f":"IF('1. Order'!N427=\"\",\"\",'1. Order'!N427)","v":""},null,null,{"$f":"'1. Order'!AV427","v":0},{"$f":"IF('1. Order'!AI427=\"\",\"\",'1. Order'!AI427)","v":""}]
[{"$f":"IF('1. Order'!B428=\"\",\"\",'1. Order'!B428)","v":""},{"$f":"IF('1. Order'!J428=\"\",\"\",'1. Order'!J428)","v":""},{"$f":"IF('1. Order'!K428=\"\",\"\",'1. Order'!K428)","v":""},{"$f":"IF('1. Order'!L428=\"\",\"\",'1. Order'!L428)","v":""},{"$f":"IF('1. Order'!N428=\"\",\"\",'1. Order'!N428)","v":""},null,null,{"$f":"'1. Order'!AV428","v":0},{"$f":"IF('1. Order'!AI428=\"\",\"\",'1. Order'!AI428)","v":""}]
[{"$f":"IF('1. Order'!B429=\"\",\"\",'1. Order'!B429)","v":""},{"$f":"IF('1. Order'!J429=\"\",\"\",'1. Order'!J429)","v":""},{"$f":"IF('1. Order'!K429=\"\",\"\",'1. Order'!K429)","v":""},{"$f":"IF('1. Order'!L429=\"\",\"\",'1. Order'!L429)","v":""},{"$f":"IF('1. Order'!N429=\"\",\"\",'1. Order'!N429)","v":""},null,null,{"$f":"'1. Order'!AV429","v":0},{"$f":"IF('1. Order'!AI429=\"\",\"\",'1. Order'!AI429)","v":""}]
[{"$f":"IF('1. Order'!B430=\"\",\"\",'1. Order'!B430)","v":""},{"$f":"IF('1. Order'!J430=\"\",\"\",'1. Order'!J430)","v":""},{"$f":"IF('1. Order'!K430=\"\",\"\",'1. Order'!K430)","v":""},{"$f":"IF('1. Order'!L430=\"\",\"\",'1. Order'!L430)","v":""},{"$f":"IF('1. Order'!N430=\"\",\"\",'1. Order'!N430)","v":""},null,null,{"$f":"'1. Order'!AV430","v":0},{"$f":"IF('1. Order'!AI430=\"\",\"\",'1. Order'!AI430)","v":""}]
[{"$f":"IF('1. Order'!B431=\"\",\"\",'1. Order'!B431)","v":""},{"$f":"IF('1. Order'!J431=\"\",\"\",'1. Order'!J431)","v":""},{"$f":"IF('1. Order'!K431=\"\",\"\",'1. Order'!K431)","v":""},{"$f":"IF('1. Order'!L431=\"\",\"\",'1. Order'!L431)","v":""},{"$f":"IF('1. Order'!N431=\"\",\"\",'1. Order'!N431)","v":""},null,null,{"$f":"'1. Order'!AV431","v":0},{"$f":"IF('1. Order'!AI431=\"\",\"\",'1. Order'!AI431)","v":""}]
[{"$f":"IF('1. Order'!B432=\"\",\"\",'1. Order'!B432)","v":""},{"$f":"IF('1. Order'!J432=\"\",\"\",'1. Order'!J432)","v":""},{"$f":"IF('1. Order'!K432=\"\",\"\",'1. Order'!K432)","v":""},{"$f":"IF('1. Order'!L432=\"\",\"\",'1. Order'!L432)","v":""},{"$f":"IF('1. Order'!N432=\"\",\"\",'1. Order'!N432)","v":""},null,null,{"$f":"'1. Order'!AV432","v":0},{"$f":"IF('1. Order'!AI432=\"\",\"\",'1. Order'!AI432)","v":""}]
[{"$f":"IF('1. Order'!B433=\"\",\"\",'1. Order'!B433)","v":""},{"$f":"IF('1. Order'!J433=\"\",\"\",'1. Order'!J433)","v":""},{"$f":"IF('1. Order'!K433=\"\",\"\",'1. Order'!K433)","v":""},{"$f":"IF('1. Order'!L433=\"\",\"\",'1. Order'!L433)","v":""},{"$f":"IF('1. Order'!N433=\"\",\"\",'1. Order'!N433)","v":""},null,null,{"$f":"'1. Order'!AV433","v":0},{"$f":"IF('1. Order'!AI433=\"\",\"\",'1. Order'!AI433)","v":""}]
[{"$f":"IF('1. Order'!B434=\"\",\"\",'1. Order'!B434)","v":""},{"$f":"IF('1. Order'!J434=\"\",\"\",'1. Order'!J434)","v":""},{"$f":"IF('1. Order'!K434=\"\",\"\",'1. Order'!K434)","v":""},{"$f":"IF('1. Order'!L434=\"\",\"\",'1. Order'!L434)","v":""},{"$f":"IF('1. Order'!N434=\"\",\"\",'1. Order'!N434)","v":""},null,null,{"$f":"'1. Order'!AV434","v":0},{"$f":"IF('1. Order'!AI434=\"\",\"\",'1. Order'!AI434)","v":""}]
[{"$f":"IF('1. Order'!B435=\"\",\"\",'1. Order'!B435)","v":""},{"$f":"IF('1. Order'!J435=\"\",\"\",'1. Order'!J435)","v":""},{"$f":"IF('1. Order'!K435=\"\",\"\",'1. Order'!K435)","v":""},{"$f":"IF('1. Order'!L435=\"\",\"\",'1. Order'!L435)","v":""},{"$f":"IF('1. Order'!N435=\"\",\"\",'1. Order'!N435)","v":""},null,null,{"$f":"'1. Order'!AV435","v":0},{"$f":"IF('1. Order'!AI435=\"\",\"\",'1. Order'!AI435)","v":""}]
[{"$f":"IF('1. Order'!B436=\"\",\"\",'1. Order'!B436)","v":""},{"$f":"IF('1. Order'!J436=\"\",\"\",'1. Order'!J436)","v":""},{"$f":"IF('1. Order'!K436=\"\",\"\",'1. Order'!K436)","v":""},{"$f":"IF('1. Order'!L436=\"\",\"\",'1. Order'!L436)","v":""},{"$f":"IF('1. Order'!N436=\"\",\"\",'1. Order'!N436)","v":""},null,null,{"$f":"'1. Order'!AV436","v":0},{"$f":"IF('1. Order'!AI436=\"\",\"\",'1. Order'!AI436)","v":""}]
[{"$f":"IF('1. Order'!B437=\"\",\"\",'1. Order'!B437)","v":""},{"$f":"IF('1. Order'!J437=\"\",\"\",'1. Order'!J437)","v":""},{"$f":"IF('1. Order'!K437=\"\",\"\",'1. Order'!K437)","v":""},{"$f":"IF('1. Order'!L437=\"\",\"\",'1. Order'!L437)","v":""},{"$f":"IF('1. Order'!N437=\"\",\"\",'1. Order'!N437)","v":""},null,null,{"$f":"'1. Order'!AV437","v":0},{"$f":"IF('1. Order'!AI437=\"\",\"\",'1. Order'!AI437)","v":""}]
[{"$f":"IF('1. Order'!B438=\"\",\"\",'1. Order'!B438)","v":""},{"$f":"IF('1. Order'!J438=\"\",\"\",'1. Order'!J438)","v":""},{"$f":"IF('1. Order'!K438=\"\",\"\",'1. Order'!K438)","v":""},{"$f":"IF('1. Order'!L438=\"\",\"\",'1. Order'!L438)","v":""},{"$f":"IF('1. Order'!N438=\"\",\"\",'1. Order'!N438)","v":""},null,null,{"$f":"'1. Order'!AV438","v":0},{"$f":"IF('1. Order'!AI438=\"\",\"\",'1. Order'!AI438)","v":""}]
[{"$f":"IF('1. Order'!B439=\"\",\"\",'1. Order'!B439)","v":""},{"$f":"IF('1. Order'!J439=\"\",\"\",'1. Order'!J439)","v":""},{"$f":"IF('1. Order'!K439=\"\",\"\",'1. Order'!K439)","v":""},{"$f":"IF('1. Order'!L439=\"\",\"\",'1. Order'!L439)","v":""},{"$f":"IF('1. Order'!N439=\"\",\"\",'1. Order'!N439)","v":""},null,null,{"$f":"'1. Order'!AV439","v":0},{"$f":"IF('1. Order'!AI439=\"\",\"\",'1. Order'!AI439)","v":""}]
[{"$f":"IF('1. Order'!B440=\"\",\"\",'1. Order'!B440)","v":""},{"$f":"IF('1. Order'!J440=\"\",\"\",'1. Order'!J440)","v":""},{"$f":"IF('1. Order'!K440=\"\",\"\",'1. Order'!K440)","v":""},{"$f":"IF('1. Order'!L440=\"\",\"\",'1. Order'!L440)","v":""},{"$f":"IF('1. Order'!N440=\"\",\"\",'1. Order'!N440)","v":""},null,null,{"$f":"'1. Order'!AV440","v":0},{"$f":"IF('1. Order'!AI440=\"\",\"\",'1. Order'!AI440)","v":""}]
[{"$f":"IF('1. Order'!B441=\"\",\"\",'1. Order'!B441)","v":""},{"$f":"IF('1. Order'!J441=\"\",\"\",'1. Order'!J441)","v":""},{"$f":"IF('1. Order'!K441=\"\",\"\",'1. Order'!K441)","v":""},{"$f":"IF('1. Order'!L441=\"\",\"\",'1. Order'!L441)","v":""},{"$f":"IF('1. Order'!N441=\"\",\"\",'1. Order'!N441)","v":""},null,null,{"$f":"'1. Order'!AV441","v":0},{"$f":"IF('1. Order'!AI441=\"\",\"\",'1. Order'!AI441)","v":""}]
[{"$f":"IF('1. Order'!B442=\"\",\"\",'1. Order'!B442)","v":""},{"$f":"IF('1. Order'!J442=\"\",\"\",'1. Order'!J442)","v":""},{"$f":"IF('1. Order'!K442=\"\",\"\",'1. Order'!K442)","v":""},{"$f":"IF('1. Order'!L442=\"\",\"\",'1. Order'!L442)","v":""},{"$f":"IF('1. Order'!N442=\"\",\"\",'1. Order'!N442)","v":""},null,null,{"$f":"'1. Order'!AV442","v":0},{"$f":"IF('1. Order'!AI442=\"\",\"\",'1. Order'!AI442)","v":""}]
[{"$f":"IF('1. Order'!B443=\"\",\"\",'1. Order'!B443)","v":""},{"$f":"IF('1. Order'!J443=\"\",\"\",'1. Order'!J443)","v":""},{"$f":"IF('1. Order'!K443=\"\",\"\",'1. Order'!K443)","v":""},{"$f":"IF('1. Order'!L443=\"\",\"\",'1. Order'!L443)","v":""},{"$f":"IF('1. Order'!N443=\"\",\"\",'1. Order'!N443)","v":""},null,null,{"$f":"'1. Order'!AV443","v":0},{"$f":"IF('1. Order'!AI443=\"\",\"\",'1. Order'!AI443)","v":""}]
[{"$f":"IF('1. Order'!B444=\"\",\"\",'1. Order'!B444)","v":""},{"$f":"IF('1. Order'!J444=\"\",\"\",'1. Order'!J444)","v":""},{"$f":"IF('1. Order'!K444=\"\",\"\",'1. Order'!K444)","v":""},{"$f":"IF('1. Order'!L444=\"\",\"\",'1. Order'!L444)","v":""},{"$f":"IF('1. Order'!N444=\"\",\"\",'1. Order'!N444)","v":""},null,null,{"$f":"'1. Order'!AV444","v":0},{"$f":"IF('1. Order'!AI444=\"\",\"\",'1. Order'!AI444)","v":""}]
[{"$f":"IF('1. Order'!B445=\"\",\"\",'1. Order'!B445)","v":""},{"$f":"IF('1. Order'!J445=\"\",\"\",'1. Order'!J445)","v":""},{"$f":"IF('1. Order'!K445=\"\",\"\",'1. Order'!K445)","v":""},{"$f":"IF('1. Order'!L445=\"\",\"\",'1. Order'!L445)","v":""},{"$f":"IF('1. Order'!N445=\"\",\"\",'1. Order'!N445)","v":""},null,null,{"$f":"'1. Order'!AV445","v":0},{"$f":"IF('1. Order'!AI445=\"\",\"\",'1. Order'!AI445)","v":""}]
[{"$f":"IF('1. Order'!B446=\"\",\"\",'1. Order'!B446)","v":""},{"$f":"IF('1. Order'!J446=\"\",\"\",'1. Order'!J446)","v":""},{"$f":"IF('1. Order'!K446=\"\",\"\",'1. Order'!K446)","v":""},{"$f":"IF('1. Order'!L446=\"\",\"\",'1. Order'!L446)","v":""},{"$f":"IF('1. Order'!N446=\"\",\"\",'1. Order'!N446)","v":""},null,null,{"$f":"'1. Order'!AV446","v":0},{"$f":"IF('1. Order'!AI446=\"\",\"\",'1. Order'!AI446)","v":""}]
[{"$f":"IF('1. Order'!B447=\"\",\"\",'1. Order'!B447)","v":""},{"$f":"IF('1. Order'!J447=\"\",\"\",'1. Order'!J447)","v":""},{"$f":"IF('1. Order'!K447=\"\",\"\",'1. Order'!K447)","v":""},{"$f":"IF('1. Order'!L447=\"\",\"\",'1. Order'!L447)","v":""},{"$f":"IF('1. Order'!N447=\"\",\"\",'1. Order'!N447)","v":""},null,null,{"$f":"'1. Order'!AV447","v":0},{"$f":"IF('1. Order'!AI447=\"\",\"\",'1. Order'!AI447)","v":""}]
[{"$f":"IF('1. Order'!B448=\"\",\"\",'1. Order'!B448)","v":""},{"$f":"IF('1. Order'!J448=\"\",\"\",'1. Order'!J448)","v":""},{"$f":"IF('1. Order'!K448=\"\",\"\",'1. Order'!K448)","v":""},{"$f":"IF('1. Order'!L448=\"\",\"\",'1. Order'!L448)","v":""},{"$f":"IF('1. Order'!N448=\"\",\"\",'1. Order'!N448)","v":""},null,null,{"$f":"'1. Order'!AV448","v":0},{"$f":"IF('1. Order'!AI448=\"\",\"\",'1. Order'!AI448)","v":""}]
[{"$f":"IF('1. Order'!B449=\"\",\"\",'1. Order'!B449)","v":""},{"$f":"IF('1. Order'!J449=\"\",\"\",'1. Order'!J449)","v":""},{"$f":"IF('1. Order'!K449=\"\",\"\",'1. Order'!K449)","v":""},{"$f":"IF('1. Order'!L449=\"\",\"\",'1. Order'!L449)","v":""},{"$f":"IF('1. Order'!N449=\"\",\"\",'1. Order'!N449)","v":""},null,null,{"$f":"'1. Order'!AV449","v":0},{"$f":"IF('1. Order'!AI449=\"\",\"\",'1. Order'!AI449)","v":""}]
[{"$f":"IF('1. Order'!B450=\"\",\"\",'1. Order'!B450)","v":""},{"$f":"IF('1. Order'!J450=\"\",\"\",'1. Order'!J450)","v":""},{"$f":"IF('1. Order'!K450=\"\",\"\",'1. Order'!K450)","v":""},{"$f":"IF('1. Order'!L450=\"\",\"\",'1. Order'!L450)","v":""},{"$f":"IF('1. Order'!N450=\"\",\"\",'1. Order'!N450)","v":""},null,null,{"$f":"'1. Order'!AV450","v":0},{"$f":"IF('1. Order'!AI450=\"\",\"\",'1. Order'!AI450)","v":""}]
[{"$f":"IF('1. Order'!B451=\"\",\"\",'1. Order'!B451)","v":""},{"$f":"IF('1. Order'!J451=\"\",\"\",'1. Order'!J451)","v":""},{"$f":"IF('1. Order'!K451=\"\",\"\",'1. Order'!K451)","v":""},{"$f":"IF('1. Order'!L451=\"\",\"\",'1. Order'!L451)","v":""},{"$f":"IF('1. Order'!N451=\"\",\"\",'1. Order'!N451)","v":""},null,null,{"$f":"'1. Order'!AV451","v":0},{"$f":"IF('1. Order'!AI451=\"\",\"\",'1. Order'!AI451)","v":""}]
[{"$f":"IF('1. Order'!B452=\"\",\"\",'1. Order'!B452)","v":""},{"$f":"IF('1. Order'!J452=\"\",\"\",'1. Order'!J452)","v":""},{"$f":"IF('1. Order'!K452=\"\",\"\",'1. Order'!K452)","v":""},{"$f":"IF('1. Order'!L452=\"\",\"\",'1. Order'!L452)","v":""},{"$f":"IF('1. Order'!N452=\"\",\"\",'1. Order'!N452)","v":""},null,null,{"$f":"'1. Order'!AV452","v":0},{"$f":"IF('1. Order'!AI452=\"\",\"\",'1. Order'!AI452)","v":""}]
[{"$f":"IF('1. Order'!B453=\"\",\"\",'1. Order'!B453)","v":""},{"$f":"IF('1. Order'!J453=\"\",\"\",'1. Order'!J453)","v":""},{"$f":"IF('1. Order'!K453=\"\",\"\",'1. Order'!K453)","v":""},{"$f":"IF('1. Order'!L453=\"\",\"\",'1. Order'!L453)","v":""},{"$f":"IF('1. Order'!N453=\"\",\"\",'1. Order'!N453)","v":""},null,null,{"$f":"'1. Order'!AV453","v":0},{"$f":"IF('1. Order'!AI453=\"\",\"\",'1. Order'!AI453)","v":""}]
[{"$f":"IF('1. Order'!B454=\"\",\"\",'1. Order'!B454)","v":""},{"$f":"IF('1. Order'!J454=\"\",\"\",'1. Order'!J454)","v":""},{"$f":"IF('1. Order'!K454=\"\",\"\",'1. Order'!K454)","v":""},{"$f":"IF('1. Order'!L454=\"\",\"\",'1. Order'!L454)","v":""},{"$f":"IF('1. Order'!N454=\"\",\"\",'1. Order'!N454)","v":""},null,null,{"$f":"'1. Order'!AV454","v":0},{"$f":"IF('1. Order'!AI454=\"\",\"\",'1. Order'!AI454)","v":""}]
[{"$f":"IF('1. Order'!B455=\"\",\"\",'1. Order'!B455)","v":""},{"$f":"IF('1. Order'!J455=\"\",\"\",'1. Order'!J455)","v":""},{"$f":"IF('1. Order'!K455=\"\",\"\",'1. Order'!K455)","v":""},{"$f":"IF('1. Order'!L455=\"\",\"\",'1. Order'!L455)","v":""},{"$f":"IF('1. Order'!N455=\"\",\"\",'1. Order'!N455)","v":""},null,null,{"$f":"'1. Order'!AV455","v":0},{"$f":"IF('1. Order'!AI455=\"\",\"\",'1. Order'!AI455)","v":""}]
[{"$f":"IF('1. Order'!B456=\"\",\"\",'1. Order'!B456)","v":""},{"$f":"IF('1. Order'!J456=\"\",\"\",'1. Order'!J456)","v":""},{"$f":"IF('1. Order'!K456=\"\",\"\",'1. Order'!K456)","v":""},{"$f":"IF('1. Order'!L456=\"\",\"\",'1. Order'!L456)","v":""},{"$f":"IF('1. Order'!N456=\"\",\"\",'1. Order'!N456)","v":""},null,null,{"$f":"'1. Order'!AV456","v":0},{"$f":"IF('1. Order'!AI456=\"\",\"\",'1. Order'!AI456)","v":""}]
[{"$f":"IF('1. Order'!B457=\"\",\"\",'1. Order'!B457)","v":""},{"$f":"IF('1. Order'!J457=\"\",\"\",'1. Order'!J457)","v":""},{"$f":"IF('1. Order'!K457=\"\",\"\",'1. Order'!K457)","v":""},{"$f":"IF('1. Order'!L457=\"\",\"\",'1. Order'!L457)","v":""},{"$f":"IF('1. Order'!N457=\"\",\"\",'1. Order'!N457)","v":""},null,null,{"$f":"'1. Order'!AV457","v":0},{"$f":"IF('1. Order'!AI457=\"\",\"\",'1. Order'!AI457)","v":""}]
[{"$f":"IF('1. Order'!B458=\"\",\"\",'1. Order'!B458)","v":""},{"$f":"IF('1. Order'!J458=\"\",\"\",'1. Order'!J458)","v":""},{"$f":"IF('1. Order'!K458=\"\",\"\",'1. Order'!K458)","v":""},{"$f":"IF('1. Order'!L458=\"\",\"\",'1. Order'!L458)","v":""},{"$f":"IF('1. Order'!N458=\"\",\"\",'1. Order'!N458)","v":""},null,null,{"$f":"'1. Order'!AV458","v":0},{"$f":"IF('1. Order'!AI458=\"\",\"\",'1. Order'!AI458)","v":""}]
[{"$f":"IF('1. Order'!B459=\"\",\"\",'1. Order'!B459)","v":""},{"$f":"IF('1. Order'!J459=\"\",\"\",'1. Order'!J459)","v":""},{"$f":"IF('1. Order'!K459=\"\",\"\",'1. Order'!K459)","v":""},{"$f":"IF('1. Order'!L459=\"\",\"\",'1. Order'!L459)","v":""},{"$f":"IF('1. Order'!N459=\"\",\"\",'1. Order'!N459)","v":""},null,null,{"$f":"'1. Order'!AV459","v":0},{"$f":"IF('1. Order'!AI459=\"\",\"\",'1. Order'!AI459)","v":""}]
[{"$f":"IF('1. Order'!B460=\"\",\"\",'1. Order'!B460)","v":""},{"$f":"IF('1. Order'!J460=\"\",\"\",'1. Order'!J460)","v":""},{"$f":"IF('1. Order'!K460=\"\",\"\",'1. Order'!K460)","v":""},{"$f":"IF('1. Order'!L460=\"\",\"\",'1. Order'!L460)","v":""},{"$f":"IF('1. Order'!N460=\"\",\"\",'1. Order'!N460)","v":""},null,null,{"$f":"'1. Order'!AV460","v":0},{"$f":"IF('1. Order'!AI460=\"\",\"\",'1. Order'!AI460)","v":""}]
[{"$f":"IF('1. Order'!B461=\"\",\"\",'1. Order'!B461)","v":""},{"$f":"IF('1. Order'!J461=\"\",\"\",'1. Order'!J461)","v":""},{"$f":"IF('1. Order'!K461=\"\",\"\",'1. Order'!K461)","v":""},{"$f":"IF('1. Order'!L461=\"\",\"\",'1. Order'!L461)","v":""},{"$f":"IF('1. Order'!N461=\"\",\"\",'1. Order'!N461)","v":""},null,null,{"$f":"'1. Order'!AV461","v":0},{"$f":"IF('1. Order'!AI461=\"\",\"\",'1. Order'!AI461)","v":""}]
[{"$f":"IF('1. Order'!B462=\"\",\"\",'1. Order'!B462)","v":""},{"$f":"IF('1. Order'!J462=\"\",\"\",'1. Order'!J462)","v":""},{"$f":"IF('1. Order'!K462=\"\",\"\",'1. Order'!K462)","v":""},{"$f":"IF('1. Order'!L462=\"\",\"\",'1. Order'!L462)","v":""},{"$f":"IF('1. Order'!N462=\"\",\"\",'1. Order'!N462)","v":""},null,null,{"$f":"'1. Order'!AV462","v":0},{"$f":"IF('1. Order'!AI462=\"\",\"\",'1. Order'!AI462)","v":""}]
[{"$f":"IF('1. Order'!B463=\"\",\"\",'1. Order'!B463)","v":""},{"$f":"IF('1. Order'!J463=\"\",\"\",'1. Order'!J463)","v":""},{"$f":"IF('1. Order'!K463=\"\",\"\",'1. Order'!K463)","v":""},{"$f":"IF('1. Order'!L463=\"\",\"\",'1. Order'!L463)","v":""},{"$f":"IF('1. Order'!N463=\"\",\"\",'1. Order'!N463)","v":""},null,null,{"$f":"'1. Order'!AV463","v":0},{"$f":"IF('1. Order'!AI463=\"\",\"\",'1. Order'!AI463)","v":""}]
[{"$f":"IF('1. Order'!B464=\"\",\"\",'1. Order'!B464)","v":""},{"$f":"IF('1. Order'!J464=\"\",\"\",'1. Order'!J464)","v":""},{"$f":"IF('1. Order'!K464=\"\",\"\",'1. Order'!K464)","v":""},{"$f":"IF('1. Order'!L464=\"\",\"\",'1. Order'!L464)","v":""},{"$f":"IF('1. Order'!N464=\"\",\"\",'1. Order'!N464)","v":""},null,null,{"$f":"'1. Order'!AV464","v":0},{"$f":"IF('1. Order'!AI464=\"\",\"\",'1. Order'!AI464)","v":""}]
[{"$f":"IF('1. Order'!B465=\"\",\"\",'1. Order'!B465)","v":""},{"$f":"IF('1. Order'!J465=\"\",\"\",'1. Order'!J465)","v":""},{"$f":"IF('1. Order'!K465=\"\",\"\",'1. Order'!K465)","v":""},{"$f":"IF('1. Order'!L465=\"\",\"\",'1. Order'!L465)","v":""},{"$f":"IF('1. Order'!N465=\"\",\"\",'1. Order'!N465)","v":""},null,null,{"$f":"'1. Order'!AV465","v":0},{"$f":"IF('1. Order'!AI465=\"\",\"\",'1. Order'!AI465)","v":""}]
[{"$f":"IF('1. Order'!B466=\"\",\"\",'1. Order'!B466)","v":""},{"$f":"IF('1. Order'!J466=\"\",\"\",'1. Order'!J466)","v":""},{"$f":"IF('1. Order'!K466=\"\",\"\",'1. Order'!K466)","v":""},{"$f":"IF('1. Order'!L466=\"\",\"\",'1. Order'!L466)","v":""},{"$f":"IF('1. Order'!N466=\"\",\"\",'1. Order'!N466)","v":""},null,null,{"$f":"'1. Order'!AV466","v":0},{"$f":"IF('1. Order'!AI466=\"\",\"\",'1. Order'!AI466)","v":""}]
[{"$f":"IF('1. Order'!B467=\"\",\"\",'1. Order'!B467)","v":""},{"$f":"IF('1. Order'!J467=\"\",\"\",'1. Order'!J467)","v":""},{"$f":"IF('1. Order'!K467=\"\",\"\",'1. Order'!K467)","v":""},{"$f":"IF('1. Order'!L467=\"\",\"\",'1. Order'!L467)","v":""},{"$f":"IF('1. Order'!N467=\"\",\"\",'1. Order'!N467)","v":""},null,null,{"$f":"'1. Order'!AV467","v":0},{"$f":"IF('1. Order'!AI467=\"\",\"\",'1. Order'!AI467)","v":""}]
[{"$f":"IF('1. Order'!B468=\"\",\"\",'1. Order'!B468)","v":""},{"$f":"IF('1. Order'!J468=\"\",\"\",'1. Order'!J468)","v":""},{"$f":"IF('1. Order'!K468=\"\",\"\",'1. Order'!K468)","v":""},{"$f":"IF('1. Order'!L468=\"\",\"\",'1. Order'!L468)","v":""},{"$f":"IF('1. Order'!N468=\"\",\"\",'1. Order'!N468)","v":""},null,null,{"$f":"'1. Order'!AV468","v":0},{"$f":"IF('1. Order'!AI468=\"\",\"\",'1. Order'!AI468)","v":""}]
[{"$f":"IF('1. Order'!B469=\"\",\"\",'1. Order'!B469)","v":""},{"$f":"IF('1. Order'!J469=\"\",\"\",'1. Order'!J469)","v":""},{"$f":"IF('1. Order'!K469=\"\",\"\",'1. Order'!K469)","v":""},{"$f":"IF('1. Order'!L469=\"\",\"\",'1. Order'!L469)","v":""},{"$f":"IF('1. Order'!N469=\"\",\"\",'1. Order'!N469)","v":""},null,null,{"$f":"'1. Order'!AV469","v":0},{"$f":"IF('1. Order'!AI469=\"\",\"\",'1. Order'!AI469)","v":""}]
[{"$f":"IF('1. Order'!B470=\"\",\"\",'1. Order'!B470)","v":""},{"$f":"IF('1. Order'!J470=\"\",\"\",'1. Order'!J470)","v":""},{"$f":"IF('1. Order'!K470=\"\",\"\",'1. Order'!K470)","v":""},{"$f":"IF('1. Order'!L470=\"\",\"\",'1. Order'!L470)","v":""},{"$f":"IF('1. Order'!N470=\"\",\"\",'1. Order'!N470)","v":""},null,null,{"$f":"'1. Order'!AV470","v":0},{"$f":"IF('1. Order'!AI470=\"\",\"\",'1. Order'!AI470)","v":""}]
[{"$f":"IF('1. Order'!B471=\"\",\"\",'1. Order'!B471)","v":""},{"$f":"IF('1. Order'!J471=\"\",\"\",'1. Order'!J471)","v":""},{"$f":"IF('1. Order'!K471=\"\",\"\",'1. Order'!K471)","v":""},{"$f":"IF('1. Order'!L471=\"\",\"\",'1. Order'!L471)","v":""},{"$f":"IF('1. Order'!N471=\"\",\"\",'1. Order'!N471)","v":""},null,null,{"$f":"'1. Order'!AV471","v":0},{"$f":"IF('1. Order'!AI471=\"\",\"\",'1. Order'!AI471)","v":""}]
[{"$f":"IF('1. Order'!B472=\"\",\"\",'1. Order'!B472)","v":""},{"$f":"IF('1. Order'!J472=\"\",\"\",'1. Order'!J472)","v":""},{"$f":"IF('1. Order'!K472=\"\",\"\",'1. Order'!K472)","v":""},{"$f":"IF('1. Order'!L472=\"\",\"\",'1. Order'!L472)","v":""},{"$f":"IF('1. Order'!N472=\"\",\"\",'1. Order'!N472)","v":""},null,null,{"$f":"'1. Order'!AV472","v":0},{"$f":"IF('1. Order'!AI472=\"\",\"\",'1. Order'!AI472)","v":""}]
[{"$f":"IF('1. Order'!B473=\"\",\"\",'1. Order'!B473)","v":""},{"$f":"IF('1. Order'!J473=\"\",\"\",'1. Order'!J473)","v":""},{"$f":"IF('1. Order'!K473=\"\",\"\",'1. Order'!K473)","v":""},{"$f":"IF('1. Order'!L473=\"\",\"\",'1. Order'!L473)","v":""},{"$f":"IF('1. Order'!N473=\"\",\"\",'1. Order'!N473)","v":""},null,null,{"$f":"'1. Order'!AV473","v":0},{"$f":"IF('1. Order'!AI473=\"\",\"\",'1. Order'!AI473)","v":""}]
[{"$f":"IF('1. Order'!B474=\"\",\"\",'1. Order'!B474)","v":""},{"$f":"IF('1. Order'!J474=\"\",\"\",'1. Order'!J474)","v":""},{"$f":"IF('1. Order'!K474=\"\",\"\",'1. Order'!K474)","v":""},{"$f":"IF('1. Order'!L474=\"\",\"\",'1. Order'!L474)","v":""},{"$f":"IF('1. Order'!N474=\"\",\"\",'1. Order'!N474)","v":""},null,null,{"$f":"'1. Order'!AV474","v":0},{"$f":"IF('1. Order'!AI474=\"\",\"\",'1. Order'!AI474)","v":""}]
[{"$f":"IF('1. Order'!B475=\"\",\"\",'1. Order'!B475)","v":""},{"$f":"IF('1. Order'!J475=\"\",\"\",'1. Order'!J475)","v":""},{"$f":"IF('1. Order'!K475=\"\",\"\",'1. Order'!K475)","v":""},{"$f":"IF('1. Order'!L475=\"\",\"\",'1. Order'!L475)","v":""},{"$f":"IF('1. Order'!N475=\"\",\"\",'1. Order'!N475)","v":""},null,null,{"$f":"'1. Order'!AV475","v":0},{"$f":"IF('1. Order'!AI475=\"\",\"\",'1. Order'!AI475)","v":""}]
[{"$f":"IF('1. Order'!B476=\"\",\"\",'1. Order'!B476)","v":""},{"$f":"IF('1. Order'!J476=\"\",\"\",'1. Order'!J476)","v":""},{"$f":"IF('1. Order'!K476=\"\",\"\",'1. Order'!K476)","v":""},{"$f":"IF('1. Order'!L476=\"\",\"\",'1. Order'!L476)","v":""},{"$f":"IF('1. Order'!N476=\"\",\"\",'1. Order'!N476)","v":""},null,null,{"$f":"'1. Order'!AV476","v":0},{"$f":"IF('1. Order'!AI476=\"\",\"\",'1. Order'!AI476)","v":""}]
[{"$f":"IF('1. Order'!B477=\"\",\"\",'1. Order'!B477)","v":""},{"$f":"IF('1. Order'!J477=\"\",\"\",'1. Order'!J477)","v":""},{"$f":"IF('1. Order'!K477=\"\",\"\",'1. Order'!K477)","v":""},{"$f":"IF('1. Order'!L477=\"\",\"\",'1. Order'!L477)","v":""},{"$f":"IF('1. Order'!N477=\"\",\"\",'1. Order'!N477)","v":""},null,null,{"$f":"'1. Order'!AV477","v":0},{"$f":"IF('1. Order'!AI477=\"\",\"\",'1. Order'!AI477)","v":""}]
[{"$f":"IF('1. Order'!B478=\"\",\"\",'1. Order'!B478)","v":""},{"$f":"IF('1. Order'!J478=\"\",\"\",'1. Order'!J478)","v":""},{"$f":"IF('1. Order'!K478=\"\",\"\",'1. Order'!K478)","v":""},{"$f":"IF('1. Order'!L478=\"\",\"\",'1. Order'!L478)","v":""},{"$f":"IF('1. Order'!N478=\"\",\"\",'1. Order'!N478)","v":""},null,null,{"$f":"'1. Order'!AV478","v":0},{"$f":"IF('1. Order'!AI478=\"\",\"\",'1. Order'!AI478)","v":""}]
[{"$f":"IF('1. Order'!B479=\"\",\"\",'1. Order'!B479)","v":""},{"$f":"IF('1. Order'!J479=\"\",\"\",'1. Order'!J479)","v":""},{"$f":"IF('1. Order'!K479=\"\",\"\",'1. Order'!K479)","v":""},{"$f":"IF('1. Order'!L479=\"\",\"\",'1. Order'!L479)","v":""},{"$f":"IF('1. Order'!N479=\"\",\"\",'1. Order'!N479)","v":""},null,null,{"$f":"'1. Order'!AV479","v":0},{"$f":"IF('1. Order'!AI479=\"\",\"\",'1. Order'!AI479)","v":""}]
[{"$f":"IF('1. Order'!B480=\"\",\"\",'1. Order'!B480)","v":""},{"$f":"IF('1. Order'!J480=\"\",\"\",'1. Order'!J480)","v":""},{"$f":"IF('1. Order'!K480=\"\",\"\",'1. Order'!K480)","v":""},{"$f":"IF('1. Order'!L480=\"\",\"\",'1. Order'!L480)","v":""},{"$f":"IF('1. Order'!N480=\"\",\"\",'1. Order'!N480)","v":""},null,null,{"$f":"'1. Order'!AV480","v":0},{"$f":"IF('1. Order'!AI480=\"\",\"\",'1. Order'!AI480)","v":""}]
[{"$f":"IF('1. Order'!B481=\"\",\"\",'1. Order'!B481)","v":""},{"$f":"IF('1. Order'!J481=\"\",\"\",'1. Order'!J481)","v":""},{"$f":"IF('1. Order'!K481=\"\",\"\",'1. Order'!K481)","v":""},{"$f":"IF('1. Order'!L481=\"\",\"\",'1. Order'!L481)","v":""},{"$f":"IF('1. Order'!N481=\"\",\"\",'1. Order'!N481)","v":""},null,null,{"$f":"'1. Order'!AV481","v":0},{"$f":"IF('1. Order'!AI481=\"\",\"\",'1. Order'!AI481)","v":""}]
[{"$f":"IF('1. Order'!B482=\"\",\"\",'1. Order'!B482)","v":""},{"$f":"IF('1. Order'!J482=\"\",\"\",'1. Order'!J482)","v":""},{"$f":"IF('1. Order'!K482=\"\",\"\",'1. Order'!K482)","v":""},{"$f":"IF('1. Order'!L482=\"\",\"\",'1. Order'!L482)","v":""},{"$f":"IF('1. Order'!N482=\"\",\"\",'1. Order'!N482)","v":""},null,null,{"$f":"'1. Order'!AV482","v":0},{"$f":"IF('1. Order'!AI482=\"\",\"\",'1. Order'!AI482)","v":""}]
[{"$f":"IF('1. Order'!B483=\"\",\"\",'1. Order'!B483)","v":""},{"$f":"IF('1. Order'!J483=\"\",\"\",'1. Order'!J483)","v":""},{"$f":"IF('1. Order'!K483=\"\",\"\",'1. Order'!K483)","v":""},{"$f":"IF('1. Order'!L483=\"\",\"\",'1. Order'!L483)","v":""},{"$f":"IF('1. Order'!N483=\"\",\"\",'1. Order'!N483)","v":""},null,null,{"$f":"'1. Order'!AV483","v":0},{"$f":"IF('1. Order'!AI483=\"\",\"\",'1. Order'!AI483)","v":""}]
[{"$f":"IF('1. Order'!B484=\"\",\"\",'1. Order'!B484)","v":""},{"$f":"IF('1. Order'!J484=\"\",\"\",'1. Order'!J484)","v":""},{"$f":"IF('1. Order'!K484=\"\",\"\",'1. Order'!K484)","v":""},{"$f":"IF('1. Order'!L484=\"\",\"\",'1. Order'!L484)","v":""},{"$f":"IF('1. Order'!N484=\"\",\"\",'1. Order'!N484)","v":""},null,null,{"$f":"'1. Order'!AV484","v":0},{"$f":"IF('1. Order'!AI484=\"\",\"\",'1. Order'!AI484)","v":""}]
[{"$f":"IF('1. Order'!B485=\"\",\"\",'1. Order'!B485)","v":""},{"$f":"IF('1. Order'!J485=\"\",\"\",'1. Order'!J485)","v":""},{"$f":"IF('1. Order'!K485=\"\",\"\",'1. Order'!K485)","v":""},{"$f":"IF('1. Order'!L485=\"\",\"\",'1. Order'!L485)","v":""},{"$f":"IF('1. Order'!N485=\"\",\"\",'1. Order'!N485)","v":""},null,null,{"$f":"'1. Order'!AV485","v":0},{"$f":"IF('1. Order'!AI485=\"\",\"\",'1. Order'!AI485)","v":""}]
[{"$f":"IF('1. Order'!B486=\"\",\"\",'1. Order'!B486)","v":""},{"$f":"IF('1. Order'!J486=\"\",\"\",'1. Order'!J486)","v":""},{"$f":"IF('1. Order'!K486=\"\",\"\",'1. Order'!K486)","v":""},{"$f":"IF('1. Order'!L486=\"\",\"\",'1. Order'!L486)","v":""},{"$f":"IF('1. Order'!N486=\"\",\"\",'1. Order'!N486)","v":""},null,null,{"$f":"'1. Order'!AV486","v":0},{"$f":"IF('1. Order'!AI486=\"\",\"\",'1. Order'!AI486)","v":""}]
[{"$f":"IF('1. Order'!B487=\"\",\"\",'1. Order'!B487)","v":""},{"$f":"IF('1. Order'!J487=\"\",\"\",'1. Order'!J487)","v":""},{"$f":"IF('1. Order'!K487=\"\",\"\",'1. Order'!K487)","v":""},{"$f":"IF('1. Order'!L487=\"\",\"\",'1. Order'!L487)","v":""},{"$f":"IF('1. Order'!N487=\"\",\"\",'1. Order'!N487)","v":""},null,null,{"$f":"'1. Order'!AV487","v":0},{"$f":"IF('1. Order'!AI487=\"\",\"\",'1. Order'!AI487)","v":""}]
[{"$f":"IF('1. Order'!B488=\"\",\"\",'1. Order'!B488)","v":""},{"$f":"IF('1. Order'!J488=\"\",\"\",'1. Order'!J488)","v":""},{"$f":"IF('1. Order'!K488=\"\",\"\",'1. Order'!K488)","v":""},{"$f":"IF('1. Order'!L488=\"\",\"\",'1. Order'!L488)","v":""},{"$f":"IF('1. Order'!N488=\"\",\"\",'1. Order'!N488)","v":""},null,null,{"$f":"'1. Order'!AV488","v":0},{"$f":"IF('1. Order'!AI488=\"\",\"\",'1. Order'!AI488)","v":""}]
[{"$f":"IF('1. Order'!B489=\"\",\"\",'1. Order'!B489)","v":""},{"$f":"IF('1. Order'!J489=\"\",\"\",'1. Order'!J489)","v":""},{"$f":"IF('1. Order'!K489=\"\",\"\",'1. Order'!K489)","v":""},{"$f":"IF('1. Order'!L489=\"\",\"\",'1. Order'!L489)","v":""},{"$f":"IF('1. Order'!N489=\"\",\"\",'1. Order'!N489)","v":""},null,null,{"$f":"'1. Order'!AV489","v":0},{"$f":"IF('1. Order'!AI489=\"\",\"\",'1. Order'!AI489)","v":""}]
[{"$f":"IF('1. Order'!B490=\"\",\"\",'1. Order'!B490)","v":""},{"$f":"IF('1. Order'!J490=\"\",\"\",'1. Order'!J490)","v":""},{"$f":"IF('1. Order'!K490=\"\",\"\",'1. Order'!K490)","v":""},{"$f":"IF('1. Order'!L490=\"\",\"\",'1. Order'!L490)","v":""},{"$f":"IF('1. Order'!N490=\"\",\"\",'1. Order'!N490)","v":""},null,null,{"$f":"'1. Order'!AV490","v":0},{"$f":"IF('1. Order'!AI490=\"\",\"\",'1. Order'!AI490)","v":""}]
[{"$f":"IF('1. Order'!B491=\"\",\"\",'1. Order'!B491)","v":""},{"$f":"IF('1. Order'!J491=\"\",\"\",'1. Order'!J491)","v":""},{"$f":"IF('1. Order'!K491=\"\",\"\",'1. Order'!K491)","v":""},{"$f":"IF('1. Order'!L491=\"\",\"\",'1. Order'!L491)","v":""},{"$f":"IF('1. Order'!N491=\"\",\"\",'1. Order'!N491)","v":""},null,null,{"$f":"'1. Order'!AV491","v":0},{"$f":"IF('1. Order'!AI491=\"\",\"\",'1. Order'!AI491)","v":""}]
[{"$f":"IF('1. Order'!B492=\"\",\"\",'1. Order'!B492)","v":""},{"$f":"IF('1. Order'!J492=\"\",\"\",'1. Order'!J492)","v":""},{"$f":"IF('1. Order'!K492=\"\",\"\",'1. Order'!K492)","v":""},{"$f":"IF('1. Order'!L492=\"\",\"\",'1. Order'!L492)","v":""},{"$f":"IF('1. Order'!N492=\"\",\"\",'1. Order'!N492)","v":""},null,null,{"$f":"'1. Order'!AV492","v":0},{"$f":"IF('1. Order'!AI492=\"\",\"\",'1. Order'!AI492)","v":""}]
[{"$f":"IF('1. Order'!B493=\"\",\"\",'1. Order'!B493)","v":""},{"$f":"IF('1. Order'!J493=\"\",\"\",'1. Order'!J493)","v":""},{"$f":"IF('1. Order'!K493=\"\",\"\",'1. Order'!K493)","v":""},{"$f":"IF('1. Order'!L493=\"\",\"\",'1. Order'!L493)","v":""},{"$f":"IF('1. Order'!N493=\"\",\"\",'1. Order'!N493)","v":""},null,null,{"$f":"'1. Order'!AV493","v":0},{"$f":"IF('1. Order'!AI493=\"\",\"\",'1. Order'!AI493)","v":""}]
[{"$f":"IF('1. Order'!B494=\"\",\"\",'1. Order'!B494)","v":""},{"$f":"IF('1. Order'!J494=\"\",\"\",'1. Order'!J494)","v":""},{"$f":"IF('1. Order'!K494=\"\",\"\",'1. Order'!K494)","v":""},{"$f":"IF('1. Order'!L494=\"\",\"\",'1. Order'!L494)","v":""},{"$f":"IF('1. Order'!N494=\"\",\"\",'1. Order'!N494)","v":""},null,null,{"$f":"'1. Order'!AV494","v":0},{"$f":"IF('1. Order'!AI494=\"\",\"\",'1. Order'!AI494)","v":""}]
[{"$f":"IF('1. Order'!B495=\"\",\"\",'1. Order'!B495)","v":""},{"$f":"IF('1. Order'!J495=\"\",\"\",'1. Order'!J495)","v":""},{"$f":"IF('1. Order'!K495=\"\",\"\",'1. Order'!K495)","v":""},{"$f":"IF('1. Order'!L495=\"\",\"\",'1. Order'!L495)","v":""},{"$f":"IF('1. Order'!N495=\"\",\"\",'1. Order'!N495)","v":""},null,null,{"$f":"'1. Order'!AV495","v":0},{"$f":"IF('1. Order'!AI495=\"\",\"\",'1. Order'!AI495)","v":""}]
[{"$f":"IF('1. Order'!B496=\"\",\"\",'1. Order'!B496)","v":""},{"$f":"IF('1. Order'!J496=\"\",\"\",'1. Order'!J496)","v":""},{"$f":"IF('1. Order'!K496=\"\",\"\",'1. Order'!K496)","v":""},{"$f":"IF('1. Order'!L496=\"\",\"\",'1. Order'!L496)","v":""},{"$f":"IF('1. Order'!N496=\"\",\"\",'1. Order'!N496)","v":""},null,null,{"$f":"'1. Order'!AV496","v":0},{"$f":"IF('1. Order'!AI496=\"\",\"\",'1. Order'!AI496)","v":""}]
[{"$f":"IF('1. Order'!B497=\"\",\"\",'1. Order'!B497)","v":""},{"$f":"IF('1. Order'!J497=\"\",\"\",'1. Order'!J497)","v":""},{"$f":"IF('1. Order'!K497=\"\",\"\",'1. Order'!K497)","v":""},{"$f":"IF('1. Order'!L497=\"\",\"\",'1. Order'!L497)","v":""},{"$f":"IF('1. Order'!N497=\"\",\"\",'1. Order'!N497)","v":""},null,null,{"$f":"'1. Order'!AV497","v":0},{"$f":"IF('1. Order'!AI497=\"\",\"\",'1. Order'!AI497)","v":""}]
[{"$f":"IF('1. Order'!B498=\"\",\"\",'1. Order'!B498)","v":""},{"$f":"IF('1. Order'!J498=\"\",\"\",'1. Order'!J498)","v":""},{"$f":"IF('1. Order'!K498=\"\",\"\",'1. Order'!K498)","v":""},{"$f":"IF('1. Order'!L498=\"\",\"\",'1. Order'!L498)","v":""},{"$f":"IF('1. Order'!N498=\"\",\"\",'1. Order'!N498)","v":""},null,null,{"$f":"'1. Order'!AV498","v":0},{"$f":"IF('1. Order'!AI498=\"\",\"\",'1. Order'!AI498)","v":""}]
[{"$f":"IF('1. Order'!B499=\"\",\"\",'1. Order'!B499)","v":""},{"$f":"IF('1. Order'!J499=\"\",\"\",'1. Order'!J499)","v":""},{"$f":"IF('1. Order'!K499=\"\",\"\",'1. Order'!K499)","v":""},{"$f":"IF('1. Order'!L499=\"\",\"\",'1. Order'!L499)","v":""},{"$f":"IF('1. Order'!N499=\"\",\"\",'1. Order'!N499)","v":""},null,null,{"$f":"'1. Order'!AV499","v":0},{"$f":"IF('1. Order'!AI499=\"\",\"\",'1. Order'!AI499)","v":""}]
[{"$f":"IF('1. Order'!B500=\"\",\"\",'1. Order'!B500)","v":""},{"$f":"IF('1. Order'!J500=\"\",\"\",'1. Order'!J500)","v":""},{"$f":"IF('1. Order'!K500=\"\",\"\",'1. Order'!K500)","v":""},{"$f":"IF('1. Order'!L500=\"\",\"\",'1. Order'!L500)","v":""},{"$f":"IF('1. Order'!N500=\"\",\"\",'1. Order'!N500)","v":""},null,null,{"$f":"'1. Order'!AV500","v":0},{"$f":"IF('1. Order'!AI500=\"\",\"\",'1. Order'!AI500)","v":""}]
[{"$f":"IF('1. Order'!B501=\"\",\"\",'1. Order'!B501)","v":""},{"$f":"IF('1. Order'!J501=\"\",\"\",'1. Order'!J501)","v":""},{"$f":"IF('1. Order'!K501=\"\",\"\",'1. Order'!K501)","v":""},{"$f":"IF('1. Order'!L501=\"\",\"\",'1. Order'!L501)","v":""},{"$f":"IF('1. Order'!N501=\"\",\"\",'1. Order'!N501)","v":""},null,null,{"$f":"'1. Order'!AV501","v":0},{"$f":"IF('1. Order'!AI501=\"\",\"\",'1. Order'!AI501)","v":""}]
[{"$f":"IF('1. Order'!B502=\"\",\"\",'1. Order'!B502)","v":""},{"$f":"IF('1. Order'!J502=\"\",\"\",'1. Order'!J502)","v":""},{"$f":"IF('1. Order'!K502=\"\",\"\",'1. Order'!K502)","v":""},{"$f":"IF('1. Order'!L502=\"\",\"\",'1. Order'!L502)","v":""},{"$f":"IF('1. Order'!N502=\"\",\"\",'1. Order'!N502)","v":""},null,null,{"$f":"'1. Order'!AV502","v":0},{"$f":"IF('1. Order'!AI502=\"\",\"\",'1. Order'!AI502)","v":""}]
[{"$f":"IF('1. Order'!B503=\"\",\"\",'1. Order'!B503)","v":""},{"$f":"IF('1. Order'!J503=\"\",\"\",'1. Order'!J503)","v":""},{"$f":"IF('1. Order'!K503=\"\",\"\",'1. Order'!K503)","v":""},{"$f":"IF('1. Order'!L503=\"\",\"\",'1. Order'!L503)","v":""},{"$f":"IF('1. Order'!N503=\"\",\"\",'1. Order'!N503)","v":""},null,null,{"$f":"'1. Order'!AV503","v":0},{"$f":"IF('1. Order'!AI503=\"\",\"\",'1. Order'!AI503)","v":""}]
[{"$f":"IF('1. Order'!B504=\"\",\"\",'1. Order'!B504)","v":""},{"$f":"IF('1. Order'!J504=\"\",\"\",'1. Order'!J504)","v":""},{"$f":"IF('1. Order'!K504=\"\",\"\",'1. Order'!K504)","v":""},{"$f":"IF('1. Order'!L504=\"\",\"\",'1. Order'!L504)","v":""},{"$f":"IF('1. Order'!N504=\"\",\"\",'1. Order'!N504)","v":""},null,null,{"$f":"'1. Order'!AV504","v":0},{"$f":"IF('1. Order'!AI504=\"\",\"\",'1. Order'!AI504)","v":""}]
[{"$f":"IF('1. Order'!B505=\"\",\"\",'1. Order'!B505)","v":""},{"$f":"IF('1. Order'!J505=\"\",\"\",'1. Order'!J505)","v":""},{"$f":"IF('1. Order'!K505=\"\",\"\",'1. Order'!K505)","v":""},{"$f":"IF('1. Order'!L505=\"\",\"\",'1. Order'!L505)","v":""},{"$f":"IF('1. Order'!N505=\"\",\"\",'1. Order'!N505)","v":""},null,null,{"$f":"'1. Order'!AV505","v":0},{"$f":"IF('1. Order'!AI505=\"\",\"\",'1. Order'!AI505)","v":""}]
[{"$f":"IF('1. Order'!B506=\"\",\"\",'1. Order'!B506)","v":""},{"$f":"IF('1. Order'!J506=\"\",\"\",'1. Order'!J506)","v":""},{"$f":"IF('1. Order'!K506=\"\",\"\",'1. Order'!K506)","v":""},{"$f":"IF('1. Order'!L506=\"\",\"\",'1. Order'!L506)","v":""},{"$f":"IF('1. Order'!N506=\"\",\"\",'1. Order'!N506)","v":""},null,null,{"$f":"'1. Order'!AV506","v":0},{"$f":"IF('1. Order'!AI506=\"\",\"\",'1. Order'!AI506)","v":""}]
[{"$f":"IF('1. Order'!B507=\"\",\"\",'1. Order'!B507)","v":""},{"$f":"IF('1. Order'!J507=\"\",\"\",'1. Order'!J507)","v":""},{"$f":"IF('1. Order'!K507=\"\",\"\",'1. Order'!K507)","v":""},{"$f":"IF('1. Order'!L507=\"\",\"\",'1. Order'!L507)","v":""},{"$f":"IF('1. Order'!N507=\"\",\"\",'1. Order'!N507)","v":""},null,null,{"$f":"'1. Order'!AV507","v":0},{"$f":"IF('1. Order'!AI507=\"\",\"\",'1. Order'!AI507)","v":""}]
[{"$f":"IF('1. Order'!B508=\"\",\"\",'1. Order'!B508)","v":""},{"$f":"IF('1. Order'!J508=\"\",\"\",'1. Order'!J508)","v":""},{"$f":"IF('1. Order'!K508=\"\",\"\",'1. Order'!K508)","v":""},{"$f":"IF('1. Order'!L508=\"\",\"\",'1. Order'!L508)","v":""},{"$f":"IF('1. Order'!N508=\"\",\"\",'1. Order'!N508)","v":""},null,null,{"$f":"'1. Order'!AV508","v":0},{"$f":"IF('1. Order'!AI508=\"\",\"\",'1. Order'!AI508)","v":""}]
[{"$f":"IF('1. Order'!B509=\"\",\"\",'1. Order'!B509)","v":""},{"$f":"IF('1. Order'!J509=\"\",\"\",'1. Order'!J509)","v":""},{"$f":"IF('1. Order'!K509=\"\",\"\",'1. Order'!K509)","v":""},{"$f":"IF('1. Order'!L509=\"\",\"\",'1. Order'!L509)","v":""},{"$f":"IF('1. Order'!N509=\"\",\"\",'1. Order'!N509)","v":""},null,null,{"$f":"'1. Order'!AV509","v":0},{"$f":"IF('1. Order'!AI509=\"\",\"\",'1. Order'!AI509)","v":""}]
[{"$f":"IF('1. Order'!B510=\"\",\"\",'1. Order'!B510)","v":""},{"$f":"IF('1. Order'!J510=\"\",\"\",'1. Order'!J510)","v":""},{"$f":"IF('1. Order'!K510=\"\",\"\",'1. Order'!K510)","v":""},{"$f":"IF('1. Order'!L510=\"\",\"\",'1. Order'!L510)","v":""},{"$f":"IF('1. Order'!N510=\"\",\"\",'1. Order'!N510)","v":""},null,null,{"$f":"'1. Order'!AV510","v":0},{"$f":"IF('1. Order'!AI510=\"\",\"\",'1. Order'!AI510)","v":""}]
[{"$f":"IF('1. Order'!B511=\"\",\"\",'1. Order'!B511)","v":""},{"$f":"IF('1. Order'!J511=\"\",\"\",'1. Order'!J511)","v":""},{"$f":"IF('1. Order'!K511=\"\",\"\",'1. Order'!K511)","v":""},{"$f":"IF('1. Order'!L511=\"\",\"\",'1. Order'!L511)","v":""},{"$f":"IF('1. Order'!N511=\"\",\"\",'1. Order'!N511)","v":""},null,null,{"$f":"'1. Order'!AV511","v":0},{"$f":"IF('1. Order'!AI511=\"\",\"\",'1. Order'!AI511)","v":""}]
[{"$f":"IF('1. Order'!B512=\"\",\"\",'1. Order'!B512)","v":""},{"$f":"IF('1. Order'!J512=\"\",\"\",'1. Order'!J512)","v":""},{"$f":"IF('1. Order'!K512=\"\",\"\",'1. Order'!K512)","v":""},{"$f":"IF('1. Order'!L512=\"\",\"\",'1. Order'!L512)","v":""},{"$f":"IF('1. Order'!N512=\"\",\"\",'1. Order'!N512)","v":""},null,null,{"$f":"'1. Order'!AV512","v":0},{"$f":"IF('1. Order'!AI512=\"\",\"\",'1. Order'!AI512)","v":""}]
[{"$f":"IF('1. Order'!B513=\"\",\"\",'1. Order'!B513)","v":""},{"$f":"IF('1. Order'!J513=\"\",\"\",'1. Order'!J513)","v":""},{"$f":"IF('1. Order'!K513=\"\",\"\",'1. Order'!K513)","v":""},{"$f":"IF('1. Order'!L513=\"\",\"\",'1. Order'!L513)","v":""},{"$f":"IF('1. Order'!N513=\"\",\"\",'1. Order'!N513)","v":""},null,null,{"$f":"'1. Order'!AV513","v":0},{"$f":"IF('1. Order'!AI513=\"\",\"\",'1. Order'!AI513)","v":""}]
[{"$f":"IF('1. Order'!B514=\"\",\"\",'1. Order'!B514)","v":""},{"$f":"IF('1. Order'!J514=\"\",\"\",'1. Order'!J514)","v":""},{"$f":"IF('1. Order'!K514=\"\",\"\",'1. Order'!K514)","v":""},{"$f":"IF('1. Order'!L514=\"\",\"\",'1. Order'!L514)","v":""},{"$f":"IF('1. Order'!N514=\"\",\"\",'1. Order'!N514)","v":""},null,null,{"$f":"'1. Order'!AV514","v":0},{"$f":"IF('1. Order'!AI514=\"\",\"\",'1. Order'!AI514)","v":""}]
[{"$f":"IF('1. Order'!B515=\"\",\"\",'1. Order'!B515)","v":""},{"$f":"IF('1. Order'!J515=\"\",\"\",'1. Order'!J515)","v":""},{"$f":"IF('1. Order'!K515=\"\",\"\",'1. Order'!K515)","v":""},{"$f":"IF('1. Order'!L515=\"\",\"\",'1. Order'!L515)","v":""},{"$f":"IF('1. Order'!N515=\"\",\"\",'1. Order'!N515)","v":""},null,null,{"$f":"'1. Order'!AV515","v":0},{"$f":"IF('1. Order'!AI515=\"\",\"\",'1. Order'!AI515)","v":""}]
[{"$f":"IF('1. Order'!B516=\"\",\"\",'1. Order'!B516)","v":""},{"$f":"IF('1. Order'!J516=\"\",\"\",'1. Order'!J516)","v":""},{"$f":"IF('1. Order'!K516=\"\",\"\",'1. Order'!K516)","v":""},{"$f":"IF('1. Order'!L516=\"\",\"\",'1. Order'!L516)","v":""},{"$f":"IF('1. Order'!N516=\"\",\"\",'1. Order'!N516)","v":""},null,null,{"$f":"'1. Order'!AV516","v":0},{"$f":"IF('1. Order'!AI516=\"\",\"\",'1. Order'!AI516)","v":""}]
[{"$f":"IF('1. Order'!B517=\"\",\"\",'1. Order'!B517)","v":""},{"$f":"IF('1. Order'!J517=\"\",\"\",'1. Order'!J517)","v":""},{"$f":"IF('1. Order'!K517=\"\",\"\",'1. Order'!K517)","v":""},{"$f":"IF('1. Order'!L517=\"\",\"\",'1. Order'!L517)","v":""},{"$f":"IF('1. Order'!N517=\"\",\"\",'1. Order'!N517)","v":""},null,null,{"$f":"'1. Order'!AV517","v":0},{"$f":"IF('1. Order'!AI517=\"\",\"\",'1. Order'!AI517)","v":""}]
[{"$f":"IF('1. Order'!B518=\"\",\"\",'1. Order'!B518)","v":""},{"$f":"IF('1. Order'!J518=\"\",\"\",'1. Order'!J518)","v":""},{"$f":"IF('1. Order'!K518=\"\",\"\",'1. Order'!K518)","v":""},{"$f":"IF('1. Order'!L518=\"\",\"\",'1. Order'!L518)","v":""},{"$f":"IF('1. Order'!N518=\"\",\"\",'1. Order'!N518)","v":""},null,null,{"$f":"'1. Order'!AV518","v":0},{"$f":"IF('1. Order'!AI518=\"\",\"\",'1. Order'!AI518)","v":""}]
[{"$f":"IF('1. Order'!B519=\"\",\"\",'1. Order'!B519)","v":""},{"$f":"IF('1. Order'!J519=\"\",\"\",'1. Order'!J519)","v":""},{"$f":"IF('1. Order'!K519=\"\",\"\",'1. Order'!K519)","v":""},{"$f":"IF('1. Order'!L519=\"\",\"\",'1. Order'!L519)","v":""},{"$f":"IF('1. Order'!N519=\"\",\"\",'1. Order'!N519)","v":""},null,null,{"$f":"'1. Order'!AV519","v":0},{"$f":"IF('1. Order'!AI519=\"\",\"\",'1. Order'!AI519)","v":""}]
[{"$f":"IF('1. Order'!B520=\"\",\"\",'1. Order'!B520)","v":""},{"$f":"IF('1. Order'!J520=\"\",\"\",'1. Order'!J520)","v":""},{"$f":"IF('1. Order'!K520=\"\",\"\",'1. Order'!K520)","v":""},{"$f":"IF('1. Order'!L520=\"\",\"\",'1. Order'!L520)","v":""},{"$f":"IF('1. Order'!N520=\"\",\"\",'1. Order'!N520)","v":""},null,null,{"$f":"'1. Order'!AV520","v":0},{"$f":"IF('1. Order'!AI520=\"\",\"\",'1. Order'!AI520)","v":""}]
[{"$f":"IF('1. Order'!B521=\"\",\"\",'1. Order'!B521)","v":""},{"$f":"IF('1. Order'!J521=\"\",\"\",'1. Order'!J521)","v":""},{"$f":"IF('1. Order'!K521=\"\",\"\",'1. Order'!K521)","v":""},{"$f":"IF('1. Order'!L521=\"\",\"\",'1. Order'!L521)","v":""},{"$f":"IF('1. Order'!N521=\"\",\"\",'1. Order'!N521)","v":""},null,null,{"$f":"'1. Order'!AV521","v":0},{"$f":"IF('1. Order'!AI521=\"\",\"\",'1. Order'!AI521)","v":""}]
[{"$f":"IF('1. Order'!B522=\"\",\"\",'1. Order'!B522)","v":""},{"$f":"IF('1. Order'!J522=\"\",\"\",'1. Order'!J522)","v":""},{"$f":"IF('1. Order'!K522=\"\",\"\",'1. Order'!K522)","v":""},{"$f":"IF('1. Order'!L522=\"\",\"\",'1. Order'!L522)","v":""},{"$f":"IF('1. Order'!N522=\"\",\"\",'1. Order'!N522)","v":""},null,null,{"$f":"'1. Order'!AV522","v":0},{"$f":"IF('1. Order'!AI522=\"\",\"\",'1. Order'!AI522)","v":""}]
[{"$f":"IF('1. Order'!B523=\"\",\"\",'1. Order'!B523)","v":""},{"$f":"IF('1. Order'!J523=\"\",\"\",'1. Order'!J523)","v":""},{"$f":"IF('1. Order'!K523=\"\",\"\",'1. Order'!K523)","v":""},{"$f":"IF('1. Order'!L523=\"\",\"\",'1. Order'!L523)","v":""},{"$f":"IF('1. Order'!N523=\"\",\"\",'1. Order'!N523)","v":""},null,null,{"$f":"'1. Order'!AV523","v":0},{"$f":"IF('1. Order'!AI523=\"\",\"\",'1. Order'!AI523)","v":""}]
[{"$f":"IF('1. Order'!B524=\"\",\"\",'1. Order'!B524)","v":""},{"$f":"IF('1. Order'!J524=\"\",\"\",'1. Order'!J524)","v":""},{"$f":"IF('1. Order'!K524=\"\",\"\",'1. Order'!K524)","v":""},{"$f":"IF('1. Order'!L524=\"\",\"\",'1. Order'!L524)","v":""},{"$f":"IF('1. Order'!N524=\"\",\"\",'1. Order'!N524)","v":""},null,null,{"$f":"'1. Order'!AV524","v":0},{"$f":"IF('1. Order'!AI524=\"\",\"\",'1. Order'!AI524)","v":""}]
[{"$f":"IF('1. Order'!B525=\"\",\"\",'1. Order'!B525)","v":""},{"$f":"IF('1. Order'!J525=\"\",\"\",'1. Order'!J525)","v":""},{"$f":"IF('1. Order'!K525=\"\",\"\",'1. Order'!K525)","v":""},{"$f":"IF('1. Order'!L525=\"\",\"\",'1. Order'!L525)","v":""},{"$f":"IF('1. Order'!N525=\"\",\"\",'1. Order'!N525)","v":""},null,null,{"$f":"'1. Order'!AV525","v":0},{"$f":"IF('1. Order'!AI525=\"\",\"\",'1. Order'!AI525)","v":""}]
[{"$f":"IF('1. Order'!B526=\"\",\"\",'1. Order'!B526)","v":""},{"$f":"IF('1. Order'!J526=\"\",\"\",'1. Order'!J526)","v":""},{"$f":"IF('1. Order'!K526=\"\",\"\",'1. Order'!K526)","v":""},{"$f":"IF('1. Order'!L526=\"\",\"\",'1. Order'!L526)","v":""},{"$f":"IF('1. Order'!N526=\"\",\"\",'1. Order'!N526)","v":""},null,null,{"$f":"'1. Order'!AV526","v":0},{"$f":"IF('1. Order'!AI526=\"\",\"\",'1. Order'!AI526)","v":""}]
[{"$f":"IF('1. Order'!B527=\"\",\"\",'1. Order'!B527)","v":""},{"$f":"IF('1. Order'!J527=\"\",\"\",'1. Order'!J527)","v":""},{"$f":"IF('1. Order'!K527=\"\",\"\",'1. Order'!K527)","v":""},{"$f":"IF('1. Order'!L527=\"\",\"\",'1. Order'!L527)","v":""},{"$f":"IF('1. Order'!N527=\"\",\"\",'1. Order'!N527)","v":""},null,null,{"$f":"'1. Order'!AV527","v":0},{"$f":"IF('1. Order'!AI527=\"\",\"\",'1. Order'!AI527)","v":""}]
[{"$f":"IF('1. Order'!B528=\"\",\"\",'1. Order'!B528)","v":""},{"$f":"IF('1. Order'!J528=\"\",\"\",'1. Order'!J528)","v":""},{"$f":"IF('1. Order'!K528=\"\",\"\",'1. Order'!K528)","v":""},{"$f":"IF('1. Order'!L528=\"\",\"\",'1. Order'!L528)","v":""},{"$f":"IF('1. Order'!N528=\"\",\"\",'1. Order'!N528)","v":""},null,null,{"$f":"'1. Order'!AV528","v":0},{"$f":"IF('1. Order'!AI528=\"\",\"\",'1. Order'!AI528)","v":""}]
[{"$f":"IF('1. Order'!B529=\"\",\"\",'1. Order'!B529)","v":""},{"$f":"IF('1. Order'!J529=\"\",\"\",'1. Order'!J529)","v":""},{"$f":"IF('1. Order'!K529=\"\",\"\",'1. Order'!K529)","v":""},{"$f":"IF('1. Order'!L529=\"\",\"\",'1. Order'!L529)","v":""},{"$f":"IF('1. Order'!N529=\"\",\"\",'1. Order'!N529)","v":""},null,null,{"$f":"'1. Order'!AV529","v":0},{"$f":"IF('1. Order'!AI529=\"\",\"\",'1. Order'!AI529)","v":""}]
[{"$f":"IF('1. Order'!B530=\"\",\"\",'1. Order'!B530)","v":""},{"$f":"IF('1. Order'!J530=\"\",\"\",'1. Order'!J530)","v":""},{"$f":"IF('1. Order'!K530=\"\",\"\",'1. Order'!K530)","v":""},{"$f":"IF('1. Order'!L530=\"\",\"\",'1. Order'!L530)","v":""},{"$f":"IF('1. Order'!N530=\"\",\"\",'1. Order'!N530)","v":""},null,null,{"$f":"'1. Order'!AV530","v":0},{"$f":"IF('1. Order'!AI530=\"\",\"\",'1. Order'!AI530)","v":""}]
[{"$f":"IF('1. Order'!B531=\"\",\"\",'1. Order'!B531)","v":""},{"$f":"IF('1. Order'!J531=\"\",\"\",'1. Order'!J531)","v":""},{"$f":"IF('1. Order'!K531=\"\",\"\",'1. Order'!K531)","v":""},{"$f":"IF('1. Order'!L531=\"\",\"\",'1. Order'!L531)","v":""},{"$f":"IF('1. Order'!N531=\"\",\"\",'1. Order'!N531)","v":""},null,null,{"$f":"'1. Order'!AV531","v":0},{"$f":"IF('1. Order'!AI531=\"\",\"\",'1. Order'!AI531)","v":""}]
[{"$f":"IF('1. Order'!B532=\"\",\"\",'1. Order'!B532)","v":""},{"$f":"IF('1. Order'!J532=\"\",\"\",'1. Order'!J532)","v":""},{"$f":"IF('1. Order'!K532=\"\",\"\",'1. Order'!K532)","v":""},{"$f":"IF('1. Order'!L532=\"\",\"\",'1. Order'!L532)","v":""},{"$f":"IF('1. Order'!N532=\"\",\"\",'1. Order'!N532)","v":""},null,null,{"$f":"'1. Order'!AV532","v":0},{"$f":"IF('1. Order'!AI532=\"\",\"\",'1. Order'!AI532)","v":""}]
[{"$f":"IF('1. Order'!B533=\"\",\"\",'1. Order'!B533)","v":""},{"$f":"IF('1. Order'!J533=\"\",\"\",'1. Order'!J533)","v":""},{"$f":"IF('1. Order'!K533=\"\",\"\",'1. Order'!K533)","v":""},{"$f":"IF('1. Order'!L533=\"\",\"\",'1. Order'!L533)","v":""},{"$f":"IF('1. Order'!N533=\"\",\"\",'1. Order'!N533)","v":""},null,null,{"$f":"'1. Order'!AV533","v":0},{"$f":"IF('1. Order'!AI533=\"\",\"\",'1. Order'!AI533)","v":""}]
[{"$f":"IF('1. Order'!B534=\"\",\"\",'1. Order'!B534)","v":""},{"$f":"IF('1. Order'!J534=\"\",\"\",'1. Order'!J534)","v":""},{"$f":"IF('1. Order'!K534=\"\",\"\",'1. Order'!K534)","v":""},{"$f":"IF('1. Order'!L534=\"\",\"\",'1. Order'!L534)","v":""},{"$f":"IF('1. Order'!N534=\"\",\"\",'1. Order'!N534)","v":""},null,null,{"$f":"'1. Order'!AV534","v":0},{"$f":"IF('1. Order'!AI534=\"\",\"\",'1. Order'!AI534)","v":""}]
[{"$f":"IF('1. Order'!B535=\"\",\"\",'1. Order'!B535)","v":""},{"$f":"IF('1. Order'!J535=\"\",\"\",'1. Order'!J535)","v":""},{"$f":"IF('1. Order'!K535=\"\",\"\",'1. Order'!K535)","v":""},{"$f":"IF('1. Order'!L535=\"\",\"\",'1. Order'!L535)","v":""},{"$f":"IF('1. Order'!N535=\"\",\"\",'1. Order'!N535)","v":""},null,null,{"$f":"'1. Order'!AV535","v":0},{"$f":"IF('1. Order'!AI535=\"\",\"\",'1. Order'!AI535)","v":""}]
[{"$f":"IF('1. Order'!B536=\"\",\"\",'1. Order'!B536)","v":""},{"$f":"IF('1. Order'!J536=\"\",\"\",'1. Order'!J536)","v":""},{"$f":"IF('1. Order'!K536=\"\",\"\",'1. Order'!K536)","v":""},{"$f":"IF('1. Order'!L536=\"\",\"\",'1. Order'!L536)","v":""},{"$f":"IF('1. Order'!N536=\"\",\"\",'1. Order'!N536)","v":""},null,null,{"$f":"'1. Order'!AV536","v":0},{"$f":"IF('1. Order'!AI536=\"\",\"\",'1. Order'!AI536)","v":""}]
[{"$f":"IF('1. Order'!B537=\"\",\"\",'1. Order'!B537)","v":""},{"$f":"IF('1. Order'!J537=\"\",\"\",'1. Order'!J537)","v":""},{"$f":"IF('1. Order'!K537=\"\",\"\",'1. Order'!K537)","v":""},{"$f":"IF('1. Order'!L537=\"\",\"\",'1. Order'!L537)","v":""},{"$f":"IF('1. Order'!N537=\"\",\"\",'1. Order'!N537)","v":""},null,null,{"$f":"'1. Order'!AV537","v":0},{"$f":"IF('1. Order'!AI537=\"\",\"\",'1. Order'!AI537)","v":""}]
[{"$f":"IF('1. Order'!B538=\"\",\"\",'1. Order'!B538)","v":""},{"$f":"IF('1. Order'!J538=\"\",\"\",'1. Order'!J538)","v":""},{"$f":"IF('1. Order'!K538=\"\",\"\",'1. Order'!K538)","v":""},{"$f":"IF('1. Order'!L538=\"\",\"\",'1. Order'!L538)","v":""},{"$f":"IF('1. Order'!N538=\"\",\"\",'1. Order'!N538)","v":""},null,null,{"$f":"'1. Order'!AV538","v":0},{"$f":"IF('1. Order'!AI538=\"\",\"\",'1. Order'!AI538)","v":""}]
[{"$f":"IF('1. Order'!B539=\"\",\"\",'1. Order'!B539)","v":""},{"$f":"IF('1. Order'!J539=\"\",\"\",'1. Order'!J539)","v":""},{"$f":"IF('1. Order'!K539=\"\",\"\",'1. Order'!K539)","v":""},{"$f":"IF('1. Order'!L539=\"\",\"\",'1. Order'!L539)","v":""},{"$f":"IF('1. Order'!N539=\"\",\"\",'1. Order'!N539)","v":""},null,null,{"$f":"'1. Order'!AV539","v":0},{"$f":"IF('1. Order'!AI539=\"\",\"\",'1. Order'!AI539)","v":""}]
[{"$f":"IF('1. Order'!B540=\"\",\"\",'1. Order'!B540)","v":""},{"$f":"IF('1. Order'!J540=\"\",\"\",'1. Order'!J540)","v":""},{"$f":"IF('1. Order'!K540=\"\",\"\",'1. Order'!K540)","v":""},{"$f":"IF('1. Order'!L540=\"\",\"\",'1. Order'!L540)","v":""},{"$f":"IF('1. Order'!N540=\"\",\"\",'1. Order'!N540)","v":""},null,null,{"$f":"'1. Order'!AV540","v":0},{"$f":"IF('1. Order'!AI540=\"\",\"\",'1. Order'!AI540)","v":""}]
[{"$f":"IF('1. Order'!B541=\"\",\"\",'1. Order'!B541)","v":""},{"$f":"IF('1. Order'!J541=\"\",\"\",'1. Order'!J541)","v":""},{"$f":"IF('1. Order'!K541=\"\",\"\",'1. Order'!K541)","v":""},{"$f":"IF('1. Order'!L541=\"\",\"\",'1. Order'!L541)","v":""},{"$f":"IF('1. Order'!N541=\"\",\"\",'1. Order'!N541)","v":""},null,null,{"$f":"'1. Order'!AV541","v":0},{"$f":"IF('1. Order'!AI541=\"\",\"\",'1. Order'!AI541)","v":""}]
[{"$f":"IF('1. Order'!B542=\"\",\"\",'1. Order'!B542)","v":""},{"$f":"IF('1. Order'!J542=\"\",\"\",'1. Order'!J542)","v":""},{"$f":"IF('1. Order'!K542=\"\",\"\",'1. Order'!K542)","v":""},{"$f":"IF('1. Order'!L542=\"\",\"\",'1. Order'!L542)","v":""},{"$f":"IF('1. Order'!N542=\"\",\"\",'1. Order'!N542)","v":""},null,null,{"$f":"'1. Order'!AV542","v":0},{"$f":"IF('1. Order'!AI542=\"\",\"\",'1. Order'!AI542)","v":""}]
[{"$f":"IF('1. Order'!B543=\"\",\"\",'1. Order'!B543)","v":""},{"$f":"IF('1. Order'!J543=\"\",\"\",'1. Order'!J543)","v":""},{"$f":"IF('1. Order'!K543=\"\",\"\",'1. Order'!K543)","v":""},{"$f":"IF('1. Order'!L543=\"\",\"\",'1. Order'!L543)","v":""},{"$f":"IF('1. Order'!N543=\"\",\"\",'1. Order'!N543)","v":""},null,null,{"$f":"'1. Order'!AV543","v":0},{"$f":"IF('1. Order'!AI543=\"\",\"\",'1. Order'!AI543)","v":""}]
[{"$f":"IF('1. Order'!B544=\"\",\"\",'1. Order'!B544)","v":""},{"$f":"IF('1. Order'!J544=\"\",\"\",'1. Order'!J544)","v":""},{"$f":"IF('1. Order'!K544=\"\",\"\",'1. Order'!K544)","v":""},{"$f":"IF('1. Order'!L544=\"\",\"\",'1. Order'!L544)","v":""},{"$f":"IF('1. Order'!N544=\"\",\"\",'1. Order'!N544)","v":""},null,null,{"$f":"'1. Order'!AV544","v":0},{"$f":"IF('1. Order'!AI544=\"\",\"\",'1. Order'!AI544)","v":""}]
[{"$f":"IF('1. Order'!B545=\"\",\"\",'1. Order'!B545)","v":""},{"$f":"IF('1. Order'!J545=\"\",\"\",'1. Order'!J545)","v":""},{"$f":"IF('1. Order'!K545=\"\",\"\",'1. Order'!K545)","v":""},{"$f":"IF('1. Order'!L545=\"\",\"\",'1. Order'!L545)","v":""},{"$f":"IF('1. Order'!N545=\"\",\"\",'1. Order'!N545)","v":""},null,null,{"$f":"'1. Order'!AV545","v":0},{"$f":"IF('1. Order'!AI545=\"\",\"\",'1. Order'!AI545)","v":""}]
[{"$f":"IF('1. Order'!B546=\"\",\"\",'1. Order'!B546)","v":""},{"$f":"IF('1. Order'!J546=\"\",\"\",'1. Order'!J546)","v":""},{"$f":"IF('1. Order'!K546=\"\",\"\",'1. Order'!K546)","v":""},{"$f":"IF('1. Order'!L546=\"\",\"\",'1. Order'!L546)","v":""},{"$f":"IF('1. Order'!N546=\"\",\"\",'1. Order'!N546)","v":""},null,null,{"$f":"'1. Order'!AV546","v":0},{"$f":"IF('1. Order'!AI546=\"\",\"\",'1. Order'!AI546)","v":""}]
[{"$f":"IF('1. Order'!B547=\"\",\"\",'1. Order'!B547)","v":""},{"$f":"IF('1. Order'!J547=\"\",\"\",'1. Order'!J547)","v":""},{"$f":"IF('1. Order'!K547=\"\",\"\",'1. Order'!K547)","v":""},{"$f":"IF('1. Order'!L547=\"\",\"\",'1. Order'!L547)","v":""},{"$f":"IF('1. Order'!N547=\"\",\"\",'1. Order'!N547)","v":""},null,null,{"$f":"'1. Order'!AV547","v":0},{"$f":"IF('1. Order'!AI547=\"\",\"\",'1. Order'!AI547)","v":""}]
[{"$f":"IF('1. Order'!B548=\"\",\"\",'1. Order'!B548)","v":""},{"$f":"IF('1. Order'!J548=\"\",\"\",'1. Order'!J548)","v":""},{"$f":"IF('1. Order'!K548=\"\",\"\",'1. Order'!K548)","v":""},{"$f":"IF('1. Order'!L548=\"\",\"\",'1. Order'!L548)","v":""},{"$f":"IF('1. Order'!N548=\"\",\"\",'1. Order'!N548)","v":""},null,null,{"$f":"'1. Order'!AV548","v":0},{"$f":"IF('1. Order'!AI548=\"\",\"\",'1. Order'!AI548)","v":""}]
[{"$f":"IF('1. Order'!B549=\"\",\"\",'1. Order'!B549)","v":""},{"$f":"IF('1. Order'!J549=\"\",\"\",'1. Order'!J549)","v":""},{"$f":"IF('1. Order'!K549=\"\",\"\",'1. Order'!K549)","v":""},{"$f":"IF('1. Order'!L549=\"\",\"\",'1. Order'!L549)","v":""},{"$f":"IF('1. Order'!N549=\"\",\"\",'1. Order'!N549)","v":""},null,null,{"$f":"'1. Order'!AV549","v":0},{"$f":"IF('1. Order'!AI549=\"\",\"\",'1. Order'!AI549)","v":""}]
[{"$f":"IF('1. Order'!B550=\"\",\"\",'1. Order'!B550)","v":""},{"$f":"IF('1. Order'!J550=\"\",\"\",'1. Order'!J550)","v":""},{"$f":"IF('1. Order'!K550=\"\",\"\",'1. Order'!K550)","v":""},{"$f":"IF('1. Order'!L550=\"\",\"\",'1. Order'!L550)","v":""},{"$f":"IF('1. Order'!N550=\"\",\"\",'1. Order'!N550)","v":""},null,null,{"$f":"'1. Order'!AV550","v":0},{"$f":"IF('1. Order'!AI550=\"\",\"\",'1. Order'!AI550)","v":""}]
[{"$f":"IF('1. Order'!B551=\"\",\"\",'1. Order'!B551)","v":""},{"$f":"IF('1. Order'!J551=\"\",\"\",'1. Order'!J551)","v":""},{"$f":"IF('1. Order'!K551=\"\",\"\",'1. Order'!K551)","v":""},{"$f":"IF('1. Order'!L551=\"\",\"\",'1. Order'!L551)","v":""},{"$f":"IF('1. Order'!N551=\"\",\"\",'1. Order'!N551)","v":""},null,null,{"$f":"'1. Order'!AV551","v":0},{"$f":"IF('1. Order'!AI551=\"\",\"\",'1. Order'!AI551)","v":""}]
[{"$f":"IF('1. Order'!B552=\"\",\"\",'1. Order'!B552)","v":""},{"$f":"IF('1. Order'!J552=\"\",\"\",'1. Order'!J552)","v":""},{"$f":"IF('1. Order'!K552=\"\",\"\",'1. Order'!K552)","v":""},{"$f":"IF('1. Order'!L552=\"\",\"\",'1. Order'!L552)","v":""},{"$f":"IF('1. Order'!N552=\"\",\"\",'1. Order'!N552)","v":""},null,null,{"$f":"'1. Order'!AV552","v":0},{"$f":"IF('1. Order'!AI552=\"\",\"\",'1. Order'!AI552)","v":""}]
[{"$f":"IF('1. Order'!B553=\"\",\"\",'1. Order'!B553)","v":""},{"$f":"IF('1. Order'!J553=\"\",\"\",'1. Order'!J553)","v":""},{"$f":"IF('1. Order'!K553=\"\",\"\",'1. Order'!K553)","v":""},{"$f":"IF('1. Order'!L553=\"\",\"\",'1. Order'!L553)","v":""},{"$f":"IF('1. Order'!N553=\"\",\"\",'1. Order'!N553)","v":""},null,null,{"$f":"'1. Order'!AV553","v":0},{"$f":"IF('1. Order'!AI553=\"\",\"\",'1. Order'!AI553)","v":""}]
[{"$f":"IF('1. Order'!B554=\"\",\"\",'1. Order'!B554)","v":""},{"$f":"IF('1. Order'!J554=\"\",\"\",'1. Order'!J554)","v":""},{"$f":"IF('1. Order'!K554=\"\",\"\",'1. Order'!K554)","v":""},{"$f":"IF('1. Order'!L554=\"\",\"\",'1. Order'!L554)","v":""},{"$f":"IF('1. Order'!N554=\"\",\"\",'1. Order'!N554)","v":""},null,null,{"$f":"'1. Order'!AV554","v":0},{"$f":"IF('1. Order'!AI554=\"\",\"\",'1. Order'!AI554)","v":""}]
[{"$f":"IF('1. Order'!B555=\"\",\"\",'1. Order'!B555)","v":""},{"$f":"IF('1. Order'!J555=\"\",\"\",'1. Order'!J555)","v":""},{"$f":"IF('1. Order'!K555=\"\",\"\",'1. Order'!K555)","v":""},{"$f":"IF('1. Order'!L555=\"\",\"\",'1. Order'!L555)","v":""},{"$f":"IF('1. Order'!N555=\"\",\"\",'1. Order'!N555)","v":""},null,null,{"$f":"'1. Order'!AV555","v":0},{"$f":"IF('1. Order'!AI555=\"\",\"\",'1. Order'!AI555)","v":""}]
[{"$f":"IF('1. Order'!B556=\"\",\"\",'1. Order'!B556)","v":""},{"$f":"IF('1. Order'!J556=\"\",\"\",'1. Order'!J556)","v":""},{"$f":"IF('1. Order'!K556=\"\",\"\",'1. Order'!K556)","v":""},{"$f":"IF('1. Order'!L556=\"\",\"\",'1. Order'!L556)","v":""},{"$f":"IF('1. Order'!N556=\"\",\"\",'1. Order'!N556)","v":""},null,null,{"$f":"'1. Order'!AV556","v":0},{"$f":"IF('1. Order'!AI556=\"\",\"\",'1. Order'!AI556)","v":""}]
[{"$f":"IF('1. Order'!B557=\"\",\"\",'1. Order'!B557)","v":""},{"$f":"IF('1. Order'!J557=\"\",\"\",'1. Order'!J557)","v":""},{"$f":"IF('1. Order'!K557=\"\",\"\",'1. Order'!K557)","v":""},{"$f":"IF('1. Order'!L557=\"\",\"\",'1. Order'!L557)","v":""},{"$f":"IF('1. Order'!N557=\"\",\"\",'1. Order'!N557)","v":""},null,null,{"$f":"'1. Order'!AV557","v":0},{"$f":"IF('1. Order'!AI557=\"\",\"\",'1. Order'!AI557)","v":""}]
[{"$f":"IF('1. Order'!B558=\"\",\"\",'1. Order'!B558)","v":""},{"$f":"IF('1. Order'!J558=\"\",\"\",'1. Order'!J558)","v":""},{"$f":"IF('1. Order'!K558=\"\",\"\",'1. Order'!K558)","v":""},{"$f":"IF('1. Order'!L558=\"\",\"\",'1. Order'!L558)","v":""},{"$f":"IF('1. Order'!N558=\"\",\"\",'1. Order'!N558)","v":""},null,null,{"$f":"'1. Order'!AV558","v":0},{"$f":"IF('1. Order'!AI558=\"\",\"\",'1. Order'!AI558)","v":""}]
[{"$f":"IF('1. Order'!B559=\"\",\"\",'1. Order'!B559)","v":""},{"$f":"IF('1. Order'!J559=\"\",\"\",'1. Order'!J559)","v":""},{"$f":"IF('1. Order'!K559=\"\",\"\",'1. Order'!K559)","v":""},{"$f":"IF('1. Order'!L559=\"\",\"\",'1. Order'!L559)","v":""},{"$f":"IF('1. Order'!N559=\"\",\"\",'1. Order'!N559)","v":""},null,null,{"$f":"'1. Order'!AV559","v":0},{"$f":"IF('1. Order'!AI559=\"\",\"\",'1. Order'!AI559)","v":""}]
[{"$f":"IF('1. Order'!B560=\"\",\"\",'1. Order'!B560)","v":""},{"$f":"IF('1. Order'!J560=\"\",\"\",'1. Order'!J560)","v":""},{"$f":"IF('1. Order'!K560=\"\",\"\",'1. Order'!K560)","v":""},{"$f":"IF('1. Order'!L560=\"\",\"\",'1. Order'!L560)","v":""},{"$f":"IF('1. Order'!N560=\"\",\"\",'1. Order'!N560)","v":""},null,null,{"$f":"'1. Order'!AV560","v":0},{"$f":"IF('1. Order'!AI560=\"\",\"\",'1. Order'!AI560)","v":""}]
[{"$f":"IF('1. Order'!B561=\"\",\"\",'1. Order'!B561)","v":""},{"$f":"IF('1. Order'!J561=\"\",\"\",'1. Order'!J561)","v":""},{"$f":"IF('1. Order'!K561=\"\",\"\",'1. Order'!K561)","v":""},{"$f":"IF('1. Order'!L561=\"\",\"\",'1. Order'!L561)","v":""},{"$f":"IF('1. Order'!N561=\"\",\"\",'1. Order'!N561)","v":""},null,null,{"$f":"'1. Order'!AV561","v":0},{"$f":"IF('1. Order'!AI561=\"\",\"\",'1. Order'!AI561)","v":""}]
[{"$f":"IF('1. Order'!B562=\"\",\"\",'1. Order'!B562)","v":""},{"$f":"IF('1. Order'!J562=\"\",\"\",'1. Order'!J562)","v":""},{"$f":"IF('1. Order'!K562=\"\",\"\",'1. Order'!K562)","v":""},{"$f":"IF('1. Order'!L562=\"\",\"\",'1. Order'!L562)","v":""},{"$f":"IF('1. Order'!N562=\"\",\"\",'1. Order'!N562)","v":""},null,null,{"$f":"'1. Order'!AV562","v":0},{"$f":"IF('1. Order'!AI562=\"\",\"\",'1. Order'!AI562)","v":""}]
[{"$f":"IF('1. Order'!B563=\"\",\"\",'1. Order'!B563)","v":""},{"$f":"IF('1. Order'!J563=\"\",\"\",'1. Order'!J563)","v":""},{"$f":"IF('1. Order'!K563=\"\",\"\",'1. Order'!K563)","v":""},{"$f":"IF('1. Order'!L563=\"\",\"\",'1. Order'!L563)","v":""},{"$f":"IF('1. Order'!N563=\"\",\"\",'1. Order'!N563)","v":""},null,null,{"$f":"'1. Order'!AV563","v":0},{"$f":"IF('1. Order'!AI563=\"\",\"\",'1. Order'!AI563)","v":""}]
[{"$f":"IF('1. Order'!B564=\"\",\"\",'1. Order'!B564)","v":""},{"$f":"IF('1. Order'!J564=\"\",\"\",'1. Order'!J564)","v":""},{"$f":"IF('1. Order'!K564=\"\",\"\",'1. Order'!K564)","v":""},{"$f":"IF('1. Order'!L564=\"\",\"\",'1. Order'!L564)","v":""},{"$f":"IF('1. Order'!N564=\"\",\"\",'1. Order'!N564)","v":""},null,null,{"$f":"'1. Order'!AV564","v":0},{"$f":"IF('1. Order'!AI564=\"\",\"\",'1. Order'!AI564)","v":""}]
[{"$f":"IF('1. Order'!B565=\"\",\"\",'1. Order'!B565)","v":""},{"$f":"IF('1. Order'!J565=\"\",\"\",'1. Order'!J565)","v":""},{"$f":"IF('1. Order'!K565=\"\",\"\",'1. Order'!K565)","v":""},{"$f":"IF('1. Order'!L565=\"\",\"\",'1. Order'!L565)","v":""},{"$f":"IF('1. Order'!N565=\"\",\"\",'1. Order'!N565)","v":""},null,null,{"$f":"'1. Order'!AV565","v":0},{"$f":"IF('1. Order'!AI565=\"\",\"\",'1. Order'!AI565)","v":""}]
[{"$f":"IF('1. Order'!B566=\"\",\"\",'1. Order'!B566)","v":""},{"$f":"IF('1. Order'!J566=\"\",\"\",'1. Order'!J566)","v":""},{"$f":"IF('1. Order'!K566=\"\",\"\",'1. Order'!K566)","v":""},{"$f":"IF('1. Order'!L566=\"\",\"\",'1. Order'!L566)","v":""},{"$f":"IF('1. Order'!N566=\"\",\"\",'1. Order'!N566)","v":""},null,null,{"$f":"'1. Order'!AV566","v":0},{"$f":"IF('1. Order'!AI566=\"\",\"\",'1. Order'!AI566)","v":""}]
[{"$f":"IF('1. Order'!B567=\"\",\"\",'1. Order'!B567)","v":""},{"$f":"IF('1. Order'!J567=\"\",\"\",'1. Order'!J567)","v":""},{"$f":"IF('1. Order'!K567=\"\",\"\",'1. Order'!K567)","v":""},{"$f":"IF('1. Order'!L567=\"\",\"\",'1. Order'!L567)","v":""},{"$f":"IF('1. Order'!N567=\"\",\"\",'1. Order'!N567)","v":""},null,null,{"$f":"'1. Order'!AV567","v":0},{"$f":"IF('1. Order'!AI567=\"\",\"\",'1. Order'!AI567)","v":""}]
[{"$f":"IF('1. Order'!B568=\"\",\"\",'1. Order'!B568)","v":""},{"$f":"IF('1. Order'!J568=\"\",\"\",'1. Order'!J568)","v":""},{"$f":"IF('1. Order'!K568=\"\",\"\",'1. Order'!K568)","v":""},{"$f":"IF('1. Order'!L568=\"\",\"\",'1. Order'!L568)","v":""},{"$f":"IF('1. Order'!N568=\"\",\"\",'1. Order'!N568)","v":""},null,null,{"$f":"'1. Order'!AV568","v":0},{"$f":"IF('1. Order'!AI568=\"\",\"\",'1. Order'!AI568)","v":""}]
[{"$f":"IF('1. Order'!B569=\"\",\"\",'1. Order'!B569)","v":""},{"$f":"IF('1. Order'!J569=\"\",\"\",'1. Order'!J569)","v":""},{"$f":"IF('1. Order'!K569=\"\",\"\",'1. Order'!K569)","v":""},{"$f":"IF('1. Order'!L569=\"\",\"\",'1. Order'!L569)","v":""},{"$f":"IF('1. Order'!N569=\"\",\"\",'1. Order'!N569)","v":""},null,null,{"$f":"'1. Order'!AV569","v":0},{"$f":"IF('1. Order'!AI569=\"\",\"\",'1. Order'!AI569)","v":""}]
[{"$f":"IF('1. Order'!B570=\"\",\"\",'1. Order'!B570)","v":""},{"$f":"IF('1. Order'!J570=\"\",\"\",'1. Order'!J570)","v":""},{"$f":"IF('1. Order'!K570=\"\",\"\",'1. Order'!K570)","v":""},{"$f":"IF('1. Order'!L570=\"\",\"\",'1. Order'!L570)","v":""},{"$f":"IF('1. Order'!N570=\"\",\"\",'1. Order'!N570)","v":""},null,null,{"$f":"'1. Order'!AV570","v":0},{"$f":"IF('1. Order'!AI570=\"\",\"\",'1. Order'!AI570)","v":""}]
[{"$f":"IF('1. Order'!B571=\"\",\"\",'1. Order'!B571)","v":""},{"$f":"IF('1. Order'!J571=\"\",\"\",'1. Order'!J571)","v":""},{"$f":"IF('1. Order'!K571=\"\",\"\",'1. Order'!K571)","v":""},{"$f":"IF('1. Order'!L571=\"\",\"\",'1. Order'!L571)","v":""},{"$f":"IF('1. Order'!N571=\"\",\"\",'1. Order'!N571)","v":""},null,null,{"$f":"'1. Order'!AV571","v":0},{"$f":"IF('1. Order'!AI571=\"\",\"\",'1. Order'!AI571)","v":""}]
[{"$f":"IF('1. Order'!B572=\"\",\"\",'1. Order'!B572)","v":""},{"$f":"IF('1. Order'!J572=\"\",\"\",'1. Order'!J572)","v":""},{"$f":"IF('1. Order'!K572=\"\",\"\",'1. Order'!K572)","v":""},{"$f":"IF('1. Order'!L572=\"\",\"\",'1. Order'!L572)","v":""},{"$f":"IF('1. Order'!N572=\"\",\"\",'1. Order'!N572)","v":""},null,null,{"$f":"'1. Order'!AV572","v":0},{"$f":"IF('1. Order'!AI572=\"\",\"\",'1. Order'!AI572)","v":""}]
[{"$f":"IF('1. Order'!B573=\"\",\"\",'1. Order'!B573)","v":""},{"$f":"IF('1. Order'!J573=\"\",\"\",'1. Order'!J573)","v":""},{"$f":"IF('1. Order'!K573=\"\",\"\",'1. Order'!K573)","v":""},{"$f":"IF('1. Order'!L573=\"\",\"\",'1. Order'!L573)","v":""},{"$f":"IF('1. Order'!N573=\"\",\"\",'1. Order'!N573)","v":""},null,null,{"$f":"'1. Order'!AV573","v":0},{"$f":"IF('1. Order'!AI573=\"\",\"\",'1. Order'!AI573)","v":""}]
[{"$f":"IF('1. Order'!B574=\"\",\"\",'1. Order'!B574)","v":""},{"$f":"IF('1. Order'!J574=\"\",\"\",'1. Order'!J574)","v":""},{"$f":"IF('1. Order'!K574=\"\",\"\",'1. Order'!K574)","v":""},{"$f":"IF('1. Order'!L574=\"\",\"\",'1. Order'!L574)","v":""},{"$f":"IF('1. Order'!N574=\"\",\"\",'1. Order'!N574)","v":""},null,null,{"$f":"'1. Order'!AV574","v":0},{"$f":"IF('1. Order'!AI574=\"\",\"\",'1. Order'!AI574)","v":""}]
[{"$f":"IF('1. Order'!B575=\"\",\"\",'1. Order'!B575)","v":""},{"$f":"IF('1. Order'!J575=\"\",\"\",'1. Order'!J575)","v":""},{"$f":"IF('1. Order'!K575=\"\",\"\",'1. Order'!K575)","v":""},{"$f":"IF('1. Order'!L575=\"\",\"\",'1. Order'!L575)","v":""},{"$f":"IF('1. Order'!N575=\"\",\"\",'1. Order'!N575)","v":""},null,null,{"$f":"'1. Order'!AV575","v":0},{"$f":"IF('1. Order'!AI575=\"\",\"\",'1. Order'!AI575)","v":""}]
[{"$f":"IF('1. Order'!B576=\"\",\"\",'1. Order'!B576)","v":""},{"$f":"IF('1. Order'!J576=\"\",\"\",'1. Order'!J576)","v":""},{"$f":"IF('1. Order'!K576=\"\",\"\",'1. Order'!K576)","v":""},{"$f":"IF('1. Order'!L576=\"\",\"\",'1. Order'!L576)","v":""},{"$f":"IF('1. Order'!N576=\"\",\"\",'1. Order'!N576)","v":""},null,null,{"$f":"'1. Order'!AV576","v":0},{"$f":"IF('1. Order'!AI576=\"\",\"\",'1. Order'!AI576)","v":""}]
[{"$f":"IF('1. Order'!B577=\"\",\"\",'1. Order'!B577)","v":""},{"$f":"IF('1. Order'!J577=\"\",\"\",'1. Order'!J577)","v":""},{"$f":"IF('1. Order'!K577=\"\",\"\",'1. Order'!K577)","v":""},{"$f":"IF('1. Order'!L577=\"\",\"\",'1. Order'!L577)","v":""},{"$f":"IF('1. Order'!N577=\"\",\"\",'1. Order'!N577)","v":""},null,null,{"$f":"'1. Order'!AV577","v":0},{"$f":"IF('1. Order'!AI577=\"\",\"\",'1. Order'!AI577)","v":""}]
[{"$f":"IF('1. Order'!B578=\"\",\"\",'1. Order'!B578)","v":""},{"$f":"IF('1. Order'!J578=\"\",\"\",'1. Order'!J578)","v":""},{"$f":"IF('1. Order'!K578=\"\",\"\",'1. Order'!K578)","v":""},{"$f":"IF('1. Order'!L578=\"\",\"\",'1. Order'!L578)","v":""},{"$f":"IF('1. Order'!N578=\"\",\"\",'1. Order'!N578)","v":""},null,null,{"$f":"'1. Order'!AV578","v":0},{"$f":"IF('1. Order'!AI578=\"\",\"\",'1. Order'!AI578)","v":""}]
[{"$f":"IF('1. Order'!B579=\"\",\"\",'1. Order'!B579)","v":""},{"$f":"IF('1. Order'!J579=\"\",\"\",'1. Order'!J579)","v":""},{"$f":"IF('1. Order'!K579=\"\",\"\",'1. Order'!K579)","v":""},{"$f":"IF('1. Order'!L579=\"\",\"\",'1. Order'!L579)","v":""},{"$f":"IF('1. Order'!N579=\"\",\"\",'1. Order'!N579)","v":""},null,null,{"$f":"'1. Order'!AV579","v":0},{"$f":"IF('1. Order'!AI579=\"\",\"\",'1. Order'!AI579)","v":""}]
[{"$f":"IF('1. Order'!B580=\"\",\"\",'1. Order'!B580)","v":""},{"$f":"IF('1. Order'!J580=\"\",\"\",'1. Order'!J580)","v":""},{"$f":"IF('1. Order'!K580=\"\",\"\",'1. Order'!K580)","v":""},{"$f":"IF('1. Order'!L580=\"\",\"\",'1. Order'!L580)","v":""},{"$f":"IF('1. Order'!N580=\"\",\"\",'1. Order'!N580)","v":""},null,null,{"$f":"'1. Order'!AV580","v":0},{"$f":"IF('1. Order'!AI580=\"\",\"\",'1. Order'!AI580)","v":""}]
[{"$f":"IF('1. Order'!B581=\"\",\"\",'1. Order'!B581)","v":""},{"$f":"IF('1. Order'!J581=\"\",\"\",'1. Order'!J581)","v":""},{"$f":"IF('1. Order'!K581=\"\",\"\",'1. Order'!K581)","v":""},{"$f":"IF('1. Order'!L581=\"\",\"\",'1. Order'!L581)","v":""},{"$f":"IF('1. Order'!N581=\"\",\"\",'1. Order'!N581)","v":""},null,null,{"$f":"'1. Order'!AV581","v":0},{"$f":"IF('1. Order'!AI581=\"\",\"\",'1. Order'!AI581)","v":""}]
[{"$f":"IF('1. Order'!B582=\"\",\"\",'1. Order'!B582)","v":""},{"$f":"IF('1. Order'!J582=\"\",\"\",'1. Order'!J582)","v":""},{"$f":"IF('1. Order'!K582=\"\",\"\",'1. Order'!K582)","v":""},{"$f":"IF('1. Order'!L582=\"\",\"\",'1. Order'!L582)","v":""},{"$f":"IF('1. Order'!N582=\"\",\"\",'1. Order'!N582)","v":""},null,null,{"$f":"'1. Order'!AV582","v":0},{"$f":"IF('1. Order'!AI582=\"\",\"\",'1. Order'!AI582)","v":""}]
[{"$f":"IF('1. Order'!B583=\"\",\"\",'1. Order'!B583)","v":""},{"$f":"IF('1. Order'!J583=\"\",\"\",'1. Order'!J583)","v":""},{"$f":"IF('1. Order'!K583=\"\",\"\",'1. Order'!K583)","v":""},{"$f":"IF('1. Order'!L583=\"\",\"\",'1. Order'!L583)","v":""},{"$f":"IF('1. Order'!N583=\"\",\"\",'1. Order'!N583)","v":""},null,null,{"$f":"'1. Order'!AV583","v":0},{"$f":"IF('1. Order'!AI583=\"\",\"\",'1. Order'!AI583)","v":""}]
[{"$f":"IF('1. Order'!B584=\"\",\"\",'1. Order'!B584)","v":""},{"$f":"IF('1. Order'!J584=\"\",\"\",'1. Order'!J584)","v":""},{"$f":"IF('1. Order'!K584=\"\",\"\",'1. Order'!K584)","v":""},{"$f":"IF('1. Order'!L584=\"\",\"\",'1. Order'!L584)","v":""},{"$f":"IF('1. Order'!N584=\"\",\"\",'1. Order'!N584)","v":""},null,null,{"$f":"'1. Order'!AV584","v":0},{"$f":"IF('1. Order'!AI584=\"\",\"\",'1. Order'!AI584)","v":""}]
[{"$f":"IF('1. Order'!B585=\"\",\"\",'1. Order'!B585)","v":""},{"$f":"IF('1. Order'!J585=\"\",\"\",'1. Order'!J585)","v":""},{"$f":"IF('1. Order'!K585=\"\",\"\",'1. Order'!K585)","v":""},{"$f":"IF('1. Order'!L585=\"\",\"\",'1. Order'!L585)","v":""},{"$f":"IF('1. Order'!N585=\"\",\"\",'1. Order'!N585)","v":""},null,null,{"$f":"'1. Order'!AV585","v":0},{"$f":"IF('1. Order'!AI585=\"\",\"\",'1. Order'!AI585)","v":""}]
[{"$f":"IF('1. Order'!B586=\"\",\"\",'1. Order'!B586)","v":""},{"$f":"IF('1. Order'!J586=\"\",\"\",'1. Order'!J586)","v":""},{"$f":"IF('1. Order'!K586=\"\",\"\",'1. Order'!K586)","v":""},{"$f":"IF('1. Order'!L586=\"\",\"\",'1. Order'!L586)","v":""},{"$f":"IF('1. Order'!N586=\"\",\"\",'1. Order'!N586)","v":""},null,null,{"$f":"'1. Order'!AV586","v":0},{"$f":"IF('1. Order'!AI586=\"\",\"\",'1. Order'!AI586)","v":""}]
[{"$f":"IF('1. Order'!B587=\"\",\"\",'1. Order'!B587)","v":""},{"$f":"IF('1. Order'!J587=\"\",\"\",'1. Order'!J587)","v":""},{"$f":"IF('1. Order'!K587=\"\",\"\",'1. Order'!K587)","v":""},{"$f":"IF('1. Order'!L587=\"\",\"\",'1. Order'!L587)","v":""},{"$f":"IF('1. Order'!N587=\"\",\"\",'1. Order'!N587)","v":""},null,null,{"$f":"'1. Order'!AV587","v":0},{"$f":"IF('1. Order'!AI587=\"\",\"\",'1. Order'!AI587)","v":""}]
[{"$f":"IF('1. Order'!B588=\"\",\"\",'1. Order'!B588)","v":""},{"$f":"IF('1. Order'!J588=\"\",\"\",'1. Order'!J588)","v":""},{"$f":"IF('1. Order'!K588=\"\",\"\",'1. Order'!K588)","v":""},{"$f":"IF('1. Order'!L588=\"\",\"\",'1. Order'!L588)","v":""},{"$f":"IF('1. Order'!N588=\"\",\"\",'1. Order'!N588)","v":""},null,null,{"$f":"'1. Order'!AV588","v":0},{"$f":"IF('1. Order'!AI588=\"\",\"\",'1. Order'!AI588)","v":""}]
[{"$f":"IF('1. Order'!B589=\"\",\"\",'1. Order'!B589)","v":""},{"$f":"IF('1. Order'!J589=\"\",\"\",'1. Order'!J589)","v":""},{"$f":"IF('1. Order'!K589=\"\",\"\",'1. Order'!K589)","v":""},{"$f":"IF('1. Order'!L589=\"\",\"\",'1. Order'!L589)","v":""},{"$f":"IF('1. Order'!N589=\"\",\"\",'1. Order'!N589)","v":""},null,null,{"$f":"'1. Order'!AV589","v":0},{"$f":"IF('1. Order'!AI589=\"\",\"\",'1. Order'!AI589)","v":""}]
[{"$f":"IF('1. Order'!B590=\"\",\"\",'1. Order'!B590)","v":""},{"$f":"IF('1. Order'!J590=\"\",\"\",'1. Order'!J590)","v":""},{"$f":"IF('1. Order'!K590=\"\",\"\",'1. Order'!K590)","v":""},{"$f":"IF('1. Order'!L590=\"\",\"\",'1. Order'!L590)","v":""},{"$f":"IF('1. Order'!N590=\"\",\"\",'1. Order'!N590)","v":""},null,null,{"$f":"'1. Order'!AV590","v":0},{"$f":"IF('1. Order'!AI590=\"\",\"\",'1. Order'!AI590)","v":""}]
[{"$f":"IF('1. Order'!B591=\"\",\"\",'1. Order'!B591)","v":""},{"$f":"IF('1. Order'!J591=\"\",\"\",'1. Order'!J591)","v":""},{"$f":"IF('1. Order'!K591=\"\",\"\",'1. Order'!K591)","v":""},{"$f":"IF('1. Order'!L591=\"\",\"\",'1. Order'!L591)","v":""},{"$f":"IF('1. Order'!N591=\"\",\"\",'1. Order'!N591)","v":""},null,null,{"$f":"'1. Order'!AV591","v":0},{"$f":"IF('1. Order'!AI591=\"\",\"\",'1. Order'!AI591)","v":""}]
[{"$f":"IF('1. Order'!B592=\"\",\"\",'1. Order'!B592)","v":""},{"$f":"IF('1. Order'!J592=\"\",\"\",'1. Order'!J592)","v":""},{"$f":"IF('1. Order'!K592=\"\",\"\",'1. Order'!K592)","v":""},{"$f":"IF('1. Order'!L592=\"\",\"\",'1. Order'!L592)","v":""},{"$f":"IF('1. Order'!N592=\"\",\"\",'1. Order'!N592)","v":""},null,null,{"$f":"'1. Order'!AV592","v":0},{"$f":"IF('1. Order'!AI592=\"\",\"\",'1. Order'!AI592)","v":""}]
[{"$f":"IF('1. Order'!B593=\"\",\"\",'1. Order'!B593)","v":""},{"$f":"IF('1. Order'!J593=\"\",\"\",'1. Order'!J593)","v":""},{"$f":"IF('1. Order'!K593=\"\",\"\",'1. Order'!K593)","v":""},{"$f":"IF('1. Order'!L593=\"\",\"\",'1. Order'!L593)","v":""},{"$f":"IF('1. Order'!N593=\"\",\"\",'1. Order'!N593)","v":""},null,null,{"$f":"'1. Order'!AV593","v":0},{"$f":"IF('1. Order'!AI593=\"\",\"\",'1. Order'!AI593)","v":""}]
[{"$f":"IF('1. Order'!B594=\"\",\"\",'1. Order'!B594)","v":""},{"$f":"IF('1. Order'!J594=\"\",\"\",'1. Order'!J594)","v":""},{"$f":"IF('1. Order'!K594=\"\",\"\",'1. Order'!K594)","v":""},{"$f":"IF('1. Order'!L594=\"\",\"\",'1. Order'!L594)","v":""},{"$f":"IF('1. Order'!N594=\"\",\"\",'1. Order'!N594)","v":""},null,null,{"$f":"'1. Order'!AV594","v":0},{"$f":"IF('1. Order'!AI594=\"\",\"\",'1. Order'!AI594)","v":""}]
[{"$f":"IF('1. Order'!B595=\"\",\"\",'1. Order'!B595)","v":""},{"$f":"IF('1. Order'!J595=\"\",\"\",'1. Order'!J595)","v":""},{"$f":"IF('1. Order'!K595=\"\",\"\",'1. Order'!K595)","v":""},{"$f":"IF('1. Order'!L595=\"\",\"\",'1. Order'!L595)","v":""},{"$f":"IF('1. Order'!N595=\"\",\"\",'1. Order'!N595)","v":""},null,null,{"$f":"'1. Order'!AV595","v":0},{"$f":"IF('1. Order'!AI595=\"\",\"\",'1. Order'!AI595)","v":""}]
[{"$f":"IF('1. Order'!B596=\"\",\"\",'1. Order'!B596)","v":""},{"$f":"IF('1. Order'!J596=\"\",\"\",'1. Order'!J596)","v":""},{"$f":"IF('1. Order'!K596=\"\",\"\",'1. Order'!K596)","v":""},{"$f":"IF('1. Order'!L596=\"\",\"\",'1. Order'!L596)","v":""},{"$f":"IF('1. Order'!N596=\"\",\"\",'1. Order'!N596)","v":""},null,null,{"$f":"'1. Order'!AV596","v":0},{"$f":"IF('1. Order'!AI596=\"\",\"\",'1. Order'!AI596)","v":""}]
[{"$f":"IF('1. Order'!B597=\"\",\"\",'1. Order'!B597)","v":""},{"$f":"IF('1. Order'!J597=\"\",\"\",'1. Order'!J597)","v":""},{"$f":"IF('1. Order'!K597=\"\",\"\",'1. Order'!K597)","v":""},{"$f":"IF('1. Order'!L597=\"\",\"\",'1. Order'!L597)","v":""},{"$f":"IF('1. Order'!N597=\"\",\"\",'1. Order'!N597)","v":""},null,null,{"$f":"'1. Order'!AV597","v":0},{"$f":"IF('1. Order'!AI597=\"\",\"\",'1. Order'!AI597)","v":""}]
[{"$f":"IF('1. Order'!B598=\"\",\"\",'1. Order'!B598)","v":""},{"$f":"IF('1. Order'!J598=\"\",\"\",'1. Order'!J598)","v":""},{"$f":"IF('1. Order'!K598=\"\",\"\",'1. Order'!K598)","v":""},{"$f":"IF('1. Order'!L598=\"\",\"\",'1. Order'!L598)","v":""},{"$f":"IF('1. Order'!N598=\"\",\"\",'1. Order'!N598)","v":""},null,null,{"$f":"'1. Order'!AV598","v":0},{"$f":"IF('1. Order'!AI598=\"\",\"\",'1. Order'!AI598)","v":""}]
[{"$f":"IF('1. Order'!B599=\"\",\"\",'1. Order'!B599)","v":""},{"$f":"IF('1. Order'!J599=\"\",\"\",'1. Order'!J599)","v":""},{"$f":"IF('1. Order'!K599=\"\",\"\",'1. Order'!K599)","v":""},{"$f":"IF('1. Order'!L599=\"\",\"\",'1. Order'!L599)","v":""},{"$f":"IF('1. Order'!N599=\"\",\"\",'1. Order'!N599)","v":""},null,null,{"$f":"'1. Order'!AV599","v":0},{"$f":"IF('1. Order'!AI599=\"\",\"\",'1. Order'!AI599)","v":""}]
[{"$f":"IF('1. Order'!B600=\"\",\"\",'1. Order'!B600)","v":""},{"$f":"IF('1. Order'!J600=\"\",\"\",'1. Order'!J600)","v":""},{"$f":"IF('1. Order'!K600=\"\",\"\",'1. Order'!K600)","v":""},{"$f":"IF('1. Order'!L600=\"\",\"\",'1. Order'!L600)","v":""},{"$f":"IF('1. Order'!N600=\"\",\"\",'1. Order'!N600)","v":""},null,null,{"$f":"'1. Order'!AV600","v":0},{"$f":"IF('1. Order'!AI600=\"\",\"\",'1. Order'!AI600)","v":""}]
[{"$f":"IF('1. Order'!B601=\"\",\"\",'1. Order'!B601)","v":""},{"$f":"IF('1. Order'!J601=\"\",\"\",'1. Order'!J601)","v":""},{"$f":"IF('1. Order'!K601=\"\",\"\",'1. Order'!K601)","v":""},{"$f":"IF('1. Order'!L601=\"\",\"\",'1. Order'!L601)","v":""},{"$f":"IF('1. Order'!N601=\"\",\"\",'1. Order'!N601)","v":""},null,null,{"$f":"'1. Order'!AV601","v":0},{"$f":"IF('1. Order'!AI601=\"\",\"\",'1. Order'!AI601)","v":""}]
[{"$f":"IF('1. Order'!B602=\"\",\"\",'1. Order'!B602)","v":""},{"$f":"IF('1. Order'!J602=\"\",\"\",'1. Order'!J602)","v":""},{"$f":"IF('1. Order'!K602=\"\",\"\",'1. Order'!K602)","v":""},{"$f":"IF('1. Order'!L602=\"\",\"\",'1. Order'!L602)","v":""},{"$f":"IF('1. Order'!N602=\"\",\"\",'1. Order'!N602)","v":""},null,null,{"$f":"'1. Order'!AV602","v":0},{"$f":"IF('1. Order'!AI602=\"\",\"\",'1. Order'!AI602)","v":""}]
[{"$f":"IF('1. Order'!B603=\"\",\"\",'1. Order'!B603)","v":""},{"$f":"IF('1. Order'!J603=\"\",\"\",'1. Order'!J603)","v":""},{"$f":"IF('1. Order'!K603=\"\",\"\",'1. Order'!K603)","v":""},{"$f":"IF('1. Order'!L603=\"\",\"\",'1. Order'!L603)","v":""},{"$f":"IF('1. Order'!N603=\"\",\"\",'1. Order'!N603)","v":""},null,null,{"$f":"'1. Order'!AV603","v":0},{"$f":"IF('1. Order'!AI603=\"\",\"\",'1. Order'!AI603)","v":""}]
[{"$f":"IF('1. Order'!B604=\"\",\"\",'1. Order'!B604)","v":""},{"$f":"IF('1. Order'!J604=\"\",\"\",'1. Order'!J604)","v":""},{"$f":"IF('1. Order'!K604=\"\",\"\",'1. Order'!K604)","v":""},{"$f":"IF('1. Order'!L604=\"\",\"\",'1. Order'!L604)","v":""},{"$f":"IF('1. Order'!N604=\"\",\"\",'1. Order'!N604)","v":""},null,null,{"$f":"'1. Order'!AV604","v":0},{"$f":"IF('1. Order'!AI604=\"\",\"\",'1. Order'!AI604)","v":""}]
[{"$f":"IF('1. Order'!B605=\"\",\"\",'1. Order'!B605)","v":""},{"$f":"IF('1. Order'!J605=\"\",\"\",'1. Order'!J605)","v":""},{"$f":"IF('1. Order'!K605=\"\",\"\",'1. Order'!K605)","v":""},{"$f":"IF('1. Order'!L605=\"\",\"\",'1. Order'!L605)","v":""},{"$f":"IF('1. Order'!N605=\"\",\"\",'1. Order'!N605)","v":""},null,null,{"$f":"'1. Order'!AV605","v":0},{"$f":"IF('1. Order'!AI605=\"\",\"\",'1. Order'!AI605)","v":""}]
[{"$f":"IF('1. Order'!B606=\"\",\"\",'1. Order'!B606)","v":""},{"$f":"IF('1. Order'!J606=\"\",\"\",'1. Order'!J606)","v":""},{"$f":"IF('1. Order'!K606=\"\",\"\",'1. Order'!K606)","v":""},{"$f":"IF('1. Order'!L606=\"\",\"\",'1. Order'!L606)","v":""},{"$f":"IF('1. Order'!N606=\"\",\"\",'1. Order'!N606)","v":""},null,null,{"$f":"'1. Order'!AV606","v":0},{"$f":"IF('1. Order'!AI606=\"\",\"\",'1. Order'!AI606)","v":""}]
[{"$f":"IF('1. Order'!B607=\"\",\"\",'1. Order'!B607)","v":""},{"$f":"IF('1. Order'!J607=\"\",\"\",'1. Order'!J607)","v":""},{"$f":"IF('1. Order'!K607=\"\",\"\",'1. Order'!K607)","v":""},{"$f":"IF('1. Order'!L607=\"\",\"\",'1. Order'!L607)","v":""},{"$f":"IF('1. Order'!N607=\"\",\"\",'1. Order'!N607)","v":""},null,null,{"$f":"'1. Order'!AV607","v":0},{"$f":"IF('1. Order'!AI607=\"\",\"\",'1. Order'!AI607)","v":""}]
[{"$f":"IF('1. Order'!B608=\"\",\"\",'1. Order'!B608)","v":""},{"$f":"IF('1. Order'!J608=\"\",\"\",'1. Order'!J608)","v":""},{"$f":"IF('1. Order'!K608=\"\",\"\",'1. Order'!K608)","v":""},{"$f":"IF('1. Order'!L608=\"\",\"\",'1. Order'!L608)","v":""},{"$f":"IF('1. Order'!N608=\"\",\"\",'1. Order'!N608)","v":""},null,null,{"$f":"'1. Order'!AV608","v":0},{"$f":"IF('1. Order'!AI608=\"\",\"\",'1. Order'!AI608)","v":""}]
[{"$f":"IF('1. Order'!B609=\"\",\"\",'1. Order'!B609)","v":""},{"$f":"IF('1. Order'!J609=\"\",\"\",'1. Order'!J609)","v":""},{"$f":"IF('1. Order'!K609=\"\",\"\",'1. Order'!K609)","v":""},{"$f":"IF('1. Order'!L609=\"\",\"\",'1. Order'!L609)","v":""},{"$f":"IF('1. Order'!N609=\"\",\"\",'1. Order'!N609)","v":""},null,null,{"$f":"'1. Order'!AV609","v":0},{"$f":"IF('1. Order'!AI609=\"\",\"\",'1. Order'!AI609)","v":""}]
[{"$f":"IF('1. Order'!B610=\"\",\"\",'1. Order'!B610)","v":""},{"$f":"IF('1. Order'!J610=\"\",\"\",'1. Order'!J610)","v":""},{"$f":"IF('1. Order'!K610=\"\",\"\",'1. Order'!K610)","v":""},{"$f":"IF('1. Order'!L610=\"\",\"\",'1. Order'!L610)","v":""},{"$f":"IF('1. Order'!N610=\"\",\"\",'1. Order'!N610)","v":""},null,null,{"$f":"'1. Order'!AV610","v":0},{"$f":"IF('1. Order'!AI610=\"\",\"\",'1. Order'!AI610)","v":""}]
[{"$f":"IF('1. Order'!B611=\"\",\"\",'1. Order'!B611)","v":""},{"$f":"IF('1. Order'!J611=\"\",\"\",'1. Order'!J611)","v":""},{"$f":"IF('1. Order'!K611=\"\",\"\",'1. Order'!K611)","v":""},{"$f":"IF('1. Order'!L611=\"\",\"\",'1. Order'!L611)","v":""},{"$f":"IF('1. Order'!N611=\"\",\"\",'1. Order'!N611)","v":""},null,null,{"$f":"'1. Order'!AV611","v":0},{"$f":"IF('1. Order'!AI611=\"\",\"\",'1. Order'!AI611)","v":""}]
[{"$f":"IF('1. Order'!B612=\"\",\"\",'1. Order'!B612)","v":""},{"$f":"IF('1. Order'!J612=\"\",\"\",'1. Order'!J612)","v":""},{"$f":"IF('1. Order'!K612=\"\",\"\",'1. Order'!K612)","v":""},{"$f":"IF('1. Order'!L612=\"\",\"\",'1. Order'!L612)","v":""},{"$f":"IF('1. Order'!N612=\"\",\"\",'1. Order'!N612)","v":""},null,null,{"$f":"'1. Order'!AV612","v":0},{"$f":"IF('1. Order'!AI612=\"\",\"\",'1. Order'!AI612)","v":""}]
[{"$f":"IF('1. Order'!B613=\"\",\"\",'1. Order'!B613)","v":""},{"$f":"IF('1. Order'!J613=\"\",\"\",'1. Order'!J613)","v":""},{"$f":"IF('1. Order'!K613=\"\",\"\",'1. Order'!K613)","v":""},{"$f":"IF('1. Order'!L613=\"\",\"\",'1. Order'!L613)","v":""},{"$f":"IF('1. Order'!N613=\"\",\"\",'1. Order'!N613)","v":""},null,null,{"$f":"'1. Order'!AV613","v":0},{"$f":"IF('1. Order'!AI613=\"\",\"\",'1. Order'!AI613)","v":""}]
[{"$f":"IF('1. Order'!B614=\"\",\"\",'1. Order'!B614)","v":""},{"$f":"IF('1. Order'!J614=\"\",\"\",'1. Order'!J614)","v":""},{"$f":"IF('1. Order'!K614=\"\",\"\",'1. Order'!K614)","v":""},{"$f":"IF('1. Order'!L614=\"\",\"\",'1. Order'!L614)","v":""},{"$f":"IF('1. Order'!N614=\"\",\"\",'1. Order'!N614)","v":""},null,null,{"$f":"'1. Order'!AV614","v":0},{"$f":"IF('1. Order'!AI614=\"\",\"\",'1. Order'!AI614)","v":""}]
[{"$f":"IF('1. Order'!B615=\"\",\"\",'1. Order'!B615)","v":""},{"$f":"IF('1. Order'!J615=\"\",\"\",'1. Order'!J615)","v":""},{"$f":"IF('1. Order'!K615=\"\",\"\",'1. Order'!K615)","v":""},{"$f":"IF('1. Order'!L615=\"\",\"\",'1. Order'!L615)","v":""},{"$f":"IF('1. Order'!N615=\"\",\"\",'1. Order'!N615)","v":""},null,null,{"$f":"'1. Order'!AV615","v":0},{"$f":"IF('1. Order'!AI615=\"\",\"\",'1. Order'!AI615)","v":""}]
[{"$f":"IF('1. Order'!B616=\"\",\"\",'1. Order'!B616)","v":""},{"$f":"IF('1. Order'!J616=\"\",\"\",'1. Order'!J616)","v":""},{"$f":"IF('1. Order'!K616=\"\",\"\",'1. Order'!K616)","v":""},{"$f":"IF('1. Order'!L616=\"\",\"\",'1. Order'!L616)","v":""},{"$f":"IF('1. Order'!N616=\"\",\"\",'1. Order'!N616)","v":""},null,null,{"$f":"'1. Order'!AV616","v":0},{"$f":"IF('1. Order'!AI616=\"\",\"\",'1. Order'!AI616)","v":""}]
[{"$f":"IF('1. Order'!B617=\"\",\"\",'1. Order'!B617)","v":""},{"$f":"IF('1. Order'!J617=\"\",\"\",'1. Order'!J617)","v":""},{"$f":"IF('1. Order'!K617=\"\",\"\",'1. Order'!K617)","v":""},{"$f":"IF('1. Order'!L617=\"\",\"\",'1. Order'!L617)","v":""},{"$f":"IF('1. Order'!N617=\"\",\"\",'1. Order'!N617)","v":""},null,null,{"$f":"'1. Order'!AV617","v":0},{"$f":"IF('1. Order'!AI617=\"\",\"\",'1. Order'!AI617)","v":""}]
[{"$f":"IF('1. Order'!B618=\"\",\"\",'1. Order'!B618)","v":""},{"$f":"IF('1. Order'!J618=\"\",\"\",'1. Order'!J618)","v":""},{"$f":"IF('1. Order'!K618=\"\",\"\",'1. Order'!K618)","v":""},{"$f":"IF('1. Order'!L618=\"\",\"\",'1. Order'!L618)","v":""},{"$f":"IF('1. Order'!N618=\"\",\"\",'1. Order'!N618)","v":""},null,null,{"$f":"'1. Order'!AV618","v":0},{"$f":"IF('1. Order'!AI618=\"\",\"\",'1. Order'!AI618)","v":""}]
[{"$f":"IF('1. Order'!B619=\"\",\"\",'1. Order'!B619)","v":""},{"$f":"IF('1. Order'!J619=\"\",\"\",'1. Order'!J619)","v":""},{"$f":"IF('1. Order'!K619=\"\",\"\",'1. Order'!K619)","v":""},{"$f":"IF('1. Order'!L619=\"\",\"\",'1. Order'!L619)","v":""},{"$f":"IF('1. Order'!N619=\"\",\"\",'1. Order'!N619)","v":""},null,null,{"$f":"'1. Order'!AV619","v":0},{"$f":"IF('1. Order'!AI619=\"\",\"\",'1. Order'!AI619)","v":""}]
[{"$f":"IF('1. Order'!B620=\"\",\"\",'1. Order'!B620)","v":""},{"$f":"IF('1. Order'!J620=\"\",\"\",'1. Order'!J620)","v":""},{"$f":"IF('1. Order'!K620=\"\",\"\",'1. Order'!K620)","v":""},{"$f":"IF('1. Order'!L620=\"\",\"\",'1. Order'!L620)","v":""},{"$f":"IF('1. Order'!N620=\"\",\"\",'1. Order'!N620)","v":""},null,null,{"$f":"'1. Order'!AV620","v":0},{"$f":"IF('1. Order'!AI620=\"\",\"\",'1. Order'!AI620)","v":""}]
[{"$f":"IF('1. Order'!B621=\"\",\"\",'1. Order'!B621)","v":""},{"$f":"IF('1. Order'!J621=\"\",\"\",'1. Order'!J621)","v":""},{"$f":"IF('1. Order'!K621=\"\",\"\",'1. Order'!K621)","v":""},{"$f":"IF('1. Order'!L621=\"\",\"\",'1. Order'!L621)","v":""},{"$f":"IF('1. Order'!N621=\"\",\"\",'1. Order'!N621)","v":""},null,null,{"$f":"'1. Order'!AV621","v":0},{"$f":"IF('1. Order'!AI621=\"\",\"\",'1. Order'!AI621)","v":""}]
[{"$f":"IF('1. Order'!B622=\"\",\"\",'1. Order'!B622)","v":""},{"$f":"IF('1. Order'!J622=\"\",\"\",'1. Order'!J622)","v":""},{"$f":"IF('1. Order'!K622=\"\",\"\",'1. Order'!K622)","v":""},{"$f":"IF('1. Order'!L622=\"\",\"\",'1. Order'!L622)","v":""},{"$f":"IF('1. Order'!N622=\"\",\"\",'1. Order'!N622)","v":""},null,null,{"$f":"'1. Order'!AV622","v":0},{"$f":"IF('1. Order'!AI622=\"\",\"\",'1. Order'!AI622)","v":""}]
[{"$f":"IF('1. Order'!B623=\"\",\"\",'1. Order'!B623)","v":""},{"$f":"IF('1. Order'!J623=\"\",\"\",'1. Order'!J623)","v":""},{"$f":"IF('1. Order'!K623=\"\",\"\",'1. Order'!K623)","v":""},{"$f":"IF('1. Order'!L623=\"\",\"\",'1. Order'!L623)","v":""},{"$f":"IF('1. Order'!N623=\"\",\"\",'1. Order'!N623)","v":""},null,null,{"$f":"'1. Order'!AV623","v":0},{"$f":"IF('1. Order'!AI623=\"\",\"\",'1. Order'!AI623)","v":""}]
[{"$f":"IF('1. Order'!B624=\"\",\"\",'1. Order'!B624)","v":""},{"$f":"IF('1. Order'!J624=\"\",\"\",'1. Order'!J624)","v":""},{"$f":"IF('1. Order'!K624=\"\",\"\",'1. Order'!K624)","v":""},{"$f":"IF('1. Order'!L624=\"\",\"\",'1. Order'!L624)","v":""},{"$f":"IF('1. Order'!N624=\"\",\"\",'1. Order'!N624)","v":""},null,null,{"$f":"'1. Order'!AV624","v":0},{"$f":"IF('1. Order'!AI624=\"\",\"\",'1. Order'!AI624)","v":""}]
[{"$f":"IF('1. Order'!B625=\"\",\"\",'1. Order'!B625)","v":""},{"$f":"IF('1. Order'!J625=\"\",\"\",'1. Order'!J625)","v":""},{"$f":"IF('1. Order'!K625=\"\",\"\",'1. Order'!K625)","v":""},{"$f":"IF('1. Order'!L625=\"\",\"\",'1. Order'!L625)","v":""},{"$f":"IF('1. Order'!N625=\"\",\"\",'1. Order'!N625)","v":""},null,null,{"$f":"'1. Order'!AV625","v":0},{"$f":"IF('1. Order'!AI625=\"\",\"\",'1. Order'!AI625)","v":""}]
[{"$f":"IF('1. Order'!B626=\"\",\"\",'1. Order'!B626)","v":""},{"$f":"IF('1. Order'!J626=\"\",\"\",'1. Order'!J626)","v":""},{"$f":"IF('1. Order'!K626=\"\",\"\",'1. Order'!K626)","v":""},{"$f":"IF('1. Order'!L626=\"\",\"\",'1. Order'!L626)","v":""},{"$f":"IF('1. Order'!N626=\"\",\"\",'1. Order'!N626)","v":""},null,null,{"$f":"'1. Order'!AV626","v":0},{"$f":"IF('1. Order'!AI626=\"\",\"\",'1. Order'!AI626)","v":""}]
[{"$f":"IF('1. Order'!B627=\"\",\"\",'1. Order'!B627)","v":""},{"$f":"IF('1. Order'!J627=\"\",\"\",'1. Order'!J627)","v":""},{"$f":"IF('1. Order'!K627=\"\",\"\",'1. Order'!K627)","v":""},{"$f":"IF('1. Order'!L627=\"\",\"\",'1. Order'!L627)","v":""},{"$f":"IF('1. Order'!N627=\"\",\"\",'1. Order'!N627)","v":""},null,null,{"$f":"'1. Order'!AV627","v":0},{"$f":"IF('1. Order'!AI627=\"\",\"\",'1. Order'!AI627)","v":""}]
[{"$f":"IF('1. Order'!B628=\"\",\"\",'1. Order'!B628)","v":""},{"$f":"IF('1. Order'!J628=\"\",\"\",'1. Order'!J628)","v":""},{"$f":"IF('1. Order'!K628=\"\",\"\",'1. Order'!K628)","v":""},{"$f":"IF('1. Order'!L628=\"\",\"\",'1. Order'!L628)","v":""},{"$f":"IF('1. Order'!N628=\"\",\"\",'1. Order'!N628)","v":""},null,null,{"$f":"'1. Order'!AV628","v":0},{"$f":"IF('1. Order'!AI628=\"\",\"\",'1. Order'!AI628)","v":""}]
[{"$f":"IF('1. Order'!B629=\"\",\"\",'1. Order'!B629)","v":""},{"$f":"IF('1. Order'!J629=\"\",\"\",'1. Order'!J629)","v":""},{"$f":"IF('1. Order'!K629=\"\",\"\",'1. Order'!K629)","v":""},{"$f":"IF('1. Order'!L629=\"\",\"\",'1. Order'!L629)","v":""},{"$f":"IF('1. Order'!N629=\"\",\"\",'1. Order'!N629)","v":""},null,null,{"$f":"'1. Order'!AV629","v":0},{"$f":"IF('1. Order'!AI629=\"\",\"\",'1. Order'!AI629)","v":""}]
[{"$f":"IF('1. Order'!B630=\"\",\"\",'1. Order'!B630)","v":""},{"$f":"IF('1. Order'!J630=\"\",\"\",'1. Order'!J630)","v":""},{"$f":"IF('1. Order'!K630=\"\",\"\",'1. Order'!K630)","v":""},{"$f":"IF('1. Order'!L630=\"\",\"\",'1. Order'!L630)","v":""},{"$f":"IF('1. Order'!N630=\"\",\"\",'1. Order'!N630)","v":""},null,null,{"$f":"'1. Order'!AV630","v":0},{"$f":"IF('1. Order'!AI630=\"\",\"\",'1. Order'!AI630)","v":""}]
[{"$f":"IF('1. Order'!B631=\"\",\"\",'1. Order'!B631)","v":""},{"$f":"IF('1. Order'!J631=\"\",\"\",'1. Order'!J631)","v":""},{"$f":"IF('1. Order'!K631=\"\",\"\",'1. Order'!K631)","v":""},{"$f":"IF('1. Order'!L631=\"\",\"\",'1. Order'!L631)","v":""},{"$f":"IF('1. Order'!N631=\"\",\"\",'1. Order'!N631)","v":""},null,null,{"$f":"'1. Order'!AV631","v":0},{"$f":"IF('1. Order'!AI631=\"\",\"\",'1. Order'!AI631)","v":""}]
[{"$f":"IF('1. Order'!B632=\"\",\"\",'1. Order'!B632)","v":""},{"$f":"IF('1. Order'!J632=\"\",\"\",'1. Order'!J632)","v":""},{"$f":"IF('1. Order'!K632=\"\",\"\",'1. Order'!K632)","v":""},{"$f":"IF('1. Order'!L632=\"\",\"\",'1. Order'!L632)","v":""},{"$f":"IF('1. Order'!N632=\"\",\"\",'1. Order'!N632)","v":""},null,null,{"$f":"'1. Order'!AV632","v":0},{"$f":"IF('1. Order'!AI632=\"\",\"\",'1. Order'!AI632)","v":""}]
[{"$f":"IF('1. Order'!B633=\"\",\"\",'1. Order'!B633)","v":""},{"$f":"IF('1. Order'!J633=\"\",\"\",'1. Order'!J633)","v":""},{"$f":"IF('1. Order'!K633=\"\",\"\",'1. Order'!K633)","v":""},{"$f":"IF('1. Order'!L633=\"\",\"\",'1. Order'!L633)","v":""},{"$f":"IF('1. Order'!N633=\"\",\"\",'1. Order'!N633)","v":""},null,null,{"$f":"'1. Order'!AV633","v":0},{"$f":"IF('1. Order'!AI633=\"\",\"\",'1. Order'!AI633)","v":""}]
[{"$f":"IF('1. Order'!B634=\"\",\"\",'1. Order'!B634)","v":""},{"$f":"IF('1. Order'!J634=\"\",\"\",'1. Order'!J634)","v":""},{"$f":"IF('1. Order'!K634=\"\",\"\",'1. Order'!K634)","v":""},{"$f":"IF('1. Order'!L634=\"\",\"\",'1. Order'!L634)","v":""},{"$f":"IF('1. Order'!N634=\"\",\"\",'1. Order'!N634)","v":""},null,null,{"$f":"'1. Order'!AV634","v":0},{"$f":"IF('1. Order'!AI634=\"\",\"\",'1. Order'!AI634)","v":""}]
[{"$f":"IF('1. Order'!B635=\"\",\"\",'1. Order'!B635)","v":""},{"$f":"IF('1. Order'!J635=\"\",\"\",'1. Order'!J635)","v":""},{"$f":"IF('1. Order'!K635=\"\",\"\",'1. Order'!K635)","v":""},{"$f":"IF('1. Order'!L635=\"\",\"\",'1. Order'!L635)","v":""},{"$f":"IF('1. Order'!N635=\"\",\"\",'1. Order'!N635)","v":""},null,null,{"$f":"'1. Order'!AV635","v":0},{"$f":"IF('1. Order'!AI635=\"\",\"\",'1. Order'!AI635)","v":""}]
[{"$f":"IF('1. Order'!B636=\"\",\"\",'1. Order'!B636)","v":""},{"$f":"IF('1. Order'!J636=\"\",\"\",'1. Order'!J636)","v":""},{"$f":"IF('1. Order'!K636=\"\",\"\",'1. Order'!K636)","v":""},{"$f":"IF('1. Order'!L636=\"\",\"\",'1. Order'!L636)","v":""},{"$f":"IF('1. Order'!N636=\"\",\"\",'1. Order'!N636)","v":""},null,null,{"$f":"'1. Order'!AV636","v":0},{"$f":"IF('1. Order'!AI636=\"\",\"\",'1. Order'!AI636)","v":""}]
[{"$f":"IF('1. Order'!B637=\"\",\"\",'1. Order'!B637)","v":""},{"$f":"IF('1. Order'!J637=\"\",\"\",'1. Order'!J637)","v":""},{"$f":"IF('1. Order'!K637=\"\",\"\",'1. Order'!K637)","v":""},{"$f":"IF('1. Order'!L637=\"\",\"\",'1. Order'!L637)","v":""},{"$f":"IF('1. Order'!N637=\"\",\"\",'1. Order'!N637)","v":""},null,null,{"$f":"'1. Order'!AV637","v":0},{"$f":"IF('1. Order'!AI637=\"\",\"\",'1. Order'!AI637)","v":""}]
[{"$f":"IF('1. Order'!B638=\"\",\"\",'1. Order'!B638)","v":""},{"$f":"IF('1. Order'!J638=\"\",\"\",'1. Order'!J638)","v":""},{"$f":"IF('1. Order'!K638=\"\",\"\",'1. Order'!K638)","v":""},{"$f":"IF('1. Order'!L638=\"\",\"\",'1. Order'!L638)","v":""},{"$f":"IF('1. Order'!N638=\"\",\"\",'1. Order'!N638)","v":""},null,null,{"$f":"'1. Order'!AV638","v":0},{"$f":"IF('1. Order'!AI638=\"\",\"\",'1. Order'!AI638)","v":""}]
[{"$f":"IF('1. Order'!B639=\"\",\"\",'1. Order'!B639)","v":""},{"$f":"IF('1. Order'!J639=\"\",\"\",'1. Order'!J639)","v":""},{"$f":"IF('1. Order'!K639=\"\",\"\",'1. Order'!K639)","v":""},{"$f":"IF('1. Order'!L639=\"\",\"\",'1. Order'!L639)","v":""},{"$f":"IF('1. Order'!N639=\"\",\"\",'1. Order'!N639)","v":""},null,null,{"$f":"'1. Order'!AV639","v":0},{"$f":"IF('1. Order'!AI639=\"\",\"\",'1. Order'!AI639)","v":""}]
[{"$f":"IF('1. Order'!B640=\"\",\"\",'1. Order'!B640)","v":""},{"$f":"IF('1. Order'!J640=\"\",\"\",'1. Order'!J640)","v":""},{"$f":"IF('1. Order'!K640=\"\",\"\",'1. Order'!K640)","v":""},{"$f":"IF('1. Order'!L640=\"\",\"\",'1. Order'!L640)","v":""},{"$f":"IF('1. Order'!N640=\"\",\"\",'1. Order'!N640)","v":""},null,null,{"$f":"'1. Order'!AV640","v":0},{"$f":"IF('1. Order'!AI640=\"\",\"\",'1. Order'!AI640)","v":""}]
[{"$f":"IF('1. Order'!B641=\"\",\"\",'1. Order'!B641)","v":""},{"$f":"IF('1. Order'!J641=\"\",\"\",'1. Order'!J641)","v":""},{"$f":"IF('1. Order'!K641=\"\",\"\",'1. Order'!K641)","v":""},{"$f":"IF('1. Order'!L641=\"\",\"\",'1. Order'!L641)","v":""},{"$f":"IF('1. Order'!N641=\"\",\"\",'1. Order'!N641)","v":""},null,null,{"$f":"'1. Order'!AV641","v":0},{"$f":"IF('1. Order'!AI641=\"\",\"\",'1. Order'!AI641)","v":""}]
[{"$f":"IF('1. Order'!B642=\"\",\"\",'1. Order'!B642)","v":""},{"$f":"IF('1. Order'!J642=\"\",\"\",'1. Order'!J642)","v":""},{"$f":"IF('1. Order'!K642=\"\",\"\",'1. Order'!K642)","v":""},{"$f":"IF('1. Order'!L642=\"\",\"\",'1. Order'!L642)","v":""},{"$f":"IF('1. Order'!N642=\"\",\"\",'1. Order'!N642)","v":""},null,null,{"$f":"'1. Order'!AV642","v":0},{"$f":"IF('1. Order'!AI642=\"\",\"\",'1. Order'!AI642)","v":""}]
[{"$f":"IF('1. Order'!B643=\"\",\"\",'1. Order'!B643)","v":""},{"$f":"IF('1. Order'!J643=\"\",\"\",'1. Order'!J643)","v":""},{"$f":"IF('1. Order'!K643=\"\",\"\",'1. Order'!K643)","v":""},{"$f":"IF('1. Order'!L643=\"\",\"\",'1. Order'!L643)","v":""},{"$f":"IF('1. Order'!N643=\"\",\"\",'1. Order'!N643)","v":""},null,null,{"$f":"'1. Order'!AV643","v":0},{"$f":"IF('1. Order'!AI643=\"\",\"\",'1. Order'!AI643)","v":""}]
[{"$f":"IF('1. Order'!B644=\"\",\"\",'1. Order'!B644)","v":""},{"$f":"IF('1. Order'!J644=\"\",\"\",'1. Order'!J644)","v":""},{"$f":"IF('1. Order'!K644=\"\",\"\",'1. Order'!K644)","v":""},{"$f":"IF('1. Order'!L644=\"\",\"\",'1. Order'!L644)","v":""},{"$f":"IF('1. Order'!N644=\"\",\"\",'1. Order'!N644)","v":""},null,null,{"$f":"'1. Order'!AV644","v":0},{"$f":"IF('1. Order'!AI644=\"\",\"\",'1. Order'!AI644)","v":""}]
[{"$f":"IF('1. Order'!B645=\"\",\"\",'1. Order'!B645)","v":""},{"$f":"IF('1. Order'!J645=\"\",\"\",'1. Order'!J645)","v":""},{"$f":"IF('1. Order'!K645=\"\",\"\",'1. Order'!K645)","v":""},{"$f":"IF('1. Order'!L645=\"\",\"\",'1. Order'!L645)","v":""},{"$f":"IF('1. Order'!N645=\"\",\"\",'1. Order'!N645)","v":""},null,null,{"$f":"'1. Order'!AV645","v":0},{"$f":"IF('1. Order'!AI645=\"\",\"\",'1. Order'!AI645)","v":""}]
[{"$f":"IF('1. Order'!B646=\"\",\"\",'1. Order'!B646)","v":""},{"$f":"IF('1. Order'!J646=\"\",\"\",'1. Order'!J646)","v":""},{"$f":"IF('1. Order'!K646=\"\",\"\",'1. Order'!K646)","v":""},{"$f":"IF('1. Order'!L646=\"\",\"\",'1. Order'!L646)","v":""},{"$f":"IF('1. Order'!N646=\"\",\"\",'1. Order'!N646)","v":""},null,null,{"$f":"'1. Order'!AV646","v":0},{"$f":"IF('1. Order'!AI646=\"\",\"\",'1. Order'!AI646)","v":""}]
[{"$f":"IF('1. Order'!B647=\"\",\"\",'1. Order'!B647)","v":""},{"$f":"IF('1. Order'!J647=\"\",\"\",'1. Order'!J647)","v":""},{"$f":"IF('1. Order'!K647=\"\",\"\",'1. Order'!K647)","v":""},{"$f":"IF('1. Order'!L647=\"\",\"\",'1. Order'!L647)","v":""},{"$f":"IF('1. Order'!N647=\"\",\"\",'1. Order'!N647)","v":""},null,null,{"$f":"'1. Order'!AV647","v":0},{"$f":"IF('1. Order'!AI647=\"\",\"\",'1. Order'!AI647)","v":""}]
[{"$f":"IF('1. Order'!B648=\"\",\"\",'1. Order'!B648)","v":""},{"$f":"IF('1. Order'!J648=\"\",\"\",'1. Order'!J648)","v":""},{"$f":"IF('1. Order'!K648=\"\",\"\",'1. Order'!K648)","v":""},{"$f":"IF('1. Order'!L648=\"\",\"\",'1. Order'!L648)","v":""},{"$f":"IF('1. Order'!N648=\"\",\"\",'1. Order'!N648)","v":""},null,null,{"$f":"'1. Order'!AV648","v":0},{"$f":"IF('1. Order'!AI648=\"\",\"\",'1. Order'!AI648)","v":""}]
[{"$f":"IF('1. Order'!B649=\"\",\"\",'1. Order'!B649)","v":""},{"$f":"IF('1. Order'!J649=\"\",\"\",'1. Order'!J649)","v":""},{"$f":"IF('1. Order'!K649=\"\",\"\",'1. Order'!K649)","v":""},{"$f":"IF('1. Order'!L649=\"\",\"\",'1. Order'!L649)","v":""},{"$f":"IF('1. Order'!N649=\"\",\"\",'1. Order'!N649)","v":""},null,null,{"$f":"'1. Order'!AV649","v":0},{"$f":"IF('1. Order'!AI649=\"\",\"\",'1. Order'!AI649)","v":""}]
[{"$f":"IF('1. Order'!B650=\"\",\"\",'1. Order'!B650)","v":""},{"$f":"IF('1. Order'!J650=\"\",\"\",'1. Order'!J650)","v":""},{"$f":"IF('1. Order'!K650=\"\",\"\",'1. Order'!K650)","v":""},{"$f":"IF('1. Order'!L650=\"\",\"\",'1. Order'!L650)","v":""},{"$f":"IF('1. Order'!N650=\"\",\"\",'1. Order'!N650)","v":""},null,null,{"$f":"'1. Order'!AV650","v":0},{"$f":"IF('1. Order'!AI650=\"\",\"\",'1. Order'!AI650)","v":""}]
[{"$f":"IF('1. Order'!B651=\"\",\"\",'1. Order'!B651)","v":""},{"$f":"IF('1. Order'!J651=\"\",\"\",'1. Order'!J651)","v":""},{"$f":"IF('1. Order'!K651=\"\",\"\",'1. Order'!K651)","v":""},{"$f":"IF('1. Order'!L651=\"\",\"\",'1. Order'!L651)","v":""},{"$f":"IF('1. Order'!N651=\"\",\"\",'1. Order'!N651)","v":""},null,null,{"$f":"'1. Order'!AV651","v":0},{"$f":"IF('1. Order'!AI651=\"\",\"\",'1. Order'!AI651)","v":""}]
[{"$f":"IF('1. Order'!B652=\"\",\"\",'1. Order'!B652)","v":""},{"$f":"IF('1. Order'!J652=\"\",\"\",'1. Order'!J652)","v":""},{"$f":"IF('1. Order'!K652=\"\",\"\",'1. Order'!K652)","v":""},{"$f":"IF('1. Order'!L652=\"\",\"\",'1. Order'!L652)","v":""},{"$f":"IF('1. Order'!N652=\"\",\"\",'1. Order'!N652)","v":""},null,null,{"$f":"'1. Order'!AV652","v":0},{"$f":"IF('1. Order'!AI652=\"\",\"\",'1. Order'!AI652)","v":""}]
[{"$f":"IF('1. Order'!B653=\"\",\"\",'1. Order'!B653)","v":""},{"$f":"IF('1. Order'!J653=\"\",\"\",'1. Order'!J653)","v":""},{"$f":"IF('1. Order'!K653=\"\",\"\",'1. Order'!K653)","v":""},{"$f":"IF('1. Order'!L653=\"\",\"\",'1. Order'!L653)","v":""},{"$f":"IF('1. Order'!N653=\"\",\"\",'1. Order'!N653)","v":""},null,null,{"$f":"'1. Order'!AV653","v":0},{"$f":"IF('1. Order'!AI653=\"\",\"\",'1. Order'!AI653)","v":""}]
[{"$f":"IF('1. Order'!B654=\"\",\"\",'1. Order'!B654)","v":""},{"$f":"IF('1. Order'!J654=\"\",\"\",'1. Order'!J654)","v":""},{"$f":"IF('1. Order'!K654=\"\",\"\",'1. Order'!K654)","v":""},{"$f":"IF('1. Order'!L654=\"\",\"\",'1. Order'!L654)","v":""},{"$f":"IF('1. Order'!N654=\"\",\"\",'1. Order'!N654)","v":""},null,null,{"$f":"'1. Order'!AV654","v":0},{"$f":"IF('1. Order'!AI654=\"\",\"\",'1. Order'!AI654)","v":""}]
[{"$f":"IF('1. Order'!B655=\"\",\"\",'1. Order'!B655)","v":""},{"$f":"IF('1. Order'!J655=\"\",\"\",'1. Order'!J655)","v":""},{"$f":"IF('1. Order'!K655=\"\",\"\",'1. Order'!K655)","v":""},{"$f":"IF('1. Order'!L655=\"\",\"\",'1. Order'!L655)","v":""},{"$f":"IF('1. Order'!N655=\"\",\"\",'1. Order'!N655)","v":""},null,null,{"$f":"'1. Order'!AV655","v":0},{"$f":"IF('1. Order'!AI655=\"\",\"\",'1. Order'!AI655)","v":""}]
[{"$f":"IF('1. Order'!B656=\"\",\"\",'1. Order'!B656)","v":""},{"$f":"IF('1. Order'!J656=\"\",\"\",'1. Order'!J656)","v":""},{"$f":"IF('1. Order'!K656=\"\",\"\",'1. Order'!K656)","v":""},{"$f":"IF('1. Order'!L656=\"\",\"\",'1. Order'!L656)","v":""},{"$f":"IF('1. Order'!N656=\"\",\"\",'1. Order'!N656)","v":""},null,null,{"$f":"'1. Order'!AV656","v":0},{"$f":"IF('1. Order'!AI656=\"\",\"\",'1. Order'!AI656)","v":""}]
[{"$f":"IF('1. Order'!B657=\"\",\"\",'1. Order'!B657)","v":""},{"$f":"IF('1. Order'!J657=\"\",\"\",'1. Order'!J657)","v":""},{"$f":"IF('1. Order'!K657=\"\",\"\",'1. Order'!K657)","v":""},{"$f":"IF('1. Order'!L657=\"\",\"\",'1. Order'!L657)","v":""},{"$f":"IF('1. Order'!N657=\"\",\"\",'1. Order'!N657)","v":""},null,null,{"$f":"'1. Order'!AV657","v":0},{"$f":"IF('1. Order'!AI657=\"\",\"\",'1. Order'!AI657)","v":""}]
[{"$f":"IF('1. Order'!B658=\"\",\"\",'1. Order'!B658)","v":""},{"$f":"IF('1. Order'!J658=\"\",\"\",'1. Order'!J658)","v":""},{"$f":"IF('1. Order'!K658=\"\",\"\",'1. Order'!K658)","v":""},{"$f":"IF('1. Order'!L658=\"\",\"\",'1. Order'!L658)","v":""},{"$f":"IF('1. Order'!N658=\"\",\"\",'1. Order'!N658)","v":""},null,null,{"$f":"'1. Order'!AV658","v":0},{"$f":"IF('1. Order'!AI658=\"\",\"\",'1. Order'!AI658)","v":""}]
[{"$f":"IF('1. Order'!B659=\"\",\"\",'1. Order'!B659)","v":""},{"$f":"IF('1. Order'!J659=\"\",\"\",'1. Order'!J659)","v":""},{"$f":"IF('1. Order'!K659=\"\",\"\",'1. Order'!K659)","v":""},{"$f":"IF('1. Order'!L659=\"\",\"\",'1. Order'!L659)","v":""},{"$f":"IF('1. Order'!N659=\"\",\"\",'1. Order'!N659)","v":""},null,null,{"$f":"'1. Order'!AV659","v":0},{"$f":"IF('1. Order'!AI659=\"\",\"\",'1. Order'!AI659)","v":""}]
[{"$f":"IF('1. Order'!B660=\"\",\"\",'1. Order'!B660)","v":""},{"$f":"IF('1. Order'!J660=\"\",\"\",'1. Order'!J660)","v":""},{"$f":"IF('1. Order'!K660=\"\",\"\",'1. Order'!K660)","v":""},{"$f":"IF('1. Order'!L660=\"\",\"\",'1. Order'!L660)","v":""},{"$f":"IF('1. Order'!N660=\"\",\"\",'1. Order'!N660)","v":""},null,null,{"$f":"'1. Order'!AV660","v":0},{"$f":"IF('1. Order'!AI660=\"\",\"\",'1. Order'!AI660)","v":""}]
[{"$f":"IF('1. Order'!B661=\"\",\"\",'1. Order'!B661)","v":""},{"$f":"IF('1. Order'!J661=\"\",\"\",'1. Order'!J661)","v":""},{"$f":"IF('1. Order'!K661=\"\",\"\",'1. Order'!K661)","v":""},{"$f":"IF('1. Order'!L661=\"\",\"\",'1. Order'!L661)","v":""},{"$f":"IF('1. Order'!N661=\"\",\"\",'1. Order'!N661)","v":""},null,null,{"$f":"'1. Order'!AV661","v":0},{"$f":"IF('1. Order'!AI661=\"\",\"\",'1. Order'!AI661)","v":""}]
[{"$f":"IF('1. Order'!B662=\"\",\"\",'1. Order'!B662)","v":""},{"$f":"IF('1. Order'!J662=\"\",\"\",'1. Order'!J662)","v":""},{"$f":"IF('1. Order'!K662=\"\",\"\",'1. Order'!K662)","v":""},{"$f":"IF('1. Order'!L662=\"\",\"\",'1. Order'!L662)","v":""},{"$f":"IF('1. Order'!N662=\"\",\"\",'1. Order'!N662)","v":""},null,null,{"$f":"'1. Order'!AV662","v":0},{"$f":"IF('1. Order'!AI662=\"\",\"\",'1. Order'!AI662)","v":""}]
[{"$f":"IF('1. Order'!B663=\"\",\"\",'1. Order'!B663)","v":""},{"$f":"IF('1. Order'!J663=\"\",\"\",'1. Order'!J663)","v":""},{"$f":"IF('1. Order'!K663=\"\",\"\",'1. Order'!K663)","v":""},{"$f":"IF('1. Order'!L663=\"\",\"\",'1. Order'!L663)","v":""},{"$f":"IF('1. Order'!N663=\"\",\"\",'1. Order'!N663)","v":""},null,null,{"$f":"'1. Order'!AV663","v":0},{"$f":"IF('1. Order'!AI663=\"\",\"\",'1. Order'!AI663)","v":""}]
[{"$f":"IF('1. Order'!B664=\"\",\"\",'1. Order'!B664)","v":""},{"$f":"IF('1. Order'!J664=\"\",\"\",'1. Order'!J664)","v":""},{"$f":"IF('1. Order'!K664=\"\",\"\",'1. Order'!K664)","v":""},{"$f":"IF('1. Order'!L664=\"\",\"\",'1. Order'!L664)","v":""},{"$f":"IF('1. Order'!N664=\"\",\"\",'1. Order'!N664)","v":""},null,null,{"$f":"'1. Order'!AV664","v":0},{"$f":"IF('1. Order'!AI664=\"\",\"\",'1. Order'!AI664)","v":""}]
[{"$f":"IF('1. Order'!B665=\"\",\"\",'1. Order'!B665)","v":""},{"$f":"IF('1. Order'!J665=\"\",\"\",'1. Order'!J665)","v":""},{"$f":"IF('1. Order'!K665=\"\",\"\",'1. Order'!K665)","v":""},{"$f":"IF('1. Order'!L665=\"\",\"\",'1. Order'!L665)","v":""},{"$f":"IF('1. Order'!N665=\"\",\"\",'1. Order'!N665)","v":""},null,null,{"$f":"'1. Order'!AV665","v":0},{"$f":"IF('1. Order'!AI665=\"\",\"\",'1. Order'!AI665)","v":""}]
[{"$f":"IF('1. Order'!B666=\"\",\"\",'1. Order'!B666)","v":""},{"$f":"IF('1. Order'!J666=\"\",\"\",'1. Order'!J666)","v":""},{"$f":"IF('1. Order'!K666=\"\",\"\",'1. Order'!K666)","v":""},{"$f":"IF('1. Order'!L666=\"\",\"\",'1. Order'!L666)","v":""},{"$f":"IF('1. Order'!N666=\"\",\"\",'1. Order'!N666)","v":""},null,null,{"$f":"'1. Order'!AV666","v":0},{"$f":"IF('1. Order'!AI666=\"\",\"\",'1. Order'!AI666)","v":""}]
[{"$f":"IF('1. Order'!B667=\"\",\"\",'1. Order'!B667)","v":""},{"$f":"IF('1. Order'!J667=\"\",\"\",'1. Order'!J667)","v":""},{"$f":"IF('1. Order'!K667=\"\",\"\",'1. Order'!K667)","v":""},{"$f":"IF('1. Order'!L667=\"\",\"\",'1. Order'!L667)","v":""},{"$f":"IF('1. Order'!N667=\"\",\"\",'1. Order'!N667)","v":""},null,null,{"$f":"'1. Order'!AV667","v":0},{"$f":"IF('1. Order'!AI667=\"\",\"\",'1. Order'!AI667)","v":""}]
[{"$f":"IF('1. Order'!B668=\"\",\"\",'1. Order'!B668)","v":""},{"$f":"IF('1. Order'!J668=\"\",\"\",'1. Order'!J668)","v":""},{"$f":"IF('1. Order'!K668=\"\",\"\",'1. Order'!K668)","v":""},{"$f":"IF('1. Order'!L668=\"\",\"\",'1. Order'!L668)","v":""},{"$f":"IF('1. Order'!N668=\"\",\"\",'1. Order'!N668)","v":""},null,null,{"$f":"'1. Order'!AV668","v":0},{"$f":"IF('1. Order'!AI668=\"\",\"\",'1. Order'!AI668)","v":""}]
[{"$f":"IF('1. Order'!B669=\"\",\"\",'1. Order'!B669)","v":""},{"$f":"IF('1. Order'!J669=\"\",\"\",'1. Order'!J669)","v":""},{"$f":"IF('1. Order'!K669=\"\",\"\",'1. Order'!K669)","v":""},{"$f":"IF('1. Order'!L669=\"\",\"\",'1. Order'!L669)","v":""},{"$f":"IF('1. Order'!N669=\"\",\"\",'1. Order'!N669)","v":""},null,null,{"$f":"'1. Order'!AV669","v":0},{"$f":"IF('1. Order'!AI669=\"\",\"\",'1. Order'!AI669)","v":""}]
[{"$f":"IF('1. Order'!B670=\"\",\"\",'1. Order'!B670)","v":""},{"$f":"IF('1. Order'!J670=\"\",\"\",'1. Order'!J670)","v":""},{"$f":"IF('1. Order'!K670=\"\",\"\",'1. Order'!K670)","v":""},{"$f":"IF('1. Order'!L670=\"\",\"\",'1. Order'!L670)","v":""},{"$f":"IF('1. Order'!N670=\"\",\"\",'1. Order'!N670)","v":""},null,null,{"$f":"'1. Order'!AV670","v":0},{"$f":"IF('1. Order'!AI670=\"\",\"\",'1. Order'!AI670)","v":""}]
[{"$f":"IF('1. Order'!B671=\"\",\"\",'1. Order'!B671)","v":""},{"$f":"IF('1. Order'!J671=\"\",\"\",'1. Order'!J671)","v":""},{"$f":"IF('1. Order'!K671=\"\",\"\",'1. Order'!K671)","v":""},{"$f":"IF('1. Order'!L671=\"\",\"\",'1. Order'!L671)","v":""},{"$f":"IF('1. Order'!N671=\"\",\"\",'1. Order'!N671)","v":""},null,null,{"$f":"'1. Order'!AV671","v":0},{"$f":"IF('1. Order'!AI671=\"\",\"\",'1. Order'!AI671)","v":""}]
[{"$f":"IF('1. Order'!B672=\"\",\"\",'1. Order'!B672)","v":""},{"$f":"IF('1. Order'!J672=\"\",\"\",'1. Order'!J672)","v":""},{"$f":"IF('1. Order'!K672=\"\",\"\",'1. Order'!K672)","v":""},{"$f":"IF('1. Order'!L672=\"\",\"\",'1. Order'!L672)","v":""},{"$f":"IF('1. Order'!N672=\"\",\"\",'1. Order'!N672)","v":""},null,null,{"$f":"'1. Order'!AV672","v":0},{"$f":"IF('1. Order'!AI672=\"\",\"\",'1. Order'!AI672)","v":""}]
[{"$f":"IF('1. Order'!B673=\"\",\"\",'1. Order'!B673)","v":""},{"$f":"IF('1. Order'!J673=\"\",\"\",'1. Order'!J673)","v":""},{"$f":"IF('1. Order'!K673=\"\",\"\",'1. Order'!K673)","v":""},{"$f":"IF('1. Order'!L673=\"\",\"\",'1. Order'!L673)","v":""},{"$f":"IF('1. Order'!N673=\"\",\"\",'1. Order'!N673)","v":""},null,null,{"$f":"'1. Order'!AV673","v":0},{"$f":"IF('1. Order'!AI673=\"\",\"\",'1. Order'!AI673)","v":""}]
[{"$f":"IF('1. Order'!B674=\"\",\"\",'1. Order'!B674)","v":""},{"$f":"IF('1. Order'!J674=\"\",\"\",'1. Order'!J674)","v":""},{"$f":"IF('1. Order'!K674=\"\",\"\",'1. Order'!K674)","v":""},{"$f":"IF('1. Order'!L674=\"\",\"\",'1. Order'!L674)","v":""},{"$f":"IF('1. Order'!N674=\"\",\"\",'1. Order'!N674)","v":""},null,null,{"$f":"'1. Order'!AV674","v":0},{"$f":"IF('1. Order'!AI674=\"\",\"\",'1. Order'!AI674)","v":""}]
[{"$f":"IF('1. Order'!B675=\"\",\"\",'1. Order'!B675)","v":""},{"$f":"IF('1. Order'!J675=\"\",\"\",'1. Order'!J675)","v":""},{"$f":"IF('1. Order'!K675=\"\",\"\",'1. Order'!K675)","v":""},{"$f":"IF('1. Order'!L675=\"\",\"\",'1. Order'!L675)","v":""},{"$f":"IF('1. Order'!N675=\"\",\"\",'1. Order'!N675)","v":""},null,null,{"$f":"'1. Order'!AV675","v":0},{"$f":"IF('1. Order'!AI675=\"\",\"\",'1. Order'!AI675)","v":""}]
[{"$f":"IF('1. Order'!B676=\"\",\"\",'1. Order'!B676)","v":""},{"$f":"IF('1. Order'!J676=\"\",\"\",'1. Order'!J676)","v":""},{"$f":"IF('1. Order'!K676=\"\",\"\",'1. Order'!K676)","v":""},{"$f":"IF('1. Order'!L676=\"\",\"\",'1. Order'!L676)","v":""},{"$f":"IF('1. Order'!N676=\"\",\"\",'1. Order'!N676)","v":""},null,null,{"$f":"'1. Order'!AV676","v":0},{"$f":"IF('1. Order'!AI676=\"\",\"\",'1. Order'!AI676)","v":""}]
[{"$f":"IF('1. Order'!B677=\"\",\"\",'1. Order'!B677)","v":""},{"$f":"IF('1. Order'!J677=\"\",\"\",'1. Order'!J677)","v":""},{"$f":"IF('1. Order'!K677=\"\",\"\",'1. Order'!K677)","v":""},{"$f":"IF('1. Order'!L677=\"\",\"\",'1. Order'!L677)","v":""},{"$f":"IF('1. Order'!N677=\"\",\"\",'1. Order'!N677)","v":""},null,null,{"$f":"'1. Order'!AV677","v":0},{"$f":"IF('1. Order'!AI677=\"\",\"\",'1. Order'!AI677)","v":""}]
[{"$f":"IF('1. Order'!B678=\"\",\"\",'1. Order'!B678)","v":""},{"$f":"IF('1. Order'!J678=\"\",\"\",'1. Order'!J678)","v":""},{"$f":"IF('1. Order'!K678=\"\",\"\",'1. Order'!K678)","v":""},{"$f":"IF('1. Order'!L678=\"\",\"\",'1. Order'!L678)","v":""},{"$f":"IF('1. Order'!N678=\"\",\"\",'1. Order'!N678)","v":""},null,null,{"$f":"'1. Order'!AV678","v":0},{"$f":"IF('1. Order'!AI678=\"\",\"\",'1. Order'!AI678)","v":""}]
[{"$f":"IF('1. Order'!B679=\"\",\"\",'1. Order'!B679)","v":""},{"$f":"IF('1. Order'!J679=\"\",\"\",'1. Order'!J679)","v":""},{"$f":"IF('1. Order'!K679=\"\",\"\",'1. Order'!K679)","v":""},{"$f":"IF('1. Order'!L679=\"\",\"\",'1. Order'!L679)","v":""},{"$f":"IF('1. Order'!N679=\"\",\"\",'1. Order'!N679)","v":""},null,null,{"$f":"'1. Order'!AV679","v":0},{"$f":"IF('1. Order'!AI679=\"\",\"\",'1. Order'!AI679)","v":""}]
[{"$f":"IF('1. Order'!B680=\"\",\"\",'1. Order'!B680)","v":""},{"$f":"IF('1. Order'!J680=\"\",\"\",'1. Order'!J680)","v":""},{"$f":"IF('1. Order'!K680=\"\",\"\",'1. Order'!K680)","v":""},{"$f":"IF('1. Order'!L680=\"\",\"\",'1. Order'!L680)","v":""},{"$f":"IF('1. Order'!N680=\"\",\"\",'1. Order'!N680)","v":""},null,null,{"$f":"'1. Order'!AV680","v":0},{"$f":"IF('1. Order'!AI680=\"\",\"\",'1. Order'!AI680)","v":""}]
[{"$f":"IF('1. Order'!B681=\"\",\"\",'1. Order'!B681)","v":""},{"$f":"IF('1. Order'!J681=\"\",\"\",'1. Order'!J681)","v":""},{"$f":"IF('1. Order'!K681=\"\",\"\",'1. Order'!K681)","v":""},{"$f":"IF('1. Order'!L681=\"\",\"\",'1. Order'!L681)","v":""},{"$f":"IF('1. Order'!N681=\"\",\"\",'1. Order'!N681)","v":""},null,null,{"$f":"'1. Order'!AV681","v":0},{"$f":"IF('1. Order'!AI681=\"\",\"\",'1. Order'!AI681)","v":""}]
[{"$f":"IF('1. Order'!B682=\"\",\"\",'1. Order'!B682)","v":""},{"$f":"IF('1. Order'!J682=\"\",\"\",'1. Order'!J682)","v":""},{"$f":"IF('1. Order'!K682=\"\",\"\",'1. Order'!K682)","v":""},{"$f":"IF('1. Order'!L682=\"\",\"\",'1. Order'!L682)","v":""},{"$f":"IF('1. Order'!N682=\"\",\"\",'1. Order'!N682)","v":""},null,null,{"$f":"'1. Order'!AV682","v":0},{"$f":"IF('1. Order'!AI682=\"\",\"\",'1. Order'!AI682)","v":""}]
[{"$f":"IF('1. Order'!B683=\"\",\"\",'1. Order'!B683)","v":""},{"$f":"IF('1. Order'!J683=\"\",\"\",'1. Order'!J683)","v":""},{"$f":"IF('1. Order'!K683=\"\",\"\",'1. Order'!K683)","v":""},{"$f":"IF('1. Order'!L683=\"\",\"\",'1. Order'!L683)","v":""},{"$f":"IF('1. Order'!N683=\"\",\"\",'1. Order'!N683)","v":""},null,null,{"$f":"'1. Order'!AV683","v":0},{"$f":"IF('1. Order'!AI683=\"\",\"\",'1. Order'!AI683)","v":""}]
[{"$f":"IF('1. Order'!B684=\"\",\"\",'1. Order'!B684)","v":""},{"$f":"IF('1. Order'!J684=\"\",\"\",'1. Order'!J684)","v":""},{"$f":"IF('1. Order'!K684=\"\",\"\",'1. Order'!K684)","v":""},{"$f":"IF('1. Order'!L684=\"\",\"\",'1. Order'!L684)","v":""},{"$f":"IF('1. Order'!N684=\"\",\"\",'1. Order'!N684)","v":""},null,null,{"$f":"'1. Order'!AV684","v":0},{"$f":"IF('1. Order'!AI684=\"\",\"\",'1. Order'!AI684)","v":""}]
[{"$f":"IF('1. Order'!B685=\"\",\"\",'1. Order'!B685)","v":""},{"$f":"IF('1. Order'!J685=\"\",\"\",'1. Order'!J685)","v":""},{"$f":"IF('1. Order'!K685=\"\",\"\",'1. Order'!K685)","v":""},{"$f":"IF('1. Order'!L685=\"\",\"\",'1. Order'!L685)","v":""},{"$f":"IF('1. Order'!N685=\"\",\"\",'1. Order'!N685)","v":""},null,null,{"$f":"'1. Order'!AV685","v":0},{"$f":"IF('1. Order'!AI685=\"\",\"\",'1. Order'!AI685)","v":""}]
[{"$f":"IF('1. Order'!B686=\"\",\"\",'1. Order'!B686)","v":""},{"$f":"IF('1. Order'!J686=\"\",\"\",'1. Order'!J686)","v":""},{"$f":"IF('1. Order'!K686=\"\",\"\",'1. Order'!K686)","v":""},{"$f":"IF('1. Order'!L686=\"\",\"\",'1. Order'!L686)","v":""},{"$f":"IF('1. Order'!N686=\"\",\"\",'1. Order'!N686)","v":""},null,null,{"$f":"'1. Order'!AV686","v":0},{"$f":"IF('1. Order'!AI686=\"\",\"\",'1. Order'!AI686)","v":""}]
[{"$f":"IF('1. Order'!B687=\"\",\"\",'1. Order'!B687)","v":""},{"$f":"IF('1. Order'!J687=\"\",\"\",'1. Order'!J687)","v":""},{"$f":"IF('1. Order'!K687=\"\",\"\",'1. Order'!K687)","v":""},{"$f":"IF('1. Order'!L687=\"\",\"\",'1. Order'!L687)","v":""},{"$f":"IF('1. Order'!N687=\"\",\"\",'1. Order'!N687)","v":""},null,null,{"$f":"'1. Order'!AV687","v":0},{"$f":"IF('1. Order'!AI687=\"\",\"\",'1. Order'!AI687)","v":""}]
[{"$f":"IF('1. Order'!B688=\"\",\"\",'1. Order'!B688)","v":""},{"$f":"IF('1. Order'!J688=\"\",\"\",'1. Order'!J688)","v":""},{"$f":"IF('1. Order'!K688=\"\",\"\",'1. Order'!K688)","v":""},{"$f":"IF('1. Order'!L688=\"\",\"\",'1. Order'!L688)","v":""},{"$f":"IF('1. Order'!N688=\"\",\"\",'1. Order'!N688)","v":""},null,null,{"$f":"'1. Order'!AV688","v":0},{"$f":"IF('1. Order'!AI688=\"\",\"\",'1. Order'!AI688)","v":""}]
[{"$f":"IF('1. Order'!B689=\"\",\"\",'1. Order'!B689)","v":""},{"$f":"IF('1. Order'!J689=\"\",\"\",'1. Order'!J689)","v":""},{"$f":"IF('1. Order'!K689=\"\",\"\",'1. Order'!K689)","v":""},{"$f":"IF('1. Order'!L689=\"\",\"\",'1. Order'!L689)","v":""},{"$f":"IF('1. Order'!N689=\"\",\"\",'1. Order'!N689)","v":""},null,null,{"$f":"'1. Order'!AV689","v":0},{"$f":"IF('1. Order'!AI689=\"\",\"\",'1. Order'!AI689)","v":""}]
[{"$f":"IF('1. Order'!B690=\"\",\"\",'1. Order'!B690)","v":""},{"$f":"IF('1. Order'!J690=\"\",\"\",'1. Order'!J690)","v":""},{"$f":"IF('1. Order'!K690=\"\",\"\",'1. Order'!K690)","v":""},{"$f":"IF('1. Order'!L690=\"\",\"\",'1. Order'!L690)","v":""},{"$f":"IF('1. Order'!N690=\"\",\"\",'1. Order'!N690)","v":""},null,null,{"$f":"'1. Order'!AV690","v":0},{"$f":"IF('1. Order'!AI690=\"\",\"\",'1. Order'!AI690)","v":""}]
[{"$f":"IF('1. Order'!B691=\"\",\"\",'1. Order'!B691)","v":""},{"$f":"IF('1. Order'!J691=\"\",\"\",'1. Order'!J691)","v":""},{"$f":"IF('1. Order'!K691=\"\",\"\",'1. Order'!K691)","v":""},{"$f":"IF('1. Order'!L691=\"\",\"\",'1. Order'!L691)","v":""},{"$f":"IF('1. Order'!N691=\"\",\"\",'1. Order'!N691)","v":""},null,null,{"$f":"'1. Order'!AV691","v":0},{"$f":"IF('1. Order'!AI691=\"\",\"\",'1. Order'!AI691)","v":""}]
[{"$f":"IF('1. Order'!B692=\"\",\"\",'1. Order'!B692)","v":""},{"$f":"IF('1. Order'!J692=\"\",\"\",'1. Order'!J692)","v":""},{"$f":"IF('1. Order'!K692=\"\",\"\",'1. Order'!K692)","v":""},{"$f":"IF('1. Order'!L692=\"\",\"\",'1. Order'!L692)","v":""},{"$f":"IF('1. Order'!N692=\"\",\"\",'1. Order'!N692)","v":""},null,null,{"$f":"'1. Order'!AV692","v":0},{"$f":"IF('1. Order'!AI692=\"\",\"\",'1. Order'!AI692)","v":""}]
[{"$f":"IF('1. Order'!B693=\"\",\"\",'1. Order'!B693)","v":""},{"$f":"IF('1. Order'!J693=\"\",\"\",'1. Order'!J693)","v":""},{"$f":"IF('1. Order'!K693=\"\",\"\",'1. Order'!K693)","v":""},{"$f":"IF('1. Order'!L693=\"\",\"\",'1. Order'!L693)","v":""},{"$f":"IF('1. Order'!N693=\"\",\"\",'1. Order'!N693)","v":""},null,null,{"$f":"'1. Order'!AV693","v":0},{"$f":"IF('1. Order'!AI693=\"\",\"\",'1. Order'!AI693)","v":""}]
[{"$f":"IF('1. Order'!B694=\"\",\"\",'1. Order'!B694)","v":""},{"$f":"IF('1. Order'!J694=\"\",\"\",'1. Order'!J694)","v":""},{"$f":"IF('1. Order'!K694=\"\",\"\",'1. Order'!K694)","v":""},{"$f":"IF('1. Order'!L694=\"\",\"\",'1. Order'!L694)","v":""},{"$f":"IF('1. Order'!N694=\"\",\"\",'1. Order'!N694)","v":""},null,null,{"$f":"'1. Order'!AV694","v":0},{"$f":"IF('1. Order'!AI694=\"\",\"\",'1. Order'!AI694)","v":""}]
[{"$f":"IF('1. Order'!B695=\"\",\"\",'1. Order'!B695)","v":""},{"$f":"IF('1. Order'!J695=\"\",\"\",'1. Order'!J695)","v":""},{"$f":"IF('1. Order'!K695=\"\",\"\",'1. Order'!K695)","v":""},{"$f":"IF('1. Order'!L695=\"\",\"\",'1. Order'!L695)","v":""},{"$f":"IF('1. Order'!N695=\"\",\"\",'1. Order'!N695)","v":""},null,null,{"$f":"'1. Order'!AV695","v":0},{"$f":"IF('1. Order'!AI695=\"\",\"\",'1. Order'!AI695)","v":""}]
[{"$f":"IF('1. Order'!B696=\"\",\"\",'1. Order'!B696)","v":""},{"$f":"IF('1. Order'!J696=\"\",\"\",'1. Order'!J696)","v":""},{"$f":"IF('1. Order'!K696=\"\",\"\",'1. Order'!K696)","v":""},{"$f":"IF('1. Order'!L696=\"\",\"\",'1. Order'!L696)","v":""},{"$f":"IF('1. Order'!N696=\"\",\"\",'1. Order'!N696)","v":""},null,null,{"$f":"'1. Order'!AV696","v":0},{"$f":"IF('1. Order'!AI696=\"\",\"\",'1. Order'!AI696)","v":""}]
[{"$f":"IF('1. Order'!B697=\"\",\"\",'1. Order'!B697)","v":""},{"$f":"IF('1. Order'!J697=\"\",\"\",'1. Order'!J697)","v":""},{"$f":"IF('1. Order'!K697=\"\",\"\",'1. Order'!K697)","v":""},{"$f":"IF('1. Order'!L697=\"\",\"\",'1. Order'!L697)","v":""},{"$f":"IF('1. Order'!N697=\"\",\"\",'1. Order'!N697)","v":""},null,null,{"$f":"'1. Order'!AV697","v":0},{"$f":"IF('1. Order'!AI697=\"\",\"\",'1. Order'!AI697)","v":""}]
[{"$f":"IF('1. Order'!B698=\"\",\"\",'1. Order'!B698)","v":""},{"$f":"IF('1. Order'!J698=\"\",\"\",'1. Order'!J698)","v":""},{"$f":"IF('1. Order'!K698=\"\",\"\",'1. Order'!K698)","v":""},{"$f":"IF('1. Order'!L698=\"\",\"\",'1. Order'!L698)","v":""},{"$f":"IF('1. Order'!N698=\"\",\"\",'1. Order'!N698)","v":""},null,null,{"$f":"'1. Order'!AV698","v":0},{"$f":"IF('1. Order'!AI698=\"\",\"\",'1. Order'!AI698)","v":""}]
[{"$f":"IF('1. Order'!B699=\"\",\"\",'1. Order'!B699)","v":""},{"$f":"IF('1. Order'!J699=\"\",\"\",'1. Order'!J699)","v":""},{"$f":"IF('1. Order'!K699=\"\",\"\",'1. Order'!K699)","v":""},{"$f":"IF('1. Order'!L699=\"\",\"\",'1. Order'!L699)","v":""},{"$f":"IF('1. Order'!N699=\"\",\"\",'1. Order'!N699)","v":""},null,null,{"$f":"'1. Order'!AV699","v":0},{"$f":"IF('1. Order'!AI699=\"\",\"\",'1. Order'!AI699)","v":""}]
[{"$f":"IF('1. Order'!B700=\"\",\"\",'1. Order'!B700)","v":""},{"$f":"IF('1. Order'!J700=\"\",\"\",'1. Order'!J700)","v":""},{"$f":"IF('1. Order'!K700=\"\",\"\",'1. Order'!K700)","v":""},{"$f":"IF('1. Order'!L700=\"\",\"\",'1. Order'!L700)","v":""},{"$f":"IF('1. Order'!N700=\"\",\"\",'1. Order'!N700)","v":""},null,null,{"$f":"'1. Order'!AV700","v":0},{"$f":"IF('1. Order'!AI700=\"\",\"\",'1. Order'!AI700)","v":""}]
[{"$f":"IF('1. Order'!B701=\"\",\"\",'1. Order'!B701)","v":""},{"$f":"IF('1. Order'!J701=\"\",\"\",'1. Order'!J701)","v":""},{"$f":"IF('1. Order'!K701=\"\",\"\",'1. Order'!K701)","v":""},{"$f":"IF('1. Order'!L701=\"\",\"\",'1. Order'!L701)","v":""},{"$f":"IF('1. Order'!N701=\"\",\"\",'1. Order'!N701)","v":""},null,null,{"$f":"'1. Order'!AV701","v":0},{"$f":"IF('1. Order'!AI701=\"\",\"\",'1. Order'!AI701)","v":""}]
[{"$f":"IF('1. Order'!B702=\"\",\"\",'1. Order'!B702)","v":""},{"$f":"IF('1. Order'!J702=\"\",\"\",'1. Order'!J702)","v":""},{"$f":"IF('1. Order'!K702=\"\",\"\",'1. Order'!K702)","v":""},{"$f":"IF('1. Order'!L702=\"\",\"\",'1. Order'!L702)","v":""},{"$f":"IF('1. Order'!N702=\"\",\"\",'1. Order'!N702)","v":""},null,null,{"$f":"'1. Order'!AV702","v":0},{"$f":"IF('1. Order'!AI702=\"\",\"\",'1. Order'!AI702)","v":""}]
[{"$f":"IF('1. Order'!B703=\"\",\"\",'1. Order'!B703)","v":""},{"$f":"IF('1. Order'!J703=\"\",\"\",'1. Order'!J703)","v":""},{"$f":"IF('1. Order'!K703=\"\",\"\",'1. Order'!K703)","v":""},{"$f":"IF('1. Order'!L703=\"\",\"\",'1. Order'!L703)","v":""},{"$f":"IF('1. Order'!N703=\"\",\"\",'1. Order'!N703)","v":""},null,null,{"$f":"'1. Order'!AV703","v":0},{"$f":"IF('1. Order'!AI703=\"\",\"\",'1. Order'!AI703)","v":""}]
[{"$f":"IF('1. Order'!B704=\"\",\"\",'1. Order'!B704)","v":""},{"$f":"IF('1. Order'!J704=\"\",\"\",'1. Order'!J704)","v":""},{"$f":"IF('1. Order'!K704=\"\",\"\",'1. Order'!K704)","v":""},{"$f":"IF('1. Order'!L704=\"\",\"\",'1. Order'!L704)","v":""},{"$f":"IF('1. Order'!N704=\"\",\"\",'1. Order'!N704)","v":""},null,null,{"$f":"'1. Order'!AV704","v":0},{"$f":"IF('1. Order'!AI704=\"\",\"\",'1. Order'!AI704)","v":""}]
[{"$f":"IF('1. Order'!B705=\"\",\"\",'1. Order'!B705)","v":""},{"$f":"IF('1. Order'!J705=\"\",\"\",'1. Order'!J705)","v":""},{"$f":"IF('1. Order'!K705=\"\",\"\",'1. Order'!K705)","v":""},{"$f":"IF('1. Order'!L705=\"\",\"\",'1. Order'!L705)","v":""},{"$f":"IF('1. Order'!N705=\"\",\"\",'1. Order'!N705)","v":""},null,null,{"$f":"'1. Order'!AV705","v":0},{"$f":"IF('1. Order'!AI705=\"\",\"\",'1. Order'!AI705)","v":""}]
[{"$f":"IF('1. Order'!B706=\"\",\"\",'1. Order'!B706)","v":""},{"$f":"IF('1. Order'!J706=\"\",\"\",'1. Order'!J706)","v":""},{"$f":"IF('1. Order'!K706=\"\",\"\",'1. Order'!K706)","v":""},{"$f":"IF('1. Order'!L706=\"\",\"\",'1. Order'!L706)","v":""},{"$f":"IF('1. Order'!N706=\"\",\"\",'1. Order'!N706)","v":""},null,null,{"$f":"'1. Order'!AV706","v":0},{"$f":"IF('1. Order'!AI706=\"\",\"\",'1. Order'!AI706)","v":""}]
[{"$f":"IF('1. Order'!B707=\"\",\"\",'1. Order'!B707)","v":""},{"$f":"IF('1. Order'!J707=\"\",\"\",'1. Order'!J707)","v":""},{"$f":"IF('1. Order'!K707=\"\",\"\",'1. Order'!K707)","v":""},{"$f":"IF('1. Order'!L707=\"\",\"\",'1. Order'!L707)","v":""},{"$f":"IF('1. Order'!N707=\"\",\"\",'1. Order'!N707)","v":""},null,null,{"$f":"'1. Order'!AV707","v":0},{"$f":"IF('1. Order'!AI707=\"\",\"\",'1. Order'!AI707)","v":""}]
[{"$f":"IF('1. Order'!B708=\"\",\"\",'1. Order'!B708)","v":""},{"$f":"IF('1. Order'!J708=\"\",\"\",'1. Order'!J708)","v":""},{"$f":"IF('1. Order'!K708=\"\",\"\",'1. Order'!K708)","v":""},{"$f":"IF('1. Order'!L708=\"\",\"\",'1. Order'!L708)","v":""},{"$f":"IF('1. Order'!N708=\"\",\"\",'1. Order'!N708)","v":""},null,null,{"$f":"'1. Order'!AV708","v":0},{"$f":"IF('1. Order'!AI708=\"\",\"\",'1. Order'!AI708)","v":""}]
[{"$f":"IF('1. Order'!B709=\"\",\"\",'1. Order'!B709)","v":""},{"$f":"IF('1. Order'!J709=\"\",\"\",'1. Order'!J709)","v":""},{"$f":"IF('1. Order'!K709=\"\",\"\",'1. Order'!K709)","v":""},{"$f":"IF('1. Order'!L709=\"\",\"\",'1. Order'!L709)","v":""},{"$f":"IF('1. Order'!N709=\"\",\"\",'1. Order'!N709)","v":""},null,null,{"$f":"'1. Order'!AV709","v":0},{"$f":"IF('1. Order'!AI709=\"\",\"\",'1. Order'!AI709)","v":""}]
[{"$f":"IF('1. Order'!B710=\"\",\"\",'1. Order'!B710)","v":""},{"$f":"IF('1. Order'!J710=\"\",\"\",'1. Order'!J710)","v":""},{"$f":"IF('1. Order'!K710=\"\",\"\",'1. Order'!K710)","v":""},{"$f":"IF('1. Order'!L710=\"\",\"\",'1. Order'!L710)","v":""},{"$f":"IF('1. Order'!N710=\"\",\"\",'1. Order'!N710)","v":""},null,null,{"$f":"'1. Order'!AV710","v":0},{"$f":"IF('1. Order'!AI710=\"\",\"\",'1. Order'!AI710)","v":""}]
[{"$f":"IF('1. Order'!B711=\"\",\"\",'1. Order'!B711)","v":""},{"$f":"IF('1. Order'!J711=\"\",\"\",'1. Order'!J711)","v":""},{"$f":"IF('1. Order'!K711=\"\",\"\",'1. Order'!K711)","v":""},{"$f":"IF('1. Order'!L711=\"\",\"\",'1. Order'!L711)","v":""},{"$f":"IF('1. Order'!N711=\"\",\"\",'1. Order'!N711)","v":""},null,null,{"$f":"'1. Order'!AV711","v":0},{"$f":"IF('1. Order'!AI711=\"\",\"\",'1. Order'!AI711)","v":""}]
[{"$f":"IF('1. Order'!B712=\"\",\"\",'1. Order'!B712)","v":""},{"$f":"IF('1. Order'!J712=\"\",\"\",'1. Order'!J712)","v":""},{"$f":"IF('1. Order'!K712=\"\",\"\",'1. Order'!K712)","v":""},{"$f":"IF('1. Order'!L712=\"\",\"\",'1. Order'!L712)","v":""},{"$f":"IF('1. Order'!N712=\"\",\"\",'1. Order'!N712)","v":""},null,null,{"$f":"'1. Order'!AV712","v":0},{"$f":"IF('1. Order'!AI712=\"\",\"\",'1. Order'!AI712)","v":""}]
[{"$f":"IF('1. Order'!B713=\"\",\"\",'1. Order'!B713)","v":""},{"$f":"IF('1. Order'!J713=\"\",\"\",'1. Order'!J713)","v":""},{"$f":"IF('1. Order'!K713=\"\",\"\",'1. Order'!K713)","v":""},{"$f":"IF('1. Order'!L713=\"\",\"\",'1. Order'!L713)","v":""},{"$f":"IF('1. Order'!N713=\"\",\"\",'1. Order'!N713)","v":""},null,null,{"$f":"'1. Order'!AV713","v":0},{"$f":"IF('1. Order'!AI713=\"\",\"\",'1. Order'!AI713)","v":""}]
[{"$f":"IF('1. Order'!B714=\"\",\"\",'1. Order'!B714)","v":""},{"$f":"IF('1. Order'!J714=\"\",\"\",'1. Order'!J714)","v":""},{"$f":"IF('1. Order'!K714=\"\",\"\",'1. Order'!K714)","v":""},{"$f":"IF('1. Order'!L714=\"\",\"\",'1. Order'!L714)","v":""},{"$f":"IF('1. Order'!N714=\"\",\"\",'1. Order'!N714)","v":""},null,null,{"$f":"'1. Order'!AV714","v":0},{"$f":"IF('1. Order'!AI714=\"\",\"\",'1. Order'!AI714)","v":""}]
[{"$f":"IF('1. Order'!B715=\"\",\"\",'1. Order'!B715)","v":""},{"$f":"IF('1. Order'!J715=\"\",\"\",'1. Order'!J715)","v":""},{"$f":"IF('1. Order'!K715=\"\",\"\",'1. Order'!K715)","v":""},{"$f":"IF('1. Order'!L715=\"\",\"\",'1. Order'!L715)","v":""},{"$f":"IF('1. Order'!N715=\"\",\"\",'1. Order'!N715)","v":""},null,null,{"$f":"'1. Order'!AV715","v":0},{"$f":"IF('1. Order'!AI715=\"\",\"\",'1. Order'!AI715)","v":""}]
[{"$f":"IF('1. Order'!B716=\"\",\"\",'1. Order'!B716)","v":""},{"$f":"IF('1. Order'!J716=\"\",\"\",'1. Order'!J716)","v":""},{"$f":"IF('1. Order'!K716=\"\",\"\",'1. Order'!K716)","v":""},{"$f":"IF('1. Order'!L716=\"\",\"\",'1. Order'!L716)","v":""},{"$f":"IF('1. Order'!N716=\"\",\"\",'1. Order'!N716)","v":""},null,null,{"$f":"'1. Order'!AV716","v":0},{"$f":"IF('1. Order'!AI716=\"\",\"\",'1. Order'!AI716)","v":""}]
[{"$f":"IF('1. Order'!B717=\"\",\"\",'1. Order'!B717)","v":""},{"$f":"IF('1. Order'!J717=\"\",\"\",'1. Order'!J717)","v":""},{"$f":"IF('1. Order'!K717=\"\",\"\",'1. Order'!K717)","v":""},{"$f":"IF('1. Order'!L717=\"\",\"\",'1. Order'!L717)","v":""},{"$f":"IF('1. Order'!N717=\"\",\"\",'1. Order'!N717)","v":""},null,null,{"$f":"'1. Order'!AV717","v":0},{"$f":"IF('1. Order'!AI717=\"\",\"\",'1. Order'!AI717)","v":""}]
[{"$f":"IF('1. Order'!B718=\"\",\"\",'1. Order'!B718)","v":""},{"$f":"IF('1. Order'!J718=\"\",\"\",'1. Order'!J718)","v":""},{"$f":"IF('1. Order'!K718=\"\",\"\",'1. Order'!K718)","v":""},{"$f":"IF('1. Order'!L718=\"\",\"\",'1. Order'!L718)","v":""},{"$f":"IF('1. Order'!N718=\"\",\"\",'1. Order'!N718)","v":""},null,null,{"$f":"'1. Order'!AV718","v":0},{"$f":"IF('1. Order'!AI718=\"\",\"\",'1. Order'!AI718)","v":""}]
[{"$f":"IF('1. Order'!B719=\"\",\"\",'1. Order'!B719)","v":""},{"$f":"IF('1. Order'!J719=\"\",\"\",'1. Order'!J719)","v":""},{"$f":"IF('1. Order'!K719=\"\",\"\",'1. Order'!K719)","v":""},{"$f":"IF('1. Order'!L719=\"\",\"\",'1. Order'!L719)","v":""},{"$f":"IF('1. Order'!N719=\"\",\"\",'1. Order'!N719)","v":""},null,null,{"$f":"'1. Order'!AV719","v":0},{"$f":"IF('1. Order'!AI719=\"\",\"\",'1. Order'!AI719)","v":""}]
[{"$f":"IF('1. Order'!B720=\"\",\"\",'1. Order'!B720)","v":""},{"$f":"IF('1. Order'!J720=\"\",\"\",'1. Order'!J720)","v":""},{"$f":"IF('1. Order'!K720=\"\",\"\",'1. Order'!K720)","v":""},{"$f":"IF('1. Order'!L720=\"\",\"\",'1. Order'!L720)","v":""},{"$f":"IF('1. Order'!N720=\"\",\"\",'1. Order'!N720)","v":""},null,null,{"$f":"'1. Order'!AV720","v":0},{"$f":"IF('1. Order'!AI720=\"\",\"\",'1. Order'!AI720)","v":""}]
[{"$f":"IF('1. Order'!B721=\"\",\"\",'1. Order'!B721)","v":""},{"$f":"IF('1. Order'!J721=\"\",\"\",'1. Order'!J721)","v":""},{"$f":"IF('1. Order'!K721=\"\",\"\",'1. Order'!K721)","v":""},{"$f":"IF('1. Order'!L721=\"\",\"\",'1. Order'!L721)","v":""},{"$f":"IF('1. Order'!N721=\"\",\"\",'1. Order'!N721)","v":""},null,null,{"$f":"'1. Order'!AV721","v":0},{"$f":"IF('1. Order'!AI721=\"\",\"\",'1. Order'!AI721)","v":""}]
[{"$f":"IF('1. Order'!B722=\"\",\"\",'1. Order'!B722)","v":""},{"$f":"IF('1. Order'!J722=\"\",\"\",'1. Order'!J722)","v":""},{"$f":"IF('1. Order'!K722=\"\",\"\",'1. Order'!K722)","v":""},{"$f":"IF('1. Order'!L722=\"\",\"\",'1. Order'!L722)","v":""},{"$f":"IF('1. Order'!N722=\"\",\"\",'1. Order'!N722)","v":""},null,null,{"$f":"'1. Order'!AV722","v":0},{"$f":"IF('1. Order'!AI722=\"\",\"\",'1. Order'!AI722)","v":""}]
[{"$f":"IF('1. Order'!B723=\"\",\"\",'1. Order'!B723)","v":""},{"$f":"IF('1. Order'!J723=\"\",\"\",'1. Order'!J723)","v":""},{"$f":"IF('1. Order'!K723=\"\",\"\",'1. Order'!K723)","v":""},{"$f":"IF('1. Order'!L723=\"\",\"\",'1. Order'!L723)","v":""},{"$f":"IF('1. Order'!N723=\"\",\"\",'1. Order'!N723)","v":""},null,null,{"$f":"'1. Order'!AV723","v":0},{"$f":"IF('1. Order'!AI723=\"\",\"\",'1. Order'!AI723)","v":""}]
[{"$f":"IF('1. Order'!B724=\"\",\"\",'1. Order'!B724)","v":""},{"$f":"IF('1. Order'!J724=\"\",\"\",'1. Order'!J724)","v":""},{"$f":"IF('1. Order'!K724=\"\",\"\",'1. Order'!K724)","v":""},{"$f":"IF('1. Order'!L724=\"\",\"\",'1. Order'!L724)","v":""},{"$f":"IF('1. Order'!N724=\"\",\"\",'1. Order'!N724)","v":""},null,null,{"$f":"'1. Order'!AV724","v":0},{"$f":"IF('1. Order'!AI724=\"\",\"\",'1. Order'!AI724)","v":""}]
[{"$f":"IF('1. Order'!B725=\"\",\"\",'1. Order'!B725)","v":""},{"$f":"IF('1. Order'!J725=\"\",\"\",'1. Order'!J725)","v":""},{"$f":"IF('1. Order'!K725=\"\",\"\",'1. Order'!K725)","v":""},{"$f":"IF('1. Order'!L725=\"\",\"\",'1. Order'!L725)","v":""},{"$f":"IF('1. Order'!N725=\"\",\"\",'1. Order'!N725)","v":""},null,null,{"$f":"'1. Order'!AV725","v":0},{"$f":"IF('1. Order'!AI725=\"\",\"\",'1. Order'!AI725)","v":""}]
[{"$f":"IF('1. Order'!B726=\"\",\"\",'1. Order'!B726)","v":""},{"$f":"IF('1. Order'!J726=\"\",\"\",'1. Order'!J726)","v":""},{"$f":"IF('1. Order'!K726=\"\",\"\",'1. Order'!K726)","v":""},{"$f":"IF('1. Order'!L726=\"\",\"\",'1. Order'!L726)","v":""},{"$f":"IF('1. Order'!N726=\"\",\"\",'1. Order'!N726)","v":""},null,null,{"$f":"'1. Order'!AV726","v":0},{"$f":"IF('1. Order'!AI726=\"\",\"\",'1. Order'!AI726)","v":""}]
[{"$f":"IF('1. Order'!B727=\"\",\"\",'1. Order'!B727)","v":""},{"$f":"IF('1. Order'!J727=\"\",\"\",'1. Order'!J727)","v":""},{"$f":"IF('1. Order'!K727=\"\",\"\",'1. Order'!K727)","v":""},{"$f":"IF('1. Order'!L727=\"\",\"\",'1. Order'!L727)","v":""},{"$f":"IF('1. Order'!N727=\"\",\"\",'1. Order'!N727)","v":""},null,null,{"$f":"'1. Order'!AV727","v":0},{"$f":"IF('1. Order'!AI727=\"\",\"\",'1. Order'!AI727)","v":""}]
[{"$f":"IF('1. Order'!B728=\"\",\"\",'1. Order'!B728)","v":""},{"$f":"IF('1. Order'!J728=\"\",\"\",'1. Order'!J728)","v":""},{"$f":"IF('1. Order'!K728=\"\",\"\",'1. Order'!K728)","v":""},{"$f":"IF('1. Order'!L728=\"\",\"\",'1. Order'!L728)","v":""},{"$f":"IF('1. Order'!N728=\"\",\"\",'1. Order'!N728)","v":""},null,null,{"$f":"'1. Order'!AV728","v":0},{"$f":"IF('1. Order'!AI728=\"\",\"\",'1. Order'!AI728)","v":""}]
[{"$f":"IF('1. Order'!B729=\"\",\"\",'1. Order'!B729)","v":""},{"$f":"IF('1. Order'!J729=\"\",\"\",'1. Order'!J729)","v":""},{"$f":"IF('1. Order'!K729=\"\",\"\",'1. Order'!K729)","v":""},{"$f":"IF('1. Order'!L729=\"\",\"\",'1. Order'!L729)","v":""},{"$f":"IF('1. Order'!N729=\"\",\"\",'1. Order'!N729)","v":""},null,null,{"$f":"'1. Order'!AV729","v":0},{"$f":"IF('1. Order'!AI729=\"\",\"\",'1. Order'!AI729)","v":""}]
[{"$f":"IF('1. Order'!B730=\"\",\"\",'1. Order'!B730)","v":""},{"$f":"IF('1. Order'!J730=\"\",\"\",'1. Order'!J730)","v":""},{"$f":"IF('1. Order'!K730=\"\",\"\",'1. Order'!K730)","v":""},{"$f":"IF('1. Order'!L730=\"\",\"\",'1. Order'!L730)","v":""},{"$f":"IF('1. Order'!N730=\"\",\"\",'1. Order'!N730)","v":""},null,null,{"$f":"'1. Order'!AV730","v":0},{"$f":"IF('1. Order'!AI730=\"\",\"\",'1. Order'!AI730)","v":""}]
[{"$f":"IF('1. Order'!B731=\"\",\"\",'1. Order'!B731)","v":""},{"$f":"IF('1. Order'!J731=\"\",\"\",'1. Order'!J731)","v":""},{"$f":"IF('1. Order'!K731=\"\",\"\",'1. Order'!K731)","v":""},{"$f":"IF('1. Order'!L731=\"\",\"\",'1. Order'!L731)","v":""},{"$f":"IF('1. Order'!N731=\"\",\"\",'1. Order'!N731)","v":""},null,null,{"$f":"'1. Order'!AV731","v":0},{"$f":"IF('1. Order'!AI731=\"\",\"\",'1. Order'!AI731)","v":""}]
[{"$f":"IF('1. Order'!B732=\"\",\"\",'1. Order'!B732)","v":""},{"$f":"IF('1. Order'!J732=\"\",\"\",'1. Order'!J732)","v":""},{"$f":"IF('1. Order'!K732=\"\",\"\",'1. Order'!K732)","v":""},{"$f":"IF('1. Order'!L732=\"\",\"\",'1. Order'!L732)","v":""},{"$f":"IF('1. Order'!N732=\"\",\"\",'1. Order'!N732)","v":""},null,null,{"$f":"'1. Order'!AV732","v":0},{"$f":"IF('1. Order'!AI732=\"\",\"\",'1. Order'!AI732)","v":""}]
[{"$f":"IF('1. Order'!B733=\"\",\"\",'1. Order'!B733)","v":""},{"$f":"IF('1. Order'!J733=\"\",\"\",'1. Order'!J733)","v":""},{"$f":"IF('1. Order'!K733=\"\",\"\",'1. Order'!K733)","v":""},{"$f":"IF('1. Order'!L733=\"\",\"\",'1. Order'!L733)","v":""},{"$f":"IF('1. Order'!N733=\"\",\"\",'1. Order'!N733)","v":""},null,null,{"$f":"'1. Order'!AV733","v":0},{"$f":"IF('1. Order'!AI733=\"\",\"\",'1. Order'!AI733)","v":""}]
[{"$f":"IF('1. Order'!B734=\"\",\"\",'1. Order'!B734)","v":""},{"$f":"IF('1. Order'!J734=\"\",\"\",'1. Order'!J734)","v":""},{"$f":"IF('1. Order'!K734=\"\",\"\",'1. Order'!K734)","v":""},{"$f":"IF('1. Order'!L734=\"\",\"\",'1. Order'!L734)","v":""},{"$f":"IF('1. Order'!N734=\"\",\"\",'1. Order'!N734)","v":""},null,null,{"$f":"'1. Order'!AV734","v":0},{"$f":"IF('1. Order'!AI734=\"\",\"\",'1. Order'!AI734)","v":""}]
[{"$f":"IF('1. Order'!B735=\"\",\"\",'1. Order'!B735)","v":""},{"$f":"IF('1. Order'!J735=\"\",\"\",'1. Order'!J735)","v":""},{"$f":"IF('1. Order'!K735=\"\",\"\",'1. Order'!K735)","v":""},{"$f":"IF('1. Order'!L735=\"\",\"\",'1. Order'!L735)","v":""},{"$f":"IF('1. Order'!N735=\"\",\"\",'1. Order'!N735)","v":""},null,null,{"$f":"'1. Order'!AV735","v":0},{"$f":"IF('1. Order'!AI735=\"\",\"\",'1. Order'!AI735)","v":""}]
[{"$f":"IF('1. Order'!B736=\"\",\"\",'1. Order'!B736)","v":""},{"$f":"IF('1. Order'!J736=\"\",\"\",'1. Order'!J736)","v":""},{"$f":"IF('1. Order'!K736=\"\",\"\",'1. Order'!K736)","v":""},{"$f":"IF('1. Order'!L736=\"\",\"\",'1. Order'!L736)","v":""},{"$f":"IF('1. Order'!N736=\"\",\"\",'1. Order'!N736)","v":""},null,null,{"$f":"'1. Order'!AV736","v":0},{"$f":"IF('1. Order'!AI736=\"\",\"\",'1. Order'!AI736)","v":""}]
[{"$f":"IF('1. Order'!B737=\"\",\"\",'1. Order'!B737)","v":""},{"$f":"IF('1. Order'!J737=\"\",\"\",'1. Order'!J737)","v":""},{"$f":"IF('1. Order'!K737=\"\",\"\",'1. Order'!K737)","v":""},{"$f":"IF('1. Order'!L737=\"\",\"\",'1. Order'!L737)","v":""},{"$f":"IF('1. Order'!N737=\"\",\"\",'1. Order'!N737)","v":""},null,null,{"$f":"'1. Order'!AV737","v":0},{"$f":"IF('1. Order'!AI737=\"\",\"\",'1. Order'!AI737)","v":""}]
[{"$f":"IF('1. Order'!B738=\"\",\"\",'1. Order'!B738)","v":""},{"$f":"IF('1. Order'!J738=\"\",\"\",'1. Order'!J738)","v":""},{"$f":"IF('1. Order'!K738=\"\",\"\",'1. Order'!K738)","v":""},{"$f":"IF('1. Order'!L738=\"\",\"\",'1. Order'!L738)","v":""},{"$f":"IF('1. Order'!N738=\"\",\"\",'1. Order'!N738)","v":""},null,null,{"$f":"'1. Order'!AV738","v":0},{"$f":"IF('1. Order'!AI738=\"\",\"\",'1. Order'!AI738)","v":""}]
[{"$f":"IF('1. Order'!B739=\"\",\"\",'1. Order'!B739)","v":""},{"$f":"IF('1. Order'!J739=\"\",\"\",'1. Order'!J739)","v":""},{"$f":"IF('1. Order'!K739=\"\",\"\",'1. Order'!K739)","v":""},{"$f":"IF('1. Order'!L739=\"\",\"\",'1. Order'!L739)","v":""},{"$f":"IF('1. Order'!N739=\"\",\"\",'1. Order'!N739)","v":""},null,null,{"$f":"'1. Order'!AV739","v":0},{"$f":"IF('1. Order'!AI739=\"\",\"\",'1. Order'!AI739)","v":""}]
[{"$f":"IF('1. Order'!B740=\"\",\"\",'1. Order'!B740)","v":""},{"$f":"IF('1. Order'!J740=\"\",\"\",'1. Order'!J740)","v":""},{"$f":"IF('1. Order'!K740=\"\",\"\",'1. Order'!K740)","v":""},{"$f":"IF('1. Order'!L740=\"\",\"\",'1. Order'!L740)","v":""},{"$f":"IF('1. Order'!N740=\"\",\"\",'1. Order'!N740)","v":""},null,null,{"$f":"'1. Order'!AV740","v":0},{"$f":"IF('1. Order'!AI740=\"\",\"\",'1. Order'!AI740)","v":""}]
[{"$f":"IF('1. Order'!B741=\"\",\"\",'1. Order'!B741)","v":""},{"$f":"IF('1. Order'!J741=\"\",\"\",'1. Order'!J741)","v":""},{"$f":"IF('1. Order'!K741=\"\",\"\",'1. Order'!K741)","v":""},{"$f":"IF('1. Order'!L741=\"\",\"\",'1. Order'!L741)","v":""},{"$f":"IF('1. Order'!N741=\"\",\"\",'1. Order'!N741)","v":""},null,null,{"$f":"'1. Order'!AV741","v":0},{"$f":"IF('1. Order'!AI741=\"\",\"\",'1. Order'!AI741)","v":""}]
[{"$f":"IF('1. Order'!B742=\"\",\"\",'1. Order'!B742)","v":""},{"$f":"IF('1. Order'!J742=\"\",\"\",'1. Order'!J742)","v":""},{"$f":"IF('1. Order'!K742=\"\",\"\",'1. Order'!K742)","v":""},{"$f":"IF('1. Order'!L742=\"\",\"\",'1. Order'!L742)","v":""},{"$f":"IF('1. Order'!N742=\"\",\"\",'1. Order'!N742)","v":""},null,null,{"$f":"'1. Order'!AV742","v":0},{"$f":"IF('1. Order'!AI742=\"\",\"\",'1. Order'!AI742)","v":""}]
[{"$f":"IF('1. Order'!B743=\"\",\"\",'1. Order'!B743)","v":""},{"$f":"IF('1. Order'!J743=\"\",\"\",'1. Order'!J743)","v":""},{"$f":"IF('1. Order'!K743=\"\",\"\",'1. Order'!K743)","v":""},{"$f":"IF('1. Order'!L743=\"\",\"\",'1. Order'!L743)","v":""},{"$f":"IF('1. Order'!N743=\"\",\"\",'1. Order'!N743)","v":""},null,null,{"$f":"'1. Order'!AV743","v":0},{"$f":"IF('1. Order'!AI743=\"\",\"\",'1. Order'!AI743)","v":""}]
[{"$f":"IF('1. Order'!B744=\"\",\"\",'1. Order'!B744)","v":""},{"$f":"IF('1. Order'!J744=\"\",\"\",'1. Order'!J744)","v":""},{"$f":"IF('1. Order'!K744=\"\",\"\",'1. Order'!K744)","v":""},{"$f":"IF('1. Order'!L744=\"\",\"\",'1. Order'!L744)","v":""},{"$f":"IF('1. Order'!N744=\"\",\"\",'1. Order'!N744)","v":""},null,null,{"$f":"'1. Order'!AV744","v":0},{"$f":"IF('1. Order'!AI744=\"\",\"\",'1. Order'!AI744)","v":""}]
[{"$f":"IF('1. Order'!B745=\"\",\"\",'1. Order'!B745)","v":""},{"$f":"IF('1. Order'!J745=\"\",\"\",'1. Order'!J745)","v":""},{"$f":"IF('1. Order'!K745=\"\",\"\",'1. Order'!K745)","v":""},{"$f":"IF('1. Order'!L745=\"\",\"\",'1. Order'!L745)","v":""},{"$f":"IF('1. Order'!N745=\"\",\"\",'1. Order'!N745)","v":""},null,null,{"$f":"'1. Order'!AV745","v":0},{"$f":"IF('1. Order'!AI745=\"\",\"\",'1. Order'!AI745)","v":""}]
[{"$f":"IF('1. Order'!B746=\"\",\"\",'1. Order'!B746)","v":""},{"$f":"IF('1. Order'!J746=\"\",\"\",'1. Order'!J746)","v":""},{"$f":"IF('1. Order'!K746=\"\",\"\",'1. Order'!K746)","v":""},{"$f":"IF('1. Order'!L746=\"\",\"\",'1. Order'!L746)","v":""},{"$f":"IF('1. Order'!N746=\"\",\"\",'1. Order'!N746)","v":""},null,null,{"$f":"'1. Order'!AV746","v":0},{"$f":"IF('1. Order'!AI746=\"\",\"\",'1. Order'!AI746)","v":""}]
[{"$f":"IF('1. Order'!B747=\"\",\"\",'1. Order'!B747)","v":""},{"$f":"IF('1. Order'!J747=\"\",\"\",'1. Order'!J747)","v":""},{"$f":"IF('1. Order'!K747=\"\",\"\",'1. Order'!K747)","v":""},{"$f":"IF('1. Order'!L747=\"\",\"\",'1. Order'!L747)","v":""},{"$f":"IF('1. Order'!N747=\"\",\"\",'1. Order'!N747)","v":""},null,null,{"$f":"'1. Order'!AV747","v":0},{"$f":"IF('1. Order'!AI747=\"\",\"\",'1. Order'!AI747)","v":""}]
[{"$f":"IF('1. Order'!B748=\"\",\"\",'1. Order'!B748)","v":""},{"$f":"IF('1. Order'!J748=\"\",\"\",'1. Order'!J748)","v":""},{"$f":"IF('1. Order'!K748=\"\",\"\",'1. Order'!K748)","v":""},{"$f":"IF('1. Order'!L748=\"\",\"\",'1. Order'!L748)","v":""},{"$f":"IF('1. Order'!N748=\"\",\"\",'1. Order'!N748)","v":""},null,null,{"$f":"'1. Order'!AV748","v":0},{"$f":"IF('1. Order'!AI748=\"\",\"\",'1. Order'!AI748)","v":""}]
[{"$f":"IF('1. Order'!B749=\"\",\"\",'1. Order'!B749)","v":""},{"$f":"IF('1. Order'!J749=\"\",\"\",'1. Order'!J749)","v":""},{"$f":"IF('1. Order'!K749=\"\",\"\",'1. Order'!K749)","v":""},{"$f":"IF('1. Order'!L749=\"\",\"\",'1. Order'!L749)","v":""},{"$f":"IF('1. Order'!N749=\"\",\"\",'1. Order'!N749)","v":""},null,null,{"$f":"'1. Order'!AV749","v":0},{"$f":"IF('1. Order'!AI749=\"\",\"\",'1. Order'!AI749)","v":""}]
[{"$f":"IF('1. Order'!B750=\"\",\"\",'1. Order'!B750)","v":""},{"$f":"IF('1. Order'!J750=\"\",\"\",'1. Order'!J750)","v":""},{"$f":"IF('1. Order'!K750=\"\",\"\",'1. Order'!K750)","v":""},{"$f":"IF('1. Order'!L750=\"\",\"\",'1. Order'!L750)","v":""},{"$f":"IF('1. Order'!N750=\"\",\"\",'1. Order'!N750)","v":""},null,null,{"$f":"'1. Order'!AV750","v":0},{"$f":"IF('1. Order'!AI750=\"\",\"\",'1. Order'!AI750)","v":""}]
[{"$f":"IF('1. Order'!B751=\"\",\"\",'1. Order'!B751)","v":""},{"$f":"IF('1. Order'!J751=\"\",\"\",'1. Order'!J751)","v":""},{"$f":"IF('1. Order'!K751=\"\",\"\",'1. Order'!K751)","v":""},{"$f":"IF('1. Order'!L751=\"\",\"\",'1. Order'!L751)","v":""},{"$f":"IF('1. Order'!N751=\"\",\"\",'1. Order'!N751)","v":""},null,null,{"$f":"'1. Order'!AV751","v":0},{"$f":"IF('1. Order'!AI751=\"\",\"\",'1. Order'!AI751)","v":""}]
[{"$f":"IF('1. Order'!B752=\"\",\"\",'1. Order'!B752)","v":""},{"$f":"IF('1. Order'!J752=\"\",\"\",'1. Order'!J752)","v":""},{"$f":"IF('1. Order'!K752=\"\",\"\",'1. Order'!K752)","v":""},{"$f":"IF('1. Order'!L752=\"\",\"\",'1. Order'!L752)","v":""},{"$f":"IF('1. Order'!N752=\"\",\"\",'1. Order'!N752)","v":""},null,null,{"$f":"'1. Order'!AV752","v":0},{"$f":"IF('1. Order'!AI752=\"\",\"\",'1. Order'!AI752)","v":""}]
[{"$f":"IF('1. Order'!B753=\"\",\"\",'1. Order'!B753)","v":""},{"$f":"IF('1. Order'!J753=\"\",\"\",'1. Order'!J753)","v":""},{"$f":"IF('1. Order'!K753=\"\",\"\",'1. Order'!K753)","v":""},{"$f":"IF('1. Order'!L753=\"\",\"\",'1. Order'!L753)","v":""},{"$f":"IF('1. Order'!N753=\"\",\"\",'1. Order'!N753)","v":""},null,null,{"$f":"'1. Order'!AV753","v":0},{"$f":"IF('1. Order'!AI753=\"\",\"\",'1. Order'!AI753)","v":""}]
[{"$f":"IF('1. Order'!B754=\"\",\"\",'1. Order'!B754)","v":""},{"$f":"IF('1. Order'!J754=\"\",\"\",'1. Order'!J754)","v":""},{"$f":"IF('1. Order'!K754=\"\",\"\",'1. Order'!K754)","v":""},{"$f":"IF('1. Order'!L754=\"\",\"\",'1. Order'!L754)","v":""},{"$f":"IF('1. Order'!N754=\"\",\"\",'1. Order'!N754)","v":""},null,null,{"$f":"'1. Order'!AV754","v":0},{"$f":"IF('1. Order'!AI754=\"\",\"\",'1. Order'!AI754)","v":""}]
[{"$f":"IF('1. Order'!B755=\"\",\"\",'1. Order'!B755)","v":""},{"$f":"IF('1. Order'!J755=\"\",\"\",'1. Order'!J755)","v":""},{"$f":"IF('1. Order'!K755=\"\",\"\",'1. Order'!K755)","v":""},{"$f":"IF('1. Order'!L755=\"\",\"\",'1. Order'!L755)","v":""},{"$f":"IF('1. Order'!N755=\"\",\"\",'1. Order'!N755)","v":""},null,null,{"$f":"'1. Order'!AV755","v":0},{"$f":"IF('1. Order'!AI755=\"\",\"\",'1. Order'!AI755)","v":""}]
[{"$f":"IF('1. Order'!B756=\"\",\"\",'1. Order'!B756)","v":""},{"$f":"IF('1. Order'!J756=\"\",\"\",'1. Order'!J756)","v":""},{"$f":"IF('1. Order'!K756=\"\",\"\",'1. Order'!K756)","v":""},{"$f":"IF('1. Order'!L756=\"\",\"\",'1. Order'!L756)","v":""},{"$f":"IF('1. Order'!N756=\"\",\"\",'1. Order'!N756)","v":""},null,null,{"$f":"'1. Order'!AV756","v":0},{"$f":"IF('1. Order'!AI756=\"\",\"\",'1. Order'!AI756)","v":""}]
[{"$f":"IF('1. Order'!B757=\"\",\"\",'1. Order'!B757)","v":""},{"$f":"IF('1. Order'!J757=\"\",\"\",'1. Order'!J757)","v":""},{"$f":"IF('1. Order'!K757=\"\",\"\",'1. Order'!K757)","v":""},{"$f":"IF('1. Order'!L757=\"\",\"\",'1. Order'!L757)","v":""},{"$f":"IF('1. Order'!N757=\"\",\"\",'1. Order'!N757)","v":""},null,null,{"$f":"'1. Order'!AV757","v":0},{"$f":"IF('1. Order'!AI757=\"\",\"\",'1. Order'!AI757)","v":""}]
[{"$f":"IF('1. Order'!B758=\"\",\"\",'1. Order'!B758)","v":""},{"$f":"IF('1. Order'!J758=\"\",\"\",'1. Order'!J758)","v":""},{"$f":"IF('1. Order'!K758=\"\",\"\",'1. Order'!K758)","v":""},{"$f":"IF('1. Order'!L758=\"\",\"\",'1. Order'!L758)","v":""},{"$f":"IF('1. Order'!N758=\"\",\"\",'1. Order'!N758)","v":""},null,null,{"$f":"'1. Order'!AV758","v":0},{"$f":"IF('1. Order'!AI758=\"\",\"\",'1. Order'!AI758)","v":""}]
[{"$f":"IF('1. Order'!B759=\"\",\"\",'1. Order'!B759)","v":""},{"$f":"IF('1. Order'!J759=\"\",\"\",'1. Order'!J759)","v":""},{"$f":"IF('1. Order'!K759=\"\",\"\",'1. Order'!K759)","v":""},{"$f":"IF('1. Order'!L759=\"\",\"\",'1. Order'!L759)","v":""},{"$f":"IF('1. Order'!N759=\"\",\"\",'1. Order'!N759)","v":""},null,null,{"$f":"'1. Order'!AV759","v":0},{"$f":"IF('1. Order'!AI759=\"\",\"\",'1. Order'!AI759)","v":""}]
[{"$f":"IF('1. Order'!B760=\"\",\"\",'1. Order'!B760)","v":""},{"$f":"IF('1. Order'!J760=\"\",\"\",'1. Order'!J760)","v":""},{"$f":"IF('1. Order'!K760=\"\",\"\",'1. Order'!K760)","v":""},{"$f":"IF('1. Order'!L760=\"\",\"\",'1. Order'!L760)","v":""},{"$f":"IF('1. Order'!N760=\"\",\"\",'1. Order'!N760)","v":""},null,null,{"$f":"'1. Order'!AV760","v":0},{"$f":"IF('1. Order'!AI760=\"\",\"\",'1. Order'!AI760)","v":""}]
[{"$f":"IF('1. Order'!B761=\"\",\"\",'1. Order'!B761)","v":""},{"$f":"IF('1. Order'!J761=\"\",\"\",'1. Order'!J761)","v":""},{"$f":"IF('1. Order'!K761=\"\",\"\",'1. Order'!K761)","v":""},{"$f":"IF('1. Order'!L761=\"\",\"\",'1. Order'!L761)","v":""},{"$f":"IF('1. Order'!N761=\"\",\"\",'1. Order'!N761)","v":""},null,null,{"$f":"'1. Order'!AV761","v":0},{"$f":"IF('1. Order'!AI761=\"\",\"\",'1. Order'!AI761)","v":""}]
[{"$f":"IF('1. Order'!B762=\"\",\"\",'1. Order'!B762)","v":""},{"$f":"IF('1. Order'!J762=\"\",\"\",'1. Order'!J762)","v":""},{"$f":"IF('1. Order'!K762=\"\",\"\",'1. Order'!K762)","v":""},{"$f":"IF('1. Order'!L762=\"\",\"\",'1. Order'!L762)","v":""},{"$f":"IF('1. Order'!N762=\"\",\"\",'1. Order'!N762)","v":""},null,null,{"$f":"'1. Order'!AV762","v":0},{"$f":"IF('1. Order'!AI762=\"\",\"\",'1. Order'!AI762)","v":""}]
[{"$f":"IF('1. Order'!B763=\"\",\"\",'1. Order'!B763)","v":""},{"$f":"IF('1. Order'!J763=\"\",\"\",'1. Order'!J763)","v":""},{"$f":"IF('1. Order'!K763=\"\",\"\",'1. Order'!K763)","v":""},{"$f":"IF('1. Order'!L763=\"\",\"\",'1. Order'!L763)","v":""},{"$f":"IF('1. Order'!N763=\"\",\"\",'1. Order'!N763)","v":""},null,null,{"$f":"'1. Order'!AV763","v":0},{"$f":"IF('1. Order'!AI763=\"\",\"\",'1. Order'!AI763)","v":""}]
[{"$f":"IF('1. Order'!B764=\"\",\"\",'1. Order'!B764)","v":""},{"$f":"IF('1. Order'!J764=\"\",\"\",'1. Order'!J764)","v":""},{"$f":"IF('1. Order'!K764=\"\",\"\",'1. Order'!K764)","v":""},{"$f":"IF('1. Order'!L764=\"\",\"\",'1. Order'!L764)","v":""},{"$f":"IF('1. Order'!N764=\"\",\"\",'1. Order'!N764)","v":""},null,null,{"$f":"'1. Order'!AV764","v":0},{"$f":"IF('1. Order'!AI764=\"\",\"\",'1. Order'!AI764)","v":""}]
[{"$f":"IF('1. Order'!B765=\"\",\"\",'1. Order'!B765)","v":""},{"$f":"IF('1. Order'!J765=\"\",\"\",'1. Order'!J765)","v":""},{"$f":"IF('1. Order'!K765=\"\",\"\",'1. Order'!K765)","v":""},{"$f":"IF('1. Order'!L765=\"\",\"\",'1. Order'!L765)","v":""},{"$f":"IF('1. Order'!N765=\"\",\"\",'1. Order'!N765)","v":""},null,null,{"$f":"'1. Order'!AV765","v":0},{"$f":"IF('1. Order'!AI765=\"\",\"\",'1. Order'!AI765)","v":""}]
[{"$f":"IF('1. Order'!B766=\"\",\"\",'1. Order'!B766)","v":""},{"$f":"IF('1. Order'!J766=\"\",\"\",'1. Order'!J766)","v":""},{"$f":"IF('1. Order'!K766=\"\",\"\",'1. Order'!K766)","v":""},{"$f":"IF('1. Order'!L766=\"\",\"\",'1. Order'!L766)","v":""},{"$f":"IF('1. Order'!N766=\"\",\"\",'1. Order'!N766)","v":""},null,null,{"$f":"'1. Order'!AV766","v":0},{"$f":"IF('1. Order'!AI766=\"\",\"\",'1. Order'!AI766)","v":""}]
[{"$f":"IF('1. Order'!B767=\"\",\"\",'1. Order'!B767)","v":""},{"$f":"IF('1. Order'!J767=\"\",\"\",'1. Order'!J767)","v":""},{"$f":"IF('1. Order'!K767=\"\",\"\",'1. Order'!K767)","v":""},{"$f":"IF('1. Order'!L767=\"\",\"\",'1. Order'!L767)","v":""},{"$f":"IF('1. Order'!N767=\"\",\"\",'1. Order'!N767)","v":""},null,null,{"$f":"'1. Order'!AV767","v":0},{"$f":"IF('1. Order'!AI767=\"\",\"\",'1. Order'!AI767)","v":""}]
[{"$f":"IF('1. Order'!B768=\"\",\"\",'1. Order'!B768)","v":""},{"$f":"IF('1. Order'!J768=\"\",\"\",'1. Order'!J768)","v":""},{"$f":"IF('1. Order'!K768=\"\",\"\",'1. Order'!K768)","v":""},{"$f":"IF('1. Order'!L768=\"\",\"\",'1. Order'!L768)","v":""},{"$f":"IF('1. Order'!N768=\"\",\"\",'1. Order'!N768)","v":""},null,null,{"$f":"'1. Order'!AV768","v":0},{"$f":"IF('1. Order'!AI768=\"\",\"\",'1. Order'!AI768)","v":""}]
[{"$f":"IF('1. Order'!B769=\"\",\"\",'1. Order'!B769)","v":""},{"$f":"IF('1. Order'!J769=\"\",\"\",'1. Order'!J769)","v":""},{"$f":"IF('1. Order'!K769=\"\",\"\",'1. Order'!K769)","v":""},{"$f":"IF('1. Order'!L769=\"\",\"\",'1. Order'!L769)","v":""},{"$f":"IF('1. Order'!N769=\"\",\"\",'1. Order'!N769)","v":""},null,null,{"$f":"'1. Order'!AV769","v":0},{"$f":"IF('1. Order'!AI769=\"\",\"\",'1. Order'!AI769)","v":""}]
[{"$f":"IF('1. Order'!B770=\"\",\"\",'1. Order'!B770)","v":""},{"$f":"IF('1. Order'!J770=\"\",\"\",'1. Order'!J770)","v":""},{"$f":"IF('1. Order'!K770=\"\",\"\",'1. Order'!K770)","v":""},{"$f":"IF('1. Order'!L770=\"\",\"\",'1. Order'!L770)","v":""},{"$f":"IF('1. Order'!N770=\"\",\"\",'1. Order'!N770)","v":""},null,null,{"$f":"'1. Order'!AV770","v":0},{"$f":"IF('1. Order'!AI770=\"\",\"\",'1. Order'!AI770)","v":""}]
[{"$f":"IF('1. Order'!B771=\"\",\"\",'1. Order'!B771)","v":""},{"$f":"IF('1. Order'!J771=\"\",\"\",'1. Order'!J771)","v":""},{"$f":"IF('1. Order'!K771=\"\",\"\",'1. Order'!K771)","v":""},{"$f":"IF('1. Order'!L771=\"\",\"\",'1. Order'!L771)","v":""},{"$f":"IF('1. Order'!N771=\"\",\"\",'1. Order'!N771)","v":""},null,null,{"$f":"'1. Order'!AV771","v":0},{"$f":"IF('1. Order'!AI771=\"\",\"\",'1. Order'!AI771)","v":""}]
[{"$f":"IF('1. Order'!B772=\"\",\"\",'1. Order'!B772)","v":""},{"$f":"IF('1. Order'!J772=\"\",\"\",'1. Order'!J772)","v":""},{"$f":"IF('1. Order'!K772=\"\",\"\",'1. Order'!K772)","v":""},{"$f":"IF('1. Order'!L772=\"\",\"\",'1. Order'!L772)","v":""},{"$f":"IF('1. Order'!N772=\"\",\"\",'1. Order'!N772)","v":""},null,null,{"$f":"'1. Order'!AV772","v":0},{"$f":"IF('1. Order'!AI772=\"\",\"\",'1. Order'!AI772)","v":""}]
[{"$f":"IF('1. Order'!B773=\"\",\"\",'1. Order'!B773)","v":""},{"$f":"IF('1. Order'!J773=\"\",\"\",'1. Order'!J773)","v":""},{"$f":"IF('1. Order'!K773=\"\",\"\",'1. Order'!K773)","v":""},{"$f":"IF('1. Order'!L773=\"\",\"\",'1. Order'!L773)","v":""},{"$f":"IF('1. Order'!N773=\"\",\"\",'1. Order'!N773)","v":""},null,null,{"$f":"'1. Order'!AV773","v":0},{"$f":"IF('1. Order'!AI773=\"\",\"\",'1. Order'!AI773)","v":""}]
[{"$f":"IF('1. Order'!B774=\"\",\"\",'1. Order'!B774)","v":""},{"$f":"IF('1. Order'!J774=\"\",\"\",'1. Order'!J774)","v":""},{"$f":"IF('1. Order'!K774=\"\",\"\",'1. Order'!K774)","v":""},{"$f":"IF('1. Order'!L774=\"\",\"\",'1. Order'!L774)","v":""},{"$f":"IF('1. Order'!N774=\"\",\"\",'1. Order'!N774)","v":""},null,null,{"$f":"'1. Order'!AV774","v":0},{"$f":"IF('1. Order'!AI774=\"\",\"\",'1. Order'!AI774)","v":""}]
[{"$f":"IF('1. Order'!B775=\"\",\"\",'1. Order'!B775)","v":""},{"$f":"IF('1. Order'!J775=\"\",\"\",'1. Order'!J775)","v":""},{"$f":"IF('1. Order'!K775=\"\",\"\",'1. Order'!K775)","v":""},{"$f":"IF('1. Order'!L775=\"\",\"\",'1. Order'!L775)","v":""},{"$f":"IF('1. Order'!N775=\"\",\"\",'1. Order'!N775)","v":""},null,null,{"$f":"'1. Order'!AV775","v":0},{"$f":"IF('1. Order'!AI775=\"\",\"\",'1. Order'!AI775)","v":""}]
[{"$f":"IF('1. Order'!B776=\"\",\"\",'1. Order'!B776)","v":""},{"$f":"IF('1. Order'!J776=\"\",\"\",'1. Order'!J776)","v":""},{"$f":"IF('1. Order'!K776=\"\",\"\",'1. Order'!K776)","v":""},{"$f":"IF('1. Order'!L776=\"\",\"\",'1. Order'!L776)","v":""},{"$f":"IF('1. Order'!N776=\"\",\"\",'1. Order'!N776)","v":""},null,null,{"$f":"'1. Order'!AV776","v":0},{"$f":"IF('1. Order'!AI776=\"\",\"\",'1. Order'!AI776)","v":""}]
[{"$f":"IF('1. Order'!B777=\"\",\"\",'1. Order'!B777)","v":""},{"$f":"IF('1. Order'!J777=\"\",\"\",'1. Order'!J777)","v":""},{"$f":"IF('1. Order'!K777=\"\",\"\",'1. Order'!K777)","v":""},{"$f":"IF('1. Order'!L777=\"\",\"\",'1. Order'!L777)","v":""},{"$f":"IF('1. Order'!N777=\"\",\"\",'1. Order'!N777)","v":""},null,null,{"$f":"'1. Order'!AV777","v":0},{"$f":"IF('1. Order'!AI777=\"\",\"\",'1. Order'!AI777)","v":""}]
[{"$f":"IF('1. Order'!B778=\"\",\"\",'1. Order'!B778)","v":""},{"$f":"IF('1. Order'!J778=\"\",\"\",'1. Order'!J778)","v":""},{"$f":"IF('1. Order'!K778=\"\",\"\",'1. Order'!K778)","v":""},{"$f":"IF('1. Order'!L778=\"\",\"\",'1. Order'!L778)","v":""},{"$f":"IF('1. Order'!N778=\"\",\"\",'1. Order'!N778)","v":""},null,null,{"$f":"'1. Order'!AV778","v":0},{"$f":"IF('1. Order'!AI778=\"\",\"\",'1. Order'!AI778)","v":""}]
[{"$f":"IF('1. Order'!B779=\"\",\"\",'1. Order'!B779)","v":""},{"$f":"IF('1. Order'!J779=\"\",\"\",'1. Order'!J779)","v":""},{"$f":"IF('1. Order'!K779=\"\",\"\",'1. Order'!K779)","v":""},{"$f":"IF('1. Order'!L779=\"\",\"\",'1. Order'!L779)","v":""},{"$f":"IF('1. Order'!N779=\"\",\"\",'1. Order'!N779)","v":""},null,null,{"$f":"'1. Order'!AV779","v":0},{"$f":"IF('1. Order'!AI779=\"\",\"\",'1. Order'!AI779)","v":""}]
[{"$f":"IF('1. Order'!B780=\"\",\"\",'1. Order'!B780)","v":""},{"$f":"IF('1. Order'!J780=\"\",\"\",'1. Order'!J780)","v":""},{"$f":"IF('1. Order'!K780=\"\",\"\",'1. Order'!K780)","v":""},{"$f":"IF('1. Order'!L780=\"\",\"\",'1. Order'!L780)","v":""},{"$f":"IF('1. Order'!N780=\"\",\"\",'1. Order'!N780)","v":""},null,null,{"$f":"'1. Order'!AV780","v":0},{"$f":"IF('1. Order'!AI780=\"\",\"\",'1. Order'!AI780)","v":""}]
[{"$f":"IF('1. Order'!B781=\"\",\"\",'1. Order'!B781)","v":""},{"$f":"IF('1. Order'!J781=\"\",\"\",'1. Order'!J781)","v":""},{"$f":"IF('1. Order'!K781=\"\",\"\",'1. Order'!K781)","v":""},{"$f":"IF('1. Order'!L781=\"\",\"\",'1. Order'!L781)","v":""},{"$f":"IF('1. Order'!N781=\"\",\"\",'1. Order'!N781)","v":""},null,null,{"$f":"'1. Order'!AV781","v":0},{"$f":"IF('1. Order'!AI781=\"\",\"\",'1. Order'!AI781)","v":""}]
[{"$f":"IF('1. Order'!B782=\"\",\"\",'1. Order'!B782)","v":""},{"$f":"IF('1. Order'!J782=\"\",\"\",'1. Order'!J782)","v":""},{"$f":"IF('1. Order'!K782=\"\",\"\",'1. Order'!K782)","v":""},{"$f":"IF('1. Order'!L782=\"\",\"\",'1. Order'!L782)","v":""},{"$f":"IF('1. Order'!N782=\"\",\"\",'1. Order'!N782)","v":""},null,null,{"$f":"'1. Order'!AV782","v":0},{"$f":"IF('1. Order'!AI782=\"\",\"\",'1. Order'!AI782)","v":""}]
[{"$f":"IF('1. Order'!B783=\"\",\"\",'1. Order'!B783)","v":""},{"$f":"IF('1. Order'!J783=\"\",\"\",'1. Order'!J783)","v":""},{"$f":"IF('1. Order'!K783=\"\",\"\",'1. Order'!K783)","v":""},{"$f":"IF('1. Order'!L783=\"\",\"\",'1. Order'!L783)","v":""},{"$f":"IF('1. Order'!N783=\"\",\"\",'1. Order'!N783)","v":""},null,null,{"$f":"'1. Order'!AV783","v":0},{"$f":"IF('1. Order'!AI783=\"\",\"\",'1. Order'!AI783)","v":""}]
[{"$f":"IF('1. Order'!B784=\"\",\"\",'1. Order'!B784)","v":""},{"$f":"IF('1. Order'!J784=\"\",\"\",'1. Order'!J784)","v":""},{"$f":"IF('1. Order'!K784=\"\",\"\",'1. Order'!K784)","v":""},{"$f":"IF('1. Order'!L784=\"\",\"\",'1. Order'!L784)","v":""},{"$f":"IF('1. Order'!N784=\"\",\"\",'1. Order'!N784)","v":""},null,null,{"$f":"'1. Order'!AV784","v":0},{"$f":"IF('1. Order'!AI784=\"\",\"\",'1. Order'!AI784)","v":""}]
[{"$f":"IF('1. Order'!B785=\"\",\"\",'1. Order'!B785)","v":""},{"$f":"IF('1. Order'!J785=\"\",\"\",'1. Order'!J785)","v":""},{"$f":"IF('1. Order'!K785=\"\",\"\",'1. Order'!K785)","v":""},{"$f":"IF('1. Order'!L785=\"\",\"\",'1. Order'!L785)","v":""},{"$f":"IF('1. Order'!N785=\"\",\"\",'1. Order'!N785)","v":""},null,null,{"$f":"'1. Order'!AV785","v":0},{"$f":"IF('1. Order'!AI785=\"\",\"\",'1. Order'!AI785)","v":""}]
[{"$f":"IF('1. Order'!B786=\"\",\"\",'1. Order'!B786)","v":""},{"$f":"IF('1. Order'!J786=\"\",\"\",'1. Order'!J786)","v":""},{"$f":"IF('1. Order'!K786=\"\",\"\",'1. Order'!K786)","v":""},{"$f":"IF('1. Order'!L786=\"\",\"\",'1. Order'!L786)","v":""},{"$f":"IF('1. Order'!N786=\"\",\"\",'1. Order'!N786)","v":""},null,null,{"$f":"'1. Order'!AV786","v":0},{"$f":"IF('1. Order'!AI786=\"\",\"\",'1. Order'!AI786)","v":""}]
[{"$f":"IF('1. Order'!B787=\"\",\"\",'1. Order'!B787)","v":""},{"$f":"IF('1. Order'!J787=\"\",\"\",'1. Order'!J787)","v":""},{"$f":"IF('1. Order'!K787=\"\",\"\",'1. Order'!K787)","v":""},{"$f":"IF('1. Order'!L787=\"\",\"\",'1. Order'!L787)","v":""},{"$f":"IF('1. Order'!N787=\"\",\"\",'1. Order'!N787)","v":""},null,null,{"$f":"'1. Order'!AV787","v":0},{"$f":"IF('1. Order'!AI787=\"\",\"\",'1. Order'!AI787)","v":""}]
[{"$f":"IF('1. Order'!B788=\"\",\"\",'1. Order'!B788)","v":""},{"$f":"IF('1. Order'!J788=\"\",\"\",'1. Order'!J788)","v":""},{"$f":"IF('1. Order'!K788=\"\",\"\",'1. Order'!K788)","v":""},{"$f":"IF('1. Order'!L788=\"\",\"\",'1. Order'!L788)","v":""},{"$f":"IF('1. Order'!N788=\"\",\"\",'1. Order'!N788)","v":""},null,null,{"$f":"'1. Order'!AV788","v":0},{"$f":"IF('1. Order'!AI788=\"\",\"\",'1. Order'!AI788)","v":""}]
[{"$f":"IF('1. Order'!B789=\"\",\"\",'1. Order'!B789)","v":""},{"$f":"IF('1. Order'!J789=\"\",\"\",'1. Order'!J789)","v":""},{"$f":"IF('1. Order'!K789=\"\",\"\",'1. Order'!K789)","v":""},{"$f":"IF('1. Order'!L789=\"\",\"\",'1. Order'!L789)","v":""},{"$f":"IF('1. Order'!N789=\"\",\"\",'1. Order'!N789)","v":""},null,null,{"$f":"'1. Order'!AV789","v":0},{"$f":"IF('1. Order'!AI789=\"\",\"\",'1. Order'!AI789)","v":""}]
[{"$f":"IF('1. Order'!B790=\"\",\"\",'1. Order'!B790)","v":""},{"$f":"IF('1. Order'!J790=\"\",\"\",'1. Order'!J790)","v":""},{"$f":"IF('1. Order'!K790=\"\",\"\",'1. Order'!K790)","v":""},{"$f":"IF('1. Order'!L790=\"\",\"\",'1. Order'!L790)","v":""},{"$f":"IF('1. Order'!N790=\"\",\"\",'1. Order'!N790)","v":""},null,null,{"$f":"'1. Order'!AV790","v":0},{"$f":"IF('1. Order'!AI790=\"\",\"\",'1. Order'!AI790)","v":""}]
[{"$f":"IF('1. Order'!B791=\"\",\"\",'1. Order'!B791)","v":""},{"$f":"IF('1. Order'!J791=\"\",\"\",'1. Order'!J791)","v":""},{"$f":"IF('1. Order'!K791=\"\",\"\",'1. Order'!K791)","v":""},{"$f":"IF('1. Order'!L791=\"\",\"\",'1. Order'!L791)","v":""},{"$f":"IF('1. Order'!N791=\"\",\"\",'1. Order'!N791)","v":""},null,null,{"$f":"'1. Order'!AV791","v":0},{"$f":"IF('1. Order'!AI791=\"\",\"\",'1. Order'!AI791)","v":""}]
[{"$f":"IF('1. Order'!B792=\"\",\"\",'1. Order'!B792)","v":""},{"$f":"IF('1. Order'!J792=\"\",\"\",'1. Order'!J792)","v":""},{"$f":"IF('1. Order'!K792=\"\",\"\",'1. Order'!K792)","v":""},{"$f":"IF('1. Order'!L792=\"\",\"\",'1. Order'!L792)","v":""},{"$f":"IF('1. Order'!N792=\"\",\"\",'1. Order'!N792)","v":""},null,null,{"$f":"'1. Order'!AV792","v":0},{"$f":"IF('1. Order'!AI792=\"\",\"\",'1. Order'!AI792)","v":""}]
[{"$f":"IF('1. Order'!B793=\"\",\"\",'1. Order'!B793)","v":""},{"$f":"IF('1. Order'!J793=\"\",\"\",'1. Order'!J793)","v":""},{"$f":"IF('1. Order'!K793=\"\",\"\",'1. Order'!K793)","v":""},{"$f":"IF('1. Order'!L793=\"\",\"\",'1. Order'!L793)","v":""},{"$f":"IF('1. Order'!N793=\"\",\"\",'1. Order'!N793)","v":""},null,null,{"$f":"'1. Order'!AV793","v":0},{"$f":"IF('1. Order'!AI793=\"\",\"\",'1. Order'!AI793)","v":""}]
[{"$f":"IF('1. Order'!B794=\"\",\"\",'1. Order'!B794)","v":""},{"$f":"IF('1. Order'!J794=\"\",\"\",'1. Order'!J794)","v":""},{"$f":"IF('1. Order'!K794=\"\",\"\",'1. Order'!K794)","v":""},{"$f":"IF('1. Order'!L794=\"\",\"\",'1. Order'!L794)","v":""},{"$f":"IF('1. Order'!N794=\"\",\"\",'1. Order'!N794)","v":""},null,null,{"$f":"'1. Order'!AV794","v":0},{"$f":"IF('1. Order'!AI794=\"\",\"\",'1. Order'!AI794)","v":""}]
[{"$f":"IF('1. Order'!B795=\"\",\"\",'1. Order'!B795)","v":""},{"$f":"IF('1. Order'!J795=\"\",\"\",'1. Order'!J795)","v":""},{"$f":"IF('1. Order'!K795=\"\",\"\",'1. Order'!K795)","v":""},{"$f":"IF('1. Order'!L795=\"\",\"\",'1. Order'!L795)","v":""},{"$f":"IF('1. Order'!N795=\"\",\"\",'1. Order'!N795)","v":""},null,null,{"$f":"'1. Order'!AV795","v":0},{"$f":"IF('1. Order'!AI795=\"\",\"\",'1. Order'!AI795)","v":""}]
[{"$f":"IF('1. Order'!B796=\"\",\"\",'1. Order'!B796)","v":""},{"$f":"IF('1. Order'!J796=\"\",\"\",'1. Order'!J796)","v":""},{"$f":"IF('1. Order'!K796=\"\",\"\",'1. Order'!K796)","v":""},{"$f":"IF('1. Order'!L796=\"\",\"\",'1. Order'!L796)","v":""},{"$f":"IF('1. Order'!N796=\"\",\"\",'1. Order'!N796)","v":""},null,null,{"$f":"'1. Order'!AV796","v":0},{"$f":"IF('1. Order'!AI796=\"\",\"\",'1. Order'!AI796)","v":""}]
[{"$f":"IF('1. Order'!B797=\"\",\"\",'1. Order'!B797)","v":""},{"$f":"IF('1. Order'!J797=\"\",\"\",'1. Order'!J797)","v":""},{"$f":"IF('1. Order'!K797=\"\",\"\",'1. Order'!K797)","v":""},{"$f":"IF('1. Order'!L797=\"\",\"\",'1. Order'!L797)","v":""},{"$f":"IF('1. Order'!N797=\"\",\"\",'1. Order'!N797)","v":""},null,null,{"$f":"'1. Order'!AV797","v":0},{"$f":"IF('1. Order'!AI797=\"\",\"\",'1. Order'!AI797)","v":""}]
[{"$f":"IF('1. Order'!B798=\"\",\"\",'1. Order'!B798)","v":""},{"$f":"IF('1. Order'!J798=\"\",\"\",'1. Order'!J798)","v":""},{"$f":"IF('1. Order'!K798=\"\",\"\",'1. Order'!K798)","v":""},{"$f":"IF('1. Order'!L798=\"\",\"\",'1. Order'!L798)","v":""},{"$f":"IF('1. Order'!N798=\"\",\"\",'1. Order'!N798)","v":""},null,null,{"$f":"'1. Order'!AV798","v":0},{"$f":"IF('1. Order'!AI798=\"\",\"\",'1. Order'!AI798)","v":""}]
[{"$f":"IF('1. Order'!B799=\"\",\"\",'1. Order'!B799)","v":""},{"$f":"IF('1. Order'!J799=\"\",\"\",'1. Order'!J799)","v":""},{"$f":"IF('1. Order'!K799=\"\",\"\",'1. Order'!K799)","v":""},{"$f":"IF('1. Order'!L799=\"\",\"\",'1. Order'!L799)","v":""},{"$f":"IF('1. Order'!N799=\"\",\"\",'1. Order'!N799)","v":""},null,null,{"$f":"'1. Order'!AV799","v":0},{"$f":"IF('1. Order'!AI799=\"\",\"\",'1. Order'!AI799)","v":""}]
[{"$f":"IF('1. Order'!B800=\"\",\"\",'1. Order'!B800)","v":""},{"$f":"IF('1. Order'!J800=\"\",\"\",'1. Order'!J800)","v":""},{"$f":"IF('1. Order'!K800=\"\",\"\",'1. Order'!K800)","v":""},{"$f":"IF('1. Order'!L800=\"\",\"\",'1. Order'!L800)","v":""},{"$f":"IF('1. Order'!N800=\"\",\"\",'1. Order'!N800)","v":""},null,null,{"$f":"'1. Order'!AV800","v":0},{"$f":"IF('1. Order'!AI800=\"\",\"\",'1. Order'!AI800)","v":""}]
[{"$f":"IF('1. Order'!B801=\"\",\"\",'1. Order'!B801)","v":""},{"$f":"IF('1. Order'!J801=\"\",\"\",'1. Order'!J801)","v":""},{"$f":"IF('1. Order'!K801=\"\",\"\",'1. Order'!K801)","v":""},{"$f":"IF('1. Order'!L801=\"\",\"\",'1. Order'!L801)","v":""},{"$f":"IF('1. Order'!N801=\"\",\"\",'1. Order'!N801)","v":""},null,null,{"$f":"'1. Order'!AV801","v":0},{"$f":"IF('1. Order'!AI801=\"\",\"\",'1. Order'!AI801)","v":""}]
[{"$f":"IF('1. Order'!B802=\"\",\"\",'1. Order'!B802)","v":""},{"$f":"IF('1. Order'!J802=\"\",\"\",'1. Order'!J802)","v":""},{"$f":"IF('1. Order'!K802=\"\",\"\",'1. Order'!K802)","v":""},{"$f":"IF('1. Order'!L802=\"\",\"\",'1. Order'!L802)","v":""},{"$f":"IF('1. Order'!N802=\"\",\"\",'1. Order'!N802)","v":""},null,null,{"$f":"'1. Order'!AV802","v":0},{"$f":"IF('1. Order'!AI802=\"\",\"\",'1. Order'!AI802)","v":""}]
[{"$f":"IF('1. Order'!B803=\"\",\"\",'1. Order'!B803)","v":""},{"$f":"IF('1. Order'!J803=\"\",\"\",'1. Order'!J803)","v":""},{"$f":"IF('1. Order'!K803=\"\",\"\",'1. Order'!K803)","v":""},{"$f":"IF('1. Order'!L803=\"\",\"\",'1. Order'!L803)","v":""},{"$f":"IF('1. Order'!N803=\"\",\"\",'1. Order'!N803)","v":""},null,null,{"$f":"'1. Order'!AV803","v":0},{"$f":"IF('1. Order'!AI803=\"\",\"\",'1. Order'!AI803)","v":""}]
[{"$f":"IF('1. Order'!B804=\"\",\"\",'1. Order'!B804)","v":""},{"$f":"IF('1. Order'!J804=\"\",\"\",'1. Order'!J804)","v":""},{"$f":"IF('1. Order'!K804=\"\",\"\",'1. Order'!K804)","v":""},{"$f":"IF('1. Order'!L804=\"\",\"\",'1. Order'!L804)","v":""},{"$f":"IF('1. Order'!N804=\"\",\"\",'1. Order'!N804)","v":""},null,null,{"$f":"'1. Order'!AV804","v":0},{"$f":"IF('1. Order'!AI804=\"\",\"\",'1. Order'!AI804)","v":""}]
[{"$f":"IF('1. Order'!B805=\"\",\"\",'1. Order'!B805)","v":""},{"$f":"IF('1. Order'!J805=\"\",\"\",'1. Order'!J805)","v":""},{"$f":"IF('1. Order'!K805=\"\",\"\",'1. Order'!K805)","v":""},{"$f":"IF('1. Order'!L805=\"\",\"\",'1. Order'!L805)","v":""},{"$f":"IF('1. Order'!N805=\"\",\"\",'1. Order'!N805)","v":""},null,null,{"$f":"'1. Order'!AV805","v":0},{"$f":"IF('1. Order'!AI805=\"\",\"\",'1. Order'!AI805)","v":""}]
[{"$f":"IF('1. Order'!B806=\"\",\"\",'1. Order'!B806)","v":""},{"$f":"IF('1. Order'!J806=\"\",\"\",'1. Order'!J806)","v":""},{"$f":"IF('1. Order'!K806=\"\",\"\",'1. Order'!K806)","v":""},{"$f":"IF('1. Order'!L806=\"\",\"\",'1. Order'!L806)","v":""},{"$f":"IF('1. Order'!N806=\"\",\"\",'1. Order'!N806)","v":""},null,null,{"$f":"'1. Order'!AV806","v":0},{"$f":"IF('1. Order'!AI806=\"\",\"\",'1. Order'!AI806)","v":""}]
[{"$f":"IF('1. Order'!B807=\"\",\"\",'1. Order'!B807)","v":""},{"$f":"IF('1. Order'!J807=\"\",\"\",'1. Order'!J807)","v":""},{"$f":"IF('1. Order'!K807=\"\",\"\",'1. Order'!K807)","v":""},{"$f":"IF('1. Order'!L807=\"\",\"\",'1. Order'!L807)","v":""},{"$f":"IF('1. Order'!N807=\"\",\"\",'1. Order'!N807)","v":""},null,null,{"$f":"'1. Order'!AV807","v":0},{"$f":"IF('1. Order'!AI807=\"\",\"\",'1. Order'!AI807)","v":""}]
[{"$f":"IF('1. Order'!B808=\"\",\"\",'1. Order'!B808)","v":""},{"$f":"IF('1. Order'!J808=\"\",\"\",'1. Order'!J808)","v":""},{"$f":"IF('1. Order'!K808=\"\",\"\",'1. Order'!K808)","v":""},{"$f":"IF('1. Order'!L808=\"\",\"\",'1. Order'!L808)","v":""},{"$f":"IF('1. Order'!N808=\"\",\"\",'1. Order'!N808)","v":""},null,null,{"$f":"'1. Order'!AV808","v":0},{"$f":"IF('1. Order'!AI808=\"\",\"\",'1. Order'!AI808)","v":""}]
[{"$f":"IF('1. Order'!B809=\"\",\"\",'1. Order'!B809)","v":""},{"$f":"IF('1. Order'!J809=\"\",\"\",'1. Order'!J809)","v":""},{"$f":"IF('1. Order'!K809=\"\",\"\",'1. Order'!K809)","v":""},{"$f":"IF('1. Order'!L809=\"\",\"\",'1. Order'!L809)","v":""},{"$f":"IF('1. Order'!N809=\"\",\"\",'1. Order'!N809)","v":""},null,null,{"$f":"'1. Order'!AV809","v":0},{"$f":"IF('1. Order'!AI809=\"\",\"\",'1. Order'!AI809)","v":""}]
[{"$f":"IF('1. Order'!B810=\"\",\"\",'1. Order'!B810)","v":""},{"$f":"IF('1. Order'!J810=\"\",\"\",'1. Order'!J810)","v":""},{"$f":"IF('1. Order'!K810=\"\",\"\",'1. Order'!K810)","v":""},{"$f":"IF('1. Order'!L810=\"\",\"\",'1. Order'!L810)","v":""},{"$f":"IF('1. Order'!N810=\"\",\"\",'1. Order'!N810)","v":""},null,null,{"$f":"'1. Order'!AV810","v":0},{"$f":"IF('1. Order'!AI810=\"\",\"\",'1. Order'!AI810)","v":""}]
[{"$f":"IF('1. Order'!B811=\"\",\"\",'1. Order'!B811)","v":""},{"$f":"IF('1. Order'!J811=\"\",\"\",'1. Order'!J811)","v":""},{"$f":"IF('1. Order'!K811=\"\",\"\",'1. Order'!K811)","v":""},{"$f":"IF('1. Order'!L811=\"\",\"\",'1. Order'!L811)","v":""},{"$f":"IF('1. Order'!N811=\"\",\"\",'1. Order'!N811)","v":""},null,null,{"$f":"'1. Order'!AV811","v":0},{"$f":"IF('1. Order'!AI811=\"\",\"\",'1. Order'!AI811)","v":""}]
[{"$f":"IF('1. Order'!B812=\"\",\"\",'1. Order'!B812)","v":""},{"$f":"IF('1. Order'!J812=\"\",\"\",'1. Order'!J812)","v":""},{"$f":"IF('1. Order'!K812=\"\",\"\",'1. Order'!K812)","v":""},{"$f":"IF('1. Order'!L812=\"\",\"\",'1. Order'!L812)","v":""},{"$f":"IF('1. Order'!N812=\"\",\"\",'1. Order'!N812)","v":""},null,null,{"$f":"'1. Order'!AV812","v":0},{"$f":"IF('1. Order'!AI812=\"\",\"\",'1. Order'!AI812)","v":""}]
[{"$f":"IF('1. Order'!B813=\"\",\"\",'1. Order'!B813)","v":""},{"$f":"IF('1. Order'!J813=\"\",\"\",'1. Order'!J813)","v":""},{"$f":"IF('1. Order'!K813=\"\",\"\",'1. Order'!K813)","v":""},{"$f":"IF('1. Order'!L813=\"\",\"\",'1. Order'!L813)","v":""},{"$f":"IF('1. Order'!N813=\"\",\"\",'1. Order'!N813)","v":""},null,null,{"$f":"'1. Order'!AV813","v":0},{"$f":"IF('1. Order'!AI813=\"\",\"\",'1. Order'!AI813)","v":""}]
[{"$f":"IF('1. Order'!B814=\"\",\"\",'1. Order'!B814)","v":""},{"$f":"IF('1. Order'!J814=\"\",\"\",'1. Order'!J814)","v":""},{"$f":"IF('1. Order'!K814=\"\",\"\",'1. Order'!K814)","v":""},{"$f":"IF('1. Order'!L814=\"\",\"\",'1. Order'!L814)","v":""},{"$f":"IF('1. Order'!N814=\"\",\"\",'1. Order'!N814)","v":""},null,null,{"$f":"'1. Order'!AV814","v":0},{"$f":"IF('1. Order'!AI814=\"\",\"\",'1. Order'!AI814)","v":""}]
[{"$f":"IF('1. Order'!B815=\"\",\"\",'1. Order'!B815)","v":""},{"$f":"IF('1. Order'!J815=\"\",\"\",'1. Order'!J815)","v":""},{"$f":"IF('1. Order'!K815=\"\",\"\",'1. Order'!K815)","v":""},{"$f":"IF('1. Order'!L815=\"\",\"\",'1. Order'!L815)","v":""},{"$f":"IF('1. Order'!N815=\"\",\"\",'1. Order'!N815)","v":""},null,null,{"$f":"'1. Order'!AV815","v":0},{"$f":"IF('1. Order'!AI815=\"\",\"\",'1. Order'!AI815)","v":""}]
[{"$f":"IF('1. Order'!B816=\"\",\"\",'1. Order'!B816)","v":""},{"$f":"IF('1. Order'!J816=\"\",\"\",'1. Order'!J816)","v":""},{"$f":"IF('1. Order'!K816=\"\",\"\",'1. Order'!K816)","v":""},{"$f":"IF('1. Order'!L816=\"\",\"\",'1. Order'!L816)","v":""},{"$f":"IF('1. Order'!N816=\"\",\"\",'1. Order'!N816)","v":""},null,null,{"$f":"'1. Order'!AV816","v":0},{"$f":"IF('1. Order'!AI816=\"\",\"\",'1. Order'!AI816)","v":""}]
[{"$f":"IF('1. Order'!B817=\"\",\"\",'1. Order'!B817)","v":""},{"$f":"IF('1. Order'!J817=\"\",\"\",'1. Order'!J817)","v":""},{"$f":"IF('1. Order'!K817=\"\",\"\",'1. Order'!K817)","v":""},{"$f":"IF('1. Order'!L817=\"\",\"\",'1. Order'!L817)","v":""},{"$f":"IF('1. Order'!N817=\"\",\"\",'1. Order'!N817)","v":""},null,null,{"$f":"'1. Order'!AV817","v":0},{"$f":"IF('1. Order'!AI817=\"\",\"\",'1. Order'!AI817)","v":""}]
[{"$f":"IF('1. Order'!B818=\"\",\"\",'1. Order'!B818)","v":""},{"$f":"IF('1. Order'!J818=\"\",\"\",'1. Order'!J818)","v":""},{"$f":"IF('1. Order'!K818=\"\",\"\",'1. Order'!K818)","v":""},{"$f":"IF('1. Order'!L818=\"\",\"\",'1. Order'!L818)","v":""},{"$f":"IF('1. Order'!N818=\"\",\"\",'1. Order'!N818)","v":""},null,null,{"$f":"'1. Order'!AV818","v":0},{"$f":"IF('1. Order'!AI818=\"\",\"\",'1. Order'!AI818)","v":""}]
[{"$f":"IF('1. Order'!B819=\"\",\"\",'1. Order'!B819)","v":""},{"$f":"IF('1. Order'!J819=\"\",\"\",'1. Order'!J819)","v":""},{"$f":"IF('1. Order'!K819=\"\",\"\",'1. Order'!K819)","v":""},{"$f":"IF('1. Order'!L819=\"\",\"\",'1. Order'!L819)","v":""},{"$f":"IF('1. Order'!N819=\"\",\"\",'1. Order'!N819)","v":""},null,null,{"$f":"'1. Order'!AV819","v":0},{"$f":"IF('1. Order'!AI819=\"\",\"\",'1. Order'!AI819)","v":""}]
[{"$f":"IF('1. Order'!B820=\"\",\"\",'1. Order'!B820)","v":""},{"$f":"IF('1. Order'!J820=\"\",\"\",'1. Order'!J820)","v":""},{"$f":"IF('1. Order'!K820=\"\",\"\",'1. Order'!K820)","v":""},{"$f":"IF('1. Order'!L820=\"\",\"\",'1. Order'!L820)","v":""},{"$f":"IF('1. Order'!N820=\"\",\"\",'1. Order'!N820)","v":""},null,null,{"$f":"'1. Order'!AV820","v":0},{"$f":"IF('1. Order'!AI820=\"\",\"\",'1. Order'!AI820)","v":""}]
[{"$f":"IF('1. Order'!B821=\"\",\"\",'1. Order'!B821)","v":""},{"$f":"IF('1. Order'!J821=\"\",\"\",'1. Order'!J821)","v":""},{"$f":"IF('1. Order'!K821=\"\",\"\",'1. Order'!K821)","v":""},{"$f":"IF('1. Order'!L821=\"\",\"\",'1. Order'!L821)","v":""},{"$f":"IF('1. Order'!N821=\"\",\"\",'1. Order'!N821)","v":""},null,null,{"$f":"'1. Order'!AV821","v":0},{"$f":"IF('1. Order'!AI821=\"\",\"\",'1. Order'!AI821)","v":""}]
[{"$f":"IF('1. Order'!B822=\"\",\"\",'1. Order'!B822)","v":""},{"$f":"IF('1. Order'!J822=\"\",\"\",'1. Order'!J822)","v":""},{"$f":"IF('1. Order'!K822=\"\",\"\",'1. Order'!K822)","v":""},{"$f":"IF('1. Order'!L822=\"\",\"\",'1. Order'!L822)","v":""},{"$f":"IF('1. Order'!N822=\"\",\"\",'1. Order'!N822)","v":""},null,null,{"$f":"'1. Order'!AV822","v":0},{"$f":"IF('1. Order'!AI822=\"\",\"\",'1. Order'!AI822)","v":""}]
[{"$f":"IF('1. Order'!B823=\"\",\"\",'1. Order'!B823)","v":""},{"$f":"IF('1. Order'!J823=\"\",\"\",'1. Order'!J823)","v":""},{"$f":"IF('1. Order'!K823=\"\",\"\",'1. Order'!K823)","v":""},{"$f":"IF('1. Order'!L823=\"\",\"\",'1. Order'!L823)","v":""},{"$f":"IF('1. Order'!N823=\"\",\"\",'1. Order'!N823)","v":""},null,null,{"$f":"'1. Order'!AV823","v":0},{"$f":"IF('1. Order'!AI823=\"\",\"\",'1. Order'!AI823)","v":""}]
[{"$f":"IF('1. Order'!B824=\"\",\"\",'1. Order'!B824)","v":""},{"$f":"IF('1. Order'!J824=\"\",\"\",'1. Order'!J824)","v":""},{"$f":"IF('1. Order'!K824=\"\",\"\",'1. Order'!K824)","v":""},{"$f":"IF('1. Order'!L824=\"\",\"\",'1. Order'!L824)","v":""},{"$f":"IF('1. Order'!N824=\"\",\"\",'1. Order'!N824)","v":""},null,null,{"$f":"'1. Order'!AV824","v":0},{"$f":"IF('1. Order'!AI824=\"\",\"\",'1. Order'!AI824)","v":""}]
[{"$f":"IF('1. Order'!B825=\"\",\"\",'1. Order'!B825)","v":""},{"$f":"IF('1. Order'!J825=\"\",\"\",'1. Order'!J825)","v":""},{"$f":"IF('1. Order'!K825=\"\",\"\",'1. Order'!K825)","v":""},{"$f":"IF('1. Order'!L825=\"\",\"\",'1. Order'!L825)","v":""},{"$f":"IF('1. Order'!N825=\"\",\"\",'1. Order'!N825)","v":""},null,null,{"$f":"'1. Order'!AV825","v":0},{"$f":"IF('1. Order'!AI825=\"\",\"\",'1. Order'!AI825)","v":""}]
[{"$f":"IF('1. Order'!B826=\"\",\"\",'1. Order'!B826)","v":""},{"$f":"IF('1. Order'!J826=\"\",\"\",'1. Order'!J826)","v":""},{"$f":"IF('1. Order'!K826=\"\",\"\",'1. Order'!K826)","v":""},{"$f":"IF('1. Order'!L826=\"\",\"\",'1. Order'!L826)","v":""},{"$f":"IF('1. Order'!N826=\"\",\"\",'1. Order'!N826)","v":""},null,null,{"$f":"'1. Order'!AV826","v":0},{"$f":"IF('1. Order'!AI826=\"\",\"\",'1. Order'!AI826)","v":""}]
[{"$f":"IF('1. Order'!B827=\"\",\"\",'1. Order'!B827)","v":""},{"$f":"IF('1. Order'!J827=\"\",\"\",'1. Order'!J827)","v":""},{"$f":"IF('1. Order'!K827=\"\",\"\",'1. Order'!K827)","v":""},{"$f":"IF('1. Order'!L827=\"\",\"\",'1. Order'!L827)","v":""},{"$f":"IF('1. Order'!N827=\"\",\"\",'1. Order'!N827)","v":""},null,null,{"$f":"'1. Order'!AV827","v":0},{"$f":"IF('1. Order'!AI827=\"\",\"\",'1. Order'!AI827)","v":""}]
[{"$f":"IF('1. Order'!B828=\"\",\"\",'1. Order'!B828)","v":""},{"$f":"IF('1. Order'!J828=\"\",\"\",'1. Order'!J828)","v":""},{"$f":"IF('1. Order'!K828=\"\",\"\",'1. Order'!K828)","v":""},{"$f":"IF('1. Order'!L828=\"\",\"\",'1. Order'!L828)","v":""},{"$f":"IF('1. Order'!N828=\"\",\"\",'1. Order'!N828)","v":""},null,null,{"$f":"'1. Order'!AV828","v":0},{"$f":"IF('1. Order'!AI828=\"\",\"\",'1. Order'!AI828)","v":""}]
[{"$f":"IF('1. Order'!B829=\"\",\"\",'1. Order'!B829)","v":""},{"$f":"IF('1. Order'!J829=\"\",\"\",'1. Order'!J829)","v":""},{"$f":"IF('1. Order'!K829=\"\",\"\",'1. Order'!K829)","v":""},{"$f":"IF('1. Order'!L829=\"\",\"\",'1. Order'!L829)","v":""},{"$f":"IF('1. Order'!N829=\"\",\"\",'1. Order'!N829)","v":""},null,null,{"$f":"'1. Order'!AV829","v":0},{"$f":"IF('1. Order'!AI829=\"\",\"\",'1. Order'!AI829)","v":""}]
[{"$f":"IF('1. Order'!B830=\"\",\"\",'1. Order'!B830)","v":""},{"$f":"IF('1. Order'!J830=\"\",\"\",'1. Order'!J830)","v":""},{"$f":"IF('1. Order'!K830=\"\",\"\",'1. Order'!K830)","v":""},{"$f":"IF('1. Order'!L830=\"\",\"\",'1. Order'!L830)","v":""},{"$f":"IF('1. Order'!N830=\"\",\"\",'1. Order'!N830)","v":""},null,null,{"$f":"'1. Order'!AV830","v":0},{"$f":"IF('1. Order'!AI830=\"\",\"\",'1. Order'!AI830)","v":""}]
[{"$f":"IF('1. Order'!B831=\"\",\"\",'1. Order'!B831)","v":""},{"$f":"IF('1. Order'!J831=\"\",\"\",'1. Order'!J831)","v":""},{"$f":"IF('1. Order'!K831=\"\",\"\",'1. Order'!K831)","v":""},{"$f":"IF('1. Order'!L831=\"\",\"\",'1. Order'!L831)","v":""},{"$f":"IF('1. Order'!N831=\"\",\"\",'1. Order'!N831)","v":""},null,null,{"$f":"'1. Order'!AV831","v":0},{"$f":"IF('1. Order'!AI831=\"\",\"\",'1. Order'!AI831)","v":""}]
[{"$f":"IF('1. Order'!B832=\"\",\"\",'1. Order'!B832)","v":""},{"$f":"IF('1. Order'!J832=\"\",\"\",'1. Order'!J832)","v":""},{"$f":"IF('1. Order'!K832=\"\",\"\",'1. Order'!K832)","v":""},{"$f":"IF('1. Order'!L832=\"\",\"\",'1. Order'!L832)","v":""},{"$f":"IF('1. Order'!N832=\"\",\"\",'1. Order'!N832)","v":""},null,null,{"$f":"'1. Order'!AV832","v":0},{"$f":"IF('1. Order'!AI832=\"\",\"\",'1. Order'!AI832)","v":""}]
[{"$f":"IF('1. Order'!B833=\"\",\"\",'1. Order'!B833)","v":""},{"$f":"IF('1. Order'!J833=\"\",\"\",'1. Order'!J833)","v":""},{"$f":"IF('1. Order'!K833=\"\",\"\",'1. Order'!K833)","v":""},{"$f":"IF('1. Order'!L833=\"\",\"\",'1. Order'!L833)","v":""},{"$f":"IF('1. Order'!N833=\"\",\"\",'1. Order'!N833)","v":""},null,null,{"$f":"'1. Order'!AV833","v":0},{"$f":"IF('1. Order'!AI833=\"\",\"\",'1. Order'!AI833)","v":""}]
[{"$f":"IF('1. Order'!B834=\"\",\"\",'1. Order'!B834)","v":""},{"$f":"IF('1. Order'!J834=\"\",\"\",'1. Order'!J834)","v":""},{"$f":"IF('1. Order'!K834=\"\",\"\",'1. Order'!K834)","v":""},{"$f":"IF('1. Order'!L834=\"\",\"\",'1. Order'!L834)","v":""},{"$f":"IF('1. Order'!N834=\"\",\"\",'1. Order'!N834)","v":""},null,null,{"$f":"'1. Order'!AV834","v":0},{"$f":"IF('1. Order'!AI834=\"\",\"\",'1. Order'!AI834)","v":""}]
[{"$f":"IF('1. Order'!B835=\"\",\"\",'1. Order'!B835)","v":""},{"$f":"IF('1. Order'!J835=\"\",\"\",'1. Order'!J835)","v":""},{"$f":"IF('1. Order'!K835=\"\",\"\",'1. Order'!K835)","v":""},{"$f":"IF('1. Order'!L835=\"\",\"\",'1. Order'!L835)","v":""},{"$f":"IF('1. Order'!N835=\"\",\"\",'1. Order'!N835)","v":""},null,null,{"$f":"'1. Order'!AV835","v":0},{"$f":"IF('1. Order'!AI835=\"\",\"\",'1. Order'!AI835)","v":""}]
[{"$f":"IF('1. Order'!B836=\"\",\"\",'1. Order'!B836)","v":""},{"$f":"IF('1. Order'!J836=\"\",\"\",'1. Order'!J836)","v":""},{"$f":"IF('1. Order'!K836=\"\",\"\",'1. Order'!K836)","v":""},{"$f":"IF('1. Order'!L836=\"\",\"\",'1. Order'!L836)","v":""},{"$f":"IF('1. Order'!N836=\"\",\"\",'1. Order'!N836)","v":""},null,null,{"$f":"'1. Order'!AV836","v":0},{"$f":"IF('1. Order'!AI836=\"\",\"\",'1. Order'!AI836)","v":""}]
[{"$f":"IF('1. Order'!B837=\"\",\"\",'1. Order'!B837)","v":""},{"$f":"IF('1. Order'!J837=\"\",\"\",'1. Order'!J837)","v":""},{"$f":"IF('1. Order'!K837=\"\",\"\",'1. Order'!K837)","v":""},{"$f":"IF('1. Order'!L837=\"\",\"\",'1. Order'!L837)","v":""},{"$f":"IF('1. Order'!N837=\"\",\"\",'1. Order'!N837)","v":""},null,null,{"$f":"'1. Order'!AV837","v":0},{"$f":"IF('1. Order'!AI837=\"\",\"\",'1. Order'!AI837)","v":""}]
[{"$f":"IF('1. Order'!B838=\"\",\"\",'1. Order'!B838)","v":""},{"$f":"IF('1. Order'!J838=\"\",\"\",'1. Order'!J838)","v":""},{"$f":"IF('1. Order'!K838=\"\",\"\",'1. Order'!K838)","v":""},{"$f":"IF('1. Order'!L838=\"\",\"\",'1. Order'!L838)","v":""},{"$f":"IF('1. Order'!N838=\"\",\"\",'1. Order'!N838)","v":""},null,null,{"$f":"'1. Order'!AV838","v":0},{"$f":"IF('1. Order'!AI838=\"\",\"\",'1. Order'!AI838)","v":""}]
[{"$f":"IF('1. Order'!B839=\"\",\"\",'1. Order'!B839)","v":""},{"$f":"IF('1. Order'!J839=\"\",\"\",'1. Order'!J839)","v":""},{"$f":"IF('1. Order'!K839=\"\",\"\",'1. Order'!K839)","v":""},{"$f":"IF('1. Order'!L839=\"\",\"\",'1. Order'!L839)","v":""},{"$f":"IF('1. Order'!N839=\"\",\"\",'1. Order'!N839)","v":""},null,null,{"$f":"'1. Order'!AV839","v":0},{"$f":"IF('1. Order'!AI839=\"\",\"\",'1. Order'!AI839)","v":""}]
[{"$f":"IF('1. Order'!B840=\"\",\"\",'1. Order'!B840)","v":""},{"$f":"IF('1. Order'!J840=\"\",\"\",'1. Order'!J840)","v":""},{"$f":"IF('1. Order'!K840=\"\",\"\",'1. Order'!K840)","v":""},{"$f":"IF('1. Order'!L840=\"\",\"\",'1. Order'!L840)","v":""},{"$f":"IF('1. Order'!N840=\"\",\"\",'1. Order'!N840)","v":""},null,null,{"$f":"'1. Order'!AV840","v":0},{"$f":"IF('1. Order'!AI840=\"\",\"\",'1. Order'!AI840)","v":""}]
[{"$f":"IF('1. Order'!B841=\"\",\"\",'1. Order'!B841)","v":""},{"$f":"IF('1. Order'!J841=\"\",\"\",'1. Order'!J841)","v":""},{"$f":"IF('1. Order'!K841=\"\",\"\",'1. Order'!K841)","v":""},{"$f":"IF('1. Order'!L841=\"\",\"\",'1. Order'!L841)","v":""},{"$f":"IF('1. Order'!N841=\"\",\"\",'1. Order'!N841)","v":""},null,null,{"$f":"'1. Order'!AV841","v":0},{"$f":"IF('1. Order'!AI841=\"\",\"\",'1. Order'!AI841)","v":""}]
[{"$f":"IF('1. Order'!B842=\"\",\"\",'1. Order'!B842)","v":""},{"$f":"IF('1. Order'!J842=\"\",\"\",'1. Order'!J842)","v":""},{"$f":"IF('1. Order'!K842=\"\",\"\",'1. Order'!K842)","v":""},{"$f":"IF('1. Order'!L842=\"\",\"\",'1. Order'!L842)","v":""},{"$f":"IF('1. Order'!N842=\"\",\"\",'1. Order'!N842)","v":""},null,null,{"$f":"'1. Order'!AV842","v":0},{"$f":"IF('1. Order'!AI842=\"\",\"\",'1. Order'!AI842)","v":""}]
[{"$f":"IF('1. Order'!B843=\"\",\"\",'1. Order'!B843)","v":""},{"$f":"IF('1. Order'!J843=\"\",\"\",'1. Order'!J843)","v":""},{"$f":"IF('1. Order'!K843=\"\",\"\",'1. Order'!K843)","v":""},{"$f":"IF('1. Order'!L843=\"\",\"\",'1. Order'!L843)","v":""},{"$f":"IF('1. Order'!N843=\"\",\"\",'1. Order'!N843)","v":""},null,null,{"$f":"'1. Order'!AV843","v":0},{"$f":"IF('1. Order'!AI843=\"\",\"\",'1. Order'!AI843)","v":""}]
[{"$f":"IF('1. Order'!B844=\"\",\"\",'1. Order'!B844)","v":""},{"$f":"IF('1. Order'!J844=\"\",\"\",'1. Order'!J844)","v":""},{"$f":"IF('1. Order'!K844=\"\",\"\",'1. Order'!K844)","v":""},{"$f":"IF('1. Order'!L844=\"\",\"\",'1. Order'!L844)","v":""},{"$f":"IF('1. Order'!N844=\"\",\"\",'1. Order'!N844)","v":""},null,null,{"$f":"'1. Order'!AV844","v":0},{"$f":"IF('1. Order'!AI844=\"\",\"\",'1. Order'!AI844)","v":""}]
[{"$f":"IF('1. Order'!B845=\"\",\"\",'1. Order'!B845)","v":""},{"$f":"IF('1. Order'!J845=\"\",\"\",'1. Order'!J845)","v":""},{"$f":"IF('1. Order'!K845=\"\",\"\",'1. Order'!K845)","v":""},{"$f":"IF('1. Order'!L845=\"\",\"\",'1. Order'!L845)","v":""},{"$f":"IF('1. Order'!N845=\"\",\"\",'1. Order'!N845)","v":""},null,null,{"$f":"'1. Order'!AV845","v":0},{"$f":"IF('1. Order'!AI845=\"\",\"\",'1. Order'!AI845)","v":""}]
[{"$f":"IF('1. Order'!B846=\"\",\"\",'1. Order'!B846)","v":""},{"$f":"IF('1. Order'!J846=\"\",\"\",'1. Order'!J846)","v":""},{"$f":"IF('1. Order'!K846=\"\",\"\",'1. Order'!K846)","v":""},{"$f":"IF('1. Order'!L846=\"\",\"\",'1. Order'!L846)","v":""},{"$f":"IF('1. Order'!N846=\"\",\"\",'1. Order'!N846)","v":""},null,null,{"$f":"'1. Order'!AV846","v":0},{"$f":"IF('1. Order'!AI846=\"\",\"\",'1. Order'!AI846)","v":""}]
[{"$f":"IF('1. Order'!B847=\"\",\"\",'1. Order'!B847)","v":""},{"$f":"IF('1. Order'!J847=\"\",\"\",'1. Order'!J847)","v":""},{"$f":"IF('1. Order'!K847=\"\",\"\",'1. Order'!K847)","v":""},{"$f":"IF('1. Order'!L847=\"\",\"\",'1. Order'!L847)","v":""},{"$f":"IF('1. Order'!N847=\"\",\"\",'1. Order'!N847)","v":""},null,null,{"$f":"'1. Order'!AV847","v":0},{"$f":"IF('1. Order'!AI847=\"\",\"\",'1. Order'!AI847)","v":""}]
[{"$f":"IF('1. Order'!B848=\"\",\"\",'1. Order'!B848)","v":""},{"$f":"IF('1. Order'!J848=\"\",\"\",'1. Order'!J848)","v":""},{"$f":"IF('1. Order'!K848=\"\",\"\",'1. Order'!K848)","v":""},{"$f":"IF('1. Order'!L848=\"\",\"\",'1. Order'!L848)","v":""},{"$f":"IF('1. Order'!N848=\"\",\"\",'1. Order'!N848)","v":""},null,null,{"$f":"'1. Order'!AV848","v":0},{"$f":"IF('1. Order'!AI848=\"\",\"\",'1. Order'!AI848)","v":""}]
[{"$f":"IF('1. Order'!B849=\"\",\"\",'1. Order'!B849)","v":""},{"$f":"IF('1. Order'!J849=\"\",\"\",'1. Order'!J849)","v":""},{"$f":"IF('1. Order'!K849=\"\",\"\",'1. Order'!K849)","v":""},{"$f":"IF('1. Order'!L849=\"\",\"\",'1. Order'!L849)","v":""},{"$f":"IF('1. Order'!N849=\"\",\"\",'1. Order'!N849)","v":""},null,null,{"$f":"'1. Order'!AV849","v":0},{"$f":"IF('1. Order'!AI849=\"\",\"\",'1. Order'!AI849)","v":""}]
[{"$f":"IF('1. Order'!B850=\"\",\"\",'1. Order'!B850)","v":""},{"$f":"IF('1. Order'!J850=\"\",\"\",'1. Order'!J850)","v":""},{"$f":"IF('1. Order'!K850=\"\",\"\",'1. Order'!K850)","v":""},{"$f":"IF('1. Order'!L850=\"\",\"\",'1. Order'!L850)","v":""},{"$f":"IF('1. Order'!N850=\"\",\"\",'1. Order'!N850)","v":""},null,null,{"$f":"'1. Order'!AV850","v":0},{"$f":"IF('1. Order'!AI850=\"\",\"\",'1. Order'!AI850)","v":""}]
[{"$f":"IF('1. Order'!B851=\"\",\"\",'1. Order'!B851)","v":""},{"$f":"IF('1. Order'!J851=\"\",\"\",'1. Order'!J851)","v":""},{"$f":"IF('1. Order'!K851=\"\",\"\",'1. Order'!K851)","v":""},{"$f":"IF('1. Order'!L851=\"\",\"\",'1. Order'!L851)","v":""},{"$f":"IF('1. Order'!N851=\"\",\"\",'1. Order'!N851)","v":""},null,null,{"$f":"'1. Order'!AV851","v":0},{"$f":"IF('1. Order'!AI851=\"\",\"\",'1. Order'!AI851)","v":""}]
[{"$f":"IF('1. Order'!B852=\"\",\"\",'1. Order'!B852)","v":""},{"$f":"IF('1. Order'!J852=\"\",\"\",'1. Order'!J852)","v":""},{"$f":"IF('1. Order'!K852=\"\",\"\",'1. Order'!K852)","v":""},{"$f":"IF('1. Order'!L852=\"\",\"\",'1. Order'!L852)","v":""},{"$f":"IF('1. Order'!N852=\"\",\"\",'1. Order'!N852)","v":""},null,null,{"$f":"'1. Order'!AV852","v":0},{"$f":"IF('1. Order'!AI852=\"\",\"\",'1. Order'!AI852)","v":""}]
[{"$f":"IF('1. Order'!B853=\"\",\"\",'1. Order'!B853)","v":""},{"$f":"IF('1. Order'!J853=\"\",\"\",'1. Order'!J853)","v":""},{"$f":"IF('1. Order'!K853=\"\",\"\",'1. Order'!K853)","v":""},{"$f":"IF('1. Order'!L853=\"\",\"\",'1. Order'!L853)","v":""},{"$f":"IF('1. Order'!N853=\"\",\"\",'1. Order'!N853)","v":""},null,null,{"$f":"'1. Order'!AV853","v":0},{"$f":"IF('1. Order'!AI853=\"\",\"\",'1. Order'!AI853)","v":""}]
[{"$f":"IF('1. Order'!B854=\"\",\"\",'1. Order'!B854)","v":""},{"$f":"IF('1. Order'!J854=\"\",\"\",'1. Order'!J854)","v":""},{"$f":"IF('1. Order'!K854=\"\",\"\",'1. Order'!K854)","v":""},{"$f":"IF('1. Order'!L854=\"\",\"\",'1. Order'!L854)","v":""},{"$f":"IF('1. Order'!N854=\"\",\"\",'1. Order'!N854)","v":""},null,null,{"$f":"'1. Order'!AV854","v":0},{"$f":"IF('1. Order'!AI854=\"\",\"\",'1. Order'!AI854)","v":""}]
[{"$f":"IF('1. Order'!B855=\"\",\"\",'1. Order'!B855)","v":""},{"$f":"IF('1. Order'!J855=\"\",\"\",'1. Order'!J855)","v":""},{"$f":"IF('1. Order'!K855=\"\",\"\",'1. Order'!K855)","v":""},{"$f":"IF('1. Order'!L855=\"\",\"\",'1. Order'!L855)","v":""},{"$f":"IF('1. Order'!N855=\"\",\"\",'1. Order'!N855)","v":""},null,null,{"$f":"'1. Order'!AV855","v":0},{"$f":"IF('1. Order'!AI855=\"\",\"\",'1. Order'!AI855)","v":""}]
[{"$f":"IF('1. Order'!B856=\"\",\"\",'1. Order'!B856)","v":""},{"$f":"IF('1. Order'!J856=\"\",\"\",'1. Order'!J856)","v":""},{"$f":"IF('1. Order'!K856=\"\",\"\",'1. Order'!K856)","v":""},{"$f":"IF('1. Order'!L856=\"\",\"\",'1. Order'!L856)","v":""},{"$f":"IF('1. Order'!N856=\"\",\"\",'1. Order'!N856)","v":""},null,null,{"$f":"'1. Order'!AV856","v":0},{"$f":"IF('1. Order'!AI856=\"\",\"\",'1. Order'!AI856)","v":""}]
[{"$f":"IF('1. Order'!B857=\"\",\"\",'1. Order'!B857)","v":""},{"$f":"IF('1. Order'!J857=\"\",\"\",'1. Order'!J857)","v":""},{"$f":"IF('1. Order'!K857=\"\",\"\",'1. Order'!K857)","v":""},{"$f":"IF('1. Order'!L857=\"\",\"\",'1. Order'!L857)","v":""},{"$f":"IF('1. Order'!N857=\"\",\"\",'1. Order'!N857)","v":""},null,null,{"$f":"'1. Order'!AV857","v":0},{"$f":"IF('1. Order'!AI857=\"\",\"\",'1. Order'!AI857)","v":""}]
[{"$f":"IF('1. Order'!B858=\"\",\"\",'1. Order'!B858)","v":""},{"$f":"IF('1. Order'!J858=\"\",\"\",'1. Order'!J858)","v":""},{"$f":"IF('1. Order'!K858=\"\",\"\",'1. Order'!K858)","v":""},{"$f":"IF('1. Order'!L858=\"\",\"\",'1. Order'!L858)","v":""},{"$f":"IF('1. Order'!N858=\"\",\"\",'1. Order'!N858)","v":""},null,null,{"$f":"'1. Order'!AV858","v":0},{"$f":"IF('1. Order'!AI858=\"\",\"\",'1. Order'!AI858)","v":""}]
[{"$f":"IF('1. Order'!B859=\"\",\"\",'1. Order'!B859)","v":""},{"$f":"IF('1. Order'!J859=\"\",\"\",'1. Order'!J859)","v":""},{"$f":"IF('1. Order'!K859=\"\",\"\",'1. Order'!K859)","v":""},{"$f":"IF('1. Order'!L859=\"\",\"\",'1. Order'!L859)","v":""},{"$f":"IF('1. Order'!N859=\"\",\"\",'1. Order'!N859)","v":""},null,null,{"$f":"'1. Order'!AV859","v":0},{"$f":"IF('1. Order'!AI859=\"\",\"\",'1. Order'!AI859)","v":""}]
[{"$f":"IF('1. Order'!B860=\"\",\"\",'1. Order'!B860)","v":""},{"$f":"IF('1. Order'!J860=\"\",\"\",'1. Order'!J860)","v":""},{"$f":"IF('1. Order'!K860=\"\",\"\",'1. Order'!K860)","v":""},{"$f":"IF('1. Order'!L860=\"\",\"\",'1. Order'!L860)","v":""},{"$f":"IF('1. Order'!N860=\"\",\"\",'1. Order'!N860)","v":""},null,null,{"$f":"'1. Order'!AV860","v":0},{"$f":"IF('1. Order'!AI860=\"\",\"\",'1. Order'!AI860)","v":""}]
[{"$f":"IF('1. Order'!B861=\"\",\"\",'1. Order'!B861)","v":""},{"$f":"IF('1. Order'!J861=\"\",\"\",'1. Order'!J861)","v":""},{"$f":"IF('1. Order'!K861=\"\",\"\",'1. Order'!K861)","v":""},{"$f":"IF('1. Order'!L861=\"\",\"\",'1. Order'!L861)","v":""},{"$f":"IF('1. Order'!N861=\"\",\"\",'1. Order'!N861)","v":""},null,null,{"$f":"'1. Order'!AV861","v":0},{"$f":"IF('1. Order'!AI861=\"\",\"\",'1. Order'!AI861)","v":""}]
[{"$f":"IF('1. Order'!B862=\"\",\"\",'1. Order'!B862)","v":""},{"$f":"IF('1. Order'!J862=\"\",\"\",'1. Order'!J862)","v":""},{"$f":"IF('1. Order'!K862=\"\",\"\",'1. Order'!K862)","v":""},{"$f":"IF('1. Order'!L862=\"\",\"\",'1. Order'!L862)","v":""},{"$f":"IF('1. Order'!N862=\"\",\"\",'1. Order'!N862)","v":""},null,null,{"$f":"'1. Order'!AV862","v":0},{"$f":"IF('1. Order'!AI862=\"\",\"\",'1. Order'!AI862)","v":""}]
[{"$f":"IF('1. Order'!B863=\"\",\"\",'1. Order'!B863)","v":""},{"$f":"IF('1. Order'!J863=\"\",\"\",'1. Order'!J863)","v":""},{"$f":"IF('1. Order'!K863=\"\",\"\",'1. Order'!K863)","v":""},{"$f":"IF('1. Order'!L863=\"\",\"\",'1. Order'!L863)","v":""},{"$f":"IF('1. Order'!N863=\"\",\"\",'1. Order'!N863)","v":""},null,null,{"$f":"'1. Order'!AV863","v":0},{"$f":"IF('1. Order'!AI863=\"\",\"\",'1. Order'!AI863)","v":""}]
[{"$f":"IF('1. Order'!B864=\"\",\"\",'1. Order'!B864)","v":""},{"$f":"IF('1. Order'!J864=\"\",\"\",'1. Order'!J864)","v":""},{"$f":"IF('1. Order'!K864=\"\",\"\",'1. Order'!K864)","v":""},{"$f":"IF('1. Order'!L864=\"\",\"\",'1. Order'!L864)","v":""},{"$f":"IF('1. Order'!N864=\"\",\"\",'1. Order'!N864)","v":""},null,null,{"$f":"'1. Order'!AV864","v":0},{"$f":"IF('1. Order'!AI864=\"\",\"\",'1. Order'!AI864)","v":""}]
[{"$f":"IF('1. Order'!B865=\"\",\"\",'1. Order'!B865)","v":""},{"$f":"IF('1. Order'!J865=\"\",\"\",'1. Order'!J865)","v":""},{"$f":"IF('1. Order'!K865=\"\",\"\",'1. Order'!K865)","v":""},{"$f":"IF('1. Order'!L865=\"\",\"\",'1. Order'!L865)","v":""},{"$f":"IF('1. Order'!N865=\"\",\"\",'1. Order'!N865)","v":""},null,null,{"$f":"'1. Order'!AV865","v":0},{"$f":"IF('1. Order'!AI865=\"\",\"\",'1. Order'!AI865)","v":""}]
[{"$f":"IF('1. Order'!B866=\"\",\"\",'1. Order'!B866)","v":""},{"$f":"IF('1. Order'!J866=\"\",\"\",'1. Order'!J866)","v":""},{"$f":"IF('1. Order'!K866=\"\",\"\",'1. Order'!K866)","v":""},{"$f":"IF('1. Order'!L866=\"\",\"\",'1. Order'!L866)","v":""},{"$f":"IF('1. Order'!N866=\"\",\"\",'1. Order'!N866)","v":""},null,null,{"$f":"'1. Order'!AV866","v":0},{"$f":"IF('1. Order'!AI866=\"\",\"\",'1. Order'!AI866)","v":""}]
[{"$f":"IF('1. Order'!B867=\"\",\"\",'1. Order'!B867)","v":""},{"$f":"IF('1. Order'!J867=\"\",\"\",'1. Order'!J867)","v":""},{"$f":"IF('1. Order'!K867=\"\",\"\",'1. Order'!K867)","v":""},{"$f":"IF('1. Order'!L867=\"\",\"\",'1. Order'!L867)","v":""},{"$f":"IF('1. Order'!N867=\"\",\"\",'1. Order'!N867)","v":""},null,null,{"$f":"'1. Order'!AV867","v":0},{"$f":"IF('1. Order'!AI867=\"\",\"\",'1. Order'!AI867)","v":""}]
[{"$f":"IF('1. Order'!B868=\"\",\"\",'1. Order'!B868)","v":""},{"$f":"IF('1. Order'!J868=\"\",\"\",'1. Order'!J868)","v":""},{"$f":"IF('1. Order'!K868=\"\",\"\",'1. Order'!K868)","v":""},{"$f":"IF('1. Order'!L868=\"\",\"\",'1. Order'!L868)","v":""},{"$f":"IF('1. Order'!N868=\"\",\"\",'1. Order'!N868)","v":""},null,null,{"$f":"'1. Order'!AV868","v":0},{"$f":"IF('1. Order'!AI868=\"\",\"\",'1. Order'!AI868)","v":""}]
[{"$f":"IF('1. Order'!B869=\"\",\"\",'1. Order'!B869)","v":""},{"$f":"IF('1. Order'!J869=\"\",\"\",'1. Order'!J869)","v":""},{"$f":"IF('1. Order'!K869=\"\",\"\",'1. Order'!K869)","v":""},{"$f":"IF('1. Order'!L869=\"\",\"\",'1. Order'!L869)","v":""},{"$f":"IF('1. Order'!N869=\"\",\"\",'1. Order'!N869)","v":""},null,null,{"$f":"'1. Order'!AV869","v":0},{"$f":"IF('1. Order'!AI869=\"\",\"\",'1. Order'!AI869)","v":""}]
[{"$f":"IF('1. Order'!B870=\"\",\"\",'1. Order'!B870)","v":""},{"$f":"IF('1. Order'!J870=\"\",\"\",'1. Order'!J870)","v":""},{"$f":"IF('1. Order'!K870=\"\",\"\",'1. Order'!K870)","v":""},{"$f":"IF('1. Order'!L870=\"\",\"\",'1. Order'!L870)","v":""},{"$f":"IF('1. Order'!N870=\"\",\"\",'1. Order'!N870)","v":""},null,null,{"$f":"'1. Order'!AV870","v":0},{"$f":"IF('1. Order'!AI870=\"\",\"\",'1. Order'!AI870)","v":""}]
[{"$f":"IF('1. Order'!B871=\"\",\"\",'1. Order'!B871)","v":""},{"$f":"IF('1. Order'!J871=\"\",\"\",'1. Order'!J871)","v":""},{"$f":"IF('1. Order'!K871=\"\",\"\",'1. Order'!K871)","v":""},{"$f":"IF('1. Order'!L871=\"\",\"\",'1. Order'!L871)","v":""},{"$f":"IF('1. Order'!N871=\"\",\"\",'1. Order'!N871)","v":""},null,null,{"$f":"'1. Order'!AV871","v":0},{"$f":"IF('1. Order'!AI871=\"\",\"\",'1. Order'!AI871)","v":""}]
[{"$f":"IF('1. Order'!B872=\"\",\"\",'1. Order'!B872)","v":""},{"$f":"IF('1. Order'!J872=\"\",\"\",'1. Order'!J872)","v":""},{"$f":"IF('1. Order'!K872=\"\",\"\",'1. Order'!K872)","v":""},{"$f":"IF('1. Order'!L872=\"\",\"\",'1. Order'!L872)","v":""},{"$f":"IF('1. Order'!N872=\"\",\"\",'1. Order'!N872)","v":""},null,null,{"$f":"'1. Order'!AV872","v":0},{"$f":"IF('1. Order'!AI872=\"\",\"\",'1. Order'!AI872)","v":""}]
[{"$f":"IF('1. Order'!B873=\"\",\"\",'1. Order'!B873)","v":""},{"$f":"IF('1. Order'!J873=\"\",\"\",'1. Order'!J873)","v":""},{"$f":"IF('1. Order'!K873=\"\",\"\",'1. Order'!K873)","v":""},{"$f":"IF('1. Order'!L873=\"\",\"\",'1. Order'!L873)","v":""},{"$f":"IF('1. Order'!N873=\"\",\"\",'1. Order'!N873)","v":""},null,null,{"$f":"'1. Order'!AV873","v":0},{"$f":"IF('1. Order'!AI873=\"\",\"\",'1. Order'!AI873)","v":""}]
[{"$f":"IF('1. Order'!B874=\"\",\"\",'1. Order'!B874)","v":""},{"$f":"IF('1. Order'!J874=\"\",\"\",'1. Order'!J874)","v":""},{"$f":"IF('1. Order'!K874=\"\",\"\",'1. Order'!K874)","v":""},{"$f":"IF('1. Order'!L874=\"\",\"\",'1. Order'!L874)","v":""},{"$f":"IF('1. Order'!N874=\"\",\"\",'1. Order'!N874)","v":""},null,null,{"$f":"'1. Order'!AV874","v":0},{"$f":"IF('1. Order'!AI874=\"\",\"\",'1. Order'!AI874)","v":""}]
[{"$f":"IF('1. Order'!B875=\"\",\"\",'1. Order'!B875)","v":""},{"$f":"IF('1. Order'!J875=\"\",\"\",'1. Order'!J875)","v":""},{"$f":"IF('1. Order'!K875=\"\",\"\",'1. Order'!K875)","v":""},{"$f":"IF('1. Order'!L875=\"\",\"\",'1. Order'!L875)","v":""},{"$f":"IF('1. Order'!N875=\"\",\"\",'1. Order'!N875)","v":""},null,null,{"$f":"'1. Order'!AV875","v":0},{"$f":"IF('1. Order'!AI875=\"\",\"\",'1. Order'!AI875)","v":""}]
[{"$f":"IF('1. Order'!B876=\"\",\"\",'1. Order'!B876)","v":""},{"$f":"IF('1. Order'!J876=\"\",\"\",'1. Order'!J876)","v":""},{"$f":"IF('1. Order'!K876=\"\",\"\",'1. Order'!K876)","v":""},{"$f":"IF('1. Order'!L876=\"\",\"\",'1. Order'!L876)","v":""},{"$f":"IF('1. Order'!N876=\"\",\"\",'1. Order'!N876)","v":""},null,null,{"$f":"'1. Order'!AV876","v":0},{"$f":"IF('1. Order'!AI876=\"\",\"\",'1. Order'!AI876)","v":""}]
[{"$f":"IF('1. Order'!B877=\"\",\"\",'1. Order'!B877)","v":""},{"$f":"IF('1. Order'!J877=\"\",\"\",'1. Order'!J877)","v":""},{"$f":"IF('1. Order'!K877=\"\",\"\",'1. Order'!K877)","v":""},{"$f":"IF('1. Order'!L877=\"\",\"\",'1. Order'!L877)","v":""},{"$f":"IF('1. Order'!N877=\"\",\"\",'1. Order'!N877)","v":""},null,null,{"$f":"'1. Order'!AV877","v":0},{"$f":"IF('1. Order'!AI877=\"\",\"\",'1. Order'!AI877)","v":""}]
[{"$f":"IF('1. Order'!B878=\"\",\"\",'1. Order'!B878)","v":""},{"$f":"IF('1. Order'!J878=\"\",\"\",'1. Order'!J878)","v":""},{"$f":"IF('1. Order'!K878=\"\",\"\",'1. Order'!K878)","v":""},{"$f":"IF('1. Order'!L878=\"\",\"\",'1. Order'!L878)","v":""},{"$f":"IF('1. Order'!N878=\"\",\"\",'1. Order'!N878)","v":""},null,null,{"$f":"'1. Order'!AV878","v":0},{"$f":"IF('1. Order'!AI878=\"\",\"\",'1. Order'!AI878)","v":""}]
[{"$f":"IF('1. Order'!B879=\"\",\"\",'1. Order'!B879)","v":""},{"$f":"IF('1. Order'!J879=\"\",\"\",'1. Order'!J879)","v":""},{"$f":"IF('1. Order'!K879=\"\",\"\",'1. Order'!K879)","v":""},{"$f":"IF('1. Order'!L879=\"\",\"\",'1. Order'!L879)","v":""},{"$f":"IF('1. Order'!N879=\"\",\"\",'1. Order'!N879)","v":""},null,null,{"$f":"'1. Order'!AV879","v":0},{"$f":"IF('1. Order'!AI879=\"\",\"\",'1. Order'!AI879)","v":""}]
[{"$f":"IF('1. Order'!B880=\"\",\"\",'1. Order'!B880)","v":""},{"$f":"IF('1. Order'!J880=\"\",\"\",'1. Order'!J880)","v":""},{"$f":"IF('1. Order'!K880=\"\",\"\",'1. Order'!K880)","v":""},{"$f":"IF('1. Order'!L880=\"\",\"\",'1. Order'!L880)","v":""},{"$f":"IF('1. Order'!N880=\"\",\"\",'1. Order'!N880)","v":""},null,null,{"$f":"'1. Order'!AV880","v":0},{"$f":"IF('1. Order'!AI880=\"\",\"\",'1. Order'!AI880)","v":""}]
[{"$f":"IF('1. Order'!B881=\"\",\"\",'1. Order'!B881)","v":""},{"$f":"IF('1. Order'!J881=\"\",\"\",'1. Order'!J881)","v":""},{"$f":"IF('1. Order'!K881=\"\",\"\",'1. Order'!K881)","v":""},{"$f":"IF('1. Order'!L881=\"\",\"\",'1. Order'!L881)","v":""},{"$f":"IF('1. Order'!N881=\"\",\"\",'1. Order'!N881)","v":""},null,null,{"$f":"'1. Order'!AV881","v":0},{"$f":"IF('1. Order'!AI881=\"\",\"\",'1. Order'!AI881)","v":""}]
[{"$f":"IF('1. Order'!B882=\"\",\"\",'1. Order'!B882)","v":""},{"$f":"IF('1. Order'!J882=\"\",\"\",'1. Order'!J882)","v":""},{"$f":"IF('1. Order'!K882=\"\",\"\",'1. Order'!K882)","v":""},{"$f":"IF('1. Order'!L882=\"\",\"\",'1. Order'!L882)","v":""},{"$f":"IF('1. Order'!N882=\"\",\"\",'1. Order'!N882)","v":""},null,null,{"$f":"'1. Order'!AV882","v":0},{"$f":"IF('1. Order'!AI882=\"\",\"\",'1. Order'!AI882)","v":""}]
[{"$f":"IF('1. Order'!B883=\"\",\"\",'1. Order'!B883)","v":""},{"$f":"IF('1. Order'!J883=\"\",\"\",'1. Order'!J883)","v":""},{"$f":"IF('1. Order'!K883=\"\",\"\",'1. Order'!K883)","v":""},{"$f":"IF('1. Order'!L883=\"\",\"\",'1. Order'!L883)","v":""},{"$f":"IF('1. Order'!N883=\"\",\"\",'1. Order'!N883)","v":""},null,null,{"$f":"'1. Order'!AV883","v":0},{"$f":"IF('1. Order'!AI883=\"\",\"\",'1. Order'!AI883)","v":""}]
[{"$f":"IF('1. Order'!B884=\"\",\"\",'1. Order'!B884)","v":""},{"$f":"IF('1. Order'!J884=\"\",\"\",'1. Order'!J884)","v":""},{"$f":"IF('1. Order'!K884=\"\",\"\",'1. Order'!K884)","v":""},{"$f":"IF('1. Order'!L884=\"\",\"\",'1. Order'!L884)","v":""},{"$f":"IF('1. Order'!N884=\"\",\"\",'1. Order'!N884)","v":""},null,null,{"$f":"'1. Order'!AV884","v":0},{"$f":"IF('1. Order'!AI884=\"\",\"\",'1. Order'!AI884)","v":""}]
[{"$f":"IF('1. Order'!B885=\"\",\"\",'1. Order'!B885)","v":""},{"$f":"IF('1. Order'!J885=\"\",\"\",'1. Order'!J885)","v":""},{"$f":"IF('1. Order'!K885=\"\",\"\",'1. Order'!K885)","v":""},{"$f":"IF('1. Order'!L885=\"\",\"\",'1. Order'!L885)","v":""},{"$f":"IF('1. Order'!N885=\"\",\"\",'1. Order'!N885)","v":""},null,null,{"$f":"'1. Order'!AV885","v":0},{"$f":"IF('1. Order'!AI885=\"\",\"\",'1. Order'!AI885)","v":""}]
[{"$f":"IF('1. Order'!B886=\"\",\"\",'1. Order'!B886)","v":""},{"$f":"IF('1. Order'!J886=\"\",\"\",'1. Order'!J886)","v":""},{"$f":"IF('1. Order'!K886=\"\",\"\",'1. Order'!K886)","v":""},{"$f":"IF('1. Order'!L886=\"\",\"\",'1. Order'!L886)","v":""},{"$f":"IF('1. Order'!N886=\"\",\"\",'1. Order'!N886)","v":""},null,null,{"$f":"'1. Order'!AV886","v":0},{"$f":"IF('1. Order'!AI886=\"\",\"\",'1. Order'!AI886)","v":""}]
[{"$f":"IF('1. Order'!B887=\"\",\"\",'1. Order'!B887)","v":""},{"$f":"IF('1. Order'!J887=\"\",\"\",'1. Order'!J887)","v":""},{"$f":"IF('1. Order'!K887=\"\",\"\",'1. Order'!K887)","v":""},{"$f":"IF('1. Order'!L887=\"\",\"\",'1. Order'!L887)","v":""},{"$f":"IF('1. Order'!N887=\"\",\"\",'1. Order'!N887)","v":""},null,null,{"$f":"'1. Order'!AV887","v":0},{"$f":"IF('1. Order'!AI887=\"\",\"\",'1. Order'!AI887)","v":""}]
[{"$f":"IF('1. Order'!B888=\"\",\"\",'1. Order'!B888)","v":""},{"$f":"IF('1. Order'!J888=\"\",\"\",'1. Order'!J888)","v":""},{"$f":"IF('1. Order'!K888=\"\",\"\",'1. Order'!K888)","v":""},{"$f":"IF('1. Order'!L888=\"\",\"\",'1. Order'!L888)","v":""},{"$f":"IF('1. Order'!N888=\"\",\"\",'1. Order'!N888)","v":""},null,null,{"$f":"'1. Order'!AV888","v":0},{"$f":"IF('1. Order'!AI888=\"\",\"\",'1. Order'!AI888)","v":""}]
[{"$f":"IF('1. Order'!B889=\"\",\"\",'1. Order'!B889)","v":""},{"$f":"IF('1. Order'!J889=\"\",\"\",'1. Order'!J889)","v":""},{"$f":"IF('1. Order'!K889=\"\",\"\",'1. Order'!K889)","v":""},{"$f":"IF('1. Order'!L889=\"\",\"\",'1. Order'!L889)","v":""},{"$f":"IF('1. Order'!N889=\"\",\"\",'1. Order'!N889)","v":""},null,null,{"$f":"'1. Order'!AV889","v":0},{"$f":"IF('1. Order'!AI889=\"\",\"\",'1. Order'!AI889)","v":""}]
[{"$f":"IF('1. Order'!B890=\"\",\"\",'1. Order'!B890)","v":""},{"$f":"IF('1. Order'!J890=\"\",\"\",'1. Order'!J890)","v":""},{"$f":"IF('1. Order'!K890=\"\",\"\",'1. Order'!K890)","v":""},{"$f":"IF('1. Order'!L890=\"\",\"\",'1. Order'!L890)","v":""},{"$f":"IF('1. Order'!N890=\"\",\"\",'1. Order'!N890)","v":""},null,null,{"$f":"'1. Order'!AV890","v":0},{"$f":"IF('1. Order'!AI890=\"\",\"\",'1. Order'!AI890)","v":""}]
[{"$f":"IF('1. Order'!B891=\"\",\"\",'1. Order'!B891)","v":""},{"$f":"IF('1. Order'!J891=\"\",\"\",'1. Order'!J891)","v":""},{"$f":"IF('1. Order'!K891=\"\",\"\",'1. Order'!K891)","v":""},{"$f":"IF('1. Order'!L891=\"\",\"\",'1. Order'!L891)","v":""},{"$f":"IF('1. Order'!N891=\"\",\"\",'1. Order'!N891)","v":""},null,null,{"$f":"'1. Order'!AV891","v":0},{"$f":"IF('1. Order'!AI891=\"\",\"\",'1. Order'!AI891)","v":""}]
[{"$f":"IF('1. Order'!B892=\"\",\"\",'1. Order'!B892)","v":""},{"$f":"IF('1. Order'!J892=\"\",\"\",'1. Order'!J892)","v":""},{"$f":"IF('1. Order'!K892=\"\",\"\",'1. Order'!K892)","v":""},{"$f":"IF('1. Order'!L892=\"\",\"\",'1. Order'!L892)","v":""},{"$f":"IF('1. Order'!N892=\"\",\"\",'1. Order'!N892)","v":""},null,null,{"$f":"'1. Order'!AV892","v":0},{"$f":"IF('1. Order'!AI892=\"\",\"\",'1. Order'!AI892)","v":""}]
[{"$f":"IF('1. Order'!B893=\"\",\"\",'1. Order'!B893)","v":""},{"$f":"IF('1. Order'!J893=\"\",\"\",'1. Order'!J893)","v":""},{"$f":"IF('1. Order'!K893=\"\",\"\",'1. Order'!K893)","v":""},{"$f":"IF('1. Order'!L893=\"\",\"\",'1. Order'!L893)","v":""},{"$f":"IF('1. Order'!N893=\"\",\"\",'1. Order'!N893)","v":""},null,null,{"$f":"'1. Order'!AV893","v":0},{"$f":"IF('1. Order'!AI893=\"\",\"\",'1. Order'!AI893)","v":""}]
[{"$f":"IF('1. Order'!B894=\"\",\"\",'1. Order'!B894)","v":""},{"$f":"IF('1. Order'!J894=\"\",\"\",'1. Order'!J894)","v":""},{"$f":"IF('1. Order'!K894=\"\",\"\",'1. Order'!K894)","v":""},{"$f":"IF('1. Order'!L894=\"\",\"\",'1. Order'!L894)","v":""},{"$f":"IF('1. Order'!N894=\"\",\"\",'1. Order'!N894)","v":""},null,null,{"$f":"'1. Order'!AV894","v":0},{"$f":"IF('1. Order'!AI894=\"\",\"\",'1. Order'!AI894)","v":""}]
[{"$f":"IF('1. Order'!B895=\"\",\"\",'1. Order'!B895)","v":""},{"$f":"IF('1. Order'!J895=\"\",\"\",'1. Order'!J895)","v":""},{"$f":"IF('1. Order'!K895=\"\",\"\",'1. Order'!K895)","v":""},{"$f":"IF('1. Order'!L895=\"\",\"\",'1. Order'!L895)","v":""},{"$f":"IF('1. Order'!N895=\"\",\"\",'1. Order'!N895)","v":""},null,null,{"$f":"'1. Order'!AV895","v":0},{"$f":"IF('1. Order'!AI895=\"\",\"\",'1. Order'!AI895)","v":""}]
[{"$f":"IF('1. Order'!B896=\"\",\"\",'1. Order'!B896)","v":""},{"$f":"IF('1. Order'!J896=\"\",\"\",'1. Order'!J896)","v":""},{"$f":"IF('1. Order'!K896=\"\",\"\",'1. Order'!K896)","v":""},{"$f":"IF('1. Order'!L896=\"\",\"\",'1. Order'!L896)","v":""},{"$f":"IF('1. Order'!N896=\"\",\"\",'1. Order'!N896)","v":""},null,null,{"$f":"'1. Order'!AV896","v":0},{"$f":"IF('1. Order'!AI896=\"\",\"\",'1. Order'!AI896)","v":""}]
[{"$f":"IF('1. Order'!B897=\"\",\"\",'1. Order'!B897)","v":""},{"$f":"IF('1. Order'!J897=\"\",\"\",'1. Order'!J897)","v":""},{"$f":"IF('1. Order'!K897=\"\",\"\",'1. Order'!K897)","v":""},{"$f":"IF('1. Order'!L897=\"\",\"\",'1. Order'!L897)","v":""},{"$f":"IF('1. Order'!N897=\"\",\"\",'1. Order'!N897)","v":""},null,null,{"$f":"'1. Order'!AV897","v":0},{"$f":"IF('1. Order'!AI897=\"\",\"\",'1. Order'!AI897)","v":""}]
[{"$f":"IF('1. Order'!B898=\"\",\"\",'1. Order'!B898)","v":""},{"$f":"IF('1. Order'!J898=\"\",\"\",'1. Order'!J898)","v":""},{"$f":"IF('1. Order'!K898=\"\",\"\",'1. Order'!K898)","v":""},{"$f":"IF('1. Order'!L898=\"\",\"\",'1. Order'!L898)","v":""},{"$f":"IF('1. Order'!N898=\"\",\"\",'1. Order'!N898)","v":""},null,null,{"$f":"'1. Order'!AV898","v":0},{"$f":"IF('1. Order'!AI898=\"\",\"\",'1. Order'!AI898)","v":""}]
[{"$f":"IF('1. Order'!B899=\"\",\"\",'1. Order'!B899)","v":""},{"$f":"IF('1. Order'!J899=\"\",\"\",'1. Order'!J899)","v":""},{"$f":"IF('1. Order'!K899=\"\",\"\",'1. Order'!K899)","v":""},{"$f":"IF('1. Order'!L899=\"\",\"\",'1. Order'!L899)","v":""},{"$f":"IF('1. Order'!N899=\"\",\"\",'1. Order'!N899)","v":""},null,null,{"$f":"'1. Order'!AV899","v":0},{"$f":"IF('1. Order'!AI899=\"\",\"\",'1. Order'!AI899)","v":""}]
[{"$f":"IF('1. Order'!B900=\"\",\"\",'1. Order'!B900)","v":""},{"$f":"IF('1. Order'!J900=\"\",\"\",'1. Order'!J900)","v":""},{"$f":"IF('1. Order'!K900=\"\",\"\",'1. Order'!K900)","v":""},{"$f":"IF('1. Order'!L900=\"\",\"\",'1. Order'!L900)","v":""},{"$f":"IF('1. Order'!N900=\"\",\"\",'1. Order'!N900)","v":""},null,null,{"$f":"'1. Order'!AV900","v":0},{"$f":"IF('1. Order'!AI900=\"\",\"\",'1. Order'!AI900)","v":""}]
[{"$f":"IF('1. Order'!B901=\"\",\"\",'1. Order'!B901)","v":""},{"$f":"IF('1. Order'!J901=\"\",\"\",'1. Order'!J901)","v":""},{"$f":"IF('1. Order'!K901=\"\",\"\",'1. Order'!K901)","v":""},{"$f":"IF('1. Order'!L901=\"\",\"\",'1. Order'!L901)","v":""},{"$f":"IF('1. Order'!N901=\"\",\"\",'1. Order'!N901)","v":""},null,null,{"$f":"'1. Order'!AV901","v":0},{"$f":"IF('1. Order'!AI901=\"\",\"\",'1. Order'!AI901)","v":""}]
[{"$f":"IF('1. Order'!B902=\"\",\"\",'1. Order'!B902)","v":""},{"$f":"IF('1. Order'!J902=\"\",\"\",'1. Order'!J902)","v":""},{"$f":"IF('1. Order'!K902=\"\",\"\",'1. Order'!K902)","v":""},{"$f":"IF('1. Order'!L902=\"\",\"\",'1. Order'!L902)","v":""},{"$f":"IF('1. Order'!N902=\"\",\"\",'1. Order'!N902)","v":""},null,null,{"$f":"'1. Order'!AV902","v":0},{"$f":"IF('1. Order'!AI902=\"\",\"\",'1. Order'!AI902)","v":""}]
[{"$f":"IF('1. Order'!B903=\"\",\"\",'1. Order'!B903)","v":""},{"$f":"IF('1. Order'!J903=\"\",\"\",'1. Order'!J903)","v":""},{"$f":"IF('1. Order'!K903=\"\",\"\",'1. Order'!K903)","v":""},{"$f":"IF('1. Order'!L903=\"\",\"\",'1. Order'!L903)","v":""},{"$f":"IF('1. Order'!N903=\"\",\"\",'1. Order'!N903)","v":""},null,null,{"$f":"'1. Order'!AV903","v":0},{"$f":"IF('1. Order'!AI903=\"\",\"\",'1. Order'!AI903)","v":""}]
[{"$f":"IF('1. Order'!B904=\"\",\"\",'1. Order'!B904)","v":""},{"$f":"IF('1. Order'!J904=\"\",\"\",'1. Order'!J904)","v":""},{"$f":"IF('1. Order'!K904=\"\",\"\",'1. Order'!K904)","v":""},{"$f":"IF('1. Order'!L904=\"\",\"\",'1. Order'!L904)","v":""},{"$f":"IF('1. Order'!N904=\"\",\"\",'1. Order'!N904)","v":""},null,null,{"$f":"'1. Order'!AV904","v":0},{"$f":"IF('1. Order'!AI904=\"\",\"\",'1. Order'!AI904)","v":""}]
[{"$f":"IF('1. Order'!B905=\"\",\"\",'1. Order'!B905)","v":""},{"$f":"IF('1. Order'!J905=\"\",\"\",'1. Order'!J905)","v":""},{"$f":"IF('1. Order'!K905=\"\",\"\",'1. Order'!K905)","v":""},{"$f":"IF('1. Order'!L905=\"\",\"\",'1. Order'!L905)","v":""},{"$f":"IF('1. Order'!N905=\"\",\"\",'1. Order'!N905)","v":""},null,null,{"$f":"'1. Order'!AV905","v":0},{"$f":"IF('1. Order'!AI905=\"\",\"\",'1. Order'!AI905)","v":""}]
[{"$f":"IF('1. Order'!B906=\"\",\"\",'1. Order'!B906)","v":""},{"$f":"IF('1. Order'!J906=\"\",\"\",'1. Order'!J906)","v":""},{"$f":"IF('1. Order'!K906=\"\",\"\",'1. Order'!K906)","v":""},{"$f":"IF('1. Order'!L906=\"\",\"\",'1. Order'!L906)","v":""},{"$f":"IF('1. Order'!N906=\"\",\"\",'1. Order'!N906)","v":""},null,null,{"$f":"'1. Order'!AV906","v":0},{"$f":"IF('1. Order'!AI906=\"\",\"\",'1. Order'!AI906)","v":""}]
[{"$f":"IF('1. Order'!B907=\"\",\"\",'1. Order'!B907)","v":""},{"$f":"IF('1. Order'!J907=\"\",\"\",'1. Order'!J907)","v":""},{"$f":"IF('1. Order'!K907=\"\",\"\",'1. Order'!K907)","v":""},{"$f":"IF('1. Order'!L907=\"\",\"\",'1. Order'!L907)","v":""},{"$f":"IF('1. Order'!N907=\"\",\"\",'1. Order'!N907)","v":""},null,null,{"$f":"'1. Order'!AV907","v":0},{"$f":"IF('1. Order'!AI907=\"\",\"\",'1. Order'!AI907)","v":""}]
[{"$f":"IF('1. Order'!B908=\"\",\"\",'1. Order'!B908)","v":""},{"$f":"IF('1. Order'!J908=\"\",\"\",'1. Order'!J908)","v":""},{"$f":"IF('1. Order'!K908=\"\",\"\",'1. Order'!K908)","v":""},{"$f":"IF('1. Order'!L908=\"\",\"\",'1. Order'!L908)","v":""},{"$f":"IF('1. Order'!N908=\"\",\"\",'1. Order'!N908)","v":""},null,null,{"$f":"'1. Order'!AV908","v":0},{"$f":"IF('1. Order'!AI908=\"\",\"\",'1. Order'!AI908)","v":""}]
[{"$f":"IF('1. Order'!B909=\"\",\"\",'1. Order'!B909)","v":""},{"$f":"IF('1. Order'!J909=\"\",\"\",'1. Order'!J909)","v":""},{"$f":"IF('1. Order'!K909=\"\",\"\",'1. Order'!K909)","v":""},{"$f":"IF('1. Order'!L909=\"\",\"\",'1. Order'!L909)","v":""},{"$f":"IF('1. Order'!N909=\"\",\"\",'1. Order'!N909)","v":""},null,null,{"$f":"'1. Order'!AV909","v":0},{"$f":"IF('1. Order'!AI909=\"\",\"\",'1. Order'!AI909)","v":""}]
[{"$f":"IF('1. Order'!B910=\"\",\"\",'1. Order'!B910)","v":""},{"$f":"IF('1. Order'!J910=\"\",\"\",'1. Order'!J910)","v":""},{"$f":"IF('1. Order'!K910=\"\",\"\",'1. Order'!K910)","v":""},{"$f":"IF('1. Order'!L910=\"\",\"\",'1. Order'!L910)","v":""},{"$f":"IF('1. Order'!N910=\"\",\"\",'1. Order'!N910)","v":""},null,null,{"$f":"'1. Order'!AV910","v":0},{"$f":"IF('1. Order'!AI910=\"\",\"\",'1. Order'!AI910)","v":""}]
[{"$f":"IF('1. Order'!B911=\"\",\"\",'1. Order'!B911)","v":""},{"$f":"IF('1. Order'!J911=\"\",\"\",'1. Order'!J911)","v":""},{"$f":"IF('1. Order'!K911=\"\",\"\",'1. Order'!K911)","v":""},{"$f":"IF('1. Order'!L911=\"\",\"\",'1. Order'!L911)","v":""},{"$f":"IF('1. Order'!N911=\"\",\"\",'1. Order'!N911)","v":""},null,null,{"$f":"'1. Order'!AV911","v":0},{"$f":"IF('1. Order'!AI911=\"\",\"\",'1. Order'!AI911)","v":""}]
[{"$f":"IF('1. Order'!B912=\"\",\"\",'1. Order'!B912)","v":""},{"$f":"IF('1. Order'!J912=\"\",\"\",'1. Order'!J912)","v":""},{"$f":"IF('1. Order'!K912=\"\",\"\",'1. Order'!K912)","v":""},{"$f":"IF('1. Order'!L912=\"\",\"\",'1. Order'!L912)","v":""},{"$f":"IF('1. Order'!N912=\"\",\"\",'1. Order'!N912)","v":""},null,null,{"$f":"'1. Order'!AV912","v":0},{"$f":"IF('1. Order'!AI912=\"\",\"\",'1. Order'!AI912)","v":""}]
[{"$f":"IF('1. Order'!B913=\"\",\"\",'1. Order'!B913)","v":""},{"$f":"IF('1. Order'!J913=\"\",\"\",'1. Order'!J913)","v":""},{"$f":"IF('1. Order'!K913=\"\",\"\",'1. Order'!K913)","v":""},{"$f":"IF('1. Order'!L913=\"\",\"\",'1. Order'!L913)","v":""},{"$f":"IF('1. Order'!N913=\"\",\"\",'1. Order'!N913)","v":""},null,null,{"$f":"'1. Order'!AV913","v":0},{"$f":"IF('1. Order'!AI913=\"\",\"\",'1. Order'!AI913)","v":""}]
[{"$f":"IF('1. Order'!B914=\"\",\"\",'1. Order'!B914)","v":""},{"$f":"IF('1. Order'!J914=\"\",\"\",'1. Order'!J914)","v":""},{"$f":"IF('1. Order'!K914=\"\",\"\",'1. Order'!K914)","v":""},{"$f":"IF('1. Order'!L914=\"\",\"\",'1. Order'!L914)","v":""},{"$f":"IF('1. Order'!N914=\"\",\"\",'1. Order'!N914)","v":""},null,null,{"$f":"'1. Order'!AV914","v":0},{"$f":"IF('1. Order'!AI914=\"\",\"\",'1. Order'!AI914)","v":""}]
[{"$f":"IF('1. Order'!B915=\"\",\"\",'1. Order'!B915)","v":""},{"$f":"IF('1. Order'!J915=\"\",\"\",'1. Order'!J915)","v":""},{"$f":"IF('1. Order'!K915=\"\",\"\",'1. Order'!K915)","v":""},{"$f":"IF('1. Order'!L915=\"\",\"\",'1. Order'!L915)","v":""},{"$f":"IF('1. Order'!N915=\"\",\"\",'1. Order'!N915)","v":""},null,null,{"$f":"'1. Order'!AV915","v":0},{"$f":"IF('1. Order'!AI915=\"\",\"\",'1. Order'!AI915)","v":""}]
[{"$f":"IF('1. Order'!B916=\"\",\"\",'1. Order'!B916)","v":""},{"$f":"IF('1. Order'!J916=\"\",\"\",'1. Order'!J916)","v":""},{"$f":"IF('1. Order'!K916=\"\",\"\",'1. Order'!K916)","v":""},{"$f":"IF('1. Order'!L916=\"\",\"\",'1. Order'!L916)","v":""},{"$f":"IF('1. Order'!N916=\"\",\"\",'1. Order'!N916)","v":""},null,null,{"$f":"'1. Order'!AV916","v":0},{"$f":"IF('1. Order'!AI916=\"\",\"\",'1. Order'!AI916)","v":""}]
[{"$f":"IF('1. Order'!B917=\"\",\"\",'1. Order'!B917)","v":""},{"$f":"IF('1. Order'!J917=\"\",\"\",'1. Order'!J917)","v":""},{"$f":"IF('1. Order'!K917=\"\",\"\",'1. Order'!K917)","v":""},{"$f":"IF('1. Order'!L917=\"\",\"\",'1. Order'!L917)","v":""},{"$f":"IF('1. Order'!N917=\"\",\"\",'1. Order'!N917)","v":""},null,null,{"$f":"'1. Order'!AV917","v":0},{"$f":"IF('1. Order'!AI917=\"\",\"\",'1. Order'!AI917)","v":""}]
[{"$f":"IF('1. Order'!B918=\"\",\"\",'1. Order'!B918)","v":""},{"$f":"IF('1. Order'!J918=\"\",\"\",'1. Order'!J918)","v":""},{"$f":"IF('1. Order'!K918=\"\",\"\",'1. Order'!K918)","v":""},{"$f":"IF('1. Order'!L918=\"\",\"\",'1. Order'!L918)","v":""},{"$f":"IF('1. Order'!N918=\"\",\"\",'1. Order'!N918)","v":""},null,null,{"$f":"'1. Order'!AV918","v":0},{"$f":"IF('1. Order'!AI918=\"\",\"\",'1. Order'!AI918)","v":""}]
[{"$f":"IF('1. Order'!B919=\"\",\"\",'1. Order'!B919)","v":""},{"$f":"IF('1. Order'!J919=\"\",\"\",'1. Order'!J919)","v":""},{"$f":"IF('1. Order'!K919=\"\",\"\",'1. Order'!K919)","v":""},{"$f":"IF('1. Order'!L919=\"\",\"\",'1. Order'!L919)","v":""},{"$f":"IF('1. Order'!N919=\"\",\"\",'1. Order'!N919)","v":""},null,null,{"$f":"'1. Order'!AV919","v":0},{"$f":"IF('1. Order'!AI919=\"\",\"\",'1. Order'!AI919)","v":""}]
[{"$f":"IF('1. Order'!B920=\"\",\"\",'1. Order'!B920)","v":""},{"$f":"IF('1. Order'!J920=\"\",\"\",'1. Order'!J920)","v":""},{"$f":"IF('1. Order'!K920=\"\",\"\",'1. Order'!K920)","v":""},{"$f":"IF('1. Order'!L920=\"\",\"\",'1. Order'!L920)","v":""},{"$f":"IF('1. Order'!N920=\"\",\"\",'1. Order'!N920)","v":""},null,null,{"$f":"'1. Order'!AV920","v":0},{"$f":"IF('1. Order'!AI920=\"\",\"\",'1. Order'!AI920)","v":""}]
[{"$f":"IF('1. Order'!B921=\"\",\"\",'1. Order'!B921)","v":""},{"$f":"IF('1. Order'!J921=\"\",\"\",'1. Order'!J921)","v":""},{"$f":"IF('1. Order'!K921=\"\",\"\",'1. Order'!K921)","v":""},{"$f":"IF('1. Order'!L921=\"\",\"\",'1. Order'!L921)","v":""},{"$f":"IF('1. Order'!N921=\"\",\"\",'1. Order'!N921)","v":""},null,null,{"$f":"'1. Order'!AV921","v":0},{"$f":"IF('1. Order'!AI921=\"\",\"\",'1. Order'!AI921)","v":""}]
[{"$f":"IF('1. Order'!B922=\"\",\"\",'1. Order'!B922)","v":""},{"$f":"IF('1. Order'!J922=\"\",\"\",'1. Order'!J922)","v":""},{"$f":"IF('1. Order'!K922=\"\",\"\",'1. Order'!K922)","v":""},{"$f":"IF('1. Order'!L922=\"\",\"\",'1. Order'!L922)","v":""},{"$f":"IF('1. Order'!N922=\"\",\"\",'1. Order'!N922)","v":""},null,null,{"$f":"'1. Order'!AV922","v":0},{"$f":"IF('1. Order'!AI922=\"\",\"\",'1. Order'!AI922)","v":""}]
[{"$f":"IF('1. Order'!B923=\"\",\"\",'1. Order'!B923)","v":""},{"$f":"IF('1. Order'!J923=\"\",\"\",'1. Order'!J923)","v":""},{"$f":"IF('1. Order'!K923=\"\",\"\",'1. Order'!K923)","v":""},{"$f":"IF('1. Order'!L923=\"\",\"\",'1. Order'!L923)","v":""},{"$f":"IF('1. Order'!N923=\"\",\"\",'1. Order'!N923)","v":""},null,null,{"$f":"'1. Order'!AV923","v":0},{"$f":"IF('1. Order'!AI923=\"\",\"\",'1. Order'!AI923)","v":""}]
[{"$f":"IF('1. Order'!B924=\"\",\"\",'1. Order'!B924)","v":""},{"$f":"IF('1. Order'!J924=\"\",\"\",'1. Order'!J924)","v":""},{"$f":"IF('1. Order'!K924=\"\",\"\",'1. Order'!K924)","v":""},{"$f":"IF('1. Order'!L924=\"\",\"\",'1. Order'!L924)","v":""},{"$f":"IF('1. Order'!N924=\"\",\"\",'1. Order'!N924)","v":""},null,null,{"$f":"'1. Order'!AV924","v":0},{"$f":"IF('1. Order'!AI924=\"\",\"\",'1. Order'!AI924)","v":""}]
[{"$f":"IF('1. Order'!B925=\"\",\"\",'1. Order'!B925)","v":""},{"$f":"IF('1. Order'!J925=\"\",\"\",'1. Order'!J925)","v":""},{"$f":"IF('1. Order'!K925=\"\",\"\",'1. Order'!K925)","v":""},{"$f":"IF('1. Order'!L925=\"\",\"\",'1. Order'!L925)","v":""},{"$f":"IF('1. Order'!N925=\"\",\"\",'1. Order'!N925)","v":""},null,null,{"$f":"'1. Order'!AV925","v":0},{"$f":"IF('1. Order'!AI925=\"\",\"\",'1. Order'!AI925)","v":""}]
[{"$f":"IF('1. Order'!B926=\"\",\"\",'1. Order'!B926)","v":""},{"$f":"IF('1. Order'!J926=\"\",\"\",'1. Order'!J926)","v":""},{"$f":"IF('1. Order'!K926=\"\",\"\",'1. Order'!K926)","v":""},{"$f":"IF('1. Order'!L926=\"\",\"\",'1. Order'!L926)","v":""},{"$f":"IF('1. Order'!N926=\"\",\"\",'1. Order'!N926)","v":""},null,null,{"$f":"'1. Order'!AV926","v":0},{"$f":"IF('1. Order'!AI926=\"\",\"\",'1. Order'!AI926)","v":""}]
[{"$f":"IF('1. Order'!B927=\"\",\"\",'1. Order'!B927)","v":""},{"$f":"IF('1. Order'!J927=\"\",\"\",'1. Order'!J927)","v":""},{"$f":"IF('1. Order'!K927=\"\",\"\",'1. Order'!K927)","v":""},{"$f":"IF('1. Order'!L927=\"\",\"\",'1. Order'!L927)","v":""},{"$f":"IF('1. Order'!N927=\"\",\"\",'1. Order'!N927)","v":""},null,null,{"$f":"'1. Order'!AV927","v":0},{"$f":"IF('1. Order'!AI927=\"\",\"\",'1. Order'!AI927)","v":""}]
[{"$f":"IF('1. Order'!B928=\"\",\"\",'1. Order'!B928)","v":""},{"$f":"IF('1. Order'!J928=\"\",\"\",'1. Order'!J928)","v":""},{"$f":"IF('1. Order'!K928=\"\",\"\",'1. Order'!K928)","v":""},{"$f":"IF('1. Order'!L928=\"\",\"\",'1. Order'!L928)","v":""},{"$f":"IF('1. Order'!N928=\"\",\"\",'1. Order'!N928)","v":""},null,null,{"$f":"'1. Order'!AV928","v":0},{"$f":"IF('1. Order'!AI928=\"\",\"\",'1. Order'!AI928)","v":""}]
[{"$f":"IF('1. Order'!B929=\"\",\"\",'1. Order'!B929)","v":""},{"$f":"IF('1. Order'!J929=\"\",\"\",'1. Order'!J929)","v":""},{"$f":"IF('1. Order'!K929=\"\",\"\",'1. Order'!K929)","v":""},{"$f":"IF('1. Order'!L929=\"\",\"\",'1. Order'!L929)","v":""},{"$f":"IF('1. Order'!N929=\"\",\"\",'1. Order'!N929)","v":""},null,null,{"$f":"'1. Order'!AV929","v":0},{"$f":"IF('1. Order'!AI929=\"\",\"\",'1. Order'!AI929)","v":""}]
[{"$f":"IF('1. Order'!B930=\"\",\"\",'1. Order'!B930)","v":""},{"$f":"IF('1. Order'!J930=\"\",\"\",'1. Order'!J930)","v":""},{"$f":"IF('1. Order'!K930=\"\",\"\",'1. Order'!K930)","v":""},{"$f":"IF('1. Order'!L930=\"\",\"\",'1. Order'!L930)","v":""},{"$f":"IF('1. Order'!N930=\"\",\"\",'1. Order'!N930)","v":""},null,null,{"$f":"'1. Order'!AV930","v":0},{"$f":"IF('1. Order'!AI930=\"\",\"\",'1. Order'!AI930)","v":""}]
[{"$f":"IF('1. Order'!B931=\"\",\"\",'1. Order'!B931)","v":""},{"$f":"IF('1. Order'!J931=\"\",\"\",'1. Order'!J931)","v":""},{"$f":"IF('1. Order'!K931=\"\",\"\",'1. Order'!K931)","v":""},{"$f":"IF('1. Order'!L931=\"\",\"\",'1. Order'!L931)","v":""},{"$f":"IF('1. Order'!N931=\"\",\"\",'1. Order'!N931)","v":""},null,null,{"$f":"'1. Order'!AV931","v":0},{"$f":"IF('1. Order'!AI931=\"\",\"\",'1. Order'!AI931)","v":""}]
[{"$f":"IF('1. Order'!B932=\"\",\"\",'1. Order'!B932)","v":""},{"$f":"IF('1. Order'!J932=\"\",\"\",'1. Order'!J932)","v":""},{"$f":"IF('1. Order'!K932=\"\",\"\",'1. Order'!K932)","v":""},{"$f":"IF('1. Order'!L932=\"\",\"\",'1. Order'!L932)","v":""},{"$f":"IF('1. Order'!N932=\"\",\"\",'1. Order'!N932)","v":""},null,null,{"$f":"'1. Order'!AV932","v":0},{"$f":"IF('1. Order'!AI932=\"\",\"\",'1. Order'!AI932)","v":""}]
[{"$f":"IF('1. Order'!B933=\"\",\"\",'1. Order'!B933)","v":""},{"$f":"IF('1. Order'!J933=\"\",\"\",'1. Order'!J933)","v":""},{"$f":"IF('1. Order'!K933=\"\",\"\",'1. Order'!K933)","v":""},{"$f":"IF('1. Order'!L933=\"\",\"\",'1. Order'!L933)","v":""},{"$f":"IF('1. Order'!N933=\"\",\"\",'1. Order'!N933)","v":""},null,null,{"$f":"'1. Order'!AV933","v":0},{"$f":"IF('1. Order'!AI933=\"\",\"\",'1. Order'!AI933)","v":""}]
[{"$f":"IF('1. Order'!B934=\"\",\"\",'1. Order'!B934)","v":""},{"$f":"IF('1. Order'!J934=\"\",\"\",'1. Order'!J934)","v":""},{"$f":"IF('1. Order'!K934=\"\",\"\",'1. Order'!K934)","v":""},{"$f":"IF('1. Order'!L934=\"\",\"\",'1. Order'!L934)","v":""},{"$f":"IF('1. Order'!N934=\"\",\"\",'1. Order'!N934)","v":""},null,null,{"$f":"'1. Order'!AV934","v":0},{"$f":"IF('1. Order'!AI934=\"\",\"\",'1. Order'!AI934)","v":""}]
[{"$f":"IF('1. Order'!B935=\"\",\"\",'1. Order'!B935)","v":""},{"$f":"IF('1. Order'!J935=\"\",\"\",'1. Order'!J935)","v":""},{"$f":"IF('1. Order'!K935=\"\",\"\",'1. Order'!K935)","v":""},{"$f":"IF('1. Order'!L935=\"\",\"\",'1. Order'!L935)","v":""},{"$f":"IF('1. Order'!N935=\"\",\"\",'1. Order'!N935)","v":""},null,null,{"$f":"'1. Order'!AV935","v":0},{"$f":"IF('1. Order'!AI935=\"\",\"\",'1. Order'!AI935)","v":""}]
[{"$f":"IF('1. Order'!B936=\"\",\"\",'1. Order'!B936)","v":""},{"$f":"IF('1. Order'!J936=\"\",\"\",'1. Order'!J936)","v":""},{"$f":"IF('1. Order'!K936=\"\",\"\",'1. Order'!K936)","v":""},{"$f":"IF('1. Order'!L936=\"\",\"\",'1. Order'!L936)","v":""},{"$f":"IF('1. Order'!N936=\"\",\"\",'1. Order'!N936)","v":""},null,null,{"$f":"'1. Order'!AV936","v":0},{"$f":"IF('1. Order'!AI936=\"\",\"\",'1. Order'!AI936)","v":""}]
[{"$f":"IF('1. Order'!B937=\"\",\"\",'1. Order'!B937)","v":""},{"$f":"IF('1. Order'!J937=\"\",\"\",'1. Order'!J937)","v":""},{"$f":"IF('1. Order'!K937=\"\",\"\",'1. Order'!K937)","v":""},{"$f":"IF('1. Order'!L937=\"\",\"\",'1. Order'!L937)","v":""},{"$f":"IF('1. Order'!N937=\"\",\"\",'1. Order'!N937)","v":""},null,null,{"$f":"'1. Order'!AV937","v":0},{"$f":"IF('1. Order'!AI937=\"\",\"\",'1. Order'!AI937)","v":""}]
[{"$f":"IF('1. Order'!B938=\"\",\"\",'1. Order'!B938)","v":""},{"$f":"IF('1. Order'!J938=\"\",\"\",'1. Order'!J938)","v":""},{"$f":"IF('1. Order'!K938=\"\",\"\",'1. Order'!K938)","v":""},{"$f":"IF('1. Order'!L938=\"\",\"\",'1. Order'!L938)","v":""},{"$f":"IF('1. Order'!N938=\"\",\"\",'1. Order'!N938)","v":""},null,null,{"$f":"'1. Order'!AV938","v":0},{"$f":"IF('1. Order'!AI938=\"\",\"\",'1. Order'!AI938)","v":""}]
[{"$f":"IF('1. Order'!B939=\"\",\"\",'1. Order'!B939)","v":""},{"$f":"IF('1. Order'!J939=\"\",\"\",'1. Order'!J939)","v":""},{"$f":"IF('1. Order'!K939=\"\",\"\",'1. Order'!K939)","v":""},{"$f":"IF('1. Order'!L939=\"\",\"\",'1. Order'!L939)","v":""},{"$f":"IF('1. Order'!N939=\"\",\"\",'1. Order'!N939)","v":""},null,null,{"$f":"'1. Order'!AV939","v":0},{"$f":"IF('1. Order'!AI939=\"\",\"\",'1. Order'!AI939)","v":""}]
[{"$f":"IF('1. Order'!B940=\"\",\"\",'1. Order'!B940)","v":""},{"$f":"IF('1. Order'!J940=\"\",\"\",'1. Order'!J940)","v":""},{"$f":"IF('1. Order'!K940=\"\",\"\",'1. Order'!K940)","v":""},{"$f":"IF('1. Order'!L940=\"\",\"\",'1. Order'!L940)","v":""},{"$f":"IF('1. Order'!N940=\"\",\"\",'1. Order'!N940)","v":""},null,null,{"$f":"'1. Order'!AV940","v":0},{"$f":"IF('1. Order'!AI940=\"\",\"\",'1. Order'!AI940)","v":""}]
[{"$f":"IF('1. Order'!B941=\"\",\"\",'1. Order'!B941)","v":""},{"$f":"IF('1. Order'!J941=\"\",\"\",'1. Order'!J941)","v":""},{"$f":"IF('1. Order'!K941=\"\",\"\",'1. Order'!K941)","v":""},{"$f":"IF('1. Order'!L941=\"\",\"\",'1. Order'!L941)","v":""},{"$f":"IF('1. Order'!N941=\"\",\"\",'1. Order'!N941)","v":""},null,null,{"$f":"'1. Order'!AV941","v":0},{"$f":"IF('1. Order'!AI941=\"\",\"\",'1. Order'!AI941)","v":""}]
[{"$f":"IF('1. Order'!B942=\"\",\"\",'1. Order'!B942)","v":""},{"$f":"IF('1. Order'!J942=\"\",\"\",'1. Order'!J942)","v":""},{"$f":"IF('1. Order'!K942=\"\",\"\",'1. Order'!K942)","v":""},{"$f":"IF('1. Order'!L942=\"\",\"\",'1. Order'!L942)","v":""},{"$f":"IF('1. Order'!N942=\"\",\"\",'1. Order'!N942)","v":""},null,null,{"$f":"'1. Order'!AV942","v":0},{"$f":"IF('1. Order'!AI942=\"\",\"\",'1. Order'!AI942)","v":""}]
[{"$f":"IF('1. Order'!B943=\"\",\"\",'1. Order'!B943)","v":""},{"$f":"IF('1. Order'!J943=\"\",\"\",'1. Order'!J943)","v":""},{"$f":"IF('1. Order'!K943=\"\",\"\",'1. Order'!K943)","v":""},{"$f":"IF('1. Order'!L943=\"\",\"\",'1. Order'!L943)","v":""},{"$f":"IF('1. Order'!N943=\"\",\"\",'1. Order'!N943)","v":""},null,null,{"$f":"'1. Order'!AV943","v":0},{"$f":"IF('1. Order'!AI943=\"\",\"\",'1. Order'!AI943)","v":""}]
[{"$f":"IF('1. Order'!B944=\"\",\"\",'1. Order'!B944)","v":""},{"$f":"IF('1. Order'!J944=\"\",\"\",'1. Order'!J944)","v":""},{"$f":"IF('1. Order'!K944=\"\",\"\",'1. Order'!K944)","v":""},{"$f":"IF('1. Order'!L944=\"\",\"\",'1. Order'!L944)","v":""},{"$f":"IF('1. Order'!N944=\"\",\"\",'1. Order'!N944)","v":""},null,null,{"$f":"'1. Order'!AV944","v":0},{"$f":"IF('1. Order'!AI944=\"\",\"\",'1. Order'!AI944)","v":""}]
[{"$f":"IF('1. Order'!B945=\"\",\"\",'1. Order'!B945)","v":""},{"$f":"IF('1. Order'!J945=\"\",\"\",'1. Order'!J945)","v":""},{"$f":"IF('1. Order'!K945=\"\",\"\",'1. Order'!K945)","v":""},{"$f":"IF('1. Order'!L945=\"\",\"\",'1. Order'!L945)","v":""},{"$f":"IF('1. Order'!N945=\"\",\"\",'1. Order'!N945)","v":""},null,null,{"$f":"'1. Order'!AV945","v":0},{"$f":"IF('1. Order'!AI945=\"\",\"\",'1. Order'!AI945)","v":""}]
[{"$f":"IF('1. Order'!B946=\"\",\"\",'1. Order'!B946)","v":""},{"$f":"IF('1. Order'!J946=\"\",\"\",'1. Order'!J946)","v":""},{"$f":"IF('1. Order'!K946=\"\",\"\",'1. Order'!K946)","v":""},{"$f":"IF('1. Order'!L946=\"\",\"\",'1. Order'!L946)","v":""},{"$f":"IF('1. Order'!N946=\"\",\"\",'1. Order'!N946)","v":""},null,null,{"$f":"'1. Order'!AV946","v":0},{"$f":"IF('1. Order'!AI946=\"\",\"\",'1. Order'!AI946)","v":""}]
[{"$f":"IF('1. Order'!B947=\"\",\"\",'1. Order'!B947)","v":""},{"$f":"IF('1. Order'!J947=\"\",\"\",'1. Order'!J947)","v":""},{"$f":"IF('1. Order'!K947=\"\",\"\",'1. Order'!K947)","v":""},{"$f":"IF('1. Order'!L947=\"\",\"\",'1. Order'!L947)","v":""},{"$f":"IF('1. Order'!N947=\"\",\"\",'1. Order'!N947)","v":""},null,null,{"$f":"'1. Order'!AV947","v":0},{"$f":"IF('1. Order'!AI947=\"\",\"\",'1. Order'!AI947)","v":""}]
[{"$f":"IF('1. Order'!B948=\"\",\"\",'1. Order'!B948)","v":""},{"$f":"IF('1. Order'!J948=\"\",\"\",'1. Order'!J948)","v":""},{"$f":"IF('1. Order'!K948=\"\",\"\",'1. Order'!K948)","v":""},{"$f":"IF('1. Order'!L948=\"\",\"\",'1. Order'!L948)","v":""},{"$f":"IF('1. Order'!N948=\"\",\"\",'1. Order'!N948)","v":""},null,null,{"$f":"'1. Order'!AV948","v":0},{"$f":"IF('1. Order'!AI948=\"\",\"\",'1. Order'!AI948)","v":""}]
[{"$f":"IF('1. Order'!B949=\"\",\"\",'1. Order'!B949)","v":""},{"$f":"IF('1. Order'!J949=\"\",\"\",'1. Order'!J949)","v":""},{"$f":"IF('1. Order'!K949=\"\",\"\",'1. Order'!K949)","v":""},{"$f":"IF('1. Order'!L949=\"\",\"\",'1. Order'!L949)","v":""},{"$f":"IF('1. Order'!N949=\"\",\"\",'1. Order'!N949)","v":""},null,null,{"$f":"'1. Order'!AV949","v":0},{"$f":"IF('1. Order'!AI949=\"\",\"\",'1. Order'!AI949)","v":""}]
[{"$f":"IF('1. Order'!B950=\"\",\"\",'1. Order'!B950)","v":""},{"$f":"IF('1. Order'!J950=\"\",\"\",'1. Order'!J950)","v":""},{"$f":"IF('1. Order'!K950=\"\",\"\",'1. Order'!K950)","v":""},{"$f":"IF('1. Order'!L950=\"\",\"\",'1. Order'!L950)","v":""},{"$f":"IF('1. Order'!N950=\"\",\"\",'1. Order'!N950)","v":""},null,null,{"$f":"'1. Order'!AV950","v":0},{"$f":"IF('1. Order'!AI950=\"\",\"\",'1. Order'!AI950)","v":""}]
[{"$f":"IF('1. Order'!B951=\"\",\"\",'1. Order'!B951)","v":""},{"$f":"IF('1. Order'!J951=\"\",\"\",'1. Order'!J951)","v":""},{"$f":"IF('1. Order'!K951=\"\",\"\",'1. Order'!K951)","v":""},{"$f":"IF('1. Order'!L951=\"\",\"\",'1. Order'!L951)","v":""},{"$f":"IF('1. Order'!N951=\"\",\"\",'1. Order'!N951)","v":""},null,null,{"$f":"'1. Order'!AV951","v":0},{"$f":"IF('1. Order'!AI951=\"\",\"\",'1. Order'!AI951)","v":""}]
[{"$f":"IF('1. Order'!B952=\"\",\"\",'1. Order'!B952)","v":""},{"$f":"IF('1. Order'!J952=\"\",\"\",'1. Order'!J952)","v":""},{"$f":"IF('1. Order'!K952=\"\",\"\",'1. Order'!K952)","v":""},{"$f":"IF('1. Order'!L952=\"\",\"\",'1. Order'!L952)","v":""},{"$f":"IF('1. Order'!N952=\"\",\"\",'1. Order'!N952)","v":""},null,null,{"$f":"'1. Order'!AV952","v":0},{"$f":"IF('1. Order'!AI952=\"\",\"\",'1. Order'!AI952)","v":""}]
[{"$f":"IF('1. Order'!B953=\"\",\"\",'1. Order'!B953)","v":""},{"$f":"IF('1. Order'!J953=\"\",\"\",'1. Order'!J953)","v":""},{"$f":"IF('1. Order'!K953=\"\",\"\",'1. Order'!K953)","v":""},{"$f":"IF('1. Order'!L953=\"\",\"\",'1. Order'!L953)","v":""},{"$f":"IF('1. Order'!N953=\"\",\"\",'1. Order'!N953)","v":""},null,null,{"$f":"'1. Order'!AV953","v":0},{"$f":"IF('1. Order'!AI953=\"\",\"\",'1. Order'!AI953)","v":""}]
[{"$f":"IF('1. Order'!B954=\"\",\"\",'1. Order'!B954)","v":""},{"$f":"IF('1. Order'!J954=\"\",\"\",'1. Order'!J954)","v":""},{"$f":"IF('1. Order'!K954=\"\",\"\",'1. Order'!K954)","v":""},{"$f":"IF('1. Order'!L954=\"\",\"\",'1. Order'!L954)","v":""},{"$f":"IF('1. Order'!N954=\"\",\"\",'1. Order'!N954)","v":""},null,null,{"$f":"'1. Order'!AV954","v":0},{"$f":"IF('1. Order'!AI954=\"\",\"\",'1. Order'!AI954)","v":""}]
[{"$f":"IF('1. Order'!B955=\"\",\"\",'1. Order'!B955)","v":""},{"$f":"IF('1. Order'!J955=\"\",\"\",'1. Order'!J955)","v":""},{"$f":"IF('1. Order'!K955=\"\",\"\",'1. Order'!K955)","v":""},{"$f":"IF('1. Order'!L955=\"\",\"\",'1. Order'!L955)","v":""},{"$f":"IF('1. Order'!N955=\"\",\"\",'1. Order'!N955)","v":""},null,null,{"$f":"'1. Order'!AV955","v":0},{"$f":"IF('1. Order'!AI955=\"\",\"\",'1. Order'!AI955)","v":""}]
[{"$f":"IF('1. Order'!B956=\"\",\"\",'1. Order'!B956)","v":""},{"$f":"IF('1. Order'!J956=\"\",\"\",'1. Order'!J956)","v":""},{"$f":"IF('1. Order'!K956=\"\",\"\",'1. Order'!K956)","v":""},{"$f":"IF('1. Order'!L956=\"\",\"\",'1. Order'!L956)","v":""},{"$f":"IF('1. Order'!N956=\"\",\"\",'1. Order'!N956)","v":""},null,null,{"$f":"'1. Order'!AV956","v":0},{"$f":"IF('1. Order'!AI956=\"\",\"\",'1. Order'!AI956)","v":""}]
[{"$f":"IF('1. Order'!B957=\"\",\"\",'1. Order'!B957)","v":""},{"$f":"IF('1. Order'!J957=\"\",\"\",'1. Order'!J957)","v":""},{"$f":"IF('1. Order'!K957=\"\",\"\",'1. Order'!K957)","v":""},{"$f":"IF('1. Order'!L957=\"\",\"\",'1. Order'!L957)","v":""},{"$f":"IF('1. Order'!N957=\"\",\"\",'1. Order'!N957)","v":""},null,null,{"$f":"'1. Order'!AV957","v":0},{"$f":"IF('1. Order'!AI957=\"\",\"\",'1. Order'!AI957)","v":""}]
[{"$f":"IF('1. Order'!B958=\"\",\"\",'1. Order'!B958)","v":""},{"$f":"IF('1. Order'!J958=\"\",\"\",'1. Order'!J958)","v":""},{"$f":"IF('1. Order'!K958=\"\",\"\",'1. Order'!K958)","v":""},{"$f":"IF('1. Order'!L958=\"\",\"\",'1. Order'!L958)","v":""},{"$f":"IF('1. Order'!N958=\"\",\"\",'1. Order'!N958)","v":""},null,null,{"$f":"'1. Order'!AV958","v":0},{"$f":"IF('1. Order'!AI958=\"\",\"\",'1. Order'!AI958)","v":""}]
[{"$f":"IF('1. Order'!B959=\"\",\"\",'1. Order'!B959)","v":""},{"$f":"IF('1. Order'!J959=\"\",\"\",'1. Order'!J959)","v":""},{"$f":"IF('1. Order'!K959=\"\",\"\",'1. Order'!K959)","v":""},{"$f":"IF('1. Order'!L959=\"\",\"\",'1. Order'!L959)","v":""},{"$f":"IF('1. Order'!N959=\"\",\"\",'1. Order'!N959)","v":""},null,null,{"$f":"'1. Order'!AV959","v":0},{"$f":"IF('1. Order'!AI959=\"\",\"\",'1. Order'!AI959)","v":""}]
[{"$f":"IF('1. Order'!B960=\"\",\"\",'1. Order'!B960)","v":""},{"$f":"IF('1. Order'!J960=\"\",\"\",'1. Order'!J960)","v":""},{"$f":"IF('1. Order'!K960=\"\",\"\",'1. Order'!K960)","v":""},{"$f":"IF('1. Order'!L960=\"\",\"\",'1. Order'!L960)","v":""},{"$f":"IF('1. Order'!N960=\"\",\"\",'1. Order'!N960)","v":""},null,null,{"$f":"'1. Order'!AV960","v":0},{"$f":"IF('1. Order'!AI960=\"\",\"\",'1. Order'!AI960)","v":""}]
[{"$f":"IF('1. Order'!B961=\"\",\"\",'1. Order'!B961)","v":""},{"$f":"IF('1. Order'!J961=\"\",\"\",'1. Order'!J961)","v":""},{"$f":"IF('1. Order'!K961=\"\",\"\",'1. Order'!K961)","v":""},{"$f":"IF('1. Order'!L961=\"\",\"\",'1. Order'!L961)","v":""},{"$f":"IF('1. Order'!N961=\"\",\"\",'1. Order'!N961)","v":""},null,null,{"$f":"'1. Order'!AV961","v":0},{"$f":"IF('1. Order'!AI961=\"\",\"\",'1. Order'!AI961)","v":""}]
[{"$f":"IF('1. Order'!B962=\"\",\"\",'1. Order'!B962)","v":""},{"$f":"IF('1. Order'!J962=\"\",\"\",'1. Order'!J962)","v":""},{"$f":"IF('1. Order'!K962=\"\",\"\",'1. Order'!K962)","v":""},{"$f":"IF('1. Order'!L962=\"\",\"\",'1. Order'!L962)","v":""},{"$f":"IF('1. Order'!N962=\"\",\"\",'1. Order'!N962)","v":""},null,null,{"$f":"'1. Order'!AV962","v":0},{"$f":"IF('1. Order'!AI962=\"\",\"\",'1. Order'!AI962)","v":""}]
[{"$f":"IF('1. Order'!B963=\"\",\"\",'1. Order'!B963)","v":""},{"$f":"IF('1. Order'!J963=\"\",\"\",'1. Order'!J963)","v":""},{"$f":"IF('1. Order'!K963=\"\",\"\",'1. Order'!K963)","v":""},{"$f":"IF('1. Order'!L963=\"\",\"\",'1. Order'!L963)","v":""},{"$f":"IF('1. Order'!N963=\"\",\"\",'1. Order'!N963)","v":""},null,null,{"$f":"'1. Order'!AV963","v":0},{"$f":"IF('1. Order'!AI963=\"\",\"\",'1. Order'!AI963)","v":""}]
[{"$f":"IF('1. Order'!B964=\"\",\"\",'1. Order'!B964)","v":""},{"$f":"IF('1. Order'!J964=\"\",\"\",'1. Order'!J964)","v":""},{"$f":"IF('1. Order'!K964=\"\",\"\",'1. Order'!K964)","v":""},{"$f":"IF('1. Order'!L964=\"\",\"\",'1. Order'!L964)","v":""},{"$f":"IF('1. Order'!N964=\"\",\"\",'1. Order'!N964)","v":""},null,null,{"$f":"'1. Order'!AV964","v":0},{"$f":"IF('1. Order'!AI964=\"\",\"\",'1. Order'!AI964)","v":""}]
[{"$f":"IF('1. Order'!B965=\"\",\"\",'1. Order'!B965)","v":""},{"$f":"IF('1. Order'!J965=\"\",\"\",'1. Order'!J965)","v":""},{"$f":"IF('1. Order'!K965=\"\",\"\",'1. Order'!K965)","v":""},{"$f":"IF('1. Order'!L965=\"\",\"\",'1. Order'!L965)","v":""},{"$f":"IF('1. Order'!N965=\"\",\"\",'1. Order'!N965)","v":""},null,null,{"$f":"'1. Order'!AV965","v":0},{"$f":"IF('1. Order'!AI965=\"\",\"\",'1. Order'!AI965)","v":""}]
[{"$f":"IF('1. Order'!B966=\"\",\"\",'1. Order'!B966)","v":""},{"$f":"IF('1. Order'!J966=\"\",\"\",'1. Order'!J966)","v":""},{"$f":"IF('1. Order'!K966=\"\",\"\",'1. Order'!K966)","v":""},{"$f":"IF('1. Order'!L966=\"\",\"\",'1. Order'!L966)","v":""},{"$f":"IF('1. Order'!N966=\"\",\"\",'1. Order'!N966)","v":""},null,null,{"$f":"'1. Order'!AV966","v":0},{"$f":"IF('1. Order'!AI966=\"\",\"\",'1. Order'!AI966)","v":""}]
[{"$f":"IF('1. Order'!B967=\"\",\"\",'1. Order'!B967)","v":""},{"$f":"IF('1. Order'!J967=\"\",\"\",'1. Order'!J967)","v":""},{"$f":"IF('1. Order'!K967=\"\",\"\",'1. Order'!K967)","v":""},{"$f":"IF('1. Order'!L967=\"\",\"\",'1. Order'!L967)","v":""},{"$f":"IF('1. Order'!N967=\"\",\"\",'1. Order'!N967)","v":""},null,null,{"$f":"'1. Order'!AV967","v":0},{"$f":"IF('1. Order'!AI967=\"\",\"\",'1. Order'!AI967)","v":""}]
[{"$f":"IF('1. Order'!B968=\"\",\"\",'1. Order'!B968)","v":""},{"$f":"IF('1. Order'!J968=\"\",\"\",'1. Order'!J968)","v":""},{"$f":"IF('1. Order'!K968=\"\",\"\",'1. Order'!K968)","v":""},{"$f":"IF('1. Order'!L968=\"\",\"\",'1. Order'!L968)","v":""},{"$f":"IF('1. Order'!N968=\"\",\"\",'1. Order'!N968)","v":""},null,null,{"$f":"'1. Order'!AV968","v":0},{"$f":"IF('1. Order'!AI968=\"\",\"\",'1. Order'!AI968)","v":""}]
[{"$f":"IF('1. Order'!B969=\"\",\"\",'1. Order'!B969)","v":""},{"$f":"IF('1. Order'!J969=\"\",\"\",'1. Order'!J969)","v":""},{"$f":"IF('1. Order'!K969=\"\",\"\",'1. Order'!K969)","v":""},{"$f":"IF('1. Order'!L969=\"\",\"\",'1. Order'!L969)","v":""},{"$f":"IF('1. Order'!N969=\"\",\"\",'1. Order'!N969)","v":""},null,null,{"$f":"'1. Order'!AV969","v":0},{"$f":"IF('1. Order'!AI969=\"\",\"\",'1. Order'!AI969)","v":""}]
[{"$f":"IF('1. Order'!B970=\"\",\"\",'1. Order'!B970)","v":""},{"$f":"IF('1. Order'!J970=\"\",\"\",'1. Order'!J970)","v":""},{"$f":"IF('1. Order'!K970=\"\",\"\",'1. Order'!K970)","v":""},{"$f":"IF('1. Order'!L970=\"\",\"\",'1. Order'!L970)","v":""},{"$f":"IF('1. Order'!N970=\"\",\"\",'1. Order'!N970)","v":""},null,null,{"$f":"'1. Order'!AV970","v":0},{"$f":"IF('1. Order'!AI970=\"\",\"\",'1. Order'!AI970)","v":""}]
[{"$f":"IF('1. Order'!B971=\"\",\"\",'1. Order'!B971)","v":""},{"$f":"IF('1. Order'!J971=\"\",\"\",'1. Order'!J971)","v":""},{"$f":"IF('1. Order'!K971=\"\",\"\",'1. Order'!K971)","v":""},{"$f":"IF('1. Order'!L971=\"\",\"\",'1. Order'!L971)","v":""},{"$f":"IF('1. Order'!N971=\"\",\"\",'1. Order'!N971)","v":""},null,null,{"$f":"'1. Order'!AV971","v":0},{"$f":"IF('1. Order'!AI971=\"\",\"\",'1. Order'!AI971)","v":""}]
[{"$f":"IF('1. Order'!B972=\"\",\"\",'1. Order'!B972)","v":""},{"$f":"IF('1. Order'!J972=\"\",\"\",'1. Order'!J972)","v":""},{"$f":"IF('1. Order'!K972=\"\",\"\",'1. Order'!K972)","v":""},{"$f":"IF('1. Order'!L972=\"\",\"\",'1. Order'!L972)","v":""},{"$f":"IF('1. Order'!N972=\"\",\"\",'1. Order'!N972)","v":""},null,null,{"$f":"'1. Order'!AV972","v":0},{"$f":"IF('1. Order'!AI972=\"\",\"\",'1. Order'!AI972)","v":""}]
[{"$f":"IF('1. Order'!B973=\"\",\"\",'1. Order'!B973)","v":""},{"$f":"IF('1. Order'!J973=\"\",\"\",'1. Order'!J973)","v":""},{"$f":"IF('1. Order'!K973=\"\",\"\",'1. Order'!K973)","v":""},{"$f":"IF('1. Order'!L973=\"\",\"\",'1. Order'!L973)","v":""},{"$f":"IF('1. Order'!N973=\"\",\"\",'1. Order'!N973)","v":""},null,null,{"$f":"'1. Order'!AV973","v":0},{"$f":"IF('1. Order'!AI973=\"\",\"\",'1. Order'!AI973)","v":""}]
[{"$f":"IF('1. Order'!B974=\"\",\"\",'1. Order'!B974)","v":""},{"$f":"IF('1. Order'!J974=\"\",\"\",'1. Order'!J974)","v":""},{"$f":"IF('1. Order'!K974=\"\",\"\",'1. Order'!K974)","v":""},{"$f":"IF('1. Order'!L974=\"\",\"\",'1. Order'!L974)","v":""},{"$f":"IF('1. Order'!N974=\"\",\"\",'1. Order'!N974)","v":""},null,null,{"$f":"'1. Order'!AV974","v":0},{"$f":"IF('1. Order'!AI974=\"\",\"\",'1. Order'!AI974)","v":""}]
[{"$f":"IF('1. Order'!B975=\"\",\"\",'1. Order'!B975)","v":""},{"$f":"IF('1. Order'!J975=\"\",\"\",'1. Order'!J975)","v":""},{"$f":"IF('1. Order'!K975=\"\",\"\",'1. Order'!K975)","v":""},{"$f":"IF('1. Order'!L975=\"\",\"\",'1. Order'!L975)","v":""},{"$f":"IF('1. Order'!N975=\"\",\"\",'1. Order'!N975)","v":""},null,null,{"$f":"'1. Order'!AV975","v":0},{"$f":"IF('1. Order'!AI975=\"\",\"\",'1. Order'!AI975)","v":""}]
[{"$f":"IF('1. Order'!B976=\"\",\"\",'1. Order'!B976)","v":""},{"$f":"IF('1. Order'!J976=\"\",\"\",'1. Order'!J976)","v":""},{"$f":"IF('1. Order'!K976=\"\",\"\",'1. Order'!K976)","v":""},{"$f":"IF('1. Order'!L976=\"\",\"\",'1. Order'!L976)","v":""},{"$f":"IF('1. Order'!N976=\"\",\"\",'1. Order'!N976)","v":""},null,null,{"$f":"'1. Order'!AV976","v":0},{"$f":"IF('1. Order'!AI976=\"\",\"\",'1. Order'!AI976)","v":""}]
[{"$f":"IF('1. Order'!B977=\"\",\"\",'1. Order'!B977)","v":""},{"$f":"IF('1. Order'!J977=\"\",\"\",'1. Order'!J977)","v":""},{"$f":"IF('1. Order'!K977=\"\",\"\",'1. Order'!K977)","v":""},{"$f":"IF('1. Order'!L977=\"\",\"\",'1. Order'!L977)","v":""},{"$f":"IF('1. Order'!N977=\"\",\"\",'1. Order'!N977)","v":""},null,null,{"$f":"'1. Order'!AV977","v":0},{"$f":"IF('1. Order'!AI977=\"\",\"\",'1. Order'!AI977)","v":""}]
[{"$f":"IF('1. Order'!B978=\"\",\"\",'1. Order'!B978)","v":""},{"$f":"IF('1. Order'!J978=\"\",\"\",'1. Order'!J978)","v":""},{"$f":"IF('1. Order'!K978=\"\",\"\",'1. Order'!K978)","v":""},{"$f":"IF('1. Order'!L978=\"\",\"\",'1. Order'!L978)","v":""},{"$f":"IF('1. Order'!N978=\"\",\"\",'1. Order'!N978)","v":""},null,null,{"$f":"'1. Order'!AV978","v":0},{"$f":"IF('1. Order'!AI978=\"\",\"\",'1. Order'!AI978)","v":""}]
[{"$f":"IF('1. Order'!B979=\"\",\"\",'1. Order'!B979)","v":""},{"$f":"IF('1. Order'!J979=\"\",\"\",'1. Order'!J979)","v":""},{"$f":"IF('1. Order'!K979=\"\",\"\",'1. Order'!K979)","v":""},{"$f":"IF('1. Order'!L979=\"\",\"\",'1. Order'!L979)","v":""},{"$f":"IF('1. Order'!N979=\"\",\"\",'1. Order'!N979)","v":""},null,null,{"$f":"'1. Order'!AV979","v":0},{"$f":"IF('1. Order'!AI979=\"\",\"\",'1. Order'!AI979)","v":""}]
[{"$f":"IF('1. Order'!B980=\"\",\"\",'1. Order'!B980)","v":""},{"$f":"IF('1. Order'!J980=\"\",\"\",'1. Order'!J980)","v":""},{"$f":"IF('1. Order'!K980=\"\",\"\",'1. Order'!K980)","v":""},{"$f":"IF('1. Order'!L980=\"\",\"\",'1. Order'!L980)","v":""},{"$f":"IF('1. Order'!N980=\"\",\"\",'1. Order'!N980)","v":""},null,null,{"$f":"'1. Order'!AV980","v":0},{"$f":"IF('1. Order'!AI980=\"\",\"\",'1. Order'!AI980)","v":""}]
[{"$f":"IF('1. Order'!B981=\"\",\"\",'1. Order'!B981)","v":""},{"$f":"IF('1. Order'!J981=\"\",\"\",'1. Order'!J981)","v":""},{"$f":"IF('1. Order'!K981=\"\",\"\",'1. Order'!K981)","v":""},{"$f":"IF('1. Order'!L981=\"\",\"\",'1. Order'!L981)","v":""},{"$f":"IF('1. Order'!N981=\"\",\"\",'1. Order'!N981)","v":""},null,null,{"$f":"'1. Order'!AV981","v":0},{"$f":"IF('1. Order'!AI981=\"\",\"\",'1. Order'!AI981)","v":""}]
[{"$f":"IF('1. Order'!B982=\"\",\"\",'1. Order'!B982)","v":""},{"$f":"IF('1. Order'!J982=\"\",\"\",'1. Order'!J982)","v":""},{"$f":"IF('1. Order'!K982=\"\",\"\",'1. Order'!K982)","v":""},{"$f":"IF('1. Order'!L982=\"\",\"\",'1. Order'!L982)","v":""},{"$f":"IF('1. Order'!N982=\"\",\"\",'1. Order'!N982)","v":""},null,null,{"$f":"'1. Order'!AV982","v":0},{"$f":"IF('1. Order'!AI982=\"\",\"\",'1. Order'!AI982)","v":""}]
[{"$f":"IF('1. Order'!B983=\"\",\"\",'1. Order'!B983)","v":""},{"$f":"IF('1. Order'!J983=\"\",\"\",'1. Order'!J983)","v":""},{"$f":"IF('1. Order'!K983=\"\",\"\",'1. Order'!K983)","v":""},{"$f":"IF('1. Order'!L983=\"\",\"\",'1. Order'!L983)","v":""},{"$f":"IF('1. Order'!N983=\"\",\"\",'1. Order'!N983)","v":""},null,null,{"$f":"'1. Order'!AV983","v":0},{"$f":"IF('1. Order'!AI983=\"\",\"\",'1. Order'!AI983)","v":""}]
[{"$f":"IF('1. Order'!B984=\"\",\"\",'1. Order'!B984)","v":""},{"$f":"IF('1. Order'!J984=\"\",\"\",'1. Order'!J984)","v":""},{"$f":"IF('1. Order'!K984=\"\",\"\",'1. Order'!K984)","v":""},{"$f":"IF('1. Order'!L984=\"\",\"\",'1. Order'!L984)","v":""},{"$f":"IF('1. Order'!N984=\"\",\"\",'1. Order'!N984)","v":""},null,null,{"$f":"'1. Order'!AV984","v":0},{"$f":"IF('1. Order'!AI984=\"\",\"\",'1. Order'!AI984)","v":""}]
[{"$f":"IF('1. Order'!B985=\"\",\"\",'1. Order'!B985)","v":""},{"$f":"IF('1. Order'!J985=\"\",\"\",'1. Order'!J985)","v":""},{"$f":"IF('1. Order'!K985=\"\",\"\",'1. Order'!K985)","v":""},{"$f":"IF('1. Order'!L985=\"\",\"\",'1. Order'!L985)","v":""},{"$f":"IF('1. Order'!N985=\"\",\"\",'1. Order'!N985)","v":""},null,null,{"$f":"'1. Order'!AV985","v":0},{"$f":"IF('1. Order'!AI985=\"\",\"\",'1. Order'!AI985)","v":""}]
[{"$f":"IF('1. Order'!B986=\"\",\"\",'1. Order'!B986)","v":""},{"$f":"IF('1. Order'!J986=\"\",\"\",'1. Order'!J986)","v":""},{"$f":"IF('1. Order'!K986=\"\",\"\",'1. Order'!K986)","v":""},{"$f":"IF('1. Order'!L986=\"\",\"\",'1. Order'!L986)","v":""},{"$f":"IF('1. Order'!N986=\"\",\"\",'1. Order'!N986)","v":""},null,null,{"$f":"'1. Order'!AV986","v":0},{"$f":"IF('1. Order'!AI986=\"\",\"\",'1. Order'!AI986)","v":""}]
[{"$f":"IF('1. Order'!B987=\"\",\"\",'1. Order'!B987)","v":""},{"$f":"IF('1. Order'!J987=\"\",\"\",'1. Order'!J987)","v":""},{"$f":"IF('1. Order'!K987=\"\",\"\",'1. Order'!K987)","v":""},{"$f":"IF('1. Order'!L987=\"\",\"\",'1. Order'!L987)","v":""},{"$f":"IF('1. Order'!N987=\"\",\"\",'1. Order'!N987)","v":""},null,null,{"$f":"'1. Order'!AV987","v":0},{"$f":"IF('1. Order'!AI987=\"\",\"\",'1. Order'!AI987)","v":""}]
[{"$f":"IF('1. Order'!B988=\"\",\"\",'1. Order'!B988)","v":""},{"$f":"IF('1. Order'!J988=\"\",\"\",'1. Order'!J988)","v":""},{"$f":"IF('1. Order'!K988=\"\",\"\",'1. Order'!K988)","v":""},{"$f":"IF('1. Order'!L988=\"\",\"\",'1. Order'!L988)","v":""},{"$f":"IF('1. Order'!N988=\"\",\"\",'1. Order'!N988)","v":""},null,null,{"$f":"'1. Order'!AV988","v":0},{"$f":"IF('1. Order'!AI988=\"\",\"\",'1. Order'!AI988)","v":""}]
[{"$f":"IF('1. Order'!B989=\"\",\"\",'1. Order'!B989)","v":""},{"$f":"IF('1. Order'!J989=\"\",\"\",'1. Order'!J989)","v":""},{"$f":"IF('1. Order'!K989=\"\",\"\",'1. Order'!K989)","v":""},{"$f":"IF('1. Order'!L989=\"\",\"\",'1. Order'!L989)","v":""},{"$f":"IF('1. Order'!N989=\"\",\"\",'1. Order'!N989)","v":""},null,null,{"$f":"'1. Order'!AV989","v":0},{"$f":"IF('1. Order'!AI989=\"\",\"\",'1. Order'!AI989)","v":""}]
[{"$f":"IF('1. Order'!B990=\"\",\"\",'1. Order'!B990)","v":""},{"$f":"IF('1. Order'!J990=\"\",\"\",'1. Order'!J990)","v":""},{"$f":"IF('1. Order'!K990=\"\",\"\",'1. Order'!K990)","v":""},{"$f":"IF('1. Order'!L990=\"\",\"\",'1. Order'!L990)","v":""},{"$f":"IF('1. Order'!N990=\"\",\"\",'1. Order'!N990)","v":""},null,null,{"$f":"'1. Order'!AV990","v":0},{"$f":"IF('1. Order'!AI990=\"\",\"\",'1. Order'!AI990)","v":""}]
[{"$f":"IF('1. Order'!B991=\"\",\"\",'1. Order'!B991)","v":""},{"$f":"IF('1. Order'!J991=\"\",\"\",'1. Order'!J991)","v":""},{"$f":"IF('1. Order'!K991=\"\",\"\",'1. Order'!K991)","v":""},{"$f":"IF('1. Order'!L991=\"\",\"\",'1. Order'!L991)","v":""},{"$f":"IF('1. Order'!N991=\"\",\"\",'1. Order'!N991)","v":""},null,null,{"$f":"'1. Order'!AV991","v":0},{"$f":"IF('1. Order'!AI991=\"\",\"\",'1. Order'!AI991)","v":""}]
[{"$f":"IF('1. Order'!B992=\"\",\"\",'1. Order'!B992)","v":""},{"$f":"IF('1. Order'!J992=\"\",\"\",'1. Order'!J992)","v":""},{"$f":"IF('1. Order'!K992=\"\",\"\",'1. Order'!K992)","v":""},{"$f":"IF('1. Order'!L992=\"\",\"\",'1. Order'!L992)","v":""},{"$f":"IF('1. Order'!N992=\"\",\"\",'1. Order'!N992)","v":""},null,null,{"$f":"'1. Order'!AV992","v":0},{"$f":"IF('1. Order'!AI992=\"\",\"\",'1. Order'!AI992)","v":""}]
[{"$f":"IF('1. Order'!B993=\"\",\"\",'1. Order'!B993)","v":""},{"$f":"IF('1. Order'!J993=\"\",\"\",'1. Order'!J993)","v":""},{"$f":"IF('1. Order'!K993=\"\",\"\",'1. Order'!K993)","v":""},{"$f":"IF('1. Order'!L993=\"\",\"\",'1. Order'!L993)","v":""},{"$f":"IF('1. Order'!N993=\"\",\"\",'1. Order'!N993)","v":""},null,null,{"$f":"'1. Order'!AV993","v":0},{"$f":"IF('1. Order'!AI993=\"\",\"\",'1. Order'!AI993)","v":""}]
[{"$f":"IF('1. Order'!B994=\"\",\"\",'1. Order'!B994)","v":""},{"$f":"IF('1. Order'!J994=\"\",\"\",'1. Order'!J994)","v":""},{"$f":"IF('1. Order'!K994=\"\",\"\",'1. Order'!K994)","v":""},{"$f":"IF('1. Order'!L994=\"\",\"\",'1. Order'!L994)","v":""},{"$f":"IF('1. Order'!N994=\"\",\"\",'1. Order'!N994)","v":""},null,null,{"$f":"'1. Order'!AV994","v":0},{"$f":"IF('1. Order'!AI994=\"\",\"\",'1. Order'!AI994)","v":""}]
[{"$f":"IF('1. Order'!B995=\"\",\"\",'1. Order'!B995)","v":""},{"$f":"IF('1. Order'!J995=\"\",\"\",'1. Order'!J995)","v":""},{"$f":"IF('1. Order'!K995=\"\",\"\",'1. Order'!K995)","v":""},{"$f":"IF('1. Order'!L995=\"\",\"\",'1. Order'!L995)","v":""},{"$f":"IF('1. Order'!N995=\"\",\"\",'1. Order'!N995)","v":""},null,null,{"$f":"'1. Order'!AV995","v":0},{"$f":"IF('1. Order'!AI995=\"\",\"\",'1. Order'!AI995)","v":""}]
[{"$f":"IF('1. Order'!B996=\"\",\"\",'1. Order'!B996)","v":""},{"$f":"IF('1. Order'!J996=\"\",\"\",'1. Order'!J996)","v":""},{"$f":"IF('1. Order'!K996=\"\",\"\",'1. Order'!K996)","v":""},{"$f":"IF('1. Order'!L996=\"\",\"\",'1. Order'!L996)","v":""},{"$f":"IF('1. Order'!N996=\"\",\"\",'1. Order'!N996)","v":""},null,null,{"$f":"'1. Order'!AV996","v":0},{"$f":"IF('1. Order'!AI996=\"\",\"\",'1. Order'!AI996)","v":""}]
[{"$f":"IF('1. Order'!B997=\"\",\"\",'1. Order'!B997)","v":""},{"$f":"IF('1. Order'!J997=\"\",\"\",'1. Order'!J997)","v":""},{"$f":"IF('1. Order'!K997=\"\",\"\",'1. Order'!K997)","v":""},{"$f":"IF('1. Order'!L997=\"\",\"\",'1. Order'!L997)","v":""},{"$f":"IF('1. Order'!N997=\"\",\"\",'1. Order'!N997)","v":""},null,null,{"$f":"'1. Order'!AV997","v":0},{"$f":"IF('1. Order'!AI997=\"\",\"\",'1. Order'!AI997)","v":""}]
[{"$f":"IF('1. Order'!B998=\"\",\"\",'1. Order'!B998)","v":""},{"$f":"IF('1. Order'!J998=\"\",\"\",'1. Order'!J998)","v":""},{"$f":"IF('1. Order'!K998=\"\",\"\",'1. Order'!K998)","v":""},{"$f":"IF('1. Order'!L998=\"\",\"\",'1. Order'!L998)","v":""},{"$f":"IF('1. Order'!N998=\"\",\"\",'1. Order'!N998)","v":""},null,null,{"$f":"'1. Order'!AV998","v":0},{"$f":"IF('1. Order'!AI998=\"\",\"\",'1. Order'!AI998)","v":""}]
[{"$f":"IF('1. Order'!B999=\"\",\"\",'1. Order'!B999)","v":""},{"$f":"IF('1. Order'!J999=\"\",\"\",'1. Order'!J999)","v":""},{"$f":"IF('1. Order'!K999=\"\",\"\",'1. Order'!K999)","v":""},{"$f":"IF('1. Order'!L999=\"\",\"\",'1. Order'!L999)","v":""},{"$f":"IF('1. Order'!N999=\"\",\"\",'1. Order'!N999)","v":""},null,null,{"$f":"'1. Order'!AV999","v":0},{"$f":"IF('1. Order'!AI999=\"\",\"\",'1. Order'!AI999)","v":""}]
[{"$f":"IF('1. Order'!B1000=\"\",\"\",'1. Order'!B1000)","v":""},{"$f":"IF('1. Order'!J1000=\"\",\"\",'1. Order'!J1000)","v":""},{"$f":"IF('1. Order'!K1000=\"\",\"\",'1. Order'!K1000)","v":""},{"$f":"IF('1. Order'!L1000=\"\",\"\",'1. Order'!L1000)","v":""},{"$f":"IF('1. Order'!N1000=\"\",\"\",'1. Order'!N1000)","v":""},null,null,{"$f":"'1. Order'!AV1000","v":0},{"$f":"IF('1. Order'!AI1000=\"\",\"\",'1. Order'!AI1000)","v":""}]
[{"$f":"IF('1. Order'!B1001=\"\",\"\",'1. Order'!B1001)","v":""},{"$f":"IF('1. Order'!J1001=\"\",\"\",'1. Order'!J1001)","v":""},{"$f":"IF('1. Order'!K1001=\"\",\"\",'1. Order'!K1001)","v":""},{"$f":"IF('1. Order'!L1001=\"\",\"\",'1. Order'!L1001)","v":""},{"$f":"IF('1. Order'!N1001=\"\",\"\",'1. Order'!N1001)","v":""},null,null,{"$f":"'1. Order'!AV1001","v":0},{"$f":"IF('1. Order'!AI1001=\"\",\"\",'1. Order'!AI1001)","v":""}]
[{"$f":"IF('1. Order'!B1002=\"\",\"\",'1. Order'!B1002)","v":""},{"$f":"IF('1. Order'!J1002=\"\",\"\",'1. Order'!J1002)","v":""},{"$f":"IF('1. Order'!K1002=\"\",\"\",'1. Order'!K1002)","v":""},{"$f":"IF('1. Order'!L1002=\"\",\"\",'1. Order'!L1002)","v":""},{"$f":"IF('1. Order'!N1002=\"\",\"\",'1. Order'!N1002)","v":""},null,null,{"$f":"'1. Order'!AV1002","v":0},{"$f":"IF('1. Order'!AI1002=\"\",\"\",'1. Order'!AI1002)","v":""}]
[{"$f":"IF('1. Order'!B1003=\"\",\"\",'1. Order'!B1003)","v":""},{"$f":"IF('1. Order'!J1003=\"\",\"\",'1. Order'!J1003)","v":""},{"$f":"IF('1. Order'!K1003=\"\",\"\",'1. Order'!K1003)","v":""},{"$f":"IF('1. Order'!L1003=\"\",\"\",'1. Order'!L1003)","v":""},{"$f":"IF('1. Order'!N1003=\"\",\"\",'1. Order'!N1003)","v":""},null,null,{"$f":"'1. Order'!AV1003","v":0},{"$f":"IF('1. Order'!AI1003=\"\",\"\",'1. Order'!AI1003)","v":""}]
[{"$f":"IF('1. Order'!B1004=\"\",\"\",'1. Order'!B1004)","v":""},{"$f":"IF('1. Order'!J1004=\"\",\"\",'1. Order'!J1004)","v":""},{"$f":"IF('1. Order'!K1004=\"\",\"\",'1. Order'!K1004)","v":""},{"$f":"IF('1. Order'!L1004=\"\",\"\",'1. Order'!L1004)","v":""},{"$f":"IF('1. Order'!N1004=\"\",\"\",'1. Order'!N1004)","v":""},null,null,{"$f":"'1. Order'!AV1004","v":0},{"$f":"IF('1. Order'!AI1004=\"\",\"\",'1. Order'!AI1004)","v":""}]
[{"$f":"IF('1. Order'!B1005=\"\",\"\",'1. Order'!B1005)","v":""},{"$f":"IF('1. Order'!J1005=\"\",\"\",'1. Order'!J1005)","v":""},{"$f":"IF('1. Order'!K1005=\"\",\"\",'1. Order'!K1005)","v":""},{"$f":"IF('1. Order'!L1005=\"\",\"\",'1. Order'!L1005)","v":""},{"$f":"IF('1. Order'!N1005=\"\",\"\",'1. Order'!N1005)","v":""},null,null,{"$f":"'1. Order'!AV1005","v":0},{"$f":"IF('1. Order'!AI1005=\"\",\"\",'1. Order'!AI1005)","v":""}]
[{"$f":"IF('1. Order'!B1006=\"\",\"\",'1. Order'!B1006)","v":""},{"$f":"IF('1. Order'!J1006=\"\",\"\",'1. Order'!J1006)","v":""},{"$f":"IF('1. Order'!K1006=\"\",\"\",'1. Order'!K1006)","v":""},{"$f":"IF('1. Order'!L1006=\"\",\"\",'1. Order'!L1006)","v":""},{"$f":"IF('1. Order'!N1006=\"\",\"\",'1. Order'!N1006)","v":""},null,null,{"$f":"'1. Order'!AV1006","v":0},{"$f":"IF('1. Order'!AI1006=\"\",\"\",'1. Order'!AI1006)","v":""}]
[{"$f":"IF('1. Order'!B1007=\"\",\"\",'1. Order'!B1007)","v":""},{"$f":"IF('1. Order'!J1007=\"\",\"\",'1. Order'!J1007)","v":""},{"$f":"IF('1. Order'!K1007=\"\",\"\",'1. Order'!K1007)","v":""},{"$f":"IF('1. Order'!L1007=\"\",\"\",'1. Order'!L1007)","v":""},{"$f":"IF('1. Order'!N1007=\"\",\"\",'1. Order'!N1007)","v":""},null,null,{"$f":"'1. Order'!AV1007","v":0},{"$f":"IF('1. Order'!AI1007=\"\",\"\",'1. Order'!AI1007)","v":""}]
[{"$f":"IF('1. Order'!B1008=\"\",\"\",'1. Order'!B1008)","v":""},{"$f":"IF('1. Order'!J1008=\"\",\"\",'1. Order'!J1008)","v":""},{"$f":"IF('1. Order'!K1008=\"\",\"\",'1. Order'!K1008)","v":""},{"$f":"IF('1. Order'!L1008=\"\",\"\",'1. Order'!L1008)","v":""},{"$f":"IF('1. Order'!N1008=\"\",\"\",'1. Order'!N1008)","v":""},null,null,{"$f":"'1. Order'!AV1008","v":0},{"$f":"IF('1. Order'!AI1008=\"\",\"\",'1. Order'!AI1008)","v":""}]
[{"$f":"IF('1. Order'!B1009=\"\",\"\",'1. Order'!B1009)","v":""},{"$f":"IF('1. Order'!J1009=\"\",\"\",'1. Order'!J1009)","v":""},{"$f":"IF('1. Order'!K1009=\"\",\"\",'1. Order'!K1009)","v":""},{"$f":"IF('1. Order'!L1009=\"\",\"\",'1. Order'!L1009)","v":""},{"$f":"IF('1. Order'!N1009=\"\",\"\",'1. Order'!N1009)","v":""},null,null,{"$f":"'1. Order'!AV1009","v":0},{"$f":"IF('1. Order'!AI1009=\"\",\"\",'1. Order'!AI1009)","v":""}]
[{"$f":"IF('1. Order'!B1010=\"\",\"\",'1. Order'!B1010)","v":""},{"$f":"IF('1. Order'!J1010=\"\",\"\",'1. Order'!J1010)","v":""},{"$f":"IF('1. Order'!K1010=\"\",\"\",'1. Order'!K1010)","v":""},{"$f":"IF('1. Order'!L1010=\"\",\"\",'1. Order'!L1010)","v":""},{"$f":"IF('1. Order'!N1010=\"\",\"\",'1. Order'!N1010)","v":""},null,null,{"$f":"'1. Order'!AV1010","v":0},{"$f":"IF('1. Order'!AI1010=\"\",\"\",'1. Order'!AI1010)","v":""}]
[{"$f":"IF('1. Order'!B1011=\"\",\"\",'1. Order'!B1011)","v":""},{"$f":"IF('1. Order'!J1011=\"\",\"\",'1. Order'!J1011)","v":""},{"$f":"IF('1. Order'!K1011=\"\",\"\",'1. Order'!K1011)","v":""},{"$f":"IF('1. Order'!L1011=\"\",\"\",'1. Order'!L1011)","v":""},{"$f":"IF('1. Order'!N1011=\"\",\"\",'1. Order'!N1011)","v":""},null,null,{"$f":"'1. Order'!AV1011","v":0},{"$f":"IF('1. Order'!AI1011=\"\",\"\",'1. Order'!AI1011)","v":""}]
[{"$f":"IF('1. Order'!B1012=\"\",\"\",'1. Order'!B1012)","v":""},{"$f":"IF('1. Order'!J1012=\"\",\"\",'1. Order'!J1012)","v":""},{"$f":"IF('1. Order'!K1012=\"\",\"\",'1. Order'!K1012)","v":""},{"$f":"IF('1. Order'!L1012=\"\",\"\",'1. Order'!L1012)","v":""},{"$f":"IF('1. Order'!N1012=\"\",\"\",'1. Order'!N1012)","v":""},null,null,{"$f":"'1. Order'!AV1012","v":0},{"$f":"IF('1. Order'!AI1012=\"\",\"\",'1. Order'!AI1012)","v":""}]
[{"$f":"IF('1. Order'!B1013=\"\",\"\",'1. Order'!B1013)","v":""},{"$f":"IF('1. Order'!J1013=\"\",\"\",'1. Order'!J1013)","v":""},{"$f":"IF('1. Order'!K1013=\"\",\"\",'1. Order'!K1013)","v":""},{"$f":"IF('1. Order'!L1013=\"\",\"\",'1. Order'!L1013)","v":""},{"$f":"IF('1. Order'!N1013=\"\",\"\",'1. Order'!N1013)","v":""},null,null,{"$f":"'1. Order'!AV1013","v":0},{"$f":"IF('1. Order'!AI1013=\"\",\"\",'1. Order'!AI1013)","v":""}]
[{"$f":"IF('1. Order'!B1014=\"\",\"\",'1. Order'!B1014)","v":""},{"$f":"IF('1. Order'!J1014=\"\",\"\",'1. Order'!J1014)","v":""},{"$f":"IF('1. Order'!K1014=\"\",\"\",'1. Order'!K1014)","v":""},{"$f":"IF('1. Order'!L1014=\"\",\"\",'1. Order'!L1014)","v":""},{"$f":"IF('1. Order'!N1014=\"\",\"\",'1. Order'!N1014)","v":""},null,null,{"$f":"'1. Order'!AV1014","v":0},{"$f":"IF('1. Order'!AI1014=\"\",\"\",'1. Order'!AI1014)","v":""}]
[{"$f":"IF('1. Order'!B1015=\"\",\"\",'1. Order'!B1015)","v":""},{"$f":"IF('1. Order'!J1015=\"\",\"\",'1. Order'!J1015)","v":""},{"$f":"IF('1. Order'!K1015=\"\",\"\",'1. Order'!K1015)","v":""},{"$f":"IF('1. Order'!L1015=\"\",\"\",'1. Order'!L1015)","v":""},{"$f":"IF('1. Order'!N1015=\"\",\"\",'1. Order'!N1015)","v":""},null,null,{"$f":"'1. Order'!AV1015","v":0},{"$f":"IF('1. Order'!AI1015=\"\",\"\",'1. Order'!AI1015)","v":""}]
[{"$f":"IF('1. Order'!B1016=\"\",\"\",'1. Order'!B1016)","v":""},{"$f":"IF('1. Order'!J1016=\"\",\"\",'1. Order'!J1016)","v":""},{"$f":"IF('1. Order'!K1016=\"\",\"\",'1. Order'!K1016)","v":""},{"$f":"IF('1. Order'!L1016=\"\",\"\",'1. Order'!L1016)","v":""},{"$f":"IF('1. Order'!N1016=\"\",\"\",'1. Order'!N1016)","v":""},null,null,{"$f":"'1. Order'!AV1016","v":0},{"$f":"IF('1. Order'!AI1016=\"\",\"\",'1. Order'!AI1016)","v":""}]
[{"$f":"IF('1. Order'!B1017=\"\",\"\",'1. Order'!B1017)","v":""},{"$f":"IF('1. Order'!J1017=\"\",\"\",'1. Order'!J1017)","v":""},{"$f":"IF('1. Order'!K1017=\"\",\"\",'1. Order'!K1017)","v":""},{"$f":"IF('1. Order'!L1017=\"\",\"\",'1. Order'!L1017)","v":""},{"$f":"IF('1. Order'!N1017=\"\",\"\",'1. Order'!N1017)","v":""},null,null,{"$f":"'1. Order'!AV1017","v":0},{"$f":"IF('1. Order'!AI1017=\"\",\"\",'1. Order'!AI1017)","v":""}]
[{"$f":"IF('1. Order'!B1018=\"\",\"\",'1. Order'!B1018)","v":""},{"$f":"IF('1. Order'!J1018=\"\",\"\",'1. Order'!J1018)","v":""},{"$f":"IF('1. Order'!K1018=\"\",\"\",'1. Order'!K1018)","v":""},{"$f":"IF('1. Order'!L1018=\"\",\"\",'1. Order'!L1018)","v":""},{"$f":"IF('1. Order'!N1018=\"\",\"\",'1. Order'!N1018)","v":""},null,null,{"$f":"'1. Order'!AV1018","v":0},{"$f":"IF('1. Order'!AI1018=\"\",\"\",'1. Order'!AI1018)","v":""}]
[{"$f":"IF('1. Order'!B1019=\"\",\"\",'1. Order'!B1019)","v":""},{"$f":"IF('1. Order'!J1019=\"\",\"\",'1. Order'!J1019)","v":""},{"$f":"IF('1. Order'!K1019=\"\",\"\",'1. Order'!K1019)","v":""},{"$f":"IF('1. Order'!L1019=\"\",\"\",'1. Order'!L1019)","v":""},{"$f":"IF('1. Order'!N1019=\"\",\"\",'1. Order'!N1019)","v":""},null,null,{"$f":"'1. Order'!AV1019","v":0},{"$f":"IF('1. Order'!AI1019=\"\",\"\",'1. Order'!AI1019)","v":""}]
[{"$f":"IF('1. Order'!B1020=\"\",\"\",'1. Order'!B1020)","v":""},{"$f":"IF('1. Order'!J1020=\"\",\"\",'1. Order'!J1020)","v":""},{"$f":"IF('1. Order'!K1020=\"\",\"\",'1. Order'!K1020)","v":""},{"$f":"IF('1. Order'!L1020=\"\",\"\",'1. Order'!L1020)","v":""},{"$f":"IF('1. Order'!N1020=\"\",\"\",'1. Order'!N1020)","v":""},null,null,{"$f":"'1. Order'!AV1020","v":0},{"$f":"IF('1. Order'!AI1020=\"\",\"\",'1. Order'!AI1020)","v":""}]
[{"$f":"IF('1. Order'!B1021=\"\",\"\",'1. Order'!B1021)","v":""},{"$f":"IF('1. Order'!J1021=\"\",\"\",'1. Order'!J1021)","v":""},{"$f":"IF('1. Order'!K1021=\"\",\"\",'1. Order'!K1021)","v":""},{"$f":"IF('1. Order'!L1021=\"\",\"\",'1. Order'!L1021)","v":""},{"$f":"IF('1. Order'!N1021=\"\",\"\",'1. Order'!N1021)","v":""},null,null,{"$f":"'1. Order'!AV1021","v":0},{"$f":"IF('1. Order'!AI1021=\"\",\"\",'1. Order'!AI1021)","v":""}]
[{"$f":"IF('1. Order'!B1022=\"\",\"\",'1. Order'!B1022)","v":""},{"$f":"IF('1. Order'!J1022=\"\",\"\",'1. Order'!J1022)","v":""},{"$f":"IF('1. Order'!K1022=\"\",\"\",'1. Order'!K1022)","v":""},{"$f":"IF('1. Order'!L1022=\"\",\"\",'1. Order'!L1022)","v":""},{"$f":"IF('1. Order'!N1022=\"\",\"\",'1. Order'!N1022)","v":""},null,null,{"$f":"'1. Order'!AV1022","v":0},{"$f":"IF('1. Order'!AI1022=\"\",\"\",'1. Order'!AI1022)","v":""}]
[{"$f":"IF('1. Order'!B1023=\"\",\"\",'1. Order'!B1023)","v":""},{"$f":"IF('1. Order'!J1023=\"\",\"\",'1. Order'!J1023)","v":""},{"$f":"IF('1. Order'!K1023=\"\",\"\",'1. Order'!K1023)","v":""},{"$f":"IF('1. Order'!L1023=\"\",\"\",'1. Order'!L1023)","v":""},{"$f":"IF('1. Order'!N1023=\"\",\"\",'1. Order'!N1023)","v":""},null,null,{"$f":"'1. Order'!AV1023","v":0},{"$f":"IF('1. Order'!AI1023=\"\",\"\",'1. Order'!AI1023)","v":""}]
[{"$f":"IF('1. Order'!B1024=\"\",\"\",'1. Order'!B1024)","v":""},{"$f":"IF('1. Order'!J1024=\"\",\"\",'1. Order'!J1024)","v":""},{"$f":"IF('1. Order'!K1024=\"\",\"\",'1. Order'!K1024)","v":""},{"$f":"IF('1. Order'!L1024=\"\",\"\",'1. Order'!L1024)","v":""},{"$f":"IF('1. Order'!N1024=\"\",\"\",'1. Order'!N1024)","v":""},null,null,{"$f":"'1. Order'!AV1024","v":0},{"$f":"IF('1. Order'!AI1024=\"\",\"\",'1. Order'!AI1024)","v":""}]
[{"$f":"IF('1. Order'!B1025=\"\",\"\",'1. Order'!B1025)","v":""},{"$f":"IF('1. Order'!J1025=\"\",\"\",'1. Order'!J1025)","v":""},{"$f":"IF('1. Order'!K1025=\"\",\"\",'1. Order'!K1025)","v":""},{"$f":"IF('1. Order'!L1025=\"\",\"\",'1. Order'!L1025)","v":""},{"$f":"IF('1. Order'!N1025=\"\",\"\",'1. Order'!N1025)","v":""},null,null,{"$f":"'1. Order'!AV1025","v":0},{"$f":"IF('1. Order'!AI1025=\"\",\"\",'1. Order'!AI1025)","v":""}]
[{"$f":"IF('1. Order'!B1026=\"\",\"\",'1. Order'!B1026)","v":""},{"$f":"IF('1. Order'!J1026=\"\",\"\",'1. Order'!J1026)","v":""},{"$f":"IF('1. Order'!K1026=\"\",\"\",'1. Order'!K1026)","v":""},{"$f":"IF('1. Order'!L1026=\"\",\"\",'1. Order'!L1026)","v":""},{"$f":"IF('1. Order'!N1026=\"\",\"\",'1. Order'!N1026)","v":""},null,null,{"$f":"'1. Order'!AV1026","v":0},{"$f":"IF('1. Order'!AI1026=\"\",\"\",'1. Order'!AI1026)","v":""}]
[{"$f":"IF('1. Order'!B1027=\"\",\"\",'1. Order'!B1027)","v":""},{"$f":"IF('1. Order'!J1027=\"\",\"\",'1. Order'!J1027)","v":""},{"$f":"IF('1. Order'!K1027=\"\",\"\",'1. Order'!K1027)","v":""},{"$f":"IF('1. Order'!L1027=\"\",\"\",'1. Order'!L1027)","v":""},{"$f":"IF('1. Order'!N1027=\"\",\"\",'1. Order'!N1027)","v":""},null,null,{"$f":"'1. Order'!AV1027","v":0},{"$f":"IF('1. Order'!AI1027=\"\",\"\",'1. Order'!AI1027)","v":""}]
[{"$f":"IF('1. Order'!B1028=\"\",\"\",'1. Order'!B1028)","v":""},{"$f":"IF('1. Order'!J1028=\"\",\"\",'1. Order'!J1028)","v":""},{"$f":"IF('1. Order'!K1028=\"\",\"\",'1. Order'!K1028)","v":""},{"$f":"IF('1. Order'!L1028=\"\",\"\",'1. Order'!L1028)","v":""},{"$f":"IF('1. Order'!N1028=\"\",\"\",'1. Order'!N1028)","v":""},null,null,{"$f":"'1. Order'!AV1028","v":0},{"$f":"IF('1. Order'!AI1028=\"\",\"\",'1. Order'!AI1028)","v":""}]
[{"$f":"IF('1. Order'!B1029=\"\",\"\",'1. Order'!B1029)","v":""},{"$f":"IF('1. Order'!J1029=\"\",\"\",'1. Order'!J1029)","v":""},{"$f":"IF('1. Order'!K1029=\"\",\"\",'1. Order'!K1029)","v":""},{"$f":"IF('1. Order'!L1029=\"\",\"\",'1. Order'!L1029)","v":""},{"$f":"IF('1. Order'!N1029=\"\",\"\",'1. Order'!N1029)","v":""},null,null,{"$f":"'1. Order'!AV1029","v":0},{"$f":"IF('1. Order'!AI1029=\"\",\"\",'1. Order'!AI1029)","v":""}]
[{"$f":"IF('1. Order'!B1030=\"\",\"\",'1. Order'!B1030)","v":""},{"$f":"IF('1. Order'!J1030=\"\",\"\",'1. Order'!J1030)","v":""},{"$f":"IF('1. Order'!K1030=\"\",\"\",'1. Order'!K1030)","v":""},{"$f":"IF('1. Order'!L1030=\"\",\"\",'1. Order'!L1030)","v":""},{"$f":"IF('1. Order'!N1030=\"\",\"\",'1. Order'!N1030)","v":""},null,null,{"$f":"'1. Order'!AV1030","v":0},{"$f":"IF('1. Order'!AI1030=\"\",\"\",'1. Order'!AI1030)","v":""}]
[{"$f":"IF('1. Order'!B1031=\"\",\"\",'1. Order'!B1031)","v":""},{"$f":"IF('1. Order'!J1031=\"\",\"\",'1. Order'!J1031)","v":""},{"$f":"IF('1. Order'!K1031=\"\",\"\",'1. Order'!K1031)","v":""},{"$f":"IF('1. Order'!L1031=\"\",\"\",'1. Order'!L1031)","v":""},{"$f":"IF('1. Order'!N1031=\"\",\"\",'1. Order'!N1031)","v":""},null,null,{"$f":"'1. Order'!AV1031","v":0},{"$f":"IF('1. Order'!AI1031=\"\",\"\",'1. Order'!AI1031)","v":""}]
[{"$f":"IF('1. Order'!B1032=\"\",\"\",'1. Order'!B1032)","v":""},{"$f":"IF('1. Order'!J1032=\"\",\"\",'1. Order'!J1032)","v":""},{"$f":"IF('1. Order'!K1032=\"\",\"\",'1. Order'!K1032)","v":""},{"$f":"IF('1. Order'!L1032=\"\",\"\",'1. Order'!L1032)","v":""},{"$f":"IF('1. Order'!N1032=\"\",\"\",'1. Order'!N1032)","v":""},null,null,{"$f":"'1. Order'!AV1032","v":0},{"$f":"IF('1. Order'!AI1032=\"\",\"\",'1. Order'!AI1032)","v":""}]
[{"$f":"IF('1. Order'!B1033=\"\",\"\",'1. Order'!B1033)","v":""},{"$f":"IF('1. Order'!J1033=\"\",\"\",'1. Order'!J1033)","v":""},{"$f":"IF('1. Order'!K1033=\"\",\"\",'1. Order'!K1033)","v":""},{"$f":"IF('1. Order'!L1033=\"\",\"\",'1. Order'!L1033)","v":""},{"$f":"IF('1. Order'!N1033=\"\",\"\",'1. Order'!N1033)","v":""},null,null,{"$f":"'1. Order'!AV1033","v":0},{"$f":"IF('1. Order'!AI1033=\"\",\"\",'1. Order'!AI1033)","v":""}]
[{"$f":"IF('1. Order'!B1034=\"\",\"\",'1. Order'!B1034)","v":""},{"$f":"IF('1. Order'!J1034=\"\",\"\",'1. Order'!J1034)","v":""},{"$f":"IF('1. Order'!K1034=\"\",\"\",'1. Order'!K1034)","v":""},{"$f":"IF('1. Order'!L1034=\"\",\"\",'1. Order'!L1034)","v":""},{"$f":"IF('1. Order'!N1034=\"\",\"\",'1. Order'!N1034)","v":""},null,null,{"$f":"'1. Order'!AV1034","v":0},{"$f":"IF('1. Order'!AI1034=\"\",\"\",'1. Order'!AI1034)","v":""}]
[{"$f":"IF('1. Order'!B1035=\"\",\"\",'1. Order'!B1035)","v":""},{"$f":"IF('1. Order'!J1035=\"\",\"\",'1. Order'!J1035)","v":""},{"$f":"IF('1. Order'!K1035=\"\",\"\",'1. Order'!K1035)","v":""},{"$f":"IF('1. Order'!L1035=\"\",\"\",'1. Order'!L1035)","v":""},{"$f":"IF('1. Order'!N1035=\"\",\"\",'1. Order'!N1035)","v":""},null,null,{"$f":"'1. Order'!AV1035","v":0},{"$f":"IF('1. Order'!AI1035=\"\",\"\",'1. Order'!AI1035)","v":""}]
[{"$f":"IF('1. Order'!B1036=\"\",\"\",'1. Order'!B1036)","v":""},{"$f":"IF('1. Order'!J1036=\"\",\"\",'1. Order'!J1036)","v":""},{"$f":"IF('1. Order'!K1036=\"\",\"\",'1. Order'!K1036)","v":""},{"$f":"IF('1. Order'!L1036=\"\",\"\",'1. Order'!L1036)","v":""},{"$f":"IF('1. Order'!N1036=\"\",\"\",'1. Order'!N1036)","v":""},null,null,{"$f":"'1. Order'!AV1036","v":0},{"$f":"IF('1. Order'!AI1036=\"\",\"\",'1. Order'!AI1036)","v":""}]
[{"$f":"IF('1. Order'!B1037=\"\",\"\",'1. Order'!B1037)","v":""},{"$f":"IF('1. Order'!J1037=\"\",\"\",'1. Order'!J1037)","v":""},{"$f":"IF('1. Order'!K1037=\"\",\"\",'1. Order'!K1037)","v":""},{"$f":"IF('1. Order'!L1037=\"\",\"\",'1. Order'!L1037)","v":""},{"$f":"IF('1. Order'!N1037=\"\",\"\",'1. Order'!N1037)","v":""},null,null,{"$f":"'1. Order'!AV1037","v":0},{"$f":"IF('1. Order'!AI1037=\"\",\"\",'1. Order'!AI1037)","v":""}]
[{"$f":"IF('1. Order'!B1038=\"\",\"\",'1. Order'!B1038)","v":""},{"$f":"IF('1. Order'!J1038=\"\",\"\",'1. Order'!J1038)","v":""},{"$f":"IF('1. Order'!K1038=\"\",\"\",'1. Order'!K1038)","v":""},{"$f":"IF('1. Order'!L1038=\"\",\"\",'1. Order'!L1038)","v":""},{"$f":"IF('1. Order'!N1038=\"\",\"\",'1. Order'!N1038)","v":""},null,null,{"$f":"'1. Order'!AV1038","v":0},{"$f":"IF('1. Order'!AI1038=\"\",\"\",'1. Order'!AI1038)","v":""}]
[{"$f":"IF('1. Order'!B1039=\"\",\"\",'1. Order'!B1039)","v":""},{"$f":"IF('1. Order'!J1039=\"\",\"\",'1. Order'!J1039)","v":""},{"$f":"IF('1. Order'!K1039=\"\",\"\",'1. Order'!K1039)","v":""},{"$f":"IF('1. Order'!L1039=\"\",\"\",'1. Order'!L1039)","v":""},{"$f":"IF('1. Order'!N1039=\"\",\"\",'1. Order'!N1039)","v":""},null,null,{"$f":"'1. Order'!AV1039","v":0},{"$f":"IF('1. Order'!AI1039=\"\",\"\",'1. Order'!AI1039)","v":""}]
[{"$f":"IF('1. Order'!B1040=\"\",\"\",'1. Order'!B1040)","v":""},{"$f":"IF('1. Order'!J1040=\"\",\"\",'1. Order'!J1040)","v":""},{"$f":"IF('1. Order'!K1040=\"\",\"\",'1. Order'!K1040)","v":""},{"$f":"IF('1. Order'!L1040=\"\",\"\",'1. Order'!L1040)","v":""},{"$f":"IF('1. Order'!N1040=\"\",\"\",'1. Order'!N1040)","v":""},null,null,{"$f":"'1. Order'!AV1040","v":0},{"$f":"IF('1. Order'!AI1040=\"\",\"\",'1. Order'!AI1040)","v":""}]
[{"$f":"IF('1. Order'!B1041=\"\",\"\",'1. Order'!B1041)","v":""},{"$f":"IF('1. Order'!J1041=\"\",\"\",'1. Order'!J1041)","v":""},{"$f":"IF('1. Order'!K1041=\"\",\"\",'1. Order'!K1041)","v":""},{"$f":"IF('1. Order'!L1041=\"\",\"\",'1. Order'!L1041)","v":""},{"$f":"IF('1. Order'!N1041=\"\",\"\",'1. Order'!N1041)","v":""},null,null,{"$f":"'1. Order'!AV1041","v":0},{"$f":"IF('1. Order'!AI1041=\"\",\"\",'1. Order'!AI1041)","v":""}]
[{"$f":"IF('1. Order'!B1042=\"\",\"\",'1. Order'!B1042)","v":""},{"$f":"IF('1. Order'!J1042=\"\",\"\",'1. Order'!J1042)","v":""},{"$f":"IF('1. Order'!K1042=\"\",\"\",'1. Order'!K1042)","v":""},{"$f":"IF('1. Order'!L1042=\"\",\"\",'1. Order'!L1042)","v":""},{"$f":"IF('1. Order'!N1042=\"\",\"\",'1. Order'!N1042)","v":""},null,null,{"$f":"'1. Order'!AV1042","v":0},{"$f":"IF('1. Order'!AI1042=\"\",\"\",'1. Order'!AI1042)","v":""}]
[{"$f":"IF('1. Order'!B1043=\"\",\"\",'1. Order'!B1043)","v":""},{"$f":"IF('1. Order'!J1043=\"\",\"\",'1. Order'!J1043)","v":""},{"$f":"IF('1. Order'!K1043=\"\",\"\",'1. Order'!K1043)","v":""},{"$f":"IF('1. Order'!L1043=\"\",\"\",'1. Order'!L1043)","v":""},{"$f":"IF('1. Order'!N1043=\"\",\"\",'1. Order'!N1043)","v":""},null,null,{"$f":"'1. Order'!AV1043","v":0},{"$f":"IF('1. Order'!AI1043=\"\",\"\",'1. Order'!AI1043)","v":""}]
[{"$f":"IF('1. Order'!B1044=\"\",\"\",'1. Order'!B1044)","v":""},{"$f":"IF('1. Order'!J1044=\"\",\"\",'1. Order'!J1044)","v":""},{"$f":"IF('1. Order'!K1044=\"\",\"\",'1. Order'!K1044)","v":""},{"$f":"IF('1. Order'!L1044=\"\",\"\",'1. Order'!L1044)","v":""},{"$f":"IF('1. Order'!N1044=\"\",\"\",'1. Order'!N1044)","v":""},null,null,{"$f":"'1. Order'!AV1044","v":0},{"$f":"IF('1. Order'!AI1044=\"\",\"\",'1. Order'!AI1044)","v":""}]
[{"$f":"IF('1. Order'!B1045=\"\",\"\",'1. Order'!B1045)","v":""},{"$f":"IF('1. Order'!J1045=\"\",\"\",'1. Order'!J1045)","v":""},{"$f":"IF('1. Order'!K1045=\"\",\"\",'1. Order'!K1045)","v":""},{"$f":"IF('1. Order'!L1045=\"\",\"\",'1. Order'!L1045)","v":""},{"$f":"IF('1. Order'!N1045=\"\",\"\",'1. Order'!N1045)","v":""},null,null,{"$f":"'1. Order'!AV1045","v":0},{"$f":"IF('1. Order'!AI1045=\"\",\"\",'1. Order'!AI1045)","v":""}]
[{"$f":"IF('1. Order'!B1046=\"\",\"\",'1. Order'!B1046)","v":""},{"$f":"IF('1. Order'!J1046=\"\",\"\",'1. Order'!J1046)","v":""},{"$f":"IF('1. Order'!K1046=\"\",\"\",'1. Order'!K1046)","v":""},{"$f":"IF('1. Order'!L1046=\"\",\"\",'1. Order'!L1046)","v":""},{"$f":"IF('1. Order'!N1046=\"\",\"\",'1. Order'!N1046)","v":""},null,null,{"$f":"'1. Order'!AV1046","v":0},{"$f":"IF('1. Order'!AI1046=\"\",\"\",'1. Order'!AI1046)","v":""}]
[{"$f":"IF('1. Order'!B1047=\"\",\"\",'1. Order'!B1047)","v":""},{"$f":"IF('1. Order'!J1047=\"\",\"\",'1. Order'!J1047)","v":""},{"$f":"IF('1. Order'!K1047=\"\",\"\",'1. Order'!K1047)","v":""},{"$f":"IF('1. Order'!L1047=\"\",\"\",'1. Order'!L1047)","v":""},{"$f":"IF('1. Order'!N1047=\"\",\"\",'1. Order'!N1047)","v":""},null,null,{"$f":"'1. Order'!AV1047","v":0},{"$f":"IF('1. Order'!AI1047=\"\",\"\",'1. Order'!AI1047)","v":""}]
[{"$f":"IF('1. Order'!B1048=\"\",\"\",'1. Order'!B1048)","v":""},{"$f":"IF('1. Order'!J1048=\"\",\"\",'1. Order'!J1048)","v":""},{"$f":"IF('1. Order'!K1048=\"\",\"\",'1. Order'!K1048)","v":""},{"$f":"IF('1. Order'!L1048=\"\",\"\",'1. Order'!L1048)","v":""},{"$f":"IF('1. Order'!N1048=\"\",\"\",'1. Order'!N1048)","v":""},null,null,{"$f":"'1. Order'!AV1048","v":0},{"$f":"IF('1. Order'!AI1048=\"\",\"\",'1. Order'!AI1048)","v":""}]
[{"$f":"IF('1. Order'!B1049=\"\",\"\",'1. Order'!B1049)","v":""},{"$f":"IF('1. Order'!J1049=\"\",\"\",'1. Order'!J1049)","v":""},{"$f":"IF('1. Order'!K1049=\"\",\"\",'1. Order'!K1049)","v":""},{"$f":"IF('1. Order'!L1049=\"\",\"\",'1. Order'!L1049)","v":""},{"$f":"IF('1. Order'!N1049=\"\",\"\",'1. Order'!N1049)","v":""},null,null,{"$f":"'1. Order'!AV1049","v":0},{"$f":"IF('1. Order'!AI1049=\"\",\"\",'1. Order'!AI1049)","v":""}]
[{"$f":"IF('1. Order'!B1050=\"\",\"\",'1. Order'!B1050)","v":""},{"$f":"IF('1. Order'!J1050=\"\",\"\",'1. Order'!J1050)","v":""},{"$f":"IF('1. Order'!K1050=\"\",\"\",'1. Order'!K1050)","v":""},{"$f":"IF('1. Order'!L1050=\"\",\"\",'1. Order'!L1050)","v":""},{"$f":"IF('1. Order'!N1050=\"\",\"\",'1. Order'!N1050)","v":""},null,null,{"$f":"'1. Order'!AV1050","v":0},{"$f":"IF('1. Order'!AI1050=\"\",\"\",'1. Order'!AI1050)","v":""}]
[{"$f":"IF('1. Order'!B1051=\"\",\"\",'1. Order'!B1051)","v":""},{"$f":"IF('1. Order'!J1051=\"\",\"\",'1. Order'!J1051)","v":""},{"$f":"IF('1. Order'!K1051=\"\",\"\",'1. Order'!K1051)","v":""},{"$f":"IF('1. Order'!L1051=\"\",\"\",'1. Order'!L1051)","v":""},{"$f":"IF('1. Order'!N1051=\"\",\"\",'1. Order'!N1051)","v":""},null,null,{"$f":"'1. Order'!AV1051","v":0},{"$f":"IF('1. Order'!AI1051=\"\",\"\",'1. Order'!AI1051)","v":""}]
[{"$f":"IF('1. Order'!B1052=\"\",\"\",'1. Order'!B1052)","v":""},{"$f":"IF('1. Order'!J1052=\"\",\"\",'1. Order'!J1052)","v":""},{"$f":"IF('1. Order'!K1052=\"\",\"\",'1. Order'!K1052)","v":""},{"$f":"IF('1. Order'!L1052=\"\",\"\",'1. Order'!L1052)","v":""},{"$f":"IF('1. Order'!N1052=\"\",\"\",'1. Order'!N1052)","v":""},null,null,{"$f":"'1. Order'!AV1052","v":0},{"$f":"IF('1. Order'!AI1052=\"\",\"\",'1. Order'!AI1052)","v":""}]
[{"$f":"IF('1. Order'!B1053=\"\",\"\",'1. Order'!B1053)","v":""},{"$f":"IF('1. Order'!J1053=\"\",\"\",'1. Order'!J1053)","v":""},{"$f":"IF('1. Order'!K1053=\"\",\"\",'1. Order'!K1053)","v":""},{"$f":"IF('1. Order'!L1053=\"\",\"\",'1. Order'!L1053)","v":""},{"$f":"IF('1. Order'!N1053=\"\",\"\",'1. Order'!N1053)","v":""},null,null,{"$f":"'1. Order'!AV1053","v":0},{"$f":"IF('1. Order'!AI1053=\"\",\"\",'1. Order'!AI1053)","v":""}]
[{"$f":"IF('1. Order'!B1054=\"\",\"\",'1. Order'!B1054)","v":""},{"$f":"IF('1. Order'!J1054=\"\",\"\",'1. Order'!J1054)","v":""},{"$f":"IF('1. Order'!K1054=\"\",\"\",'1. Order'!K1054)","v":""},{"$f":"IF('1. Order'!L1054=\"\",\"\",'1. Order'!L1054)","v":""},{"$f":"IF('1. Order'!N1054=\"\",\"\",'1. Order'!N1054)","v":""},null,null,{"$f":"'1. Order'!AV1054","v":0},{"$f":"IF('1. Order'!AI1054=\"\",\"\",'1. Order'!AI1054)","v":""}]
[{"$f":"IF('1. Order'!B1055=\"\",\"\",'1. Order'!B1055)","v":""},{"$f":"IF('1. Order'!J1055=\"\",\"\",'1. Order'!J1055)","v":""},{"$f":"IF('1. Order'!K1055=\"\",\"\",'1. Order'!K1055)","v":""},{"$f":"IF('1. Order'!L1055=\"\",\"\",'1. Order'!L1055)","v":""},{"$f":"IF('1. Order'!N1055=\"\",\"\",'1. Order'!N1055)","v":""},null,null,{"$f":"'1. Order'!AV1055","v":0},{"$f":"IF('1. Order'!AI1055=\"\",\"\",'1. Order'!AI1055)","v":""}]
[{"$f":"IF('1. Order'!B1056=\"\",\"\",'1. Order'!B1056)","v":""},{"$f":"IF('1. Order'!J1056=\"\",\"\",'1. Order'!J1056)","v":""},{"$f":"IF('1. Order'!K1056=\"\",\"\",'1. Order'!K1056)","v":""},{"$f":"IF('1. Order'!L1056=\"\",\"\",'1. Order'!L1056)","v":""},{"$f":"IF('1. Order'!N1056=\"\",\"\",'1. Order'!N1056)","v":""},null,null,{"$f":"'1. Order'!AV1056","v":0},{"$f":"IF('1. Order'!AI1056=\"\",\"\",'1. Order'!AI1056)","v":""}]
[{"$f":"IF('1. Order'!B1057=\"\",\"\",'1. Order'!B1057)","v":""},{"$f":"IF('1. Order'!J1057=\"\",\"\",'1. Order'!J1057)","v":""},{"$f":"IF('1. Order'!K1057=\"\",\"\",'1. Order'!K1057)","v":""},{"$f":"IF('1. Order'!L1057=\"\",\"\",'1. Order'!L1057)","v":""},{"$f":"IF('1. Order'!N1057=\"\",\"\",'1. Order'!N1057)","v":""},null,null,{"$f":"'1. Order'!AV1057","v":0},{"$f":"IF('1. Order'!AI1057=\"\",\"\",'1. Order'!AI1057)","v":""}]
[{"$f":"IF('1. Order'!B1058=\"\",\"\",'1. Order'!B1058)","v":""},{"$f":"IF('1. Order'!J1058=\"\",\"\",'1. Order'!J1058)","v":""},{"$f":"IF('1. Order'!K1058=\"\",\"\",'1. Order'!K1058)","v":""},{"$f":"IF('1. Order'!L1058=\"\",\"\",'1. Order'!L1058)","v":""},{"$f":"IF('1. Order'!N1058=\"\",\"\",'1. Order'!N1058)","v":""},null,null,{"$f":"'1. Order'!AV1058","v":0},{"$f":"IF('1. Order'!AI1058=\"\",\"\",'1. Order'!AI1058)","v":""}]
[{"$f":"IF('1. Order'!B1059=\"\",\"\",'1. Order'!B1059)","v":""},{"$f":"IF('1. Order'!J1059=\"\",\"\",'1. Order'!J1059)","v":""},{"$f":"IF('1. Order'!K1059=\"\",\"\",'1. Order'!K1059)","v":""},{"$f":"IF('1. Order'!L1059=\"\",\"\",'1. Order'!L1059)","v":""},{"$f":"IF('1. Order'!N1059=\"\",\"\",'1. Order'!N1059)","v":""},null,null,{"$f":"'1. Order'!AV1059","v":0},{"$f":"IF('1. Order'!AI1059=\"\",\"\",'1. Order'!AI1059)","v":""}]
[{"$f":"IF('1. Order'!B1060=\"\",\"\",'1. Order'!B1060)","v":""},{"$f":"IF('1. Order'!J1060=\"\",\"\",'1. Order'!J1060)","v":""},{"$f":"IF('1. Order'!K1060=\"\",\"\",'1. Order'!K1060)","v":""},{"$f":"IF('1. Order'!L1060=\"\",\"\",'1. Order'!L1060)","v":""},{"$f":"IF('1. Order'!N1060=\"\",\"\",'1. Order'!N1060)","v":""},null,null,{"$f":"'1. Order'!AV1060","v":0},{"$f":"IF('1. Order'!AI1060=\"\",\"\",'1. Order'!AI1060)","v":""}]
[{"$f":"IF('1. Order'!B1061=\"\",\"\",'1. Order'!B1061)","v":""},{"$f":"IF('1. Order'!J1061=\"\",\"\",'1. Order'!J1061)","v":""},{"$f":"IF('1. Order'!K1061=\"\",\"\",'1. Order'!K1061)","v":""},{"$f":"IF('1. Order'!L1061=\"\",\"\",'1. Order'!L1061)","v":""},{"$f":"IF('1. Order'!N1061=\"\",\"\",'1. Order'!N1061)","v":""},null,null,{"$f":"'1. Order'!AV1061","v":0},{"$f":"IF('1. Order'!AI1061=\"\",\"\",'1. Order'!AI1061)","v":""}]
[{"$f":"IF('1. Order'!B1062=\"\",\"\",'1. Order'!B1062)","v":""},{"$f":"IF('1. Order'!J1062=\"\",\"\",'1. Order'!J1062)","v":""},{"$f":"IF('1. Order'!K1062=\"\",\"\",'1. Order'!K1062)","v":""},{"$f":"IF('1. Order'!L1062=\"\",\"\",'1. Order'!L1062)","v":""},{"$f":"IF('1. Order'!N1062=\"\",\"\",'1. Order'!N1062)","v":""},null,null,{"$f":"'1. Order'!AV1062","v":0},{"$f":"IF('1. Order'!AI1062=\"\",\"\",'1. Order'!AI1062)","v":""}]
[{"$f":"IF('1. Order'!B1063=\"\",\"\",'1. Order'!B1063)","v":""},{"$f":"IF('1. Order'!J1063=\"\",\"\",'1. Order'!J1063)","v":""},{"$f":"IF('1. Order'!K1063=\"\",\"\",'1. Order'!K1063)","v":""},{"$f":"IF('1. Order'!L1063=\"\",\"\",'1. Order'!L1063)","v":""},{"$f":"IF('1. Order'!N1063=\"\",\"\",'1. Order'!N1063)","v":""},null,null,{"$f":"'1. Order'!AV1063","v":0},{"$f":"IF('1. Order'!AI1063=\"\",\"\",'1. Order'!AI1063)","v":""}]
[{"$f":"IF('1. Order'!B1064=\"\",\"\",'1. Order'!B1064)","v":""},{"$f":"IF('1. Order'!J1064=\"\",\"\",'1. Order'!J1064)","v":""},{"$f":"IF('1. Order'!K1064=\"\",\"\",'1. Order'!K1064)","v":""},{"$f":"IF('1. Order'!L1064=\"\",\"\",'1. Order'!L1064)","v":""},{"$f":"IF('1. Order'!N1064=\"\",\"\",'1. Order'!N1064)","v":""},null,null,{"$f":"'1. Order'!AV1064","v":0},{"$f":"IF('1. Order'!AI1064=\"\",\"\",'1. Order'!AI1064)","v":""}]
[{"$f":"IF('1. Order'!B1065=\"\",\"\",'1. Order'!B1065)","v":""},{"$f":"IF('1. Order'!J1065=\"\",\"\",'1. Order'!J1065)","v":""},{"$f":"IF('1. Order'!K1065=\"\",\"\",'1. Order'!K1065)","v":""},{"$f":"IF('1. Order'!L1065=\"\",\"\",'1. Order'!L1065)","v":""},{"$f":"IF('1. Order'!N1065=\"\",\"\",'1. Order'!N1065)","v":""},null,null,{"$f":"'1. Order'!AV1065","v":0},{"$f":"IF('1. Order'!AI1065=\"\",\"\",'1. Order'!AI1065)","v":""}]
[{"$f":"IF('1. Order'!B1066=\"\",\"\",'1. Order'!B1066)","v":""},{"$f":"IF('1. Order'!J1066=\"\",\"\",'1. Order'!J1066)","v":""},{"$f":"IF('1. Order'!K1066=\"\",\"\",'1. Order'!K1066)","v":""},{"$f":"IF('1. Order'!L1066=\"\",\"\",'1. Order'!L1066)","v":""},{"$f":"IF('1. Order'!N1066=\"\",\"\",'1. Order'!N1066)","v":""},null,null,{"$f":"'1. Order'!AV1066","v":0},{"$f":"IF('1. Order'!AI1066=\"\",\"\",'1. Order'!AI1066)","v":""}]
[{"$f":"IF('1. Order'!B1067=\"\",\"\",'1. Order'!B1067)","v":""},{"$f":"IF('1. Order'!J1067=\"\",\"\",'1. Order'!J1067)","v":""},{"$f":"IF('1. Order'!K1067=\"\",\"\",'1. Order'!K1067)","v":""},{"$f":"IF('1. Order'!L1067=\"\",\"\",'1. Order'!L1067)","v":""},{"$f":"IF('1. Order'!N1067=\"\",\"\",'1. Order'!N1067)","v":""},null,null,{"$f":"'1. Order'!AV1067","v":0},{"$f":"IF('1. Order'!AI1067=\"\",\"\",'1. Order'!AI1067)","v":""}]
[{"$f":"IF('1. Order'!B1068=\"\",\"\",'1. Order'!B1068)","v":""},{"$f":"IF('1. Order'!J1068=\"\",\"\",'1. Order'!J1068)","v":""},{"$f":"IF('1. Order'!K1068=\"\",\"\",'1. Order'!K1068)","v":""},{"$f":"IF('1. Order'!L1068=\"\",\"\",'1. Order'!L1068)","v":""},{"$f":"IF('1. Order'!N1068=\"\",\"\",'1. Order'!N1068)","v":""},null,null,{"$f":"'1. Order'!AV1068","v":0},{"$f":"IF('1. Order'!AI1068=\"\",\"\",'1. Order'!AI1068)","v":""}]
[{"$f":"IF('1. Order'!B1069=\"\",\"\",'1. Order'!B1069)","v":""},{"$f":"IF('1. Order'!J1069=\"\",\"\",'1. Order'!J1069)","v":""},{"$f":"IF('1. Order'!K1069=\"\",\"\",'1. Order'!K1069)","v":""},{"$f":"IF('1. Order'!L1069=\"\",\"\",'1. Order'!L1069)","v":""},{"$f":"IF('1. Order'!N1069=\"\",\"\",'1. Order'!N1069)","v":""},null,null,{"$f":"'1. Order'!AV1069","v":0},{"$f":"IF('1. Order'!AI1069=\"\",\"\",'1. Order'!AI1069)","v":""}]
[{"$f":"IF('1. Order'!B1070=\"\",\"\",'1. Order'!B1070)","v":""},{"$f":"IF('1. Order'!J1070=\"\",\"\",'1. Order'!J1070)","v":""},{"$f":"IF('1. Order'!K1070=\"\",\"\",'1. Order'!K1070)","v":""},{"$f":"IF('1. Order'!L1070=\"\",\"\",'1. Order'!L1070)","v":""},{"$f":"IF('1. Order'!N1070=\"\",\"\",'1. Order'!N1070)","v":""},null,null,{"$f":"'1. Order'!AV1070","v":0},{"$f":"IF('1. Order'!AI1070=\"\",\"\",'1. Order'!AI1070)","v":""}]
[{"$f":"IF('1. Order'!B1071=\"\",\"\",'1. Order'!B1071)","v":""},{"$f":"IF('1. Order'!J1071=\"\",\"\",'1. Order'!J1071)","v":""},{"$f":"IF('1. Order'!K1071=\"\",\"\",'1. Order'!K1071)","v":""},{"$f":"IF('1. Order'!L1071=\"\",\"\",'1. Order'!L1071)","v":""},{"$f":"IF('1. Order'!N1071=\"\",\"\",'1. Order'!N1071)","v":""},null,null,{"$f":"'1. Order'!AV1071","v":0},{"$f":"IF('1. Order'!AI1071=\"\",\"\",'1. Order'!AI1071)","v":""}]
[{"$f":"IF('1. Order'!B1072=\"\",\"\",'1. Order'!B1072)","v":""},{"$f":"IF('1. Order'!J1072=\"\",\"\",'1. Order'!J1072)","v":""},{"$f":"IF('1. Order'!K1072=\"\",\"\",'1. Order'!K1072)","v":""},{"$f":"IF('1. Order'!L1072=\"\",\"\",'1. Order'!L1072)","v":""},{"$f":"IF('1. Order'!N1072=\"\",\"\",'1. Order'!N1072)","v":""},null,null,{"$f":"'1. Order'!AV1072","v":0},{"$f":"IF('1. Order'!AI1072=\"\",\"\",'1. Order'!AI1072)","v":""}]
[{"$f":"IF('1. Order'!B1073=\"\",\"\",'1. Order'!B1073)","v":""},{"$f":"IF('1. Order'!J1073=\"\",\"\",'1. Order'!J1073)","v":""},{"$f":"IF('1. Order'!K1073=\"\",\"\",'1. Order'!K1073)","v":""},{"$f":"IF('1. Order'!L1073=\"\",\"\",'1. Order'!L1073)","v":""},{"$f":"IF('1. Order'!N1073=\"\",\"\",'1. Order'!N1073)","v":""},null,null,{"$f":"'1. Order'!AV1073","v":0},{"$f":"IF('1. Order'!AI1073=\"\",\"\",'1. Order'!AI1073)","v":""}]
[{"$f":"IF('1. Order'!B1074=\"\",\"\",'1. Order'!B1074)","v":""},{"$f":"IF('1. Order'!J1074=\"\",\"\",'1. Order'!J1074)","v":""},{"$f":"IF('1. Order'!K1074=\"\",\"\",'1. Order'!K1074)","v":""},{"$f":"IF('1. Order'!L1074=\"\",\"\",'1. Order'!L1074)","v":""},{"$f":"IF('1. Order'!N1074=\"\",\"\",'1. Order'!N1074)","v":""},null,null,{"$f":"'1. Order'!AV1074","v":0},{"$f":"IF('1. Order'!AI1074=\"\",\"\",'1. Order'!AI1074)","v":""}]
[{"$f":"IF('1. Order'!B1075=\"\",\"\",'1. Order'!B1075)","v":""},{"$f":"IF('1. Order'!J1075=\"\",\"\",'1. Order'!J1075)","v":""},{"$f":"IF('1. Order'!K1075=\"\",\"\",'1. Order'!K1075)","v":""},{"$f":"IF('1. Order'!L1075=\"\",\"\",'1. Order'!L1075)","v":""},{"$f":"IF('1. Order'!N1075=\"\",\"\",'1. Order'!N1075)","v":""},null,null,{"$f":"'1. Order'!AV1075","v":0},{"$f":"IF('1. Order'!AI1075=\"\",\"\",'1. Order'!AI1075)","v":""}]
[{"$f":"IF('1. Order'!B1076=\"\",\"\",'1. Order'!B1076)","v":""},{"$f":"IF('1. Order'!J1076=\"\",\"\",'1. Order'!J1076)","v":""},{"$f":"IF('1. Order'!K1076=\"\",\"\",'1. Order'!K1076)","v":""},{"$f":"IF('1. Order'!L1076=\"\",\"\",'1. Order'!L1076)","v":""},{"$f":"IF('1. Order'!N1076=\"\",\"\",'1. Order'!N1076)","v":""},null,null,{"$f":"'1. Order'!AV1076","v":0},{"$f":"IF('1. Order'!AI1076=\"\",\"\",'1. Order'!AI1076)","v":""}]
[{"$f":"IF('1. Order'!B1077=\"\",\"\",'1. Order'!B1077)","v":""},{"$f":"IF('1. Order'!J1077=\"\",\"\",'1. Order'!J1077)","v":""},{"$f":"IF('1. Order'!K1077=\"\",\"\",'1. Order'!K1077)","v":""},{"$f":"IF('1. Order'!L1077=\"\",\"\",'1. Order'!L1077)","v":""},{"$f":"IF('1. Order'!N1077=\"\",\"\",'1. Order'!N1077)","v":""},null,null,{"$f":"'1. Order'!AV1077","v":0},{"$f":"IF('1. Order'!AI1077=\"\",\"\",'1. Order'!AI1077)","v":""}]
[{"$f":"IF('1. Order'!B1078=\"\",\"\",'1. Order'!B1078)","v":""},{"$f":"IF('1. Order'!J1078=\"\",\"\",'1. Order'!J1078)","v":""},{"$f":"IF('1. Order'!K1078=\"\",\"\",'1. Order'!K1078)","v":""},{"$f":"IF('1. Order'!L1078=\"\",\"\",'1. Order'!L1078)","v":""},{"$f":"IF('1. Order'!N1078=\"\",\"\",'1. Order'!N1078)","v":""},null,null,{"$f":"'1. Order'!AV1078","v":0},{"$f":"IF('1. Order'!AI1078=\"\",\"\",'1. Order'!AI1078)","v":""}]
[{"$f":"IF('1. Order'!B1079=\"\",\"\",'1. Order'!B1079)","v":""},{"$f":"IF('1. Order'!J1079=\"\",\"\",'1. Order'!J1079)","v":""},{"$f":"IF('1. Order'!K1079=\"\",\"\",'1. Order'!K1079)","v":""},{"$f":"IF('1. Order'!L1079=\"\",\"\",'1. Order'!L1079)","v":""},{"$f":"IF('1. Order'!N1079=\"\",\"\",'1. Order'!N1079)","v":""},null,null,{"$f":"'1. Order'!AV1079","v":0},{"$f":"IF('1. Order'!AI1079=\"\",\"\",'1. Order'!AI1079)","v":""}]
[{"$f":"IF('1. Order'!B1080=\"\",\"\",'1. Order'!B1080)","v":""},{"$f":"IF('1. Order'!J1080=\"\",\"\",'1. Order'!J1080)","v":""},{"$f":"IF('1. Order'!K1080=\"\",\"\",'1. Order'!K1080)","v":""},{"$f":"IF('1. Order'!L1080=\"\",\"\",'1. Order'!L1080)","v":""},{"$f":"IF('1. Order'!N1080=\"\",\"\",'1. Order'!N1080)","v":""},null,null,{"$f":"'1. Order'!AV1080","v":0},{"$f":"IF('1. Order'!AI1080=\"\",\"\",'1. Order'!AI1080)","v":""}]
[{"$f":"IF('1. Order'!B1081=\"\",\"\",'1. Order'!B1081)","v":""},{"$f":"IF('1. Order'!J1081=\"\",\"\",'1. Order'!J1081)","v":""},{"$f":"IF('1. Order'!K1081=\"\",\"\",'1. Order'!K1081)","v":""},{"$f":"IF('1. Order'!L1081=\"\",\"\",'1. Order'!L1081)","v":""},{"$f":"IF('1. Order'!N1081=\"\",\"\",'1. Order'!N1081)","v":""},null,null,{"$f":"'1. Order'!AV1081","v":0},{"$f":"IF('1. Order'!AI1081=\"\",\"\",'1. Order'!AI1081)","v":""}]
[{"$f":"IF('1. Order'!B1082=\"\",\"\",'1. Order'!B1082)","v":""},{"$f":"IF('1. Order'!J1082=\"\",\"\",'1. Order'!J1082)","v":""},{"$f":"IF('1. Order'!K1082=\"\",\"\",'1. Order'!K1082)","v":""},{"$f":"IF('1. Order'!L1082=\"\",\"\",'1. Order'!L1082)","v":""},{"$f":"IF('1. Order'!N1082=\"\",\"\",'1. Order'!N1082)","v":""},null,null,{"$f":"'1. Order'!AV1082","v":0},{"$f":"IF('1. Order'!AI1082=\"\",\"\",'1. Order'!AI1082)","v":""}]
[{"$f":"IF('1. Order'!B1083=\"\",\"\",'1. Order'!B1083)","v":""},{"$f":"IF('1. Order'!J1083=\"\",\"\",'1. Order'!J1083)","v":""},{"$f":"IF('1. Order'!K1083=\"\",\"\",'1. Order'!K1083)","v":""},{"$f":"IF('1. Order'!L1083=\"\",\"\",'1. Order'!L1083)","v":""},{"$f":"IF('1. Order'!N1083=\"\",\"\",'1. Order'!N1083)","v":""},null,null,{"$f":"'1. Order'!AV1083","v":0},{"$f":"IF('1. Order'!AI1083=\"\",\"\",'1. Order'!AI1083)","v":""}]
[{"$f":"IF('1. Order'!B1084=\"\",\"\",'1. Order'!B1084)","v":""},{"$f":"IF('1. Order'!J1084=\"\",\"\",'1. Order'!J1084)","v":""},{"$f":"IF('1. Order'!K1084=\"\",\"\",'1. Order'!K1084)","v":""},{"$f":"IF('1. Order'!L1084=\"\",\"\",'1. Order'!L1084)","v":""},{"$f":"IF('1. Order'!N1084=\"\",\"\",'1. Order'!N1084)","v":""},null,null,{"$f":"'1. Order'!AV1084","v":0},{"$f":"IF('1. Order'!AI1084=\"\",\"\",'1. Order'!AI1084)","v":""}]
[{"$f":"IF('1. Order'!B1085=\"\",\"\",'1. Order'!B1085)","v":""},{"$f":"IF('1. Order'!J1085=\"\",\"\",'1. Order'!J1085)","v":""},{"$f":"IF('1. Order'!K1085=\"\",\"\",'1. Order'!K1085)","v":""},{"$f":"IF('1. Order'!L1085=\"\",\"\",'1. Order'!L1085)","v":""},{"$f":"IF('1. Order'!N1085=\"\",\"\",'1. Order'!N1085)","v":""},null,null,{"$f":"'1. Order'!AV1085","v":0},{"$f":"IF('1. Order'!AI1085=\"\",\"\",'1. Order'!AI1085)","v":""}]
[{"$f":"IF('1. Order'!B1086=\"\",\"\",'1. Order'!B1086)","v":""},{"$f":"IF('1. Order'!J1086=\"\",\"\",'1. Order'!J1086)","v":""},{"$f":"IF('1. Order'!K1086=\"\",\"\",'1. Order'!K1086)","v":""},{"$f":"IF('1. Order'!L1086=\"\",\"\",'1. Order'!L1086)","v":""},{"$f":"IF('1. Order'!N1086=\"\",\"\",'1. Order'!N1086)","v":""},null,null,{"$f":"'1. Order'!AV1086","v":0},{"$f":"IF('1. Order'!AI1086=\"\",\"\",'1. Order'!AI1086)","v":""}]
[{"$f":"IF('1. Order'!B1087=\"\",\"\",'1. Order'!B1087)","v":""},{"$f":"IF('1. Order'!J1087=\"\",\"\",'1. Order'!J1087)","v":""},{"$f":"IF('1. Order'!K1087=\"\",\"\",'1. Order'!K1087)","v":""},{"$f":"IF('1. Order'!L1087=\"\",\"\",'1. Order'!L1087)","v":""},{"$f":"IF('1. Order'!N1087=\"\",\"\",'1. Order'!N1087)","v":""},null,null,{"$f":"'1. Order'!AV1087","v":0},{"$f":"IF('1. Order'!AI1087=\"\",\"\",'1. Order'!AI1087)","v":""}]
[{"$f":"IF('1. Order'!B1088=\"\",\"\",'1. Order'!B1088)","v":""},{"$f":"IF('1. Order'!J1088=\"\",\"\",'1. Order'!J1088)","v":""},{"$f":"IF('1. Order'!K1088=\"\",\"\",'1. Order'!K1088)","v":""},{"$f":"IF('1. Order'!L1088=\"\",\"\",'1. Order'!L1088)","v":""},{"$f":"IF('1. Order'!N1088=\"\",\"\",'1. Order'!N1088)","v":""},null,null,{"$f":"'1. Order'!AV1088","v":0},{"$f":"IF('1. Order'!AI1088=\"\",\"\",'1. Order'!AI1088)","v":""}]
[{"$f":"IF('1. Order'!B1089=\"\",\"\",'1. Order'!B1089)","v":""},{"$f":"IF('1. Order'!J1089=\"\",\"\",'1. Order'!J1089)","v":""},{"$f":"IF('1. Order'!K1089=\"\",\"\",'1. Order'!K1089)","v":""},{"$f":"IF('1. Order'!L1089=\"\",\"\",'1. Order'!L1089)","v":""},{"$f":"IF('1. Order'!N1089=\"\",\"\",'1. Order'!N1089)","v":""},null,null,{"$f":"'1. Order'!AV1089","v":0},{"$f":"IF('1. Order'!AI1089=\"\",\"\",'1. Order'!AI1089)","v":""}]
[{"$f":"IF('1. Order'!B1090=\"\",\"\",'1. Order'!B1090)","v":""},{"$f":"IF('1. Order'!J1090=\"\",\"\",'1. Order'!J1090)","v":""},{"$f":"IF('1. Order'!K1090=\"\",\"\",'1. Order'!K1090)","v":""},{"$f":"IF('1. Order'!L1090=\"\",\"\",'1. Order'!L1090)","v":""},{"$f":"IF('1. Order'!N1090=\"\",\"\",'1. Order'!N1090)","v":""},null,null,{"$f":"'1. Order'!AV1090","v":0},{"$f":"IF('1. Order'!AI1090=\"\",\"\",'1. Order'!AI1090)","v":""}]
[{"$f":"IF('1. Order'!B1091=\"\",\"\",'1. Order'!B1091)","v":""},{"$f":"IF('1. Order'!J1091=\"\",\"\",'1. Order'!J1091)","v":""},{"$f":"IF('1. Order'!K1091=\"\",\"\",'1. Order'!K1091)","v":""},{"$f":"IF('1. Order'!L1091=\"\",\"\",'1. Order'!L1091)","v":""},{"$f":"IF('1. Order'!N1091=\"\",\"\",'1. Order'!N1091)","v":""},null,null,{"$f":"'1. Order'!AV1091","v":0},{"$f":"IF('1. Order'!AI1091=\"\",\"\",'1. Order'!AI1091)","v":""}]
[{"$f":"IF('1. Order'!B1092=\"\",\"\",'1. Order'!B1092)","v":""},{"$f":"IF('1. Order'!J1092=\"\",\"\",'1. Order'!J1092)","v":""},{"$f":"IF('1. Order'!K1092=\"\",\"\",'1. Order'!K1092)","v":""},{"$f":"IF('1. Order'!L1092=\"\",\"\",'1. Order'!L1092)","v":""},{"$f":"IF('1. Order'!N1092=\"\",\"\",'1. Order'!N1092)","v":""},null,null,{"$f":"'1. Order'!AV1092","v":0},{"$f":"IF('1. Order'!AI1092=\"\",\"\",'1. Order'!AI1092)","v":""}]
[{"$f":"IF('1. Order'!B1093=\"\",\"\",'1. Order'!B1093)","v":""},{"$f":"IF('1. Order'!J1093=\"\",\"\",'1. Order'!J1093)","v":""},{"$f":"IF('1. Order'!K1093=\"\",\"\",'1. Order'!K1093)","v":""},{"$f":"IF('1. Order'!L1093=\"\",\"\",'1. Order'!L1093)","v":""},{"$f":"IF('1. Order'!N1093=\"\",\"\",'1. Order'!N1093)","v":""},null,null,{"$f":"'1. Order'!AV1093","v":0},{"$f":"IF('1. Order'!AI1093=\"\",\"\",'1. Order'!AI1093)","v":""}]
[{"$f":"IF('1. Order'!B1094=\"\",\"\",'1. Order'!B1094)","v":""},{"$f":"IF('1. Order'!J1094=\"\",\"\",'1. Order'!J1094)","v":""},{"$f":"IF('1. Order'!K1094=\"\",\"\",'1. Order'!K1094)","v":""},{"$f":"IF('1. Order'!L1094=\"\",\"\",'1. Order'!L1094)","v":""},{"$f":"IF('1. Order'!N1094=\"\",\"\",'1. Order'!N1094)","v":""},null,null,{"$f":"'1. Order'!AV1094","v":0},{"$f":"IF('1. Order'!AI1094=\"\",\"\",'1. Order'!AI1094)","v":""}]
[{"$f":"IF('1. Order'!B1095=\"\",\"\",'1. Order'!B1095)","v":""},{"$f":"IF('1. Order'!J1095=\"\",\"\",'1. Order'!J1095)","v":""},{"$f":"IF('1. Order'!K1095=\"\",\"\",'1. Order'!K1095)","v":""},{"$f":"IF('1. Order'!L1095=\"\",\"\",'1. Order'!L1095)","v":""},{"$f":"IF('1. Order'!N1095=\"\",\"\",'1. Order'!N1095)","v":""},null,null,{"$f":"'1. Order'!AV1095","v":0},{"$f":"IF('1. Order'!AI1095=\"\",\"\",'1. Order'!AI1095)","v":""}]
[{"$f":"IF('1. Order'!B1096=\"\",\"\",'1. Order'!B1096)","v":""},{"$f":"IF('1. Order'!J1096=\"\",\"\",'1. Order'!J1096)","v":""},{"$f":"IF('1. Order'!K1096=\"\",\"\",'1. Order'!K1096)","v":""},{"$f":"IF('1. Order'!L1096=\"\",\"\",'1. Order'!L1096)","v":""},{"$f":"IF('1. Order'!N1096=\"\",\"\",'1. Order'!N1096)","v":""},null,null,{"$f":"'1. Order'!AV1096","v":0},{"$f":"IF('1. Order'!AI1096=\"\",\"\",'1. Order'!AI1096)","v":""}]
[{"$f":"IF('1. Order'!B1097=\"\",\"\",'1. Order'!B1097)","v":""},{"$f":"IF('1. Order'!J1097=\"\",\"\",'1. Order'!J1097)","v":""},{"$f":"IF('1. Order'!K1097=\"\",\"\",'1. Order'!K1097)","v":""},{"$f":"IF('1. Order'!L1097=\"\",\"\",'1. Order'!L1097)","v":""},{"$f":"IF('1. Order'!N1097=\"\",\"\",'1. Order'!N1097)","v":""},null,null,{"$f":"'1. Order'!AV1097","v":0},{"$f":"IF('1. Order'!AI1097=\"\",\"\",'1. Order'!AI1097)","v":""}]
[{"$f":"IF('1. Order'!B1098=\"\",\"\",'1. Order'!B1098)","v":""},{"$f":"IF('1. Order'!J1098=\"\",\"\",'1. Order'!J1098)","v":""},{"$f":"IF('1. Order'!K1098=\"\",\"\",'1. Order'!K1098)","v":""},{"$f":"IF('1. Order'!L1098=\"\",\"\",'1. Order'!L1098)","v":""},{"$f":"IF('1. Order'!N1098=\"\",\"\",'1. Order'!N1098)","v":""},null,null,{"$f":"'1. Order'!AV1098","v":0},{"$f":"IF('1. Order'!AI1098=\"\",\"\",'1. Order'!AI1098)","v":""}]
[{"$f":"IF('1. Order'!B1099=\"\",\"\",'1. Order'!B1099)","v":""},{"$f":"IF('1. Order'!J1099=\"\",\"\",'1. Order'!J1099)","v":""},{"$f":"IF('1. Order'!K1099=\"\",\"\",'1. Order'!K1099)","v":""},{"$f":"IF('1. Order'!L1099=\"\",\"\",'1. Order'!L1099)","v":""},{"$f":"IF('1. Order'!N1099=\"\",\"\",'1. Order'!N1099)","v":""},null,null,{"$f":"'1. Order'!AV1099","v":0},{"$f":"IF('1. Order'!AI1099=\"\",\"\",'1. Order'!AI1099)","v":""}]
[{"$f":"IF('1. Order'!B1100=\"\",\"\",'1. Order'!B1100)","v":""},{"$f":"IF('1. Order'!J1100=\"\",\"\",'1. Order'!J1100)","v":""},{"$f":"IF('1. Order'!K1100=\"\",\"\",'1. Order'!K1100)","v":""},{"$f":"IF('1. Order'!L1100=\"\",\"\",'1. Order'!L1100)","v":""},{"$f":"IF('1. Order'!N1100=\"\",\"\",'1. Order'!N1100)","v":""},null,null,{"$f":"'1. Order'!AV1100","v":0},{"$f":"IF('1. Order'!AI1100=\"\",\"\",'1. Order'!AI1100)","v":""}]
[{"$f":"IF('1. Order'!B1101=\"\",\"\",'1. Order'!B1101)","v":""},{"$f":"IF('1. Order'!J1101=\"\",\"\",'1. Order'!J1101)","v":""},{"$f":"IF('1. Order'!K1101=\"\",\"\",'1. Order'!K1101)","v":""},{"$f":"IF('1. Order'!L1101=\"\",\"\",'1. Order'!L1101)","v":""},{"$f":"IF('1. Order'!N1101=\"\",\"\",'1. Order'!N1101)","v":""},null,null,{"$f":"'1. Order'!AV1101","v":0},{"$f":"IF('1. Order'!AI1101=\"\",\"\",'1. Order'!AI1101)","v":""}]
[{"$f":"IF('1. Order'!B1102=\"\",\"\",'1. Order'!B1102)","v":""},{"$f":"IF('1. Order'!J1102=\"\",\"\",'1. Order'!J1102)","v":""},{"$f":"IF('1. Order'!K1102=\"\",\"\",'1. Order'!K1102)","v":""},{"$f":"IF('1. Order'!L1102=\"\",\"\",'1. Order'!L1102)","v":""},{"$f":"IF('1. Order'!N1102=\"\",\"\",'1. Order'!N1102)","v":""},null,null,{"$f":"'1. Order'!AV1102","v":0},{"$f":"IF('1. Order'!AI1102=\"\",\"\",'1. Order'!AI1102)","v":""}]
[{"$f":"IF('1. Order'!B1103=\"\",\"\",'1. Order'!B1103)","v":""},{"$f":"IF('1. Order'!J1103=\"\",\"\",'1. Order'!J1103)","v":""},{"$f":"IF('1. Order'!K1103=\"\",\"\",'1. Order'!K1103)","v":""},{"$f":"IF('1. Order'!L1103=\"\",\"\",'1. Order'!L1103)","v":""},{"$f":"IF('1. Order'!N1103=\"\",\"\",'1. Order'!N1103)","v":""},null,null,{"$f":"'1. Order'!AV1103","v":0},{"$f":"IF('1. Order'!AI1103=\"\",\"\",'1. Order'!AI1103)","v":""}]
[{"$f":"IF('1. Order'!B1104=\"\",\"\",'1. Order'!B1104)","v":""},{"$f":"IF('1. Order'!J1104=\"\",\"\",'1. Order'!J1104)","v":""},{"$f":"IF('1. Order'!K1104=\"\",\"\",'1. Order'!K1104)","v":""},{"$f":"IF('1. Order'!L1104=\"\",\"\",'1. Order'!L1104)","v":""},{"$f":"IF('1. Order'!N1104=\"\",\"\",'1. Order'!N1104)","v":""},null,null,{"$f":"'1. Order'!AV1104","v":0},{"$f":"IF('1. Order'!AI1104=\"\",\"\",'1. Order'!AI1104)","v":""}]
[{"$f":"IF('1. Order'!B1105=\"\",\"\",'1. Order'!B1105)","v":""},{"$f":"IF('1. Order'!J1105=\"\",\"\",'1. Order'!J1105)","v":""},{"$f":"IF('1. Order'!K1105=\"\",\"\",'1. Order'!K1105)","v":""},{"$f":"IF('1. Order'!L1105=\"\",\"\",'1. Order'!L1105)","v":""},{"$f":"IF('1. Order'!N1105=\"\",\"\",'1. Order'!N1105)","v":""},null,null,{"$f":"'1. Order'!AV1105","v":0},{"$f":"IF('1. Order'!AI1105=\"\",\"\",'1. Order'!AI1105)","v":""}]
[{"$f":"IF('1. Order'!B1106=\"\",\"\",'1. Order'!B1106)","v":""},{"$f":"IF('1. Order'!J1106=\"\",\"\",'1. Order'!J1106)","v":""},{"$f":"IF('1. Order'!K1106=\"\",\"\",'1. Order'!K1106)","v":""},{"$f":"IF('1. Order'!L1106=\"\",\"\",'1. Order'!L1106)","v":""},{"$f":"IF('1. Order'!N1106=\"\",\"\",'1. Order'!N1106)","v":""},null,null,{"$f":"'1. Order'!AV1106","v":0},{"$f":"IF('1. Order'!AI1106=\"\",\"\",'1. Order'!AI1106)","v":""}]
[{"$f":"IF('1. Order'!B1107=\"\",\"\",'1. Order'!B1107)","v":""},{"$f":"IF('1. Order'!J1107=\"\",\"\",'1. Order'!J1107)","v":""},{"$f":"IF('1. Order'!K1107=\"\",\"\",'1. Order'!K1107)","v":""},{"$f":"IF('1. Order'!L1107=\"\",\"\",'1. Order'!L1107)","v":""},{"$f":"IF('1. Order'!N1107=\"\",\"\",'1. Order'!N1107)","v":""},null,null,{"$f":"'1. Order'!AV1107","v":0},{"$f":"IF('1. Order'!AI1107=\"\",\"\",'1. Order'!AI1107)","v":""}]
[{"$f":"IF('1. Order'!B1108=\"\",\"\",'1. Order'!B1108)","v":""},{"$f":"IF('1. Order'!J1108=\"\",\"\",'1. Order'!J1108)","v":""},{"$f":"IF('1. Order'!K1108=\"\",\"\",'1. Order'!K1108)","v":""},{"$f":"IF('1. Order'!L1108=\"\",\"\",'1. Order'!L1108)","v":""},{"$f":"IF('1. Order'!N1108=\"\",\"\",'1. Order'!N1108)","v":""},null,null,{"$f":"'1. Order'!AV1108","v":0},{"$f":"IF('1. Order'!AI1108=\"\",\"\",'1. Order'!AI1108)","v":""}]
[{"$f":"IF('1. Order'!B1109=\"\",\"\",'1. Order'!B1109)","v":""},{"$f":"IF('1. Order'!J1109=\"\",\"\",'1. Order'!J1109)","v":""},{"$f":"IF('1. Order'!K1109=\"\",\"\",'1. Order'!K1109)","v":""},{"$f":"IF('1. Order'!L1109=\"\",\"\",'1. Order'!L1109)","v":""},{"$f":"IF('1. Order'!N1109=\"\",\"\",'1. Order'!N1109)","v":""},null,null,{"$f":"'1. Order'!AV1109","v":0},{"$f":"IF('1. Order'!AI1109=\"\",\"\",'1. Order'!AI1109)","v":""}]
[{"$f":"IF('1. Order'!B1110=\"\",\"\",'1. Order'!B1110)","v":""},{"$f":"IF('1. Order'!J1110=\"\",\"\",'1. Order'!J1110)","v":""},{"$f":"IF('1. Order'!K1110=\"\",\"\",'1. Order'!K1110)","v":""},{"$f":"IF('1. Order'!L1110=\"\",\"\",'1. Order'!L1110)","v":""},{"$f":"IF('1. Order'!N1110=\"\",\"\",'1. Order'!N1110)","v":""},null,null,{"$f":"'1. Order'!AV1110","v":0},{"$f":"IF('1. Order'!AI1110=\"\",\"\",'1. Order'!AI1110)","v":""}]
[{"$f":"IF('1. Order'!B1111=\"\",\"\",'1. Order'!B1111)","v":""},{"$f":"IF('1. Order'!J1111=\"\",\"\",'1. Order'!J1111)","v":""},{"$f":"IF('1. Order'!K1111=\"\",\"\",'1. Order'!K1111)","v":""},{"$f":"IF('1. Order'!L1111=\"\",\"\",'1. Order'!L1111)","v":""},{"$f":"IF('1. Order'!N1111=\"\",\"\",'1. Order'!N1111)","v":""},null,null,{"$f":"'1. Order'!AV1111","v":0},{"$f":"IF('1. Order'!AI1111=\"\",\"\",'1. Order'!AI1111)","v":""}]
[{"$f":"IF('1. Order'!B1112=\"\",\"\",'1. Order'!B1112)","v":""},{"$f":"IF('1. Order'!J1112=\"\",\"\",'1. Order'!J1112)","v":""},{"$f":"IF('1. Order'!K1112=\"\",\"\",'1. Order'!K1112)","v":""},{"$f":"IF('1. Order'!L1112=\"\",\"\",'1. Order'!L1112)","v":""},{"$f":"IF('1. Order'!N1112=\"\",\"\",'1. Order'!N1112)","v":""},null,null,{"$f":"'1. Order'!AV1112","v":0},{"$f":"IF('1. Order'!AI1112=\"\",\"\",'1. Order'!AI1112)","v":""}]
[{"$f":"IF('1. Order'!B1113=\"\",\"\",'1. Order'!B1113)","v":""},{"$f":"IF('1. Order'!J1113=\"\",\"\",'1. Order'!J1113)","v":""},{"$f":"IF('1. Order'!K1113=\"\",\"\",'1. Order'!K1113)","v":""},{"$f":"IF('1. Order'!L1113=\"\",\"\",'1. Order'!L1113)","v":""},{"$f":"IF('1. Order'!N1113=\"\",\"\",'1. Order'!N1113)","v":""},null,null,{"$f":"'1. Order'!AV1113","v":0},{"$f":"IF('1. Order'!AI1113=\"\",\"\",'1. Order'!AI1113)","v":""}]
[{"$f":"IF('1. Order'!B1114=\"\",\"\",'1. Order'!B1114)","v":""},{"$f":"IF('1. Order'!J1114=\"\",\"\",'1. Order'!J1114)","v":""},{"$f":"IF('1. Order'!K1114=\"\",\"\",'1. Order'!K1114)","v":""},{"$f":"IF('1. Order'!L1114=\"\",\"\",'1. Order'!L1114)","v":""},{"$f":"IF('1. Order'!N1114=\"\",\"\",'1. Order'!N1114)","v":""},null,null,{"$f":"'1. Order'!AV1114","v":0},{"$f":"IF('1. Order'!AI1114=\"\",\"\",'1. Order'!AI1114)","v":""}]
[{"$f":"IF('1. Order'!B1115=\"\",\"\",'1. Order'!B1115)","v":""},{"$f":"IF('1. Order'!J1115=\"\",\"\",'1. Order'!J1115)","v":""},{"$f":"IF('1. Order'!K1115=\"\",\"\",'1. Order'!K1115)","v":""},{"$f":"IF('1. Order'!L1115=\"\",\"\",'1. Order'!L1115)","v":""},{"$f":"IF('1. Order'!N1115=\"\",\"\",'1. Order'!N1115)","v":""},null,null,{"$f":"'1. Order'!AV1115","v":0},{"$f":"IF('1. Order'!AI1115=\"\",\"\",'1. Order'!AI1115)","v":""}]
[{"$f":"IF('1. Order'!B1116=\"\",\"\",'1. Order'!B1116)","v":""},{"$f":"IF('1. Order'!J1116=\"\",\"\",'1. Order'!J1116)","v":""},{"$f":"IF('1. Order'!K1116=\"\",\"\",'1. Order'!K1116)","v":""},{"$f":"IF('1. Order'!L1116=\"\",\"\",'1. Order'!L1116)","v":""},{"$f":"IF('1. Order'!N1116=\"\",\"\",'1. Order'!N1116)","v":""},null,null,{"$f":"'1. Order'!AV1116","v":0},{"$f":"IF('1. Order'!AI1116=\"\",\"\",'1. Order'!AI1116)","v":""}]
[{"$f":"IF('1. Order'!B1117=\"\",\"\",'1. Order'!B1117)","v":""},{"$f":"IF('1. Order'!J1117=\"\",\"\",'1. Order'!J1117)","v":""},{"$f":"IF('1. Order'!K1117=\"\",\"\",'1. Order'!K1117)","v":""},{"$f":"IF('1. Order'!L1117=\"\",\"\",'1. Order'!L1117)","v":""},{"$f":"IF('1. Order'!N1117=\"\",\"\",'1. Order'!N1117)","v":""},null,null,{"$f":"'1. Order'!AV1117","v":0},{"$f":"IF('1. Order'!AI1117=\"\",\"\",'1. Order'!AI1117)","v":""}]
[{"$f":"IF('1. Order'!B1118=\"\",\"\",'1. Order'!B1118)","v":""},{"$f":"IF('1. Order'!J1118=\"\",\"\",'1. Order'!J1118)","v":""},{"$f":"IF('1. Order'!K1118=\"\",\"\",'1. Order'!K1118)","v":""},{"$f":"IF('1. Order'!L1118=\"\",\"\",'1. Order'!L1118)","v":""},{"$f":"IF('1. Order'!N1118=\"\",\"\",'1. Order'!N1118)","v":""},null,null,{"$f":"'1. Order'!AV1118","v":0},{"$f":"IF('1. Order'!AI1118=\"\",\"\",'1. Order'!AI1118)","v":""}]
[{"$f":"IF('1. Order'!B1119=\"\",\"\",'1. Order'!B1119)","v":""},{"$f":"IF('1. Order'!J1119=\"\",\"\",'1. Order'!J1119)","v":""},{"$f":"IF('1. Order'!K1119=\"\",\"\",'1. Order'!K1119)","v":""},{"$f":"IF('1. Order'!L1119=\"\",\"\",'1. Order'!L1119)","v":""},{"$f":"IF('1. Order'!N1119=\"\",\"\",'1. Order'!N1119)","v":""},null,null,{"$f":"'1. Order'!AV1119","v":0},{"$f":"IF('1. Order'!AI1119=\"\",\"\",'1. Order'!AI1119)","v":""}]
[{"$f":"IF('1. Order'!B1120=\"\",\"\",'1. Order'!B1120)","v":""},{"$f":"IF('1. Order'!J1120=\"\",\"\",'1. Order'!J1120)","v":""},{"$f":"IF('1. Order'!K1120=\"\",\"\",'1. Order'!K1120)","v":""},{"$f":"IF('1. Order'!L1120=\"\",\"\",'1. Order'!L1120)","v":""},{"$f":"IF('1. Order'!N1120=\"\",\"\",'1. Order'!N1120)","v":""},null,null,{"$f":"'1. Order'!AV1120","v":0},{"$f":"IF('1. Order'!AI1120=\"\",\"\",'1. Order'!AI1120)","v":""}]
[{"$f":"IF('1. Order'!B1121=\"\",\"\",'1. Order'!B1121)","v":""},{"$f":"IF('1. Order'!J1121=\"\",\"\",'1. Order'!J1121)","v":""},{"$f":"IF('1. Order'!K1121=\"\",\"\",'1. Order'!K1121)","v":""},{"$f":"IF('1. Order'!L1121=\"\",\"\",'1. Order'!L1121)","v":""},{"$f":"IF('1. Order'!N1121=\"\",\"\",'1. Order'!N1121)","v":""},null,null,{"$f":"'1. Order'!AV1121","v":0},{"$f":"IF('1. Order'!AI1121=\"\",\"\",'1. Order'!AI1121)","v":""}]
[{"$f":"IF('1. Order'!B1122=\"\",\"\",'1. Order'!B1122)","v":""},{"$f":"IF('1. Order'!J1122=\"\",\"\",'1. Order'!J1122)","v":""},{"$f":"IF('1. Order'!K1122=\"\",\"\",'1. Order'!K1122)","v":""},{"$f":"IF('1. Order'!L1122=\"\",\"\",'1. Order'!L1122)","v":""},{"$f":"IF('1. Order'!N1122=\"\",\"\",'1. Order'!N1122)","v":""},null,null,{"$f":"'1. Order'!AV1122","v":0},{"$f":"IF('1. Order'!AI1122=\"\",\"\",'1. Order'!AI1122)","v":""}]
[{"$f":"IF('1. Order'!B1123=\"\",\"\",'1. Order'!B1123)","v":""},{"$f":"IF('1. Order'!J1123=\"\",\"\",'1. Order'!J1123)","v":""},{"$f":"IF('1. Order'!K1123=\"\",\"\",'1. Order'!K1123)","v":""},{"$f":"IF('1. Order'!L1123=\"\",\"\",'1. Order'!L1123)","v":""},{"$f":"IF('1. Order'!N1123=\"\",\"\",'1. Order'!N1123)","v":""},null,null,{"$f":"'1. Order'!AV1123","v":0},{"$f":"IF('1. Order'!AI1123=\"\",\"\",'1. Order'!AI1123)","v":""}]
[{"$f":"IF('1. Order'!B1124=\"\",\"\",'1. Order'!B1124)","v":""},{"$f":"IF('1. Order'!J1124=\"\",\"\",'1. Order'!J1124)","v":""},{"$f":"IF('1. Order'!K1124=\"\",\"\",'1. Order'!K1124)","v":""},{"$f":"IF('1. Order'!L1124=\"\",\"\",'1. Order'!L1124)","v":""},{"$f":"IF('1. Order'!N1124=\"\",\"\",'1. Order'!N1124)","v":""},null,null,{"$f":"'1. Order'!AV1124","v":0},{"$f":"IF('1. Order'!AI1124=\"\",\"\",'1. Order'!AI1124)","v":""}]
[{"$f":"IF('1. Order'!B1125=\"\",\"\",'1. Order'!B1125)","v":""},{"$f":"IF('1. Order'!J1125=\"\",\"\",'1. Order'!J1125)","v":""},{"$f":"IF('1. Order'!K1125=\"\",\"\",'1. Order'!K1125)","v":""},{"$f":"IF('1. Order'!L1125=\"\",\"\",'1. Order'!L1125)","v":""},{"$f":"IF('1. Order'!N1125=\"\",\"\",'1. Order'!N1125)","v":""},null,null,{"$f":"'1. Order'!AV1125","v":0},{"$f":"IF('1. Order'!AI1125=\"\",\"\",'1. Order'!AI1125)","v":""}]
[{"$f":"IF('1. Order'!B1126=\"\",\"\",'1. Order'!B1126)","v":""},{"$f":"IF('1. Order'!J1126=\"\",\"\",'1. Order'!J1126)","v":""},{"$f":"IF('1. Order'!K1126=\"\",\"\",'1. Order'!K1126)","v":""},{"$f":"IF('1. Order'!L1126=\"\",\"\",'1. Order'!L1126)","v":""},{"$f":"IF('1. Order'!N1126=\"\",\"\",'1. Order'!N1126)","v":""},null,null,{"$f":"'1. Order'!AV1126","v":0},{"$f":"IF('1. Order'!AI1126=\"\",\"\",'1. Order'!AI1126)","v":""}]
[{"$f":"IF('1. Order'!B1127=\"\",\"\",'1. Order'!B1127)","v":""},{"$f":"IF('1. Order'!J1127=\"\",\"\",'1. Order'!J1127)","v":""},{"$f":"IF('1. Order'!K1127=\"\",\"\",'1. Order'!K1127)","v":""},{"$f":"IF('1. Order'!L1127=\"\",\"\",'1. Order'!L1127)","v":""},{"$f":"IF('1. Order'!N1127=\"\",\"\",'1. Order'!N1127)","v":""},null,null,{"$f":"'1. Order'!AV1127","v":0},{"$f":"IF('1. Order'!AI1127=\"\",\"\",'1. Order'!AI1127)","v":""}]
[{"$f":"IF('1. Order'!B1128=\"\",\"\",'1. Order'!B1128)","v":""},{"$f":"IF('1. Order'!J1128=\"\",\"\",'1. Order'!J1128)","v":""},{"$f":"IF('1. Order'!K1128=\"\",\"\",'1. Order'!K1128)","v":""},{"$f":"IF('1. Order'!L1128=\"\",\"\",'1. Order'!L1128)","v":""},{"$f":"IF('1. Order'!N1128=\"\",\"\",'1. Order'!N1128)","v":""},null,null,{"$f":"'1. Order'!AV1128","v":0},{"$f":"IF('1. Order'!AI1128=\"\",\"\",'1. Order'!AI1128)","v":""}]
[{"$f":"IF('1. Order'!B1129=\"\",\"\",'1. Order'!B1129)","v":""},{"$f":"IF('1. Order'!J1129=\"\",\"\",'1. Order'!J1129)","v":""},{"$f":"IF('1. Order'!K1129=\"\",\"\",'1. Order'!K1129)","v":""},{"$f":"IF('1. Order'!L1129=\"\",\"\",'1. Order'!L1129)","v":""},{"$f":"IF('1. Order'!N1129=\"\",\"\",'1. Order'!N1129)","v":""},null,null,{"$f":"'1. Order'!AV1129","v":0},{"$f":"IF('1. Order'!AI1129=\"\",\"\",'1. Order'!AI1129)","v":""}]
[{"$f":"IF('1. Order'!B1130=\"\",\"\",'1. Order'!B1130)","v":""},{"$f":"IF('1. Order'!J1130=\"\",\"\",'1. Order'!J1130)","v":""},{"$f":"IF('1. Order'!K1130=\"\",\"\",'1. Order'!K1130)","v":""},{"$f":"IF('1. Order'!L1130=\"\",\"\",'1. Order'!L1130)","v":""},{"$f":"IF('1. Order'!N1130=\"\",\"\",'1. Order'!N1130)","v":""},null,null,{"$f":"'1. Order'!AV1130","v":0},{"$f":"IF('1. Order'!AI1130=\"\",\"\",'1. Order'!AI1130)","v":""}]
[{"$f":"IF('1. Order'!B1131=\"\",\"\",'1. Order'!B1131)","v":""},{"$f":"IF('1. Order'!J1131=\"\",\"\",'1. Order'!J1131)","v":""},{"$f":"IF('1. Order'!K1131=\"\",\"\",'1. Order'!K1131)","v":""},{"$f":"IF('1. Order'!L1131=\"\",\"\",'1. Order'!L1131)","v":""},{"$f":"IF('1. Order'!N1131=\"\",\"\",'1. Order'!N1131)","v":""},null,null,{"$f":"'1. Order'!AV1131","v":0},{"$f":"IF('1. Order'!AI1131=\"\",\"\",'1. Order'!AI1131)","v":""}]
[{"$f":"IF('1. Order'!B1132=\"\",\"\",'1. Order'!B1132)","v":""},{"$f":"IF('1. Order'!J1132=\"\",\"\",'1. Order'!J1132)","v":""},{"$f":"IF('1. Order'!K1132=\"\",\"\",'1. Order'!K1132)","v":""},{"$f":"IF('1. Order'!L1132=\"\",\"\",'1. Order'!L1132)","v":""},{"$f":"IF('1. Order'!N1132=\"\",\"\",'1. Order'!N1132)","v":""},null,null,{"$f":"'1. Order'!AV1132","v":0},{"$f":"IF('1. Order'!AI1132=\"\",\"\",'1. Order'!AI1132)","v":""}]
[{"$f":"IF('1. Order'!B1133=\"\",\"\",'1. Order'!B1133)","v":""},{"$f":"IF('1. Order'!J1133=\"\",\"\",'1. Order'!J1133)","v":""},{"$f":"IF('1. Order'!K1133=\"\",\"\",'1. Order'!K1133)","v":""},{"$f":"IF('1. Order'!L1133=\"\",\"\",'1. Order'!L1133)","v":""},{"$f":"IF('1. Order'!N1133=\"\",\"\",'1. Order'!N1133)","v":""},null,null,{"$f":"'1. Order'!AV1133","v":0},{"$f":"IF('1. Order'!AI1133=\"\",\"\",'1. Order'!AI1133)","v":""}]
[{"$f":"IF('1. Order'!B1134=\"\",\"\",'1. Order'!B1134)","v":""},{"$f":"IF('1. Order'!J1134=\"\",\"\",'1. Order'!J1134)","v":""},{"$f":"IF('1. Order'!K1134=\"\",\"\",'1. Order'!K1134)","v":""},{"$f":"IF('1. Order'!L1134=\"\",\"\",'1. Order'!L1134)","v":""},{"$f":"IF('1. Order'!N1134=\"\",\"\",'1. Order'!N1134)","v":""},null,null,{"$f":"'1. Order'!AV1134","v":0},{"$f":"IF('1. Order'!AI1134=\"\",\"\",'1. Order'!AI1134)","v":""}]
[{"$f":"IF('1. Order'!B1135=\"\",\"\",'1. Order'!B1135)","v":""},{"$f":"IF('1. Order'!J1135=\"\",\"\",'1. Order'!J1135)","v":""},{"$f":"IF('1. Order'!K1135=\"\",\"\",'1. Order'!K1135)","v":""},{"$f":"IF('1. Order'!L1135=\"\",\"\",'1. Order'!L1135)","v":""},{"$f":"IF('1. Order'!N1135=\"\",\"\",'1. Order'!N1135)","v":""},null,null,{"$f":"'1. Order'!AV1135","v":0},{"$f":"IF('1. Order'!AI1135=\"\",\"\",'1. Order'!AI1135)","v":""}]
[{"$f":"IF('1. Order'!B1136=\"\",\"\",'1. Order'!B1136)","v":""},{"$f":"IF('1. Order'!J1136=\"\",\"\",'1. Order'!J1136)","v":""},{"$f":"IF('1. Order'!K1136=\"\",\"\",'1. Order'!K1136)","v":""},{"$f":"IF('1. Order'!L1136=\"\",\"\",'1. Order'!L1136)","v":""},{"$f":"IF('1. Order'!N1136=\"\",\"\",'1. Order'!N1136)","v":""},null,null,{"$f":"'1. Order'!AV1136","v":0},{"$f":"IF('1. Order'!AI1136=\"\",\"\",'1. Order'!AI1136)","v":""}]
[{"$f":"IF('1. Order'!B1137=\"\",\"\",'1. Order'!B1137)","v":""},{"$f":"IF('1. Order'!J1137=\"\",\"\",'1. Order'!J1137)","v":""},{"$f":"IF('1. Order'!K1137=\"\",\"\",'1. Order'!K1137)","v":""},{"$f":"IF('1. Order'!L1137=\"\",\"\",'1. Order'!L1137)","v":""},{"$f":"IF('1. Order'!N1137=\"\",\"\",'1. Order'!N1137)","v":""},null,null,{"$f":"'1. Order'!AV1137","v":0},{"$f":"IF('1. Order'!AI1137=\"\",\"\",'1. Order'!AI1137)","v":""}]
[{"$f":"IF('1. Order'!B1138=\"\",\"\",'1. Order'!B1138)","v":""},{"$f":"IF('1. Order'!J1138=\"\",\"\",'1. Order'!J1138)","v":""},{"$f":"IF('1. Order'!K1138=\"\",\"\",'1. Order'!K1138)","v":""},{"$f":"IF('1. Order'!L1138=\"\",\"\",'1. Order'!L1138)","v":""},{"$f":"IF('1. Order'!N1138=\"\",\"\",'1. Order'!N1138)","v":""},null,null,{"$f":"'1. Order'!AV1138","v":0},{"$f":"IF('1. Order'!AI1138=\"\",\"\",'1. Order'!AI1138)","v":""}]
[{"$f":"IF('1. Order'!B1139=\"\",\"\",'1. Order'!B1139)","v":""},{"$f":"IF('1. Order'!J1139=\"\",\"\",'1. Order'!J1139)","v":""},{"$f":"IF('1. Order'!K1139=\"\",\"\",'1. Order'!K1139)","v":""},{"$f":"IF('1. Order'!L1139=\"\",\"\",'1. Order'!L1139)","v":""},{"$f":"IF('1. Order'!N1139=\"\",\"\",'1. Order'!N1139)","v":""},null,null,{"$f":"'1. Order'!AV1139","v":0},{"$f":"IF('1. Order'!AI1139=\"\",\"\",'1. Order'!AI1139)","v":""}]
[{"$f":"IF('1. Order'!B1140=\"\",\"\",'1. Order'!B1140)","v":""},{"$f":"IF('1. Order'!J1140=\"\",\"\",'1. Order'!J1140)","v":""},{"$f":"IF('1. Order'!K1140=\"\",\"\",'1. Order'!K1140)","v":""},{"$f":"IF('1. Order'!L1140=\"\",\"\",'1. Order'!L1140)","v":""},{"$f":"IF('1. Order'!N1140=\"\",\"\",'1. Order'!N1140)","v":""},null,null,{"$f":"'1. Order'!AV1140","v":0},{"$f":"IF('1. Order'!AI1140=\"\",\"\",'1. Order'!AI1140)","v":""}]
[{"$f":"IF('1. Order'!B1141=\"\",\"\",'1. Order'!B1141)","v":""},{"$f":"IF('1. Order'!J1141=\"\",\"\",'1. Order'!J1141)","v":""},{"$f":"IF('1. Order'!K1141=\"\",\"\",'1. Order'!K1141)","v":""},{"$f":"IF('1. Order'!L1141=\"\",\"\",'1. Order'!L1141)","v":""},{"$f":"IF('1. Order'!N1141=\"\",\"\",'1. Order'!N1141)","v":""},null,null,{"$f":"'1. Order'!AV1141","v":0},{"$f":"IF('1. Order'!AI1141=\"\",\"\",'1. Order'!AI1141)","v":""}]
[{"$f":"IF('1. Order'!B1142=\"\",\"\",'1. Order'!B1142)","v":""},{"$f":"IF('1. Order'!J1142=\"\",\"\",'1. Order'!J1142)","v":""},{"$f":"IF('1. Order'!K1142=\"\",\"\",'1. Order'!K1142)","v":""},{"$f":"IF('1. Order'!L1142=\"\",\"\",'1. Order'!L1142)","v":""},{"$f":"IF('1. Order'!N1142=\"\",\"\",'1. Order'!N1142)","v":""},null,null,{"$f":"'1. Order'!AV1142","v":0},{"$f":"IF('1. Order'!AI1142=\"\",\"\",'1. Order'!AI1142)","v":""}]
[{"$f":"IF('1. Order'!B1143=\"\",\"\",'1. Order'!B1143)","v":""},{"$f":"IF('1. Order'!J1143=\"\",\"\",'1. Order'!J1143)","v":""},{"$f":"IF('1. Order'!K1143=\"\",\"\",'1. Order'!K1143)","v":""},{"$f":"IF('1. Order'!L1143=\"\",\"\",'1. Order'!L1143)","v":""},{"$f":"IF('1. Order'!N1143=\"\",\"\",'1. Order'!N1143)","v":""},null,null,{"$f":"'1. Order'!AV1143","v":0},{"$f":"IF('1. Order'!AI1143=\"\",\"\",'1. Order'!AI1143)","v":""}]
[{"$f":"IF('1. Order'!B1144=\"\",\"\",'1. Order'!B1144)","v":""},{"$f":"IF('1. Order'!J1144=\"\",\"\",'1. Order'!J1144)","v":""},{"$f":"IF('1. Order'!K1144=\"\",\"\",'1. Order'!K1144)","v":""},{"$f":"IF('1. Order'!L1144=\"\",\"\",'1. Order'!L1144)","v":""},{"$f":"IF('1. Order'!N1144=\"\",\"\",'1. Order'!N1144)","v":""},null,null,{"$f":"'1. Order'!AV1144","v":0},{"$f":"IF('1. Order'!AI1144=\"\",\"\",'1. Order'!AI1144)","v":""}]
[{"$f":"IF('1. Order'!B1145=\"\",\"\",'1. Order'!B1145)","v":""},{"$f":"IF('1. Order'!J1145=\"\",\"\",'1. Order'!J1145)","v":""},{"$f":"IF('1. Order'!K1145=\"\",\"\",'1. Order'!K1145)","v":""},{"$f":"IF('1. Order'!L1145=\"\",\"\",'1. Order'!L1145)","v":""},{"$f":"IF('1. Order'!N1145=\"\",\"\",'1. Order'!N1145)","v":""},null,null,{"$f":"'1. Order'!AV1145","v":0},{"$f":"IF('1. Order'!AI1145=\"\",\"\",'1. Order'!AI1145)","v":""}]
[{"$f":"IF('1. Order'!B1146=\"\",\"\",'1. Order'!B1146)","v":""},{"$f":"IF('1. Order'!J1146=\"\",\"\",'1. Order'!J1146)","v":""},{"$f":"IF('1. Order'!K1146=\"\",\"\",'1. Order'!K1146)","v":""},{"$f":"IF('1. Order'!L1146=\"\",\"\",'1. Order'!L1146)","v":""},{"$f":"IF('1. Order'!N1146=\"\",\"\",'1. Order'!N1146)","v":""},null,null,{"$f":"'1. Order'!AV1146","v":0},{"$f":"IF('1. Order'!AI1146=\"\",\"\",'1. Order'!AI1146)","v":""}]
[{"$f":"IF('1. Order'!B1147=\"\",\"\",'1. Order'!B1147)","v":""},{"$f":"IF('1. Order'!J1147=\"\",\"\",'1. Order'!J1147)","v":""},{"$f":"IF('1. Order'!K1147=\"\",\"\",'1. Order'!K1147)","v":""},{"$f":"IF('1. Order'!L1147=\"\",\"\",'1. Order'!L1147)","v":""},{"$f":"IF('1. Order'!N1147=\"\",\"\",'1. Order'!N1147)","v":""},null,null,{"$f":"'1. Order'!AV1147","v":0},{"$f":"IF('1. Order'!AI1147=\"\",\"\",'1. Order'!AI1147)","v":""}]
[{"$f":"IF('1. Order'!B1148=\"\",\"\",'1. Order'!B1148)","v":""},{"$f":"IF('1. Order'!J1148=\"\",\"\",'1. Order'!J1148)","v":""},{"$f":"IF('1. Order'!K1148=\"\",\"\",'1. Order'!K1148)","v":""},{"$f":"IF('1. Order'!L1148=\"\",\"\",'1. Order'!L1148)","v":""},{"$f":"IF('1. Order'!N1148=\"\",\"\",'1. Order'!N1148)","v":""},null,null,{"$f":"'1. Order'!AV1148","v":0},{"$f":"IF('1. Order'!AI1148=\"\",\"\",'1. Order'!AI1148)","v":""}]
[{"$f":"IF('1. Order'!B1149=\"\",\"\",'1. Order'!B1149)","v":""},{"$f":"IF('1. Order'!J1149=\"\",\"\",'1. Order'!J1149)","v":""},{"$f":"IF('1. Order'!K1149=\"\",\"\",'1. Order'!K1149)","v":""},{"$f":"IF('1. Order'!L1149=\"\",\"\",'1. Order'!L1149)","v":""},{"$f":"IF('1. Order'!N1149=\"\",\"\",'1. Order'!N1149)","v":""},null,null,{"$f":"'1. Order'!AV1149","v":0},{"$f":"IF('1. Order'!AI1149=\"\",\"\",'1. Order'!AI1149)","v":""}]
[{"$f":"IF('1. Order'!B1150=\"\",\"\",'1. Order'!B1150)","v":""},{"$f":"IF('1. Order'!J1150=\"\",\"\",'1. Order'!J1150)","v":""},{"$f":"IF('1. Order'!K1150=\"\",\"\",'1. Order'!K1150)","v":""},{"$f":"IF('1. Order'!L1150=\"\",\"\",'1. Order'!L1150)","v":""},{"$f":"IF('1. Order'!N1150=\"\",\"\",'1. Order'!N1150)","v":""},null,null,{"$f":"'1. Order'!AV1150","v":0},{"$f":"IF('1. Order'!AI1150=\"\",\"\",'1. Order'!AI1150)","v":""}]
[{"$f":"IF('1. Order'!B1151=\"\",\"\",'1. Order'!B1151)","v":""},{"$f":"IF('1. Order'!J1151=\"\",\"\",'1. Order'!J1151)","v":""},{"$f":"IF('1. Order'!K1151=\"\",\"\",'1. Order'!K1151)","v":""},{"$f":"IF('1. Order'!L1151=\"\",\"\",'1. Order'!L1151)","v":""},{"$f":"IF('1. Order'!N1151=\"\",\"\",'1. Order'!N1151)","v":""},null,null,{"$f":"'1. Order'!AV1151","v":0},{"$f":"IF('1. Order'!AI1151=\"\",\"\",'1. Order'!AI1151)","v":""}]
[{"$f":"IF('1. Order'!B1152=\"\",\"\",'1. Order'!B1152)","v":""},{"$f":"IF('1. Order'!J1152=\"\",\"\",'1. Order'!J1152)","v":""},{"$f":"IF('1. Order'!K1152=\"\",\"\",'1. Order'!K1152)","v":""},{"$f":"IF('1. Order'!L1152=\"\",\"\",'1. Order'!L1152)","v":""},{"$f":"IF('1. Order'!N1152=\"\",\"\",'1. Order'!N1152)","v":""},null,null,{"$f":"'1. Order'!AV1152","v":0},{"$f":"IF('1. Order'!AI1152=\"\",\"\",'1. Order'!AI1152)","v":""}]
[{"$f":"IF('1. Order'!B1153=\"\",\"\",'1. Order'!B1153)","v":""},{"$f":"IF('1. Order'!J1153=\"\",\"\",'1. Order'!J1153)","v":""},{"$f":"IF('1. Order'!K1153=\"\",\"\",'1. Order'!K1153)","v":""},{"$f":"IF('1. Order'!L1153=\"\",\"\",'1. Order'!L1153)","v":""},{"$f":"IF('1. Order'!N1153=\"\",\"\",'1. Order'!N1153)","v":""},null,null,{"$f":"'1. Order'!AV1153","v":0},{"$f":"IF('1. Order'!AI1153=\"\",\"\",'1. Order'!AI1153)","v":""}]
[{"$f":"IF('1. Order'!B1154=\"\",\"\",'1. Order'!B1154)","v":""},{"$f":"IF('1. Order'!J1154=\"\",\"\",'1. Order'!J1154)","v":""},{"$f":"IF('1. Order'!K1154=\"\",\"\",'1. Order'!K1154)","v":""},{"$f":"IF('1. Order'!L1154=\"\",\"\",'1. Order'!L1154)","v":""},{"$f":"IF('1. Order'!N1154=\"\",\"\",'1. Order'!N1154)","v":""},null,null,{"$f":"'1. Order'!AV1154","v":0},{"$f":"IF('1. Order'!AI1154=\"\",\"\",'1. Order'!AI1154)","v":""}]
[{"$f":"IF('1. Order'!B1155=\"\",\"\",'1. Order'!B1155)","v":""},{"$f":"IF('1. Order'!J1155=\"\",\"\",'1. Order'!J1155)","v":""},{"$f":"IF('1. Order'!K1155=\"\",\"\",'1. Order'!K1155)","v":""},{"$f":"IF('1. Order'!L1155=\"\",\"\",'1. Order'!L1155)","v":""},{"$f":"IF('1. Order'!N1155=\"\",\"\",'1. Order'!N1155)","v":""},null,null,{"$f":"'1. Order'!AV1155","v":0},{"$f":"IF('1. Order'!AI1155=\"\",\"\",'1. Order'!AI1155)","v":""}]
[{"$f":"IF('1. Order'!B1156=\"\",\"\",'1. Order'!B1156)","v":""},{"$f":"IF('1. Order'!J1156=\"\",\"\",'1. Order'!J1156)","v":""},{"$f":"IF('1. Order'!K1156=\"\",\"\",'1. Order'!K1156)","v":""},{"$f":"IF('1. Order'!L1156=\"\",\"\",'1. Order'!L1156)","v":""},{"$f":"IF('1. Order'!N1156=\"\",\"\",'1. Order'!N1156)","v":""},null,null,{"$f":"'1. Order'!AV1156","v":0},{"$f":"IF('1. Order'!AI1156=\"\",\"\",'1. Order'!AI1156)","v":""}]
[{"$f":"IF('1. Order'!B1157=\"\",\"\",'1. Order'!B1157)","v":""},{"$f":"IF('1. Order'!J1157=\"\",\"\",'1. Order'!J1157)","v":""},{"$f":"IF('1. Order'!K1157=\"\",\"\",'1. Order'!K1157)","v":""},{"$f":"IF('1. Order'!L1157=\"\",\"\",'1. Order'!L1157)","v":""},{"$f":"IF('1. Order'!N1157=\"\",\"\",'1. Order'!N1157)","v":""},null,null,{"$f":"'1. Order'!AV1157","v":0},{"$f":"IF('1. Order'!AI1157=\"\",\"\",'1. Order'!AI1157)","v":""}]
[{"$f":"IF('1. Order'!B1158=\"\",\"\",'1. Order'!B1158)","v":""},{"$f":"IF('1. Order'!J1158=\"\",\"\",'1. Order'!J1158)","v":""},{"$f":"IF('1. Order'!K1158=\"\",\"\",'1. Order'!K1158)","v":""},{"$f":"IF('1. Order'!L1158=\"\",\"\",'1. Order'!L1158)","v":""},{"$f":"IF('1. Order'!N1158=\"\",\"\",'1. Order'!N1158)","v":""},null,null,{"$f":"'1. Order'!AV1158","v":0},{"$f":"IF('1. Order'!AI1158=\"\",\"\",'1. Order'!AI1158)","v":""}]
[{"$f":"IF('1. Order'!B1159=\"\",\"\",'1. Order'!B1159)","v":""},{"$f":"IF('1. Order'!J1159=\"\",\"\",'1. Order'!J1159)","v":""},{"$f":"IF('1. Order'!K1159=\"\",\"\",'1. Order'!K1159)","v":""},{"$f":"IF('1. Order'!L1159=\"\",\"\",'1. Order'!L1159)","v":""},{"$f":"IF('1. Order'!N1159=\"\",\"\",'1. Order'!N1159)","v":""},null,null,{"$f":"'1. Order'!AV1159","v":0},{"$f":"IF('1. Order'!AI1159=\"\",\"\",'1. Order'!AI1159)","v":""}]
[{"$f":"IF('1. Order'!B1160=\"\",\"\",'1. Order'!B1160)","v":""},{"$f":"IF('1. Order'!J1160=\"\",\"\",'1. Order'!J1160)","v":""},{"$f":"IF('1. Order'!K1160=\"\",\"\",'1. Order'!K1160)","v":""},{"$f":"IF('1. Order'!L1160=\"\",\"\",'1. Order'!L1160)","v":""},{"$f":"IF('1. Order'!N1160=\"\",\"\",'1. Order'!N1160)","v":""},null,null,{"$f":"'1. Order'!AV1160","v":0},{"$f":"IF('1. Order'!AI1160=\"\",\"\",'1. Order'!AI1160)","v":""}]
[{"$f":"IF('1. Order'!B1161=\"\",\"\",'1. Order'!B1161)","v":""},{"$f":"IF('1. Order'!J1161=\"\",\"\",'1. Order'!J1161)","v":""},{"$f":"IF('1. Order'!K1161=\"\",\"\",'1. Order'!K1161)","v":""},{"$f":"IF('1. Order'!L1161=\"\",\"\",'1. Order'!L1161)","v":""},{"$f":"IF('1. Order'!N1161=\"\",\"\",'1. Order'!N1161)","v":""},null,null,{"$f":"'1. Order'!AV1161","v":0},{"$f":"IF('1. Order'!AI1161=\"\",\"\",'1. Order'!AI1161)","v":""}]
[{"$f":"IF('1. Order'!B1162=\"\",\"\",'1. Order'!B1162)","v":""},{"$f":"IF('1. Order'!J1162=\"\",\"\",'1. Order'!J1162)","v":""},{"$f":"IF('1. Order'!K1162=\"\",\"\",'1. Order'!K1162)","v":""},{"$f":"IF('1. Order'!L1162=\"\",\"\",'1. Order'!L1162)","v":""},{"$f":"IF('1. Order'!N1162=\"\",\"\",'1. Order'!N1162)","v":""},null,null,{"$f":"'1. Order'!AV1162","v":0},{"$f":"IF('1. Order'!AI1162=\"\",\"\",'1. Order'!AI1162)","v":""}]
[{"$f":"IF('1. Order'!B1163=\"\",\"\",'1. Order'!B1163)","v":""},{"$f":"IF('1. Order'!J1163=\"\",\"\",'1. Order'!J1163)","v":""},{"$f":"IF('1. Order'!K1163=\"\",\"\",'1. Order'!K1163)","v":""},{"$f":"IF('1. Order'!L1163=\"\",\"\",'1. Order'!L1163)","v":""},{"$f":"IF('1. Order'!N1163=\"\",\"\",'1. Order'!N1163)","v":""},null,null,{"$f":"'1. Order'!AV1163","v":0},{"$f":"IF('1. Order'!AI1163=\"\",\"\",'1. Order'!AI1163)","v":""}]
[{"$f":"IF('1. Order'!B1164=\"\",\"\",'1. Order'!B1164)","v":""},{"$f":"IF('1. Order'!J1164=\"\",\"\",'1. Order'!J1164)","v":""},{"$f":"IF('1. Order'!K1164=\"\",\"\",'1. Order'!K1164)","v":""},{"$f":"IF('1. Order'!L1164=\"\",\"\",'1. Order'!L1164)","v":""},{"$f":"IF('1. Order'!N1164=\"\",\"\",'1. Order'!N1164)","v":""},null,null,{"$f":"'1. Order'!AV1164","v":0},{"$f":"IF('1. Order'!AI1164=\"\",\"\",'1. Order'!AI1164)","v":""}]
[{"$f":"IF('1. Order'!B1165=\"\",\"\",'1. Order'!B1165)","v":""},{"$f":"IF('1. Order'!J1165=\"\",\"\",'1. Order'!J1165)","v":""},{"$f":"IF('1. Order'!K1165=\"\",\"\",'1. Order'!K1165)","v":""},{"$f":"IF('1. Order'!L1165=\"\",\"\",'1. Order'!L1165)","v":""},{"$f":"IF('1. Order'!N1165=\"\",\"\",'1. Order'!N1165)","v":""},null,null,{"$f":"'1. Order'!AV1165","v":0},{"$f":"IF('1. Order'!AI1165=\"\",\"\",'1. Order'!AI1165)","v":""}]
[{"$f":"IF('1. Order'!B1166=\"\",\"\",'1. Order'!B1166)","v":""},{"$f":"IF('1. Order'!J1166=\"\",\"\",'1. Order'!J1166)","v":""},{"$f":"IF('1. Order'!K1166=\"\",\"\",'1. Order'!K1166)","v":""},{"$f":"IF('1. Order'!L1166=\"\",\"\",'1. Order'!L1166)","v":""},{"$f":"IF('1. Order'!N1166=\"\",\"\",'1. Order'!N1166)","v":""},null,null,{"$f":"'1. Order'!AV1166","v":0},{"$f":"IF('1. Order'!AI1166=\"\",\"\",'1. Order'!AI1166)","v":""}]
[{"$f":"IF('1. Order'!B1167=\"\",\"\",'1. Order'!B1167)","v":""},{"$f":"IF('1. Order'!J1167=\"\",\"\",'1. Order'!J1167)","v":""},{"$f":"IF('1. Order'!K1167=\"\",\"\",'1. Order'!K1167)","v":""},{"$f":"IF('1. Order'!L1167=\"\",\"\",'1. Order'!L1167)","v":""},{"$f":"IF('1. Order'!N1167=\"\",\"\",'1. Order'!N1167)","v":""},null,null,{"$f":"'1. Order'!AV1167","v":0},{"$f":"IF('1. Order'!AI1167=\"\",\"\",'1. Order'!AI1167)","v":""}]
[{"$f":"IF('1. Order'!B1168=\"\",\"\",'1. Order'!B1168)","v":""},{"$f":"IF('1. Order'!J1168=\"\",\"\",'1. Order'!J1168)","v":""},{"$f":"IF('1. Order'!K1168=\"\",\"\",'1. Order'!K1168)","v":""},{"$f":"IF('1. Order'!L1168=\"\",\"\",'1. Order'!L1168)","v":""},{"$f":"IF('1. Order'!N1168=\"\",\"\",'1. Order'!N1168)","v":""},null,null,{"$f":"'1. Order'!AV1168","v":0},{"$f":"IF('1. Order'!AI1168=\"\",\"\",'1. Order'!AI1168)","v":""}]
[{"$f":"IF('1. Order'!B1169=\"\",\"\",'1. Order'!B1169)","v":""},{"$f":"IF('1. Order'!J1169=\"\",\"\",'1. Order'!J1169)","v":""},{"$f":"IF('1. Order'!K1169=\"\",\"\",'1. Order'!K1169)","v":""},{"$f":"IF('1. Order'!L1169=\"\",\"\",'1. Order'!L1169)","v":""},{"$f":"IF('1. Order'!N1169=\"\",\"\",'1. Order'!N1169)","v":""},null,null,{"$f":"'1. Order'!AV1169","v":0},{"$f":"IF('1. Order'!AI1169=\"\",\"\",'1. Order'!AI1169)","v":""}]
[{"$f":"IF('1. Order'!B1170=\"\",\"\",'1. Order'!B1170)","v":""},{"$f":"IF('1. Order'!J1170=\"\",\"\",'1. Order'!J1170)","v":""},{"$f":"IF('1. Order'!K1170=\"\",\"\",'1. Order'!K1170)","v":""},{"$f":"IF('1. Order'!L1170=\"\",\"\",'1. Order'!L1170)","v":""},{"$f":"IF('1. Order'!N1170=\"\",\"\",'1. Order'!N1170)","v":""},null,null,{"$f":"'1. Order'!AV1170","v":0},{"$f":"IF('1. Order'!AI1170=\"\",\"\",'1. Order'!AI1170)","v":""}]
[{"$f":"IF('1. Order'!B1171=\"\",\"\",'1. Order'!B1171)","v":""},{"$f":"IF('1. Order'!J1171=\"\",\"\",'1. Order'!J1171)","v":""},{"$f":"IF('1. Order'!K1171=\"\",\"\",'1. Order'!K1171)","v":""},{"$f":"IF('1. Order'!L1171=\"\",\"\",'1. Order'!L1171)","v":""},{"$f":"IF('1. Order'!N1171=\"\",\"\",'1. Order'!N1171)","v":""},null,null,{"$f":"'1. Order'!AV1171","v":0},{"$f":"IF('1. Order'!AI1171=\"\",\"\",'1. Order'!AI1171)","v":""}]
[{"$f":"IF('1. Order'!B1172=\"\",\"\",'1. Order'!B1172)","v":""},{"$f":"IF('1. Order'!J1172=\"\",\"\",'1. Order'!J1172)","v":""},{"$f":"IF('1. Order'!K1172=\"\",\"\",'1. Order'!K1172)","v":""},{"$f":"IF('1. Order'!L1172=\"\",\"\",'1. Order'!L1172)","v":""},{"$f":"IF('1. Order'!N1172=\"\",\"\",'1. Order'!N1172)","v":""},null,null,{"$f":"'1. Order'!AV1172","v":0},{"$f":"IF('1. Order'!AI1172=\"\",\"\",'1. Order'!AI1172)","v":""}]
[{"$f":"IF('1. Order'!B1173=\"\",\"\",'1. Order'!B1173)","v":""},{"$f":"IF('1. Order'!J1173=\"\",\"\",'1. Order'!J1173)","v":""},{"$f":"IF('1. Order'!K1173=\"\",\"\",'1. Order'!K1173)","v":""},{"$f":"IF('1. Order'!L1173=\"\",\"\",'1. Order'!L1173)","v":""},{"$f":"IF('1. Order'!N1173=\"\",\"\",'1. Order'!N1173)","v":""},null,null,{"$f":"'1. Order'!AV1173","v":0},{"$f":"IF('1. Order'!AI1173=\"\",\"\",'1. Order'!AI1173)","v":""}]
[{"$f":"IF('1. Order'!B1174=\"\",\"\",'1. Order'!B1174)","v":""},{"$f":"IF('1. Order'!J1174=\"\",\"\",'1. Order'!J1174)","v":""},{"$f":"IF('1. Order'!K1174=\"\",\"\",'1. Order'!K1174)","v":""},{"$f":"IF('1. Order'!L1174=\"\",\"\",'1. Order'!L1174)","v":""},{"$f":"IF('1. Order'!N1174=\"\",\"\",'1. Order'!N1174)","v":""},null,null,{"$f":"'1. Order'!AV1174","v":0},{"$f":"IF('1. Order'!AI1174=\"\",\"\",'1. Order'!AI1174)","v":""}]
[{"$f":"IF('1. Order'!B1175=\"\",\"\",'1. Order'!B1175)","v":""},{"$f":"IF('1. Order'!J1175=\"\",\"\",'1. Order'!J1175)","v":""},{"$f":"IF('1. Order'!K1175=\"\",\"\",'1. Order'!K1175)","v":""},{"$f":"IF('1. Order'!L1175=\"\",\"\",'1. Order'!L1175)","v":""},{"$f":"IF('1. Order'!N1175=\"\",\"\",'1. Order'!N1175)","v":""},null,null,{"$f":"'1. Order'!AV1175","v":0},{"$f":"IF('1. Order'!AI1175=\"\",\"\",'1. Order'!AI1175)","v":""}]
[{"$f":"IF('1. Order'!B1176=\"\",\"\",'1. Order'!B1176)","v":""},{"$f":"IF('1. Order'!J1176=\"\",\"\",'1. Order'!J1176)","v":""},{"$f":"IF('1. Order'!K1176=\"\",\"\",'1. Order'!K1176)","v":""},{"$f":"IF('1. Order'!L1176=\"\",\"\",'1. Order'!L1176)","v":""},{"$f":"IF('1. Order'!N1176=\"\",\"\",'1. Order'!N1176)","v":""},null,null,{"$f":"'1. Order'!AV1176","v":0},{"$f":"IF('1. Order'!AI1176=\"\",\"\",'1. Order'!AI1176)","v":""}]
[{"$f":"IF('1. Order'!B1177=\"\",\"\",'1. Order'!B1177)","v":""},{"$f":"IF('1. Order'!J1177=\"\",\"\",'1. Order'!J1177)","v":""},{"$f":"IF('1. Order'!K1177=\"\",\"\",'1. Order'!K1177)","v":""},{"$f":"IF('1. Order'!L1177=\"\",\"\",'1. Order'!L1177)","v":""},{"$f":"IF('1. Order'!N1177=\"\",\"\",'1. Order'!N1177)","v":""},null,null,{"$f":"'1. Order'!AV1177","v":0},{"$f":"IF('1. Order'!AI1177=\"\",\"\",'1. Order'!AI1177)","v":""}]
[{"$f":"IF('1. Order'!B1178=\"\",\"\",'1. Order'!B1178)","v":""},{"$f":"IF('1. Order'!J1178=\"\",\"\",'1. Order'!J1178)","v":""},{"$f":"IF('1. Order'!K1178=\"\",\"\",'1. Order'!K1178)","v":""},{"$f":"IF('1. Order'!L1178=\"\",\"\",'1. Order'!L1178)","v":""},{"$f":"IF('1. Order'!N1178=\"\",\"\",'1. Order'!N1178)","v":""},null,null,{"$f":"'1. Order'!AV1178","v":0},{"$f":"IF('1. Order'!AI1178=\"\",\"\",'1. Order'!AI1178)","v":""}]
[{"$f":"IF('1. Order'!B1179=\"\",\"\",'1. Order'!B1179)","v":""},{"$f":"IF('1. Order'!J1179=\"\",\"\",'1. Order'!J1179)","v":""},{"$f":"IF('1. Order'!K1179=\"\",\"\",'1. Order'!K1179)","v":""},{"$f":"IF('1. Order'!L1179=\"\",\"\",'1. Order'!L1179)","v":""},{"$f":"IF('1. Order'!N1179=\"\",\"\",'1. Order'!N1179)","v":""},null,null,{"$f":"'1. Order'!AV1179","v":0},{"$f":"IF('1. Order'!AI1179=\"\",\"\",'1. Order'!AI1179)","v":""}]
[{"$f":"IF('1. Order'!B1180=\"\",\"\",'1. Order'!B1180)","v":""},{"$f":"IF('1. Order'!J1180=\"\",\"\",'1. Order'!J1180)","v":""},{"$f":"IF('1. Order'!K1180=\"\",\"\",'1. Order'!K1180)","v":""},{"$f":"IF('1. Order'!L1180=\"\",\"\",'1. Order'!L1180)","v":""},{"$f":"IF('1. Order'!N1180=\"\",\"\",'1. Order'!N1180)","v":""},null,null,{"$f":"'1. Order'!AV1180","v":0},{"$f":"IF('1. Order'!AI1180=\"\",\"\",'1. Order'!AI1180)","v":""}]
[{"$f":"IF('1. Order'!B1181=\"\",\"\",'1. Order'!B1181)","v":""},{"$f":"IF('1. Order'!J1181=\"\",\"\",'1. Order'!J1181)","v":""},{"$f":"IF('1. Order'!K1181=\"\",\"\",'1. Order'!K1181)","v":""},{"$f":"IF('1. Order'!L1181=\"\",\"\",'1. Order'!L1181)","v":""},{"$f":"IF('1. Order'!N1181=\"\",\"\",'1. Order'!N1181)","v":""},null,null,{"$f":"'1. Order'!AV1181","v":0},{"$f":"IF('1. Order'!AI1181=\"\",\"\",'1. Order'!AI1181)","v":""}]
[{"$f":"IF('1. Order'!B1182=\"\",\"\",'1. Order'!B1182)","v":""},{"$f":"IF('1. Order'!J1182=\"\",\"\",'1. Order'!J1182)","v":""},{"$f":"IF('1. Order'!K1182=\"\",\"\",'1. Order'!K1182)","v":""},{"$f":"IF('1. Order'!L1182=\"\",\"\",'1. Order'!L1182)","v":""},{"$f":"IF('1. Order'!N1182=\"\",\"\",'1. Order'!N1182)","v":""},null,null,{"$f":"'1. Order'!AV1182","v":0},{"$f":"IF('1. Order'!AI1182=\"\",\"\",'1. Order'!AI1182)","v":""}]
[{"$f":"IF('1. Order'!B1183=\"\",\"\",'1. Order'!B1183)","v":""},{"$f":"IF('1. Order'!J1183=\"\",\"\",'1. Order'!J1183)","v":""},{"$f":"IF('1. Order'!K1183=\"\",\"\",'1. Order'!K1183)","v":""},{"$f":"IF('1. Order'!L1183=\"\",\"\",'1. Order'!L1183)","v":""},{"$f":"IF('1. Order'!N1183=\"\",\"\",'1. Order'!N1183)","v":""},null,null,{"$f":"'1. Order'!AV1183","v":0},{"$f":"IF('1. Order'!AI1183=\"\",\"\",'1. Order'!AI1183)","v":""}]
[{"$f":"IF('1. Order'!B1184=\"\",\"\",'1. Order'!B1184)","v":""},{"$f":"IF('1. Order'!J1184=\"\",\"\",'1. Order'!J1184)","v":""},{"$f":"IF('1. Order'!K1184=\"\",\"\",'1. Order'!K1184)","v":""},{"$f":"IF('1. Order'!L1184=\"\",\"\",'1. Order'!L1184)","v":""},{"$f":"IF('1. Order'!N1184=\"\",\"\",'1. Order'!N1184)","v":""},null,null,{"$f":"'1. Order'!AV1184","v":0},{"$f":"IF('1. Order'!AI1184=\"\",\"\",'1. Order'!AI1184)","v":""}]
[{"$f":"IF('1. Order'!B1185=\"\",\"\",'1. Order'!B1185)","v":""},{"$f":"IF('1. Order'!J1185=\"\",\"\",'1. Order'!J1185)","v":""},{"$f":"IF('1. Order'!K1185=\"\",\"\",'1. Order'!K1185)","v":""},{"$f":"IF('1. Order'!L1185=\"\",\"\",'1. Order'!L1185)","v":""},{"$f":"IF('1. Order'!N1185=\"\",\"\",'1. Order'!N1185)","v":""},null,null,{"$f":"'1. Order'!AV1185","v":0},{"$f":"IF('1. Order'!AI1185=\"\",\"\",'1. Order'!AI1185)","v":""}]
[{"$f":"IF('1. Order'!B1186=\"\",\"\",'1. Order'!B1186)","v":""},{"$f":"IF('1. Order'!J1186=\"\",\"\",'1. Order'!J1186)","v":""},{"$f":"IF('1. Order'!K1186=\"\",\"\",'1. Order'!K1186)","v":""},{"$f":"IF('1. Order'!L1186=\"\",\"\",'1. Order'!L1186)","v":""},{"$f":"IF('1. Order'!N1186=\"\",\"\",'1. Order'!N1186)","v":""},null,null,{"$f":"'1. Order'!AV1186","v":0},{"$f":"IF('1. Order'!AI1186=\"\",\"\",'1. Order'!AI1186)","v":""}]
[{"$f":"IF('1. Order'!B1187=\"\",\"\",'1. Order'!B1187)","v":""},{"$f":"IF('1. Order'!J1187=\"\",\"\",'1. Order'!J1187)","v":""},{"$f":"IF('1. Order'!K1187=\"\",\"\",'1. Order'!K1187)","v":""},{"$f":"IF('1. Order'!L1187=\"\",\"\",'1. Order'!L1187)","v":""},{"$f":"IF('1. Order'!N1187=\"\",\"\",'1. Order'!N1187)","v":""},null,null,{"$f":"'1. Order'!AV1187","v":0},{"$f":"IF('1. Order'!AI1187=\"\",\"\",'1. Order'!AI1187)","v":""}]
[{"$f":"IF('1. Order'!B1188=\"\",\"\",'1. Order'!B1188)","v":""},{"$f":"IF('1. Order'!J1188=\"\",\"\",'1. Order'!J1188)","v":""},{"$f":"IF('1. Order'!K1188=\"\",\"\",'1. Order'!K1188)","v":""},{"$f":"IF('1. Order'!L1188=\"\",\"\",'1. Order'!L1188)","v":""},{"$f":"IF('1. Order'!N1188=\"\",\"\",'1. Order'!N1188)","v":""},null,null,{"$f":"'1. Order'!AV1188","v":0},{"$f":"IF('1. Order'!AI1188=\"\",\"\",'1. Order'!AI1188)","v":""}]
[{"$f":"IF('1. Order'!B1189=\"\",\"\",'1. Order'!B1189)","v":""},{"$f":"IF('1. Order'!J1189=\"\",\"\",'1. Order'!J1189)","v":""},{"$f":"IF('1. Order'!K1189=\"\",\"\",'1. Order'!K1189)","v":""},{"$f":"IF('1. Order'!L1189=\"\",\"\",'1. Order'!L1189)","v":""},{"$f":"IF('1. Order'!N1189=\"\",\"\",'1. Order'!N1189)","v":""},null,null,{"$f":"'1. Order'!AV1189","v":0},{"$f":"IF('1. Order'!AI1189=\"\",\"\",'1. Order'!AI1189)","v":""}]
[{"$f":"IF('1. Order'!B1190=\"\",\"\",'1. Order'!B1190)","v":""},{"$f":"IF('1. Order'!J1190=\"\",\"\",'1. Order'!J1190)","v":""},{"$f":"IF('1. Order'!K1190=\"\",\"\",'1. Order'!K1190)","v":""},{"$f":"IF('1. Order'!L1190=\"\",\"\",'1. Order'!L1190)","v":""},{"$f":"IF('1. Order'!N1190=\"\",\"\",'1. Order'!N1190)","v":""},null,null,{"$f":"'1. Order'!AV1190","v":0},{"$f":"IF('1. Order'!AI1190=\"\",\"\",'1. Order'!AI1190)","v":""}]
[{"$f":"IF('1. Order'!B1191=\"\",\"\",'1. Order'!B1191)","v":""},{"$f":"IF('1. Order'!J1191=\"\",\"\",'1. Order'!J1191)","v":""},{"$f":"IF('1. Order'!K1191=\"\",\"\",'1. Order'!K1191)","v":""},{"$f":"IF('1. Order'!L1191=\"\",\"\",'1. Order'!L1191)","v":""},{"$f":"IF('1. Order'!N1191=\"\",\"\",'1. Order'!N1191)","v":""},null,null,{"$f":"'1. Order'!AV1191","v":0},{"$f":"IF('1. Order'!AI1191=\"\",\"\",'1. Order'!AI1191)","v":""}]
[{"$f":"IF('1. Order'!B1192=\"\",\"\",'1. Order'!B1192)","v":""},{"$f":"IF('1. Order'!J1192=\"\",\"\",'1. Order'!J1192)","v":""},{"$f":"IF('1. Order'!K1192=\"\",\"\",'1. Order'!K1192)","v":""},{"$f":"IF('1. Order'!L1192=\"\",\"\",'1. Order'!L1192)","v":""},{"$f":"IF('1. Order'!N1192=\"\",\"\",'1. Order'!N1192)","v":""},null,null,{"$f":"'1. Order'!AV1192","v":0},{"$f":"IF('1. Order'!AI1192=\"\",\"\",'1. Order'!AI1192)","v":""}]
[{"$f":"IF('1. Order'!B1193=\"\",\"\",'1. Order'!B1193)","v":""},{"$f":"IF('1. Order'!J1193=\"\",\"\",'1. Order'!J1193)","v":""},{"$f":"IF('1. Order'!K1193=\"\",\"\",'1. Order'!K1193)","v":""},{"$f":"IF('1. Order'!L1193=\"\",\"\",'1. Order'!L1193)","v":""},{"$f":"IF('1. Order'!N1193=\"\",\"\",'1. Order'!N1193)","v":""},null,null,{"$f":"'1. Order'!AV1193","v":0},{"$f":"IF('1. Order'!AI1193=\"\",\"\",'1. Order'!AI1193)","v":""}]
[{"$f":"IF('1. Order'!B1194=\"\",\"\",'1. Order'!B1194)","v":""},{"$f":"IF('1. Order'!J1194=\"\",\"\",'1. Order'!J1194)","v":""},{"$f":"IF('1. Order'!K1194=\"\",\"\",'1. Order'!K1194)","v":""},{"$f":"IF('1. Order'!L1194=\"\",\"\",'1. Order'!L1194)","v":""},{"$f":"IF('1. Order'!N1194=\"\",\"\",'1. Order'!N1194)","v":""},null,null,{"$f":"'1. Order'!AV1194","v":0},{"$f":"IF('1. Order'!AI1194=\"\",\"\",'1. Order'!AI1194)","v":""}]
[{"$f":"IF('1. Order'!B1195=\"\",\"\",'1. Order'!B1195)","v":""},{"$f":"IF('1. Order'!J1195=\"\",\"\",'1. Order'!J1195)","v":""},{"$f":"IF('1. Order'!K1195=\"\",\"\",'1. Order'!K1195)","v":""},{"$f":"IF('1. Order'!L1195=\"\",\"\",'1. Order'!L1195)","v":""},{"$f":"IF('1. Order'!N1195=\"\",\"\",'1. Order'!N1195)","v":""},null,null,{"$f":"'1. Order'!AV1195","v":0},{"$f":"IF('1. Order'!AI1195=\"\",\"\",'1. Order'!AI1195)","v":""}]
[{"$f":"IF('1. Order'!B1196=\"\",\"\",'1. Order'!B1196)","v":""},{"$f":"IF('1. Order'!J1196=\"\",\"\",'1. Order'!J1196)","v":""},{"$f":"IF('1. Order'!K1196=\"\",\"\",'1. Order'!K1196)","v":""},{"$f":"IF('1. Order'!L1196=\"\",\"\",'1. Order'!L1196)","v":""},{"$f":"IF('1. Order'!N1196=\"\",\"\",'1. Order'!N1196)","v":""},null,null,{"$f":"'1. Order'!AV1196","v":0},{"$f":"IF('1. Order'!AI1196=\"\",\"\",'1. Order'!AI1196)","v":""}]
[{"$f":"IF('1. Order'!B1197=\"\",\"\",'1. Order'!B1197)","v":""},{"$f":"IF('1. Order'!J1197=\"\",\"\",'1. Order'!J1197)","v":""},{"$f":"IF('1. Order'!K1197=\"\",\"\",'1. Order'!K1197)","v":""},{"$f":"IF('1. Order'!L1197=\"\",\"\",'1. Order'!L1197)","v":""},{"$f":"IF('1. Order'!N1197=\"\",\"\",'1. Order'!N1197)","v":""},null,null,{"$f":"'1. Order'!AV1197","v":0},{"$f":"IF('1. Order'!AI1197=\"\",\"\",'1. Order'!AI1197)","v":""}]
[{"$f":"IF('1. Order'!B1198=\"\",\"\",'1. Order'!B1198)","v":""},{"$f":"IF('1. Order'!J1198=\"\",\"\",'1. Order'!J1198)","v":""},{"$f":"IF('1. Order'!K1198=\"\",\"\",'1. Order'!K1198)","v":""},{"$f":"IF('1. Order'!L1198=\"\",\"\",'1. Order'!L1198)","v":""},{"$f":"IF('1. Order'!N1198=\"\",\"\",'1. Order'!N1198)","v":""},null,null,{"$f":"'1. Order'!AV1198","v":0},{"$f":"IF('1. Order'!AI1198=\"\",\"\",'1. Order'!AI1198)","v":""}]
[{"$f":"IF('1. Order'!B1199=\"\",\"\",'1. Order'!B1199)","v":""},{"$f":"IF('1. Order'!J1199=\"\",\"\",'1. Order'!J1199)","v":""},{"$f":"IF('1. Order'!K1199=\"\",\"\",'1. Order'!K1199)","v":""},{"$f":"IF('1. Order'!L1199=\"\",\"\",'1. Order'!L1199)","v":""},{"$f":"IF('1. Order'!N1199=\"\",\"\",'1. Order'!N1199)","v":""},null,null,{"$f":"'1. Order'!AV1199","v":0},{"$f":"IF('1. Order'!AI1199=\"\",\"\",'1. Order'!AI1199)","v":""}]
[{"$f":"IF('1. Order'!B1200=\"\",\"\",'1. Order'!B1200)","v":""},{"$f":"IF('1. Order'!J1200=\"\",\"\",'1. Order'!J1200)","v":""},{"$f":"IF('1. Order'!K1200=\"\",\"\",'1. Order'!K1200)","v":""},{"$f":"IF('1. Order'!L1200=\"\",\"\",'1. Order'!L1200)","v":""},{"$f":"IF('1. Order'!N1200=\"\",\"\",'1. Order'!N1200)","v":""},null,null,{"$f":"'1. Order'!AV1200","v":0},{"$f":"IF('1. Order'!AI1200=\"\",\"\",'1. Order'!AI1200)","v":""}]
[{"$f":"IF('1. Order'!B1201=\"\",\"\",'1. Order'!B1201)","v":""},{"$f":"IF('1. Order'!J1201=\"\",\"\",'1. Order'!J1201)","v":""},{"$f":"IF('1. Order'!K1201=\"\",\"\",'1. Order'!K1201)","v":""},{"$f":"IF('1. Order'!L1201=\"\",\"\",'1. Order'!L1201)","v":""},{"$f":"IF('1. Order'!N1201=\"\",\"\",'1. Order'!N1201)","v":""},null,null,{"$f":"'1. Order'!AV1201","v":0},{"$f":"IF('1. Order'!AI1201=\"\",\"\",'1. Order'!AI1201)","v":""}]
[{"$f":"IF('1. Order'!B1202=\"\",\"\",'1. Order'!B1202)","v":""},{"$f":"IF('1. Order'!J1202=\"\",\"\",'1. Order'!J1202)","v":""},{"$f":"IF('1. Order'!K1202=\"\",\"\",'1. Order'!K1202)","v":""},{"$f":"IF('1. Order'!L1202=\"\",\"\",'1. Order'!L1202)","v":""},{"$f":"IF('1. Order'!N1202=\"\",\"\",'1. Order'!N1202)","v":""},null,null,{"$f":"'1. Order'!AV1202","v":0},{"$f":"IF('1. Order'!AI1202=\"\",\"\",'1. Order'!AI1202)","v":""}]
[{"$f":"IF('1. Order'!B1203=\"\",\"\",'1. Order'!B1203)","v":""},{"$f":"IF('1. Order'!J1203=\"\",\"\",'1. Order'!J1203)","v":""},{"$f":"IF('1. Order'!K1203=\"\",\"\",'1. Order'!K1203)","v":""},{"$f":"IF('1. Order'!L1203=\"\",\"\",'1. Order'!L1203)","v":""},{"$f":"IF('1. Order'!N1203=\"\",\"\",'1. Order'!N1203)","v":""},null,null,{"$f":"'1. Order'!AV1203","v":0},{"$f":"IF('1. Order'!AI1203=\"\",\"\",'1. Order'!AI1203)","v":""}]
[{"$f":"IF('1. Order'!B1204=\"\",\"\",'1. Order'!B1204)","v":""},{"$f":"IF('1. Order'!J1204=\"\",\"\",'1. Order'!J1204)","v":""},{"$f":"IF('1. Order'!K1204=\"\",\"\",'1. Order'!K1204)","v":""},{"$f":"IF('1. Order'!L1204=\"\",\"\",'1. Order'!L1204)","v":""},{"$f":"IF('1. Order'!N1204=\"\",\"\",'1. Order'!N1204)","v":""},null,null,{"$f":"'1. Order'!AV1204","v":0},{"$f":"IF('1. Order'!AI1204=\"\",\"\",'1. Order'!AI1204)","v":""}]
[{"$f":"IF('1. Order'!B1205=\"\",\"\",'1. Order'!B1205)","v":""},{"$f":"IF('1. Order'!J1205=\"\",\"\",'1. Order'!J1205)","v":""},{"$f":"IF('1. Order'!K1205=\"\",\"\",'1. Order'!K1205)","v":""},{"$f":"IF('1. Order'!L1205=\"\",\"\",'1. Order'!L1205)","v":""},{"$f":"IF('1. Order'!N1205=\"\",\"\",'1. Order'!N1205)","v":""},null,null,{"$f":"'1. Order'!AV1205","v":0},{"$f":"IF('1. Order'!AI1205=\"\",\"\",'1. Order'!AI1205)","v":""}]
[{"$f":"IF('1. Order'!B1206=\"\",\"\",'1. Order'!B1206)","v":""},{"$f":"IF('1. Order'!J1206=\"\",\"\",'1. Order'!J1206)","v":""},{"$f":"IF('1. Order'!K1206=\"\",\"\",'1. Order'!K1206)","v":""},{"$f":"IF('1. Order'!L1206=\"\",\"\",'1. Order'!L1206)","v":""},{"$f":"IF('1. Order'!N1206=\"\",\"\",'1. Order'!N1206)","v":""},null,null,{"$f":"'1. Order'!AV1206","v":0},{"$f":"IF('1. Order'!AI1206=\"\",\"\",'1. Order'!AI1206)","v":""}]
[{"$f":"IF('1. Order'!B1207=\"\",\"\",'1. Order'!B1207)","v":""},{"$f":"IF('1. Order'!J1207=\"\",\"\",'1. Order'!J1207)","v":""},{"$f":"IF('1. Order'!K1207=\"\",\"\",'1. Order'!K1207)","v":""},{"$f":"IF('1. Order'!L1207=\"\",\"\",'1. Order'!L1207)","v":""},{"$f":"IF('1. Order'!N1207=\"\",\"\",'1. Order'!N1207)","v":""},null,null,{"$f":"'1. Order'!AV1207","v":0},{"$f":"IF('1. Order'!AI1207=\"\",\"\",'1. Order'!AI1207)","v":""}]
[{"$f":"IF('1. Order'!B1208=\"\",\"\",'1. Order'!B1208)","v":""},{"$f":"IF('1. Order'!J1208=\"\",\"\",'1. Order'!J1208)","v":""},{"$f":"IF('1. Order'!K1208=\"\",\"\",'1. Order'!K1208)","v":""},{"$f":"IF('1. Order'!L1208=\"\",\"\",'1. Order'!L1208)","v":""},{"$f":"IF('1. Order'!N1208=\"\",\"\",'1. Order'!N1208)","v":""},null,null,{"$f":"'1. Order'!AV1208","v":0},{"$f":"IF('1. Order'!AI1208=\"\",\"\",'1. Order'!AI1208)","v":""}]
[{"$f":"IF('1. Order'!B1209=\"\",\"\",'1. Order'!B1209)","v":""},{"$f":"IF('1. Order'!J1209=\"\",\"\",'1. Order'!J1209)","v":""},{"$f":"IF('1. Order'!K1209=\"\",\"\",'1. Order'!K1209)","v":""},{"$f":"IF('1. Order'!L1209=\"\",\"\",'1. Order'!L1209)","v":""},{"$f":"IF('1. Order'!N1209=\"\",\"\",'1. Order'!N1209)","v":""},null,null,{"$f":"'1. Order'!AV1209","v":0},{"$f":"IF('1. Order'!AI1209=\"\",\"\",'1. Order'!AI1209)","v":""}]
[{"$f":"IF('1. Order'!B1210=\"\",\"\",'1. Order'!B1210)","v":""},{"$f":"IF('1. Order'!J1210=\"\",\"\",'1. Order'!J1210)","v":""},{"$f":"IF('1. Order'!K1210=\"\",\"\",'1. Order'!K1210)","v":""},{"$f":"IF('1. Order'!L1210=\"\",\"\",'1. Order'!L1210)","v":""},{"$f":"IF('1. Order'!N1210=\"\",\"\",'1. Order'!N1210)","v":""},null,null,{"$f":"'1. Order'!AV1210","v":0},{"$f":"IF('1. Order'!AI1210=\"\",\"\",'1. Order'!AI1210)","v":""}]
[{"$f":"IF('1. Order'!B1211=\"\",\"\",'1. Order'!B1211)","v":""},{"$f":"IF('1. Order'!J1211=\"\",\"\",'1. Order'!J1211)","v":""},{"$f":"IF('1. Order'!K1211=\"\",\"\",'1. Order'!K1211)","v":""},{"$f":"IF('1. Order'!L1211=\"\",\"\",'1. Order'!L1211)","v":""},{"$f":"IF('1. Order'!N1211=\"\",\"\",'1. Order'!N1211)","v":""},null,null,{"$f":"'1. Order'!AV1211","v":0},{"$f":"IF('1. Order'!AI1211=\"\",\"\",'1. Order'!AI1211)","v":""}]
[{"$f":"IF('1. Order'!B1212=\"\",\"\",'1. Order'!B1212)","v":""},{"$f":"IF('1. Order'!J1212=\"\",\"\",'1. Order'!J1212)","v":""},{"$f":"IF('1. Order'!K1212=\"\",\"\",'1. Order'!K1212)","v":""},{"$f":"IF('1. Order'!L1212=\"\",\"\",'1. Order'!L1212)","v":""},{"$f":"IF('1. Order'!N1212=\"\",\"\",'1. Order'!N1212)","v":""},null,null,{"$f":"'1. Order'!AV1212","v":0},{"$f":"IF('1. Order'!AI1212=\"\",\"\",'1. Order'!AI1212)","v":""}]
[{"$f":"IF('1. Order'!B1213=\"\",\"\",'1. Order'!B1213)","v":""},{"$f":"IF('1. Order'!J1213=\"\",\"\",'1. Order'!J1213)","v":""},{"$f":"IF('1. Order'!K1213=\"\",\"\",'1. Order'!K1213)","v":""},{"$f":"IF('1. Order'!L1213=\"\",\"\",'1. Order'!L1213)","v":""},{"$f":"IF('1. Order'!N1213=\"\",\"\",'1. Order'!N1213)","v":""},null,null,{"$f":"'1. Order'!AV1213","v":0},{"$f":"IF('1. Order'!AI1213=\"\",\"\",'1. Order'!AI1213)","v":""}]
[{"$f":"IF('1. Order'!B1214=\"\",\"\",'1. Order'!B1214)","v":""},{"$f":"IF('1. Order'!J1214=\"\",\"\",'1. Order'!J1214)","v":""},{"$f":"IF('1. Order'!K1214=\"\",\"\",'1. Order'!K1214)","v":""},{"$f":"IF('1. Order'!L1214=\"\",\"\",'1. Order'!L1214)","v":""},{"$f":"IF('1. Order'!N1214=\"\",\"\",'1. Order'!N1214)","v":""},null,null,{"$f":"'1. Order'!AV1214","v":0},{"$f":"IF('1. Order'!AI1214=\"\",\"\",'1. Order'!AI1214)","v":""}]
[{"$f":"IF('1. Order'!B1215=\"\",\"\",'1. Order'!B1215)","v":""},{"$f":"IF('1. Order'!J1215=\"\",\"\",'1. Order'!J1215)","v":""},{"$f":"IF('1. Order'!K1215=\"\",\"\",'1. Order'!K1215)","v":""},{"$f":"IF('1. Order'!L1215=\"\",\"\",'1. Order'!L1215)","v":""},{"$f":"IF('1. Order'!N1215=\"\",\"\",'1. Order'!N1215)","v":""},null,null,{"$f":"'1. Order'!AV1215","v":0},{"$f":"IF('1. Order'!AI1215=\"\",\"\",'1. Order'!AI1215)","v":""}]
[{"$f":"IF('1. Order'!B1216=\"\",\"\",'1. Order'!B1216)","v":""},{"$f":"IF('1. Order'!J1216=\"\",\"\",'1. Order'!J1216)","v":""},{"$f":"IF('1. Order'!K1216=\"\",\"\",'1. Order'!K1216)","v":""},{"$f":"IF('1. Order'!L1216=\"\",\"\",'1. Order'!L1216)","v":""},{"$f":"IF('1. Order'!N1216=\"\",\"\",'1. Order'!N1216)","v":""},null,null,{"$f":"'1. Order'!AV1216","v":0},{"$f":"IF('1. Order'!AI1216=\"\",\"\",'1. Order'!AI1216)","v":""}]
[{"$f":"IF('1. Order'!B1217=\"\",\"\",'1. Order'!B1217)","v":""},{"$f":"IF('1. Order'!J1217=\"\",\"\",'1. Order'!J1217)","v":""},{"$f":"IF('1. Order'!K1217=\"\",\"\",'1. Order'!K1217)","v":""},{"$f":"IF('1. Order'!L1217=\"\",\"\",'1. Order'!L1217)","v":""},{"$f":"IF('1. Order'!N1217=\"\",\"\",'1. Order'!N1217)","v":""},null,null,{"$f":"'1. Order'!AV1217","v":0},{"$f":"IF('1. Order'!AI1217=\"\",\"\",'1. Order'!AI1217)","v":""}]
[{"$f":"IF('1. Order'!B1218=\"\",\"\",'1. Order'!B1218)","v":""},{"$f":"IF('1. Order'!J1218=\"\",\"\",'1. Order'!J1218)","v":""},{"$f":"IF('1. Order'!K1218=\"\",\"\",'1. Order'!K1218)","v":""},{"$f":"IF('1. Order'!L1218=\"\",\"\",'1. Order'!L1218)","v":""},{"$f":"IF('1. Order'!N1218=\"\",\"\",'1. Order'!N1218)","v":""},null,null,{"$f":"'1. Order'!AV1218","v":0},{"$f":"IF('1. Order'!AI1218=\"\",\"\",'1. Order'!AI1218)","v":""}]
[{"$f":"IF('1. Order'!B1219=\"\",\"\",'1. Order'!B1219)","v":""},{"$f":"IF('1. Order'!J1219=\"\",\"\",'1. Order'!J1219)","v":""},{"$f":"IF('1. Order'!K1219=\"\",\"\",'1. Order'!K1219)","v":""},{"$f":"IF('1. Order'!L1219=\"\",\"\",'1. Order'!L1219)","v":""},{"$f":"IF('1. Order'!N1219=\"\",\"\",'1. Order'!N1219)","v":""},null,null,{"$f":"'1. Order'!AV1219","v":0},{"$f":"IF('1. Order'!AI1219=\"\",\"\",'1. Order'!AI1219)","v":""}]
[{"$f":"IF('1. Order'!B1220=\"\",\"\",'1. Order'!B1220)","v":""},{"$f":"IF('1. Order'!J1220=\"\",\"\",'1. Order'!J1220)","v":""},{"$f":"IF('1. Order'!K1220=\"\",\"\",'1. Order'!K1220)","v":""},{"$f":"IF('1. Order'!L1220=\"\",\"\",'1. Order'!L1220)","v":""},{"$f":"IF('1. Order'!N1220=\"\",\"\",'1. Order'!N1220)","v":""},null,null,{"$f":"'1. Order'!AV1220","v":0},{"$f":"IF('1. Order'!AI1220=\"\",\"\",'1. Order'!AI1220)","v":""}]
[{"$f":"IF('1. Order'!B1221=\"\",\"\",'1. Order'!B1221)","v":""},{"$f":"IF('1. Order'!J1221=\"\",\"\",'1. Order'!J1221)","v":""},{"$f":"IF('1. Order'!K1221=\"\",\"\",'1. Order'!K1221)","v":""},{"$f":"IF('1. Order'!L1221=\"\",\"\",'1. Order'!L1221)","v":""},{"$f":"IF('1. Order'!N1221=\"\",\"\",'1. Order'!N1221)","v":""},null,null,{"$f":"'1. Order'!AV1221","v":0},{"$f":"IF('1. Order'!AI1221=\"\",\"\",'1. Order'!AI1221)","v":""}]
[{"$f":"IF('1. Order'!B1222=\"\",\"\",'1. Order'!B1222)","v":""},{"$f":"IF('1. Order'!J1222=\"\",\"\",'1. Order'!J1222)","v":""},{"$f":"IF('1. Order'!K1222=\"\",\"\",'1. Order'!K1222)","v":""},{"$f":"IF('1. Order'!L1222=\"\",\"\",'1. Order'!L1222)","v":""},{"$f":"IF('1. Order'!N1222=\"\",\"\",'1. Order'!N1222)","v":""},null,null,{"$f":"'1. Order'!AV1222","v":0},{"$f":"IF('1. Order'!AI1222=\"\",\"\",'1. Order'!AI1222)","v":""}]
[{"$f":"IF('1. Order'!B1223=\"\",\"\",'1. Order'!B1223)","v":""},{"$f":"IF('1. Order'!J1223=\"\",\"\",'1. Order'!J1223)","v":""},{"$f":"IF('1. Order'!K1223=\"\",\"\",'1. Order'!K1223)","v":""},{"$f":"IF('1. Order'!L1223=\"\",\"\",'1. Order'!L1223)","v":""},{"$f":"IF('1. Order'!N1223=\"\",\"\",'1. Order'!N1223)","v":""},null,null,{"$f":"'1. Order'!AV1223","v":0},{"$f":"IF('1. Order'!AI1223=\"\",\"\",'1. Order'!AI1223)","v":""}]
[{"$f":"IF('1. Order'!B1224=\"\",\"\",'1. Order'!B1224)","v":""},{"$f":"IF('1. Order'!J1224=\"\",\"\",'1. Order'!J1224)","v":""},{"$f":"IF('1. Order'!K1224=\"\",\"\",'1. Order'!K1224)","v":""},{"$f":"IF('1. Order'!L1224=\"\",\"\",'1. Order'!L1224)","v":""},{"$f":"IF('1. Order'!N1224=\"\",\"\",'1. Order'!N1224)","v":""},null,null,{"$f":"'1. Order'!AV1224","v":0},{"$f":"IF('1. Order'!AI1224=\"\",\"\",'1. Order'!AI1224)","v":""}]
[{"$f":"IF('1. Order'!B1225=\"\",\"\",'1. Order'!B1225)","v":""},{"$f":"IF('1. Order'!J1225=\"\",\"\",'1. Order'!J1225)","v":""},{"$f":"IF('1. Order'!K1225=\"\",\"\",'1. Order'!K1225)","v":""},{"$f":"IF('1. Order'!L1225=\"\",\"\",'1. Order'!L1225)","v":""},{"$f":"IF('1. Order'!N1225=\"\",\"\",'1. Order'!N1225)","v":""},null,null,{"$f":"'1. Order'!AV1225","v":0},{"$f":"IF('1. Order'!AI1225=\"\",\"\",'1. Order'!AI1225)","v":""}]
[{"$f":"IF('1. Order'!B1226=\"\",\"\",'1. Order'!B1226)","v":""},{"$f":"IF('1. Order'!J1226=\"\",\"\",'1. Order'!J1226)","v":""},{"$f":"IF('1. Order'!K1226=\"\",\"\",'1. Order'!K1226)","v":""},{"$f":"IF('1. Order'!L1226=\"\",\"\",'1. Order'!L1226)","v":""},{"$f":"IF('1. Order'!N1226=\"\",\"\",'1. Order'!N1226)","v":""},null,null,{"$f":"'1. Order'!AV1226","v":0},{"$f":"IF('1. Order'!AI1226=\"\",\"\",'1. Order'!AI1226)","v":""}]
[{"$f":"IF('1. Order'!B1227=\"\",\"\",'1. Order'!B1227)","v":""},{"$f":"IF('1. Order'!J1227=\"\",\"\",'1. Order'!J1227)","v":""},{"$f":"IF('1. Order'!K1227=\"\",\"\",'1. Order'!K1227)","v":""},{"$f":"IF('1. Order'!L1227=\"\",\"\",'1. Order'!L1227)","v":""},{"$f":"IF('1. Order'!N1227=\"\",\"\",'1. Order'!N1227)","v":""},null,null,{"$f":"'1. Order'!AV1227","v":0},{"$f":"IF('1. Order'!AI1227=\"\",\"\",'1. Order'!AI1227)","v":""}]
[{"$f":"IF('1. Order'!B1228=\"\",\"\",'1. Order'!B1228)","v":""},{"$f":"IF('1. Order'!J1228=\"\",\"\",'1. Order'!J1228)","v":""},{"$f":"IF('1. Order'!K1228=\"\",\"\",'1. Order'!K1228)","v":""},{"$f":"IF('1. Order'!L1228=\"\",\"\",'1. Order'!L1228)","v":""},{"$f":"IF('1. Order'!N1228=\"\",\"\",'1. Order'!N1228)","v":""},null,null,{"$f":"'1. Order'!AV1228","v":0},{"$f":"IF('1. Order'!AI1228=\"\",\"\",'1. Order'!AI1228)","v":""}]
[{"$f":"IF('1. Order'!B1229=\"\",\"\",'1. Order'!B1229)","v":""},{"$f":"IF('1. Order'!J1229=\"\",\"\",'1. Order'!J1229)","v":""},{"$f":"IF('1. Order'!K1229=\"\",\"\",'1. Order'!K1229)","v":""},{"$f":"IF('1. Order'!L1229=\"\",\"\",'1. Order'!L1229)","v":""},{"$f":"IF('1. Order'!N1229=\"\",\"\",'1. Order'!N1229)","v":""},null,null,{"$f":"'1. Order'!AV1229","v":0},{"$f":"IF('1. Order'!AI1229=\"\",\"\",'1. Order'!AI1229)","v":""}]
[{"$f":"IF('1. Order'!B1230=\"\",\"\",'1. Order'!B1230)","v":""},{"$f":"IF('1. Order'!J1230=\"\",\"\",'1. Order'!J1230)","v":""},{"$f":"IF('1. Order'!K1230=\"\",\"\",'1. Order'!K1230)","v":""},{"$f":"IF('1. Order'!L1230=\"\",\"\",'1. Order'!L1230)","v":""},{"$f":"IF('1. Order'!N1230=\"\",\"\",'1. Order'!N1230)","v":""},null,null,{"$f":"'1. Order'!AV1230","v":0},{"$f":"IF('1. Order'!AI1230=\"\",\"\",'1. Order'!AI1230)","v":""}]
[{"$f":"IF('1. Order'!B1231=\"\",\"\",'1. Order'!B1231)","v":""},{"$f":"IF('1. Order'!J1231=\"\",\"\",'1. Order'!J1231)","v":""},{"$f":"IF('1. Order'!K1231=\"\",\"\",'1. Order'!K1231)","v":""},{"$f":"IF('1. Order'!L1231=\"\",\"\",'1. Order'!L1231)","v":""},{"$f":"IF('1. Order'!N1231=\"\",\"\",'1. Order'!N1231)","v":""},null,null,{"$f":"'1. Order'!AV1231","v":0},{"$f":"IF('1. Order'!AI1231=\"\",\"\",'1. Order'!AI1231)","v":""}]
[{"$f":"IF('1. Order'!B1232=\"\",\"\",'1. Order'!B1232)","v":""},{"$f":"IF('1. Order'!J1232=\"\",\"\",'1. Order'!J1232)","v":""},{"$f":"IF('1. Order'!K1232=\"\",\"\",'1. Order'!K1232)","v":""},{"$f":"IF('1. Order'!L1232=\"\",\"\",'1. Order'!L1232)","v":""},{"$f":"IF('1. Order'!N1232=\"\",\"\",'1. Order'!N1232)","v":""},null,null,{"$f":"'1. Order'!AV1232","v":0},{"$f":"IF('1. Order'!AI1232=\"\",\"\",'1. Order'!AI1232)","v":""}]
[{"$f":"IF('1. Order'!B1233=\"\",\"\",'1. Order'!B1233)","v":""},{"$f":"IF('1. Order'!J1233=\"\",\"\",'1. Order'!J1233)","v":""},{"$f":"IF('1. Order'!K1233=\"\",\"\",'1. Order'!K1233)","v":""},{"$f":"IF('1. Order'!L1233=\"\",\"\",'1. Order'!L1233)","v":""},{"$f":"IF('1. Order'!N1233=\"\",\"\",'1. Order'!N1233)","v":""},null,null,{"$f":"'1. Order'!AV1233","v":0},{"$f":"IF('1. Order'!AI1233=\"\",\"\",'1. Order'!AI1233)","v":""}]
[{"$f":"IF('1. Order'!B1234=\"\",\"\",'1. Order'!B1234)","v":""},{"$f":"IF('1. Order'!J1234=\"\",\"\",'1. Order'!J1234)","v":""},{"$f":"IF('1. Order'!K1234=\"\",\"\",'1. Order'!K1234)","v":""},{"$f":"IF('1. Order'!L1234=\"\",\"\",'1. Order'!L1234)","v":""},{"$f":"IF('1. Order'!N1234=\"\",\"\",'1. Order'!N1234)","v":""},null,null,{"$f":"'1. Order'!AV1234","v":0},{"$f":"IF('1. Order'!AI1234=\"\",\"\",'1. Order'!AI1234)","v":""}]
[{"$f":"IF('1. Order'!B1235=\"\",\"\",'1. Order'!B1235)","v":""},{"$f":"IF('1. Order'!J1235=\"\",\"\",'1. Order'!J1235)","v":""},{"$f":"IF('1. Order'!K1235=\"\",\"\",'1. Order'!K1235)","v":""},{"$f":"IF('1. Order'!L1235=\"\",\"\",'1. Order'!L1235)","v":""},{"$f":"IF('1. Order'!N1235=\"\",\"\",'1. Order'!N1235)","v":""},null,null,{"$f":"'1. Order'!AV1235","v":0},{"$f":"IF('1. Order'!AI1235=\"\",\"\",'1. Order'!AI1235)","v":""}]
[{"$f":"IF('1. Order'!B1236=\"\",\"\",'1. Order'!B1236)","v":""},{"$f":"IF('1. Order'!J1236=\"\",\"\",'1. Order'!J1236)","v":""},{"$f":"IF('1. Order'!K1236=\"\",\"\",'1. Order'!K1236)","v":""},{"$f":"IF('1. Order'!L1236=\"\",\"\",'1. Order'!L1236)","v":""},{"$f":"IF('1. Order'!N1236=\"\",\"\",'1. Order'!N1236)","v":""},null,null,{"$f":"'1. Order'!AV1236","v":0},{"$f":"IF('1. Order'!AI1236=\"\",\"\",'1. Order'!AI1236)","v":""}]
[{"$f":"IF('1. Order'!B1237=\"\",\"\",'1. Order'!B1237)","v":""},{"$f":"IF('1. Order'!J1237=\"\",\"\",'1. Order'!J1237)","v":""},{"$f":"IF('1. Order'!K1237=\"\",\"\",'1. Order'!K1237)","v":""},{"$f":"IF('1. Order'!L1237=\"\",\"\",'1. Order'!L1237)","v":""},{"$f":"IF('1. Order'!N1237=\"\",\"\",'1. Order'!N1237)","v":""},null,null,{"$f":"'1. Order'!AV1237","v":0},{"$f":"IF('1. Order'!AI1237=\"\",\"\",'1. Order'!AI1237)","v":""}]
[{"$f":"IF('1. Order'!B1238=\"\",\"\",'1. Order'!B1238)","v":""},{"$f":"IF('1. Order'!J1238=\"\",\"\",'1. Order'!J1238)","v":""},{"$f":"IF('1. Order'!K1238=\"\",\"\",'1. Order'!K1238)","v":""},{"$f":"IF('1. Order'!L1238=\"\",\"\",'1. Order'!L1238)","v":""},{"$f":"IF('1. Order'!N1238=\"\",\"\",'1. Order'!N1238)","v":""},null,null,{"$f":"'1. Order'!AV1238","v":0},{"$f":"IF('1. Order'!AI1238=\"\",\"\",'1. Order'!AI1238)","v":""}]
[{"$f":"IF('1. Order'!B1239=\"\",\"\",'1. Order'!B1239)","v":""},{"$f":"IF('1. Order'!J1239=\"\",\"\",'1. Order'!J1239)","v":""},{"$f":"IF('1. Order'!K1239=\"\",\"\",'1. Order'!K1239)","v":""},{"$f":"IF('1. Order'!L1239=\"\",\"\",'1. Order'!L1239)","v":""},{"$f":"IF('1. Order'!N1239=\"\",\"\",'1. Order'!N1239)","v":""},null,null,{"$f":"'1. Order'!AV1239","v":0},{"$f":"IF('1. Order'!AI1239=\"\",\"\",'1. Order'!AI1239)","v":""}]
[{"$f":"IF('1. Order'!B1240=\"\",\"\",'1. Order'!B1240)","v":""},{"$f":"IF('1. Order'!J1240=\"\",\"\",'1. Order'!J1240)","v":""},{"$f":"IF('1. Order'!K1240=\"\",\"\",'1. Order'!K1240)","v":""},{"$f":"IF('1. Order'!L1240=\"\",\"\",'1. Order'!L1240)","v":""},{"$f":"IF('1. Order'!N1240=\"\",\"\",'1. Order'!N1240)","v":""},null,null,{"$f":"'1. Order'!AV1240","v":0},{"$f":"IF('1. Order'!AI1240=\"\",\"\",'1. Order'!AI1240)","v":""}]
[{"$f":"IF('1. Order'!B1241=\"\",\"\",'1. Order'!B1241)","v":""},{"$f":"IF('1. Order'!J1241=\"\",\"\",'1. Order'!J1241)","v":""},{"$f":"IF('1. Order'!K1241=\"\",\"\",'1. Order'!K1241)","v":""},{"$f":"IF('1. Order'!L1241=\"\",\"\",'1. Order'!L1241)","v":""},{"$f":"IF('1. Order'!N1241=\"\",\"\",'1. Order'!N1241)","v":""},null,null,{"$f":"'1. Order'!AV1241","v":0},{"$f":"IF('1. Order'!AI1241=\"\",\"\",'1. Order'!AI1241)","v":""}]
[{"$f":"IF('1. Order'!B1242=\"\",\"\",'1. Order'!B1242)","v":""},{"$f":"IF('1. Order'!J1242=\"\",\"\",'1. Order'!J1242)","v":""},{"$f":"IF('1. Order'!K1242=\"\",\"\",'1. Order'!K1242)","v":""},{"$f":"IF('1. Order'!L1242=\"\",\"\",'1. Order'!L1242)","v":""},{"$f":"IF('1. Order'!N1242=\"\",\"\",'1. Order'!N1242)","v":""},null,null,{"$f":"'1. Order'!AV1242","v":0},{"$f":"IF('1. Order'!AI1242=\"\",\"\",'1. Order'!AI1242)","v":""}]
[{"$f":"IF('1. Order'!B1243=\"\",\"\",'1. Order'!B1243)","v":""},{"$f":"IF('1. Order'!J1243=\"\",\"\",'1. Order'!J1243)","v":""},{"$f":"IF('1. Order'!K1243=\"\",\"\",'1. Order'!K1243)","v":""},{"$f":"IF('1. Order'!L1243=\"\",\"\",'1. Order'!L1243)","v":""},{"$f":"IF('1. Order'!N1243=\"\",\"\",'1. Order'!N1243)","v":""},null,null,{"$f":"'1. Order'!AV1243","v":0},{"$f":"IF('1. Order'!AI1243=\"\",\"\",'1. Order'!AI1243)","v":""}]
[{"$f":"IF('1. Order'!B1244=\"\",\"\",'1. Order'!B1244)","v":""},{"$f":"IF('1. Order'!J1244=\"\",\"\",'1. Order'!J1244)","v":""},{"$f":"IF('1. Order'!K1244=\"\",\"\",'1. Order'!K1244)","v":""},{"$f":"IF('1. Order'!L1244=\"\",\"\",'1. Order'!L1244)","v":""},{"$f":"IF('1. Order'!N1244=\"\",\"\",'1. Order'!N1244)","v":""},null,null,{"$f":"'1. Order'!AV1244","v":0},{"$f":"IF('1. Order'!AI1244=\"\",\"\",'1. Order'!AI1244)","v":""}]
[{"$f":"IF('1. Order'!B1245=\"\",\"\",'1. Order'!B1245)","v":""},{"$f":"IF('1. Order'!J1245=\"\",\"\",'1. Order'!J1245)","v":""},{"$f":"IF('1. Order'!K1245=\"\",\"\",'1. Order'!K1245)","v":""},{"$f":"IF('1. Order'!L1245=\"\",\"\",'1. Order'!L1245)","v":""},{"$f":"IF('1. Order'!N1245=\"\",\"\",'1. Order'!N1245)","v":""},null,null,{"$f":"'1. Order'!AV1245","v":0},{"$f":"IF('1. Order'!AI1245=\"\",\"\",'1. Order'!AI1245)","v":""}]
[{"$f":"IF('1. Order'!B1246=\"\",\"\",'1. Order'!B1246)","v":""},{"$f":"IF('1. Order'!J1246=\"\",\"\",'1. Order'!J1246)","v":""},{"$f":"IF('1. Order'!K1246=\"\",\"\",'1. Order'!K1246)","v":""},{"$f":"IF('1. Order'!L1246=\"\",\"\",'1. Order'!L1246)","v":""},{"$f":"IF('1. Order'!N1246=\"\",\"\",'1. Order'!N1246)","v":""},null,null,{"$f":"'1. Order'!AV1246","v":0},{"$f":"IF('1. Order'!AI1246=\"\",\"\",'1. Order'!AI1246)","v":""}]
[{"$f":"IF('1. Order'!B1247=\"\",\"\",'1. Order'!B1247)","v":""},{"$f":"IF('1. Order'!J1247=\"\",\"\",'1. Order'!J1247)","v":""},{"$f":"IF('1. Order'!K1247=\"\",\"\",'1. Order'!K1247)","v":""},{"$f":"IF('1. Order'!L1247=\"\",\"\",'1. Order'!L1247)","v":""},{"$f":"IF('1. Order'!N1247=\"\",\"\",'1. Order'!N1247)","v":""},null,null,{"$f":"'1. Order'!AV1247","v":0},{"$f":"IF('1. Order'!AI1247=\"\",\"\",'1. Order'!AI1247)","v":""}]
[{"$f":"IF('1. Order'!B1248=\"\",\"\",'1. Order'!B1248)","v":""},{"$f":"IF('1. Order'!J1248=\"\",\"\",'1. Order'!J1248)","v":""},{"$f":"IF('1. Order'!K1248=\"\",\"\",'1. Order'!K1248)","v":""},{"$f":"IF('1. Order'!L1248=\"\",\"\",'1. Order'!L1248)","v":""},{"$f":"IF('1. Order'!N1248=\"\",\"\",'1. Order'!N1248)","v":""},null,null,{"$f":"'1. Order'!AV1248","v":0},{"$f":"IF('1. Order'!AI1248=\"\",\"\",'1. Order'!AI1248)","v":""}]
[{"$f":"IF('1. Order'!B1249=\"\",\"\",'1. Order'!B1249)","v":""},{"$f":"IF('1. Order'!J1249=\"\",\"\",'1. Order'!J1249)","v":""},{"$f":"IF('1. Order'!K1249=\"\",\"\",'1. Order'!K1249)","v":""},{"$f":"IF('1. Order'!L1249=\"\",\"\",'1. Order'!L1249)","v":""},{"$f":"IF('1. Order'!N1249=\"\",\"\",'1. Order'!N1249)","v":""},null,null,{"$f":"'1. Order'!AV1249","v":0},{"$f":"IF('1. Order'!AI1249=\"\",\"\",'1. Order'!AI1249)","v":""}]
[{"$f":"IF('1. Order'!B1250=\"\",\"\",'1. Order'!B1250)","v":""},{"$f":"IF('1. Order'!J1250=\"\",\"\",'1. Order'!J1250)","v":""},{"$f":"IF('1. Order'!K1250=\"\",\"\",'1. Order'!K1250)","v":""},{"$f":"IF('1. Order'!L1250=\"\",\"\",'1. Order'!L1250)","v":""},{"$f":"IF('1. Order'!N1250=\"\",\"\",'1. Order'!N1250)","v":""},null,null,{"$f":"'1. Order'!AV1250","v":0},{"$f":"IF('1. Order'!AI1250=\"\",\"\",'1. Order'!AI1250)","v":""}]
[{"$f":"IF('1. Order'!B1251=\"\",\"\",'1. Order'!B1251)","v":""},{"$f":"IF('1. Order'!J1251=\"\",\"\",'1. Order'!J1251)","v":""},{"$f":"IF('1. Order'!K1251=\"\",\"\",'1. Order'!K1251)","v":""},{"$f":"IF('1. Order'!L1251=\"\",\"\",'1. Order'!L1251)","v":""},{"$f":"IF('1. Order'!N1251=\"\",\"\",'1. Order'!N1251)","v":""},null,null,{"$f":"'1. Order'!AV1251","v":0},{"$f":"IF('1. Order'!AI1251=\"\",\"\",'1. Order'!AI1251)","v":""}]
[{"$f":"IF('1. Order'!B1252=\"\",\"\",'1. Order'!B1252)","v":""},{"$f":"IF('1. Order'!J1252=\"\",\"\",'1. Order'!J1252)","v":""},{"$f":"IF('1. Order'!K1252=\"\",\"\",'1. Order'!K1252)","v":""},{"$f":"IF('1. Order'!L1252=\"\",\"\",'1. Order'!L1252)","v":""},{"$f":"IF('1. Order'!N1252=\"\",\"\",'1. Order'!N1252)","v":""},null,null,{"$f":"'1. Order'!AV1252","v":0},{"$f":"IF('1. Order'!AI1252=\"\",\"\",'1. Order'!AI1252)","v":""}]
[{"$f":"IF('1. Order'!B1253=\"\",\"\",'1. Order'!B1253)","v":""},{"$f":"IF('1. Order'!J1253=\"\",\"\",'1. Order'!J1253)","v":""},{"$f":"IF('1. Order'!K1253=\"\",\"\",'1. Order'!K1253)","v":""},{"$f":"IF('1. Order'!L1253=\"\",\"\",'1. Order'!L1253)","v":""},{"$f":"IF('1. Order'!N1253=\"\",\"\",'1. Order'!N1253)","v":""},null,null,{"$f":"'1. Order'!AV1253","v":0},{"$f":"IF('1. Order'!AI1253=\"\",\"\",'1. Order'!AI1253)","v":""}]
[{"$f":"IF('1. Order'!B1254=\"\",\"\",'1. Order'!B1254)","v":""},{"$f":"IF('1. Order'!J1254=\"\",\"\",'1. Order'!J1254)","v":""},{"$f":"IF('1. Order'!K1254=\"\",\"\",'1. Order'!K1254)","v":""},{"$f":"IF('1. Order'!L1254=\"\",\"\",'1. Order'!L1254)","v":""},{"$f":"IF('1. Order'!N1254=\"\",\"\",'1. Order'!N1254)","v":""},null,null,{"$f":"'1. Order'!AV1254","v":0},{"$f":"IF('1. Order'!AI1254=\"\",\"\",'1. Order'!AI1254)","v":""}]
[{"$f":"IF('1. Order'!B1255=\"\",\"\",'1. Order'!B1255)","v":""},{"$f":"IF('1. Order'!J1255=\"\",\"\",'1. Order'!J1255)","v":""},{"$f":"IF('1. Order'!K1255=\"\",\"\",'1. Order'!K1255)","v":""},{"$f":"IF('1. Order'!L1255=\"\",\"\",'1. Order'!L1255)","v":""},{"$f":"IF('1. Order'!N1255=\"\",\"\",'1. Order'!N1255)","v":""},null,null,{"$f":"'1. Order'!AV1255","v":0},{"$f":"IF('1. Order'!AI1255=\"\",\"\",'1. Order'!AI1255)","v":""}]
[{"$f":"IF('1. Order'!B1256=\"\",\"\",'1. Order'!B1256)","v":""},{"$f":"IF('1. Order'!J1256=\"\",\"\",'1. Order'!J1256)","v":""},{"$f":"IF('1. Order'!K1256=\"\",\"\",'1. Order'!K1256)","v":""},{"$f":"IF('1. Order'!L1256=\"\",\"\",'1. Order'!L1256)","v":""},{"$f":"IF('1. Order'!N1256=\"\",\"\",'1. Order'!N1256)","v":""},null,null,{"$f":"'1. Order'!AV1256","v":0},{"$f":"IF('1. Order'!AI1256=\"\",\"\",'1. Order'!AI1256)","v":""}]
[{"$f":"IF('1. Order'!B1257=\"\",\"\",'1. Order'!B1257)","v":""},{"$f":"IF('1. Order'!J1257=\"\",\"\",'1. Order'!J1257)","v":""},{"$f":"IF('1. Order'!K1257=\"\",\"\",'1. Order'!K1257)","v":""},{"$f":"IF('1. Order'!L1257=\"\",\"\",'1. Order'!L1257)","v":""},{"$f":"IF('1. Order'!N1257=\"\",\"\",'1. Order'!N1257)","v":""},null,null,{"$f":"'1. Order'!AV1257","v":0},{"$f":"IF('1. Order'!AI1257=\"\",\"\",'1. Order'!AI1257)","v":""}]
[{"$f":"IF('1. Order'!B1258=\"\",\"\",'1. Order'!B1258)","v":""},{"$f":"IF('1. Order'!J1258=\"\",\"\",'1. Order'!J1258)","v":""},{"$f":"IF('1. Order'!K1258=\"\",\"\",'1. Order'!K1258)","v":""},{"$f":"IF('1. Order'!L1258=\"\",\"\",'1. Order'!L1258)","v":""},{"$f":"IF('1. Order'!N1258=\"\",\"\",'1. Order'!N1258)","v":""},null,null,{"$f":"'1. Order'!AV1258","v":0},{"$f":"IF('1. Order'!AI1258=\"\",\"\",'1. Order'!AI1258)","v":""}]
[{"$f":"IF('1. Order'!B1259=\"\",\"\",'1. Order'!B1259)","v":""},{"$f":"IF('1. Order'!J1259=\"\",\"\",'1. Order'!J1259)","v":""},{"$f":"IF('1. Order'!K1259=\"\",\"\",'1. Order'!K1259)","v":""},{"$f":"IF('1. Order'!L1259=\"\",\"\",'1. Order'!L1259)","v":""},{"$f":"IF('1. Order'!N1259=\"\",\"\",'1. Order'!N1259)","v":""},null,null,{"$f":"'1. Order'!AV1259","v":0},{"$f":"IF('1. Order'!AI1259=\"\",\"\",'1. Order'!AI1259)","v":""}]
[{"$f":"IF('1. Order'!B1260=\"\",\"\",'1. Order'!B1260)","v":""},{"$f":"IF('1. Order'!J1260=\"\",\"\",'1. Order'!J1260)","v":""},{"$f":"IF('1. Order'!K1260=\"\",\"\",'1. Order'!K1260)","v":""},{"$f":"IF('1. Order'!L1260=\"\",\"\",'1. Order'!L1260)","v":""},{"$f":"IF('1. Order'!N1260=\"\",\"\",'1. Order'!N1260)","v":""},null,null,{"$f":"'1. Order'!AV1260","v":0},{"$f":"IF('1. Order'!AI1260=\"\",\"\",'1. Order'!AI1260)","v":""}]
[{"$f":"IF('1. Order'!B1261=\"\",\"\",'1. Order'!B1261)","v":""},{"$f":"IF('1. Order'!J1261=\"\",\"\",'1. Order'!J1261)","v":""},{"$f":"IF('1. Order'!K1261=\"\",\"\",'1. Order'!K1261)","v":""},{"$f":"IF('1. Order'!L1261=\"\",\"\",'1. Order'!L1261)","v":""},{"$f":"IF('1. Order'!N1261=\"\",\"\",'1. Order'!N1261)","v":""},null,null,{"$f":"'1. Order'!AV1261","v":0},{"$f":"IF('1. Order'!AI1261=\"\",\"\",'1. Order'!AI1261)","v":""}]
[{"$f":"IF('1. Order'!B1262=\"\",\"\",'1. Order'!B1262)","v":""},{"$f":"IF('1. Order'!J1262=\"\",\"\",'1. Order'!J1262)","v":""},{"$f":"IF('1. Order'!K1262=\"\",\"\",'1. Order'!K1262)","v":""},{"$f":"IF('1. Order'!L1262=\"\",\"\",'1. Order'!L1262)","v":""},{"$f":"IF('1. Order'!N1262=\"\",\"\",'1. Order'!N1262)","v":""},null,null,{"$f":"'1. Order'!AV1262","v":0},{"$f":"IF('1. Order'!AI1262=\"\",\"\",'1. Order'!AI1262)","v":""}]
[{"$f":"IF('1. Order'!B1263=\"\",\"\",'1. Order'!B1263)","v":""},{"$f":"IF('1. Order'!J1263=\"\",\"\",'1. Order'!J1263)","v":""},{"$f":"IF('1. Order'!K1263=\"\",\"\",'1. Order'!K1263)","v":""},{"$f":"IF('1. Order'!L1263=\"\",\"\",'1. Order'!L1263)","v":""},{"$f":"IF('1. Order'!N1263=\"\",\"\",'1. Order'!N1263)","v":""},null,null,{"$f":"'1. Order'!AV1263","v":0},{"$f":"IF('1. Order'!AI1263=\"\",\"\",'1. Order'!AI1263)","v":""}]
[{"$f":"IF('1. Order'!B1264=\"\",\"\",'1. Order'!B1264)","v":""},{"$f":"IF('1. Order'!J1264=\"\",\"\",'1. Order'!J1264)","v":""},{"$f":"IF('1. Order'!K1264=\"\",\"\",'1. Order'!K1264)","v":""},{"$f":"IF('1. Order'!L1264=\"\",\"\",'1. Order'!L1264)","v":""},{"$f":"IF('1. Order'!N1264=\"\",\"\",'1. Order'!N1264)","v":""},null,null,{"$f":"'1. Order'!AV1264","v":0},{"$f":"IF('1. Order'!AI1264=\"\",\"\",'1. Order'!AI1264)","v":""}]
[{"$f":"IF('1. Order'!B1265=\"\",\"\",'1. Order'!B1265)","v":""},{"$f":"IF('1. Order'!J1265=\"\",\"\",'1. Order'!J1265)","v":""},{"$f":"IF('1. Order'!K1265=\"\",\"\",'1. Order'!K1265)","v":""},{"$f":"IF('1. Order'!L1265=\"\",\"\",'1. Order'!L1265)","v":""},{"$f":"IF('1. Order'!N1265=\"\",\"\",'1. Order'!N1265)","v":""},null,null,{"$f":"'1. Order'!AV1265","v":0},{"$f":"IF('1. Order'!AI1265=\"\",\"\",'1. Order'!AI1265)","v":""}]
[{"$f":"IF('1. Order'!B1266=\"\",\"\",'1. Order'!B1266)","v":""},{"$f":"IF('1. Order'!J1266=\"\",\"\",'1. Order'!J1266)","v":""},{"$f":"IF('1. Order'!K1266=\"\",\"\",'1. Order'!K1266)","v":""},{"$f":"IF('1. Order'!L1266=\"\",\"\",'1. Order'!L1266)","v":""},{"$f":"IF('1. Order'!N1266=\"\",\"\",'1. Order'!N1266)","v":""},null,null,{"$f":"'1. Order'!AV1266","v":0},{"$f":"IF('1. Order'!AI1266=\"\",\"\",'1. Order'!AI1266)","v":""}]
[{"$f":"IF('1. Order'!B1267=\"\",\"\",'1. Order'!B1267)","v":""},{"$f":"IF('1. Order'!J1267=\"\",\"\",'1. Order'!J1267)","v":""},{"$f":"IF('1. Order'!K1267=\"\",\"\",'1. Order'!K1267)","v":""},{"$f":"IF('1. Order'!L1267=\"\",\"\",'1. Order'!L1267)","v":""},{"$f":"IF('1. Order'!N1267=\"\",\"\",'1. Order'!N1267)","v":""},null,null,{"$f":"'1. Order'!AV1267","v":0},{"$f":"IF('1. Order'!AI1267=\"\",\"\",'1. Order'!AI1267)","v":""}]
[{"$f":"IF('1. Order'!B1268=\"\",\"\",'1. Order'!B1268)","v":""},{"$f":"IF('1. Order'!J1268=\"\",\"\",'1. Order'!J1268)","v":""},{"$f":"IF('1. Order'!K1268=\"\",\"\",'1. Order'!K1268)","v":""},{"$f":"IF('1. Order'!L1268=\"\",\"\",'1. Order'!L1268)","v":""},{"$f":"IF('1. Order'!N1268=\"\",\"\",'1. Order'!N1268)","v":""},null,null,{"$f":"'1. Order'!AV1268","v":0},{"$f":"IF('1. Order'!AI1268=\"\",\"\",'1. Order'!AI1268)","v":""}]
[{"$f":"IF('1. Order'!B1269=\"\",\"\",'1. Order'!B1269)","v":""},{"$f":"IF('1. Order'!J1269=\"\",\"\",'1. Order'!J1269)","v":""},{"$f":"IF('1. Order'!K1269=\"\",\"\",'1. Order'!K1269)","v":""},{"$f":"IF('1. Order'!L1269=\"\",\"\",'1. Order'!L1269)","v":""},{"$f":"IF('1. Order'!N1269=\"\",\"\",'1. Order'!N1269)","v":""},null,null,{"$f":"'1. Order'!AV1269","v":0},{"$f":"IF('1. Order'!AI1269=\"\",\"\",'1. Order'!AI1269)","v":""}]
[{"$f":"IF('1. Order'!B1270=\"\",\"\",'1. Order'!B1270)","v":""},{"$f":"IF('1. Order'!J1270=\"\",\"\",'1. Order'!J1270)","v":""},{"$f":"IF('1. Order'!K1270=\"\",\"\",'1. Order'!K1270)","v":""},{"$f":"IF('1. Order'!L1270=\"\",\"\",'1. Order'!L1270)","v":""},{"$f":"IF('1. Order'!N1270=\"\",\"\",'1. Order'!N1270)","v":""},null,null,{"$f":"'1. Order'!AV1270","v":0},{"$f":"IF('1. Order'!AI1270=\"\",\"\",'1. Order'!AI1270)","v":""}]
[{"$f":"IF('1. Order'!B1271=\"\",\"\",'1. Order'!B1271)","v":""},{"$f":"IF('1. Order'!J1271=\"\",\"\",'1. Order'!J1271)","v":""},{"$f":"IF('1. Order'!K1271=\"\",\"\",'1. Order'!K1271)","v":""},{"$f":"IF('1. Order'!L1271=\"\",\"\",'1. Order'!L1271)","v":""},{"$f":"IF('1. Order'!N1271=\"\",\"\",'1. Order'!N1271)","v":""},null,null,{"$f":"'1. Order'!AV1271","v":0},{"$f":"IF('1. Order'!AI1271=\"\",\"\",'1. Order'!AI1271)","v":""}]
[{"$f":"IF('1. Order'!B1272=\"\",\"\",'1. Order'!B1272)","v":""},{"$f":"IF('1. Order'!J1272=\"\",\"\",'1. Order'!J1272)","v":""},{"$f":"IF('1. Order'!K1272=\"\",\"\",'1. Order'!K1272)","v":""},{"$f":"IF('1. Order'!L1272=\"\",\"\",'1. Order'!L1272)","v":""},{"$f":"IF('1. Order'!N1272=\"\",\"\",'1. Order'!N1272)","v":""},null,null,{"$f":"'1. Order'!AV1272","v":0},{"$f":"IF('1. Order'!AI1272=\"\",\"\",'1. Order'!AI1272)","v":""}]
[{"$f":"IF('1. Order'!B1273=\"\",\"\",'1. Order'!B1273)","v":""},{"$f":"IF('1. Order'!J1273=\"\",\"\",'1. Order'!J1273)","v":""},{"$f":"IF('1. Order'!K1273=\"\",\"\",'1. Order'!K1273)","v":""},{"$f":"IF('1. Order'!L1273=\"\",\"\",'1. Order'!L1273)","v":""},{"$f":"IF('1. Order'!N1273=\"\",\"\",'1. Order'!N1273)","v":""},null,null,{"$f":"'1. Order'!AV1273","v":0},{"$f":"IF('1. Order'!AI1273=\"\",\"\",'1. Order'!AI1273)","v":""}]
[{"$f":"IF('1. Order'!B1274=\"\",\"\",'1. Order'!B1274)","v":""},{"$f":"IF('1. Order'!J1274=\"\",\"\",'1. Order'!J1274)","v":""},{"$f":"IF('1. Order'!K1274=\"\",\"\",'1. Order'!K1274)","v":""},{"$f":"IF('1. Order'!L1274=\"\",\"\",'1. Order'!L1274)","v":""},{"$f":"IF('1. Order'!N1274=\"\",\"\",'1. Order'!N1274)","v":""},null,null,{"$f":"'1. Order'!AV1274","v":0},{"$f":"IF('1. Order'!AI1274=\"\",\"\",'1. Order'!AI1274)","v":""}]
[{"$f":"IF('1. Order'!B1275=\"\",\"\",'1. Order'!B1275)","v":""},{"$f":"IF('1. Order'!J1275=\"\",\"\",'1. Order'!J1275)","v":""},{"$f":"IF('1. Order'!K1275=\"\",\"\",'1. Order'!K1275)","v":""},{"$f":"IF('1. Order'!L1275=\"\",\"\",'1. Order'!L1275)","v":""},{"$f":"IF('1. Order'!N1275=\"\",\"\",'1. Order'!N1275)","v":""},null,null,{"$f":"'1. Order'!AV1275","v":0},{"$f":"IF('1. Order'!AI1275=\"\",\"\",'1. Order'!AI1275)","v":""}]
[{"$f":"IF('1. Order'!B1276=\"\",\"\",'1. Order'!B1276)","v":""},{"$f":"IF('1. Order'!J1276=\"\",\"\",'1. Order'!J1276)","v":""},{"$f":"IF('1. Order'!K1276=\"\",\"\",'1. Order'!K1276)","v":""},{"$f":"IF('1. Order'!L1276=\"\",\"\",'1. Order'!L1276)","v":""},{"$f":"IF('1. Order'!N1276=\"\",\"\",'1. Order'!N1276)","v":""},null,null,{"$f":"'1. Order'!AV1276","v":0},{"$f":"IF('1. Order'!AI1276=\"\",\"\",'1. Order'!AI1276)","v":""}]
[{"$f":"IF('1. Order'!B1277=\"\",\"\",'1. Order'!B1277)","v":""},{"$f":"IF('1. Order'!J1277=\"\",\"\",'1. Order'!J1277)","v":""},{"$f":"IF('1. Order'!K1277=\"\",\"\",'1. Order'!K1277)","v":""},{"$f":"IF('1. Order'!L1277=\"\",\"\",'1. Order'!L1277)","v":""},{"$f":"IF('1. Order'!N1277=\"\",\"\",'1. Order'!N1277)","v":""},null,null,{"$f":"'1. Order'!AV1277","v":0},{"$f":"IF('1. Order'!AI1277=\"\",\"\",'1. Order'!AI1277)","v":""}]
[{"$f":"IF('1. Order'!B1278=\"\",\"\",'1. Order'!B1278)","v":""},{"$f":"IF('1. Order'!J1278=\"\",\"\",'1. Order'!J1278)","v":""},{"$f":"IF('1. Order'!K1278=\"\",\"\",'1. Order'!K1278)","v":""},{"$f":"IF('1. Order'!L1278=\"\",\"\",'1. Order'!L1278)","v":""},{"$f":"IF('1. Order'!N1278=\"\",\"\",'1. Order'!N1278)","v":""},null,null,{"$f":"'1. Order'!AV1278","v":0},{"$f":"IF('1. Order'!AI1278=\"\",\"\",'1. Order'!AI1278)","v":""}]
[{"$f":"IF('1. Order'!B1279=\"\",\"\",'1. Order'!B1279)","v":""},{"$f":"IF('1. Order'!J1279=\"\",\"\",'1. Order'!J1279)","v":""},{"$f":"IF('1. Order'!K1279=\"\",\"\",'1. Order'!K1279)","v":""},{"$f":"IF('1. Order'!L1279=\"\",\"\",'1. Order'!L1279)","v":""},{"$f":"IF('1. Order'!N1279=\"\",\"\",'1. Order'!N1279)","v":""},null,null,{"$f":"'1. Order'!AV1279","v":0},{"$f":"IF('1. Order'!AI1279=\"\",\"\",'1. Order'!AI1279)","v":""}]
[{"$f":"IF('1. Order'!B1280=\"\",\"\",'1. Order'!B1280)","v":""},{"$f":"IF('1. Order'!J1280=\"\",\"\",'1. Order'!J1280)","v":""},{"$f":"IF('1. Order'!K1280=\"\",\"\",'1. Order'!K1280)","v":""},{"$f":"IF('1. Order'!L1280=\"\",\"\",'1. Order'!L1280)","v":""},{"$f":"IF('1. Order'!N1280=\"\",\"\",'1. Order'!N1280)","v":""},null,null,{"$f":"'1. Order'!AV1280","v":0},{"$f":"IF('1. Order'!AI1280=\"\",\"\",'1. Order'!AI1280)","v":""}]
[{"$f":"IF('1. Order'!B1281=\"\",\"\",'1. Order'!B1281)","v":""},{"$f":"IF('1. Order'!J1281=\"\",\"\",'1. Order'!J1281)","v":""},{"$f":"IF('1. Order'!K1281=\"\",\"\",'1. Order'!K1281)","v":""},{"$f":"IF('1. Order'!L1281=\"\",\"\",'1. Order'!L1281)","v":""},{"$f":"IF('1. Order'!N1281=\"\",\"\",'1. Order'!N1281)","v":""},null,null,{"$f":"'1. Order'!AV1281","v":0},{"$f":"IF('1. Order'!AI1281=\"\",\"\",'1. Order'!AI1281)","v":""}]
[{"$f":"IF('1. Order'!B1282=\"\",\"\",'1. Order'!B1282)","v":""},{"$f":"IF('1. Order'!J1282=\"\",\"\",'1. Order'!J1282)","v":""},{"$f":"IF('1. Order'!K1282=\"\",\"\",'1. Order'!K1282)","v":""},{"$f":"IF('1. Order'!L1282=\"\",\"\",'1. Order'!L1282)","v":""},{"$f":"IF('1. Order'!N1282=\"\",\"\",'1. Order'!N1282)","v":""},null,null,{"$f":"'1. Order'!AV1282","v":0},{"$f":"IF('1. Order'!AI1282=\"\",\"\",'1. Order'!AI1282)","v":""}]
[{"$f":"IF('1. Order'!B1283=\"\",\"\",'1. Order'!B1283)","v":""},{"$f":"IF('1. Order'!J1283=\"\",\"\",'1. Order'!J1283)","v":""},{"$f":"IF('1. Order'!K1283=\"\",\"\",'1. Order'!K1283)","v":""},{"$f":"IF('1. Order'!L1283=\"\",\"\",'1. Order'!L1283)","v":""},{"$f":"IF('1. Order'!N1283=\"\",\"\",'1. Order'!N1283)","v":""},null,null,{"$f":"'1. Order'!AV1283","v":0},{"$f":"IF('1. Order'!AI1283=\"\",\"\",'1. Order'!AI1283)","v":""}]
[{"$f":"IF('1. Order'!B1284=\"\",\"\",'1. Order'!B1284)","v":""},{"$f":"IF('1. Order'!J1284=\"\",\"\",'1. Order'!J1284)","v":""},{"$f":"IF('1. Order'!K1284=\"\",\"\",'1. Order'!K1284)","v":""},{"$f":"IF('1. Order'!L1284=\"\",\"\",'1. Order'!L1284)","v":""},{"$f":"IF('1. Order'!N1284=\"\",\"\",'1. Order'!N1284)","v":""},null,null,{"$f":"'1. Order'!AV1284","v":0},{"$f":"IF('1. Order'!AI1284=\"\",\"\",'1. Order'!AI1284)","v":""}]
[{"$f":"IF('1. Order'!B1285=\"\",\"\",'1. Order'!B1285)","v":""},{"$f":"IF('1. Order'!J1285=\"\",\"\",'1. Order'!J1285)","v":""},{"$f":"IF('1. Order'!K1285=\"\",\"\",'1. Order'!K1285)","v":""},{"$f":"IF('1. Order'!L1285=\"\",\"\",'1. Order'!L1285)","v":""},{"$f":"IF('1. Order'!N1285=\"\",\"\",'1. Order'!N1285)","v":""},null,null,{"$f":"'1. Order'!AV1285","v":0},{"$f":"IF('1. Order'!AI1285=\"\",\"\",'1. Order'!AI1285)","v":""}]
[{"$f":"IF('1. Order'!B1286=\"\",\"\",'1. Order'!B1286)","v":""},{"$f":"IF('1. Order'!J1286=\"\",\"\",'1. Order'!J1286)","v":""},{"$f":"IF('1. Order'!K1286=\"\",\"\",'1. Order'!K1286)","v":""},{"$f":"IF('1. Order'!L1286=\"\",\"\",'1. Order'!L1286)","v":""},{"$f":"IF('1. Order'!N1286=\"\",\"\",'1. Order'!N1286)","v":""},null,null,{"$f":"'1. Order'!AV1286","v":0},{"$f":"IF('1. Order'!AI1286=\"\",\"\",'1. Order'!AI1286)","v":""}]
[{"$f":"IF('1. Order'!B1287=\"\",\"\",'1. Order'!B1287)","v":""},{"$f":"IF('1. Order'!J1287=\"\",\"\",'1. Order'!J1287)","v":""},{"$f":"IF('1. Order'!K1287=\"\",\"\",'1. Order'!K1287)","v":""},{"$f":"IF('1. Order'!L1287=\"\",\"\",'1. Order'!L1287)","v":""},{"$f":"IF('1. Order'!N1287=\"\",\"\",'1. Order'!N1287)","v":""},null,null,{"$f":"'1. Order'!AV1287","v":0},{"$f":"IF('1. Order'!AI1287=\"\",\"\",'1. Order'!AI1287)","v":""}]
[{"$f":"IF('1. Order'!B1288=\"\",\"\",'1. Order'!B1288)","v":""},{"$f":"IF('1. Order'!J1288=\"\",\"\",'1. Order'!J1288)","v":""},{"$f":"IF('1. Order'!K1288=\"\",\"\",'1. Order'!K1288)","v":""},{"$f":"IF('1. Order'!L1288=\"\",\"\",'1. Order'!L1288)","v":""},{"$f":"IF('1. Order'!N1288=\"\",\"\",'1. Order'!N1288)","v":""},null,null,{"$f":"'1. Order'!AV1288","v":0},{"$f":"IF('1. Order'!AI1288=\"\",\"\",'1. Order'!AI1288)","v":""}]
[{"$f":"IF('1. Order'!B1289=\"\",\"\",'1. Order'!B1289)","v":""},{"$f":"IF('1. Order'!J1289=\"\",\"\",'1. Order'!J1289)","v":""},{"$f":"IF('1. Order'!K1289=\"\",\"\",'1. Order'!K1289)","v":""},{"$f":"IF('1. Order'!L1289=\"\",\"\",'1. Order'!L1289)","v":""},{"$f":"IF('1. Order'!N1289=\"\",\"\",'1. Order'!N1289)","v":""},null,null,{"$f":"'1. Order'!AV1289","v":0},{"$f":"IF('1. Order'!AI1289=\"\",\"\",'1. Order'!AI1289)","v":""}]
[{"$f":"IF('1. Order'!B1290=\"\",\"\",'1. Order'!B1290)","v":""},{"$f":"IF('1. Order'!J1290=\"\",\"\",'1. Order'!J1290)","v":""},{"$f":"IF('1. Order'!K1290=\"\",\"\",'1. Order'!K1290)","v":""},{"$f":"IF('1. Order'!L1290=\"\",\"\",'1. Order'!L1290)","v":""},{"$f":"IF('1. Order'!N1290=\"\",\"\",'1. Order'!N1290)","v":""},null,null,{"$f":"'1. Order'!AV1290","v":0},{"$f":"IF('1. Order'!AI1290=\"\",\"\",'1. Order'!AI1290)","v":""}]
[{"$f":"IF('1. Order'!B1291=\"\",\"\",'1. Order'!B1291)","v":""},{"$f":"IF('1. Order'!J1291=\"\",\"\",'1. Order'!J1291)","v":""},{"$f":"IF('1. Order'!K1291=\"\",\"\",'1. Order'!K1291)","v":""},{"$f":"IF('1. Order'!L1291=\"\",\"\",'1. Order'!L1291)","v":""},{"$f":"IF('1. Order'!N1291=\"\",\"\",'1. Order'!N1291)","v":""},null,null,{"$f":"'1. Order'!AV1291","v":0},{"$f":"IF('1. Order'!AI1291=\"\",\"\",'1. Order'!AI1291)","v":""}]
[{"$f":"IF('1. Order'!B1292=\"\",\"\",'1. Order'!B1292)","v":""},{"$f":"IF('1. Order'!J1292=\"\",\"\",'1. Order'!J1292)","v":""},{"$f":"IF('1. Order'!K1292=\"\",\"\",'1. Order'!K1292)","v":""},{"$f":"IF('1. Order'!L1292=\"\",\"\",'1. Order'!L1292)","v":""},{"$f":"IF('1. Order'!N1292=\"\",\"\",'1. Order'!N1292)","v":""},null,null,{"$f":"'1. Order'!AV1292","v":0},{"$f":"IF('1. Order'!AI1292=\"\",\"\",'1. Order'!AI1292)","v":""}]
[{"$f":"IF('1. Order'!B1293=\"\",\"\",'1. Order'!B1293)","v":""},{"$f":"IF('1. Order'!J1293=\"\",\"\",'1. Order'!J1293)","v":""},{"$f":"IF('1. Order'!K1293=\"\",\"\",'1. Order'!K1293)","v":""},{"$f":"IF('1. Order'!L1293=\"\",\"\",'1. Order'!L1293)","v":""},{"$f":"IF('1. Order'!N1293=\"\",\"\",'1. Order'!N1293)","v":""},null,null,{"$f":"'1. Order'!AV1293","v":0},{"$f":"IF('1. Order'!AI1293=\"\",\"\",'1. Order'!AI1293)","v":""}]
[{"$f":"IF('1. Order'!B1294=\"\",\"\",'1. Order'!B1294)","v":""},{"$f":"IF('1. Order'!J1294=\"\",\"\",'1. Order'!J1294)","v":""},{"$f":"IF('1. Order'!K1294=\"\",\"\",'1. Order'!K1294)","v":""},{"$f":"IF('1. Order'!L1294=\"\",\"\",'1. Order'!L1294)","v":""},{"$f":"IF('1. Order'!N1294=\"\",\"\",'1. Order'!N1294)","v":""},null,null,{"$f":"'1. Order'!AV1294","v":0},{"$f":"IF('1. Order'!AI1294=\"\",\"\",'1. Order'!AI1294)","v":""}]
[{"$f":"IF('1. Order'!B1295=\"\",\"\",'1. Order'!B1295)","v":""},{"$f":"IF('1. Order'!J1295=\"\",\"\",'1. Order'!J1295)","v":""},{"$f":"IF('1. Order'!K1295=\"\",\"\",'1. Order'!K1295)","v":""},{"$f":"IF('1. Order'!L1295=\"\",\"\",'1. Order'!L1295)","v":""},{"$f":"IF('1. Order'!N1295=\"\",\"\",'1. Order'!N1295)","v":""},null,null,{"$f":"'1. Order'!AV1295","v":0},{"$f":"IF('1. Order'!AI1295=\"\",\"\",'1. Order'!AI1295)","v":""}]
[{"$f":"IF('1. Order'!B1296=\"\",\"\",'1. Order'!B1296)","v":""},{"$f":"IF('1. Order'!J1296=\"\",\"\",'1. Order'!J1296)","v":""},{"$f":"IF('1. Order'!K1296=\"\",\"\",'1. Order'!K1296)","v":""},{"$f":"IF('1. Order'!L1296=\"\",\"\",'1. Order'!L1296)","v":""},{"$f":"IF('1. Order'!N1296=\"\",\"\",'1. Order'!N1296)","v":""},null,null,{"$f":"'1. Order'!AV1296","v":0},{"$f":"IF('1. Order'!AI1296=\"\",\"\",'1. Order'!AI1296)","v":""}]
[{"$f":"IF('1. Order'!B1297=\"\",\"\",'1. Order'!B1297)","v":""},{"$f":"IF('1. Order'!J1297=\"\",\"\",'1. Order'!J1297)","v":""},{"$f":"IF('1. Order'!K1297=\"\",\"\",'1. Order'!K1297)","v":""},{"$f":"IF('1. Order'!L1297=\"\",\"\",'1. Order'!L1297)","v":""},{"$f":"IF('1. Order'!N1297=\"\",\"\",'1. Order'!N1297)","v":""},null,null,{"$f":"'1. Order'!AV1297","v":0},{"$f":"IF('1. Order'!AI1297=\"\",\"\",'1. Order'!AI1297)","v":""}]
[{"$f":"IF('1. Order'!B1298=\"\",\"\",'1. Order'!B1298)","v":""},{"$f":"IF('1. Order'!J1298=\"\",\"\",'1. Order'!J1298)","v":""},{"$f":"IF('1. Order'!K1298=\"\",\"\",'1. Order'!K1298)","v":""},{"$f":"IF('1. Order'!L1298=\"\",\"\",'1. Order'!L1298)","v":""},{"$f":"IF('1. Order'!N1298=\"\",\"\",'1. Order'!N1298)","v":""},null,null,{"$f":"'1. Order'!AV1298","v":0},{"$f":"IF('1. Order'!AI1298=\"\",\"\",'1. Order'!AI1298)","v":""}]
[{"$f":"IF('1. Order'!B1299=\"\",\"\",'1. Order'!B1299)","v":""},{"$f":"IF('1. Order'!J1299=\"\",\"\",'1. Order'!J1299)","v":""},{"$f":"IF('1. Order'!K1299=\"\",\"\",'1. Order'!K1299)","v":""},{"$f":"IF('1. Order'!L1299=\"\",\"\",'1. Order'!L1299)","v":""},{"$f":"IF('1. Order'!N1299=\"\",\"\",'1. Order'!N1299)","v":""},null,null,{"$f":"'1. Order'!AV1299","v":0},{"$f":"IF('1. Order'!AI1299=\"\",\"\",'1. Order'!AI1299)","v":""}]
[{"$f":"IF('1. Order'!B1300=\"\",\"\",'1. Order'!B1300)","v":""},{"$f":"IF('1. Order'!J1300=\"\",\"\",'1. Order'!J1300)","v":""},{"$f":"IF('1. Order'!K1300=\"\",\"\",'1. Order'!K1300)","v":""},{"$f":"IF('1. Order'!L1300=\"\",\"\",'1. Order'!L1300)","v":""},{"$f":"IF('1. Order'!N1300=\"\",\"\",'1. Order'!N1300)","v":""},null,null,{"$f":"'1. Order'!AV1300","v":0},{"$f":"IF('1. Order'!AI1300=\"\",\"\",'1. Order'!AI1300)","v":""}]
[{"$f":"IF('1. Order'!B1301=\"\",\"\",'1. Order'!B1301)","v":""},{"$f":"IF('1. Order'!J1301=\"\",\"\",'1. Order'!J1301)","v":""},{"$f":"IF('1. Order'!K1301=\"\",\"\",'1. Order'!K1301)","v":""},{"$f":"IF('1. Order'!L1301=\"\",\"\",'1. Order'!L1301)","v":""},{"$f":"IF('1. Order'!N1301=\"\",\"\",'1. Order'!N1301)","v":""},null,null,{"$f":"'1. Order'!AV1301","v":0},{"$f":"IF('1. Order'!AI1301=\"\",\"\",'1. Order'!AI1301)","v":""}]
[{"$f":"IF('1. Order'!B1302=\"\",\"\",'1. Order'!B1302)","v":""},{"$f":"IF('1. Order'!J1302=\"\",\"\",'1. Order'!J1302)","v":""},{"$f":"IF('1. Order'!K1302=\"\",\"\",'1. Order'!K1302)","v":""},{"$f":"IF('1. Order'!L1302=\"\",\"\",'1. Order'!L1302)","v":""},{"$f":"IF('1. Order'!N1302=\"\",\"\",'1. Order'!N1302)","v":""},null,null,{"$f":"'1. Order'!AV1302","v":0},{"$f":"IF('1. Order'!AI1302=\"\",\"\",'1. Order'!AI1302)","v":""}]
[{"$f":"IF('1. Order'!B1303=\"\",\"\",'1. Order'!B1303)","v":""},{"$f":"IF('1. Order'!J1303=\"\",\"\",'1. Order'!J1303)","v":""},{"$f":"IF('1. Order'!K1303=\"\",\"\",'1. Order'!K1303)","v":""},{"$f":"IF('1. Order'!L1303=\"\",\"\",'1. Order'!L1303)","v":""},{"$f":"IF('1. Order'!N1303=\"\",\"\",'1. Order'!N1303)","v":""},null,null,{"$f":"'1. Order'!AV1303","v":0},{"$f":"IF('1. Order'!AI1303=\"\",\"\",'1. Order'!AI1303)","v":""}]
[{"$f":"IF('1. Order'!B1304=\"\",\"\",'1. Order'!B1304)","v":""},{"$f":"IF('1. Order'!J1304=\"\",\"\",'1. Order'!J1304)","v":""},{"$f":"IF('1. Order'!K1304=\"\",\"\",'1. Order'!K1304)","v":""},{"$f":"IF('1. Order'!L1304=\"\",\"\",'1. Order'!L1304)","v":""},{"$f":"IF('1. Order'!N1304=\"\",\"\",'1. Order'!N1304)","v":""},null,null,{"$f":"'1. Order'!AV1304","v":0},{"$f":"IF('1. Order'!AI1304=\"\",\"\",'1. Order'!AI1304)","v":""}]
[{"$f":"IF('1. Order'!B1305=\"\",\"\",'1. Order'!B1305)","v":""},{"$f":"IF('1. Order'!J1305=\"\",\"\",'1. Order'!J1305)","v":""},{"$f":"IF('1. Order'!K1305=\"\",\"\",'1. Order'!K1305)","v":""},{"$f":"IF('1. Order'!L1305=\"\",\"\",'1. Order'!L1305)","v":""},{"$f":"IF('1. Order'!N1305=\"\",\"\",'1. Order'!N1305)","v":""},null,null,{"$f":"'1. Order'!AV1305","v":0},{"$f":"IF('1. Order'!AI1305=\"\",\"\",'1. Order'!AI1305)","v":""}]
[{"$f":"IF('1. Order'!B1306=\"\",\"\",'1. Order'!B1306)","v":""},{"$f":"IF('1. Order'!J1306=\"\",\"\",'1. Order'!J1306)","v":""},{"$f":"IF('1. Order'!K1306=\"\",\"\",'1. Order'!K1306)","v":""},{"$f":"IF('1. Order'!L1306=\"\",\"\",'1. Order'!L1306)","v":""},{"$f":"IF('1. Order'!N1306=\"\",\"\",'1. Order'!N1306)","v":""},null,null,{"$f":"'1. Order'!AV1306","v":0},{"$f":"IF('1. Order'!AI1306=\"\",\"\",'1. Order'!AI1306)","v":""}]
[{"$f":"IF('1. Order'!B1307=\"\",\"\",'1. Order'!B1307)","v":""},{"$f":"IF('1. Order'!J1307=\"\",\"\",'1. Order'!J1307)","v":""},{"$f":"IF('1. Order'!K1307=\"\",\"\",'1. Order'!K1307)","v":""},{"$f":"IF('1. Order'!L1307=\"\",\"\",'1. Order'!L1307)","v":""},{"$f":"IF('1. Order'!N1307=\"\",\"\",'1. Order'!N1307)","v":""},null,null,{"$f":"'1. Order'!AV1307","v":0},{"$f":"IF('1. Order'!AI1307=\"\",\"\",'1. Order'!AI1307)","v":""}]
[{"$f":"IF('1. Order'!B1308=\"\",\"\",'1. Order'!B1308)","v":""},{"$f":"IF('1. Order'!J1308=\"\",\"\",'1. Order'!J1308)","v":""},{"$f":"IF('1. Order'!K1308=\"\",\"\",'1. Order'!K1308)","v":""},{"$f":"IF('1. Order'!L1308=\"\",\"\",'1. Order'!L1308)","v":""},{"$f":"IF('1. Order'!N1308=\"\",\"\",'1. Order'!N1308)","v":""},null,null,{"$f":"'1. Order'!AV1308","v":0},{"$f":"IF('1. Order'!AI1308=\"\",\"\",'1. Order'!AI1308)","v":""}]
[{"$f":"IF('1. Order'!B1309=\"\",\"\",'1. Order'!B1309)","v":""},{"$f":"IF('1. Order'!J1309=\"\",\"\",'1. Order'!J1309)","v":""},{"$f":"IF('1. Order'!K1309=\"\",\"\",'1. Order'!K1309)","v":""},{"$f":"IF('1. Order'!L1309=\"\",\"\",'1. Order'!L1309)","v":""},{"$f":"IF('1. Order'!N1309=\"\",\"\",'1. Order'!N1309)","v":""},null,null,{"$f":"'1. Order'!AV1309","v":0},{"$f":"IF('1. Order'!AI1309=\"\",\"\",'1. Order'!AI1309)","v":""}]
[{"$f":"IF('1. Order'!B1310=\"\",\"\",'1. Order'!B1310)","v":""},{"$f":"IF('1. Order'!J1310=\"\",\"\",'1. Order'!J1310)","v":""},{"$f":"IF('1. Order'!K1310=\"\",\"\",'1. Order'!K1310)","v":""},{"$f":"IF('1. Order'!L1310=\"\",\"\",'1. Order'!L1310)","v":""},{"$f":"IF('1. Order'!N1310=\"\",\"\",'1. Order'!N1310)","v":""},null,null,{"$f":"'1. Order'!AV1310","v":0},{"$f":"IF('1. Order'!AI1310=\"\",\"\",'1. Order'!AI1310)","v":""}]
[{"$f":"IF('1. Order'!B1311=\"\",\"\",'1. Order'!B1311)","v":""},{"$f":"IF('1. Order'!J1311=\"\",\"\",'1. Order'!J1311)","v":""},{"$f":"IF('1. Order'!K1311=\"\",\"\",'1. Order'!K1311)","v":""},{"$f":"IF('1. Order'!L1311=\"\",\"\",'1. Order'!L1311)","v":""},{"$f":"IF('1. Order'!N1311=\"\",\"\",'1. Order'!N1311)","v":""},null,null,{"$f":"'1. Order'!AV1311","v":0},{"$f":"IF('1. Order'!AI1311=\"\",\"\",'1. Order'!AI1311)","v":""}]
[{"$f":"IF('1. Order'!B1312=\"\",\"\",'1. Order'!B1312)","v":""},{"$f":"IF('1. Order'!J1312=\"\",\"\",'1. Order'!J1312)","v":""},{"$f":"IF('1. Order'!K1312=\"\",\"\",'1. Order'!K1312)","v":""},{"$f":"IF('1. Order'!L1312=\"\",\"\",'1. Order'!L1312)","v":""},{"$f":"IF('1. Order'!N1312=\"\",\"\",'1. Order'!N1312)","v":""},null,null,{"$f":"'1. Order'!AV1312","v":0},{"$f":"IF('1. Order'!AI1312=\"\",\"\",'1. Order'!AI1312)","v":""}]
[{"$f":"IF('1. Order'!B1313=\"\",\"\",'1. Order'!B1313)","v":""},{"$f":"IF('1. Order'!J1313=\"\",\"\",'1. Order'!J1313)","v":""},{"$f":"IF('1. Order'!K1313=\"\",\"\",'1. Order'!K1313)","v":""},{"$f":"IF('1. Order'!L1313=\"\",\"\",'1. Order'!L1313)","v":""},{"$f":"IF('1. Order'!N1313=\"\",\"\",'1. Order'!N1313)","v":""},null,null,{"$f":"'1. Order'!AV1313","v":0},{"$f":"IF('1. Order'!AI1313=\"\",\"\",'1. Order'!AI1313)","v":""}]
[{"$f":"IF('1. Order'!B1314=\"\",\"\",'1. Order'!B1314)","v":""},{"$f":"IF('1. Order'!J1314=\"\",\"\",'1. Order'!J1314)","v":""},{"$f":"IF('1. Order'!K1314=\"\",\"\",'1. Order'!K1314)","v":""},{"$f":"IF('1. Order'!L1314=\"\",\"\",'1. Order'!L1314)","v":""},{"$f":"IF('1. Order'!N1314=\"\",\"\",'1. Order'!N1314)","v":""},null,null,{"$f":"'1. Order'!AV1314","v":0},{"$f":"IF('1. Order'!AI1314=\"\",\"\",'1. Order'!AI1314)","v":""}]
[{"$f":"IF('1. Order'!B1315=\"\",\"\",'1. Order'!B1315)","v":""},{"$f":"IF('1. Order'!J1315=\"\",\"\",'1. Order'!J1315)","v":""},{"$f":"IF('1. Order'!K1315=\"\",\"\",'1. Order'!K1315)","v":""},{"$f":"IF('1. Order'!L1315=\"\",\"\",'1. Order'!L1315)","v":""},{"$f":"IF('1. Order'!N1315=\"\",\"\",'1. Order'!N1315)","v":""},null,null,{"$f":"'1. Order'!AV1315","v":0},{"$f":"IF('1. Order'!AI1315=\"\",\"\",'1. Order'!AI1315)","v":""}]
[{"$f":"IF('1. Order'!B1316=\"\",\"\",'1. Order'!B1316)","v":""},{"$f":"IF('1. Order'!J1316=\"\",\"\",'1. Order'!J1316)","v":""},{"$f":"IF('1. Order'!K1316=\"\",\"\",'1. Order'!K1316)","v":""},{"$f":"IF('1. Order'!L1316=\"\",\"\",'1. Order'!L1316)","v":""},{"$f":"IF('1. Order'!N1316=\"\",\"\",'1. Order'!N1316)","v":""},null,null,{"$f":"'1. Order'!AV1316","v":0},{"$f":"IF('1. Order'!AI1316=\"\",\"\",'1. Order'!AI1316)","v":""}]
[{"$f":"IF('1. Order'!B1317=\"\",\"\",'1. Order'!B1317)","v":""},{"$f":"IF('1. Order'!J1317=\"\",\"\",'1. Order'!J1317)","v":""},{"$f":"IF('1. Order'!K1317=\"\",\"\",'1. Order'!K1317)","v":""},{"$f":"IF('1. Order'!L1317=\"\",\"\",'1. Order'!L1317)","v":""},{"$f":"IF('1. Order'!N1317=\"\",\"\",'1. Order'!N1317)","v":""},null,null,{"$f":"'1. Order'!AV1317","v":0},{"$f":"IF('1. Order'!AI1317=\"\",\"\",'1. Order'!AI1317)","v":""}]
[{"$f":"IF('1. Order'!B1318=\"\",\"\",'1. Order'!B1318)","v":""},{"$f":"IF('1. Order'!J1318=\"\",\"\",'1. Order'!J1318)","v":""},{"$f":"IF('1. Order'!K1318=\"\",\"\",'1. Order'!K1318)","v":""},{"$f":"IF('1. Order'!L1318=\"\",\"\",'1. Order'!L1318)","v":""},{"$f":"IF('1. Order'!N1318=\"\",\"\",'1. Order'!N1318)","v":""},null,null,{"$f":"'1. Order'!AV1318","v":0},{"$f":"IF('1. Order'!AI1318=\"\",\"\",'1. Order'!AI1318)","v":""}]
[{"$f":"IF('1. Order'!B1319=\"\",\"\",'1. Order'!B1319)","v":""},{"$f":"IF('1. Order'!J1319=\"\",\"\",'1. Order'!J1319)","v":""},{"$f":"IF('1. Order'!K1319=\"\",\"\",'1. Order'!K1319)","v":""},{"$f":"IF('1. Order'!L1319=\"\",\"\",'1. Order'!L1319)","v":""},{"$f":"IF('1. Order'!N1319=\"\",\"\",'1. Order'!N1319)","v":""},null,null,{"$f":"'1. Order'!AV1319","v":0},{"$f":"IF('1. Order'!AI1319=\"\",\"\",'1. Order'!AI1319)","v":""}]
[{"$f":"IF('1. Order'!B1320=\"\",\"\",'1. Order'!B1320)","v":""},{"$f":"IF('1. Order'!J1320=\"\",\"\",'1. Order'!J1320)","v":""},{"$f":"IF('1. Order'!K1320=\"\",\"\",'1. Order'!K1320)","v":""},{"$f":"IF('1. Order'!L1320=\"\",\"\",'1. Order'!L1320)","v":""},{"$f":"IF('1. Order'!N1320=\"\",\"\",'1. Order'!N1320)","v":""},null,null,{"$f":"'1. Order'!AV1320","v":0},{"$f":"IF('1. Order'!AI1320=\"\",\"\",'1. Order'!AI1320)","v":""}]
[{"$f":"IF('1. Order'!B1321=\"\",\"\",'1. Order'!B1321)","v":""},{"$f":"IF('1. Order'!J1321=\"\",\"\",'1. Order'!J1321)","v":""},{"$f":"IF('1. Order'!K1321=\"\",\"\",'1. Order'!K1321)","v":""},{"$f":"IF('1. Order'!L1321=\"\",\"\",'1. Order'!L1321)","v":""},{"$f":"IF('1. Order'!N1321=\"\",\"\",'1. Order'!N1321)","v":""},null,null,{"$f":"'1. Order'!AV1321","v":0},{"$f":"IF('1. Order'!AI1321=\"\",\"\",'1. Order'!AI1321)","v":""}]
[{"$f":"IF('1. Order'!B1322=\"\",\"\",'1. Order'!B1322)","v":""},{"$f":"IF('1. Order'!J1322=\"\",\"\",'1. Order'!J1322)","v":""},{"$f":"IF('1. Order'!K1322=\"\",\"\",'1. Order'!K1322)","v":""},{"$f":"IF('1. Order'!L1322=\"\",\"\",'1. Order'!L1322)","v":""},{"$f":"IF('1. Order'!N1322=\"\",\"\",'1. Order'!N1322)","v":""},null,null,{"$f":"'1. Order'!AV1322","v":0},{"$f":"IF('1. Order'!AI1322=\"\",\"\",'1. Order'!AI1322)","v":""}]
[{"$f":"IF('1. Order'!B1323=\"\",\"\",'1. Order'!B1323)","v":""},{"$f":"IF('1. Order'!J1323=\"\",\"\",'1. Order'!J1323)","v":""},{"$f":"IF('1. Order'!K1323=\"\",\"\",'1. Order'!K1323)","v":""},{"$f":"IF('1. Order'!L1323=\"\",\"\",'1. Order'!L1323)","v":""},{"$f":"IF('1. Order'!N1323=\"\",\"\",'1. Order'!N1323)","v":""},null,null,{"$f":"'1. Order'!AV1323","v":0},{"$f":"IF('1. Order'!AI1323=\"\",\"\",'1. Order'!AI1323)","v":""}]
[{"$f":"IF('1. Order'!B1324=\"\",\"\",'1. Order'!B1324)","v":""},{"$f":"IF('1. Order'!J1324=\"\",\"\",'1. Order'!J1324)","v":""},{"$f":"IF('1. Order'!K1324=\"\",\"\",'1. Order'!K1324)","v":""},{"$f":"IF('1. Order'!L1324=\"\",\"\",'1. Order'!L1324)","v":""},{"$f":"IF('1. Order'!N1324=\"\",\"\",'1. Order'!N1324)","v":""},null,null,{"$f":"'1. Order'!AV1324","v":0},{"$f":"IF('1. Order'!AI1324=\"\",\"\",'1. Order'!AI1324)","v":""}]
[{"$f":"IF('1. Order'!B1325=\"\",\"\",'1. Order'!B1325)","v":""},{"$f":"IF('1. Order'!J1325=\"\",\"\",'1. Order'!J1325)","v":""},{"$f":"IF('1. Order'!K1325=\"\",\"\",'1. Order'!K1325)","v":""},{"$f":"IF('1. Order'!L1325=\"\",\"\",'1. Order'!L1325)","v":""},{"$f":"IF('1. Order'!N1325=\"\",\"\",'1. Order'!N1325)","v":""},null,null,{"$f":"'1. Order'!AV1325","v":0},{"$f":"IF('1. Order'!AI1325=\"\",\"\",'1. Order'!AI1325)","v":""}]
[{"$f":"IF('1. Order'!B1326=\"\",\"\",'1. Order'!B1326)","v":""},{"$f":"IF('1. Order'!J1326=\"\",\"\",'1. Order'!J1326)","v":""},{"$f":"IF('1. Order'!K1326=\"\",\"\",'1. Order'!K1326)","v":""},{"$f":"IF('1. Order'!L1326=\"\",\"\",'1. Order'!L1326)","v":""},{"$f":"IF('1. Order'!N1326=\"\",\"\",'1. Order'!N1326)","v":""},null,null,{"$f":"'1. Order'!AV1326","v":0},{"$f":"IF('1. Order'!AI1326=\"\",\"\",'1. Order'!AI1326)","v":""}]
[{"$f":"IF('1. Order'!B1327=\"\",\"\",'1. Order'!B1327)","v":""},{"$f":"IF('1. Order'!J1327=\"\",\"\",'1. Order'!J1327)","v":""},{"$f":"IF('1. Order'!K1327=\"\",\"\",'1. Order'!K1327)","v":""},{"$f":"IF('1. Order'!L1327=\"\",\"\",'1. Order'!L1327)","v":""},{"$f":"IF('1. Order'!N1327=\"\",\"\",'1. Order'!N1327)","v":""},null,null,{"$f":"'1. Order'!AV1327","v":0},{"$f":"IF('1. Order'!AI1327=\"\",\"\",'1. Order'!AI1327)","v":""}]
[{"$f":"IF('1. Order'!B1328=\"\",\"\",'1. Order'!B1328)","v":""},{"$f":"IF('1. Order'!J1328=\"\",\"\",'1. Order'!J1328)","v":""},{"$f":"IF('1. Order'!K1328=\"\",\"\",'1. Order'!K1328)","v":""},{"$f":"IF('1. Order'!L1328=\"\",\"\",'1. Order'!L1328)","v":""},{"$f":"IF('1. Order'!N1328=\"\",\"\",'1. Order'!N1328)","v":""},null,null,{"$f":"'1. Order'!AV1328","v":0},{"$f":"IF('1. Order'!AI1328=\"\",\"\",'1. Order'!AI1328)","v":""}]
[{"$f":"IF('1. Order'!B1329=\"\",\"\",'1. Order'!B1329)","v":""},{"$f":"IF('1. Order'!J1329=\"\",\"\",'1. Order'!J1329)","v":""},{"$f":"IF('1. Order'!K1329=\"\",\"\",'1. Order'!K1329)","v":""},{"$f":"IF('1. Order'!L1329=\"\",\"\",'1. Order'!L1329)","v":""},{"$f":"IF('1. Order'!N1329=\"\",\"\",'1. Order'!N1329)","v":""},null,null,{"$f":"'1. Order'!AV1329","v":0},{"$f":"IF('1. Order'!AI1329=\"\",\"\",'1. Order'!AI1329)","v":""}]
[{"$f":"IF('1. Order'!B1330=\"\",\"\",'1. Order'!B1330)","v":""},{"$f":"IF('1. Order'!J1330=\"\",\"\",'1. Order'!J1330)","v":""},{"$f":"IF('1. Order'!K1330=\"\",\"\",'1. Order'!K1330)","v":""},{"$f":"IF('1. Order'!L1330=\"\",\"\",'1. Order'!L1330)","v":""},{"$f":"IF('1. Order'!N1330=\"\",\"\",'1. Order'!N1330)","v":""},null,null,{"$f":"'1. Order'!AV1330","v":0},{"$f":"IF('1. Order'!AI1330=\"\",\"\",'1. Order'!AI1330)","v":""}]
[{"$f":"IF('1. Order'!B1331=\"\",\"\",'1. Order'!B1331)","v":""},{"$f":"IF('1. Order'!J1331=\"\",\"\",'1. Order'!J1331)","v":""},{"$f":"IF('1. Order'!K1331=\"\",\"\",'1. Order'!K1331)","v":""},{"$f":"IF('1. Order'!L1331=\"\",\"\",'1. Order'!L1331)","v":""},{"$f":"IF('1. Order'!N1331=\"\",\"\",'1. Order'!N1331)","v":""},null,null,{"$f":"'1. Order'!AV1331","v":0},{"$f":"IF('1. Order'!AI1331=\"\",\"\",'1. Order'!AI1331)","v":""}]
[{"$f":"IF('1. Order'!B1332=\"\",\"\",'1. Order'!B1332)","v":""},{"$f":"IF('1. Order'!J1332=\"\",\"\",'1. Order'!J1332)","v":""},{"$f":"IF('1. Order'!K1332=\"\",\"\",'1. Order'!K1332)","v":""},{"$f":"IF('1. Order'!L1332=\"\",\"\",'1. Order'!L1332)","v":""},{"$f":"IF('1. Order'!N1332=\"\",\"\",'1. Order'!N1332)","v":""},null,null,{"$f":"'1. Order'!AV1332","v":0},{"$f":"IF('1. Order'!AI1332=\"\",\"\",'1. Order'!AI1332)","v":""}]
[{"$f":"IF('1. Order'!B1333=\"\",\"\",'1. Order'!B1333)","v":""},{"$f":"IF('1. Order'!J1333=\"\",\"\",'1. Order'!J1333)","v":""},{"$f":"IF('1. Order'!K1333=\"\",\"\",'1. Order'!K1333)","v":""},{"$f":"IF('1. Order'!L1333=\"\",\"\",'1. Order'!L1333)","v":""},{"$f":"IF('1. Order'!N1333=\"\",\"\",'1. Order'!N1333)","v":""},null,null,{"$f":"'1. Order'!AV1333","v":0},{"$f":"IF('1. Order'!AI1333=\"\",\"\",'1. Order'!AI1333)","v":""}]
[{"$f":"IF('1. Order'!B1334=\"\",\"\",'1. Order'!B1334)","v":""},{"$f":"IF('1. Order'!J1334=\"\",\"\",'1. Order'!J1334)","v":""},{"$f":"IF('1. Order'!K1334=\"\",\"\",'1. Order'!K1334)","v":""},{"$f":"IF('1. Order'!L1334=\"\",\"\",'1. Order'!L1334)","v":""},{"$f":"IF('1. Order'!N1334=\"\",\"\",'1. Order'!N1334)","v":""},null,null,{"$f":"'1. Order'!AV1334","v":0},{"$f":"IF('1. Order'!AI1334=\"\",\"\",'1. Order'!AI1334)","v":""}]
[{"$f":"IF('1. Order'!B1335=\"\",\"\",'1. Order'!B1335)","v":""},{"$f":"IF('1. Order'!J1335=\"\",\"\",'1. Order'!J1335)","v":""},{"$f":"IF('1. Order'!K1335=\"\",\"\",'1. Order'!K1335)","v":""},{"$f":"IF('1. Order'!L1335=\"\",\"\",'1. Order'!L1335)","v":""},{"$f":"IF('1. Order'!N1335=\"\",\"\",'1. Order'!N1335)","v":""},null,null,{"$f":"'1. Order'!AV1335","v":0},{"$f":"IF('1. Order'!AI1335=\"\",\"\",'1. Order'!AI1335)","v":""}]
[{"$f":"IF('1. Order'!B1336=\"\",\"\",'1. Order'!B1336)","v":""},{"$f":"IF('1. Order'!J1336=\"\",\"\",'1. Order'!J1336)","v":""},{"$f":"IF('1. Order'!K1336=\"\",\"\",'1. Order'!K1336)","v":""},{"$f":"IF('1. Order'!L1336=\"\",\"\",'1. Order'!L1336)","v":""},{"$f":"IF('1. Order'!N1336=\"\",\"\",'1. Order'!N1336)","v":""},null,null,{"$f":"'1. Order'!AV1336","v":0},{"$f":"IF('1. Order'!AI1336=\"\",\"\",'1. Order'!AI1336)","v":""}]
[{"$f":"IF('1. Order'!B1337=\"\",\"\",'1. Order'!B1337)","v":""},{"$f":"IF('1. Order'!J1337=\"\",\"\",'1. Order'!J1337)","v":""},{"$f":"IF('1. Order'!K1337=\"\",\"\",'1. Order'!K1337)","v":""},{"$f":"IF('1. Order'!L1337=\"\",\"\",'1. Order'!L1337)","v":""},{"$f":"IF('1. Order'!N1337=\"\",\"\",'1. Order'!N1337)","v":""},null,null,{"$f":"'1. Order'!AV1337","v":0},{"$f":"IF('1. Order'!AI1337=\"\",\"\",'1. Order'!AI1337)","v":""}]
[{"$f":"IF('1. Order'!B1338=\"\",\"\",'1. Order'!B1338)","v":""},{"$f":"IF('1. Order'!J1338=\"\",\"\",'1. Order'!J1338)","v":""},{"$f":"IF('1. Order'!K1338=\"\",\"\",'1. Order'!K1338)","v":""},{"$f":"IF('1. Order'!L1338=\"\",\"\",'1. Order'!L1338)","v":""},{"$f":"IF('1. Order'!N1338=\"\",\"\",'1. Order'!N1338)","v":""},null,null,{"$f":"'1. Order'!AV1338","v":0},{"$f":"IF('1. Order'!AI1338=\"\",\"\",'1. Order'!AI1338)","v":""}]
[{"$f":"IF('1. Order'!B1339=\"\",\"\",'1. Order'!B1339)","v":""},{"$f":"IF('1. Order'!J1339=\"\",\"\",'1. Order'!J1339)","v":""},{"$f":"IF('1. Order'!K1339=\"\",\"\",'1. Order'!K1339)","v":""},{"$f":"IF('1. Order'!L1339=\"\",\"\",'1. Order'!L1339)","v":""},{"$f":"IF('1. Order'!N1339=\"\",\"\",'1. Order'!N1339)","v":""},null,null,{"$f":"'1. Order'!AV1339","v":0},{"$f":"IF('1. Order'!AI1339=\"\",\"\",'1. Order'!AI1339)","v":""}]
[{"$f":"IF('1. Order'!B1340=\"\",\"\",'1. Order'!B1340)","v":""},{"$f":"IF('1. Order'!J1340=\"\",\"\",'1. Order'!J1340)","v":""},{"$f":"IF('1. Order'!K1340=\"\",\"\",'1. Order'!K1340)","v":""},{"$f":"IF('1. Order'!L1340=\"\",\"\",'1. Order'!L1340)","v":""},{"$f":"IF('1. Order'!N1340=\"\",\"\",'1. Order'!N1340)","v":""},null,null,{"$f":"'1. Order'!AV1340","v":0},{"$f":"IF('1. Order'!AI1340=\"\",\"\",'1. Order'!AI1340)","v":""}]
[{"$f":"IF('1. Order'!B1341=\"\",\"\",'1. Order'!B1341)","v":""},{"$f":"IF('1. Order'!J1341=\"\",\"\",'1. Order'!J1341)","v":""},{"$f":"IF('1. Order'!K1341=\"\",\"\",'1. Order'!K1341)","v":""},{"$f":"IF('1. Order'!L1341=\"\",\"\",'1. Order'!L1341)","v":""},{"$f":"IF('1. Order'!N1341=\"\",\"\",'1. Order'!N1341)","v":""},null,null,{"$f":"'1. Order'!AV1341","v":0},{"$f":"IF('1. Order'!AI1341=\"\",\"\",'1. Order'!AI1341)","v":""}]
[{"$f":"IF('1. Order'!B1342=\"\",\"\",'1. Order'!B1342)","v":""},{"$f":"IF('1. Order'!J1342=\"\",\"\",'1. Order'!J1342)","v":""},{"$f":"IF('1. Order'!K1342=\"\",\"\",'1. Order'!K1342)","v":""},{"$f":"IF('1. Order'!L1342=\"\",\"\",'1. Order'!L1342)","v":""},{"$f":"IF('1. Order'!N1342=\"\",\"\",'1. Order'!N1342)","v":""},null,null,{"$f":"'1. Order'!AV1342","v":0},{"$f":"IF('1. Order'!AI1342=\"\",\"\",'1. Order'!AI1342)","v":""}]
[{"$f":"IF('1. Order'!B1343=\"\",\"\",'1. Order'!B1343)","v":""},{"$f":"IF('1. Order'!J1343=\"\",\"\",'1. Order'!J1343)","v":""},{"$f":"IF('1. Order'!K1343=\"\",\"\",'1. Order'!K1343)","v":""},{"$f":"IF('1. Order'!L1343=\"\",\"\",'1. Order'!L1343)","v":""},{"$f":"IF('1. Order'!N1343=\"\",\"\",'1. Order'!N1343)","v":""},null,null,{"$f":"'1. Order'!AV1343","v":0},{"$f":"IF('1. Order'!AI1343=\"\",\"\",'1. Order'!AI1343)","v":""}]
[{"$f":"IF('1. Order'!B1344=\"\",\"\",'1. Order'!B1344)","v":""},{"$f":"IF('1. Order'!J1344=\"\",\"\",'1. Order'!J1344)","v":""},{"$f":"IF('1. Order'!K1344=\"\",\"\",'1. Order'!K1344)","v":""},{"$f":"IF('1. Order'!L1344=\"\",\"\",'1. Order'!L1344)","v":""},{"$f":"IF('1. Order'!N1344=\"\",\"\",'1. Order'!N1344)","v":""},null,null,{"$f":"'1. Order'!AV1344","v":0},{"$f":"IF('1. Order'!AI1344=\"\",\"\",'1. Order'!AI1344)","v":""}]
[{"$f":"IF('1. Order'!B1345=\"\",\"\",'1. Order'!B1345)","v":""},{"$f":"IF('1. Order'!J1345=\"\",\"\",'1. Order'!J1345)","v":""},{"$f":"IF('1. Order'!K1345=\"\",\"\",'1. Order'!K1345)","v":""},{"$f":"IF('1. Order'!L1345=\"\",\"\",'1. Order'!L1345)","v":""},{"$f":"IF('1. Order'!N1345=\"\",\"\",'1. Order'!N1345)","v":""},null,null,{"$f":"'1. Order'!AV1345","v":0},{"$f":"IF('1. Order'!AI1345=\"\",\"\",'1. Order'!AI1345)","v":""}]
[{"$f":"IF('1. Order'!B1346=\"\",\"\",'1. Order'!B1346)","v":""},{"$f":"IF('1. Order'!J1346=\"\",\"\",'1. Order'!J1346)","v":""},{"$f":"IF('1. Order'!K1346=\"\",\"\",'1. Order'!K1346)","v":""},{"$f":"IF('1. Order'!L1346=\"\",\"\",'1. Order'!L1346)","v":""},{"$f":"IF('1. Order'!N1346=\"\",\"\",'1. Order'!N1346)","v":""},null,null,{"$f":"'1. Order'!AV1346","v":0},{"$f":"IF('1. Order'!AI1346=\"\",\"\",'1. Order'!AI1346)","v":""}]
[{"$f":"IF('1. Order'!B1347=\"\",\"\",'1. Order'!B1347)","v":""},{"$f":"IF('1. Order'!J1347=\"\",\"\",'1. Order'!J1347)","v":""},{"$f":"IF('1. Order'!K1347=\"\",\"\",'1. Order'!K1347)","v":""},{"$f":"IF('1. Order'!L1347=\"\",\"\",'1. Order'!L1347)","v":""},{"$f":"IF('1. Order'!N1347=\"\",\"\",'1. Order'!N1347)","v":""},null,null,{"$f":"'1. Order'!AV1347","v":0},{"$f":"IF('1. Order'!AI1347=\"\",\"\",'1. Order'!AI1347)","v":""}]
[{"$f":"IF('1. Order'!B1348=\"\",\"\",'1. Order'!B1348)","v":""},{"$f":"IF('1. Order'!J1348=\"\",\"\",'1. Order'!J1348)","v":""},{"$f":"IF('1. Order'!K1348=\"\",\"\",'1. Order'!K1348)","v":""},{"$f":"IF('1. Order'!L1348=\"\",\"\",'1. Order'!L1348)","v":""},{"$f":"IF('1. Order'!N1348=\"\",\"\",'1. Order'!N1348)","v":""},null,null,{"$f":"'1. Order'!AV1348","v":0},{"$f":"IF('1. Order'!AI1348=\"\",\"\",'1. Order'!AI1348)","v":""}]
[{"$f":"IF('1. Order'!B1349=\"\",\"\",'1. Order'!B1349)","v":""},{"$f":"IF('1. Order'!J1349=\"\",\"\",'1. Order'!J1349)","v":""},{"$f":"IF('1. Order'!K1349=\"\",\"\",'1. Order'!K1349)","v":""},{"$f":"IF('1. Order'!L1349=\"\",\"\",'1. Order'!L1349)","v":""},{"$f":"IF('1. Order'!N1349=\"\",\"\",'1. Order'!N1349)","v":""},null,null,{"$f":"'1. Order'!AV1349","v":0},{"$f":"IF('1. Order'!AI1349=\"\",\"\",'1. Order'!AI1349)","v":""}]
[{"$f":"IF('1. Order'!B1350=\"\",\"\",'1. Order'!B1350)","v":""},{"$f":"IF('1. Order'!J1350=\"\",\"\",'1. Order'!J1350)","v":""},{"$f":"IF('1. Order'!K1350=\"\",\"\",'1. Order'!K1350)","v":""},{"$f":"IF('1. Order'!L1350=\"\",\"\",'1. Order'!L1350)","v":""},{"$f":"IF('1. Order'!N1350=\"\",\"\",'1. Order'!N1350)","v":""},null,null,{"$f":"'1. Order'!AV1350","v":0},{"$f":"IF('1. Order'!AI1350=\"\",\"\",'1. Order'!AI1350)","v":""}]
[{"$f":"IF('1. Order'!B1351=\"\",\"\",'1. Order'!B1351)","v":""},{"$f":"IF('1. Order'!J1351=\"\",\"\",'1. Order'!J1351)","v":""},{"$f":"IF('1. Order'!K1351=\"\",\"\",'1. Order'!K1351)","v":""},{"$f":"IF('1. Order'!L1351=\"\",\"\",'1. Order'!L1351)","v":""},{"$f":"IF('1. Order'!N1351=\"\",\"\",'1. Order'!N1351)","v":""},null,null,{"$f":"'1. Order'!AV1351","v":0},{"$f":"IF('1. Order'!AI1351=\"\",\"\",'1. Order'!AI1351)","v":""}]
[{"$f":"IF('1. Order'!B1352=\"\",\"\",'1. Order'!B1352)","v":""},{"$f":"IF('1. Order'!J1352=\"\",\"\",'1. Order'!J1352)","v":""},{"$f":"IF('1. Order'!K1352=\"\",\"\",'1. Order'!K1352)","v":""},{"$f":"IF('1. Order'!L1352=\"\",\"\",'1. Order'!L1352)","v":""},{"$f":"IF('1. Order'!N1352=\"\",\"\",'1. Order'!N1352)","v":""},null,null,{"$f":"'1. Order'!AV1352","v":0},{"$f":"IF('1. Order'!AI1352=\"\",\"\",'1. Order'!AI1352)","v":""}]
[{"$f":"IF('1. Order'!B1353=\"\",\"\",'1. Order'!B1353)","v":""},{"$f":"IF('1. Order'!J1353=\"\",\"\",'1. Order'!J1353)","v":""},{"$f":"IF('1. Order'!K1353=\"\",\"\",'1. Order'!K1353)","v":""},{"$f":"IF('1. Order'!L1353=\"\",\"\",'1. Order'!L1353)","v":""},{"$f":"IF('1. Order'!N1353=\"\",\"\",'1. Order'!N1353)","v":""},null,null,{"$f":"'1. Order'!AV1353","v":0},{"$f":"IF('1. Order'!AI1353=\"\",\"\",'1. Order'!AI1353)","v":""}]
[{"$f":"IF('1. Order'!B1354=\"\",\"\",'1. Order'!B1354)","v":""},{"$f":"IF('1. Order'!J1354=\"\",\"\",'1. Order'!J1354)","v":""},{"$f":"IF('1. Order'!K1354=\"\",\"\",'1. Order'!K1354)","v":""},{"$f":"IF('1. Order'!L1354=\"\",\"\",'1. Order'!L1354)","v":""},{"$f":"IF('1. Order'!N1354=\"\",\"\",'1. Order'!N1354)","v":""},null,null,{"$f":"'1. Order'!AV1354","v":0},{"$f":"IF('1. Order'!AI1354=\"\",\"\",'1. Order'!AI1354)","v":""}]
[{"$f":"IF('1. Order'!B1355=\"\",\"\",'1. Order'!B1355)","v":""},{"$f":"IF('1. Order'!J1355=\"\",\"\",'1. Order'!J1355)","v":""},{"$f":"IF('1. Order'!K1355=\"\",\"\",'1. Order'!K1355)","v":""},{"$f":"IF('1. Order'!L1355=\"\",\"\",'1. Order'!L1355)","v":""},{"$f":"IF('1. Order'!N1355=\"\",\"\",'1. Order'!N1355)","v":""},null,null,{"$f":"'1. Order'!AV1355","v":0},{"$f":"IF('1. Order'!AI1355=\"\",\"\",'1. Order'!AI1355)","v":""}]
[{"$f":"IF('1. Order'!B1356=\"\",\"\",'1. Order'!B1356)","v":""},{"$f":"IF('1. Order'!J1356=\"\",\"\",'1. Order'!J1356)","v":""},{"$f":"IF('1. Order'!K1356=\"\",\"\",'1. Order'!K1356)","v":""},{"$f":"IF('1. Order'!L1356=\"\",\"\",'1. Order'!L1356)","v":""},{"$f":"IF('1. Order'!N1356=\"\",\"\",'1. Order'!N1356)","v":""},null,null,{"$f":"'1. Order'!AV1356","v":0},{"$f":"IF('1. Order'!AI1356=\"\",\"\",'1. Order'!AI1356)","v":""}]
[{"$f":"IF('1. Order'!B1357=\"\",\"\",'1. Order'!B1357)","v":""},{"$f":"IF('1. Order'!J1357=\"\",\"\",'1. Order'!J1357)","v":""},{"$f":"IF('1. Order'!K1357=\"\",\"\",'1. Order'!K1357)","v":""},{"$f":"IF('1. Order'!L1357=\"\",\"\",'1. Order'!L1357)","v":""},{"$f":"IF('1. Order'!N1357=\"\",\"\",'1. Order'!N1357)","v":""},null,null,{"$f":"'1. Order'!AV1357","v":0},{"$f":"IF('1. Order'!AI1357=\"\",\"\",'1. Order'!AI1357)","v":""}]
[{"$f":"IF('1. Order'!B1358=\"\",\"\",'1. Order'!B1358)","v":""},{"$f":"IF('1. Order'!J1358=\"\",\"\",'1. Order'!J1358)","v":""},{"$f":"IF('1. Order'!K1358=\"\",\"\",'1. Order'!K1358)","v":""},{"$f":"IF('1. Order'!L1358=\"\",\"\",'1. Order'!L1358)","v":""},{"$f":"IF('1. Order'!N1358=\"\",\"\",'1. Order'!N1358)","v":""},null,null,{"$f":"'1. Order'!AV1358","v":0},{"$f":"IF('1. Order'!AI1358=\"\",\"\",'1. Order'!AI1358)","v":""}]
[{"$f":"IF('1. Order'!B1359=\"\",\"\",'1. Order'!B1359)","v":""},{"$f":"IF('1. Order'!J1359=\"\",\"\",'1. Order'!J1359)","v":""},{"$f":"IF('1. Order'!K1359=\"\",\"\",'1. Order'!K1359)","v":""},{"$f":"IF('1. Order'!L1359=\"\",\"\",'1. Order'!L1359)","v":""},{"$f":"IF('1. Order'!N1359=\"\",\"\",'1. Order'!N1359)","v":""},null,null,{"$f":"'1. Order'!AV1359","v":0},{"$f":"IF('1. Order'!AI1359=\"\",\"\",'1. Order'!AI1359)","v":""}]
[{"$f":"IF('1. Order'!B1360=\"\",\"\",'1. Order'!B1360)","v":""},{"$f":"IF('1. Order'!J1360=\"\",\"\",'1. Order'!J1360)","v":""},{"$f":"IF('1. Order'!K1360=\"\",\"\",'1. Order'!K1360)","v":""},{"$f":"IF('1. Order'!L1360=\"\",\"\",'1. Order'!L1360)","v":""},{"$f":"IF('1. Order'!N1360=\"\",\"\",'1. Order'!N1360)","v":""},null,null,{"$f":"'1. Order'!AV1360","v":0},{"$f":"IF('1. Order'!AI1360=\"\",\"\",'1. Order'!AI1360)","v":""}]
[{"$f":"IF('1. Order'!B1361=\"\",\"\",'1. Order'!B1361)","v":""},{"$f":"IF('1. Order'!J1361=\"\",\"\",'1. Order'!J1361)","v":""},{"$f":"IF('1. Order'!K1361=\"\",\"\",'1. Order'!K1361)","v":""},{"$f":"IF('1. Order'!L1361=\"\",\"\",'1. Order'!L1361)","v":""},{"$f":"IF('1. Order'!N1361=\"\",\"\",'1. Order'!N1361)","v":""},null,null,{"$f":"'1. Order'!AV1361","v":0},{"$f":"IF('1. Order'!AI1361=\"\",\"\",'1. Order'!AI1361)","v":""}]
[{"$f":"IF('1. Order'!B1362=\"\",\"\",'1. Order'!B1362)","v":""},{"$f":"IF('1. Order'!J1362=\"\",\"\",'1. Order'!J1362)","v":""},{"$f":"IF('1. Order'!K1362=\"\",\"\",'1. Order'!K1362)","v":""},{"$f":"IF('1. Order'!L1362=\"\",\"\",'1. Order'!L1362)","v":""},{"$f":"IF('1. Order'!N1362=\"\",\"\",'1. Order'!N1362)","v":""},null,null,{"$f":"'1. Order'!AV1362","v":0},{"$f":"IF('1. Order'!AI1362=\"\",\"\",'1. Order'!AI1362)","v":""}]
[{"$f":"IF('1. Order'!B1363=\"\",\"\",'1. Order'!B1363)","v":""},{"$f":"IF('1. Order'!J1363=\"\",\"\",'1. Order'!J1363)","v":""},{"$f":"IF('1. Order'!K1363=\"\",\"\",'1. Order'!K1363)","v":""},{"$f":"IF('1. Order'!L1363=\"\",\"\",'1. Order'!L1363)","v":""},{"$f":"IF('1. Order'!N1363=\"\",\"\",'1. Order'!N1363)","v":""},null,null,{"$f":"'1. Order'!AV1363","v":0},{"$f":"IF('1. Order'!AI1363=\"\",\"\",'1. Order'!AI1363)","v":""}]
[{"$f":"IF('1. Order'!B1364=\"\",\"\",'1. Order'!B1364)","v":""},{"$f":"IF('1. Order'!J1364=\"\",\"\",'1. Order'!J1364)","v":""},{"$f":"IF('1. Order'!K1364=\"\",\"\",'1. Order'!K1364)","v":""},{"$f":"IF('1. Order'!L1364=\"\",\"\",'1. Order'!L1364)","v":""},{"$f":"IF('1. Order'!N1364=\"\",\"\",'1. Order'!N1364)","v":""},null,null,{"$f":"'1. Order'!AV1364","v":0},{"$f":"IF('1. Order'!AI1364=\"\",\"\",'1. Order'!AI1364)","v":""}]
[{"$f":"IF('1. Order'!B1365=\"\",\"\",'1. Order'!B1365)","v":""},{"$f":"IF('1. Order'!J1365=\"\",\"\",'1. Order'!J1365)","v":""},{"$f":"IF('1. Order'!K1365=\"\",\"\",'1. Order'!K1365)","v":""},{"$f":"IF('1. Order'!L1365=\"\",\"\",'1. Order'!L1365)","v":""},{"$f":"IF('1. Order'!N1365=\"\",\"\",'1. Order'!N1365)","v":""},null,null,{"$f":"'1. Order'!AV1365","v":0},{"$f":"IF('1. Order'!AI1365=\"\",\"\",'1. Order'!AI1365)","v":""}]
[{"$f":"IF('1. Order'!B1366=\"\",\"\",'1. Order'!B1366)","v":""},{"$f":"IF('1. Order'!J1366=\"\",\"\",'1. Order'!J1366)","v":""},{"$f":"IF('1. Order'!K1366=\"\",\"\",'1. Order'!K1366)","v":""},{"$f":"IF('1. Order'!L1366=\"\",\"\",'1. Order'!L1366)","v":""},{"$f":"IF('1. Order'!N1366=\"\",\"\",'1. Order'!N1366)","v":""},null,null,{"$f":"'1. Order'!AV1366","v":0},{"$f":"IF('1. Order'!AI1366=\"\",\"\",'1. Order'!AI1366)","v":""}]
[{"$f":"IF('1. Order'!B1367=\"\",\"\",'1. Order'!B1367)","v":""},{"$f":"IF('1. Order'!J1367=\"\",\"\",'1. Order'!J1367)","v":""},{"$f":"IF('1. Order'!K1367=\"\",\"\",'1. Order'!K1367)","v":""},{"$f":"IF('1. Order'!L1367=\"\",\"\",'1. Order'!L1367)","v":""},{"$f":"IF('1. Order'!N1367=\"\",\"\",'1. Order'!N1367)","v":""},null,null,{"$f":"'1. Order'!AV1367","v":0},{"$f":"IF('1. Order'!AI1367=\"\",\"\",'1. Order'!AI1367)","v":""}]
[{"$f":"IF('1. Order'!B1368=\"\",\"\",'1. Order'!B1368)","v":""},{"$f":"IF('1. Order'!J1368=\"\",\"\",'1. Order'!J1368)","v":""},{"$f":"IF('1. Order'!K1368=\"\",\"\",'1. Order'!K1368)","v":""},{"$f":"IF('1. Order'!L1368=\"\",\"\",'1. Order'!L1368)","v":""},{"$f":"IF('1. Order'!N1368=\"\",\"\",'1. Order'!N1368)","v":""},null,null,{"$f":"'1. Order'!AV1368","v":0},{"$f":"IF('1. Order'!AI1368=\"\",\"\",'1. Order'!AI1368)","v":""}]
[{"$f":"IF('1. Order'!B1369=\"\",\"\",'1. Order'!B1369)","v":""},{"$f":"IF('1. Order'!J1369=\"\",\"\",'1. Order'!J1369)","v":""},{"$f":"IF('1. Order'!K1369=\"\",\"\",'1. Order'!K1369)","v":""},{"$f":"IF('1. Order'!L1369=\"\",\"\",'1. Order'!L1369)","v":""},{"$f":"IF('1. Order'!N1369=\"\",\"\",'1. Order'!N1369)","v":""},null,null,{"$f":"'1. Order'!AV1369","v":0},{"$f":"IF('1. Order'!AI1369=\"\",\"\",'1. Order'!AI1369)","v":""}]
[{"$f":"IF('1. Order'!B1370=\"\",\"\",'1. Order'!B1370)","v":""},{"$f":"IF('1. Order'!J1370=\"\",\"\",'1. Order'!J1370)","v":""},{"$f":"IF('1. Order'!K1370=\"\",\"\",'1. Order'!K1370)","v":""},{"$f":"IF('1. Order'!L1370=\"\",\"\",'1. Order'!L1370)","v":""},{"$f":"IF('1. Order'!N1370=\"\",\"\",'1. Order'!N1370)","v":""},null,null,{"$f":"'1. Order'!AV1370","v":0},{"$f":"IF('1. Order'!AI1370=\"\",\"\",'1. Order'!AI1370)","v":""}]
[{"$f":"IF('1. Order'!B1371=\"\",\"\",'1. Order'!B1371)","v":""},{"$f":"IF('1. Order'!J1371=\"\",\"\",'1. Order'!J1371)","v":""},{"$f":"IF('1. Order'!K1371=\"\",\"\",'1. Order'!K1371)","v":""},{"$f":"IF('1. Order'!L1371=\"\",\"\",'1. Order'!L1371)","v":""},{"$f":"IF('1. Order'!N1371=\"\",\"\",'1. Order'!N1371)","v":""},null,null,{"$f":"'1. Order'!AV1371","v":0},{"$f":"IF('1. Order'!AI1371=\"\",\"\",'1. Order'!AI1371)","v":""}]
[{"$f":"IF('1. Order'!B1372=\"\",\"\",'1. Order'!B1372)","v":""},{"$f":"IF('1. Order'!J1372=\"\",\"\",'1. Order'!J1372)","v":""},{"$f":"IF('1. Order'!K1372=\"\",\"\",'1. Order'!K1372)","v":""},{"$f":"IF('1. Order'!L1372=\"\",\"\",'1. Order'!L1372)","v":""},{"$f":"IF('1. Order'!N1372=\"\",\"\",'1. Order'!N1372)","v":""},null,null,{"$f":"'1. Order'!AV1372","v":0},{"$f":"IF('1. Order'!AI1372=\"\",\"\",'1. Order'!AI1372)","v":""}]
[{"$f":"IF('1. Order'!B1373=\"\",\"\",'1. Order'!B1373)","v":""},{"$f":"IF('1. Order'!J1373=\"\",\"\",'1. Order'!J1373)","v":""},{"$f":"IF('1. Order'!K1373=\"\",\"\",'1. Order'!K1373)","v":""},{"$f":"IF('1. Order'!L1373=\"\",\"\",'1. Order'!L1373)","v":""},{"$f":"IF('1. Order'!N1373=\"\",\"\",'1. Order'!N1373)","v":""},null,null,{"$f":"'1. Order'!AV1373","v":0},{"$f":"IF('1. Order'!AI1373=\"\",\"\",'1. Order'!AI1373)","v":""}]
[{"$f":"IF('1. Order'!B1374=\"\",\"\",'1. Order'!B1374)","v":""},{"$f":"IF('1. Order'!J1374=\"\",\"\",'1. Order'!J1374)","v":""},{"$f":"IF('1. Order'!K1374=\"\",\"\",'1. Order'!K1374)","v":""},{"$f":"IF('1. Order'!L1374=\"\",\"\",'1. Order'!L1374)","v":""},{"$f":"IF('1. Order'!N1374=\"\",\"\",'1. Order'!N1374)","v":""},null,null,{"$f":"'1. Order'!AV1374","v":0},{"$f":"IF('1. Order'!AI1374=\"\",\"\",'1. Order'!AI1374)","v":""}]
[{"$f":"IF('1. Order'!B1375=\"\",\"\",'1. Order'!B1375)","v":""},{"$f":"IF('1. Order'!J1375=\"\",\"\",'1. Order'!J1375)","v":""},{"$f":"IF('1. Order'!K1375=\"\",\"\",'1. Order'!K1375)","v":""},{"$f":"IF('1. Order'!L1375=\"\",\"\",'1. Order'!L1375)","v":""},{"$f":"IF('1. Order'!N1375=\"\",\"\",'1. Order'!N1375)","v":""},null,null,{"$f":"'1. Order'!AV1375","v":0},{"$f":"IF('1. Order'!AI1375=\"\",\"\",'1. Order'!AI1375)","v":""}]
[{"$f":"IF('1. Order'!B1376=\"\",\"\",'1. Order'!B1376)","v":""},{"$f":"IF('1. Order'!J1376=\"\",\"\",'1. Order'!J1376)","v":""},{"$f":"IF('1. Order'!K1376=\"\",\"\",'1. Order'!K1376)","v":""},{"$f":"IF('1. Order'!L1376=\"\",\"\",'1. Order'!L1376)","v":""},{"$f":"IF('1. Order'!N1376=\"\",\"\",'1. Order'!N1376)","v":""},null,null,{"$f":"'1. Order'!AV1376","v":0},{"$f":"IF('1. Order'!AI1376=\"\",\"\",'1. Order'!AI1376)","v":""}]
[{"$f":"IF('1. Order'!B1377=\"\",\"\",'1. Order'!B1377)","v":""},{"$f":"IF('1. Order'!J1377=\"\",\"\",'1. Order'!J1377)","v":""},{"$f":"IF('1. Order'!K1377=\"\",\"\",'1. Order'!K1377)","v":""},{"$f":"IF('1. Order'!L1377=\"\",\"\",'1. Order'!L1377)","v":""},{"$f":"IF('1. Order'!N1377=\"\",\"\",'1. Order'!N1377)","v":""},null,null,{"$f":"'1. Order'!AV1377","v":0},{"$f":"IF('1. Order'!AI1377=\"\",\"\",'1. Order'!AI1377)","v":""}]
[{"$f":"IF('1. Order'!B1378=\"\",\"\",'1. Order'!B1378)","v":""},{"$f":"IF('1. Order'!J1378=\"\",\"\",'1. Order'!J1378)","v":""},{"$f":"IF('1. Order'!K1378=\"\",\"\",'1. Order'!K1378)","v":""},{"$f":"IF('1. Order'!L1378=\"\",\"\",'1. Order'!L1378)","v":""},{"$f":"IF('1. Order'!N1378=\"\",\"\",'1. Order'!N1378)","v":""},null,null,{"$f":"'1. Order'!AV1378","v":0},{"$f":"IF('1. Order'!AI1378=\"\",\"\",'1. Order'!AI1378)","v":""}]
[{"$f":"IF('1. Order'!B1379=\"\",\"\",'1. Order'!B1379)","v":""},{"$f":"IF('1. Order'!J1379=\"\",\"\",'1. Order'!J1379)","v":""},{"$f":"IF('1. Order'!K1379=\"\",\"\",'1. Order'!K1379)","v":""},{"$f":"IF('1. Order'!L1379=\"\",\"\",'1. Order'!L1379)","v":""},{"$f":"IF('1. Order'!N1379=\"\",\"\",'1. Order'!N1379)","v":""},null,null,{"$f":"'1. Order'!AV1379","v":0},{"$f":"IF('1. Order'!AI1379=\"\",\"\",'1. Order'!AI1379)","v":""}]
[{"$f":"IF('1. Order'!B1380=\"\",\"\",'1. Order'!B1380)","v":""},{"$f":"IF('1. Order'!J1380=\"\",\"\",'1. Order'!J1380)","v":""},{"$f":"IF('1. Order'!K1380=\"\",\"\",'1. Order'!K1380)","v":""},{"$f":"IF('1. Order'!L1380=\"\",\"\",'1. Order'!L1380)","v":""},{"$f":"IF('1. Order'!N1380=\"\",\"\",'1. Order'!N1380)","v":""},null,null,{"$f":"'1. Order'!AV1380","v":0},{"$f":"IF('1. Order'!AI1380=\"\",\"\",'1. Order'!AI1380)","v":""}]
[{"$f":"IF('1. Order'!B1381=\"\",\"\",'1. Order'!B1381)","v":""},{"$f":"IF('1. Order'!J1381=\"\",\"\",'1. Order'!J1381)","v":""},{"$f":"IF('1. Order'!K1381=\"\",\"\",'1. Order'!K1381)","v":""},{"$f":"IF('1. Order'!L1381=\"\",\"\",'1. Order'!L1381)","v":""},{"$f":"IF('1. Order'!N1381=\"\",\"\",'1. Order'!N1381)","v":""},null,null,{"$f":"'1. Order'!AV1381","v":0},{"$f":"IF('1. Order'!AI1381=\"\",\"\",'1. Order'!AI1381)","v":""}]
[{"$f":"IF('1. Order'!B1382=\"\",\"\",'1. Order'!B1382)","v":""},{"$f":"IF('1. Order'!J1382=\"\",\"\",'1. Order'!J1382)","v":""},{"$f":"IF('1. Order'!K1382=\"\",\"\",'1. Order'!K1382)","v":""},{"$f":"IF('1. Order'!L1382=\"\",\"\",'1. Order'!L1382)","v":""},{"$f":"IF('1. Order'!N1382=\"\",\"\",'1. Order'!N1382)","v":""},null,null,{"$f":"'1. Order'!AV1382","v":0},{"$f":"IF('1. Order'!AI1382=\"\",\"\",'1. Order'!AI1382)","v":""}]
[{"$f":"IF('1. Order'!B1383=\"\",\"\",'1. Order'!B1383)","v":""},{"$f":"IF('1. Order'!J1383=\"\",\"\",'1. Order'!J1383)","v":""},{"$f":"IF('1. Order'!K1383=\"\",\"\",'1. Order'!K1383)","v":""},{"$f":"IF('1. Order'!L1383=\"\",\"\",'1. Order'!L1383)","v":""},{"$f":"IF('1. Order'!N1383=\"\",\"\",'1. Order'!N1383)","v":""},null,null,{"$f":"'1. Order'!AV1383","v":0},{"$f":"IF('1. Order'!AI1383=\"\",\"\",'1. Order'!AI1383)","v":""}]
[{"$f":"IF('1. Order'!B1384=\"\",\"\",'1. Order'!B1384)","v":""},{"$f":"IF('1. Order'!J1384=\"\",\"\",'1. Order'!J1384)","v":""},{"$f":"IF('1. Order'!K1384=\"\",\"\",'1. Order'!K1384)","v":""},{"$f":"IF('1. Order'!L1384=\"\",\"\",'1. Order'!L1384)","v":""},{"$f":"IF('1. Order'!N1384=\"\",\"\",'1. Order'!N1384)","v":""},null,null,{"$f":"'1. Order'!AV1384","v":0},{"$f":"IF('1. Order'!AI1384=\"\",\"\",'1. Order'!AI1384)","v":""}]
[{"$f":"IF('1. Order'!B1385=\"\",\"\",'1. Order'!B1385)","v":""},{"$f":"IF('1. Order'!J1385=\"\",\"\",'1. Order'!J1385)","v":""},{"$f":"IF('1. Order'!K1385=\"\",\"\",'1. Order'!K1385)","v":""},{"$f":"IF('1. Order'!L1385=\"\",\"\",'1. Order'!L1385)","v":""},{"$f":"IF('1. Order'!N1385=\"\",\"\",'1. Order'!N1385)","v":""},null,null,{"$f":"'1. Order'!AV1385","v":0},{"$f":"IF('1. Order'!AI1385=\"\",\"\",'1. Order'!AI1385)","v":""}]
[{"$f":"IF('1. Order'!B1386=\"\",\"\",'1. Order'!B1386)","v":""},{"$f":"IF('1. Order'!J1386=\"\",\"\",'1. Order'!J1386)","v":""},{"$f":"IF('1. Order'!K1386=\"\",\"\",'1. Order'!K1386)","v":""},{"$f":"IF('1. Order'!L1386=\"\",\"\",'1. Order'!L1386)","v":""},{"$f":"IF('1. Order'!N1386=\"\",\"\",'1. Order'!N1386)","v":""},null,null,{"$f":"'1. Order'!AV1386","v":0},{"$f":"IF('1. Order'!AI1386=\"\",\"\",'1. Order'!AI1386)","v":""}]
[{"$f":"IF('1. Order'!B1387=\"\",\"\",'1. Order'!B1387)","v":""},{"$f":"IF('1. Order'!J1387=\"\",\"\",'1. Order'!J1387)","v":""},{"$f":"IF('1. Order'!K1387=\"\",\"\",'1. Order'!K1387)","v":""},{"$f":"IF('1. Order'!L1387=\"\",\"\",'1. Order'!L1387)","v":""},{"$f":"IF('1. Order'!N1387=\"\",\"\",'1. Order'!N1387)","v":""},null,null,{"$f":"'1. Order'!AV1387","v":0},{"$f":"IF('1. Order'!AI1387=\"\",\"\",'1. Order'!AI1387)","v":""}]
[{"$f":"IF('1. Order'!B1388=\"\",\"\",'1. Order'!B1388)","v":""},{"$f":"IF('1. Order'!J1388=\"\",\"\",'1. Order'!J1388)","v":""},{"$f":"IF('1. Order'!K1388=\"\",\"\",'1. Order'!K1388)","v":""},{"$f":"IF('1. Order'!L1388=\"\",\"\",'1. Order'!L1388)","v":""},{"$f":"IF('1. Order'!N1388=\"\",\"\",'1. Order'!N1388)","v":""},null,null,{"$f":"'1. Order'!AV1388","v":0},{"$f":"IF('1. Order'!AI1388=\"\",\"\",'1. Order'!AI1388)","v":""}]
[{"$f":"IF('1. Order'!B1389=\"\",\"\",'1. Order'!B1389)","v":""},{"$f":"IF('1. Order'!J1389=\"\",\"\",'1. Order'!J1389)","v":""},{"$f":"IF('1. Order'!K1389=\"\",\"\",'1. Order'!K1389)","v":""},{"$f":"IF('1. Order'!L1389=\"\",\"\",'1. Order'!L1389)","v":""},{"$f":"IF('1. Order'!N1389=\"\",\"\",'1. Order'!N1389)","v":""},null,null,{"$f":"'1. Order'!AV1389","v":0},{"$f":"IF('1. Order'!AI1389=\"\",\"\",'1. Order'!AI1389)","v":""}]
[{"$f":"IF('1. Order'!B1390=\"\",\"\",'1. Order'!B1390)","v":""},{"$f":"IF('1. Order'!J1390=\"\",\"\",'1. Order'!J1390)","v":""},{"$f":"IF('1. Order'!K1390=\"\",\"\",'1. Order'!K1390)","v":""},{"$f":"IF('1. Order'!L1390=\"\",\"\",'1. Order'!L1390)","v":""},{"$f":"IF('1. Order'!N1390=\"\",\"\",'1. Order'!N1390)","v":""},null,null,{"$f":"'1. Order'!AV1390","v":0},{"$f":"IF('1. Order'!AI1390=\"\",\"\",'1. Order'!AI1390)","v":""}]
[{"$f":"IF('1. Order'!B1391=\"\",\"\",'1. Order'!B1391)","v":""},{"$f":"IF('1. Order'!J1391=\"\",\"\",'1. Order'!J1391)","v":""},{"$f":"IF('1. Order'!K1391=\"\",\"\",'1. Order'!K1391)","v":""},{"$f":"IF('1. Order'!L1391=\"\",\"\",'1. Order'!L1391)","v":""},{"$f":"IF('1. Order'!N1391=\"\",\"\",'1. Order'!N1391)","v":""},null,null,{"$f":"'1. Order'!AV1391","v":0},{"$f":"IF('1. Order'!AI1391=\"\",\"\",'1. Order'!AI1391)","v":""}]
[{"$f":"IF('1. Order'!B1392=\"\",\"\",'1. Order'!B1392)","v":""},{"$f":"IF('1. Order'!J1392=\"\",\"\",'1. Order'!J1392)","v":""},{"$f":"IF('1. Order'!K1392=\"\",\"\",'1. Order'!K1392)","v":""},{"$f":"IF('1. Order'!L1392=\"\",\"\",'1. Order'!L1392)","v":""},{"$f":"IF('1. Order'!N1392=\"\",\"\",'1. Order'!N1392)","v":""},null,null,{"$f":"'1. Order'!AV1392","v":0},{"$f":"IF('1. Order'!AI1392=\"\",\"\",'1. Order'!AI1392)","v":""}]
[{"$f":"IF('1. Order'!B1393=\"\",\"\",'1. Order'!B1393)","v":""},{"$f":"IF('1. Order'!J1393=\"\",\"\",'1. Order'!J1393)","v":""},{"$f":"IF('1. Order'!K1393=\"\",\"\",'1. Order'!K1393)","v":""},{"$f":"IF('1. Order'!L1393=\"\",\"\",'1. Order'!L1393)","v":""},{"$f":"IF('1. Order'!N1393=\"\",\"\",'1. Order'!N1393)","v":""},null,null,{"$f":"'1. Order'!AV1393","v":0},{"$f":"IF('1. Order'!AI1393=\"\",\"\",'1. Order'!AI1393)","v":""}]
[{"$f":"IF('1. Order'!B1394=\"\",\"\",'1. Order'!B1394)","v":""},{"$f":"IF('1. Order'!J1394=\"\",\"\",'1. Order'!J1394)","v":""},{"$f":"IF('1. Order'!K1394=\"\",\"\",'1. Order'!K1394)","v":""},{"$f":"IF('1. Order'!L1394=\"\",\"\",'1. Order'!L1394)","v":""},{"$f":"IF('1. Order'!N1394=\"\",\"\",'1. Order'!N1394)","v":""},null,null,{"$f":"'1. Order'!AV1394","v":0},{"$f":"IF('1. Order'!AI1394=\"\",\"\",'1. Order'!AI1394)","v":""}]
[{"$f":"IF('1. Order'!B1395=\"\",\"\",'1. Order'!B1395)","v":""},{"$f":"IF('1. Order'!J1395=\"\",\"\",'1. Order'!J1395)","v":""},{"$f":"IF('1. Order'!K1395=\"\",\"\",'1. Order'!K1395)","v":""},{"$f":"IF('1. Order'!L1395=\"\",\"\",'1. Order'!L1395)","v":""},{"$f":"IF('1. Order'!N1395=\"\",\"\",'1. Order'!N1395)","v":""},null,null,{"$f":"'1. Order'!AV1395","v":0},{"$f":"IF('1. Order'!AI1395=\"\",\"\",'1. Order'!AI1395)","v":""}]
[{"$f":"IF('1. Order'!B1396=\"\",\"\",'1. Order'!B1396)","v":""},{"$f":"IF('1. Order'!J1396=\"\",\"\",'1. Order'!J1396)","v":""},{"$f":"IF('1. Order'!K1396=\"\",\"\",'1. Order'!K1396)","v":""},{"$f":"IF('1. Order'!L1396=\"\",\"\",'1. Order'!L1396)","v":""},{"$f":"IF('1. Order'!N1396=\"\",\"\",'1. Order'!N1396)","v":""},null,null,{"$f":"'1. Order'!AV1396","v":0},{"$f":"IF('1. Order'!AI1396=\"\",\"\",'1. Order'!AI1396)","v":""}]
[{"$f":"IF('1. Order'!B1397=\"\",\"\",'1. Order'!B1397)","v":""},{"$f":"IF('1. Order'!J1397=\"\",\"\",'1. Order'!J1397)","v":""},{"$f":"IF('1. Order'!K1397=\"\",\"\",'1. Order'!K1397)","v":""},{"$f":"IF('1. Order'!L1397=\"\",\"\",'1. Order'!L1397)","v":""},{"$f":"IF('1. Order'!N1397=\"\",\"\",'1. Order'!N1397)","v":""},null,null,{"$f":"'1. Order'!AV1397","v":0},{"$f":"IF('1. Order'!AI1397=\"\",\"\",'1. Order'!AI1397)","v":""}]
[{"$f":"IF('1. Order'!B1398=\"\",\"\",'1. Order'!B1398)","v":""},{"$f":"IF('1. Order'!J1398=\"\",\"\",'1. Order'!J1398)","v":""},{"$f":"IF('1. Order'!K1398=\"\",\"\",'1. Order'!K1398)","v":""},{"$f":"IF('1. Order'!L1398=\"\",\"\",'1. Order'!L1398)","v":""},{"$f":"IF('1. Order'!N1398=\"\",\"\",'1. Order'!N1398)","v":""},null,null,{"$f":"'1. Order'!AV1398","v":0},{"$f":"IF('1. Order'!AI1398=\"\",\"\",'1. Order'!AI1398)","v":""}]
[{"$f":"IF('1. Order'!B1399=\"\",\"\",'1. Order'!B1399)","v":""},{"$f":"IF('1. Order'!J1399=\"\",\"\",'1. Order'!J1399)","v":""},{"$f":"IF('1. Order'!K1399=\"\",\"\",'1. Order'!K1399)","v":""},{"$f":"IF('1. Order'!L1399=\"\",\"\",'1. Order'!L1399)","v":""},{"$f":"IF('1. Order'!N1399=\"\",\"\",'1. Order'!N1399)","v":""},null,null,{"$f":"'1. Order'!AV1399","v":0},{"$f":"IF('1. Order'!AI1399=\"\",\"\",'1. Order'!AI1399)","v":""}]
[{"$f":"IF('1. Order'!B1400=\"\",\"\",'1. Order'!B1400)","v":""},{"$f":"IF('1. Order'!J1400=\"\",\"\",'1. Order'!J1400)","v":""},{"$f":"IF('1. Order'!K1400=\"\",\"\",'1. Order'!K1400)","v":""},{"$f":"IF('1. Order'!L1400=\"\",\"\",'1. Order'!L1400)","v":""},{"$f":"IF('1. Order'!N1400=\"\",\"\",'1. Order'!N1400)","v":""},null,null,{"$f":"'1. Order'!AV1400","v":0},{"$f":"IF('1. Order'!AI1400=\"\",\"\",'1. Order'!AI1400)","v":""}]
[{"$f":"IF('1. Order'!B1401=\"\",\"\",'1. Order'!B1401)","v":""},{"$f":"IF('1. Order'!J1401=\"\",\"\",'1. Order'!J1401)","v":""},{"$f":"IF('1. Order'!K1401=\"\",\"\",'1. Order'!K1401)","v":""},{"$f":"IF('1. Order'!L1401=\"\",\"\",'1. Order'!L1401)","v":""},{"$f":"IF('1. Order'!N1401=\"\",\"\",'1. Order'!N1401)","v":""},null,null,{"$f":"'1. Order'!AV1401","v":0},{"$f":"IF('1. Order'!AI1401=\"\",\"\",'1. Order'!AI1401)","v":""}]
[{"$f":"IF('1. Order'!B1402=\"\",\"\",'1. Order'!B1402)","v":""},{"$f":"IF('1. Order'!J1402=\"\",\"\",'1. Order'!J1402)","v":""},{"$f":"IF('1. Order'!K1402=\"\",\"\",'1. Order'!K1402)","v":""},{"$f":"IF('1. Order'!L1402=\"\",\"\",'1. Order'!L1402)","v":""},{"$f":"IF('1. Order'!N1402=\"\",\"\",'1. Order'!N1402)","v":""},null,null,{"$f":"'1. Order'!AV1402","v":0},{"$f":"IF('1. Order'!AI1402=\"\",\"\",'1. Order'!AI1402)","v":""}]
[{"$f":"IF('1. Order'!B1403=\"\",\"\",'1. Order'!B1403)","v":""},{"$f":"IF('1. Order'!J1403=\"\",\"\",'1. Order'!J1403)","v":""},{"$f":"IF('1. Order'!K1403=\"\",\"\",'1. Order'!K1403)","v":""},{"$f":"IF('1. Order'!L1403=\"\",\"\",'1. Order'!L1403)","v":""},{"$f":"IF('1. Order'!N1403=\"\",\"\",'1. Order'!N1403)","v":""},null,null,{"$f":"'1. Order'!AV1403","v":0},{"$f":"IF('1. Order'!AI1403=\"\",\"\",'1. Order'!AI1403)","v":""}]
[{"$f":"IF('1. Order'!B1404=\"\",\"\",'1. Order'!B1404)","v":""},{"$f":"IF('1. Order'!J1404=\"\",\"\",'1. Order'!J1404)","v":""},{"$f":"IF('1. Order'!K1404=\"\",\"\",'1. Order'!K1404)","v":""},{"$f":"IF('1. Order'!L1404=\"\",\"\",'1. Order'!L1404)","v":""},{"$f":"IF('1. Order'!N1404=\"\",\"\",'1. Order'!N1404)","v":""},null,null,{"$f":"'1. Order'!AV1404","v":0},{"$f":"IF('1. Order'!AI1404=\"\",\"\",'1. Order'!AI1404)","v":""}]
[{"$f":"IF('1. Order'!B1405=\"\",\"\",'1. Order'!B1405)","v":""},{"$f":"IF('1. Order'!J1405=\"\",\"\",'1. Order'!J1405)","v":""},{"$f":"IF('1. Order'!K1405=\"\",\"\",'1. Order'!K1405)","v":""},{"$f":"IF('1. Order'!L1405=\"\",\"\",'1. Order'!L1405)","v":""},{"$f":"IF('1. Order'!N1405=\"\",\"\",'1. Order'!N1405)","v":""},null,null,{"$f":"'1. Order'!AV1405","v":0},{"$f":"IF('1. Order'!AI1405=\"\",\"\",'1. Order'!AI1405)","v":""}]
[{"$f":"IF('1. Order'!B1406=\"\",\"\",'1. Order'!B1406)","v":""},{"$f":"IF('1. Order'!J1406=\"\",\"\",'1. Order'!J1406)","v":""},{"$f":"IF('1. Order'!K1406=\"\",\"\",'1. Order'!K1406)","v":""},{"$f":"IF('1. Order'!L1406=\"\",\"\",'1. Order'!L1406)","v":""},{"$f":"IF('1. Order'!N1406=\"\",\"\",'1. Order'!N1406)","v":""},null,null,{"$f":"'1. Order'!AV1406","v":0},{"$f":"IF('1. Order'!AI1406=\"\",\"\",'1. Order'!AI1406)","v":""}]
[{"$f":"IF('1. Order'!B1407=\"\",\"\",'1. Order'!B1407)","v":""},{"$f":"IF('1. Order'!J1407=\"\",\"\",'1. Order'!J1407)","v":""},{"$f":"IF('1. Order'!K1407=\"\",\"\",'1. Order'!K1407)","v":""},{"$f":"IF('1. Order'!L1407=\"\",\"\",'1. Order'!L1407)","v":""},{"$f":"IF('1. Order'!N1407=\"\",\"\",'1. Order'!N1407)","v":""},null,null,{"$f":"'1. Order'!AV1407","v":0},{"$f":"IF('1. Order'!AI1407=\"\",\"\",'1. Order'!AI1407)","v":""}]
[{"$f":"IF('1. Order'!B1408=\"\",\"\",'1. Order'!B1408)","v":""},{"$f":"IF('1. Order'!J1408=\"\",\"\",'1. Order'!J1408)","v":""},{"$f":"IF('1. Order'!K1408=\"\",\"\",'1. Order'!K1408)","v":""},{"$f":"IF('1. Order'!L1408=\"\",\"\",'1. Order'!L1408)","v":""},{"$f":"IF('1. Order'!N1408=\"\",\"\",'1. Order'!N1408)","v":""},null,null,{"$f":"'1. Order'!AV1408","v":0},{"$f":"IF('1. Order'!AI1408=\"\",\"\",'1. Order'!AI1408)","v":""}]
[{"$f":"IF('1. Order'!B1409=\"\",\"\",'1. Order'!B1409)","v":""},{"$f":"IF('1. Order'!J1409=\"\",\"\",'1. Order'!J1409)","v":""},{"$f":"IF('1. Order'!K1409=\"\",\"\",'1. Order'!K1409)","v":""},{"$f":"IF('1. Order'!L1409=\"\",\"\",'1. Order'!L1409)","v":""},{"$f":"IF('1. Order'!N1409=\"\",\"\",'1. Order'!N1409)","v":""},null,null,{"$f":"'1. Order'!AV1409","v":0},{"$f":"IF('1. Order'!AI1409=\"\",\"\",'1. Order'!AI1409)","v":""}]
[{"$f":"IF('1. Order'!B1410=\"\",\"\",'1. Order'!B1410)","v":""},{"$f":"IF('1. Order'!J1410=\"\",\"\",'1. Order'!J1410)","v":""},{"$f":"IF('1. Order'!K1410=\"\",\"\",'1. Order'!K1410)","v":""},{"$f":"IF('1. Order'!L1410=\"\",\"\",'1. Order'!L1410)","v":""},{"$f":"IF('1. Order'!N1410=\"\",\"\",'1. Order'!N1410)","v":""},null,null,{"$f":"'1. Order'!AV1410","v":0},{"$f":"IF('1. Order'!AI1410=\"\",\"\",'1. Order'!AI1410)","v":""}]
[{"$f":"IF('1. Order'!B1411=\"\",\"\",'1. Order'!B1411)","v":""},{"$f":"IF('1. Order'!J1411=\"\",\"\",'1. Order'!J1411)","v":""},{"$f":"IF('1. Order'!K1411=\"\",\"\",'1. Order'!K1411)","v":""},{"$f":"IF('1. Order'!L1411=\"\",\"\",'1. Order'!L1411)","v":""},{"$f":"IF('1. Order'!N1411=\"\",\"\",'1. Order'!N1411)","v":""},null,null,{"$f":"'1. Order'!AV1411","v":0},{"$f":"IF('1. Order'!AI1411=\"\",\"\",'1. Order'!AI1411)","v":""}]
[{"$f":"IF('1. Order'!B1412=\"\",\"\",'1. Order'!B1412)","v":""},{"$f":"IF('1. Order'!J1412=\"\",\"\",'1. Order'!J1412)","v":""},{"$f":"IF('1. Order'!K1412=\"\",\"\",'1. Order'!K1412)","v":""},{"$f":"IF('1. Order'!L1412=\"\",\"\",'1. Order'!L1412)","v":""},{"$f":"IF('1. Order'!N1412=\"\",\"\",'1. Order'!N1412)","v":""},null,null,{"$f":"'1. Order'!AV1412","v":0},{"$f":"IF('1. Order'!AI1412=\"\",\"\",'1. Order'!AI1412)","v":""}]
[{"$f":"IF('1. Order'!B1413=\"\",\"\",'1. Order'!B1413)","v":""},{"$f":"IF('1. Order'!J1413=\"\",\"\",'1. Order'!J1413)","v":""},{"$f":"IF('1. Order'!K1413=\"\",\"\",'1. Order'!K1413)","v":""},{"$f":"IF('1. Order'!L1413=\"\",\"\",'1. Order'!L1413)","v":""},{"$f":"IF('1. Order'!N1413=\"\",\"\",'1. Order'!N1413)","v":""},null,null,{"$f":"'1. Order'!AV1413","v":0},{"$f":"IF('1. Order'!AI1413=\"\",\"\",'1. Order'!AI1413)","v":""}]
[{"$f":"IF('1. Order'!B1414=\"\",\"\",'1. Order'!B1414)","v":""},{"$f":"IF('1. Order'!J1414=\"\",\"\",'1. Order'!J1414)","v":""},{"$f":"IF('1. Order'!K1414=\"\",\"\",'1. Order'!K1414)","v":""},{"$f":"IF('1. Order'!L1414=\"\",\"\",'1. Order'!L1414)","v":""},{"$f":"IF('1. Order'!N1414=\"\",\"\",'1. Order'!N1414)","v":""},null,null,{"$f":"'1. Order'!AV1414","v":0},{"$f":"IF('1. Order'!AI1414=\"\",\"\",'1. Order'!AI1414)","v":""}]
[{"$f":"IF('1. Order'!B1415=\"\",\"\",'1. Order'!B1415)","v":""},{"$f":"IF('1. Order'!J1415=\"\",\"\",'1. Order'!J1415)","v":""},{"$f":"IF('1. Order'!K1415=\"\",\"\",'1. Order'!K1415)","v":""},{"$f":"IF('1. Order'!L1415=\"\",\"\",'1. Order'!L1415)","v":""},{"$f":"IF('1. Order'!N1415=\"\",\"\",'1. Order'!N1415)","v":""},null,null,{"$f":"'1. Order'!AV1415","v":0},{"$f":"IF('1. Order'!AI1415=\"\",\"\",'1. Order'!AI1415)","v":""}]
[{"$f":"IF('1. Order'!B1416=\"\",\"\",'1. Order'!B1416)","v":""},{"$f":"IF('1. Order'!J1416=\"\",\"\",'1. Order'!J1416)","v":""},{"$f":"IF('1. Order'!K1416=\"\",\"\",'1. Order'!K1416)","v":""},{"$f":"IF('1. Order'!L1416=\"\",\"\",'1. Order'!L1416)","v":""},{"$f":"IF('1. Order'!N1416=\"\",\"\",'1. Order'!N1416)","v":""},null,null,{"$f":"'1. Order'!AV1416","v":0},{"$f":"IF('1. Order'!AI1416=\"\",\"\",'1. Order'!AI1416)","v":""}]
[{"$f":"IF('1. Order'!B1417=\"\",\"\",'1. Order'!B1417)","v":""},{"$f":"IF('1. Order'!J1417=\"\",\"\",'1. Order'!J1417)","v":""},{"$f":"IF('1. Order'!K1417=\"\",\"\",'1. Order'!K1417)","v":""},{"$f":"IF('1. Order'!L1417=\"\",\"\",'1. Order'!L1417)","v":""},{"$f":"IF('1. Order'!N1417=\"\",\"\",'1. Order'!N1417)","v":""},null,null,{"$f":"'1. Order'!AV1417","v":0},{"$f":"IF('1. Order'!AI1417=\"\",\"\",'1. Order'!AI1417)","v":""}]
[{"$f":"IF('1. Order'!B1418=\"\",\"\",'1. Order'!B1418)","v":""},{"$f":"IF('1. Order'!J1418=\"\",\"\",'1. Order'!J1418)","v":""},{"$f":"IF('1. Order'!K1418=\"\",\"\",'1. Order'!K1418)","v":""},{"$f":"IF('1. Order'!L1418=\"\",\"\",'1. Order'!L1418)","v":""},{"$f":"IF('1. Order'!N1418=\"\",\"\",'1. Order'!N1418)","v":""},null,null,{"$f":"'1. Order'!AV1418","v":0},{"$f":"IF('1. Order'!AI1418=\"\",\"\",'1. Order'!AI1418)","v":""}]
[{"$f":"IF('1. Order'!B1419=\"\",\"\",'1. Order'!B1419)","v":""},{"$f":"IF('1. Order'!J1419=\"\",\"\",'1. Order'!J1419)","v":""},{"$f":"IF('1. Order'!K1419=\"\",\"\",'1. Order'!K1419)","v":""},{"$f":"IF('1. Order'!L1419=\"\",\"\",'1. Order'!L1419)","v":""},{"$f":"IF('1. Order'!N1419=\"\",\"\",'1. Order'!N1419)","v":""},null,null,{"$f":"'1. Order'!AV1419","v":0},{"$f":"IF('1. Order'!AI1419=\"\",\"\",'1. Order'!AI1419)","v":""}]
[{"$f":"IF('1. Order'!B1420=\"\",\"\",'1. Order'!B1420)","v":""},{"$f":"IF('1. Order'!J1420=\"\",\"\",'1. Order'!J1420)","v":""},{"$f":"IF('1. Order'!K1420=\"\",\"\",'1. Order'!K1420)","v":""},{"$f":"IF('1. Order'!L1420=\"\",\"\",'1. Order'!L1420)","v":""},{"$f":"IF('1. Order'!N1420=\"\",\"\",'1. Order'!N1420)","v":""},null,null,{"$f":"'1. Order'!AV1420","v":0},{"$f":"IF('1. Order'!AI1420=\"\",\"\",'1. Order'!AI1420)","v":""}]
[{"$f":"IF('1. Order'!B1421=\"\",\"\",'1. Order'!B1421)","v":""},{"$f":"IF('1. Order'!J1421=\"\",\"\",'1. Order'!J1421)","v":""},{"$f":"IF('1. Order'!K1421=\"\",\"\",'1. Order'!K1421)","v":""},{"$f":"IF('1. Order'!L1421=\"\",\"\",'1. Order'!L1421)","v":""},{"$f":"IF('1. Order'!N1421=\"\",\"\",'1. Order'!N1421)","v":""},null,null,{"$f":"'1. Order'!AV1421","v":0},{"$f":"IF('1. Order'!AI1421=\"\",\"\",'1. Order'!AI1421)","v":""}]
[{"$f":"IF('1. Order'!B1422=\"\",\"\",'1. Order'!B1422)","v":""},{"$f":"IF('1. Order'!J1422=\"\",\"\",'1. Order'!J1422)","v":""},{"$f":"IF('1. Order'!K1422=\"\",\"\",'1. Order'!K1422)","v":""},{"$f":"IF('1. Order'!L1422=\"\",\"\",'1. Order'!L1422)","v":""},{"$f":"IF('1. Order'!N1422=\"\",\"\",'1. Order'!N1422)","v":""},null,null,{"$f":"'1. Order'!AV1422","v":0},{"$f":"IF('1. Order'!AI1422=\"\",\"\",'1. Order'!AI1422)","v":""}]
[{"$f":"IF('1. Order'!B1423=\"\",\"\",'1. Order'!B1423)","v":""},{"$f":"IF('1. Order'!J1423=\"\",\"\",'1. Order'!J1423)","v":""},{"$f":"IF('1. Order'!K1423=\"\",\"\",'1. Order'!K1423)","v":""},{"$f":"IF('1. Order'!L1423=\"\",\"\",'1. Order'!L1423)","v":""},{"$f":"IF('1. Order'!N1423=\"\",\"\",'1. Order'!N1423)","v":""},null,null,{"$f":"'1. Order'!AV1423","v":0},{"$f":"IF('1. Order'!AI1423=\"\",\"\",'1. Order'!AI1423)","v":""}]
[{"$f":"IF('1. Order'!B1424=\"\",\"\",'1. Order'!B1424)","v":""},{"$f":"IF('1. Order'!J1424=\"\",\"\",'1. Order'!J1424)","v":""},{"$f":"IF('1. Order'!K1424=\"\",\"\",'1. Order'!K1424)","v":""},{"$f":"IF('1. Order'!L1424=\"\",\"\",'1. Order'!L1424)","v":""},{"$f":"IF('1. Order'!N1424=\"\",\"\",'1. Order'!N1424)","v":""},null,null,{"$f":"'1. Order'!AV1424","v":0},{"$f":"IF('1. Order'!AI1424=\"\",\"\",'1. Order'!AI1424)","v":""}]
[{"$f":"IF('1. Order'!B1425=\"\",\"\",'1. Order'!B1425)","v":""},{"$f":"IF('1. Order'!J1425=\"\",\"\",'1. Order'!J1425)","v":""},{"$f":"IF('1. Order'!K1425=\"\",\"\",'1. Order'!K1425)","v":""},{"$f":"IF('1. Order'!L1425=\"\",\"\",'1. Order'!L1425)","v":""},{"$f":"IF('1. Order'!N1425=\"\",\"\",'1. Order'!N1425)","v":""},null,null,{"$f":"'1. Order'!AV1425","v":0},{"$f":"IF('1. Order'!AI1425=\"\",\"\",'1. Order'!AI1425)","v":""}]
[{"$f":"IF('1. Order'!B1426=\"\",\"\",'1. Order'!B1426)","v":""},{"$f":"IF('1. Order'!J1426=\"\",\"\",'1. Order'!J1426)","v":""},{"$f":"IF('1. Order'!K1426=\"\",\"\",'1. Order'!K1426)","v":""},{"$f":"IF('1. Order'!L1426=\"\",\"\",'1. Order'!L1426)","v":""},{"$f":"IF('1. Order'!N1426=\"\",\"\",'1. Order'!N1426)","v":""},null,null,{"$f":"'1. Order'!AV1426","v":0},{"$f":"IF('1. Order'!AI1426=\"\",\"\",'1. Order'!AI1426)","v":""}]
[{"$f":"IF('1. Order'!B1427=\"\",\"\",'1. Order'!B1427)","v":""},{"$f":"IF('1. Order'!J1427=\"\",\"\",'1. Order'!J1427)","v":""},{"$f":"IF('1. Order'!K1427=\"\",\"\",'1. Order'!K1427)","v":""},{"$f":"IF('1. Order'!L1427=\"\",\"\",'1. Order'!L1427)","v":""},{"$f":"IF('1. Order'!N1427=\"\",\"\",'1. Order'!N1427)","v":""},null,null,{"$f":"'1. Order'!AV1427","v":0},{"$f":"IF('1. Order'!AI1427=\"\",\"\",'1. Order'!AI1427)","v":""}]
[{"$f":"IF('1. Order'!B1428=\"\",\"\",'1. Order'!B1428)","v":""},{"$f":"IF('1. Order'!J1428=\"\",\"\",'1. Order'!J1428)","v":""},{"$f":"IF('1. Order'!K1428=\"\",\"\",'1. Order'!K1428)","v":""},{"$f":"IF('1. Order'!L1428=\"\",\"\",'1. Order'!L1428)","v":""},{"$f":"IF('1. Order'!N1428=\"\",\"\",'1. Order'!N1428)","v":""},null,null,{"$f":"'1. Order'!AV1428","v":0},{"$f":"IF('1. Order'!AI1428=\"\",\"\",'1. Order'!AI1428)","v":""}]
[{"$f":"IF('1. Order'!B1429=\"\",\"\",'1. Order'!B1429)","v":""},{"$f":"IF('1. Order'!J1429=\"\",\"\",'1. Order'!J1429)","v":""},{"$f":"IF('1. Order'!K1429=\"\",\"\",'1. Order'!K1429)","v":""},{"$f":"IF('1. Order'!L1429=\"\",\"\",'1. Order'!L1429)","v":""},{"$f":"IF('1. Order'!N1429=\"\",\"\",'1. Order'!N1429)","v":""},null,null,{"$f":"'1. Order'!AV1429","v":0},{"$f":"IF('1. Order'!AI1429=\"\",\"\",'1. Order'!AI1429)","v":""}]
[{"$f":"IF('1. Order'!B1430=\"\",\"\",'1. Order'!B1430)","v":""},{"$f":"IF('1. Order'!J1430=\"\",\"\",'1. Order'!J1430)","v":""},{"$f":"IF('1. Order'!K1430=\"\",\"\",'1. Order'!K1430)","v":""},{"$f":"IF('1. Order'!L1430=\"\",\"\",'1. Order'!L1430)","v":""},{"$f":"IF('1. Order'!N1430=\"\",\"\",'1. Order'!N1430)","v":""},null,null,{"$f":"'1. Order'!AV1430","v":0},{"$f":"IF('1. Order'!AI1430=\"\",\"\",'1. Order'!AI1430)","v":""}]
[{"$f":"IF('1. Order'!B1431=\"\",\"\",'1. Order'!B1431)","v":""},{"$f":"IF('1. Order'!J1431=\"\",\"\",'1. Order'!J1431)","v":""},{"$f":"IF('1. Order'!K1431=\"\",\"\",'1. Order'!K1431)","v":""},{"$f":"IF('1. Order'!L1431=\"\",\"\",'1. Order'!L1431)","v":""},{"$f":"IF('1. Order'!N1431=\"\",\"\",'1. Order'!N1431)","v":""},null,null,{"$f":"'1. Order'!AV1431","v":0},{"$f":"IF('1. Order'!AI1431=\"\",\"\",'1. Order'!AI1431)","v":""}]
[{"$f":"IF('1. Order'!B1432=\"\",\"\",'1. Order'!B1432)","v":""},{"$f":"IF('1. Order'!J1432=\"\",\"\",'1. Order'!J1432)","v":""},{"$f":"IF('1. Order'!K1432=\"\",\"\",'1. Order'!K1432)","v":""},{"$f":"IF('1. Order'!L1432=\"\",\"\",'1. Order'!L1432)","v":""},{"$f":"IF('1. Order'!N1432=\"\",\"\",'1. Order'!N1432)","v":""},null,null,{"$f":"'1. Order'!AV1432","v":0},{"$f":"IF('1. Order'!AI1432=\"\",\"\",'1. Order'!AI1432)","v":""}]
[{"$f":"IF('1. Order'!B1433=\"\",\"\",'1. Order'!B1433)","v":""},{"$f":"IF('1. Order'!J1433=\"\",\"\",'1. Order'!J1433)","v":""},{"$f":"IF('1. Order'!K1433=\"\",\"\",'1. Order'!K1433)","v":""},{"$f":"IF('1. Order'!L1433=\"\",\"\",'1. Order'!L1433)","v":""},{"$f":"IF('1. Order'!N1433=\"\",\"\",'1. Order'!N1433)","v":""},null,null,{"$f":"'1. Order'!AV1433","v":0},{"$f":"IF('1. Order'!AI1433=\"\",\"\",'1. Order'!AI1433)","v":""}]
[{"$f":"IF('1. Order'!B1434=\"\",\"\",'1. Order'!B1434)","v":""},{"$f":"IF('1. Order'!J1434=\"\",\"\",'1. Order'!J1434)","v":""},{"$f":"IF('1. Order'!K1434=\"\",\"\",'1. Order'!K1434)","v":""},{"$f":"IF('1. Order'!L1434=\"\",\"\",'1. Order'!L1434)","v":""},{"$f":"IF('1. Order'!N1434=\"\",\"\",'1. Order'!N1434)","v":""},null,null,{"$f":"'1. Order'!AV1434","v":0},{"$f":"IF('1. Order'!AI1434=\"\",\"\",'1. Order'!AI1434)","v":""}]
[{"$f":"IF('1. Order'!B1435=\"\",\"\",'1. Order'!B1435)","v":""},{"$f":"IF('1. Order'!J1435=\"\",\"\",'1. Order'!J1435)","v":""},{"$f":"IF('1. Order'!K1435=\"\",\"\",'1. Order'!K1435)","v":""},{"$f":"IF('1. Order'!L1435=\"\",\"\",'1. Order'!L1435)","v":""},{"$f":"IF('1. Order'!N1435=\"\",\"\",'1. Order'!N1435)","v":""},null,null,{"$f":"'1. Order'!AV1435","v":0},{"$f":"IF('1. Order'!AI1435=\"\",\"\",'1. Order'!AI1435)","v":""}]
[{"$f":"IF('1. Order'!B1436=\"\",\"\",'1. Order'!B1436)","v":""},{"$f":"IF('1. Order'!J1436=\"\",\"\",'1. Order'!J1436)","v":""},{"$f":"IF('1. Order'!K1436=\"\",\"\",'1. Order'!K1436)","v":""},{"$f":"IF('1. Order'!L1436=\"\",\"\",'1. Order'!L1436)","v":""},{"$f":"IF('1. Order'!N1436=\"\",\"\",'1. Order'!N1436)","v":""},null,null,{"$f":"'1. Order'!AV1436","v":0},{"$f":"IF('1. Order'!AI1436=\"\",\"\",'1. Order'!AI1436)","v":""}]
[{"$f":"IF('1. Order'!B1437=\"\",\"\",'1. Order'!B1437)","v":""},{"$f":"IF('1. Order'!J1437=\"\",\"\",'1. Order'!J1437)","v":""},{"$f":"IF('1. Order'!K1437=\"\",\"\",'1. Order'!K1437)","v":""},{"$f":"IF('1. Order'!L1437=\"\",\"\",'1. Order'!L1437)","v":""},{"$f":"IF('1. Order'!N1437=\"\",\"\",'1. Order'!N1437)","v":""},null,null,{"$f":"'1. Order'!AV1437","v":0},{"$f":"IF('1. Order'!AI1437=\"\",\"\",'1. Order'!AI1437)","v":""}]
[{"$f":"IF('1. Order'!B1438=\"\",\"\",'1. Order'!B1438)","v":""},{"$f":"IF('1. Order'!J1438=\"\",\"\",'1. Order'!J1438)","v":""},{"$f":"IF('1. Order'!K1438=\"\",\"\",'1. Order'!K1438)","v":""},{"$f":"IF('1. Order'!L1438=\"\",\"\",'1. Order'!L1438)","v":""},{"$f":"IF('1. Order'!N1438=\"\",\"\",'1. Order'!N1438)","v":""},null,null,{"$f":"'1. Order'!AV1438","v":0},{"$f":"IF('1. Order'!AI1438=\"\",\"\",'1. Order'!AI1438)","v":""}]
[{"$f":"IF('1. Order'!B1439=\"\",\"\",'1. Order'!B1439)","v":""},{"$f":"IF('1. Order'!J1439=\"\",\"\",'1. Order'!J1439)","v":""},{"$f":"IF('1. Order'!K1439=\"\",\"\",'1. Order'!K1439)","v":""},{"$f":"IF('1. Order'!L1439=\"\",\"\",'1. Order'!L1439)","v":""},{"$f":"IF('1. Order'!N1439=\"\",\"\",'1. Order'!N1439)","v":""},null,null,{"$f":"'1. Order'!AV1439","v":0},{"$f":"IF('1. Order'!AI1439=\"\",\"\",'1. Order'!AI1439)","v":""}]
[{"$f":"IF('1. Order'!B1440=\"\",\"\",'1. Order'!B1440)","v":""},{"$f":"IF('1. Order'!J1440=\"\",\"\",'1. Order'!J1440)","v":""},{"$f":"IF('1. Order'!K1440=\"\",\"\",'1. Order'!K1440)","v":""},{"$f":"IF('1. Order'!L1440=\"\",\"\",'1. Order'!L1440)","v":""},{"$f":"IF('1. Order'!N1440=\"\",\"\",'1. Order'!N1440)","v":""},null,null,{"$f":"'1. Order'!AV1440","v":0},{"$f":"IF('1. Order'!AI1440=\"\",\"\",'1. Order'!AI1440)","v":""}]
[{"$f":"IF('1. Order'!B1441=\"\",\"\",'1. Order'!B1441)","v":""},{"$f":"IF('1. Order'!J1441=\"\",\"\",'1. Order'!J1441)","v":""},{"$f":"IF('1. Order'!K1441=\"\",\"\",'1. Order'!K1441)","v":""},{"$f":"IF('1. Order'!L1441=\"\",\"\",'1. Order'!L1441)","v":""},{"$f":"IF('1. Order'!N1441=\"\",\"\",'1. Order'!N1441)","v":""},null,null,{"$f":"'1. Order'!AV1441","v":0},{"$f":"IF('1. Order'!AI1441=\"\",\"\",'1. Order'!AI1441)","v":""}]
[{"$f":"IF('1. Order'!B1442=\"\",\"\",'1. Order'!B1442)","v":""},{"$f":"IF('1. Order'!J1442=\"\",\"\",'1. Order'!J1442)","v":""},{"$f":"IF('1. Order'!K1442=\"\",\"\",'1. Order'!K1442)","v":""},{"$f":"IF('1. Order'!L1442=\"\",\"\",'1. Order'!L1442)","v":""},{"$f":"IF('1. Order'!N1442=\"\",\"\",'1. Order'!N1442)","v":""},null,null,{"$f":"'1. Order'!AV1442","v":0},{"$f":"IF('1. Order'!AI1442=\"\",\"\",'1. Order'!AI1442)","v":""}]
[{"$f":"IF('1. Order'!B1443=\"\",\"\",'1. Order'!B1443)","v":""},{"$f":"IF('1. Order'!J1443=\"\",\"\",'1. Order'!J1443)","v":""},{"$f":"IF('1. Order'!K1443=\"\",\"\",'1. Order'!K1443)","v":""},{"$f":"IF('1. Order'!L1443=\"\",\"\",'1. Order'!L1443)","v":""},{"$f":"IF('1. Order'!N1443=\"\",\"\",'1. Order'!N1443)","v":""},null,null,{"$f":"'1. Order'!AV1443","v":0},{"$f":"IF('1. Order'!AI1443=\"\",\"\",'1. Order'!AI1443)","v":""}]
[{"$f":"IF('1. Order'!B1444=\"\",\"\",'1. Order'!B1444)","v":""},{"$f":"IF('1. Order'!J1444=\"\",\"\",'1. Order'!J1444)","v":""},{"$f":"IF('1. Order'!K1444=\"\",\"\",'1. Order'!K1444)","v":""},{"$f":"IF('1. Order'!L1444=\"\",\"\",'1. Order'!L1444)","v":""},{"$f":"IF('1. Order'!N1444=\"\",\"\",'1. Order'!N1444)","v":""},null,null,{"$f":"'1. Order'!AV1444","v":0},{"$f":"IF('1. Order'!AI1444=\"\",\"\",'1. Order'!AI1444)","v":""}]
[{"$f":"IF('1. Order'!B1445=\"\",\"\",'1. Order'!B1445)","v":""},{"$f":"IF('1. Order'!J1445=\"\",\"\",'1. Order'!J1445)","v":""},{"$f":"IF('1. Order'!K1445=\"\",\"\",'1. Order'!K1445)","v":""},{"$f":"IF('1. Order'!L1445=\"\",\"\",'1. Order'!L1445)","v":""},{"$f":"IF('1. Order'!N1445=\"\",\"\",'1. Order'!N1445)","v":""},null,null,{"$f":"'1. Order'!AV1445","v":0},{"$f":"IF('1. Order'!AI1445=\"\",\"\",'1. Order'!AI1445)","v":""}]
[{"$f":"IF('1. Order'!B1446=\"\",\"\",'1. Order'!B1446)","v":""},{"$f":"IF('1. Order'!J1446=\"\",\"\",'1. Order'!J1446)","v":""},{"$f":"IF('1. Order'!K1446=\"\",\"\",'1. Order'!K1446)","v":""},{"$f":"IF('1. Order'!L1446=\"\",\"\",'1. Order'!L1446)","v":""},{"$f":"IF('1. Order'!N1446=\"\",\"\",'1. Order'!N1446)","v":""},null,null,{"$f":"'1. Order'!AV1446","v":0},{"$f":"IF('1. Order'!AI1446=\"\",\"\",'1. Order'!AI1446)","v":""}]
[{"$f":"IF('1. Order'!B1447=\"\",\"\",'1. Order'!B1447)","v":""},{"$f":"IF('1. Order'!J1447=\"\",\"\",'1. Order'!J1447)","v":""},{"$f":"IF('1. Order'!K1447=\"\",\"\",'1. Order'!K1447)","v":""},{"$f":"IF('1. Order'!L1447=\"\",\"\",'1. Order'!L1447)","v":""},{"$f":"IF('1. Order'!N1447=\"\",\"\",'1. Order'!N1447)","v":""},null,null,{"$f":"'1. Order'!AV1447","v":0},{"$f":"IF('1. Order'!AI1447=\"\",\"\",'1. Order'!AI1447)","v":""}]
[{"$f":"IF('1. Order'!B1448=\"\",\"\",'1. Order'!B1448)","v":""},{"$f":"IF('1. Order'!J1448=\"\",\"\",'1. Order'!J1448)","v":""},{"$f":"IF('1. Order'!K1448=\"\",\"\",'1. Order'!K1448)","v":""},{"$f":"IF('1. Order'!L1448=\"\",\"\",'1. Order'!L1448)","v":""},{"$f":"IF('1. Order'!N1448=\"\",\"\",'1. Order'!N1448)","v":""},null,null,{"$f":"'1. Order'!AV1448","v":0},{"$f":"IF('1. Order'!AI1448=\"\",\"\",'1. Order'!AI1448)","v":""}]
[{"$f":"IF('1. Order'!B1449=\"\",\"\",'1. Order'!B1449)","v":""},{"$f":"IF('1. Order'!J1449=\"\",\"\",'1. Order'!J1449)","v":""},{"$f":"IF('1. Order'!K1449=\"\",\"\",'1. Order'!K1449)","v":""},{"$f":"IF('1. Order'!L1449=\"\",\"\",'1. Order'!L1449)","v":""},{"$f":"IF('1. Order'!N1449=\"\",\"\",'1. Order'!N1449)","v":""},null,null,{"$f":"'1. Order'!AV1449","v":0},{"$f":"IF('1. Order'!AI1449=\"\",\"\",'1. Order'!AI1449)","v":""}]
[{"$f":"IF('1. Order'!B1450=\"\",\"\",'1. Order'!B1450)","v":""},{"$f":"IF('1. Order'!J1450=\"\",\"\",'1. Order'!J1450)","v":""},{"$f":"IF('1. Order'!K1450=\"\",\"\",'1. Order'!K1450)","v":""},{"$f":"IF('1. Order'!L1450=\"\",\"\",'1. Order'!L1450)","v":""},{"$f":"IF('1. Order'!N1450=\"\",\"\",'1. Order'!N1450)","v":""},null,null,{"$f":"'1. Order'!AV1450","v":0},{"$f":"IF('1. Order'!AI1450=\"\",\"\",'1. Order'!AI1450)","v":""}]
[{"$f":"IF('1. Order'!B1451=\"\",\"\",'1. Order'!B1451)","v":""},{"$f":"IF('1. Order'!J1451=\"\",\"\",'1. Order'!J1451)","v":""},{"$f":"IF('1. Order'!K1451=\"\",\"\",'1. Order'!K1451)","v":""},{"$f":"IF('1. Order'!L1451=\"\",\"\",'1. Order'!L1451)","v":""},{"$f":"IF('1. Order'!N1451=\"\",\"\",'1. Order'!N1451)","v":""},null,null,{"$f":"'1. Order'!AV1451","v":0},{"$f":"IF('1. Order'!AI1451=\"\",\"\",'1. Order'!AI1451)","v":""}]
[{"$f":"IF('1. Order'!B1452=\"\",\"\",'1. Order'!B1452)","v":""},{"$f":"IF('1. Order'!J1452=\"\",\"\",'1. Order'!J1452)","v":""},{"$f":"IF('1. Order'!K1452=\"\",\"\",'1. Order'!K1452)","v":""},{"$f":"IF('1. Order'!L1452=\"\",\"\",'1. Order'!L1452)","v":""},{"$f":"IF('1. Order'!N1452=\"\",\"\",'1. Order'!N1452)","v":""},null,null,{"$f":"'1. Order'!AV1452","v":0},{"$f":"IF('1. Order'!AI1452=\"\",\"\",'1. Order'!AI1452)","v":""}]
[{"$f":"IF('1. Order'!B1453=\"\",\"\",'1. Order'!B1453)","v":""},{"$f":"IF('1. Order'!J1453=\"\",\"\",'1. Order'!J1453)","v":""},{"$f":"IF('1. Order'!K1453=\"\",\"\",'1. Order'!K1453)","v":""},{"$f":"IF('1. Order'!L1453=\"\",\"\",'1. Order'!L1453)","v":""},{"$f":"IF('1. Order'!N1453=\"\",\"\",'1. Order'!N1453)","v":""},null,null,{"$f":"'1. Order'!AV1453","v":0},{"$f":"IF('1. Order'!AI1453=\"\",\"\",'1. Order'!AI1453)","v":""}]
[{"$f":"IF('1. Order'!B1454=\"\",\"\",'1. Order'!B1454)","v":""},{"$f":"IF('1. Order'!J1454=\"\",\"\",'1. Order'!J1454)","v":""},{"$f":"IF('1. Order'!K1454=\"\",\"\",'1. Order'!K1454)","v":""},{"$f":"IF('1. Order'!L1454=\"\",\"\",'1. Order'!L1454)","v":""},{"$f":"IF('1. Order'!N1454=\"\",\"\",'1. Order'!N1454)","v":""},null,null,{"$f":"'1. Order'!AV1454","v":0},{"$f":"IF('1. Order'!AI1454=\"\",\"\",'1. Order'!AI1454)","v":""}]
[{"$f":"IF('1. Order'!B1455=\"\",\"\",'1. Order'!B1455)","v":""},{"$f":"IF('1. Order'!J1455=\"\",\"\",'1. Order'!J1455)","v":""},{"$f":"IF('1. Order'!K1455=\"\",\"\",'1. Order'!K1455)","v":""},{"$f":"IF('1. Order'!L1455=\"\",\"\",'1. Order'!L1455)","v":""},{"$f":"IF('1. Order'!N1455=\"\",\"\",'1. Order'!N1455)","v":""},null,null,{"$f":"'1. Order'!AV1455","v":0},{"$f":"IF('1. Order'!AI1455=\"\",\"\",'1. Order'!AI1455)","v":""}]
[{"$f":"IF('1. Order'!B1456=\"\",\"\",'1. Order'!B1456)","v":""},{"$f":"IF('1. Order'!J1456=\"\",\"\",'1. Order'!J1456)","v":""},{"$f":"IF('1. Order'!K1456=\"\",\"\",'1. Order'!K1456)","v":""},{"$f":"IF('1. Order'!L1456=\"\",\"\",'1. Order'!L1456)","v":""},{"$f":"IF('1. Order'!N1456=\"\",\"\",'1. Order'!N1456)","v":""},null,null,{"$f":"'1. Order'!AV1456","v":0},{"$f":"IF('1. Order'!AI1456=\"\",\"\",'1. Order'!AI1456)","v":""}]
[{"$f":"IF('1. Order'!B1457=\"\",\"\",'1. Order'!B1457)","v":""},{"$f":"IF('1. Order'!J1457=\"\",\"\",'1. Order'!J1457)","v":""},{"$f":"IF('1. Order'!K1457=\"\",\"\",'1. Order'!K1457)","v":""},{"$f":"IF('1. Order'!L1457=\"\",\"\",'1. Order'!L1457)","v":""},{"$f":"IF('1. Order'!N1457=\"\",\"\",'1. Order'!N1457)","v":""},null,null,{"$f":"'1. Order'!AV1457","v":0},{"$f":"IF('1. Order'!AI1457=\"\",\"\",'1. Order'!AI1457)","v":""}]
[{"$f":"IF('1. Order'!B1458=\"\",\"\",'1. Order'!B1458)","v":""},{"$f":"IF('1. Order'!J1458=\"\",\"\",'1. Order'!J1458)","v":""},{"$f":"IF('1. Order'!K1458=\"\",\"\",'1. Order'!K1458)","v":""},{"$f":"IF('1. Order'!L1458=\"\",\"\",'1. Order'!L1458)","v":""},{"$f":"IF('1. Order'!N1458=\"\",\"\",'1. Order'!N1458)","v":""},null,null,{"$f":"'1. Order'!AV1458","v":0},{"$f":"IF('1. Order'!AI1458=\"\",\"\",'1. Order'!AI1458)","v":""}]
[{"$f":"IF('1. Order'!B1459=\"\",\"\",'1. Order'!B1459)","v":""},{"$f":"IF('1. Order'!J1459=\"\",\"\",'1. Order'!J1459)","v":""},{"$f":"IF('1. Order'!K1459=\"\",\"\",'1. Order'!K1459)","v":""},{"$f":"IF('1. Order'!L1459=\"\",\"\",'1. Order'!L1459)","v":""},{"$f":"IF('1. Order'!N1459=\"\",\"\",'1. Order'!N1459)","v":""},null,null,{"$f":"'1. Order'!AV1459","v":0},{"$f":"IF('1. Order'!AI1459=\"\",\"\",'1. Order'!AI1459)","v":""}]
[{"$f":"IF('1. Order'!B1460=\"\",\"\",'1. Order'!B1460)","v":""},{"$f":"IF('1. Order'!J1460=\"\",\"\",'1. Order'!J1460)","v":""},{"$f":"IF('1. Order'!K1460=\"\",\"\",'1. Order'!K1460)","v":""},{"$f":"IF('1. Order'!L1460=\"\",\"\",'1. Order'!L1460)","v":""},{"$f":"IF('1. Order'!N1460=\"\",\"\",'1. Order'!N1460)","v":""},null,null,{"$f":"'1. Order'!AV1460","v":0},{"$f":"IF('1. Order'!AI1460=\"\",\"\",'1. Order'!AI1460)","v":""}]
[{"$f":"IF('1. Order'!B1461=\"\",\"\",'1. Order'!B1461)","v":""},{"$f":"IF('1. Order'!J1461=\"\",\"\",'1. Order'!J1461)","v":""},{"$f":"IF('1. Order'!K1461=\"\",\"\",'1. Order'!K1461)","v":""},{"$f":"IF('1. Order'!L1461=\"\",\"\",'1. Order'!L1461)","v":""},{"$f":"IF('1. Order'!N1461=\"\",\"\",'1. Order'!N1461)","v":""},null,null,{"$f":"'1. Order'!AV1461","v":0},{"$f":"IF('1. Order'!AI1461=\"\",\"\",'1. Order'!AI1461)","v":""}]
[{"$f":"IF('1. Order'!B1462=\"\",\"\",'1. Order'!B1462)","v":""},{"$f":"IF('1. Order'!J1462=\"\",\"\",'1. Order'!J1462)","v":""},{"$f":"IF('1. Order'!K1462=\"\",\"\",'1. Order'!K1462)","v":""},{"$f":"IF('1. Order'!L1462=\"\",\"\",'1. Order'!L1462)","v":""},{"$f":"IF('1. Order'!N1462=\"\",\"\",'1. Order'!N1462)","v":""},null,null,{"$f":"'1. Order'!AV1462","v":0},{"$f":"IF('1. Order'!AI1462=\"\",\"\",'1. Order'!AI1462)","v":""}]
[{"$f":"IF('1. Order'!B1463=\"\",\"\",'1. Order'!B1463)","v":""},{"$f":"IF('1. Order'!J1463=\"\",\"\",'1. Order'!J1463)","v":""},{"$f":"IF('1. Order'!K1463=\"\",\"\",'1. Order'!K1463)","v":""},{"$f":"IF('1. Order'!L1463=\"\",\"\",'1. Order'!L1463)","v":""},{"$f":"IF('1. Order'!N1463=\"\",\"\",'1. Order'!N1463)","v":""},null,null,{"$f":"'1. Order'!AV1463","v":0},{"$f":"IF('1. Order'!AI1463=\"\",\"\",'1. Order'!AI1463)","v":""}]
[{"$f":"IF('1. Order'!B1464=\"\",\"\",'1. Order'!B1464)","v":""},{"$f":"IF('1. Order'!J1464=\"\",\"\",'1. Order'!J1464)","v":""},{"$f":"IF('1. Order'!K1464=\"\",\"\",'1. Order'!K1464)","v":""},{"$f":"IF('1. Order'!L1464=\"\",\"\",'1. Order'!L1464)","v":""},{"$f":"IF('1. Order'!N1464=\"\",\"\",'1. Order'!N1464)","v":""},null,null,{"$f":"'1. Order'!AV1464","v":0},{"$f":"IF('1. Order'!AI1464=\"\",\"\",'1. Order'!AI1464)","v":""}]
[{"$f":"IF('1. Order'!B1465=\"\",\"\",'1. Order'!B1465)","v":""},{"$f":"IF('1. Order'!J1465=\"\",\"\",'1. Order'!J1465)","v":""},{"$f":"IF('1. Order'!K1465=\"\",\"\",'1. Order'!K1465)","v":""},{"$f":"IF('1. Order'!L1465=\"\",\"\",'1. Order'!L1465)","v":""},{"$f":"IF('1. Order'!N1465=\"\",\"\",'1. Order'!N1465)","v":""},null,null,{"$f":"'1. Order'!AV1465","v":0},{"$f":"IF('1. Order'!AI1465=\"\",\"\",'1. Order'!AI1465)","v":""}]
[{"$f":"IF('1. Order'!B1466=\"\",\"\",'1. Order'!B1466)","v":""},{"$f":"IF('1. Order'!J1466=\"\",\"\",'1. Order'!J1466)","v":""},{"$f":"IF('1. Order'!K1466=\"\",\"\",'1. Order'!K1466)","v":""},{"$f":"IF('1. Order'!L1466=\"\",\"\",'1. Order'!L1466)","v":""},{"$f":"IF('1. Order'!N1466=\"\",\"\",'1. Order'!N1466)","v":""},null,null,{"$f":"'1. Order'!AV1466","v":0},{"$f":"IF('1. Order'!AI1466=\"\",\"\",'1. Order'!AI1466)","v":""}]
[{"$f":"IF('1. Order'!B1467=\"\",\"\",'1. Order'!B1467)","v":""},{"$f":"IF('1. Order'!J1467=\"\",\"\",'1. Order'!J1467)","v":""},{"$f":"IF('1. Order'!K1467=\"\",\"\",'1. Order'!K1467)","v":""},{"$f":"IF('1. Order'!L1467=\"\",\"\",'1. Order'!L1467)","v":""},{"$f":"IF('1. Order'!N1467=\"\",\"\",'1. Order'!N1467)","v":""},null,null,{"$f":"'1. Order'!AV1467","v":0},{"$f":"IF('1. Order'!AI1467=\"\",\"\",'1. Order'!AI1467)","v":""}]
[{"$f":"IF('1. Order'!B1468=\"\",\"\",'1. Order'!B1468)","v":""},{"$f":"IF('1. Order'!J1468=\"\",\"\",'1. Order'!J1468)","v":""},{"$f":"IF('1. Order'!K1468=\"\",\"\",'1. Order'!K1468)","v":""},{"$f":"IF('1. Order'!L1468=\"\",\"\",'1. Order'!L1468)","v":""},{"$f":"IF('1. Order'!N1468=\"\",\"\",'1. Order'!N1468)","v":""},null,null,{"$f":"'1. Order'!AV1468","v":0},{"$f":"IF('1. Order'!AI1468=\"\",\"\",'1. Order'!AI1468)","v":""}]
[{"$f":"IF('1. Order'!B1469=\"\",\"\",'1. Order'!B1469)","v":""},{"$f":"IF('1. Order'!J1469=\"\",\"\",'1. Order'!J1469)","v":""},{"$f":"IF('1. Order'!K1469=\"\",\"\",'1. Order'!K1469)","v":""},{"$f":"IF('1. Order'!L1469=\"\",\"\",'1. Order'!L1469)","v":""},{"$f":"IF('1. Order'!N1469=\"\",\"\",'1. Order'!N1469)","v":""},null,null,{"$f":"'1. Order'!AV1469","v":0},{"$f":"IF('1. Order'!AI1469=\"\",\"\",'1. Order'!AI1469)","v":""}]
[{"$f":"IF('1. Order'!B1470=\"\",\"\",'1. Order'!B1470)","v":""},{"$f":"IF('1. Order'!J1470=\"\",\"\",'1. Order'!J1470)","v":""},{"$f":"IF('1. Order'!K1470=\"\",\"\",'1. Order'!K1470)","v":""},{"$f":"IF('1. Order'!L1470=\"\",\"\",'1. Order'!L1470)","v":""},{"$f":"IF('1. Order'!N1470=\"\",\"\",'1. Order'!N1470)","v":""},null,null,{"$f":"'1. Order'!AV1470","v":0},{"$f":"IF('1. Order'!AI1470=\"\",\"\",'1. Order'!AI1470)","v":""}]
[{"$f":"IF('1. Order'!B1471=\"\",\"\",'1. Order'!B1471)","v":""},{"$f":"IF('1. Order'!J1471=\"\",\"\",'1. Order'!J1471)","v":""},{"$f":"IF('1. Order'!K1471=\"\",\"\",'1. Order'!K1471)","v":""},{"$f":"IF('1. Order'!L1471=\"\",\"\",'1. Order'!L1471)","v":""},{"$f":"IF('1. Order'!N1471=\"\",\"\",'1. Order'!N1471)","v":""},null,null,{"$f":"'1. Order'!AV1471","v":0},{"$f":"IF('1. Order'!AI1471=\"\",\"\",'1. Order'!AI1471)","v":""}]
[{"$f":"IF('1. Order'!B1472=\"\",\"\",'1. Order'!B1472)","v":""},{"$f":"IF('1. Order'!J1472=\"\",\"\",'1. Order'!J1472)","v":""},{"$f":"IF('1. Order'!K1472=\"\",\"\",'1. Order'!K1472)","v":""},{"$f":"IF('1. Order'!L1472=\"\",\"\",'1. Order'!L1472)","v":""},{"$f":"IF('1. Order'!N1472=\"\",\"\",'1. Order'!N1472)","v":""},null,null,{"$f":"'1. Order'!AV1472","v":0},{"$f":"IF('1. Order'!AI1472=\"\",\"\",'1. Order'!AI1472)","v":""}]
[{"$f":"IF('1. Order'!B1473=\"\",\"\",'1. Order'!B1473)","v":""},{"$f":"IF('1. Order'!J1473=\"\",\"\",'1. Order'!J1473)","v":""},{"$f":"IF('1. Order'!K1473=\"\",\"\",'1. Order'!K1473)","v":""},{"$f":"IF('1. Order'!L1473=\"\",\"\",'1. Order'!L1473)","v":""},{"$f":"IF('1. Order'!N1473=\"\",\"\",'1. Order'!N1473)","v":""},null,null,{"$f":"'1. Order'!AV1473","v":0},{"$f":"IF('1. Order'!AI1473=\"\",\"\",'1. Order'!AI1473)","v":""}]
[{"$f":"IF('1. Order'!B1474=\"\",\"\",'1. Order'!B1474)","v":""},{"$f":"IF('1. Order'!J1474=\"\",\"\",'1. Order'!J1474)","v":""},{"$f":"IF('1. Order'!K1474=\"\",\"\",'1. Order'!K1474)","v":""},{"$f":"IF('1. Order'!L1474=\"\",\"\",'1. Order'!L1474)","v":""},{"$f":"IF('1. Order'!N1474=\"\",\"\",'1. Order'!N1474)","v":""},null,null,{"$f":"'1. Order'!AV1474","v":0},{"$f":"IF('1. Order'!AI1474=\"\",\"\",'1. Order'!AI1474)","v":""}]
[{"$f":"IF('1. Order'!B1475=\"\",\"\",'1. Order'!B1475)","v":""},{"$f":"IF('1. Order'!J1475=\"\",\"\",'1. Order'!J1475)","v":""},{"$f":"IF('1. Order'!K1475=\"\",\"\",'1. Order'!K1475)","v":""},{"$f":"IF('1. Order'!L1475=\"\",\"\",'1. Order'!L1475)","v":""},{"$f":"IF('1. Order'!N1475=\"\",\"\",'1. Order'!N1475)","v":""},null,null,{"$f":"'1. Order'!AV1475","v":0},{"$f":"IF('1. Order'!AI1475=\"\",\"\",'1. Order'!AI1475)","v":""}]
[{"$f":"IF('1. Order'!B1476=\"\",\"\",'1. Order'!B1476)","v":""},{"$f":"IF('1. Order'!J1476=\"\",\"\",'1. Order'!J1476)","v":""},{"$f":"IF('1. Order'!K1476=\"\",\"\",'1. Order'!K1476)","v":""},{"$f":"IF('1. Order'!L1476=\"\",\"\",'1. Order'!L1476)","v":""},{"$f":"IF('1. Order'!N1476=\"\",\"\",'1. Order'!N1476)","v":""},null,null,{"$f":"'1. Order'!AV1476","v":0},{"$f":"IF('1. Order'!AI1476=\"\",\"\",'1. Order'!AI1476)","v":""}]
[{"$f":"IF('1. Order'!B1477=\"\",\"\",'1. Order'!B1477)","v":""},{"$f":"IF('1. Order'!J1477=\"\",\"\",'1. Order'!J1477)","v":""},{"$f":"IF('1. Order'!K1477=\"\",\"\",'1. Order'!K1477)","v":""},{"$f":"IF('1. Order'!L1477=\"\",\"\",'1. Order'!L1477)","v":""},{"$f":"IF('1. Order'!N1477=\"\",\"\",'1. Order'!N1477)","v":""},null,null,{"$f":"'1. Order'!AV1477","v":0},{"$f":"IF('1. Order'!AI1477=\"\",\"\",'1. Order'!AI1477)","v":""}]
[{"$f":"IF('1. Order'!B1478=\"\",\"\",'1. Order'!B1478)","v":""},{"$f":"IF('1. Order'!J1478=\"\",\"\",'1. Order'!J1478)","v":""},{"$f":"IF('1. Order'!K1478=\"\",\"\",'1. Order'!K1478)","v":""},{"$f":"IF('1. Order'!L1478=\"\",\"\",'1. Order'!L1478)","v":""},{"$f":"IF('1. Order'!N1478=\"\",\"\",'1. Order'!N1478)","v":""},null,null,{"$f":"'1. Order'!AV1478","v":0},{"$f":"IF('1. Order'!AI1478=\"\",\"\",'1. Order'!AI1478)","v":""}]
[{"$f":"IF('1. Order'!B1479=\"\",\"\",'1. Order'!B1479)","v":""},{"$f":"IF('1. Order'!J1479=\"\",\"\",'1. Order'!J1479)","v":""},{"$f":"IF('1. Order'!K1479=\"\",\"\",'1. Order'!K1479)","v":""},{"$f":"IF('1. Order'!L1479=\"\",\"\",'1. Order'!L1479)","v":""},{"$f":"IF('1. Order'!N1479=\"\",\"\",'1. Order'!N1479)","v":""},null,null,{"$f":"'1. Order'!AV1479","v":0},{"$f":"IF('1. Order'!AI1479=\"\",\"\",'1. Order'!AI1479)","v":""}]
[{"$f":"IF('1. Order'!B1480=\"\",\"\",'1. Order'!B1480)","v":""},{"$f":"IF('1. Order'!J1480=\"\",\"\",'1. Order'!J1480)","v":""},{"$f":"IF('1. Order'!K1480=\"\",\"\",'1. Order'!K1480)","v":""},{"$f":"IF('1. Order'!L1480=\"\",\"\",'1. Order'!L1480)","v":""},{"$f":"IF('1. Order'!N1480=\"\",\"\",'1. Order'!N1480)","v":""},null,null,{"$f":"'1. Order'!AV1480","v":0},{"$f":"IF('1. Order'!AI1480=\"\",\"\",'1. Order'!AI1480)","v":""}]
[{"$f":"IF('1. Order'!B1481=\"\",\"\",'1. Order'!B1481)","v":""},{"$f":"IF('1. Order'!J1481=\"\",\"\",'1. Order'!J1481)","v":""},{"$f":"IF('1. Order'!K1481=\"\",\"\",'1. Order'!K1481)","v":""},{"$f":"IF('1. Order'!L1481=\"\",\"\",'1. Order'!L1481)","v":""},{"$f":"IF('1. Order'!N1481=\"\",\"\",'1. Order'!N1481)","v":""},null,null,{"$f":"'1. Order'!AV1481","v":0},{"$f":"IF('1. Order'!AI1481=\"\",\"\",'1. Order'!AI1481)","v":""}]
[{"$f":"IF('1. Order'!B1482=\"\",\"\",'1. Order'!B1482)","v":""},{"$f":"IF('1. Order'!J1482=\"\",\"\",'1. Order'!J1482)","v":""},{"$f":"IF('1. Order'!K1482=\"\",\"\",'1. Order'!K1482)","v":""},{"$f":"IF('1. Order'!L1482=\"\",\"\",'1. Order'!L1482)","v":""},{"$f":"IF('1. Order'!N1482=\"\",\"\",'1. Order'!N1482)","v":""},null,null,{"$f":"'1. Order'!AV1482","v":0},{"$f":"IF('1. Order'!AI1482=\"\",\"\",'1. Order'!AI1482)","v":""}]
[{"$f":"IF('1. Order'!B1483=\"\",\"\",'1. Order'!B1483)","v":""},{"$f":"IF('1. Order'!J1483=\"\",\"\",'1. Order'!J1483)","v":""},{"$f":"IF('1. Order'!K1483=\"\",\"\",'1. Order'!K1483)","v":""},{"$f":"IF('1. Order'!L1483=\"\",\"\",'1. Order'!L1483)","v":""},{"$f":"IF('1. Order'!N1483=\"\",\"\",'1. Order'!N1483)","v":""},null,null,{"$f":"'1. Order'!AV1483","v":0},{"$f":"IF('1. Order'!AI1483=\"\",\"\",'1. Order'!AI1483)","v":""}]
[{"$f":"IF('1. Order'!B1484=\"\",\"\",'1. Order'!B1484)","v":""},{"$f":"IF('1. Order'!J1484=\"\",\"\",'1. Order'!J1484)","v":""},{"$f":"IF('1. Order'!K1484=\"\",\"\",'1. Order'!K1484)","v":""},{"$f":"IF('1. Order'!L1484=\"\",\"\",'1. Order'!L1484)","v":""},{"$f":"IF('1. Order'!N1484=\"\",\"\",'1. Order'!N1484)","v":""},null,null,{"$f":"'1. Order'!AV1484","v":0},{"$f":"IF('1. Order'!AI1484=\"\",\"\",'1. Order'!AI1484)","v":""}]
[{"$f":"IF('1. Order'!B1485=\"\",\"\",'1. Order'!B1485)","v":""},{"$f":"IF('1. Order'!J1485=\"\",\"\",'1. Order'!J1485)","v":""},{"$f":"IF('1. Order'!K1485=\"\",\"\",'1. Order'!K1485)","v":""},{"$f":"IF('1. Order'!L1485=\"\",\"\",'1. Order'!L1485)","v":""},{"$f":"IF('1. Order'!N1485=\"\",\"\",'1. Order'!N1485)","v":""},null,null,{"$f":"'1. Order'!AV1485","v":0},{"$f":"IF('1. Order'!AI1485=\"\",\"\",'1. Order'!AI1485)","v":""}]
[{"$f":"IF('1. Order'!B1486=\"\",\"\",'1. Order'!B1486)","v":""},{"$f":"IF('1. Order'!J1486=\"\",\"\",'1. Order'!J1486)","v":""},{"$f":"IF('1. Order'!K1486=\"\",\"\",'1. Order'!K1486)","v":""},{"$f":"IF('1. Order'!L1486=\"\",\"\",'1. Order'!L1486)","v":""},{"$f":"IF('1. Order'!N1486=\"\",\"\",'1. Order'!N1486)","v":""},null,null,{"$f":"'1. Order'!AV1486","v":0},{"$f":"IF('1. Order'!AI1486=\"\",\"\",'1. Order'!AI1486)","v":""}]
[{"$f":"IF('1. Order'!B1487=\"\",\"\",'1. Order'!B1487)","v":""},{"$f":"IF('1. Order'!J1487=\"\",\"\",'1. Order'!J1487)","v":""},{"$f":"IF('1. Order'!K1487=\"\",\"\",'1. Order'!K1487)","v":""},{"$f":"IF('1. Order'!L1487=\"\",\"\",'1. Order'!L1487)","v":""},{"$f":"IF('1. Order'!N1487=\"\",\"\",'1. Order'!N1487)","v":""},null,null,{"$f":"'1. Order'!AV1487","v":0},{"$f":"IF('1. Order'!AI1487=\"\",\"\",'1. Order'!AI1487)","v":""}]
[{"$f":"IF('1. Order'!B1488=\"\",\"\",'1. Order'!B1488)","v":""},{"$f":"IF('1. Order'!J1488=\"\",\"\",'1. Order'!J1488)","v":""},{"$f":"IF('1. Order'!K1488=\"\",\"\",'1. Order'!K1488)","v":""},{"$f":"IF('1. Order'!L1488=\"\",\"\",'1. Order'!L1488)","v":""},{"$f":"IF('1. Order'!N1488=\"\",\"\",'1. Order'!N1488)","v":""},null,null,{"$f":"'1. Order'!AV1488","v":0},{"$f":"IF('1. Order'!AI1488=\"\",\"\",'1. Order'!AI1488)","v":""}]
[{"$f":"IF('1. Order'!B1489=\"\",\"\",'1. Order'!B1489)","v":""},{"$f":"IF('1. Order'!J1489=\"\",\"\",'1. Order'!J1489)","v":""},{"$f":"IF('1. Order'!K1489=\"\",\"\",'1. Order'!K1489)","v":""},{"$f":"IF('1. Order'!L1489=\"\",\"\",'1. Order'!L1489)","v":""},{"$f":"IF('1. Order'!N1489=\"\",\"\",'1. Order'!N1489)","v":""},null,null,{"$f":"'1. Order'!AV1489","v":0},{"$f":"IF('1. Order'!AI1489=\"\",\"\",'1. Order'!AI1489)","v":""}]
[{"$f":"IF('1. Order'!B1490=\"\",\"\",'1. Order'!B1490)","v":""},{"$f":"IF('1. Order'!J1490=\"\",\"\",'1. Order'!J1490)","v":""},{"$f":"IF('1. Order'!K1490=\"\",\"\",'1. Order'!K1490)","v":""},{"$f":"IF('1. Order'!L1490=\"\",\"\",'1. Order'!L1490)","v":""},{"$f":"IF('1. Order'!N1490=\"\",\"\",'1. Order'!N1490)","v":""},null,null,{"$f":"'1. Order'!AV1490","v":0},{"$f":"IF('1. Order'!AI1490=\"\",\"\",'1. Order'!AI1490)","v":""}]
[{"$f":"IF('1. Order'!B1491=\"\",\"\",'1. Order'!B1491)","v":""},{"$f":"IF('1. Order'!J1491=\"\",\"\",'1. Order'!J1491)","v":""},{"$f":"IF('1. Order'!K1491=\"\",\"\",'1. Order'!K1491)","v":""},{"$f":"IF('1. Order'!L1491=\"\",\"\",'1. Order'!L1491)","v":""},{"$f":"IF('1. Order'!N1491=\"\",\"\",'1. Order'!N1491)","v":""},null,null,{"$f":"'1. Order'!AV1491","v":0},{"$f":"IF('1. Order'!AI1491=\"\",\"\",'1. Order'!AI1491)","v":""}]
[{"$f":"IF('1. Order'!B1492=\"\",\"\",'1. Order'!B1492)","v":""},{"$f":"IF('1. Order'!J1492=\"\",\"\",'1. Order'!J1492)","v":""},{"$f":"IF('1. Order'!K1492=\"\",\"\",'1. Order'!K1492)","v":""},{"$f":"IF('1. Order'!L1492=\"\",\"\",'1. Order'!L1492)","v":""},{"$f":"IF('1. Order'!N1492=\"\",\"\",'1. Order'!N1492)","v":""},null,null,{"$f":"'1. Order'!AV1492","v":0},{"$f":"IF('1. Order'!AI1492=\"\",\"\",'1. Order'!AI1492)","v":""}]
[{"$f":"IF('1. Order'!B1493=\"\",\"\",'1. Order'!B1493)","v":""},{"$f":"IF('1. Order'!J1493=\"\",\"\",'1. Order'!J1493)","v":""},{"$f":"IF('1. Order'!K1493=\"\",\"\",'1. Order'!K1493)","v":""},{"$f":"IF('1. Order'!L1493=\"\",\"\",'1. Order'!L1493)","v":""},{"$f":"IF('1. Order'!N1493=\"\",\"\",'1. Order'!N1493)","v":""},null,null,{"$f":"'1. Order'!AV1493","v":0},{"$f":"IF('1. Order'!AI1493=\"\",\"\",'1. Order'!AI1493)","v":""}]
[{"$f":"IF('1. Order'!B1494=\"\",\"\",'1. Order'!B1494)","v":""},{"$f":"IF('1. Order'!J1494=\"\",\"\",'1. Order'!J1494)","v":""},{"$f":"IF('1. Order'!K1494=\"\",\"\",'1. Order'!K1494)","v":""},{"$f":"IF('1. Order'!L1494=\"\",\"\",'1. Order'!L1494)","v":""},{"$f":"IF('1. Order'!N1494=\"\",\"\",'1. Order'!N1494)","v":""},null,null,{"$f":"'1. Order'!AV1494","v":0},{"$f":"IF('1. Order'!AI1494=\"\",\"\",'1. Order'!AI1494)","v":""}]
[{"$f":"IF('1. Order'!B1495=\"\",\"\",'1. Order'!B1495)","v":""},{"$f":"IF('1. Order'!J1495=\"\",\"\",'1. Order'!J1495)","v":""},{"$f":"IF('1. Order'!K1495=\"\",\"\",'1. Order'!K1495)","v":""},{"$f":"IF('1. Order'!L1495=\"\",\"\",'1. Order'!L1495)","v":""},{"$f":"IF('1. Order'!N1495=\"\",\"\",'1. Order'!N1495)","v":""},null,null,{"$f":"'1. Order'!AV1495","v":0},{"$f":"IF('1. Order'!AI1495=\"\",\"\",'1. Order'!AI1495)","v":""}]
[{"$f":"IF('1. Order'!B1496=\"\",\"\",'1. Order'!B1496)","v":""},{"$f":"IF('1. Order'!J1496=\"\",\"\",'1. Order'!J1496)","v":""},{"$f":"IF('1. Order'!K1496=\"\",\"\",'1. Order'!K1496)","v":""},{"$f":"IF('1. Order'!L1496=\"\",\"\",'1. Order'!L1496)","v":""},{"$f":"IF('1. Order'!N1496=\"\",\"\",'1. Order'!N1496)","v":""},null,null,{"$f":"'1. Order'!AV1496","v":0},{"$f":"IF('1. Order'!AI1496=\"\",\"\",'1. Order'!AI1496)","v":""}]
[{"$f":"IF('1. Order'!B1497=\"\",\"\",'1. Order'!B1497)","v":""},{"$f":"IF('1. Order'!J1497=\"\",\"\",'1. Order'!J1497)","v":""},{"$f":"IF('1. Order'!K1497=\"\",\"\",'1. Order'!K1497)","v":""},{"$f":"IF('1. Order'!L1497=\"\",\"\",'1. Order'!L1497)","v":""},{"$f":"IF('1. Order'!N1497=\"\",\"\",'1. Order'!N1497)","v":""},null,null,{"$f":"'1. Order'!AV1497","v":0},{"$f":"IF('1. Order'!AI1497=\"\",\"\",'1. Order'!AI1497)","v":""}]
[{"$f":"IF('1. Order'!B1498=\"\",\"\",'1. Order'!B1498)","v":""},{"$f":"IF('1. Order'!J1498=\"\",\"\",'1. Order'!J1498)","v":""},{"$f":"IF('1. Order'!K1498=\"\",\"\",'1. Order'!K1498)","v":""},{"$f":"IF('1. Order'!L1498=\"\",\"\",'1. Order'!L1498)","v":""},{"$f":"IF('1. Order'!N1498=\"\",\"\",'1. Order'!N1498)","v":""},null,null,{"$f":"'1. Order'!AV1498","v":0},{"$f":"IF('1. Order'!AI1498=\"\",\"\",'1. Order'!AI1498)","v":""}]
[{"$f":"IF('1. Order'!B1499=\"\",\"\",'1. Order'!B1499)","v":""},{"$f":"IF('1. Order'!J1499=\"\",\"\",'1. Order'!J1499)","v":""},{"$f":"IF('1. Order'!K1499=\"\",\"\",'1. Order'!K1499)","v":""},{"$f":"IF('1. Order'!L1499=\"\",\"\",'1. Order'!L1499)","v":""},{"$f":"IF('1. Order'!N1499=\"\",\"\",'1. Order'!N1499)","v":""},null,null,{"$f":"'1. Order'!AV1499","v":0},{"$f":"IF('1. Order'!AI1499=\"\",\"\",'1. Order'!AI1499)","v":""}]
[{"$f":"IF('1. Order'!B1500=\"\",\"\",'1. Order'!B1500)","v":""},{"$f":"IF('1. Order'!J1500=\"\",\"\",'1. Order'!J1500)","v":""},{"$f":"IF('1. Order'!K1500=\"\",\"\",'1. Order'!K1500)","v":""},{"$f":"IF('1. Order'!L1500=\"\",\"\",'1. Order'!L1500)","v":""},{"$f":"IF('1. Order'!N1500=\"\",\"\",'1. Order'!N1500)","v":""},null,null,{"$f":"'1. Order'!AV1500","v":0},{"$f":"IF('1. Order'!AI1500=\"\",\"\",'1. Order'!AI1500)","v":""}]
[{"$f":"IF('1. Order'!B1501=\"\",\"\",'1. Order'!B1501)","v":""},{"$f":"IF('1. Order'!J1501=\"\",\"\",'1. Order'!J1501)","v":""},{"$f":"IF('1. Order'!K1501=\"\",\"\",'1. Order'!K1501)","v":""},{"$f":"IF('1. Order'!L1501=\"\",\"\",'1. Order'!L1501)","v":""},{"$f":"IF('1. Order'!N1501=\"\",\"\",'1. Order'!N1501)","v":""},null,null,{"$f":"'1. Order'!AV1501","v":0},{"$f":"IF('1. Order'!AI1501=\"\",\"\",'1. Order'!AI1501)","v":""}]
[{"$f":"IF('1. Order'!B1502=\"\",\"\",'1. Order'!B1502)","v":""},{"$f":"IF('1. Order'!J1502=\"\",\"\",'1. Order'!J1502)","v":""},{"$f":"IF('1. Order'!K1502=\"\",\"\",'1. Order'!K1502)","v":""},{"$f":"IF('1. Order'!L1502=\"\",\"\",'1. Order'!L1502)","v":""},{"$f":"IF('1. Order'!N1502=\"\",\"\",'1. Order'!N1502)","v":""},null,null,{"$f":"'1. Order'!AV1502","v":0},{"$f":"IF('1. Order'!AI1502=\"\",\"\",'1. Order'!AI1502)","v":""}]
[{"$f":"IF('1. Order'!B1503=\"\",\"\",'1. Order'!B1503)","v":""},{"$f":"IF('1. Order'!J1503=\"\",\"\",'1. Order'!J1503)","v":""},{"$f":"IF('1. Order'!K1503=\"\",\"\",'1. Order'!K1503)","v":""},{"$f":"IF('1. Order'!L1503=\"\",\"\",'1. Order'!L1503)","v":""},{"$f":"IF('1. Order'!N1503=\"\",\"\",'1. Order'!N1503)","v":""},null,null,{"$f":"'1. Order'!AV1503","v":0},{"$f":"IF('1. Order'!AI1503=\"\",\"\",'1. Order'!AI1503)","v":""}]

{"sheet":"Article Onboarding","index":4,"n_rows":500,"n_cols":39,"rows_kept":500,"cut":false,"hidden":true,"merged":[]}
["Leverancier","Merk (volgens PIM)","Merklijn (volgens PIM)","Stijl nr","Inkooptekst","Leverancierskleur (max. 50 posities)","Darwin mover class (volgens PIM)","?","Omschrijving","Categorie","Taxon","Bestelmaat leverancier","Presentatiemaat ","Magazijnmaat (3 cijferig)","Veelvoud","MOQ","Valuta inkoopprijs","Inkoopprijs","Consumenten verkoopprijs","Oorspronkelijke verkoopprijs",null,"CustomCode","ProductWeightSize","Battery","BatteryType","BatteryWeight","BatteryButtonCell","PlugAvailable","Gewicht gram","Inkoopdoorlooptijd","Inkopersgroep","Supplychain planner",null,"OMID code","Opslagzone","LIG-code","Verzendkosten","Verzendmethode"]
["AX leveranciersnummer","Merk","Merklijn","Leveranciers artikelnummer","AX Inkooptekst","Inkoopkleur","DarwinMoverClass","EAN","AX Naam","Artikelgroep code","Taxon","SizeSupplier","SizeDescription","SizeWehkamp","QtyLowest","QtyMultiples","CurrencyCodePurchasePrice","PriceCAP","CVP","OVP","Scratchprice","CustomCode","ProductWeightSize","Battery","BatteryType","BatteryWeight","BatteryButtonCell","PlugAvailable","NetWeight","PurchaseLeadTime","BuyerGroup","SupplyChainPlanner","SalesSegment","OMID","StoreZone","LogisticItemGroup","ShippingCosts","WKShippingMethod","PreferredWarehouseIdentificationCode"]
[{"$f":"IF('1. Order'!G6=\"\",\"\",'1. Order'!G6)","v":""},{"$f":"IF('1. Order'!H6=\"\",\"\",'1. Order'!H6)","v":""},{"$f":"IF('1. Order'!I6=\"\",\"\",'1. Order'!I6)","v":""},{"$f":"IF('1. Order'!J6=\"\",\"\",'1. Order'!J6)","v":""},{"$f":"IF('1. Order'!K6=\"\",\"\",'1. Order'!K6)","v":""},{"$f":"IF('1. Order'!L6=\"\",\"\",'1. Order'!L6)","v":""},{"$f":"IF('1. Order'!M6=\"\",\"\",'1. Order'!M6)","v":""},{"$f":"IF('1. Order'!N6=\"\",\"\",'1. Order'!N6)","v":""},{"$f":"IF('1. Order'!P6=\"\",\"\",'1. Order'!P6)","v":""},{"$f":"IF('1. Order'!Q6=\"\",\"\",'1. Order'!Q6)","v":{"$error":"#N/A"}},{"$f":"IF('1. Order'!R6=\"\",\"\",'1. Order'!R6)","v":{"$error":"#N/A"}},{"$f":"IF('1. Order'!S6=\"\",\"\",'1. Order'!S6)","v":""},{"$f":"IF('1. Order'!T6=\"\",\"\",'1. Order'!T6)","v":""},{"$f":"IF('1. Order'!U6=\"\",\"\",'1. Order'!U6)","v":""},{"$f":"IF('1. Order'!X6=\"\",\"\",'1. Order'!X6)","v":""},{"$f":"IF('1. Order'!Y6=\"\",\"\",'1. Order'!Y6)","v":""},{"$f":"IF('1. Order'!Z6=\"\",\"\",'1. Order'!Z6)","v":""},{"$f":"IF('1. Order'!AC6=\"\",\"\",'1. Order'!AC6)","v":""},{"$f":"IF('1. Order'!AD6=\"\",\"\",'1. Order'!AD6)","v":""},{"$f":"IF('1. Order'!AE6=\"\",\"\",'1. Order'!AE6)","v":""},null,{"$f":"IF('1. Order'!AW6=\"\",\"\",'1. Order'!AW6)","v":""},{"$f":"IF('1. Order'!AX6=\"\",\"\",'1. Order'!AX6)","v":""},null,null,null,null,null,null,null,{"$f":"IF('1. Order'!BB6=\"\",\"\",'1. Order'!BB6)","v":""},{"$f":"IF('1. Order'!BC6=\"\",\"\",'1. Order'!BC6)","v":""},{"$f":"IF('1. Order'!BD6=\"\",\"\",'1. Order'!BD6)","v":""},{"$f":"IF('1. Order'!BE6=\"\",\"\",'1. Order'!BE6)","v":""},{"$f":"IF('1. Order'!BG6=\"\",\"\",'1. Order'!BG6)","v":""},{"$f":"IF('1. Order'!BH6=\"\",\"\",'1. Order'!BH6)","v":""},{"$f":"IF('1. Order'!BI6=\"\",\"\",'1. Order'!BI6)","v":""},{"$f":"IF('1. Order'!BJ6=\"\",\"\",'1. Order'!BJ6)","v":""},{"$f":"IF('1. Order'!BK6=\"\",\"\",'1. Order'!BK6)","v":"ZWO"}]
[{"$f":"IF('1. Order'!G7=\"\",\"\",'1. Order'!G7)","v":""},{"$f":"IF('1. Order'!H7=\"\",\"\",'1. Order'!H7)","v":""},{"$f":"IF('1. Order'!I7=\"\",\"\",'1. Order'!I7)","v":""},{"$f":"IF('1. Order'!J7=\"\",\"\",'1. Order'!J7)","v":""},{"$f":"IF('1. Order'!K7=\"\",\"\",'1. Order'!K7)","v":""},{"$f":"IF('1. Order'!L7=\"\",\"\",'1. Order'!L7)","v":""},{"$f":"IF('1. Order'!M7=\"\",\"\",'1. Order'!M7)","v":""},{"$f":"IF('1. Order'!N7=\"\",\"\",'1. Order'!N7)","v":""},{"$f":"IF('1. Order'!P7=\"\",\"\",'1. Order'!P7)","v":""},{"$f":"IF('1. Order'!Q7=\"\",\"\",'1. Order'!Q7)","v":{"$error":"#N/A"}},{"$f":"IF('1. Order'!R7=\"\",\"\",'1. Order'!R7)","v":{"$error":"#N/A"}},{"$f":"IF('1. Order'!S7=\"\",\"\",'1. Order'!S7)","v":""},{"$f":"IF('1. Order'!T7=\"\",\"\",'1. Order'!T7)","v":""},{"$f":"IF('1. Order'!U7=\"\",\"\",'1. Order'!U7)","v":""},{"$f":"IF('1. Order'!X7=\"\",\"\",'1. Order'!X7)","v":""},{"$f":"IF('1. Order'!Y7=\"\",\"\",'1. Order'!Y7)","v":""},{"$f":"IF('1. Order'!Z7=\"\",\"\",'1. Order'!Z7)","v":""},{"$f":"IF('1. Order'!AC7=\"\",\"\",'1. Order'!AC7)","v":""},{"$f":"IF('1. Order'!AD7=\"\",\"\",'1. Order'!AD7)","v":""},{"$f":"IF('1. Order'!AE7=\"\",\"\",'1. Order'!AE7)","v":""},null,{"$f":"IF('1. Order'!AW7=\"\",\"\",'1. Order'!AW7)","v":""},{"$f":"IF('1. Order'!AX7=\"\",\"\",'1. Order'!AX7)","v":""},null,null,null,null,null,null,null,{"$f":"IF('1. Order'!BB7=\"\",\"\",'1. Order'!BB7)","v":""},{"$f":"IF('1. Order'!BC7=\"\",\"\",'1. Order'!BC7)","v":""},{"$f":"IF('1. Order'!BD7=\"\",\"\",'1. Order'!BD7)","v":""},{"$f":"IF('1. Order'!BE7=\"\",\"\",'1. Order'!BE7)","v":""},{"$f":"IF('1. Order'!BG7=\"\",\"\",'1. Order'!BG7)","v":""},{"$f":"IF('1. Order'!BH7=\"\",\"\",'1. Order'!BH7)","v":""},{"$f":"IF('1. Order'!BI7=\"\",\"\",'1. Order'!BI7)","v":""},{"$f":"IF('1. Order'!BJ7=\"\",\"\",'1. Order'!BJ7)","v":""},{"$f":"IF('1. Order'!BK7=\"\",\"\",'1. Order'!BK7)","v":"ZWO"}]
[{"$f":"IF('1. Order'!G8=\"\",\"\",'1. Order'!G8)","v":""},{"$f":"IF('1. Order'!H8=\"\",\"\",'1. Order'!H8)","v":""},{"$f":"IF('1. Order'!I8=\"\",\"\",'1. Order'!I8)","v":""},{"$f":"IF('1. Order'!J8=\"\",\"\",'1. Order'!J8)","v":""},{"$f":"IF('1. Order'!K8=\"\",\"\",'1. Order'!K8)","v":""},{"$f":"IF('1. Order'!L8=\"\",\"\",'1. Order'!L8)","v":""},{"$f":"IF('1. Order'!M8=\"\",\"\",'1. Order'!M8)","v":""},{"$f":"IF('1. Order'!N8=\"\",\"\",'1. Order'!N8)","v":""},{"$f":"IF('1. Order'!P8=\"\",\"\",'1. Order'!P8)","v":""},{"$f":"IF('1. Order'!Q8=\"\",\"\",'1. Order'!Q8)","v":{"$error":"#N/A"}},{"$f":"IF('1. Order'!R8=\"\",\"\",'1. Order'!R8)","v":{"$error":"#N/A"}},{"$f":"IF('1. Order'!S8=\"\",\"\",'1. Order'!S8)","v":""},{"$f":"IF('1. Order'!T8=\"\",\"\",'1. Order'!T8)","v":""},{"$f":"IF('1. Order'!U8=\"\",\"\",'1. Order'!U8)","v":""},{"$f":"IF('1. Order'!X8=\"\",\"\",'1. Order'!X8)","v":""},{"$f":"IF('1. Order'!Y8=\"\",\"\",'1. Order'!Y8)","v":""},{"$f":"IF('1. Order'!Z8=\"\",\"\",'1. Order'!Z8)","v":""},{"$f":"IF('1. Order'!AC8=\"\",\"\",'1. Order'!AC8)","v":""},{"$f":"IF('1. Order'!AD8=\"\",\"\",'1. Order'!AD8)","v":""},{"$f":"IF('1. Order'!AE8=\"\",\"\",'1. Order'!AE8)","v":""},null,{"$f":"IF('1. Order'!AW8=\"\",\"\",'1. Order'!AW8)","v":""},{"$f":"IF('1. Order'!AX8=\"\",\"\",'1. Order'!AX8)","v":""},null,null,null,null,null,null,null,{"$f":"IF('1. Order'!BB8=\"\",\"\",'1. Order'!BB8)","v":""},{"$f":"IF('1. Order'!BC8=\"\",\"\",'1. Order'!BC8)","v":""},{"$f":"IF('1. Order'!BD8=\"\",\"\",'1. Order'!BD8)","v":""},{"$f":"IF('1. Order'!BE8=\"\",\"\",'1. Order'!BE8)","v":""},{"$f":"IF('1. Order'!BG8=\"\",\"\",'1. Order'!BG8)","v":""},{"$f":"IF('1. Order'!BH8=\"\",\"\",'1. Order'!BH8)","v":""},{"$f":"IF('1. Order'!BI8=\"\",\"\",'1. Order'!BI8)","v":""},{"$f":"IF('1. Order'!BJ8=\"\",\"\",'1. Order'!BJ8)","v":""},{"$f":"IF('1. Order'!BK8=\"\",\"\",'1. Order'!BK8)","v":"ZWO"}]
[{"$f":"IF('1. Order'!G9=\"\",\"\",'1. Order'!G9)","v":""},{"$f":"IF('1. Order'!H9=\"\",\"\",'1. Order'!H9)","v":""},{"$f":"IF('1. Order'!I9=\"\",\"\",'1. Order'!I9)","v":""},{"$f":"IF('1. Order'!J9=\"\",\"\",'1. Order'!J9)","v":""},{"$f":"IF('1. Order'!K9=\"\",\"\",'1. Order'!K9)","v":""},{"$f":"IF('1. Order'!L9=\"\",\"\",'1. Order'!L9)","v":""},{"$f":"IF('1. Order'!M9=\"\",\"\",'1. Order'!M9)","v":""},{"$f":"IF('1. Order'!N9=\"\",\"\",'1. Order'!N9)","v":""},{"$f":"IF('1. Order'!P9=\"\",\"\",'1. Order'!P9)","v":""},{"$f":"IF('1. Order'!Q9=\"\",\"\",'1. Order'!Q9)","v":{"$error":"#N/A"}},{"$f":"IF('1. Order'!R9=\"\",\"\",'1. Order'!R9)","v":{"$error":"#N/A"}},{"$f":"IF('1. Order'!S9=\"\",\"\",'1. Order'!S9)","v":""},{"$f":"IF('1. Order'!T9=\"\",\"\",'1. Order'!T9)","v":""},{"$f":"IF('1. Order'!U9=\"\",\"\",'1. Order'!U9)","v":""},{"$f":"IF('1. Order'!X9=\"\",\"\",'1. Order'!X9)","v":""},{"$f":"IF('1. Order'!Y9=\"\",\"\",'1. Order'!Y9)","v":""},{"$f":"IF('1. Order'!Z9=\"\",\"\",'1. Order'!Z9)","v":""},{"$f":"IF('1. Order'!AC9=\"\",\"\",'1. Order'!AC9)","v":""},{"$f":"IF('1. Order'!AD9=\"\",\"\",'1. Order'!AD9)","v":""},{"$f":"IF('1. Order'!AE9=\"\",\"\",'1. Order'!AE9)","v":""},null,{"$f":"IF('1. Order'!AW9=\"\",\"\",'1. Order'!AW9)","v":""},{"$f":"IF('1. Order'!AX9=\"\",\"\",'1. Order'!AX9)","v":""},null,null,null,null,null,null,null,{"$f":"IF('1. Order'!BB9=\"\",\"\",'1. Order'!BB9)","v":""},{"$f":"IF('1. Order'!BC9=\"\",\"\",'1. Order'!BC9)","v":""},{"$f":"IF('1. Order'!BD9=\"\",\"\",'1. Order'!BD9)","v":""},{"$f":"IF('1. Order'!BE9=\"\",\"\",'1. Order'!BE9)","v":""},{"$f":"IF('1. Order'!BG9=\"\",\"\",'1. Order'!BG9)","v":""},{"$f":"IF('1. Order'!BH9=\"\",\"\",'1. Order'!BH9)","v":""},{"$f":"IF('1. Order'!BI9=\"\",\"\",'1. Order'!BI9)","v":""},{"$f":"IF('1. Order'!BJ9=\"\",\"\",'1. Order'!BJ9)","v":""},{"$f":"IF('1. Order'!BK9=\"\",\"\",'1. Order'!BK9)","v":"ZWO"}]
[{"$f":"IF('1. Order'!G10=\"\",\"\",'1. Order'!G10)","v":""},{"$f":"IF('1. Order'!H10=\"\",\"\",'1. Order'!H10)","v":""},{"$f":"IF('1. Order'!I10=\"\",\"\",'1. Order'!I10)","v":""},{"$f":"IF('1. Order'!J10=\"\",\"\",'1. Order'!J10)","v":""},{"$f":"IF('1. Order'!K10=\"\",\"\",'1. Order'!K10)","v":""},{"$f":"IF('1. Order'!L10=\"\",\"\",'1. Order'!L10)","v":""},{"$f":"IF('1. Order'!M10=\"\",\"\",'1. Order'!M10)","v":""},{"$f":"IF('1. Order'!N10=\"\",\"\",'1. Order'!N10)","v":""},{"$f":"IF('1. Order'!P10=\"\",\"\",'1. Order'!P10)","v":""},{"$f":"IF('1. Order'!Q10=\"\",\"\",'1. Order'!Q10)","v":{"$error":"#N/A"}},{"$f":"IF('1. Order'!R10=\"\",\"\",'1. Order'!R10)","v":{"$error":"#N/A"}},{"$f":"IF('1. Order'!S10=\"\",\"\",'1. Order'!S10)","v":""},{"$f":"IF('1. Order'!T10=\"\",\"\",'1. Order'!T10)","v":""},{"$f":"IF('1. Order'!U10=\"\",\"\",'1. Order'!U10)","v":""},{"$f":"IF('1. Order'!X10=\"\",\"\",'1. Order'!X10)","v":""},{"$f":"IF('1. Order'!Y10=\"\",\"\",'1. Order'!Y10)","v":""},{"$f":"IF('1. Order'!Z10=\"\",\"\",'1. Order'!Z10)","v":""},{"$f":"IF('1. Order'!AC10=\"\",\"\",'1. Order'!AC10)","v":""},{"$f":"IF('1. Order'!AD10=\"\",\"\",'1. Order'!AD10)","v":""},{"$f":"IF('1. Order'!AE10=\"\",\"\",'1. Order'!AE10)","v":""},null,{"$f":"IF('1. Order'!AW10=\"\",\"\",'1. Order'!AW10)","v":""},{"$f":"IF('1. Order'!AX10=\"\",\"\",'1. Order'!AX10)","v":""},null,null,null,null,null,null,null,{"$f":"IF('1. Order'!BB10=\"\",\"\",'1. Order'!BB10)","v":""},{"$f":"IF('1. Order'!BC10=\"\",\"\",'1. Order'!BC10)","v":""},{"$f":"IF('1. Order'!BD10=\"\",\"\",'1. Order'!BD10)","v":""},{"$f":"IF('1. Order'!BE10=\"\",\"\",'1. Order'!BE10)","v":""},{"$f":"IF('1. Order'!BG10=\"\",\"\",'1. Order'!BG10)","v":""},{"$f":"IF('1. Order'!BH10=\"\",\"\",'1. Order'!BH10)","v":""},{"$f":"IF('1. Order'!BI10=\"\",\"\",'1. Order'!BI10)","v":""},{"$f":"IF('1. Order'!BJ10=\"\",\"\",'1. Order'!BJ10)","v":""},{"$f":"IF('1. Order'!BK10=\"\",\"\",'1. Order'!BK10)","v":"ZWO"}]
[{"$f":"IF('1. Order'!G11=\"\",\"\",'1. Order'!G11)","v":""},{"$f":"IF('1. Order'!H11=\"\",\"\",'1. Order'!H11)","v":""},{"$f":"IF('1. Order'!I11=\"\",\"\",'1. Order'!I11)","v":""},{"$f":"IF('1. Order'!J11=\"\",\"\",'1. Order'!J11)","v":""},{"$f":"IF('1. Order'!K11=\"\",\"\",'1. Order'!K11)","v":""},{"$f":"IF('1. Order'!L11=\"\",\"\",'1. Order'!L11)","v":""},{"$f":"IF('1. Order'!M11=\"\",\"\",'1. Order'!M11)","v":""},{"$f":"IF('1. Order'!N11=\"\",\"\",'1. Order'!N11)","v":""},{"$f":"IF('1. Order'!P11=\"\",\"\",'1. Order'!P11)","v":""},{"$f":"IF('1. Order'!Q11=\"\",\"\",'1. Order'!Q11)","v":{"$error":"#N/A"}},{"$f":"IF('1. Order'!R11=\"\",\"\",'1. Order'!R11)","v":{"$error":"#N/A"}},{"$f":"IF('1. Order'!S11=\"\",\"\",'1. Order'!S11)","v":""},{"$f":"IF('1. Order'!T11=\"\",\"\",'1. Order'!T11)","v":""},{"$f":"IF('1. Order'!U11=\"\",\"\",'1. Order'!U11)","v":""},{"$f":"IF('1. Order'!X11=\"\",\"\",'1. Order'!X11)","v":""},{"$f":"IF('1. Order'!Y11=\"\",\"\",'1. Order'!Y11)","v":""},{"$f":"IF('1. Order'!Z11=\"\",\"\",'1. Order'!Z11)","v":""},{"$f":"IF('1. Order'!AC11=\"\",\"\",'1. Order'!AC11)","v":""},{"$f":"IF('1. Order'!AD11=\"\",\"\",'1. Order'!AD11)","v":""},{"$f":"IF('1. Order'!AE11=\"\",\"\",'1. Order'!AE11)","v":""},null,{"$f":"IF('1. Order'!AW11=\"\",\"\",'1. Order'!AW11)","v":""},{"$f":"IF('1. Order'!AX11=\"\",\"\",'1. Order'!AX11)","v":""},null,null,null,null,null,null,null,{"$f":"IF('1. Order'!BB11=\"\",\"\",'1. Order'!BB11)","v":""},{"$f":"IF('1. Order'!BC11=\"\",\"\",'1. Order'!BC11)","v":""},{"$f":"IF('1. Order'!BD11=\"\",\"\",'1. Order'!BD11)","v":""},{"$f":"IF('1. Order'!BE11=\"\",\"\",'1. Order'!BE11)","v":""},{"$f":"IF('1. Order'!BG11=\"\",\"\",'1. Order'!BG11)","v":""},{"$f":"IF('1. Order'!BH11=\"\",\"\",'1. Order'!BH11)","v":""},{"$f":"IF('1. Order'!BI11=\"\",\"\",'1. Order'!BI11)","v":""},{"$f":"IF('1. Order'!BJ11=\"\",\"\",'1. Order'!BJ11)","v":""},{"$f":"IF('1. Order'!BK11=\"\",\"\",'1. Order'!BK11)","v":"ZWO"}]
[{"$f":"IF('1. Order'!G12=\"\",\"\",'1. Order'!G12)","v":""},{"$f":"IF('1. Order'!H12=\"\",\"\",'1. Order'!H12)","v":""},{"$f":"IF('1. Order'!I12=\"\",\"\",'1. Order'!I12)","v":""},{"$f":"IF('1. Order'!J12=\"\",\"\",'1. Order'!J12)","v":""},{"$f":"IF('1. Order'!K12=\"\",\"\",'1. Order'!K12)","v":""},{"$f":"IF('1. Order'!L12=\"\",\"\",'1. Order'!L12)","v":""},{"$f":"IF('1. Order'!M12=\"\",\"\",'1. Order'!M12)","v":""},{"$f":"IF('1. Order'!N12=\"\",\"\",'1. Order'!N12)","v":""},{"$f":"IF('1. Order'!P12=\"\",\"\",'1. Order'!P12)","v":""},{"$f":"IF('1. Order'!Q12=\"\",\"\",'1. Order'!Q12)","v":{"$error":"#N/A"}},{"$f":"IF('1. Order'!R12=\"\",\"\",'1. Order'!R12)","v":{"$error":"#N/A"}},{"$f":"IF('1. Order'!S12=\"\",\"\",'1. Order'!S12)","v":""},{"$f":"IF('1. Order'!T12=\"\",\"\",'1. Order'!T12)","v":""},{"$f":"IF('1. Order'!U12=\"\",\"\",'1. Order'!U12)","v":""},{"$f":"IF('1. Order'!X12=\"\",\"\",'1. Order'!X12)","v":""},{"$f":"IF('1. Order'!Y12=\"\",\"\",'1. Order'!Y12)","v":""},{"$f":"IF('1. Order'!Z12=\"\",\"\",'1. Order'!Z12)","v":""},{"$f":"IF('1. Order'!AC12=\"\",\"\",'1. Order'!AC12)","v":""},{"$f":"IF('1. Order'!AD12=\"\",\"\",'1. Order'!AD12)","v":""},{"$f":"IF('1. Order'!AE12=\"\",\"\",'1. Order'!AE12)","v":""},null,{"$f":"IF('1. Order'!AW12=\"\",\"\",'1. Order'!AW12)","v":""},{"$f":"IF('1. Order'!AX12=\"\",\"\",'1. Order'!AX12)","v":""},null,null,null,null,null,null,null,{"$f":"IF('1. Order'!BB12=\"\",\"\",'1. Order'!BB12)","v":""},{"$f":"IF('1. Order'!BC12=\"\",\"\",'1. Order'!BC12)","v":""},{"$f":"IF('1. Order'!BD12=\"\",\"\",'1. Order'!BD12)","v":""},{"$f":"IF('1. Order'!BE12=\"\",\"\",'1. Order'!BE12)","v":""},{"$f":"IF('1. Order'!BG12=\"\",\"\",'1. Order'!BG12)","v":""},{"$f":"IF('1. Order'!BH12=\"\",\"\",'1. Order'!BH12)","v":""},{"$f":"IF('1. Order'!BI12=\"\",\"\",'1. Order'!BI12)","v":""},{"$f":"IF('1. Order'!BJ12=\"\",\"\",'1. Order'!BJ12)","v":""},{"$f":"IF('1. Order'!BK12=\"\",\"\",'1. Order'!BK12)","v":"ZWO"}]
[{"$f":"IF('1. Order'!G13=\"\",\"\",'1. Order'!G13)","v":""},{"$f":"IF('1. Order'!H13=\"\",\"\",'1. Order'!H13)","v":""},{"$f":"IF('1. Order'!I13=\"\",\"\",'1. Order'!I13)","v":""},{"$f":"IF('1. Order'!J13=\"\",\"\",'1. Order'!J13)","v":""},{"$f":"IF('1. Order'!K13=\"\",\"\",'1. Order'!K13)","v":""},{"$f":"IF('1. Order'!L13=\"\",\"\",'1. Order'!L13)","v":""},{"$f":"IF('1. Order'!M13=\"\",\"\",'1. Order'!M13)","v":""},{"$f":"IF('1. Order'!N13=\"\",\"\",'1. Order'!N13)","v":""},{"$f":"IF('1. Order'!P13=\"\",\"\",'1. Order'!P13)","v":""},{"$f":"IF('1. Order'!Q13=\"\",\"\",'1. Order'!Q13)","v":{"$error":"#N/A"}},{"$f":"IF('1. Order'!R13=\"\",\"\",'1. Order'!R13)","v":{"$error":"#N/A"}},{"$f":"IF('1. Order'!S13=\"\",\"\",'1. Order'!S13)","v":""},{"$f":"IF('1. Order'!T13=\"\",\"\",'1. Order'!T13)","v":""},{"$f":"IF('1. Order'!U13=\"\",\"\",'1. Order'!U13)","v":""},{"$f":"IF('1. Order'!X13=\"\",\"\",'1. Order'!X13)","v":""},{"$f":"IF('1. Order'!Y13=\"\",\"\",'1. Order'!Y13)","v":""},{"$f":"IF('1. Order'!Z13=\"\",\"\",'1. Order'!Z13)","v":""},{"$f":"IF('1. Order'!AC13=\"\",\"\",'1. Order'!AC13)","v":""},{"$f":"IF('1. Order'!AD13=\"\",\"\",'1. Order'!AD13)","v":""},{"$f":"IF('1. Order'!AE13=\"\",\"\",'1. Order'!AE13)","v":""},null,{"$f":"IF('1. Order'!AW13=\"\",\"\",'1. Order'!AW13)","v":""},{"$f":"IF('1. Order'!AX13=\"\",\"\",'1. Order'!AX13)","v":""},null,null,null,null,null,null,null,{"$f":"IF('1. Order'!BB13=\"\",\"\",'1. Order'!BB13)","v":""},{"$f":"IF('1. Order'!BC13=\"\",\"\",'1. Order'!BC13)","v":""},{"$f":"IF('1. Order'!BD13=\"\",\"\",'1. Order'!BD13)","v":""},{"$f":"IF('1. Order'!BE13=\"\",\"\",'1. Order'!BE13)","v":""},{"$f":"IF('1. Order'!BG13=\"\",\"\",'1. Order'!BG13)","v":""},{"$f":"IF('1. Order'!BH13=\"\",\"\",'1. Order'!BH13)","v":""},{"$f":"IF('1. Order'!BI13=\"\",\"\",'1. Order'!BI13)","v":""},{"$f":"IF('1. Order'!BJ13=\"\",\"\",'1. Order'!BJ13)","v":""},{"$f":"IF('1. Order'!BK13=\"\",\"\",'1. Order'!BK13)","v":"ZWO"}]
[{"$f":"IF('1. Order'!G14=\"\",\"\",'1. Order'!G14)","v":""},{"$f":"IF('1. Order'!H14=\"\",\"\",'1. Order'!H14)","v":""},{"$f":"IF('1. Order'!I14=\"\",\"\",'1. Order'!I14)","v":""},{"$f":"IF('1. Order'!J14=\"\",\"\",'1. Order'!J14)","v":""},{"$f":"IF('1. Order'!K14=\"\",\"\",'1. Order'!K14)","v":""},{"$f":"IF('1. Order'!L14=\"\",\"\",'1. Order'!L14)","v":""},{"$f":"IF('1. Order'!M14=\"\",\"\",'1. Order'!M14)","v":""},{"$f":"IF('1. Order'!N14=\"\",\"\",'1. Order'!N14)","v":""},{"$f":"IF('1. Order'!P14=\"\",\"\",'1. Order'!P14)","v":""},{"$f":"IF('1. Order'!Q14=\"\",\"\",'1. Order'!Q14)","v":{"$error":"#N/A"}},{"$f":"IF('1. Order'!R14=\"\",\"\",'1. Order'!R14)","v":{"$error":"#N/A"}},{"$f":"IF('1. Order'!S14=\"\",\"\",'1. Order'!S14)","v":""},{"$f":"IF('1. Order'!T14=\"\",\"\",'1. Order'!T14)","v":""},{"$f":"IF('1. Order'!U14=\"\",\"\",'1. Order'!U14)","v":""},{"$f":"IF('1. Order'!X14=\"\",\"\",'1. Order'!X14)","v":""},{"$f":"IF('1. Order'!Y14=\"\",\"\",'1. Order'!Y14)","v":""},{"$f":"IF('1. Order'!Z14=\"\",\"\",'1. Order'!Z14)","v":""},{"$f":"IF('1. Order'!AC14=\"\",\"\",'1. Order'!AC14)","v":""},{"$f":"IF('1. Order'!AD14=\"\",\"\",'1. Order'!AD14)","v":""},{"$f":"IF('1. Order'!AE14=\"\",\"\",'1. Order'!AE14)","v":""},null,{"$f":"IF('1. Order'!AW14=\"\",\"\",'1. Order'!AW14)","v":""},{"$f":"IF('1. Order'!AX14=\"\",\"\",'1. Order'!AX14)","v":""},null,null,null,null,null,null,null,{"$f":"IF('1. Order'!BB14=\"\",\"\",'1. Order'!BB14)","v":""},{"$f":"IF('1. Order'!BC14=\"\",\"\",'1. Order'!BC14)","v":""},{"$f":"IF('1. Order'!BD14=\"\",\"\",'1. Order'!BD14)","v":""},{"$f":"IF('1. Order'!BE14=\"\",\"\",'1. Order'!BE14)","v":""},{"$f":"IF('1. Order'!BG14=\"\",\"\",'1. Order'!BG14)","v":""},{"$f":"IF('1. Order'!BH14=\"\",\"\",'1. Order'!BH14)","v":""},{"$f":"IF('1. Order'!BI14=\"\",\"\",'1. Order'!BI14)","v":""},{"$f":"IF('1. Order'!BJ14=\"\",\"\",'1. Order'!BJ14)","v":""},{"$f":"IF('1. Order'!BK14=\"\",\"\",'1. Order'!BK14)","v":"ZWO"}]
[{"$f":"IF('1. Order'!G15=\"\",\"\",'1. Order'!G15)","v":""},{"$f":"IF('1. Order'!H15=\"\",\"\",'1. Order'!H15)","v":""},{"$f":"IF('1. Order'!I15=\"\",\"\",'1. Order'!I15)","v":""},{"$f":"IF('1. Order'!J15=\"\",\"\",'1. Order'!J15)","v":""},{"$f":"IF('1. Order'!K15=\"\",\"\",'1. Order'!K15)","v":""},{"$f":"IF('1. Order'!L15=\"\",\"\",'1. Order'!L15)","v":""},{"$f":"IF('1. Order'!M15=\"\",\"\",'1. Order'!M15)","v":""},{"$f":"IF('1. Order'!N15=\"\",\"\",'1. Order'!N15)","v":""},{"$f":"IF('1. Order'!P15=\"\",\"\",'1. Order'!P15)","v":""},{"$f":"IF('1. Order'!Q15=\"\",\"\",'1. Order'!Q15)","v":{"$error":"#N/A"}},{"$f":"IF('1. Order'!R15=\"\",\"\",'1. Order'!R15)","v":{"$error":"#N/A"}},{"$f":"IF('1. Order'!S15=\"\",\"\",'1. Order'!S15)","v":""},{"$f":"IF('1. Order'!T15=\"\",\"\",'1. Order'!T15)","v":""},{"$f":"IF('1. Order'!U15=\"\",\"\",'1. Order'!U15)","v":""},{"$f":"IF('1. Order'!X15=\"\",\"\",'1. Order'!X15)","v":""},{"$f":"IF('1. Order'!Y15=\"\",\"\",'1. Order'!Y15)","v":""},{"$f":"IF('1. Order'!Z15=\"\",\"\",'1. Order'!Z15)","v":""},{"$f":"IF('1. Order'!AC15=\"\",\"\",'1. Order'!AC15)","v":""},{"$f":"IF('1. Order'!AD15=\"\",\"\",'1. Order'!AD15)","v":""},{"$f":"IF('1. Order'!AE15=\"\",\"\",'1. Order'!AE15)","v":""},null,{"$f":"IF('1. Order'!AW15=\"\",\"\",'1. Order'!AW15)","v":""},{"$f":"IF('1. Order'!AX15=\"\",\"\",'1. Order'!AX15)","v":""},null,null,null,null,null,null,null,{"$f":"IF('1. Order'!BB15=\"\",\"\",'1. Order'!BB15)","v":""},{"$f":"IF('1. Order'!BC15=\"\",\"\",'1. Order'!BC15)","v":""},{"$f":"IF('1. Order'!BD15=\"\",\"\",'1. Order'!BD15)","v":""},{"$f":"IF('1. Order'!BE15=\"\",\"\",'1. Order'!BE15)","v":""},{"$f":"IF('1. Order'!BG15=\"\",\"\",'1. Order'!BG15)","v":""},{"$f":"IF('1. Order'!BH15=\"\",\"\",'1. Order'!BH15)","v":""},{"$f":"IF('1. Order'!BI15=\"\",\"\",'1. Order'!BI15)","v":""},{"$f":"IF('1. Order'!BJ15=\"\",\"\",'1. Order'!BJ15)","v":""},{"$f":"IF('1. Order'!BK15=\"\",\"\",'1. Order'!BK15)","v":"ZWO"}]
[{"$f":"IF('1. Order'!G16=\"\",\"\",'1. Order'!G16)","v":""},{"$f":"IF('1. Order'!H16=\"\",\"\",'1. Order'!H16)","v":""},{"$f":"IF('1. Order'!I16=\"\",\"\",'1. Order'!I16)","v":""},{"$f":"IF('1. Order'!J16=\"\",\"\",'1. Order'!J16)","v":""},{"$f":"IF('1. Order'!K16=\"\",\"\",'1. Order'!K16)","v":""},{"$f":"IF('1. Order'!L16=\"\",\"\",'1. Order'!L16)","v":""},{"$f":"IF('1. Order'!M16=\"\",\"\",'1. Order'!M16)","v":""},{"$f":"IF('1. Order'!N16=\"\",\"\",'1. Order'!N16)","v":""},{"$f":"IF('1. Order'!P16=\"\",\"\",'1. Order'!P16)","v":""},{"$f":"IF('1. Order'!Q16=\"\",\"\",'1. Order'!Q16)","v":{"$error":"#N/A"}},{"$f":"IF('1. Order'!R16=\"\",\"\",'1. Order'!R16)","v":{"$error":"#N/A"}},{"$f":"IF('1. Order'!S16=\"\",\"\",'1. Order'!S16)","v":""},{"$f":"IF('1. Order'!T16=\"\",\"\",'1. Order'!T16)","v":""},{"$f":"IF('1. Order'!U16=\"\",\"\",'1. Order'!U16)","v":""},{"$f":"IF('1. Order'!X16=\"\",\"\",'1. Order'!X16)","v":""},{"$f":"IF('1. Order'!Y16=\"\",\"\",'1. Order'!Y16)","v":""},{"$f":"IF('1. Order'!Z16=\"\",\"\",'1. Order'!Z16)","v":""},{"$f":"IF('1. Order'!AC16=\"\",\"\",'1. Order'!AC16)","v":""},{"$f":"IF('1. Order'!AD16=\"\",\"\",'1. Order'!AD16)","v":""},{"$f":"IF('1. Order'!AE16=\"\",\"\",'1. Order'!AE16)","v":""},null,{"$f":"IF('1. Order'!AW16=\"\",\"\",'1. Order'!AW16)","v":""},{"$f":"IF('1. Order'!AX16=\"\",\"\",'1. Order'!AX16)","v":""},null,null,null,null,null,null,null,{"$f":"IF('1. Order'!BB16=\"\",\"\",'1. Order'!BB16)","v":""},{"$f":"IF('1. Order'!BC16=\"\",\"\",'1. Order'!BC16)","v":""},{"$f":"IF('1. Order'!BD16=\"\",\"\",'1. Order'!BD16)","v":""},{"$f":"IF('1. Order'!BE16=\"\",\"\",'1. Order'!BE16)","v":""},{"$f":"IF('1. Order'!BG16=\"\",\"\",'1. Order'!BG16)","v":""},{"$f":"IF('1. Order'!BH16=\"\",\"\",'1. Order'!BH16)","v":""},{"$f":"IF('1. Order'!BI16=\"\",\"\",'1. Order'!BI16)","v":""},{"$f":"IF('1. Order'!BJ16=\"\",\"\",'1. Order'!BJ16)","v":""},{"$f":"IF('1. Order'!BK16=\"\",\"\",'1. Order'!BK16)","v":"ZWO"}]
[{"$f":"IF('1. Order'!G17=\"\",\"\",'1. Order'!G17)","v":""},{"$f":"IF('1. Order'!H17=\"\",\"\",'1. Order'!H17)","v":""},{"$f":"IF('1. Order'!I17=\"\",\"\",'1. Order'!I17)","v":""},{"$f":"IF('1. Order'!J17=\"\",\"\",'1. Order'!J17)","v":""},{"$f":"IF('1. Order'!K17=\"\",\"\",'1. Order'!K17)","v":""},{"$f":"IF('1. Order'!L17=\"\",\"\",'1. Order'!L17)","v":""},{"$f":"IF('1. Order'!M17=\"\",\"\",'1. Order'!M17)","v":""},{"$f":"IF('1. Order'!N17=\"\",\"\",'1. Order'!N17)","v":""},{"$f":"IF('1. Order'!P17=\"\",\"\",'1. Order'!P17)","v":""},{"$f":"IF('1. Order'!Q17=\"\",\"\",'1. Order'!Q17)","v":{"$error":"#N/A"}},{"$f":"IF('1. Order'!R17=\"\",\"\",'1. Order'!R17)","v":{"$error":"#N/A"}},{"$f":"IF('1. Order'!S17=\"\",\"\",'1. Order'!S17)","v":""},{"$f":"IF('1. Order'!T17=\"\",\"\",'1. Order'!T17)","v":""},{"$f":"IF('1. Order'!U17=\"\",\"\",'1. Order'!U17)","v":""},{"$f":"IF('1. Order'!X17=\"\",\"\",'1. Order'!X17)","v":""},{"$f":"IF('1. Order'!Y17=\"\",\"\",'1. Order'!Y17)","v":""},{"$f":"IF('1. Order'!Z17=\"\",\"\",'1. Order'!Z17)","v":""},{"$f":"IF('1. Order'!AC17=\"\",\"\",'1. Order'!AC17)","v":""},{"$f":"IF('1. Order'!AD17=\"\",\"\",'1. Order'!AD17)","v":""},{"$f":"IF('1. Order'!AE17=\"\",\"\",'1. Order'!AE17)","v":""},null,{"$f":"IF('1. Order'!AW17=\"\",\"\",'1. Order'!AW17)","v":""},{"$f":"IF('1. Order'!AX17=\"\",\"\",'1. Order'!AX17)","v":""},null,null,null,null,null,null,null,{"$f":"IF('1. Order'!BB17=\"\",\"\",'1. Order'!BB17)","v":""},{"$f":"IF('1. Order'!BC17=\"\",\"\",'1. Order'!BC17)","v":""},{"$f":"IF('1. Order'!BD17=\"\",\"\",'1. Order'!BD17)","v":""},{"$f":"IF('1. Order'!BE17=\"\",\"\",'1. Order'!BE17)","v":""},{"$f":"IF('1. Order'!BG17=\"\",\"\",'1. Order'!BG17)","v":""},{"$f":"IF('1. Order'!BH17=\"\",\"\",'1. Order'!BH17)","v":""},{"$f":"IF('1. Order'!BI17=\"\",\"\",'1. Order'!BI17)","v":""},{"$f":"IF('1. Order'!BJ17=\"\",\"\",'1. Order'!BJ17)","v":""},{"$f":"IF('1. Order'!BK17=\"\",\"\",'1. Order'!BK17)","v":"ZWO"}]
[{"$f":"IF('1. Order'!G18=\"\",\"\",'1. Order'!G18)","v":""},{"$f":"IF('1. Order'!H18=\"\",\"\",'1. Order'!H18)","v":""},{"$f":"IF('1. Order'!I18=\"\",\"\",'1. Order'!I18)","v":""},{"$f":"IF('1. Order'!J18=\"\",\"\",'1. Order'!J18)","v":""},{"$f":"IF('1. Order'!K18=\"\",\"\",'1. Order'!K18)","v":""},{"$f":"IF('1. Order'!L18=\"\",\"\",'1. Order'!L18)","v":""},{"$f":"IF('1. Order'!M18=\"\",\"\",'1. Order'!M18)","v":""},{"$f":"IF('1. Order'!N18=\"\",\"\",'1. Order'!N18)","v":""},{"$f":"IF('1. Order'!P18=\"\",\"\",'1. Order'!P18)","v":""},{"$f":"IF('1. Order'!Q18=\"\",\"\",'1. Order'!Q18)","v":{"$error":"#N/A"}},{"$f":"IF('1. Order'!R18=\"\",\"\",'1. Order'!R18)","v":{"$error":"#N/A"}},{"$f":"IF('1. Order'!S18=\"\",\"\",'1. Order'!S18)","v":""},{"$f":"IF('1. Order'!T18=\"\",\"\",'1. Order'!T18)","v":""},{"$f":"IF('1. Order'!U18=\"\",\"\",'1. Order'!U18)","v":""},{"$f":"IF('1. Order'!X18=\"\",\"\",'1. Order'!X18)","v":""},{"$f":"IF('1. Order'!Y18=\"\",\"\",'1. Order'!Y18)","v":""},{"$f":"IF('1. Order'!Z18=\"\",\"\",'1. Order'!Z18)","v":""},{"$f":"IF('1. Order'!AC18=\"\",\"\",'1. Order'!AC18)","v":""},{"$f":"IF('1. Order'!AD18=\"\",\"\",'1. Order'!AD18)","v":""},{"$f":"IF('1. Order'!AE18=\"\",\"\",'1. Order'!AE18)","v":""},null,{"$f":"IF('1. Order'!AW18=\"\",\"\",'1. Order'!AW18)","v":""},{"$f":"IF('1. Order'!AX18=\"\",\"\",'1. Order'!AX18)","v":""},null,null,null,null,null,null,null,{"$f":"IF('1. Order'!BB18=\"\",\"\",'1. Order'!BB18)","v":""},{"$f":"IF('1. Order'!BC18=\"\",\"\",'1. Order'!BC18)","v":""},{"$f":"IF('1. Order'!BD18=\"\",\"\",'1. Order'!BD18)","v":""},{"$f":"IF('1. Order'!BE18=\"\",\"\",'1. Order'!BE18)","v":""},{"$f":"IF('1. Order'!BG18=\"\",\"\",'1. Order'!BG18)","v":""},{"$f":"IF('1. Order'!BH18=\"\",\"\",'1. Order'!BH18)","v":""},{"$f":"IF('1. Order'!BI18=\"\",\"\",'1. Order'!BI18)","v":""},{"$f":"IF('1. Order'!BJ18=\"\",\"\",'1. Order'!BJ18)","v":""},{"$f":"IF('1. Order'!BK18=\"\",\"\",'1. Order'!BK18)","v":"ZWO"}]
[{"$f":"IF('1. Order'!G19=\"\",\"\",'1. Order'!G19)","v":""},{"$f":"IF('1. Order'!H19=\"\",\"\",'1. Order'!H19)","v":""},{"$f":"IF('1. Order'!I19=\"\",\"\",'1. Order'!I19)","v":""},{"$f":"IF('1. Order'!J19=\"\",\"\",'1. Order'!J19)","v":""},{"$f":"IF('1. Order'!K19=\"\",\"\",'1. Order'!K19)","v":""},{"$f":"IF('1. Order'!L19=\"\",\"\",'1. Order'!L19)","v":""},{"$f":"IF('1. Order'!M19=\"\",\"\",'1. Order'!M19)","v":""},{"$f":"IF('1. Order'!N19=\"\",\"\",'1. Order'!N19)","v":""},{"$f":"IF('1. Order'!P19=\"\",\"\",'1. Order'!P19)","v":""},{"$f":"IF('1. Order'!Q19=\"\",\"\",'1. Order'!Q19)","v":{"$error":"#N/A"}},{"$f":"IF('1. Order'!R19=\"\",\"\",'1. Order'!R19)","v":{"$error":"#N/A"}},{"$f":"IF('1. Order'!S19=\"\",\"\",'1. Order'!S19)","v":""},{"$f":"IF('1. Order'!T19=\"\",\"\",'1. Order'!T19)","v":""},{"$f":"IF('1. Order'!U19=\"\",\"\",'1. Order'!U19)","v":""},{"$f":"IF('1. Order'!X19=\"\",\"\",'1. Order'!X19)","v":""},{"$f":"IF('1. Order'!Y19=\"\",\"\",'1. Order'!Y19)","v":""},{"$f":"IF('1. Order'!Z19=\"\",\"\",'1. Order'!Z19)","v":""},{"$f":"IF('1. Order'!AC19=\"\",\"\",'1. Order'!AC19)","v":""},{"$f":"IF('1. Order'!AD19=\"\",\"\",'1. Order'!AD19)","v":""},{"$f":"IF('1. Order'!AE19=\"\",\"\",'1. Order'!AE19)","v":""},null,{"$f":"IF('1. Order'!AW19=\"\",\"\",'1. Order'!AW19)","v":""},{"$f":"IF('1. Order'!AX19=\"\",\"\",'1. Order'!AX19)","v":""},null,null,null,null,null,null,null,{"$f":"IF('1. Order'!BB19=\"\",\"\",'1. Order'!BB19)","v":""},{"$f":"IF('1. Order'!BC19=\"\",\"\",'1. Order'!BC19)","v":""},{"$f":"IF('1. Order'!BD19=\"\",\"\",'1. Order'!BD19)","v":""},{"$f":"IF('1. Order'!BE19=\"\",\"\",'1. Order'!BE19)","v":""},{"$f":"IF('1. Order'!BG19=\"\",\"\",'1. Order'!BG19)","v":""},{"$f":"IF('1. Order'!BH19=\"\",\"\",'1. Order'!BH19)","v":""},{"$f":"IF('1. Order'!BI19=\"\",\"\",'1. Order'!BI19)","v":""},{"$f":"IF('1. Order'!BJ19=\"\",\"\",'1. Order'!BJ19)","v":""},{"$f":"IF('1. Order'!BK19=\"\",\"\",'1. Order'!BK19)","v":"ZWO"}]
[{"$f":"IF('1. Order'!G20=\"\",\"\",'1. Order'!G20)","v":""},{"$f":"IF('1. Order'!H20=\"\",\"\",'1. Order'!H20)","v":""},{"$f":"IF('1. Order'!I20=\"\",\"\",'1. Order'!I20)","v":""},{"$f":"IF('1. Order'!J20=\"\",\"\",'1. Order'!J20)","v":""},{"$f":"IF('1. Order'!K20=\"\",\"\",'1. Order'!K20)","v":""},{"$f":"IF('1. Order'!L20=\"\",\"\",'1. Order'!L20)","v":""},{"$f":"IF('1. Order'!M20=\"\",\"\",'1. Order'!M20)","v":""},{"$f":"IF('1. Order'!N20=\"\",\"\",'1. Order'!N20)","v":""},{"$f":"IF('1. Order'!P20=\"\",\"\",'1. Order'!P20)","v":""},{"$f":"IF('1. Order'!Q20=\"\",\"\",'1. Order'!Q20)","v":{"$error":"#N/A"}},{"$f":"IF('1. Order'!R20=\"\",\"\",'1. Order'!R20)","v":{"$error":"#N/A"}},{"$f":"IF('1. Order'!S20=\"\",\"\",'1. Order'!S20)","v":""},{"$f":"IF('1. Order'!T20=\"\",\"\",'1. Order'!T20)","v":""},{"$f":"IF('1. Order'!U20=\"\",\"\",'1. Order'!U20)","v":""},{"$f":"IF('1. Order'!X20=\"\",\"\",'1. Order'!X20)","v":""},{"$f":"IF('1. Order'!Y20=\"\",\"\",'1. Order'!Y20)","v":""},{"$f":"IF('1. Order'!Z20=\"\",\"\",'1. Order'!Z20)","v":""},{"$f":"IF('1. Order'!AC20=\"\",\"\",'1. Order'!AC20)","v":""},{"$f":"IF('1. Order'!AD20=\"\",\"\",'1. Order'!AD20)","v":""},{"$f":"IF('1. Order'!AE20=\"\",\"\",'1. Order'!AE20)","v":""},null,{"$f":"IF('1. Order'!AW20=\"\",\"\",'1. Order'!AW20)","v":""},{"$f":"IF('1. Order'!AX20=\"\",\"\",'1. Order'!AX20)","v":""},null,null,null,null,null,null,null,{"$f":"IF('1. Order'!BB20=\"\",\"\",'1. Order'!BB20)","v":""},{"$f":"IF('1. Order'!BC20=\"\",\"\",'1. Order'!BC20)","v":""},{"$f":"IF('1. Order'!BD20=\"\",\"\",'1. Order'!BD20)","v":""},{"$f":"IF('1. Order'!BE20=\"\",\"\",'1. Order'!BE20)","v":""},{"$f":"IF('1. Order'!BG20=\"\",\"\",'1. Order'!BG20)","v":""},{"$f":"IF('1. Order'!BH20=\"\",\"\",'1. Order'!BH20)","v":""},{"$f":"IF('1. Order'!BI20=\"\",\"\",'1. Order'!BI20)","v":""},{"$f":"IF('1. Order'!BJ20=\"\",\"\",'1. Order'!BJ20)","v":""},{"$f":"IF('1. Order'!BK20=\"\",\"\",'1. Order'!BK20)","v":"ZWO"}]
[{"$f":"IF('1. Order'!G21=\"\",\"\",'1. Order'!G21)","v":""},{"$f":"IF('1. Order'!H21=\"\",\"\",'1. Order'!H21)","v":""},{"$f":"IF('1. Order'!I21=\"\",\"\",'1. Order'!I21)","v":""},{"$f":"IF('1. Order'!J21=\"\",\"\",'1. Order'!J21)","v":""},{"$f":"IF('1. Order'!K21=\"\",\"\",'1. Order'!K21)","v":""},{"$f":"IF('1. Order'!L21=\"\",\"\",'1. Order'!L21)","v":""},{"$f":"IF('1. Order'!M21=\"\",\"\",'1. Order'!M21)","v":""},{"$f":"IF('1. Order'!N21=\"\",\"\",'1. Order'!N21)","v":""},{"$f":"IF('1. Order'!P21=\"\",\"\",'1. Order'!P21)","v":""},{"$f":"IF('1. Order'!Q21=\"\",\"\",'1. Order'!Q21)","v":{"$error":"#N/A"}},{"$f":"IF('1. Order'!R21=\"\",\"\",'1. Order'!R21)","v":{"$error":"#N/A"}},{"$f":"IF('1. Order'!S21=\"\",\"\",'1. Order'!S21)","v":""},{"$f":"IF('1. Order'!T21=\"\",\"\",'1. Order'!T21)","v":""},{"$f":"IF('1. Order'!U21=\"\",\"\",'1. Order'!U21)","v":""},{"$f":"IF('1. Order'!X21=\"\",\"\",'1. Order'!X21)","v":""},{"$f":"IF('1. Order'!Y21=\"\",\"\",'1. Order'!Y21)","v":""},{"$f":"IF('1. Order'!Z21=\"\",\"\",'1. Order'!Z21)","v":""},{"$f":"IF('1. Order'!AC21=\"\",\"\",'1. Order'!AC21)","v":""},{"$f":"IF('1. Order'!AD21=\"\",\"\",'1. Order'!AD21)","v":""},{"$f":"IF('1. Order'!AE21=\"\",\"\",'1. Order'!AE21)","v":""},null,{"$f":"IF('1. Order'!AW21=\"\",\"\",'1. Order'!AW21)","v":""},{"$f":"IF('1. Order'!AX21=\"\",\"\",'1. Order'!AX21)","v":""},null,null,null,null,null,null,null,{"$f":"IF('1. Order'!BB21=\"\",\"\",'1. Order'!BB21)","v":""},{"$f":"IF('1. Order'!BC21=\"\",\"\",'1. Order'!BC21)","v":""},{"$f":"IF('1. Order'!BD21=\"\",\"\",'1. Order'!BD21)","v":""},{"$f":"IF('1. Order'!BE21=\"\",\"\",'1. Order'!BE21)","v":""},{"$f":"IF('1. Order'!BG21=\"\",\"\",'1. Order'!BG21)","v":""},{"$f":"IF('1. Order'!BH21=\"\",\"\",'1. Order'!BH21)","v":""},{"$f":"IF('1. Order'!BI21=\"\",\"\",'1. Order'!BI21)","v":""},{"$f":"IF('1. Order'!BJ21=\"\",\"\",'1. Order'!BJ21)","v":""},{"$f":"IF('1. Order'!BK21=\"\",\"\",'1. Order'!BK21)","v":"ZWO"}]
[{"$f":"IF('1. Order'!G22=\"\",\"\",'1. Order'!G22)","v":""},{"$f":"IF('1. Order'!H22=\"\",\"\",'1. Order'!H22)","v":""},{"$f":"IF('1. Order'!I22=\"\",\"\",'1. Order'!I22)","v":""},{"$f":"IF('1. Order'!J22=\"\",\"\",'1. Order'!J22)","v":""},{"$f":"IF('1. Order'!K22=\"\",\"\",'1. Order'!K22)","v":""},{"$f":"IF('1. Order'!L22=\"\",\"\",'1. Order'!L22)","v":""},{"$f":"IF('1. Order'!M22=\"\",\"\",'1. Order'!M22)","v":""},{"$f":"IF('1. Order'!N22=\"\",\"\",'1. Order'!N22)","v":""},{"$f":"IF('1. Order'!P22=\"\",\"\",'1. Order'!P22)","v":""},{"$f":"IF('1. Order'!Q22=\"\",\"\",'1. Order'!Q22)","v":{"$error":"#N/A"}},{"$f":"IF('1. Order'!R22=\"\",\"\",'1. Order'!R22)","v":{"$error":"#N/A"}},{"$f":"IF('1. Order'!S22=\"\",\"\",'1. Order'!S22)","v":""},{"$f":"IF('1. Order'!T22=\"\",\"\",'1. Order'!T22)","v":""},{"$f":"IF('1. Order'!U22=\"\",\"\",'1. Order'!U22)","v":""},{"$f":"IF('1. Order'!X22=\"\",\"\",'1. Order'!X22)","v":""},{"$f":"IF('1. Order'!Y22=\"\",\"\",'1. Order'!Y22)","v":""},{"$f":"IF('1. Order'!Z22=\"\",\"\",'1. Order'!Z22)","v":""},{"$f":"IF('1. Order'!AC22=\"\",\"\",'1. Order'!AC22)","v":""},{"$f":"IF('1. Order'!AD22=\"\",\"\",'1. Order'!AD22)","v":""},{"$f":"IF('1. Order'!AE22=\"\",\"\",'1. Order'!AE22)","v":""},null,{"$f":"IF('1. Order'!AW22=\"\",\"\",'1. Order'!AW22)","v":""},{"$f":"IF('1. Order'!AX22=\"\",\"\",'1. Order'!AX22)","v":""},null,null,null,null,null,null,null,{"$f":"IF('1. Order'!BB22=\"\",\"\",'1. Order'!BB22)","v":""},{"$f":"IF('1. Order'!BC22=\"\",\"\",'1. Order'!BC22)","v":""},{"$f":"IF('1. Order'!BD22=\"\",\"\",'1. Order'!BD22)","v":""},{"$f":"IF('1. Order'!BE22=\"\",\"\",'1. Order'!BE22)","v":""},{"$f":"IF('1. Order'!BG22=\"\",\"\",'1. Order'!BG22)","v":""},{"$f":"IF('1. Order'!BH22=\"\",\"\",'1. Order'!BH22)","v":""},{"$f":"IF('1. Order'!BI22=\"\",\"\",'1. Order'!BI22)","v":""},{"$f":"IF('1. Order'!BJ22=\"\",\"\",'1. Order'!BJ22)","v":""},{"$f":"IF('1. Order'!BK22=\"\",\"\",'1. Order'!BK22)","v":"ZWO"}]
[{"$f":"IF('1. Order'!G23=\"\",\"\",'1. Order'!G23)","v":""},{"$f":"IF('1. Order'!H23=\"\",\"\",'1. Order'!H23)","v":""},{"$f":"IF('1. Order'!I23=\"\",\"\",'1. Order'!I23)","v":""},{"$f":"IF('1. Order'!J23=\"\",\"\",'1. Order'!J23)","v":""},{"$f":"IF('1. Order'!K23=\"\",\"\",'1. Order'!K23)","v":""},{"$f":"IF('1. Order'!L23=\"\",\"\",'1. Order'!L23)","v":""},{"$f":"IF('1. Order'!M23=\"\",\"\",'1. Order'!M23)","v":""},{"$f":"IF('1. Order'!N23=\"\",\"\",'1. Order'!N23)","v":""},{"$f":"IF('1. Order'!P23=\"\",\"\",'1. Order'!P23)","v":""},{"$f":"IF('1. Order'!Q23=\"\",\"\",'1. Order'!Q23)","v":{"$error":"#N/A"}},{"$f":"IF('1. Order'!R23=\"\",\"\",'1. Order'!R23)","v":{"$error":"#N/A"}},{"$f":"IF('1. Order'!S23=\"\",\"\",'1. Order'!S23)","v":""},{"$f":"IF('1. Order'!T23=\"\",\"\",'1. Order'!T23)","v":""},{"$f":"IF('1. Order'!U23=\"\",\"\",'1. Order'!U23)","v":""},{"$f":"IF('1. Order'!X23=\"\",\"\",'1. Order'!X23)","v":""},{"$f":"IF('1. Order'!Y23=\"\",\"\",'1. Order'!Y23)","v":""},{"$f":"IF('1. Order'!Z23=\"\",\"\",'1. Order'!Z23)","v":""},{"$f":"IF('1. Order'!AC23=\"\",\"\",'1. Order'!AC23)","v":""},{"$f":"IF('1. Order'!AD23=\"\",\"\",'1. Order'!AD23)","v":""},{"$f":"IF('1. Order'!AE23=\"\",\"\",'1. Order'!AE23)","v":""},null,{"$f":"IF('1. Order'!AW23=\"\",\"\",'1. Order'!AW23)","v":""},{"$f":"IF('1. Order'!AX23=\"\",\"\",'1. Order'!AX23)","v":""},null,null,null,null,null,null,null,{"$f":"IF('1. Order'!BB23=\"\",\"\",'1. Order'!BB23)","v":""},{"$f":"IF('1. Order'!BC23=\"\",\"\",'1. Order'!BC23)","v":""},{"$f":"IF('1. Order'!BD23=\"\",\"\",'1. Order'!BD23)","v":""},{"$f":"IF('1. Order'!BE23=\"\",\"\",'1. Order'!BE23)","v":""},{"$f":"IF('1. Order'!BG23=\"\",\"\",'1. Order'!BG23)","v":""},{"$f":"IF('1. Order'!BH23=\"\",\"\",'1. Order'!BH23)","v":""},{"$f":"IF('1. Order'!BI23=\"\",\"\",'1. Order'!BI23)","v":""},{"$f":"IF('1. Order'!BJ23=\"\",\"\",'1. Order'!BJ23)","v":""},{"$f":"IF('1. Order'!BK23=\"\",\"\",'1. Order'!BK23)","v":"ZWO"}]
[{"$f":"IF('1. Order'!G24=\"\",\"\",'1. Order'!G24)","v":""},{"$f":"IF('1. Order'!H24=\"\",\"\",'1. Order'!H24)","v":""},{"$f":"IF('1. Order'!I24=\"\",\"\",'1. Order'!I24)","v":""},{"$f":"IF('1. Order'!J24=\"\",\"\",'1. Order'!J24)","v":""},{"$f":"IF('1. Order'!K24=\"\",\"\",'1. Order'!K24)","v":""},{"$f":"IF('1. Order'!L24=\"\",\"\",'1. Order'!L24)","v":""},{"$f":"IF('1. Order'!M24=\"\",\"\",'1. Order'!M24)","v":""},{"$f":"IF('1. Order'!N24=\"\",\"\",'1. Order'!N24)","v":""},{"$f":"IF('1. Order'!P24=\"\",\"\",'1. Order'!P24)","v":""},{"$f":"IF('1. Order'!Q24=\"\",\"\",'1. Order'!Q24)","v":{"$error":"#N/A"}},{"$f":"IF('1. Order'!R24=\"\",\"\",'1. Order'!R24)","v":{"$error":"#N/A"}},{"$f":"IF('1. Order'!S24=\"\",\"\",'1. Order'!S24)","v":""},{"$f":"IF('1. Order'!T24=\"\",\"\",'1. Order'!T24)","v":""},{"$f":"IF('1. Order'!U24=\"\",\"\",'1. Order'!U24)","v":""},{"$f":"IF('1. Order'!X24=\"\",\"\",'1. Order'!X24)","v":""},{"$f":"IF('1. Order'!Y24=\"\",\"\",'1. Order'!Y24)","v":""},{"$f":"IF('1. Order'!Z24=\"\",\"\",'1. Order'!Z24)","v":""},{"$f":"IF('1. Order'!AC24=\"\",\"\",'1. Order'!AC24)","v":""},{"$f":"IF('1. Order'!AD24=\"\",\"\",'1. Order'!AD24)","v":""},{"$f":"IF('1. Order'!AE24=\"\",\"\",'1. Order'!AE24)","v":""},null,{"$f":"IF('1. Order'!AW24=\"\",\"\",'1. Order'!AW24)","v":""},{"$f":"IF('1. Order'!AX24=\"\",\"\",'1. Order'!AX24)","v":""},null,null,null,null,null,null,null,{"$f":"IF('1. Order'!BB24=\"\",\"\",'1. Order'!BB24)","v":""},{"$f":"IF('1. Order'!BC24=\"\",\"\",'1. Order'!BC24)","v":""},{"$f":"IF('1. Order'!BD24=\"\",\"\",'1. Order'!BD24)","v":""},{"$f":"IF('1. Order'!BE24=\"\",\"\",'1. Order'!BE24)","v":""},{"$f":"IF('1. Order'!BG24=\"\",\"\",'1. Order'!BG24)","v":""},{"$f":"IF('1. Order'!BH24=\"\",\"\",'1. Order'!BH24)","v":""},{"$f":"IF('1. Order'!BI24=\"\",\"\",'1. Order'!BI24)","v":""},{"$f":"IF('1. Order'!BJ24=\"\",\"\",'1. Order'!BJ24)","v":""},{"$f":"IF('1. Order'!BK24=\"\",\"\",'1. Order'!BK24)","v":"ZWO"}]
[{"$f":"IF('1. Order'!G25=\"\",\"\",'1. Order'!G25)","v":""},{"$f":"IF('1. Order'!H25=\"\",\"\",'1. Order'!H25)","v":""},{"$f":"IF('1. Order'!I25=\"\",\"\",'1. Order'!I25)","v":""},{"$f":"IF('1. Order'!J25=\"\",\"\",'1. Order'!J25)","v":""},{"$f":"IF('1. Order'!K25=\"\",\"\",'1. Order'!K25)","v":""},{"$f":"IF('1. Order'!L25=\"\",\"\",'1. Order'!L25)","v":""},{"$f":"IF('1. Order'!M25=\"\",\"\",'1. Order'!M25)","v":""},{"$f":"IF('1. Order'!N25=\"\",\"\",'1. Order'!N25)","v":""},{"$f":"IF('1. Order'!P25=\"\",\"\",'1. Order'!P25)","v":""},{"$f":"IF('1. Order'!Q25=\"\",\"\",'1. Order'!Q25)","v":{"$error":"#N/A"}},{"$f":"IF('1. Order'!R25=\"\",\"\",'1. Order'!R25)","v":{"$error":"#N/A"}},{"$f":"IF('1. Order'!S25=\"\",\"\",'1. Order'!S25)","v":""},{"$f":"IF('1. Order'!T25=\"\",\"\",'1. Order'!T25)","v":""},{"$f":"IF('1. Order'!U25=\"\",\"\",'1. Order'!U25)","v":""},{"$f":"IF('1. Order'!X25=\"\",\"\",'1. Order'!X25)","v":""},{"$f":"IF('1. Order'!Y25=\"\",\"\",'1. Order'!Y25)","v":""},{"$f":"IF('1. Order'!Z25=\"\",\"\",'1. Order'!Z25)","v":""},{"$f":"IF('1. Order'!AC25=\"\",\"\",'1. Order'!AC25)","v":""},{"$f":"IF('1. Order'!AD25=\"\",\"\",'1. Order'!AD25)","v":""},{"$f":"IF('1. Order'!AE25=\"\",\"\",'1. Order'!AE25)","v":""},null,{"$f":"IF('1. Order'!AW25=\"\",\"\",'1. Order'!AW25)","v":""},{"$f":"IF('1. Order'!AX25=\"\",\"\",'1. Order'!AX25)","v":""},null,null,null,null,null,null,null,{"$f":"IF('1. Order'!BB25=\"\",\"\",'1. Order'!BB25)","v":""},{"$f":"IF('1. Order'!BC25=\"\",\"\",'1. Order'!BC25)","v":""},{"$f":"IF('1. Order'!BD25=\"\",\"\",'1. Order'!BD25)","v":""},{"$f":"IF('1. Order'!BE25=\"\",\"\",'1. Order'!BE25)","v":""},{"$f":"IF('1. Order'!BG25=\"\",\"\",'1. Order'!BG25)","v":""},{"$f":"IF('1. Order'!BH25=\"\",\"\",'1. Order'!BH25)","v":""},{"$f":"IF('1. Order'!BI25=\"\",\"\",'1. Order'!BI25)","v":""},{"$f":"IF('1. Order'!BJ25=\"\",\"\",'1. Order'!BJ25)","v":""},{"$f":"IF('1. Order'!BK25=\"\",\"\",'1. Order'!BK25)","v":"ZWO"}]
[{"$f":"IF('1. Order'!G26=\"\",\"\",'1. Order'!G26)","v":""},{"$f":"IF('1. Order'!H26=\"\",\"\",'1. Order'!H26)","v":""},{"$f":"IF('1. Order'!I26=\"\",\"\",'1. Order'!I26)","v":""},{"$f":"IF('1. Order'!J26=\"\",\"\",'1. Order'!J26)","v":""},{"$f":"IF('1. Order'!K26=\"\",\"\",'1. Order'!K26)","v":""},{"$f":"IF('1. Order'!L26=\"\",\"\",'1. Order'!L26)","v":""},{"$f":"IF('1. Order'!M26=\"\",\"\",'1. Order'!M26)","v":""},{"$f":"IF('1. Order'!N26=\"\",\"\",'1. Order'!N26)","v":""},{"$f":"IF('1. Order'!P26=\"\",\"\",'1. Order'!P26)","v":""},{"$f":"IF('1. Order'!Q26=\"\",\"\",'1. Order'!Q26)","v":{"$error":"#N/A"}},{"$f":"IF('1. Order'!R26=\"\",\"\",'1. Order'!R26)","v":{"$error":"#N/A"}},{"$f":"IF('1. Order'!S26=\"\",\"\",'1. Order'!S26)","v":""},{"$f":"IF('1. Order'!T26=\"\",\"\",'1. Order'!T26)","v":""},{"$f":"IF('1. Order'!U26=\"\",\"\",'1. Order'!U26)","v":""},{"$f":"IF('1. Order'!X26=\"\",\"\",'1. Order'!X26)","v":""},{"$f":"IF('1. Order'!Y26=\"\",\"\",'1. Order'!Y26)","v":""},{"$f":"IF('1. Order'!Z26=\"\",\"\",'1. Order'!Z26)","v":""},{"$f":"IF('1. Order'!AC26=\"\",\"\",'1. Order'!AC26)","v":""},{"$f":"IF('1. Order'!AD26=\"\",\"\",'1. Order'!AD26)","v":""},{"$f":"IF('1. Order'!AE26=\"\",\"\",'1. Order'!AE26)","v":""},null,{"$f":"IF('1. Order'!AW26=\"\",\"\",'1. Order'!AW26)","v":""},{"$f":"IF('1. Order'!AX26=\"\",\"\",'1. Order'!AX26)","v":""},null,null,null,null,null,null,null,{"$f":"IF('1. Order'!BB26=\"\",\"\",'1. Order'!BB26)","v":""},{"$f":"IF('1. Order'!BC26=\"\",\"\",'1. Order'!BC26)","v":""},{"$f":"IF('1. Order'!BD26=\"\",\"\",'1. Order'!BD26)","v":""},{"$f":"IF('1. Order'!BE26=\"\",\"\",'1. Order'!BE26)","v":""},{"$f":"IF('1. Order'!BG26=\"\",\"\",'1. Order'!BG26)","v":""},{"$f":"IF('1. Order'!BH26=\"\",\"\",'1. Order'!BH26)","v":""},{"$f":"IF('1. Order'!BI26=\"\",\"\",'1. Order'!BI26)","v":""},{"$f":"IF('1. Order'!BJ26=\"\",\"\",'1. Order'!BJ26)","v":""},{"$f":"IF('1. Order'!BK26=\"\",\"\",'1. Order'!BK26)","v":"ZWO"}]
[{"$f":"IF('1. Order'!G27=\"\",\"\",'1. Order'!G27)","v":""},{"$f":"IF('1. Order'!H27=\"\",\"\",'1. Order'!H27)","v":""},{"$f":"IF('1. Order'!I27=\"\",\"\",'1. Order'!I27)","v":""},{"$f":"IF('1. Order'!J27=\"\",\"\",'1. Order'!J27)","v":""},{"$f":"IF('1. Order'!K27=\"\",\"\",'1. Order'!K27)","v":""},{"$f":"IF('1. Order'!L27=\"\",\"\",'1. Order'!L27)","v":""},{"$f":"IF('1. Order'!M27=\"\",\"\",'1. Order'!M27)","v":""},{"$f":"IF('1. Order'!N27=\"\",\"\",'1. Order'!N27)","v":""},{"$f":"IF('1. Order'!P27=\"\",\"\",'1. Order'!P27)","v":""},{"$f":"IF('1. Order'!Q27=\"\",\"\",'1. Order'!Q27)","v":{"$error":"#N/A"}},{"$f":"IF('1. Order'!R27=\"\",\"\",'1. Order'!R27)","v":{"$error":"#N/A"}},{"$f":"IF('1. Order'!S27=\"\",\"\",'1. Order'!S27)","v":""},{"$f":"IF('1. Order'!T27=\"\",\"\",'1. Order'!T27)","v":""},{"$f":"IF('1. Order'!U27=\"\",\"\",'1. Order'!U27)","v":""},{"$f":"IF('1. Order'!X27=\"\",\"\",'1. Order'!X27)","v":""},{"$f":"IF('1. Order'!Y27=\"\",\"\",'1. Order'!Y27)","v":""},{"$f":"IF('1. Order'!Z27=\"\",\"\",'1. Order'!Z27)","v":""},{"$f":"IF('1. Order'!AC27=\"\",\"\",'1. Order'!AC27)","v":""},{"$f":"IF('1. Order'!AD27=\"\",\"\",'1. Order'!AD27)","v":""},{"$f":"IF('1. Order'!AE27=\"\",\"\",'1. Order'!AE27)","v":""},null,{"$f":"IF('1. Order'!AW27=\"\",\"\",'1. Order'!AW27)","v":""},{"$f":"IF('1. Order'!AX27=\"\",\"\",'1. Order'!AX27)","v":""},null,null,null,null,null,null,null,{"$f":"IF('1. Order'!BB27=\"\",\"\",'1. Order'!BB27)","v":""},{"$f":"IF('1. Order'!BC27=\"\",\"\",'1. Order'!BC27)","v":""},{"$f":"IF('1. Order'!BD27=\"\",\"\",'1. Order'!BD27)","v":""},{"$f":"IF('1. Order'!BE27=\"\",\"\",'1. Order'!BE27)","v":""},{"$f":"IF('1. Order'!BG27=\"\",\"\",'1. Order'!BG27)","v":""},{"$f":"IF('1. Order'!BH27=\"\",\"\",'1. Order'!BH27)","v":""},{"$f":"IF('1. Order'!BI27=\"\",\"\",'1. Order'!BI27)","v":""},{"$f":"IF('1. Order'!BJ27=\"\",\"\",'1. Order'!BJ27)","v":""},{"$f":"IF('1. Order'!BK27=\"\",\"\",'1. Order'!BK27)","v":"ZWO"}]
[{"$f":"IF('1. Order'!G28=\"\",\"\",'1. Order'!G28)","v":""},{"$f":"IF('1. Order'!H28=\"\",\"\",'1. Order'!H28)","v":""},{"$f":"IF('1. Order'!I28=\"\",\"\",'1. Order'!I28)","v":""},{"$f":"IF('1. Order'!J28=\"\",\"\",'1. Order'!J28)","v":""},{"$f":"IF('1. Order'!K28=\"\",\"\",'1. Order'!K28)","v":""},{"$f":"IF('1. Order'!L28=\"\",\"\",'1. Order'!L28)","v":""},{"$f":"IF('1. Order'!M28=\"\",\"\",'1. Order'!M28)","v":""},{"$f":"IF('1. Order'!N28=\"\",\"\",'1. Order'!N28)","v":""},{"$f":"IF('1. Order'!P28=\"\",\"\",'1. Order'!P28)","v":""},{"$f":"IF('1. Order'!Q28=\"\",\"\",'1. Order'!Q28)","v":{"$error":"#N/A"}},{"$f":"IF('1. Order'!R28=\"\",\"\",'1. Order'!R28)","v":{"$error":"#N/A"}},{"$f":"IF('1. Order'!S28=\"\",\"\",'1. Order'!S28)","v":""},{"$f":"IF('1. Order'!T28=\"\",\"\",'1. Order'!T28)","v":""},{"$f":"IF('1. Order'!U28=\"\",\"\",'1. Order'!U28)","v":""},{"$f":"IF('1. Order'!X28=\"\",\"\",'1. Order'!X28)","v":""},{"$f":"IF('1. Order'!Y28=\"\",\"\",'1. Order'!Y28)","v":""},{"$f":"IF('1. Order'!Z28=\"\",\"\",'1. Order'!Z28)","v":""},{"$f":"IF('1. Order'!AC28=\"\",\"\",'1. Order'!AC28)","v":""},{"$f":"IF('1. Order'!AD28=\"\",\"\",'1. Order'!AD28)","v":""},{"$f":"IF('1. Order'!AE28=\"\",\"\",'1. Order'!AE28)","v":""},null,{"$f":"IF('1. Order'!AW28=\"\",\"\",'1. Order'!AW28)","v":""},{"$f":"IF('1. Order'!AX28=\"\",\"\",'1. Order'!AX28)","v":""},null,null,null,null,null,null,null,{"$f":"IF('1. Order'!BB28=\"\",\"\",'1. Order'!BB28)","v":""},{"$f":"IF('1. Order'!BC28=\"\",\"\",'1. Order'!BC28)","v":""},{"$f":"IF('1. Order'!BD28=\"\",\"\",'1. Order'!BD28)","v":""},{"$f":"IF('1. Order'!BE28=\"\",\"\",'1. Order'!BE28)","v":""},{"$f":"IF('1. Order'!BG28=\"\",\"\",'1. Order'!BG28)","v":""},{"$f":"IF('1. Order'!BH28=\"\",\"\",'1. Order'!BH28)","v":""},{"$f":"IF('1. Order'!BI28=\"\",\"\",'1. Order'!BI28)","v":""},{"$f":"IF('1. Order'!BJ28=\"\",\"\",'1. Order'!BJ28)","v":""},{"$f":"IF('1. Order'!BK28=\"\",\"\",'1. Order'!BK28)","v":"ZWO"}]
[{"$f":"IF('1. Order'!G29=\"\",\"\",'1. Order'!G29)","v":""},{"$f":"IF('1. Order'!H29=\"\",\"\",'1. Order'!H29)","v":""},{"$f":"IF('1. Order'!I29=\"\",\"\",'1. Order'!I29)","v":""},{"$f":"IF('1. Order'!J29=\"\",\"\",'1. Order'!J29)","v":""},{"$f":"IF('1. Order'!K29=\"\",\"\",'1. Order'!K29)","v":""},{"$f":"IF('1. Order'!L29=\"\",\"\",'1. Order'!L29)","v":""},{"$f":"IF('1. Order'!M29=\"\",\"\",'1. Order'!M29)","v":""},{"$f":"IF('1. Order'!N29=\"\",\"\",'1. Order'!N29)","v":""},{"$f":"IF('1. Order'!P29=\"\",\"\",'1. Order'!P29)","v":""},{"$f":"IF('1. Order'!Q29=\"\",\"\",'1. Order'!Q29)","v":{"$error":"#N/A"}},{"$f":"IF('1. Order'!R29=\"\",\"\",'1. Order'!R29)","v":{"$error":"#N/A"}},{"$f":"IF('1. Order'!S29=\"\",\"\",'1. Order'!S29)","v":""},{"$f":"IF('1. Order'!T29=\"\",\"\",'1. Order'!T29)","v":""},{"$f":"IF('1. Order'!U29=\"\",\"\",'1. Order'!U29)","v":""},{"$f":"IF('1. Order'!X29=\"\",\"\",'1. Order'!X29)","v":""},{"$f":"IF('1. Order'!Y29=\"\",\"\",'1. Order'!Y29)","v":""},{"$f":"IF('1. Order'!Z29=\"\",\"\",'1. Order'!Z29)","v":""},{"$f":"IF('1. Order'!AC29=\"\",\"\",'1. Order'!AC29)","v":""},{"$f":"IF('1. Order'!AD29=\"\",\"\",'1. Order'!AD29)","v":""},{"$f":"IF('1. Order'!AE29=\"\",\"\",'1. Order'!AE29)","v":""},null,{"$f":"IF('1. Order'!AW29=\"\",\"\",'1. Order'!AW29)","v":""},{"$f":"IF('1. Order'!AX29=\"\",\"\",'1. Order'!AX29)","v":""},null,null,null,null,null,null,null,{"$f":"IF('1. Order'!BB29=\"\",\"\",'1. Order'!BB29)","v":""},{"$f":"IF('1. Order'!BC29=\"\",\"\",'1. Order'!BC29)","v":""},{"$f":"IF('1. Order'!BD29=\"\",\"\",'1. Order'!BD29)","v":""},{"$f":"IF('1. Order'!BE29=\"\",\"\",'1. Order'!BE29)","v":""},{"$f":"IF('1. Order'!BG29=\"\",\"\",'1. Order'!BG29)","v":""},{"$f":"IF('1. Order'!BH29=\"\",\"\",'1. Order'!BH29)","v":""},{"$f":"IF('1. Order'!BI29=\"\",\"\",'1. Order'!BI29)","v":""},{"$f":"IF('1. Order'!BJ29=\"\",\"\",'1. Order'!BJ29)","v":""},{"$f":"IF('1. Order'!BK29=\"\",\"\",'1. Order'!BK29)","v":"ZWO"}]
[{"$f":"IF('1. Order'!G30=\"\",\"\",'1. Order'!G30)","v":""},{"$f":"IF('1. Order'!H30=\"\",\"\",'1. Order'!H30)","v":""},{"$f":"IF('1. Order'!I30=\"\",\"\",'1. Order'!I30)","v":""},{"$f":"IF('1. Order'!J30=\"\",\"\",'1. Order'!J30)","v":""},{"$f":"IF('1. Order'!K30=\"\",\"\",'1. Order'!K30)","v":""},{"$f":"IF('1. Order'!L30=\"\",\"\",'1. Order'!L30)","v":""},{"$f":"IF('1. Order'!M30=\"\",\"\",'1. Order'!M30)","v":""},{"$f":"IF('1. Order'!N30=\"\",\"\",'1. Order'!N30)","v":""},{"$f":"IF('1. Order'!P30=\"\",\"\",'1. Order'!P30)","v":""},{"$f":"IF('1. Order'!Q30=\"\",\"\",'1. Order'!Q30)","v":{"$error":"#N/A"}},{"$f":"IF('1. Order'!R30=\"\",\"\",'1. Order'!R30)","v":{"$error":"#N/A"}},{"$f":"IF('1. Order'!S30=\"\",\"\",'1. Order'!S30)","v":""},{"$f":"IF('1. Order'!T30=\"\",\"\",'1. Order'!T30)","v":""},{"$f":"IF('1. Order'!U30=\"\",\"\",'1. Order'!U30)","v":""},{"$f":"IF('1. Order'!X30=\"\",\"\",'1. Order'!X30)","v":""},{"$f":"IF('1. Order'!Y30=\"\",\"\",'1. Order'!Y30)","v":""},{"$f":"IF('1. Order'!Z30=\"\",\"\",'1. Order'!Z30)","v":""},{"$f":"IF('1. Order'!AC30=\"\",\"\",'1. Order'!AC30)","v":""},{"$f":"IF('1. Order'!AD30=\"\",\"\",'1. Order'!AD30)","v":""},{"$f":"IF('1. Order'!AE30=\"\",\"\",'1. Order'!AE30)","v":""},null,{"$f":"IF('1. Order'!AW30=\"\",\"\",'1. Order'!AW30)","v":""},{"$f":"IF('1. Order'!AX30=\"\",\"\",'1. Order'!AX30)","v":""},null,null,null,null,null,null,null,{"$f":"IF('1. Order'!BB30=\"\",\"\",'1. Order'!BB30)","v":""},{"$f":"IF('1. Order'!BC30=\"\",\"\",'1. Order'!BC30)","v":""},{"$f":"IF('1. Order'!BD30=\"\",\"\",'1. Order'!BD30)","v":""},{"$f":"IF('1. Order'!BE30=\"\",\"\",'1. Order'!BE30)","v":""},{"$f":"IF('1. Order'!BG30=\"\",\"\",'1. Order'!BG30)","v":""},{"$f":"IF('1. Order'!BH30=\"\",\"\",'1. Order'!BH30)","v":""},{"$f":"IF('1. Order'!BI30=\"\",\"\",'1. Order'!BI30)","v":""},{"$f":"IF('1. Order'!BJ30=\"\",\"\",'1. Order'!BJ30)","v":""},{"$f":"IF('1. Order'!BK30=\"\",\"\",'1. Order'!BK30)","v":"ZWO"}]
[{"$f":"IF('1. Order'!G31=\"\",\"\",'1. Order'!G31)","v":""},{"$f":"IF('1. Order'!H31=\"\",\"\",'1. Order'!H31)","v":""},{"$f":"IF('1. Order'!I31=\"\",\"\",'1. Order'!I31)","v":""},{"$f":"IF('1. Order'!J31=\"\",\"\",'1. Order'!J31)","v":""},{"$f":"IF('1. Order'!K31=\"\",\"\",'1. Order'!K31)","v":""},{"$f":"IF('1. Order'!L31=\"\",\"\",'1. Order'!L31)","v":""},{"$f":"IF('1. Order'!M31=\"\",\"\",'1. Order'!M31)","v":""},{"$f":"IF('1. Order'!N31=\"\",\"\",'1. Order'!N31)","v":""},{"$f":"IF('1. Order'!P31=\"\",\"\",'1. Order'!P31)","v":""},{"$f":"IF('1. Order'!Q31=\"\",\"\",'1. Order'!Q31)","v":{"$error":"#N/A"}},{"$f":"IF('1. Order'!R31=\"\",\"\",'1. Order'!R31)","v":{"$error":"#N/A"}},{"$f":"IF('1. Order'!S31=\"\",\"\",'1. Order'!S31)","v":""},{"$f":"IF('1. Order'!T31=\"\",\"\",'1. Order'!T31)","v":""},{"$f":"IF('1. Order'!U31=\"\",\"\",'1. Order'!U31)","v":""},{"$f":"IF('1. Order'!X31=\"\",\"\",'1. Order'!X31)","v":""},{"$f":"IF('1. Order'!Y31=\"\",\"\",'1. Order'!Y31)","v":""},{"$f":"IF('1. Order'!Z31=\"\",\"\",'1. Order'!Z31)","v":""},{"$f":"IF('1. Order'!AC31=\"\",\"\",'1. Order'!AC31)","v":""},{"$f":"IF('1. Order'!AD31=\"\",\"\",'1. Order'!AD31)","v":""},{"$f":"IF('1. Order'!AE31=\"\",\"\",'1. Order'!AE31)","v":""},null,{"$f":"IF('1. Order'!AW31=\"\",\"\",'1. Order'!AW31)","v":""},{"$f":"IF('1. Order'!AX31=\"\",\"\",'1. Order'!AX31)","v":""},null,null,null,null,null,null,null,{"$f":"IF('1. Order'!BB31=\"\",\"\",'1. Order'!BB31)","v":""},{"$f":"IF('1. Order'!BC31=\"\",\"\",'1. Order'!BC31)","v":""},{"$f":"IF('1. Order'!BD31=\"\",\"\",'1. Order'!BD31)","v":""},{"$f":"IF('1. Order'!BE31=\"\",\"\",'1. Order'!BE31)","v":""},{"$f":"IF('1. Order'!BG31=\"\",\"\",'1. Order'!BG31)","v":""},{"$f":"IF('1. Order'!BH31=\"\",\"\",'1. Order'!BH31)","v":""},{"$f":"IF('1. Order'!BI31=\"\",\"\",'1. Order'!BI31)","v":""},{"$f":"IF('1. Order'!BJ31=\"\",\"\",'1. Order'!BJ31)","v":""},{"$f":"IF('1. Order'!BK31=\"\",\"\",'1. Order'!BK31)","v":"ZWO"}]
[{"$f":"IF('1. Order'!G32=\"\",\"\",'1. Order'!G32)","v":""},{"$f":"IF('1. Order'!H32=\"\",\"\",'1. Order'!H32)","v":""},{"$f":"IF('1. Order'!I32=\"\",\"\",'1. Order'!I32)","v":""},{"$f":"IF('1. Order'!J32=\"\",\"\",'1. Order'!J32)","v":""},{"$f":"IF('1. Order'!K32=\"\",\"\",'1. Order'!K32)","v":""},{"$f":"IF('1. Order'!L32=\"\",\"\",'1. Order'!L32)","v":""},{"$f":"IF('1. Order'!M32=\"\",\"\",'1. Order'!M32)","v":""},{"$f":"IF('1. Order'!N32=\"\",\"\",'1. Order'!N32)","v":""},{"$f":"IF('1. Order'!P32=\"\",\"\",'1. Order'!P32)","v":""},{"$f":"IF('1. Order'!Q32=\"\",\"\",'1. Order'!Q32)","v":{"$error":"#N/A"}},{"$f":"IF('1. Order'!R32=\"\",\"\",'1. Order'!R32)","v":{"$error":"#N/A"}},{"$f":"IF('1. Order'!S32=\"\",\"\",'1. Order'!S32)","v":""},{"$f":"IF('1. Order'!T32=\"\",\"\",'1. Order'!T32)","v":""},{"$f":"IF('1. Order'!U32=\"\",\"\",'1. Order'!U32)","v":""},{"$f":"IF('1. Order'!X32=\"\",\"\",'1. Order'!X32)","v":""},{"$f":"IF('1. Order'!Y32=\"\",\"\",'1. Order'!Y32)","v":""},{"$f":"IF('1. Order'!Z32=\"\",\"\",'1. Order'!Z32)","v":""},{"$f":"IF('1. Order'!AC32=\"\",\"\",'1. Order'!AC32)","v":""},{"$f":"IF('1. Order'!AD32=\"\",\"\",'1. Order'!AD32)","v":""},{"$f":"IF('1. Order'!AE32=\"\",\"\",'1. Order'!AE32)","v":""},null,{"$f":"IF('1. Order'!AW32=\"\",\"\",'1. Order'!AW32)","v":""},{"$f":"IF('1. Order'!AX32=\"\",\"\",'1. Order'!AX32)","v":""},null,null,null,null,null,null,null,{"$f":"IF('1. Order'!BB32=\"\",\"\",'1. Order'!BB32)","v":""},{"$f":"IF('1. Order'!BC32=\"\",\"\",'1. Order'!BC32)","v":""},{"$f":"IF('1. Order'!BD32=\"\",\"\",'1. Order'!BD32)","v":""},{"$f":"IF('1. Order'!BE32=\"\",\"\",'1. Order'!BE32)","v":""},{"$f":"IF('1. Order'!BG32=\"\",\"\",'1. Order'!BG32)","v":""},{"$f":"IF('1. Order'!BH32=\"\",\"\",'1. Order'!BH32)","v":""},{"$f":"IF('1. Order'!BI32=\"\",\"\",'1. Order'!BI32)","v":""},{"$f":"IF('1. Order'!BJ32=\"\",\"\",'1. Order'!BJ32)","v":""},{"$f":"IF('1. Order'!BK32=\"\",\"\",'1. Order'!BK32)","v":"ZWO"}]
[{"$f":"IF('1. Order'!G33=\"\",\"\",'1. Order'!G33)","v":""},{"$f":"IF('1. Order'!H33=\"\",\"\",'1. Order'!H33)","v":""},{"$f":"IF('1. Order'!I33=\"\",\"\",'1. Order'!I33)","v":""},{"$f":"IF('1. Order'!J33=\"\",\"\",'1. Order'!J33)","v":""},{"$f":"IF('1. Order'!K33=\"\",\"\",'1. Order'!K33)","v":""},{"$f":"IF('1. Order'!L33=\"\",\"\",'1. Order'!L33)","v":""},{"$f":"IF('1. Order'!M33=\"\",\"\",'1. Order'!M33)","v":""},{"$f":"IF('1. Order'!N33=\"\",\"\",'1. Order'!N33)","v":""},{"$f":"IF('1. Order'!P33=\"\",\"\",'1. Order'!P33)","v":""},{"$f":"IF('1. Order'!Q33=\"\",\"\",'1. Order'!Q33)","v":{"$error":"#N/A"}},{"$f":"IF('1. Order'!R33=\"\",\"\",'1. Order'!R33)","v":{"$error":"#N/A"}},{"$f":"IF('1. Order'!S33=\"\",\"\",'1. Order'!S33)","v":""},{"$f":"IF('1. Order'!T33=\"\",\"\",'1. Order'!T33)","v":""},{"$f":"IF('1. Order'!U33=\"\",\"\",'1. Order'!U33)","v":""},{"$f":"IF('1. Order'!X33=\"\",\"\",'1. Order'!X33)","v":""},{"$f":"IF('1. Order'!Y33=\"\",\"\",'1. Order'!Y33)","v":""},{"$f":"IF('1. Order'!Z33=\"\",\"\",'1. Order'!Z33)","v":""},{"$f":"IF('1. Order'!AC33=\"\",\"\",'1. Order'!AC33)","v":""},{"$f":"IF('1. Order'!AD33=\"\",\"\",'1. Order'!AD33)","v":""},{"$f":"IF('1. Order'!AE33=\"\",\"\",'1. Order'!AE33)","v":""},null,{"$f":"IF('1. Order'!AW33=\"\",\"\",'1. Order'!AW33)","v":""},{"$f":"IF('1. Order'!AX33=\"\",\"\",'1. Order'!AX33)","v":""},null,null,null,null,null,null,null,{"$f":"IF('1. Order'!BB33=\"\",\"\",'1. Order'!BB33)","v":""},{"$f":"IF('1. Order'!BC33=\"\",\"\",'1. Order'!BC33)","v":""},{"$f":"IF('1. Order'!BD33=\"\",\"\",'1. Order'!BD33)","v":""},{"$f":"IF('1. Order'!BE33=\"\",\"\",'1. Order'!BE33)","v":""},{"$f":"IF('1. Order'!BG33=\"\",\"\",'1. Order'!BG33)","v":""},{"$f":"IF('1. Order'!BH33=\"\",\"\",'1. Order'!BH33)","v":""},{"$f":"IF('1. Order'!BI33=\"\",\"\",'1. Order'!BI33)","v":""},{"$f":"IF('1. Order'!BJ33=\"\",\"\",'1. Order'!BJ33)","v":""},{"$f":"IF('1. Order'!BK33=\"\",\"\",'1. Order'!BK33)","v":"ZWO"}]
[{"$f":"IF('1. Order'!G34=\"\",\"\",'1. Order'!G34)","v":""},{"$f":"IF('1. Order'!H34=\"\",\"\",'1. Order'!H34)","v":""},{"$f":"IF('1. Order'!I34=\"\",\"\",'1. Order'!I34)","v":""},{"$f":"IF('1. Order'!J34=\"\",\"\",'1. Order'!J34)","v":""},{"$f":"IF('1. Order'!K34=\"\",\"\",'1. Order'!K34)","v":""},{"$f":"IF('1. Order'!L34=\"\",\"\",'1. Order'!L34)","v":""},{"$f":"IF('1. Order'!M34=\"\",\"\",'1. Order'!M34)","v":""},{"$f":"IF('1. Order'!N34=\"\",\"\",'1. Order'!N34)","v":""},{"$f":"IF('1. Order'!P34=\"\",\"\",'1. Order'!P34)","v":""},{"$f":"IF('1. Order'!Q34=\"\",\"\",'1. Order'!Q34)","v":{"$error":"#N/A"}},{"$f":"IF('1. Order'!R34=\"\",\"\",'1. Order'!R34)","v":{"$error":"#N/A"}},{"$f":"IF('1. Order'!S34=\"\",\"\",'1. Order'!S34)","v":""},{"$f":"IF('1. Order'!T34=\"\",\"\",'1. Order'!T34)","v":""},{"$f":"IF('1. Order'!U34=\"\",\"\",'1. Order'!U34)","v":""},{"$f":"IF('1. Order'!X34=\"\",\"\",'1. Order'!X34)","v":""},{"$f":"IF('1. Order'!Y34=\"\",\"\",'1. Order'!Y34)","v":""},{"$f":"IF('1. Order'!Z34=\"\",\"\",'1. Order'!Z34)","v":""},{"$f":"IF('1. Order'!AC34=\"\",\"\",'1. Order'!AC34)","v":""},{"$f":"IF('1. Order'!AD34=\"\",\"\",'1. Order'!AD34)","v":""},{"$f":"IF('1. Order'!AE34=\"\",\"\",'1. Order'!AE34)","v":""},null,{"$f":"IF('1. Order'!AW34=\"\",\"\",'1. Order'!AW34)","v":""},{"$f":"IF('1. Order'!AX34=\"\",\"\",'1. Order'!AX34)","v":""},null,null,null,null,null,null,null,{"$f":"IF('1. Order'!BB34=\"\",\"\",'1. Order'!BB34)","v":""},{"$f":"IF('1. Order'!BC34=\"\",\"\",'1. Order'!BC34)","v":""},{"$f":"IF('1. Order'!BD34=\"\",\"\",'1. Order'!BD34)","v":""},{"$f":"IF('1. Order'!BE34=\"\",\"\",'1. Order'!BE34)","v":""},{"$f":"IF('1. Order'!BG34=\"\",\"\",'1. Order'!BG34)","v":""},{"$f":"IF('1. Order'!BH34=\"\",\"\",'1. Order'!BH34)","v":""},{"$f":"IF('1. Order'!BI34=\"\",\"\",'1. Order'!BI34)","v":""},{"$f":"IF('1. Order'!BJ34=\"\",\"\",'1. Order'!BJ34)","v":""},{"$f":"IF('1. Order'!BK34=\"\",\"\",'1. Order'!BK34)","v":"ZWO"}]
[{"$f":"IF('1. Order'!G35=\"\",\"\",'1. Order'!G35)","v":""},{"$f":"IF('1. Order'!H35=\"\",\"\",'1. Order'!H35)","v":""},{"$f":"IF('1. Order'!I35=\"\",\"\",'1. Order'!I35)","v":""},{"$f":"IF('1. Order'!J35=\"\",\"\",'1. Order'!J35)","v":""},{"$f":"IF('1. Order'!K35=\"\",\"\",'1. Order'!K35)","v":""},{"$f":"IF('1. Order'!L35=\"\",\"\",'1. Order'!L35)","v":""},{"$f":"IF('1. Order'!M35=\"\",\"\",'1. Order'!M35)","v":""},{"$f":"IF('1. Order'!N35=\"\",\"\",'1. Order'!N35)","v":""},{"$f":"IF('1. Order'!P35=\"\",\"\",'1. Order'!P35)","v":""},{"$f":"IF('1. Order'!Q35=\"\",\"\",'1. Order'!Q35)","v":{"$error":"#N/A"}},{"$f":"IF('1. Order'!R35=\"\",\"\",'1. Order'!R35)","v":{"$error":"#N/A"}},{"$f":"IF('1. Order'!S35=\"\",\"\",'1. Order'!S35)","v":""},{"$f":"IF('1. Order'!T35=\"\",\"\",'1. Order'!T35)","v":""},{"$f":"IF('1. Order'!U35=\"\",\"\",'1. Order'!U35)","v":""},{"$f":"IF('1. Order'!X35=\"\",\"\",'1. Order'!X35)","v":""},{"$f":"IF('1. Order'!Y35=\"\",\"\",'1. Order'!Y35)","v":""},{"$f":"IF('1. Order'!Z35=\"\",\"\",'1. Order'!Z35)","v":""},{"$f":"IF('1. Order'!AC35=\"\",\"\",'1. Order'!AC35)","v":""},{"$f":"IF('1. Order'!AD35=\"\",\"\",'1. Order'!AD35)","v":""},{"$f":"IF('1. Order'!AE35=\"\",\"\",'1. Order'!AE35)","v":""},null,{"$f":"IF('1. Order'!AW35=\"\",\"\",'1. Order'!AW35)","v":""},{"$f":"IF('1. Order'!AX35=\"\",\"\",'1. Order'!AX35)","v":""},null,null,null,null,null,null,null,{"$f":"IF('1. Order'!BB35=\"\",\"\",'1. Order'!BB35)","v":""},{"$f":"IF('1. Order'!BC35=\"\",\"\",'1. Order'!BC35)","v":""},{"$f":"IF('1. Order'!BD35=\"\",\"\",'1. Order'!BD35)","v":""},{"$f":"IF('1. Order'!BE35=\"\",\"\",'1. Order'!BE35)","v":""},{"$f":"IF('1. Order'!BG35=\"\",\"\",'1. Order'!BG35)","v":""},{"$f":"IF('1. Order'!BH35=\"\",\"\",'1. Order'!BH35)","v":""},{"$f":"IF('1. Order'!BI35=\"\",\"\",'1. Order'!BI35)","v":""},{"$f":"IF('1. Order'!BJ35=\"\",\"\",'1. Order'!BJ35)","v":""},{"$f":"IF('1. Order'!BK35=\"\",\"\",'1. Order'!BK35)","v":"ZWO"}]
[{"$f":"IF('1. Order'!G36=\"\",\"\",'1. Order'!G36)","v":""},{"$f":"IF('1. Order'!H36=\"\",\"\",'1. Order'!H36)","v":""},{"$f":"IF('1. Order'!I36=\"\",\"\",'1. Order'!I36)","v":""},{"$f":"IF('1. Order'!J36=\"\",\"\",'1. Order'!J36)","v":""},{"$f":"IF('1. Order'!K36=\"\",\"\",'1. Order'!K36)","v":""},{"$f":"IF('1. Order'!L36=\"\",\"\",'1. Order'!L36)","v":""},{"$f":"IF('1. Order'!M36=\"\",\"\",'1. Order'!M36)","v":""},{"$f":"IF('1. Order'!N36=\"\",\"\",'1. Order'!N36)","v":""},{"$f":"IF('1. Order'!P36=\"\",\"\",'1. Order'!P36)","v":""},{"$f":"IF('1. Order'!Q36=\"\",\"\",'1. Order'!Q36)","v":{"$error":"#N/A"}},{"$f":"IF('1. Order'!R36=\"\",\"\",'1. Order'!R36)","v":{"$error":"#N/A"}},{"$f":"IF('1. Order'!S36=\"\",\"\",'1. Order'!S36)","v":""},{"$f":"IF('1. Order'!T36=\"\",\"\",'1. Order'!T36)","v":""},{"$f":"IF('1. Order'!U36=\"\",\"\",'1. Order'!U36)","v":""},{"$f":"IF('1. Order'!X36=\"\",\"\",'1. Order'!X36)","v":""},{"$f":"IF('1. Order'!Y36=\"\",\"\",'1. Order'!Y36)","v":""},{"$f":"IF('1. Order'!Z36=\"\",\"\",'1. Order'!Z36)","v":""},{"$f":"IF('1. Order'!AC36=\"\",\"\",'1. Order'!AC36)","v":""},{"$f":"IF('1. Order'!AD36=\"\",\"\",'1. Order'!AD36)","v":""},{"$f":"IF('1. Order'!AE36=\"\",\"\",'1. Order'!AE36)","v":""},null,{"$f":"IF('1. Order'!AW36=\"\",\"\",'1. Order'!AW36)","v":""},{"$f":"IF('1. Order'!AX36=\"\",\"\",'1. Order'!AX36)","v":""},null,null,null,null,null,null,null,{"$f":"IF('1. Order'!BB36=\"\",\"\",'1. Order'!BB36)","v":""},{"$f":"IF('1. Order'!BC36=\"\",\"\",'1. Order'!BC36)","v":""},{"$f":"IF('1. Order'!BD36=\"\",\"\",'1. Order'!BD36)","v":""},{"$f":"IF('1. Order'!BE36=\"\",\"\",'1. Order'!BE36)","v":""},{"$f":"IF('1. Order'!BG36=\"\",\"\",'1. Order'!BG36)","v":""},{"$f":"IF('1. Order'!BH36=\"\",\"\",'1. Order'!BH36)","v":""},{"$f":"IF('1. Order'!BI36=\"\",\"\",'1. Order'!BI36)","v":""},{"$f":"IF('1. Order'!BJ36=\"\",\"\",'1. Order'!BJ36)","v":""},{"$f":"IF('1. Order'!BK36=\"\",\"\",'1. Order'!BK36)","v":"ZWO"}]
[{"$f":"IF('1. Order'!G37=\"\",\"\",'1. Order'!G37)","v":""},{"$f":"IF('1. Order'!H37=\"\",\"\",'1. Order'!H37)","v":""},{"$f":"IF('1. Order'!I37=\"\",\"\",'1. Order'!I37)","v":""},{"$f":"IF('1. Order'!J37=\"\",\"\",'1. Order'!J37)","v":""},{"$f":"IF('1. Order'!K37=\"\",\"\",'1. Order'!K37)","v":""},{"$f":"IF('1. Order'!L37=\"\",\"\",'1. Order'!L37)","v":""},{"$f":"IF('1. Order'!M37=\"\",\"\",'1. Order'!M37)","v":""},{"$f":"IF('1. Order'!N37=\"\",\"\",'1. Order'!N37)","v":""},{"$f":"IF('1. Order'!P37=\"\",\"\",'1. Order'!P37)","v":""},{"$f":"IF('1. Order'!Q37=\"\",\"\",'1. Order'!Q37)","v":{"$error":"#N/A"}},{"$f":"IF('1. Order'!R37=\"\",\"\",'1. Order'!R37)","v":{"$error":"#N/A"}},{"$f":"IF('1. Order'!S37=\"\",\"\",'1. Order'!S37)","v":""},{"$f":"IF('1. Order'!T37=\"\",\"\",'1. Order'!T37)","v":""},{"$f":"IF('1. Order'!U37=\"\",\"\",'1. Order'!U37)","v":""},{"$f":"IF('1. Order'!X37=\"\",\"\",'1. Order'!X37)","v":""},{"$f":"IF('1. Order'!Y37=\"\",\"\",'1. Order'!Y37)","v":""},{"$f":"IF('1. Order'!Z37=\"\",\"\",'1. Order'!Z37)","v":""},{"$f":"IF('1. Order'!AC37=\"\",\"\",'1. Order'!AC37)","v":""},{"$f":"IF('1. Order'!AD37=\"\",\"\",'1. Order'!AD37)","v":""},{"$f":"IF('1. Order'!AE37=\"\",\"\",'1. Order'!AE37)","v":""},null,{"$f":"IF('1. Order'!AW37=\"\",\"\",'1. Order'!AW37)","v":""},{"$f":"IF('1. Order'!AX37=\"\",\"\",'1. Order'!AX37)","v":""},null,null,null,null,null,null,null,{"$f":"IF('1. Order'!BB37=\"\",\"\",'1. Order'!BB37)","v":""},{"$f":"IF('1. Order'!BC37=\"\",\"\",'1. Order'!BC37)","v":""},{"$f":"IF('1. Order'!BD37=\"\",\"\",'1. Order'!BD37)","v":""},{"$f":"IF('1. Order'!BE37=\"\",\"\",'1. Order'!BE37)","v":""},{"$f":"IF('1. Order'!BG37=\"\",\"\",'1. Order'!BG37)","v":""},{"$f":"IF('1. Order'!BH37=\"\",\"\",'1. Order'!BH37)","v":""},{"$f":"IF('1. Order'!BI37=\"\",\"\",'1. Order'!BI37)","v":""},{"$f":"IF('1. Order'!BJ37=\"\",\"\",'1. Order'!BJ37)","v":""},{"$f":"IF('1. Order'!BK37=\"\",\"\",'1. Order'!BK37)","v":"ZWO"}]
[{"$f":"IF('1. Order'!G38=\"\",\"\",'1. Order'!G38)","v":""},{"$f":"IF('1. Order'!H38=\"\",\"\",'1. Order'!H38)","v":""},{"$f":"IF('1. Order'!I38=\"\",\"\",'1. Order'!I38)","v":""},{"$f":"IF('1. Order'!J38=\"\",\"\",'1. Order'!J38)","v":""},{"$f":"IF('1. Order'!K38=\"\",\"\",'1. Order'!K38)","v":""},{"$f":"IF('1. Order'!L38=\"\",\"\",'1. Order'!L38)","v":""},{"$f":"IF('1. Order'!M38=\"\",\"\",'1. Order'!M38)","v":""},{"$f":"IF('1. Order'!N38=\"\",\"\",'1. Order'!N38)","v":""},{"$f":"IF('1. Order'!P38=\"\",\"\",'1. Order'!P38)","v":""},{"$f":"IF('1. Order'!Q38=\"\",\"\",'1. Order'!Q38)","v":{"$error":"#N/A"}},{"$f":"IF('1. Order'!R38=\"\",\"\",'1. Order'!R38)","v":{"$error":"#N/A"}},{"$f":"IF('1. Order'!S38=\"\",\"\",'1. Order'!S38)","v":""},{"$f":"IF('1. Order'!T38=\"\",\"\",'1. Order'!T38)","v":""},{"$f":"IF('1. Order'!U38=\"\",\"\",'1. Order'!U38)","v":""},{"$f":"IF('1. Order'!X38=\"\",\"\",'1. Order'!X38)","v":""},{"$f":"IF('1. Order'!Y38=\"\",\"\",'1. Order'!Y38)","v":""},{"$f":"IF('1. Order'!Z38=\"\",\"\",'1. Order'!Z38)","v":""},{"$f":"IF('1. Order'!AC38=\"\",\"\",'1. Order'!AC38)","v":""},{"$f":"IF('1. Order'!AD38=\"\",\"\",'1. Order'!AD38)","v":""},{"$f":"IF('1. Order'!AE38=\"\",\"\",'1. Order'!AE38)","v":""},null,{"$f":"IF('1. Order'!AW38=\"\",\"\",'1. Order'!AW38)","v":""},{"$f":"IF('1. Order'!AX38=\"\",\"\",'1. Order'!AX38)","v":""},null,null,null,null,null,null,null,{"$f":"IF('1. Order'!BB38=\"\",\"\",'1. Order'!BB38)","v":""},{"$f":"IF('1. Order'!BC38=\"\",\"\",'1. Order'!BC38)","v":""},{"$f":"IF('1. Order'!BD38=\"\",\"\",'1. Order'!BD38)","v":""},{"$f":"IF('1. Order'!BE38=\"\",\"\",'1. Order'!BE38)","v":""},{"$f":"IF('1. Order'!BG38=\"\",\"\",'1. Order'!BG38)","v":""},{"$f":"IF('1. Order'!BH38=\"\",\"\",'1. Order'!BH38)","v":""},{"$f":"IF('1. Order'!BI38=\"\",\"\",'1. Order'!BI38)","v":""},{"$f":"IF('1. Order'!BJ38=\"\",\"\",'1. Order'!BJ38)","v":""},{"$f":"IF('1. Order'!BK38=\"\",\"\",'1. Order'!BK38)","v":"ZWO"}]
[{"$f":"IF('1. Order'!G39=\"\",\"\",'1. Order'!G39)","v":""},{"$f":"IF('1. Order'!H39=\"\",\"\",'1. Order'!H39)","v":""},{"$f":"IF('1. Order'!I39=\"\",\"\",'1. Order'!I39)","v":""},{"$f":"IF('1. Order'!J39=\"\",\"\",'1. Order'!J39)","v":""},{"$f":"IF('1. Order'!K39=\"\",\"\",'1. Order'!K39)","v":""},{"$f":"IF('1. Order'!L39=\"\",\"\",'1. Order'!L39)","v":""},{"$f":"IF('1. Order'!M39=\"\",\"\",'1. Order'!M39)","v":""},{"$f":"IF('1. Order'!N39=\"\",\"\",'1. Order'!N39)","v":""},{"$f":"IF('1. Order'!P39=\"\",\"\",'1. Order'!P39)","v":""},{"$f":"IF('1. Order'!Q39=\"\",\"\",'1. Order'!Q39)","v":{"$error":"#N/A"}},{"$f":"IF('1. Order'!R39=\"\",\"\",'1. Order'!R39)","v":{"$error":"#N/A"}},{"$f":"IF('1. Order'!S39=\"\",\"\",'1. Order'!S39)","v":""},{"$f":"IF('1. Order'!T39=\"\",\"\",'1. Order'!T39)","v":""},{"$f":"IF('1. Order'!U39=\"\",\"\",'1. Order'!U39)","v":""},{"$f":"IF('1. Order'!X39=\"\",\"\",'1. Order'!X39)","v":""},{"$f":"IF('1. Order'!Y39=\"\",\"\",'1. Order'!Y39)","v":""},{"$f":"IF('1. Order'!Z39=\"\",\"\",'1. Order'!Z39)","v":""},{"$f":"IF('1. Order'!AC39=\"\",\"\",'1. Order'!AC39)","v":""},{"$f":"IF('1. Order'!AD39=\"\",\"\",'1. Order'!AD39)","v":""},{"$f":"IF('1. Order'!AE39=\"\",\"\",'1. Order'!AE39)","v":""},null,{"$f":"IF('1. Order'!AW39=\"\",\"\",'1. Order'!AW39)","v":""},{"$f":"IF('1. Order'!AX39=\"\",\"\",'1. Order'!AX39)","v":""},null,null,null,null,null,null,null,{"$f":"IF('1. Order'!BB39=\"\",\"\",'1. Order'!BB39)","v":""},{"$f":"IF('1. Order'!BC39=\"\",\"\",'1. Order'!BC39)","v":""},{"$f":"IF('1. Order'!BD39=\"\",\"\",'1. Order'!BD39)","v":""},{"$f":"IF('1. Order'!BE39=\"\",\"\",'1. Order'!BE39)","v":""},{"$f":"IF('1. Order'!BG39=\"\",\"\",'1. Order'!BG39)","v":""},{"$f":"IF('1. Order'!BH39=\"\",\"\",'1. Order'!BH39)","v":""},{"$f":"IF('1. Order'!BI39=\"\",\"\",'1. Order'!BI39)","v":""},{"$f":"IF('1. Order'!BJ39=\"\",\"\",'1. Order'!BJ39)","v":""},{"$f":"IF('1. Order'!BK39=\"\",\"\",'1. Order'!BK39)","v":"ZWO"}]
[{"$f":"IF('1. Order'!G40=\"\",\"\",'1. Order'!G40)","v":""},{"$f":"IF('1. Order'!H40=\"\",\"\",'1. Order'!H40)","v":""},{"$f":"IF('1. Order'!I40=\"\",\"\",'1. Order'!I40)","v":""},{"$f":"IF('1. Order'!J40=\"\",\"\",'1. Order'!J40)","v":""},{"$f":"IF('1. Order'!K40=\"\",\"\",'1. Order'!K40)","v":""},{"$f":"IF('1. Order'!L40=\"\",\"\",'1. Order'!L40)","v":""},{"$f":"IF('1. Order'!M40=\"\",\"\",'1. Order'!M40)","v":""},{"$f":"IF('1. Order'!N40=\"\",\"\",'1. Order'!N40)","v":""},{"$f":"IF('1. Order'!P40=\"\",\"\",'1. Order'!P40)","v":""},{"$f":"IF('1. Order'!Q40=\"\",\"\",'1. Order'!Q40)","v":{"$error":"#N/A"}},{"$f":"IF('1. Order'!R40=\"\",\"\",'1. Order'!R40)","v":{"$error":"#N/A"}},{"$f":"IF('1. Order'!S40=\"\",\"\",'1. Order'!S40)","v":""},{"$f":"IF('1. Order'!T40=\"\",\"\",'1. Order'!T40)","v":""},{"$f":"IF('1. Order'!U40=\"\",\"\",'1. Order'!U40)","v":""},{"$f":"IF('1. Order'!X40=\"\",\"\",'1. Order'!X40)","v":""},{"$f":"IF('1. Order'!Y40=\"\",\"\",'1. Order'!Y40)","v":""},{"$f":"IF('1. Order'!Z40=\"\",\"\",'1. Order'!Z40)","v":""},{"$f":"IF('1. Order'!AC40=\"\",\"\",'1. Order'!AC40)","v":""},{"$f":"IF('1. Order'!AD40=\"\",\"\",'1. Order'!AD40)","v":""},{"$f":"IF('1. Order'!AE40=\"\",\"\",'1. Order'!AE40)","v":""},null,{"$f":"IF('1. Order'!AW40=\"\",\"\",'1. Order'!AW40)","v":""},{"$f":"IF('1. Order'!AX40=\"\",\"\",'1. Order'!AX40)","v":""},null,null,null,null,null,null,null,{"$f":"IF('1. Order'!BB40=\"\",\"\",'1. Order'!BB40)","v":""},{"$f":"IF('1. Order'!BC40=\"\",\"\",'1. Order'!BC40)","v":""},{"$f":"IF('1. Order'!BD40=\"\",\"\",'1. Order'!BD40)","v":""},{"$f":"IF('1. Order'!BE40=\"\",\"\",'1. Order'!BE40)","v":""},{"$f":"IF('1. Order'!BG40=\"\",\"\",'1. Order'!BG40)","v":""},{"$f":"IF('1. Order'!BH40=\"\",\"\",'1. Order'!BH40)","v":""},{"$f":"IF('1. Order'!BI40=\"\",\"\",'1. Order'!BI40)","v":""},{"$f":"IF('1. Order'!BJ40=\"\",\"\",'1. Order'!BJ40)","v":""},{"$f":"IF('1. Order'!BK40=\"\",\"\",'1. Order'!BK40)","v":"ZWO"}]
[{"$f":"IF('1. Order'!G41=\"\",\"\",'1. Order'!G41)","v":""},{"$f":"IF('1. Order'!H41=\"\",\"\",'1. Order'!H41)","v":""},{"$f":"IF('1. Order'!I41=\"\",\"\",'1. Order'!I41)","v":""},{"$f":"IF('1. Order'!J41=\"\",\"\",'1. Order'!J41)","v":""},{"$f":"IF('1. Order'!K41=\"\",\"\",'1. Order'!K41)","v":""},{"$f":"IF('1. Order'!L41=\"\",\"\",'1. Order'!L41)","v":""},{"$f":"IF('1. Order'!M41=\"\",\"\",'1. Order'!M41)","v":""},{"$f":"IF('1. Order'!N41=\"\",\"\",'1. Order'!N41)","v":""},{"$f":"IF('1. Order'!P41=\"\",\"\",'1. Order'!P41)","v":""},{"$f":"IF('1. Order'!Q41=\"\",\"\",'1. Order'!Q41)","v":{"$error":"#N/A"}},{"$f":"IF('1. Order'!R41=\"\",\"\",'1. Order'!R41)","v":{"$error":"#N/A"}},{"$f":"IF('1. Order'!S41=\"\",\"\",'1. Order'!S41)","v":""},{"$f":"IF('1. Order'!T41=\"\",\"\",'1. Order'!T41)","v":""},{"$f":"IF('1. Order'!U41=\"\",\"\",'1. Order'!U41)","v":""},{"$f":"IF('1. Order'!X41=\"\",\"\",'1. Order'!X41)","v":""},{"$f":"IF('1. Order'!Y41=\"\",\"\",'1. Order'!Y41)","v":""},{"$f":"IF('1. Order'!Z41=\"\",\"\",'1. Order'!Z41)","v":""},{"$f":"IF('1. Order'!AC41=\"\",\"\",'1. Order'!AC41)","v":""},{"$f":"IF('1. Order'!AD41=\"\",\"\",'1. Order'!AD41)","v":""},{"$f":"IF('1. Order'!AE41=\"\",\"\",'1. Order'!AE41)","v":""},null,{"$f":"IF('1. Order'!AW41=\"\",\"\",'1. Order'!AW41)","v":""},{"$f":"IF('1. Order'!AX41=\"\",\"\",'1. Order'!AX41)","v":""},null,null,null,null,null,null,null,{"$f":"IF('1. Order'!BB41=\"\",\"\",'1. Order'!BB41)","v":""},{"$f":"IF('1. Order'!BC41=\"\",\"\",'1. Order'!BC41)","v":""},{"$f":"IF('1. Order'!BD41=\"\",\"\",'1. Order'!BD41)","v":""},{"$f":"IF('1. Order'!BE41=\"\",\"\",'1. Order'!BE41)","v":""},{"$f":"IF('1. Order'!BG41=\"\",\"\",'1. Order'!BG41)","v":""},{"$f":"IF('1. Order'!BH41=\"\",\"\",'1. Order'!BH41)","v":""},{"$f":"IF('1. Order'!BI41=\"\",\"\",'1. Order'!BI41)","v":""},{"$f":"IF('1. Order'!BJ41=\"\",\"\",'1. Order'!BJ41)","v":""},{"$f":"IF('1. Order'!BK41=\"\",\"\",'1. Order'!BK41)","v":"ZWO"}]
[{"$f":"IF('1. Order'!G42=\"\",\"\",'1. Order'!G42)","v":""},{"$f":"IF('1. Order'!H42=\"\",\"\",'1. Order'!H42)","v":""},{"$f":"IF('1. Order'!I42=\"\",\"\",'1. Order'!I42)","v":""},{"$f":"IF('1. Order'!J42=\"\",\"\",'1. Order'!J42)","v":""},{"$f":"IF('1. Order'!K42=\"\",\"\",'1. Order'!K42)","v":""},{"$f":"IF('1. Order'!L42=\"\",\"\",'1. Order'!L42)","v":""},{"$f":"IF('1. Order'!M42=\"\",\"\",'1. Order'!M42)","v":""},{"$f":"IF('1. Order'!N42=\"\",\"\",'1. Order'!N42)","v":""},{"$f":"IF('1. Order'!P42=\"\",\"\",'1. Order'!P42)","v":""},{"$f":"IF('1. Order'!Q42=\"\",\"\",'1. Order'!Q42)","v":{"$error":"#N/A"}},{"$f":"IF('1. Order'!R42=\"\",\"\",'1. Order'!R42)","v":{"$error":"#N/A"}},{"$f":"IF('1. Order'!S42=\"\",\"\",'1. Order'!S42)","v":""},{"$f":"IF('1. Order'!T42=\"\",\"\",'1. Order'!T42)","v":""},{"$f":"IF('1. Order'!U42=\"\",\"\",'1. Order'!U42)","v":""},{"$f":"IF('1. Order'!X42=\"\",\"\",'1. Order'!X42)","v":""},{"$f":"IF('1. Order'!Y42=\"\",\"\",'1. Order'!Y42)","v":""},{"$f":"IF('1. Order'!Z42=\"\",\"\",'1. Order'!Z42)","v":""},{"$f":"IF('1. Order'!AC42=\"\",\"\",'1. Order'!AC42)","v":""},{"$f":"IF('1. Order'!AD42=\"\",\"\",'1. Order'!AD42)","v":""},{"$f":"IF('1. Order'!AE42=\"\",\"\",'1. Order'!AE42)","v":""},null,{"$f":"IF('1. Order'!AW42=\"\",\"\",'1. Order'!AW42)","v":""},{"$f":"IF('1. Order'!AX42=\"\",\"\",'1. Order'!AX42)","v":""},null,null,null,null,null,null,null,{"$f":"IF('1. Order'!BB42=\"\",\"\",'1. Order'!BB42)","v":""},{"$f":"IF('1. Order'!BC42=\"\",\"\",'1. Order'!BC42)","v":""},{"$f":"IF('1. Order'!BD42=\"\",\"\",'1. Order'!BD42)","v":""},{"$f":"IF('1. Order'!BE42=\"\",\"\",'1. Order'!BE42)","v":""},{"$f":"IF('1. Order'!BG42=\"\",\"\",'1. Order'!BG42)","v":""},{"$f":"IF('1. Order'!BH42=\"\",\"\",'1. Order'!BH42)","v":""},{"$f":"IF('1. Order'!BI42=\"\",\"\",'1. Order'!BI42)","v":""},{"$f":"IF('1. Order'!BJ42=\"\",\"\",'1. Order'!BJ42)","v":""},{"$f":"IF('1. Order'!BK42=\"\",\"\",'1. Order'!BK42)","v":"ZWO"}]
[{"$f":"IF('1. Order'!G43=\"\",\"\",'1. Order'!G43)","v":""},{"$f":"IF('1. Order'!H43=\"\",\"\",'1. Order'!H43)","v":""},{"$f":"IF('1. Order'!I43=\"\",\"\",'1. Order'!I43)","v":""},{"$f":"IF('1. Order'!J43=\"\",\"\",'1. Order'!J43)","v":""},{"$f":"IF('1. Order'!K43=\"\",\"\",'1. Order'!K43)","v":""},{"$f":"IF('1. Order'!L43=\"\",\"\",'1. Order'!L43)","v":""},{"$f":"IF('1. Order'!M43=\"\",\"\",'1. Order'!M43)","v":""},{"$f":"IF('1. Order'!N43=\"\",\"\",'1. Order'!N43)","v":""},{"$f":"IF('1. Order'!P43=\"\",\"\",'1. Order'!P43)","v":""},{"$f":"IF('1. Order'!Q43=\"\",\"\",'1. Order'!Q43)","v":{"$error":"#N/A"}},{"$f":"IF('1. Order'!R43=\"\",\"\",'1. Order'!R43)","v":{"$error":"#N/A"}},{"$f":"IF('1. Order'!S43=\"\",\"\",'1. Order'!S43)","v":""},{"$f":"IF('1. Order'!T43=\"\",\"\",'1. Order'!T43)","v":""},{"$f":"IF('1. Order'!U43=\"\",\"\",'1. Order'!U43)","v":""},{"$f":"IF('1. Order'!X43=\"\",\"\",'1. Order'!X43)","v":""},{"$f":"IF('1. Order'!Y43=\"\",\"\",'1. Order'!Y43)","v":""},{"$f":"IF('1. Order'!Z43=\"\",\"\",'1. Order'!Z43)","v":""},{"$f":"IF('1. Order'!AC43=\"\",\"\",'1. Order'!AC43)","v":""},{"$f":"IF('1. Order'!AD43=\"\",\"\",'1. Order'!AD43)","v":""},{"$f":"IF('1. Order'!AE43=\"\",\"\",'1. Order'!AE43)","v":""},null,{"$f":"IF('1. Order'!AW43=\"\",\"\",'1. Order'!AW43)","v":""},{"$f":"IF('1. Order'!AX43=\"\",\"\",'1. Order'!AX43)","v":""},null,null,null,null,null,null,null,{"$f":"IF('1. Order'!BB43=\"\",\"\",'1. Order'!BB43)","v":""},{"$f":"IF('1. Order'!BC43=\"\",\"\",'1. Order'!BC43)","v":""},{"$f":"IF('1. Order'!BD43=\"\",\"\",'1. Order'!BD43)","v":""},{"$f":"IF('1. Order'!BE43=\"\",\"\",'1. Order'!BE43)","v":""},{"$f":"IF('1. Order'!BG43=\"\",\"\",'1. Order'!BG43)","v":""},{"$f":"IF('1. Order'!BH43=\"\",\"\",'1. Order'!BH43)","v":""},{"$f":"IF('1. Order'!BI43=\"\",\"\",'1. Order'!BI43)","v":""},{"$f":"IF('1. Order'!BJ43=\"\",\"\",'1. Order'!BJ43)","v":""},{"$f":"IF('1. Order'!BK43=\"\",\"\",'1. Order'!BK43)","v":"ZWO"}]
[{"$f":"IF('1. Order'!G44=\"\",\"\",'1. Order'!G44)","v":""},{"$f":"IF('1. Order'!H44=\"\",\"\",'1. Order'!H44)","v":""},{"$f":"IF('1. Order'!I44=\"\",\"\",'1. Order'!I44)","v":""},{"$f":"IF('1. Order'!J44=\"\",\"\",'1. Order'!J44)","v":""},{"$f":"IF('1. Order'!K44=\"\",\"\",'1. Order'!K44)","v":""},{"$f":"IF('1. Order'!L44=\"\",\"\",'1. Order'!L44)","v":""},{"$f":"IF('1. Order'!M44=\"\",\"\",'1. Order'!M44)","v":""},{"$f":"IF('1. Order'!N44=\"\",\"\",'1. Order'!N44)","v":""},{"$f":"IF('1. Order'!P44=\"\",\"\",'1. Order'!P44)","v":""},{"$f":"IF('1. Order'!Q44=\"\",\"\",'1. Order'!Q44)","v":{"$error":"#N/A"}},{"$f":"IF('1. Order'!R44=\"\",\"\",'1. Order'!R44)","v":{"$error":"#N/A"}},{"$f":"IF('1. Order'!S44=\"\",\"\",'1. Order'!S44)","v":""},{"$f":"IF('1. Order'!T44=\"\",\"\",'1. Order'!T44)","v":""},{"$f":"IF('1. Order'!U44=\"\",\"\",'1. Order'!U44)","v":""},{"$f":"IF('1. Order'!X44=\"\",\"\",'1. Order'!X44)","v":""},{"$f":"IF('1. Order'!Y44=\"\",\"\",'1. Order'!Y44)","v":""},{"$f":"IF('1. Order'!Z44=\"\",\"\",'1. Order'!Z44)","v":""},{"$f":"IF('1. Order'!AC44=\"\",\"\",'1. Order'!AC44)","v":""},{"$f":"IF('1. Order'!AD44=\"\",\"\",'1. Order'!AD44)","v":""},{"$f":"IF('1. Order'!AE44=\"\",\"\",'1. Order'!AE44)","v":""},null,{"$f":"IF('1. Order'!AW44=\"\",\"\",'1. Order'!AW44)","v":""},{"$f":"IF('1. Order'!AX44=\"\",\"\",'1. Order'!AX44)","v":""},null,null,null,null,null,null,null,{"$f":"IF('1. Order'!BB44=\"\",\"\",'1. Order'!BB44)","v":""},{"$f":"IF('1. Order'!BC44=\"\",\"\",'1. Order'!BC44)","v":""},{"$f":"IF('1. Order'!BD44=\"\",\"\",'1. Order'!BD44)","v":""},{"$f":"IF('1. Order'!BE44=\"\",\"\",'1. Order'!BE44)","v":""},{"$f":"IF('1. Order'!BG44=\"\",\"\",'1. Order'!BG44)","v":""},{"$f":"IF('1. Order'!BH44=\"\",\"\",'1. Order'!BH44)","v":""},{"$f":"IF('1. Order'!BI44=\"\",\"\",'1. Order'!BI44)","v":""},{"$f":"IF('1. Order'!BJ44=\"\",\"\",'1. Order'!BJ44)","v":""},{"$f":"IF('1. Order'!BK44=\"\",\"\",'1. Order'!BK44)","v":"ZWO"}]
[{"$f":"IF('1. Order'!G45=\"\",\"\",'1. Order'!G45)","v":""},{"$f":"IF('1. Order'!H45=\"\",\"\",'1. Order'!H45)","v":""},{"$f":"IF('1. Order'!I45=\"\",\"\",'1. Order'!I45)","v":""},{"$f":"IF('1. Order'!J45=\"\",\"\",'1. Order'!J45)","v":""},{"$f":"IF('1. Order'!K45=\"\",\"\",'1. Order'!K45)","v":""},{"$f":"IF('1. Order'!L45=\"\",\"\",'1. Order'!L45)","v":""},{"$f":"IF('1. Order'!M45=\"\",\"\",'1. Order'!M45)","v":""},{"$f":"IF('1. Order'!N45=\"\",\"\",'1. Order'!N45)","v":""},{"$f":"IF('1. Order'!P45=\"\",\"\",'1. Order'!P45)","v":""},{"$f":"IF('1. Order'!Q45=\"\",\"\",'1. Order'!Q45)","v":{"$error":"#N/A"}},{"$f":"IF('1. Order'!R45=\"\",\"\",'1. Order'!R45)","v":{"$error":"#N/A"}},{"$f":"IF('1. Order'!S45=\"\",\"\",'1. Order'!S45)","v":""},{"$f":"IF('1. Order'!T45=\"\",\"\",'1. Order'!T45)","v":""},{"$f":"IF('1. Order'!U45=\"\",\"\",'1. Order'!U45)","v":""},{"$f":"IF('1. Order'!X45=\"\",\"\",'1. Order'!X45)","v":""},{"$f":"IF('1. Order'!Y45=\"\",\"\",'1. Order'!Y45)","v":""},{"$f":"IF('1. Order'!Z45=\"\",\"\",'1. Order'!Z45)","v":""},{"$f":"IF('1. Order'!AC45=\"\",\"\",'1. Order'!AC45)","v":""},{"$f":"IF('1. Order'!AD45=\"\",\"\",'1. Order'!AD45)","v":""},{"$f":"IF('1. Order'!AE45=\"\",\"\",'1. Order'!AE45)","v":""},null,{"$f":"IF('1. Order'!AW45=\"\",\"\",'1. Order'!AW45)","v":""},{"$f":"IF('1. Order'!AX45=\"\",\"\",'1. Order'!AX45)","v":""},null,null,null,null,null,null,null,{"$f":"IF('1. Order'!BB45=\"\",\"\",'1. Order'!BB45)","v":""},{"$f":"IF('1. Order'!BC45=\"\",\"\",'1. Order'!BC45)","v":""},{"$f":"IF('1. Order'!BD45=\"\",\"\",'1. Order'!BD45)","v":""},{"$f":"IF('1. Order'!BE45=\"\",\"\",'1. Order'!BE45)","v":""},{"$f":"IF('1. Order'!BG45=\"\",\"\",'1. Order'!BG45)","v":""},{"$f":"IF('1. Order'!BH45=\"\",\"\",'1. Order'!BH45)","v":""},{"$f":"IF('1. Order'!BI45=\"\",\"\",'1. Order'!BI45)","v":""},{"$f":"IF('1. Order'!BJ45=\"\",\"\",'1. Order'!BJ45)","v":""},{"$f":"IF('1. Order'!BK45=\"\",\"\",'1. Order'!BK45)","v":"ZWO"}]
[{"$f":"IF('1. Order'!G46=\"\",\"\",'1. Order'!G46)","v":""},{"$f":"IF('1. Order'!H46=\"\",\"\",'1. Order'!H46)","v":""},{"$f":"IF('1. Order'!I46=\"\",\"\",'1. Order'!I46)","v":""},{"$f":"IF('1. Order'!J46=\"\",\"\",'1. Order'!J46)","v":""},{"$f":"IF('1. Order'!K46=\"\",\"\",'1. Order'!K46)","v":""},{"$f":"IF('1. Order'!L46=\"\",\"\",'1. Order'!L46)","v":""},{"$f":"IF('1. Order'!M46=\"\",\"\",'1. Order'!M46)","v":""},{"$f":"IF('1. Order'!N46=\"\",\"\",'1. Order'!N46)","v":""},{"$f":"IF('1. Order'!P46=\"\",\"\",'1. Order'!P46)","v":""},{"$f":"IF('1. Order'!Q46=\"\",\"\",'1. Order'!Q46)","v":{"$error":"#N/A"}},{"$f":"IF('1. Order'!R46=\"\",\"\",'1. Order'!R46)","v":{"$error":"#N/A"}},{"$f":"IF('1. Order'!S46=\"\",\"\",'1. Order'!S46)","v":""},{"$f":"IF('1. Order'!T46=\"\",\"\",'1. Order'!T46)","v":""},{"$f":"IF('1. Order'!U46=\"\",\"\",'1. Order'!U46)","v":""},{"$f":"IF('1. Order'!X46=\"\",\"\",'1. Order'!X46)","v":""},{"$f":"IF('1. Order'!Y46=\"\",\"\",'1. Order'!Y46)","v":""},{"$f":"IF('1. Order'!Z46=\"\",\"\",'1. Order'!Z46)","v":""},{"$f":"IF('1. Order'!AC46=\"\",\"\",'1. Order'!AC46)","v":""},{"$f":"IF('1. Order'!AD46=\"\",\"\",'1. Order'!AD46)","v":""},{"$f":"IF('1. Order'!AE46=\"\",\"\",'1. Order'!AE46)","v":""},null,{"$f":"IF('1. Order'!AW46=\"\",\"\",'1. Order'!AW46)","v":""},{"$f":"IF('1. Order'!AX46=\"\",\"\",'1. Order'!AX46)","v":""},null,null,null,null,null,null,null,{"$f":"IF('1. Order'!BB46=\"\",\"\",'1. Order'!BB46)","v":""},{"$f":"IF('1. Order'!BC46=\"\",\"\",'1. Order'!BC46)","v":""},{"$f":"IF('1. Order'!BD46=\"\",\"\",'1. Order'!BD46)","v":""},{"$f":"IF('1. Order'!BE46=\"\",\"\",'1. Order'!BE46)","v":""},{"$f":"IF('1. Order'!BG46=\"\",\"\",'1. Order'!BG46)","v":""},{"$f":"IF('1. Order'!BH46=\"\",\"\",'1. Order'!BH46)","v":""},{"$f":"IF('1. Order'!BI46=\"\",\"\",'1. Order'!BI46)","v":""},{"$f":"IF('1. Order'!BJ46=\"\",\"\",'1. Order'!BJ46)","v":""},{"$f":"IF('1. Order'!BK46=\"\",\"\",'1. Order'!BK46)","v":"ZWO"}]
[{"$f":"IF('1. Order'!G47=\"\",\"\",'1. Order'!G47)","v":""},{"$f":"IF('1. Order'!H47=\"\",\"\",'1. Order'!H47)","v":""},{"$f":"IF('1. Order'!I47=\"\",\"\",'1. Order'!I47)","v":""},{"$f":"IF('1. Order'!J47=\"\",\"\",'1. Order'!J47)","v":""},{"$f":"IF('1. Order'!K47=\"\",\"\",'1. Order'!K47)","v":""},{"$f":"IF('1. Order'!L47=\"\",\"\",'1. Order'!L47)","v":""},{"$f":"IF('1. Order'!M47=\"\",\"\",'1. Order'!M47)","v":""},{"$f":"IF('1. Order'!N47=\"\",\"\",'1. Order'!N47)","v":""},{"$f":"IF('1. Order'!P47=\"\",\"\",'1. Order'!P47)","v":""},{"$f":"IF('1. Order'!Q47=\"\",\"\",'1. Order'!Q47)","v":{"$error":"#N/A"}},{"$f":"IF('1. Order'!R47=\"\",\"\",'1. Order'!R47)","v":{"$error":"#N/A"}},{"$f":"IF('1. Order'!S47=\"\",\"\",'1. Order'!S47)","v":""},{"$f":"IF('1. Order'!T47=\"\",\"\",'1. Order'!T47)","v":""},{"$f":"IF('1. Order'!U47=\"\",\"\",'1. Order'!U47)","v":""},{"$f":"IF('1. Order'!X47=\"\",\"\",'1. Order'!X47)","v":""},{"$f":"IF('1. Order'!Y47=\"\",\"\",'1. Order'!Y47)","v":""},{"$f":"IF('1. Order'!Z47=\"\",\"\",'1. Order'!Z47)","v":""},{"$f":"IF('1. Order'!AC47=\"\",\"\",'1. Order'!AC47)","v":""},{"$f":"IF('1. Order'!AD47=\"\",\"\",'1. Order'!AD47)","v":""},{"$f":"IF('1. Order'!AE47=\"\",\"\",'1. Order'!AE47)","v":""},null,{"$f":"IF('1. Order'!AW47=\"\",\"\",'1. Order'!AW47)","v":""},{"$f":"IF('1. Order'!AX47=\"\",\"\",'1. Order'!AX47)","v":""},null,null,null,null,null,null,null,{"$f":"IF('1. Order'!BB47=\"\",\"\",'1. Order'!BB47)","v":""},{"$f":"IF('1. Order'!BC47=\"\",\"\",'1. Order'!BC47)","v":""},{"$f":"IF('1. Order'!BD47=\"\",\"\",'1. Order'!BD47)","v":""},{"$f":"IF('1. Order'!BE47=\"\",\"\",'1. Order'!BE47)","v":""},{"$f":"IF('1. Order'!BG47=\"\",\"\",'1. Order'!BG47)","v":""},{"$f":"IF('1. Order'!BH47=\"\",\"\",'1. Order'!BH47)","v":""},{"$f":"IF('1. Order'!BI47=\"\",\"\",'1. Order'!BI47)","v":""},{"$f":"IF('1. Order'!BJ47=\"\",\"\",'1. Order'!BJ47)","v":""},{"$f":"IF('1. Order'!BK47=\"\",\"\",'1. Order'!BK47)","v":"ZWO"}]
[{"$f":"IF('1. Order'!G48=\"\",\"\",'1. Order'!G48)","v":""},{"$f":"IF('1. Order'!H48=\"\",\"\",'1. Order'!H48)","v":""},{"$f":"IF('1. Order'!I48=\"\",\"\",'1. Order'!I48)","v":""},{"$f":"IF('1. Order'!J48=\"\",\"\",'1. Order'!J48)","v":""},{"$f":"IF('1. Order'!K48=\"\",\"\",'1. Order'!K48)","v":""},{"$f":"IF('1. Order'!L48=\"\",\"\",'1. Order'!L48)","v":""},{"$f":"IF('1. Order'!M48=\"\",\"\",'1. Order'!M48)","v":""},{"$f":"IF('1. Order'!N48=\"\",\"\",'1. Order'!N48)","v":""},{"$f":"IF('1. Order'!P48=\"\",\"\",'1. Order'!P48)","v":""},{"$f":"IF('1. Order'!Q48=\"\",\"\",'1. Order'!Q48)","v":{"$error":"#N/A"}},{"$f":"IF('1. Order'!R48=\"\",\"\",'1. Order'!R48)","v":{"$error":"#N/A"}},{"$f":"IF('1. Order'!S48=\"\",\"\",'1. Order'!S48)","v":""},{"$f":"IF('1. Order'!T48=\"\",\"\",'1. Order'!T48)","v":""},{"$f":"IF('1. Order'!U48=\"\",\"\",'1. Order'!U48)","v":""},{"$f":"IF('1. Order'!X48=\"\",\"\",'1. Order'!X48)","v":""},{"$f":"IF('1. Order'!Y48=\"\",\"\",'1. Order'!Y48)","v":""},{"$f":"IF('1. Order'!Z48=\"\",\"\",'1. Order'!Z48)","v":""},{"$f":"IF('1. Order'!AC48=\"\",\"\",'1. Order'!AC48)","v":""},{"$f":"IF('1. Order'!AD48=\"\",\"\",'1. Order'!AD48)","v":""},{"$f":"IF('1. Order'!AE48=\"\",\"\",'1. Order'!AE48)","v":""},null,{"$f":"IF('1. Order'!AW48=\"\",\"\",'1. Order'!AW48)","v":""},{"$f":"IF('1. Order'!AX48=\"\",\"\",'1. Order'!AX48)","v":""},null,null,null,null,null,null,null,{"$f":"IF('1. Order'!BB48=\"\",\"\",'1. Order'!BB48)","v":""},{"$f":"IF('1. Order'!BC48=\"\",\"\",'1. Order'!BC48)","v":""},{"$f":"IF('1. Order'!BD48=\"\",\"\",'1. Order'!BD48)","v":""},{"$f":"IF('1. Order'!BE48=\"\",\"\",'1. Order'!BE48)","v":""},{"$f":"IF('1. Order'!BG48=\"\",\"\",'1. Order'!BG48)","v":""},{"$f":"IF('1. Order'!BH48=\"\",\"\",'1. Order'!BH48)","v":""},{"$f":"IF('1. Order'!BI48=\"\",\"\",'1. Order'!BI48)","v":""},{"$f":"IF('1. Order'!BJ48=\"\",\"\",'1. Order'!BJ48)","v":""},{"$f":"IF('1. Order'!BK48=\"\",\"\",'1. Order'!BK48)","v":"ZWO"}]
[{"$f":"IF('1. Order'!G49=\"\",\"\",'1. Order'!G49)","v":""},{"$f":"IF('1. Order'!H49=\"\",\"\",'1. Order'!H49)","v":""},{"$f":"IF('1. Order'!I49=\"\",\"\",'1. Order'!I49)","v":""},{"$f":"IF('1. Order'!J49=\"\",\"\",'1. Order'!J49)","v":""},{"$f":"IF('1. Order'!K49=\"\",\"\",'1. Order'!K49)","v":""},{"$f":"IF('1. Order'!L49=\"\",\"\",'1. Order'!L49)","v":""},{"$f":"IF('1. Order'!M49=\"\",\"\",'1. Order'!M49)","v":""},{"$f":"IF('1. Order'!N49=\"\",\"\",'1. Order'!N49)","v":""},{"$f":"IF('1. Order'!P49=\"\",\"\",'1. Order'!P49)","v":""},{"$f":"IF('1. Order'!Q49=\"\",\"\",'1. Order'!Q49)","v":{"$error":"#N/A"}},{"$f":"IF('1. Order'!R49=\"\",\"\",'1. Order'!R49)","v":{"$error":"#N/A"}},{"$f":"IF('1. Order'!S49=\"\",\"\",'1. Order'!S49)","v":""},{"$f":"IF('1. Order'!T49=\"\",\"\",'1. Order'!T49)","v":""},{"$f":"IF('1. Order'!U49=\"\",\"\",'1. Order'!U49)","v":""},{"$f":"IF('1. Order'!X49=\"\",\"\",'1. Order'!X49)","v":""},{"$f":"IF('1. Order'!Y49=\"\",\"\",'1. Order'!Y49)","v":""},{"$f":"IF('1. Order'!Z49=\"\",\"\",'1. Order'!Z49)","v":""},{"$f":"IF('1. Order'!AC49=\"\",\"\",'1. Order'!AC49)","v":""},{"$f":"IF('1. Order'!AD49=\"\",\"\",'1. Order'!AD49)","v":""},{"$f":"IF('1. Order'!AE49=\"\",\"\",'1. Order'!AE49)","v":""},null,{"$f":"IF('1. Order'!AW49=\"\",\"\",'1. Order'!AW49)","v":""},{"$f":"IF('1. Order'!AX49=\"\",\"\",'1. Order'!AX49)","v":""},null,null,null,null,null,null,null,{"$f":"IF('1. Order'!BB49=\"\",\"\",'1. Order'!BB49)","v":""},{"$f":"IF('1. Order'!BC49=\"\",\"\",'1. Order'!BC49)","v":""},{"$f":"IF('1. Order'!BD49=\"\",\"\",'1. Order'!BD49)","v":""},{"$f":"IF('1. Order'!BE49=\"\",\"\",'1. Order'!BE49)","v":""},{"$f":"IF('1. Order'!BG49=\"\",\"\",'1. Order'!BG49)","v":""},{"$f":"IF('1. Order'!BH49=\"\",\"\",'1. Order'!BH49)","v":""},{"$f":"IF('1. Order'!BI49=\"\",\"\",'1. Order'!BI49)","v":""},{"$f":"IF('1. Order'!BJ49=\"\",\"\",'1. Order'!BJ49)","v":""},{"$f":"IF('1. Order'!BK49=\"\",\"\",'1. Order'!BK49)","v":"ZWO"}]
[{"$f":"IF('1. Order'!G50=\"\",\"\",'1. Order'!G50)","v":""},{"$f":"IF('1. Order'!H50=\"\",\"\",'1. Order'!H50)","v":""},{"$f":"IF('1. Order'!I50=\"\",\"\",'1. Order'!I50)","v":""},{"$f":"IF('1. Order'!J50=\"\",\"\",'1. Order'!J50)","v":""},{"$f":"IF('1. Order'!K50=\"\",\"\",'1. Order'!K50)","v":""},{"$f":"IF('1. Order'!L50=\"\",\"\",'1. Order'!L50)","v":""},{"$f":"IF('1. Order'!M50=\"\",\"\",'1. Order'!M50)","v":""},{"$f":"IF('1. Order'!N50=\"\",\"\",'1. Order'!N50)","v":""},{"$f":"IF('1. Order'!P50=\"\",\"\",'1. Order'!P50)","v":""},{"$f":"IF('1. Order'!Q50=\"\",\"\",'1. Order'!Q50)","v":{"$error":"#N/A"}},{"$f":"IF('1. Order'!R50=\"\",\"\",'1. Order'!R50)","v":{"$error":"#N/A"}},{"$f":"IF('1. Order'!S50=\"\",\"\",'1. Order'!S50)","v":""},{"$f":"IF('1. Order'!T50=\"\",\"\",'1. Order'!T50)","v":""},{"$f":"IF('1. Order'!U50=\"\",\"\",'1. Order'!U50)","v":""},{"$f":"IF('1. Order'!X50=\"\",\"\",'1. Order'!X50)","v":""},{"$f":"IF('1. Order'!Y50=\"\",\"\",'1. Order'!Y50)","v":""},{"$f":"IF('1. Order'!Z50=\"\",\"\",'1. Order'!Z50)","v":""},{"$f":"IF('1. Order'!AC50=\"\",\"\",'1. Order'!AC50)","v":""},{"$f":"IF('1. Order'!AD50=\"\",\"\",'1. Order'!AD50)","v":""},{"$f":"IF('1. Order'!AE50=\"\",\"\",'1. Order'!AE50)","v":""},null,{"$f":"IF('1. Order'!AW50=\"\",\"\",'1. Order'!AW50)","v":""},{"$f":"IF('1. Order'!AX50=\"\",\"\",'1. Order'!AX50)","v":""},null,null,null,null,null,null,null,{"$f":"IF('1. Order'!BB50=\"\",\"\",'1. Order'!BB50)","v":""},{"$f":"IF('1. Order'!BC50=\"\",\"\",'1. Order'!BC50)","v":""},{"$f":"IF('1. Order'!BD50=\"\",\"\",'1. Order'!BD50)","v":""},{"$f":"IF('1. Order'!BE50=\"\",\"\",'1. Order'!BE50)","v":""},{"$f":"IF('1. Order'!BG50=\"\",\"\",'1. Order'!BG50)","v":""},{"$f":"IF('1. Order'!BH50=\"\",\"\",'1. Order'!BH50)","v":""},{"$f":"IF('1. Order'!BI50=\"\",\"\",'1. Order'!BI50)","v":""},{"$f":"IF('1. Order'!BJ50=\"\",\"\",'1. Order'!BJ50)","v":""},{"$f":"IF('1. Order'!BK50=\"\",\"\",'1. Order'!BK50)","v":"ZWO"}]
[{"$f":"IF('1. Order'!G51=\"\",\"\",'1. Order'!G51)","v":""},{"$f":"IF('1. Order'!H51=\"\",\"\",'1. Order'!H51)","v":""},{"$f":"IF('1. Order'!I51=\"\",\"\",'1. Order'!I51)","v":""},{"$f":"IF('1. Order'!J51=\"\",\"\",'1. Order'!J51)","v":""},{"$f":"IF('1. Order'!K51=\"\",\"\",'1. Order'!K51)","v":""},{"$f":"IF('1. Order'!L51=\"\",\"\",'1. Order'!L51)","v":""},{"$f":"IF('1. Order'!M51=\"\",\"\",'1. Order'!M51)","v":""},{"$f":"IF('1. Order'!N51=\"\",\"\",'1. Order'!N51)","v":""},{"$f":"IF('1. Order'!P51=\"\",\"\",'1. Order'!P51)","v":""},{"$f":"IF('1. Order'!Q51=\"\",\"\",'1. Order'!Q51)","v":{"$error":"#N/A"}},{"$f":"IF('1. Order'!R51=\"\",\"\",'1. Order'!R51)","v":{"$error":"#N/A"}},{"$f":"IF('1. Order'!S51=\"\",\"\",'1. Order'!S51)","v":""},{"$f":"IF('1. Order'!T51=\"\",\"\",'1. Order'!T51)","v":""},{"$f":"IF('1. Order'!U51=\"\",\"\",'1. Order'!U51)","v":""},{"$f":"IF('1. Order'!X51=\"\",\"\",'1. Order'!X51)","v":""},{"$f":"IF('1. Order'!Y51=\"\",\"\",'1. Order'!Y51)","v":""},{"$f":"IF('1. Order'!Z51=\"\",\"\",'1. Order'!Z51)","v":""},{"$f":"IF('1. Order'!AC51=\"\",\"\",'1. Order'!AC51)","v":""},{"$f":"IF('1. Order'!AD51=\"\",\"\",'1. Order'!AD51)","v":""},{"$f":"IF('1. Order'!AE51=\"\",\"\",'1. Order'!AE51)","v":""},null,{"$f":"IF('1. Order'!AW51=\"\",\"\",'1. Order'!AW51)","v":""},{"$f":"IF('1. Order'!AX51=\"\",\"\",'1. Order'!AX51)","v":""},null,null,null,null,null,null,null,{"$f":"IF('1. Order'!BB51=\"\",\"\",'1. Order'!BB51)","v":""},{"$f":"IF('1. Order'!BC51=\"\",\"\",'1. Order'!BC51)","v":""},{"$f":"IF('1. Order'!BD51=\"\",\"\",'1. Order'!BD51)","v":""},{"$f":"IF('1. Order'!BE51=\"\",\"\",'1. Order'!BE51)","v":""},{"$f":"IF('1. Order'!BG51=\"\",\"\",'1. Order'!BG51)","v":""},{"$f":"IF('1. Order'!BH51=\"\",\"\",'1. Order'!BH51)","v":""},{"$f":"IF('1. Order'!BI51=\"\",\"\",'1. Order'!BI51)","v":""},{"$f":"IF('1. Order'!BJ51=\"\",\"\",'1. Order'!BJ51)","v":""},{"$f":"IF('1. Order'!BK51=\"\",\"\",'1. Order'!BK51)","v":"ZWO"}]
[{"$f":"IF('1. Order'!G52=\"\",\"\",'1. Order'!G52)","v":""},{"$f":"IF('1. Order'!H52=\"\",\"\",'1. Order'!H52)","v":""},{"$f":"IF('1. Order'!I52=\"\",\"\",'1. Order'!I52)","v":""},{"$f":"IF('1. Order'!J52=\"\",\"\",'1. Order'!J52)","v":""},{"$f":"IF('1. Order'!K52=\"\",\"\",'1. Order'!K52)","v":""},{"$f":"IF('1. Order'!L52=\"\",\"\",'1. Order'!L52)","v":""},{"$f":"IF('1. Order'!M52=\"\",\"\",'1. Order'!M52)","v":""},{"$f":"IF('1. Order'!N52=\"\",\"\",'1. Order'!N52)","v":""},{"$f":"IF('1. Order'!P52=\"\",\"\",'1. Order'!P52)","v":""},{"$f":"IF('1. Order'!Q52=\"\",\"\",'1. Order'!Q52)","v":{"$error":"#N/A"}},{"$f":"IF('1. Order'!R52=\"\",\"\",'1. Order'!R52)","v":{"$error":"#N/A"}},{"$f":"IF('1. Order'!S52=\"\",\"\",'1. Order'!S52)","v":""},{"$f":"IF('1. Order'!T52=\"\",\"\",'1. Order'!T52)","v":""},{"$f":"IF('1. Order'!U52=\"\",\"\",'1. Order'!U52)","v":""},{"$f":"IF('1. Order'!X52=\"\",\"\",'1. Order'!X52)","v":""},{"$f":"IF('1. Order'!Y52=\"\",\"\",'1. Order'!Y52)","v":""},{"$f":"IF('1. Order'!Z52=\"\",\"\",'1. Order'!Z52)","v":""},{"$f":"IF('1. Order'!AC52=\"\",\"\",'1. Order'!AC52)","v":""},{"$f":"IF('1. Order'!AD52=\"\",\"\",'1. Order'!AD52)","v":""},{"$f":"IF('1. Order'!AE52=\"\",\"\",'1. Order'!AE52)","v":""},null,{"$f":"IF('1. Order'!AW52=\"\",\"\",'1. Order'!AW52)","v":""},{"$f":"IF('1. Order'!AX52=\"\",\"\",'1. Order'!AX52)","v":""},null,null,null,null,null,null,null,{"$f":"IF('1. Order'!BB52=\"\",\"\",'1. Order'!BB52)","v":""},{"$f":"IF('1. Order'!BC52=\"\",\"\",'1. Order'!BC52)","v":""},{"$f":"IF('1. Order'!BD52=\"\",\"\",'1. Order'!BD52)","v":""},{"$f":"IF('1. Order'!BE52=\"\",\"\",'1. Order'!BE52)","v":""},{"$f":"IF('1. Order'!BG52=\"\",\"\",'1. Order'!BG52)","v":""},{"$f":"IF('1. Order'!BH52=\"\",\"\",'1. Order'!BH52)","v":""},{"$f":"IF('1. Order'!BI52=\"\",\"\",'1. Order'!BI52)","v":""},{"$f":"IF('1. Order'!BJ52=\"\",\"\",'1. Order'!BJ52)","v":""},{"$f":"IF('1. Order'!BK52=\"\",\"\",'1. Order'!BK52)","v":"ZWO"}]
[{"$f":"IF('1. Order'!G53=\"\",\"\",'1. Order'!G53)","v":""},{"$f":"IF('1. Order'!H53=\"\",\"\",'1. Order'!H53)","v":""},{"$f":"IF('1. Order'!I53=\"\",\"\",'1. Order'!I53)","v":""},{"$f":"IF('1. Order'!J53=\"\",\"\",'1. Order'!J53)","v":""},{"$f":"IF('1. Order'!K53=\"\",\"\",'1. Order'!K53)","v":""},{"$f":"IF('1. Order'!L53=\"\",\"\",'1. Order'!L53)","v":""},{"$f":"IF('1. Order'!M53=\"\",\"\",'1. Order'!M53)","v":""},{"$f":"IF('1. Order'!N53=\"\",\"\",'1. Order'!N53)","v":""},{"$f":"IF('1. Order'!P53=\"\",\"\",'1. Order'!P53)","v":""},{"$f":"IF('1. Order'!Q53=\"\",\"\",'1. Order'!Q53)","v":{"$error":"#N/A"}},{"$f":"IF('1. Order'!R53=\"\",\"\",'1. Order'!R53)","v":{"$error":"#N/A"}},{"$f":"IF('1. Order'!S53=\"\",\"\",'1. Order'!S53)","v":""},{"$f":"IF('1. Order'!T53=\"\",\"\",'1. Order'!T53)","v":""},{"$f":"IF('1. Order'!U53=\"\",\"\",'1. Order'!U53)","v":""},{"$f":"IF('1. Order'!X53=\"\",\"\",'1. Order'!X53)","v":""},{"$f":"IF('1. Order'!Y53=\"\",\"\",'1. Order'!Y53)","v":""},{"$f":"IF('1. Order'!Z53=\"\",\"\",'1. Order'!Z53)","v":""},{"$f":"IF('1. Order'!AC53=\"\",\"\",'1. Order'!AC53)","v":""},{"$f":"IF('1. Order'!AD53=\"\",\"\",'1. Order'!AD53)","v":""},{"$f":"IF('1. Order'!AE53=\"\",\"\",'1. Order'!AE53)","v":""},null,{"$f":"IF('1. Order'!AW53=\"\",\"\",'1. Order'!AW53)","v":""},{"$f":"IF('1. Order'!AX53=\"\",\"\",'1. Order'!AX53)","v":""},null,null,null,null,null,null,null,{"$f":"IF('1. Order'!BB53=\"\",\"\",'1. Order'!BB53)","v":""},{"$f":"IF('1. Order'!BC53=\"\",\"\",'1. Order'!BC53)","v":""},{"$f":"IF('1. Order'!BD53=\"\",\"\",'1. Order'!BD53)","v":""},{"$f":"IF('1. Order'!BE53=\"\",\"\",'1. Order'!BE53)","v":""},{"$f":"IF('1. Order'!BG53=\"\",\"\",'1. Order'!BG53)","v":""},{"$f":"IF('1. Order'!BH53=\"\",\"\",'1. Order'!BH53)","v":""},{"$f":"IF('1. Order'!BI53=\"\",\"\",'1. Order'!BI53)","v":""},{"$f":"IF('1. Order'!BJ53=\"\",\"\",'1. Order'!BJ53)","v":""},{"$f":"IF('1. Order'!BK53=\"\",\"\",'1. Order'!BK53)","v":"ZWO"}]
[{"$f":"IF('1. Order'!G54=\"\",\"\",'1. Order'!G54)","v":""},{"$f":"IF('1. Order'!H54=\"\",\"\",'1. Order'!H54)","v":""},{"$f":"IF('1. Order'!I54=\"\",\"\",'1. Order'!I54)","v":""},{"$f":"IF('1. Order'!J54=\"\",\"\",'1. Order'!J54)","v":""},{"$f":"IF('1. Order'!K54=\"\",\"\",'1. Order'!K54)","v":""},{"$f":"IF('1. Order'!L54=\"\",\"\",'1. Order'!L54)","v":""},{"$f":"IF('1. Order'!M54=\"\",\"\",'1. Order'!M54)","v":""},{"$f":"IF('1. Order'!N54=\"\",\"\",'1. Order'!N54)","v":""},{"$f":"IF('1. Order'!P54=\"\",\"\",'1. Order'!P54)","v":""},{"$f":"IF('1. Order'!Q54=\"\",\"\",'1. Order'!Q54)","v":{"$error":"#N/A"}},{"$f":"IF('1. Order'!R54=\"\",\"\",'1. Order'!R54)","v":{"$error":"#N/A"}},{"$f":"IF('1. Order'!S54=\"\",\"\",'1. Order'!S54)","v":""},{"$f":"IF('1. Order'!T54=\"\",\"\",'1. Order'!T54)","v":""},{"$f":"IF('1. Order'!U54=\"\",\"\",'1. Order'!U54)","v":""},{"$f":"IF('1. Order'!X54=\"\",\"\",'1. Order'!X54)","v":""},{"$f":"IF('1. Order'!Y54=\"\",\"\",'1. Order'!Y54)","v":""},{"$f":"IF('1. Order'!Z54=\"\",\"\",'1. Order'!Z54)","v":""},{"$f":"IF('1. Order'!AC54=\"\",\"\",'1. Order'!AC54)","v":""},{"$f":"IF('1. Order'!AD54=\"\",\"\",'1. Order'!AD54)","v":""},{"$f":"IF('1. Order'!AE54=\"\",\"\",'1. Order'!AE54)","v":""},null,{"$f":"IF('1. Order'!AW54=\"\",\"\",'1. Order'!AW54)","v":""},{"$f":"IF('1. Order'!AX54=\"\",\"\",'1. Order'!AX54)","v":""},null,null,null,null,null,null,null,{"$f":"IF('1. Order'!BB54=\"\",\"\",'1. Order'!BB54)","v":""},{"$f":"IF('1. Order'!BC54=\"\",\"\",'1. Order'!BC54)","v":""},{"$f":"IF('1. Order'!BD54=\"\",\"\",'1. Order'!BD54)","v":""},{"$f":"IF('1. Order'!BE54=\"\",\"\",'1. Order'!BE54)","v":""},{"$f":"IF('1. Order'!BG54=\"\",\"\",'1. Order'!BG54)","v":""},{"$f":"IF('1. Order'!BH54=\"\",\"\",'1. Order'!BH54)","v":""},{"$f":"IF('1. Order'!BI54=\"\",\"\",'1. Order'!BI54)","v":""},{"$f":"IF('1. Order'!BJ54=\"\",\"\",'1. Order'!BJ54)","v":""},{"$f":"IF('1. Order'!BK54=\"\",\"\",'1. Order'!BK54)","v":"ZWO"}]
[{"$f":"IF('1. Order'!G55=\"\",\"\",'1. Order'!G55)","v":""},{"$f":"IF('1. Order'!H55=\"\",\"\",'1. Order'!H55)","v":""},{"$f":"IF('1. Order'!I55=\"\",\"\",'1. Order'!I55)","v":""},{"$f":"IF('1. Order'!J55=\"\",\"\",'1. Order'!J55)","v":""},{"$f":"IF('1. Order'!K55=\"\",\"\",'1. Order'!K55)","v":""},{"$f":"IF('1. Order'!L55=\"\",\"\",'1. Order'!L55)","v":""},{"$f":"IF('1. Order'!M55=\"\",\"\",'1. Order'!M55)","v":""},{"$f":"IF('1. Order'!N55=\"\",\"\",'1. Order'!N55)","v":""},{"$f":"IF('1. Order'!P55=\"\",\"\",'1. Order'!P55)","v":""},{"$f":"IF('1. Order'!Q55=\"\",\"\",'1. Order'!Q55)","v":{"$error":"#N/A"}},{"$f":"IF('1. Order'!R55=\"\",\"\",'1. Order'!R55)","v":{"$error":"#N/A"}},{"$f":"IF('1. Order'!S55=\"\",\"\",'1. Order'!S55)","v":""},{"$f":"IF('1. Order'!T55=\"\",\"\",'1. Order'!T55)","v":""},{"$f":"IF('1. Order'!U55=\"\",\"\",'1. Order'!U55)","v":""},{"$f":"IF('1. Order'!X55=\"\",\"\",'1. Order'!X55)","v":""},{"$f":"IF('1. Order'!Y55=\"\",\"\",'1. Order'!Y55)","v":""},{"$f":"IF('1. Order'!Z55=\"\",\"\",'1. Order'!Z55)","v":""},{"$f":"IF('1. Order'!AC55=\"\",\"\",'1. Order'!AC55)","v":""},{"$f":"IF('1. Order'!AD55=\"\",\"\",'1. Order'!AD55)","v":""},{"$f":"IF('1. Order'!AE55=\"\",\"\",'1. Order'!AE55)","v":""},null,{"$f":"IF('1. Order'!AW55=\"\",\"\",'1. Order'!AW55)","v":""},{"$f":"IF('1. Order'!AX55=\"\",\"\",'1. Order'!AX55)","v":""},null,null,null,null,null,null,null,{"$f":"IF('1. Order'!BB55=\"\",\"\",'1. Order'!BB55)","v":""},{"$f":"IF('1. Order'!BC55=\"\",\"\",'1. Order'!BC55)","v":""},{"$f":"IF('1. Order'!BD55=\"\",\"\",'1. Order'!BD55)","v":""},{"$f":"IF('1. Order'!BE55=\"\",\"\",'1. Order'!BE55)","v":""},{"$f":"IF('1. Order'!BG55=\"\",\"\",'1. Order'!BG55)","v":""},{"$f":"IF('1. Order'!BH55=\"\",\"\",'1. Order'!BH55)","v":""},{"$f":"IF('1. Order'!BI55=\"\",\"\",'1. Order'!BI55)","v":""},{"$f":"IF('1. Order'!BJ55=\"\",\"\",'1. Order'!BJ55)","v":""},{"$f":"IF('1. Order'!BK55=\"\",\"\",'1. Order'!BK55)","v":"ZWO"}]
[{"$f":"IF('1. Order'!G56=\"\",\"\",'1. Order'!G56)","v":""},{"$f":"IF('1. Order'!H56=\"\",\"\",'1. Order'!H56)","v":""},{"$f":"IF('1. Order'!I56=\"\",\"\",'1. Order'!I56)","v":""},{"$f":"IF('1. Order'!J56=\"\",\"\",'1. Order'!J56)","v":""},{"$f":"IF('1. Order'!K56=\"\",\"\",'1. Order'!K56)","v":""},{"$f":"IF('1. Order'!L56=\"\",\"\",'1. Order'!L56)","v":""},{"$f":"IF('1. Order'!M56=\"\",\"\",'1. Order'!M56)","v":""},{"$f":"IF('1. Order'!N56=\"\",\"\",'1. Order'!N56)","v":""},{"$f":"IF('1. Order'!P56=\"\",\"\",'1. Order'!P56)","v":""},{"$f":"IF('1. Order'!Q56=\"\",\"\",'1. Order'!Q56)","v":{"$error":"#N/A"}},{"$f":"IF('1. Order'!R56=\"\",\"\",'1. Order'!R56)","v":{"$error":"#N/A"}},{"$f":"IF('1. Order'!S56=\"\",\"\",'1. Order'!S56)","v":""},{"$f":"IF('1. Order'!T56=\"\",\"\",'1. Order'!T56)","v":""},{"$f":"IF('1. Order'!U56=\"\",\"\",'1. Order'!U56)","v":""},{"$f":"IF('1. Order'!X56=\"\",\"\",'1. Order'!X56)","v":""},{"$f":"IF('1. Order'!Y56=\"\",\"\",'1. Order'!Y56)","v":""},{"$f":"IF('1. Order'!Z56=\"\",\"\",'1. Order'!Z56)","v":""},{"$f":"IF('1. Order'!AC56=\"\",\"\",'1. Order'!AC56)","v":""},{"$f":"IF('1. Order'!AD56=\"\",\"\",'1. Order'!AD56)","v":""},{"$f":"IF('1. Order'!AE56=\"\",\"\",'1. Order'!AE56)","v":""},null,{"$f":"IF('1. Order'!AW56=\"\",\"\",'1. Order'!AW56)","v":""},{"$f":"IF('1. Order'!AX56=\"\",\"\",'1. Order'!AX56)","v":""},null,null,null,null,null,null,null,{"$f":"IF('1. Order'!BB56=\"\",\"\",'1. Order'!BB56)","v":""},{"$f":"IF('1. Order'!BC56=\"\",\"\",'1. Order'!BC56)","v":""},{"$f":"IF('1. Order'!BD56=\"\",\"\",'1. Order'!BD56)","v":""},{"$f":"IF('1. Order'!BE56=\"\",\"\",'1. Order'!BE56)","v":""},{"$f":"IF('1. Order'!BG56=\"\",\"\",'1. Order'!BG56)","v":""},{"$f":"IF('1. Order'!BH56=\"\",\"\",'1. Order'!BH56)","v":""},{"$f":"IF('1. Order'!BI56=\"\",\"\",'1. Order'!BI56)","v":""},{"$f":"IF('1. Order'!BJ56=\"\",\"\",'1. Order'!BJ56)","v":""},{"$f":"IF('1. Order'!BK56=\"\",\"\",'1. Order'!BK56)","v":"ZWO"}]
[{"$f":"IF('1. Order'!G57=\"\",\"\",'1. Order'!G57)","v":""},{"$f":"IF('1. Order'!H57=\"\",\"\",'1. Order'!H57)","v":""},{"$f":"IF('1. Order'!I57=\"\",\"\",'1. Order'!I57)","v":""},{"$f":"IF('1. Order'!J57=\"\",\"\",'1. Order'!J57)","v":""},{"$f":"IF('1. Order'!K57=\"\",\"\",'1. Order'!K57)","v":""},{"$f":"IF('1. Order'!L57=\"\",\"\",'1. Order'!L57)","v":""},{"$f":"IF('1. Order'!M57=\"\",\"\",'1. Order'!M57)","v":""},{"$f":"IF('1. Order'!N57=\"\",\"\",'1. Order'!N57)","v":""},{"$f":"IF('1. Order'!P57=\"\",\"\",'1. Order'!P57)","v":""},{"$f":"IF('1. Order'!Q57=\"\",\"\",'1. Order'!Q57)","v":{"$error":"#N/A"}},{"$f":"IF('1. Order'!R57=\"\",\"\",'1. Order'!R57)","v":{"$error":"#N/A"}},{"$f":"IF('1. Order'!S57=\"\",\"\",'1. Order'!S57)","v":""},{"$f":"IF('1. Order'!T57=\"\",\"\",'1. Order'!T57)","v":""},{"$f":"IF('1. Order'!U57=\"\",\"\",'1. Order'!U57)","v":""},{"$f":"IF('1. Order'!X57=\"\",\"\",'1. Order'!X57)","v":""},{"$f":"IF('1. Order'!Y57=\"\",\"\",'1. Order'!Y57)","v":""},{"$f":"IF('1. Order'!Z57=\"\",\"\",'1. Order'!Z57)","v":""},{"$f":"IF('1. Order'!AC57=\"\",\"\",'1. Order'!AC57)","v":""},{"$f":"IF('1. Order'!AD57=\"\",\"\",'1. Order'!AD57)","v":""},{"$f":"IF('1. Order'!AE57=\"\",\"\",'1. Order'!AE57)","v":""},null,{"$f":"IF('1. Order'!AW57=\"\",\"\",'1. Order'!AW57)","v":""},{"$f":"IF('1. Order'!AX57=\"\",\"\",'1. Order'!AX57)","v":""},null,null,null,null,null,null,null,{"$f":"IF('1. Order'!BB57=\"\",\"\",'1. Order'!BB57)","v":""},{"$f":"IF('1. Order'!BC57=\"\",\"\",'1. Order'!BC57)","v":""},{"$f":"IF('1. Order'!BD57=\"\",\"\",'1. Order'!BD57)","v":""},{"$f":"IF('1. Order'!BE57=\"\",\"\",'1. Order'!BE57)","v":""},{"$f":"IF('1. Order'!BG57=\"\",\"\",'1. Order'!BG57)","v":""},{"$f":"IF('1. Order'!BH57=\"\",\"\",'1. Order'!BH57)","v":""},{"$f":"IF('1. Order'!BI57=\"\",\"\",'1. Order'!BI57)","v":""},{"$f":"IF('1. Order'!BJ57=\"\",\"\",'1. Order'!BJ57)","v":""},{"$f":"IF('1. Order'!BK57=\"\",\"\",'1. Order'!BK57)","v":"ZWO"}]
[{"$f":"IF('1. Order'!G58=\"\",\"\",'1. Order'!G58)","v":""},{"$f":"IF('1. Order'!H58=\"\",\"\",'1. Order'!H58)","v":""},{"$f":"IF('1. Order'!I58=\"\",\"\",'1. Order'!I58)","v":""},{"$f":"IF('1. Order'!J58=\"\",\"\",'1. Order'!J58)","v":""},{"$f":"IF('1. Order'!K58=\"\",\"\",'1. Order'!K58)","v":""},{"$f":"IF('1. Order'!L58=\"\",\"\",'1. Order'!L58)","v":""},{"$f":"IF('1. Order'!M58=\"\",\"\",'1. Order'!M58)","v":""},{"$f":"IF('1. Order'!N58=\"\",\"\",'1. Order'!N58)","v":""},{"$f":"IF('1. Order'!P58=\"\",\"\",'1. Order'!P58)","v":""},{"$f":"IF('1. Order'!Q58=\"\",\"\",'1. Order'!Q58)","v":{"$error":"#N/A"}},{"$f":"IF('1. Order'!R58=\"\",\"\",'1. Order'!R58)","v":{"$error":"#N/A"}},{"$f":"IF('1. Order'!S58=\"\",\"\",'1. Order'!S58)","v":""},{"$f":"IF('1. Order'!T58=\"\",\"\",'1. Order'!T58)","v":""},{"$f":"IF('1. Order'!U58=\"\",\"\",'1. Order'!U58)","v":""},{"$f":"IF('1. Order'!X58=\"\",\"\",'1. Order'!X58)","v":""},{"$f":"IF('1. Order'!Y58=\"\",\"\",'1. Order'!Y58)","v":""},{"$f":"IF('1. Order'!Z58=\"\",\"\",'1. Order'!Z58)","v":""},{"$f":"IF('1. Order'!AC58=\"\",\"\",'1. Order'!AC58)","v":""},{"$f":"IF('1. Order'!AD58=\"\",\"\",'1. Order'!AD58)","v":""},{"$f":"IF('1. Order'!AE58=\"\",\"\",'1. Order'!AE58)","v":""},null,{"$f":"IF('1. Order'!AW58=\"\",\"\",'1. Order'!AW58)","v":""},{"$f":"IF('1. Order'!AX58=\"\",\"\",'1. Order'!AX58)","v":""},null,null,null,null,null,null,null,{"$f":"IF('1. Order'!BB58=\"\",\"\",'1. Order'!BB58)","v":""},{"$f":"IF('1. Order'!BC58=\"\",\"\",'1. Order'!BC58)","v":""},{"$f":"IF('1. Order'!BD58=\"\",\"\",'1. Order'!BD58)","v":""},{"$f":"IF('1. Order'!BE58=\"\",\"\",'1. Order'!BE58)","v":""},{"$f":"IF('1. Order'!BG58=\"\",\"\",'1. Order'!BG58)","v":""},{"$f":"IF('1. Order'!BH58=\"\",\"\",'1. Order'!BH58)","v":""},{"$f":"IF('1. Order'!BI58=\"\",\"\",'1. Order'!BI58)","v":""},{"$f":"IF('1. Order'!BJ58=\"\",\"\",'1. Order'!BJ58)","v":""},{"$f":"IF('1. Order'!BK58=\"\",\"\",'1. Order'!BK58)","v":"ZWO"}]
[{"$f":"IF('1. Order'!G59=\"\",\"\",'1. Order'!G59)","v":""},{"$f":"IF('1. Order'!H59=\"\",\"\",'1. Order'!H59)","v":""},{"$f":"IF('1. Order'!I59=\"\",\"\",'1. Order'!I59)","v":""},{"$f":"IF('1. Order'!J59=\"\",\"\",'1. Order'!J59)","v":""},{"$f":"IF('1. Order'!K59=\"\",\"\",'1. Order'!K59)","v":""},{"$f":"IF('1. Order'!L59=\"\",\"\",'1. Order'!L59)","v":""},{"$f":"IF('1. Order'!M59=\"\",\"\",'1. Order'!M59)","v":""},{"$f":"IF('1. Order'!N59=\"\",\"\",'1. Order'!N59)","v":""},{"$f":"IF('1. Order'!P59=\"\",\"\",'1. Order'!P59)","v":""},{"$f":"IF('1. Order'!Q59=\"\",\"\",'1. Order'!Q59)","v":{"$error":"#N/A"}},{"$f":"IF('1. Order'!R59=\"\",\"\",'1. Order'!R59)","v":{"$error":"#N/A"}},{"$f":"IF('1. Order'!S59=\"\",\"\",'1. Order'!S59)","v":""},{"$f":"IF('1. Order'!T59=\"\",\"\",'1. Order'!T59)","v":""},{"$f":"IF('1. Order'!U59=\"\",\"\",'1. Order'!U59)","v":""},{"$f":"IF('1. Order'!X59=\"\",\"\",'1. Order'!X59)","v":""},{"$f":"IF('1. Order'!Y59=\"\",\"\",'1. Order'!Y59)","v":""},{"$f":"IF('1. Order'!Z59=\"\",\"\",'1. Order'!Z59)","v":""},{"$f":"IF('1. Order'!AC59=\"\",\"\",'1. Order'!AC59)","v":""},{"$f":"IF('1. Order'!AD59=\"\",\"\",'1. Order'!AD59)","v":""},{"$f":"IF('1. Order'!AE59=\"\",\"\",'1. Order'!AE59)","v":""},null,{"$f":"IF('1. Order'!AW59=\"\",\"\",'1. Order'!AW59)","v":""},{"$f":"IF('1. Order'!AX59=\"\",\"\",'1. Order'!AX59)","v":""},null,null,null,null,null,null,null,{"$f":"IF('1. Order'!BB59=\"\",\"\",'1. Order'!BB59)","v":""},{"$f":"IF('1. Order'!BC59=\"\",\"\",'1. Order'!BC59)","v":""},{"$f":"IF('1. Order'!BD59=\"\",\"\",'1. Order'!BD59)","v":""},{"$f":"IF('1. Order'!BE59=\"\",\"\",'1. Order'!BE59)","v":""},{"$f":"IF('1. Order'!BG59=\"\",\"\",'1. Order'!BG59)","v":""},{"$f":"IF('1. Order'!BH59=\"\",\"\",'1. Order'!BH59)","v":""},{"$f":"IF('1. Order'!BI59=\"\",\"\",'1. Order'!BI59)","v":""},{"$f":"IF('1. Order'!BJ59=\"\",\"\",'1. Order'!BJ59)","v":""},{"$f":"IF('1. Order'!BK59=\"\",\"\",'1. Order'!BK59)","v":"ZWO"}]
[{"$f":"IF('1. Order'!G60=\"\",\"\",'1. Order'!G60)","v":""},{"$f":"IF('1. Order'!H60=\"\",\"\",'1. Order'!H60)","v":""},{"$f":"IF('1. Order'!I60=\"\",\"\",'1. Order'!I60)","v":""},{"$f":"IF('1. Order'!J60=\"\",\"\",'1. Order'!J60)","v":""},{"$f":"IF('1. Order'!K60=\"\",\"\",'1. Order'!K60)","v":""},{"$f":"IF('1. Order'!L60=\"\",\"\",'1. Order'!L60)","v":""},{"$f":"IF('1. Order'!M60=\"\",\"\",'1. Order'!M60)","v":""},{"$f":"IF('1. Order'!N60=\"\",\"\",'1. Order'!N60)","v":""},{"$f":"IF('1. Order'!P60=\"\",\"\",'1. Order'!P60)","v":""},{"$f":"IF('1. Order'!Q60=\"\",\"\",'1. Order'!Q60)","v":{"$error":"#N/A"}},{"$f":"IF('1. Order'!R60=\"\",\"\",'1. Order'!R60)","v":{"$error":"#N/A"}},{"$f":"IF('1. Order'!S60=\"\",\"\",'1. Order'!S60)","v":""},{"$f":"IF('1. Order'!T60=\"\",\"\",'1. Order'!T60)","v":""},{"$f":"IF('1. Order'!U60=\"\",\"\",'1. Order'!U60)","v":""},{"$f":"IF('1. Order'!X60=\"\",\"\",'1. Order'!X60)","v":""},{"$f":"IF('1. Order'!Y60=\"\",\"\",'1. Order'!Y60)","v":""},{"$f":"IF('1. Order'!Z60=\"\",\"\",'1. Order'!Z60)","v":""},{"$f":"IF('1. Order'!AC60=\"\",\"\",'1. Order'!AC60)","v":""},{"$f":"IF('1. Order'!AD60=\"\",\"\",'1. Order'!AD60)","v":""},{"$f":"IF('1. Order'!AE60=\"\",\"\",'1. Order'!AE60)","v":""},null,{"$f":"IF('1. Order'!AW60=\"\",\"\",'1. Order'!AW60)","v":""},{"$f":"IF('1. Order'!AX60=\"\",\"\",'1. Order'!AX60)","v":""},null,null,null,null,null,null,null,{"$f":"IF('1. Order'!BB60=\"\",\"\",'1. Order'!BB60)","v":""},{"$f":"IF('1. Order'!BC60=\"\",\"\",'1. Order'!BC60)","v":""},{"$f":"IF('1. Order'!BD60=\"\",\"\",'1. Order'!BD60)","v":""},{"$f":"IF('1. Order'!BE60=\"\",\"\",'1. Order'!BE60)","v":""},{"$f":"IF('1. Order'!BG60=\"\",\"\",'1. Order'!BG60)","v":""},{"$f":"IF('1. Order'!BH60=\"\",\"\",'1. Order'!BH60)","v":""},{"$f":"IF('1. Order'!BI60=\"\",\"\",'1. Order'!BI60)","v":""},{"$f":"IF('1. Order'!BJ60=\"\",\"\",'1. Order'!BJ60)","v":""},{"$f":"IF('1. Order'!BK60=\"\",\"\",'1. Order'!BK60)","v":"ZWO"}]
[{"$f":"IF('1. Order'!G61=\"\",\"\",'1. Order'!G61)","v":""},{"$f":"IF('1. Order'!H61=\"\",\"\",'1. Order'!H61)","v":""},{"$f":"IF('1. Order'!I61=\"\",\"\",'1. Order'!I61)","v":""},{"$f":"IF('1. Order'!J61=\"\",\"\",'1. Order'!J61)","v":""},{"$f":"IF('1. Order'!K61=\"\",\"\",'1. Order'!K61)","v":""},{"$f":"IF('1. Order'!L61=\"\",\"\",'1. Order'!L61)","v":""},{"$f":"IF('1. Order'!M61=\"\",\"\",'1. Order'!M61)","v":""},{"$f":"IF('1. Order'!N61=\"\",\"\",'1. Order'!N61)","v":""},{"$f":"IF('1. Order'!P61=\"\",\"\",'1. Order'!P61)","v":""},{"$f":"IF('1. Order'!Q61=\"\",\"\",'1. Order'!Q61)","v":{"$error":"#N/A"}},{"$f":"IF('1. Order'!R61=\"\",\"\",'1. Order'!R61)","v":{"$error":"#N/A"}},{"$f":"IF('1. Order'!S61=\"\",\"\",'1. Order'!S61)","v":""},{"$f":"IF('1. Order'!T61=\"\",\"\",'1. Order'!T61)","v":""},{"$f":"IF('1. Order'!U61=\"\",\"\",'1. Order'!U61)","v":""},{"$f":"IF('1. Order'!X61=\"\",\"\",'1. Order'!X61)","v":""},{"$f":"IF('1. Order'!Y61=\"\",\"\",'1. Order'!Y61)","v":""},{"$f":"IF('1. Order'!Z61=\"\",\"\",'1. Order'!Z61)","v":""},{"$f":"IF('1. Order'!AC61=\"\",\"\",'1. Order'!AC61)","v":""},{"$f":"IF('1. Order'!AD61=\"\",\"\",'1. Order'!AD61)","v":""},{"$f":"IF('1. Order'!AE61=\"\",\"\",'1. Order'!AE61)","v":""},null,{"$f":"IF('1. Order'!AW61=\"\",\"\",'1. Order'!AW61)","v":""},{"$f":"IF('1. Order'!AX61=\"\",\"\",'1. Order'!AX61)","v":""},null,null,null,null,null,null,null,{"$f":"IF('1. Order'!BB61=\"\",\"\",'1. Order'!BB61)","v":""},{"$f":"IF('1. Order'!BC61=\"\",\"\",'1. Order'!BC61)","v":""},{"$f":"IF('1. Order'!BD61=\"\",\"\",'1. Order'!BD61)","v":""},{"$f":"IF('1. Order'!BE61=\"\",\"\",'1. Order'!BE61)","v":""},{"$f":"IF('1. Order'!BG61=\"\",\"\",'1. Order'!BG61)","v":""},{"$f":"IF('1. Order'!BH61=\"\",\"\",'1. Order'!BH61)","v":""},{"$f":"IF('1. Order'!BI61=\"\",\"\",'1. Order'!BI61)","v":""},{"$f":"IF('1. Order'!BJ61=\"\",\"\",'1. Order'!BJ61)","v":""},{"$f":"IF('1. Order'!BK61=\"\",\"\",'1. Order'!BK61)","v":"ZWO"}]
[{"$f":"IF('1. Order'!G62=\"\",\"\",'1. Order'!G62)","v":""},{"$f":"IF('1. Order'!H62=\"\",\"\",'1. Order'!H62)","v":""},{"$f":"IF('1. Order'!I62=\"\",\"\",'1. Order'!I62)","v":""},{"$f":"IF('1. Order'!J62=\"\",\"\",'1. Order'!J62)","v":""},{"$f":"IF('1. Order'!K62=\"\",\"\",'1. Order'!K62)","v":""},{"$f":"IF('1. Order'!L62=\"\",\"\",'1. Order'!L62)","v":""},{"$f":"IF('1. Order'!M62=\"\",\"\",'1. Order'!M62)","v":""},{"$f":"IF('1. Order'!N62=\"\",\"\",'1. Order'!N62)","v":""},{"$f":"IF('1. Order'!P62=\"\",\"\",'1. Order'!P62)","v":""},{"$f":"IF('1. Order'!Q62=\"\",\"\",'1. Order'!Q62)","v":{"$error":"#N/A"}},{"$f":"IF('1. Order'!R62=\"\",\"\",'1. Order'!R62)","v":{"$error":"#N/A"}},{"$f":"IF('1. Order'!S62=\"\",\"\",'1. Order'!S62)","v":""},{"$f":"IF('1. Order'!T62=\"\",\"\",'1. Order'!T62)","v":""},{"$f":"IF('1. Order'!U62=\"\",\"\",'1. Order'!U62)","v":""},{"$f":"IF('1. Order'!X62=\"\",\"\",'1. Order'!X62)","v":""},{"$f":"IF('1. Order'!Y62=\"\",\"\",'1. Order'!Y62)","v":""},{"$f":"IF('1. Order'!Z62=\"\",\"\",'1. Order'!Z62)","v":""},{"$f":"IF('1. Order'!AC62=\"\",\"\",'1. Order'!AC62)","v":""},{"$f":"IF('1. Order'!AD62=\"\",\"\",'1. Order'!AD62)","v":""},{"$f":"IF('1. Order'!AE62=\"\",\"\",'1. Order'!AE62)","v":""},null,{"$f":"IF('1. Order'!AW62=\"\",\"\",'1. Order'!AW62)","v":""},{"$f":"IF('1. Order'!AX62=\"\",\"\",'1. Order'!AX62)","v":""},null,null,null,null,null,null,null,{"$f":"IF('1. Order'!BB62=\"\",\"\",'1. Order'!BB62)","v":""},{"$f":"IF('1. Order'!BC62=\"\",\"\",'1. Order'!BC62)","v":""},{"$f":"IF('1. Order'!BD62=\"\",\"\",'1. Order'!BD62)","v":""},{"$f":"IF('1. Order'!BE62=\"\",\"\",'1. Order'!BE62)","v":""},{"$f":"IF('1. Order'!BG62=\"\",\"\",'1. Order'!BG62)","v":""},{"$f":"IF('1. Order'!BH62=\"\",\"\",'1. Order'!BH62)","v":""},{"$f":"IF('1. Order'!BI62=\"\",\"\",'1. Order'!BI62)","v":""},{"$f":"IF('1. Order'!BJ62=\"\",\"\",'1. Order'!BJ62)","v":""},{"$f":"IF('1. Order'!BK62=\"\",\"\",'1. Order'!BK62)","v":"ZWO"}]
[{"$f":"IF('1. Order'!G63=\"\",\"\",'1. Order'!G63)","v":""},{"$f":"IF('1. Order'!H63=\"\",\"\",'1. Order'!H63)","v":""},{"$f":"IF('1. Order'!I63=\"\",\"\",'1. Order'!I63)","v":""},{"$f":"IF('1. Order'!J63=\"\",\"\",'1. Order'!J63)","v":""},{"$f":"IF('1. Order'!K63=\"\",\"\",'1. Order'!K63)","v":""},{"$f":"IF('1. Order'!L63=\"\",\"\",'1. Order'!L63)","v":""},{"$f":"IF('1. Order'!M63=\"\",\"\",'1. Order'!M63)","v":""},{"$f":"IF('1. Order'!N63=\"\",\"\",'1. Order'!N63)","v":""},{"$f":"IF('1. Order'!P63=\"\",\"\",'1. Order'!P63)","v":""},{"$f":"IF('1. Order'!Q63=\"\",\"\",'1. Order'!Q63)","v":{"$error":"#N/A"}},{"$f":"IF('1. Order'!R63=\"\",\"\",'1. Order'!R63)","v":{"$error":"#N/A"}},{"$f":"IF('1. Order'!S63=\"\",\"\",'1. Order'!S63)","v":""},{"$f":"IF('1. Order'!T63=\"\",\"\",'1. Order'!T63)","v":""},{"$f":"IF('1. Order'!U63=\"\",\"\",'1. Order'!U63)","v":""},{"$f":"IF('1. Order'!X63=\"\",\"\",'1. Order'!X63)","v":""},{"$f":"IF('1. Order'!Y63=\"\",\"\",'1. Order'!Y63)","v":""},{"$f":"IF('1. Order'!Z63=\"\",\"\",'1. Order'!Z63)","v":""},{"$f":"IF('1. Order'!AC63=\"\",\"\",'1. Order'!AC63)","v":""},{"$f":"IF('1. Order'!AD63=\"\",\"\",'1. Order'!AD63)","v":""},{"$f":"IF('1. Order'!AE63=\"\",\"\",'1. Order'!AE63)","v":""},null,{"$f":"IF('1. Order'!AW63=\"\",\"\",'1. Order'!AW63)","v":""},{"$f":"IF('1. Order'!AX63=\"\",\"\",'1. Order'!AX63)","v":""},null,null,null,null,null,null,null,{"$f":"IF('1. Order'!BB63=\"\",\"\",'1. Order'!BB63)","v":""},{"$f":"IF('1. Order'!BC63=\"\",\"\",'1. Order'!BC63)","v":""},{"$f":"IF('1. Order'!BD63=\"\",\"\",'1. Order'!BD63)","v":""},{"$f":"IF('1. Order'!BE63=\"\",\"\",'1. Order'!BE63)","v":""},{"$f":"IF('1. Order'!BG63=\"\",\"\",'1. Order'!BG63)","v":""},{"$f":"IF('1. Order'!BH63=\"\",\"\",'1. Order'!BH63)","v":""},{"$f":"IF('1. Order'!BI63=\"\",\"\",'1. Order'!BI63)","v":""},{"$f":"IF('1. Order'!BJ63=\"\",\"\",'1. Order'!BJ63)","v":""},{"$f":"IF('1. Order'!BK63=\"\",\"\",'1. Order'!BK63)","v":"ZWO"}]
[{"$f":"IF('1. Order'!G64=\"\",\"\",'1. Order'!G64)","v":""},{"$f":"IF('1. Order'!H64=\"\",\"\",'1. Order'!H64)","v":""},{"$f":"IF('1. Order'!I64=\"\",\"\",'1. Order'!I64)","v":""},{"$f":"IF('1. Order'!J64=\"\",\"\",'1. Order'!J64)","v":""},{"$f":"IF('1. Order'!K64=\"\",\"\",'1. Order'!K64)","v":""},{"$f":"IF('1. Order'!L64=\"\",\"\",'1. Order'!L64)","v":""},{"$f":"IF('1. Order'!M64=\"\",\"\",'1. Order'!M64)","v":""},{"$f":"IF('1. Order'!N64=\"\",\"\",'1. Order'!N64)","v":""},{"$f":"IF('1. Order'!P64=\"\",\"\",'1. Order'!P64)","v":""},{"$f":"IF('1. Order'!Q64=\"\",\"\",'1. Order'!Q64)","v":{"$error":"#N/A"}},{"$f":"IF('1. Order'!R64=\"\",\"\",'1. Order'!R64)","v":{"$error":"#N/A"}},{"$f":"IF('1. Order'!S64=\"\",\"\",'1. Order'!S64)","v":""},{"$f":"IF('1. Order'!T64=\"\",\"\",'1. Order'!T64)","v":""},{"$f":"IF('1. Order'!U64=\"\",\"\",'1. Order'!U64)","v":""},{"$f":"IF('1. Order'!X64=\"\",\"\",'1. Order'!X64)","v":""},{"$f":"IF('1. Order'!Y64=\"\",\"\",'1. Order'!Y64)","v":""},{"$f":"IF('1. Order'!Z64=\"\",\"\",'1. Order'!Z64)","v":""},{"$f":"IF('1. Order'!AC64=\"\",\"\",'1. Order'!AC64)","v":""},{"$f":"IF('1. Order'!AD64=\"\",\"\",'1. Order'!AD64)","v":""},{"$f":"IF('1. Order'!AE64=\"\",\"\",'1. Order'!AE64)","v":""},null,{"$f":"IF('1. Order'!AW64=\"\",\"\",'1. Order'!AW64)","v":""},{"$f":"IF('1. Order'!AX64=\"\",\"\",'1. Order'!AX64)","v":""},null,null,null,null,null,null,null,{"$f":"IF('1. Order'!BB64=\"\",\"\",'1. Order'!BB64)","v":""},{"$f":"IF('1. Order'!BC64=\"\",\"\",'1. Order'!BC64)","v":""},{"$f":"IF('1. Order'!BD64=\"\",\"\",'1. Order'!BD64)","v":""},{"$f":"IF('1. Order'!BE64=\"\",\"\",'1. Order'!BE64)","v":""},{"$f":"IF('1. Order'!BG64=\"\",\"\",'1. Order'!BG64)","v":""},{"$f":"IF('1. Order'!BH64=\"\",\"\",'1. Order'!BH64)","v":""},{"$f":"IF('1. Order'!BI64=\"\",\"\",'1. Order'!BI64)","v":""},{"$f":"IF('1. Order'!BJ64=\"\",\"\",'1. Order'!BJ64)","v":""},{"$f":"IF('1. Order'!BK64=\"\",\"\",'1. Order'!BK64)","v":"ZWO"}]
[{"$f":"IF('1. Order'!G65=\"\",\"\",'1. Order'!G65)","v":""},{"$f":"IF('1. Order'!H65=\"\",\"\",'1. Order'!H65)","v":""},{"$f":"IF('1. Order'!I65=\"\",\"\",'1. Order'!I65)","v":""},{"$f":"IF('1. Order'!J65=\"\",\"\",'1. Order'!J65)","v":""},{"$f":"IF('1. Order'!K65=\"\",\"\",'1. Order'!K65)","v":""},{"$f":"IF('1. Order'!L65=\"\",\"\",'1. Order'!L65)","v":""},{"$f":"IF('1. Order'!M65=\"\",\"\",'1. Order'!M65)","v":""},{"$f":"IF('1. Order'!N65=\"\",\"\",'1. Order'!N65)","v":""},{"$f":"IF('1. Order'!P65=\"\",\"\",'1. Order'!P65)","v":""},{"$f":"IF('1. Order'!Q65=\"\",\"\",'1. Order'!Q65)","v":{"$error":"#N/A"}},{"$f":"IF('1. Order'!R65=\"\",\"\",'1. Order'!R65)","v":{"$error":"#N/A"}},{"$f":"IF('1. Order'!S65=\"\",\"\",'1. Order'!S65)","v":""},{"$f":"IF('1. Order'!T65=\"\",\"\",'1. Order'!T65)","v":""},{"$f":"IF('1. Order'!U65=\"\",\"\",'1. Order'!U65)","v":""},{"$f":"IF('1. Order'!X65=\"\",\"\",'1. Order'!X65)","v":""},{"$f":"IF('1. Order'!Y65=\"\",\"\",'1. Order'!Y65)","v":""},{"$f":"IF('1. Order'!Z65=\"\",\"\",'1. Order'!Z65)","v":""},{"$f":"IF('1. Order'!AC65=\"\",\"\",'1. Order'!AC65)","v":""},{"$f":"IF('1. Order'!AD65=\"\",\"\",'1. Order'!AD65)","v":""},{"$f":"IF('1. Order'!AE65=\"\",\"\",'1. Order'!AE65)","v":""},null,{"$f":"IF('1. Order'!AW65=\"\",\"\",'1. Order'!AW65)","v":""},{"$f":"IF('1. Order'!AX65=\"\",\"\",'1. Order'!AX65)","v":""},null,null,null,null,null,null,null,{"$f":"IF('1. Order'!BB65=\"\",\"\",'1. Order'!BB65)","v":""},{"$f":"IF('1. Order'!BC65=\"\",\"\",'1. Order'!BC65)","v":""},{"$f":"IF('1. Order'!BD65=\"\",\"\",'1. Order'!BD65)","v":""},{"$f":"IF('1. Order'!BE65=\"\",\"\",'1. Order'!BE65)","v":""},{"$f":"IF('1. Order'!BG65=\"\",\"\",'1. Order'!BG65)","v":""},{"$f":"IF('1. Order'!BH65=\"\",\"\",'1. Order'!BH65)","v":""},{"$f":"IF('1. Order'!BI65=\"\",\"\",'1. Order'!BI65)","v":""},{"$f":"IF('1. Order'!BJ65=\"\",\"\",'1. Order'!BJ65)","v":""},{"$f":"IF('1. Order'!BK65=\"\",\"\",'1. Order'!BK65)","v":"ZWO"}]
[{"$f":"IF('1. Order'!G66=\"\",\"\",'1. Order'!G66)","v":""},{"$f":"IF('1. Order'!H66=\"\",\"\",'1. Order'!H66)","v":""},{"$f":"IF('1. Order'!I66=\"\",\"\",'1. Order'!I66)","v":""},{"$f":"IF('1. Order'!J66=\"\",\"\",'1. Order'!J66)","v":""},{"$f":"IF('1. Order'!K66=\"\",\"\",'1. Order'!K66)","v":""},{"$f":"IF('1. Order'!L66=\"\",\"\",'1. Order'!L66)","v":""},{"$f":"IF('1. Order'!M66=\"\",\"\",'1. Order'!M66)","v":""},{"$f":"IF('1. Order'!N66=\"\",\"\",'1. Order'!N66)","v":""},{"$f":"IF('1. Order'!P66=\"\",\"\",'1. Order'!P66)","v":""},{"$f":"IF('1. Order'!Q66=\"\",\"\",'1. Order'!Q66)","v":{"$error":"#N/A"}},{"$f":"IF('1. Order'!R66=\"\",\"\",'1. Order'!R66)","v":{"$error":"#N/A"}},{"$f":"IF('1. Order'!S66=\"\",\"\",'1. Order'!S66)","v":""},{"$f":"IF('1. Order'!T66=\"\",\"\",'1. Order'!T66)","v":""},{"$f":"IF('1. Order'!U66=\"\",\"\",'1. Order'!U66)","v":""},{"$f":"IF('1. Order'!X66=\"\",\"\",'1. Order'!X66)","v":""},{"$f":"IF('1. Order'!Y66=\"\",\"\",'1. Order'!Y66)","v":""},{"$f":"IF('1. Order'!Z66=\"\",\"\",'1. Order'!Z66)","v":""},{"$f":"IF('1. Order'!AC66=\"\",\"\",'1. Order'!AC66)","v":""},{"$f":"IF('1. Order'!AD66=\"\",\"\",'1. Order'!AD66)","v":""},{"$f":"IF('1. Order'!AE66=\"\",\"\",'1. Order'!AE66)","v":""},null,{"$f":"IF('1. Order'!AW66=\"\",\"\",'1. Order'!AW66)","v":""},{"$f":"IF('1. Order'!AX66=\"\",\"\",'1. Order'!AX66)","v":""},null,null,null,null,null,null,null,{"$f":"IF('1. Order'!BB66=\"\",\"\",'1. Order'!BB66)","v":""},{"$f":"IF('1. Order'!BC66=\"\",\"\",'1. Order'!BC66)","v":""},{"$f":"IF('1. Order'!BD66=\"\",\"\",'1. Order'!BD66)","v":""},{"$f":"IF('1. Order'!BE66=\"\",\"\",'1. Order'!BE66)","v":""},{"$f":"IF('1. Order'!BG66=\"\",\"\",'1. Order'!BG66)","v":""},{"$f":"IF('1. Order'!BH66=\"\",\"\",'1. Order'!BH66)","v":""},{"$f":"IF('1. Order'!BI66=\"\",\"\",'1. Order'!BI66)","v":""},{"$f":"IF('1. Order'!BJ66=\"\",\"\",'1. Order'!BJ66)","v":""},{"$f":"IF('1. Order'!BK66=\"\",\"\",'1. Order'!BK66)","v":"ZWO"}]
[{"$f":"IF('1. Order'!G67=\"\",\"\",'1. Order'!G67)","v":""},{"$f":"IF('1. Order'!H67=\"\",\"\",'1. Order'!H67)","v":""},{"$f":"IF('1. Order'!I67=\"\",\"\",'1. Order'!I67)","v":""},{"$f":"IF('1. Order'!J67=\"\",\"\",'1. Order'!J67)","v":""},{"$f":"IF('1. Order'!K67=\"\",\"\",'1. Order'!K67)","v":""},{"$f":"IF('1. Order'!L67=\"\",\"\",'1. Order'!L67)","v":""},{"$f":"IF('1. Order'!M67=\"\",\"\",'1. Order'!M67)","v":""},{"$f":"IF('1. Order'!N67=\"\",\"\",'1. Order'!N67)","v":""},{"$f":"IF('1. Order'!P67=\"\",\"\",'1. Order'!P67)","v":""},{"$f":"IF('1. Order'!Q67=\"\",\"\",'1. Order'!Q67)","v":{"$error":"#N/A"}},{"$f":"IF('1. Order'!R67=\"\",\"\",'1. Order'!R67)","v":{"$error":"#N/A"}},{"$f":"IF('1. Order'!S67=\"\",\"\",'1. Order'!S67)","v":""},{"$f":"IF('1. Order'!T67=\"\",\"\",'1. Order'!T67)","v":""},{"$f":"IF('1. Order'!U67=\"\",\"\",'1. Order'!U67)","v":""},{"$f":"IF('1. Order'!X67=\"\",\"\",'1. Order'!X67)","v":""},{"$f":"IF('1. Order'!Y67=\"\",\"\",'1. Order'!Y67)","v":""},{"$f":"IF('1. Order'!Z67=\"\",\"\",'1. Order'!Z67)","v":""},{"$f":"IF('1. Order'!AC67=\"\",\"\",'1. Order'!AC67)","v":""},{"$f":"IF('1. Order'!AD67=\"\",\"\",'1. Order'!AD67)","v":""},{"$f":"IF('1. Order'!AE67=\"\",\"\",'1. Order'!AE67)","v":""},null,{"$f":"IF('1. Order'!AW67=\"\",\"\",'1. Order'!AW67)","v":""},{"$f":"IF('1. Order'!AX67=\"\",\"\",'1. Order'!AX67)","v":""},null,null,null,null,null,null,null,{"$f":"IF('1. Order'!BB67=\"\",\"\",'1. Order'!BB67)","v":""},{"$f":"IF('1. Order'!BC67=\"\",\"\",'1. Order'!BC67)","v":""},{"$f":"IF('1. Order'!BD67=\"\",\"\",'1. Order'!BD67)","v":""},{"$f":"IF('1. Order'!BE67=\"\",\"\",'1. Order'!BE67)","v":""},{"$f":"IF('1. Order'!BG67=\"\",\"\",'1. Order'!BG67)","v":""},{"$f":"IF('1. Order'!BH67=\"\",\"\",'1. Order'!BH67)","v":""},{"$f":"IF('1. Order'!BI67=\"\",\"\",'1. Order'!BI67)","v":""},{"$f":"IF('1. Order'!BJ67=\"\",\"\",'1. Order'!BJ67)","v":""},{"$f":"IF('1. Order'!BK67=\"\",\"\",'1. Order'!BK67)","v":"ZWO"}]
[{"$f":"IF('1. Order'!G68=\"\",\"\",'1. Order'!G68)","v":""},{"$f":"IF('1. Order'!H68=\"\",\"\",'1. Order'!H68)","v":""},{"$f":"IF('1. Order'!I68=\"\",\"\",'1. Order'!I68)","v":""},{"$f":"IF('1. Order'!J68=\"\",\"\",'1. Order'!J68)","v":""},{"$f":"IF('1. Order'!K68=\"\",\"\",'1. Order'!K68)","v":""},{"$f":"IF('1. Order'!L68=\"\",\"\",'1. Order'!L68)","v":""},{"$f":"IF('1. Order'!M68=\"\",\"\",'1. Order'!M68)","v":""},{"$f":"IF('1. Order'!N68=\"\",\"\",'1. Order'!N68)","v":""},{"$f":"IF('1. Order'!P68=\"\",\"\",'1. Order'!P68)","v":""},{"$f":"IF('1. Order'!Q68=\"\",\"\",'1. Order'!Q68)","v":{"$error":"#N/A"}},{"$f":"IF('1. Order'!R68=\"\",\"\",'1. Order'!R68)","v":{"$error":"#N/A"}},{"$f":"IF('1. Order'!S68=\"\",\"\",'1. Order'!S68)","v":""},{"$f":"IF('1. Order'!T68=\"\",\"\",'1. Order'!T68)","v":""},{"$f":"IF('1. Order'!U68=\"\",\"\",'1. Order'!U68)","v":""},{"$f":"IF('1. Order'!X68=\"\",\"\",'1. Order'!X68)","v":""},{"$f":"IF('1. Order'!Y68=\"\",\"\",'1. Order'!Y68)","v":""},{"$f":"IF('1. Order'!Z68=\"\",\"\",'1. Order'!Z68)","v":""},{"$f":"IF('1. Order'!AC68=\"\",\"\",'1. Order'!AC68)","v":""},{"$f":"IF('1. Order'!AD68=\"\",\"\",'1. Order'!AD68)","v":""},{"$f":"IF('1. Order'!AE68=\"\",\"\",'1. Order'!AE68)","v":""},null,{"$f":"IF('1. Order'!AW68=\"\",\"\",'1. Order'!AW68)","v":""},{"$f":"IF('1. Order'!AX68=\"\",\"\",'1. Order'!AX68)","v":""},null,null,null,null,null,null,null,{"$f":"IF('1. Order'!BB68=\"\",\"\",'1. Order'!BB68)","v":""},{"$f":"IF('1. Order'!BC68=\"\",\"\",'1. Order'!BC68)","v":""},{"$f":"IF('1. Order'!BD68=\"\",\"\",'1. Order'!BD68)","v":""},{"$f":"IF('1. Order'!BE68=\"\",\"\",'1. Order'!BE68)","v":""},{"$f":"IF('1. Order'!BG68=\"\",\"\",'1. Order'!BG68)","v":""},{"$f":"IF('1. Order'!BH68=\"\",\"\",'1. Order'!BH68)","v":""},{"$f":"IF('1. Order'!BI68=\"\",\"\",'1. Order'!BI68)","v":""},{"$f":"IF('1. Order'!BJ68=\"\",\"\",'1. Order'!BJ68)","v":""},{"$f":"IF('1. Order'!BK68=\"\",\"\",'1. Order'!BK68)","v":"ZWO"}]
[{"$f":"IF('1. Order'!G69=\"\",\"\",'1. Order'!G69)","v":""},{"$f":"IF('1. Order'!H69=\"\",\"\",'1. Order'!H69)","v":""},{"$f":"IF('1. Order'!I69=\"\",\"\",'1. Order'!I69)","v":""},{"$f":"IF('1. Order'!J69=\"\",\"\",'1. Order'!J69)","v":""},{"$f":"IF('1. Order'!K69=\"\",\"\",'1. Order'!K69)","v":""},{"$f":"IF('1. Order'!L69=\"\",\"\",'1. Order'!L69)","v":""},{"$f":"IF('1. Order'!M69=\"\",\"\",'1. Order'!M69)","v":""},{"$f":"IF('1. Order'!N69=\"\",\"\",'1. Order'!N69)","v":""},{"$f":"IF('1. Order'!P69=\"\",\"\",'1. Order'!P69)","v":""},{"$f":"IF('1. Order'!Q69=\"\",\"\",'1. Order'!Q69)","v":{"$error":"#N/A"}},{"$f":"IF('1. Order'!R69=\"\",\"\",'1. Order'!R69)","v":{"$error":"#N/A"}},{"$f":"IF('1. Order'!S69=\"\",\"\",'1. Order'!S69)","v":""},{"$f":"IF('1. Order'!T69=\"\",\"\",'1. Order'!T69)","v":""},{"$f":"IF('1. Order'!U69=\"\",\"\",'1. Order'!U69)","v":""},{"$f":"IF('1. Order'!X69=\"\",\"\",'1. Order'!X69)","v":""},{"$f":"IF('1. Order'!Y69=\"\",\"\",'1. Order'!Y69)","v":""},{"$f":"IF('1. Order'!Z69=\"\",\"\",'1. Order'!Z69)","v":""},{"$f":"IF('1. Order'!AC69=\"\",\"\",'1. Order'!AC69)","v":""},{"$f":"IF('1. Order'!AD69=\"\",\"\",'1. Order'!AD69)","v":""},{"$f":"IF('1. Order'!AE69=\"\",\"\",'1. Order'!AE69)","v":""},null,{"$f":"IF('1. Order'!AW69=\"\",\"\",'1. Order'!AW69)","v":""},{"$f":"IF('1. Order'!AX69=\"\",\"\",'1. Order'!AX69)","v":""},null,null,null,null,null,null,null,{"$f":"IF('1. Order'!BB69=\"\",\"\",'1. Order'!BB69)","v":""},{"$f":"IF('1. Order'!BC69=\"\",\"\",'1. Order'!BC69)","v":""},{"$f":"IF('1. Order'!BD69=\"\",\"\",'1. Order'!BD69)","v":""},{"$f":"IF('1. Order'!BE69=\"\",\"\",'1. Order'!BE69)","v":""},{"$f":"IF('1. Order'!BG69=\"\",\"\",'1. Order'!BG69)","v":""},{"$f":"IF('1. Order'!BH69=\"\",\"\",'1. Order'!BH69)","v":""},{"$f":"IF('1. Order'!BI69=\"\",\"\",'1. Order'!BI69)","v":""},{"$f":"IF('1. Order'!BJ69=\"\",\"\",'1. Order'!BJ69)","v":""},{"$f":"IF('1. Order'!BK69=\"\",\"\",'1. Order'!BK69)","v":"ZWO"}]
[{"$f":"IF('1. Order'!G70=\"\",\"\",'1. Order'!G70)","v":""},{"$f":"IF('1. Order'!H70=\"\",\"\",'1. Order'!H70)","v":""},{"$f":"IF('1. Order'!I70=\"\",\"\",'1. Order'!I70)","v":""},{"$f":"IF('1. Order'!J70=\"\",\"\",'1. Order'!J70)","v":""},{"$f":"IF('1. Order'!K70=\"\",\"\",'1. Order'!K70)","v":""},{"$f":"IF('1. Order'!L70=\"\",\"\",'1. Order'!L70)","v":""},{"$f":"IF('1. Order'!M70=\"\",\"\",'1. Order'!M70)","v":""},{"$f":"IF('1. Order'!N70=\"\",\"\",'1. Order'!N70)","v":""},{"$f":"IF('1. Order'!P70=\"\",\"\",'1. Order'!P70)","v":""},{"$f":"IF('1. Order'!Q70=\"\",\"\",'1. Order'!Q70)","v":{"$error":"#N/A"}},{"$f":"IF('1. Order'!R70=\"\",\"\",'1. Order'!R70)","v":{"$error":"#N/A"}},{"$f":"IF('1. Order'!S70=\"\",\"\",'1. Order'!S70)","v":""},{"$f":"IF('1. Order'!T70=\"\",\"\",'1. Order'!T70)","v":""},{"$f":"IF('1. Order'!U70=\"\",\"\",'1. Order'!U70)","v":""},{"$f":"IF('1. Order'!X70=\"\",\"\",'1. Order'!X70)","v":""},{"$f":"IF('1. Order'!Y70=\"\",\"\",'1. Order'!Y70)","v":""},{"$f":"IF('1. Order'!Z70=\"\",\"\",'1. Order'!Z70)","v":""},{"$f":"IF('1. Order'!AC70=\"\",\"\",'1. Order'!AC70)","v":""},{"$f":"IF('1. Order'!AD70=\"\",\"\",'1. Order'!AD70)","v":""},{"$f":"IF('1. Order'!AE70=\"\",\"\",'1. Order'!AE70)","v":""},null,{"$f":"IF('1. Order'!AW70=\"\",\"\",'1. Order'!AW70)","v":""},{"$f":"IF('1. Order'!AX70=\"\",\"\",'1. Order'!AX70)","v":""},null,null,null,null,null,null,null,{"$f":"IF('1. Order'!BB70=\"\",\"\",'1. Order'!BB70)","v":""},{"$f":"IF('1. Order'!BC70=\"\",\"\",'1. Order'!BC70)","v":""},{"$f":"IF('1. Order'!BD70=\"\",\"\",'1. Order'!BD70)","v":""},{"$f":"IF('1. Order'!BE70=\"\",\"\",'1. Order'!BE70)","v":""},{"$f":"IF('1. Order'!BG70=\"\",\"\",'1. Order'!BG70)","v":""},{"$f":"IF('1. Order'!BH70=\"\",\"\",'1. Order'!BH70)","v":""},{"$f":"IF('1. Order'!BI70=\"\",\"\",'1. Order'!BI70)","v":""},{"$f":"IF('1. Order'!BJ70=\"\",\"\",'1. Order'!BJ70)","v":""},{"$f":"IF('1. Order'!BK70=\"\",\"\",'1. Order'!BK70)","v":"ZWO"}]
[{"$f":"IF('1. Order'!G71=\"\",\"\",'1. Order'!G71)","v":""},{"$f":"IF('1. Order'!H71=\"\",\"\",'1. Order'!H71)","v":""},{"$f":"IF('1. Order'!I71=\"\",\"\",'1. Order'!I71)","v":""},{"$f":"IF('1. Order'!J71=\"\",\"\",'1. Order'!J71)","v":""},{"$f":"IF('1. Order'!K71=\"\",\"\",'1. Order'!K71)","v":""},{"$f":"IF('1. Order'!L71=\"\",\"\",'1. Order'!L71)","v":""},{"$f":"IF('1. Order'!M71=\"\",\"\",'1. Order'!M71)","v":""},{"$f":"IF('1. Order'!N71=\"\",\"\",'1. Order'!N71)","v":""},{"$f":"IF('1. Order'!P71=\"\",\"\",'1. Order'!P71)","v":""},{"$f":"IF('1. Order'!Q71=\"\",\"\",'1. Order'!Q71)","v":{"$error":"#N/A"}},{"$f":"IF('1. Order'!R71=\"\",\"\",'1. Order'!R71)","v":{"$error":"#N/A"}},{"$f":"IF('1. Order'!S71=\"\",\"\",'1. Order'!S71)","v":""},{"$f":"IF('1. Order'!T71=\"\",\"\",'1. Order'!T71)","v":""},{"$f":"IF('1. Order'!U71=\"\",\"\",'1. Order'!U71)","v":""},{"$f":"IF('1. Order'!X71=\"\",\"\",'1. Order'!X71)","v":""},{"$f":"IF('1. Order'!Y71=\"\",\"\",'1. Order'!Y71)","v":""},{"$f":"IF('1. Order'!Z71=\"\",\"\",'1. Order'!Z71)","v":""},{"$f":"IF('1. Order'!AC71=\"\",\"\",'1. Order'!AC71)","v":""},{"$f":"IF('1. Order'!AD71=\"\",\"\",'1. Order'!AD71)","v":""},{"$f":"IF('1. Order'!AE71=\"\",\"\",'1. Order'!AE71)","v":""},null,{"$f":"IF('1. Order'!AW71=\"\",\"\",'1. Order'!AW71)","v":""},{"$f":"IF('1. Order'!AX71=\"\",\"\",'1. Order'!AX71)","v":""},null,null,null,null,null,null,null,{"$f":"IF('1. Order'!BB71=\"\",\"\",'1. Order'!BB71)","v":""},{"$f":"IF('1. Order'!BC71=\"\",\"\",'1. Order'!BC71)","v":""},{"$f":"IF('1. Order'!BD71=\"\",\"\",'1. Order'!BD71)","v":""},{"$f":"IF('1. Order'!BE71=\"\",\"\",'1. Order'!BE71)","v":""},{"$f":"IF('1. Order'!BG71=\"\",\"\",'1. Order'!BG71)","v":""},{"$f":"IF('1. Order'!BH71=\"\",\"\",'1. Order'!BH71)","v":""},{"$f":"IF('1. Order'!BI71=\"\",\"\",'1. Order'!BI71)","v":""},{"$f":"IF('1. Order'!BJ71=\"\",\"\",'1. Order'!BJ71)","v":""},{"$f":"IF('1. Order'!BK71=\"\",\"\",'1. Order'!BK71)","v":"ZWO"}]
[{"$f":"IF('1. Order'!G72=\"\",\"\",'1. Order'!G72)","v":""},{"$f":"IF('1. Order'!H72=\"\",\"\",'1. Order'!H72)","v":""},{"$f":"IF('1. Order'!I72=\"\",\"\",'1. Order'!I72)","v":""},{"$f":"IF('1. Order'!J72=\"\",\"\",'1. Order'!J72)","v":""},{"$f":"IF('1. Order'!K72=\"\",\"\",'1. Order'!K72)","v":""},{"$f":"IF('1. Order'!L72=\"\",\"\",'1. Order'!L72)","v":""},{"$f":"IF('1. Order'!M72=\"\",\"\",'1. Order'!M72)","v":""},{"$f":"IF('1. Order'!N72=\"\",\"\",'1. Order'!N72)","v":""},{"$f":"IF('1. Order'!P72=\"\",\"\",'1. Order'!P72)","v":""},{"$f":"IF('1. Order'!Q72=\"\",\"\",'1. Order'!Q72)","v":{"$error":"#N/A"}},{"$f":"IF('1. Order'!R72=\"\",\"\",'1. Order'!R72)","v":{"$error":"#N/A"}},{"$f":"IF('1. Order'!S72=\"\",\"\",'1. Order'!S72)","v":""},{"$f":"IF('1. Order'!T72=\"\",\"\",'1. Order'!T72)","v":""},{"$f":"IF('1. Order'!U72=\"\",\"\",'1. Order'!U72)","v":""},{"$f":"IF('1. Order'!X72=\"\",\"\",'1. Order'!X72)","v":""},{"$f":"IF('1. Order'!Y72=\"\",\"\",'1. Order'!Y72)","v":""},{"$f":"IF('1. Order'!Z72=\"\",\"\",'1. Order'!Z72)","v":""},{"$f":"IF('1. Order'!AC72=\"\",\"\",'1. Order'!AC72)","v":""},{"$f":"IF('1. Order'!AD72=\"\",\"\",'1. Order'!AD72)","v":""},{"$f":"IF('1. Order'!AE72=\"\",\"\",'1. Order'!AE72)","v":""},null,{"$f":"IF('1. Order'!AW72=\"\",\"\",'1. Order'!AW72)","v":""},{"$f":"IF('1. Order'!AX72=\"\",\"\",'1. Order'!AX72)","v":""},null,null,null,null,null,null,null,{"$f":"IF('1. Order'!BB72=\"\",\"\",'1. Order'!BB72)","v":""},{"$f":"IF('1. Order'!BC72=\"\",\"\",'1. Order'!BC72)","v":""},{"$f":"IF('1. Order'!BD72=\"\",\"\",'1. Order'!BD72)","v":""},{"$f":"IF('1. Order'!BE72=\"\",\"\",'1. Order'!BE72)","v":""},{"$f":"IF('1. Order'!BG72=\"\",\"\",'1. Order'!BG72)","v":""},{"$f":"IF('1. Order'!BH72=\"\",\"\",'1. Order'!BH72)","v":""},{"$f":"IF('1. Order'!BI72=\"\",\"\",'1. Order'!BI72)","v":""},{"$f":"IF('1. Order'!BJ72=\"\",\"\",'1. Order'!BJ72)","v":""},{"$f":"IF('1. Order'!BK72=\"\",\"\",'1. Order'!BK72)","v":"ZWO"}]
[{"$f":"IF('1. Order'!G73=\"\",\"\",'1. Order'!G73)","v":""},{"$f":"IF('1. Order'!H73=\"\",\"\",'1. Order'!H73)","v":""},{"$f":"IF('1. Order'!I73=\"\",\"\",'1. Order'!I73)","v":""},{"$f":"IF('1. Order'!J73=\"\",\"\",'1. Order'!J73)","v":""},{"$f":"IF('1. Order'!K73=\"\",\"\",'1. Order'!K73)","v":""},{"$f":"IF('1. Order'!L73=\"\",\"\",'1. Order'!L73)","v":""},{"$f":"IF('1. Order'!M73=\"\",\"\",'1. Order'!M73)","v":""},{"$f":"IF('1. Order'!N73=\"\",\"\",'1. Order'!N73)","v":""},{"$f":"IF('1. Order'!P73=\"\",\"\",'1. Order'!P73)","v":""},{"$f":"IF('1. Order'!Q73=\"\",\"\",'1. Order'!Q73)","v":{"$error":"#N/A"}},{"$f":"IF('1. Order'!R73=\"\",\"\",'1. Order'!R73)","v":{"$error":"#N/A"}},{"$f":"IF('1. Order'!S73=\"\",\"\",'1. Order'!S73)","v":""},{"$f":"IF('1. Order'!T73=\"\",\"\",'1. Order'!T73)","v":""},{"$f":"IF('1. Order'!U73=\"\",\"\",'1. Order'!U73)","v":""},{"$f":"IF('1. Order'!X73=\"\",\"\",'1. Order'!X73)","v":""},{"$f":"IF('1. Order'!Y73=\"\",\"\",'1. Order'!Y73)","v":""},{"$f":"IF('1. Order'!Z73=\"\",\"\",'1. Order'!Z73)","v":""},{"$f":"IF('1. Order'!AC73=\"\",\"\",'1. Order'!AC73)","v":""},{"$f":"IF('1. Order'!AD73=\"\",\"\",'1. Order'!AD73)","v":""},{"$f":"IF('1. Order'!AE73=\"\",\"\",'1. Order'!AE73)","v":""},null,{"$f":"IF('1. Order'!AW73=\"\",\"\",'1. Order'!AW73)","v":""},{"$f":"IF('1. Order'!AX73=\"\",\"\",'1. Order'!AX73)","v":""},null,null,null,null,null,null,null,{"$f":"IF('1. Order'!BB73=\"\",\"\",'1. Order'!BB73)","v":""},{"$f":"IF('1. Order'!BC73=\"\",\"\",'1. Order'!BC73)","v":""},{"$f":"IF('1. Order'!BD73=\"\",\"\",'1. Order'!BD73)","v":""},{"$f":"IF('1. Order'!BE73=\"\",\"\",'1. Order'!BE73)","v":""},{"$f":"IF('1. Order'!BG73=\"\",\"\",'1. Order'!BG73)","v":""},{"$f":"IF('1. Order'!BH73=\"\",\"\",'1. Order'!BH73)","v":""},{"$f":"IF('1. Order'!BI73=\"\",\"\",'1. Order'!BI73)","v":""},{"$f":"IF('1. Order'!BJ73=\"\",\"\",'1. Order'!BJ73)","v":""},{"$f":"IF('1. Order'!BK73=\"\",\"\",'1. Order'!BK73)","v":"ZWO"}]
[{"$f":"IF('1. Order'!G74=\"\",\"\",'1. Order'!G74)","v":""},{"$f":"IF('1. Order'!H74=\"\",\"\",'1. Order'!H74)","v":""},{"$f":"IF('1. Order'!I74=\"\",\"\",'1. Order'!I74)","v":""},{"$f":"IF('1. Order'!J74=\"\",\"\",'1. Order'!J74)","v":""},{"$f":"IF('1. Order'!K74=\"\",\"\",'1. Order'!K74)","v":""},{"$f":"IF('1. Order'!L74=\"\",\"\",'1. Order'!L74)","v":""},{"$f":"IF('1. Order'!M74=\"\",\"\",'1. Order'!M74)","v":""},{"$f":"IF('1. Order'!N74=\"\",\"\",'1. Order'!N74)","v":""},{"$f":"IF('1. Order'!P74=\"\",\"\",'1. Order'!P74)","v":""},{"$f":"IF('1. Order'!Q74=\"\",\"\",'1. Order'!Q74)","v":{"$error":"#N/A"}},{"$f":"IF('1. Order'!R74=\"\",\"\",'1. Order'!R74)","v":{"$error":"#N/A"}},{"$f":"IF('1. Order'!S74=\"\",\"\",'1. Order'!S74)","v":""},{"$f":"IF('1. Order'!T74=\"\",\"\",'1. Order'!T74)","v":""},{"$f":"IF('1. Order'!U74=\"\",\"\",'1. Order'!U74)","v":""},{"$f":"IF('1. Order'!X74=\"\",\"\",'1. Order'!X74)","v":""},{"$f":"IF('1. Order'!Y74=\"\",\"\",'1. Order'!Y74)","v":""},{"$f":"IF('1. Order'!Z74=\"\",\"\",'1. Order'!Z74)","v":""},{"$f":"IF('1. Order'!AC74=\"\",\"\",'1. Order'!AC74)","v":""},{"$f":"IF('1. Order'!AD74=\"\",\"\",'1. Order'!AD74)","v":""},{"$f":"IF('1. Order'!AE74=\"\",\"\",'1. Order'!AE74)","v":""},null,{"$f":"IF('1. Order'!AW74=\"\",\"\",'1. Order'!AW74)","v":""},{"$f":"IF('1. Order'!AX74=\"\",\"\",'1. Order'!AX74)","v":""},null,null,null,null,null,null,null,{"$f":"IF('1. Order'!BB74=\"\",\"\",'1. Order'!BB74)","v":""},{"$f":"IF('1. Order'!BC74=\"\",\"\",'1. Order'!BC74)","v":""},{"$f":"IF('1. Order'!BD74=\"\",\"\",'1. Order'!BD74)","v":""},{"$f":"IF('1. Order'!BE74=\"\",\"\",'1. Order'!BE74)","v":""},{"$f":"IF('1. Order'!BG74=\"\",\"\",'1. Order'!BG74)","v":""},{"$f":"IF('1. Order'!BH74=\"\",\"\",'1. Order'!BH74)","v":""},{"$f":"IF('1. Order'!BI74=\"\",\"\",'1. Order'!BI74)","v":""},{"$f":"IF('1. Order'!BJ74=\"\",\"\",'1. Order'!BJ74)","v":""},{"$f":"IF('1. Order'!BK74=\"\",\"\",'1. Order'!BK74)","v":"ZWO"}]
[{"$f":"IF('1. Order'!G75=\"\",\"\",'1. Order'!G75)","v":""},{"$f":"IF('1. Order'!H75=\"\",\"\",'1. Order'!H75)","v":""},{"$f":"IF('1. Order'!I75=\"\",\"\",'1. Order'!I75)","v":""},{"$f":"IF('1. Order'!J75=\"\",\"\",'1. Order'!J75)","v":""},{"$f":"IF('1. Order'!K75=\"\",\"\",'1. Order'!K75)","v":""},{"$f":"IF('1. Order'!L75=\"\",\"\",'1. Order'!L75)","v":""},{"$f":"IF('1. Order'!M75=\"\",\"\",'1. Order'!M75)","v":""},{"$f":"IF('1. Order'!N75=\"\",\"\",'1. Order'!N75)","v":""},{"$f":"IF('1. Order'!P75=\"\",\"\",'1. Order'!P75)","v":""},{"$f":"IF('1. Order'!Q75=\"\",\"\",'1. Order'!Q75)","v":{"$error":"#N/A"}},{"$f":"IF('1. Order'!R75=\"\",\"\",'1. Order'!R75)","v":{"$error":"#N/A"}},{"$f":"IF('1. Order'!S75=\"\",\"\",'1. Order'!S75)","v":""},{"$f":"IF('1. Order'!T75=\"\",\"\",'1. Order'!T75)","v":""},{"$f":"IF('1. Order'!U75=\"\",\"\",'1. Order'!U75)","v":""},{"$f":"IF('1. Order'!X75=\"\",\"\",'1. Order'!X75)","v":""},{"$f":"IF('1. Order'!Y75=\"\",\"\",'1. Order'!Y75)","v":""},{"$f":"IF('1. Order'!Z75=\"\",\"\",'1. Order'!Z75)","v":""},{"$f":"IF('1. Order'!AC75=\"\",\"\",'1. Order'!AC75)","v":""},{"$f":"IF('1. Order'!AD75=\"\",\"\",'1. Order'!AD75)","v":""},{"$f":"IF('1. Order'!AE75=\"\",\"\",'1. Order'!AE75)","v":""},null,{"$f":"IF('1. Order'!AW75=\"\",\"\",'1. Order'!AW75)","v":""},{"$f":"IF('1. Order'!AX75=\"\",\"\",'1. Order'!AX75)","v":""},null,null,null,null,null,null,null,{"$f":"IF('1. Order'!BB75=\"\",\"\",'1. Order'!BB75)","v":""},{"$f":"IF('1. Order'!BC75=\"\",\"\",'1. Order'!BC75)","v":""},{"$f":"IF('1. Order'!BD75=\"\",\"\",'1. Order'!BD75)","v":""},{"$f":"IF('1. Order'!BE75=\"\",\"\",'1. Order'!BE75)","v":""},{"$f":"IF('1. Order'!BG75=\"\",\"\",'1. Order'!BG75)","v":""},{"$f":"IF('1. Order'!BH75=\"\",\"\",'1. Order'!BH75)","v":""},{"$f":"IF('1. Order'!BI75=\"\",\"\",'1. Order'!BI75)","v":""},{"$f":"IF('1. Order'!BJ75=\"\",\"\",'1. Order'!BJ75)","v":""},{"$f":"IF('1. Order'!BK75=\"\",\"\",'1. Order'!BK75)","v":"ZWO"}]
[{"$f":"IF('1. Order'!G76=\"\",\"\",'1. Order'!G76)","v":""},{"$f":"IF('1. Order'!H76=\"\",\"\",'1. Order'!H76)","v":""},{"$f":"IF('1. Order'!I76=\"\",\"\",'1. Order'!I76)","v":""},{"$f":"IF('1. Order'!J76=\"\",\"\",'1. Order'!J76)","v":""},{"$f":"IF('1. Order'!K76=\"\",\"\",'1. Order'!K76)","v":""},{"$f":"IF('1. Order'!L76=\"\",\"\",'1. Order'!L76)","v":""},{"$f":"IF('1. Order'!M76=\"\",\"\",'1. Order'!M76)","v":""},{"$f":"IF('1. Order'!N76=\"\",\"\",'1. Order'!N76)","v":""},{"$f":"IF('1. Order'!P76=\"\",\"\",'1. Order'!P76)","v":""},{"$f":"IF('1. Order'!Q76=\"\",\"\",'1. Order'!Q76)","v":{"$error":"#N/A"}},{"$f":"IF('1. Order'!R76=\"\",\"\",'1. Order'!R76)","v":{"$error":"#N/A"}},{"$f":"IF('1. Order'!S76=\"\",\"\",'1. Order'!S76)","v":""},{"$f":"IF('1. Order'!T76=\"\",\"\",'1. Order'!T76)","v":""},{"$f":"IF('1. Order'!U76=\"\",\"\",'1. Order'!U76)","v":""},{"$f":"IF('1. Order'!X76=\"\",\"\",'1. Order'!X76)","v":""},{"$f":"IF('1. Order'!Y76=\"\",\"\",'1. Order'!Y76)","v":""},{"$f":"IF('1. Order'!Z76=\"\",\"\",'1. Order'!Z76)","v":""},{"$f":"IF('1. Order'!AC76=\"\",\"\",'1. Order'!AC76)","v":""},{"$f":"IF('1. Order'!AD76=\"\",\"\",'1. Order'!AD76)","v":""},{"$f":"IF('1. Order'!AE76=\"\",\"\",'1. Order'!AE76)","v":""},null,{"$f":"IF('1. Order'!AW76=\"\",\"\",'1. Order'!AW76)","v":""},{"$f":"IF('1. Order'!AX76=\"\",\"\",'1. Order'!AX76)","v":""},null,null,null,null,null,null,null,{"$f":"IF('1. Order'!BB76=\"\",\"\",'1. Order'!BB76)","v":""},{"$f":"IF('1. Order'!BC76=\"\",\"\",'1. Order'!BC76)","v":""},{"$f":"IF('1. Order'!BD76=\"\",\"\",'1. Order'!BD76)","v":""},{"$f":"IF('1. Order'!BE76=\"\",\"\",'1. Order'!BE76)","v":""},{"$f":"IF('1. Order'!BG76=\"\",\"\",'1. Order'!BG76)","v":""},{"$f":"IF('1. Order'!BH76=\"\",\"\",'1. Order'!BH76)","v":""},{"$f":"IF('1. Order'!BI76=\"\",\"\",'1. Order'!BI76)","v":""},{"$f":"IF('1. Order'!BJ76=\"\",\"\",'1. Order'!BJ76)","v":""},{"$f":"IF('1. Order'!BK76=\"\",\"\",'1. Order'!BK76)","v":"ZWO"}]
[{"$f":"IF('1. Order'!G77=\"\",\"\",'1. Order'!G77)","v":""},{"$f":"IF('1. Order'!H77=\"\",\"\",'1. Order'!H77)","v":""},{"$f":"IF('1. Order'!I77=\"\",\"\",'1. Order'!I77)","v":""},{"$f":"IF('1. Order'!J77=\"\",\"\",'1. Order'!J77)","v":""},{"$f":"IF('1. Order'!K77=\"\",\"\",'1. Order'!K77)","v":""},{"$f":"IF('1. Order'!L77=\"\",\"\",'1. Order'!L77)","v":""},{"$f":"IF('1. Order'!M77=\"\",\"\",'1. Order'!M77)","v":""},{"$f":"IF('1. Order'!N77=\"\",\"\",'1. Order'!N77)","v":""},{"$f":"IF('1. Order'!P77=\"\",\"\",'1. Order'!P77)","v":""},{"$f":"IF('1. Order'!Q77=\"\",\"\",'1. Order'!Q77)","v":{"$error":"#N/A"}},{"$f":"IF('1. Order'!R77=\"\",\"\",'1. Order'!R77)","v":{"$error":"#N/A"}},{"$f":"IF('1. Order'!S77=\"\",\"\",'1. Order'!S77)","v":""},{"$f":"IF('1. Order'!T77=\"\",\"\",'1. Order'!T77)","v":""},{"$f":"IF('1. Order'!U77=\"\",\"\",'1. Order'!U77)","v":""},{"$f":"IF('1. Order'!X77=\"\",\"\",'1. Order'!X77)","v":""},{"$f":"IF('1. Order'!Y77=\"\",\"\",'1. Order'!Y77)","v":""},{"$f":"IF('1. Order'!Z77=\"\",\"\",'1. Order'!Z77)","v":""},{"$f":"IF('1. Order'!AC77=\"\",\"\",'1. Order'!AC77)","v":""},{"$f":"IF('1. Order'!AD77=\"\",\"\",'1. Order'!AD77)","v":""},{"$f":"IF('1. Order'!AE77=\"\",\"\",'1. Order'!AE77)","v":""},null,{"$f":"IF('1. Order'!AW77=\"\",\"\",'1. Order'!AW77)","v":""},{"$f":"IF('1. Order'!AX77=\"\",\"\",'1. Order'!AX77)","v":""},null,null,null,null,null,null,null,{"$f":"IF('1. Order'!BB77=\"\",\"\",'1. Order'!BB77)","v":""},{"$f":"IF('1. Order'!BC77=\"\",\"\",'1. Order'!BC77)","v":""},{"$f":"IF('1. Order'!BD77=\"\",\"\",'1. Order'!BD77)","v":""},{"$f":"IF('1. Order'!BE77=\"\",\"\",'1. Order'!BE77)","v":""},{"$f":"IF('1. Order'!BG77=\"\",\"\",'1. Order'!BG77)","v":""},{"$f":"IF('1. Order'!BH77=\"\",\"\",'1. Order'!BH77)","v":""},{"$f":"IF('1. Order'!BI77=\"\",\"\",'1. Order'!BI77)","v":""},{"$f":"IF('1. Order'!BJ77=\"\",\"\",'1. Order'!BJ77)","v":""},{"$f":"IF('1. Order'!BK77=\"\",\"\",'1. Order'!BK77)","v":"ZWO"}]
[{"$f":"IF('1. Order'!G78=\"\",\"\",'1. Order'!G78)","v":""},{"$f":"IF('1. Order'!H78=\"\",\"\",'1. Order'!H78)","v":""},{"$f":"IF('1. Order'!I78=\"\",\"\",'1. Order'!I78)","v":""},{"$f":"IF('1. Order'!J78=\"\",\"\",'1. Order'!J78)","v":""},{"$f":"IF('1. Order'!K78=\"\",\"\",'1. Order'!K78)","v":""},{"$f":"IF('1. Order'!L78=\"\",\"\",'1. Order'!L78)","v":""},{"$f":"IF('1. Order'!M78=\"\",\"\",'1. Order'!M78)","v":""},{"$f":"IF('1. Order'!N78=\"\",\"\",'1. Order'!N78)","v":""},{"$f":"IF('1. Order'!P78=\"\",\"\",'1. Order'!P78)","v":""},{"$f":"IF('1. Order'!Q78=\"\",\"\",'1. Order'!Q78)","v":{"$error":"#N/A"}},{"$f":"IF('1. Order'!R78=\"\",\"\",'1. Order'!R78)","v":{"$error":"#N/A"}},{"$f":"IF('1. Order'!S78=\"\",\"\",'1. Order'!S78)","v":""},{"$f":"IF('1. Order'!T78=\"\",\"\",'1. Order'!T78)","v":""},{"$f":"IF('1. Order'!U78=\"\",\"\",'1. Order'!U78)","v":""},{"$f":"IF('1. Order'!X78=\"\",\"\",'1. Order'!X78)","v":""},{"$f":"IF('1. Order'!Y78=\"\",\"\",'1. Order'!Y78)","v":""},{"$f":"IF('1. Order'!Z78=\"\",\"\",'1. Order'!Z78)","v":""},{"$f":"IF('1. Order'!AC78=\"\",\"\",'1. Order'!AC78)","v":""},{"$f":"IF('1. Order'!AD78=\"\",\"\",'1. Order'!AD78)","v":""},{"$f":"IF('1. Order'!AE78=\"\",\"\",'1. Order'!AE78)","v":""},null,{"$f":"IF('1. Order'!AW78=\"\",\"\",'1. Order'!AW78)","v":""},{"$f":"IF('1. Order'!AX78=\"\",\"\",'1. Order'!AX78)","v":""},null,null,null,null,null,null,null,{"$f":"IF('1. Order'!BB78=\"\",\"\",'1. Order'!BB78)","v":""},{"$f":"IF('1. Order'!BC78=\"\",\"\",'1. Order'!BC78)","v":""},{"$f":"IF('1. Order'!BD78=\"\",\"\",'1. Order'!BD78)","v":""},{"$f":"IF('1. Order'!BE78=\"\",\"\",'1. Order'!BE78)","v":""},{"$f":"IF('1. Order'!BG78=\"\",\"\",'1. Order'!BG78)","v":""},{"$f":"IF('1. Order'!BH78=\"\",\"\",'1. Order'!BH78)","v":""},{"$f":"IF('1. Order'!BI78=\"\",\"\",'1. Order'!BI78)","v":""},{"$f":"IF('1. Order'!BJ78=\"\",\"\",'1. Order'!BJ78)","v":""},{"$f":"IF('1. Order'!BK78=\"\",\"\",'1. Order'!BK78)","v":"ZWO"}]
[{"$f":"IF('1. Order'!G79=\"\",\"\",'1. Order'!G79)","v":""},{"$f":"IF('1. Order'!H79=\"\",\"\",'1. Order'!H79)","v":""},{"$f":"IF('1. Order'!I79=\"\",\"\",'1. Order'!I79)","v":""},{"$f":"IF('1. Order'!J79=\"\",\"\",'1. Order'!J79)","v":""},{"$f":"IF('1. Order'!K79=\"\",\"\",'1. Order'!K79)","v":""},{"$f":"IF('1. Order'!L79=\"\",\"\",'1. Order'!L79)","v":""},{"$f":"IF('1. Order'!M79=\"\",\"\",'1. Order'!M79)","v":""},{"$f":"IF('1. Order'!N79=\"\",\"\",'1. Order'!N79)","v":""},{"$f":"IF('1. Order'!P79=\"\",\"\",'1. Order'!P79)","v":""},{"$f":"IF('1. Order'!Q79=\"\",\"\",'1. Order'!Q79)","v":{"$error":"#N/A"}},{"$f":"IF('1. Order'!R79=\"\",\"\",'1. Order'!R79)","v":{"$error":"#N/A"}},{"$f":"IF('1. Order'!S79=\"\",\"\",'1. Order'!S79)","v":""},{"$f":"IF('1. Order'!T79=\"\",\"\",'1. Order'!T79)","v":""},{"$f":"IF('1. Order'!U79=\"\",\"\",'1. Order'!U79)","v":""},{"$f":"IF('1. Order'!X79=\"\",\"\",'1. Order'!X79)","v":""},{"$f":"IF('1. Order'!Y79=\"\",\"\",'1. Order'!Y79)","v":""},{"$f":"IF('1. Order'!Z79=\"\",\"\",'1. Order'!Z79)","v":""},{"$f":"IF('1. Order'!AC79=\"\",\"\",'1. Order'!AC79)","v":""},{"$f":"IF('1. Order'!AD79=\"\",\"\",'1. Order'!AD79)","v":""},{"$f":"IF('1. Order'!AE79=\"\",\"\",'1. Order'!AE79)","v":""},null,{"$f":"IF('1. Order'!AW79=\"\",\"\",'1. Order'!AW79)","v":""},{"$f":"IF('1. Order'!AX79=\"\",\"\",'1. Order'!AX79)","v":""},null,null,null,null,null,null,null,{"$f":"IF('1. Order'!BB79=\"\",\"\",'1. Order'!BB79)","v":""},{"$f":"IF('1. Order'!BC79=\"\",\"\",'1. Order'!BC79)","v":""},{"$f":"IF('1. Order'!BD79=\"\",\"\",'1. Order'!BD79)","v":""},{"$f":"IF('1. Order'!BE79=\"\",\"\",'1. Order'!BE79)","v":""},{"$f":"IF('1. Order'!BG79=\"\",\"\",'1. Order'!BG79)","v":""},{"$f":"IF('1. Order'!BH79=\"\",\"\",'1. Order'!BH79)","v":""},{"$f":"IF('1. Order'!BI79=\"\",\"\",'1. Order'!BI79)","v":""},{"$f":"IF('1. Order'!BJ79=\"\",\"\",'1. Order'!BJ79)","v":""},{"$f":"IF('1. Order'!BK79=\"\",\"\",'1. Order'!BK79)","v":"ZWO"}]
[{"$f":"IF('1. Order'!G80=\"\",\"\",'1. Order'!G80)","v":""},{"$f":"IF('1. Order'!H80=\"\",\"\",'1. Order'!H80)","v":""},{"$f":"IF('1. Order'!I80=\"\",\"\",'1. Order'!I80)","v":""},{"$f":"IF('1. Order'!J80=\"\",\"\",'1. Order'!J80)","v":""},{"$f":"IF('1. Order'!K80=\"\",\"\",'1. Order'!K80)","v":""},{"$f":"IF('1. Order'!L80=\"\",\"\",'1. Order'!L80)","v":""},{"$f":"IF('1. Order'!M80=\"\",\"\",'1. Order'!M80)","v":""},{"$f":"IF('1. Order'!N80=\"\",\"\",'1. Order'!N80)","v":""},{"$f":"IF('1. Order'!P80=\"\",\"\",'1. Order'!P80)","v":""},{"$f":"IF('1. Order'!Q80=\"\",\"\",'1. Order'!Q80)","v":{"$error":"#N/A"}},{"$f":"IF('1. Order'!R80=\"\",\"\",'1. Order'!R80)","v":{"$error":"#N/A"}},{"$f":"IF('1. Order'!S80=\"\",\"\",'1. Order'!S80)","v":""},{"$f":"IF('1. Order'!T80=\"\",\"\",'1. Order'!T80)","v":""},{"$f":"IF('1. Order'!U80=\"\",\"\",'1. Order'!U80)","v":""},{"$f":"IF('1. Order'!X80=\"\",\"\",'1. Order'!X80)","v":""},{"$f":"IF('1. Order'!Y80=\"\",\"\",'1. Order'!Y80)","v":""},{"$f":"IF('1. Order'!Z80=\"\",\"\",'1. Order'!Z80)","v":""},{"$f":"IF('1. Order'!AC80=\"\",\"\",'1. Order'!AC80)","v":""},{"$f":"IF('1. Order'!AD80=\"\",\"\",'1. Order'!AD80)","v":""},{"$f":"IF('1. Order'!AE80=\"\",\"\",'1. Order'!AE80)","v":""},null,{"$f":"IF('1. Order'!AW80=\"\",\"\",'1. Order'!AW80)","v":""},{"$f":"IF('1. Order'!AX80=\"\",\"\",'1. Order'!AX80)","v":""},null,null,null,null,null,null,null,{"$f":"IF('1. Order'!BB80=\"\",\"\",'1. Order'!BB80)","v":""},{"$f":"IF('1. Order'!BC80=\"\",\"\",'1. Order'!BC80)","v":""},{"$f":"IF('1. Order'!BD80=\"\",\"\",'1. Order'!BD80)","v":""},{"$f":"IF('1. Order'!BE80=\"\",\"\",'1. Order'!BE80)","v":""},{"$f":"IF('1. Order'!BG80=\"\",\"\",'1. Order'!BG80)","v":""},{"$f":"IF('1. Order'!BH80=\"\",\"\",'1. Order'!BH80)","v":""},{"$f":"IF('1. Order'!BI80=\"\",\"\",'1. Order'!BI80)","v":""},{"$f":"IF('1. Order'!BJ80=\"\",\"\",'1. Order'!BJ80)","v":""},{"$f":"IF('1. Order'!BK80=\"\",\"\",'1. Order'!BK80)","v":"ZWO"}]
[{"$f":"IF('1. Order'!G81=\"\",\"\",'1. Order'!G81)","v":""},{"$f":"IF('1. Order'!H81=\"\",\"\",'1. Order'!H81)","v":""},{"$f":"IF('1. Order'!I81=\"\",\"\",'1. Order'!I81)","v":""},{"$f":"IF('1. Order'!J81=\"\",\"\",'1. Order'!J81)","v":""},{"$f":"IF('1. Order'!K81=\"\",\"\",'1. Order'!K81)","v":""},{"$f":"IF('1. Order'!L81=\"\",\"\",'1. Order'!L81)","v":""},{"$f":"IF('1. Order'!M81=\"\",\"\",'1. Order'!M81)","v":""},{"$f":"IF('1. Order'!N81=\"\",\"\",'1. Order'!N81)","v":""},{"$f":"IF('1. Order'!P81=\"\",\"\",'1. Order'!P81)","v":""},{"$f":"IF('1. Order'!Q81=\"\",\"\",'1. Order'!Q81)","v":{"$error":"#N/A"}},{"$f":"IF('1. Order'!R81=\"\",\"\",'1. Order'!R81)","v":{"$error":"#N/A"}},{"$f":"IF('1. Order'!S81=\"\",\"\",'1. Order'!S81)","v":""},{"$f":"IF('1. Order'!T81=\"\",\"\",'1. Order'!T81)","v":""},{"$f":"IF('1. Order'!U81=\"\",\"\",'1. Order'!U81)","v":""},{"$f":"IF('1. Order'!X81=\"\",\"\",'1. Order'!X81)","v":""},{"$f":"IF('1. Order'!Y81=\"\",\"\",'1. Order'!Y81)","v":""},{"$f":"IF('1. Order'!Z81=\"\",\"\",'1. Order'!Z81)","v":""},{"$f":"IF('1. Order'!AC81=\"\",\"\",'1. Order'!AC81)","v":""},{"$f":"IF('1. Order'!AD81=\"\",\"\",'1. Order'!AD81)","v":""},{"$f":"IF('1. Order'!AE81=\"\",\"\",'1. Order'!AE81)","v":""},null,{"$f":"IF('1. Order'!AW81=\"\",\"\",'1. Order'!AW81)","v":""},{"$f":"IF('1. Order'!AX81=\"\",\"\",'1. Order'!AX81)","v":""},null,null,null,null,null,null,null,{"$f":"IF('1. Order'!BB81=\"\",\"\",'1. Order'!BB81)","v":""},{"$f":"IF('1. Order'!BC81=\"\",\"\",'1. Order'!BC81)","v":""},{"$f":"IF('1. Order'!BD81=\"\",\"\",'1. Order'!BD81)","v":""},{"$f":"IF('1. Order'!BE81=\"\",\"\",'1. Order'!BE81)","v":""},{"$f":"IF('1. Order'!BG81=\"\",\"\",'1. Order'!BG81)","v":""},{"$f":"IF('1. Order'!BH81=\"\",\"\",'1. Order'!BH81)","v":""},{"$f":"IF('1. Order'!BI81=\"\",\"\",'1. Order'!BI81)","v":""},{"$f":"IF('1. Order'!BJ81=\"\",\"\",'1. Order'!BJ81)","v":""},{"$f":"IF('1. Order'!BK81=\"\",\"\",'1. Order'!BK81)","v":"ZWO"}]
[{"$f":"IF('1. Order'!G82=\"\",\"\",'1. Order'!G82)","v":""},{"$f":"IF('1. Order'!H82=\"\",\"\",'1. Order'!H82)","v":""},{"$f":"IF('1. Order'!I82=\"\",\"\",'1. Order'!I82)","v":""},{"$f":"IF('1. Order'!J82=\"\",\"\",'1. Order'!J82)","v":""},{"$f":"IF('1. Order'!K82=\"\",\"\",'1. Order'!K82)","v":""},{"$f":"IF('1. Order'!L82=\"\",\"\",'1. Order'!L82)","v":""},{"$f":"IF('1. Order'!M82=\"\",\"\",'1. Order'!M82)","v":""},{"$f":"IF('1. Order'!N82=\"\",\"\",'1. Order'!N82)","v":""},{"$f":"IF('1. Order'!P82=\"\",\"\",'1. Order'!P82)","v":""},{"$f":"IF('1. Order'!Q82=\"\",\"\",'1. Order'!Q82)","v":{"$error":"#N/A"}},{"$f":"IF('1. Order'!R82=\"\",\"\",'1. Order'!R82)","v":{"$error":"#N/A"}},{"$f":"IF('1. Order'!S82=\"\",\"\",'1. Order'!S82)","v":""},{"$f":"IF('1. Order'!T82=\"\",\"\",'1. Order'!T82)","v":""},{"$f":"IF('1. Order'!U82=\"\",\"\",'1. Order'!U82)","v":""},{"$f":"IF('1. Order'!X82=\"\",\"\",'1. Order'!X82)","v":""},{"$f":"IF('1. Order'!Y82=\"\",\"\",'1. Order'!Y82)","v":""},{"$f":"IF('1. Order'!Z82=\"\",\"\",'1. Order'!Z82)","v":""},{"$f":"IF('1. Order'!AC82=\"\",\"\",'1. Order'!AC82)","v":""},{"$f":"IF('1. Order'!AD82=\"\",\"\",'1. Order'!AD82)","v":""},{"$f":"IF('1. Order'!AE82=\"\",\"\",'1. Order'!AE82)","v":""},null,{"$f":"IF('1. Order'!AW82=\"\",\"\",'1. Order'!AW82)","v":""},{"$f":"IF('1. Order'!AX82=\"\",\"\",'1. Order'!AX82)","v":""},null,null,null,null,null,null,null,{"$f":"IF('1. Order'!BB82=\"\",\"\",'1. Order'!BB82)","v":""},{"$f":"IF('1. Order'!BC82=\"\",\"\",'1. Order'!BC82)","v":""},{"$f":"IF('1. Order'!BD82=\"\",\"\",'1. Order'!BD82)","v":""},{"$f":"IF('1. Order'!BE82=\"\",\"\",'1. Order'!BE82)","v":""},{"$f":"IF('1. Order'!BG82=\"\",\"\",'1. Order'!BG82)","v":""},{"$f":"IF('1. Order'!BH82=\"\",\"\",'1. Order'!BH82)","v":""},{"$f":"IF('1. Order'!BI82=\"\",\"\",'1. Order'!BI82)","v":""},{"$f":"IF('1. Order'!BJ82=\"\",\"\",'1. Order'!BJ82)","v":""},{"$f":"IF('1. Order'!BK82=\"\",\"\",'1. Order'!BK82)","v":"ZWO"}]
[{"$f":"IF('1. Order'!G83=\"\",\"\",'1. Order'!G83)","v":""},{"$f":"IF('1. Order'!H83=\"\",\"\",'1. Order'!H83)","v":""},{"$f":"IF('1. Order'!I83=\"\",\"\",'1. Order'!I83)","v":""},{"$f":"IF('1. Order'!J83=\"\",\"\",'1. Order'!J83)","v":""},{"$f":"IF('1. Order'!K83=\"\",\"\",'1. Order'!K83)","v":""},{"$f":"IF('1. Order'!L83=\"\",\"\",'1. Order'!L83)","v":""},{"$f":"IF('1. Order'!M83=\"\",\"\",'1. Order'!M83)","v":""},{"$f":"IF('1. Order'!N83=\"\",\"\",'1. Order'!N83)","v":""},{"$f":"IF('1. Order'!P83=\"\",\"\",'1. Order'!P83)","v":""},{"$f":"IF('1. Order'!Q83=\"\",\"\",'1. Order'!Q83)","v":{"$error":"#N/A"}},{"$f":"IF('1. Order'!R83=\"\",\"\",'1. Order'!R83)","v":{"$error":"#N/A"}},{"$f":"IF('1. Order'!S83=\"\",\"\",'1. Order'!S83)","v":""},{"$f":"IF('1. Order'!T83=\"\",\"\",'1. Order'!T83)","v":""},{"$f":"IF('1. Order'!U83=\"\",\"\",'1. Order'!U83)","v":""},{"$f":"IF('1. Order'!X83=\"\",\"\",'1. Order'!X83)","v":""},{"$f":"IF('1. Order'!Y83=\"\",\"\",'1. Order'!Y83)","v":""},{"$f":"IF('1. Order'!Z83=\"\",\"\",'1. Order'!Z83)","v":""},{"$f":"IF('1. Order'!AC83=\"\",\"\",'1. Order'!AC83)","v":""},{"$f":"IF('1. Order'!AD83=\"\",\"\",'1. Order'!AD83)","v":""},{"$f":"IF('1. Order'!AE83=\"\",\"\",'1. Order'!AE83)","v":""},null,{"$f":"IF('1. Order'!AW83=\"\",\"\",'1. Order'!AW83)","v":""},{"$f":"IF('1. Order'!AX83=\"\",\"\",'1. Order'!AX83)","v":""},null,null,null,null,null,null,null,{"$f":"IF('1. Order'!BB83=\"\",\"\",'1. Order'!BB83)","v":""},{"$f":"IF('1. Order'!BC83=\"\",\"\",'1. Order'!BC83)","v":""},{"$f":"IF('1. Order'!BD83=\"\",\"\",'1. Order'!BD83)","v":""},{"$f":"IF('1. Order'!BE83=\"\",\"\",'1. Order'!BE83)","v":""},{"$f":"IF('1. Order'!BG83=\"\",\"\",'1. Order'!BG83)","v":""},{"$f":"IF('1. Order'!BH83=\"\",\"\",'1. Order'!BH83)","v":""},{"$f":"IF('1. Order'!BI83=\"\",\"\",'1. Order'!BI83)","v":""},{"$f":"IF('1. Order'!BJ83=\"\",\"\",'1. Order'!BJ83)","v":""},{"$f":"IF('1. Order'!BK83=\"\",\"\",'1. Order'!BK83)","v":"ZWO"}]
[{"$f":"IF('1. Order'!G84=\"\",\"\",'1. Order'!G84)","v":""},{"$f":"IF('1. Order'!H84=\"\",\"\",'1. Order'!H84)","v":""},{"$f":"IF('1. Order'!I84=\"\",\"\",'1. Order'!I84)","v":""},{"$f":"IF('1. Order'!J84=\"\",\"\",'1. Order'!J84)","v":""},{"$f":"IF('1. Order'!K84=\"\",\"\",'1. Order'!K84)","v":""},{"$f":"IF('1. Order'!L84=\"\",\"\",'1. Order'!L84)","v":""},{"$f":"IF('1. Order'!M84=\"\",\"\",'1. Order'!M84)","v":""},{"$f":"IF('1. Order'!N84=\"\",\"\",'1. Order'!N84)","v":""},{"$f":"IF('1. Order'!P84=\"\",\"\",'1. Order'!P84)","v":""},{"$f":"IF('1. Order'!Q84=\"\",\"\",'1. Order'!Q84)","v":{"$error":"#N/A"}},{"$f":"IF('1. Order'!R84=\"\",\"\",'1. Order'!R84)","v":{"$error":"#N/A"}},{"$f":"IF('1. Order'!S84=\"\",\"\",'1. Order'!S84)","v":""},{"$f":"IF('1. Order'!T84=\"\",\"\",'1. Order'!T84)","v":""},{"$f":"IF('1. Order'!U84=\"\",\"\",'1. Order'!U84)","v":""},{"$f":"IF('1. Order'!X84=\"\",\"\",'1. Order'!X84)","v":""},{"$f":"IF('1. Order'!Y84=\"\",\"\",'1. Order'!Y84)","v":""},{"$f":"IF('1. Order'!Z84=\"\",\"\",'1. Order'!Z84)","v":""},{"$f":"IF('1. Order'!AC84=\"\",\"\",'1. Order'!AC84)","v":""},{"$f":"IF('1. Order'!AD84=\"\",\"\",'1. Order'!AD84)","v":""},{"$f":"IF('1. Order'!AE84=\"\",\"\",'1. Order'!AE84)","v":""},null,{"$f":"IF('1. Order'!AW84=\"\",\"\",'1. Order'!AW84)","v":""},{"$f":"IF('1. Order'!AX84=\"\",\"\",'1. Order'!AX84)","v":""},null,null,null,null,null,null,null,{"$f":"IF('1. Order'!BB84=\"\",\"\",'1. Order'!BB84)","v":""},{"$f":"IF('1. Order'!BC84=\"\",\"\",'1. Order'!BC84)","v":""},{"$f":"IF('1. Order'!BD84=\"\",\"\",'1. Order'!BD84)","v":""},{"$f":"IF('1. Order'!BE84=\"\",\"\",'1. Order'!BE84)","v":""},{"$f":"IF('1. Order'!BG84=\"\",\"\",'1. Order'!BG84)","v":""},{"$f":"IF('1. Order'!BH84=\"\",\"\",'1. Order'!BH84)","v":""},{"$f":"IF('1. Order'!BI84=\"\",\"\",'1. Order'!BI84)","v":""},{"$f":"IF('1. Order'!BJ84=\"\",\"\",'1. Order'!BJ84)","v":""},{"$f":"IF('1. Order'!BK84=\"\",\"\",'1. Order'!BK84)","v":"ZWO"}]
[{"$f":"IF('1. Order'!G85=\"\",\"\",'1. Order'!G85)","v":""},{"$f":"IF('1. Order'!H85=\"\",\"\",'1. Order'!H85)","v":""},{"$f":"IF('1. Order'!I85=\"\",\"\",'1. Order'!I85)","v":""},{"$f":"IF('1. Order'!J85=\"\",\"\",'1. Order'!J85)","v":""},{"$f":"IF('1. Order'!K85=\"\",\"\",'1. Order'!K85)","v":""},{"$f":"IF('1. Order'!L85=\"\",\"\",'1. Order'!L85)","v":""},{"$f":"IF('1. Order'!M85=\"\",\"\",'1. Order'!M85)","v":""},{"$f":"IF('1. Order'!N85=\"\",\"\",'1. Order'!N85)","v":""},{"$f":"IF('1. Order'!P85=\"\",\"\",'1. Order'!P85)","v":""},{"$f":"IF('1. Order'!Q85=\"\",\"\",'1. Order'!Q85)","v":{"$error":"#N/A"}},{"$f":"IF('1. Order'!R85=\"\",\"\",'1. Order'!R85)","v":{"$error":"#N/A"}},{"$f":"IF('1. Order'!S85=\"\",\"\",'1. Order'!S85)","v":""},{"$f":"IF('1. Order'!T85=\"\",\"\",'1. Order'!T85)","v":""},{"$f":"IF('1. Order'!U85=\"\",\"\",'1. Order'!U85)","v":""},{"$f":"IF('1. Order'!X85=\"\",\"\",'1. Order'!X85)","v":""},{"$f":"IF('1. Order'!Y85=\"\",\"\",'1. Order'!Y85)","v":""},{"$f":"IF('1. Order'!Z85=\"\",\"\",'1. Order'!Z85)","v":""},{"$f":"IF('1. Order'!AC85=\"\",\"\",'1. Order'!AC85)","v":""},{"$f":"IF('1. Order'!AD85=\"\",\"\",'1. Order'!AD85)","v":""},{"$f":"IF('1. Order'!AE85=\"\",\"\",'1. Order'!AE85)","v":""},null,{"$f":"IF('1. Order'!AW85=\"\",\"\",'1. Order'!AW85)","v":""},{"$f":"IF('1. Order'!AX85=\"\",\"\",'1. Order'!AX85)","v":""},null,null,null,null,null,null,null,{"$f":"IF('1. Order'!BB85=\"\",\"\",'1. Order'!BB85)","v":""},{"$f":"IF('1. Order'!BC85=\"\",\"\",'1. Order'!BC85)","v":""},{"$f":"IF('1. Order'!BD85=\"\",\"\",'1. Order'!BD85)","v":""},{"$f":"IF('1. Order'!BE85=\"\",\"\",'1. Order'!BE85)","v":""},{"$f":"IF('1. Order'!BG85=\"\",\"\",'1. Order'!BG85)","v":""},{"$f":"IF('1. Order'!BH85=\"\",\"\",'1. Order'!BH85)","v":""},{"$f":"IF('1. Order'!BI85=\"\",\"\",'1. Order'!BI85)","v":""},{"$f":"IF('1. Order'!BJ85=\"\",\"\",'1. Order'!BJ85)","v":""},{"$f":"IF('1. Order'!BK85=\"\",\"\",'1. Order'!BK85)","v":"ZWO"}]
[{"$f":"IF('1. Order'!G86=\"\",\"\",'1. Order'!G86)","v":""},{"$f":"IF('1. Order'!H86=\"\",\"\",'1. Order'!H86)","v":""},{"$f":"IF('1. Order'!I86=\"\",\"\",'1. Order'!I86)","v":""},{"$f":"IF('1. Order'!J86=\"\",\"\",'1. Order'!J86)","v":""},{"$f":"IF('1. Order'!K86=\"\",\"\",'1. Order'!K86)","v":""},{"$f":"IF('1. Order'!L86=\"\",\"\",'1. Order'!L86)","v":""},{"$f":"IF('1. Order'!M86=\"\",\"\",'1. Order'!M86)","v":""},{"$f":"IF('1. Order'!N86=\"\",\"\",'1. Order'!N86)","v":""},{"$f":"IF('1. Order'!P86=\"\",\"\",'1. Order'!P86)","v":""},{"$f":"IF('1. Order'!Q86=\"\",\"\",'1. Order'!Q86)","v":{"$error":"#N/A"}},{"$f":"IF('1. Order'!R86=\"\",\"\",'1. Order'!R86)","v":{"$error":"#N/A"}},{"$f":"IF('1. Order'!S86=\"\",\"\",'1. Order'!S86)","v":""},{"$f":"IF('1. Order'!T86=\"\",\"\",'1. Order'!T86)","v":""},{"$f":"IF('1. Order'!U86=\"\",\"\",'1. Order'!U86)","v":""},{"$f":"IF('1. Order'!X86=\"\",\"\",'1. Order'!X86)","v":""},{"$f":"IF('1. Order'!Y86=\"\",\"\",'1. Order'!Y86)","v":""},{"$f":"IF('1. Order'!Z86=\"\",\"\",'1. Order'!Z86)","v":""},{"$f":"IF('1. Order'!AC86=\"\",\"\",'1. Order'!AC86)","v":""},{"$f":"IF('1. Order'!AD86=\"\",\"\",'1. Order'!AD86)","v":""},{"$f":"IF('1. Order'!AE86=\"\",\"\",'1. Order'!AE86)","v":""},null,{"$f":"IF('1. Order'!AW86=\"\",\"\",'1. Order'!AW86)","v":""},{"$f":"IF('1. Order'!AX86=\"\",\"\",'1. Order'!AX86)","v":""},null,null,null,null,null,null,null,{"$f":"IF('1. Order'!BB86=\"\",\"\",'1. Order'!BB86)","v":""},{"$f":"IF('1. Order'!BC86=\"\",\"\",'1. Order'!BC86)","v":""},{"$f":"IF('1. Order'!BD86=\"\",\"\",'1. Order'!BD86)","v":""},{"$f":"IF('1. Order'!BE86=\"\",\"\",'1. Order'!BE86)","v":""},{"$f":"IF('1. Order'!BG86=\"\",\"\",'1. Order'!BG86)","v":""},{"$f":"IF('1. Order'!BH86=\"\",\"\",'1. Order'!BH86)","v":""},{"$f":"IF('1. Order'!BI86=\"\",\"\",'1. Order'!BI86)","v":""},{"$f":"IF('1. Order'!BJ86=\"\",\"\",'1. Order'!BJ86)","v":""},{"$f":"IF('1. Order'!BK86=\"\",\"\",'1. Order'!BK86)","v":"ZWO"}]
[{"$f":"IF('1. Order'!G87=\"\",\"\",'1. Order'!G87)","v":""},{"$f":"IF('1. Order'!H87=\"\",\"\",'1. Order'!H87)","v":""},{"$f":"IF('1. Order'!I87=\"\",\"\",'1. Order'!I87)","v":""},{"$f":"IF('1. Order'!J87=\"\",\"\",'1. Order'!J87)","v":""},{"$f":"IF('1. Order'!K87=\"\",\"\",'1. Order'!K87)","v":""},{"$f":"IF('1. Order'!L87=\"\",\"\",'1. Order'!L87)","v":""},{"$f":"IF('1. Order'!M87=\"\",\"\",'1. Order'!M87)","v":""},{"$f":"IF('1. Order'!N87=\"\",\"\",'1. Order'!N87)","v":""},{"$f":"IF('1. Order'!P87=\"\",\"\",'1. Order'!P87)","v":""},{"$f":"IF('1. Order'!Q87=\"\",\"\",'1. Order'!Q87)","v":{"$error":"#N/A"}},{"$f":"IF('1. Order'!R87=\"\",\"\",'1. Order'!R87)","v":{"$error":"#N/A"}},{"$f":"IF('1. Order'!S87=\"\",\"\",'1. Order'!S87)","v":""},{"$f":"IF('1. Order'!T87=\"\",\"\",'1. Order'!T87)","v":""},{"$f":"IF('1. Order'!U87=\"\",\"\",'1. Order'!U87)","v":""},{"$f":"IF('1. Order'!X87=\"\",\"\",'1. Order'!X87)","v":""},{"$f":"IF('1. Order'!Y87=\"\",\"\",'1. Order'!Y87)","v":""},{"$f":"IF('1. Order'!Z87=\"\",\"\",'1. Order'!Z87)","v":""},{"$f":"IF('1. Order'!AC87=\"\",\"\",'1. Order'!AC87)","v":""},{"$f":"IF('1. Order'!AD87=\"\",\"\",'1. Order'!AD87)","v":""},{"$f":"IF('1. Order'!AE87=\"\",\"\",'1. Order'!AE87)","v":""},null,{"$f":"IF('1. Order'!AW87=\"\",\"\",'1. Order'!AW87)","v":""},{"$f":"IF('1. Order'!AX87=\"\",\"\",'1. Order'!AX87)","v":""},null,null,null,null,null,null,null,{"$f":"IF('1. Order'!BB87=\"\",\"\",'1. Order'!BB87)","v":""},{"$f":"IF('1. Order'!BC87=\"\",\"\",'1. Order'!BC87)","v":""},{"$f":"IF('1. Order'!BD87=\"\",\"\",'1. Order'!BD87)","v":""},{"$f":"IF('1. Order'!BE87=\"\",\"\",'1. Order'!BE87)","v":""},{"$f":"IF('1. Order'!BG87=\"\",\"\",'1. Order'!BG87)","v":""},{"$f":"IF('1. Order'!BH87=\"\",\"\",'1. Order'!BH87)","v":""},{"$f":"IF('1. Order'!BI87=\"\",\"\",'1. Order'!BI87)","v":""},{"$f":"IF('1. Order'!BJ87=\"\",\"\",'1. Order'!BJ87)","v":""},{"$f":"IF('1. Order'!BK87=\"\",\"\",'1. Order'!BK87)","v":"ZWO"}]
[{"$f":"IF('1. Order'!G88=\"\",\"\",'1. Order'!G88)","v":""},{"$f":"IF('1. Order'!H88=\"\",\"\",'1. Order'!H88)","v":""},{"$f":"IF('1. Order'!I88=\"\",\"\",'1. Order'!I88)","v":""},{"$f":"IF('1. Order'!J88=\"\",\"\",'1. Order'!J88)","v":""},{"$f":"IF('1. Order'!K88=\"\",\"\",'1. Order'!K88)","v":""},{"$f":"IF('1. Order'!L88=\"\",\"\",'1. Order'!L88)","v":""},{"$f":"IF('1. Order'!M88=\"\",\"\",'1. Order'!M88)","v":""},{"$f":"IF('1. Order'!N88=\"\",\"\",'1. Order'!N88)","v":""},{"$f":"IF('1. Order'!P88=\"\",\"\",'1. Order'!P88)","v":""},{"$f":"IF('1. Order'!Q88=\"\",\"\",'1. Order'!Q88)","v":{"$error":"#N/A"}},{"$f":"IF('1. Order'!R88=\"\",\"\",'1. Order'!R88)","v":{"$error":"#N/A"}},{"$f":"IF('1. Order'!S88=\"\",\"\",'1. Order'!S88)","v":""},{"$f":"IF('1. Order'!T88=\"\",\"\",'1. Order'!T88)","v":""},{"$f":"IF('1. Order'!U88=\"\",\"\",'1. Order'!U88)","v":""},{"$f":"IF('1. Order'!X88=\"\",\"\",'1. Order'!X88)","v":""},{"$f":"IF('1. Order'!Y88=\"\",\"\",'1. Order'!Y88)","v":""},{"$f":"IF('1. Order'!Z88=\"\",\"\",'1. Order'!Z88)","v":""},{"$f":"IF('1. Order'!AC88=\"\",\"\",'1. Order'!AC88)","v":""},{"$f":"IF('1. Order'!AD88=\"\",\"\",'1. Order'!AD88)","v":""},{"$f":"IF('1. Order'!AE88=\"\",\"\",'1. Order'!AE88)","v":""},null,{"$f":"IF('1. Order'!AW88=\"\",\"\",'1. Order'!AW88)","v":""},{"$f":"IF('1. Order'!AX88=\"\",\"\",'1. Order'!AX88)","v":""},null,null,null,null,null,null,null,{"$f":"IF('1. Order'!BB88=\"\",\"\",'1. Order'!BB88)","v":""},{"$f":"IF('1. Order'!BC88=\"\",\"\",'1. Order'!BC88)","v":""},{"$f":"IF('1. Order'!BD88=\"\",\"\",'1. Order'!BD88)","v":""},{"$f":"IF('1. Order'!BE88=\"\",\"\",'1. Order'!BE88)","v":""},{"$f":"IF('1. Order'!BG88=\"\",\"\",'1. Order'!BG88)","v":""},{"$f":"IF('1. Order'!BH88=\"\",\"\",'1. Order'!BH88)","v":""},{"$f":"IF('1. Order'!BI88=\"\",\"\",'1. Order'!BI88)","v":""},{"$f":"IF('1. Order'!BJ88=\"\",\"\",'1. Order'!BJ88)","v":""},{"$f":"IF('1. Order'!BK88=\"\",\"\",'1. Order'!BK88)","v":"ZWO"}]
[{"$f":"IF('1. Order'!G89=\"\",\"\",'1. Order'!G89)","v":""},{"$f":"IF('1. Order'!H89=\"\",\"\",'1. Order'!H89)","v":""},{"$f":"IF('1. Order'!I89=\"\",\"\",'1. Order'!I89)","v":""},{"$f":"IF('1. Order'!J89=\"\",\"\",'1. Order'!J89)","v":""},{"$f":"IF('1. Order'!K89=\"\",\"\",'1. Order'!K89)","v":""},{"$f":"IF('1. Order'!L89=\"\",\"\",'1. Order'!L89)","v":""},{"$f":"IF('1. Order'!M89=\"\",\"\",'1. Order'!M89)","v":""},{"$f":"IF('1. Order'!N89=\"\",\"\",'1. Order'!N89)","v":""},{"$f":"IF('1. Order'!P89=\"\",\"\",'1. Order'!P89)","v":""},{"$f":"IF('1. Order'!Q89=\"\",\"\",'1. Order'!Q89)","v":{"$error":"#N/A"}},{"$f":"IF('1. Order'!R89=\"\",\"\",'1. Order'!R89)","v":{"$error":"#N/A"}},{"$f":"IF('1. Order'!S89=\"\",\"\",'1. Order'!S89)","v":""},{"$f":"IF('1. Order'!T89=\"\",\"\",'1. Order'!T89)","v":""},{"$f":"IF('1. Order'!U89=\"\",\"\",'1. Order'!U89)","v":""},{"$f":"IF('1. Order'!X89=\"\",\"\",'1. Order'!X89)","v":""},{"$f":"IF('1. Order'!Y89=\"\",\"\",'1. Order'!Y89)","v":""},{"$f":"IF('1. Order'!Z89=\"\",\"\",'1. Order'!Z89)","v":""},{"$f":"IF('1. Order'!AC89=\"\",\"\",'1. Order'!AC89)","v":""},{"$f":"IF('1. Order'!AD89=\"\",\"\",'1. Order'!AD89)","v":""},{"$f":"IF('1. Order'!AE89=\"\",\"\",'1. Order'!AE89)","v":""},null,{"$f":"IF('1. Order'!AW89=\"\",\"\",'1. Order'!AW89)","v":""},{"$f":"IF('1. Order'!AX89=\"\",\"\",'1. Order'!AX89)","v":""},null,null,null,null,null,null,null,{"$f":"IF('1. Order'!BB89=\"\",\"\",'1. Order'!BB89)","v":""},{"$f":"IF('1. Order'!BC89=\"\",\"\",'1. Order'!BC89)","v":""},{"$f":"IF('1. Order'!BD89=\"\",\"\",'1. Order'!BD89)","v":""},{"$f":"IF('1. Order'!BE89=\"\",\"\",'1. Order'!BE89)","v":""},{"$f":"IF('1. Order'!BG89=\"\",\"\",'1. Order'!BG89)","v":""},{"$f":"IF('1. Order'!BH89=\"\",\"\",'1. Order'!BH89)","v":""},{"$f":"IF('1. Order'!BI89=\"\",\"\",'1. Order'!BI89)","v":""},{"$f":"IF('1. Order'!BJ89=\"\",\"\",'1. Order'!BJ89)","v":""},{"$f":"IF('1. Order'!BK89=\"\",\"\",'1. Order'!BK89)","v":"ZWO"}]
[{"$f":"IF('1. Order'!G90=\"\",\"\",'1. Order'!G90)","v":""},{"$f":"IF('1. Order'!H90=\"\",\"\",'1. Order'!H90)","v":""},{"$f":"IF('1. Order'!I90=\"\",\"\",'1. Order'!I90)","v":""},{"$f":"IF('1. Order'!J90=\"\",\"\",'1. Order'!J90)","v":""},{"$f":"IF('1. Order'!K90=\"\",\"\",'1. Order'!K90)","v":""},{"$f":"IF('1. Order'!L90=\"\",\"\",'1. Order'!L90)","v":""},{"$f":"IF('1. Order'!M90=\"\",\"\",'1. Order'!M90)","v":""},{"$f":"IF('1. Order'!N90=\"\",\"\",'1. Order'!N90)","v":""},{"$f":"IF('1. Order'!P90=\"\",\"\",'1. Order'!P90)","v":""},{"$f":"IF('1. Order'!Q90=\"\",\"\",'1. Order'!Q90)","v":{"$error":"#N/A"}},{"$f":"IF('1. Order'!R90=\"\",\"\",'1. Order'!R90)","v":{"$error":"#N/A"}},{"$f":"IF('1. Order'!S90=\"\",\"\",'1. Order'!S90)","v":""},{"$f":"IF('1. Order'!T90=\"\",\"\",'1. Order'!T90)","v":""},{"$f":"IF('1. Order'!U90=\"\",\"\",'1. Order'!U90)","v":""},{"$f":"IF('1. Order'!X90=\"\",\"\",'1. Order'!X90)","v":""},{"$f":"IF('1. Order'!Y90=\"\",\"\",'1. Order'!Y90)","v":""},{"$f":"IF('1. Order'!Z90=\"\",\"\",'1. Order'!Z90)","v":""},{"$f":"IF('1. Order'!AC90=\"\",\"\",'1. Order'!AC90)","v":""},{"$f":"IF('1. Order'!AD90=\"\",\"\",'1. Order'!AD90)","v":""},{"$f":"IF('1. Order'!AE90=\"\",\"\",'1. Order'!AE90)","v":""},null,{"$f":"IF('1. Order'!AW90=\"\",\"\",'1. Order'!AW90)","v":""},{"$f":"IF('1. Order'!AX90=\"\",\"\",'1. Order'!AX90)","v":""},null,null,null,null,null,null,null,{"$f":"IF('1. Order'!BB90=\"\",\"\",'1. Order'!BB90)","v":""},{"$f":"IF('1. Order'!BC90=\"\",\"\",'1. Order'!BC90)","v":""},{"$f":"IF('1. Order'!BD90=\"\",\"\",'1. Order'!BD90)","v":""},{"$f":"IF('1. Order'!BE90=\"\",\"\",'1. Order'!BE90)","v":""},{"$f":"IF('1. Order'!BG90=\"\",\"\",'1. Order'!BG90)","v":""},{"$f":"IF('1. Order'!BH90=\"\",\"\",'1. Order'!BH90)","v":""},{"$f":"IF('1. Order'!BI90=\"\",\"\",'1. Order'!BI90)","v":""},{"$f":"IF('1. Order'!BJ90=\"\",\"\",'1. Order'!BJ90)","v":""},{"$f":"IF('1. Order'!BK90=\"\",\"\",'1. Order'!BK90)","v":"ZWO"}]
[{"$f":"IF('1. Order'!G91=\"\",\"\",'1. Order'!G91)","v":""},{"$f":"IF('1. Order'!H91=\"\",\"\",'1. Order'!H91)","v":""},{"$f":"IF('1. Order'!I91=\"\",\"\",'1. Order'!I91)","v":""},{"$f":"IF('1. Order'!J91=\"\",\"\",'1. Order'!J91)","v":""},{"$f":"IF('1. Order'!K91=\"\",\"\",'1. Order'!K91)","v":""},{"$f":"IF('1. Order'!L91=\"\",\"\",'1. Order'!L91)","v":""},{"$f":"IF('1. Order'!M91=\"\",\"\",'1. Order'!M91)","v":""},{"$f":"IF('1. Order'!N91=\"\",\"\",'1. Order'!N91)","v":""},{"$f":"IF('1. Order'!P91=\"\",\"\",'1. Order'!P91)","v":""},{"$f":"IF('1. Order'!Q91=\"\",\"\",'1. Order'!Q91)","v":{"$error":"#N/A"}},{"$f":"IF('1. Order'!R91=\"\",\"\",'1. Order'!R91)","v":{"$error":"#N/A"}},{"$f":"IF('1. Order'!S91=\"\",\"\",'1. Order'!S91)","v":""},{"$f":"IF('1. Order'!T91=\"\",\"\",'1. Order'!T91)","v":""},{"$f":"IF('1. Order'!U91=\"\",\"\",'1. Order'!U91)","v":""},{"$f":"IF('1. Order'!X91=\"\",\"\",'1. Order'!X91)","v":""},{"$f":"IF('1. Order'!Y91=\"\",\"\",'1. Order'!Y91)","v":""},{"$f":"IF('1. Order'!Z91=\"\",\"\",'1. Order'!Z91)","v":""},{"$f":"IF('1. Order'!AC91=\"\",\"\",'1. Order'!AC91)","v":""},{"$f":"IF('1. Order'!AD91=\"\",\"\",'1. Order'!AD91)","v":""},{"$f":"IF('1. Order'!AE91=\"\",\"\",'1. Order'!AE91)","v":""},null,{"$f":"IF('1. Order'!AW91=\"\",\"\",'1. Order'!AW91)","v":""},{"$f":"IF('1. Order'!AX91=\"\",\"\",'1. Order'!AX91)","v":""},null,null,null,null,null,null,null,{"$f":"IF('1. Order'!BB91=\"\",\"\",'1. Order'!BB91)","v":""},{"$f":"IF('1. Order'!BC91=\"\",\"\",'1. Order'!BC91)","v":""},{"$f":"IF('1. Order'!BD91=\"\",\"\",'1. Order'!BD91)","v":""},{"$f":"IF('1. Order'!BE91=\"\",\"\",'1. Order'!BE91)","v":""},{"$f":"IF('1. Order'!BG91=\"\",\"\",'1. Order'!BG91)","v":""},{"$f":"IF('1. Order'!BH91=\"\",\"\",'1. Order'!BH91)","v":""},{"$f":"IF('1. Order'!BI91=\"\",\"\",'1. Order'!BI91)","v":""},{"$f":"IF('1. Order'!BJ91=\"\",\"\",'1. Order'!BJ91)","v":""},{"$f":"IF('1. Order'!BK91=\"\",\"\",'1. Order'!BK91)","v":"ZWO"}]
[{"$f":"IF('1. Order'!G92=\"\",\"\",'1. Order'!G92)","v":""},{"$f":"IF('1. Order'!H92=\"\",\"\",'1. Order'!H92)","v":""},{"$f":"IF('1. Order'!I92=\"\",\"\",'1. Order'!I92)","v":""},{"$f":"IF('1. Order'!J92=\"\",\"\",'1. Order'!J92)","v":""},{"$f":"IF('1. Order'!K92=\"\",\"\",'1. Order'!K92)","v":""},{"$f":"IF('1. Order'!L92=\"\",\"\",'1. Order'!L92)","v":""},{"$f":"IF('1. Order'!M92=\"\",\"\",'1. Order'!M92)","v":""},{"$f":"IF('1. Order'!N92=\"\",\"\",'1. Order'!N92)","v":""},{"$f":"IF('1. Order'!P92=\"\",\"\",'1. Order'!P92)","v":""},{"$f":"IF('1. Order'!Q92=\"\",\"\",'1. Order'!Q92)","v":{"$error":"#N/A"}},{"$f":"IF('1. Order'!R92=\"\",\"\",'1. Order'!R92)","v":{"$error":"#N/A"}},{"$f":"IF('1. Order'!S92=\"\",\"\",'1. Order'!S92)","v":""},{"$f":"IF('1. Order'!T92=\"\",\"\",'1. Order'!T92)","v":""},{"$f":"IF('1. Order'!U92=\"\",\"\",'1. Order'!U92)","v":""},{"$f":"IF('1. Order'!X92=\"\",\"\",'1. Order'!X92)","v":""},{"$f":"IF('1. Order'!Y92=\"\",\"\",'1. Order'!Y92)","v":""},{"$f":"IF('1. Order'!Z92=\"\",\"\",'1. Order'!Z92)","v":""},{"$f":"IF('1. Order'!AC92=\"\",\"\",'1. Order'!AC92)","v":""},{"$f":"IF('1. Order'!AD92=\"\",\"\",'1. Order'!AD92)","v":""},{"$f":"IF('1. Order'!AE92=\"\",\"\",'1. Order'!AE92)","v":""},null,{"$f":"IF('1. Order'!AW92=\"\",\"\",'1. Order'!AW92)","v":""},{"$f":"IF('1. Order'!AX92=\"\",\"\",'1. Order'!AX92)","v":""},null,null,null,null,null,null,null,{"$f":"IF('1. Order'!BB92=\"\",\"\",'1. Order'!BB92)","v":""},{"$f":"IF('1. Order'!BC92=\"\",\"\",'1. Order'!BC92)","v":""},{"$f":"IF('1. Order'!BD92=\"\",\"\",'1. Order'!BD92)","v":""},{"$f":"IF('1. Order'!BE92=\"\",\"\",'1. Order'!BE92)","v":""},{"$f":"IF('1. Order'!BG92=\"\",\"\",'1. Order'!BG92)","v":""},{"$f":"IF('1. Order'!BH92=\"\",\"\",'1. Order'!BH92)","v":""},{"$f":"IF('1. Order'!BI92=\"\",\"\",'1. Order'!BI92)","v":""},{"$f":"IF('1. Order'!BJ92=\"\",\"\",'1. Order'!BJ92)","v":""},{"$f":"IF('1. Order'!BK92=\"\",\"\",'1. Order'!BK92)","v":"ZWO"}]
[{"$f":"IF('1. Order'!G93=\"\",\"\",'1. Order'!G93)","v":""},{"$f":"IF('1. Order'!H93=\"\",\"\",'1. Order'!H93)","v":""},{"$f":"IF('1. Order'!I93=\"\",\"\",'1. Order'!I93)","v":""},{"$f":"IF('1. Order'!J93=\"\",\"\",'1. Order'!J93)","v":""},{"$f":"IF('1. Order'!K93=\"\",\"\",'1. Order'!K93)","v":""},{"$f":"IF('1. Order'!L93=\"\",\"\",'1. Order'!L93)","v":""},{"$f":"IF('1. Order'!M93=\"\",\"\",'1. Order'!M93)","v":""},{"$f":"IF('1. Order'!N93=\"\",\"\",'1. Order'!N93)","v":""},{"$f":"IF('1. Order'!P93=\"\",\"\",'1. Order'!P93)","v":""},{"$f":"IF('1. Order'!Q93=\"\",\"\",'1. Order'!Q93)","v":{"$error":"#N/A"}},{"$f":"IF('1. Order'!R93=\"\",\"\",'1. Order'!R93)","v":{"$error":"#N/A"}},{"$f":"IF('1. Order'!S93=\"\",\"\",'1. Order'!S93)","v":""},{"$f":"IF('1. Order'!T93=\"\",\"\",'1. Order'!T93)","v":""},{"$f":"IF('1. Order'!U93=\"\",\"\",'1. Order'!U93)","v":""},{"$f":"IF('1. Order'!X93=\"\",\"\",'1. Order'!X93)","v":""},{"$f":"IF('1. Order'!Y93=\"\",\"\",'1. Order'!Y93)","v":""},{"$f":"IF('1. Order'!Z93=\"\",\"\",'1. Order'!Z93)","v":""},{"$f":"IF('1. Order'!AC93=\"\",\"\",'1. Order'!AC93)","v":""},{"$f":"IF('1. Order'!AD93=\"\",\"\",'1. Order'!AD93)","v":""},{"$f":"IF('1. Order'!AE93=\"\",\"\",'1. Order'!AE93)","v":""},null,{"$f":"IF('1. Order'!AW93=\"\",\"\",'1. Order'!AW93)","v":""},{"$f":"IF('1. Order'!AX93=\"\",\"\",'1. Order'!AX93)","v":""},null,null,null,null,null,null,null,{"$f":"IF('1. Order'!BB93=\"\",\"\",'1. Order'!BB93)","v":""},{"$f":"IF('1. Order'!BC93=\"\",\"\",'1. Order'!BC93)","v":""},{"$f":"IF('1. Order'!BD93=\"\",\"\",'1. Order'!BD93)","v":""},{"$f":"IF('1. Order'!BE93=\"\",\"\",'1. Order'!BE93)","v":""},{"$f":"IF('1. Order'!BG93=\"\",\"\",'1. Order'!BG93)","v":""},{"$f":"IF('1. Order'!BH93=\"\",\"\",'1. Order'!BH93)","v":""},{"$f":"IF('1. Order'!BI93=\"\",\"\",'1. Order'!BI93)","v":""},{"$f":"IF('1. Order'!BJ93=\"\",\"\",'1. Order'!BJ93)","v":""},{"$f":"IF('1. Order'!BK93=\"\",\"\",'1. Order'!BK93)","v":"ZWO"}]
[{"$f":"IF('1. Order'!G94=\"\",\"\",'1. Order'!G94)","v":""},{"$f":"IF('1. Order'!H94=\"\",\"\",'1. Order'!H94)","v":""},{"$f":"IF('1. Order'!I94=\"\",\"\",'1. Order'!I94)","v":""},{"$f":"IF('1. Order'!J94=\"\",\"\",'1. Order'!J94)","v":""},{"$f":"IF('1. Order'!K94=\"\",\"\",'1. Order'!K94)","v":""},{"$f":"IF('1. Order'!L94=\"\",\"\",'1. Order'!L94)","v":""},{"$f":"IF('1. Order'!M94=\"\",\"\",'1. Order'!M94)","v":""},{"$f":"IF('1. Order'!N94=\"\",\"\",'1. Order'!N94)","v":""},{"$f":"IF('1. Order'!P94=\"\",\"\",'1. Order'!P94)","v":""},{"$f":"IF('1. Order'!Q94=\"\",\"\",'1. Order'!Q94)","v":{"$error":"#N/A"}},{"$f":"IF('1. Order'!R94=\"\",\"\",'1. Order'!R94)","v":{"$error":"#N/A"}},{"$f":"IF('1. Order'!S94=\"\",\"\",'1. Order'!S94)","v":""},{"$f":"IF('1. Order'!T94=\"\",\"\",'1. Order'!T94)","v":""},{"$f":"IF('1. Order'!U94=\"\",\"\",'1. Order'!U94)","v":""},{"$f":"IF('1. Order'!X94=\"\",\"\",'1. Order'!X94)","v":""},{"$f":"IF('1. Order'!Y94=\"\",\"\",'1. Order'!Y94)","v":""},{"$f":"IF('1. Order'!Z94=\"\",\"\",'1. Order'!Z94)","v":""},{"$f":"IF('1. Order'!AC94=\"\",\"\",'1. Order'!AC94)","v":""},{"$f":"IF('1. Order'!AD94=\"\",\"\",'1. Order'!AD94)","v":""},{"$f":"IF('1. Order'!AE94=\"\",\"\",'1. Order'!AE94)","v":""},null,{"$f":"IF('1. Order'!AW94=\"\",\"\",'1. Order'!AW94)","v":""},{"$f":"IF('1. Order'!AX94=\"\",\"\",'1. Order'!AX94)","v":""},null,null,null,null,null,null,null,{"$f":"IF('1. Order'!BB94=\"\",\"\",'1. Order'!BB94)","v":""},{"$f":"IF('1. Order'!BC94=\"\",\"\",'1. Order'!BC94)","v":""},{"$f":"IF('1. Order'!BD94=\"\",\"\",'1. Order'!BD94)","v":""},{"$f":"IF('1. Order'!BE94=\"\",\"\",'1. Order'!BE94)","v":""},{"$f":"IF('1. Order'!BG94=\"\",\"\",'1. Order'!BG94)","v":""},{"$f":"IF('1. Order'!BH94=\"\",\"\",'1. Order'!BH94)","v":""},{"$f":"IF('1. Order'!BI94=\"\",\"\",'1. Order'!BI94)","v":""},{"$f":"IF('1. Order'!BJ94=\"\",\"\",'1. Order'!BJ94)","v":""},{"$f":"IF('1. Order'!BK94=\"\",\"\",'1. Order'!BK94)","v":"ZWO"}]
[{"$f":"IF('1. Order'!G95=\"\",\"\",'1. Order'!G95)","v":""},{"$f":"IF('1. Order'!H95=\"\",\"\",'1. Order'!H95)","v":""},{"$f":"IF('1. Order'!I95=\"\",\"\",'1. Order'!I95)","v":""},{"$f":"IF('1. Order'!J95=\"\",\"\",'1. Order'!J95)","v":""},{"$f":"IF('1. Order'!K95=\"\",\"\",'1. Order'!K95)","v":""},{"$f":"IF('1. Order'!L95=\"\",\"\",'1. Order'!L95)","v":""},{"$f":"IF('1. Order'!M95=\"\",\"\",'1. Order'!M95)","v":""},{"$f":"IF('1. Order'!N95=\"\",\"\",'1. Order'!N95)","v":""},{"$f":"IF('1. Order'!P95=\"\",\"\",'1. Order'!P95)","v":""},{"$f":"IF('1. Order'!Q95=\"\",\"\",'1. Order'!Q95)","v":{"$error":"#N/A"}},{"$f":"IF('1. Order'!R95=\"\",\"\",'1. Order'!R95)","v":{"$error":"#N/A"}},{"$f":"IF('1. Order'!S95=\"\",\"\",'1. Order'!S95)","v":""},{"$f":"IF('1. Order'!T95=\"\",\"\",'1. Order'!T95)","v":""},{"$f":"IF('1. Order'!U95=\"\",\"\",'1. Order'!U95)","v":""},{"$f":"IF('1. Order'!X95=\"\",\"\",'1. Order'!X95)","v":""},{"$f":"IF('1. Order'!Y95=\"\",\"\",'1. Order'!Y95)","v":""},{"$f":"IF('1. Order'!Z95=\"\",\"\",'1. Order'!Z95)","v":""},{"$f":"IF('1. Order'!AC95=\"\",\"\",'1. Order'!AC95)","v":""},{"$f":"IF('1. Order'!AD95=\"\",\"\",'1. Order'!AD95)","v":""},{"$f":"IF('1. Order'!AE95=\"\",\"\",'1. Order'!AE95)","v":""},null,{"$f":"IF('1. Order'!AW95=\"\",\"\",'1. Order'!AW95)","v":""},{"$f":"IF('1. Order'!AX95=\"\",\"\",'1. Order'!AX95)","v":""},null,null,null,null,null,null,null,{"$f":"IF('1. Order'!BB95=\"\",\"\",'1. Order'!BB95)","v":""},{"$f":"IF('1. Order'!BC95=\"\",\"\",'1. Order'!BC95)","v":""},{"$f":"IF('1. Order'!BD95=\"\",\"\",'1. Order'!BD95)","v":""},{"$f":"IF('1. Order'!BE95=\"\",\"\",'1. Order'!BE95)","v":""},{"$f":"IF('1. Order'!BG95=\"\",\"\",'1. Order'!BG95)","v":""},{"$f":"IF('1. Order'!BH95=\"\",\"\",'1. Order'!BH95)","v":""},{"$f":"IF('1. Order'!BI95=\"\",\"\",'1. Order'!BI95)","v":""},{"$f":"IF('1. Order'!BJ95=\"\",\"\",'1. Order'!BJ95)","v":""},{"$f":"IF('1. Order'!BK95=\"\",\"\",'1. Order'!BK95)","v":"ZWO"}]
[{"$f":"IF('1. Order'!G96=\"\",\"\",'1. Order'!G96)","v":""},{"$f":"IF('1. Order'!H96=\"\",\"\",'1. Order'!H96)","v":""},{"$f":"IF('1. Order'!I96=\"\",\"\",'1. Order'!I96)","v":""},{"$f":"IF('1. Order'!J96=\"\",\"\",'1. Order'!J96)","v":""},{"$f":"IF('1. Order'!K96=\"\",\"\",'1. Order'!K96)","v":""},{"$f":"IF('1. Order'!L96=\"\",\"\",'1. Order'!L96)","v":""},{"$f":"IF('1. Order'!M96=\"\",\"\",'1. Order'!M96)","v":""},{"$f":"IF('1. Order'!N96=\"\",\"\",'1. Order'!N96)","v":""},{"$f":"IF('1. Order'!P96=\"\",\"\",'1. Order'!P96)","v":""},{"$f":"IF('1. Order'!Q96=\"\",\"\",'1. Order'!Q96)","v":{"$error":"#N/A"}},{"$f":"IF('1. Order'!R96=\"\",\"\",'1. Order'!R96)","v":{"$error":"#N/A"}},{"$f":"IF('1. Order'!S96=\"\",\"\",'1. Order'!S96)","v":""},{"$f":"IF('1. Order'!T96=\"\",\"\",'1. Order'!T96)","v":""},{"$f":"IF('1. Order'!U96=\"\",\"\",'1. Order'!U96)","v":""},{"$f":"IF('1. Order'!X96=\"\",\"\",'1. Order'!X96)","v":""},{"$f":"IF('1. Order'!Y96=\"\",\"\",'1. Order'!Y96)","v":""},{"$f":"IF('1. Order'!Z96=\"\",\"\",'1. Order'!Z96)","v":""},{"$f":"IF('1. Order'!AC96=\"\",\"\",'1. Order'!AC96)","v":""},{"$f":"IF('1. Order'!AD96=\"\",\"\",'1. Order'!AD96)","v":""},{"$f":"IF('1. Order'!AE96=\"\",\"\",'1. Order'!AE96)","v":""},null,{"$f":"IF('1. Order'!AW96=\"\",\"\",'1. Order'!AW96)","v":""},{"$f":"IF('1. Order'!AX96=\"\",\"\",'1. Order'!AX96)","v":""},null,null,null,null,null,null,null,{"$f":"IF('1. Order'!BB96=\"\",\"\",'1. Order'!BB96)","v":""},{"$f":"IF('1. Order'!BC96=\"\",\"\",'1. Order'!BC96)","v":""},{"$f":"IF('1. Order'!BD96=\"\",\"\",'1. Order'!BD96)","v":""},{"$f":"IF('1. Order'!BE96=\"\",\"\",'1. Order'!BE96)","v":""},{"$f":"IF('1. Order'!BG96=\"\",\"\",'1. Order'!BG96)","v":""},{"$f":"IF('1. Order'!BH96=\"\",\"\",'1. Order'!BH96)","v":""},{"$f":"IF('1. Order'!BI96=\"\",\"\",'1. Order'!BI96)","v":""},{"$f":"IF('1. Order'!BJ96=\"\",\"\",'1. Order'!BJ96)","v":""},{"$f":"IF('1. Order'!BK96=\"\",\"\",'1. Order'!BK96)","v":"ZWO"}]
[{"$f":"IF('1. Order'!G97=\"\",\"\",'1. Order'!G97)","v":""},{"$f":"IF('1. Order'!H97=\"\",\"\",'1. Order'!H97)","v":""},{"$f":"IF('1. Order'!I97=\"\",\"\",'1. Order'!I97)","v":""},{"$f":"IF('1. Order'!J97=\"\",\"\",'1. Order'!J97)","v":""},{"$f":"IF('1. Order'!K97=\"\",\"\",'1. Order'!K97)","v":""},{"$f":"IF('1. Order'!L97=\"\",\"\",'1. Order'!L97)","v":""},{"$f":"IF('1. Order'!M97=\"\",\"\",'1. Order'!M97)","v":""},{"$f":"IF('1. Order'!N97=\"\",\"\",'1. Order'!N97)","v":""},{"$f":"IF('1. Order'!P97=\"\",\"\",'1. Order'!P97)","v":""},{"$f":"IF('1. Order'!Q97=\"\",\"\",'1. Order'!Q97)","v":{"$error":"#N/A"}},{"$f":"IF('1. Order'!R97=\"\",\"\",'1. Order'!R97)","v":{"$error":"#N/A"}},{"$f":"IF('1. Order'!S97=\"\",\"\",'1. Order'!S97)","v":""},{"$f":"IF('1. Order'!T97=\"\",\"\",'1. Order'!T97)","v":""},{"$f":"IF('1. Order'!U97=\"\",\"\",'1. Order'!U97)","v":""},{"$f":"IF('1. Order'!X97=\"\",\"\",'1. Order'!X97)","v":""},{"$f":"IF('1. Order'!Y97=\"\",\"\",'1. Order'!Y97)","v":""},{"$f":"IF('1. Order'!Z97=\"\",\"\",'1. Order'!Z97)","v":""},{"$f":"IF('1. Order'!AC97=\"\",\"\",'1. Order'!AC97)","v":""},{"$f":"IF('1. Order'!AD97=\"\",\"\",'1. Order'!AD97)","v":""},{"$f":"IF('1. Order'!AE97=\"\",\"\",'1. Order'!AE97)","v":""},null,{"$f":"IF('1. Order'!AW97=\"\",\"\",'1. Order'!AW97)","v":""},{"$f":"IF('1. Order'!AX97=\"\",\"\",'1. Order'!AX97)","v":""},null,null,null,null,null,null,null,{"$f":"IF('1. Order'!BB97=\"\",\"\",'1. Order'!BB97)","v":""},{"$f":"IF('1. Order'!BC97=\"\",\"\",'1. Order'!BC97)","v":""},{"$f":"IF('1. Order'!BD97=\"\",\"\",'1. Order'!BD97)","v":""},{"$f":"IF('1. Order'!BE97=\"\",\"\",'1. Order'!BE97)","v":""},{"$f":"IF('1. Order'!BG97=\"\",\"\",'1. Order'!BG97)","v":""},{"$f":"IF('1. Order'!BH97=\"\",\"\",'1. Order'!BH97)","v":""},{"$f":"IF('1. Order'!BI97=\"\",\"\",'1. Order'!BI97)","v":""},{"$f":"IF('1. Order'!BJ97=\"\",\"\",'1. Order'!BJ97)","v":""},{"$f":"IF('1. Order'!BK97=\"\",\"\",'1. Order'!BK97)","v":"ZWO"}]
[{"$f":"IF('1. Order'!G98=\"\",\"\",'1. Order'!G98)","v":""},{"$f":"IF('1. Order'!H98=\"\",\"\",'1. Order'!H98)","v":""},{"$f":"IF('1. Order'!I98=\"\",\"\",'1. Order'!I98)","v":""},{"$f":"IF('1. Order'!J98=\"\",\"\",'1. Order'!J98)","v":""},{"$f":"IF('1. Order'!K98=\"\",\"\",'1. Order'!K98)","v":""},{"$f":"IF('1. Order'!L98=\"\",\"\",'1. Order'!L98)","v":""},{"$f":"IF('1. Order'!M98=\"\",\"\",'1. Order'!M98)","v":""},{"$f":"IF('1. Order'!N98=\"\",\"\",'1. Order'!N98)","v":""},{"$f":"IF('1. Order'!P98=\"\",\"\",'1. Order'!P98)","v":""},{"$f":"IF('1. Order'!Q98=\"\",\"\",'1. Order'!Q98)","v":{"$error":"#N/A"}},{"$f":"IF('1. Order'!R98=\"\",\"\",'1. Order'!R98)","v":{"$error":"#N/A"}},{"$f":"IF('1. Order'!S98=\"\",\"\",'1. Order'!S98)","v":""},{"$f":"IF('1. Order'!T98=\"\",\"\",'1. Order'!T98)","v":""},{"$f":"IF('1. Order'!U98=\"\",\"\",'1. Order'!U98)","v":""},{"$f":"IF('1. Order'!X98=\"\",\"\",'1. Order'!X98)","v":""},{"$f":"IF('1. Order'!Y98=\"\",\"\",'1. Order'!Y98)","v":""},{"$f":"IF('1. Order'!Z98=\"\",\"\",'1. Order'!Z98)","v":""},{"$f":"IF('1. Order'!AC98=\"\",\"\",'1. Order'!AC98)","v":""},{"$f":"IF('1. Order'!AD98=\"\",\"\",'1. Order'!AD98)","v":""},{"$f":"IF('1. Order'!AE98=\"\",\"\",'1. Order'!AE98)","v":""},null,{"$f":"IF('1. Order'!AW98=\"\",\"\",'1. Order'!AW98)","v":""},{"$f":"IF('1. Order'!AX98=\"\",\"\",'1. Order'!AX98)","v":""},null,null,null,null,null,null,null,{"$f":"IF('1. Order'!BB98=\"\",\"\",'1. Order'!BB98)","v":""},{"$f":"IF('1. Order'!BC98=\"\",\"\",'1. Order'!BC98)","v":""},{"$f":"IF('1. Order'!BD98=\"\",\"\",'1. Order'!BD98)","v":""},{"$f":"IF('1. Order'!BE98=\"\",\"\",'1. Order'!BE98)","v":""},{"$f":"IF('1. Order'!BG98=\"\",\"\",'1. Order'!BG98)","v":""},{"$f":"IF('1. Order'!BH98=\"\",\"\",'1. Order'!BH98)","v":""},{"$f":"IF('1. Order'!BI98=\"\",\"\",'1. Order'!BI98)","v":""},{"$f":"IF('1. Order'!BJ98=\"\",\"\",'1. Order'!BJ98)","v":""},{"$f":"IF('1. Order'!BK98=\"\",\"\",'1. Order'!BK98)","v":"ZWO"}]
[{"$f":"IF('1. Order'!G99=\"\",\"\",'1. Order'!G99)","v":""},{"$f":"IF('1. Order'!H99=\"\",\"\",'1. Order'!H99)","v":""},{"$f":"IF('1. Order'!I99=\"\",\"\",'1. Order'!I99)","v":""},{"$f":"IF('1. Order'!J99=\"\",\"\",'1. Order'!J99)","v":""},{"$f":"IF('1. Order'!K99=\"\",\"\",'1. Order'!K99)","v":""},{"$f":"IF('1. Order'!L99=\"\",\"\",'1. Order'!L99)","v":""},{"$f":"IF('1. Order'!M99=\"\",\"\",'1. Order'!M99)","v":""},{"$f":"IF('1. Order'!N99=\"\",\"\",'1. Order'!N99)","v":""},{"$f":"IF('1. Order'!P99=\"\",\"\",'1. Order'!P99)","v":""},{"$f":"IF('1. Order'!Q99=\"\",\"\",'1. Order'!Q99)","v":{"$error":"#N/A"}},{"$f":"IF('1. Order'!R99=\"\",\"\",'1. Order'!R99)","v":{"$error":"#N/A"}},{"$f":"IF('1. Order'!S99=\"\",\"\",'1. Order'!S99)","v":""},{"$f":"IF('1. Order'!T99=\"\",\"\",'1. Order'!T99)","v":""},{"$f":"IF('1. Order'!U99=\"\",\"\",'1. Order'!U99)","v":""},{"$f":"IF('1. Order'!X99=\"\",\"\",'1. Order'!X99)","v":""},{"$f":"IF('1. Order'!Y99=\"\",\"\",'1. Order'!Y99)","v":""},{"$f":"IF('1. Order'!Z99=\"\",\"\",'1. Order'!Z99)","v":""},{"$f":"IF('1. Order'!AC99=\"\",\"\",'1. Order'!AC99)","v":""},{"$f":"IF('1. Order'!AD99=\"\",\"\",'1. Order'!AD99)","v":""},{"$f":"IF('1. Order'!AE99=\"\",\"\",'1. Order'!AE99)","v":""},null,{"$f":"IF('1. Order'!AW99=\"\",\"\",'1. Order'!AW99)","v":""},{"$f":"IF('1. Order'!AX99=\"\",\"\",'1. Order'!AX99)","v":""},null,null,null,null,null,null,null,{"$f":"IF('1. Order'!BB99=\"\",\"\",'1. Order'!BB99)","v":""},{"$f":"IF('1. Order'!BC99=\"\",\"\",'1. Order'!BC99)","v":""},{"$f":"IF('1. Order'!BD99=\"\",\"\",'1. Order'!BD99)","v":""},{"$f":"IF('1. Order'!BE99=\"\",\"\",'1. Order'!BE99)","v":""},{"$f":"IF('1. Order'!BG99=\"\",\"\",'1. Order'!BG99)","v":""},{"$f":"IF('1. Order'!BH99=\"\",\"\",'1. Order'!BH99)","v":""},{"$f":"IF('1. Order'!BI99=\"\",\"\",'1. Order'!BI99)","v":""},{"$f":"IF('1. Order'!BJ99=\"\",\"\",'1. Order'!BJ99)","v":""},{"$f":"IF('1. Order'!BK99=\"\",\"\",'1. Order'!BK99)","v":"ZWO"}]
[{"$f":"IF('1. Order'!G100=\"\",\"\",'1. Order'!G100)","v":""},{"$f":"IF('1. Order'!H100=\"\",\"\",'1. Order'!H100)","v":""},{"$f":"IF('1. Order'!I100=\"\",\"\",'1. Order'!I100)","v":""},{"$f":"IF('1. Order'!J100=\"\",\"\",'1. Order'!J100)","v":""},{"$f":"IF('1. Order'!K100=\"\",\"\",'1. Order'!K100)","v":""},{"$f":"IF('1. Order'!L100=\"\",\"\",'1. Order'!L100)","v":""},{"$f":"IF('1. Order'!M100=\"\",\"\",'1. Order'!M100)","v":""},{"$f":"IF('1. Order'!N100=\"\",\"\",'1. Order'!N100)","v":""},{"$f":"IF('1. Order'!P100=\"\",\"\",'1. Order'!P100)","v":""},{"$f":"IF('1. Order'!Q100=\"\",\"\",'1. Order'!Q100)","v":{"$error":"#N/A"}},{"$f":"IF('1. Order'!R100=\"\",\"\",'1. Order'!R100)","v":{"$error":"#N/A"}},{"$f":"IF('1. Order'!S100=\"\",\"\",'1. Order'!S100)","v":""},{"$f":"IF('1. Order'!T100=\"\",\"\",'1. Order'!T100)","v":""},{"$f":"IF('1. Order'!U100=\"\",\"\",'1. Order'!U100)","v":""},{"$f":"IF('1. Order'!X100=\"\",\"\",'1. Order'!X100)","v":""},{"$f":"IF('1. Order'!Y100=\"\",\"\",'1. Order'!Y100)","v":""},{"$f":"IF('1. Order'!Z100=\"\",\"\",'1. Order'!Z100)","v":""},{"$f":"IF('1. Order'!AC100=\"\",\"\",'1. Order'!AC100)","v":""},{"$f":"IF('1. Order'!AD100=\"\",\"\",'1. Order'!AD100)","v":""},{"$f":"IF('1. Order'!AE100=\"\",\"\",'1. Order'!AE100)","v":""},null,{"$f":"IF('1. Order'!AW100=\"\",\"\",'1. Order'!AW100)","v":""},{"$f":"IF('1. Order'!AX100=\"\",\"\",'1. Order'!AX100)","v":""},null,null,null,null,null,null,null,{"$f":"IF('1. Order'!BB100=\"\",\"\",'1. Order'!BB100)","v":""},{"$f":"IF('1. Order'!BC100=\"\",\"\",'1. Order'!BC100)","v":""},{"$f":"IF('1. Order'!BD100=\"\",\"\",'1. Order'!BD100)","v":""},{"$f":"IF('1. Order'!BE100=\"\",\"\",'1. Order'!BE100)","v":""},{"$f":"IF('1. Order'!BG100=\"\",\"\",'1. Order'!BG100)","v":""},{"$f":"IF('1. Order'!BH100=\"\",\"\",'1. Order'!BH100)","v":""},{"$f":"IF('1. Order'!BI100=\"\",\"\",'1. Order'!BI100)","v":""},{"$f":"IF('1. Order'!BJ100=\"\",\"\",'1. Order'!BJ100)","v":""},{"$f":"IF('1. Order'!BK100=\"\",\"\",'1. Order'!BK100)","v":"ZWO"}]
[{"$f":"IF('1. Order'!G101=\"\",\"\",'1. Order'!G101)","v":""},{"$f":"IF('1. Order'!H101=\"\",\"\",'1. Order'!H101)","v":""},{"$f":"IF('1. Order'!I101=\"\",\"\",'1. Order'!I101)","v":""},{"$f":"IF('1. Order'!J101=\"\",\"\",'1. Order'!J101)","v":""},{"$f":"IF('1. Order'!K101=\"\",\"\",'1. Order'!K101)","v":""},{"$f":"IF('1. Order'!L101=\"\",\"\",'1. Order'!L101)","v":""},{"$f":"IF('1. Order'!M101=\"\",\"\",'1. Order'!M101)","v":""},{"$f":"IF('1. Order'!N101=\"\",\"\",'1. Order'!N101)","v":""},{"$f":"IF('1. Order'!P101=\"\",\"\",'1. Order'!P101)","v":""},{"$f":"IF('1. Order'!Q101=\"\",\"\",'1. Order'!Q101)","v":{"$error":"#N/A"}},{"$f":"IF('1. Order'!R101=\"\",\"\",'1. Order'!R101)","v":{"$error":"#N/A"}},{"$f":"IF('1. Order'!S101=\"\",\"\",'1. Order'!S101)","v":""},{"$f":"IF('1. Order'!T101=\"\",\"\",'1. Order'!T101)","v":""},{"$f":"IF('1. Order'!U101=\"\",\"\",'1. Order'!U101)","v":""},{"$f":"IF('1. Order'!X101=\"\",\"\",'1. Order'!X101)","v":""},{"$f":"IF('1. Order'!Y101=\"\",\"\",'1. Order'!Y101)","v":""},{"$f":"IF('1. Order'!Z101=\"\",\"\",'1. Order'!Z101)","v":""},{"$f":"IF('1. Order'!AC101=\"\",\"\",'1. Order'!AC101)","v":""},{"$f":"IF('1. Order'!AD101=\"\",\"\",'1. Order'!AD101)","v":""},{"$f":"IF('1. Order'!AE101=\"\",\"\",'1. Order'!AE101)","v":""},null,{"$f":"IF('1. Order'!AW101=\"\",\"\",'1. Order'!AW101)","v":""},{"$f":"IF('1. Order'!AX101=\"\",\"\",'1. Order'!AX101)","v":""},null,null,null,null,null,null,null,{"$f":"IF('1. Order'!BB101=\"\",\"\",'1. Order'!BB101)","v":""},{"$f":"IF('1. Order'!BC101=\"\",\"\",'1. Order'!BC101)","v":""},{"$f":"IF('1. Order'!BD101=\"\",\"\",'1. Order'!BD101)","v":""},{"$f":"IF('1. Order'!BE101=\"\",\"\",'1. Order'!BE101)","v":""},{"$f":"IF('1. Order'!BG101=\"\",\"\",'1. Order'!BG101)","v":""},{"$f":"IF('1. Order'!BH101=\"\",\"\",'1. Order'!BH101)","v":""},{"$f":"IF('1. Order'!BI101=\"\",\"\",'1. Order'!BI101)","v":""},{"$f":"IF('1. Order'!BJ101=\"\",\"\",'1. Order'!BJ101)","v":""},{"$f":"IF('1. Order'!BK101=\"\",\"\",'1. Order'!BK101)","v":"ZWO"}]
[{"$f":"IF('1. Order'!G102=\"\",\"\",'1. Order'!G102)","v":""},{"$f":"IF('1. Order'!H102=\"\",\"\",'1. Order'!H102)","v":""},{"$f":"IF('1. Order'!I102=\"\",\"\",'1. Order'!I102)","v":""},{"$f":"IF('1. Order'!J102=\"\",\"\",'1. Order'!J102)","v":""},{"$f":"IF('1. Order'!K102=\"\",\"\",'1. Order'!K102)","v":""},{"$f":"IF('1. Order'!L102=\"\",\"\",'1. Order'!L102)","v":""},{"$f":"IF('1. Order'!M102=\"\",\"\",'1. Order'!M102)","v":""},{"$f":"IF('1. Order'!N102=\"\",\"\",'1. Order'!N102)","v":""},{"$f":"IF('1. Order'!P102=\"\",\"\",'1. Order'!P102)","v":""},{"$f":"IF('1. Order'!Q102=\"\",\"\",'1. Order'!Q102)","v":{"$error":"#N/A"}},{"$f":"IF('1. Order'!R102=\"\",\"\",'1. Order'!R102)","v":{"$error":"#N/A"}},{"$f":"IF('1. Order'!S102=\"\",\"\",'1. Order'!S102)","v":""},{"$f":"IF('1. Order'!T102=\"\",\"\",'1. Order'!T102)","v":""},{"$f":"IF('1. Order'!U102=\"\",\"\",'1. Order'!U102)","v":""},{"$f":"IF('1. Order'!X102=\"\",\"\",'1. Order'!X102)","v":""},{"$f":"IF('1. Order'!Y102=\"\",\"\",'1. Order'!Y102)","v":""},{"$f":"IF('1. Order'!Z102=\"\",\"\",'1. Order'!Z102)","v":""},{"$f":"IF('1. Order'!AC102=\"\",\"\",'1. Order'!AC102)","v":""},{"$f":"IF('1. Order'!AD102=\"\",\"\",'1. Order'!AD102)","v":""},{"$f":"IF('1. Order'!AE102=\"\",\"\",'1. Order'!AE102)","v":""},null,{"$f":"IF('1. Order'!AW102=\"\",\"\",'1. Order'!AW102)","v":""},{"$f":"IF('1. Order'!AX102=\"\",\"\",'1. Order'!AX102)","v":""},null,null,null,null,null,null,null,{"$f":"IF('1. Order'!BB102=\"\",\"\",'1. Order'!BB102)","v":""},{"$f":"IF('1. Order'!BC102=\"\",\"\",'1. Order'!BC102)","v":""},{"$f":"IF('1. Order'!BD102=\"\",\"\",'1. Order'!BD102)","v":""},{"$f":"IF('1. Order'!BE102=\"\",\"\",'1. Order'!BE102)","v":""},{"$f":"IF('1. Order'!BG102=\"\",\"\",'1. Order'!BG102)","v":""},{"$f":"IF('1. Order'!BH102=\"\",\"\",'1. Order'!BH102)","v":""},{"$f":"IF('1. Order'!BI102=\"\",\"\",'1. Order'!BI102)","v":""},{"$f":"IF('1. Order'!BJ102=\"\",\"\",'1. Order'!BJ102)","v":""},{"$f":"IF('1. Order'!BK102=\"\",\"\",'1. Order'!BK102)","v":"ZWO"}]
[{"$f":"IF('1. Order'!G103=\"\",\"\",'1. Order'!G103)","v":""},{"$f":"IF('1. Order'!H103=\"\",\"\",'1. Order'!H103)","v":""},{"$f":"IF('1. Order'!I103=\"\",\"\",'1. Order'!I103)","v":""},{"$f":"IF('1. Order'!J103=\"\",\"\",'1. Order'!J103)","v":""},{"$f":"IF('1. Order'!K103=\"\",\"\",'1. Order'!K103)","v":""},{"$f":"IF('1. Order'!L103=\"\",\"\",'1. Order'!L103)","v":""},{"$f":"IF('1. Order'!M103=\"\",\"\",'1. Order'!M103)","v":""},{"$f":"IF('1. Order'!N103=\"\",\"\",'1. Order'!N103)","v":""},{"$f":"IF('1. Order'!P103=\"\",\"\",'1. Order'!P103)","v":""},{"$f":"IF('1. Order'!Q103=\"\",\"\",'1. Order'!Q103)","v":{"$error":"#N/A"}},{"$f":"IF('1. Order'!R103=\"\",\"\",'1. Order'!R103)","v":{"$error":"#N/A"}},{"$f":"IF('1. Order'!S103=\"\",\"\",'1. Order'!S103)","v":""},{"$f":"IF('1. Order'!T103=\"\",\"\",'1. Order'!T103)","v":""},{"$f":"IF('1. Order'!U103=\"\",\"\",'1. Order'!U103)","v":""},{"$f":"IF('1. Order'!X103=\"\",\"\",'1. Order'!X103)","v":""},{"$f":"IF('1. Order'!Y103=\"\",\"\",'1. Order'!Y103)","v":""},{"$f":"IF('1. Order'!Z103=\"\",\"\",'1. Order'!Z103)","v":""},{"$f":"IF('1. Order'!AC103=\"\",\"\",'1. Order'!AC103)","v":""},{"$f":"IF('1. Order'!AD103=\"\",\"\",'1. Order'!AD103)","v":""},{"$f":"IF('1. Order'!AE103=\"\",\"\",'1. Order'!AE103)","v":""},null,{"$f":"IF('1. Order'!AW103=\"\",\"\",'1. Order'!AW103)","v":""},{"$f":"IF('1. Order'!AX103=\"\",\"\",'1. Order'!AX103)","v":""},null,null,null,null,null,null,null,{"$f":"IF('1. Order'!BB103=\"\",\"\",'1. Order'!BB103)","v":""},{"$f":"IF('1. Order'!BC103=\"\",\"\",'1. Order'!BC103)","v":""},{"$f":"IF('1. Order'!BD103=\"\",\"\",'1. Order'!BD103)","v":""},{"$f":"IF('1. Order'!BE103=\"\",\"\",'1. Order'!BE103)","v":""},{"$f":"IF('1. Order'!BG103=\"\",\"\",'1. Order'!BG103)","v":""},{"$f":"IF('1. Order'!BH103=\"\",\"\",'1. Order'!BH103)","v":""},{"$f":"IF('1. Order'!BI103=\"\",\"\",'1. Order'!BI103)","v":""},{"$f":"IF('1. Order'!BJ103=\"\",\"\",'1. Order'!BJ103)","v":""},{"$f":"IF('1. Order'!BK103=\"\",\"\",'1. Order'!BK103)","v":"ZWO"}]
[{"$f":"IF('1. Order'!G104=\"\",\"\",'1. Order'!G104)","v":""},{"$f":"IF('1. Order'!H104=\"\",\"\",'1. Order'!H104)","v":""},{"$f":"IF('1. Order'!I104=\"\",\"\",'1. Order'!I104)","v":""},{"$f":"IF('1. Order'!J104=\"\",\"\",'1. Order'!J104)","v":""},{"$f":"IF('1. Order'!K104=\"\",\"\",'1. Order'!K104)","v":""},{"$f":"IF('1. Order'!L104=\"\",\"\",'1. Order'!L104)","v":""},{"$f":"IF('1. Order'!M104=\"\",\"\",'1. Order'!M104)","v":""},{"$f":"IF('1. Order'!N104=\"\",\"\",'1. Order'!N104)","v":""},{"$f":"IF('1. Order'!P104=\"\",\"\",'1. Order'!P104)","v":""},{"$f":"IF('1. Order'!Q104=\"\",\"\",'1. Order'!Q104)","v":{"$error":"#N/A"}},{"$f":"IF('1. Order'!R104=\"\",\"\",'1. Order'!R104)","v":{"$error":"#N/A"}},{"$f":"IF('1. Order'!S104=\"\",\"\",'1. Order'!S104)","v":""},{"$f":"IF('1. Order'!T104=\"\",\"\",'1. Order'!T104)","v":""},{"$f":"IF('1. Order'!U104=\"\",\"\",'1. Order'!U104)","v":""},{"$f":"IF('1. Order'!X104=\"\",\"\",'1. Order'!X104)","v":""},{"$f":"IF('1. Order'!Y104=\"\",\"\",'1. Order'!Y104)","v":""},{"$f":"IF('1. Order'!Z104=\"\",\"\",'1. Order'!Z104)","v":""},{"$f":"IF('1. Order'!AC104=\"\",\"\",'1. Order'!AC104)","v":""},{"$f":"IF('1. Order'!AD104=\"\",\"\",'1. Order'!AD104)","v":""},{"$f":"IF('1. Order'!AE104=\"\",\"\",'1. Order'!AE104)","v":""},null,{"$f":"IF('1. Order'!AW104=\"\",\"\",'1. Order'!AW104)","v":""},{"$f":"IF('1. Order'!AX104=\"\",\"\",'1. Order'!AX104)","v":""},null,null,null,null,null,null,null,{"$f":"IF('1. Order'!BB104=\"\",\"\",'1. Order'!BB104)","v":""},{"$f":"IF('1. Order'!BC104=\"\",\"\",'1. Order'!BC104)","v":""},{"$f":"IF('1. Order'!BD104=\"\",\"\",'1. Order'!BD104)","v":""},{"$f":"IF('1. Order'!BE104=\"\",\"\",'1. Order'!BE104)","v":""},{"$f":"IF('1. Order'!BG104=\"\",\"\",'1. Order'!BG104)","v":""},{"$f":"IF('1. Order'!BH104=\"\",\"\",'1. Order'!BH104)","v":""},{"$f":"IF('1. Order'!BI104=\"\",\"\",'1. Order'!BI104)","v":""},{"$f":"IF('1. Order'!BJ104=\"\",\"\",'1. Order'!BJ104)","v":""},{"$f":"IF('1. Order'!BK104=\"\",\"\",'1. Order'!BK104)","v":"ZWO"}]
[{"$f":"IF('1. Order'!G105=\"\",\"\",'1. Order'!G105)","v":""},{"$f":"IF('1. Order'!H105=\"\",\"\",'1. Order'!H105)","v":""},{"$f":"IF('1. Order'!I105=\"\",\"\",'1. Order'!I105)","v":""},{"$f":"IF('1. Order'!J105=\"\",\"\",'1. Order'!J105)","v":""},{"$f":"IF('1. Order'!K105=\"\",\"\",'1. Order'!K105)","v":""},{"$f":"IF('1. Order'!L105=\"\",\"\",'1. Order'!L105)","v":""},{"$f":"IF('1. Order'!M105=\"\",\"\",'1. Order'!M105)","v":""},{"$f":"IF('1. Order'!N105=\"\",\"\",'1. Order'!N105)","v":""},{"$f":"IF('1. Order'!P105=\"\",\"\",'1. Order'!P105)","v":""},{"$f":"IF('1. Order'!Q105=\"\",\"\",'1. Order'!Q105)","v":{"$error":"#N/A"}},{"$f":"IF('1. Order'!R105=\"\",\"\",'1. Order'!R105)","v":{"$error":"#N/A"}},{"$f":"IF('1. Order'!S105=\"\",\"\",'1. Order'!S105)","v":""},{"$f":"IF('1. Order'!T105=\"\",\"\",'1. Order'!T105)","v":""},{"$f":"IF('1. Order'!U105=\"\",\"\",'1. Order'!U105)","v":""},{"$f":"IF('1. Order'!X105=\"\",\"\",'1. Order'!X105)","v":""},{"$f":"IF('1. Order'!Y105=\"\",\"\",'1. Order'!Y105)","v":""},{"$f":"IF('1. Order'!Z105=\"\",\"\",'1. Order'!Z105)","v":""},{"$f":"IF('1. Order'!AC105=\"\",\"\",'1. Order'!AC105)","v":""},{"$f":"IF('1. Order'!AD105=\"\",\"\",'1. Order'!AD105)","v":""},{"$f":"IF('1. Order'!AE105=\"\",\"\",'1. Order'!AE105)","v":""},null,{"$f":"IF('1. Order'!AW105=\"\",\"\",'1. Order'!AW105)","v":""},{"$f":"IF('1. Order'!AX105=\"\",\"\",'1. Order'!AX105)","v":""},null,null,null,null,null,null,null,{"$f":"IF('1. Order'!BB105=\"\",\"\",'1. Order'!BB105)","v":""},{"$f":"IF('1. Order'!BC105=\"\",\"\",'1. Order'!BC105)","v":""},{"$f":"IF('1. Order'!BD105=\"\",\"\",'1. Order'!BD105)","v":""},{"$f":"IF('1. Order'!BE105=\"\",\"\",'1. Order'!BE105)","v":""},{"$f":"IF('1. Order'!BG105=\"\",\"\",'1. Order'!BG105)","v":""},{"$f":"IF('1. Order'!BH105=\"\",\"\",'1. Order'!BH105)","v":""},{"$f":"IF('1. Order'!BI105=\"\",\"\",'1. Order'!BI105)","v":""},{"$f":"IF('1. Order'!BJ105=\"\",\"\",'1. Order'!BJ105)","v":""},{"$f":"IF('1. Order'!BK105=\"\",\"\",'1. Order'!BK105)","v":"ZWO"}]
[{"$f":"IF('1. Order'!G106=\"\",\"\",'1. Order'!G106)","v":""},{"$f":"IF('1. Order'!H106=\"\",\"\",'1. Order'!H106)","v":""},{"$f":"IF('1. Order'!I106=\"\",\"\",'1. Order'!I106)","v":""},{"$f":"IF('1. Order'!J106=\"\",\"\",'1. Order'!J106)","v":""},{"$f":"IF('1. Order'!K106=\"\",\"\",'1. Order'!K106)","v":""},{"$f":"IF('1. Order'!L106=\"\",\"\",'1. Order'!L106)","v":""},{"$f":"IF('1. Order'!M106=\"\",\"\",'1. Order'!M106)","v":""},{"$f":"IF('1. Order'!N106=\"\",\"\",'1. Order'!N106)","v":""},{"$f":"IF('1. Order'!P106=\"\",\"\",'1. Order'!P106)","v":""},{"$f":"IF('1. Order'!Q106=\"\",\"\",'1. Order'!Q106)","v":{"$error":"#N/A"}},{"$f":"IF('1. Order'!R106=\"\",\"\",'1. Order'!R106)","v":{"$error":"#N/A"}},{"$f":"IF('1. Order'!S106=\"\",\"\",'1. Order'!S106)","v":""},{"$f":"IF('1. Order'!T106=\"\",\"\",'1. Order'!T106)","v":""},{"$f":"IF('1. Order'!U106=\"\",\"\",'1. Order'!U106)","v":""},{"$f":"IF('1. Order'!X106=\"\",\"\",'1. Order'!X106)","v":""},{"$f":"IF('1. Order'!Y106=\"\",\"\",'1. Order'!Y106)","v":""},{"$f":"IF('1. Order'!Z106=\"\",\"\",'1. Order'!Z106)","v":""},{"$f":"IF('1. Order'!AC106=\"\",\"\",'1. Order'!AC106)","v":""},{"$f":"IF('1. Order'!AD106=\"\",\"\",'1. Order'!AD106)","v":""},{"$f":"IF('1. Order'!AE106=\"\",\"\",'1. Order'!AE106)","v":""},null,{"$f":"IF('1. Order'!AW106=\"\",\"\",'1. Order'!AW106)","v":""},{"$f":"IF('1. Order'!AX106=\"\",\"\",'1. Order'!AX106)","v":""},null,null,null,null,null,null,null,{"$f":"IF('1. Order'!BB106=\"\",\"\",'1. Order'!BB106)","v":""},{"$f":"IF('1. Order'!BC106=\"\",\"\",'1. Order'!BC106)","v":""},{"$f":"IF('1. Order'!BD106=\"\",\"\",'1. Order'!BD106)","v":""},{"$f":"IF('1. Order'!BE106=\"\",\"\",'1. Order'!BE106)","v":""},{"$f":"IF('1. Order'!BG106=\"\",\"\",'1. Order'!BG106)","v":""},{"$f":"IF('1. Order'!BH106=\"\",\"\",'1. Order'!BH106)","v":""},{"$f":"IF('1. Order'!BI106=\"\",\"\",'1. Order'!BI106)","v":""},{"$f":"IF('1. Order'!BJ106=\"\",\"\",'1. Order'!BJ106)","v":""},{"$f":"IF('1. Order'!BK106=\"\",\"\",'1. Order'!BK106)","v":"ZWO"}]
[{"$f":"IF('1. Order'!G107=\"\",\"\",'1. Order'!G107)","v":""},{"$f":"IF('1. Order'!H107=\"\",\"\",'1. Order'!H107)","v":""},{"$f":"IF('1. Order'!I107=\"\",\"\",'1. Order'!I107)","v":""},{"$f":"IF('1. Order'!J107=\"\",\"\",'1. Order'!J107)","v":""},{"$f":"IF('1. Order'!K107=\"\",\"\",'1. Order'!K107)","v":""},{"$f":"IF('1. Order'!L107=\"\",\"\",'1. Order'!L107)","v":""},{"$f":"IF('1. Order'!M107=\"\",\"\",'1. Order'!M107)","v":""},{"$f":"IF('1. Order'!N107=\"\",\"\",'1. Order'!N107)","v":""},{"$f":"IF('1. Order'!P107=\"\",\"\",'1. Order'!P107)","v":""},{"$f":"IF('1. Order'!Q107=\"\",\"\",'1. Order'!Q107)","v":{"$error":"#N/A"}},{"$f":"IF('1. Order'!R107=\"\",\"\",'1. Order'!R107)","v":{"$error":"#N/A"}},{"$f":"IF('1. Order'!S107=\"\",\"\",'1. Order'!S107)","v":""},{"$f":"IF('1. Order'!T107=\"\",\"\",'1. Order'!T107)","v":""},{"$f":"IF('1. Order'!U107=\"\",\"\",'1. Order'!U107)","v":""},{"$f":"IF('1. Order'!X107=\"\",\"\",'1. Order'!X107)","v":""},{"$f":"IF('1. Order'!Y107=\"\",\"\",'1. Order'!Y107)","v":""},{"$f":"IF('1. Order'!Z107=\"\",\"\",'1. Order'!Z107)","v":""},{"$f":"IF('1. Order'!AC107=\"\",\"\",'1. Order'!AC107)","v":""},{"$f":"IF('1. Order'!AD107=\"\",\"\",'1. Order'!AD107)","v":""},{"$f":"IF('1. Order'!AE107=\"\",\"\",'1. Order'!AE107)","v":""},null,{"$f":"IF('1. Order'!AW107=\"\",\"\",'1. Order'!AW107)","v":""},{"$f":"IF('1. Order'!AX107=\"\",\"\",'1. Order'!AX107)","v":""},null,null,null,null,null,null,null,{"$f":"IF('1. Order'!BB107=\"\",\"\",'1. Order'!BB107)","v":""},{"$f":"IF('1. Order'!BC107=\"\",\"\",'1. Order'!BC107)","v":""},{"$f":"IF('1. Order'!BD107=\"\",\"\",'1. Order'!BD107)","v":""},{"$f":"IF('1. Order'!BE107=\"\",\"\",'1. Order'!BE107)","v":""},{"$f":"IF('1. Order'!BG107=\"\",\"\",'1. Order'!BG107)","v":""},{"$f":"IF('1. Order'!BH107=\"\",\"\",'1. Order'!BH107)","v":""},{"$f":"IF('1. Order'!BI107=\"\",\"\",'1. Order'!BI107)","v":""},{"$f":"IF('1. Order'!BJ107=\"\",\"\",'1. Order'!BJ107)","v":""},{"$f":"IF('1. Order'!BK107=\"\",\"\",'1. Order'!BK107)","v":"ZWO"}]
[{"$f":"IF('1. Order'!G108=\"\",\"\",'1. Order'!G108)","v":""},{"$f":"IF('1. Order'!H108=\"\",\"\",'1. Order'!H108)","v":""},{"$f":"IF('1. Order'!I108=\"\",\"\",'1. Order'!I108)","v":""},{"$f":"IF('1. Order'!J108=\"\",\"\",'1. Order'!J108)","v":""},{"$f":"IF('1. Order'!K108=\"\",\"\",'1. Order'!K108)","v":""},{"$f":"IF('1. Order'!L108=\"\",\"\",'1. Order'!L108)","v":""},{"$f":"IF('1. Order'!M108=\"\",\"\",'1. Order'!M108)","v":""},{"$f":"IF('1. Order'!N108=\"\",\"\",'1. Order'!N108)","v":""},{"$f":"IF('1. Order'!P108=\"\",\"\",'1. Order'!P108)","v":""},{"$f":"IF('1. Order'!Q108=\"\",\"\",'1. Order'!Q108)","v":{"$error":"#N/A"}},{"$f":"IF('1. Order'!R108=\"\",\"\",'1. Order'!R108)","v":{"$error":"#N/A"}},{"$f":"IF('1. Order'!S108=\"\",\"\",'1. Order'!S108)","v":""},{"$f":"IF('1. Order'!T108=\"\",\"\",'1. Order'!T108)","v":""},{"$f":"IF('1. Order'!U108=\"\",\"\",'1. Order'!U108)","v":""},{"$f":"IF('1. Order'!X108=\"\",\"\",'1. Order'!X108)","v":""},{"$f":"IF('1. Order'!Y108=\"\",\"\",'1. Order'!Y108)","v":""},{"$f":"IF('1. Order'!Z108=\"\",\"\",'1. Order'!Z108)","v":""},{"$f":"IF('1. Order'!AC108=\"\",\"\",'1. Order'!AC108)","v":""},{"$f":"IF('1. Order'!AD108=\"\",\"\",'1. Order'!AD108)","v":""},{"$f":"IF('1. Order'!AE108=\"\",\"\",'1. Order'!AE108)","v":""},null,{"$f":"IF('1. Order'!AW108=\"\",\"\",'1. Order'!AW108)","v":""},{"$f":"IF('1. Order'!AX108=\"\",\"\",'1. Order'!AX108)","v":""},null,null,null,null,null,null,null,{"$f":"IF('1. Order'!BB108=\"\",\"\",'1. Order'!BB108)","v":""},{"$f":"IF('1. Order'!BC108=\"\",\"\",'1. Order'!BC108)","v":""},{"$f":"IF('1. Order'!BD108=\"\",\"\",'1. Order'!BD108)","v":""},{"$f":"IF('1. Order'!BE108=\"\",\"\",'1. Order'!BE108)","v":""},{"$f":"IF('1. Order'!BG108=\"\",\"\",'1. Order'!BG108)","v":""},{"$f":"IF('1. Order'!BH108=\"\",\"\",'1. Order'!BH108)","v":""},{"$f":"IF('1. Order'!BI108=\"\",\"\",'1. Order'!BI108)","v":""},{"$f":"IF('1. Order'!BJ108=\"\",\"\",'1. Order'!BJ108)","v":""},{"$f":"IF('1. Order'!BK108=\"\",\"\",'1. Order'!BK108)","v":"ZWO"}]
[{"$f":"IF('1. Order'!G109=\"\",\"\",'1. Order'!G109)","v":""},{"$f":"IF('1. Order'!H109=\"\",\"\",'1. Order'!H109)","v":""},{"$f":"IF('1. Order'!I109=\"\",\"\",'1. Order'!I109)","v":""},{"$f":"IF('1. Order'!J109=\"\",\"\",'1. Order'!J109)","v":""},{"$f":"IF('1. Order'!K109=\"\",\"\",'1. Order'!K109)","v":""},{"$f":"IF('1. Order'!L109=\"\",\"\",'1. Order'!L109)","v":""},{"$f":"IF('1. Order'!M109=\"\",\"\",'1. Order'!M109)","v":""},{"$f":"IF('1. Order'!N109=\"\",\"\",'1. Order'!N109)","v":""},{"$f":"IF('1. Order'!P109=\"\",\"\",'1. Order'!P109)","v":""},{"$f":"IF('1. Order'!Q109=\"\",\"\",'1. Order'!Q109)","v":{"$error":"#N/A"}},{"$f":"IF('1. Order'!R109=\"\",\"\",'1. Order'!R109)","v":{"$error":"#N/A"}},{"$f":"IF('1. Order'!S109=\"\",\"\",'1. Order'!S109)","v":""},{"$f":"IF('1. Order'!T109=\"\",\"\",'1. Order'!T109)","v":""},{"$f":"IF('1. Order'!U109=\"\",\"\",'1. Order'!U109)","v":""},{"$f":"IF('1. Order'!X109=\"\",\"\",'1. Order'!X109)","v":""},{"$f":"IF('1. Order'!Y109=\"\",\"\",'1. Order'!Y109)","v":""},{"$f":"IF('1. Order'!Z109=\"\",\"\",'1. Order'!Z109)","v":""},{"$f":"IF('1. Order'!AC109=\"\",\"\",'1. Order'!AC109)","v":""},{"$f":"IF('1. Order'!AD109=\"\",\"\",'1. Order'!AD109)","v":""},{"$f":"IF('1. Order'!AE109=\"\",\"\",'1. Order'!AE109)","v":""},null,{"$f":"IF('1. Order'!AW109=\"\",\"\",'1. Order'!AW109)","v":""},{"$f":"IF('1. Order'!AX109=\"\",\"\",'1. Order'!AX109)","v":""},null,null,null,null,null,null,null,{"$f":"IF('1. Order'!BB109=\"\",\"\",'1. Order'!BB109)","v":""},{"$f":"IF('1. Order'!BC109=\"\",\"\",'1. Order'!BC109)","v":""},{"$f":"IF('1. Order'!BD109=\"\",\"\",'1. Order'!BD109)","v":""},{"$f":"IF('1. Order'!BE109=\"\",\"\",'1. Order'!BE109)","v":""},{"$f":"IF('1. Order'!BG109=\"\",\"\",'1. Order'!BG109)","v":""},{"$f":"IF('1. Order'!BH109=\"\",\"\",'1. Order'!BH109)","v":""},{"$f":"IF('1. Order'!BI109=\"\",\"\",'1. Order'!BI109)","v":""},{"$f":"IF('1. Order'!BJ109=\"\",\"\",'1. Order'!BJ109)","v":""},{"$f":"IF('1. Order'!BK109=\"\",\"\",'1. Order'!BK109)","v":"ZWO"}]
[{"$f":"IF('1. Order'!G110=\"\",\"\",'1. Order'!G110)","v":""},{"$f":"IF('1. Order'!H110=\"\",\"\",'1. Order'!H110)","v":""},{"$f":"IF('1. Order'!I110=\"\",\"\",'1. Order'!I110)","v":""},{"$f":"IF('1. Order'!J110=\"\",\"\",'1. Order'!J110)","v":""},{"$f":"IF('1. Order'!K110=\"\",\"\",'1. Order'!K110)","v":""},{"$f":"IF('1. Order'!L110=\"\",\"\",'1. Order'!L110)","v":""},{"$f":"IF('1. Order'!M110=\"\",\"\",'1. Order'!M110)","v":""},{"$f":"IF('1. Order'!N110=\"\",\"\",'1. Order'!N110)","v":""},{"$f":"IF('1. Order'!P110=\"\",\"\",'1. Order'!P110)","v":""},{"$f":"IF('1. Order'!Q110=\"\",\"\",'1. Order'!Q110)","v":{"$error":"#N/A"}},{"$f":"IF('1. Order'!R110=\"\",\"\",'1. Order'!R110)","v":{"$error":"#N/A"}},{"$f":"IF('1. Order'!S110=\"\",\"\",'1. Order'!S110)","v":""},{"$f":"IF('1. Order'!T110=\"\",\"\",'1. Order'!T110)","v":""},{"$f":"IF('1. Order'!U110=\"\",\"\",'1. Order'!U110)","v":""},{"$f":"IF('1. Order'!X110=\"\",\"\",'1. Order'!X110)","v":""},{"$f":"IF('1. Order'!Y110=\"\",\"\",'1. Order'!Y110)","v":""},{"$f":"IF('1. Order'!Z110=\"\",\"\",'1. Order'!Z110)","v":""},{"$f":"IF('1. Order'!AC110=\"\",\"\",'1. Order'!AC110)","v":""},{"$f":"IF('1. Order'!AD110=\"\",\"\",'1. Order'!AD110)","v":""},{"$f":"IF('1. Order'!AE110=\"\",\"\",'1. Order'!AE110)","v":""},null,{"$f":"IF('1. Order'!AW110=\"\",\"\",'1. Order'!AW110)","v":""},{"$f":"IF('1. Order'!AX110=\"\",\"\",'1. Order'!AX110)","v":""},null,null,null,null,null,null,null,{"$f":"IF('1. Order'!BB110=\"\",\"\",'1. Order'!BB110)","v":""},{"$f":"IF('1. Order'!BC110=\"\",\"\",'1. Order'!BC110)","v":""},{"$f":"IF('1. Order'!BD110=\"\",\"\",'1. Order'!BD110)","v":""},{"$f":"IF('1. Order'!BE110=\"\",\"\",'1. Order'!BE110)","v":""},{"$f":"IF('1. Order'!BG110=\"\",\"\",'1. Order'!BG110)","v":""},{"$f":"IF('1. Order'!BH110=\"\",\"\",'1. Order'!BH110)","v":""},{"$f":"IF('1. Order'!BI110=\"\",\"\",'1. Order'!BI110)","v":""},{"$f":"IF('1. Order'!BJ110=\"\",\"\",'1. Order'!BJ110)","v":""},{"$f":"IF('1. Order'!BK110=\"\",\"\",'1. Order'!BK110)","v":"ZWO"}]
[{"$f":"IF('1. Order'!G111=\"\",\"\",'1. Order'!G111)","v":""},{"$f":"IF('1. Order'!H111=\"\",\"\",'1. Order'!H111)","v":""},{"$f":"IF('1. Order'!I111=\"\",\"\",'1. Order'!I111)","v":""},{"$f":"IF('1. Order'!J111=\"\",\"\",'1. Order'!J111)","v":""},{"$f":"IF('1. Order'!K111=\"\",\"\",'1. Order'!K111)","v":""},{"$f":"IF('1. Order'!L111=\"\",\"\",'1. Order'!L111)","v":""},{"$f":"IF('1. Order'!M111=\"\",\"\",'1. Order'!M111)","v":""},{"$f":"IF('1. Order'!N111=\"\",\"\",'1. Order'!N111)","v":""},{"$f":"IF('1. Order'!P111=\"\",\"\",'1. Order'!P111)","v":""},{"$f":"IF('1. Order'!Q111=\"\",\"\",'1. Order'!Q111)","v":{"$error":"#N/A"}},{"$f":"IF('1. Order'!R111=\"\",\"\",'1. Order'!R111)","v":{"$error":"#N/A"}},{"$f":"IF('1. Order'!S111=\"\",\"\",'1. Order'!S111)","v":""},{"$f":"IF('1. Order'!T111=\"\",\"\",'1. Order'!T111)","v":""},{"$f":"IF('1. Order'!U111=\"\",\"\",'1. Order'!U111)","v":""},{"$f":"IF('1. Order'!X111=\"\",\"\",'1. Order'!X111)","v":""},{"$f":"IF('1. Order'!Y111=\"\",\"\",'1. Order'!Y111)","v":""},{"$f":"IF('1. Order'!Z111=\"\",\"\",'1. Order'!Z111)","v":""},{"$f":"IF('1. Order'!AC111=\"\",\"\",'1. Order'!AC111)","v":""},{"$f":"IF('1. Order'!AD111=\"\",\"\",'1. Order'!AD111)","v":""},{"$f":"IF('1. Order'!AE111=\"\",\"\",'1. Order'!AE111)","v":""},null,{"$f":"IF('1. Order'!AW111=\"\",\"\",'1. Order'!AW111)","v":""},{"$f":"IF('1. Order'!AX111=\"\",\"\",'1. Order'!AX111)","v":""},null,null,null,null,null,null,null,{"$f":"IF('1. Order'!BB111=\"\",\"\",'1. Order'!BB111)","v":""},{"$f":"IF('1. Order'!BC111=\"\",\"\",'1. Order'!BC111)","v":""},{"$f":"IF('1. Order'!BD111=\"\",\"\",'1. Order'!BD111)","v":""},{"$f":"IF('1. Order'!BE111=\"\",\"\",'1. Order'!BE111)","v":""},{"$f":"IF('1. Order'!BG111=\"\",\"\",'1. Order'!BG111)","v":""},{"$f":"IF('1. Order'!BH111=\"\",\"\",'1. Order'!BH111)","v":""},{"$f":"IF('1. Order'!BI111=\"\",\"\",'1. Order'!BI111)","v":""},{"$f":"IF('1. Order'!BJ111=\"\",\"\",'1. Order'!BJ111)","v":""},{"$f":"IF('1. Order'!BK111=\"\",\"\",'1. Order'!BK111)","v":"ZWO"}]
[{"$f":"IF('1. Order'!G112=\"\",\"\",'1. Order'!G112)","v":""},{"$f":"IF('1. Order'!H112=\"\",\"\",'1. Order'!H112)","v":""},{"$f":"IF('1. Order'!I112=\"\",\"\",'1. Order'!I112)","v":""},{"$f":"IF('1. Order'!J112=\"\",\"\",'1. Order'!J112)","v":""},{"$f":"IF('1. Order'!K112=\"\",\"\",'1. Order'!K112)","v":""},{"$f":"IF('1. Order'!L112=\"\",\"\",'1. Order'!L112)","v":""},{"$f":"IF('1. Order'!M112=\"\",\"\",'1. Order'!M112)","v":""},{"$f":"IF('1. Order'!N112=\"\",\"\",'1. Order'!N112)","v":""},{"$f":"IF('1. Order'!P112=\"\",\"\",'1. Order'!P112)","v":""},{"$f":"IF('1. Order'!Q112=\"\",\"\",'1. Order'!Q112)","v":{"$error":"#N/A"}},{"$f":"IF('1. Order'!R112=\"\",\"\",'1. Order'!R112)","v":{"$error":"#N/A"}},{"$f":"IF('1. Order'!S112=\"\",\"\",'1. Order'!S112)","v":""},{"$f":"IF('1. Order'!T112=\"\",\"\",'1. Order'!T112)","v":""},{"$f":"IF('1. Order'!U112=\"\",\"\",'1. Order'!U112)","v":""},{"$f":"IF('1. Order'!X112=\"\",\"\",'1. Order'!X112)","v":""},{"$f":"IF('1. Order'!Y112=\"\",\"\",'1. Order'!Y112)","v":""},{"$f":"IF('1. Order'!Z112=\"\",\"\",'1. Order'!Z112)","v":""},{"$f":"IF('1. Order'!AC112=\"\",\"\",'1. Order'!AC112)","v":""},{"$f":"IF('1. Order'!AD112=\"\",\"\",'1. Order'!AD112)","v":""},{"$f":"IF('1. Order'!AE112=\"\",\"\",'1. Order'!AE112)","v":""},null,{"$f":"IF('1. Order'!AW112=\"\",\"\",'1. Order'!AW112)","v":""},{"$f":"IF('1. Order'!AX112=\"\",\"\",'1. Order'!AX112)","v":""},null,null,null,null,null,null,null,{"$f":"IF('1. Order'!BB112=\"\",\"\",'1. Order'!BB112)","v":""},{"$f":"IF('1. Order'!BC112=\"\",\"\",'1. Order'!BC112)","v":""},{"$f":"IF('1. Order'!BD112=\"\",\"\",'1. Order'!BD112)","v":""},{"$f":"IF('1. Order'!BE112=\"\",\"\",'1. Order'!BE112)","v":""},{"$f":"IF('1. Order'!BG112=\"\",\"\",'1. Order'!BG112)","v":""},{"$f":"IF('1. Order'!BH112=\"\",\"\",'1. Order'!BH112)","v":""},{"$f":"IF('1. Order'!BI112=\"\",\"\",'1. Order'!BI112)","v":""},{"$f":"IF('1. Order'!BJ112=\"\",\"\",'1. Order'!BJ112)","v":""},{"$f":"IF('1. Order'!BK112=\"\",\"\",'1. Order'!BK112)","v":"ZWO"}]
[{"$f":"IF('1. Order'!G113=\"\",\"\",'1. Order'!G113)","v":""},{"$f":"IF('1. Order'!H113=\"\",\"\",'1. Order'!H113)","v":""},{"$f":"IF('1. Order'!I113=\"\",\"\",'1. Order'!I113)","v":""},{"$f":"IF('1. Order'!J113=\"\",\"\",'1. Order'!J113)","v":""},{"$f":"IF('1. Order'!K113=\"\",\"\",'1. Order'!K113)","v":""},{"$f":"IF('1. Order'!L113=\"\",\"\",'1. Order'!L113)","v":""},{"$f":"IF('1. Order'!M113=\"\",\"\",'1. Order'!M113)","v":""},{"$f":"IF('1. Order'!N113=\"\",\"\",'1. Order'!N113)","v":""},{"$f":"IF('1. Order'!P113=\"\",\"\",'1. Order'!P113)","v":""},{"$f":"IF('1. Order'!Q113=\"\",\"\",'1. Order'!Q113)","v":{"$error":"#N/A"}},{"$f":"IF('1. Order'!R113=\"\",\"\",'1. Order'!R113)","v":{"$error":"#N/A"}},{"$f":"IF('1. Order'!S113=\"\",\"\",'1. Order'!S113)","v":""},{"$f":"IF('1. Order'!T113=\"\",\"\",'1. Order'!T113)","v":""},{"$f":"IF('1. Order'!U113=\"\",\"\",'1. Order'!U113)","v":""},{"$f":"IF('1. Order'!X113=\"\",\"\",'1. Order'!X113)","v":""},{"$f":"IF('1. Order'!Y113=\"\",\"\",'1. Order'!Y113)","v":""},{"$f":"IF('1. Order'!Z113=\"\",\"\",'1. Order'!Z113)","v":""},{"$f":"IF('1. Order'!AC113=\"\",\"\",'1. Order'!AC113)","v":""},{"$f":"IF('1. Order'!AD113=\"\",\"\",'1. Order'!AD113)","v":""},{"$f":"IF('1. Order'!AE113=\"\",\"\",'1. Order'!AE113)","v":""},null,{"$f":"IF('1. Order'!AW113=\"\",\"\",'1. Order'!AW113)","v":""},{"$f":"IF('1. Order'!AX113=\"\",\"\",'1. Order'!AX113)","v":""},null,null,null,null,null,null,null,{"$f":"IF('1. Order'!BB113=\"\",\"\",'1. Order'!BB113)","v":""},{"$f":"IF('1. Order'!BC113=\"\",\"\",'1. Order'!BC113)","v":""},{"$f":"IF('1. Order'!BD113=\"\",\"\",'1. Order'!BD113)","v":""},{"$f":"IF('1. Order'!BE113=\"\",\"\",'1. Order'!BE113)","v":""},{"$f":"IF('1. Order'!BG113=\"\",\"\",'1. Order'!BG113)","v":""},{"$f":"IF('1. Order'!BH113=\"\",\"\",'1. Order'!BH113)","v":""},{"$f":"IF('1. Order'!BI113=\"\",\"\",'1. Order'!BI113)","v":""},{"$f":"IF('1. Order'!BJ113=\"\",\"\",'1. Order'!BJ113)","v":""},{"$f":"IF('1. Order'!BK113=\"\",\"\",'1. Order'!BK113)","v":"ZWO"}]
[{"$f":"IF('1. Order'!G114=\"\",\"\",'1. Order'!G114)","v":""},{"$f":"IF('1. Order'!H114=\"\",\"\",'1. Order'!H114)","v":""},{"$f":"IF('1. Order'!I114=\"\",\"\",'1. Order'!I114)","v":""},{"$f":"IF('1. Order'!J114=\"\",\"\",'1. Order'!J114)","v":""},{"$f":"IF('1. Order'!K114=\"\",\"\",'1. Order'!K114)","v":""},{"$f":"IF('1. Order'!L114=\"\",\"\",'1. Order'!L114)","v":""},{"$f":"IF('1. Order'!M114=\"\",\"\",'1. Order'!M114)","v":""},{"$f":"IF('1. Order'!N114=\"\",\"\",'1. Order'!N114)","v":""},{"$f":"IF('1. Order'!P114=\"\",\"\",'1. Order'!P114)","v":""},{"$f":"IF('1. Order'!Q114=\"\",\"\",'1. Order'!Q114)","v":{"$error":"#N/A"}},{"$f":"IF('1. Order'!R114=\"\",\"\",'1. Order'!R114)","v":{"$error":"#N/A"}},{"$f":"IF('1. Order'!S114=\"\",\"\",'1. Order'!S114)","v":""},{"$f":"IF('1. Order'!T114=\"\",\"\",'1. Order'!T114)","v":""},{"$f":"IF('1. Order'!U114=\"\",\"\",'1. Order'!U114)","v":""},{"$f":"IF('1. Order'!X114=\"\",\"\",'1. Order'!X114)","v":""},{"$f":"IF('1. Order'!Y114=\"\",\"\",'1. Order'!Y114)","v":""},{"$f":"IF('1. Order'!Z114=\"\",\"\",'1. Order'!Z114)","v":""},{"$f":"IF('1. Order'!AC114=\"\",\"\",'1. Order'!AC114)","v":""},{"$f":"IF('1. Order'!AD114=\"\",\"\",'1. Order'!AD114)","v":""},{"$f":"IF('1. Order'!AE114=\"\",\"\",'1. Order'!AE114)","v":""},null,{"$f":"IF('1. Order'!AW114=\"\",\"\",'1. Order'!AW114)","v":""},{"$f":"IF('1. Order'!AX114=\"\",\"\",'1. Order'!AX114)","v":""},null,null,null,null,null,null,null,{"$f":"IF('1. Order'!BB114=\"\",\"\",'1. Order'!BB114)","v":""},{"$f":"IF('1. Order'!BC114=\"\",\"\",'1. Order'!BC114)","v":""},{"$f":"IF('1. Order'!BD114=\"\",\"\",'1. Order'!BD114)","v":""},{"$f":"IF('1. Order'!BE114=\"\",\"\",'1. Order'!BE114)","v":""},{"$f":"IF('1. Order'!BG114=\"\",\"\",'1. Order'!BG114)","v":""},{"$f":"IF('1. Order'!BH114=\"\",\"\",'1. Order'!BH114)","v":""},{"$f":"IF('1. Order'!BI114=\"\",\"\",'1. Order'!BI114)","v":""},{"$f":"IF('1. Order'!BJ114=\"\",\"\",'1. Order'!BJ114)","v":""},{"$f":"IF('1. Order'!BK114=\"\",\"\",'1. Order'!BK114)","v":"ZWO"}]
[{"$f":"IF('1. Order'!G115=\"\",\"\",'1. Order'!G115)","v":""},{"$f":"IF('1. Order'!H115=\"\",\"\",'1. Order'!H115)","v":""},{"$f":"IF('1. Order'!I115=\"\",\"\",'1. Order'!I115)","v":""},{"$f":"IF('1. Order'!J115=\"\",\"\",'1. Order'!J115)","v":""},{"$f":"IF('1. Order'!K115=\"\",\"\",'1. Order'!K115)","v":""},{"$f":"IF('1. Order'!L115=\"\",\"\",'1. Order'!L115)","v":""},{"$f":"IF('1. Order'!M115=\"\",\"\",'1. Order'!M115)","v":""},{"$f":"IF('1. Order'!N115=\"\",\"\",'1. Order'!N115)","v":""},{"$f":"IF('1. Order'!P115=\"\",\"\",'1. Order'!P115)","v":""},{"$f":"IF('1. Order'!Q115=\"\",\"\",'1. Order'!Q115)","v":{"$error":"#N/A"}},{"$f":"IF('1. Order'!R115=\"\",\"\",'1. Order'!R115)","v":{"$error":"#N/A"}},{"$f":"IF('1. Order'!S115=\"\",\"\",'1. Order'!S115)","v":""},{"$f":"IF('1. Order'!T115=\"\",\"\",'1. Order'!T115)","v":""},{"$f":"IF('1. Order'!U115=\"\",\"\",'1. Order'!U115)","v":""},{"$f":"IF('1. Order'!X115=\"\",\"\",'1. Order'!X115)","v":""},{"$f":"IF('1. Order'!Y115=\"\",\"\",'1. Order'!Y115)","v":""},{"$f":"IF('1. Order'!Z115=\"\",\"\",'1. Order'!Z115)","v":""},{"$f":"IF('1. Order'!AC115=\"\",\"\",'1. Order'!AC115)","v":""},{"$f":"IF('1. Order'!AD115=\"\",\"\",'1. Order'!AD115)","v":""},{"$f":"IF('1. Order'!AE115=\"\",\"\",'1. Order'!AE115)","v":""},null,{"$f":"IF('1. Order'!AW115=\"\",\"\",'1. Order'!AW115)","v":""},{"$f":"IF('1. Order'!AX115=\"\",\"\",'1. Order'!AX115)","v":""},null,null,null,null,null,null,null,{"$f":"IF('1. Order'!BB115=\"\",\"\",'1. Order'!BB115)","v":""},{"$f":"IF('1. Order'!BC115=\"\",\"\",'1. Order'!BC115)","v":""},{"$f":"IF('1. Order'!BD115=\"\",\"\",'1. Order'!BD115)","v":""},{"$f":"IF('1. Order'!BE115=\"\",\"\",'1. Order'!BE115)","v":""},{"$f":"IF('1. Order'!BG115=\"\",\"\",'1. Order'!BG115)","v":""},{"$f":"IF('1. Order'!BH115=\"\",\"\",'1. Order'!BH115)","v":""},{"$f":"IF('1. Order'!BI115=\"\",\"\",'1. Order'!BI115)","v":""},{"$f":"IF('1. Order'!BJ115=\"\",\"\",'1. Order'!BJ115)","v":""},{"$f":"IF('1. Order'!BK115=\"\",\"\",'1. Order'!BK115)","v":"ZWO"}]
[{"$f":"IF('1. Order'!G116=\"\",\"\",'1. Order'!G116)","v":""},{"$f":"IF('1. Order'!H116=\"\",\"\",'1. Order'!H116)","v":""},{"$f":"IF('1. Order'!I116=\"\",\"\",'1. Order'!I116)","v":""},{"$f":"IF('1. Order'!J116=\"\",\"\",'1. Order'!J116)","v":""},{"$f":"IF('1. Order'!K116=\"\",\"\",'1. Order'!K116)","v":""},{"$f":"IF('1. Order'!L116=\"\",\"\",'1. Order'!L116)","v":""},{"$f":"IF('1. Order'!M116=\"\",\"\",'1. Order'!M116)","v":""},{"$f":"IF('1. Order'!N116=\"\",\"\",'1. Order'!N116)","v":""},{"$f":"IF('1. Order'!P116=\"\",\"\",'1. Order'!P116)","v":""},{"$f":"IF('1. Order'!Q116=\"\",\"\",'1. Order'!Q116)","v":{"$error":"#N/A"}},{"$f":"IF('1. Order'!R116=\"\",\"\",'1. Order'!R116)","v":{"$error":"#N/A"}},{"$f":"IF('1. Order'!S116=\"\",\"\",'1. Order'!S116)","v":""},{"$f":"IF('1. Order'!T116=\"\",\"\",'1. Order'!T116)","v":""},{"$f":"IF('1. Order'!U116=\"\",\"\",'1. Order'!U116)","v":""},{"$f":"IF('1. Order'!X116=\"\",\"\",'1. Order'!X116)","v":""},{"$f":"IF('1. Order'!Y116=\"\",\"\",'1. Order'!Y116)","v":""},{"$f":"IF('1. Order'!Z116=\"\",\"\",'1. Order'!Z116)","v":""},{"$f":"IF('1. Order'!AC116=\"\",\"\",'1. Order'!AC116)","v":""},{"$f":"IF('1. Order'!AD116=\"\",\"\",'1. Order'!AD116)","v":""},{"$f":"IF('1. Order'!AE116=\"\",\"\",'1. Order'!AE116)","v":""},null,{"$f":"IF('1. Order'!AW116=\"\",\"\",'1. Order'!AW116)","v":""},{"$f":"IF('1. Order'!AX116=\"\",\"\",'1. Order'!AX116)","v":""},null,null,null,null,null,null,null,{"$f":"IF('1. Order'!BB116=\"\",\"\",'1. Order'!BB116)","v":""},{"$f":"IF('1. Order'!BC116=\"\",\"\",'1. Order'!BC116)","v":""},{"$f":"IF('1. Order'!BD116=\"\",\"\",'1. Order'!BD116)","v":""},{"$f":"IF('1. Order'!BE116=\"\",\"\",'1. Order'!BE116)","v":""},{"$f":"IF('1. Order'!BG116=\"\",\"\",'1. Order'!BG116)","v":""},{"$f":"IF('1. Order'!BH116=\"\",\"\",'1. Order'!BH116)","v":""},{"$f":"IF('1. Order'!BI116=\"\",\"\",'1. Order'!BI116)","v":""},{"$f":"IF('1. Order'!BJ116=\"\",\"\",'1. Order'!BJ116)","v":""},{"$f":"IF('1. Order'!BK116=\"\",\"\",'1. Order'!BK116)","v":"ZWO"}]
[{"$f":"IF('1. Order'!G117=\"\",\"\",'1. Order'!G117)","v":""},{"$f":"IF('1. Order'!H117=\"\",\"\",'1. Order'!H117)","v":""},{"$f":"IF('1. Order'!I117=\"\",\"\",'1. Order'!I117)","v":""},{"$f":"IF('1. Order'!J117=\"\",\"\",'1. Order'!J117)","v":""},{"$f":"IF('1. Order'!K117=\"\",\"\",'1. Order'!K117)","v":""},{"$f":"IF('1. Order'!L117=\"\",\"\",'1. Order'!L117)","v":""},{"$f":"IF('1. Order'!M117=\"\",\"\",'1. Order'!M117)","v":""},{"$f":"IF('1. Order'!N117=\"\",\"\",'1. Order'!N117)","v":""},{"$f":"IF('1. Order'!P117=\"\",\"\",'1. Order'!P117)","v":""},{"$f":"IF('1. Order'!Q117=\"\",\"\",'1. Order'!Q117)","v":{"$error":"#N/A"}},{"$f":"IF('1. Order'!R117=\"\",\"\",'1. Order'!R117)","v":{"$error":"#N/A"}},{"$f":"IF('1. Order'!S117=\"\",\"\",'1. Order'!S117)","v":""},{"$f":"IF('1. Order'!T117=\"\",\"\",'1. Order'!T117)","v":""},{"$f":"IF('1. Order'!U117=\"\",\"\",'1. Order'!U117)","v":""},{"$f":"IF('1. Order'!X117=\"\",\"\",'1. Order'!X117)","v":""},{"$f":"IF('1. Order'!Y117=\"\",\"\",'1. Order'!Y117)","v":""},{"$f":"IF('1. Order'!Z117=\"\",\"\",'1. Order'!Z117)","v":""},{"$f":"IF('1. Order'!AC117=\"\",\"\",'1. Order'!AC117)","v":""},{"$f":"IF('1. Order'!AD117=\"\",\"\",'1. Order'!AD117)","v":""},{"$f":"IF('1. Order'!AE117=\"\",\"\",'1. Order'!AE117)","v":""},null,{"$f":"IF('1. Order'!AW117=\"\",\"\",'1. Order'!AW117)","v":""},{"$f":"IF('1. Order'!AX117=\"\",\"\",'1. Order'!AX117)","v":""},null,null,null,null,null,null,null,{"$f":"IF('1. Order'!BB117=\"\",\"\",'1. Order'!BB117)","v":""},{"$f":"IF('1. Order'!BC117=\"\",\"\",'1. Order'!BC117)","v":""},{"$f":"IF('1. Order'!BD117=\"\",\"\",'1. Order'!BD117)","v":""},{"$f":"IF('1. Order'!BE117=\"\",\"\",'1. Order'!BE117)","v":""},{"$f":"IF('1. Order'!BG117=\"\",\"\",'1. Order'!BG117)","v":""},{"$f":"IF('1. Order'!BH117=\"\",\"\",'1. Order'!BH117)","v":""},{"$f":"IF('1. Order'!BI117=\"\",\"\",'1. Order'!BI117)","v":""},{"$f":"IF('1. Order'!BJ117=\"\",\"\",'1. Order'!BJ117)","v":""},{"$f":"IF('1. Order'!BK117=\"\",\"\",'1. Order'!BK117)","v":"ZWO"}]
[{"$f":"IF('1. Order'!G118=\"\",\"\",'1. Order'!G118)","v":""},{"$f":"IF('1. Order'!H118=\"\",\"\",'1. Order'!H118)","v":""},{"$f":"IF('1. Order'!I118=\"\",\"\",'1. Order'!I118)","v":""},{"$f":"IF('1. Order'!J118=\"\",\"\",'1. Order'!J118)","v":""},{"$f":"IF('1. Order'!K118=\"\",\"\",'1. Order'!K118)","v":""},{"$f":"IF('1. Order'!L118=\"\",\"\",'1. Order'!L118)","v":""},{"$f":"IF('1. Order'!M118=\"\",\"\",'1. Order'!M118)","v":""},{"$f":"IF('1. Order'!N118=\"\",\"\",'1. Order'!N118)","v":""},{"$f":"IF('1. Order'!P118=\"\",\"\",'1. Order'!P118)","v":""},{"$f":"IF('1. Order'!Q118=\"\",\"\",'1. Order'!Q118)","v":{"$error":"#N/A"}},{"$f":"IF('1. Order'!R118=\"\",\"\",'1. Order'!R118)","v":{"$error":"#N/A"}},{"$f":"IF('1. Order'!S118=\"\",\"\",'1. Order'!S118)","v":""},{"$f":"IF('1. Order'!T118=\"\",\"\",'1. Order'!T118)","v":""},{"$f":"IF('1. Order'!U118=\"\",\"\",'1. Order'!U118)","v":""},{"$f":"IF('1. Order'!X118=\"\",\"\",'1. Order'!X118)","v":""},{"$f":"IF('1. Order'!Y118=\"\",\"\",'1. Order'!Y118)","v":""},{"$f":"IF('1. Order'!Z118=\"\",\"\",'1. Order'!Z118)","v":""},{"$f":"IF('1. Order'!AC118=\"\",\"\",'1. Order'!AC118)","v":""},{"$f":"IF('1. Order'!AD118=\"\",\"\",'1. Order'!AD118)","v":""},{"$f":"IF('1. Order'!AE118=\"\",\"\",'1. Order'!AE118)","v":""},null,{"$f":"IF('1. Order'!AW118=\"\",\"\",'1. Order'!AW118)","v":""},{"$f":"IF('1. Order'!AX118=\"\",\"\",'1. Order'!AX118)","v":""},null,null,null,null,null,null,null,{"$f":"IF('1. Order'!BB118=\"\",\"\",'1. Order'!BB118)","v":""},{"$f":"IF('1. Order'!BC118=\"\",\"\",'1. Order'!BC118)","v":""},{"$f":"IF('1. Order'!BD118=\"\",\"\",'1. Order'!BD118)","v":""},{"$f":"IF('1. Order'!BE118=\"\",\"\",'1. Order'!BE118)","v":""},{"$f":"IF('1. Order'!BG118=\"\",\"\",'1. Order'!BG118)","v":""},{"$f":"IF('1. Order'!BH118=\"\",\"\",'1. Order'!BH118)","v":""},{"$f":"IF('1. Order'!BI118=\"\",\"\",'1. Order'!BI118)","v":""},{"$f":"IF('1. Order'!BJ118=\"\",\"\",'1. Order'!BJ118)","v":""},{"$f":"IF('1. Order'!BK118=\"\",\"\",'1. Order'!BK118)","v":"ZWO"}]
[{"$f":"IF('1. Order'!G119=\"\",\"\",'1. Order'!G119)","v":""},{"$f":"IF('1. Order'!H119=\"\",\"\",'1. Order'!H119)","v":""},{"$f":"IF('1. Order'!I119=\"\",\"\",'1. Order'!I119)","v":""},{"$f":"IF('1. Order'!J119=\"\",\"\",'1. Order'!J119)","v":""},{"$f":"IF('1. Order'!K119=\"\",\"\",'1. Order'!K119)","v":""},{"$f":"IF('1. Order'!L119=\"\",\"\",'1. Order'!L119)","v":""},{"$f":"IF('1. Order'!M119=\"\",\"\",'1. Order'!M119)","v":""},{"$f":"IF('1. Order'!N119=\"\",\"\",'1. Order'!N119)","v":""},{"$f":"IF('1. Order'!P119=\"\",\"\",'1. Order'!P119)","v":""},{"$f":"IF('1. Order'!Q119=\"\",\"\",'1. Order'!Q119)","v":{"$error":"#N/A"}},{"$f":"IF('1. Order'!R119=\"\",\"\",'1. Order'!R119)","v":{"$error":"#N/A"}},{"$f":"IF('1. Order'!S119=\"\",\"\",'1. Order'!S119)","v":""},{"$f":"IF('1. Order'!T119=\"\",\"\",'1. Order'!T119)","v":""},{"$f":"IF('1. Order'!U119=\"\",\"\",'1. Order'!U119)","v":""},{"$f":"IF('1. Order'!X119=\"\",\"\",'1. Order'!X119)","v":""},{"$f":"IF('1. Order'!Y119=\"\",\"\",'1. Order'!Y119)","v":""},{"$f":"IF('1. Order'!Z119=\"\",\"\",'1. Order'!Z119)","v":""},{"$f":"IF('1. Order'!AC119=\"\",\"\",'1. Order'!AC119)","v":""},{"$f":"IF('1. Order'!AD119=\"\",\"\",'1. Order'!AD119)","v":""},{"$f":"IF('1. Order'!AE119=\"\",\"\",'1. Order'!AE119)","v":""},null,{"$f":"IF('1. Order'!AW119=\"\",\"\",'1. Order'!AW119)","v":""},{"$f":"IF('1. Order'!AX119=\"\",\"\",'1. Order'!AX119)","v":""},null,null,null,null,null,null,null,{"$f":"IF('1. Order'!BB119=\"\",\"\",'1. Order'!BB119)","v":""},{"$f":"IF('1. Order'!BC119=\"\",\"\",'1. Order'!BC119)","v":""},{"$f":"IF('1. Order'!BD119=\"\",\"\",'1. Order'!BD119)","v":""},{"$f":"IF('1. Order'!BE119=\"\",\"\",'1. Order'!BE119)","v":""},{"$f":"IF('1. Order'!BG119=\"\",\"\",'1. Order'!BG119)","v":""},{"$f":"IF('1. Order'!BH119=\"\",\"\",'1. Order'!BH119)","v":""},{"$f":"IF('1. Order'!BI119=\"\",\"\",'1. Order'!BI119)","v":""},{"$f":"IF('1. Order'!BJ119=\"\",\"\",'1. Order'!BJ119)","v":""},{"$f":"IF('1. Order'!BK119=\"\",\"\",'1. Order'!BK119)","v":"ZWO"}]
[{"$f":"IF('1. Order'!G120=\"\",\"\",'1. Order'!G120)","v":""},{"$f":"IF('1. Order'!H120=\"\",\"\",'1. Order'!H120)","v":""},{"$f":"IF('1. Order'!I120=\"\",\"\",'1. Order'!I120)","v":""},{"$f":"IF('1. Order'!J120=\"\",\"\",'1. Order'!J120)","v":""},{"$f":"IF('1. Order'!K120=\"\",\"\",'1. Order'!K120)","v":""},{"$f":"IF('1. Order'!L120=\"\",\"\",'1. Order'!L120)","v":""},{"$f":"IF('1. Order'!M120=\"\",\"\",'1. Order'!M120)","v":""},{"$f":"IF('1. Order'!N120=\"\",\"\",'1. Order'!N120)","v":""},{"$f":"IF('1. Order'!P120=\"\",\"\",'1. Order'!P120)","v":""},{"$f":"IF('1. Order'!Q120=\"\",\"\",'1. Order'!Q120)","v":{"$error":"#N/A"}},{"$f":"IF('1. Order'!R120=\"\",\"\",'1. Order'!R120)","v":{"$error":"#N/A"}},{"$f":"IF('1. Order'!S120=\"\",\"\",'1. Order'!S120)","v":""},{"$f":"IF('1. Order'!T120=\"\",\"\",'1. Order'!T120)","v":""},{"$f":"IF('1. Order'!U120=\"\",\"\",'1. Order'!U120)","v":""},{"$f":"IF('1. Order'!X120=\"\",\"\",'1. Order'!X120)","v":""},{"$f":"IF('1. Order'!Y120=\"\",\"\",'1. Order'!Y120)","v":""},{"$f":"IF('1. Order'!Z120=\"\",\"\",'1. Order'!Z120)","v":""},{"$f":"IF('1. Order'!AC120=\"\",\"\",'1. Order'!AC120)","v":""},{"$f":"IF('1. Order'!AD120=\"\",\"\",'1. Order'!AD120)","v":""},{"$f":"IF('1. Order'!AE120=\"\",\"\",'1. Order'!AE120)","v":""},null,{"$f":"IF('1. Order'!AW120=\"\",\"\",'1. Order'!AW120)","v":""},{"$f":"IF('1. Order'!AX120=\"\",\"\",'1. Order'!AX120)","v":""},null,null,null,null,null,null,null,{"$f":"IF('1. Order'!BB120=\"\",\"\",'1. Order'!BB120)","v":""},{"$f":"IF('1. Order'!BC120=\"\",\"\",'1. Order'!BC120)","v":""},{"$f":"IF('1. Order'!BD120=\"\",\"\",'1. Order'!BD120)","v":""},{"$f":"IF('1. Order'!BE120=\"\",\"\",'1. Order'!BE120)","v":""},{"$f":"IF('1. Order'!BG120=\"\",\"\",'1. Order'!BG120)","v":""},{"$f":"IF('1. Order'!BH120=\"\",\"\",'1. Order'!BH120)","v":""},{"$f":"IF('1. Order'!BI120=\"\",\"\",'1. Order'!BI120)","v":""},{"$f":"IF('1. Order'!BJ120=\"\",\"\",'1. Order'!BJ120)","v":""},{"$f":"IF('1. Order'!BK120=\"\",\"\",'1. Order'!BK120)","v":"ZWO"}]
[{"$f":"IF('1. Order'!G121=\"\",\"\",'1. Order'!G121)","v":""},{"$f":"IF('1. Order'!H121=\"\",\"\",'1. Order'!H121)","v":""},{"$f":"IF('1. Order'!I121=\"\",\"\",'1. Order'!I121)","v":""},{"$f":"IF('1. Order'!J121=\"\",\"\",'1. Order'!J121)","v":""},{"$f":"IF('1. Order'!K121=\"\",\"\",'1. Order'!K121)","v":""},{"$f":"IF('1. Order'!L121=\"\",\"\",'1. Order'!L121)","v":""},{"$f":"IF('1. Order'!M121=\"\",\"\",'1. Order'!M121)","v":""},{"$f":"IF('1. Order'!N121=\"\",\"\",'1. Order'!N121)","v":""},{"$f":"IF('1. Order'!P121=\"\",\"\",'1. Order'!P121)","v":""},{"$f":"IF('1. Order'!Q121=\"\",\"\",'1. Order'!Q121)","v":{"$error":"#N/A"}},{"$f":"IF('1. Order'!R121=\"\",\"\",'1. Order'!R121)","v":{"$error":"#N/A"}},{"$f":"IF('1. Order'!S121=\"\",\"\",'1. Order'!S121)","v":""},{"$f":"IF('1. Order'!T121=\"\",\"\",'1. Order'!T121)","v":""},{"$f":"IF('1. Order'!U121=\"\",\"\",'1. Order'!U121)","v":""},{"$f":"IF('1. Order'!X121=\"\",\"\",'1. Order'!X121)","v":""},{"$f":"IF('1. Order'!Y121=\"\",\"\",'1. Order'!Y121)","v":""},{"$f":"IF('1. Order'!Z121=\"\",\"\",'1. Order'!Z121)","v":""},{"$f":"IF('1. Order'!AC121=\"\",\"\",'1. Order'!AC121)","v":""},{"$f":"IF('1. Order'!AD121=\"\",\"\",'1. Order'!AD121)","v":""},{"$f":"IF('1. Order'!AE121=\"\",\"\",'1. Order'!AE121)","v":""},null,{"$f":"IF('1. Order'!AW121=\"\",\"\",'1. Order'!AW121)","v":""},{"$f":"IF('1. Order'!AX121=\"\",\"\",'1. Order'!AX121)","v":""},null,null,null,null,null,null,null,{"$f":"IF('1. Order'!BB121=\"\",\"\",'1. Order'!BB121)","v":""},{"$f":"IF('1. Order'!BC121=\"\",\"\",'1. Order'!BC121)","v":""},{"$f":"IF('1. Order'!BD121=\"\",\"\",'1. Order'!BD121)","v":""},{"$f":"IF('1. Order'!BE121=\"\",\"\",'1. Order'!BE121)","v":""},{"$f":"IF('1. Order'!BG121=\"\",\"\",'1. Order'!BG121)","v":""},{"$f":"IF('1. Order'!BH121=\"\",\"\",'1. Order'!BH121)","v":""},{"$f":"IF('1. Order'!BI121=\"\",\"\",'1. Order'!BI121)","v":""},{"$f":"IF('1. Order'!BJ121=\"\",\"\",'1. Order'!BJ121)","v":""},{"$f":"IF('1. Order'!BK121=\"\",\"\",'1. Order'!BK121)","v":"ZWO"}]
[{"$f":"IF('1. Order'!G122=\"\",\"\",'1. Order'!G122)","v":""},{"$f":"IF('1. Order'!H122=\"\",\"\",'1. Order'!H122)","v":""},{"$f":"IF('1. Order'!I122=\"\",\"\",'1. Order'!I122)","v":""},{"$f":"IF('1. Order'!J122=\"\",\"\",'1. Order'!J122)","v":""},{"$f":"IF('1. Order'!K122=\"\",\"\",'1. Order'!K122)","v":""},{"$f":"IF('1. Order'!L122=\"\",\"\",'1. Order'!L122)","v":""},{"$f":"IF('1. Order'!M122=\"\",\"\",'1. Order'!M122)","v":""},{"$f":"IF('1. Order'!N122=\"\",\"\",'1. Order'!N122)","v":""},{"$f":"IF('1. Order'!P122=\"\",\"\",'1. Order'!P122)","v":""},{"$f":"IF('1. Order'!Q122=\"\",\"\",'1. Order'!Q122)","v":{"$error":"#N/A"}},{"$f":"IF('1. Order'!R122=\"\",\"\",'1. Order'!R122)","v":{"$error":"#N/A"}},{"$f":"IF('1. Order'!S122=\"\",\"\",'1. Order'!S122)","v":""},{"$f":"IF('1. Order'!T122=\"\",\"\",'1. Order'!T122)","v":""},{"$f":"IF('1. Order'!U122=\"\",\"\",'1. Order'!U122)","v":""},{"$f":"IF('1. Order'!X122=\"\",\"\",'1. Order'!X122)","v":""},{"$f":"IF('1. Order'!Y122=\"\",\"\",'1. Order'!Y122)","v":""},{"$f":"IF('1. Order'!Z122=\"\",\"\",'1. Order'!Z122)","v":""},{"$f":"IF('1. Order'!AC122=\"\",\"\",'1. Order'!AC122)","v":""},{"$f":"IF('1. Order'!AD122=\"\",\"\",'1. Order'!AD122)","v":""},{"$f":"IF('1. Order'!AE122=\"\",\"\",'1. Order'!AE122)","v":""},null,{"$f":"IF('1. Order'!AW122=\"\",\"\",'1. Order'!AW122)","v":""},{"$f":"IF('1. Order'!AX122=\"\",\"\",'1. Order'!AX122)","v":""},null,null,null,null,null,null,null,{"$f":"IF('1. Order'!BB122=\"\",\"\",'1. Order'!BB122)","v":""},{"$f":"IF('1. Order'!BC122=\"\",\"\",'1. Order'!BC122)","v":""},{"$f":"IF('1. Order'!BD122=\"\",\"\",'1. Order'!BD122)","v":""},{"$f":"IF('1. Order'!BE122=\"\",\"\",'1. Order'!BE122)","v":""},{"$f":"IF('1. Order'!BG122=\"\",\"\",'1. Order'!BG122)","v":""},{"$f":"IF('1. Order'!BH122=\"\",\"\",'1. Order'!BH122)","v":""},{"$f":"IF('1. Order'!BI122=\"\",\"\",'1. Order'!BI122)","v":""},{"$f":"IF('1. Order'!BJ122=\"\",\"\",'1. Order'!BJ122)","v":""},{"$f":"IF('1. Order'!BK122=\"\",\"\",'1. Order'!BK122)","v":"ZWO"}]
[{"$f":"IF('1. Order'!G123=\"\",\"\",'1. Order'!G123)","v":""},{"$f":"IF('1. Order'!H123=\"\",\"\",'1. Order'!H123)","v":""},{"$f":"IF('1. Order'!I123=\"\",\"\",'1. Order'!I123)","v":""},{"$f":"IF('1. Order'!J123=\"\",\"\",'1. Order'!J123)","v":""},{"$f":"IF('1. Order'!K123=\"\",\"\",'1. Order'!K123)","v":""},{"$f":"IF('1. Order'!L123=\"\",\"\",'1. Order'!L123)","v":""},{"$f":"IF('1. Order'!M123=\"\",\"\",'1. Order'!M123)","v":""},{"$f":"IF('1. Order'!N123=\"\",\"\",'1. Order'!N123)","v":""},{"$f":"IF('1. Order'!P123=\"\",\"\",'1. Order'!P123)","v":""},{"$f":"IF('1. Order'!Q123=\"\",\"\",'1. Order'!Q123)","v":{"$error":"#N/A"}},{"$f":"IF('1. Order'!R123=\"\",\"\",'1. Order'!R123)","v":{"$error":"#N/A"}},{"$f":"IF('1. Order'!S123=\"\",\"\",'1. Order'!S123)","v":""},{"$f":"IF('1. Order'!T123=\"\",\"\",'1. Order'!T123)","v":""},{"$f":"IF('1. Order'!U123=\"\",\"\",'1. Order'!U123)","v":""},{"$f":"IF('1. Order'!X123=\"\",\"\",'1. Order'!X123)","v":""},{"$f":"IF('1. Order'!Y123=\"\",\"\",'1. Order'!Y123)","v":""},{"$f":"IF('1. Order'!Z123=\"\",\"\",'1. Order'!Z123)","v":""},{"$f":"IF('1. Order'!AC123=\"\",\"\",'1. Order'!AC123)","v":""},{"$f":"IF('1. Order'!AD123=\"\",\"\",'1. Order'!AD123)","v":""},{"$f":"IF('1. Order'!AE123=\"\",\"\",'1. Order'!AE123)","v":""},null,{"$f":"IF('1. Order'!AW123=\"\",\"\",'1. Order'!AW123)","v":""},{"$f":"IF('1. Order'!AX123=\"\",\"\",'1. Order'!AX123)","v":""},null,null,null,null,null,null,null,{"$f":"IF('1. Order'!BB123=\"\",\"\",'1. Order'!BB123)","v":""},{"$f":"IF('1. Order'!BC123=\"\",\"\",'1. Order'!BC123)","v":""},{"$f":"IF('1. Order'!BD123=\"\",\"\",'1. Order'!BD123)","v":""},{"$f":"IF('1. Order'!BE123=\"\",\"\",'1. Order'!BE123)","v":""},{"$f":"IF('1. Order'!BG123=\"\",\"\",'1. Order'!BG123)","v":""},{"$f":"IF('1. Order'!BH123=\"\",\"\",'1. Order'!BH123)","v":""},{"$f":"IF('1. Order'!BI123=\"\",\"\",'1. Order'!BI123)","v":""},{"$f":"IF('1. Order'!BJ123=\"\",\"\",'1. Order'!BJ123)","v":""},{"$f":"IF('1. Order'!BK123=\"\",\"\",'1. Order'!BK123)","v":"ZWO"}]
[{"$f":"IF('1. Order'!G124=\"\",\"\",'1. Order'!G124)","v":""},{"$f":"IF('1. Order'!H124=\"\",\"\",'1. Order'!H124)","v":""},{"$f":"IF('1. Order'!I124=\"\",\"\",'1. Order'!I124)","v":""},{"$f":"IF('1. Order'!J124=\"\",\"\",'1. Order'!J124)","v":""},{"$f":"IF('1. Order'!K124=\"\",\"\",'1. Order'!K124)","v":""},{"$f":"IF('1. Order'!L124=\"\",\"\",'1. Order'!L124)","v":""},{"$f":"IF('1. Order'!M124=\"\",\"\",'1. Order'!M124)","v":""},{"$f":"IF('1. Order'!N124=\"\",\"\",'1. Order'!N124)","v":""},{"$f":"IF('1. Order'!P124=\"\",\"\",'1. Order'!P124)","v":""},{"$f":"IF('1. Order'!Q124=\"\",\"\",'1. Order'!Q124)","v":{"$error":"#N/A"}},{"$f":"IF('1. Order'!R124=\"\",\"\",'1. Order'!R124)","v":{"$error":"#N/A"}},{"$f":"IF('1. Order'!S124=\"\",\"\",'1. Order'!S124)","v":""},{"$f":"IF('1. Order'!T124=\"\",\"\",'1. Order'!T124)","v":""},{"$f":"IF('1. Order'!U124=\"\",\"\",'1. Order'!U124)","v":""},{"$f":"IF('1. Order'!X124=\"\",\"\",'1. Order'!X124)","v":""},{"$f":"IF('1. Order'!Y124=\"\",\"\",'1. Order'!Y124)","v":""},{"$f":"IF('1. Order'!Z124=\"\",\"\",'1. Order'!Z124)","v":""},{"$f":"IF('1. Order'!AC124=\"\",\"\",'1. Order'!AC124)","v":""},{"$f":"IF('1. Order'!AD124=\"\",\"\",'1. Order'!AD124)","v":""},{"$f":"IF('1. Order'!AE124=\"\",\"\",'1. Order'!AE124)","v":""},null,{"$f":"IF('1. Order'!AW124=\"\",\"\",'1. Order'!AW124)","v":""},{"$f":"IF('1. Order'!AX124=\"\",\"\",'1. Order'!AX124)","v":""},null,null,null,null,null,null,null,{"$f":"IF('1. Order'!BB124=\"\",\"\",'1. Order'!BB124)","v":""},{"$f":"IF('1. Order'!BC124=\"\",\"\",'1. Order'!BC124)","v":""},{"$f":"IF('1. Order'!BD124=\"\",\"\",'1. Order'!BD124)","v":""},{"$f":"IF('1. Order'!BE124=\"\",\"\",'1. Order'!BE124)","v":""},{"$f":"IF('1. Order'!BG124=\"\",\"\",'1. Order'!BG124)","v":""},{"$f":"IF('1. Order'!BH124=\"\",\"\",'1. Order'!BH124)","v":""},{"$f":"IF('1. Order'!BI124=\"\",\"\",'1. Order'!BI124)","v":""},{"$f":"IF('1. Order'!BJ124=\"\",\"\",'1. Order'!BJ124)","v":""},{"$f":"IF('1. Order'!BK124=\"\",\"\",'1. Order'!BK124)","v":"ZWO"}]
[{"$f":"IF('1. Order'!G125=\"\",\"\",'1. Order'!G125)","v":""},{"$f":"IF('1. Order'!H125=\"\",\"\",'1. Order'!H125)","v":""},{"$f":"IF('1. Order'!I125=\"\",\"\",'1. Order'!I125)","v":""},{"$f":"IF('1. Order'!J125=\"\",\"\",'1. Order'!J125)","v":""},{"$f":"IF('1. Order'!K125=\"\",\"\",'1. Order'!K125)","v":""},{"$f":"IF('1. Order'!L125=\"\",\"\",'1. Order'!L125)","v":""},{"$f":"IF('1. Order'!M125=\"\",\"\",'1. Order'!M125)","v":""},{"$f":"IF('1. Order'!N125=\"\",\"\",'1. Order'!N125)","v":""},{"$f":"IF('1. Order'!P125=\"\",\"\",'1. Order'!P125)","v":""},{"$f":"IF('1. Order'!Q125=\"\",\"\",'1. Order'!Q125)","v":{"$error":"#N/A"}},{"$f":"IF('1. Order'!R125=\"\",\"\",'1. Order'!R125)","v":{"$error":"#N/A"}},{"$f":"IF('1. Order'!S125=\"\",\"\",'1. Order'!S125)","v":""},{"$f":"IF('1. Order'!T125=\"\",\"\",'1. Order'!T125)","v":""},{"$f":"IF('1. Order'!U125=\"\",\"\",'1. Order'!U125)","v":""},{"$f":"IF('1. Order'!X125=\"\",\"\",'1. Order'!X125)","v":""},{"$f":"IF('1. Order'!Y125=\"\",\"\",'1. Order'!Y125)","v":""},{"$f":"IF('1. Order'!Z125=\"\",\"\",'1. Order'!Z125)","v":""},{"$f":"IF('1. Order'!AC125=\"\",\"\",'1. Order'!AC125)","v":""},{"$f":"IF('1. Order'!AD125=\"\",\"\",'1. Order'!AD125)","v":""},{"$f":"IF('1. Order'!AE125=\"\",\"\",'1. Order'!AE125)","v":""},null,{"$f":"IF('1. Order'!AW125=\"\",\"\",'1. Order'!AW125)","v":""},{"$f":"IF('1. Order'!AX125=\"\",\"\",'1. Order'!AX125)","v":""},null,null,null,null,null,null,null,{"$f":"IF('1. Order'!BB125=\"\",\"\",'1. Order'!BB125)","v":""},{"$f":"IF('1. Order'!BC125=\"\",\"\",'1. Order'!BC125)","v":""},{"$f":"IF('1. Order'!BD125=\"\",\"\",'1. Order'!BD125)","v":""},{"$f":"IF('1. Order'!BE125=\"\",\"\",'1. Order'!BE125)","v":""},{"$f":"IF('1. Order'!BG125=\"\",\"\",'1. Order'!BG125)","v":""},{"$f":"IF('1. Order'!BH125=\"\",\"\",'1. Order'!BH125)","v":""},{"$f":"IF('1. Order'!BI125=\"\",\"\",'1. Order'!BI125)","v":""},{"$f":"IF('1. Order'!BJ125=\"\",\"\",'1. Order'!BJ125)","v":""},{"$f":"IF('1. Order'!BK125=\"\",\"\",'1. Order'!BK125)","v":"ZWO"}]
[{"$f":"IF('1. Order'!G126=\"\",\"\",'1. Order'!G126)","v":""},{"$f":"IF('1. Order'!H126=\"\",\"\",'1. Order'!H126)","v":""},{"$f":"IF('1. Order'!I126=\"\",\"\",'1. Order'!I126)","v":""},{"$f":"IF('1. Order'!J126=\"\",\"\",'1. Order'!J126)","v":""},{"$f":"IF('1. Order'!K126=\"\",\"\",'1. Order'!K126)","v":""},{"$f":"IF('1. Order'!L126=\"\",\"\",'1. Order'!L126)","v":""},{"$f":"IF('1. Order'!M126=\"\",\"\",'1. Order'!M126)","v":""},{"$f":"IF('1. Order'!N126=\"\",\"\",'1. Order'!N126)","v":""},{"$f":"IF('1. Order'!P126=\"\",\"\",'1. Order'!P126)","v":""},{"$f":"IF('1. Order'!Q126=\"\",\"\",'1. Order'!Q126)","v":{"$error":"#N/A"}},{"$f":"IF('1. Order'!R126=\"\",\"\",'1. Order'!R126)","v":{"$error":"#N/A"}},{"$f":"IF('1. Order'!S126=\"\",\"\",'1. Order'!S126)","v":""},{"$f":"IF('1. Order'!T126=\"\",\"\",'1. Order'!T126)","v":""},{"$f":"IF('1. Order'!U126=\"\",\"\",'1. Order'!U126)","v":""},{"$f":"IF('1. Order'!X126=\"\",\"\",'1. Order'!X126)","v":""},{"$f":"IF('1. Order'!Y126=\"\",\"\",'1. Order'!Y126)","v":""},{"$f":"IF('1. Order'!Z126=\"\",\"\",'1. Order'!Z126)","v":""},{"$f":"IF('1. Order'!AC126=\"\",\"\",'1. Order'!AC126)","v":""},{"$f":"IF('1. Order'!AD126=\"\",\"\",'1. Order'!AD126)","v":""},{"$f":"IF('1. Order'!AE126=\"\",\"\",'1. Order'!AE126)","v":""},null,{"$f":"IF('1. Order'!AW126=\"\",\"\",'1. Order'!AW126)","v":""},{"$f":"IF('1. Order'!AX126=\"\",\"\",'1. Order'!AX126)","v":""},null,null,null,null,null,null,null,{"$f":"IF('1. Order'!BB126=\"\",\"\",'1. Order'!BB126)","v":""},{"$f":"IF('1. Order'!BC126=\"\",\"\",'1. Order'!BC126)","v":""},{"$f":"IF('1. Order'!BD126=\"\",\"\",'1. Order'!BD126)","v":""},{"$f":"IF('1. Order'!BE126=\"\",\"\",'1. Order'!BE126)","v":""},{"$f":"IF('1. Order'!BG126=\"\",\"\",'1. Order'!BG126)","v":""},{"$f":"IF('1. Order'!BH126=\"\",\"\",'1. Order'!BH126)","v":""},{"$f":"IF('1. Order'!BI126=\"\",\"\",'1. Order'!BI126)","v":""},{"$f":"IF('1. Order'!BJ126=\"\",\"\",'1. Order'!BJ126)","v":""},{"$f":"IF('1. Order'!BK126=\"\",\"\",'1. Order'!BK126)","v":"ZWO"}]
[{"$f":"IF('1. Order'!G127=\"\",\"\",'1. Order'!G127)","v":""},{"$f":"IF('1. Order'!H127=\"\",\"\",'1. Order'!H127)","v":""},{"$f":"IF('1. Order'!I127=\"\",\"\",'1. Order'!I127)","v":""},{"$f":"IF('1. Order'!J127=\"\",\"\",'1. Order'!J127)","v":""},{"$f":"IF('1. Order'!K127=\"\",\"\",'1. Order'!K127)","v":""},{"$f":"IF('1. Order'!L127=\"\",\"\",'1. Order'!L127)","v":""},{"$f":"IF('1. Order'!M127=\"\",\"\",'1. Order'!M127)","v":""},{"$f":"IF('1. Order'!N127=\"\",\"\",'1. Order'!N127)","v":""},{"$f":"IF('1. Order'!P127=\"\",\"\",'1. Order'!P127)","v":""},{"$f":"IF('1. Order'!Q127=\"\",\"\",'1. Order'!Q127)","v":{"$error":"#N/A"}},{"$f":"IF('1. Order'!R127=\"\",\"\",'1. Order'!R127)","v":{"$error":"#N/A"}},{"$f":"IF('1. Order'!S127=\"\",\"\",'1. Order'!S127)","v":""},{"$f":"IF('1. Order'!T127=\"\",\"\",'1. Order'!T127)","v":""},{"$f":"IF('1. Order'!U127=\"\",\"\",'1. Order'!U127)","v":""},{"$f":"IF('1. Order'!X127=\"\",\"\",'1. Order'!X127)","v":""},{"$f":"IF('1. Order'!Y127=\"\",\"\",'1. Order'!Y127)","v":""},{"$f":"IF('1. Order'!Z127=\"\",\"\",'1. Order'!Z127)","v":""},{"$f":"IF('1. Order'!AC127=\"\",\"\",'1. Order'!AC127)","v":""},{"$f":"IF('1. Order'!AD127=\"\",\"\",'1. Order'!AD127)","v":""},{"$f":"IF('1. Order'!AE127=\"\",\"\",'1. Order'!AE127)","v":""},null,{"$f":"IF('1. Order'!AW127=\"\",\"\",'1. Order'!AW127)","v":""},{"$f":"IF('1. Order'!AX127=\"\",\"\",'1. Order'!AX127)","v":""},null,null,null,null,null,null,null,{"$f":"IF('1. Order'!BB127=\"\",\"\",'1. Order'!BB127)","v":""},{"$f":"IF('1. Order'!BC127=\"\",\"\",'1. Order'!BC127)","v":""},{"$f":"IF('1. Order'!BD127=\"\",\"\",'1. Order'!BD127)","v":""},{"$f":"IF('1. Order'!BE127=\"\",\"\",'1. Order'!BE127)","v":""},{"$f":"IF('1. Order'!BG127=\"\",\"\",'1. Order'!BG127)","v":""},{"$f":"IF('1. Order'!BH127=\"\",\"\",'1. Order'!BH127)","v":""},{"$f":"IF('1. Order'!BI127=\"\",\"\",'1. Order'!BI127)","v":""},{"$f":"IF('1. Order'!BJ127=\"\",\"\",'1. Order'!BJ127)","v":""},{"$f":"IF('1. Order'!BK127=\"\",\"\",'1. Order'!BK127)","v":"ZWO"}]
[{"$f":"IF('1. Order'!G128=\"\",\"\",'1. Order'!G128)","v":""},{"$f":"IF('1. Order'!H128=\"\",\"\",'1. Order'!H128)","v":""},{"$f":"IF('1. Order'!I128=\"\",\"\",'1. Order'!I128)","v":""},{"$f":"IF('1. Order'!J128=\"\",\"\",'1. Order'!J128)","v":""},{"$f":"IF('1. Order'!K128=\"\",\"\",'1. Order'!K128)","v":""},{"$f":"IF('1. Order'!L128=\"\",\"\",'1. Order'!L128)","v":""},{"$f":"IF('1. Order'!M128=\"\",\"\",'1. Order'!M128)","v":""},{"$f":"IF('1. Order'!N128=\"\",\"\",'1. Order'!N128)","v":""},{"$f":"IF('1. Order'!P128=\"\",\"\",'1. Order'!P128)","v":""},{"$f":"IF('1. Order'!Q128=\"\",\"\",'1. Order'!Q128)","v":{"$error":"#N/A"}},{"$f":"IF('1. Order'!R128=\"\",\"\",'1. Order'!R128)","v":{"$error":"#N/A"}},{"$f":"IF('1. Order'!S128=\"\",\"\",'1. Order'!S128)","v":""},{"$f":"IF('1. Order'!T128=\"\",\"\",'1. Order'!T128)","v":""},{"$f":"IF('1. Order'!U128=\"\",\"\",'1. Order'!U128)","v":""},{"$f":"IF('1. Order'!X128=\"\",\"\",'1. Order'!X128)","v":""},{"$f":"IF('1. Order'!Y128=\"\",\"\",'1. Order'!Y128)","v":""},{"$f":"IF('1. Order'!Z128=\"\",\"\",'1. Order'!Z128)","v":""},{"$f":"IF('1. Order'!AC128=\"\",\"\",'1. Order'!AC128)","v":""},{"$f":"IF('1. Order'!AD128=\"\",\"\",'1. Order'!AD128)","v":""},{"$f":"IF('1. Order'!AE128=\"\",\"\",'1. Order'!AE128)","v":""},null,{"$f":"IF('1. Order'!AW128=\"\",\"\",'1. Order'!AW128)","v":""},{"$f":"IF('1. Order'!AX128=\"\",\"\",'1. Order'!AX128)","v":""},null,null,null,null,null,null,null,{"$f":"IF('1. Order'!BB128=\"\",\"\",'1. Order'!BB128)","v":""},{"$f":"IF('1. Order'!BC128=\"\",\"\",'1. Order'!BC128)","v":""},{"$f":"IF('1. Order'!BD128=\"\",\"\",'1. Order'!BD128)","v":""},{"$f":"IF('1. Order'!BE128=\"\",\"\",'1. Order'!BE128)","v":""},{"$f":"IF('1. Order'!BG128=\"\",\"\",'1. Order'!BG128)","v":""},{"$f":"IF('1. Order'!BH128=\"\",\"\",'1. Order'!BH128)","v":""},{"$f":"IF('1. Order'!BI128=\"\",\"\",'1. Order'!BI128)","v":""},{"$f":"IF('1. Order'!BJ128=\"\",\"\",'1. Order'!BJ128)","v":""},{"$f":"IF('1. Order'!BK128=\"\",\"\",'1. Order'!BK128)","v":"ZWO"}]
[{"$f":"IF('1. Order'!G129=\"\",\"\",'1. Order'!G129)","v":""},{"$f":"IF('1. Order'!H129=\"\",\"\",'1. Order'!H129)","v":""},{"$f":"IF('1. Order'!I129=\"\",\"\",'1. Order'!I129)","v":""},{"$f":"IF('1. Order'!J129=\"\",\"\",'1. Order'!J129)","v":""},{"$f":"IF('1. Order'!K129=\"\",\"\",'1. Order'!K129)","v":""},{"$f":"IF('1. Order'!L129=\"\",\"\",'1. Order'!L129)","v":""},{"$f":"IF('1. Order'!M129=\"\",\"\",'1. Order'!M129)","v":""},{"$f":"IF('1. Order'!N129=\"\",\"\",'1. Order'!N129)","v":""},{"$f":"IF('1. Order'!P129=\"\",\"\",'1. Order'!P129)","v":""},{"$f":"IF('1. Order'!Q129=\"\",\"\",'1. Order'!Q129)","v":{"$error":"#N/A"}},{"$f":"IF('1. Order'!R129=\"\",\"\",'1. Order'!R129)","v":{"$error":"#N/A"}},{"$f":"IF('1. Order'!S129=\"\",\"\",'1. Order'!S129)","v":""},{"$f":"IF('1. Order'!T129=\"\",\"\",'1. Order'!T129)","v":""},{"$f":"IF('1. Order'!U129=\"\",\"\",'1. Order'!U129)","v":""},{"$f":"IF('1. Order'!X129=\"\",\"\",'1. Order'!X129)","v":""},{"$f":"IF('1. Order'!Y129=\"\",\"\",'1. Order'!Y129)","v":""},{"$f":"IF('1. Order'!Z129=\"\",\"\",'1. Order'!Z129)","v":""},{"$f":"IF('1. Order'!AC129=\"\",\"\",'1. Order'!AC129)","v":""},{"$f":"IF('1. Order'!AD129=\"\",\"\",'1. Order'!AD129)","v":""},{"$f":"IF('1. Order'!AE129=\"\",\"\",'1. Order'!AE129)","v":""},null,{"$f":"IF('1. Order'!AW129=\"\",\"\",'1. Order'!AW129)","v":""},{"$f":"IF('1. Order'!AX129=\"\",\"\",'1. Order'!AX129)","v":""},null,null,null,null,null,null,null,{"$f":"IF('1. Order'!BB129=\"\",\"\",'1. Order'!BB129)","v":""},{"$f":"IF('1. Order'!BC129=\"\",\"\",'1. Order'!BC129)","v":""},{"$f":"IF('1. Order'!BD129=\"\",\"\",'1. Order'!BD129)","v":""},{"$f":"IF('1. Order'!BE129=\"\",\"\",'1. Order'!BE129)","v":""},{"$f":"IF('1. Order'!BG129=\"\",\"\",'1. Order'!BG129)","v":""},{"$f":"IF('1. Order'!BH129=\"\",\"\",'1. Order'!BH129)","v":""},{"$f":"IF('1. Order'!BI129=\"\",\"\",'1. Order'!BI129)","v":""},{"$f":"IF('1. Order'!BJ129=\"\",\"\",'1. Order'!BJ129)","v":""},{"$f":"IF('1. Order'!BK129=\"\",\"\",'1. Order'!BK129)","v":"ZWO"}]
[{"$f":"IF('1. Order'!G130=\"\",\"\",'1. Order'!G130)","v":""},{"$f":"IF('1. Order'!H130=\"\",\"\",'1. Order'!H130)","v":""},{"$f":"IF('1. Order'!I130=\"\",\"\",'1. Order'!I130)","v":""},{"$f":"IF('1. Order'!J130=\"\",\"\",'1. Order'!J130)","v":""},{"$f":"IF('1. Order'!K130=\"\",\"\",'1. Order'!K130)","v":""},{"$f":"IF('1. Order'!L130=\"\",\"\",'1. Order'!L130)","v":""},{"$f":"IF('1. Order'!M130=\"\",\"\",'1. Order'!M130)","v":""},{"$f":"IF('1. Order'!N130=\"\",\"\",'1. Order'!N130)","v":""},{"$f":"IF('1. Order'!P130=\"\",\"\",'1. Order'!P130)","v":""},{"$f":"IF('1. Order'!Q130=\"\",\"\",'1. Order'!Q130)","v":{"$error":"#N/A"}},{"$f":"IF('1. Order'!R130=\"\",\"\",'1. Order'!R130)","v":{"$error":"#N/A"}},{"$f":"IF('1. Order'!S130=\"\",\"\",'1. Order'!S130)","v":""},{"$f":"IF('1. Order'!T130=\"\",\"\",'1. Order'!T130)","v":""},{"$f":"IF('1. Order'!U130=\"\",\"\",'1. Order'!U130)","v":""},{"$f":"IF('1. Order'!X130=\"\",\"\",'1. Order'!X130)","v":""},{"$f":"IF('1. Order'!Y130=\"\",\"\",'1. Order'!Y130)","v":""},{"$f":"IF('1. Order'!Z130=\"\",\"\",'1. Order'!Z130)","v":""},{"$f":"IF('1. Order'!AC130=\"\",\"\",'1. Order'!AC130)","v":""},{"$f":"IF('1. Order'!AD130=\"\",\"\",'1. Order'!AD130)","v":""},{"$f":"IF('1. Order'!AE130=\"\",\"\",'1. Order'!AE130)","v":""},null,{"$f":"IF('1. Order'!AW130=\"\",\"\",'1. Order'!AW130)","v":""},{"$f":"IF('1. Order'!AX130=\"\",\"\",'1. Order'!AX130)","v":""},null,null,null,null,null,null,null,{"$f":"IF('1. Order'!BB130=\"\",\"\",'1. Order'!BB130)","v":""},{"$f":"IF('1. Order'!BC130=\"\",\"\",'1. Order'!BC130)","v":""},{"$f":"IF('1. Order'!BD130=\"\",\"\",'1. Order'!BD130)","v":""},{"$f":"IF('1. Order'!BE130=\"\",\"\",'1. Order'!BE130)","v":""},{"$f":"IF('1. Order'!BG130=\"\",\"\",'1. Order'!BG130)","v":""},{"$f":"IF('1. Order'!BH130=\"\",\"\",'1. Order'!BH130)","v":""},{"$f":"IF('1. Order'!BI130=\"\",\"\",'1. Order'!BI130)","v":""},{"$f":"IF('1. Order'!BJ130=\"\",\"\",'1. Order'!BJ130)","v":""},{"$f":"IF('1. Order'!BK130=\"\",\"\",'1. Order'!BK130)","v":"ZWO"}]
[{"$f":"IF('1. Order'!G131=\"\",\"\",'1. Order'!G131)","v":""},{"$f":"IF('1. Order'!H131=\"\",\"\",'1. Order'!H131)","v":""},{"$f":"IF('1. Order'!I131=\"\",\"\",'1. Order'!I131)","v":""},{"$f":"IF('1. Order'!J131=\"\",\"\",'1. Order'!J131)","v":""},{"$f":"IF('1. Order'!K131=\"\",\"\",'1. Order'!K131)","v":""},{"$f":"IF('1. Order'!L131=\"\",\"\",'1. Order'!L131)","v":""},{"$f":"IF('1. Order'!M131=\"\",\"\",'1. Order'!M131)","v":""},{"$f":"IF('1. Order'!N131=\"\",\"\",'1. Order'!N131)","v":""},{"$f":"IF('1. Order'!P131=\"\",\"\",'1. Order'!P131)","v":""},{"$f":"IF('1. Order'!Q131=\"\",\"\",'1. Order'!Q131)","v":{"$error":"#N/A"}},{"$f":"IF('1. Order'!R131=\"\",\"\",'1. Order'!R131)","v":{"$error":"#N/A"}},{"$f":"IF('1. Order'!S131=\"\",\"\",'1. Order'!S131)","v":""},{"$f":"IF('1. Order'!T131=\"\",\"\",'1. Order'!T131)","v":""},{"$f":"IF('1. Order'!U131=\"\",\"\",'1. Order'!U131)","v":""},{"$f":"IF('1. Order'!X131=\"\",\"\",'1. Order'!X131)","v":""},{"$f":"IF('1. Order'!Y131=\"\",\"\",'1. Order'!Y131)","v":""},{"$f":"IF('1. Order'!Z131=\"\",\"\",'1. Order'!Z131)","v":""},{"$f":"IF('1. Order'!AC131=\"\",\"\",'1. Order'!AC131)","v":""},{"$f":"IF('1. Order'!AD131=\"\",\"\",'1. Order'!AD131)","v":""},{"$f":"IF('1. Order'!AE131=\"\",\"\",'1. Order'!AE131)","v":""},null,{"$f":"IF('1. Order'!AW131=\"\",\"\",'1. Order'!AW131)","v":""},{"$f":"IF('1. Order'!AX131=\"\",\"\",'1. Order'!AX131)","v":""},null,null,null,null,null,null,null,{"$f":"IF('1. Order'!BB131=\"\",\"\",'1. Order'!BB131)","v":""},{"$f":"IF('1. Order'!BC131=\"\",\"\",'1. Order'!BC131)","v":""},{"$f":"IF('1. Order'!BD131=\"\",\"\",'1. Order'!BD131)","v":""},{"$f":"IF('1. Order'!BE131=\"\",\"\",'1. Order'!BE131)","v":""},{"$f":"IF('1. Order'!BG131=\"\",\"\",'1. Order'!BG131)","v":""},{"$f":"IF('1. Order'!BH131=\"\",\"\",'1. Order'!BH131)","v":""},{"$f":"IF('1. Order'!BI131=\"\",\"\",'1. Order'!BI131)","v":""},{"$f":"IF('1. Order'!BJ131=\"\",\"\",'1. Order'!BJ131)","v":""},{"$f":"IF('1. Order'!BK131=\"\",\"\",'1. Order'!BK131)","v":"ZWO"}]
[{"$f":"IF('1. Order'!G132=\"\",\"\",'1. Order'!G132)","v":""},{"$f":"IF('1. Order'!H132=\"\",\"\",'1. Order'!H132)","v":""},{"$f":"IF('1. Order'!I132=\"\",\"\",'1. Order'!I132)","v":""},{"$f":"IF('1. Order'!J132=\"\",\"\",'1. Order'!J132)","v":""},{"$f":"IF('1. Order'!K132=\"\",\"\",'1. Order'!K132)","v":""},{"$f":"IF('1. Order'!L132=\"\",\"\",'1. Order'!L132)","v":""},{"$f":"IF('1. Order'!M132=\"\",\"\",'1. Order'!M132)","v":""},{"$f":"IF('1. Order'!N132=\"\",\"\",'1. Order'!N132)","v":""},{"$f":"IF('1. Order'!P132=\"\",\"\",'1. Order'!P132)","v":""},{"$f":"IF('1. Order'!Q132=\"\",\"\",'1. Order'!Q132)","v":{"$error":"#N/A"}},{"$f":"IF('1. Order'!R132=\"\",\"\",'1. Order'!R132)","v":{"$error":"#N/A"}},{"$f":"IF('1. Order'!S132=\"\",\"\",'1. Order'!S132)","v":""},{"$f":"IF('1. Order'!T132=\"\",\"\",'1. Order'!T132)","v":""},{"$f":"IF('1. Order'!U132=\"\",\"\",'1. Order'!U132)","v":""},{"$f":"IF('1. Order'!X132=\"\",\"\",'1. Order'!X132)","v":""},{"$f":"IF('1. Order'!Y132=\"\",\"\",'1. Order'!Y132)","v":""},{"$f":"IF('1. Order'!Z132=\"\",\"\",'1. Order'!Z132)","v":""},{"$f":"IF('1. Order'!AC132=\"\",\"\",'1. Order'!AC132)","v":""},{"$f":"IF('1. Order'!AD132=\"\",\"\",'1. Order'!AD132)","v":""},{"$f":"IF('1. Order'!AE132=\"\",\"\",'1. Order'!AE132)","v":""},null,{"$f":"IF('1. Order'!AW132=\"\",\"\",'1. Order'!AW132)","v":""},{"$f":"IF('1. Order'!AX132=\"\",\"\",'1. Order'!AX132)","v":""},null,null,null,null,null,null,null,{"$f":"IF('1. Order'!BB132=\"\",\"\",'1. Order'!BB132)","v":""},{"$f":"IF('1. Order'!BC132=\"\",\"\",'1. Order'!BC132)","v":""},{"$f":"IF('1. Order'!BD132=\"\",\"\",'1. Order'!BD132)","v":""},{"$f":"IF('1. Order'!BE132=\"\",\"\",'1. Order'!BE132)","v":""},{"$f":"IF('1. Order'!BG132=\"\",\"\",'1. Order'!BG132)","v":""},{"$f":"IF('1. Order'!BH132=\"\",\"\",'1. Order'!BH132)","v":""},{"$f":"IF('1. Order'!BI132=\"\",\"\",'1. Order'!BI132)","v":""},{"$f":"IF('1. Order'!BJ132=\"\",\"\",'1. Order'!BJ132)","v":""},{"$f":"IF('1. Order'!BK132=\"\",\"\",'1. Order'!BK132)","v":"ZWO"}]
[{"$f":"IF('1. Order'!G133=\"\",\"\",'1. Order'!G133)","v":""},{"$f":"IF('1. Order'!H133=\"\",\"\",'1. Order'!H133)","v":""},{"$f":"IF('1. Order'!I133=\"\",\"\",'1. Order'!I133)","v":""},{"$f":"IF('1. Order'!J133=\"\",\"\",'1. Order'!J133)","v":""},{"$f":"IF('1. Order'!K133=\"\",\"\",'1. Order'!K133)","v":""},{"$f":"IF('1. Order'!L133=\"\",\"\",'1. Order'!L133)","v":""},{"$f":"IF('1. Order'!M133=\"\",\"\",'1. Order'!M133)","v":""},{"$f":"IF('1. Order'!N133=\"\",\"\",'1. Order'!N133)","v":""},{"$f":"IF('1. Order'!P133=\"\",\"\",'1. Order'!P133)","v":""},{"$f":"IF('1. Order'!Q133=\"\",\"\",'1. Order'!Q133)","v":{"$error":"#N/A"}},{"$f":"IF('1. Order'!R133=\"\",\"\",'1. Order'!R133)","v":{"$error":"#N/A"}},{"$f":"IF('1. Order'!S133=\"\",\"\",'1. Order'!S133)","v":""},{"$f":"IF('1. Order'!T133=\"\",\"\",'1. Order'!T133)","v":""},{"$f":"IF('1. Order'!U133=\"\",\"\",'1. Order'!U133)","v":""},{"$f":"IF('1. Order'!X133=\"\",\"\",'1. Order'!X133)","v":""},{"$f":"IF('1. Order'!Y133=\"\",\"\",'1. Order'!Y133)","v":""},{"$f":"IF('1. Order'!Z133=\"\",\"\",'1. Order'!Z133)","v":""},{"$f":"IF('1. Order'!AC133=\"\",\"\",'1. Order'!AC133)","v":""},{"$f":"IF('1. Order'!AD133=\"\",\"\",'1. Order'!AD133)","v":""},{"$f":"IF('1. Order'!AE133=\"\",\"\",'1. Order'!AE133)","v":""},null,{"$f":"IF('1. Order'!AW133=\"\",\"\",'1. Order'!AW133)","v":""},{"$f":"IF('1. Order'!AX133=\"\",\"\",'1. Order'!AX133)","v":""},null,null,null,null,null,null,null,{"$f":"IF('1. Order'!BB133=\"\",\"\",'1. Order'!BB133)","v":""},{"$f":"IF('1. Order'!BC133=\"\",\"\",'1. Order'!BC133)","v":""},{"$f":"IF('1. Order'!BD133=\"\",\"\",'1. Order'!BD133)","v":""},{"$f":"IF('1. Order'!BE133=\"\",\"\",'1. Order'!BE133)","v":""},{"$f":"IF('1. Order'!BG133=\"\",\"\",'1. Order'!BG133)","v":""},{"$f":"IF('1. Order'!BH133=\"\",\"\",'1. Order'!BH133)","v":""},{"$f":"IF('1. Order'!BI133=\"\",\"\",'1. Order'!BI133)","v":""},{"$f":"IF('1. Order'!BJ133=\"\",\"\",'1. Order'!BJ133)","v":""},{"$f":"IF('1. Order'!BK133=\"\",\"\",'1. Order'!BK133)","v":"ZWO"}]
[{"$f":"IF('1. Order'!G134=\"\",\"\",'1. Order'!G134)","v":""},{"$f":"IF('1. Order'!H134=\"\",\"\",'1. Order'!H134)","v":""},{"$f":"IF('1. Order'!I134=\"\",\"\",'1. Order'!I134)","v":""},{"$f":"IF('1. Order'!J134=\"\",\"\",'1. Order'!J134)","v":""},{"$f":"IF('1. Order'!K134=\"\",\"\",'1. Order'!K134)","v":""},{"$f":"IF('1. Order'!L134=\"\",\"\",'1. Order'!L134)","v":""},{"$f":"IF('1. Order'!M134=\"\",\"\",'1. Order'!M134)","v":""},{"$f":"IF('1. Order'!N134=\"\",\"\",'1. Order'!N134)","v":""},{"$f":"IF('1. Order'!P134=\"\",\"\",'1. Order'!P134)","v":""},{"$f":"IF('1. Order'!Q134=\"\",\"\",'1. Order'!Q134)","v":{"$error":"#N/A"}},{"$f":"IF('1. Order'!R134=\"\",\"\",'1. Order'!R134)","v":{"$error":"#N/A"}},{"$f":"IF('1. Order'!S134=\"\",\"\",'1. Order'!S134)","v":""},{"$f":"IF('1. Order'!T134=\"\",\"\",'1. Order'!T134)","v":""},{"$f":"IF('1. Order'!U134=\"\",\"\",'1. Order'!U134)","v":""},{"$f":"IF('1. Order'!X134=\"\",\"\",'1. Order'!X134)","v":""},{"$f":"IF('1. Order'!Y134=\"\",\"\",'1. Order'!Y134)","v":""},{"$f":"IF('1. Order'!Z134=\"\",\"\",'1. Order'!Z134)","v":""},{"$f":"IF('1. Order'!AC134=\"\",\"\",'1. Order'!AC134)","v":""},{"$f":"IF('1. Order'!AD134=\"\",\"\",'1. Order'!AD134)","v":""},{"$f":"IF('1. Order'!AE134=\"\",\"\",'1. Order'!AE134)","v":""},null,{"$f":"IF('1. Order'!AW134=\"\",\"\",'1. Order'!AW134)","v":""},{"$f":"IF('1. Order'!AX134=\"\",\"\",'1. Order'!AX134)","v":""},null,null,null,null,null,null,null,{"$f":"IF('1. Order'!BB134=\"\",\"\",'1. Order'!BB134)","v":""},{"$f":"IF('1. Order'!BC134=\"\",\"\",'1. Order'!BC134)","v":""},{"$f":"IF('1. Order'!BD134=\"\",\"\",'1. Order'!BD134)","v":""},{"$f":"IF('1. Order'!BE134=\"\",\"\",'1. Order'!BE134)","v":""},{"$f":"IF('1. Order'!BG134=\"\",\"\",'1. Order'!BG134)","v":""},{"$f":"IF('1. Order'!BH134=\"\",\"\",'1. Order'!BH134)","v":""},{"$f":"IF('1. Order'!BI134=\"\",\"\",'1. Order'!BI134)","v":""},{"$f":"IF('1. Order'!BJ134=\"\",\"\",'1. Order'!BJ134)","v":""},{"$f":"IF('1. Order'!BK134=\"\",\"\",'1. Order'!BK134)","v":"ZWO"}]
[{"$f":"IF('1. Order'!G135=\"\",\"\",'1. Order'!G135)","v":""},{"$f":"IF('1. Order'!H135=\"\",\"\",'1. Order'!H135)","v":""},{"$f":"IF('1. Order'!I135=\"\",\"\",'1. Order'!I135)","v":""},{"$f":"IF('1. Order'!J135=\"\",\"\",'1. Order'!J135)","v":""},{"$f":"IF('1. Order'!K135=\"\",\"\",'1. Order'!K135)","v":""},{"$f":"IF('1. Order'!L135=\"\",\"\",'1. Order'!L135)","v":""},{"$f":"IF('1. Order'!M135=\"\",\"\",'1. Order'!M135)","v":""},{"$f":"IF('1. Order'!N135=\"\",\"\",'1. Order'!N135)","v":""},{"$f":"IF('1. Order'!P135=\"\",\"\",'1. Order'!P135)","v":""},{"$f":"IF('1. Order'!Q135=\"\",\"\",'1. Order'!Q135)","v":{"$error":"#N/A"}},{"$f":"IF('1. Order'!R135=\"\",\"\",'1. Order'!R135)","v":{"$error":"#N/A"}},{"$f":"IF('1. Order'!S135=\"\",\"\",'1. Order'!S135)","v":""},{"$f":"IF('1. Order'!T135=\"\",\"\",'1. Order'!T135)","v":""},{"$f":"IF('1. Order'!U135=\"\",\"\",'1. Order'!U135)","v":""},{"$f":"IF('1. Order'!X135=\"\",\"\",'1. Order'!X135)","v":""},{"$f":"IF('1. Order'!Y135=\"\",\"\",'1. Order'!Y135)","v":""},{"$f":"IF('1. Order'!Z135=\"\",\"\",'1. Order'!Z135)","v":""},{"$f":"IF('1. Order'!AC135=\"\",\"\",'1. Order'!AC135)","v":""},{"$f":"IF('1. Order'!AD135=\"\",\"\",'1. Order'!AD135)","v":""},{"$f":"IF('1. Order'!AE135=\"\",\"\",'1. Order'!AE135)","v":""},null,{"$f":"IF('1. Order'!AW135=\"\",\"\",'1. Order'!AW135)","v":""},{"$f":"IF('1. Order'!AX135=\"\",\"\",'1. Order'!AX135)","v":""},null,null,null,null,null,null,null,{"$f":"IF('1. Order'!BB135=\"\",\"\",'1. Order'!BB135)","v":""},{"$f":"IF('1. Order'!BC135=\"\",\"\",'1. Order'!BC135)","v":""},{"$f":"IF('1. Order'!BD135=\"\",\"\",'1. Order'!BD135)","v":""},{"$f":"IF('1. Order'!BE135=\"\",\"\",'1. Order'!BE135)","v":""},{"$f":"IF('1. Order'!BG135=\"\",\"\",'1. Order'!BG135)","v":""},{"$f":"IF('1. Order'!BH135=\"\",\"\",'1. Order'!BH135)","v":""},{"$f":"IF('1. Order'!BI135=\"\",\"\",'1. Order'!BI135)","v":""},{"$f":"IF('1. Order'!BJ135=\"\",\"\",'1. Order'!BJ135)","v":""},{"$f":"IF('1. Order'!BK135=\"\",\"\",'1. Order'!BK135)","v":"ZWO"}]
[{"$f":"IF('1. Order'!G136=\"\",\"\",'1. Order'!G136)","v":""},{"$f":"IF('1. Order'!H136=\"\",\"\",'1. Order'!H136)","v":""},{"$f":"IF('1. Order'!I136=\"\",\"\",'1. Order'!I136)","v":""},{"$f":"IF('1. Order'!J136=\"\",\"\",'1. Order'!J136)","v":""},{"$f":"IF('1. Order'!K136=\"\",\"\",'1. Order'!K136)","v":""},{"$f":"IF('1. Order'!L136=\"\",\"\",'1. Order'!L136)","v":""},{"$f":"IF('1. Order'!M136=\"\",\"\",'1. Order'!M136)","v":""},{"$f":"IF('1. Order'!N136=\"\",\"\",'1. Order'!N136)","v":""},{"$f":"IF('1. Order'!P136=\"\",\"\",'1. Order'!P136)","v":""},{"$f":"IF('1. Order'!Q136=\"\",\"\",'1. Order'!Q136)","v":{"$error":"#N/A"}},{"$f":"IF('1. Order'!R136=\"\",\"\",'1. Order'!R136)","v":{"$error":"#N/A"}},{"$f":"IF('1. Order'!S136=\"\",\"\",'1. Order'!S136)","v":""},{"$f":"IF('1. Order'!T136=\"\",\"\",'1. Order'!T136)","v":""},{"$f":"IF('1. Order'!U136=\"\",\"\",'1. Order'!U136)","v":""},{"$f":"IF('1. Order'!X136=\"\",\"\",'1. Order'!X136)","v":""},{"$f":"IF('1. Order'!Y136=\"\",\"\",'1. Order'!Y136)","v":""},{"$f":"IF('1. Order'!Z136=\"\",\"\",'1. Order'!Z136)","v":""},{"$f":"IF('1. Order'!AC136=\"\",\"\",'1. Order'!AC136)","v":""},{"$f":"IF('1. Order'!AD136=\"\",\"\",'1. Order'!AD136)","v":""},{"$f":"IF('1. Order'!AE136=\"\",\"\",'1. Order'!AE136)","v":""},null,{"$f":"IF('1. Order'!AW136=\"\",\"\",'1. Order'!AW136)","v":""},{"$f":"IF('1. Order'!AX136=\"\",\"\",'1. Order'!AX136)","v":""},null,null,null,null,null,null,null,{"$f":"IF('1. Order'!BB136=\"\",\"\",'1. Order'!BB136)","v":""},{"$f":"IF('1. Order'!BC136=\"\",\"\",'1. Order'!BC136)","v":""},{"$f":"IF('1. Order'!BD136=\"\",\"\",'1. Order'!BD136)","v":""},{"$f":"IF('1. Order'!BE136=\"\",\"\",'1. Order'!BE136)","v":""},{"$f":"IF('1. Order'!BG136=\"\",\"\",'1. Order'!BG136)","v":""},{"$f":"IF('1. Order'!BH136=\"\",\"\",'1. Order'!BH136)","v":""},{"$f":"IF('1. Order'!BI136=\"\",\"\",'1. Order'!BI136)","v":""},{"$f":"IF('1. Order'!BJ136=\"\",\"\",'1. Order'!BJ136)","v":""},{"$f":"IF('1. Order'!BK136=\"\",\"\",'1. Order'!BK136)","v":"ZWO"}]
[{"$f":"IF('1. Order'!G137=\"\",\"\",'1. Order'!G137)","v":""},{"$f":"IF('1. Order'!H137=\"\",\"\",'1. Order'!H137)","v":""},{"$f":"IF('1. Order'!I137=\"\",\"\",'1. Order'!I137)","v":""},{"$f":"IF('1. Order'!J137=\"\",\"\",'1. Order'!J137)","v":""},{"$f":"IF('1. Order'!K137=\"\",\"\",'1. Order'!K137)","v":""},{"$f":"IF('1. Order'!L137=\"\",\"\",'1. Order'!L137)","v":""},{"$f":"IF('1. Order'!M137=\"\",\"\",'1. Order'!M137)","v":""},{"$f":"IF('1. Order'!N137=\"\",\"\",'1. Order'!N137)","v":""},{"$f":"IF('1. Order'!P137=\"\",\"\",'1. Order'!P137)","v":""},{"$f":"IF('1. Order'!Q137=\"\",\"\",'1. Order'!Q137)","v":{"$error":"#N/A"}},{"$f":"IF('1. Order'!R137=\"\",\"\",'1. Order'!R137)","v":{"$error":"#N/A"}},{"$f":"IF('1. Order'!S137=\"\",\"\",'1. Order'!S137)","v":""},{"$f":"IF('1. Order'!T137=\"\",\"\",'1. Order'!T137)","v":""},{"$f":"IF('1. Order'!U137=\"\",\"\",'1. Order'!U137)","v":""},{"$f":"IF('1. Order'!X137=\"\",\"\",'1. Order'!X137)","v":""},{"$f":"IF('1. Order'!Y137=\"\",\"\",'1. Order'!Y137)","v":""},{"$f":"IF('1. Order'!Z137=\"\",\"\",'1. Order'!Z137)","v":""},{"$f":"IF('1. Order'!AC137=\"\",\"\",'1. Order'!AC137)","v":""},{"$f":"IF('1. Order'!AD137=\"\",\"\",'1. Order'!AD137)","v":""},{"$f":"IF('1. Order'!AE137=\"\",\"\",'1. Order'!AE137)","v":""},null,{"$f":"IF('1. Order'!AW137=\"\",\"\",'1. Order'!AW137)","v":""},{"$f":"IF('1. Order'!AX137=\"\",\"\",'1. Order'!AX137)","v":""},null,null,null,null,null,null,null,{"$f":"IF('1. Order'!BB137=\"\",\"\",'1. Order'!BB137)","v":""},{"$f":"IF('1. Order'!BC137=\"\",\"\",'1. Order'!BC137)","v":""},{"$f":"IF('1. Order'!BD137=\"\",\"\",'1. Order'!BD137)","v":""},{"$f":"IF('1. Order'!BE137=\"\",\"\",'1. Order'!BE137)","v":""},{"$f":"IF('1. Order'!BG137=\"\",\"\",'1. Order'!BG137)","v":""},{"$f":"IF('1. Order'!BH137=\"\",\"\",'1. Order'!BH137)","v":""},{"$f":"IF('1. Order'!BI137=\"\",\"\",'1. Order'!BI137)","v":""},{"$f":"IF('1. Order'!BJ137=\"\",\"\",'1. Order'!BJ137)","v":""},{"$f":"IF('1. Order'!BK137=\"\",\"\",'1. Order'!BK137)","v":"ZWO"}]
[{"$f":"IF('1. Order'!G138=\"\",\"\",'1. Order'!G138)","v":""},{"$f":"IF('1. Order'!H138=\"\",\"\",'1. Order'!H138)","v":""},{"$f":"IF('1. Order'!I138=\"\",\"\",'1. Order'!I138)","v":""},{"$f":"IF('1. Order'!J138=\"\",\"\",'1. Order'!J138)","v":""},{"$f":"IF('1. Order'!K138=\"\",\"\",'1. Order'!K138)","v":""},{"$f":"IF('1. Order'!L138=\"\",\"\",'1. Order'!L138)","v":""},{"$f":"IF('1. Order'!M138=\"\",\"\",'1. Order'!M138)","v":""},{"$f":"IF('1. Order'!N138=\"\",\"\",'1. Order'!N138)","v":""},{"$f":"IF('1. Order'!P138=\"\",\"\",'1. Order'!P138)","v":""},{"$f":"IF('1. Order'!Q138=\"\",\"\",'1. Order'!Q138)","v":{"$error":"#N/A"}},{"$f":"IF('1. Order'!R138=\"\",\"\",'1. Order'!R138)","v":{"$error":"#N/A"}},{"$f":"IF('1. Order'!S138=\"\",\"\",'1. Order'!S138)","v":""},{"$f":"IF('1. Order'!T138=\"\",\"\",'1. Order'!T138)","v":""},{"$f":"IF('1. Order'!U138=\"\",\"\",'1. Order'!U138)","v":""},{"$f":"IF('1. Order'!X138=\"\",\"\",'1. Order'!X138)","v":""},{"$f":"IF('1. Order'!Y138=\"\",\"\",'1. Order'!Y138)","v":""},{"$f":"IF('1. Order'!Z138=\"\",\"\",'1. Order'!Z138)","v":""},{"$f":"IF('1. Order'!AC138=\"\",\"\",'1. Order'!AC138)","v":""},{"$f":"IF('1. Order'!AD138=\"\",\"\",'1. Order'!AD138)","v":""},{"$f":"IF('1. Order'!AE138=\"\",\"\",'1. Order'!AE138)","v":""},null,{"$f":"IF('1. Order'!AW138=\"\",\"\",'1. Order'!AW138)","v":""},{"$f":"IF('1. Order'!AX138=\"\",\"\",'1. Order'!AX138)","v":""},null,null,null,null,null,null,null,{"$f":"IF('1. Order'!BB138=\"\",\"\",'1. Order'!BB138)","v":""},{"$f":"IF('1. Order'!BC138=\"\",\"\",'1. Order'!BC138)","v":""},{"$f":"IF('1. Order'!BD138=\"\",\"\",'1. Order'!BD138)","v":""},{"$f":"IF('1. Order'!BE138=\"\",\"\",'1. Order'!BE138)","v":""},{"$f":"IF('1. Order'!BG138=\"\",\"\",'1. Order'!BG138)","v":""},{"$f":"IF('1. Order'!BH138=\"\",\"\",'1. Order'!BH138)","v":""},{"$f":"IF('1. Order'!BI138=\"\",\"\",'1. Order'!BI138)","v":""},{"$f":"IF('1. Order'!BJ138=\"\",\"\",'1. Order'!BJ138)","v":""},{"$f":"IF('1. Order'!BK138=\"\",\"\",'1. Order'!BK138)","v":"ZWO"}]
[{"$f":"IF('1. Order'!G139=\"\",\"\",'1. Order'!G139)","v":""},{"$f":"IF('1. Order'!H139=\"\",\"\",'1. Order'!H139)","v":""},{"$f":"IF('1. Order'!I139=\"\",\"\",'1. Order'!I139)","v":""},{"$f":"IF('1. Order'!J139=\"\",\"\",'1. Order'!J139)","v":""},{"$f":"IF('1. Order'!K139=\"\",\"\",'1. Order'!K139)","v":""},{"$f":"IF('1. Order'!L139=\"\",\"\",'1. Order'!L139)","v":""},{"$f":"IF('1. Order'!M139=\"\",\"\",'1. Order'!M139)","v":""},{"$f":"IF('1. Order'!N139=\"\",\"\",'1. Order'!N139)","v":""},{"$f":"IF('1. Order'!P139=\"\",\"\",'1. Order'!P139)","v":""},{"$f":"IF('1. Order'!Q139=\"\",\"\",'1. Order'!Q139)","v":{"$error":"#N/A"}},{"$f":"IF('1. Order'!R139=\"\",\"\",'1. Order'!R139)","v":{"$error":"#N/A"}},{"$f":"IF('1. Order'!S139=\"\",\"\",'1. Order'!S139)","v":""},{"$f":"IF('1. Order'!T139=\"\",\"\",'1. Order'!T139)","v":""},{"$f":"IF('1. Order'!U139=\"\",\"\",'1. Order'!U139)","v":""},{"$f":"IF('1. Order'!X139=\"\",\"\",'1. Order'!X139)","v":""},{"$f":"IF('1. Order'!Y139=\"\",\"\",'1. Order'!Y139)","v":""},{"$f":"IF('1. Order'!Z139=\"\",\"\",'1. Order'!Z139)","v":""},{"$f":"IF('1. Order'!AC139=\"\",\"\",'1. Order'!AC139)","v":""},{"$f":"IF('1. Order'!AD139=\"\",\"\",'1. Order'!AD139)","v":""},{"$f":"IF('1. Order'!AE139=\"\",\"\",'1. Order'!AE139)","v":""},null,{"$f":"IF('1. Order'!AW139=\"\",\"\",'1. Order'!AW139)","v":""},{"$f":"IF('1. Order'!AX139=\"\",\"\",'1. Order'!AX139)","v":""},null,null,null,null,null,null,null,{"$f":"IF('1. Order'!BB139=\"\",\"\",'1. Order'!BB139)","v":""},{"$f":"IF('1. Order'!BC139=\"\",\"\",'1. Order'!BC139)","v":""},{"$f":"IF('1. Order'!BD139=\"\",\"\",'1. Order'!BD139)","v":""},{"$f":"IF('1. Order'!BE139=\"\",\"\",'1. Order'!BE139)","v":""},{"$f":"IF('1. Order'!BG139=\"\",\"\",'1. Order'!BG139)","v":""},{"$f":"IF('1. Order'!BH139=\"\",\"\",'1. Order'!BH139)","v":""},{"$f":"IF('1. Order'!BI139=\"\",\"\",'1. Order'!BI139)","v":""},{"$f":"IF('1. Order'!BJ139=\"\",\"\",'1. Order'!BJ139)","v":""},{"$f":"IF('1. Order'!BK139=\"\",\"\",'1. Order'!BK139)","v":"ZWO"}]
[{"$f":"IF('1. Order'!G140=\"\",\"\",'1. Order'!G140)","v":""},{"$f":"IF('1. Order'!H140=\"\",\"\",'1. Order'!H140)","v":""},{"$f":"IF('1. Order'!I140=\"\",\"\",'1. Order'!I140)","v":""},{"$f":"IF('1. Order'!J140=\"\",\"\",'1. Order'!J140)","v":""},{"$f":"IF('1. Order'!K140=\"\",\"\",'1. Order'!K140)","v":""},{"$f":"IF('1. Order'!L140=\"\",\"\",'1. Order'!L140)","v":""},{"$f":"IF('1. Order'!M140=\"\",\"\",'1. Order'!M140)","v":""},{"$f":"IF('1. Order'!N140=\"\",\"\",'1. Order'!N140)","v":""},{"$f":"IF('1. Order'!P140=\"\",\"\",'1. Order'!P140)","v":""},{"$f":"IF('1. Order'!Q140=\"\",\"\",'1. Order'!Q140)","v":{"$error":"#N/A"}},{"$f":"IF('1. Order'!R140=\"\",\"\",'1. Order'!R140)","v":{"$error":"#N/A"}},{"$f":"IF('1. Order'!S140=\"\",\"\",'1. Order'!S140)","v":""},{"$f":"IF('1. Order'!T140=\"\",\"\",'1. Order'!T140)","v":""},{"$f":"IF('1. Order'!U140=\"\",\"\",'1. Order'!U140)","v":""},{"$f":"IF('1. Order'!X140=\"\",\"\",'1. Order'!X140)","v":""},{"$f":"IF('1. Order'!Y140=\"\",\"\",'1. Order'!Y140)","v":""},{"$f":"IF('1. Order'!Z140=\"\",\"\",'1. Order'!Z140)","v":""},{"$f":"IF('1. Order'!AC140=\"\",\"\",'1. Order'!AC140)","v":""},{"$f":"IF('1. Order'!AD140=\"\",\"\",'1. Order'!AD140)","v":""},{"$f":"IF('1. Order'!AE140=\"\",\"\",'1. Order'!AE140)","v":""},null,{"$f":"IF('1. Order'!AW140=\"\",\"\",'1. Order'!AW140)","v":""},{"$f":"IF('1. Order'!AX140=\"\",\"\",'1. Order'!AX140)","v":""},null,null,null,null,null,null,null,{"$f":"IF('1. Order'!BB140=\"\",\"\",'1. Order'!BB140)","v":""},{"$f":"IF('1. Order'!BC140=\"\",\"\",'1. Order'!BC140)","v":""},{"$f":"IF('1. Order'!BD140=\"\",\"\",'1. Order'!BD140)","v":""},{"$f":"IF('1. Order'!BE140=\"\",\"\",'1. Order'!BE140)","v":""},{"$f":"IF('1. Order'!BG140=\"\",\"\",'1. Order'!BG140)","v":""},{"$f":"IF('1. Order'!BH140=\"\",\"\",'1. Order'!BH140)","v":""},{"$f":"IF('1. Order'!BI140=\"\",\"\",'1. Order'!BI140)","v":""},{"$f":"IF('1. Order'!BJ140=\"\",\"\",'1. Order'!BJ140)","v":""},{"$f":"IF('1. Order'!BK140=\"\",\"\",'1. Order'!BK140)","v":"ZWO"}]
[{"$f":"IF('1. Order'!G141=\"\",\"\",'1. Order'!G141)","v":""},{"$f":"IF('1. Order'!H141=\"\",\"\",'1. Order'!H141)","v":""},{"$f":"IF('1. Order'!I141=\"\",\"\",'1. Order'!I141)","v":""},{"$f":"IF('1. Order'!J141=\"\",\"\",'1. Order'!J141)","v":""},{"$f":"IF('1. Order'!K141=\"\",\"\",'1. Order'!K141)","v":""},{"$f":"IF('1. Order'!L141=\"\",\"\",'1. Order'!L141)","v":""},{"$f":"IF('1. Order'!M141=\"\",\"\",'1. Order'!M141)","v":""},{"$f":"IF('1. Order'!N141=\"\",\"\",'1. Order'!N141)","v":""},{"$f":"IF('1. Order'!P141=\"\",\"\",'1. Order'!P141)","v":""},{"$f":"IF('1. Order'!Q141=\"\",\"\",'1. Order'!Q141)","v":{"$error":"#N/A"}},{"$f":"IF('1. Order'!R141=\"\",\"\",'1. Order'!R141)","v":{"$error":"#N/A"}},{"$f":"IF('1. Order'!S141=\"\",\"\",'1. Order'!S141)","v":""},{"$f":"IF('1. Order'!T141=\"\",\"\",'1. Order'!T141)","v":""},{"$f":"IF('1. Order'!U141=\"\",\"\",'1. Order'!U141)","v":""},{"$f":"IF('1. Order'!X141=\"\",\"\",'1. Order'!X141)","v":""},{"$f":"IF('1. Order'!Y141=\"\",\"\",'1. Order'!Y141)","v":""},{"$f":"IF('1. Order'!Z141=\"\",\"\",'1. Order'!Z141)","v":""},{"$f":"IF('1. Order'!AC141=\"\",\"\",'1. Order'!AC141)","v":""},{"$f":"IF('1. Order'!AD141=\"\",\"\",'1. Order'!AD141)","v":""},{"$f":"IF('1. Order'!AE141=\"\",\"\",'1. Order'!AE141)","v":""},null,{"$f":"IF('1. Order'!AW141=\"\",\"\",'1. Order'!AW141)","v":""},{"$f":"IF('1. Order'!AX141=\"\",\"\",'1. Order'!AX141)","v":""},null,null,null,null,null,null,null,{"$f":"IF('1. Order'!BB141=\"\",\"\",'1. Order'!BB141)","v":""},{"$f":"IF('1. Order'!BC141=\"\",\"\",'1. Order'!BC141)","v":""},{"$f":"IF('1. Order'!BD141=\"\",\"\",'1. Order'!BD141)","v":""},{"$f":"IF('1. Order'!BE141=\"\",\"\",'1. Order'!BE141)","v":""},{"$f":"IF('1. Order'!BG141=\"\",\"\",'1. Order'!BG141)","v":""},{"$f":"IF('1. Order'!BH141=\"\",\"\",'1. Order'!BH141)","v":""},{"$f":"IF('1. Order'!BI141=\"\",\"\",'1. Order'!BI141)","v":""},{"$f":"IF('1. Order'!BJ141=\"\",\"\",'1. Order'!BJ141)","v":""},{"$f":"IF('1. Order'!BK141=\"\",\"\",'1. Order'!BK141)","v":"ZWO"}]
[{"$f":"IF('1. Order'!G142=\"\",\"\",'1. Order'!G142)","v":""},{"$f":"IF('1. Order'!H142=\"\",\"\",'1. Order'!H142)","v":""},{"$f":"IF('1. Order'!I142=\"\",\"\",'1. Order'!I142)","v":""},{"$f":"IF('1. Order'!J142=\"\",\"\",'1. Order'!J142)","v":""},{"$f":"IF('1. Order'!K142=\"\",\"\",'1. Order'!K142)","v":""},{"$f":"IF('1. Order'!L142=\"\",\"\",'1. Order'!L142)","v":""},{"$f":"IF('1. Order'!M142=\"\",\"\",'1. Order'!M142)","v":""},{"$f":"IF('1. Order'!N142=\"\",\"\",'1. Order'!N142)","v":""},{"$f":"IF('1. Order'!P142=\"\",\"\",'1. Order'!P142)","v":""},{"$f":"IF('1. Order'!Q142=\"\",\"\",'1. Order'!Q142)","v":{"$error":"#N/A"}},{"$f":"IF('1. Order'!R142=\"\",\"\",'1. Order'!R142)","v":{"$error":"#N/A"}},{"$f":"IF('1. Order'!S142=\"\",\"\",'1. Order'!S142)","v":""},{"$f":"IF('1. Order'!T142=\"\",\"\",'1. Order'!T142)","v":""},{"$f":"IF('1. Order'!U142=\"\",\"\",'1. Order'!U142)","v":""},{"$f":"IF('1. Order'!X142=\"\",\"\",'1. Order'!X142)","v":""},{"$f":"IF('1. Order'!Y142=\"\",\"\",'1. Order'!Y142)","v":""},{"$f":"IF('1. Order'!Z142=\"\",\"\",'1. Order'!Z142)","v":""},{"$f":"IF('1. Order'!AC142=\"\",\"\",'1. Order'!AC142)","v":""},{"$f":"IF('1. Order'!AD142=\"\",\"\",'1. Order'!AD142)","v":""},{"$f":"IF('1. Order'!AE142=\"\",\"\",'1. Order'!AE142)","v":""},null,{"$f":"IF('1. Order'!AW142=\"\",\"\",'1. Order'!AW142)","v":""},{"$f":"IF('1. Order'!AX142=\"\",\"\",'1. Order'!AX142)","v":""},null,null,null,null,null,null,null,{"$f":"IF('1. Order'!BB142=\"\",\"\",'1. Order'!BB142)","v":""},{"$f":"IF('1. Order'!BC142=\"\",\"\",'1. Order'!BC142)","v":""},{"$f":"IF('1. Order'!BD142=\"\",\"\",'1. Order'!BD142)","v":""},{"$f":"IF('1. Order'!BE142=\"\",\"\",'1. Order'!BE142)","v":""},{"$f":"IF('1. Order'!BG142=\"\",\"\",'1. Order'!BG142)","v":""},{"$f":"IF('1. Order'!BH142=\"\",\"\",'1. Order'!BH142)","v":""},{"$f":"IF('1. Order'!BI142=\"\",\"\",'1. Order'!BI142)","v":""},{"$f":"IF('1. Order'!BJ142=\"\",\"\",'1. Order'!BJ142)","v":""},{"$f":"IF('1. Order'!BK142=\"\",\"\",'1. Order'!BK142)","v":"ZWO"}]
[{"$f":"IF('1. Order'!G143=\"\",\"\",'1. Order'!G143)","v":""},{"$f":"IF('1. Order'!H143=\"\",\"\",'1. Order'!H143)","v":""},{"$f":"IF('1. Order'!I143=\"\",\"\",'1. Order'!I143)","v":""},{"$f":"IF('1. Order'!J143=\"\",\"\",'1. Order'!J143)","v":""},{"$f":"IF('1. Order'!K143=\"\",\"\",'1. Order'!K143)","v":""},{"$f":"IF('1. Order'!L143=\"\",\"\",'1. Order'!L143)","v":""},{"$f":"IF('1. Order'!M143=\"\",\"\",'1. Order'!M143)","v":""},{"$f":"IF('1. Order'!N143=\"\",\"\",'1. Order'!N143)","v":""},{"$f":"IF('1. Order'!P143=\"\",\"\",'1. Order'!P143)","v":""},{"$f":"IF('1. Order'!Q143=\"\",\"\",'1. Order'!Q143)","v":{"$error":"#N/A"}},{"$f":"IF('1. Order'!R143=\"\",\"\",'1. Order'!R143)","v":{"$error":"#N/A"}},{"$f":"IF('1. Order'!S143=\"\",\"\",'1. Order'!S143)","v":""},{"$f":"IF('1. Order'!T143=\"\",\"\",'1. Order'!T143)","v":""},{"$f":"IF('1. Order'!U143=\"\",\"\",'1. Order'!U143)","v":""},{"$f":"IF('1. Order'!X143=\"\",\"\",'1. Order'!X143)","v":""},{"$f":"IF('1. Order'!Y143=\"\",\"\",'1. Order'!Y143)","v":""},{"$f":"IF('1. Order'!Z143=\"\",\"\",'1. Order'!Z143)","v":""},{"$f":"IF('1. Order'!AC143=\"\",\"\",'1. Order'!AC143)","v":""},{"$f":"IF('1. Order'!AD143=\"\",\"\",'1. Order'!AD143)","v":""},{"$f":"IF('1. Order'!AE143=\"\",\"\",'1. Order'!AE143)","v":""},null,{"$f":"IF('1. Order'!AW143=\"\",\"\",'1. Order'!AW143)","v":""},{"$f":"IF('1. Order'!AX143=\"\",\"\",'1. Order'!AX143)","v":""},null,null,null,null,null,null,null,{"$f":"IF('1. Order'!BB143=\"\",\"\",'1. Order'!BB143)","v":""},{"$f":"IF('1. Order'!BC143=\"\",\"\",'1. Order'!BC143)","v":""},{"$f":"IF('1. Order'!BD143=\"\",\"\",'1. Order'!BD143)","v":""},{"$f":"IF('1. Order'!BE143=\"\",\"\",'1. Order'!BE143)","v":""},{"$f":"IF('1. Order'!BG143=\"\",\"\",'1. Order'!BG143)","v":""},{"$f":"IF('1. Order'!BH143=\"\",\"\",'1. Order'!BH143)","v":""},{"$f":"IF('1. Order'!BI143=\"\",\"\",'1. Order'!BI143)","v":""},{"$f":"IF('1. Order'!BJ143=\"\",\"\",'1. Order'!BJ143)","v":""},{"$f":"IF('1. Order'!BK143=\"\",\"\",'1. Order'!BK143)","v":"ZWO"}]
[{"$f":"IF('1. Order'!G144=\"\",\"\",'1. Order'!G144)","v":""},{"$f":"IF('1. Order'!H144=\"\",\"\",'1. Order'!H144)","v":""},{"$f":"IF('1. Order'!I144=\"\",\"\",'1. Order'!I144)","v":""},{"$f":"IF('1. Order'!J144=\"\",\"\",'1. Order'!J144)","v":""},{"$f":"IF('1. Order'!K144=\"\",\"\",'1. Order'!K144)","v":""},{"$f":"IF('1. Order'!L144=\"\",\"\",'1. Order'!L144)","v":""},{"$f":"IF('1. Order'!M144=\"\",\"\",'1. Order'!M144)","v":""},{"$f":"IF('1. Order'!N144=\"\",\"\",'1. Order'!N144)","v":""},{"$f":"IF('1. Order'!P144=\"\",\"\",'1. Order'!P144)","v":""},{"$f":"IF('1. Order'!Q144=\"\",\"\",'1. Order'!Q144)","v":{"$error":"#N/A"}},{"$f":"IF('1. Order'!R144=\"\",\"\",'1. Order'!R144)","v":{"$error":"#N/A"}},{"$f":"IF('1. Order'!S144=\"\",\"\",'1. Order'!S144)","v":""},{"$f":"IF('1. Order'!T144=\"\",\"\",'1. Order'!T144)","v":""},{"$f":"IF('1. Order'!U144=\"\",\"\",'1. Order'!U144)","v":""},{"$f":"IF('1. Order'!X144=\"\",\"\",'1. Order'!X144)","v":""},{"$f":"IF('1. Order'!Y144=\"\",\"\",'1. Order'!Y144)","v":""},{"$f":"IF('1. Order'!Z144=\"\",\"\",'1. Order'!Z144)","v":""},{"$f":"IF('1. Order'!AC144=\"\",\"\",'1. Order'!AC144)","v":""},{"$f":"IF('1. Order'!AD144=\"\",\"\",'1. Order'!AD144)","v":""},{"$f":"IF('1. Order'!AE144=\"\",\"\",'1. Order'!AE144)","v":""},null,{"$f":"IF('1. Order'!AW144=\"\",\"\",'1. Order'!AW144)","v":""},{"$f":"IF('1. Order'!AX144=\"\",\"\",'1. Order'!AX144)","v":""},null,null,null,null,null,null,null,{"$f":"IF('1. Order'!BB144=\"\",\"\",'1. Order'!BB144)","v":""},{"$f":"IF('1. Order'!BC144=\"\",\"\",'1. Order'!BC144)","v":""},{"$f":"IF('1. Order'!BD144=\"\",\"\",'1. Order'!BD144)","v":""},{"$f":"IF('1. Order'!BE144=\"\",\"\",'1. Order'!BE144)","v":""},{"$f":"IF('1. Order'!BG144=\"\",\"\",'1. Order'!BG144)","v":""},{"$f":"IF('1. Order'!BH144=\"\",\"\",'1. Order'!BH144)","v":""},{"$f":"IF('1. Order'!BI144=\"\",\"\",'1. Order'!BI144)","v":""},{"$f":"IF('1. Order'!BJ144=\"\",\"\",'1. Order'!BJ144)","v":""},{"$f":"IF('1. Order'!BK144=\"\",\"\",'1. Order'!BK144)","v":"ZWO"}]
[{"$f":"IF('1. Order'!G145=\"\",\"\",'1. Order'!G145)","v":""},{"$f":"IF('1. Order'!H145=\"\",\"\",'1. Order'!H145)","v":""},{"$f":"IF('1. Order'!I145=\"\",\"\",'1. Order'!I145)","v":""},{"$f":"IF('1. Order'!J145=\"\",\"\",'1. Order'!J145)","v":""},{"$f":"IF('1. Order'!K145=\"\",\"\",'1. Order'!K145)","v":""},{"$f":"IF('1. Order'!L145=\"\",\"\",'1. Order'!L145)","v":""},{"$f":"IF('1. Order'!M145=\"\",\"\",'1. Order'!M145)","v":""},{"$f":"IF('1. Order'!N145=\"\",\"\",'1. Order'!N145)","v":""},{"$f":"IF('1. Order'!P145=\"\",\"\",'1. Order'!P145)","v":""},{"$f":"IF('1. Order'!Q145=\"\",\"\",'1. Order'!Q145)","v":{"$error":"#N/A"}},{"$f":"IF('1. Order'!R145=\"\",\"\",'1. Order'!R145)","v":{"$error":"#N/A"}},{"$f":"IF('1. Order'!S145=\"\",\"\",'1. Order'!S145)","v":""},{"$f":"IF('1. Order'!T145=\"\",\"\",'1. Order'!T145)","v":""},{"$f":"IF('1. Order'!U145=\"\",\"\",'1. Order'!U145)","v":""},{"$f":"IF('1. Order'!X145=\"\",\"\",'1. Order'!X145)","v":""},{"$f":"IF('1. Order'!Y145=\"\",\"\",'1. Order'!Y145)","v":""},{"$f":"IF('1. Order'!Z145=\"\",\"\",'1. Order'!Z145)","v":""},{"$f":"IF('1. Order'!AC145=\"\",\"\",'1. Order'!AC145)","v":""},{"$f":"IF('1. Order'!AD145=\"\",\"\",'1. Order'!AD145)","v":""},{"$f":"IF('1. Order'!AE145=\"\",\"\",'1. Order'!AE145)","v":""},null,{"$f":"IF('1. Order'!AW145=\"\",\"\",'1. Order'!AW145)","v":""},{"$f":"IF('1. Order'!AX145=\"\",\"\",'1. Order'!AX145)","v":""},null,null,null,null,null,null,null,{"$f":"IF('1. Order'!BB145=\"\",\"\",'1. Order'!BB145)","v":""},{"$f":"IF('1. Order'!BC145=\"\",\"\",'1. Order'!BC145)","v":""},{"$f":"IF('1. Order'!BD145=\"\",\"\",'1. Order'!BD145)","v":""},{"$f":"IF('1. Order'!BE145=\"\",\"\",'1. Order'!BE145)","v":""},{"$f":"IF('1. Order'!BG145=\"\",\"\",'1. Order'!BG145)","v":""},{"$f":"IF('1. Order'!BH145=\"\",\"\",'1. Order'!BH145)","v":""},{"$f":"IF('1. Order'!BI145=\"\",\"\",'1. Order'!BI145)","v":""},{"$f":"IF('1. Order'!BJ145=\"\",\"\",'1. Order'!BJ145)","v":""},{"$f":"IF('1. Order'!BK145=\"\",\"\",'1. Order'!BK145)","v":"ZWO"}]
[{"$f":"IF('1. Order'!G146=\"\",\"\",'1. Order'!G146)","v":""},{"$f":"IF('1. Order'!H146=\"\",\"\",'1. Order'!H146)","v":""},{"$f":"IF('1. Order'!I146=\"\",\"\",'1. Order'!I146)","v":""},{"$f":"IF('1. Order'!J146=\"\",\"\",'1. Order'!J146)","v":""},{"$f":"IF('1. Order'!K146=\"\",\"\",'1. Order'!K146)","v":""},{"$f":"IF('1. Order'!L146=\"\",\"\",'1. Order'!L146)","v":""},{"$f":"IF('1. Order'!M146=\"\",\"\",'1. Order'!M146)","v":""},{"$f":"IF('1. Order'!N146=\"\",\"\",'1. Order'!N146)","v":""},{"$f":"IF('1. Order'!P146=\"\",\"\",'1. Order'!P146)","v":""},{"$f":"IF('1. Order'!Q146=\"\",\"\",'1. Order'!Q146)","v":{"$error":"#N/A"}},{"$f":"IF('1. Order'!R146=\"\",\"\",'1. Order'!R146)","v":{"$error":"#N/A"}},{"$f":"IF('1. Order'!S146=\"\",\"\",'1. Order'!S146)","v":""},{"$f":"IF('1. Order'!T146=\"\",\"\",'1. Order'!T146)","v":""},{"$f":"IF('1. Order'!U146=\"\",\"\",'1. Order'!U146)","v":""},{"$f":"IF('1. Order'!X146=\"\",\"\",'1. Order'!X146)","v":""},{"$f":"IF('1. Order'!Y146=\"\",\"\",'1. Order'!Y146)","v":""},{"$f":"IF('1. Order'!Z146=\"\",\"\",'1. Order'!Z146)","v":""},{"$f":"IF('1. Order'!AC146=\"\",\"\",'1. Order'!AC146)","v":""},{"$f":"IF('1. Order'!AD146=\"\",\"\",'1. Order'!AD146)","v":""},{"$f":"IF('1. Order'!AE146=\"\",\"\",'1. Order'!AE146)","v":""},null,{"$f":"IF('1. Order'!AW146=\"\",\"\",'1. Order'!AW146)","v":""},{"$f":"IF('1. Order'!AX146=\"\",\"\",'1. Order'!AX146)","v":""},null,null,null,null,null,null,null,{"$f":"IF('1. Order'!BB146=\"\",\"\",'1. Order'!BB146)","v":""},{"$f":"IF('1. Order'!BC146=\"\",\"\",'1. Order'!BC146)","v":""},{"$f":"IF('1. Order'!BD146=\"\",\"\",'1. Order'!BD146)","v":""},{"$f":"IF('1. Order'!BE146=\"\",\"\",'1. Order'!BE146)","v":""},{"$f":"IF('1. Order'!BG146=\"\",\"\",'1. Order'!BG146)","v":""},{"$f":"IF('1. Order'!BH146=\"\",\"\",'1. Order'!BH146)","v":""},{"$f":"IF('1. Order'!BI146=\"\",\"\",'1. Order'!BI146)","v":""},{"$f":"IF('1. Order'!BJ146=\"\",\"\",'1. Order'!BJ146)","v":""},{"$f":"IF('1. Order'!BK146=\"\",\"\",'1. Order'!BK146)","v":"ZWO"}]
[{"$f":"IF('1. Order'!G147=\"\",\"\",'1. Order'!G147)","v":""},{"$f":"IF('1. Order'!H147=\"\",\"\",'1. Order'!H147)","v":""},{"$f":"IF('1. Order'!I147=\"\",\"\",'1. Order'!I147)","v":""},{"$f":"IF('1. Order'!J147=\"\",\"\",'1. Order'!J147)","v":""},{"$f":"IF('1. Order'!K147=\"\",\"\",'1. Order'!K147)","v":""},{"$f":"IF('1. Order'!L147=\"\",\"\",'1. Order'!L147)","v":""},{"$f":"IF('1. Order'!M147=\"\",\"\",'1. Order'!M147)","v":""},{"$f":"IF('1. Order'!N147=\"\",\"\",'1. Order'!N147)","v":""},{"$f":"IF('1. Order'!P147=\"\",\"\",'1. Order'!P147)","v":""},{"$f":"IF('1. Order'!Q147=\"\",\"\",'1. Order'!Q147)","v":{"$error":"#N/A"}},{"$f":"IF('1. Order'!R147=\"\",\"\",'1. Order'!R147)","v":{"$error":"#N/A"}},{"$f":"IF('1. Order'!S147=\"\",\"\",'1. Order'!S147)","v":""},{"$f":"IF('1. Order'!T147=\"\",\"\",'1. Order'!T147)","v":""},{"$f":"IF('1. Order'!U147=\"\",\"\",'1. Order'!U147)","v":""},{"$f":"IF('1. Order'!X147=\"\",\"\",'1. Order'!X147)","v":""},{"$f":"IF('1. Order'!Y147=\"\",\"\",'1. Order'!Y147)","v":""},{"$f":"IF('1. Order'!Z147=\"\",\"\",'1. Order'!Z147)","v":""},{"$f":"IF('1. Order'!AC147=\"\",\"\",'1. Order'!AC147)","v":""},{"$f":"IF('1. Order'!AD147=\"\",\"\",'1. Order'!AD147)","v":""},{"$f":"IF('1. Order'!AE147=\"\",\"\",'1. Order'!AE147)","v":""},null,{"$f":"IF('1. Order'!AW147=\"\",\"\",'1. Order'!AW147)","v":""},{"$f":"IF('1. Order'!AX147=\"\",\"\",'1. Order'!AX147)","v":""},null,null,null,null,null,null,null,{"$f":"IF('1. Order'!BB147=\"\",\"\",'1. Order'!BB147)","v":""},{"$f":"IF('1. Order'!BC147=\"\",\"\",'1. Order'!BC147)","v":""},{"$f":"IF('1. Order'!BD147=\"\",\"\",'1. Order'!BD147)","v":""},{"$f":"IF('1. Order'!BE147=\"\",\"\",'1. Order'!BE147)","v":""},{"$f":"IF('1. Order'!BG147=\"\",\"\",'1. Order'!BG147)","v":""},{"$f":"IF('1. Order'!BH147=\"\",\"\",'1. Order'!BH147)","v":""},{"$f":"IF('1. Order'!BI147=\"\",\"\",'1. Order'!BI147)","v":""},{"$f":"IF('1. Order'!BJ147=\"\",\"\",'1. Order'!BJ147)","v":""},{"$f":"IF('1. Order'!BK147=\"\",\"\",'1. Order'!BK147)","v":"ZWO"}]
[{"$f":"IF('1. Order'!G148=\"\",\"\",'1. Order'!G148)","v":""},{"$f":"IF('1. Order'!H148=\"\",\"\",'1. Order'!H148)","v":""},{"$f":"IF('1. Order'!I148=\"\",\"\",'1. Order'!I148)","v":""},{"$f":"IF('1. Order'!J148=\"\",\"\",'1. Order'!J148)","v":""},{"$f":"IF('1. Order'!K148=\"\",\"\",'1. Order'!K148)","v":""},{"$f":"IF('1. Order'!L148=\"\",\"\",'1. Order'!L148)","v":""},{"$f":"IF('1. Order'!M148=\"\",\"\",'1. Order'!M148)","v":""},{"$f":"IF('1. Order'!N148=\"\",\"\",'1. Order'!N148)","v":""},{"$f":"IF('1. Order'!P148=\"\",\"\",'1. Order'!P148)","v":""},{"$f":"IF('1. Order'!Q148=\"\",\"\",'1. Order'!Q148)","v":{"$error":"#N/A"}},{"$f":"IF('1. Order'!R148=\"\",\"\",'1. Order'!R148)","v":{"$error":"#N/A"}},{"$f":"IF('1. Order'!S148=\"\",\"\",'1. Order'!S148)","v":""},{"$f":"IF('1. Order'!T148=\"\",\"\",'1. Order'!T148)","v":""},{"$f":"IF('1. Order'!U148=\"\",\"\",'1. Order'!U148)","v":""},{"$f":"IF('1. Order'!X148=\"\",\"\",'1. Order'!X148)","v":""},{"$f":"IF('1. Order'!Y148=\"\",\"\",'1. Order'!Y148)","v":""},{"$f":"IF('1. Order'!Z148=\"\",\"\",'1. Order'!Z148)","v":""},{"$f":"IF('1. Order'!AC148=\"\",\"\",'1. Order'!AC148)","v":""},{"$f":"IF('1. Order'!AD148=\"\",\"\",'1. Order'!AD148)","v":""},{"$f":"IF('1. Order'!AE148=\"\",\"\",'1. Order'!AE148)","v":""},null,{"$f":"IF('1. Order'!AW148=\"\",\"\",'1. Order'!AW148)","v":""},{"$f":"IF('1. Order'!AX148=\"\",\"\",'1. Order'!AX148)","v":""},null,null,null,null,null,null,null,{"$f":"IF('1. Order'!BB148=\"\",\"\",'1. Order'!BB148)","v":""},{"$f":"IF('1. Order'!BC148=\"\",\"\",'1. Order'!BC148)","v":""},{"$f":"IF('1. Order'!BD148=\"\",\"\",'1. Order'!BD148)","v":""},{"$f":"IF('1. Order'!BE148=\"\",\"\",'1. Order'!BE148)","v":""},{"$f":"IF('1. Order'!BG148=\"\",\"\",'1. Order'!BG148)","v":""},{"$f":"IF('1. Order'!BH148=\"\",\"\",'1. Order'!BH148)","v":""},{"$f":"IF('1. Order'!BI148=\"\",\"\",'1. Order'!BI148)","v":""},{"$f":"IF('1. Order'!BJ148=\"\",\"\",'1. Order'!BJ148)","v":""},{"$f":"IF('1. Order'!BK148=\"\",\"\",'1. Order'!BK148)","v":"ZWO"}]
[{"$f":"IF('1. Order'!G149=\"\",\"\",'1. Order'!G149)","v":""},{"$f":"IF('1. Order'!H149=\"\",\"\",'1. Order'!H149)","v":""},{"$f":"IF('1. Order'!I149=\"\",\"\",'1. Order'!I149)","v":""},{"$f":"IF('1. Order'!J149=\"\",\"\",'1. Order'!J149)","v":""},{"$f":"IF('1. Order'!K149=\"\",\"\",'1. Order'!K149)","v":""},{"$f":"IF('1. Order'!L149=\"\",\"\",'1. Order'!L149)","v":""},{"$f":"IF('1. Order'!M149=\"\",\"\",'1. Order'!M149)","v":""},{"$f":"IF('1. Order'!N149=\"\",\"\",'1. Order'!N149)","v":""},{"$f":"IF('1. Order'!P149=\"\",\"\",'1. Order'!P149)","v":""},{"$f":"IF('1. Order'!Q149=\"\",\"\",'1. Order'!Q149)","v":{"$error":"#N/A"}},{"$f":"IF('1. Order'!R149=\"\",\"\",'1. Order'!R149)","v":{"$error":"#N/A"}},{"$f":"IF('1. Order'!S149=\"\",\"\",'1. Order'!S149)","v":""},{"$f":"IF('1. Order'!T149=\"\",\"\",'1. Order'!T149)","v":""},{"$f":"IF('1. Order'!U149=\"\",\"\",'1. Order'!U149)","v":""},{"$f":"IF('1. Order'!X149=\"\",\"\",'1. Order'!X149)","v":""},{"$f":"IF('1. Order'!Y149=\"\",\"\",'1. Order'!Y149)","v":""},{"$f":"IF('1. Order'!Z149=\"\",\"\",'1. Order'!Z149)","v":""},{"$f":"IF('1. Order'!AC149=\"\",\"\",'1. Order'!AC149)","v":""},{"$f":"IF('1. Order'!AD149=\"\",\"\",'1. Order'!AD149)","v":""},{"$f":"IF('1. Order'!AE149=\"\",\"\",'1. Order'!AE149)","v":""},null,{"$f":"IF('1. Order'!AW149=\"\",\"\",'1. Order'!AW149)","v":""},{"$f":"IF('1. Order'!AX149=\"\",\"\",'1. Order'!AX149)","v":""},null,null,null,null,null,null,null,{"$f":"IF('1. Order'!BB149=\"\",\"\",'1. Order'!BB149)","v":""},{"$f":"IF('1. Order'!BC149=\"\",\"\",'1. Order'!BC149)","v":""},{"$f":"IF('1. Order'!BD149=\"\",\"\",'1. Order'!BD149)","v":""},{"$f":"IF('1. Order'!BE149=\"\",\"\",'1. Order'!BE149)","v":""},{"$f":"IF('1. Order'!BG149=\"\",\"\",'1. Order'!BG149)","v":""},{"$f":"IF('1. Order'!BH149=\"\",\"\",'1. Order'!BH149)","v":""},{"$f":"IF('1. Order'!BI149=\"\",\"\",'1. Order'!BI149)","v":""},{"$f":"IF('1. Order'!BJ149=\"\",\"\",'1. Order'!BJ149)","v":""},{"$f":"IF('1. Order'!BK149=\"\",\"\",'1. Order'!BK149)","v":"ZWO"}]
[{"$f":"IF('1. Order'!G150=\"\",\"\",'1. Order'!G150)","v":""},{"$f":"IF('1. Order'!H150=\"\",\"\",'1. Order'!H150)","v":""},{"$f":"IF('1. Order'!I150=\"\",\"\",'1. Order'!I150)","v":""},{"$f":"IF('1. Order'!J150=\"\",\"\",'1. Order'!J150)","v":""},{"$f":"IF('1. Order'!K150=\"\",\"\",'1. Order'!K150)","v":""},{"$f":"IF('1. Order'!L150=\"\",\"\",'1. Order'!L150)","v":""},{"$f":"IF('1. Order'!M150=\"\",\"\",'1. Order'!M150)","v":""},{"$f":"IF('1. Order'!N150=\"\",\"\",'1. Order'!N150)","v":""},{"$f":"IF('1. Order'!P150=\"\",\"\",'1. Order'!P150)","v":""},{"$f":"IF('1. Order'!Q150=\"\",\"\",'1. Order'!Q150)","v":{"$error":"#N/A"}},{"$f":"IF('1. Order'!R150=\"\",\"\",'1. Order'!R150)","v":{"$error":"#N/A"}},{"$f":"IF('1. Order'!S150=\"\",\"\",'1. Order'!S150)","v":""},{"$f":"IF('1. Order'!T150=\"\",\"\",'1. Order'!T150)","v":""},{"$f":"IF('1. Order'!U150=\"\",\"\",'1. Order'!U150)","v":""},{"$f":"IF('1. Order'!X150=\"\",\"\",'1. Order'!X150)","v":""},{"$f":"IF('1. Order'!Y150=\"\",\"\",'1. Order'!Y150)","v":""},{"$f":"IF('1. Order'!Z150=\"\",\"\",'1. Order'!Z150)","v":""},{"$f":"IF('1. Order'!AC150=\"\",\"\",'1. Order'!AC150)","v":""},{"$f":"IF('1. Order'!AD150=\"\",\"\",'1. Order'!AD150)","v":""},{"$f":"IF('1. Order'!AE150=\"\",\"\",'1. Order'!AE150)","v":""},null,{"$f":"IF('1. Order'!AW150=\"\",\"\",'1. Order'!AW150)","v":""},{"$f":"IF('1. Order'!AX150=\"\",\"\",'1. Order'!AX150)","v":""},null,null,null,null,null,null,null,{"$f":"IF('1. Order'!BB150=\"\",\"\",'1. Order'!BB150)","v":""},{"$f":"IF('1. Order'!BC150=\"\",\"\",'1. Order'!BC150)","v":""},{"$f":"IF('1. Order'!BD150=\"\",\"\",'1. Order'!BD150)","v":""},{"$f":"IF('1. Order'!BE150=\"\",\"\",'1. Order'!BE150)","v":""},{"$f":"IF('1. Order'!BG150=\"\",\"\",'1. Order'!BG150)","v":""},{"$f":"IF('1. Order'!BH150=\"\",\"\",'1. Order'!BH150)","v":""},{"$f":"IF('1. Order'!BI150=\"\",\"\",'1. Order'!BI150)","v":""},{"$f":"IF('1. Order'!BJ150=\"\",\"\",'1. Order'!BJ150)","v":""},{"$f":"IF('1. Order'!BK150=\"\",\"\",'1. Order'!BK150)","v":"ZWO"}]
[{"$f":"IF('1. Order'!G151=\"\",\"\",'1. Order'!G151)","v":""},{"$f":"IF('1. Order'!H151=\"\",\"\",'1. Order'!H151)","v":""},{"$f":"IF('1. Order'!I151=\"\",\"\",'1. Order'!I151)","v":""},{"$f":"IF('1. Order'!J151=\"\",\"\",'1. Order'!J151)","v":""},{"$f":"IF('1. Order'!K151=\"\",\"\",'1. Order'!K151)","v":""},{"$f":"IF('1. Order'!L151=\"\",\"\",'1. Order'!L151)","v":""},{"$f":"IF('1. Order'!M151=\"\",\"\",'1. Order'!M151)","v":""},{"$f":"IF('1. Order'!N151=\"\",\"\",'1. Order'!N151)","v":""},{"$f":"IF('1. Order'!P151=\"\",\"\",'1. Order'!P151)","v":""},{"$f":"IF('1. Order'!Q151=\"\",\"\",'1. Order'!Q151)","v":{"$error":"#N/A"}},{"$f":"IF('1. Order'!R151=\"\",\"\",'1. Order'!R151)","v":{"$error":"#N/A"}},{"$f":"IF('1. Order'!S151=\"\",\"\",'1. Order'!S151)","v":""},{"$f":"IF('1. Order'!T151=\"\",\"\",'1. Order'!T151)","v":""},{"$f":"IF('1. Order'!U151=\"\",\"\",'1. Order'!U151)","v":""},{"$f":"IF('1. Order'!X151=\"\",\"\",'1. Order'!X151)","v":""},{"$f":"IF('1. Order'!Y151=\"\",\"\",'1. Order'!Y151)","v":""},{"$f":"IF('1. Order'!Z151=\"\",\"\",'1. Order'!Z151)","v":""},{"$f":"IF('1. Order'!AC151=\"\",\"\",'1. Order'!AC151)","v":""},{"$f":"IF('1. Order'!AD151=\"\",\"\",'1. Order'!AD151)","v":""},{"$f":"IF('1. Order'!AE151=\"\",\"\",'1. Order'!AE151)","v":""},null,{"$f":"IF('1. Order'!AW151=\"\",\"\",'1. Order'!AW151)","v":""},{"$f":"IF('1. Order'!AX151=\"\",\"\",'1. Order'!AX151)","v":""},null,null,null,null,null,null,null,{"$f":"IF('1. Order'!BB151=\"\",\"\",'1. Order'!BB151)","v":""},{"$f":"IF('1. Order'!BC151=\"\",\"\",'1. Order'!BC151)","v":""},{"$f":"IF('1. Order'!BD151=\"\",\"\",'1. Order'!BD151)","v":""},{"$f":"IF('1. Order'!BE151=\"\",\"\",'1. Order'!BE151)","v":""},{"$f":"IF('1. Order'!BG151=\"\",\"\",'1. Order'!BG151)","v":""},{"$f":"IF('1. Order'!BH151=\"\",\"\",'1. Order'!BH151)","v":""},{"$f":"IF('1. Order'!BI151=\"\",\"\",'1. Order'!BI151)","v":""},{"$f":"IF('1. Order'!BJ151=\"\",\"\",'1. Order'!BJ151)","v":""},{"$f":"IF('1. Order'!BK151=\"\",\"\",'1. Order'!BK151)","v":"ZWO"}]
[{"$f":"IF('1. Order'!G152=\"\",\"\",'1. Order'!G152)","v":""},{"$f":"IF('1. Order'!H152=\"\",\"\",'1. Order'!H152)","v":""},{"$f":"IF('1. Order'!I152=\"\",\"\",'1. Order'!I152)","v":""},{"$f":"IF('1. Order'!J152=\"\",\"\",'1. Order'!J152)","v":""},{"$f":"IF('1. Order'!K152=\"\",\"\",'1. Order'!K152)","v":""},{"$f":"IF('1. Order'!L152=\"\",\"\",'1. Order'!L152)","v":""},{"$f":"IF('1. Order'!M152=\"\",\"\",'1. Order'!M152)","v":""},{"$f":"IF('1. Order'!N152=\"\",\"\",'1. Order'!N152)","v":""},{"$f":"IF('1. Order'!P152=\"\",\"\",'1. Order'!P152)","v":""},{"$f":"IF('1. Order'!Q152=\"\",\"\",'1. Order'!Q152)","v":{"$error":"#N/A"}},{"$f":"IF('1. Order'!R152=\"\",\"\",'1. Order'!R152)","v":{"$error":"#N/A"}},{"$f":"IF('1. Order'!S152=\"\",\"\",'1. Order'!S152)","v":""},{"$f":"IF('1. Order'!T152=\"\",\"\",'1. Order'!T152)","v":""},{"$f":"IF('1. Order'!U152=\"\",\"\",'1. Order'!U152)","v":""},{"$f":"IF('1. Order'!X152=\"\",\"\",'1. Order'!X152)","v":""},{"$f":"IF('1. Order'!Y152=\"\",\"\",'1. Order'!Y152)","v":""},{"$f":"IF('1. Order'!Z152=\"\",\"\",'1. Order'!Z152)","v":""},{"$f":"IF('1. Order'!AC152=\"\",\"\",'1. Order'!AC152)","v":""},{"$f":"IF('1. Order'!AD152=\"\",\"\",'1. Order'!AD152)","v":""},{"$f":"IF('1. Order'!AE152=\"\",\"\",'1. Order'!AE152)","v":""},null,{"$f":"IF('1. Order'!AW152=\"\",\"\",'1. Order'!AW152)","v":""},{"$f":"IF('1. Order'!AX152=\"\",\"\",'1. Order'!AX152)","v":""},null,null,null,null,null,null,null,{"$f":"IF('1. Order'!BB152=\"\",\"\",'1. Order'!BB152)","v":""},{"$f":"IF('1. Order'!BC152=\"\",\"\",'1. Order'!BC152)","v":""},{"$f":"IF('1. Order'!BD152=\"\",\"\",'1. Order'!BD152)","v":""},{"$f":"IF('1. Order'!BE152=\"\",\"\",'1. Order'!BE152)","v":""},{"$f":"IF('1. Order'!BG152=\"\",\"\",'1. Order'!BG152)","v":""},{"$f":"IF('1. Order'!BH152=\"\",\"\",'1. Order'!BH152)","v":""},{"$f":"IF('1. Order'!BI152=\"\",\"\",'1. Order'!BI152)","v":""},{"$f":"IF('1. Order'!BJ152=\"\",\"\",'1. Order'!BJ152)","v":""},{"$f":"IF('1. Order'!BK152=\"\",\"\",'1. Order'!BK152)","v":"ZWO"}]
[{"$f":"IF('1. Order'!G153=\"\",\"\",'1. Order'!G153)","v":""},{"$f":"IF('1. Order'!H153=\"\",\"\",'1. Order'!H153)","v":""},{"$f":"IF('1. Order'!I153=\"\",\"\",'1. Order'!I153)","v":""},{"$f":"IF('1. Order'!J153=\"\",\"\",'1. Order'!J153)","v":""},{"$f":"IF('1. Order'!K153=\"\",\"\",'1. Order'!K153)","v":""},{"$f":"IF('1. Order'!L153=\"\",\"\",'1. Order'!L153)","v":""},{"$f":"IF('1. Order'!M153=\"\",\"\",'1. Order'!M153)","v":""},{"$f":"IF('1. Order'!N153=\"\",\"\",'1. Order'!N153)","v":""},{"$f":"IF('1. Order'!P153=\"\",\"\",'1. Order'!P153)","v":""},{"$f":"IF('1. Order'!Q153=\"\",\"\",'1. Order'!Q153)","v":{"$error":"#N/A"}},{"$f":"IF('1. Order'!R153=\"\",\"\",'1. Order'!R153)","v":{"$error":"#N/A"}},{"$f":"IF('1. Order'!S153=\"\",\"\",'1. Order'!S153)","v":""},{"$f":"IF('1. Order'!T153=\"\",\"\",'1. Order'!T153)","v":""},{"$f":"IF('1. Order'!U153=\"\",\"\",'1. Order'!U153)","v":""},{"$f":"IF('1. Order'!X153=\"\",\"\",'1. Order'!X153)","v":""},{"$f":"IF('1. Order'!Y153=\"\",\"\",'1. Order'!Y153)","v":""},{"$f":"IF('1. Order'!Z153=\"\",\"\",'1. Order'!Z153)","v":""},{"$f":"IF('1. Order'!AC153=\"\",\"\",'1. Order'!AC153)","v":""},{"$f":"IF('1. Order'!AD153=\"\",\"\",'1. Order'!AD153)","v":""},{"$f":"IF('1. Order'!AE153=\"\",\"\",'1. Order'!AE153)","v":""},null,{"$f":"IF('1. Order'!AW153=\"\",\"\",'1. Order'!AW153)","v":""},{"$f":"IF('1. Order'!AX153=\"\",\"\",'1. Order'!AX153)","v":""},null,null,null,null,null,null,null,{"$f":"IF('1. Order'!BB153=\"\",\"\",'1. Order'!BB153)","v":""},{"$f":"IF('1. Order'!BC153=\"\",\"\",'1. Order'!BC153)","v":""},{"$f":"IF('1. Order'!BD153=\"\",\"\",'1. Order'!BD153)","v":""},{"$f":"IF('1. Order'!BE153=\"\",\"\",'1. Order'!BE153)","v":""},{"$f":"IF('1. Order'!BG153=\"\",\"\",'1. Order'!BG153)","v":""},{"$f":"IF('1. Order'!BH153=\"\",\"\",'1. Order'!BH153)","v":""},{"$f":"IF('1. Order'!BI153=\"\",\"\",'1. Order'!BI153)","v":""},{"$f":"IF('1. Order'!BJ153=\"\",\"\",'1. Order'!BJ153)","v":""},{"$f":"IF('1. Order'!BK153=\"\",\"\",'1. Order'!BK153)","v":"ZWO"}]
[{"$f":"IF('1. Order'!G154=\"\",\"\",'1. Order'!G154)","v":""},{"$f":"IF('1. Order'!H154=\"\",\"\",'1. Order'!H154)","v":""},{"$f":"IF('1. Order'!I154=\"\",\"\",'1. Order'!I154)","v":""},{"$f":"IF('1. Order'!J154=\"\",\"\",'1. Order'!J154)","v":""},{"$f":"IF('1. Order'!K154=\"\",\"\",'1. Order'!K154)","v":""},{"$f":"IF('1. Order'!L154=\"\",\"\",'1. Order'!L154)","v":""},{"$f":"IF('1. Order'!M154=\"\",\"\",'1. Order'!M154)","v":""},{"$f":"IF('1. Order'!N154=\"\",\"\",'1. Order'!N154)","v":""},{"$f":"IF('1. Order'!P154=\"\",\"\",'1. Order'!P154)","v":""},{"$f":"IF('1. Order'!Q154=\"\",\"\",'1. Order'!Q154)","v":{"$error":"#N/A"}},{"$f":"IF('1. Order'!R154=\"\",\"\",'1. Order'!R154)","v":{"$error":"#N/A"}},{"$f":"IF('1. Order'!S154=\"\",\"\",'1. Order'!S154)","v":""},{"$f":"IF('1. Order'!T154=\"\",\"\",'1. Order'!T154)","v":""},{"$f":"IF('1. Order'!U154=\"\",\"\",'1. Order'!U154)","v":""},{"$f":"IF('1. Order'!X154=\"\",\"\",'1. Order'!X154)","v":""},{"$f":"IF('1. Order'!Y154=\"\",\"\",'1. Order'!Y154)","v":""},{"$f":"IF('1. Order'!Z154=\"\",\"\",'1. Order'!Z154)","v":""},{"$f":"IF('1. Order'!AC154=\"\",\"\",'1. Order'!AC154)","v":""},{"$f":"IF('1. Order'!AD154=\"\",\"\",'1. Order'!AD154)","v":""},{"$f":"IF('1. Order'!AE154=\"\",\"\",'1. Order'!AE154)","v":""},null,{"$f":"IF('1. Order'!AW154=\"\",\"\",'1. Order'!AW154)","v":""},{"$f":"IF('1. Order'!AX154=\"\",\"\",'1. Order'!AX154)","v":""},null,null,null,null,null,null,null,{"$f":"IF('1. Order'!BB154=\"\",\"\",'1. Order'!BB154)","v":""},{"$f":"IF('1. Order'!BC154=\"\",\"\",'1. Order'!BC154)","v":""},{"$f":"IF('1. Order'!BD154=\"\",\"\",'1. Order'!BD154)","v":""},{"$f":"IF('1. Order'!BE154=\"\",\"\",'1. Order'!BE154)","v":""},{"$f":"IF('1. Order'!BG154=\"\",\"\",'1. Order'!BG154)","v":""},{"$f":"IF('1. Order'!BH154=\"\",\"\",'1. Order'!BH154)","v":""},{"$f":"IF('1. Order'!BI154=\"\",\"\",'1. Order'!BI154)","v":""},{"$f":"IF('1. Order'!BJ154=\"\",\"\",'1. Order'!BJ154)","v":""},{"$f":"IF('1. Order'!BK154=\"\",\"\",'1. Order'!BK154)","v":"ZWO"}]
[{"$f":"IF('1. Order'!G155=\"\",\"\",'1. Order'!G155)","v":""},{"$f":"IF('1. Order'!H155=\"\",\"\",'1. Order'!H155)","v":""},{"$f":"IF('1. Order'!I155=\"\",\"\",'1. Order'!I155)","v":""},{"$f":"IF('1. Order'!J155=\"\",\"\",'1. Order'!J155)","v":""},{"$f":"IF('1. Order'!K155=\"\",\"\",'1. Order'!K155)","v":""},{"$f":"IF('1. Order'!L155=\"\",\"\",'1. Order'!L155)","v":""},{"$f":"IF('1. Order'!M155=\"\",\"\",'1. Order'!M155)","v":""},{"$f":"IF('1. Order'!N155=\"\",\"\",'1. Order'!N155)","v":""},{"$f":"IF('1. Order'!P155=\"\",\"\",'1. Order'!P155)","v":""},{"$f":"IF('1. Order'!Q155=\"\",\"\",'1. Order'!Q155)","v":{"$error":"#N/A"}},{"$f":"IF('1. Order'!R155=\"\",\"\",'1. Order'!R155)","v":{"$error":"#N/A"}},{"$f":"IF('1. Order'!S155=\"\",\"\",'1. Order'!S155)","v":""},{"$f":"IF('1. Order'!T155=\"\",\"\",'1. Order'!T155)","v":""},{"$f":"IF('1. Order'!U155=\"\",\"\",'1. Order'!U155)","v":""},{"$f":"IF('1. Order'!X155=\"\",\"\",'1. Order'!X155)","v":""},{"$f":"IF('1. Order'!Y155=\"\",\"\",'1. Order'!Y155)","v":""},{"$f":"IF('1. Order'!Z155=\"\",\"\",'1. Order'!Z155)","v":""},{"$f":"IF('1. Order'!AC155=\"\",\"\",'1. Order'!AC155)","v":""},{"$f":"IF('1. Order'!AD155=\"\",\"\",'1. Order'!AD155)","v":""},{"$f":"IF('1. Order'!AE155=\"\",\"\",'1. Order'!AE155)","v":""},null,{"$f":"IF('1. Order'!AW155=\"\",\"\",'1. Order'!AW155)","v":""},{"$f":"IF('1. Order'!AX155=\"\",\"\",'1. Order'!AX155)","v":""},null,null,null,null,null,null,null,{"$f":"IF('1. Order'!BB155=\"\",\"\",'1. Order'!BB155)","v":""},{"$f":"IF('1. Order'!BC155=\"\",\"\",'1. Order'!BC155)","v":""},{"$f":"IF('1. Order'!BD155=\"\",\"\",'1. Order'!BD155)","v":""},{"$f":"IF('1. Order'!BE155=\"\",\"\",'1. Order'!BE155)","v":""},{"$f":"IF('1. Order'!BG155=\"\",\"\",'1. Order'!BG155)","v":""},{"$f":"IF('1. Order'!BH155=\"\",\"\",'1. Order'!BH155)","v":""},{"$f":"IF('1. Order'!BI155=\"\",\"\",'1. Order'!BI155)","v":""},{"$f":"IF('1. Order'!BJ155=\"\",\"\",'1. Order'!BJ155)","v":""},{"$f":"IF('1. Order'!BK155=\"\",\"\",'1. Order'!BK155)","v":"ZWO"}]
[{"$f":"IF('1. Order'!G156=\"\",\"\",'1. Order'!G156)","v":""},{"$f":"IF('1. Order'!H156=\"\",\"\",'1. Order'!H156)","v":""},{"$f":"IF('1. Order'!I156=\"\",\"\",'1. Order'!I156)","v":""},{"$f":"IF('1. Order'!J156=\"\",\"\",'1. Order'!J156)","v":""},{"$f":"IF('1. Order'!K156=\"\",\"\",'1. Order'!K156)","v":""},{"$f":"IF('1. Order'!L156=\"\",\"\",'1. Order'!L156)","v":""},{"$f":"IF('1. Order'!M156=\"\",\"\",'1. Order'!M156)","v":""},{"$f":"IF('1. Order'!N156=\"\",\"\",'1. Order'!N156)","v":""},{"$f":"IF('1. Order'!P156=\"\",\"\",'1. Order'!P156)","v":""},{"$f":"IF('1. Order'!Q156=\"\",\"\",'1. Order'!Q156)","v":{"$error":"#N/A"}},{"$f":"IF('1. Order'!R156=\"\",\"\",'1. Order'!R156)","v":{"$error":"#N/A"}},{"$f":"IF('1. Order'!S156=\"\",\"\",'1. Order'!S156)","v":""},{"$f":"IF('1. Order'!T156=\"\",\"\",'1. Order'!T156)","v":""},{"$f":"IF('1. Order'!U156=\"\",\"\",'1. Order'!U156)","v":""},{"$f":"IF('1. Order'!X156=\"\",\"\",'1. Order'!X156)","v":""},{"$f":"IF('1. Order'!Y156=\"\",\"\",'1. Order'!Y156)","v":""},{"$f":"IF('1. Order'!Z156=\"\",\"\",'1. Order'!Z156)","v":""},{"$f":"IF('1. Order'!AC156=\"\",\"\",'1. Order'!AC156)","v":""},{"$f":"IF('1. Order'!AD156=\"\",\"\",'1. Order'!AD156)","v":""},{"$f":"IF('1. Order'!AE156=\"\",\"\",'1. Order'!AE156)","v":""},null,{"$f":"IF('1. Order'!AW156=\"\",\"\",'1. Order'!AW156)","v":""},{"$f":"IF('1. Order'!AX156=\"\",\"\",'1. Order'!AX156)","v":""},null,null,null,null,null,null,null,{"$f":"IF('1. Order'!BB156=\"\",\"\",'1. Order'!BB156)","v":""},{"$f":"IF('1. Order'!BC156=\"\",\"\",'1. Order'!BC156)","v":""},{"$f":"IF('1. Order'!BD156=\"\",\"\",'1. Order'!BD156)","v":""},{"$f":"IF('1. Order'!BE156=\"\",\"\",'1. Order'!BE156)","v":""},{"$f":"IF('1. Order'!BG156=\"\",\"\",'1. Order'!BG156)","v":""},{"$f":"IF('1. Order'!BH156=\"\",\"\",'1. Order'!BH156)","v":""},{"$f":"IF('1. Order'!BI156=\"\",\"\",'1. Order'!BI156)","v":""},{"$f":"IF('1. Order'!BJ156=\"\",\"\",'1. Order'!BJ156)","v":""},{"$f":"IF('1. Order'!BK156=\"\",\"\",'1. Order'!BK156)","v":"ZWO"}]
[{"$f":"IF('1. Order'!G157=\"\",\"\",'1. Order'!G157)","v":""},{"$f":"IF('1. Order'!H157=\"\",\"\",'1. Order'!H157)","v":""},{"$f":"IF('1. Order'!I157=\"\",\"\",'1. Order'!I157)","v":""},{"$f":"IF('1. Order'!J157=\"\",\"\",'1. Order'!J157)","v":""},{"$f":"IF('1. Order'!K157=\"\",\"\",'1. Order'!K157)","v":""},{"$f":"IF('1. Order'!L157=\"\",\"\",'1. Order'!L157)","v":""},{"$f":"IF('1. Order'!M157=\"\",\"\",'1. Order'!M157)","v":""},{"$f":"IF('1. Order'!N157=\"\",\"\",'1. Order'!N157)","v":""},{"$f":"IF('1. Order'!P157=\"\",\"\",'1. Order'!P157)","v":""},{"$f":"IF('1. Order'!Q157=\"\",\"\",'1. Order'!Q157)","v":{"$error":"#N/A"}},{"$f":"IF('1. Order'!R157=\"\",\"\",'1. Order'!R157)","v":{"$error":"#N/A"}},{"$f":"IF('1. Order'!S157=\"\",\"\",'1. Order'!S157)","v":""},{"$f":"IF('1. Order'!T157=\"\",\"\",'1. Order'!T157)","v":""},{"$f":"IF('1. Order'!U157=\"\",\"\",'1. Order'!U157)","v":""},{"$f":"IF('1. Order'!X157=\"\",\"\",'1. Order'!X157)","v":""},{"$f":"IF('1. Order'!Y157=\"\",\"\",'1. Order'!Y157)","v":""},{"$f":"IF('1. Order'!Z157=\"\",\"\",'1. Order'!Z157)","v":""},{"$f":"IF('1. Order'!AC157=\"\",\"\",'1. Order'!AC157)","v":""},{"$f":"IF('1. Order'!AD157=\"\",\"\",'1. Order'!AD157)","v":""},{"$f":"IF('1. Order'!AE157=\"\",\"\",'1. Order'!AE157)","v":""},null,{"$f":"IF('1. Order'!AW157=\"\",\"\",'1. Order'!AW157)","v":""},{"$f":"IF('1. Order'!AX157=\"\",\"\",'1. Order'!AX157)","v":""},null,null,null,null,null,null,null,{"$f":"IF('1. Order'!BB157=\"\",\"\",'1. Order'!BB157)","v":""},{"$f":"IF('1. Order'!BC157=\"\",\"\",'1. Order'!BC157)","v":""},{"$f":"IF('1. Order'!BD157=\"\",\"\",'1. Order'!BD157)","v":""},{"$f":"IF('1. Order'!BE157=\"\",\"\",'1. Order'!BE157)","v":""},{"$f":"IF('1. Order'!BG157=\"\",\"\",'1. Order'!BG157)","v":""},{"$f":"IF('1. Order'!BH157=\"\",\"\",'1. Order'!BH157)","v":""},{"$f":"IF('1. Order'!BI157=\"\",\"\",'1. Order'!BI157)","v":""},{"$f":"IF('1. Order'!BJ157=\"\",\"\",'1. Order'!BJ157)","v":""},{"$f":"IF('1. Order'!BK157=\"\",\"\",'1. Order'!BK157)","v":"ZWO"}]
[{"$f":"IF('1. Order'!G158=\"\",\"\",'1. Order'!G158)","v":""},{"$f":"IF('1. Order'!H158=\"\",\"\",'1. Order'!H158)","v":""},{"$f":"IF('1. Order'!I158=\"\",\"\",'1. Order'!I158)","v":""},{"$f":"IF('1. Order'!J158=\"\",\"\",'1. Order'!J158)","v":""},{"$f":"IF('1. Order'!K158=\"\",\"\",'1. Order'!K158)","v":""},{"$f":"IF('1. Order'!L158=\"\",\"\",'1. Order'!L158)","v":""},{"$f":"IF('1. Order'!M158=\"\",\"\",'1. Order'!M158)","v":""},{"$f":"IF('1. Order'!N158=\"\",\"\",'1. Order'!N158)","v":""},{"$f":"IF('1. Order'!P158=\"\",\"\",'1. Order'!P158)","v":""},{"$f":"IF('1. Order'!Q158=\"\",\"\",'1. Order'!Q158)","v":{"$error":"#N/A"}},{"$f":"IF('1. Order'!R158=\"\",\"\",'1. Order'!R158)","v":{"$error":"#N/A"}},{"$f":"IF('1. Order'!S158=\"\",\"\",'1. Order'!S158)","v":""},{"$f":"IF('1. Order'!T158=\"\",\"\",'1. Order'!T158)","v":""},{"$f":"IF('1. Order'!U158=\"\",\"\",'1. Order'!U158)","v":""},{"$f":"IF('1. Order'!X158=\"\",\"\",'1. Order'!X158)","v":""},{"$f":"IF('1. Order'!Y158=\"\",\"\",'1. Order'!Y158)","v":""},{"$f":"IF('1. Order'!Z158=\"\",\"\",'1. Order'!Z158)","v":""},{"$f":"IF('1. Order'!AC158=\"\",\"\",'1. Order'!AC158)","v":""},{"$f":"IF('1. Order'!AD158=\"\",\"\",'1. Order'!AD158)","v":""},{"$f":"IF('1. Order'!AE158=\"\",\"\",'1. Order'!AE158)","v":""},null,{"$f":"IF('1. Order'!AW158=\"\",\"\",'1. Order'!AW158)","v":""},{"$f":"IF('1. Order'!AX158=\"\",\"\",'1. Order'!AX158)","v":""},null,null,null,null,null,null,null,{"$f":"IF('1. Order'!BB158=\"\",\"\",'1. Order'!BB158)","v":""},{"$f":"IF('1. Order'!BC158=\"\",\"\",'1. Order'!BC158)","v":""},{"$f":"IF('1. Order'!BD158=\"\",\"\",'1. Order'!BD158)","v":""},{"$f":"IF('1. Order'!BE158=\"\",\"\",'1. Order'!BE158)","v":""},{"$f":"IF('1. Order'!BG158=\"\",\"\",'1. Order'!BG158)","v":""},{"$f":"IF('1. Order'!BH158=\"\",\"\",'1. Order'!BH158)","v":""},{"$f":"IF('1. Order'!BI158=\"\",\"\",'1. Order'!BI158)","v":""},{"$f":"IF('1. Order'!BJ158=\"\",\"\",'1. Order'!BJ158)","v":""},{"$f":"IF('1. Order'!BK158=\"\",\"\",'1. Order'!BK158)","v":"ZWO"}]
[{"$f":"IF('1. Order'!G159=\"\",\"\",'1. Order'!G159)","v":""},{"$f":"IF('1. Order'!H159=\"\",\"\",'1. Order'!H159)","v":""},{"$f":"IF('1. Order'!I159=\"\",\"\",'1. Order'!I159)","v":""},{"$f":"IF('1. Order'!J159=\"\",\"\",'1. Order'!J159)","v":""},{"$f":"IF('1. Order'!K159=\"\",\"\",'1. Order'!K159)","v":""},{"$f":"IF('1. Order'!L159=\"\",\"\",'1. Order'!L159)","v":""},{"$f":"IF('1. Order'!M159=\"\",\"\",'1. Order'!M159)","v":""},{"$f":"IF('1. Order'!N159=\"\",\"\",'1. Order'!N159)","v":""},{"$f":"IF('1. Order'!P159=\"\",\"\",'1. Order'!P159)","v":""},{"$f":"IF('1. Order'!Q159=\"\",\"\",'1. Order'!Q159)","v":{"$error":"#N/A"}},{"$f":"IF('1. Order'!R159=\"\",\"\",'1. Order'!R159)","v":{"$error":"#N/A"}},{"$f":"IF('1. Order'!S159=\"\",\"\",'1. Order'!S159)","v":""},{"$f":"IF('1. Order'!T159=\"\",\"\",'1. Order'!T159)","v":""},{"$f":"IF('1. Order'!U159=\"\",\"\",'1. Order'!U159)","v":""},{"$f":"IF('1. Order'!X159=\"\",\"\",'1. Order'!X159)","v":""},{"$f":"IF('1. Order'!Y159=\"\",\"\",'1. Order'!Y159)","v":""},{"$f":"IF('1. Order'!Z159=\"\",\"\",'1. Order'!Z159)","v":""},{"$f":"IF('1. Order'!AC159=\"\",\"\",'1. Order'!AC159)","v":""},{"$f":"IF('1. Order'!AD159=\"\",\"\",'1. Order'!AD159)","v":""},{"$f":"IF('1. Order'!AE159=\"\",\"\",'1. Order'!AE159)","v":""},null,{"$f":"IF('1. Order'!AW159=\"\",\"\",'1. Order'!AW159)","v":""},{"$f":"IF('1. Order'!AX159=\"\",\"\",'1. Order'!AX159)","v":""},null,null,null,null,null,null,null,{"$f":"IF('1. Order'!BB159=\"\",\"\",'1. Order'!BB159)","v":""},{"$f":"IF('1. Order'!BC159=\"\",\"\",'1. Order'!BC159)","v":""},{"$f":"IF('1. Order'!BD159=\"\",\"\",'1. Order'!BD159)","v":""},{"$f":"IF('1. Order'!BE159=\"\",\"\",'1. Order'!BE159)","v":""},{"$f":"IF('1. Order'!BG159=\"\",\"\",'1. Order'!BG159)","v":""},{"$f":"IF('1. Order'!BH159=\"\",\"\",'1. Order'!BH159)","v":""},{"$f":"IF('1. Order'!BI159=\"\",\"\",'1. Order'!BI159)","v":""},{"$f":"IF('1. Order'!BJ159=\"\",\"\",'1. Order'!BJ159)","v":""},{"$f":"IF('1. Order'!BK159=\"\",\"\",'1. Order'!BK159)","v":"ZWO"}]
[{"$f":"IF('1. Order'!G160=\"\",\"\",'1. Order'!G160)","v":""},{"$f":"IF('1. Order'!H160=\"\",\"\",'1. Order'!H160)","v":""},{"$f":"IF('1. Order'!I160=\"\",\"\",'1. Order'!I160)","v":""},{"$f":"IF('1. Order'!J160=\"\",\"\",'1. Order'!J160)","v":""},{"$f":"IF('1. Order'!K160=\"\",\"\",'1. Order'!K160)","v":""},{"$f":"IF('1. Order'!L160=\"\",\"\",'1. Order'!L160)","v":""},{"$f":"IF('1. Order'!M160=\"\",\"\",'1. Order'!M160)","v":""},{"$f":"IF('1. Order'!N160=\"\",\"\",'1. Order'!N160)","v":""},{"$f":"IF('1. Order'!P160=\"\",\"\",'1. Order'!P160)","v":""},{"$f":"IF('1. Order'!Q160=\"\",\"\",'1. Order'!Q160)","v":{"$error":"#N/A"}},{"$f":"IF('1. Order'!R160=\"\",\"\",'1. Order'!R160)","v":{"$error":"#N/A"}},{"$f":"IF('1. Order'!S160=\"\",\"\",'1. Order'!S160)","v":""},{"$f":"IF('1. Order'!T160=\"\",\"\",'1. Order'!T160)","v":""},{"$f":"IF('1. Order'!U160=\"\",\"\",'1. Order'!U160)","v":""},{"$f":"IF('1. Order'!X160=\"\",\"\",'1. Order'!X160)","v":""},{"$f":"IF('1. Order'!Y160=\"\",\"\",'1. Order'!Y160)","v":""},{"$f":"IF('1. Order'!Z160=\"\",\"\",'1. Order'!Z160)","v":""},{"$f":"IF('1. Order'!AC160=\"\",\"\",'1. Order'!AC160)","v":""},{"$f":"IF('1. Order'!AD160=\"\",\"\",'1. Order'!AD160)","v":""},{"$f":"IF('1. Order'!AE160=\"\",\"\",'1. Order'!AE160)","v":""},null,{"$f":"IF('1. Order'!AW160=\"\",\"\",'1. Order'!AW160)","v":""},{"$f":"IF('1. Order'!AX160=\"\",\"\",'1. Order'!AX160)","v":""},null,null,null,null,null,null,null,{"$f":"IF('1. Order'!BB160=\"\",\"\",'1. Order'!BB160)","v":""},{"$f":"IF('1. Order'!BC160=\"\",\"\",'1. Order'!BC160)","v":""},{"$f":"IF('1. Order'!BD160=\"\",\"\",'1. Order'!BD160)","v":""},{"$f":"IF('1. Order'!BE160=\"\",\"\",'1. Order'!BE160)","v":""},{"$f":"IF('1. Order'!BG160=\"\",\"\",'1. Order'!BG160)","v":""},{"$f":"IF('1. Order'!BH160=\"\",\"\",'1. Order'!BH160)","v":""},{"$f":"IF('1. Order'!BI160=\"\",\"\",'1. Order'!BI160)","v":""},{"$f":"IF('1. Order'!BJ160=\"\",\"\",'1. Order'!BJ160)","v":""},{"$f":"IF('1. Order'!BK160=\"\",\"\",'1. Order'!BK160)","v":"ZWO"}]
[{"$f":"IF('1. Order'!G161=\"\",\"\",'1. Order'!G161)","v":""},{"$f":"IF('1. Order'!H161=\"\",\"\",'1. Order'!H161)","v":""},{"$f":"IF('1. Order'!I161=\"\",\"\",'1. Order'!I161)","v":""},{"$f":"IF('1. Order'!J161=\"\",\"\",'1. Order'!J161)","v":""},{"$f":"IF('1. Order'!K161=\"\",\"\",'1. Order'!K161)","v":""},{"$f":"IF('1. Order'!L161=\"\",\"\",'1. Order'!L161)","v":""},{"$f":"IF('1. Order'!M161=\"\",\"\",'1. Order'!M161)","v":""},{"$f":"IF('1. Order'!N161=\"\",\"\",'1. Order'!N161)","v":""},{"$f":"IF('1. Order'!P161=\"\",\"\",'1. Order'!P161)","v":""},{"$f":"IF('1. Order'!Q161=\"\",\"\",'1. Order'!Q161)","v":{"$error":"#N/A"}},{"$f":"IF('1. Order'!R161=\"\",\"\",'1. Order'!R161)","v":{"$error":"#N/A"}},{"$f":"IF('1. Order'!S161=\"\",\"\",'1. Order'!S161)","v":""},{"$f":"IF('1. Order'!T161=\"\",\"\",'1. Order'!T161)","v":""},{"$f":"IF('1. Order'!U161=\"\",\"\",'1. Order'!U161)","v":""},{"$f":"IF('1. Order'!X161=\"\",\"\",'1. Order'!X161)","v":""},{"$f":"IF('1. Order'!Y161=\"\",\"\",'1. Order'!Y161)","v":""},{"$f":"IF('1. Order'!Z161=\"\",\"\",'1. Order'!Z161)","v":""},{"$f":"IF('1. Order'!AC161=\"\",\"\",'1. Order'!AC161)","v":""},{"$f":"IF('1. Order'!AD161=\"\",\"\",'1. Order'!AD161)","v":""},{"$f":"IF('1. Order'!AE161=\"\",\"\",'1. Order'!AE161)","v":""},null,{"$f":"IF('1. Order'!AW161=\"\",\"\",'1. Order'!AW161)","v":""},{"$f":"IF('1. Order'!AX161=\"\",\"\",'1. Order'!AX161)","v":""},null,null,null,null,null,null,null,{"$f":"IF('1. Order'!BB161=\"\",\"\",'1. Order'!BB161)","v":""},{"$f":"IF('1. Order'!BC161=\"\",\"\",'1. Order'!BC161)","v":""},{"$f":"IF('1. Order'!BD161=\"\",\"\",'1. Order'!BD161)","v":""},{"$f":"IF('1. Order'!BE161=\"\",\"\",'1. Order'!BE161)","v":""},{"$f":"IF('1. Order'!BG161=\"\",\"\",'1. Order'!BG161)","v":""},{"$f":"IF('1. Order'!BH161=\"\",\"\",'1. Order'!BH161)","v":""},{"$f":"IF('1. Order'!BI161=\"\",\"\",'1. Order'!BI161)","v":""},{"$f":"IF('1. Order'!BJ161=\"\",\"\",'1. Order'!BJ161)","v":""},{"$f":"IF('1. Order'!BK161=\"\",\"\",'1. Order'!BK161)","v":"ZWO"}]
[{"$f":"IF('1. Order'!G162=\"\",\"\",'1. Order'!G162)","v":""},{"$f":"IF('1. Order'!H162=\"\",\"\",'1. Order'!H162)","v":""},{"$f":"IF('1. Order'!I162=\"\",\"\",'1. Order'!I162)","v":""},{"$f":"IF('1. Order'!J162=\"\",\"\",'1. Order'!J162)","v":""},{"$f":"IF('1. Order'!K162=\"\",\"\",'1. Order'!K162)","v":""},{"$f":"IF('1. Order'!L162=\"\",\"\",'1. Order'!L162)","v":""},{"$f":"IF('1. Order'!M162=\"\",\"\",'1. Order'!M162)","v":""},{"$f":"IF('1. Order'!N162=\"\",\"\",'1. Order'!N162)","v":""},{"$f":"IF('1. Order'!P162=\"\",\"\",'1. Order'!P162)","v":""},{"$f":"IF('1. Order'!Q162=\"\",\"\",'1. Order'!Q162)","v":{"$error":"#N/A"}},{"$f":"IF('1. Order'!R162=\"\",\"\",'1. Order'!R162)","v":{"$error":"#N/A"}},{"$f":"IF('1. Order'!S162=\"\",\"\",'1. Order'!S162)","v":""},{"$f":"IF('1. Order'!T162=\"\",\"\",'1. Order'!T162)","v":""},{"$f":"IF('1. Order'!U162=\"\",\"\",'1. Order'!U162)","v":""},{"$f":"IF('1. Order'!X162=\"\",\"\",'1. Order'!X162)","v":""},{"$f":"IF('1. Order'!Y162=\"\",\"\",'1. Order'!Y162)","v":""},{"$f":"IF('1. Order'!Z162=\"\",\"\",'1. Order'!Z162)","v":""},{"$f":"IF('1. Order'!AC162=\"\",\"\",'1. Order'!AC162)","v":""},{"$f":"IF('1. Order'!AD162=\"\",\"\",'1. Order'!AD162)","v":""},{"$f":"IF('1. Order'!AE162=\"\",\"\",'1. Order'!AE162)","v":""},null,{"$f":"IF('1. Order'!AW162=\"\",\"\",'1. Order'!AW162)","v":""},{"$f":"IF('1. Order'!AX162=\"\",\"\",'1. Order'!AX162)","v":""},null,null,null,null,null,null,null,{"$f":"IF('1. Order'!BB162=\"\",\"\",'1. Order'!BB162)","v":""},{"$f":"IF('1. Order'!BC162=\"\",\"\",'1. Order'!BC162)","v":""},{"$f":"IF('1. Order'!BD162=\"\",\"\",'1. Order'!BD162)","v":""},{"$f":"IF('1. Order'!BE162=\"\",\"\",'1. Order'!BE162)","v":""},{"$f":"IF('1. Order'!BG162=\"\",\"\",'1. Order'!BG162)","v":""},{"$f":"IF('1. Order'!BH162=\"\",\"\",'1. Order'!BH162)","v":""},{"$f":"IF('1. Order'!BI162=\"\",\"\",'1. Order'!BI162)","v":""},{"$f":"IF('1. Order'!BJ162=\"\",\"\",'1. Order'!BJ162)","v":""},{"$f":"IF('1. Order'!BK162=\"\",\"\",'1. Order'!BK162)","v":"ZWO"}]
[{"$f":"IF('1. Order'!G163=\"\",\"\",'1. Order'!G163)","v":""},{"$f":"IF('1. Order'!H163=\"\",\"\",'1. Order'!H163)","v":""},{"$f":"IF('1. Order'!I163=\"\",\"\",'1. Order'!I163)","v":""},{"$f":"IF('1. Order'!J163=\"\",\"\",'1. Order'!J163)","v":""},{"$f":"IF('1. Order'!K163=\"\",\"\",'1. Order'!K163)","v":""},{"$f":"IF('1. Order'!L163=\"\",\"\",'1. Order'!L163)","v":""},{"$f":"IF('1. Order'!M163=\"\",\"\",'1. Order'!M163)","v":""},{"$f":"IF('1. Order'!N163=\"\",\"\",'1. Order'!N163)","v":""},{"$f":"IF('1. Order'!P163=\"\",\"\",'1. Order'!P163)","v":""},{"$f":"IF('1. Order'!Q163=\"\",\"\",'1. Order'!Q163)","v":{"$error":"#N/A"}},{"$f":"IF('1. Order'!R163=\"\",\"\",'1. Order'!R163)","v":{"$error":"#N/A"}},{"$f":"IF('1. Order'!S163=\"\",\"\",'1. Order'!S163)","v":""},{"$f":"IF('1. Order'!T163=\"\",\"\",'1. Order'!T163)","v":""},{"$f":"IF('1. Order'!U163=\"\",\"\",'1. Order'!U163)","v":""},{"$f":"IF('1. Order'!X163=\"\",\"\",'1. Order'!X163)","v":""},{"$f":"IF('1. Order'!Y163=\"\",\"\",'1. Order'!Y163)","v":""},{"$f":"IF('1. Order'!Z163=\"\",\"\",'1. Order'!Z163)","v":""},{"$f":"IF('1. Order'!AC163=\"\",\"\",'1. Order'!AC163)","v":""},{"$f":"IF('1. Order'!AD163=\"\",\"\",'1. Order'!AD163)","v":""},{"$f":"IF('1. Order'!AE163=\"\",\"\",'1. Order'!AE163)","v":""},null,{"$f":"IF('1. Order'!AW163=\"\",\"\",'1. Order'!AW163)","v":""},{"$f":"IF('1. Order'!AX163=\"\",\"\",'1. Order'!AX163)","v":""},null,null,null,null,null,null,null,{"$f":"IF('1. Order'!BB163=\"\",\"\",'1. Order'!BB163)","v":""},{"$f":"IF('1. Order'!BC163=\"\",\"\",'1. Order'!BC163)","v":""},{"$f":"IF('1. Order'!BD163=\"\",\"\",'1. Order'!BD163)","v":""},{"$f":"IF('1. Order'!BE163=\"\",\"\",'1. Order'!BE163)","v":""},{"$f":"IF('1. Order'!BG163=\"\",\"\",'1. Order'!BG163)","v":""},{"$f":"IF('1. Order'!BH163=\"\",\"\",'1. Order'!BH163)","v":""},{"$f":"IF('1. Order'!BI163=\"\",\"\",'1. Order'!BI163)","v":""},{"$f":"IF('1. Order'!BJ163=\"\",\"\",'1. Order'!BJ163)","v":""},{"$f":"IF('1. Order'!BK163=\"\",\"\",'1. Order'!BK163)","v":"ZWO"}]
[{"$f":"IF('1. Order'!G164=\"\",\"\",'1. Order'!G164)","v":""},{"$f":"IF('1. Order'!H164=\"\",\"\",'1. Order'!H164)","v":""},{"$f":"IF('1. Order'!I164=\"\",\"\",'1. Order'!I164)","v":""},{"$f":"IF('1. Order'!J164=\"\",\"\",'1. Order'!J164)","v":""},{"$f":"IF('1. Order'!K164=\"\",\"\",'1. Order'!K164)","v":""},{"$f":"IF('1. Order'!L164=\"\",\"\",'1. Order'!L164)","v":""},{"$f":"IF('1. Order'!M164=\"\",\"\",'1. Order'!M164)","v":""},{"$f":"IF('1. Order'!N164=\"\",\"\",'1. Order'!N164)","v":""},{"$f":"IF('1. Order'!P164=\"\",\"\",'1. Order'!P164)","v":""},{"$f":"IF('1. Order'!Q164=\"\",\"\",'1. Order'!Q164)","v":{"$error":"#N/A"}},{"$f":"IF('1. Order'!R164=\"\",\"\",'1. Order'!R164)","v":{"$error":"#N/A"}},{"$f":"IF('1. Order'!S164=\"\",\"\",'1. Order'!S164)","v":""},{"$f":"IF('1. Order'!T164=\"\",\"\",'1. Order'!T164)","v":""},{"$f":"IF('1. Order'!U164=\"\",\"\",'1. Order'!U164)","v":""},{"$f":"IF('1. Order'!X164=\"\",\"\",'1. Order'!X164)","v":""},{"$f":"IF('1. Order'!Y164=\"\",\"\",'1. Order'!Y164)","v":""},{"$f":"IF('1. Order'!Z164=\"\",\"\",'1. Order'!Z164)","v":""},{"$f":"IF('1. Order'!AC164=\"\",\"\",'1. Order'!AC164)","v":""},{"$f":"IF('1. Order'!AD164=\"\",\"\",'1. Order'!AD164)","v":""},{"$f":"IF('1. Order'!AE164=\"\",\"\",'1. Order'!AE164)","v":""},null,{"$f":"IF('1. Order'!AW164=\"\",\"\",'1. Order'!AW164)","v":""},{"$f":"IF('1. Order'!AX164=\"\",\"\",'1. Order'!AX164)","v":""},null,null,null,null,null,null,null,{"$f":"IF('1. Order'!BB164=\"\",\"\",'1. Order'!BB164)","v":""},{"$f":"IF('1. Order'!BC164=\"\",\"\",'1. Order'!BC164)","v":""},{"$f":"IF('1. Order'!BD164=\"\",\"\",'1. Order'!BD164)","v":""},{"$f":"IF('1. Order'!BE164=\"\",\"\",'1. Order'!BE164)","v":""},{"$f":"IF('1. Order'!BG164=\"\",\"\",'1. Order'!BG164)","v":""},{"$f":"IF('1. Order'!BH164=\"\",\"\",'1. Order'!BH164)","v":""},{"$f":"IF('1. Order'!BI164=\"\",\"\",'1. Order'!BI164)","v":""},{"$f":"IF('1. Order'!BJ164=\"\",\"\",'1. Order'!BJ164)","v":""},{"$f":"IF('1. Order'!BK164=\"\",\"\",'1. Order'!BK164)","v":"ZWO"}]
[{"$f":"IF('1. Order'!G165=\"\",\"\",'1. Order'!G165)","v":""},{"$f":"IF('1. Order'!H165=\"\",\"\",'1. Order'!H165)","v":""},{"$f":"IF('1. Order'!I165=\"\",\"\",'1. Order'!I165)","v":""},{"$f":"IF('1. Order'!J165=\"\",\"\",'1. Order'!J165)","v":""},{"$f":"IF('1. Order'!K165=\"\",\"\",'1. Order'!K165)","v":""},{"$f":"IF('1. Order'!L165=\"\",\"\",'1. Order'!L165)","v":""},{"$f":"IF('1. Order'!M165=\"\",\"\",'1. Order'!M165)","v":""},{"$f":"IF('1. Order'!N165=\"\",\"\",'1. Order'!N165)","v":""},{"$f":"IF('1. Order'!P165=\"\",\"\",'1. Order'!P165)","v":""},{"$f":"IF('1. Order'!Q165=\"\",\"\",'1. Order'!Q165)","v":{"$error":"#N/A"}},{"$f":"IF('1. Order'!R165=\"\",\"\",'1. Order'!R165)","v":{"$error":"#N/A"}},{"$f":"IF('1. Order'!S165=\"\",\"\",'1. Order'!S165)","v":""},{"$f":"IF('1. Order'!T165=\"\",\"\",'1. Order'!T165)","v":""},{"$f":"IF('1. Order'!U165=\"\",\"\",'1. Order'!U165)","v":""},{"$f":"IF('1. Order'!X165=\"\",\"\",'1. Order'!X165)","v":""},{"$f":"IF('1. Order'!Y165=\"\",\"\",'1. Order'!Y165)","v":""},{"$f":"IF('1. Order'!Z165=\"\",\"\",'1. Order'!Z165)","v":""},{"$f":"IF('1. Order'!AC165=\"\",\"\",'1. Order'!AC165)","v":""},{"$f":"IF('1. Order'!AD165=\"\",\"\",'1. Order'!AD165)","v":""},{"$f":"IF('1. Order'!AE165=\"\",\"\",'1. Order'!AE165)","v":""},null,{"$f":"IF('1. Order'!AW165=\"\",\"\",'1. Order'!AW165)","v":""},{"$f":"IF('1. Order'!AX165=\"\",\"\",'1. Order'!AX165)","v":""},null,null,null,null,null,null,null,{"$f":"IF('1. Order'!BB165=\"\",\"\",'1. Order'!BB165)","v":""},{"$f":"IF('1. Order'!BC165=\"\",\"\",'1. Order'!BC165)","v":""},{"$f":"IF('1. Order'!BD165=\"\",\"\",'1. Order'!BD165)","v":""},{"$f":"IF('1. Order'!BE165=\"\",\"\",'1. Order'!BE165)","v":""},{"$f":"IF('1. Order'!BG165=\"\",\"\",'1. Order'!BG165)","v":""},{"$f":"IF('1. Order'!BH165=\"\",\"\",'1. Order'!BH165)","v":""},{"$f":"IF('1. Order'!BI165=\"\",\"\",'1. Order'!BI165)","v":""},{"$f":"IF('1. Order'!BJ165=\"\",\"\",'1. Order'!BJ165)","v":""},{"$f":"IF('1. Order'!BK165=\"\",\"\",'1. Order'!BK165)","v":"ZWO"}]
[{"$f":"IF('1. Order'!G166=\"\",\"\",'1. Order'!G166)","v":""},{"$f":"IF('1. Order'!H166=\"\",\"\",'1. Order'!H166)","v":""},{"$f":"IF('1. Order'!I166=\"\",\"\",'1. Order'!I166)","v":""},{"$f":"IF('1. Order'!J166=\"\",\"\",'1. Order'!J166)","v":""},{"$f":"IF('1. Order'!K166=\"\",\"\",'1. Order'!K166)","v":""},{"$f":"IF('1. Order'!L166=\"\",\"\",'1. Order'!L166)","v":""},{"$f":"IF('1. Order'!M166=\"\",\"\",'1. Order'!M166)","v":""},{"$f":"IF('1. Order'!N166=\"\",\"\",'1. Order'!N166)","v":""},{"$f":"IF('1. Order'!P166=\"\",\"\",'1. Order'!P166)","v":""},{"$f":"IF('1. Order'!Q166=\"\",\"\",'1. Order'!Q166)","v":{"$error":"#N/A"}},{"$f":"IF('1. Order'!R166=\"\",\"\",'1. Order'!R166)","v":{"$error":"#N/A"}},{"$f":"IF('1. Order'!S166=\"\",\"\",'1. Order'!S166)","v":""},{"$f":"IF('1. Order'!T166=\"\",\"\",'1. Order'!T166)","v":""},{"$f":"IF('1. Order'!U166=\"\",\"\",'1. Order'!U166)","v":""},{"$f":"IF('1. Order'!X166=\"\",\"\",'1. Order'!X166)","v":""},{"$f":"IF('1. Order'!Y166=\"\",\"\",'1. Order'!Y166)","v":""},{"$f":"IF('1. Order'!Z166=\"\",\"\",'1. Order'!Z166)","v":""},{"$f":"IF('1. Order'!AC166=\"\",\"\",'1. Order'!AC166)","v":""},{"$f":"IF('1. Order'!AD166=\"\",\"\",'1. Order'!AD166)","v":""},{"$f":"IF('1. Order'!AE166=\"\",\"\",'1. Order'!AE166)","v":""},null,{"$f":"IF('1. Order'!AW166=\"\",\"\",'1. Order'!AW166)","v":""},{"$f":"IF('1. Order'!AX166=\"\",\"\",'1. Order'!AX166)","v":""},null,null,null,null,null,null,null,{"$f":"IF('1. Order'!BB166=\"\",\"\",'1. Order'!BB166)","v":""},{"$f":"IF('1. Order'!BC166=\"\",\"\",'1. Order'!BC166)","v":""},{"$f":"IF('1. Order'!BD166=\"\",\"\",'1. Order'!BD166)","v":""},{"$f":"IF('1. Order'!BE166=\"\",\"\",'1. Order'!BE166)","v":""},{"$f":"IF('1. Order'!BG166=\"\",\"\",'1. Order'!BG166)","v":""},{"$f":"IF('1. Order'!BH166=\"\",\"\",'1. Order'!BH166)","v":""},{"$f":"IF('1. Order'!BI166=\"\",\"\",'1. Order'!BI166)","v":""},{"$f":"IF('1. Order'!BJ166=\"\",\"\",'1. Order'!BJ166)","v":""},{"$f":"IF('1. Order'!BK166=\"\",\"\",'1. Order'!BK166)","v":"ZWO"}]
[{"$f":"IF('1. Order'!G167=\"\",\"\",'1. Order'!G167)","v":""},{"$f":"IF('1. Order'!H167=\"\",\"\",'1. Order'!H167)","v":""},{"$f":"IF('1. Order'!I167=\"\",\"\",'1. Order'!I167)","v":""},{"$f":"IF('1. Order'!J167=\"\",\"\",'1. Order'!J167)","v":""},{"$f":"IF('1. Order'!K167=\"\",\"\",'1. Order'!K167)","v":""},{"$f":"IF('1. Order'!L167=\"\",\"\",'1. Order'!L167)","v":""},{"$f":"IF('1. Order'!M167=\"\",\"\",'1. Order'!M167)","v":""},{"$f":"IF('1. Order'!N167=\"\",\"\",'1. Order'!N167)","v":""},{"$f":"IF('1. Order'!P167=\"\",\"\",'1. Order'!P167)","v":""},{"$f":"IF('1. Order'!Q167=\"\",\"\",'1. Order'!Q167)","v":{"$error":"#N/A"}},{"$f":"IF('1. Order'!R167=\"\",\"\",'1. Order'!R167)","v":{"$error":"#N/A"}},{"$f":"IF('1. Order'!S167=\"\",\"\",'1. Order'!S167)","v":""},{"$f":"IF('1. Order'!T167=\"\",\"\",'1. Order'!T167)","v":""},{"$f":"IF('1. Order'!U167=\"\",\"\",'1. Order'!U167)","v":""},{"$f":"IF('1. Order'!X167=\"\",\"\",'1. Order'!X167)","v":""},{"$f":"IF('1. Order'!Y167=\"\",\"\",'1. Order'!Y167)","v":""},{"$f":"IF('1. Order'!Z167=\"\",\"\",'1. Order'!Z167)","v":""},{"$f":"IF('1. Order'!AC167=\"\",\"\",'1. Order'!AC167)","v":""},{"$f":"IF('1. Order'!AD167=\"\",\"\",'1. Order'!AD167)","v":""},{"$f":"IF('1. Order'!AE167=\"\",\"\",'1. Order'!AE167)","v":""},null,{"$f":"IF('1. Order'!AW167=\"\",\"\",'1. Order'!AW167)","v":""},{"$f":"IF('1. Order'!AX167=\"\",\"\",'1. Order'!AX167)","v":""},null,null,null,null,null,null,null,{"$f":"IF('1. Order'!BB167=\"\",\"\",'1. Order'!BB167)","v":""},{"$f":"IF('1. Order'!BC167=\"\",\"\",'1. Order'!BC167)","v":""},{"$f":"IF('1. Order'!BD167=\"\",\"\",'1. Order'!BD167)","v":""},{"$f":"IF('1. Order'!BE167=\"\",\"\",'1. Order'!BE167)","v":""},{"$f":"IF('1. Order'!BG167=\"\",\"\",'1. Order'!BG167)","v":""},{"$f":"IF('1. Order'!BH167=\"\",\"\",'1. Order'!BH167)","v":""},{"$f":"IF('1. Order'!BI167=\"\",\"\",'1. Order'!BI167)","v":""},{"$f":"IF('1. Order'!BJ167=\"\",\"\",'1. Order'!BJ167)","v":""},{"$f":"IF('1. Order'!BK167=\"\",\"\",'1. Order'!BK167)","v":"ZWO"}]
[{"$f":"IF('1. Order'!G168=\"\",\"\",'1. Order'!G168)","v":""},{"$f":"IF('1. Order'!H168=\"\",\"\",'1. Order'!H168)","v":""},{"$f":"IF('1. Order'!I168=\"\",\"\",'1. Order'!I168)","v":""},{"$f":"IF('1. Order'!J168=\"\",\"\",'1. Order'!J168)","v":""},{"$f":"IF('1. Order'!K168=\"\",\"\",'1. Order'!K168)","v":""},{"$f":"IF('1. Order'!L168=\"\",\"\",'1. Order'!L168)","v":""},{"$f":"IF('1. Order'!M168=\"\",\"\",'1. Order'!M168)","v":""},{"$f":"IF('1. Order'!N168=\"\",\"\",'1. Order'!N168)","v":""},{"$f":"IF('1. Order'!P168=\"\",\"\",'1. Order'!P168)","v":""},{"$f":"IF('1. Order'!Q168=\"\",\"\",'1. Order'!Q168)","v":{"$error":"#N/A"}},{"$f":"IF('1. Order'!R168=\"\",\"\",'1. Order'!R168)","v":{"$error":"#N/A"}},{"$f":"IF('1. Order'!S168=\"\",\"\",'1. Order'!S168)","v":""},{"$f":"IF('1. Order'!T168=\"\",\"\",'1. Order'!T168)","v":""},{"$f":"IF('1. Order'!U168=\"\",\"\",'1. Order'!U168)","v":""},{"$f":"IF('1. Order'!X168=\"\",\"\",'1. Order'!X168)","v":""},{"$f":"IF('1. Order'!Y168=\"\",\"\",'1. Order'!Y168)","v":""},{"$f":"IF('1. Order'!Z168=\"\",\"\",'1. Order'!Z168)","v":""},{"$f":"IF('1. Order'!AC168=\"\",\"\",'1. Order'!AC168)","v":""},{"$f":"IF('1. Order'!AD168=\"\",\"\",'1. Order'!AD168)","v":""},{"$f":"IF('1. Order'!AE168=\"\",\"\",'1. Order'!AE168)","v":""},null,{"$f":"IF('1. Order'!AW168=\"\",\"\",'1. Order'!AW168)","v":""},{"$f":"IF('1. Order'!AX168=\"\",\"\",'1. Order'!AX168)","v":""},null,null,null,null,null,null,null,{"$f":"IF('1. Order'!BB168=\"\",\"\",'1. Order'!BB168)","v":""},{"$f":"IF('1. Order'!BC168=\"\",\"\",'1. Order'!BC168)","v":""},{"$f":"IF('1. Order'!BD168=\"\",\"\",'1. Order'!BD168)","v":""},{"$f":"IF('1. Order'!BE168=\"\",\"\",'1. Order'!BE168)","v":""},{"$f":"IF('1. Order'!BG168=\"\",\"\",'1. Order'!BG168)","v":""},{"$f":"IF('1. Order'!BH168=\"\",\"\",'1. Order'!BH168)","v":""},{"$f":"IF('1. Order'!BI168=\"\",\"\",'1. Order'!BI168)","v":""},{"$f":"IF('1. Order'!BJ168=\"\",\"\",'1. Order'!BJ168)","v":""},{"$f":"IF('1. Order'!BK168=\"\",\"\",'1. Order'!BK168)","v":"ZWO"}]
[{"$f":"IF('1. Order'!G169=\"\",\"\",'1. Order'!G169)","v":""},{"$f":"IF('1. Order'!H169=\"\",\"\",'1. Order'!H169)","v":""},{"$f":"IF('1. Order'!I169=\"\",\"\",'1. Order'!I169)","v":""},{"$f":"IF('1. Order'!J169=\"\",\"\",'1. Order'!J169)","v":""},{"$f":"IF('1. Order'!K169=\"\",\"\",'1. Order'!K169)","v":""},{"$f":"IF('1. Order'!L169=\"\",\"\",'1. Order'!L169)","v":""},{"$f":"IF('1. Order'!M169=\"\",\"\",'1. Order'!M169)","v":""},{"$f":"IF('1. Order'!N169=\"\",\"\",'1. Order'!N169)","v":""},{"$f":"IF('1. Order'!P169=\"\",\"\",'1. Order'!P169)","v":""},{"$f":"IF('1. Order'!Q169=\"\",\"\",'1. Order'!Q169)","v":{"$error":"#N/A"}},{"$f":"IF('1. Order'!R169=\"\",\"\",'1. Order'!R169)","v":{"$error":"#N/A"}},{"$f":"IF('1. Order'!S169=\"\",\"\",'1. Order'!S169)","v":""},{"$f":"IF('1. Order'!T169=\"\",\"\",'1. Order'!T169)","v":""},{"$f":"IF('1. Order'!U169=\"\",\"\",'1. Order'!U169)","v":""},{"$f":"IF('1. Order'!X169=\"\",\"\",'1. Order'!X169)","v":""},{"$f":"IF('1. Order'!Y169=\"\",\"\",'1. Order'!Y169)","v":""},{"$f":"IF('1. Order'!Z169=\"\",\"\",'1. Order'!Z169)","v":""},{"$f":"IF('1. Order'!AC169=\"\",\"\",'1. Order'!AC169)","v":""},{"$f":"IF('1. Order'!AD169=\"\",\"\",'1. Order'!AD169)","v":""},{"$f":"IF('1. Order'!AE169=\"\",\"\",'1. Order'!AE169)","v":""},null,{"$f":"IF('1. Order'!AW169=\"\",\"\",'1. Order'!AW169)","v":""},{"$f":"IF('1. Order'!AX169=\"\",\"\",'1. Order'!AX169)","v":""},null,null,null,null,null,null,null,{"$f":"IF('1. Order'!BB169=\"\",\"\",'1. Order'!BB169)","v":""},{"$f":"IF('1. Order'!BC169=\"\",\"\",'1. Order'!BC169)","v":""},{"$f":"IF('1. Order'!BD169=\"\",\"\",'1. Order'!BD169)","v":""},{"$f":"IF('1. Order'!BE169=\"\",\"\",'1. Order'!BE169)","v":""},{"$f":"IF('1. Order'!BG169=\"\",\"\",'1. Order'!BG169)","v":""},{"$f":"IF('1. Order'!BH169=\"\",\"\",'1. Order'!BH169)","v":""},{"$f":"IF('1. Order'!BI169=\"\",\"\",'1. Order'!BI169)","v":""},{"$f":"IF('1. Order'!BJ169=\"\",\"\",'1. Order'!BJ169)","v":""},{"$f":"IF('1. Order'!BK169=\"\",\"\",'1. Order'!BK169)","v":"ZWO"}]
[{"$f":"IF('1. Order'!G170=\"\",\"\",'1. Order'!G170)","v":""},{"$f":"IF('1. Order'!H170=\"\",\"\",'1. Order'!H170)","v":""},{"$f":"IF('1. Order'!I170=\"\",\"\",'1. Order'!I170)","v":""},{"$f":"IF('1. Order'!J170=\"\",\"\",'1. Order'!J170)","v":""},{"$f":"IF('1. Order'!K170=\"\",\"\",'1. Order'!K170)","v":""},{"$f":"IF('1. Order'!L170=\"\",\"\",'1. Order'!L170)","v":""},{"$f":"IF('1. Order'!M170=\"\",\"\",'1. Order'!M170)","v":""},{"$f":"IF('1. Order'!N170=\"\",\"\",'1. Order'!N170)","v":""},{"$f":"IF('1. Order'!P170=\"\",\"\",'1. Order'!P170)","v":""},{"$f":"IF('1. Order'!Q170=\"\",\"\",'1. Order'!Q170)","v":{"$error":"#N/A"}},{"$f":"IF('1. Order'!R170=\"\",\"\",'1. Order'!R170)","v":{"$error":"#N/A"}},{"$f":"IF('1. Order'!S170=\"\",\"\",'1. Order'!S170)","v":""},{"$f":"IF('1. Order'!T170=\"\",\"\",'1. Order'!T170)","v":""},{"$f":"IF('1. Order'!U170=\"\",\"\",'1. Order'!U170)","v":""},{"$f":"IF('1. Order'!X170=\"\",\"\",'1. Order'!X170)","v":""},{"$f":"IF('1. Order'!Y170=\"\",\"\",'1. Order'!Y170)","v":""},{"$f":"IF('1. Order'!Z170=\"\",\"\",'1. Order'!Z170)","v":""},{"$f":"IF('1. Order'!AC170=\"\",\"\",'1. Order'!AC170)","v":""},{"$f":"IF('1. Order'!AD170=\"\",\"\",'1. Order'!AD170)","v":""},{"$f":"IF('1. Order'!AE170=\"\",\"\",'1. Order'!AE170)","v":""},null,{"$f":"IF('1. Order'!AW170=\"\",\"\",'1. Order'!AW170)","v":""},{"$f":"IF('1. Order'!AX170=\"\",\"\",'1. Order'!AX170)","v":""},null,null,null,null,null,null,null,{"$f":"IF('1. Order'!BB170=\"\",\"\",'1. Order'!BB170)","v":""},{"$f":"IF('1. Order'!BC170=\"\",\"\",'1. Order'!BC170)","v":""},{"$f":"IF('1. Order'!BD170=\"\",\"\",'1. Order'!BD170)","v":""},{"$f":"IF('1. Order'!BE170=\"\",\"\",'1. Order'!BE170)","v":""},{"$f":"IF('1. Order'!BG170=\"\",\"\",'1. Order'!BG170)","v":""},{"$f":"IF('1. Order'!BH170=\"\",\"\",'1. Order'!BH170)","v":""},{"$f":"IF('1. Order'!BI170=\"\",\"\",'1. Order'!BI170)","v":""},{"$f":"IF('1. Order'!BJ170=\"\",\"\",'1. Order'!BJ170)","v":""},{"$f":"IF('1. Order'!BK170=\"\",\"\",'1. Order'!BK170)","v":"ZWO"}]
[{"$f":"IF('1. Order'!G171=\"\",\"\",'1. Order'!G171)","v":""},{"$f":"IF('1. Order'!H171=\"\",\"\",'1. Order'!H171)","v":""},{"$f":"IF('1. Order'!I171=\"\",\"\",'1. Order'!I171)","v":""},{"$f":"IF('1. Order'!J171=\"\",\"\",'1. Order'!J171)","v":""},{"$f":"IF('1. Order'!K171=\"\",\"\",'1. Order'!K171)","v":""},{"$f":"IF('1. Order'!L171=\"\",\"\",'1. Order'!L171)","v":""},{"$f":"IF('1. Order'!M171=\"\",\"\",'1. Order'!M171)","v":""},{"$f":"IF('1. Order'!N171=\"\",\"\",'1. Order'!N171)","v":""},{"$f":"IF('1. Order'!P171=\"\",\"\",'1. Order'!P171)","v":""},{"$f":"IF('1. Order'!Q171=\"\",\"\",'1. Order'!Q171)","v":{"$error":"#N/A"}},{"$f":"IF('1. Order'!R171=\"\",\"\",'1. Order'!R171)","v":{"$error":"#N/A"}},{"$f":"IF('1. Order'!S171=\"\",\"\",'1. Order'!S171)","v":""},{"$f":"IF('1. Order'!T171=\"\",\"\",'1. Order'!T171)","v":""},{"$f":"IF('1. Order'!U171=\"\",\"\",'1. Order'!U171)","v":""},{"$f":"IF('1. Order'!X171=\"\",\"\",'1. Order'!X171)","v":""},{"$f":"IF('1. Order'!Y171=\"\",\"\",'1. Order'!Y171)","v":""},{"$f":"IF('1. Order'!Z171=\"\",\"\",'1. Order'!Z171)","v":""},{"$f":"IF('1. Order'!AC171=\"\",\"\",'1. Order'!AC171)","v":""},{"$f":"IF('1. Order'!AD171=\"\",\"\",'1. Order'!AD171)","v":""},{"$f":"IF('1. Order'!AE171=\"\",\"\",'1. Order'!AE171)","v":""},null,{"$f":"IF('1. Order'!AW171=\"\",\"\",'1. Order'!AW171)","v":""},{"$f":"IF('1. Order'!AX171=\"\",\"\",'1. Order'!AX171)","v":""},null,null,null,null,null,null,null,{"$f":"IF('1. Order'!BB171=\"\",\"\",'1. Order'!BB171)","v":""},{"$f":"IF('1. Order'!BC171=\"\",\"\",'1. Order'!BC171)","v":""},{"$f":"IF('1. Order'!BD171=\"\",\"\",'1. Order'!BD171)","v":""},{"$f":"IF('1. Order'!BE171=\"\",\"\",'1. Order'!BE171)","v":""},{"$f":"IF('1. Order'!BG171=\"\",\"\",'1. Order'!BG171)","v":""},{"$f":"IF('1. Order'!BH171=\"\",\"\",'1. Order'!BH171)","v":""},{"$f":"IF('1. Order'!BI171=\"\",\"\",'1. Order'!BI171)","v":""},{"$f":"IF('1. Order'!BJ171=\"\",\"\",'1. Order'!BJ171)","v":""},{"$f":"IF('1. Order'!BK171=\"\",\"\",'1. Order'!BK171)","v":"ZWO"}]
[{"$f":"IF('1. Order'!G172=\"\",\"\",'1. Order'!G172)","v":""},{"$f":"IF('1. Order'!H172=\"\",\"\",'1. Order'!H172)","v":""},{"$f":"IF('1. Order'!I172=\"\",\"\",'1. Order'!I172)","v":""},{"$f":"IF('1. Order'!J172=\"\",\"\",'1. Order'!J172)","v":""},{"$f":"IF('1. Order'!K172=\"\",\"\",'1. Order'!K172)","v":""},{"$f":"IF('1. Order'!L172=\"\",\"\",'1. Order'!L172)","v":""},{"$f":"IF('1. Order'!M172=\"\",\"\",'1. Order'!M172)","v":""},{"$f":"IF('1. Order'!N172=\"\",\"\",'1. Order'!N172)","v":""},{"$f":"IF('1. Order'!P172=\"\",\"\",'1. Order'!P172)","v":""},{"$f":"IF('1. Order'!Q172=\"\",\"\",'1. Order'!Q172)","v":{"$error":"#N/A"}},{"$f":"IF('1. Order'!R172=\"\",\"\",'1. Order'!R172)","v":{"$error":"#N/A"}},{"$f":"IF('1. Order'!S172=\"\",\"\",'1. Order'!S172)","v":""},{"$f":"IF('1. Order'!T172=\"\",\"\",'1. Order'!T172)","v":""},{"$f":"IF('1. Order'!U172=\"\",\"\",'1. Order'!U172)","v":""},{"$f":"IF('1. Order'!X172=\"\",\"\",'1. Order'!X172)","v":""},{"$f":"IF('1. Order'!Y172=\"\",\"\",'1. Order'!Y172)","v":""},{"$f":"IF('1. Order'!Z172=\"\",\"\",'1. Order'!Z172)","v":""},{"$f":"IF('1. Order'!AC172=\"\",\"\",'1. Order'!AC172)","v":""},{"$f":"IF('1. Order'!AD172=\"\",\"\",'1. Order'!AD172)","v":""},{"$f":"IF('1. Order'!AE172=\"\",\"\",'1. Order'!AE172)","v":""},null,{"$f":"IF('1. Order'!AW172=\"\",\"\",'1. Order'!AW172)","v":""},{"$f":"IF('1. Order'!AX172=\"\",\"\",'1. Order'!AX172)","v":""},null,null,null,null,null,null,null,{"$f":"IF('1. Order'!BB172=\"\",\"\",'1. Order'!BB172)","v":""},{"$f":"IF('1. Order'!BC172=\"\",\"\",'1. Order'!BC172)","v":""},{"$f":"IF('1. Order'!BD172=\"\",\"\",'1. Order'!BD172)","v":""},{"$f":"IF('1. Order'!BE172=\"\",\"\",'1. Order'!BE172)","v":""},{"$f":"IF('1. Order'!BG172=\"\",\"\",'1. Order'!BG172)","v":""},{"$f":"IF('1. Order'!BH172=\"\",\"\",'1. Order'!BH172)","v":""},{"$f":"IF('1. Order'!BI172=\"\",\"\",'1. Order'!BI172)","v":""},{"$f":"IF('1. Order'!BJ172=\"\",\"\",'1. Order'!BJ172)","v":""},{"$f":"IF('1. Order'!BK172=\"\",\"\",'1. Order'!BK172)","v":"ZWO"}]
[{"$f":"IF('1. Order'!G173=\"\",\"\",'1. Order'!G173)","v":""},{"$f":"IF('1. Order'!H173=\"\",\"\",'1. Order'!H173)","v":""},{"$f":"IF('1. Order'!I173=\"\",\"\",'1. Order'!I173)","v":""},{"$f":"IF('1. Order'!J173=\"\",\"\",'1. Order'!J173)","v":""},{"$f":"IF('1. Order'!K173=\"\",\"\",'1. Order'!K173)","v":""},{"$f":"IF('1. Order'!L173=\"\",\"\",'1. Order'!L173)","v":""},{"$f":"IF('1. Order'!M173=\"\",\"\",'1. Order'!M173)","v":""},{"$f":"IF('1. Order'!N173=\"\",\"\",'1. Order'!N173)","v":""},{"$f":"IF('1. Order'!P173=\"\",\"\",'1. Order'!P173)","v":""},{"$f":"IF('1. Order'!Q173=\"\",\"\",'1. Order'!Q173)","v":{"$error":"#N/A"}},{"$f":"IF('1. Order'!R173=\"\",\"\",'1. Order'!R173)","v":{"$error":"#N/A"}},{"$f":"IF('1. Order'!S173=\"\",\"\",'1. Order'!S173)","v":""},{"$f":"IF('1. Order'!T173=\"\",\"\",'1. Order'!T173)","v":""},{"$f":"IF('1. Order'!U173=\"\",\"\",'1. Order'!U173)","v":""},{"$f":"IF('1. Order'!X173=\"\",\"\",'1. Order'!X173)","v":""},{"$f":"IF('1. Order'!Y173=\"\",\"\",'1. Order'!Y173)","v":""},{"$f":"IF('1. Order'!Z173=\"\",\"\",'1. Order'!Z173)","v":""},{"$f":"IF('1. Order'!AC173=\"\",\"\",'1. Order'!AC173)","v":""},{"$f":"IF('1. Order'!AD173=\"\",\"\",'1. Order'!AD173)","v":""},{"$f":"IF('1. Order'!AE173=\"\",\"\",'1. Order'!AE173)","v":""},null,{"$f":"IF('1. Order'!AW173=\"\",\"\",'1. Order'!AW173)","v":""},{"$f":"IF('1. Order'!AX173=\"\",\"\",'1. Order'!AX173)","v":""},null,null,null,null,null,null,null,{"$f":"IF('1. Order'!BB173=\"\",\"\",'1. Order'!BB173)","v":""},{"$f":"IF('1. Order'!BC173=\"\",\"\",'1. Order'!BC173)","v":""},{"$f":"IF('1. Order'!BD173=\"\",\"\",'1. Order'!BD173)","v":""},{"$f":"IF('1. Order'!BE173=\"\",\"\",'1. Order'!BE173)","v":""},{"$f":"IF('1. Order'!BG173=\"\",\"\",'1. Order'!BG173)","v":""},{"$f":"IF('1. Order'!BH173=\"\",\"\",'1. Order'!BH173)","v":""},{"$f":"IF('1. Order'!BI173=\"\",\"\",'1. Order'!BI173)","v":""},{"$f":"IF('1. Order'!BJ173=\"\",\"\",'1. Order'!BJ173)","v":""},{"$f":"IF('1. Order'!BK173=\"\",\"\",'1. Order'!BK173)","v":"ZWO"}]
[{"$f":"IF('1. Order'!G174=\"\",\"\",'1. Order'!G174)","v":""},{"$f":"IF('1. Order'!H174=\"\",\"\",'1. Order'!H174)","v":""},{"$f":"IF('1. Order'!I174=\"\",\"\",'1. Order'!I174)","v":""},{"$f":"IF('1. Order'!J174=\"\",\"\",'1. Order'!J174)","v":""},{"$f":"IF('1. Order'!K174=\"\",\"\",'1. Order'!K174)","v":""},{"$f":"IF('1. Order'!L174=\"\",\"\",'1. Order'!L174)","v":""},{"$f":"IF('1. Order'!M174=\"\",\"\",'1. Order'!M174)","v":""},{"$f":"IF('1. Order'!N174=\"\",\"\",'1. Order'!N174)","v":""},{"$f":"IF('1. Order'!P174=\"\",\"\",'1. Order'!P174)","v":""},{"$f":"IF('1. Order'!Q174=\"\",\"\",'1. Order'!Q174)","v":{"$error":"#N/A"}},{"$f":"IF('1. Order'!R174=\"\",\"\",'1. Order'!R174)","v":{"$error":"#N/A"}},{"$f":"IF('1. Order'!S174=\"\",\"\",'1. Order'!S174)","v":""},{"$f":"IF('1. Order'!T174=\"\",\"\",'1. Order'!T174)","v":""},{"$f":"IF('1. Order'!U174=\"\",\"\",'1. Order'!U174)","v":""},{"$f":"IF('1. Order'!X174=\"\",\"\",'1. Order'!X174)","v":""},{"$f":"IF('1. Order'!Y174=\"\",\"\",'1. Order'!Y174)","v":""},{"$f":"IF('1. Order'!Z174=\"\",\"\",'1. Order'!Z174)","v":""},{"$f":"IF('1. Order'!AC174=\"\",\"\",'1. Order'!AC174)","v":""},{"$f":"IF('1. Order'!AD174=\"\",\"\",'1. Order'!AD174)","v":""},{"$f":"IF('1. Order'!AE174=\"\",\"\",'1. Order'!AE174)","v":""},null,{"$f":"IF('1. Order'!AW174=\"\",\"\",'1. Order'!AW174)","v":""},{"$f":"IF('1. Order'!AX174=\"\",\"\",'1. Order'!AX174)","v":""},null,null,null,null,null,null,null,{"$f":"IF('1. Order'!BB174=\"\",\"\",'1. Order'!BB174)","v":""},{"$f":"IF('1. Order'!BC174=\"\",\"\",'1. Order'!BC174)","v":""},{"$f":"IF('1. Order'!BD174=\"\",\"\",'1. Order'!BD174)","v":""},{"$f":"IF('1. Order'!BE174=\"\",\"\",'1. Order'!BE174)","v":""},{"$f":"IF('1. Order'!BG174=\"\",\"\",'1. Order'!BG174)","v":""},{"$f":"IF('1. Order'!BH174=\"\",\"\",'1. Order'!BH174)","v":""},{"$f":"IF('1. Order'!BI174=\"\",\"\",'1. Order'!BI174)","v":""},{"$f":"IF('1. Order'!BJ174=\"\",\"\",'1. Order'!BJ174)","v":""},{"$f":"IF('1. Order'!BK174=\"\",\"\",'1. Order'!BK174)","v":"ZWO"}]
[{"$f":"IF('1. Order'!G175=\"\",\"\",'1. Order'!G175)","v":""},{"$f":"IF('1. Order'!H175=\"\",\"\",'1. Order'!H175)","v":""},{"$f":"IF('1. Order'!I175=\"\",\"\",'1. Order'!I175)","v":""},{"$f":"IF('1. Order'!J175=\"\",\"\",'1. Order'!J175)","v":""},{"$f":"IF('1. Order'!K175=\"\",\"\",'1. Order'!K175)","v":""},{"$f":"IF('1. Order'!L175=\"\",\"\",'1. Order'!L175)","v":""},{"$f":"IF('1. Order'!M175=\"\",\"\",'1. Order'!M175)","v":""},{"$f":"IF('1. Order'!N175=\"\",\"\",'1. Order'!N175)","v":""},{"$f":"IF('1. Order'!P175=\"\",\"\",'1. Order'!P175)","v":""},{"$f":"IF('1. Order'!Q175=\"\",\"\",'1. Order'!Q175)","v":{"$error":"#N/A"}},{"$f":"IF('1. Order'!R175=\"\",\"\",'1. Order'!R175)","v":{"$error":"#N/A"}},{"$f":"IF('1. Order'!S175=\"\",\"\",'1. Order'!S175)","v":""},{"$f":"IF('1. Order'!T175=\"\",\"\",'1. Order'!T175)","v":""},{"$f":"IF('1. Order'!U175=\"\",\"\",'1. Order'!U175)","v":""},{"$f":"IF('1. Order'!X175=\"\",\"\",'1. Order'!X175)","v":""},{"$f":"IF('1. Order'!Y175=\"\",\"\",'1. Order'!Y175)","v":""},{"$f":"IF('1. Order'!Z175=\"\",\"\",'1. Order'!Z175)","v":""},{"$f":"IF('1. Order'!AC175=\"\",\"\",'1. Order'!AC175)","v":""},{"$f":"IF('1. Order'!AD175=\"\",\"\",'1. Order'!AD175)","v":""},{"$f":"IF('1. Order'!AE175=\"\",\"\",'1. Order'!AE175)","v":""},null,{"$f":"IF('1. Order'!AW175=\"\",\"\",'1. Order'!AW175)","v":""},{"$f":"IF('1. Order'!AX175=\"\",\"\",'1. Order'!AX175)","v":""},null,null,null,null,null,null,null,{"$f":"IF('1. Order'!BB175=\"\",\"\",'1. Order'!BB175)","v":""},{"$f":"IF('1. Order'!BC175=\"\",\"\",'1. Order'!BC175)","v":""},{"$f":"IF('1. Order'!BD175=\"\",\"\",'1. Order'!BD175)","v":""},{"$f":"IF('1. Order'!BE175=\"\",\"\",'1. Order'!BE175)","v":""},{"$f":"IF('1. Order'!BG175=\"\",\"\",'1. Order'!BG175)","v":""},{"$f":"IF('1. Order'!BH175=\"\",\"\",'1. Order'!BH175)","v":""},{"$f":"IF('1. Order'!BI175=\"\",\"\",'1. Order'!BI175)","v":""},{"$f":"IF('1. Order'!BJ175=\"\",\"\",'1. Order'!BJ175)","v":""},{"$f":"IF('1. Order'!BK175=\"\",\"\",'1. Order'!BK175)","v":"ZWO"}]
[{"$f":"IF('1. Order'!G176=\"\",\"\",'1. Order'!G176)","v":""},{"$f":"IF('1. Order'!H176=\"\",\"\",'1. Order'!H176)","v":""},{"$f":"IF('1. Order'!I176=\"\",\"\",'1. Order'!I176)","v":""},{"$f":"IF('1. Order'!J176=\"\",\"\",'1. Order'!J176)","v":""},{"$f":"IF('1. Order'!K176=\"\",\"\",'1. Order'!K176)","v":""},{"$f":"IF('1. Order'!L176=\"\",\"\",'1. Order'!L176)","v":""},{"$f":"IF('1. Order'!M176=\"\",\"\",'1. Order'!M176)","v":""},{"$f":"IF('1. Order'!N176=\"\",\"\",'1. Order'!N176)","v":""},{"$f":"IF('1. Order'!P176=\"\",\"\",'1. Order'!P176)","v":""},{"$f":"IF('1. Order'!Q176=\"\",\"\",'1. Order'!Q176)","v":{"$error":"#N/A"}},{"$f":"IF('1. Order'!R176=\"\",\"\",'1. Order'!R176)","v":{"$error":"#N/A"}},{"$f":"IF('1. Order'!S176=\"\",\"\",'1. Order'!S176)","v":""},{"$f":"IF('1. Order'!T176=\"\",\"\",'1. Order'!T176)","v":""},{"$f":"IF('1. Order'!U176=\"\",\"\",'1. Order'!U176)","v":""},{"$f":"IF('1. Order'!X176=\"\",\"\",'1. Order'!X176)","v":""},{"$f":"IF('1. Order'!Y176=\"\",\"\",'1. Order'!Y176)","v":""},{"$f":"IF('1. Order'!Z176=\"\",\"\",'1. Order'!Z176)","v":""},{"$f":"IF('1. Order'!AC176=\"\",\"\",'1. Order'!AC176)","v":""},{"$f":"IF('1. Order'!AD176=\"\",\"\",'1. Order'!AD176)","v":""},{"$f":"IF('1. Order'!AE176=\"\",\"\",'1. Order'!AE176)","v":""},null,{"$f":"IF('1. Order'!AW176=\"\",\"\",'1. Order'!AW176)","v":""},{"$f":"IF('1. Order'!AX176=\"\",\"\",'1. Order'!AX176)","v":""},null,null,null,null,null,null,null,{"$f":"IF('1. Order'!BB176=\"\",\"\",'1. Order'!BB176)","v":""},{"$f":"IF('1. Order'!BC176=\"\",\"\",'1. Order'!BC176)","v":""},{"$f":"IF('1. Order'!BD176=\"\",\"\",'1. Order'!BD176)","v":""},{"$f":"IF('1. Order'!BE176=\"\",\"\",'1. Order'!BE176)","v":""},{"$f":"IF('1. Order'!BG176=\"\",\"\",'1. Order'!BG176)","v":""},{"$f":"IF('1. Order'!BH176=\"\",\"\",'1. Order'!BH176)","v":""},{"$f":"IF('1. Order'!BI176=\"\",\"\",'1. Order'!BI176)","v":""},{"$f":"IF('1. Order'!BJ176=\"\",\"\",'1. Order'!BJ176)","v":""},{"$f":"IF('1. Order'!BK176=\"\",\"\",'1. Order'!BK176)","v":"ZWO"}]
[{"$f":"IF('1. Order'!G177=\"\",\"\",'1. Order'!G177)","v":""},{"$f":"IF('1. Order'!H177=\"\",\"\",'1. Order'!H177)","v":""},{"$f":"IF('1. Order'!I177=\"\",\"\",'1. Order'!I177)","v":""},{"$f":"IF('1. Order'!J177=\"\",\"\",'1. Order'!J177)","v":""},{"$f":"IF('1. Order'!K177=\"\",\"\",'1. Order'!K177)","v":""},{"$f":"IF('1. Order'!L177=\"\",\"\",'1. Order'!L177)","v":""},{"$f":"IF('1. Order'!M177=\"\",\"\",'1. Order'!M177)","v":""},{"$f":"IF('1. Order'!N177=\"\",\"\",'1. Order'!N177)","v":""},{"$f":"IF('1. Order'!P177=\"\",\"\",'1. Order'!P177)","v":""},{"$f":"IF('1. Order'!Q177=\"\",\"\",'1. Order'!Q177)","v":{"$error":"#N/A"}},{"$f":"IF('1. Order'!R177=\"\",\"\",'1. Order'!R177)","v":{"$error":"#N/A"}},{"$f":"IF('1. Order'!S177=\"\",\"\",'1. Order'!S177)","v":""},{"$f":"IF('1. Order'!T177=\"\",\"\",'1. Order'!T177)","v":""},{"$f":"IF('1. Order'!U177=\"\",\"\",'1. Order'!U177)","v":""},{"$f":"IF('1. Order'!X177=\"\",\"\",'1. Order'!X177)","v":""},{"$f":"IF('1. Order'!Y177=\"\",\"\",'1. Order'!Y177)","v":""},{"$f":"IF('1. Order'!Z177=\"\",\"\",'1. Order'!Z177)","v":""},{"$f":"IF('1. Order'!AC177=\"\",\"\",'1. Order'!AC177)","v":""},{"$f":"IF('1. Order'!AD177=\"\",\"\",'1. Order'!AD177)","v":""},{"$f":"IF('1. Order'!AE177=\"\",\"\",'1. Order'!AE177)","v":""},null,{"$f":"IF('1. Order'!AW177=\"\",\"\",'1. Order'!AW177)","v":""},{"$f":"IF('1. Order'!AX177=\"\",\"\",'1. Order'!AX177)","v":""},null,null,null,null,null,null,null,{"$f":"IF('1. Order'!BB177=\"\",\"\",'1. Order'!BB177)","v":""},{"$f":"IF('1. Order'!BC177=\"\",\"\",'1. Order'!BC177)","v":""},{"$f":"IF('1. Order'!BD177=\"\",\"\",'1. Order'!BD177)","v":""},{"$f":"IF('1. Order'!BE177=\"\",\"\",'1. Order'!BE177)","v":""},{"$f":"IF('1. Order'!BG177=\"\",\"\",'1. Order'!BG177)","v":""},{"$f":"IF('1. Order'!BH177=\"\",\"\",'1. Order'!BH177)","v":""},{"$f":"IF('1. Order'!BI177=\"\",\"\",'1. Order'!BI177)","v":""},{"$f":"IF('1. Order'!BJ177=\"\",\"\",'1. Order'!BJ177)","v":""},{"$f":"IF('1. Order'!BK177=\"\",\"\",'1. Order'!BK177)","v":"ZWO"}]
[{"$f":"IF('1. Order'!G178=\"\",\"\",'1. Order'!G178)","v":""},{"$f":"IF('1. Order'!H178=\"\",\"\",'1. Order'!H178)","v":""},{"$f":"IF('1. Order'!I178=\"\",\"\",'1. Order'!I178)","v":""},{"$f":"IF('1. Order'!J178=\"\",\"\",'1. Order'!J178)","v":""},{"$f":"IF('1. Order'!K178=\"\",\"\",'1. Order'!K178)","v":""},{"$f":"IF('1. Order'!L178=\"\",\"\",'1. Order'!L178)","v":""},{"$f":"IF('1. Order'!M178=\"\",\"\",'1. Order'!M178)","v":""},{"$f":"IF('1. Order'!N178=\"\",\"\",'1. Order'!N178)","v":""},{"$f":"IF('1. Order'!P178=\"\",\"\",'1. Order'!P178)","v":""},{"$f":"IF('1. Order'!Q178=\"\",\"\",'1. Order'!Q178)","v":{"$error":"#N/A"}},{"$f":"IF('1. Order'!R178=\"\",\"\",'1. Order'!R178)","v":{"$error":"#N/A"}},{"$f":"IF('1. Order'!S178=\"\",\"\",'1. Order'!S178)","v":""},{"$f":"IF('1. Order'!T178=\"\",\"\",'1. Order'!T178)","v":""},{"$f":"IF('1. Order'!U178=\"\",\"\",'1. Order'!U178)","v":""},{"$f":"IF('1. Order'!X178=\"\",\"\",'1. Order'!X178)","v":""},{"$f":"IF('1. Order'!Y178=\"\",\"\",'1. Order'!Y178)","v":""},{"$f":"IF('1. Order'!Z178=\"\",\"\",'1. Order'!Z178)","v":""},{"$f":"IF('1. Order'!AC178=\"\",\"\",'1. Order'!AC178)","v":""},{"$f":"IF('1. Order'!AD178=\"\",\"\",'1. Order'!AD178)","v":""},{"$f":"IF('1. Order'!AE178=\"\",\"\",'1. Order'!AE178)","v":""},null,{"$f":"IF('1. Order'!AW178=\"\",\"\",'1. Order'!AW178)","v":""},{"$f":"IF('1. Order'!AX178=\"\",\"\",'1. Order'!AX178)","v":""},null,null,null,null,null,null,null,{"$f":"IF('1. Order'!BB178=\"\",\"\",'1. Order'!BB178)","v":""},{"$f":"IF('1. Order'!BC178=\"\",\"\",'1. Order'!BC178)","v":""},{"$f":"IF('1. Order'!BD178=\"\",\"\",'1. Order'!BD178)","v":""},{"$f":"IF('1. Order'!BE178=\"\",\"\",'1. Order'!BE178)","v":""},{"$f":"IF('1. Order'!BG178=\"\",\"\",'1. Order'!BG178)","v":""},{"$f":"IF('1. Order'!BH178=\"\",\"\",'1. Order'!BH178)","v":""},{"$f":"IF('1. Order'!BI178=\"\",\"\",'1. Order'!BI178)","v":""},{"$f":"IF('1. Order'!BJ178=\"\",\"\",'1. Order'!BJ178)","v":""},{"$f":"IF('1. Order'!BK178=\"\",\"\",'1. Order'!BK178)","v":"ZWO"}]
[{"$f":"IF('1. Order'!G179=\"\",\"\",'1. Order'!G179)","v":""},{"$f":"IF('1. Order'!H179=\"\",\"\",'1. Order'!H179)","v":""},{"$f":"IF('1. Order'!I179=\"\",\"\",'1. Order'!I179)","v":""},{"$f":"IF('1. Order'!J179=\"\",\"\",'1. Order'!J179)","v":""},{"$f":"IF('1. Order'!K179=\"\",\"\",'1. Order'!K179)","v":""},{"$f":"IF('1. Order'!L179=\"\",\"\",'1. Order'!L179)","v":""},{"$f":"IF('1. Order'!M179=\"\",\"\",'1. Order'!M179)","v":""},{"$f":"IF('1. Order'!N179=\"\",\"\",'1. Order'!N179)","v":""},{"$f":"IF('1. Order'!P179=\"\",\"\",'1. Order'!P179)","v":""},{"$f":"IF('1. Order'!Q179=\"\",\"\",'1. Order'!Q179)","v":{"$error":"#N/A"}},{"$f":"IF('1. Order'!R179=\"\",\"\",'1. Order'!R179)","v":{"$error":"#N/A"}},{"$f":"IF('1. Order'!S179=\"\",\"\",'1. Order'!S179)","v":""},{"$f":"IF('1. Order'!T179=\"\",\"\",'1. Order'!T179)","v":""},{"$f":"IF('1. Order'!U179=\"\",\"\",'1. Order'!U179)","v":""},{"$f":"IF('1. Order'!X179=\"\",\"\",'1. Order'!X179)","v":""},{"$f":"IF('1. Order'!Y179=\"\",\"\",'1. Order'!Y179)","v":""},{"$f":"IF('1. Order'!Z179=\"\",\"\",'1. Order'!Z179)","v":""},{"$f":"IF('1. Order'!AC179=\"\",\"\",'1. Order'!AC179)","v":""},{"$f":"IF('1. Order'!AD179=\"\",\"\",'1. Order'!AD179)","v":""},{"$f":"IF('1. Order'!AE179=\"\",\"\",'1. Order'!AE179)","v":""},null,{"$f":"IF('1. Order'!AW179=\"\",\"\",'1. Order'!AW179)","v":""},{"$f":"IF('1. Order'!AX179=\"\",\"\",'1. Order'!AX179)","v":""},null,null,null,null,null,null,null,{"$f":"IF('1. Order'!BB179=\"\",\"\",'1. Order'!BB179)","v":""},{"$f":"IF('1. Order'!BC179=\"\",\"\",'1. Order'!BC179)","v":""},{"$f":"IF('1. Order'!BD179=\"\",\"\",'1. Order'!BD179)","v":""},{"$f":"IF('1. Order'!BE179=\"\",\"\",'1. Order'!BE179)","v":""},{"$f":"IF('1. Order'!BG179=\"\",\"\",'1. Order'!BG179)","v":""},{"$f":"IF('1. Order'!BH179=\"\",\"\",'1. Order'!BH179)","v":""},{"$f":"IF('1. Order'!BI179=\"\",\"\",'1. Order'!BI179)","v":""},{"$f":"IF('1. Order'!BJ179=\"\",\"\",'1. Order'!BJ179)","v":""},{"$f":"IF('1. Order'!BK179=\"\",\"\",'1. Order'!BK179)","v":"ZWO"}]
[{"$f":"IF('1. Order'!G180=\"\",\"\",'1. Order'!G180)","v":""},{"$f":"IF('1. Order'!H180=\"\",\"\",'1. Order'!H180)","v":""},{"$f":"IF('1. Order'!I180=\"\",\"\",'1. Order'!I180)","v":""},{"$f":"IF('1. Order'!J180=\"\",\"\",'1. Order'!J180)","v":""},{"$f":"IF('1. Order'!K180=\"\",\"\",'1. Order'!K180)","v":""},{"$f":"IF('1. Order'!L180=\"\",\"\",'1. Order'!L180)","v":""},{"$f":"IF('1. Order'!M180=\"\",\"\",'1. Order'!M180)","v":""},{"$f":"IF('1. Order'!N180=\"\",\"\",'1. Order'!N180)","v":""},{"$f":"IF('1. Order'!P180=\"\",\"\",'1. Order'!P180)","v":""},{"$f":"IF('1. Order'!Q180=\"\",\"\",'1. Order'!Q180)","v":{"$error":"#N/A"}},{"$f":"IF('1. Order'!R180=\"\",\"\",'1. Order'!R180)","v":{"$error":"#N/A"}},{"$f":"IF('1. Order'!S180=\"\",\"\",'1. Order'!S180)","v":""},{"$f":"IF('1. Order'!T180=\"\",\"\",'1. Order'!T180)","v":""},{"$f":"IF('1. Order'!U180=\"\",\"\",'1. Order'!U180)","v":""},{"$f":"IF('1. Order'!X180=\"\",\"\",'1. Order'!X180)","v":""},{"$f":"IF('1. Order'!Y180=\"\",\"\",'1. Order'!Y180)","v":""},{"$f":"IF('1. Order'!Z180=\"\",\"\",'1. Order'!Z180)","v":""},{"$f":"IF('1. Order'!AC180=\"\",\"\",'1. Order'!AC180)","v":""},{"$f":"IF('1. Order'!AD180=\"\",\"\",'1. Order'!AD180)","v":""},{"$f":"IF('1. Order'!AE180=\"\",\"\",'1. Order'!AE180)","v":""},null,{"$f":"IF('1. Order'!AW180=\"\",\"\",'1. Order'!AW180)","v":""},{"$f":"IF('1. Order'!AX180=\"\",\"\",'1. Order'!AX180)","v":""},null,null,null,null,null,null,null,{"$f":"IF('1. Order'!BB180=\"\",\"\",'1. Order'!BB180)","v":""},{"$f":"IF('1. Order'!BC180=\"\",\"\",'1. Order'!BC180)","v":""},{"$f":"IF('1. Order'!BD180=\"\",\"\",'1. Order'!BD180)","v":""},{"$f":"IF('1. Order'!BE180=\"\",\"\",'1. Order'!BE180)","v":""},{"$f":"IF('1. Order'!BG180=\"\",\"\",'1. Order'!BG180)","v":""},{"$f":"IF('1. Order'!BH180=\"\",\"\",'1. Order'!BH180)","v":""},{"$f":"IF('1. Order'!BI180=\"\",\"\",'1. Order'!BI180)","v":""},{"$f":"IF('1. Order'!BJ180=\"\",\"\",'1. Order'!BJ180)","v":""},{"$f":"IF('1. Order'!BK180=\"\",\"\",'1. Order'!BK180)","v":"ZWO"}]
[{"$f":"IF('1. Order'!G181=\"\",\"\",'1. Order'!G181)","v":""},{"$f":"IF('1. Order'!H181=\"\",\"\",'1. Order'!H181)","v":""},{"$f":"IF('1. Order'!I181=\"\",\"\",'1. Order'!I181)","v":""},{"$f":"IF('1. Order'!J181=\"\",\"\",'1. Order'!J181)","v":""},{"$f":"IF('1. Order'!K181=\"\",\"\",'1. Order'!K181)","v":""},{"$f":"IF('1. Order'!L181=\"\",\"\",'1. Order'!L181)","v":""},{"$f":"IF('1. Order'!M181=\"\",\"\",'1. Order'!M181)","v":""},{"$f":"IF('1. Order'!N181=\"\",\"\",'1. Order'!N181)","v":""},{"$f":"IF('1. Order'!P181=\"\",\"\",'1. Order'!P181)","v":""},{"$f":"IF('1. Order'!Q181=\"\",\"\",'1. Order'!Q181)","v":{"$error":"#N/A"}},{"$f":"IF('1. Order'!R181=\"\",\"\",'1. Order'!R181)","v":{"$error":"#N/A"}},{"$f":"IF('1. Order'!S181=\"\",\"\",'1. Order'!S181)","v":""},{"$f":"IF('1. Order'!T181=\"\",\"\",'1. Order'!T181)","v":""},{"$f":"IF('1. Order'!U181=\"\",\"\",'1. Order'!U181)","v":""},{"$f":"IF('1. Order'!X181=\"\",\"\",'1. Order'!X181)","v":""},{"$f":"IF('1. Order'!Y181=\"\",\"\",'1. Order'!Y181)","v":""},{"$f":"IF('1. Order'!Z181=\"\",\"\",'1. Order'!Z181)","v":""},{"$f":"IF('1. Order'!AC181=\"\",\"\",'1. Order'!AC181)","v":""},{"$f":"IF('1. Order'!AD181=\"\",\"\",'1. Order'!AD181)","v":""},{"$f":"IF('1. Order'!AE181=\"\",\"\",'1. Order'!AE181)","v":""},null,{"$f":"IF('1. Order'!AW181=\"\",\"\",'1. Order'!AW181)","v":""},{"$f":"IF('1. Order'!AX181=\"\",\"\",'1. Order'!AX181)","v":""},null,null,null,null,null,null,null,{"$f":"IF('1. Order'!BB181=\"\",\"\",'1. Order'!BB181)","v":""},{"$f":"IF('1. Order'!BC181=\"\",\"\",'1. Order'!BC181)","v":""},{"$f":"IF('1. Order'!BD181=\"\",\"\",'1. Order'!BD181)","v":""},{"$f":"IF('1. Order'!BE181=\"\",\"\",'1. Order'!BE181)","v":""},{"$f":"IF('1. Order'!BG181=\"\",\"\",'1. Order'!BG181)","v":""},{"$f":"IF('1. Order'!BH181=\"\",\"\",'1. Order'!BH181)","v":""},{"$f":"IF('1. Order'!BI181=\"\",\"\",'1. Order'!BI181)","v":""},{"$f":"IF('1. Order'!BJ181=\"\",\"\",'1. Order'!BJ181)","v":""},{"$f":"IF('1. Order'!BK181=\"\",\"\",'1. Order'!BK181)","v":"ZWO"}]
[{"$f":"IF('1. Order'!G182=\"\",\"\",'1. Order'!G182)","v":""},{"$f":"IF('1. Order'!H182=\"\",\"\",'1. Order'!H182)","v":""},{"$f":"IF('1. Order'!I182=\"\",\"\",'1. Order'!I182)","v":""},{"$f":"IF('1. Order'!J182=\"\",\"\",'1. Order'!J182)","v":""},{"$f":"IF('1. Order'!K182=\"\",\"\",'1. Order'!K182)","v":""},{"$f":"IF('1. Order'!L182=\"\",\"\",'1. Order'!L182)","v":""},{"$f":"IF('1. Order'!M182=\"\",\"\",'1. Order'!M182)","v":""},{"$f":"IF('1. Order'!N182=\"\",\"\",'1. Order'!N182)","v":""},{"$f":"IF('1. Order'!P182=\"\",\"\",'1. Order'!P182)","v":""},{"$f":"IF('1. Order'!Q182=\"\",\"\",'1. Order'!Q182)","v":{"$error":"#N/A"}},{"$f":"IF('1. Order'!R182=\"\",\"\",'1. Order'!R182)","v":{"$error":"#N/A"}},{"$f":"IF('1. Order'!S182=\"\",\"\",'1. Order'!S182)","v":""},{"$f":"IF('1. Order'!T182=\"\",\"\",'1. Order'!T182)","v":""},{"$f":"IF('1. Order'!U182=\"\",\"\",'1. Order'!U182)","v":""},{"$f":"IF('1. Order'!X182=\"\",\"\",'1. Order'!X182)","v":""},{"$f":"IF('1. Order'!Y182=\"\",\"\",'1. Order'!Y182)","v":""},{"$f":"IF('1. Order'!Z182=\"\",\"\",'1. Order'!Z182)","v":""},{"$f":"IF('1. Order'!AC182=\"\",\"\",'1. Order'!AC182)","v":""},{"$f":"IF('1. Order'!AD182=\"\",\"\",'1. Order'!AD182)","v":""},{"$f":"IF('1. Order'!AE182=\"\",\"\",'1. Order'!AE182)","v":""},null,{"$f":"IF('1. Order'!AW182=\"\",\"\",'1. Order'!AW182)","v":""},{"$f":"IF('1. Order'!AX182=\"\",\"\",'1. Order'!AX182)","v":""},null,null,null,null,null,null,null,{"$f":"IF('1. Order'!BB182=\"\",\"\",'1. Order'!BB182)","v":""},{"$f":"IF('1. Order'!BC182=\"\",\"\",'1. Order'!BC182)","v":""},{"$f":"IF('1. Order'!BD182=\"\",\"\",'1. Order'!BD182)","v":""},{"$f":"IF('1. Order'!BE182=\"\",\"\",'1. Order'!BE182)","v":""},{"$f":"IF('1. Order'!BG182=\"\",\"\",'1. Order'!BG182)","v":""},{"$f":"IF('1. Order'!BH182=\"\",\"\",'1. Order'!BH182)","v":""},{"$f":"IF('1. Order'!BI182=\"\",\"\",'1. Order'!BI182)","v":""},{"$f":"IF('1. Order'!BJ182=\"\",\"\",'1. Order'!BJ182)","v":""},{"$f":"IF('1. Order'!BK182=\"\",\"\",'1. Order'!BK182)","v":"ZWO"}]
[{"$f":"IF('1. Order'!G183=\"\",\"\",'1. Order'!G183)","v":""},{"$f":"IF('1. Order'!H183=\"\",\"\",'1. Order'!H183)","v":""},{"$f":"IF('1. Order'!I183=\"\",\"\",'1. Order'!I183)","v":""},{"$f":"IF('1. Order'!J183=\"\",\"\",'1. Order'!J183)","v":""},{"$f":"IF('1. Order'!K183=\"\",\"\",'1. Order'!K183)","v":""},{"$f":"IF('1. Order'!L183=\"\",\"\",'1. Order'!L183)","v":""},{"$f":"IF('1. Order'!M183=\"\",\"\",'1. Order'!M183)","v":""},{"$f":"IF('1. Order'!N183=\"\",\"\",'1. Order'!N183)","v":""},{"$f":"IF('1. Order'!P183=\"\",\"\",'1. Order'!P183)","v":""},{"$f":"IF('1. Order'!Q183=\"\",\"\",'1. Order'!Q183)","v":{"$error":"#N/A"}},{"$f":"IF('1. Order'!R183=\"\",\"\",'1. Order'!R183)","v":{"$error":"#N/A"}},{"$f":"IF('1. Order'!S183=\"\",\"\",'1. Order'!S183)","v":""},{"$f":"IF('1. Order'!T183=\"\",\"\",'1. Order'!T183)","v":""},{"$f":"IF('1. Order'!U183=\"\",\"\",'1. Order'!U183)","v":""},{"$f":"IF('1. Order'!X183=\"\",\"\",'1. Order'!X183)","v":""},{"$f":"IF('1. Order'!Y183=\"\",\"\",'1. Order'!Y183)","v":""},{"$f":"IF('1. Order'!Z183=\"\",\"\",'1. Order'!Z183)","v":""},{"$f":"IF('1. Order'!AC183=\"\",\"\",'1. Order'!AC183)","v":""},{"$f":"IF('1. Order'!AD183=\"\",\"\",'1. Order'!AD183)","v":""},{"$f":"IF('1. Order'!AE183=\"\",\"\",'1. Order'!AE183)","v":""},null,{"$f":"IF('1. Order'!AW183=\"\",\"\",'1. Order'!AW183)","v":""},{"$f":"IF('1. Order'!AX183=\"\",\"\",'1. Order'!AX183)","v":""},null,null,null,null,null,null,null,{"$f":"IF('1. Order'!BB183=\"\",\"\",'1. Order'!BB183)","v":""},{"$f":"IF('1. Order'!BC183=\"\",\"\",'1. Order'!BC183)","v":""},{"$f":"IF('1. Order'!BD183=\"\",\"\",'1. Order'!BD183)","v":""},{"$f":"IF('1. Order'!BE183=\"\",\"\",'1. Order'!BE183)","v":""},{"$f":"IF('1. Order'!BG183=\"\",\"\",'1. Order'!BG183)","v":""},{"$f":"IF('1. Order'!BH183=\"\",\"\",'1. Order'!BH183)","v":""},{"$f":"IF('1. Order'!BI183=\"\",\"\",'1. Order'!BI183)","v":""},{"$f":"IF('1. Order'!BJ183=\"\",\"\",'1. Order'!BJ183)","v":""},{"$f":"IF('1. Order'!BK183=\"\",\"\",'1. Order'!BK183)","v":"ZWO"}]
[{"$f":"IF('1. Order'!G184=\"\",\"\",'1. Order'!G184)","v":""},{"$f":"IF('1. Order'!H184=\"\",\"\",'1. Order'!H184)","v":""},{"$f":"IF('1. Order'!I184=\"\",\"\",'1. Order'!I184)","v":""},{"$f":"IF('1. Order'!J184=\"\",\"\",'1. Order'!J184)","v":""},{"$f":"IF('1. Order'!K184=\"\",\"\",'1. Order'!K184)","v":""},{"$f":"IF('1. Order'!L184=\"\",\"\",'1. Order'!L184)","v":""},{"$f":"IF('1. Order'!M184=\"\",\"\",'1. Order'!M184)","v":""},{"$f":"IF('1. Order'!N184=\"\",\"\",'1. Order'!N184)","v":""},{"$f":"IF('1. Order'!P184=\"\",\"\",'1. Order'!P184)","v":""},{"$f":"IF('1. Order'!Q184=\"\",\"\",'1. Order'!Q184)","v":{"$error":"#N/A"}},{"$f":"IF('1. Order'!R184=\"\",\"\",'1. Order'!R184)","v":{"$error":"#N/A"}},{"$f":"IF('1. Order'!S184=\"\",\"\",'1. Order'!S184)","v":""},{"$f":"IF('1. Order'!T184=\"\",\"\",'1. Order'!T184)","v":""},{"$f":"IF('1. Order'!U184=\"\",\"\",'1. Order'!U184)","v":""},{"$f":"IF('1. Order'!X184=\"\",\"\",'1. Order'!X184)","v":""},{"$f":"IF('1. Order'!Y184=\"\",\"\",'1. Order'!Y184)","v":""},{"$f":"IF('1. Order'!Z184=\"\",\"\",'1. Order'!Z184)","v":""},{"$f":"IF('1. Order'!AC184=\"\",\"\",'1. Order'!AC184)","v":""},{"$f":"IF('1. Order'!AD184=\"\",\"\",'1. Order'!AD184)","v":""},{"$f":"IF('1. Order'!AE184=\"\",\"\",'1. Order'!AE184)","v":""},null,{"$f":"IF('1. Order'!AW184=\"\",\"\",'1. Order'!AW184)","v":""},{"$f":"IF('1. Order'!AX184=\"\",\"\",'1. Order'!AX184)","v":""},null,null,null,null,null,null,null,{"$f":"IF('1. Order'!BB184=\"\",\"\",'1. Order'!BB184)","v":""},{"$f":"IF('1. Order'!BC184=\"\",\"\",'1. Order'!BC184)","v":""},{"$f":"IF('1. Order'!BD184=\"\",\"\",'1. Order'!BD184)","v":""},{"$f":"IF('1. Order'!BE184=\"\",\"\",'1. Order'!BE184)","v":""},{"$f":"IF('1. Order'!BG184=\"\",\"\",'1. Order'!BG184)","v":""},{"$f":"IF('1. Order'!BH184=\"\",\"\",'1. Order'!BH184)","v":""},{"$f":"IF('1. Order'!BI184=\"\",\"\",'1. Order'!BI184)","v":""},{"$f":"IF('1. Order'!BJ184=\"\",\"\",'1. Order'!BJ184)","v":""},{"$f":"IF('1. Order'!BK184=\"\",\"\",'1. Order'!BK184)","v":"ZWO"}]
[{"$f":"IF('1. Order'!G185=\"\",\"\",'1. Order'!G185)","v":""},{"$f":"IF('1. Order'!H185=\"\",\"\",'1. Order'!H185)","v":""},{"$f":"IF('1. Order'!I185=\"\",\"\",'1. Order'!I185)","v":""},{"$f":"IF('1. Order'!J185=\"\",\"\",'1. Order'!J185)","v":""},{"$f":"IF('1. Order'!K185=\"\",\"\",'1. Order'!K185)","v":""},{"$f":"IF('1. Order'!L185=\"\",\"\",'1. Order'!L185)","v":""},{"$f":"IF('1. Order'!M185=\"\",\"\",'1. Order'!M185)","v":""},{"$f":"IF('1. Order'!N185=\"\",\"\",'1. Order'!N185)","v":""},{"$f":"IF('1. Order'!P185=\"\",\"\",'1. Order'!P185)","v":""},{"$f":"IF('1. Order'!Q185=\"\",\"\",'1. Order'!Q185)","v":{"$error":"#N/A"}},{"$f":"IF('1. Order'!R185=\"\",\"\",'1. Order'!R185)","v":{"$error":"#N/A"}},{"$f":"IF('1. Order'!S185=\"\",\"\",'1. Order'!S185)","v":""},{"$f":"IF('1. Order'!T185=\"\",\"\",'1. Order'!T185)","v":""},{"$f":"IF('1. Order'!U185=\"\",\"\",'1. Order'!U185)","v":""},{"$f":"IF('1. Order'!X185=\"\",\"\",'1. Order'!X185)","v":""},{"$f":"IF('1. Order'!Y185=\"\",\"\",'1. Order'!Y185)","v":""},{"$f":"IF('1. Order'!Z185=\"\",\"\",'1. Order'!Z185)","v":""},{"$f":"IF('1. Order'!AC185=\"\",\"\",'1. Order'!AC185)","v":""},{"$f":"IF('1. Order'!AD185=\"\",\"\",'1. Order'!AD185)","v":""},{"$f":"IF('1. Order'!AE185=\"\",\"\",'1. Order'!AE185)","v":""},null,{"$f":"IF('1. Order'!AW185=\"\",\"\",'1. Order'!AW185)","v":""},{"$f":"IF('1. Order'!AX185=\"\",\"\",'1. Order'!AX185)","v":""},null,null,null,null,null,null,null,{"$f":"IF('1. Order'!BB185=\"\",\"\",'1. Order'!BB185)","v":""},{"$f":"IF('1. Order'!BC185=\"\",\"\",'1. Order'!BC185)","v":""},{"$f":"IF('1. Order'!BD185=\"\",\"\",'1. Order'!BD185)","v":""},{"$f":"IF('1. Order'!BE185=\"\",\"\",'1. Order'!BE185)","v":""},{"$f":"IF('1. Order'!BG185=\"\",\"\",'1. Order'!BG185)","v":""},{"$f":"IF('1. Order'!BH185=\"\",\"\",'1. Order'!BH185)","v":""},{"$f":"IF('1. Order'!BI185=\"\",\"\",'1. Order'!BI185)","v":""},{"$f":"IF('1. Order'!BJ185=\"\",\"\",'1. Order'!BJ185)","v":""},{"$f":"IF('1. Order'!BK185=\"\",\"\",'1. Order'!BK185)","v":"ZWO"}]
[{"$f":"IF('1. Order'!G186=\"\",\"\",'1. Order'!G186)","v":""},{"$f":"IF('1. Order'!H186=\"\",\"\",'1. Order'!H186)","v":""},{"$f":"IF('1. Order'!I186=\"\",\"\",'1. Order'!I186)","v":""},{"$f":"IF('1. Order'!J186=\"\",\"\",'1. Order'!J186)","v":""},{"$f":"IF('1. Order'!K186=\"\",\"\",'1. Order'!K186)","v":""},{"$f":"IF('1. Order'!L186=\"\",\"\",'1. Order'!L186)","v":""},{"$f":"IF('1. Order'!M186=\"\",\"\",'1. Order'!M186)","v":""},{"$f":"IF('1. Order'!N186=\"\",\"\",'1. Order'!N186)","v":""},{"$f":"IF('1. Order'!P186=\"\",\"\",'1. Order'!P186)","v":""},{"$f":"IF('1. Order'!Q186=\"\",\"\",'1. Order'!Q186)","v":{"$error":"#N/A"}},{"$f":"IF('1. Order'!R186=\"\",\"\",'1. Order'!R186)","v":{"$error":"#N/A"}},{"$f":"IF('1. Order'!S186=\"\",\"\",'1. Order'!S186)","v":""},{"$f":"IF('1. Order'!T186=\"\",\"\",'1. Order'!T186)","v":""},{"$f":"IF('1. Order'!U186=\"\",\"\",'1. Order'!U186)","v":""},{"$f":"IF('1. Order'!X186=\"\",\"\",'1. Order'!X186)","v":""},{"$f":"IF('1. Order'!Y186=\"\",\"\",'1. Order'!Y186)","v":""},{"$f":"IF('1. Order'!Z186=\"\",\"\",'1. Order'!Z186)","v":""},{"$f":"IF('1. Order'!AC186=\"\",\"\",'1. Order'!AC186)","v":""},{"$f":"IF('1. Order'!AD186=\"\",\"\",'1. Order'!AD186)","v":""},{"$f":"IF('1. Order'!AE186=\"\",\"\",'1. Order'!AE186)","v":""},null,{"$f":"IF('1. Order'!AW186=\"\",\"\",'1. Order'!AW186)","v":""},{"$f":"IF('1. Order'!AX186=\"\",\"\",'1. Order'!AX186)","v":""},null,null,null,null,null,null,null,{"$f":"IF('1. Order'!BB186=\"\",\"\",'1. Order'!BB186)","v":""},{"$f":"IF('1. Order'!BC186=\"\",\"\",'1. Order'!BC186)","v":""},{"$f":"IF('1. Order'!BD186=\"\",\"\",'1. Order'!BD186)","v":""},{"$f":"IF('1. Order'!BE186=\"\",\"\",'1. Order'!BE186)","v":""},{"$f":"IF('1. Order'!BG186=\"\",\"\",'1. Order'!BG186)","v":""},{"$f":"IF('1. Order'!BH186=\"\",\"\",'1. Order'!BH186)","v":""},{"$f":"IF('1. Order'!BI186=\"\",\"\",'1. Order'!BI186)","v":""},{"$f":"IF('1. Order'!BJ186=\"\",\"\",'1. Order'!BJ186)","v":""},{"$f":"IF('1. Order'!BK186=\"\",\"\",'1. Order'!BK186)","v":"ZWO"}]
[{"$f":"IF('1. Order'!G187=\"\",\"\",'1. Order'!G187)","v":""},{"$f":"IF('1. Order'!H187=\"\",\"\",'1. Order'!H187)","v":""},{"$f":"IF('1. Order'!I187=\"\",\"\",'1. Order'!I187)","v":""},{"$f":"IF('1. Order'!J187=\"\",\"\",'1. Order'!J187)","v":""},{"$f":"IF('1. Order'!K187=\"\",\"\",'1. Order'!K187)","v":""},{"$f":"IF('1. Order'!L187=\"\",\"\",'1. Order'!L187)","v":""},{"$f":"IF('1. Order'!M187=\"\",\"\",'1. Order'!M187)","v":""},{"$f":"IF('1. Order'!N187=\"\",\"\",'1. Order'!N187)","v":""},{"$f":"IF('1. Order'!P187=\"\",\"\",'1. Order'!P187)","v":""},{"$f":"IF('1. Order'!Q187=\"\",\"\",'1. Order'!Q187)","v":{"$error":"#N/A"}},{"$f":"IF('1. Order'!R187=\"\",\"\",'1. Order'!R187)","v":{"$error":"#N/A"}},{"$f":"IF('1. Order'!S187=\"\",\"\",'1. Order'!S187)","v":""},{"$f":"IF('1. Order'!T187=\"\",\"\",'1. Order'!T187)","v":""},{"$f":"IF('1. Order'!U187=\"\",\"\",'1. Order'!U187)","v":""},{"$f":"IF('1. Order'!X187=\"\",\"\",'1. Order'!X187)","v":""},{"$f":"IF('1. Order'!Y187=\"\",\"\",'1. Order'!Y187)","v":""},{"$f":"IF('1. Order'!Z187=\"\",\"\",'1. Order'!Z187)","v":""},{"$f":"IF('1. Order'!AC187=\"\",\"\",'1. Order'!AC187)","v":""},{"$f":"IF('1. Order'!AD187=\"\",\"\",'1. Order'!AD187)","v":""},{"$f":"IF('1. Order'!AE187=\"\",\"\",'1. Order'!AE187)","v":""},null,{"$f":"IF('1. Order'!AW187=\"\",\"\",'1. Order'!AW187)","v":""},{"$f":"IF('1. Order'!AX187=\"\",\"\",'1. Order'!AX187)","v":""},null,null,null,null,null,null,null,{"$f":"IF('1. Order'!BB187=\"\",\"\",'1. Order'!BB187)","v":""},{"$f":"IF('1. Order'!BC187=\"\",\"\",'1. Order'!BC187)","v":""},{"$f":"IF('1. Order'!BD187=\"\",\"\",'1. Order'!BD187)","v":""},{"$f":"IF('1. Order'!BE187=\"\",\"\",'1. Order'!BE187)","v":""},{"$f":"IF('1. Order'!BG187=\"\",\"\",'1. Order'!BG187)","v":""},{"$f":"IF('1. Order'!BH187=\"\",\"\",'1. Order'!BH187)","v":""},{"$f":"IF('1. Order'!BI187=\"\",\"\",'1. Order'!BI187)","v":""},{"$f":"IF('1. Order'!BJ187=\"\",\"\",'1. Order'!BJ187)","v":""},{"$f":"IF('1. Order'!BK187=\"\",\"\",'1. Order'!BK187)","v":"ZWO"}]
[{"$f":"IF('1. Order'!G188=\"\",\"\",'1. Order'!G188)","v":""},{"$f":"IF('1. Order'!H188=\"\",\"\",'1. Order'!H188)","v":""},{"$f":"IF('1. Order'!I188=\"\",\"\",'1. Order'!I188)","v":""},{"$f":"IF('1. Order'!J188=\"\",\"\",'1. Order'!J188)","v":""},{"$f":"IF('1. Order'!K188=\"\",\"\",'1. Order'!K188)","v":""},{"$f":"IF('1. Order'!L188=\"\",\"\",'1. Order'!L188)","v":""},{"$f":"IF('1. Order'!M188=\"\",\"\",'1. Order'!M188)","v":""},{"$f":"IF('1. Order'!N188=\"\",\"\",'1. Order'!N188)","v":""},{"$f":"IF('1. Order'!P188=\"\",\"\",'1. Order'!P188)","v":""},{"$f":"IF('1. Order'!Q188=\"\",\"\",'1. Order'!Q188)","v":{"$error":"#N/A"}},{"$f":"IF('1. Order'!R188=\"\",\"\",'1. Order'!R188)","v":{"$error":"#N/A"}},{"$f":"IF('1. Order'!S188=\"\",\"\",'1. Order'!S188)","v":""},{"$f":"IF('1. Order'!T188=\"\",\"\",'1. Order'!T188)","v":""},{"$f":"IF('1. Order'!U188=\"\",\"\",'1. Order'!U188)","v":""},{"$f":"IF('1. Order'!X188=\"\",\"\",'1. Order'!X188)","v":""},{"$f":"IF('1. Order'!Y188=\"\",\"\",'1. Order'!Y188)","v":""},{"$f":"IF('1. Order'!Z188=\"\",\"\",'1. Order'!Z188)","v":""},{"$f":"IF('1. Order'!AC188=\"\",\"\",'1. Order'!AC188)","v":""},{"$f":"IF('1. Order'!AD188=\"\",\"\",'1. Order'!AD188)","v":""},{"$f":"IF('1. Order'!AE188=\"\",\"\",'1. Order'!AE188)","v":""},null,{"$f":"IF('1. Order'!AW188=\"\",\"\",'1. Order'!AW188)","v":""},{"$f":"IF('1. Order'!AX188=\"\",\"\",'1. Order'!AX188)","v":""},null,null,null,null,null,null,null,{"$f":"IF('1. Order'!BB188=\"\",\"\",'1. Order'!BB188)","v":""},{"$f":"IF('1. Order'!BC188=\"\",\"\",'1. Order'!BC188)","v":""},{"$f":"IF('1. Order'!BD188=\"\",\"\",'1. Order'!BD188)","v":""},{"$f":"IF('1. Order'!BE188=\"\",\"\",'1. Order'!BE188)","v":""},{"$f":"IF('1. Order'!BG188=\"\",\"\",'1. Order'!BG188)","v":""},{"$f":"IF('1. Order'!BH188=\"\",\"\",'1. Order'!BH188)","v":""},{"$f":"IF('1. Order'!BI188=\"\",\"\",'1. Order'!BI188)","v":""},{"$f":"IF('1. Order'!BJ188=\"\",\"\",'1. Order'!BJ188)","v":""},{"$f":"IF('1. Order'!BK188=\"\",\"\",'1. Order'!BK188)","v":"ZWO"}]
[{"$f":"IF('1. Order'!G189=\"\",\"\",'1. Order'!G189)","v":""},{"$f":"IF('1. Order'!H189=\"\",\"\",'1. Order'!H189)","v":""},{"$f":"IF('1. Order'!I189=\"\",\"\",'1. Order'!I189)","v":""},{"$f":"IF('1. Order'!J189=\"\",\"\",'1. Order'!J189)","v":""},{"$f":"IF('1. Order'!K189=\"\",\"\",'1. Order'!K189)","v":""},{"$f":"IF('1. Order'!L189=\"\",\"\",'1. Order'!L189)","v":""},{"$f":"IF('1. Order'!M189=\"\",\"\",'1. Order'!M189)","v":""},{"$f":"IF('1. Order'!N189=\"\",\"\",'1. Order'!N189)","v":""},{"$f":"IF('1. Order'!P189=\"\",\"\",'1. Order'!P189)","v":""},{"$f":"IF('1. Order'!Q189=\"\",\"\",'1. Order'!Q189)","v":{"$error":"#N/A"}},{"$f":"IF('1. Order'!R189=\"\",\"\",'1. Order'!R189)","v":{"$error":"#N/A"}},{"$f":"IF('1. Order'!S189=\"\",\"\",'1. Order'!S189)","v":""},{"$f":"IF('1. Order'!T189=\"\",\"\",'1. Order'!T189)","v":""},{"$f":"IF('1. Order'!U189=\"\",\"\",'1. Order'!U189)","v":""},{"$f":"IF('1. Order'!X189=\"\",\"\",'1. Order'!X189)","v":""},{"$f":"IF('1. Order'!Y189=\"\",\"\",'1. Order'!Y189)","v":""},{"$f":"IF('1. Order'!Z189=\"\",\"\",'1. Order'!Z189)","v":""},{"$f":"IF('1. Order'!AC189=\"\",\"\",'1. Order'!AC189)","v":""},{"$f":"IF('1. Order'!AD189=\"\",\"\",'1. Order'!AD189)","v":""},{"$f":"IF('1. Order'!AE189=\"\",\"\",'1. Order'!AE189)","v":""},null,{"$f":"IF('1. Order'!AW189=\"\",\"\",'1. Order'!AW189)","v":""},{"$f":"IF('1. Order'!AX189=\"\",\"\",'1. Order'!AX189)","v":""},null,null,null,null,null,null,null,{"$f":"IF('1. Order'!BB189=\"\",\"\",'1. Order'!BB189)","v":""},{"$f":"IF('1. Order'!BC189=\"\",\"\",'1. Order'!BC189)","v":""},{"$f":"IF('1. Order'!BD189=\"\",\"\",'1. Order'!BD189)","v":""},{"$f":"IF('1. Order'!BE189=\"\",\"\",'1. Order'!BE189)","v":""},{"$f":"IF('1. Order'!BG189=\"\",\"\",'1. Order'!BG189)","v":""},{"$f":"IF('1. Order'!BH189=\"\",\"\",'1. Order'!BH189)","v":""},{"$f":"IF('1. Order'!BI189=\"\",\"\",'1. Order'!BI189)","v":""},{"$f":"IF('1. Order'!BJ189=\"\",\"\",'1. Order'!BJ189)","v":""},{"$f":"IF('1. Order'!BK189=\"\",\"\",'1. Order'!BK189)","v":"ZWO"}]
[{"$f":"IF('1. Order'!G190=\"\",\"\",'1. Order'!G190)","v":""},{"$f":"IF('1. Order'!H190=\"\",\"\",'1. Order'!H190)","v":""},{"$f":"IF('1. Order'!I190=\"\",\"\",'1. Order'!I190)","v":""},{"$f":"IF('1. Order'!J190=\"\",\"\",'1. Order'!J190)","v":""},{"$f":"IF('1. Order'!K190=\"\",\"\",'1. Order'!K190)","v":""},{"$f":"IF('1. Order'!L190=\"\",\"\",'1. Order'!L190)","v":""},{"$f":"IF('1. Order'!M190=\"\",\"\",'1. Order'!M190)","v":""},{"$f":"IF('1. Order'!N190=\"\",\"\",'1. Order'!N190)","v":""},{"$f":"IF('1. Order'!P190=\"\",\"\",'1. Order'!P190)","v":""},{"$f":"IF('1. Order'!Q190=\"\",\"\",'1. Order'!Q190)","v":{"$error":"#N/A"}},{"$f":"IF('1. Order'!R190=\"\",\"\",'1. Order'!R190)","v":{"$error":"#N/A"}},{"$f":"IF('1. Order'!S190=\"\",\"\",'1. Order'!S190)","v":""},{"$f":"IF('1. Order'!T190=\"\",\"\",'1. Order'!T190)","v":""},{"$f":"IF('1. Order'!U190=\"\",\"\",'1. Order'!U190)","v":""},{"$f":"IF('1. Order'!X190=\"\",\"\",'1. Order'!X190)","v":""},{"$f":"IF('1. Order'!Y190=\"\",\"\",'1. Order'!Y190)","v":""},{"$f":"IF('1. Order'!Z190=\"\",\"\",'1. Order'!Z190)","v":""},{"$f":"IF('1. Order'!AC190=\"\",\"\",'1. Order'!AC190)","v":""},{"$f":"IF('1. Order'!AD190=\"\",\"\",'1. Order'!AD190)","v":""},{"$f":"IF('1. Order'!AE190=\"\",\"\",'1. Order'!AE190)","v":""},null,{"$f":"IF('1. Order'!AW190=\"\",\"\",'1. Order'!AW190)","v":""},{"$f":"IF('1. Order'!AX190=\"\",\"\",'1. Order'!AX190)","v":""},null,null,null,null,null,null,null,{"$f":"IF('1. Order'!BB190=\"\",\"\",'1. Order'!BB190)","v":""},{"$f":"IF('1. Order'!BC190=\"\",\"\",'1. Order'!BC190)","v":""},{"$f":"IF('1. Order'!BD190=\"\",\"\",'1. Order'!BD190)","v":""},{"$f":"IF('1. Order'!BE190=\"\",\"\",'1. Order'!BE190)","v":""},{"$f":"IF('1. Order'!BG190=\"\",\"\",'1. Order'!BG190)","v":""},{"$f":"IF('1. Order'!BH190=\"\",\"\",'1. Order'!BH190)","v":""},{"$f":"IF('1. Order'!BI190=\"\",\"\",'1. Order'!BI190)","v":""},{"$f":"IF('1. Order'!BJ190=\"\",\"\",'1. Order'!BJ190)","v":""},{"$f":"IF('1. Order'!BK190=\"\",\"\",'1. Order'!BK190)","v":"ZWO"}]
[{"$f":"IF('1. Order'!G191=\"\",\"\",'1. Order'!G191)","v":""},{"$f":"IF('1. Order'!H191=\"\",\"\",'1. Order'!H191)","v":""},{"$f":"IF('1. Order'!I191=\"\",\"\",'1. Order'!I191)","v":""},{"$f":"IF('1. Order'!J191=\"\",\"\",'1. Order'!J191)","v":""},{"$f":"IF('1. Order'!K191=\"\",\"\",'1. Order'!K191)","v":""},{"$f":"IF('1. Order'!L191=\"\",\"\",'1. Order'!L191)","v":""},{"$f":"IF('1. Order'!M191=\"\",\"\",'1. Order'!M191)","v":""},{"$f":"IF('1. Order'!N191=\"\",\"\",'1. Order'!N191)","v":""},{"$f":"IF('1. Order'!P191=\"\",\"\",'1. Order'!P191)","v":""},{"$f":"IF('1. Order'!Q191=\"\",\"\",'1. Order'!Q191)","v":{"$error":"#N/A"}},{"$f":"IF('1. Order'!R191=\"\",\"\",'1. Order'!R191)","v":{"$error":"#N/A"}},{"$f":"IF('1. Order'!S191=\"\",\"\",'1. Order'!S191)","v":""},{"$f":"IF('1. Order'!T191=\"\",\"\",'1. Order'!T191)","v":""},{"$f":"IF('1. Order'!U191=\"\",\"\",'1. Order'!U191)","v":""},{"$f":"IF('1. Order'!X191=\"\",\"\",'1. Order'!X191)","v":""},{"$f":"IF('1. Order'!Y191=\"\",\"\",'1. Order'!Y191)","v":""},{"$f":"IF('1. Order'!Z191=\"\",\"\",'1. Order'!Z191)","v":""},{"$f":"IF('1. Order'!AC191=\"\",\"\",'1. Order'!AC191)","v":""},{"$f":"IF('1. Order'!AD191=\"\",\"\",'1. Order'!AD191)","v":""},{"$f":"IF('1. Order'!AE191=\"\",\"\",'1. Order'!AE191)","v":""},null,{"$f":"IF('1. Order'!AW191=\"\",\"\",'1. Order'!AW191)","v":""},{"$f":"IF('1. Order'!AX191=\"\",\"\",'1. Order'!AX191)","v":""},null,null,null,null,null,null,null,{"$f":"IF('1. Order'!BB191=\"\",\"\",'1. Order'!BB191)","v":""},{"$f":"IF('1. Order'!BC191=\"\",\"\",'1. Order'!BC191)","v":""},{"$f":"IF('1. Order'!BD191=\"\",\"\",'1. Order'!BD191)","v":""},{"$f":"IF('1. Order'!BE191=\"\",\"\",'1. Order'!BE191)","v":""},{"$f":"IF('1. Order'!BG191=\"\",\"\",'1. Order'!BG191)","v":""},{"$f":"IF('1. Order'!BH191=\"\",\"\",'1. Order'!BH191)","v":""},{"$f":"IF('1. Order'!BI191=\"\",\"\",'1. Order'!BI191)","v":""},{"$f":"IF('1. Order'!BJ191=\"\",\"\",'1. Order'!BJ191)","v":""},{"$f":"IF('1. Order'!BK191=\"\",\"\",'1. Order'!BK191)","v":"ZWO"}]
[{"$f":"IF('1. Order'!G192=\"\",\"\",'1. Order'!G192)","v":""},{"$f":"IF('1. Order'!H192=\"\",\"\",'1. Order'!H192)","v":""},{"$f":"IF('1. Order'!I192=\"\",\"\",'1. Order'!I192)","v":""},{"$f":"IF('1. Order'!J192=\"\",\"\",'1. Order'!J192)","v":""},{"$f":"IF('1. Order'!K192=\"\",\"\",'1. Order'!K192)","v":""},{"$f":"IF('1. Order'!L192=\"\",\"\",'1. Order'!L192)","v":""},{"$f":"IF('1. Order'!M192=\"\",\"\",'1. Order'!M192)","v":""},{"$f":"IF('1. Order'!N192=\"\",\"\",'1. Order'!N192)","v":""},{"$f":"IF('1. Order'!P192=\"\",\"\",'1. Order'!P192)","v":""},{"$f":"IF('1. Order'!Q192=\"\",\"\",'1. Order'!Q192)","v":{"$error":"#N/A"}},{"$f":"IF('1. Order'!R192=\"\",\"\",'1. Order'!R192)","v":{"$error":"#N/A"}},{"$f":"IF('1. Order'!S192=\"\",\"\",'1. Order'!S192)","v":""},{"$f":"IF('1. Order'!T192=\"\",\"\",'1. Order'!T192)","v":""},{"$f":"IF('1. Order'!U192=\"\",\"\",'1. Order'!U192)","v":""},{"$f":"IF('1. Order'!X192=\"\",\"\",'1. Order'!X192)","v":""},{"$f":"IF('1. Order'!Y192=\"\",\"\",'1. Order'!Y192)","v":""},{"$f":"IF('1. Order'!Z192=\"\",\"\",'1. Order'!Z192)","v":""},{"$f":"IF('1. Order'!AC192=\"\",\"\",'1. Order'!AC192)","v":""},{"$f":"IF('1. Order'!AD192=\"\",\"\",'1. Order'!AD192)","v":""},{"$f":"IF('1. Order'!AE192=\"\",\"\",'1. Order'!AE192)","v":""},null,{"$f":"IF('1. Order'!AW192=\"\",\"\",'1. Order'!AW192)","v":""},{"$f":"IF('1. Order'!AX192=\"\",\"\",'1. Order'!AX192)","v":""},null,null,null,null,null,null,null,{"$f":"IF('1. Order'!BB192=\"\",\"\",'1. Order'!BB192)","v":""},{"$f":"IF('1. Order'!BC192=\"\",\"\",'1. Order'!BC192)","v":""},{"$f":"IF('1. Order'!BD192=\"\",\"\",'1. Order'!BD192)","v":""},{"$f":"IF('1. Order'!BE192=\"\",\"\",'1. Order'!BE192)","v":""},{"$f":"IF('1. Order'!BG192=\"\",\"\",'1. Order'!BG192)","v":""},{"$f":"IF('1. Order'!BH192=\"\",\"\",'1. Order'!BH192)","v":""},{"$f":"IF('1. Order'!BI192=\"\",\"\",'1. Order'!BI192)","v":""},{"$f":"IF('1. Order'!BJ192=\"\",\"\",'1. Order'!BJ192)","v":""},{"$f":"IF('1. Order'!BK192=\"\",\"\",'1. Order'!BK192)","v":"ZWO"}]
[{"$f":"IF('1. Order'!G193=\"\",\"\",'1. Order'!G193)","v":""},{"$f":"IF('1. Order'!H193=\"\",\"\",'1. Order'!H193)","v":""},{"$f":"IF('1. Order'!I193=\"\",\"\",'1. Order'!I193)","v":""},{"$f":"IF('1. Order'!J193=\"\",\"\",'1. Order'!J193)","v":""},{"$f":"IF('1. Order'!K193=\"\",\"\",'1. Order'!K193)","v":""},{"$f":"IF('1. Order'!L193=\"\",\"\",'1. Order'!L193)","v":""},{"$f":"IF('1. Order'!M193=\"\",\"\",'1. Order'!M193)","v":""},{"$f":"IF('1. Order'!N193=\"\",\"\",'1. Order'!N193)","v":""},{"$f":"IF('1. Order'!P193=\"\",\"\",'1. Order'!P193)","v":""},{"$f":"IF('1. Order'!Q193=\"\",\"\",'1. Order'!Q193)","v":{"$error":"#N/A"}},{"$f":"IF('1. Order'!R193=\"\",\"\",'1. Order'!R193)","v":{"$error":"#N/A"}},{"$f":"IF('1. Order'!S193=\"\",\"\",'1. Order'!S193)","v":""},{"$f":"IF('1. Order'!T193=\"\",\"\",'1. Order'!T193)","v":""},{"$f":"IF('1. Order'!U193=\"\",\"\",'1. Order'!U193)","v":""},{"$f":"IF('1. Order'!X193=\"\",\"\",'1. Order'!X193)","v":""},{"$f":"IF('1. Order'!Y193=\"\",\"\",'1. Order'!Y193)","v":""},{"$f":"IF('1. Order'!Z193=\"\",\"\",'1. Order'!Z193)","v":""},{"$f":"IF('1. Order'!AC193=\"\",\"\",'1. Order'!AC193)","v":""},{"$f":"IF('1. Order'!AD193=\"\",\"\",'1. Order'!AD193)","v":""},{"$f":"IF('1. Order'!AE193=\"\",\"\",'1. Order'!AE193)","v":""},null,{"$f":"IF('1. Order'!AW193=\"\",\"\",'1. Order'!AW193)","v":""},{"$f":"IF('1. Order'!AX193=\"\",\"\",'1. Order'!AX193)","v":""},null,null,null,null,null,null,null,{"$f":"IF('1. Order'!BB193=\"\",\"\",'1. Order'!BB193)","v":""},{"$f":"IF('1. Order'!BC193=\"\",\"\",'1. Order'!BC193)","v":""},{"$f":"IF('1. Order'!BD193=\"\",\"\",'1. Order'!BD193)","v":""},{"$f":"IF('1. Order'!BE193=\"\",\"\",'1. Order'!BE193)","v":""},{"$f":"IF('1. Order'!BG193=\"\",\"\",'1. Order'!BG193)","v":""},{"$f":"IF('1. Order'!BH193=\"\",\"\",'1. Order'!BH193)","v":""},{"$f":"IF('1. Order'!BI193=\"\",\"\",'1. Order'!BI193)","v":""},{"$f":"IF('1. Order'!BJ193=\"\",\"\",'1. Order'!BJ193)","v":""},{"$f":"IF('1. Order'!BK193=\"\",\"\",'1. Order'!BK193)","v":"ZWO"}]
[{"$f":"IF('1. Order'!G194=\"\",\"\",'1. Order'!G194)","v":""},{"$f":"IF('1. Order'!H194=\"\",\"\",'1. Order'!H194)","v":""},{"$f":"IF('1. Order'!I194=\"\",\"\",'1. Order'!I194)","v":""},{"$f":"IF('1. Order'!J194=\"\",\"\",'1. Order'!J194)","v":""},{"$f":"IF('1. Order'!K194=\"\",\"\",'1. Order'!K194)","v":""},{"$f":"IF('1. Order'!L194=\"\",\"\",'1. Order'!L194)","v":""},{"$f":"IF('1. Order'!M194=\"\",\"\",'1. Order'!M194)","v":""},{"$f":"IF('1. Order'!N194=\"\",\"\",'1. Order'!N194)","v":""},{"$f":"IF('1. Order'!P194=\"\",\"\",'1. Order'!P194)","v":""},{"$f":"IF('1. Order'!Q194=\"\",\"\",'1. Order'!Q194)","v":{"$error":"#N/A"}},{"$f":"IF('1. Order'!R194=\"\",\"\",'1. Order'!R194)","v":{"$error":"#N/A"}},{"$f":"IF('1. Order'!S194=\"\",\"\",'1. Order'!S194)","v":""},{"$f":"IF('1. Order'!T194=\"\",\"\",'1. Order'!T194)","v":""},{"$f":"IF('1. Order'!U194=\"\",\"\",'1. Order'!U194)","v":""},{"$f":"IF('1. Order'!X194=\"\",\"\",'1. Order'!X194)","v":""},{"$f":"IF('1. Order'!Y194=\"\",\"\",'1. Order'!Y194)","v":""},{"$f":"IF('1. Order'!Z194=\"\",\"\",'1. Order'!Z194)","v":""},{"$f":"IF('1. Order'!AC194=\"\",\"\",'1. Order'!AC194)","v":""},{"$f":"IF('1. Order'!AD194=\"\",\"\",'1. Order'!AD194)","v":""},{"$f":"IF('1. Order'!AE194=\"\",\"\",'1. Order'!AE194)","v":""},null,{"$f":"IF('1. Order'!AW194=\"\",\"\",'1. Order'!AW194)","v":""},{"$f":"IF('1. Order'!AX194=\"\",\"\",'1. Order'!AX194)","v":""},null,null,null,null,null,null,null,{"$f":"IF('1. Order'!BB194=\"\",\"\",'1. Order'!BB194)","v":""},{"$f":"IF('1. Order'!BC194=\"\",\"\",'1. Order'!BC194)","v":""},{"$f":"IF('1. Order'!BD194=\"\",\"\",'1. Order'!BD194)","v":""},{"$f":"IF('1. Order'!BE194=\"\",\"\",'1. Order'!BE194)","v":""},{"$f":"IF('1. Order'!BG194=\"\",\"\",'1. Order'!BG194)","v":""},{"$f":"IF('1. Order'!BH194=\"\",\"\",'1. Order'!BH194)","v":""},{"$f":"IF('1. Order'!BI194=\"\",\"\",'1. Order'!BI194)","v":""},{"$f":"IF('1. Order'!BJ194=\"\",\"\",'1. Order'!BJ194)","v":""},{"$f":"IF('1. Order'!BK194=\"\",\"\",'1. Order'!BK194)","v":"ZWO"}]
[{"$f":"IF('1. Order'!G195=\"\",\"\",'1. Order'!G195)","v":""},{"$f":"IF('1. Order'!H195=\"\",\"\",'1. Order'!H195)","v":""},{"$f":"IF('1. Order'!I195=\"\",\"\",'1. Order'!I195)","v":""},{"$f":"IF('1. Order'!J195=\"\",\"\",'1. Order'!J195)","v":""},{"$f":"IF('1. Order'!K195=\"\",\"\",'1. Order'!K195)","v":""},{"$f":"IF('1. Order'!L195=\"\",\"\",'1. Order'!L195)","v":""},{"$f":"IF('1. Order'!M195=\"\",\"\",'1. Order'!M195)","v":""},{"$f":"IF('1. Order'!N195=\"\",\"\",'1. Order'!N195)","v":""},{"$f":"IF('1. Order'!P195=\"\",\"\",'1. Order'!P195)","v":""},{"$f":"IF('1. Order'!Q195=\"\",\"\",'1. Order'!Q195)","v":{"$error":"#N/A"}},{"$f":"IF('1. Order'!R195=\"\",\"\",'1. Order'!R195)","v":{"$error":"#N/A"}},{"$f":"IF('1. Order'!S195=\"\",\"\",'1. Order'!S195)","v":""},{"$f":"IF('1. Order'!T195=\"\",\"\",'1. Order'!T195)","v":""},{"$f":"IF('1. Order'!U195=\"\",\"\",'1. Order'!U195)","v":""},{"$f":"IF('1. Order'!X195=\"\",\"\",'1. Order'!X195)","v":""},{"$f":"IF('1. Order'!Y195=\"\",\"\",'1. Order'!Y195)","v":""},{"$f":"IF('1. Order'!Z195=\"\",\"\",'1. Order'!Z195)","v":""},{"$f":"IF('1. Order'!AC195=\"\",\"\",'1. Order'!AC195)","v":""},{"$f":"IF('1. Order'!AD195=\"\",\"\",'1. Order'!AD195)","v":""},{"$f":"IF('1. Order'!AE195=\"\",\"\",'1. Order'!AE195)","v":""},null,{"$f":"IF('1. Order'!AW195=\"\",\"\",'1. Order'!AW195)","v":""},{"$f":"IF('1. Order'!AX195=\"\",\"\",'1. Order'!AX195)","v":""},null,null,null,null,null,null,null,{"$f":"IF('1. Order'!BB195=\"\",\"\",'1. Order'!BB195)","v":""},{"$f":"IF('1. Order'!BC195=\"\",\"\",'1. Order'!BC195)","v":""},{"$f":"IF('1. Order'!BD195=\"\",\"\",'1. Order'!BD195)","v":""},{"$f":"IF('1. Order'!BE195=\"\",\"\",'1. Order'!BE195)","v":""},{"$f":"IF('1. Order'!BG195=\"\",\"\",'1. Order'!BG195)","v":""},{"$f":"IF('1. Order'!BH195=\"\",\"\",'1. Order'!BH195)","v":""},{"$f":"IF('1. Order'!BI195=\"\",\"\",'1. Order'!BI195)","v":""},{"$f":"IF('1. Order'!BJ195=\"\",\"\",'1. Order'!BJ195)","v":""},{"$f":"IF('1. Order'!BK195=\"\",\"\",'1. Order'!BK195)","v":"ZWO"}]
[{"$f":"IF('1. Order'!G196=\"\",\"\",'1. Order'!G196)","v":""},{"$f":"IF('1. Order'!H196=\"\",\"\",'1. Order'!H196)","v":""},{"$f":"IF('1. Order'!I196=\"\",\"\",'1. Order'!I196)","v":""},{"$f":"IF('1. Order'!J196=\"\",\"\",'1. Order'!J196)","v":""},{"$f":"IF('1. Order'!K196=\"\",\"\",'1. Order'!K196)","v":""},{"$f":"IF('1. Order'!L196=\"\",\"\",'1. Order'!L196)","v":""},{"$f":"IF('1. Order'!M196=\"\",\"\",'1. Order'!M196)","v":""},{"$f":"IF('1. Order'!N196=\"\",\"\",'1. Order'!N196)","v":""},{"$f":"IF('1. Order'!P196=\"\",\"\",'1. Order'!P196)","v":""},{"$f":"IF('1. Order'!Q196=\"\",\"\",'1. Order'!Q196)","v":{"$error":"#N/A"}},{"$f":"IF('1. Order'!R196=\"\",\"\",'1. Order'!R196)","v":{"$error":"#N/A"}},{"$f":"IF('1. Order'!S196=\"\",\"\",'1. Order'!S196)","v":""},{"$f":"IF('1. Order'!T196=\"\",\"\",'1. Order'!T196)","v":""},{"$f":"IF('1. Order'!U196=\"\",\"\",'1. Order'!U196)","v":""},{"$f":"IF('1. Order'!X196=\"\",\"\",'1. Order'!X196)","v":""},{"$f":"IF('1. Order'!Y196=\"\",\"\",'1. Order'!Y196)","v":""},{"$f":"IF('1. Order'!Z196=\"\",\"\",'1. Order'!Z196)","v":""},{"$f":"IF('1. Order'!AC196=\"\",\"\",'1. Order'!AC196)","v":""},{"$f":"IF('1. Order'!AD196=\"\",\"\",'1. Order'!AD196)","v":""},{"$f":"IF('1. Order'!AE196=\"\",\"\",'1. Order'!AE196)","v":""},null,{"$f":"IF('1. Order'!AW196=\"\",\"\",'1. Order'!AW196)","v":""},{"$f":"IF('1. Order'!AX196=\"\",\"\",'1. Order'!AX196)","v":""},null,null,null,null,null,null,null,{"$f":"IF('1. Order'!BB196=\"\",\"\",'1. Order'!BB196)","v":""},{"$f":"IF('1. Order'!BC196=\"\",\"\",'1. Order'!BC196)","v":""},{"$f":"IF('1. Order'!BD196=\"\",\"\",'1. Order'!BD196)","v":""},{"$f":"IF('1. Order'!BE196=\"\",\"\",'1. Order'!BE196)","v":""},{"$f":"IF('1. Order'!BG196=\"\",\"\",'1. Order'!BG196)","v":""},{"$f":"IF('1. Order'!BH196=\"\",\"\",'1. Order'!BH196)","v":""},{"$f":"IF('1. Order'!BI196=\"\",\"\",'1. Order'!BI196)","v":""},{"$f":"IF('1. Order'!BJ196=\"\",\"\",'1. Order'!BJ196)","v":""},{"$f":"IF('1. Order'!BK196=\"\",\"\",'1. Order'!BK196)","v":"ZWO"}]
[{"$f":"IF('1. Order'!G197=\"\",\"\",'1. Order'!G197)","v":""},{"$f":"IF('1. Order'!H197=\"\",\"\",'1. Order'!H197)","v":""},{"$f":"IF('1. Order'!I197=\"\",\"\",'1. Order'!I197)","v":""},{"$f":"IF('1. Order'!J197=\"\",\"\",'1. Order'!J197)","v":""},{"$f":"IF('1. Order'!K197=\"\",\"\",'1. Order'!K197)","v":""},{"$f":"IF('1. Order'!L197=\"\",\"\",'1. Order'!L197)","v":""},{"$f":"IF('1. Order'!M197=\"\",\"\",'1. Order'!M197)","v":""},{"$f":"IF('1. Order'!N197=\"\",\"\",'1. Order'!N197)","v":""},{"$f":"IF('1. Order'!P197=\"\",\"\",'1. Order'!P197)","v":""},{"$f":"IF('1. Order'!Q197=\"\",\"\",'1. Order'!Q197)","v":{"$error":"#N/A"}},{"$f":"IF('1. Order'!R197=\"\",\"\",'1. Order'!R197)","v":{"$error":"#N/A"}},{"$f":"IF('1. Order'!S197=\"\",\"\",'1. Order'!S197)","v":""},{"$f":"IF('1. Order'!T197=\"\",\"\",'1. Order'!T197)","v":""},{"$f":"IF('1. Order'!U197=\"\",\"\",'1. Order'!U197)","v":""},{"$f":"IF('1. Order'!X197=\"\",\"\",'1. Order'!X197)","v":""},{"$f":"IF('1. Order'!Y197=\"\",\"\",'1. Order'!Y197)","v":""},{"$f":"IF('1. Order'!Z197=\"\",\"\",'1. Order'!Z197)","v":""},{"$f":"IF('1. Order'!AC197=\"\",\"\",'1. Order'!AC197)","v":""},{"$f":"IF('1. Order'!AD197=\"\",\"\",'1. Order'!AD197)","v":""},{"$f":"IF('1. Order'!AE197=\"\",\"\",'1. Order'!AE197)","v":""},null,{"$f":"IF('1. Order'!AW197=\"\",\"\",'1. Order'!AW197)","v":""},{"$f":"IF('1. Order'!AX197=\"\",\"\",'1. Order'!AX197)","v":""},null,null,null,null,null,null,null,{"$f":"IF('1. Order'!BB197=\"\",\"\",'1. Order'!BB197)","v":""},{"$f":"IF('1. Order'!BC197=\"\",\"\",'1. Order'!BC197)","v":""},{"$f":"IF('1. Order'!BD197=\"\",\"\",'1. Order'!BD197)","v":""},{"$f":"IF('1. Order'!BE197=\"\",\"\",'1. Order'!BE197)","v":""},{"$f":"IF('1. Order'!BG197=\"\",\"\",'1. Order'!BG197)","v":""},{"$f":"IF('1. Order'!BH197=\"\",\"\",'1. Order'!BH197)","v":""},{"$f":"IF('1. Order'!BI197=\"\",\"\",'1. Order'!BI197)","v":""},{"$f":"IF('1. Order'!BJ197=\"\",\"\",'1. Order'!BJ197)","v":""},{"$f":"IF('1. Order'!BK197=\"\",\"\",'1. Order'!BK197)","v":"ZWO"}]
[{"$f":"IF('1. Order'!G198=\"\",\"\",'1. Order'!G198)","v":""},{"$f":"IF('1. Order'!H198=\"\",\"\",'1. Order'!H198)","v":""},{"$f":"IF('1. Order'!I198=\"\",\"\",'1. Order'!I198)","v":""},{"$f":"IF('1. Order'!J198=\"\",\"\",'1. Order'!J198)","v":""},{"$f":"IF('1. Order'!K198=\"\",\"\",'1. Order'!K198)","v":""},{"$f":"IF('1. Order'!L198=\"\",\"\",'1. Order'!L198)","v":""},{"$f":"IF('1. Order'!M198=\"\",\"\",'1. Order'!M198)","v":""},{"$f":"IF('1. Order'!N198=\"\",\"\",'1. Order'!N198)","v":""},{"$f":"IF('1. Order'!P198=\"\",\"\",'1. Order'!P198)","v":""},{"$f":"IF('1. Order'!Q198=\"\",\"\",'1. Order'!Q198)","v":{"$error":"#N/A"}},{"$f":"IF('1. Order'!R198=\"\",\"\",'1. Order'!R198)","v":{"$error":"#N/A"}},{"$f":"IF('1. Order'!S198=\"\",\"\",'1. Order'!S198)","v":""},{"$f":"IF('1. Order'!T198=\"\",\"\",'1. Order'!T198)","v":""},{"$f":"IF('1. Order'!U198=\"\",\"\",'1. Order'!U198)","v":""},{"$f":"IF('1. Order'!X198=\"\",\"\",'1. Order'!X198)","v":""},{"$f":"IF('1. Order'!Y198=\"\",\"\",'1. Order'!Y198)","v":""},{"$f":"IF('1. Order'!Z198=\"\",\"\",'1. Order'!Z198)","v":""},{"$f":"IF('1. Order'!AC198=\"\",\"\",'1. Order'!AC198)","v":""},{"$f":"IF('1. Order'!AD198=\"\",\"\",'1. Order'!AD198)","v":""},{"$f":"IF('1. Order'!AE198=\"\",\"\",'1. Order'!AE198)","v":""},null,{"$f":"IF('1. Order'!AW198=\"\",\"\",'1. Order'!AW198)","v":""},{"$f":"IF('1. Order'!AX198=\"\",\"\",'1. Order'!AX198)","v":""},null,null,null,null,null,null,null,{"$f":"IF('1. Order'!BB198=\"\",\"\",'1. Order'!BB198)","v":""},{"$f":"IF('1. Order'!BC198=\"\",\"\",'1. Order'!BC198)","v":""},{"$f":"IF('1. Order'!BD198=\"\",\"\",'1. Order'!BD198)","v":""},{"$f":"IF('1. Order'!BE198=\"\",\"\",'1. Order'!BE198)","v":""},{"$f":"IF('1. Order'!BG198=\"\",\"\",'1. Order'!BG198)","v":""},{"$f":"IF('1. Order'!BH198=\"\",\"\",'1. Order'!BH198)","v":""},{"$f":"IF('1. Order'!BI198=\"\",\"\",'1. Order'!BI198)","v":""},{"$f":"IF('1. Order'!BJ198=\"\",\"\",'1. Order'!BJ198)","v":""},{"$f":"IF('1. Order'!BK198=\"\",\"\",'1. Order'!BK198)","v":"ZWO"}]
[{"$f":"IF('1. Order'!G199=\"\",\"\",'1. Order'!G199)","v":""},{"$f":"IF('1. Order'!H199=\"\",\"\",'1. Order'!H199)","v":""},{"$f":"IF('1. Order'!I199=\"\",\"\",'1. Order'!I199)","v":""},{"$f":"IF('1. Order'!J199=\"\",\"\",'1. Order'!J199)","v":""},{"$f":"IF('1. Order'!K199=\"\",\"\",'1. Order'!K199)","v":""},{"$f":"IF('1. Order'!L199=\"\",\"\",'1. Order'!L199)","v":""},{"$f":"IF('1. Order'!M199=\"\",\"\",'1. Order'!M199)","v":""},{"$f":"IF('1. Order'!N199=\"\",\"\",'1. Order'!N199)","v":""},{"$f":"IF('1. Order'!P199=\"\",\"\",'1. Order'!P199)","v":""},{"$f":"IF('1. Order'!Q199=\"\",\"\",'1. Order'!Q199)","v":{"$error":"#N/A"}},{"$f":"IF('1. Order'!R199=\"\",\"\",'1. Order'!R199)","v":{"$error":"#N/A"}},{"$f":"IF('1. Order'!S199=\"\",\"\",'1. Order'!S199)","v":""},{"$f":"IF('1. Order'!T199=\"\",\"\",'1. Order'!T199)","v":""},{"$f":"IF('1. Order'!U199=\"\",\"\",'1. Order'!U199)","v":""},{"$f":"IF('1. Order'!X199=\"\",\"\",'1. Order'!X199)","v":""},{"$f":"IF('1. Order'!Y199=\"\",\"\",'1. Order'!Y199)","v":""},{"$f":"IF('1. Order'!Z199=\"\",\"\",'1. Order'!Z199)","v":""},{"$f":"IF('1. Order'!AC199=\"\",\"\",'1. Order'!AC199)","v":""},{"$f":"IF('1. Order'!AD199=\"\",\"\",'1. Order'!AD199)","v":""},{"$f":"IF('1. Order'!AE199=\"\",\"\",'1. Order'!AE199)","v":""},null,{"$f":"IF('1. Order'!AW199=\"\",\"\",'1. Order'!AW199)","v":""},{"$f":"IF('1. Order'!AX199=\"\",\"\",'1. Order'!AX199)","v":""},null,null,null,null,null,null,null,{"$f":"IF('1. Order'!BB199=\"\",\"\",'1. Order'!BB199)","v":""},{"$f":"IF('1. Order'!BC199=\"\",\"\",'1. Order'!BC199)","v":""},{"$f":"IF('1. Order'!BD199=\"\",\"\",'1. Order'!BD199)","v":""},{"$f":"IF('1. Order'!BE199=\"\",\"\",'1. Order'!BE199)","v":""},{"$f":"IF('1. Order'!BG199=\"\",\"\",'1. Order'!BG199)","v":""},{"$f":"IF('1. Order'!BH199=\"\",\"\",'1. Order'!BH199)","v":""},{"$f":"IF('1. Order'!BI199=\"\",\"\",'1. Order'!BI199)","v":""},{"$f":"IF('1. Order'!BJ199=\"\",\"\",'1. Order'!BJ199)","v":""},{"$f":"IF('1. Order'!BK199=\"\",\"\",'1. Order'!BK199)","v":"ZWO"}]
[{"$f":"IF('1. Order'!G200=\"\",\"\",'1. Order'!G200)","v":""},{"$f":"IF('1. Order'!H200=\"\",\"\",'1. Order'!H200)","v":""},{"$f":"IF('1. Order'!I200=\"\",\"\",'1. Order'!I200)","v":""},{"$f":"IF('1. Order'!J200=\"\",\"\",'1. Order'!J200)","v":""},{"$f":"IF('1. Order'!K200=\"\",\"\",'1. Order'!K200)","v":""},{"$f":"IF('1. Order'!L200=\"\",\"\",'1. Order'!L200)","v":""},{"$f":"IF('1. Order'!M200=\"\",\"\",'1. Order'!M200)","v":""},{"$f":"IF('1. Order'!N200=\"\",\"\",'1. Order'!N200)","v":""},{"$f":"IF('1. Order'!P200=\"\",\"\",'1. Order'!P200)","v":""},{"$f":"IF('1. Order'!Q200=\"\",\"\",'1. Order'!Q200)","v":{"$error":"#N/A"}},{"$f":"IF('1. Order'!R200=\"\",\"\",'1. Order'!R200)","v":{"$error":"#N/A"}},{"$f":"IF('1. Order'!S200=\"\",\"\",'1. Order'!S200)","v":""},{"$f":"IF('1. Order'!T200=\"\",\"\",'1. Order'!T200)","v":""},{"$f":"IF('1. Order'!U200=\"\",\"\",'1. Order'!U200)","v":""},{"$f":"IF('1. Order'!X200=\"\",\"\",'1. Order'!X200)","v":""},{"$f":"IF('1. Order'!Y200=\"\",\"\",'1. Order'!Y200)","v":""},{"$f":"IF('1. Order'!Z200=\"\",\"\",'1. Order'!Z200)","v":""},{"$f":"IF('1. Order'!AC200=\"\",\"\",'1. Order'!AC200)","v":""},{"$f":"IF('1. Order'!AD200=\"\",\"\",'1. Order'!AD200)","v":""},{"$f":"IF('1. Order'!AE200=\"\",\"\",'1. Order'!AE200)","v":""},null,{"$f":"IF('1. Order'!AW200=\"\",\"\",'1. Order'!AW200)","v":""},{"$f":"IF('1. Order'!AX200=\"\",\"\",'1. Order'!AX200)","v":""},null,null,null,null,null,null,null,{"$f":"IF('1. Order'!BB200=\"\",\"\",'1. Order'!BB200)","v":""},{"$f":"IF('1. Order'!BC200=\"\",\"\",'1. Order'!BC200)","v":""},{"$f":"IF('1. Order'!BD200=\"\",\"\",'1. Order'!BD200)","v":""},{"$f":"IF('1. Order'!BE200=\"\",\"\",'1. Order'!BE200)","v":""},{"$f":"IF('1. Order'!BG200=\"\",\"\",'1. Order'!BG200)","v":""},{"$f":"IF('1. Order'!BH200=\"\",\"\",'1. Order'!BH200)","v":""},{"$f":"IF('1. Order'!BI200=\"\",\"\",'1. Order'!BI200)","v":""},{"$f":"IF('1. Order'!BJ200=\"\",\"\",'1. Order'!BJ200)","v":""},{"$f":"IF('1. Order'!BK200=\"\",\"\",'1. Order'!BK200)","v":"ZWO"}]
[{"$f":"IF('1. Order'!G201=\"\",\"\",'1. Order'!G201)","v":""},{"$f":"IF('1. Order'!H201=\"\",\"\",'1. Order'!H201)","v":""},{"$f":"IF('1. Order'!I201=\"\",\"\",'1. Order'!I201)","v":""},{"$f":"IF('1. Order'!J201=\"\",\"\",'1. Order'!J201)","v":""},{"$f":"IF('1. Order'!K201=\"\",\"\",'1. Order'!K201)","v":""},{"$f":"IF('1. Order'!L201=\"\",\"\",'1. Order'!L201)","v":""},{"$f":"IF('1. Order'!M201=\"\",\"\",'1. Order'!M201)","v":""},{"$f":"IF('1. Order'!N201=\"\",\"\",'1. Order'!N201)","v":""},{"$f":"IF('1. Order'!P201=\"\",\"\",'1. Order'!P201)","v":""},{"$f":"IF('1. Order'!Q201=\"\",\"\",'1. Order'!Q201)","v":{"$error":"#N/A"}},{"$f":"IF('1. Order'!R201=\"\",\"\",'1. Order'!R201)","v":{"$error":"#N/A"}},{"$f":"IF('1. Order'!S201=\"\",\"\",'1. Order'!S201)","v":""},{"$f":"IF('1. Order'!T201=\"\",\"\",'1. Order'!T201)","v":""},{"$f":"IF('1. Order'!U201=\"\",\"\",'1. Order'!U201)","v":""},{"$f":"IF('1. Order'!X201=\"\",\"\",'1. Order'!X201)","v":""},{"$f":"IF('1. Order'!Y201=\"\",\"\",'1. Order'!Y201)","v":""},{"$f":"IF('1. Order'!Z201=\"\",\"\",'1. Order'!Z201)","v":""},{"$f":"IF('1. Order'!AC201=\"\",\"\",'1. Order'!AC201)","v":""},{"$f":"IF('1. Order'!AD201=\"\",\"\",'1. Order'!AD201)","v":""},{"$f":"IF('1. Order'!AE201=\"\",\"\",'1. Order'!AE201)","v":""},null,{"$f":"IF('1. Order'!AW201=\"\",\"\",'1. Order'!AW201)","v":""},{"$f":"IF('1. Order'!AX201=\"\",\"\",'1. Order'!AX201)","v":""},null,null,null,null,null,null,null,{"$f":"IF('1. Order'!BB201=\"\",\"\",'1. Order'!BB201)","v":""},{"$f":"IF('1. Order'!BC201=\"\",\"\",'1. Order'!BC201)","v":""},{"$f":"IF('1. Order'!BD201=\"\",\"\",'1. Order'!BD201)","v":""},{"$f":"IF('1. Order'!BE201=\"\",\"\",'1. Order'!BE201)","v":""},{"$f":"IF('1. Order'!BG201=\"\",\"\",'1. Order'!BG201)","v":""},{"$f":"IF('1. Order'!BH201=\"\",\"\",'1. Order'!BH201)","v":""},{"$f":"IF('1. Order'!BI201=\"\",\"\",'1. Order'!BI201)","v":""},{"$f":"IF('1. Order'!BJ201=\"\",\"\",'1. Order'!BJ201)","v":""},{"$f":"IF('1. Order'!BK201=\"\",\"\",'1. Order'!BK201)","v":"ZWO"}]
[{"$f":"IF('1. Order'!G202=\"\",\"\",'1. Order'!G202)","v":""},{"$f":"IF('1. Order'!H202=\"\",\"\",'1. Order'!H202)","v":""},{"$f":"IF('1. Order'!I202=\"\",\"\",'1. Order'!I202)","v":""},{"$f":"IF('1. Order'!J202=\"\",\"\",'1. Order'!J202)","v":""},{"$f":"IF('1. Order'!K202=\"\",\"\",'1. Order'!K202)","v":""},{"$f":"IF('1. Order'!L202=\"\",\"\",'1. Order'!L202)","v":""},{"$f":"IF('1. Order'!M202=\"\",\"\",'1. Order'!M202)","v":""},{"$f":"IF('1. Order'!N202=\"\",\"\",'1. Order'!N202)","v":""},{"$f":"IF('1. Order'!P202=\"\",\"\",'1. Order'!P202)","v":""},{"$f":"IF('1. Order'!Q202=\"\",\"\",'1. Order'!Q202)","v":{"$error":"#N/A"}},{"$f":"IF('1. Order'!R202=\"\",\"\",'1. Order'!R202)","v":{"$error":"#N/A"}},{"$f":"IF('1. Order'!S202=\"\",\"\",'1. Order'!S202)","v":""},{"$f":"IF('1. Order'!T202=\"\",\"\",'1. Order'!T202)","v":""},{"$f":"IF('1. Order'!U202=\"\",\"\",'1. Order'!U202)","v":""},{"$f":"IF('1. Order'!X202=\"\",\"\",'1. Order'!X202)","v":""},{"$f":"IF('1. Order'!Y202=\"\",\"\",'1. Order'!Y202)","v":""},{"$f":"IF('1. Order'!Z202=\"\",\"\",'1. Order'!Z202)","v":""},{"$f":"IF('1. Order'!AC202=\"\",\"\",'1. Order'!AC202)","v":""},{"$f":"IF('1. Order'!AD202=\"\",\"\",'1. Order'!AD202)","v":""},{"$f":"IF('1. Order'!AE202=\"\",\"\",'1. Order'!AE202)","v":""},null,{"$f":"IF('1. Order'!AW202=\"\",\"\",'1. Order'!AW202)","v":""},{"$f":"IF('1. Order'!AX202=\"\",\"\",'1. Order'!AX202)","v":""},null,null,null,null,null,null,null,{"$f":"IF('1. Order'!BB202=\"\",\"\",'1. Order'!BB202)","v":""},{"$f":"IF('1. Order'!BC202=\"\",\"\",'1. Order'!BC202)","v":""},{"$f":"IF('1. Order'!BD202=\"\",\"\",'1. Order'!BD202)","v":""},{"$f":"IF('1. Order'!BE202=\"\",\"\",'1. Order'!BE202)","v":""},{"$f":"IF('1. Order'!BG202=\"\",\"\",'1. Order'!BG202)","v":""},{"$f":"IF('1. Order'!BH202=\"\",\"\",'1. Order'!BH202)","v":""},{"$f":"IF('1. Order'!BI202=\"\",\"\",'1. Order'!BI202)","v":""},{"$f":"IF('1. Order'!BJ202=\"\",\"\",'1. Order'!BJ202)","v":""},{"$f":"IF('1. Order'!BK202=\"\",\"\",'1. Order'!BK202)","v":"ZWO"}]
[{"$f":"IF('1. Order'!G203=\"\",\"\",'1. Order'!G203)","v":""},{"$f":"IF('1. Order'!H203=\"\",\"\",'1. Order'!H203)","v":""},{"$f":"IF('1. Order'!I203=\"\",\"\",'1. Order'!I203)","v":""},{"$f":"IF('1. Order'!J203=\"\",\"\",'1. Order'!J203)","v":""},{"$f":"IF('1. Order'!K203=\"\",\"\",'1. Order'!K203)","v":""},{"$f":"IF('1. Order'!L203=\"\",\"\",'1. Order'!L203)","v":""},{"$f":"IF('1. Order'!M203=\"\",\"\",'1. Order'!M203)","v":""},{"$f":"IF('1. Order'!N203=\"\",\"\",'1. Order'!N203)","v":""},{"$f":"IF('1. Order'!P203=\"\",\"\",'1. Order'!P203)","v":""},{"$f":"IF('1. Order'!Q203=\"\",\"\",'1. Order'!Q203)","v":{"$error":"#N/A"}},{"$f":"IF('1. Order'!R203=\"\",\"\",'1. Order'!R203)","v":{"$error":"#N/A"}},{"$f":"IF('1. Order'!S203=\"\",\"\",'1. Order'!S203)","v":""},{"$f":"IF('1. Order'!T203=\"\",\"\",'1. Order'!T203)","v":""},{"$f":"IF('1. Order'!U203=\"\",\"\",'1. Order'!U203)","v":""},{"$f":"IF('1. Order'!X203=\"\",\"\",'1. Order'!X203)","v":""},{"$f":"IF('1. Order'!Y203=\"\",\"\",'1. Order'!Y203)","v":""},{"$f":"IF('1. Order'!Z203=\"\",\"\",'1. Order'!Z203)","v":""},{"$f":"IF('1. Order'!AC203=\"\",\"\",'1. Order'!AC203)","v":""},{"$f":"IF('1. Order'!AD203=\"\",\"\",'1. Order'!AD203)","v":""},{"$f":"IF('1. Order'!AE203=\"\",\"\",'1. Order'!AE203)","v":""},null,{"$f":"IF('1. Order'!AW203=\"\",\"\",'1. Order'!AW203)","v":""},{"$f":"IF('1. Order'!AX203=\"\",\"\",'1. Order'!AX203)","v":""},null,null,null,null,null,null,null,{"$f":"IF('1. Order'!BB203=\"\",\"\",'1. Order'!BB203)","v":""},{"$f":"IF('1. Order'!BC203=\"\",\"\",'1. Order'!BC203)","v":""},{"$f":"IF('1. Order'!BD203=\"\",\"\",'1. Order'!BD203)","v":""},{"$f":"IF('1. Order'!BE203=\"\",\"\",'1. Order'!BE203)","v":""},{"$f":"IF('1. Order'!BG203=\"\",\"\",'1. Order'!BG203)","v":""},{"$f":"IF('1. Order'!BH203=\"\",\"\",'1. Order'!BH203)","v":""},{"$f":"IF('1. Order'!BI203=\"\",\"\",'1. Order'!BI203)","v":""},{"$f":"IF('1. Order'!BJ203=\"\",\"\",'1. Order'!BJ203)","v":""},{"$f":"IF('1. Order'!BK203=\"\",\"\",'1. Order'!BK203)","v":"ZWO"}]
[{"$f":"IF('1. Order'!G204=\"\",\"\",'1. Order'!G204)","v":""},{"$f":"IF('1. Order'!H204=\"\",\"\",'1. Order'!H204)","v":""},{"$f":"IF('1. Order'!I204=\"\",\"\",'1. Order'!I204)","v":""},{"$f":"IF('1. Order'!J204=\"\",\"\",'1. Order'!J204)","v":""},{"$f":"IF('1. Order'!K204=\"\",\"\",'1. Order'!K204)","v":""},{"$f":"IF('1. Order'!L204=\"\",\"\",'1. Order'!L204)","v":""},{"$f":"IF('1. Order'!M204=\"\",\"\",'1. Order'!M204)","v":""},{"$f":"IF('1. Order'!N204=\"\",\"\",'1. Order'!N204)","v":""},{"$f":"IF('1. Order'!P204=\"\",\"\",'1. Order'!P204)","v":""},{"$f":"IF('1. Order'!Q204=\"\",\"\",'1. Order'!Q204)","v":{"$error":"#N/A"}},{"$f":"IF('1. Order'!R204=\"\",\"\",'1. Order'!R204)","v":{"$error":"#N/A"}},{"$f":"IF('1. Order'!S204=\"\",\"\",'1. Order'!S204)","v":""},{"$f":"IF('1. Order'!T204=\"\",\"\",'1. Order'!T204)","v":""},{"$f":"IF('1. Order'!U204=\"\",\"\",'1. Order'!U204)","v":""},{"$f":"IF('1. Order'!X204=\"\",\"\",'1. Order'!X204)","v":""},{"$f":"IF('1. Order'!Y204=\"\",\"\",'1. Order'!Y204)","v":""},{"$f":"IF('1. Order'!Z204=\"\",\"\",'1. Order'!Z204)","v":""},{"$f":"IF('1. Order'!AC204=\"\",\"\",'1. Order'!AC204)","v":""},{"$f":"IF('1. Order'!AD204=\"\",\"\",'1. Order'!AD204)","v":""},{"$f":"IF('1. Order'!AE204=\"\",\"\",'1. Order'!AE204)","v":""},null,{"$f":"IF('1. Order'!AW204=\"\",\"\",'1. Order'!AW204)","v":""},{"$f":"IF('1. Order'!AX204=\"\",\"\",'1. Order'!AX204)","v":""},null,null,null,null,null,null,null,{"$f":"IF('1. Order'!BB204=\"\",\"\",'1. Order'!BB204)","v":""},{"$f":"IF('1. Order'!BC204=\"\",\"\",'1. Order'!BC204)","v":""},{"$f":"IF('1. Order'!BD204=\"\",\"\",'1. Order'!BD204)","v":""},{"$f":"IF('1. Order'!BE204=\"\",\"\",'1. Order'!BE204)","v":""},{"$f":"IF('1. Order'!BG204=\"\",\"\",'1. Order'!BG204)","v":""},{"$f":"IF('1. Order'!BH204=\"\",\"\",'1. Order'!BH204)","v":""},{"$f":"IF('1. Order'!BI204=\"\",\"\",'1. Order'!BI204)","v":""},{"$f":"IF('1. Order'!BJ204=\"\",\"\",'1. Order'!BJ204)","v":""},{"$f":"IF('1. Order'!BK204=\"\",\"\",'1. Order'!BK204)","v":"ZWO"}]
[{"$f":"IF('1. Order'!G205=\"\",\"\",'1. Order'!G205)","v":""},{"$f":"IF('1. Order'!H205=\"\",\"\",'1. Order'!H205)","v":""},{"$f":"IF('1. Order'!I205=\"\",\"\",'1. Order'!I205)","v":""},{"$f":"IF('1. Order'!J205=\"\",\"\",'1. Order'!J205)","v":""},{"$f":"IF('1. Order'!K205=\"\",\"\",'1. Order'!K205)","v":""},{"$f":"IF('1. Order'!L205=\"\",\"\",'1. Order'!L205)","v":""},{"$f":"IF('1. Order'!M205=\"\",\"\",'1. Order'!M205)","v":""},{"$f":"IF('1. Order'!N205=\"\",\"\",'1. Order'!N205)","v":""},{"$f":"IF('1. Order'!P205=\"\",\"\",'1. Order'!P205)","v":""},{"$f":"IF('1. Order'!Q205=\"\",\"\",'1. Order'!Q205)","v":{"$error":"#N/A"}},{"$f":"IF('1. Order'!R205=\"\",\"\",'1. Order'!R205)","v":{"$error":"#N/A"}},{"$f":"IF('1. Order'!S205=\"\",\"\",'1. Order'!S205)","v":""},{"$f":"IF('1. Order'!T205=\"\",\"\",'1. Order'!T205)","v":""},{"$f":"IF('1. Order'!U205=\"\",\"\",'1. Order'!U205)","v":""},{"$f":"IF('1. Order'!X205=\"\",\"\",'1. Order'!X205)","v":""},{"$f":"IF('1. Order'!Y205=\"\",\"\",'1. Order'!Y205)","v":""},{"$f":"IF('1. Order'!Z205=\"\",\"\",'1. Order'!Z205)","v":""},{"$f":"IF('1. Order'!AC205=\"\",\"\",'1. Order'!AC205)","v":""},{"$f":"IF('1. Order'!AD205=\"\",\"\",'1. Order'!AD205)","v":""},{"$f":"IF('1. Order'!AE205=\"\",\"\",'1. Order'!AE205)","v":""},null,{"$f":"IF('1. Order'!AW205=\"\",\"\",'1. Order'!AW205)","v":""},{"$f":"IF('1. Order'!AX205=\"\",\"\",'1. Order'!AX205)","v":""},null,null,null,null,null,null,null,{"$f":"IF('1. Order'!BB205=\"\",\"\",'1. Order'!BB205)","v":""},{"$f":"IF('1. Order'!BC205=\"\",\"\",'1. Order'!BC205)","v":""},{"$f":"IF('1. Order'!BD205=\"\",\"\",'1. Order'!BD205)","v":""},{"$f":"IF('1. Order'!BE205=\"\",\"\",'1. Order'!BE205)","v":""},{"$f":"IF('1. Order'!BG205=\"\",\"\",'1. Order'!BG205)","v":""},{"$f":"IF('1. Order'!BH205=\"\",\"\",'1. Order'!BH205)","v":""},{"$f":"IF('1. Order'!BI205=\"\",\"\",'1. Order'!BI205)","v":""},{"$f":"IF('1. Order'!BJ205=\"\",\"\",'1. Order'!BJ205)","v":""},{"$f":"IF('1. Order'!BK205=\"\",\"\",'1. Order'!BK205)","v":"ZWO"}]
[{"$f":"IF('1. Order'!G206=\"\",\"\",'1. Order'!G206)","v":""},{"$f":"IF('1. Order'!H206=\"\",\"\",'1. Order'!H206)","v":""},{"$f":"IF('1. Order'!I206=\"\",\"\",'1. Order'!I206)","v":""},{"$f":"IF('1. Order'!J206=\"\",\"\",'1. Order'!J206)","v":""},{"$f":"IF('1. Order'!K206=\"\",\"\",'1. Order'!K206)","v":""},{"$f":"IF('1. Order'!L206=\"\",\"\",'1. Order'!L206)","v":""},{"$f":"IF('1. Order'!M206=\"\",\"\",'1. Order'!M206)","v":""},{"$f":"IF('1. Order'!N206=\"\",\"\",'1. Order'!N206)","v":""},{"$f":"IF('1. Order'!P206=\"\",\"\",'1. Order'!P206)","v":""},{"$f":"IF('1. Order'!Q206=\"\",\"\",'1. Order'!Q206)","v":{"$error":"#N/A"}},{"$f":"IF('1. Order'!R206=\"\",\"\",'1. Order'!R206)","v":{"$error":"#N/A"}},{"$f":"IF('1. Order'!S206=\"\",\"\",'1. Order'!S206)","v":""},{"$f":"IF('1. Order'!T206=\"\",\"\",'1. Order'!T206)","v":""},{"$f":"IF('1. Order'!U206=\"\",\"\",'1. Order'!U206)","v":""},{"$f":"IF('1. Order'!X206=\"\",\"\",'1. Order'!X206)","v":""},{"$f":"IF('1. Order'!Y206=\"\",\"\",'1. Order'!Y206)","v":""},{"$f":"IF('1. Order'!Z206=\"\",\"\",'1. Order'!Z206)","v":""},{"$f":"IF('1. Order'!AC206=\"\",\"\",'1. Order'!AC206)","v":""},{"$f":"IF('1. Order'!AD206=\"\",\"\",'1. Order'!AD206)","v":""},{"$f":"IF('1. Order'!AE206=\"\",\"\",'1. Order'!AE206)","v":""},null,{"$f":"IF('1. Order'!AW206=\"\",\"\",'1. Order'!AW206)","v":""},{"$f":"IF('1. Order'!AX206=\"\",\"\",'1. Order'!AX206)","v":""},null,null,null,null,null,null,null,{"$f":"IF('1. Order'!BB206=\"\",\"\",'1. Order'!BB206)","v":""},{"$f":"IF('1. Order'!BC206=\"\",\"\",'1. Order'!BC206)","v":""},{"$f":"IF('1. Order'!BD206=\"\",\"\",'1. Order'!BD206)","v":""},{"$f":"IF('1. Order'!BE206=\"\",\"\",'1. Order'!BE206)","v":""},{"$f":"IF('1. Order'!BG206=\"\",\"\",'1. Order'!BG206)","v":""},{"$f":"IF('1. Order'!BH206=\"\",\"\",'1. Order'!BH206)","v":""},{"$f":"IF('1. Order'!BI206=\"\",\"\",'1. Order'!BI206)","v":""},{"$f":"IF('1. Order'!BJ206=\"\",\"\",'1. Order'!BJ206)","v":""},{"$f":"IF('1. Order'!BK206=\"\",\"\",'1. Order'!BK206)","v":"ZWO"}]
[{"$f":"IF('1. Order'!G207=\"\",\"\",'1. Order'!G207)","v":""},{"$f":"IF('1. Order'!H207=\"\",\"\",'1. Order'!H207)","v":""},{"$f":"IF('1. Order'!I207=\"\",\"\",'1. Order'!I207)","v":""},{"$f":"IF('1. Order'!J207=\"\",\"\",'1. Order'!J207)","v":""},{"$f":"IF('1. Order'!K207=\"\",\"\",'1. Order'!K207)","v":""},{"$f":"IF('1. Order'!L207=\"\",\"\",'1. Order'!L207)","v":""},{"$f":"IF('1. Order'!M207=\"\",\"\",'1. Order'!M207)","v":""},{"$f":"IF('1. Order'!N207=\"\",\"\",'1. Order'!N207)","v":""},{"$f":"IF('1. Order'!P207=\"\",\"\",'1. Order'!P207)","v":""},{"$f":"IF('1. Order'!Q207=\"\",\"\",'1. Order'!Q207)","v":{"$error":"#N/A"}},{"$f":"IF('1. Order'!R207=\"\",\"\",'1. Order'!R207)","v":{"$error":"#N/A"}},{"$f":"IF('1. Order'!S207=\"\",\"\",'1. Order'!S207)","v":""},{"$f":"IF('1. Order'!T207=\"\",\"\",'1. Order'!T207)","v":""},{"$f":"IF('1. Order'!U207=\"\",\"\",'1. Order'!U207)","v":""},{"$f":"IF('1. Order'!X207=\"\",\"\",'1. Order'!X207)","v":""},{"$f":"IF('1. Order'!Y207=\"\",\"\",'1. Order'!Y207)","v":""},{"$f":"IF('1. Order'!Z207=\"\",\"\",'1. Order'!Z207)","v":""},{"$f":"IF('1. Order'!AC207=\"\",\"\",'1. Order'!AC207)","v":""},{"$f":"IF('1. Order'!AD207=\"\",\"\",'1. Order'!AD207)","v":""},{"$f":"IF('1. Order'!AE207=\"\",\"\",'1. Order'!AE207)","v":""},null,{"$f":"IF('1. Order'!AW207=\"\",\"\",'1. Order'!AW207)","v":""},{"$f":"IF('1. Order'!AX207=\"\",\"\",'1. Order'!AX207)","v":""},null,null,null,null,null,null,null,{"$f":"IF('1. Order'!BB207=\"\",\"\",'1. Order'!BB207)","v":""},{"$f":"IF('1. Order'!BC207=\"\",\"\",'1. Order'!BC207)","v":""},{"$f":"IF('1. Order'!BD207=\"\",\"\",'1. Order'!BD207)","v":""},{"$f":"IF('1. Order'!BE207=\"\",\"\",'1. Order'!BE207)","v":""},{"$f":"IF('1. Order'!BG207=\"\",\"\",'1. Order'!BG207)","v":""},{"$f":"IF('1. Order'!BH207=\"\",\"\",'1. Order'!BH207)","v":""},{"$f":"IF('1. Order'!BI207=\"\",\"\",'1. Order'!BI207)","v":""},{"$f":"IF('1. Order'!BJ207=\"\",\"\",'1. Order'!BJ207)","v":""},{"$f":"IF('1. Order'!BK207=\"\",\"\",'1. Order'!BK207)","v":"ZWO"}]
[{"$f":"IF('1. Order'!G208=\"\",\"\",'1. Order'!G208)","v":""},{"$f":"IF('1. Order'!H208=\"\",\"\",'1. Order'!H208)","v":""},{"$f":"IF('1. Order'!I208=\"\",\"\",'1. Order'!I208)","v":""},{"$f":"IF('1. Order'!J208=\"\",\"\",'1. Order'!J208)","v":""},{"$f":"IF('1. Order'!K208=\"\",\"\",'1. Order'!K208)","v":""},{"$f":"IF('1. Order'!L208=\"\",\"\",'1. Order'!L208)","v":""},{"$f":"IF('1. Order'!M208=\"\",\"\",'1. Order'!M208)","v":""},{"$f":"IF('1. Order'!N208=\"\",\"\",'1. Order'!N208)","v":""},{"$f":"IF('1. Order'!P208=\"\",\"\",'1. Order'!P208)","v":""},{"$f":"IF('1. Order'!Q208=\"\",\"\",'1. Order'!Q208)","v":{"$error":"#N/A"}},{"$f":"IF('1. Order'!R208=\"\",\"\",'1. Order'!R208)","v":{"$error":"#N/A"}},{"$f":"IF('1. Order'!S208=\"\",\"\",'1. Order'!S208)","v":""},{"$f":"IF('1. Order'!T208=\"\",\"\",'1. Order'!T208)","v":""},{"$f":"IF('1. Order'!U208=\"\",\"\",'1. Order'!U208)","v":""},{"$f":"IF('1. Order'!X208=\"\",\"\",'1. Order'!X208)","v":""},{"$f":"IF('1. Order'!Y208=\"\",\"\",'1. Order'!Y208)","v":""},{"$f":"IF('1. Order'!Z208=\"\",\"\",'1. Order'!Z208)","v":""},{"$f":"IF('1. Order'!AC208=\"\",\"\",'1. Order'!AC208)","v":""},{"$f":"IF('1. Order'!AD208=\"\",\"\",'1. Order'!AD208)","v":""},{"$f":"IF('1. Order'!AE208=\"\",\"\",'1. Order'!AE208)","v":""},null,{"$f":"IF('1. Order'!AW208=\"\",\"\",'1. Order'!AW208)","v":""},{"$f":"IF('1. Order'!AX208=\"\",\"\",'1. Order'!AX208)","v":""},null,null,null,null,null,null,null,{"$f":"IF('1. Order'!BB208=\"\",\"\",'1. Order'!BB208)","v":""},{"$f":"IF('1. Order'!BC208=\"\",\"\",'1. Order'!BC208)","v":""},{"$f":"IF('1. Order'!BD208=\"\",\"\",'1. Order'!BD208)","v":""},{"$f":"IF('1. Order'!BE208=\"\",\"\",'1. Order'!BE208)","v":""},{"$f":"IF('1. Order'!BG208=\"\",\"\",'1. Order'!BG208)","v":""},{"$f":"IF('1. Order'!BH208=\"\",\"\",'1. Order'!BH208)","v":""},{"$f":"IF('1. Order'!BI208=\"\",\"\",'1. Order'!BI208)","v":""},{"$f":"IF('1. Order'!BJ208=\"\",\"\",'1. Order'!BJ208)","v":""},{"$f":"IF('1. Order'!BK208=\"\",\"\",'1. Order'!BK208)","v":"ZWO"}]
[{"$f":"IF('1. Order'!G209=\"\",\"\",'1. Order'!G209)","v":""},{"$f":"IF('1. Order'!H209=\"\",\"\",'1. Order'!H209)","v":""},{"$f":"IF('1. Order'!I209=\"\",\"\",'1. Order'!I209)","v":""},{"$f":"IF('1. Order'!J209=\"\",\"\",'1. Order'!J209)","v":""},{"$f":"IF('1. Order'!K209=\"\",\"\",'1. Order'!K209)","v":""},{"$f":"IF('1. Order'!L209=\"\",\"\",'1. Order'!L209)","v":""},{"$f":"IF('1. Order'!M209=\"\",\"\",'1. Order'!M209)","v":""},{"$f":"IF('1. Order'!N209=\"\",\"\",'1. Order'!N209)","v":""},{"$f":"IF('1. Order'!P209=\"\",\"\",'1. Order'!P209)","v":""},{"$f":"IF('1. Order'!Q209=\"\",\"\",'1. Order'!Q209)","v":{"$error":"#N/A"}},{"$f":"IF('1. Order'!R209=\"\",\"\",'1. Order'!R209)","v":{"$error":"#N/A"}},{"$f":"IF('1. Order'!S209=\"\",\"\",'1. Order'!S209)","v":""},{"$f":"IF('1. Order'!T209=\"\",\"\",'1. Order'!T209)","v":""},{"$f":"IF('1. Order'!U209=\"\",\"\",'1. Order'!U209)","v":""},{"$f":"IF('1. Order'!X209=\"\",\"\",'1. Order'!X209)","v":""},{"$f":"IF('1. Order'!Y209=\"\",\"\",'1. Order'!Y209)","v":""},{"$f":"IF('1. Order'!Z209=\"\",\"\",'1. Order'!Z209)","v":""},{"$f":"IF('1. Order'!AC209=\"\",\"\",'1. Order'!AC209)","v":""},{"$f":"IF('1. Order'!AD209=\"\",\"\",'1. Order'!AD209)","v":""},{"$f":"IF('1. Order'!AE209=\"\",\"\",'1. Order'!AE209)","v":""},null,{"$f":"IF('1. Order'!AW209=\"\",\"\",'1. Order'!AW209)","v":""},{"$f":"IF('1. Order'!AX209=\"\",\"\",'1. Order'!AX209)","v":""},null,null,null,null,null,null,null,{"$f":"IF('1. Order'!BB209=\"\",\"\",'1. Order'!BB209)","v":""},{"$f":"IF('1. Order'!BC209=\"\",\"\",'1. Order'!BC209)","v":""},{"$f":"IF('1. Order'!BD209=\"\",\"\",'1. Order'!BD209)","v":""},{"$f":"IF('1. Order'!BE209=\"\",\"\",'1. Order'!BE209)","v":""},{"$f":"IF('1. Order'!BG209=\"\",\"\",'1. Order'!BG209)","v":""},{"$f":"IF('1. Order'!BH209=\"\",\"\",'1. Order'!BH209)","v":""},{"$f":"IF('1. Order'!BI209=\"\",\"\",'1. Order'!BI209)","v":""},{"$f":"IF('1. Order'!BJ209=\"\",\"\",'1. Order'!BJ209)","v":""},{"$f":"IF('1. Order'!BK209=\"\",\"\",'1. Order'!BK209)","v":"ZWO"}]
[{"$f":"IF('1. Order'!G210=\"\",\"\",'1. Order'!G210)","v":""},{"$f":"IF('1. Order'!H210=\"\",\"\",'1. Order'!H210)","v":""},{"$f":"IF('1. Order'!I210=\"\",\"\",'1. Order'!I210)","v":""},{"$f":"IF('1. Order'!J210=\"\",\"\",'1. Order'!J210)","v":""},{"$f":"IF('1. Order'!K210=\"\",\"\",'1. Order'!K210)","v":""},{"$f":"IF('1. Order'!L210=\"\",\"\",'1. Order'!L210)","v":""},{"$f":"IF('1. Order'!M210=\"\",\"\",'1. Order'!M210)","v":""},{"$f":"IF('1. Order'!N210=\"\",\"\",'1. Order'!N210)","v":""},{"$f":"IF('1. Order'!P210=\"\",\"\",'1. Order'!P210)","v":""},{"$f":"IF('1. Order'!Q210=\"\",\"\",'1. Order'!Q210)","v":{"$error":"#N/A"}},{"$f":"IF('1. Order'!R210=\"\",\"\",'1. Order'!R210)","v":{"$error":"#N/A"}},{"$f":"IF('1. Order'!S210=\"\",\"\",'1. Order'!S210)","v":""},{"$f":"IF('1. Order'!T210=\"\",\"\",'1. Order'!T210)","v":""},{"$f":"IF('1. Order'!U210=\"\",\"\",'1. Order'!U210)","v":""},{"$f":"IF('1. Order'!X210=\"\",\"\",'1. Order'!X210)","v":""},{"$f":"IF('1. Order'!Y210=\"\",\"\",'1. Order'!Y210)","v":""},{"$f":"IF('1. Order'!Z210=\"\",\"\",'1. Order'!Z210)","v":""},{"$f":"IF('1. Order'!AC210=\"\",\"\",'1. Order'!AC210)","v":""},{"$f":"IF('1. Order'!AD210=\"\",\"\",'1. Order'!AD210)","v":""},{"$f":"IF('1. Order'!AE210=\"\",\"\",'1. Order'!AE210)","v":""},null,{"$f":"IF('1. Order'!AW210=\"\",\"\",'1. Order'!AW210)","v":""},{"$f":"IF('1. Order'!AX210=\"\",\"\",'1. Order'!AX210)","v":""},null,null,null,null,null,null,null,{"$f":"IF('1. Order'!BB210=\"\",\"\",'1. Order'!BB210)","v":""},{"$f":"IF('1. Order'!BC210=\"\",\"\",'1. Order'!BC210)","v":""},{"$f":"IF('1. Order'!BD210=\"\",\"\",'1. Order'!BD210)","v":""},{"$f":"IF('1. Order'!BE210=\"\",\"\",'1. Order'!BE210)","v":""},{"$f":"IF('1. Order'!BG210=\"\",\"\",'1. Order'!BG210)","v":""},{"$f":"IF('1. Order'!BH210=\"\",\"\",'1. Order'!BH210)","v":""},{"$f":"IF('1. Order'!BI210=\"\",\"\",'1. Order'!BI210)","v":""},{"$f":"IF('1. Order'!BJ210=\"\",\"\",'1. Order'!BJ210)","v":""},{"$f":"IF('1. Order'!BK210=\"\",\"\",'1. Order'!BK210)","v":"ZWO"}]
[{"$f":"IF('1. Order'!G211=\"\",\"\",'1. Order'!G211)","v":""},{"$f":"IF('1. Order'!H211=\"\",\"\",'1. Order'!H211)","v":""},{"$f":"IF('1. Order'!I211=\"\",\"\",'1. Order'!I211)","v":""},{"$f":"IF('1. Order'!J211=\"\",\"\",'1. Order'!J211)","v":""},{"$f":"IF('1. Order'!K211=\"\",\"\",'1. Order'!K211)","v":""},{"$f":"IF('1. Order'!L211=\"\",\"\",'1. Order'!L211)","v":""},{"$f":"IF('1. Order'!M211=\"\",\"\",'1. Order'!M211)","v":""},{"$f":"IF('1. Order'!N211=\"\",\"\",'1. Order'!N211)","v":""},{"$f":"IF('1. Order'!P211=\"\",\"\",'1. Order'!P211)","v":""},{"$f":"IF('1. Order'!Q211=\"\",\"\",'1. Order'!Q211)","v":{"$error":"#N/A"}},{"$f":"IF('1. Order'!R211=\"\",\"\",'1. Order'!R211)","v":{"$error":"#N/A"}},{"$f":"IF('1. Order'!S211=\"\",\"\",'1. Order'!S211)","v":""},{"$f":"IF('1. Order'!T211=\"\",\"\",'1. Order'!T211)","v":""},{"$f":"IF('1. Order'!U211=\"\",\"\",'1. Order'!U211)","v":""},{"$f":"IF('1. Order'!X211=\"\",\"\",'1. Order'!X211)","v":""},{"$f":"IF('1. Order'!Y211=\"\",\"\",'1. Order'!Y211)","v":""},{"$f":"IF('1. Order'!Z211=\"\",\"\",'1. Order'!Z211)","v":""},{"$f":"IF('1. Order'!AC211=\"\",\"\",'1. Order'!AC211)","v":""},{"$f":"IF('1. Order'!AD211=\"\",\"\",'1. Order'!AD211)","v":""},{"$f":"IF('1. Order'!AE211=\"\",\"\",'1. Order'!AE211)","v":""},null,{"$f":"IF('1. Order'!AW211=\"\",\"\",'1. Order'!AW211)","v":""},{"$f":"IF('1. Order'!AX211=\"\",\"\",'1. Order'!AX211)","v":""},null,null,null,null,null,null,null,{"$f":"IF('1. Order'!BB211=\"\",\"\",'1. Order'!BB211)","v":""},{"$f":"IF('1. Order'!BC211=\"\",\"\",'1. Order'!BC211)","v":""},{"$f":"IF('1. Order'!BD211=\"\",\"\",'1. Order'!BD211)","v":""},{"$f":"IF('1. Order'!BE211=\"\",\"\",'1. Order'!BE211)","v":""},{"$f":"IF('1. Order'!BG211=\"\",\"\",'1. Order'!BG211)","v":""},{"$f":"IF('1. Order'!BH211=\"\",\"\",'1. Order'!BH211)","v":""},{"$f":"IF('1. Order'!BI211=\"\",\"\",'1. Order'!BI211)","v":""},{"$f":"IF('1. Order'!BJ211=\"\",\"\",'1. Order'!BJ211)","v":""},{"$f":"IF('1. Order'!BK211=\"\",\"\",'1. Order'!BK211)","v":"ZWO"}]
[{"$f":"IF('1. Order'!G212=\"\",\"\",'1. Order'!G212)","v":""},{"$f":"IF('1. Order'!H212=\"\",\"\",'1. Order'!H212)","v":""},{"$f":"IF('1. Order'!I212=\"\",\"\",'1. Order'!I212)","v":""},{"$f":"IF('1. Order'!J212=\"\",\"\",'1. Order'!J212)","v":""},{"$f":"IF('1. Order'!K212=\"\",\"\",'1. Order'!K212)","v":""},{"$f":"IF('1. Order'!L212=\"\",\"\",'1. Order'!L212)","v":""},{"$f":"IF('1. Order'!M212=\"\",\"\",'1. Order'!M212)","v":""},{"$f":"IF('1. Order'!N212=\"\",\"\",'1. Order'!N212)","v":""},{"$f":"IF('1. Order'!P212=\"\",\"\",'1. Order'!P212)","v":""},{"$f":"IF('1. Order'!Q212=\"\",\"\",'1. Order'!Q212)","v":{"$error":"#N/A"}},{"$f":"IF('1. Order'!R212=\"\",\"\",'1. Order'!R212)","v":{"$error":"#N/A"}},{"$f":"IF('1. Order'!S212=\"\",\"\",'1. Order'!S212)","v":""},{"$f":"IF('1. Order'!T212=\"\",\"\",'1. Order'!T212)","v":""},{"$f":"IF('1. Order'!U212=\"\",\"\",'1. Order'!U212)","v":""},{"$f":"IF('1. Order'!X212=\"\",\"\",'1. Order'!X212)","v":""},{"$f":"IF('1. Order'!Y212=\"\",\"\",'1. Order'!Y212)","v":""},{"$f":"IF('1. Order'!Z212=\"\",\"\",'1. Order'!Z212)","v":""},{"$f":"IF('1. Order'!AC212=\"\",\"\",'1. Order'!AC212)","v":""},{"$f":"IF('1. Order'!AD212=\"\",\"\",'1. Order'!AD212)","v":""},{"$f":"IF('1. Order'!AE212=\"\",\"\",'1. Order'!AE212)","v":""},null,{"$f":"IF('1. Order'!AW212=\"\",\"\",'1. Order'!AW212)","v":""},{"$f":"IF('1. Order'!AX212=\"\",\"\",'1. Order'!AX212)","v":""},null,null,null,null,null,null,null,{"$f":"IF('1. Order'!BB212=\"\",\"\",'1. Order'!BB212)","v":""},{"$f":"IF('1. Order'!BC212=\"\",\"\",'1. Order'!BC212)","v":""},{"$f":"IF('1. Order'!BD212=\"\",\"\",'1. Order'!BD212)","v":""},{"$f":"IF('1. Order'!BE212=\"\",\"\",'1. Order'!BE212)","v":""},{"$f":"IF('1. Order'!BG212=\"\",\"\",'1. Order'!BG212)","v":""},{"$f":"IF('1. Order'!BH212=\"\",\"\",'1. Order'!BH212)","v":""},{"$f":"IF('1. Order'!BI212=\"\",\"\",'1. Order'!BI212)","v":""},{"$f":"IF('1. Order'!BJ212=\"\",\"\",'1. Order'!BJ212)","v":""},{"$f":"IF('1. Order'!BK212=\"\",\"\",'1. Order'!BK212)","v":"ZWO"}]
[{"$f":"IF('1. Order'!G213=\"\",\"\",'1. Order'!G213)","v":""},{"$f":"IF('1. Order'!H213=\"\",\"\",'1. Order'!H213)","v":""},{"$f":"IF('1. Order'!I213=\"\",\"\",'1. Order'!I213)","v":""},{"$f":"IF('1. Order'!J213=\"\",\"\",'1. Order'!J213)","v":""},{"$f":"IF('1. Order'!K213=\"\",\"\",'1. Order'!K213)","v":""},{"$f":"IF('1. Order'!L213=\"\",\"\",'1. Order'!L213)","v":""},{"$f":"IF('1. Order'!M213=\"\",\"\",'1. Order'!M213)","v":""},{"$f":"IF('1. Order'!N213=\"\",\"\",'1. Order'!N213)","v":""},{"$f":"IF('1. Order'!P213=\"\",\"\",'1. Order'!P213)","v":""},{"$f":"IF('1. Order'!Q213=\"\",\"\",'1. Order'!Q213)","v":{"$error":"#N/A"}},{"$f":"IF('1. Order'!R213=\"\",\"\",'1. Order'!R213)","v":{"$error":"#N/A"}},{"$f":"IF('1. Order'!S213=\"\",\"\",'1. Order'!S213)","v":""},{"$f":"IF('1. Order'!T213=\"\",\"\",'1. Order'!T213)","v":""},{"$f":"IF('1. Order'!U213=\"\",\"\",'1. Order'!U213)","v":""},{"$f":"IF('1. Order'!X213=\"\",\"\",'1. Order'!X213)","v":""},{"$f":"IF('1. Order'!Y213=\"\",\"\",'1. Order'!Y213)","v":""},{"$f":"IF('1. Order'!Z213=\"\",\"\",'1. Order'!Z213)","v":""},{"$f":"IF('1. Order'!AC213=\"\",\"\",'1. Order'!AC213)","v":""},{"$f":"IF('1. Order'!AD213=\"\",\"\",'1. Order'!AD213)","v":""},{"$f":"IF('1. Order'!AE213=\"\",\"\",'1. Order'!AE213)","v":""},null,{"$f":"IF('1. Order'!AW213=\"\",\"\",'1. Order'!AW213)","v":""},{"$f":"IF('1. Order'!AX213=\"\",\"\",'1. Order'!AX213)","v":""},null,null,null,null,null,null,null,{"$f":"IF('1. Order'!BB213=\"\",\"\",'1. Order'!BB213)","v":""},{"$f":"IF('1. Order'!BC213=\"\",\"\",'1. Order'!BC213)","v":""},{"$f":"IF('1. Order'!BD213=\"\",\"\",'1. Order'!BD213)","v":""},{"$f":"IF('1. Order'!BE213=\"\",\"\",'1. Order'!BE213)","v":""},{"$f":"IF('1. Order'!BG213=\"\",\"\",'1. Order'!BG213)","v":""},{"$f":"IF('1. Order'!BH213=\"\",\"\",'1. Order'!BH213)","v":""},{"$f":"IF('1. Order'!BI213=\"\",\"\",'1. Order'!BI213)","v":""},{"$f":"IF('1. Order'!BJ213=\"\",\"\",'1. Order'!BJ213)","v":""},{"$f":"IF('1. Order'!BK213=\"\",\"\",'1. Order'!BK213)","v":"ZWO"}]
[{"$f":"IF('1. Order'!G214=\"\",\"\",'1. Order'!G214)","v":""},{"$f":"IF('1. Order'!H214=\"\",\"\",'1. Order'!H214)","v":""},{"$f":"IF('1. Order'!I214=\"\",\"\",'1. Order'!I214)","v":""},{"$f":"IF('1. Order'!J214=\"\",\"\",'1. Order'!J214)","v":""},{"$f":"IF('1. Order'!K214=\"\",\"\",'1. Order'!K214)","v":""},{"$f":"IF('1. Order'!L214=\"\",\"\",'1. Order'!L214)","v":""},{"$f":"IF('1. Order'!M214=\"\",\"\",'1. Order'!M214)","v":""},{"$f":"IF('1. Order'!N214=\"\",\"\",'1. Order'!N214)","v":""},{"$f":"IF('1. Order'!P214=\"\",\"\",'1. Order'!P214)","v":""},{"$f":"IF('1. Order'!Q214=\"\",\"\",'1. Order'!Q214)","v":{"$error":"#N/A"}},{"$f":"IF('1. Order'!R214=\"\",\"\",'1. Order'!R214)","v":{"$error":"#N/A"}},{"$f":"IF('1. Order'!S214=\"\",\"\",'1. Order'!S214)","v":""},{"$f":"IF('1. Order'!T214=\"\",\"\",'1. Order'!T214)","v":""},{"$f":"IF('1. Order'!U214=\"\",\"\",'1. Order'!U214)","v":""},{"$f":"IF('1. Order'!X214=\"\",\"\",'1. Order'!X214)","v":""},{"$f":"IF('1. Order'!Y214=\"\",\"\",'1. Order'!Y214)","v":""},{"$f":"IF('1. Order'!Z214=\"\",\"\",'1. Order'!Z214)","v":""},{"$f":"IF('1. Order'!AC214=\"\",\"\",'1. Order'!AC214)","v":""},{"$f":"IF('1. Order'!AD214=\"\",\"\",'1. Order'!AD214)","v":""},{"$f":"IF('1. Order'!AE214=\"\",\"\",'1. Order'!AE214)","v":""},null,{"$f":"IF('1. Order'!AW214=\"\",\"\",'1. Order'!AW214)","v":""},{"$f":"IF('1. Order'!AX214=\"\",\"\",'1. Order'!AX214)","v":""},null,null,null,null,null,null,null,{"$f":"IF('1. Order'!BB214=\"\",\"\",'1. Order'!BB214)","v":""},{"$f":"IF('1. Order'!BC214=\"\",\"\",'1. Order'!BC214)","v":""},{"$f":"IF('1. Order'!BD214=\"\",\"\",'1. Order'!BD214)","v":""},{"$f":"IF('1. Order'!BE214=\"\",\"\",'1. Order'!BE214)","v":""},{"$f":"IF('1. Order'!BG214=\"\",\"\",'1. Order'!BG214)","v":""},{"$f":"IF('1. Order'!BH214=\"\",\"\",'1. Order'!BH214)","v":""},{"$f":"IF('1. Order'!BI214=\"\",\"\",'1. Order'!BI214)","v":""},{"$f":"IF('1. Order'!BJ214=\"\",\"\",'1. Order'!BJ214)","v":""},{"$f":"IF('1. Order'!BK214=\"\",\"\",'1. Order'!BK214)","v":"ZWO"}]
[{"$f":"IF('1. Order'!G215=\"\",\"\",'1. Order'!G215)","v":""},{"$f":"IF('1. Order'!H215=\"\",\"\",'1. Order'!H215)","v":""},{"$f":"IF('1. Order'!I215=\"\",\"\",'1. Order'!I215)","v":""},{"$f":"IF('1. Order'!J215=\"\",\"\",'1. Order'!J215)","v":""},{"$f":"IF('1. Order'!K215=\"\",\"\",'1. Order'!K215)","v":""},{"$f":"IF('1. Order'!L215=\"\",\"\",'1. Order'!L215)","v":""},{"$f":"IF('1. Order'!M215=\"\",\"\",'1. Order'!M215)","v":""},{"$f":"IF('1. Order'!N215=\"\",\"\",'1. Order'!N215)","v":""},{"$f":"IF('1. Order'!P215=\"\",\"\",'1. Order'!P215)","v":""},{"$f":"IF('1. Order'!Q215=\"\",\"\",'1. Order'!Q215)","v":{"$error":"#N/A"}},{"$f":"IF('1. Order'!R215=\"\",\"\",'1. Order'!R215)","v":{"$error":"#N/A"}},{"$f":"IF('1. Order'!S215=\"\",\"\",'1. Order'!S215)","v":""},{"$f":"IF('1. Order'!T215=\"\",\"\",'1. Order'!T215)","v":""},{"$f":"IF('1. Order'!U215=\"\",\"\",'1. Order'!U215)","v":""},{"$f":"IF('1. Order'!X215=\"\",\"\",'1. Order'!X215)","v":""},{"$f":"IF('1. Order'!Y215=\"\",\"\",'1. Order'!Y215)","v":""},{"$f":"IF('1. Order'!Z215=\"\",\"\",'1. Order'!Z215)","v":""},{"$f":"IF('1. Order'!AC215=\"\",\"\",'1. Order'!AC215)","v":""},{"$f":"IF('1. Order'!AD215=\"\",\"\",'1. Order'!AD215)","v":""},{"$f":"IF('1. Order'!AE215=\"\",\"\",'1. Order'!AE215)","v":""},null,{"$f":"IF('1. Order'!AW215=\"\",\"\",'1. Order'!AW215)","v":""},{"$f":"IF('1. Order'!AX215=\"\",\"\",'1. Order'!AX215)","v":""},null,null,null,null,null,null,null,{"$f":"IF('1. Order'!BB215=\"\",\"\",'1. Order'!BB215)","v":""},{"$f":"IF('1. Order'!BC215=\"\",\"\",'1. Order'!BC215)","v":""},{"$f":"IF('1. Order'!BD215=\"\",\"\",'1. Order'!BD215)","v":""},{"$f":"IF('1. Order'!BE215=\"\",\"\",'1. Order'!BE215)","v":""},{"$f":"IF('1. Order'!BG215=\"\",\"\",'1. Order'!BG215)","v":""},{"$f":"IF('1. Order'!BH215=\"\",\"\",'1. Order'!BH215)","v":""},{"$f":"IF('1. Order'!BI215=\"\",\"\",'1. Order'!BI215)","v":""},{"$f":"IF('1. Order'!BJ215=\"\",\"\",'1. Order'!BJ215)","v":""},{"$f":"IF('1. Order'!BK215=\"\",\"\",'1. Order'!BK215)","v":"ZWO"}]
[{"$f":"IF('1. Order'!G216=\"\",\"\",'1. Order'!G216)","v":""},{"$f":"IF('1. Order'!H216=\"\",\"\",'1. Order'!H216)","v":""},{"$f":"IF('1. Order'!I216=\"\",\"\",'1. Order'!I216)","v":""},{"$f":"IF('1. Order'!J216=\"\",\"\",'1. Order'!J216)","v":""},{"$f":"IF('1. Order'!K216=\"\",\"\",'1. Order'!K216)","v":""},{"$f":"IF('1. Order'!L216=\"\",\"\",'1. Order'!L216)","v":""},{"$f":"IF('1. Order'!M216=\"\",\"\",'1. Order'!M216)","v":""},{"$f":"IF('1. Order'!N216=\"\",\"\",'1. Order'!N216)","v":""},{"$f":"IF('1. Order'!P216=\"\",\"\",'1. Order'!P216)","v":""},{"$f":"IF('1. Order'!Q216=\"\",\"\",'1. Order'!Q216)","v":{"$error":"#N/A"}},{"$f":"IF('1. Order'!R216=\"\",\"\",'1. Order'!R216)","v":{"$error":"#N/A"}},{"$f":"IF('1. Order'!S216=\"\",\"\",'1. Order'!S216)","v":""},{"$f":"IF('1. Order'!T216=\"\",\"\",'1. Order'!T216)","v":""},{"$f":"IF('1. Order'!U216=\"\",\"\",'1. Order'!U216)","v":""},{"$f":"IF('1. Order'!X216=\"\",\"\",'1. Order'!X216)","v":""},{"$f":"IF('1. Order'!Y216=\"\",\"\",'1. Order'!Y216)","v":""},{"$f":"IF('1. Order'!Z216=\"\",\"\",'1. Order'!Z216)","v":""},{"$f":"IF('1. Order'!AC216=\"\",\"\",'1. Order'!AC216)","v":""},{"$f":"IF('1. Order'!AD216=\"\",\"\",'1. Order'!AD216)","v":""},{"$f":"IF('1. Order'!AE216=\"\",\"\",'1. Order'!AE216)","v":""},null,{"$f":"IF('1. Order'!AW216=\"\",\"\",'1. Order'!AW216)","v":""},{"$f":"IF('1. Order'!AX216=\"\",\"\",'1. Order'!AX216)","v":""},null,null,null,null,null,null,null,{"$f":"IF('1. Order'!BB216=\"\",\"\",'1. Order'!BB216)","v":""},{"$f":"IF('1. Order'!BC216=\"\",\"\",'1. Order'!BC216)","v":""},{"$f":"IF('1. Order'!BD216=\"\",\"\",'1. Order'!BD216)","v":""},{"$f":"IF('1. Order'!BE216=\"\",\"\",'1. Order'!BE216)","v":""},{"$f":"IF('1. Order'!BG216=\"\",\"\",'1. Order'!BG216)","v":""},{"$f":"IF('1. Order'!BH216=\"\",\"\",'1. Order'!BH216)","v":""},{"$f":"IF('1. Order'!BI216=\"\",\"\",'1. Order'!BI216)","v":""},{"$f":"IF('1. Order'!BJ216=\"\",\"\",'1. Order'!BJ216)","v":""},{"$f":"IF('1. Order'!BK216=\"\",\"\",'1. Order'!BK216)","v":"ZWO"}]
[{"$f":"IF('1. Order'!G217=\"\",\"\",'1. Order'!G217)","v":""},{"$f":"IF('1. Order'!H217=\"\",\"\",'1. Order'!H217)","v":""},{"$f":"IF('1. Order'!I217=\"\",\"\",'1. Order'!I217)","v":""},{"$f":"IF('1. Order'!J217=\"\",\"\",'1. Order'!J217)","v":""},{"$f":"IF('1. Order'!K217=\"\",\"\",'1. Order'!K217)","v":""},{"$f":"IF('1. Order'!L217=\"\",\"\",'1. Order'!L217)","v":""},{"$f":"IF('1. Order'!M217=\"\",\"\",'1. Order'!M217)","v":""},{"$f":"IF('1. Order'!N217=\"\",\"\",'1. Order'!N217)","v":""},{"$f":"IF('1. Order'!P217=\"\",\"\",'1. Order'!P217)","v":""},{"$f":"IF('1. Order'!Q217=\"\",\"\",'1. Order'!Q217)","v":{"$error":"#N/A"}},{"$f":"IF('1. Order'!R217=\"\",\"\",'1. Order'!R217)","v":{"$error":"#N/A"}},{"$f":"IF('1. Order'!S217=\"\",\"\",'1. Order'!S217)","v":""},{"$f":"IF('1. Order'!T217=\"\",\"\",'1. Order'!T217)","v":""},{"$f":"IF('1. Order'!U217=\"\",\"\",'1. Order'!U217)","v":""},{"$f":"IF('1. Order'!X217=\"\",\"\",'1. Order'!X217)","v":""},{"$f":"IF('1. Order'!Y217=\"\",\"\",'1. Order'!Y217)","v":""},{"$f":"IF('1. Order'!Z217=\"\",\"\",'1. Order'!Z217)","v":""},{"$f":"IF('1. Order'!AC217=\"\",\"\",'1. Order'!AC217)","v":""},{"$f":"IF('1. Order'!AD217=\"\",\"\",'1. Order'!AD217)","v":""},{"$f":"IF('1. Order'!AE217=\"\",\"\",'1. Order'!AE217)","v":""},null,{"$f":"IF('1. Order'!AW217=\"\",\"\",'1. Order'!AW217)","v":""},{"$f":"IF('1. Order'!AX217=\"\",\"\",'1. Order'!AX217)","v":""},null,null,null,null,null,null,null,{"$f":"IF('1. Order'!BB217=\"\",\"\",'1. Order'!BB217)","v":""},{"$f":"IF('1. Order'!BC217=\"\",\"\",'1. Order'!BC217)","v":""},{"$f":"IF('1. Order'!BD217=\"\",\"\",'1. Order'!BD217)","v":""},{"$f":"IF('1. Order'!BE217=\"\",\"\",'1. Order'!BE217)","v":""},{"$f":"IF('1. Order'!BG217=\"\",\"\",'1. Order'!BG217)","v":""},{"$f":"IF('1. Order'!BH217=\"\",\"\",'1. Order'!BH217)","v":""},{"$f":"IF('1. Order'!BI217=\"\",\"\",'1. Order'!BI217)","v":""},{"$f":"IF('1. Order'!BJ217=\"\",\"\",'1. Order'!BJ217)","v":""},{"$f":"IF('1. Order'!BK217=\"\",\"\",'1. Order'!BK217)","v":"ZWO"}]
[{"$f":"IF('1. Order'!G218=\"\",\"\",'1. Order'!G218)","v":""},{"$f":"IF('1. Order'!H218=\"\",\"\",'1. Order'!H218)","v":""},{"$f":"IF('1. Order'!I218=\"\",\"\",'1. Order'!I218)","v":""},{"$f":"IF('1. Order'!J218=\"\",\"\",'1. Order'!J218)","v":""},{"$f":"IF('1. Order'!K218=\"\",\"\",'1. Order'!K218)","v":""},{"$f":"IF('1. Order'!L218=\"\",\"\",'1. Order'!L218)","v":""},{"$f":"IF('1. Order'!M218=\"\",\"\",'1. Order'!M218)","v":""},{"$f":"IF('1. Order'!N218=\"\",\"\",'1. Order'!N218)","v":""},{"$f":"IF('1. Order'!P218=\"\",\"\",'1. Order'!P218)","v":""},{"$f":"IF('1. Order'!Q218=\"\",\"\",'1. Order'!Q218)","v":{"$error":"#N/A"}},{"$f":"IF('1. Order'!R218=\"\",\"\",'1. Order'!R218)","v":{"$error":"#N/A"}},{"$f":"IF('1. Order'!S218=\"\",\"\",'1. Order'!S218)","v":""},{"$f":"IF('1. Order'!T218=\"\",\"\",'1. Order'!T218)","v":""},{"$f":"IF('1. Order'!U218=\"\",\"\",'1. Order'!U218)","v":""},{"$f":"IF('1. Order'!X218=\"\",\"\",'1. Order'!X218)","v":""},{"$f":"IF('1. Order'!Y218=\"\",\"\",'1. Order'!Y218)","v":""},{"$f":"IF('1. Order'!Z218=\"\",\"\",'1. Order'!Z218)","v":""},{"$f":"IF('1. Order'!AC218=\"\",\"\",'1. Order'!AC218)","v":""},{"$f":"IF('1. Order'!AD218=\"\",\"\",'1. Order'!AD218)","v":""},{"$f":"IF('1. Order'!AE218=\"\",\"\",'1. Order'!AE218)","v":""},null,{"$f":"IF('1. Order'!AW218=\"\",\"\",'1. Order'!AW218)","v":""},{"$f":"IF('1. Order'!AX218=\"\",\"\",'1. Order'!AX218)","v":""},null,null,null,null,null,null,null,{"$f":"IF('1. Order'!BB218=\"\",\"\",'1. Order'!BB218)","v":""},{"$f":"IF('1. Order'!BC218=\"\",\"\",'1. Order'!BC218)","v":""},{"$f":"IF('1. Order'!BD218=\"\",\"\",'1. Order'!BD218)","v":""},{"$f":"IF('1. Order'!BE218=\"\",\"\",'1. Order'!BE218)","v":""},{"$f":"IF('1. Order'!BG218=\"\",\"\",'1. Order'!BG218)","v":""},{"$f":"IF('1. Order'!BH218=\"\",\"\",'1. Order'!BH218)","v":""},{"$f":"IF('1. Order'!BI218=\"\",\"\",'1. Order'!BI218)","v":""},{"$f":"IF('1. Order'!BJ218=\"\",\"\",'1. Order'!BJ218)","v":""},{"$f":"IF('1. Order'!BK218=\"\",\"\",'1. Order'!BK218)","v":"ZWO"}]
[{"$f":"IF('1. Order'!G219=\"\",\"\",'1. Order'!G219)","v":""},{"$f":"IF('1. Order'!H219=\"\",\"\",'1. Order'!H219)","v":""},{"$f":"IF('1. Order'!I219=\"\",\"\",'1. Order'!I219)","v":""},{"$f":"IF('1. Order'!J219=\"\",\"\",'1. Order'!J219)","v":""},{"$f":"IF('1. Order'!K219=\"\",\"\",'1. Order'!K219)","v":""},{"$f":"IF('1. Order'!L219=\"\",\"\",'1. Order'!L219)","v":""},{"$f":"IF('1. Order'!M219=\"\",\"\",'1. Order'!M219)","v":""},{"$f":"IF('1. Order'!N219=\"\",\"\",'1. Order'!N219)","v":""},{"$f":"IF('1. Order'!P219=\"\",\"\",'1. Order'!P219)","v":""},{"$f":"IF('1. Order'!Q219=\"\",\"\",'1. Order'!Q219)","v":{"$error":"#N/A"}},{"$f":"IF('1. Order'!R219=\"\",\"\",'1. Order'!R219)","v":{"$error":"#N/A"}},{"$f":"IF('1. Order'!S219=\"\",\"\",'1. Order'!S219)","v":""},{"$f":"IF('1. Order'!T219=\"\",\"\",'1. Order'!T219)","v":""},{"$f":"IF('1. Order'!U219=\"\",\"\",'1. Order'!U219)","v":""},{"$f":"IF('1. Order'!X219=\"\",\"\",'1. Order'!X219)","v":""},{"$f":"IF('1. Order'!Y219=\"\",\"\",'1. Order'!Y219)","v":""},{"$f":"IF('1. Order'!Z219=\"\",\"\",'1. Order'!Z219)","v":""},{"$f":"IF('1. Order'!AC219=\"\",\"\",'1. Order'!AC219)","v":""},{"$f":"IF('1. Order'!AD219=\"\",\"\",'1. Order'!AD219)","v":""},{"$f":"IF('1. Order'!AE219=\"\",\"\",'1. Order'!AE219)","v":""},null,{"$f":"IF('1. Order'!AW219=\"\",\"\",'1. Order'!AW219)","v":""},{"$f":"IF('1. Order'!AX219=\"\",\"\",'1. Order'!AX219)","v":""},null,null,null,null,null,null,null,{"$f":"IF('1. Order'!BB219=\"\",\"\",'1. Order'!BB219)","v":""},{"$f":"IF('1. Order'!BC219=\"\",\"\",'1. Order'!BC219)","v":""},{"$f":"IF('1. Order'!BD219=\"\",\"\",'1. Order'!BD219)","v":""},{"$f":"IF('1. Order'!BE219=\"\",\"\",'1. Order'!BE219)","v":""},{"$f":"IF('1. Order'!BG219=\"\",\"\",'1. Order'!BG219)","v":""},{"$f":"IF('1. Order'!BH219=\"\",\"\",'1. Order'!BH219)","v":""},{"$f":"IF('1. Order'!BI219=\"\",\"\",'1. Order'!BI219)","v":""},{"$f":"IF('1. Order'!BJ219=\"\",\"\",'1. Order'!BJ219)","v":""},{"$f":"IF('1. Order'!BK219=\"\",\"\",'1. Order'!BK219)","v":"ZWO"}]
[{"$f":"IF('1. Order'!G220=\"\",\"\",'1. Order'!G220)","v":""},{"$f":"IF('1. Order'!H220=\"\",\"\",'1. Order'!H220)","v":""},{"$f":"IF('1. Order'!I220=\"\",\"\",'1. Order'!I220)","v":""},{"$f":"IF('1. Order'!J220=\"\",\"\",'1. Order'!J220)","v":""},{"$f":"IF('1. Order'!K220=\"\",\"\",'1. Order'!K220)","v":""},{"$f":"IF('1. Order'!L220=\"\",\"\",'1. Order'!L220)","v":""},{"$f":"IF('1. Order'!M220=\"\",\"\",'1. Order'!M220)","v":""},{"$f":"IF('1. Order'!N220=\"\",\"\",'1. Order'!N220)","v":""},{"$f":"IF('1. Order'!P220=\"\",\"\",'1. Order'!P220)","v":""},{"$f":"IF('1. Order'!Q220=\"\",\"\",'1. Order'!Q220)","v":{"$error":"#N/A"}},{"$f":"IF('1. Order'!R220=\"\",\"\",'1. Order'!R220)","v":{"$error":"#N/A"}},{"$f":"IF('1. Order'!S220=\"\",\"\",'1. Order'!S220)","v":""},{"$f":"IF('1. Order'!T220=\"\",\"\",'1. Order'!T220)","v":""},{"$f":"IF('1. Order'!U220=\"\",\"\",'1. Order'!U220)","v":""},{"$f":"IF('1. Order'!X220=\"\",\"\",'1. Order'!X220)","v":""},{"$f":"IF('1. Order'!Y220=\"\",\"\",'1. Order'!Y220)","v":""},{"$f":"IF('1. Order'!Z220=\"\",\"\",'1. Order'!Z220)","v":""},{"$f":"IF('1. Order'!AC220=\"\",\"\",'1. Order'!AC220)","v":""},{"$f":"IF('1. Order'!AD220=\"\",\"\",'1. Order'!AD220)","v":""},{"$f":"IF('1. Order'!AE220=\"\",\"\",'1. Order'!AE220)","v":""},null,{"$f":"IF('1. Order'!AW220=\"\",\"\",'1. Order'!AW220)","v":""},{"$f":"IF('1. Order'!AX220=\"\",\"\",'1. Order'!AX220)","v":""},null,null,null,null,null,null,null,{"$f":"IF('1. Order'!BB220=\"\",\"\",'1. Order'!BB220)","v":""},{"$f":"IF('1. Order'!BC220=\"\",\"\",'1. Order'!BC220)","v":""},{"$f":"IF('1. Order'!BD220=\"\",\"\",'1. Order'!BD220)","v":""},{"$f":"IF('1. Order'!BE220=\"\",\"\",'1. Order'!BE220)","v":""},{"$f":"IF('1. Order'!BG220=\"\",\"\",'1. Order'!BG220)","v":""},{"$f":"IF('1. Order'!BH220=\"\",\"\",'1. Order'!BH220)","v":""},{"$f":"IF('1. Order'!BI220=\"\",\"\",'1. Order'!BI220)","v":""},{"$f":"IF('1. Order'!BJ220=\"\",\"\",'1. Order'!BJ220)","v":""},{"$f":"IF('1. Order'!BK220=\"\",\"\",'1. Order'!BK220)","v":"ZWO"}]
[{"$f":"IF('1. Order'!G221=\"\",\"\",'1. Order'!G221)","v":""},{"$f":"IF('1. Order'!H221=\"\",\"\",'1. Order'!H221)","v":""},{"$f":"IF('1. Order'!I221=\"\",\"\",'1. Order'!I221)","v":""},{"$f":"IF('1. Order'!J221=\"\",\"\",'1. Order'!J221)","v":""},{"$f":"IF('1. Order'!K221=\"\",\"\",'1. Order'!K221)","v":""},{"$f":"IF('1. Order'!L221=\"\",\"\",'1. Order'!L221)","v":""},{"$f":"IF('1. Order'!M221=\"\",\"\",'1. Order'!M221)","v":""},{"$f":"IF('1. Order'!N221=\"\",\"\",'1. Order'!N221)","v":""},{"$f":"IF('1. Order'!P221=\"\",\"\",'1. Order'!P221)","v":""},{"$f":"IF('1. Order'!Q221=\"\",\"\",'1. Order'!Q221)","v":{"$error":"#N/A"}},{"$f":"IF('1. Order'!R221=\"\",\"\",'1. Order'!R221)","v":{"$error":"#N/A"}},{"$f":"IF('1. Order'!S221=\"\",\"\",'1. Order'!S221)","v":""},{"$f":"IF('1. Order'!T221=\"\",\"\",'1. Order'!T221)","v":""},{"$f":"IF('1. Order'!U221=\"\",\"\",'1. Order'!U221)","v":""},{"$f":"IF('1. Order'!X221=\"\",\"\",'1. Order'!X221)","v":""},{"$f":"IF('1. Order'!Y221=\"\",\"\",'1. Order'!Y221)","v":""},{"$f":"IF('1. Order'!Z221=\"\",\"\",'1. Order'!Z221)","v":""},{"$f":"IF('1. Order'!AC221=\"\",\"\",'1. Order'!AC221)","v":""},{"$f":"IF('1. Order'!AD221=\"\",\"\",'1. Order'!AD221)","v":""},{"$f":"IF('1. Order'!AE221=\"\",\"\",'1. Order'!AE221)","v":""},null,{"$f":"IF('1. Order'!AW221=\"\",\"\",'1. Order'!AW221)","v":""},{"$f":"IF('1. Order'!AX221=\"\",\"\",'1. Order'!AX221)","v":""},null,null,null,null,null,null,null,{"$f":"IF('1. Order'!BB221=\"\",\"\",'1. Order'!BB221)","v":""},{"$f":"IF('1. Order'!BC221=\"\",\"\",'1. Order'!BC221)","v":""},{"$f":"IF('1. Order'!BD221=\"\",\"\",'1. Order'!BD221)","v":""},{"$f":"IF('1. Order'!BE221=\"\",\"\",'1. Order'!BE221)","v":""},{"$f":"IF('1. Order'!BG221=\"\",\"\",'1. Order'!BG221)","v":""},{"$f":"IF('1. Order'!BH221=\"\",\"\",'1. Order'!BH221)","v":""},{"$f":"IF('1. Order'!BI221=\"\",\"\",'1. Order'!BI221)","v":""},{"$f":"IF('1. Order'!BJ221=\"\",\"\",'1. Order'!BJ221)","v":""},{"$f":"IF('1. Order'!BK221=\"\",\"\",'1. Order'!BK221)","v":"ZWO"}]
[{"$f":"IF('1. Order'!G222=\"\",\"\",'1. Order'!G222)","v":""},{"$f":"IF('1. Order'!H222=\"\",\"\",'1. Order'!H222)","v":""},{"$f":"IF('1. Order'!I222=\"\",\"\",'1. Order'!I222)","v":""},{"$f":"IF('1. Order'!J222=\"\",\"\",'1. Order'!J222)","v":""},{"$f":"IF('1. Order'!K222=\"\",\"\",'1. Order'!K222)","v":""},{"$f":"IF('1. Order'!L222=\"\",\"\",'1. Order'!L222)","v":""},{"$f":"IF('1. Order'!M222=\"\",\"\",'1. Order'!M222)","v":""},{"$f":"IF('1. Order'!N222=\"\",\"\",'1. Order'!N222)","v":""},{"$f":"IF('1. Order'!P222=\"\",\"\",'1. Order'!P222)","v":""},{"$f":"IF('1. Order'!Q222=\"\",\"\",'1. Order'!Q222)","v":{"$error":"#N/A"}},{"$f":"IF('1. Order'!R222=\"\",\"\",'1. Order'!R222)","v":{"$error":"#N/A"}},{"$f":"IF('1. Order'!S222=\"\",\"\",'1. Order'!S222)","v":""},{"$f":"IF('1. Order'!T222=\"\",\"\",'1. Order'!T222)","v":""},{"$f":"IF('1. Order'!U222=\"\",\"\",'1. Order'!U222)","v":""},{"$f":"IF('1. Order'!X222=\"\",\"\",'1. Order'!X222)","v":""},{"$f":"IF('1. Order'!Y222=\"\",\"\",'1. Order'!Y222)","v":""},{"$f":"IF('1. Order'!Z222=\"\",\"\",'1. Order'!Z222)","v":""},{"$f":"IF('1. Order'!AC222=\"\",\"\",'1. Order'!AC222)","v":""},{"$f":"IF('1. Order'!AD222=\"\",\"\",'1. Order'!AD222)","v":""},{"$f":"IF('1. Order'!AE222=\"\",\"\",'1. Order'!AE222)","v":""},null,{"$f":"IF('1. Order'!AW222=\"\",\"\",'1. Order'!AW222)","v":""},{"$f":"IF('1. Order'!AX222=\"\",\"\",'1. Order'!AX222)","v":""},null,null,null,null,null,null,null,{"$f":"IF('1. Order'!BB222=\"\",\"\",'1. Order'!BB222)","v":""},{"$f":"IF('1. Order'!BC222=\"\",\"\",'1. Order'!BC222)","v":""},{"$f":"IF('1. Order'!BD222=\"\",\"\",'1. Order'!BD222)","v":""},{"$f":"IF('1. Order'!BE222=\"\",\"\",'1. Order'!BE222)","v":""},{"$f":"IF('1. Order'!BG222=\"\",\"\",'1. Order'!BG222)","v":""},{"$f":"IF('1. Order'!BH222=\"\",\"\",'1. Order'!BH222)","v":""},{"$f":"IF('1. Order'!BI222=\"\",\"\",'1. Order'!BI222)","v":""},{"$f":"IF('1. Order'!BJ222=\"\",\"\",'1. Order'!BJ222)","v":""},{"$f":"IF('1. Order'!BK222=\"\",\"\",'1. Order'!BK222)","v":"ZWO"}]
[{"$f":"IF('1. Order'!G223=\"\",\"\",'1. Order'!G223)","v":""},{"$f":"IF('1. Order'!H223=\"\",\"\",'1. Order'!H223)","v":""},{"$f":"IF('1. Order'!I223=\"\",\"\",'1. Order'!I223)","v":""},{"$f":"IF('1. Order'!J223=\"\",\"\",'1. Order'!J223)","v":""},{"$f":"IF('1. Order'!K223=\"\",\"\",'1. Order'!K223)","v":""},{"$f":"IF('1. Order'!L223=\"\",\"\",'1. Order'!L223)","v":""},{"$f":"IF('1. Order'!M223=\"\",\"\",'1. Order'!M223)","v":""},{"$f":"IF('1. Order'!N223=\"\",\"\",'1. Order'!N223)","v":""},{"$f":"IF('1. Order'!P223=\"\",\"\",'1. Order'!P223)","v":""},{"$f":"IF('1. Order'!Q223=\"\",\"\",'1. Order'!Q223)","v":{"$error":"#N/A"}},{"$f":"IF('1. Order'!R223=\"\",\"\",'1. Order'!R223)","v":{"$error":"#N/A"}},{"$f":"IF('1. Order'!S223=\"\",\"\",'1. Order'!S223)","v":""},{"$f":"IF('1. Order'!T223=\"\",\"\",'1. Order'!T223)","v":""},{"$f":"IF('1. Order'!U223=\"\",\"\",'1. Order'!U223)","v":""},{"$f":"IF('1. Order'!X223=\"\",\"\",'1. Order'!X223)","v":""},{"$f":"IF('1. Order'!Y223=\"\",\"\",'1. Order'!Y223)","v":""},{"$f":"IF('1. Order'!Z223=\"\",\"\",'1. Order'!Z223)","v":""},{"$f":"IF('1. Order'!AC223=\"\",\"\",'1. Order'!AC223)","v":""},{"$f":"IF('1. Order'!AD223=\"\",\"\",'1. Order'!AD223)","v":""},{"$f":"IF('1. Order'!AE223=\"\",\"\",'1. Order'!AE223)","v":""},null,{"$f":"IF('1. Order'!AW223=\"\",\"\",'1. Order'!AW223)","v":""},{"$f":"IF('1. Order'!AX223=\"\",\"\",'1. Order'!AX223)","v":""},null,null,null,null,null,null,null,{"$f":"IF('1. Order'!BB223=\"\",\"\",'1. Order'!BB223)","v":""},{"$f":"IF('1. Order'!BC223=\"\",\"\",'1. Order'!BC223)","v":""},{"$f":"IF('1. Order'!BD223=\"\",\"\",'1. Order'!BD223)","v":""},{"$f":"IF('1. Order'!BE223=\"\",\"\",'1. Order'!BE223)","v":""},{"$f":"IF('1. Order'!BG223=\"\",\"\",'1. Order'!BG223)","v":""},{"$f":"IF('1. Order'!BH223=\"\",\"\",'1. Order'!BH223)","v":""},{"$f":"IF('1. Order'!BI223=\"\",\"\",'1. Order'!BI223)","v":""},{"$f":"IF('1. Order'!BJ223=\"\",\"\",'1. Order'!BJ223)","v":""},{"$f":"IF('1. Order'!BK223=\"\",\"\",'1. Order'!BK223)","v":"ZWO"}]
[{"$f":"IF('1. Order'!G224=\"\",\"\",'1. Order'!G224)","v":""},{"$f":"IF('1. Order'!H224=\"\",\"\",'1. Order'!H224)","v":""},{"$f":"IF('1. Order'!I224=\"\",\"\",'1. Order'!I224)","v":""},{"$f":"IF('1. Order'!J224=\"\",\"\",'1. Order'!J224)","v":""},{"$f":"IF('1. Order'!K224=\"\",\"\",'1. Order'!K224)","v":""},{"$f":"IF('1. Order'!L224=\"\",\"\",'1. Order'!L224)","v":""},{"$f":"IF('1. Order'!M224=\"\",\"\",'1. Order'!M224)","v":""},{"$f":"IF('1. Order'!N224=\"\",\"\",'1. Order'!N224)","v":""},{"$f":"IF('1. Order'!P224=\"\",\"\",'1. Order'!P224)","v":""},{"$f":"IF('1. Order'!Q224=\"\",\"\",'1. Order'!Q224)","v":{"$error":"#N/A"}},{"$f":"IF('1. Order'!R224=\"\",\"\",'1. Order'!R224)","v":{"$error":"#N/A"}},{"$f":"IF('1. Order'!S224=\"\",\"\",'1. Order'!S224)","v":""},{"$f":"IF('1. Order'!T224=\"\",\"\",'1. Order'!T224)","v":""},{"$f":"IF('1. Order'!U224=\"\",\"\",'1. Order'!U224)","v":""},{"$f":"IF('1. Order'!X224=\"\",\"\",'1. Order'!X224)","v":""},{"$f":"IF('1. Order'!Y224=\"\",\"\",'1. Order'!Y224)","v":""},{"$f":"IF('1. Order'!Z224=\"\",\"\",'1. Order'!Z224)","v":""},{"$f":"IF('1. Order'!AC224=\"\",\"\",'1. Order'!AC224)","v":""},{"$f":"IF('1. Order'!AD224=\"\",\"\",'1. Order'!AD224)","v":""},{"$f":"IF('1. Order'!AE224=\"\",\"\",'1. Order'!AE224)","v":""},null,{"$f":"IF('1. Order'!AW224=\"\",\"\",'1. Order'!AW224)","v":""},{"$f":"IF('1. Order'!AX224=\"\",\"\",'1. Order'!AX224)","v":""},null,null,null,null,null,null,null,{"$f":"IF('1. Order'!BB224=\"\",\"\",'1. Order'!BB224)","v":""},{"$f":"IF('1. Order'!BC224=\"\",\"\",'1. Order'!BC224)","v":""},{"$f":"IF('1. Order'!BD224=\"\",\"\",'1. Order'!BD224)","v":""},{"$f":"IF('1. Order'!BE224=\"\",\"\",'1. Order'!BE224)","v":""},{"$f":"IF('1. Order'!BG224=\"\",\"\",'1. Order'!BG224)","v":""},{"$f":"IF('1. Order'!BH224=\"\",\"\",'1. Order'!BH224)","v":""},{"$f":"IF('1. Order'!BI224=\"\",\"\",'1. Order'!BI224)","v":""},{"$f":"IF('1. Order'!BJ224=\"\",\"\",'1. Order'!BJ224)","v":""},{"$f":"IF('1. Order'!BK224=\"\",\"\",'1. Order'!BK224)","v":"ZWO"}]
[{"$f":"IF('1. Order'!G225=\"\",\"\",'1. Order'!G225)","v":""},{"$f":"IF('1. Order'!H225=\"\",\"\",'1. Order'!H225)","v":""},{"$f":"IF('1. Order'!I225=\"\",\"\",'1. Order'!I225)","v":""},{"$f":"IF('1. Order'!J225=\"\",\"\",'1. Order'!J225)","v":""},{"$f":"IF('1. Order'!K225=\"\",\"\",'1. Order'!K225)","v":""},{"$f":"IF('1. Order'!L225=\"\",\"\",'1. Order'!L225)","v":""},{"$f":"IF('1. Order'!M225=\"\",\"\",'1. Order'!M225)","v":""},{"$f":"IF('1. Order'!N225=\"\",\"\",'1. Order'!N225)","v":""},{"$f":"IF('1. Order'!P225=\"\",\"\",'1. Order'!P225)","v":""},{"$f":"IF('1. Order'!Q225=\"\",\"\",'1. Order'!Q225)","v":{"$error":"#N/A"}},{"$f":"IF('1. Order'!R225=\"\",\"\",'1. Order'!R225)","v":{"$error":"#N/A"}},{"$f":"IF('1. Order'!S225=\"\",\"\",'1. Order'!S225)","v":""},{"$f":"IF('1. Order'!T225=\"\",\"\",'1. Order'!T225)","v":""},{"$f":"IF('1. Order'!U225=\"\",\"\",'1. Order'!U225)","v":""},{"$f":"IF('1. Order'!X225=\"\",\"\",'1. Order'!X225)","v":""},{"$f":"IF('1. Order'!Y225=\"\",\"\",'1. Order'!Y225)","v":""},{"$f":"IF('1. Order'!Z225=\"\",\"\",'1. Order'!Z225)","v":""},{"$f":"IF('1. Order'!AC225=\"\",\"\",'1. Order'!AC225)","v":""},{"$f":"IF('1. Order'!AD225=\"\",\"\",'1. Order'!AD225)","v":""},{"$f":"IF('1. Order'!AE225=\"\",\"\",'1. Order'!AE225)","v":""},null,{"$f":"IF('1. Order'!AW225=\"\",\"\",'1. Order'!AW225)","v":""},{"$f":"IF('1. Order'!AX225=\"\",\"\",'1. Order'!AX225)","v":""},null,null,null,null,null,null,null,{"$f":"IF('1. Order'!BB225=\"\",\"\",'1. Order'!BB225)","v":""},{"$f":"IF('1. Order'!BC225=\"\",\"\",'1. Order'!BC225)","v":""},{"$f":"IF('1. Order'!BD225=\"\",\"\",'1. Order'!BD225)","v":""},{"$f":"IF('1. Order'!BE225=\"\",\"\",'1. Order'!BE225)","v":""},{"$f":"IF('1. Order'!BG225=\"\",\"\",'1. Order'!BG225)","v":""},{"$f":"IF('1. Order'!BH225=\"\",\"\",'1. Order'!BH225)","v":""},{"$f":"IF('1. Order'!BI225=\"\",\"\",'1. Order'!BI225)","v":""},{"$f":"IF('1. Order'!BJ225=\"\",\"\",'1. Order'!BJ225)","v":""},{"$f":"IF('1. Order'!BK225=\"\",\"\",'1. Order'!BK225)","v":"ZWO"}]
[{"$f":"IF('1. Order'!G226=\"\",\"\",'1. Order'!G226)","v":""},{"$f":"IF('1. Order'!H226=\"\",\"\",'1. Order'!H226)","v":""},{"$f":"IF('1. Order'!I226=\"\",\"\",'1. Order'!I226)","v":""},{"$f":"IF('1. Order'!J226=\"\",\"\",'1. Order'!J226)","v":""},{"$f":"IF('1. Order'!K226=\"\",\"\",'1. Order'!K226)","v":""},{"$f":"IF('1. Order'!L226=\"\",\"\",'1. Order'!L226)","v":""},{"$f":"IF('1. Order'!M226=\"\",\"\",'1. Order'!M226)","v":""},{"$f":"IF('1. Order'!N226=\"\",\"\",'1. Order'!N226)","v":""},{"$f":"IF('1. Order'!P226=\"\",\"\",'1. Order'!P226)","v":""},{"$f":"IF('1. Order'!Q226=\"\",\"\",'1. Order'!Q226)","v":{"$error":"#N/A"}},{"$f":"IF('1. Order'!R226=\"\",\"\",'1. Order'!R226)","v":{"$error":"#N/A"}},{"$f":"IF('1. Order'!S226=\"\",\"\",'1. Order'!S226)","v":""},{"$f":"IF('1. Order'!T226=\"\",\"\",'1. Order'!T226)","v":""},{"$f":"IF('1. Order'!U226=\"\",\"\",'1. Order'!U226)","v":""},{"$f":"IF('1. Order'!X226=\"\",\"\",'1. Order'!X226)","v":""},{"$f":"IF('1. Order'!Y226=\"\",\"\",'1. Order'!Y226)","v":""},{"$f":"IF('1. Order'!Z226=\"\",\"\",'1. Order'!Z226)","v":""},{"$f":"IF('1. Order'!AC226=\"\",\"\",'1. Order'!AC226)","v":""},{"$f":"IF('1. Order'!AD226=\"\",\"\",'1. Order'!AD226)","v":""},{"$f":"IF('1. Order'!AE226=\"\",\"\",'1. Order'!AE226)","v":""},null,{"$f":"IF('1. Order'!AW226=\"\",\"\",'1. Order'!AW226)","v":""},{"$f":"IF('1. Order'!AX226=\"\",\"\",'1. Order'!AX226)","v":""},null,null,null,null,null,null,null,{"$f":"IF('1. Order'!BB226=\"\",\"\",'1. Order'!BB226)","v":""},{"$f":"IF('1. Order'!BC226=\"\",\"\",'1. Order'!BC226)","v":""},{"$f":"IF('1. Order'!BD226=\"\",\"\",'1. Order'!BD226)","v":""},{"$f":"IF('1. Order'!BE226=\"\",\"\",'1. Order'!BE226)","v":""},{"$f":"IF('1. Order'!BG226=\"\",\"\",'1. Order'!BG226)","v":""},{"$f":"IF('1. Order'!BH226=\"\",\"\",'1. Order'!BH226)","v":""},{"$f":"IF('1. Order'!BI226=\"\",\"\",'1. Order'!BI226)","v":""},{"$f":"IF('1. Order'!BJ226=\"\",\"\",'1. Order'!BJ226)","v":""},{"$f":"IF('1. Order'!BK226=\"\",\"\",'1. Order'!BK226)","v":"ZWO"}]
[{"$f":"IF('1. Order'!G227=\"\",\"\",'1. Order'!G227)","v":""},{"$f":"IF('1. Order'!H227=\"\",\"\",'1. Order'!H227)","v":""},{"$f":"IF('1. Order'!I227=\"\",\"\",'1. Order'!I227)","v":""},{"$f":"IF('1. Order'!J227=\"\",\"\",'1. Order'!J227)","v":""},{"$f":"IF('1. Order'!K227=\"\",\"\",'1. Order'!K227)","v":""},{"$f":"IF('1. Order'!L227=\"\",\"\",'1. Order'!L227)","v":""},{"$f":"IF('1. Order'!M227=\"\",\"\",'1. Order'!M227)","v":""},{"$f":"IF('1. Order'!N227=\"\",\"\",'1. Order'!N227)","v":""},{"$f":"IF('1. Order'!P227=\"\",\"\",'1. Order'!P227)","v":""},{"$f":"IF('1. Order'!Q227=\"\",\"\",'1. Order'!Q227)","v":{"$error":"#N/A"}},{"$f":"IF('1. Order'!R227=\"\",\"\",'1. Order'!R227)","v":{"$error":"#N/A"}},{"$f":"IF('1. Order'!S227=\"\",\"\",'1. Order'!S227)","v":""},{"$f":"IF('1. Order'!T227=\"\",\"\",'1. Order'!T227)","v":""},{"$f":"IF('1. Order'!U227=\"\",\"\",'1. Order'!U227)","v":""},{"$f":"IF('1. Order'!X227=\"\",\"\",'1. Order'!X227)","v":""},{"$f":"IF('1. Order'!Y227=\"\",\"\",'1. Order'!Y227)","v":""},{"$f":"IF('1. Order'!Z227=\"\",\"\",'1. Order'!Z227)","v":""},{"$f":"IF('1. Order'!AC227=\"\",\"\",'1. Order'!AC227)","v":""},{"$f":"IF('1. Order'!AD227=\"\",\"\",'1. Order'!AD227)","v":""},{"$f":"IF('1. Order'!AE227=\"\",\"\",'1. Order'!AE227)","v":""},null,{"$f":"IF('1. Order'!AW227=\"\",\"\",'1. Order'!AW227)","v":""},{"$f":"IF('1. Order'!AX227=\"\",\"\",'1. Order'!AX227)","v":""},null,null,null,null,null,null,null,{"$f":"IF('1. Order'!BB227=\"\",\"\",'1. Order'!BB227)","v":""},{"$f":"IF('1. Order'!BC227=\"\",\"\",'1. Order'!BC227)","v":""},{"$f":"IF('1. Order'!BD227=\"\",\"\",'1. Order'!BD227)","v":""},{"$f":"IF('1. Order'!BE227=\"\",\"\",'1. Order'!BE227)","v":""},{"$f":"IF('1. Order'!BG227=\"\",\"\",'1. Order'!BG227)","v":""},{"$f":"IF('1. Order'!BH227=\"\",\"\",'1. Order'!BH227)","v":""},{"$f":"IF('1. Order'!BI227=\"\",\"\",'1. Order'!BI227)","v":""},{"$f":"IF('1. Order'!BJ227=\"\",\"\",'1. Order'!BJ227)","v":""},{"$f":"IF('1. Order'!BK227=\"\",\"\",'1. Order'!BK227)","v":"ZWO"}]
[{"$f":"IF('1. Order'!G228=\"\",\"\",'1. Order'!G228)","v":""},{"$f":"IF('1. Order'!H228=\"\",\"\",'1. Order'!H228)","v":""},{"$f":"IF('1. Order'!I228=\"\",\"\",'1. Order'!I228)","v":""},{"$f":"IF('1. Order'!J228=\"\",\"\",'1. Order'!J228)","v":""},{"$f":"IF('1. Order'!K228=\"\",\"\",'1. Order'!K228)","v":""},{"$f":"IF('1. Order'!L228=\"\",\"\",'1. Order'!L228)","v":""},{"$f":"IF('1. Order'!M228=\"\",\"\",'1. Order'!M228)","v":""},{"$f":"IF('1. Order'!N228=\"\",\"\",'1. Order'!N228)","v":""},{"$f":"IF('1. Order'!P228=\"\",\"\",'1. Order'!P228)","v":""},{"$f":"IF('1. Order'!Q228=\"\",\"\",'1. Order'!Q228)","v":{"$error":"#N/A"}},{"$f":"IF('1. Order'!R228=\"\",\"\",'1. Order'!R228)","v":{"$error":"#N/A"}},{"$f":"IF('1. Order'!S228=\"\",\"\",'1. Order'!S228)","v":""},{"$f":"IF('1. Order'!T228=\"\",\"\",'1. Order'!T228)","v":""},{"$f":"IF('1. Order'!U228=\"\",\"\",'1. Order'!U228)","v":""},{"$f":"IF('1. Order'!X228=\"\",\"\",'1. Order'!X228)","v":""},{"$f":"IF('1. Order'!Y228=\"\",\"\",'1. Order'!Y228)","v":""},{"$f":"IF('1. Order'!Z228=\"\",\"\",'1. Order'!Z228)","v":""},{"$f":"IF('1. Order'!AC228=\"\",\"\",'1. Order'!AC228)","v":""},{"$f":"IF('1. Order'!AD228=\"\",\"\",'1. Order'!AD228)","v":""},{"$f":"IF('1. Order'!AE228=\"\",\"\",'1. Order'!AE228)","v":""},null,{"$f":"IF('1. Order'!AW228=\"\",\"\",'1. Order'!AW228)","v":""},{"$f":"IF('1. Order'!AX228=\"\",\"\",'1. Order'!AX228)","v":""},null,null,null,null,null,null,null,{"$f":"IF('1. Order'!BB228=\"\",\"\",'1. Order'!BB228)","v":""},{"$f":"IF('1. Order'!BC228=\"\",\"\",'1. Order'!BC228)","v":""},{"$f":"IF('1. Order'!BD228=\"\",\"\",'1. Order'!BD228)","v":""},{"$f":"IF('1. Order'!BE228=\"\",\"\",'1. Order'!BE228)","v":""},{"$f":"IF('1. Order'!BG228=\"\",\"\",'1. Order'!BG228)","v":""},{"$f":"IF('1. Order'!BH228=\"\",\"\",'1. Order'!BH228)","v":""},{"$f":"IF('1. Order'!BI228=\"\",\"\",'1. Order'!BI228)","v":""},{"$f":"IF('1. Order'!BJ228=\"\",\"\",'1. Order'!BJ228)","v":""},{"$f":"IF('1. Order'!BK228=\"\",\"\",'1. Order'!BK228)","v":"ZWO"}]
[{"$f":"IF('1. Order'!G229=\"\",\"\",'1. Order'!G229)","v":""},{"$f":"IF('1. Order'!H229=\"\",\"\",'1. Order'!H229)","v":""},{"$f":"IF('1. Order'!I229=\"\",\"\",'1. Order'!I229)","v":""},{"$f":"IF('1. Order'!J229=\"\",\"\",'1. Order'!J229)","v":""},{"$f":"IF('1. Order'!K229=\"\",\"\",'1. Order'!K229)","v":""},{"$f":"IF('1. Order'!L229=\"\",\"\",'1. Order'!L229)","v":""},{"$f":"IF('1. Order'!M229=\"\",\"\",'1. Order'!M229)","v":""},{"$f":"IF('1. Order'!N229=\"\",\"\",'1. Order'!N229)","v":""},{"$f":"IF('1. Order'!P229=\"\",\"\",'1. Order'!P229)","v":""},{"$f":"IF('1. Order'!Q229=\"\",\"\",'1. Order'!Q229)","v":{"$error":"#N/A"}},{"$f":"IF('1. Order'!R229=\"\",\"\",'1. Order'!R229)","v":{"$error":"#N/A"}},{"$f":"IF('1. Order'!S229=\"\",\"\",'1. Order'!S229)","v":""},{"$f":"IF('1. Order'!T229=\"\",\"\",'1. Order'!T229)","v":""},{"$f":"IF('1. Order'!U229=\"\",\"\",'1. Order'!U229)","v":""},{"$f":"IF('1. Order'!X229=\"\",\"\",'1. Order'!X229)","v":""},{"$f":"IF('1. Order'!Y229=\"\",\"\",'1. Order'!Y229)","v":""},{"$f":"IF('1. Order'!Z229=\"\",\"\",'1. Order'!Z229)","v":""},{"$f":"IF('1. Order'!AC229=\"\",\"\",'1. Order'!AC229)","v":""},{"$f":"IF('1. Order'!AD229=\"\",\"\",'1. Order'!AD229)","v":""},{"$f":"IF('1. Order'!AE229=\"\",\"\",'1. Order'!AE229)","v":""},null,{"$f":"IF('1. Order'!AW229=\"\",\"\",'1. Order'!AW229)","v":""},{"$f":"IF('1. Order'!AX229=\"\",\"\",'1. Order'!AX229)","v":""},null,null,null,null,null,null,null,{"$f":"IF('1. Order'!BB229=\"\",\"\",'1. Order'!BB229)","v":""},{"$f":"IF('1. Order'!BC229=\"\",\"\",'1. Order'!BC229)","v":""},{"$f":"IF('1. Order'!BD229=\"\",\"\",'1. Order'!BD229)","v":""},{"$f":"IF('1. Order'!BE229=\"\",\"\",'1. Order'!BE229)","v":""},{"$f":"IF('1. Order'!BG229=\"\",\"\",'1. Order'!BG229)","v":""},{"$f":"IF('1. Order'!BH229=\"\",\"\",'1. Order'!BH229)","v":""},{"$f":"IF('1. Order'!BI229=\"\",\"\",'1. Order'!BI229)","v":""},{"$f":"IF('1. Order'!BJ229=\"\",\"\",'1. Order'!BJ229)","v":""},{"$f":"IF('1. Order'!BK229=\"\",\"\",'1. Order'!BK229)","v":"ZWO"}]
[{"$f":"IF('1. Order'!G230=\"\",\"\",'1. Order'!G230)","v":""},{"$f":"IF('1. Order'!H230=\"\",\"\",'1. Order'!H230)","v":""},{"$f":"IF('1. Order'!I230=\"\",\"\",'1. Order'!I230)","v":""},{"$f":"IF('1. Order'!J230=\"\",\"\",'1. Order'!J230)","v":""},{"$f":"IF('1. Order'!K230=\"\",\"\",'1. Order'!K230)","v":""},{"$f":"IF('1. Order'!L230=\"\",\"\",'1. Order'!L230)","v":""},{"$f":"IF('1. Order'!M230=\"\",\"\",'1. Order'!M230)","v":""},{"$f":"IF('1. Order'!N230=\"\",\"\",'1. Order'!N230)","v":""},{"$f":"IF('1. Order'!P230=\"\",\"\",'1. Order'!P230)","v":""},{"$f":"IF('1. Order'!Q230=\"\",\"\",'1. Order'!Q230)","v":{"$error":"#N/A"}},{"$f":"IF('1. Order'!R230=\"\",\"\",'1. Order'!R230)","v":{"$error":"#N/A"}},{"$f":"IF('1. Order'!S230=\"\",\"\",'1. Order'!S230)","v":""},{"$f":"IF('1. Order'!T230=\"\",\"\",'1. Order'!T230)","v":""},{"$f":"IF('1. Order'!U230=\"\",\"\",'1. Order'!U230)","v":""},{"$f":"IF('1. Order'!X230=\"\",\"\",'1. Order'!X230)","v":""},{"$f":"IF('1. Order'!Y230=\"\",\"\",'1. Order'!Y230)","v":""},{"$f":"IF('1. Order'!Z230=\"\",\"\",'1. Order'!Z230)","v":""},{"$f":"IF('1. Order'!AC230=\"\",\"\",'1. Order'!AC230)","v":""},{"$f":"IF('1. Order'!AD230=\"\",\"\",'1. Order'!AD230)","v":""},{"$f":"IF('1. Order'!AE230=\"\",\"\",'1. Order'!AE230)","v":""},null,{"$f":"IF('1. Order'!AW230=\"\",\"\",'1. Order'!AW230)","v":""},{"$f":"IF('1. Order'!AX230=\"\",\"\",'1. Order'!AX230)","v":""},null,null,null,null,null,null,null,{"$f":"IF('1. Order'!BB230=\"\",\"\",'1. Order'!BB230)","v":""},{"$f":"IF('1. Order'!BC230=\"\",\"\",'1. Order'!BC230)","v":""},{"$f":"IF('1. Order'!BD230=\"\",\"\",'1. Order'!BD230)","v":""},{"$f":"IF('1. Order'!BE230=\"\",\"\",'1. Order'!BE230)","v":""},{"$f":"IF('1. Order'!BG230=\"\",\"\",'1. Order'!BG230)","v":""},{"$f":"IF('1. Order'!BH230=\"\",\"\",'1. Order'!BH230)","v":""},{"$f":"IF('1. Order'!BI230=\"\",\"\",'1. Order'!BI230)","v":""},{"$f":"IF('1. Order'!BJ230=\"\",\"\",'1. Order'!BJ230)","v":""},{"$f":"IF('1. Order'!BK230=\"\",\"\",'1. Order'!BK230)","v":"ZWO"}]
[{"$f":"IF('1. Order'!G231=\"\",\"\",'1. Order'!G231)","v":""},{"$f":"IF('1. Order'!H231=\"\",\"\",'1. Order'!H231)","v":""},{"$f":"IF('1. Order'!I231=\"\",\"\",'1. Order'!I231)","v":""},{"$f":"IF('1. Order'!J231=\"\",\"\",'1. Order'!J231)","v":""},{"$f":"IF('1. Order'!K231=\"\",\"\",'1. Order'!K231)","v":""},{"$f":"IF('1. Order'!L231=\"\",\"\",'1. Order'!L231)","v":""},{"$f":"IF('1. Order'!M231=\"\",\"\",'1. Order'!M231)","v":""},{"$f":"IF('1. Order'!N231=\"\",\"\",'1. Order'!N231)","v":""},{"$f":"IF('1. Order'!P231=\"\",\"\",'1. Order'!P231)","v":""},{"$f":"IF('1. Order'!Q231=\"\",\"\",'1. Order'!Q231)","v":{"$error":"#N/A"}},{"$f":"IF('1. Order'!R231=\"\",\"\",'1. Order'!R231)","v":{"$error":"#N/A"}},{"$f":"IF('1. Order'!S231=\"\",\"\",'1. Order'!S231)","v":""},{"$f":"IF('1. Order'!T231=\"\",\"\",'1. Order'!T231)","v":""},{"$f":"IF('1. Order'!U231=\"\",\"\",'1. Order'!U231)","v":""},{"$f":"IF('1. Order'!X231=\"\",\"\",'1. Order'!X231)","v":""},{"$f":"IF('1. Order'!Y231=\"\",\"\",'1. Order'!Y231)","v":""},{"$f":"IF('1. Order'!Z231=\"\",\"\",'1. Order'!Z231)","v":""},{"$f":"IF('1. Order'!AC231=\"\",\"\",'1. Order'!AC231)","v":""},{"$f":"IF('1. Order'!AD231=\"\",\"\",'1. Order'!AD231)","v":""},{"$f":"IF('1. Order'!AE231=\"\",\"\",'1. Order'!AE231)","v":""},null,{"$f":"IF('1. Order'!AW231=\"\",\"\",'1. Order'!AW231)","v":""},{"$f":"IF('1. Order'!AX231=\"\",\"\",'1. Order'!AX231)","v":""},null,null,null,null,null,null,null,{"$f":"IF('1. Order'!BB231=\"\",\"\",'1. Order'!BB231)","v":""},{"$f":"IF('1. Order'!BC231=\"\",\"\",'1. Order'!BC231)","v":""},{"$f":"IF('1. Order'!BD231=\"\",\"\",'1. Order'!BD231)","v":""},{"$f":"IF('1. Order'!BE231=\"\",\"\",'1. Order'!BE231)","v":""},{"$f":"IF('1. Order'!BG231=\"\",\"\",'1. Order'!BG231)","v":""},{"$f":"IF('1. Order'!BH231=\"\",\"\",'1. Order'!BH231)","v":""},{"$f":"IF('1. Order'!BI231=\"\",\"\",'1. Order'!BI231)","v":""},{"$f":"IF('1. Order'!BJ231=\"\",\"\",'1. Order'!BJ231)","v":""},{"$f":"IF('1. Order'!BK231=\"\",\"\",'1. Order'!BK231)","v":"ZWO"}]
[{"$f":"IF('1. Order'!G232=\"\",\"\",'1. Order'!G232)","v":""},{"$f":"IF('1. Order'!H232=\"\",\"\",'1. Order'!H232)","v":""},{"$f":"IF('1. Order'!I232=\"\",\"\",'1. Order'!I232)","v":""},{"$f":"IF('1. Order'!J232=\"\",\"\",'1. Order'!J232)","v":""},{"$f":"IF('1. Order'!K232=\"\",\"\",'1. Order'!K232)","v":""},{"$f":"IF('1. Order'!L232=\"\",\"\",'1. Order'!L232)","v":""},{"$f":"IF('1. Order'!M232=\"\",\"\",'1. Order'!M232)","v":""},{"$f":"IF('1. Order'!N232=\"\",\"\",'1. Order'!N232)","v":""},{"$f":"IF('1. Order'!P232=\"\",\"\",'1. Order'!P232)","v":""},{"$f":"IF('1. Order'!Q232=\"\",\"\",'1. Order'!Q232)","v":{"$error":"#N/A"}},{"$f":"IF('1. Order'!R232=\"\",\"\",'1. Order'!R232)","v":{"$error":"#N/A"}},{"$f":"IF('1. Order'!S232=\"\",\"\",'1. Order'!S232)","v":""},{"$f":"IF('1. Order'!T232=\"\",\"\",'1. Order'!T232)","v":""},{"$f":"IF('1. Order'!U232=\"\",\"\",'1. Order'!U232)","v":""},{"$f":"IF('1. Order'!X232=\"\",\"\",'1. Order'!X232)","v":""},{"$f":"IF('1. Order'!Y232=\"\",\"\",'1. Order'!Y232)","v":""},{"$f":"IF('1. Order'!Z232=\"\",\"\",'1. Order'!Z232)","v":""},{"$f":"IF('1. Order'!AC232=\"\",\"\",'1. Order'!AC232)","v":""},{"$f":"IF('1. Order'!AD232=\"\",\"\",'1. Order'!AD232)","v":""},{"$f":"IF('1. Order'!AE232=\"\",\"\",'1. Order'!AE232)","v":""},null,{"$f":"IF('1. Order'!AW232=\"\",\"\",'1. Order'!AW232)","v":""},{"$f":"IF('1. Order'!AX232=\"\",\"\",'1. Order'!AX232)","v":""},null,null,null,null,null,null,null,{"$f":"IF('1. Order'!BB232=\"\",\"\",'1. Order'!BB232)","v":""},{"$f":"IF('1. Order'!BC232=\"\",\"\",'1. Order'!BC232)","v":""},{"$f":"IF('1. Order'!BD232=\"\",\"\",'1. Order'!BD232)","v":""},{"$f":"IF('1. Order'!BE232=\"\",\"\",'1. Order'!BE232)","v":""},{"$f":"IF('1. Order'!BG232=\"\",\"\",'1. Order'!BG232)","v":""},{"$f":"IF('1. Order'!BH232=\"\",\"\",'1. Order'!BH232)","v":""},{"$f":"IF('1. Order'!BI232=\"\",\"\",'1. Order'!BI232)","v":""},{"$f":"IF('1. Order'!BJ232=\"\",\"\",'1. Order'!BJ232)","v":""},{"$f":"IF('1. Order'!BK232=\"\",\"\",'1. Order'!BK232)","v":"ZWO"}]
[{"$f":"IF('1. Order'!G233=\"\",\"\",'1. Order'!G233)","v":""},{"$f":"IF('1. Order'!H233=\"\",\"\",'1. Order'!H233)","v":""},{"$f":"IF('1. Order'!I233=\"\",\"\",'1. Order'!I233)","v":""},{"$f":"IF('1. Order'!J233=\"\",\"\",'1. Order'!J233)","v":""},{"$f":"IF('1. Order'!K233=\"\",\"\",'1. Order'!K233)","v":""},{"$f":"IF('1. Order'!L233=\"\",\"\",'1. Order'!L233)","v":""},{"$f":"IF('1. Order'!M233=\"\",\"\",'1. Order'!M233)","v":""},{"$f":"IF('1. Order'!N233=\"\",\"\",'1. Order'!N233)","v":""},{"$f":"IF('1. Order'!P233=\"\",\"\",'1. Order'!P233)","v":""},{"$f":"IF('1. Order'!Q233=\"\",\"\",'1. Order'!Q233)","v":{"$error":"#N/A"}},{"$f":"IF('1. Order'!R233=\"\",\"\",'1. Order'!R233)","v":{"$error":"#N/A"}},{"$f":"IF('1. Order'!S233=\"\",\"\",'1. Order'!S233)","v":""},{"$f":"IF('1. Order'!T233=\"\",\"\",'1. Order'!T233)","v":""},{"$f":"IF('1. Order'!U233=\"\",\"\",'1. Order'!U233)","v":""},{"$f":"IF('1. Order'!X233=\"\",\"\",'1. Order'!X233)","v":""},{"$f":"IF('1. Order'!Y233=\"\",\"\",'1. Order'!Y233)","v":""},{"$f":"IF('1. Order'!Z233=\"\",\"\",'1. Order'!Z233)","v":""},{"$f":"IF('1. Order'!AC233=\"\",\"\",'1. Order'!AC233)","v":""},{"$f":"IF('1. Order'!AD233=\"\",\"\",'1. Order'!AD233)","v":""},{"$f":"IF('1. Order'!AE233=\"\",\"\",'1. Order'!AE233)","v":""},null,{"$f":"IF('1. Order'!AW233=\"\",\"\",'1. Order'!AW233)","v":""},{"$f":"IF('1. Order'!AX233=\"\",\"\",'1. Order'!AX233)","v":""},null,null,null,null,null,null,null,{"$f":"IF('1. Order'!BB233=\"\",\"\",'1. Order'!BB233)","v":""},{"$f":"IF('1. Order'!BC233=\"\",\"\",'1. Order'!BC233)","v":""},{"$f":"IF('1. Order'!BD233=\"\",\"\",'1. Order'!BD233)","v":""},{"$f":"IF('1. Order'!BE233=\"\",\"\",'1. Order'!BE233)","v":""},{"$f":"IF('1. Order'!BG233=\"\",\"\",'1. Order'!BG233)","v":""},{"$f":"IF('1. Order'!BH233=\"\",\"\",'1. Order'!BH233)","v":""},{"$f":"IF('1. Order'!BI233=\"\",\"\",'1. Order'!BI233)","v":""},{"$f":"IF('1. Order'!BJ233=\"\",\"\",'1. Order'!BJ233)","v":""},{"$f":"IF('1. Order'!BK233=\"\",\"\",'1. Order'!BK233)","v":"ZWO"}]
[{"$f":"IF('1. Order'!G234=\"\",\"\",'1. Order'!G234)","v":""},{"$f":"IF('1. Order'!H234=\"\",\"\",'1. Order'!H234)","v":""},{"$f":"IF('1. Order'!I234=\"\",\"\",'1. Order'!I234)","v":""},{"$f":"IF('1. Order'!J234=\"\",\"\",'1. Order'!J234)","v":""},{"$f":"IF('1. Order'!K234=\"\",\"\",'1. Order'!K234)","v":""},{"$f":"IF('1. Order'!L234=\"\",\"\",'1. Order'!L234)","v":""},{"$f":"IF('1. Order'!M234=\"\",\"\",'1. Order'!M234)","v":""},{"$f":"IF('1. Order'!N234=\"\",\"\",'1. Order'!N234)","v":""},{"$f":"IF('1. Order'!P234=\"\",\"\",'1. Order'!P234)","v":""},{"$f":"IF('1. Order'!Q234=\"\",\"\",'1. Order'!Q234)","v":{"$error":"#N/A"}},{"$f":"IF('1. Order'!R234=\"\",\"\",'1. Order'!R234)","v":{"$error":"#N/A"}},{"$f":"IF('1. Order'!S234=\"\",\"\",'1. Order'!S234)","v":""},{"$f":"IF('1. Order'!T234=\"\",\"\",'1. Order'!T234)","v":""},{"$f":"IF('1. Order'!U234=\"\",\"\",'1. Order'!U234)","v":""},{"$f":"IF('1. Order'!X234=\"\",\"\",'1. Order'!X234)","v":""},{"$f":"IF('1. Order'!Y234=\"\",\"\",'1. Order'!Y234)","v":""},{"$f":"IF('1. Order'!Z234=\"\",\"\",'1. Order'!Z234)","v":""},{"$f":"IF('1. Order'!AC234=\"\",\"\",'1. Order'!AC234)","v":""},{"$f":"IF('1. Order'!AD234=\"\",\"\",'1. Order'!AD234)","v":""},{"$f":"IF('1. Order'!AE234=\"\",\"\",'1. Order'!AE234)","v":""},null,{"$f":"IF('1. Order'!AW234=\"\",\"\",'1. Order'!AW234)","v":""},{"$f":"IF('1. Order'!AX234=\"\",\"\",'1. Order'!AX234)","v":""},null,null,null,null,null,null,null,{"$f":"IF('1. Order'!BB234=\"\",\"\",'1. Order'!BB234)","v":""},{"$f":"IF('1. Order'!BC234=\"\",\"\",'1. Order'!BC234)","v":""},{"$f":"IF('1. Order'!BD234=\"\",\"\",'1. Order'!BD234)","v":""},{"$f":"IF('1. Order'!BE234=\"\",\"\",'1. Order'!BE234)","v":""},{"$f":"IF('1. Order'!BG234=\"\",\"\",'1. Order'!BG234)","v":""},{"$f":"IF('1. Order'!BH234=\"\",\"\",'1. Order'!BH234)","v":""},{"$f":"IF('1. Order'!BI234=\"\",\"\",'1. Order'!BI234)","v":""},{"$f":"IF('1. Order'!BJ234=\"\",\"\",'1. Order'!BJ234)","v":""},{"$f":"IF('1. Order'!BK234=\"\",\"\",'1. Order'!BK234)","v":"ZWO"}]
[{"$f":"IF('1. Order'!G235=\"\",\"\",'1. Order'!G235)","v":""},{"$f":"IF('1. Order'!H235=\"\",\"\",'1. Order'!H235)","v":""},{"$f":"IF('1. Order'!I235=\"\",\"\",'1. Order'!I235)","v":""},{"$f":"IF('1. Order'!J235=\"\",\"\",'1. Order'!J235)","v":""},{"$f":"IF('1. Order'!K235=\"\",\"\",'1. Order'!K235)","v":""},{"$f":"IF('1. Order'!L235=\"\",\"\",'1. Order'!L235)","v":""},{"$f":"IF('1. Order'!M235=\"\",\"\",'1. Order'!M235)","v":""},{"$f":"IF('1. Order'!N235=\"\",\"\",'1. Order'!N235)","v":""},{"$f":"IF('1. Order'!P235=\"\",\"\",'1. Order'!P235)","v":""},{"$f":"IF('1. Order'!Q235=\"\",\"\",'1. Order'!Q235)","v":{"$error":"#N/A"}},{"$f":"IF('1. Order'!R235=\"\",\"\",'1. Order'!R235)","v":{"$error":"#N/A"}},{"$f":"IF('1. Order'!S235=\"\",\"\",'1. Order'!S235)","v":""},{"$f":"IF('1. Order'!T235=\"\",\"\",'1. Order'!T235)","v":""},{"$f":"IF('1. Order'!U235=\"\",\"\",'1. Order'!U235)","v":""},{"$f":"IF('1. Order'!X235=\"\",\"\",'1. Order'!X235)","v":""},{"$f":"IF('1. Order'!Y235=\"\",\"\",'1. Order'!Y235)","v":""},{"$f":"IF('1. Order'!Z235=\"\",\"\",'1. Order'!Z235)","v":""},{"$f":"IF('1. Order'!AC235=\"\",\"\",'1. Order'!AC235)","v":""},{"$f":"IF('1. Order'!AD235=\"\",\"\",'1. Order'!AD235)","v":""},{"$f":"IF('1. Order'!AE235=\"\",\"\",'1. Order'!AE235)","v":""},null,{"$f":"IF('1. Order'!AW235=\"\",\"\",'1. Order'!AW235)","v":""},{"$f":"IF('1. Order'!AX235=\"\",\"\",'1. Order'!AX235)","v":""},null,null,null,null,null,null,null,{"$f":"IF('1. Order'!BB235=\"\",\"\",'1. Order'!BB235)","v":""},{"$f":"IF('1. Order'!BC235=\"\",\"\",'1. Order'!BC235)","v":""},{"$f":"IF('1. Order'!BD235=\"\",\"\",'1. Order'!BD235)","v":""},{"$f":"IF('1. Order'!BE235=\"\",\"\",'1. Order'!BE235)","v":""},{"$f":"IF('1. Order'!BG235=\"\",\"\",'1. Order'!BG235)","v":""},{"$f":"IF('1. Order'!BH235=\"\",\"\",'1. Order'!BH235)","v":""},{"$f":"IF('1. Order'!BI235=\"\",\"\",'1. Order'!BI235)","v":""},{"$f":"IF('1. Order'!BJ235=\"\",\"\",'1. Order'!BJ235)","v":""},{"$f":"IF('1. Order'!BK235=\"\",\"\",'1. Order'!BK235)","v":"ZWO"}]
[{"$f":"IF('1. Order'!G236=\"\",\"\",'1. Order'!G236)","v":""},{"$f":"IF('1. Order'!H236=\"\",\"\",'1. Order'!H236)","v":""},{"$f":"IF('1. Order'!I236=\"\",\"\",'1. Order'!I236)","v":""},{"$f":"IF('1. Order'!J236=\"\",\"\",'1. Order'!J236)","v":""},{"$f":"IF('1. Order'!K236=\"\",\"\",'1. Order'!K236)","v":""},{"$f":"IF('1. Order'!L236=\"\",\"\",'1. Order'!L236)","v":""},{"$f":"IF('1. Order'!M236=\"\",\"\",'1. Order'!M236)","v":""},{"$f":"IF('1. Order'!N236=\"\",\"\",'1. Order'!N236)","v":""},{"$f":"IF('1. Order'!P236=\"\",\"\",'1. Order'!P236)","v":""},{"$f":"IF('1. Order'!Q236=\"\",\"\",'1. Order'!Q236)","v":{"$error":"#N/A"}},{"$f":"IF('1. Order'!R236=\"\",\"\",'1. Order'!R236)","v":{"$error":"#N/A"}},{"$f":"IF('1. Order'!S236=\"\",\"\",'1. Order'!S236)","v":""},{"$f":"IF('1. Order'!T236=\"\",\"\",'1. Order'!T236)","v":""},{"$f":"IF('1. Order'!U236=\"\",\"\",'1. Order'!U236)","v":""},{"$f":"IF('1. Order'!X236=\"\",\"\",'1. Order'!X236)","v":""},{"$f":"IF('1. Order'!Y236=\"\",\"\",'1. Order'!Y236)","v":""},{"$f":"IF('1. Order'!Z236=\"\",\"\",'1. Order'!Z236)","v":""},{"$f":"IF('1. Order'!AC236=\"\",\"\",'1. Order'!AC236)","v":""},{"$f":"IF('1. Order'!AD236=\"\",\"\",'1. Order'!AD236)","v":""},{"$f":"IF('1. Order'!AE236=\"\",\"\",'1. Order'!AE236)","v":""},null,{"$f":"IF('1. Order'!AW236=\"\",\"\",'1. Order'!AW236)","v":""},{"$f":"IF('1. Order'!AX236=\"\",\"\",'1. Order'!AX236)","v":""},null,null,null,null,null,null,null,{"$f":"IF('1. Order'!BB236=\"\",\"\",'1. Order'!BB236)","v":""},{"$f":"IF('1. Order'!BC236=\"\",\"\",'1. Order'!BC236)","v":""},{"$f":"IF('1. Order'!BD236=\"\",\"\",'1. Order'!BD236)","v":""},{"$f":"IF('1. Order'!BE236=\"\",\"\",'1. Order'!BE236)","v":""},{"$f":"IF('1. Order'!BG236=\"\",\"\",'1. Order'!BG236)","v":""},{"$f":"IF('1. Order'!BH236=\"\",\"\",'1. Order'!BH236)","v":""},{"$f":"IF('1. Order'!BI236=\"\",\"\",'1. Order'!BI236)","v":""},{"$f":"IF('1. Order'!BJ236=\"\",\"\",'1. Order'!BJ236)","v":""},{"$f":"IF('1. Order'!BK236=\"\",\"\",'1. Order'!BK236)","v":"ZWO"}]
[{"$f":"IF('1. Order'!G237=\"\",\"\",'1. Order'!G237)","v":""},{"$f":"IF('1. Order'!H237=\"\",\"\",'1. Order'!H237)","v":""},{"$f":"IF('1. Order'!I237=\"\",\"\",'1. Order'!I237)","v":""},{"$f":"IF('1. Order'!J237=\"\",\"\",'1. Order'!J237)","v":""},{"$f":"IF('1. Order'!K237=\"\",\"\",'1. Order'!K237)","v":""},{"$f":"IF('1. Order'!L237=\"\",\"\",'1. Order'!L237)","v":""},{"$f":"IF('1. Order'!M237=\"\",\"\",'1. Order'!M237)","v":""},{"$f":"IF('1. Order'!N237=\"\",\"\",'1. Order'!N237)","v":""},{"$f":"IF('1. Order'!P237=\"\",\"\",'1. Order'!P237)","v":""},{"$f":"IF('1. Order'!Q237=\"\",\"\",'1. Order'!Q237)","v":{"$error":"#N/A"}},{"$f":"IF('1. Order'!R237=\"\",\"\",'1. Order'!R237)","v":{"$error":"#N/A"}},{"$f":"IF('1. Order'!S237=\"\",\"\",'1. Order'!S237)","v":""},{"$f":"IF('1. Order'!T237=\"\",\"\",'1. Order'!T237)","v":""},{"$f":"IF('1. Order'!U237=\"\",\"\",'1. Order'!U237)","v":""},{"$f":"IF('1. Order'!X237=\"\",\"\",'1. Order'!X237)","v":""},{"$f":"IF('1. Order'!Y237=\"\",\"\",'1. Order'!Y237)","v":""},{"$f":"IF('1. Order'!Z237=\"\",\"\",'1. Order'!Z237)","v":""},{"$f":"IF('1. Order'!AC237=\"\",\"\",'1. Order'!AC237)","v":""},{"$f":"IF('1. Order'!AD237=\"\",\"\",'1. Order'!AD237)","v":""},{"$f":"IF('1. Order'!AE237=\"\",\"\",'1. Order'!AE237)","v":""},null,{"$f":"IF('1. Order'!AW237=\"\",\"\",'1. Order'!AW237)","v":""},{"$f":"IF('1. Order'!AX237=\"\",\"\",'1. Order'!AX237)","v":""},null,null,null,null,null,null,null,{"$f":"IF('1. Order'!BB237=\"\",\"\",'1. Order'!BB237)","v":""},{"$f":"IF('1. Order'!BC237=\"\",\"\",'1. Order'!BC237)","v":""},{"$f":"IF('1. Order'!BD237=\"\",\"\",'1. Order'!BD237)","v":""},{"$f":"IF('1. Order'!BE237=\"\",\"\",'1. Order'!BE237)","v":""},{"$f":"IF('1. Order'!BG237=\"\",\"\",'1. Order'!BG237)","v":""},{"$f":"IF('1. Order'!BH237=\"\",\"\",'1. Order'!BH237)","v":""},{"$f":"IF('1. Order'!BI237=\"\",\"\",'1. Order'!BI237)","v":""},{"$f":"IF('1. Order'!BJ237=\"\",\"\",'1. Order'!BJ237)","v":""},{"$f":"IF('1. Order'!BK237=\"\",\"\",'1. Order'!BK237)","v":"ZWO"}]
[{"$f":"IF('1. Order'!G238=\"\",\"\",'1. Order'!G238)","v":""},{"$f":"IF('1. Order'!H238=\"\",\"\",'1. Order'!H238)","v":""},{"$f":"IF('1. Order'!I238=\"\",\"\",'1. Order'!I238)","v":""},{"$f":"IF('1. Order'!J238=\"\",\"\",'1. Order'!J238)","v":""},{"$f":"IF('1. Order'!K238=\"\",\"\",'1. Order'!K238)","v":""},{"$f":"IF('1. Order'!L238=\"\",\"\",'1. Order'!L238)","v":""},{"$f":"IF('1. Order'!M238=\"\",\"\",'1. Order'!M238)","v":""},{"$f":"IF('1. Order'!N238=\"\",\"\",'1. Order'!N238)","v":""},{"$f":"IF('1. Order'!P238=\"\",\"\",'1. Order'!P238)","v":""},{"$f":"IF('1. Order'!Q238=\"\",\"\",'1. Order'!Q238)","v":{"$error":"#N/A"}},{"$f":"IF('1. Order'!R238=\"\",\"\",'1. Order'!R238)","v":{"$error":"#N/A"}},{"$f":"IF('1. Order'!S238=\"\",\"\",'1. Order'!S238)","v":""},{"$f":"IF('1. Order'!T238=\"\",\"\",'1. Order'!T238)","v":""},{"$f":"IF('1. Order'!U238=\"\",\"\",'1. Order'!U238)","v":""},{"$f":"IF('1. Order'!X238=\"\",\"\",'1. Order'!X238)","v":""},{"$f":"IF('1. Order'!Y238=\"\",\"\",'1. Order'!Y238)","v":""},{"$f":"IF('1. Order'!Z238=\"\",\"\",'1. Order'!Z238)","v":""},{"$f":"IF('1. Order'!AC238=\"\",\"\",'1. Order'!AC238)","v":""},{"$f":"IF('1. Order'!AD238=\"\",\"\",'1. Order'!AD238)","v":""},{"$f":"IF('1. Order'!AE238=\"\",\"\",'1. Order'!AE238)","v":""},null,{"$f":"IF('1. Order'!AW238=\"\",\"\",'1. Order'!AW238)","v":""},{"$f":"IF('1. Order'!AX238=\"\",\"\",'1. Order'!AX238)","v":""},null,null,null,null,null,null,null,{"$f":"IF('1. Order'!BB238=\"\",\"\",'1. Order'!BB238)","v":""},{"$f":"IF('1. Order'!BC238=\"\",\"\",'1. Order'!BC238)","v":""},{"$f":"IF('1. Order'!BD238=\"\",\"\",'1. Order'!BD238)","v":""},{"$f":"IF('1. Order'!BE238=\"\",\"\",'1. Order'!BE238)","v":""},{"$f":"IF('1. Order'!BG238=\"\",\"\",'1. Order'!BG238)","v":""},{"$f":"IF('1. Order'!BH238=\"\",\"\",'1. Order'!BH238)","v":""},{"$f":"IF('1. Order'!BI238=\"\",\"\",'1. Order'!BI238)","v":""},{"$f":"IF('1. Order'!BJ238=\"\",\"\",'1. Order'!BJ238)","v":""},{"$f":"IF('1. Order'!BK238=\"\",\"\",'1. Order'!BK238)","v":"ZWO"}]
[{"$f":"IF('1. Order'!G239=\"\",\"\",'1. Order'!G239)","v":""},{"$f":"IF('1. Order'!H239=\"\",\"\",'1. Order'!H239)","v":""},{"$f":"IF('1. Order'!I239=\"\",\"\",'1. Order'!I239)","v":""},{"$f":"IF('1. Order'!J239=\"\",\"\",'1. Order'!J239)","v":""},{"$f":"IF('1. Order'!K239=\"\",\"\",'1. Order'!K239)","v":""},{"$f":"IF('1. Order'!L239=\"\",\"\",'1. Order'!L239)","v":""},{"$f":"IF('1. Order'!M239=\"\",\"\",'1. Order'!M239)","v":""},{"$f":"IF('1. Order'!N239=\"\",\"\",'1. Order'!N239)","v":""},{"$f":"IF('1. Order'!P239=\"\",\"\",'1. Order'!P239)","v":""},{"$f":"IF('1. Order'!Q239=\"\",\"\",'1. Order'!Q239)","v":{"$error":"#N/A"}},{"$f":"IF('1. Order'!R239=\"\",\"\",'1. Order'!R239)","v":{"$error":"#N/A"}},{"$f":"IF('1. Order'!S239=\"\",\"\",'1. Order'!S239)","v":""},{"$f":"IF('1. Order'!T239=\"\",\"\",'1. Order'!T239)","v":""},{"$f":"IF('1. Order'!U239=\"\",\"\",'1. Order'!U239)","v":""},{"$f":"IF('1. Order'!X239=\"\",\"\",'1. Order'!X239)","v":""},{"$f":"IF('1. Order'!Y239=\"\",\"\",'1. Order'!Y239)","v":""},{"$f":"IF('1. Order'!Z239=\"\",\"\",'1. Order'!Z239)","v":""},{"$f":"IF('1. Order'!AC239=\"\",\"\",'1. Order'!AC239)","v":""},{"$f":"IF('1. Order'!AD239=\"\",\"\",'1. Order'!AD239)","v":""},{"$f":"IF('1. Order'!AE239=\"\",\"\",'1. Order'!AE239)","v":""},null,{"$f":"IF('1. Order'!AW239=\"\",\"\",'1. Order'!AW239)","v":""},{"$f":"IF('1. Order'!AX239=\"\",\"\",'1. Order'!AX239)","v":""},null,null,null,null,null,null,null,{"$f":"IF('1. Order'!BB239=\"\",\"\",'1. Order'!BB239)","v":""},{"$f":"IF('1. Order'!BC239=\"\",\"\",'1. Order'!BC239)","v":""},{"$f":"IF('1. Order'!BD239=\"\",\"\",'1. Order'!BD239)","v":""},{"$f":"IF('1. Order'!BE239=\"\",\"\",'1. Order'!BE239)","v":""},{"$f":"IF('1. Order'!BG239=\"\",\"\",'1. Order'!BG239)","v":""},{"$f":"IF('1. Order'!BH239=\"\",\"\",'1. Order'!BH239)","v":""},{"$f":"IF('1. Order'!BI239=\"\",\"\",'1. Order'!BI239)","v":""},{"$f":"IF('1. Order'!BJ239=\"\",\"\",'1. Order'!BJ239)","v":""},{"$f":"IF('1. Order'!BK239=\"\",\"\",'1. Order'!BK239)","v":"ZWO"}]
[{"$f":"IF('1. Order'!G240=\"\",\"\",'1. Order'!G240)","v":""},{"$f":"IF('1. Order'!H240=\"\",\"\",'1. Order'!H240)","v":""},{"$f":"IF('1. Order'!I240=\"\",\"\",'1. Order'!I240)","v":""},{"$f":"IF('1. Order'!J240=\"\",\"\",'1. Order'!J240)","v":""},{"$f":"IF('1. Order'!K240=\"\",\"\",'1. Order'!K240)","v":""},{"$f":"IF('1. Order'!L240=\"\",\"\",'1. Order'!L240)","v":""},{"$f":"IF('1. Order'!M240=\"\",\"\",'1. Order'!M240)","v":""},{"$f":"IF('1. Order'!N240=\"\",\"\",'1. Order'!N240)","v":""},{"$f":"IF('1. Order'!P240=\"\",\"\",'1. Order'!P240)","v":""},{"$f":"IF('1. Order'!Q240=\"\",\"\",'1. Order'!Q240)","v":{"$error":"#N/A"}},{"$f":"IF('1. Order'!R240=\"\",\"\",'1. Order'!R240)","v":{"$error":"#N/A"}},{"$f":"IF('1. Order'!S240=\"\",\"\",'1. Order'!S240)","v":""},{"$f":"IF('1. Order'!T240=\"\",\"\",'1. Order'!T240)","v":""},{"$f":"IF('1. Order'!U240=\"\",\"\",'1. Order'!U240)","v":""},{"$f":"IF('1. Order'!X240=\"\",\"\",'1. Order'!X240)","v":""},{"$f":"IF('1. Order'!Y240=\"\",\"\",'1. Order'!Y240)","v":""},{"$f":"IF('1. Order'!Z240=\"\",\"\",'1. Order'!Z240)","v":""},{"$f":"IF('1. Order'!AC240=\"\",\"\",'1. Order'!AC240)","v":""},{"$f":"IF('1. Order'!AD240=\"\",\"\",'1. Order'!AD240)","v":""},{"$f":"IF('1. Order'!AE240=\"\",\"\",'1. Order'!AE240)","v":""},null,{"$f":"IF('1. Order'!AW240=\"\",\"\",'1. Order'!AW240)","v":""},{"$f":"IF('1. Order'!AX240=\"\",\"\",'1. Order'!AX240)","v":""},null,null,null,null,null,null,null,{"$f":"IF('1. Order'!BB240=\"\",\"\",'1. Order'!BB240)","v":""},{"$f":"IF('1. Order'!BC240=\"\",\"\",'1. Order'!BC240)","v":""},{"$f":"IF('1. Order'!BD240=\"\",\"\",'1. Order'!BD240)","v":""},{"$f":"IF('1. Order'!BE240=\"\",\"\",'1. Order'!BE240)","v":""},{"$f":"IF('1. Order'!BG240=\"\",\"\",'1. Order'!BG240)","v":""},{"$f":"IF('1. Order'!BH240=\"\",\"\",'1. Order'!BH240)","v":""},{"$f":"IF('1. Order'!BI240=\"\",\"\",'1. Order'!BI240)","v":""},{"$f":"IF('1. Order'!BJ240=\"\",\"\",'1. Order'!BJ240)","v":""},{"$f":"IF('1. Order'!BK240=\"\",\"\",'1. Order'!BK240)","v":"ZWO"}]
[{"$f":"IF('1. Order'!G241=\"\",\"\",'1. Order'!G241)","v":""},{"$f":"IF('1. Order'!H241=\"\",\"\",'1. Order'!H241)","v":""},{"$f":"IF('1. Order'!I241=\"\",\"\",'1. Order'!I241)","v":""},{"$f":"IF('1. Order'!J241=\"\",\"\",'1. Order'!J241)","v":""},{"$f":"IF('1. Order'!K241=\"\",\"\",'1. Order'!K241)","v":""},{"$f":"IF('1. Order'!L241=\"\",\"\",'1. Order'!L241)","v":""},{"$f":"IF('1. Order'!M241=\"\",\"\",'1. Order'!M241)","v":""},{"$f":"IF('1. Order'!N241=\"\",\"\",'1. Order'!N241)","v":""},{"$f":"IF('1. Order'!P241=\"\",\"\",'1. Order'!P241)","v":""},{"$f":"IF('1. Order'!Q241=\"\",\"\",'1. Order'!Q241)","v":{"$error":"#N/A"}},{"$f":"IF('1. Order'!R241=\"\",\"\",'1. Order'!R241)","v":{"$error":"#N/A"}},{"$f":"IF('1. Order'!S241=\"\",\"\",'1. Order'!S241)","v":""},{"$f":"IF('1. Order'!T241=\"\",\"\",'1. Order'!T241)","v":""},{"$f":"IF('1. Order'!U241=\"\",\"\",'1. Order'!U241)","v":""},{"$f":"IF('1. Order'!X241=\"\",\"\",'1. Order'!X241)","v":""},{"$f":"IF('1. Order'!Y241=\"\",\"\",'1. Order'!Y241)","v":""},{"$f":"IF('1. Order'!Z241=\"\",\"\",'1. Order'!Z241)","v":""},{"$f":"IF('1. Order'!AC241=\"\",\"\",'1. Order'!AC241)","v":""},{"$f":"IF('1. Order'!AD241=\"\",\"\",'1. Order'!AD241)","v":""},{"$f":"IF('1. Order'!AE241=\"\",\"\",'1. Order'!AE241)","v":""},null,{"$f":"IF('1. Order'!AW241=\"\",\"\",'1. Order'!AW241)","v":""},{"$f":"IF('1. Order'!AX241=\"\",\"\",'1. Order'!AX241)","v":""},null,null,null,null,null,null,null,{"$f":"IF('1. Order'!BB241=\"\",\"\",'1. Order'!BB241)","v":""},{"$f":"IF('1. Order'!BC241=\"\",\"\",'1. Order'!BC241)","v":""},{"$f":"IF('1. Order'!BD241=\"\",\"\",'1. Order'!BD241)","v":""},{"$f":"IF('1. Order'!BE241=\"\",\"\",'1. Order'!BE241)","v":""},{"$f":"IF('1. Order'!BG241=\"\",\"\",'1. Order'!BG241)","v":""},{"$f":"IF('1. Order'!BH241=\"\",\"\",'1. Order'!BH241)","v":""},{"$f":"IF('1. Order'!BI241=\"\",\"\",'1. Order'!BI241)","v":""},{"$f":"IF('1. Order'!BJ241=\"\",\"\",'1. Order'!BJ241)","v":""},{"$f":"IF('1. Order'!BK241=\"\",\"\",'1. Order'!BK241)","v":"ZWO"}]
[{"$f":"IF('1. Order'!G242=\"\",\"\",'1. Order'!G242)","v":""},{"$f":"IF('1. Order'!H242=\"\",\"\",'1. Order'!H242)","v":""},{"$f":"IF('1. Order'!I242=\"\",\"\",'1. Order'!I242)","v":""},{"$f":"IF('1. Order'!J242=\"\",\"\",'1. Order'!J242)","v":""},{"$f":"IF('1. Order'!K242=\"\",\"\",'1. Order'!K242)","v":""},{"$f":"IF('1. Order'!L242=\"\",\"\",'1. Order'!L242)","v":""},{"$f":"IF('1. Order'!M242=\"\",\"\",'1. Order'!M242)","v":""},{"$f":"IF('1. Order'!N242=\"\",\"\",'1. Order'!N242)","v":""},{"$f":"IF('1. Order'!P242=\"\",\"\",'1. Order'!P242)","v":""},{"$f":"IF('1. Order'!Q242=\"\",\"\",'1. Order'!Q242)","v":{"$error":"#N/A"}},{"$f":"IF('1. Order'!R242=\"\",\"\",'1. Order'!R242)","v":{"$error":"#N/A"}},{"$f":"IF('1. Order'!S242=\"\",\"\",'1. Order'!S242)","v":""},{"$f":"IF('1. Order'!T242=\"\",\"\",'1. Order'!T242)","v":""},{"$f":"IF('1. Order'!U242=\"\",\"\",'1. Order'!U242)","v":""},{"$f":"IF('1. Order'!X242=\"\",\"\",'1. Order'!X242)","v":""},{"$f":"IF('1. Order'!Y242=\"\",\"\",'1. Order'!Y242)","v":""},{"$f":"IF('1. Order'!Z242=\"\",\"\",'1. Order'!Z242)","v":""},{"$f":"IF('1. Order'!AC242=\"\",\"\",'1. Order'!AC242)","v":""},{"$f":"IF('1. Order'!AD242=\"\",\"\",'1. Order'!AD242)","v":""},{"$f":"IF('1. Order'!AE242=\"\",\"\",'1. Order'!AE242)","v":""},null,{"$f":"IF('1. Order'!AW242=\"\",\"\",'1. Order'!AW242)","v":""},{"$f":"IF('1. Order'!AX242=\"\",\"\",'1. Order'!AX242)","v":""},null,null,null,null,null,null,null,{"$f":"IF('1. Order'!BB242=\"\",\"\",'1. Order'!BB242)","v":""},{"$f":"IF('1. Order'!BC242=\"\",\"\",'1. Order'!BC242)","v":""},{"$f":"IF('1. Order'!BD242=\"\",\"\",'1. Order'!BD242)","v":""},{"$f":"IF('1. Order'!BE242=\"\",\"\",'1. Order'!BE242)","v":""},{"$f":"IF('1. Order'!BG242=\"\",\"\",'1. Order'!BG242)","v":""},{"$f":"IF('1. Order'!BH242=\"\",\"\",'1. Order'!BH242)","v":""},{"$f":"IF('1. Order'!BI242=\"\",\"\",'1. Order'!BI242)","v":""},{"$f":"IF('1. Order'!BJ242=\"\",\"\",'1. Order'!BJ242)","v":""},{"$f":"IF('1. Order'!BK242=\"\",\"\",'1. Order'!BK242)","v":"ZWO"}]
[{"$f":"IF('1. Order'!G243=\"\",\"\",'1. Order'!G243)","v":""},{"$f":"IF('1. Order'!H243=\"\",\"\",'1. Order'!H243)","v":""},{"$f":"IF('1. Order'!I243=\"\",\"\",'1. Order'!I243)","v":""},{"$f":"IF('1. Order'!J243=\"\",\"\",'1. Order'!J243)","v":""},{"$f":"IF('1. Order'!K243=\"\",\"\",'1. Order'!K243)","v":""},{"$f":"IF('1. Order'!L243=\"\",\"\",'1. Order'!L243)","v":""},{"$f":"IF('1. Order'!M243=\"\",\"\",'1. Order'!M243)","v":""},{"$f":"IF('1. Order'!N243=\"\",\"\",'1. Order'!N243)","v":""},{"$f":"IF('1. Order'!P243=\"\",\"\",'1. Order'!P243)","v":""},{"$f":"IF('1. Order'!Q243=\"\",\"\",'1. Order'!Q243)","v":{"$error":"#N/A"}},{"$f":"IF('1. Order'!R243=\"\",\"\",'1. Order'!R243)","v":{"$error":"#N/A"}},{"$f":"IF('1. Order'!S243=\"\",\"\",'1. Order'!S243)","v":""},{"$f":"IF('1. Order'!T243=\"\",\"\",'1. Order'!T243)","v":""},{"$f":"IF('1. Order'!U243=\"\",\"\",'1. Order'!U243)","v":""},{"$f":"IF('1. Order'!X243=\"\",\"\",'1. Order'!X243)","v":""},{"$f":"IF('1. Order'!Y243=\"\",\"\",'1. Order'!Y243)","v":""},{"$f":"IF('1. Order'!Z243=\"\",\"\",'1. Order'!Z243)","v":""},{"$f":"IF('1. Order'!AC243=\"\",\"\",'1. Order'!AC243)","v":""},{"$f":"IF('1. Order'!AD243=\"\",\"\",'1. Order'!AD243)","v":""},{"$f":"IF('1. Order'!AE243=\"\",\"\",'1. Order'!AE243)","v":""},null,{"$f":"IF('1. Order'!AW243=\"\",\"\",'1. Order'!AW243)","v":""},{"$f":"IF('1. Order'!AX243=\"\",\"\",'1. Order'!AX243)","v":""},null,null,null,null,null,null,null,{"$f":"IF('1. Order'!BB243=\"\",\"\",'1. Order'!BB243)","v":""},{"$f":"IF('1. Order'!BC243=\"\",\"\",'1. Order'!BC243)","v":""},{"$f":"IF('1. Order'!BD243=\"\",\"\",'1. Order'!BD243)","v":""},{"$f":"IF('1. Order'!BE243=\"\",\"\",'1. Order'!BE243)","v":""},{"$f":"IF('1. Order'!BG243=\"\",\"\",'1. Order'!BG243)","v":""},{"$f":"IF('1. Order'!BH243=\"\",\"\",'1. Order'!BH243)","v":""},{"$f":"IF('1. Order'!BI243=\"\",\"\",'1. Order'!BI243)","v":""},{"$f":"IF('1. Order'!BJ243=\"\",\"\",'1. Order'!BJ243)","v":""},{"$f":"IF('1. Order'!BK243=\"\",\"\",'1. Order'!BK243)","v":"ZWO"}]
[{"$f":"IF('1. Order'!G244=\"\",\"\",'1. Order'!G244)","v":""},{"$f":"IF('1. Order'!H244=\"\",\"\",'1. Order'!H244)","v":""},{"$f":"IF('1. Order'!I244=\"\",\"\",'1. Order'!I244)","v":""},{"$f":"IF('1. Order'!J244=\"\",\"\",'1. Order'!J244)","v":""},{"$f":"IF('1. Order'!K244=\"\",\"\",'1. Order'!K244)","v":""},{"$f":"IF('1. Order'!L244=\"\",\"\",'1. Order'!L244)","v":""},{"$f":"IF('1. Order'!M244=\"\",\"\",'1. Order'!M244)","v":""},{"$f":"IF('1. Order'!N244=\"\",\"\",'1. Order'!N244)","v":""},{"$f":"IF('1. Order'!P244=\"\",\"\",'1. Order'!P244)","v":""},{"$f":"IF('1. Order'!Q244=\"\",\"\",'1. Order'!Q244)","v":{"$error":"#N/A"}},{"$f":"IF('1. Order'!R244=\"\",\"\",'1. Order'!R244)","v":{"$error":"#N/A"}},{"$f":"IF('1. Order'!S244=\"\",\"\",'1. Order'!S244)","v":""},{"$f":"IF('1. Order'!T244=\"\",\"\",'1. Order'!T244)","v":""},{"$f":"IF('1. Order'!U244=\"\",\"\",'1. Order'!U244)","v":""},{"$f":"IF('1. Order'!X244=\"\",\"\",'1. Order'!X244)","v":""},{"$f":"IF('1. Order'!Y244=\"\",\"\",'1. Order'!Y244)","v":""},{"$f":"IF('1. Order'!Z244=\"\",\"\",'1. Order'!Z244)","v":""},{"$f":"IF('1. Order'!AC244=\"\",\"\",'1. Order'!AC244)","v":""},{"$f":"IF('1. Order'!AD244=\"\",\"\",'1. Order'!AD244)","v":""},{"$f":"IF('1. Order'!AE244=\"\",\"\",'1. Order'!AE244)","v":""},null,{"$f":"IF('1. Order'!AW244=\"\",\"\",'1. Order'!AW244)","v":""},{"$f":"IF('1. Order'!AX244=\"\",\"\",'1. Order'!AX244)","v":""},null,null,null,null,null,null,null,{"$f":"IF('1. Order'!BB244=\"\",\"\",'1. Order'!BB244)","v":""},{"$f":"IF('1. Order'!BC244=\"\",\"\",'1. Order'!BC244)","v":""},{"$f":"IF('1. Order'!BD244=\"\",\"\",'1. Order'!BD244)","v":""},{"$f":"IF('1. Order'!BE244=\"\",\"\",'1. Order'!BE244)","v":""},{"$f":"IF('1. Order'!BG244=\"\",\"\",'1. Order'!BG244)","v":""},{"$f":"IF('1. Order'!BH244=\"\",\"\",'1. Order'!BH244)","v":""},{"$f":"IF('1. Order'!BI244=\"\",\"\",'1. Order'!BI244)","v":""},{"$f":"IF('1. Order'!BJ244=\"\",\"\",'1. Order'!BJ244)","v":""},{"$f":"IF('1. Order'!BK244=\"\",\"\",'1. Order'!BK244)","v":"ZWO"}]
[{"$f":"IF('1. Order'!G245=\"\",\"\",'1. Order'!G245)","v":""},{"$f":"IF('1. Order'!H245=\"\",\"\",'1. Order'!H245)","v":""},{"$f":"IF('1. Order'!I245=\"\",\"\",'1. Order'!I245)","v":""},{"$f":"IF('1. Order'!J245=\"\",\"\",'1. Order'!J245)","v":""},{"$f":"IF('1. Order'!K245=\"\",\"\",'1. Order'!K245)","v":""},{"$f":"IF('1. Order'!L245=\"\",\"\",'1. Order'!L245)","v":""},{"$f":"IF('1. Order'!M245=\"\",\"\",'1. Order'!M245)","v":""},{"$f":"IF('1. Order'!N245=\"\",\"\",'1. Order'!N245)","v":""},{"$f":"IF('1. Order'!P245=\"\",\"\",'1. Order'!P245)","v":""},{"$f":"IF('1. Order'!Q245=\"\",\"\",'1. Order'!Q245)","v":{"$error":"#N/A"}},{"$f":"IF('1. Order'!R245=\"\",\"\",'1. Order'!R245)","v":{"$error":"#N/A"}},{"$f":"IF('1. Order'!S245=\"\",\"\",'1. Order'!S245)","v":""},{"$f":"IF('1. Order'!T245=\"\",\"\",'1. Order'!T245)","v":""},{"$f":"IF('1. Order'!U245=\"\",\"\",'1. Order'!U245)","v":""},{"$f":"IF('1. Order'!X245=\"\",\"\",'1. Order'!X245)","v":""},{"$f":"IF('1. Order'!Y245=\"\",\"\",'1. Order'!Y245)","v":""},{"$f":"IF('1. Order'!Z245=\"\",\"\",'1. Order'!Z245)","v":""},{"$f":"IF('1. Order'!AC245=\"\",\"\",'1. Order'!AC245)","v":""},{"$f":"IF('1. Order'!AD245=\"\",\"\",'1. Order'!AD245)","v":""},{"$f":"IF('1. Order'!AE245=\"\",\"\",'1. Order'!AE245)","v":""},null,{"$f":"IF('1. Order'!AW245=\"\",\"\",'1. Order'!AW245)","v":""},{"$f":"IF('1. Order'!AX245=\"\",\"\",'1. Order'!AX245)","v":""},null,null,null,null,null,null,null,{"$f":"IF('1. Order'!BB245=\"\",\"\",'1. Order'!BB245)","v":""},{"$f":"IF('1. Order'!BC245=\"\",\"\",'1. Order'!BC245)","v":""},{"$f":"IF('1. Order'!BD245=\"\",\"\",'1. Order'!BD245)","v":""},{"$f":"IF('1. Order'!BE245=\"\",\"\",'1. Order'!BE245)","v":""},{"$f":"IF('1. Order'!BG245=\"\",\"\",'1. Order'!BG245)","v":""},{"$f":"IF('1. Order'!BH245=\"\",\"\",'1. Order'!BH245)","v":""},{"$f":"IF('1. Order'!BI245=\"\",\"\",'1. Order'!BI245)","v":""},{"$f":"IF('1. Order'!BJ245=\"\",\"\",'1. Order'!BJ245)","v":""},{"$f":"IF('1. Order'!BK245=\"\",\"\",'1. Order'!BK245)","v":"ZWO"}]
[{"$f":"IF('1. Order'!G246=\"\",\"\",'1. Order'!G246)","v":""},{"$f":"IF('1. Order'!H246=\"\",\"\",'1. Order'!H246)","v":""},{"$f":"IF('1. Order'!I246=\"\",\"\",'1. Order'!I246)","v":""},{"$f":"IF('1. Order'!J246=\"\",\"\",'1. Order'!J246)","v":""},{"$f":"IF('1. Order'!K246=\"\",\"\",'1. Order'!K246)","v":""},{"$f":"IF('1. Order'!L246=\"\",\"\",'1. Order'!L246)","v":""},{"$f":"IF('1. Order'!M246=\"\",\"\",'1. Order'!M246)","v":""},{"$f":"IF('1. Order'!N246=\"\",\"\",'1. Order'!N246)","v":""},{"$f":"IF('1. Order'!P246=\"\",\"\",'1. Order'!P246)","v":""},{"$f":"IF('1. Order'!Q246=\"\",\"\",'1. Order'!Q246)","v":{"$error":"#N/A"}},{"$f":"IF('1. Order'!R246=\"\",\"\",'1. Order'!R246)","v":{"$error":"#N/A"}},{"$f":"IF('1. Order'!S246=\"\",\"\",'1. Order'!S246)","v":""},{"$f":"IF('1. Order'!T246=\"\",\"\",'1. Order'!T246)","v":""},{"$f":"IF('1. Order'!U246=\"\",\"\",'1. Order'!U246)","v":""},{"$f":"IF('1. Order'!X246=\"\",\"\",'1. Order'!X246)","v":""},{"$f":"IF('1. Order'!Y246=\"\",\"\",'1. Order'!Y246)","v":""},{"$f":"IF('1. Order'!Z246=\"\",\"\",'1. Order'!Z246)","v":""},{"$f":"IF('1. Order'!AC246=\"\",\"\",'1. Order'!AC246)","v":""},{"$f":"IF('1. Order'!AD246=\"\",\"\",'1. Order'!AD246)","v":""},{"$f":"IF('1. Order'!AE246=\"\",\"\",'1. Order'!AE246)","v":""},null,{"$f":"IF('1. Order'!AW246=\"\",\"\",'1. Order'!AW246)","v":""},{"$f":"IF('1. Order'!AX246=\"\",\"\",'1. Order'!AX246)","v":""},null,null,null,null,null,null,null,{"$f":"IF('1. Order'!BB246=\"\",\"\",'1. Order'!BB246)","v":""},{"$f":"IF('1. Order'!BC246=\"\",\"\",'1. Order'!BC246)","v":""},{"$f":"IF('1. Order'!BD246=\"\",\"\",'1. Order'!BD246)","v":""},{"$f":"IF('1. Order'!BE246=\"\",\"\",'1. Order'!BE246)","v":""},{"$f":"IF('1. Order'!BG246=\"\",\"\",'1. Order'!BG246)","v":""},{"$f":"IF('1. Order'!BH246=\"\",\"\",'1. Order'!BH246)","v":""},{"$f":"IF('1. Order'!BI246=\"\",\"\",'1. Order'!BI246)","v":""},{"$f":"IF('1. Order'!BJ246=\"\",\"\",'1. Order'!BJ246)","v":""},{"$f":"IF('1. Order'!BK246=\"\",\"\",'1. Order'!BK246)","v":"ZWO"}]
[{"$f":"IF('1. Order'!G247=\"\",\"\",'1. Order'!G247)","v":""},{"$f":"IF('1. Order'!H247=\"\",\"\",'1. Order'!H247)","v":""},{"$f":"IF('1. Order'!I247=\"\",\"\",'1. Order'!I247)","v":""},{"$f":"IF('1. Order'!J247=\"\",\"\",'1. Order'!J247)","v":""},{"$f":"IF('1. Order'!K247=\"\",\"\",'1. Order'!K247)","v":""},{"$f":"IF('1. Order'!L247=\"\",\"\",'1. Order'!L247)","v":""},{"$f":"IF('1. Order'!M247=\"\",\"\",'1. Order'!M247)","v":""},{"$f":"IF('1. Order'!N247=\"\",\"\",'1. Order'!N247)","v":""},{"$f":"IF('1. Order'!P247=\"\",\"\",'1. Order'!P247)","v":""},{"$f":"IF('1. Order'!Q247=\"\",\"\",'1. Order'!Q247)","v":{"$error":"#N/A"}},{"$f":"IF('1. Order'!R247=\"\",\"\",'1. Order'!R247)","v":{"$error":"#N/A"}},{"$f":"IF('1. Order'!S247=\"\",\"\",'1. Order'!S247)","v":""},{"$f":"IF('1. Order'!T247=\"\",\"\",'1. Order'!T247)","v":""},{"$f":"IF('1. Order'!U247=\"\",\"\",'1. Order'!U247)","v":""},{"$f":"IF('1. Order'!X247=\"\",\"\",'1. Order'!X247)","v":""},{"$f":"IF('1. Order'!Y247=\"\",\"\",'1. Order'!Y247)","v":""},{"$f":"IF('1. Order'!Z247=\"\",\"\",'1. Order'!Z247)","v":""},{"$f":"IF('1. Order'!AC247=\"\",\"\",'1. Order'!AC247)","v":""},{"$f":"IF('1. Order'!AD247=\"\",\"\",'1. Order'!AD247)","v":""},{"$f":"IF('1. Order'!AE247=\"\",\"\",'1. Order'!AE247)","v":""},null,{"$f":"IF('1. Order'!AW247=\"\",\"\",'1. Order'!AW247)","v":""},{"$f":"IF('1. Order'!AX247=\"\",\"\",'1. Order'!AX247)","v":""},null,null,null,null,null,null,null,{"$f":"IF('1. Order'!BB247=\"\",\"\",'1. Order'!BB247)","v":""},{"$f":"IF('1. Order'!BC247=\"\",\"\",'1. Order'!BC247)","v":""},{"$f":"IF('1. Order'!BD247=\"\",\"\",'1. Order'!BD247)","v":""},{"$f":"IF('1. Order'!BE247=\"\",\"\",'1. Order'!BE247)","v":""},{"$f":"IF('1. Order'!BG247=\"\",\"\",'1. Order'!BG247)","v":""},{"$f":"IF('1. Order'!BH247=\"\",\"\",'1. Order'!BH247)","v":""},{"$f":"IF('1. Order'!BI247=\"\",\"\",'1. Order'!BI247)","v":""},{"$f":"IF('1. Order'!BJ247=\"\",\"\",'1. Order'!BJ247)","v":""},{"$f":"IF('1. Order'!BK247=\"\",\"\",'1. Order'!BK247)","v":"ZWO"}]
[{"$f":"IF('1. Order'!G248=\"\",\"\",'1. Order'!G248)","v":""},{"$f":"IF('1. Order'!H248=\"\",\"\",'1. Order'!H248)","v":""},{"$f":"IF('1. Order'!I248=\"\",\"\",'1. Order'!I248)","v":""},{"$f":"IF('1. Order'!J248=\"\",\"\",'1. Order'!J248)","v":""},{"$f":"IF('1. Order'!K248=\"\",\"\",'1. Order'!K248)","v":""},{"$f":"IF('1. Order'!L248=\"\",\"\",'1. Order'!L248)","v":""},{"$f":"IF('1. Order'!M248=\"\",\"\",'1. Order'!M248)","v":""},{"$f":"IF('1. Order'!N248=\"\",\"\",'1. Order'!N248)","v":""},{"$f":"IF('1. Order'!P248=\"\",\"\",'1. Order'!P248)","v":""},{"$f":"IF('1. Order'!Q248=\"\",\"\",'1. Order'!Q248)","v":{"$error":"#N/A"}},{"$f":"IF('1. Order'!R248=\"\",\"\",'1. Order'!R248)","v":{"$error":"#N/A"}},{"$f":"IF('1. Order'!S248=\"\",\"\",'1. Order'!S248)","v":""},{"$f":"IF('1. Order'!T248=\"\",\"\",'1. Order'!T248)","v":""},{"$f":"IF('1. Order'!U248=\"\",\"\",'1. Order'!U248)","v":""},{"$f":"IF('1. Order'!X248=\"\",\"\",'1. Order'!X248)","v":""},{"$f":"IF('1. Order'!Y248=\"\",\"\",'1. Order'!Y248)","v":""},{"$f":"IF('1. Order'!Z248=\"\",\"\",'1. Order'!Z248)","v":""},{"$f":"IF('1. Order'!AC248=\"\",\"\",'1. Order'!AC248)","v":""},{"$f":"IF('1. Order'!AD248=\"\",\"\",'1. Order'!AD248)","v":""},{"$f":"IF('1. Order'!AE248=\"\",\"\",'1. Order'!AE248)","v":""},null,{"$f":"IF('1. Order'!AW248=\"\",\"\",'1. Order'!AW248)","v":""},{"$f":"IF('1. Order'!AX248=\"\",\"\",'1. Order'!AX248)","v":""},null,null,null,null,null,null,null,{"$f":"IF('1. Order'!BB248=\"\",\"\",'1. Order'!BB248)","v":""},{"$f":"IF('1. Order'!BC248=\"\",\"\",'1. Order'!BC248)","v":""},{"$f":"IF('1. Order'!BD248=\"\",\"\",'1. Order'!BD248)","v":""},{"$f":"IF('1. Order'!BE248=\"\",\"\",'1. Order'!BE248)","v":""},{"$f":"IF('1. Order'!BG248=\"\",\"\",'1. Order'!BG248)","v":""},{"$f":"IF('1. Order'!BH248=\"\",\"\",'1. Order'!BH248)","v":""},{"$f":"IF('1. Order'!BI248=\"\",\"\",'1. Order'!BI248)","v":""},{"$f":"IF('1. Order'!BJ248=\"\",\"\",'1. Order'!BJ248)","v":""},{"$f":"IF('1. Order'!BK248=\"\",\"\",'1. Order'!BK248)","v":"ZWO"}]
[{"$f":"IF('1. Order'!G249=\"\",\"\",'1. Order'!G249)","v":""},{"$f":"IF('1. Order'!H249=\"\",\"\",'1. Order'!H249)","v":""},{"$f":"IF('1. Order'!I249=\"\",\"\",'1. Order'!I249)","v":""},{"$f":"IF('1. Order'!J249=\"\",\"\",'1. Order'!J249)","v":""},{"$f":"IF('1. Order'!K249=\"\",\"\",'1. Order'!K249)","v":""},{"$f":"IF('1. Order'!L249=\"\",\"\",'1. Order'!L249)","v":""},{"$f":"IF('1. Order'!M249=\"\",\"\",'1. Order'!M249)","v":""},{"$f":"IF('1. Order'!N249=\"\",\"\",'1. Order'!N249)","v":""},{"$f":"IF('1. Order'!P249=\"\",\"\",'1. Order'!P249)","v":""},{"$f":"IF('1. Order'!Q249=\"\",\"\",'1. Order'!Q249)","v":{"$error":"#N/A"}},{"$f":"IF('1. Order'!R249=\"\",\"\",'1. Order'!R249)","v":{"$error":"#N/A"}},{"$f":"IF('1. Order'!S249=\"\",\"\",'1. Order'!S249)","v":""},{"$f":"IF('1. Order'!T249=\"\",\"\",'1. Order'!T249)","v":""},{"$f":"IF('1. Order'!U249=\"\",\"\",'1. Order'!U249)","v":""},{"$f":"IF('1. Order'!X249=\"\",\"\",'1. Order'!X249)","v":""},{"$f":"IF('1. Order'!Y249=\"\",\"\",'1. Order'!Y249)","v":""},{"$f":"IF('1. Order'!Z249=\"\",\"\",'1. Order'!Z249)","v":""},{"$f":"IF('1. Order'!AC249=\"\",\"\",'1. Order'!AC249)","v":""},{"$f":"IF('1. Order'!AD249=\"\",\"\",'1. Order'!AD249)","v":""},{"$f":"IF('1. Order'!AE249=\"\",\"\",'1. Order'!AE249)","v":""},null,{"$f":"IF('1. Order'!AW249=\"\",\"\",'1. Order'!AW249)","v":""},{"$f":"IF('1. Order'!AX249=\"\",\"\",'1. Order'!AX249)","v":""},null,null,null,null,null,null,null,{"$f":"IF('1. Order'!BB249=\"\",\"\",'1. Order'!BB249)","v":""},{"$f":"IF('1. Order'!BC249=\"\",\"\",'1. Order'!BC249)","v":""},{"$f":"IF('1. Order'!BD249=\"\",\"\",'1. Order'!BD249)","v":""},{"$f":"IF('1. Order'!BE249=\"\",\"\",'1. Order'!BE249)","v":""},{"$f":"IF('1. Order'!BG249=\"\",\"\",'1. Order'!BG249)","v":""},{"$f":"IF('1. Order'!BH249=\"\",\"\",'1. Order'!BH249)","v":""},{"$f":"IF('1. Order'!BI249=\"\",\"\",'1. Order'!BI249)","v":""},{"$f":"IF('1. Order'!BJ249=\"\",\"\",'1. Order'!BJ249)","v":""},{"$f":"IF('1. Order'!BK249=\"\",\"\",'1. Order'!BK249)","v":"ZWO"}]
[{"$f":"IF('1. Order'!G250=\"\",\"\",'1. Order'!G250)","v":""},{"$f":"IF('1. Order'!H250=\"\",\"\",'1. Order'!H250)","v":""},{"$f":"IF('1. Order'!I250=\"\",\"\",'1. Order'!I250)","v":""},{"$f":"IF('1. Order'!J250=\"\",\"\",'1. Order'!J250)","v":""},{"$f":"IF('1. Order'!K250=\"\",\"\",'1. Order'!K250)","v":""},{"$f":"IF('1. Order'!L250=\"\",\"\",'1. Order'!L250)","v":""},{"$f":"IF('1. Order'!M250=\"\",\"\",'1. Order'!M250)","v":""},{"$f":"IF('1. Order'!N250=\"\",\"\",'1. Order'!N250)","v":""},{"$f":"IF('1. Order'!P250=\"\",\"\",'1. Order'!P250)","v":""},{"$f":"IF('1. Order'!Q250=\"\",\"\",'1. Order'!Q250)","v":{"$error":"#N/A"}},{"$f":"IF('1. Order'!R250=\"\",\"\",'1. Order'!R250)","v":{"$error":"#N/A"}},{"$f":"IF('1. Order'!S250=\"\",\"\",'1. Order'!S250)","v":""},{"$f":"IF('1. Order'!T250=\"\",\"\",'1. Order'!T250)","v":""},{"$f":"IF('1. Order'!U250=\"\",\"\",'1. Order'!U250)","v":""},{"$f":"IF('1. Order'!X250=\"\",\"\",'1. Order'!X250)","v":""},{"$f":"IF('1. Order'!Y250=\"\",\"\",'1. Order'!Y250)","v":""},{"$f":"IF('1. Order'!Z250=\"\",\"\",'1. Order'!Z250)","v":""},{"$f":"IF('1. Order'!AC250=\"\",\"\",'1. Order'!AC250)","v":""},{"$f":"IF('1. Order'!AD250=\"\",\"\",'1. Order'!AD250)","v":""},{"$f":"IF('1. Order'!AE250=\"\",\"\",'1. Order'!AE250)","v":""},null,{"$f":"IF('1. Order'!AW250=\"\",\"\",'1. Order'!AW250)","v":""},{"$f":"IF('1. Order'!AX250=\"\",\"\",'1. Order'!AX250)","v":""},null,null,null,null,null,null,null,{"$f":"IF('1. Order'!BB250=\"\",\"\",'1. Order'!BB250)","v":""},{"$f":"IF('1. Order'!BC250=\"\",\"\",'1. Order'!BC250)","v":""},{"$f":"IF('1. Order'!BD250=\"\",\"\",'1. Order'!BD250)","v":""},{"$f":"IF('1. Order'!BE250=\"\",\"\",'1. Order'!BE250)","v":""},{"$f":"IF('1. Order'!BG250=\"\",\"\",'1. Order'!BG250)","v":""},{"$f":"IF('1. Order'!BH250=\"\",\"\",'1. Order'!BH250)","v":""},{"$f":"IF('1. Order'!BI250=\"\",\"\",'1. Order'!BI250)","v":""},{"$f":"IF('1. Order'!BJ250=\"\",\"\",'1. Order'!BJ250)","v":""},{"$f":"IF('1. Order'!BK250=\"\",\"\",'1. Order'!BK250)","v":"ZWO"}]
[{"$f":"IF('1. Order'!G251=\"\",\"\",'1. Order'!G251)","v":""},{"$f":"IF('1. Order'!H251=\"\",\"\",'1. Order'!H251)","v":""},{"$f":"IF('1. Order'!I251=\"\",\"\",'1. Order'!I251)","v":""},{"$f":"IF('1. Order'!J251=\"\",\"\",'1. Order'!J251)","v":""},{"$f":"IF('1. Order'!K251=\"\",\"\",'1. Order'!K251)","v":""},{"$f":"IF('1. Order'!L251=\"\",\"\",'1. Order'!L251)","v":""},{"$f":"IF('1. Order'!M251=\"\",\"\",'1. Order'!M251)","v":""},{"$f":"IF('1. Order'!N251=\"\",\"\",'1. Order'!N251)","v":""},{"$f":"IF('1. Order'!P251=\"\",\"\",'1. Order'!P251)","v":""},{"$f":"IF('1. Order'!Q251=\"\",\"\",'1. Order'!Q251)","v":{"$error":"#N/A"}},{"$f":"IF('1. Order'!R251=\"\",\"\",'1. Order'!R251)","v":{"$error":"#N/A"}},{"$f":"IF('1. Order'!S251=\"\",\"\",'1. Order'!S251)","v":""},{"$f":"IF('1. Order'!T251=\"\",\"\",'1. Order'!T251)","v":""},{"$f":"IF('1. Order'!U251=\"\",\"\",'1. Order'!U251)","v":""},{"$f":"IF('1. Order'!X251=\"\",\"\",'1. Order'!X251)","v":""},{"$f":"IF('1. Order'!Y251=\"\",\"\",'1. Order'!Y251)","v":""},{"$f":"IF('1. Order'!Z251=\"\",\"\",'1. Order'!Z251)","v":""},{"$f":"IF('1. Order'!AC251=\"\",\"\",'1. Order'!AC251)","v":""},{"$f":"IF('1. Order'!AD251=\"\",\"\",'1. Order'!AD251)","v":""},{"$f":"IF('1. Order'!AE251=\"\",\"\",'1. Order'!AE251)","v":""},null,{"$f":"IF('1. Order'!AW251=\"\",\"\",'1. Order'!AW251)","v":""},{"$f":"IF('1. Order'!AX251=\"\",\"\",'1. Order'!AX251)","v":""},null,null,null,null,null,null,null,{"$f":"IF('1. Order'!BB251=\"\",\"\",'1. Order'!BB251)","v":""},{"$f":"IF('1. Order'!BC251=\"\",\"\",'1. Order'!BC251)","v":""},{"$f":"IF('1. Order'!BD251=\"\",\"\",'1. Order'!BD251)","v":""},{"$f":"IF('1. Order'!BE251=\"\",\"\",'1. Order'!BE251)","v":""},{"$f":"IF('1. Order'!BG251=\"\",\"\",'1. Order'!BG251)","v":""},{"$f":"IF('1. Order'!BH251=\"\",\"\",'1. Order'!BH251)","v":""},{"$f":"IF('1. Order'!BI251=\"\",\"\",'1. Order'!BI251)","v":""},{"$f":"IF('1. Order'!BJ251=\"\",\"\",'1. Order'!BJ251)","v":""},{"$f":"IF('1. Order'!BK251=\"\",\"\",'1. Order'!BK251)","v":"ZWO"}]
[{"$f":"IF('1. Order'!G252=\"\",\"\",'1. Order'!G252)","v":""},{"$f":"IF('1. Order'!H252=\"\",\"\",'1. Order'!H252)","v":""},{"$f":"IF('1. Order'!I252=\"\",\"\",'1. Order'!I252)","v":""},{"$f":"IF('1. Order'!J252=\"\",\"\",'1. Order'!J252)","v":""},{"$f":"IF('1. Order'!K252=\"\",\"\",'1. Order'!K252)","v":""},{"$f":"IF('1. Order'!L252=\"\",\"\",'1. Order'!L252)","v":""},{"$f":"IF('1. Order'!M252=\"\",\"\",'1. Order'!M252)","v":""},{"$f":"IF('1. Order'!N252=\"\",\"\",'1. Order'!N252)","v":""},{"$f":"IF('1. Order'!P252=\"\",\"\",'1. Order'!P252)","v":""},{"$f":"IF('1. Order'!Q252=\"\",\"\",'1. Order'!Q252)","v":{"$error":"#N/A"}},{"$f":"IF('1. Order'!R252=\"\",\"\",'1. Order'!R252)","v":{"$error":"#N/A"}},{"$f":"IF('1. Order'!S252=\"\",\"\",'1. Order'!S252)","v":""},{"$f":"IF('1. Order'!T252=\"\",\"\",'1. Order'!T252)","v":""},{"$f":"IF('1. Order'!U252=\"\",\"\",'1. Order'!U252)","v":""},{"$f":"IF('1. Order'!X252=\"\",\"\",'1. Order'!X252)","v":""},{"$f":"IF('1. Order'!Y252=\"\",\"\",'1. Order'!Y252)","v":""},{"$f":"IF('1. Order'!Z252=\"\",\"\",'1. Order'!Z252)","v":""},{"$f":"IF('1. Order'!AC252=\"\",\"\",'1. Order'!AC252)","v":""},{"$f":"IF('1. Order'!AD252=\"\",\"\",'1. Order'!AD252)","v":""},{"$f":"IF('1. Order'!AE252=\"\",\"\",'1. Order'!AE252)","v":""},null,{"$f":"IF('1. Order'!AW252=\"\",\"\",'1. Order'!AW252)","v":""},{"$f":"IF('1. Order'!AX252=\"\",\"\",'1. Order'!AX252)","v":""},null,null,null,null,null,null,null,{"$f":"IF('1. Order'!BB252=\"\",\"\",'1. Order'!BB252)","v":""},{"$f":"IF('1. Order'!BC252=\"\",\"\",'1. Order'!BC252)","v":""},{"$f":"IF('1. Order'!BD252=\"\",\"\",'1. Order'!BD252)","v":""},{"$f":"IF('1. Order'!BE252=\"\",\"\",'1. Order'!BE252)","v":""},{"$f":"IF('1. Order'!BG252=\"\",\"\",'1. Order'!BG252)","v":""},{"$f":"IF('1. Order'!BH252=\"\",\"\",'1. Order'!BH252)","v":""},{"$f":"IF('1. Order'!BI252=\"\",\"\",'1. Order'!BI252)","v":""},{"$f":"IF('1. Order'!BJ252=\"\",\"\",'1. Order'!BJ252)","v":""},{"$f":"IF('1. Order'!BK252=\"\",\"\",'1. Order'!BK252)","v":"ZWO"}]
[{"$f":"IF('1. Order'!G253=\"\",\"\",'1. Order'!G253)","v":""},{"$f":"IF('1. Order'!H253=\"\",\"\",'1. Order'!H253)","v":""},{"$f":"IF('1. Order'!I253=\"\",\"\",'1. Order'!I253)","v":""},{"$f":"IF('1. Order'!J253=\"\",\"\",'1. Order'!J253)","v":""},{"$f":"IF('1. Order'!K253=\"\",\"\",'1. Order'!K253)","v":""},{"$f":"IF('1. Order'!L253=\"\",\"\",'1. Order'!L253)","v":""},{"$f":"IF('1. Order'!M253=\"\",\"\",'1. Order'!M253)","v":""},{"$f":"IF('1. Order'!N253=\"\",\"\",'1. Order'!N253)","v":""},{"$f":"IF('1. Order'!P253=\"\",\"\",'1. Order'!P253)","v":""},{"$f":"IF('1. Order'!Q253=\"\",\"\",'1. Order'!Q253)","v":{"$error":"#N/A"}},{"$f":"IF('1. Order'!R253=\"\",\"\",'1. Order'!R253)","v":{"$error":"#N/A"}},{"$f":"IF('1. Order'!S253=\"\",\"\",'1. Order'!S253)","v":""},{"$f":"IF('1. Order'!T253=\"\",\"\",'1. Order'!T253)","v":""},{"$f":"IF('1. Order'!U253=\"\",\"\",'1. Order'!U253)","v":""},{"$f":"IF('1. Order'!X253=\"\",\"\",'1. Order'!X253)","v":""},{"$f":"IF('1. Order'!Y253=\"\",\"\",'1. Order'!Y253)","v":""},{"$f":"IF('1. Order'!Z253=\"\",\"\",'1. Order'!Z253)","v":""},{"$f":"IF('1. Order'!AC253=\"\",\"\",'1. Order'!AC253)","v":""},{"$f":"IF('1. Order'!AD253=\"\",\"\",'1. Order'!AD253)","v":""},{"$f":"IF('1. Order'!AE253=\"\",\"\",'1. Order'!AE253)","v":""},null,{"$f":"IF('1. Order'!AW253=\"\",\"\",'1. Order'!AW253)","v":""},{"$f":"IF('1. Order'!AX253=\"\",\"\",'1. Order'!AX253)","v":""},null,null,null,null,null,null,null,{"$f":"IF('1. Order'!BB253=\"\",\"\",'1. Order'!BB253)","v":""},{"$f":"IF('1. Order'!BC253=\"\",\"\",'1. Order'!BC253)","v":""},{"$f":"IF('1. Order'!BD253=\"\",\"\",'1. Order'!BD253)","v":""},{"$f":"IF('1. Order'!BE253=\"\",\"\",'1. Order'!BE253)","v":""},{"$f":"IF('1. Order'!BG253=\"\",\"\",'1. Order'!BG253)","v":""},{"$f":"IF('1. Order'!BH253=\"\",\"\",'1. Order'!BH253)","v":""},{"$f":"IF('1. Order'!BI253=\"\",\"\",'1. Order'!BI253)","v":""},{"$f":"IF('1. Order'!BJ253=\"\",\"\",'1. Order'!BJ253)","v":""},{"$f":"IF('1. Order'!BK253=\"\",\"\",'1. Order'!BK253)","v":"ZWO"}]
[{"$f":"IF('1. Order'!G254=\"\",\"\",'1. Order'!G254)","v":""},{"$f":"IF('1. Order'!H254=\"\",\"\",'1. Order'!H254)","v":""},{"$f":"IF('1. Order'!I254=\"\",\"\",'1. Order'!I254)","v":""},{"$f":"IF('1. Order'!J254=\"\",\"\",'1. Order'!J254)","v":""},{"$f":"IF('1. Order'!K254=\"\",\"\",'1. Order'!K254)","v":""},{"$f":"IF('1. Order'!L254=\"\",\"\",'1. Order'!L254)","v":""},{"$f":"IF('1. Order'!M254=\"\",\"\",'1. Order'!M254)","v":""},{"$f":"IF('1. Order'!N254=\"\",\"\",'1. Order'!N254)","v":""},{"$f":"IF('1. Order'!P254=\"\",\"\",'1. Order'!P254)","v":""},{"$f":"IF('1. Order'!Q254=\"\",\"\",'1. Order'!Q254)","v":{"$error":"#N/A"}},{"$f":"IF('1. Order'!R254=\"\",\"\",'1. Order'!R254)","v":{"$error":"#N/A"}},{"$f":"IF('1. Order'!S254=\"\",\"\",'1. Order'!S254)","v":""},{"$f":"IF('1. Order'!T254=\"\",\"\",'1. Order'!T254)","v":""},{"$f":"IF('1. Order'!U254=\"\",\"\",'1. Order'!U254)","v":""},{"$f":"IF('1. Order'!X254=\"\",\"\",'1. Order'!X254)","v":""},{"$f":"IF('1. Order'!Y254=\"\",\"\",'1. Order'!Y254)","v":""},{"$f":"IF('1. Order'!Z254=\"\",\"\",'1. Order'!Z254)","v":""},{"$f":"IF('1. Order'!AC254=\"\",\"\",'1. Order'!AC254)","v":""},{"$f":"IF('1. Order'!AD254=\"\",\"\",'1. Order'!AD254)","v":""},{"$f":"IF('1. Order'!AE254=\"\",\"\",'1. Order'!AE254)","v":""},null,{"$f":"IF('1. Order'!AW254=\"\",\"\",'1. Order'!AW254)","v":""},{"$f":"IF('1. Order'!AX254=\"\",\"\",'1. Order'!AX254)","v":""},null,null,null,null,null,null,null,{"$f":"IF('1. Order'!BB254=\"\",\"\",'1. Order'!BB254)","v":""},{"$f":"IF('1. Order'!BC254=\"\",\"\",'1. Order'!BC254)","v":""},{"$f":"IF('1. Order'!BD254=\"\",\"\",'1. Order'!BD254)","v":""},{"$f":"IF('1. Order'!BE254=\"\",\"\",'1. Order'!BE254)","v":""},{"$f":"IF('1. Order'!BG254=\"\",\"\",'1. Order'!BG254)","v":""},{"$f":"IF('1. Order'!BH254=\"\",\"\",'1. Order'!BH254)","v":""},{"$f":"IF('1. Order'!BI254=\"\",\"\",'1. Order'!BI254)","v":""},{"$f":"IF('1. Order'!BJ254=\"\",\"\",'1. Order'!BJ254)","v":""},{"$f":"IF('1. Order'!BK254=\"\",\"\",'1. Order'!BK254)","v":"ZWO"}]
[{"$f":"IF('1. Order'!G255=\"\",\"\",'1. Order'!G255)","v":""},{"$f":"IF('1. Order'!H255=\"\",\"\",'1. Order'!H255)","v":""},{"$f":"IF('1. Order'!I255=\"\",\"\",'1. Order'!I255)","v":""},{"$f":"IF('1. Order'!J255=\"\",\"\",'1. Order'!J255)","v":""},{"$f":"IF('1. Order'!K255=\"\",\"\",'1. Order'!K255)","v":""},{"$f":"IF('1. Order'!L255=\"\",\"\",'1. Order'!L255)","v":""},{"$f":"IF('1. Order'!M255=\"\",\"\",'1. Order'!M255)","v":""},{"$f":"IF('1. Order'!N255=\"\",\"\",'1. Order'!N255)","v":""},{"$f":"IF('1. Order'!P255=\"\",\"\",'1. Order'!P255)","v":""},{"$f":"IF('1. Order'!Q255=\"\",\"\",'1. Order'!Q255)","v":{"$error":"#N/A"}},{"$f":"IF('1. Order'!R255=\"\",\"\",'1. Order'!R255)","v":{"$error":"#N/A"}},{"$f":"IF('1. Order'!S255=\"\",\"\",'1. Order'!S255)","v":""},{"$f":"IF('1. Order'!T255=\"\",\"\",'1. Order'!T255)","v":""},{"$f":"IF('1. Order'!U255=\"\",\"\",'1. Order'!U255)","v":""},{"$f":"IF('1. Order'!X255=\"\",\"\",'1. Order'!X255)","v":""},{"$f":"IF('1. Order'!Y255=\"\",\"\",'1. Order'!Y255)","v":""},{"$f":"IF('1. Order'!Z255=\"\",\"\",'1. Order'!Z255)","v":""},{"$f":"IF('1. Order'!AC255=\"\",\"\",'1. Order'!AC255)","v":""},{"$f":"IF('1. Order'!AD255=\"\",\"\",'1. Order'!AD255)","v":""},{"$f":"IF('1. Order'!AE255=\"\",\"\",'1. Order'!AE255)","v":""},null,{"$f":"IF('1. Order'!AW255=\"\",\"\",'1. Order'!AW255)","v":""},{"$f":"IF('1. Order'!AX255=\"\",\"\",'1. Order'!AX255)","v":""},null,null,null,null,null,null,null,{"$f":"IF('1. Order'!BB255=\"\",\"\",'1. Order'!BB255)","v":""},{"$f":"IF('1. Order'!BC255=\"\",\"\",'1. Order'!BC255)","v":""},{"$f":"IF('1. Order'!BD255=\"\",\"\",'1. Order'!BD255)","v":""},{"$f":"IF('1. Order'!BE255=\"\",\"\",'1. Order'!BE255)","v":""},{"$f":"IF('1. Order'!BG255=\"\",\"\",'1. Order'!BG255)","v":""},{"$f":"IF('1. Order'!BH255=\"\",\"\",'1. Order'!BH255)","v":""},{"$f":"IF('1. Order'!BI255=\"\",\"\",'1. Order'!BI255)","v":""},{"$f":"IF('1. Order'!BJ255=\"\",\"\",'1. Order'!BJ255)","v":""},{"$f":"IF('1. Order'!BK255=\"\",\"\",'1. Order'!BK255)","v":"ZWO"}]
[{"$f":"IF('1. Order'!G256=\"\",\"\",'1. Order'!G256)","v":""},{"$f":"IF('1. Order'!H256=\"\",\"\",'1. Order'!H256)","v":""},{"$f":"IF('1. Order'!I256=\"\",\"\",'1. Order'!I256)","v":""},{"$f":"IF('1. Order'!J256=\"\",\"\",'1. Order'!J256)","v":""},{"$f":"IF('1. Order'!K256=\"\",\"\",'1. Order'!K256)","v":""},{"$f":"IF('1. Order'!L256=\"\",\"\",'1. Order'!L256)","v":""},{"$f":"IF('1. Order'!M256=\"\",\"\",'1. Order'!M256)","v":""},{"$f":"IF('1. Order'!N256=\"\",\"\",'1. Order'!N256)","v":""},{"$f":"IF('1. Order'!P256=\"\",\"\",'1. Order'!P256)","v":""},{"$f":"IF('1. Order'!Q256=\"\",\"\",'1. Order'!Q256)","v":{"$error":"#N/A"}},{"$f":"IF('1. Order'!R256=\"\",\"\",'1. Order'!R256)","v":{"$error":"#N/A"}},{"$f":"IF('1. Order'!S256=\"\",\"\",'1. Order'!S256)","v":""},{"$f":"IF('1. Order'!T256=\"\",\"\",'1. Order'!T256)","v":""},{"$f":"IF('1. Order'!U256=\"\",\"\",'1. Order'!U256)","v":""},{"$f":"IF('1. Order'!X256=\"\",\"\",'1. Order'!X256)","v":""},{"$f":"IF('1. Order'!Y256=\"\",\"\",'1. Order'!Y256)","v":""},{"$f":"IF('1. Order'!Z256=\"\",\"\",'1. Order'!Z256)","v":""},{"$f":"IF('1. Order'!AC256=\"\",\"\",'1. Order'!AC256)","v":""},{"$f":"IF('1. Order'!AD256=\"\",\"\",'1. Order'!AD256)","v":""},{"$f":"IF('1. Order'!AE256=\"\",\"\",'1. Order'!AE256)","v":""},null,{"$f":"IF('1. Order'!AW256=\"\",\"\",'1. Order'!AW256)","v":""},{"$f":"IF('1. Order'!AX256=\"\",\"\",'1. Order'!AX256)","v":""},null,null,null,null,null,null,null,{"$f":"IF('1. Order'!BB256=\"\",\"\",'1. Order'!BB256)","v":""},{"$f":"IF('1. Order'!BC256=\"\",\"\",'1. Order'!BC256)","v":""},{"$f":"IF('1. Order'!BD256=\"\",\"\",'1. Order'!BD256)","v":""},{"$f":"IF('1. Order'!BE256=\"\",\"\",'1. Order'!BE256)","v":""},{"$f":"IF('1. Order'!BG256=\"\",\"\",'1. Order'!BG256)","v":""},{"$f":"IF('1. Order'!BH256=\"\",\"\",'1. Order'!BH256)","v":""},{"$f":"IF('1. Order'!BI256=\"\",\"\",'1. Order'!BI256)","v":""},{"$f":"IF('1. Order'!BJ256=\"\",\"\",'1. Order'!BJ256)","v":""},{"$f":"IF('1. Order'!BK256=\"\",\"\",'1. Order'!BK256)","v":"ZWO"}]
[{"$f":"IF('1. Order'!G257=\"\",\"\",'1. Order'!G257)","v":""},{"$f":"IF('1. Order'!H257=\"\",\"\",'1. Order'!H257)","v":""},{"$f":"IF('1. Order'!I257=\"\",\"\",'1. Order'!I257)","v":""},{"$f":"IF('1. Order'!J257=\"\",\"\",'1. Order'!J257)","v":""},{"$f":"IF('1. Order'!K257=\"\",\"\",'1. Order'!K257)","v":""},{"$f":"IF('1. Order'!L257=\"\",\"\",'1. Order'!L257)","v":""},{"$f":"IF('1. Order'!M257=\"\",\"\",'1. Order'!M257)","v":""},{"$f":"IF('1. Order'!N257=\"\",\"\",'1. Order'!N257)","v":""},{"$f":"IF('1. Order'!P257=\"\",\"\",'1. Order'!P257)","v":""},{"$f":"IF('1. Order'!Q257=\"\",\"\",'1. Order'!Q257)","v":{"$error":"#N/A"}},{"$f":"IF('1. Order'!R257=\"\",\"\",'1. Order'!R257)","v":{"$error":"#N/A"}},{"$f":"IF('1. Order'!S257=\"\",\"\",'1. Order'!S257)","v":""},{"$f":"IF('1. Order'!T257=\"\",\"\",'1. Order'!T257)","v":""},{"$f":"IF('1. Order'!U257=\"\",\"\",'1. Order'!U257)","v":""},{"$f":"IF('1. Order'!X257=\"\",\"\",'1. Order'!X257)","v":""},{"$f":"IF('1. Order'!Y257=\"\",\"\",'1. Order'!Y257)","v":""},{"$f":"IF('1. Order'!Z257=\"\",\"\",'1. Order'!Z257)","v":""},{"$f":"IF('1. Order'!AC257=\"\",\"\",'1. Order'!AC257)","v":""},{"$f":"IF('1. Order'!AD257=\"\",\"\",'1. Order'!AD257)","v":""},{"$f":"IF('1. Order'!AE257=\"\",\"\",'1. Order'!AE257)","v":""},null,{"$f":"IF('1. Order'!AW257=\"\",\"\",'1. Order'!AW257)","v":""},{"$f":"IF('1. Order'!AX257=\"\",\"\",'1. Order'!AX257)","v":""},null,null,null,null,null,null,null,{"$f":"IF('1. Order'!BB257=\"\",\"\",'1. Order'!BB257)","v":""},{"$f":"IF('1. Order'!BC257=\"\",\"\",'1. Order'!BC257)","v":""},{"$f":"IF('1. Order'!BD257=\"\",\"\",'1. Order'!BD257)","v":""},{"$f":"IF('1. Order'!BE257=\"\",\"\",'1. Order'!BE257)","v":""},{"$f":"IF('1. Order'!BG257=\"\",\"\",'1. Order'!BG257)","v":""},{"$f":"IF('1. Order'!BH257=\"\",\"\",'1. Order'!BH257)","v":""},{"$f":"IF('1. Order'!BI257=\"\",\"\",'1. Order'!BI257)","v":""},{"$f":"IF('1. Order'!BJ257=\"\",\"\",'1. Order'!BJ257)","v":""},{"$f":"IF('1. Order'!BK257=\"\",\"\",'1. Order'!BK257)","v":"ZWO"}]
[{"$f":"IF('1. Order'!G258=\"\",\"\",'1. Order'!G258)","v":""},{"$f":"IF('1. Order'!H258=\"\",\"\",'1. Order'!H258)","v":""},{"$f":"IF('1. Order'!I258=\"\",\"\",'1. Order'!I258)","v":""},{"$f":"IF('1. Order'!J258=\"\",\"\",'1. Order'!J258)","v":""},{"$f":"IF('1. Order'!K258=\"\",\"\",'1. Order'!K258)","v":""},{"$f":"IF('1. Order'!L258=\"\",\"\",'1. Order'!L258)","v":""},{"$f":"IF('1. Order'!M258=\"\",\"\",'1. Order'!M258)","v":""},{"$f":"IF('1. Order'!N258=\"\",\"\",'1. Order'!N258)","v":""},{"$f":"IF('1. Order'!P258=\"\",\"\",'1. Order'!P258)","v":""},{"$f":"IF('1. Order'!Q258=\"\",\"\",'1. Order'!Q258)","v":{"$error":"#N/A"}},{"$f":"IF('1. Order'!R258=\"\",\"\",'1. Order'!R258)","v":{"$error":"#N/A"}},{"$f":"IF('1. Order'!S258=\"\",\"\",'1. Order'!S258)","v":""},{"$f":"IF('1. Order'!T258=\"\",\"\",'1. Order'!T258)","v":""},{"$f":"IF('1. Order'!U258=\"\",\"\",'1. Order'!U258)","v":""},{"$f":"IF('1. Order'!X258=\"\",\"\",'1. Order'!X258)","v":""},{"$f":"IF('1. Order'!Y258=\"\",\"\",'1. Order'!Y258)","v":""},{"$f":"IF('1. Order'!Z258=\"\",\"\",'1. Order'!Z258)","v":""},{"$f":"IF('1. Order'!AC258=\"\",\"\",'1. Order'!AC258)","v":""},{"$f":"IF('1. Order'!AD258=\"\",\"\",'1. Order'!AD258)","v":""},{"$f":"IF('1. Order'!AE258=\"\",\"\",'1. Order'!AE258)","v":""},null,{"$f":"IF('1. Order'!AW258=\"\",\"\",'1. Order'!AW258)","v":""},{"$f":"IF('1. Order'!AX258=\"\",\"\",'1. Order'!AX258)","v":""},null,null,null,null,null,null,null,{"$f":"IF('1. Order'!BB258=\"\",\"\",'1. Order'!BB258)","v":""},{"$f":"IF('1. Order'!BC258=\"\",\"\",'1. Order'!BC258)","v":""},{"$f":"IF('1. Order'!BD258=\"\",\"\",'1. Order'!BD258)","v":""},{"$f":"IF('1. Order'!BE258=\"\",\"\",'1. Order'!BE258)","v":""},{"$f":"IF('1. Order'!BG258=\"\",\"\",'1. Order'!BG258)","v":""},{"$f":"IF('1. Order'!BH258=\"\",\"\",'1. Order'!BH258)","v":""},{"$f":"IF('1. Order'!BI258=\"\",\"\",'1. Order'!BI258)","v":""},{"$f":"IF('1. Order'!BJ258=\"\",\"\",'1. Order'!BJ258)","v":""},{"$f":"IF('1. Order'!BK258=\"\",\"\",'1. Order'!BK258)","v":"ZWO"}]
[{"$f":"IF('1. Order'!G259=\"\",\"\",'1. Order'!G259)","v":""},{"$f":"IF('1. Order'!H259=\"\",\"\",'1. Order'!H259)","v":""},{"$f":"IF('1. Order'!I259=\"\",\"\",'1. Order'!I259)","v":""},{"$f":"IF('1. Order'!J259=\"\",\"\",'1. Order'!J259)","v":""},{"$f":"IF('1. Order'!K259=\"\",\"\",'1. Order'!K259)","v":""},{"$f":"IF('1. Order'!L259=\"\",\"\",'1. Order'!L259)","v":""},{"$f":"IF('1. Order'!M259=\"\",\"\",'1. Order'!M259)","v":""},{"$f":"IF('1. Order'!N259=\"\",\"\",'1. Order'!N259)","v":""},{"$f":"IF('1. Order'!P259=\"\",\"\",'1. Order'!P259)","v":""},{"$f":"IF('1. Order'!Q259=\"\",\"\",'1. Order'!Q259)","v":{"$error":"#N/A"}},{"$f":"IF('1. Order'!R259=\"\",\"\",'1. Order'!R259)","v":{"$error":"#N/A"}},{"$f":"IF('1. Order'!S259=\"\",\"\",'1. Order'!S259)","v":""},{"$f":"IF('1. Order'!T259=\"\",\"\",'1. Order'!T259)","v":""},{"$f":"IF('1. Order'!U259=\"\",\"\",'1. Order'!U259)","v":""},{"$f":"IF('1. Order'!X259=\"\",\"\",'1. Order'!X259)","v":""},{"$f":"IF('1. Order'!Y259=\"\",\"\",'1. Order'!Y259)","v":""},{"$f":"IF('1. Order'!Z259=\"\",\"\",'1. Order'!Z259)","v":""},{"$f":"IF('1. Order'!AC259=\"\",\"\",'1. Order'!AC259)","v":""},{"$f":"IF('1. Order'!AD259=\"\",\"\",'1. Order'!AD259)","v":""},{"$f":"IF('1. Order'!AE259=\"\",\"\",'1. Order'!AE259)","v":""},null,{"$f":"IF('1. Order'!AW259=\"\",\"\",'1. Order'!AW259)","v":""},{"$f":"IF('1. Order'!AX259=\"\",\"\",'1. Order'!AX259)","v":""},null,null,null,null,null,null,null,{"$f":"IF('1. Order'!BB259=\"\",\"\",'1. Order'!BB259)","v":""},{"$f":"IF('1. Order'!BC259=\"\",\"\",'1. Order'!BC259)","v":""},{"$f":"IF('1. Order'!BD259=\"\",\"\",'1. Order'!BD259)","v":""},{"$f":"IF('1. Order'!BE259=\"\",\"\",'1. Order'!BE259)","v":""},{"$f":"IF('1. Order'!BG259=\"\",\"\",'1. Order'!BG259)","v":""},{"$f":"IF('1. Order'!BH259=\"\",\"\",'1. Order'!BH259)","v":""},{"$f":"IF('1. Order'!BI259=\"\",\"\",'1. Order'!BI259)","v":""},{"$f":"IF('1. Order'!BJ259=\"\",\"\",'1. Order'!BJ259)","v":""},{"$f":"IF('1. Order'!BK259=\"\",\"\",'1. Order'!BK259)","v":"ZWO"}]
[{"$f":"IF('1. Order'!G260=\"\",\"\",'1. Order'!G260)","v":""},{"$f":"IF('1. Order'!H260=\"\",\"\",'1. Order'!H260)","v":""},{"$f":"IF('1. Order'!I260=\"\",\"\",'1. Order'!I260)","v":""},{"$f":"IF('1. Order'!J260=\"\",\"\",'1. Order'!J260)","v":""},{"$f":"IF('1. Order'!K260=\"\",\"\",'1. Order'!K260)","v":""},{"$f":"IF('1. Order'!L260=\"\",\"\",'1. Order'!L260)","v":""},{"$f":"IF('1. Order'!M260=\"\",\"\",'1. Order'!M260)","v":""},{"$f":"IF('1. Order'!N260=\"\",\"\",'1. Order'!N260)","v":""},{"$f":"IF('1. Order'!P260=\"\",\"\",'1. Order'!P260)","v":""},{"$f":"IF('1. Order'!Q260=\"\",\"\",'1. Order'!Q260)","v":{"$error":"#N/A"}},{"$f":"IF('1. Order'!R260=\"\",\"\",'1. Order'!R260)","v":{"$error":"#N/A"}},{"$f":"IF('1. Order'!S260=\"\",\"\",'1. Order'!S260)","v":""},{"$f":"IF('1. Order'!T260=\"\",\"\",'1. Order'!T260)","v":""},{"$f":"IF('1. Order'!U260=\"\",\"\",'1. Order'!U260)","v":""},{"$f":"IF('1. Order'!X260=\"\",\"\",'1. Order'!X260)","v":""},{"$f":"IF('1. Order'!Y260=\"\",\"\",'1. Order'!Y260)","v":""},{"$f":"IF('1. Order'!Z260=\"\",\"\",'1. Order'!Z260)","v":""},{"$f":"IF('1. Order'!AC260=\"\",\"\",'1. Order'!AC260)","v":""},{"$f":"IF('1. Order'!AD260=\"\",\"\",'1. Order'!AD260)","v":""},{"$f":"IF('1. Order'!AE260=\"\",\"\",'1. Order'!AE260)","v":""},null,{"$f":"IF('1. Order'!AW260=\"\",\"\",'1. Order'!AW260)","v":""},{"$f":"IF('1. Order'!AX260=\"\",\"\",'1. Order'!AX260)","v":""},null,null,null,null,null,null,null,{"$f":"IF('1. Order'!BB260=\"\",\"\",'1. Order'!BB260)","v":""},{"$f":"IF('1. Order'!BC260=\"\",\"\",'1. Order'!BC260)","v":""},{"$f":"IF('1. Order'!BD260=\"\",\"\",'1. Order'!BD260)","v":""},{"$f":"IF('1. Order'!BE260=\"\",\"\",'1. Order'!BE260)","v":""},{"$f":"IF('1. Order'!BG260=\"\",\"\",'1. Order'!BG260)","v":""},{"$f":"IF('1. Order'!BH260=\"\",\"\",'1. Order'!BH260)","v":""},{"$f":"IF('1. Order'!BI260=\"\",\"\",'1. Order'!BI260)","v":""},{"$f":"IF('1. Order'!BJ260=\"\",\"\",'1. Order'!BJ260)","v":""},{"$f":"IF('1. Order'!BK260=\"\",\"\",'1. Order'!BK260)","v":"ZWO"}]
[{"$f":"IF('1. Order'!G261=\"\",\"\",'1. Order'!G261)","v":""},{"$f":"IF('1. Order'!H261=\"\",\"\",'1. Order'!H261)","v":""},{"$f":"IF('1. Order'!I261=\"\",\"\",'1. Order'!I261)","v":""},{"$f":"IF('1. Order'!J261=\"\",\"\",'1. Order'!J261)","v":""},{"$f":"IF('1. Order'!K261=\"\",\"\",'1. Order'!K261)","v":""},{"$f":"IF('1. Order'!L261=\"\",\"\",'1. Order'!L261)","v":""},{"$f":"IF('1. Order'!M261=\"\",\"\",'1. Order'!M261)","v":""},{"$f":"IF('1. Order'!N261=\"\",\"\",'1. Order'!N261)","v":""},{"$f":"IF('1. Order'!P261=\"\",\"\",'1. Order'!P261)","v":""},{"$f":"IF('1. Order'!Q261=\"\",\"\",'1. Order'!Q261)","v":{"$error":"#N/A"}},{"$f":"IF('1. Order'!R261=\"\",\"\",'1. Order'!R261)","v":{"$error":"#N/A"}},{"$f":"IF('1. Order'!S261=\"\",\"\",'1. Order'!S261)","v":""},{"$f":"IF('1. Order'!T261=\"\",\"\",'1. Order'!T261)","v":""},{"$f":"IF('1. Order'!U261=\"\",\"\",'1. Order'!U261)","v":""},{"$f":"IF('1. Order'!X261=\"\",\"\",'1. Order'!X261)","v":""},{"$f":"IF('1. Order'!Y261=\"\",\"\",'1. Order'!Y261)","v":""},{"$f":"IF('1. Order'!Z261=\"\",\"\",'1. Order'!Z261)","v":""},{"$f":"IF('1. Order'!AC261=\"\",\"\",'1. Order'!AC261)","v":""},{"$f":"IF('1. Order'!AD261=\"\",\"\",'1. Order'!AD261)","v":""},{"$f":"IF('1. Order'!AE261=\"\",\"\",'1. Order'!AE261)","v":""},null,{"$f":"IF('1. Order'!AW261=\"\",\"\",'1. Order'!AW261)","v":""},{"$f":"IF('1. Order'!AX261=\"\",\"\",'1. Order'!AX261)","v":""},null,null,null,null,null,null,null,{"$f":"IF('1. Order'!BB261=\"\",\"\",'1. Order'!BB261)","v":""},{"$f":"IF('1. Order'!BC261=\"\",\"\",'1. Order'!BC261)","v":""},{"$f":"IF('1. Order'!BD261=\"\",\"\",'1. Order'!BD261)","v":""},{"$f":"IF('1. Order'!BE261=\"\",\"\",'1. Order'!BE261)","v":""},{"$f":"IF('1. Order'!BG261=\"\",\"\",'1. Order'!BG261)","v":""},{"$f":"IF('1. Order'!BH261=\"\",\"\",'1. Order'!BH261)","v":""},{"$f":"IF('1. Order'!BI261=\"\",\"\",'1. Order'!BI261)","v":""},{"$f":"IF('1. Order'!BJ261=\"\",\"\",'1. Order'!BJ261)","v":""},{"$f":"IF('1. Order'!BK261=\"\",\"\",'1. Order'!BK261)","v":"ZWO"}]
[{"$f":"IF('1. Order'!G262=\"\",\"\",'1. Order'!G262)","v":""},{"$f":"IF('1. Order'!H262=\"\",\"\",'1. Order'!H262)","v":""},{"$f":"IF('1. Order'!I262=\"\",\"\",'1. Order'!I262)","v":""},{"$f":"IF('1. Order'!J262=\"\",\"\",'1. Order'!J262)","v":""},{"$f":"IF('1. Order'!K262=\"\",\"\",'1. Order'!K262)","v":""},{"$f":"IF('1. Order'!L262=\"\",\"\",'1. Order'!L262)","v":""},{"$f":"IF('1. Order'!M262=\"\",\"\",'1. Order'!M262)","v":""},{"$f":"IF('1. Order'!N262=\"\",\"\",'1. Order'!N262)","v":""},{"$f":"IF('1. Order'!P262=\"\",\"\",'1. Order'!P262)","v":""},{"$f":"IF('1. Order'!Q262=\"\",\"\",'1. Order'!Q262)","v":{"$error":"#N/A"}},{"$f":"IF('1. Order'!R262=\"\",\"\",'1. Order'!R262)","v":{"$error":"#N/A"}},{"$f":"IF('1. Order'!S262=\"\",\"\",'1. Order'!S262)","v":""},{"$f":"IF('1. Order'!T262=\"\",\"\",'1. Order'!T262)","v":""},{"$f":"IF('1. Order'!U262=\"\",\"\",'1. Order'!U262)","v":""},{"$f":"IF('1. Order'!X262=\"\",\"\",'1. Order'!X262)","v":""},{"$f":"IF('1. Order'!Y262=\"\",\"\",'1. Order'!Y262)","v":""},{"$f":"IF('1. Order'!Z262=\"\",\"\",'1. Order'!Z262)","v":""},{"$f":"IF('1. Order'!AC262=\"\",\"\",'1. Order'!AC262)","v":""},{"$f":"IF('1. Order'!AD262=\"\",\"\",'1. Order'!AD262)","v":""},{"$f":"IF('1. Order'!AE262=\"\",\"\",'1. Order'!AE262)","v":""},null,{"$f":"IF('1. Order'!AW262=\"\",\"\",'1. Order'!AW262)","v":""},{"$f":"IF('1. Order'!AX262=\"\",\"\",'1. Order'!AX262)","v":""},null,null,null,null,null,null,null,{"$f":"IF('1. Order'!BB262=\"\",\"\",'1. Order'!BB262)","v":""},{"$f":"IF('1. Order'!BC262=\"\",\"\",'1. Order'!BC262)","v":""},{"$f":"IF('1. Order'!BD262=\"\",\"\",'1. Order'!BD262)","v":""},{"$f":"IF('1. Order'!BE262=\"\",\"\",'1. Order'!BE262)","v":""},{"$f":"IF('1. Order'!BG262=\"\",\"\",'1. Order'!BG262)","v":""},{"$f":"IF('1. Order'!BH262=\"\",\"\",'1. Order'!BH262)","v":""},{"$f":"IF('1. Order'!BI262=\"\",\"\",'1. Order'!BI262)","v":""},{"$f":"IF('1. Order'!BJ262=\"\",\"\",'1. Order'!BJ262)","v":""},{"$f":"IF('1. Order'!BK262=\"\",\"\",'1. Order'!BK262)","v":"ZWO"}]
[{"$f":"IF('1. Order'!G263=\"\",\"\",'1. Order'!G263)","v":""},{"$f":"IF('1. Order'!H263=\"\",\"\",'1. Order'!H263)","v":""},{"$f":"IF('1. Order'!I263=\"\",\"\",'1. Order'!I263)","v":""},{"$f":"IF('1. Order'!J263=\"\",\"\",'1. Order'!J263)","v":""},{"$f":"IF('1. Order'!K263=\"\",\"\",'1. Order'!K263)","v":""},{"$f":"IF('1. Order'!L263=\"\",\"\",'1. Order'!L263)","v":""},{"$f":"IF('1. Order'!M263=\"\",\"\",'1. Order'!M263)","v":""},{"$f":"IF('1. Order'!N263=\"\",\"\",'1. Order'!N263)","v":""},{"$f":"IF('1. Order'!P263=\"\",\"\",'1. Order'!P263)","v":""},{"$f":"IF('1. Order'!Q263=\"\",\"\",'1. Order'!Q263)","v":{"$error":"#N/A"}},{"$f":"IF('1. Order'!R263=\"\",\"\",'1. Order'!R263)","v":{"$error":"#N/A"}},{"$f":"IF('1. Order'!S263=\"\",\"\",'1. Order'!S263)","v":""},{"$f":"IF('1. Order'!T263=\"\",\"\",'1. Order'!T263)","v":""},{"$f":"IF('1. Order'!U263=\"\",\"\",'1. Order'!U263)","v":""},{"$f":"IF('1. Order'!X263=\"\",\"\",'1. Order'!X263)","v":""},{"$f":"IF('1. Order'!Y263=\"\",\"\",'1. Order'!Y263)","v":""},{"$f":"IF('1. Order'!Z263=\"\",\"\",'1. Order'!Z263)","v":""},{"$f":"IF('1. Order'!AC263=\"\",\"\",'1. Order'!AC263)","v":""},{"$f":"IF('1. Order'!AD263=\"\",\"\",'1. Order'!AD263)","v":""},{"$f":"IF('1. Order'!AE263=\"\",\"\",'1. Order'!AE263)","v":""},null,{"$f":"IF('1. Order'!AW263=\"\",\"\",'1. Order'!AW263)","v":""},{"$f":"IF('1. Order'!AX263=\"\",\"\",'1. Order'!AX263)","v":""},null,null,null,null,null,null,null,{"$f":"IF('1. Order'!BB263=\"\",\"\",'1. Order'!BB263)","v":""},{"$f":"IF('1. Order'!BC263=\"\",\"\",'1. Order'!BC263)","v":""},{"$f":"IF('1. Order'!BD263=\"\",\"\",'1. Order'!BD263)","v":""},{"$f":"IF('1. Order'!BE263=\"\",\"\",'1. Order'!BE263)","v":""},{"$f":"IF('1. Order'!BG263=\"\",\"\",'1. Order'!BG263)","v":""},{"$f":"IF('1. Order'!BH263=\"\",\"\",'1. Order'!BH263)","v":""},{"$f":"IF('1. Order'!BI263=\"\",\"\",'1. Order'!BI263)","v":""},{"$f":"IF('1. Order'!BJ263=\"\",\"\",'1. Order'!BJ263)","v":""},{"$f":"IF('1. Order'!BK263=\"\",\"\",'1. Order'!BK263)","v":"ZWO"}]
[{"$f":"IF('1. Order'!G264=\"\",\"\",'1. Order'!G264)","v":""},{"$f":"IF('1. Order'!H264=\"\",\"\",'1. Order'!H264)","v":""},{"$f":"IF('1. Order'!I264=\"\",\"\",'1. Order'!I264)","v":""},{"$f":"IF('1. Order'!J264=\"\",\"\",'1. Order'!J264)","v":""},{"$f":"IF('1. Order'!K264=\"\",\"\",'1. Order'!K264)","v":""},{"$f":"IF('1. Order'!L264=\"\",\"\",'1. Order'!L264)","v":""},{"$f":"IF('1. Order'!M264=\"\",\"\",'1. Order'!M264)","v":""},{"$f":"IF('1. Order'!N264=\"\",\"\",'1. Order'!N264)","v":""},{"$f":"IF('1. Order'!P264=\"\",\"\",'1. Order'!P264)","v":""},{"$f":"IF('1. Order'!Q264=\"\",\"\",'1. Order'!Q264)","v":{"$error":"#N/A"}},{"$f":"IF('1. Order'!R264=\"\",\"\",'1. Order'!R264)","v":{"$error":"#N/A"}},{"$f":"IF('1. Order'!S264=\"\",\"\",'1. Order'!S264)","v":""},{"$f":"IF('1. Order'!T264=\"\",\"\",'1. Order'!T264)","v":""},{"$f":"IF('1. Order'!U264=\"\",\"\",'1. Order'!U264)","v":""},{"$f":"IF('1. Order'!X264=\"\",\"\",'1. Order'!X264)","v":""},{"$f":"IF('1. Order'!Y264=\"\",\"\",'1. Order'!Y264)","v":""},{"$f":"IF('1. Order'!Z264=\"\",\"\",'1. Order'!Z264)","v":""},{"$f":"IF('1. Order'!AC264=\"\",\"\",'1. Order'!AC264)","v":""},{"$f":"IF('1. Order'!AD264=\"\",\"\",'1. Order'!AD264)","v":""},{"$f":"IF('1. Order'!AE264=\"\",\"\",'1. Order'!AE264)","v":""},null,{"$f":"IF('1. Order'!AW264=\"\",\"\",'1. Order'!AW264)","v":""},{"$f":"IF('1. Order'!AX264=\"\",\"\",'1. Order'!AX264)","v":""},null,null,null,null,null,null,null,{"$f":"IF('1. Order'!BB264=\"\",\"\",'1. Order'!BB264)","v":""},{"$f":"IF('1. Order'!BC264=\"\",\"\",'1. Order'!BC264)","v":""},{"$f":"IF('1. Order'!BD264=\"\",\"\",'1. Order'!BD264)","v":""},{"$f":"IF('1. Order'!BE264=\"\",\"\",'1. Order'!BE264)","v":""},{"$f":"IF('1. Order'!BG264=\"\",\"\",'1. Order'!BG264)","v":""},{"$f":"IF('1. Order'!BH264=\"\",\"\",'1. Order'!BH264)","v":""},{"$f":"IF('1. Order'!BI264=\"\",\"\",'1. Order'!BI264)","v":""},{"$f":"IF('1. Order'!BJ264=\"\",\"\",'1. Order'!BJ264)","v":""},{"$f":"IF('1. Order'!BK264=\"\",\"\",'1. Order'!BK264)","v":"ZWO"}]
[{"$f":"IF('1. Order'!G265=\"\",\"\",'1. Order'!G265)","v":""},{"$f":"IF('1. Order'!H265=\"\",\"\",'1. Order'!H265)","v":""},{"$f":"IF('1. Order'!I265=\"\",\"\",'1. Order'!I265)","v":""},{"$f":"IF('1. Order'!J265=\"\",\"\",'1. Order'!J265)","v":""},{"$f":"IF('1. Order'!K265=\"\",\"\",'1. Order'!K265)","v":""},{"$f":"IF('1. Order'!L265=\"\",\"\",'1. Order'!L265)","v":""},{"$f":"IF('1. Order'!M265=\"\",\"\",'1. Order'!M265)","v":""},{"$f":"IF('1. Order'!N265=\"\",\"\",'1. Order'!N265)","v":""},{"$f":"IF('1. Order'!P265=\"\",\"\",'1. Order'!P265)","v":""},{"$f":"IF('1. Order'!Q265=\"\",\"\",'1. Order'!Q265)","v":{"$error":"#N/A"}},{"$f":"IF('1. Order'!R265=\"\",\"\",'1. Order'!R265)","v":{"$error":"#N/A"}},{"$f":"IF('1. Order'!S265=\"\",\"\",'1. Order'!S265)","v":""},{"$f":"IF('1. Order'!T265=\"\",\"\",'1. Order'!T265)","v":""},{"$f":"IF('1. Order'!U265=\"\",\"\",'1. Order'!U265)","v":""},{"$f":"IF('1. Order'!X265=\"\",\"\",'1. Order'!X265)","v":""},{"$f":"IF('1. Order'!Y265=\"\",\"\",'1. Order'!Y265)","v":""},{"$f":"IF('1. Order'!Z265=\"\",\"\",'1. Order'!Z265)","v":""},{"$f":"IF('1. Order'!AC265=\"\",\"\",'1. Order'!AC265)","v":""},{"$f":"IF('1. Order'!AD265=\"\",\"\",'1. Order'!AD265)","v":""},{"$f":"IF('1. Order'!AE265=\"\",\"\",'1. Order'!AE265)","v":""},null,{"$f":"IF('1. Order'!AW265=\"\",\"\",'1. Order'!AW265)","v":""},{"$f":"IF('1. Order'!AX265=\"\",\"\",'1. Order'!AX265)","v":""},null,null,null,null,null,null,null,{"$f":"IF('1. Order'!BB265=\"\",\"\",'1. Order'!BB265)","v":""},{"$f":"IF('1. Order'!BC265=\"\",\"\",'1. Order'!BC265)","v":""},{"$f":"IF('1. Order'!BD265=\"\",\"\",'1. Order'!BD265)","v":""},{"$f":"IF('1. Order'!BE265=\"\",\"\",'1. Order'!BE265)","v":""},{"$f":"IF('1. Order'!BG265=\"\",\"\",'1. Order'!BG265)","v":""},{"$f":"IF('1. Order'!BH265=\"\",\"\",'1. Order'!BH265)","v":""},{"$f":"IF('1. Order'!BI265=\"\",\"\",'1. Order'!BI265)","v":""},{"$f":"IF('1. Order'!BJ265=\"\",\"\",'1. Order'!BJ265)","v":""},{"$f":"IF('1. Order'!BK265=\"\",\"\",'1. Order'!BK265)","v":"ZWO"}]
[{"$f":"IF('1. Order'!G266=\"\",\"\",'1. Order'!G266)","v":""},{"$f":"IF('1. Order'!H266=\"\",\"\",'1. Order'!H266)","v":""},{"$f":"IF('1. Order'!I266=\"\",\"\",'1. Order'!I266)","v":""},{"$f":"IF('1. Order'!J266=\"\",\"\",'1. Order'!J266)","v":""},{"$f":"IF('1. Order'!K266=\"\",\"\",'1. Order'!K266)","v":""},{"$f":"IF('1. Order'!L266=\"\",\"\",'1. Order'!L266)","v":""},{"$f":"IF('1. Order'!M266=\"\",\"\",'1. Order'!M266)","v":""},{"$f":"IF('1. Order'!N266=\"\",\"\",'1. Order'!N266)","v":""},{"$f":"IF('1. Order'!P266=\"\",\"\",'1. Order'!P266)","v":""},{"$f":"IF('1. Order'!Q266=\"\",\"\",'1. Order'!Q266)","v":{"$error":"#N/A"}},{"$f":"IF('1. Order'!R266=\"\",\"\",'1. Order'!R266)","v":{"$error":"#N/A"}},{"$f":"IF('1. Order'!S266=\"\",\"\",'1. Order'!S266)","v":""},{"$f":"IF('1. Order'!T266=\"\",\"\",'1. Order'!T266)","v":""},{"$f":"IF('1. Order'!U266=\"\",\"\",'1. Order'!U266)","v":""},{"$f":"IF('1. Order'!X266=\"\",\"\",'1. Order'!X266)","v":""},{"$f":"IF('1. Order'!Y266=\"\",\"\",'1. Order'!Y266)","v":""},{"$f":"IF('1. Order'!Z266=\"\",\"\",'1. Order'!Z266)","v":""},{"$f":"IF('1. Order'!AC266=\"\",\"\",'1. Order'!AC266)","v":""},{"$f":"IF('1. Order'!AD266=\"\",\"\",'1. Order'!AD266)","v":""},{"$f":"IF('1. Order'!AE266=\"\",\"\",'1. Order'!AE266)","v":""},null,{"$f":"IF('1. Order'!AW266=\"\",\"\",'1. Order'!AW266)","v":""},{"$f":"IF('1. Order'!AX266=\"\",\"\",'1. Order'!AX266)","v":""},null,null,null,null,null,null,null,{"$f":"IF('1. Order'!BB266=\"\",\"\",'1. Order'!BB266)","v":""},{"$f":"IF('1. Order'!BC266=\"\",\"\",'1. Order'!BC266)","v":""},{"$f":"IF('1. Order'!BD266=\"\",\"\",'1. Order'!BD266)","v":""},{"$f":"IF('1. Order'!BE266=\"\",\"\",'1. Order'!BE266)","v":""},{"$f":"IF('1. Order'!BG266=\"\",\"\",'1. Order'!BG266)","v":""},{"$f":"IF('1. Order'!BH266=\"\",\"\",'1. Order'!BH266)","v":""},{"$f":"IF('1. Order'!BI266=\"\",\"\",'1. Order'!BI266)","v":""},{"$f":"IF('1. Order'!BJ266=\"\",\"\",'1. Order'!BJ266)","v":""},{"$f":"IF('1. Order'!BK266=\"\",\"\",'1. Order'!BK266)","v":"ZWO"}]
[{"$f":"IF('1. Order'!G267=\"\",\"\",'1. Order'!G267)","v":""},{"$f":"IF('1. Order'!H267=\"\",\"\",'1. Order'!H267)","v":""},{"$f":"IF('1. Order'!I267=\"\",\"\",'1. Order'!I267)","v":""},{"$f":"IF('1. Order'!J267=\"\",\"\",'1. Order'!J267)","v":""},{"$f":"IF('1. Order'!K267=\"\",\"\",'1. Order'!K267)","v":""},{"$f":"IF('1. Order'!L267=\"\",\"\",'1. Order'!L267)","v":""},{"$f":"IF('1. Order'!M267=\"\",\"\",'1. Order'!M267)","v":""},{"$f":"IF('1. Order'!N267=\"\",\"\",'1. Order'!N267)","v":""},{"$f":"IF('1. Order'!P267=\"\",\"\",'1. Order'!P267)","v":""},{"$f":"IF('1. Order'!Q267=\"\",\"\",'1. Order'!Q267)","v":{"$error":"#N/A"}},{"$f":"IF('1. Order'!R267=\"\",\"\",'1. Order'!R267)","v":{"$error":"#N/A"}},{"$f":"IF('1. Order'!S267=\"\",\"\",'1. Order'!S267)","v":""},{"$f":"IF('1. Order'!T267=\"\",\"\",'1. Order'!T267)","v":""},{"$f":"IF('1. Order'!U267=\"\",\"\",'1. Order'!U267)","v":""},{"$f":"IF('1. Order'!X267=\"\",\"\",'1. Order'!X267)","v":""},{"$f":"IF('1. Order'!Y267=\"\",\"\",'1. Order'!Y267)","v":""},{"$f":"IF('1. Order'!Z267=\"\",\"\",'1. Order'!Z267)","v":""},{"$f":"IF('1. Order'!AC267=\"\",\"\",'1. Order'!AC267)","v":""},{"$f":"IF('1. Order'!AD267=\"\",\"\",'1. Order'!AD267)","v":""},{"$f":"IF('1. Order'!AE267=\"\",\"\",'1. Order'!AE267)","v":""},null,{"$f":"IF('1. Order'!AW267=\"\",\"\",'1. Order'!AW267)","v":""},{"$f":"IF('1. Order'!AX267=\"\",\"\",'1. Order'!AX267)","v":""},null,null,null,null,null,null,null,{"$f":"IF('1. Order'!BB267=\"\",\"\",'1. Order'!BB267)","v":""},{"$f":"IF('1. Order'!BC267=\"\",\"\",'1. Order'!BC267)","v":""},{"$f":"IF('1. Order'!BD267=\"\",\"\",'1. Order'!BD267)","v":""},{"$f":"IF('1. Order'!BE267=\"\",\"\",'1. Order'!BE267)","v":""},{"$f":"IF('1. Order'!BG267=\"\",\"\",'1. Order'!BG267)","v":""},{"$f":"IF('1. Order'!BH267=\"\",\"\",'1. Order'!BH267)","v":""},{"$f":"IF('1. Order'!BI267=\"\",\"\",'1. Order'!BI267)","v":""},{"$f":"IF('1. Order'!BJ267=\"\",\"\",'1. Order'!BJ267)","v":""},{"$f":"IF('1. Order'!BK267=\"\",\"\",'1. Order'!BK267)","v":"ZWO"}]
[{"$f":"IF('1. Order'!G268=\"\",\"\",'1. Order'!G268)","v":""},{"$f":"IF('1. Order'!H268=\"\",\"\",'1. Order'!H268)","v":""},{"$f":"IF('1. Order'!I268=\"\",\"\",'1. Order'!I268)","v":""},{"$f":"IF('1. Order'!J268=\"\",\"\",'1. Order'!J268)","v":""},{"$f":"IF('1. Order'!K268=\"\",\"\",'1. Order'!K268)","v":""},{"$f":"IF('1. Order'!L268=\"\",\"\",'1. Order'!L268)","v":""},{"$f":"IF('1. Order'!M268=\"\",\"\",'1. Order'!M268)","v":""},{"$f":"IF('1. Order'!N268=\"\",\"\",'1. Order'!N268)","v":""},{"$f":"IF('1. Order'!P268=\"\",\"\",'1. Order'!P268)","v":""},{"$f":"IF('1. Order'!Q268=\"\",\"\",'1. Order'!Q268)","v":{"$error":"#N/A"}},{"$f":"IF('1. Order'!R268=\"\",\"\",'1. Order'!R268)","v":{"$error":"#N/A"}},{"$f":"IF('1. Order'!S268=\"\",\"\",'1. Order'!S268)","v":""},{"$f":"IF('1. Order'!T268=\"\",\"\",'1. Order'!T268)","v":""},{"$f":"IF('1. Order'!U268=\"\",\"\",'1. Order'!U268)","v":""},{"$f":"IF('1. Order'!X268=\"\",\"\",'1. Order'!X268)","v":""},{"$f":"IF('1. Order'!Y268=\"\",\"\",'1. Order'!Y268)","v":""},{"$f":"IF('1. Order'!Z268=\"\",\"\",'1. Order'!Z268)","v":""},{"$f":"IF('1. Order'!AC268=\"\",\"\",'1. Order'!AC268)","v":""},{"$f":"IF('1. Order'!AD268=\"\",\"\",'1. Order'!AD268)","v":""},{"$f":"IF('1. Order'!AE268=\"\",\"\",'1. Order'!AE268)","v":""},null,{"$f":"IF('1. Order'!AW268=\"\",\"\",'1. Order'!AW268)","v":""},{"$f":"IF('1. Order'!AX268=\"\",\"\",'1. Order'!AX268)","v":""},null,null,null,null,null,null,null,{"$f":"IF('1. Order'!BB268=\"\",\"\",'1. Order'!BB268)","v":""},{"$f":"IF('1. Order'!BC268=\"\",\"\",'1. Order'!BC268)","v":""},{"$f":"IF('1. Order'!BD268=\"\",\"\",'1. Order'!BD268)","v":""},{"$f":"IF('1. Order'!BE268=\"\",\"\",'1. Order'!BE268)","v":""},{"$f":"IF('1. Order'!BG268=\"\",\"\",'1. Order'!BG268)","v":""},{"$f":"IF('1. Order'!BH268=\"\",\"\",'1. Order'!BH268)","v":""},{"$f":"IF('1. Order'!BI268=\"\",\"\",'1. Order'!BI268)","v":""},{"$f":"IF('1. Order'!BJ268=\"\",\"\",'1. Order'!BJ268)","v":""},{"$f":"IF('1. Order'!BK268=\"\",\"\",'1. Order'!BK268)","v":"ZWO"}]
[{"$f":"IF('1. Order'!G269=\"\",\"\",'1. Order'!G269)","v":""},{"$f":"IF('1. Order'!H269=\"\",\"\",'1. Order'!H269)","v":""},{"$f":"IF('1. Order'!I269=\"\",\"\",'1. Order'!I269)","v":""},{"$f":"IF('1. Order'!J269=\"\",\"\",'1. Order'!J269)","v":""},{"$f":"IF('1. Order'!K269=\"\",\"\",'1. Order'!K269)","v":""},{"$f":"IF('1. Order'!L269=\"\",\"\",'1. Order'!L269)","v":""},{"$f":"IF('1. Order'!M269=\"\",\"\",'1. Order'!M269)","v":""},{"$f":"IF('1. Order'!N269=\"\",\"\",'1. Order'!N269)","v":""},{"$f":"IF('1. Order'!P269=\"\",\"\",'1. Order'!P269)","v":""},{"$f":"IF('1. Order'!Q269=\"\",\"\",'1. Order'!Q269)","v":{"$error":"#N/A"}},{"$f":"IF('1. Order'!R269=\"\",\"\",'1. Order'!R269)","v":{"$error":"#N/A"}},{"$f":"IF('1. Order'!S269=\"\",\"\",'1. Order'!S269)","v":""},{"$f":"IF('1. Order'!T269=\"\",\"\",'1. Order'!T269)","v":""},{"$f":"IF('1. Order'!U269=\"\",\"\",'1. Order'!U269)","v":""},{"$f":"IF('1. Order'!X269=\"\",\"\",'1. Order'!X269)","v":""},{"$f":"IF('1. Order'!Y269=\"\",\"\",'1. Order'!Y269)","v":""},{"$f":"IF('1. Order'!Z269=\"\",\"\",'1. Order'!Z269)","v":""},{"$f":"IF('1. Order'!AC269=\"\",\"\",'1. Order'!AC269)","v":""},{"$f":"IF('1. Order'!AD269=\"\",\"\",'1. Order'!AD269)","v":""},{"$f":"IF('1. Order'!AE269=\"\",\"\",'1. Order'!AE269)","v":""},null,{"$f":"IF('1. Order'!AW269=\"\",\"\",'1. Order'!AW269)","v":""},{"$f":"IF('1. Order'!AX269=\"\",\"\",'1. Order'!AX269)","v":""},null,null,null,null,null,null,null,{"$f":"IF('1. Order'!BB269=\"\",\"\",'1. Order'!BB269)","v":""},{"$f":"IF('1. Order'!BC269=\"\",\"\",'1. Order'!BC269)","v":""},{"$f":"IF('1. Order'!BD269=\"\",\"\",'1. Order'!BD269)","v":""},{"$f":"IF('1. Order'!BE269=\"\",\"\",'1. Order'!BE269)","v":""},{"$f":"IF('1. Order'!BG269=\"\",\"\",'1. Order'!BG269)","v":""},{"$f":"IF('1. Order'!BH269=\"\",\"\",'1. Order'!BH269)","v":""},{"$f":"IF('1. Order'!BI269=\"\",\"\",'1. Order'!BI269)","v":""},{"$f":"IF('1. Order'!BJ269=\"\",\"\",'1. Order'!BJ269)","v":""},{"$f":"IF('1. Order'!BK269=\"\",\"\",'1. Order'!BK269)","v":"ZWO"}]
[{"$f":"IF('1. Order'!G270=\"\",\"\",'1. Order'!G270)","v":""},{"$f":"IF('1. Order'!H270=\"\",\"\",'1. Order'!H270)","v":""},{"$f":"IF('1. Order'!I270=\"\",\"\",'1. Order'!I270)","v":""},{"$f":"IF('1. Order'!J270=\"\",\"\",'1. Order'!J270)","v":""},{"$f":"IF('1. Order'!K270=\"\",\"\",'1. Order'!K270)","v":""},{"$f":"IF('1. Order'!L270=\"\",\"\",'1. Order'!L270)","v":""},{"$f":"IF('1. Order'!M270=\"\",\"\",'1. Order'!M270)","v":""},{"$f":"IF('1. Order'!N270=\"\",\"\",'1. Order'!N270)","v":""},{"$f":"IF('1. Order'!P270=\"\",\"\",'1. Order'!P270)","v":""},{"$f":"IF('1. Order'!Q270=\"\",\"\",'1. Order'!Q270)","v":{"$error":"#N/A"}},{"$f":"IF('1. Order'!R270=\"\",\"\",'1. Order'!R270)","v":{"$error":"#N/A"}},{"$f":"IF('1. Order'!S270=\"\",\"\",'1. Order'!S270)","v":""},{"$f":"IF('1. Order'!T270=\"\",\"\",'1. Order'!T270)","v":""},{"$f":"IF('1. Order'!U270=\"\",\"\",'1. Order'!U270)","v":""},{"$f":"IF('1. Order'!X270=\"\",\"\",'1. Order'!X270)","v":""},{"$f":"IF('1. Order'!Y270=\"\",\"\",'1. Order'!Y270)","v":""},{"$f":"IF('1. Order'!Z270=\"\",\"\",'1. Order'!Z270)","v":""},{"$f":"IF('1. Order'!AC270=\"\",\"\",'1. Order'!AC270)","v":""},{"$f":"IF('1. Order'!AD270=\"\",\"\",'1. Order'!AD270)","v":""},{"$f":"IF('1. Order'!AE270=\"\",\"\",'1. Order'!AE270)","v":""},null,{"$f":"IF('1. Order'!AW270=\"\",\"\",'1. Order'!AW270)","v":""},{"$f":"IF('1. Order'!AX270=\"\",\"\",'1. Order'!AX270)","v":""},null,null,null,null,null,null,null,{"$f":"IF('1. Order'!BB270=\"\",\"\",'1. Order'!BB270)","v":""},{"$f":"IF('1. Order'!BC270=\"\",\"\",'1. Order'!BC270)","v":""},{"$f":"IF('1. Order'!BD270=\"\",\"\",'1. Order'!BD270)","v":""},{"$f":"IF('1. Order'!BE270=\"\",\"\",'1. Order'!BE270)","v":""},{"$f":"IF('1. Order'!BG270=\"\",\"\",'1. Order'!BG270)","v":""},{"$f":"IF('1. Order'!BH270=\"\",\"\",'1. Order'!BH270)","v":""},{"$f":"IF('1. Order'!BI270=\"\",\"\",'1. Order'!BI270)","v":""},{"$f":"IF('1. Order'!BJ270=\"\",\"\",'1. Order'!BJ270)","v":""},{"$f":"IF('1. Order'!BK270=\"\",\"\",'1. Order'!BK270)","v":"ZWO"}]
[{"$f":"IF('1. Order'!G271=\"\",\"\",'1. Order'!G271)","v":""},{"$f":"IF('1. Order'!H271=\"\",\"\",'1. Order'!H271)","v":""},{"$f":"IF('1. Order'!I271=\"\",\"\",'1. Order'!I271)","v":""},{"$f":"IF('1. Order'!J271=\"\",\"\",'1. Order'!J271)","v":""},{"$f":"IF('1. Order'!K271=\"\",\"\",'1. Order'!K271)","v":""},{"$f":"IF('1. Order'!L271=\"\",\"\",'1. Order'!L271)","v":""},{"$f":"IF('1. Order'!M271=\"\",\"\",'1. Order'!M271)","v":""},{"$f":"IF('1. Order'!N271=\"\",\"\",'1. Order'!N271)","v":""},{"$f":"IF('1. Order'!P271=\"\",\"\",'1. Order'!P271)","v":""},{"$f":"IF('1. Order'!Q271=\"\",\"\",'1. Order'!Q271)","v":{"$error":"#N/A"}},{"$f":"IF('1. Order'!R271=\"\",\"\",'1. Order'!R271)","v":{"$error":"#N/A"}},{"$f":"IF('1. Order'!S271=\"\",\"\",'1. Order'!S271)","v":""},{"$f":"IF('1. Order'!T271=\"\",\"\",'1. Order'!T271)","v":""},{"$f":"IF('1. Order'!U271=\"\",\"\",'1. Order'!U271)","v":""},{"$f":"IF('1. Order'!X271=\"\",\"\",'1. Order'!X271)","v":""},{"$f":"IF('1. Order'!Y271=\"\",\"\",'1. Order'!Y271)","v":""},{"$f":"IF('1. Order'!Z271=\"\",\"\",'1. Order'!Z271)","v":""},{"$f":"IF('1. Order'!AC271=\"\",\"\",'1. Order'!AC271)","v":""},{"$f":"IF('1. Order'!AD271=\"\",\"\",'1. Order'!AD271)","v":""},{"$f":"IF('1. Order'!AE271=\"\",\"\",'1. Order'!AE271)","v":""},null,{"$f":"IF('1. Order'!AW271=\"\",\"\",'1. Order'!AW271)","v":""},{"$f":"IF('1. Order'!AX271=\"\",\"\",'1. Order'!AX271)","v":""},null,null,null,null,null,null,null,{"$f":"IF('1. Order'!BB271=\"\",\"\",'1. Order'!BB271)","v":""},{"$f":"IF('1. Order'!BC271=\"\",\"\",'1. Order'!BC271)","v":""},{"$f":"IF('1. Order'!BD271=\"\",\"\",'1. Order'!BD271)","v":""},{"$f":"IF('1. Order'!BE271=\"\",\"\",'1. Order'!BE271)","v":""},{"$f":"IF('1. Order'!BG271=\"\",\"\",'1. Order'!BG271)","v":""},{"$f":"IF('1. Order'!BH271=\"\",\"\",'1. Order'!BH271)","v":""},{"$f":"IF('1. Order'!BI271=\"\",\"\",'1. Order'!BI271)","v":""},{"$f":"IF('1. Order'!BJ271=\"\",\"\",'1. Order'!BJ271)","v":""},{"$f":"IF('1. Order'!BK271=\"\",\"\",'1. Order'!BK271)","v":"ZWO"}]
[{"$f":"IF('1. Order'!G272=\"\",\"\",'1. Order'!G272)","v":""},{"$f":"IF('1. Order'!H272=\"\",\"\",'1. Order'!H272)","v":""},{"$f":"IF('1. Order'!I272=\"\",\"\",'1. Order'!I272)","v":""},{"$f":"IF('1. Order'!J272=\"\",\"\",'1. Order'!J272)","v":""},{"$f":"IF('1. Order'!K272=\"\",\"\",'1. Order'!K272)","v":""},{"$f":"IF('1. Order'!L272=\"\",\"\",'1. Order'!L272)","v":""},{"$f":"IF('1. Order'!M272=\"\",\"\",'1. Order'!M272)","v":""},{"$f":"IF('1. Order'!N272=\"\",\"\",'1. Order'!N272)","v":""},{"$f":"IF('1. Order'!P272=\"\",\"\",'1. Order'!P272)","v":""},{"$f":"IF('1. Order'!Q272=\"\",\"\",'1. Order'!Q272)","v":{"$error":"#N/A"}},{"$f":"IF('1. Order'!R272=\"\",\"\",'1. Order'!R272)","v":{"$error":"#N/A"}},{"$f":"IF('1. Order'!S272=\"\",\"\",'1. Order'!S272)","v":""},{"$f":"IF('1. Order'!T272=\"\",\"\",'1. Order'!T272)","v":""},{"$f":"IF('1. Order'!U272=\"\",\"\",'1. Order'!U272)","v":""},{"$f":"IF('1. Order'!X272=\"\",\"\",'1. Order'!X272)","v":""},{"$f":"IF('1. Order'!Y272=\"\",\"\",'1. Order'!Y272)","v":""},{"$f":"IF('1. Order'!Z272=\"\",\"\",'1. Order'!Z272)","v":""},{"$f":"IF('1. Order'!AC272=\"\",\"\",'1. Order'!AC272)","v":""},{"$f":"IF('1. Order'!AD272=\"\",\"\",'1. Order'!AD272)","v":""},{"$f":"IF('1. Order'!AE272=\"\",\"\",'1. Order'!AE272)","v":""},null,{"$f":"IF('1. Order'!AW272=\"\",\"\",'1. Order'!AW272)","v":""},{"$f":"IF('1. Order'!AX272=\"\",\"\",'1. Order'!AX272)","v":""},null,null,null,null,null,null,null,{"$f":"IF('1. Order'!BB272=\"\",\"\",'1. Order'!BB272)","v":""},{"$f":"IF('1. Order'!BC272=\"\",\"\",'1. Order'!BC272)","v":""},{"$f":"IF('1. Order'!BD272=\"\",\"\",'1. Order'!BD272)","v":""},{"$f":"IF('1. Order'!BE272=\"\",\"\",'1. Order'!BE272)","v":""},{"$f":"IF('1. Order'!BG272=\"\",\"\",'1. Order'!BG272)","v":""},{"$f":"IF('1. Order'!BH272=\"\",\"\",'1. Order'!BH272)","v":""},{"$f":"IF('1. Order'!BI272=\"\",\"\",'1. Order'!BI272)","v":""},{"$f":"IF('1. Order'!BJ272=\"\",\"\",'1. Order'!BJ272)","v":""},{"$f":"IF('1. Order'!BK272=\"\",\"\",'1. Order'!BK272)","v":"ZWO"}]
[{"$f":"IF('1. Order'!G273=\"\",\"\",'1. Order'!G273)","v":""},{"$f":"IF('1. Order'!H273=\"\",\"\",'1. Order'!H273)","v":""},{"$f":"IF('1. Order'!I273=\"\",\"\",'1. Order'!I273)","v":""},{"$f":"IF('1. Order'!J273=\"\",\"\",'1. Order'!J273)","v":""},{"$f":"IF('1. Order'!K273=\"\",\"\",'1. Order'!K273)","v":""},{"$f":"IF('1. Order'!L273=\"\",\"\",'1. Order'!L273)","v":""},{"$f":"IF('1. Order'!M273=\"\",\"\",'1. Order'!M273)","v":""},{"$f":"IF('1. Order'!N273=\"\",\"\",'1. Order'!N273)","v":""},{"$f":"IF('1. Order'!P273=\"\",\"\",'1. Order'!P273)","v":""},{"$f":"IF('1. Order'!Q273=\"\",\"\",'1. Order'!Q273)","v":{"$error":"#N/A"}},{"$f":"IF('1. Order'!R273=\"\",\"\",'1. Order'!R273)","v":{"$error":"#N/A"}},{"$f":"IF('1. Order'!S273=\"\",\"\",'1. Order'!S273)","v":""},{"$f":"IF('1. Order'!T273=\"\",\"\",'1. Order'!T273)","v":""},{"$f":"IF('1. Order'!U273=\"\",\"\",'1. Order'!U273)","v":""},{"$f":"IF('1. Order'!X273=\"\",\"\",'1. Order'!X273)","v":""},{"$f":"IF('1. Order'!Y273=\"\",\"\",'1. Order'!Y273)","v":""},{"$f":"IF('1. Order'!Z273=\"\",\"\",'1. Order'!Z273)","v":""},{"$f":"IF('1. Order'!AC273=\"\",\"\",'1. Order'!AC273)","v":""},{"$f":"IF('1. Order'!AD273=\"\",\"\",'1. Order'!AD273)","v":""},{"$f":"IF('1. Order'!AE273=\"\",\"\",'1. Order'!AE273)","v":""},null,{"$f":"IF('1. Order'!AW273=\"\",\"\",'1. Order'!AW273)","v":""},{"$f":"IF('1. Order'!AX273=\"\",\"\",'1. Order'!AX273)","v":""},null,null,null,null,null,null,null,{"$f":"IF('1. Order'!BB273=\"\",\"\",'1. Order'!BB273)","v":""},{"$f":"IF('1. Order'!BC273=\"\",\"\",'1. Order'!BC273)","v":""},{"$f":"IF('1. Order'!BD273=\"\",\"\",'1. Order'!BD273)","v":""},{"$f":"IF('1. Order'!BE273=\"\",\"\",'1. Order'!BE273)","v":""},{"$f":"IF('1. Order'!BG273=\"\",\"\",'1. Order'!BG273)","v":""},{"$f":"IF('1. Order'!BH273=\"\",\"\",'1. Order'!BH273)","v":""},{"$f":"IF('1. Order'!BI273=\"\",\"\",'1. Order'!BI273)","v":""},{"$f":"IF('1. Order'!BJ273=\"\",\"\",'1. Order'!BJ273)","v":""},{"$f":"IF('1. Order'!BK273=\"\",\"\",'1. Order'!BK273)","v":"ZWO"}]
[{"$f":"IF('1. Order'!G274=\"\",\"\",'1. Order'!G274)","v":""},{"$f":"IF('1. Order'!H274=\"\",\"\",'1. Order'!H274)","v":""},{"$f":"IF('1. Order'!I274=\"\",\"\",'1. Order'!I274)","v":""},{"$f":"IF('1. Order'!J274=\"\",\"\",'1. Order'!J274)","v":""},{"$f":"IF('1. Order'!K274=\"\",\"\",'1. Order'!K274)","v":""},{"$f":"IF('1. Order'!L274=\"\",\"\",'1. Order'!L274)","v":""},{"$f":"IF('1. Order'!M274=\"\",\"\",'1. Order'!M274)","v":""},{"$f":"IF('1. Order'!N274=\"\",\"\",'1. Order'!N274)","v":""},{"$f":"IF('1. Order'!P274=\"\",\"\",'1. Order'!P274)","v":""},{"$f":"IF('1. Order'!Q274=\"\",\"\",'1. Order'!Q274)","v":{"$error":"#N/A"}},{"$f":"IF('1. Order'!R274=\"\",\"\",'1. Order'!R274)","v":{"$error":"#N/A"}},{"$f":"IF('1. Order'!S274=\"\",\"\",'1. Order'!S274)","v":""},{"$f":"IF('1. Order'!T274=\"\",\"\",'1. Order'!T274)","v":""},{"$f":"IF('1. Order'!U274=\"\",\"\",'1. Order'!U274)","v":""},{"$f":"IF('1. Order'!X274=\"\",\"\",'1. Order'!X274)","v":""},{"$f":"IF('1. Order'!Y274=\"\",\"\",'1. Order'!Y274)","v":""},{"$f":"IF('1. Order'!Z274=\"\",\"\",'1. Order'!Z274)","v":""},{"$f":"IF('1. Order'!AC274=\"\",\"\",'1. Order'!AC274)","v":""},{"$f":"IF('1. Order'!AD274=\"\",\"\",'1. Order'!AD274)","v":""},{"$f":"IF('1. Order'!AE274=\"\",\"\",'1. Order'!AE274)","v":""},null,{"$f":"IF('1. Order'!AW274=\"\",\"\",'1. Order'!AW274)","v":""},{"$f":"IF('1. Order'!AX274=\"\",\"\",'1. Order'!AX274)","v":""},null,null,null,null,null,null,null,{"$f":"IF('1. Order'!BB274=\"\",\"\",'1. Order'!BB274)","v":""},{"$f":"IF('1. Order'!BC274=\"\",\"\",'1. Order'!BC274)","v":""},{"$f":"IF('1. Order'!BD274=\"\",\"\",'1. Order'!BD274)","v":""},{"$f":"IF('1. Order'!BE274=\"\",\"\",'1. Order'!BE274)","v":""},{"$f":"IF('1. Order'!BG274=\"\",\"\",'1. Order'!BG274)","v":""},{"$f":"IF('1. Order'!BH274=\"\",\"\",'1. Order'!BH274)","v":""},{"$f":"IF('1. Order'!BI274=\"\",\"\",'1. Order'!BI274)","v":""},{"$f":"IF('1. Order'!BJ274=\"\",\"\",'1. Order'!BJ274)","v":""},{"$f":"IF('1. Order'!BK274=\"\",\"\",'1. Order'!BK274)","v":"ZWO"}]
[{"$f":"IF('1. Order'!G275=\"\",\"\",'1. Order'!G275)","v":""},{"$f":"IF('1. Order'!H275=\"\",\"\",'1. Order'!H275)","v":""},{"$f":"IF('1. Order'!I275=\"\",\"\",'1. Order'!I275)","v":""},{"$f":"IF('1. Order'!J275=\"\",\"\",'1. Order'!J275)","v":""},{"$f":"IF('1. Order'!K275=\"\",\"\",'1. Order'!K275)","v":""},{"$f":"IF('1. Order'!L275=\"\",\"\",'1. Order'!L275)","v":""},{"$f":"IF('1. Order'!M275=\"\",\"\",'1. Order'!M275)","v":""},{"$f":"IF('1. Order'!N275=\"\",\"\",'1. Order'!N275)","v":""},{"$f":"IF('1. Order'!P275=\"\",\"\",'1. Order'!P275)","v":""},{"$f":"IF('1. Order'!Q275=\"\",\"\",'1. Order'!Q275)","v":{"$error":"#N/A"}},{"$f":"IF('1. Order'!R275=\"\",\"\",'1. Order'!R275)","v":{"$error":"#N/A"}},{"$f":"IF('1. Order'!S275=\"\",\"\",'1. Order'!S275)","v":""},{"$f":"IF('1. Order'!T275=\"\",\"\",'1. Order'!T275)","v":""},{"$f":"IF('1. Order'!U275=\"\",\"\",'1. Order'!U275)","v":""},{"$f":"IF('1. Order'!X275=\"\",\"\",'1. Order'!X275)","v":""},{"$f":"IF('1. Order'!Y275=\"\",\"\",'1. Order'!Y275)","v":""},{"$f":"IF('1. Order'!Z275=\"\",\"\",'1. Order'!Z275)","v":""},{"$f":"IF('1. Order'!AC275=\"\",\"\",'1. Order'!AC275)","v":""},{"$f":"IF('1. Order'!AD275=\"\",\"\",'1. Order'!AD275)","v":""},{"$f":"IF('1. Order'!AE275=\"\",\"\",'1. Order'!AE275)","v":""},null,{"$f":"IF('1. Order'!AW275=\"\",\"\",'1. Order'!AW275)","v":""},{"$f":"IF('1. Order'!AX275=\"\",\"\",'1. Order'!AX275)","v":""},null,null,null,null,null,null,null,{"$f":"IF('1. Order'!BB275=\"\",\"\",'1. Order'!BB275)","v":""},{"$f":"IF('1. Order'!BC275=\"\",\"\",'1. Order'!BC275)","v":""},{"$f":"IF('1. Order'!BD275=\"\",\"\",'1. Order'!BD275)","v":""},{"$f":"IF('1. Order'!BE275=\"\",\"\",'1. Order'!BE275)","v":""},{"$f":"IF('1. Order'!BG275=\"\",\"\",'1. Order'!BG275)","v":""},{"$f":"IF('1. Order'!BH275=\"\",\"\",'1. Order'!BH275)","v":""},{"$f":"IF('1. Order'!BI275=\"\",\"\",'1. Order'!BI275)","v":""},{"$f":"IF('1. Order'!BJ275=\"\",\"\",'1. Order'!BJ275)","v":""},{"$f":"IF('1. Order'!BK275=\"\",\"\",'1. Order'!BK275)","v":"ZWO"}]
[{"$f":"IF('1. Order'!G276=\"\",\"\",'1. Order'!G276)","v":""},{"$f":"IF('1. Order'!H276=\"\",\"\",'1. Order'!H276)","v":""},{"$f":"IF('1. Order'!I276=\"\",\"\",'1. Order'!I276)","v":""},{"$f":"IF('1. Order'!J276=\"\",\"\",'1. Order'!J276)","v":""},{"$f":"IF('1. Order'!K276=\"\",\"\",'1. Order'!K276)","v":""},{"$f":"IF('1. Order'!L276=\"\",\"\",'1. Order'!L276)","v":""},{"$f":"IF('1. Order'!M276=\"\",\"\",'1. Order'!M276)","v":""},{"$f":"IF('1. Order'!N276=\"\",\"\",'1. Order'!N276)","v":""},{"$f":"IF('1. Order'!P276=\"\",\"\",'1. Order'!P276)","v":""},{"$f":"IF('1. Order'!Q276=\"\",\"\",'1. Order'!Q276)","v":{"$error":"#N/A"}},{"$f":"IF('1. Order'!R276=\"\",\"\",'1. Order'!R276)","v":{"$error":"#N/A"}},{"$f":"IF('1. Order'!S276=\"\",\"\",'1. Order'!S276)","v":""},{"$f":"IF('1. Order'!T276=\"\",\"\",'1. Order'!T276)","v":""},{"$f":"IF('1. Order'!U276=\"\",\"\",'1. Order'!U276)","v":""},{"$f":"IF('1. Order'!X276=\"\",\"\",'1. Order'!X276)","v":""},{"$f":"IF('1. Order'!Y276=\"\",\"\",'1. Order'!Y276)","v":""},{"$f":"IF('1. Order'!Z276=\"\",\"\",'1. Order'!Z276)","v":""},{"$f":"IF('1. Order'!AC276=\"\",\"\",'1. Order'!AC276)","v":""},{"$f":"IF('1. Order'!AD276=\"\",\"\",'1. Order'!AD276)","v":""},{"$f":"IF('1. Order'!AE276=\"\",\"\",'1. Order'!AE276)","v":""},null,{"$f":"IF('1. Order'!AW276=\"\",\"\",'1. Order'!AW276)","v":""},{"$f":"IF('1. Order'!AX276=\"\",\"\",'1. Order'!AX276)","v":""},null,null,null,null,null,null,null,{"$f":"IF('1. Order'!BB276=\"\",\"\",'1. Order'!BB276)","v":""},{"$f":"IF('1. Order'!BC276=\"\",\"\",'1. Order'!BC276)","v":""},{"$f":"IF('1. Order'!BD276=\"\",\"\",'1. Order'!BD276)","v":""},{"$f":"IF('1. Order'!BE276=\"\",\"\",'1. Order'!BE276)","v":""},{"$f":"IF('1. Order'!BG276=\"\",\"\",'1. Order'!BG276)","v":""},{"$f":"IF('1. Order'!BH276=\"\",\"\",'1. Order'!BH276)","v":""},{"$f":"IF('1. Order'!BI276=\"\",\"\",'1. Order'!BI276)","v":""},{"$f":"IF('1. Order'!BJ276=\"\",\"\",'1. Order'!BJ276)","v":""},{"$f":"IF('1. Order'!BK276=\"\",\"\",'1. Order'!BK276)","v":"ZWO"}]
[{"$f":"IF('1. Order'!G277=\"\",\"\",'1. Order'!G277)","v":""},{"$f":"IF('1. Order'!H277=\"\",\"\",'1. Order'!H277)","v":""},{"$f":"IF('1. Order'!I277=\"\",\"\",'1. Order'!I277)","v":""},{"$f":"IF('1. Order'!J277=\"\",\"\",'1. Order'!J277)","v":""},{"$f":"IF('1. Order'!K277=\"\",\"\",'1. Order'!K277)","v":""},{"$f":"IF('1. Order'!L277=\"\",\"\",'1. Order'!L277)","v":""},{"$f":"IF('1. Order'!M277=\"\",\"\",'1. Order'!M277)","v":""},{"$f":"IF('1. Order'!N277=\"\",\"\",'1. Order'!N277)","v":""},{"$f":"IF('1. Order'!P277=\"\",\"\",'1. Order'!P277)","v":""},{"$f":"IF('1. Order'!Q277=\"\",\"\",'1. Order'!Q277)","v":{"$error":"#N/A"}},{"$f":"IF('1. Order'!R277=\"\",\"\",'1. Order'!R277)","v":{"$error":"#N/A"}},{"$f":"IF('1. Order'!S277=\"\",\"\",'1. Order'!S277)","v":""},{"$f":"IF('1. Order'!T277=\"\",\"\",'1. Order'!T277)","v":""},{"$f":"IF('1. Order'!U277=\"\",\"\",'1. Order'!U277)","v":""},{"$f":"IF('1. Order'!X277=\"\",\"\",'1. Order'!X277)","v":""},{"$f":"IF('1. Order'!Y277=\"\",\"\",'1. Order'!Y277)","v":""},{"$f":"IF('1. Order'!Z277=\"\",\"\",'1. Order'!Z277)","v":""},{"$f":"IF('1. Order'!AC277=\"\",\"\",'1. Order'!AC277)","v":""},{"$f":"IF('1. Order'!AD277=\"\",\"\",'1. Order'!AD277)","v":""},{"$f":"IF('1. Order'!AE277=\"\",\"\",'1. Order'!AE277)","v":""},null,{"$f":"IF('1. Order'!AW277=\"\",\"\",'1. Order'!AW277)","v":""},{"$f":"IF('1. Order'!AX277=\"\",\"\",'1. Order'!AX277)","v":""},null,null,null,null,null,null,null,{"$f":"IF('1. Order'!BB277=\"\",\"\",'1. Order'!BB277)","v":""},{"$f":"IF('1. Order'!BC277=\"\",\"\",'1. Order'!BC277)","v":""},{"$f":"IF('1. Order'!BD277=\"\",\"\",'1. Order'!BD277)","v":""},{"$f":"IF('1. Order'!BE277=\"\",\"\",'1. Order'!BE277)","v":""},{"$f":"IF('1. Order'!BG277=\"\",\"\",'1. Order'!BG277)","v":""},{"$f":"IF('1. Order'!BH277=\"\",\"\",'1. Order'!BH277)","v":""},{"$f":"IF('1. Order'!BI277=\"\",\"\",'1. Order'!BI277)","v":""},{"$f":"IF('1. Order'!BJ277=\"\",\"\",'1. Order'!BJ277)","v":""},{"$f":"IF('1. Order'!BK277=\"\",\"\",'1. Order'!BK277)","v":"ZWO"}]
[{"$f":"IF('1. Order'!G278=\"\",\"\",'1. Order'!G278)","v":""},{"$f":"IF('1. Order'!H278=\"\",\"\",'1. Order'!H278)","v":""},{"$f":"IF('1. Order'!I278=\"\",\"\",'1. Order'!I278)","v":""},{"$f":"IF('1. Order'!J278=\"\",\"\",'1. Order'!J278)","v":""},{"$f":"IF('1. Order'!K278=\"\",\"\",'1. Order'!K278)","v":""},{"$f":"IF('1. Order'!L278=\"\",\"\",'1. Order'!L278)","v":""},{"$f":"IF('1. Order'!M278=\"\",\"\",'1. Order'!M278)","v":""},{"$f":"IF('1. Order'!N278=\"\",\"\",'1. Order'!N278)","v":""},{"$f":"IF('1. Order'!P278=\"\",\"\",'1. Order'!P278)","v":""},{"$f":"IF('1. Order'!Q278=\"\",\"\",'1. Order'!Q278)","v":{"$error":"#N/A"}},{"$f":"IF('1. Order'!R278=\"\",\"\",'1. Order'!R278)","v":{"$error":"#N/A"}},{"$f":"IF('1. Order'!S278=\"\",\"\",'1. Order'!S278)","v":""},{"$f":"IF('1. Order'!T278=\"\",\"\",'1. Order'!T278)","v":""},{"$f":"IF('1. Order'!U278=\"\",\"\",'1. Order'!U278)","v":""},{"$f":"IF('1. Order'!X278=\"\",\"\",'1. Order'!X278)","v":""},{"$f":"IF('1. Order'!Y278=\"\",\"\",'1. Order'!Y278)","v":""},{"$f":"IF('1. Order'!Z278=\"\",\"\",'1. Order'!Z278)","v":""},{"$f":"IF('1. Order'!AC278=\"\",\"\",'1. Order'!AC278)","v":""},{"$f":"IF('1. Order'!AD278=\"\",\"\",'1. Order'!AD278)","v":""},{"$f":"IF('1. Order'!AE278=\"\",\"\",'1. Order'!AE278)","v":""},null,{"$f":"IF('1. Order'!AW278=\"\",\"\",'1. Order'!AW278)","v":""},{"$f":"IF('1. Order'!AX278=\"\",\"\",'1. Order'!AX278)","v":""},null,null,null,null,null,null,null,{"$f":"IF('1. Order'!BB278=\"\",\"\",'1. Order'!BB278)","v":""},{"$f":"IF('1. Order'!BC278=\"\",\"\",'1. Order'!BC278)","v":""},{"$f":"IF('1. Order'!BD278=\"\",\"\",'1. Order'!BD278)","v":""},{"$f":"IF('1. Order'!BE278=\"\",\"\",'1. Order'!BE278)","v":""},{"$f":"IF('1. Order'!BG278=\"\",\"\",'1. Order'!BG278)","v":""},{"$f":"IF('1. Order'!BH278=\"\",\"\",'1. Order'!BH278)","v":""},{"$f":"IF('1. Order'!BI278=\"\",\"\",'1. Order'!BI278)","v":""},{"$f":"IF('1. Order'!BJ278=\"\",\"\",'1. Order'!BJ278)","v":""},{"$f":"IF('1. Order'!BK278=\"\",\"\",'1. Order'!BK278)","v":"ZWO"}]
[{"$f":"IF('1. Order'!G279=\"\",\"\",'1. Order'!G279)","v":""},{"$f":"IF('1. Order'!H279=\"\",\"\",'1. Order'!H279)","v":""},{"$f":"IF('1. Order'!I279=\"\",\"\",'1. Order'!I279)","v":""},{"$f":"IF('1. Order'!J279=\"\",\"\",'1. Order'!J279)","v":""},{"$f":"IF('1. Order'!K279=\"\",\"\",'1. Order'!K279)","v":""},{"$f":"IF('1. Order'!L279=\"\",\"\",'1. Order'!L279)","v":""},{"$f":"IF('1. Order'!M279=\"\",\"\",'1. Order'!M279)","v":""},{"$f":"IF('1. Order'!N279=\"\",\"\",'1. Order'!N279)","v":""},{"$f":"IF('1. Order'!P279=\"\",\"\",'1. Order'!P279)","v":""},{"$f":"IF('1. Order'!Q279=\"\",\"\",'1. Order'!Q279)","v":{"$error":"#N/A"}},{"$f":"IF('1. Order'!R279=\"\",\"\",'1. Order'!R279)","v":{"$error":"#N/A"}},{"$f":"IF('1. Order'!S279=\"\",\"\",'1. Order'!S279)","v":""},{"$f":"IF('1. Order'!T279=\"\",\"\",'1. Order'!T279)","v":""},{"$f":"IF('1. Order'!U279=\"\",\"\",'1. Order'!U279)","v":""},{"$f":"IF('1. Order'!X279=\"\",\"\",'1. Order'!X279)","v":""},{"$f":"IF('1. Order'!Y279=\"\",\"\",'1. Order'!Y279)","v":""},{"$f":"IF('1. Order'!Z279=\"\",\"\",'1. Order'!Z279)","v":""},{"$f":"IF('1. Order'!AC279=\"\",\"\",'1. Order'!AC279)","v":""},{"$f":"IF('1. Order'!AD279=\"\",\"\",'1. Order'!AD279)","v":""},{"$f":"IF('1. Order'!AE279=\"\",\"\",'1. Order'!AE279)","v":""},null,{"$f":"IF('1. Order'!AW279=\"\",\"\",'1. Order'!AW279)","v":""},{"$f":"IF('1. Order'!AX279=\"\",\"\",'1. Order'!AX279)","v":""},null,null,null,null,null,null,null,{"$f":"IF('1. Order'!BB279=\"\",\"\",'1. Order'!BB279)","v":""},{"$f":"IF('1. Order'!BC279=\"\",\"\",'1. Order'!BC279)","v":""},{"$f":"IF('1. Order'!BD279=\"\",\"\",'1. Order'!BD279)","v":""},{"$f":"IF('1. Order'!BE279=\"\",\"\",'1. Order'!BE279)","v":""},{"$f":"IF('1. Order'!BG279=\"\",\"\",'1. Order'!BG279)","v":""},{"$f":"IF('1. Order'!BH279=\"\",\"\",'1. Order'!BH279)","v":""},{"$f":"IF('1. Order'!BI279=\"\",\"\",'1. Order'!BI279)","v":""},{"$f":"IF('1. Order'!BJ279=\"\",\"\",'1. Order'!BJ279)","v":""},{"$f":"IF('1. Order'!BK279=\"\",\"\",'1. Order'!BK279)","v":"ZWO"}]
[{"$f":"IF('1. Order'!G280=\"\",\"\",'1. Order'!G280)","v":""},{"$f":"IF('1. Order'!H280=\"\",\"\",'1. Order'!H280)","v":""},{"$f":"IF('1. Order'!I280=\"\",\"\",'1. Order'!I280)","v":""},{"$f":"IF('1. Order'!J280=\"\",\"\",'1. Order'!J280)","v":""},{"$f":"IF('1. Order'!K280=\"\",\"\",'1. Order'!K280)","v":""},{"$f":"IF('1. Order'!L280=\"\",\"\",'1. Order'!L280)","v":""},{"$f":"IF('1. Order'!M280=\"\",\"\",'1. Order'!M280)","v":""},{"$f":"IF('1. Order'!N280=\"\",\"\",'1. Order'!N280)","v":""},{"$f":"IF('1. Order'!P280=\"\",\"\",'1. Order'!P280)","v":""},{"$f":"IF('1. Order'!Q280=\"\",\"\",'1. Order'!Q280)","v":{"$error":"#N/A"}},{"$f":"IF('1. Order'!R280=\"\",\"\",'1. Order'!R280)","v":{"$error":"#N/A"}},{"$f":"IF('1. Order'!S280=\"\",\"\",'1. Order'!S280)","v":""},{"$f":"IF('1. Order'!T280=\"\",\"\",'1. Order'!T280)","v":""},{"$f":"IF('1. Order'!U280=\"\",\"\",'1. Order'!U280)","v":""},{"$f":"IF('1. Order'!X280=\"\",\"\",'1. Order'!X280)","v":""},{"$f":"IF('1. Order'!Y280=\"\",\"\",'1. Order'!Y280)","v":""},{"$f":"IF('1. Order'!Z280=\"\",\"\",'1. Order'!Z280)","v":""},{"$f":"IF('1. Order'!AC280=\"\",\"\",'1. Order'!AC280)","v":""},{"$f":"IF('1. Order'!AD280=\"\",\"\",'1. Order'!AD280)","v":""},{"$f":"IF('1. Order'!AE280=\"\",\"\",'1. Order'!AE280)","v":""},null,{"$f":"IF('1. Order'!AW280=\"\",\"\",'1. Order'!AW280)","v":""},{"$f":"IF('1. Order'!AX280=\"\",\"\",'1. Order'!AX280)","v":""},null,null,null,null,null,null,null,{"$f":"IF('1. Order'!BB280=\"\",\"\",'1. Order'!BB280)","v":""},{"$f":"IF('1. Order'!BC280=\"\",\"\",'1. Order'!BC280)","v":""},{"$f":"IF('1. Order'!BD280=\"\",\"\",'1. Order'!BD280)","v":""},{"$f":"IF('1. Order'!BE280=\"\",\"\",'1. Order'!BE280)","v":""},{"$f":"IF('1. Order'!BG280=\"\",\"\",'1. Order'!BG280)","v":""},{"$f":"IF('1. Order'!BH280=\"\",\"\",'1. Order'!BH280)","v":""},{"$f":"IF('1. Order'!BI280=\"\",\"\",'1. Order'!BI280)","v":""},{"$f":"IF('1. Order'!BJ280=\"\",\"\",'1. Order'!BJ280)","v":""},{"$f":"IF('1. Order'!BK280=\"\",\"\",'1. Order'!BK280)","v":"ZWO"}]
[{"$f":"IF('1. Order'!G281=\"\",\"\",'1. Order'!G281)","v":""},{"$f":"IF('1. Order'!H281=\"\",\"\",'1. Order'!H281)","v":""},{"$f":"IF('1. Order'!I281=\"\",\"\",'1. Order'!I281)","v":""},{"$f":"IF('1. Order'!J281=\"\",\"\",'1. Order'!J281)","v":""},{"$f":"IF('1. Order'!K281=\"\",\"\",'1. Order'!K281)","v":""},{"$f":"IF('1. Order'!L281=\"\",\"\",'1. Order'!L281)","v":""},{"$f":"IF('1. Order'!M281=\"\",\"\",'1. Order'!M281)","v":""},{"$f":"IF('1. Order'!N281=\"\",\"\",'1. Order'!N281)","v":""},{"$f":"IF('1. Order'!P281=\"\",\"\",'1. Order'!P281)","v":""},{"$f":"IF('1. Order'!Q281=\"\",\"\",'1. Order'!Q281)","v":{"$error":"#N/A"}},{"$f":"IF('1. Order'!R281=\"\",\"\",'1. Order'!R281)","v":{"$error":"#N/A"}},{"$f":"IF('1. Order'!S281=\"\",\"\",'1. Order'!S281)","v":""},{"$f":"IF('1. Order'!T281=\"\",\"\",'1. Order'!T281)","v":""},{"$f":"IF('1. Order'!U281=\"\",\"\",'1. Order'!U281)","v":""},{"$f":"IF('1. Order'!X281=\"\",\"\",'1. Order'!X281)","v":""},{"$f":"IF('1. Order'!Y281=\"\",\"\",'1. Order'!Y281)","v":""},{"$f":"IF('1. Order'!Z281=\"\",\"\",'1. Order'!Z281)","v":""},{"$f":"IF('1. Order'!AC281=\"\",\"\",'1. Order'!AC281)","v":""},{"$f":"IF('1. Order'!AD281=\"\",\"\",'1. Order'!AD281)","v":""},{"$f":"IF('1. Order'!AE281=\"\",\"\",'1. Order'!AE281)","v":""},null,{"$f":"IF('1. Order'!AW281=\"\",\"\",'1. Order'!AW281)","v":""},{"$f":"IF('1. Order'!AX281=\"\",\"\",'1. Order'!AX281)","v":""},null,null,null,null,null,null,null,{"$f":"IF('1. Order'!BB281=\"\",\"\",'1. Order'!BB281)","v":""},{"$f":"IF('1. Order'!BC281=\"\",\"\",'1. Order'!BC281)","v":""},{"$f":"IF('1. Order'!BD281=\"\",\"\",'1. Order'!BD281)","v":""},{"$f":"IF('1. Order'!BE281=\"\",\"\",'1. Order'!BE281)","v":""},{"$f":"IF('1. Order'!BG281=\"\",\"\",'1. Order'!BG281)","v":""},{"$f":"IF('1. Order'!BH281=\"\",\"\",'1. Order'!BH281)","v":""},{"$f":"IF('1. Order'!BI281=\"\",\"\",'1. Order'!BI281)","v":""},{"$f":"IF('1. Order'!BJ281=\"\",\"\",'1. Order'!BJ281)","v":""},{"$f":"IF('1. Order'!BK281=\"\",\"\",'1. Order'!BK281)","v":"ZWO"}]
[{"$f":"IF('1. Order'!G282=\"\",\"\",'1. Order'!G282)","v":""},{"$f":"IF('1. Order'!H282=\"\",\"\",'1. Order'!H282)","v":""},{"$f":"IF('1. Order'!I282=\"\",\"\",'1. Order'!I282)","v":""},{"$f":"IF('1. Order'!J282=\"\",\"\",'1. Order'!J282)","v":""},{"$f":"IF('1. Order'!K282=\"\",\"\",'1. Order'!K282)","v":""},{"$f":"IF('1. Order'!L282=\"\",\"\",'1. Order'!L282)","v":""},{"$f":"IF('1. Order'!M282=\"\",\"\",'1. Order'!M282)","v":""},{"$f":"IF('1. Order'!N282=\"\",\"\",'1. Order'!N282)","v":""},{"$f":"IF('1. Order'!P282=\"\",\"\",'1. Order'!P282)","v":""},{"$f":"IF('1. Order'!Q282=\"\",\"\",'1. Order'!Q282)","v":{"$error":"#N/A"}},{"$f":"IF('1. Order'!R282=\"\",\"\",'1. Order'!R282)","v":{"$error":"#N/A"}},{"$f":"IF('1. Order'!S282=\"\",\"\",'1. Order'!S282)","v":""},{"$f":"IF('1. Order'!T282=\"\",\"\",'1. Order'!T282)","v":""},{"$f":"IF('1. Order'!U282=\"\",\"\",'1. Order'!U282)","v":""},{"$f":"IF('1. Order'!X282=\"\",\"\",'1. Order'!X282)","v":""},{"$f":"IF('1. Order'!Y282=\"\",\"\",'1. Order'!Y282)","v":""},{"$f":"IF('1. Order'!Z282=\"\",\"\",'1. Order'!Z282)","v":""},{"$f":"IF('1. Order'!AC282=\"\",\"\",'1. Order'!AC282)","v":""},{"$f":"IF('1. Order'!AD282=\"\",\"\",'1. Order'!AD282)","v":""},{"$f":"IF('1. Order'!AE282=\"\",\"\",'1. Order'!AE282)","v":""},null,{"$f":"IF('1. Order'!AW282=\"\",\"\",'1. Order'!AW282)","v":""},{"$f":"IF('1. Order'!AX282=\"\",\"\",'1. Order'!AX282)","v":""},null,null,null,null,null,null,null,{"$f":"IF('1. Order'!BB282=\"\",\"\",'1. Order'!BB282)","v":""},{"$f":"IF('1. Order'!BC282=\"\",\"\",'1. Order'!BC282)","v":""},{"$f":"IF('1. Order'!BD282=\"\",\"\",'1. Order'!BD282)","v":""},{"$f":"IF('1. Order'!BE282=\"\",\"\",'1. Order'!BE282)","v":""},{"$f":"IF('1. Order'!BG282=\"\",\"\",'1. Order'!BG282)","v":""},{"$f":"IF('1. Order'!BH282=\"\",\"\",'1. Order'!BH282)","v":""},{"$f":"IF('1. Order'!BI282=\"\",\"\",'1. Order'!BI282)","v":""},{"$f":"IF('1. Order'!BJ282=\"\",\"\",'1. Order'!BJ282)","v":""},{"$f":"IF('1. Order'!BK282=\"\",\"\",'1. Order'!BK282)","v":"ZWO"}]
[{"$f":"IF('1. Order'!G283=\"\",\"\",'1. Order'!G283)","v":""},{"$f":"IF('1. Order'!H283=\"\",\"\",'1. Order'!H283)","v":""},{"$f":"IF('1. Order'!I283=\"\",\"\",'1. Order'!I283)","v":""},{"$f":"IF('1. Order'!J283=\"\",\"\",'1. Order'!J283)","v":""},{"$f":"IF('1. Order'!K283=\"\",\"\",'1. Order'!K283)","v":""},{"$f":"IF('1. Order'!L283=\"\",\"\",'1. Order'!L283)","v":""},{"$f":"IF('1. Order'!M283=\"\",\"\",'1. Order'!M283)","v":""},{"$f":"IF('1. Order'!N283=\"\",\"\",'1. Order'!N283)","v":""},{"$f":"IF('1. Order'!P283=\"\",\"\",'1. Order'!P283)","v":""},{"$f":"IF('1. Order'!Q283=\"\",\"\",'1. Order'!Q283)","v":{"$error":"#N/A"}},{"$f":"IF('1. Order'!R283=\"\",\"\",'1. Order'!R283)","v":{"$error":"#N/A"}},{"$f":"IF('1. Order'!S283=\"\",\"\",'1. Order'!S283)","v":""},{"$f":"IF('1. Order'!T283=\"\",\"\",'1. Order'!T283)","v":""},{"$f":"IF('1. Order'!U283=\"\",\"\",'1. Order'!U283)","v":""},{"$f":"IF('1. Order'!X283=\"\",\"\",'1. Order'!X283)","v":""},{"$f":"IF('1. Order'!Y283=\"\",\"\",'1. Order'!Y283)","v":""},{"$f":"IF('1. Order'!Z283=\"\",\"\",'1. Order'!Z283)","v":""},{"$f":"IF('1. Order'!AC283=\"\",\"\",'1. Order'!AC283)","v":""},{"$f":"IF('1. Order'!AD283=\"\",\"\",'1. Order'!AD283)","v":""},{"$f":"IF('1. Order'!AE283=\"\",\"\",'1. Order'!AE283)","v":""},null,{"$f":"IF('1. Order'!AW283=\"\",\"\",'1. Order'!AW283)","v":""},{"$f":"IF('1. Order'!AX283=\"\",\"\",'1. Order'!AX283)","v":""},null,null,null,null,null,null,null,{"$f":"IF('1. Order'!BB283=\"\",\"\",'1. Order'!BB283)","v":""},{"$f":"IF('1. Order'!BC283=\"\",\"\",'1. Order'!BC283)","v":""},{"$f":"IF('1. Order'!BD283=\"\",\"\",'1. Order'!BD283)","v":""},{"$f":"IF('1. Order'!BE283=\"\",\"\",'1. Order'!BE283)","v":""},{"$f":"IF('1. Order'!BG283=\"\",\"\",'1. Order'!BG283)","v":""},{"$f":"IF('1. Order'!BH283=\"\",\"\",'1. Order'!BH283)","v":""},{"$f":"IF('1. Order'!BI283=\"\",\"\",'1. Order'!BI283)","v":""},{"$f":"IF('1. Order'!BJ283=\"\",\"\",'1. Order'!BJ283)","v":""},{"$f":"IF('1. Order'!BK283=\"\",\"\",'1. Order'!BK283)","v":"ZWO"}]
[{"$f":"IF('1. Order'!G284=\"\",\"\",'1. Order'!G284)","v":""},{"$f":"IF('1. Order'!H284=\"\",\"\",'1. Order'!H284)","v":""},{"$f":"IF('1. Order'!I284=\"\",\"\",'1. Order'!I284)","v":""},{"$f":"IF('1. Order'!J284=\"\",\"\",'1. Order'!J284)","v":""},{"$f":"IF('1. Order'!K284=\"\",\"\",'1. Order'!K284)","v":""},{"$f":"IF('1. Order'!L284=\"\",\"\",'1. Order'!L284)","v":""},{"$f":"IF('1. Order'!M284=\"\",\"\",'1. Order'!M284)","v":""},{"$f":"IF('1. Order'!N284=\"\",\"\",'1. Order'!N284)","v":""},{"$f":"IF('1. Order'!P284=\"\",\"\",'1. Order'!P284)","v":""},{"$f":"IF('1. Order'!Q284=\"\",\"\",'1. Order'!Q284)","v":{"$error":"#N/A"}},{"$f":"IF('1. Order'!R284=\"\",\"\",'1. Order'!R284)","v":{"$error":"#N/A"}},{"$f":"IF('1. Order'!S284=\"\",\"\",'1. Order'!S284)","v":""},{"$f":"IF('1. Order'!T284=\"\",\"\",'1. Order'!T284)","v":""},{"$f":"IF('1. Order'!U284=\"\",\"\",'1. Order'!U284)","v":""},{"$f":"IF('1. Order'!X284=\"\",\"\",'1. Order'!X284)","v":""},{"$f":"IF('1. Order'!Y284=\"\",\"\",'1. Order'!Y284)","v":""},{"$f":"IF('1. Order'!Z284=\"\",\"\",'1. Order'!Z284)","v":""},{"$f":"IF('1. Order'!AC284=\"\",\"\",'1. Order'!AC284)","v":""},{"$f":"IF('1. Order'!AD284=\"\",\"\",'1. Order'!AD284)","v":""},{"$f":"IF('1. Order'!AE284=\"\",\"\",'1. Order'!AE284)","v":""},null,{"$f":"IF('1. Order'!AW284=\"\",\"\",'1. Order'!AW284)","v":""},{"$f":"IF('1. Order'!AX284=\"\",\"\",'1. Order'!AX284)","v":""},null,null,null,null,null,null,null,{"$f":"IF('1. Order'!BB284=\"\",\"\",'1. Order'!BB284)","v":""},{"$f":"IF('1. Order'!BC284=\"\",\"\",'1. Order'!BC284)","v":""},{"$f":"IF('1. Order'!BD284=\"\",\"\",'1. Order'!BD284)","v":""},{"$f":"IF('1. Order'!BE284=\"\",\"\",'1. Order'!BE284)","v":""},{"$f":"IF('1. Order'!BG284=\"\",\"\",'1. Order'!BG284)","v":""},{"$f":"IF('1. Order'!BH284=\"\",\"\",'1. Order'!BH284)","v":""},{"$f":"IF('1. Order'!BI284=\"\",\"\",'1. Order'!BI284)","v":""},{"$f":"IF('1. Order'!BJ284=\"\",\"\",'1. Order'!BJ284)","v":""},{"$f":"IF('1. Order'!BK284=\"\",\"\",'1. Order'!BK284)","v":"ZWO"}]
[{"$f":"IF('1. Order'!G285=\"\",\"\",'1. Order'!G285)","v":""},{"$f":"IF('1. Order'!H285=\"\",\"\",'1. Order'!H285)","v":""},{"$f":"IF('1. Order'!I285=\"\",\"\",'1. Order'!I285)","v":""},{"$f":"IF('1. Order'!J285=\"\",\"\",'1. Order'!J285)","v":""},{"$f":"IF('1. Order'!K285=\"\",\"\",'1. Order'!K285)","v":""},{"$f":"IF('1. Order'!L285=\"\",\"\",'1. Order'!L285)","v":""},{"$f":"IF('1. Order'!M285=\"\",\"\",'1. Order'!M285)","v":""},{"$f":"IF('1. Order'!N285=\"\",\"\",'1. Order'!N285)","v":""},{"$f":"IF('1. Order'!P285=\"\",\"\",'1. Order'!P285)","v":""},{"$f":"IF('1. Order'!Q285=\"\",\"\",'1. Order'!Q285)","v":{"$error":"#N/A"}},{"$f":"IF('1. Order'!R285=\"\",\"\",'1. Order'!R285)","v":{"$error":"#N/A"}},{"$f":"IF('1. Order'!S285=\"\",\"\",'1. Order'!S285)","v":""},{"$f":"IF('1. Order'!T285=\"\",\"\",'1. Order'!T285)","v":""},{"$f":"IF('1. Order'!U285=\"\",\"\",'1. Order'!U285)","v":""},{"$f":"IF('1. Order'!X285=\"\",\"\",'1. Order'!X285)","v":""},{"$f":"IF('1. Order'!Y285=\"\",\"\",'1. Order'!Y285)","v":""},{"$f":"IF('1. Order'!Z285=\"\",\"\",'1. Order'!Z285)","v":""},{"$f":"IF('1. Order'!AC285=\"\",\"\",'1. Order'!AC285)","v":""},{"$f":"IF('1. Order'!AD285=\"\",\"\",'1. Order'!AD285)","v":""},{"$f":"IF('1. Order'!AE285=\"\",\"\",'1. Order'!AE285)","v":""},null,{"$f":"IF('1. Order'!AW285=\"\",\"\",'1. Order'!AW285)","v":""},{"$f":"IF('1. Order'!AX285=\"\",\"\",'1. Order'!AX285)","v":""},null,null,null,null,null,null,null,{"$f":"IF('1. Order'!BB285=\"\",\"\",'1. Order'!BB285)","v":""},{"$f":"IF('1. Order'!BC285=\"\",\"\",'1. Order'!BC285)","v":""},{"$f":"IF('1. Order'!BD285=\"\",\"\",'1. Order'!BD285)","v":""},{"$f":"IF('1. Order'!BE285=\"\",\"\",'1. Order'!BE285)","v":""},{"$f":"IF('1. Order'!BG285=\"\",\"\",'1. Order'!BG285)","v":""},{"$f":"IF('1. Order'!BH285=\"\",\"\",'1. Order'!BH285)","v":""},{"$f":"IF('1. Order'!BI285=\"\",\"\",'1. Order'!BI285)","v":""},{"$f":"IF('1. Order'!BJ285=\"\",\"\",'1. Order'!BJ285)","v":""},{"$f":"IF('1. Order'!BK285=\"\",\"\",'1. Order'!BK285)","v":"ZWO"}]
[{"$f":"IF('1. Order'!G286=\"\",\"\",'1. Order'!G286)","v":""},{"$f":"IF('1. Order'!H286=\"\",\"\",'1. Order'!H286)","v":""},{"$f":"IF('1. Order'!I286=\"\",\"\",'1. Order'!I286)","v":""},{"$f":"IF('1. Order'!J286=\"\",\"\",'1. Order'!J286)","v":""},{"$f":"IF('1. Order'!K286=\"\",\"\",'1. Order'!K286)","v":""},{"$f":"IF('1. Order'!L286=\"\",\"\",'1. Order'!L286)","v":""},{"$f":"IF('1. Order'!M286=\"\",\"\",'1. Order'!M286)","v":""},{"$f":"IF('1. Order'!N286=\"\",\"\",'1. Order'!N286)","v":""},{"$f":"IF('1. Order'!P286=\"\",\"\",'1. Order'!P286)","v":""},{"$f":"IF('1. Order'!Q286=\"\",\"\",'1. Order'!Q286)","v":{"$error":"#N/A"}},{"$f":"IF('1. Order'!R286=\"\",\"\",'1. Order'!R286)","v":{"$error":"#N/A"}},{"$f":"IF('1. Order'!S286=\"\",\"\",'1. Order'!S286)","v":""},{"$f":"IF('1. Order'!T286=\"\",\"\",'1. Order'!T286)","v":""},{"$f":"IF('1. Order'!U286=\"\",\"\",'1. Order'!U286)","v":""},{"$f":"IF('1. Order'!X286=\"\",\"\",'1. Order'!X286)","v":""},{"$f":"IF('1. Order'!Y286=\"\",\"\",'1. Order'!Y286)","v":""},{"$f":"IF('1. Order'!Z286=\"\",\"\",'1. Order'!Z286)","v":""},{"$f":"IF('1. Order'!AC286=\"\",\"\",'1. Order'!AC286)","v":""},{"$f":"IF('1. Order'!AD286=\"\",\"\",'1. Order'!AD286)","v":""},{"$f":"IF('1. Order'!AE286=\"\",\"\",'1. Order'!AE286)","v":""},null,{"$f":"IF('1. Order'!AW286=\"\",\"\",'1. Order'!AW286)","v":""},{"$f":"IF('1. Order'!AX286=\"\",\"\",'1. Order'!AX286)","v":""},null,null,null,null,null,null,null,{"$f":"IF('1. Order'!BB286=\"\",\"\",'1. Order'!BB286)","v":""},{"$f":"IF('1. Order'!BC286=\"\",\"\",'1. Order'!BC286)","v":""},{"$f":"IF('1. Order'!BD286=\"\",\"\",'1. Order'!BD286)","v":""},{"$f":"IF('1. Order'!BE286=\"\",\"\",'1. Order'!BE286)","v":""},{"$f":"IF('1. Order'!BG286=\"\",\"\",'1. Order'!BG286)","v":""},{"$f":"IF('1. Order'!BH286=\"\",\"\",'1. Order'!BH286)","v":""},{"$f":"IF('1. Order'!BI286=\"\",\"\",'1. Order'!BI286)","v":""},{"$f":"IF('1. Order'!BJ286=\"\",\"\",'1. Order'!BJ286)","v":""},{"$f":"IF('1. Order'!BK286=\"\",\"\",'1. Order'!BK286)","v":"ZWO"}]
[{"$f":"IF('1. Order'!G287=\"\",\"\",'1. Order'!G287)","v":""},{"$f":"IF('1. Order'!H287=\"\",\"\",'1. Order'!H287)","v":""},{"$f":"IF('1. Order'!I287=\"\",\"\",'1. Order'!I287)","v":""},{"$f":"IF('1. Order'!J287=\"\",\"\",'1. Order'!J287)","v":""},{"$f":"IF('1. Order'!K287=\"\",\"\",'1. Order'!K287)","v":""},{"$f":"IF('1. Order'!L287=\"\",\"\",'1. Order'!L287)","v":""},{"$f":"IF('1. Order'!M287=\"\",\"\",'1. Order'!M287)","v":""},{"$f":"IF('1. Order'!N287=\"\",\"\",'1. Order'!N287)","v":""},{"$f":"IF('1. Order'!P287=\"\",\"\",'1. Order'!P287)","v":""},{"$f":"IF('1. Order'!Q287=\"\",\"\",'1. Order'!Q287)","v":{"$error":"#N/A"}},{"$f":"IF('1. Order'!R287=\"\",\"\",'1. Order'!R287)","v":{"$error":"#N/A"}},{"$f":"IF('1. Order'!S287=\"\",\"\",'1. Order'!S287)","v":""},{"$f":"IF('1. Order'!T287=\"\",\"\",'1. Order'!T287)","v":""},{"$f":"IF('1. Order'!U287=\"\",\"\",'1. Order'!U287)","v":""},{"$f":"IF('1. Order'!X287=\"\",\"\",'1. Order'!X287)","v":""},{"$f":"IF('1. Order'!Y287=\"\",\"\",'1. Order'!Y287)","v":""},{"$f":"IF('1. Order'!Z287=\"\",\"\",'1. Order'!Z287)","v":""},{"$f":"IF('1. Order'!AC287=\"\",\"\",'1. Order'!AC287)","v":""},{"$f":"IF('1. Order'!AD287=\"\",\"\",'1. Order'!AD287)","v":""},{"$f":"IF('1. Order'!AE287=\"\",\"\",'1. Order'!AE287)","v":""},null,{"$f":"IF('1. Order'!AW287=\"\",\"\",'1. Order'!AW287)","v":""},{"$f":"IF('1. Order'!AX287=\"\",\"\",'1. Order'!AX287)","v":""},null,null,null,null,null,null,null,{"$f":"IF('1. Order'!BB287=\"\",\"\",'1. Order'!BB287)","v":""},{"$f":"IF('1. Order'!BC287=\"\",\"\",'1. Order'!BC287)","v":""},{"$f":"IF('1. Order'!BD287=\"\",\"\",'1. Order'!BD287)","v":""},{"$f":"IF('1. Order'!BE287=\"\",\"\",'1. Order'!BE287)","v":""},{"$f":"IF('1. Order'!BG287=\"\",\"\",'1. Order'!BG287)","v":""},{"$f":"IF('1. Order'!BH287=\"\",\"\",'1. Order'!BH287)","v":""},{"$f":"IF('1. Order'!BI287=\"\",\"\",'1. Order'!BI287)","v":""},{"$f":"IF('1. Order'!BJ287=\"\",\"\",'1. Order'!BJ287)","v":""},{"$f":"IF('1. Order'!BK287=\"\",\"\",'1. Order'!BK287)","v":"ZWO"}]
[{"$f":"IF('1. Order'!G288=\"\",\"\",'1. Order'!G288)","v":""},{"$f":"IF('1. Order'!H288=\"\",\"\",'1. Order'!H288)","v":""},{"$f":"IF('1. Order'!I288=\"\",\"\",'1. Order'!I288)","v":""},{"$f":"IF('1. Order'!J288=\"\",\"\",'1. Order'!J288)","v":""},{"$f":"IF('1. Order'!K288=\"\",\"\",'1. Order'!K288)","v":""},{"$f":"IF('1. Order'!L288=\"\",\"\",'1. Order'!L288)","v":""},{"$f":"IF('1. Order'!M288=\"\",\"\",'1. Order'!M288)","v":""},{"$f":"IF('1. Order'!N288=\"\",\"\",'1. Order'!N288)","v":""},{"$f":"IF('1. Order'!P288=\"\",\"\",'1. Order'!P288)","v":""},{"$f":"IF('1. Order'!Q288=\"\",\"\",'1. Order'!Q288)","v":{"$error":"#N/A"}},{"$f":"IF('1. Order'!R288=\"\",\"\",'1. Order'!R288)","v":{"$error":"#N/A"}},{"$f":"IF('1. Order'!S288=\"\",\"\",'1. Order'!S288)","v":""},{"$f":"IF('1. Order'!T288=\"\",\"\",'1. Order'!T288)","v":""},{"$f":"IF('1. Order'!U288=\"\",\"\",'1. Order'!U288)","v":""},{"$f":"IF('1. Order'!X288=\"\",\"\",'1. Order'!X288)","v":""},{"$f":"IF('1. Order'!Y288=\"\",\"\",'1. Order'!Y288)","v":""},{"$f":"IF('1. Order'!Z288=\"\",\"\",'1. Order'!Z288)","v":""},{"$f":"IF('1. Order'!AC288=\"\",\"\",'1. Order'!AC288)","v":""},{"$f":"IF('1. Order'!AD288=\"\",\"\",'1. Order'!AD288)","v":""},{"$f":"IF('1. Order'!AE288=\"\",\"\",'1. Order'!AE288)","v":""},null,{"$f":"IF('1. Order'!AW288=\"\",\"\",'1. Order'!AW288)","v":""},{"$f":"IF('1. Order'!AX288=\"\",\"\",'1. Order'!AX288)","v":""},null,null,null,null,null,null,null,{"$f":"IF('1. Order'!BB288=\"\",\"\",'1. Order'!BB288)","v":""},{"$f":"IF('1. Order'!BC288=\"\",\"\",'1. Order'!BC288)","v":""},{"$f":"IF('1. Order'!BD288=\"\",\"\",'1. Order'!BD288)","v":""},{"$f":"IF('1. Order'!BE288=\"\",\"\",'1. Order'!BE288)","v":""},{"$f":"IF('1. Order'!BG288=\"\",\"\",'1. Order'!BG288)","v":""},{"$f":"IF('1. Order'!BH288=\"\",\"\",'1. Order'!BH288)","v":""},{"$f":"IF('1. Order'!BI288=\"\",\"\",'1. Order'!BI288)","v":""},{"$f":"IF('1. Order'!BJ288=\"\",\"\",'1. Order'!BJ288)","v":""},{"$f":"IF('1. Order'!BK288=\"\",\"\",'1. Order'!BK288)","v":"ZWO"}]
[{"$f":"IF('1. Order'!G289=\"\",\"\",'1. Order'!G289)","v":""},{"$f":"IF('1. Order'!H289=\"\",\"\",'1. Order'!H289)","v":""},{"$f":"IF('1. Order'!I289=\"\",\"\",'1. Order'!I289)","v":""},{"$f":"IF('1. Order'!J289=\"\",\"\",'1. Order'!J289)","v":""},{"$f":"IF('1. Order'!K289=\"\",\"\",'1. Order'!K289)","v":""},{"$f":"IF('1. Order'!L289=\"\",\"\",'1. Order'!L289)","v":""},{"$f":"IF('1. Order'!M289=\"\",\"\",'1. Order'!M289)","v":""},{"$f":"IF('1. Order'!N289=\"\",\"\",'1. Order'!N289)","v":""},{"$f":"IF('1. Order'!P289=\"\",\"\",'1. Order'!P289)","v":""},{"$f":"IF('1. Order'!Q289=\"\",\"\",'1. Order'!Q289)","v":{"$error":"#N/A"}},{"$f":"IF('1. Order'!R289=\"\",\"\",'1. Order'!R289)","v":{"$error":"#N/A"}},{"$f":"IF('1. Order'!S289=\"\",\"\",'1. Order'!S289)","v":""},{"$f":"IF('1. Order'!T289=\"\",\"\",'1. Order'!T289)","v":""},{"$f":"IF('1. Order'!U289=\"\",\"\",'1. Order'!U289)","v":""},{"$f":"IF('1. Order'!X289=\"\",\"\",'1. Order'!X289)","v":""},{"$f":"IF('1. Order'!Y289=\"\",\"\",'1. Order'!Y289)","v":""},{"$f":"IF('1. Order'!Z289=\"\",\"\",'1. Order'!Z289)","v":""},{"$f":"IF('1. Order'!AC289=\"\",\"\",'1. Order'!AC289)","v":""},{"$f":"IF('1. Order'!AD289=\"\",\"\",'1. Order'!AD289)","v":""},{"$f":"IF('1. Order'!AE289=\"\",\"\",'1. Order'!AE289)","v":""},null,{"$f":"IF('1. Order'!AW289=\"\",\"\",'1. Order'!AW289)","v":""},{"$f":"IF('1. Order'!AX289=\"\",\"\",'1. Order'!AX289)","v":""},null,null,null,null,null,null,null,{"$f":"IF('1. Order'!BB289=\"\",\"\",'1. Order'!BB289)","v":""},{"$f":"IF('1. Order'!BC289=\"\",\"\",'1. Order'!BC289)","v":""},{"$f":"IF('1. Order'!BD289=\"\",\"\",'1. Order'!BD289)","v":""},{"$f":"IF('1. Order'!BE289=\"\",\"\",'1. Order'!BE289)","v":""},{"$f":"IF('1. Order'!BG289=\"\",\"\",'1. Order'!BG289)","v":""},{"$f":"IF('1. Order'!BH289=\"\",\"\",'1. Order'!BH289)","v":""},{"$f":"IF('1. Order'!BI289=\"\",\"\",'1. Order'!BI289)","v":""},{"$f":"IF('1. Order'!BJ289=\"\",\"\",'1. Order'!BJ289)","v":""},{"$f":"IF('1. Order'!BK289=\"\",\"\",'1. Order'!BK289)","v":"ZWO"}]
[{"$f":"IF('1. Order'!G290=\"\",\"\",'1. Order'!G290)","v":""},{"$f":"IF('1. Order'!H290=\"\",\"\",'1. Order'!H290)","v":""},{"$f":"IF('1. Order'!I290=\"\",\"\",'1. Order'!I290)","v":""},{"$f":"IF('1. Order'!J290=\"\",\"\",'1. Order'!J290)","v":""},{"$f":"IF('1. Order'!K290=\"\",\"\",'1. Order'!K290)","v":""},{"$f":"IF('1. Order'!L290=\"\",\"\",'1. Order'!L290)","v":""},{"$f":"IF('1. Order'!M290=\"\",\"\",'1. Order'!M290)","v":""},{"$f":"IF('1. Order'!N290=\"\",\"\",'1. Order'!N290)","v":""},{"$f":"IF('1. Order'!P290=\"\",\"\",'1. Order'!P290)","v":""},{"$f":"IF('1. Order'!Q290=\"\",\"\",'1. Order'!Q290)","v":{"$error":"#N/A"}},{"$f":"IF('1. Order'!R290=\"\",\"\",'1. Order'!R290)","v":{"$error":"#N/A"}},{"$f":"IF('1. Order'!S290=\"\",\"\",'1. Order'!S290)","v":""},{"$f":"IF('1. Order'!T290=\"\",\"\",'1. Order'!T290)","v":""},{"$f":"IF('1. Order'!U290=\"\",\"\",'1. Order'!U290)","v":""},{"$f":"IF('1. Order'!X290=\"\",\"\",'1. Order'!X290)","v":""},{"$f":"IF('1. Order'!Y290=\"\",\"\",'1. Order'!Y290)","v":""},{"$f":"IF('1. Order'!Z290=\"\",\"\",'1. Order'!Z290)","v":""},{"$f":"IF('1. Order'!AC290=\"\",\"\",'1. Order'!AC290)","v":""},{"$f":"IF('1. Order'!AD290=\"\",\"\",'1. Order'!AD290)","v":""},{"$f":"IF('1. Order'!AE290=\"\",\"\",'1. Order'!AE290)","v":""},null,{"$f":"IF('1. Order'!AW290=\"\",\"\",'1. Order'!AW290)","v":""},{"$f":"IF('1. Order'!AX290=\"\",\"\",'1. Order'!AX290)","v":""},null,null,null,null,null,null,null,{"$f":"IF('1. Order'!BB290=\"\",\"\",'1. Order'!BB290)","v":""},{"$f":"IF('1. Order'!BC290=\"\",\"\",'1. Order'!BC290)","v":""},{"$f":"IF('1. Order'!BD290=\"\",\"\",'1. Order'!BD290)","v":""},{"$f":"IF('1. Order'!BE290=\"\",\"\",'1. Order'!BE290)","v":""},{"$f":"IF('1. Order'!BG290=\"\",\"\",'1. Order'!BG290)","v":""},{"$f":"IF('1. Order'!BH290=\"\",\"\",'1. Order'!BH290)","v":""},{"$f":"IF('1. Order'!BI290=\"\",\"\",'1. Order'!BI290)","v":""},{"$f":"IF('1. Order'!BJ290=\"\",\"\",'1. Order'!BJ290)","v":""},{"$f":"IF('1. Order'!BK290=\"\",\"\",'1. Order'!BK290)","v":"ZWO"}]
[{"$f":"IF('1. Order'!G291=\"\",\"\",'1. Order'!G291)","v":""},{"$f":"IF('1. Order'!H291=\"\",\"\",'1. Order'!H291)","v":""},{"$f":"IF('1. Order'!I291=\"\",\"\",'1. Order'!I291)","v":""},{"$f":"IF('1. Order'!J291=\"\",\"\",'1. Order'!J291)","v":""},{"$f":"IF('1. Order'!K291=\"\",\"\",'1. Order'!K291)","v":""},{"$f":"IF('1. Order'!L291=\"\",\"\",'1. Order'!L291)","v":""},{"$f":"IF('1. Order'!M291=\"\",\"\",'1. Order'!M291)","v":""},{"$f":"IF('1. Order'!N291=\"\",\"\",'1. Order'!N291)","v":""},{"$f":"IF('1. Order'!P291=\"\",\"\",'1. Order'!P291)","v":""},{"$f":"IF('1. Order'!Q291=\"\",\"\",'1. Order'!Q291)","v":{"$error":"#N/A"}},{"$f":"IF('1. Order'!R291=\"\",\"\",'1. Order'!R291)","v":{"$error":"#N/A"}},{"$f":"IF('1. Order'!S291=\"\",\"\",'1. Order'!S291)","v":""},{"$f":"IF('1. Order'!T291=\"\",\"\",'1. Order'!T291)","v":""},{"$f":"IF('1. Order'!U291=\"\",\"\",'1. Order'!U291)","v":""},{"$f":"IF('1. Order'!X291=\"\",\"\",'1. Order'!X291)","v":""},{"$f":"IF('1. Order'!Y291=\"\",\"\",'1. Order'!Y291)","v":""},{"$f":"IF('1. Order'!Z291=\"\",\"\",'1. Order'!Z291)","v":""},{"$f":"IF('1. Order'!AC291=\"\",\"\",'1. Order'!AC291)","v":""},{"$f":"IF('1. Order'!AD291=\"\",\"\",'1. Order'!AD291)","v":""},{"$f":"IF('1. Order'!AE291=\"\",\"\",'1. Order'!AE291)","v":""},null,{"$f":"IF('1. Order'!AW291=\"\",\"\",'1. Order'!AW291)","v":""},{"$f":"IF('1. Order'!AX291=\"\",\"\",'1. Order'!AX291)","v":""},null,null,null,null,null,null,null,{"$f":"IF('1. Order'!BB291=\"\",\"\",'1. Order'!BB291)","v":""},{"$f":"IF('1. Order'!BC291=\"\",\"\",'1. Order'!BC291)","v":""},{"$f":"IF('1. Order'!BD291=\"\",\"\",'1. Order'!BD291)","v":""},{"$f":"IF('1. Order'!BE291=\"\",\"\",'1. Order'!BE291)","v":""},{"$f":"IF('1. Order'!BG291=\"\",\"\",'1. Order'!BG291)","v":""},{"$f":"IF('1. Order'!BH291=\"\",\"\",'1. Order'!BH291)","v":""},{"$f":"IF('1. Order'!BI291=\"\",\"\",'1. Order'!BI291)","v":""},{"$f":"IF('1. Order'!BJ291=\"\",\"\",'1. Order'!BJ291)","v":""},{"$f":"IF('1. Order'!BK291=\"\",\"\",'1. Order'!BK291)","v":"ZWO"}]
[{"$f":"IF('1. Order'!G292=\"\",\"\",'1. Order'!G292)","v":""},{"$f":"IF('1. Order'!H292=\"\",\"\",'1. Order'!H292)","v":""},{"$f":"IF('1. Order'!I292=\"\",\"\",'1. Order'!I292)","v":""},{"$f":"IF('1. Order'!J292=\"\",\"\",'1. Order'!J292)","v":""},{"$f":"IF('1. Order'!K292=\"\",\"\",'1. Order'!K292)","v":""},{"$f":"IF('1. Order'!L292=\"\",\"\",'1. Order'!L292)","v":""},{"$f":"IF('1. Order'!M292=\"\",\"\",'1. Order'!M292)","v":""},{"$f":"IF('1. Order'!N292=\"\",\"\",'1. Order'!N292)","v":""},{"$f":"IF('1. Order'!P292=\"\",\"\",'1. Order'!P292)","v":""},{"$f":"IF('1. Order'!Q292=\"\",\"\",'1. Order'!Q292)","v":{"$error":"#N/A"}},{"$f":"IF('1. Order'!R292=\"\",\"\",'1. Order'!R292)","v":{"$error":"#N/A"}},{"$f":"IF('1. Order'!S292=\"\",\"\",'1. Order'!S292)","v":""},{"$f":"IF('1. Order'!T292=\"\",\"\",'1. Order'!T292)","v":""},{"$f":"IF('1. Order'!U292=\"\",\"\",'1. Order'!U292)","v":""},{"$f":"IF('1. Order'!X292=\"\",\"\",'1. Order'!X292)","v":""},{"$f":"IF('1. Order'!Y292=\"\",\"\",'1. Order'!Y292)","v":""},{"$f":"IF('1. Order'!Z292=\"\",\"\",'1. Order'!Z292)","v":""},{"$f":"IF('1. Order'!AC292=\"\",\"\",'1. Order'!AC292)","v":""},{"$f":"IF('1. Order'!AD292=\"\",\"\",'1. Order'!AD292)","v":""},{"$f":"IF('1. Order'!AE292=\"\",\"\",'1. Order'!AE292)","v":""},null,{"$f":"IF('1. Order'!AW292=\"\",\"\",'1. Order'!AW292)","v":""},{"$f":"IF('1. Order'!AX292=\"\",\"\",'1. Order'!AX292)","v":""},null,null,null,null,null,null,null,{"$f":"IF('1. Order'!BB292=\"\",\"\",'1. Order'!BB292)","v":""},{"$f":"IF('1. Order'!BC292=\"\",\"\",'1. Order'!BC292)","v":""},{"$f":"IF('1. Order'!BD292=\"\",\"\",'1. Order'!BD292)","v":""},{"$f":"IF('1. Order'!BE292=\"\",\"\",'1. Order'!BE292)","v":""},{"$f":"IF('1. Order'!BG292=\"\",\"\",'1. Order'!BG292)","v":""},{"$f":"IF('1. Order'!BH292=\"\",\"\",'1. Order'!BH292)","v":""},{"$f":"IF('1. Order'!BI292=\"\",\"\",'1. Order'!BI292)","v":""},{"$f":"IF('1. Order'!BJ292=\"\",\"\",'1. Order'!BJ292)","v":""},{"$f":"IF('1. Order'!BK292=\"\",\"\",'1. Order'!BK292)","v":"ZWO"}]
[{"$f":"IF('1. Order'!G293=\"\",\"\",'1. Order'!G293)","v":""},{"$f":"IF('1. Order'!H293=\"\",\"\",'1. Order'!H293)","v":""},{"$f":"IF('1. Order'!I293=\"\",\"\",'1. Order'!I293)","v":""},{"$f":"IF('1. Order'!J293=\"\",\"\",'1. Order'!J293)","v":""},{"$f":"IF('1. Order'!K293=\"\",\"\",'1. Order'!K293)","v":""},{"$f":"IF('1. Order'!L293=\"\",\"\",'1. Order'!L293)","v":""},{"$f":"IF('1. Order'!M293=\"\",\"\",'1. Order'!M293)","v":""},{"$f":"IF('1. Order'!N293=\"\",\"\",'1. Order'!N293)","v":""},{"$f":"IF('1. Order'!P293=\"\",\"\",'1. Order'!P293)","v":""},{"$f":"IF('1. Order'!Q293=\"\",\"\",'1. Order'!Q293)","v":{"$error":"#N/A"}},{"$f":"IF('1. Order'!R293=\"\",\"\",'1. Order'!R293)","v":{"$error":"#N/A"}},{"$f":"IF('1. Order'!S293=\"\",\"\",'1. Order'!S293)","v":""},{"$f":"IF('1. Order'!T293=\"\",\"\",'1. Order'!T293)","v":""},{"$f":"IF('1. Order'!U293=\"\",\"\",'1. Order'!U293)","v":""},{"$f":"IF('1. Order'!X293=\"\",\"\",'1. Order'!X293)","v":""},{"$f":"IF('1. Order'!Y293=\"\",\"\",'1. Order'!Y293)","v":""},{"$f":"IF('1. Order'!Z293=\"\",\"\",'1. Order'!Z293)","v":""},{"$f":"IF('1. Order'!AC293=\"\",\"\",'1. Order'!AC293)","v":""},{"$f":"IF('1. Order'!AD293=\"\",\"\",'1. Order'!AD293)","v":""},{"$f":"IF('1. Order'!AE293=\"\",\"\",'1. Order'!AE293)","v":""},null,{"$f":"IF('1. Order'!AW293=\"\",\"\",'1. Order'!AW293)","v":""},{"$f":"IF('1. Order'!AX293=\"\",\"\",'1. Order'!AX293)","v":""},null,null,null,null,null,null,null,{"$f":"IF('1. Order'!BB293=\"\",\"\",'1. Order'!BB293)","v":""},{"$f":"IF('1. Order'!BC293=\"\",\"\",'1. Order'!BC293)","v":""},{"$f":"IF('1. Order'!BD293=\"\",\"\",'1. Order'!BD293)","v":""},{"$f":"IF('1. Order'!BE293=\"\",\"\",'1. Order'!BE293)","v":""},{"$f":"IF('1. Order'!BG293=\"\",\"\",'1. Order'!BG293)","v":""},{"$f":"IF('1. Order'!BH293=\"\",\"\",'1. Order'!BH293)","v":""},{"$f":"IF('1. Order'!BI293=\"\",\"\",'1. Order'!BI293)","v":""},{"$f":"IF('1. Order'!BJ293=\"\",\"\",'1. Order'!BJ293)","v":""},{"$f":"IF('1. Order'!BK293=\"\",\"\",'1. Order'!BK293)","v":"ZWO"}]
[{"$f":"IF('1. Order'!G294=\"\",\"\",'1. Order'!G294)","v":""},{"$f":"IF('1. Order'!H294=\"\",\"\",'1. Order'!H294)","v":""},{"$f":"IF('1. Order'!I294=\"\",\"\",'1. Order'!I294)","v":""},{"$f":"IF('1. Order'!J294=\"\",\"\",'1. Order'!J294)","v":""},{"$f":"IF('1. Order'!K294=\"\",\"\",'1. Order'!K294)","v":""},{"$f":"IF('1. Order'!L294=\"\",\"\",'1. Order'!L294)","v":""},{"$f":"IF('1. Order'!M294=\"\",\"\",'1. Order'!M294)","v":""},{"$f":"IF('1. Order'!N294=\"\",\"\",'1. Order'!N294)","v":""},{"$f":"IF('1. Order'!P294=\"\",\"\",'1. Order'!P294)","v":""},{"$f":"IF('1. Order'!Q294=\"\",\"\",'1. Order'!Q294)","v":{"$error":"#N/A"}},{"$f":"IF('1. Order'!R294=\"\",\"\",'1. Order'!R294)","v":{"$error":"#N/A"}},{"$f":"IF('1. Order'!S294=\"\",\"\",'1. Order'!S294)","v":""},{"$f":"IF('1. Order'!T294=\"\",\"\",'1. Order'!T294)","v":""},{"$f":"IF('1. Order'!U294=\"\",\"\",'1. Order'!U294)","v":""},{"$f":"IF('1. Order'!X294=\"\",\"\",'1. Order'!X294)","v":""},{"$f":"IF('1. Order'!Y294=\"\",\"\",'1. Order'!Y294)","v":""},{"$f":"IF('1. Order'!Z294=\"\",\"\",'1. Order'!Z294)","v":""},{"$f":"IF('1. Order'!AC294=\"\",\"\",'1. Order'!AC294)","v":""},{"$f":"IF('1. Order'!AD294=\"\",\"\",'1. Order'!AD294)","v":""},{"$f":"IF('1. Order'!AE294=\"\",\"\",'1. Order'!AE294)","v":""},null,{"$f":"IF('1. Order'!AW294=\"\",\"\",'1. Order'!AW294)","v":""},{"$f":"IF('1. Order'!AX294=\"\",\"\",'1. Order'!AX294)","v":""},null,null,null,null,null,null,null,{"$f":"IF('1. Order'!BB294=\"\",\"\",'1. Order'!BB294)","v":""},{"$f":"IF('1. Order'!BC294=\"\",\"\",'1. Order'!BC294)","v":""},{"$f":"IF('1. Order'!BD294=\"\",\"\",'1. Order'!BD294)","v":""},{"$f":"IF('1. Order'!BE294=\"\",\"\",'1. Order'!BE294)","v":""},{"$f":"IF('1. Order'!BG294=\"\",\"\",'1. Order'!BG294)","v":""},{"$f":"IF('1. Order'!BH294=\"\",\"\",'1. Order'!BH294)","v":""},{"$f":"IF('1. Order'!BI294=\"\",\"\",'1. Order'!BI294)","v":""},{"$f":"IF('1. Order'!BJ294=\"\",\"\",'1. Order'!BJ294)","v":""},{"$f":"IF('1. Order'!BK294=\"\",\"\",'1. Order'!BK294)","v":"ZWO"}]
[{"$f":"IF('1. Order'!G295=\"\",\"\",'1. Order'!G295)","v":""},{"$f":"IF('1. Order'!H295=\"\",\"\",'1. Order'!H295)","v":""},{"$f":"IF('1. Order'!I295=\"\",\"\",'1. Order'!I295)","v":""},{"$f":"IF('1. Order'!J295=\"\",\"\",'1. Order'!J295)","v":""},{"$f":"IF('1. Order'!K295=\"\",\"\",'1. Order'!K295)","v":""},{"$f":"IF('1. Order'!L295=\"\",\"\",'1. Order'!L295)","v":""},{"$f":"IF('1. Order'!M295=\"\",\"\",'1. Order'!M295)","v":""},{"$f":"IF('1. Order'!N295=\"\",\"\",'1. Order'!N295)","v":""},{"$f":"IF('1. Order'!P295=\"\",\"\",'1. Order'!P295)","v":""},{"$f":"IF('1. Order'!Q295=\"\",\"\",'1. Order'!Q295)","v":{"$error":"#N/A"}},{"$f":"IF('1. Order'!R295=\"\",\"\",'1. Order'!R295)","v":{"$error":"#N/A"}},{"$f":"IF('1. Order'!S295=\"\",\"\",'1. Order'!S295)","v":""},{"$f":"IF('1. Order'!T295=\"\",\"\",'1. Order'!T295)","v":""},{"$f":"IF('1. Order'!U295=\"\",\"\",'1. Order'!U295)","v":""},{"$f":"IF('1. Order'!X295=\"\",\"\",'1. Order'!X295)","v":""},{"$f":"IF('1. Order'!Y295=\"\",\"\",'1. Order'!Y295)","v":""},{"$f":"IF('1. Order'!Z295=\"\",\"\",'1. Order'!Z295)","v":""},{"$f":"IF('1. Order'!AC295=\"\",\"\",'1. Order'!AC295)","v":""},{"$f":"IF('1. Order'!AD295=\"\",\"\",'1. Order'!AD295)","v":""},{"$f":"IF('1. Order'!AE295=\"\",\"\",'1. Order'!AE295)","v":""},null,{"$f":"IF('1. Order'!AW295=\"\",\"\",'1. Order'!AW295)","v":""},{"$f":"IF('1. Order'!AX295=\"\",\"\",'1. Order'!AX295)","v":""},null,null,null,null,null,null,null,{"$f":"IF('1. Order'!BB295=\"\",\"\",'1. Order'!BB295)","v":""},{"$f":"IF('1. Order'!BC295=\"\",\"\",'1. Order'!BC295)","v":""},{"$f":"IF('1. Order'!BD295=\"\",\"\",'1. Order'!BD295)","v":""},{"$f":"IF('1. Order'!BE295=\"\",\"\",'1. Order'!BE295)","v":""},{"$f":"IF('1. Order'!BG295=\"\",\"\",'1. Order'!BG295)","v":""},{"$f":"IF('1. Order'!BH295=\"\",\"\",'1. Order'!BH295)","v":""},{"$f":"IF('1. Order'!BI295=\"\",\"\",'1. Order'!BI295)","v":""},{"$f":"IF('1. Order'!BJ295=\"\",\"\",'1. Order'!BJ295)","v":""},{"$f":"IF('1. Order'!BK295=\"\",\"\",'1. Order'!BK295)","v":"ZWO"}]
[{"$f":"IF('1. Order'!G296=\"\",\"\",'1. Order'!G296)","v":""},{"$f":"IF('1. Order'!H296=\"\",\"\",'1. Order'!H296)","v":""},{"$f":"IF('1. Order'!I296=\"\",\"\",'1. Order'!I296)","v":""},{"$f":"IF('1. Order'!J296=\"\",\"\",'1. Order'!J296)","v":""},{"$f":"IF('1. Order'!K296=\"\",\"\",'1. Order'!K296)","v":""},{"$f":"IF('1. Order'!L296=\"\",\"\",'1. Order'!L296)","v":""},{"$f":"IF('1. Order'!M296=\"\",\"\",'1. Order'!M296)","v":""},{"$f":"IF('1. Order'!N296=\"\",\"\",'1. Order'!N296)","v":""},{"$f":"IF('1. Order'!P296=\"\",\"\",'1. Order'!P296)","v":""},{"$f":"IF('1. Order'!Q296=\"\",\"\",'1. Order'!Q296)","v":{"$error":"#N/A"}},{"$f":"IF('1. Order'!R296=\"\",\"\",'1. Order'!R296)","v":{"$error":"#N/A"}},{"$f":"IF('1. Order'!S296=\"\",\"\",'1. Order'!S296)","v":""},{"$f":"IF('1. Order'!T296=\"\",\"\",'1. Order'!T296)","v":""},{"$f":"IF('1. Order'!U296=\"\",\"\",'1. Order'!U296)","v":""},{"$f":"IF('1. Order'!X296=\"\",\"\",'1. Order'!X296)","v":""},{"$f":"IF('1. Order'!Y296=\"\",\"\",'1. Order'!Y296)","v":""},{"$f":"IF('1. Order'!Z296=\"\",\"\",'1. Order'!Z296)","v":""},{"$f":"IF('1. Order'!AC296=\"\",\"\",'1. Order'!AC296)","v":""},{"$f":"IF('1. Order'!AD296=\"\",\"\",'1. Order'!AD296)","v":""},{"$f":"IF('1. Order'!AE296=\"\",\"\",'1. Order'!AE296)","v":""},null,{"$f":"IF('1. Order'!AW296=\"\",\"\",'1. Order'!AW296)","v":""},{"$f":"IF('1. Order'!AX296=\"\",\"\",'1. Order'!AX296)","v":""},null,null,null,null,null,null,null,{"$f":"IF('1. Order'!BB296=\"\",\"\",'1. Order'!BB296)","v":""},{"$f":"IF('1. Order'!BC296=\"\",\"\",'1. Order'!BC296)","v":""},{"$f":"IF('1. Order'!BD296=\"\",\"\",'1. Order'!BD296)","v":""},{"$f":"IF('1. Order'!BE296=\"\",\"\",'1. Order'!BE296)","v":""},{"$f":"IF('1. Order'!BG296=\"\",\"\",'1. Order'!BG296)","v":""},{"$f":"IF('1. Order'!BH296=\"\",\"\",'1. Order'!BH296)","v":""},{"$f":"IF('1. Order'!BI296=\"\",\"\",'1. Order'!BI296)","v":""},{"$f":"IF('1. Order'!BJ296=\"\",\"\",'1. Order'!BJ296)","v":""},{"$f":"IF('1. Order'!BK296=\"\",\"\",'1. Order'!BK296)","v":"ZWO"}]
[{"$f":"IF('1. Order'!G297=\"\",\"\",'1. Order'!G297)","v":""},{"$f":"IF('1. Order'!H297=\"\",\"\",'1. Order'!H297)","v":""},{"$f":"IF('1. Order'!I297=\"\",\"\",'1. Order'!I297)","v":""},{"$f":"IF('1. Order'!J297=\"\",\"\",'1. Order'!J297)","v":""},{"$f":"IF('1. Order'!K297=\"\",\"\",'1. Order'!K297)","v":""},{"$f":"IF('1. Order'!L297=\"\",\"\",'1. Order'!L297)","v":""},{"$f":"IF('1. Order'!M297=\"\",\"\",'1. Order'!M297)","v":""},{"$f":"IF('1. Order'!N297=\"\",\"\",'1. Order'!N297)","v":""},{"$f":"IF('1. Order'!P297=\"\",\"\",'1. Order'!P297)","v":""},{"$f":"IF('1. Order'!Q297=\"\",\"\",'1. Order'!Q297)","v":{"$error":"#N/A"}},{"$f":"IF('1. Order'!R297=\"\",\"\",'1. Order'!R297)","v":{"$error":"#N/A"}},{"$f":"IF('1. Order'!S297=\"\",\"\",'1. Order'!S297)","v":""},{"$f":"IF('1. Order'!T297=\"\",\"\",'1. Order'!T297)","v":""},{"$f":"IF('1. Order'!U297=\"\",\"\",'1. Order'!U297)","v":""},{"$f":"IF('1. Order'!X297=\"\",\"\",'1. Order'!X297)","v":""},{"$f":"IF('1. Order'!Y297=\"\",\"\",'1. Order'!Y297)","v":""},{"$f":"IF('1. Order'!Z297=\"\",\"\",'1. Order'!Z297)","v":""},{"$f":"IF('1. Order'!AC297=\"\",\"\",'1. Order'!AC297)","v":""},{"$f":"IF('1. Order'!AD297=\"\",\"\",'1. Order'!AD297)","v":""},{"$f":"IF('1. Order'!AE297=\"\",\"\",'1. Order'!AE297)","v":""},null,{"$f":"IF('1. Order'!AW297=\"\",\"\",'1. Order'!AW297)","v":""},{"$f":"IF('1. Order'!AX297=\"\",\"\",'1. Order'!AX297)","v":""},null,null,null,null,null,null,null,{"$f":"IF('1. Order'!BB297=\"\",\"\",'1. Order'!BB297)","v":""},{"$f":"IF('1. Order'!BC297=\"\",\"\",'1. Order'!BC297)","v":""},{"$f":"IF('1. Order'!BD297=\"\",\"\",'1. Order'!BD297)","v":""},{"$f":"IF('1. Order'!BE297=\"\",\"\",'1. Order'!BE297)","v":""},{"$f":"IF('1. Order'!BG297=\"\",\"\",'1. Order'!BG297)","v":""},{"$f":"IF('1. Order'!BH297=\"\",\"\",'1. Order'!BH297)","v":""},{"$f":"IF('1. Order'!BI297=\"\",\"\",'1. Order'!BI297)","v":""},{"$f":"IF('1. Order'!BJ297=\"\",\"\",'1. Order'!BJ297)","v":""},{"$f":"IF('1. Order'!BK297=\"\",\"\",'1. Order'!BK297)","v":"ZWO"}]
[{"$f":"IF('1. Order'!G298=\"\",\"\",'1. Order'!G298)","v":""},{"$f":"IF('1. Order'!H298=\"\",\"\",'1. Order'!H298)","v":""},{"$f":"IF('1. Order'!I298=\"\",\"\",'1. Order'!I298)","v":""},{"$f":"IF('1. Order'!J298=\"\",\"\",'1. Order'!J298)","v":""},{"$f":"IF('1. Order'!K298=\"\",\"\",'1. Order'!K298)","v":""},{"$f":"IF('1. Order'!L298=\"\",\"\",'1. Order'!L298)","v":""},{"$f":"IF('1. Order'!M298=\"\",\"\",'1. Order'!M298)","v":""},{"$f":"IF('1. Order'!N298=\"\",\"\",'1. Order'!N298)","v":""},{"$f":"IF('1. Order'!P298=\"\",\"\",'1. Order'!P298)","v":""},{"$f":"IF('1. Order'!Q298=\"\",\"\",'1. Order'!Q298)","v":{"$error":"#N/A"}},{"$f":"IF('1. Order'!R298=\"\",\"\",'1. Order'!R298)","v":{"$error":"#N/A"}},{"$f":"IF('1. Order'!S298=\"\",\"\",'1. Order'!S298)","v":""},{"$f":"IF('1. Order'!T298=\"\",\"\",'1. Order'!T298)","v":""},{"$f":"IF('1. Order'!U298=\"\",\"\",'1. Order'!U298)","v":""},{"$f":"IF('1. Order'!X298=\"\",\"\",'1. Order'!X298)","v":""},{"$f":"IF('1. Order'!Y298=\"\",\"\",'1. Order'!Y298)","v":""},{"$f":"IF('1. Order'!Z298=\"\",\"\",'1. Order'!Z298)","v":""},{"$f":"IF('1. Order'!AC298=\"\",\"\",'1. Order'!AC298)","v":""},{"$f":"IF('1. Order'!AD298=\"\",\"\",'1. Order'!AD298)","v":""},{"$f":"IF('1. Order'!AE298=\"\",\"\",'1. Order'!AE298)","v":""},null,{"$f":"IF('1. Order'!AW298=\"\",\"\",'1. Order'!AW298)","v":""},{"$f":"IF('1. Order'!AX298=\"\",\"\",'1. Order'!AX298)","v":""},null,null,null,null,null,null,null,{"$f":"IF('1. Order'!BB298=\"\",\"\",'1. Order'!BB298)","v":""},{"$f":"IF('1. Order'!BC298=\"\",\"\",'1. Order'!BC298)","v":""},{"$f":"IF('1. Order'!BD298=\"\",\"\",'1. Order'!BD298)","v":""},{"$f":"IF('1. Order'!BE298=\"\",\"\",'1. Order'!BE298)","v":""},{"$f":"IF('1. Order'!BG298=\"\",\"\",'1. Order'!BG298)","v":""},{"$f":"IF('1. Order'!BH298=\"\",\"\",'1. Order'!BH298)","v":""},{"$f":"IF('1. Order'!BI298=\"\",\"\",'1. Order'!BI298)","v":""},{"$f":"IF('1. Order'!BJ298=\"\",\"\",'1. Order'!BJ298)","v":""},{"$f":"IF('1. Order'!BK298=\"\",\"\",'1. Order'!BK298)","v":"ZWO"}]
[{"$f":"IF('1. Order'!G299=\"\",\"\",'1. Order'!G299)","v":""},{"$f":"IF('1. Order'!H299=\"\",\"\",'1. Order'!H299)","v":""},{"$f":"IF('1. Order'!I299=\"\",\"\",'1. Order'!I299)","v":""},{"$f":"IF('1. Order'!J299=\"\",\"\",'1. Order'!J299)","v":""},{"$f":"IF('1. Order'!K299=\"\",\"\",'1. Order'!K299)","v":""},{"$f":"IF('1. Order'!L299=\"\",\"\",'1. Order'!L299)","v":""},{"$f":"IF('1. Order'!M299=\"\",\"\",'1. Order'!M299)","v":""},{"$f":"IF('1. Order'!N299=\"\",\"\",'1. Order'!N299)","v":""},{"$f":"IF('1. Order'!P299=\"\",\"\",'1. Order'!P299)","v":""},{"$f":"IF('1. Order'!Q299=\"\",\"\",'1. Order'!Q299)","v":{"$error":"#N/A"}},{"$f":"IF('1. Order'!R299=\"\",\"\",'1. Order'!R299)","v":{"$error":"#N/A"}},{"$f":"IF('1. Order'!S299=\"\",\"\",'1. Order'!S299)","v":""},{"$f":"IF('1. Order'!T299=\"\",\"\",'1. Order'!T299)","v":""},{"$f":"IF('1. Order'!U299=\"\",\"\",'1. Order'!U299)","v":""},{"$f":"IF('1. Order'!X299=\"\",\"\",'1. Order'!X299)","v":""},{"$f":"IF('1. Order'!Y299=\"\",\"\",'1. Order'!Y299)","v":""},{"$f":"IF('1. Order'!Z299=\"\",\"\",'1. Order'!Z299)","v":""},{"$f":"IF('1. Order'!AC299=\"\",\"\",'1. Order'!AC299)","v":""},{"$f":"IF('1. Order'!AD299=\"\",\"\",'1. Order'!AD299)","v":""},{"$f":"IF('1. Order'!AE299=\"\",\"\",'1. Order'!AE299)","v":""},null,{"$f":"IF('1. Order'!AW299=\"\",\"\",'1. Order'!AW299)","v":""},{"$f":"IF('1. Order'!AX299=\"\",\"\",'1. Order'!AX299)","v":""},null,null,null,null,null,null,null,{"$f":"IF('1. Order'!BB299=\"\",\"\",'1. Order'!BB299)","v":""},{"$f":"IF('1. Order'!BC299=\"\",\"\",'1. Order'!BC299)","v":""},{"$f":"IF('1. Order'!BD299=\"\",\"\",'1. Order'!BD299)","v":""},{"$f":"IF('1. Order'!BE299=\"\",\"\",'1. Order'!BE299)","v":""},{"$f":"IF('1. Order'!BG299=\"\",\"\",'1. Order'!BG299)","v":""},{"$f":"IF('1. Order'!BH299=\"\",\"\",'1. Order'!BH299)","v":""},{"$f":"IF('1. Order'!BI299=\"\",\"\",'1. Order'!BI299)","v":""},{"$f":"IF('1. Order'!BJ299=\"\",\"\",'1. Order'!BJ299)","v":""},{"$f":"IF('1. Order'!BK299=\"\",\"\",'1. Order'!BK299)","v":"ZWO"}]
[{"$f":"IF('1. Order'!G300=\"\",\"\",'1. Order'!G300)","v":""},{"$f":"IF('1. Order'!H300=\"\",\"\",'1. Order'!H300)","v":""},{"$f":"IF('1. Order'!I300=\"\",\"\",'1. Order'!I300)","v":""},{"$f":"IF('1. Order'!J300=\"\",\"\",'1. Order'!J300)","v":""},{"$f":"IF('1. Order'!K300=\"\",\"\",'1. Order'!K300)","v":""},{"$f":"IF('1. Order'!L300=\"\",\"\",'1. Order'!L300)","v":""},{"$f":"IF('1. Order'!M300=\"\",\"\",'1. Order'!M300)","v":""},{"$f":"IF('1. Order'!N300=\"\",\"\",'1. Order'!N300)","v":""},{"$f":"IF('1. Order'!P300=\"\",\"\",'1. Order'!P300)","v":""},{"$f":"IF('1. Order'!Q300=\"\",\"\",'1. Order'!Q300)","v":{"$error":"#N/A"}},{"$f":"IF('1. Order'!R300=\"\",\"\",'1. Order'!R300)","v":{"$error":"#N/A"}},{"$f":"IF('1. Order'!S300=\"\",\"\",'1. Order'!S300)","v":""},{"$f":"IF('1. Order'!T300=\"\",\"\",'1. Order'!T300)","v":""},{"$f":"IF('1. Order'!U300=\"\",\"\",'1. Order'!U300)","v":""},{"$f":"IF('1. Order'!X300=\"\",\"\",'1. Order'!X300)","v":""},{"$f":"IF('1. Order'!Y300=\"\",\"\",'1. Order'!Y300)","v":""},{"$f":"IF('1. Order'!Z300=\"\",\"\",'1. Order'!Z300)","v":""},{"$f":"IF('1. Order'!AC300=\"\",\"\",'1. Order'!AC300)","v":""},{"$f":"IF('1. Order'!AD300=\"\",\"\",'1. Order'!AD300)","v":""},{"$f":"IF('1. Order'!AE300=\"\",\"\",'1. Order'!AE300)","v":""},null,{"$f":"IF('1. Order'!AW300=\"\",\"\",'1. Order'!AW300)","v":""},{"$f":"IF('1. Order'!AX300=\"\",\"\",'1. Order'!AX300)","v":""},null,null,null,null,null,null,null,{"$f":"IF('1. Order'!BB300=\"\",\"\",'1. Order'!BB300)","v":""},{"$f":"IF('1. Order'!BC300=\"\",\"\",'1. Order'!BC300)","v":""},{"$f":"IF('1. Order'!BD300=\"\",\"\",'1. Order'!BD300)","v":""},{"$f":"IF('1. Order'!BE300=\"\",\"\",'1. Order'!BE300)","v":""},{"$f":"IF('1. Order'!BG300=\"\",\"\",'1. Order'!BG300)","v":""},{"$f":"IF('1. Order'!BH300=\"\",\"\",'1. Order'!BH300)","v":""},{"$f":"IF('1. Order'!BI300=\"\",\"\",'1. Order'!BI300)","v":""},{"$f":"IF('1. Order'!BJ300=\"\",\"\",'1. Order'!BJ300)","v":""},{"$f":"IF('1. Order'!BK300=\"\",\"\",'1. Order'!BK300)","v":"ZWO"}]
[{"$f":"IF('1. Order'!G301=\"\",\"\",'1. Order'!G301)","v":""},{"$f":"IF('1. Order'!H301=\"\",\"\",'1. Order'!H301)","v":""},{"$f":"IF('1. Order'!I301=\"\",\"\",'1. Order'!I301)","v":""},{"$f":"IF('1. Order'!J301=\"\",\"\",'1. Order'!J301)","v":""},{"$f":"IF('1. Order'!K301=\"\",\"\",'1. Order'!K301)","v":""},{"$f":"IF('1. Order'!L301=\"\",\"\",'1. Order'!L301)","v":""},{"$f":"IF('1. Order'!M301=\"\",\"\",'1. Order'!M301)","v":""},{"$f":"IF('1. Order'!N301=\"\",\"\",'1. Order'!N301)","v":""},{"$f":"IF('1. Order'!P301=\"\",\"\",'1. Order'!P301)","v":""},{"$f":"IF('1. Order'!Q301=\"\",\"\",'1. Order'!Q301)","v":{"$error":"#N/A"}},{"$f":"IF('1. Order'!R301=\"\",\"\",'1. Order'!R301)","v":{"$error":"#N/A"}},{"$f":"IF('1. Order'!S301=\"\",\"\",'1. Order'!S301)","v":""},{"$f":"IF('1. Order'!T301=\"\",\"\",'1. Order'!T301)","v":""},{"$f":"IF('1. Order'!U301=\"\",\"\",'1. Order'!U301)","v":""},{"$f":"IF('1. Order'!X301=\"\",\"\",'1. Order'!X301)","v":""},{"$f":"IF('1. Order'!Y301=\"\",\"\",'1. Order'!Y301)","v":""},{"$f":"IF('1. Order'!Z301=\"\",\"\",'1. Order'!Z301)","v":""},{"$f":"IF('1. Order'!AC301=\"\",\"\",'1. Order'!AC301)","v":""},{"$f":"IF('1. Order'!AD301=\"\",\"\",'1. Order'!AD301)","v":""},{"$f":"IF('1. Order'!AE301=\"\",\"\",'1. Order'!AE301)","v":""},null,{"$f":"IF('1. Order'!AW301=\"\",\"\",'1. Order'!AW301)","v":""},{"$f":"IF('1. Order'!AX301=\"\",\"\",'1. Order'!AX301)","v":""},null,null,null,null,null,null,null,{"$f":"IF('1. Order'!BB301=\"\",\"\",'1. Order'!BB301)","v":""},{"$f":"IF('1. Order'!BC301=\"\",\"\",'1. Order'!BC301)","v":""},{"$f":"IF('1. Order'!BD301=\"\",\"\",'1. Order'!BD301)","v":""},{"$f":"IF('1. Order'!BE301=\"\",\"\",'1. Order'!BE301)","v":""},{"$f":"IF('1. Order'!BG301=\"\",\"\",'1. Order'!BG301)","v":""},{"$f":"IF('1. Order'!BH301=\"\",\"\",'1. Order'!BH301)","v":""},{"$f":"IF('1. Order'!BI301=\"\",\"\",'1. Order'!BI301)","v":""},{"$f":"IF('1. Order'!BJ301=\"\",\"\",'1. Order'!BJ301)","v":""},{"$f":"IF('1. Order'!BK301=\"\",\"\",'1. Order'!BK301)","v":"ZWO"}]
[{"$f":"IF('1. Order'!G302=\"\",\"\",'1. Order'!G302)","v":""},{"$f":"IF('1. Order'!H302=\"\",\"\",'1. Order'!H302)","v":""},{"$f":"IF('1. Order'!I302=\"\",\"\",'1. Order'!I302)","v":""},{"$f":"IF('1. Order'!J302=\"\",\"\",'1. Order'!J302)","v":""},{"$f":"IF('1. Order'!K302=\"\",\"\",'1. Order'!K302)","v":""},{"$f":"IF('1. Order'!L302=\"\",\"\",'1. Order'!L302)","v":""},{"$f":"IF('1. Order'!M302=\"\",\"\",'1. Order'!M302)","v":""},{"$f":"IF('1. Order'!N302=\"\",\"\",'1. Order'!N302)","v":""},{"$f":"IF('1. Order'!P302=\"\",\"\",'1. Order'!P302)","v":""},{"$f":"IF('1. Order'!Q302=\"\",\"\",'1. Order'!Q302)","v":{"$error":"#N/A"}},{"$f":"IF('1. Order'!R302=\"\",\"\",'1. Order'!R302)","v":{"$error":"#N/A"}},{"$f":"IF('1. Order'!S302=\"\",\"\",'1. Order'!S302)","v":""},{"$f":"IF('1. Order'!T302=\"\",\"\",'1. Order'!T302)","v":""},{"$f":"IF('1. Order'!U302=\"\",\"\",'1. Order'!U302)","v":""},{"$f":"IF('1. Order'!X302=\"\",\"\",'1. Order'!X302)","v":""},{"$f":"IF('1. Order'!Y302=\"\",\"\",'1. Order'!Y302)","v":""},{"$f":"IF('1. Order'!Z302=\"\",\"\",'1. Order'!Z302)","v":""},{"$f":"IF('1. Order'!AC302=\"\",\"\",'1. Order'!AC302)","v":""},{"$f":"IF('1. Order'!AD302=\"\",\"\",'1. Order'!AD302)","v":""},{"$f":"IF('1. Order'!AE302=\"\",\"\",'1. Order'!AE302)","v":""},null,{"$f":"IF('1. Order'!AW302=\"\",\"\",'1. Order'!AW302)","v":""},{"$f":"IF('1. Order'!AX302=\"\",\"\",'1. Order'!AX302)","v":""},null,null,null,null,null,null,null,{"$f":"IF('1. Order'!BB302=\"\",\"\",'1. Order'!BB302)","v":""},{"$f":"IF('1. Order'!BC302=\"\",\"\",'1. Order'!BC302)","v":""},{"$f":"IF('1. Order'!BD302=\"\",\"\",'1. Order'!BD302)","v":""},{"$f":"IF('1. Order'!BE302=\"\",\"\",'1. Order'!BE302)","v":""},{"$f":"IF('1. Order'!BG302=\"\",\"\",'1. Order'!BG302)","v":""},{"$f":"IF('1. Order'!BH302=\"\",\"\",'1. Order'!BH302)","v":""},{"$f":"IF('1. Order'!BI302=\"\",\"\",'1. Order'!BI302)","v":""},{"$f":"IF('1. Order'!BJ302=\"\",\"\",'1. Order'!BJ302)","v":""},{"$f":"IF('1. Order'!BK302=\"\",\"\",'1. Order'!BK302)","v":"ZWO"}]
[{"$f":"IF('1. Order'!G303=\"\",\"\",'1. Order'!G303)","v":""},{"$f":"IF('1. Order'!H303=\"\",\"\",'1. Order'!H303)","v":""},{"$f":"IF('1. Order'!I303=\"\",\"\",'1. Order'!I303)","v":""},{"$f":"IF('1. Order'!J303=\"\",\"\",'1. Order'!J303)","v":""},{"$f":"IF('1. Order'!K303=\"\",\"\",'1. Order'!K303)","v":""},{"$f":"IF('1. Order'!L303=\"\",\"\",'1. Order'!L303)","v":""},{"$f":"IF('1. Order'!M303=\"\",\"\",'1. Order'!M303)","v":""},{"$f":"IF('1. Order'!N303=\"\",\"\",'1. Order'!N303)","v":""},{"$f":"IF('1. Order'!P303=\"\",\"\",'1. Order'!P303)","v":""},{"$f":"IF('1. Order'!Q303=\"\",\"\",'1. Order'!Q303)","v":{"$error":"#N/A"}},{"$f":"IF('1. Order'!R303=\"\",\"\",'1. Order'!R303)","v":{"$error":"#N/A"}},{"$f":"IF('1. Order'!S303=\"\",\"\",'1. Order'!S303)","v":""},{"$f":"IF('1. Order'!T303=\"\",\"\",'1. Order'!T303)","v":""},{"$f":"IF('1. Order'!U303=\"\",\"\",'1. Order'!U303)","v":""},{"$f":"IF('1. Order'!X303=\"\",\"\",'1. Order'!X303)","v":""},{"$f":"IF('1. Order'!Y303=\"\",\"\",'1. Order'!Y303)","v":""},{"$f":"IF('1. Order'!Z303=\"\",\"\",'1. Order'!Z303)","v":""},{"$f":"IF('1. Order'!AC303=\"\",\"\",'1. Order'!AC303)","v":""},{"$f":"IF('1. Order'!AD303=\"\",\"\",'1. Order'!AD303)","v":""},{"$f":"IF('1. Order'!AE303=\"\",\"\",'1. Order'!AE303)","v":""},null,{"$f":"IF('1. Order'!AW303=\"\",\"\",'1. Order'!AW303)","v":""},{"$f":"IF('1. Order'!AX303=\"\",\"\",'1. Order'!AX303)","v":""},null,null,null,null,null,null,null,{"$f":"IF('1. Order'!BB303=\"\",\"\",'1. Order'!BB303)","v":""},{"$f":"IF('1. Order'!BC303=\"\",\"\",'1. Order'!BC303)","v":""},{"$f":"IF('1. Order'!BD303=\"\",\"\",'1. Order'!BD303)","v":""},{"$f":"IF('1. Order'!BE303=\"\",\"\",'1. Order'!BE303)","v":""},{"$f":"IF('1. Order'!BG303=\"\",\"\",'1. Order'!BG303)","v":""},{"$f":"IF('1. Order'!BH303=\"\",\"\",'1. Order'!BH303)","v":""},{"$f":"IF('1. Order'!BI303=\"\",\"\",'1. Order'!BI303)","v":""},{"$f":"IF('1. Order'!BJ303=\"\",\"\",'1. Order'!BJ303)","v":""},{"$f":"IF('1. Order'!BK303=\"\",\"\",'1. Order'!BK303)","v":"ZWO"}]
[{"$f":"IF('1. Order'!G304=\"\",\"\",'1. Order'!G304)","v":""},{"$f":"IF('1. Order'!H304=\"\",\"\",'1. Order'!H304)","v":""},{"$f":"IF('1. Order'!I304=\"\",\"\",'1. Order'!I304)","v":""},{"$f":"IF('1. Order'!J304=\"\",\"\",'1. Order'!J304)","v":""},{"$f":"IF('1. Order'!K304=\"\",\"\",'1. Order'!K304)","v":""},{"$f":"IF('1. Order'!L304=\"\",\"\",'1. Order'!L304)","v":""},{"$f":"IF('1. Order'!M304=\"\",\"\",'1. Order'!M304)","v":""},{"$f":"IF('1. Order'!N304=\"\",\"\",'1. Order'!N304)","v":""},{"$f":"IF('1. Order'!P304=\"\",\"\",'1. Order'!P304)","v":""},{"$f":"IF('1. Order'!Q304=\"\",\"\",'1. Order'!Q304)","v":{"$error":"#N/A"}},{"$f":"IF('1. Order'!R304=\"\",\"\",'1. Order'!R304)","v":{"$error":"#N/A"}},{"$f":"IF('1. Order'!S304=\"\",\"\",'1. Order'!S304)","v":""},{"$f":"IF('1. Order'!T304=\"\",\"\",'1. Order'!T304)","v":""},{"$f":"IF('1. Order'!U304=\"\",\"\",'1. Order'!U304)","v":""},{"$f":"IF('1. Order'!X304=\"\",\"\",'1. Order'!X304)","v":""},{"$f":"IF('1. Order'!Y304=\"\",\"\",'1. Order'!Y304)","v":""},{"$f":"IF('1. Order'!Z304=\"\",\"\",'1. Order'!Z304)","v":""},{"$f":"IF('1. Order'!AC304=\"\",\"\",'1. Order'!AC304)","v":""},{"$f":"IF('1. Order'!AD304=\"\",\"\",'1. Order'!AD304)","v":""},{"$f":"IF('1. Order'!AE304=\"\",\"\",'1. Order'!AE304)","v":""},null,{"$f":"IF('1. Order'!AW304=\"\",\"\",'1. Order'!AW304)","v":""},{"$f":"IF('1. Order'!AX304=\"\",\"\",'1. Order'!AX304)","v":""},null,null,null,null,null,null,null,{"$f":"IF('1. Order'!BB304=\"\",\"\",'1. Order'!BB304)","v":""},{"$f":"IF('1. Order'!BC304=\"\",\"\",'1. Order'!BC304)","v":""},{"$f":"IF('1. Order'!BD304=\"\",\"\",'1. Order'!BD304)","v":""},{"$f":"IF('1. Order'!BE304=\"\",\"\",'1. Order'!BE304)","v":""},{"$f":"IF('1. Order'!BG304=\"\",\"\",'1. Order'!BG304)","v":""},{"$f":"IF('1. Order'!BH304=\"\",\"\",'1. Order'!BH304)","v":""},{"$f":"IF('1. Order'!BI304=\"\",\"\",'1. Order'!BI304)","v":""},{"$f":"IF('1. Order'!BJ304=\"\",\"\",'1. Order'!BJ304)","v":""},{"$f":"IF('1. Order'!BK304=\"\",\"\",'1. Order'!BK304)","v":"ZWO"}]
[{"$f":"IF('1. Order'!G305=\"\",\"\",'1. Order'!G305)","v":""},{"$f":"IF('1. Order'!H305=\"\",\"\",'1. Order'!H305)","v":""},{"$f":"IF('1. Order'!I305=\"\",\"\",'1. Order'!I305)","v":""},{"$f":"IF('1. Order'!J305=\"\",\"\",'1. Order'!J305)","v":""},{"$f":"IF('1. Order'!K305=\"\",\"\",'1. Order'!K305)","v":""},{"$f":"IF('1. Order'!L305=\"\",\"\",'1. Order'!L305)","v":""},{"$f":"IF('1. Order'!M305=\"\",\"\",'1. Order'!M305)","v":""},{"$f":"IF('1. Order'!N305=\"\",\"\",'1. Order'!N305)","v":""},{"$f":"IF('1. Order'!P305=\"\",\"\",'1. Order'!P305)","v":""},{"$f":"IF('1. Order'!Q305=\"\",\"\",'1. Order'!Q305)","v":{"$error":"#N/A"}},{"$f":"IF('1. Order'!R305=\"\",\"\",'1. Order'!R305)","v":{"$error":"#N/A"}},{"$f":"IF('1. Order'!S305=\"\",\"\",'1. Order'!S305)","v":""},{"$f":"IF('1. Order'!T305=\"\",\"\",'1. Order'!T305)","v":""},{"$f":"IF('1. Order'!U305=\"\",\"\",'1. Order'!U305)","v":""},{"$f":"IF('1. Order'!X305=\"\",\"\",'1. Order'!X305)","v":""},{"$f":"IF('1. Order'!Y305=\"\",\"\",'1. Order'!Y305)","v":""},{"$f":"IF('1. Order'!Z305=\"\",\"\",'1. Order'!Z305)","v":""},{"$f":"IF('1. Order'!AC305=\"\",\"\",'1. Order'!AC305)","v":""},{"$f":"IF('1. Order'!AD305=\"\",\"\",'1. Order'!AD305)","v":""},{"$f":"IF('1. Order'!AE305=\"\",\"\",'1. Order'!AE305)","v":""},null,{"$f":"IF('1. Order'!AW305=\"\",\"\",'1. Order'!AW305)","v":""},{"$f":"IF('1. Order'!AX305=\"\",\"\",'1. Order'!AX305)","v":""},null,null,null,null,null,null,null,{"$f":"IF('1. Order'!BB305=\"\",\"\",'1. Order'!BB305)","v":""},{"$f":"IF('1. Order'!BC305=\"\",\"\",'1. Order'!BC305)","v":""},{"$f":"IF('1. Order'!BD305=\"\",\"\",'1. Order'!BD305)","v":""},{"$f":"IF('1. Order'!BE305=\"\",\"\",'1. Order'!BE305)","v":""},{"$f":"IF('1. Order'!BG305=\"\",\"\",'1. Order'!BG305)","v":""},{"$f":"IF('1. Order'!BH305=\"\",\"\",'1. Order'!BH305)","v":""},{"$f":"IF('1. Order'!BI305=\"\",\"\",'1. Order'!BI305)","v":""},{"$f":"IF('1. Order'!BJ305=\"\",\"\",'1. Order'!BJ305)","v":""},{"$f":"IF('1. Order'!BK305=\"\",\"\",'1. Order'!BK305)","v":"ZWO"}]
[{"$f":"IF('1. Order'!G306=\"\",\"\",'1. Order'!G306)","v":""},{"$f":"IF('1. Order'!H306=\"\",\"\",'1. Order'!H306)","v":""},{"$f":"IF('1. Order'!I306=\"\",\"\",'1. Order'!I306)","v":""},{"$f":"IF('1. Order'!J306=\"\",\"\",'1. Order'!J306)","v":""},{"$f":"IF('1. Order'!K306=\"\",\"\",'1. Order'!K306)","v":""},{"$f":"IF('1. Order'!L306=\"\",\"\",'1. Order'!L306)","v":""},{"$f":"IF('1. Order'!M306=\"\",\"\",'1. Order'!M306)","v":""},{"$f":"IF('1. Order'!N306=\"\",\"\",'1. Order'!N306)","v":""},{"$f":"IF('1. Order'!P306=\"\",\"\",'1. Order'!P306)","v":""},{"$f":"IF('1. Order'!Q306=\"\",\"\",'1. Order'!Q306)","v":{"$error":"#N/A"}},{"$f":"IF('1. Order'!R306=\"\",\"\",'1. Order'!R306)","v":{"$error":"#N/A"}},{"$f":"IF('1. Order'!S306=\"\",\"\",'1. Order'!S306)","v":""},{"$f":"IF('1. Order'!T306=\"\",\"\",'1. Order'!T306)","v":""},{"$f":"IF('1. Order'!U306=\"\",\"\",'1. Order'!U306)","v":""},{"$f":"IF('1. Order'!X306=\"\",\"\",'1. Order'!X306)","v":""},{"$f":"IF('1. Order'!Y306=\"\",\"\",'1. Order'!Y306)","v":""},{"$f":"IF('1. Order'!Z306=\"\",\"\",'1. Order'!Z306)","v":""},{"$f":"IF('1. Order'!AC306=\"\",\"\",'1. Order'!AC306)","v":""},{"$f":"IF('1. Order'!AD306=\"\",\"\",'1. Order'!AD306)","v":""},{"$f":"IF('1. Order'!AE306=\"\",\"\",'1. Order'!AE306)","v":""},null,{"$f":"IF('1. Order'!AW306=\"\",\"\",'1. Order'!AW306)","v":""},{"$f":"IF('1. Order'!AX306=\"\",\"\",'1. Order'!AX306)","v":""},null,null,null,null,null,null,null,{"$f":"IF('1. Order'!BB306=\"\",\"\",'1. Order'!BB306)","v":""},{"$f":"IF('1. Order'!BC306=\"\",\"\",'1. Order'!BC306)","v":""},{"$f":"IF('1. Order'!BD306=\"\",\"\",'1. Order'!BD306)","v":""},{"$f":"IF('1. Order'!BE306=\"\",\"\",'1. Order'!BE306)","v":""},{"$f":"IF('1. Order'!BG306=\"\",\"\",'1. Order'!BG306)","v":""},{"$f":"IF('1. Order'!BH306=\"\",\"\",'1. Order'!BH306)","v":""},{"$f":"IF('1. Order'!BI306=\"\",\"\",'1. Order'!BI306)","v":""},{"$f":"IF('1. Order'!BJ306=\"\",\"\",'1. Order'!BJ306)","v":""},{"$f":"IF('1. Order'!BK306=\"\",\"\",'1. Order'!BK306)","v":"ZWO"}]
[{"$f":"IF('1. Order'!G307=\"\",\"\",'1. Order'!G307)","v":""},{"$f":"IF('1. Order'!H307=\"\",\"\",'1. Order'!H307)","v":""},{"$f":"IF('1. Order'!I307=\"\",\"\",'1. Order'!I307)","v":""},{"$f":"IF('1. Order'!J307=\"\",\"\",'1. Order'!J307)","v":""},{"$f":"IF('1. Order'!K307=\"\",\"\",'1. Order'!K307)","v":""},{"$f":"IF('1. Order'!L307=\"\",\"\",'1. Order'!L307)","v":""},{"$f":"IF('1. Order'!M307=\"\",\"\",'1. Order'!M307)","v":""},{"$f":"IF('1. Order'!N307=\"\",\"\",'1. Order'!N307)","v":""},{"$f":"IF('1. Order'!P307=\"\",\"\",'1. Order'!P307)","v":""},{"$f":"IF('1. Order'!Q307=\"\",\"\",'1. Order'!Q307)","v":{"$error":"#N/A"}},{"$f":"IF('1. Order'!R307=\"\",\"\",'1. Order'!R307)","v":{"$error":"#N/A"}},{"$f":"IF('1. Order'!S307=\"\",\"\",'1. Order'!S307)","v":""},{"$f":"IF('1. Order'!T307=\"\",\"\",'1. Order'!T307)","v":""},{"$f":"IF('1. Order'!U307=\"\",\"\",'1. Order'!U307)","v":""},{"$f":"IF('1. Order'!X307=\"\",\"\",'1. Order'!X307)","v":""},{"$f":"IF('1. Order'!Y307=\"\",\"\",'1. Order'!Y307)","v":""},{"$f":"IF('1. Order'!Z307=\"\",\"\",'1. Order'!Z307)","v":""},{"$f":"IF('1. Order'!AC307=\"\",\"\",'1. Order'!AC307)","v":""},{"$f":"IF('1. Order'!AD307=\"\",\"\",'1. Order'!AD307)","v":""},{"$f":"IF('1. Order'!AE307=\"\",\"\",'1. Order'!AE307)","v":""},null,{"$f":"IF('1. Order'!AW307=\"\",\"\",'1. Order'!AW307)","v":""},{"$f":"IF('1. Order'!AX307=\"\",\"\",'1. Order'!AX307)","v":""},null,null,null,null,null,null,null,{"$f":"IF('1. Order'!BB307=\"\",\"\",'1. Order'!BB307)","v":""},{"$f":"IF('1. Order'!BC307=\"\",\"\",'1. Order'!BC307)","v":""},{"$f":"IF('1. Order'!BD307=\"\",\"\",'1. Order'!BD307)","v":""},{"$f":"IF('1. Order'!BE307=\"\",\"\",'1. Order'!BE307)","v":""},{"$f":"IF('1. Order'!BG307=\"\",\"\",'1. Order'!BG307)","v":""},{"$f":"IF('1. Order'!BH307=\"\",\"\",'1. Order'!BH307)","v":""},{"$f":"IF('1. Order'!BI307=\"\",\"\",'1. Order'!BI307)","v":""},{"$f":"IF('1. Order'!BJ307=\"\",\"\",'1. Order'!BJ307)","v":""},{"$f":"IF('1. Order'!BK307=\"\",\"\",'1. Order'!BK307)","v":"ZWO"}]
[{"$f":"IF('1. Order'!G308=\"\",\"\",'1. Order'!G308)","v":""},{"$f":"IF('1. Order'!H308=\"\",\"\",'1. Order'!H308)","v":""},{"$f":"IF('1. Order'!I308=\"\",\"\",'1. Order'!I308)","v":""},{"$f":"IF('1. Order'!J308=\"\",\"\",'1. Order'!J308)","v":""},{"$f":"IF('1. Order'!K308=\"\",\"\",'1. Order'!K308)","v":""},{"$f":"IF('1. Order'!L308=\"\",\"\",'1. Order'!L308)","v":""},{"$f":"IF('1. Order'!M308=\"\",\"\",'1. Order'!M308)","v":""},{"$f":"IF('1. Order'!N308=\"\",\"\",'1. Order'!N308)","v":""},{"$f":"IF('1. Order'!P308=\"\",\"\",'1. Order'!P308)","v":""},{"$f":"IF('1. Order'!Q308=\"\",\"\",'1. Order'!Q308)","v":{"$error":"#N/A"}},{"$f":"IF('1. Order'!R308=\"\",\"\",'1. Order'!R308)","v":{"$error":"#N/A"}},{"$f":"IF('1. Order'!S308=\"\",\"\",'1. Order'!S308)","v":""},{"$f":"IF('1. Order'!T308=\"\",\"\",'1. Order'!T308)","v":""},{"$f":"IF('1. Order'!U308=\"\",\"\",'1. Order'!U308)","v":""},{"$f":"IF('1. Order'!X308=\"\",\"\",'1. Order'!X308)","v":""},{"$f":"IF('1. Order'!Y308=\"\",\"\",'1. Order'!Y308)","v":""},{"$f":"IF('1. Order'!Z308=\"\",\"\",'1. Order'!Z308)","v":""},{"$f":"IF('1. Order'!AC308=\"\",\"\",'1. Order'!AC308)","v":""},{"$f":"IF('1. Order'!AD308=\"\",\"\",'1. Order'!AD308)","v":""},{"$f":"IF('1. Order'!AE308=\"\",\"\",'1. Order'!AE308)","v":""},null,{"$f":"IF('1. Order'!AW308=\"\",\"\",'1. Order'!AW308)","v":""},{"$f":"IF('1. Order'!AX308=\"\",\"\",'1. Order'!AX308)","v":""},null,null,null,null,null,null,null,{"$f":"IF('1. Order'!BB308=\"\",\"\",'1. Order'!BB308)","v":""},{"$f":"IF('1. Order'!BC308=\"\",\"\",'1. Order'!BC308)","v":""},{"$f":"IF('1. Order'!BD308=\"\",\"\",'1. Order'!BD308)","v":""},{"$f":"IF('1. Order'!BE308=\"\",\"\",'1. Order'!BE308)","v":""},{"$f":"IF('1. Order'!BG308=\"\",\"\",'1. Order'!BG308)","v":""},{"$f":"IF('1. Order'!BH308=\"\",\"\",'1. Order'!BH308)","v":""},{"$f":"IF('1. Order'!BI308=\"\",\"\",'1. Order'!BI308)","v":""},{"$f":"IF('1. Order'!BJ308=\"\",\"\",'1. Order'!BJ308)","v":""},{"$f":"IF('1. Order'!BK308=\"\",\"\",'1. Order'!BK308)","v":"ZWO"}]
[{"$f":"IF('1. Order'!G309=\"\",\"\",'1. Order'!G309)","v":""},{"$f":"IF('1. Order'!H309=\"\",\"\",'1. Order'!H309)","v":""},{"$f":"IF('1. Order'!I309=\"\",\"\",'1. Order'!I309)","v":""},{"$f":"IF('1. Order'!J309=\"\",\"\",'1. Order'!J309)","v":""},{"$f":"IF('1. Order'!K309=\"\",\"\",'1. Order'!K309)","v":""},{"$f":"IF('1. Order'!L309=\"\",\"\",'1. Order'!L309)","v":""},{"$f":"IF('1. Order'!M309=\"\",\"\",'1. Order'!M309)","v":""},{"$f":"IF('1. Order'!N309=\"\",\"\",'1. Order'!N309)","v":""},{"$f":"IF('1. Order'!P309=\"\",\"\",'1. Order'!P309)","v":""},{"$f":"IF('1. Order'!Q309=\"\",\"\",'1. Order'!Q309)","v":{"$error":"#N/A"}},{"$f":"IF('1. Order'!R309=\"\",\"\",'1. Order'!R309)","v":{"$error":"#N/A"}},{"$f":"IF('1. Order'!S309=\"\",\"\",'1. Order'!S309)","v":""},{"$f":"IF('1. Order'!T309=\"\",\"\",'1. Order'!T309)","v":""},{"$f":"IF('1. Order'!U309=\"\",\"\",'1. Order'!U309)","v":""},{"$f":"IF('1. Order'!X309=\"\",\"\",'1. Order'!X309)","v":""},{"$f":"IF('1. Order'!Y309=\"\",\"\",'1. Order'!Y309)","v":""},{"$f":"IF('1. Order'!Z309=\"\",\"\",'1. Order'!Z309)","v":""},{"$f":"IF('1. Order'!AC309=\"\",\"\",'1. Order'!AC309)","v":""},{"$f":"IF('1. Order'!AD309=\"\",\"\",'1. Order'!AD309)","v":""},{"$f":"IF('1. Order'!AE309=\"\",\"\",'1. Order'!AE309)","v":""},null,{"$f":"IF('1. Order'!AW309=\"\",\"\",'1. Order'!AW309)","v":""},{"$f":"IF('1. Order'!AX309=\"\",\"\",'1. Order'!AX309)","v":""},null,null,null,null,null,null,null,{"$f":"IF('1. Order'!BB309=\"\",\"\",'1. Order'!BB309)","v":""},{"$f":"IF('1. Order'!BC309=\"\",\"\",'1. Order'!BC309)","v":""},{"$f":"IF('1. Order'!BD309=\"\",\"\",'1. Order'!BD309)","v":""},{"$f":"IF('1. Order'!BE309=\"\",\"\",'1. Order'!BE309)","v":""},{"$f":"IF('1. Order'!BG309=\"\",\"\",'1. Order'!BG309)","v":""},{"$f":"IF('1. Order'!BH309=\"\",\"\",'1. Order'!BH309)","v":""},{"$f":"IF('1. Order'!BI309=\"\",\"\",'1. Order'!BI309)","v":""},{"$f":"IF('1. Order'!BJ309=\"\",\"\",'1. Order'!BJ309)","v":""},{"$f":"IF('1. Order'!BK309=\"\",\"\",'1. Order'!BK309)","v":"ZWO"}]
[{"$f":"IF('1. Order'!G310=\"\",\"\",'1. Order'!G310)","v":""},{"$f":"IF('1. Order'!H310=\"\",\"\",'1. Order'!H310)","v":""},{"$f":"IF('1. Order'!I310=\"\",\"\",'1. Order'!I310)","v":""},{"$f":"IF('1. Order'!J310=\"\",\"\",'1. Order'!J310)","v":""},{"$f":"IF('1. Order'!K310=\"\",\"\",'1. Order'!K310)","v":""},{"$f":"IF('1. Order'!L310=\"\",\"\",'1. Order'!L310)","v":""},{"$f":"IF('1. Order'!M310=\"\",\"\",'1. Order'!M310)","v":""},{"$f":"IF('1. Order'!N310=\"\",\"\",'1. Order'!N310)","v":""},{"$f":"IF('1. Order'!P310=\"\",\"\",'1. Order'!P310)","v":""},{"$f":"IF('1. Order'!Q310=\"\",\"\",'1. Order'!Q310)","v":{"$error":"#N/A"}},{"$f":"IF('1. Order'!R310=\"\",\"\",'1. Order'!R310)","v":{"$error":"#N/A"}},{"$f":"IF('1. Order'!S310=\"\",\"\",'1. Order'!S310)","v":""},{"$f":"IF('1. Order'!T310=\"\",\"\",'1. Order'!T310)","v":""},{"$f":"IF('1. Order'!U310=\"\",\"\",'1. Order'!U310)","v":""},{"$f":"IF('1. Order'!X310=\"\",\"\",'1. Order'!X310)","v":""},{"$f":"IF('1. Order'!Y310=\"\",\"\",'1. Order'!Y310)","v":""},{"$f":"IF('1. Order'!Z310=\"\",\"\",'1. Order'!Z310)","v":""},{"$f":"IF('1. Order'!AC310=\"\",\"\",'1. Order'!AC310)","v":""},{"$f":"IF('1. Order'!AD310=\"\",\"\",'1. Order'!AD310)","v":""},{"$f":"IF('1. Order'!AE310=\"\",\"\",'1. Order'!AE310)","v":""},null,{"$f":"IF('1. Order'!AW310=\"\",\"\",'1. Order'!AW310)","v":""},{"$f":"IF('1. Order'!AX310=\"\",\"\",'1. Order'!AX310)","v":""},null,null,null,null,null,null,null,{"$f":"IF('1. Order'!BB310=\"\",\"\",'1. Order'!BB310)","v":""},{"$f":"IF('1. Order'!BC310=\"\",\"\",'1. Order'!BC310)","v":""},{"$f":"IF('1. Order'!BD310=\"\",\"\",'1. Order'!BD310)","v":""},{"$f":"IF('1. Order'!BE310=\"\",\"\",'1. Order'!BE310)","v":""},{"$f":"IF('1. Order'!BG310=\"\",\"\",'1. Order'!BG310)","v":""},{"$f":"IF('1. Order'!BH310=\"\",\"\",'1. Order'!BH310)","v":""},{"$f":"IF('1. Order'!BI310=\"\",\"\",'1. Order'!BI310)","v":""},{"$f":"IF('1. Order'!BJ310=\"\",\"\",'1. Order'!BJ310)","v":""},{"$f":"IF('1. Order'!BK310=\"\",\"\",'1. Order'!BK310)","v":"ZWO"}]
[{"$f":"IF('1. Order'!G311=\"\",\"\",'1. Order'!G311)","v":""},{"$f":"IF('1. Order'!H311=\"\",\"\",'1. Order'!H311)","v":""},{"$f":"IF('1. Order'!I311=\"\",\"\",'1. Order'!I311)","v":""},{"$f":"IF('1. Order'!J311=\"\",\"\",'1. Order'!J311)","v":""},{"$f":"IF('1. Order'!K311=\"\",\"\",'1. Order'!K311)","v":""},{"$f":"IF('1. Order'!L311=\"\",\"\",'1. Order'!L311)","v":""},{"$f":"IF('1. Order'!M311=\"\",\"\",'1. Order'!M311)","v":""},{"$f":"IF('1. Order'!N311=\"\",\"\",'1. Order'!N311)","v":""},{"$f":"IF('1. Order'!P311=\"\",\"\",'1. Order'!P311)","v":""},{"$f":"IF('1. Order'!Q311=\"\",\"\",'1. Order'!Q311)","v":{"$error":"#N/A"}},{"$f":"IF('1. Order'!R311=\"\",\"\",'1. Order'!R311)","v":{"$error":"#N/A"}},{"$f":"IF('1. Order'!S311=\"\",\"\",'1. Order'!S311)","v":""},{"$f":"IF('1. Order'!T311=\"\",\"\",'1. Order'!T311)","v":""},{"$f":"IF('1. Order'!U311=\"\",\"\",'1. Order'!U311)","v":""},{"$f":"IF('1. Order'!X311=\"\",\"\",'1. Order'!X311)","v":""},{"$f":"IF('1. Order'!Y311=\"\",\"\",'1. Order'!Y311)","v":""},{"$f":"IF('1. Order'!Z311=\"\",\"\",'1. Order'!Z311)","v":""},{"$f":"IF('1. Order'!AC311=\"\",\"\",'1. Order'!AC311)","v":""},{"$f":"IF('1. Order'!AD311=\"\",\"\",'1. Order'!AD311)","v":""},{"$f":"IF('1. Order'!AE311=\"\",\"\",'1. Order'!AE311)","v":""},null,{"$f":"IF('1. Order'!AW311=\"\",\"\",'1. Order'!AW311)","v":""},{"$f":"IF('1. Order'!AX311=\"\",\"\",'1. Order'!AX311)","v":""},null,null,null,null,null,null,null,{"$f":"IF('1. Order'!BB311=\"\",\"\",'1. Order'!BB311)","v":""},{"$f":"IF('1. Order'!BC311=\"\",\"\",'1. Order'!BC311)","v":""},{"$f":"IF('1. Order'!BD311=\"\",\"\",'1. Order'!BD311)","v":""},{"$f":"IF('1. Order'!BE311=\"\",\"\",'1. Order'!BE311)","v":""},{"$f":"IF('1. Order'!BG311=\"\",\"\",'1. Order'!BG311)","v":""},{"$f":"IF('1. Order'!BH311=\"\",\"\",'1. Order'!BH311)","v":""},{"$f":"IF('1. Order'!BI311=\"\",\"\",'1. Order'!BI311)","v":""},{"$f":"IF('1. Order'!BJ311=\"\",\"\",'1. Order'!BJ311)","v":""},{"$f":"IF('1. Order'!BK311=\"\",\"\",'1. Order'!BK311)","v":"ZWO"}]
[{"$f":"IF('1. Order'!G312=\"\",\"\",'1. Order'!G312)","v":""},{"$f":"IF('1. Order'!H312=\"\",\"\",'1. Order'!H312)","v":""},{"$f":"IF('1. Order'!I312=\"\",\"\",'1. Order'!I312)","v":""},{"$f":"IF('1. Order'!J312=\"\",\"\",'1. Order'!J312)","v":""},{"$f":"IF('1. Order'!K312=\"\",\"\",'1. Order'!K312)","v":""},{"$f":"IF('1. Order'!L312=\"\",\"\",'1. Order'!L312)","v":""},{"$f":"IF('1. Order'!M312=\"\",\"\",'1. Order'!M312)","v":""},{"$f":"IF('1. Order'!N312=\"\",\"\",'1. Order'!N312)","v":""},{"$f":"IF('1. Order'!P312=\"\",\"\",'1. Order'!P312)","v":""},{"$f":"IF('1. Order'!Q312=\"\",\"\",'1. Order'!Q312)","v":{"$error":"#N/A"}},{"$f":"IF('1. Order'!R312=\"\",\"\",'1. Order'!R312)","v":{"$error":"#N/A"}},{"$f":"IF('1. Order'!S312=\"\",\"\",'1. Order'!S312)","v":""},{"$f":"IF('1. Order'!T312=\"\",\"\",'1. Order'!T312)","v":""},{"$f":"IF('1. Order'!U312=\"\",\"\",'1. Order'!U312)","v":""},{"$f":"IF('1. Order'!X312=\"\",\"\",'1. Order'!X312)","v":""},{"$f":"IF('1. Order'!Y312=\"\",\"\",'1. Order'!Y312)","v":""},{"$f":"IF('1. Order'!Z312=\"\",\"\",'1. Order'!Z312)","v":""},{"$f":"IF('1. Order'!AC312=\"\",\"\",'1. Order'!AC312)","v":""},{"$f":"IF('1. Order'!AD312=\"\",\"\",'1. Order'!AD312)","v":""},{"$f":"IF('1. Order'!AE312=\"\",\"\",'1. Order'!AE312)","v":""},null,{"$f":"IF('1. Order'!AW312=\"\",\"\",'1. Order'!AW312)","v":""},{"$f":"IF('1. Order'!AX312=\"\",\"\",'1. Order'!AX312)","v":""},null,null,null,null,null,null,null,{"$f":"IF('1. Order'!BB312=\"\",\"\",'1. Order'!BB312)","v":""},{"$f":"IF('1. Order'!BC312=\"\",\"\",'1. Order'!BC312)","v":""},{"$f":"IF('1. Order'!BD312=\"\",\"\",'1. Order'!BD312)","v":""},{"$f":"IF('1. Order'!BE312=\"\",\"\",'1. Order'!BE312)","v":""},{"$f":"IF('1. Order'!BG312=\"\",\"\",'1. Order'!BG312)","v":""},{"$f":"IF('1. Order'!BH312=\"\",\"\",'1. Order'!BH312)","v":""},{"$f":"IF('1. Order'!BI312=\"\",\"\",'1. Order'!BI312)","v":""},{"$f":"IF('1. Order'!BJ312=\"\",\"\",'1. Order'!BJ312)","v":""},{"$f":"IF('1. Order'!BK312=\"\",\"\",'1. Order'!BK312)","v":"ZWO"}]
[{"$f":"IF('1. Order'!G313=\"\",\"\",'1. Order'!G313)","v":""},{"$f":"IF('1. Order'!H313=\"\",\"\",'1. Order'!H313)","v":""},{"$f":"IF('1. Order'!I313=\"\",\"\",'1. Order'!I313)","v":""},{"$f":"IF('1. Order'!J313=\"\",\"\",'1. Order'!J313)","v":""},{"$f":"IF('1. Order'!K313=\"\",\"\",'1. Order'!K313)","v":""},{"$f":"IF('1. Order'!L313=\"\",\"\",'1. Order'!L313)","v":""},{"$f":"IF('1. Order'!M313=\"\",\"\",'1. Order'!M313)","v":""},{"$f":"IF('1. Order'!N313=\"\",\"\",'1. Order'!N313)","v":""},{"$f":"IF('1. Order'!P313=\"\",\"\",'1. Order'!P313)","v":""},{"$f":"IF('1. Order'!Q313=\"\",\"\",'1. Order'!Q313)","v":{"$error":"#N/A"}},{"$f":"IF('1. Order'!R313=\"\",\"\",'1. Order'!R313)","v":{"$error":"#N/A"}},{"$f":"IF('1. Order'!S313=\"\",\"\",'1. Order'!S313)","v":""},{"$f":"IF('1. Order'!T313=\"\",\"\",'1. Order'!T313)","v":""},{"$f":"IF('1. Order'!U313=\"\",\"\",'1. Order'!U313)","v":""},{"$f":"IF('1. Order'!X313=\"\",\"\",'1. Order'!X313)","v":""},{"$f":"IF('1. Order'!Y313=\"\",\"\",'1. Order'!Y313)","v":""},{"$f":"IF('1. Order'!Z313=\"\",\"\",'1. Order'!Z313)","v":""},{"$f":"IF('1. Order'!AC313=\"\",\"\",'1. Order'!AC313)","v":""},{"$f":"IF('1. Order'!AD313=\"\",\"\",'1. Order'!AD313)","v":""},{"$f":"IF('1. Order'!AE313=\"\",\"\",'1. Order'!AE313)","v":""},null,{"$f":"IF('1. Order'!AW313=\"\",\"\",'1. Order'!AW313)","v":""},{"$f":"IF('1. Order'!AX313=\"\",\"\",'1. Order'!AX313)","v":""},null,null,null,null,null,null,null,{"$f":"IF('1. Order'!BB313=\"\",\"\",'1. Order'!BB313)","v":""},{"$f":"IF('1. Order'!BC313=\"\",\"\",'1. Order'!BC313)","v":""},{"$f":"IF('1. Order'!BD313=\"\",\"\",'1. Order'!BD313)","v":""},{"$f":"IF('1. Order'!BE313=\"\",\"\",'1. Order'!BE313)","v":""},{"$f":"IF('1. Order'!BG313=\"\",\"\",'1. Order'!BG313)","v":""},{"$f":"IF('1. Order'!BH313=\"\",\"\",'1. Order'!BH313)","v":""},{"$f":"IF('1. Order'!BI313=\"\",\"\",'1. Order'!BI313)","v":""},{"$f":"IF('1. Order'!BJ313=\"\",\"\",'1. Order'!BJ313)","v":""},{"$f":"IF('1. Order'!BK313=\"\",\"\",'1. Order'!BK313)","v":"ZWO"}]
[{"$f":"IF('1. Order'!G314=\"\",\"\",'1. Order'!G314)","v":""},{"$f":"IF('1. Order'!H314=\"\",\"\",'1. Order'!H314)","v":""},{"$f":"IF('1. Order'!I314=\"\",\"\",'1. Order'!I314)","v":""},{"$f":"IF('1. Order'!J314=\"\",\"\",'1. Order'!J314)","v":""},{"$f":"IF('1. Order'!K314=\"\",\"\",'1. Order'!K314)","v":""},{"$f":"IF('1. Order'!L314=\"\",\"\",'1. Order'!L314)","v":""},{"$f":"IF('1. Order'!M314=\"\",\"\",'1. Order'!M314)","v":""},{"$f":"IF('1. Order'!N314=\"\",\"\",'1. Order'!N314)","v":""},{"$f":"IF('1. Order'!P314=\"\",\"\",'1. Order'!P314)","v":""},{"$f":"IF('1. Order'!Q314=\"\",\"\",'1. Order'!Q314)","v":{"$error":"#N/A"}},{"$f":"IF('1. Order'!R314=\"\",\"\",'1. Order'!R314)","v":{"$error":"#N/A"}},{"$f":"IF('1. Order'!S314=\"\",\"\",'1. Order'!S314)","v":""},{"$f":"IF('1. Order'!T314=\"\",\"\",'1. Order'!T314)","v":""},{"$f":"IF('1. Order'!U314=\"\",\"\",'1. Order'!U314)","v":""},{"$f":"IF('1. Order'!X314=\"\",\"\",'1. Order'!X314)","v":""},{"$f":"IF('1. Order'!Y314=\"\",\"\",'1. Order'!Y314)","v":""},{"$f":"IF('1. Order'!Z314=\"\",\"\",'1. Order'!Z314)","v":""},{"$f":"IF('1. Order'!AC314=\"\",\"\",'1. Order'!AC314)","v":""},{"$f":"IF('1. Order'!AD314=\"\",\"\",'1. Order'!AD314)","v":""},{"$f":"IF('1. Order'!AE314=\"\",\"\",'1. Order'!AE314)","v":""},null,{"$f":"IF('1. Order'!AW314=\"\",\"\",'1. Order'!AW314)","v":""},{"$f":"IF('1. Order'!AX314=\"\",\"\",'1. Order'!AX314)","v":""},null,null,null,null,null,null,null,{"$f":"IF('1. Order'!BB314=\"\",\"\",'1. Order'!BB314)","v":""},{"$f":"IF('1. Order'!BC314=\"\",\"\",'1. Order'!BC314)","v":""},{"$f":"IF('1. Order'!BD314=\"\",\"\",'1. Order'!BD314)","v":""},{"$f":"IF('1. Order'!BE314=\"\",\"\",'1. Order'!BE314)","v":""},{"$f":"IF('1. Order'!BG314=\"\",\"\",'1. Order'!BG314)","v":""},{"$f":"IF('1. Order'!BH314=\"\",\"\",'1. Order'!BH314)","v":""},{"$f":"IF('1. Order'!BI314=\"\",\"\",'1. Order'!BI314)","v":""},{"$f":"IF('1. Order'!BJ314=\"\",\"\",'1. Order'!BJ314)","v":""},{"$f":"IF('1. Order'!BK314=\"\",\"\",'1. Order'!BK314)","v":"ZWO"}]
[{"$f":"IF('1. Order'!G315=\"\",\"\",'1. Order'!G315)","v":""},{"$f":"IF('1. Order'!H315=\"\",\"\",'1. Order'!H315)","v":""},{"$f":"IF('1. Order'!I315=\"\",\"\",'1. Order'!I315)","v":""},{"$f":"IF('1. Order'!J315=\"\",\"\",'1. Order'!J315)","v":""},{"$f":"IF('1. Order'!K315=\"\",\"\",'1. Order'!K315)","v":""},{"$f":"IF('1. Order'!L315=\"\",\"\",'1. Order'!L315)","v":""},{"$f":"IF('1. Order'!M315=\"\",\"\",'1. Order'!M315)","v":""},{"$f":"IF('1. Order'!N315=\"\",\"\",'1. Order'!N315)","v":""},{"$f":"IF('1. Order'!P315=\"\",\"\",'1. Order'!P315)","v":""},{"$f":"IF('1. Order'!Q315=\"\",\"\",'1. Order'!Q315)","v":{"$error":"#N/A"}},{"$f":"IF('1. Order'!R315=\"\",\"\",'1. Order'!R315)","v":{"$error":"#N/A"}},{"$f":"IF('1. Order'!S315=\"\",\"\",'1. Order'!S315)","v":""},{"$f":"IF('1. Order'!T315=\"\",\"\",'1. Order'!T315)","v":""},{"$f":"IF('1. Order'!U315=\"\",\"\",'1. Order'!U315)","v":""},{"$f":"IF('1. Order'!X315=\"\",\"\",'1. Order'!X315)","v":""},{"$f":"IF('1. Order'!Y315=\"\",\"\",'1. Order'!Y315)","v":""},{"$f":"IF('1. Order'!Z315=\"\",\"\",'1. Order'!Z315)","v":""},{"$f":"IF('1. Order'!AC315=\"\",\"\",'1. Order'!AC315)","v":""},{"$f":"IF('1. Order'!AD315=\"\",\"\",'1. Order'!AD315)","v":""},{"$f":"IF('1. Order'!AE315=\"\",\"\",'1. Order'!AE315)","v":""},null,{"$f":"IF('1. Order'!AW315=\"\",\"\",'1. Order'!AW315)","v":""},{"$f":"IF('1. Order'!AX315=\"\",\"\",'1. Order'!AX315)","v":""},null,null,null,null,null,null,null,{"$f":"IF('1. Order'!BB315=\"\",\"\",'1. Order'!BB315)","v":""},{"$f":"IF('1. Order'!BC315=\"\",\"\",'1. Order'!BC315)","v":""},{"$f":"IF('1. Order'!BD315=\"\",\"\",'1. Order'!BD315)","v":""},{"$f":"IF('1. Order'!BE315=\"\",\"\",'1. Order'!BE315)","v":""},{"$f":"IF('1. Order'!BG315=\"\",\"\",'1. Order'!BG315)","v":""},{"$f":"IF('1. Order'!BH315=\"\",\"\",'1. Order'!BH315)","v":""},{"$f":"IF('1. Order'!BI315=\"\",\"\",'1. Order'!BI315)","v":""},{"$f":"IF('1. Order'!BJ315=\"\",\"\",'1. Order'!BJ315)","v":""},{"$f":"IF('1. Order'!BK315=\"\",\"\",'1. Order'!BK315)","v":"ZWO"}]
[{"$f":"IF('1. Order'!G316=\"\",\"\",'1. Order'!G316)","v":""},{"$f":"IF('1. Order'!H316=\"\",\"\",'1. Order'!H316)","v":""},{"$f":"IF('1. Order'!I316=\"\",\"\",'1. Order'!I316)","v":""},{"$f":"IF('1. Order'!J316=\"\",\"\",'1. Order'!J316)","v":""},{"$f":"IF('1. Order'!K316=\"\",\"\",'1. Order'!K316)","v":""},{"$f":"IF('1. Order'!L316=\"\",\"\",'1. Order'!L316)","v":""},{"$f":"IF('1. Order'!M316=\"\",\"\",'1. Order'!M316)","v":""},{"$f":"IF('1. Order'!N316=\"\",\"\",'1. Order'!N316)","v":""},{"$f":"IF('1. Order'!P316=\"\",\"\",'1. Order'!P316)","v":""},{"$f":"IF('1. Order'!Q316=\"\",\"\",'1. Order'!Q316)","v":{"$error":"#N/A"}},{"$f":"IF('1. Order'!R316=\"\",\"\",'1. Order'!R316)","v":{"$error":"#N/A"}},{"$f":"IF('1. Order'!S316=\"\",\"\",'1. Order'!S316)","v":""},{"$f":"IF('1. Order'!T316=\"\",\"\",'1. Order'!T316)","v":""},{"$f":"IF('1. Order'!U316=\"\",\"\",'1. Order'!U316)","v":""},{"$f":"IF('1. Order'!X316=\"\",\"\",'1. Order'!X316)","v":""},{"$f":"IF('1. Order'!Y316=\"\",\"\",'1. Order'!Y316)","v":""},{"$f":"IF('1. Order'!Z316=\"\",\"\",'1. Order'!Z316)","v":""},{"$f":"IF('1. Order'!AC316=\"\",\"\",'1. Order'!AC316)","v":""},{"$f":"IF('1. Order'!AD316=\"\",\"\",'1. Order'!AD316)","v":""},{"$f":"IF('1. Order'!AE316=\"\",\"\",'1. Order'!AE316)","v":""},null,{"$f":"IF('1. Order'!AW316=\"\",\"\",'1. Order'!AW316)","v":""},{"$f":"IF('1. Order'!AX316=\"\",\"\",'1. Order'!AX316)","v":""},null,null,null,null,null,null,null,{"$f":"IF('1. Order'!BB316=\"\",\"\",'1. Order'!BB316)","v":""},{"$f":"IF('1. Order'!BC316=\"\",\"\",'1. Order'!BC316)","v":""},{"$f":"IF('1. Order'!BD316=\"\",\"\",'1. Order'!BD316)","v":""},{"$f":"IF('1. Order'!BE316=\"\",\"\",'1. Order'!BE316)","v":""},{"$f":"IF('1. Order'!BG316=\"\",\"\",'1. Order'!BG316)","v":""},{"$f":"IF('1. Order'!BH316=\"\",\"\",'1. Order'!BH316)","v":""},{"$f":"IF('1. Order'!BI316=\"\",\"\",'1. Order'!BI316)","v":""},{"$f":"IF('1. Order'!BJ316=\"\",\"\",'1. Order'!BJ316)","v":""},{"$f":"IF('1. Order'!BK316=\"\",\"\",'1. Order'!BK316)","v":"ZWO"}]
[{"$f":"IF('1. Order'!G317=\"\",\"\",'1. Order'!G317)","v":""},{"$f":"IF('1. Order'!H317=\"\",\"\",'1. Order'!H317)","v":""},{"$f":"IF('1. Order'!I317=\"\",\"\",'1. Order'!I317)","v":""},{"$f":"IF('1. Order'!J317=\"\",\"\",'1. Order'!J317)","v":""},{"$f":"IF('1. Order'!K317=\"\",\"\",'1. Order'!K317)","v":""},{"$f":"IF('1. Order'!L317=\"\",\"\",'1. Order'!L317)","v":""},{"$f":"IF('1. Order'!M317=\"\",\"\",'1. Order'!M317)","v":""},{"$f":"IF('1. Order'!N317=\"\",\"\",'1. Order'!N317)","v":""},{"$f":"IF('1. Order'!P317=\"\",\"\",'1. Order'!P317)","v":""},{"$f":"IF('1. Order'!Q317=\"\",\"\",'1. Order'!Q317)","v":{"$error":"#N/A"}},{"$f":"IF('1. Order'!R317=\"\",\"\",'1. Order'!R317)","v":{"$error":"#N/A"}},{"$f":"IF('1. Order'!S317=\"\",\"\",'1. Order'!S317)","v":""},{"$f":"IF('1. Order'!T317=\"\",\"\",'1. Order'!T317)","v":""},{"$f":"IF('1. Order'!U317=\"\",\"\",'1. Order'!U317)","v":""},{"$f":"IF('1. Order'!X317=\"\",\"\",'1. Order'!X317)","v":""},{"$f":"IF('1. Order'!Y317=\"\",\"\",'1. Order'!Y317)","v":""},{"$f":"IF('1. Order'!Z317=\"\",\"\",'1. Order'!Z317)","v":""},{"$f":"IF('1. Order'!AC317=\"\",\"\",'1. Order'!AC317)","v":""},{"$f":"IF('1. Order'!AD317=\"\",\"\",'1. Order'!AD317)","v":""},{"$f":"IF('1. Order'!AE317=\"\",\"\",'1. Order'!AE317)","v":""},null,{"$f":"IF('1. Order'!AW317=\"\",\"\",'1. Order'!AW317)","v":""},{"$f":"IF('1. Order'!AX317=\"\",\"\",'1. Order'!AX317)","v":""},null,null,null,null,null,null,null,{"$f":"IF('1. Order'!BB317=\"\",\"\",'1. Order'!BB317)","v":""},{"$f":"IF('1. Order'!BC317=\"\",\"\",'1. Order'!BC317)","v":""},{"$f":"IF('1. Order'!BD317=\"\",\"\",'1. Order'!BD317)","v":""},{"$f":"IF('1. Order'!BE317=\"\",\"\",'1. Order'!BE317)","v":""},{"$f":"IF('1. Order'!BG317=\"\",\"\",'1. Order'!BG317)","v":""},{"$f":"IF('1. Order'!BH317=\"\",\"\",'1. Order'!BH317)","v":""},{"$f":"IF('1. Order'!BI317=\"\",\"\",'1. Order'!BI317)","v":""},{"$f":"IF('1. Order'!BJ317=\"\",\"\",'1. Order'!BJ317)","v":""},{"$f":"IF('1. Order'!BK317=\"\",\"\",'1. Order'!BK317)","v":"ZWO"}]
[{"$f":"IF('1. Order'!G318=\"\",\"\",'1. Order'!G318)","v":""},{"$f":"IF('1. Order'!H318=\"\",\"\",'1. Order'!H318)","v":""},{"$f":"IF('1. Order'!I318=\"\",\"\",'1. Order'!I318)","v":""},{"$f":"IF('1. Order'!J318=\"\",\"\",'1. Order'!J318)","v":""},{"$f":"IF('1. Order'!K318=\"\",\"\",'1. Order'!K318)","v":""},{"$f":"IF('1. Order'!L318=\"\",\"\",'1. Order'!L318)","v":""},{"$f":"IF('1. Order'!M318=\"\",\"\",'1. Order'!M318)","v":""},{"$f":"IF('1. Order'!N318=\"\",\"\",'1. Order'!N318)","v":""},{"$f":"IF('1. Order'!P318=\"\",\"\",'1. Order'!P318)","v":""},{"$f":"IF('1. Order'!Q318=\"\",\"\",'1. Order'!Q318)","v":{"$error":"#N/A"}},{"$f":"IF('1. Order'!R318=\"\",\"\",'1. Order'!R318)","v":{"$error":"#N/A"}},{"$f":"IF('1. Order'!S318=\"\",\"\",'1. Order'!S318)","v":""},{"$f":"IF('1. Order'!T318=\"\",\"\",'1. Order'!T318)","v":""},{"$f":"IF('1. Order'!U318=\"\",\"\",'1. Order'!U318)","v":""},{"$f":"IF('1. Order'!X318=\"\",\"\",'1. Order'!X318)","v":""},{"$f":"IF('1. Order'!Y318=\"\",\"\",'1. Order'!Y318)","v":""},{"$f":"IF('1. Order'!Z318=\"\",\"\",'1. Order'!Z318)","v":""},{"$f":"IF('1. Order'!AC318=\"\",\"\",'1. Order'!AC318)","v":""},{"$f":"IF('1. Order'!AD318=\"\",\"\",'1. Order'!AD318)","v":""},{"$f":"IF('1. Order'!AE318=\"\",\"\",'1. Order'!AE318)","v":""},null,{"$f":"IF('1. Order'!AW318=\"\",\"\",'1. Order'!AW318)","v":""},{"$f":"IF('1. Order'!AX318=\"\",\"\",'1. Order'!AX318)","v":""},null,null,null,null,null,null,null,{"$f":"IF('1. Order'!BB318=\"\",\"\",'1. Order'!BB318)","v":""},{"$f":"IF('1. Order'!BC318=\"\",\"\",'1. Order'!BC318)","v":""},{"$f":"IF('1. Order'!BD318=\"\",\"\",'1. Order'!BD318)","v":""},{"$f":"IF('1. Order'!BE318=\"\",\"\",'1. Order'!BE318)","v":""},{"$f":"IF('1. Order'!BG318=\"\",\"\",'1. Order'!BG318)","v":""},{"$f":"IF('1. Order'!BH318=\"\",\"\",'1. Order'!BH318)","v":""},{"$f":"IF('1. Order'!BI318=\"\",\"\",'1. Order'!BI318)","v":""},{"$f":"IF('1. Order'!BJ318=\"\",\"\",'1. Order'!BJ318)","v":""},{"$f":"IF('1. Order'!BK318=\"\",\"\",'1. Order'!BK318)","v":"ZWO"}]
[{"$f":"IF('1. Order'!G319=\"\",\"\",'1. Order'!G319)","v":""},{"$f":"IF('1. Order'!H319=\"\",\"\",'1. Order'!H319)","v":""},{"$f":"IF('1. Order'!I319=\"\",\"\",'1. Order'!I319)","v":""},{"$f":"IF('1. Order'!J319=\"\",\"\",'1. Order'!J319)","v":""},{"$f":"IF('1. Order'!K319=\"\",\"\",'1. Order'!K319)","v":""},{"$f":"IF('1. Order'!L319=\"\",\"\",'1. Order'!L319)","v":""},{"$f":"IF('1. Order'!M319=\"\",\"\",'1. Order'!M319)","v":""},{"$f":"IF('1. Order'!N319=\"\",\"\",'1. Order'!N319)","v":""},{"$f":"IF('1. Order'!P319=\"\",\"\",'1. Order'!P319)","v":""},{"$f":"IF('1. Order'!Q319=\"\",\"\",'1. Order'!Q319)","v":{"$error":"#N/A"}},{"$f":"IF('1. Order'!R319=\"\",\"\",'1. Order'!R319)","v":{"$error":"#N/A"}},{"$f":"IF('1. Order'!S319=\"\",\"\",'1. Order'!S319)","v":""},{"$f":"IF('1. Order'!T319=\"\",\"\",'1. Order'!T319)","v":""},{"$f":"IF('1. Order'!U319=\"\",\"\",'1. Order'!U319)","v":""},{"$f":"IF('1. Order'!X319=\"\",\"\",'1. Order'!X319)","v":""},{"$f":"IF('1. Order'!Y319=\"\",\"\",'1. Order'!Y319)","v":""},{"$f":"IF('1. Order'!Z319=\"\",\"\",'1. Order'!Z319)","v":""},{"$f":"IF('1. Order'!AC319=\"\",\"\",'1. Order'!AC319)","v":""},{"$f":"IF('1. Order'!AD319=\"\",\"\",'1. Order'!AD319)","v":""},{"$f":"IF('1. Order'!AE319=\"\",\"\",'1. Order'!AE319)","v":""},null,{"$f":"IF('1. Order'!AW319=\"\",\"\",'1. Order'!AW319)","v":""},{"$f":"IF('1. Order'!AX319=\"\",\"\",'1. Order'!AX319)","v":""},null,null,null,null,null,null,null,{"$f":"IF('1. Order'!BB319=\"\",\"\",'1. Order'!BB319)","v":""},{"$f":"IF('1. Order'!BC319=\"\",\"\",'1. Order'!BC319)","v":""},{"$f":"IF('1. Order'!BD319=\"\",\"\",'1. Order'!BD319)","v":""},{"$f":"IF('1. Order'!BE319=\"\",\"\",'1. Order'!BE319)","v":""},{"$f":"IF('1. Order'!BG319=\"\",\"\",'1. Order'!BG319)","v":""},{"$f":"IF('1. Order'!BH319=\"\",\"\",'1. Order'!BH319)","v":""},{"$f":"IF('1. Order'!BI319=\"\",\"\",'1. Order'!BI319)","v":""},{"$f":"IF('1. Order'!BJ319=\"\",\"\",'1. Order'!BJ319)","v":""},{"$f":"IF('1. Order'!BK319=\"\",\"\",'1. Order'!BK319)","v":"ZWO"}]
[{"$f":"IF('1. Order'!G320=\"\",\"\",'1. Order'!G320)","v":""},{"$f":"IF('1. Order'!H320=\"\",\"\",'1. Order'!H320)","v":""},{"$f":"IF('1. Order'!I320=\"\",\"\",'1. Order'!I320)","v":""},{"$f":"IF('1. Order'!J320=\"\",\"\",'1. Order'!J320)","v":""},{"$f":"IF('1. Order'!K320=\"\",\"\",'1. Order'!K320)","v":""},{"$f":"IF('1. Order'!L320=\"\",\"\",'1. Order'!L320)","v":""},{"$f":"IF('1. Order'!M320=\"\",\"\",'1. Order'!M320)","v":""},{"$f":"IF('1. Order'!N320=\"\",\"\",'1. Order'!N320)","v":""},{"$f":"IF('1. Order'!P320=\"\",\"\",'1. Order'!P320)","v":""},{"$f":"IF('1. Order'!Q320=\"\",\"\",'1. Order'!Q320)","v":{"$error":"#N/A"}},{"$f":"IF('1. Order'!R320=\"\",\"\",'1. Order'!R320)","v":{"$error":"#N/A"}},{"$f":"IF('1. Order'!S320=\"\",\"\",'1. Order'!S320)","v":""},{"$f":"IF('1. Order'!T320=\"\",\"\",'1. Order'!T320)","v":""},{"$f":"IF('1. Order'!U320=\"\",\"\",'1. Order'!U320)","v":""},{"$f":"IF('1. Order'!X320=\"\",\"\",'1. Order'!X320)","v":""},{"$f":"IF('1. Order'!Y320=\"\",\"\",'1. Order'!Y320)","v":""},{"$f":"IF('1. Order'!Z320=\"\",\"\",'1. Order'!Z320)","v":""},{"$f":"IF('1. Order'!AC320=\"\",\"\",'1. Order'!AC320)","v":""},{"$f":"IF('1. Order'!AD320=\"\",\"\",'1. Order'!AD320)","v":""},{"$f":"IF('1. Order'!AE320=\"\",\"\",'1. Order'!AE320)","v":""},null,{"$f":"IF('1. Order'!AW320=\"\",\"\",'1. Order'!AW320)","v":""},{"$f":"IF('1. Order'!AX320=\"\",\"\",'1. Order'!AX320)","v":""},null,null,null,null,null,null,null,{"$f":"IF('1. Order'!BB320=\"\",\"\",'1. Order'!BB320)","v":""},{"$f":"IF('1. Order'!BC320=\"\",\"\",'1. Order'!BC320)","v":""},{"$f":"IF('1. Order'!BD320=\"\",\"\",'1. Order'!BD320)","v":""},{"$f":"IF('1. Order'!BE320=\"\",\"\",'1. Order'!BE320)","v":""},{"$f":"IF('1. Order'!BG320=\"\",\"\",'1. Order'!BG320)","v":""},{"$f":"IF('1. Order'!BH320=\"\",\"\",'1. Order'!BH320)","v":""},{"$f":"IF('1. Order'!BI320=\"\",\"\",'1. Order'!BI320)","v":""},{"$f":"IF('1. Order'!BJ320=\"\",\"\",'1. Order'!BJ320)","v":""},{"$f":"IF('1. Order'!BK320=\"\",\"\",'1. Order'!BK320)","v":"ZWO"}]
[{"$f":"IF('1. Order'!G321=\"\",\"\",'1. Order'!G321)","v":""},{"$f":"IF('1. Order'!H321=\"\",\"\",'1. Order'!H321)","v":""},{"$f":"IF('1. Order'!I321=\"\",\"\",'1. Order'!I321)","v":""},{"$f":"IF('1. Order'!J321=\"\",\"\",'1. Order'!J321)","v":""},{"$f":"IF('1. Order'!K321=\"\",\"\",'1. Order'!K321)","v":""},{"$f":"IF('1. Order'!L321=\"\",\"\",'1. Order'!L321)","v":""},{"$f":"IF('1. Order'!M321=\"\",\"\",'1. Order'!M321)","v":""},{"$f":"IF('1. Order'!N321=\"\",\"\",'1. Order'!N321)","v":""},{"$f":"IF('1. Order'!P321=\"\",\"\",'1. Order'!P321)","v":""},{"$f":"IF('1. Order'!Q321=\"\",\"\",'1. Order'!Q321)","v":{"$error":"#N/A"}},{"$f":"IF('1. Order'!R321=\"\",\"\",'1. Order'!R321)","v":{"$error":"#N/A"}},{"$f":"IF('1. Order'!S321=\"\",\"\",'1. Order'!S321)","v":""},{"$f":"IF('1. Order'!T321=\"\",\"\",'1. Order'!T321)","v":""},{"$f":"IF('1. Order'!U321=\"\",\"\",'1. Order'!U321)","v":""},{"$f":"IF('1. Order'!X321=\"\",\"\",'1. Order'!X321)","v":""},{"$f":"IF('1. Order'!Y321=\"\",\"\",'1. Order'!Y321)","v":""},{"$f":"IF('1. Order'!Z321=\"\",\"\",'1. Order'!Z321)","v":""},{"$f":"IF('1. Order'!AC321=\"\",\"\",'1. Order'!AC321)","v":""},{"$f":"IF('1. Order'!AD321=\"\",\"\",'1. Order'!AD321)","v":""},{"$f":"IF('1. Order'!AE321=\"\",\"\",'1. Order'!AE321)","v":""},null,{"$f":"IF('1. Order'!AW321=\"\",\"\",'1. Order'!AW321)","v":""},{"$f":"IF('1. Order'!AX321=\"\",\"\",'1. Order'!AX321)","v":""},null,null,null,null,null,null,null,{"$f":"IF('1. Order'!BB321=\"\",\"\",'1. Order'!BB321)","v":""},{"$f":"IF('1. Order'!BC321=\"\",\"\",'1. Order'!BC321)","v":""},{"$f":"IF('1. Order'!BD321=\"\",\"\",'1. Order'!BD321)","v":""},{"$f":"IF('1. Order'!BE321=\"\",\"\",'1. Order'!BE321)","v":""},{"$f":"IF('1. Order'!BG321=\"\",\"\",'1. Order'!BG321)","v":""},{"$f":"IF('1. Order'!BH321=\"\",\"\",'1. Order'!BH321)","v":""},{"$f":"IF('1. Order'!BI321=\"\",\"\",'1. Order'!BI321)","v":""},{"$f":"IF('1. Order'!BJ321=\"\",\"\",'1. Order'!BJ321)","v":""},{"$f":"IF('1. Order'!BK321=\"\",\"\",'1. Order'!BK321)","v":"ZWO"}]
[{"$f":"IF('1. Order'!G322=\"\",\"\",'1. Order'!G322)","v":""},{"$f":"IF('1. Order'!H322=\"\",\"\",'1. Order'!H322)","v":""},{"$f":"IF('1. Order'!I322=\"\",\"\",'1. Order'!I322)","v":""},{"$f":"IF('1. Order'!J322=\"\",\"\",'1. Order'!J322)","v":""},{"$f":"IF('1. Order'!K322=\"\",\"\",'1. Order'!K322)","v":""},{"$f":"IF('1. Order'!L322=\"\",\"\",'1. Order'!L322)","v":""},{"$f":"IF('1. Order'!M322=\"\",\"\",'1. Order'!M322)","v":""},{"$f":"IF('1. Order'!N322=\"\",\"\",'1. Order'!N322)","v":""},{"$f":"IF('1. Order'!P322=\"\",\"\",'1. Order'!P322)","v":""},{"$f":"IF('1. Order'!Q322=\"\",\"\",'1. Order'!Q322)","v":{"$error":"#N/A"}},{"$f":"IF('1. Order'!R322=\"\",\"\",'1. Order'!R322)","v":{"$error":"#N/A"}},{"$f":"IF('1. Order'!S322=\"\",\"\",'1. Order'!S322)","v":""},{"$f":"IF('1. Order'!T322=\"\",\"\",'1. Order'!T322)","v":""},{"$f":"IF('1. Order'!U322=\"\",\"\",'1. Order'!U322)","v":""},{"$f":"IF('1. Order'!X322=\"\",\"\",'1. Order'!X322)","v":""},{"$f":"IF('1. Order'!Y322=\"\",\"\",'1. Order'!Y322)","v":""},{"$f":"IF('1. Order'!Z322=\"\",\"\",'1. Order'!Z322)","v":""},{"$f":"IF('1. Order'!AC322=\"\",\"\",'1. Order'!AC322)","v":""},{"$f":"IF('1. Order'!AD322=\"\",\"\",'1. Order'!AD322)","v":""},{"$f":"IF('1. Order'!AE322=\"\",\"\",'1. Order'!AE322)","v":""},null,{"$f":"IF('1. Order'!AW322=\"\",\"\",'1. Order'!AW322)","v":""},{"$f":"IF('1. Order'!AX322=\"\",\"\",'1. Order'!AX322)","v":""},null,null,null,null,null,null,null,{"$f":"IF('1. Order'!BB322=\"\",\"\",'1. Order'!BB322)","v":""},{"$f":"IF('1. Order'!BC322=\"\",\"\",'1. Order'!BC322)","v":""},{"$f":"IF('1. Order'!BD322=\"\",\"\",'1. Order'!BD322)","v":""},{"$f":"IF('1. Order'!BE322=\"\",\"\",'1. Order'!BE322)","v":""},{"$f":"IF('1. Order'!BG322=\"\",\"\",'1. Order'!BG322)","v":""},{"$f":"IF('1. Order'!BH322=\"\",\"\",'1. Order'!BH322)","v":""},{"$f":"IF('1. Order'!BI322=\"\",\"\",'1. Order'!BI322)","v":""},{"$f":"IF('1. Order'!BJ322=\"\",\"\",'1. Order'!BJ322)","v":""},{"$f":"IF('1. Order'!BK322=\"\",\"\",'1. Order'!BK322)","v":"ZWO"}]
[{"$f":"IF('1. Order'!G323=\"\",\"\",'1. Order'!G323)","v":""},{"$f":"IF('1. Order'!H323=\"\",\"\",'1. Order'!H323)","v":""},{"$f":"IF('1. Order'!I323=\"\",\"\",'1. Order'!I323)","v":""},{"$f":"IF('1. Order'!J323=\"\",\"\",'1. Order'!J323)","v":""},{"$f":"IF('1. Order'!K323=\"\",\"\",'1. Order'!K323)","v":""},{"$f":"IF('1. Order'!L323=\"\",\"\",'1. Order'!L323)","v":""},{"$f":"IF('1. Order'!M323=\"\",\"\",'1. Order'!M323)","v":""},{"$f":"IF('1. Order'!N323=\"\",\"\",'1. Order'!N323)","v":""},{"$f":"IF('1. Order'!P323=\"\",\"\",'1. Order'!P323)","v":""},{"$f":"IF('1. Order'!Q323=\"\",\"\",'1. Order'!Q323)","v":{"$error":"#N/A"}},{"$f":"IF('1. Order'!R323=\"\",\"\",'1. Order'!R323)","v":{"$error":"#N/A"}},{"$f":"IF('1. Order'!S323=\"\",\"\",'1. Order'!S323)","v":""},{"$f":"IF('1. Order'!T323=\"\",\"\",'1. Order'!T323)","v":""},{"$f":"IF('1. Order'!U323=\"\",\"\",'1. Order'!U323)","v":""},{"$f":"IF('1. Order'!X323=\"\",\"\",'1. Order'!X323)","v":""},{"$f":"IF('1. Order'!Y323=\"\",\"\",'1. Order'!Y323)","v":""},{"$f":"IF('1. Order'!Z323=\"\",\"\",'1. Order'!Z323)","v":""},{"$f":"IF('1. Order'!AC323=\"\",\"\",'1. Order'!AC323)","v":""},{"$f":"IF('1. Order'!AD323=\"\",\"\",'1. Order'!AD323)","v":""},{"$f":"IF('1. Order'!AE323=\"\",\"\",'1. Order'!AE323)","v":""},null,{"$f":"IF('1. Order'!AW323=\"\",\"\",'1. Order'!AW323)","v":""},{"$f":"IF('1. Order'!AX323=\"\",\"\",'1. Order'!AX323)","v":""},null,null,null,null,null,null,null,{"$f":"IF('1. Order'!BB323=\"\",\"\",'1. Order'!BB323)","v":""},{"$f":"IF('1. Order'!BC323=\"\",\"\",'1. Order'!BC323)","v":""},{"$f":"IF('1. Order'!BD323=\"\",\"\",'1. Order'!BD323)","v":""},{"$f":"IF('1. Order'!BE323=\"\",\"\",'1. Order'!BE323)","v":""},{"$f":"IF('1. Order'!BG323=\"\",\"\",'1. Order'!BG323)","v":""},{"$f":"IF('1. Order'!BH323=\"\",\"\",'1. Order'!BH323)","v":""},{"$f":"IF('1. Order'!BI323=\"\",\"\",'1. Order'!BI323)","v":""},{"$f":"IF('1. Order'!BJ323=\"\",\"\",'1. Order'!BJ323)","v":""},{"$f":"IF('1. Order'!BK323=\"\",\"\",'1. Order'!BK323)","v":"ZWO"}]
[{"$f":"IF('1. Order'!G324=\"\",\"\",'1. Order'!G324)","v":""},{"$f":"IF('1. Order'!H324=\"\",\"\",'1. Order'!H324)","v":""},{"$f":"IF('1. Order'!I324=\"\",\"\",'1. Order'!I324)","v":""},{"$f":"IF('1. Order'!J324=\"\",\"\",'1. Order'!J324)","v":""},{"$f":"IF('1. Order'!K324=\"\",\"\",'1. Order'!K324)","v":""},{"$f":"IF('1. Order'!L324=\"\",\"\",'1. Order'!L324)","v":""},{"$f":"IF('1. Order'!M324=\"\",\"\",'1. Order'!M324)","v":""},{"$f":"IF('1. Order'!N324=\"\",\"\",'1. Order'!N324)","v":""},{"$f":"IF('1. Order'!P324=\"\",\"\",'1. Order'!P324)","v":""},{"$f":"IF('1. Order'!Q324=\"\",\"\",'1. Order'!Q324)","v":{"$error":"#N/A"}},{"$f":"IF('1. Order'!R324=\"\",\"\",'1. Order'!R324)","v":{"$error":"#N/A"}},{"$f":"IF('1. Order'!S324=\"\",\"\",'1. Order'!S324)","v":""},{"$f":"IF('1. Order'!T324=\"\",\"\",'1. Order'!T324)","v":""},{"$f":"IF('1. Order'!U324=\"\",\"\",'1. Order'!U324)","v":""},{"$f":"IF('1. Order'!X324=\"\",\"\",'1. Order'!X324)","v":""},{"$f":"IF('1. Order'!Y324=\"\",\"\",'1. Order'!Y324)","v":""},{"$f":"IF('1. Order'!Z324=\"\",\"\",'1. Order'!Z324)","v":""},{"$f":"IF('1. Order'!AC324=\"\",\"\",'1. Order'!AC324)","v":""},{"$f":"IF('1. Order'!AD324=\"\",\"\",'1. Order'!AD324)","v":""},{"$f":"IF('1. Order'!AE324=\"\",\"\",'1. Order'!AE324)","v":""},null,{"$f":"IF('1. Order'!AW324=\"\",\"\",'1. Order'!AW324)","v":""},{"$f":"IF('1. Order'!AX324=\"\",\"\",'1. Order'!AX324)","v":""},null,null,null,null,null,null,null,{"$f":"IF('1. Order'!BB324=\"\",\"\",'1. Order'!BB324)","v":""},{"$f":"IF('1. Order'!BC324=\"\",\"\",'1. Order'!BC324)","v":""},{"$f":"IF('1. Order'!BD324=\"\",\"\",'1. Order'!BD324)","v":""},{"$f":"IF('1. Order'!BE324=\"\",\"\",'1. Order'!BE324)","v":""},{"$f":"IF('1. Order'!BG324=\"\",\"\",'1. Order'!BG324)","v":""},{"$f":"IF('1. Order'!BH324=\"\",\"\",'1. Order'!BH324)","v":""},{"$f":"IF('1. Order'!BI324=\"\",\"\",'1. Order'!BI324)","v":""},{"$f":"IF('1. Order'!BJ324=\"\",\"\",'1. Order'!BJ324)","v":""},{"$f":"IF('1. Order'!BK324=\"\",\"\",'1. Order'!BK324)","v":"ZWO"}]
[{"$f":"IF('1. Order'!G325=\"\",\"\",'1. Order'!G325)","v":""},{"$f":"IF('1. Order'!H325=\"\",\"\",'1. Order'!H325)","v":""},{"$f":"IF('1. Order'!I325=\"\",\"\",'1. Order'!I325)","v":""},{"$f":"IF('1. Order'!J325=\"\",\"\",'1. Order'!J325)","v":""},{"$f":"IF('1. Order'!K325=\"\",\"\",'1. Order'!K325)","v":""},{"$f":"IF('1. Order'!L325=\"\",\"\",'1. Order'!L325)","v":""},{"$f":"IF('1. Order'!M325=\"\",\"\",'1. Order'!M325)","v":""},{"$f":"IF('1. Order'!N325=\"\",\"\",'1. Order'!N325)","v":""},{"$f":"IF('1. Order'!P325=\"\",\"\",'1. Order'!P325)","v":""},{"$f":"IF('1. Order'!Q325=\"\",\"\",'1. Order'!Q325)","v":{"$error":"#N/A"}},{"$f":"IF('1. Order'!R325=\"\",\"\",'1. Order'!R325)","v":{"$error":"#N/A"}},{"$f":"IF('1. Order'!S325=\"\",\"\",'1. Order'!S325)","v":""},{"$f":"IF('1. Order'!T325=\"\",\"\",'1. Order'!T325)","v":""},{"$f":"IF('1. Order'!U325=\"\",\"\",'1. Order'!U325)","v":""},{"$f":"IF('1. Order'!X325=\"\",\"\",'1. Order'!X325)","v":""},{"$f":"IF('1. Order'!Y325=\"\",\"\",'1. Order'!Y325)","v":""},{"$f":"IF('1. Order'!Z325=\"\",\"\",'1. Order'!Z325)","v":""},{"$f":"IF('1. Order'!AC325=\"\",\"\",'1. Order'!AC325)","v":""},{"$f":"IF('1. Order'!AD325=\"\",\"\",'1. Order'!AD325)","v":""},{"$f":"IF('1. Order'!AE325=\"\",\"\",'1. Order'!AE325)","v":""},null,{"$f":"IF('1. Order'!AW325=\"\",\"\",'1. Order'!AW325)","v":""},{"$f":"IF('1. Order'!AX325=\"\",\"\",'1. Order'!AX325)","v":""},null,null,null,null,null,null,null,{"$f":"IF('1. Order'!BB325=\"\",\"\",'1. Order'!BB325)","v":""},{"$f":"IF('1. Order'!BC325=\"\",\"\",'1. Order'!BC325)","v":""},{"$f":"IF('1. Order'!BD325=\"\",\"\",'1. Order'!BD325)","v":""},{"$f":"IF('1. Order'!BE325=\"\",\"\",'1. Order'!BE325)","v":""},{"$f":"IF('1. Order'!BG325=\"\",\"\",'1. Order'!BG325)","v":""},{"$f":"IF('1. Order'!BH325=\"\",\"\",'1. Order'!BH325)","v":""},{"$f":"IF('1. Order'!BI325=\"\",\"\",'1. Order'!BI325)","v":""},{"$f":"IF('1. Order'!BJ325=\"\",\"\",'1. Order'!BJ325)","v":""},{"$f":"IF('1. Order'!BK325=\"\",\"\",'1. Order'!BK325)","v":"ZWO"}]
[{"$f":"IF('1. Order'!G326=\"\",\"\",'1. Order'!G326)","v":""},{"$f":"IF('1. Order'!H326=\"\",\"\",'1. Order'!H326)","v":""},{"$f":"IF('1. Order'!I326=\"\",\"\",'1. Order'!I326)","v":""},{"$f":"IF('1. Order'!J326=\"\",\"\",'1. Order'!J326)","v":""},{"$f":"IF('1. Order'!K326=\"\",\"\",'1. Order'!K326)","v":""},{"$f":"IF('1. Order'!L326=\"\",\"\",'1. Order'!L326)","v":""},{"$f":"IF('1. Order'!M326=\"\",\"\",'1. Order'!M326)","v":""},{"$f":"IF('1. Order'!N326=\"\",\"\",'1. Order'!N326)","v":""},{"$f":"IF('1. Order'!P326=\"\",\"\",'1. Order'!P326)","v":""},{"$f":"IF('1. Order'!Q326=\"\",\"\",'1. Order'!Q326)","v":{"$error":"#N/A"}},{"$f":"IF('1. Order'!R326=\"\",\"\",'1. Order'!R326)","v":{"$error":"#N/A"}},{"$f":"IF('1. Order'!S326=\"\",\"\",'1. Order'!S326)","v":""},{"$f":"IF('1. Order'!T326=\"\",\"\",'1. Order'!T326)","v":""},{"$f":"IF('1. Order'!U326=\"\",\"\",'1. Order'!U326)","v":""},{"$f":"IF('1. Order'!X326=\"\",\"\",'1. Order'!X326)","v":""},{"$f":"IF('1. Order'!Y326=\"\",\"\",'1. Order'!Y326)","v":""},{"$f":"IF('1. Order'!Z326=\"\",\"\",'1. Order'!Z326)","v":""},{"$f":"IF('1. Order'!AC326=\"\",\"\",'1. Order'!AC326)","v":""},{"$f":"IF('1. Order'!AD326=\"\",\"\",'1. Order'!AD326)","v":""},{"$f":"IF('1. Order'!AE326=\"\",\"\",'1. Order'!AE326)","v":""},null,{"$f":"IF('1. Order'!AW326=\"\",\"\",'1. Order'!AW326)","v":""},{"$f":"IF('1. Order'!AX326=\"\",\"\",'1. Order'!AX326)","v":""},null,null,null,null,null,null,null,{"$f":"IF('1. Order'!BB326=\"\",\"\",'1. Order'!BB326)","v":""},{"$f":"IF('1. Order'!BC326=\"\",\"\",'1. Order'!BC326)","v":""},{"$f":"IF('1. Order'!BD326=\"\",\"\",'1. Order'!BD326)","v":""},{"$f":"IF('1. Order'!BE326=\"\",\"\",'1. Order'!BE326)","v":""},{"$f":"IF('1. Order'!BG326=\"\",\"\",'1. Order'!BG326)","v":""},{"$f":"IF('1. Order'!BH326=\"\",\"\",'1. Order'!BH326)","v":""},{"$f":"IF('1. Order'!BI326=\"\",\"\",'1. Order'!BI326)","v":""},{"$f":"IF('1. Order'!BJ326=\"\",\"\",'1. Order'!BJ326)","v":""},{"$f":"IF('1. Order'!BK326=\"\",\"\",'1. Order'!BK326)","v":"ZWO"}]
[{"$f":"IF('1. Order'!G327=\"\",\"\",'1. Order'!G327)","v":""},{"$f":"IF('1. Order'!H327=\"\",\"\",'1. Order'!H327)","v":""},{"$f":"IF('1. Order'!I327=\"\",\"\",'1. Order'!I327)","v":""},{"$f":"IF('1. Order'!J327=\"\",\"\",'1. Order'!J327)","v":""},{"$f":"IF('1. Order'!K327=\"\",\"\",'1. Order'!K327)","v":""},{"$f":"IF('1. Order'!L327=\"\",\"\",'1. Order'!L327)","v":""},{"$f":"IF('1. Order'!M327=\"\",\"\",'1. Order'!M327)","v":""},{"$f":"IF('1. Order'!N327=\"\",\"\",'1. Order'!N327)","v":""},{"$f":"IF('1. Order'!P327=\"\",\"\",'1. Order'!P327)","v":""},{"$f":"IF('1. Order'!Q327=\"\",\"\",'1. Order'!Q327)","v":{"$error":"#N/A"}},{"$f":"IF('1. Order'!R327=\"\",\"\",'1. Order'!R327)","v":{"$error":"#N/A"}},{"$f":"IF('1. Order'!S327=\"\",\"\",'1. Order'!S327)","v":""},{"$f":"IF('1. Order'!T327=\"\",\"\",'1. Order'!T327)","v":""},{"$f":"IF('1. Order'!U327=\"\",\"\",'1. Order'!U327)","v":""},{"$f":"IF('1. Order'!X327=\"\",\"\",'1. Order'!X327)","v":""},{"$f":"IF('1. Order'!Y327=\"\",\"\",'1. Order'!Y327)","v":""},{"$f":"IF('1. Order'!Z327=\"\",\"\",'1. Order'!Z327)","v":""},{"$f":"IF('1. Order'!AC327=\"\",\"\",'1. Order'!AC327)","v":""},{"$f":"IF('1. Order'!AD327=\"\",\"\",'1. Order'!AD327)","v":""},{"$f":"IF('1. Order'!AE327=\"\",\"\",'1. Order'!AE327)","v":""},null,{"$f":"IF('1. Order'!AW327=\"\",\"\",'1. Order'!AW327)","v":""},{"$f":"IF('1. Order'!AX327=\"\",\"\",'1. Order'!AX327)","v":""},null,null,null,null,null,null,null,{"$f":"IF('1. Order'!BB327=\"\",\"\",'1. Order'!BB327)","v":""},{"$f":"IF('1. Order'!BC327=\"\",\"\",'1. Order'!BC327)","v":""},{"$f":"IF('1. Order'!BD327=\"\",\"\",'1. Order'!BD327)","v":""},{"$f":"IF('1. Order'!BE327=\"\",\"\",'1. Order'!BE327)","v":""},{"$f":"IF('1. Order'!BG327=\"\",\"\",'1. Order'!BG327)","v":""},{"$f":"IF('1. Order'!BH327=\"\",\"\",'1. Order'!BH327)","v":""},{"$f":"IF('1. Order'!BI327=\"\",\"\",'1. Order'!BI327)","v":""},{"$f":"IF('1. Order'!BJ327=\"\",\"\",'1. Order'!BJ327)","v":""},{"$f":"IF('1. Order'!BK327=\"\",\"\",'1. Order'!BK327)","v":"ZWO"}]
[{"$f":"IF('1. Order'!G328=\"\",\"\",'1. Order'!G328)","v":""},{"$f":"IF('1. Order'!H328=\"\",\"\",'1. Order'!H328)","v":""},{"$f":"IF('1. Order'!I328=\"\",\"\",'1. Order'!I328)","v":""},{"$f":"IF('1. Order'!J328=\"\",\"\",'1. Order'!J328)","v":""},{"$f":"IF('1. Order'!K328=\"\",\"\",'1. Order'!K328)","v":""},{"$f":"IF('1. Order'!L328=\"\",\"\",'1. Order'!L328)","v":""},{"$f":"IF('1. Order'!M328=\"\",\"\",'1. Order'!M328)","v":""},{"$f":"IF('1. Order'!N328=\"\",\"\",'1. Order'!N328)","v":""},{"$f":"IF('1. Order'!P328=\"\",\"\",'1. Order'!P328)","v":""},{"$f":"IF('1. Order'!Q328=\"\",\"\",'1. Order'!Q328)","v":{"$error":"#N/A"}},{"$f":"IF('1. Order'!R328=\"\",\"\",'1. Order'!R328)","v":{"$error":"#N/A"}},{"$f":"IF('1. Order'!S328=\"\",\"\",'1. Order'!S328)","v":""},{"$f":"IF('1. Order'!T328=\"\",\"\",'1. Order'!T328)","v":""},{"$f":"IF('1. Order'!U328=\"\",\"\",'1. Order'!U328)","v":""},{"$f":"IF('1. Order'!X328=\"\",\"\",'1. Order'!X328)","v":""},{"$f":"IF('1. Order'!Y328=\"\",\"\",'1. Order'!Y328)","v":""},{"$f":"IF('1. Order'!Z328=\"\",\"\",'1. Order'!Z328)","v":""},{"$f":"IF('1. Order'!AC328=\"\",\"\",'1. Order'!AC328)","v":""},{"$f":"IF('1. Order'!AD328=\"\",\"\",'1. Order'!AD328)","v":""},{"$f":"IF('1. Order'!AE328=\"\",\"\",'1. Order'!AE328)","v":""},null,{"$f":"IF('1. Order'!AW328=\"\",\"\",'1. Order'!AW328)","v":""},{"$f":"IF('1. Order'!AX328=\"\",\"\",'1. Order'!AX328)","v":""},null,null,null,null,null,null,null,{"$f":"IF('1. Order'!BB328=\"\",\"\",'1. Order'!BB328)","v":""},{"$f":"IF('1. Order'!BC328=\"\",\"\",'1. Order'!BC328)","v":""},{"$f":"IF('1. Order'!BD328=\"\",\"\",'1. Order'!BD328)","v":""},{"$f":"IF('1. Order'!BE328=\"\",\"\",'1. Order'!BE328)","v":""},{"$f":"IF('1. Order'!BG328=\"\",\"\",'1. Order'!BG328)","v":""},{"$f":"IF('1. Order'!BH328=\"\",\"\",'1. Order'!BH328)","v":""},{"$f":"IF('1. Order'!BI328=\"\",\"\",'1. Order'!BI328)","v":""},{"$f":"IF('1. Order'!BJ328=\"\",\"\",'1. Order'!BJ328)","v":""},{"$f":"IF('1. Order'!BK328=\"\",\"\",'1. Order'!BK328)","v":"ZWO"}]
[{"$f":"IF('1. Order'!G329=\"\",\"\",'1. Order'!G329)","v":""},{"$f":"IF('1. Order'!H329=\"\",\"\",'1. Order'!H329)","v":""},{"$f":"IF('1. Order'!I329=\"\",\"\",'1. Order'!I329)","v":""},{"$f":"IF('1. Order'!J329=\"\",\"\",'1. Order'!J329)","v":""},{"$f":"IF('1. Order'!K329=\"\",\"\",'1. Order'!K329)","v":""},{"$f":"IF('1. Order'!L329=\"\",\"\",'1. Order'!L329)","v":""},{"$f":"IF('1. Order'!M329=\"\",\"\",'1. Order'!M329)","v":""},{"$f":"IF('1. Order'!N329=\"\",\"\",'1. Order'!N329)","v":""},{"$f":"IF('1. Order'!P329=\"\",\"\",'1. Order'!P329)","v":""},{"$f":"IF('1. Order'!Q329=\"\",\"\",'1. Order'!Q329)","v":{"$error":"#N/A"}},{"$f":"IF('1. Order'!R329=\"\",\"\",'1. Order'!R329)","v":{"$error":"#N/A"}},{"$f":"IF('1. Order'!S329=\"\",\"\",'1. Order'!S329)","v":""},{"$f":"IF('1. Order'!T329=\"\",\"\",'1. Order'!T329)","v":""},{"$f":"IF('1. Order'!U329=\"\",\"\",'1. Order'!U329)","v":""},{"$f":"IF('1. Order'!X329=\"\",\"\",'1. Order'!X329)","v":""},{"$f":"IF('1. Order'!Y329=\"\",\"\",'1. Order'!Y329)","v":""},{"$f":"IF('1. Order'!Z329=\"\",\"\",'1. Order'!Z329)","v":""},{"$f":"IF('1. Order'!AC329=\"\",\"\",'1. Order'!AC329)","v":""},{"$f":"IF('1. Order'!AD329=\"\",\"\",'1. Order'!AD329)","v":""},{"$f":"IF('1. Order'!AE329=\"\",\"\",'1. Order'!AE329)","v":""},null,{"$f":"IF('1. Order'!AW329=\"\",\"\",'1. Order'!AW329)","v":""},{"$f":"IF('1. Order'!AX329=\"\",\"\",'1. Order'!AX329)","v":""},null,null,null,null,null,null,null,{"$f":"IF('1. Order'!BB329=\"\",\"\",'1. Order'!BB329)","v":""},{"$f":"IF('1. Order'!BC329=\"\",\"\",'1. Order'!BC329)","v":""},{"$f":"IF('1. Order'!BD329=\"\",\"\",'1. Order'!BD329)","v":""},{"$f":"IF('1. Order'!BE329=\"\",\"\",'1. Order'!BE329)","v":""},{"$f":"IF('1. Order'!BG329=\"\",\"\",'1. Order'!BG329)","v":""},{"$f":"IF('1. Order'!BH329=\"\",\"\",'1. Order'!BH329)","v":""},{"$f":"IF('1. Order'!BI329=\"\",\"\",'1. Order'!BI329)","v":""},{"$f":"IF('1. Order'!BJ329=\"\",\"\",'1. Order'!BJ329)","v":""},{"$f":"IF('1. Order'!BK329=\"\",\"\",'1. Order'!BK329)","v":"ZWO"}]
[{"$f":"IF('1. Order'!G330=\"\",\"\",'1. Order'!G330)","v":""},{"$f":"IF('1. Order'!H330=\"\",\"\",'1. Order'!H330)","v":""},{"$f":"IF('1. Order'!I330=\"\",\"\",'1. Order'!I330)","v":""},{"$f":"IF('1. Order'!J330=\"\",\"\",'1. Order'!J330)","v":""},{"$f":"IF('1. Order'!K330=\"\",\"\",'1. Order'!K330)","v":""},{"$f":"IF('1. Order'!L330=\"\",\"\",'1. Order'!L330)","v":""},{"$f":"IF('1. Order'!M330=\"\",\"\",'1. Order'!M330)","v":""},{"$f":"IF('1. Order'!N330=\"\",\"\",'1. Order'!N330)","v":""},{"$f":"IF('1. Order'!P330=\"\",\"\",'1. Order'!P330)","v":""},{"$f":"IF('1. Order'!Q330=\"\",\"\",'1. Order'!Q330)","v":{"$error":"#N/A"}},{"$f":"IF('1. Order'!R330=\"\",\"\",'1. Order'!R330)","v":{"$error":"#N/A"}},{"$f":"IF('1. Order'!S330=\"\",\"\",'1. Order'!S330)","v":""},{"$f":"IF('1. Order'!T330=\"\",\"\",'1. Order'!T330)","v":""},{"$f":"IF('1. Order'!U330=\"\",\"\",'1. Order'!U330)","v":""},{"$f":"IF('1. Order'!X330=\"\",\"\",'1. Order'!X330)","v":""},{"$f":"IF('1. Order'!Y330=\"\",\"\",'1. Order'!Y330)","v":""},{"$f":"IF('1. Order'!Z330=\"\",\"\",'1. Order'!Z330)","v":""},{"$f":"IF('1. Order'!AC330=\"\",\"\",'1. Order'!AC330)","v":""},{"$f":"IF('1. Order'!AD330=\"\",\"\",'1. Order'!AD330)","v":""},{"$f":"IF('1. Order'!AE330=\"\",\"\",'1. Order'!AE330)","v":""},null,{"$f":"IF('1. Order'!AW330=\"\",\"\",'1. Order'!AW330)","v":""},{"$f":"IF('1. Order'!AX330=\"\",\"\",'1. Order'!AX330)","v":""},null,null,null,null,null,null,null,{"$f":"IF('1. Order'!BB330=\"\",\"\",'1. Order'!BB330)","v":""},{"$f":"IF('1. Order'!BC330=\"\",\"\",'1. Order'!BC330)","v":""},{"$f":"IF('1. Order'!BD330=\"\",\"\",'1. Order'!BD330)","v":""},{"$f":"IF('1. Order'!BE330=\"\",\"\",'1. Order'!BE330)","v":""},{"$f":"IF('1. Order'!BG330=\"\",\"\",'1. Order'!BG330)","v":""},{"$f":"IF('1. Order'!BH330=\"\",\"\",'1. Order'!BH330)","v":""},{"$f":"IF('1. Order'!BI330=\"\",\"\",'1. Order'!BI330)","v":""},{"$f":"IF('1. Order'!BJ330=\"\",\"\",'1. Order'!BJ330)","v":""},{"$f":"IF('1. Order'!BK330=\"\",\"\",'1. Order'!BK330)","v":"ZWO"}]
[{"$f":"IF('1. Order'!G331=\"\",\"\",'1. Order'!G331)","v":""},{"$f":"IF('1. Order'!H331=\"\",\"\",'1. Order'!H331)","v":""},{"$f":"IF('1. Order'!I331=\"\",\"\",'1. Order'!I331)","v":""},{"$f":"IF('1. Order'!J331=\"\",\"\",'1. Order'!J331)","v":""},{"$f":"IF('1. Order'!K331=\"\",\"\",'1. Order'!K331)","v":""},{"$f":"IF('1. Order'!L331=\"\",\"\",'1. Order'!L331)","v":""},{"$f":"IF('1. Order'!M331=\"\",\"\",'1. Order'!M331)","v":""},{"$f":"IF('1. Order'!N331=\"\",\"\",'1. Order'!N331)","v":""},{"$f":"IF('1. Order'!P331=\"\",\"\",'1. Order'!P331)","v":""},{"$f":"IF('1. Order'!Q331=\"\",\"\",'1. Order'!Q331)","v":{"$error":"#N/A"}},{"$f":"IF('1. Order'!R331=\"\",\"\",'1. Order'!R331)","v":{"$error":"#N/A"}},{"$f":"IF('1. Order'!S331=\"\",\"\",'1. Order'!S331)","v":""},{"$f":"IF('1. Order'!T331=\"\",\"\",'1. Order'!T331)","v":""},{"$f":"IF('1. Order'!U331=\"\",\"\",'1. Order'!U331)","v":""},{"$f":"IF('1. Order'!X331=\"\",\"\",'1. Order'!X331)","v":""},{"$f":"IF('1. Order'!Y331=\"\",\"\",'1. Order'!Y331)","v":""},{"$f":"IF('1. Order'!Z331=\"\",\"\",'1. Order'!Z331)","v":""},{"$f":"IF('1. Order'!AC331=\"\",\"\",'1. Order'!AC331)","v":""},{"$f":"IF('1. Order'!AD331=\"\",\"\",'1. Order'!AD331)","v":""},{"$f":"IF('1. Order'!AE331=\"\",\"\",'1. Order'!AE331)","v":""},null,{"$f":"IF('1. Order'!AW331=\"\",\"\",'1. Order'!AW331)","v":""},{"$f":"IF('1. Order'!AX331=\"\",\"\",'1. Order'!AX331)","v":""},null,null,null,null,null,null,null,{"$f":"IF('1. Order'!BB331=\"\",\"\",'1. Order'!BB331)","v":""},{"$f":"IF('1. Order'!BC331=\"\",\"\",'1. Order'!BC331)","v":""},{"$f":"IF('1. Order'!BD331=\"\",\"\",'1. Order'!BD331)","v":""},{"$f":"IF('1. Order'!BE331=\"\",\"\",'1. Order'!BE331)","v":""},{"$f":"IF('1. Order'!BG331=\"\",\"\",'1. Order'!BG331)","v":""},{"$f":"IF('1. Order'!BH331=\"\",\"\",'1. Order'!BH331)","v":""},{"$f":"IF('1. Order'!BI331=\"\",\"\",'1. Order'!BI331)","v":""},{"$f":"IF('1. Order'!BJ331=\"\",\"\",'1. Order'!BJ331)","v":""},{"$f":"IF('1. Order'!BK331=\"\",\"\",'1. Order'!BK331)","v":"ZWO"}]
[{"$f":"IF('1. Order'!G332=\"\",\"\",'1. Order'!G332)","v":""},{"$f":"IF('1. Order'!H332=\"\",\"\",'1. Order'!H332)","v":""},{"$f":"IF('1. Order'!I332=\"\",\"\",'1. Order'!I332)","v":""},{"$f":"IF('1. Order'!J332=\"\",\"\",'1. Order'!J332)","v":""},{"$f":"IF('1. Order'!K332=\"\",\"\",'1. Order'!K332)","v":""},{"$f":"IF('1. Order'!L332=\"\",\"\",'1. Order'!L332)","v":""},{"$f":"IF('1. Order'!M332=\"\",\"\",'1. Order'!M332)","v":""},{"$f":"IF('1. Order'!N332=\"\",\"\",'1. Order'!N332)","v":""},{"$f":"IF('1. Order'!P332=\"\",\"\",'1. Order'!P332)","v":""},{"$f":"IF('1. Order'!Q332=\"\",\"\",'1. Order'!Q332)","v":{"$error":"#N/A"}},{"$f":"IF('1. Order'!R332=\"\",\"\",'1. Order'!R332)","v":{"$error":"#N/A"}},{"$f":"IF('1. Order'!S332=\"\",\"\",'1. Order'!S332)","v":""},{"$f":"IF('1. Order'!T332=\"\",\"\",'1. Order'!T332)","v":""},{"$f":"IF('1. Order'!U332=\"\",\"\",'1. Order'!U332)","v":""},{"$f":"IF('1. Order'!X332=\"\",\"\",'1. Order'!X332)","v":""},{"$f":"IF('1. Order'!Y332=\"\",\"\",'1. Order'!Y332)","v":""},{"$f":"IF('1. Order'!Z332=\"\",\"\",'1. Order'!Z332)","v":""},{"$f":"IF('1. Order'!AC332=\"\",\"\",'1. Order'!AC332)","v":""},{"$f":"IF('1. Order'!AD332=\"\",\"\",'1. Order'!AD332)","v":""},{"$f":"IF('1. Order'!AE332=\"\",\"\",'1. Order'!AE332)","v":""},null,{"$f":"IF('1. Order'!AW332=\"\",\"\",'1. Order'!AW332)","v":""},{"$f":"IF('1. Order'!AX332=\"\",\"\",'1. Order'!AX332)","v":""},null,null,null,null,null,null,null,{"$f":"IF('1. Order'!BB332=\"\",\"\",'1. Order'!BB332)","v":""},{"$f":"IF('1. Order'!BC332=\"\",\"\",'1. Order'!BC332)","v":""},{"$f":"IF('1. Order'!BD332=\"\",\"\",'1. Order'!BD332)","v":""},{"$f":"IF('1. Order'!BE332=\"\",\"\",'1. Order'!BE332)","v":""},{"$f":"IF('1. Order'!BG332=\"\",\"\",'1. Order'!BG332)","v":""},{"$f":"IF('1. Order'!BH332=\"\",\"\",'1. Order'!BH332)","v":""},{"$f":"IF('1. Order'!BI332=\"\",\"\",'1. Order'!BI332)","v":""},{"$f":"IF('1. Order'!BJ332=\"\",\"\",'1. Order'!BJ332)","v":""},{"$f":"IF('1. Order'!BK332=\"\",\"\",'1. Order'!BK332)","v":"ZWO"}]
[{"$f":"IF('1. Order'!G333=\"\",\"\",'1. Order'!G333)","v":""},{"$f":"IF('1. Order'!H333=\"\",\"\",'1. Order'!H333)","v":""},{"$f":"IF('1. Order'!I333=\"\",\"\",'1. Order'!I333)","v":""},{"$f":"IF('1. Order'!J333=\"\",\"\",'1. Order'!J333)","v":""},{"$f":"IF('1. Order'!K333=\"\",\"\",'1. Order'!K333)","v":""},{"$f":"IF('1. Order'!L333=\"\",\"\",'1. Order'!L333)","v":""},{"$f":"IF('1. Order'!M333=\"\",\"\",'1. Order'!M333)","v":""},{"$f":"IF('1. Order'!N333=\"\",\"\",'1. Order'!N333)","v":""},{"$f":"IF('1. Order'!P333=\"\",\"\",'1. Order'!P333)","v":""},{"$f":"IF('1. Order'!Q333=\"\",\"\",'1. Order'!Q333)","v":{"$error":"#N/A"}},{"$f":"IF('1. Order'!R333=\"\",\"\",'1. Order'!R333)","v":{"$error":"#N/A"}},{"$f":"IF('1. Order'!S333=\"\",\"\",'1. Order'!S333)","v":""},{"$f":"IF('1. Order'!T333=\"\",\"\",'1. Order'!T333)","v":""},{"$f":"IF('1. Order'!U333=\"\",\"\",'1. Order'!U333)","v":""},{"$f":"IF('1. Order'!X333=\"\",\"\",'1. Order'!X333)","v":""},{"$f":"IF('1. Order'!Y333=\"\",\"\",'1. Order'!Y333)","v":""},{"$f":"IF('1. Order'!Z333=\"\",\"\",'1. Order'!Z333)","v":""},{"$f":"IF('1. Order'!AC333=\"\",\"\",'1. Order'!AC333)","v":""},{"$f":"IF('1. Order'!AD333=\"\",\"\",'1. Order'!AD333)","v":""},{"$f":"IF('1. Order'!AE333=\"\",\"\",'1. Order'!AE333)","v":""},null,{"$f":"IF('1. Order'!AW333=\"\",\"\",'1. Order'!AW333)","v":""},{"$f":"IF('1. Order'!AX333=\"\",\"\",'1. Order'!AX333)","v":""},null,null,null,null,null,null,null,{"$f":"IF('1. Order'!BB333=\"\",\"\",'1. Order'!BB333)","v":""},{"$f":"IF('1. Order'!BC333=\"\",\"\",'1. Order'!BC333)","v":""},{"$f":"IF('1. Order'!BD333=\"\",\"\",'1. Order'!BD333)","v":""},{"$f":"IF('1. Order'!BE333=\"\",\"\",'1. Order'!BE333)","v":""},{"$f":"IF('1. Order'!BG333=\"\",\"\",'1. Order'!BG333)","v":""},{"$f":"IF('1. Order'!BH333=\"\",\"\",'1. Order'!BH333)","v":""},{"$f":"IF('1. Order'!BI333=\"\",\"\",'1. Order'!BI333)","v":""},{"$f":"IF('1. Order'!BJ333=\"\",\"\",'1. Order'!BJ333)","v":""},{"$f":"IF('1. Order'!BK333=\"\",\"\",'1. Order'!BK333)","v":"ZWO"}]
[{"$f":"IF('1. Order'!G334=\"\",\"\",'1. Order'!G334)","v":""},{"$f":"IF('1. Order'!H334=\"\",\"\",'1. Order'!H334)","v":""},{"$f":"IF('1. Order'!I334=\"\",\"\",'1. Order'!I334)","v":""},{"$f":"IF('1. Order'!J334=\"\",\"\",'1. Order'!J334)","v":""},{"$f":"IF('1. Order'!K334=\"\",\"\",'1. Order'!K334)","v":""},{"$f":"IF('1. Order'!L334=\"\",\"\",'1. Order'!L334)","v":""},{"$f":"IF('1. Order'!M334=\"\",\"\",'1. Order'!M334)","v":""},{"$f":"IF('1. Order'!N334=\"\",\"\",'1. Order'!N334)","v":""},{"$f":"IF('1. Order'!P334=\"\",\"\",'1. Order'!P334)","v":""},{"$f":"IF('1. Order'!Q334=\"\",\"\",'1. Order'!Q334)","v":{"$error":"#N/A"}},{"$f":"IF('1. Order'!R334=\"\",\"\",'1. Order'!R334)","v":{"$error":"#N/A"}},{"$f":"IF('1. Order'!S334=\"\",\"\",'1. Order'!S334)","v":""},{"$f":"IF('1. Order'!T334=\"\",\"\",'1. Order'!T334)","v":""},{"$f":"IF('1. Order'!U334=\"\",\"\",'1. Order'!U334)","v":""},{"$f":"IF('1. Order'!X334=\"\",\"\",'1. Order'!X334)","v":""},{"$f":"IF('1. Order'!Y334=\"\",\"\",'1. Order'!Y334)","v":""},{"$f":"IF('1. Order'!Z334=\"\",\"\",'1. Order'!Z334)","v":""},{"$f":"IF('1. Order'!AC334=\"\",\"\",'1. Order'!AC334)","v":""},{"$f":"IF('1. Order'!AD334=\"\",\"\",'1. Order'!AD334)","v":""},{"$f":"IF('1. Order'!AE334=\"\",\"\",'1. Order'!AE334)","v":""},null,{"$f":"IF('1. Order'!AW334=\"\",\"\",'1. Order'!AW334)","v":""},{"$f":"IF('1. Order'!AX334=\"\",\"\",'1. Order'!AX334)","v":""},null,null,null,null,null,null,null,{"$f":"IF('1. Order'!BB334=\"\",\"\",'1. Order'!BB334)","v":""},{"$f":"IF('1. Order'!BC334=\"\",\"\",'1. Order'!BC334)","v":""},{"$f":"IF('1. Order'!BD334=\"\",\"\",'1. Order'!BD334)","v":""},{"$f":"IF('1. Order'!BE334=\"\",\"\",'1. Order'!BE334)","v":""},{"$f":"IF('1. Order'!BG334=\"\",\"\",'1. Order'!BG334)","v":""},{"$f":"IF('1. Order'!BH334=\"\",\"\",'1. Order'!BH334)","v":""},{"$f":"IF('1. Order'!BI334=\"\",\"\",'1. Order'!BI334)","v":""},{"$f":"IF('1. Order'!BJ334=\"\",\"\",'1. Order'!BJ334)","v":""},{"$f":"IF('1. Order'!BK334=\"\",\"\",'1. Order'!BK334)","v":"ZWO"}]
[{"$f":"IF('1. Order'!G335=\"\",\"\",'1. Order'!G335)","v":""},{"$f":"IF('1. Order'!H335=\"\",\"\",'1. Order'!H335)","v":""},{"$f":"IF('1. Order'!I335=\"\",\"\",'1. Order'!I335)","v":""},{"$f":"IF('1. Order'!J335=\"\",\"\",'1. Order'!J335)","v":""},{"$f":"IF('1. Order'!K335=\"\",\"\",'1. Order'!K335)","v":""},{"$f":"IF('1. Order'!L335=\"\",\"\",'1. Order'!L335)","v":""},{"$f":"IF('1. Order'!M335=\"\",\"\",'1. Order'!M335)","v":""},{"$f":"IF('1. Order'!N335=\"\",\"\",'1. Order'!N335)","v":""},{"$f":"IF('1. Order'!P335=\"\",\"\",'1. Order'!P335)","v":""},{"$f":"IF('1. Order'!Q335=\"\",\"\",'1. Order'!Q335)","v":{"$error":"#N/A"}},{"$f":"IF('1. Order'!R335=\"\",\"\",'1. Order'!R335)","v":{"$error":"#N/A"}},{"$f":"IF('1. Order'!S335=\"\",\"\",'1. Order'!S335)","v":""},{"$f":"IF('1. Order'!T335=\"\",\"\",'1. Order'!T335)","v":""},{"$f":"IF('1. Order'!U335=\"\",\"\",'1. Order'!U335)","v":""},{"$f":"IF('1. Order'!X335=\"\",\"\",'1. Order'!X335)","v":""},{"$f":"IF('1. Order'!Y335=\"\",\"\",'1. Order'!Y335)","v":""},{"$f":"IF('1. Order'!Z335=\"\",\"\",'1. Order'!Z335)","v":""},{"$f":"IF('1. Order'!AC335=\"\",\"\",'1. Order'!AC335)","v":""},{"$f":"IF('1. Order'!AD335=\"\",\"\",'1. Order'!AD335)","v":""},{"$f":"IF('1. Order'!AE335=\"\",\"\",'1. Order'!AE335)","v":""},null,{"$f":"IF('1. Order'!AW335=\"\",\"\",'1. Order'!AW335)","v":""},{"$f":"IF('1. Order'!AX335=\"\",\"\",'1. Order'!AX335)","v":""},null,null,null,null,null,null,null,{"$f":"IF('1. Order'!BB335=\"\",\"\",'1. Order'!BB335)","v":""},{"$f":"IF('1. Order'!BC335=\"\",\"\",'1. Order'!BC335)","v":""},{"$f":"IF('1. Order'!BD335=\"\",\"\",'1. Order'!BD335)","v":""},{"$f":"IF('1. Order'!BE335=\"\",\"\",'1. Order'!BE335)","v":""},{"$f":"IF('1. Order'!BG335=\"\",\"\",'1. Order'!BG335)","v":""},{"$f":"IF('1. Order'!BH335=\"\",\"\",'1. Order'!BH335)","v":""},{"$f":"IF('1. Order'!BI335=\"\",\"\",'1. Order'!BI335)","v":""},{"$f":"IF('1. Order'!BJ335=\"\",\"\",'1. Order'!BJ335)","v":""},{"$f":"IF('1. Order'!BK335=\"\",\"\",'1. Order'!BK335)","v":"ZWO"}]
[{"$f":"IF('1. Order'!G336=\"\",\"\",'1. Order'!G336)","v":""},{"$f":"IF('1. Order'!H336=\"\",\"\",'1. Order'!H336)","v":""},{"$f":"IF('1. Order'!I336=\"\",\"\",'1. Order'!I336)","v":""},{"$f":"IF('1. Order'!J336=\"\",\"\",'1. Order'!J336)","v":""},{"$f":"IF('1. Order'!K336=\"\",\"\",'1. Order'!K336)","v":""},{"$f":"IF('1. Order'!L336=\"\",\"\",'1. Order'!L336)","v":""},{"$f":"IF('1. Order'!M336=\"\",\"\",'1. Order'!M336)","v":""},{"$f":"IF('1. Order'!N336=\"\",\"\",'1. Order'!N336)","v":""},{"$f":"IF('1. Order'!P336=\"\",\"\",'1. Order'!P336)","v":""},{"$f":"IF('1. Order'!Q336=\"\",\"\",'1. Order'!Q336)","v":{"$error":"#N/A"}},{"$f":"IF('1. Order'!R336=\"\",\"\",'1. Order'!R336)","v":{"$error":"#N/A"}},{"$f":"IF('1. Order'!S336=\"\",\"\",'1. Order'!S336)","v":""},{"$f":"IF('1. Order'!T336=\"\",\"\",'1. Order'!T336)","v":""},{"$f":"IF('1. Order'!U336=\"\",\"\",'1. Order'!U336)","v":""},{"$f":"IF('1. Order'!X336=\"\",\"\",'1. Order'!X336)","v":""},{"$f":"IF('1. Order'!Y336=\"\",\"\",'1. Order'!Y336)","v":""},{"$f":"IF('1. Order'!Z336=\"\",\"\",'1. Order'!Z336)","v":""},{"$f":"IF('1. Order'!AC336=\"\",\"\",'1. Order'!AC336)","v":""},{"$f":"IF('1. Order'!AD336=\"\",\"\",'1. Order'!AD336)","v":""},{"$f":"IF('1. Order'!AE336=\"\",\"\",'1. Order'!AE336)","v":""},null,{"$f":"IF('1. Order'!AW336=\"\",\"\",'1. Order'!AW336)","v":""},{"$f":"IF('1. Order'!AX336=\"\",\"\",'1. Order'!AX336)","v":""},null,null,null,null,null,null,null,{"$f":"IF('1. Order'!BB336=\"\",\"\",'1. Order'!BB336)","v":""},{"$f":"IF('1. Order'!BC336=\"\",\"\",'1. Order'!BC336)","v":""},{"$f":"IF('1. Order'!BD336=\"\",\"\",'1. Order'!BD336)","v":""},{"$f":"IF('1. Order'!BE336=\"\",\"\",'1. Order'!BE336)","v":""},{"$f":"IF('1. Order'!BG336=\"\",\"\",'1. Order'!BG336)","v":""},{"$f":"IF('1. Order'!BH336=\"\",\"\",'1. Order'!BH336)","v":""},{"$f":"IF('1. Order'!BI336=\"\",\"\",'1. Order'!BI336)","v":""},{"$f":"IF('1. Order'!BJ336=\"\",\"\",'1. Order'!BJ336)","v":""},{"$f":"IF('1. Order'!BK336=\"\",\"\",'1. Order'!BK336)","v":"ZWO"}]
[{"$f":"IF('1. Order'!G337=\"\",\"\",'1. Order'!G337)","v":""},{"$f":"IF('1. Order'!H337=\"\",\"\",'1. Order'!H337)","v":""},{"$f":"IF('1. Order'!I337=\"\",\"\",'1. Order'!I337)","v":""},{"$f":"IF('1. Order'!J337=\"\",\"\",'1. Order'!J337)","v":""},{"$f":"IF('1. Order'!K337=\"\",\"\",'1. Order'!K337)","v":""},{"$f":"IF('1. Order'!L337=\"\",\"\",'1. Order'!L337)","v":""},{"$f":"IF('1. Order'!M337=\"\",\"\",'1. Order'!M337)","v":""},{"$f":"IF('1. Order'!N337=\"\",\"\",'1. Order'!N337)","v":""},{"$f":"IF('1. Order'!P337=\"\",\"\",'1. Order'!P337)","v":""},{"$f":"IF('1. Order'!Q337=\"\",\"\",'1. Order'!Q337)","v":{"$error":"#N/A"}},{"$f":"IF('1. Order'!R337=\"\",\"\",'1. Order'!R337)","v":{"$error":"#N/A"}},{"$f":"IF('1. Order'!S337=\"\",\"\",'1. Order'!S337)","v":""},{"$f":"IF('1. Order'!T337=\"\",\"\",'1. Order'!T337)","v":""},{"$f":"IF('1. Order'!U337=\"\",\"\",'1. Order'!U337)","v":""},{"$f":"IF('1. Order'!X337=\"\",\"\",'1. Order'!X337)","v":""},{"$f":"IF('1. Order'!Y337=\"\",\"\",'1. Order'!Y337)","v":""},{"$f":"IF('1. Order'!Z337=\"\",\"\",'1. Order'!Z337)","v":""},{"$f":"IF('1. Order'!AC337=\"\",\"\",'1. Order'!AC337)","v":""},{"$f":"IF('1. Order'!AD337=\"\",\"\",'1. Order'!AD337)","v":""},{"$f":"IF('1. Order'!AE337=\"\",\"\",'1. Order'!AE337)","v":""},null,{"$f":"IF('1. Order'!AW337=\"\",\"\",'1. Order'!AW337)","v":""},{"$f":"IF('1. Order'!AX337=\"\",\"\",'1. Order'!AX337)","v":""},null,null,null,null,null,null,null,{"$f":"IF('1. Order'!BB337=\"\",\"\",'1. Order'!BB337)","v":""},{"$f":"IF('1. Order'!BC337=\"\",\"\",'1. Order'!BC337)","v":""},{"$f":"IF('1. Order'!BD337=\"\",\"\",'1. Order'!BD337)","v":""},{"$f":"IF('1. Order'!BE337=\"\",\"\",'1. Order'!BE337)","v":""},{"$f":"IF('1. Order'!BG337=\"\",\"\",'1. Order'!BG337)","v":""},{"$f":"IF('1. Order'!BH337=\"\",\"\",'1. Order'!BH337)","v":""},{"$f":"IF('1. Order'!BI337=\"\",\"\",'1. Order'!BI337)","v":""},{"$f":"IF('1. Order'!BJ337=\"\",\"\",'1. Order'!BJ337)","v":""},{"$f":"IF('1. Order'!BK337=\"\",\"\",'1. Order'!BK337)","v":"ZWO"}]
[{"$f":"IF('1. Order'!G338=\"\",\"\",'1. Order'!G338)","v":""},{"$f":"IF('1. Order'!H338=\"\",\"\",'1. Order'!H338)","v":""},{"$f":"IF('1. Order'!I338=\"\",\"\",'1. Order'!I338)","v":""},{"$f":"IF('1. Order'!J338=\"\",\"\",'1. Order'!J338)","v":""},{"$f":"IF('1. Order'!K338=\"\",\"\",'1. Order'!K338)","v":""},{"$f":"IF('1. Order'!L338=\"\",\"\",'1. Order'!L338)","v":""},{"$f":"IF('1. Order'!M338=\"\",\"\",'1. Order'!M338)","v":""},{"$f":"IF('1. Order'!N338=\"\",\"\",'1. Order'!N338)","v":""},{"$f":"IF('1. Order'!P338=\"\",\"\",'1. Order'!P338)","v":""},{"$f":"IF('1. Order'!Q338=\"\",\"\",'1. Order'!Q338)","v":{"$error":"#N/A"}},{"$f":"IF('1. Order'!R338=\"\",\"\",'1. Order'!R338)","v":{"$error":"#N/A"}},{"$f":"IF('1. Order'!S338=\"\",\"\",'1. Order'!S338)","v":""},{"$f":"IF('1. Order'!T338=\"\",\"\",'1. Order'!T338)","v":""},{"$f":"IF('1. Order'!U338=\"\",\"\",'1. Order'!U338)","v":""},{"$f":"IF('1. Order'!X338=\"\",\"\",'1. Order'!X338)","v":""},{"$f":"IF('1. Order'!Y338=\"\",\"\",'1. Order'!Y338)","v":""},{"$f":"IF('1. Order'!Z338=\"\",\"\",'1. Order'!Z338)","v":""},{"$f":"IF('1. Order'!AC338=\"\",\"\",'1. Order'!AC338)","v":""},{"$f":"IF('1. Order'!AD338=\"\",\"\",'1. Order'!AD338)","v":""},{"$f":"IF('1. Order'!AE338=\"\",\"\",'1. Order'!AE338)","v":""},null,{"$f":"IF('1. Order'!AW338=\"\",\"\",'1. Order'!AW338)","v":""},{"$f":"IF('1. Order'!AX338=\"\",\"\",'1. Order'!AX338)","v":""},null,null,null,null,null,null,null,{"$f":"IF('1. Order'!BB338=\"\",\"\",'1. Order'!BB338)","v":""},{"$f":"IF('1. Order'!BC338=\"\",\"\",'1. Order'!BC338)","v":""},{"$f":"IF('1. Order'!BD338=\"\",\"\",'1. Order'!BD338)","v":""},{"$f":"IF('1. Order'!BE338=\"\",\"\",'1. Order'!BE338)","v":""},{"$f":"IF('1. Order'!BG338=\"\",\"\",'1. Order'!BG338)","v":""},{"$f":"IF('1. Order'!BH338=\"\",\"\",'1. Order'!BH338)","v":""},{"$f":"IF('1. Order'!BI338=\"\",\"\",'1. Order'!BI338)","v":""},{"$f":"IF('1. Order'!BJ338=\"\",\"\",'1. Order'!BJ338)","v":""},{"$f":"IF('1. Order'!BK338=\"\",\"\",'1. Order'!BK338)","v":"ZWO"}]
[{"$f":"IF('1. Order'!G339=\"\",\"\",'1. Order'!G339)","v":""},{"$f":"IF('1. Order'!H339=\"\",\"\",'1. Order'!H339)","v":""},{"$f":"IF('1. Order'!I339=\"\",\"\",'1. Order'!I339)","v":""},{"$f":"IF('1. Order'!J339=\"\",\"\",'1. Order'!J339)","v":""},{"$f":"IF('1. Order'!K339=\"\",\"\",'1. Order'!K339)","v":""},{"$f":"IF('1. Order'!L339=\"\",\"\",'1. Order'!L339)","v":""},{"$f":"IF('1. Order'!M339=\"\",\"\",'1. Order'!M339)","v":""},{"$f":"IF('1. Order'!N339=\"\",\"\",'1. Order'!N339)","v":""},{"$f":"IF('1. Order'!P339=\"\",\"\",'1. Order'!P339)","v":""},{"$f":"IF('1. Order'!Q339=\"\",\"\",'1. Order'!Q339)","v":{"$error":"#N/A"}},{"$f":"IF('1. Order'!R339=\"\",\"\",'1. Order'!R339)","v":{"$error":"#N/A"}},{"$f":"IF('1. Order'!S339=\"\",\"\",'1. Order'!S339)","v":""},{"$f":"IF('1. Order'!T339=\"\",\"\",'1. Order'!T339)","v":""},{"$f":"IF('1. Order'!U339=\"\",\"\",'1. Order'!U339)","v":""},{"$f":"IF('1. Order'!X339=\"\",\"\",'1. Order'!X339)","v":""},{"$f":"IF('1. Order'!Y339=\"\",\"\",'1. Order'!Y339)","v":""},{"$f":"IF('1. Order'!Z339=\"\",\"\",'1. Order'!Z339)","v":""},{"$f":"IF('1. Order'!AC339=\"\",\"\",'1. Order'!AC339)","v":""},{"$f":"IF('1. Order'!AD339=\"\",\"\",'1. Order'!AD339)","v":""},{"$f":"IF('1. Order'!AE339=\"\",\"\",'1. Order'!AE339)","v":""},null,{"$f":"IF('1. Order'!AW339=\"\",\"\",'1. Order'!AW339)","v":""},{"$f":"IF('1. Order'!AX339=\"\",\"\",'1. Order'!AX339)","v":""},null,null,null,null,null,null,null,{"$f":"IF('1. Order'!BB339=\"\",\"\",'1. Order'!BB339)","v":""},{"$f":"IF('1. Order'!BC339=\"\",\"\",'1. Order'!BC339)","v":""},{"$f":"IF('1. Order'!BD339=\"\",\"\",'1. Order'!BD339)","v":""},{"$f":"IF('1. Order'!BE339=\"\",\"\",'1. Order'!BE339)","v":""},{"$f":"IF('1. Order'!BG339=\"\",\"\",'1. Order'!BG339)","v":""},{"$f":"IF('1. Order'!BH339=\"\",\"\",'1. Order'!BH339)","v":""},{"$f":"IF('1. Order'!BI339=\"\",\"\",'1. Order'!BI339)","v":""},{"$f":"IF('1. Order'!BJ339=\"\",\"\",'1. Order'!BJ339)","v":""},{"$f":"IF('1. Order'!BK339=\"\",\"\",'1. Order'!BK339)","v":"ZWO"}]
[{"$f":"IF('1. Order'!G340=\"\",\"\",'1. Order'!G340)","v":""},{"$f":"IF('1. Order'!H340=\"\",\"\",'1. Order'!H340)","v":""},{"$f":"IF('1. Order'!I340=\"\",\"\",'1. Order'!I340)","v":""},{"$f":"IF('1. Order'!J340=\"\",\"\",'1. Order'!J340)","v":""},{"$f":"IF('1. Order'!K340=\"\",\"\",'1. Order'!K340)","v":""},{"$f":"IF('1. Order'!L340=\"\",\"\",'1. Order'!L340)","v":""},{"$f":"IF('1. Order'!M340=\"\",\"\",'1. Order'!M340)","v":""},{"$f":"IF('1. Order'!N340=\"\",\"\",'1. Order'!N340)","v":""},{"$f":"IF('1. Order'!P340=\"\",\"\",'1. Order'!P340)","v":""},{"$f":"IF('1. Order'!Q340=\"\",\"\",'1. Order'!Q340)","v":{"$error":"#N/A"}},{"$f":"IF('1. Order'!R340=\"\",\"\",'1. Order'!R340)","v":{"$error":"#N/A"}},{"$f":"IF('1. Order'!S340=\"\",\"\",'1. Order'!S340)","v":""},{"$f":"IF('1. Order'!T340=\"\",\"\",'1. Order'!T340)","v":""},{"$f":"IF('1. Order'!U340=\"\",\"\",'1. Order'!U340)","v":""},{"$f":"IF('1. Order'!X340=\"\",\"\",'1. Order'!X340)","v":""},{"$f":"IF('1. Order'!Y340=\"\",\"\",'1. Order'!Y340)","v":""},{"$f":"IF('1. Order'!Z340=\"\",\"\",'1. Order'!Z340)","v":""},{"$f":"IF('1. Order'!AC340=\"\",\"\",'1. Order'!AC340)","v":""},{"$f":"IF('1. Order'!AD340=\"\",\"\",'1. Order'!AD340)","v":""},{"$f":"IF('1. Order'!AE340=\"\",\"\",'1. Order'!AE340)","v":""},null,{"$f":"IF('1. Order'!AW340=\"\",\"\",'1. Order'!AW340)","v":""},{"$f":"IF('1. Order'!AX340=\"\",\"\",'1. Order'!AX340)","v":""},null,null,null,null,null,null,null,{"$f":"IF('1. Order'!BB340=\"\",\"\",'1. Order'!BB340)","v":""},{"$f":"IF('1. Order'!BC340=\"\",\"\",'1. Order'!BC340)","v":""},{"$f":"IF('1. Order'!BD340=\"\",\"\",'1. Order'!BD340)","v":""},{"$f":"IF('1. Order'!BE340=\"\",\"\",'1. Order'!BE340)","v":""},{"$f":"IF('1. Order'!BG340=\"\",\"\",'1. Order'!BG340)","v":""},{"$f":"IF('1. Order'!BH340=\"\",\"\",'1. Order'!BH340)","v":""},{"$f":"IF('1. Order'!BI340=\"\",\"\",'1. Order'!BI340)","v":""},{"$f":"IF('1. Order'!BJ340=\"\",\"\",'1. Order'!BJ340)","v":""},{"$f":"IF('1. Order'!BK340=\"\",\"\",'1. Order'!BK340)","v":"ZWO"}]
[{"$f":"IF('1. Order'!G341=\"\",\"\",'1. Order'!G341)","v":""},{"$f":"IF('1. Order'!H341=\"\",\"\",'1. Order'!H341)","v":""},{"$f":"IF('1. Order'!I341=\"\",\"\",'1. Order'!I341)","v":""},{"$f":"IF('1. Order'!J341=\"\",\"\",'1. Order'!J341)","v":""},{"$f":"IF('1. Order'!K341=\"\",\"\",'1. Order'!K341)","v":""},{"$f":"IF('1. Order'!L341=\"\",\"\",'1. Order'!L341)","v":""},{"$f":"IF('1. Order'!M341=\"\",\"\",'1. Order'!M341)","v":""},{"$f":"IF('1. Order'!N341=\"\",\"\",'1. Order'!N341)","v":""},{"$f":"IF('1. Order'!P341=\"\",\"\",'1. Order'!P341)","v":""},{"$f":"IF('1. Order'!Q341=\"\",\"\",'1. Order'!Q341)","v":{"$error":"#N/A"}},{"$f":"IF('1. Order'!R341=\"\",\"\",'1. Order'!R341)","v":{"$error":"#N/A"}},{"$f":"IF('1. Order'!S341=\"\",\"\",'1. Order'!S341)","v":""},{"$f":"IF('1. Order'!T341=\"\",\"\",'1. Order'!T341)","v":""},{"$f":"IF('1. Order'!U341=\"\",\"\",'1. Order'!U341)","v":""},{"$f":"IF('1. Order'!X341=\"\",\"\",'1. Order'!X341)","v":""},{"$f":"IF('1. Order'!Y341=\"\",\"\",'1. Order'!Y341)","v":""},{"$f":"IF('1. Order'!Z341=\"\",\"\",'1. Order'!Z341)","v":""},{"$f":"IF('1. Order'!AC341=\"\",\"\",'1. Order'!AC341)","v":""},{"$f":"IF('1. Order'!AD341=\"\",\"\",'1. Order'!AD341)","v":""},{"$f":"IF('1. Order'!AE341=\"\",\"\",'1. Order'!AE341)","v":""},null,{"$f":"IF('1. Order'!AW341=\"\",\"\",'1. Order'!AW341)","v":""},{"$f":"IF('1. Order'!AX341=\"\",\"\",'1. Order'!AX341)","v":""},null,null,null,null,null,null,null,{"$f":"IF('1. Order'!BB341=\"\",\"\",'1. Order'!BB341)","v":""},{"$f":"IF('1. Order'!BC341=\"\",\"\",'1. Order'!BC341)","v":""},{"$f":"IF('1. Order'!BD341=\"\",\"\",'1. Order'!BD341)","v":""},{"$f":"IF('1. Order'!BE341=\"\",\"\",'1. Order'!BE341)","v":""},{"$f":"IF('1. Order'!BG341=\"\",\"\",'1. Order'!BG341)","v":""},{"$f":"IF('1. Order'!BH341=\"\",\"\",'1. Order'!BH341)","v":""},{"$f":"IF('1. Order'!BI341=\"\",\"\",'1. Order'!BI341)","v":""},{"$f":"IF('1. Order'!BJ341=\"\",\"\",'1. Order'!BJ341)","v":""},{"$f":"IF('1. Order'!BK341=\"\",\"\",'1. Order'!BK341)","v":"ZWO"}]
[{"$f":"IF('1. Order'!G342=\"\",\"\",'1. Order'!G342)","v":""},{"$f":"IF('1. Order'!H342=\"\",\"\",'1. Order'!H342)","v":""},{"$f":"IF('1. Order'!I342=\"\",\"\",'1. Order'!I342)","v":""},{"$f":"IF('1. Order'!J342=\"\",\"\",'1. Order'!J342)","v":""},{"$f":"IF('1. Order'!K342=\"\",\"\",'1. Order'!K342)","v":""},{"$f":"IF('1. Order'!L342=\"\",\"\",'1. Order'!L342)","v":""},{"$f":"IF('1. Order'!M342=\"\",\"\",'1. Order'!M342)","v":""},{"$f":"IF('1. Order'!N342=\"\",\"\",'1. Order'!N342)","v":""},{"$f":"IF('1. Order'!P342=\"\",\"\",'1. Order'!P342)","v":""},{"$f":"IF('1. Order'!Q342=\"\",\"\",'1. Order'!Q342)","v":{"$error":"#N/A"}},{"$f":"IF('1. Order'!R342=\"\",\"\",'1. Order'!R342)","v":{"$error":"#N/A"}},{"$f":"IF('1. Order'!S342=\"\",\"\",'1. Order'!S342)","v":""},{"$f":"IF('1. Order'!T342=\"\",\"\",'1. Order'!T342)","v":""},{"$f":"IF('1. Order'!U342=\"\",\"\",'1. Order'!U342)","v":""},{"$f":"IF('1. Order'!X342=\"\",\"\",'1. Order'!X342)","v":""},{"$f":"IF('1. Order'!Y342=\"\",\"\",'1. Order'!Y342)","v":""},{"$f":"IF('1. Order'!Z342=\"\",\"\",'1. Order'!Z342)","v":""},{"$f":"IF('1. Order'!AC342=\"\",\"\",'1. Order'!AC342)","v":""},{"$f":"IF('1. Order'!AD342=\"\",\"\",'1. Order'!AD342)","v":""},{"$f":"IF('1. Order'!AE342=\"\",\"\",'1. Order'!AE342)","v":""},null,{"$f":"IF('1. Order'!AW342=\"\",\"\",'1. Order'!AW342)","v":""},{"$f":"IF('1. Order'!AX342=\"\",\"\",'1. Order'!AX342)","v":""},null,null,null,null,null,null,null,{"$f":"IF('1. Order'!BB342=\"\",\"\",'1. Order'!BB342)","v":""},{"$f":"IF('1. Order'!BC342=\"\",\"\",'1. Order'!BC342)","v":""},{"$f":"IF('1. Order'!BD342=\"\",\"\",'1. Order'!BD342)","v":""},{"$f":"IF('1. Order'!BE342=\"\",\"\",'1. Order'!BE342)","v":""},{"$f":"IF('1. Order'!BG342=\"\",\"\",'1. Order'!BG342)","v":""},{"$f":"IF('1. Order'!BH342=\"\",\"\",'1. Order'!BH342)","v":""},{"$f":"IF('1. Order'!BI342=\"\",\"\",'1. Order'!BI342)","v":""},{"$f":"IF('1. Order'!BJ342=\"\",\"\",'1. Order'!BJ342)","v":""},{"$f":"IF('1. Order'!BK342=\"\",\"\",'1. Order'!BK342)","v":"ZWO"}]
[{"$f":"IF('1. Order'!G343=\"\",\"\",'1. Order'!G343)","v":""},{"$f":"IF('1. Order'!H343=\"\",\"\",'1. Order'!H343)","v":""},{"$f":"IF('1. Order'!I343=\"\",\"\",'1. Order'!I343)","v":""},{"$f":"IF('1. Order'!J343=\"\",\"\",'1. Order'!J343)","v":""},{"$f":"IF('1. Order'!K343=\"\",\"\",'1. Order'!K343)","v":""},{"$f":"IF('1. Order'!L343=\"\",\"\",'1. Order'!L343)","v":""},{"$f":"IF('1. Order'!M343=\"\",\"\",'1. Order'!M343)","v":""},{"$f":"IF('1. Order'!N343=\"\",\"\",'1. Order'!N343)","v":""},{"$f":"IF('1. Order'!P343=\"\",\"\",'1. Order'!P343)","v":""},{"$f":"IF('1. Order'!Q343=\"\",\"\",'1. Order'!Q343)","v":{"$error":"#N/A"}},{"$f":"IF('1. Order'!R343=\"\",\"\",'1. Order'!R343)","v":{"$error":"#N/A"}},{"$f":"IF('1. Order'!S343=\"\",\"\",'1. Order'!S343)","v":""},{"$f":"IF('1. Order'!T343=\"\",\"\",'1. Order'!T343)","v":""},{"$f":"IF('1. Order'!U343=\"\",\"\",'1. Order'!U343)","v":""},{"$f":"IF('1. Order'!X343=\"\",\"\",'1. Order'!X343)","v":""},{"$f":"IF('1. Order'!Y343=\"\",\"\",'1. Order'!Y343)","v":""},{"$f":"IF('1. Order'!Z343=\"\",\"\",'1. Order'!Z343)","v":""},{"$f":"IF('1. Order'!AC343=\"\",\"\",'1. Order'!AC343)","v":""},{"$f":"IF('1. Order'!AD343=\"\",\"\",'1. Order'!AD343)","v":""},{"$f":"IF('1. Order'!AE343=\"\",\"\",'1. Order'!AE343)","v":""},null,{"$f":"IF('1. Order'!AW343=\"\",\"\",'1. Order'!AW343)","v":""},{"$f":"IF('1. Order'!AX343=\"\",\"\",'1. Order'!AX343)","v":""},null,null,null,null,null,null,null,{"$f":"IF('1. Order'!BB343=\"\",\"\",'1. Order'!BB343)","v":""},{"$f":"IF('1. Order'!BC343=\"\",\"\",'1. Order'!BC343)","v":""},{"$f":"IF('1. Order'!BD343=\"\",\"\",'1. Order'!BD343)","v":""},{"$f":"IF('1. Order'!BE343=\"\",\"\",'1. Order'!BE343)","v":""},{"$f":"IF('1. Order'!BG343=\"\",\"\",'1. Order'!BG343)","v":""},{"$f":"IF('1. Order'!BH343=\"\",\"\",'1. Order'!BH343)","v":""},{"$f":"IF('1. Order'!BI343=\"\",\"\",'1. Order'!BI343)","v":""},{"$f":"IF('1. Order'!BJ343=\"\",\"\",'1. Order'!BJ343)","v":""},{"$f":"IF('1. Order'!BK343=\"\",\"\",'1. Order'!BK343)","v":"ZWO"}]
[{"$f":"IF('1. Order'!G344=\"\",\"\",'1. Order'!G344)","v":""},{"$f":"IF('1. Order'!H344=\"\",\"\",'1. Order'!H344)","v":""},{"$f":"IF('1. Order'!I344=\"\",\"\",'1. Order'!I344)","v":""},{"$f":"IF('1. Order'!J344=\"\",\"\",'1. Order'!J344)","v":""},{"$f":"IF('1. Order'!K344=\"\",\"\",'1. Order'!K344)","v":""},{"$f":"IF('1. Order'!L344=\"\",\"\",'1. Order'!L344)","v":""},{"$f":"IF('1. Order'!M344=\"\",\"\",'1. Order'!M344)","v":""},{"$f":"IF('1. Order'!N344=\"\",\"\",'1. Order'!N344)","v":""},{"$f":"IF('1. Order'!P344=\"\",\"\",'1. Order'!P344)","v":""},{"$f":"IF('1. Order'!Q344=\"\",\"\",'1. Order'!Q344)","v":{"$error":"#N/A"}},{"$f":"IF('1. Order'!R344=\"\",\"\",'1. Order'!R344)","v":{"$error":"#N/A"}},{"$f":"IF('1. Order'!S344=\"\",\"\",'1. Order'!S344)","v":""},{"$f":"IF('1. Order'!T344=\"\",\"\",'1. Order'!T344)","v":""},{"$f":"IF('1. Order'!U344=\"\",\"\",'1. Order'!U344)","v":""},{"$f":"IF('1. Order'!X344=\"\",\"\",'1. Order'!X344)","v":""},{"$f":"IF('1. Order'!Y344=\"\",\"\",'1. Order'!Y344)","v":""},{"$f":"IF('1. Order'!Z344=\"\",\"\",'1. Order'!Z344)","v":""},{"$f":"IF('1. Order'!AC344=\"\",\"\",'1. Order'!AC344)","v":""},{"$f":"IF('1. Order'!AD344=\"\",\"\",'1. Order'!AD344)","v":""},{"$f":"IF('1. Order'!AE344=\"\",\"\",'1. Order'!AE344)","v":""},null,{"$f":"IF('1. Order'!AW344=\"\",\"\",'1. Order'!AW344)","v":""},{"$f":"IF('1. Order'!AX344=\"\",\"\",'1. Order'!AX344)","v":""},null,null,null,null,null,null,null,{"$f":"IF('1. Order'!BB344=\"\",\"\",'1. Order'!BB344)","v":""},{"$f":"IF('1. Order'!BC344=\"\",\"\",'1. Order'!BC344)","v":""},{"$f":"IF('1. Order'!BD344=\"\",\"\",'1. Order'!BD344)","v":""},{"$f":"IF('1. Order'!BE344=\"\",\"\",'1. Order'!BE344)","v":""},{"$f":"IF('1. Order'!BG344=\"\",\"\",'1. Order'!BG344)","v":""},{"$f":"IF('1. Order'!BH344=\"\",\"\",'1. Order'!BH344)","v":""},{"$f":"IF('1. Order'!BI344=\"\",\"\",'1. Order'!BI344)","v":""},{"$f":"IF('1. Order'!BJ344=\"\",\"\",'1. Order'!BJ344)","v":""},{"$f":"IF('1. Order'!BK344=\"\",\"\",'1. Order'!BK344)","v":"ZWO"}]
[{"$f":"IF('1. Order'!G345=\"\",\"\",'1. Order'!G345)","v":""},{"$f":"IF('1. Order'!H345=\"\",\"\",'1. Order'!H345)","v":""},{"$f":"IF('1. Order'!I345=\"\",\"\",'1. Order'!I345)","v":""},{"$f":"IF('1. Order'!J345=\"\",\"\",'1. Order'!J345)","v":""},{"$f":"IF('1. Order'!K345=\"\",\"\",'1. Order'!K345)","v":""},{"$f":"IF('1. Order'!L345=\"\",\"\",'1. Order'!L345)","v":""},{"$f":"IF('1. Order'!M345=\"\",\"\",'1. Order'!M345)","v":""},{"$f":"IF('1. Order'!N345=\"\",\"\",'1. Order'!N345)","v":""},{"$f":"IF('1. Order'!P345=\"\",\"\",'1. Order'!P345)","v":""},{"$f":"IF('1. Order'!Q345=\"\",\"\",'1. Order'!Q345)","v":{"$error":"#N/A"}},{"$f":"IF('1. Order'!R345=\"\",\"\",'1. Order'!R345)","v":{"$error":"#N/A"}},{"$f":"IF('1. Order'!S345=\"\",\"\",'1. Order'!S345)","v":""},{"$f":"IF('1. Order'!T345=\"\",\"\",'1. Order'!T345)","v":""},{"$f":"IF('1. Order'!U345=\"\",\"\",'1. Order'!U345)","v":""},{"$f":"IF('1. Order'!X345=\"\",\"\",'1. Order'!X345)","v":""},{"$f":"IF('1. Order'!Y345=\"\",\"\",'1. Order'!Y345)","v":""},{"$f":"IF('1. Order'!Z345=\"\",\"\",'1. Order'!Z345)","v":""},{"$f":"IF('1. Order'!AC345=\"\",\"\",'1. Order'!AC345)","v":""},{"$f":"IF('1. Order'!AD345=\"\",\"\",'1. Order'!AD345)","v":""},{"$f":"IF('1. Order'!AE345=\"\",\"\",'1. Order'!AE345)","v":""},null,{"$f":"IF('1. Order'!AW345=\"\",\"\",'1. Order'!AW345)","v":""},{"$f":"IF('1. Order'!AX345=\"\",\"\",'1. Order'!AX345)","v":""},null,null,null,null,null,null,null,{"$f":"IF('1. Order'!BB345=\"\",\"\",'1. Order'!BB345)","v":""},{"$f":"IF('1. Order'!BC345=\"\",\"\",'1. Order'!BC345)","v":""},{"$f":"IF('1. Order'!BD345=\"\",\"\",'1. Order'!BD345)","v":""},{"$f":"IF('1. Order'!BE345=\"\",\"\",'1. Order'!BE345)","v":""},{"$f":"IF('1. Order'!BG345=\"\",\"\",'1. Order'!BG345)","v":""},{"$f":"IF('1. Order'!BH345=\"\",\"\",'1. Order'!BH345)","v":""},{"$f":"IF('1. Order'!BI345=\"\",\"\",'1. Order'!BI345)","v":""},{"$f":"IF('1. Order'!BJ345=\"\",\"\",'1. Order'!BJ345)","v":""},{"$f":"IF('1. Order'!BK345=\"\",\"\",'1. Order'!BK345)","v":"ZWO"}]
[{"$f":"IF('1. Order'!G346=\"\",\"\",'1. Order'!G346)","v":""},{"$f":"IF('1. Order'!H346=\"\",\"\",'1. Order'!H346)","v":""},{"$f":"IF('1. Order'!I346=\"\",\"\",'1. Order'!I346)","v":""},{"$f":"IF('1. Order'!J346=\"\",\"\",'1. Order'!J346)","v":""},{"$f":"IF('1. Order'!K346=\"\",\"\",'1. Order'!K346)","v":""},{"$f":"IF('1. Order'!L346=\"\",\"\",'1. Order'!L346)","v":""},{"$f":"IF('1. Order'!M346=\"\",\"\",'1. Order'!M346)","v":""},{"$f":"IF('1. Order'!N346=\"\",\"\",'1. Order'!N346)","v":""},{"$f":"IF('1. Order'!P346=\"\",\"\",'1. Order'!P346)","v":""},{"$f":"IF('1. Order'!Q346=\"\",\"\",'1. Order'!Q346)","v":{"$error":"#N/A"}},{"$f":"IF('1. Order'!R346=\"\",\"\",'1. Order'!R346)","v":{"$error":"#N/A"}},{"$f":"IF('1. Order'!S346=\"\",\"\",'1. Order'!S346)","v":""},{"$f":"IF('1. Order'!T346=\"\",\"\",'1. Order'!T346)","v":""},{"$f":"IF('1. Order'!U346=\"\",\"\",'1. Order'!U346)","v":""},{"$f":"IF('1. Order'!X346=\"\",\"\",'1. Order'!X346)","v":""},{"$f":"IF('1. Order'!Y346=\"\",\"\",'1. Order'!Y346)","v":""},{"$f":"IF('1. Order'!Z346=\"\",\"\",'1. Order'!Z346)","v":""},{"$f":"IF('1. Order'!AC346=\"\",\"\",'1. Order'!AC346)","v":""},{"$f":"IF('1. Order'!AD346=\"\",\"\",'1. Order'!AD346)","v":""},{"$f":"IF('1. Order'!AE346=\"\",\"\",'1. Order'!AE346)","v":""},null,{"$f":"IF('1. Order'!AW346=\"\",\"\",'1. Order'!AW346)","v":""},{"$f":"IF('1. Order'!AX346=\"\",\"\",'1. Order'!AX346)","v":""},null,null,null,null,null,null,null,{"$f":"IF('1. Order'!BB346=\"\",\"\",'1. Order'!BB346)","v":""},{"$f":"IF('1. Order'!BC346=\"\",\"\",'1. Order'!BC346)","v":""},{"$f":"IF('1. Order'!BD346=\"\",\"\",'1. Order'!BD346)","v":""},{"$f":"IF('1. Order'!BE346=\"\",\"\",'1. Order'!BE346)","v":""},{"$f":"IF('1. Order'!BG346=\"\",\"\",'1. Order'!BG346)","v":""},{"$f":"IF('1. Order'!BH346=\"\",\"\",'1. Order'!BH346)","v":""},{"$f":"IF('1. Order'!BI346=\"\",\"\",'1. Order'!BI346)","v":""},{"$f":"IF('1. Order'!BJ346=\"\",\"\",'1. Order'!BJ346)","v":""},{"$f":"IF('1. Order'!BK346=\"\",\"\",'1. Order'!BK346)","v":"ZWO"}]
[{"$f":"IF('1. Order'!G347=\"\",\"\",'1. Order'!G347)","v":""},{"$f":"IF('1. Order'!H347=\"\",\"\",'1. Order'!H347)","v":""},{"$f":"IF('1. Order'!I347=\"\",\"\",'1. Order'!I347)","v":""},{"$f":"IF('1. Order'!J347=\"\",\"\",'1. Order'!J347)","v":""},{"$f":"IF('1. Order'!K347=\"\",\"\",'1. Order'!K347)","v":""},{"$f":"IF('1. Order'!L347=\"\",\"\",'1. Order'!L347)","v":""},{"$f":"IF('1. Order'!M347=\"\",\"\",'1. Order'!M347)","v":""},{"$f":"IF('1. Order'!N347=\"\",\"\",'1. Order'!N347)","v":""},{"$f":"IF('1. Order'!P347=\"\",\"\",'1. Order'!P347)","v":""},{"$f":"IF('1. Order'!Q347=\"\",\"\",'1. Order'!Q347)","v":{"$error":"#N/A"}},{"$f":"IF('1. Order'!R347=\"\",\"\",'1. Order'!R347)","v":{"$error":"#N/A"}},{"$f":"IF('1. Order'!S347=\"\",\"\",'1. Order'!S347)","v":""},{"$f":"IF('1. Order'!T347=\"\",\"\",'1. Order'!T347)","v":""},{"$f":"IF('1. Order'!U347=\"\",\"\",'1. Order'!U347)","v":""},{"$f":"IF('1. Order'!X347=\"\",\"\",'1. Order'!X347)","v":""},{"$f":"IF('1. Order'!Y347=\"\",\"\",'1. Order'!Y347)","v":""},{"$f":"IF('1. Order'!Z347=\"\",\"\",'1. Order'!Z347)","v":""},{"$f":"IF('1. Order'!AC347=\"\",\"\",'1. Order'!AC347)","v":""},{"$f":"IF('1. Order'!AD347=\"\",\"\",'1. Order'!AD347)","v":""},{"$f":"IF('1. Order'!AE347=\"\",\"\",'1. Order'!AE347)","v":""},null,{"$f":"IF('1. Order'!AW347=\"\",\"\",'1. Order'!AW347)","v":""},{"$f":"IF('1. Order'!AX347=\"\",\"\",'1. Order'!AX347)","v":""},null,null,null,null,null,null,null,{"$f":"IF('1. Order'!BB347=\"\",\"\",'1. Order'!BB347)","v":""},{"$f":"IF('1. Order'!BC347=\"\",\"\",'1. Order'!BC347)","v":""},{"$f":"IF('1. Order'!BD347=\"\",\"\",'1. Order'!BD347)","v":""},{"$f":"IF('1. Order'!BE347=\"\",\"\",'1. Order'!BE347)","v":""},{"$f":"IF('1. Order'!BG347=\"\",\"\",'1. Order'!BG347)","v":""},{"$f":"IF('1. Order'!BH347=\"\",\"\",'1. Order'!BH347)","v":""},{"$f":"IF('1. Order'!BI347=\"\",\"\",'1. Order'!BI347)","v":""},{"$f":"IF('1. Order'!BJ347=\"\",\"\",'1. Order'!BJ347)","v":""},{"$f":"IF('1. Order'!BK347=\"\",\"\",'1. Order'!BK347)","v":"ZWO"}]
[{"$f":"IF('1. Order'!G348=\"\",\"\",'1. Order'!G348)","v":""},{"$f":"IF('1. Order'!H348=\"\",\"\",'1. Order'!H348)","v":""},{"$f":"IF('1. Order'!I348=\"\",\"\",'1. Order'!I348)","v":""},{"$f":"IF('1. Order'!J348=\"\",\"\",'1. Order'!J348)","v":""},{"$f":"IF('1. Order'!K348=\"\",\"\",'1. Order'!K348)","v":""},{"$f":"IF('1. Order'!L348=\"\",\"\",'1. Order'!L348)","v":""},{"$f":"IF('1. Order'!M348=\"\",\"\",'1. Order'!M348)","v":""},{"$f":"IF('1. Order'!N348=\"\",\"\",'1. Order'!N348)","v":""},{"$f":"IF('1. Order'!P348=\"\",\"\",'1. Order'!P348)","v":""},{"$f":"IF('1. Order'!Q348=\"\",\"\",'1. Order'!Q348)","v":{"$error":"#N/A"}},{"$f":"IF('1. Order'!R348=\"\",\"\",'1. Order'!R348)","v":{"$error":"#N/A"}},{"$f":"IF('1. Order'!S348=\"\",\"\",'1. Order'!S348)","v":""},{"$f":"IF('1. Order'!T348=\"\",\"\",'1. Order'!T348)","v":""},{"$f":"IF('1. Order'!U348=\"\",\"\",'1. Order'!U348)","v":""},{"$f":"IF('1. Order'!X348=\"\",\"\",'1. Order'!X348)","v":""},{"$f":"IF('1. Order'!Y348=\"\",\"\",'1. Order'!Y348)","v":""},{"$f":"IF('1. Order'!Z348=\"\",\"\",'1. Order'!Z348)","v":""},{"$f":"IF('1. Order'!AC348=\"\",\"\",'1. Order'!AC348)","v":""},{"$f":"IF('1. Order'!AD348=\"\",\"\",'1. Order'!AD348)","v":""},{"$f":"IF('1. Order'!AE348=\"\",\"\",'1. Order'!AE348)","v":""},null,{"$f":"IF('1. Order'!AW348=\"\",\"\",'1. Order'!AW348)","v":""},{"$f":"IF('1. Order'!AX348=\"\",\"\",'1. Order'!AX348)","v":""},null,null,null,null,null,null,null,{"$f":"IF('1. Order'!BB348=\"\",\"\",'1. Order'!BB348)","v":""},{"$f":"IF('1. Order'!BC348=\"\",\"\",'1. Order'!BC348)","v":""},{"$f":"IF('1. Order'!BD348=\"\",\"\",'1. Order'!BD348)","v":""},{"$f":"IF('1. Order'!BE348=\"\",\"\",'1. Order'!BE348)","v":""},{"$f":"IF('1. Order'!BG348=\"\",\"\",'1. Order'!BG348)","v":""},{"$f":"IF('1. Order'!BH348=\"\",\"\",'1. Order'!BH348)","v":""},{"$f":"IF('1. Order'!BI348=\"\",\"\",'1. Order'!BI348)","v":""},{"$f":"IF('1. Order'!BJ348=\"\",\"\",'1. Order'!BJ348)","v":""},{"$f":"IF('1. Order'!BK348=\"\",\"\",'1. Order'!BK348)","v":"ZWO"}]
[{"$f":"IF('1. Order'!G349=\"\",\"\",'1. Order'!G349)","v":""},{"$f":"IF('1. Order'!H349=\"\",\"\",'1. Order'!H349)","v":""},{"$f":"IF('1. Order'!I349=\"\",\"\",'1. Order'!I349)","v":""},{"$f":"IF('1. Order'!J349=\"\",\"\",'1. Order'!J349)","v":""},{"$f":"IF('1. Order'!K349=\"\",\"\",'1. Order'!K349)","v":""},{"$f":"IF('1. Order'!L349=\"\",\"\",'1. Order'!L349)","v":""},{"$f":"IF('1. Order'!M349=\"\",\"\",'1. Order'!M349)","v":""},{"$f":"IF('1. Order'!N349=\"\",\"\",'1. Order'!N349)","v":""},{"$f":"IF('1. Order'!P349=\"\",\"\",'1. Order'!P349)","v":""},{"$f":"IF('1. Order'!Q349=\"\",\"\",'1. Order'!Q349)","v":{"$error":"#N/A"}},{"$f":"IF('1. Order'!R349=\"\",\"\",'1. Order'!R349)","v":{"$error":"#N/A"}},{"$f":"IF('1. Order'!S349=\"\",\"\",'1. Order'!S349)","v":""},{"$f":"IF('1. Order'!T349=\"\",\"\",'1. Order'!T349)","v":""},{"$f":"IF('1. Order'!U349=\"\",\"\",'1. Order'!U349)","v":""},{"$f":"IF('1. Order'!X349=\"\",\"\",'1. Order'!X349)","v":""},{"$f":"IF('1. Order'!Y349=\"\",\"\",'1. Order'!Y349)","v":""},{"$f":"IF('1. Order'!Z349=\"\",\"\",'1. Order'!Z349)","v":""},{"$f":"IF('1. Order'!AC349=\"\",\"\",'1. Order'!AC349)","v":""},{"$f":"IF('1. Order'!AD349=\"\",\"\",'1. Order'!AD349)","v":""},{"$f":"IF('1. Order'!AE349=\"\",\"\",'1. Order'!AE349)","v":""},null,{"$f":"IF('1. Order'!AW349=\"\",\"\",'1. Order'!AW349)","v":""},{"$f":"IF('1. Order'!AX349=\"\",\"\",'1. Order'!AX349)","v":""},null,null,null,null,null,null,null,{"$f":"IF('1. Order'!BB349=\"\",\"\",'1. Order'!BB349)","v":""},{"$f":"IF('1. Order'!BC349=\"\",\"\",'1. Order'!BC349)","v":""},{"$f":"IF('1. Order'!BD349=\"\",\"\",'1. Order'!BD349)","v":""},{"$f":"IF('1. Order'!BE349=\"\",\"\",'1. Order'!BE349)","v":""},{"$f":"IF('1. Order'!BG349=\"\",\"\",'1. Order'!BG349)","v":""},{"$f":"IF('1. Order'!BH349=\"\",\"\",'1. Order'!BH349)","v":""},{"$f":"IF('1. Order'!BI349=\"\",\"\",'1. Order'!BI349)","v":""},{"$f":"IF('1. Order'!BJ349=\"\",\"\",'1. Order'!BJ349)","v":""},{"$f":"IF('1. Order'!BK349=\"\",\"\",'1. Order'!BK349)","v":"ZWO"}]
[{"$f":"IF('1. Order'!G350=\"\",\"\",'1. Order'!G350)","v":""},{"$f":"IF('1. Order'!H350=\"\",\"\",'1. Order'!H350)","v":""},{"$f":"IF('1. Order'!I350=\"\",\"\",'1. Order'!I350)","v":""},{"$f":"IF('1. Order'!J350=\"\",\"\",'1. Order'!J350)","v":""},{"$f":"IF('1. Order'!K350=\"\",\"\",'1. Order'!K350)","v":""},{"$f":"IF('1. Order'!L350=\"\",\"\",'1. Order'!L350)","v":""},{"$f":"IF('1. Order'!M350=\"\",\"\",'1. Order'!M350)","v":""},{"$f":"IF('1. Order'!N350=\"\",\"\",'1. Order'!N350)","v":""},{"$f":"IF('1. Order'!P350=\"\",\"\",'1. Order'!P350)","v":""},{"$f":"IF('1. Order'!Q350=\"\",\"\",'1. Order'!Q350)","v":{"$error":"#N/A"}},{"$f":"IF('1. Order'!R350=\"\",\"\",'1. Order'!R350)","v":{"$error":"#N/A"}},{"$f":"IF('1. Order'!S350=\"\",\"\",'1. Order'!S350)","v":""},{"$f":"IF('1. Order'!T350=\"\",\"\",'1. Order'!T350)","v":""},{"$f":"IF('1. Order'!U350=\"\",\"\",'1. Order'!U350)","v":""},{"$f":"IF('1. Order'!X350=\"\",\"\",'1. Order'!X350)","v":""},{"$f":"IF('1. Order'!Y350=\"\",\"\",'1. Order'!Y350)","v":""},{"$f":"IF('1. Order'!Z350=\"\",\"\",'1. Order'!Z350)","v":""},{"$f":"IF('1. Order'!AC350=\"\",\"\",'1. Order'!AC350)","v":""},{"$f":"IF('1. Order'!AD350=\"\",\"\",'1. Order'!AD350)","v":""},{"$f":"IF('1. Order'!AE350=\"\",\"\",'1. Order'!AE350)","v":""},null,{"$f":"IF('1. Order'!AW350=\"\",\"\",'1. Order'!AW350)","v":""},{"$f":"IF('1. Order'!AX350=\"\",\"\",'1. Order'!AX350)","v":""},null,null,null,null,null,null,null,{"$f":"IF('1. Order'!BB350=\"\",\"\",'1. Order'!BB350)","v":""},{"$f":"IF('1. Order'!BC350=\"\",\"\",'1. Order'!BC350)","v":""},{"$f":"IF('1. Order'!BD350=\"\",\"\",'1. Order'!BD350)","v":""},{"$f":"IF('1. Order'!BE350=\"\",\"\",'1. Order'!BE350)","v":""},{"$f":"IF('1. Order'!BG350=\"\",\"\",'1. Order'!BG350)","v":""},{"$f":"IF('1. Order'!BH350=\"\",\"\",'1. Order'!BH350)","v":""},{"$f":"IF('1. Order'!BI350=\"\",\"\",'1. Order'!BI350)","v":""},{"$f":"IF('1. Order'!BJ350=\"\",\"\",'1. Order'!BJ350)","v":""},{"$f":"IF('1. Order'!BK350=\"\",\"\",'1. Order'!BK350)","v":"ZWO"}]
[{"$f":"IF('1. Order'!G351=\"\",\"\",'1. Order'!G351)","v":""},{"$f":"IF('1. Order'!H351=\"\",\"\",'1. Order'!H351)","v":""},{"$f":"IF('1. Order'!I351=\"\",\"\",'1. Order'!I351)","v":""},{"$f":"IF('1. Order'!J351=\"\",\"\",'1. Order'!J351)","v":""},{"$f":"IF('1. Order'!K351=\"\",\"\",'1. Order'!K351)","v":""},{"$f":"IF('1. Order'!L351=\"\",\"\",'1. Order'!L351)","v":""},{"$f":"IF('1. Order'!M351=\"\",\"\",'1. Order'!M351)","v":""},{"$f":"IF('1. Order'!N351=\"\",\"\",'1. Order'!N351)","v":""},{"$f":"IF('1. Order'!P351=\"\",\"\",'1. Order'!P351)","v":""},{"$f":"IF('1. Order'!Q351=\"\",\"\",'1. Order'!Q351)","v":{"$error":"#N/A"}},{"$f":"IF('1. Order'!R351=\"\",\"\",'1. Order'!R351)","v":{"$error":"#N/A"}},{"$f":"IF('1. Order'!S351=\"\",\"\",'1. Order'!S351)","v":""},{"$f":"IF('1. Order'!T351=\"\",\"\",'1. Order'!T351)","v":""},{"$f":"IF('1. Order'!U351=\"\",\"\",'1. Order'!U351)","v":""},{"$f":"IF('1. Order'!X351=\"\",\"\",'1. Order'!X351)","v":""},{"$f":"IF('1. Order'!Y351=\"\",\"\",'1. Order'!Y351)","v":""},{"$f":"IF('1. Order'!Z351=\"\",\"\",'1. Order'!Z351)","v":""},{"$f":"IF('1. Order'!AC351=\"\",\"\",'1. Order'!AC351)","v":""},{"$f":"IF('1. Order'!AD351=\"\",\"\",'1. Order'!AD351)","v":""},{"$f":"IF('1. Order'!AE351=\"\",\"\",'1. Order'!AE351)","v":""},null,{"$f":"IF('1. Order'!AW351=\"\",\"\",'1. Order'!AW351)","v":""},{"$f":"IF('1. Order'!AX351=\"\",\"\",'1. Order'!AX351)","v":""},null,null,null,null,null,null,null,{"$f":"IF('1. Order'!BB351=\"\",\"\",'1. Order'!BB351)","v":""},{"$f":"IF('1. Order'!BC351=\"\",\"\",'1. Order'!BC351)","v":""},{"$f":"IF('1. Order'!BD351=\"\",\"\",'1. Order'!BD351)","v":""},{"$f":"IF('1. Order'!BE351=\"\",\"\",'1. Order'!BE351)","v":""},{"$f":"IF('1. Order'!BG351=\"\",\"\",'1. Order'!BG351)","v":""},{"$f":"IF('1. Order'!BH351=\"\",\"\",'1. Order'!BH351)","v":""},{"$f":"IF('1. Order'!BI351=\"\",\"\",'1. Order'!BI351)","v":""},{"$f":"IF('1. Order'!BJ351=\"\",\"\",'1. Order'!BJ351)","v":""},{"$f":"IF('1. Order'!BK351=\"\",\"\",'1. Order'!BK351)","v":"ZWO"}]
[{"$f":"IF('1. Order'!G352=\"\",\"\",'1. Order'!G352)","v":""},{"$f":"IF('1. Order'!H352=\"\",\"\",'1. Order'!H352)","v":""},{"$f":"IF('1. Order'!I352=\"\",\"\",'1. Order'!I352)","v":""},{"$f":"IF('1. Order'!J352=\"\",\"\",'1. Order'!J352)","v":""},{"$f":"IF('1. Order'!K352=\"\",\"\",'1. Order'!K352)","v":""},{"$f":"IF('1. Order'!L352=\"\",\"\",'1. Order'!L352)","v":""},{"$f":"IF('1. Order'!M352=\"\",\"\",'1. Order'!M352)","v":""},{"$f":"IF('1. Order'!N352=\"\",\"\",'1. Order'!N352)","v":""},{"$f":"IF('1. Order'!P352=\"\",\"\",'1. Order'!P352)","v":""},{"$f":"IF('1. Order'!Q352=\"\",\"\",'1. Order'!Q352)","v":{"$error":"#N/A"}},{"$f":"IF('1. Order'!R352=\"\",\"\",'1. Order'!R352)","v":{"$error":"#N/A"}},{"$f":"IF('1. Order'!S352=\"\",\"\",'1. Order'!S352)","v":""},{"$f":"IF('1. Order'!T352=\"\",\"\",'1. Order'!T352)","v":""},{"$f":"IF('1. Order'!U352=\"\",\"\",'1. Order'!U352)","v":""},{"$f":"IF('1. Order'!X352=\"\",\"\",'1. Order'!X352)","v":""},{"$f":"IF('1. Order'!Y352=\"\",\"\",'1. Order'!Y352)","v":""},{"$f":"IF('1. Order'!Z352=\"\",\"\",'1. Order'!Z352)","v":""},{"$f":"IF('1. Order'!AC352=\"\",\"\",'1. Order'!AC352)","v":""},{"$f":"IF('1. Order'!AD352=\"\",\"\",'1. Order'!AD352)","v":""},{"$f":"IF('1. Order'!AE352=\"\",\"\",'1. Order'!AE352)","v":""},null,{"$f":"IF('1. Order'!AW352=\"\",\"\",'1. Order'!AW352)","v":""},{"$f":"IF('1. Order'!AX352=\"\",\"\",'1. Order'!AX352)","v":""},null,null,null,null,null,null,null,{"$f":"IF('1. Order'!BB352=\"\",\"\",'1. Order'!BB352)","v":""},{"$f":"IF('1. Order'!BC352=\"\",\"\",'1. Order'!BC352)","v":""},{"$f":"IF('1. Order'!BD352=\"\",\"\",'1. Order'!BD352)","v":""},{"$f":"IF('1. Order'!BE352=\"\",\"\",'1. Order'!BE352)","v":""},{"$f":"IF('1. Order'!BG352=\"\",\"\",'1. Order'!BG352)","v":""},{"$f":"IF('1. Order'!BH352=\"\",\"\",'1. Order'!BH352)","v":""},{"$f":"IF('1. Order'!BI352=\"\",\"\",'1. Order'!BI352)","v":""},{"$f":"IF('1. Order'!BJ352=\"\",\"\",'1. Order'!BJ352)","v":""},{"$f":"IF('1. Order'!BK352=\"\",\"\",'1. Order'!BK352)","v":"ZWO"}]
[{"$f":"IF('1. Order'!G353=\"\",\"\",'1. Order'!G353)","v":""},{"$f":"IF('1. Order'!H353=\"\",\"\",'1. Order'!H353)","v":""},{"$f":"IF('1. Order'!I353=\"\",\"\",'1. Order'!I353)","v":""},{"$f":"IF('1. Order'!J353=\"\",\"\",'1. Order'!J353)","v":""},{"$f":"IF('1. Order'!K353=\"\",\"\",'1. Order'!K353)","v":""},{"$f":"IF('1. Order'!L353=\"\",\"\",'1. Order'!L353)","v":""},{"$f":"IF('1. Order'!M353=\"\",\"\",'1. Order'!M353)","v":""},{"$f":"IF('1. Order'!N353=\"\",\"\",'1. Order'!N353)","v":""},{"$f":"IF('1. Order'!P353=\"\",\"\",'1. Order'!P353)","v":""},{"$f":"IF('1. Order'!Q353=\"\",\"\",'1. Order'!Q353)","v":{"$error":"#N/A"}},{"$f":"IF('1. Order'!R353=\"\",\"\",'1. Order'!R353)","v":{"$error":"#N/A"}},{"$f":"IF('1. Order'!S353=\"\",\"\",'1. Order'!S353)","v":""},{"$f":"IF('1. Order'!T353=\"\",\"\",'1. Order'!T353)","v":""},{"$f":"IF('1. Order'!U353=\"\",\"\",'1. Order'!U353)","v":""},{"$f":"IF('1. Order'!X353=\"\",\"\",'1. Order'!X353)","v":""},{"$f":"IF('1. Order'!Y353=\"\",\"\",'1. Order'!Y353)","v":""},{"$f":"IF('1. Order'!Z353=\"\",\"\",'1. Order'!Z353)","v":""},{"$f":"IF('1. Order'!AC353=\"\",\"\",'1. Order'!AC353)","v":""},{"$f":"IF('1. Order'!AD353=\"\",\"\",'1. Order'!AD353)","v":""},{"$f":"IF('1. Order'!AE353=\"\",\"\",'1. Order'!AE353)","v":""},null,{"$f":"IF('1. Order'!AW353=\"\",\"\",'1. Order'!AW353)","v":""},{"$f":"IF('1. Order'!AX353=\"\",\"\",'1. Order'!AX353)","v":""},null,null,null,null,null,null,null,{"$f":"IF('1. Order'!BB353=\"\",\"\",'1. Order'!BB353)","v":""},{"$f":"IF('1. Order'!BC353=\"\",\"\",'1. Order'!BC353)","v":""},{"$f":"IF('1. Order'!BD353=\"\",\"\",'1. Order'!BD353)","v":""},{"$f":"IF('1. Order'!BE353=\"\",\"\",'1. Order'!BE353)","v":""},{"$f":"IF('1. Order'!BG353=\"\",\"\",'1. Order'!BG353)","v":""},{"$f":"IF('1. Order'!BH353=\"\",\"\",'1. Order'!BH353)","v":""},{"$f":"IF('1. Order'!BI353=\"\",\"\",'1. Order'!BI353)","v":""},{"$f":"IF('1. Order'!BJ353=\"\",\"\",'1. Order'!BJ353)","v":""},{"$f":"IF('1. Order'!BK353=\"\",\"\",'1. Order'!BK353)","v":"ZWO"}]
[{"$f":"IF('1. Order'!G354=\"\",\"\",'1. Order'!G354)","v":""},{"$f":"IF('1. Order'!H354=\"\",\"\",'1. Order'!H354)","v":""},{"$f":"IF('1. Order'!I354=\"\",\"\",'1. Order'!I354)","v":""},{"$f":"IF('1. Order'!J354=\"\",\"\",'1. Order'!J354)","v":""},{"$f":"IF('1. Order'!K354=\"\",\"\",'1. Order'!K354)","v":""},{"$f":"IF('1. Order'!L354=\"\",\"\",'1. Order'!L354)","v":""},{"$f":"IF('1. Order'!M354=\"\",\"\",'1. Order'!M354)","v":""},{"$f":"IF('1. Order'!N354=\"\",\"\",'1. Order'!N354)","v":""},{"$f":"IF('1. Order'!P354=\"\",\"\",'1. Order'!P354)","v":""},{"$f":"IF('1. Order'!Q354=\"\",\"\",'1. Order'!Q354)","v":{"$error":"#N/A"}},{"$f":"IF('1. Order'!R354=\"\",\"\",'1. Order'!R354)","v":{"$error":"#N/A"}},{"$f":"IF('1. Order'!S354=\"\",\"\",'1. Order'!S354)","v":""},{"$f":"IF('1. Order'!T354=\"\",\"\",'1. Order'!T354)","v":""},{"$f":"IF('1. Order'!U354=\"\",\"\",'1. Order'!U354)","v":""},{"$f":"IF('1. Order'!X354=\"\",\"\",'1. Order'!X354)","v":""},{"$f":"IF('1. Order'!Y354=\"\",\"\",'1. Order'!Y354)","v":""},{"$f":"IF('1. Order'!Z354=\"\",\"\",'1. Order'!Z354)","v":""},{"$f":"IF('1. Order'!AC354=\"\",\"\",'1. Order'!AC354)","v":""},{"$f":"IF('1. Order'!AD354=\"\",\"\",'1. Order'!AD354)","v":""},{"$f":"IF('1. Order'!AE354=\"\",\"\",'1. Order'!AE354)","v":""},null,{"$f":"IF('1. Order'!AW354=\"\",\"\",'1. Order'!AW354)","v":""},{"$f":"IF('1. Order'!AX354=\"\",\"\",'1. Order'!AX354)","v":""},null,null,null,null,null,null,null,{"$f":"IF('1. Order'!BB354=\"\",\"\",'1. Order'!BB354)","v":""},{"$f":"IF('1. Order'!BC354=\"\",\"\",'1. Order'!BC354)","v":""},{"$f":"IF('1. Order'!BD354=\"\",\"\",'1. Order'!BD354)","v":""},{"$f":"IF('1. Order'!BE354=\"\",\"\",'1. Order'!BE354)","v":""},{"$f":"IF('1. Order'!BG354=\"\",\"\",'1. Order'!BG354)","v":""},{"$f":"IF('1. Order'!BH354=\"\",\"\",'1. Order'!BH354)","v":""},{"$f":"IF('1. Order'!BI354=\"\",\"\",'1. Order'!BI354)","v":""},{"$f":"IF('1. Order'!BJ354=\"\",\"\",'1. Order'!BJ354)","v":""},{"$f":"IF('1. Order'!BK354=\"\",\"\",'1. Order'!BK354)","v":"ZWO"}]
[{"$f":"IF('1. Order'!G355=\"\",\"\",'1. Order'!G355)","v":""},{"$f":"IF('1. Order'!H355=\"\",\"\",'1. Order'!H355)","v":""},{"$f":"IF('1. Order'!I355=\"\",\"\",'1. Order'!I355)","v":""},{"$f":"IF('1. Order'!J355=\"\",\"\",'1. Order'!J355)","v":""},{"$f":"IF('1. Order'!K355=\"\",\"\",'1. Order'!K355)","v":""},{"$f":"IF('1. Order'!L355=\"\",\"\",'1. Order'!L355)","v":""},{"$f":"IF('1. Order'!M355=\"\",\"\",'1. Order'!M355)","v":""},{"$f":"IF('1. Order'!N355=\"\",\"\",'1. Order'!N355)","v":""},{"$f":"IF('1. Order'!P355=\"\",\"\",'1. Order'!P355)","v":""},{"$f":"IF('1. Order'!Q355=\"\",\"\",'1. Order'!Q355)","v":{"$error":"#N/A"}},{"$f":"IF('1. Order'!R355=\"\",\"\",'1. Order'!R355)","v":{"$error":"#N/A"}},{"$f":"IF('1. Order'!S355=\"\",\"\",'1. Order'!S355)","v":""},{"$f":"IF('1. Order'!T355=\"\",\"\",'1. Order'!T355)","v":""},{"$f":"IF('1. Order'!U355=\"\",\"\",'1. Order'!U355)","v":""},{"$f":"IF('1. Order'!X355=\"\",\"\",'1. Order'!X355)","v":""},{"$f":"IF('1. Order'!Y355=\"\",\"\",'1. Order'!Y355)","v":""},{"$f":"IF('1. Order'!Z355=\"\",\"\",'1. Order'!Z355)","v":""},{"$f":"IF('1. Order'!AC355=\"\",\"\",'1. Order'!AC355)","v":""},{"$f":"IF('1. Order'!AD355=\"\",\"\",'1. Order'!AD355)","v":""},{"$f":"IF('1. Order'!AE355=\"\",\"\",'1. Order'!AE355)","v":""},null,{"$f":"IF('1. Order'!AW355=\"\",\"\",'1. Order'!AW355)","v":""},{"$f":"IF('1. Order'!AX355=\"\",\"\",'1. Order'!AX355)","v":""},null,null,null,null,null,null,null,{"$f":"IF('1. Order'!BB355=\"\",\"\",'1. Order'!BB355)","v":""},{"$f":"IF('1. Order'!BC355=\"\",\"\",'1. Order'!BC355)","v":""},{"$f":"IF('1. Order'!BD355=\"\",\"\",'1. Order'!BD355)","v":""},{"$f":"IF('1. Order'!BE355=\"\",\"\",'1. Order'!BE355)","v":""},{"$f":"IF('1. Order'!BG355=\"\",\"\",'1. Order'!BG355)","v":""},{"$f":"IF('1. Order'!BH355=\"\",\"\",'1. Order'!BH355)","v":""},{"$f":"IF('1. Order'!BI355=\"\",\"\",'1. Order'!BI355)","v":""},{"$f":"IF('1. Order'!BJ355=\"\",\"\",'1. Order'!BJ355)","v":""},{"$f":"IF('1. Order'!BK355=\"\",\"\",'1. Order'!BK355)","v":"ZWO"}]
[{"$f":"IF('1. Order'!G356=\"\",\"\",'1. Order'!G356)","v":""},{"$f":"IF('1. Order'!H356=\"\",\"\",'1. Order'!H356)","v":""},{"$f":"IF('1. Order'!I356=\"\",\"\",'1. Order'!I356)","v":""},{"$f":"IF('1. Order'!J356=\"\",\"\",'1. Order'!J356)","v":""},{"$f":"IF('1. Order'!K356=\"\",\"\",'1. Order'!K356)","v":""},{"$f":"IF('1. Order'!L356=\"\",\"\",'1. Order'!L356)","v":""},{"$f":"IF('1. Order'!M356=\"\",\"\",'1. Order'!M356)","v":""},{"$f":"IF('1. Order'!N356=\"\",\"\",'1. Order'!N356)","v":""},{"$f":"IF('1. Order'!P356=\"\",\"\",'1. Order'!P356)","v":""},{"$f":"IF('1. Order'!Q356=\"\",\"\",'1. Order'!Q356)","v":{"$error":"#N/A"}},{"$f":"IF('1. Order'!R356=\"\",\"\",'1. Order'!R356)","v":{"$error":"#N/A"}},{"$f":"IF('1. Order'!S356=\"\",\"\",'1. Order'!S356)","v":""},{"$f":"IF('1. Order'!T356=\"\",\"\",'1. Order'!T356)","v":""},{"$f":"IF('1. Order'!U356=\"\",\"\",'1. Order'!U356)","v":""},{"$f":"IF('1. Order'!X356=\"\",\"\",'1. Order'!X356)","v":""},{"$f":"IF('1. Order'!Y356=\"\",\"\",'1. Order'!Y356)","v":""},{"$f":"IF('1. Order'!Z356=\"\",\"\",'1. Order'!Z356)","v":""},{"$f":"IF('1. Order'!AC356=\"\",\"\",'1. Order'!AC356)","v":""},{"$f":"IF('1. Order'!AD356=\"\",\"\",'1. Order'!AD356)","v":""},{"$f":"IF('1. Order'!AE356=\"\",\"\",'1. Order'!AE356)","v":""},null,{"$f":"IF('1. Order'!AW356=\"\",\"\",'1. Order'!AW356)","v":""},{"$f":"IF('1. Order'!AX356=\"\",\"\",'1. Order'!AX356)","v":""},null,null,null,null,null,null,null,{"$f":"IF('1. Order'!BB356=\"\",\"\",'1. Order'!BB356)","v":""},{"$f":"IF('1. Order'!BC356=\"\",\"\",'1. Order'!BC356)","v":""},{"$f":"IF('1. Order'!BD356=\"\",\"\",'1. Order'!BD356)","v":""},{"$f":"IF('1. Order'!BE356=\"\",\"\",'1. Order'!BE356)","v":""},{"$f":"IF('1. Order'!BG356=\"\",\"\",'1. Order'!BG356)","v":""},{"$f":"IF('1. Order'!BH356=\"\",\"\",'1. Order'!BH356)","v":""},{"$f":"IF('1. Order'!BI356=\"\",\"\",'1. Order'!BI356)","v":""},{"$f":"IF('1. Order'!BJ356=\"\",\"\",'1. Order'!BJ356)","v":""},{"$f":"IF('1. Order'!BK356=\"\",\"\",'1. Order'!BK356)","v":"ZWO"}]
[{"$f":"IF('1. Order'!G357=\"\",\"\",'1. Order'!G357)","v":""},{"$f":"IF('1. Order'!H357=\"\",\"\",'1. Order'!H357)","v":""},{"$f":"IF('1. Order'!I357=\"\",\"\",'1. Order'!I357)","v":""},{"$f":"IF('1. Order'!J357=\"\",\"\",'1. Order'!J357)","v":""},{"$f":"IF('1. Order'!K357=\"\",\"\",'1. Order'!K357)","v":""},{"$f":"IF('1. Order'!L357=\"\",\"\",'1. Order'!L357)","v":""},{"$f":"IF('1. Order'!M357=\"\",\"\",'1. Order'!M357)","v":""},{"$f":"IF('1. Order'!N357=\"\",\"\",'1. Order'!N357)","v":""},{"$f":"IF('1. Order'!P357=\"\",\"\",'1. Order'!P357)","v":""},{"$f":"IF('1. Order'!Q357=\"\",\"\",'1. Order'!Q357)","v":{"$error":"#N/A"}},{"$f":"IF('1. Order'!R357=\"\",\"\",'1. Order'!R357)","v":{"$error":"#N/A"}},{"$f":"IF('1. Order'!S357=\"\",\"\",'1. Order'!S357)","v":""},{"$f":"IF('1. Order'!T357=\"\",\"\",'1. Order'!T357)","v":""},{"$f":"IF('1. Order'!U357=\"\",\"\",'1. Order'!U357)","v":""},{"$f":"IF('1. Order'!X357=\"\",\"\",'1. Order'!X357)","v":""},{"$f":"IF('1. Order'!Y357=\"\",\"\",'1. Order'!Y357)","v":""},{"$f":"IF('1. Order'!Z357=\"\",\"\",'1. Order'!Z357)","v":""},{"$f":"IF('1. Order'!AC357=\"\",\"\",'1. Order'!AC357)","v":""},{"$f":"IF('1. Order'!AD357=\"\",\"\",'1. Order'!AD357)","v":""},{"$f":"IF('1. Order'!AE357=\"\",\"\",'1. Order'!AE357)","v":""},null,{"$f":"IF('1. Order'!AW357=\"\",\"\",'1. Order'!AW357)","v":""},{"$f":"IF('1. Order'!AX357=\"\",\"\",'1. Order'!AX357)","v":""},null,null,null,null,null,null,null,{"$f":"IF('1. Order'!BB357=\"\",\"\",'1. Order'!BB357)","v":""},{"$f":"IF('1. Order'!BC357=\"\",\"\",'1. Order'!BC357)","v":""},{"$f":"IF('1. Order'!BD357=\"\",\"\",'1. Order'!BD357)","v":""},{"$f":"IF('1. Order'!BE357=\"\",\"\",'1. Order'!BE357)","v":""},{"$f":"IF('1. Order'!BG357=\"\",\"\",'1. Order'!BG357)","v":""},{"$f":"IF('1. Order'!BH357=\"\",\"\",'1. Order'!BH357)","v":""},{"$f":"IF('1. Order'!BI357=\"\",\"\",'1. Order'!BI357)","v":""},{"$f":"IF('1. Order'!BJ357=\"\",\"\",'1. Order'!BJ357)","v":""},{"$f":"IF('1. Order'!BK357=\"\",\"\",'1. Order'!BK357)","v":"ZWO"}]
[{"$f":"IF('1. Order'!G358=\"\",\"\",'1. Order'!G358)","v":""},{"$f":"IF('1. Order'!H358=\"\",\"\",'1. Order'!H358)","v":""},{"$f":"IF('1. Order'!I358=\"\",\"\",'1. Order'!I358)","v":""},{"$f":"IF('1. Order'!J358=\"\",\"\",'1. Order'!J358)","v":""},{"$f":"IF('1. Order'!K358=\"\",\"\",'1. Order'!K358)","v":""},{"$f":"IF('1. Order'!L358=\"\",\"\",'1. Order'!L358)","v":""},{"$f":"IF('1. Order'!M358=\"\",\"\",'1. Order'!M358)","v":""},{"$f":"IF('1. Order'!N358=\"\",\"\",'1. Order'!N358)","v":""},{"$f":"IF('1. Order'!P358=\"\",\"\",'1. Order'!P358)","v":""},{"$f":"IF('1. Order'!Q358=\"\",\"\",'1. Order'!Q358)","v":{"$error":"#N/A"}},{"$f":"IF('1. Order'!R358=\"\",\"\",'1. Order'!R358)","v":{"$error":"#N/A"}},{"$f":"IF('1. Order'!S358=\"\",\"\",'1. Order'!S358)","v":""},{"$f":"IF('1. Order'!T358=\"\",\"\",'1. Order'!T358)","v":""},{"$f":"IF('1. Order'!U358=\"\",\"\",'1. Order'!U358)","v":""},{"$f":"IF('1. Order'!X358=\"\",\"\",'1. Order'!X358)","v":""},{"$f":"IF('1. Order'!Y358=\"\",\"\",'1. Order'!Y358)","v":""},{"$f":"IF('1. Order'!Z358=\"\",\"\",'1. Order'!Z358)","v":""},{"$f":"IF('1. Order'!AC358=\"\",\"\",'1. Order'!AC358)","v":""},{"$f":"IF('1. Order'!AD358=\"\",\"\",'1. Order'!AD358)","v":""},{"$f":"IF('1. Order'!AE358=\"\",\"\",'1. Order'!AE358)","v":""},null,{"$f":"IF('1. Order'!AW358=\"\",\"\",'1. Order'!AW358)","v":""},{"$f":"IF('1. Order'!AX358=\"\",\"\",'1. Order'!AX358)","v":""},null,null,null,null,null,null,null,{"$f":"IF('1. Order'!BB358=\"\",\"\",'1. Order'!BB358)","v":""},{"$f":"IF('1. Order'!BC358=\"\",\"\",'1. Order'!BC358)","v":""},{"$f":"IF('1. Order'!BD358=\"\",\"\",'1. Order'!BD358)","v":""},{"$f":"IF('1. Order'!BE358=\"\",\"\",'1. Order'!BE358)","v":""},{"$f":"IF('1. Order'!BG358=\"\",\"\",'1. Order'!BG358)","v":""},{"$f":"IF('1. Order'!BH358=\"\",\"\",'1. Order'!BH358)","v":""},{"$f":"IF('1. Order'!BI358=\"\",\"\",'1. Order'!BI358)","v":""},{"$f":"IF('1. Order'!BJ358=\"\",\"\",'1. Order'!BJ358)","v":""},{"$f":"IF('1. Order'!BK358=\"\",\"\",'1. Order'!BK358)","v":"ZWO"}]
[{"$f":"IF('1. Order'!G359=\"\",\"\",'1. Order'!G359)","v":""},{"$f":"IF('1. Order'!H359=\"\",\"\",'1. Order'!H359)","v":""},{"$f":"IF('1. Order'!I359=\"\",\"\",'1. Order'!I359)","v":""},{"$f":"IF('1. Order'!J359=\"\",\"\",'1. Order'!J359)","v":""},{"$f":"IF('1. Order'!K359=\"\",\"\",'1. Order'!K359)","v":""},{"$f":"IF('1. Order'!L359=\"\",\"\",'1. Order'!L359)","v":""},{"$f":"IF('1. Order'!M359=\"\",\"\",'1. Order'!M359)","v":""},{"$f":"IF('1. Order'!N359=\"\",\"\",'1. Order'!N359)","v":""},{"$f":"IF('1. Order'!P359=\"\",\"\",'1. Order'!P359)","v":""},{"$f":"IF('1. Order'!Q359=\"\",\"\",'1. Order'!Q359)","v":{"$error":"#N/A"}},{"$f":"IF('1. Order'!R359=\"\",\"\",'1. Order'!R359)","v":{"$error":"#N/A"}},{"$f":"IF('1. Order'!S359=\"\",\"\",'1. Order'!S359)","v":""},{"$f":"IF('1. Order'!T359=\"\",\"\",'1. Order'!T359)","v":""},{"$f":"IF('1. Order'!U359=\"\",\"\",'1. Order'!U359)","v":""},{"$f":"IF('1. Order'!X359=\"\",\"\",'1. Order'!X359)","v":""},{"$f":"IF('1. Order'!Y359=\"\",\"\",'1. Order'!Y359)","v":""},{"$f":"IF('1. Order'!Z359=\"\",\"\",'1. Order'!Z359)","v":""},{"$f":"IF('1. Order'!AC359=\"\",\"\",'1. Order'!AC359)","v":""},{"$f":"IF('1. Order'!AD359=\"\",\"\",'1. Order'!AD359)","v":""},{"$f":"IF('1. Order'!AE359=\"\",\"\",'1. Order'!AE359)","v":""},null,{"$f":"IF('1. Order'!AW359=\"\",\"\",'1. Order'!AW359)","v":""},{"$f":"IF('1. Order'!AX359=\"\",\"\",'1. Order'!AX359)","v":""},null,null,null,null,null,null,null,{"$f":"IF('1. Order'!BB359=\"\",\"\",'1. Order'!BB359)","v":""},{"$f":"IF('1. Order'!BC359=\"\",\"\",'1. Order'!BC359)","v":""},{"$f":"IF('1. Order'!BD359=\"\",\"\",'1. Order'!BD359)","v":""},{"$f":"IF('1. Order'!BE359=\"\",\"\",'1. Order'!BE359)","v":""},{"$f":"IF('1. Order'!BG359=\"\",\"\",'1. Order'!BG359)","v":""},{"$f":"IF('1. Order'!BH359=\"\",\"\",'1. Order'!BH359)","v":""},{"$f":"IF('1. Order'!BI359=\"\",\"\",'1. Order'!BI359)","v":""},{"$f":"IF('1. Order'!BJ359=\"\",\"\",'1. Order'!BJ359)","v":""},{"$f":"IF('1. Order'!BK359=\"\",\"\",'1. Order'!BK359)","v":"ZWO"}]
[{"$f":"IF('1. Order'!G360=\"\",\"\",'1. Order'!G360)","v":""},{"$f":"IF('1. Order'!H360=\"\",\"\",'1. Order'!H360)","v":""},{"$f":"IF('1. Order'!I360=\"\",\"\",'1. Order'!I360)","v":""},{"$f":"IF('1. Order'!J360=\"\",\"\",'1. Order'!J360)","v":""},{"$f":"IF('1. Order'!K360=\"\",\"\",'1. Order'!K360)","v":""},{"$f":"IF('1. Order'!L360=\"\",\"\",'1. Order'!L360)","v":""},{"$f":"IF('1. Order'!M360=\"\",\"\",'1. Order'!M360)","v":""},{"$f":"IF('1. Order'!N360=\"\",\"\",'1. Order'!N360)","v":""},{"$f":"IF('1. Order'!P360=\"\",\"\",'1. Order'!P360)","v":""},{"$f":"IF('1. Order'!Q360=\"\",\"\",'1. Order'!Q360)","v":{"$error":"#N/A"}},{"$f":"IF('1. Order'!R360=\"\",\"\",'1. Order'!R360)","v":{"$error":"#N/A"}},{"$f":"IF('1. Order'!S360=\"\",\"\",'1. Order'!S360)","v":""},{"$f":"IF('1. Order'!T360=\"\",\"\",'1. Order'!T360)","v":""},{"$f":"IF('1. Order'!U360=\"\",\"\",'1. Order'!U360)","v":""},{"$f":"IF('1. Order'!X360=\"\",\"\",'1. Order'!X360)","v":""},{"$f":"IF('1. Order'!Y360=\"\",\"\",'1. Order'!Y360)","v":""},{"$f":"IF('1. Order'!Z360=\"\",\"\",'1. Order'!Z360)","v":""},{"$f":"IF('1. Order'!AC360=\"\",\"\",'1. Order'!AC360)","v":""},{"$f":"IF('1. Order'!AD360=\"\",\"\",'1. Order'!AD360)","v":""},{"$f":"IF('1. Order'!AE360=\"\",\"\",'1. Order'!AE360)","v":""},null,{"$f":"IF('1. Order'!AW360=\"\",\"\",'1. Order'!AW360)","v":""},{"$f":"IF('1. Order'!AX360=\"\",\"\",'1. Order'!AX360)","v":""},null,null,null,null,null,null,null,{"$f":"IF('1. Order'!BB360=\"\",\"\",'1. Order'!BB360)","v":""},{"$f":"IF('1. Order'!BC360=\"\",\"\",'1. Order'!BC360)","v":""},{"$f":"IF('1. Order'!BD360=\"\",\"\",'1. Order'!BD360)","v":""},{"$f":"IF('1. Order'!BE360=\"\",\"\",'1. Order'!BE360)","v":""},{"$f":"IF('1. Order'!BG360=\"\",\"\",'1. Order'!BG360)","v":""},{"$f":"IF('1. Order'!BH360=\"\",\"\",'1. Order'!BH360)","v":""},{"$f":"IF('1. Order'!BI360=\"\",\"\",'1. Order'!BI360)","v":""},{"$f":"IF('1. Order'!BJ360=\"\",\"\",'1. Order'!BJ360)","v":""},{"$f":"IF('1. Order'!BK360=\"\",\"\",'1. Order'!BK360)","v":"ZWO"}]
[{"$f":"IF('1. Order'!G361=\"\",\"\",'1. Order'!G361)","v":""},{"$f":"IF('1. Order'!H361=\"\",\"\",'1. Order'!H361)","v":""},{"$f":"IF('1. Order'!I361=\"\",\"\",'1. Order'!I361)","v":""},{"$f":"IF('1. Order'!J361=\"\",\"\",'1. Order'!J361)","v":""},{"$f":"IF('1. Order'!K361=\"\",\"\",'1. Order'!K361)","v":""},{"$f":"IF('1. Order'!L361=\"\",\"\",'1. Order'!L361)","v":""},{"$f":"IF('1. Order'!M361=\"\",\"\",'1. Order'!M361)","v":""},{"$f":"IF('1. Order'!N361=\"\",\"\",'1. Order'!N361)","v":""},{"$f":"IF('1. Order'!P361=\"\",\"\",'1. Order'!P361)","v":""},{"$f":"IF('1. Order'!Q361=\"\",\"\",'1. Order'!Q361)","v":{"$error":"#N/A"}},{"$f":"IF('1. Order'!R361=\"\",\"\",'1. Order'!R361)","v":{"$error":"#N/A"}},{"$f":"IF('1. Order'!S361=\"\",\"\",'1. Order'!S361)","v":""},{"$f":"IF('1. Order'!T361=\"\",\"\",'1. Order'!T361)","v":""},{"$f":"IF('1. Order'!U361=\"\",\"\",'1. Order'!U361)","v":""},{"$f":"IF('1. Order'!X361=\"\",\"\",'1. Order'!X361)","v":""},{"$f":"IF('1. Order'!Y361=\"\",\"\",'1. Order'!Y361)","v":""},{"$f":"IF('1. Order'!Z361=\"\",\"\",'1. Order'!Z361)","v":""},{"$f":"IF('1. Order'!AC361=\"\",\"\",'1. Order'!AC361)","v":""},{"$f":"IF('1. Order'!AD361=\"\",\"\",'1. Order'!AD361)","v":""},{"$f":"IF('1. Order'!AE361=\"\",\"\",'1. Order'!AE361)","v":""},null,{"$f":"IF('1. Order'!AW361=\"\",\"\",'1. Order'!AW361)","v":""},{"$f":"IF('1. Order'!AX361=\"\",\"\",'1. Order'!AX361)","v":""},null,null,null,null,null,null,null,{"$f":"IF('1. Order'!BB361=\"\",\"\",'1. Order'!BB361)","v":""},{"$f":"IF('1. Order'!BC361=\"\",\"\",'1. Order'!BC361)","v":""},{"$f":"IF('1. Order'!BD361=\"\",\"\",'1. Order'!BD361)","v":""},{"$f":"IF('1. Order'!BE361=\"\",\"\",'1. Order'!BE361)","v":""},{"$f":"IF('1. Order'!BG361=\"\",\"\",'1. Order'!BG361)","v":""},{"$f":"IF('1. Order'!BH361=\"\",\"\",'1. Order'!BH361)","v":""},{"$f":"IF('1. Order'!BI361=\"\",\"\",'1. Order'!BI361)","v":""},{"$f":"IF('1. Order'!BJ361=\"\",\"\",'1. Order'!BJ361)","v":""},{"$f":"IF('1. Order'!BK361=\"\",\"\",'1. Order'!BK361)","v":"ZWO"}]
[{"$f":"IF('1. Order'!G362=\"\",\"\",'1. Order'!G362)","v":""},{"$f":"IF('1. Order'!H362=\"\",\"\",'1. Order'!H362)","v":""},{"$f":"IF('1. Order'!I362=\"\",\"\",'1. Order'!I362)","v":""},{"$f":"IF('1. Order'!J362=\"\",\"\",'1. Order'!J362)","v":""},{"$f":"IF('1. Order'!K362=\"\",\"\",'1. Order'!K362)","v":""},{"$f":"IF('1. Order'!L362=\"\",\"\",'1. Order'!L362)","v":""},{"$f":"IF('1. Order'!M362=\"\",\"\",'1. Order'!M362)","v":""},{"$f":"IF('1. Order'!N362=\"\",\"\",'1. Order'!N362)","v":""},{"$f":"IF('1. Order'!P362=\"\",\"\",'1. Order'!P362)","v":""},{"$f":"IF('1. Order'!Q362=\"\",\"\",'1. Order'!Q362)","v":{"$error":"#N/A"}},{"$f":"IF('1. Order'!R362=\"\",\"\",'1. Order'!R362)","v":{"$error":"#N/A"}},{"$f":"IF('1. Order'!S362=\"\",\"\",'1. Order'!S362)","v":""},{"$f":"IF('1. Order'!T362=\"\",\"\",'1. Order'!T362)","v":""},{"$f":"IF('1. Order'!U362=\"\",\"\",'1. Order'!U362)","v":""},{"$f":"IF('1. Order'!X362=\"\",\"\",'1. Order'!X362)","v":""},{"$f":"IF('1. Order'!Y362=\"\",\"\",'1. Order'!Y362)","v":""},{"$f":"IF('1. Order'!Z362=\"\",\"\",'1. Order'!Z362)","v":""},{"$f":"IF('1. Order'!AC362=\"\",\"\",'1. Order'!AC362)","v":""},{"$f":"IF('1. Order'!AD362=\"\",\"\",'1. Order'!AD362)","v":""},{"$f":"IF('1. Order'!AE362=\"\",\"\",'1. Order'!AE362)","v":""},null,{"$f":"IF('1. Order'!AW362=\"\",\"\",'1. Order'!AW362)","v":""},{"$f":"IF('1. Order'!AX362=\"\",\"\",'1. Order'!AX362)","v":""},null,null,null,null,null,null,null,{"$f":"IF('1. Order'!BB362=\"\",\"\",'1. Order'!BB362)","v":""},{"$f":"IF('1. Order'!BC362=\"\",\"\",'1. Order'!BC362)","v":""},{"$f":"IF('1. Order'!BD362=\"\",\"\",'1. Order'!BD362)","v":""},{"$f":"IF('1. Order'!BE362=\"\",\"\",'1. Order'!BE362)","v":""},{"$f":"IF('1. Order'!BG362=\"\",\"\",'1. Order'!BG362)","v":""},{"$f":"IF('1. Order'!BH362=\"\",\"\",'1. Order'!BH362)","v":""},{"$f":"IF('1. Order'!BI362=\"\",\"\",'1. Order'!BI362)","v":""},{"$f":"IF('1. Order'!BJ362=\"\",\"\",'1. Order'!BJ362)","v":""},{"$f":"IF('1. Order'!BK362=\"\",\"\",'1. Order'!BK362)","v":"ZWO"}]
[{"$f":"IF('1. Order'!G363=\"\",\"\",'1. Order'!G363)","v":""},{"$f":"IF('1. Order'!H363=\"\",\"\",'1. Order'!H363)","v":""},{"$f":"IF('1. Order'!I363=\"\",\"\",'1. Order'!I363)","v":""},{"$f":"IF('1. Order'!J363=\"\",\"\",'1. Order'!J363)","v":""},{"$f":"IF('1. Order'!K363=\"\",\"\",'1. Order'!K363)","v":""},{"$f":"IF('1. Order'!L363=\"\",\"\",'1. Order'!L363)","v":""},{"$f":"IF('1. Order'!M363=\"\",\"\",'1. Order'!M363)","v":""},{"$f":"IF('1. Order'!N363=\"\",\"\",'1. Order'!N363)","v":""},{"$f":"IF('1. Order'!P363=\"\",\"\",'1. Order'!P363)","v":""},{"$f":"IF('1. Order'!Q363=\"\",\"\",'1. Order'!Q363)","v":{"$error":"#N/A"}},{"$f":"IF('1. Order'!R363=\"\",\"\",'1. Order'!R363)","v":{"$error":"#N/A"}},{"$f":"IF('1. Order'!S363=\"\",\"\",'1. Order'!S363)","v":""},{"$f":"IF('1. Order'!T363=\"\",\"\",'1. Order'!T363)","v":""},{"$f":"IF('1. Order'!U363=\"\",\"\",'1. Order'!U363)","v":""},{"$f":"IF('1. Order'!X363=\"\",\"\",'1. Order'!X363)","v":""},{"$f":"IF('1. Order'!Y363=\"\",\"\",'1. Order'!Y363)","v":""},{"$f":"IF('1. Order'!Z363=\"\",\"\",'1. Order'!Z363)","v":""},{"$f":"IF('1. Order'!AC363=\"\",\"\",'1. Order'!AC363)","v":""},{"$f":"IF('1. Order'!AD363=\"\",\"\",'1. Order'!AD363)","v":""},{"$f":"IF('1. Order'!AE363=\"\",\"\",'1. Order'!AE363)","v":""},null,{"$f":"IF('1. Order'!AW363=\"\",\"\",'1. Order'!AW363)","v":""},{"$f":"IF('1. Order'!AX363=\"\",\"\",'1. Order'!AX363)","v":""},null,null,null,null,null,null,null,{"$f":"IF('1. Order'!BB363=\"\",\"\",'1. Order'!BB363)","v":""},{"$f":"IF('1. Order'!BC363=\"\",\"\",'1. Order'!BC363)","v":""},{"$f":"IF('1. Order'!BD363=\"\",\"\",'1. Order'!BD363)","v":""},{"$f":"IF('1. Order'!BE363=\"\",\"\",'1. Order'!BE363)","v":""},{"$f":"IF('1. Order'!BG363=\"\",\"\",'1. Order'!BG363)","v":""},{"$f":"IF('1. Order'!BH363=\"\",\"\",'1. Order'!BH363)","v":""},{"$f":"IF('1. Order'!BI363=\"\",\"\",'1. Order'!BI363)","v":""},{"$f":"IF('1. Order'!BJ363=\"\",\"\",'1. Order'!BJ363)","v":""},{"$f":"IF('1. Order'!BK363=\"\",\"\",'1. Order'!BK363)","v":"ZWO"}]
[{"$f":"IF('1. Order'!G364=\"\",\"\",'1. Order'!G364)","v":""},{"$f":"IF('1. Order'!H364=\"\",\"\",'1. Order'!H364)","v":""},{"$f":"IF('1. Order'!I364=\"\",\"\",'1. Order'!I364)","v":""},{"$f":"IF('1. Order'!J364=\"\",\"\",'1. Order'!J364)","v":""},{"$f":"IF('1. Order'!K364=\"\",\"\",'1. Order'!K364)","v":""},{"$f":"IF('1. Order'!L364=\"\",\"\",'1. Order'!L364)","v":""},{"$f":"IF('1. Order'!M364=\"\",\"\",'1. Order'!M364)","v":""},{"$f":"IF('1. Order'!N364=\"\",\"\",'1. Order'!N364)","v":""},{"$f":"IF('1. Order'!P364=\"\",\"\",'1. Order'!P364)","v":""},{"$f":"IF('1. Order'!Q364=\"\",\"\",'1. Order'!Q364)","v":{"$error":"#N/A"}},{"$f":"IF('1. Order'!R364=\"\",\"\",'1. Order'!R364)","v":{"$error":"#N/A"}},{"$f":"IF('1. Order'!S364=\"\",\"\",'1. Order'!S364)","v":""},{"$f":"IF('1. Order'!T364=\"\",\"\",'1. Order'!T364)","v":""},{"$f":"IF('1. Order'!U364=\"\",\"\",'1. Order'!U364)","v":""},{"$f":"IF('1. Order'!X364=\"\",\"\",'1. Order'!X364)","v":""},{"$f":"IF('1. Order'!Y364=\"\",\"\",'1. Order'!Y364)","v":""},{"$f":"IF('1. Order'!Z364=\"\",\"\",'1. Order'!Z364)","v":""},{"$f":"IF('1. Order'!AC364=\"\",\"\",'1. Order'!AC364)","v":""},{"$f":"IF('1. Order'!AD364=\"\",\"\",'1. Order'!AD364)","v":""},{"$f":"IF('1. Order'!AE364=\"\",\"\",'1. Order'!AE364)","v":""},null,{"$f":"IF('1. Order'!AW364=\"\",\"\",'1. Order'!AW364)","v":""},{"$f":"IF('1. Order'!AX364=\"\",\"\",'1. Order'!AX364)","v":""},null,null,null,null,null,null,null,{"$f":"IF('1. Order'!BB364=\"\",\"\",'1. Order'!BB364)","v":""},{"$f":"IF('1. Order'!BC364=\"\",\"\",'1. Order'!BC364)","v":""},{"$f":"IF('1. Order'!BD364=\"\",\"\",'1. Order'!BD364)","v":""},{"$f":"IF('1. Order'!BE364=\"\",\"\",'1. Order'!BE364)","v":""},{"$f":"IF('1. Order'!BG364=\"\",\"\",'1. Order'!BG364)","v":""},{"$f":"IF('1. Order'!BH364=\"\",\"\",'1. Order'!BH364)","v":""},{"$f":"IF('1. Order'!BI364=\"\",\"\",'1. Order'!BI364)","v":""},{"$f":"IF('1. Order'!BJ364=\"\",\"\",'1. Order'!BJ364)","v":""},{"$f":"IF('1. Order'!BK364=\"\",\"\",'1. Order'!BK364)","v":"ZWO"}]
[{"$f":"IF('1. Order'!G365=\"\",\"\",'1. Order'!G365)","v":""},{"$f":"IF('1. Order'!H365=\"\",\"\",'1. Order'!H365)","v":""},{"$f":"IF('1. Order'!I365=\"\",\"\",'1. Order'!I365)","v":""},{"$f":"IF('1. Order'!J365=\"\",\"\",'1. Order'!J365)","v":""},{"$f":"IF('1. Order'!K365=\"\",\"\",'1. Order'!K365)","v":""},{"$f":"IF('1. Order'!L365=\"\",\"\",'1. Order'!L365)","v":""},{"$f":"IF('1. Order'!M365=\"\",\"\",'1. Order'!M365)","v":""},{"$f":"IF('1. Order'!N365=\"\",\"\",'1. Order'!N365)","v":""},{"$f":"IF('1. Order'!P365=\"\",\"\",'1. Order'!P365)","v":""},{"$f":"IF('1. Order'!Q365=\"\",\"\",'1. Order'!Q365)","v":{"$error":"#N/A"}},{"$f":"IF('1. Order'!R365=\"\",\"\",'1. Order'!R365)","v":{"$error":"#N/A"}},{"$f":"IF('1. Order'!S365=\"\",\"\",'1. Order'!S365)","v":""},{"$f":"IF('1. Order'!T365=\"\",\"\",'1. Order'!T365)","v":""},{"$f":"IF('1. Order'!U365=\"\",\"\",'1. Order'!U365)","v":""},{"$f":"IF('1. Order'!X365=\"\",\"\",'1. Order'!X365)","v":""},{"$f":"IF('1. Order'!Y365=\"\",\"\",'1. Order'!Y365)","v":""},{"$f":"IF('1. Order'!Z365=\"\",\"\",'1. Order'!Z365)","v":""},{"$f":"IF('1. Order'!AC365=\"\",\"\",'1. Order'!AC365)","v":""},{"$f":"IF('1. Order'!AD365=\"\",\"\",'1. Order'!AD365)","v":""},{"$f":"IF('1. Order'!AE365=\"\",\"\",'1. Order'!AE365)","v":""},null,{"$f":"IF('1. Order'!AW365=\"\",\"\",'1. Order'!AW365)","v":""},{"$f":"IF('1. Order'!AX365=\"\",\"\",'1. Order'!AX365)","v":""},null,null,null,null,null,null,null,{"$f":"IF('1. Order'!BB365=\"\",\"\",'1. Order'!BB365)","v":""},{"$f":"IF('1. Order'!BC365=\"\",\"\",'1. Order'!BC365)","v":""},{"$f":"IF('1. Order'!BD365=\"\",\"\",'1. Order'!BD365)","v":""},{"$f":"IF('1. Order'!BE365=\"\",\"\",'1. Order'!BE365)","v":""},{"$f":"IF('1. Order'!BG365=\"\",\"\",'1. Order'!BG365)","v":""},{"$f":"IF('1. Order'!BH365=\"\",\"\",'1. Order'!BH365)","v":""},{"$f":"IF('1. Order'!BI365=\"\",\"\",'1. Order'!BI365)","v":""},{"$f":"IF('1. Order'!BJ365=\"\",\"\",'1. Order'!BJ365)","v":""},{"$f":"IF('1. Order'!BK365=\"\",\"\",'1. Order'!BK365)","v":"ZWO"}]
[{"$f":"IF('1. Order'!G366=\"\",\"\",'1. Order'!G366)","v":""},{"$f":"IF('1. Order'!H366=\"\",\"\",'1. Order'!H366)","v":""},{"$f":"IF('1. Order'!I366=\"\",\"\",'1. Order'!I366)","v":""},{"$f":"IF('1. Order'!J366=\"\",\"\",'1. Order'!J366)","v":""},{"$f":"IF('1. Order'!K366=\"\",\"\",'1. Order'!K366)","v":""},{"$f":"IF('1. Order'!L366=\"\",\"\",'1. Order'!L366)","v":""},{"$f":"IF('1. Order'!M366=\"\",\"\",'1. Order'!M366)","v":""},{"$f":"IF('1. Order'!N366=\"\",\"\",'1. Order'!N366)","v":""},{"$f":"IF('1. Order'!P366=\"\",\"\",'1. Order'!P366)","v":""},{"$f":"IF('1. Order'!Q366=\"\",\"\",'1. Order'!Q366)","v":{"$error":"#N/A"}},{"$f":"IF('1. Order'!R366=\"\",\"\",'1. Order'!R366)","v":{"$error":"#N/A"}},{"$f":"IF('1. Order'!S366=\"\",\"\",'1. Order'!S366)","v":""},{"$f":"IF('1. Order'!T366=\"\",\"\",'1. Order'!T366)","v":""},{"$f":"IF('1. Order'!U366=\"\",\"\",'1. Order'!U366)","v":""},{"$f":"IF('1. Order'!X366=\"\",\"\",'1. Order'!X366)","v":""},{"$f":"IF('1. Order'!Y366=\"\",\"\",'1. Order'!Y366)","v":""},{"$f":"IF('1. Order'!Z366=\"\",\"\",'1. Order'!Z366)","v":""},{"$f":"IF('1. Order'!AC366=\"\",\"\",'1. Order'!AC366)","v":""},{"$f":"IF('1. Order'!AD366=\"\",\"\",'1. Order'!AD366)","v":""},{"$f":"IF('1. Order'!AE366=\"\",\"\",'1. Order'!AE366)","v":""},null,{"$f":"IF('1. Order'!AW366=\"\",\"\",'1. Order'!AW366)","v":""},{"$f":"IF('1. Order'!AX366=\"\",\"\",'1. Order'!AX366)","v":""},null,null,null,null,null,null,null,{"$f":"IF('1. Order'!BB366=\"\",\"\",'1. Order'!BB366)","v":""},{"$f":"IF('1. Order'!BC366=\"\",\"\",'1. Order'!BC366)","v":""},{"$f":"IF('1. Order'!BD366=\"\",\"\",'1. Order'!BD366)","v":""},{"$f":"IF('1. Order'!BE366=\"\",\"\",'1. Order'!BE366)","v":""},{"$f":"IF('1. Order'!BG366=\"\",\"\",'1. Order'!BG366)","v":""},{"$f":"IF('1. Order'!BH366=\"\",\"\",'1. Order'!BH366)","v":""},{"$f":"IF('1. Order'!BI366=\"\",\"\",'1. Order'!BI366)","v":""},{"$f":"IF('1. Order'!BJ366=\"\",\"\",'1. Order'!BJ366)","v":""},{"$f":"IF('1. Order'!BK366=\"\",\"\",'1. Order'!BK366)","v":"ZWO"}]
[{"$f":"IF('1. Order'!G367=\"\",\"\",'1. Order'!G367)","v":""},{"$f":"IF('1. Order'!H367=\"\",\"\",'1. Order'!H367)","v":""},{"$f":"IF('1. Order'!I367=\"\",\"\",'1. Order'!I367)","v":""},{"$f":"IF('1. Order'!J367=\"\",\"\",'1. Order'!J367)","v":""},{"$f":"IF('1. Order'!K367=\"\",\"\",'1. Order'!K367)","v":""},{"$f":"IF('1. Order'!L367=\"\",\"\",'1. Order'!L367)","v":""},{"$f":"IF('1. Order'!M367=\"\",\"\",'1. Order'!M367)","v":""},{"$f":"IF('1. Order'!N367=\"\",\"\",'1. Order'!N367)","v":""},{"$f":"IF('1. Order'!P367=\"\",\"\",'1. Order'!P367)","v":""},{"$f":"IF('1. Order'!Q367=\"\",\"\",'1. Order'!Q367)","v":{"$error":"#N/A"}},{"$f":"IF('1. Order'!R367=\"\",\"\",'1. Order'!R367)","v":{"$error":"#N/A"}},{"$f":"IF('1. Order'!S367=\"\",\"\",'1. Order'!S367)","v":""},{"$f":"IF('1. Order'!T367=\"\",\"\",'1. Order'!T367)","v":""},{"$f":"IF('1. Order'!U367=\"\",\"\",'1. Order'!U367)","v":""},{"$f":"IF('1. Order'!X367=\"\",\"\",'1. Order'!X367)","v":""},{"$f":"IF('1. Order'!Y367=\"\",\"\",'1. Order'!Y367)","v":""},{"$f":"IF('1. Order'!Z367=\"\",\"\",'1. Order'!Z367)","v":""},{"$f":"IF('1. Order'!AC367=\"\",\"\",'1. Order'!AC367)","v":""},{"$f":"IF('1. Order'!AD367=\"\",\"\",'1. Order'!AD367)","v":""},{"$f":"IF('1. Order'!AE367=\"\",\"\",'1. Order'!AE367)","v":""},null,{"$f":"IF('1. Order'!AW367=\"\",\"\",'1. Order'!AW367)","v":""},{"$f":"IF('1. Order'!AX367=\"\",\"\",'1. Order'!AX367)","v":""},null,null,null,null,null,null,null,{"$f":"IF('1. Order'!BB367=\"\",\"\",'1. Order'!BB367)","v":""},{"$f":"IF('1. Order'!BC367=\"\",\"\",'1. Order'!BC367)","v":""},{"$f":"IF('1. Order'!BD367=\"\",\"\",'1. Order'!BD367)","v":""},{"$f":"IF('1. Order'!BE367=\"\",\"\",'1. Order'!BE367)","v":""},{"$f":"IF('1. Order'!BG367=\"\",\"\",'1. Order'!BG367)","v":""},{"$f":"IF('1. Order'!BH367=\"\",\"\",'1. Order'!BH367)","v":""},{"$f":"IF('1. Order'!BI367=\"\",\"\",'1. Order'!BI367)","v":""},{"$f":"IF('1. Order'!BJ367=\"\",\"\",'1. Order'!BJ367)","v":""},{"$f":"IF('1. Order'!BK367=\"\",\"\",'1. Order'!BK367)","v":"ZWO"}]
[{"$f":"IF('1. Order'!G368=\"\",\"\",'1. Order'!G368)","v":""},{"$f":"IF('1. Order'!H368=\"\",\"\",'1. Order'!H368)","v":""},{"$f":"IF('1. Order'!I368=\"\",\"\",'1. Order'!I368)","v":""},{"$f":"IF('1. Order'!J368=\"\",\"\",'1. Order'!J368)","v":""},{"$f":"IF('1. Order'!K368=\"\",\"\",'1. Order'!K368)","v":""},{"$f":"IF('1. Order'!L368=\"\",\"\",'1. Order'!L368)","v":""},{"$f":"IF('1. Order'!M368=\"\",\"\",'1. Order'!M368)","v":""},{"$f":"IF('1. Order'!N368=\"\",\"\",'1. Order'!N368)","v":""},{"$f":"IF('1. Order'!P368=\"\",\"\",'1. Order'!P368)","v":""},{"$f":"IF('1. Order'!Q368=\"\",\"\",'1. Order'!Q368)","v":{"$error":"#N/A"}},{"$f":"IF('1. Order'!R368=\"\",\"\",'1. Order'!R368)","v":{"$error":"#N/A"}},{"$f":"IF('1. Order'!S368=\"\",\"\",'1. Order'!S368)","v":""},{"$f":"IF('1. Order'!T368=\"\",\"\",'1. Order'!T368)","v":""},{"$f":"IF('1. Order'!U368=\"\",\"\",'1. Order'!U368)","v":""},{"$f":"IF('1. Order'!X368=\"\",\"\",'1. Order'!X368)","v":""},{"$f":"IF('1. Order'!Y368=\"\",\"\",'1. Order'!Y368)","v":""},{"$f":"IF('1. Order'!Z368=\"\",\"\",'1. Order'!Z368)","v":""},{"$f":"IF('1. Order'!AC368=\"\",\"\",'1. Order'!AC368)","v":""},{"$f":"IF('1. Order'!AD368=\"\",\"\",'1. Order'!AD368)","v":""},{"$f":"IF('1. Order'!AE368=\"\",\"\",'1. Order'!AE368)","v":""},null,{"$f":"IF('1. Order'!AW368=\"\",\"\",'1. Order'!AW368)","v":""},{"$f":"IF('1. Order'!AX368=\"\",\"\",'1. Order'!AX368)","v":""},null,null,null,null,null,null,null,{"$f":"IF('1. Order'!BB368=\"\",\"\",'1. Order'!BB368)","v":""},{"$f":"IF('1. Order'!BC368=\"\",\"\",'1. Order'!BC368)","v":""},{"$f":"IF('1. Order'!BD368=\"\",\"\",'1. Order'!BD368)","v":""},{"$f":"IF('1. Order'!BE368=\"\",\"\",'1. Order'!BE368)","v":""},{"$f":"IF('1. Order'!BG368=\"\",\"\",'1. Order'!BG368)","v":""},{"$f":"IF('1. Order'!BH368=\"\",\"\",'1. Order'!BH368)","v":""},{"$f":"IF('1. Order'!BI368=\"\",\"\",'1. Order'!BI368)","v":""},{"$f":"IF('1. Order'!BJ368=\"\",\"\",'1. Order'!BJ368)","v":""},{"$f":"IF('1. Order'!BK368=\"\",\"\",'1. Order'!BK368)","v":"ZWO"}]
[{"$f":"IF('1. Order'!G369=\"\",\"\",'1. Order'!G369)","v":""},{"$f":"IF('1. Order'!H369=\"\",\"\",'1. Order'!H369)","v":""},{"$f":"IF('1. Order'!I369=\"\",\"\",'1. Order'!I369)","v":""},{"$f":"IF('1. Order'!J369=\"\",\"\",'1. Order'!J369)","v":""},{"$f":"IF('1. Order'!K369=\"\",\"\",'1. Order'!K369)","v":""},{"$f":"IF('1. Order'!L369=\"\",\"\",'1. Order'!L369)","v":""},{"$f":"IF('1. Order'!M369=\"\",\"\",'1. Order'!M369)","v":""},{"$f":"IF('1. Order'!N369=\"\",\"\",'1. Order'!N369)","v":""},{"$f":"IF('1. Order'!P369=\"\",\"\",'1. Order'!P369)","v":""},{"$f":"IF('1. Order'!Q369=\"\",\"\",'1. Order'!Q369)","v":{"$error":"#N/A"}},{"$f":"IF('1. Order'!R369=\"\",\"\",'1. Order'!R369)","v":{"$error":"#N/A"}},{"$f":"IF('1. Order'!S369=\"\",\"\",'1. Order'!S369)","v":""},{"$f":"IF('1. Order'!T369=\"\",\"\",'1. Order'!T369)","v":""},{"$f":"IF('1. Order'!U369=\"\",\"\",'1. Order'!U369)","v":""},{"$f":"IF('1. Order'!X369=\"\",\"\",'1. Order'!X369)","v":""},{"$f":"IF('1. Order'!Y369=\"\",\"\",'1. Order'!Y369)","v":""},{"$f":"IF('1. Order'!Z369=\"\",\"\",'1. Order'!Z369)","v":""},{"$f":"IF('1. Order'!AC369=\"\",\"\",'1. Order'!AC369)","v":""},{"$f":"IF('1. Order'!AD369=\"\",\"\",'1. Order'!AD369)","v":""},{"$f":"IF('1. Order'!AE369=\"\",\"\",'1. Order'!AE369)","v":""},null,{"$f":"IF('1. Order'!AW369=\"\",\"\",'1. Order'!AW369)","v":""},{"$f":"IF('1. Order'!AX369=\"\",\"\",'1. Order'!AX369)","v":""},null,null,null,null,null,null,null,{"$f":"IF('1. Order'!BB369=\"\",\"\",'1. Order'!BB369)","v":""},{"$f":"IF('1. Order'!BC369=\"\",\"\",'1. Order'!BC369)","v":""},{"$f":"IF('1. Order'!BD369=\"\",\"\",'1. Order'!BD369)","v":""},{"$f":"IF('1. Order'!BE369=\"\",\"\",'1. Order'!BE369)","v":""},{"$f":"IF('1. Order'!BG369=\"\",\"\",'1. Order'!BG369)","v":""},{"$f":"IF('1. Order'!BH369=\"\",\"\",'1. Order'!BH369)","v":""},{"$f":"IF('1. Order'!BI369=\"\",\"\",'1. Order'!BI369)","v":""},{"$f":"IF('1. Order'!BJ369=\"\",\"\",'1. Order'!BJ369)","v":""},{"$f":"IF('1. Order'!BK369=\"\",\"\",'1. Order'!BK369)","v":"ZWO"}]
[{"$f":"IF('1. Order'!G370=\"\",\"\",'1. Order'!G370)","v":""},{"$f":"IF('1. Order'!H370=\"\",\"\",'1. Order'!H370)","v":""},{"$f":"IF('1. Order'!I370=\"\",\"\",'1. Order'!I370)","v":""},{"$f":"IF('1. Order'!J370=\"\",\"\",'1. Order'!J370)","v":""},{"$f":"IF('1. Order'!K370=\"\",\"\",'1. Order'!K370)","v":""},{"$f":"IF('1. Order'!L370=\"\",\"\",'1. Order'!L370)","v":""},{"$f":"IF('1. Order'!M370=\"\",\"\",'1. Order'!M370)","v":""},{"$f":"IF('1. Order'!N370=\"\",\"\",'1. Order'!N370)","v":""},{"$f":"IF('1. Order'!P370=\"\",\"\",'1. Order'!P370)","v":""},{"$f":"IF('1. Order'!Q370=\"\",\"\",'1. Order'!Q370)","v":{"$error":"#N/A"}},{"$f":"IF('1. Order'!R370=\"\",\"\",'1. Order'!R370)","v":{"$error":"#N/A"}},{"$f":"IF('1. Order'!S370=\"\",\"\",'1. Order'!S370)","v":""},{"$f":"IF('1. Order'!T370=\"\",\"\",'1. Order'!T370)","v":""},{"$f":"IF('1. Order'!U370=\"\",\"\",'1. Order'!U370)","v":""},{"$f":"IF('1. Order'!X370=\"\",\"\",'1. Order'!X370)","v":""},{"$f":"IF('1. Order'!Y370=\"\",\"\",'1. Order'!Y370)","v":""},{"$f":"IF('1. Order'!Z370=\"\",\"\",'1. Order'!Z370)","v":""},{"$f":"IF('1. Order'!AC370=\"\",\"\",'1. Order'!AC370)","v":""},{"$f":"IF('1. Order'!AD370=\"\",\"\",'1. Order'!AD370)","v":""},{"$f":"IF('1. Order'!AE370=\"\",\"\",'1. Order'!AE370)","v":""},null,{"$f":"IF('1. Order'!AW370=\"\",\"\",'1. Order'!AW370)","v":""},{"$f":"IF('1. Order'!AX370=\"\",\"\",'1. Order'!AX370)","v":""},null,null,null,null,null,null,null,{"$f":"IF('1. Order'!BB370=\"\",\"\",'1. Order'!BB370)","v":""},{"$f":"IF('1. Order'!BC370=\"\",\"\",'1. Order'!BC370)","v":""},{"$f":"IF('1. Order'!BD370=\"\",\"\",'1. Order'!BD370)","v":""},{"$f":"IF('1. Order'!BE370=\"\",\"\",'1. Order'!BE370)","v":""},{"$f":"IF('1. Order'!BG370=\"\",\"\",'1. Order'!BG370)","v":""},{"$f":"IF('1. Order'!BH370=\"\",\"\",'1. Order'!BH370)","v":""},{"$f":"IF('1. Order'!BI370=\"\",\"\",'1. Order'!BI370)","v":""},{"$f":"IF('1. Order'!BJ370=\"\",\"\",'1. Order'!BJ370)","v":""},{"$f":"IF('1. Order'!BK370=\"\",\"\",'1. Order'!BK370)","v":"ZWO"}]
[{"$f":"IF('1. Order'!G371=\"\",\"\",'1. Order'!G371)","v":""},{"$f":"IF('1. Order'!H371=\"\",\"\",'1. Order'!H371)","v":""},{"$f":"IF('1. Order'!I371=\"\",\"\",'1. Order'!I371)","v":""},{"$f":"IF('1. Order'!J371=\"\",\"\",'1. Order'!J371)","v":""},{"$f":"IF('1. Order'!K371=\"\",\"\",'1. Order'!K371)","v":""},{"$f":"IF('1. Order'!L371=\"\",\"\",'1. Order'!L371)","v":""},{"$f":"IF('1. Order'!M371=\"\",\"\",'1. Order'!M371)","v":""},{"$f":"IF('1. Order'!N371=\"\",\"\",'1. Order'!N371)","v":""},{"$f":"IF('1. Order'!P371=\"\",\"\",'1. Order'!P371)","v":""},{"$f":"IF('1. Order'!Q371=\"\",\"\",'1. Order'!Q371)","v":{"$error":"#N/A"}},{"$f":"IF('1. Order'!R371=\"\",\"\",'1. Order'!R371)","v":{"$error":"#N/A"}},{"$f":"IF('1. Order'!S371=\"\",\"\",'1. Order'!S371)","v":""},{"$f":"IF('1. Order'!T371=\"\",\"\",'1. Order'!T371)","v":""},{"$f":"IF('1. Order'!U371=\"\",\"\",'1. Order'!U371)","v":""},{"$f":"IF('1. Order'!X371=\"\",\"\",'1. Order'!X371)","v":""},{"$f":"IF('1. Order'!Y371=\"\",\"\",'1. Order'!Y371)","v":""},{"$f":"IF('1. Order'!Z371=\"\",\"\",'1. Order'!Z371)","v":""},{"$f":"IF('1. Order'!AC371=\"\",\"\",'1. Order'!AC371)","v":""},{"$f":"IF('1. Order'!AD371=\"\",\"\",'1. Order'!AD371)","v":""},{"$f":"IF('1. Order'!AE371=\"\",\"\",'1. Order'!AE371)","v":""},null,{"$f":"IF('1. Order'!AW371=\"\",\"\",'1. Order'!AW371)","v":""},{"$f":"IF('1. Order'!AX371=\"\",\"\",'1. Order'!AX371)","v":""},null,null,null,null,null,null,null,{"$f":"IF('1. Order'!BB371=\"\",\"\",'1. Order'!BB371)","v":""},{"$f":"IF('1. Order'!BC371=\"\",\"\",'1. Order'!BC371)","v":""},{"$f":"IF('1. Order'!BD371=\"\",\"\",'1. Order'!BD371)","v":""},{"$f":"IF('1. Order'!BE371=\"\",\"\",'1. Order'!BE371)","v":""},{"$f":"IF('1. Order'!BG371=\"\",\"\",'1. Order'!BG371)","v":""},{"$f":"IF('1. Order'!BH371=\"\",\"\",'1. Order'!BH371)","v":""},{"$f":"IF('1. Order'!BI371=\"\",\"\",'1. Order'!BI371)","v":""},{"$f":"IF('1. Order'!BJ371=\"\",\"\",'1. Order'!BJ371)","v":""},{"$f":"IF('1. Order'!BK371=\"\",\"\",'1. Order'!BK371)","v":"ZWO"}]
[{"$f":"IF('1. Order'!G372=\"\",\"\",'1. Order'!G372)","v":""},{"$f":"IF('1. Order'!H372=\"\",\"\",'1. Order'!H372)","v":""},{"$f":"IF('1. Order'!I372=\"\",\"\",'1. Order'!I372)","v":""},{"$f":"IF('1. Order'!J372=\"\",\"\",'1. Order'!J372)","v":""},{"$f":"IF('1. Order'!K372=\"\",\"\",'1. Order'!K372)","v":""},{"$f":"IF('1. Order'!L372=\"\",\"\",'1. Order'!L372)","v":""},{"$f":"IF('1. Order'!M372=\"\",\"\",'1. Order'!M372)","v":""},{"$f":"IF('1. Order'!N372=\"\",\"\",'1. Order'!N372)","v":""},{"$f":"IF('1. Order'!P372=\"\",\"\",'1. Order'!P372)","v":""},{"$f":"IF('1. Order'!Q372=\"\",\"\",'1. Order'!Q372)","v":{"$error":"#N/A"}},{"$f":"IF('1. Order'!R372=\"\",\"\",'1. Order'!R372)","v":{"$error":"#N/A"}},{"$f":"IF('1. Order'!S372=\"\",\"\",'1. Order'!S372)","v":""},{"$f":"IF('1. Order'!T372=\"\",\"\",'1. Order'!T372)","v":""},{"$f":"IF('1. Order'!U372=\"\",\"\",'1. Order'!U372)","v":""},{"$f":"IF('1. Order'!X372=\"\",\"\",'1. Order'!X372)","v":""},{"$f":"IF('1. Order'!Y372=\"\",\"\",'1. Order'!Y372)","v":""},{"$f":"IF('1. Order'!Z372=\"\",\"\",'1. Order'!Z372)","v":""},{"$f":"IF('1. Order'!AC372=\"\",\"\",'1. Order'!AC372)","v":""},{"$f":"IF('1. Order'!AD372=\"\",\"\",'1. Order'!AD372)","v":""},{"$f":"IF('1. Order'!AE372=\"\",\"\",'1. Order'!AE372)","v":""},null,{"$f":"IF('1. Order'!AW372=\"\",\"\",'1. Order'!AW372)","v":""},{"$f":"IF('1. Order'!AX372=\"\",\"\",'1. Order'!AX372)","v":""},null,null,null,null,null,null,null,{"$f":"IF('1. Order'!BB372=\"\",\"\",'1. Order'!BB372)","v":""},{"$f":"IF('1. Order'!BC372=\"\",\"\",'1. Order'!BC372)","v":""},{"$f":"IF('1. Order'!BD372=\"\",\"\",'1. Order'!BD372)","v":""},{"$f":"IF('1. Order'!BE372=\"\",\"\",'1. Order'!BE372)","v":""},{"$f":"IF('1. Order'!BG372=\"\",\"\",'1. Order'!BG372)","v":""},{"$f":"IF('1. Order'!BH372=\"\",\"\",'1. Order'!BH372)","v":""},{"$f":"IF('1. Order'!BI372=\"\",\"\",'1. Order'!BI372)","v":""},{"$f":"IF('1. Order'!BJ372=\"\",\"\",'1. Order'!BJ372)","v":""},{"$f":"IF('1. Order'!BK372=\"\",\"\",'1. Order'!BK372)","v":"ZWO"}]
[{"$f":"IF('1. Order'!G373=\"\",\"\",'1. Order'!G373)","v":""},{"$f":"IF('1. Order'!H373=\"\",\"\",'1. Order'!H373)","v":""},{"$f":"IF('1. Order'!I373=\"\",\"\",'1. Order'!I373)","v":""},{"$f":"IF('1. Order'!J373=\"\",\"\",'1. Order'!J373)","v":""},{"$f":"IF('1. Order'!K373=\"\",\"\",'1. Order'!K373)","v":""},{"$f":"IF('1. Order'!L373=\"\",\"\",'1. Order'!L373)","v":""},{"$f":"IF('1. Order'!M373=\"\",\"\",'1. Order'!M373)","v":""},{"$f":"IF('1. Order'!N373=\"\",\"\",'1. Order'!N373)","v":""},{"$f":"IF('1. Order'!P373=\"\",\"\",'1. Order'!P373)","v":""},{"$f":"IF('1. Order'!Q373=\"\",\"\",'1. Order'!Q373)","v":{"$error":"#N/A"}},{"$f":"IF('1. Order'!R373=\"\",\"\",'1. Order'!R373)","v":{"$error":"#N/A"}},{"$f":"IF('1. Order'!S373=\"\",\"\",'1. Order'!S373)","v":""},{"$f":"IF('1. Order'!T373=\"\",\"\",'1. Order'!T373)","v":""},{"$f":"IF('1. Order'!U373=\"\",\"\",'1. Order'!U373)","v":""},{"$f":"IF('1. Order'!X373=\"\",\"\",'1. Order'!X373)","v":""},{"$f":"IF('1. Order'!Y373=\"\",\"\",'1. Order'!Y373)","v":""},{"$f":"IF('1. Order'!Z373=\"\",\"\",'1. Order'!Z373)","v":""},{"$f":"IF('1. Order'!AC373=\"\",\"\",'1. Order'!AC373)","v":""},{"$f":"IF('1. Order'!AD373=\"\",\"\",'1. Order'!AD373)","v":""},{"$f":"IF('1. Order'!AE373=\"\",\"\",'1. Order'!AE373)","v":""},null,{"$f":"IF('1. Order'!AW373=\"\",\"\",'1. Order'!AW373)","v":""},{"$f":"IF('1. Order'!AX373=\"\",\"\",'1. Order'!AX373)","v":""},null,null,null,null,null,null,null,{"$f":"IF('1. Order'!BB373=\"\",\"\",'1. Order'!BB373)","v":""},{"$f":"IF('1. Order'!BC373=\"\",\"\",'1. Order'!BC373)","v":""},{"$f":"IF('1. Order'!BD373=\"\",\"\",'1. Order'!BD373)","v":""},{"$f":"IF('1. Order'!BE373=\"\",\"\",'1. Order'!BE373)","v":""},{"$f":"IF('1. Order'!BG373=\"\",\"\",'1. Order'!BG373)","v":""},{"$f":"IF('1. Order'!BH373=\"\",\"\",'1. Order'!BH373)","v":""},{"$f":"IF('1. Order'!BI373=\"\",\"\",'1. Order'!BI373)","v":""},{"$f":"IF('1. Order'!BJ373=\"\",\"\",'1. Order'!BJ373)","v":""},{"$f":"IF('1. Order'!BK373=\"\",\"\",'1. Order'!BK373)","v":"ZWO"}]
[{"$f":"IF('1. Order'!G374=\"\",\"\",'1. Order'!G374)","v":""},{"$f":"IF('1. Order'!H374=\"\",\"\",'1. Order'!H374)","v":""},{"$f":"IF('1. Order'!I374=\"\",\"\",'1. Order'!I374)","v":""},{"$f":"IF('1. Order'!J374=\"\",\"\",'1. Order'!J374)","v":""},{"$f":"IF('1. Order'!K374=\"\",\"\",'1. Order'!K374)","v":""},{"$f":"IF('1. Order'!L374=\"\",\"\",'1. Order'!L374)","v":""},{"$f":"IF('1. Order'!M374=\"\",\"\",'1. Order'!M374)","v":""},{"$f":"IF('1. Order'!N374=\"\",\"\",'1. Order'!N374)","v":""},{"$f":"IF('1. Order'!P374=\"\",\"\",'1. Order'!P374)","v":""},{"$f":"IF('1. Order'!Q374=\"\",\"\",'1. Order'!Q374)","v":{"$error":"#N/A"}},{"$f":"IF('1. Order'!R374=\"\",\"\",'1. Order'!R374)","v":{"$error":"#N/A"}},{"$f":"IF('1. Order'!S374=\"\",\"\",'1. Order'!S374)","v":""},{"$f":"IF('1. Order'!T374=\"\",\"\",'1. Order'!T374)","v":""},{"$f":"IF('1. Order'!U374=\"\",\"\",'1. Order'!U374)","v":""},{"$f":"IF('1. Order'!X374=\"\",\"\",'1. Order'!X374)","v":""},{"$f":"IF('1. Order'!Y374=\"\",\"\",'1. Order'!Y374)","v":""},{"$f":"IF('1. Order'!Z374=\"\",\"\",'1. Order'!Z374)","v":""},{"$f":"IF('1. Order'!AC374=\"\",\"\",'1. Order'!AC374)","v":""},{"$f":"IF('1. Order'!AD374=\"\",\"\",'1. Order'!AD374)","v":""},{"$f":"IF('1. Order'!AE374=\"\",\"\",'1. Order'!AE374)","v":""},null,{"$f":"IF('1. Order'!AW374=\"\",\"\",'1. Order'!AW374)","v":""},{"$f":"IF('1. Order'!AX374=\"\",\"\",'1. Order'!AX374)","v":""},null,null,null,null,null,null,null,{"$f":"IF('1. Order'!BB374=\"\",\"\",'1. Order'!BB374)","v":""},{"$f":"IF('1. Order'!BC374=\"\",\"\",'1. Order'!BC374)","v":""},{"$f":"IF('1. Order'!BD374=\"\",\"\",'1. Order'!BD374)","v":""},{"$f":"IF('1. Order'!BE374=\"\",\"\",'1. Order'!BE374)","v":""},{"$f":"IF('1. Order'!BG374=\"\",\"\",'1. Order'!BG374)","v":""},{"$f":"IF('1. Order'!BH374=\"\",\"\",'1. Order'!BH374)","v":""},{"$f":"IF('1. Order'!BI374=\"\",\"\",'1. Order'!BI374)","v":""},{"$f":"IF('1. Order'!BJ374=\"\",\"\",'1. Order'!BJ374)","v":""},{"$f":"IF('1. Order'!BK374=\"\",\"\",'1. Order'!BK374)","v":"ZWO"}]
[{"$f":"IF('1. Order'!G375=\"\",\"\",'1. Order'!G375)","v":""},{"$f":"IF('1. Order'!H375=\"\",\"\",'1. Order'!H375)","v":""},{"$f":"IF('1. Order'!I375=\"\",\"\",'1. Order'!I375)","v":""},{"$f":"IF('1. Order'!J375=\"\",\"\",'1. Order'!J375)","v":""},{"$f":"IF('1. Order'!K375=\"\",\"\",'1. Order'!K375)","v":""},{"$f":"IF('1. Order'!L375=\"\",\"\",'1. Order'!L375)","v":""},{"$f":"IF('1. Order'!M375=\"\",\"\",'1. Order'!M375)","v":""},{"$f":"IF('1. Order'!N375=\"\",\"\",'1. Order'!N375)","v":""},{"$f":"IF('1. Order'!P375=\"\",\"\",'1. Order'!P375)","v":""},{"$f":"IF('1. Order'!Q375=\"\",\"\",'1. Order'!Q375)","v":{"$error":"#N/A"}},{"$f":"IF('1. Order'!R375=\"\",\"\",'1. Order'!R375)","v":{"$error":"#N/A"}},{"$f":"IF('1. Order'!S375=\"\",\"\",'1. Order'!S375)","v":""},{"$f":"IF('1. Order'!T375=\"\",\"\",'1. Order'!T375)","v":""},{"$f":"IF('1. Order'!U375=\"\",\"\",'1. Order'!U375)","v":""},{"$f":"IF('1. Order'!X375=\"\",\"\",'1. Order'!X375)","v":""},{"$f":"IF('1. Order'!Y375=\"\",\"\",'1. Order'!Y375)","v":""},{"$f":"IF('1. Order'!Z375=\"\",\"\",'1. Order'!Z375)","v":""},{"$f":"IF('1. Order'!AC375=\"\",\"\",'1. Order'!AC375)","v":""},{"$f":"IF('1. Order'!AD375=\"\",\"\",'1. Order'!AD375)","v":""},{"$f":"IF('1. Order'!AE375=\"\",\"\",'1. Order'!AE375)","v":""},null,{"$f":"IF('1. Order'!AW375=\"\",\"\",'1. Order'!AW375)","v":""},{"$f":"IF('1. Order'!AX375=\"\",\"\",'1. Order'!AX375)","v":""},null,null,null,null,null,null,null,{"$f":"IF('1. Order'!BB375=\"\",\"\",'1. Order'!BB375)","v":""},{"$f":"IF('1. Order'!BC375=\"\",\"\",'1. Order'!BC375)","v":""},{"$f":"IF('1. Order'!BD375=\"\",\"\",'1. Order'!BD375)","v":""},{"$f":"IF('1. Order'!BE375=\"\",\"\",'1. Order'!BE375)","v":""},{"$f":"IF('1. Order'!BG375=\"\",\"\",'1. Order'!BG375)","v":""},{"$f":"IF('1. Order'!BH375=\"\",\"\",'1. Order'!BH375)","v":""},{"$f":"IF('1. Order'!BI375=\"\",\"\",'1. Order'!BI375)","v":""},{"$f":"IF('1. Order'!BJ375=\"\",\"\",'1. Order'!BJ375)","v":""},{"$f":"IF('1. Order'!BK375=\"\",\"\",'1. Order'!BK375)","v":"ZWO"}]
[{"$f":"IF('1. Order'!G376=\"\",\"\",'1. Order'!G376)","v":""},{"$f":"IF('1. Order'!H376=\"\",\"\",'1. Order'!H376)","v":""},{"$f":"IF('1. Order'!I376=\"\",\"\",'1. Order'!I376)","v":""},{"$f":"IF('1. Order'!J376=\"\",\"\",'1. Order'!J376)","v":""},{"$f":"IF('1. Order'!K376=\"\",\"\",'1. Order'!K376)","v":""},{"$f":"IF('1. Order'!L376=\"\",\"\",'1. Order'!L376)","v":""},{"$f":"IF('1. Order'!M376=\"\",\"\",'1. Order'!M376)","v":""},{"$f":"IF('1. Order'!N376=\"\",\"\",'1. Order'!N376)","v":""},{"$f":"IF('1. Order'!P376=\"\",\"\",'1. Order'!P376)","v":""},{"$f":"IF('1. Order'!Q376=\"\",\"\",'1. Order'!Q376)","v":{"$error":"#N/A"}},{"$f":"IF('1. Order'!R376=\"\",\"\",'1. Order'!R376)","v":{"$error":"#N/A"}},{"$f":"IF('1. Order'!S376=\"\",\"\",'1. Order'!S376)","v":""},{"$f":"IF('1. Order'!T376=\"\",\"\",'1. Order'!T376)","v":""},{"$f":"IF('1. Order'!U376=\"\",\"\",'1. Order'!U376)","v":""},{"$f":"IF('1. Order'!X376=\"\",\"\",'1. Order'!X376)","v":""},{"$f":"IF('1. Order'!Y376=\"\",\"\",'1. Order'!Y376)","v":""},{"$f":"IF('1. Order'!Z376=\"\",\"\",'1. Order'!Z376)","v":""},{"$f":"IF('1. Order'!AC376=\"\",\"\",'1. Order'!AC376)","v":""},{"$f":"IF('1. Order'!AD376=\"\",\"\",'1. Order'!AD376)","v":""},{"$f":"IF('1. Order'!AE376=\"\",\"\",'1. Order'!AE376)","v":""},null,{"$f":"IF('1. Order'!AW376=\"\",\"\",'1. Order'!AW376)","v":""},{"$f":"IF('1. Order'!AX376=\"\",\"\",'1. Order'!AX376)","v":""},null,null,null,null,null,null,null,{"$f":"IF('1. Order'!BB376=\"\",\"\",'1. Order'!BB376)","v":""},{"$f":"IF('1. Order'!BC376=\"\",\"\",'1. Order'!BC376)","v":""},{"$f":"IF('1. Order'!BD376=\"\",\"\",'1. Order'!BD376)","v":""},{"$f":"IF('1. Order'!BE376=\"\",\"\",'1. Order'!BE376)","v":""},{"$f":"IF('1. Order'!BG376=\"\",\"\",'1. Order'!BG376)","v":""},{"$f":"IF('1. Order'!BH376=\"\",\"\",'1. Order'!BH376)","v":""},{"$f":"IF('1. Order'!BI376=\"\",\"\",'1. Order'!BI376)","v":""},{"$f":"IF('1. Order'!BJ376=\"\",\"\",'1. Order'!BJ376)","v":""},{"$f":"IF('1. Order'!BK376=\"\",\"\",'1. Order'!BK376)","v":"ZWO"}]
[{"$f":"IF('1. Order'!G377=\"\",\"\",'1. Order'!G377)","v":""},{"$f":"IF('1. Order'!H377=\"\",\"\",'1. Order'!H377)","v":""},{"$f":"IF('1. Order'!I377=\"\",\"\",'1. Order'!I377)","v":""},{"$f":"IF('1. Order'!J377=\"\",\"\",'1. Order'!J377)","v":""},{"$f":"IF('1. Order'!K377=\"\",\"\",'1. Order'!K377)","v":""},{"$f":"IF('1. Order'!L377=\"\",\"\",'1. Order'!L377)","v":""},{"$f":"IF('1. Order'!M377=\"\",\"\",'1. Order'!M377)","v":""},{"$f":"IF('1. Order'!N377=\"\",\"\",'1. Order'!N377)","v":""},{"$f":"IF('1. Order'!P377=\"\",\"\",'1. Order'!P377)","v":""},{"$f":"IF('1. Order'!Q377=\"\",\"\",'1. Order'!Q377)","v":{"$error":"#N/A"}},{"$f":"IF('1. Order'!R377=\"\",\"\",'1. Order'!R377)","v":{"$error":"#N/A"}},{"$f":"IF('1. Order'!S377=\"\",\"\",'1. Order'!S377)","v":""},{"$f":"IF('1. Order'!T377=\"\",\"\",'1. Order'!T377)","v":""},{"$f":"IF('1. Order'!U377=\"\",\"\",'1. Order'!U377)","v":""},{"$f":"IF('1. Order'!X377=\"\",\"\",'1. Order'!X377)","v":""},{"$f":"IF('1. Order'!Y377=\"\",\"\",'1. Order'!Y377)","v":""},{"$f":"IF('1. Order'!Z377=\"\",\"\",'1. Order'!Z377)","v":""},{"$f":"IF('1. Order'!AC377=\"\",\"\",'1. Order'!AC377)","v":""},{"$f":"IF('1. Order'!AD377=\"\",\"\",'1. Order'!AD377)","v":""},{"$f":"IF('1. Order'!AE377=\"\",\"\",'1. Order'!AE377)","v":""},null,{"$f":"IF('1. Order'!AW377=\"\",\"\",'1. Order'!AW377)","v":""},{"$f":"IF('1. Order'!AX377=\"\",\"\",'1. Order'!AX377)","v":""},null,null,null,null,null,null,null,{"$f":"IF('1. Order'!BB377=\"\",\"\",'1. Order'!BB377)","v":""},{"$f":"IF('1. Order'!BC377=\"\",\"\",'1. Order'!BC377)","v":""},{"$f":"IF('1. Order'!BD377=\"\",\"\",'1. Order'!BD377)","v":""},{"$f":"IF('1. Order'!BE377=\"\",\"\",'1. Order'!BE377)","v":""},{"$f":"IF('1. Order'!BG377=\"\",\"\",'1. Order'!BG377)","v":""},{"$f":"IF('1. Order'!BH377=\"\",\"\",'1. Order'!BH377)","v":""},{"$f":"IF('1. Order'!BI377=\"\",\"\",'1. Order'!BI377)","v":""},{"$f":"IF('1. Order'!BJ377=\"\",\"\",'1. Order'!BJ377)","v":""},{"$f":"IF('1. Order'!BK377=\"\",\"\",'1. Order'!BK377)","v":"ZWO"}]
[{"$f":"IF('1. Order'!G378=\"\",\"\",'1. Order'!G378)","v":""},{"$f":"IF('1. Order'!H378=\"\",\"\",'1. Order'!H378)","v":""},{"$f":"IF('1. Order'!I378=\"\",\"\",'1. Order'!I378)","v":""},{"$f":"IF('1. Order'!J378=\"\",\"\",'1. Order'!J378)","v":""},{"$f":"IF('1. Order'!K378=\"\",\"\",'1. Order'!K378)","v":""},{"$f":"IF('1. Order'!L378=\"\",\"\",'1. Order'!L378)","v":""},{"$f":"IF('1. Order'!M378=\"\",\"\",'1. Order'!M378)","v":""},{"$f":"IF('1. Order'!N378=\"\",\"\",'1. Order'!N378)","v":""},{"$f":"IF('1. Order'!P378=\"\",\"\",'1. Order'!P378)","v":""},{"$f":"IF('1. Order'!Q378=\"\",\"\",'1. Order'!Q378)","v":{"$error":"#N/A"}},{"$f":"IF('1. Order'!R378=\"\",\"\",'1. Order'!R378)","v":{"$error":"#N/A"}},{"$f":"IF('1. Order'!S378=\"\",\"\",'1. Order'!S378)","v":""},{"$f":"IF('1. Order'!T378=\"\",\"\",'1. Order'!T378)","v":""},{"$f":"IF('1. Order'!U378=\"\",\"\",'1. Order'!U378)","v":""},{"$f":"IF('1. Order'!X378=\"\",\"\",'1. Order'!X378)","v":""},{"$f":"IF('1. Order'!Y378=\"\",\"\",'1. Order'!Y378)","v":""},{"$f":"IF('1. Order'!Z378=\"\",\"\",'1. Order'!Z378)","v":""},{"$f":"IF('1. Order'!AC378=\"\",\"\",'1. Order'!AC378)","v":""},{"$f":"IF('1. Order'!AD378=\"\",\"\",'1. Order'!AD378)","v":""},{"$f":"IF('1. Order'!AE378=\"\",\"\",'1. Order'!AE378)","v":""},null,{"$f":"IF('1. Order'!AW378=\"\",\"\",'1. Order'!AW378)","v":""},{"$f":"IF('1. Order'!AX378=\"\",\"\",'1. Order'!AX378)","v":""},null,null,null,null,null,null,null,{"$f":"IF('1. Order'!BB378=\"\",\"\",'1. Order'!BB378)","v":""},{"$f":"IF('1. Order'!BC378=\"\",\"\",'1. Order'!BC378)","v":""},{"$f":"IF('1. Order'!BD378=\"\",\"\",'1. Order'!BD378)","v":""},{"$f":"IF('1. Order'!BE378=\"\",\"\",'1. Order'!BE378)","v":""},{"$f":"IF('1. Order'!BG378=\"\",\"\",'1. Order'!BG378)","v":""},{"$f":"IF('1. Order'!BH378=\"\",\"\",'1. Order'!BH378)","v":""},{"$f":"IF('1. Order'!BI378=\"\",\"\",'1. Order'!BI378)","v":""},{"$f":"IF('1. Order'!BJ378=\"\",\"\",'1. Order'!BJ378)","v":""},{"$f":"IF('1. Order'!BK378=\"\",\"\",'1. Order'!BK378)","v":"ZWO"}]
[{"$f":"IF('1. Order'!G379=\"\",\"\",'1. Order'!G379)","v":""},{"$f":"IF('1. Order'!H379=\"\",\"\",'1. Order'!H379)","v":""},{"$f":"IF('1. Order'!I379=\"\",\"\",'1. Order'!I379)","v":""},{"$f":"IF('1. Order'!J379=\"\",\"\",'1. Order'!J379)","v":""},{"$f":"IF('1. Order'!K379=\"\",\"\",'1. Order'!K379)","v":""},{"$f":"IF('1. Order'!L379=\"\",\"\",'1. Order'!L379)","v":""},{"$f":"IF('1. Order'!M379=\"\",\"\",'1. Order'!M379)","v":""},{"$f":"IF('1. Order'!N379=\"\",\"\",'1. Order'!N379)","v":""},{"$f":"IF('1. Order'!P379=\"\",\"\",'1. Order'!P379)","v":""},{"$f":"IF('1. Order'!Q379=\"\",\"\",'1. Order'!Q379)","v":{"$error":"#N/A"}},{"$f":"IF('1. Order'!R379=\"\",\"\",'1. Order'!R379)","v":{"$error":"#N/A"}},{"$f":"IF('1. Order'!S379=\"\",\"\",'1. Order'!S379)","v":""},{"$f":"IF('1. Order'!T379=\"\",\"\",'1. Order'!T379)","v":""},{"$f":"IF('1. Order'!U379=\"\",\"\",'1. Order'!U379)","v":""},{"$f":"IF('1. Order'!X379=\"\",\"\",'1. Order'!X379)","v":""},{"$f":"IF('1. Order'!Y379=\"\",\"\",'1. Order'!Y379)","v":""},{"$f":"IF('1. Order'!Z379=\"\",\"\",'1. Order'!Z379)","v":""},{"$f":"IF('1. Order'!AC379=\"\",\"\",'1. Order'!AC379)","v":""},{"$f":"IF('1. Order'!AD379=\"\",\"\",'1. Order'!AD379)","v":""},{"$f":"IF('1. Order'!AE379=\"\",\"\",'1. Order'!AE379)","v":""},null,{"$f":"IF('1. Order'!AW379=\"\",\"\",'1. Order'!AW379)","v":""},{"$f":"IF('1. Order'!AX379=\"\",\"\",'1. Order'!AX379)","v":""},null,null,null,null,null,null,null,{"$f":"IF('1. Order'!BB379=\"\",\"\",'1. Order'!BB379)","v":""},{"$f":"IF('1. Order'!BC379=\"\",\"\",'1. Order'!BC379)","v":""},{"$f":"IF('1. Order'!BD379=\"\",\"\",'1. Order'!BD379)","v":""},{"$f":"IF('1. Order'!BE379=\"\",\"\",'1. Order'!BE379)","v":""},{"$f":"IF('1. Order'!BG379=\"\",\"\",'1. Order'!BG379)","v":""},{"$f":"IF('1. Order'!BH379=\"\",\"\",'1. Order'!BH379)","v":""},{"$f":"IF('1. Order'!BI379=\"\",\"\",'1. Order'!BI379)","v":""},{"$f":"IF('1. Order'!BJ379=\"\",\"\",'1. Order'!BJ379)","v":""},{"$f":"IF('1. Order'!BK379=\"\",\"\",'1. Order'!BK379)","v":"ZWO"}]
[{"$f":"IF('1. Order'!G380=\"\",\"\",'1. Order'!G380)","v":""},{"$f":"IF('1. Order'!H380=\"\",\"\",'1. Order'!H380)","v":""},{"$f":"IF('1. Order'!I380=\"\",\"\",'1. Order'!I380)","v":""},{"$f":"IF('1. Order'!J380=\"\",\"\",'1. Order'!J380)","v":""},{"$f":"IF('1. Order'!K380=\"\",\"\",'1. Order'!K380)","v":""},{"$f":"IF('1. Order'!L380=\"\",\"\",'1. Order'!L380)","v":""},{"$f":"IF('1. Order'!M380=\"\",\"\",'1. Order'!M380)","v":""},{"$f":"IF('1. Order'!N380=\"\",\"\",'1. Order'!N380)","v":""},{"$f":"IF('1. Order'!P380=\"\",\"\",'1. Order'!P380)","v":""},{"$f":"IF('1. Order'!Q380=\"\",\"\",'1. Order'!Q380)","v":{"$error":"#N/A"}},{"$f":"IF('1. Order'!R380=\"\",\"\",'1. Order'!R380)","v":{"$error":"#N/A"}},{"$f":"IF('1. Order'!S380=\"\",\"\",'1. Order'!S380)","v":""},{"$f":"IF('1. Order'!T380=\"\",\"\",'1. Order'!T380)","v":""},{"$f":"IF('1. Order'!U380=\"\",\"\",'1. Order'!U380)","v":""},{"$f":"IF('1. Order'!X380=\"\",\"\",'1. Order'!X380)","v":""},{"$f":"IF('1. Order'!Y380=\"\",\"\",'1. Order'!Y380)","v":""},{"$f":"IF('1. Order'!Z380=\"\",\"\",'1. Order'!Z380)","v":""},{"$f":"IF('1. Order'!AC380=\"\",\"\",'1. Order'!AC380)","v":""},{"$f":"IF('1. Order'!AD380=\"\",\"\",'1. Order'!AD380)","v":""},{"$f":"IF('1. Order'!AE380=\"\",\"\",'1. Order'!AE380)","v":""},null,{"$f":"IF('1. Order'!AW380=\"\",\"\",'1. Order'!AW380)","v":""},{"$f":"IF('1. Order'!AX380=\"\",\"\",'1. Order'!AX380)","v":""},null,null,null,null,null,null,null,{"$f":"IF('1. Order'!BB380=\"\",\"\",'1. Order'!BB380)","v":""},{"$f":"IF('1. Order'!BC380=\"\",\"\",'1. Order'!BC380)","v":""},{"$f":"IF('1. Order'!BD380=\"\",\"\",'1. Order'!BD380)","v":""},{"$f":"IF('1. Order'!BE380=\"\",\"\",'1. Order'!BE380)","v":""},{"$f":"IF('1. Order'!BG380=\"\",\"\",'1. Order'!BG380)","v":""},{"$f":"IF('1. Order'!BH380=\"\",\"\",'1. Order'!BH380)","v":""},{"$f":"IF('1. Order'!BI380=\"\",\"\",'1. Order'!BI380)","v":""},{"$f":"IF('1. Order'!BJ380=\"\",\"\",'1. Order'!BJ380)","v":""},{"$f":"IF('1. Order'!BK380=\"\",\"\",'1. Order'!BK380)","v":"ZWO"}]
[{"$f":"IF('1. Order'!G381=\"\",\"\",'1. Order'!G381)","v":""},{"$f":"IF('1. Order'!H381=\"\",\"\",'1. Order'!H381)","v":""},{"$f":"IF('1. Order'!I381=\"\",\"\",'1. Order'!I381)","v":""},{"$f":"IF('1. Order'!J381=\"\",\"\",'1. Order'!J381)","v":""},{"$f":"IF('1. Order'!K381=\"\",\"\",'1. Order'!K381)","v":""},{"$f":"IF('1. Order'!L381=\"\",\"\",'1. Order'!L381)","v":""},{"$f":"IF('1. Order'!M381=\"\",\"\",'1. Order'!M381)","v":""},{"$f":"IF('1. Order'!N381=\"\",\"\",'1. Order'!N381)","v":""},{"$f":"IF('1. Order'!P381=\"\",\"\",'1. Order'!P381)","v":""},{"$f":"IF('1. Order'!Q381=\"\",\"\",'1. Order'!Q381)","v":{"$error":"#N/A"}},{"$f":"IF('1. Order'!R381=\"\",\"\",'1. Order'!R381)","v":{"$error":"#N/A"}},{"$f":"IF('1. Order'!S381=\"\",\"\",'1. Order'!S381)","v":""},{"$f":"IF('1. Order'!T381=\"\",\"\",'1. Order'!T381)","v":""},{"$f":"IF('1. Order'!U381=\"\",\"\",'1. Order'!U381)","v":""},{"$f":"IF('1. Order'!X381=\"\",\"\",'1. Order'!X381)","v":""},{"$f":"IF('1. Order'!Y381=\"\",\"\",'1. Order'!Y381)","v":""},{"$f":"IF('1. Order'!Z381=\"\",\"\",'1. Order'!Z381)","v":""},{"$f":"IF('1. Order'!AC381=\"\",\"\",'1. Order'!AC381)","v":""},{"$f":"IF('1. Order'!AD381=\"\",\"\",'1. Order'!AD381)","v":""},{"$f":"IF('1. Order'!AE381=\"\",\"\",'1. Order'!AE381)","v":""},null,{"$f":"IF('1. Order'!AW381=\"\",\"\",'1. Order'!AW381)","v":""},{"$f":"IF('1. Order'!AX381=\"\",\"\",'1. Order'!AX381)","v":""},null,null,null,null,null,null,null,{"$f":"IF('1. Order'!BB381=\"\",\"\",'1. Order'!BB381)","v":""},{"$f":"IF('1. Order'!BC381=\"\",\"\",'1. Order'!BC381)","v":""},{"$f":"IF('1. Order'!BD381=\"\",\"\",'1. Order'!BD381)","v":""},{"$f":"IF('1. Order'!BE381=\"\",\"\",'1. Order'!BE381)","v":""},{"$f":"IF('1. Order'!BG381=\"\",\"\",'1. Order'!BG381)","v":""},{"$f":"IF('1. Order'!BH381=\"\",\"\",'1. Order'!BH381)","v":""},{"$f":"IF('1. Order'!BI381=\"\",\"\",'1. Order'!BI381)","v":""},{"$f":"IF('1. Order'!BJ381=\"\",\"\",'1. Order'!BJ381)","v":""},{"$f":"IF('1. Order'!BK381=\"\",\"\",'1. Order'!BK381)","v":"ZWO"}]
[{"$f":"IF('1. Order'!G382=\"\",\"\",'1. Order'!G382)","v":""},{"$f":"IF('1. Order'!H382=\"\",\"\",'1. Order'!H382)","v":""},{"$f":"IF('1. Order'!I382=\"\",\"\",'1. Order'!I382)","v":""},{"$f":"IF('1. Order'!J382=\"\",\"\",'1. Order'!J382)","v":""},{"$f":"IF('1. Order'!K382=\"\",\"\",'1. Order'!K382)","v":""},{"$f":"IF('1. Order'!L382=\"\",\"\",'1. Order'!L382)","v":""},{"$f":"IF('1. Order'!M382=\"\",\"\",'1. Order'!M382)","v":""},{"$f":"IF('1. Order'!N382=\"\",\"\",'1. Order'!N382)","v":""},{"$f":"IF('1. Order'!P382=\"\",\"\",'1. Order'!P382)","v":""},{"$f":"IF('1. Order'!Q382=\"\",\"\",'1. Order'!Q382)","v":{"$error":"#N/A"}},{"$f":"IF('1. Order'!R382=\"\",\"\",'1. Order'!R382)","v":{"$error":"#N/A"}},{"$f":"IF('1. Order'!S382=\"\",\"\",'1. Order'!S382)","v":""},{"$f":"IF('1. Order'!T382=\"\",\"\",'1. Order'!T382)","v":""},{"$f":"IF('1. Order'!U382=\"\",\"\",'1. Order'!U382)","v":""},{"$f":"IF('1. Order'!X382=\"\",\"\",'1. Order'!X382)","v":""},{"$f":"IF('1. Order'!Y382=\"\",\"\",'1. Order'!Y382)","v":""},{"$f":"IF('1. Order'!Z382=\"\",\"\",'1. Order'!Z382)","v":""},{"$f":"IF('1. Order'!AC382=\"\",\"\",'1. Order'!AC382)","v":""},{"$f":"IF('1. Order'!AD382=\"\",\"\",'1. Order'!AD382)","v":""},{"$f":"IF('1. Order'!AE382=\"\",\"\",'1. Order'!AE382)","v":""},null,{"$f":"IF('1. Order'!AW382=\"\",\"\",'1. Order'!AW382)","v":""},{"$f":"IF('1. Order'!AX382=\"\",\"\",'1. Order'!AX382)","v":""},null,null,null,null,null,null,null,{"$f":"IF('1. Order'!BB382=\"\",\"\",'1. Order'!BB382)","v":""},{"$f":"IF('1. Order'!BC382=\"\",\"\",'1. Order'!BC382)","v":""},{"$f":"IF('1. Order'!BD382=\"\",\"\",'1. Order'!BD382)","v":""},{"$f":"IF('1. Order'!BE382=\"\",\"\",'1. Order'!BE382)","v":""},{"$f":"IF('1. Order'!BG382=\"\",\"\",'1. Order'!BG382)","v":""},{"$f":"IF('1. Order'!BH382=\"\",\"\",'1. Order'!BH382)","v":""},{"$f":"IF('1. Order'!BI382=\"\",\"\",'1. Order'!BI382)","v":""},{"$f":"IF('1. Order'!BJ382=\"\",\"\",'1. Order'!BJ382)","v":""},{"$f":"IF('1. Order'!BK382=\"\",\"\",'1. Order'!BK382)","v":"ZWO"}]
[{"$f":"IF('1. Order'!G383=\"\",\"\",'1. Order'!G383)","v":""},{"$f":"IF('1. Order'!H383=\"\",\"\",'1. Order'!H383)","v":""},{"$f":"IF('1. Order'!I383=\"\",\"\",'1. Order'!I383)","v":""},{"$f":"IF('1. Order'!J383=\"\",\"\",'1. Order'!J383)","v":""},{"$f":"IF('1. Order'!K383=\"\",\"\",'1. Order'!K383)","v":""},{"$f":"IF('1. Order'!L383=\"\",\"\",'1. Order'!L383)","v":""},{"$f":"IF('1. Order'!M383=\"\",\"\",'1. Order'!M383)","v":""},{"$f":"IF('1. Order'!N383=\"\",\"\",'1. Order'!N383)","v":""},{"$f":"IF('1. Order'!P383=\"\",\"\",'1. Order'!P383)","v":""},{"$f":"IF('1. Order'!Q383=\"\",\"\",'1. Order'!Q383)","v":{"$error":"#N/A"}},{"$f":"IF('1. Order'!R383=\"\",\"\",'1. Order'!R383)","v":{"$error":"#N/A"}},{"$f":"IF('1. Order'!S383=\"\",\"\",'1. Order'!S383)","v":""},{"$f":"IF('1. Order'!T383=\"\",\"\",'1. Order'!T383)","v":""},{"$f":"IF('1. Order'!U383=\"\",\"\",'1. Order'!U383)","v":""},{"$f":"IF('1. Order'!X383=\"\",\"\",'1. Order'!X383)","v":""},{"$f":"IF('1. Order'!Y383=\"\",\"\",'1. Order'!Y383)","v":""},{"$f":"IF('1. Order'!Z383=\"\",\"\",'1. Order'!Z383)","v":""},{"$f":"IF('1. Order'!AC383=\"\",\"\",'1. Order'!AC383)","v":""},{"$f":"IF('1. Order'!AD383=\"\",\"\",'1. Order'!AD383)","v":""},{"$f":"IF('1. Order'!AE383=\"\",\"\",'1. Order'!AE383)","v":""},null,{"$f":"IF('1. Order'!AW383=\"\",\"\",'1. Order'!AW383)","v":""},{"$f":"IF('1. Order'!AX383=\"\",\"\",'1. Order'!AX383)","v":""},null,null,null,null,null,null,null,{"$f":"IF('1. Order'!BB383=\"\",\"\",'1. Order'!BB383)","v":""},{"$f":"IF('1. Order'!BC383=\"\",\"\",'1. Order'!BC383)","v":""},{"$f":"IF('1. Order'!BD383=\"\",\"\",'1. Order'!BD383)","v":""},{"$f":"IF('1. Order'!BE383=\"\",\"\",'1. Order'!BE383)","v":""},{"$f":"IF('1. Order'!BG383=\"\",\"\",'1. Order'!BG383)","v":""},{"$f":"IF('1. Order'!BH383=\"\",\"\",'1. Order'!BH383)","v":""},{"$f":"IF('1. Order'!BI383=\"\",\"\",'1. Order'!BI383)","v":""},{"$f":"IF('1. Order'!BJ383=\"\",\"\",'1. Order'!BJ383)","v":""},{"$f":"IF('1. Order'!BK383=\"\",\"\",'1. Order'!BK383)","v":"ZWO"}]
[{"$f":"IF('1. Order'!G384=\"\",\"\",'1. Order'!G384)","v":""},{"$f":"IF('1. Order'!H384=\"\",\"\",'1. Order'!H384)","v":""},{"$f":"IF('1. Order'!I384=\"\",\"\",'1. Order'!I384)","v":""},{"$f":"IF('1. Order'!J384=\"\",\"\",'1. Order'!J384)","v":""},{"$f":"IF('1. Order'!K384=\"\",\"\",'1. Order'!K384)","v":""},{"$f":"IF('1. Order'!L384=\"\",\"\",'1. Order'!L384)","v":""},{"$f":"IF('1. Order'!M384=\"\",\"\",'1. Order'!M384)","v":""},{"$f":"IF('1. Order'!N384=\"\",\"\",'1. Order'!N384)","v":""},{"$f":"IF('1. Order'!P384=\"\",\"\",'1. Order'!P384)","v":""},{"$f":"IF('1. Order'!Q384=\"\",\"\",'1. Order'!Q384)","v":{"$error":"#N/A"}},{"$f":"IF('1. Order'!R384=\"\",\"\",'1. Order'!R384)","v":{"$error":"#N/A"}},{"$f":"IF('1. Order'!S384=\"\",\"\",'1. Order'!S384)","v":""},{"$f":"IF('1. Order'!T384=\"\",\"\",'1. Order'!T384)","v":""},{"$f":"IF('1. Order'!U384=\"\",\"\",'1. Order'!U384)","v":""},{"$f":"IF('1. Order'!X384=\"\",\"\",'1. Order'!X384)","v":""},{"$f":"IF('1. Order'!Y384=\"\",\"\",'1. Order'!Y384)","v":""},{"$f":"IF('1. Order'!Z384=\"\",\"\",'1. Order'!Z384)","v":""},{"$f":"IF('1. Order'!AC384=\"\",\"\",'1. Order'!AC384)","v":""},{"$f":"IF('1. Order'!AD384=\"\",\"\",'1. Order'!AD384)","v":""},{"$f":"IF('1. Order'!AE384=\"\",\"\",'1. Order'!AE384)","v":""},null,{"$f":"IF('1. Order'!AW384=\"\",\"\",'1. Order'!AW384)","v":""},{"$f":"IF('1. Order'!AX384=\"\",\"\",'1. Order'!AX384)","v":""},null,null,null,null,null,null,null,{"$f":"IF('1. Order'!BB384=\"\",\"\",'1. Order'!BB384)","v":""},{"$f":"IF('1. Order'!BC384=\"\",\"\",'1. Order'!BC384)","v":""},{"$f":"IF('1. Order'!BD384=\"\",\"\",'1. Order'!BD384)","v":""},{"$f":"IF('1. Order'!BE384=\"\",\"\",'1. Order'!BE384)","v":""},{"$f":"IF('1. Order'!BG384=\"\",\"\",'1. Order'!BG384)","v":""},{"$f":"IF('1. Order'!BH384=\"\",\"\",'1. Order'!BH384)","v":""},{"$f":"IF('1. Order'!BI384=\"\",\"\",'1. Order'!BI384)","v":""},{"$f":"IF('1. Order'!BJ384=\"\",\"\",'1. Order'!BJ384)","v":""},{"$f":"IF('1. Order'!BK384=\"\",\"\",'1. Order'!BK384)","v":"ZWO"}]
[{"$f":"IF('1. Order'!G385=\"\",\"\",'1. Order'!G385)","v":""},{"$f":"IF('1. Order'!H385=\"\",\"\",'1. Order'!H385)","v":""},{"$f":"IF('1. Order'!I385=\"\",\"\",'1. Order'!I385)","v":""},{"$f":"IF('1. Order'!J385=\"\",\"\",'1. Order'!J385)","v":""},{"$f":"IF('1. Order'!K385=\"\",\"\",'1. Order'!K385)","v":""},{"$f":"IF('1. Order'!L385=\"\",\"\",'1. Order'!L385)","v":""},{"$f":"IF('1. Order'!M385=\"\",\"\",'1. Order'!M385)","v":""},{"$f":"IF('1. Order'!N385=\"\",\"\",'1. Order'!N385)","v":""},{"$f":"IF('1. Order'!P385=\"\",\"\",'1. Order'!P385)","v":""},{"$f":"IF('1. Order'!Q385=\"\",\"\",'1. Order'!Q385)","v":{"$error":"#N/A"}},{"$f":"IF('1. Order'!R385=\"\",\"\",'1. Order'!R385)","v":{"$error":"#N/A"}},{"$f":"IF('1. Order'!S385=\"\",\"\",'1. Order'!S385)","v":""},{"$f":"IF('1. Order'!T385=\"\",\"\",'1. Order'!T385)","v":""},{"$f":"IF('1. Order'!U385=\"\",\"\",'1. Order'!U385)","v":""},{"$f":"IF('1. Order'!X385=\"\",\"\",'1. Order'!X385)","v":""},{"$f":"IF('1. Order'!Y385=\"\",\"\",'1. Order'!Y385)","v":""},{"$f":"IF('1. Order'!Z385=\"\",\"\",'1. Order'!Z385)","v":""},{"$f":"IF('1. Order'!AC385=\"\",\"\",'1. Order'!AC385)","v":""},{"$f":"IF('1. Order'!AD385=\"\",\"\",'1. Order'!AD385)","v":""},{"$f":"IF('1. Order'!AE385=\"\",\"\",'1. Order'!AE385)","v":""},null,{"$f":"IF('1. Order'!AW385=\"\",\"\",'1. Order'!AW385)","v":""},{"$f":"IF('1. Order'!AX385=\"\",\"\",'1. Order'!AX385)","v":""},null,null,null,null,null,null,null,{"$f":"IF('1. Order'!BB385=\"\",\"\",'1. Order'!BB385)","v":""},{"$f":"IF('1. Order'!BC385=\"\",\"\",'1. Order'!BC385)","v":""},{"$f":"IF('1. Order'!BD385=\"\",\"\",'1. Order'!BD385)","v":""},{"$f":"IF('1. Order'!BE385=\"\",\"\",'1. Order'!BE385)","v":""},{"$f":"IF('1. Order'!BG385=\"\",\"\",'1. Order'!BG385)","v":""},{"$f":"IF('1. Order'!BH385=\"\",\"\",'1. Order'!BH385)","v":""},{"$f":"IF('1. Order'!BI385=\"\",\"\",'1. Order'!BI385)","v":""},{"$f":"IF('1. Order'!BJ385=\"\",\"\",'1. Order'!BJ385)","v":""},{"$f":"IF('1. Order'!BK385=\"\",\"\",'1. Order'!BK385)","v":"ZWO"}]
[{"$f":"IF('1. Order'!G386=\"\",\"\",'1. Order'!G386)","v":""},{"$f":"IF('1. Order'!H386=\"\",\"\",'1. Order'!H386)","v":""},{"$f":"IF('1. Order'!I386=\"\",\"\",'1. Order'!I386)","v":""},{"$f":"IF('1. Order'!J386=\"\",\"\",'1. Order'!J386)","v":""},{"$f":"IF('1. Order'!K386=\"\",\"\",'1. Order'!K386)","v":""},{"$f":"IF('1. Order'!L386=\"\",\"\",'1. Order'!L386)","v":""},{"$f":"IF('1. Order'!M386=\"\",\"\",'1. Order'!M386)","v":""},{"$f":"IF('1. Order'!N386=\"\",\"\",'1. Order'!N386)","v":""},{"$f":"IF('1. Order'!P386=\"\",\"\",'1. Order'!P386)","v":""},{"$f":"IF('1. Order'!Q386=\"\",\"\",'1. Order'!Q386)","v":{"$error":"#N/A"}},{"$f":"IF('1. Order'!R386=\"\",\"\",'1. Order'!R386)","v":{"$error":"#N/A"}},{"$f":"IF('1. Order'!S386=\"\",\"\",'1. Order'!S386)","v":""},{"$f":"IF('1. Order'!T386=\"\",\"\",'1. Order'!T386)","v":""},{"$f":"IF('1. Order'!U386=\"\",\"\",'1. Order'!U386)","v":""},{"$f":"IF('1. Order'!X386=\"\",\"\",'1. Order'!X386)","v":""},{"$f":"IF('1. Order'!Y386=\"\",\"\",'1. Order'!Y386)","v":""},{"$f":"IF('1. Order'!Z386=\"\",\"\",'1. Order'!Z386)","v":""},{"$f":"IF('1. Order'!AC386=\"\",\"\",'1. Order'!AC386)","v":""},{"$f":"IF('1. Order'!AD386=\"\",\"\",'1. Order'!AD386)","v":""},{"$f":"IF('1. Order'!AE386=\"\",\"\",'1. Order'!AE386)","v":""},null,{"$f":"IF('1. Order'!AW386=\"\",\"\",'1. Order'!AW386)","v":""},{"$f":"IF('1. Order'!AX386=\"\",\"\",'1. Order'!AX386)","v":""},null,null,null,null,null,null,null,{"$f":"IF('1. Order'!BB386=\"\",\"\",'1. Order'!BB386)","v":""},{"$f":"IF('1. Order'!BC386=\"\",\"\",'1. Order'!BC386)","v":""},{"$f":"IF('1. Order'!BD386=\"\",\"\",'1. Order'!BD386)","v":""},{"$f":"IF('1. Order'!BE386=\"\",\"\",'1. Order'!BE386)","v":""},{"$f":"IF('1. Order'!BG386=\"\",\"\",'1. Order'!BG386)","v":""},{"$f":"IF('1. Order'!BH386=\"\",\"\",'1. Order'!BH386)","v":""},{"$f":"IF('1. Order'!BI386=\"\",\"\",'1. Order'!BI386)","v":""},{"$f":"IF('1. Order'!BJ386=\"\",\"\",'1. Order'!BJ386)","v":""},{"$f":"IF('1. Order'!BK386=\"\",\"\",'1. Order'!BK386)","v":"ZWO"}]
[{"$f":"IF('1. Order'!G387=\"\",\"\",'1. Order'!G387)","v":""},{"$f":"IF('1. Order'!H387=\"\",\"\",'1. Order'!H387)","v":""},{"$f":"IF('1. Order'!I387=\"\",\"\",'1. Order'!I387)","v":""},{"$f":"IF('1. Order'!J387=\"\",\"\",'1. Order'!J387)","v":""},{"$f":"IF('1. Order'!K387=\"\",\"\",'1. Order'!K387)","v":""},{"$f":"IF('1. Order'!L387=\"\",\"\",'1. Order'!L387)","v":""},{"$f":"IF('1. Order'!M387=\"\",\"\",'1. Order'!M387)","v":""},{"$f":"IF('1. Order'!N387=\"\",\"\",'1. Order'!N387)","v":""},{"$f":"IF('1. Order'!P387=\"\",\"\",'1. Order'!P387)","v":""},{"$f":"IF('1. Order'!Q387=\"\",\"\",'1. Order'!Q387)","v":{"$error":"#N/A"}},{"$f":"IF('1. Order'!R387=\"\",\"\",'1. Order'!R387)","v":{"$error":"#N/A"}},{"$f":"IF('1. Order'!S387=\"\",\"\",'1. Order'!S387)","v":""},{"$f":"IF('1. Order'!T387=\"\",\"\",'1. Order'!T387)","v":""},{"$f":"IF('1. Order'!U387=\"\",\"\",'1. Order'!U387)","v":""},{"$f":"IF('1. Order'!X387=\"\",\"\",'1. Order'!X387)","v":""},{"$f":"IF('1. Order'!Y387=\"\",\"\",'1. Order'!Y387)","v":""},{"$f":"IF('1. Order'!Z387=\"\",\"\",'1. Order'!Z387)","v":""},{"$f":"IF('1. Order'!AC387=\"\",\"\",'1. Order'!AC387)","v":""},{"$f":"IF('1. Order'!AD387=\"\",\"\",'1. Order'!AD387)","v":""},{"$f":"IF('1. Order'!AE387=\"\",\"\",'1. Order'!AE387)","v":""},null,{"$f":"IF('1. Order'!AW387=\"\",\"\",'1. Order'!AW387)","v":""},{"$f":"IF('1. Order'!AX387=\"\",\"\",'1. Order'!AX387)","v":""},null,null,null,null,null,null,null,{"$f":"IF('1. Order'!BB387=\"\",\"\",'1. Order'!BB387)","v":""},{"$f":"IF('1. Order'!BC387=\"\",\"\",'1. Order'!BC387)","v":""},{"$f":"IF('1. Order'!BD387=\"\",\"\",'1. Order'!BD387)","v":""},{"$f":"IF('1. Order'!BE387=\"\",\"\",'1. Order'!BE387)","v":""},{"$f":"IF('1. Order'!BG387=\"\",\"\",'1. Order'!BG387)","v":""},{"$f":"IF('1. Order'!BH387=\"\",\"\",'1. Order'!BH387)","v":""},{"$f":"IF('1. Order'!BI387=\"\",\"\",'1. Order'!BI387)","v":""},{"$f":"IF('1. Order'!BJ387=\"\",\"\",'1. Order'!BJ387)","v":""},{"$f":"IF('1. Order'!BK387=\"\",\"\",'1. Order'!BK387)","v":"ZWO"}]
[{"$f":"IF('1. Order'!G388=\"\",\"\",'1. Order'!G388)","v":""},{"$f":"IF('1. Order'!H388=\"\",\"\",'1. Order'!H388)","v":""},{"$f":"IF('1. Order'!I388=\"\",\"\",'1. Order'!I388)","v":""},{"$f":"IF('1. Order'!J388=\"\",\"\",'1. Order'!J388)","v":""},{"$f":"IF('1. Order'!K388=\"\",\"\",'1. Order'!K388)","v":""},{"$f":"IF('1. Order'!L388=\"\",\"\",'1. Order'!L388)","v":""},{"$f":"IF('1. Order'!M388=\"\",\"\",'1. Order'!M388)","v":""},{"$f":"IF('1. Order'!N388=\"\",\"\",'1. Order'!N388)","v":""},{"$f":"IF('1. Order'!P388=\"\",\"\",'1. Order'!P388)","v":""},{"$f":"IF('1. Order'!Q388=\"\",\"\",'1. Order'!Q388)","v":{"$error":"#N/A"}},{"$f":"IF('1. Order'!R388=\"\",\"\",'1. Order'!R388)","v":{"$error":"#N/A"}},{"$f":"IF('1. Order'!S388=\"\",\"\",'1. Order'!S388)","v":""},{"$f":"IF('1. Order'!T388=\"\",\"\",'1. Order'!T388)","v":""},{"$f":"IF('1. Order'!U388=\"\",\"\",'1. Order'!U388)","v":""},{"$f":"IF('1. Order'!X388=\"\",\"\",'1. Order'!X388)","v":""},{"$f":"IF('1. Order'!Y388=\"\",\"\",'1. Order'!Y388)","v":""},{"$f":"IF('1. Order'!Z388=\"\",\"\",'1. Order'!Z388)","v":""},{"$f":"IF('1. Order'!AC388=\"\",\"\",'1. Order'!AC388)","v":""},{"$f":"IF('1. Order'!AD388=\"\",\"\",'1. Order'!AD388)","v":""},{"$f":"IF('1. Order'!AE388=\"\",\"\",'1. Order'!AE388)","v":""},null,{"$f":"IF('1. Order'!AW388=\"\",\"\",'1. Order'!AW388)","v":""},{"$f":"IF('1. Order'!AX388=\"\",\"\",'1. Order'!AX388)","v":""},null,null,null,null,null,null,null,{"$f":"IF('1. Order'!BB388=\"\",\"\",'1. Order'!BB388)","v":""},{"$f":"IF('1. Order'!BC388=\"\",\"\",'1. Order'!BC388)","v":""},{"$f":"IF('1. Order'!BD388=\"\",\"\",'1. Order'!BD388)","v":""},{"$f":"IF('1. Order'!BE388=\"\",\"\",'1. Order'!BE388)","v":""},{"$f":"IF('1. Order'!BG388=\"\",\"\",'1. Order'!BG388)","v":""},{"$f":"IF('1. Order'!BH388=\"\",\"\",'1. Order'!BH388)","v":""},{"$f":"IF('1. Order'!BI388=\"\",\"\",'1. Order'!BI388)","v":""},{"$f":"IF('1. Order'!BJ388=\"\",\"\",'1. Order'!BJ388)","v":""},{"$f":"IF('1. Order'!BK388=\"\",\"\",'1. Order'!BK388)","v":"ZWO"}]
[{"$f":"IF('1. Order'!G389=\"\",\"\",'1. Order'!G389)","v":""},{"$f":"IF('1. Order'!H389=\"\",\"\",'1. Order'!H389)","v":""},{"$f":"IF('1. Order'!I389=\"\",\"\",'1. Order'!I389)","v":""},{"$f":"IF('1. Order'!J389=\"\",\"\",'1. Order'!J389)","v":""},{"$f":"IF('1. Order'!K389=\"\",\"\",'1. Order'!K389)","v":""},{"$f":"IF('1. Order'!L389=\"\",\"\",'1. Order'!L389)","v":""},{"$f":"IF('1. Order'!M389=\"\",\"\",'1. Order'!M389)","v":""},{"$f":"IF('1. Order'!N389=\"\",\"\",'1. Order'!N389)","v":""},{"$f":"IF('1. Order'!P389=\"\",\"\",'1. Order'!P389)","v":""},{"$f":"IF('1. Order'!Q389=\"\",\"\",'1. Order'!Q389)","v":{"$error":"#N/A"}},{"$f":"IF('1. Order'!R389=\"\",\"\",'1. Order'!R389)","v":{"$error":"#N/A"}},{"$f":"IF('1. Order'!S389=\"\",\"\",'1. Order'!S389)","v":""},{"$f":"IF('1. Order'!T389=\"\",\"\",'1. Order'!T389)","v":""},{"$f":"IF('1. Order'!U389=\"\",\"\",'1. Order'!U389)","v":""},{"$f":"IF('1. Order'!X389=\"\",\"\",'1. Order'!X389)","v":""},{"$f":"IF('1. Order'!Y389=\"\",\"\",'1. Order'!Y389)","v":""},{"$f":"IF('1. Order'!Z389=\"\",\"\",'1. Order'!Z389)","v":""},{"$f":"IF('1. Order'!AC389=\"\",\"\",'1. Order'!AC389)","v":""},{"$f":"IF('1. Order'!AD389=\"\",\"\",'1. Order'!AD389)","v":""},{"$f":"IF('1. Order'!AE389=\"\",\"\",'1. Order'!AE389)","v":""},null,{"$f":"IF('1. Order'!AW389=\"\",\"\",'1. Order'!AW389)","v":""},{"$f":"IF('1. Order'!AX389=\"\",\"\",'1. Order'!AX389)","v":""},null,null,null,null,null,null,null,{"$f":"IF('1. Order'!BB389=\"\",\"\",'1. Order'!BB389)","v":""},{"$f":"IF('1. Order'!BC389=\"\",\"\",'1. Order'!BC389)","v":""},{"$f":"IF('1. Order'!BD389=\"\",\"\",'1. Order'!BD389)","v":""},{"$f":"IF('1. Order'!BE389=\"\",\"\",'1. Order'!BE389)","v":""},{"$f":"IF('1. Order'!BG389=\"\",\"\",'1. Order'!BG389)","v":""},{"$f":"IF('1. Order'!BH389=\"\",\"\",'1. Order'!BH389)","v":""},{"$f":"IF('1. Order'!BI389=\"\",\"\",'1. Order'!BI389)","v":""},{"$f":"IF('1. Order'!BJ389=\"\",\"\",'1. Order'!BJ389)","v":""},{"$f":"IF('1. Order'!BK389=\"\",\"\",'1. Order'!BK389)","v":"ZWO"}]
[{"$f":"IF('1. Order'!G390=\"\",\"\",'1. Order'!G390)","v":""},{"$f":"IF('1. Order'!H390=\"\",\"\",'1. Order'!H390)","v":""},{"$f":"IF('1. Order'!I390=\"\",\"\",'1. Order'!I390)","v":""},{"$f":"IF('1. Order'!J390=\"\",\"\",'1. Order'!J390)","v":""},{"$f":"IF('1. Order'!K390=\"\",\"\",'1. Order'!K390)","v":""},{"$f":"IF('1. Order'!L390=\"\",\"\",'1. Order'!L390)","v":""},{"$f":"IF('1. Order'!M390=\"\",\"\",'1. Order'!M390)","v":""},{"$f":"IF('1. Order'!N390=\"\",\"\",'1. Order'!N390)","v":""},{"$f":"IF('1. Order'!P390=\"\",\"\",'1. Order'!P390)","v":""},{"$f":"IF('1. Order'!Q390=\"\",\"\",'1. Order'!Q390)","v":{"$error":"#N/A"}},{"$f":"IF('1. Order'!R390=\"\",\"\",'1. Order'!R390)","v":{"$error":"#N/A"}},{"$f":"IF('1. Order'!S390=\"\",\"\",'1. Order'!S390)","v":""},{"$f":"IF('1. Order'!T390=\"\",\"\",'1. Order'!T390)","v":""},{"$f":"IF('1. Order'!U390=\"\",\"\",'1. Order'!U390)","v":""},{"$f":"IF('1. Order'!X390=\"\",\"\",'1. Order'!X390)","v":""},{"$f":"IF('1. Order'!Y390=\"\",\"\",'1. Order'!Y390)","v":""},{"$f":"IF('1. Order'!Z390=\"\",\"\",'1. Order'!Z390)","v":""},{"$f":"IF('1. Order'!AC390=\"\",\"\",'1. Order'!AC390)","v":""},{"$f":"IF('1. Order'!AD390=\"\",\"\",'1. Order'!AD390)","v":""},{"$f":"IF('1. Order'!AE390=\"\",\"\",'1. Order'!AE390)","v":""},null,{"$f":"IF('1. Order'!AW390=\"\",\"\",'1. Order'!AW390)","v":""},{"$f":"IF('1. Order'!AX390=\"\",\"\",'1. Order'!AX390)","v":""},null,null,null,null,null,null,null,{"$f":"IF('1. Order'!BB390=\"\",\"\",'1. Order'!BB390)","v":""},{"$f":"IF('1. Order'!BC390=\"\",\"\",'1. Order'!BC390)","v":""},{"$f":"IF('1. Order'!BD390=\"\",\"\",'1. Order'!BD390)","v":""},{"$f":"IF('1. Order'!BE390=\"\",\"\",'1. Order'!BE390)","v":""},{"$f":"IF('1. Order'!BG390=\"\",\"\",'1. Order'!BG390)","v":""},{"$f":"IF('1. Order'!BH390=\"\",\"\",'1. Order'!BH390)","v":""},{"$f":"IF('1. Order'!BI390=\"\",\"\",'1. Order'!BI390)","v":""},{"$f":"IF('1. Order'!BJ390=\"\",\"\",'1. Order'!BJ390)","v":""},{"$f":"IF('1. Order'!BK390=\"\",\"\",'1. Order'!BK390)","v":"ZWO"}]
[{"$f":"IF('1. Order'!G391=\"\",\"\",'1. Order'!G391)","v":""},{"$f":"IF('1. Order'!H391=\"\",\"\",'1. Order'!H391)","v":""},{"$f":"IF('1. Order'!I391=\"\",\"\",'1. Order'!I391)","v":""},{"$f":"IF('1. Order'!J391=\"\",\"\",'1. Order'!J391)","v":""},{"$f":"IF('1. Order'!K391=\"\",\"\",'1. Order'!K391)","v":""},{"$f":"IF('1. Order'!L391=\"\",\"\",'1. Order'!L391)","v":""},{"$f":"IF('1. Order'!M391=\"\",\"\",'1. Order'!M391)","v":""},{"$f":"IF('1. Order'!N391=\"\",\"\",'1. Order'!N391)","v":""},{"$f":"IF('1. Order'!P391=\"\",\"\",'1. Order'!P391)","v":""},{"$f":"IF('1. Order'!Q391=\"\",\"\",'1. Order'!Q391)","v":{"$error":"#N/A"}},{"$f":"IF('1. Order'!R391=\"\",\"\",'1. Order'!R391)","v":{"$error":"#N/A"}},{"$f":"IF('1. Order'!S391=\"\",\"\",'1. Order'!S391)","v":""},{"$f":"IF('1. Order'!T391=\"\",\"\",'1. Order'!T391)","v":""},{"$f":"IF('1. Order'!U391=\"\",\"\",'1. Order'!U391)","v":""},{"$f":"IF('1. Order'!X391=\"\",\"\",'1. Order'!X391)","v":""},{"$f":"IF('1. Order'!Y391=\"\",\"\",'1. Order'!Y391)","v":""},{"$f":"IF('1. Order'!Z391=\"\",\"\",'1. Order'!Z391)","v":""},{"$f":"IF('1. Order'!AC391=\"\",\"\",'1. Order'!AC391)","v":""},{"$f":"IF('1. Order'!AD391=\"\",\"\",'1. Order'!AD391)","v":""},{"$f":"IF('1. Order'!AE391=\"\",\"\",'1. Order'!AE391)","v":""},null,{"$f":"IF('1. Order'!AW391=\"\",\"\",'1. Order'!AW391)","v":""},{"$f":"IF('1. Order'!AX391=\"\",\"\",'1. Order'!AX391)","v":""},null,null,null,null,null,null,null,{"$f":"IF('1. Order'!BB391=\"\",\"\",'1. Order'!BB391)","v":""},{"$f":"IF('1. Order'!BC391=\"\",\"\",'1. Order'!BC391)","v":""},{"$f":"IF('1. Order'!BD391=\"\",\"\",'1. Order'!BD391)","v":""},{"$f":"IF('1. Order'!BE391=\"\",\"\",'1. Order'!BE391)","v":""},{"$f":"IF('1. Order'!BG391=\"\",\"\",'1. Order'!BG391)","v":""},{"$f":"IF('1. Order'!BH391=\"\",\"\",'1. Order'!BH391)","v":""},{"$f":"IF('1. Order'!BI391=\"\",\"\",'1. Order'!BI391)","v":""},{"$f":"IF('1. Order'!BJ391=\"\",\"\",'1. Order'!BJ391)","v":""},{"$f":"IF('1. Order'!BK391=\"\",\"\",'1. Order'!BK391)","v":"ZWO"}]
[{"$f":"IF('1. Order'!G392=\"\",\"\",'1. Order'!G392)","v":""},{"$f":"IF('1. Order'!H392=\"\",\"\",'1. Order'!H392)","v":""},{"$f":"IF('1. Order'!I392=\"\",\"\",'1. Order'!I392)","v":""},{"$f":"IF('1. Order'!J392=\"\",\"\",'1. Order'!J392)","v":""},{"$f":"IF('1. Order'!K392=\"\",\"\",'1. Order'!K392)","v":""},{"$f":"IF('1. Order'!L392=\"\",\"\",'1. Order'!L392)","v":""},{"$f":"IF('1. Order'!M392=\"\",\"\",'1. Order'!M392)","v":""},{"$f":"IF('1. Order'!N392=\"\",\"\",'1. Order'!N392)","v":""},{"$f":"IF('1. Order'!P392=\"\",\"\",'1. Order'!P392)","v":""},{"$f":"IF('1. Order'!Q392=\"\",\"\",'1. Order'!Q392)","v":{"$error":"#N/A"}},{"$f":"IF('1. Order'!R392=\"\",\"\",'1. Order'!R392)","v":{"$error":"#N/A"}},{"$f":"IF('1. Order'!S392=\"\",\"\",'1. Order'!S392)","v":""},{"$f":"IF('1. Order'!T392=\"\",\"\",'1. Order'!T392)","v":""},{"$f":"IF('1. Order'!U392=\"\",\"\",'1. Order'!U392)","v":""},{"$f":"IF('1. Order'!X392=\"\",\"\",'1. Order'!X392)","v":""},{"$f":"IF('1. Order'!Y392=\"\",\"\",'1. Order'!Y392)","v":""},{"$f":"IF('1. Order'!Z392=\"\",\"\",'1. Order'!Z392)","v":""},{"$f":"IF('1. Order'!AC392=\"\",\"\",'1. Order'!AC392)","v":""},{"$f":"IF('1. Order'!AD392=\"\",\"\",'1. Order'!AD392)","v":""},{"$f":"IF('1. Order'!AE392=\"\",\"\",'1. Order'!AE392)","v":""},null,{"$f":"IF('1. Order'!AW392=\"\",\"\",'1. Order'!AW392)","v":""},{"$f":"IF('1. Order'!AX392=\"\",\"\",'1. Order'!AX392)","v":""},null,null,null,null,null,null,null,{"$f":"IF('1. Order'!BB392=\"\",\"\",'1. Order'!BB392)","v":""},{"$f":"IF('1. Order'!BC392=\"\",\"\",'1. Order'!BC392)","v":""},{"$f":"IF('1. Order'!BD392=\"\",\"\",'1. Order'!BD392)","v":""},{"$f":"IF('1. Order'!BE392=\"\",\"\",'1. Order'!BE392)","v":""},{"$f":"IF('1. Order'!BG392=\"\",\"\",'1. Order'!BG392)","v":""},{"$f":"IF('1. Order'!BH392=\"\",\"\",'1. Order'!BH392)","v":""},{"$f":"IF('1. Order'!BI392=\"\",\"\",'1. Order'!BI392)","v":""},{"$f":"IF('1. Order'!BJ392=\"\",\"\",'1. Order'!BJ392)","v":""},{"$f":"IF('1. Order'!BK392=\"\",\"\",'1. Order'!BK392)","v":"ZWO"}]
[{"$f":"IF('1. Order'!G393=\"\",\"\",'1. Order'!G393)","v":""},{"$f":"IF('1. Order'!H393=\"\",\"\",'1. Order'!H393)","v":""},{"$f":"IF('1. Order'!I393=\"\",\"\",'1. Order'!I393)","v":""},{"$f":"IF('1. Order'!J393=\"\",\"\",'1. Order'!J393)","v":""},{"$f":"IF('1. Order'!K393=\"\",\"\",'1. Order'!K393)","v":""},{"$f":"IF('1. Order'!L393=\"\",\"\",'1. Order'!L393)","v":""},{"$f":"IF('1. Order'!M393=\"\",\"\",'1. Order'!M393)","v":""},{"$f":"IF('1. Order'!N393=\"\",\"\",'1. Order'!N393)","v":""},{"$f":"IF('1. Order'!P393=\"\",\"\",'1. Order'!P393)","v":""},{"$f":"IF('1. Order'!Q393=\"\",\"\",'1. Order'!Q393)","v":{"$error":"#N/A"}},{"$f":"IF('1. Order'!R393=\"\",\"\",'1. Order'!R393)","v":{"$error":"#N/A"}},{"$f":"IF('1. Order'!S393=\"\",\"\",'1. Order'!S393)","v":""},{"$f":"IF('1. Order'!T393=\"\",\"\",'1. Order'!T393)","v":""},{"$f":"IF('1. Order'!U393=\"\",\"\",'1. Order'!U393)","v":""},{"$f":"IF('1. Order'!X393=\"\",\"\",'1. Order'!X393)","v":""},{"$f":"IF('1. Order'!Y393=\"\",\"\",'1. Order'!Y393)","v":""},{"$f":"IF('1. Order'!Z393=\"\",\"\",'1. Order'!Z393)","v":""},{"$f":"IF('1. Order'!AC393=\"\",\"\",'1. Order'!AC393)","v":""},{"$f":"IF('1. Order'!AD393=\"\",\"\",'1. Order'!AD393)","v":""},{"$f":"IF('1. Order'!AE393=\"\",\"\",'1. Order'!AE393)","v":""},null,{"$f":"IF('1. Order'!AW393=\"\",\"\",'1. Order'!AW393)","v":""},{"$f":"IF('1. Order'!AX393=\"\",\"\",'1. Order'!AX393)","v":""},null,null,null,null,null,null,null,{"$f":"IF('1. Order'!BB393=\"\",\"\",'1. Order'!BB393)","v":""},{"$f":"IF('1. Order'!BC393=\"\",\"\",'1. Order'!BC393)","v":""},{"$f":"IF('1. Order'!BD393=\"\",\"\",'1. Order'!BD393)","v":""},{"$f":"IF('1. Order'!BE393=\"\",\"\",'1. Order'!BE393)","v":""},{"$f":"IF('1. Order'!BG393=\"\",\"\",'1. Order'!BG393)","v":""},{"$f":"IF('1. Order'!BH393=\"\",\"\",'1. Order'!BH393)","v":""},{"$f":"IF('1. Order'!BI393=\"\",\"\",'1. Order'!BI393)","v":""},{"$f":"IF('1. Order'!BJ393=\"\",\"\",'1. Order'!BJ393)","v":""},{"$f":"IF('1. Order'!BK393=\"\",\"\",'1. Order'!BK393)","v":"ZWO"}]
[{"$f":"IF('1. Order'!G394=\"\",\"\",'1. Order'!G394)","v":""},{"$f":"IF('1. Order'!H394=\"\",\"\",'1. Order'!H394)","v":""},{"$f":"IF('1. Order'!I394=\"\",\"\",'1. Order'!I394)","v":""},{"$f":"IF('1. Order'!J394=\"\",\"\",'1. Order'!J394)","v":""},{"$f":"IF('1. Order'!K394=\"\",\"\",'1. Order'!K394)","v":""},{"$f":"IF('1. Order'!L394=\"\",\"\",'1. Order'!L394)","v":""},{"$f":"IF('1. Order'!M394=\"\",\"\",'1. Order'!M394)","v":""},{"$f":"IF('1. Order'!N394=\"\",\"\",'1. Order'!N394)","v":""},{"$f":"IF('1. Order'!P394=\"\",\"\",'1. Order'!P394)","v":""},{"$f":"IF('1. Order'!Q394=\"\",\"\",'1. Order'!Q394)","v":{"$error":"#N/A"}},{"$f":"IF('1. Order'!R394=\"\",\"\",'1. Order'!R394)","v":{"$error":"#N/A"}},{"$f":"IF('1. Order'!S394=\"\",\"\",'1. Order'!S394)","v":""},{"$f":"IF('1. Order'!T394=\"\",\"\",'1. Order'!T394)","v":""},{"$f":"IF('1. Order'!U394=\"\",\"\",'1. Order'!U394)","v":""},{"$f":"IF('1. Order'!X394=\"\",\"\",'1. Order'!X394)","v":""},{"$f":"IF('1. Order'!Y394=\"\",\"\",'1. Order'!Y394)","v":""},{"$f":"IF('1. Order'!Z394=\"\",\"\",'1. Order'!Z394)","v":""},{"$f":"IF('1. Order'!AC394=\"\",\"\",'1. Order'!AC394)","v":""},{"$f":"IF('1. Order'!AD394=\"\",\"\",'1. Order'!AD394)","v":""},{"$f":"IF('1. Order'!AE394=\"\",\"\",'1. Order'!AE394)","v":""},null,{"$f":"IF('1. Order'!AW394=\"\",\"\",'1. Order'!AW394)","v":""},{"$f":"IF('1. Order'!AX394=\"\",\"\",'1. Order'!AX394)","v":""},null,null,null,null,null,null,null,{"$f":"IF('1. Order'!BB394=\"\",\"\",'1. Order'!BB394)","v":""},{"$f":"IF('1. Order'!BC394=\"\",\"\",'1. Order'!BC394)","v":""},{"$f":"IF('1. Order'!BD394=\"\",\"\",'1. Order'!BD394)","v":""},{"$f":"IF('1. Order'!BE394=\"\",\"\",'1. Order'!BE394)","v":""},{"$f":"IF('1. Order'!BG394=\"\",\"\",'1. Order'!BG394)","v":""},{"$f":"IF('1. Order'!BH394=\"\",\"\",'1. Order'!BH394)","v":""},{"$f":"IF('1. Order'!BI394=\"\",\"\",'1. Order'!BI394)","v":""},{"$f":"IF('1. Order'!BJ394=\"\",\"\",'1. Order'!BJ394)","v":""},{"$f":"IF('1. Order'!BK394=\"\",\"\",'1. Order'!BK394)","v":"ZWO"}]
[{"$f":"IF('1. Order'!G395=\"\",\"\",'1. Order'!G395)","v":""},{"$f":"IF('1. Order'!H395=\"\",\"\",'1. Order'!H395)","v":""},{"$f":"IF('1. Order'!I395=\"\",\"\",'1. Order'!I395)","v":""},{"$f":"IF('1. Order'!J395=\"\",\"\",'1. Order'!J395)","v":""},{"$f":"IF('1. Order'!K395=\"\",\"\",'1. Order'!K395)","v":""},{"$f":"IF('1. Order'!L395=\"\",\"\",'1. Order'!L395)","v":""},{"$f":"IF('1. Order'!M395=\"\",\"\",'1. Order'!M395)","v":""},{"$f":"IF('1. Order'!N395=\"\",\"\",'1. Order'!N395)","v":""},{"$f":"IF('1. Order'!P395=\"\",\"\",'1. Order'!P395)","v":""},{"$f":"IF('1. Order'!Q395=\"\",\"\",'1. Order'!Q395)","v":{"$error":"#N/A"}},{"$f":"IF('1. Order'!R395=\"\",\"\",'1. Order'!R395)","v":{"$error":"#N/A"}},{"$f":"IF('1. Order'!S395=\"\",\"\",'1. Order'!S395)","v":""},{"$f":"IF('1. Order'!T395=\"\",\"\",'1. Order'!T395)","v":""},{"$f":"IF('1. Order'!U395=\"\",\"\",'1. Order'!U395)","v":""},{"$f":"IF('1. Order'!X395=\"\",\"\",'1. Order'!X395)","v":""},{"$f":"IF('1. Order'!Y395=\"\",\"\",'1. Order'!Y395)","v":""},{"$f":"IF('1. Order'!Z395=\"\",\"\",'1. Order'!Z395)","v":""},{"$f":"IF('1. Order'!AC395=\"\",\"\",'1. Order'!AC395)","v":""},{"$f":"IF('1. Order'!AD395=\"\",\"\",'1. Order'!AD395)","v":""},{"$f":"IF('1. Order'!AE395=\"\",\"\",'1. Order'!AE395)","v":""},null,{"$f":"IF('1. Order'!AW395=\"\",\"\",'1. Order'!AW395)","v":""},{"$f":"IF('1. Order'!AX395=\"\",\"\",'1. Order'!AX395)","v":""},null,null,null,null,null,null,null,{"$f":"IF('1. Order'!BB395=\"\",\"\",'1. Order'!BB395)","v":""},{"$f":"IF('1. Order'!BC395=\"\",\"\",'1. Order'!BC395)","v":""},{"$f":"IF('1. Order'!BD395=\"\",\"\",'1. Order'!BD395)","v":""},{"$f":"IF('1. Order'!BE395=\"\",\"\",'1. Order'!BE395)","v":""},{"$f":"IF('1. Order'!BG395=\"\",\"\",'1. Order'!BG395)","v":""},{"$f":"IF('1. Order'!BH395=\"\",\"\",'1. Order'!BH395)","v":""},{"$f":"IF('1. Order'!BI395=\"\",\"\",'1. Order'!BI395)","v":""},{"$f":"IF('1. Order'!BJ395=\"\",\"\",'1. Order'!BJ395)","v":""},{"$f":"IF('1. Order'!BK395=\"\",\"\",'1. Order'!BK395)","v":"ZWO"}]
[{"$f":"IF('1. Order'!G396=\"\",\"\",'1. Order'!G396)","v":""},{"$f":"IF('1. Order'!H396=\"\",\"\",'1. Order'!H396)","v":""},{"$f":"IF('1. Order'!I396=\"\",\"\",'1. Order'!I396)","v":""},{"$f":"IF('1. Order'!J396=\"\",\"\",'1. Order'!J396)","v":""},{"$f":"IF('1. Order'!K396=\"\",\"\",'1. Order'!K396)","v":""},{"$f":"IF('1. Order'!L396=\"\",\"\",'1. Order'!L396)","v":""},{"$f":"IF('1. Order'!M396=\"\",\"\",'1. Order'!M396)","v":""},{"$f":"IF('1. Order'!N396=\"\",\"\",'1. Order'!N396)","v":""},{"$f":"IF('1. Order'!P396=\"\",\"\",'1. Order'!P396)","v":""},{"$f":"IF('1. Order'!Q396=\"\",\"\",'1. Order'!Q396)","v":{"$error":"#N/A"}},{"$f":"IF('1. Order'!R396=\"\",\"\",'1. Order'!R396)","v":{"$error":"#N/A"}},{"$f":"IF('1. Order'!S396=\"\",\"\",'1. Order'!S396)","v":""},{"$f":"IF('1. Order'!T396=\"\",\"\",'1. Order'!T396)","v":""},{"$f":"IF('1. Order'!U396=\"\",\"\",'1. Order'!U396)","v":""},{"$f":"IF('1. Order'!X396=\"\",\"\",'1. Order'!X396)","v":""},{"$f":"IF('1. Order'!Y396=\"\",\"\",'1. Order'!Y396)","v":""},{"$f":"IF('1. Order'!Z396=\"\",\"\",'1. Order'!Z396)","v":""},{"$f":"IF('1. Order'!AC396=\"\",\"\",'1. Order'!AC396)","v":""},{"$f":"IF('1. Order'!AD396=\"\",\"\",'1. Order'!AD396)","v":""},{"$f":"IF('1. Order'!AE396=\"\",\"\",'1. Order'!AE396)","v":""},null,{"$f":"IF('1. Order'!AW396=\"\",\"\",'1. Order'!AW396)","v":""},{"$f":"IF('1. Order'!AX396=\"\",\"\",'1. Order'!AX396)","v":""},null,null,null,null,null,null,null,{"$f":"IF('1. Order'!BB396=\"\",\"\",'1. Order'!BB396)","v":""},{"$f":"IF('1. Order'!BC396=\"\",\"\",'1. Order'!BC396)","v":""},{"$f":"IF('1. Order'!BD396=\"\",\"\",'1. Order'!BD396)","v":""},{"$f":"IF('1. Order'!BE396=\"\",\"\",'1. Order'!BE396)","v":""},{"$f":"IF('1. Order'!BG396=\"\",\"\",'1. Order'!BG396)","v":""},{"$f":"IF('1. Order'!BH396=\"\",\"\",'1. Order'!BH396)","v":""},{"$f":"IF('1. Order'!BI396=\"\",\"\",'1. Order'!BI396)","v":""},{"$f":"IF('1. Order'!BJ396=\"\",\"\",'1. Order'!BJ396)","v":""},{"$f":"IF('1. Order'!BK396=\"\",\"\",'1. Order'!BK396)","v":"ZWO"}]
[{"$f":"IF('1. Order'!G397=\"\",\"\",'1. Order'!G397)","v":""},{"$f":"IF('1. Order'!H397=\"\",\"\",'1. Order'!H397)","v":""},{"$f":"IF('1. Order'!I397=\"\",\"\",'1. Order'!I397)","v":""},{"$f":"IF('1. Order'!J397=\"\",\"\",'1. Order'!J397)","v":""},{"$f":"IF('1. Order'!K397=\"\",\"\",'1. Order'!K397)","v":""},{"$f":"IF('1. Order'!L397=\"\",\"\",'1. Order'!L397)","v":""},{"$f":"IF('1. Order'!M397=\"\",\"\",'1. Order'!M397)","v":""},{"$f":"IF('1. Order'!N397=\"\",\"\",'1. Order'!N397)","v":""},{"$f":"IF('1. Order'!P397=\"\",\"\",'1. Order'!P397)","v":""},{"$f":"IF('1. Order'!Q397=\"\",\"\",'1. Order'!Q397)","v":{"$error":"#N/A"}},{"$f":"IF('1. Order'!R397=\"\",\"\",'1. Order'!R397)","v":{"$error":"#N/A"}},{"$f":"IF('1. Order'!S397=\"\",\"\",'1. Order'!S397)","v":""},{"$f":"IF('1. Order'!T397=\"\",\"\",'1. Order'!T397)","v":""},{"$f":"IF('1. Order'!U397=\"\",\"\",'1. Order'!U397)","v":""},{"$f":"IF('1. Order'!X397=\"\",\"\",'1. Order'!X397)","v":""},{"$f":"IF('1. Order'!Y397=\"\",\"\",'1. Order'!Y397)","v":""},{"$f":"IF('1. Order'!Z397=\"\",\"\",'1. Order'!Z397)","v":""},{"$f":"IF('1. Order'!AC397=\"\",\"\",'1. Order'!AC397)","v":""},{"$f":"IF('1. Order'!AD397=\"\",\"\",'1. Order'!AD397)","v":""},{"$f":"IF('1. Order'!AE397=\"\",\"\",'1. Order'!AE397)","v":""},null,{"$f":"IF('1. Order'!AW397=\"\",\"\",'1. Order'!AW397)","v":""},{"$f":"IF('1. Order'!AX397=\"\",\"\",'1. Order'!AX397)","v":""},null,null,null,null,null,null,null,{"$f":"IF('1. Order'!BB397=\"\",\"\",'1. Order'!BB397)","v":""},{"$f":"IF('1. Order'!BC397=\"\",\"\",'1. Order'!BC397)","v":""},{"$f":"IF('1. Order'!BD397=\"\",\"\",'1. Order'!BD397)","v":""},{"$f":"IF('1. Order'!BE397=\"\",\"\",'1. Order'!BE397)","v":""},{"$f":"IF('1. Order'!BG397=\"\",\"\",'1. Order'!BG397)","v":""},{"$f":"IF('1. Order'!BH397=\"\",\"\",'1. Order'!BH397)","v":""},{"$f":"IF('1. Order'!BI397=\"\",\"\",'1. Order'!BI397)","v":""},{"$f":"IF('1. Order'!BJ397=\"\",\"\",'1. Order'!BJ397)","v":""},{"$f":"IF('1. Order'!BK397=\"\",\"\",'1. Order'!BK397)","v":"ZWO"}]
[{"$f":"IF('1. Order'!G398=\"\",\"\",'1. Order'!G398)","v":""},{"$f":"IF('1. Order'!H398=\"\",\"\",'1. Order'!H398)","v":""},{"$f":"IF('1. Order'!I398=\"\",\"\",'1. Order'!I398)","v":""},{"$f":"IF('1. Order'!J398=\"\",\"\",'1. Order'!J398)","v":""},{"$f":"IF('1. Order'!K398=\"\",\"\",'1. Order'!K398)","v":""},{"$f":"IF('1. Order'!L398=\"\",\"\",'1. Order'!L398)","v":""},{"$f":"IF('1. Order'!M398=\"\",\"\",'1. Order'!M398)","v":""},{"$f":"IF('1. Order'!N398=\"\",\"\",'1. Order'!N398)","v":""},{"$f":"IF('1. Order'!P398=\"\",\"\",'1. Order'!P398)","v":""},{"$f":"IF('1. Order'!Q398=\"\",\"\",'1. Order'!Q398)","v":{"$error":"#N/A"}},{"$f":"IF('1. Order'!R398=\"\",\"\",'1. Order'!R398)","v":{"$error":"#N/A"}},{"$f":"IF('1. Order'!S398=\"\",\"\",'1. Order'!S398)","v":""},{"$f":"IF('1. Order'!T398=\"\",\"\",'1. Order'!T398)","v":""},{"$f":"IF('1. Order'!U398=\"\",\"\",'1. Order'!U398)","v":""},{"$f":"IF('1. Order'!X398=\"\",\"\",'1. Order'!X398)","v":""},{"$f":"IF('1. Order'!Y398=\"\",\"\",'1. Order'!Y398)","v":""},{"$f":"IF('1. Order'!Z398=\"\",\"\",'1. Order'!Z398)","v":""},{"$f":"IF('1. Order'!AC398=\"\",\"\",'1. Order'!AC398)","v":""},{"$f":"IF('1. Order'!AD398=\"\",\"\",'1. Order'!AD398)","v":""},{"$f":"IF('1. Order'!AE398=\"\",\"\",'1. Order'!AE398)","v":""},null,{"$f":"IF('1. Order'!AW398=\"\",\"\",'1. Order'!AW398)","v":""},{"$f":"IF('1. Order'!AX398=\"\",\"\",'1. Order'!AX398)","v":""},null,null,null,null,null,null,null,{"$f":"IF('1. Order'!BB398=\"\",\"\",'1. Order'!BB398)","v":""},{"$f":"IF('1. Order'!BC398=\"\",\"\",'1. Order'!BC398)","v":""},{"$f":"IF('1. Order'!BD398=\"\",\"\",'1. Order'!BD398)","v":""},{"$f":"IF('1. Order'!BE398=\"\",\"\",'1. Order'!BE398)","v":""},{"$f":"IF('1. Order'!BG398=\"\",\"\",'1. Order'!BG398)","v":""},{"$f":"IF('1. Order'!BH398=\"\",\"\",'1. Order'!BH398)","v":""},{"$f":"IF('1. Order'!BI398=\"\",\"\",'1. Order'!BI398)","v":""},{"$f":"IF('1. Order'!BJ398=\"\",\"\",'1. Order'!BJ398)","v":""},{"$f":"IF('1. Order'!BK398=\"\",\"\",'1. Order'!BK398)","v":"ZWO"}]
[{"$f":"IF('1. Order'!G399=\"\",\"\",'1. Order'!G399)","v":""},{"$f":"IF('1. Order'!H399=\"\",\"\",'1. Order'!H399)","v":""},{"$f":"IF('1. Order'!I399=\"\",\"\",'1. Order'!I399)","v":""},{"$f":"IF('1. Order'!J399=\"\",\"\",'1. Order'!J399)","v":""},{"$f":"IF('1. Order'!K399=\"\",\"\",'1. Order'!K399)","v":""},{"$f":"IF('1. Order'!L399=\"\",\"\",'1. Order'!L399)","v":""},{"$f":"IF('1. Order'!M399=\"\",\"\",'1. Order'!M399)","v":""},{"$f":"IF('1. Order'!N399=\"\",\"\",'1. Order'!N399)","v":""},{"$f":"IF('1. Order'!P399=\"\",\"\",'1. Order'!P399)","v":""},{"$f":"IF('1. Order'!Q399=\"\",\"\",'1. Order'!Q399)","v":{"$error":"#N/A"}},{"$f":"IF('1. Order'!R399=\"\",\"\",'1. Order'!R399)","v":{"$error":"#N/A"}},{"$f":"IF('1. Order'!S399=\"\",\"\",'1. Order'!S399)","v":""},{"$f":"IF('1. Order'!T399=\"\",\"\",'1. Order'!T399)","v":""},{"$f":"IF('1. Order'!U399=\"\",\"\",'1. Order'!U399)","v":""},{"$f":"IF('1. Order'!X399=\"\",\"\",'1. Order'!X399)","v":""},{"$f":"IF('1. Order'!Y399=\"\",\"\",'1. Order'!Y399)","v":""},{"$f":"IF('1. Order'!Z399=\"\",\"\",'1. Order'!Z399)","v":""},{"$f":"IF('1. Order'!AC399=\"\",\"\",'1. Order'!AC399)","v":""},{"$f":"IF('1. Order'!AD399=\"\",\"\",'1. Order'!AD399)","v":""},{"$f":"IF('1. Order'!AE399=\"\",\"\",'1. Order'!AE399)","v":""},null,{"$f":"IF('1. Order'!AW399=\"\",\"\",'1. Order'!AW399)","v":""},{"$f":"IF('1. Order'!AX399=\"\",\"\",'1. Order'!AX399)","v":""},null,null,null,null,null,null,null,{"$f":"IF('1. Order'!BB399=\"\",\"\",'1. Order'!BB399)","v":""},{"$f":"IF('1. Order'!BC399=\"\",\"\",'1. Order'!BC399)","v":""},{"$f":"IF('1. Order'!BD399=\"\",\"\",'1. Order'!BD399)","v":""},{"$f":"IF('1. Order'!BE399=\"\",\"\",'1. Order'!BE399)","v":""},{"$f":"IF('1. Order'!BG399=\"\",\"\",'1. Order'!BG399)","v":""},{"$f":"IF('1. Order'!BH399=\"\",\"\",'1. Order'!BH399)","v":""},{"$f":"IF('1. Order'!BI399=\"\",\"\",'1. Order'!BI399)","v":""},{"$f":"IF('1. Order'!BJ399=\"\",\"\",'1. Order'!BJ399)","v":""},{"$f":"IF('1. Order'!BK399=\"\",\"\",'1. Order'!BK399)","v":"ZWO"}]
[{"$f":"IF('1. Order'!G400=\"\",\"\",'1. Order'!G400)","v":""},{"$f":"IF('1. Order'!H400=\"\",\"\",'1. Order'!H400)","v":""},{"$f":"IF('1. Order'!I400=\"\",\"\",'1. Order'!I400)","v":""},{"$f":"IF('1. Order'!J400=\"\",\"\",'1. Order'!J400)","v":""},{"$f":"IF('1. Order'!K400=\"\",\"\",'1. Order'!K400)","v":""},{"$f":"IF('1. Order'!L400=\"\",\"\",'1. Order'!L400)","v":""},{"$f":"IF('1. Order'!M400=\"\",\"\",'1. Order'!M400)","v":""},{"$f":"IF('1. Order'!N400=\"\",\"\",'1. Order'!N400)","v":""},{"$f":"IF('1. Order'!P400=\"\",\"\",'1. Order'!P400)","v":""},{"$f":"IF('1. Order'!Q400=\"\",\"\",'1. Order'!Q400)","v":{"$error":"#N/A"}},{"$f":"IF('1. Order'!R400=\"\",\"\",'1. Order'!R400)","v":{"$error":"#N/A"}},{"$f":"IF('1. Order'!S400=\"\",\"\",'1. Order'!S400)","v":""},{"$f":"IF('1. Order'!T400=\"\",\"\",'1. Order'!T400)","v":""},{"$f":"IF('1. Order'!U400=\"\",\"\",'1. Order'!U400)","v":""},{"$f":"IF('1. Order'!X400=\"\",\"\",'1. Order'!X400)","v":""},{"$f":"IF('1. Order'!Y400=\"\",\"\",'1. Order'!Y400)","v":""},{"$f":"IF('1. Order'!Z400=\"\",\"\",'1. Order'!Z400)","v":""},{"$f":"IF('1. Order'!AC400=\"\",\"\",'1. Order'!AC400)","v":""},{"$f":"IF('1. Order'!AD400=\"\",\"\",'1. Order'!AD400)","v":""},{"$f":"IF('1. Order'!AE400=\"\",\"\",'1. Order'!AE400)","v":""},null,{"$f":"IF('1. Order'!AW400=\"\",\"\",'1. Order'!AW400)","v":""},{"$f":"IF('1. Order'!AX400=\"\",\"\",'1. Order'!AX400)","v":""},null,null,null,null,null,null,null,{"$f":"IF('1. Order'!BB400=\"\",\"\",'1. Order'!BB400)","v":""},{"$f":"IF('1. Order'!BC400=\"\",\"\",'1. Order'!BC400)","v":""},{"$f":"IF('1. Order'!BD400=\"\",\"\",'1. Order'!BD400)","v":""},{"$f":"IF('1. Order'!BE400=\"\",\"\",'1. Order'!BE400)","v":""},{"$f":"IF('1. Order'!BG400=\"\",\"\",'1. Order'!BG400)","v":""},{"$f":"IF('1. Order'!BH400=\"\",\"\",'1. Order'!BH400)","v":""},{"$f":"IF('1. Order'!BI400=\"\",\"\",'1. Order'!BI400)","v":""},{"$f":"IF('1. Order'!BJ400=\"\",\"\",'1. Order'!BJ400)","v":""},{"$f":"IF('1. Order'!BK400=\"\",\"\",'1. Order'!BK400)","v":"ZWO"}]
[{"$f":"IF('1. Order'!G401=\"\",\"\",'1. Order'!G401)","v":""},{"$f":"IF('1. Order'!H401=\"\",\"\",'1. Order'!H401)","v":""},{"$f":"IF('1. Order'!I401=\"\",\"\",'1. Order'!I401)","v":""},{"$f":"IF('1. Order'!J401=\"\",\"\",'1. Order'!J401)","v":""},{"$f":"IF('1. Order'!K401=\"\",\"\",'1. Order'!K401)","v":""},{"$f":"IF('1. Order'!L401=\"\",\"\",'1. Order'!L401)","v":""},{"$f":"IF('1. Order'!M401=\"\",\"\",'1. Order'!M401)","v":""},{"$f":"IF('1. Order'!N401=\"\",\"\",'1. Order'!N401)","v":""},{"$f":"IF('1. Order'!P401=\"\",\"\",'1. Order'!P401)","v":""},{"$f":"IF('1. Order'!Q401=\"\",\"\",'1. Order'!Q401)","v":{"$error":"#N/A"}},{"$f":"IF('1. Order'!R401=\"\",\"\",'1. Order'!R401)","v":{"$error":"#N/A"}},{"$f":"IF('1. Order'!S401=\"\",\"\",'1. Order'!S401)","v":""},{"$f":"IF('1. Order'!T401=\"\",\"\",'1. Order'!T401)","v":""},{"$f":"IF('1. Order'!U401=\"\",\"\",'1. Order'!U401)","v":""},{"$f":"IF('1. Order'!X401=\"\",\"\",'1. Order'!X401)","v":""},{"$f":"IF('1. Order'!Y401=\"\",\"\",'1. Order'!Y401)","v":""},{"$f":"IF('1. Order'!Z401=\"\",\"\",'1. Order'!Z401)","v":""},{"$f":"IF('1. Order'!AC401=\"\",\"\",'1. Order'!AC401)","v":""},{"$f":"IF('1. Order'!AD401=\"\",\"\",'1. Order'!AD401)","v":""},{"$f":"IF('1. Order'!AE401=\"\",\"\",'1. Order'!AE401)","v":""},null,{"$f":"IF('1. Order'!AW401=\"\",\"\",'1. Order'!AW401)","v":""},{"$f":"IF('1. Order'!AX401=\"\",\"\",'1. Order'!AX401)","v":""},null,null,null,null,null,null,null,{"$f":"IF('1. Order'!BB401=\"\",\"\",'1. Order'!BB401)","v":""},{"$f":"IF('1. Order'!BC401=\"\",\"\",'1. Order'!BC401)","v":""},{"$f":"IF('1. Order'!BD401=\"\",\"\",'1. Order'!BD401)","v":""},{"$f":"IF('1. Order'!BE401=\"\",\"\",'1. Order'!BE401)","v":""},{"$f":"IF('1. Order'!BG401=\"\",\"\",'1. Order'!BG401)","v":""},{"$f":"IF('1. Order'!BH401=\"\",\"\",'1. Order'!BH401)","v":""},{"$f":"IF('1. Order'!BI401=\"\",\"\",'1. Order'!BI401)","v":""},{"$f":"IF('1. Order'!BJ401=\"\",\"\",'1. Order'!BJ401)","v":""},{"$f":"IF('1. Order'!BK401=\"\",\"\",'1. Order'!BK401)","v":"ZWO"}]
[{"$f":"IF('1. Order'!G402=\"\",\"\",'1. Order'!G402)","v":""},{"$f":"IF('1. Order'!H402=\"\",\"\",'1. Order'!H402)","v":""},{"$f":"IF('1. Order'!I402=\"\",\"\",'1. Order'!I402)","v":""},{"$f":"IF('1. Order'!J402=\"\",\"\",'1. Order'!J402)","v":""},{"$f":"IF('1. Order'!K402=\"\",\"\",'1. Order'!K402)","v":""},{"$f":"IF('1. Order'!L402=\"\",\"\",'1. Order'!L402)","v":""},{"$f":"IF('1. Order'!M402=\"\",\"\",'1. Order'!M402)","v":""},{"$f":"IF('1. Order'!N402=\"\",\"\",'1. Order'!N402)","v":""},{"$f":"IF('1. Order'!P402=\"\",\"\",'1. Order'!P402)","v":""},{"$f":"IF('1. Order'!Q402=\"\",\"\",'1. Order'!Q402)","v":{"$error":"#N/A"}},{"$f":"IF('1. Order'!R402=\"\",\"\",'1. Order'!R402)","v":{"$error":"#N/A"}},{"$f":"IF('1. Order'!S402=\"\",\"\",'1. Order'!S402)","v":""},{"$f":"IF('1. Order'!T402=\"\",\"\",'1. Order'!T402)","v":""},{"$f":"IF('1. Order'!U402=\"\",\"\",'1. Order'!U402)","v":""},{"$f":"IF('1. Order'!X402=\"\",\"\",'1. Order'!X402)","v":""},{"$f":"IF('1. Order'!Y402=\"\",\"\",'1. Order'!Y402)","v":""},{"$f":"IF('1. Order'!Z402=\"\",\"\",'1. Order'!Z402)","v":""},{"$f":"IF('1. Order'!AC402=\"\",\"\",'1. Order'!AC402)","v":""},{"$f":"IF('1. Order'!AD402=\"\",\"\",'1. Order'!AD402)","v":""},{"$f":"IF('1. Order'!AE402=\"\",\"\",'1. Order'!AE402)","v":""},null,{"$f":"IF('1. Order'!AW402=\"\",\"\",'1. Order'!AW402)","v":""},{"$f":"IF('1. Order'!AX402=\"\",\"\",'1. Order'!AX402)","v":""},null,null,null,null,null,null,null,{"$f":"IF('1. Order'!BB402=\"\",\"\",'1. Order'!BB402)","v":""},{"$f":"IF('1. Order'!BC402=\"\",\"\",'1. Order'!BC402)","v":""},{"$f":"IF('1. Order'!BD402=\"\",\"\",'1. Order'!BD402)","v":""},{"$f":"IF('1. Order'!BE402=\"\",\"\",'1. Order'!BE402)","v":""},{"$f":"IF('1. Order'!BG402=\"\",\"\",'1. Order'!BG402)","v":""},{"$f":"IF('1. Order'!BH402=\"\",\"\",'1. Order'!BH402)","v":""},{"$f":"IF('1. Order'!BI402=\"\",\"\",'1. Order'!BI402)","v":""},{"$f":"IF('1. Order'!BJ402=\"\",\"\",'1. Order'!BJ402)","v":""},{"$f":"IF('1. Order'!BK402=\"\",\"\",'1. Order'!BK402)","v":"ZWO"}]
[{"$f":"IF('1. Order'!G403=\"\",\"\",'1. Order'!G403)","v":""},{"$f":"IF('1. Order'!H403=\"\",\"\",'1. Order'!H403)","v":""},{"$f":"IF('1. Order'!I403=\"\",\"\",'1. Order'!I403)","v":""},{"$f":"IF('1. Order'!J403=\"\",\"\",'1. Order'!J403)","v":""},{"$f":"IF('1. Order'!K403=\"\",\"\",'1. Order'!K403)","v":""},{"$f":"IF('1. Order'!L403=\"\",\"\",'1. Order'!L403)","v":""},{"$f":"IF('1. Order'!M403=\"\",\"\",'1. Order'!M403)","v":""},{"$f":"IF('1. Order'!N403=\"\",\"\",'1. Order'!N403)","v":""},{"$f":"IF('1. Order'!P403=\"\",\"\",'1. Order'!P403)","v":""},{"$f":"IF('1. Order'!Q403=\"\",\"\",'1. Order'!Q403)","v":{"$error":"#N/A"}},{"$f":"IF('1. Order'!R403=\"\",\"\",'1. Order'!R403)","v":{"$error":"#N/A"}},{"$f":"IF('1. Order'!S403=\"\",\"\",'1. Order'!S403)","v":""},{"$f":"IF('1. Order'!T403=\"\",\"\",'1. Order'!T403)","v":""},{"$f":"IF('1. Order'!U403=\"\",\"\",'1. Order'!U403)","v":""},{"$f":"IF('1. Order'!X403=\"\",\"\",'1. Order'!X403)","v":""},{"$f":"IF('1. Order'!Y403=\"\",\"\",'1. Order'!Y403)","v":""},{"$f":"IF('1. Order'!Z403=\"\",\"\",'1. Order'!Z403)","v":""},{"$f":"IF('1. Order'!AC403=\"\",\"\",'1. Order'!AC403)","v":""},{"$f":"IF('1. Order'!AD403=\"\",\"\",'1. Order'!AD403)","v":""},{"$f":"IF('1. Order'!AE403=\"\",\"\",'1. Order'!AE403)","v":""},null,{"$f":"IF('1. Order'!AW403=\"\",\"\",'1. Order'!AW403)","v":""},{"$f":"IF('1. Order'!AX403=\"\",\"\",'1. Order'!AX403)","v":""},null,null,null,null,null,null,null,{"$f":"IF('1. Order'!BB403=\"\",\"\",'1. Order'!BB403)","v":""},{"$f":"IF('1. Order'!BC403=\"\",\"\",'1. Order'!BC403)","v":""},{"$f":"IF('1. Order'!BD403=\"\",\"\",'1. Order'!BD403)","v":""},{"$f":"IF('1. Order'!BE403=\"\",\"\",'1. Order'!BE403)","v":""},{"$f":"IF('1. Order'!BG403=\"\",\"\",'1. Order'!BG403)","v":""},{"$f":"IF('1. Order'!BH403=\"\",\"\",'1. Order'!BH403)","v":""},{"$f":"IF('1. Order'!BI403=\"\",\"\",'1. Order'!BI403)","v":""},{"$f":"IF('1. Order'!BJ403=\"\",\"\",'1. Order'!BJ403)","v":""},{"$f":"IF('1. Order'!BK403=\"\",\"\",'1. Order'!BK403)","v":"ZWO"}]
[{"$f":"IF('1. Order'!G404=\"\",\"\",'1. Order'!G404)","v":""},{"$f":"IF('1. Order'!H404=\"\",\"\",'1. Order'!H404)","v":""},{"$f":"IF('1. Order'!I404=\"\",\"\",'1. Order'!I404)","v":""},{"$f":"IF('1. Order'!J404=\"\",\"\",'1. Order'!J404)","v":""},{"$f":"IF('1. Order'!K404=\"\",\"\",'1. Order'!K404)","v":""},{"$f":"IF('1. Order'!L404=\"\",\"\",'1. Order'!L404)","v":""},{"$f":"IF('1. Order'!M404=\"\",\"\",'1. Order'!M404)","v":""},{"$f":"IF('1. Order'!N404=\"\",\"\",'1. Order'!N404)","v":""},{"$f":"IF('1. Order'!P404=\"\",\"\",'1. Order'!P404)","v":""},{"$f":"IF('1. Order'!Q404=\"\",\"\",'1. Order'!Q404)","v":{"$error":"#N/A"}},{"$f":"IF('1. Order'!R404=\"\",\"\",'1. Order'!R404)","v":{"$error":"#N/A"}},{"$f":"IF('1. Order'!S404=\"\",\"\",'1. Order'!S404)","v":""},{"$f":"IF('1. Order'!T404=\"\",\"\",'1. Order'!T404)","v":""},{"$f":"IF('1. Order'!U404=\"\",\"\",'1. Order'!U404)","v":""},{"$f":"IF('1. Order'!X404=\"\",\"\",'1. Order'!X404)","v":""},{"$f":"IF('1. Order'!Y404=\"\",\"\",'1. Order'!Y404)","v":""},{"$f":"IF('1. Order'!Z404=\"\",\"\",'1. Order'!Z404)","v":""},{"$f":"IF('1. Order'!AC404=\"\",\"\",'1. Order'!AC404)","v":""},{"$f":"IF('1. Order'!AD404=\"\",\"\",'1. Order'!AD404)","v":""},{"$f":"IF('1. Order'!AE404=\"\",\"\",'1. Order'!AE404)","v":""},null,{"$f":"IF('1. Order'!AW404=\"\",\"\",'1. Order'!AW404)","v":""},{"$f":"IF('1. Order'!AX404=\"\",\"\",'1. Order'!AX404)","v":""},null,null,null,null,null,null,null,{"$f":"IF('1. Order'!BB404=\"\",\"\",'1. Order'!BB404)","v":""},{"$f":"IF('1. Order'!BC404=\"\",\"\",'1. Order'!BC404)","v":""},{"$f":"IF('1. Order'!BD404=\"\",\"\",'1. Order'!BD404)","v":""},{"$f":"IF('1. Order'!BE404=\"\",\"\",'1. Order'!BE404)","v":""},{"$f":"IF('1. Order'!BG404=\"\",\"\",'1. Order'!BG404)","v":""},{"$f":"IF('1. Order'!BH404=\"\",\"\",'1. Order'!BH404)","v":""},{"$f":"IF('1. Order'!BI404=\"\",\"\",'1. Order'!BI404)","v":""},{"$f":"IF('1. Order'!BJ404=\"\",\"\",'1. Order'!BJ404)","v":""},{"$f":"IF('1. Order'!BK404=\"\",\"\",'1. Order'!BK404)","v":"ZWO"}]
[{"$f":"IF('1. Order'!G405=\"\",\"\",'1. Order'!G405)","v":""},{"$f":"IF('1. Order'!H405=\"\",\"\",'1. Order'!H405)","v":""},{"$f":"IF('1. Order'!I405=\"\",\"\",'1. Order'!I405)","v":""},{"$f":"IF('1. Order'!J405=\"\",\"\",'1. Order'!J405)","v":""},{"$f":"IF('1. Order'!K405=\"\",\"\",'1. Order'!K405)","v":""},{"$f":"IF('1. Order'!L405=\"\",\"\",'1. Order'!L405)","v":""},{"$f":"IF('1. Order'!M405=\"\",\"\",'1. Order'!M405)","v":""},{"$f":"IF('1. Order'!N405=\"\",\"\",'1. Order'!N405)","v":""},{"$f":"IF('1. Order'!P405=\"\",\"\",'1. Order'!P405)","v":""},{"$f":"IF('1. Order'!Q405=\"\",\"\",'1. Order'!Q405)","v":{"$error":"#N/A"}},{"$f":"IF('1. Order'!R405=\"\",\"\",'1. Order'!R405)","v":{"$error":"#N/A"}},{"$f":"IF('1. Order'!S405=\"\",\"\",'1. Order'!S405)","v":""},{"$f":"IF('1. Order'!T405=\"\",\"\",'1. Order'!T405)","v":""},{"$f":"IF('1. Order'!U405=\"\",\"\",'1. Order'!U405)","v":""},{"$f":"IF('1. Order'!X405=\"\",\"\",'1. Order'!X405)","v":""},{"$f":"IF('1. Order'!Y405=\"\",\"\",'1. Order'!Y405)","v":""},{"$f":"IF('1. Order'!Z405=\"\",\"\",'1. Order'!Z405)","v":""},{"$f":"IF('1. Order'!AC405=\"\",\"\",'1. Order'!AC405)","v":""},{"$f":"IF('1. Order'!AD405=\"\",\"\",'1. Order'!AD405)","v":""},{"$f":"IF('1. Order'!AE405=\"\",\"\",'1. Order'!AE405)","v":""},null,{"$f":"IF('1. Order'!AW405=\"\",\"\",'1. Order'!AW405)","v":""},{"$f":"IF('1. Order'!AX405=\"\",\"\",'1. Order'!AX405)","v":""},null,null,null,null,null,null,null,{"$f":"IF('1. Order'!BB405=\"\",\"\",'1. Order'!BB405)","v":""},{"$f":"IF('1. Order'!BC405=\"\",\"\",'1. Order'!BC405)","v":""},{"$f":"IF('1. Order'!BD405=\"\",\"\",'1. Order'!BD405)","v":""},{"$f":"IF('1. Order'!BE405=\"\",\"\",'1. Order'!BE405)","v":""},{"$f":"IF('1. Order'!BG405=\"\",\"\",'1. Order'!BG405)","v":""},{"$f":"IF('1. Order'!BH405=\"\",\"\",'1. Order'!BH405)","v":""},{"$f":"IF('1. Order'!BI405=\"\",\"\",'1. Order'!BI405)","v":""},{"$f":"IF('1. Order'!BJ405=\"\",\"\",'1. Order'!BJ405)","v":""},{"$f":"IF('1. Order'!BK405=\"\",\"\",'1. Order'!BK405)","v":"ZWO"}]
[{"$f":"IF('1. Order'!G406=\"\",\"\",'1. Order'!G406)","v":""},{"$f":"IF('1. Order'!H406=\"\",\"\",'1. Order'!H406)","v":""},{"$f":"IF('1. Order'!I406=\"\",\"\",'1. Order'!I406)","v":""},{"$f":"IF('1. Order'!J406=\"\",\"\",'1. Order'!J406)","v":""},{"$f":"IF('1. Order'!K406=\"\",\"\",'1. Order'!K406)","v":""},{"$f":"IF('1. Order'!L406=\"\",\"\",'1. Order'!L406)","v":""},{"$f":"IF('1. Order'!M406=\"\",\"\",'1. Order'!M406)","v":""},{"$f":"IF('1. Order'!N406=\"\",\"\",'1. Order'!N406)","v":""},{"$f":"IF('1. Order'!P406=\"\",\"\",'1. Order'!P406)","v":""},{"$f":"IF('1. Order'!Q406=\"\",\"\",'1. Order'!Q406)","v":{"$error":"#N/A"}},{"$f":"IF('1. Order'!R406=\"\",\"\",'1. Order'!R406)","v":{"$error":"#N/A"}},{"$f":"IF('1. Order'!S406=\"\",\"\",'1. Order'!S406)","v":""},{"$f":"IF('1. Order'!T406=\"\",\"\",'1. Order'!T406)","v":""},{"$f":"IF('1. Order'!U406=\"\",\"\",'1. Order'!U406)","v":""},{"$f":"IF('1. Order'!X406=\"\",\"\",'1. Order'!X406)","v":""},{"$f":"IF('1. Order'!Y406=\"\",\"\",'1. Order'!Y406)","v":""},{"$f":"IF('1. Order'!Z406=\"\",\"\",'1. Order'!Z406)","v":""},{"$f":"IF('1. Order'!AC406=\"\",\"\",'1. Order'!AC406)","v":""},{"$f":"IF('1. Order'!AD406=\"\",\"\",'1. Order'!AD406)","v":""},{"$f":"IF('1. Order'!AE406=\"\",\"\",'1. Order'!AE406)","v":""},null,{"$f":"IF('1. Order'!AW406=\"\",\"\",'1. Order'!AW406)","v":""},{"$f":"IF('1. Order'!AX406=\"\",\"\",'1. Order'!AX406)","v":""},null,null,null,null,null,null,null,{"$f":"IF('1. Order'!BB406=\"\",\"\",'1. Order'!BB406)","v":""},{"$f":"IF('1. Order'!BC406=\"\",\"\",'1. Order'!BC406)","v":""},{"$f":"IF('1. Order'!BD406=\"\",\"\",'1. Order'!BD406)","v":""},{"$f":"IF('1. Order'!BE406=\"\",\"\",'1. Order'!BE406)","v":""},{"$f":"IF('1. Order'!BG406=\"\",\"\",'1. Order'!BG406)","v":""},{"$f":"IF('1. Order'!BH406=\"\",\"\",'1. Order'!BH406)","v":""},{"$f":"IF('1. Order'!BI406=\"\",\"\",'1. Order'!BI406)","v":""},{"$f":"IF('1. Order'!BJ406=\"\",\"\",'1. Order'!BJ406)","v":""},{"$f":"IF('1. Order'!BK406=\"\",\"\",'1. Order'!BK406)","v":"ZWO"}]
[{"$f":"IF('1. Order'!G407=\"\",\"\",'1. Order'!G407)","v":""},{"$f":"IF('1. Order'!H407=\"\",\"\",'1. Order'!H407)","v":""},{"$f":"IF('1. Order'!I407=\"\",\"\",'1. Order'!I407)","v":""},{"$f":"IF('1. Order'!J407=\"\",\"\",'1. Order'!J407)","v":""},{"$f":"IF('1. Order'!K407=\"\",\"\",'1. Order'!K407)","v":""},{"$f":"IF('1. Order'!L407=\"\",\"\",'1. Order'!L407)","v":""},{"$f":"IF('1. Order'!M407=\"\",\"\",'1. Order'!M407)","v":""},{"$f":"IF('1. Order'!N407=\"\",\"\",'1. Order'!N407)","v":""},{"$f":"IF('1. Order'!P407=\"\",\"\",'1. Order'!P407)","v":""},{"$f":"IF('1. Order'!Q407=\"\",\"\",'1. Order'!Q407)","v":{"$error":"#N/A"}},{"$f":"IF('1. Order'!R407=\"\",\"\",'1. Order'!R407)","v":{"$error":"#N/A"}},{"$f":"IF('1. Order'!S407=\"\",\"\",'1. Order'!S407)","v":""},{"$f":"IF('1. Order'!T407=\"\",\"\",'1. Order'!T407)","v":""},{"$f":"IF('1. Order'!U407=\"\",\"\",'1. Order'!U407)","v":""},{"$f":"IF('1. Order'!X407=\"\",\"\",'1. Order'!X407)","v":""},{"$f":"IF('1. Order'!Y407=\"\",\"\",'1. Order'!Y407)","v":""},{"$f":"IF('1. Order'!Z407=\"\",\"\",'1. Order'!Z407)","v":""},{"$f":"IF('1. Order'!AC407=\"\",\"\",'1. Order'!AC407)","v":""},{"$f":"IF('1. Order'!AD407=\"\",\"\",'1. Order'!AD407)","v":""},{"$f":"IF('1. Order'!AE407=\"\",\"\",'1. Order'!AE407)","v":""},null,{"$f":"IF('1. Order'!AW407=\"\",\"\",'1. Order'!AW407)","v":""},{"$f":"IF('1. Order'!AX407=\"\",\"\",'1. Order'!AX407)","v":""},null,null,null,null,null,null,null,{"$f":"IF('1. Order'!BB407=\"\",\"\",'1. Order'!BB407)","v":""},{"$f":"IF('1. Order'!BC407=\"\",\"\",'1. Order'!BC407)","v":""},{"$f":"IF('1. Order'!BD407=\"\",\"\",'1. Order'!BD407)","v":""},{"$f":"IF('1. Order'!BE407=\"\",\"\",'1. Order'!BE407)","v":""},{"$f":"IF('1. Order'!BG407=\"\",\"\",'1. Order'!BG407)","v":""},{"$f":"IF('1. Order'!BH407=\"\",\"\",'1. Order'!BH407)","v":""},{"$f":"IF('1. Order'!BI407=\"\",\"\",'1. Order'!BI407)","v":""},{"$f":"IF('1. Order'!BJ407=\"\",\"\",'1. Order'!BJ407)","v":""},{"$f":"IF('1. Order'!BK407=\"\",\"\",'1. Order'!BK407)","v":"ZWO"}]
[{"$f":"IF('1. Order'!G408=\"\",\"\",'1. Order'!G408)","v":""},{"$f":"IF('1. Order'!H408=\"\",\"\",'1. Order'!H408)","v":""},{"$f":"IF('1. Order'!I408=\"\",\"\",'1. Order'!I408)","v":""},{"$f":"IF('1. Order'!J408=\"\",\"\",'1. Order'!J408)","v":""},{"$f":"IF('1. Order'!K408=\"\",\"\",'1. Order'!K408)","v":""},{"$f":"IF('1. Order'!L408=\"\",\"\",'1. Order'!L408)","v":""},{"$f":"IF('1. Order'!M408=\"\",\"\",'1. Order'!M408)","v":""},{"$f":"IF('1. Order'!N408=\"\",\"\",'1. Order'!N408)","v":""},{"$f":"IF('1. Order'!P408=\"\",\"\",'1. Order'!P408)","v":""},{"$f":"IF('1. Order'!Q408=\"\",\"\",'1. Order'!Q408)","v":{"$error":"#N/A"}},{"$f":"IF('1. Order'!R408=\"\",\"\",'1. Order'!R408)","v":{"$error":"#N/A"}},{"$f":"IF('1. Order'!S408=\"\",\"\",'1. Order'!S408)","v":""},{"$f":"IF('1. Order'!T408=\"\",\"\",'1. Order'!T408)","v":""},{"$f":"IF('1. Order'!U408=\"\",\"\",'1. Order'!U408)","v":""},{"$f":"IF('1. Order'!X408=\"\",\"\",'1. Order'!X408)","v":""},{"$f":"IF('1. Order'!Y408=\"\",\"\",'1. Order'!Y408)","v":""},{"$f":"IF('1. Order'!Z408=\"\",\"\",'1. Order'!Z408)","v":""},{"$f":"IF('1. Order'!AC408=\"\",\"\",'1. Order'!AC408)","v":""},{"$f":"IF('1. Order'!AD408=\"\",\"\",'1. Order'!AD408)","v":""},{"$f":"IF('1. Order'!AE408=\"\",\"\",'1. Order'!AE408)","v":""},null,{"$f":"IF('1. Order'!AW408=\"\",\"\",'1. Order'!AW408)","v":""},{"$f":"IF('1. Order'!AX408=\"\",\"\",'1. Order'!AX408)","v":""},null,null,null,null,null,null,null,{"$f":"IF('1. Order'!BB408=\"\",\"\",'1. Order'!BB408)","v":""},{"$f":"IF('1. Order'!BC408=\"\",\"\",'1. Order'!BC408)","v":""},{"$f":"IF('1. Order'!BD408=\"\",\"\",'1. Order'!BD408)","v":""},{"$f":"IF('1. Order'!BE408=\"\",\"\",'1. Order'!BE408)","v":""},{"$f":"IF('1. Order'!BG408=\"\",\"\",'1. Order'!BG408)","v":""},{"$f":"IF('1. Order'!BH408=\"\",\"\",'1. Order'!BH408)","v":""},{"$f":"IF('1. Order'!BI408=\"\",\"\",'1. Order'!BI408)","v":""},{"$f":"IF('1. Order'!BJ408=\"\",\"\",'1. Order'!BJ408)","v":""},{"$f":"IF('1. Order'!BK408=\"\",\"\",'1. Order'!BK408)","v":"ZWO"}]
[{"$f":"IF('1. Order'!G409=\"\",\"\",'1. Order'!G409)","v":""},{"$f":"IF('1. Order'!H409=\"\",\"\",'1. Order'!H409)","v":""},{"$f":"IF('1. Order'!I409=\"\",\"\",'1. Order'!I409)","v":""},{"$f":"IF('1. Order'!J409=\"\",\"\",'1. Order'!J409)","v":""},{"$f":"IF('1. Order'!K409=\"\",\"\",'1. Order'!K409)","v":""},{"$f":"IF('1. Order'!L409=\"\",\"\",'1. Order'!L409)","v":""},{"$f":"IF('1. Order'!M409=\"\",\"\",'1. Order'!M409)","v":""},{"$f":"IF('1. Order'!N409=\"\",\"\",'1. Order'!N409)","v":""},{"$f":"IF('1. Order'!P409=\"\",\"\",'1. Order'!P409)","v":""},{"$f":"IF('1. Order'!Q409=\"\",\"\",'1. Order'!Q409)","v":{"$error":"#N/A"}},{"$f":"IF('1. Order'!R409=\"\",\"\",'1. Order'!R409)","v":{"$error":"#N/A"}},{"$f":"IF('1. Order'!S409=\"\",\"\",'1. Order'!S409)","v":""},{"$f":"IF('1. Order'!T409=\"\",\"\",'1. Order'!T409)","v":""},{"$f":"IF('1. Order'!U409=\"\",\"\",'1. Order'!U409)","v":""},{"$f":"IF('1. Order'!X409=\"\",\"\",'1. Order'!X409)","v":""},{"$f":"IF('1. Order'!Y409=\"\",\"\",'1. Order'!Y409)","v":""},{"$f":"IF('1. Order'!Z409=\"\",\"\",'1. Order'!Z409)","v":""},{"$f":"IF('1. Order'!AC409=\"\",\"\",'1. Order'!AC409)","v":""},{"$f":"IF('1. Order'!AD409=\"\",\"\",'1. Order'!AD409)","v":""},{"$f":"IF('1. Order'!AE409=\"\",\"\",'1. Order'!AE409)","v":""},null,{"$f":"IF('1. Order'!AW409=\"\",\"\",'1. Order'!AW409)","v":""},{"$f":"IF('1. Order'!AX409=\"\",\"\",'1. Order'!AX409)","v":""},null,null,null,null,null,null,null,{"$f":"IF('1. Order'!BB409=\"\",\"\",'1. Order'!BB409)","v":""},{"$f":"IF('1. Order'!BC409=\"\",\"\",'1. Order'!BC409)","v":""},{"$f":"IF('1. Order'!BD409=\"\",\"\",'1. Order'!BD409)","v":""},{"$f":"IF('1. Order'!BE409=\"\",\"\",'1. Order'!BE409)","v":""},{"$f":"IF('1. Order'!BG409=\"\",\"\",'1. Order'!BG409)","v":""},{"$f":"IF('1. Order'!BH409=\"\",\"\",'1. Order'!BH409)","v":""},{"$f":"IF('1. Order'!BI409=\"\",\"\",'1. Order'!BI409)","v":""},{"$f":"IF('1. Order'!BJ409=\"\",\"\",'1. Order'!BJ409)","v":""},{"$f":"IF('1. Order'!BK409=\"\",\"\",'1. Order'!BK409)","v":"ZWO"}]
[{"$f":"IF('1. Order'!G410=\"\",\"\",'1. Order'!G410)","v":""},{"$f":"IF('1. Order'!H410=\"\",\"\",'1. Order'!H410)","v":""},{"$f":"IF('1. Order'!I410=\"\",\"\",'1. Order'!I410)","v":""},{"$f":"IF('1. Order'!J410=\"\",\"\",'1. Order'!J410)","v":""},{"$f":"IF('1. Order'!K410=\"\",\"\",'1. Order'!K410)","v":""},{"$f":"IF('1. Order'!L410=\"\",\"\",'1. Order'!L410)","v":""},{"$f":"IF('1. Order'!M410=\"\",\"\",'1. Order'!M410)","v":""},{"$f":"IF('1. Order'!N410=\"\",\"\",'1. Order'!N410)","v":""},{"$f":"IF('1. Order'!P410=\"\",\"\",'1. Order'!P410)","v":""},{"$f":"IF('1. Order'!Q410=\"\",\"\",'1. Order'!Q410)","v":{"$error":"#N/A"}},{"$f":"IF('1. Order'!R410=\"\",\"\",'1. Order'!R410)","v":{"$error":"#N/A"}},{"$f":"IF('1. Order'!S410=\"\",\"\",'1. Order'!S410)","v":""},{"$f":"IF('1. Order'!T410=\"\",\"\",'1. Order'!T410)","v":""},{"$f":"IF('1. Order'!U410=\"\",\"\",'1. Order'!U410)","v":""},{"$f":"IF('1. Order'!X410=\"\",\"\",'1. Order'!X410)","v":""},{"$f":"IF('1. Order'!Y410=\"\",\"\",'1. Order'!Y410)","v":""},{"$f":"IF('1. Order'!Z410=\"\",\"\",'1. Order'!Z410)","v":""},{"$f":"IF('1. Order'!AC410=\"\",\"\",'1. Order'!AC410)","v":""},{"$f":"IF('1. Order'!AD410=\"\",\"\",'1. Order'!AD410)","v":""},{"$f":"IF('1. Order'!AE410=\"\",\"\",'1. Order'!AE410)","v":""},null,{"$f":"IF('1. Order'!AW410=\"\",\"\",'1. Order'!AW410)","v":""},{"$f":"IF('1. Order'!AX410=\"\",\"\",'1. Order'!AX410)","v":""},null,null,null,null,null,null,null,{"$f":"IF('1. Order'!BB410=\"\",\"\",'1. Order'!BB410)","v":""},{"$f":"IF('1. Order'!BC410=\"\",\"\",'1. Order'!BC410)","v":""},{"$f":"IF('1. Order'!BD410=\"\",\"\",'1. Order'!BD410)","v":""},{"$f":"IF('1. Order'!BE410=\"\",\"\",'1. Order'!BE410)","v":""},{"$f":"IF('1. Order'!BG410=\"\",\"\",'1. Order'!BG410)","v":""},{"$f":"IF('1. Order'!BH410=\"\",\"\",'1. Order'!BH410)","v":""},{"$f":"IF('1. Order'!BI410=\"\",\"\",'1. Order'!BI410)","v":""},{"$f":"IF('1. Order'!BJ410=\"\",\"\",'1. Order'!BJ410)","v":""},{"$f":"IF('1. Order'!BK410=\"\",\"\",'1. Order'!BK410)","v":"ZWO"}]
[{"$f":"IF('1. Order'!G411=\"\",\"\",'1. Order'!G411)","v":""},{"$f":"IF('1. Order'!H411=\"\",\"\",'1. Order'!H411)","v":""},{"$f":"IF('1. Order'!I411=\"\",\"\",'1. Order'!I411)","v":""},{"$f":"IF('1. Order'!J411=\"\",\"\",'1. Order'!J411)","v":""},{"$f":"IF('1. Order'!K411=\"\",\"\",'1. Order'!K411)","v":""},{"$f":"IF('1. Order'!L411=\"\",\"\",'1. Order'!L411)","v":""},{"$f":"IF('1. Order'!M411=\"\",\"\",'1. Order'!M411)","v":""},{"$f":"IF('1. Order'!N411=\"\",\"\",'1. Order'!N411)","v":""},{"$f":"IF('1. Order'!P411=\"\",\"\",'1. Order'!P411)","v":""},{"$f":"IF('1. Order'!Q411=\"\",\"\",'1. Order'!Q411)","v":{"$error":"#N/A"}},{"$f":"IF('1. Order'!R411=\"\",\"\",'1. Order'!R411)","v":{"$error":"#N/A"}},{"$f":"IF('1. Order'!S411=\"\",\"\",'1. Order'!S411)","v":""},{"$f":"IF('1. Order'!T411=\"\",\"\",'1. Order'!T411)","v":""},{"$f":"IF('1. Order'!U411=\"\",\"\",'1. Order'!U411)","v":""},{"$f":"IF('1. Order'!X411=\"\",\"\",'1. Order'!X411)","v":""},{"$f":"IF('1. Order'!Y411=\"\",\"\",'1. Order'!Y411)","v":""},{"$f":"IF('1. Order'!Z411=\"\",\"\",'1. Order'!Z411)","v":""},{"$f":"IF('1. Order'!AC411=\"\",\"\",'1. Order'!AC411)","v":""},{"$f":"IF('1. Order'!AD411=\"\",\"\",'1. Order'!AD411)","v":""},{"$f":"IF('1. Order'!AE411=\"\",\"\",'1. Order'!AE411)","v":""},null,{"$f":"IF('1. Order'!AW411=\"\",\"\",'1. Order'!AW411)","v":""},{"$f":"IF('1. Order'!AX411=\"\",\"\",'1. Order'!AX411)","v":""},null,null,null,null,null,null,null,{"$f":"IF('1. Order'!BB411=\"\",\"\",'1. Order'!BB411)","v":""},{"$f":"IF('1. Order'!BC411=\"\",\"\",'1. Order'!BC411)","v":""},{"$f":"IF('1. Order'!BD411=\"\",\"\",'1. Order'!BD411)","v":""},{"$f":"IF('1. Order'!BE411=\"\",\"\",'1. Order'!BE411)","v":""},{"$f":"IF('1. Order'!BG411=\"\",\"\",'1. Order'!BG411)","v":""},{"$f":"IF('1. Order'!BH411=\"\",\"\",'1. Order'!BH411)","v":""},{"$f":"IF('1. Order'!BI411=\"\",\"\",'1. Order'!BI411)","v":""},{"$f":"IF('1. Order'!BJ411=\"\",\"\",'1. Order'!BJ411)","v":""},{"$f":"IF('1. Order'!BK411=\"\",\"\",'1. Order'!BK411)","v":"ZWO"}]
[{"$f":"IF('1. Order'!G412=\"\",\"\",'1. Order'!G412)","v":""},{"$f":"IF('1. Order'!H412=\"\",\"\",'1. Order'!H412)","v":""},{"$f":"IF('1. Order'!I412=\"\",\"\",'1. Order'!I412)","v":""},{"$f":"IF('1. Order'!J412=\"\",\"\",'1. Order'!J412)","v":""},{"$f":"IF('1. Order'!K412=\"\",\"\",'1. Order'!K412)","v":""},{"$f":"IF('1. Order'!L412=\"\",\"\",'1. Order'!L412)","v":""},{"$f":"IF('1. Order'!M412=\"\",\"\",'1. Order'!M412)","v":""},{"$f":"IF('1. Order'!N412=\"\",\"\",'1. Order'!N412)","v":""},{"$f":"IF('1. Order'!P412=\"\",\"\",'1. Order'!P412)","v":""},{"$f":"IF('1. Order'!Q412=\"\",\"\",'1. Order'!Q412)","v":{"$error":"#N/A"}},{"$f":"IF('1. Order'!R412=\"\",\"\",'1. Order'!R412)","v":{"$error":"#N/A"}},{"$f":"IF('1. Order'!S412=\"\",\"\",'1. Order'!S412)","v":""},{"$f":"IF('1. Order'!T412=\"\",\"\",'1. Order'!T412)","v":""},{"$f":"IF('1. Order'!U412=\"\",\"\",'1. Order'!U412)","v":""},{"$f":"IF('1. Order'!X412=\"\",\"\",'1. Order'!X412)","v":""},{"$f":"IF('1. Order'!Y412=\"\",\"\",'1. Order'!Y412)","v":""},{"$f":"IF('1. Order'!Z412=\"\",\"\",'1. Order'!Z412)","v":""},{"$f":"IF('1. Order'!AC412=\"\",\"\",'1. Order'!AC412)","v":""},{"$f":"IF('1. Order'!AD412=\"\",\"\",'1. Order'!AD412)","v":""},{"$f":"IF('1. Order'!AE412=\"\",\"\",'1. Order'!AE412)","v":""},null,{"$f":"IF('1. Order'!AW412=\"\",\"\",'1. Order'!AW412)","v":""},{"$f":"IF('1. Order'!AX412=\"\",\"\",'1. Order'!AX412)","v":""},null,null,null,null,null,null,null,{"$f":"IF('1. Order'!BB412=\"\",\"\",'1. Order'!BB412)","v":""},{"$f":"IF('1. Order'!BC412=\"\",\"\",'1. Order'!BC412)","v":""},{"$f":"IF('1. Order'!BD412=\"\",\"\",'1. Order'!BD412)","v":""},{"$f":"IF('1. Order'!BE412=\"\",\"\",'1. Order'!BE412)","v":""},{"$f":"IF('1. Order'!BG412=\"\",\"\",'1. Order'!BG412)","v":""},{"$f":"IF('1. Order'!BH412=\"\",\"\",'1. Order'!BH412)","v":""},{"$f":"IF('1. Order'!BI412=\"\",\"\",'1. Order'!BI412)","v":""},{"$f":"IF('1. Order'!BJ412=\"\",\"\",'1. Order'!BJ412)","v":""},{"$f":"IF('1. Order'!BK412=\"\",\"\",'1. Order'!BK412)","v":"ZWO"}]
[{"$f":"IF('1. Order'!G413=\"\",\"\",'1. Order'!G413)","v":""},{"$f":"IF('1. Order'!H413=\"\",\"\",'1. Order'!H413)","v":""},{"$f":"IF('1. Order'!I413=\"\",\"\",'1. Order'!I413)","v":""},{"$f":"IF('1. Order'!J413=\"\",\"\",'1. Order'!J413)","v":""},{"$f":"IF('1. Order'!K413=\"\",\"\",'1. Order'!K413)","v":""},{"$f":"IF('1. Order'!L413=\"\",\"\",'1. Order'!L413)","v":""},{"$f":"IF('1. Order'!M413=\"\",\"\",'1. Order'!M413)","v":""},{"$f":"IF('1. Order'!N413=\"\",\"\",'1. Order'!N413)","v":""},{"$f":"IF('1. Order'!P413=\"\",\"\",'1. Order'!P413)","v":""},{"$f":"IF('1. Order'!Q413=\"\",\"\",'1. Order'!Q413)","v":{"$error":"#N/A"}},{"$f":"IF('1. Order'!R413=\"\",\"\",'1. Order'!R413)","v":{"$error":"#N/A"}},{"$f":"IF('1. Order'!S413=\"\",\"\",'1. Order'!S413)","v":""},{"$f":"IF('1. Order'!T413=\"\",\"\",'1. Order'!T413)","v":""},{"$f":"IF('1. Order'!U413=\"\",\"\",'1. Order'!U413)","v":""},{"$f":"IF('1. Order'!X413=\"\",\"\",'1. Order'!X413)","v":""},{"$f":"IF('1. Order'!Y413=\"\",\"\",'1. Order'!Y413)","v":""},{"$f":"IF('1. Order'!Z413=\"\",\"\",'1. Order'!Z413)","v":""},{"$f":"IF('1. Order'!AC413=\"\",\"\",'1. Order'!AC413)","v":""},{"$f":"IF('1. Order'!AD413=\"\",\"\",'1. Order'!AD413)","v":""},{"$f":"IF('1. Order'!AE413=\"\",\"\",'1. Order'!AE413)","v":""},null,{"$f":"IF('1. Order'!AW413=\"\",\"\",'1. Order'!AW413)","v":""},{"$f":"IF('1. Order'!AX413=\"\",\"\",'1. Order'!AX413)","v":""},null,null,null,null,null,null,null,{"$f":"IF('1. Order'!BB413=\"\",\"\",'1. Order'!BB413)","v":""},{"$f":"IF('1. Order'!BC413=\"\",\"\",'1. Order'!BC413)","v":""},{"$f":"IF('1. Order'!BD413=\"\",\"\",'1. Order'!BD413)","v":""},{"$f":"IF('1. Order'!BE413=\"\",\"\",'1. Order'!BE413)","v":""},{"$f":"IF('1. Order'!BG413=\"\",\"\",'1. Order'!BG413)","v":""},{"$f":"IF('1. Order'!BH413=\"\",\"\",'1. Order'!BH413)","v":""},{"$f":"IF('1. Order'!BI413=\"\",\"\",'1. Order'!BI413)","v":""},{"$f":"IF('1. Order'!BJ413=\"\",\"\",'1. Order'!BJ413)","v":""},{"$f":"IF('1. Order'!BK413=\"\",\"\",'1. Order'!BK413)","v":"ZWO"}]
[{"$f":"IF('1. Order'!G414=\"\",\"\",'1. Order'!G414)","v":""},{"$f":"IF('1. Order'!H414=\"\",\"\",'1. Order'!H414)","v":""},{"$f":"IF('1. Order'!I414=\"\",\"\",'1. Order'!I414)","v":""},{"$f":"IF('1. Order'!J414=\"\",\"\",'1. Order'!J414)","v":""},{"$f":"IF('1. Order'!K414=\"\",\"\",'1. Order'!K414)","v":""},{"$f":"IF('1. Order'!L414=\"\",\"\",'1. Order'!L414)","v":""},{"$f":"IF('1. Order'!M414=\"\",\"\",'1. Order'!M414)","v":""},{"$f":"IF('1. Order'!N414=\"\",\"\",'1. Order'!N414)","v":""},{"$f":"IF('1. Order'!P414=\"\",\"\",'1. Order'!P414)","v":""},{"$f":"IF('1. Order'!Q414=\"\",\"\",'1. Order'!Q414)","v":{"$error":"#N/A"}},{"$f":"IF('1. Order'!R414=\"\",\"\",'1. Order'!R414)","v":{"$error":"#N/A"}},{"$f":"IF('1. Order'!S414=\"\",\"\",'1. Order'!S414)","v":""},{"$f":"IF('1. Order'!T414=\"\",\"\",'1. Order'!T414)","v":""},{"$f":"IF('1. Order'!U414=\"\",\"\",'1. Order'!U414)","v":""},{"$f":"IF('1. Order'!X414=\"\",\"\",'1. Order'!X414)","v":""},{"$f":"IF('1. Order'!Y414=\"\",\"\",'1. Order'!Y414)","v":""},{"$f":"IF('1. Order'!Z414=\"\",\"\",'1. Order'!Z414)","v":""},{"$f":"IF('1. Order'!AC414=\"\",\"\",'1. Order'!AC414)","v":""},{"$f":"IF('1. Order'!AD414=\"\",\"\",'1. Order'!AD414)","v":""},{"$f":"IF('1. Order'!AE414=\"\",\"\",'1. Order'!AE414)","v":""},null,{"$f":"IF('1. Order'!AW414=\"\",\"\",'1. Order'!AW414)","v":""},{"$f":"IF('1. Order'!AX414=\"\",\"\",'1. Order'!AX414)","v":""},null,null,null,null,null,null,null,{"$f":"IF('1. Order'!BB414=\"\",\"\",'1. Order'!BB414)","v":""},{"$f":"IF('1. Order'!BC414=\"\",\"\",'1. Order'!BC414)","v":""},{"$f":"IF('1. Order'!BD414=\"\",\"\",'1. Order'!BD414)","v":""},{"$f":"IF('1. Order'!BE414=\"\",\"\",'1. Order'!BE414)","v":""},{"$f":"IF('1. Order'!BG414=\"\",\"\",'1. Order'!BG414)","v":""},{"$f":"IF('1. Order'!BH414=\"\",\"\",'1. Order'!BH414)","v":""},{"$f":"IF('1. Order'!BI414=\"\",\"\",'1. Order'!BI414)","v":""},{"$f":"IF('1. Order'!BJ414=\"\",\"\",'1. Order'!BJ414)","v":""},{"$f":"IF('1. Order'!BK414=\"\",\"\",'1. Order'!BK414)","v":"ZWO"}]
[{"$f":"IF('1. Order'!G415=\"\",\"\",'1. Order'!G415)","v":""},{"$f":"IF('1. Order'!H415=\"\",\"\",'1. Order'!H415)","v":""},{"$f":"IF('1. Order'!I415=\"\",\"\",'1. Order'!I415)","v":""},{"$f":"IF('1. Order'!J415=\"\",\"\",'1. Order'!J415)","v":""},{"$f":"IF('1. Order'!K415=\"\",\"\",'1. Order'!K415)","v":""},{"$f":"IF('1. Order'!L415=\"\",\"\",'1. Order'!L415)","v":""},{"$f":"IF('1. Order'!M415=\"\",\"\",'1. Order'!M415)","v":""},{"$f":"IF('1. Order'!N415=\"\",\"\",'1. Order'!N415)","v":""},{"$f":"IF('1. Order'!P415=\"\",\"\",'1. Order'!P415)","v":""},{"$f":"IF('1. Order'!Q415=\"\",\"\",'1. Order'!Q415)","v":{"$error":"#N/A"}},{"$f":"IF('1. Order'!R415=\"\",\"\",'1. Order'!R415)","v":{"$error":"#N/A"}},{"$f":"IF('1. Order'!S415=\"\",\"\",'1. Order'!S415)","v":""},{"$f":"IF('1. Order'!T415=\"\",\"\",'1. Order'!T415)","v":""},{"$f":"IF('1. Order'!U415=\"\",\"\",'1. Order'!U415)","v":""},{"$f":"IF('1. Order'!X415=\"\",\"\",'1. Order'!X415)","v":""},{"$f":"IF('1. Order'!Y415=\"\",\"\",'1. Order'!Y415)","v":""},{"$f":"IF('1. Order'!Z415=\"\",\"\",'1. Order'!Z415)","v":""},{"$f":"IF('1. Order'!AC415=\"\",\"\",'1. Order'!AC415)","v":""},{"$f":"IF('1. Order'!AD415=\"\",\"\",'1. Order'!AD415)","v":""},{"$f":"IF('1. Order'!AE415=\"\",\"\",'1. Order'!AE415)","v":""},null,{"$f":"IF('1. Order'!AW415=\"\",\"\",'1. Order'!AW415)","v":""},{"$f":"IF('1. Order'!AX415=\"\",\"\",'1. Order'!AX415)","v":""},null,null,null,null,null,null,null,{"$f":"IF('1. Order'!BB415=\"\",\"\",'1. Order'!BB415)","v":""},{"$f":"IF('1. Order'!BC415=\"\",\"\",'1. Order'!BC415)","v":""},{"$f":"IF('1. Order'!BD415=\"\",\"\",'1. Order'!BD415)","v":""},{"$f":"IF('1. Order'!BE415=\"\",\"\",'1. Order'!BE415)","v":""},{"$f":"IF('1. Order'!BG415=\"\",\"\",'1. Order'!BG415)","v":""},{"$f":"IF('1. Order'!BH415=\"\",\"\",'1. Order'!BH415)","v":""},{"$f":"IF('1. Order'!BI415=\"\",\"\",'1. Order'!BI415)","v":""},{"$f":"IF('1. Order'!BJ415=\"\",\"\",'1. Order'!BJ415)","v":""},{"$f":"IF('1. Order'!BK415=\"\",\"\",'1. Order'!BK415)","v":"ZWO"}]
[{"$f":"IF('1. Order'!G416=\"\",\"\",'1. Order'!G416)","v":""},{"$f":"IF('1. Order'!H416=\"\",\"\",'1. Order'!H416)","v":""},{"$f":"IF('1. Order'!I416=\"\",\"\",'1. Order'!I416)","v":""},{"$f":"IF('1. Order'!J416=\"\",\"\",'1. Order'!J416)","v":""},{"$f":"IF('1. Order'!K416=\"\",\"\",'1. Order'!K416)","v":""},{"$f":"IF('1. Order'!L416=\"\",\"\",'1. Order'!L416)","v":""},{"$f":"IF('1. Order'!M416=\"\",\"\",'1. Order'!M416)","v":""},{"$f":"IF('1. Order'!N416=\"\",\"\",'1. Order'!N416)","v":""},{"$f":"IF('1. Order'!P416=\"\",\"\",'1. Order'!P416)","v":""},{"$f":"IF('1. Order'!Q416=\"\",\"\",'1. Order'!Q416)","v":{"$error":"#N/A"}},{"$f":"IF('1. Order'!R416=\"\",\"\",'1. Order'!R416)","v":{"$error":"#N/A"}},{"$f":"IF('1. Order'!S416=\"\",\"\",'1. Order'!S416)","v":""},{"$f":"IF('1. Order'!T416=\"\",\"\",'1. Order'!T416)","v":""},{"$f":"IF('1. Order'!U416=\"\",\"\",'1. Order'!U416)","v":""},{"$f":"IF('1. Order'!X416=\"\",\"\",'1. Order'!X416)","v":""},{"$f":"IF('1. Order'!Y416=\"\",\"\",'1. Order'!Y416)","v":""},{"$f":"IF('1. Order'!Z416=\"\",\"\",'1. Order'!Z416)","v":""},{"$f":"IF('1. Order'!AC416=\"\",\"\",'1. Order'!AC416)","v":""},{"$f":"IF('1. Order'!AD416=\"\",\"\",'1. Order'!AD416)","v":""},{"$f":"IF('1. Order'!AE416=\"\",\"\",'1. Order'!AE416)","v":""},null,{"$f":"IF('1. Order'!AW416=\"\",\"\",'1. Order'!AW416)","v":""},{"$f":"IF('1. Order'!AX416=\"\",\"\",'1. Order'!AX416)","v":""},null,null,null,null,null,null,null,{"$f":"IF('1. Order'!BB416=\"\",\"\",'1. Order'!BB416)","v":""},{"$f":"IF('1. Order'!BC416=\"\",\"\",'1. Order'!BC416)","v":""},{"$f":"IF('1. Order'!BD416=\"\",\"\",'1. Order'!BD416)","v":""},{"$f":"IF('1. Order'!BE416=\"\",\"\",'1. Order'!BE416)","v":""},{"$f":"IF('1. Order'!BG416=\"\",\"\",'1. Order'!BG416)","v":""},{"$f":"IF('1. Order'!BH416=\"\",\"\",'1. Order'!BH416)","v":""},{"$f":"IF('1. Order'!BI416=\"\",\"\",'1. Order'!BI416)","v":""},{"$f":"IF('1. Order'!BJ416=\"\",\"\",'1. Order'!BJ416)","v":""},{"$f":"IF('1. Order'!BK416=\"\",\"\",'1. Order'!BK416)","v":"ZWO"}]
[{"$f":"IF('1. Order'!G417=\"\",\"\",'1. Order'!G417)","v":""},{"$f":"IF('1. Order'!H417=\"\",\"\",'1. Order'!H417)","v":""},{"$f":"IF('1. Order'!I417=\"\",\"\",'1. Order'!I417)","v":""},{"$f":"IF('1. Order'!J417=\"\",\"\",'1. Order'!J417)","v":""},{"$f":"IF('1. Order'!K417=\"\",\"\",'1. Order'!K417)","v":""},{"$f":"IF('1. Order'!L417=\"\",\"\",'1. Order'!L417)","v":""},{"$f":"IF('1. Order'!M417=\"\",\"\",'1. Order'!M417)","v":""},{"$f":"IF('1. Order'!N417=\"\",\"\",'1. Order'!N417)","v":""},{"$f":"IF('1. Order'!P417=\"\",\"\",'1. Order'!P417)","v":""},{"$f":"IF('1. Order'!Q417=\"\",\"\",'1. Order'!Q417)","v":{"$error":"#N/A"}},{"$f":"IF('1. Order'!R417=\"\",\"\",'1. Order'!R417)","v":{"$error":"#N/A"}},{"$f":"IF('1. Order'!S417=\"\",\"\",'1. Order'!S417)","v":""},{"$f":"IF('1. Order'!T417=\"\",\"\",'1. Order'!T417)","v":""},{"$f":"IF('1. Order'!U417=\"\",\"\",'1. Order'!U417)","v":""},{"$f":"IF('1. Order'!X417=\"\",\"\",'1. Order'!X417)","v":""},{"$f":"IF('1. Order'!Y417=\"\",\"\",'1. Order'!Y417)","v":""},{"$f":"IF('1. Order'!Z417=\"\",\"\",'1. Order'!Z417)","v":""},{"$f":"IF('1. Order'!AC417=\"\",\"\",'1. Order'!AC417)","v":""},{"$f":"IF('1. Order'!AD417=\"\",\"\",'1. Order'!AD417)","v":""},{"$f":"IF('1. Order'!AE417=\"\",\"\",'1. Order'!AE417)","v":""},null,{"$f":"IF('1. Order'!AW417=\"\",\"\",'1. Order'!AW417)","v":""},{"$f":"IF('1. Order'!AX417=\"\",\"\",'1. Order'!AX417)","v":""},null,null,null,null,null,null,null,{"$f":"IF('1. Order'!BB417=\"\",\"\",'1. Order'!BB417)","v":""},{"$f":"IF('1. Order'!BC417=\"\",\"\",'1. Order'!BC417)","v":""},{"$f":"IF('1. Order'!BD417=\"\",\"\",'1. Order'!BD417)","v":""},{"$f":"IF('1. Order'!BE417=\"\",\"\",'1. Order'!BE417)","v":""},{"$f":"IF('1. Order'!BG417=\"\",\"\",'1. Order'!BG417)","v":""},{"$f":"IF('1. Order'!BH417=\"\",\"\",'1. Order'!BH417)","v":""},{"$f":"IF('1. Order'!BI417=\"\",\"\",'1. Order'!BI417)","v":""},{"$f":"IF('1. Order'!BJ417=\"\",\"\",'1. Order'!BJ417)","v":""},{"$f":"IF('1. Order'!BK417=\"\",\"\",'1. Order'!BK417)","v":"ZWO"}]
[{"$f":"IF('1. Order'!G418=\"\",\"\",'1. Order'!G418)","v":""},{"$f":"IF('1. Order'!H418=\"\",\"\",'1. Order'!H418)","v":""},{"$f":"IF('1. Order'!I418=\"\",\"\",'1. Order'!I418)","v":""},{"$f":"IF('1. Order'!J418=\"\",\"\",'1. Order'!J418)","v":""},{"$f":"IF('1. Order'!K418=\"\",\"\",'1. Order'!K418)","v":""},{"$f":"IF('1. Order'!L418=\"\",\"\",'1. Order'!L418)","v":""},{"$f":"IF('1. Order'!M418=\"\",\"\",'1. Order'!M418)","v":""},{"$f":"IF('1. Order'!N418=\"\",\"\",'1. Order'!N418)","v":""},{"$f":"IF('1. Order'!P418=\"\",\"\",'1. Order'!P418)","v":""},{"$f":"IF('1. Order'!Q418=\"\",\"\",'1. Order'!Q418)","v":{"$error":"#N/A"}},{"$f":"IF('1. Order'!R418=\"\",\"\",'1. Order'!R418)","v":{"$error":"#N/A"}},{"$f":"IF('1. Order'!S418=\"\",\"\",'1. Order'!S418)","v":""},{"$f":"IF('1. Order'!T418=\"\",\"\",'1. Order'!T418)","v":""},{"$f":"IF('1. Order'!U418=\"\",\"\",'1. Order'!U418)","v":""},{"$f":"IF('1. Order'!X418=\"\",\"\",'1. Order'!X418)","v":""},{"$f":"IF('1. Order'!Y418=\"\",\"\",'1. Order'!Y418)","v":""},{"$f":"IF('1. Order'!Z418=\"\",\"\",'1. Order'!Z418)","v":""},{"$f":"IF('1. Order'!AC418=\"\",\"\",'1. Order'!AC418)","v":""},{"$f":"IF('1. Order'!AD418=\"\",\"\",'1. Order'!AD418)","v":""},{"$f":"IF('1. Order'!AE418=\"\",\"\",'1. Order'!AE418)","v":""},null,{"$f":"IF('1. Order'!AW418=\"\",\"\",'1. Order'!AW418)","v":""},{"$f":"IF('1. Order'!AX418=\"\",\"\",'1. Order'!AX418)","v":""},null,null,null,null,null,null,null,{"$f":"IF('1. Order'!BB418=\"\",\"\",'1. Order'!BB418)","v":""},{"$f":"IF('1. Order'!BC418=\"\",\"\",'1. Order'!BC418)","v":""},{"$f":"IF('1. Order'!BD418=\"\",\"\",'1. Order'!BD418)","v":""},{"$f":"IF('1. Order'!BE418=\"\",\"\",'1. Order'!BE418)","v":""},{"$f":"IF('1. Order'!BG418=\"\",\"\",'1. Order'!BG418)","v":""},{"$f":"IF('1. Order'!BH418=\"\",\"\",'1. Order'!BH418)","v":""},{"$f":"IF('1. Order'!BI418=\"\",\"\",'1. Order'!BI418)","v":""},{"$f":"IF('1. Order'!BJ418=\"\",\"\",'1. Order'!BJ418)","v":""},{"$f":"IF('1. Order'!BK418=\"\",\"\",'1. Order'!BK418)","v":"ZWO"}]
[{"$f":"IF('1. Order'!G419=\"\",\"\",'1. Order'!G419)","v":""},{"$f":"IF('1. Order'!H419=\"\",\"\",'1. Order'!H419)","v":""},{"$f":"IF('1. Order'!I419=\"\",\"\",'1. Order'!I419)","v":""},{"$f":"IF('1. Order'!J419=\"\",\"\",'1. Order'!J419)","v":""},{"$f":"IF('1. Order'!K419=\"\",\"\",'1. Order'!K419)","v":""},{"$f":"IF('1. Order'!L419=\"\",\"\",'1. Order'!L419)","v":""},{"$f":"IF('1. Order'!M419=\"\",\"\",'1. Order'!M419)","v":""},{"$f":"IF('1. Order'!N419=\"\",\"\",'1. Order'!N419)","v":""},{"$f":"IF('1. Order'!P419=\"\",\"\",'1. Order'!P419)","v":""},{"$f":"IF('1. Order'!Q419=\"\",\"\",'1. Order'!Q419)","v":{"$error":"#N/A"}},{"$f":"IF('1. Order'!R419=\"\",\"\",'1. Order'!R419)","v":{"$error":"#N/A"}},{"$f":"IF('1. Order'!S419=\"\",\"\",'1. Order'!S419)","v":""},{"$f":"IF('1. Order'!T419=\"\",\"\",'1. Order'!T419)","v":""},{"$f":"IF('1. Order'!U419=\"\",\"\",'1. Order'!U419)","v":""},{"$f":"IF('1. Order'!X419=\"\",\"\",'1. Order'!X419)","v":""},{"$f":"IF('1. Order'!Y419=\"\",\"\",'1. Order'!Y419)","v":""},{"$f":"IF('1. Order'!Z419=\"\",\"\",'1. Order'!Z419)","v":""},{"$f":"IF('1. Order'!AC419=\"\",\"\",'1. Order'!AC419)","v":""},{"$f":"IF('1. Order'!AD419=\"\",\"\",'1. Order'!AD419)","v":""},{"$f":"IF('1. Order'!AE419=\"\",\"\",'1. Order'!AE419)","v":""},null,{"$f":"IF('1. Order'!AW419=\"\",\"\",'1. Order'!AW419)","v":""},{"$f":"IF('1. Order'!AX419=\"\",\"\",'1. Order'!AX419)","v":""},null,null,null,null,null,null,null,{"$f":"IF('1. Order'!BB419=\"\",\"\",'1. Order'!BB419)","v":""},{"$f":"IF('1. Order'!BC419=\"\",\"\",'1. Order'!BC419)","v":""},{"$f":"IF('1. Order'!BD419=\"\",\"\",'1. Order'!BD419)","v":""},{"$f":"IF('1. Order'!BE419=\"\",\"\",'1. Order'!BE419)","v":""},{"$f":"IF('1. Order'!BG419=\"\",\"\",'1. Order'!BG419)","v":""},{"$f":"IF('1. Order'!BH419=\"\",\"\",'1. Order'!BH419)","v":""},{"$f":"IF('1. Order'!BI419=\"\",\"\",'1. Order'!BI419)","v":""},{"$f":"IF('1. Order'!BJ419=\"\",\"\",'1. Order'!BJ419)","v":""},{"$f":"IF('1. Order'!BK419=\"\",\"\",'1. Order'!BK419)","v":"ZWO"}]
[{"$f":"IF('1. Order'!G420=\"\",\"\",'1. Order'!G420)","v":""},{"$f":"IF('1. Order'!H420=\"\",\"\",'1. Order'!H420)","v":""},{"$f":"IF('1. Order'!I420=\"\",\"\",'1. Order'!I420)","v":""},{"$f":"IF('1. Order'!J420=\"\",\"\",'1. Order'!J420)","v":""},{"$f":"IF('1. Order'!K420=\"\",\"\",'1. Order'!K420)","v":""},{"$f":"IF('1. Order'!L420=\"\",\"\",'1. Order'!L420)","v":""},{"$f":"IF('1. Order'!M420=\"\",\"\",'1. Order'!M420)","v":""},{"$f":"IF('1. Order'!N420=\"\",\"\",'1. Order'!N420)","v":""},{"$f":"IF('1. Order'!P420=\"\",\"\",'1. Order'!P420)","v":""},{"$f":"IF('1. Order'!Q420=\"\",\"\",'1. Order'!Q420)","v":{"$error":"#N/A"}},{"$f":"IF('1. Order'!R420=\"\",\"\",'1. Order'!R420)","v":{"$error":"#N/A"}},{"$f":"IF('1. Order'!S420=\"\",\"\",'1. Order'!S420)","v":""},{"$f":"IF('1. Order'!T420=\"\",\"\",'1. Order'!T420)","v":""},{"$f":"IF('1. Order'!U420=\"\",\"\",'1. Order'!U420)","v":""},{"$f":"IF('1. Order'!X420=\"\",\"\",'1. Order'!X420)","v":""},{"$f":"IF('1. Order'!Y420=\"\",\"\",'1. Order'!Y420)","v":""},{"$f":"IF('1. Order'!Z420=\"\",\"\",'1. Order'!Z420)","v":""},{"$f":"IF('1. Order'!AC420=\"\",\"\",'1. Order'!AC420)","v":""},{"$f":"IF('1. Order'!AD420=\"\",\"\",'1. Order'!AD420)","v":""},{"$f":"IF('1. Order'!AE420=\"\",\"\",'1. Order'!AE420)","v":""},null,{"$f":"IF('1. Order'!AW420=\"\",\"\",'1. Order'!AW420)","v":""},{"$f":"IF('1. Order'!AX420=\"\",\"\",'1. Order'!AX420)","v":""},null,null,null,null,null,null,null,{"$f":"IF('1. Order'!BB420=\"\",\"\",'1. Order'!BB420)","v":""},{"$f":"IF('1. Order'!BC420=\"\",\"\",'1. Order'!BC420)","v":""},{"$f":"IF('1. Order'!BD420=\"\",\"\",'1. Order'!BD420)","v":""},{"$f":"IF('1. Order'!BE420=\"\",\"\",'1. Order'!BE420)","v":""},{"$f":"IF('1. Order'!BG420=\"\",\"\",'1. Order'!BG420)","v":""},{"$f":"IF('1. Order'!BH420=\"\",\"\",'1. Order'!BH420)","v":""},{"$f":"IF('1. Order'!BI420=\"\",\"\",'1. Order'!BI420)","v":""},{"$f":"IF('1. Order'!BJ420=\"\",\"\",'1. Order'!BJ420)","v":""},{"$f":"IF('1. Order'!BK420=\"\",\"\",'1. Order'!BK420)","v":"ZWO"}]
[{"$f":"IF('1. Order'!G421=\"\",\"\",'1. Order'!G421)","v":""},{"$f":"IF('1. Order'!H421=\"\",\"\",'1. Order'!H421)","v":""},{"$f":"IF('1. Order'!I421=\"\",\"\",'1. Order'!I421)","v":""},{"$f":"IF('1. Order'!J421=\"\",\"\",'1. Order'!J421)","v":""},{"$f":"IF('1. Order'!K421=\"\",\"\",'1. Order'!K421)","v":""},{"$f":"IF('1. Order'!L421=\"\",\"\",'1. Order'!L421)","v":""},{"$f":"IF('1. Order'!M421=\"\",\"\",'1. Order'!M421)","v":""},{"$f":"IF('1. Order'!N421=\"\",\"\",'1. Order'!N421)","v":""},{"$f":"IF('1. Order'!P421=\"\",\"\",'1. Order'!P421)","v":""},{"$f":"IF('1. Order'!Q421=\"\",\"\",'1. Order'!Q421)","v":{"$error":"#N/A"}},{"$f":"IF('1. Order'!R421=\"\",\"\",'1. Order'!R421)","v":{"$error":"#N/A"}},{"$f":"IF('1. Order'!S421=\"\",\"\",'1. Order'!S421)","v":""},{"$f":"IF('1. Order'!T421=\"\",\"\",'1. Order'!T421)","v":""},{"$f":"IF('1. Order'!U421=\"\",\"\",'1. Order'!U421)","v":""},{"$f":"IF('1. Order'!X421=\"\",\"\",'1. Order'!X421)","v":""},{"$f":"IF('1. Order'!Y421=\"\",\"\",'1. Order'!Y421)","v":""},{"$f":"IF('1. Order'!Z421=\"\",\"\",'1. Order'!Z421)","v":""},{"$f":"IF('1. Order'!AC421=\"\",\"\",'1. Order'!AC421)","v":""},{"$f":"IF('1. Order'!AD421=\"\",\"\",'1. Order'!AD421)","v":""},{"$f":"IF('1. Order'!AE421=\"\",\"\",'1. Order'!AE421)","v":""},null,{"$f":"IF('1. Order'!AW421=\"\",\"\",'1. Order'!AW421)","v":""},{"$f":"IF('1. Order'!AX421=\"\",\"\",'1. Order'!AX421)","v":""},null,null,null,null,null,null,null,{"$f":"IF('1. Order'!BB421=\"\",\"\",'1. Order'!BB421)","v":""},{"$f":"IF('1. Order'!BC421=\"\",\"\",'1. Order'!BC421)","v":""},{"$f":"IF('1. Order'!BD421=\"\",\"\",'1. Order'!BD421)","v":""},{"$f":"IF('1. Order'!BE421=\"\",\"\",'1. Order'!BE421)","v":""},{"$f":"IF('1. Order'!BG421=\"\",\"\",'1. Order'!BG421)","v":""},{"$f":"IF('1. Order'!BH421=\"\",\"\",'1. Order'!BH421)","v":""},{"$f":"IF('1. Order'!BI421=\"\",\"\",'1. Order'!BI421)","v":""},{"$f":"IF('1. Order'!BJ421=\"\",\"\",'1. Order'!BJ421)","v":""},{"$f":"IF('1. Order'!BK421=\"\",\"\",'1. Order'!BK421)","v":"ZWO"}]
[{"$f":"IF('1. Order'!G422=\"\",\"\",'1. Order'!G422)","v":""},{"$f":"IF('1. Order'!H422=\"\",\"\",'1. Order'!H422)","v":""},{"$f":"IF('1. Order'!I422=\"\",\"\",'1. Order'!I422)","v":""},{"$f":"IF('1. Order'!J422=\"\",\"\",'1. Order'!J422)","v":""},{"$f":"IF('1. Order'!K422=\"\",\"\",'1. Order'!K422)","v":""},{"$f":"IF('1. Order'!L422=\"\",\"\",'1. Order'!L422)","v":""},{"$f":"IF('1. Order'!M422=\"\",\"\",'1. Order'!M422)","v":""},{"$f":"IF('1. Order'!N422=\"\",\"\",'1. Order'!N422)","v":""},{"$f":"IF('1. Order'!P422=\"\",\"\",'1. Order'!P422)","v":""},{"$f":"IF('1. Order'!Q422=\"\",\"\",'1. Order'!Q422)","v":{"$error":"#N/A"}},{"$f":"IF('1. Order'!R422=\"\",\"\",'1. Order'!R422)","v":{"$error":"#N/A"}},{"$f":"IF('1. Order'!S422=\"\",\"\",'1. Order'!S422)","v":""},{"$f":"IF('1. Order'!T422=\"\",\"\",'1. Order'!T422)","v":""},{"$f":"IF('1. Order'!U422=\"\",\"\",'1. Order'!U422)","v":""},{"$f":"IF('1. Order'!X422=\"\",\"\",'1. Order'!X422)","v":""},{"$f":"IF('1. Order'!Y422=\"\",\"\",'1. Order'!Y422)","v":""},{"$f":"IF('1. Order'!Z422=\"\",\"\",'1. Order'!Z422)","v":""},{"$f":"IF('1. Order'!AC422=\"\",\"\",'1. Order'!AC422)","v":""},{"$f":"IF('1. Order'!AD422=\"\",\"\",'1. Order'!AD422)","v":""},{"$f":"IF('1. Order'!AE422=\"\",\"\",'1. Order'!AE422)","v":""},null,{"$f":"IF('1. Order'!AW422=\"\",\"\",'1. Order'!AW422)","v":""},{"$f":"IF('1. Order'!AX422=\"\",\"\",'1. Order'!AX422)","v":""},null,null,null,null,null,null,null,{"$f":"IF('1. Order'!BB422=\"\",\"\",'1. Order'!BB422)","v":""},{"$f":"IF('1. Order'!BC422=\"\",\"\",'1. Order'!BC422)","v":""},{"$f":"IF('1. Order'!BD422=\"\",\"\",'1. Order'!BD422)","v":""},{"$f":"IF('1. Order'!BE422=\"\",\"\",'1. Order'!BE422)","v":""},{"$f":"IF('1. Order'!BG422=\"\",\"\",'1. Order'!BG422)","v":""},{"$f":"IF('1. Order'!BH422=\"\",\"\",'1. Order'!BH422)","v":""},{"$f":"IF('1. Order'!BI422=\"\",\"\",'1. Order'!BI422)","v":""},{"$f":"IF('1. Order'!BJ422=\"\",\"\",'1. Order'!BJ422)","v":""},{"$f":"IF('1. Order'!BK422=\"\",\"\",'1. Order'!BK422)","v":"ZWO"}]
[{"$f":"IF('1. Order'!G423=\"\",\"\",'1. Order'!G423)","v":""},{"$f":"IF('1. Order'!H423=\"\",\"\",'1. Order'!H423)","v":""},{"$f":"IF('1. Order'!I423=\"\",\"\",'1. Order'!I423)","v":""},{"$f":"IF('1. Order'!J423=\"\",\"\",'1. Order'!J423)","v":""},{"$f":"IF('1. Order'!K423=\"\",\"\",'1. Order'!K423)","v":""},{"$f":"IF('1. Order'!L423=\"\",\"\",'1. Order'!L423)","v":""},{"$f":"IF('1. Order'!M423=\"\",\"\",'1. Order'!M423)","v":""},{"$f":"IF('1. Order'!N423=\"\",\"\",'1. Order'!N423)","v":""},{"$f":"IF('1. Order'!P423=\"\",\"\",'1. Order'!P423)","v":""},{"$f":"IF('1. Order'!Q423=\"\",\"\",'1. Order'!Q423)","v":{"$error":"#N/A"}},{"$f":"IF('1. Order'!R423=\"\",\"\",'1. Order'!R423)","v":{"$error":"#N/A"}},{"$f":"IF('1. Order'!S423=\"\",\"\",'1. Order'!S423)","v":""},{"$f":"IF('1. Order'!T423=\"\",\"\",'1. Order'!T423)","v":""},{"$f":"IF('1. Order'!U423=\"\",\"\",'1. Order'!U423)","v":""},{"$f":"IF('1. Order'!X423=\"\",\"\",'1. Order'!X423)","v":""},{"$f":"IF('1. Order'!Y423=\"\",\"\",'1. Order'!Y423)","v":""},{"$f":"IF('1. Order'!Z423=\"\",\"\",'1. Order'!Z423)","v":""},{"$f":"IF('1. Order'!AC423=\"\",\"\",'1. Order'!AC423)","v":""},{"$f":"IF('1. Order'!AD423=\"\",\"\",'1. Order'!AD423)","v":""},{"$f":"IF('1. Order'!AE423=\"\",\"\",'1. Order'!AE423)","v":""},null,{"$f":"IF('1. Order'!AW423=\"\",\"\",'1. Order'!AW423)","v":""},{"$f":"IF('1. Order'!AX423=\"\",\"\",'1. Order'!AX423)","v":""},null,null,null,null,null,null,null,{"$f":"IF('1. Order'!BB423=\"\",\"\",'1. Order'!BB423)","v":""},{"$f":"IF('1. Order'!BC423=\"\",\"\",'1. Order'!BC423)","v":""},{"$f":"IF('1. Order'!BD423=\"\",\"\",'1. Order'!BD423)","v":""},{"$f":"IF('1. Order'!BE423=\"\",\"\",'1. Order'!BE423)","v":""},{"$f":"IF('1. Order'!BG423=\"\",\"\",'1. Order'!BG423)","v":""},{"$f":"IF('1. Order'!BH423=\"\",\"\",'1. Order'!BH423)","v":""},{"$f":"IF('1. Order'!BI423=\"\",\"\",'1. Order'!BI423)","v":""},{"$f":"IF('1. Order'!BJ423=\"\",\"\",'1. Order'!BJ423)","v":""},{"$f":"IF('1. Order'!BK423=\"\",\"\",'1. Order'!BK423)","v":"ZWO"}]
[{"$f":"IF('1. Order'!G424=\"\",\"\",'1. Order'!G424)","v":""},{"$f":"IF('1. Order'!H424=\"\",\"\",'1. Order'!H424)","v":""},{"$f":"IF('1. Order'!I424=\"\",\"\",'1. Order'!I424)","v":""},{"$f":"IF('1. Order'!J424=\"\",\"\",'1. Order'!J424)","v":""},{"$f":"IF('1. Order'!K424=\"\",\"\",'1. Order'!K424)","v":""},{"$f":"IF('1. Order'!L424=\"\",\"\",'1. Order'!L424)","v":""},{"$f":"IF('1. Order'!M424=\"\",\"\",'1. Order'!M424)","v":""},{"$f":"IF('1. Order'!N424=\"\",\"\",'1. Order'!N424)","v":""},{"$f":"IF('1. Order'!P424=\"\",\"\",'1. Order'!P424)","v":""},{"$f":"IF('1. Order'!Q424=\"\",\"\",'1. Order'!Q424)","v":{"$error":"#N/A"}},{"$f":"IF('1. Order'!R424=\"\",\"\",'1. Order'!R424)","v":{"$error":"#N/A"}},{"$f":"IF('1. Order'!S424=\"\",\"\",'1. Order'!S424)","v":""},{"$f":"IF('1. Order'!T424=\"\",\"\",'1. Order'!T424)","v":""},{"$f":"IF('1. Order'!U424=\"\",\"\",'1. Order'!U424)","v":""},{"$f":"IF('1. Order'!X424=\"\",\"\",'1. Order'!X424)","v":""},{"$f":"IF('1. Order'!Y424=\"\",\"\",'1. Order'!Y424)","v":""},{"$f":"IF('1. Order'!Z424=\"\",\"\",'1. Order'!Z424)","v":""},{"$f":"IF('1. Order'!AC424=\"\",\"\",'1. Order'!AC424)","v":""},{"$f":"IF('1. Order'!AD424=\"\",\"\",'1. Order'!AD424)","v":""},{"$f":"IF('1. Order'!AE424=\"\",\"\",'1. Order'!AE424)","v":""},null,{"$f":"IF('1. Order'!AW424=\"\",\"\",'1. Order'!AW424)","v":""},{"$f":"IF('1. Order'!AX424=\"\",\"\",'1. Order'!AX424)","v":""},null,null,null,null,null,null,null,{"$f":"IF('1. Order'!BB424=\"\",\"\",'1. Order'!BB424)","v":""},{"$f":"IF('1. Order'!BC424=\"\",\"\",'1. Order'!BC424)","v":""},{"$f":"IF('1. Order'!BD424=\"\",\"\",'1. Order'!BD424)","v":""},{"$f":"IF('1. Order'!BE424=\"\",\"\",'1. Order'!BE424)","v":""},{"$f":"IF('1. Order'!BG424=\"\",\"\",'1. Order'!BG424)","v":""},{"$f":"IF('1. Order'!BH424=\"\",\"\",'1. Order'!BH424)","v":""},{"$f":"IF('1. Order'!BI424=\"\",\"\",'1. Order'!BI424)","v":""},{"$f":"IF('1. Order'!BJ424=\"\",\"\",'1. Order'!BJ424)","v":""},{"$f":"IF('1. Order'!BK424=\"\",\"\",'1. Order'!BK424)","v":"ZWO"}]
[{"$f":"IF('1. Order'!G425=\"\",\"\",'1. Order'!G425)","v":""},{"$f":"IF('1. Order'!H425=\"\",\"\",'1. Order'!H425)","v":""},{"$f":"IF('1. Order'!I425=\"\",\"\",'1. Order'!I425)","v":""},{"$f":"IF('1. Order'!J425=\"\",\"\",'1. Order'!J425)","v":""},{"$f":"IF('1. Order'!K425=\"\",\"\",'1. Order'!K425)","v":""},{"$f":"IF('1. Order'!L425=\"\",\"\",'1. Order'!L425)","v":""},{"$f":"IF('1. Order'!M425=\"\",\"\",'1. Order'!M425)","v":""},{"$f":"IF('1. Order'!N425=\"\",\"\",'1. Order'!N425)","v":""},{"$f":"IF('1. Order'!P425=\"\",\"\",'1. Order'!P425)","v":""},{"$f":"IF('1. Order'!Q425=\"\",\"\",'1. Order'!Q425)","v":{"$error":"#N/A"}},{"$f":"IF('1. Order'!R425=\"\",\"\",'1. Order'!R425)","v":{"$error":"#N/A"}},{"$f":"IF('1. Order'!S425=\"\",\"\",'1. Order'!S425)","v":""},{"$f":"IF('1. Order'!T425=\"\",\"\",'1. Order'!T425)","v":""},{"$f":"IF('1. Order'!U425=\"\",\"\",'1. Order'!U425)","v":""},{"$f":"IF('1. Order'!X425=\"\",\"\",'1. Order'!X425)","v":""},{"$f":"IF('1. Order'!Y425=\"\",\"\",'1. Order'!Y425)","v":""},{"$f":"IF('1. Order'!Z425=\"\",\"\",'1. Order'!Z425)","v":""},{"$f":"IF('1. Order'!AC425=\"\",\"\",'1. Order'!AC425)","v":""},{"$f":"IF('1. Order'!AD425=\"\",\"\",'1. Order'!AD425)","v":""},{"$f":"IF('1. Order'!AE425=\"\",\"\",'1. Order'!AE425)","v":""},null,{"$f":"IF('1. Order'!AW425=\"\",\"\",'1. Order'!AW425)","v":""},{"$f":"IF('1. Order'!AX425=\"\",\"\",'1. Order'!AX425)","v":""},null,null,null,null,null,null,null,{"$f":"IF('1. Order'!BB425=\"\",\"\",'1. Order'!BB425)","v":""},{"$f":"IF('1. Order'!BC425=\"\",\"\",'1. Order'!BC425)","v":""},{"$f":"IF('1. Order'!BD425=\"\",\"\",'1. Order'!BD425)","v":""},{"$f":"IF('1. Order'!BE425=\"\",\"\",'1. Order'!BE425)","v":""},{"$f":"IF('1. Order'!BG425=\"\",\"\",'1. Order'!BG425)","v":""},{"$f":"IF('1. Order'!BH425=\"\",\"\",'1. Order'!BH425)","v":""},{"$f":"IF('1. Order'!BI425=\"\",\"\",'1. Order'!BI425)","v":""},{"$f":"IF('1. Order'!BJ425=\"\",\"\",'1. Order'!BJ425)","v":""},{"$f":"IF('1. Order'!BK425=\"\",\"\",'1. Order'!BK425)","v":"ZWO"}]
[{"$f":"IF('1. Order'!G426=\"\",\"\",'1. Order'!G426)","v":""},{"$f":"IF('1. Order'!H426=\"\",\"\",'1. Order'!H426)","v":""},{"$f":"IF('1. Order'!I426=\"\",\"\",'1. Order'!I426)","v":""},{"$f":"IF('1. Order'!J426=\"\",\"\",'1. Order'!J426)","v":""},{"$f":"IF('1. Order'!K426=\"\",\"\",'1. Order'!K426)","v":""},{"$f":"IF('1. Order'!L426=\"\",\"\",'1. Order'!L426)","v":""},{"$f":"IF('1. Order'!M426=\"\",\"\",'1. Order'!M426)","v":""},{"$f":"IF('1. Order'!N426=\"\",\"\",'1. Order'!N426)","v":""},{"$f":"IF('1. Order'!P426=\"\",\"\",'1. Order'!P426)","v":""},{"$f":"IF('1. Order'!Q426=\"\",\"\",'1. Order'!Q426)","v":{"$error":"#N/A"}},{"$f":"IF('1. Order'!R426=\"\",\"\",'1. Order'!R426)","v":{"$error":"#N/A"}},{"$f":"IF('1. Order'!S426=\"\",\"\",'1. Order'!S426)","v":""},{"$f":"IF('1. Order'!T426=\"\",\"\",'1. Order'!T426)","v":""},{"$f":"IF('1. Order'!U426=\"\",\"\",'1. Order'!U426)","v":""},{"$f":"IF('1. Order'!X426=\"\",\"\",'1. Order'!X426)","v":""},{"$f":"IF('1. Order'!Y426=\"\",\"\",'1. Order'!Y426)","v":""},{"$f":"IF('1. Order'!Z426=\"\",\"\",'1. Order'!Z426)","v":""},{"$f":"IF('1. Order'!AC426=\"\",\"\",'1. Order'!AC426)","v":""},{"$f":"IF('1. Order'!AD426=\"\",\"\",'1. Order'!AD426)","v":""},{"$f":"IF('1. Order'!AE426=\"\",\"\",'1. Order'!AE426)","v":""},null,{"$f":"IF('1. Order'!AW426=\"\",\"\",'1. Order'!AW426)","v":""},{"$f":"IF('1. Order'!AX426=\"\",\"\",'1. Order'!AX426)","v":""},null,null,null,null,null,null,null,{"$f":"IF('1. Order'!BB426=\"\",\"\",'1. Order'!BB426)","v":""},{"$f":"IF('1. Order'!BC426=\"\",\"\",'1. Order'!BC426)","v":""},{"$f":"IF('1. Order'!BD426=\"\",\"\",'1. Order'!BD426)","v":""},{"$f":"IF('1. Order'!BE426=\"\",\"\",'1. Order'!BE426)","v":""},{"$f":"IF('1. Order'!BG426=\"\",\"\",'1. Order'!BG426)","v":""},{"$f":"IF('1. Order'!BH426=\"\",\"\",'1. Order'!BH426)","v":""},{"$f":"IF('1. Order'!BI426=\"\",\"\",'1. Order'!BI426)","v":""},{"$f":"IF('1. Order'!BJ426=\"\",\"\",'1. Order'!BJ426)","v":""},{"$f":"IF('1. Order'!BK426=\"\",\"\",'1. Order'!BK426)","v":"ZWO"}]
[{"$f":"IF('1. Order'!G427=\"\",\"\",'1. Order'!G427)","v":""},{"$f":"IF('1. Order'!H427=\"\",\"\",'1. Order'!H427)","v":""},{"$f":"IF('1. Order'!I427=\"\",\"\",'1. Order'!I427)","v":""},{"$f":"IF('1. Order'!J427=\"\",\"\",'1. Order'!J427)","v":""},{"$f":"IF('1. Order'!K427=\"\",\"\",'1. Order'!K427)","v":""},{"$f":"IF('1. Order'!L427=\"\",\"\",'1. Order'!L427)","v":""},{"$f":"IF('1. Order'!M427=\"\",\"\",'1. Order'!M427)","v":""},{"$f":"IF('1. Order'!N427=\"\",\"\",'1. Order'!N427)","v":""},{"$f":"IF('1. Order'!P427=\"\",\"\",'1. Order'!P427)","v":""},{"$f":"IF('1. Order'!Q427=\"\",\"\",'1. Order'!Q427)","v":{"$error":"#N/A"}},{"$f":"IF('1. Order'!R427=\"\",\"\",'1. Order'!R427)","v":{"$error":"#N/A"}},{"$f":"IF('1. Order'!S427=\"\",\"\",'1. Order'!S427)","v":""},{"$f":"IF('1. Order'!T427=\"\",\"\",'1. Order'!T427)","v":""},{"$f":"IF('1. Order'!U427=\"\",\"\",'1. Order'!U427)","v":""},{"$f":"IF('1. Order'!X427=\"\",\"\",'1. Order'!X427)","v":""},{"$f":"IF('1. Order'!Y427=\"\",\"\",'1. Order'!Y427)","v":""},{"$f":"IF('1. Order'!Z427=\"\",\"\",'1. Order'!Z427)","v":""},{"$f":"IF('1. Order'!AC427=\"\",\"\",'1. Order'!AC427)","v":""},{"$f":"IF('1. Order'!AD427=\"\",\"\",'1. Order'!AD427)","v":""},{"$f":"IF('1. Order'!AE427=\"\",\"\",'1. Order'!AE427)","v":""},null,{"$f":"IF('1. Order'!AW427=\"\",\"\",'1. Order'!AW427)","v":""},{"$f":"IF('1. Order'!AX427=\"\",\"\",'1. Order'!AX427)","v":""},null,null,null,null,null,null,null,{"$f":"IF('1. Order'!BB427=\"\",\"\",'1. Order'!BB427)","v":""},{"$f":"IF('1. Order'!BC427=\"\",\"\",'1. Order'!BC427)","v":""},{"$f":"IF('1. Order'!BD427=\"\",\"\",'1. Order'!BD427)","v":""},{"$f":"IF('1. Order'!BE427=\"\",\"\",'1. Order'!BE427)","v":""},{"$f":"IF('1. Order'!BG427=\"\",\"\",'1. Order'!BG427)","v":""},{"$f":"IF('1. Order'!BH427=\"\",\"\",'1. Order'!BH427)","v":""},{"$f":"IF('1. Order'!BI427=\"\",\"\",'1. Order'!BI427)","v":""},{"$f":"IF('1. Order'!BJ427=\"\",\"\",'1. Order'!BJ427)","v":""},{"$f":"IF('1. Order'!BK427=\"\",\"\",'1. Order'!BK427)","v":"ZWO"}]
[{"$f":"IF('1. Order'!G428=\"\",\"\",'1. Order'!G428)","v":""},{"$f":"IF('1. Order'!H428=\"\",\"\",'1. Order'!H428)","v":""},{"$f":"IF('1. Order'!I428=\"\",\"\",'1. Order'!I428)","v":""},{"$f":"IF('1. Order'!J428=\"\",\"\",'1. Order'!J428)","v":""},{"$f":"IF('1. Order'!K428=\"\",\"\",'1. Order'!K428)","v":""},{"$f":"IF('1. Order'!L428=\"\",\"\",'1. Order'!L428)","v":""},{"$f":"IF('1. Order'!M428=\"\",\"\",'1. Order'!M428)","v":""},{"$f":"IF('1. Order'!N428=\"\",\"\",'1. Order'!N428)","v":""},{"$f":"IF('1. Order'!P428=\"\",\"\",'1. Order'!P428)","v":""},{"$f":"IF('1. Order'!Q428=\"\",\"\",'1. Order'!Q428)","v":{"$error":"#N/A"}},{"$f":"IF('1. Order'!R428=\"\",\"\",'1. Order'!R428)","v":{"$error":"#N/A"}},{"$f":"IF('1. Order'!S428=\"\",\"\",'1. Order'!S428)","v":""},{"$f":"IF('1. Order'!T428=\"\",\"\",'1. Order'!T428)","v":""},{"$f":"IF('1. Order'!U428=\"\",\"\",'1. Order'!U428)","v":""},{"$f":"IF('1. Order'!X428=\"\",\"\",'1. Order'!X428)","v":""},{"$f":"IF('1. Order'!Y428=\"\",\"\",'1. Order'!Y428)","v":""},{"$f":"IF('1. Order'!Z428=\"\",\"\",'1. Order'!Z428)","v":""},{"$f":"IF('1. Order'!AC428=\"\",\"\",'1. Order'!AC428)","v":""},{"$f":"IF('1. Order'!AD428=\"\",\"\",'1. Order'!AD428)","v":""},{"$f":"IF('1. Order'!AE428=\"\",\"\",'1. Order'!AE428)","v":""},null,{"$f":"IF('1. Order'!AW428=\"\",\"\",'1. Order'!AW428)","v":""},{"$f":"IF('1. Order'!AX428=\"\",\"\",'1. Order'!AX428)","v":""},null,null,null,null,null,null,null,{"$f":"IF('1. Order'!BB428=\"\",\"\",'1. Order'!BB428)","v":""},{"$f":"IF('1. Order'!BC428=\"\",\"\",'1. Order'!BC428)","v":""},{"$f":"IF('1. Order'!BD428=\"\",\"\",'1. Order'!BD428)","v":""},{"$f":"IF('1. Order'!BE428=\"\",\"\",'1. Order'!BE428)","v":""},{"$f":"IF('1. Order'!BG428=\"\",\"\",'1. Order'!BG428)","v":""},{"$f":"IF('1. Order'!BH428=\"\",\"\",'1. Order'!BH428)","v":""},{"$f":"IF('1. Order'!BI428=\"\",\"\",'1. Order'!BI428)","v":""},{"$f":"IF('1. Order'!BJ428=\"\",\"\",'1. Order'!BJ428)","v":""},{"$f":"IF('1. Order'!BK428=\"\",\"\",'1. Order'!BK428)","v":"ZWO"}]
[{"$f":"IF('1. Order'!G429=\"\",\"\",'1. Order'!G429)","v":""},{"$f":"IF('1. Order'!H429=\"\",\"\",'1. Order'!H429)","v":""},{"$f":"IF('1. Order'!I429=\"\",\"\",'1. Order'!I429)","v":""},{"$f":"IF('1. Order'!J429=\"\",\"\",'1. Order'!J429)","v":""},{"$f":"IF('1. Order'!K429=\"\",\"\",'1. Order'!K429)","v":""},{"$f":"IF('1. Order'!L429=\"\",\"\",'1. Order'!L429)","v":""},{"$f":"IF('1. Order'!M429=\"\",\"\",'1. Order'!M429)","v":""},{"$f":"IF('1. Order'!N429=\"\",\"\",'1. Order'!N429)","v":""},{"$f":"IF('1. Order'!P429=\"\",\"\",'1. Order'!P429)","v":""},{"$f":"IF('1. Order'!Q429=\"\",\"\",'1. Order'!Q429)","v":{"$error":"#N/A"}},{"$f":"IF('1. Order'!R429=\"\",\"\",'1. Order'!R429)","v":{"$error":"#N/A"}},{"$f":"IF('1. Order'!S429=\"\",\"\",'1. Order'!S429)","v":""},{"$f":"IF('1. Order'!T429=\"\",\"\",'1. Order'!T429)","v":""},{"$f":"IF('1. Order'!U429=\"\",\"\",'1. Order'!U429)","v":""},{"$f":"IF('1. Order'!X429=\"\",\"\",'1. Order'!X429)","v":""},{"$f":"IF('1. Order'!Y429=\"\",\"\",'1. Order'!Y429)","v":""},{"$f":"IF('1. Order'!Z429=\"\",\"\",'1. Order'!Z429)","v":""},{"$f":"IF('1. Order'!AC429=\"\",\"\",'1. Order'!AC429)","v":""},{"$f":"IF('1. Order'!AD429=\"\",\"\",'1. Order'!AD429)","v":""},{"$f":"IF('1. Order'!AE429=\"\",\"\",'1. Order'!AE429)","v":""},null,{"$f":"IF('1. Order'!AW429=\"\",\"\",'1. Order'!AW429)","v":""},{"$f":"IF('1. Order'!AX429=\"\",\"\",'1. Order'!AX429)","v":""},null,null,null,null,null,null,null,{"$f":"IF('1. Order'!BB429=\"\",\"\",'1. Order'!BB429)","v":""},{"$f":"IF('1. Order'!BC429=\"\",\"\",'1. Order'!BC429)","v":""},{"$f":"IF('1. Order'!BD429=\"\",\"\",'1. Order'!BD429)","v":""},{"$f":"IF('1. Order'!BE429=\"\",\"\",'1. Order'!BE429)","v":""},{"$f":"IF('1. Order'!BG429=\"\",\"\",'1. Order'!BG429)","v":""},{"$f":"IF('1. Order'!BH429=\"\",\"\",'1. Order'!BH429)","v":""},{"$f":"IF('1. Order'!BI429=\"\",\"\",'1. Order'!BI429)","v":""},{"$f":"IF('1. Order'!BJ429=\"\",\"\",'1. Order'!BJ429)","v":""},{"$f":"IF('1. Order'!BK429=\"\",\"\",'1. Order'!BK429)","v":"ZWO"}]
[{"$f":"IF('1. Order'!G430=\"\",\"\",'1. Order'!G430)","v":""},{"$f":"IF('1. Order'!H430=\"\",\"\",'1. Order'!H430)","v":""},{"$f":"IF('1. Order'!I430=\"\",\"\",'1. Order'!I430)","v":""},{"$f":"IF('1. Order'!J430=\"\",\"\",'1. Order'!J430)","v":""},{"$f":"IF('1. Order'!K430=\"\",\"\",'1. Order'!K430)","v":""},{"$f":"IF('1. Order'!L430=\"\",\"\",'1. Order'!L430)","v":""},{"$f":"IF('1. Order'!M430=\"\",\"\",'1. Order'!M430)","v":""},{"$f":"IF('1. Order'!N430=\"\",\"\",'1. Order'!N430)","v":""},{"$f":"IF('1. Order'!P430=\"\",\"\",'1. Order'!P430)","v":""},{"$f":"IF('1. Order'!Q430=\"\",\"\",'1. Order'!Q430)","v":{"$error":"#N/A"}},{"$f":"IF('1. Order'!R430=\"\",\"\",'1. Order'!R430)","v":{"$error":"#N/A"}},{"$f":"IF('1. Order'!S430=\"\",\"\",'1. Order'!S430)","v":""},{"$f":"IF('1. Order'!T430=\"\",\"\",'1. Order'!T430)","v":""},{"$f":"IF('1. Order'!U430=\"\",\"\",'1. Order'!U430)","v":""},{"$f":"IF('1. Order'!X430=\"\",\"\",'1. Order'!X430)","v":""},{"$f":"IF('1. Order'!Y430=\"\",\"\",'1. Order'!Y430)","v":""},{"$f":"IF('1. Order'!Z430=\"\",\"\",'1. Order'!Z430)","v":""},{"$f":"IF('1. Order'!AC430=\"\",\"\",'1. Order'!AC430)","v":""},{"$f":"IF('1. Order'!AD430=\"\",\"\",'1. Order'!AD430)","v":""},{"$f":"IF('1. Order'!AE430=\"\",\"\",'1. Order'!AE430)","v":""},null,{"$f":"IF('1. Order'!AW430=\"\",\"\",'1. Order'!AW430)","v":""},{"$f":"IF('1. Order'!AX430=\"\",\"\",'1. Order'!AX430)","v":""},null,null,null,null,null,null,null,{"$f":"IF('1. Order'!BB430=\"\",\"\",'1. Order'!BB430)","v":""},{"$f":"IF('1. Order'!BC430=\"\",\"\",'1. Order'!BC430)","v":""},{"$f":"IF('1. Order'!BD430=\"\",\"\",'1. Order'!BD430)","v":""},{"$f":"IF('1. Order'!BE430=\"\",\"\",'1. Order'!BE430)","v":""},{"$f":"IF('1. Order'!BG430=\"\",\"\",'1. Order'!BG430)","v":""},{"$f":"IF('1. Order'!BH430=\"\",\"\",'1. Order'!BH430)","v":""},{"$f":"IF('1. Order'!BI430=\"\",\"\",'1. Order'!BI430)","v":""},{"$f":"IF('1. Order'!BJ430=\"\",\"\",'1. Order'!BJ430)","v":""},{"$f":"IF('1. Order'!BK430=\"\",\"\",'1. Order'!BK430)","v":"ZWO"}]
[{"$f":"IF('1. Order'!G431=\"\",\"\",'1. Order'!G431)","v":""},{"$f":"IF('1. Order'!H431=\"\",\"\",'1. Order'!H431)","v":""},{"$f":"IF('1. Order'!I431=\"\",\"\",'1. Order'!I431)","v":""},{"$f":"IF('1. Order'!J431=\"\",\"\",'1. Order'!J431)","v":""},{"$f":"IF('1. Order'!K431=\"\",\"\",'1. Order'!K431)","v":""},{"$f":"IF('1. Order'!L431=\"\",\"\",'1. Order'!L431)","v":""},{"$f":"IF('1. Order'!M431=\"\",\"\",'1. Order'!M431)","v":""},{"$f":"IF('1. Order'!N431=\"\",\"\",'1. Order'!N431)","v":""},{"$f":"IF('1. Order'!P431=\"\",\"\",'1. Order'!P431)","v":""},{"$f":"IF('1. Order'!Q431=\"\",\"\",'1. Order'!Q431)","v":{"$error":"#N/A"}},{"$f":"IF('1. Order'!R431=\"\",\"\",'1. Order'!R431)","v":{"$error":"#N/A"}},{"$f":"IF('1. Order'!S431=\"\",\"\",'1. Order'!S431)","v":""},{"$f":"IF('1. Order'!T431=\"\",\"\",'1. Order'!T431)","v":""},{"$f":"IF('1. Order'!U431=\"\",\"\",'1. Order'!U431)","v":""},{"$f":"IF('1. Order'!X431=\"\",\"\",'1. Order'!X431)","v":""},{"$f":"IF('1. Order'!Y431=\"\",\"\",'1. Order'!Y431)","v":""},{"$f":"IF('1. Order'!Z431=\"\",\"\",'1. Order'!Z431)","v":""},{"$f":"IF('1. Order'!AC431=\"\",\"\",'1. Order'!AC431)","v":""},{"$f":"IF('1. Order'!AD431=\"\",\"\",'1. Order'!AD431)","v":""},{"$f":"IF('1. Order'!AE431=\"\",\"\",'1. Order'!AE431)","v":""},null,{"$f":"IF('1. Order'!AW431=\"\",\"\",'1. Order'!AW431)","v":""},{"$f":"IF('1. Order'!AX431=\"\",\"\",'1. Order'!AX431)","v":""},null,null,null,null,null,null,null,{"$f":"IF('1. Order'!BB431=\"\",\"\",'1. Order'!BB431)","v":""},{"$f":"IF('1. Order'!BC431=\"\",\"\",'1. Order'!BC431)","v":""},{"$f":"IF('1. Order'!BD431=\"\",\"\",'1. Order'!BD431)","v":""},{"$f":"IF('1. Order'!BE431=\"\",\"\",'1. Order'!BE431)","v":""},{"$f":"IF('1. Order'!BG431=\"\",\"\",'1. Order'!BG431)","v":""},{"$f":"IF('1. Order'!BH431=\"\",\"\",'1. Order'!BH431)","v":""},{"$f":"IF('1. Order'!BI431=\"\",\"\",'1. Order'!BI431)","v":""},{"$f":"IF('1. Order'!BJ431=\"\",\"\",'1. Order'!BJ431)","v":""},{"$f":"IF('1. Order'!BK431=\"\",\"\",'1. Order'!BK431)","v":"ZWO"}]
[{"$f":"IF('1. Order'!G432=\"\",\"\",'1. Order'!G432)","v":""},{"$f":"IF('1. Order'!H432=\"\",\"\",'1. Order'!H432)","v":""},{"$f":"IF('1. Order'!I432=\"\",\"\",'1. Order'!I432)","v":""},{"$f":"IF('1. Order'!J432=\"\",\"\",'1. Order'!J432)","v":""},{"$f":"IF('1. Order'!K432=\"\",\"\",'1. Order'!K432)","v":""},{"$f":"IF('1. Order'!L432=\"\",\"\",'1. Order'!L432)","v":""},{"$f":"IF('1. Order'!M432=\"\",\"\",'1. Order'!M432)","v":""},{"$f":"IF('1. Order'!N432=\"\",\"\",'1. Order'!N432)","v":""},{"$f":"IF('1. Order'!P432=\"\",\"\",'1. Order'!P432)","v":""},{"$f":"IF('1. Order'!Q432=\"\",\"\",'1. Order'!Q432)","v":{"$error":"#N/A"}},{"$f":"IF('1. Order'!R432=\"\",\"\",'1. Order'!R432)","v":{"$error":"#N/A"}},{"$f":"IF('1. Order'!S432=\"\",\"\",'1. Order'!S432)","v":""},{"$f":"IF('1. Order'!T432=\"\",\"\",'1. Order'!T432)","v":""},{"$f":"IF('1. Order'!U432=\"\",\"\",'1. Order'!U432)","v":""},{"$f":"IF('1. Order'!X432=\"\",\"\",'1. Order'!X432)","v":""},{"$f":"IF('1. Order'!Y432=\"\",\"\",'1. Order'!Y432)","v":""},{"$f":"IF('1. Order'!Z432=\"\",\"\",'1. Order'!Z432)","v":""},{"$f":"IF('1. Order'!AC432=\"\",\"\",'1. Order'!AC432)","v":""},{"$f":"IF('1. Order'!AD432=\"\",\"\",'1. Order'!AD432)","v":""},{"$f":"IF('1. Order'!AE432=\"\",\"\",'1. Order'!AE432)","v":""},null,{"$f":"IF('1. Order'!AW432=\"\",\"\",'1. Order'!AW432)","v":""},{"$f":"IF('1. Order'!AX432=\"\",\"\",'1. Order'!AX432)","v":""},null,null,null,null,null,null,null,{"$f":"IF('1. Order'!BB432=\"\",\"\",'1. Order'!BB432)","v":""},{"$f":"IF('1. Order'!BC432=\"\",\"\",'1. Order'!BC432)","v":""},{"$f":"IF('1. Order'!BD432=\"\",\"\",'1. Order'!BD432)","v":""},{"$f":"IF('1. Order'!BE432=\"\",\"\",'1. Order'!BE432)","v":""},{"$f":"IF('1. Order'!BG432=\"\",\"\",'1. Order'!BG432)","v":""},{"$f":"IF('1. Order'!BH432=\"\",\"\",'1. Order'!BH432)","v":""},{"$f":"IF('1. Order'!BI432=\"\",\"\",'1. Order'!BI432)","v":""},{"$f":"IF('1. Order'!BJ432=\"\",\"\",'1. Order'!BJ432)","v":""},{"$f":"IF('1. Order'!BK432=\"\",\"\",'1. Order'!BK432)","v":"ZWO"}]
[{"$f":"IF('1. Order'!G433=\"\",\"\",'1. Order'!G433)","v":""},{"$f":"IF('1. Order'!H433=\"\",\"\",'1. Order'!H433)","v":""},{"$f":"IF('1. Order'!I433=\"\",\"\",'1. Order'!I433)","v":""},{"$f":"IF('1. Order'!J433=\"\",\"\",'1. Order'!J433)","v":""},{"$f":"IF('1. Order'!K433=\"\",\"\",'1. Order'!K433)","v":""},{"$f":"IF('1. Order'!L433=\"\",\"\",'1. Order'!L433)","v":""},{"$f":"IF('1. Order'!M433=\"\",\"\",'1. Order'!M433)","v":""},{"$f":"IF('1. Order'!N433=\"\",\"\",'1. Order'!N433)","v":""},{"$f":"IF('1. Order'!P433=\"\",\"\",'1. Order'!P433)","v":""},{"$f":"IF('1. Order'!Q433=\"\",\"\",'1. Order'!Q433)","v":{"$error":"#N/A"}},{"$f":"IF('1. Order'!R433=\"\",\"\",'1. Order'!R433)","v":{"$error":"#N/A"}},{"$f":"IF('1. Order'!S433=\"\",\"\",'1. Order'!S433)","v":""},{"$f":"IF('1. Order'!T433=\"\",\"\",'1. Order'!T433)","v":""},{"$f":"IF('1. Order'!U433=\"\",\"\",'1. Order'!U433)","v":""},{"$f":"IF('1. Order'!X433=\"\",\"\",'1. Order'!X433)","v":""},{"$f":"IF('1. Order'!Y433=\"\",\"\",'1. Order'!Y433)","v":""},{"$f":"IF('1. Order'!Z433=\"\",\"\",'1. Order'!Z433)","v":""},{"$f":"IF('1. Order'!AC433=\"\",\"\",'1. Order'!AC433)","v":""},{"$f":"IF('1. Order'!AD433=\"\",\"\",'1. Order'!AD433)","v":""},{"$f":"IF('1. Order'!AE433=\"\",\"\",'1. Order'!AE433)","v":""},null,{"$f":"IF('1. Order'!AW433=\"\",\"\",'1. Order'!AW433)","v":""},{"$f":"IF('1. Order'!AX433=\"\",\"\",'1. Order'!AX433)","v":""},null,null,null,null,null,null,null,{"$f":"IF('1. Order'!BB433=\"\",\"\",'1. Order'!BB433)","v":""},{"$f":"IF('1. Order'!BC433=\"\",\"\",'1. Order'!BC433)","v":""},{"$f":"IF('1. Order'!BD433=\"\",\"\",'1. Order'!BD433)","v":""},{"$f":"IF('1. Order'!BE433=\"\",\"\",'1. Order'!BE433)","v":""},{"$f":"IF('1. Order'!BG433=\"\",\"\",'1. Order'!BG433)","v":""},{"$f":"IF('1. Order'!BH433=\"\",\"\",'1. Order'!BH433)","v":""},{"$f":"IF('1. Order'!BI433=\"\",\"\",'1. Order'!BI433)","v":""},{"$f":"IF('1. Order'!BJ433=\"\",\"\",'1. Order'!BJ433)","v":""},{"$f":"IF('1. Order'!BK433=\"\",\"\",'1. Order'!BK433)","v":"ZWO"}]
[{"$f":"IF('1. Order'!G434=\"\",\"\",'1. Order'!G434)","v":""},{"$f":"IF('1. Order'!H434=\"\",\"\",'1. Order'!H434)","v":""},{"$f":"IF('1. Order'!I434=\"\",\"\",'1. Order'!I434)","v":""},{"$f":"IF('1. Order'!J434=\"\",\"\",'1. Order'!J434)","v":""},{"$f":"IF('1. Order'!K434=\"\",\"\",'1. Order'!K434)","v":""},{"$f":"IF('1. Order'!L434=\"\",\"\",'1. Order'!L434)","v":""},{"$f":"IF('1. Order'!M434=\"\",\"\",'1. Order'!M434)","v":""},{"$f":"IF('1. Order'!N434=\"\",\"\",'1. Order'!N434)","v":""},{"$f":"IF('1. Order'!P434=\"\",\"\",'1. Order'!P434)","v":""},{"$f":"IF('1. Order'!Q434=\"\",\"\",'1. Order'!Q434)","v":{"$error":"#N/A"}},{"$f":"IF('1. Order'!R434=\"\",\"\",'1. Order'!R434)","v":{"$error":"#N/A"}},{"$f":"IF('1. Order'!S434=\"\",\"\",'1. Order'!S434)","v":""},{"$f":"IF('1. Order'!T434=\"\",\"\",'1. Order'!T434)","v":""},{"$f":"IF('1. Order'!U434=\"\",\"\",'1. Order'!U434)","v":""},{"$f":"IF('1. Order'!X434=\"\",\"\",'1. Order'!X434)","v":""},{"$f":"IF('1. Order'!Y434=\"\",\"\",'1. Order'!Y434)","v":""},{"$f":"IF('1. Order'!Z434=\"\",\"\",'1. Order'!Z434)","v":""},{"$f":"IF('1. Order'!AC434=\"\",\"\",'1. Order'!AC434)","v":""},{"$f":"IF('1. Order'!AD434=\"\",\"\",'1. Order'!AD434)","v":""},{"$f":"IF('1. Order'!AE434=\"\",\"\",'1. Order'!AE434)","v":""},null,{"$f":"IF('1. Order'!AW434=\"\",\"\",'1. Order'!AW434)","v":""},{"$f":"IF('1. Order'!AX434=\"\",\"\",'1. Order'!AX434)","v":""},null,null,null,null,null,null,null,{"$f":"IF('1. Order'!BB434=\"\",\"\",'1. Order'!BB434)","v":""},{"$f":"IF('1. Order'!BC434=\"\",\"\",'1. Order'!BC434)","v":""},{"$f":"IF('1. Order'!BD434=\"\",\"\",'1. Order'!BD434)","v":""},{"$f":"IF('1. Order'!BE434=\"\",\"\",'1. Order'!BE434)","v":""},{"$f":"IF('1. Order'!BG434=\"\",\"\",'1. Order'!BG434)","v":""},{"$f":"IF('1. Order'!BH434=\"\",\"\",'1. Order'!BH434)","v":""},{"$f":"IF('1. Order'!BI434=\"\",\"\",'1. Order'!BI434)","v":""},{"$f":"IF('1. Order'!BJ434=\"\",\"\",'1. Order'!BJ434)","v":""},{"$f":"IF('1. Order'!BK434=\"\",\"\",'1. Order'!BK434)","v":"ZWO"}]
[{"$f":"IF('1. Order'!G435=\"\",\"\",'1. Order'!G435)","v":""},{"$f":"IF('1. Order'!H435=\"\",\"\",'1. Order'!H435)","v":""},{"$f":"IF('1. Order'!I435=\"\",\"\",'1. Order'!I435)","v":""},{"$f":"IF('1. Order'!J435=\"\",\"\",'1. Order'!J435)","v":""},{"$f":"IF('1. Order'!K435=\"\",\"\",'1. Order'!K435)","v":""},{"$f":"IF('1. Order'!L435=\"\",\"\",'1. Order'!L435)","v":""},{"$f":"IF('1. Order'!M435=\"\",\"\",'1. Order'!M435)","v":""},{"$f":"IF('1. Order'!N435=\"\",\"\",'1. Order'!N435)","v":""},{"$f":"IF('1. Order'!P435=\"\",\"\",'1. Order'!P435)","v":""},{"$f":"IF('1. Order'!Q435=\"\",\"\",'1. Order'!Q435)","v":{"$error":"#N/A"}},{"$f":"IF('1. Order'!R435=\"\",\"\",'1. Order'!R435)","v":{"$error":"#N/A"}},{"$f":"IF('1. Order'!S435=\"\",\"\",'1. Order'!S435)","v":""},{"$f":"IF('1. Order'!T435=\"\",\"\",'1. Order'!T435)","v":""},{"$f":"IF('1. Order'!U435=\"\",\"\",'1. Order'!U435)","v":""},{"$f":"IF('1. Order'!X435=\"\",\"\",'1. Order'!X435)","v":""},{"$f":"IF('1. Order'!Y435=\"\",\"\",'1. Order'!Y435)","v":""},{"$f":"IF('1. Order'!Z435=\"\",\"\",'1. Order'!Z435)","v":""},{"$f":"IF('1. Order'!AC435=\"\",\"\",'1. Order'!AC435)","v":""},{"$f":"IF('1. Order'!AD435=\"\",\"\",'1. Order'!AD435)","v":""},{"$f":"IF('1. Order'!AE435=\"\",\"\",'1. Order'!AE435)","v":""},null,{"$f":"IF('1. Order'!AW435=\"\",\"\",'1. Order'!AW435)","v":""},{"$f":"IF('1. Order'!AX435=\"\",\"\",'1. Order'!AX435)","v":""},null,null,null,null,null,null,null,{"$f":"IF('1. Order'!BB435=\"\",\"\",'1. Order'!BB435)","v":""},{"$f":"IF('1. Order'!BC435=\"\",\"\",'1. Order'!BC435)","v":""},{"$f":"IF('1. Order'!BD435=\"\",\"\",'1. Order'!BD435)","v":""},{"$f":"IF('1. Order'!BE435=\"\",\"\",'1. Order'!BE435)","v":""},{"$f":"IF('1. Order'!BG435=\"\",\"\",'1. Order'!BG435)","v":""},{"$f":"IF('1. Order'!BH435=\"\",\"\",'1. Order'!BH435)","v":""},{"$f":"IF('1. Order'!BI435=\"\",\"\",'1. Order'!BI435)","v":""},{"$f":"IF('1. Order'!BJ435=\"\",\"\",'1. Order'!BJ435)","v":""},{"$f":"IF('1. Order'!BK435=\"\",\"\",'1. Order'!BK435)","v":"ZWO"}]
[{"$f":"IF('1. Order'!G436=\"\",\"\",'1. Order'!G436)","v":""},{"$f":"IF('1. Order'!H436=\"\",\"\",'1. Order'!H436)","v":""},{"$f":"IF('1. Order'!I436=\"\",\"\",'1. Order'!I436)","v":""},{"$f":"IF('1. Order'!J436=\"\",\"\",'1. Order'!J436)","v":""},{"$f":"IF('1. Order'!K436=\"\",\"\",'1. Order'!K436)","v":""},{"$f":"IF('1. Order'!L436=\"\",\"\",'1. Order'!L436)","v":""},{"$f":"IF('1. Order'!M436=\"\",\"\",'1. Order'!M436)","v":""},{"$f":"IF('1. Order'!N436=\"\",\"\",'1. Order'!N436)","v":""},{"$f":"IF('1. Order'!P436=\"\",\"\",'1. Order'!P436)","v":""},{"$f":"IF('1. Order'!Q436=\"\",\"\",'1. Order'!Q436)","v":{"$error":"#N/A"}},{"$f":"IF('1. Order'!R436=\"\",\"\",'1. Order'!R436)","v":{"$error":"#N/A"}},{"$f":"IF('1. Order'!S436=\"\",\"\",'1. Order'!S436)","v":""},{"$f":"IF('1. Order'!T436=\"\",\"\",'1. Order'!T436)","v":""},{"$f":"IF('1. Order'!U436=\"\",\"\",'1. Order'!U436)","v":""},{"$f":"IF('1. Order'!X436=\"\",\"\",'1. Order'!X436)","v":""},{"$f":"IF('1. Order'!Y436=\"\",\"\",'1. Order'!Y436)","v":""},{"$f":"IF('1. Order'!Z436=\"\",\"\",'1. Order'!Z436)","v":""},{"$f":"IF('1. Order'!AC436=\"\",\"\",'1. Order'!AC436)","v":""},{"$f":"IF('1. Order'!AD436=\"\",\"\",'1. Order'!AD436)","v":""},{"$f":"IF('1. Order'!AE436=\"\",\"\",'1. Order'!AE436)","v":""},null,{"$f":"IF('1. Order'!AW436=\"\",\"\",'1. Order'!AW436)","v":""},{"$f":"IF('1. Order'!AX436=\"\",\"\",'1. Order'!AX436)","v":""},null,null,null,null,null,null,null,{"$f":"IF('1. Order'!BB436=\"\",\"\",'1. Order'!BB436)","v":""},{"$f":"IF('1. Order'!BC436=\"\",\"\",'1. Order'!BC436)","v":""},{"$f":"IF('1. Order'!BD436=\"\",\"\",'1. Order'!BD436)","v":""},{"$f":"IF('1. Order'!BE436=\"\",\"\",'1. Order'!BE436)","v":""},{"$f":"IF('1. Order'!BG436=\"\",\"\",'1. Order'!BG436)","v":""},{"$f":"IF('1. Order'!BH436=\"\",\"\",'1. Order'!BH436)","v":""},{"$f":"IF('1. Order'!BI436=\"\",\"\",'1. Order'!BI436)","v":""},{"$f":"IF('1. Order'!BJ436=\"\",\"\",'1. Order'!BJ436)","v":""},{"$f":"IF('1. Order'!BK436=\"\",\"\",'1. Order'!BK436)","v":"ZWO"}]
[{"$f":"IF('1. Order'!G437=\"\",\"\",'1. Order'!G437)","v":""},{"$f":"IF('1. Order'!H437=\"\",\"\",'1. Order'!H437)","v":""},{"$f":"IF('1. Order'!I437=\"\",\"\",'1. Order'!I437)","v":""},{"$f":"IF('1. Order'!J437=\"\",\"\",'1. Order'!J437)","v":""},{"$f":"IF('1. Order'!K437=\"\",\"\",'1. Order'!K437)","v":""},{"$f":"IF('1. Order'!L437=\"\",\"\",'1. Order'!L437)","v":""},{"$f":"IF('1. Order'!M437=\"\",\"\",'1. Order'!M437)","v":""},{"$f":"IF('1. Order'!N437=\"\",\"\",'1. Order'!N437)","v":""},{"$f":"IF('1. Order'!P437=\"\",\"\",'1. Order'!P437)","v":""},{"$f":"IF('1. Order'!Q437=\"\",\"\",'1. Order'!Q437)","v":{"$error":"#N/A"}},{"$f":"IF('1. Order'!R437=\"\",\"\",'1. Order'!R437)","v":{"$error":"#N/A"}},{"$f":"IF('1. Order'!S437=\"\",\"\",'1. Order'!S437)","v":""},{"$f":"IF('1. Order'!T437=\"\",\"\",'1. Order'!T437)","v":""},{"$f":"IF('1. Order'!U437=\"\",\"\",'1. Order'!U437)","v":""},{"$f":"IF('1. Order'!X437=\"\",\"\",'1. Order'!X437)","v":""},{"$f":"IF('1. Order'!Y437=\"\",\"\",'1. Order'!Y437)","v":""},{"$f":"IF('1. Order'!Z437=\"\",\"\",'1. Order'!Z437)","v":""},{"$f":"IF('1. Order'!AC437=\"\",\"\",'1. Order'!AC437)","v":""},{"$f":"IF('1. Order'!AD437=\"\",\"\",'1. Order'!AD437)","v":""},{"$f":"IF('1. Order'!AE437=\"\",\"\",'1. Order'!AE437)","v":""},null,{"$f":"IF('1. Order'!AW437=\"\",\"\",'1. Order'!AW437)","v":""},{"$f":"IF('1. Order'!AX437=\"\",\"\",'1. Order'!AX437)","v":""},null,null,null,null,null,null,null,{"$f":"IF('1. Order'!BB437=\"\",\"\",'1. Order'!BB437)","v":""},{"$f":"IF('1. Order'!BC437=\"\",\"\",'1. Order'!BC437)","v":""},{"$f":"IF('1. Order'!BD437=\"\",\"\",'1. Order'!BD437)","v":""},{"$f":"IF('1. Order'!BE437=\"\",\"\",'1. Order'!BE437)","v":""},{"$f":"IF('1. Order'!BG437=\"\",\"\",'1. Order'!BG437)","v":""},{"$f":"IF('1. Order'!BH437=\"\",\"\",'1. Order'!BH437)","v":""},{"$f":"IF('1. Order'!BI437=\"\",\"\",'1. Order'!BI437)","v":""},{"$f":"IF('1. Order'!BJ437=\"\",\"\",'1. Order'!BJ437)","v":""},{"$f":"IF('1. Order'!BK437=\"\",\"\",'1. Order'!BK437)","v":"ZWO"}]
[{"$f":"IF('1. Order'!G438=\"\",\"\",'1. Order'!G438)","v":""},{"$f":"IF('1. Order'!H438=\"\",\"\",'1. Order'!H438)","v":""},{"$f":"IF('1. Order'!I438=\"\",\"\",'1. Order'!I438)","v":""},{"$f":"IF('1. Order'!J438=\"\",\"\",'1. Order'!J438)","v":""},{"$f":"IF('1. Order'!K438=\"\",\"\",'1. Order'!K438)","v":""},{"$f":"IF('1. Order'!L438=\"\",\"\",'1. Order'!L438)","v":""},{"$f":"IF('1. Order'!M438=\"\",\"\",'1. Order'!M438)","v":""},{"$f":"IF('1. Order'!N438=\"\",\"\",'1. Order'!N438)","v":""},{"$f":"IF('1. Order'!P438=\"\",\"\",'1. Order'!P438)","v":""},{"$f":"IF('1. Order'!Q438=\"\",\"\",'1. Order'!Q438)","v":{"$error":"#N/A"}},{"$f":"IF('1. Order'!R438=\"\",\"\",'1. Order'!R438)","v":{"$error":"#N/A"}},{"$f":"IF('1. Order'!S438=\"\",\"\",'1. Order'!S438)","v":""},{"$f":"IF('1. Order'!T438=\"\",\"\",'1. Order'!T438)","v":""},{"$f":"IF('1. Order'!U438=\"\",\"\",'1. Order'!U438)","v":""},{"$f":"IF('1. Order'!X438=\"\",\"\",'1. Order'!X438)","v":""},{"$f":"IF('1. Order'!Y438=\"\",\"\",'1. Order'!Y438)","v":""},{"$f":"IF('1. Order'!Z438=\"\",\"\",'1. Order'!Z438)","v":""},{"$f":"IF('1. Order'!AC438=\"\",\"\",'1. Order'!AC438)","v":""},{"$f":"IF('1. Order'!AD438=\"\",\"\",'1. Order'!AD438)","v":""},{"$f":"IF('1. Order'!AE438=\"\",\"\",'1. Order'!AE438)","v":""},null,{"$f":"IF('1. Order'!AW438=\"\",\"\",'1. Order'!AW438)","v":""},{"$f":"IF('1. Order'!AX438=\"\",\"\",'1. Order'!AX438)","v":""},null,null,null,null,null,null,null,{"$f":"IF('1. Order'!BB438=\"\",\"\",'1. Order'!BB438)","v":""},{"$f":"IF('1. Order'!BC438=\"\",\"\",'1. Order'!BC438)","v":""},{"$f":"IF('1. Order'!BD438=\"\",\"\",'1. Order'!BD438)","v":""},{"$f":"IF('1. Order'!BE438=\"\",\"\",'1. Order'!BE438)","v":""},{"$f":"IF('1. Order'!BG438=\"\",\"\",'1. Order'!BG438)","v":""},{"$f":"IF('1. Order'!BH438=\"\",\"\",'1. Order'!BH438)","v":""},{"$f":"IF('1. Order'!BI438=\"\",\"\",'1. Order'!BI438)","v":""},{"$f":"IF('1. Order'!BJ438=\"\",\"\",'1. Order'!BJ438)","v":""},{"$f":"IF('1. Order'!BK438=\"\",\"\",'1. Order'!BK438)","v":"ZWO"}]
[{"$f":"IF('1. Order'!G439=\"\",\"\",'1. Order'!G439)","v":""},{"$f":"IF('1. Order'!H439=\"\",\"\",'1. Order'!H439)","v":""},{"$f":"IF('1. Order'!I439=\"\",\"\",'1. Order'!I439)","v":""},{"$f":"IF('1. Order'!J439=\"\",\"\",'1. Order'!J439)","v":""},{"$f":"IF('1. Order'!K439=\"\",\"\",'1. Order'!K439)","v":""},{"$f":"IF('1. Order'!L439=\"\",\"\",'1. Order'!L439)","v":""},{"$f":"IF('1. Order'!M439=\"\",\"\",'1. Order'!M439)","v":""},{"$f":"IF('1. Order'!N439=\"\",\"\",'1. Order'!N439)","v":""},{"$f":"IF('1. Order'!P439=\"\",\"\",'1. Order'!P439)","v":""},{"$f":"IF('1. Order'!Q439=\"\",\"\",'1. Order'!Q439)","v":{"$error":"#N/A"}},{"$f":"IF('1. Order'!R439=\"\",\"\",'1. Order'!R439)","v":{"$error":"#N/A"}},{"$f":"IF('1. Order'!S439=\"\",\"\",'1. Order'!S439)","v":""},{"$f":"IF('1. Order'!T439=\"\",\"\",'1. Order'!T439)","v":""},{"$f":"IF('1. Order'!U439=\"\",\"\",'1. Order'!U439)","v":""},{"$f":"IF('1. Order'!X439=\"\",\"\",'1. Order'!X439)","v":""},{"$f":"IF('1. Order'!Y439=\"\",\"\",'1. Order'!Y439)","v":""},{"$f":"IF('1. Order'!Z439=\"\",\"\",'1. Order'!Z439)","v":""},{"$f":"IF('1. Order'!AC439=\"\",\"\",'1. Order'!AC439)","v":""},{"$f":"IF('1. Order'!AD439=\"\",\"\",'1. Order'!AD439)","v":""},{"$f":"IF('1. Order'!AE439=\"\",\"\",'1. Order'!AE439)","v":""},null,{"$f":"IF('1. Order'!AW439=\"\",\"\",'1. Order'!AW439)","v":""},{"$f":"IF('1. Order'!AX439=\"\",\"\",'1. Order'!AX439)","v":""},null,null,null,null,null,null,null,{"$f":"IF('1. Order'!BB439=\"\",\"\",'1. Order'!BB439)","v":""},{"$f":"IF('1. Order'!BC439=\"\",\"\",'1. Order'!BC439)","v":""},{"$f":"IF('1. Order'!BD439=\"\",\"\",'1. Order'!BD439)","v":""},{"$f":"IF('1. Order'!BE439=\"\",\"\",'1. Order'!BE439)","v":""},{"$f":"IF('1. Order'!BG439=\"\",\"\",'1. Order'!BG439)","v":""},{"$f":"IF('1. Order'!BH439=\"\",\"\",'1. Order'!BH439)","v":""},{"$f":"IF('1. Order'!BI439=\"\",\"\",'1. Order'!BI439)","v":""},{"$f":"IF('1. Order'!BJ439=\"\",\"\",'1. Order'!BJ439)","v":""},{"$f":"IF('1. Order'!BK439=\"\",\"\",'1. Order'!BK439)","v":"ZWO"}]
[{"$f":"IF('1. Order'!G440=\"\",\"\",'1. Order'!G440)","v":""},{"$f":"IF('1. Order'!H440=\"\",\"\",'1. Order'!H440)","v":""},{"$f":"IF('1. Order'!I440=\"\",\"\",'1. Order'!I440)","v":""},{"$f":"IF('1. Order'!J440=\"\",\"\",'1. Order'!J440)","v":""},{"$f":"IF('1. Order'!K440=\"\",\"\",'1. Order'!K440)","v":""},{"$f":"IF('1. Order'!L440=\"\",\"\",'1. Order'!L440)","v":""},{"$f":"IF('1. Order'!M440=\"\",\"\",'1. Order'!M440)","v":""},{"$f":"IF('1. Order'!N440=\"\",\"\",'1. Order'!N440)","v":""},{"$f":"IF('1. Order'!P440=\"\",\"\",'1. Order'!P440)","v":""},{"$f":"IF('1. Order'!Q440=\"\",\"\",'1. Order'!Q440)","v":{"$error":"#N/A"}},{"$f":"IF('1. Order'!R440=\"\",\"\",'1. Order'!R440)","v":{"$error":"#N/A"}},{"$f":"IF('1. Order'!S440=\"\",\"\",'1. Order'!S440)","v":""},{"$f":"IF('1. Order'!T440=\"\",\"\",'1. Order'!T440)","v":""},{"$f":"IF('1. Order'!U440=\"\",\"\",'1. Order'!U440)","v":""},{"$f":"IF('1. Order'!X440=\"\",\"\",'1. Order'!X440)","v":""},{"$f":"IF('1. Order'!Y440=\"\",\"\",'1. Order'!Y440)","v":""},{"$f":"IF('1. Order'!Z440=\"\",\"\",'1. Order'!Z440)","v":""},{"$f":"IF('1. Order'!AC440=\"\",\"\",'1. Order'!AC440)","v":""},{"$f":"IF('1. Order'!AD440=\"\",\"\",'1. Order'!AD440)","v":""},{"$f":"IF('1. Order'!AE440=\"\",\"\",'1. Order'!AE440)","v":""},null,{"$f":"IF('1. Order'!AW440=\"\",\"\",'1. Order'!AW440)","v":""},{"$f":"IF('1. Order'!AX440=\"\",\"\",'1. Order'!AX440)","v":""},null,null,null,null,null,null,null,{"$f":"IF('1. Order'!BB440=\"\",\"\",'1. Order'!BB440)","v":""},{"$f":"IF('1. Order'!BC440=\"\",\"\",'1. Order'!BC440)","v":""},{"$f":"IF('1. Order'!BD440=\"\",\"\",'1. Order'!BD440)","v":""},{"$f":"IF('1. Order'!BE440=\"\",\"\",'1. Order'!BE440)","v":""},{"$f":"IF('1. Order'!BG440=\"\",\"\",'1. Order'!BG440)","v":""},{"$f":"IF('1. Order'!BH440=\"\",\"\",'1. Order'!BH440)","v":""},{"$f":"IF('1. Order'!BI440=\"\",\"\",'1. Order'!BI440)","v":""},{"$f":"IF('1. Order'!BJ440=\"\",\"\",'1. Order'!BJ440)","v":""},{"$f":"IF('1. Order'!BK440=\"\",\"\",'1. Order'!BK440)","v":"ZWO"}]
[{"$f":"IF('1. Order'!G441=\"\",\"\",'1. Order'!G441)","v":""},{"$f":"IF('1. Order'!H441=\"\",\"\",'1. Order'!H441)","v":""},{"$f":"IF('1. Order'!I441=\"\",\"\",'1. Order'!I441)","v":""},{"$f":"IF('1. Order'!J441=\"\",\"\",'1. Order'!J441)","v":""},{"$f":"IF('1. Order'!K441=\"\",\"\",'1. Order'!K441)","v":""},{"$f":"IF('1. Order'!L441=\"\",\"\",'1. Order'!L441)","v":""},{"$f":"IF('1. Order'!M441=\"\",\"\",'1. Order'!M441)","v":""},{"$f":"IF('1. Order'!N441=\"\",\"\",'1. Order'!N441)","v":""},{"$f":"IF('1. Order'!P441=\"\",\"\",'1. Order'!P441)","v":""},{"$f":"IF('1. Order'!Q441=\"\",\"\",'1. Order'!Q441)","v":{"$error":"#N/A"}},{"$f":"IF('1. Order'!R441=\"\",\"\",'1. Order'!R441)","v":{"$error":"#N/A"}},{"$f":"IF('1. Order'!S441=\"\",\"\",'1. Order'!S441)","v":""},{"$f":"IF('1. Order'!T441=\"\",\"\",'1. Order'!T441)","v":""},{"$f":"IF('1. Order'!U441=\"\",\"\",'1. Order'!U441)","v":""},{"$f":"IF('1. Order'!X441=\"\",\"\",'1. Order'!X441)","v":""},{"$f":"IF('1. Order'!Y441=\"\",\"\",'1. Order'!Y441)","v":""},{"$f":"IF('1. Order'!Z441=\"\",\"\",'1. Order'!Z441)","v":""},{"$f":"IF('1. Order'!AC441=\"\",\"\",'1. Order'!AC441)","v":""},{"$f":"IF('1. Order'!AD441=\"\",\"\",'1. Order'!AD441)","v":""},{"$f":"IF('1. Order'!AE441=\"\",\"\",'1. Order'!AE441)","v":""},null,{"$f":"IF('1. Order'!AW441=\"\",\"\",'1. Order'!AW441)","v":""},{"$f":"IF('1. Order'!AX441=\"\",\"\",'1. Order'!AX441)","v":""},null,null,null,null,null,null,null,{"$f":"IF('1. Order'!BB441=\"\",\"\",'1. Order'!BB441)","v":""},{"$f":"IF('1. Order'!BC441=\"\",\"\",'1. Order'!BC441)","v":""},{"$f":"IF('1. Order'!BD441=\"\",\"\",'1. Order'!BD441)","v":""},{"$f":"IF('1. Order'!BE441=\"\",\"\",'1. Order'!BE441)","v":""},{"$f":"IF('1. Order'!BG441=\"\",\"\",'1. Order'!BG441)","v":""},{"$f":"IF('1. Order'!BH441=\"\",\"\",'1. Order'!BH441)","v":""},{"$f":"IF('1. Order'!BI441=\"\",\"\",'1. Order'!BI441)","v":""},{"$f":"IF('1. Order'!BJ441=\"\",\"\",'1. Order'!BJ441)","v":""},{"$f":"IF('1. Order'!BK441=\"\",\"\",'1. Order'!BK441)","v":"ZWO"}]
[{"$f":"IF('1. Order'!G442=\"\",\"\",'1. Order'!G442)","v":""},{"$f":"IF('1. Order'!H442=\"\",\"\",'1. Order'!H442)","v":""},{"$f":"IF('1. Order'!I442=\"\",\"\",'1. Order'!I442)","v":""},{"$f":"IF('1. Order'!J442=\"\",\"\",'1. Order'!J442)","v":""},{"$f":"IF('1. Order'!K442=\"\",\"\",'1. Order'!K442)","v":""},{"$f":"IF('1. Order'!L442=\"\",\"\",'1. Order'!L442)","v":""},{"$f":"IF('1. Order'!M442=\"\",\"\",'1. Order'!M442)","v":""},{"$f":"IF('1. Order'!N442=\"\",\"\",'1. Order'!N442)","v":""},{"$f":"IF('1. Order'!P442=\"\",\"\",'1. Order'!P442)","v":""},{"$f":"IF('1. Order'!Q442=\"\",\"\",'1. Order'!Q442)","v":{"$error":"#N/A"}},{"$f":"IF('1. Order'!R442=\"\",\"\",'1. Order'!R442)","v":{"$error":"#N/A"}},{"$f":"IF('1. Order'!S442=\"\",\"\",'1. Order'!S442)","v":""},{"$f":"IF('1. Order'!T442=\"\",\"\",'1. Order'!T442)","v":""},{"$f":"IF('1. Order'!U442=\"\",\"\",'1. Order'!U442)","v":""},{"$f":"IF('1. Order'!X442=\"\",\"\",'1. Order'!X442)","v":""},{"$f":"IF('1. Order'!Y442=\"\",\"\",'1. Order'!Y442)","v":""},{"$f":"IF('1. Order'!Z442=\"\",\"\",'1. Order'!Z442)","v":""},{"$f":"IF('1. Order'!AC442=\"\",\"\",'1. Order'!AC442)","v":""},{"$f":"IF('1. Order'!AD442=\"\",\"\",'1. Order'!AD442)","v":""},{"$f":"IF('1. Order'!AE442=\"\",\"\",'1. Order'!AE442)","v":""},null,{"$f":"IF('1. Order'!AW442=\"\",\"\",'1. Order'!AW442)","v":""},{"$f":"IF('1. Order'!AX442=\"\",\"\",'1. Order'!AX442)","v":""},null,null,null,null,null,null,null,{"$f":"IF('1. Order'!BB442=\"\",\"\",'1. Order'!BB442)","v":""},{"$f":"IF('1. Order'!BC442=\"\",\"\",'1. Order'!BC442)","v":""},{"$f":"IF('1. Order'!BD442=\"\",\"\",'1. Order'!BD442)","v":""},{"$f":"IF('1. Order'!BE442=\"\",\"\",'1. Order'!BE442)","v":""},{"$f":"IF('1. Order'!BG442=\"\",\"\",'1. Order'!BG442)","v":""},{"$f":"IF('1. Order'!BH442=\"\",\"\",'1. Order'!BH442)","v":""},{"$f":"IF('1. Order'!BI442=\"\",\"\",'1. Order'!BI442)","v":""},{"$f":"IF('1. Order'!BJ442=\"\",\"\",'1. Order'!BJ442)","v":""},{"$f":"IF('1. Order'!BK442=\"\",\"\",'1. Order'!BK442)","v":"ZWO"}]
[{"$f":"IF('1. Order'!G443=\"\",\"\",'1. Order'!G443)","v":""},{"$f":"IF('1. Order'!H443=\"\",\"\",'1. Order'!H443)","v":""},{"$f":"IF('1. Order'!I443=\"\",\"\",'1. Order'!I443)","v":""},{"$f":"IF('1. Order'!J443=\"\",\"\",'1. Order'!J443)","v":""},{"$f":"IF('1. Order'!K443=\"\",\"\",'1. Order'!K443)","v":""},{"$f":"IF('1. Order'!L443=\"\",\"\",'1. Order'!L443)","v":""},{"$f":"IF('1. Order'!M443=\"\",\"\",'1. Order'!M443)","v":""},{"$f":"IF('1. Order'!N443=\"\",\"\",'1. Order'!N443)","v":""},{"$f":"IF('1. Order'!P443=\"\",\"\",'1. Order'!P443)","v":""},{"$f":"IF('1. Order'!Q443=\"\",\"\",'1. Order'!Q443)","v":{"$error":"#N/A"}},{"$f":"IF('1. Order'!R443=\"\",\"\",'1. Order'!R443)","v":{"$error":"#N/A"}},{"$f":"IF('1. Order'!S443=\"\",\"\",'1. Order'!S443)","v":""},{"$f":"IF('1. Order'!T443=\"\",\"\",'1. Order'!T443)","v":""},{"$f":"IF('1. Order'!U443=\"\",\"\",'1. Order'!U443)","v":""},{"$f":"IF('1. Order'!X443=\"\",\"\",'1. Order'!X443)","v":""},{"$f":"IF('1. Order'!Y443=\"\",\"\",'1. Order'!Y443)","v":""},{"$f":"IF('1. Order'!Z443=\"\",\"\",'1. Order'!Z443)","v":""},{"$f":"IF('1. Order'!AC443=\"\",\"\",'1. Order'!AC443)","v":""},{"$f":"IF('1. Order'!AD443=\"\",\"\",'1. Order'!AD443)","v":""},{"$f":"IF('1. Order'!AE443=\"\",\"\",'1. Order'!AE443)","v":""},null,{"$f":"IF('1. Order'!AW443=\"\",\"\",'1. Order'!AW443)","v":""},{"$f":"IF('1. Order'!AX443=\"\",\"\",'1. Order'!AX443)","v":""},null,null,null,null,null,null,null,{"$f":"IF('1. Order'!BB443=\"\",\"\",'1. Order'!BB443)","v":""},{"$f":"IF('1. Order'!BC443=\"\",\"\",'1. Order'!BC443)","v":""},{"$f":"IF('1. Order'!BD443=\"\",\"\",'1. Order'!BD443)","v":""},{"$f":"IF('1. Order'!BE443=\"\",\"\",'1. Order'!BE443)","v":""},{"$f":"IF('1. Order'!BG443=\"\",\"\",'1. Order'!BG443)","v":""},{"$f":"IF('1. Order'!BH443=\"\",\"\",'1. Order'!BH443)","v":""},{"$f":"IF('1. Order'!BI443=\"\",\"\",'1. Order'!BI443)","v":""},{"$f":"IF('1. Order'!BJ443=\"\",\"\",'1. Order'!BJ443)","v":""},{"$f":"IF('1. Order'!BK443=\"\",\"\",'1. Order'!BK443)","v":"ZWO"}]
[{"$f":"IF('1. Order'!G444=\"\",\"\",'1. Order'!G444)","v":""},{"$f":"IF('1. Order'!H444=\"\",\"\",'1. Order'!H444)","v":""},{"$f":"IF('1. Order'!I444=\"\",\"\",'1. Order'!I444)","v":""},{"$f":"IF('1. Order'!J444=\"\",\"\",'1. Order'!J444)","v":""},{"$f":"IF('1. Order'!K444=\"\",\"\",'1. Order'!K444)","v":""},{"$f":"IF('1. Order'!L444=\"\",\"\",'1. Order'!L444)","v":""},{"$f":"IF('1. Order'!M444=\"\",\"\",'1. Order'!M444)","v":""},{"$f":"IF('1. Order'!N444=\"\",\"\",'1. Order'!N444)","v":""},{"$f":"IF('1. Order'!P444=\"\",\"\",'1. Order'!P444)","v":""},{"$f":"IF('1. Order'!Q444=\"\",\"\",'1. Order'!Q444)","v":{"$error":"#N/A"}},{"$f":"IF('1. Order'!R444=\"\",\"\",'1. Order'!R444)","v":{"$error":"#N/A"}},{"$f":"IF('1. Order'!S444=\"\",\"\",'1. Order'!S444)","v":""},{"$f":"IF('1. Order'!T444=\"\",\"\",'1. Order'!T444)","v":""},{"$f":"IF('1. Order'!U444=\"\",\"\",'1. Order'!U444)","v":""},{"$f":"IF('1. Order'!X444=\"\",\"\",'1. Order'!X444)","v":""},{"$f":"IF('1. Order'!Y444=\"\",\"\",'1. Order'!Y444)","v":""},{"$f":"IF('1. Order'!Z444=\"\",\"\",'1. Order'!Z444)","v":""},{"$f":"IF('1. Order'!AC444=\"\",\"\",'1. Order'!AC444)","v":""},{"$f":"IF('1. Order'!AD444=\"\",\"\",'1. Order'!AD444)","v":""},{"$f":"IF('1. Order'!AE444=\"\",\"\",'1. Order'!AE444)","v":""},null,{"$f":"IF('1. Order'!AW444=\"\",\"\",'1. Order'!AW444)","v":""},{"$f":"IF('1. Order'!AX444=\"\",\"\",'1. Order'!AX444)","v":""},null,null,null,null,null,null,null,{"$f":"IF('1. Order'!BB444=\"\",\"\",'1. Order'!BB444)","v":""},{"$f":"IF('1. Order'!BC444=\"\",\"\",'1. Order'!BC444)","v":""},{"$f":"IF('1. Order'!BD444=\"\",\"\",'1. Order'!BD444)","v":""},{"$f":"IF('1. Order'!BE444=\"\",\"\",'1. Order'!BE444)","v":""},{"$f":"IF('1. Order'!BG444=\"\",\"\",'1. Order'!BG444)","v":""},{"$f":"IF('1. Order'!BH444=\"\",\"\",'1. Order'!BH444)","v":""},{"$f":"IF('1. Order'!BI444=\"\",\"\",'1. Order'!BI444)","v":""},{"$f":"IF('1. Order'!BJ444=\"\",\"\",'1. Order'!BJ444)","v":""},{"$f":"IF('1. Order'!BK444=\"\",\"\",'1. Order'!BK444)","v":"ZWO"}]
[{"$f":"IF('1. Order'!G445=\"\",\"\",'1. Order'!G445)","v":""},{"$f":"IF('1. Order'!H445=\"\",\"\",'1. Order'!H445)","v":""},{"$f":"IF('1. Order'!I445=\"\",\"\",'1. Order'!I445)","v":""},{"$f":"IF('1. Order'!J445=\"\",\"\",'1. Order'!J445)","v":""},{"$f":"IF('1. Order'!K445=\"\",\"\",'1. Order'!K445)","v":""},{"$f":"IF('1. Order'!L445=\"\",\"\",'1. Order'!L445)","v":""},{"$f":"IF('1. Order'!M445=\"\",\"\",'1. Order'!M445)","v":""},{"$f":"IF('1. Order'!N445=\"\",\"\",'1. Order'!N445)","v":""},{"$f":"IF('1. Order'!P445=\"\",\"\",'1. Order'!P445)","v":""},{"$f":"IF('1. Order'!Q445=\"\",\"\",'1. Order'!Q445)","v":{"$error":"#N/A"}},{"$f":"IF('1. Order'!R445=\"\",\"\",'1. Order'!R445)","v":{"$error":"#N/A"}},{"$f":"IF('1. Order'!S445=\"\",\"\",'1. Order'!S445)","v":""},{"$f":"IF('1. Order'!T445=\"\",\"\",'1. Order'!T445)","v":""},{"$f":"IF('1. Order'!U445=\"\",\"\",'1. Order'!U445)","v":""},{"$f":"IF('1. Order'!X445=\"\",\"\",'1. Order'!X445)","v":""},{"$f":"IF('1. Order'!Y445=\"\",\"\",'1. Order'!Y445)","v":""},{"$f":"IF('1. Order'!Z445=\"\",\"\",'1. Order'!Z445)","v":""},{"$f":"IF('1. Order'!AC445=\"\",\"\",'1. Order'!AC445)","v":""},{"$f":"IF('1. Order'!AD445=\"\",\"\",'1. Order'!AD445)","v":""},{"$f":"IF('1. Order'!AE445=\"\",\"\",'1. Order'!AE445)","v":""},null,{"$f":"IF('1. Order'!AW445=\"\",\"\",'1. Order'!AW445)","v":""},{"$f":"IF('1. Order'!AX445=\"\",\"\",'1. Order'!AX445)","v":""},null,null,null,null,null,null,null,{"$f":"IF('1. Order'!BB445=\"\",\"\",'1. Order'!BB445)","v":""},{"$f":"IF('1. Order'!BC445=\"\",\"\",'1. Order'!BC445)","v":""},{"$f":"IF('1. Order'!BD445=\"\",\"\",'1. Order'!BD445)","v":""},{"$f":"IF('1. Order'!BE445=\"\",\"\",'1. Order'!BE445)","v":""},{"$f":"IF('1. Order'!BG445=\"\",\"\",'1. Order'!BG445)","v":""},{"$f":"IF('1. Order'!BH445=\"\",\"\",'1. Order'!BH445)","v":""},{"$f":"IF('1. Order'!BI445=\"\",\"\",'1. Order'!BI445)","v":""},{"$f":"IF('1. Order'!BJ445=\"\",\"\",'1. Order'!BJ445)","v":""},{"$f":"IF('1. Order'!BK445=\"\",\"\",'1. Order'!BK445)","v":"ZWO"}]
[{"$f":"IF('1. Order'!G446=\"\",\"\",'1. Order'!G446)","v":""},{"$f":"IF('1. Order'!H446=\"\",\"\",'1. Order'!H446)","v":""},{"$f":"IF('1. Order'!I446=\"\",\"\",'1. Order'!I446)","v":""},{"$f":"IF('1. Order'!J446=\"\",\"\",'1. Order'!J446)","v":""},{"$f":"IF('1. Order'!K446=\"\",\"\",'1. Order'!K446)","v":""},{"$f":"IF('1. Order'!L446=\"\",\"\",'1. Order'!L446)","v":""},{"$f":"IF('1. Order'!M446=\"\",\"\",'1. Order'!M446)","v":""},{"$f":"IF('1. Order'!N446=\"\",\"\",'1. Order'!N446)","v":""},{"$f":"IF('1. Order'!P446=\"\",\"\",'1. Order'!P446)","v":""},{"$f":"IF('1. Order'!Q446=\"\",\"\",'1. Order'!Q446)","v":{"$error":"#N/A"}},{"$f":"IF('1. Order'!R446=\"\",\"\",'1. Order'!R446)","v":{"$error":"#N/A"}},{"$f":"IF('1. Order'!S446=\"\",\"\",'1. Order'!S446)","v":""},{"$f":"IF('1. Order'!T446=\"\",\"\",'1. Order'!T446)","v":""},{"$f":"IF('1. Order'!U446=\"\",\"\",'1. Order'!U446)","v":""},{"$f":"IF('1. Order'!X446=\"\",\"\",'1. Order'!X446)","v":""},{"$f":"IF('1. Order'!Y446=\"\",\"\",'1. Order'!Y446)","v":""},{"$f":"IF('1. Order'!Z446=\"\",\"\",'1. Order'!Z446)","v":""},{"$f":"IF('1. Order'!AC446=\"\",\"\",'1. Order'!AC446)","v":""},{"$f":"IF('1. Order'!AD446=\"\",\"\",'1. Order'!AD446)","v":""},{"$f":"IF('1. Order'!AE446=\"\",\"\",'1. Order'!AE446)","v":""},null,{"$f":"IF('1. Order'!AW446=\"\",\"\",'1. Order'!AW446)","v":""},{"$f":"IF('1. Order'!AX446=\"\",\"\",'1. Order'!AX446)","v":""},null,null,null,null,null,null,null,{"$f":"IF('1. Order'!BB446=\"\",\"\",'1. Order'!BB446)","v":""},{"$f":"IF('1. Order'!BC446=\"\",\"\",'1. Order'!BC446)","v":""},{"$f":"IF('1. Order'!BD446=\"\",\"\",'1. Order'!BD446)","v":""},{"$f":"IF('1. Order'!BE446=\"\",\"\",'1. Order'!BE446)","v":""},{"$f":"IF('1. Order'!BG446=\"\",\"\",'1. Order'!BG446)","v":""},{"$f":"IF('1. Order'!BH446=\"\",\"\",'1. Order'!BH446)","v":""},{"$f":"IF('1. Order'!BI446=\"\",\"\",'1. Order'!BI446)","v":""},{"$f":"IF('1. Order'!BJ446=\"\",\"\",'1. Order'!BJ446)","v":""},{"$f":"IF('1. Order'!BK446=\"\",\"\",'1. Order'!BK446)","v":"ZWO"}]
[{"$f":"IF('1. Order'!G447=\"\",\"\",'1. Order'!G447)","v":""},{"$f":"IF('1. Order'!H447=\"\",\"\",'1. Order'!H447)","v":""},{"$f":"IF('1. Order'!I447=\"\",\"\",'1. Order'!I447)","v":""},{"$f":"IF('1. Order'!J447=\"\",\"\",'1. Order'!J447)","v":""},{"$f":"IF('1. Order'!K447=\"\",\"\",'1. Order'!K447)","v":""},{"$f":"IF('1. Order'!L447=\"\",\"\",'1. Order'!L447)","v":""},{"$f":"IF('1. Order'!M447=\"\",\"\",'1. Order'!M447)","v":""},{"$f":"IF('1. Order'!N447=\"\",\"\",'1. Order'!N447)","v":""},{"$f":"IF('1. Order'!P447=\"\",\"\",'1. Order'!P447)","v":""},{"$f":"IF('1. Order'!Q447=\"\",\"\",'1. Order'!Q447)","v":{"$error":"#N/A"}},{"$f":"IF('1. Order'!R447=\"\",\"\",'1. Order'!R447)","v":{"$error":"#N/A"}},{"$f":"IF('1. Order'!S447=\"\",\"\",'1. Order'!S447)","v":""},{"$f":"IF('1. Order'!T447=\"\",\"\",'1. Order'!T447)","v":""},{"$f":"IF('1. Order'!U447=\"\",\"\",'1. Order'!U447)","v":""},{"$f":"IF('1. Order'!X447=\"\",\"\",'1. Order'!X447)","v":""},{"$f":"IF('1. Order'!Y447=\"\",\"\",'1. Order'!Y447)","v":""},{"$f":"IF('1. Order'!Z447=\"\",\"\",'1. Order'!Z447)","v":""},{"$f":"IF('1. Order'!AC447=\"\",\"\",'1. Order'!AC447)","v":""},{"$f":"IF('1. Order'!AD447=\"\",\"\",'1. Order'!AD447)","v":""},{"$f":"IF('1. Order'!AE447=\"\",\"\",'1. Order'!AE447)","v":""},null,{"$f":"IF('1. Order'!AW447=\"\",\"\",'1. Order'!AW447)","v":""},{"$f":"IF('1. Order'!AX447=\"\",\"\",'1. Order'!AX447)","v":""},null,null,null,null,null,null,null,{"$f":"IF('1. Order'!BB447=\"\",\"\",'1. Order'!BB447)","v":""},{"$f":"IF('1. Order'!BC447=\"\",\"\",'1. Order'!BC447)","v":""},{"$f":"IF('1. Order'!BD447=\"\",\"\",'1. Order'!BD447)","v":""},{"$f":"IF('1. Order'!BE447=\"\",\"\",'1. Order'!BE447)","v":""},{"$f":"IF('1. Order'!BG447=\"\",\"\",'1. Order'!BG447)","v":""},{"$f":"IF('1. Order'!BH447=\"\",\"\",'1. Order'!BH447)","v":""},{"$f":"IF('1. Order'!BI447=\"\",\"\",'1. Order'!BI447)","v":""},{"$f":"IF('1. Order'!BJ447=\"\",\"\",'1. Order'!BJ447)","v":""},{"$f":"IF('1. Order'!BK447=\"\",\"\",'1. Order'!BK447)","v":"ZWO"}]
[{"$f":"IF('1. Order'!G448=\"\",\"\",'1. Order'!G448)","v":""},{"$f":"IF('1. Order'!H448=\"\",\"\",'1. Order'!H448)","v":""},{"$f":"IF('1. Order'!I448=\"\",\"\",'1. Order'!I448)","v":""},{"$f":"IF('1. Order'!J448=\"\",\"\",'1. Order'!J448)","v":""},{"$f":"IF('1. Order'!K448=\"\",\"\",'1. Order'!K448)","v":""},{"$f":"IF('1. Order'!L448=\"\",\"\",'1. Order'!L448)","v":""},{"$f":"IF('1. Order'!M448=\"\",\"\",'1. Order'!M448)","v":""},{"$f":"IF('1. Order'!N448=\"\",\"\",'1. Order'!N448)","v":""},{"$f":"IF('1. Order'!P448=\"\",\"\",'1. Order'!P448)","v":""},{"$f":"IF('1. Order'!Q448=\"\",\"\",'1. Order'!Q448)","v":{"$error":"#N/A"}},{"$f":"IF('1. Order'!R448=\"\",\"\",'1. Order'!R448)","v":{"$error":"#N/A"}},{"$f":"IF('1. Order'!S448=\"\",\"\",'1. Order'!S448)","v":""},{"$f":"IF('1. Order'!T448=\"\",\"\",'1. Order'!T448)","v":""},{"$f":"IF('1. Order'!U448=\"\",\"\",'1. Order'!U448)","v":""},{"$f":"IF('1. Order'!X448=\"\",\"\",'1. Order'!X448)","v":""},{"$f":"IF('1. Order'!Y448=\"\",\"\",'1. Order'!Y448)","v":""},{"$f":"IF('1. Order'!Z448=\"\",\"\",'1. Order'!Z448)","v":""},{"$f":"IF('1. Order'!AC448=\"\",\"\",'1. Order'!AC448)","v":""},{"$f":"IF('1. Order'!AD448=\"\",\"\",'1. Order'!AD448)","v":""},{"$f":"IF('1. Order'!AE448=\"\",\"\",'1. Order'!AE448)","v":""},null,{"$f":"IF('1. Order'!AW448=\"\",\"\",'1. Order'!AW448)","v":""},{"$f":"IF('1. Order'!AX448=\"\",\"\",'1. Order'!AX448)","v":""},null,null,null,null,null,null,null,{"$f":"IF('1. Order'!BB448=\"\",\"\",'1. Order'!BB448)","v":""},{"$f":"IF('1. Order'!BC448=\"\",\"\",'1. Order'!BC448)","v":""},{"$f":"IF('1. Order'!BD448=\"\",\"\",'1. Order'!BD448)","v":""},{"$f":"IF('1. Order'!BE448=\"\",\"\",'1. Order'!BE448)","v":""},{"$f":"IF('1. Order'!BG448=\"\",\"\",'1. Order'!BG448)","v":""},{"$f":"IF('1. Order'!BH448=\"\",\"\",'1. Order'!BH448)","v":""},{"$f":"IF('1. Order'!BI448=\"\",\"\",'1. Order'!BI448)","v":""},{"$f":"IF('1. Order'!BJ448=\"\",\"\",'1. Order'!BJ448)","v":""},{"$f":"IF('1. Order'!BK448=\"\",\"\",'1. Order'!BK448)","v":"ZWO"}]
[{"$f":"IF('1. Order'!G449=\"\",\"\",'1. Order'!G449)","v":""},{"$f":"IF('1. Order'!H449=\"\",\"\",'1. Order'!H449)","v":""},{"$f":"IF('1. Order'!I449=\"\",\"\",'1. Order'!I449)","v":""},{"$f":"IF('1. Order'!J449=\"\",\"\",'1. Order'!J449)","v":""},{"$f":"IF('1. Order'!K449=\"\",\"\",'1. Order'!K449)","v":""},{"$f":"IF('1. Order'!L449=\"\",\"\",'1. Order'!L449)","v":""},{"$f":"IF('1. Order'!M449=\"\",\"\",'1. Order'!M449)","v":""},{"$f":"IF('1. Order'!N449=\"\",\"\",'1. Order'!N449)","v":""},{"$f":"IF('1. Order'!P449=\"\",\"\",'1. Order'!P449)","v":""},{"$f":"IF('1. Order'!Q449=\"\",\"\",'1. Order'!Q449)","v":{"$error":"#N/A"}},{"$f":"IF('1. Order'!R449=\"\",\"\",'1. Order'!R449)","v":{"$error":"#N/A"}},{"$f":"IF('1. Order'!S449=\"\",\"\",'1. Order'!S449)","v":""},{"$f":"IF('1. Order'!T449=\"\",\"\",'1. Order'!T449)","v":""},{"$f":"IF('1. Order'!U449=\"\",\"\",'1. Order'!U449)","v":""},{"$f":"IF('1. Order'!X449=\"\",\"\",'1. Order'!X449)","v":""},{"$f":"IF('1. Order'!Y449=\"\",\"\",'1. Order'!Y449)","v":""},{"$f":"IF('1. Order'!Z449=\"\",\"\",'1. Order'!Z449)","v":""},{"$f":"IF('1. Order'!AC449=\"\",\"\",'1. Order'!AC449)","v":""},{"$f":"IF('1. Order'!AD449=\"\",\"\",'1. Order'!AD449)","v":""},{"$f":"IF('1. Order'!AE449=\"\",\"\",'1. Order'!AE449)","v":""},null,{"$f":"IF('1. Order'!AW449=\"\",\"\",'1. Order'!AW449)","v":""},{"$f":"IF('1. Order'!AX449=\"\",\"\",'1. Order'!AX449)","v":""},null,null,null,null,null,null,null,{"$f":"IF('1. Order'!BB449=\"\",\"\",'1. Order'!BB449)","v":""},{"$f":"IF('1. Order'!BC449=\"\",\"\",'1. Order'!BC449)","v":""},{"$f":"IF('1. Order'!BD449=\"\",\"\",'1. Order'!BD449)","v":""},{"$f":"IF('1. Order'!BE449=\"\",\"\",'1. Order'!BE449)","v":""},{"$f":"IF('1. Order'!BG449=\"\",\"\",'1. Order'!BG449)","v":""},{"$f":"IF('1. Order'!BH449=\"\",\"\",'1. Order'!BH449)","v":""},{"$f":"IF('1. Order'!BI449=\"\",\"\",'1. Order'!BI449)","v":""},{"$f":"IF('1. Order'!BJ449=\"\",\"\",'1. Order'!BJ449)","v":""},{"$f":"IF('1. Order'!BK449=\"\",\"\",'1. Order'!BK449)","v":"ZWO"}]
[{"$f":"IF('1. Order'!G450=\"\",\"\",'1. Order'!G450)","v":""},{"$f":"IF('1. Order'!H450=\"\",\"\",'1. Order'!H450)","v":""},{"$f":"IF('1. Order'!I450=\"\",\"\",'1. Order'!I450)","v":""},{"$f":"IF('1. Order'!J450=\"\",\"\",'1. Order'!J450)","v":""},{"$f":"IF('1. Order'!K450=\"\",\"\",'1. Order'!K450)","v":""},{"$f":"IF('1. Order'!L450=\"\",\"\",'1. Order'!L450)","v":""},{"$f":"IF('1. Order'!M450=\"\",\"\",'1. Order'!M450)","v":""},{"$f":"IF('1. Order'!N450=\"\",\"\",'1. Order'!N450)","v":""},{"$f":"IF('1. Order'!P450=\"\",\"\",'1. Order'!P450)","v":""},{"$f":"IF('1. Order'!Q450=\"\",\"\",'1. Order'!Q450)","v":{"$error":"#N/A"}},{"$f":"IF('1. Order'!R450=\"\",\"\",'1. Order'!R450)","v":{"$error":"#N/A"}},{"$f":"IF('1. Order'!S450=\"\",\"\",'1. Order'!S450)","v":""},{"$f":"IF('1. Order'!T450=\"\",\"\",'1. Order'!T450)","v":""},{"$f":"IF('1. Order'!U450=\"\",\"\",'1. Order'!U450)","v":""},{"$f":"IF('1. Order'!X450=\"\",\"\",'1. Order'!X450)","v":""},{"$f":"IF('1. Order'!Y450=\"\",\"\",'1. Order'!Y450)","v":""},{"$f":"IF('1. Order'!Z450=\"\",\"\",'1. Order'!Z450)","v":""},{"$f":"IF('1. Order'!AC450=\"\",\"\",'1. Order'!AC450)","v":""},{"$f":"IF('1. Order'!AD450=\"\",\"\",'1. Order'!AD450)","v":""},{"$f":"IF('1. Order'!AE450=\"\",\"\",'1. Order'!AE450)","v":""},null,{"$f":"IF('1. Order'!AW450=\"\",\"\",'1. Order'!AW450)","v":""},{"$f":"IF('1. Order'!AX450=\"\",\"\",'1. Order'!AX450)","v":""},null,null,null,null,null,null,null,{"$f":"IF('1. Order'!BB450=\"\",\"\",'1. Order'!BB450)","v":""},{"$f":"IF('1. Order'!BC450=\"\",\"\",'1. Order'!BC450)","v":""},{"$f":"IF('1. Order'!BD450=\"\",\"\",'1. Order'!BD450)","v":""},{"$f":"IF('1. Order'!BE450=\"\",\"\",'1. Order'!BE450)","v":""},{"$f":"IF('1. Order'!BG450=\"\",\"\",'1. Order'!BG450)","v":""},{"$f":"IF('1. Order'!BH450=\"\",\"\",'1. Order'!BH450)","v":""},{"$f":"IF('1. Order'!BI450=\"\",\"\",'1. Order'!BI450)","v":""},{"$f":"IF('1. Order'!BJ450=\"\",\"\",'1. Order'!BJ450)","v":""},{"$f":"IF('1. Order'!BK450=\"\",\"\",'1. Order'!BK450)","v":"ZWO"}]
[{"$f":"IF('1. Order'!G451=\"\",\"\",'1. Order'!G451)","v":""},{"$f":"IF('1. Order'!H451=\"\",\"\",'1. Order'!H451)","v":""},{"$f":"IF('1. Order'!I451=\"\",\"\",'1. Order'!I451)","v":""},{"$f":"IF('1. Order'!J451=\"\",\"\",'1. Order'!J451)","v":""},{"$f":"IF('1. Order'!K451=\"\",\"\",'1. Order'!K451)","v":""},{"$f":"IF('1. Order'!L451=\"\",\"\",'1. Order'!L451)","v":""},{"$f":"IF('1. Order'!M451=\"\",\"\",'1. Order'!M451)","v":""},{"$f":"IF('1. Order'!N451=\"\",\"\",'1. Order'!N451)","v":""},{"$f":"IF('1. Order'!P451=\"\",\"\",'1. Order'!P451)","v":""},{"$f":"IF('1. Order'!Q451=\"\",\"\",'1. Order'!Q451)","v":{"$error":"#N/A"}},{"$f":"IF('1. Order'!R451=\"\",\"\",'1. Order'!R451)","v":{"$error":"#N/A"}},{"$f":"IF('1. Order'!S451=\"\",\"\",'1. Order'!S451)","v":""},{"$f":"IF('1. Order'!T451=\"\",\"\",'1. Order'!T451)","v":""},{"$f":"IF('1. Order'!U451=\"\",\"\",'1. Order'!U451)","v":""},{"$f":"IF('1. Order'!X451=\"\",\"\",'1. Order'!X451)","v":""},{"$f":"IF('1. Order'!Y451=\"\",\"\",'1. Order'!Y451)","v":""},{"$f":"IF('1. Order'!Z451=\"\",\"\",'1. Order'!Z451)","v":""},{"$f":"IF('1. Order'!AC451=\"\",\"\",'1. Order'!AC451)","v":""},{"$f":"IF('1. Order'!AD451=\"\",\"\",'1. Order'!AD451)","v":""},{"$f":"IF('1. Order'!AE451=\"\",\"\",'1. Order'!AE451)","v":""},null,{"$f":"IF('1. Order'!AW451=\"\",\"\",'1. Order'!AW451)","v":""},{"$f":"IF('1. Order'!AX451=\"\",\"\",'1. Order'!AX451)","v":""},null,null,null,null,null,null,null,{"$f":"IF('1. Order'!BB451=\"\",\"\",'1. Order'!BB451)","v":""},{"$f":"IF('1. Order'!BC451=\"\",\"\",'1. Order'!BC451)","v":""},{"$f":"IF('1. Order'!BD451=\"\",\"\",'1. Order'!BD451)","v":""},{"$f":"IF('1. Order'!BE451=\"\",\"\",'1. Order'!BE451)","v":""},{"$f":"IF('1. Order'!BG451=\"\",\"\",'1. Order'!BG451)","v":""},{"$f":"IF('1. Order'!BH451=\"\",\"\",'1. Order'!BH451)","v":""},{"$f":"IF('1. Order'!BI451=\"\",\"\",'1. Order'!BI451)","v":""},{"$f":"IF('1. Order'!BJ451=\"\",\"\",'1. Order'!BJ451)","v":""},{"$f":"IF('1. Order'!BK451=\"\",\"\",'1. Order'!BK451)","v":"ZWO"}]
[{"$f":"IF('1. Order'!G452=\"\",\"\",'1. Order'!G452)","v":""},{"$f":"IF('1. Order'!H452=\"\",\"\",'1. Order'!H452)","v":""},{"$f":"IF('1. Order'!I452=\"\",\"\",'1. Order'!I452)","v":""},{"$f":"IF('1. Order'!J452=\"\",\"\",'1. Order'!J452)","v":""},{"$f":"IF('1. Order'!K452=\"\",\"\",'1. Order'!K452)","v":""},{"$f":"IF('1. Order'!L452=\"\",\"\",'1. Order'!L452)","v":""},{"$f":"IF('1. Order'!M452=\"\",\"\",'1. Order'!M452)","v":""},{"$f":"IF('1. Order'!N452=\"\",\"\",'1. Order'!N452)","v":""},{"$f":"IF('1. Order'!P452=\"\",\"\",'1. Order'!P452)","v":""},{"$f":"IF('1. Order'!Q452=\"\",\"\",'1. Order'!Q452)","v":{"$error":"#N/A"}},{"$f":"IF('1. Order'!R452=\"\",\"\",'1. Order'!R452)","v":{"$error":"#N/A"}},{"$f":"IF('1. Order'!S452=\"\",\"\",'1. Order'!S452)","v":""},{"$f":"IF('1. Order'!T452=\"\",\"\",'1. Order'!T452)","v":""},{"$f":"IF('1. Order'!U452=\"\",\"\",'1. Order'!U452)","v":""},{"$f":"IF('1. Order'!X452=\"\",\"\",'1. Order'!X452)","v":""},{"$f":"IF('1. Order'!Y452=\"\",\"\",'1. Order'!Y452)","v":""},{"$f":"IF('1. Order'!Z452=\"\",\"\",'1. Order'!Z452)","v":""},{"$f":"IF('1. Order'!AC452=\"\",\"\",'1. Order'!AC452)","v":""},{"$f":"IF('1. Order'!AD452=\"\",\"\",'1. Order'!AD452)","v":""},{"$f":"IF('1. Order'!AE452=\"\",\"\",'1. Order'!AE452)","v":""},null,{"$f":"IF('1. Order'!AW452=\"\",\"\",'1. Order'!AW452)","v":""},{"$f":"IF('1. Order'!AX452=\"\",\"\",'1. Order'!AX452)","v":""},null,null,null,null,null,null,null,{"$f":"IF('1. Order'!BB452=\"\",\"\",'1. Order'!BB452)","v":""},{"$f":"IF('1. Order'!BC452=\"\",\"\",'1. Order'!BC452)","v":""},{"$f":"IF('1. Order'!BD452=\"\",\"\",'1. Order'!BD452)","v":""},{"$f":"IF('1. Order'!BE452=\"\",\"\",'1. Order'!BE452)","v":""},{"$f":"IF('1. Order'!BG452=\"\",\"\",'1. Order'!BG452)","v":""},{"$f":"IF('1. Order'!BH452=\"\",\"\",'1. Order'!BH452)","v":""},{"$f":"IF('1. Order'!BI452=\"\",\"\",'1. Order'!BI452)","v":""},{"$f":"IF('1. Order'!BJ452=\"\",\"\",'1. Order'!BJ452)","v":""},{"$f":"IF('1. Order'!BK452=\"\",\"\",'1. Order'!BK452)","v":"ZWO"}]
[{"$f":"IF('1. Order'!G453=\"\",\"\",'1. Order'!G453)","v":""},{"$f":"IF('1. Order'!H453=\"\",\"\",'1. Order'!H453)","v":""},{"$f":"IF('1. Order'!I453=\"\",\"\",'1. Order'!I453)","v":""},{"$f":"IF('1. Order'!J453=\"\",\"\",'1. Order'!J453)","v":""},{"$f":"IF('1. Order'!K453=\"\",\"\",'1. Order'!K453)","v":""},{"$f":"IF('1. Order'!L453=\"\",\"\",'1. Order'!L453)","v":""},{"$f":"IF('1. Order'!M453=\"\",\"\",'1. Order'!M453)","v":""},{"$f":"IF('1. Order'!N453=\"\",\"\",'1. Order'!N453)","v":""},{"$f":"IF('1. Order'!P453=\"\",\"\",'1. Order'!P453)","v":""},{"$f":"IF('1. Order'!Q453=\"\",\"\",'1. Order'!Q453)","v":{"$error":"#N/A"}},{"$f":"IF('1. Order'!R453=\"\",\"\",'1. Order'!R453)","v":{"$error":"#N/A"}},{"$f":"IF('1. Order'!S453=\"\",\"\",'1. Order'!S453)","v":""},{"$f":"IF('1. Order'!T453=\"\",\"\",'1. Order'!T453)","v":""},{"$f":"IF('1. Order'!U453=\"\",\"\",'1. Order'!U453)","v":""},{"$f":"IF('1. Order'!X453=\"\",\"\",'1. Order'!X453)","v":""},{"$f":"IF('1. Order'!Y453=\"\",\"\",'1. Order'!Y453)","v":""},{"$f":"IF('1. Order'!Z453=\"\",\"\",'1. Order'!Z453)","v":""},{"$f":"IF('1. Order'!AC453=\"\",\"\",'1. Order'!AC453)","v":""},{"$f":"IF('1. Order'!AD453=\"\",\"\",'1. Order'!AD453)","v":""},{"$f":"IF('1. Order'!AE453=\"\",\"\",'1. Order'!AE453)","v":""},null,{"$f":"IF('1. Order'!AW453=\"\",\"\",'1. Order'!AW453)","v":""},{"$f":"IF('1. Order'!AX453=\"\",\"\",'1. Order'!AX453)","v":""},null,null,null,null,null,null,null,{"$f":"IF('1. Order'!BB453=\"\",\"\",'1. Order'!BB453)","v":""},{"$f":"IF('1. Order'!BC453=\"\",\"\",'1. Order'!BC453)","v":""},{"$f":"IF('1. Order'!BD453=\"\",\"\",'1. Order'!BD453)","v":""},{"$f":"IF('1. Order'!BE453=\"\",\"\",'1. Order'!BE453)","v":""},{"$f":"IF('1. Order'!BG453=\"\",\"\",'1. Order'!BG453)","v":""},{"$f":"IF('1. Order'!BH453=\"\",\"\",'1. Order'!BH453)","v":""},{"$f":"IF('1. Order'!BI453=\"\",\"\",'1. Order'!BI453)","v":""},{"$f":"IF('1. Order'!BJ453=\"\",\"\",'1. Order'!BJ453)","v":""},{"$f":"IF('1. Order'!BK453=\"\",\"\",'1. Order'!BK453)","v":"ZWO"}]
[{"$f":"IF('1. Order'!G454=\"\",\"\",'1. Order'!G454)","v":""},{"$f":"IF('1. Order'!H454=\"\",\"\",'1. Order'!H454)","v":""},{"$f":"IF('1. Order'!I454=\"\",\"\",'1. Order'!I454)","v":""},{"$f":"IF('1. Order'!J454=\"\",\"\",'1. Order'!J454)","v":""},{"$f":"IF('1. Order'!K454=\"\",\"\",'1. Order'!K454)","v":""},{"$f":"IF('1. Order'!L454=\"\",\"\",'1. Order'!L454)","v":""},{"$f":"IF('1. Order'!M454=\"\",\"\",'1. Order'!M454)","v":""},{"$f":"IF('1. Order'!N454=\"\",\"\",'1. Order'!N454)","v":""},{"$f":"IF('1. Order'!P454=\"\",\"\",'1. Order'!P454)","v":""},{"$f":"IF('1. Order'!Q454=\"\",\"\",'1. Order'!Q454)","v":{"$error":"#N/A"}},{"$f":"IF('1. Order'!R454=\"\",\"\",'1. Order'!R454)","v":{"$error":"#N/A"}},{"$f":"IF('1. Order'!S454=\"\",\"\",'1. Order'!S454)","v":""},{"$f":"IF('1. Order'!T454=\"\",\"\",'1. Order'!T454)","v":""},{"$f":"IF('1. Order'!U454=\"\",\"\",'1. Order'!U454)","v":""},{"$f":"IF('1. Order'!X454=\"\",\"\",'1. Order'!X454)","v":""},{"$f":"IF('1. Order'!Y454=\"\",\"\",'1. Order'!Y454)","v":""},{"$f":"IF('1. Order'!Z454=\"\",\"\",'1. Order'!Z454)","v":""},{"$f":"IF('1. Order'!AC454=\"\",\"\",'1. Order'!AC454)","v":""},{"$f":"IF('1. Order'!AD454=\"\",\"\",'1. Order'!AD454)","v":""},{"$f":"IF('1. Order'!AE454=\"\",\"\",'1. Order'!AE454)","v":""},null,{"$f":"IF('1. Order'!AW454=\"\",\"\",'1. Order'!AW454)","v":""},{"$f":"IF('1. Order'!AX454=\"\",\"\",'1. Order'!AX454)","v":""},null,null,null,null,null,null,null,{"$f":"IF('1. Order'!BB454=\"\",\"\",'1. Order'!BB454)","v":""},{"$f":"IF('1. Order'!BC454=\"\",\"\",'1. Order'!BC454)","v":""},{"$f":"IF('1. Order'!BD454=\"\",\"\",'1. Order'!BD454)","v":""},{"$f":"IF('1. Order'!BE454=\"\",\"\",'1. Order'!BE454)","v":""},{"$f":"IF('1. Order'!BG454=\"\",\"\",'1. Order'!BG454)","v":""},{"$f":"IF('1. Order'!BH454=\"\",\"\",'1. Order'!BH454)","v":""},{"$f":"IF('1. Order'!BI454=\"\",\"\",'1. Order'!BI454)","v":""},{"$f":"IF('1. Order'!BJ454=\"\",\"\",'1. Order'!BJ454)","v":""},{"$f":"IF('1. Order'!BK454=\"\",\"\",'1. Order'!BK454)","v":"ZWO"}]
[{"$f":"IF('1. Order'!G455=\"\",\"\",'1. Order'!G455)","v":""},{"$f":"IF('1. Order'!H455=\"\",\"\",'1. Order'!H455)","v":""},{"$f":"IF('1. Order'!I455=\"\",\"\",'1. Order'!I455)","v":""},{"$f":"IF('1. Order'!J455=\"\",\"\",'1. Order'!J455)","v":""},{"$f":"IF('1. Order'!K455=\"\",\"\",'1. Order'!K455)","v":""},{"$f":"IF('1. Order'!L455=\"\",\"\",'1. Order'!L455)","v":""},{"$f":"IF('1. Order'!M455=\"\",\"\",'1. Order'!M455)","v":""},{"$f":"IF('1. Order'!N455=\"\",\"\",'1. Order'!N455)","v":""},{"$f":"IF('1. Order'!P455=\"\",\"\",'1. Order'!P455)","v":""},{"$f":"IF('1. Order'!Q455=\"\",\"\",'1. Order'!Q455)","v":{"$error":"#N/A"}},{"$f":"IF('1. Order'!R455=\"\",\"\",'1. Order'!R455)","v":{"$error":"#N/A"}},{"$f":"IF('1. Order'!S455=\"\",\"\",'1. Order'!S455)","v":""},{"$f":"IF('1. Order'!T455=\"\",\"\",'1. Order'!T455)","v":""},{"$f":"IF('1. Order'!U455=\"\",\"\",'1. Order'!U455)","v":""},{"$f":"IF('1. Order'!X455=\"\",\"\",'1. Order'!X455)","v":""},{"$f":"IF('1. Order'!Y455=\"\",\"\",'1. Order'!Y455)","v":""},{"$f":"IF('1. Order'!Z455=\"\",\"\",'1. Order'!Z455)","v":""},{"$f":"IF('1. Order'!AC455=\"\",\"\",'1. Order'!AC455)","v":""},{"$f":"IF('1. Order'!AD455=\"\",\"\",'1. Order'!AD455)","v":""},{"$f":"IF('1. Order'!AE455=\"\",\"\",'1. Order'!AE455)","v":""},null,{"$f":"IF('1. Order'!AW455=\"\",\"\",'1. Order'!AW455)","v":""},{"$f":"IF('1. Order'!AX455=\"\",\"\",'1. Order'!AX455)","v":""},null,null,null,null,null,null,null,{"$f":"IF('1. Order'!BB455=\"\",\"\",'1. Order'!BB455)","v":""},{"$f":"IF('1. Order'!BC455=\"\",\"\",'1. Order'!BC455)","v":""},{"$f":"IF('1. Order'!BD455=\"\",\"\",'1. Order'!BD455)","v":""},{"$f":"IF('1. Order'!BE455=\"\",\"\",'1. Order'!BE455)","v":""},{"$f":"IF('1. Order'!BG455=\"\",\"\",'1. Order'!BG455)","v":""},{"$f":"IF('1. Order'!BH455=\"\",\"\",'1. Order'!BH455)","v":""},{"$f":"IF('1. Order'!BI455=\"\",\"\",'1. Order'!BI455)","v":""},{"$f":"IF('1. Order'!BJ455=\"\",\"\",'1. Order'!BJ455)","v":""},{"$f":"IF('1. Order'!BK455=\"\",\"\",'1. Order'!BK455)","v":"ZWO"}]
[{"$f":"IF('1. Order'!G456=\"\",\"\",'1. Order'!G456)","v":""},{"$f":"IF('1. Order'!H456=\"\",\"\",'1. Order'!H456)","v":""},{"$f":"IF('1. Order'!I456=\"\",\"\",'1. Order'!I456)","v":""},{"$f":"IF('1. Order'!J456=\"\",\"\",'1. Order'!J456)","v":""},{"$f":"IF('1. Order'!K456=\"\",\"\",'1. Order'!K456)","v":""},{"$f":"IF('1. Order'!L456=\"\",\"\",'1. Order'!L456)","v":""},{"$f":"IF('1. Order'!M456=\"\",\"\",'1. Order'!M456)","v":""},{"$f":"IF('1. Order'!N456=\"\",\"\",'1. Order'!N456)","v":""},{"$f":"IF('1. Order'!P456=\"\",\"\",'1. Order'!P456)","v":""},{"$f":"IF('1. Order'!Q456=\"\",\"\",'1. Order'!Q456)","v":{"$error":"#N/A"}},{"$f":"IF('1. Order'!R456=\"\",\"\",'1. Order'!R456)","v":{"$error":"#N/A"}},{"$f":"IF('1. Order'!S456=\"\",\"\",'1. Order'!S456)","v":""},{"$f":"IF('1. Order'!T456=\"\",\"\",'1. Order'!T456)","v":""},{"$f":"IF('1. Order'!U456=\"\",\"\",'1. Order'!U456)","v":""},{"$f":"IF('1. Order'!X456=\"\",\"\",'1. Order'!X456)","v":""},{"$f":"IF('1. Order'!Y456=\"\",\"\",'1. Order'!Y456)","v":""},{"$f":"IF('1. Order'!Z456=\"\",\"\",'1. Order'!Z456)","v":""},{"$f":"IF('1. Order'!AC456=\"\",\"\",'1. Order'!AC456)","v":""},{"$f":"IF('1. Order'!AD456=\"\",\"\",'1. Order'!AD456)","v":""},{"$f":"IF('1. Order'!AE456=\"\",\"\",'1. Order'!AE456)","v":""},null,{"$f":"IF('1. Order'!AW456=\"\",\"\",'1. Order'!AW456)","v":""},{"$f":"IF('1. Order'!AX456=\"\",\"\",'1. Order'!AX456)","v":""},null,null,null,null,null,null,null,{"$f":"IF('1. Order'!BB456=\"\",\"\",'1. Order'!BB456)","v":""},{"$f":"IF('1. Order'!BC456=\"\",\"\",'1. Order'!BC456)","v":""},{"$f":"IF('1. Order'!BD456=\"\",\"\",'1. Order'!BD456)","v":""},{"$f":"IF('1. Order'!BE456=\"\",\"\",'1. Order'!BE456)","v":""},{"$f":"IF('1. Order'!BG456=\"\",\"\",'1. Order'!BG456)","v":""},{"$f":"IF('1. Order'!BH456=\"\",\"\",'1. Order'!BH456)","v":""},{"$f":"IF('1. Order'!BI456=\"\",\"\",'1. Order'!BI456)","v":""},{"$f":"IF('1. Order'!BJ456=\"\",\"\",'1. Order'!BJ456)","v":""},{"$f":"IF('1. Order'!BK456=\"\",\"\",'1. Order'!BK456)","v":"ZWO"}]
[{"$f":"IF('1. Order'!G457=\"\",\"\",'1. Order'!G457)","v":""},{"$f":"IF('1. Order'!H457=\"\",\"\",'1. Order'!H457)","v":""},{"$f":"IF('1. Order'!I457=\"\",\"\",'1. Order'!I457)","v":""},{"$f":"IF('1. Order'!J457=\"\",\"\",'1. Order'!J457)","v":""},{"$f":"IF('1. Order'!K457=\"\",\"\",'1. Order'!K457)","v":""},{"$f":"IF('1. Order'!L457=\"\",\"\",'1. Order'!L457)","v":""},{"$f":"IF('1. Order'!M457=\"\",\"\",'1. Order'!M457)","v":""},{"$f":"IF('1. Order'!N457=\"\",\"\",'1. Order'!N457)","v":""},{"$f":"IF('1. Order'!P457=\"\",\"\",'1. Order'!P457)","v":""},{"$f":"IF('1. Order'!Q457=\"\",\"\",'1. Order'!Q457)","v":{"$error":"#N/A"}},{"$f":"IF('1. Order'!R457=\"\",\"\",'1. Order'!R457)","v":{"$error":"#N/A"}},{"$f":"IF('1. Order'!S457=\"\",\"\",'1. Order'!S457)","v":""},{"$f":"IF('1. Order'!T457=\"\",\"\",'1. Order'!T457)","v":""},{"$f":"IF('1. Order'!U457=\"\",\"\",'1. Order'!U457)","v":""},{"$f":"IF('1. Order'!X457=\"\",\"\",'1. Order'!X457)","v":""},{"$f":"IF('1. Order'!Y457=\"\",\"\",'1. Order'!Y457)","v":""},{"$f":"IF('1. Order'!Z457=\"\",\"\",'1. Order'!Z457)","v":""},{"$f":"IF('1. Order'!AC457=\"\",\"\",'1. Order'!AC457)","v":""},{"$f":"IF('1. Order'!AD457=\"\",\"\",'1. Order'!AD457)","v":""},{"$f":"IF('1. Order'!AE457=\"\",\"\",'1. Order'!AE457)","v":""},null,{"$f":"IF('1. Order'!AW457=\"\",\"\",'1. Order'!AW457)","v":""},{"$f":"IF('1. Order'!AX457=\"\",\"\",'1. Order'!AX457)","v":""},null,null,null,null,null,null,null,{"$f":"IF('1. Order'!BB457=\"\",\"\",'1. Order'!BB457)","v":""},{"$f":"IF('1. Order'!BC457=\"\",\"\",'1. Order'!BC457)","v":""},{"$f":"IF('1. Order'!BD457=\"\",\"\",'1. Order'!BD457)","v":""},{"$f":"IF('1. Order'!BE457=\"\",\"\",'1. Order'!BE457)","v":""},{"$f":"IF('1. Order'!BG457=\"\",\"\",'1. Order'!BG457)","v":""},{"$f":"IF('1. Order'!BH457=\"\",\"\",'1. Order'!BH457)","v":""},{"$f":"IF('1. Order'!BI457=\"\",\"\",'1. Order'!BI457)","v":""},{"$f":"IF('1. Order'!BJ457=\"\",\"\",'1. Order'!BJ457)","v":""},{"$f":"IF('1. Order'!BK457=\"\",\"\",'1. Order'!BK457)","v":"ZWO"}]
[{"$f":"IF('1. Order'!G458=\"\",\"\",'1. Order'!G458)","v":""},{"$f":"IF('1. Order'!H458=\"\",\"\",'1. Order'!H458)","v":""},{"$f":"IF('1. Order'!I458=\"\",\"\",'1. Order'!I458)","v":""},{"$f":"IF('1. Order'!J458=\"\",\"\",'1. Order'!J458)","v":""},{"$f":"IF('1. Order'!K458=\"\",\"\",'1. Order'!K458)","v":""},{"$f":"IF('1. Order'!L458=\"\",\"\",'1. Order'!L458)","v":""},{"$f":"IF('1. Order'!M458=\"\",\"\",'1. Order'!M458)","v":""},{"$f":"IF('1. Order'!N458=\"\",\"\",'1. Order'!N458)","v":""},{"$f":"IF('1. Order'!P458=\"\",\"\",'1. Order'!P458)","v":""},{"$f":"IF('1. Order'!Q458=\"\",\"\",'1. Order'!Q458)","v":{"$error":"#N/A"}},{"$f":"IF('1. Order'!R458=\"\",\"\",'1. Order'!R458)","v":{"$error":"#N/A"}},{"$f":"IF('1. Order'!S458=\"\",\"\",'1. Order'!S458)","v":""},{"$f":"IF('1. Order'!T458=\"\",\"\",'1. Order'!T458)","v":""},{"$f":"IF('1. Order'!U458=\"\",\"\",'1. Order'!U458)","v":""},{"$f":"IF('1. Order'!X458=\"\",\"\",'1. Order'!X458)","v":""},{"$f":"IF('1. Order'!Y458=\"\",\"\",'1. Order'!Y458)","v":""},{"$f":"IF('1. Order'!Z458=\"\",\"\",'1. Order'!Z458)","v":""},{"$f":"IF('1. Order'!AC458=\"\",\"\",'1. Order'!AC458)","v":""},{"$f":"IF('1. Order'!AD458=\"\",\"\",'1. Order'!AD458)","v":""},{"$f":"IF('1. Order'!AE458=\"\",\"\",'1. Order'!AE458)","v":""},null,{"$f":"IF('1. Order'!AW458=\"\",\"\",'1. Order'!AW458)","v":""},{"$f":"IF('1. Order'!AX458=\"\",\"\",'1. Order'!AX458)","v":""},null,null,null,null,null,null,null,{"$f":"IF('1. Order'!BB458=\"\",\"\",'1. Order'!BB458)","v":""},{"$f":"IF('1. Order'!BC458=\"\",\"\",'1. Order'!BC458)","v":""},{"$f":"IF('1. Order'!BD458=\"\",\"\",'1. Order'!BD458)","v":""},{"$f":"IF('1. Order'!BE458=\"\",\"\",'1. Order'!BE458)","v":""},{"$f":"IF('1. Order'!BG458=\"\",\"\",'1. Order'!BG458)","v":""},{"$f":"IF('1. Order'!BH458=\"\",\"\",'1. Order'!BH458)","v":""},{"$f":"IF('1. Order'!BI458=\"\",\"\",'1. Order'!BI458)","v":""},{"$f":"IF('1. Order'!BJ458=\"\",\"\",'1. Order'!BJ458)","v":""},{"$f":"IF('1. Order'!BK458=\"\",\"\",'1. Order'!BK458)","v":"ZWO"}]
[{"$f":"IF('1. Order'!G459=\"\",\"\",'1. Order'!G459)","v":""},{"$f":"IF('1. Order'!H459=\"\",\"\",'1. Order'!H459)","v":""},{"$f":"IF('1. Order'!I459=\"\",\"\",'1. Order'!I459)","v":""},{"$f":"IF('1. Order'!J459=\"\",\"\",'1. Order'!J459)","v":""},{"$f":"IF('1. Order'!K459=\"\",\"\",'1. Order'!K459)","v":""},{"$f":"IF('1. Order'!L459=\"\",\"\",'1. Order'!L459)","v":""},{"$f":"IF('1. Order'!M459=\"\",\"\",'1. Order'!M459)","v":""},{"$f":"IF('1. Order'!N459=\"\",\"\",'1. Order'!N459)","v":""},{"$f":"IF('1. Order'!P459=\"\",\"\",'1. Order'!P459)","v":""},{"$f":"IF('1. Order'!Q459=\"\",\"\",'1. Order'!Q459)","v":{"$error":"#N/A"}},{"$f":"IF('1. Order'!R459=\"\",\"\",'1. Order'!R459)","v":{"$error":"#N/A"}},{"$f":"IF('1. Order'!S459=\"\",\"\",'1. Order'!S459)","v":""},{"$f":"IF('1. Order'!T459=\"\",\"\",'1. Order'!T459)","v":""},{"$f":"IF('1. Order'!U459=\"\",\"\",'1. Order'!U459)","v":""},{"$f":"IF('1. Order'!X459=\"\",\"\",'1. Order'!X459)","v":""},{"$f":"IF('1. Order'!Y459=\"\",\"\",'1. Order'!Y459)","v":""},{"$f":"IF('1. Order'!Z459=\"\",\"\",'1. Order'!Z459)","v":""},{"$f":"IF('1. Order'!AC459=\"\",\"\",'1. Order'!AC459)","v":""},{"$f":"IF('1. Order'!AD459=\"\",\"\",'1. Order'!AD459)","v":""},{"$f":"IF('1. Order'!AE459=\"\",\"\",'1. Order'!AE459)","v":""},null,{"$f":"IF('1. Order'!AW459=\"\",\"\",'1. Order'!AW459)","v":""},{"$f":"IF('1. Order'!AX459=\"\",\"\",'1. Order'!AX459)","v":""},null,null,null,null,null,null,null,{"$f":"IF('1. Order'!BB459=\"\",\"\",'1. Order'!BB459)","v":""},{"$f":"IF('1. Order'!BC459=\"\",\"\",'1. Order'!BC459)","v":""},{"$f":"IF('1. Order'!BD459=\"\",\"\",'1. Order'!BD459)","v":""},{"$f":"IF('1. Order'!BE459=\"\",\"\",'1. Order'!BE459)","v":""},{"$f":"IF('1. Order'!BG459=\"\",\"\",'1. Order'!BG459)","v":""},{"$f":"IF('1. Order'!BH459=\"\",\"\",'1. Order'!BH459)","v":""},{"$f":"IF('1. Order'!BI459=\"\",\"\",'1. Order'!BI459)","v":""},{"$f":"IF('1. Order'!BJ459=\"\",\"\",'1. Order'!BJ459)","v":""},{"$f":"IF('1. Order'!BK459=\"\",\"\",'1. Order'!BK459)","v":"ZWO"}]
[{"$f":"IF('1. Order'!G460=\"\",\"\",'1. Order'!G460)","v":""},{"$f":"IF('1. Order'!H460=\"\",\"\",'1. Order'!H460)","v":""},{"$f":"IF('1. Order'!I460=\"\",\"\",'1. Order'!I460)","v":""},{"$f":"IF('1. Order'!J460=\"\",\"\",'1. Order'!J460)","v":""},{"$f":"IF('1. Order'!K460=\"\",\"\",'1. Order'!K460)","v":""},{"$f":"IF('1. Order'!L460=\"\",\"\",'1. Order'!L460)","v":""},{"$f":"IF('1. Order'!M460=\"\",\"\",'1. Order'!M460)","v":""},{"$f":"IF('1. Order'!N460=\"\",\"\",'1. Order'!N460)","v":""},{"$f":"IF('1. Order'!P460=\"\",\"\",'1. Order'!P460)","v":""},{"$f":"IF('1. Order'!Q460=\"\",\"\",'1. Order'!Q460)","v":{"$error":"#N/A"}},{"$f":"IF('1. Order'!R460=\"\",\"\",'1. Order'!R460)","v":{"$error":"#N/A"}},{"$f":"IF('1. Order'!S460=\"\",\"\",'1. Order'!S460)","v":""},{"$f":"IF('1. Order'!T460=\"\",\"\",'1. Order'!T460)","v":""},{"$f":"IF('1. Order'!U460=\"\",\"\",'1. Order'!U460)","v":""},{"$f":"IF('1. Order'!X460=\"\",\"\",'1. Order'!X460)","v":""},{"$f":"IF('1. Order'!Y460=\"\",\"\",'1. Order'!Y460)","v":""},{"$f":"IF('1. Order'!Z460=\"\",\"\",'1. Order'!Z460)","v":""},{"$f":"IF('1. Order'!AC460=\"\",\"\",'1. Order'!AC460)","v":""},{"$f":"IF('1. Order'!AD460=\"\",\"\",'1. Order'!AD460)","v":""},{"$f":"IF('1. Order'!AE460=\"\",\"\",'1. Order'!AE460)","v":""},null,{"$f":"IF('1. Order'!AW460=\"\",\"\",'1. Order'!AW460)","v":""},{"$f":"IF('1. Order'!AX460=\"\",\"\",'1. Order'!AX460)","v":""},null,null,null,null,null,null,null,{"$f":"IF('1. Order'!BB460=\"\",\"\",'1. Order'!BB460)","v":""},{"$f":"IF('1. Order'!BC460=\"\",\"\",'1. Order'!BC460)","v":""},{"$f":"IF('1. Order'!BD460=\"\",\"\",'1. Order'!BD460)","v":""},{"$f":"IF('1. Order'!BE460=\"\",\"\",'1. Order'!BE460)","v":""},{"$f":"IF('1. Order'!BG460=\"\",\"\",'1. Order'!BG460)","v":""},{"$f":"IF('1. Order'!BH460=\"\",\"\",'1. Order'!BH460)","v":""},{"$f":"IF('1. Order'!BI460=\"\",\"\",'1. Order'!BI460)","v":""},{"$f":"IF('1. Order'!BJ460=\"\",\"\",'1. Order'!BJ460)","v":""},{"$f":"IF('1. Order'!BK460=\"\",\"\",'1. Order'!BK460)","v":"ZWO"}]
[{"$f":"IF('1. Order'!G461=\"\",\"\",'1. Order'!G461)","v":""},{"$f":"IF('1. Order'!H461=\"\",\"\",'1. Order'!H461)","v":""},{"$f":"IF('1. Order'!I461=\"\",\"\",'1. Order'!I461)","v":""},{"$f":"IF('1. Order'!J461=\"\",\"\",'1. Order'!J461)","v":""},{"$f":"IF('1. Order'!K461=\"\",\"\",'1. Order'!K461)","v":""},{"$f":"IF('1. Order'!L461=\"\",\"\",'1. Order'!L461)","v":""},{"$f":"IF('1. Order'!M461=\"\",\"\",'1. Order'!M461)","v":""},{"$f":"IF('1. Order'!N461=\"\",\"\",'1. Order'!N461)","v":""},{"$f":"IF('1. Order'!P461=\"\",\"\",'1. Order'!P461)","v":""},{"$f":"IF('1. Order'!Q461=\"\",\"\",'1. Order'!Q461)","v":{"$error":"#N/A"}},{"$f":"IF('1. Order'!R461=\"\",\"\",'1. Order'!R461)","v":{"$error":"#N/A"}},{"$f":"IF('1. Order'!S461=\"\",\"\",'1. Order'!S461)","v":""},{"$f":"IF('1. Order'!T461=\"\",\"\",'1. Order'!T461)","v":""},{"$f":"IF('1. Order'!U461=\"\",\"\",'1. Order'!U461)","v":""},{"$f":"IF('1. Order'!X461=\"\",\"\",'1. Order'!X461)","v":""},{"$f":"IF('1. Order'!Y461=\"\",\"\",'1. Order'!Y461)","v":""},{"$f":"IF('1. Order'!Z461=\"\",\"\",'1. Order'!Z461)","v":""},{"$f":"IF('1. Order'!AC461=\"\",\"\",'1. Order'!AC461)","v":""},{"$f":"IF('1. Order'!AD461=\"\",\"\",'1. Order'!AD461)","v":""},{"$f":"IF('1. Order'!AE461=\"\",\"\",'1. Order'!AE461)","v":""},null,{"$f":"IF('1. Order'!AW461=\"\",\"\",'1. Order'!AW461)","v":""},{"$f":"IF('1. Order'!AX461=\"\",\"\",'1. Order'!AX461)","v":""},null,null,null,null,null,null,null,{"$f":"IF('1. Order'!BB461=\"\",\"\",'1. Order'!BB461)","v":""},{"$f":"IF('1. Order'!BC461=\"\",\"\",'1. Order'!BC461)","v":""},{"$f":"IF('1. Order'!BD461=\"\",\"\",'1. Order'!BD461)","v":""},{"$f":"IF('1. Order'!BE461=\"\",\"\",'1. Order'!BE461)","v":""},{"$f":"IF('1. Order'!BG461=\"\",\"\",'1. Order'!BG461)","v":""},{"$f":"IF('1. Order'!BH461=\"\",\"\",'1. Order'!BH461)","v":""},{"$f":"IF('1. Order'!BI461=\"\",\"\",'1. Order'!BI461)","v":""},{"$f":"IF('1. Order'!BJ461=\"\",\"\",'1. Order'!BJ461)","v":""},{"$f":"IF('1. Order'!BK461=\"\",\"\",'1. Order'!BK461)","v":"ZWO"}]
[{"$f":"IF('1. Order'!G462=\"\",\"\",'1. Order'!G462)","v":""},{"$f":"IF('1. Order'!H462=\"\",\"\",'1. Order'!H462)","v":""},{"$f":"IF('1. Order'!I462=\"\",\"\",'1. Order'!I462)","v":""},{"$f":"IF('1. Order'!J462=\"\",\"\",'1. Order'!J462)","v":""},{"$f":"IF('1. Order'!K462=\"\",\"\",'1. Order'!K462)","v":""},{"$f":"IF('1. Order'!L462=\"\",\"\",'1. Order'!L462)","v":""},{"$f":"IF('1. Order'!M462=\"\",\"\",'1. Order'!M462)","v":""},{"$f":"IF('1. Order'!N462=\"\",\"\",'1. Order'!N462)","v":""},{"$f":"IF('1. Order'!P462=\"\",\"\",'1. Order'!P462)","v":""},{"$f":"IF('1. Order'!Q462=\"\",\"\",'1. Order'!Q462)","v":{"$error":"#N/A"}},{"$f":"IF('1. Order'!R462=\"\",\"\",'1. Order'!R462)","v":{"$error":"#N/A"}},{"$f":"IF('1. Order'!S462=\"\",\"\",'1. Order'!S462)","v":""},{"$f":"IF('1. Order'!T462=\"\",\"\",'1. Order'!T462)","v":""},{"$f":"IF('1. Order'!U462=\"\",\"\",'1. Order'!U462)","v":""},{"$f":"IF('1. Order'!X462=\"\",\"\",'1. Order'!X462)","v":""},{"$f":"IF('1. Order'!Y462=\"\",\"\",'1. Order'!Y462)","v":""},{"$f":"IF('1. Order'!Z462=\"\",\"\",'1. Order'!Z462)","v":""},{"$f":"IF('1. Order'!AC462=\"\",\"\",'1. Order'!AC462)","v":""},{"$f":"IF('1. Order'!AD462=\"\",\"\",'1. Order'!AD462)","v":""},{"$f":"IF('1. Order'!AE462=\"\",\"\",'1. Order'!AE462)","v":""},null,{"$f":"IF('1. Order'!AW462=\"\",\"\",'1. Order'!AW462)","v":""},{"$f":"IF('1. Order'!AX462=\"\",\"\",'1. Order'!AX462)","v":""},null,null,null,null,null,null,null,{"$f":"IF('1. Order'!BB462=\"\",\"\",'1. Order'!BB462)","v":""},{"$f":"IF('1. Order'!BC462=\"\",\"\",'1. Order'!BC462)","v":""},{"$f":"IF('1. Order'!BD462=\"\",\"\",'1. Order'!BD462)","v":""},{"$f":"IF('1. Order'!BE462=\"\",\"\",'1. Order'!BE462)","v":""},{"$f":"IF('1. Order'!BG462=\"\",\"\",'1. Order'!BG462)","v":""},{"$f":"IF('1. Order'!BH462=\"\",\"\",'1. Order'!BH462)","v":""},{"$f":"IF('1. Order'!BI462=\"\",\"\",'1. Order'!BI462)","v":""},{"$f":"IF('1. Order'!BJ462=\"\",\"\",'1. Order'!BJ462)","v":""},{"$f":"IF('1. Order'!BK462=\"\",\"\",'1. Order'!BK462)","v":"ZWO"}]
[{"$f":"IF('1. Order'!G463=\"\",\"\",'1. Order'!G463)","v":""},{"$f":"IF('1. Order'!H463=\"\",\"\",'1. Order'!H463)","v":""},{"$f":"IF('1. Order'!I463=\"\",\"\",'1. Order'!I463)","v":""},{"$f":"IF('1. Order'!J463=\"\",\"\",'1. Order'!J463)","v":""},{"$f":"IF('1. Order'!K463=\"\",\"\",'1. Order'!K463)","v":""},{"$f":"IF('1. Order'!L463=\"\",\"\",'1. Order'!L463)","v":""},{"$f":"IF('1. Order'!M463=\"\",\"\",'1. Order'!M463)","v":""},{"$f":"IF('1. Order'!N463=\"\",\"\",'1. Order'!N463)","v":""},{"$f":"IF('1. Order'!P463=\"\",\"\",'1. Order'!P463)","v":""},{"$f":"IF('1. Order'!Q463=\"\",\"\",'1. Order'!Q463)","v":{"$error":"#N/A"}},{"$f":"IF('1. Order'!R463=\"\",\"\",'1. Order'!R463)","v":{"$error":"#N/A"}},{"$f":"IF('1. Order'!S463=\"\",\"\",'1. Order'!S463)","v":""},{"$f":"IF('1. Order'!T463=\"\",\"\",'1. Order'!T463)","v":""},{"$f":"IF('1. Order'!U463=\"\",\"\",'1. Order'!U463)","v":""},{"$f":"IF('1. Order'!X463=\"\",\"\",'1. Order'!X463)","v":""},{"$f":"IF('1. Order'!Y463=\"\",\"\",'1. Order'!Y463)","v":""},{"$f":"IF('1. Order'!Z463=\"\",\"\",'1. Order'!Z463)","v":""},{"$f":"IF('1. Order'!AC463=\"\",\"\",'1. Order'!AC463)","v":""},{"$f":"IF('1. Order'!AD463=\"\",\"\",'1. Order'!AD463)","v":""},{"$f":"IF('1. Order'!AE463=\"\",\"\",'1. Order'!AE463)","v":""},null,{"$f":"IF('1. Order'!AW463=\"\",\"\",'1. Order'!AW463)","v":""},{"$f":"IF('1. Order'!AX463=\"\",\"\",'1. Order'!AX463)","v":""},null,null,null,null,null,null,null,{"$f":"IF('1. Order'!BB463=\"\",\"\",'1. Order'!BB463)","v":""},{"$f":"IF('1. Order'!BC463=\"\",\"\",'1. Order'!BC463)","v":""},{"$f":"IF('1. Order'!BD463=\"\",\"\",'1. Order'!BD463)","v":""},{"$f":"IF('1. Order'!BE463=\"\",\"\",'1. Order'!BE463)","v":""},{"$f":"IF('1. Order'!BG463=\"\",\"\",'1. Order'!BG463)","v":""},{"$f":"IF('1. Order'!BH463=\"\",\"\",'1. Order'!BH463)","v":""},{"$f":"IF('1. Order'!BI463=\"\",\"\",'1. Order'!BI463)","v":""},{"$f":"IF('1. Order'!BJ463=\"\",\"\",'1. Order'!BJ463)","v":""},{"$f":"IF('1. Order'!BK463=\"\",\"\",'1. Order'!BK463)","v":"ZWO"}]
[{"$f":"IF('1. Order'!G464=\"\",\"\",'1. Order'!G464)","v":""},{"$f":"IF('1. Order'!H464=\"\",\"\",'1. Order'!H464)","v":""},{"$f":"IF('1. Order'!I464=\"\",\"\",'1. Order'!I464)","v":""},{"$f":"IF('1. Order'!J464=\"\",\"\",'1. Order'!J464)","v":""},{"$f":"IF('1. Order'!K464=\"\",\"\",'1. Order'!K464)","v":""},{"$f":"IF('1. Order'!L464=\"\",\"\",'1. Order'!L464)","v":""},{"$f":"IF('1. Order'!M464=\"\",\"\",'1. Order'!M464)","v":""},{"$f":"IF('1. Order'!N464=\"\",\"\",'1. Order'!N464)","v":""},{"$f":"IF('1. Order'!P464=\"\",\"\",'1. Order'!P464)","v":""},{"$f":"IF('1. Order'!Q464=\"\",\"\",'1. Order'!Q464)","v":{"$error":"#N/A"}},{"$f":"IF('1. Order'!R464=\"\",\"\",'1. Order'!R464)","v":{"$error":"#N/A"}},{"$f":"IF('1. Order'!S464=\"\",\"\",'1. Order'!S464)","v":""},{"$f":"IF('1. Order'!T464=\"\",\"\",'1. Order'!T464)","v":""},{"$f":"IF('1. Order'!U464=\"\",\"\",'1. Order'!U464)","v":""},{"$f":"IF('1. Order'!X464=\"\",\"\",'1. Order'!X464)","v":""},{"$f":"IF('1. Order'!Y464=\"\",\"\",'1. Order'!Y464)","v":""},{"$f":"IF('1. Order'!Z464=\"\",\"\",'1. Order'!Z464)","v":""},{"$f":"IF('1. Order'!AC464=\"\",\"\",'1. Order'!AC464)","v":""},{"$f":"IF('1. Order'!AD464=\"\",\"\",'1. Order'!AD464)","v":""},{"$f":"IF('1. Order'!AE464=\"\",\"\",'1. Order'!AE464)","v":""},null,{"$f":"IF('1. Order'!AW464=\"\",\"\",'1. Order'!AW464)","v":""},{"$f":"IF('1. Order'!AX464=\"\",\"\",'1. Order'!AX464)","v":""},null,null,null,null,null,null,null,{"$f":"IF('1. Order'!BB464=\"\",\"\",'1. Order'!BB464)","v":""},{"$f":"IF('1. Order'!BC464=\"\",\"\",'1. Order'!BC464)","v":""},{"$f":"IF('1. Order'!BD464=\"\",\"\",'1. Order'!BD464)","v":""},{"$f":"IF('1. Order'!BE464=\"\",\"\",'1. Order'!BE464)","v":""},{"$f":"IF('1. Order'!BG464=\"\",\"\",'1. Order'!BG464)","v":""},{"$f":"IF('1. Order'!BH464=\"\",\"\",'1. Order'!BH464)","v":""},{"$f":"IF('1. Order'!BI464=\"\",\"\",'1. Order'!BI464)","v":""},{"$f":"IF('1. Order'!BJ464=\"\",\"\",'1. Order'!BJ464)","v":""},{"$f":"IF('1. Order'!BK464=\"\",\"\",'1. Order'!BK464)","v":"ZWO"}]
[{"$f":"IF('1. Order'!G465=\"\",\"\",'1. Order'!G465)","v":""},{"$f":"IF('1. Order'!H465=\"\",\"\",'1. Order'!H465)","v":""},{"$f":"IF('1. Order'!I465=\"\",\"\",'1. Order'!I465)","v":""},{"$f":"IF('1. Order'!J465=\"\",\"\",'1. Order'!J465)","v":""},{"$f":"IF('1. Order'!K465=\"\",\"\",'1. Order'!K465)","v":""},{"$f":"IF('1. Order'!L465=\"\",\"\",'1. Order'!L465)","v":""},{"$f":"IF('1. Order'!M465=\"\",\"\",'1. Order'!M465)","v":""},{"$f":"IF('1. Order'!N465=\"\",\"\",'1. Order'!N465)","v":""},{"$f":"IF('1. Order'!P465=\"\",\"\",'1. Order'!P465)","v":""},{"$f":"IF('1. Order'!Q465=\"\",\"\",'1. Order'!Q465)","v":{"$error":"#N/A"}},{"$f":"IF('1. Order'!R465=\"\",\"\",'1. Order'!R465)","v":{"$error":"#N/A"}},{"$f":"IF('1. Order'!S465=\"\",\"\",'1. Order'!S465)","v":""},{"$f":"IF('1. Order'!T465=\"\",\"\",'1. Order'!T465)","v":""},{"$f":"IF('1. Order'!U465=\"\",\"\",'1. Order'!U465)","v":""},{"$f":"IF('1. Order'!X465=\"\",\"\",'1. Order'!X465)","v":""},{"$f":"IF('1. Order'!Y465=\"\",\"\",'1. Order'!Y465)","v":""},{"$f":"IF('1. Order'!Z465=\"\",\"\",'1. Order'!Z465)","v":""},{"$f":"IF('1. Order'!AC465=\"\",\"\",'1. Order'!AC465)","v":""},{"$f":"IF('1. Order'!AD465=\"\",\"\",'1. Order'!AD465)","v":""},{"$f":"IF('1. Order'!AE465=\"\",\"\",'1. Order'!AE465)","v":""},null,{"$f":"IF('1. Order'!AW465=\"\",\"\",'1. Order'!AW465)","v":""},{"$f":"IF('1. Order'!AX465=\"\",\"\",'1. Order'!AX465)","v":""},null,null,null,null,null,null,null,{"$f":"IF('1. Order'!BB465=\"\",\"\",'1. Order'!BB465)","v":""},{"$f":"IF('1. Order'!BC465=\"\",\"\",'1. Order'!BC465)","v":""},{"$f":"IF('1. Order'!BD465=\"\",\"\",'1. Order'!BD465)","v":""},{"$f":"IF('1. Order'!BE465=\"\",\"\",'1. Order'!BE465)","v":""},{"$f":"IF('1. Order'!BG465=\"\",\"\",'1. Order'!BG465)","v":""},{"$f":"IF('1. Order'!BH465=\"\",\"\",'1. Order'!BH465)","v":""},{"$f":"IF('1. Order'!BI465=\"\",\"\",'1. Order'!BI465)","v":""},{"$f":"IF('1. Order'!BJ465=\"\",\"\",'1. Order'!BJ465)","v":""},{"$f":"IF('1. Order'!BK465=\"\",\"\",'1. Order'!BK465)","v":"ZWO"}]
[{"$f":"IF('1. Order'!G466=\"\",\"\",'1. Order'!G466)","v":""},{"$f":"IF('1. Order'!H466=\"\",\"\",'1. Order'!H466)","v":""},{"$f":"IF('1. Order'!I466=\"\",\"\",'1. Order'!I466)","v":""},{"$f":"IF('1. Order'!J466=\"\",\"\",'1. Order'!J466)","v":""},{"$f":"IF('1. Order'!K466=\"\",\"\",'1. Order'!K466)","v":""},{"$f":"IF('1. Order'!L466=\"\",\"\",'1. Order'!L466)","v":""},{"$f":"IF('1. Order'!M466=\"\",\"\",'1. Order'!M466)","v":""},{"$f":"IF('1. Order'!N466=\"\",\"\",'1. Order'!N466)","v":""},{"$f":"IF('1. Order'!P466=\"\",\"\",'1. Order'!P466)","v":""},{"$f":"IF('1. Order'!Q466=\"\",\"\",'1. Order'!Q466)","v":{"$error":"#N/A"}},{"$f":"IF('1. Order'!R466=\"\",\"\",'1. Order'!R466)","v":{"$error":"#N/A"}},{"$f":"IF('1. Order'!S466=\"\",\"\",'1. Order'!S466)","v":""},{"$f":"IF('1. Order'!T466=\"\",\"\",'1. Order'!T466)","v":""},{"$f":"IF('1. Order'!U466=\"\",\"\",'1. Order'!U466)","v":""},{"$f":"IF('1. Order'!X466=\"\",\"\",'1. Order'!X466)","v":""},{"$f":"IF('1. Order'!Y466=\"\",\"\",'1. Order'!Y466)","v":""},{"$f":"IF('1. Order'!Z466=\"\",\"\",'1. Order'!Z466)","v":""},{"$f":"IF('1. Order'!AC466=\"\",\"\",'1. Order'!AC466)","v":""},{"$f":"IF('1. Order'!AD466=\"\",\"\",'1. Order'!AD466)","v":""},{"$f":"IF('1. Order'!AE466=\"\",\"\",'1. Order'!AE466)","v":""},null,{"$f":"IF('1. Order'!AW466=\"\",\"\",'1. Order'!AW466)","v":""},{"$f":"IF('1. Order'!AX466=\"\",\"\",'1. Order'!AX466)","v":""},null,null,null,null,null,null,null,{"$f":"IF('1. Order'!BB466=\"\",\"\",'1. Order'!BB466)","v":""},{"$f":"IF('1. Order'!BC466=\"\",\"\",'1. Order'!BC466)","v":""},{"$f":"IF('1. Order'!BD466=\"\",\"\",'1. Order'!BD466)","v":""},{"$f":"IF('1. Order'!BE466=\"\",\"\",'1. Order'!BE466)","v":""},{"$f":"IF('1. Order'!BG466=\"\",\"\",'1. Order'!BG466)","v":""},{"$f":"IF('1. Order'!BH466=\"\",\"\",'1. Order'!BH466)","v":""},{"$f":"IF('1. Order'!BI466=\"\",\"\",'1. Order'!BI466)","v":""},{"$f":"IF('1. Order'!BJ466=\"\",\"\",'1. Order'!BJ466)","v":""},{"$f":"IF('1. Order'!BK466=\"\",\"\",'1. Order'!BK466)","v":"ZWO"}]
[{"$f":"IF('1. Order'!G467=\"\",\"\",'1. Order'!G467)","v":""},{"$f":"IF('1. Order'!H467=\"\",\"\",'1. Order'!H467)","v":""},{"$f":"IF('1. Order'!I467=\"\",\"\",'1. Order'!I467)","v":""},{"$f":"IF('1. Order'!J467=\"\",\"\",'1. Order'!J467)","v":""},{"$f":"IF('1. Order'!K467=\"\",\"\",'1. Order'!K467)","v":""},{"$f":"IF('1. Order'!L467=\"\",\"\",'1. Order'!L467)","v":""},{"$f":"IF('1. Order'!M467=\"\",\"\",'1. Order'!M467)","v":""},{"$f":"IF('1. Order'!N467=\"\",\"\",'1. Order'!N467)","v":""},{"$f":"IF('1. Order'!P467=\"\",\"\",'1. Order'!P467)","v":""},{"$f":"IF('1. Order'!Q467=\"\",\"\",'1. Order'!Q467)","v":{"$error":"#N/A"}},{"$f":"IF('1. Order'!R467=\"\",\"\",'1. Order'!R467)","v":{"$error":"#N/A"}},{"$f":"IF('1. Order'!S467=\"\",\"\",'1. Order'!S467)","v":""},{"$f":"IF('1. Order'!T467=\"\",\"\",'1. Order'!T467)","v":""},{"$f":"IF('1. Order'!U467=\"\",\"\",'1. Order'!U467)","v":""},{"$f":"IF('1. Order'!X467=\"\",\"\",'1. Order'!X467)","v":""},{"$f":"IF('1. Order'!Y467=\"\",\"\",'1. Order'!Y467)","v":""},{"$f":"IF('1. Order'!Z467=\"\",\"\",'1. Order'!Z467)","v":""},{"$f":"IF('1. Order'!AC467=\"\",\"\",'1. Order'!AC467)","v":""},{"$f":"IF('1. Order'!AD467=\"\",\"\",'1. Order'!AD467)","v":""},{"$f":"IF('1. Order'!AE467=\"\",\"\",'1. Order'!AE467)","v":""},null,{"$f":"IF('1. Order'!AW467=\"\",\"\",'1. Order'!AW467)","v":""},{"$f":"IF('1. Order'!AX467=\"\",\"\",'1. Order'!AX467)","v":""},null,null,null,null,null,null,null,{"$f":"IF('1. Order'!BB467=\"\",\"\",'1. Order'!BB467)","v":""},{"$f":"IF('1. Order'!BC467=\"\",\"\",'1. Order'!BC467)","v":""},{"$f":"IF('1. Order'!BD467=\"\",\"\",'1. Order'!BD467)","v":""},{"$f":"IF('1. Order'!BE467=\"\",\"\",'1. Order'!BE467)","v":""},{"$f":"IF('1. Order'!BG467=\"\",\"\",'1. Order'!BG467)","v":""},{"$f":"IF('1. Order'!BH467=\"\",\"\",'1. Order'!BH467)","v":""},{"$f":"IF('1. Order'!BI467=\"\",\"\",'1. Order'!BI467)","v":""},{"$f":"IF('1. Order'!BJ467=\"\",\"\",'1. Order'!BJ467)","v":""},{"$f":"IF('1. Order'!BK467=\"\",\"\",'1. Order'!BK467)","v":"ZWO"}]
[{"$f":"IF('1. Order'!G468=\"\",\"\",'1. Order'!G468)","v":""},{"$f":"IF('1. Order'!H468=\"\",\"\",'1. Order'!H468)","v":""},{"$f":"IF('1. Order'!I468=\"\",\"\",'1. Order'!I468)","v":""},{"$f":"IF('1. Order'!J468=\"\",\"\",'1. Order'!J468)","v":""},{"$f":"IF('1. Order'!K468=\"\",\"\",'1. Order'!K468)","v":""},{"$f":"IF('1. Order'!L468=\"\",\"\",'1. Order'!L468)","v":""},{"$f":"IF('1. Order'!M468=\"\",\"\",'1. Order'!M468)","v":""},{"$f":"IF('1. Order'!N468=\"\",\"\",'1. Order'!N468)","v":""},{"$f":"IF('1. Order'!P468=\"\",\"\",'1. Order'!P468)","v":""},{"$f":"IF('1. Order'!Q468=\"\",\"\",'1. Order'!Q468)","v":{"$error":"#N/A"}},{"$f":"IF('1. Order'!R468=\"\",\"\",'1. Order'!R468)","v":{"$error":"#N/A"}},{"$f":"IF('1. Order'!S468=\"\",\"\",'1. Order'!S468)","v":""},{"$f":"IF('1. Order'!T468=\"\",\"\",'1. Order'!T468)","v":""},{"$f":"IF('1. Order'!U468=\"\",\"\",'1. Order'!U468)","v":""},{"$f":"IF('1. Order'!X468=\"\",\"\",'1. Order'!X468)","v":""},{"$f":"IF('1. Order'!Y468=\"\",\"\",'1. Order'!Y468)","v":""},{"$f":"IF('1. Order'!Z468=\"\",\"\",'1. Order'!Z468)","v":""},{"$f":"IF('1. Order'!AC468=\"\",\"\",'1. Order'!AC468)","v":""},{"$f":"IF('1. Order'!AD468=\"\",\"\",'1. Order'!AD468)","v":""},{"$f":"IF('1. Order'!AE468=\"\",\"\",'1. Order'!AE468)","v":""},null,{"$f":"IF('1. Order'!AW468=\"\",\"\",'1. Order'!AW468)","v":""},{"$f":"IF('1. Order'!AX468=\"\",\"\",'1. Order'!AX468)","v":""},null,null,null,null,null,null,null,{"$f":"IF('1. Order'!BB468=\"\",\"\",'1. Order'!BB468)","v":""},{"$f":"IF('1. Order'!BC468=\"\",\"\",'1. Order'!BC468)","v":""},{"$f":"IF('1. Order'!BD468=\"\",\"\",'1. Order'!BD468)","v":""},{"$f":"IF('1. Order'!BE468=\"\",\"\",'1. Order'!BE468)","v":""},{"$f":"IF('1. Order'!BG468=\"\",\"\",'1. Order'!BG468)","v":""},{"$f":"IF('1. Order'!BH468=\"\",\"\",'1. Order'!BH468)","v":""},{"$f":"IF('1. Order'!BI468=\"\",\"\",'1. Order'!BI468)","v":""},{"$f":"IF('1. Order'!BJ468=\"\",\"\",'1. Order'!BJ468)","v":""},{"$f":"IF('1. Order'!BK468=\"\",\"\",'1. Order'!BK468)","v":"ZWO"}]
[{"$f":"IF('1. Order'!G469=\"\",\"\",'1. Order'!G469)","v":""},{"$f":"IF('1. Order'!H469=\"\",\"\",'1. Order'!H469)","v":""},{"$f":"IF('1. Order'!I469=\"\",\"\",'1. Order'!I469)","v":""},{"$f":"IF('1. Order'!J469=\"\",\"\",'1. Order'!J469)","v":""},{"$f":"IF('1. Order'!K469=\"\",\"\",'1. Order'!K469)","v":""},{"$f":"IF('1. Order'!L469=\"\",\"\",'1. Order'!L469)","v":""},{"$f":"IF('1. Order'!M469=\"\",\"\",'1. Order'!M469)","v":""},{"$f":"IF('1. Order'!N469=\"\",\"\",'1. Order'!N469)","v":""},{"$f":"IF('1. Order'!P469=\"\",\"\",'1. Order'!P469)","v":""},{"$f":"IF('1. Order'!Q469=\"\",\"\",'1. Order'!Q469)","v":{"$error":"#N/A"}},{"$f":"IF('1. Order'!R469=\"\",\"\",'1. Order'!R469)","v":{"$error":"#N/A"}},{"$f":"IF('1. Order'!S469=\"\",\"\",'1. Order'!S469)","v":""},{"$f":"IF('1. Order'!T469=\"\",\"\",'1. Order'!T469)","v":""},{"$f":"IF('1. Order'!U469=\"\",\"\",'1. Order'!U469)","v":""},{"$f":"IF('1. Order'!X469=\"\",\"\",'1. Order'!X469)","v":""},{"$f":"IF('1. Order'!Y469=\"\",\"\",'1. Order'!Y469)","v":""},{"$f":"IF('1. Order'!Z469=\"\",\"\",'1. Order'!Z469)","v":""},{"$f":"IF('1. Order'!AC469=\"\",\"\",'1. Order'!AC469)","v":""},{"$f":"IF('1. Order'!AD469=\"\",\"\",'1. Order'!AD469)","v":""},{"$f":"IF('1. Order'!AE469=\"\",\"\",'1. Order'!AE469)","v":""},null,{"$f":"IF('1. Order'!AW469=\"\",\"\",'1. Order'!AW469)","v":""},{"$f":"IF('1. Order'!AX469=\"\",\"\",'1. Order'!AX469)","v":""},null,null,null,null,null,null,null,{"$f":"IF('1. Order'!BB469=\"\",\"\",'1. Order'!BB469)","v":""},{"$f":"IF('1. Order'!BC469=\"\",\"\",'1. Order'!BC469)","v":""},{"$f":"IF('1. Order'!BD469=\"\",\"\",'1. Order'!BD469)","v":""},{"$f":"IF('1. Order'!BE469=\"\",\"\",'1. Order'!BE469)","v":""},{"$f":"IF('1. Order'!BG469=\"\",\"\",'1. Order'!BG469)","v":""},{"$f":"IF('1. Order'!BH469=\"\",\"\",'1. Order'!BH469)","v":""},{"$f":"IF('1. Order'!BI469=\"\",\"\",'1. Order'!BI469)","v":""},{"$f":"IF('1. Order'!BJ469=\"\",\"\",'1. Order'!BJ469)","v":""},{"$f":"IF('1. Order'!BK469=\"\",\"\",'1. Order'!BK469)","v":"ZWO"}]
[{"$f":"IF('1. Order'!G470=\"\",\"\",'1. Order'!G470)","v":""},{"$f":"IF('1. Order'!H470=\"\",\"\",'1. Order'!H470)","v":""},{"$f":"IF('1. Order'!I470=\"\",\"\",'1. Order'!I470)","v":""},{"$f":"IF('1. Order'!J470=\"\",\"\",'1. Order'!J470)","v":""},{"$f":"IF('1. Order'!K470=\"\",\"\",'1. Order'!K470)","v":""},{"$f":"IF('1. Order'!L470=\"\",\"\",'1. Order'!L470)","v":""},{"$f":"IF('1. Order'!M470=\"\",\"\",'1. Order'!M470)","v":""},{"$f":"IF('1. Order'!N470=\"\",\"\",'1. Order'!N470)","v":""},{"$f":"IF('1. Order'!P470=\"\",\"\",'1. Order'!P470)","v":""},{"$f":"IF('1. Order'!Q470=\"\",\"\",'1. Order'!Q470)","v":{"$error":"#N/A"}},{"$f":"IF('1. Order'!R470=\"\",\"\",'1. Order'!R470)","v":{"$error":"#N/A"}},{"$f":"IF('1. Order'!S470=\"\",\"\",'1. Order'!S470)","v":""},{"$f":"IF('1. Order'!T470=\"\",\"\",'1. Order'!T470)","v":""},{"$f":"IF('1. Order'!U470=\"\",\"\",'1. Order'!U470)","v":""},{"$f":"IF('1. Order'!X470=\"\",\"\",'1. Order'!X470)","v":""},{"$f":"IF('1. Order'!Y470=\"\",\"\",'1. Order'!Y470)","v":""},{"$f":"IF('1. Order'!Z470=\"\",\"\",'1. Order'!Z470)","v":""},{"$f":"IF('1. Order'!AC470=\"\",\"\",'1. Order'!AC470)","v":""},{"$f":"IF('1. Order'!AD470=\"\",\"\",'1. Order'!AD470)","v":""},{"$f":"IF('1. Order'!AE470=\"\",\"\",'1. Order'!AE470)","v":""},null,{"$f":"IF('1. Order'!AW470=\"\",\"\",'1. Order'!AW470)","v":""},{"$f":"IF('1. Order'!AX470=\"\",\"\",'1. Order'!AX470)","v":""},null,null,null,null,null,null,null,{"$f":"IF('1. Order'!BB470=\"\",\"\",'1. Order'!BB470)","v":""},{"$f":"IF('1. Order'!BC470=\"\",\"\",'1. Order'!BC470)","v":""},{"$f":"IF('1. Order'!BD470=\"\",\"\",'1. Order'!BD470)","v":""},{"$f":"IF('1. Order'!BE470=\"\",\"\",'1. Order'!BE470)","v":""},{"$f":"IF('1. Order'!BG470=\"\",\"\",'1. Order'!BG470)","v":""},{"$f":"IF('1. Order'!BH470=\"\",\"\",'1. Order'!BH470)","v":""},{"$f":"IF('1. Order'!BI470=\"\",\"\",'1. Order'!BI470)","v":""},{"$f":"IF('1. Order'!BJ470=\"\",\"\",'1. Order'!BJ470)","v":""},{"$f":"IF('1. Order'!BK470=\"\",\"\",'1. Order'!BK470)","v":"ZWO"}]
[{"$f":"IF('1. Order'!G471=\"\",\"\",'1. Order'!G471)","v":""},{"$f":"IF('1. Order'!H471=\"\",\"\",'1. Order'!H471)","v":""},{"$f":"IF('1. Order'!I471=\"\",\"\",'1. Order'!I471)","v":""},{"$f":"IF('1. Order'!J471=\"\",\"\",'1. Order'!J471)","v":""},{"$f":"IF('1. Order'!K471=\"\",\"\",'1. Order'!K471)","v":""},{"$f":"IF('1. Order'!L471=\"\",\"\",'1. Order'!L471)","v":""},{"$f":"IF('1. Order'!M471=\"\",\"\",'1. Order'!M471)","v":""},{"$f":"IF('1. Order'!N471=\"\",\"\",'1. Order'!N471)","v":""},{"$f":"IF('1. Order'!P471=\"\",\"\",'1. Order'!P471)","v":""},{"$f":"IF('1. Order'!Q471=\"\",\"\",'1. Order'!Q471)","v":{"$error":"#N/A"}},{"$f":"IF('1. Order'!R471=\"\",\"\",'1. Order'!R471)","v":{"$error":"#N/A"}},{"$f":"IF('1. Order'!S471=\"\",\"\",'1. Order'!S471)","v":""},{"$f":"IF('1. Order'!T471=\"\",\"\",'1. Order'!T471)","v":""},{"$f":"IF('1. Order'!U471=\"\",\"\",'1. Order'!U471)","v":""},{"$f":"IF('1. Order'!X471=\"\",\"\",'1. Order'!X471)","v":""},{"$f":"IF('1. Order'!Y471=\"\",\"\",'1. Order'!Y471)","v":""},{"$f":"IF('1. Order'!Z471=\"\",\"\",'1. Order'!Z471)","v":""},{"$f":"IF('1. Order'!AC471=\"\",\"\",'1. Order'!AC471)","v":""},{"$f":"IF('1. Order'!AD471=\"\",\"\",'1. Order'!AD471)","v":""},{"$f":"IF('1. Order'!AE471=\"\",\"\",'1. Order'!AE471)","v":""},null,{"$f":"IF('1. Order'!AW471=\"\",\"\",'1. Order'!AW471)","v":""},{"$f":"IF('1. Order'!AX471=\"\",\"\",'1. Order'!AX471)","v":""},null,null,null,null,null,null,null,{"$f":"IF('1. Order'!BB471=\"\",\"\",'1. Order'!BB471)","v":""},{"$f":"IF('1. Order'!BC471=\"\",\"\",'1. Order'!BC471)","v":""},{"$f":"IF('1. Order'!BD471=\"\",\"\",'1. Order'!BD471)","v":""},{"$f":"IF('1. Order'!BE471=\"\",\"\",'1. Order'!BE471)","v":""},{"$f":"IF('1. Order'!BG471=\"\",\"\",'1. Order'!BG471)","v":""},{"$f":"IF('1. Order'!BH471=\"\",\"\",'1. Order'!BH471)","v":""},{"$f":"IF('1. Order'!BI471=\"\",\"\",'1. Order'!BI471)","v":""},{"$f":"IF('1. Order'!BJ471=\"\",\"\",'1. Order'!BJ471)","v":""},{"$f":"IF('1. Order'!BK471=\"\",\"\",'1. Order'!BK471)","v":"ZWO"}]
[{"$f":"IF('1. Order'!G472=\"\",\"\",'1. Order'!G472)","v":""},{"$f":"IF('1. Order'!H472=\"\",\"\",'1. Order'!H472)","v":""},{"$f":"IF('1. Order'!I472=\"\",\"\",'1. Order'!I472)","v":""},{"$f":"IF('1. Order'!J472=\"\",\"\",'1. Order'!J472)","v":""},{"$f":"IF('1. Order'!K472=\"\",\"\",'1. Order'!K472)","v":""},{"$f":"IF('1. Order'!L472=\"\",\"\",'1. Order'!L472)","v":""},{"$f":"IF('1. Order'!M472=\"\",\"\",'1. Order'!M472)","v":""},{"$f":"IF('1. Order'!N472=\"\",\"\",'1. Order'!N472)","v":""},{"$f":"IF('1. Order'!P472=\"\",\"\",'1. Order'!P472)","v":""},{"$f":"IF('1. Order'!Q472=\"\",\"\",'1. Order'!Q472)","v":{"$error":"#N/A"}},{"$f":"IF('1. Order'!R472=\"\",\"\",'1. Order'!R472)","v":{"$error":"#N/A"}},{"$f":"IF('1. Order'!S472=\"\",\"\",'1. Order'!S472)","v":""},{"$f":"IF('1. Order'!T472=\"\",\"\",'1. Order'!T472)","v":""},{"$f":"IF('1. Order'!U472=\"\",\"\",'1. Order'!U472)","v":""},{"$f":"IF('1. Order'!X472=\"\",\"\",'1. Order'!X472)","v":""},{"$f":"IF('1. Order'!Y472=\"\",\"\",'1. Order'!Y472)","v":""},{"$f":"IF('1. Order'!Z472=\"\",\"\",'1. Order'!Z472)","v":""},{"$f":"IF('1. Order'!AC472=\"\",\"\",'1. Order'!AC472)","v":""},{"$f":"IF('1. Order'!AD472=\"\",\"\",'1. Order'!AD472)","v":""},{"$f":"IF('1. Order'!AE472=\"\",\"\",'1. Order'!AE472)","v":""},null,{"$f":"IF('1. Order'!AW472=\"\",\"\",'1. Order'!AW472)","v":""},{"$f":"IF('1. Order'!AX472=\"\",\"\",'1. Order'!AX472)","v":""},null,null,null,null,null,null,null,{"$f":"IF('1. Order'!BB472=\"\",\"\",'1. Order'!BB472)","v":""},{"$f":"IF('1. Order'!BC472=\"\",\"\",'1. Order'!BC472)","v":""},{"$f":"IF('1. Order'!BD472=\"\",\"\",'1. Order'!BD472)","v":""},{"$f":"IF('1. Order'!BE472=\"\",\"\",'1. Order'!BE472)","v":""},{"$f":"IF('1. Order'!BG472=\"\",\"\",'1. Order'!BG472)","v":""},{"$f":"IF('1. Order'!BH472=\"\",\"\",'1. Order'!BH472)","v":""},{"$f":"IF('1. Order'!BI472=\"\",\"\",'1. Order'!BI472)","v":""},{"$f":"IF('1. Order'!BJ472=\"\",\"\",'1. Order'!BJ472)","v":""},{"$f":"IF('1. Order'!BK472=\"\",\"\",'1. Order'!BK472)","v":"ZWO"}]
[{"$f":"IF('1. Order'!G473=\"\",\"\",'1. Order'!G473)","v":""},{"$f":"IF('1. Order'!H473=\"\",\"\",'1. Order'!H473)","v":""},{"$f":"IF('1. Order'!I473=\"\",\"\",'1. Order'!I473)","v":""},{"$f":"IF('1. Order'!J473=\"\",\"\",'1. Order'!J473)","v":""},{"$f":"IF('1. Order'!K473=\"\",\"\",'1. Order'!K473)","v":""},{"$f":"IF('1. Order'!L473=\"\",\"\",'1. Order'!L473)","v":""},{"$f":"IF('1. Order'!M473=\"\",\"\",'1. Order'!M473)","v":""},{"$f":"IF('1. Order'!N473=\"\",\"\",'1. Order'!N473)","v":""},{"$f":"IF('1. Order'!P473=\"\",\"\",'1. Order'!P473)","v":""},{"$f":"IF('1. Order'!Q473=\"\",\"\",'1. Order'!Q473)","v":{"$error":"#N/A"}},{"$f":"IF('1. Order'!R473=\"\",\"\",'1. Order'!R473)","v":{"$error":"#N/A"}},{"$f":"IF('1. Order'!S473=\"\",\"\",'1. Order'!S473)","v":""},{"$f":"IF('1. Order'!T473=\"\",\"\",'1. Order'!T473)","v":""},{"$f":"IF('1. Order'!U473=\"\",\"\",'1. Order'!U473)","v":""},{"$f":"IF('1. Order'!X473=\"\",\"\",'1. Order'!X473)","v":""},{"$f":"IF('1. Order'!Y473=\"\",\"\",'1. Order'!Y473)","v":""},{"$f":"IF('1. Order'!Z473=\"\",\"\",'1. Order'!Z473)","v":""},{"$f":"IF('1. Order'!AC473=\"\",\"\",'1. Order'!AC473)","v":""},{"$f":"IF('1. Order'!AD473=\"\",\"\",'1. Order'!AD473)","v":""},{"$f":"IF('1. Order'!AE473=\"\",\"\",'1. Order'!AE473)","v":""},null,{"$f":"IF('1. Order'!AW473=\"\",\"\",'1. Order'!AW473)","v":""},{"$f":"IF('1. Order'!AX473=\"\",\"\",'1. Order'!AX473)","v":""},null,null,null,null,null,null,null,{"$f":"IF('1. Order'!BB473=\"\",\"\",'1. Order'!BB473)","v":""},{"$f":"IF('1. Order'!BC473=\"\",\"\",'1. Order'!BC473)","v":""},{"$f":"IF('1. Order'!BD473=\"\",\"\",'1. Order'!BD473)","v":""},{"$f":"IF('1. Order'!BE473=\"\",\"\",'1. Order'!BE473)","v":""},{"$f":"IF('1. Order'!BG473=\"\",\"\",'1. Order'!BG473)","v":""},{"$f":"IF('1. Order'!BH473=\"\",\"\",'1. Order'!BH473)","v":""},{"$f":"IF('1. Order'!BI473=\"\",\"\",'1. Order'!BI473)","v":""},{"$f":"IF('1. Order'!BJ473=\"\",\"\",'1. Order'!BJ473)","v":""},{"$f":"IF('1. Order'!BK473=\"\",\"\",'1. Order'!BK473)","v":"ZWO"}]
[{"$f":"IF('1. Order'!G474=\"\",\"\",'1. Order'!G474)","v":""},{"$f":"IF('1. Order'!H474=\"\",\"\",'1. Order'!H474)","v":""},{"$f":"IF('1. Order'!I474=\"\",\"\",'1. Order'!I474)","v":""},{"$f":"IF('1. Order'!J474=\"\",\"\",'1. Order'!J474)","v":""},{"$f":"IF('1. Order'!K474=\"\",\"\",'1. Order'!K474)","v":""},{"$f":"IF('1. Order'!L474=\"\",\"\",'1. Order'!L474)","v":""},{"$f":"IF('1. Order'!M474=\"\",\"\",'1. Order'!M474)","v":""},{"$f":"IF('1. Order'!N474=\"\",\"\",'1. Order'!N474)","v":""},{"$f":"IF('1. Order'!P474=\"\",\"\",'1. Order'!P474)","v":""},{"$f":"IF('1. Order'!Q474=\"\",\"\",'1. Order'!Q474)","v":{"$error":"#N/A"}},{"$f":"IF('1. Order'!R474=\"\",\"\",'1. Order'!R474)","v":{"$error":"#N/A"}},{"$f":"IF('1. Order'!S474=\"\",\"\",'1. Order'!S474)","v":""},{"$f":"IF('1. Order'!T474=\"\",\"\",'1. Order'!T474)","v":""},{"$f":"IF('1. Order'!U474=\"\",\"\",'1. Order'!U474)","v":""},{"$f":"IF('1. Order'!X474=\"\",\"\",'1. Order'!X474)","v":""},{"$f":"IF('1. Order'!Y474=\"\",\"\",'1. Order'!Y474)","v":""},{"$f":"IF('1. Order'!Z474=\"\",\"\",'1. Order'!Z474)","v":""},{"$f":"IF('1. Order'!AC474=\"\",\"\",'1. Order'!AC474)","v":""},{"$f":"IF('1. Order'!AD474=\"\",\"\",'1. Order'!AD474)","v":""},{"$f":"IF('1. Order'!AE474=\"\",\"\",'1. Order'!AE474)","v":""},null,{"$f":"IF('1. Order'!AW474=\"\",\"\",'1. Order'!AW474)","v":""},{"$f":"IF('1. Order'!AX474=\"\",\"\",'1. Order'!AX474)","v":""},null,null,null,null,null,null,null,{"$f":"IF('1. Order'!BB474=\"\",\"\",'1. Order'!BB474)","v":""},{"$f":"IF('1. Order'!BC474=\"\",\"\",'1. Order'!BC474)","v":""},{"$f":"IF('1. Order'!BD474=\"\",\"\",'1. Order'!BD474)","v":""},{"$f":"IF('1. Order'!BE474=\"\",\"\",'1. Order'!BE474)","v":""},{"$f":"IF('1. Order'!BG474=\"\",\"\",'1. Order'!BG474)","v":""},{"$f":"IF('1. Order'!BH474=\"\",\"\",'1. Order'!BH474)","v":""},{"$f":"IF('1. Order'!BI474=\"\",\"\",'1. Order'!BI474)","v":""},{"$f":"IF('1. Order'!BJ474=\"\",\"\",'1. Order'!BJ474)","v":""},{"$f":"IF('1. Order'!BK474=\"\",\"\",'1. Order'!BK474)","v":"ZWO"}]
[{"$f":"IF('1. Order'!G475=\"\",\"\",'1. Order'!G475)","v":""},{"$f":"IF('1. Order'!H475=\"\",\"\",'1. Order'!H475)","v":""},{"$f":"IF('1. Order'!I475=\"\",\"\",'1. Order'!I475)","v":""},{"$f":"IF('1. Order'!J475=\"\",\"\",'1. Order'!J475)","v":""},{"$f":"IF('1. Order'!K475=\"\",\"\",'1. Order'!K475)","v":""},{"$f":"IF('1. Order'!L475=\"\",\"\",'1. Order'!L475)","v":""},{"$f":"IF('1. Order'!M475=\"\",\"\",'1. Order'!M475)","v":""},{"$f":"IF('1. Order'!N475=\"\",\"\",'1. Order'!N475)","v":""},{"$f":"IF('1. Order'!P475=\"\",\"\",'1. Order'!P475)","v":""},{"$f":"IF('1. Order'!Q475=\"\",\"\",'1. Order'!Q475)","v":{"$error":"#N/A"}},{"$f":"IF('1. Order'!R475=\"\",\"\",'1. Order'!R475)","v":{"$error":"#N/A"}},{"$f":"IF('1. Order'!S475=\"\",\"\",'1. Order'!S475)","v":""},{"$f":"IF('1. Order'!T475=\"\",\"\",'1. Order'!T475)","v":""},{"$f":"IF('1. Order'!U475=\"\",\"\",'1. Order'!U475)","v":""},{"$f":"IF('1. Order'!X475=\"\",\"\",'1. Order'!X475)","v":""},{"$f":"IF('1. Order'!Y475=\"\",\"\",'1. Order'!Y475)","v":""},{"$f":"IF('1. Order'!Z475=\"\",\"\",'1. Order'!Z475)","v":""},{"$f":"IF('1. Order'!AC475=\"\",\"\",'1. Order'!AC475)","v":""},{"$f":"IF('1. Order'!AD475=\"\",\"\",'1. Order'!AD475)","v":""},{"$f":"IF('1. Order'!AE475=\"\",\"\",'1. Order'!AE475)","v":""},null,{"$f":"IF('1. Order'!AW475=\"\",\"\",'1. Order'!AW475)","v":""},{"$f":"IF('1. Order'!AX475=\"\",\"\",'1. Order'!AX475)","v":""},null,null,null,null,null,null,null,{"$f":"IF('1. Order'!BB475=\"\",\"\",'1. Order'!BB475)","v":""},{"$f":"IF('1. Order'!BC475=\"\",\"\",'1. Order'!BC475)","v":""},{"$f":"IF('1. Order'!BD475=\"\",\"\",'1. Order'!BD475)","v":""},{"$f":"IF('1. Order'!BE475=\"\",\"\",'1. Order'!BE475)","v":""},{"$f":"IF('1. Order'!BG475=\"\",\"\",'1. Order'!BG475)","v":""},{"$f":"IF('1. Order'!BH475=\"\",\"\",'1. Order'!BH475)","v":""},{"$f":"IF('1. Order'!BI475=\"\",\"\",'1. Order'!BI475)","v":""},{"$f":"IF('1. Order'!BJ475=\"\",\"\",'1. Order'!BJ475)","v":""},{"$f":"IF('1. Order'!BK475=\"\",\"\",'1. Order'!BK475)","v":"ZWO"}]
[{"$f":"IF('1. Order'!G476=\"\",\"\",'1. Order'!G476)","v":""},{"$f":"IF('1. Order'!H476=\"\",\"\",'1. Order'!H476)","v":""},{"$f":"IF('1. Order'!I476=\"\",\"\",'1. Order'!I476)","v":""},{"$f":"IF('1. Order'!J476=\"\",\"\",'1. Order'!J476)","v":""},{"$f":"IF('1. Order'!K476=\"\",\"\",'1. Order'!K476)","v":""},{"$f":"IF('1. Order'!L476=\"\",\"\",'1. Order'!L476)","v":""},{"$f":"IF('1. Order'!M476=\"\",\"\",'1. Order'!M476)","v":""},{"$f":"IF('1. Order'!N476=\"\",\"\",'1. Order'!N476)","v":""},{"$f":"IF('1. Order'!P476=\"\",\"\",'1. Order'!P476)","v":""},{"$f":"IF('1. Order'!Q476=\"\",\"\",'1. Order'!Q476)","v":{"$error":"#N/A"}},{"$f":"IF('1. Order'!R476=\"\",\"\",'1. Order'!R476)","v":{"$error":"#N/A"}},{"$f":"IF('1. Order'!S476=\"\",\"\",'1. Order'!S476)","v":""},{"$f":"IF('1. Order'!T476=\"\",\"\",'1. Order'!T476)","v":""},{"$f":"IF('1. Order'!U476=\"\",\"\",'1. Order'!U476)","v":""},{"$f":"IF('1. Order'!X476=\"\",\"\",'1. Order'!X476)","v":""},{"$f":"IF('1. Order'!Y476=\"\",\"\",'1. Order'!Y476)","v":""},{"$f":"IF('1. Order'!Z476=\"\",\"\",'1. Order'!Z476)","v":""},{"$f":"IF('1. Order'!AC476=\"\",\"\",'1. Order'!AC476)","v":""},{"$f":"IF('1. Order'!AD476=\"\",\"\",'1. Order'!AD476)","v":""},{"$f":"IF('1. Order'!AE476=\"\",\"\",'1. Order'!AE476)","v":""},null,{"$f":"IF('1. Order'!AW476=\"\",\"\",'1. Order'!AW476)","v":""},{"$f":"IF('1. Order'!AX476=\"\",\"\",'1. Order'!AX476)","v":""},null,null,null,null,null,null,null,{"$f":"IF('1. Order'!BB476=\"\",\"\",'1. Order'!BB476)","v":""},{"$f":"IF('1. Order'!BC476=\"\",\"\",'1. Order'!BC476)","v":""},{"$f":"IF('1. Order'!BD476=\"\",\"\",'1. Order'!BD476)","v":""},{"$f":"IF('1. Order'!BE476=\"\",\"\",'1. Order'!BE476)","v":""},{"$f":"IF('1. Order'!BG476=\"\",\"\",'1. Order'!BG476)","v":""},{"$f":"IF('1. Order'!BH476=\"\",\"\",'1. Order'!BH476)","v":""},{"$f":"IF('1. Order'!BI476=\"\",\"\",'1. Order'!BI476)","v":""},{"$f":"IF('1. Order'!BJ476=\"\",\"\",'1. Order'!BJ476)","v":""},{"$f":"IF('1. Order'!BK476=\"\",\"\",'1. Order'!BK476)","v":"ZWO"}]
[{"$f":"IF('1. Order'!G477=\"\",\"\",'1. Order'!G477)","v":""},{"$f":"IF('1. Order'!H477=\"\",\"\",'1. Order'!H477)","v":""},{"$f":"IF('1. Order'!I477=\"\",\"\",'1. Order'!I477)","v":""},{"$f":"IF('1. Order'!J477=\"\",\"\",'1. Order'!J477)","v":""},{"$f":"IF('1. Order'!K477=\"\",\"\",'1. Order'!K477)","v":""},{"$f":"IF('1. Order'!L477=\"\",\"\",'1. Order'!L477)","v":""},{"$f":"IF('1. Order'!M477=\"\",\"\",'1. Order'!M477)","v":""},{"$f":"IF('1. Order'!N477=\"\",\"\",'1. Order'!N477)","v":""},{"$f":"IF('1. Order'!P477=\"\",\"\",'1. Order'!P477)","v":""},{"$f":"IF('1. Order'!Q477=\"\",\"\",'1. Order'!Q477)","v":{"$error":"#N/A"}},{"$f":"IF('1. Order'!R477=\"\",\"\",'1. Order'!R477)","v":{"$error":"#N/A"}},{"$f":"IF('1. Order'!S477=\"\",\"\",'1. Order'!S477)","v":""},{"$f":"IF('1. Order'!T477=\"\",\"\",'1. Order'!T477)","v":""},{"$f":"IF('1. Order'!U477=\"\",\"\",'1. Order'!U477)","v":""},{"$f":"IF('1. Order'!X477=\"\",\"\",'1. Order'!X477)","v":""},{"$f":"IF('1. Order'!Y477=\"\",\"\",'1. Order'!Y477)","v":""},{"$f":"IF('1. Order'!Z477=\"\",\"\",'1. Order'!Z477)","v":""},{"$f":"IF('1. Order'!AC477=\"\",\"\",'1. Order'!AC477)","v":""},{"$f":"IF('1. Order'!AD477=\"\",\"\",'1. Order'!AD477)","v":""},{"$f":"IF('1. Order'!AE477=\"\",\"\",'1. Order'!AE477)","v":""},null,{"$f":"IF('1. Order'!AW477=\"\",\"\",'1. Order'!AW477)","v":""},{"$f":"IF('1. Order'!AX477=\"\",\"\",'1. Order'!AX477)","v":""},null,null,null,null,null,null,null,{"$f":"IF('1. Order'!BB477=\"\",\"\",'1. Order'!BB477)","v":""},{"$f":"IF('1. Order'!BC477=\"\",\"\",'1. Order'!BC477)","v":""},{"$f":"IF('1. Order'!BD477=\"\",\"\",'1. Order'!BD477)","v":""},{"$f":"IF('1. Order'!BE477=\"\",\"\",'1. Order'!BE477)","v":""},{"$f":"IF('1. Order'!BG477=\"\",\"\",'1. Order'!BG477)","v":""},{"$f":"IF('1. Order'!BH477=\"\",\"\",'1. Order'!BH477)","v":""},{"$f":"IF('1. Order'!BI477=\"\",\"\",'1. Order'!BI477)","v":""},{"$f":"IF('1. Order'!BJ477=\"\",\"\",'1. Order'!BJ477)","v":""},{"$f":"IF('1. Order'!BK477=\"\",\"\",'1. Order'!BK477)","v":"ZWO"}]
[{"$f":"IF('1. Order'!G478=\"\",\"\",'1. Order'!G478)","v":""},{"$f":"IF('1. Order'!H478=\"\",\"\",'1. Order'!H478)","v":""},{"$f":"IF('1. Order'!I478=\"\",\"\",'1. Order'!I478)","v":""},{"$f":"IF('1. Order'!J478=\"\",\"\",'1. Order'!J478)","v":""},{"$f":"IF('1. Order'!K478=\"\",\"\",'1. Order'!K478)","v":""},{"$f":"IF('1. Order'!L478=\"\",\"\",'1. Order'!L478)","v":""},{"$f":"IF('1. Order'!M478=\"\",\"\",'1. Order'!M478)","v":""},{"$f":"IF('1. Order'!N478=\"\",\"\",'1. Order'!N478)","v":""},{"$f":"IF('1. Order'!P478=\"\",\"\",'1. Order'!P478)","v":""},{"$f":"IF('1. Order'!Q478=\"\",\"\",'1. Order'!Q478)","v":{"$error":"#N/A"}},{"$f":"IF('1. Order'!R478=\"\",\"\",'1. Order'!R478)","v":{"$error":"#N/A"}},{"$f":"IF('1. Order'!S478=\"\",\"\",'1. Order'!S478)","v":""},{"$f":"IF('1. Order'!T478=\"\",\"\",'1. Order'!T478)","v":""},{"$f":"IF('1. Order'!U478=\"\",\"\",'1. Order'!U478)","v":""},{"$f":"IF('1. Order'!X478=\"\",\"\",'1. Order'!X478)","v":""},{"$f":"IF('1. Order'!Y478=\"\",\"\",'1. Order'!Y478)","v":""},{"$f":"IF('1. Order'!Z478=\"\",\"\",'1. Order'!Z478)","v":""},{"$f":"IF('1. Order'!AC478=\"\",\"\",'1. Order'!AC478)","v":""},{"$f":"IF('1. Order'!AD478=\"\",\"\",'1. Order'!AD478)","v":""},{"$f":"IF('1. Order'!AE478=\"\",\"\",'1. Order'!AE478)","v":""},null,{"$f":"IF('1. Order'!AW478=\"\",\"\",'1. Order'!AW478)","v":""},{"$f":"IF('1. Order'!AX478=\"\",\"\",'1. Order'!AX478)","v":""},null,null,null,null,null,null,null,{"$f":"IF('1. Order'!BB478=\"\",\"\",'1. Order'!BB478)","v":""},{"$f":"IF('1. Order'!BC478=\"\",\"\",'1. Order'!BC478)","v":""},{"$f":"IF('1. Order'!BD478=\"\",\"\",'1. Order'!BD478)","v":""},{"$f":"IF('1. Order'!BE478=\"\",\"\",'1. Order'!BE478)","v":""},{"$f":"IF('1. Order'!BG478=\"\",\"\",'1. Order'!BG478)","v":""},{"$f":"IF('1. Order'!BH478=\"\",\"\",'1. Order'!BH478)","v":""},{"$f":"IF('1. Order'!BI478=\"\",\"\",'1. Order'!BI478)","v":""},{"$f":"IF('1. Order'!BJ478=\"\",\"\",'1. Order'!BJ478)","v":""},{"$f":"IF('1. Order'!BK478=\"\",\"\",'1. Order'!BK478)","v":"ZWO"}]
[{"$f":"IF('1. Order'!G479=\"\",\"\",'1. Order'!G479)","v":""},{"$f":"IF('1. Order'!H479=\"\",\"\",'1. Order'!H479)","v":""},{"$f":"IF('1. Order'!I479=\"\",\"\",'1. Order'!I479)","v":""},{"$f":"IF('1. Order'!J479=\"\",\"\",'1. Order'!J479)","v":""},{"$f":"IF('1. Order'!K479=\"\",\"\",'1. Order'!K479)","v":""},{"$f":"IF('1. Order'!L479=\"\",\"\",'1. Order'!L479)","v":""},{"$f":"IF('1. Order'!M479=\"\",\"\",'1. Order'!M479)","v":""},{"$f":"IF('1. Order'!N479=\"\",\"\",'1. Order'!N479)","v":""},{"$f":"IF('1. Order'!P479=\"\",\"\",'1. Order'!P479)","v":""},{"$f":"IF('1. Order'!Q479=\"\",\"\",'1. Order'!Q479)","v":{"$error":"#N/A"}},{"$f":"IF('1. Order'!R479=\"\",\"\",'1. Order'!R479)","v":{"$error":"#N/A"}},{"$f":"IF('1. Order'!S479=\"\",\"\",'1. Order'!S479)","v":""},{"$f":"IF('1. Order'!T479=\"\",\"\",'1. Order'!T479)","v":""},{"$f":"IF('1. Order'!U479=\"\",\"\",'1. Order'!U479)","v":""},{"$f":"IF('1. Order'!X479=\"\",\"\",'1. Order'!X479)","v":""},{"$f":"IF('1. Order'!Y479=\"\",\"\",'1. Order'!Y479)","v":""},{"$f":"IF('1. Order'!Z479=\"\",\"\",'1. Order'!Z479)","v":""},{"$f":"IF('1. Order'!AC479=\"\",\"\",'1. Order'!AC479)","v":""},{"$f":"IF('1. Order'!AD479=\"\",\"\",'1. Order'!AD479)","v":""},{"$f":"IF('1. Order'!AE479=\"\",\"\",'1. Order'!AE479)","v":""},null,{"$f":"IF('1. Order'!AW479=\"\",\"\",'1. Order'!AW479)","v":""},{"$f":"IF('1. Order'!AX479=\"\",\"\",'1. Order'!AX479)","v":""},null,null,null,null,null,null,null,{"$f":"IF('1. Order'!BB479=\"\",\"\",'1. Order'!BB479)","v":""},{"$f":"IF('1. Order'!BC479=\"\",\"\",'1. Order'!BC479)","v":""},{"$f":"IF('1. Order'!BD479=\"\",\"\",'1. Order'!BD479)","v":""},{"$f":"IF('1. Order'!BE479=\"\",\"\",'1. Order'!BE479)","v":""},{"$f":"IF('1. Order'!BG479=\"\",\"\",'1. Order'!BG479)","v":""},{"$f":"IF('1. Order'!BH479=\"\",\"\",'1. Order'!BH479)","v":""},{"$f":"IF('1. Order'!BI479=\"\",\"\",'1. Order'!BI479)","v":""},{"$f":"IF('1. Order'!BJ479=\"\",\"\",'1. Order'!BJ479)","v":""},{"$f":"IF('1. Order'!BK479=\"\",\"\",'1. Order'!BK479)","v":"ZWO"}]
[{"$f":"IF('1. Order'!G480=\"\",\"\",'1. Order'!G480)","v":""},{"$f":"IF('1. Order'!H480=\"\",\"\",'1. Order'!H480)","v":""},{"$f":"IF('1. Order'!I480=\"\",\"\",'1. Order'!I480)","v":""},{"$f":"IF('1. Order'!J480=\"\",\"\",'1. Order'!J480)","v":""},{"$f":"IF('1. Order'!K480=\"\",\"\",'1. Order'!K480)","v":""},{"$f":"IF('1. Order'!L480=\"\",\"\",'1. Order'!L480)","v":""},{"$f":"IF('1. Order'!M480=\"\",\"\",'1. Order'!M480)","v":""},{"$f":"IF('1. Order'!N480=\"\",\"\",'1. Order'!N480)","v":""},{"$f":"IF('1. Order'!P480=\"\",\"\",'1. Order'!P480)","v":""},{"$f":"IF('1. Order'!Q480=\"\",\"\",'1. Order'!Q480)","v":{"$error":"#N/A"}},{"$f":"IF('1. Order'!R480=\"\",\"\",'1. Order'!R480)","v":{"$error":"#N/A"}},{"$f":"IF('1. Order'!S480=\"\",\"\",'1. Order'!S480)","v":""},{"$f":"IF('1. Order'!T480=\"\",\"\",'1. Order'!T480)","v":""},{"$f":"IF('1. Order'!U480=\"\",\"\",'1. Order'!U480)","v":""},{"$f":"IF('1. Order'!X480=\"\",\"\",'1. Order'!X480)","v":""},{"$f":"IF('1. Order'!Y480=\"\",\"\",'1. Order'!Y480)","v":""},{"$f":"IF('1. Order'!Z480=\"\",\"\",'1. Order'!Z480)","v":""},{"$f":"IF('1. Order'!AC480=\"\",\"\",'1. Order'!AC480)","v":""},{"$f":"IF('1. Order'!AD480=\"\",\"\",'1. Order'!AD480)","v":""},{"$f":"IF('1. Order'!AE480=\"\",\"\",'1. Order'!AE480)","v":""},null,{"$f":"IF('1. Order'!AW480=\"\",\"\",'1. Order'!AW480)","v":""},{"$f":"IF('1. Order'!AX480=\"\",\"\",'1. Order'!AX480)","v":""},null,null,null,null,null,null,null,{"$f":"IF('1. Order'!BB480=\"\",\"\",'1. Order'!BB480)","v":""},{"$f":"IF('1. Order'!BC480=\"\",\"\",'1. Order'!BC480)","v":""},{"$f":"IF('1. Order'!BD480=\"\",\"\",'1. Order'!BD480)","v":""},{"$f":"IF('1. Order'!BE480=\"\",\"\",'1. Order'!BE480)","v":""},{"$f":"IF('1. Order'!BG480=\"\",\"\",'1. Order'!BG480)","v":""},{"$f":"IF('1. Order'!BH480=\"\",\"\",'1. Order'!BH480)","v":""},{"$f":"IF('1. Order'!BI480=\"\",\"\",'1. Order'!BI480)","v":""},{"$f":"IF('1. Order'!BJ480=\"\",\"\",'1. Order'!BJ480)","v":""},{"$f":"IF('1. Order'!BK480=\"\",\"\",'1. Order'!BK480)","v":"ZWO"}]
[{"$f":"IF('1. Order'!G481=\"\",\"\",'1. Order'!G481)","v":""},{"$f":"IF('1. Order'!H481=\"\",\"\",'1. Order'!H481)","v":""},{"$f":"IF('1. Order'!I481=\"\",\"\",'1. Order'!I481)","v":""},{"$f":"IF('1. Order'!J481=\"\",\"\",'1. Order'!J481)","v":""},{"$f":"IF('1. Order'!K481=\"\",\"\",'1. Order'!K481)","v":""},{"$f":"IF('1. Order'!L481=\"\",\"\",'1. Order'!L481)","v":""},{"$f":"IF('1. Order'!M481=\"\",\"\",'1. Order'!M481)","v":""},{"$f":"IF('1. Order'!N481=\"\",\"\",'1. Order'!N481)","v":""},{"$f":"IF('1. Order'!P481=\"\",\"\",'1. Order'!P481)","v":""},{"$f":"IF('1. Order'!Q481=\"\",\"\",'1. Order'!Q481)","v":{"$error":"#N/A"}},{"$f":"IF('1. Order'!R481=\"\",\"\",'1. Order'!R481)","v":{"$error":"#N/A"}},{"$f":"IF('1. Order'!S481=\"\",\"\",'1. Order'!S481)","v":""},{"$f":"IF('1. Order'!T481=\"\",\"\",'1. Order'!T481)","v":""},{"$f":"IF('1. Order'!U481=\"\",\"\",'1. Order'!U481)","v":""},{"$f":"IF('1. Order'!X481=\"\",\"\",'1. Order'!X481)","v":""},{"$f":"IF('1. Order'!Y481=\"\",\"\",'1. Order'!Y481)","v":""},{"$f":"IF('1. Order'!Z481=\"\",\"\",'1. Order'!Z481)","v":""},{"$f":"IF('1. Order'!AC481=\"\",\"\",'1. Order'!AC481)","v":""},{"$f":"IF('1. Order'!AD481=\"\",\"\",'1. Order'!AD481)","v":""},{"$f":"IF('1. Order'!AE481=\"\",\"\",'1. Order'!AE481)","v":""},null,{"$f":"IF('1. Order'!AW481=\"\",\"\",'1. Order'!AW481)","v":""},{"$f":"IF('1. Order'!AX481=\"\",\"\",'1. Order'!AX481)","v":""},null,null,null,null,null,null,null,{"$f":"IF('1. Order'!BB481=\"\",\"\",'1. Order'!BB481)","v":""},{"$f":"IF('1. Order'!BC481=\"\",\"\",'1. Order'!BC481)","v":""},{"$f":"IF('1. Order'!BD481=\"\",\"\",'1. Order'!BD481)","v":""},{"$f":"IF('1. Order'!BE481=\"\",\"\",'1. Order'!BE481)","v":""},{"$f":"IF('1. Order'!BG481=\"\",\"\",'1. Order'!BG481)","v":""},{"$f":"IF('1. Order'!BH481=\"\",\"\",'1. Order'!BH481)","v":""},{"$f":"IF('1. Order'!BI481=\"\",\"\",'1. Order'!BI481)","v":""},{"$f":"IF('1. Order'!BJ481=\"\",\"\",'1. Order'!BJ481)","v":""},{"$f":"IF('1. Order'!BK481=\"\",\"\",'1. Order'!BK481)","v":"ZWO"}]
[{"$f":"IF('1. Order'!G482=\"\",\"\",'1. Order'!G482)","v":""},{"$f":"IF('1. Order'!H482=\"\",\"\",'1. Order'!H482)","v":""},{"$f":"IF('1. Order'!I482=\"\",\"\",'1. Order'!I482)","v":""},{"$f":"IF('1. Order'!J482=\"\",\"\",'1. Order'!J482)","v":""},{"$f":"IF('1. Order'!K482=\"\",\"\",'1. Order'!K482)","v":""},{"$f":"IF('1. Order'!L482=\"\",\"\",'1. Order'!L482)","v":""},{"$f":"IF('1. Order'!M482=\"\",\"\",'1. Order'!M482)","v":""},{"$f":"IF('1. Order'!N482=\"\",\"\",'1. Order'!N482)","v":""},{"$f":"IF('1. Order'!P482=\"\",\"\",'1. Order'!P482)","v":""},{"$f":"IF('1. Order'!Q482=\"\",\"\",'1. Order'!Q482)","v":{"$error":"#N/A"}},{"$f":"IF('1. Order'!R482=\"\",\"\",'1. Order'!R482)","v":{"$error":"#N/A"}},{"$f":"IF('1. Order'!S482=\"\",\"\",'1. Order'!S482)","v":""},{"$f":"IF('1. Order'!T482=\"\",\"\",'1. Order'!T482)","v":""},{"$f":"IF('1. Order'!U482=\"\",\"\",'1. Order'!U482)","v":""},{"$f":"IF('1. Order'!X482=\"\",\"\",'1. Order'!X482)","v":""},{"$f":"IF('1. Order'!Y482=\"\",\"\",'1. Order'!Y482)","v":""},{"$f":"IF('1. Order'!Z482=\"\",\"\",'1. Order'!Z482)","v":""},{"$f":"IF('1. Order'!AC482=\"\",\"\",'1. Order'!AC482)","v":""},{"$f":"IF('1. Order'!AD482=\"\",\"\",'1. Order'!AD482)","v":""},{"$f":"IF('1. Order'!AE482=\"\",\"\",'1. Order'!AE482)","v":""},null,{"$f":"IF('1. Order'!AW482=\"\",\"\",'1. Order'!AW482)","v":""},{"$f":"IF('1. Order'!AX482=\"\",\"\",'1. Order'!AX482)","v":""},null,null,null,null,null,null,null,{"$f":"IF('1. Order'!BB482=\"\",\"\",'1. Order'!BB482)","v":""},{"$f":"IF('1. Order'!BC482=\"\",\"\",'1. Order'!BC482)","v":""},{"$f":"IF('1. Order'!BD482=\"\",\"\",'1. Order'!BD482)","v":""},{"$f":"IF('1. Order'!BE482=\"\",\"\",'1. Order'!BE482)","v":""},{"$f":"IF('1. Order'!BG482=\"\",\"\",'1. Order'!BG482)","v":""},{"$f":"IF('1. Order'!BH482=\"\",\"\",'1. Order'!BH482)","v":""},{"$f":"IF('1. Order'!BI482=\"\",\"\",'1. Order'!BI482)","v":""},{"$f":"IF('1. Order'!BJ482=\"\",\"\",'1. Order'!BJ482)","v":""},{"$f":"IF('1. Order'!BK482=\"\",\"\",'1. Order'!BK482)","v":"ZWO"}]
[{"$f":"IF('1. Order'!G483=\"\",\"\",'1. Order'!G483)","v":""},{"$f":"IF('1. Order'!H483=\"\",\"\",'1. Order'!H483)","v":""},{"$f":"IF('1. Order'!I483=\"\",\"\",'1. Order'!I483)","v":""},{"$f":"IF('1. Order'!J483=\"\",\"\",'1. Order'!J483)","v":""},{"$f":"IF('1. Order'!K483=\"\",\"\",'1. Order'!K483)","v":""},{"$f":"IF('1. Order'!L483=\"\",\"\",'1. Order'!L483)","v":""},{"$f":"IF('1. Order'!M483=\"\",\"\",'1. Order'!M483)","v":""},{"$f":"IF('1. Order'!N483=\"\",\"\",'1. Order'!N483)","v":""},{"$f":"IF('1. Order'!P483=\"\",\"\",'1. Order'!P483)","v":""},{"$f":"IF('1. Order'!Q483=\"\",\"\",'1. Order'!Q483)","v":{"$error":"#N/A"}},{"$f":"IF('1. Order'!R483=\"\",\"\",'1. Order'!R483)","v":{"$error":"#N/A"}},{"$f":"IF('1. Order'!S483=\"\",\"\",'1. Order'!S483)","v":""},{"$f":"IF('1. Order'!T483=\"\",\"\",'1. Order'!T483)","v":""},{"$f":"IF('1. Order'!U483=\"\",\"\",'1. Order'!U483)","v":""},{"$f":"IF('1. Order'!X483=\"\",\"\",'1. Order'!X483)","v":""},{"$f":"IF('1. Order'!Y483=\"\",\"\",'1. Order'!Y483)","v":""},{"$f":"IF('1. Order'!Z483=\"\",\"\",'1. Order'!Z483)","v":""},{"$f":"IF('1. Order'!AC483=\"\",\"\",'1. Order'!AC483)","v":""},{"$f":"IF('1. Order'!AD483=\"\",\"\",'1. Order'!AD483)","v":""},{"$f":"IF('1. Order'!AE483=\"\",\"\",'1. Order'!AE483)","v":""},null,{"$f":"IF('1. Order'!AW483=\"\",\"\",'1. Order'!AW483)","v":""},{"$f":"IF('1. Order'!AX483=\"\",\"\",'1. Order'!AX483)","v":""},null,null,null,null,null,null,null,{"$f":"IF('1. Order'!BB483=\"\",\"\",'1. Order'!BB483)","v":""},{"$f":"IF('1. Order'!BC483=\"\",\"\",'1. Order'!BC483)","v":""},{"$f":"IF('1. Order'!BD483=\"\",\"\",'1. Order'!BD483)","v":""},{"$f":"IF('1. Order'!BE483=\"\",\"\",'1. Order'!BE483)","v":""},{"$f":"IF('1. Order'!BG483=\"\",\"\",'1. Order'!BG483)","v":""},{"$f":"IF('1. Order'!BH483=\"\",\"\",'1. Order'!BH483)","v":""},{"$f":"IF('1. Order'!BI483=\"\",\"\",'1. Order'!BI483)","v":""},{"$f":"IF('1. Order'!BJ483=\"\",\"\",'1. Order'!BJ483)","v":""},{"$f":"IF('1. Order'!BK483=\"\",\"\",'1. Order'!BK483)","v":"ZWO"}]
[{"$f":"IF('1. Order'!G484=\"\",\"\",'1. Order'!G484)","v":""},{"$f":"IF('1. Order'!H484=\"\",\"\",'1. Order'!H484)","v":""},{"$f":"IF('1. Order'!I484=\"\",\"\",'1. Order'!I484)","v":""},{"$f":"IF('1. Order'!J484=\"\",\"\",'1. Order'!J484)","v":""},{"$f":"IF('1. Order'!K484=\"\",\"\",'1. Order'!K484)","v":""},{"$f":"IF('1. Order'!L484=\"\",\"\",'1. Order'!L484)","v":""},{"$f":"IF('1. Order'!M484=\"\",\"\",'1. Order'!M484)","v":""},{"$f":"IF('1. Order'!N484=\"\",\"\",'1. Order'!N484)","v":""},{"$f":"IF('1. Order'!P484=\"\",\"\",'1. Order'!P484)","v":""},{"$f":"IF('1. Order'!Q484=\"\",\"\",'1. Order'!Q484)","v":{"$error":"#N/A"}},{"$f":"IF('1. Order'!R484=\"\",\"\",'1. Order'!R484)","v":{"$error":"#N/A"}},{"$f":"IF('1. Order'!S484=\"\",\"\",'1. Order'!S484)","v":""},{"$f":"IF('1. Order'!T484=\"\",\"\",'1. Order'!T484)","v":""},{"$f":"IF('1. Order'!U484=\"\",\"\",'1. Order'!U484)","v":""},{"$f":"IF('1. Order'!X484=\"\",\"\",'1. Order'!X484)","v":""},{"$f":"IF('1. Order'!Y484=\"\",\"\",'1. Order'!Y484)","v":""},{"$f":"IF('1. Order'!Z484=\"\",\"\",'1. Order'!Z484)","v":""},{"$f":"IF('1. Order'!AC484=\"\",\"\",'1. Order'!AC484)","v":""},{"$f":"IF('1. Order'!AD484=\"\",\"\",'1. Order'!AD484)","v":""},{"$f":"IF('1. Order'!AE484=\"\",\"\",'1. Order'!AE484)","v":""},null,{"$f":"IF('1. Order'!AW484=\"\",\"\",'1. Order'!AW484)","v":""},{"$f":"IF('1. Order'!AX484=\"\",\"\",'1. Order'!AX484)","v":""},null,null,null,null,null,null,null,{"$f":"IF('1. Order'!BB484=\"\",\"\",'1. Order'!BB484)","v":""},{"$f":"IF('1. Order'!BC484=\"\",\"\",'1. Order'!BC484)","v":""},{"$f":"IF('1. Order'!BD484=\"\",\"\",'1. Order'!BD484)","v":""},{"$f":"IF('1. Order'!BE484=\"\",\"\",'1. Order'!BE484)","v":""},{"$f":"IF('1. Order'!BG484=\"\",\"\",'1. Order'!BG484)","v":""},{"$f":"IF('1. Order'!BH484=\"\",\"\",'1. Order'!BH484)","v":""},{"$f":"IF('1. Order'!BI484=\"\",\"\",'1. Order'!BI484)","v":""},{"$f":"IF('1. Order'!BJ484=\"\",\"\",'1. Order'!BJ484)","v":""},{"$f":"IF('1. Order'!BK484=\"\",\"\",'1. Order'!BK484)","v":"ZWO"}]
[{"$f":"IF('1. Order'!G485=\"\",\"\",'1. Order'!G485)","v":""},{"$f":"IF('1. Order'!H485=\"\",\"\",'1. Order'!H485)","v":""},{"$f":"IF('1. Order'!I485=\"\",\"\",'1. Order'!I485)","v":""},{"$f":"IF('1. Order'!J485=\"\",\"\",'1. Order'!J485)","v":""},{"$f":"IF('1. Order'!K485=\"\",\"\",'1. Order'!K485)","v":""},{"$f":"IF('1. Order'!L485=\"\",\"\",'1. Order'!L485)","v":""},{"$f":"IF('1. Order'!M485=\"\",\"\",'1. Order'!M485)","v":""},{"$f":"IF('1. Order'!N485=\"\",\"\",'1. Order'!N485)","v":""},{"$f":"IF('1. Order'!P485=\"\",\"\",'1. Order'!P485)","v":""},{"$f":"IF('1. Order'!Q485=\"\",\"\",'1. Order'!Q485)","v":{"$error":"#N/A"}},{"$f":"IF('1. Order'!R485=\"\",\"\",'1. Order'!R485)","v":{"$error":"#N/A"}},{"$f":"IF('1. Order'!S485=\"\",\"\",'1. Order'!S485)","v":""},{"$f":"IF('1. Order'!T485=\"\",\"\",'1. Order'!T485)","v":""},{"$f":"IF('1. Order'!U485=\"\",\"\",'1. Order'!U485)","v":""},{"$f":"IF('1. Order'!X485=\"\",\"\",'1. Order'!X485)","v":""},{"$f":"IF('1. Order'!Y485=\"\",\"\",'1. Order'!Y485)","v":""},{"$f":"IF('1. Order'!Z485=\"\",\"\",'1. Order'!Z485)","v":""},{"$f":"IF('1. Order'!AC485=\"\",\"\",'1. Order'!AC485)","v":""},{"$f":"IF('1. Order'!AD485=\"\",\"\",'1. Order'!AD485)","v":""},{"$f":"IF('1. Order'!AE485=\"\",\"\",'1. Order'!AE485)","v":""},null,{"$f":"IF('1. Order'!AW485=\"\",\"\",'1. Order'!AW485)","v":""},{"$f":"IF('1. Order'!AX485=\"\",\"\",'1. Order'!AX485)","v":""},null,null,null,null,null,null,null,{"$f":"IF('1. Order'!BB485=\"\",\"\",'1. Order'!BB485)","v":""},{"$f":"IF('1. Order'!BC485=\"\",\"\",'1. Order'!BC485)","v":""},{"$f":"IF('1. Order'!BD485=\"\",\"\",'1. Order'!BD485)","v":""},{"$f":"IF('1. Order'!BE485=\"\",\"\",'1. Order'!BE485)","v":""},{"$f":"IF('1. Order'!BG485=\"\",\"\",'1. Order'!BG485)","v":""},{"$f":"IF('1. Order'!BH485=\"\",\"\",'1. Order'!BH485)","v":""},{"$f":"IF('1. Order'!BI485=\"\",\"\",'1. Order'!BI485)","v":""},{"$f":"IF('1. Order'!BJ485=\"\",\"\",'1. Order'!BJ485)","v":""},{"$f":"IF('1. Order'!BK485=\"\",\"\",'1. Order'!BK485)","v":"ZWO"}]
[{"$f":"IF('1. Order'!G486=\"\",\"\",'1. Order'!G486)","v":""},{"$f":"IF('1. Order'!H486=\"\",\"\",'1. Order'!H486)","v":""},{"$f":"IF('1. Order'!I486=\"\",\"\",'1. Order'!I486)","v":""},{"$f":"IF('1. Order'!J486=\"\",\"\",'1. Order'!J486)","v":""},{"$f":"IF('1. Order'!K486=\"\",\"\",'1. Order'!K486)","v":""},{"$f":"IF('1. Order'!L486=\"\",\"\",'1. Order'!L486)","v":""},{"$f":"IF('1. Order'!M486=\"\",\"\",'1. Order'!M486)","v":""},{"$f":"IF('1. Order'!N486=\"\",\"\",'1. Order'!N486)","v":""},{"$f":"IF('1. Order'!P486=\"\",\"\",'1. Order'!P486)","v":""},{"$f":"IF('1. Order'!Q486=\"\",\"\",'1. Order'!Q486)","v":{"$error":"#N/A"}},{"$f":"IF('1. Order'!R486=\"\",\"\",'1. Order'!R486)","v":{"$error":"#N/A"}},{"$f":"IF('1. Order'!S486=\"\",\"\",'1. Order'!S486)","v":""},{"$f":"IF('1. Order'!T486=\"\",\"\",'1. Order'!T486)","v":""},{"$f":"IF('1. Order'!U486=\"\",\"\",'1. Order'!U486)","v":""},{"$f":"IF('1. Order'!X486=\"\",\"\",'1. Order'!X486)","v":""},{"$f":"IF('1. Order'!Y486=\"\",\"\",'1. Order'!Y486)","v":""},{"$f":"IF('1. Order'!Z486=\"\",\"\",'1. Order'!Z486)","v":""},{"$f":"IF('1. Order'!AC486=\"\",\"\",'1. Order'!AC486)","v":""},{"$f":"IF('1. Order'!AD486=\"\",\"\",'1. Order'!AD486)","v":""},{"$f":"IF('1. Order'!AE486=\"\",\"\",'1. Order'!AE486)","v":""},null,{"$f":"IF('1. Order'!AW486=\"\",\"\",'1. Order'!AW486)","v":""},{"$f":"IF('1. Order'!AX486=\"\",\"\",'1. Order'!AX486)","v":""},null,null,null,null,null,null,null,{"$f":"IF('1. Order'!BB486=\"\",\"\",'1. Order'!BB486)","v":""},{"$f":"IF('1. Order'!BC486=\"\",\"\",'1. Order'!BC486)","v":""},{"$f":"IF('1. Order'!BD486=\"\",\"\",'1. Order'!BD486)","v":""},{"$f":"IF('1. Order'!BE486=\"\",\"\",'1. Order'!BE486)","v":""},{"$f":"IF('1. Order'!BG486=\"\",\"\",'1. Order'!BG486)","v":""},{"$f":"IF('1. Order'!BH486=\"\",\"\",'1. Order'!BH486)","v":""},{"$f":"IF('1. Order'!BI486=\"\",\"\",'1. Order'!BI486)","v":""},{"$f":"IF('1. Order'!BJ486=\"\",\"\",'1. Order'!BJ486)","v":""},{"$f":"IF('1. Order'!BK486=\"\",\"\",'1. Order'!BK486)","v":"ZWO"}]
[{"$f":"IF('1. Order'!G487=\"\",\"\",'1. Order'!G487)","v":""},{"$f":"IF('1. Order'!H487=\"\",\"\",'1. Order'!H487)","v":""},{"$f":"IF('1. Order'!I487=\"\",\"\",'1. Order'!I487)","v":""},{"$f":"IF('1. Order'!J487=\"\",\"\",'1. Order'!J487)","v":""},{"$f":"IF('1. Order'!K487=\"\",\"\",'1. Order'!K487)","v":""},{"$f":"IF('1. Order'!L487=\"\",\"\",'1. Order'!L487)","v":""},{"$f":"IF('1. Order'!M487=\"\",\"\",'1. Order'!M487)","v":""},{"$f":"IF('1. Order'!N487=\"\",\"\",'1. Order'!N487)","v":""},{"$f":"IF('1. Order'!P487=\"\",\"\",'1. Order'!P487)","v":""},{"$f":"IF('1. Order'!Q487=\"\",\"\",'1. Order'!Q487)","v":{"$error":"#N/A"}},{"$f":"IF('1. Order'!R487=\"\",\"\",'1. Order'!R487)","v":{"$error":"#N/A"}},{"$f":"IF('1. Order'!S487=\"\",\"\",'1. Order'!S487)","v":""},{"$f":"IF('1. Order'!T487=\"\",\"\",'1. Order'!T487)","v":""},{"$f":"IF('1. Order'!U487=\"\",\"\",'1. Order'!U487)","v":""},{"$f":"IF('1. Order'!X487=\"\",\"\",'1. Order'!X487)","v":""},{"$f":"IF('1. Order'!Y487=\"\",\"\",'1. Order'!Y487)","v":""},{"$f":"IF('1. Order'!Z487=\"\",\"\",'1. Order'!Z487)","v":""},{"$f":"IF('1. Order'!AC487=\"\",\"\",'1. Order'!AC487)","v":""},{"$f":"IF('1. Order'!AD487=\"\",\"\",'1. Order'!AD487)","v":""},{"$f":"IF('1. Order'!AE487=\"\",\"\",'1. Order'!AE487)","v":""},null,{"$f":"IF('1. Order'!AW487=\"\",\"\",'1. Order'!AW487)","v":""},{"$f":"IF('1. Order'!AX487=\"\",\"\",'1. Order'!AX487)","v":""},null,null,null,null,null,null,null,{"$f":"IF('1. Order'!BB487=\"\",\"\",'1. Order'!BB487)","v":""},{"$f":"IF('1. Order'!BC487=\"\",\"\",'1. Order'!BC487)","v":""},{"$f":"IF('1. Order'!BD487=\"\",\"\",'1. Order'!BD487)","v":""},{"$f":"IF('1. Order'!BE487=\"\",\"\",'1. Order'!BE487)","v":""},{"$f":"IF('1. Order'!BG487=\"\",\"\",'1. Order'!BG487)","v":""},{"$f":"IF('1. Order'!BH487=\"\",\"\",'1. Order'!BH487)","v":""},{"$f":"IF('1. Order'!BI487=\"\",\"\",'1. Order'!BI487)","v":""},{"$f":"IF('1. Order'!BJ487=\"\",\"\",'1. Order'!BJ487)","v":""},{"$f":"IF('1. Order'!BK487=\"\",\"\",'1. Order'!BK487)","v":"ZWO"}]
[{"$f":"IF('1. Order'!G488=\"\",\"\",'1. Order'!G488)","v":""},{"$f":"IF('1. Order'!H488=\"\",\"\",'1. Order'!H488)","v":""},{"$f":"IF('1. Order'!I488=\"\",\"\",'1. Order'!I488)","v":""},{"$f":"IF('1. Order'!J488=\"\",\"\",'1. Order'!J488)","v":""},{"$f":"IF('1. Order'!K488=\"\",\"\",'1. Order'!K488)","v":""},{"$f":"IF('1. Order'!L488=\"\",\"\",'1. Order'!L488)","v":""},{"$f":"IF('1. Order'!M488=\"\",\"\",'1. Order'!M488)","v":""},{"$f":"IF('1. Order'!N488=\"\",\"\",'1. Order'!N488)","v":""},{"$f":"IF('1. Order'!P488=\"\",\"\",'1. Order'!P488)","v":""},{"$f":"IF('1. Order'!Q488=\"\",\"\",'1. Order'!Q488)","v":{"$error":"#N/A"}},{"$f":"IF('1. Order'!R488=\"\",\"\",'1. Order'!R488)","v":{"$error":"#N/A"}},{"$f":"IF('1. Order'!S488=\"\",\"\",'1. Order'!S488)","v":""},{"$f":"IF('1. Order'!T488=\"\",\"\",'1. Order'!T488)","v":""},{"$f":"IF('1. Order'!U488=\"\",\"\",'1. Order'!U488)","v":""},{"$f":"IF('1. Order'!X488=\"\",\"\",'1. Order'!X488)","v":""},{"$f":"IF('1. Order'!Y488=\"\",\"\",'1. Order'!Y488)","v":""},{"$f":"IF('1. Order'!Z488=\"\",\"\",'1. Order'!Z488)","v":""},{"$f":"IF('1. Order'!AC488=\"\",\"\",'1. Order'!AC488)","v":""},{"$f":"IF('1. Order'!AD488=\"\",\"\",'1. Order'!AD488)","v":""},{"$f":"IF('1. Order'!AE488=\"\",\"\",'1. Order'!AE488)","v":""},null,{"$f":"IF('1. Order'!AW488=\"\",\"\",'1. Order'!AW488)","v":""},{"$f":"IF('1. Order'!AX488=\"\",\"\",'1. Order'!AX488)","v":""},null,null,null,null,null,null,null,{"$f":"IF('1. Order'!BB488=\"\",\"\",'1. Order'!BB488)","v":""},{"$f":"IF('1. Order'!BC488=\"\",\"\",'1. Order'!BC488)","v":""},{"$f":"IF('1. Order'!BD488=\"\",\"\",'1. Order'!BD488)","v":""},{"$f":"IF('1. Order'!BE488=\"\",\"\",'1. Order'!BE488)","v":""},{"$f":"IF('1. Order'!BG488=\"\",\"\",'1. Order'!BG488)","v":""},{"$f":"IF('1. Order'!BH488=\"\",\"\",'1. Order'!BH488)","v":""},{"$f":"IF('1. Order'!BI488=\"\",\"\",'1. Order'!BI488)","v":""},{"$f":"IF('1. Order'!BJ488=\"\",\"\",'1. Order'!BJ488)","v":""},{"$f":"IF('1. Order'!BK488=\"\",\"\",'1. Order'!BK488)","v":"ZWO"}]
[{"$f":"IF('1. Order'!G489=\"\",\"\",'1. Order'!G489)","v":""},{"$f":"IF('1. Order'!H489=\"\",\"\",'1. Order'!H489)","v":""},{"$f":"IF('1. Order'!I489=\"\",\"\",'1. Order'!I489)","v":""},{"$f":"IF('1. Order'!J489=\"\",\"\",'1. Order'!J489)","v":""},{"$f":"IF('1. Order'!K489=\"\",\"\",'1. Order'!K489)","v":""},{"$f":"IF('1. Order'!L489=\"\",\"\",'1. Order'!L489)","v":""},{"$f":"IF('1. Order'!M489=\"\",\"\",'1. Order'!M489)","v":""},{"$f":"IF('1. Order'!N489=\"\",\"\",'1. Order'!N489)","v":""},{"$f":"IF('1. Order'!P489=\"\",\"\",'1. Order'!P489)","v":""},{"$f":"IF('1. Order'!Q489=\"\",\"\",'1. Order'!Q489)","v":{"$error":"#N/A"}},{"$f":"IF('1. Order'!R489=\"\",\"\",'1. Order'!R489)","v":{"$error":"#N/A"}},{"$f":"IF('1. Order'!S489=\"\",\"\",'1. Order'!S489)","v":""},{"$f":"IF('1. Order'!T489=\"\",\"\",'1. Order'!T489)","v":""},{"$f":"IF('1. Order'!U489=\"\",\"\",'1. Order'!U489)","v":""},{"$f":"IF('1. Order'!X489=\"\",\"\",'1. Order'!X489)","v":""},{"$f":"IF('1. Order'!Y489=\"\",\"\",'1. Order'!Y489)","v":""},{"$f":"IF('1. Order'!Z489=\"\",\"\",'1. Order'!Z489)","v":""},{"$f":"IF('1. Order'!AC489=\"\",\"\",'1. Order'!AC489)","v":""},{"$f":"IF('1. Order'!AD489=\"\",\"\",'1. Order'!AD489)","v":""},{"$f":"IF('1. Order'!AE489=\"\",\"\",'1. Order'!AE489)","v":""},null,{"$f":"IF('1. Order'!AW489=\"\",\"\",'1. Order'!AW489)","v":""},{"$f":"IF('1. Order'!AX489=\"\",\"\",'1. Order'!AX489)","v":""},null,null,null,null,null,null,null,{"$f":"IF('1. Order'!BB489=\"\",\"\",'1. Order'!BB489)","v":""},{"$f":"IF('1. Order'!BC489=\"\",\"\",'1. Order'!BC489)","v":""},{"$f":"IF('1. Order'!BD489=\"\",\"\",'1. Order'!BD489)","v":""},{"$f":"IF('1. Order'!BE489=\"\",\"\",'1. Order'!BE489)","v":""},{"$f":"IF('1. Order'!BG489=\"\",\"\",'1. Order'!BG489)","v":""},{"$f":"IF('1. Order'!BH489=\"\",\"\",'1. Order'!BH489)","v":""},{"$f":"IF('1. Order'!BI489=\"\",\"\",'1. Order'!BI489)","v":""},{"$f":"IF('1. Order'!BJ489=\"\",\"\",'1. Order'!BJ489)","v":""},{"$f":"IF('1. Order'!BK489=\"\",\"\",'1. Order'!BK489)","v":"ZWO"}]
[{"$f":"IF('1. Order'!G490=\"\",\"\",'1. Order'!G490)","v":""},{"$f":"IF('1. Order'!H490=\"\",\"\",'1. Order'!H490)","v":""},{"$f":"IF('1. Order'!I490=\"\",\"\",'1. Order'!I490)","v":""},{"$f":"IF('1. Order'!J490=\"\",\"\",'1. Order'!J490)","v":""},{"$f":"IF('1. Order'!K490=\"\",\"\",'1. Order'!K490)","v":""},{"$f":"IF('1. Order'!L490=\"\",\"\",'1. Order'!L490)","v":""},{"$f":"IF('1. Order'!M490=\"\",\"\",'1. Order'!M490)","v":""},{"$f":"IF('1. Order'!N490=\"\",\"\",'1. Order'!N490)","v":""},{"$f":"IF('1. Order'!P490=\"\",\"\",'1. Order'!P490)","v":""},{"$f":"IF('1. Order'!Q490=\"\",\"\",'1. Order'!Q490)","v":{"$error":"#N/A"}},{"$f":"IF('1. Order'!R490=\"\",\"\",'1. Order'!R490)","v":{"$error":"#N/A"}},{"$f":"IF('1. Order'!S490=\"\",\"\",'1. Order'!S490)","v":""},{"$f":"IF('1. Order'!T490=\"\",\"\",'1. Order'!T490)","v":""},{"$f":"IF('1. Order'!U490=\"\",\"\",'1. Order'!U490)","v":""},{"$f":"IF('1. Order'!X490=\"\",\"\",'1. Order'!X490)","v":""},{"$f":"IF('1. Order'!Y490=\"\",\"\",'1. Order'!Y490)","v":""},{"$f":"IF('1. Order'!Z490=\"\",\"\",'1. Order'!Z490)","v":""},{"$f":"IF('1. Order'!AC490=\"\",\"\",'1. Order'!AC490)","v":""},{"$f":"IF('1. Order'!AD490=\"\",\"\",'1. Order'!AD490)","v":""},{"$f":"IF('1. Order'!AE490=\"\",\"\",'1. Order'!AE490)","v":""},null,{"$f":"IF('1. Order'!AW490=\"\",\"\",'1. Order'!AW490)","v":""},{"$f":"IF('1. Order'!AX490=\"\",\"\",'1. Order'!AX490)","v":""},null,null,null,null,null,null,null,{"$f":"IF('1. Order'!BB490=\"\",\"\",'1. Order'!BB490)","v":""},{"$f":"IF('1. Order'!BC490=\"\",\"\",'1. Order'!BC490)","v":""},{"$f":"IF('1. Order'!BD490=\"\",\"\",'1. Order'!BD490)","v":""},{"$f":"IF('1. Order'!BE490=\"\",\"\",'1. Order'!BE490)","v":""},{"$f":"IF('1. Order'!BG490=\"\",\"\",'1. Order'!BG490)","v":""},{"$f":"IF('1. Order'!BH490=\"\",\"\",'1. Order'!BH490)","v":""},{"$f":"IF('1. Order'!BI490=\"\",\"\",'1. Order'!BI490)","v":""},{"$f":"IF('1. Order'!BJ490=\"\",\"\",'1. Order'!BJ490)","v":""},{"$f":"IF('1. Order'!BK490=\"\",\"\",'1. Order'!BK490)","v":"ZWO"}]
[{"$f":"IF('1. Order'!G491=\"\",\"\",'1. Order'!G491)","v":""},{"$f":"IF('1. Order'!H491=\"\",\"\",'1. Order'!H491)","v":""},{"$f":"IF('1. Order'!I491=\"\",\"\",'1. Order'!I491)","v":""},{"$f":"IF('1. Order'!J491=\"\",\"\",'1. Order'!J491)","v":""},{"$f":"IF('1. Order'!K491=\"\",\"\",'1. Order'!K491)","v":""},{"$f":"IF('1. Order'!L491=\"\",\"\",'1. Order'!L491)","v":""},{"$f":"IF('1. Order'!M491=\"\",\"\",'1. Order'!M491)","v":""},{"$f":"IF('1. Order'!N491=\"\",\"\",'1. Order'!N491)","v":""},{"$f":"IF('1. Order'!P491=\"\",\"\",'1. Order'!P491)","v":""},{"$f":"IF('1. Order'!Q491=\"\",\"\",'1. Order'!Q491)","v":{"$error":"#N/A"}},{"$f":"IF('1. Order'!R491=\"\",\"\",'1. Order'!R491)","v":{"$error":"#N/A"}},{"$f":"IF('1. Order'!S491=\"\",\"\",'1. Order'!S491)","v":""},{"$f":"IF('1. Order'!T491=\"\",\"\",'1. Order'!T491)","v":""},{"$f":"IF('1. Order'!U491=\"\",\"\",'1. Order'!U491)","v":""},{"$f":"IF('1. Order'!X491=\"\",\"\",'1. Order'!X491)","v":""},{"$f":"IF('1. Order'!Y491=\"\",\"\",'1. Order'!Y491)","v":""},{"$f":"IF('1. Order'!Z491=\"\",\"\",'1. Order'!Z491)","v":""},{"$f":"IF('1. Order'!AC491=\"\",\"\",'1. Order'!AC491)","v":""},{"$f":"IF('1. Order'!AD491=\"\",\"\",'1. Order'!AD491)","v":""},{"$f":"IF('1. Order'!AE491=\"\",\"\",'1. Order'!AE491)","v":""},null,{"$f":"IF('1. Order'!AW491=\"\",\"\",'1. Order'!AW491)","v":""},{"$f":"IF('1. Order'!AX491=\"\",\"\",'1. Order'!AX491)","v":""},null,null,null,null,null,null,null,{"$f":"IF('1. Order'!BB491=\"\",\"\",'1. Order'!BB491)","v":""},{"$f":"IF('1. Order'!BC491=\"\",\"\",'1. Order'!BC491)","v":""},{"$f":"IF('1. Order'!BD491=\"\",\"\",'1. Order'!BD491)","v":""},{"$f":"IF('1. Order'!BE491=\"\",\"\",'1. Order'!BE491)","v":""},{"$f":"IF('1. Order'!BG491=\"\",\"\",'1. Order'!BG491)","v":""},{"$f":"IF('1. Order'!BH491=\"\",\"\",'1. Order'!BH491)","v":""},{"$f":"IF('1. Order'!BI491=\"\",\"\",'1. Order'!BI491)","v":""},{"$f":"IF('1. Order'!BJ491=\"\",\"\",'1. Order'!BJ491)","v":""},{"$f":"IF('1. Order'!BK491=\"\",\"\",'1. Order'!BK491)","v":"ZWO"}]
[{"$f":"IF('1. Order'!G492=\"\",\"\",'1. Order'!G492)","v":""},{"$f":"IF('1. Order'!H492=\"\",\"\",'1. Order'!H492)","v":""},{"$f":"IF('1. Order'!I492=\"\",\"\",'1. Order'!I492)","v":""},{"$f":"IF('1. Order'!J492=\"\",\"\",'1. Order'!J492)","v":""},{"$f":"IF('1. Order'!K492=\"\",\"\",'1. Order'!K492)","v":""},{"$f":"IF('1. Order'!L492=\"\",\"\",'1. Order'!L492)","v":""},{"$f":"IF('1. Order'!M492=\"\",\"\",'1. Order'!M492)","v":""},{"$f":"IF('1. Order'!N492=\"\",\"\",'1. Order'!N492)","v":""},{"$f":"IF('1. Order'!P492=\"\",\"\",'1. Order'!P492)","v":""},{"$f":"IF('1. Order'!Q492=\"\",\"\",'1. Order'!Q492)","v":{"$error":"#N/A"}},{"$f":"IF('1. Order'!R492=\"\",\"\",'1. Order'!R492)","v":{"$error":"#N/A"}},{"$f":"IF('1. Order'!S492=\"\",\"\",'1. Order'!S492)","v":""},{"$f":"IF('1. Order'!T492=\"\",\"\",'1. Order'!T492)","v":""},{"$f":"IF('1. Order'!U492=\"\",\"\",'1. Order'!U492)","v":""},{"$f":"IF('1. Order'!X492=\"\",\"\",'1. Order'!X492)","v":""},{"$f":"IF('1. Order'!Y492=\"\",\"\",'1. Order'!Y492)","v":""},{"$f":"IF('1. Order'!Z492=\"\",\"\",'1. Order'!Z492)","v":""},{"$f":"IF('1. Order'!AC492=\"\",\"\",'1. Order'!AC492)","v":""},{"$f":"IF('1. Order'!AD492=\"\",\"\",'1. Order'!AD492)","v":""},{"$f":"IF('1. Order'!AE492=\"\",\"\",'1. Order'!AE492)","v":""},null,{"$f":"IF('1. Order'!AW492=\"\",\"\",'1. Order'!AW492)","v":""},{"$f":"IF('1. Order'!AX492=\"\",\"\",'1. Order'!AX492)","v":""},null,null,null,null,null,null,null,{"$f":"IF('1. Order'!BB492=\"\",\"\",'1. Order'!BB492)","v":""},{"$f":"IF('1. Order'!BC492=\"\",\"\",'1. Order'!BC492)","v":""},{"$f":"IF('1. Order'!BD492=\"\",\"\",'1. Order'!BD492)","v":""},{"$f":"IF('1. Order'!BE492=\"\",\"\",'1. Order'!BE492)","v":""},{"$f":"IF('1. Order'!BG492=\"\",\"\",'1. Order'!BG492)","v":""},{"$f":"IF('1. Order'!BH492=\"\",\"\",'1. Order'!BH492)","v":""},{"$f":"IF('1. Order'!BI492=\"\",\"\",'1. Order'!BI492)","v":""},{"$f":"IF('1. Order'!BJ492=\"\",\"\",'1. Order'!BJ492)","v":""},{"$f":"IF('1. Order'!BK492=\"\",\"\",'1. Order'!BK492)","v":"ZWO"}]
[{"$f":"IF('1. Order'!G493=\"\",\"\",'1. Order'!G493)","v":""},{"$f":"IF('1. Order'!H493=\"\",\"\",'1. Order'!H493)","v":""},{"$f":"IF('1. Order'!I493=\"\",\"\",'1. Order'!I493)","v":""},{"$f":"IF('1. Order'!J493=\"\",\"\",'1. Order'!J493)","v":""},{"$f":"IF('1. Order'!K493=\"\",\"\",'1. Order'!K493)","v":""},{"$f":"IF('1. Order'!L493=\"\",\"\",'1. Order'!L493)","v":""},{"$f":"IF('1. Order'!M493=\"\",\"\",'1. Order'!M493)","v":""},{"$f":"IF('1. Order'!N493=\"\",\"\",'1. Order'!N493)","v":""},{"$f":"IF('1. Order'!P493=\"\",\"\",'1. Order'!P493)","v":""},{"$f":"IF('1. Order'!Q493=\"\",\"\",'1. Order'!Q493)","v":{"$error":"#N/A"}},{"$f":"IF('1. Order'!R493=\"\",\"\",'1. Order'!R493)","v":{"$error":"#N/A"}},{"$f":"IF('1. Order'!S493=\"\",\"\",'1. Order'!S493)","v":""},{"$f":"IF('1. Order'!T493=\"\",\"\",'1. Order'!T493)","v":""},{"$f":"IF('1. Order'!U493=\"\",\"\",'1. Order'!U493)","v":""},{"$f":"IF('1. Order'!X493=\"\",\"\",'1. Order'!X493)","v":""},{"$f":"IF('1. Order'!Y493=\"\",\"\",'1. Order'!Y493)","v":""},{"$f":"IF('1. Order'!Z493=\"\",\"\",'1. Order'!Z493)","v":""},{"$f":"IF('1. Order'!AC493=\"\",\"\",'1. Order'!AC493)","v":""},{"$f":"IF('1. Order'!AD493=\"\",\"\",'1. Order'!AD493)","v":""},{"$f":"IF('1. Order'!AE493=\"\",\"\",'1. Order'!AE493)","v":""},null,{"$f":"IF('1. Order'!AW493=\"\",\"\",'1. Order'!AW493)","v":""},{"$f":"IF('1. Order'!AX493=\"\",\"\",'1. Order'!AX493)","v":""},null,null,null,null,null,null,null,{"$f":"IF('1. Order'!BB493=\"\",\"\",'1. Order'!BB493)","v":""},{"$f":"IF('1. Order'!BC493=\"\",\"\",'1. Order'!BC493)","v":""},{"$f":"IF('1. Order'!BD493=\"\",\"\",'1. Order'!BD493)","v":""},{"$f":"IF('1. Order'!BE493=\"\",\"\",'1. Order'!BE493)","v":""},{"$f":"IF('1. Order'!BG493=\"\",\"\",'1. Order'!BG493)","v":""},{"$f":"IF('1. Order'!BH493=\"\",\"\",'1. Order'!BH493)","v":""},{"$f":"IF('1. Order'!BI493=\"\",\"\",'1. Order'!BI493)","v":""},{"$f":"IF('1. Order'!BJ493=\"\",\"\",'1. Order'!BJ493)","v":""},{"$f":"IF('1. Order'!BK493=\"\",\"\",'1. Order'!BK493)","v":"ZWO"}]
[{"$f":"IF('1. Order'!G494=\"\",\"\",'1. Order'!G494)","v":""},{"$f":"IF('1. Order'!H494=\"\",\"\",'1. Order'!H494)","v":""},{"$f":"IF('1. Order'!I494=\"\",\"\",'1. Order'!I494)","v":""},{"$f":"IF('1. Order'!J494=\"\",\"\",'1. Order'!J494)","v":""},{"$f":"IF('1. Order'!K494=\"\",\"\",'1. Order'!K494)","v":""},{"$f":"IF('1. Order'!L494=\"\",\"\",'1. Order'!L494)","v":""},{"$f":"IF('1. Order'!M494=\"\",\"\",'1. Order'!M494)","v":""},{"$f":"IF('1. Order'!N494=\"\",\"\",'1. Order'!N494)","v":""},{"$f":"IF('1. Order'!P494=\"\",\"\",'1. Order'!P494)","v":""},{"$f":"IF('1. Order'!Q494=\"\",\"\",'1. Order'!Q494)","v":{"$error":"#N/A"}},{"$f":"IF('1. Order'!R494=\"\",\"\",'1. Order'!R494)","v":{"$error":"#N/A"}},{"$f":"IF('1. Order'!S494=\"\",\"\",'1. Order'!S494)","v":""},{"$f":"IF('1. Order'!T494=\"\",\"\",'1. Order'!T494)","v":""},{"$f":"IF('1. Order'!U494=\"\",\"\",'1. Order'!U494)","v":""},{"$f":"IF('1. Order'!X494=\"\",\"\",'1. Order'!X494)","v":""},{"$f":"IF('1. Order'!Y494=\"\",\"\",'1. Order'!Y494)","v":""},{"$f":"IF('1. Order'!Z494=\"\",\"\",'1. Order'!Z494)","v":""},{"$f":"IF('1. Order'!AC494=\"\",\"\",'1. Order'!AC494)","v":""},{"$f":"IF('1. Order'!AD494=\"\",\"\",'1. Order'!AD494)","v":""},{"$f":"IF('1. Order'!AE494=\"\",\"\",'1. Order'!AE494)","v":""},null,{"$f":"IF('1. Order'!AW494=\"\",\"\",'1. Order'!AW494)","v":""},{"$f":"IF('1. Order'!AX494=\"\",\"\",'1. Order'!AX494)","v":""},null,null,null,null,null,null,null,{"$f":"IF('1. Order'!BB494=\"\",\"\",'1. Order'!BB494)","v":""},{"$f":"IF('1. Order'!BC494=\"\",\"\",'1. Order'!BC494)","v":""},{"$f":"IF('1. Order'!BD494=\"\",\"\",'1. Order'!BD494)","v":""},{"$f":"IF('1. Order'!BE494=\"\",\"\",'1. Order'!BE494)","v":""},{"$f":"IF('1. Order'!BG494=\"\",\"\",'1. Order'!BG494)","v":""},{"$f":"IF('1. Order'!BH494=\"\",\"\",'1. Order'!BH494)","v":""},{"$f":"IF('1. Order'!BI494=\"\",\"\",'1. Order'!BI494)","v":""},{"$f":"IF('1. Order'!BJ494=\"\",\"\",'1. Order'!BJ494)","v":""},{"$f":"IF('1. Order'!BK494=\"\",\"\",'1. Order'!BK494)","v":"ZWO"}]
[{"$f":"IF('1. Order'!G495=\"\",\"\",'1. Order'!G495)","v":""},{"$f":"IF('1. Order'!H495=\"\",\"\",'1. Order'!H495)","v":""},{"$f":"IF('1. Order'!I495=\"\",\"\",'1. Order'!I495)","v":""},{"$f":"IF('1. Order'!J495=\"\",\"\",'1. Order'!J495)","v":""},{"$f":"IF('1. Order'!K495=\"\",\"\",'1. Order'!K495)","v":""},{"$f":"IF('1. Order'!L495=\"\",\"\",'1. Order'!L495)","v":""},{"$f":"IF('1. Order'!M495=\"\",\"\",'1. Order'!M495)","v":""},{"$f":"IF('1. Order'!N495=\"\",\"\",'1. Order'!N495)","v":""},{"$f":"IF('1. Order'!P495=\"\",\"\",'1. Order'!P495)","v":""},{"$f":"IF('1. Order'!Q495=\"\",\"\",'1. Order'!Q495)","v":{"$error":"#N/A"}},{"$f":"IF('1. Order'!R495=\"\",\"\",'1. Order'!R495)","v":{"$error":"#N/A"}},{"$f":"IF('1. Order'!S495=\"\",\"\",'1. Order'!S495)","v":""},{"$f":"IF('1. Order'!T495=\"\",\"\",'1. Order'!T495)","v":""},{"$f":"IF('1. Order'!U495=\"\",\"\",'1. Order'!U495)","v":""},{"$f":"IF('1. Order'!X495=\"\",\"\",'1. Order'!X495)","v":""},{"$f":"IF('1. Order'!Y495=\"\",\"\",'1. Order'!Y495)","v":""},{"$f":"IF('1. Order'!Z495=\"\",\"\",'1. Order'!Z495)","v":""},{"$f":"IF('1. Order'!AC495=\"\",\"\",'1. Order'!AC495)","v":""},{"$f":"IF('1. Order'!AD495=\"\",\"\",'1. Order'!AD495)","v":""},{"$f":"IF('1. Order'!AE495=\"\",\"\",'1. Order'!AE495)","v":""},null,{"$f":"IF('1. Order'!AW495=\"\",\"\",'1. Order'!AW495)","v":""},{"$f":"IF('1. Order'!AX495=\"\",\"\",'1. Order'!AX495)","v":""},null,null,null,null,null,null,null,{"$f":"IF('1. Order'!BB495=\"\",\"\",'1. Order'!BB495)","v":""},{"$f":"IF('1. Order'!BC495=\"\",\"\",'1. Order'!BC495)","v":""},{"$f":"IF('1. Order'!BD495=\"\",\"\",'1. Order'!BD495)","v":""},{"$f":"IF('1. Order'!BE495=\"\",\"\",'1. Order'!BE495)","v":""},{"$f":"IF('1. Order'!BG495=\"\",\"\",'1. Order'!BG495)","v":""},{"$f":"IF('1. Order'!BH495=\"\",\"\",'1. Order'!BH495)","v":""},{"$f":"IF('1. Order'!BI495=\"\",\"\",'1. Order'!BI495)","v":""},{"$f":"IF('1. Order'!BJ495=\"\",\"\",'1. Order'!BJ495)","v":""},{"$f":"IF('1. Order'!BK495=\"\",\"\",'1. Order'!BK495)","v":"ZWO"}]
[{"$f":"IF('1. Order'!G496=\"\",\"\",'1. Order'!G496)","v":""},{"$f":"IF('1. Order'!H496=\"\",\"\",'1. Order'!H496)","v":""},{"$f":"IF('1. Order'!I496=\"\",\"\",'1. Order'!I496)","v":""},{"$f":"IF('1. Order'!J496=\"\",\"\",'1. Order'!J496)","v":""},{"$f":"IF('1. Order'!K496=\"\",\"\",'1. Order'!K496)","v":""},{"$f":"IF('1. Order'!L496=\"\",\"\",'1. Order'!L496)","v":""},{"$f":"IF('1. Order'!M496=\"\",\"\",'1. Order'!M496)","v":""},{"$f":"IF('1. Order'!N496=\"\",\"\",'1. Order'!N496)","v":""},{"$f":"IF('1. Order'!P496=\"\",\"\",'1. Order'!P496)","v":""},{"$f":"IF('1. Order'!Q496=\"\",\"\",'1. Order'!Q496)","v":{"$error":"#N/A"}},{"$f":"IF('1. Order'!R496=\"\",\"\",'1. Order'!R496)","v":{"$error":"#N/A"}},{"$f":"IF('1. Order'!S496=\"\",\"\",'1. Order'!S496)","v":""},{"$f":"IF('1. Order'!T496=\"\",\"\",'1. Order'!T496)","v":""},{"$f":"IF('1. Order'!U496=\"\",\"\",'1. Order'!U496)","v":""},{"$f":"IF('1. Order'!X496=\"\",\"\",'1. Order'!X496)","v":""},{"$f":"IF('1. Order'!Y496=\"\",\"\",'1. Order'!Y496)","v":""},{"$f":"IF('1. Order'!Z496=\"\",\"\",'1. Order'!Z496)","v":""},{"$f":"IF('1. Order'!AC496=\"\",\"\",'1. Order'!AC496)","v":""},{"$f":"IF('1. Order'!AD496=\"\",\"\",'1. Order'!AD496)","v":""},{"$f":"IF('1. Order'!AE496=\"\",\"\",'1. Order'!AE496)","v":""},null,{"$f":"IF('1. Order'!AW496=\"\",\"\",'1. Order'!AW496)","v":""},{"$f":"IF('1. Order'!AX496=\"\",\"\",'1. Order'!AX496)","v":""},null,null,null,null,null,null,null,{"$f":"IF('1. Order'!BB496=\"\",\"\",'1. Order'!BB496)","v":""},{"$f":"IF('1. Order'!BC496=\"\",\"\",'1. Order'!BC496)","v":""},{"$f":"IF('1. Order'!BD496=\"\",\"\",'1. Order'!BD496)","v":""},{"$f":"IF('1. Order'!BE496=\"\",\"\",'1. Order'!BE496)","v":""},{"$f":"IF('1. Order'!BG496=\"\",\"\",'1. Order'!BG496)","v":""},{"$f":"IF('1. Order'!BH496=\"\",\"\",'1. Order'!BH496)","v":""},{"$f":"IF('1. Order'!BI496=\"\",\"\",'1. Order'!BI496)","v":""},{"$f":"IF('1. Order'!BJ496=\"\",\"\",'1. Order'!BJ496)","v":""},{"$f":"IF('1. Order'!BK496=\"\",\"\",'1. Order'!BK496)","v":"ZWO"}]
[{"$f":"IF('1. Order'!G497=\"\",\"\",'1. Order'!G497)","v":""},{"$f":"IF('1. Order'!H497=\"\",\"\",'1. Order'!H497)","v":""},{"$f":"IF('1. Order'!I497=\"\",\"\",'1. Order'!I497)","v":""},{"$f":"IF('1. Order'!J497=\"\",\"\",'1. Order'!J497)","v":""},{"$f":"IF('1. Order'!K497=\"\",\"\",'1. Order'!K497)","v":""},{"$f":"IF('1. Order'!L497=\"\",\"\",'1. Order'!L497)","v":""},{"$f":"IF('1. Order'!M497=\"\",\"\",'1. Order'!M497)","v":""},{"$f":"IF('1. Order'!N497=\"\",\"\",'1. Order'!N497)","v":""},{"$f":"IF('1. Order'!P497=\"\",\"\",'1. Order'!P497)","v":""},{"$f":"IF('1. Order'!Q497=\"\",\"\",'1. Order'!Q497)","v":{"$error":"#N/A"}},{"$f":"IF('1. Order'!R497=\"\",\"\",'1. Order'!R497)","v":{"$error":"#N/A"}},{"$f":"IF('1. Order'!S497=\"\",\"\",'1. Order'!S497)","v":""},{"$f":"IF('1. Order'!T497=\"\",\"\",'1. Order'!T497)","v":""},{"$f":"IF('1. Order'!U497=\"\",\"\",'1. Order'!U497)","v":""},{"$f":"IF('1. Order'!X497=\"\",\"\",'1. Order'!X497)","v":""},{"$f":"IF('1. Order'!Y497=\"\",\"\",'1. Order'!Y497)","v":""},{"$f":"IF('1. Order'!Z497=\"\",\"\",'1. Order'!Z497)","v":""},{"$f":"IF('1. Order'!AC497=\"\",\"\",'1. Order'!AC497)","v":""},{"$f":"IF('1. Order'!AD497=\"\",\"\",'1. Order'!AD497)","v":""},{"$f":"IF('1. Order'!AE497=\"\",\"\",'1. Order'!AE497)","v":""},null,{"$f":"IF('1. Order'!AW497=\"\",\"\",'1. Order'!AW497)","v":""},{"$f":"IF('1. Order'!AX497=\"\",\"\",'1. Order'!AX497)","v":""},null,null,null,null,null,null,null,{"$f":"IF('1. Order'!BB497=\"\",\"\",'1. Order'!BB497)","v":""},{"$f":"IF('1. Order'!BC497=\"\",\"\",'1. Order'!BC497)","v":""},{"$f":"IF('1. Order'!BD497=\"\",\"\",'1. Order'!BD497)","v":""},{"$f":"IF('1. Order'!BE497=\"\",\"\",'1. Order'!BE497)","v":""},{"$f":"IF('1. Order'!BG497=\"\",\"\",'1. Order'!BG497)","v":""},{"$f":"IF('1. Order'!BH497=\"\",\"\",'1. Order'!BH497)","v":""},{"$f":"IF('1. Order'!BI497=\"\",\"\",'1. Order'!BI497)","v":""},{"$f":"IF('1. Order'!BJ497=\"\",\"\",'1. Order'!BJ497)","v":""},{"$f":"IF('1. Order'!BK497=\"\",\"\",'1. Order'!BK497)","v":"ZWO"}]
[{"$f":"IF('1. Order'!G498=\"\",\"\",'1. Order'!G498)","v":""},{"$f":"IF('1. Order'!H498=\"\",\"\",'1. Order'!H498)","v":""},{"$f":"IF('1. Order'!I498=\"\",\"\",'1. Order'!I498)","v":""},{"$f":"IF('1. Order'!J498=\"\",\"\",'1. Order'!J498)","v":""},{"$f":"IF('1. Order'!K498=\"\",\"\",'1. Order'!K498)","v":""},{"$f":"IF('1. Order'!L498=\"\",\"\",'1. Order'!L498)","v":""},{"$f":"IF('1. Order'!M498=\"\",\"\",'1. Order'!M498)","v":""},{"$f":"IF('1. Order'!N498=\"\",\"\",'1. Order'!N498)","v":""},{"$f":"IF('1. Order'!P498=\"\",\"\",'1. Order'!P498)","v":""},{"$f":"IF('1. Order'!Q498=\"\",\"\",'1. Order'!Q498)","v":{"$error":"#N/A"}},{"$f":"IF('1. Order'!R498=\"\",\"\",'1. Order'!R498)","v":{"$error":"#N/A"}},{"$f":"IF('1. Order'!S498=\"\",\"\",'1. Order'!S498)","v":""},{"$f":"IF('1. Order'!T498=\"\",\"\",'1. Order'!T498)","v":""},{"$f":"IF('1. Order'!U498=\"\",\"\",'1. Order'!U498)","v":""},{"$f":"IF('1. Order'!X498=\"\",\"\",'1. Order'!X498)","v":""},{"$f":"IF('1. Order'!Y498=\"\",\"\",'1. Order'!Y498)","v":""},{"$f":"IF('1. Order'!Z498=\"\",\"\",'1. Order'!Z498)","v":""},{"$f":"IF('1. Order'!AC498=\"\",\"\",'1. Order'!AC498)","v":""},{"$f":"IF('1. Order'!AD498=\"\",\"\",'1. Order'!AD498)","v":""},{"$f":"IF('1. Order'!AE498=\"\",\"\",'1. Order'!AE498)","v":""},null,{"$f":"IF('1. Order'!AW498=\"\",\"\",'1. Order'!AW498)","v":""},{"$f":"IF('1. Order'!AX498=\"\",\"\",'1. Order'!AX498)","v":""},null,null,null,null,null,null,null,{"$f":"IF('1. Order'!BB498=\"\",\"\",'1. Order'!BB498)","v":""},{"$f":"IF('1. Order'!BC498=\"\",\"\",'1. Order'!BC498)","v":""},{"$f":"IF('1. Order'!BD498=\"\",\"\",'1. Order'!BD498)","v":""},{"$f":"IF('1. Order'!BE498=\"\",\"\",'1. Order'!BE498)","v":""},{"$f":"IF('1. Order'!BG498=\"\",\"\",'1. Order'!BG498)","v":""},{"$f":"IF('1. Order'!BH498=\"\",\"\",'1. Order'!BH498)","v":""},{"$f":"IF('1. Order'!BI498=\"\",\"\",'1. Order'!BI498)","v":""},{"$f":"IF('1. Order'!BJ498=\"\",\"\",'1. Order'!BJ498)","v":""},{"$f":"IF('1. Order'!BK498=\"\",\"\",'1. Order'!BK498)","v":"ZWO"}]
[{"$f":"IF('1. Order'!G499=\"\",\"\",'1. Order'!G499)","v":""},{"$f":"IF('1. Order'!H499=\"\",\"\",'1. Order'!H499)","v":""},{"$f":"IF('1. Order'!I499=\"\",\"\",'1. Order'!I499)","v":""},{"$f":"IF('1. Order'!J499=\"\",\"\",'1. Order'!J499)","v":""},{"$f":"IF('1. Order'!K499=\"\",\"\",'1. Order'!K499)","v":""},{"$f":"IF('1. Order'!L499=\"\",\"\",'1. Order'!L499)","v":""},{"$f":"IF('1. Order'!M499=\"\",\"\",'1. Order'!M499)","v":""},{"$f":"IF('1. Order'!N499=\"\",\"\",'1. Order'!N499)","v":""},{"$f":"IF('1. Order'!P499=\"\",\"\",'1. Order'!P499)","v":""},{"$f":"IF('1. Order'!Q499=\"\",\"\",'1. Order'!Q499)","v":{"$error":"#N/A"}},{"$f":"IF('1. Order'!R499=\"\",\"\",'1. Order'!R499)","v":{"$error":"#N/A"}},{"$f":"IF('1. Order'!S499=\"\",\"\",'1. Order'!S499)","v":""},{"$f":"IF('1. Order'!T499=\"\",\"\",'1. Order'!T499)","v":""},{"$f":"IF('1. Order'!U499=\"\",\"\",'1. Order'!U499)","v":""},{"$f":"IF('1. Order'!X499=\"\",\"\",'1. Order'!X499)","v":""},{"$f":"IF('1. Order'!Y499=\"\",\"\",'1. Order'!Y499)","v":""},{"$f":"IF('1. Order'!Z499=\"\",\"\",'1. Order'!Z499)","v":""},{"$f":"IF('1. Order'!AC499=\"\",\"\",'1. Order'!AC499)","v":""},{"$f":"IF('1. Order'!AD499=\"\",\"\",'1. Order'!AD499)","v":""},{"$f":"IF('1. Order'!AE499=\"\",\"\",'1. Order'!AE499)","v":""},null,{"$f":"IF('1. Order'!AW499=\"\",\"\",'1. Order'!AW499)","v":""},{"$f":"IF('1. Order'!AX499=\"\",\"\",'1. Order'!AX499)","v":""},null,null,null,null,null,null,null,{"$f":"IF('1. Order'!BB499=\"\",\"\",'1. Order'!BB499)","v":""},{"$f":"IF('1. Order'!BC499=\"\",\"\",'1. Order'!BC499)","v":""},{"$f":"IF('1. Order'!BD499=\"\",\"\",'1. Order'!BD499)","v":""},{"$f":"IF('1. Order'!BE499=\"\",\"\",'1. Order'!BE499)","v":""},{"$f":"IF('1. Order'!BG499=\"\",\"\",'1. Order'!BG499)","v":""},{"$f":"IF('1. Order'!BH499=\"\",\"\",'1. Order'!BH499)","v":""},{"$f":"IF('1. Order'!BI499=\"\",\"\",'1. Order'!BI499)","v":""},{"$f":"IF('1. Order'!BJ499=\"\",\"\",'1. Order'!BJ499)","v":""},{"$f":"IF('1. Order'!BK499=\"\",\"\",'1. Order'!BK499)","v":"ZWO"}]
[{"$f":"IF('1. Order'!G500=\"\",\"\",'1. Order'!G500)","v":""},{"$f":"IF('1. Order'!H500=\"\",\"\",'1. Order'!H500)","v":""},{"$f":"IF('1. Order'!I500=\"\",\"\",'1. Order'!I500)","v":""},{"$f":"IF('1. Order'!J500=\"\",\"\",'1. Order'!J500)","v":""},{"$f":"IF('1. Order'!K500=\"\",\"\",'1. Order'!K500)","v":""},{"$f":"IF('1. Order'!L500=\"\",\"\",'1. Order'!L500)","v":""},{"$f":"IF('1. Order'!M500=\"\",\"\",'1. Order'!M500)","v":""},{"$f":"IF('1. Order'!N500=\"\",\"\",'1. Order'!N500)","v":""},{"$f":"IF('1. Order'!P500=\"\",\"\",'1. Order'!P500)","v":""},{"$f":"IF('1. Order'!Q500=\"\",\"\",'1. Order'!Q500)","v":{"$error":"#N/A"}},{"$f":"IF('1. Order'!R500=\"\",\"\",'1. Order'!R500)","v":{"$error":"#N/A"}},{"$f":"IF('1. Order'!S500=\"\",\"\",'1. Order'!S500)","v":""},{"$f":"IF('1. Order'!T500=\"\",\"\",'1. Order'!T500)","v":""},{"$f":"IF('1. Order'!U500=\"\",\"\",'1. Order'!U500)","v":""},{"$f":"IF('1. Order'!X500=\"\",\"\",'1. Order'!X500)","v":""},{"$f":"IF('1. Order'!Y500=\"\",\"\",'1. Order'!Y500)","v":""},{"$f":"IF('1. Order'!Z500=\"\",\"\",'1. Order'!Z500)","v":""},{"$f":"IF('1. Order'!AC500=\"\",\"\",'1. Order'!AC500)","v":""},{"$f":"IF('1. Order'!AD500=\"\",\"\",'1. Order'!AD500)","v":""},{"$f":"IF('1. Order'!AE500=\"\",\"\",'1. Order'!AE500)","v":""},null,{"$f":"IF('1. Order'!AW500=\"\",\"\",'1. Order'!AW500)","v":""},{"$f":"IF('1. Order'!AX500=\"\",\"\",'1. Order'!AX500)","v":""},null,null,null,null,null,null,null,{"$f":"IF('1. Order'!BB500=\"\",\"\",'1. Order'!BB500)","v":""},{"$f":"IF('1. Order'!BC500=\"\",\"\",'1. Order'!BC500)","v":""},{"$f":"IF('1. Order'!BD500=\"\",\"\",'1. Order'!BD500)","v":""},{"$f":"IF('1. Order'!BE500=\"\",\"\",'1. Order'!BE500)","v":""},{"$f":"IF('1. Order'!BG500=\"\",\"\",'1. Order'!BG500)","v":""},{"$f":"IF('1. Order'!BH500=\"\",\"\",'1. Order'!BH500)","v":""},{"$f":"IF('1. Order'!BI500=\"\",\"\",'1. Order'!BI500)","v":""},{"$f":"IF('1. Order'!BJ500=\"\",\"\",'1. Order'!BJ500)","v":""},{"$f":"IF('1. Order'!BK500=\"\",\"\",'1. Order'!BK500)","v":"ZWO"}]
[{"$f":"IF('1. Order'!G501=\"\",\"\",'1. Order'!G501)","v":""},{"$f":"IF('1. Order'!H501=\"\",\"\",'1. Order'!H501)","v":""},{"$f":"IF('1. Order'!I501=\"\",\"\",'1. Order'!I501)","v":""},{"$f":"IF('1. Order'!J501=\"\",\"\",'1. Order'!J501)","v":""},{"$f":"IF('1. Order'!K501=\"\",\"\",'1. Order'!K501)","v":""},{"$f":"IF('1. Order'!L501=\"\",\"\",'1. Order'!L501)","v":""},{"$f":"IF('1. Order'!M501=\"\",\"\",'1. Order'!M501)","v":""},{"$f":"IF('1. Order'!N501=\"\",\"\",'1. Order'!N501)","v":""},{"$f":"IF('1. Order'!P501=\"\",\"\",'1. Order'!P501)","v":""},{"$f":"IF('1. Order'!Q501=\"\",\"\",'1. Order'!Q501)","v":{"$error":"#N/A"}},{"$f":"IF('1. Order'!R501=\"\",\"\",'1. Order'!R501)","v":{"$error":"#N/A"}},{"$f":"IF('1. Order'!S501=\"\",\"\",'1. Order'!S501)","v":""},{"$f":"IF('1. Order'!T501=\"\",\"\",'1. Order'!T501)","v":""},{"$f":"IF('1. Order'!U501=\"\",\"\",'1. Order'!U501)","v":""},{"$f":"IF('1. Order'!X501=\"\",\"\",'1. Order'!X501)","v":""},{"$f":"IF('1. Order'!Y501=\"\",\"\",'1. Order'!Y501)","v":""},{"$f":"IF('1. Order'!Z501=\"\",\"\",'1. Order'!Z501)","v":""},{"$f":"IF('1. Order'!AC501=\"\",\"\",'1. Order'!AC501)","v":""},{"$f":"IF('1. Order'!AD501=\"\",\"\",'1. Order'!AD501)","v":""},{"$f":"IF('1. Order'!AE501=\"\",\"\",'1. Order'!AE501)","v":""},null,{"$f":"IF('1. Order'!AW501=\"\",\"\",'1. Order'!AW501)","v":""},{"$f":"IF('1. Order'!AX501=\"\",\"\",'1. Order'!AX501)","v":""},null,null,null,null,null,null,null,{"$f":"IF('1. Order'!BB501=\"\",\"\",'1. Order'!BB501)","v":""},{"$f":"IF('1. Order'!BC501=\"\",\"\",'1. Order'!BC501)","v":""},{"$f":"IF('1. Order'!BD501=\"\",\"\",'1. Order'!BD501)","v":""},{"$f":"IF('1. Order'!BE501=\"\",\"\",'1. Order'!BE501)","v":""},{"$f":"IF('1. Order'!BG501=\"\",\"\",'1. Order'!BG501)","v":""},{"$f":"IF('1. Order'!BH501=\"\",\"\",'1. Order'!BH501)","v":""},{"$f":"IF('1. Order'!BI501=\"\",\"\",'1. Order'!BI501)","v":""},{"$f":"IF('1. Order'!BJ501=\"\",\"\",'1. Order'!BJ501)","v":""},{"$f":"IF('1. Order'!BK501=\"\",\"\",'1. Order'!BK501)","v":"ZWO"}]
[{"$f":"IF('1. Order'!G502=\"\",\"\",'1. Order'!G502)","v":""},{"$f":"IF('1. Order'!H502=\"\",\"\",'1. Order'!H502)","v":""},{"$f":"IF('1. Order'!I502=\"\",\"\",'1. Order'!I502)","v":""},{"$f":"IF('1. Order'!J502=\"\",\"\",'1. Order'!J502)","v":""},{"$f":"IF('1. Order'!K502=\"\",\"\",'1. Order'!K502)","v":""},{"$f":"IF('1. Order'!L502=\"\",\"\",'1. Order'!L502)","v":""},{"$f":"IF('1. Order'!M502=\"\",\"\",'1. Order'!M502)","v":""},{"$f":"IF('1. Order'!N502=\"\",\"\",'1. Order'!N502)","v":""},{"$f":"IF('1. Order'!P502=\"\",\"\",'1. Order'!P502)","v":""},{"$f":"IF('1. Order'!Q502=\"\",\"\",'1. Order'!Q502)","v":{"$error":"#N/A"}},{"$f":"IF('1. Order'!R502=\"\",\"\",'1. Order'!R502)","v":{"$error":"#N/A"}},{"$f":"IF('1. Order'!S502=\"\",\"\",'1. Order'!S502)","v":""},{"$f":"IF('1. Order'!T502=\"\",\"\",'1. Order'!T502)","v":""},{"$f":"IF('1. Order'!U502=\"\",\"\",'1. Order'!U502)","v":""},{"$f":"IF('1. Order'!X502=\"\",\"\",'1. Order'!X502)","v":""},{"$f":"IF('1. Order'!Y502=\"\",\"\",'1. Order'!Y502)","v":""},{"$f":"IF('1. Order'!Z502=\"\",\"\",'1. Order'!Z502)","v":""},{"$f":"IF('1. Order'!AC502=\"\",\"\",'1. Order'!AC502)","v":""},{"$f":"IF('1. Order'!AD502=\"\",\"\",'1. Order'!AD502)","v":""},{"$f":"IF('1. Order'!AE502=\"\",\"\",'1. Order'!AE502)","v":""},null,{"$f":"IF('1. Order'!AW502=\"\",\"\",'1. Order'!AW502)","v":""},{"$f":"IF('1. Order'!AX502=\"\",\"\",'1. Order'!AX502)","v":""},null,null,null,null,null,null,null,{"$f":"IF('1. Order'!BB502=\"\",\"\",'1. Order'!BB502)","v":""},{"$f":"IF('1. Order'!BC502=\"\",\"\",'1. Order'!BC502)","v":""},{"$f":"IF('1. Order'!BD502=\"\",\"\",'1. Order'!BD502)","v":""},{"$f":"IF('1. Order'!BE502=\"\",\"\",'1. Order'!BE502)","v":""},{"$f":"IF('1. Order'!BG502=\"\",\"\",'1. Order'!BG502)","v":""},{"$f":"IF('1. Order'!BH502=\"\",\"\",'1. Order'!BH502)","v":""},{"$f":"IF('1. Order'!BI502=\"\",\"\",'1. Order'!BI502)","v":""},{"$f":"IF('1. Order'!BJ502=\"\",\"\",'1. Order'!BJ502)","v":""},{"$f":"IF('1. Order'!BK502=\"\",\"\",'1. Order'!BK502)","v":"ZWO"}]
[{"$f":"IF('1. Order'!G503=\"\",\"\",'1. Order'!G503)","v":""},{"$f":"IF('1. Order'!H503=\"\",\"\",'1. Order'!H503)","v":""},{"$f":"IF('1. Order'!I503=\"\",\"\",'1. Order'!I503)","v":""},{"$f":"IF('1. Order'!J503=\"\",\"\",'1. Order'!J503)","v":""},{"$f":"IF('1. Order'!K503=\"\",\"\",'1. Order'!K503)","v":""},{"$f":"IF('1. Order'!L503=\"\",\"\",'1. Order'!L503)","v":""},{"$f":"IF('1. Order'!M503=\"\",\"\",'1. Order'!M503)","v":""},{"$f":"IF('1. Order'!N503=\"\",\"\",'1. Order'!N503)","v":""},{"$f":"IF('1. Order'!P503=\"\",\"\",'1. Order'!P503)","v":""},{"$f":"IF('1. Order'!Q503=\"\",\"\",'1. Order'!Q503)","v":{"$error":"#N/A"}},{"$f":"IF('1. Order'!R503=\"\",\"\",'1. Order'!R503)","v":{"$error":"#N/A"}},{"$f":"IF('1. Order'!S503=\"\",\"\",'1. Order'!S503)","v":""},{"$f":"IF('1. Order'!T503=\"\",\"\",'1. Order'!T503)","v":""},{"$f":"IF('1. Order'!U503=\"\",\"\",'1. Order'!U503)","v":""},{"$f":"IF('1. Order'!X503=\"\",\"\",'1. Order'!X503)","v":""},{"$f":"IF('1. Order'!Y503=\"\",\"\",'1. Order'!Y503)","v":""},{"$f":"IF('1. Order'!Z503=\"\",\"\",'1. Order'!Z503)","v":""},{"$f":"IF('1. Order'!AC503=\"\",\"\",'1. Order'!AC503)","v":""},{"$f":"IF('1. Order'!AD503=\"\",\"\",'1. Order'!AD503)","v":""},{"$f":"IF('1. Order'!AE503=\"\",\"\",'1. Order'!AE503)","v":""},null,{"$f":"IF('1. Order'!AW503=\"\",\"\",'1. Order'!AW503)","v":""},{"$f":"IF('1. Order'!AX503=\"\",\"\",'1. Order'!AX503)","v":""},null,null,null,null,null,null,null,{"$f":"IF('1. Order'!BB503=\"\",\"\",'1. Order'!BB503)","v":""},{"$f":"IF('1. Order'!BC503=\"\",\"\",'1. Order'!BC503)","v":""},{"$f":"IF('1. Order'!BD503=\"\",\"\",'1. Order'!BD503)","v":""},{"$f":"IF('1. Order'!BE503=\"\",\"\",'1. Order'!BE503)","v":""},{"$f":"IF('1. Order'!BG503=\"\",\"\",'1. Order'!BG503)","v":""},{"$f":"IF('1. Order'!BH503=\"\",\"\",'1. Order'!BH503)","v":""},{"$f":"IF('1. Order'!BI503=\"\",\"\",'1. Order'!BI503)","v":""},{"$f":"IF('1. Order'!BJ503=\"\",\"\",'1. Order'!BJ503)","v":""},{"$f":"IF('1. Order'!BK503=\"\",\"\",'1. Order'!BK503)","v":"ZWO"}]

{"sheet":"Input MCC","index":5,"n_rows":750,"n_cols":5,"rows_kept":750,"cut":false,"hidden":true,"merged":[]}
["MCC","AX Naam","MCC 3","MCC 2","Taxon"]
["RM8Q","B10-ds sport T-shirt","RM8Q","Ladies Sports Shirts","Sport t-shirt (Dames)"]
["RM8Q","B10-ds sporttop","RM8Q","Ladies Sports Shirts","Sporttop (Dames)"]
["MR9F","B12-ds sportboxer","MR9F","Ladies Sportswear Other","Sportboxer (Dames)"]
["VR8F","B12-ds sportshort","VR8F","Ladies Sports Shorts","Sportbroek (Dames)"]
["XF6P","B13-ds sportbroek","XF6P","Ladies Sports Pants","Sportbroek (Dames)"]
["JP8V","B14-ds sportjack","JP8V","Ladies Sports Jackets","Sportjack (Dames)"]
["WF7W","B20-hr sport T-shirt","WF7W","Mens Sports Shirts","Sport t-shirt (Heren)"]
["VM3H","B22-hr sportboxer","VM3H","Mens Sportswear Other","Sportboxer (Heren)"]
["MQ3P","B22-hr sportshort","MQ3P","Mens Sports Shorts","Sportbroek (Heren)"]
["XF2F","B23-hr sportbroek","XF2F","Mens Sports Pants","Sportbroek (Heren)"]
["QF5J","B24-hr sportjack","QF5J","Mens Sports Jackets","Sportjack (Heren)"]
["WX7F","B50-ds sportsokken","WX7F","Sports Socks","Sportsokken (Dames)"]
["WX7F","B50-hr sportsokken","WX7F","Sports Socks","Sportsokken (Heren)"]
["RM8Q","F10-CONSIG ds sport T-shirt","RM8Q","Ladies Sports Shirts","Sport t-shirt (Dames)"]
["MR9F","F10-CONSIG ds sportBH","MR9F","Ladies Sportswear Other","Sporttop (Bh)"]
["RM8Q","F10-ds sport T-shirt","RM8Q","Ladies Sports Shirts","Sport t-shirt (Dames)"]
["MR9F","F10-ds sportBH","MR9F","Ladies Sportswear Other","Sporttop (Bh)"]
["MR9F","F10-ds sportjurk","MR9F","Ladies Sportswear Other","Sportjurkje (Dames)"]
["RM8Q","F10-ds sportpolo","RM8Q","Ladies Sports Shirts","Sportpolo (Dames)"]
["RM8Q","F10-ds sporttop","RM8Q","Ladies Sports Shirts","Sporttop (Dames)"]
["RM8Q","F10-GM ds sport T-shirt","RM8Q","Ladies Sports Shirts","Sport t-shirt (Dames)"]
["MR9F","F10-GM ds sportBH","MR9F","Ladies Sportswear Other","Sporttop (Bh)"]
["RM8Q","F10-GM ds sportpolo","RM8Q","Ladies Sports Shirts","Sportpolo (Dames)"]
["RM8Q","F10-GM ds sporttop","RM8Q","Ladies Sports Shirts","Sporttop (Dames)"]
["QW3G","F11-CONSIG ds sportsweater","QW3G","Ladies Sports Sweaters","Sportsweater (Dames)"]
["QW3G","F11-CONSIG ds sportvest","QW3G","Ladies Sports Sweaters","Sportvest (Dames)"]
["QW3G","F11-ds sportsweater","QW3G","Ladies Sports Sweaters","Sportsweater (Dames)"]
["QW3G","F11-ds sportvest","QW3G","Ladies Sports Sweaters","Sportvest (Dames)"]
["QW3G","F11-GM ds sportsweater","QW3G","Ladies Sports Sweaters","Sportsweater (Dames)"]
["QW3G","F11-GM ds sportvest","QW3G","Ladies Sports Sweaters","Sportvest (Dames)"]
["VR8F","F12-CONSIG ds sportshort","VR8F","Ladies Sports Shorts","Sportbroek (Dames)"]
["VR8F","F12-ds sportrok","VR8F","Ladies Sports Shorts","Sportrokje (Dames)"]
["VR8F","F12-ds sportshort","VR8F","Ladies Sports Shorts","Sportbroek (Dames)"]
["MR9F","F12-ds sportslip","MR9F","Ladies Sportswear Other","Sportslip (Dames)"]
["VR8F","F12-GM ds sportshort","VR8F","Ladies Sports Shorts","Sportbroek (Dames)"]
["XF6P","F13-CONSIG ds sportbroek","XF6P","Ladies Sports Pants","Sportbroek (Dames)"]
["XF6P","F13-ds sport jumpsuit","XF6P","Ladies Sports Pants","Sport jumpsuit (Dames)"]
["XF6P","F13-ds sportbroek","XF6P","Ladies Sports Pants","Sportbroek (Dames)"]
["XF6P","F13-GM ds sport jumpsuit","XF6P","Ladies Sports Pants","Sport jumpsuit (Dames)"]
["XF6P","F13-GM ds sportbroek","XF6P","Ladies Sports Pants","Sportbroek (Dames)"]
["JP8V","F14-ds sport bodywarmer","JP8V","Ladies Sports Jackets","Sport bodywarmer (Dames)"]
["JP8V","F14-ds sportjack","JP8V","Ladies Sports Jackets","Sportjack (Dames)"]
["JP8V","F14-GM ds sport bodywarmer","JP8V","Ladies Sports Jackets","Sport bodywarmer (Dames)"]
["JP8V","F14-GM ds sportjack","JP8V","Ladies Sports Jackets","Sportjack (Dames)"]
["MX3P","F15-ds badslippers","MX3P","Ladies Performance Shoes","Badslipper (Dames)"]
["MX3P","F15-ds sportschoenen","MX3P","Ladies Performance Shoes","Fitness schoen (Dames)"]
["HV9C","F16-ds trainingspak","HV9C","Ladies Sports Tracksuits","Trainingspak (Dames)"]
["WF7W","F20-hr sport T-shirt","WF7W","Mens Sports Shirts","Sport t-shirt (Heren)"]
["WF7W","F20-hr sportpolo","WF7W","Mens Sports Shirts","Sportpolo (Heren)"]
["WF7W","F20-uni sport T-shirt","WF7W","Mens Sports Shirts","Sport t-shirt (Heren)"]
["WF2V","F21-hr sportsweater","WF2V","Mens Sports Sweaters","Sportsweater (Heren)"]
["WF2V","F21-hr sportvest","WF2V","Mens Sports Sweaters","Sportvest (Heren)"]
["WF2V","F21-uni sportsweater","WF2V","Mens Sports Sweaters","Sportsweater (Unisex)"]
["VM3H","F22-hr sportboxer","VM3H","Mens Sportswear Other","Sportboxer (Heren)"]
["MQ3P","F22-hr sportshort","MQ3P","Mens Sports Shorts","Sportbroek (Heren)"]
["XF2F","F23-hr sportbroek","XF2F","Mens Sports Pants","Sportbroek (Heren)"]
["QF5J","F24-hr sportjack","QF5J","Mens Sports Jackets","Sportjack (Heren)"]
["HF2G","F25-hr badslippers","HF2G","Mens Performance Shoes","Badslipper (Heren)"]
["HF2G","F25-hr sportschoenen","HF2G","Mens Performance Shoes","Fitness schoen (Heren)"]
["HF2G","F25-hr waterschoenen","HF2G","Mens Performance Shoes","Waterschoen (Unisex)"]
["HF2G","F25-uni badslippers","HF2G","Mens Performance Shoes","Badslipper (Unisex)"]
["HF2G","F25-uni sportschoenen","HF2G","Mens Performance Shoes","Fitness schoen (Unisex)"]
["RX9H","F26-hr trainingspak","RX9H","Mens Sports Training Suits","Trainingspak (Heren)"]
["VW2F","F30-js sport T-shirt","VW2F","Boys Sports Shirts","Sport t-shirt (Jongens)"]
["VW2F","F30-kd sport T-shirt","VW2F","Boys Sports Shirts","Sport t-shirt (Kids)"]
["XP4R","F31-js sportsweater","XP4R","Boys Sports Sweaters","Sportsweater (Jongens)"]
["XP4R","F31-js sportvest","XP4R","Boys Sports Sweaters","Sportvest (Jongens)"]
["XP4R","F31-kd sportsweater","XP4R","Boys Sports Sweaters","Sportsweater (Kids)"]
["XP4R","F31-kd sportvest","XP4R","Boys Sports Sweaters","Sportvest (Kids)"]
["RF7M","F32-js sportshort","RF7M","Boys Sports Shorts","Sportbroek (Jongens)"]
["RF7M","F32-kd sportshort","RF7M","Boys Sports Shorts","Sportbroek (Kids)"]
["VJ2G","F33-js sportbroek","VJ2G","Boys Sports Pants","Sportbroek (Jongens)"]
["VJ2G","F33-kd sportbroek","VJ2G","Boys Sports Pants","Sportbroek (Kids)"]
["RQ9M","F34-js sportjack","RQ9M","Boys Sports Jackets","Sportjack (Jongens)"]
["RQ9M","F34-kd sportjack","RQ9M","Boys Sports Jackets","Sportjack (Kids)"]
["RQ6F","F35-js badslippers","RQ6F","Boys Performance Shoes","Badslipper (Kids)"]
["RQ6F","F35-js sandalen","RQ6F","Boys Performance Shoes","Sandaal (Kids)"]
["RQ6F","F35-js sportschoenen","RQ6F","Boys Performance Shoes","Sportschoen (Kids)"]
["RQ6F","F35-kd badslippers","RQ6F","Boys Performance Shoes","Badslipper (Kids)"]
["RQ6F","F35-kd sandalen","RQ6F","Boys Performance Shoes","Sandaal (Kids)"]
["RQ6F","F35-kd sportschoenen","RQ6F","Boys Performance Shoes","Sportschoen (Kids)"]
["RQ6F","F35-kd waterschoenen","RQ6F","Boys Performance Shoes","Waterschoen (Kids)"]
["QG3P","F36-js sportset","QG3P","Boys Sports Tracksuits","Sportset (Jongens)"]
["QG3P","F36-js trainingspak","QG3P","Boys Sports Tracksuits","Trainingspak (Jongens)"]
["QG3P","F36-kd sportset","QG3P","Boys Sports Tracksuits","Sportset (Kids)"]
["QG3P","F36-kd trainingspak","QG3P","Boys Sports Tracksuits","Trainingspak (Kids)"]
["XW5R","F40-kd sport T-shirt","XW5R","Girls Sports Shirts","Sport t-shirt (Kids)"]
["XW5R","F40-kd sporttop","XW5R","Girls Sports Shirts","Sporttop (Meisjes)"]
["MP8W","F40-ms balletpakje","MP8W","Girls Sportswear Other","Balletpakje (Meisjes)"]
["MP8W","F40-ms balletrokje","MP8W","Girls Sportswear Other","Sportrokje (Meisjes)"]
["XW5R","F40-ms sport T-shirt","XW5R","Girls Sports Shirts","Sport t-shirt (Meisjes)"]
["MP8W","F40-ms sportjurk","MP8W","Girls Sportswear Other","Sportjurkje (Meisjes)"]
["XW5R","F40-ms sporttop","XW5R","Girls Sports Shirts","Sporttop (Meisjes)"]
["MG6C","F41-kd sportsweater","MG6C","Girls Sports Sweaters","Sportsweater (Meisjes)"]
["MG6C","F41-kd sportvest","MG6C","Girls Sports Sweaters","Sportvest (Meisjes)"]
["MG6C","F41-ms sportsweater","MG6C","Girls Sports Sweaters","Sportsweater (Meisjes)"]
["MG6C","F41-ms sportvest","MG6C","Girls Sports Sweaters","Sportvest (Meisjes)"]
["WR9M","F42-kd sportshort","WR9M","Girls Sports Shorts","Sportbroek (Meisjes)"]
["WR9M","F42-ms sportshort","WR9M","Girls Sports Shorts","Sportbroek (Meisjes)"]
["GC4C","F43-kd sport jumpsuit","GC4C","Girls Sports Pants","Sport jumpsuit (Meisjes)"]
["GC4C","F43-kd sportbroek","GC4C","Girls Sports Pants","Sportbroek (Meisjes)"]
["GC4C","F43-ms sport jumpsuit","GC4C","Girls Sports Pants","Sport jumpsuit (Meisjes)"]
["GC4C","F43-ms sportbroek","GC4C","Girls Sports Pants","Sportbroek (Meisjes)"]
["HR7P","F44-ms sportjack","HR7P","Girls Sports Jackets","Sportjack (Meisjes)"]
["FG8J","F45-kd badslippers","FG8J","Girls Performance Shoes","Badslipper (Kids)"]
["FG8J","F45-kd sandalen","FG8J","Girls Performance Shoes","Sandaal (Kids)"]
["FG8J","F45-kd waterschoenen","FG8J","Girls Performance Shoes","Waterschoen (Kids)"]
["FG8J","F45-ms badslippers","FG8J","Girls Performance Shoes","Badslipper (Kids)"]
["FG8J","F45-ms sandalen","FG8J","Girls Performance Shoes","Sandaal (Kids)"]
["FG8J","F45-ms sportschoenen","FG8J","Girls Performance Shoes","Sportschoen (Kids)"]
["VP4Q","F46-kd sportset","VP4Q","Girls Sports Tracksuits","Sportset (Kids)"]
["VP4Q","F46-kd trainingspak","VP4Q","Girls Sports Tracksuits","Trainingspak (Meisjes)"]
["VP4Q","F46-ms sportset","VP4Q","Girls Sports Tracksuits","Sportset (Meisjes)"]
["VP4Q","F46-ms trainingspak","VP4Q","Girls Sports Tracksuits","Trainingspak (Meisjes)"]
["PV6Q","F50-bidon","PV6Q","Sports Accessories","Bidon"]
["GQ2V","F50-ds rugzak","GQ2V","Sports Bags","Sporttas"]
["WX7F","F50-ds sportsokken","WX7F","Sports Socks","Sportsokken (Dames)"]
["GQ2V","F50-ds sporttas","GQ2V","Sports Bags","Sporttas"]
["WX7F","F50-hr sportsokken","WX7F","Sports Socks","Sportsokken (Heren)"]
["PV6Q","F50-kd sport pet","PV6Q","Sports Accessories","Sportpet (Kids)"]
["WX7F","F50-kd sportsokken","WX7F","Sports Socks","Sportsokken (Kids)"]
["GQ2V","F50-rugzak","GQ2V","Sports Bags","Rugzak (Unisex)"]
["PV6Q","F50-sport handschoenen","PV6Q","Sports Accessories","Sporthandschoenen (Unisex)"]
["PV6Q","F50-sport muts","PV6Q","Sports Accessories","Muts (Kids)"]
["PV6Q","F50-sport pet","PV6Q","Sports Accessories","Sportpet (Unisex)"]
["PV6Q","F50-sport sjaal","PV6Q","Sports Accessories","Sportsjaal (Unisex)"]
["GQ2V","F50-sporttas","GQ2V","Sports Bags","Sporttas"]
["WX7F","F50-uni sportsokken","WX7F","Sports Socks","Sportsokken (Unisex)"]
["RM8Q","G10-ds sport T-shirt","RM8Q","Ladies Sports Shirts","Sport t-shirt (Dames)"]
["MR9F","G10-ds sportBH","MR9F","Ladies Sportswear Other","Sporttop (Bh)"]
["MR9F","G10-ds sportjurk","MR9F","Ladies Sportswear Other","Sportjurkje (Dames)"]
["RM8Q","G10-ds sportpolo","RM8Q","Ladies Sports Shirts","Sportpolo (Dames)"]
["RM8Q","G10-ds sporttop","RM8Q","Ladies Sports Shirts","Sporttop (Dames)"]
["RM8Q","G10-GM ds sport T-shirt","RM8Q","Ladies Sports Shirts","Sport t-shirt (Dames)"]
["RM8Q","G10-GM ds sportpolo","RM8Q","Ladies Sports Shirts","Sportpolo (Dames)"]
["RM8Q","G10-GM ds sporttop","RM8Q","Ladies Sports Shirts","Sporttop (Dames)"]
["QW3G","G11-ds sportsweater","QW3G","Ladies Sports Sweaters","Sportsweater (Dames)"]
["QW3G","G11-ds sportvest","QW3G","Ladies Sports Sweaters","Outdoor vest (Dames)"]
["QW3G","G11-GM ds sportvest","QW3G","Ladies Sports Sweaters","Sportvest (Dames)"]
["VR8F","G12-ds sportrok","VR8F","Ladies Sports Shorts","Sportrokje (Dames)"]
["VR8F","G12-ds sportshort","VR8F","Ladies Sports Shorts","Sportbroek (Dames)"]
["XF6P","G13-ds sportbroek","XF6P","Ladies Sports Pants","Sportbroek (Dames)"]
["XF6P","G13-GM ds sportbroek","XF6P","Ladies Sports Pants","Sportbroek (Dames)"]
["JP8V","G14-ds sportjack","JP8V","Ladies Sports Jackets","Sportjack (Dames)"]
["MX3P","G15-ds badslippers","MX3P","Ladies Performance Shoes","Badslipper (Dames)"]
["MX3P","G15-ds sportschoenen","MX3P","Ladies Performance Shoes","Sportschoen (Dames)"]
["HV9C","G16-ds trainingspak","HV9C","Ladies Sports Tracksuits","Trainingspak (Dames)"]
["WF7W","G20-hr sport T-shirt","WF7W","Mens Sports Shirts","Sport t-shirt (Heren)"]
["WF7W","G20-hr sportpolo","WF7W","Mens Sports Shirts","Sportpolo (Heren)"]
["WF2V","G21-hr sportsweater","WF2V","Mens Sports Sweaters","Sportsweater (Heren)"]
["WF2V","G21-hr sportvest","WF2V","Mens Sports Sweaters","Sportvest (Heren)"]
["MQ3P","G22-hr sportshort","MQ3P","Mens Sports Shorts","Sportbroek (Heren)"]
["XF2F","G23-hr sportbroek","XF2F","Mens Sports Pants","Sportbroek (Heren)"]
["QF5J","G24-hr sportjack","QF5J","Mens Sports Jackets","Sportjack (Heren)"]
["HF2G","G25-hr badslippers","HF2G","Mens Performance Shoes","Badslipper (Heren)"]
["HF2G","G25-hr sportschoenen","HF2G","Mens Performance Shoes","Sportschoen (Heren)"]
["HF2G","G25-uni badslippers","HF2G","Mens Performance Shoes","Badslipper (Unisex)"]
["HF2G","G25-uni sportschoenen","HF2G","Mens Performance Shoes","Sportschoen (Unisex)"]
["RX9H","G26-hr trainingspak","RX9H","Mens Sports Training Suits","Trainingspak (Heren)"]
["RM8Q","H10-ds sport T-shirt","RM8Q","Ladies Sports Shirts","Sport t-shirt (Dames)"]
["MR9F","H10-ds sportBH","MR9F","Ladies Sportswear Other","Sporttop (Bh)"]
["MR9F","H10-ds sportjurk","MR9F","Ladies Sportswear Other","Sportjurkje (Dames)"]
["RM8Q","H10-ds sportpolo","RM8Q","Ladies Sports Shirts","Sportpolo (Dames)"]
["RM8Q","H10-ds sporttop","RM8Q","Ladies Sports Shirts","Sporttop (Dames)"]
["QW3G","H11-ds sportsweater","QW3G","Ladies Sports Sweaters","Sportvest (Dames)"]
["QW3G","H11-ds sportvest","QW3G","Ladies Sports Sweaters","Sportvest (Dames)"]
["VR8F","H12-ds sportrok","VR8F","Ladies Sports Shorts","Sportrokje (Dames)"]
["VR8F","H12-ds sportshort","VR8F","Ladies Sports Shorts","Sportbroek (Dames)"]
["XF6P","H13-ds sportbroek","XF6P","Ladies Sports Pants","Sportbroek (Dames)"]
["JP8V","H14-ds sportjack","JP8V","Ladies Sports Jackets","Sportjack (Dames)"]
["MX3P","H15-ds badslippers","MX3P","Ladies Performance Shoes","Badslipper (Dames)"]
["MX3P","H15-ds sportschoenen","MX3P","Ladies Performance Shoes","Hockeyschoen (Dames)"]
["HV9C","H16-ds trainingspak","HV9C","Ladies Sports Tracksuits","Trainingspak (Dames)"]
["WF7W","H20-hr sport T-shirt","WF7W","Mens Sports Shirts","Sport t-shirt (Heren)"]
["WF7W","H20-hr sportpolo","WF7W","Mens Sports Shirts","Sportpolo (Heren)"]
["WF7W","H20-uni sport T-shirt","WF7W","Mens Sports Shirts","Sport t-shirt (Heren)"]
["WF2V","H21-hr sportsweater","WF2V","Mens Sports Sweaters","Sportsweater (Heren)"]
["WF2V","H21-hr sportvest","WF2V","Mens Sports Sweaters","Sportvest (Heren)"]
["WF2V","H21-uni sportsweater","WF2V","Mens Sports Sweaters","Sportsweater (Unisex)"]
["WF2V","H21-uni sportvest","WF2V","Mens Sports Sweaters","Sportvest (Heren)"]
["VM3H","H22-hr sportondergoed","VM3H","Mens Sportswear Other","Sportboxer (Heren)"]
["MQ3P","H22-hr sportshort","MQ3P","Mens Sports Shorts","Sportbroek (Heren)"]
["XF2F","H23-hr sportbroek","XF2F","Mens Sports Pants","Sportbroek (Heren)"]
["XF2F","H23-uni sportbroek","XF2F","Mens Sports Pants","Sportbroek (Unisex)"]
["QF5J","H24-hr sportjack","QF5J","Mens Sports Jackets","Sportjack (Heren)"]
["HF2G","H25-hr badslippers","HF2G","Mens Performance Shoes","Badslipper (Heren)"]
["HF2G","H25-hr sportschoenen","HF2G","Mens Performance Shoes","Hockeyschoen (Heren)"]
["HF2G","H25-uni badslippers","HF2G","Mens Performance Shoes","Badslipper (Unisex)"]
["HF2G","H25-uni sportschoenen","HF2G","Mens Performance Shoes","Hockeyschoen (Heren)"]
["RX9H","H26-hr trainingspak","RX9H","Mens Sports Training Suits","Trainingspak (Heren)"]
["VW2F","H30-js sport T-shirt","VW2F","Boys Sports Shirts","Sport t-shirt (Jongens)"]
["VW2F","H30-js sportpolo","VW2F","Boys Sports Shirts","Sportpolo (Jongens)"]
["VW2F","H30-kd sport T-shirt","VW2F","Boys Sports Shirts","Sport t-shirt (Kids)"]
["XP4R","H31-js sportsweater","XP4R","Boys Sports Sweaters","Sportsweater (Jongens)"]
["XP4R","H31-js sportvest","XP4R","Boys Sports Sweaters","Sportvest (Jongens)"]
["XP4R","H31-kd sportsweater","XP4R","Boys Sports Sweaters","Sportsweater (Kids)"]
["XP4R","H31-kd sportvest","XP4R","Boys Sports Sweaters","Sportvest (Kids)"]
["WV3H","H32-js sportondergoed","WV3H","Boys Sportswear Other"]
["RF7M","H32-js sportshort","RF7M","Boys Sports Shorts","Sportbroek (Jongens)"]
["VJ2G","H33-js sportbroek","VJ2G","Boys Sports Pants","Sportbroek (Jongens)"]
["VJ2G","H33-kd sportbroek","VJ2G","Boys Sports Pants","Sportbroek (Kids)"]
["RQ9M","H34-js sportjack","RQ9M","Boys Sports Jackets","Sportjack (Jongens)"]
["RQ9M","H34-kd sportjack","RQ9M","Boys Sports Jackets","Sportjack (Kids)"]
["RQ6F","H35-js badslippers","RQ6F","Boys Performance Shoes","Badslipper (Kids)"]
["RQ6F","H35-js sportschoenen","RQ6F","Boys Performance Shoes","Hockeyschoen Kids)"]
["RQ6F","H35-kd badslippers","RQ6F","Boys Performance Shoes","Badslipper (Kids)"]
["RQ6F","H35-kd sportschoenen","RQ6F","Boys Performance Shoes","Hockeyschoen (Kids)"]
["QG3P","H36-js trainingspak","QG3P","Boys Sports Tracksuits","Trainingspak (Jongens)"]
["QG3P","H36-kd trainingspak","QG3P","Boys Sports Tracksuits","Trainingspak (Kids)"]
["XW5R","H40-kd sport T-shirt","XW5R","Girls Sports Shirts","Sport t-shirt (Meisjes)"]
["XW5R","H40-ms sport T-shirt","XW5R","Girls Sports Shirts","Sport t-shirt (Meisjes)"]
["XW5R","H40-ms sportpolo","XW5R","Girls Sports Shirts","Sportpolo (Meisjes)"]
["XW5R","H40-ms sporttop","XW5R","Girls Sports Shirts","Sporttop (Meisjes)"]
["MG6C","H41-ms sportsweater","MG6C","Girls Sports Sweaters","Sportsweater (Meisjes)"]
["MG6C","H41-ms sportvest","MG6C","Girls Sports Sweaters","Sportvests (Meisjes)"]
["WR9M","H42-kd sportshort","WR9M","Girls Sports Shorts","Sportbroek (Meisjes)"]
["MP8W","H42-ms sportondergoed","MP8W","Girls Sportswear Other"]
["WR9M","H42-ms sportrok","WR9M","Girls Sports Shorts","Sportrokje (Meisjes)"]
["WR9M","H42-ms sportshort","WR9M","Girls Sports Shorts","Sportbroek (Meisjes)"]
["GC4C","H43-kd sportbroek","GC4C","Girls Sports Pants","Sportbroek (Meisjes)"]
["GC4C","H43-ms sportbroek","GC4C","Girls Sports Pants","Sportbroek (Meisjes)"]
["HR7P","H44-ms sportjack","HR7P","Girls Sports Jackets","Sportjack (Meisjes)"]
["FG8J","H45-kd sportschoenen","FG8J","Girls Performance Shoes","Hockeyschoen Kids)"]
["FG8J","H45-ms badslippers","FG8J","Girls Performance Shoes","Badslipper (Kids)"]
["VP4Q","H46-kd trainingspak","VP4Q","Girls Sports Tracksuits","Trainingspak (Meisjes)"]
["VP4Q","H46-ms trainingspak","VP4Q","Girls Sports Tracksuits","Trainingspak (Meisjes)"]
["WX7F","H50-jr sportsokken","WX7F","Sports Socks","Sportsokken (Kids)"]
["VP6F","H50-sport eqm","VP6F","Small Fitness equipment"]
["WX7F","H50-sr sportsokken","WX7F","Sports Socks","Sportsokken (Unisex)"]
["WX7F","H50-uni sportsokken","WX7F","Sports Socks","Sportsokken (Unisex)"]
["MR9F","O10-ds jurk","MR9F","Ladies Sportswear Other","Outdoor jurk (Dames)"]
["RM8Q","O10-ds polo","RM8Q","Ladies Sports Shirts","Outdoor polo (Dames)"]
["MR9F","O10-ds sportBH","MR9F","Ladies Sportswear Other","Sporttop (Bh)"]
["RM8Q","O10-ds T-shirt","RM8Q","Ladies Sports Shirts","Outdoor t-shirt (Dames)"]
["QW3G","O11-ds blouse","QW3G","Ladies Sports Sweaters","Outdoor blouse (Dames)"]
["QW3G","O11-ds sweater","QW3G","Ladies Sports Sweaters","Outdoor sweater (Dames)"]
["QW3G","O11-ds vest","QW3G","Ladies Sports Sweaters","Outdoor vest (Dames)"]
["VR8F","O12-ds outdoorshort","VR8F","Ladies Sports Shorts","Korte outdoor broek (Dames)"]
["VR8F","O12-ds rok","VR8F","Ladies Sports Shorts","Outdoor rok (Dames)"]
["VR8F","O12-ds short","VR8F","Ladies Sports Shorts","Korte outdoor broek (Dames)"]
["VR8F","O12-ds sportrok","VR8F","Ladies Sports Shorts","Outdoor rok (Dames)"]
["XF6P","O13-CONSIG ds outdoorbroek","XF6P","Ladies Sports Pants","Outdoor broek (Dames)"]
["XF6P","O13-ds broek","XF6P","Ladies Sports Pants","Outdoor broek (Dames)"]
["XF6P","O13-ds outdoorbroek","XF6P","Ladies Sports Pants","Outdoor broek (Dames)"]
["XF6P","O13-ds regenbroek","XF6P","Ladies Sports Pants","Regenbroek (Dames)"]
["JP8V","O14-CONSIG ds jack","JP8V","Ladies Sports Jackets","Skijack (Dames)"]
["JP8V","O14-ds bodywarmer","JP8V","Ladies Sports Jackets","Outdoor bodywarmer (Dames)"]
["JP8V","O14-ds jack","JP8V","Ladies Sports Jackets","Outdoor jas (Dames)"]
["JP8V","O14-ds jas","JP8V","Ladies Sports Jackets","Outdoor jas (Dames)"]
["JP8V","O14-ds outdoorjack","JP8V","Ladies Sports Jackets","Outdoor jas (Dames)"]
["JP8V","O14-ds regenjas","JP8V","Ladies Sports Jackets","Regenjas (Dames)"]
["JP8V","O14-GM ds jas","JP8V","Ladies Sports Jackets","Outdoor jas (Dames)"]
["MX3P","O15-ds outdoorschoenen","MX3P","Ladies Performance Shoes","Outdoor schoen (Dames)"]
["MX3P","O15-ds sandalen","MX3P","Ladies Performance Shoes","Outdoor schoen (Dames)"]
["MX3P","O15-ds slippers","MX3P","Ladies Performance Shoes","Badslipper (Dames)"]
["MX3P","O15-ds wandelschoenen","MX3P","Ladies Performance Shoes","Outdoor schoen (Dames)"]
["WF7W","O20-hr polo","WF7W","Mens Sports Shirts","Outdoor polo (Heren)"]
["WF7W","O20-hr T-shirt","WF7W","Mens Sports Shirts","Outdoor t-shirt (Heren)"]
["WF2V","O21-GM hr shirt","WF2V","Mens Sports Sweaters","Outdoor overhemd (Heren)"]
["WF2V","O21-hr shirt","WF2V","Mens Sports Sweaters","Outdoor overhemd (Heren)"]
["WF2V","O21-hr sweater","WF2V","Mens Sports Sweaters","Outdoor sweater (Heren)"]
["WF2V","O21-hr vest","WF2V","Mens Sports Sweaters","Outdoor vest (Heren)"]
["MQ3P","O22-hr outdoorshort","MQ3P","Mens Sports Shorts","Korte outdoor broek (Heren)"]
["MQ3P","O22-hr short","MQ3P","Mens Sports Shorts","Korte outdoor broek (Heren)"]
["XF2F","O23-hr outdoorbroek","XF2F","Mens Sports Pants","Outdoor broek (Heren)"]
["XF2F","O23-hr regenbroek","XF2F","Mens Sports Pants","Regenbroek (Heren)"]
["QF5J","O24-CONSIG hr jack","QF5J","Mens Sports Jackets","Outdoor jas (Heren)"]
["QF5J","O24-GM hr jas","QF5J","Mens Sports Jackets","Outdoor vest (Heren)"]
["QF5J","O24-hr bodywarmer","QF5J","Mens Sports Jackets","Outdoor bodywarmer (Heren)"]
["QF5J","O24-hr jack","QF5J","Mens Sports Jackets","Outdoor jas (Heren)"]
["QF5J","O24-hr jas","QF5J","Mens Sports Jackets","Outdoor vest (Heren)"]
["QF5J","O24-hr outdoorjack","QF5J","Mens Sports Jackets","Outdoor jas (Heren)"]
["QF5J","O24-hr regenjas","QF5J","Mens Sports Jackets","Regenjas (Heren)"]
["HF2G","O25-hr outdoorschoenen","HF2G","Mens Performance Shoes","Outdoor schoen (Heren)"]
["HF2G","O25-hr sandalen","HF2G","Mens Performance Shoes","Outdoor schoen (Heren)"]
["HF2G","O25-hr slippers","HF2G","Mens Performance Shoes","Badslipper (Heren)"]
["HF2G","O25-hr wandelschoenen","HF2G","Mens Performance Shoes","Outdoor schoen (Heren)"]
["HF2G","O25-uni outdoorschoenen","HF2G","Mens Performance Shoes","Outdoor schoen (Unisex)"]
["HF2G","O25-uni sandalen","HF2G","Mens Performance Shoes","Outdoor schoen (Heren)"]
["HF2G","O25-uni sandalen","HF2G","Mens Performance Shoes","Outdoor schoen (Unisex)"]
["HF2G","O25-uni slippers","HF2G","Mens Performance Shoes","Badslipper (Unisex)"]
["HF2G","O25-uni wandelschoenen","HF2G","Mens Performance Shoes","Outdoor schoen (Unisex)"]
["VW2F","O30-js T-shirt","VW2F","Boys Sports Shirts","T-shirt (Jongens)"]
["VW2F","O30-kd T-shirt","VW2F","Boys Sports Shirts","T-shirt (Kids)"]
["XP4R","O31-js sweater","XP4R","Boys Sports Sweaters","Outdoor sweater (Kids)"]
["XP4R","O31-js vest","XP4R","Boys Sports Sweaters","Outdoor vest (Kids)"]
["XP4R","O31-kd sweater","XP4R","Boys Sports Sweaters","Outdoor sweater (Kids)"]
["XP4R","O31-kd vest","XP4R","Boys Sports Sweaters","Outdoor vest (Kids)"]
["RF7M","O32-js outdoorshort","RF7M","Boys Sports Shorts","Korte outdoor broek (Kids)"]
["RF7M","O32-js short","RF7M","Boys Sports Shorts","Korte outdoor broek (Kids)"]
["RF7M","O32-kd short","RF7M","Boys Sports Shorts","Korte outdoor broek (Kids)"]
["VJ2G","O33-kd outdoorbroek","VJ2G","Boys Sports Pants","Outdoor broek (Kids)"]
["VJ2G","O33-kd regenbroek","VJ2G","Boys Sports Pants","Regenbroek (Kids)"]
["RQ9M","O34-CONSIG kd jack","RQ9M","Boys Sports Jackets","Outdoor jas (Kids)"]
["RQ9M","O34-js jack","RQ9M","Boys Sports Jackets","Outdoor jas (Jongens)"]
["RQ9M","O34-js outdoorjack","RQ9M","Boys Sports Jackets","Outdoor jas (Jongens)"]
["RQ9M","O34-js regenjas","RQ9M","Boys Sports Jackets","Regenjas (Kids)"]
["RQ9M","O34-kd jack","RQ9M","Boys Sports Jackets","Jas (Kids) (voor buiten)"]
["RQ9M","O34-kd regenjas","RQ9M","Boys Sports Jackets","Regenjas (Kids)"]
["RQ6F","O35-js sandalen","RQ6F","Boys Performance Shoes","Sandaal (Kids)"]
["RQ6F","O35-js slippers","RQ6F","Boys Performance Shoes","Badslipper (Kids)"]
["RQ6F","O35-js wandelschoenen","RQ6F","Boys Performance Shoes","Outdoor schoen (Kids)"]
["RQ6F","O35-kd sandalen","RQ6F","Boys Performance Shoes","Sandaal (Kids)"]
["RQ6F","O35-kd slippers","RQ6F","Boys Performance Shoes","Badslipper (Kids)"]
["RQ6F","O35-kd wandelschoenen","RQ6F","Boys Performance Shoes","Outdoor schoen (Kids)"]
["XW5R","O40-kd T-shirt","XW5R","Girls Sports Shirts","T-shirt (Meisjes)"]
["XW5R","O40-ms sporttop","XW5R","Girls Sports Shirts","T-shirt (Meisjes)"]
["XW5R","O40-ms T-shirt","XW5R","Girls Sports Shirts","T-shirt (Meisjes)"]
["MG6C","O41-kd sweater","MG6C","Girls Sports Sweaters","Sweater (Kids)"]
["MG6C","O41-kd vest","MG6C","Girls Sports Sweaters","Outdoor vest (Kids)"]
["MG6C","O41-ms sweater","MG6C","Girls Sports Sweaters","Outdoor sweater (Kids)"]
["WR9M","O42-kd outdoorshort","WR9M","Girls Sports Shorts","Korte outdoor broek (Kids)"]
["WR9M","O42-kd short","WR9M","Girls Sports Shorts","Korte outdoor broek (Kids)"]
["WR9M","O42-kd short","WR9M","Girls Sports Shorts","Korte outdoor broek (Kids)"]
["WR9M","O42-ms outdoorshort","WR9M","Girls Sports Shorts","Korte outdoor broek (Kids)"]
["WR9M","O42-ms short","WR9M","Girls Sports Shorts","Korte outdoor broek (Kids)"]
["GC4C","O43-kd outdoorbroek","GC4C","Girls Sports Pants","Outdoor broek (Kids)"]
["GC4C","O43-ms outdoorbroek","GC4C","Girls Sports Pants","Outdoor broek (Kids)"]
["HR7P","O44-CONSIG kd jack","HR7P","Girls Sports Jackets","Outdoor jas (Kids)"]
["HR7P","O44-kd jack","HR7P","Girls Sports Jackets","Outdoor jas (Kids)"]
["RQ9M","O44-kd regenjas","RQ9M","Boys Sports Jackets","Regenjas (Kids)"]
["HR7P","O44-ms jack","HR7P","Girls Sports Jackets","Outdoor jas (Meisjes)"]
["HR7P","O44-ms outdoorjack","HR7P","Girls Sports Jackets","Outdoor jas (Meisjes)"]
["HR7P","O44-ms regenjas","HR7P","Girls Sports Jackets","Regenjas (Kids)"]
["FG8J","O45-ms sandalen","FG8J","Girls Performance Shoes","Sandaal (Kids)"]
["FG8J","O45-ms slippers","FG8J","Girls Performance Shoes","Badslipper (Kids)"]
["FG8J","O45-ms wandelschoenen","FG8J","Girls Performance Shoes","Outdoor schoen (Kids)"]
["PV6Q","O50-outdoor pet","PV6Q","Sports Accessories","Outdoor cap (Unisex)"]
["GQ2V","O50-rugzak","GQ2V","Sports Bags","Rugzak (Dag)"]
["GQ2V","O50-sporttas","GQ2V","Sports Bags","Sporttas"]
["WX7F","O50-uni wandelsokken","WX7F","Sports Socks","Outdoor sokken (Unisex)"]
["RM8Q","R10-ds sport T-shirt","RM8Q","Ladies Sports Shirts","Sport t-shirt (Dames)"]
["MR9F","R10-ds sportBH","MR9F","Ladies Sportswear Other","Sporttop (Bh)"]
["RM8Q","R10-ds sporttop","RM8Q","Ladies Sports Shirts","Sporttop (Dames)"]
["RM8Q","R10-GM ds sport T-shirt","RM8Q","Ladies Sports Shirts","Sport t-shirt (Dames)"]
["RM8Q","R10-GM ds sporttop","RM8Q","Ladies Sports Shirts","Sporttop (Dames)"]
["QW3G","R11-ds sportsweater","QW3G","Ladies Sports Sweaters","Sportsweater (Dames)"]
["QW3G","R11-ds sportvest","QW3G","Ladies Sports Sweaters","Sportvest (Dames)"]
["QW3G","R11-GM ds sportsweater","QW3G","Ladies Sports Sweaters","Sportsweater (Dames)"]
["QW3G","R11-GM ds sportvest","QW3G","Ladies Sports Sweaters","Sportvest (Dames)"]
["VR8F","R12-ds sportshort","VR8F","Ladies Sports Shorts","Sportbroek (Dames)"]
["VR8F","R12-GM ds sportshort","VR8F","Ladies Sports Shorts","Sportbroek (Dames)"]
["XF6P","R13-ds sportbroek","XF6P","Ladies Sports Pants","Sportbroek (Dames)"]
["XF6P","R13-GM ds sportbroek","XF6P","Ladies Sports Pants","Sportbroek (Dames)"]
["JP8V","R14-ds sportjack","JP8V","Ladies Sports Jackets","Sportjack (Dames)"]
["MX3P","R15-ds sportschoenen","MX3P","Ladies Performance Shoes","Hardloopschoen (Dames)"]
["HV9C","R16-ds trainingspak","HV9C","Ladies Sports Tracksuits","Trainingspak (Dames)"]
["WF7W","R20-hr sport T-shirt","WF7W","Mens Sports Shirts","Sport t-shirt (Heren)"]
["WF2V","R21-hr sportsweater","WF2V","Mens Sports Sweaters","Sportsweater (Heren)"]
["WF2V","R21-hr sportvest","WF2V","Mens Sports Sweaters","Sportvest (Heren)"]
["VM3H","R22-hr sportondergoed","VM3H","Mens Sportswear Other","Sportboxer (Heren)"]
["MQ3P","R22-hr sportshort","MQ3P","Mens Sports Shorts","Sportbroek (Heren)"]
["XF2F","R23-hr sportbroek","XF2F","Mens Sports Pants","Sportbroek (Heren)"]
["QF5J","R24-hr sport bodywarmer","QF5J","Mens Sports Jackets","Sport bodywarmer (Heren)"]
["QF5J","R24-hr sportjack","QF5J","Mens Sports Jackets","Sportjack (Heren)"]
["HF2G","R25-hr sportschoenen","HF2G","Mens Performance Shoes","Hardloopschoen (Heren)"]
["RX9H","R26-hr trainingspak","RX9H","Mens Sports Training Suits","Trainingspak (Heren)"]
["VW2F","R30-js sport T-shirt","VW2F","Boys Sports Shirts","Sport t-shirt (Jongens)"]
["VW2F","R30-kd sport T-shirt","VW2F","Boys Sports Shirts","Sport t-shirt (Kids)"]
["XP4R","R31-js sportsweater","XP4R","Boys Sports Sweaters","Sportsweater (Jongens)"]
["XP4R","R31-js sportvest","XP4R","Boys Sports Sweaters","Sportvest (Jongens)"]
["WV3H","R32-js sportondergoed","WV3H","Boys Sportswear Other"]
["RF7M","R32-js sportshort","RF7M","Boys Sports Shorts","Sportbroek (Jongens)"]
["VJ2G","R33-js sportbroek","VJ2G","Boys Sports Pants","Sportbroek (Jongens)"]
["RQ9M","R34-js sportjack","RQ9M","Boys Sports Jackets","Sportjack (Jongens)"]
["RQ6F","R35-js sportschoenen","RQ6F","Boys Performance Shoes","Hardloopschoen (Kids)"]
["RQ6F","R35-kd sportschoenen","RQ6F","Boys Performance Shoes","Hardloopschoen (Kids)"]
["QG3P","R36-js trainingspak","QG3P","Boys Sports Tracksuits","Trainingspak (Jongens)"]
["QG3P","R36-kd trainingspak","QG3P","Boys Sports Tracksuits","Trainingspak (Kids)"]
["XW5R","R40-ms sport T-shirt","XW5R","Girls Sports Shirts","Sport t-shirt (Meisjes)"]
["XW5R","R40-ms sporttop","XW5R","Girls Sports Shirts","Sporttop (Meisjes)"]
["MG6C","R41-ms sportsweater","MG6C","Girls Sports Sweaters","Sportsweater (Meisjes)"]
["MG6C","R41-ms sportvest","MG6C","Girls Sports Sweaters","Sportvest (Meisjes)"]
["WR9M","R42-kd sportshort","WR9M","Girls Sports Shorts","Sportbroek (Meisjes)"]
["MP8W","R42-ms sportondergoed","MP8W","Girls Sportswear Other"]
["WR9M","R42-ms sportshort","WR9M","Girls Sports Shorts","Sportbroek (Meisjes)"]
["GC4C","R43-kd sportbroek","GC4C","Girls Sports Pants","Sportbroek (Meisjes)"]
["GC4C","R43-ms sportbroek","GC4C","Girls Sports Pants","Sportbroek (Meisjes)"]
["HR7P","R44-ms sportjack","HR7P","Girls Sports Jackets","Sportjack (Meisjes)"]
["FG8J","R45-kd sportschoenen","FG8J","Girls Performance Shoes","Hardloopschoen (Kids)"]
["FG8J","R45-ms sportschoenen","FG8J","Girls Performance Shoes","Hardloopschoen (Kids)"]
["VP4Q","R46-ms trainingspak","VP4Q","Girls Sports Tracksuits","Trainingspak (Meisjes)"]
["WX7F","R50-ds sportsokken","WX7F","Sports Socks","Sportsokken (Dames)"]
["WX7F","R50-hr sportsokken","WX7F","Sports Socks","Sportsokken (Heren)"]
["WX7F","R50-kd sportsokken","WX7F","Sports Socks","Sportsokken (Kids)"]
["PV6Q","R50-sport acc","PV6Q","Sports Accessories","Sportarmband"]
["MR9F","S10-ds badpak","MR9F","Ladies Sportswear Other","Badpak (Dames)"]
["MR9F","S10-ds jurk","MR9F","Ladies Sportswear Other","Jurk (Dames)"]
["MR9F","S10-ds kimono","MR9F","Ladies Sportswear Other"]
["RM8Q","S10-ds polo","RM8Q","Ladies Sports Shirts","Polo (Dames)"]
["RM8Q","S10-ds sport T-shirt","RM8Q","Ladies Sports Shirts","T-shirt (Dames)"]
["MR9F","S10-ds sportBH","MR9F","Ladies Sportswear Other","Sporttop (Bh)"]
["MR9F","S10-ds sportjurk","MR9F","Ladies Sportswear Other","Jurk (Dames)"]
["RM8Q","S10-ds sporttop","RM8Q","Ladies Sports Shirts","Singlet (Dames)"]
["MR9F","S10-GM ds jurk","MR9F","Ladies Sportswear Other","Jurk (Dames)"]
["RM8Q","S10-GM ds sport T-shirt","RM8Q","Ladies Sports Shirts","T-shirt (Dames)"]
["RM8Q","S10-GM ds sporttop","RM8Q","Ladies Sports Shirts","Singlet (Dames)"]
["QW3G","S11-ds sportsweater","QW3G","Ladies Sports Sweaters","Trui (Dames)"]
["QW3G","S11-ds sportvest","QW3G","Ladies Sports Sweaters","Vest (Dames)"]
["QW3G","S11-GM ds sportsweater","QW3G","Ladies Sports Sweaters","Trui (Dames)"]
["QW3G","S11-GM ds sportvest","QW3G","Ladies Sports Sweaters","Vest (Dames)"]
["VR8F","S12-ds rok","VR8F","Ladies Sports Shorts","Rok (Dames)"]
["VR8F","S12-ds sportrok","VR8F","Ladies Sports Shorts","Rok (Dames)"]
["VR8F","S12-ds sportshort","VR8F","Ladies Sports Shorts","Korte broek (Dames)"]
["VR8F","S12-GM ds sportshort","VR8F","Ladies Sports Shorts","Korte broek (Dames)"]
["XF6P","S13-ds sportbroek","XF6P","Ladies Sports Pants","Broek (Dames)"]
["XF6P","S13-GM ds sportbroek","XF6P","Ladies Sports Pants","Broek (Dames)"]
["JP8V","S14-ds jack","JP8V","Ladies Sports Jackets","Jas (Dames)"]
["JP8V","S14-ds jas","JP8V","Ladies Sports Jackets","Jas (Dames)"]
["JP8V","S14-GM ds jack","JP8V","Ladies Sports Jackets","Jas (Dames)"]
["JP8V","S14-GM ds jas","JP8V","Ladies Sports Jackets","Jas (Dames)"]
["MX3P","S15-ds slippers","MX3P","Ladies Performance Shoes","Badslipper (Dames)"]
["WX2Q","S15-ds sneakers","WX2Q","Ladies Sports Sneakers","Sneaker (Dames)"]
["HV9C","S16-ds trainingspak","HV9C","Ladies Sports Tracksuits","Trainingspak (Dames)"]
["WF7W","S20-hr polo","WF7W","Mens Sports Shirts","Polo (Heren)"]
["WF7W","S20-hr sport T-shirt","WF7W","Mens Sports Shirts","T-shirt (Heren)"]
["WF7W","S20-hr sportpolo","WF7W","Mens Sports Shirts","Polo (Heren)"]
["WF7W","S20-hr T-shirt","WF7W","Mens Sports Shirts","T-shirt (Heren)"]
["WF2V","S21-hr sportsweater","WF2V","Mens Sports Sweaters","Trui (Heren)"]
["WF2V","S21-hr sportvest","WF2V","Mens Sports Sweaters","Vest (Heren)"]
["WF2V","S21-hr sweater","WF2V","Mens Sports Sweaters","Trui (Heren)"]
["MQ3P","S22-hr short","MQ3P","Mens Sports Shorts","Korte broek (Confectiemaat) (Heren)"]
["VM3H","S22-hr sportboxer","VM3H","Mens Sportswear Other","Sportboxer (Heren)"]
["VM3H","S22-hr sportondergoed","VM3H","Mens Sportswear Other","Sportboxer (Heren)"]
["MQ3P","S22-hr sportshort","MQ3P","Mens Sports Shorts","Korte broek (Confectiemaat) (Heren)"]
["MQ3P","S22-hr zwemshort","MQ3P","Mens Sports Shorts","Zwemshort (Heren)"]
["XF2F","S23-hr sportbroek","XF2F","Mens Sports Pants","Broek (Confectiemaat) (Heren)"]
["QF5J","S24-hr bodywarmer","QF5J","Mens Sports Jackets","Outdoor body"]
["QF5J","S24-hr jack","QF5J","Mens Sports Jackets","Jas (Heren)"]
["QF5J","S24-hr jas","QF5J","Mens Sports Jackets","Jas (Heren)"]
["HF2G","S25-hr slippers","HF2G","Mens Performance Shoes","Badslipper (Heren)"]
["RC7R","S25-hr sneakers","RC7R","Mens Sports Sneakers","Sneaker (Heren)"]
["HF2G","S25-uni slippers","HF2G","Mens Performance Shoes","Badslipper (Unisex)"]
["RC7R","S25-uni sneakers","RC7R","Mens Sports Sneakers","Sneaker (Unisex)"]
["RX9H","S26-hr trainingspak","RX9H","Mens Sports Training Suits","Trainingspak (Heren)"]
["VW2F","S30-js sport T-shirt","VW2F","Boys Sports Shirts","T-shirt (Jongens)"]
["VW2F","S30-kd sport T-shirt","VW2F","Boys Sports Shirts","T-shirt (Kids)"]
["VW2F","S30-kd T-shirt","VW2F","Boys Sports Shirts","T-shirt (Kids)"]
["XP4R","S31-js sportsweater","XP4R","Boys Sports Sweaters","Sweater (Jongens)"]
["XP4R","S31-js sportvest","XP4R","Boys Sports Sweaters","Vest (Jongens)"]
["XP4R","S31-js sweater","XP4R","Boys Sports Sweaters","Sweater (Jongens)"]
["XP4R","S31-kd sportsweater","XP4R","Boys Sports Sweaters","Sweater (Kids)"]
["XP4R","S31-kd sportvest","XP4R","Boys Sports Sweaters","Vest (Kids)"]
["XP4R","S31-kd sweater","XP4R","Boys Sports Sweaters","Sweater (Kids)"]
["WV3H","S32-js sportondergoed","WV3H","Boys Sportswear Other"]
["RF7M","S32-js sportshort","RF7M","Boys Sports Shorts","Korte broek (Jongens)"]
["RF7M","S32-kd short","RF7M","Boys Sports Shorts","Broek (Jongens)"]
["RF7M","S32-kd sportshort","RF7M","Boys Sports Shorts","Korte broek (Kids)"]
["RF7M","S32-kd zwemshort","RF7M","Boys Sports Shorts","Zwemshort (Jongens)"]
["VJ2G","S33-js sportbroek","VJ2G","Boys Sports Pants","Broek (Jongens)"]
["VJ2G","S33-kd sportbroek","VJ2G","Boys Sports Pants","Broek (Kids)"]
["RQ9M","S34-js jack","RQ9M","Boys Sports Jackets","Jas (Jongens) (voor buiten)"]
["RQ9M","S34-js jas","RQ9M","Boys Sports Jackets","Jas (Jongens) (voor buiten)"]
["RQ9M","S34-kd jack","RQ9M","Boys Sports Jackets","Jas (Kids) (voor buiten)"]
["RQ6F","S35-js slippers","RQ6F","Boys Performance Shoes","Badslipper (Kids)"]
["RC2P","S35-js sneakers","RC2P","Boys Sports Sneakers","Sneaker (Kids)"]
["RQ6F","S35-kd slippers","RQ6F","Boys Performance Shoes","Badslipper (Kids)"]
["RC2P","S35-kd sneakers","RC2P","Boys Sports Sneakers","Sneaker (Kids)"]
["RQ6F","S35-kd waterschoenen","RQ6F","Boys Performance Shoes","Waterschoen (Kids)"]
["QG3P","S36-js sportset","QG3P","Boys Sports Tracksuits","Shirt + broek (Jongens)"]
["QG3P","S36-js trainingspak","QG3P","Boys Sports Tracksuits","Joggingpak (Kids)"]
["QG3P","S36-kd sportset","QG3P","Boys Sports Tracksuits","Shirt + broek (Kids)"]
["QG3P","S36-kd trainingspak","QG3P","Boys Sports Tracksuits","Joggingpak (Kids)"]
["XW5R","S40-kd badpak","XW5R","Girls Sports Shirts","Sportbadpak (Meisjes)"]
["XW5R","S40-kd sport T-shirt","XW5R","Girls Sports Shirts","T-shirt (Meisjes)"]
["MP8W","S40-ms jurk","MP8W","Girls Sportswear Other","Jurk (Meisjes)"]
["XW5R","S40-ms sport T-shirt","XW5R","Girls Sports Shirts","T-shirt (Meisjes)"]
["XW5R","S40-ms sporttop","XW5R","Girls Sports Shirts","T-shirt (Meisjes)"]
["MG6C","S41-kd sportsweater","MG6C","Girls Sports Sweaters","Sweater (Kids)"]
["MG6C","S41-ms sportsweater","MG6C","Girls Sports Sweaters","Sweater (Meisjes)"]
["MG6C","S41-ms sportvest","MG6C","Girls Sports Sweaters","Vest (Meisjes)"]
["MG6C","S41-ms sweater","MG6C","Girls Sports Sweaters","Sweater (Meisjes)"]
["WR9M","S42-kd sportshort","WR9M","Girls Sports Shorts","Korte broek (Meisjes)"]
["WR9M","S42-kd sportshort","WR9M","Girls Sports Shorts","Korte broek (Meisjes)"]
["MP8W","S42-ms sportondergoed","MP8W","Girls Sportswear Other"]
["WR9M","S42-ms sportshort","WR9M","Girls Sports Shorts","Korte broek (Meisjes)"]
["GC4C","S43-kd sportbroek","GC4C","Girls Sports Pants","Broek (Meisjes)"]
["GC4C","S43-ms sportbroek","GC4C","Girls Sports Pants","Broek (Meisjes)"]
["HR7P","S44-kd jack","HR7P","Girls Sports Jackets","Jas (Meisjes) (voor buiten)"]
["HR7P","S44-ms jack","HR7P","Girls Sports Jackets","Jas (Meisjes) (voor buiten)"]
["HR7P","S44-ms jas","HR7P","Girls Sports Jackets","Jas (Meisjes) (voor buiten)"]
["FG8J","S45-kd slippers","FG8J","Girls Performance Shoes","Badslipper (Kids)"]
["GC9W","S45-kd sneakers","GC9W","Girls Sports Sneakers","Sneaker (Kids)"]
["FG8J","S45-ms slippers","FG8J","Girls Performance Shoes","Badslipper (Kids)"]
["GC9W","S45-ms sneakers","GC9W","Girls Sports Sneakers","Sneaker (Meisjes)"]
["VP4Q","S46-kd trainingspak","VP4Q","Girls Sports Tracksuits","Joggingpak (Meisjes)"]
["VP4Q","S46-ms sportset","VP4Q","Girls Sports Tracksuits","Shirt + broek (Meisjes)"]
["VP4Q","S46-ms trainingspak","VP4Q","Girls Sports Tracksuits","Joggingpak (Meisjes)"]
["WX7F","S50-ds sokken","WX7F","Sports Socks","Sokken (Dames)"]
["WX7F","S50-ds sportsokken","WX7F","Sports Socks","Sokken (Dames)"]
["WX7F","S50-hr sokken","WX7F","Sports Socks","Sokken (Heren)"]
["PV6Q","S50-kd pet","PV6Q","Sports Accessories","Pet (Kids)"]
["WX7F","S50-kd sportsokken","WX7F","Sports Socks","Sokken (Kids)"]
["PV6Q","S50-pet","PV6Q","Sports Accessories","Pet (Unisex)"]
["GQ2V","S50-rugzak","GQ2V","Sports Bags","Rugzak (Unisex)"]
["GQ2V","S50-sporttas","GQ2V","Sports Bags","Sporttas"]
["WX7F","S50-uni sokken","WX7F","Sports Socks","Sokken (Unisex)"]
["WX7F","S50-uni sportsokken","WX7F","Sports Socks","Sokken (Unisex)"]
["RM8Q","T10-ds sport T-shirt","RM8Q","Ladies Sports Shirts","Sport t-shirt (Dames)"]
["MR9F","T10-ds sportBH","MR9F","Ladies Sportswear Other","Sporttop (Bh)"]
["MR9F","T10-ds sportjurk","MR9F","Ladies Sportswear Other","Sportjurkje (Dames)"]
["RM8Q","T10-ds sportpolo","RM8Q","Ladies Sports Shirts","Sportpolo (Dames)"]
["RM8Q","T10-ds sporttop","RM8Q","Ladies Sports Shirts","Sporttop (Dames)"]
["RM8Q","T10-GM ds sport T-shirt","RM8Q","Ladies Sports Shirts","Sport t-shirt (Dames)"]
["RM8Q","T10-GM ds sportpolo","RM8Q","Ladies Sports Shirts","Sportpolo (Dames)"]
["RM8Q","T10-GM ds sporttop","RM8Q","Ladies Sports Shirts","Sporttop (Dames)"]
["QW3G","T11-ds sportsweater","QW3G","Ladies Sports Sweaters","Sportsweater (Dames)"]
["QW3G","T11-ds sportvest","QW3G","Ladies Sports Sweaters","Sportvest (Dames)"]
["QW3G","T11-GM ds sportvest","QW3G","Ladies Sports Sweaters","Sportvest (Dames)"]
["VR8F","T12-ds sportrok","VR8F","Ladies Sports Shorts","Sportrokje (Dames)"]
["VR8F","T12-ds sportshort","VR8F","Ladies Sports Shorts","Sportbroek (Dames)"]
["XF6P","T13-ds sportbroek","XF6P","Ladies Sports Pants","Sportbroek (Dames)"]
["XF6P","T13-GM ds sportbroek","XF6P","Ladies Sports Pants","Sportbroek (Dames)"]
["JP8V","T14-ds sportjack","JP8V","Ladies Sports Jackets","Sportjack (Dames)"]
["MX3P","T15-ds badslippers","MX3P","Ladies Performance Shoes","Badslipper (Dames)"]
["MX3P","T15-ds sportschoenen","MX3P","Ladies Performance Shoes","Tennisschoen (Dames)"]
["HV9C","T16-ds trainingspak","HV9C","Ladies Sports Tracksuits","Trainingspak (Dames)"]
["WF7W","T20-hr sport T-shirt","WF7W","Mens Sports Shirts","Sport t-shirt (Heren)"]
["WF7W","T20-hr sportpolo","WF7W","Mens Sports Shirts","Sportpolo (Heren)"]
["WF2V","T21-hr sportsweater","WF2V","Mens Sports Sweaters","Sportsweater (Heren)"]
["WF2V","T21-hr sportvest","WF2V","Mens Sports Sweaters","Sportvest (Heren)"]
["VM3H","T22-hr sportondergoed","VM3H","Mens Sportswear Other","Sportboxer (Heren)"]
["MQ3P","T22-hr sportshort","MQ3P","Mens Sports Shorts","Sportbroek (Heren)"]
["XF2F","T23-hr sportbroek","XF2F","Mens Sports Pants","Sportbroek (Heren)"]
["QF5J","T24-hr sportjack","QF5J","Mens Sports Jackets","Sportjack (Heren)"]
["HF2G","T25-hr badslippers","HF2G","Mens Performance Shoes","Badslipper (Heren)"]
["HF2G","T25-hr sportschoenen","HF2G","Mens Performance Shoes","Tennisschoen (Heren)"]
["HF2G","T25-uni badslippers","HF2G","Mens Performance Shoes","Badslipper (Unisex)"]
["HF2G","T25-uni sportschoenen","HF2G","Mens Performance Shoes","Tennisschoen (Unisex)"]
["RX9H","T26-hr trainingspak","RX9H","Mens Sports Training Suits","Trainingspak (Heren)"]
["VW2F","T30-js sport T-shirt","VW2F","Boys Sports Shirts","Sport t-shirt (Jongens)"]
["XP4R","T31-js sportsweater","XP4R","Boys Sports Sweaters","Sportsweater (Jongens)"]
["XP4R","T31-js sportvest","XP4R","Boys Sports Sweaters","Sportvest (Jongens)"]
["WV3H","T32-js sportondergoed","WV3H","Boys Sportswear Other"]
["RF7M","T32-js sportshort","RF7M","Boys Sports Shorts","Sportbroek (Jongens)"]
["VJ2G","T33-js sportbroek","VJ2G","Boys Sports Pants","Sportbroek (Jongens)"]
["RQ9M","T34-js sportjack","RQ9M","Boys Sports Jackets","Sportjack (Jongens)"]
["RQ6F","T35-js badslippers","RQ6F","Boys Performance Shoes","Badslipper (Kids)"]
["RQ6F","T35-js sportschoenen","RQ6F","Boys Performance Shoes","Tennisschoen (Kids)"]
["RQ6F","T35-kd badslippers","RQ6F","Boys Performance Shoes","Badslipper (Kids)"]
["RQ6F","T35-kd sportschoenen","RQ6F","Boys Performance Shoes","Tennisschoen (Kids)"]
["QG3P","T36-js trainingspak","QG3P","Boys Sports Tracksuits","Trainingspak (Jongens)"]
["QG3P","T36-kd trainingspak","QG3P","Boys Sports Tracksuits","Trainingspak (Kids)"]
["XW5R","T40-ms sport T-shirt","XW5R","Girls Sports Shirts","Sport t-shirt (Meisjes)"]
["MP8W","T40-ms sportjurk","MP8W","Girls Sportswear Other","Sportjurkje (Meisjes)"]
["MG6C","T41-ms sportsweater","MG6C","Girls Sports Sweaters","Sportsweater (Meisjes)"]
["MG6C","T41-ms sportvest","MG6C","Girls Sports Sweaters","Sportvest (Meisjes)"]
["WR9M","T42-kd sportrok","WR9M","Girls Sports Shorts","Sportrokje (Meisjes)"]
["WR9M","T42-kd sportshort","WR9M","Girls Sports Shorts","Sportbroek (Meisjes)"]
["MP8W","T42-ms sportondergoed","MP8W","Girls Sportswear Other"]
["WR9M","T42-ms sportrok","WR9M","Girls Sports Shorts","Sportrokje (Meisjes)"]
["WR9M","T42-ms sportshort","WR9M","Girls Sports Shorts","Sportbroek (Meisjes)"]
["GC4C","T43-kd sportbroek","GC4C","Girls Sports Pants","Sportbroek (Meisjes)"]
["GC4C","T43-ms sportbroek","GC4C","Girls Sports Pants","Sportbroek (Meisjes)"]
["HR7P","T44-ms sportjack","HR7P","Girls Sports Jackets","Sportjack (Meisjes)"]
["FG8J","T45-kd sportschoenen","FG8J","Girls Performance Shoes","Tennisschoen (Kids)"]
["FG8J","T45-ms badslippers","FG8J","Girls Performance Shoes","Badslipper (Kids)"]
["FG8J","T45-ms sportschoenen","FG8J","Girls Performance Shoes","Tennisschoen (Kids)"]
["VP4Q","T46-kd trainingspak","VP4Q","Girls Sports Tracksuits","Trainingspak (Meisjes)"]
["VP4Q","T46-ms trainingspak","VP4Q","Girls Sports Tracksuits","Trainingspak (Meisjes)"]
["GQ2V","T50-rugzak","GQ2V","Sports Bags","Sporttas"]
["VP6F","T50-sport eqm","VP6F","Small Fitness equipment"]
["GQ2V","T50-sporttas","GQ2V","Sports Bags","Sporttas"]
["RM8Q","V10-ds sport T-shirt","RM8Q","Ladies Sports Shirts","Sport t-shirt (Dames)"]
["MR9F","V10-ds sportBH","MR9F","Ladies Sportswear Other","Sporttop (Bh)"]
["RM8Q","V10-ds sporttop","RM8Q","Ladies Sports Shirts","Sporttop (Dames)"]
["QW3G","V11-ds sportsweater","QW3G","Ladies Sports Sweaters","Sportsweater (Dames)"]
["QW3G","V11-ds sportvest","QW3G","Ladies Sports Sweaters","Sportvest (Dames)"]
["VR8F","V12-ds sportshort","VR8F","Ladies Sports Shorts","Sportbroek (Dames)"]
["XF6P","V13-ds sportbroek","XF6P","Ladies Sports Pants","Sportbroek (Dames)"]
["JP8V","V14-ds sportjack","JP8V","Ladies Sports Jackets","Sportjack (Dames)"]
["MX3P","V15-ds badslippers","MX3P","Ladies Performance Shoes","Badslipper (Dames)"]
["MX3P","V15-ds sportschoenen","MX3P","Ladies Performance Shoes","Voetbalschoen (Dames)"]
["HV9C","V16-ds trainingspak","HV9C","Ladies Sports Tracksuits","Trainingspak (Dames)"]
["WF7W","V20-hr sport T-shirt","WF7W","Mens Sports Shirts","Sport t-shirt (Heren)"]
["WF7W","V20-hr sportpolo","WF7W","Mens Sports Shirts","Sportpolo (Heren)"]
["WF2V","V21-hr sportsweater","WF2V","Mens Sports Sweaters","Sportsweater (Heren)"]
["WF2V","V21-hr sportvest","WF2V","Mens Sports Sweaters","Sportvest (Heren)"]
["VM3H","V22-hr sportondergoed","VM3H","Mens Sportswear Other","Sportboxer (Heren)"]
["MQ3P","V22-hr sportshort","MQ3P","Mens Sports Shorts","Sportbroek (Heren)"]
["XF2F","V23-hr sportbroek","XF2F","Mens Sports Pants","Sportbroek (Heren)"]
["QF5J","V24-hr sportjack","QF5J","Mens Sports Jackets","Sportjack (Heren)"]
["HF2G","V25-hr badslippers","HF2G","Mens Performance Shoes","Badslipper (Heren)"]
["HF2G","V25-hr sportschoenen","HF2G","Mens Performance Shoes","Voetbalschoen (Heren)"]
["HF2G","V25-uni badslippers","HF2G","Mens Performance Shoes","Badslipper (Unisex)"]
["HF2G","V25-uni sportschoenen","HF2G","Mens Performance Shoes","Voetbalschoen (Unisex)"]
["RX9H","V26-hr trainingspak","RX9H","Mens Sports Training Suits","Trainingspak (Heren)"]
["VW2F","V30-js sport T-shirt","VW2F","Boys Sports Shirts","Sport t-shirt (Jongens)"]
["VW2F","V30-kd sport T-shirt","VW2F","Boys Sports Shirts","Sport t-shirt (Kids)"]
["XP4R","V31-js sportsweater","XP4R","Boys Sports Sweaters","Sportsweater (Jongens)"]
["XP4R","V31-js sportvest","XP4R","Boys Sports Sweaters","Sportvest (Jongens)"]
["XP4R","V31-kd sportsweater","XP4R","Boys Sports Sweaters","Sportsweater (Kids)"]
["XP4R","V31-kd sportvest","XP4R","Boys Sports Sweaters","Sportvest (Kids)"]
["WV3H","V32-js sportondergoed","WV3H","Boys Sportswear Other"]
["RF7M","V32-js sportshort","RF7M","Boys Sports Shorts","Sportbroek (Jongens)"]
["RF7M","V32-kd sportshort","RF7M","Boys Sports Shorts","Sportbroek (Kids)"]
["VJ2G","V33-js sportbroek","VJ2G","Boys Sports Pants","Sportbroek (Jongens)"]
["VJ2G","V33-kd sportbroek","VJ2G","Boys Sports Pants","Sportbroek (Kids)"]
["RQ9M","V34-js sportjack","RQ9M","Boys Sports Jackets","Sportjack (Jongens)"]
["RQ9M","V34-kd sportjack","RQ9M","Boys Sports Jackets","Sportjack (Kids)"]
["RQ6F","V35-js badslippers","RQ6F","Boys Performance Shoes","Badslipper (Kids)"]
["RQ6F","V35-js sportschoenen","RQ6F","Boys Performance Shoes","Voetbalschoen (Kids)"]
["RQ6F","V35-kd badslippers","RQ6F","Boys Performance Shoes","Badslipper (Kids)"]
["RQ6F","V35-kd sportschoenen","RQ6F","Boys Performance Shoes","Voetbalschoen (Kids)"]
["QG3P","V36-js trainingspak","QG3P","Boys Sports Tracksuits","Trainingspak (Jongens)"]
["QG3P","V36-kd sportset","QG3P","Boys Sports Tracksuits","Sportset (Kids)"]
["QG3P","V36-kd trainingspak","QG3P","Boys Sports Tracksuits","Trainingspak (Kids)"]
["XW5R","V40-ms sport T-shirt","XW5R","Girls Sports Shirts","Sport t-shirt (Meisjes)"]
["MG6C","V41-ms sportsweater","MG6C","Girls Sports Sweaters","Sportsweater (Meisjes)"]
["MG6C","V41-ms sportvest","MG6C","Girls Sports Sweaters","Sportvest (Meisjes)"]
["WR9M","V42-kd sportshort","WR9M","Girls Sports Shorts","Sportbroek (Meisjes)"]
["MP8W","V42-ms sportondergoed","MP8W","Girls Sportswear Other"]
["WR9M","V42-ms sportshort","WR9M","Girls Sports Shorts","Sportbroek (Meisjes)"]
["GC4C","V43-kd sportbroek","GC4C","Girls Sports Pants","Sportbroek (Meisjes)"]
["GC4C","V43-ms sportbroek","GC4C","Girls Sports Pants","Sportbroek (Meisjes)"]
["HR7P","V44-ms sportjack","HR7P","Girls Sports Jackets","Sportjack (Meisjes)"]
["FG8J","V45-ms badslippers","FG8J","Girls Performance Shoes","Badslipper (Kids)"]
["FG8J","V45-ms sportschoenen","FG8J","Girls Performance Shoes","Voetbalschoen (Kids)"]
["VP4Q","V46-kd trainingspak","VP4Q","Girls Sports Tracksuits","Trainingspak (Meisjes)"]
["VP4Q","V46-ms trainingspak","VP4Q","Girls Sports Tracksuits","Trainingspak (Meisjes)"]
["WX7F","V50-hr sportsokken","WX7F","Sports Socks","Sportsokken (Heren)"]
["WX7F","V50-kd sportsokken","WX7F","Sports Socks","Sportsokken (Kids)"]
["GQ2V","V50-rugzak","GQ2V","Sports Bags","Sporttas"]
["PV6Q","V50-scheenbeschermers","PV6Q","Sports Accessories","Scheenbeschermers"]
["VP6F","V50-sport eqm","VP6F","Small Fitness equipment"]
["PV6Q","V50-sport handschoenen","PV6Q","Sports Accessories","Keepershandschoenen"]
["PV6Q","V50-sport sjaal","PV6Q","Sports Accessories","Sportsjaal (Heren)"]
["GQ2V","V50-sporttas","GQ2V","Sports Bags","Sporttas"]
["WX7F","V50-uni sportsokken","WX7F","Sports Socks","Sportsokken (Unisex)"]
["VP6F","V50-voetbal","VP6F","Small Fitness equipment","Voetbal"]
["MR9F","W10-CONSIG ds thermoshirt","MR9F","Ladies Sportswear Other","Thermo shirt (Dames)"]
["MR9F","W10-ds sport thermoshirt","MR9F","Ladies Sportswear Other","Thermo broek (Dames)"]
["RM8Q","W10-ds sport T-shirt","RM8Q","Ladies Sports Shirts","Sport t-shirt (Dames)"]
["MR9F","W10-ds sportBH","MR9F","Ladies Sportswear Other","Sporttop (Bh)"]
["QW3G","W11-CONSIG ds skipully","QW3G","Ladies Sports Sweaters","Skipully (Dames)"]
["QW3G","W11-CONSIG ds skisweater","QW3G","Ladies Sports Sweaters","Skipully (Dames)"]
["QW3G","W11-CONSIG ds skivest","QW3G","Ladies Sports Sweaters","Skivest (Dames)"]
["QW3G","W11-ds skipully","QW3G","Ladies Sports Sweaters","Skipully (Dames)"]
["QW3G","W11-ds skisweater","QW3G","Ladies Sports Sweaters","Skipully (Dames)"]
["QW3G","W11-ds skivest","QW3G","Ladies Sports Sweaters","Skivest (Dames)"]
["MR9F","W11-ds sport thermoshirt","MR9F","Ladies Sportswear Other","Thermo shirt (Dames)"]
["MR9F","W11-ds sport thermovest","MR9F","Ladies Sportswear Other","Thermo shirt (Dames)"]
["MR9F","W13-CONSIG ds thermobroek","MR9F","Ladies Sportswear Other","Thermo broek (Dames)"]
["XF6P","W13-ds skibroek","XF6P","Ladies Sports Pants","Skibroek (Dames)"]
["MR9F","W13-ds sport thermobroek","MR9F","Ladies Sportswear Other","Thermo broek (Dames)"]
["JP8V","W14-ds ski-jack","JP8V","Ladies Sports Jackets","Skijack (Dames)"]
["MX3P","W15-ds snowboots","MX3P","Ladies Performance Shoes","Snowboot (Dames)"]
["HV9C","W16-ds skipak","HV9C","Ladies Sports Tracksuits","Skipak (Dames)"]
["MR9F","W16-ds sport thermoset","MR9F","Ladies Sportswear Other","Thermo shirt (Dames)"]
["MR9F","W16-ds sportondergoed","MR9F","Ladies Sportswear Other"]
["VM3H","W20-CONSIG hr thermoshirt","VM3H","Mens Sportswear Other","Thermo shirt (Heren)"]
["VM3H","W20-hr sport thermoshirt","VM3H","Mens Sportswear Other","Thermo shirt (Heren)"]
["WF2V","W21-CONSIG hr skipully","WF2V","Mens Sports Sweaters","Skipully (Heren)"]
["WF2V","W21-CONSIG hr skisweater","WF2V","Mens Sports Sweaters","Skipully (Heren)"]
["WF2V","W21-CONSIG hr skivest","WF2V","Mens Sports Sweaters","Skivest (Heren)"]
["WF2V","W21-hr skipully","WF2V","Mens Sports Sweaters","Skipully (Heren)"]
["WF2V","W21-hr skisweater","WF2V","Mens Sports Sweaters","Skipully (Heren)"]
["WF2V","W21-hr skivest","WF2V","Mens Sports Sweaters","Skivest (Heren)"]
["VM3H","W22-hr sportondergoed","VM3H","Mens Sportswear Other","Sportboxer (Heren)"]
["VM3H","W23-CONSIG hr thermobroek","VM3H","Mens Sportswear Other","Thermo broek (Heren)"]
["XF2F","W23-hr skibroek","XF2F","Mens Sports Pants","Skibroek (Heren)"]
["VM3H","W23-hr sport thermobroek","VM3H","Mens Sportswear Other","Thermo broek (Heren)"]
["QF5J","W24-hr ski-jack","QF5J","Mens Sports Jackets","Skijack (Heren)"]
["HF2G","W25-hr snowboots","HF2G","Mens Performance Shoes","Snowboot (Heren)"]
["HF2G","W25-uni snowboots","HF2G","Mens Performance Shoes","Snowboot (Unisex)"]
["RX9H","W26-hr skipak","RX9H","Mens Sports Training Suits","Skipak (Heren)"]
["VM3H","W26-hr sport thermoset","VM3H","Mens Sportswear Other","Thermo shirt (Heren)"]
["VM3H","W26-hr sportondergoed","VM3H","Mens Sportswear Other"]
["VW2F","W30-js sport T-shirt","VW2F","Boys Sports Shirts","Sport t-shirt (Jongens)"]
["WV3H","W30-kd sport thermoshirt","WV3H","Boys Sportswear Other","Thermo ondergoed (Kids)"]
["WV3H","W30-kd sportondergoed","WV3H","Boys Sportswear Other"]
["XP4R","W31-CONSIG kd skipully","XP4R","Boys Sports Sweaters","Skipully (Kids)"]
["XP4R","W31-CONSIG kd skivest","XP4R","Boys Sports Sweaters","Skivest (Kids)"]
["XP4R","W31-js skipully","XP4R","Boys Sports Sweaters","Skipully (Jongens)"]
["XP4R","W31-js skisweater","XP4R","Boys Sports Sweaters","Skipully (Jongens)"]
["XP4R","W31-js skivest","XP4R","Boys Sports Sweaters","Skivest (Jongens)"]
["XP4R","W31-kd skipully","XP4R","Boys Sports Sweaters","Skipully (Kids)"]
["XP4R","W31-kd skivest","XP4R","Boys Sports Sweaters","Skivest (Kids)"]
["WV3H","W32-js sportondergoed","WV3H","Boys Sportswear Other"]
["VJ2G","W33-CONSIG kd skibroek","VJ2G","Boys Sports Pants","Skibroek (Kids)"]
["VJ2G","W33-js skibroek","VJ2G","Boys Sports Pants","Skibroek (Jongens)"]
["VJ2G","W33-kd skibroek","VJ2G","Boys Sports Pants","Skibroek (Kids)"]
["WV3H","W33-kd sport thermobroek","WV3H","Boys Sportswear Other","Thermo ondergoed (Kids)"]
["RQ9M","W34-CONSIG kd ski-jack","RQ9M","Boys Sports Jackets","Skijack (Kids)"]
["RQ9M","W34-js ski-jack","RQ9M","Boys Sports Jackets","Skijack (Jongens)"]
["RQ9M","W34-kd ski-jack","RQ9M","Boys Sports Jackets","Skijack (Kids)"]
["RQ6F","W35-js snowboots","RQ6F","Boys Performance Shoes","Snowboot (Kids)"]
["RQ6F","W35-kd snowboots","RQ6F","Boys Performance Shoes","Snowboot (Kids)"]
["QG3P","W36-js skipak","QG3P","Boys Sports Tracksuits","Skipak (Jongens)"]
["QG3P","W36-kd skipak","QG3P","Boys Sports Tracksuits","Skipak (Kids)"]
["WV3H","W36-kd sport thermoset","WV3H","Boys Sportswear Other","Thermo ondergoed (Kids)"]
["WV3H","W36-kd sportondergoed","WV3H","Boys Sportswear Other"]
["XW5R","W40-ms sport T-shirt","XW5R","Girls Sports Shirts","Sport t-shirt (Meisjes)"]
["MG6C","W41-kd skipully","MG6C","Girls Sports Sweaters","Skipully (Meisjes)"]
["MG6C","W41-ms skipully","MG6C","Girls Sports Sweaters","Skipully (Meisjes)"]
["MG6C","W41-ms skisweater","MG6C","Girls Sports Sweaters","Skipully (Meisjes)"]
["MG6C","W41-ms skivest","MG6C","Girls Sports Sweaters","Skivest (Meisjes)"]
["MP8W","W42-ms sportondergoed","MP8W","Girls Sportswear Other"]
["GC4C","W43-CONSIG kd skibroek","GC4C","Girls Sports Pants","Skibroek (Meisjes)"]
["GC4C","W43-kd skibroek","GC4C","Girls Sports Pants","Skibroek (Meisjes)"]
["GC4C","W43-ms skibroek","GC4C","Girls Sports Pants","Skibroek (Meisjes)"]
["HR7P","W44-CONSIG kd ski-jack","HR7P","Girls Sports Jackets","Skijack (Meisjes)"]
["HR7P","W44-kd ski-jack","HR7P","Girls Sports Jackets","Skijack (Meisjes)"]
["HR7P","W44-ms ski-jack","HR7P","Girls Sports Jackets","Skijack (Meisjes)"]
["FG8J","W45-kd snowboots","FG8J","Girls Performance Shoes","Snowboot (Kids)"]
["VP4Q","W46-kd skipak","VP4Q","Girls Sports Tracksuits","Skipak (Meisjes)"]
["VP4Q","W46-ms skipak","VP4Q","Girls Sports Tracksuits","Skipak (Meisjes)"]
["PV6Q","W50-CONSIG balaclava","PV6Q","Sports Accessories","Sportmuts (Dames)"]
["PV6Q","W50-CONSIG ds handschoenen","PV6Q","Sports Accessories","Skihandschoen (Dames)"]
["WX7F","W50-CONSIG ds skisokken","WX7F","Sports Socks","Skisokken (Dames)"]
["PV6Q","W50-CONSIG handschoenen","PV6Q","Sports Accessories","Skihandschoen (Unisex)"]
["PV6Q","W50-CONSIG hoofdband","PV6Q","Sports Accessories","Sportmuts (Unisex)"]
["WX7F","W50-CONSIG hr skisokken","WX7F","Sports Socks","Skisokken (Heren)"]
["PV6Q","W50-CONSIG kd skihandschoenen","PV6Q","Sports Accessories","Skihandschoen (Kids)"]
["WX7F","W50-CONSIG kd skiokken","WX7F","Sports Socks","Skisokken (Kids)"]
["PV6Q","W50-CONSIG muts","PV6Q","Sports Accessories","Sportmuts (Unisex)"]
["PV6Q","W50-CONSIG nekwarmer","PV6Q","Sports Accessories","Sportsjaal (Unisex)"]
["WX7F","W50-CONSIG skisokken","WX7F","Sports Socks","Skisokken (Unisex)"]
["WX7F","W50-CONSIG uni skisokken","WX7F","Sports Socks","Skisokken (Unisex)"]
["PV6Q","W50-ds handschoenen","PV6Q","Sports Accessories","Skihandschoen (Dames)"]
["WX7F","W50-ds skisokken","WX7F","Sports Socks","Skisokken (Dames)"]
["PV6Q","W50-handschoenen","PV6Q","Sports Accessories","Skihandschoen (Unisex)"]
["WX7F","W50-hr skisokken","WX7F","Sports Socks","Skisokken (Heren)"]
["PV6Q","W50-kd handschoenen","PV6Q","Sports Accessories","Skihandschoen (Kids)"]
["PV6Q","W50-kd skibril","PV6Q","Sports Accessories","Skibril (Kids)"]
["PV6Q","W50-kd skihelm","PV6Q","Sports Accessories","Skihelm (Kids)"]
["WX7F","W50-kd skisokken","WX7F","Sports Socks","Skisokken (Kids)"]
["PV6Q","W50-skibril","PV6Q","Sports Accessories","Skibril (Unisex)"]
["PV6Q","W50-skihelm","PV6Q","Sports Accessories","Skihelm (Unisex)"]
["WX7F","W50-uni skisokken","WX7F","Sports Socks","Skisokken (Unisex)"]
["RM8Q","Z10-ds sport T-shirt","RM8Q","Ladies Sports Shirts","Sport t-shirt (Dames)"]
["RM8Q","Z10-ds sporttop","RM8Q","Ladies Sports Shirts","Sporttop (Dames)"]
["XF6P","Z13-ds sportbroek","XF6P","Ladies Sports Pants","Sportbroek (Dames)"]
["MX3P","Z15-ds sportschoenen","MX3P","Ladies Performance Shoes","Sportschoen (Dames)"]
["HF2G","Z25-hr sportschoenen","HF2G","Mens Performance Shoes","Sportschoen (Heren)"]
["HF2G","Z25-uni sportschoenen","HF2G","Mens Performance Shoes","Sportschoen (Unisex)"]
["RQ6F","Z35-js sportschoenen","RQ6F","Boys Performance Shoes","Sportschoen (Kids)"]
["RQ6F","Z35-kd sportschoenen","RQ6F","Boys Performance Shoes","Sportschoen (Kids)"]
["FG8J","Z45-kd sportschoenen","FG8J","Girls Performance Shoes","Sportschoen (Kids)"]
["FG8J","Z45-ms sportschoenen","FG8J","Girls Performance Shoes","Sportschoen (Kids)"]
["VP6F","Z50-bal","VP6F","Small Fitness equipment","Bal"]
["VP6F","Z50-sport knieband","VP6F","Small Fitness equipment"]
["MR9F",null,"MR9F","Ladies Sportswear Other"]
["MR9F",null,"MR9F","Ladies Sportswear Other"]
["MR9F",null,"MR9F","Ladies Sportswear Other"]
["RM8Q",null,"RM8Q","Ladies Sports Shirts","T-shirt (Dames)"]
["MR9F",null,"MR9F","Ladies Sportswear Other"]
["MR9F",null,"MR9F","Ladies Sportswear Other"]
["MR9F",null,"MR9F","Ladies Sportswear Other"]

{"sheet":"Data order","index":6,"n_rows":698,"n_cols":18,"rows_kept":698,"cut":false,"hidden":true,"merged":[]}
["DarwinMoverClass","CurrencyCodePurchasePrice","SalesSegment","Hanggoed/liggoed","OMID","LogisticItemGroup","ShippingCosts","WKShippingMethod","Buyers","Planners","Artikeltypes","Korte omschrijving","MCC3_CODE","Filtermateriaal","Gender","Certificaten: Gerecycled materiaal","Certificaten: Biologisch materiaal","Certificaten: Dierenwelzijn"]
["never out of stock","EUR",1,"Hanggoed","B",1,"Direct-Hg","DirectDel","ghamer","gsigger","Badpak (Dames)","B10-ds sport T-shirt","RM8Q","Acetaat","Boys","Global Recycled Standard (GRS)","GOTS Organic (Global Organic Textile Standard)","The Good Cashmere Standard (GCS)"]
["summer 2025","USD",2,"Liggoed","I",2,"Direct-Lg","Parcel","fplaizier",null,"Badslipper (Dames)","B12-ds sportboxer","MR9F","Acryl","Girls",null,"OCS 100 (Organic Content Standard)"]
["summer 2026",null,3,null,"M",3,"None","Truck",null,null,"Badslipper (Heren)","B12-ds sportshort","VR8F","All weather stof","Kids",null,"Better Cotton Initiative (BCI)"]
["summer 2027",null,4,null,"R",4,"Parcel-spc",null,null,null,"Badslipper (Kids)","B13-ds sportbroek","XF6P","Aluminium","Ladies"]
["winter 2025",null,5,null,null,5,"Parcel<3kg",null,null,null,"Badslipper (Unisex)","B14-ds sportjack","JP8V","Badstof","Mens"]
["winter 2026",null,6,null,null,6,"Parcel>3kg",null,null,null,"Bal","B20-hr sport T-shirt","WF7W","Bamboe","Unisex"]
["winter 2027",null,7,null,null,null,"Truck",null,null,null,"Balletpakje (Meisjes)","B22-hr sportboxer","VM3H","Bouclé"]
[null,null,null,null,null,null,"Truck<65E",null,null,null,"Broek (Confectiemaat) (Heren)","B22-hr sportshort","MQ3P","Canvas"]
[null,null,null,null,null,null,"Direct-sp1",null,null,null,"Broek (Dames)","B23-hr sportbroek","XF2F","Chenille"]
[null,null,null,null,null,null,"Direct-sp2",null,null,null,"Broek (Jongens)","B24-hr sportjack","QF5J","Chroomstaal"]
[null,null,null,null,null,null,"Null",null,null,null,"Broek (Kids)","B50-ds sportsokken","WX7F","Coated"]
[null,null,null,null,null,null,null,null,null,null,"Broek (Meisjes)","B50-hr sportsokken","QW3G","Corduroy"]
[null,null,null,null,null,null,null,null,null,null,"Fitness schoen (Dames)","F10-ds sport T-shirt","MX3P","Cupro"]
[null,null,null,null,null,null,null,null,null,null,"Fitness schoen (Heren)","F10-ds sportBH","HV9C","Denim"]
[null,null,null,null,null,null,null,null,null,null,"Fitness schoen (Unisex)","F10-ds sportjurk","WF2V","Dolomiet"]
[null,null,null,null,null,null,null,null,null,null,"Hardloopschoen (Dames)","F10-ds sportpolo","HF2G","Dons"]
[null,null,null,null,null,null,null,null,null,null,"Hardloopschoen (Heren)","F10-GM ds sport T-shirt","RX9H","Dralon"]
[null,null,null,null,null,null,null,null,null,null,"Hardloopschoen (Kids)","F10-GM ds sportBH","VW2F","Edelsteen"]
[null,null,null,null,null,null,null,null,null,null,"Hockeyschoen (Dames)","F10-GM ds sportpolo","XP4R","Eendenveren"]
[null,null,null,null,null,null,null,null,null,null,"Hockeyschoen (Heren)","F11-ds sportsweater","RF7M","Elasthan"]
[null,null,null,null,null,null,null,null,null,null,"Hockeyschoen (Kids)","F11-ds sportvest","VJ2G","Emaille"]
[null,null,null,null,null,null,null,null,null,null,"Hockeyschoen Kids)","F11-GM ds sportsweater","RQ9M","EVA"]
[null,null,null,null,null,null,null,null,null,null,"Jas (Dames)","F11-GM ds sportvest","RQ6F","Flanel"]
[null,null,null,null,null,null,null,null,null,null,"Jas (Heren)","F12-ds sportrok","QG3P","Fleece"]
[null,null,null,null,null,null,null,null,null,null,"Jas (Jongens) (voor buiten)","F12-ds sportshort","XW5R","Fluweel"]
[null,null,null,null,null,null,null,null,null,null,"Jas (Kids) (voor buiten)","F12-ds sportslip","MP8W","FSC/PEFC hout (verantwoorde houtkap)"]
[null,null,null,null,null,null,null,null,null,null,"Jas (Meisjes) (voor buiten)","F12-GM ds sportshort","MG6C","Gewatteerd"]
[null,null,null,null,null,null,null,null,null,null,"Joggingpak (Kids)","F13-ds sportbroek","WR9M","Gietijzer"]
[null,null,null,null,null,null,null,null,null,null,"Joggingpak (Meisjes)","F13-GM ds sportbroek","GC4C","Gips"]
[null,null,null,null,null,null,null,null,null,null,"Jurk (Dames)","F14-ds sport bodywarmer","HR7P","Glas"]
[null,null,null,null,null,null,null,null,null,null,"Jurk (Meisjes)","F14-ds sportjack","FG8J","Goud"]
[null,null,null,null,null,null,null,null,null,null,"Keepershandschoenen","F14-GM ds sport bodywarmer","VP4Q","Grafiet"]
[null,null,null,null,null,null,null,null,null,null,"Korte broek (Confectiemaat) (Heren)","F14-GM ds sportjack","GQ2V","Halfedelsteen"]
[null,null,null,null,null,null,null,null,null,null,"Korte broek (Dames)","F15-ds badslippers","PV6Q","Harig"]
[null,null,null,null,null,null,null,null,null,null,"Korte broek (Jongens)","F15-ds sportschoenen","WV3H","Hars"]
[null,null,null,null,null,null,null,null,null,null,"Korte broek (Kids)","F16-ds trainingspak","VP6F","Hennep"]
[null,null,null,null,null,null,null,null,null,null,"Korte broek (Meisjes)","F20-hr sport T-shirt","WX2Q","Hout"]
[null,null,null,null,null,null,null,null,null,null,"Korte outdoor broek (Dames)","F20-hr sportpolo","RC7R","IJzer"]
[null,null,null,null,null,null,null,null,null,null,"Korte outdoor broek (Heren)","F21-hr sportsweater","RC2P","Imitatiebont"]
[null,null,null,null,null,null,null,null,null,null,"Korte outdoor broek (Kids)","F21-hr sportvest","GC9W","Imitatieleer"]
[null,null,null,null,null,null,null,null,null,null,"Muts (Kids)","F21-uni sportsweater",null,"Imitatiesuède"]
[null,null,null,null,null,null,null,null,null,null,"Outdoor body","F22-hr sportboxer",null,"Jersey"]
[null,null,null,null,null,null,null,null,null,null,"Outdoor bodywarmer (Dames)","F22-hr sportshort",null,"Jog denim"]
[null,null,null,null,null,null,null,null,null,null,"Outdoor bodywarmer (Heren)","F23-hr sportbroek",null,"Jute"]
[null,null,null,null,null,null,null,null,null,null,"Outdoor broek (Dames)","F24-hr sportjack",null,"Kant"]
[null,null,null,null,null,null,null,null,null,null,"Outdoor broek (Heren)","F25-hr badslippers",null,"Kapok"]
[null,null,null,null,null,null,null,null,null,null,"Outdoor broek (Kids)","F25-hr sportschoenen",null,"Karton"]
[null,null,null,null,null,null,null,null,null,null,"Outdoor cap (Unisex)","F25-hr waterschoenen",null,"Katoen"]
[null,null,null,null,null,null,null,null,null,null,"Outdoor jas (Dames)","F25-uni badslippers",null,"Katoenlinnen"]
[null,null,null,null,null,null,null,null,null,null,"Outdoor jas (Heren)","F25-uni sportschoenen",null,"Katoen-lyocell"]
[null,null,null,null,null,null,null,null,null,null,"Outdoor jas (Jongens)","F26-hr trainingspak",null,"Katoen satijn"]
[null,null,null,null,null,null,null,null,null,null,"Outdoor jas (Kids)","F30-js sport T-shirt",null,"Keramiek"]
[null,null,null,null,null,null,null,null,null,null,"Outdoor jas (Meisjes)","F30-kd sport T-shirt",null,"Kokosvezel"]
[null,null,null,null,null,null,null,null,null,null,"Outdoor jurk (Dames)","F31-js sportsweater",null,"Koolstofvezel"]
[null,null,null,null,null,null,null,null,null,null,"Outdoor overhemd (Heren)","F31-js sportvest",null,"Koper"]
[null,null,null,null,null,null,null,null,null,null,"Outdoor polo (Dames)","F31-kd sportsweater",null,"Kristal"]
[null,null,null,null,null,null,null,null,null,null,"Outdoor polo (Heren)","F31-kd sportvest",null,"Kunststof"]
[null,null,null,null,null,null,null,null,null,null,"Outdoor rok (Dames)","F32-js sportshort",null,"Kurk"]
[null,null,null,null,null,null,null,null,null,null,"Outdoor schoen (Dames)","F32-kd sportshort",null,"Lak"]
[null,null,null,null,null,null,null,null,null,null,"Outdoor schoen (Heren)","F33-js sportbroek",null,"Latex"]
[null,null,null,null,null,null,null,null,null,null,"Outdoor schoen (Kids)","F33-kd sportbroek",null,"Leer"]
[null,null,null,null,null,null,null,null,null,null,"Outdoor schoen (Unisex)","F34-js sportjack",null,"Linnen"]
[null,null,null,null,null,null,null,null,null,null,"Outdoor sokken (Unisex)","F34-kd sportjack",null,"Lyocell"]
[null,null,null,null,null,null,null,null,null,null,"Outdoor sweater (Dames)","F35-js badslippers",null,"Maïsbladeren "]
[null,null,null,null,null,null,null,null,null,null,"Outdoor sweater (Heren)","F35-js sandalen",null,"Melamine"]
[null,null,null,null,null,null,null,null,null,null,"Outdoor sweater (Kids)","F35-js sportschoenen",null,"Merinowol"]
[null,null,null,null,null,null,null,null,null,null,"Outdoor t-shirt (Dames)","F35-kd badslippers",null,"Mesh"]
[null,null,null,null,null,null,null,null,null,null,"Outdoor t-shirt (Heren)","F35-kd sandalen",null,"Messing"]
[null,null,null,null,null,null,null,null,null,null,"Outdoor vest (Dames)","F35-kd sportschoenen",null,"Metaal"]
[null,null,null,null,null,null,null,null,null,null,"Outdoor vest (Heren)","F35-kd waterschoenen",null,"Microleer"]
[null,null,null,null,null,null,null,null,null,null,"Outdoor vest (Kids)","F36-js sportset",null,"Microvezel"]
[null,null,null,null,null,null,null,null,null,null,"Pet (Kids)","F36-js trainingspak",null,"Modacryl"]
[null,null,null,null,null,null,null,null,null,null,"Pet (Unisex)","F36-kd sportset",null,"Modal"]
[null,null,null,null,null,null,null,null,null,null,"Polo (Dames)","F36-kd trainingspak",null,"Molton"]
[null,null,null,null,null,null,null,null,null,null,"Polo (Heren)","F40-kd sport T-shirt",null,"Mousseline"]
[null,null,null,null,null,null,null,null,null,null,"Regenbroek (Dames)","F40-ms balletpakje",null,"Multiplex"]
[null,null,null,null,null,null,null,null,null,null,"Regenbroek (Heren)","F40-ms balletrokje",null,"Natuurlijk materiaal"]
[null,null,null,null,null,null,null,null,null,null,"Regenbroek (Kids)","F40-ms sport T-shirt",null,"Nubuck"]
[null,null,null,null,null,null,null,null,null,null,"Regenjas (Dames)","F40-ms sportjurk",null,"Nylon"]
[null,null,null,null,null,null,null,null,null,null,"Regenjas (Heren)","F40-ms sporttop",null,"Palmbladeren"]
[null,null,null,null,null,null,null,null,null,null,"Regenjas (Kids)","F41-kd sportsweater",null,"Papier"]
[null,null,null,null,null,null,null,null,null,null,"Rok (Dames)","F41-kd sportvest",null,"Paraffine"]
[null,null,null,null,null,null,null,null,null,null,"Rugzak (Dag)","F41-ms sportsweater",null,"Parel"]
[null,null,null,null,null,null,null,null,null,null,"Rugzak (Unisex)","F41-ms sportvest",null,"Percaline"]
[null,null,null,null,null,null,null,null,null,null,"Sandaal (Kids)","F42-kd sportshort",null,"PEVA"]
[null,null,null,null,null,null,null,null,null,null,"Scheenbeschermers","F42-ms sportshort",null,"Plantvezel"]
[null,null,null,null,null,null,null,null,null,null,"Shirt + broek (Jongens)","F43-kd sportbroek",null,"Plastic"]
[null,null,null,null,null,null,null,null,null,null,"Shirt + broek (Kids)","F43-ms sportbroek",null,"Pluche"]
[null,null,null,null,null,null,null,null,null,null,"Shirt + broek (Meisjes)","F44-ms sportjack",null,"Polyacryl"]
[null,null,null,null,null,null,null,null,null,null,"Skibril (Kids)","F45-kd badslippers",null,"Polyamide"]
[null,null,null,null,null,null,null,null,null,null,"Skibril (Unisex)","F45-kd sandalen",null,"Polycarbonaat"]
[null,null,null,null,null,null,null,null,null,null,"Skibroek (Dames)","F45-kd waterschoenen",null,"Polyester"]
[null,null,null,null,null,null,null,null,null,null,"Skibroek (Heren)","F45-ms badslippers",null,"Polyester-katoen"]
[null,null,null,null,null,null,null,null,null,null,"Skibroek (Jongens)","F45-ms sandalen",null,"Polyether"]
[null,null,null,null,null,null,null,null,null,null,"Skibroek (Kids)","F45-ms sportschoenen",null,"Polyethyleen"]
[null,null,null,null,null,null,null,null,null,null,"Skibroek (Meisjes)","F46-kd sportset",null,"Polyethyleentereftalaat"]
[null,null,null,null,null,null,null,null,null,null,"Skihandschoen (Dames)","F46-ms sportset",null,"Polylactide"]
[null,null,null,null,null,null,null,null,null,null,"Skihandschoen (Kids)","F46-ms trainingspak",null,"Polyolefins"]
[null,null,null,null,null,null,null,null,null,null,"Skihandschoen (Unisex)","F50-ds rugzak",null,"Polypropyleen"]
[null,null,null,null,null,null,null,null,null,null,"Skihelm (Kids)","F50-ds sportsokken",null,"Polyresin"]
[null,null,null,null,null,null,null,null,null,null,"Skihelm (Unisex)","F50-ds sporttas",null,"Polystone"]
[null,null,null,null,null,null,null,null,null,null,"Skijack (Dames)","F50-hr sportsokken",null,"Polywood"]
[null,null,null,null,null,null,null,null,null,null,"Skijack (Heren)","F50-kd sport pet",null,"Porselein"]
[null,null,null,null,null,null,null,null,null,null,"Skijack (Jongens)","F50-kd sportsokken",null,"Propionaat"]
[null,null,null,null,null,null,null,null,null,null,"Skijack (Kids)","F50-rugzak",null,"PVC"]
[null,null,null,null,null,null,null,null,null,null,"Skijack (Meisjes)","F50-sport handschoenen",null,"Raffia"]
[null,null,null,null,null,null,null,null,null,null,"Skipak (Dames)","F50-sport muts",null,"Ramie"]
[null,null,null,null,null,null,null,null,null,null,"Skipak (Heren)","F50-sport pet",null,"Rayon"]
[null,null,null,null,null,null,null,null,null,null,"Skipak (Jongens)","F50-sport sjaal",null,"Riet"]
[null,null,null,null,null,null,null,null,null,null,"Skipak (Kids)","F50-sporttas",null,"Rotan"]
[null,null,null,null,null,null,null,null,null,null,"Skipak (Meisjes)","F50-uni sportsokken",null,"Rubber"]
[null,null,null,null,null,null,null,null,null,null,"Skipully (Dames)","G10-ds sport T-shirt",null,"RVS"]
[null,null,null,null,null,null,null,null,null,null,"Skipully (Heren)","G10-ds sportBH",null,"Satijn"]
[null,null,null,null,null,null,null,null,null,null,"Skipully (Jongens)","G10-ds sportjurk",null,"Satijn-katoen bamboe"]
[null,null,null,null,null,null,null,null,null,null,"Skipully (Kids)","G10-ds sportpolo",null,"Schuim"]
[null,null,null,null,null,null,null,null,null,null,"Skipully (Meisjes)","G10-GM ds sport T-shirt",null,"Siliconen"]
[null,null,null,null,null,null,null,null,null,null,"Skisokken (Dames)","G10-GM ds sportpolo",null,"Sisal"]
[null,null,null,null,null,null,null,null,null,null,"Skisokken (Heren)","G11-ds sportsweater",null,"Softshell"]
[null,null,null,null,null,null,null,null,null,null,"Skisokken (Kids)","G11-ds sportvest",null,"Spaanplaat"]
[null,null,null,null,null,null,null,null,null,null,"Skisokken (Unisex)","G11-GM ds sportvest",null,"Spatwaterdicht"]
[null,null,null,null,null,null,null,null,null,null,"Skivest (Dames)","G12-ds sportrok",null,"Staal"]
[null,null,null,null,null,null,null,null,null,null,"Skivest (Heren)","G12-ds sportshort",null,"Staal/leer"]
[null,null,null,null,null,null,null,null,null,null,"Skivest (Jongens)","G13-ds sportbroek",null,"Steen"]
[null,null,null,null,null,null,null,null,null,null,"Skivest (Kids)","G13-GM ds sportbroek",null,"Sterling zilver"]
[null,null,null,null,null,null,null,null,null,null,"Skivest (Meisjes)","G14-ds sportjack",null,"Stof"]
[null,null,null,null,null,null,null,null,null,null,"Sneaker (Dames)","G15-ds badslippers",null,"Stonewashed"]
[null,null,null,null,null,null,null,null,null,null,"Sneaker (Heren)","G15-ds sportschoenen",null,"Stretchdenim"]
[null,null,null,null,null,null,null,null,null,null,"Sneaker (Kids)","G16-ds trainingspak",null,"Stretchkatoen"]
[null,null,null,null,null,null,null,null,null,null,"Sneaker (Meisjes)","G20-hr sport T-shirt",null,"Stro"]
[null,null,null,null,null,null,null,null,null,null,"Sneaker (Unisex)","G20-hr sportpolo",null,"Suede"]
[null,null,null,null,null,null,null,null,null,null,"Snowboot (Dames)","G21-hr sportsweater",null,"Swarovski kristal"]
[null,null,null,null,null,null,null,null,null,null,"Snowboot (Heren)","G21-hr sportvest",null,"Sweat"]
[null,null,null,null,null,null,null,null,null,null,"Snowboot (Kids)","G22-hr sportshort",null,"Synthetisch"]
[null,null,null,null,null,null,null,null,null,null,"Snowboot (Unisex)","G23-hr sportbroek",null,"Teddy"]
[null,null,null,null,null,null,null,null,null,null,"Sokken (Dames)","G24-hr sportjack",null,"Tencel"]
[null,null,null,null,null,null,null,null,null,null,"Sokken (Heren)","G25-hr badslippers",null,"Terrazzo"]
[null,null,null,null,null,null,null,null,null,null,"Sokken (Kids)","G25-hr sportschoenen",null,"Texapore"]
[null,null,null,null,null,null,null,null,null,null,"Sokken (Unisex)","G25-uni badslippers",null,"Textiel"]
[null,null,null,null,null,null,null,null,null,null,"Sport bodywarmer (Dames)","G25-uni sportschoenen",null,"Textileen"]
[null,null,null,null,null,null,null,null,null,null,"Sport bodywarmer (Heren)","G26-hr trainingspak",null,"Tin"]
[null,null,null,null,null,null,null,null,null,null,"Sport t-shirt (Dames)","H10-ds sport T-shirt",null,"Titanium"]
[null,null,null,null,null,null,null,null,null,null,"Sport t-shirt (Heren)","H10-ds sportBH",null,"Touw"]
[null,null,null,null,null,null,null,null,null,null,"Sport t-shirt (Jongens)","H10-ds sportjurk",null,"TPE/Thermoplastisch elastomeer"]
[null,null,null,null,null,null,null,null,null,null,"Sport t-shirt (Kids)","H10-ds sportpolo",null,"TPR/Thermoplastisch Rubber"]
[null,null,null,null,null,null,null,null,null,null,"Sport t-shirt (Meisjes)","H11-ds sportsweater",null,"TPU"]
[null,null,null,null,null,null,null,null,null,null,"Sport zwembroek (Heren)","H11-ds sportvest",null,"Traagschuim"]
[null,null,null,null,null,null,null,null,null,null,"Sport zwembroek (Jongens)","H12-ds sportrok",null,"Travelstof"]
[null,null,null,null,null,null,null,null,null,null,"Sportarmband","H12-ds sportshort",null,"Tritan"]
[null,null,null,null,null,null,null,null,null,null,"Sportbadpak (Meisjes)","H13-ds sportbroek",null,"Tweed"]
[null,null,null,null,null,null,null,null,null,null,"Sportbh","H14-ds sportjack",null,"Vacht"]
[null,null,null,null,null,null,null,null,null,null,"Sportboxer (Dames)","H15-ds badslippers",null,"Vegan leather"]
[null,null,null,null,null,null,null,null,null,null,"Sportboxer (Heren)","H15-ds sportschoenen",null,"Velours"]
[null,null,null,null,null,null,null,null,null,null,"Sportbroek (Dames)","H16-ds trainingspak",null,"Vilt"]
[null,null,null,null,null,null,null,null,null,null,"Sportbroek (Heren)","H20-hr sport T-shirt",null,"Vinyl"]
[null,null,null,null,null,null,null,null,null,null,"Sportbroek (Jongens)","H20-hr sportpolo",null,"Viscose"]
[null,null,null,null,null,null,null,null,null,null,"Sportbroek (Kids)","H21-hr sportsweater",null,"Waterdicht"]
[null,null,null,null,null,null,null,null,null,null,"Sportbroek (Meisjes)","H21-hr sportvest",null,"Waterhyacint"]
[null,null,null,null,null,null,null,null,null,null,"Sportbroek (Unisex)","H21-uni sportvest",null,"Wax"]
[null,null,null,null,null,null,null,null,null,null,"Sporthandschoenen (Unisex)","H22-hr sportondergoed",null,"Wicker"]
[null,null,null,null,null,null,null,null,null,null,"Sportjack (Dames)","H22-hr sportshort",null,"Wol"]
[null,null,null,null,null,null,null,null,null,null,"Sportjack (Heren)","H23-hr sportbroek",null,"Zeegras"]
[null,null,null,null,null,null,null,null,null,null,"Sportjack (Jongens)","H23-uni sportbroek",null,"Zijde"]
[null,null,null,null,null,null,null,null,null,null,"Sportjack (Kids)","H24-hr sportjack",null,"Zilver"]
[null,null,null,null,null,null,null,null,null,null,"Sportjack (Meisjes)","H25-hr badslippers",null,"Zink"]
[null,null,null,null,null,null,null,null,null,null,"Sportjurkje (Dames)","H25-hr sportschoenen",null,"Zirkonia"]
[null,null,null,null,null,null,null,null,null,null,"Sportjurkje (Meisjes)","H25-uni badslippers"]
[null,null,null,null,null,null,null,null,null,null,"Sportmuts (Dames)","H25-uni sportschoenen"]
[null,null,null,null,null,null,null,null,null,null,"Sportmuts (Unisex)","H26-hr trainingspak"]
[null,null,null,null,null,null,null,null,null,null,"Sportpet (Kids)","H30-js sport T-shirt"]
[null,null,null,null,null,null,null,null,null,null,"Sportpet (Unisex)","H30-js sportpolo"]
[null,null,null,null,null,null,null,null,null,null,"Sportpolo (Dames)","H30-kd sport T-shirt"]
[null,null,null,null,null,null,null,null,null,null,"Sportpolo (Heren)","H31-js sportsweater"]
[null,null,null,null,null,null,null,null,null,null,"Sportpolo (Jongens)","H31-js sportvest"]
[null,null,null,null,null,null,null,null,null,null,"Sportpolo (Meisjes)","H31-kd sportsweater"]
[null,null,null,null,null,null,null,null,null,null,"Sportrokje (Dames)","H31-kd sportvest"]
[null,null,null,null,null,null,null,null,null,null,"Sportrokje (Meisjes)","H32-js sportondergoed"]
[null,null,null,null,null,null,null,null,null,null,"Sportschoen (Dames)","H32-js sportshort"]
[null,null,null,null,null,null,null,null,null,null,"Sportschoen (Heren)","H33-js sportbroek"]
[null,null,null,null,null,null,null,null,null,null,"Sportschoen (Kids)","H33-kd sportbroek"]
[null,null,null,null,null,null,null,null,null,null,"Sportschoen (Unisex)","H34-js sportjack"]
[null,null,null,null,null,null,null,null,null,null,"Sportset (Jongens)","H34-kd sportjack"]
[null,null,null,null,null,null,null,null,null,null,"Sportset (Kids)","H35-js badslippers"]
[null,null,null,null,null,null,null,null,null,null,"Sportset (Meisjes)","H35-js sportschoenen"]
[null,null,null,null,null,null,null,null,null,null,"Sportsjaal (Heren)","H35-kd badslippers"]
[null,null,null,null,null,null,null,null,null,null,"Sportsjaal (Unisex)","H35-kd sportschoenen"]
[null,null,null,null,null,null,null,null,null,null,"Sportslip (Dames)","H36-js trainingspak"]
[null,null,null,null,null,null,null,null,null,null,"Sportsokken (Dames)","H36-kd trainingspak"]
[null,null,null,null,null,null,null,null,null,null,"Sportsokken (Heren)","H40-ms sport T-shirt"]
[null,null,null,null,null,null,null,null,null,null,"Sportsokken (Kids)","H40-ms sportpolo"]
[null,null,null,null,null,null,null,null,null,null,"Sportsokken (Unisex)","H41-ms sportsweater"]
[null,null,null,null,null,null,null,null,null,null,"Sportsweater (Dames)","H41-ms sportvest"]
[null,null,null,null,null,null,null,null,null,null,"Sportsweater (Heren)","H42-ms sportondergoed"]
[null,null,null,null,null,null,null,null,null,null,"Sportsweater (Jongens)","H42-ms sportrok"]
[null,null,null,null,null,null,null,null,null,null,"Sportsweater (Kids)","H42-ms sportshort"]
[null,null,null,null,null,null,null,null,null,null,"Sportsweater (Meisjes)","H43-ms sportbroek"]
[null,null,null,null,null,null,null,null,null,null,"Sportsweater (Unisex)","H44-ms sportjack"]
[null,null,null,null,null,null,null,null,null,null,"Sporttas","H45-kd sportschoenen"]
[null,null,null,null,null,null,null,null,null,null,"Sporttop (Bh)","H45-ms badslippers"]
[null,null,null,null,null,null,null,null,null,null,"Sporttop (Meisjes)","H46-ms trainingspak"]
[null,null,null,null,null,null,null,null,null,null,"Sportvest (Dames)","H50-jr sportsokken"]
[null,null,null,null,null,null,null,null,null,null,"Sportvest (Heren)","H50-kd sport acc"]
[null,null,null,null,null,null,null,null,null,null,"Sportvest (Jongens)","H50-sport acc"]
[null,null,null,null,null,null,null,null,null,null,"Sportvest (Kids)","H50-sport eqm"]
[null,null,null,null,null,null,null,null,null,null,"Sportvest (Meisjes)","H50-sr sportsokken"]
[null,null,null,null,null,null,null,null,null,null,"Sportvests (Meisjes)","H50-uni sportsokken"]
[null,null,null,null,null,null,null,null,null,null,"Sweater (Jongens)","O10-ds jurk"]
[null,null,null,null,null,null,null,null,null,null,"Sweater (Kids)","O10-ds polo"]
[null,null,null,null,null,null,null,null,null,null,"Sweater (Meisjes)","O10-ds sportBH"]
[null,null,null,null,null,null,null,null,null,null,"Tennisschoen (Dames)","O10-ds T-shirt"]
[null,null,null,null,null,null,null,null,null,null,"Tennisschoen (Heren)","O11-ds sweater"]
[null,null,null,null,null,null,null,null,null,null,"Tennisschoen (Kids)","O11-ds vest"]
[null,null,null,null,null,null,null,null,null,null,"Tennisschoen (Unisex)","O12-ds outdoorshort"]
[null,null,null,null,null,null,null,null,null,null,"Thermo broek (Dames)","O12-ds rok"]
[null,null,null,null,null,null,null,null,null,null,"Thermo broek (Heren)","O12-ds short"]
[null,null,null,null,null,null,null,null,null,null,"Thermo ondergoed (Kids)","O12-ds sportrok"]
[null,null,null,null,null,null,null,null,null,null,"Thermo shirt (Dames)","O13-CONSIG ds outdoorbroek"]
[null,null,null,null,null,null,null,null,null,null,"Thermo shirt (Heren)","O13-ds broek"]
[null,null,null,null,null,null,null,null,null,null,"Trainingspak (Dames)","O13-ds outdoorbroek"]
[null,null,null,null,null,null,null,null,null,null,"Trainingspak (Heren)","O13-ds regenbroek"]
[null,null,null,null,null,null,null,null,null,null,"Trainingspak (Jongens)","O14-CONSIG ds jack"]
[null,null,null,null,null,null,null,null,null,null,"Trainingspak (Kids)","O14-ds bodywarmer"]
[null,null,null,null,null,null,null,null,null,null,"Trainingspak (Meisjes)","O14-ds jack"]
[null,null,null,null,null,null,null,null,null,null,"Trui (Dames)","O14-ds jas"]
[null,null,null,null,null,null,null,null,null,null,"Trui (Heren)","O14-ds outdoorjack"]
[null,null,null,null,null,null,null,null,null,null,"T-shirt (Dames)","O14-ds regenjas"]
[null,null,null,null,null,null,null,null,null,null,"T-shirt (Heren)","O15-ds outdoorschoenen"]
[null,null,null,null,null,null,null,null,null,null,"T-shirt (Jongens)","O15-ds sandalen"]
[null,null,null,null,null,null,null,null,null,null,"T-shirt (Kids)","O15-ds slippers"]
[null,null,null,null,null,null,null,null,null,null,"T-shirt (Meisjes)","O15-ds wandelschoenen"]
[null,null,null,null,null,null,null,null,null,null,"Vest (Dames)","O20-hr polo"]
[null,null,null,null,null,null,null,null,null,null,"Vest (Heren)","O20-hr T-shirt"]
[null,null,null,null,null,null,null,null,null,null,"Vest (Jongens)","O21-hr shirt"]
[null,null,null,null,null,null,null,null,null,null,"Vest (Kids)","O21-hr sweater"]
[null,null,null,null,null,null,null,null,null,null,"Vest (Meisjes)","O21-hr vest"]
[null,null,null,null,null,null,null,null,null,null,"Voetbal","O22-hr outdoorshort"]
[null,null,null,null,null,null,null,null,null,null,"Voetbalschoen (Dames)","O22-hr short"]
[null,null,null,null,null,null,null,null,null,null,"Voetbalschoen (Heren)","O23-hr outdoorbroek"]
[null,null,null,null,null,null,null,null,null,null,"Voetbalschoen (Kids)","O23-hr regenbroek"]
[null,null,null,null,null,null,null,null,null,null,"Voetbalschoen (Unisex)","O24-CONSIG hr jack"]
[null,null,null,null,null,null,null,null,null,null,"Waterschoen (Kids)","O24-hr bodywarmer"]
[null,null,null,null,null,null,null,null,null,null,"Waterschoen (Unisex)","O24-hr jack"]
[null,null,null,null,null,null,null,null,null,null,"Zwemshort (Heren)","O24-hr jas"]
[null,null,null,null,null,null,null,null,null,null,"Zwemshort (Jongens)","O24-hr outdoorjack"]
[null,null,null,null,null,null,null,null,null,null,null,"O24-hr regenjas"]
[null,null,null,null,null,null,null,null,null,null,null,"O25-hr outdoorschoenen"]
[null,null,null,null,null,null,null,null,null,null,null,"O25-hr sandalen"]
[null,null,null,null,null,null,null,null,null,null,null,"O25-hr slippers"]
[null,null,null,null,null,null,null,null,null,null,null,"O25-hr wandelschoenen"]
[null,null,null,null,null,null,null,null,null,null,null,"O25-uni outdoorschoenen"]
[null,null,null,null,null,null,null,null,null,null,null,"O25-uni sandalen"]
[null,null,null,null,null,null,null,null,null,null,null,"O25-uni slippers"]
[null,null,null,null,null,null,null,null,null,null,null,"O25-uni wandelschoenen"]
[null,null,null,null,null,null,null,null,null,null,null,"O30-js T-shirt"]
[null,null,null,null,null,null,null,null,null,null,null,"O30-kd T-shirt"]
[null,null,null,null,null,null,null,null,null,null,null,"O31-js sweater"]
[null,null,null,null,null,null,null,null,null,null,null,"O31-js vest"]
[null,null,null,null,null,null,null,null,null,null,null,"O31-kd sweater"]
[null,null,null,null,null,null,null,null,null,null,null,"O31-kd vest"]
[null,null,null,null,null,null,null,null,null,null,null,"O32-js outdoorshort"]
[null,null,null,null,null,null,null,null,null,null,null,"O32-js short"]
[null,null,null,null,null,null,null,null,null,null,null,"O32-kd short"]
[null,null,null,null,null,null,null,null,null,null,null,"O33-kd outdoorbroek"]
[null,null,null,null,null,null,null,null,null,null,null,"O33-kd regenbroek"]
[null,null,null,null,null,null,null,null,null,null,null,"O34-CONSIG kd jack"]
[null,null,null,null,null,null,null,null,null,null,null,"O34-js jack"]
[null,null,null,null,null,null,null,null,null,null,null,"O34-js outdoorjack"]
[null,null,null,null,null,null,null,null,null,null,null,"O34-js regenjas"]
[null,null,null,null,null,null,null,null,null,null,null,"O34-kd jack"]
[null,null,null,null,null,null,null,null,null,null,null,"O34-kd regenjas"]
[null,null,null,null,null,null,null,null,null,null,null,"O44-kd regenjas"]
[null,null,null,null,null,null,null,null,null,null,null,"O35-js sandalen"]
[null,null,null,null,null,null,null,null,null,null,null,"O35-js slippers"]
[null,null,null,null,null,null,null,null,null,null,null,"O35-js wandelschoenen"]
[null,null,null,null,null,null,null,null,null,null,null,"O35-kd sandalen"]
[null,null,null,null,null,null,null,null,null,null,null,"O35-kd slippers"]
[null,null,null,null,null,null,null,null,null,null,null,"O35-kd wandelschoenen"]
[null,null,null,null,null,null,null,null,null,null,null,"O40-kd T-shirt"]
[null,null,null,null,null,null,null,null,null,null,null,"O40-ms T-shirt"]
[null,null,null,null,null,null,null,null,null,null,null,"O41-kd sweater"]
[null,null,null,null,null,null,null,null,null,null,null,"O41-kd vest"]
[null,null,null,null,null,null,null,null,null,null,null,"O41-ms sweater"]
[null,null,null,null,null,null,null,null,null,null,null,"O42-kd outdoorshort"]
[null,null,null,null,null,null,null,null,null,null,null,"O42-kd short"]
[null,null,null,null,null,null,null,null,null,null,null,"O42-ms outdoorshort"]
[null,null,null,null,null,null,null,null,null,null,null,"O42-ms short"]
[null,null,null,null,null,null,null,null,null,null,null,"O43-ms outdoorbroek"]
[null,null,null,null,null,null,null,null,null,null,null,"O44-CONSIG kd jack"]
[null,null,null,null,null,null,null,null,null,null,null,"O44-kd jack"]
[null,null,null,null,null,null,null,null,null,null,null,"O44-ms jack"]
[null,null,null,null,null,null,null,null,null,null,null,"O44-ms outdoorjack"]
[null,null,null,null,null,null,null,null,null,null,null,"O44-ms regenjas"]
[null,null,null,null,null,null,null,null,null,null,null,"O45-ms sandalen"]
[null,null,null,null,null,null,null,null,null,null,null,"O45-ms slippers"]
[null,null,null,null,null,null,null,null,null,null,null,"O45-ms wandelschoenen"]
[null,null,null,null,null,null,null,null,null,null,null,"O50-kd sport acc"]
[null,null,null,null,null,null,null,null,null,null,null,"O50-outdoor pet"]
[null,null,null,null,null,null,null,null,null,null,null,"O50-rugzak"]
[null,null,null,null,null,null,null,null,null,null,null,"O50-sport acc"]
[null,null,null,null,null,null,null,null,null,null,null,"O50-sporttas"]
[null,null,null,null,null,null,null,null,null,null,null,"O50-uni wandelsokken"]
[null,null,null,null,null,null,null,null,null,null,null,"R10-ds sport T-shirt"]
[null,null,null,null,null,null,null,null,null,null,null,"R10-ds sportBH"]
[null,null,null,null,null,null,null,null,null,null,null,"R10-GM ds sport T-shirt"]
[null,null,null,null,null,null,null,null,null,null,null,"R11-ds sportsweater"]
[null,null,null,null,null,null,null,null,null,null,null,"R11-ds sportvest"]
[null,null,null,null,null,null,null,null,null,null,null,"R11-GM ds sportsweater"]
[null,null,null,null,null,null,null,null,null,null,null,"R11-GM ds sportvest"]
[null,null,null,null,null,null,null,null,null,null,null,"R12-ds sportshort"]
[null,null,null,null,null,null,null,null,null,null,null,"R12-GM ds sportshort"]
[null,null,null,null,null,null,null,null,null,null,null,"R13-ds sportbroek"]
[null,null,null,null,null,null,null,null,null,null,null,"R13-GM ds sportbroek"]
[null,null,null,null,null,null,null,null,null,null,null,"R14-ds sportjack"]
[null,null,null,null,null,null,null,null,null,null,null,"R15-ds sportschoenen"]
[null,null,null,null,null,null,null,null,null,null,null,"R16-ds trainingspak"]
[null,null,null,null,null,null,null,null,null,null,null,"R20-hr sport T-shirt"]
[null,null,null,null,null,null,null,null,null,null,null,"R21-hr sportsweater"]
[null,null,null,null,null,null,null,null,null,null,null,"R21-hr sportvest"]
[null,null,null,null,null,null,null,null,null,null,null,"R22-hr sportondergoed"]
[null,null,null,null,null,null,null,null,null,null,null,"R22-hr sportshort"]
[null,null,null,null,null,null,null,null,null,null,null,"R23-hr sportbroek"]
[null,null,null,null,null,null,null,null,null,null,null,"R24-hr sport bodywarmer"]
[null,null,null,null,null,null,null,null,null,null,null,"R24-hr sportjack"]
[null,null,null,null,null,null,null,null,null,null,null,"R25-hr sportschoenen"]
[null,null,null,null,null,null,null,null,null,null,null,"R26-hr trainingspak"]
[null,null,null,null,null,null,null,null,null,null,null,"R30-js sport T-shirt"]
[null,null,null,null,null,null,null,null,null,null,null,"R30-kd sport T-shirt"]
[null,null,null,null,null,null,null,null,null,null,null,"R31-js sportsweater"]
[null,null,null,null,null,null,null,null,null,null,null,"R31-js sportvest"]
[null,null,null,null,null,null,null,null,null,null,null,"R32-js sportondergoed"]
[null,null,null,null,null,null,null,null,null,null,null,"R32-js sportshort"]
[null,null,null,null,null,null,null,null,null,null,null,"R33-js sportbroek"]
[null,null,null,null,null,null,null,null,null,null,null,"R34-js sportjack"]
[null,null,null,null,null,null,null,null,null,null,null,"R35-js sportschoenen"]
[null,null,null,null,null,null,null,null,null,null,null,"R35-kd sportschoenen"]
[null,null,null,null,null,null,null,null,null,null,null,"R36-js trainingspak"]
[null,null,null,null,null,null,null,null,null,null,null,"R36-kd trainingspak"]
[null,null,null,null,null,null,null,null,null,null,null,"R40-ms sport T-shirt"]
[null,null,null,null,null,null,null,null,null,null,null,"R41-ms sportsweater"]
[null,null,null,null,null,null,null,null,null,null,null,"R41-ms sportvest"]
[null,null,null,null,null,null,null,null,null,null,null,"R42-ms sportondergoed"]
[null,null,null,null,null,null,null,null,null,null,null,"R42-ms sportshort"]
[null,null,null,null,null,null,null,null,null,null,null,"R43-ms sportbroek"]
[null,null,null,null,null,null,null,null,null,null,null,"R44-ms sportjack"]
[null,null,null,null,null,null,null,null,null,null,null,"R45-kd sportschoenen"]
[null,null,null,null,null,null,null,null,null,null,null,"R45-ms sportschoenen"]
[null,null,null,null,null,null,null,null,null,null,null,"R46-ms trainingspak"]
[null,null,null,null,null,null,null,null,null,null,null,"R50-ds sportsokken"]
[null,null,null,null,null,null,null,null,null,null,null,"R50-hr sportsokken"]
[null,null,null,null,null,null,null,null,null,null,null,"R50-kd sport acc"]
[null,null,null,null,null,null,null,null,null,null,null,"R50-kd sportsokken"]
[null,null,null,null,null,null,null,null,null,null,null,"R50-sport acc"]
[null,null,null,null,null,null,null,null,null,null,null,"S10-ds badpak"]
[null,null,null,null,null,null,null,null,null,null,null,"S10-ds jurk"]
[null,null,null,null,null,null,null,null,null,null,null,"S10-ds kimono"]
[null,null,null,null,null,null,null,null,null,null,null,"S10-ds polo"]
[null,null,null,null,null,null,null,null,null,null,null,"S10-ds sport T-shirt"]
[null,null,null,null,null,null,null,null,null,null,null,"S10-ds sportBH"]
[null,null,null,null,null,null,null,null,null,null,null,"S10-ds sportjurk"]
[null,null,null,null,null,null,null,null,null,null,null,"S10-GM ds jurk"]
[null,null,null,null,null,null,null,null,null,null,null,"S10-GM ds sport T-shirt"]
[null,null,null,null,null,null,null,null,null,null,null,"S11-ds sportsweater"]
[null,null,null,null,null,null,null,null,null,null,null,"S11-ds sportvest"]
[null,null,null,null,null,null,null,null,null,null,null,"S11-GM ds sportsweater"]
[null,null,null,null,null,null,null,null,null,null,null,"S11-GM ds sportvest"]
[null,null,null,null,null,null,null,null,null,null,null,"S12-ds rok"]
[null,null,null,null,null,null,null,null,null,null,null,"S12-ds sportrok"]
[null,null,null,null,null,null,null,null,null,null,null,"S12-ds sportshort"]
[null,null,null,null,null,null,null,null,null,null,null,"S12-GM ds sportshort"]
[null,null,null,null,null,null,null,null,null,null,null,"S13-ds sportbroek"]
[null,null,null,null,null,null,null,null,null,null,null,"S13-GM ds sportbroek"]
[null,null,null,null,null,null,null,null,null,null,null,"S14-ds jack"]
[null,null,null,null,null,null,null,null,null,null,null,"S14-ds jas"]
[null,null,null,null,null,null,null,null,null,null,null,"S14-GM ds jack"]
[null,null,null,null,null,null,null,null,null,null,null,"S14-GM ds jas"]
[null,null,null,null,null,null,null,null,null,null,null,"S15-ds slippers"]
[null,null,null,null,null,null,null,null,null,null,null,"S15-ds sneakers"]
[null,null,null,null,null,null,null,null,null,null,null,"S16-ds trainingspak"]
[null,null,null,null,null,null,null,null,null,null,null,"S20-hr polo"]
[null,null,null,null,null,null,null,null,null,null,null,"S20-hr sport T-shirt"]
[null,null,null,null,null,null,null,null,null,null,null,"S20-hr sportpolo"]
[null,null,null,null,null,null,null,null,null,null,null,"S20-hr T-shirt"]
[null,null,null,null,null,null,null,null,null,null,null,"S21-hr sportsweater"]
[null,null,null,null,null,null,null,null,null,null,null,"S21-hr sportvest"]
[null,null,null,null,null,null,null,null,null,null,null,"S21-hr sweater"]
[null,null,null,null,null,null,null,null,null,null,null,"S22-hr short"]
[null,null,null,null,null,null,null,null,null,null,null,"S22-hr sportboxer"]
[null,null,null,null,null,null,null,null,null,null,null,"S22-hr sportondergoed"]
[null,null,null,null,null,null,null,null,null,null,null,"S22-hr sportshort"]
[null,null,null,null,null,null,null,null,null,null,null,"S22-hr zwemshort"]
[null,null,null,null,null,null,null,null,null,null,null,"S23-hr sportbroek"]
[null,null,null,null,null,null,null,null,null,null,null,"S24-hr bodywarmer"]
[null,null,null,null,null,null,null,null,null,null,null,"S24-hr jack"]
[null,null,null,null,null,null,null,null,null,null,null,"S24-hr jas"]
[null,null,null,null,null,null,null,null,null,null,null,"S25-hr slippers"]
[null,null,null,null,null,null,null,null,null,null,null,"S25-hr sneakers"]
[null,null,null,null,null,null,null,null,null,null,null,"S25-uni slippers"]
[null,null,null,null,null,null,null,null,null,null,null,"S25-uni sneakers"]
[null,null,null,null,null,null,null,null,null,null,null,"S26-hr trainingspak"]
[null,null,null,null,null,null,null,null,null,null,null,"S30-js sport T-shirt"]
[null,null,null,null,null,null,null,null,null,null,null,"S30-kd sport T-shirt"]
[null,null,null,null,null,null,null,null,null,null,null,"S30-kd T-shirt"]
[null,null,null,null,null,null,null,null,null,null,null,"S31-js sportsweater"]
[null,null,null,null,null,null,null,null,null,null,null,"S31-js sportvest"]
[null,null,null,null,null,null,null,null,null,null,null,"S31-js sweater"]
[null,null,null,null,null,null,null,null,null,null,null,"S31-kd sportsweater"]
[null,null,null,null,null,null,null,null,null,null,null,"S31-kd sportvest"]
[null,null,null,null,null,null,null,null,null,null,null,"S31-kd sweater"]
[null,null,null,null,null,null,null,null,null,null,null,"S32-js sportondergoed"]
[null,null,null,null,null,null,null,null,null,null,null,"S32-js sportshort"]
[null,null,null,null,null,null,null,null,null,null,null,"S32-kd short"]
[null,null,null,null,null,null,null,null,null,null,null,"S32-kd sportshort"]
[null,null,null,null,null,null,null,null,null,null,null,"S32-kd zwemshort"]
[null,null,null,null,null,null,null,null,null,null,null,"S33-js sportbroek"]
[null,null,null,null,null,null,null,null,null,null,null,"S33-kd sportbroek"]
[null,null,null,null,null,null,null,null,null,null,null,"S34-js jack"]
[null,null,null,null,null,null,null,null,null,null,null,"S34-js jas"]
[null,null,null,null,null,null,null,null,null,null,null,"S34-kd jack"]
[null,null,null,null,null,null,null,null,null,null,null,"S35-js slippers"]
[null,null,null,null,null,null,null,null,null,null,null,"S35-js sneakers"]
[null,null,null,null,null,null,null,null,null,null,null,"S35-kd slippers"]
[null,null,null,null,null,null,null,null,null,null,null,"S35-kd sneakers"]
[null,null,null,null,null,null,null,null,null,null,null,"S35-kd waterschoenen"]
[null,null,null,null,null,null,null,null,null,null,null,"S36-js sportset"]
[null,null,null,null,null,null,null,null,null,null,null,"S36-js trainingspak"]
[null,null,null,null,null,null,null,null,null,null,null,"S36-kd sportset"]
[null,null,null,null,null,null,null,null,null,null,null,"S36-kd trainingspak"]
[null,null,null,null,null,null,null,null,null,null,null,"S40-kd badpak"]
[null,null,null,null,null,null,null,null,null,null,null,"S40-kd sport T-shirt"]
[null,null,null,null,null,null,null,null,null,null,null,"S40-ms jurk"]
[null,null,null,null,null,null,null,null,null,null,null,"S40-ms sport T-shirt"]
[null,null,null,null,null,null,null,null,null,null,null,"S40-ms sporttop"]
[null,null,null,null,null,null,null,null,null,null,null,"S41-kd sportsweater"]
[null,null,null,null,null,null,null,null,null,null,null,"S41-ms sportsweater"]
[null,null,null,null,null,null,null,null,null,null,null,"S41-ms sportvest"]
[null,null,null,null,null,null,null,null,null,null,null,"S41-ms sweater"]
[null,null,null,null,null,null,null,null,null,null,null,"S42-kd sportshort"]
[null,null,null,null,null,null,null,null,null,null,null,"S42-ms sportondergoed"]
[null,null,null,null,null,null,null,null,null,null,null,"S42-ms sportshort"]
[null,null,null,null,null,null,null,null,null,null,null,"S43-kd sportbroek"]
[null,null,null,null,null,null,null,null,null,null,null,"S43-ms sportbroek"]
[null,null,null,null,null,null,null,null,null,null,null,"S44-kd jack"]
[null,null,null,null,null,null,null,null,null,null,null,"S44-ms jack"]
[null,null,null,null,null,null,null,null,null,null,null,"S44-ms jas"]
[null,null,null,null,null,null,null,null,null,null,null,"S45-kd slippers"]
[null,null,null,null,null,null,null,null,null,null,null,"S45-kd sneakers"]
[null,null,null,null,null,null,null,null,null,null,null,"S45-ms slippers"]
[null,null,null,null,null,null,null,null,null,null,null,"S45-ms sneakers"]
[null,null,null,null,null,null,null,null,null,null,null,"S46-ms sportset"]
[null,null,null,null,null,null,null,null,null,null,null,"S46-ms trainingspak"]
[null,null,null,null,null,null,null,null,null,null,null,"S50-ds sokken"]
[null,null,null,null,null,null,null,null,null,null,null,"S50-ds sportsokken"]
[null,null,null,null,null,null,null,null,null,null,null,"S50-hr sokken"]
[null,null,null,null,null,null,null,null,null,null,null,"S50-kd pet"]
[null,null,null,null,null,null,null,null,null,null,null,"S50-kd sport acc"]
[null,null,null,null,null,null,null,null,null,null,null,"S50-kd sportsokken"]
[null,null,null,null,null,null,null,null,null,null,null,"S50-pet"]
[null,null,null,null,null,null,null,null,null,null,null,"S50-rugzak"]
[null,null,null,null,null,null,null,null,null,null,null,"S50-sport acc"]
[null,null,null,null,null,null,null,null,null,null,null,"S50-sporttas"]
[null,null,null,null,null,null,null,null,null,null,null,"S50-uni sportsokken"]
[null,null,null,null,null,null,null,null,null,null,null,"T10-ds sport T-shirt"]
[null,null,null,null,null,null,null,null,null,null,null,"T10-ds sportBH"]
[null,null,null,null,null,null,null,null,null,null,null,"T10-ds sportjurk"]
[null,null,null,null,null,null,null,null,null,null,null,"T10-ds sportpolo"]
[null,null,null,null,null,null,null,null,null,null,null,"T10-GM ds sport T-shirt"]
[null,null,null,null,null,null,null,null,null,null,null,"T10-GM ds sportpolo"]
[null,null,null,null,null,null,null,null,null,null,null,"T11-ds sportsweater"]
[null,null,null,null,null,null,null,null,null,null,null,"T11-ds sportvest"]
[null,null,null,null,null,null,null,null,null,null,null,"T11-GM ds sportvest"]
[null,null,null,null,null,null,null,null,null,null,null,"T12-ds sportrok"]
[null,null,null,null,null,null,null,null,null,null,null,"T12-ds sportshort"]
[null,null,null,null,null,null,null,null,null,null,null,"T13-ds sportbroek"]
[null,null,null,null,null,null,null,null,null,null,null,"T13-GM ds sportbroek"]
[null,null,null,null,null,null,null,null,null,null,null,"T14-ds sportjack"]
[null,null,null,null,null,null,null,null,null,null,null,"T15-ds badslippers"]
[null,null,null,null,null,null,null,null,null,null,null,"T15-ds sportschoenen"]
[null,null,null,null,null,null,null,null,null,null,null,"T16-ds trainingspak"]
[null,null,null,null,null,null,null,null,null,null,null,"T20-hr sport T-shirt"]
[null,null,null,null,null,null,null,null,null,null,null,"T20-hr sportpolo"]
[null,null,null,null,null,null,null,null,null,null,null,"T21-hr sportsweater"]
[null,null,null,null,null,null,null,null,null,null,null,"T21-hr sportvest"]
[null,null,null,null,null,null,null,null,null,null,null,"T22-hr sportondergoed"]
[null,null,null,null,null,null,null,null,null,null,null,"T22-hr sportshort"]
[null,null,null,null,null,null,null,null,null,null,null,"T23-hr sportbroek"]
[null,null,null,null,null,null,null,null,null,null,null,"T24-hr sportjack"]
[null,null,null,null,null,null,null,null,null,null,null,"T25-hr badslippers"]
[null,null,null,null,null,null,null,null,null,null,null,"T25-hr sportschoenen"]
[null,null,null,null,null,null,null,null,null,null,null,"T25-uni badslippers"]
[null,null,null,null,null,null,null,null,null,null,null,"T25-uni sportschoenen"]
[null,null,null,null,null,null,null,null,null,null,null,"T26-hr trainingspak"]
[null,null,null,null,null,null,null,null,null,null,null,"T30-js sport T-shirt"]
[null,null,null,null,null,null,null,null,null,null,null,"T31-js sportsweater"]
[null,null,null,null,null,null,null,null,null,null,null,"T31-js sportvest"]
[null,null,null,null,null,null,null,null,null,null,null,"T32-js sportondergoed"]
[null,null,null,null,null,null,null,null,null,null,null,"T32-js sportshort"]
[null,null,null,null,null,null,null,null,null,null,null,"T33-js sportbroek"]
[null,null,null,null,null,null,null,null,null,null,null,"T34-js sportjack"]
[null,null,null,null,null,null,null,null,null,null,null,"T35-js badslippers"]
[null,null,null,null,null,null,null,null,null,null,null,"T35-js sportschoenen"]
[null,null,null,null,null,null,null,null,null,null,null,"T35-kd badslippers"]
[null,null,null,null,null,null,null,null,null,null,null,"T35-kd sportschoenen"]
[null,null,null,null,null,null,null,null,null,null,null,"T36-js trainingspak"]
[null,null,null,null,null,null,null,null,null,null,null,"T36-kd trainingspak"]
[null,null,null,null,null,null,null,null,null,null,null,"T40-ms sport T-shirt"]
[null,null,null,null,null,null,null,null,null,null,null,"T40-ms sportjurk"]
[null,null,null,null,null,null,null,null,null,null,null,"T41-ms sportsweater"]
[null,null,null,null,null,null,null,null,null,null,null,"T41-ms sportvest"]
[null,null,null,null,null,null,null,null,null,null,null,"T42-ms sportondergoed"]
[null,null,null,null,null,null,null,null,null,null,null,"T42-ms sportrok"]
[null,null,null,null,null,null,null,null,null,null,null,"T42-ms sportshort"]
[null,null,null,null,null,null,null,null,null,null,null,"T43-ms sportbroek"]
[null,null,null,null,null,null,null,null,null,null,null,"T44-ms sportjack"]
[null,null,null,null,null,null,null,null,null,null,null,"T45-kd sportschoenen"]
[null,null,null,null,null,null,null,null,null,null,null,"T45-ms badslippers"]
[null,null,null,null,null,null,null,null,null,null,null,"T45-ms sportschoenen"]
[null,null,null,null,null,null,null,null,null,null,null,"T46-ms trainingspak"]
[null,null,null,null,null,null,null,null,null,null,null,"T50-kd sport acc"]
[null,null,null,null,null,null,null,null,null,null,null,"T50-rugzak"]
[null,null,null,null,null,null,null,null,null,null,null,"T50-sport acc"]
[null,null,null,null,null,null,null,null,null,null,null,"T50-sport eqm"]
[null,null,null,null,null,null,null,null,null,null,null,"T50-sporttas"]
[null,null,null,null,null,null,null,null,null,null,null,"V10-ds sport T-shirt"]
[null,null,null,null,null,null,null,null,null,null,null,"V10-ds sportBH"]
[null,null,null,null,null,null,null,null,null,null,null,"V11-ds sportsweater"]
[null,null,null,null,null,null,null,null,null,null,null,"V11-ds sportvest"]
[null,null,null,null,null,null,null,null,null,null,null,"V12-ds sportshort"]
[null,null,null,null,null,null,null,null,null,null,null,"V13-ds sportbroek"]
[null,null,null,null,null,null,null,null,null,null,null,"V14-ds sportjack"]
[null,null,null,null,null,null,null,null,null,null,null,"V15-ds badslippers"]
[null,null,null,null,null,null,null,null,null,null,null,"V15-ds sportschoenen"]
[null,null,null,null,null,null,null,null,null,null,null,"V16-ds trainingspak"]
[null,null,null,null,null,null,null,null,null,null,null,"V20-hr sport T-shirt"]
[null,null,null,null,null,null,null,null,null,null,null,"V20-hr sportpolo"]
[null,null,null,null,null,null,null,null,null,null,null,"V21-hr sportsweater"]
[null,null,null,null,null,null,null,null,null,null,null,"V21-hr sportvest"]
[null,null,null,null,null,null,null,null,null,null,null,"V22-hr sportondergoed"]
[null,null,null,null,null,null,null,null,null,null,null,"V22-hr sportshort"]
[null,null,null,null,null,null,null,null,null,null,null,"V23-hr sportbroek"]
[null,null,null,null,null,null,null,null,null,null,null,"V24-hr sportjack"]
[null,null,null,null,null,null,null,null,null,null,null,"V25-hr badslippers"]
[null,null,null,null,null,null,null,null,null,null,null,"V25-hr sportschoenen"]
[null,null,null,null,null,null,null,null,null,null,null,"V25-uni badslippers"]
[null,null,null,null,null,null,null,null,null,null,null,"V25-uni sportschoenen"]
[null,null,null,null,null,null,null,null,null,null,null,"V26-hr trainingspak"]
[null,null,null,null,null,null,null,null,null,null,null,"V30-js sport T-shirt"]
[null,null,null,null,null,null,null,null,null,null,null,"V30-kd sport T-shirt"]
[null,null,null,null,null,null,null,null,null,null,null,"V31-js sportsweater"]
[null,null,null,null,null,null,null,null,null,null,null,"V31-js sportvest"]
[null,null,null,null,null,null,null,null,null,null,null,"V31-kd sportsweater"]
[null,null,null,null,null,null,null,null,null,null,null,"V31-kd sportvest"]
[null,null,null,null,null,null,null,null,null,null,null,"V32-js sportondergoed"]
[null,null,null,null,null,null,null,null,null,null,null,"V32-js sportshort"]
[null,null,null,null,null,null,null,null,null,null,null,"V32-kd sportshort"]
[null,null,null,null,null,null,null,null,null,null,null,"V33-js sportbroek"]
[null,null,null,null,null,null,null,null,null,null,null,"V33-kd sportbroek"]
[null,null,null,null,null,null,null,null,null,null,null,"V34-js sportjack"]
[null,null,null,null,null,null,null,null,null,null,null,"V34-kd sportjack"]
[null,null,null,null,null,null,null,null,null,null,null,"V35-js badslippers"]
[null,null,null,null,null,null,null,null,null,null,null,"V35-js sportschoenen"]
[null,null,null,null,null,null,null,null,null,null,null,"V35-kd badslippers"]
[null,null,null,null,null,null,null,null,null,null,null,"V35-kd sportschoenen"]
[null,null,null,null,null,null,null,null,null,null,null,"V36-js trainingspak"]
[null,null,null,null,null,null,null,null,null,null,null,"V36-kd sportset"]
[null,null,null,null,null,null,null,null,null,null,null,"V36-kd trainingspak"]
[null,null,null,null,null,null,null,null,null,null,null,"V40-ms sport T-shirt"]
[null,null,null,null,null,null,null,null,null,null,null,"V41-ms sportsweater"]
[null,null,null,null,null,null,null,null,null,null,null,"V41-ms sportvest"]
[null,null,null,null,null,null,null,null,null,null,null,"V42-ms sportondergoed"]
[null,null,null,null,null,null,null,null,null,null,null,"V42-ms sportshort"]
[null,null,null,null,null,null,null,null,null,null,null,"V43-ms sportbroek"]
[null,null,null,null,null,null,null,null,null,null,null,"V44-ms sportjack"]
[null,null,null,null,null,null,null,null,null,null,null,"V45-ms badslippers"]
[null,null,null,null,null,null,null,null,null,null,null,"V45-ms sportschoenen"]
[null,null,null,null,null,null,null,null,null,null,null,"V46-ms trainingspak"]
[null,null,null,null,null,null,null,null,null,null,null,"V50-hr sportsokken"]
[null,null,null,null,null,null,null,null,null,null,null,"V50-kd sport acc"]
[null,null,null,null,null,null,null,null,null,null,null,"V50-kd sportsokken"]
[null,null,null,null,null,null,null,null,null,null,null,"V50-rugzak"]
[null,null,null,null,null,null,null,null,null,null,null,"V50-scheenbeschermers"]
[null,null,null,null,null,null,null,null,null,null,null,"V50-sport acc"]
[null,null,null,null,null,null,null,null,null,null,null,"V50-sport eqm"]
[null,null,null,null,null,null,null,null,null,null,null,"V50-sport handschoenen"]
[null,null,null,null,null,null,null,null,null,null,null,"V50-sport sjaal"]
[null,null,null,null,null,null,null,null,null,null,null,"V50-sporttas"]
[null,null,null,null,null,null,null,null,null,null,null,"V50-uni sportsokken"]
[null,null,null,null,null,null,null,null,null,null,null,"V50-voetbal"]
[null,null,null,null,null,null,null,null,null,null,null,"W10-ds sport thermoshirt"]
[null,null,null,null,null,null,null,null,null,null,null,"W10-ds sport T-shirt"]
[null,null,null,null,null,null,null,null,null,null,null,"W10-ds sportBH"]
[null,null,null,null,null,null,null,null,null,null,null,"W10-ds sportondergoed"]
[null,null,null,null,null,null,null,null,null,null,null,"W11-ds skipully"]
[null,null,null,null,null,null,null,null,null,null,null,"W11-ds skisweater"]
[null,null,null,null,null,null,null,null,null,null,null,"W11-ds skivest"]
[null,null,null,null,null,null,null,null,null,null,null,"W11-ds sport thermoshirt"]
[null,null,null,null,null,null,null,null,null,null,null,"W11-ds sport thermovest"]
[null,null,null,null,null,null,null,null,null,null,null,"W13-ds skibroek"]
[null,null,null,null,null,null,null,null,null,null,null,"W13-ds sport thermobroek"]
[null,null,null,null,null,null,null,null,null,null,null,"W14-ds ski-jack"]
[null,null,null,null,null,null,null,null,null,null,null,"W15-ds snowboots"]
[null,null,null,null,null,null,null,null,null,null,null,"W16-ds skipak"]
[null,null,null,null,null,null,null,null,null,null,null,"W16-ds sport thermoset"]
[null,null,null,null,null,null,null,null,null,null,null,"W16-ds sportondergoed"]
[null,null,null,null,null,null,null,null,null,null,null,"W20-hr sport thermoshirt"]
[null,null,null,null,null,null,null,null,null,null,null,"W21-hr skipully"]
[null,null,null,null,null,null,null,null,null,null,null,"W21-hr skisweater"]
[null,null,null,null,null,null,null,null,null,null,null,"W21-hr skivest"]
[null,null,null,null,null,null,null,null,null,null,null,"W22-hr sportondergoed"]
[null,null,null,null,null,null,null,null,null,null,null,"W23-hr skibroek"]
[null,null,null,null,null,null,null,null,null,null,null,"W23-hr sport thermobroek"]
[null,null,null,null,null,null,null,null,null,null,null,"W24-hr ski-jack"]
[null,null,null,null,null,null,null,null,null,null,null,"W25-hr snowboots"]
[null,null,null,null,null,null,null,null,null,null,null,"W25-uni snowboots"]
[null,null,null,null,null,null,null,null,null,null,null,"W26-hr skipak"]
[null,null,null,null,null,null,null,null,null,null,null,"W26-hr sport thermoset"]
[null,null,null,null,null,null,null,null,null,null,null,"W26-hr sportondergoed"]
[null,null,null,null,null,null,null,null,null,null,null,"W30-js sport T-shirt"]
[null,null,null,null,null,null,null,null,null,null,null,"W30-kd sport thermoshirt"]
[null,null,null,null,null,null,null,null,null,null,null,"W30-kd sportondergoed"]
[null,null,null,null,null,null,null,null,null,null,null,"W31-js skipully"]
[null,null,null,null,null,null,null,null,null,null,null,"W31-js skisweater"]
[null,null,null,null,null,null,null,null,null,null,null,"W31-js skivest"]
[null,null,null,null,null,null,null,null,null,null,null,"W31-kd skipully"]
[null,null,null,null,null,null,null,null,null,null,null,"W31-kd skivest"]
[null,null,null,null,null,null,null,null,null,null,null,"W32-js sportondergoed"]
[null,null,null,null,null,null,null,null,null,null,null,"W33-js skibroek"]
[null,null,null,null,null,null,null,null,null,null,null,"W33-kd skibroek"]
[null,null,null,null,null,null,null,null,null,null,null,"W33-kd sport thermobroek"]
[null,null,null,null,null,null,null,null,null,null,null,"W34-js ski-jack"]
[null,null,null,null,null,null,null,null,null,null,null,"W34-kd ski-jack"]
[null,null,null,null,null,null,null,null,null,null,null,"W35-js snowboots"]
[null,null,null,null,null,null,null,null,null,null,null,"W35-kd snowboots"]
[null,null,null,null,null,null,null,null,null,null,null,"W36-js skipak"]
[null,null,null,null,null,null,null,null,null,null,null,"W36-kd skipak"]
[null,null,null,null,null,null,null,null,null,null,null,"W36-kd sport thermoset"]
[null,null,null,null,null,null,null,null,null,null,null,"W36-kd sportondergoed"]
[null,null,null,null,null,null,null,null,null,null,null,"W40-ms sport T-shirt"]
[null,null,null,null,null,null,null,null,null,null,null,"W41-kd skipully"]
[null,null,null,null,null,null,null,null,null,null,null,"W41-ms skipully"]
[null,null,null,null,null,null,null,null,null,null,null,"W41-ms skisweater"]
[null,null,null,null,null,null,null,null,null,null,null,"W41-ms skivest"]
[null,null,null,null,null,null,null,null,null,null,null,"W42-ms sportondergoed"]
[null,null,null,null,null,null,null,null,null,null,null,"W43-kd skibroek"]
[null,null,null,null,null,null,null,null,null,null,null,"W43-ms skibroek"]
[null,null,null,null,null,null,null,null,null,null,null,"W44-kd ski-jack"]
[null,null,null,null,null,null,null,null,null,null,null,"W44-ms ski-jack"]
[null,null,null,null,null,null,null,null,null,null,null,"W45-kd snowboots"]
[null,null,null,null,null,null,null,null,null,null,null,"W46-kd skipak"]
[null,null,null,null,null,null,null,null,null,null,null,"W46-ms skipak"]
[null,null,null,null,null,null,null,null,null,null,null,"W50-ds skisokken"]
[null,null,null,null,null,null,null,null,null,null,null,"W50-handschoenen"]
[null,null,null,null,null,null,null,null,null,null,null,"W50-hr skisokken"]
[null,null,null,null,null,null,null,null,null,null,null,"W50-kd handschoenen"]
[null,null,null,null,null,null,null,null,null,null,null,"W50-kd skibril"]
[null,null,null,null,null,null,null,null,null,null,null,"W50-kd skihelm"]
[null,null,null,null,null,null,null,null,null,null,null,"W50-kd skisokken"]
[null,null,null,null,null,null,null,null,null,null,null,"W50-kd sport acc"]
[null,null,null,null,null,null,null,null,null,null,null,"W50-skibril"]
[null,null,null,null,null,null,null,null,null,null,null,"W50-skihelm"]
[null,null,null,null,null,null,null,null,null,null,null,"W50-sport acc"]
[null,null,null,null,null,null,null,null,null,null,null,"W50-uni skisokken"]
[null,null,null,null,null,null,null,null,null,null,null,"Z10-ds sport T-shirt"]
[null,null,null,null,null,null,null,null,null,null,null,"Z13-ds sportbroek"]
[null,null,null,null,null,null,null,null,null,null,null,"Z15-ds sportschoenen"]
[null,null,null,null,null,null,null,null,null,null,null,"Z25-hr sportschoenen"]
[null,null,null,null,null,null,null,null,null,null,null,"Z25-uni sportschoenen"]
[null,null,null,null,null,null,null,null,null,null,null,"Z35-js sportschoenen"]
[null,null,null,null,null,null,null,null,null,null,null,"Z35-kd sportschoenen"]
[null,null,null,null,null,null,null,null,null,null,null,"Z45-kd sportschoenen"]
[null,null,null,null,null,null,null,null,null,null,null,"Z45-ms sportschoenen"]
[null,null,null,null,null,null,null,null,null,null,null,"Z50-sport eqm"]
[null,null,null,null,null,null,null,null,null,null,null,"Z50-sport knieband"]
[null,null,null,null,null,null,null,null,null,null,null,"W21-CONSIG hr skipully"]
[null,null,null,null,null,null,null,null,null,null,null,"W11-CONSIG ds skipully"]
[null,null,null,null,null,null,null,null,null,null,null,"W20-CONSIG hr thermoshirt"]
[null,null,null,null,null,null,null,null,null,null,null,"W10-CONSIG ds thermoshirt"]
[null,null,null,null,null,null,null,null,null,null,null,"W23-CONSIG hr thermobroek"]
[null,null,null,null,null,null,null,null,null,null,null,"W13-CONSIG ds thermobroek"]
[null,null,null,null,null,null,null,null,null,null,null,"W50-CONSIG uni skisokken"]
[null,null,null,null,null,null,null,null,null,null,null,"W50-CONSIG kd skiokken"]
[null,null,null,null,null,null,null,null,null,null,null,"W50-CONSIG muts"]
[null,null,null,null,null,null,null,null,null,null,null,"W50-CONSIG balaclava"]
[null,null,null,null,null,null,null,null,null,null,null,"W50-CONSIG nekwarmer"]
[null,null,null,null,null,null,null,null,null,null,null,"W21-CONSIG hr skisweater"]
[null,null,null,null,null,null,null,null,null,null,null,"W11-CONSIG ds skisweater"]
[null,null,null,null,null,null,null,null,null,null,null,"W21-CONSIG hr skivest"]
[null,null,null,null,null,null,null,null,null,null,null,"W11-CONSIG ds skivest"]
[null,null,null,null,null,null,null,null,null,null,null,"W50-CONSIG hoofdband"]
[null,null,null,null,null,null,null,null,null,null,null,"W50-CONSIG kd skihandschoenen"]
[null,null,null,null,null,null,null,null,null,null,null,"W50-CONSIG hr skisokken"]
[null,null,null,null,null,null,null,null,null,null,null,"W50-CONSIG ds skisokken"]
[null,null,null,null,null,null,null,null,null,null,null,"W50-CONSIG skisokken"]
[null,null,null,null,null,null,null,null,null,null,null,"W34-CONSIG kd ski-jack"]
[null,null,null,null,null,null,null,null,null,null,null,"W44-CONSIG kd ski-jack"]
[null,null,null,null,null,null,null,null,null,null,null,"W33-CONSIG kd skibroek"]
[null,null,null,null,null,null,null,null,null,null,null,"W43-CONSIG kd skibroek"]
[null,null,null,null,null,null,null,null,null,null,null,"W31-CONSIG kd skipully"]
[null,null,null,null,null,null,null,null,null,null,null,"W31-CONSIG kd skivest"]

{"sheet":"Data content","index":7,"n_rows":169,"n_cols":112,"rows_kept":169,"cut":false,"hidden":true,"merged":[]}
["Filterkleur","Filtermateriaal","Print","Sluiting","Wasvoorschrift","Multi: Details","Pasvorm/fit","Waist","Multi: Soort zak","Multi: Soort korte broek","Kraagvorm","Mouwlengte","Multi: Soort jas","Multi: Soort jurk","Multi: Soort rok","Multi: Soort trui","Multi: Soort vest","Droogvoorschrift","Multi: Seizoen","Multi: Soort broek","Strijkvoorschrift","Voering","Waterafstotend","Waterdicht","Winddicht","Binnenzool schoenen","Buitenzool schoenen","Gebruiksmoment","Hakhoogte (cm)","Hakvorm","Lengte sportbroek","Materiaal buitenkant","Materiaal voering","Model schoenen","Multi: Sport of gebruiksmoment","Soort sportbroek","Type hardloopschoen","Multi: Assortiment","Multi: Details broekspijpen","Sneeuwvanger","Multi: Details mouwen","PFC-vrij","Recco-systeem","Ventilatieritsen","Materiaaltechnologie","Demping schoenen","Multi: Eigenschappen voetbed","Multi: Eigenschappen zool","Uitneembaar voetbed","Winter gripsysteem","Categorie outdoorschoen","Terrein (Outdoor schoenen)","Terrein (Voetbal schoenen)","Sok instap","Achterkant",null,"Filtercolour","Filtermaterial","Material technology","Print","Closure","Washing instructions","Drying instructions","Ironing instructions","Multi: Details","Muti: Sport or moment of use","Multi: Assortment","Sportmoment","Fit","Waist ","Length sports trousers","Type of sports trousers","Multi: Details trouser legs","Snowcatcher","Multi: Type of pockets","Multi: Type of trousers","Multi: Type of skirt","Multi: Type of shorts","Neckline","Sleeve length","Details back","Multi: Type of dress","Multi: Type of sweater","Multi: Type of cardigan","Multi: Season","Multi: Type of jacket","Multi: Details sleeves","PFC-free","Recco-system","Ventilation zips","Lining","Water repellent","Waterproof","Breathability","Windproof","Insole shoes","Outsole shoes","Heel heigth (cm)","Type of heel","Cushioning of the shoes","Removeable footbed","Multi: Footbed features","Multi: Sole features","Outer material","Lining material","Winter gripsystem","Sock instep","Type of shoes","Outdoor shoe category","Terrain (Outdoor shoes)","Terrain (Football shoes)","Type of running shoes"]
["Aluminium","Acetaat","All over print","2-way rits","Alleen de hoes is wasbaar (30 graden)","3D applicatie","Aansluitend","Extra low","5-pocket","Bermuda shorts","Boothals","Driekwart","Anoraks","Korte jurken","A-lijn rokken","Coltruien","Cardigans","Drogen hoge temperatuur (3 punten)","Herfst","Capri's","Heet strijkbaar (3 punten)","Ja","Ja","Ja","Ja","Badstof","Continental","Badminton",0,"Blokhak",0.875,"Flexpand","Badstof","Hoog","Basketbal","Joggingbroeken","Allround hardloopschoenen","Grote maten","Aansnoerkoord","Ja","Drukknoop","Ja","Ja","Ja","ACTIVCHILL","Hak","Ademend","ABZORB","Ja","Ja","A","Onverharde bergpaden","Drassig veld (SG)","Ja","Gekruist",null,"Aluminium","Acetate","ACTIVCHILL","All-over print","2-way zipper","Do not wash","Do not tumble dry","Do not iron","3D appliqué","Basketbal","Maternity wear","Badminton","A-line","Extra low","7/8","Jogging trousers","Drawstring","Yes","5-pocket","Capris","Beach skirts","Beach shorts","Boat neck","Half-length","Criss-cross","Beach dresses","Cropped sweater","Cardigans","Autumn","Anoraks","Button","Yes","Yes","Yes","Yes","Yes","Yes","Yes","Yes","Cork","Continental",0,"Block heel","Forefoot","Yes","AdiFIT","ABZORB","Flexpand","Circuliner","Yes","Yes","High","A","Hardened mountain tracks","Artificial turf (AG)","Allround running shoes"]
["Antraciet","Acryl","Backprint","2-way rits met windvanger","Alleen de hoes is wasbaar (40 graden)","Afneembaar vlinderstrikje","A-lijn","High","Afsluitbare zak","Biker shorts","Button down","Half lang","Baseball jackets","Maxi jurken","Cargo rokken","Cropped truien","Fleecevesten","Drogen lage temperatuur (1 punt)","Lente","Cargo broeken","Lauw strijkbaar (1 punt)","Nee","Nee","Nee","Nee","EVA","Crepe","Fietsen",0.5,"Chunky","Capri","Gerecycled polyester","Circuliner","Laag","Dans","Sportcapri's","Baan schoenen","Standaardmaten","Drukknoop","Nee","Elastische manchet","Nee","Nee","Nee","Aeroready","Voorvoet","AdiFIT","ADIprene","Nee","Nee","A/B","Ruige bergen","Droog veld (FG)","Nee","Kant",null,"Anthracite","Acrylic","Aeroready","Animal print","2-way zipper with wind flap","Dry clean","Dry at high temperature (3 dots)","Iron at high temperature (3 dots)","Adjustable straps","Cycling","Plussize","Cycling","Barrel","High","Calf","Sports capris","Elastic cuff","No","Audio pocket","Cargo trousers","Cargo skirts","Bermuda shorts","Bow collar","Long","Lace","Maxi dresses","Fleece sweater","Fleece cardigan","Spring","Baseball jackets","Elastic cuff","No","No","No","No","No","No","No","No","EVA","Crepe",0.5,"Chunky","Forefoot and heel","No","Anti-bacterial","ADIprene","Imitation leather","Cotton","No","No","Low","A/B","Roads and tracks","Dry field/Artificial grass (FxG)","Track running shoes"]
["Aubergine","All weather stof","Blad","Adjust-O-Matic","Alleen de hoes is wasbaar (60 graden)","Afneembare imitatiebontkraag","Barrel","Low","Afsluitbare zakken","Cargo shorts","Capuchon","Kort","Bikerjacks","Midi jurken","Korte rokken","Fleecetruien","Gebreide vesten","Hangend drogen","Winter","Casual broeken","Niet strijken",null,null,null,null,"Imitatieleer/PU","Gerecycled rubber","Fitness/training",0.6,"Comfortabel","Kort","Imitatieleer","Fleece","Mid","Fiets","Sportleggings","Trail schoenen","Zwangerschapskleding","Elastische boord",null,"Elastische manchet met duimsgat",null,null,null,"AWS Active","Voorvoet en hak","Anti-bacterieël","AHAR+",null,null,"B","Verharde bergpaden","Droog veld/Kunstgras (FxG)",null,"Laag",null,"Aubergine","All-weather fabric","AWS Active","Back print","Adjust-O-Matic","Hand wash","Dry at low temperature (1 dot)","Iron at low temperature (1 dot)","Asymmetric","Dance","Regular sizes","Fitness/training","Bootcut","Low","Capri","Sports shorts","Frayed",null,"Back pocket","Casual trousers","Maxi skirts","Biker shorts","Button-down","Short","Low","Midi dresses","Hoodie","Knitted cardigan","Summer","Biker jackets","Elastic cuff with thumb hole",null,null,null,null,null,null,null,null,"Imitation leather/PU","Imitation leather",0.6,"Comfortable","Heel",null,"Breathable","AHAR+","Imitation suede","Faux fur",null,null,"Mid","B","Rugged mountains","Dry pitch (FG)","Trail running shoes"]
["Beige","Aluminium","Bloemen","Bergsluiting","Chemisch reinigen","Afritsbaar","Bootcut","Regular","Audiozakje","Casual shorts","Choker","Lang","Bodywarmers","Mini jurken","Maxi rokken","Gebreide truien","Gevoerde vesten","Liggend drogen","Zomer","Cropped broeken","Strijkvrij",null,null,null,null,"Jute","Imitatieleer","Golf",0.7,"Hak(je)","Kuit","Imitatiesuède","Flexpand",null,"Fitness","Sportshorts",null,null,"Gerafeld",null,"Klittenband",null,null,null,"AWS Extreme",null,"Comfortdry","Air-demping",null,null,"B/C","Wegen en paden","Indoor",null,"Mesh",null,"Beige","Aluminium","AWS Extreme","Camouflage","Box and tongue","Machine wash","Dry flat","Iron at medium temperature (2 dots)","Beads","Fitness",null,"Gold","Comfort fit","Regular","Long","Sports leggings","Press stud",null,"Back pockets","Cropped trousers","Midi skirts","Cargo shorts","Choker","Sleevelength 7","Mesh","Mini dresses","Knitted sweater","Lined cardigan","Winter","Bomber jackets","Press stud",null,null,null,null,null,null,null,null,"Jute","Leather",0.7,"Flat sole",null,null,"Comfortdry","Air-cushioning","Lacquer","Fleece",null,null,null,"B/C","Unpaved mountain paths","Hard field (TF)"]
["Black denim","Badstof","Camouflage","Beugel","Handwas","Ajour","Comfort fit",null,"Binnenzak","Jorts","Col","Mouwlengte 7","Bomberjacks","Strandjurken","Midi rokken","Hoodies","Lange vesten","Niet drogen in de droogtrommel",null,"Culottes","Warm strijkbaar (2 punten)",null,null,null,null,"Kurk","Leer","Hardlopen",0.8,"Met air","Lang","Lak","Imitatiebont",null,"Golf","Sporttights",null,null,"Klittenband",null,"Knoop",null,null,null,"Climacool",null,"ComfyCush","Air-unit",null,null,"C",null,"Kunstgras (AG)",null,"Normaal",null,"Black","Bamboo","Climacool","Character","Buckle","Only the cover is washable (30°C)","Dry hanging","Ironfree","Belt","Gold",null,"Hockey","Fitted",null,"Short","Sporttights","Split",null,"Cargo pockets","Culottes","Mini skirts","Casual shorts","Classic collar","Sleeveless","Normal","Shirt dresses","Cableknit sweater","Long cardigan",null,"Denim jackets","Velcro",null,null,null,null,null,null,null,null,"Leather","Recycled rubber",0.8,"Heel",null,null,"ComfyCush","Air-unit","Leather","Flexpand",null,null,null,"C",null,"Indoor"]
["Blauw","Bamboe","Dierenprint","Blinde knoopsluiting","Machinewas","Asymmetrisch","Flared",null,"Binnenzakken","Korte tuinbroeken","Halter","Mouwloos","Faux fur jassen","Sweatjurken","Mini rokken","Kabeltruien","Outdoor vesten","Regulier droogprogramma",null,"Flared broeken",null,null,null,null,null,"Leer","Noppen","Hockey",0.9,"Naaldhak",null,"Leer","Imitatieleer/PU",null,"Hardloop","Trainingsbroeken",null,null,"Omgeslagen",null,"Rits",null,null,null,"Climalite",null,"Memory Tech","All-Terrain",null,null,"D",null,"Multi ground (MG)",null,"Open",null,"Black denim","Bouclé","Climalite","Checkered (Plaid)","Butterfly clasp","Only the cover is washable (40°C)","Regular drying program",null,"Belt loops","Gym",null,"Indoor sports","Flared",null,null,"Track trousers","Turnup",null,"Chest pocket","Flared trousers","Short skirts","Dungaree shorts","Halter","Spaghetti strap","Open","Short dresses","Norwegian sweater","Outdoor cardigan",null,"Faux fur jackets","Zipper",null,null,null,null,null,null,null,null,"Mesh","Rubber",0.9,"Platform sole",null,null,"Memory Tech","All-Terrain","Leather and imitation leather","Imitation leather/PU",null,null,null,"D",null,"Marshy field (SG)"]
["Brique","Bouclé","Dip-dye","Blinde ritssluiting","Niet wassen","Biker","Getailleerd",null,"Borstzak","Outdoor korte broeken","Hartvormig","Spaghettibandje","Gewatteerde jassen","T-shirtjurken","Skorts","Noorse truien","Sweatvesten",null,null,"Joggingbroeken",null,null,null,null,null,"Mesh","Rubber","Other Sports",1,"Plateauzool",null,"Leer en imitatieleer","Katoen",null,"Hockey",null,null,null,"Rits",null,null,null,null,null,"ClimaTec",null,"MICRO-GO","Anti-slip",null,null,null,null,"Verhard veld (TF)",null,"Open detail",null,"Blue","Brass","ClimaTec","Dip-dye","Button closure","Only the cover is washable (60°C)",null,null,"Biker","Hockey",null,"Other Sports","Loose",null,null,null,"Velcro",null,"Chest pockets","Joggers","Skorts","Jorts","Heart-shaped neckline","Three-quarter length","Open detail","Summer dresses","Pullover","Sweat cardigan",null,"Faux leather jackets",null,null,null,null,null,null,null,null,null,"Microfiber","Studs",1,"Profile sole",null,null,"MICRO-GO","Anti-slip","Leather and textile","Leather",null,null,null,null,null,"Multi ground (MG)"]
["Brons","Canvas","Effen","Box and Tongue","Stomen","Binnenbroekje","Loose",null,"Borstzakken","Strandshorts","Henleykraag",null,"Imitatieleren jassen","Zomerjurken","Strandrokken","Pullovers",null,null,null,"Leggings",null,null,null,null,null,"Microvezel","Textiel","Outdoor",10,"Platte zool",null,"Leer en textiel","Leer",null,"Motorsport",null,null,null,"Split",null,null,null,null,null,"Climawarm",null,"OrthoLite","AOSTA",null,null,null,null,null,null,"Racerback",null,"Brick","Canvas","Climawarm","Flowers","Cap lock","Steam clean",null,null,"Bow","Indoor sports",null,"Outdoor","Mom",null,null,null,"Zipper",null,"Decorative pockets","Leggings",null,"Outdoor shorts","Henley collar",null,"Racerback","Sweat dresses","Skipper sweater",null,null,"Gilets / Body warmers",null,null,null,null,null,null,null,null,null,"Orthopedic sole","Textile",10,"Stiletto heel",null,null,"Moisture regulating","AOSTA","Mesh","Leather and textile"]
["Bruin","Chenille","Grafisch","Clipsluiting","Wasbaar op 30 graden","Borduursels","Mom",null,"Cargozakken","Sweatshorts","Klassieke kraag",null,"Jacks",null,null,"Schipperstruien",null,null,null,"Outdoor broek",null,null,null,null,null,"Orthopedische zool","Thermoplastic (TPU)","Slides",1,"Profielzool",null,"Mesh","Leer en textiel",null,"Padel",null,null,null,null,null,null,null,null,null,"ColdGear",null,"Softfoam","BOOST",null,null,null,null,null,null,null,null,"Bronze","Carbon fiber","ColdGear","Graphic","Click closure","Washable at 30°C",null,null,"Bow tie","Martial arts",null,"Running","Oversized",null,null,null,null,null,"Front pockets","Outdoor trousers",null,"Sweatshorts","Hood",null,null,"T-shirt dresses","Sweatshirt",null,null,"Jackets",null,null,null,null,null,null,null,null,null,"Rubber","Thermoplastic (TPU)",1,"Wedge heel",null,null,"OrthoLite","BOOST","Mesh with leather","Mesh"]
["Camel","Coated","Hartjes","Double breasted","Wasbaar op 40 graden","Broderie","Oversized",null,"Geen",null,"Mao kraag",null,"Jasjes",null,null,"Sweaters",null,null,null,"Palazzo broeken",null,null,null,null,null,"Rubber","Vibram","Sneakers",10.1,"Sleehak",null,"Mesh met leer","Mesh",null,"Tennis",null,null,null,null,null,null,null,null,null,"Compressie",null,"Thermo","Cloudfoam",null,null,null,null,null,null,null,null,"Brown","Cardboard","Compression","Hearts","Clip closure","Washable at 40°C",null,null,"Braided","Motorsports",null,"Slides","Regular",null,null,null,null,null,"Inner pocket","Overalls",null,null,"Mao collar",null,null,null,"Turtleneck sweater",null,null,"Kimono",null,null,null,null,null,null,null,null,null,"Suede","Vibram",10.1,"Western",null,null,"Pre-shaped","Cloudfoam","Mesh with PU","Pigskin leather"]
["Champagne","Corduroy","Krijtstreep","Draaisluiting","Wasbaar op 60 graden","Ceintuur","Rechtvallend",null,"Kangoeroezak",null,"Off shoulder",null,"Kimono",null,null,null,null,null,null,"Regenbroeken",null,null,null,null,null,"Suède",null,"Speedminton",10.199999999999999,"Western",null,"Mesh met PU","Polyester",null,"Vechtsport",null,null,null,null,null,null,null,null,null,"CoolMatch",null,"Vochtregulerend","Cupzool",null,null,null,null,null,null,null,null,"Camel","Cast iron","CoolMatch","Houndstooth","Double-breasted","Washable at 60°C",null,null,"Broderie","Padel",null,"Sneakers","Relaxed",null,null,null,null,null,"Inner pockets","Rain pants",null,null,"Notch collar",null,null,null,null,null,null,"Lammy coat",null,null,null,null,null,null,null,null,null,"Terrycloth",null,10.199999999999999,"With air",null,null,"Softfoam","Cup sole","Mesh with suede","Polyester"]
["Chroom","Cupro","Logo","Drukknoop","Wasbaar op 90 graden","Coating","Regular",null,"Sierzakken",null,"One shoulder",null,"Lammy coat",null,null,null,null,null,null,"Sweatpants",null,null,null,null,null,"Textiel",null,"Streetwear",10.3,null,null,"Mesh met suède","Rubber",null,"Voetbal",null,null,null,null,null,null,null,null,null,"Core Dry",null,"Voorgevormd","Cushlon",null,null,null,null,null,null,null,null,"Champagne","Chenille","Core dry","Leafs","Drawstrings","Washable at 90°C",null,null,"Button detail","Running",null,"Soccer","Skinny",null,null,null,null,null,"Kangaroo pocket","Sweatpants",null,null,"Off-shoulder",null,null,null,null,null,null,"Leather jackets",null,null,null,null,null,null,null,null,null,"Textile",null,10.3,null,null,null,"Thermo","Cushioning","Nubuck","Rubber"]
["Cognac","Denim","Meerkleurig","Elastische inzet","Wolwas","Contrast bies","Relaxed",null,"Skipaszak",null,"Openvallende hals",null,"Leren jassen",null,null,null,null,null,null,"Treggings",null,null,null,null,null,"Thermo",null,"Tennis",10.4,null,null,"Nubuck","Spo-tex",null,"Wintersport",null,null,null,null,null,null,null,null,null,"D1",null,null,"Dempend",null,null,null,null,null,null,null,null,"Cherry","Chromium steel","D1","Leopard print","Elastic insert","Wool wash",null,null,"Cable-knit","Soccer",null,"Speedminton","Slim",null,null,null,null,null,"Key pocket","Treggings",null,null,"One-shoulder",null,null,null,null,null,null,"Lighter jackets",null,null,null,null,null,null,null,null,null,"Thermo",null,10.4,null,null,null,null,"Cushlon","Primegreen","Spo-tex"]
["Crème ","Dons","Melée","Elastische tailleband",null,"Contrast stiksels","Skinny",null,"Sleutelzakje",null,"Opstaande kraag",null,"Manteljas",null,null,null,null,null,null,"Tuinbroeken",null,null,null,null,null,null,null,"Voetbal",10.5,null,null,"Primegreen","Suède",null,"Yoga",null,null,null,null,null,null,null,null,null,"Dri-FIT",null,null,"Draaipunt",null,null,null,null,null,null,null,null,"Chrome","Coated","Dri-FIT","Logo","Elastic laces",null,null,null,"Coarse knit","Swimming",null,"Streetwear","Straight",null,null,null,null,null,"None",null,null,null,"Open-neck",null,null,null,null,null,null,"Outdoor jackets",null,null,null,null,null,null,null,null,null,null,null,10.5,null,null,null,null,"Dynergy","PU","Suede"]
["Cyaan","Dralon","Mixprint","Elastische tailleband met koord",null,"Crinkle cotton","Slim",null,"Zak achter",null,"Overslagkraag",null,"Outdoor jassen",null,null,null,null,null,null,null,null,null,null,null,null,null,null,"Wintersport",10.6,null,null,"PU","Synthetisch",null,"Zaalsport",null,null,null,null,null,null,null,null,null,"dryCELL",null,null,"Dynergy",null,null,null,null,null,null,null,null,"Cognac","Coconut fiber","dryCELL","Mélange","Elastic laces with Velcro closure",null,null,null,"Coating","Tennis",null,"Swimming","Super skinny",null,null,null,null,null,"Secure pocket (or pocket with closure)",null,null,null,"Peter Pan collar",null,null,null,null,null,null,"Overcoat",null,null,null,null,null,null,null,null,null,null,null,10.6,null,null,null,null,"ENCAP midsole","Raffia","Synthetic"]
["Dark blue denim","Eendenveren","Paisley","Elastische veter",null,"Crochet","Straight",null,"Zakken achter",null,"Peter Pan-kraag",null,"Parka's",null,null,null,null,null,null,null,null,null,null,null,null,null,null,"Zaalsport",10.7,null,null,"Raffia","Teddy",null,"Zwem",null,null,null,null,null,null,null,null,null,"DryLite",null,null,"ENCAP-tussenzool",null,null,null,null,null,null,null,null,"Colonial","Copper","DryLite","Mixed print","Elastic waistband",null,null,null,"Contrast piping","Wintersports",null,"Tennis","Super slim",null,null,null,null,null,"Secure pockets (or pockets with closures)",null,null,null,"Polo collar",null,null,null,null,null,null,"Parkas",null,null,null,null,null,null,null,null,null,null,null,10.7,null,null,null,null,"Energy return","Recycled polyester","Teddy"]
["Donkerblauw","EVA","Panterprint","Elastische veter- met klittenbandsluiting",null,"Cut out","Super skinny",null,"Zakken voor",null,"Polo",null,"Regenjassen",null,null,null,null,null,null,null,null,null,null,null,null,null,null,"Zwemmen",10.8,null,null,"Rubber","Textiel",null,null,null,null,null,null,null,null,null,null,null,"ECO EnduraFlex",null,null,"Energie teruggave",null,null,null,null,null,null,null,null,"Copper","Corduroy","ECO EnduraFlex","Multicolored","Elastic waistband with drawstring",null,null,null,"Contrast stitching","Yoga",null,"Wintersports","Tapered",null,null,null,null,null,"Side pocket",null,null,null,"Rollneck",null,null,null,null,null,null,"Quilted jackets",null,null,null,null,null,null,null,null,null,null,null,10.8,null,null,null,null,"EVERRUN","Rubber","Terry"]
["Donkerbruin","Flanel","Personage","Geen",null,"Doorgestikt","Super slim",null,"Zak op de mouw",null,"Reverskraag",null,"Reversible jassen",null,null,null,null,null,null,null,null,null,null,null,null,null,null,null,10.9,null,null,"Suède","Textiel en imitatieleer",null,null,null,null,null,null,null,null,null,null,null,"ECO Endurance+",null,null,"EVERRUN",null,null,null,null,null,null,null,null,"Coral red","Cork","ECO Endurance+","Paisley","Folding clasp",null,null,null,"Crinkle cotton",null,null,null,"Waisted",null,null,null,null,null,"Side pockets",null,null,null,"Round neck",null,null,null,null,null,null,"Rain jackets",null,null,null,null,null,null,null,null,null,null,null,10.9,null,null,null,null,"Evertrack","Suede","Textile"]
["Donkergroen","Fleece","Pied de Poule","Gesp",null,"Elastische boord","Tapered",null,"Zijzak",null,"Rolkraag",null,"Shackets",null,null,null,null,null,null,null,null,null,null,null,null,null,null,null,11,null,null,"Textiel","Varkensleder",null,null,null,null,null,null,null,null,null,null,null,"ECO Endurance+ MAX",null,null,"Evertrack",null,null,null,null,null,null,null,null,"Cream","Cotton","ECO Endurance+ MAX","Pinstripe","Half zipper",null,null,null,"Crochet",null,null,null,"Wide leg",null,null,null,null,null,"Ski pass pocket",null,null,null,"Shawl collar",null,null,null,null,null,null,"Reversible jackets",null,null,null,null,null,null,null,null,null,null,null,11,null,null,null,null,"Flex grooves","Textile","Textile and imitation leather"]
["Donker oranje","Fluweel","Printopdruk","Haaksluiting",null,"Epaulette","Wide leg",null,"Zijzakken",null,"Ronde hals",null,"Softshell jassen",null,null,null,null,null,null,null,null,null,null,null,null,null,null,null,1.1000000000000001,null,null,"Textiel en imitatieleer","Waterafstotend mesh",null,null,null,null,null,null,null,null,null,null,null,"ECONYL®",null,null,"Flex-groeven",null,null,null,null,null,null,null,null,"Cyan","Cotton linen","ECO shape Comprex Ultra","Plain","Hook closure",null,null,null,"Crocheted",null,null,null,null,null,null,null,null,null,"Sleeve pocket",null,null,null,"Skipper collar",null,null,null,null,null,null,"Shackets",null,null,null,null,null,null,null,null,null,null,null,1.1000000000000001,null,null,null,null,"Flexible","Textile and imitation leather","Water repellent mesh"]
["Donkerpaars","Gewassen katoen","Ruit","Halve rits",null,"Fijn gebreid",null,null,null,null,"Schipperskraag",null,"Spijkerjassen",null,null,null,null,null,null,null,null,null,null,null,null,null,null,null,11.1,null,null,"Textiel en suède","Wol",null,null,null,null,null,null,null,null,null,null,null,"ECO Shape Comprex Ultra",null,null,"Flexibel",null,null,null,null,null,null,null,null,"Dark blue","Cotton satin","ECONYL","Polka dots","Invisible button",null,null,null,"Cut-out",null,null,null,null,null,null,null,null,null,null,null,null,null,"Smoking collar",null,null,null,null,null,null,"Softshell jackets",null,null,null,null,null,null,null,null,null,null,null,11.1,null,null,null,null,"Flyte Foam","Textile and suede","Wool"]
["Donkerrood","Gewatteerd","Sterren","Kapittelslot",null,"Franjes",null,null,null,null,"Sjaalkraag",null,"Teddy jassen",null,null,null,null,null,null,null,null,null,null,null,null,null,null,null,11.2,null,null,null,null,null,null,null,null,null,null,null,null,null,null,null,"E-DRY",null,null,"Flyte Foam",null,null,null,null,null,null,null,null,"Dark blue denim","Cotton-lyocell","E-DRY","Print design","Invisible zipper",null,null,null,"Decorative buckle",null,null,null,null,null,null,null,null,null,null,null,null,null,"Square neckline",null,null,null,null,null,null,"Summer jackets",null,null,null,null,null,null,null,null,null,null,null,11.2,null,null,null,null,"Fresh Foam"]
["Donkerviolet","Glas","Stip","Karabijnsluiting",null,"Gebreid",null,null,null,null,"Smokingkraag",null,"Trenchcoats",null,null,null,null,null,null,null,null,null,null,null,null,null,null,null,11.3,null,null,null,null,null,null,null,null,null,null,null,null,null,null,null,"Endurance+",null,null,"Fresh Foam",null,null,null,null,null,null,null,null,"Dark brown","Crystal","Endurance+","Stars","Laces",null,null,null,"Decorative buttons",null,null,null,null,null,null,null,null,null,null,null,null,null,"Stand-up collar",null,null,null,null,null,null,"Teddy jackets",null,null,null,null,null,null,null,null,null,null,null,11.3,null,null,null,null,"Fuze GEL"]
["Ecru","Goud","Streep","Kliksluiting",null,"Gehaakt",null,null,null,null,"Strapless",null,"Tussenjassen",null,null,null,null,null,null,null,null,null,null,null,null,null,null,null,11.4,null,null,null,null,null,null,null,null,null,null,null,null,null,null,null,"Endurance10",null,null,"Fuze GEL",null,null,null,null,null,null,null,null,"Dark green","Cupro","Endurance10","Stripe","Laces with hooks",null,null,null,"Decorative lace",null,null,null,null,null,null,null,null,null,null,null,null,null,"Strapless",null,null,null,null,null,null,"Transitional jackets",null,null,null,null,null,null,null,null,null,null,null,11.4,null,null,null,null,"Gellyte"]
["Fuchsia","Harig","Tekst","Klittenband",null,"Gerafeld",null,null,null,null,"Strikkraag",null,"Winterjassen",null,null,null,null,null,null,null,null,null,null,null,null,null,null,null,11.5,null,null,null,null,null,null,null,null,null,null,null,null,null,null,null,"Geen",null,null,"Gellyte",null,null,null,null,null,null,null,null,"Dark orange","Denim","Geotech","Text","Laces with Velcro closure",null,null,null,"Decorative stones",null,null,null,null,null,null,null,null,null,null,null,null,null,"Turtleneck",null,null,null,null,null,null,"Trench coats",null,null,null,null,null,null,null,null,null,null,null,11.5,null,null,null,null,"Ignite"]
["Geel","Hennep","Tie-dye","Knoopsluiting",null,"Geribde boorden",null,null,null,null,"V-hals",null,"Zomerjassen",null,null,null,null,null,null,null,null,null,null,null,null,null,null,null,11.6,null,null,null,null,null,null,null,null,null,null,null,null,null,null,null,"Geotech",null,null,"Ignite",null,null,null,null,null,null,null,null,"Dark purple","Dolomite","GORE-TEX","Tie-dye","Lobster claw closure",null,null,null,"Decorative straps",null,null,null,null,null,null,null,null,null,null,null,null,null,"V-neck",null,null,null,null,null,null,"Winter jackets",null,null,null,null,null,null,null,null,null,null,null,11.6,null,null,null,null,"IMEVA-HR"]
["Glas","Imitatiebont","Tortoise","Magneetsluiting",null,"Gestanst",null,null,null,null,"Vierkante hals",null,null,null,null,null,null,null,null,null,null,null,null,null,null,null,null,null,11.7,null,null,null,null,null,null,null,null,null,null,null,null,null,null,null,"GORE-TEX",null,null,"IMEVA-HR",null,null,null,null,null,null,null,null,"Dark red","Down","HEAT.RDY","Tortoise","Magnet closure",null,null,null,"Decorative zipper",null,null,null,null,null,null,null,null,null,null,null,null,null,"Waterfall neckline",null,null,null,null,null,null,null,null,null,null,null,null,null,null,null,null,null,null,11.7,null,null,null,null,"Indoor sole"]
["Goud","Imitatieleer","Vintage","Rits + tunnelkoord",null,"Gevlochten",null,null,null,null,"Watervalhals",null,null,null,null,null,null,null,null,null,null,null,null,null,null,null,null,null,11.8,null,null,null,null,null,null,null,null,null,null,null,null,null,null,null,"HeatGear",null,null,"Indoor zool",null,null,null,null,null,null,null,null,"Dark violet","Dralon","HeatGear","Vintage","None",null,null,null,"Detachable",null,null,null,null,null,null,null,null,null,null,null,null,null,"Widespread collar",null,null,null,null,null,null,null,null,null,null,null,null,null,null,null,null,null,null,11.8,null,null,null,null,"ISO"]
["Grey denim","Imitatiesuède","Zebraprint","Rits- en drukknoopsluiting",null,"Geweven",null,null,null,null,"Widespread",null,null,null,null,null,null,null,null,null,null,null,null,null,null,null,null,null,11.9,null,null,null,null,null,null,null,null,null,null,null,null,null,null,null,"HEAT.RDY",null,null,"ISO",null,null,null,null,null,null,null,null,"Ecru","Duck feathers","Helly Tech® Performance","Zebra print","Press stud",null,null,null,"Drawstring tunnel",null,null,null,null,null,null,null,null,null,null,null,null,null,"Wrap collar",null,null,null,null,null,null,null,null,null,null,null,null,null,null,null,null,null,null,11.9,null,null,null,null,"Length guidance"]
["Grijs","Jersey",null,"Rits- en haaksluiting",null,"Glimmend",null,null,null,null,null,null,null,null,null,null,null,null,null,null,null,null,null,null,null,null,null,null,12,null,null,null,null,null,null,null,null,null,null,null,null,null,null,null,"Helly Tech® Performance",null,null,"Lengtebegeleiding/guidance",null,null,null,null,null,null,null,null,"Fuchsia","EVA","Helly Tech® Professional",null,"Safety lock",null,null,null,"Elastic cuff",null,null,null,null,null,null,null,null,null,null,null,null,null,null,null,null,null,null,null,null,null,null,null,null,null,null,null,null,null,null,null,null,12,null,null,null,null,"Lightweight"]
["Grijsblauw","Jog denim",null,"Rits- en klittenbandsluiting",null,"Glitters",null,null,null,null,null,null,null,null,null,null,null,null,null,null,null,null,null,null,null,null,null,null,1.2,null,null,null,null,null,null,null,null,null,null,null,null,null,null,null,"Helly Tech® Professional",null,null,"Lichtgewicht",null,null,null,null,null,null,null,null,"Glass","Fabric","Helly Tech® Protection",null,"Slider",null,null,null,"Embroidery",null,null,null,null,null,null,null,null,null,null,null,null,null,null,null,null,null,null,null,null,null,null,null,null,null,null,null,null,null,null,null,null,1.2,null,null,null,null,"Lunarlon Foam"]
["Grijsbruin","Jute",null,"Rits- en knoopsluiting",null,"Golvende afwerking",null,null,null,null,null,null,null,null,null,null,null,null,null,null,null,null,null,null,null,null,null,null,12.1,null,null,null,null,null,null,null,null,null,null,null,null,null,null,null,"Helly Tech® Protection",null,null,"Lunarlon Foam",null,null,null,null,null,null,null,null,"Gold","Faux fur","HydraStrong",null,"Snapback",null,null,null,"Epaulette",null,null,null,null,null,null,null,null,null,null,null,null,null,null,null,null,null,null,null,null,null,null,null,null,null,null,null,null,null,null,null,null,12.1,null,null,null,null,"Midfoot support"]
["Grijsgroen","Kant",null,"Rits- en vetersluiting",null,"Grof gebreid",null,null,null,null,null,null,null,null,null,null,null,null,null,null,null,null,null,null,null,null,null,null,12.2,null,null,null,null,null,null,null,null,null,null,null,null,null,null,null,"HydraStrong",null,null,"Middenvoet ondersteuning",null,null,null,null,null,null,null,null,"Green","Faux leather","Hydro-Pro",null,"Spring closure",null,null,null,"Eyelet",null,null,null,null,null,null,null,null,null,null,null,null,null,null,null,null,null,null,null,null,null,null,null,null,null,null,null,null,null,null,null,null,12.2,null,null,null,null,"Migro-G"]
["Grijs melange","Kapok",null,"Rits met windvanger",null,"Imitatiebontkraag",null,null,null,null,null,null,null,null,null,null,null,null,null,null,null,null,null,null,null,null,null,null,12.3,null,null,null,null,null,null,null,null,null,null,null,null,null,null,null,"Hydro-Pro",null,null,"Migro-G",null,null,null,null,null,null,null,null,"Grey","Faux suede","Infinitex",null,"Strapback",null,null,null,"Faux fur collar",null,null,null,null,null,null,null,null,null,null,null,null,null,null,null,null,null,null,null,null,null,null,null,null,null,null,null,null,null,null,null,null,12.3,null,null,null,null,"Natural movement"]
["Groen","Karton",null,"Rits waterdicht",null,"Ingebreid",null,null,null,null,null,null,null,null,null,null,null,null,null,null,null,null,null,null,null,null,null,null,12.4,null,null,null,null,null,null,null,null,null,null,null,null,null,null,null,"Infinitex",null,null,"Natuurlijke beweging",null,null,null,null,null,null,null,null,"Grey denim","Felt","moisture-regulating",null,"Tension clasp",null,null,null,"Feathers",null,null,null,null,null,null,null,null,null,null,null,null,null,null,null,null,null,null,null,null,null,null,null,null,null,null,null,null,null,null,null,null,12.4,null,null,null,null,"Nike ZOOM"]
["Honing","Katoen",null,"Rits wind- en waterdicht",null,"Ingebreid patroon",null,null,null,null,null,null,null,null,null,null,null,null,null,null,null,null,null,null,null,null,null,null,12.5,null,null,null,null,null,null,null,null,null,null,null,null,null,null,null,"NB Dry",null,null,"Nike ZOOM",null,null,null,null,null,null,null,null,"Grey mélange","Flannel","moisture-regulating and quick-drying",null,"Tie closure",null,null,null,"Fine knit",null,null,null,null,null,null,null,null,null,null,null,null,null,null,null,null,null,null,null,null,null,null,null,null,null,null,null,null,null,null,null,null,12.5,null,null,null,null,"Non-marking"]
["Hoogglans wit","Katoenlinnen",null,"Rits winddicht",null,"Jacquard",null,null,null,null,null,null,null,null,null,null,null,null,null,null,null,null,null,null,null,null,null,null,12.6,null,null,null,null,null,null,null,null,null,null,null,null,null,null,null,"NB Heat",null,null,"Non-marking",null,null,null,null,null,null,null,null,"Grey-blue","Fleece","NB Dry",null,"Twist lock closure",null,null,null,"Flounce",null,null,null,null,null,null,null,null,null,null,null,null,null,null,null,null,null,null,null,null,null,null,null,null,null,null,null,null,null,null,null,null,12.6,null,null,null,null,"OMNI"]
["Ivoor","Katoen-lyocell",null,"Rits, haak- en knoopsluiting",null,"Kabels",null,null,null,null,null,null,null,null,null,null,null,null,null,null,null,null,null,null,null,null,null,null,12.7,null,null,null,null,null,null,null,null,null,null,null,null,null,null,null,"Sculpture",null,null,"OMNI",null,null,null,null,null,null,null,null,"Grey-brown","Foam","NB Warm",null,"Velcro",null,null,null,"Frayed",null,null,null,null,null,null,null,null,null,null,null,null,null,null,null,null,null,null,null,null,null,null,null,null,null,null,null,null,null,null,null,null,12.7,null,null,null,null,"Phylon"]
["Kaki","Katoen satijn",null,"Ritssluiting",null,"Kant",null,null,null,null,null,null,null,null,null,null,null,null,null,null,null,null,null,null,null,null,null,null,12.8,null,null,null,null,null,null,null,null,null,null,null,null,null,null,null,"sneldrogend",null,null,"Phylon",null,null,null,null,null,null,null,null,"Grey-green","Fur","None",null,"Waterproof zipper",null,null,null,"Fringes",null,null,null,null,null,null,null,null,null,null,null,null,null,null,null,null,null,null,null,null,null,null,null,null,null,null,null,null,null,null,null,null,12.8,null,null,null,null,"Pivot"]
["Kersen","Kokosvezel",null,"Slider",null,"Knoopdetail",null,null,null,null,null,null,null,null,null,null,null,null,null,null,null,null,null,null,null,null,null,null,12.9,null,null,null,null,null,null,null,null,null,null,null,null,null,null,null,"Speedwick",null,null,"Propulsion",null,null,null,null,null,null,null,null,"Honey","Fuzzy","quick-drying",null,"Wind- and waterproof zipper",null,null,null,"Glitter",null,null,null,null,null,null,null,null,null,null,null,null,null,null,null,null,null,null,null,null,null,null,null,null,null,null,null,null,null,null,null,null,12.9,null,null,null,null,"Propulsion"]
["Koloniaal","Koolstofvezel",null,"Snapback",null,"Kraaltjes",null,null,null,null,null,null,null,null,null,null,null,null,null,null,null,null,null,null,null,null,null,null,13,null,null,null,null,null,null,null,null,null,null,null,null,null,null,null,"Storm",null,null,"PWRTRC",null,null,null,null,null,null,null,null,"Ivory","Gemstone","Sculpting",null,"Windproof zipper",null,null,null,"Inner shorts",null,null,null,null,null,null,null,null,null,null,null,null,null,null,null,null,null,null,null,null,null,null,null,null,null,null,null,null,null,null,null,null,13,null,null,null,null,"PWRTRC"]
["Koper","Kunststof",null,"Strapback",null,"Lurex",null,null,null,null,null,null,null,null,null,null,null,null,null,null,null,null,null,null,null,null,null,null,1.3,null,null,null,null,null,null,null,null,null,null,null,null,null,null,null,"vochtregulerend",null,null,"Responsief",null,null,null,null,null,null,null,null,"Khaki","Glass","Speedwick",null,"Zipper",null,null,null,"Jacquard",null,null,null,null,null,null,null,null,null,null,null,null,null,null,null,null,null,null,null,null,null,null,null,null,null,null,null,null,null,null,null,null,1.3,null,null,null,null,"Responsive"]
["Koraalrood","Kurk",null,"Striksluiting",null,"Mesh",null,null,null,null,null,null,null,null,null,null,null,null,null,null,null,null,null,null,null,null,null,null,13.1,null,null,null,null,null,null,null,null,null,null,null,null,null,null,null,"vochtregulerend en sneldrogend",null,null,"Rev-Lite",null,null,null,null,null,null,null,null,"Lavender","Gold","Storm",null,"Zipper + drawstring",null,null,null,"Knitted",null,null,null,null,null,null,null,null,null,null,null,null,null,null,null,null,null,null,null,null,null,null,null,null,null,null,null,null,null,null,null,null,13.1,null,null,null,null,"Rev-Lite"]
["Lavendel","Lak",null,"Trekkoorden",null,"Naadloos",null,null,null,null,null,null,null,null,null,null,null,null,null,null,null,null,null,null,null,null,null,null,13.2,null,null,null,null,null,null,null,null,null,null,null,null,null,null,null,"warmCELL",null,null,"Softfoam",null,null,null,null,null,null,null,null,"Light blue","Graphite","warmCELL",null,"Zipper and button closure",null,null,null,"Knitted (integrated pattern)",null,null,null,null,null,null,null,null,null,null,null,null,null,null,null,null,null,null,null,null,null,null,null,null,null,null,null,null,null,null,null,null,13.2,null,null,null,null,"Softfoam"]
["Lichtblauw","Latex",null,"Veersluiting",null,"Omslagdetail",null,null,null,null,null,null,null,null,null,null,null,null,null,null,null,null,null,null,null,null,null,null,13.3,null,null,null,null,null,null,null,null,null,null,null,null,null,null,null,"warmte isolerend",null,null,"SpEVA 55 lasting",null,null,null,null,null,null,null,null,"Light blue denim","Hemp","warmth insulation",null,"Zipper and hook closure",null,null,null,"Knitted pattern",null,null,null,null,null,null,null,null,null,null,null,null,null,null,null,null,null,null,null,null,null,null,null,null,null,null,null,null,null,null,null,null,13.3,null,null,null,null,"SpEVA 55 lasting"]
["Lichtbruin","Leer",null,"Veiligheidsslot",null,"Open breisel",null,null,null,null,null,null,null,null,null,null,null,null,null,null,null,null,null,null,null,null,null,null,13.4,null,null,null,null,null,null,null,null,null,null,null,null,null,null,null,null,null,null,"Torsion",null,null,null,null,null,null,null,null,"Light brown","Iron",null,null,"Zipper and lace closure",null,null,null,"Lace",null,null,null,null,null,null,null,null,null,null,null,null,null,null,null,null,null,null,null,null,null,null,null,null,null,null,null,null,null,null,null,null,13.4,null,null,null,null,"Torsion"]
["Lichtgeel","Linnen",null,"Veter",null,"Open detail",null,null,null,null,null,null,null,null,null,null,null,null,null,null,null,null,null,null,null,null,null,null,13.5,null,null,null,null,null,null,null,null,null,null,null,null,null,null,null,null,null,null,"Tractie",null,null,null,null,null,null,null,null,"Light green","Jersey",null,null,"Zipper and press stud closure",null,null,null,"Lace-up detail",null,null,null,null,null,null,null,null,null,null,null,null,null,null,null,null,null,null,null,null,null,null,null,null,null,null,null,null,null,null,null,null,13.5,null,null,null,null,"Traction"]
["Lichtgrijs","Lyocell",null,"Veter- met klittenbandsluiting",null,"Open rug",null,null,null,null,null,null,null,null,null,null,null,null,null,null,null,null,null,null,null,null,null,null,13.6,null,null,null,null,null,null,null,null,null,null,null,null,null,null,null,null,null,null,"Trail",null,null,null,null,null,null,null,null,"Light grey","Jog denim",null,null,"Zipper and Velcro closure",null,null,null,"Lurex",null,null,null,null,null,null,null,null,null,null,null,null,null,null,null,null,null,null,null,null,null,null,null,null,null,null,null,null,null,null,null,null,13.6,null,null,null,null,"Trail"]
["Lichtgroen","Maïsbladeren ",null,"Vlindersluiting",null,"Open shoulder",null,null,null,null,null,null,null,null,null,null,null,null,null,null,null,null,null,null,null,null,null,null,13.7,null,null,null,null,null,null,null,null,null,null,null,null,null,null,null,null,null,null,"TRAXION",null,null,null,null,null,null,null,null,"Light khaki","Jute",null,null,"Zipper with wind flap",null,null,null,"Mesh",null,null,null,null,null,null,null,null,null,null,null,null,null,null,null,null,null,null,null,null,null,null,null,null,null,null,null,null,null,null,null,null,13.7,null,null,null,null,"TRAXION"]
["Lichtkaki","Melamine",null,"Vouwsluiting",null,"Oprolfunctie",null,null,null,null,null,null,null,null,null,null,null,null,null,null,null,null,null,null,null,null,null,null,13.8,null,null,null,null,null,null,null,null,null,null,null,null,null,null,null,null,null,null,"Tri-flex",null,null,null,null,null,null,null,null,"Light pink","Kapok",null,null,"Zipper, hook, and button closure",null,null,null,"Off-the-shoulder",null,null,null,null,null,null,null,null,null,null,null,null,null,null,null,null,null,null,null,null,null,null,null,null,null,null,null,null,null,null,null,null,13.8,null,null,null,null,"Tri-flex"]
["Lichtroze","Merinowol",null,null,null,"Overslag detail",null,null,null,null,null,null,null,null,null,null,null,null,null,null,null,null,null,null,null,null,null,null,13.9,null,null,null,null,null,null,null,null,null,null,null,null,null,null,null,null,null,null,"Ultra-lite",null,null,null,null,null,null,null,null,"Light yellow","Lace",null,null,null,null,null,null,"Open back",null,null,null,null,null,null,null,null,null,null,null,null,null,null,null,null,null,null,null,null,null,null,null,null,null,null,null,null,null,null,null,null,13.9,null,null,null,null,"Ultra-lite"]
["Light blue denim","Mesh",null,null,null,"Pailletten",null,null,null,null,null,null,null,null,null,null,null,null,null,null,null,null,null,null,null,null,null,null,14,null,null,null,null,null,null,null,null,null,null,null,null,null,null,null,null,null,null,"Vulcanized",null,null,null,null,null,null,null,null,"Lilac","Latex",null,null,null,null,null,null,"Open detail",null,null,null,null,null,null,null,null,null,null,null,null,null,null,null,null,null,null,null,null,null,null,null,null,null,null,null,null,null,null,null,null,14,null,null,null,null,"Vulcanised"]
["Lila","Messing",null,null,null,"Parels",null,null,null,null,null,null,null,null,null,null,null,null,null,null,null,null,null,null,null,null,null,null,1.4,null,null,null,null,null,null,null,null,null,null,null,null,null,null,null,null,null,null,"Zoom-Air",null,null,null,null,null,null,null,null,"Lime green","Leather",null,null,null,null,null,null,"Open knit",null,null,null,null,null,null,null,null,null,null,null,null,null,null,null,null,null,null,null,null,null,null,null,null,null,null,null,null,null,null,null,null,1.4,null,null,null,null,"Zoom-Air"]
["Limegroen","Metaal",null,null,null,"Patches",null,null,null,null,null,null,null,null,null,null,null,null,null,null,null,null,null,null,null,null,null,null,14.1,null,null,null,null,null,null,null,null,null,null,null,null,null,null,null,null,null,null,null,null,null,null,null,null,null,null,null,"Lye","Linen",null,null,null,null,null,null,"Paint splatter",null,null,null,null,null,null,null,null,null,null,null,null,null,null,null,null,null,null,null,null,null,null,null,null,null,null,null,null,null,null,null,null,14.1]
["Loog","Microleer",null,null,null,"Peeptoe",null,null,null,null,null,null,null,null,null,null,null,null,null,null,null,null,null,null,null,null,null,null,14.2,null,null,null,null,null,null,null,null,null,null,null,null,null,null,null,null,null,null,null,null,null,null,null,null,null,null,null,"Magenta","Lyocell",null,null,null,null,null,null,"Patches",null,null,null,null,null,null,null,null,null,null,null,null,null,null,null,null,null,null,null,null,null,null,null,null,null,null,null,null,null,null,null,null,14.2]
["Magenta","Microvezel",null,null,null,"Peplum",null,null,null,null,null,null,null,null,null,null,null,null,null,null,null,null,null,null,null,null,null,null,14.3,null,null,null,null,null,null,null,null,null,null,null,null,null,null,null,null,null,null,null,null,null,null,null,null,null,null,null,"Mahogany","Merino wool",null,null,null,null,null,null,"Pearls",null,null,null,null,null,null,null,null,null,null,null,null,null,null,null,null,null,null,null,null,null,null,null,null,null,null,null,null,null,null,null,null,14.3]
["Mahonie","Modacryl",null,null,null,"Plissé",null,null,null,null,null,null,null,null,null,null,null,null,null,null,null,null,null,null,null,null,null,null,14.4,null,null,null,null,null,null,null,null,null,null,null,null,null,null,null,null,null,null,null,null,null,null,null,null,null,null,null,"Medium blue denim","Mesh",null,null,null,null,null,null,"Peeptoe",null,null,null,null,null,null,null,null,null,null,null,null,null,null,null,null,null,null,null,null,null,null,null,null,null,null,null,null,null,null,null,null,14.4]
["Marine","Modal",null,null,null,"Plooien",null,null,null,null,null,null,null,null,null,null,null,null,null,null,null,null,null,null,null,null,null,null,14.5,null,null,null,null,null,null,null,null,null,null,null,null,null,null,null,null,null,null,null,null,null,null,null,null,null,null,null,"Mexican","Metal",null,null,null,null,null,null,"Peplum",null,null,null,null,null,null,null,null,null,null,null,null,null,null,null,null,null,null,null,null,null,null,null,null,null,null,null,null,null,null,null,null,14.5]
["Medium blue denim","Molton",null,null,null,"Pompons",null,null,null,null,null,null,null,null,null,null,null,null,null,null,null,null,null,null,null,null,null,null,14.6,null,null,null,null,null,null,null,null,null,null,null,null,null,null,null,null,null,null,null,null,null,null,null,null,null,null,null,"Mint green","Micro leather",null,null,null,null,null,null,"Pleats",null,null,null,null,null,null,null,null,null,null,null,null,null,null,null,null,null,null,null,null,null,null,null,null,null,null,null,null,null,null,null,null,14.6]
["Mexicaans","Mousseline",null,null,null,"Quilted",null,null,null,null,null,null,null,null,null,null,null,null,null,null,null,null,null,null,null,null,null,null,14.7,null,null,null,null,null,null,null,null,null,null,null,null,null,null,null,null,null,null,null,null,null,null,null,null,null,null,null,"Multicolored","Microfiber",null,null,null,null,null,null,"Plissé",null,null,null,null,null,null,null,null,null,null,null,null,null,null,null,null,null,null,null,null,null,null,null,null,null,null,null,null,null,null,null,null,14.7]
["Mintgroen","Natuurlijk materiaal",null,null,null,"Reflecterende details",null,null,null,null,null,null,null,null,null,null,null,null,null,null,null,null,null,null,null,null,null,null,14.8,null,null,null,null,null,null,null,null,null,null,null,null,null,null,null,null,null,null,null,null,null,null,null,null,null,null,null,"Natural","Modacryl",null,null,null,null,null,null,"Pom-poms",null,null,null,null,null,null,null,null,null,null,null,null,null,null,null,null,null,null,null,null,null,null,null,null,null,null,null,null,null,null,null,null,14.8]
["Multi","Nubuck",null,null,null,"Reversible",null,null,null,null,null,null,null,null,null,null,null,null,null,null,null,null,null,null,null,null,null,null,14.9,null,null,null,null,null,null,null,null,null,null,null,null,null,null,null,null,null,null,null,null,null,null,null,null,null,null,null,"Natural pine","Modal",null,null,null,null,null,null,"Quilted",null,null,null,null,null,null,null,null,null,null,null,null,null,null,null,null,null,null,null,null,null,null,null,null,null,null,null,null,null,null,null,null,14.9]
["Naturel","Nylon",null,null,null,"Rib gebreid",null,null,null,null,null,null,null,null,null,null,null,null,null,null,null,null,null,null,null,null,null,null,15,null,null,null,null,null,null,null,null,null,null,null,null,null,null,null,null,null,null,null,null,null,null,null,null,null,null,null,"Navy","Molton",null,null,null,null,null,null,"Reflecting details",null,null,null,null,null,null,null,null,null,null,null,null,null,null,null,null,null,null,null,null,null,null,null,null,null,null,null,null,null,null,null,null,15]
["Nude","Palmbladeren",null,null,null,"Riemlussen",null,null,null,null,null,null,null,null,null,null,null,null,null,null,null,null,null,null,null,null,null,null,1.5,null,null,null,null,null,null,null,null,null,null,null,null,null,null,null,null,null,null,null,null,null,null,null,null,null,null,null,"Nude","Multiplex",null,null,null,null,null,null,"Removable bow tie",null,null,null,null,null,null,null,null,null,null,null,null,null,null,null,null,null,null,null,null,null,null,null,null,null,null,null,null,null,null,null,null,1.5]
["Oker","Papier",null,null,null,"Rijgdetail",null,null,null,null,null,null,null,null,null,null,null,null,null,null,null,null,null,null,null,null,null,null,15.1,null,null,null,null,null,null,null,null,null,null,null,null,null,null,null,null,null,null,null,null,null,null,null,null,null,null,null,"Ochre","Muslin",null,null,null,null,null,null,"Removable faux fur collar",null,null,null,null,null,null,null,null,null,null,null,null,null,null,null,null,null,null,null,null,null,null,null,null,null,null,null,null,null,null,null,null,15.1]
["Olijfgroen","Paraffine",null,null,null,"Ruches",null,null,null,null,null,null,null,null,null,null,null,null,null,null,null,null,null,null,null,null,null,null,15.2,null,null,null,null,null,null,null,null,null,null,null,null,null,null,null,null,null,null,null,null,null,null,null,null,null,null,null,"Old pink","Natural material",null,null,null,null,null,null,"Reversible",null,null,null,null,null,null,null,null,null,null,null,null,null,null,null,null,null,null,null,null,null,null,null,null,null,null,null,null,null,null,null,null,15.2]
["Oranje","Parel",null,null,null,"Schouderdetail",null,null,null,null,null,null,null,null,null,null,null,null,null,null,null,null,null,null,null,null,null,null,15.3,null,null,null,null,null,null,null,null,null,null,null,null,null,null,null,null,null,null,null,null,null,null,null,null,null,null,null,"Olive green","Nubuck",null,null,null,null,null,null,"Rhinestones",null,null,null,null,null,null,null,null,null,null,null,null,null,null,null,null,null,null,null,null,null,null,null,null,null,null,null,null,null,null,null,null,15.3]
["Oudroze","Percaline",null,null,null,"Schoudervulling",null,null,null,null,null,null,null,null,null,null,null,null,null,null,null,null,null,null,null,null,null,null,15.4,null,null,null,null,null,null,null,null,null,null,null,null,null,null,null,null,null,null,null,null,null,null,null,null,null,null,null,"Orange","Nylon",null,null,null,null,null,null,"Ribbed cuffs",null,null,null,null,null,null,null,null,null,null,null,null,null,null,null,null,null,null,null,null,null,null,null,null,null,null,null,null,null,null,null,null,15.4]
["Paars","Perkal (Hotel)",null,null,null,"Seersucker",null,null,null,null,null,null,null,null,null,null,null,null,null,null,null,null,null,null,null,null,null,null,15.5,null,null,null,null,null,null,null,null,null,null,null,null,null,null,null,null,null,null,null,null,null,null,null,null,null,null,null,"Petrol","Palm leaves",null,null,null,null,null,null,"Ribbed knit",null,null,null,null,null,null,null,null,null,null,null,null,null,null,null,null,null,null,null,null,null,null,null,null,null,null,null,null,null,null,null,null,15.5]
["Petrol","PEVA",null,null,null,"Semi-transparant",null,null,null,null,null,null,null,null,null,null,null,null,null,null,null,null,null,null,null,null,null,null,15.6,null,null,null,null,null,null,null,null,null,null,null,null,null,null,null,null,null,null,null,null,null,null,null,null,null,null,null,"Pink","Paper",null,null,null,null,null,null,"Roll-up function",null,null,null,null,null,null,null,null,null,null,null,null,null,null,null,null,null,null,null,null,null,null,null,null,null,null,null,null,null,null,null,null,15.6]
["Rood","Plantvezel",null,null,null,"Sierbandjes",null,null,null,null,null,null,null,null,null,null,null,null,null,null,null,null,null,null,null,null,null,null,15.7,null,null,null,null,null,null,null,null,null,null,null,null,null,null,null,null,null,null,null,null,null,null,null,null,null,null,null,"Purple","Paraffin",null,null,null,null,null,null,"Ruffles",null,null,null,null,null,null,null,null,null,null,null,null,null,null,null,null,null,null,null,null,null,null,null,null,null,null,null,null,null,null,null,null,15.7]
["Roodbruin","Plastic",null,null,null,"Siergesp",null,null,null,null,null,null,null,null,null,null,null,null,null,null,null,null,null,null,null,null,null,null,15.8,null,null,null,null,null,null,null,null,null,null,null,null,null,null,null,null,null,null,null,null,null,null,null,null,null,null,null,"Red","Patent leather",null,null,null,null,null,null,"Scallop edge",null,null,null,null,null,null,null,null,null,null,null,null,null,null,null,null,null,null,null,null,null,null,null,null,null,null,null,null,null,null,null,null,15.8]
["Rosé","Pluche",null,null,null,"Sierknopen",null,null,null,null,null,null,null,null,null,null,null,null,null,null,null,null,null,null,null,null,null,null,15.9,null,null,null,null,null,null,null,null,null,null,null,null,null,null,null,null,null,null,null,null,null,null,null,null,null,null,null,"Reddish brown","Pearl",null,null,null,null,null,null,"Seamless",null,null,null,null,null,null,null,null,null,null,null,null,null,null,null,null,null,null,null,null,null,null,null,null,null,null,null,null,null,null,null,null,15.9]
["Roze","Polyacryl",null,null,null,"Sierrits",null,null,null,null,null,null,null,null,null,null,null,null,null,null,null,null,null,null,null,null,null,null,16,null,null,null,null,null,null,null,null,null,null,null,null,null,null,null,null,null,null,null,null,null,null,null,null,null,null,null,"Rosé","Percale",null,null,null,null,null,null,"Seersucker",null,null,null,null,null,null,null,null,null,null,null,null,null,null,null,null,null,null,null,null,null,null,null,null,null,null,null,null,null,null,null,null,16]
["RVS","Polyamide",null,null,null,"Sierstenen",null,null,null,null,null,null,null,null,null,null,null,null,null,null,null,null,null,null,null,null,null,null,1.6,null,null,null,null,null,null,null,null,null,null,null,null,null,null,null,null,null,null,null,null,null,null,null,null,null,null,null,"Salmon","Percaline",null,null,null,null,null,null,"Semi-transparent",null,null,null,null,null,null,null,null,null,null,null,null,null,null,null,null,null,null,null,null,null,null,null,null,null,null,null,null,null,null,null,null,1.6]
["Staal","Polycarbonaat",null,null,null,"Sierveter",null,null,null,null,null,null,null,null,null,null,null,null,null,null,null,null,null,null,null,null,null,null,16.5,null,null,null,null,null,null,null,null,null,null,null,null,null,null,null,null,null,null,null,null,null,null,null,null,null,null,null,"Sand","PEVA",null,null,null,null,null,null,"Sequins",null,null,null,null,null,null,null,null,null,null,null,null,null,null,null,null,null,null,null,null,null,null,null,null,null,null,null,null,null,null,null,null,16.5]
["Stonewashed","Polyester",null,null,null,"Slijtage",null,null,null,null,null,null,null,null,null,null,null,null,null,null,null,null,null,null,null,null,null,null,17,null,null,null,null,null,null,null,null,null,null,null,null,null,null,null,null,null,null,null,null,null,null,null,null,null,null,null,"Silver","Plastic",null,null,null,null,null,null,"Shiny",null,null,null,null,null,null,null,null,null,null,null,null,null,null,null,null,null,null,null,null,null,null,null,null,null,null,null,null,null,null,null,null,17]
["Taupe","Polyester-katoen",null,null,null,"Smockwerk",null,null,null,null,null,null,null,null,null,null,null,null,null,null,null,null,null,null,null,null,null,null,1.7,null,null,null,null,null,null,null,null,null,null,null,null,null,null,null,null,null,null,null,null,null,null,null,null,null,null,null,"Stainless steel","Plush",null,null,null,null,null,null,"Shoulder detail",null,null,null,null,null,null,null,null,null,null,null,null,null,null,null,null,null,null,null,null,null,null,null,null,null,null,null,null,null,null,null,null,1.7]
["Terra","Polyether",null,null,null,"Split",null,null,null,null,null,null,null,null,null,null,null,null,null,null,null,null,null,null,null,null,null,null,1.8,null,null,null,null,null,null,null,null,null,null,null,null,null,null,null,null,null,null,null,null,null,null,null,null,null,null,null,"Steel","Polyacrylic",null,null,null,null,null,null,"Shoulder padding",null,null,null,null,null,null,null,null,null,null,null,null,null,null,null,null,null,null,null,null,null,null,null,null,null,null,null,null,null,null,null,null,1.8]
["Titanium","Polyethyleen",null,null,null,"Strass steentjes",null,null,null,null,null,null,null,null,null,null,null,null,null,null,null,null,null,null,null,null,null,null,1.9,null,null,null,null,null,null,null,null,null,null,null,null,null,null,null,null,null,null,null,null,null,null,null,null,null,null,null,"Stonewashed","Polyamide",null,null,null,null,null,null,"Smocking",null,null,null,null,null,null,null,null,null,null,null,null,null,null,null,null,null,null,null,null,null,null,null,null,null,null,null,null,null,null,null,null,1.9]
["Transparant","Polyethyleentereftalaat",null,null,null,"Strikje",null,null,null,null,null,null,null,null,null,null,null,null,null,null,null,null,null,null,null,null,null,null,2,null,null,null,null,null,null,null,null,null,null,null,null,null,null,null,null,null,null,null,null,null,null,null,null,null,null,null,"Taupe","Polycarbonate",null,null,null,null,null,null,"Split",null,null,null,null,null,null,null,null,null,null,null,null,null,null,null,null,null,null,null,null,null,null,null,null,null,null,null,null,null,null,null,null,2]
["Turquoise","Polylactide",null,null,null,"Studs",null,null,null,null,null,null,null,null,null,null,null,null,null,null,null,null,null,null,null,null,null,null,2.1,null,null,null,null,null,null,null,null,null,null,null,null,null,null,null,null,null,null,null,null,null,null,null,null,null,null,null,"Terra","Polyester",null,null,null,null,null,null,"Stamped",null,null,null,null,null,null,null,null,null,null,null,null,null,null,null,null,null,null,null,null,null,null,null,null,null,null,null,null,null,null,null,null,2.1]
["Violet","Polyolefins",null,null,null,"Teddy",null,null,null,null,null,null,null,null,null,null,null,null,null,null,null,null,null,null,null,null,null,null,2.2000000000000002,null,null,null,null,null,null,null,null,null,null,null,null,null,null,null,null,null,null,null,null,null,null,null,null,null,null,null,"Titanium","Polyester-cotton",null,null,null,null,null,null,"Studs",null,null,null,null,null,null,null,null,null,null,null,null,null,null,null,null,null,null,null,null,null,null,null,null,null,null,null,null,null,null,null,null,2.2000000000000002]
["Wit","Polypropyleen",null,null,null,"Textuur",null,null,null,null,null,null,null,null,null,null,null,null,null,null,null,null,null,null,null,null,null,null,2.2999999999999998,null,null,null,null,null,null,null,null,null,null,null,null,null,null,null,null,null,null,null,null,null,null,null,null,null,null,null,"Transparent","Polyether",null,null,null,null,null,null,"Teddy",null,null,null,null,null,null,null,null,null,null,null,null,null,null,null,null,null,null,null,null,null,null,null,null,null,null,null,null,null,null,null,null,2.2999999999999998]
["Zalm","Polyresin",null,null,null,"Thermo",null,null,null,null,null,null,null,null,null,null,null,null,null,null,null,null,null,null,null,null,null,null,2.4,null,null,null,null,null,null,null,null,null,null,null,null,null,null,null,null,null,null,null,null,null,null,null,null,null,null,null,"Turquoise","Polyethylene",null,null,null,null,null,null,"Texture",null,null,null,null,null,null,null,null,null,null,null,null,null,null,null,null,null,null,null,null,null,null,null,null,null,null,null,null,null,null,null,null,2.4]
["Zand","Polystone",null,null,null,"Tule",null,null,null,null,null,null,null,null,null,null,null,null,null,null,null,null,null,null,null,null,null,null,2.5,null,null,null,null,null,null,null,null,null,null,null,null,null,null,null,null,null,null,null,null,null,null,null,null,null,null,null,"Violet","Polyethylene terephthalate",null,null,null,null,null,null,"Thermal",null,null,null,null,null,null,null,null,null,null,null,null,null,null,null,null,null,null,null,null,null,null,null,null,null,null,null,null,null,null,null,null,2.5]
["Zilver","Polywood",null,null,null,"Tunnelkoord",null,null,null,null,null,null,null,null,null,null,null,null,null,null,null,null,null,null,null,null,null,null,2.6,null,null,null,null,null,null,null,null,null,null,null,null,null,null,null,null,null,null,null,null,null,null,null,null,null,null,null,"White","Polylactic acid",null,null,null,null,null,null,"Tulle",null,null,null,null,null,null,null,null,null,null,null,null,null,null,null,null,null,null,null,null,null,null,null,null,null,null,null,null,null,null,null,null,2.6]
["Zwart","Propionaat",null,null,null,"Veren",null,null,null,null,null,null,null,null,null,null,null,null,null,null,null,null,null,null,null,null,null,null,2.7,null,null,null,null,null,null,null,null,null,null,null,null,null,null,null,null,null,null,null,null,null,null,null,null,null,null,null,"Yellow","Polyolefins",null,null,null,null,null,null,"Wear and tear",null,null,null,null,null,null,null,null,null,null,null,null,null,null,null,null,null,null,null,null,null,null,null,null,null,null,null,null,null,null,null,null,2.7]
[null,"Raffia",null,null,null,"Verfspatten",null,null,null,null,null,null,null,null,null,null,null,null,null,null,null,null,null,null,null,null,null,null,2.8,null,null,null,null,null,null,null,null,null,null,null,null,null,null,null,null,null,null,null,null,null,null,null,null,null,null,null,null,"Polypropylene",null,null,null,null,null,null,"Wide sleeves",null,null,null,null,null,null,null,null,null,null,null,null,null,null,null,null,null,null,null,null,null,null,null,null,null,null,null,null,null,null,null,null,2.8]
[null,"Ramie",null,null,null,"Verstelbare bandjes",null,null,null,null,null,null,null,null,null,null,null,null,null,null,null,null,null,null,null,null,null,null,2.9,null,null,null,null,null,null,null,null,null,null,null,null,null,null,null,null,null,null,null,null,null,null,null,null,null,null,null,null,"Polyresin",null,null,null,null,null,null,"Woven",null,null,null,null,null,null,null,null,null,null,null,null,null,null,null,null,null,null,null,null,null,null,null,null,null,null,null,null,null,null,null,null,2.9]
[null,"Rayon",null,null,null,"Vlinderstrikje",null,null,null,null,null,null,null,null,null,null,null,null,null,null,null,null,null,null,null,null,null,null,3,null,null,null,null,null,null,null,null,null,null,null,null,null,null,null,null,null,null,null,null,null,null,null,null,null,null,null,null,"Polystone",null,null,null,null,null,null,"Wrap detail",null,null,null,null,null,null,null,null,null,null,null,null,null,null,null,null,null,null,null,null,null,null,null,null,null,null,null,null,null,null,null,null,3]
[null,"Riet",null,null,null,"Volant",null,null,null,null,null,null,null,null,null,null,null,null,null,null,null,null,null,null,null,null,null,null,3.1,null,null,null,null,null,null,null,null,null,null,null,null,null,null,null,null,null,null,null,null,null,null,null,null,null,null,null,null,"Polywood",null,null,null,null,null,null,null,null,null,null,null,null,null,null,null,null,null,null,null,null,null,null,null,null,null,null,null,null,null,null,null,null,null,null,null,null,null,null,null,3.1]
[null,"Rotan",null,null,null,"Wijde mouwen",null,null,null,null,null,null,null,null,null,null,null,null,null,null,null,null,null,null,null,null,null,null,3.2,null,null,null,null,null,null,null,null,null,null,null,null,null,null,null,null,null,null,null,null,null,null,null,null,null,null,null,null,"Propionate",null,null,null,null,null,null,null,null,null,null,null,null,null,null,null,null,null,null,null,null,null,null,null,null,null,null,null,null,null,null,null,null,null,null,null,null,null,null,null,3.2]
[null,"Rubber",null,null,null,"Wijde mouwen",null,null,null,null,null,null,null,null,null,null,null,null,null,null,null,null,null,null,null,null,null,null,3.3,null,null,null,null,null,null,null,null,null,null,null,null,null,null,null,null,null,null,null,null,null,null,null,null,null,null,null,null,"Quilted",null,null,null,null,null,null,null,null,null,null,null,null,null,null,null,null,null,null,null,null,null,null,null,null,null,null,null,null,null,null,null,null,null,null,null,null,null,null,null,3.3]
[null,"RVS",null,null,null,null,null,null,null,null,null,null,null,null,null,null,null,null,null,null,null,null,null,null,null,null,null,null,3.4,null,null,null,null,null,null,null,null,null,null,null,null,null,null,null,null,null,null,null,null,null,null,null,null,null,null,null,null,"Raffia",null,null,null,null,null,null,null,null,null,null,null,null,null,null,null,null,null,null,null,null,null,null,null,null,null,null,null,null,null,null,null,null,null,null,null,null,null,null,null,3.4]
[null,"Satijn",null,null,null,null,null,null,null,null,null,null,null,null,null,null,null,null,null,null,null,null,null,null,null,null,null,null,3.5,null,null,null,null,null,null,null,null,null,null,null,null,null,null,null,null,null,null,null,null,null,null,null,null,null,null,null,null,"Ramie",null,null,null,null,null,null,null,null,null,null,null,null,null,null,null,null,null,null,null,null,null,null,null,null,null,null,null,null,null,null,null,null,null,null,null,null,null,null,null,3.5]
[null,"Satijn-katoen bamboe",null,null,null,null,null,null,null,null,null,null,null,null,null,null,null,null,null,null,null,null,null,null,null,null,null,null,3.6,null,null,null,null,null,null,null,null,null,null,null,null,null,null,null,null,null,null,null,null,null,null,null,null,null,null,null,null,"Rattan",null,null,null,null,null,null,null,null,null,null,null,null,null,null,null,null,null,null,null,null,null,null,null,null,null,null,null,null,null,null,null,null,null,null,null,null,null,null,null,3.6]
[null,"Schuim",null,null,null,null,null,null,null,null,null,null,null,null,null,null,null,null,null,null,null,null,null,null,null,null,null,null,3.7,null,null,null,null,null,null,null,null,null,null,null,null,null,null,null,null,null,null,null,null,null,null,null,null,null,null,null,null,"Rayon",null,null,null,null,null,null,null,null,null,null,null,null,null,null,null,null,null,null,null,null,null,null,null,null,null,null,null,null,null,null,null,null,null,null,null,null,null,null,null,3.7]
[null,"Siliconen",null,null,null,null,null,null,null,null,null,null,null,null,null,null,null,null,null,null,null,null,null,null,null,null,null,null,3.8,null,null,null,null,null,null,null,null,null,null,null,null,null,null,null,null,null,null,null,null,null,null,null,null,null,null,null,null,"Reed",null,null,null,null,null,null,null,null,null,null,null,null,null,null,null,null,null,null,null,null,null,null,null,null,null,null,null,null,null,null,null,null,null,null,null,null,null,null,null,3.8]
[null,"Softshell",null,null,null,null,null,null,null,null,null,null,null,null,null,null,null,null,null,null,null,null,null,null,null,null,null,null,3.9,null,null,null,null,null,null,null,null,null,null,null,null,null,null,null,null,null,null,null,null,null,null,null,null,null,null,null,null,"Resin",null,null,null,null,null,null,null,null,null,null,null,null,null,null,null,null,null,null,null,null,null,null,null,null,null,null,null,null,null,null,null,null,null,null,null,null,null,null,null,3.9]
[null,"Spaanplaat",null,null,null,null,null,null,null,null,null,null,null,null,null,null,null,null,null,null,null,null,null,null,null,null,null,null,4,null,null,null,null,null,null,null,null,null,null,null,null,null,null,null,null,null,null,null,null,null,null,null,null,null,null,null,null,"Rope",null,null,null,null,null,null,null,null,null,null,null,null,null,null,null,null,null,null,null,null,null,null,null,null,null,null,null,null,null,null,null,null,null,null,null,null,null,null,null,4]
[null,"Spatwaterdicht",null,null,null,null,null,null,null,null,null,null,null,null,null,null,null,null,null,null,null,null,null,null,null,null,null,null,4.0999999999999996,null,null,null,null,null,null,null,null,null,null,null,null,null,null,null,null,null,null,null,null,null,null,null,null,null,null,null,null,"Rubber",null,null,null,null,null,null,null,null,null,null,null,null,null,null,null,null,null,null,null,null,null,null,null,null,null,null,null,null,null,null,null,null,null,null,null,null,null,null,null,4.0999999999999996]
[null,"Staal",null,null,null,null,null,null,null,null,null,null,null,null,null,null,null,null,null,null,null,null,null,null,null,null,null,null,4.2,null,null,null,null,null,null,null,null,null,null,null,null,null,null,null,null,null,null,null,null,null,null,null,null,null,null,null,null,"Satin",null,null,null,null,null,null,null,null,null,null,null,null,null,null,null,null,null,null,null,null,null,null,null,null,null,null,null,null,null,null,null,null,null,null,null,null,null,null,null,4.2]
[null,"Staal/leer",null,null,null,null,null,null,null,null,null,null,null,null,null,null,null,null,null,null,null,null,null,null,null,null,null,null,4.3,null,null,null,null,null,null,null,null,null,null,null,null,null,null,null,null,null,null,null,null,null,null,null,null,null,null,null,null,"Satin-cotton bamboo",null,null,null,null,null,null,null,null,null,null,null,null,null,null,null,null,null,null,null,null,null,null,null,null,null,null,null,null,null,null,null,null,null,null,null,null,null,null,null,4.3]
[null,"Steen",null,null,null,null,null,null,null,null,null,null,null,null,null,null,null,null,null,null,null,null,null,null,null,null,null,null,4.4000000000000004,null,null,null,null,null,null,null,null,null,null,null,null,null,null,null,null,null,null,null,null,null,null,null,null,null,null,null,null,"Sea grass",null,null,null,null,null,null,null,null,null,null,null,null,null,null,null,null,null,null,null,null,null,null,null,null,null,null,null,null,null,null,null,null,null,null,null,null,null,null,null,4.4000000000000004]
[null,"Sterling zilver",null,null,null,null,null,null,null,null,null,null,null,null,null,null,null,null,null,null,null,null,null,null,null,null,null,null,4.5,null,null,null,null,null,null,null,null,null,null,null,null,null,null,null,null,null,null,null,null,null,null,null,null,null,null,null,null,"Semi-precious stone",null,null,null,null,null,null,null,null,null,null,null,null,null,null,null,null,null,null,null,null,null,null,null,null,null,null,null,null,null,null,null,null,null,null,null,null,null,null,null,4.5]
[null,"Stof",null,null,null,null,null,null,null,null,null,null,null,null,null,null,null,null,null,null,null,null,null,null,null,null,null,null,4.5999999999999996,null,null,null,null,null,null,null,null,null,null,null,null,null,null,null,null,null,null,null,null,null,null,null,null,null,null,null,null,"Silicon",null,null,null,null,null,null,null,null,null,null,null,null,null,null,null,null,null,null,null,null,null,null,null,null,null,null,null,null,null,null,null,null,null,null,null,null,null,null,null,4.5999999999999996]
[null,"Stonewashed",null,null,null,null,null,null,null,null,null,null,null,null,null,null,null,null,null,null,null,null,null,null,null,null,null,null,4.7,null,null,null,null,null,null,null,null,null,null,null,null,null,null,null,null,null,null,null,null,null,null,null,null,null,null,null,null,"Silk",null,null,null,null,null,null,null,null,null,null,null,null,null,null,null,null,null,null,null,null,null,null,null,null,null,null,null,null,null,null,null,null,null,null,null,null,null,null,null,4.7]
[null,"Stretchdenim",null,null,null,null,null,null,null,null,null,null,null,null,null,null,null,null,null,null,null,null,null,null,null,null,null,null,4.8,null,null,null,null,null,null,null,null,null,null,null,null,null,null,null,null,null,null,null,null,null,null,null,null,null,null,null,null,"Silver",null,null,null,null,null,null,null,null,null,null,null,null,null,null,null,null,null,null,null,null,null,null,null,null,null,null,null,null,null,null,null,null,null,null,null,null,null,null,null,4.8]
[null,"Stretchkatoen",null,null,null,null,null,null,null,null,null,null,null,null,null,null,null,null,null,null,null,null,null,null,null,null,null,null,4.9000000000000004,null,null,null,null,null,null,null,null,null,null,null,null,null,null,null,null,null,null,null,null,null,null,null,null,null,null,null,null,"Sisal",null,null,null,null,null,null,null,null,null,null,null,null,null,null,null,null,null,null,null,null,null,null,null,null,null,null,null,null,null,null,null,null,null,null,null,null,null,null,null,4.9000000000000004]
[null,"Suede",null,null,null,null,null,null,null,null,null,null,null,null,null,null,null,null,null,null,null,null,null,null,null,null,null,null,5,null,null,null,null,null,null,null,null,null,null,null,null,null,null,null,null,null,null,null,null,null,null,null,null,null,null,null,null,"Softshell",null,null,null,null,null,null,null,null,null,null,null,null,null,null,null,null,null,null,null,null,null,null,null,null,null,null,null,null,null,null,null,null,null,null,null,null,null,null,null,5]
[null,"Swarovski kristal",null,null,null,null,null,null,null,null,null,null,null,null,null,null,null,null,null,null,null,null,null,null,null,null,null,null,5.0999999999999996,null,null,null,null,null,null,null,null,null,null,null,null,null,null,null,null,null,null,null,null,null,null,null,null,null,null,null,null,"Stainless steel",null,null,null,null,null,null,null,null,null,null,null,null,null,null,null,null,null,null,null,null,null,null,null,null,null,null,null,null,null,null,null,null,null,null,null,null,null,null,null,5.0999999999999996]
[null,"Sweat",null,null,null,null,null,null,null,null,null,null,null,null,null,null,null,null,null,null,null,null,null,null,null,null,null,null,5.2,null,null,null,null,null,null,null,null,null,null,null,null,null,null,null,null,null,null,null,null,null,null,null,null,null,null,null,null,"Steel",null,null,null,null,null,null,null,null,null,null,null,null,null,null,null,null,null,null,null,null,null,null,null,null,null,null,null,null,null,null,null,null,null,null,null,null,null,null,null,5.2]
[null,"Synthetisch",null,null,null,null,null,null,null,null,null,null,null,null,null,null,null,null,null,null,null,null,null,null,null,null,null,null,5.3,null,null,null,null,null,null,null,null,null,null,null,null,null,null,null,null,null,null,null,null,null,null,null,null,null,null,null,null,"Steel/leather",null,null,null,null,null,null,null,null,null,null,null,null,null,null,null,null,null,null,null,null,null,null,null,null,null,null,null,null,null,null,null,null,null,null,null,null,null,null,null,5.3]
[null,"Teddy",null,null,null,null,null,null,null,null,null,null,null,null,null,null,null,null,null,null,null,null,null,null,null,null,null,null,5.4,null,null,null,null,null,null,null,null,null,null,null,null,null,null,null,null,null,null,null,null,null,null,null,null,null,null,null,null,"Sterling silver",null,null,null,null,null,null,null,null,null,null,null,null,null,null,null,null,null,null,null,null,null,null,null,null,null,null,null,null,null,null,null,null,null,null,null,null,null,null,null,5.4]
[null,"Tencel",null,null,null,null,null,null,null,null,null,null,null,null,null,null,null,null,null,null,null,null,null,null,null,null,null,null,5.5,null,null,null,null,null,null,null,null,null,null,null,null,null,null,null,null,null,null,null,null,null,null,null,null,null,null,null,null,"Stone",null,null,null,null,null,null,null,null,null,null,null,null,null,null,null,null,null,null,null,null,null,null,null,null,null,null,null,null,null,null,null,null,null,null,null,null,null,null,null,5.5]
[null,"Texapore",null,null,null,null,null,null,null,null,null,null,null,null,null,null,null,null,null,null,null,null,null,null,null,null,null,null,5.6,null,null,null,null,null,null,null,null,null,null,null,null,null,null,null,null,null,null,null,null,null,null,null,null,null,null,null,null,"Stonewashed",null,null,null,null,null,null,null,null,null,null,null,null,null,null,null,null,null,null,null,null,null,null,null,null,null,null,null,null,null,null,null,null,null,null,null,null,null,null,null,5.6]
[null,"Textiel",null,null,null,null,null,null,null,null,null,null,null,null,null,null,null,null,null,null,null,null,null,null,null,null,null,null,5.7,null,null,null,null,null,null,null,null,null,null,null,null,null,null,null,null,null,null,null,null,null,null,null,null,null,null,null,null,"Straw",null,null,null,null,null,null,null,null,null,null,null,null,null,null,null,null,null,null,null,null,null,null,null,null,null,null,null,null,null,null,null,null,null,null,null,null,null,null,null,5.7]
[null,"Textileen",null,null,null,null,null,null,null,null,null,null,null,null,null,null,null,null,null,null,null,null,null,null,null,null,null,null,5.8,null,null,null,null,null,null,null,null,null,null,null,null,null,null,null,null,null,null,null,null,null,null,null,null,null,null,null,null,"Stretch cotton",null,null,null,null,null,null,null,null,null,null,null,null,null,null,null,null,null,null,null,null,null,null,null,null,null,null,null,null,null,null,null,null,null,null,null,null,null,null,null,5.8]
[null,"Touw",null,null,null,null,null,null,null,null,null,null,null,null,null,null,null,null,null,null,null,null,null,null,null,null,null,null,5.9,null,null,null,null,null,null,null,null,null,null,null,null,null,null,null,null,null,null,null,null,null,null,null,null,null,null,null,null,"Stretch denim",null,null,null,null,null,null,null,null,null,null,null,null,null,null,null,null,null,null,null,null,null,null,null,null,null,null,null,null,null,null,null,null,null,null,null,null,null,null,null,5.9]
[null,"TPE/Thermoplastisch elastomeer",null,null,null,null,null,null,null,null,null,null,null,null,null,null,null,null,null,null,null,null,null,null,null,null,null,null,6,null,null,null,null,null,null,null,null,null,null,null,null,null,null,null,null,null,null,null,null,null,null,null,null,null,null,null,null,"Suede",null,null,null,null,null,null,null,null,null,null,null,null,null,null,null,null,null,null,null,null,null,null,null,null,null,null,null,null,null,null,null,null,null,null,null,null,null,null,null,6]
[null,"TPR/Thermoplastisch Rubber",null,null,null,null,null,null,null,null,null,null,null,null,null,null,null,null,null,null,null,null,null,null,null,null,null,null,6.1,null,null,null,null,null,null,null,null,null,null,null,null,null,null,null,null,null,null,null,null,null,null,null,null,null,null,null,null,"Swarovski crystal",null,null,null,null,null,null,null,null,null,null,null,null,null,null,null,null,null,null,null,null,null,null,null,null,null,null,null,null,null,null,null,null,null,null,null,null,null,null,null,6.1]
[null,"TPU",null,null,null,null,null,null,null,null,null,null,null,null,null,null,null,null,null,null,null,null,null,null,null,null,null,null,6.2,null,null,null,null,null,null,null,null,null,null,null,null,null,null,null,null,null,null,null,null,null,null,null,null,null,null,null,null,"Sweat",null,null,null,null,null,null,null,null,null,null,null,null,null,null,null,null,null,null,null,null,null,null,null,null,null,null,null,null,null,null,null,null,null,null,null,null,null,null,null,6.2]
[null,"Travelstof",null,null,null,null,null,null,null,null,null,null,null,null,null,null,null,null,null,null,null,null,null,null,null,null,null,null,6.3,null,null,null,null,null,null,null,null,null,null,null,null,null,null,null,null,null,null,null,null,null,null,null,null,null,null,null,null,"Synthetic",null,null,null,null,null,null,null,null,null,null,null,null,null,null,null,null,null,null,null,null,null,null,null,null,null,null,null,null,null,null,null,null,null,null,null,null,null,null,null,6.3]
[null,"Tweed",null,null,null,null,null,null,null,null,null,null,null,null,null,null,null,null,null,null,null,null,null,null,null,null,null,null,6.4,null,null,null,null,null,null,null,null,null,null,null,null,null,null,null,null,null,null,null,null,null,null,null,null,null,null,null,null,"Teddy",null,null,null,null,null,null,null,null,null,null,null,null,null,null,null,null,null,null,null,null,null,null,null,null,null,null,null,null,null,null,null,null,null,null,null,null,null,null,null,6.4]
[null,"Vacht",null,null,null,null,null,null,null,null,null,null,null,null,null,null,null,null,null,null,null,null,null,null,null,null,null,null,6.5,null,null,null,null,null,null,null,null,null,null,null,null,null,null,null,null,null,null,null,null,null,null,null,null,null,null,null,null,"Tencel",null,null,null,null,null,null,null,null,null,null,null,null,null,null,null,null,null,null,null,null,null,null,null,null,null,null,null,null,null,null,null,null,null,null,null,null,null,null,null,6.5]
[null,"Vegan leather",null,null,null,null,null,null,null,null,null,null,null,null,null,null,null,null,null,null,null,null,null,null,null,null,null,null,6.6,null,null,null,null,null,null,null,null,null,null,null,null,null,null,null,null,null,null,null,null,null,null,null,null,null,null,null,null,"Terrazzo",null,null,null,null,null,null,null,null,null,null,null,null,null,null,null,null,null,null,null,null,null,null,null,null,null,null,null,null,null,null,null,null,null,null,null,null,null,null,null,6.6]
[null,"Velours",null,null,null,null,null,null,null,null,null,null,null,null,null,null,null,null,null,null,null,null,null,null,null,null,null,null,6.7,null,null,null,null,null,null,null,null,null,null,null,null,null,null,null,null,null,null,null,null,null,null,null,null,null,null,null,null,"Terry cloth",null,null,null,null,null,null,null,null,null,null,null,null,null,null,null,null,null,null,null,null,null,null,null,null,null,null,null,null,null,null,null,null,null,null,null,null,null,null,null,6.7]
[null,"Vilt",null,null,null,null,null,null,null,null,null,null,null,null,null,null,null,null,null,null,null,null,null,null,null,null,null,null,6.8,null,null,null,null,null,null,null,null,null,null,null,null,null,null,null,null,null,null,null,null,null,null,null,null,null,null,null,null,"Texapore",null,null,null,null,null,null,null,null,null,null,null,null,null,null,null,null,null,null,null,null,null,null,null,null,null,null,null,null,null,null,null,null,null,null,null,null,null,null,null,6.8]
[null,"Vinyl",null,null,null,null,null,null,null,null,null,null,null,null,null,null,null,null,null,null,null,null,null,null,null,null,null,null,6.9,null,null,null,null,null,null,null,null,null,null,null,null,null,null,null,null,null,null,null,null,null,null,null,null,null,null,null,null,"Textile",null,null,null,null,null,null,null,null,null,null,null,null,null,null,null,null,null,null,null,null,null,null,null,null,null,null,null,null,null,null,null,null,null,null,null,null,null,null,null,6.9]
[null,"Viscose",null,null,null,null,null,null,null,null,null,null,null,null,null,null,null,null,null,null,null,null,null,null,null,null,null,null,7,null,null,null,null,null,null,null,null,null,null,null,null,null,null,null,null,null,null,null,null,null,null,null,null,null,null,null,null,"Textilene",null,null,null,null,null,null,null,null,null,null,null,null,null,null,null,null,null,null,null,null,null,null,null,null,null,null,null,null,null,null,null,null,null,null,null,null,null,null,null,7]
[null,"Waterdicht",null,null,null,null,null,null,null,null,null,null,null,null,null,null,null,null,null,null,null,null,null,null,null,null,null,null,7.1,null,null,null,null,null,null,null,null,null,null,null,null,null,null,null,null,null,null,null,null,null,null,null,null,null,null,null,null,"Tin",null,null,null,null,null,null,null,null,null,null,null,null,null,null,null,null,null,null,null,null,null,null,null,null,null,null,null,null,null,null,null,null,null,null,null,null,null,null,null,7.1]
[null,"Waterhyacint",null,null,null,null,null,null,null,null,null,null,null,null,null,null,null,null,null,null,null,null,null,null,null,null,null,null,7.2,null,null,null,null,null,null,null,null,null,null,null,null,null,null,null,null,null,null,null,null,null,null,null,null,null,null,null,null,"Titanium",null,null,null,null,null,null,null,null,null,null,null,null,null,null,null,null,null,null,null,null,null,null,null,null,null,null,null,null,null,null,null,null,null,null,null,null,null,null,null,7.2]
[null,"Wax",null,null,null,null,null,null,null,null,null,null,null,null,null,null,null,null,null,null,null,null,null,null,null,null,null,null,7.3,null,null,null,null,null,null,null,null,null,null,null,null,null,null,null,null,null,null,null,null,null,null,null,null,null,null,null,null,"TPE/Thermoplastic elastomer",null,null,null,null,null,null,null,null,null,null,null,null,null,null,null,null,null,null,null,null,null,null,null,null,null,null,null,null,null,null,null,null,null,null,null,null,null,null,null,7.3]
[null,"Wol",null,null,null,null,null,null,null,null,null,null,null,null,null,null,null,null,null,null,null,null,null,null,null,null,null,null,7.4,null,null,null,null,null,null,null,null,null,null,null,null,null,null,null,null,null,null,null,null,null,null,null,null,null,null,null,null,"TPR/Thermoplastic rubber",null,null,null,null,null,null,null,null,null,null,null,null,null,null,null,null,null,null,null,null,null,null,null,null,null,null,null,null,null,null,null,null,null,null,null,null,null,null,null,7.4]
[null,"Zeegras",null,null,null,null,null,null,null,null,null,null,null,null,null,null,null,null,null,null,null,null,null,null,null,null,null,null,7.5,null,null,null,null,null,null,null,null,null,null,null,null,null,null,null,null,null,null,null,null,null,null,null,null,null,null,null,null,"TPU",null,null,null,null,null,null,null,null,null,null,null,null,null,null,null,null,null,null,null,null,null,null,null,null,null,null,null,null,null,null,null,null,null,null,null,null,null,null,null,7.5]
[null,"Zijde",null,null,null,null,null,null,null,null,null,null,null,null,null,null,null,null,null,null,null,null,null,null,null,null,null,null,7.6,null,null,null,null,null,null,null,null,null,null,null,null,null,null,null,null,null,null,null,null,null,null,null,null,null,null,null,null,"Travel fabric",null,null,null,null,null,null,null,null,null,null,null,null,null,null,null,null,null,null,null,null,null,null,null,null,null,null,null,null,null,null,null,null,null,null,null,null,null,null,null,7.6]
[null,"Zilver",null,null,null,null,null,null,null,null,null,null,null,null,null,null,null,null,null,null,null,null,null,null,null,null,null,null,7.7,null,null,null,null,null,null,null,null,null,null,null,null,null,null,null,null,null,null,null,null,null,null,null,null,null,null,null,null,"Tritan",null,null,null,null,null,null,null,null,null,null,null,null,null,null,null,null,null,null,null,null,null,null,null,null,null,null,null,null,null,null,null,null,null,null,null,null,null,null,null,7.7]
[null,"Zink",null,null,null,null,null,null,null,null,null,null,null,null,null,null,null,null,null,null,null,null,null,null,null,null,null,null,7.8,null,null,null,null,null,null,null,null,null,null,null,null,null,null,null,null,null,null,null,null,null,null,null,null,null,null,null,null,"Tweed",null,null,null,null,null,null,null,null,null,null,null,null,null,null,null,null,null,null,null,null,null,null,null,null,null,null,null,null,null,null,null,null,null,null,null,null,null,null,null,7.8]
[null,null,null,null,null,null,null,null,null,null,null,null,null,null,null,null,null,null,null,null,null,null,null,null,null,null,null,null,7.9,null,null,null,null,null,null,null,null,null,null,null,null,null,null,null,null,null,null,null,null,null,null,null,null,null,null,null,null,"Vegan leather",null,null,null,null,null,null,null,null,null,null,null,null,null,null,null,null,null,null,null,null,null,null,null,null,null,null,null,null,null,null,null,null,null,null,null,null,null,null,null,7.9]
[null,null,null,null,null,null,null,null,null,null,null,null,null,null,null,null,null,null,null,null,null,null,null,null,null,null,null,null,8,null,null,null,null,null,null,null,null,null,null,null,null,null,null,null,null,null,null,null,null,null,null,null,null,null,null,null,null,"Velours",null,null,null,null,null,null,null,null,null,null,null,null,null,null,null,null,null,null,null,null,null,null,null,null,null,null,null,null,null,null,null,null,null,null,null,null,null,null,null,8]
[null,null,null,null,null,null,null,null,null,null,null,null,null,null,null,null,null,null,null,null,null,null,null,null,null,null,null,null,8.1,null,null,null,null,null,null,null,null,null,null,null,null,null,null,null,null,null,null,null,null,null,null,null,null,null,null,null,null,"Velvet",null,null,null,null,null,null,null,null,null,null,null,null,null,null,null,null,null,null,null,null,null,null,null,null,null,null,null,null,null,null,null,null,null,null,null,null,null,null,null,8.1]
[null,null,null,null,null,null,null,null,null,null,null,null,null,null,null,null,null,null,null,null,null,null,null,null,null,null,null,null,8.1999999999999993,null,null,null,null,null,null,null,null,null,null,null,null,null,null,null,null,null,null,null,null,null,null,null,null,null,null,null,null,"Veneer",null,null,null,null,null,null,null,null,null,null,null,null,null,null,null,null,null,null,null,null,null,null,null,null,null,null,null,null,null,null,null,null,null,null,null,null,null,null,null,8.1999999999999993]
[null,null,null,null,null,null,null,null,null,null,null,null,null,null,null,null,null,null,null,null,null,null,null,null,null,null,null,null,8.3000000000000007,null,null,null,null,null,null,null,null,null,null,null,null,null,null,null,null,null,null,null,null,null,null,null,null,null,null,null,null,"Vinyl",null,null,null,null,null,null,null,null,null,null,null,null,null,null,null,null,null,null,null,null,null,null,null,null,null,null,null,null,null,null,null,null,null,null,null,null,null,null,null,8.3000000000000007]
[null,null,null,null,null,null,null,null,null,null,null,null,null,null,null,null,null,null,null,null,null,null,null,null,null,null,null,null,8.4,null,null,null,null,null,null,null,null,null,null,null,null,null,null,null,null,null,null,null,null,null,null,null,null,null,null,null,null,"Viscose",null,null,null,null,null,null,null,null,null,null,null,null,null,null,null,null,null,null,null,null,null,null,null,null,null,null,null,null,null,null,null,null,null,null,null,null,null,null,null,8.4]
[null,null,null,null,null,null,null,null,null,null,null,null,null,null,null,null,null,null,null,null,null,null,null,null,null,null,null,null,8.5,null,null,null,null,null,null,null,null,null,null,null,null,null,null,null,null,null,null,null,null,null,null,null,null,null,null,null,null,"Washed cotton",null,null,null,null,null,null,null,null,null,null,null,null,null,null,null,null,null,null,null,null,null,null,null,null,null,null,null,null,null,null,null,null,null,null,null,null,null,null,null,8.5]
[null,null,null,null,null,null,null,null,null,null,null,null,null,null,null,null,null,null,null,null,null,null,null,null,null,null,null,null,8.6,null,null,null,null,null,null,null,null,null,null,null,null,null,null,null,null,null,null,null,null,null,null,null,null,null,null,null,null,"Waterproof",null,null,null,null,null,null,null,null,null,null,null,null,null,null,null,null,null,null,null,null,null,null,null,null,null,null,null,null,null,null,null,null,null,null,null,null,null,null,null,8.6]
[null,null,null,null,null,null,null,null,null,null,null,null,null,null,null,null,null,null,null,null,null,null,null,null,null,null,null,null,8.6999999999999993,null,null,null,null,null,null,null,null,null,null,null,null,null,null,null,null,null,null,null,null,null,null,null,null,null,null,null,null,"Water-resistant",null,null,null,null,null,null,null,null,null,null,null,null,null,null,null,null,null,null,null,null,null,null,null,null,null,null,null,null,null,null,null,null,null,null,null,null,null,null,null,8.6999999999999993]
[null,null,null,null,null,null,null,null,null,null,null,null,null,null,null,null,null,null,null,null,null,null,null,null,null,null,null,null,8.8000000000000007,null,null,null,null,null,null,null,null,null,null,null,null,null,null,null,null,null,null,null,null,null,null,null,null,null,null,null,null,"Wax",null,null,null,null,null,null,null,null,null,null,null,null,null,null,null,null,null,null,null,null,null,null,null,null,null,null,null,null,null,null,null,null,null,null,null,null,null,null,null,8.8000000000000007]
[null,null,null,null,null,null,null,null,null,null,null,null,null,null,null,null,null,null,null,null,null,null,null,null,null,null,null,null,8.9,null,null,null,null,null,null,null,null,null,null,null,null,null,null,null,null,null,null,null,null,null,null,null,null,null,null,null,null,"Wicker",null,null,null,null,null,null,null,null,null,null,null,null,null,null,null,null,null,null,null,null,null,null,null,null,null,null,null,null,null,null,null,null,null,null,null,null,null,null,null,8.9]
[null,null,null,null,null,null,null,null,null,null,null,null,null,null,null,null,null,null,null,null,null,null,null,null,null,null,null,null,9,null,null,null,null,null,null,null,null,null,null,null,null,null,null,null,null,null,null,null,null,null,null,null,null,null,null,null,null,"Wood",null,null,null,null,null,null,null,null,null,null,null,null,null,null,null,null,null,null,null,null,null,null,null,null,null,null,null,null,null,null,null,null,null,null,null,null,null,null,null,9]
[null,null,null,null,null,null,null,null,null,null,null,null,null,null,null,null,null,null,null,null,null,null,null,null,null,null,null,null,9.1,null,null,null,null,null,null,null,null,null,null,null,null,null,null,null,null,null,null,null,null,null,null,null,null,null,null,null,null,"Wool",null,null,null,null,null,null,null,null,null,null,null,null,null,null,null,null,null,null,null,null,null,null,null,null,null,null,null,null,null,null,null,null,null,null,null,null,null,null,null,9.1]
[null,null,null,null,null,null,null,null,null,null,null,null,null,null,null,null,null,null,null,null,null,null,null,null,null,null,null,null,9.1999999999999993,null,null,null,null,null,null,null,null,null,null,null,null,null,null,null,null,null,null,null,null,null,null,null,null,null,null,null,null,"Zinc",null,null,null,null,null,null,null,null,null,null,null,null,null,null,null,null,null,null,null,null,null,null,null,null,null,null,null,null,null,null,null,null,null,null,null,null,null,null,null,9.1999999999999993]
[null,null,null,null,null,null,null,null,null,null,null,null,null,null,null,null,null,null,null,null,null,null,null,null,null,null,null,null,9.3000000000000007,null,null,null,null,null,null,null,null,null,null,null,null,null,null,null,null,null,null,null,null,null,null,null,null,null,null,null,null,"Zirconia",null,null,null,null,null,null,null,null,null,null,null,null,null,null,null,null,null,null,null,null,null,null,null,null,null,null,null,null,null,null,null,null,null,null,null,null,null,null,null,9.3000000000000007]
[null,null,null,null,null,null,null,null,null,null,null,null,null,null,null,null,null,null,null,null,null,null,null,null,null,null,null,null,9.4,null,null,null,null,null,null,null,null,null,null,null,null,null,null,null,null,null,null,null,null,null,null,null,null,null,null,null,null,null,null,null,null,null,null,null,null,null,null,null,null,null,null,null,null,null,null,null,null,null,null,null,null,null,null,null,null,null,null,null,null,null,null,null,null,null,null,null,null,9.4]
[null,null,null,null,null,null,null,null,null,null,null,null,null,null,null,null,null,null,null,null,null,null,null,null,null,null,null,null,9.5,null,null,null,null,null,null,null,null,null,null,null,null,null,null,null,null,null,null,null,null,null,null,null,null,null,null,null,null,null,null,null,null,null,null,null,null,null,null,null,null,null,null,null,null,null,null,null,null,null,null,null,null,null,null,null,null,null,null,null,null,null,null,null,null,null,null,null,null,9.5]
[null,null,null,null,null,null,null,null,null,null,null,null,null,null,null,null,null,null,null,null,null,null,null,null,null,null,null,null,9.6,null,null,null,null,null,null,null,null,null,null,null,null,null,null,null,null,null,null,null,null,null,null,null,null,null,null,null,null,null,null,null,null,null,null,null,null,null,null,null,null,null,null,null,null,null,null,null,null,null,null,null,null,null,null,null,null,null,null,null,null,null,null,null,null,null,null,null,null,9.6]
[null,null,null,null,null,null,null,null,null,null,null,null,null,null,null,null,null,null,null,null,null,null,null,null,null,null,null,null,9.6999999999999993,null,null,null,null,null,null,null,null,null,null,null,null,null,null,null,null,null,null,null,null,null,null,null,null,null,null,null,null,null,null,null,null,null,null,null,null,null,null,null,null,null,null,null,null,null,null,null,null,null,null,null,null,null,null,null,null,null,null,null,null,null,null,null,null,null,null,null,null,9.6999999999999993]
[null,null,null,null,null,null,null,null,null,null,null,null,null,null,null,null,null,null,null,null,null,null,null,null,null,null,null,null,9.8000000000000007,null,null,null,null,null,null,null,null,null,null,null,null,null,null,null,null,null,null,null,null,null,null,null,null,null,null,null,null,null,null,null,null,null,null,null,null,null,null,null,null,null,null,null,null,null,null,null,null,null,null,null,null,null,null,null,null,null,null,null,null,null,null,null,null,null,null,null,null,9.8000000000000007]
[null,null,null,null,null,null,null,null,null,null,null,null,null,null,null,null,null,null,null,null,null,null,null,null,null,null,null,null,9.9,null,null,null,null,null,null,null,null,null,null,null,null,null,null,null,null,null,null,null,null,null,null,null,null,null,null,null,null,null,null,null,null,null,null,null,null,null,null,null,null,null,null,null,null,null,null,null,null,null,null,null,null,null,null,null,null,null,null,null,null,null,null,null,null,null,null,null,null,9.9]
[null,null,null,null,null,null,null,null,null,null,null,null,null,null,null,null,null,null,null,null,null,null,null,null,null,null,null,null,"Hoog (5 - 6,5 cm)",null,null,null,null,null,null,null,null,null,null,null,null,null,null,null,null,null,null,null,null,null,null,null,null,null,null,null,null,null,null,null,null,null,null,null,null,null,null,null,null,null,null,null,null,null,null,null,null,null,null,null,null,null,null,null,null,null,null,null,null,null,null,null,null,null,null,null,null,"High (5 - 6,5 cm)"]
[null,null,null,null,null,null,null,null,null,null,null,null,null,null,null,null,null,null,null,null,null,null,null,null,null,null,null,null,"Laag (0 - 2,5 cm)",null,null,null,null,null,null,null,null,null,null,null,null,null,null,null,null,null,null,null,null,null,null,null,null,null,null,null,null,null,null,null,null,null,null,null,null,null,null,null,null,null,null,null,null,null,null,null,null,null,null,null,null,null,null,null,null,null,null,null,null,null,null,null,null,null,null,null,null,"Low (0 - 2,5 cm)"]
[null,null,null,null,null,null,null,null,null,null,null,null,null,null,null,null,null,null,null,null,null,null,null,null,null,null,null,null,"Middel (3 - 4,5 cm)",null,null,null,null,null,null,null,null,null,null,null,null,null,null,null,null,null,null,null,null,null,null,null,null,null,null,null,null,null,null,null,null,null,null,null,null,null,null,null,null,null,null,null,null,null,null,null,null,null,null,null,null,null,null,null,null,null,null,null,null,null,null,null,null,null,null,null,null,"Medium (3 - 4,5 cm)"]
[null,null,null,null,null,null,null,null,null,null,null,null,null,null,null,null,null,null,null,null,null,null,null,null,null,null,null,null,"Zeer hoog (> 7 cm)",null,null,null,null,null,null,null,null,null,null,null,null,null,null,null,null,null,null,null,null,null,null,null,null,null,null,null,null,null,null,null,null,null,null,null,null,null,null,null,null,null,null,null,null,null,null,null,null,null,null,null,null,null,null,null,null,null,null,null,null,null,null,null,null,null,null,null,null,"Very high (> 7 cm)"]
[null,null,null,null,null,null,null,null,null,null,null,null,null,null,null,null,null,null,null,null,null,null,null,null,null,null,null,null,"(0 - 2,5 cm) Laag"]
[null,null,null,null,null,null,null,null,null,null,null,null,null,null,null,null,null,null,null,null,null,null,null,null,null,null,null,null,"(3 - 4,5 cm) Middel"]
[null,null,null,null,null,null,null,null,null,null,null,null,null,null,null,null,null,null,null,null,null,null,null,null,null,null,null,null,"(5 - 6,5 cm) Hoog"]
[null,null,null,null,null,null,null,null,null,null,null,null,null,null,null,null,null,null,null,null,null,null,null,null,null,null,null,null,"(> 7 cm) Zeer hoog"]